{"text_format":"1","workbook":"xlsx","n_sheets":44,"sheets":["Settings","Information","Technical Guidelines","Economic Definitions","Revenue","Admin","2","3","4","5","6","7","8","9","10","11","12","13","14","15","Expend summary","CashFlow","CashFlowIndirect","CF_Diff_MTEC_ENE","CF_Diff_ENEs","TrendsAnalysis","FinancialPosition","ENESummary","RelatedPartyRevenue","RelatedPartyTransfers","Personnel","Infrastructure","ODA","Graphs","PersonnelPub","PersonnelTrends","PerformInfoPub","InfraS Summary","Checks","Consolidation","SOSUC","Govt Acc financing table","Sign-Off","Metadata"],"not_rendered":{"charts":7,"images":5,"macros":1,"external_links":1,"defined_names":3650,"comments":7,"pivot_tables":0},"unopened":[],"bounds":{"document_bytes":16777216,"sheet_cells":100000,"rows_first":2000,"rows_last":500,"rows_between":2000,"halvings":0,"cell_chars":16384,"cell_head_chars":4096},"cells_cut":0,"cells_raw":0,"read":"whole","date_system":"1900"}

{"sheet":"Settings","index":0,"n_rows":242,"n_cols":89,"rows_kept":242,"cut":false,"hidden":true,"merged":[[13,41,13,55],[13,58,13,64],[13,26,13,38],[13,74,13,81],[13,82,13,85]]}
[null,"Sector PSCC","Department Database","Entities name ENE Publication","Entities name Database","Examiner","ExamTel","ExamMail","TechName","TechTel","TechMail","Type","Consol","PFMA","PE_No1","PE_No","Entity Abbreviation",null,"FinYear",null,null,null,null,null,null,null,null,null,null,null,null,null,null,null,null,null,null,null,null,null,null,null,null,null,null,null,null,null,null,null,null,null,null,null,null,null,null,null,null,null,null,null,null,null,null,null,null,null,null,null,null,null,null,null,null,null,null,null,null,null,null,null,null,null,null,null,null,null,{"$f":"INDEX(($CK$17:$CK$244),MATCH($E$2,$E$17:$E$245,0))","v":0}]
[null,{"$f":"INDEX(($B$17:$B$245),MATCH($E$2,$E$17:$E$245,0))","v":"Extra-Budgetary Institution"},{"$f":"INDEX(($C$17:$C$245),MATCH($E$2,$E$17:$E$245,0))","v":"National Treasury"},{"$f":"INDEX(($D$17:$D$245),MATCH($E$2,$E$17:$E$245,0))","v":"South African Revenue Service"},{"$f":"Information!A14","v":"South African Revenue Service"},{"$f":"INDEX(($F$17:$F$245),MATCH($E$2,$E$17:$E$245,0))","v":"Mokgatla Tema "},{"$f":"INDEX(($G$17:$G$245),MATCH($E$2,$E$17:$E$245,0))","v":"(012) 315 5948"},{"$f":"INDEX(($H$17:$H$245),MATCH($E$2,$E$17:$E$245,0))","v":"Mokgatla.Tema@treasury.gov.za"},{"$f":"INDEX(($I$17:$I$245),MATCH($E$2,$E$17:$E$245,0))","v":"Patrick Mbedzi"},{"$f":"INDEX(($J$17:$J$245),MATCH($E$2,$E$17:$E$245,0))","v":"(012) 315 5912"},{"$f":"INDEX(($K$17:$K$245),MATCH($E$2,$E$17:$E$245,0))","v":"Patrick.Mbedzi@treasury.gov.za"},{"$f":"INDEX(($L$17:$L$245),MATCH($E$2,$E$17:$E$245,0))","v":1},{"$f":"INDEX(($M$17:$M$245),MATCH($E$2,$E$17:$E$245,0))","v":1},{"$f":"INDEX(($N$17:$N$245),MATCH($E$2,$E$17:$E$245,0))","v":"3A"},{"$f":"INDEX(($O$17:$O$245),MATCH($E$2,$E$17:$E$245,0))","v":"PE126"},{"$f":"INDEX(($P$17:$P$245),MATCH($E$2,$E$17:$E$245,0))","v":126},{"$f":"INDEX(($Q$17:$Q$245),MATCH($E$2,$E$17:$E$245,0))","v":"SARS"},{"$f":"INDEX(($R$17:$R$245),MATCH($E$2,$E$17:$E$245,0))","v":3},{"$f":"INDEX(($S$17:$S$245),MATCH($E$2,$E$17:$E$245,0))","v":202627}]
[]
[]
[null,null,null,null,null,null,null,null,null,null,null,{"$f":"INDEX(($L$17:$L$245),MATCH($E$2,$E$17:$E$245,0))","v":1}]
[]
[]
[]
[]
[]
[]
[]
[]
[null,null,null,null,null,null,null,null,null,null,null,null,null,null,null,null,null,null,null,null,null,null,null,null,null,null,"Related Party",null,null,null,null,null,null,null,null,null,null,null,null,null,null,"Personnel",null,null,null,null,null,null,null,null,null,null,null,null,null,null,null,null,"Infrastructure",null,null,null,null,null,null,null,null,null,null,null,null,null,null,null,"Related Party Transfers"]
[null,null,null,null,null,null,null,null,null,null,null,null,null,null,null,null,null,null,null,null,null,null,null,null,null,null,null,null,{"$f":"COUNTA(AC18:AC236)","v":42},{"$f":"COUNTA(AD18:AD239)","v":192},{"$f":"COUNTA(AE18:AE235)","v":16},{"$f":"COUNTA(AF18:AF236)","v":14},16,14,13,14,15,14,15,null,null,null,null,null,null,{"$f":"COUNTA(AT18:AT20)","v":3},{"$f":"COUNTA(AU18:AU20)","v":3},{"$f":"COUNTA(AV18:AV19)","v":2},2,2,2,2,2,null,null,null,null,null,null,null,null,null,null,null,null,null,null,null,null,null,null,null,null,null,null,{"$f":"COUNTA(BX18:BX59)","v":42},{"$f":"COUNTA(BY18:BY239)","v":192},{"$f":"COUNTA(BZ18:BZ59)","v":16},{"$f":"COUNTA(CA18:CA59)","v":14},16,14,13,14,15,14,15,42]
[null,"Sector PSCC","Department","EntityNameENE","EntityName","Examiner","ExamTel","ExamMail","TechName","TechTel","TechMail","Type_Code","ConsolIndi","PFMA","PE_No1","PE_No","ENT_Abrev","RelatedPartyID","FinYear",null,"Years",null,null,"Priorities",null,null,"Entity revenue","Related Party category","Related Party Name",null,null,null,null,null,null,null,null,null,null,null,null,"Level","Salary Level 202526","Salary Level 202425","Occupation",null,null,null,null,null,null,null,null,"Category","Occupation","Components of Remuneration",null,null,"SIP Category","InfraList1","InfraList2","InfraList3","InfraList4","SCOA level",null,null,null,"Headings",null,null,"Transfers receipt/payment",null,"Currency",null,"Related Party Transfer category",null,null,null,null,null,null,null,null,null,null,null,null,null,"ODA"]
[null,"Extra-Budgetary Institution","Science, Technology and Innovation","Academy of Science of South Africa","Academy of Science of South Africa","Humbelani Ramuedzisi","(012) 315 5585","Humbelani.Ramuedzisi@treasury.gov.za","Samson Mlambo",0,"Samson.Mlambo@treasury.gov.za",1,1,"Not listed","PE8",8,"ASSAF",3,202627,null,"2022/23",null,null,"Outcome 1: Increased employment and work opportunities",null,null,"Advertising",null,"National Department","Other Public Entities","Eastern Cape  ","Free State  ","Gauteng","Kwazulu-Natal","Limpopo","Mpumalanga","Northern Cape","North West","Western Cape",null,null,1,"≤137 682","≤130 503","Executive Board Members","Executive Board Members","Executive Management","Senior Management","Middle Management","Professionals","Skilled","Semi-skilled","Very low skilled","Permanent","Actors","Guaranteed package",null,null,"Not related to SIPs","Programme","New infrastructure assets","Site identification","Mega","Residential buildings",null,null,null,"Audited\noutcome",null,null,"Receipt",null,"CAD",null,"Other national departments","Other national departments","Departmental agencies and accounts","Provincial department - Eastern Cape  ","Provincial department - Free State  ","Provincial department - Gauteng","Provincial department - Kwazulu-Natal","Provincial department - Limpopo","Provincial department - Mpumalanga","Provincial department - Northern Cape","Provincial department - North West","Provincial department - Western Cape","National government",null,0]
[null,"Extra-Budgetary Institution","National Treasury","Accounting Standards Board","Accounting Standards Board","Mokgatla Tema ","(012) 315 5948","Mokgatla.Tema@treasury.gov.za","Patrick Mbedzi","(012) 315 5912","Patrick.Mbedzi@treasury.gov.za",1,1,"3A","PE7",7,"ASB",3,202627,null,"2023/24",null,null,"Outcome 2: Accelerated growth of strategic and labour-intensive sectors",null,null,"Communication (G&S)","Other Public Entities","The Presidency","Academy of Science of South Africa","Education","Education","Education","Education","Education","Education","Education","Education","Education",null,null,2,"137 683 - 160 719","130 504 - 154 626","Executive Management","Guaranteed package","Guaranteed package","Guaranteed package","Guaranteed package","Guaranteed package","Guaranteed package","Guaranteed package","Guaranteed package","Temporary/Contract","Adjudicators","Performance bonus",null,null,"SIP 1: Unlocking the northern mineral belt with Waterberg as Catalyst","Project ","Upgrading and additions","Pre-feasibility","Large","Non-residential buildings",null,null,null,"Audited\noutcome",null,null,"Payment",null,"CHF",null,"Departmental agencies and accounts","The Presidency","Academy of Science of South Africa","Education","Education","Education","Education","Education","Education","Education","Education","Education","The Presidency",null,0]
[null,"Extra-Budgetary Institution","International Relations and Cooperation","African Renaissance and International Cooperation Fund","African Renaissance and International Cooperation Fund","George Tembo","(012) 315 5514","George.Tembo@treasury.gov.za","Patrick Mbedzi","(012) 315 5912","Patrick.Mbedzi@treasury.gov.za",3,1,"3A","PE2",2,"ARICF",3,202627,null,"2024/25",null,null,"Outcome 3: Structural reforms to drive growth and competitiveness",null,null,"Computer services","Eastern Cape  ","Parliament","Accounting Standards Board","Health","Health","Health","Health","Health","Health","Health","Health","Health",null,null,3,"160 720 - 192 810","154 627 - 182 757","Senior Management","Performance bonus","Performance bonus","Other","Other","Other","Other","Other","Other",null,"Administrative and related professionals","Other",null,null,"SIP 2: Durban-Free State Gauteng Logistics and Industrial Corridor",null,"Rehabilitation and refurbishment","Feasibility","Small","Investment property",null,null,null,"Budget",null,null,null,null,"CNY/RMB",null,"Provincial department - Eastern Cape  ","Parliament","Accounting Standards Board","Health","Health","Health","Health","Health","Health","Health","Health","Health","Parliament",null,0]
[null,"Extra-Budgetary Institution","Public Works and Infrastructure","Agrément South Africa","Agrément South Africa","George Tembo","(012) 315 5514","George.Tembo@treasury.gov.za","Patrick Mbedzi","(012) 315 5912","Patrick.Mbedzi@treasury.gov.za",1,1,"3A","PE246",246,"ASA",3,202627,null,"2025/26",null,null,"Outcome 4: Increased infrastructure investment and job creation",null,null,"Consultants: Business and advisory services","Free State  ","Cooperative Governance","African Renaissance and International Cooperation Fund","Social Development and Special Programmes","Social Development","Social Development","Social Development","Social Development","Social Development","Social Development","Social Development","Social Development",null,null,4,"192 811 - 227 766","182 758- 215 892","Middle Management","Other","Other",null,null,null,null,null,null,null,"Agriculture related",null,null,null,"Sip 3: South eastern note and corridor development",null,"Maintenance and repair","Design",null,"Heritage assets",null,null,null,"Audited\noutcome",null,null,null,null,"DKK",null,"Provincial department - Free State  ","Cooperative Governance","African Renaissance and International Cooperation Fund","Social Development and Special Programmes","Social Development","Social Development","Social Development","Social Development","Social Development","Social Development","Social Development","Social Development","Cooperative Governance",null,0]
[null,"Extra-Budgetary Institution","Land Reform and Rural Development","Agricultural land holding account","Agricultural Land Holding Account","Bothwell Deka","(012) 395 6784","Bothwell.Deka@treasury.gov.za","Jabulane Mashele","(012) 395 6560","Jabulane.Mashele@treasury.gov.za",1,1,"Not listed","PE62",62,"ALHA",3,202627,null,"2026/27",null,null,"Outcome 5: Energy security and a just energy transition",null,null,"Infrastructure and planning services","Gauteng","Government Communication and Information System","Agrément South Africa","Office of the Premier","Premier","Office of the Premier","Office of the Premier","Office of the Premier","Office of the Premier","Office of the Premier","Office of the Premier","Premier",null,null,5,"227 767 - 268 950","215 893 - 254 928","Professionals",null,null,null,null,null,null,null,null,null,"Analysts",null,null,null,"SIP 4: Unlocking the economic opportunities in the Both West Province",null,null,"Tender",null,"Other fixed structures",null,null,null,"Budget\nestimate",null,null,null,null,"EUR",null,"Provincial department - Gauteng","Government Communication and Information System","Agrément South Africa","Office of the Premier","Premier","Office of the Premier","Office of the Premier","Office of the Premier","Office of the Premier","Office of the Premier","Office of the Premier","Premier","Government Communication and Information System",null,0]
[null,"Extra-Budgetary Institution","Agriculture","Agricultural Research Council","Agricultural Research Council","Bothwell Deka","(012) 395 6785","Bothwell.Deka@treasury.gov.za","Jabulane Mashele","(012) 395 6560","Jabulane.Mashele@treasury.gov.za",1,1,"3A","PE5",5,"ARC",1,202627,null,"2027/28",null,null,"Outcome 6: Supportive and sustainable economic policy environment",null,null,"Laboratory services","Kwazulu-Natal","Home Affairs","Agricultural Land Holding Account","Provincial Legislature","Free State Legislature","Gauteng Provincial Legislature","Provincial Legislature","Provincial Legislature","Provincial Legislature","Provincial Legislature","Provincial Legislature","Provincial Parliament",null,null,6,"268 951 - 317 463","254 929 - 300 912","Skilled",null,null,null,null,null,null,null,null,null,"Appraisers-valuers and related professionals",null,null,null,"SIP 5: Saldanha-Northern Cape Development Corridor",null,null,"Construction",null,null,null,null,null,"Approved budget",null,null,null,null,"GBP",null,"Provincial department - Kwazulu-Natal","Home Affairs","Agricultural Land Holding Account","Provincial Legislature","Free State Legislature","Gauteng Provincial Legislature","Provincial Legislature","Provincial Legislature","Provincial Legislature","Provincial Legislature","Provincial Legislature","Provincial Parliament","Home Affairs",null,1]
[null,"Extra-Budgetary Institution","Higher Education ","Agricultural Sector Education and Training Authority","Agricultural Sector Education and Training Authority","Barileng Khumisi","(012) 406 9069","Barileng.Khumisi@treasury.gov.za","Lionel Botsane","(012) 315 5749","Lionel.Botsane@treasury.gov.za",2,3,"3A","PE214",214,"AgriSETA",3,202627,null,"2028/29",null,null,"Outcome 7: Increased investment, trade And tourism",null,null,"Legal services (G&S)","Limpopo","International Relations and Cooperation","Agricultural Research Council","Public Works","Economic Development & Small Business Development, Tourism & Environmental Affairs","Economic Development","Agriculture and Rural Development","Agriculture","Provincial Treasury","Transport, Safety and Liaison","Arts, Culture, Sports and Recreation","Provincial Treasury",null,null,7,"317 464 - 382 959","300 913 - 362 994","Semi-skilled",null,null,null,null,null,null,null,null,null,"Architects and related professionals",null,null,null,"SIP 6: Integrated municipal infrastructure project",null,null,"Hand over",null,null,null,null,null,"Changes from \nbudget estimate",null,null,null,null,"JPY",null,"Provincial department - Limpopo","International Relations and Cooperation","Agricultural Research Council","Public Works","Economic Development & Small Business Development, Tourism & Environmental Affairs","Economic Development","Agriculture and Rural Development","Agriculture","Provincial Treasury","Transport, Safety and Liaison","Arts, Culture, Sports and Recreation","Provincial Treasury","International Relations and Cooperation",null,0]
[null,"Public non-financial corporation","Transport","Air Traffic and Navigation Services Company Limited","Air Traffic and Navigation Services Company","Luyolo Ntlangula","(012) 315 5571","Luyolo.Ntlangula@treasury.gov.za","Samson Mlambo",0,"Samson.Mlambo@treasury.gov.za",1,3,2,"PE9",9,"ATNS",3,202627,null,"2029/30",null,null,"Outcome 8: A dynamic science, technology and innovation for growth",null,null,"Science and technological services","Mpumalanga","National School of Government","Agricultural Sector Education and Training Authority","Cooperative Governance and Traditional Affairs","Provincial Treasury","Cooperative Governance and Traditional Affairs","Economic Development, Tourism and Environmental Affairs","Provincial Treasury","Co-Operative Governance and Traditional Affairs","Roads and Public Works ","Community Safety and Transport Management","Community Safety",null,null,8,"382 960 - 467 790","362 995 - 443 403","Very low skilled",null,null,null,null,null,null,null,null,null,"Archivists and related professionals",null,null,null,"SIP 7: Integrated urban space and public transport programme",null,null,"Handed over",null,null,null,null,null,"Budget\nestimate",null,null,null,null,"NZD",null,"Provincial department - Mpumalanga","National School of Government","Agricultural Sector Education and Training Authority","Cooperative Governance and Traditional Affairs","Provincial Treasury","Cooperative Governance and Traditional Affairs","Economic Development, Tourism and Environmental Affairs","Provincial Treasury","Co-Operative Governance and Traditional Affairs","Roads and Public Works ","Community Safety and Transport Management","Community Safety","National School of Government",null,0]
[null,"Public non-financial corporation","Transport","The Airports Company Limited","Airports Company","Luyolo Ntlangula","(012) 315 5571","Luyolo.Ntlangula@treasury.gov.za","Samson Mlambo",0,"Samson.Mlambo@treasury.gov.za",1,3,2,"PE1",1,"ACSA",3,202627,null,"2030/31",null,null,"Outcome 9: Economic transformation for a just society",null,null,"Contractors","Northern Cape","National Treasury","Amatola Water Board","Rural Development and Agrarian Reform","Cooperative Governance and Traditional Affairs","Human Settlements","Provincial Treasury","Economic Development, Environment and Tourism","Agriculture, Rural Development, Land and Environmental Affairs","Economic Development and Tourism","Economic Development, Environment, Conservation and Tourism","Human Settlements",null,null,9,"467 791 - 561 894","443 404 - 532 602",null,null,null,null,null,null,null,null,null,null,"Artisans and related professionals",null,null,null,"SIP 8: Green energy in support of the South African economy",null,null,"On hold",null,null,null,null,null,"Revised\nbudget\nestimate",null,null,null,null,"NOK",null,"Provincial department - Northern Cape","National Treasury","Amatola Water Board","Rural Development and Agrarian Reform","Cooperative Governance and Traditional Affairs","Human Settlements","Provincial Treasury","Economic Development, Environment and Tourism","Agriculture, Rural Development, Land and Environmental Affairs","Economic Development and Tourism","Economic Development, Environment, Conservation and Tourism","Human Settlements","National Treasury",null,0]
[null,"Public non-financial corporation","Mineral and Petroleum Resources ","Alexkor Limited","Alexkor Limited","Nomagugu Madikane","(012) 315 5312","Nomagugu.Madikane@treasury.gov.za","Mpho Ntshole",0,"Mpho.Ntshole@treasury.gov.za",1,3,2,"PE4",4,"Alexkor",3,202627,null,"2031/32",null,null,"Outcome 10: Reduced poverty and improved livelihoods",null,null,"Agency and support/outsourced services","North West","Planning, Monitoring and Evaluation","Amazwi – South African Museum of Literature ","Economic Development, Environmental Affairs and Tourism","Public Works & Infrastructure","Roads and Transport","Human Settlements","Transport and Community Safety","Economic Development and Tourism","Sport, Arts and Culture","Provincial Treasury","Environmental Affairs and Development Planning",null,null,10,"561 895 - 896 436","532 603 - 849 702",null,null,null,null,null,null,null,null,null,null,"Arts and culture related ",null,null,null,"SIP 9: Electricity generations to support socio-economic development",null,null,"Complete",null,null,null,null,null,"Changes from budget estimate",null,null,null,null,"USD",null,"Provincial department - North West","Planning, Monitoring and Evaluation","Amazwi – South African Museum of Literature ","Economic Development, Environmental Affairs and Tourism","Public Works & Infrastructure","Roads and Transport","Human Settlements","Transport and Community Safety","Economic Development and Tourism","Sport, Arts and Culture","Provincial Treasury","Environmental Affairs and Development Planning","Planning, Monitoring and Evaluation",null,0]
[null,"Public non-financial corporation","Water and Sanitation","Amatola Water Board","Amatola Water Board","Iqbal Mahomed Alli","(012) 315 5809","Iqbal.Mahomedalli@treasury.gov.za","Mntazi Msiza","(012) 315 5876","Mntazi.Msiza@treasury.gov.za",1,3,"3B","PE215",215,"Amatola",3,202627,null,"2032/33",null,null,"Outcome 11: Optimised social protection and coverage",null,null,"Fleet services (including government motor transport)","Western Cape","Public Enterprises","Armaments Corporation of South Africa Limited","Transport","Police, Roads and Transport","Community Safety","Community Safety and Liaison","Public Works, Roads and Infrastructure","Public Works, Roads and Transport","Provincial Treasury","Cooperative Governance and Traditional Affairs","Transport and Public Works",null,null,11,"896 436 - 1 055 958","849 703 - 1 000 908",null,null,null,null,null,null,null,null,null,null,"Asset controllers and related professionals ",null,null,null,"SIP 10: Electricity transmission and distribution for all",null,null,"On-going",null,null,null,null,null,"Budget\nestimate",null,null,null,null,"ZAR",null,"Provincial department - Western Cape","Public Enterprises","Armaments Corporation of South Africa Limited","Transport","Police, Roads and Transport","Community Safety","Community Safety and Liaison","Public Works, Roads and Infrastructure","Public Works, Roads and Transport","Provincial Treasury","Cooperative Governance and Traditional Affairs","Transport and Public Works","Public Enterprises",null,0]
[null,"Extra-Budgetary Institution","Sport, Arts and Culture","National English Literary Museum","Amazwi – South African Museum of Literature ","Judy Naidoo","(012) 315 5269","Judy.Naidoo@treasury.gov.za","Vuyo Ngqukumba","(012) 315 5760","Vuyo.Ngqukumba@treasury.gov.za",1,3,"3A","PE191",191,"Amazwi",3,202627,null,"2033/34",null,null,"Outcome 12: Improved access to affordable and quality healthcare ",null,null,"Housing",null,"Public Service and Administration","Artscape","Human Settlements","Agriculture and Rural Development","Agriculture and Rural Development","Co-Operative Governance and Traditional Affairs","Cooperative Governance, Human Settlements and Traditional Affairs","Community Safety, Security and Liaison","Cooperative Governance, Human Settlements and Traditional Affairs","Human Settlements","Agriculture",null,null,12,"1 055 959 - 1 247 574","1 000 909 - 1 182 534",null,null,null,null,null,null,null,null,null,null,"Attendants",null,null,null,"SIP 11: Agri-logistics and rural infrastructure",null,null,null,null,null,null,null,null,"Revised\nbudget\nestimate",null,null,null,null,null,null,null,"Public Service and Administration","Artscape","Human Settlements","Agriculture and Rural Development","Agriculture and Rural Development","Co-Operative Governance and Traditional Affairs","Cooperative Governance, Human Settlements and Traditional Affairs","Community Safety, Security and Liaison","Cooperative Governance, Human Settlements and Traditional Affairs","Human Settlements","Agriculture","Public Service and Administration",null,0]
[null,"Extra-Budgetary Institution","Defence","Armaments Corporation of South Africa, Limited","Armaments Corporation of South Africa Limited","Mashudu Bidzha","(012) 315 5344","Mashudu.Bidzha@treasury.gov.za","Jabulane Mashele","(012) 395 6560","Jabulane.Mashele@treasury.gov.za",1,1,2,"PE6",6,"ARMSCOR",1,202627,null,"2034/35",null,null,"Outcome 13: Improved education outcomes and skills",null,null,"Inventory: Clothing material and accessories",null,"Public Service Commission","Banking Sector Education and Training Authority","Provincial Treasury","Sport, Arts, Culture and Recreation","Sport, Arts, Culture and Recreation","Transport","Sport, Arts and Culture","Culture, Sport and Recreation","Agriculture, Environmental Affairs, Rural Development and Land Reform","Public Works and Roads","Economic Development and Tourism",null,null,13,"1 182 535 - 1 436 022","1 182 535 - 1 436 022",null,null,null,null,null,null,null,null,null,null,"Auditors and related professionals",null,null,null,"SIP 12: Revitalisation of public hospitals and other health facilities",null,null,null,null,null,null,null,null,"Changes from budget estimate",null,null,null,null,null,null,null,"Public Service Commission","Banking Sector Education and Training Authority","Provincial Treasury","Sport, Arts, Culture and Recreation","Sport, Arts, Culture and Recreation","Transport","Sport, Arts and Culture","Culture, Sport and Recreation","Agriculture, Environmental Affairs, Rural Development and Land Reform","Public Works and Roads","Economic Development and Tourism","Public Service Commission",null,0]
[null,"Extra-Budgetary Institution","Sport, Arts and Culture","Artscape","Artscape","Judy Naidoo","(012) 315 5269","Judy.Naidoo@treasury.gov.za","Vuyo Ngqukumba","(012) 315 5760","Vuyo.Ngqukumba@treasury.gov.za",1,3,"3A","PE217",217,"Artscape",3,202627,null,null,null,null,"Outcome 14: Skills for the economy",null,null,"Inventory: Farming supplies",null,"Public Works and Infrastructure","Bloem Water","Sport, Recreation, Arts and Culture","Human Settlements","E-Government","Public Works",null,"Human Settlements",null,"Agriculture and Rural Development","Cultural Affairs and Sport",null,null,14,"1 436 023  - 1 741 770","1 436 023  - 1 741 770",null,null,null,null,null,null,null,null,null,null,"Authors journalists and other writers",null,null,null,"SIP 13:  National school build programme",null,null,null,null,null,null,null,null,"Planning\nbudget \nestimate",null,null,null,null,null,null,null,"Public Works and Infrastructure","Bloem Water","Sport, Recreation, Arts and Culture","Human Settlements","E-Government","Public Works",null,"Human Settlements",null,"Agriculture and Rural Development","Cultural Affairs and Sport","Public Works and Infrastructure",null,0]
[null,"Extra-Budgetary Institution","Higher Education ","Banking Sector Education and Training Authority","Banking Sector Education and Training Authority","Barileng Khumisi","(012) 406 9069","Barileng.Khumisi@treasury.gov.za","Lionel Botsane","(012) 315 5749","Lionel.Botsane@treasury.gov.za",2,3,"3A","PE218",218,"BankSETA",3,202627,null,null,null,null,"Outcome 15: Social cohesion and nation-building",null,null,"Inventory: Food and food supplies",null,"Statistics South Africa","Boxing South Africa","Safety and Liaison",null,"Gauteng Provincial Treasury","Sport, Arts and Culture",null,null,"",null,"Local Government",null,null,15,"1 741 771 - 2 259 984","1 741 771 - 2 259 984",null,null,null,null,null,null,null,null,null,null,"Auxiliary and related workers ",null,null,null,"SIP 14: Higher education infrastructure",null,null,null,null,null,null,null,null,null,null,null,null,null,null,null,null,"Statistics South Africa","Boxing South Africa","Safety and Liaison",null,"Gauteng Provincial Treasury","Sport, Arts and Culture",null,null,"",null,"Local Government","Statistics South Africa",null,0]
[null,"Extra-Budgetary Institution","Water and Sanitation","Vaal Central Water Board","Vaal Central Water Board","Iqbal Mahomed Alli","(012) 315 5809","Iqbal.Mahomedalli@treasury.gov.za","Mntazi Msiza","(012) 315 5876","Mntazi.Msiza@treasury.gov.za",1,3,"3B","PE220",220,"Bloem",3,202627,null,null,null,null,"Outcome 16: Improved service delivery at local government",null,null,"Inventory: Fuel, oil and gas",null,"Traditional Affairs","Brand SA","",null,"Infrastructure Development",null,null,null,"",null,null,null,null,16,"2 259 984 - 2 545 854","2 259 984 - 2 545 854",null,null,null,null,null,null,null,null,null,null,"Aviation related ",null,null,null,"SIP 15: Expanding access to communication technology",null,null,null,null,null,null,null,null,null,null,null,null,null,null,null,null,"Traditional Affairs","Brand SA","",null,"Infrastructure Development",null,null,null,"",null,null,"Traditional Affairs",null,0]
[null,"Extra-Budgetary Institution","Home Affairs","Border Management Authority","Border Management Authority","Timothy Murwa","(012) 315 5002","Timothy.Murwa@treasury.gov.za","Patrick Mbedzi","(012) 315 5912","Patrick.Mbedzi@treasury.gov.za",1,2,"Not listed","PE253",253,"BMA",3,202627,null,null,null,null,"Outcome 17: Improve governance and performance of public entities",null,null,"Inventory: Learner and teacher support material",null,"Basic Education","Breede-Olifants Catchment Management Agency","","","",null,"","","","","",null,null,17,"2 545 855 - 2 871 266","2 545 855 - 2 871 266",null,null,null,null,null,null,null,null,null,null,"Board Members",null,null,null,"SIP 16: SKA and Meerkat",null,null,null,null,null,null,null,null,null,null,null,null,null,null,null,null,"Basic Education","Breede-Olifants Catchment Management Agency","","","",null,"","","","","","Basic Education",null,0]
[null,"Extra-Budgetary Institution","Sport, Arts and Culture","Boxing SA","Boxing South Africa","Judy Naidoo","(012) 315 5269","Judy.Naidoo@treasury.gov.za","Vuyo Ngqukumba","(012) 315 5760","Vuyo.Ngqukumba@treasury.gov.za",1,1,"3A","PE12",12,"BSA",3,202627,null,null,null,null,"Outcome 18: A capable and professional public service",null,null,"Inventory: Materials and supplies",null,"Higher Education ","Castle Control Board",null,null,null,null,null,null,null,null,null,null,null,18,"2 871 267 - 3 243 836","2 871 267 - 3 243 836",null,null,null,null,null,null,null,null,null,null,"Business support and related professionals",null,null,null,"SIP 17: Regional integration for African Cooperation and development",null,null,null,null,null,null,null,null,null,null,null,null,null,null,null,null,"Higher Education ","Castle Control Board",null,null,null,null,null,null,null,null,null,"Higher Education ",null,0]
[null,"Extra-Budgetary Institution","Government Communication and Information System","Brand South Africa","Brand SA","Mokgatla Tema ","(012) 315 5948","Mokgatla.Tema@treasury.gov.za","Patrick Mbedzi","(012) 315 5912","Patrick.Mbedzi@treasury.gov.za",1,1,"3A","PE51",51,"BrandSA",3,202627,null,null,null,null,"Outcome 19: Digital transformation across the state",null,null,"Inventory: Medical supplies",null,"Health","Chemical Industries Education and Training Authority",null,null,null,null,null,null,null,null,null,null,null,19,"3 243 837 - 3 666 610","3 243 837 - 3 666 610",null,null,null,null,null,null,null,null,null,null,"CAE (Chief Audit Executive)",null,null,null,"SIP 18. Water and sanitation master plan",null,null,null,null,null,null,null,null,null,null,null,null,null,null,null,null,"Health","Chemical Industries Education and Training Authority",null,null,null,null,null,null,null,null,null,"Health",null,0]
[null,"Extra-Budgetary Institution","Water and Sanitation","Breede-Olifants Catchment Management Agency","Breede-Olifants Catchment Management Agency","Iqbal Mahomed Alli","(012) 315 5809","Iqbal.Mahomedalli@treasury.gov.za","Mntazi Msiza","(012) 315 5876","Mntazi.Msiza@treasury.gov.za",1,1,"3A","PE225",225,"BGCMA",3,202627,null,null,null,null,"Outcome 20: Safer communities and increased business confidence",null,null,"Inventory: Medicine",null,"Social Development","Commission for Conciliation Mediation & Arbitration",null,null,null,null,null,null,null,null,null,null,null,20,"3 666 611 - 4 145 656","3 666 611 - 4 145 656",null,null,null,null,null,null,null,null,null,null,"Call centre operator ",null,null,null,null,null,null,null,null,null,null,null,null,null,null,null,null,null,null,null,null,"Social Development","Commission for Conciliation Mediation & Arbitration",null,null,null,null,null,null,null,null,null,"Social Development",null,0]
[null,"Extra-Budgetary Institution","Communications and Digital Technologies","Broadband Infraco (Proprietary) Limited","Broadband Infraco Limited","Keitumetse Motshegwe","(012) 395 6750","Keitumetse.Motshegwe@treasury.gov.za","Mntazi Msiza","(012) 315 5876","Mntazi.Msiza@treasury.gov.za",1,3,"3A","PE224",224,"Broadband",3,202627,null,null,null,null,"Outcome 21: Effective border management and development in Africa and globally",null,null,"Medsas inventory interface",null,"Women, Youth and Persons with Disabilities","Community Schemes Ombud Service",null,null,null,null,null,null,null,null,null,null,null,21,"4 145 657 - 4 691 399","4 145 657 - 4 691 399",null,null,null,null,null,null,null,null,null,null,"Caretakers",null,null,null,null,null,null,null,null,null,null,null,null,null,null,null,null,null,null,null,null,"Women, Youth and Persons with Disabilities","Community Schemes Ombud Service",null,null,null,null,null,null,null,null,null,"Women, Youth and Persons with Disabilities",null,0]
[null,"Public non-financial corporation","Defence","Castle Control Board","Castle Control Board","Mashudu Bidzha","(012) 315 5344","Mashudu.Bidzha@treasury.gov.za","Jabulane Mashele","(012) 395 6560","Jabulane.Mashele@treasury.gov.za",1,1,"3A","PE16",16,"CCB",3,202627,null,null,null,null,"Entity mandate",null,null,"Inventory: Other supplies",null,"Civilian Secretariat for the Police Service","Companies and Intellectual Property Commission",null,null,null,null,null,null,null,null,null,null,null,22,"≥4 691 400","≥4 691 400",null,null,null,null,null,null,null,null,null,null,"Cartographers surveyors and related technicaians",null,null,null,null,null,null,null,null,null,null,null,null,null,null,null,null,null,null,null,null,"Civilian Secretariat for the Police Service","Companies and Intellectual Property Commission",null,null,null,null,null,null,null,null,null,"Civilian Secretariat for the Police Service",null,0]
[null,"Public non-financial corporation","Mineral and Petroleum Resources ","CEF (Proprietary) Limited","CEF (Pty) Ltd","Nomagugu Madikane","(012) 315 5312","Nomagugu.Madikane@treasury.gov.za","Mpho Ntshole",0,"Mpho.Ntshole@treasury.gov.za",3,3,2,"PE18",18,"CEF",1,202627,null,null,null,null,null,null,null,"Consumable supplies",null,"Correctional Services","Companies Tribunal",null,null,null,null,null,null,null,null,null,null,null,null,null,null,null,null,null,null,null,null,null,null,null,null,"Case management officer",null,null,null,null,null,null,null,null,null,null,null,null,null,null,null,null,null,null,null,null,"Correctional Services","Companies Tribunal",null,null,null,null,null,null,null,null,null,"Correctional Services",null,0]
[null,"Extra-Budgetary Institution","Higher Education ","Chemical Industries Education and Training Authority","Chemical Industries Education and Training Authority","Barileng Khumisi","(012) 406 9069","Barileng.Khumisi@treasury.gov.za","Lionel Botsane","(012) 315 5749","Lionel.Botsane@treasury.gov.za",2,3,"3A","PE165",165,"CHIETA",3,202627,null,null,null,null,null,null,null,"Consumables: Stationery, printing and office supplies",null,"Defence","Competition Commission",null,null,null,null,null,null,null,null,null,null,null,null,null,null,null,null,null,null,null,null,null,null,null,null,"Case officer",null,null,null,null,null,null,null,null,null,null,null,null,null,null,null,null,null,null,null,null,"Defence","Competition Commission",null,null,null,null,null,null,null,null,null,"Defence",null,0]
[null,"Extra-Budgetary Institution","Employment and Labour","Commission for Conciliation, Mediation and Arbitration","Commission for Conciliation Mediation & Arbitration","Judy Naidoo","(012) 315 5269","Judy.Naidoo@treasury.gov.za","Samson Mlambo",0,"Samson.Mlambo@treasury.gov.za",1,1,"3A","PE17",17,"CCMA",3,202627,null,null,null,null,null,null,null,"Operating leases",null,"Independent Police Investigative Directorate","Competition Tribunal",null,null,null,null,null,null,null,null,null,null,null,null,null,null,null,null,null,null,null,null,null,null,null,null,"Catering and related",null,null,null,null,null,null,null,null,null,null,null,null,null,null,null,null,null,null,null,null,"Independent Police Investigative Directorate","Competition Tribunal",null,null,null,null,null,null,null,null,null,"Independent Police Investigative Directorate",null,0]
[null,"Extra-Budgetary Institution","Human Settlements","Community Schemes Ombud Service","Community Schemes Ombud Service","Lindiwe Ngcongwane","(012) 315 5357","Lindiwe.Ngcongwane@treasury.gov.za","Jabulane Mashele","(012) 395 6560","Jabulane.Mashele@treasury.gov.za",1,1,"3A","PE240",240,"CSOS",3,202627,null,null,null,null,null,null,null,"Rental and hiring",null,"Justice and Constitutional Development","Construction Education and Training Authority",null,null,null,null,null,null,null,null,null,null,null,null,null,null,null,null,null,null,null,null,null,null,null,null,"CEO (Chief Executive Officer)",null,null,null,null,null,null,null,null,null,null,null,null,null,null,null,null,null,null,null,null,"Justice and Constitutional Development","Construction Education and Training Authority",null,null,null,null,null,null,null,null,null,"Justice and Constitutional Development",null,0]
[null,"Extra-Budgetary Institution","Trade, Industry and Competition","Companies and Intellectual Property Commission","Companies and Intellectual Property Commission","Rudzani Sikhwari","(012) 315 5823","Rudzani.Sikhwari@treasury.gov.za","Nymrot Sholoko",0,"Nymrot.Sholoko@treasury.gov.za",1,1,"3A","PE22",22,"CIPC",3,202627,null,null,null,null,null,null,null,"Property payments",null,"Military Veterans","Construction Industry Development Board",null,null,null,null,null,null,null,null,null,null,null,null,null,null,null,null,null,null,null,null,null,null,null,null,"CFO (Chief Financial Officer)",null,null,null,null,null,null,null,null,null,null,null,null,null,null,null,null,null,null,null,null,"Military Veterans","Construction Industry Development Board",null,null,null,null,null,null,null,null,null,"Military Veterans",null,0]
[null,"Social Security Fund","Trade, Industry and Competition","Companies Tribunal","Companies Tribunal","Rudzani Sikhwari","(012) 315 5823","Rudzani.Sikhwari@treasury.gov.za","Nymrot Sholoko",0,"Nymrot.Sholoko@treasury.gov.za",1,1,"3A","PE230",230,"CT",3,202627,null,null,null,null,null,null,null,"Transport provided: Departmental activity",null,"Office of the Chief Justice","Council for Geoscience",null,null,null,null,null,null,null,null,null,null,null,null,null,null,null,null,null,null,null,null,null,null,null,null,"Chairperson",null,null,null,null,null,null,null,null,null,null,null,null,null,null,null,null,null,null,null,null,"Office of the Chief Justice","Council for Geoscience",null,null,null,null,null,null,null,null,null,"Office of the Chief Justice",null,0]
[null,"Extra-Budgetary Institution","Employment and Labour","Compensation Fund","Compensation Fund, including Reserve Fund","Judy Naidoo","(012) 315 5269","Judy.Naidoo@treasury.gov.za","Vuyo Ngqukumba","(012) 315 5760","Vuyo.Ngqukumba@treasury.gov.za",4,4,"3A","PE26",26,"CompFund",3,202627,null,null,null,null,null,null,null,"Training and development",null,"Police","Council for Medical Schemes",null,null,null,null,null,null,null,null,null,null,null,null,null,null,null,null,null,null,null,null,null,null,null,null,"CIO (Chief Information Officer)",null,null,null,null,null,null,null,null,null,null,null,null,null,null,null,null,null,null,null,null,"Police","Council for Medical Schemes",null,null,null,null,null,null,null,null,null,"Police",null,0]
[null,"Extra-Budgetary Institution","Trade, Industry and Competition","Competition Commission","Competition Commission","Rudzani Sikhwari","(012) 315 5823","Rudzani.Sikhwari@treasury.gov.za","Nymrot Sholoko",0,"Nymrot.Sholoko@treasury.gov.za",1,1,"3A","PE25",25,"CC",1,202627,null,null,null,null,null,null,null,"Operating payments",null,"Agriculture, Land Reform and Rural Development","Council for Scientific and Industrial Research",null,null,null,null,null,null,null,null,null,null,null,null,null,null,null,null,null,null,null,null,null,null,null,null,"Cleaners",null,null,null,null,null,null,null,null,null,null,null,null,null,null,null,null,null,null,null,null,"Agriculture, Land Reform and Rural Development","Council for Scientific and Industrial Research",null,null,null,null,null,null,null,null,null,"Agriculture, Land Reform and Rural Development",null,0]
[null,"Extra-Budgetary Institution","Trade, Industry and Competition","Competition Tribunal","Competition Tribunal","Rudzani Sikhwari","(012) 315 5823","Rudzani.Sikhwari@treasury.gov.za","Nymrot Sholoko",0,"Nymrot.Sholoko@treasury.gov.za",1,1,"3A","PE27",27,"CT",1,202627,null,null,null,null,null,null,null,"Venues and facilities",null,"Communications and Digital Technologies","Council for the Built Environment",null,null,null,null,null,null,null,null,null,null,null,null,null,null,null,null,null,null,null,null,null,null,null,null,"Commissioners",null,null,null,null,null,null,null,null,null,null,null,null,null,null,null,null,null,null,null,null,"Communications and Digital Technologies","Council for the Built Environment",null,null,null,null,null,null,null,null,null,"Communications and Digital Technologies",null,0]
[null,"Extra-Budgetary Institution","Higher Education ","Construction Education and Training Authority","Construction Education and Training Authority","Barileng Khumisi","(012) 406 9069","Barileng.Khumisi@treasury.gov.za","Lionel Botsane","(012) 315 5749","Lionel.Botsane@treasury.gov.za",2,3,"3A","PE223",223,"CETA",3,202627,null,null,null,null,null,null,null,null,null,"Employment and Labour","Council on Higher Education",null,null,null,null,null,null,null,null,null,null,null,null,null,null,null,null,null,null,null,null,null,null,null,null,"Committee officials",null,null,null,null,null,null,null,null,null,null,null,null,null,null,null,null,null,null,null,null,"Employment and Labour","Council on Higher Education",null,null,null,null,null,null,null,null,null,"Employment and Labour",null,0]
[null,"Extra-Budgetary Institution","Public Works and Infrastructure","Construction Industry Development Board","Construction Industry Development Board","George Tembo","(012) 315 5514","George.Tembo@treasury.gov.za","Patrick Mbedzi","(012) 315 5912","Patrick.Mbedzi@treasury.gov.za",1,1,"3A","PE21",21,"CIDB",3,202627,null,null,null,null,null,null,null,null,null,"Forestry, Fisheries and the Environment","Cross-Border Road Transport Agency",null,null,null,null,null,null,null,null,null,null,null,null,null,null,null,null,null,null,null,null,null,null,null,null,"Communication and information related",null,null,null,null,null,null,null,null,null,null,null,null,null,null,null,null,null,null,null,null,"Forestry, Fisheries and the Environment","Cross-Border Road Transport Agency",null,null,null,null,null,null,null,null,null,"Forestry, Fisheries and the Environment",null,0]
[null,"Extra-Budgetary Institution","Mineral and Petroleum Resources ","Council for Geoscience","Council for Geoscience","Nomagugu Madikane","(012) 315 5312","Nomagugu.Madikane@treasury.gov.za","Mpho Ntshole",0,"Mpho.Ntshole@treasury.gov.za",1,1,"3A","PE43",43,"GeoScience",3,202627,null,null,null,null,null,null,null,null,null,"Human Settlements","Culture, Arts, Tourism, Hospitality and Sports Education and Training Authority",null,null,null,null,null,null,null,null,null,null,null,null,null,null,null,null,null,null,null,null,null,null,null,null,"Compliance officers",null,null,null,null,null,null,null,null,null,null,null,null,null,null,null,null,null,null,null,null,"Human Settlements","Culture, Arts, Tourism, Hospitality and Sports Education and Training Authority",null,null,null,null,null,null,null,null,null,"Human Settlements",null,0]
[null,"Public non-financial corporation","Health","Council for Medical Schemes","Council for Medical Schemes","Refiloe Thokoa","(012) 395 6559","Refiloe.Thokoa@treasury.gov.za","Mpho Ntshole",0,"Mpho.Ntshole@treasury.gov.za",1,1,"3A","PE24",24,"CMS",3,202627,null,null,null,null,null,null,null,null,null,"Mineral Resources and Energy","Die Afrikaanse Taal Museum",null,null,null,null,null,null,null,null,null,null,null,null,null,null,null,null,null,null,null,null,null,null,null,null,"Consultants",null,null,null,null,null,null,null,null,null,null,null,null,null,null,null,null,null,null,null,null,"Mineral Resources and Energy","Die Afrikaanse Taal Museum",null,null,null,null,null,null,null,null,null,"Mineral Resources and Energy",null,0]
[null,"Extra-Budgetary Institution","Science, Technology and Innovation","Council for Scientific and Industrial Research","Council for Scientific and Industrial Research","Humbelani Ramuedzisi","(012) 315 5585","Humbelani.Ramuedzisi@treasury.gov.za","Samson Mlambo",0,"Samson.Mlambo@treasury.gov.za",1,1,"3B","PE29",29,"CSIR",3,202627,null,null,null,null,null,null,null,null,null,"Science, Technology and Innovation","Ditsong: Museums of South Africa",null,null,null,null,null,null,null,null,null,null,null,null,null,null,null,null,null,null,null,null,null,null,null,null,"COO (Chief Operating Officer)",null,null,null,null,null,null,null,null,null,null,null,null,null,null,null,null,null,null,null,null,"Science, Technology and Innovation","Ditsong: Museums of South Africa",null,null,null,null,null,null,null,null,null,"Science, Technology and Innovation",null,1]
[null,"Extra-Budgetary Institution","Public Works and Infrastructure","Council for the Built Environment","Council for the Built Environment","George Tembo","(012) 315 5514","George.Tembo@treasury.gov.za","Patrick Mbedzi","(012) 315 5912","Patrick.Mbedzi@treasury.gov.za",1,1,"3A","PE14",14,"CBE",3,202627,null,null,null,null,null,null,null,null,null,"Small Business Development","Driving License Card Account",null,null,null,null,null,null,null,null,null,null,null,null,null,null,null,null,null,null,null,null,null,null,null,null,"Council members",null,null,null,null,null,null,null,null,null,null,null,null,null,null,null,null,null,null,null,null,"Small Business Development","Driving License Card Account",null,null,null,null,null,null,null,null,null,"Small Business Development",null,0]
[null,"Extra-Budgetary Institution","Higher Education ","Council on Higher Education","Council on Higher Education","Barileng Khumisi","(012) 406 9069","Barileng.Khumisi@treasury.gov.za","Lionel Botsane","(012) 315 5749","Lionel.Botsane@treasury.gov.za",1,1,"3A","PE20",20,"CHE",3,202627,null,null,null,null,null,null,null,null,null,"Sport, Arts and Culture","Education, Training and Development Practices SETA",null,null,null,null,null,null,null,null,null,null,null,null,null,null,null,null,null,null,null,null,null,null,null,null,"Data analyst",null,null,null,null,null,null,null,null,null,null,null,null,null,null,null,null,null,null,null,null,"Sport, Arts and Culture","Education, Training and Development Practices SETA",null,null,null,null,null,null,null,null,null,"Sport, Arts and Culture",null,0]
[null,"Extra-Budgetary Institution","Transport","Cross-Border Road Transport Agency","Cross-Border Road Transport Agency","Luyolo Ntlangula","(012) 315 5571","Luyolo.Ntlangula@treasury.gov.za","Samson Mlambo",0,"Samson.Mlambo@treasury.gov.za",1,1,"3A","PE15",15,"CBRTA",3,202627,null,null,null,null,null,null,null,null,null,"Tourism","Energy and Water Sector Education and Training Authority",null,null,null,null,null,null,null,null,null,null,null,null,null,null,null,null,null,null,null,null,null,null,null,null,"Data capturer",null,null,null,null,null,null,null,null,null,null,null,null,null,null,null,null,null,null,null,null,"Tourism","Energy and Water Sector Education and Training Authority",null,null,null,null,null,null,null,null,null,"Tourism",null,0]
[null,"Public non-financial corporation","Higher Education ","Culture, Arts, Tourism, Hospitality and Sports Education and Training Authority","Culture, Arts, Tourism, Hospitality and Sports Education and Training Authority","Barileng Khumisi","(012) 406 9069","Barileng.Khumisi@treasury.gov.za","Lionel Botsane","(012) 315 5749","Lionel.Botsane@treasury.gov.za",2,3,"3A","PE206",206,"CATHSETA",3,202627,null,null,null,null,null,null,null,null,null,"Trade, Industry and Competition","Estate Agency Affairs Board",null,null,null,null,null,null,null,null,null,null,null,null,null,null,null,null,null,null,null,null,null,null,null,null,"Deeds officer",null,null,null,null,null,null,null,null,null,null,null,null,null,null,null,null,null,null,null,null,"Trade, Industry and Competition","Estate Agency Affairs Board",null,null,null,null,null,null,null,null,null,"Trade, Industry and Competition",null,0]
[null,"Financial corporation","Defence","DENEL (Pty) Ltd","DENEL (Pty) Ltd","Mashudu Bidzha","(012) 315 5344","Mashudu.Bidzha@treasury.gov.za","Jabulane Mashele","(012) 395 6560","Jabulane.Mashele@treasury.gov.za",1,3,2,"PE32",32,"DENEL",3,202627,null,null,null,null,null,null,null,null,null,"Transport","Estate Agents Fidelity Fund",null,null,null,null,null,null,null,null,null,null,null,null,null,null,null,null,null,null,null,null,null,null,null,null,"Distribution offer",null,null,null,null,null,null,null,null,null,null,null,null,null,null,null,null,null,null,null,null,"Transport","Estate Agents Fidelity Fund",null,null,null,null,null,null,null,null,null,"Transport",null,0]
[null,"Extra-Budgetary Institution","National Treasury","Development Bank of Southern Africa","Development Bank of Southern Africa","Mokgatla Tema ","(012) 315 5948","Mokgatla.Tema@treasury.gov.za","Patrick Mbedzi","(012) 315 5912","Patrick.Mbedzi@treasury.gov.za",3,3,2,"PE30",30,"DBSA",3,202627,null,null,null,null,null,null,null,null,null,"Water and Sanitation","Fibre Processing Manufacturing Sector Education and Training Authority",null,null,null,null,null,null,null,null,null,null,null,null,null,null,null,null,null,null,null,null,null,null,null,null,"Draught and related trades",null,null,null,null,null,null,null,null,null,null,null,null,null,null,null,null,null,null,null,null,"Water and Sanitation","Fibre Processing Manufacturing Sector Education and Training Authority",null,null,null,null,null,null,null,null,null,"Water and Sanitation",null,1]
[null,"Extra-Budgetary Institution","Sport, Arts and Culture","Afrikaans Language Museum and Language Monument","Die Afrikaanse Taal Museum","Judy Naidoo","(012) 315 5269","Judy.Naidoo@treasury.gov.za","Vuyo Ngqukumba","(012) 315 5760","Vuyo.Ngqukumba@treasury.gov.za",1,3,"3A","PE213",213,"TaalMuseum",3,202627,null,null,null,null,null,null,null,null,null,"Centre for Public Service Innovation","Film and Publication Board",null,null,null,null,null,null,null,null,null,null,null,null,null,null,null,null,null,null,null,null,null,null,null,null,"Drivers",null,null,null,null,null,null,null,null,null,null,null,null,null,null,null,null,null,null,null,null,"Centre for Public Service Innovation","Film and Publication Board",null,null,null,null,null,null,null,null,null,"Centre for Public Service Innovation",null,0]
[null,"Extra-Budgetary Institution","Sport, Arts and Culture","Ditsong: Museums of South Africa","Ditsong: Museums of South Africa","Judy Naidoo","(012) 315 5269","Judy.Naidoo@treasury.gov.za","Vuyo Ngqukumba","(012) 315 5760","Vuyo.Ngqukumba@treasury.gov.za",1,3,"3A","PE193",193,"DitsongM",3,202627,null,null,null,null,null,null,null,null,null,null,"Financial and Accounting Services SETA",null,null,null,null,null,null,null,null,null,null,null,null,null,null,null,null,null,null,null,null,null,null,null,null,"Earth moving and related plant operator",null,null,null,null,null,null,null,null,null,null,null,null,null,null,null,null,null,null,null,null,null,"Financial and Accounting Services SETA",null,null,null,null,null,null,null,null,null,null,null,0]
[null,"Extra-Budgetary Institution","Transport","Driving License Card Account","Driving License Card Account","Luyolo Ntlangula","(012) 315 5571","Luyolo.Ntlangula@treasury.gov.za","Samson Mlambo",0,"Samson.Mlambo@treasury.gov.za",1,1,"Not listed","PE162",162,"DLCA",3,202627,null,null,null,null,null,null,null,null,null,null,"Financial Intelligence Centre",null,null,null,null,null,null,null,null,null,null,null,null,null,null,null,null,null,null,null,null,null,null,null,null,"Earth science and related professionals",null,null,null,null,null,null,null,null,null,null,null,null,null,null,null,null,null,null,null,null,null,"Financial Intelligence Centre",null,null,null,null,null,null,null,null,null,null,null,0]
[null,0,"Dummy","Dummy","Dummy","Dummy","Dummy",0,0,0,0,0,0,0,0,0,0,0,202627,null,null,null,null,null,null,null,null,null,null,"Financial Sector Conduct Authority",null,null,null,null,null,null,null,null,null,null,null,null,null,null,null,null,null,null,null,null,null,null,null,null,"Economists",null,null,null,null,null,null,null,null,null,null,null,null,null,null,null,null,null,null,null,null,null,"Financial Sector Conduct Authority",null,null,null,null,null,null,null,null,null,null,null,0]
[null,"Extra-Budgetary Institution","Higher Education ","Education, Training and Development Practices SETA","Education, Training and Development Practices SETA","Barileng Khumisi","(012) 406 9069","Barileng.Khumisi@treasury.gov.za","Lionel Botsane","(012) 315 5749","Lionel.Botsane@treasury.gov.za",2,3,"3A","PE168",168,"ETDP",3,202627,null,null,null,null,null,null,null,null,null,null,"Food and Beverages Manufacturing Industry",null,null,null,null,null,null,null,null,null,null,null,null,null,null,null,null,null,null,null,null,null,null,null,null,"Editor",null,null,null,null,null,null,null,null,null,null,null,null,null,null,null,null,null,null,null,null,null,"Food and Beverages Manufacturing Industry",null,null,null,null,null,null,null,null,null,null,null,0]
[null,"Public non-financial corporation","Higher Education ","Energy and Water Sector Education and Training Authority","Energy and Water Sector Education and Training Authority","Barileng Khumisi","(012) 406 9069","Barileng.Khumisi@treasury.gov.za","Lionel Botsane","(012) 315 5749","Lionel.Botsane@treasury.gov.za",2,3,"3A","PE167",167,"EWSETA",3,202627,null,null,null,null,null,null,null,null,null,null,"Freedom Park Trust",null,null,null,null,null,null,null,null,null,null,null,null,null,null,null,null,null,null,null,null,null,null,null,null,"Education Officer",null,null,null,null,null,null,null,null,null,null,null,null,null,null,null,null,null,null,null,null,null,"Freedom Park Trust",null,null,null,null,null,null,null,null,null,null,null,0]
[null,"Financial corporation","Electricity and Energy","ESKOM","ESKOM","Nomagugu Madikane","(012) 315 5312","Nomagugu.Madikane@treasury.gov.za","Mpho Ntshole",0,"Mpho.Ntshole@treasury.gov.za",1,3,2,"PE164",164,"ESKOM",3,202627,null,null,null,null,null,null,null,null,null,null,"Government Pensions Administration Agency",null,null,null,null,null,null,null,null,null,null,null,null,null,null,null,null,null,null,null,null,null,null,null,null,"Emergency service related ",null,null,null,null,null,null,null,null,null,null,null,null,null,null,null,null,null,null,null,null,null,"Government Pensions Administration Agency",null,null,null,null,null,null,null,null,null,null,null,0]
[null,"Extra-Budgetary Institution","Trade, Industry and Competition","Export Credit Insurance Corporation of South Africa Limited","Export Credit Insurance Corporation of South Africa Limited","Rudzani Sikhwari","(012) 315 5823","Rudzani.Sikhwari@treasury.gov.za","Nymrot Sholoko",0,"Nymrot.Sholoko@treasury.gov.za",3,3,"3B","PE34",34,"ECIC",3,202627,null,null,null,null,null,null,null,null,null,null,"Government Printing Works",null,null,null,null,null,null,null,null,null,null,null,null,null,null,null,null,null,null,null,null,null,null,null,null,"Engineers and related professionals",null,null,null,null,null,null,null,null,null,null,null,null,null,null,null,null,null,null,null,null,null,"Government Printing Works",null,null,null,null,null,null,null,null,null,null,null,0]
[null,"Extra-Budgetary Institution","Higher Education ","Fibre Processing Manufacturing Sector Education and Training Authority","Fibre Processing Manufacturing Sector Education and Training Authority","Barileng Khumisi","(012) 406 9069","Barileng.Khumisi@treasury.gov.za","Lionel Botsane","(012) 315 5749","Lionel.Botsane@treasury.gov.za",2,3,"3A","PE237",237,"FPMSETA",3,202627,null,null,null,null,null,null,null,null,null,null,"Government Technical Advisory Centre",null,null,null,null,null,null,null,null,null,null,null,null,null,null,null,null,null,null,null,null,null,null,null,null,"Examiners",null,null,null,null,null,null,null,null,null,null,null,null,null,null,null,null,null,null,null,null,null,"Government Technical Advisory Centre",null,null,null,null,null,null,null,null,null,null,null,0]
[null,"Extra-Budgetary Institution","Communications and Digital Technologies","Film and Publication Board","Film and Publication Board","Keitumetse Motshegwe","(012) 395 6750","Keitumetse.Motshegwe@treasury.gov.za","Mntazi Msiza","(012) 315 5876","Mntazi.Msiza@treasury.gov.za",1,1,"3A","PE40",40,"FPB",3,202627,null,null,null,null,null,null,null,null,null,null,"Health and Welfare Sector Education and Training Authority",null,null,null,null,null,null,null,null,null,null,null,null,null,null,null,null,null,null,null,null,null,null,null,null,"Executive assistant",null,null,null,null,null,null,null,null,null,null,null,null,null,null,null,null,null,null,null,null,null,"Health and Welfare Sector Education and Training Authority",null,null,null,null,null,null,null,null,null,null,null,0]
[null,"Extra-Budgetary Institution","Higher Education ","Financial and Accounting Services SETA","Financial and Accounting Services SETA","Barileng Khumisi","(012) 406 9069","Barileng.Khumisi@treasury.gov.za","Lionel Botsane","(012) 315 5749","Lionel.Botsane@treasury.gov.za",2,3,"3A","PE169",169,"FASSETA",3,202627,null,null,null,null,null,null,null,null,null,null,"Housing Development Agency",null,null,null,null,null,null,null,null,null,null,null,null,null,null,null,null,null,null,null,null,null,null,null,null,"Executive Director",null,null,null,null,null,null,null,null,null,null,null,null,null,null,null,null,null,null,null,null,null,"Housing Development Agency",null,null,null,null,null,null,null,null,null,null,null,0]
[null,"Extra-Budgetary Institution","National Treasury","Financial Intelligence Centre","Financial Intelligence Centre","Mokgatla Tema ","(012) 315 5948","Mokgatla.Tema@treasury.gov.za","Patrick Mbedzi","(012) 315 5912","Patrick.Mbedzi@treasury.gov.za",1,1,"3A","PE39",39,"FIC",3,202627,null,null,null,null,null,null,null,null,null,null,"Human Sciences Research Council",null,null,null,null,null,null,null,null,null,null,null,null,null,null,null,null,null,null,null,null,null,null,null,null,"Executives (Exco Members)",null,null,null,null,null,null,null,null,null,null,null,null,null,null,null,null,null,null,null,null,null,"Human Sciences Research Council",null,null,null,null,null,null,null,null,null,null,null,0]
[null,"Extra-Budgetary Institution","National Treasury","Financial Sector Conduct Authority","Financial Sector Conduct Authority","Mokgatla Tema ","(012) 315 5948","Mokgatla.Tema@treasury.gov.za","Patrick Mbedzi","(012) 315 5912","Patrick.Mbedzi@treasury.gov.za",1,1,"3A","PE249",249,"FSCA",3,202627,null,null,null,null,null,null,null,null,null,null,"Independent Development Trust",null,null,null,null,null,null,null,null,null,null,null,null,null,null,null,null,null,null,null,null,null,null,null,null,"Facilities Officer",null,null,null,null,null,null,null,null,null,null,null,null,null,null,null,null,null,null,null,null,null,"Independent Development Trust",null,null,null,null,null,null,null,null,null,null,null,0]
[null,"Extra-Budgetary Institution","Higher Education ","Food and Beverages Manufacturing Industry","Food and Beverages Manufacturing Industry","Barileng Khumisi","(012) 406 9069","Barileng.Khumisi@treasury.gov.za","Lionel Botsane","(012) 315 5749","Lionel.Botsane@treasury.gov.za",2,3,"3A","PE171",171,"FoodBev",3,202627,null,null,null,null,null,null,null,null,null,null,"Independent Regulatory Board for Auditors",null,null,null,null,null,null,null,null,null,null,null,null,null,null,null,null,null,null,null,null,null,null,null,null,"Financial and related professionals",null,null,null,null,null,null,null,null,null,null,null,null,null,null,null,null,null,null,null,null,null,"Independent Regulatory Board for Auditors",null,null,null,null,null,null,null,null,null,null,null,0]
[null,"Extra-Budgetary Institution","Sport, Arts and Culture","Freedom Park Trust","Freedom Park Trust","Judy Naidoo","(012) 315 5269","Judy.Naidoo@treasury.gov.za","Vuyo Ngqukumba","(012) 315 5760","Vuyo.Ngqukumba@treasury.gov.za",1,3,"3A","PE41",41,"FPT",3,202627,null,null,null,null,null,null,null,null,null,null,"Ingonyama Trust Board",null,null,null,null,null,null,null,null,null,null,null,null,null,null,null,null,null,null,null,null,null,null,null,null,"Geography and environmental sciences related",null,null,null,null,null,null,null,null,null,null,null,null,null,null,null,null,null,null,null,null,null,"Ingonyama Trust Board",null,null,null,null,null,null,null,null,null,null,null,0]
[null,"Extra-Budgetary Institution","National Treasury","Government Pensions Administration Agency","Government Pensions Administration Agency","Mokgatla Tema ","(012) 315 5948","Mokgatla.Tema@treasury.gov.za","Patrick Mbedzi","(012) 315 5912","Patrick.Mbedzi@treasury.gov.za",1,1,"Not listed","PE61",61,"GPAA",1,202627,null,null,null,null,null,null,null,null,null,null,"Inkomati-Usuthu Catchment Management Agency",null,null,null,null,null,null,null,null,null,null,null,null,null,null,null,null,null,null,null,null,null,null,null,null,"Health related",null,null,null,null,null,null,null,null,null,null,null,null,null,null,null,null,null,null,null,null,null,"Inkomati-Usuthu Catchment Management Agency",null,null,null,null,null,null,null,null,null,null,null,0]
[null,"Extra-Budgetary Institution","Home Affairs","Government Printing Works","Government Printing Works","Timothy Murwa","(012) 315 5002","Timothy.Murwa@treasury.gov.za","Patrick Mbedzi","(012) 315 5912","Patrick.Mbedzi@treasury.gov.za",1,1,"Not listed","PE44",44,"GPW",1,202627,null,null,null,null,null,null,null,null,null,null,"Insurance Sector Education and Training Authority",null,null,null,null,null,null,null,null,null,null,null,null,null,null,null,null,null,null,null,null,null,null,null,null,"Human resources and related professionals",null,null,null,null,null,null,null,null,null,null,null,null,null,null,null,null,null,null,null,null,null,"Insurance Sector Education and Training Authority",null,null,null,null,null,null,null,null,null,null,null,0]
[null,"Extra-Budgetary Institution","National Treasury","Government Technical Advisory Centre","Government Technical Advisory Centre","Mokgatla Tema ","(012) 315 5948","Mokgatla.Tema@treasury.gov.za","Patrick Mbedzi","(012) 315 5912","Patrick.Mbedzi@treasury.gov.za",1,1,"Not listed","PE245",245,"GTAC",3,202627,null,null,null,null,null,null,null,null,null,null,"International Trade Administration Commission",null,null,null,null,null,null,null,null,null,null,null,null,null,null,null,null,null,null,null,null,null,null,null,null,"ICT (Information and Communications Technology)",null,null,null,null,null,null,null,null,null,null,null,null,null,null,null,null,null,null,null,null,null,"International Trade Administration Commission",null,null,null,null,null,null,null,null,null,null,null,0]
[null,"Extra-Budgetary Institution","Higher Education ","Health and Welfare Sector Education and Training Authority","Health and Welfare Sector Education and Training Authority","Barileng Khumisi","(012) 406 9069","Barileng.Khumisi@treasury.gov.za","Lionel Botsane","(012) 315 5749","Lionel.Botsane@treasury.gov.za",2,3,"3A","PE172",172,"HWSETA",3,202627,null,null,null,null,null,null,null,null,null,null,"iSimangaliso Wetland Park",null,null,null,null,null,null,null,null,null,null,null,null,null,null,null,null,null,null,null,null,null,null,null,null,"Inspectors/Investigators",null,null,null,null,null,null,null,null,null,null,null,null,null,null,null,null,null,null,null,null,null,"iSimangaliso Wetland Park",null,null,null,null,null,null,null,null,null,null,null,0]
[null,"Extra-Budgetary Institution","Human Settlements","Housing Development Agency","Housing Development Agency","Lindiwe Ngcongwane","(012) 315 5357","Lindiwe.Ngcongwane@treasury.gov.za","Jabulane Mashele","(012) 395 6560","Jabulane.Mashele@treasury.gov.za",1,1,"3A","PE139",139,"HDA",3,202627,null,null,null,null,null,null,null,null,null,null,"Iziko Museums of Cape Town",null,null,null,null,null,null,null,null,null,null,null,null,null,null,null,null,null,null,null,null,null,null,null,null,"Interns/Trainees",null,null,null,null,null,null,null,null,null,null,null,null,null,null,null,null,null,null,null,null,null,"Iziko Museums of Cape Town",null,null,null,null,null,null,null,null,null,null,null,0]
[null,"Extra-Budgetary Institution","Science, Technology and Innovation","Human Sciences Research Council","Human Sciences Research Council","Humbelani Ramuedzisi","(012) 315 5585","Humbelani.Ramuedzisi@treasury.gov.za","Samson Mlambo",0,"Samson.Mlambo@treasury.gov.za",1,1,"3A","PE46",46,"HSRC",1,202627,null,null,null,null,null,null,null,null,null,null,"Judicial Inspectorate for Correctional Services",null,null,null,null,null,null,null,null,null,null,null,null,null,null,null,null,null,null,null,null,null,null,null,null,"Judges",null,null,null,null,null,null,null,null,null,null,null,null,null,null,null,null,null,null,null,null,null,"Judicial Inspectorate for Correctional Services",null,null,null,null,null,null,null,null,null,null,null,1]
[null,"Extra-Budgetary Institution","Public Works and Infrastructure","The Independent Development Trust","Independent Development Trust","George Tembo","(012) 315 5514","George.Tembo@treasury.gov.za","Patrick Mbedzi","(012) 315 5912","Patrick.Mbedzi@treasury.gov.za",3,1,2,"PE49",49,"IDT",3,202627,null,null,null,null,null,null,null,null,null,null,"KwaZulu-Natal Museum",null,null,null,null,null,null,null,null,null,null,null,null,null,null,null,null,null,null,null,null,null,null,null,null,"Labour related",null,null,null,null,null,null,null,null,null,null,null,null,null,null,null,null,null,null,null,null,null,"KwaZulu-Natal Museum",null,null,null,null,null,null,null,null,null,null,null,0]
[null,"Financial corporation","National Treasury","Independent Regulatory Board for Auditors","Independent Regulatory Board for Auditors","Mokgatla Tema ","(012) 315 5948","Mokgatla.Tema@treasury.gov.za","Patrick Mbedzi","(012) 315 5912","Patrick.Mbedzi@treasury.gov.za",1,1,"3A","PE53",53,"IRBA",3,202627,null,null,null,null,null,null,null,null,null,null,"Legal Aid South Africa",null,null,null,null,null,null,null,null,null,null,null,null,null,null,null,null,null,null,null,null,null,null,null,null,"Language practitioners interpreters & other commun",null,null,null,null,null,null,null,null,null,null,null,null,null,null,null,null,null,null,null,null,null,"Legal Aid South Africa",null,null,null,null,null,null,null,null,null,null,null,0]
[null,"Extra-Budgetary Institution","Trade, Industry and Competition","Industrial Development Corporation of South Africa, Limited","Industrial Development Corporation of South Africa Limited","Rudzani Sikhwari","(012) 315 5823","Rudzani.Sikhwari@treasury.gov.za","Nymrot Sholoko",0,"Nymrot.Sholoko@treasury.gov.za",3,3,2,"PE48",48,"IDC",3,202627,null,null,null,null,null,null,null,null,null,null,"Lepelle Northern Water",null,null,null,null,null,null,null,null,null,null,null,null,null,null,null,null,null,null,null,null,null,null,null,null,"Lecturer",null,null,null,null,null,null,null,null,null,null,null,null,null,null,null,null,null,null,null,null,null,"Lepelle Northern Water",null,null,null,null,null,null,null,null,null,null,null,1]
[null,"Extra-Budgetary Institution","Justice and Constitutional Development","Information Regulator","Information Regulator","Siphamandla Khumalo","(012) 315 5759","Siphamandla.Khumalo@treasury.gov.za","Jabulane Mashele","(012) 395 6560","Jabulane.Mashele@treasury.gov.za",1,2,"3A","PE260",260,"IR",3,202627,null,null,null,null,null,null,null,null,null,null,"Local Government Education and Training Authority",null,null,null,null,null,null,null,null,null,null,null,null,null,null,null,null,null,null,null,null,null,null,null,null,"Legal related",null,null,null,null,null,null,null,null,null,null,null,null,null,null,null,null,null,null,null,null,null,"Local Government Education and Training Authority",null,null,null,null,null,null,null,null,null,null,null,0]
[null,"Extra-Budgetary Institution","Land Reform and Rural Development","KwaZulu-Natal Ingonyama Trust Board","Ingonyama Trust Board","Bothwell Deka","(012) 395 6786","Bothwell.Deka@treasury.gov.za","Jabulane Mashele","(012) 395 6560","Jabulane.Mashele@treasury.gov.za",1,1,"3A","PE52",52,"ITB",3,202627,null,null,null,null,null,null,null,null,null,null,"Luthuli Museum",null,null,null,null,null,null,null,null,null,null,null,null,null,null,null,null,null,null,null,null,null,null,null,null,"Librarians and related",null,null,null,null,null,null,null,null,null,null,null,null,null,null,null,null,null,null,null,null,null,"Luthuli Museum",null,null,null,null,null,null,null,null,null,null,null,0]
[null,"Extra-Budgetary Institution","Water and Sanitation","Inkomati-Usuthu Catchment Management Agency","Inkomati-Usuthu Catchment Management Agency","Iqbal Mahomed Alli","(012) 315 5809","Iqbal.Mahomedalli@treasury.gov.za","Mntazi Msiza","(012) 315 5876","Mntazi.Msiza@treasury.gov.za",1,1,"3A","PE156",156,"IUCMA",3,202627,null,null,null,null,null,null,null,null,null,null,"Magalies Water",null,null,null,null,null,null,null,null,null,null,null,null,null,null,null,null,null,null,null,null,null,null,null,null,"Life sciences related",null,null,null,null,null,null,null,null,null,null,null,null,null,null,null,null,null,null,null,null,null,"Magalies Water",null,null,null,null,null,null,null,null,null,null,null,0]
[null,"Extra-Budgetary Institution","Higher Education ","Insurance Sector Education and Training Authority","Insurance Sector Education and Training Authority","Barileng Khumisi","(012) 406 9069","Barileng.Khumisi@treasury.gov.za","Lionel Botsane","(012) 315 5749","Lionel.Botsane@treasury.gov.za",2,3,"3A","PE174",174,"ISETA",3,202627,null,null,null,null,null,null,null,null,null,null,"Mandela Bay Theatre Complex ",null,null,null,null,null,null,null,null,null,null,null,null,null,null,null,null,null,null,null,null,null,null,null,null,"Marketing related",null,null,null,null,null,null,null,null,null,null,null,null,null,null,null,null,null,null,null,null,null,"Mandela Bay Theatre Complex ",null,null,null,null,null,null,null,null,null,null,null,0]
[null,"Extra-Budgetary Institution","Trade, Industry and Competition","International Trade Administration Commission","International Trade Administration Commission","Rudzani Sikhwari","(012) 315 5823","Rudzani.Sikhwari@treasury.gov.za","Nymrot Sholoko",0,"Nymrot.Sholoko@treasury.gov.za",1,1,"3A","PE55",55,"ITAC",3,202627,null,null,null,null,null,null,null,null,null,null,"Manufacturing, Engineering and Related Services Education and Training Authority",null,null,null,null,null,null,null,null,null,null,null,null,null,null,null,null,null,null,null,null,null,null,null,null,"Mathematicians and related professionals",null,null,null,null,null,null,null,null,null,null,null,null,null,null,null,null,null,null,null,null,null,"Manufacturing, Engineering and Related Services Education and Training Authority",null,null,null,null,null,null,null,null,null,null,null,0]
[null,"Extra-Budgetary Institution","Forestry, Fisheries and the Environment","iSimangaliso Wetland Park Authority","iSimangaliso Wetland Park","Humbelani Ramuedzisi","(012) 315 5585","Humbelani.Ramuedzisi@treasury.gov.za","Nymrot Sholoko",0,"Nymrot.Sholoko@treasury.gov.za",1,1,"3A","PE54",54,"ISIMANGALISO",3,202627,null,null,null,null,null,null,null,null,null,null,"Marine Living Resources Fund",null,null,null,null,null,null,null,null,null,null,null,null,null,null,null,null,null,null,null,null,null,null,null,null,"Medical officer",null,null,null,null,null,null,null,null,null,null,null,null,null,null,null,null,null,null,null,null,null,"Marine Living Resources Fund",null,null,null,null,null,null,null,null,null,null,null,0]
[null,"Extra-Budgetary Institution","Sport, Arts and Culture","Iziko Museums of South Africa","Iziko Museums of Cape Town","Judy Naidoo","(012) 315 5269","Judy.Naidoo@treasury.gov.za","Vuyo Ngqukumba","(012) 315 5760","Vuyo.Ngqukumba@treasury.gov.za",1,3,"3A","PE176",176,"Iziko",3,202627,null,null,null,null,null,null,null,null,null,null,"Market Theatre Foundation",null,null,null,null,null,null,null,null,null,null,null,null,null,null,null,null,null,null,null,null,null,null,null,null,"Medical related",null,null,null,null,null,null,null,null,null,null,null,null,null,null,null,null,null,null,null,null,null,"Market Theatre Foundation",null,null,null,null,null,null,null,null,null,null,null,0]
[null,"Financial corporation","Sport, Arts and Culture","Natal Museum","KwaZulu-Natal Museum","Judy Naidoo","(012) 315 5269","Judy.Naidoo@treasury.gov.za","Vuyo Ngqukumba","(012) 315 5760","Vuyo.Ngqukumba@treasury.gov.za",1,3,"3A","PE188",188,"Kwa-ZuluM",3,202627,null,null,null,null,null,null,null,null,null,null,"Media Development Diversity Agency",null,null,null,null,null,null,null,null,null,null,null,null,null,null,null,null,null,null,null,null,null,null,null,null,"Messengers",null,null,null,null,null,null,null,null,null,null,null,null,null,null,null,null,null,null,null,null,null,"Media Development Diversity Agency",null,null,null,null,null,null,null,null,null,null,null,0]
[null,"Extra-Budgetary Institution","National Treasury","Land and Agricultural Development Bank of South Africa","Land and Agricultural Development Bank of South Africa","Mokgatla Tema ","(012) 315 5948","Mokgatla.Tema@treasury.gov.za","Patrick Mbedzi","(012) 315 5912","Patrick.Mbedzi@treasury.gov.za",3,3,2,"PE59",59,"Land Bank",3,202627,null,null,null,null,null,null,null,null,null,null,"Media, Information and Communication Technologies Sector Education and Training Authority",null,null,null,null,null,null,null,null,null,null,null,null,null,null,null,null,null,null,null,null,null,null,null,null,"Ombudsman",null,null,null,null,null,null,null,null,null,null,null,null,null,null,null,null,null,null,null,null,null,"Media, Information and Communication Technologies Sector Education and Training Authority",null,null,null,null,null,null,null,null,null,null,null,1]
[null,"Public non-financial corporation","Justice and Constitutional Development","Legal Aid South Africa","Legal Aid South Africa","Werner  Krause ","(012) 315 5211 ","Werner.Krause@treasury.gov.za","Nymrot Sholoko",0,"Nymrot.Sholoko@treasury.gov.za",1,1,"3A","PE58",58,"LASA",3,202627,null,null,null,null,null,null,null,null,null,null,"Mhlathuze Water",null,null,null,null,null,null,null,null,null,null,null,null,null,null,null,null,null,null,null,null,null,null,null,null,"Pathologist",null,null,null,null,null,null,null,null,null,null,null,null,null,null,null,null,null,null,null,null,null,"Mhlathuze Water",null,null,null,null,null,null,null,null,null,null,null,0]
[null,"Extra-Budgetary Institution","Water and Sanitation","Lepelle Northern Water Board","Lepelle Northern Water","Iqbal Mahomed Alli","(012) 315 5809","Iqbal.Mahomedalli@treasury.gov.za","Mntazi Msiza","(012) 315 5876","Mntazi.Msiza@treasury.gov.za",1,3,"3B","PE177",177,"Lepelle",3,202627,null,null,null,null,null,null,null,null,null,null,"Mine Health and Safety Council",null,null,null,null,null,null,null,null,null,null,null,null,null,null,null,null,null,null,null,null,null,null,null,null,"Personal Assistants",null,null,null,null,null,null,null,null,null,null,null,null,null,null,null,null,null,null,null,null,null,"Mine Health and Safety Council",null,null,null,null,null,null,null,null,null,null,null,0]
[null,"Extra-Budgetary Institution","Water and Sanitation","Limpopo-Olifants Catchment Management Agency","Limpopo-Olifants Catchment Management Agency","Iqbal Mahomed Alli","(012) 315 5809","Iqbal.Mahomedalli@treasury.gov.za","Mntazi Msiza","(012) 315 5876","Mntazi.Msiza@treasury.gov.za",1,2,"3A","PE259",259,"LOMCA",3,202627,null,null,null,null,null,null,null,null,null,null,"Mining Qualifications Authority",null,null,null,null,null,null,null,null,null,null,null,null,null,null,null,null,null,null,null,null,null,null,null,null,"Pharmacists",null,null,null,null,null,null,null,null,null,null,null,null,null,null,null,null,null,null,null,null,null,"Mining Qualifications Authority",null,null,null,null,null,null,null,null,null,null,null,0]
[null,"Extra-Budgetary Institution","Higher Education ","Local Government Education and Training Authority","Local Government Education and Training Authority","Barileng Khumisi","(012) 406 9069","Barileng.Khumisi@treasury.gov.za","Lionel Botsane","(012) 315 5749","Lionel.Botsane@treasury.gov.za",2,3,"3A","PE178",178,"LGSETA",3,202627,null,null,null,null,null,null,null,null,null,null,"Mintek",null,null,null,null,null,null,null,null,null,null,null,null,null,null,null,null,null,null,null,null,null,null,null,null,"Physicists",null,null,null,null,null,null,null,null,null,null,null,null,null,null,null,null,null,null,null,null,null,"Mintek",null,null,null,null,null,null,null,null,null,null,null,0]
[null,"Public non-financial corporation","Sport, Arts and Culture","Luthuli Museum","Luthuli Museum","Judy Naidoo","(012) 315 5269","Judy.Naidoo@treasury.gov.za","Vuyo Ngqukumba","(012) 315 5760","Vuyo.Ngqukumba@treasury.gov.za",1,3,"3A","PE180",180,"LuthuliM",3,202627,null,null,null,null,null,null,null,null,null,null,"Municipal Infrastructure Support Agency",null,null,null,null,null,null,null,null,null,null,null,null,null,null,null,null,null,null,null,null,null,null,null,null,"Police",null,null,null,null,null,null,null,null,null,null,null,null,null,null,null,null,null,null,null,null,null,"Municipal Infrastructure Support Agency",null,null,null,null,null,null,null,null,null,null,null,0]
[null,"Extra-Budgetary Institution","Water and Sanitation","Magalies Water Board","Magalies Water","Iqbal Mahomed Alli","(012) 315 5809","Iqbal.Mahomedalli@treasury.gov.za","Mntazi Msiza","(012) 315 5876","Mntazi.Msiza@treasury.gov.za",1,3,"3B","PE181",181,"Magalies",3,202627,null,null,null,null,null,null,null,null,null,null,"Mzimvubu-Tsitsikamma Catchment Management Agency",null,null,null,null,null,null,null,null,null,null,null,null,null,null,null,null,null,null,null,null,null,null,null,null,"Programmers and related professionals",null,null,null,null,null,null,null,null,null,null,null,null,null,null,null,null,null,null,null,null,null,"Mzimvubu-Tsitsikamma Catchment Management Agency",null,null,null,null,null,null,null,null,null,null,null,0]
[null,"Extra-Budgetary Institution","Sport, Arts and Culture","Mandela Bay Theatre Complex ","Mandela Bay Theatre Complex ","Judy Naidoo","(012) 315 5269","Judy.Naidoo@treasury.gov.za","Vuyo Ngqukumba","(012) 315 5760","Vuyo.Ngqukumba@treasury.gov.za",1,3,"Not listed","PE251",251,"MBTC",3,202627,null,null,null,null,null,null,null,null,null,null,"National Agricultural Marketing Council",null,null,null,null,null,null,null,null,null,null,null,null,null,null,null,null,null,null,null,null,null,null,null,null,"Records management related",null,null,null,null,null,null,null,null,null,null,null,null,null,null,null,null,null,null,null,null,null,"National Agricultural Marketing Council",null,null,null,null,null,null,null,null,null,null,null,0]
[null,"Extra-Budgetary Institution","Higher Education ","Manufacturing, Engineering and Related Services Education and Training Authority","Manufacturing, Engineering and Related Services Education and Training Authority","Barileng Khumisi","(012) 406 9069","Barileng.Khumisi@treasury.gov.za","Lionel Botsane","(012) 315 5749","Lionel.Botsane@treasury.gov.za",2,3,"3A","PE184",184,"MERSETA",3,202627,null,null,null,null,null,null,null,null,null,null,"National Arts Council",null,null,null,null,null,null,null,null,null,null,null,null,null,null,null,null,null,null,null,null,null,null,null,null,"Researchers",null,null,null,null,null,null,null,null,null,null,null,null,null,null,null,null,null,null,null,null,null,"National Arts Council",null,null,null,null,null,null,null,null,null,null,null,0]
[null,"Extra-Budgetary Institution","Forestry, Fisheries and the Environment","Marine Living Resources Fund","Marine Living Resources Fund","Humbelani Ramuedzisi","(012) 315 5585","Humbelani.Ramuedzisi@treasury.gov.za","Nymrot Sholoko",0,"Nymrot.Sholoko@treasury.gov.za",1,1,"3A","PE66",66,"MLRF",3,202627,null,null,null,null,null,null,null,null,null,null,"National Consumer Commission",null,null,null,null,null,null,null,null,null,null,null,null,null,null,null,null,null,null,null,null,null,null,null,null,"Risk management related",null,null,null,null,null,null,null,null,null,null,null,null,null,null,null,null,null,null,null,null,null,"National Consumer Commission",null,null,null,null,null,null,null,null,null,null,null,0]
[null,"Extra-Budgetary Institution","Sport, Arts and Culture","Market Theatre Foundation","Market Theatre Foundation","Judy Naidoo","(012) 315 5269","Judy.Naidoo@treasury.gov.za","Vuyo Ngqukumba","(012) 315 5760","Vuyo.Ngqukumba@treasury.gov.za",1,3,"3A","PE183",183,"Marketh",3,202627,null,null,null,null,null,null,null,null,null,null,"National Consumer Tribunal",null,null,null,null,null,null,null,null,null,null,null,null,null,null,null,null,null,null,null,null,null,null,null,null,"Safety and security related",null,null,null,null,null,null,null,null,null,null,null,null,null,null,null,null,null,null,null,null,null,"National Consumer Tribunal",null,null,null,null,null,null,null,null,null,null,null,0]
[null,"Extra-Budgetary Institution","Government Communication and Information System","Media Development Diversity Agency","Media Development Diversity Agency","Mokgatla Tema ","(012) 315 5948","Mokgatla.Tema@treasury.gov.za","Patrick Mbedzi","(012) 315 5912","Patrick.Mbedzi@treasury.gov.za",1,1,"3A","PE63",63,"MDDA",3,202627,null,null,null,null,null,null,null,null,null,null,"National Credit Regulator",null,null,null,null,null,null,null,null,null,null,null,null,null,null,null,null,null,null,null,null,null,null,null,null,"Sales related",null,null,null,null,null,null,null,null,null,null,null,null,null,null,null,null,null,null,null,null,null,"National Credit Regulator",null,null,null,null,null,null,null,null,null,null,null,0]
[null,"Public non-financial corporation","Higher Education ","Media, Information and Communication Technologies Sector Education and Training Authority","Media, Information and Communication Technologies Sector Education and Training Authority","Barileng Khumisi","(012) 406 9069","Barileng.Khumisi@treasury.gov.za","Lionel Botsane","(012) 315 5749","Lionel.Botsane@treasury.gov.za",2,3,"3A","PE175",175,"MICTSETTA",3,202627,null,null,null,null,null,null,null,null,null,null,"National Development Agency",null,null,null,null,null,null,null,null,null,null,null,null,null,null,null,null,null,null,null,null,null,null,null,null,"Seamstress",null,null,null,null,null,null,null,null,null,null,null,null,null,null,null,null,null,null,null,null,null,"National Development Agency",null,null,null,null,null,null,null,null,null,null,null,0]
[null,"Extra-Budgetary Institution","Water and Sanitation","Mhlathuze Water Board","Mhlathuze Water","Iqbal Mahomed Alli","(012) 315 5809","Iqbal.Mahomedalli@treasury.gov.za","Mntazi Msiza","(012) 315 5876","Mntazi.Msiza@treasury.gov.za",1,3,"3B","PE185",185,"Mhlathuze",3,202627,null,null,null,null,null,null,null,null,null,null,"National Economic Development and Labour Council",null,null,null,null,null,null,null,null,null,null,null,null,null,null,null,null,null,null,null,null,null,null,null,null,"Social work and related professionals",null,null,null,null,null,null,null,null,null,null,null,null,null,null,null,null,null,null,null,null,null,"National Economic Development and Labour Council",null,null,null,null,null,null,null,null,null,null,null,0]
[null,"Social Security Fund","Mineral and Petroleum Resources ","Mine Health and Safety Council","Mine Health and Safety Council","Nomagugu Madikane","(012) 315 5312","Nomagugu.Madikane@treasury.gov.za","Mpho Ntshole",0,"Mpho.Ntshole@treasury.gov.za",1,1,"3A","PE64",64,"MHSC",3,202627,null,null,null,null,null,null,null,null,null,null,"National Electronic Media Institute of South Africa",null,null,null,null,null,null,null,null,null,null,null,null,null,null,null,null,null,null,null,null,null,null,null,null,"Statisticians and related professionals",null,null,null,null,null,null,null,null,null,null,null,null,null,null,null,null,null,null,null,null,null,"National Electronic Media Institute of South Africa",null,null,null,null,null,null,null,null,null,null,null,0]
[null,"Extra-Budgetary Institution","Health","Mines and Works Compensation Fund","Mines and Works Compensation Fund","Refiloe Thokoa","(012) 395 6559","Refiloe.Thokoa@treasury.gov.za","Vuyo Ngqukumba","(012) 315 5760","Vuyo.Ngqukumba@treasury.gov.za",4,4,"Not listed","PE60",60,"Mines and Works Compensation Fund",3,202627,null,null,null,null,null,null,null,null,null,null,"National Empowerment Fund",null,null,null,null,null,null,null,null,null,null,null,null,null,null,null,null,null,null,null,null,null,null,null,null,"Supply chain related",null,null,null,null,null,null,null,null,null,null,null,null,null,null,null,null,null,null,null,null,null,"National Empowerment Fund",null,null,null,null,null,null,null,null,null,null,null,0]
[null,"Public non-financial corporation","Higher Education ","Mining Qualifications Authority","Mining Qualifications Authority","Barileng Khumisi","(012) 406 9069","Barileng.Khumisi@treasury.gov.za","Lionel Botsane","(012) 315 5749","Lionel.Botsane@treasury.gov.za",2,3,"3A","PE186",186,"MQA",3,202627,null,null,null,null,null,null,null,null,null,null,"National Energy Regulator of South Africa",null,null,null,null,null,null,null,null,null,null,null,null,null,null,null,null,null,null,null,null,null,null,null,null,"Teachers",null,null,null,null,null,null,null,null,null,null,null,null,null,null,null,null,null,null,null,null,null,"National Energy Regulator of South Africa",null,null,null,null,null,null,null,null,null,null,null,0]
[null,"Extra-Budgetary Institution","Mineral and Petroleum Resources ","Council for Mineral Technology","Mintek","Nomagugu Madikane","(012) 315 5312","Nomagugu.Madikane@treasury.gov.za","Mpho Ntshole",0,"Mpho.Ntshole@treasury.gov.za",1,1,"3B","PE65",65,"Mintek",1,202627,null,null,null,null,null,null,null,null,null,null,"National Film and Video Foundation",null,null,null,null,null,null,null,null,null,null,null,null,null,null,null,null,null,null,null,null,null,null,null,null,"Technicians",null,null,null,null,null,null,null,null,null,null,null,null,null,null,null,null,null,null,null,null,null,"National Film and Video Foundation",null,null,null,null,null,null,null,null,null,null,null,0]
[null,"Extra-Budgetary Institution","Cooperative Governance","Municipal Infrastructure Support Agent","Municipal Infrastructure Support Agency","Portia Thebe","(012) 315 5855","Portia.Thebe@treasury.gov.za","Mpho Ntshole",0,"Mpho.Ntshole@treasury.gov.za",1,1,"Not listed","PE244",244,"MISA",3,202627,null,null,null,null,null,null,null,null,null,null,"National Gambling Board of South Africa",null,null,null,null,null,null,null,null,null,null,null,null,null,null,null,null,null,null,null,null,null,null,null,null,"Tour Guide",null,null,null,null,null,null,null,null,null,null,null,null,null,null,null,null,null,null,null,null,null,"National Gambling Board of South Africa",null,null,null,null,null,null,null,null,null,null,null,0]
[null,"Extra-Budgetary Institution","Water and Sanitation","Mzimvubu-Tsitsikamma Catchment Management Agency","Mzimvubu-Tsitsikamma Catchment Management Agency","Iqbal Mahomed Alli","(012) 315 5809","Iqbal.Mahomedalli@treasury.gov.za","Mntazi Msiza","(012) 315 5876","Mntazi.Msiza@treasury.gov.za",1,2,"3A","PE256",256,"MTCA",3,202627,null,null,null,null,null,null,null,null,null,null,"National Health Laboratory Service",null,null,null,null,null,null,null,null,null,null,null,null,null,null,null,null,null,null,null,null,null,null,null,null,"Training and development related",null,null,null,null,null,null,null,null,null,null,null,null,null,null,null,null,null,null,null,null,null,"National Health Laboratory Service",null,null,null,null,null,null,null,null,null,null,null,0]
[null,"Extra-Budgetary Institution","Agriculture","National Agricultural Marketing Council","National Agricultural Marketing Council","Bothwell Deka","(012) 395 6787","Bothwell.Deka@treasury.gov.za","Jabulane Mashele","(012) 395 6560","Jabulane.Mashele@treasury.gov.za",1,1,"3A","PE68",68,"NAMC",3,202627,null,null,null,null,null,null,null,null,null,null,"National Heritage Council",null,null,null,null,null,null,null,null,null,null,null,null,null,null,null,null,null,null,null,null,null,null,null,null,"Tribunal member",null,null,null,null,null,null,null,null,null,null,null,null,null,null,null,null,null,null,null,null,null,"National Heritage Council",null,null,null,null,null,null,null,null,null,null,null,1]
[null,"Extra-Budgetary Institution","Sport, Arts and Culture","National Arts Council","National Arts Council","Judy Naidoo","(012) 315 5269","Judy.Naidoo@treasury.gov.za","Vuyo Ngqukumba","(012) 315 5760","Vuyo.Ngqukumba@treasury.gov.za",1,1,"3A","PE67",67,"NAC",3,202627,null,null,null,null,null,null,null,null,null,null,"National Home Builders Registration Council",null,null,null,null,null,null,null,null,null,null,null,null,null,null,null,null,null,null,null,null,null,null,null,null,"Ushers",null,null,null,null,null,null,null,null,null,null,null,null,null,null,null,null,null,null,null,null,null,"National Home Builders Registration Council",null,null,null,null,null,null,null,null,null,null,null,0]
[null,"Extra-Budgetary Institution","Trade, Industry and Competition","National Consumer Commission","National Consumer Commission","Rudzani Sikhwari","(012) 315 5823","Rudzani.Sikhwari@treasury.gov.za","Nymrot Sholoko",0,"Nymrot.Sholoko@treasury.gov.za",1,1,"3A","PE124",124,"NCC",3,202627,null,null,null,null,null,null,null,null,null,null,"National Housing Finance Corporation Limited",null,null,null,null,null,null,null,null,null,null,null,null,null,null,null,null,null,null,null,null,null,null,null,null,"Wardrobe specialist",null,null,null,null,null,null,null,null,null,null,null,null,null,null,null,null,null,null,null,null,null,"National Housing Finance Corporation Limited",null,null,null,null,null,null,null,null,null,null,null,0]
[null,"Extra-Budgetary Institution","Trade, Industry and Competition","National Consumer Tribunal","National Consumer Tribunal","Rudzani Sikhwari","(012) 315 5823","Rudzani.Sikhwari@treasury.gov.za","Nymrot Sholoko",0,"Nymrot.Sholoko@treasury.gov.za",1,1,"3A","PE71",71,"NCT",3,202627,null,null,null,null,null,null,null,null,null,null,"National Library of South Africa",null,null,null,null,null,null,null,null,null,null,null,null,null,null,null,null,null,null,null,null,null,null,null,null,"Workshop officer",null,null,null,null,null,null,null,null,null,null,null,null,null,null,null,null,null,null,null,null,null,"National Library of South Africa",null,null,null,null,null,null,null,null,null,null,null,0]
[null,"Extra-Budgetary Institution","Trade, Industry and Competition","National Credit Regulator","National Credit Regulator","Rudzani Sikhwari","(012) 315 5823","Rudzani.Sikhwari@treasury.gov.za","Nymrot Sholoko",0,"Nymrot.Sholoko@treasury.gov.za",1,1,"3A","PE70",70,"NCR",3,202627,null,null,null,null,null,null,null,null,null,null,"National Lotteries Commission",null,null,null,null,null,null,null,null,null,null,null,null,null,null,null,null,null,null,null,null,null,null,null,null,"Other: Please specify",null,null,null,null,null,null,null,null,null,null,null,null,null,null,null,null,null,null,null,null,null,"National Lotteries Commission",null,null,null,null,null,null,null,null,null,null,null,0]
[null,"Extra-Budgetary Institution","Social Development","National Development Agency","National Development Agency","Lindi Mzankomo","(012) 315 5256","Lindi.Mzankomo@treasury.gov.za","Lionel Botsane","(012) 315 5749","Lionel.Botsane@treasury.gov.za",1,1,"3A","PE72",72,"NDA",3,202627,null,null,null,null,null,null,null,null,null,null,"National Lotteries Commission Distribution Trust Fund",null,null,null,null,null,null,null,null,null,null,null,null,null,null,null,null,null,null,null,null,null,null,null,null,null,null,null,null,null,null,null,null,null,null,null,null,null,null,null,null,null,null,null,null,null,null,"National Lotteries Commission Distribution Trust Fund",null,null,null,null,null,null,null,null,null,null,null,0]
[null,"Extra-Budgetary Institution","Employment and Labour","National Economic, Development and Labour Council","National Economic Development and Labour Council","Judy Naidoo","(012) 315 5269","Judy.Naidoo@treasury.gov.za","Samson Mlambo",0,"Samson.Mlambo@treasury.gov.za",1,1,"3A","PE74",74,"NEDLAC",3,202627,null,null,null,null,null,null,null,null,null,null,"National Metrology Institute of South Africa",null,null,null,null,null,null,null,null,null,null,null,null,null,null,null,null,null,null,null,null,null,null,null,null,null,null,null,null,null,null,null,null,null,null,null,null,null,null,null,null,null,null,null,null,null,null,"National Metrology Institute of South Africa",null,null,null,null,null,null,null,null,null,null,null,0]
[null,"Financial corporation","Communications and Digital Technologies","National Electronic Media Institute of South Africa","National Electronic Media Institute of South Africa","Keitumetse Motshegwe","(012) 395 6750","Keitumetse.Motshegwe@treasury.gov.za","Mntazi Msiza","(012) 315 5876","Mntazi.Msiza@treasury.gov.za",1,1,"3A","PE76",76,"NEMISA",3,202627,null,null,null,null,null,null,null,null,null,null,"National Museum, Bloemfontein",null,null,null,null,null,null,null,null,null,null,null,null,null,null,null,null,null,null,null,null,null,null,null,null,null,null,null,null,null,null,null,null,null,null,null,null,null,null,null,null,null,null,null,null,null,null,"National Museum, Bloemfontein",null,null,null,null,null,null,null,null,null,null,null,0]
[null,"Extra-Budgetary Institution","Trade, Industry and Competition","National Empowerment Fund","National Empowerment Fund","Rudzani Sikhwari","(012) 315 5823","Rudzani.Sikhwari@treasury.gov.za","Nymrot Sholoko",0,"Nymrot.Sholoko@treasury.gov.za",3,1,"3A","PE75",75,"NEF",3,202627,null,null,null,null,null,null,null,null,null,null,"National Nuclear Regulator",null,null,null,null,null,null,null,null,null,null,null,null,null,null,null,null,null,null,null,null,null,null,null,null,null,null,null,null,null,null,null,null,null,null,null,null,null,null,null,null,null,null,null,null,null,null,"National Nuclear Regulator",null,null,null,null,null,null,null,null,null,null,null,0]
[null,"Extra-Budgetary Institution","Electricity and Energy","National Energy Regulator","National Energy Regulator of South Africa","Nomagugu Madikane","(012) 315 5312","Nomagugu.Madikane@treasury.gov.za","Mpho Ntshole",0,"Mpho.Ntshole@treasury.gov.za",1,1,"3A","PE77",77,"NERSA",3,202627,null,null,null,null,null,null,null,null,null,null,"National Regulator for Compulsory Specifications",null,null,null,null,null,null,null,null,null,null,null,null,null,null,null,null,null,null,null,null,null,null,null,null,null,null,null,null,null,null,null,null,null,null,null,null,null,null,null,null,null,null,null,null,null,null,"National Regulator for Compulsory Specifications",null,null,null,null,null,null,null,null,null,null,null,0]
[null,"Extra-Budgetary Institution","Sport, Arts and Culture","National Film and Video Foundation","National Film and Video Foundation","Judy Naidoo","(012) 315 5269","Judy.Naidoo@treasury.gov.za","Vuyo Ngqukumba","(012) 315 5760","Vuyo.Ngqukumba@treasury.gov.za",1,1,"3A","PE78",78,"NFVF",3,202627,null,null,null,null,null,null,null,null,null,null,"National Research Foundation",null,null,null,null,null,null,null,null,null,null,null,null,null,null,null,null,null,null,null,null,null,null,null,null,null,null,null,null,null,null,null,null,null,null,null,null,null,null,null,null,null,null,null,null,null,null,"National Research Foundation",null,null,null,null,null,null,null,null,null,null,null,0]
[null,"Extra-Budgetary Institution","Trade, Industry and Competition","National Gambling Board","National Gambling Board of South Africa","Rudzani Sikhwari","(012) 315 5823","Rudzani.Sikhwari@treasury.gov.za","Nymrot Sholoko",0,"Nymrot.Sholoko@treasury.gov.za",1,1,"3A","PE79",79,"NGB",3,202627,null,null,null,null,null,null,null,null,null,null,"National school of government",null,null,null,null,null,null,null,null,null,null,null,null,null,null,null,null,null,null,null,null,null,null,null,null,null,null,null,null,null,null,null,null,null,null,null,null,null,null,null,null,null,null,null,null,null,null,"National school of government",null,null,null,null,null,null,null,null,null,null,null,0]
[null,"Extra-Budgetary Institution","Health","National Health Laboratory Service","National Health Laboratory Service","Refiloe Thokoa","(012) 395 6559","Refiloe.Thokoa@treasury.gov.za","Mpho Ntshole",0,"Mpho.Ntshole@treasury.gov.za",1,1,"3A","PE83",83,"NHLS",1,202627,null,null,null,null,null,null,null,null,null,null,"National Student Financial Aid Scheme",null,null,null,null,null,null,null,null,null,null,null,null,null,null,null,null,null,null,null,null,null,null,null,null,null,null,null,null,null,null,null,null,null,null,null,null,null,null,null,null,null,null,null,null,null,null,"National Student Financial Aid Scheme",null,null,null,null,null,null,null,null,null,null,null,0]
[null,"Extra-Budgetary Institution","Sport, Arts and Culture","National Heritage Council","National Heritage Council","Judy Naidoo","(012) 315 5269","Judy.Naidoo@treasury.gov.za","Vuyo Ngqukumba","(012) 315 5760","Vuyo.Ngqukumba@treasury.gov.za",1,1,"3A","PE81",81,"NHC",3,202627,null,null,null,null,null,null,null,null,null,null,"National Youth Development Agency",null,null,null,null,null,null,null,null,null,null,null,null,null,null,null,null,null,null,null,null,null,null,null,null,null,null,null,null,null,null,null,null,null,null,null,null,null,null,null,null,null,null,null,null,null,null,"National Youth Development Agency",null,null,null,null,null,null,null,null,null,null,null,0]
[null,"Public non-financial corporation","Human Settlements","National Home Builders Registration Council","National Home Builders Registration Council","Lindiwe Ngcongwane","(012) 315 5357","Lindiwe.Ngcongwane@treasury.gov.za","Jabulane Mashele","(012) 395 6560","Jabulane.Mashele@treasury.gov.za",1,1,"3A","PE80",80,"NHBRC",3,202627,null,null,null,null,null,null,null,null,null,null,"Nelson Mandela National Museum",null,null,null,null,null,null,null,null,null,null,null,null,null,null,null,null,null,null,null,null,null,null,null,null,null,null,null,null,null,null,null,null,null,null,null,null,null,null,null,null,null,null,null,null,null,null,"Nelson Mandela National Museum",null,null,null,null,null,null,null,null,null,null,null,0]
[null,"Extra-Budgetary Institution","Human Settlements","National Housing Finance Corporation","National Housing Finance Corporation Limited","Lindiwe Ngcongwane","(012) 315 5357","Lindiwe.Ngcongwane@treasury.gov.za","Jabulane Mashele","(012) 395 6560","Jabulane.Mashele@treasury.gov.za",3,1,"3A","PE82",82,"NHFC",3,202627,null,null,null,null,null,null,null,null,null,null,"Office of Health Standards Compliance",null,null,null,null,null,null,null,null,null,null,null,null,null,null,null,null,null,null,null,null,null,null,null,null,null,null,null,null,null,null,null,null,null,null,null,null,null,null,null,null,null,null,null,null,null,null,"Office of Health Standards Compliance",null,null,null,null,null,null,null,null,null,null,null,0]
[null,"Extra-Budgetary Institution","Sport, Arts and Culture","National Library of South Africa","National Library of South Africa","Judy Naidoo","(012) 315 5269","Judy.Naidoo@treasury.gov.za","Vuyo Ngqukumba","(012) 315 5760","Vuyo.Ngqukumba@treasury.gov.za",1,3,"3A","PE189",189,"NLSA",3,202627,null,null,null,null,null,null,null,null,null,null,"Office of the Ombud for Financial Service Providers",null,null,null,null,null,null,null,null,null,null,null,null,null,null,null,null,null,null,null,null,null,null,null,null,null,null,null,null,null,null,null,null,null,null,null,null,null,null,null,null,null,null,null,null,null,null,"Office of the Ombud for Financial Service Providers",null,null,null,null,null,null,null,null,null,null,null,0]
[null,"Extra-Budgetary Institution","Trade, Industry and Competition","National Lotteries Commission","National Lotteries Commission","Rudzani Sikhwari","(012) 315 5823","Rudzani.Sikhwari@treasury.gov.za","Nymrot Sholoko",0,"Nymrot.Sholoko@treasury.gov.za",1,1,"3A","PE84",84,"NLC",3,202627,null,null,null,null,null,null,null,null,null,null,"Office of the Pension Funds Adjudicator",null,null,null,null,null,null,null,null,null,null,null,null,null,null,null,null,null,null,null,null,null,null,null,null,null,null,null,null,null,null,null,null,null,null,null,null,null,null,null,null,null,null,null,null,null,null,"Office of the Pension Funds Adjudicator",null,null,null,null,null,null,null,null,null,null,null,0]
[null,"Extra-Budgetary Institution","Trade, Industry and Competition","National Lotteries Commission Distribution Trust Fund","National Lotteries Commission Distribution Trust Fund","Rudzani Sikhwari","(012) 315 5823","Rudzani.Sikhwari@treasury.gov.za","Nymrot Sholoko",0,"Nymrot.Sholoko@treasury.gov.za",1,1,"Not listed","PE227",227,"NLCDTF",3,202627,null,null,null,null,null,null,null,null,null,null,"Office of the Valuer-General",null,null,null,null,null,null,null,null,null,null,null,null,null,null,null,null,null,null,null,null,null,null,null,null,null,null,null,null,null,null,null,null,null,null,null,null,null,null,null,null,null,null,null,null,null,null,"Office of the Valuer-General",null,null,null,null,null,null,null,null,null,null,null,0]
[null,"Extra-Budgetary Institution","Trade, Industry and Competition","National Metrology Institute of South Africa","National Metrology Institute of South Africa","Rudzani Sikhwari","(012) 315 5823","Rudzani.Sikhwari@treasury.gov.za","Nymrot Sholoko",0,"Nymrot.Sholoko@treasury.gov.za",1,1,"3A","PE85",85,"NMISA",3,202627,null,null,null,null,null,null,null,null,null,null,"Onderstepoort Biological Products",null,null,null,null,null,null,null,null,null,null,null,null,null,null,null,null,null,null,null,null,null,null,null,null,null,null,null,null,null,null,null,null,null,null,null,null,null,null,null,null,null,null,null,null,null,null,"Onderstepoort Biological Products",null,null,null,null,null,null,null,null,null,null,null,0]
[null,"Extra-Budgetary Institution","Sport, Arts and Culture","Naional Museum","National Museum, Bloemfontein","Judy Naidoo","(012) 315 5269","Judy.Naidoo@treasury.gov.za","Vuyo Ngqukumba","(012) 315 5760","Vuyo.Ngqukumba@treasury.gov.za",1,3,"3A","PE190",190,"NationalM",3,202627,null,null,null,null,null,null,null,null,null,null,"Overberg Water",null,null,null,null,null,null,null,null,null,null,null,null,null,null,null,null,null,null,null,null,null,null,null,null,null,null,null,null,null,null,null,null,null,null,null,null,null,null,null,null,null,null,null,null,null,null,"Overberg Water",null,null,null,null,null,null,null,null,null,null,null,0]
[null,"Extra-Budgetary Institution","Electricity and Energy","National Nuclear Regulator","National Nuclear Regulator","Nomagugu Madikane","(012) 315 5312","Nomagugu.Madikane@treasury.gov.za","Mpho Ntshole",0,"Mpho.Ntshole@treasury.gov.za",1,1,"3A","PE86",86,"NNR",3,202627,null,null,null,null,null,null,null,null,null,null,"Passenger Rail Agency of South Africa",null,null,null,null,null,null,null,null,null,null,null,null,null,null,null,null,null,null,null,null,null,null,null,null,null,null,null,null,null,null,null,null,null,null,null,null,null,null,null,null,null,null,null,null,null,null,"Passenger Rail Agency of South Africa",null,null,null,null,null,null,null,null,null,null,null,0]
[null,"Extra-Budgetary Institution","Trade, Industry and Competition","National Regulator for Compulsory Specifications of South Africa","National Regulator for Compulsory Specifications","Rudzani Sikhwari","(012) 315 5823","Rudzani.Sikhwari@treasury.gov.za","Nymrot Sholoko",0,"Nymrot.Sholoko@treasury.gov.za",1,1,"3A","PE159",159,"NRCS",3,202627,null,null,null,null,null,null,null,null,null,null,"Performing Arts Council of the Free State",null,null,null,null,null,null,null,null,null,null,null,null,null,null,null,null,null,null,null,null,null,null,null,null,null,null,null,null,null,null,null,null,null,null,null,null,null,null,null,null,null,null,null,null,null,null,"Performing Arts Council of the Free State",null,null,null,null,null,null,null,null,null,null,null,0]
[null,"Extra-Budgetary Institution","Science, Technology and Innovation","National Research Foundation","National Research Foundation","Humbelani Ramuedzisi","(012) 315 5585","Humbelani.Ramuedzisi@treasury.gov.za","Patrick Mbedzi","(012) 315 5912","Patrick.Mbedzi@treasury.gov.za",1,1,"3A","PE88",88,"NRF",3,202627,null,null,null,null,null,null,null,null,null,null,"Perishable Products Export Control Board",null,null,null,null,null,null,null,null,null,null,null,null,null,null,null,null,null,null,null,null,null,null,null,null,null,null,null,null,null,null,null,null,null,null,null,null,null,null,null,null,null,null,null,null,null,null,"Perishable Products Export Control Board",null,null,null,null,null,null,null,null,null,null,null,0]
[null,"Extra-Budgetary Institution","National School of Government","The National School of Government Trading Account","National school of government","George Tembo","(012) 315 5514","George.Tembo@treasury.gov.za","Samson Mlambo",0,"Samson.Mlambo@treasury.gov.za",1,1,"Not listed","PE115",115,"PALAMA",1,202627,null,null,null,null,null,null,null,null,null,null,"Ports Regulator of South Africa",null,null,null,null,null,null,null,null,null,null,null,null,null,null,null,null,null,null,null,null,null,null,null,null,null,null,null,null,null,null,null,null,null,null,null,null,null,null,null,null,null,null,null,null,null,null,"Ports Regulator of South Africa",null,null,null,null,null,null,null,null,null,null,null,0]
[null,"Extra-Budgetary Institution","Higher Education ","National Student Financial Aid Scheme","National Student Financial Aid Scheme","Barileng Khumisi","(012) 406 9069","Barileng.Khumisi@treasury.gov.za","Lionel Botsane","(012) 315 5749","Lionel.Botsane@treasury.gov.za",3,1,"3A","PE90",90,"NSFAS",3,202627,null,null,null,null,null,null,null,null,null,null,"Pongola-Mzimkulu Catchment Management Agency",null,null,null,null,null,null,null,null,null,null,null,null,null,null,null,null,null,null,null,null,null,null,null,null,null,null,null,null,null,null,null,null,null,null,null,null,null,null,null,null,null,null,null,null,null,null,"Pongola-Mzimkulu Catchment Management Agency",null,null,null,null,null,null,null,null,null,null,null,0]
[null,"Extra-Budgetary Institution","Women, Youth and Persons with Disabilities","National Youth Development Agency","National Youth Development Agency","Lindi Mzankomo","(012) 315 5256","Lindi.Mzankomo@treasury.gov.za","Samson Mlambo",0,"Samson.Mlambo@treasury.gov.za",3,1,"3A","PE92",92,"NYDA",3,202627,null,null,null,null,null,null,null,null,null,null,"Private Security Industry Regulatory Authority",null,null,null,null,null,null,null,null,null,null,null,null,null,null,null,null,null,null,null,null,null,null,null,null,null,null,null,null,null,null,null,null,null,null,null,null,null,null,null,null,null,null,null,null,null,null,"Private Security Industry Regulatory Authority",null,null,null,null,null,null,null,null,null,null,null,0]
[null,"Extra-Budgetary Institution","Sport, Arts and Culture","Nelson Mandela Museum","Nelson Mandela National Museum","Judy Naidoo","(012) 315 5269","Judy.Naidoo@treasury.gov.za","Vuyo Ngqukumba","(012) 315 5760","Vuyo.Ngqukumba@treasury.gov.za",1,3,"3A","PE192",192,"NelsonM",3,202627,null,null,null,null,null,null,null,null,null,null,"Productivity SA",null,null,null,null,null,null,null,null,null,null,null,null,null,null,null,null,null,null,null,null,null,null,null,null,null,null,null,null,null,null,null,null,null,null,null,null,null,null,null,null,null,null,null,null,null,null,"Productivity SA",null,null,null,null,null,null,null,null,null,null,null,0]
[null,"Extra-Budgetary Institution","Health","Office of Health Standards Compliance","Office of Health Standards Compliance","Refiloe Thokoa","(012) 395 6559","Refiloe.Thokoa@treasury.gov.za","Mpho Ntshole",0,"Mpho.Ntshole@treasury.gov.za",1,1,"3A","PE242",242,"OHSC",3,202627,null,null,null,null,null,null,null,null,null,null,"Property Management Trading Entity",null,null,null,null,null,null,null,null,null,null,null,null,null,null,null,null,null,null,null,null,null,null,null,null,null,null,null,null,null,null,null,null,null,null,null,null,null,null,null,null,null,null,null,null,null,null,"Property Management Trading Entity",null,null,null,null,null,null,null,null,null,null,null,0]
[null,"Extra-Budgetary Institution","National Treasury","Office of the Ombudsman for Financial Services Providers","Office of the Ombud for Financial Service Providers","Mokgatla Tema ","(012) 315 5948","Mokgatla.Tema@treasury.gov.za","Patrick Mbedzi","(012) 315 5912","Patrick.Mbedzi@treasury.gov.za",1,1,"3A","PE37",37,"FAIS",3,202627,null,null,null,null,null,null,null,null,null,null,"Public Investment Corporation Limited",null,null,null,null,null,null,null,null,null,null,null,null,null,null,null,null,null,null,null,null,null,null,null,null,null,null,null,null,null,null,null,null,null,null,null,null,null,null,null,null,null,null,null,null,null,null,"Public Investment Corporation Limited",null,null,null,null,null,null,null,null,null,null,null,0]
[null,"Extra-Budgetary Institution","National Treasury","Office of the Pension Funds Adjudicator","Office of the Pension Funds Adjudicator","Mokgatla Tema ","(012) 315 5948","Mokgatla.Tema@treasury.gov.za","Patrick Mbedzi","(012) 315 5912","Patrick.Mbedzi@treasury.gov.za",1,1,"3A","PE232",232,"OPFA",3,202627,null,null,null,null,null,null,null,null,null,null,"Public Service Sector Education and Training Authority",null,null,null,null,null,null,null,null,null,null,null,null,null,null,null,null,null,null,null,null,null,null,null,null,null,null,null,null,null,null,null,null,null,null,null,null,null,null,null,null,null,null,null,null,null,null,"Public Service Sector Education and Training Authority",null,null,null,null,null,null,null,null,null,null,null,0]
[null,"Extra-Budgetary Institution","Land Reform and Rural Development","Office of the Valuer-General","Office of the Valuer-General","Bothwell Deka","(012) 395 6788","Bothwell.Deka@treasury.gov.za","Jabulane Mashele","(012) 395 6560","Jabulane.Mashele@treasury.gov.za",1,1,"3A","PE248",248,"OVG",3,202627,null,null,null,null,null,null,null,null,null,null,"Quality Council for Trades and Occupations",null,null,null,null,null,null,null,null,null,null,null,null,null,null,null,null,null,null,null,null,null,null,null,null,null,null,null,null,null,null,null,null,null,null,null,null,null,null,null,null,null,null,null,null,null,null,"Quality Council for Trades and Occupations",null,null,null,null,null,null,null,null,null,null,null,0]
[null,"Extra-Budgetary Institution","National Treasury","Ombud Council","Ombud Council","Mokgatla Tema ","(012) 315 5948","mokgatla.tema@treasury.gov.za","Patrick Mbedzi","(012) 315 5912","Patrick.Mbedzi@treasury.gov.za",1,1,"3A","PE250",250," OC",3,202627,null,null,null,null,null,null,null,null,null,null,"Railway Safety Regulator",null,null,null,null,null,null,null,null,null,null,null,null,null,null,null,null,null,null,null,null,null,null,null,null,null,null,null,null,null,null,null,null,null,null,null,null,null,null,null,null,null,null,null,null,null,null,"Railway Safety Regulator",null,null,null,null,null,null,null,null,null,null,null,0]
[null,"Public non-financial corporation","Agriculture","Onderstepoort Biological Products","Onderstepoort Biological Products","Bothwell Deka","(012) 395 6789","Bothwell.Deka@treasury.gov.za","Jabulane Mashele","(012) 395 6560","Jabulane.Mashele@treasury.gov.za",1,1,"3B","PE93",93,"OBP",3,202627,null,null,null,null,null,null,null,null,null,null,"Rand Water",null,null,null,null,null,null,null,null,null,null,null,null,null,null,null,null,null,null,null,null,null,null,null,null,null,null,null,null,null,null,null,null,null,null,null,null,null,null,null,null,null,null,null,null,null,null,"Rand Water",null,null,null,null,null,null,null,null,null,null,null,0]
[null,"Extra-Budgetary Institution","Water and Sanitation","Overberg Water Board","Overberg Water","Iqbal Mahomed Alli","(012) 315 5809","Iqbal.Mahomedalli@treasury.gov.za","Mntazi Msiza","(012) 315 5876","Mntazi.Msiza@treasury.gov.za",1,3,"3B","PE194",194,"Overberg",3,202627,null,null,null,null,null,null,null,null,null,null,"Registration of Deeds Trading Entity",null,null,null,null,null,null,null,null,null,null,null,null,null,null,null,null,null,null,null,null,null,null,null,null,null,null,null,null,null,null,null,null,null,null,null,null,null,null,null,null,null,null,null,null,null,null,"Registration of Deeds Trading Entity",null,null,null,null,null,null,null,null,null,null,null,0]
[null,"Extra-Budgetary Institution","Transport","Passenger Rail Agency of South Africa","Passenger Rail Agency of South Africa","Luyolo Ntlangula","(012) 315 5571","Luyolo.Ntlangula@treasury.gov.za","Samson Mlambo",0,"Samson.Mlambo@treasury.gov.za",1,1,"3B","PE125",125,"PRASA",3,202627,null,null,null,null,null,null,null,null,null,null,"Road Traffic Infringement Agency",null,null,null,null,null,null,null,null,null,null,null,null,null,null,null,null,null,null,null,null,null,null,null,null,null,null,null,null,null,null,null,null,null,null,null,null,null,null,null,null,null,null,null,null,null,null,"Road Traffic Infringement Agency",null,null,null,null,null,null,null,null,null,null,null,0]
[null,"Extra-Budgetary Institution","Sport, Arts and Culture","Performing Arts Council of the Free State","Performing Arts Council of the Free State","Judy Naidoo","(012) 315 5269","Judy.Naidoo@treasury.gov.za","Vuyo Ngqukumba","(012) 315 5760","Vuyo.Ngqukumba@treasury.gov.za",1,3,"3A","PE195",195,"PACOFS",3,202627,null,null,null,null,null,null,null,null,null,null,"Road Traffic Management Corporation",null,null,null,null,null,null,null,null,null,null,null,null,null,null,null,null,null,null,null,null,null,null,null,null,null,null,null,null,null,null,null,null,null,null,null,null,null,null,null,null,null,null,null,null,null,null,"Road Traffic Management Corporation",null,null,null,null,null,null,null,null,null,null,null,0]
[null,"Extra-Budgetary Institution","Agriculture","Perishable Products Export Control Board Ltd","Perishable Products Export Control Board","Bothwell Deka","(012) 395 6790","Bothwell.Deka@treasury.gov.za","Jabulane Mashele","(012) 395 6560","Jabulane.Mashele@treasury.gov.za",1,1,"3A","PE99",99,"PPECB",3,202627,null,null,null,null,null,null,null,null,null,null,"Robben Island Museum",null,null,null,null,null,null,null,null,null,null,null,null,null,null,null,null,null,null,null,null,null,null,null,null,null,null,null,null,null,null,null,null,null,null,null,null,null,null,null,null,null,null,null,null,null,null,"Robben Island Museum",null,null,null,null,null,null,null,null,null,null,null,0]
[null,"Extra-Budgetary Institution","Water and Sanitation","Pongola-Umzimkulu Catchment Agency","Pongola-Umzimkulu Catchment Management Agency","Iqbal Mahomed Alli","(012) 315 5809","Iqbal.Mahomedalli@treasury.gov.za","Mntazi Msiza","(012) 315 5876","Mntazi.Msiza@treasury.gov.za",1,2,"3B","PE258",258,"PUMCA",3,202627,null,null,null,null,null,null,null,null,null,null,"SA Bureau of Standards",null,null,null,null,null,null,null,null,null,null,null,null,null,null,null,null,null,null,null,null,null,null,null,null,null,null,null,null,null,null,null,null,null,null,null,null,null,null,null,null,null,null,null,null,null,null,"SA Bureau of Standards",null,null,null,null,null,null,null,null,null,null,null,0]
[null,"Public non-financial corporation","Transport","Ports Regulator of South Africa","Ports Regulator of South Africa","Luyolo Ntlangula","(012) 315 5571","Luyolo.Ntlangula@treasury.gov.za","Samson Mlambo",0,"Samson.Mlambo@treasury.gov.za",1,1,"3A","PE10",10,"Ports Reg",3,202627,null,null,null,null,null,null,null,null,null,null,"SA Institute for Drug-free Sport",null,null,null,null,null,null,null,null,null,null,null,null,null,null,null,null,null,null,null,null,null,null,null,null,null,null,null,null,null,null,null,null,null,null,null,null,null,null,null,null,null,null,null,null,null,null,"SA Institute for Drug-free Sport",null,null,null,null,null,null,null,null,null,null,null,0]
[null,"Extra-Budgetary Institution","Communications and Digital Technologies","PostBank","PostBank","Keitumetse Motshegwe","(012) 395 6750","Keitumetse.Motshegwe@treasury.gov.za","Mpho Ntshole",0,"Mpho.Ntshole@treasury.gov.za",3,3,"Not listed","PE252",252,"PostBank",3,202627,null,null,null,null,null,null,null,null,null,null,"SA Medical Research Council",null,null,null,null,null,null,null,null,null,null,null,null,null,null,null,null,null,null,null,null,null,null,null,null,null,null,null,null,null,null,null,null,null,null,null,null,null,null,null,null,null,null,null,null,null,null,"SA Medical Research Council",null,null,null,null,null,null,null,null,null,null,null,0]
[null,"Extra-Budgetary Institution","Police","Private Security Industry Regulatory Authority","Private Security Industry Regulatory Authority","Nompumelelo Radebe","(012) 315 5957","Nompumelelo.Radebe@treasury.gov.za","Jabulane Mashele","(012) 395 6560","Jabulane.Mashele@treasury.gov.za",1,1,"3A","PE11",11,"PSIRA",3,202627,null,null,null,null,null,null,null,null,null,null,"SA National Roads Agency",null,null,null,null,null,null,null,null,null,null,null,null,null,null,null,null,null,null,null,null,null,null,null,null,null,null,null,null,null,null,null,null,null,null,null,null,null,null,null,null,null,null,null,null,null,null,"SA National Roads Agency",null,null,null,null,null,null,null,null,null,null,null,0]
[null,"Extra-Budgetary Institution","Employment and Labour","Productivity South Africa","Productivity SA","Judy Naidoo","(012) 315 5269","Judy.Naidoo@treasury.gov.za","Samson Mlambo",0,"Samson.Mlambo@treasury.gov.za",1,1,"3A","PE87",87,"ProductivitySA",3,202627,null,null,null,null,null,null,null,null,null,null,"Safety and Security Education and Training Authority",null,null,null,null,null,null,null,null,null,null,null,null,null,null,null,null,null,null,null,null,null,null,null,null,null,null,null,null,null,null,null,null,null,null,null,null,null,null,null,null,null,null,null,null,null,null,"Safety and Security Education and Training Authority",null,null,null,null,null,null,null,null,null,null,null,0]
[null,"Extra-Budgetary Institution","Public Works and Infrastructure","The Property Management Trading Account","Property Management Trading Entity","George Tembo","(012) 315 5514","George.Tembo@treasury.gov.za","Patrick Mbedzi","(012) 315 5912","Patrick.Mbedzi@treasury.gov.za",1,1,"Not listed","PE98",98,"PMTE",1,202627,null,null,null,null,null,null,null,null,null,null,"Sedibeng Water",null,null,null,null,null,null,null,null,null,null,null,null,null,null,null,null,null,null,null,null,null,null,null,null,null,null,null,null,null,null,null,null,null,null,null,null,null,null,null,null,null,null,null,null,null,null,"Sedibeng Water",null,null,null,null,null,null,null,null,null,null,null,0]
[null,"Extra-Budgetary Institution","Human Settlements","Estate Agents Fidelity Fund","Property Practitioners Fidelity Fund ","Lindiwe Ngcongwane","(012) 315 5357","Lindiwe.Ngcongwane@treasury.gov.za","Jabulane Mashele","(012) 395 6560","Jabulane.Mashele@treasury.gov.za",1,1,"Not listed","PE241",241,"EAFF",3,202627,null,null,null,null,null,null,null,null,null,null,"Sentech Limited",null,null,null,null,null,null,null,null,null,null,null,null,null,null,null,null,null,null,null,null,null,null,null,null,null,null,null,null,null,null,null,null,null,null,null,null,null,null,null,null,null,null,null,null,null,null,"Sentech Limited",null,null,null,null,null,null,null,null,null,null,null,0]
[null,"Public non-financial corporation","Human Settlements","Estate Agency Affairs Board","Property Practitioners Regulatory Authority ","Lindiwe Ngcongwane","(012) 315 5357","Lindiwe.Ngcongwane@treasury.gov.za","Jabulane Mashele","(012) 395 6560","Jabulane.Mashele@treasury.gov.za",1,1,"3A","PE33",33,"EAAB",3,202627,null,null,null,null,null,null,null,null,null,null,"Services Sector Education and Training Authority",null,null,null,null,null,null,null,null,null,null,null,null,null,null,null,null,null,null,null,null,null,null,null,null,null,null,null,null,null,null,null,null,null,null,null,null,null,null,null,null,null,null,null,null,null,null,"Services Sector Education and Training Authority",null,null,null,null,null,null,null,null,null,null,null,0]
[null,"Extra-Budgetary Institution","National Treasury","Public Investment Corporation","Public Investment Corporation Limited","Mokgatla Tema ","(012) 315 5948","Mokgatla.Tema@treasury.gov.za","Patrick Mbedzi","(012) 315 5912","Patrick.Mbedzi@treasury.gov.za",3,1,"3B","PE97",97,"PIC",3,202627,null,null,null,null,null,null,null,null,null,null,"Small Enterprise Development Agency",null,null,null,null,null,null,null,null,null,null,null,null,null,null,null,null,null,null,null,null,null,null,null,null,null,null,null,null,null,null,null,null,null,null,null,null,null,null,null,null,null,null,null,null,null,null,"Small Enterprise Development Agency",null,null,null,null,null,null,null,null,null,null,null,0]
[null,"Extra-Budgetary Institution","Higher Education ","Public Service Sector Education and Training Authority","Public Service Sector Education and Training Authority","Barileng Khumisi","(012) 406 9069","Barileng.Khumisi@treasury.gov.za","Lionel Botsane","(012) 315 5749","Lionel.Botsane@treasury.gov.za",2,3,"3A","PE226",226,"PSETA",3,202627,null,null,null,null,null,null,null,null,null,null,"South African Civil Aviation Authority",null,null,null,null,null,null,null,null,null,null,null,null,null,null,null,null,null,null,null,null,null,null,null,null,null,null,null,null,null,null,null,null,null,null,null,null,null,null,null,null,null,null,null,null,null,null,"South African Civil Aviation Authority",null,null,null,null,null,null,null,null,null,null,null,0]
[null,"Extra-Budgetary Institution","Higher Education ","Quality Council for Trades and Occupations","Quality Council for Trades and Occupations","Barileng Khumisi","(012) 406 9069","Barileng.Khumisi@treasury.gov.za","Lionel Botsane","(012) 315 5749","Lionel.Botsane@treasury.gov.za",1,1,"3A","PE235",235,"QCTO",3,202627,null,null,null,null,null,null,null,null,null,null,"South African Council for Educators",null,null,null,null,null,null,null,null,null,null,null,null,null,null,null,null,null,null,null,null,null,null,null,null,null,null,null,null,null,null,null,null,null,null,null,null,null,null,null,null,null,null,null,null,null,null,"South African Council for Educators",null,null,null,null,null,null,null,null,null,null,null,0]
[null,"Public non-financial corporation","Transport","Railway Safety Regulator","Railway Safety Regulator","Luyolo Ntlangula","(012) 315 5571","Luyolo.Ntlangula@treasury.gov.za","Samson Mlambo",0,"Samson.Mlambo@treasury.gov.za",1,1,"3A","PE103",103,"RSR",3,202627,null,null,null,null,null,null,null,null,null,null,"South African Diamond and Precious Metals Regulator",null,null,null,null,null,null,null,null,null,null,null,null,null,null,null,null,null,null,null,null,null,null,null,null,null,null,null,null,null,null,null,null,null,null,null,null,null,null,null,null,null,null,null,null,null,null,"South African Diamond and Precious Metals Regulator",null,null,null,null,null,null,null,null,null,null,null,0]
[null,"Extra-Budgetary Institution","Water and Sanitation","Rand Water Board","Rand Water","Iqbal Mahomed Alli","(012) 315 5809","Iqbal.Mahomedalli@treasury.gov.za","Mntazi Msiza","(012) 315 5876","Mntazi.Msiza@treasury.gov.za",1,3,"3B","PE199",199,"RandWater",3,202627,null,null,null,null,null,null,null,null,null,null,"South African Health Products Regulatory Authority",null,null,null,null,null,null,null,null,null,null,null,null,null,null,null,null,null,null,null,null,null,null,null,null,null,null,null,null,null,null,null,null,null,null,null,null,null,null,null,null,null,null,null,null,null,null,"South African Health Products Regulatory Authority",null,null,null,null,null,null,null,null,null,null,null,0]
[null,"Social Security Fund","Land Reform and Rural Development","Registration of Deeds Trading Account","Registration of Deeds Trading Entity","Bothwell Deka","(012) 395 6791","Bothwell.Deka@treasury.gov.za","Jabulane Mashele","(012) 395 6560","Jabulane.Mashele@treasury.gov.za",1,1,"Not listed","PE31",31,"DEEDS",3,202627,null,null,null,null,null,null,null,null,null,null,"South African Heritage Resources Agency",null,null,null,null,null,null,null,null,null,null,null,null,null,null,null,null,null,null,null,null,null,null,null,null,null,null,null,null,null,null,null,null,null,null,null,null,null,null,null,null,null,null,null,null,null,null,"South African Heritage Resources Agency",null,null,null,null,null,null,null,null,null,null,null,0]
[null,"Extra-Budgetary Institution","Transport","Road Accident Fund","Road Accident Fund","Luyolo Ntlangula","(012) 315 5571","Luyolo.Ntlangula@treasury.gov.za","Vuyo Ngqukumba","(012) 315 5760","Vuyo.Ngqukumba@treasury.gov.za",4,4,"3A","PE101",101,"RAF",3,202627,null,null,null,null,null,null,null,null,null,null,"South African Library for the Blind",null,null,null,null,null,null,null,null,null,null,null,null,null,null,null,null,null,null,null,null,null,null,null,null,null,null,null,null,null,null,null,null,null,null,null,null,null,null,null,null,null,null,null,null,null,null,"South African Library for the Blind",null,null,null,null,null,null,null,null,null,null,null,0]
[null,"Extra-Budgetary Institution","Transport","Road Traffic Infringement Agency","Road Traffic Infringement Agency","Luyolo Ntlangula","(012) 315 5571","Luyolo.Ntlangula@treasury.gov.za","Samson Mlambo",0,"Samson.Mlambo@treasury.gov.za",1,1,"3A","PE229",229,"RTIA",3,202627,null,null,null,null,null,null,null,null,null,null,"South African Local Government Association",null,null,null,null,null,null,null,null,null,null,null,null,null,null,null,null,null,null,null,null,null,null,null,null,null,null,null,null,null,null,null,null,null,null,null,null,null,null,null,null,null,null,null,null,null,null,"South African Local Government Association",null,null,null,null,null,null,null,null,null,null,null,0]
[null,"Extra-Budgetary Institution","Transport","Road Traffic Management Corporation","Road Traffic Management Corporation","Luyolo Ntlangula","(012) 315 5571","Luyolo.Ntlangula@treasury.gov.za","Samson Mlambo",0,"Samson.Mlambo@treasury.gov.za",1,1,"3A","PE104",104,"RTMC",3,202627,null,null,null,null,null,null,null,null,null,null,"South African Maritime Safety Authority",null,null,null,null,null,null,null,null,null,null,null,null,null,null,null,null,null,null,null,null,null,null,null,null,null,null,null,null,null,null,null,null,null,null,null,null,null,null,null,null,null,null,null,null,null,null,"South African Maritime Safety Authority",null,null,null,null,null,null,null,null,null,null,null,0]
[null,"Extra-Budgetary Institution","Sport, Arts and Culture","Robben Island Museum","Robben Island Museum","Judy Naidoo","(012) 315 5269","Judy.Naidoo@treasury.gov.za","Vuyo Ngqukumba","(012) 315 5760","Vuyo.Ngqukumba@treasury.gov.za",1,3,"3A","PE200",200,"RobbenM",3,202627,null,null,null,null,null,null,null,null,null,null,"South African National Accreditation System",null,null,null,null,null,null,null,null,null,null,null,null,null,null,null,null,null,null,null,null,null,null,null,null,null,null,null,null,null,null,null,null,null,null,null,null,null,null,null,null,null,null,null,null,null,null,"South African National Accreditation System",null,null,null,null,null,null,null,null,null,null,null,0]
[null,"Extra-Budgetary Institution","Trade, Industry and Competition","South African Bureau of Standards","SA Bureau of Standards","Rudzani Sikhwari","(012) 315 5823","Rudzani.Sikhwari@treasury.gov.za","Nymrot Sholoko",0,"Nymrot.Sholoko@treasury.gov.za",1,1,"3B","PE108",108,"SABS",3,202627,null,null,null,null,null,null,null,null,null,null,"South African National Biodiversity Institute",null,null,null,null,null,null,null,null,null,null,null,null,null,null,null,null,null,null,null,null,null,null,null,null,null,null,null,null,null,null,null,null,null,null,null,null,null,null,null,null,null,null,null,null,null,null,"South African National Biodiversity Institute",null,null,null,null,null,null,null,null,null,null,null,0]
[null,"Extra-Budgetary Institution","Sport, Arts and Culture","South African Institute for Drug-Free Sport","SA Institute for Drug-free Sport","Judy Naidoo","(012) 315 5269","Judy.Naidoo@treasury.gov.za","Vuyo Ngqukumba","(012) 315 5760","Vuyo.Ngqukumba@treasury.gov.za",1,1,"3A","PE112",112,"SAIDS",3,202627,null,null,null,null,null,null,null,null,null,null,"South African National Energy Development Institute",null,null,null,null,null,null,null,null,null,null,null,null,null,null,null,null,null,null,null,null,null,null,null,null,null,null,null,null,null,null,null,null,null,null,null,null,null,null,null,null,null,null,null,null,null,null,"South African National Energy Development Institute",null,null,null,null,null,null,null,null,null,null,null,0]
[null,"Extra-Budgetary Institution","Health","South African Medical Research Council","SA Medical Research Council","Refiloe Thokoa","(012) 395 6559","Refiloe.Thokoa@treasury.gov.za","Mpho Ntshole",0,"Mpho.Ntshole@treasury.gov.za",1,1,"3A","PE116",116,"SAMRC",1,202627,null,null,null,null,null,null,null,null,null,null,"South African National Parks",null,null,null,null,null,null,null,null,null,null,null,null,null,null,null,null,null,null,null,null,null,null,null,null,null,null,null,null,null,null,null,null,null,null,null,null,null,null,null,null,null,null,null,null,null,null,"South African National Parks",null,null,null,null,null,null,null,null,null,null,null,0]
[null,"Extra-Budgetary Institution","Transport","South African National Roads Agency","SA National Roads Agency","Luyolo Ntlangula","(012) 315 5571","Luyolo.Ntlangula@treasury.gov.za","Samson Mlambo",0,"Samson.Mlambo@treasury.gov.za",1,1,"3A","PE121",121,"SANRAL",3,202627,null,null,null,null,null,null,null,null,null,null,"South African National Space Agency",null,null,null,null,null,null,null,null,null,null,null,null,null,null,null,null,null,null,null,null,null,null,null,null,null,null,null,null,null,null,null,null,null,null,null,null,null,null,null,null,null,null,null,null,null,null,"South African National Space Agency",null,null,null,null,null,null,null,null,null,null,null,0]
[null,"Financial corporation","Higher Education ","Safety and Security Education and Training Authority","Safety and Security Education and Training Authority","Barileng Khumisi","(012) 406 9069","Barileng.Khumisi@treasury.gov.za","Lionel Botsane","(012) 315 5749","Lionel.Botsane@treasury.gov.za",2,3,"3A","PE201",201,"SASSETA",3,202627,null,null,null,null,null,null,null,null,null,null,"South African Nuclear Energy Corporation Limited",null,null,null,null,null,null,null,null,null,null,null,null,null,null,null,null,null,null,null,null,null,null,null,null,null,null,null,null,null,null,null,null,null,null,null,null,null,null,null,null,null,null,null,null,null,null,"South African Nuclear Energy Corporation Limited",null,null,null,null,null,null,null,null,null,null,null,0]
[null,"Public non-financial corporation","National Treasury","South African Special Risks Insurance Association","Sasria Limited","Mokgatla Tema ","(012) 315 5948","Mokgatla.Tema@treasury.gov.za","Patrick Mbedzi","(012) 315 5912","Patrick.Mbedzi@treasury.gov.za",3,3,"3B","PE128",128,"SASRIA",3,202627,null,null,null,null,null,null,null,null,null,null,"South African Qualifications Authority",null,null,null,null,null,null,null,null,null,null,null,null,null,null,null,null,null,null,null,null,null,null,null,null,null,null,null,null,null,null,null,null,null,null,null,null,null,null,null,null,null,null,null,null,null,null,"South African Qualifications Authority",null,null,null,null,null,null,null,null,null,null,null,0]
[null,"Public non-financial corporation","Water and Sanitation","Sedibeng Water Board","Sedibeng Water","Iqbal Mahomed Alli","(012) 315 5809","Iqbal.Mahomedalli@treasury.gov.za","Mntazi Msiza","(012) 315 5876","Mntazi.Msiza@treasury.gov.za",1,3,"3B","PE202",202,"Sedibeng",3,202627,null,null,null,null,null,null,null,null,null,null,"South African Revenue Service",null,null,null,null,null,null,null,null,null,null,null,null,null,null,null,null,null,null,null,null,null,null,null,null,null,null,null,null,null,null,null,null,null,null,null,null,null,null,null,null,null,null,null,null,null,null,"South African Revenue Service",null,null,null,null,null,null,null,null,null,null,null,0]
[null,"Extra-Budgetary Institution","Communications and Digital Technologies","Sentech (Pty) Ltd","Sentech Limited","Keitumetse Motshegwe","(012) 395 6750","Keitumetse.Motshegwe@treasury.gov.za","Mpho Ntshole",0,"Mpho.Ntshole@treasury.gov.za",1,1,"3B","PE132",132,"SENTECH",3,202627,null,null,null,null,null,null,null,null,null,null,"South African Social Security Agency",null,null,null,null,null,null,null,null,null,null,null,null,null,null,null,null,null,null,null,null,null,null,null,null,null,null,null,null,null,null,null,null,null,null,null,null,null,null,null,null,null,null,null,null,null,null,"South African Social Security Agency",null,null,null,null,null,null,null,null,null,null,null,0]
[null,"Extra-Budgetary Institution","Higher Education ","Services Sector Education and Training Authority","Services Sector Education and Training Authority","Barileng Khumisi","(012) 406 9069","Barileng.Khumisi@treasury.gov.za","Lionel Botsane","(012) 315 5749","Lionel.Botsane@treasury.gov.za",2,3,"3A","PE203",203,"SSETA",3,202627,null,null,null,null,null,null,null,null,null,null,"South African Tourism",null,null,null,null,null,null,null,null,null,null,null,null,null,null,null,null,null,null,null,null,null,null,null,null,null,null,null,null,null,null,null,null,null,null,null,null,null,null,null,null,null,null,null,null,null,null,"South African Tourism",null,null,null,null,null,null,null,null,null,null,null,0]
[null,"Financial corporation","Small Business Development","Small Enterprise Development Agency","Small Enterprise Development Agency","Bothwell Deka","(012) 395 6791","Bothwell.Deka@treasury.gov.za","Jabulane Mashele","(012) 395 6560","Jabulane.Mashele@treasury.gov.za",3,1,"3A","PE131",131,"SEDA",3,202627,null,null,null,null,null,null,null,null,null,null,"South African Weather Service",null,null,null,null,null,null,null,null,null,null,null,null,null,null,null,null,null,null,null,null,null,null,null,null,null,null,null,null,null,null,null,null,null,null,null,null,null,null,null,null,null,null,null,null,null,null,"South African Weather Service",null,null,null,null,null,null,null,null,null,null,null,0]
[null,"Public non-financial corporation","Trade, Industry and Competition","Small Enterprise Finance Agency","Small Enterprise Finance Agency","Rudzani Sikhwari","(012) 315 5823","Rudzani.Sikhwari@treasury.gov.za","Nymrot Sholoko",0,"Nymrot.Sholoko@treasury.gov.za",3,3,"3B","PE238",238,"SEFA",3,202627,null,null,null,null,null,null,null,null,null,null,"Special Investigating Unit",null,null,null,null,null,null,null,null,null,null,null,null,null,null,null,null,null,null,null,null,null,null,null,null,null,null,null,null,null,null,null,null,null,null,null,null,null,null,null,null,null,null,null,null,null,null,"Special Investigating Unit",null,null,null,null,null,null,null,null,null,null,null,0]
[null,"Public non-financial corporation","Transport","South African Airways (Pty) Limited","South African Airways (Pty) Limited","Luyolo Ntlangula","(012) 315 5571","Luyolo.Ntlangula@treasury.gov.za","Samson Mlambo",0,"Samson.Mlambo@treasury.gov.za",1,3,2,"PE163",163,"SAA",3,202627,null,null,null,null,null,null,null,null,null,null,"State Diamond Trader",null,null,null,null,null,null,null,null,null,null,null,null,null,null,null,null,null,null,null,null,null,null,null,null,null,null,null,null,null,null,null,null,null,null,null,null,null,null,null,null,null,null,null,null,null,null,"State Diamond Trader",null,null,null,null,null,null,null,null,null,null,null,0]
[null,"Financial corporation","Small Business Development","Small Enterprise Development Finance Agency","Small Enterprise Development Finance Agency","Bothwell Deka","(012) 395 6791","Bothwell.Deka@treasury.gov.za","Jabulane Mashele","(012) 395 6560","Jabulane.Mashele@treasury.gov.za",3,1,"3A","PE261",261,"SEDFA",3,202627,null,null,null,null,null,null,null,null,null,null,"State Information Technology Agency",null,null,null,null,null,null,null,null,null,null,null,null,null,null,null,null,null,null,null,null,null,null,null,null,null,null,null,null,null,null,null,null,null,null,null,null,null,null,null,null,null,null,null,null,null,null,"State Information Technology Agency",null,null,null,null,null,null,null,null,null,null,null,0]
[null,"Extra-Budgetary Institution","Communications and Digital Technologies","South African Broadcasting Corporation Ltd","South African Broadcasting Corporation Limited","Keitumetse Motshegwe","(012) 395 6750","Keitumetse.Motshegwe@treasury.gov.za","Mpho Ntshole",0,"Mpho.Ntshole@treasury.gov.za",1,3,2,"PE107",107,"SABC",3,202627,null,null,null,null,null,null,null,null,null,null,"Takeover Regulation Panel",null,null,null,null,null,null,null,null,null,null,null,null,null,null,null,null,null,null,null,null,null,null,null,null,null,null,null,null,null,null,null,null,null,null,null,null,null,null,null,null,null,null,null,null,null,null,"Takeover Regulation Panel",null,null,null,null,null,null,null,null,null,null,null,0]
[null,"Extra-Budgetary Institution","Transport","South African Civil Aviation Authority","South African Civil Aviation Authority","Luyolo Ntlangula","(012) 315 5571","Luyolo.Ntlangula@treasury.gov.za","Samson Mlambo",0,"Samson.Mlambo@treasury.gov.za",1,1,"3A","PE13",13,"CAA",1,202627,null,null,null,null,null,null,null,null,null,null,"Technology Innovation Agency",null,null,null,null,null,null,null,null,null,null,null,null,null,null,null,null,null,null,null,null,null,null,null,null,null,null,null,null,null,null,null,null,null,null,null,null,null,null,null,null,null,null,null,null,null,null,"Technology Innovation Agency",null,null,null,null,null,null,null,null,null,null,null,0]
[null,"Extra-Budgetary Institution","Basic Education","South African Council for Educators","South African Council for Educators","Spencer Janari","(012) 406 9069","Spencer.Janari@treasury.gov.za","Lionel Botsane","(012) 315 5749","Lionel.Botsane@treasury.gov.za",1,1,"3A","PE109",109,"SACE",3,202627,null,null,null,null,null,null,null,null,null,null,"The Commission for the Promotion and Protection of the Rights of Cultural, Religious and Linguistic Communities",null,null,null,null,null,null,null,null,null,null,null,null,null,null,null,null,null,null,null,null,null,null,null,null,null,null,null,null,null,null,null,null,null,null,null,null,null,null,null,null,null,null,null,null,null,null,"The Commission for the Promotion and Protection of the Rights of Cultural, Religious and Linguistic Communities",null,null,null,null,null,null,null,null,null,null,null,0]
[null,"Public non-financial corporation","Mineral and Petroleum Resources ","South African Diamond and Precious Metals Regulator","South African Diamond and Precious Metals Regulator","Nomagugu Madikane","(012) 315 5312","Nomagugu.Madikane@treasury.gov.za","Mpho Ntshole",0,"Mpho.Ntshole@treasury.gov.za",1,1,"3A","PE105",105,"SADPMR",3,202627,null,null,null,null,null,null,null,null,null,null,"The Commission on Gender Equality",null,null,null,null,null,null,null,null,null,null,null,null,null,null,null,null,null,null,null,null,null,null,null,null,null,null,null,null,null,null,null,null,null,null,null,null,null,null,null,null,null,null,null,null,null,null,"The Commission on Gender Equality",null,null,null,null,null,null,null,null,null,null,null,0]
[null,"Extra-Budgetary Institution","Transport","South African Express (Pty) Limited","South African Express (Pty) Limited","Luyolo Ntlangula","(012) 315 5571","Luyolo.Ntlangula@treasury.gov.za","Mntazi Msiza","(012) 315 5876","Mntazi.Msiza@treasury.gov.za",1,3,2,"PE160",160,"SAX",3,202627,null,null,null,null,null,null,null,null,null,null,"The Co-operative Banks Development Agency",null,null,null,null,null,null,null,null,null,null,null,null,null,null,null,null,null,null,null,null,null,null,null,null,null,null,null,null,null,null,null,null,null,null,null,null,null,null,null,null,null,null,null,null,null,null,"The Co-operative Banks Development Agency",null,null,null,null,null,null,null,null,null,null,null,0]
[null,"Extra-Budgetary Institution","Forestry, Fisheries and the Environment","South African Forestry Company Limited","South African Forestry Company Limited","Ashley Ramasimu","(012) 315 5166","Ashley.Ramasimu@treasury.gov.za","Nymrot Sholoko",0,"Nymrot.Sholoko@treasury.gov.za",1,3,2,"PE110",110,"SAFCOL",3,202627,null,null,null,null,null,null,null,null,null,null,"The Financial and Fiscal Commission",null,null,null,null,null,null,null,null,null,null,null,null,null,null,null,null,null,null,null,null,null,null,null,null,null,null,null,null,null,null,null,null,null,null,null,null,null,null,null,null,null,null,null,null,null,null,"The Financial and Fiscal Commission",null,null,null,null,null,null,null,null,null,null,null,0]
[null,"Extra-Budgetary Institution","Health","South African Health Products Regulatory Authority","South African Health Products Regulatory Authority","Refiloe Thokoa","(012) 395 6559","Refiloe.Thokoa@treasury.gov.za","Mpho Ntshole",0,"Mpho.Ntshole@treasury.gov.za",1,1,"3A","PE247",247,"SAHPRA",3,202627,null,null,null,null,null,null,null,null,null,null,"The Independent Communications Authority of South Africa",null,null,null,null,null,null,null,null,null,null,null,null,null,null,null,null,null,null,null,null,null,null,null,null,null,null,null,null,null,null,null,null,null,null,null,null,null,null,null,null,null,null,null,null,null,null,"The Independent Communications Authority of South Africa",null,null,null,null,null,null,null,null,null,null,null,0]
[null,"Extra-Budgetary Institution","Sport, Arts and Culture","South African Heritage Resources Agency","South African Heritage Resources Agency","Judy Naidoo","(012) 315 5269","Judy.Naidoo@treasury.gov.za","Vuyo Ngqukumba","(012) 315 5760","Vuyo.Ngqukumba@treasury.gov.za",1,1,"3A","PE111",111,"SAHRA",3,202627,null,null,null,null,null,null,null,null,null,null,"The Independent Electoral Commission",null,null,null,null,null,null,null,null,null,null,null,null,null,null,null,null,null,null,null,null,null,null,null,null,null,null,null,null,null,null,null,null,null,null,null,null,null,null,null,null,null,null,null,null,null,null,"The Independent Electoral Commission",null,null,null,null,null,null,null,null,null,null,null,0]
[null,"Extra-Budgetary Institution","Sport, Arts and Culture","South African Library for the Blind","South African Library for the Blind","Judy Naidoo","(012) 315 5269","Judy.Naidoo@treasury.gov.za","Vuyo Ngqukumba","(012) 315 5760","Vuyo.Ngqukumba@treasury.gov.za",1,3,"3A","PE179",179,"SALB",3,202627,null,null,null,null,null,null,null,null,null,null,"The Municipal Demarcation Board",null,null,null,null,null,null,null,null,null,null,null,null,null,null,null,null,null,null,null,null,null,null,null,null,null,null,null,null,null,null,null,null,null,null,null,null,null,null,null,null,null,null,null,null,null,null,"The Municipal Demarcation Board",null,null,null,null,null,null,null,null,null,null,null,0]
[null,"Extra-Budgetary Institution","Cooperative Governance","South African Local Government Association","South African Local Government Association","Portia Thebe","(012) 315 5855","Portia.Thebe@treasury.gov.za","Mntazi Msiza","(012) 315 5876","Mntazi.Msiza@treasury.gov.za",1,1,"3A","PE113",113,"SALGA",3,202627,null,null,null,null,null,null,null,null,null,null,"The National Radioactive Waste Disposal Institute",null,null,null,null,null,null,null,null,null,null,null,null,null,null,null,null,null,null,null,null,null,null,null,null,null,null,null,null,null,null,null,null,null,null,null,null,null,null,null,null,null,null,null,null,null,null,"The National Radioactive Waste Disposal Institute",null,null,null,null,null,null,null,null,null,null,null,0]
[null,"Extra-Budgetary Institution","Transport","South African Maritime Safety Authority","South African Maritime Safety Authority","Luyolo Ntlangula","(012) 315 5571","Luyolo.Ntlangula@treasury.gov.za","Samson Mlambo",0,"Samson.Mlambo@treasury.gov.za",1,1,"3A","PE117",117,"SAMSA",3,202627,null,null,null,null,null,null,null,null,null,null,"The National Skills Fund",null,null,null,null,null,null,null,null,null,null,null,null,null,null,null,null,null,null,null,null,null,null,null,null,null,null,null,null,null,null,null,null,null,null,null,null,null,null,null,null,null,null,null,null,null,null,"The National Skills Fund",null,null,null,null,null,null,null,null,null,null,null,0]
[null,"Extra-Budgetary Institution","Trade, Industry and Competition","South African National Accreditation System","South African National Accreditation System","Rudzani Sikhwari","(012) 315 5823","Rudzani.Sikhwari@treasury.gov.za","Nymrot Sholoko",0,"Nymrot.Sholoko@treasury.gov.za",1,1,"3A","PE119",119,"SANAS",3,202627,null,null,null,null,null,null,null,null,null,null,"The Pan South African Language Board",null,null,null,null,null,null,null,null,null,null,null,null,null,null,null,null,null,null,null,null,null,null,null,null,null,null,null,null,null,null,null,null,null,null,null,null,null,null,null,null,null,null,null,null,null,null,"The Pan South African Language Board",null,null,null,null,null,null,null,null,null,null,null,0]
[null,"Extra-Budgetary Institution","Forestry, Fisheries and the Environment","South African National Biodiversity Institute","South African National Biodiversity Institute","Humbelani Ramuedzisi","(012) 315 5585","Humbelani.Ramuedzisi@treasury.gov.za","Nymrot Sholoko",0,"Nymrot.Sholoko@treasury.gov.za",1,1,"3A","PE120",120,"SANBI",3,202627,null,null,null,null,null,null,null,null,null,null,"The Playhouse Company",null,null,null,null,null,null,null,null,null,null,null,null,null,null,null,null,null,null,null,null,null,null,null,null,null,null,null,null,null,null,null,null,null,null,null,null,null,null,null,null,null,null,null,null,null,null,"The Playhouse Company",null,null,null,null,null,null,null,null,null,null,null,1]
[null,"Extra-Budgetary Institution","Electricity and Energy","South African National Energy Development Institute","South African National Energy Development Institute","Nomagugu Madikane","(012) 315 5312","Nomagugu.Madikane@treasury.gov.za","Mpho Ntshole",0,"Mpho.Ntshole@treasury.gov.za",1,1,"3B","PE155",155,"SANEDI",3,202627,null,null,null,null,null,null,null,null,null,null,"The Public Protector of South Africa",null,null,null,null,null,null,null,null,null,null,null,null,null,null,null,null,null,null,null,null,null,null,null,null,null,null,null,null,null,null,null,null,null,null,null,null,null,null,null,null,null,null,null,null,null,null,"The Public Protector of South Africa",null,null,null,null,null,null,null,null,null,null,null,1]
[null,"Public non-financial corporation","Forestry, Fisheries and the Environment","South African National Parks","South African National Parks","Humbelani Ramuedzisi","(012) 315 5585","Humbelani.Ramuedzisi@treasury.gov.za","Nymrot Sholoko",0,"Nymrot.Sholoko@treasury.gov.za",1,1,"3A","PE118",118,"SANPARKS",3,202627,null,null,null,null,null,null,null,null,null,null,"The Social Housing Regulatory Authority",null,null,null,null,null,null,null,null,null,null,null,null,null,null,null,null,null,null,null,null,null,null,null,null,null,null,null,null,null,null,null,null,null,null,null,null,null,null,null,null,null,null,null,null,null,null,"The Social Housing Regulatory Authority",null,null,null,null,null,null,null,null,null,null,null,0]
[null,"Public non-financial corporation","Science, Technology and Innovation","South African National Space Agency","South African National Space Agency","Humbelani Ramuedzisi","(012) 315 5585","Humbelani.Ramuedzisi@treasury.gov.za","Patrick Mbedzi","(012) 315 5912","Patrick.Mbedzi@treasury.gov.za",1,1,"3A","PE233",233,"SANSA",3,202627,null,null,null,null,null,null,null,null,null,null,"The South African Human Rights Commission",null,null,null,null,null,null,null,null,null,null,null,null,null,null,null,null,null,null,null,null,null,null,null,null,null,null,null,null,null,null,null,null,null,null,null,null,null,null,null,null,null,null,null,null,null,null,"The South African Human Rights Commission",null,null,null,null,null,null,null,null,null,null,null,0]
[null,"Extra-Budgetary Institution","Electricity and Energy","South African Nuclear Energy Corporation Limited","South African Nuclear Energy Corporation Limited","Nomagugu Madikane","(012) 315 5312","Nomagugu.Madikane@treasury.gov.za","Mpho Ntshole",0,"Mpho.Ntshole@treasury.gov.za",1,1,2,"PE73",73,"NECSA",1,202627,null,null,null,null,null,null,null,null,null,null,"The South African State Theatre",null,null,null,null,null,null,null,null,null,null,null,null,null,null,null,null,null,null,null,null,null,null,null,null,null,null,null,null,null,null,null,null,null,null,null,null,null,null,null,null,null,null,null,null,null,null,"The South African State Theatre",null,null,null,null,null,null,null,null,null,null,null,0]
[null,"Extra-Budgetary Institution","Communications and Digital Technologies","South African Post Office SOC Ltd","South African Post Office Limited","Keitumetse Motshegwe","(012) 395 6750","Keitumetse.Motshegwe@treasury.gov.za","Mntazi Msiza","(012) 315 5876","Mntazi.Msiza@treasury.gov.za",1,3,2,"PE122",122,"SAPO",3,202627,null,null,null,null,null,null,null,null,null,null,"The Water Services Trading Entity",null,null,null,null,null,null,null,null,null,null,null,null,null,null,null,null,null,null,null,null,null,null,null,null,null,null,null,null,null,null,null,null,null,null,null,null,null,null,null,null,null,null,null,null,null,null,"The Water Services Trading Entity",null,null,null,null,null,null,null,null,null,null,null,0]
[null,"Extra-Budgetary Institution","Higher Education ","South African Qualifications Authority","South African Qualifications Authority","Barileng Khumisi","(012) 406 9069","Barileng.Khumisi@treasury.gov.za","Lionel Botsane","(012) 315 5749","Lionel.Botsane@treasury.gov.za",1,1,"3A","PE123",123,"SAQA",3,202627,null,null,null,null,null,null,null,null,null,null,"Trans-Caledon Tunnel Authority",null,null,null,null,null,null,null,null,null,null,null,null,null,null,null,null,null,null,null,null,null,null,null,null,null,null,null,null,null,null,null,null,null,null,null,null,null,null,null,null,null,null,null,null,null,null,"Trans-Caledon Tunnel Authority",null,null,null,null,null,null,null,null,null,null,null,0]
[null,"Extra-Budgetary Institution","National Treasury","South African Revenue Service","South African Revenue Service","Mokgatla Tema ","(012) 315 5948","Mokgatla.Tema@treasury.gov.za","Patrick Mbedzi","(012) 315 5912","Patrick.Mbedzi@treasury.gov.za",1,1,"3A","PE126",126,"SARS",3,202627,null,null,null,null,null,null,null,null,null,null,"Transport Education and Training Authority",null,null,null,null,null,null,null,null,null,null,null,null,null,null,null,null,null,null,null,null,null,null,null,null,null,null,null,null,null,null,null,null,null,null,null,null,null,null,null,null,null,null,null,null,null,null,"Transport Education and Training Authority",null,null,null,null,null,null,null,null,null,null,null,0]
[null,"Extra-Budgetary Institution","Social Development","South African Social Security Agency","South African Social Security Agency","Lindi Mzankomo","(012) 315 5256","Lindi.Mzankomo@treasury.gov.za","Lionel Botsane","(012) 315 5749","Lionel.Botsane@treasury.gov.za",5,1,"3A","PE129",129,"SASSA",3,202627,null,null,null,null,null,null,null,null,null,null,"uMalusi Council for Quality Assurance in General and Further Education and Training",null,null,null,null,null,null,null,null,null,null,null,null,null,null,null,null,null,null,null,null,null,null,null,null,null,null,null,null,null,null,null,null,null,null,null,null,null,null,null,null,null,null,null,null,null,null,"uMalusi Council for Quality Assurance in General and Further Education and Training",null,null,null,null,null,null,null,null,null,null,null,0]
[null,"Extra-Budgetary Institution","Tourism","South African Tourism","South African Tourism","Humbelani Ramuedzisi","(012) 315 5585","Humbelani.Ramuedzisi@treasury.gov.za","Jabulane Mashele","(012) 395 6560","Jabulane.Mashele@treasury.gov.za",1,1,"3A","PE106",106,"SA TOUR",3,202627,null,null,null,null,null,null,null,null,null,null,"Umgeni Water",null,null,null,null,null,null,null,null,null,null,null,null,null,null,null,null,null,null,null,null,null,null,null,null,null,null,null,null,null,null,null,null,null,null,null,null,null,null,null,null,null,null,null,null,null,null,"Umgeni Water",null,null,null,null,null,null,null,null,null,null,null,0]
[null,"Public non-financial corporation","Forestry, Fisheries and the Environment","South African Weather Service","South African Weather Service","Humbelani Ramuedzisi","(012) 315 5585","Humbelani.Ramuedzisi@treasury.gov.za","Nymrot Sholoko",0,"Nymrot.Sholoko@treasury.gov.za",1,1,"3A","PE130",130,"SAWS",3,202627,null,null,null,null,null,null,null,null,null,null,"uMsunduzi Museum",null,null,null,null,null,null,null,null,null,null,null,null,null,null,null,null,null,null,null,null,null,null,null,null,null,null,null,null,null,null,null,null,null,null,null,null,null,null,null,null,null,null,null,null,null,null,"uMsunduzi Museum",null,null,null,null,null,null,null,null,null,null,null,0]
[null,"Extra-Budgetary Institution","Justice and Constitutional Development","Special Investigating Unit","Special Investigating Unit","Werner  Krause ","(012) 315 5211 ","Werner.Krause@treasury.gov.za","Jabulane Mashele","(012) 395 6560","Jabulane.Mashele@treasury.gov.za",1,1,"3A","PE136",136,"SIU",1,202627,null,null,null,null,null,null,null,null,null,null,"Universal Service and Access Agency of South Africa",null,null,null,null,null,null,null,null,null,null,null,null,null,null,null,null,null,null,null,null,null,null,null,null,null,null,null,null,null,null,null,null,null,null,null,null,null,null,null,null,null,null,null,null,null,null,"Universal Service and Access Agency of South Africa",null,null,null,null,null,null,null,null,null,null,null,0]
[null,"Extra-Budgetary Institution","Mineral and Petroleum Resources ","State Diamond Trader","State Diamond Trader","Nomagugu Madikane","(012) 315 5312","Nomagugu.Madikane@treasury.gov.za","Mpho Ntshole",0,"Mpho.Ntshole@treasury.gov.za",1,1,"3B","PE23",23,"SDT",3,202627,null,null,null,null,null,null,null,null,null,null,"Universal Service and Access Fund",null,null,null,null,null,null,null,null,null,null,null,null,null,null,null,null,null,null,null,null,null,null,null,null,null,null,null,null,null,null,null,null,null,null,null,null,null,null,null,null,null,null,null,null,null,null,"Universal Service and Access Fund",null,null,null,null,null,null,null,null,null,null,null,0]
[null,"Extra-Budgetary Institution","Communications and Digital Technologies","State Information Technology Agency (Pty) Ltd","State Information Technology Agency","Keitumetse Motshegwe","(012) 395 6750","Keitumetse.Motshegwe@treasury.gov.za","Mntazi Msiza","(012) 315 5876","Mntazi.Msiza@treasury.gov.za",1,1,"3A","PE135",135,"SITA",1,202627,null,null,null,null,null,null,null,null,null,null,"Vaal-Orange Catchment Management Agency",null,null,null,null,null,null,null,null,null,null,null,null,null,null,null,null,null,null,null,null,null,null,null,null,null,null,null,null,null,null,null,null,null,null,null,null,null,null,null,null,null,null,null,null,null,null,"Vaal-Orange Catchment Management Agency",null,null,null,null,null,null,null,null,null,null,null,0]
[null,"Extra-Budgetary Institution","Trade, Industry and Competition","Takeover Regulation Panel","Takeover Regulation Panel","Rudzani Sikhwari","(012) 315 5823","Rudzani.Sikhwari@treasury.gov.za","Nymrot Sholoko",0,"Nymrot.Sholoko@treasury.gov.za",1,1,"3A","PE254",254,"TRP",3,202627,null,null,null,null,null,null,null,null,null,null,"War Museum of the Boer Republics",null,null,null,null,null,null,null,null,null,null,null,null,null,null,null,null,null,null,null,null,null,null,null,null,null,null,null,null,null,null,null,null,null,null,null,null,null,null,null,null,null,null,null,null,null,null,"War Museum of the Boer Republics",null,null,null,null,null,null,null,null,null,null,null,1]
[null,"Extra-Budgetary Institution","Science, Technology and Innovation","Technology Innovation Agency","Technology Innovation Agency","Humbelani Ramuedzisi","(012) 315 5585","Humbelani.Ramuedzisi@treasury.gov.za","Samson Mlambo",0,"Samson.Mlambo@treasury.gov.za",1,1,"3A","PE234",234,"TIA",3,202627,null,null,null,null,null,null,null,null,null,null,"Water Research Commission",null,null,null,null,null,null,null,null,null,null,null,null,null,null,null,null,null,null,null,null,null,null,null,null,null,null,null,null,null,null,null,null,null,null,null,null,null,null,null,null,null,null,null,null,null,null,"Water Research Commission",null,null,null,null,null,null,null,null,null,null,null,0]
[null,"Extra-Budgetary Institution","Traditional Affairs","The Commission for the Promotion and Protection of the Rights of Cultural, Religious and Linguistic Communities","The Commission for the Promotion and Protection of the Rights of Cultural, Religious and Linguistic Communities","Portia Thebe","(012) 315 5855","Portia.Thebe@treasury.gov.za","Mpho Ntshole",0,"Mpho.Ntshole@treasury.gov.za",1,1,1,"PE28",28,"CRCCOM",3,202627,null,null,null,null,null,null,null,null,null,null,"Wholesale and Retail Sector Education and Training Authority",null,null,null,null,null,null,null,null,null,null,null,null,null,null,null,null,null,null,null,null,null,null,null,null,null,null,null,null,null,null,null,null,null,null,null,null,null,null,null,null,null,null,null,null,null,null,"Wholesale and Retail Sector Education and Training Authority",null,null,null,null,null,null,null,null,null,null,null,0]
[null,"Extra-Budgetary Institution","Women, Youth and Persons with Disabilities","Commission for Gender Equality","The Commission on Gender Equality","Lindi Mzankomo","(012) 315 5256","Lindi.Mzankomo@treasury.gov.za","Samson Mlambo",0,"Samson.Mlambo@treasury.gov.za",1,1,1,"PE19",19,"CGE",3,202627,null,null,null,null,null,null,null,null,null,null,"William Humphreys Art Gallery",null,null,null,null,null,null,null,null,null,null,null,null,null,null,null,null,null,null,null,null,null,null,null,null,null,null,null,null,null,null,null,null,null,null,null,null,null,null,null,null,null,null,null,null,null,null,"William Humphreys Art Gallery",null,null,null,null,null,null,null,null,null,null,null,0]
[null,"Extra-Budgetary Institution","National Treasury","Cooperatives Banks Development Agency","The Co-operative Banks Development Agency","Mokgatla Tema ","(012) 315 5948","Mokgatla.Tema@treasury.gov.za","Patrick Mbedzi","(012) 315 5912","Patrick.Mbedzi@treasury.gov.za",1,1,"3A","PE157",157,"CBDA",3,202627,null,null,null,null,null,null,null,null,null,null,null,null,null,null,null,null,null,null,null,null,null,null,null,null,null,null,null,null,null,null,null,null,null,null,null,null,null,null,null,null,null,null,null,null,null,null,null,null,null,null,null,null,null,null,null,null,null,null,null,null,null,null,null,null,null,null,null,null,null,0]
[null,"Extra-Budgetary Institution","National Treasury","Financial and Fiscal Commission","The Financial and Fiscal Commission","Mokgatla Tema ","(012) 315 5948","Mokgatla.Tema@treasury.gov.za","Patrick Mbedzi","(012) 315 5912","Patrick.Mbedzi@treasury.gov.za",1,1,1,"PE38",38,"FFC",3,202627,null,null,null,null,null,null,null,null,null,null,null,null,null,null,null,null,null,null,null,null,null,null,null,null,null,null,null,null,null,null,null,null,null,null,null,null,null,null,null,null,null,null,null,null,null,null,null,null,null,null,null,null,null,null,null,null,null,null,null,null,null,null,null,null,null,null,null,null,null,0]
[null,"Extra-Budgetary Institution","Communications and Digital Technologies","Independent Communications Authority of South Africa","The Independent Communications Authority of South Africa","Keitumetse Motshegwe","(012) 395 6750","Keitumetse.Motshegwe@treasury.gov.za","Mpho Ntshole",0,"Mpho.Ntshole@treasury.gov.za",1,1,1,"PE47",47,"ICASA",3,202627,null,null,null,null,null,null,null,null,null,null,null,null,null,null,null,null,null,null,null,null,null,null,null,null,null,null,null,null,null,null,null,null,null,null,null,null,null,null,null,null,null,null,null,null,null,null,null,null,null,null,null,null,null,null,null,null,null,null,null,null,null,null,null,null,null,null,null,null,null,0]
[null,"Extra-Budgetary Institution","Home Affairs","Electoral Commission","The Independent Electoral Commission","Timothy Murwa","(012) 315 5002","Timothy.Murwa@treasury.gov.za","Patrick Mbedzi","(012) 315 5912","Patrick.Mbedzi@treasury.gov.za",1,1,1,"PE50",50,"IEC",3,202627,null,null,null,null,null,null,null,null,null,null,null,null,null,null,null,null,null,null,null,null,null,null,null,null,null,null,null,null,null,null,null,null,null,null,null,null,null,null,null,null,null,null,null,null,null,null,null,null,null,null,null,null,null,null,null,null,null,null,null,null,null,null,null,null,null,null,null,null,null,0]
[null,"Extra-Budgetary Institution","Cooperative Governance","Municipal Demarcation Board","The Municipal Demarcation Board","Portia Thebe","(012) 315 5855","Portia.Thebe@treasury.gov.za","Mpho Ntshole",0,"Mpho.Ntshole@treasury.gov.za",1,1,1,"PE154",154,"MDB",3,202627,null,null,null,null,null,null,null,null,null,null,null,null,null,null,null,null,null,null,null,null,null,null,null,null,null,null,null,null,null,null,null,null,null,null,null,null,null,null,null,null,null,null,null,null,null,null,null,null,null,null,null,null,null,null,null,null,null,null,null,null,null,null,null,null,null,null,null,null,null,0]
[null,"Extra-Budgetary Institution","Electricity and Energy","National Radioactive Waste Disposal Institute","The National Radioactive Waste Disposal Institute","Nomagugu Madikane","(012) 315 5312","Nomagugu.Madikane@treasury.gov.za","Mpho Ntshole",0,"Mpho.Ntshole@treasury.gov.za",1,1,"3A","PE236",236,"NRWDI",3,202627,null,null,null,null,null,null,null,null,null,null,null,null,null,null,null,null,null,null,null,null,null,null,null,null,null,null,null,null,null,null,null,null,null,null,null,null,null,null,null,null,null,null,null,null,null,null,null,null,null,null,null,null,null,null,null,null,null,null,null,null,null,null,null,null,null,null,null,null,null,0]
[null,"Extra-Budgetary Institution","Higher Education ","The National Skills Fund","The National Skills Fund","Barileng Khumisi","(012) 406 9069","Barileng.Khumisi@treasury.gov.za","Lionel Botsane","(012) 315 5749","Lionel.Botsane@treasury.gov.za",2,1,"3A","PE89",89,"NSF",3,202627,null,null,null,null,null,null,null,null,null,null,null,null,null,null,null,null,null,null,null,null,null,null,null,null,null,null,null,null,null,null,null,null,null,null,null,null,null,null,null,null,null,null,null,null,null,null,null,null,null,null,null,null,null,null,null,null,null,null,null,null,null,null,null,null,null,null,null,null,null,0]
[null,"Extra-Budgetary Institution","Sport, Arts and Culture","Pan South African Language Board","The Pan South African Language Board","Judy Naidoo","(012) 315 5269","Judy.Naidoo@treasury.gov.za","Vuyo Ngqukumba","(012) 315 5760","Vuyo.Ngqukumba@treasury.gov.za",1,1,1,"PE94",94,"PANSALB",3,202627,null,null,null,null,null,null,null,null,null,null,null,null,null,null,null,null,null,null,null,null,null,null,null,null,null,null,null,null,null,null,null,null,null,null,null,null,null,null,null,null,null,null,null,null,null,null,null,null,null,null,null,null,null,null,null,null,null,null,null,null,null,null,null,null,null,null,null,null,null,0]
[null,"Extra-Budgetary Institution","Sport, Arts and Culture","The Playhouse Company","The Playhouse Company","Judy Naidoo","(012) 315 5269","Judy.Naidoo@treasury.gov.za","Vuyo Ngqukumba","(012) 315 5760","Vuyo.Ngqukumba@treasury.gov.za",1,3,"3A","PE198",198,"Playhouse",3,202627,null,null,null,null,null,null,null,null,null,null,null,null,null,null,null,null,null,null,null,null,null,null,null,null,null,null,null,null,null,null,null,null,null,null,null,null,null,null,null,null,null,null,null,null,null,null,null,null,null,null,null,null,null,null,null,null,null,null,null,null,null,null,null,null,null,null,null,null,null,0]
[null,"Extra-Budgetary Institution","Justice and Constitutional Development","Public Protector of South Africa","The Public Protector of South Africa","Elvis Ramafamba","(012) 315 5204","Elvis.Ramafamba @treasury.gov.za","Nymrot Sholoko",0,"Nymrot.Sholoko@treasury.gov.za",1,1,1,"PE100",100,"PPSA",3,202627,null,null,null,null,null,null,null,null,null,null,null,null,null,null,null,null,null,null,null,null,null,null,null,null,null,null,null,null,null,null,null,null,null,null,null,null,null,null,null,null,null,null,null,null,null,null,null,null,null,null,null,null,null,null,null,null,null,null,null,null,null,null,null,null,null,null,null,null,null,0]
[null,"Extra-Budgetary Institution","Human Settlements","Social Housing Regulatory Authority","The Social Housing Regulatory Authority","Lindiwe Ngcongwane","(012) 315 5357","Lindiwe.Ngcongwane@treasury.gov.za","Jabulane Mashele","(012) 395 6560","Jabulane.Mashele@treasury.gov.za",1,1,"3A","PE228",228,"SHRA",3,202627,null,null,null,null,null,null,null,null,null,null,null,null,null,null,null,null,null,null,null,null,null,null,null,null,null,null,null,null,null,null,null,null,null,null,null,null,null,null,null,null,null,null,null,null,null,null,null,null,null,null,null,null,null,null,null,null,null,null,null,null,null,null,null,null,null,null,null,null,null,0]
[null,"Extra-Budgetary Institution","Justice and Constitutional Development","South African Human Rights Commission","The South African Human Rights Commission","Elvis Ramafamba","(012) 315 5204","Elvis.Ramafamba @treasury.gov.za","Nymrot Sholoko",0,"Nymrot.Sholoko@treasury.gov.za",1,1,1,"PE45",45,"SAHRC",3,202627,null,null,null,null,null,null,null,null,null,null,null,null,null,null,null,null,null,null,null,null,null,null,null,null,null,null,null,null,null,null,null,null,null,null,null,null,null,null,null,null,null,null,null,null,null,null,null,null,null,null,null,null,null,null,null,null,null,null,null,null,null,null,null,null,null,null,null,null,null,0]
[null,"Public non-financial corporation","Sport, Arts and Culture","Renaissance Theatre","The South African State Theatre","Judy Naidoo","(012) 315 5269","Judy.Naidoo@treasury.gov.za","Vuyo Ngqukumba","(012) 315 5760","Vuyo.Ngqukumba@treasury.gov.za",1,3,"3A","PE204",204,"Stateth",3,202627,null,null,null,null,null,null,null,null,null,null,null,null,null,null,null,null,null,null,null,null,null,null,null,null,null,null,null,null,null,null,null,null,null,null,null,null,null,null,null,null,null,null,null,null,null,null,null,null,null,null,null,null,null,null,null,null,null,null,null,null,null,null,null,null,null,null,null,null,null,0]
[null,"Public non-financial corporation","Water and Sanitation","The Water Services Trading Entity","The Water Services Trading Entity","Iqbal Mahomed Alli","(012) 315 5809","Iqbal.Mahomedalli@treasury.gov.za","Mntazi Msiza","(012) 315 5876","Mntazi.Msiza@treasury.gov.za",1,1,"Not listed","PE147",147,"WTE",1,202627,null,null,null,null,null,null,null,null,null,null,null,null,null,null,null,null,null,null,null,null,null,null,null,null,null,null,null,null,null,null,null,null,null,null,null,null,null,null,null,null,null,null,null,null,null,null,null,null,null,null,null,null,null,null,null,null,null,null,null,null,null,null,null,null,null,null,null,null,null,0]
[null,"Extra-Budgetary Institution","Water and Sanitation","Trans-Caledon Tunnel Authority","Trans-Caledon Tunnel Authority","Iqbal Mahomed Alli","(012) 315 5809","Iqbal.Mahomedalli@treasury.gov.za","Mntazi Msiza","(012) 315 5876","Mntazi.Msiza@treasury.gov.za",1,1,2,"PE137",137,"TCTA",1,202627,null,null,null,null,null,null,null,null,null,null,null,null,null,null,null,null,null,null,null,null,null,null,null,null,null,null,null,null,null,null,null,null,null,null,null,null,null,null,null,null,null,null,null,null,null,null,null,null,null,null,null,null,null,null,null,null,null,null,null,null,null,null,null,null,null,null,null,null,null,0]
[null,"Extra-Budgetary Institution","Transport","Transnet Limited","Transnet Limited","Luyolo Ntlangula","(012) 315 5571","Luyolo.Ntlangula@treasury.gov.za","Samson Mlambo",0,"Samson.Mlambo@treasury.gov.za",1,3,2,"PE196",196,"Transnet",3,202627,null,null,null,null,null,null,null,null,null,null,null,null,null,null,null,null,null,null,null,null,null,null,null,null,null,null,null,null,null,null,null,null,null,null,null,null,null,null,null,null,null,null,null,null,null,null,null,null,null,null,null,null,null,null,null,null,null,null,null,null,null,null,null,null,null,null,null,null,null,0]
[null,"Public non-financial corporation","Higher Education ","Transport Education and Training Authority","Transport Education and Training Authority","Barileng Khumisi","(012) 406 9069","Barileng.Khumisi@treasury.gov.za","Lionel Botsane","(012) 315 5749","Lionel.Botsane@treasury.gov.za",2,3,"3A","PE205",205,"TETA",3,202627,null,null,null,null,null,null,null,null,null,null,null,null,null,null,null,null,null,null,null,null,null,null,null,null,null,null,null,null,null,null,null,null,null,null,null,null,null,null,null,null,null,null,null,null,null,null,null,null,null,null,null,null,null,null,null,null,null,null,null,null,null,null,null,null,null,null,null,null,null,0]
[null,"Extra-Budgetary Institution","Basic Education","Umalusi Council for Quality Assurance in General and Further Education and Training","uMalusi Council for Quality Assurance in General and Further Education and Training","Spencer Janari","(012) 406 9069","Spencer.Janari@treasury.gov.za","Lionel Botsane","(012) 315 5749","Lionel.Botsane@treasury.gov.za",1,1,"3A","PE142",142,"uMalusi",3,202627,null,null,null,null,null,null,null,null,null,null,null,null,null,null,null,null,null,null,null,null,null,null,null,null,null,null,null,null,null,null,null,null,null,null,null,null,null,null,null,null,null,null,null,null,null,null,null,null,null,null,null,null,null,null,null,null,null,null,null,null,null,null,null,null,null,null,null,null,null,0]
[null,"Social Security Fund","Water and Sanitation","Umngeni Water Board","Umngeni Water","Iqbal Mahomed Alli","(012) 315 5809","Iqbal.Mahomedalli@treasury.gov.za","Mntazi Msiza","(012) 315 5876","Mntazi.Msiza@treasury.gov.za",1,3,"3B","PE207",207,"Umgeni",3,202627,null,null,null,null,null,null,null,null,null,null,null,null,null,null,null,null,null,null,null,null,null,null,null,null,null,null,null,null,null,null,null,null,null,null,null,null,null,null,null,null,null,null,null,null,null,null,null,null,null,null,null,null,null,null,null,null,null,null,null,null,null,null,null,null,null,null,null,null,null,0]
[null,"Extra-Budgetary Institution","Sport, Arts and Culture","Voortrekker Museum","uMsunduzi Museum","Judy Naidoo","(012) 315 5269","Judy.Naidoo@treasury.gov.za","Vuyo Ngqukumba","(012) 315 5760","Vuyo.Ngqukumba@treasury.gov.za",1,3,"3A","PE208",208,"VoortrekerM",3,202627,null,null,null,null,null,null,null,null,null,null,null,null,null,null,null,null,null,null,null,null,null,null,null,null,null,null,null,null,null,null,null,null,null,null,null,null,null,null,null,null,null,null,null,null,null,null,null,null,null,null,null,null,null,null,null,null,null,null,null,null,null,null,null,null,null,null,null,null,null,0]
[null,"Extra-Budgetary Institution","Employment and Labour","Unemployment Insurance Fund","Unemployment Insurance Fund","Judy Naidoo","(012) 315 5269","Judy.Naidoo@treasury.gov.za","Vuyo Ngqukumba","(012) 315 5760","Vuyo.Ngqukumba@treasury.gov.za",4,4,"3A","PE141",141,"UIF",3,202627,null,null,null,null,null,null,null,null,null,null,null,null,null,null,null,null,null,null,null,null,null,null,null,null,null,null,null,null,null,null,null,null,null,null,null,null,null,null,null,null,null,null,null,null,null,null,null,null,null,null,null,null,null,null,null,null,null,null,null,null,null,null,null,null,null,null,null,null,null,0]
[null,"Public non-financial corporation","Communications and Digital Technologies","Universal Service and Access Agency of South Africa","Universal Service and Access Agency of South Africa","Keitumetse Motshegwe","(012) 395 6750","Keitumetse.Motshegwe@treasury.gov.za","Mntazi Msiza","(012) 315 5876","Mntazi.Msiza@treasury.gov.za",1,1,"3A","PE143",143,"USAASA",3,202627,null,null,null,null,null,null,null,null,null,null,null,null,null,null,null,null,null,null,null,null,null,null,null,null,null,null,null,null,null,null,null,null,null,null,null,null,null,null,null,null,null,null,null,null,null,null,null,null,null,null,null,null,null,null,null,null,null,null,null,null,null,null,null,null,null,null,null,null,null,0]
[null,"Extra-Budgetary Institution","Communications and Digital Technologies","Universal Service and Access Fund","Universal Service and Access Fund","Keitumetse Motshegwe","(012) 395 6750","Keitumetse.Motshegwe@treasury.gov.za","Mntazi Msiza","(012) 315 5876","Mntazi.Msiza@treasury.gov.za",1,1,"3A","PE144",144,"USAF",3,202627,null,null,null,null,null,null,null,null,null,null,null,null,null,null,null,null,null,null,null,null,null,null,null,null,null,null,null,null,null,null,null,null,null,null,null,null,null,null,null,null,null,null,null,null,null,null,null,null,null,null,null,null,null,null,null,null,null,null,null,null,null,null,null,null,null,null,null,null,null,0]
[null,"Extra-Budgetary Institution","Water and Sanitation","Vaal-Orange Catchment Management Agency","Vaal-Orange Catchment Management Agency","Iqbal Mahomed Alli","(012) 315 5809","Iqbal.Mahomedalli@treasury.gov.za","Mntazi Msiza","(012) 315 5876","Mntazi.Msiza@treasury.gov.za",1,2,"3A","PE257",257,"VOCMA",3,202627,null,null,null,null,null,null,null,null,null,null,null,null,null,null,null,null,null,null,null,null,null,null,null,null,null,null,null,null,null,null,null,null,null,null,null,null,null,null,null,null,null,null,null,null,null,null,null,null,null,null,null,null,null,null,null,null,null,null,null,null,null,null,null,null,null,null,null,null,null,0]
[null,"Extra-Budgetary Institution","Sport, Arts and Culture","War Museum of the Boer Republics","War Museum of the Boer Republics","Judy Naidoo","(012) 315 5269","Judy.Naidoo@treasury.gov.za","Vuyo Ngqukumba","(012) 315 5760","Vuyo.Ngqukumba@treasury.gov.za",1,3,"3A","PE210",210,"WarM",3,202627,null,null,null,null,null,null,null,null,null,null,null,null,null,null,null,null,null,null,null,null,null,null,null,null,null,null,null,null,null,null,null,null,null,null,null,null,null,null,null,null,null,null,null,null,null,null,null,null,null,null,null,null,null,null,null,null,null,null,null,null,null,null,null,null,null,null,null,null,null,0]
[null,"Extra-Budgetary Institution","Water and Sanitation","Water Research Commission","Water Research Commission","Iqbal Mahomed Alli","(012) 315 5809","Iqbal.Mahomedalli@treasury.gov.za","Mntazi Msiza","(012) 315 5876","Mntazi.Msiza@treasury.gov.za",1,1,"3A","PE148",148,"WRC",1,202627,null,null,null,null,null,null,null,null,null,null,null,null,null,null,null,null,null,null,null,null,null,null,null,null,null,null,null,null,null,null,null,null,null,null,null,null,null,null,null,null,null,null,null,null,null,null,null,null,null,null,null,null,null,null,null,null,null,null,null,null,null,null,null,null,null,null,null,null,null,0]
[null,"Extra-Budgetary Institution","Higher Education ","Wholesale and Retail Sector Education and Training Authority","Wholesale and Retail Sector Education and Training Authority","Barileng Khumisi","(012) 406 9069","Barileng.Khumisi@treasury.gov.za","Lionel Botsane","(012) 315 5749","Lionel.Botsane@treasury.gov.za",2,3,"3A","PE209",209,"WRSETA",3,202627,null,null,null,null,null,null,null,null,null,null,null,null,null,null,null,null,null,null,null,null,null,null,null,null,null,null,null,null,null,null,null,null,null,null,null,null,null,null,null,null,null,null,null,null,null,null,null,null,null,null,null,null,null,null,null,null,null,null,null,null,null,null,null,null,null,null,null,null,null,0]
[null,"Extra-Budgetary Institution","Sport, Arts and Culture","William Humphreys Art Gallery","William Humphreys Art Gallery","Judy Naidoo","(012) 315 5269","Judy.Naidoo@treasury.gov.za","Vuyo Ngqukumba","(012) 315 5760","Vuyo.Ngqukumba@treasury.gov.za",1,3,"3A","PE211",211,"WilliamH",3,202627,null,null,null,null,null,null,null,null,null,null,null,null,null,null,null,null,null,null,null,null,null,null,null,null,null,null,null,null,null,null,null,null,null,null,null,null,null,null,null,null,null,null,null,null,null,null,null,null,null,null,null,null,null,null,null,null,null,null,null,null,null,null,null,null,null,null,null,null,null,0]
[null,"Extra-Budgetary Institution","Sport, Arts and Culture","Performing arts institutions","ZArts Institutions Consolidation","Judy Naidoo","(012) 315 5269","Judy.Naidoo@treasury.gov.za","Vuyo Ngqukumba","(012) 315 5760","Vuyo.Ngqukumba@treasury.gov.za",1,1,"3A","PE149",149,"Zarts",3,202627,null,null,null,null,null,null,null,null,null,null,null,null,null,null,null,null,null,null,null,null,null,null,null,null,null,null,null,null,null,null,null,null,null,null,null,null,null,null,null,null,null,null,null,null,null,null,null,null,null,null,null,null,null,null,null,null,null,null,null,null,null,null,null,null,null,null,null,null,null,0]
[null,"Extra-Budgetary Institution","Sport, Arts and Culture","Heritage Institutions","ZCultural Institutions Consolidation","Judy Naidoo","(012) 315 5269","Judy.Naidoo@treasury.gov.za","Vuyo Ngqukumba","(012) 315 5760","Vuyo.Ngqukumba@treasury.gov.za",1,1,"3A","PE150",150,"Zcultural",3,202627,null,null,null,null,null,null,null,null,null,null,null,null,null,null,null,null,null,null,null,null,null,null,null,null,null,null,null,null,null,null,null,null,null,null,null,null,null,null,null,null,null,null,null,null,null,null,null,null,null,null,null,null,null,null,null,null,null,null,null,null,null,null,null,null,null,null,null,null,null,0]
[null,"Extra-Budgetary Institution","Sport, Arts and Culture","Libraries","ZLibraries Consolidation","Judy Naidoo","(012) 315 5269","Judy.Naidoo@treasury.gov.za","Vuyo Ngqukumba","(012) 315 5760","Vuyo.Ngqukumba@treasury.gov.za",1,1,"3A","PE151",151,"Zlibraries",3,202627,null,null,null,null,null,null,null,null,null,null,null,null,null,null,null,null,null,null,null,null,null,null,null,null,null,null,null,null,null,null,null,null,null,null,null,null,null,null,null,null,null,null,null,null,null,null,null,null,null,null,null,null,null,null,null,null,null,null,null,null,null,null,null,null,null,null,null,null,null,0]
[null,"Public non-financial corporation","Higher Education ","Sector education and training authorities","ZSETAs Consolidation","Barileng Khumisi","(012) 406 9069","Barileng.Khumisi@treasury.gov.za","Lionel Botsane","(012) 315 5749","Lionel.Botsane@treasury.gov.za",2,1,"3A","PE152",152,"ZSETAS",3,202627,null,null,null,null,null,null,null,null,null,null,null,null,null,null,null,null,null,null,null,null,null,null,null,null,null,null,null,null,null,null,null,null,null,null,null,null,null,null,null,null,null,null,null,null,null,null,null,null,null,null,null,null,null,null,null,null,null,null,null,null,null,null,null,null,null,null,null,null,null,0]
[null,"Public non-financial corporation","Water and Sanitation","Consolidated Water Boards","ZWater Boards Consolidation","Iqbal Mahomed Alli","(012) 315 5809","Iqbal.Mahomedalli@treasury.gov.za","Mntazi Msiza","(012) 315 5876","Mntazi.Msiza@treasury.gov.za",1,1,"3B","PE153",153,"Zwaterboards",3,202627]

{"sheet":"Information","index":1,"n_rows":28,"n_cols":3,"rows_kept":28,"cut":false,"hidden":false,"merged":[[21,0,21,2]]}
[]
[]
[]
[]
[]
[]
[]
[]
[]
[]
[]
[]
["Name of Entity",null,"Name of Compiling Officer"]
[{"$f":"[1]Information!$A$14","v":"South African Revenue Service"},null,"x"]
["Department",null,"Telephone Number of Compiling Officer"]
[{"$f":"Settings!C2","v":"National Treasury"},null,"x"]
["Sector PSCC",null,"E-Mail Address of Compiling Officer"]
[{"$f":"Settings!B2","v":"Extra-Budgetary Institution"},null,"x"]
["PFMA",null,"File should be submitted to..."]
[{"$f":"Settings!N2","v":"3A"},null,"datafilepe@treasury.gov.za"]
["Mandate of the entity:"]
[{"$f":"[1]Information!$A$23","v":"SARS’s mandate is to:\nCollect all revenues due.\nEnsure optimal compliance with Tax, Customs and Excise legislation.\nProvide a customs and excise service that will facilitate legitimate trade as well as protect our economy and society."}]
[]
[]
["Budget Examiner:",null,"Technical Assistant:"]
[{"$f":"Settings!F2","v":"Mokgatla Tema "},null,{"$f":"Settings!I2","v":"Patrick Mbedzi"}]
[{"$f":"Settings!G2","v":"(012) 315 5948"},null,{"$f":"Settings!J2","v":"(012) 315 5912"}]
[{"$f":"Settings!H2","v":"Mokgatla.Tema@treasury.gov.za"},null,{"$f":"Settings!K2","v":"Patrick.Mbedzi@treasury.gov.za"}]

{"sheet":"Technical Guidelines","index":2,"n_rows":335,"n_cols":6,"rows_kept":335,"cut":false,"hidden":false,"merged":[]}
[]
[]
[]
[null,null,null,null,null,"Completing the public entities' budget template"]
[]
[null,null,null,null,null,"This spread sheet is intended to assist the data compilers when completing the budget template to provide background on each sheet to be completed and some relevant notes on items to consider when preparing data for the budget.  Any changes effected on the template will be explained in the guidelines below: "]
[]
[null,null,null,null,null,"Changes effected on the template"]
[null,null,null,null,null,"Important general notes to consider"]
[null,null,null,null,null,"Admin and Objectives/Activities 2 to 15 contain the expenditure part of the Statement of Financial Performance as well as the Performance Indicators relating to each objective. Cells Q11-Q25 on all these Objectives/Activities contain a drop down to decide whether the performance indicators should be included in the Pub Table or not. Cells F45 - F97  contain a detailed goods and services list. The \"please specify\" rows have been removed from the expenditure sheets.  Instead there is a list  of goods and services items the entity can make use of to capture their expenditure.  In the event that the entity is of the view that the provided items do not cater fully to their expenditure type, they should contact the technical assistant for further guidance\"."]
[null,null,null,null,null,"Please note there's conditional formatting to monitor the completion of the outer year. If the outer year is not fully completed the total will be highlighted in Orange. The compiler is advised to fully complete the outer year."]
[]
[null,null,null,null,null,"Sheets: Revenue, Objectives, Cash Flow, Financial Position and infrastructure are prepopulated with data submitted in the previous budget process."]
[]
[null,null,null,null,null,"The Hide and Unhide Rows buttons are to be used to hide unused rows or unhide rows."]
[]
[null,null,null,null,null,"The Do's and Dont's"]
[]
[null,null,null,null,null,"ONLY the darker blue-shaded areas are to be completed."]
[null,null,null,null,null,"All the white areas are FORMULA-DRIVEN and should NEVER be overwritten."]
[null,null,null,null,null,"The light blue areas are of DROP DOWN LISTS and should be used to select the relevant items from the list.  Entities should REFRAIN from copying data elsewhere and pasting it here."]
[null,null,null,null,null,"Column G in Financial Position, Cash Flow and Revenue sheets contain numbers that are of hyperlinks that navigate one to the definitions sheet for explanation of the specific item."]
[]
[null,null,null,null,null,"Information to understand about logistics of the template"]
[null,null,null,null,null,"All sheets should contain information from the audited history years, the budget information for the current year and the budget projections for the MTEF years."]
[null,null,null,null,null,"The first year of history numbers that are pre-populated (e.g. for Revenue and Financial Position etc.) will be locked and no changes will be allowed unless there has been restatement of numbers. "]
[null,null,null,null,null,"The current year data (2025/26) and MTEF years' data may be revised where applicable and the outer year should be completed with data  i.e. 2028/29."]
[]
[null,null,null,null,null,"Analysis issues possible for queries if not attended to"]
[]
[null,null,null,null,null,"PFMA schedule 3A entities are NOT allowed to budget for deficit unless a prior approval has been granted to show deficits.  This will be queried if approval was not granted."]
[null,null,null,null,null,"Accumulated surplus/deficit line in the current year should reflect the increment or depletion of the balance by the surplus or deficit made by the entity in the Income Statement."]
[null,null,null,null,null,"The Cash and cash equivalents balance in the financial position should also reflect the movements of increases or decreases in the cash and cash equivalents shown on the Cash Flow Statement."]
[null,null,null,null,null,"Projections of interest revenue and interest expenses should be in line with the trends shown on projections for Investments/Cash and cash equivalents and Borrowings respectively."]
[null,null,null,null,null,"All highlighted trends on the TrendsAnalysis sheet should be explained in column O of the same sheet, else a query will be raised."]
[null,null,null,null,null,"All highlighted trends on the CashFlowDiff sheet should be explained in column O of the same sheet, else a query will be raised."]
[null,null,null,null,null,"Chronological order of sheets on the template"]
[]
[null,null,null,null,null,"The Blue Tabs - reference sheets"]
[null,null,null,null,null,"Information sheet"]
[]
[null,null,null,null,null,"The purpose of this sheet is for the compiler to provide National Treasury with their contact details and to verify that the entity name is correct. The contact details of compilers are used for ease of reference when there are queries in the database.  Also contained on this sheet are the contact details of the Treasury's Budget Examiner who should be contacted with regards to budget allocation issues  and the Technical Assistant who should be contacted with regards to complications on the template. "]
[]
[null,null,null,null,null,"Technical Guidelines"]
[]
[null,null,null,null,null,"The purpose of this sheet is to assist the data compiler with the background of each sheet to be completed and to provide some relevant notes on things to consider in preparing data for the template. This sheet should be read carefully for ease of completion of the template."]
[]
[null,null,null,null,null,"Economic Definitions"]
[]
[null,null,null,null,null,"This sheet contains all definitions of the economic classification found on the template. The definitions are hyperlinked from the sheets being completed. These definitions assist in determining how to correctly classify each financial item ."]
[]
[null,null,null,null,null,"The Purple Tabs - financial data sheets"]
[]
[null,null,null,null,null,"Note that the Statement of Financial Performance is broken down into different sheets. The sheets from Admin to sheet 15 are what is called objectives of the entity and this is where the expenses part of the Statement of Financial Performance sheet is reflected. Performance Indicators tables are also included at the top of each sheet.  Details of the split are detailed below:"]
[]
[null,null,null,null,null,"Revenue"]
[]
[null,null,null,null,null,"The Revenue sheet is the normal income part of the Statement of financial perfomance and has been separated from the expenditure part. Note the checks at the bottom of the sheet that check the surplus/deficit line of what the total revenue less the total expenditure will be against what is in the Annual Report.  The blue shaded areas are still the areas to be completed and not the white ones."]
[]
[null,null,null,null,null,"Admin"]
[null,null,null,null,null,"Admin sheet is what is also called objective 1 of the entity.  This sheet should be used to capture only the information relating to the Administration Objective of the entity.  The Administration objective should include the following:\n\nEntity Management which includes the salary, allowances and other support costs of the Board and the CEO and the management of the CEO’s office and the Board. \nCorporate Services that include all costs related to staff in the Human Resources, Legal Services, Communications, Information Technology and Other support services (based on the entity’s decision).\nFinance Administration which are all costs related to staff in Finance including the CFO and the management of the Office of the Chief Financial Officer. \nInternal Audit recognising that the reporting channel for the Head of Internal Audit is not through the CFO but directly to the CEO.\nOffice Accommodation which includes activities and costs relating to the provision of office accommodation functions for the entity. Where office accommodation functions relating to other specific objectives of the entity can be identified, they should be assigned to the relevant objective.\nResidential accommodation that includes activities and costs relating to the provision of housing to employees of the entity. (Note: This does not include the residential benefits of the Accounting Authority).\n                                                          \nSource: Guidelines on Budget Programmes (National Treasury. 2010.) Content has been amended to suit public entities"]
[]
[null,null,null,null,null,"The first table to complete on this sheet is the Performance Indicators  table.  The performance indicators to be completed on this table are only those that relate to the Administration Objective of the entity.  The entity should select whether they would like the indicators to be included in the Pub Table or not.  The second table that follows is the detail of the expenditure that relates to the Admin objective broken down into economic classification. The entity should then reflect all expenses relating to the Admin objective and the total for all other objectives should balance to the total expenditure of the objective."]
[null,null,null,null,null,"New performance indicators to the APPs and changes to old performance indicators must be communicated with the budget examiners before they are included for the purposes of this template."]
[null,null,null,null,null,"Objectives 2, 3, 4 .... 15"]
[null,null,null,null,null,"Objective Sheets  from sheet 2 to 15 are exactly the same as the Admin sheet. These should contain the objectives/activities of the entity on rows 37 of each objective, followed by the Performance Indicators. Relevant balances should be made in each i.e row 142."]
[null,null,null,null,null," "]
[null,null,null,null,null,"Cash Flow"]
[null,null,null,null,null,"The Cash Flow Sheet  reflects the Direct Method of the cash flow.  However, this method is more detailed than as shown on the Annual Report. \nThe sheet will be prepopulated with available data and the entity should provide a breakdown of its operating cash flow activities and should balance to the numbers shown on the Annual Report by checking against the balances on row 11.  The entity is required to provide this detail fully."]
[]
[null,null,null,null,null,"Financial Position"]
[null,null,null,null,null,"This sheet reflects the assets, liabilities and equity of the entity and the information should balance to the Annual Report in the historical numbers.  The checks on row 108-109 should be used to ensure the balance."]
[]
[null,null,null,null,null,"Related Party Revenue"]
[null,null,null,null,null,"This sheet is to be used to reflect all related party revenue consisting of receipts from sales of goods and services EXCEPT transfer receipts from government institutions. This means that the entity must be doing business with the government institution and receiving payment for such goods and/or services. Transactions with municipalities have been excluded from this sheet because Local Government is not yet included in the government consolidated account. The compiler should use the drop down list to select the relevant categories in this sheet and should refrain from copying the data elsewhere and pasting it on the sheet."]
[null,null,null,null,null,"Please note that the Related Party Revenue sheet is meant to source cash figures. The reported figures should therefore correspond to the Sales by Market Establishment line on the Cash Flow sheet. If for example an entity shows a total of R500 000 for sales by market establishment on the cash flow sheet, the question that should be answered in order to complete this sheet is, how much of the R500 000 is received from other government units (except local government). "]
[null,null,null,null,null,"On column H, the entity is required to indicate the exact transaction that took place resulting into the particular related party revenue. This should be done by selecting a relevant item from the drop down list provided. The question to ask here would be, what exactly did the entity sell to the other government unit that resulted in the receipt of this revenue? eg computer services."]
[]
[null,null,null,null,null,"Personnel"]
[null,null,null,null,null,"The personnel sheet should be used to record all costs pertaining to employees of an entity. The guidelines for estimating this sheet are in the main budget guideline. The entity is urged to read through the main guideline as it sets out what the overall budget seeks to address and all the main issues to be considered when compiling budgets over the MTEF. For expenditure on compensation, the total should add up to the total compensation on the ENE Summary. Finance officials together with HR officials should work together to complete this sheet. All blue shaded columns should be completed and the light blue drop down lists should be used to select the relevant items required."]
[]
[null,null,null,null,null,"DEFINITIONS"]
[null,null,null,null,null,"Approved Establishment refers to the number of employment positions approved by the Entity's Executive Authority."]
[null,null,null,null,null,"Funded Establishment refers to the number of employment positions for which provision is made in the budget."]
[null,null,null,null,null,"Permanent refers to employees with work contracts of unlimited duration."]
[null,null,null,null,null,"Temporary/Contract refers to employees who are employed for a fixed period of time (e.g. 6 months, 2 years, etc.)"]
[null,null,null,null,null,"Guaranteed Package refers to the total of fixed and regular income/benefit items and employer contributions (if any) to Employee Benefit Funds (Retirement, Medical and Group Life). (i.e., Fixed Pay)"]
[null,null,null,null,null,"Performance Bonus refers to the additional compensation paid to an employee for performance that has exceeded expectations. This is typically awarded after a performance appraisal and analysis of projects completed by the employee over a specific period of time. (i.e., Variable Pay)"]
[null,null,null,null,null,"Other (components of remuneration) refers to the Total Cost to Company less Guaranteed Package less Performance Bonus. E.g. overtime payments (i.e., Variable Pay)"]
[null,null,null,null,null,"STEPS TO BE FOLLOWED"]
[null,null,null,null,null,"Column F (Category) - Select the relevant option (whether permanent or temporary/contract - as per definitions above) for a certain group of employees belonging to the salary level in Column G."]
[null,null,null,null,null,"Column G (Salary Level) - Select the relevant salary level starting with the lowest. DO NOT ADD OR DELETE ANY INFORMATION IN THIS COLUMN."]
[null,null,null,null,null,"Column I (Occupation) - Select the occupation which best describes the officials in the salary level that you have selected. The intention is to see the type of skills that the organisation has and not necessarily the functional job titles of individual employees. If none is relevant, then specify the relevant occupation by typing it in."]
[null,null,null,null,null,"Column J (Components of Remuneration) - Select the relevant component of remuneration, starting with the Guaranteed Package followed by the Performance Bonus and then Other (as per definitions above). DO NOT ADD OR DELETE ANY INFORMATION IN THIS COLUMN."]
[null,null,null,null,null,"Column K (Number of posts filled on funded establishment) - Include only the number of posts that were filled and funded on the approved establishment."]
[null,null,null,null,null,"Column L (Expenditure on posts filled on funded establishment) - Include the expenditure on the above-mentioned posts."]
[null,null,null,null,null,"Column M (Unit costs) - Unit costs of the above-mentioned posts. This column is formula driven."]
[null,null,null,null,null,"Column N (Number of posts on approved establishment) – This includes both filled and vacant posts and may or may not be funded. This is as approved by the Entity’s Executive Authority."]
[null,null,null,null,null,"Column O (Number of funded posts (establishment) – This is a projection from April 2023 to end of March 2024 and includes both filled and vacant posts which are funded."]
[null,null,null,null,null,"Column P (Number of posts filled on funded establishment) - This is a projection of posts that will be filled by the end of March 2024 on the funded establishment."]
[null,null,null,null,null,"Column Q (Expenditure on posts filled on funded establishment) - Expenditure on the above-mentioned posts."]
[null,null,null,null,null,"Column R (Unit costs) - Unit costs of the above-mentioned posts. This column is formula driven."]
[null,null,null,null,null,"Columns S to AA - Projections over the MTEF."]
[]
[null,null,null,null,null,"Check line: "]
[null,null,null,null,null,"All figures must be rounded to the nearest thousand and there should be no decimals. Ensure that the CHECKS row show a dash for each of the financial years. If not, look for errors in the captured data - there may be decimals in the figures or some other error."]
[]
[null,null,null,null,null,"Expend Summary"]
[null,null,null,null,null,"The Expenditure summary sheet is formula driven and contains all expenditures from all 15 objectives that the entity would have completed. This is where the entity can verify if its budget is allocated appropriately in the different objectives to sum the total budget allocated and also to check the status of its expenditure in total.  All the red checks should balance and where they don't, reference should be made back to the individual objectives to check where the problem could be arising from."]
[]
[null,null,null,null,null,"ENE Summary"]
[null,null,null,null,null,"This sheet summarises all inputs from different sheets in preparation for publication.  The first table is where the different objectives are summarised and the check on row 26 checks that the total objectives equals the total expenditure on row 51.  The second table is the Statement of Financial Performance having combined the inputs in the Revenue sheet and those in the 15 objectives to complete the statement. The next two tables are of the summary of  Cash flow statement and the Financial Position statement as have been completed on their respective sheets.  The final table is that which shows the financial performance of the entity by means of ratios.  This indicates well how the entity is performing over the years."]
[null,null,null,null,null," "]
[null,null,null,null,null,"Perform Info Pub"]
[]
[null,null,null,null,null,"The Performance Information Pub sheet is formula-driven and summarises all the performance indicators reflected on the different objectives.  This sheet will only reflect those indicators that the entity chose to include when completing columns Q of each objective.  This is usually the table that gets published on the ENE publication and reflects the final indicators of the entity."]
[]
[null,null,null,null,null,"Personnel Pub"]
[null,null,null,null,null,"This sheet is formula-driven and summarises the personnel information that is included in the Personnel sheet for publication."]
[]
[null,null,null,null,null,"Personnel Trends"]
[null,null,null,null,null,"Personnel trends with percentage increases and decreases above 10% for headcounts and above 8% increases and decreases for Unit costs must be explained in the trends explaination column (Column O) of the same sheet."]
[]
[null,null,null,null,null,"Checks"]
[null,null,null,null,null,"This sheet should be visited once all has been completed to check and verify that all checks built on the template have been balanced.  It highlights any area where a check should have been balanced  in a specific sheet and in a case where a check is not balanced, the compiler needs to re-visit the relevant sheet and make corrections to clear the errors.  Should an entity submit the template with any of the checks unbalanced, a query will be raised.  The entity is urged to attend to all checks in the template and ensure that there are no checks and all relevant sheets are balancing."]
[null,null,null,null,null,"Table in row 49 to 55 checks against incompleteness of the outer year. The compiler needs to re-visit the relevant sheets and make corrections to clear the checks where applicable."]
[]
[null,null,null,null,null,"The Red Tabs - formula-driven sheets for analysis "]
[]
[null,null,null,null,null,"Trends Analysis "]
[null,null,null,null,null,"Please note this sheet contains ONLY growth trends of the cash flow statement. The entity must pay attention on the highlighted percentages and provide explanations in column O. There is a legend that explains the different colours that will be highlighted once a certain concerning trend is reflected.  A trend will be concerning if, for an example, a certain goods and services item is increasing or decreasing at a rate different from the average. The entities are urged to peruse this sheet carefully to monitor the trends in their budget submissions."]
[]
[null,null,null,null,null,"Cash flow differences"]
[null,null,null,null,null,"The sheet reflects differences between the figures in the current budget process and the ones in the previous year's budget process. There is a legend that explains the different colours that will be highlighted once a certain concerning trend is reflected. The reasons for changes should be provided in column O."]
[]
[null,null,null,null,null,"The Green Tabs - additional financial information on Infrastructure and ODA"]
[]
[null,null,null,null,null,"Infrastructure"]
[null,null,null,null,null,"This sheet is to be completed only by entities that are involved in infrastructure projects.  The project name, description, stage, cost and all other required information should be provided to ensure completeness.  The entity should select the type of project in the options provided in cell I2 to cell I4. The sheet is prepopulated with last years numbers. "]
[]
[null,null,null,null,null,"ODA"]
[null,null,null,null,null,"For the purposes of completing the ODA sheet, ODA is only limited to grants (including donations) from international development partners to fund programmes/project or other initiatives of the public entity"]
[null,null,null,null,null,"·         Total Commitment (amount): Total funds committed by the partner (institution) to the programme/project denominated in the relevant currency per the allocation letter/notice of award/agreement with the partner (institution)."]
[null,null,null,null,null,"·         Payments: Payments made by the entity in Rands."]
[null,null,null,null,null,"·         Receipts: Funds received by the entity from the partner (institution) in Rands."]
[]
[null,null,null,null,null,"When done completing the budget template"]
[]
[null,null,null,null,null,"Go to the Sign-Off sheet."]
[null,null,null,null,null,"Click \"create pdf sign off\" button in cell E9, print out the sign off page,  sign on the signature space, scan and email the document along with the budget planning baseline tool ."]
[]
[]
[]
[]
[]
[]
[]
[]
[]
[]
[]
[]
[]
[]
[]
[]
[]
[]
[]
[]
[]
[]
[]
[]
[]
[]
[]
[]
[]
[]
[]
[]
[]
[]
[]
[]
[]
[]
[]
[]
[]
[]
[]
[]
[]
[]
[]
[]
[]
[]
[]
[]
[]
[]
[]
[]
[]
[]
[]
[]
[]
[]
[]
[]
[]
[]
[]
[]
[]
[]
[]
[]
[]
[]
[]
[]
[]
[]
[]
[]
[]
[]
[]
[]
[]
[]
[]
[]
[]
[]
[]
[]
[]
[]
[]
[]
[]
[]
[]
[]
[]
[]
[]
[]
[]
[]
[]
[]
[]
[]
[]
[]
[]
[]
[]
[]
[]
[]
[]
[]
[]
[]
[]
[]
[]
[]
[]
[]
[]
[]
[]
[]
[]
[]
[]
[]
[]
[]
[]
[]
[]
[]
[]
[]
[]
[]
[]
[]
[]
[]
[]
[]
[]
[]
[]
[]
[]
[]
[]
[]
[]
[]
[]
[]
[]
[]
[]
[]
[]
[]
[]
[]
[]
[]
[]
[]
[]
[]
[]
[]
[]
[]
[]
[]
[null,null,null,"Budget approved by the board."]

{"sheet":"Economic Definitions","index":3,"n_rows":372,"n_cols":10,"rows_kept":372,"cut":false,"hidden":false,"merged":[]}
[]
[]
[null,null,null,null,null,"Note",null,"ITEM","DEFINITIONS","EXAMPLES"]
[null,null,null,null,null,1,null,"Tax receipts","A tax receipt is defined as compulsory, unrequited revenue collected by an entity.\n\nTaxes are compulsory because the other party is required by statutory provision to pay taxes in certain circumstances and under certain conditions.  Taxes are unrequited in the sense that government does not provide anything directly in return to the party making the tax payment.  Not all compulsory, unrequited receipts are recorded as taxes.  \nExcluded are;\n  Fines, penalties and forfeits_ also compulsory, unrequited receipts, but are recorded separately from taxes.  Fines, penalties and forfeits are distinguished from taxes by that they are as a result of a volation of a law or administrative rules, while taxes are an implementation of a law.  \n  Transfers received_ also unrequited receipts by government but not considered taxes.  Taxes are distinguished from transfers received because taxes are compulsory and transfers received are voluntary.  [Guidelines for implementing the New Economic Reporting Format]\n  Social (security) contributions_ payments earmarked for unfunded social security schemes, e.g. UIF, that provide benefits other than retirement benefits.  These are recorded separately from taxes.","*Casino taxes\n*Motorvehicle licences tax\n*Liquor licences tax\n*Horse racing taxes\n"]
[]
[null,null,null,null,null,2,null,"Sales of goods and services: non capital assets","\nThe category consists of all sales by public entities provided that the entity has produced the good or service.  It is important to note that sales of capital assets are never included under this category, but under sales of capital assets.  Thus, sales of capital assets are excluded from this category even if they have been produced by a public entity.  Revenue from ownership of building and fixed structures - rentals - is included in this category.  This is because revenue from ownership of buildings implies the provision of a service in the form of maintenance and repair.  In contrast, revenue from ownership of land is more passive and is therefore not considered a sale.  \nTo note;\nRevenue from ownership of buildings must be distinguished from revenue from ownership of land and sub-soil assets; the latter is classified as rent of land, which is a separate revenue category.  \n  ","*Sale of goods and services produced by an entity\n*Sales: Scrap, Waste, Other goods"]
[]
[null,null,null,null,null,3,null,"Sale of goods and services produced by an entity","This category consists of sales by entities, provided that the entity produced the goods or services.","*Administrative fees\n*Sales by market establishments\n*Other sales"]
[]
[null,null,null,null,null,4,null,"Administrative fees","This item consists of revenue collected for sales of regulatory or administrative services, and is sometimes referred to as license fees.  In this category, government must exercise a regulatory or administrative function. For example, it may verify the competence of a licence holder.  \n \nClassification provided for under this category includes licence or permits, registration fees and inspection fees (e.g. brands, and travel documents).\nNote: Regarding license fees, the government should be providing a service to the remitter of this fee, e.g. the use of government-owned land by hunters; otherwise the fee is classified as a tax on goods and services","*Licences/Permits Fees\n*Registration\n*Request for information\n*Inspection fees"]
[]
[null,null,null,null,null,5,null,"Sales by market establishments","When a public entity sells goods or services at market related prices the transactions should be recorded here. Examples are rent from buildings and equipment charged at the prevailing market prices. Example; rental of produced assets are treated as sales of services and diamond sales are treated as sales of goods.\n\nMarket prices are prices economically significant enough to influence supply and demand of a good or service.  The easiest benchmark is the prevailing price in the private market.","*RENTAL ON BUILDINGS\n*Rental machinery and equipment\n*Ticket sales\n*Research services\n*Advertising services"]
[]
[null,null,null,null,null,6,null,"Other sales","This item includes money received from the sale of all other goods and services produces or partially produced by an entity.\n\nTo be part of this category, the fee charges must be below prices prevailing in the private market. User charges at below market prices are included for example hospital fees, as well as park and museum fees.  Examples are rentals of buildings and machinery, as well as hospital, park and museum fees.  Sales of seeds and livestock produced by public entities are considered other sales.  Sales of items purchased from another economic unit and then resold should also be included under this item; an example would be a postcard sold by a museum.","SERVICES RENDERED: \n   *Health services\n   *Exam certificates\n   * Police service\n\nSALES OF GOODS:\n  *Tender documents\n  *Pharmaceutical\n  *Water\n"]
[]
[null,null,null,null,null,7,null,"Sales: Scrap, Waste, Other goods","This item includes sales of all items that are not considered capital assets and not produced by entity e.g. used arms sold by the Department of Defence.","*Sales: Scrap and waste\n*Selling arms and arms support systems"]
[]
[null,null,null,null,null,8,null,"Transfers Received","This item consists of all unrequited receipts voluntarily given by other parties. Thus, an entry should be made under this item when a public entity does not give a service or good directly in return for the transfer from the other party and the transfer is voluntary.","Transfers Received This item consists of all unrequited receipts voluntarily given by other parties. Thus, an entry should be made under this item when a public entity does not give a service or good directly in return for the transfer from the other party and the transfer is voluntary. Included are;\n  Grants (Not identified as grants in our format) which are voluntary transfers received by a government unit from either another government unit, foreign governments or an international organisation,\n Social contributions_ payments earmarked for social security agencies and\n Other transfers (not identified as other transfers in our format)_ gifts and donations from sources other than government units and international organisations.\n\nExcluded are;\n All payments made by government departments or other government units for services provided by the entity.  These are sales of goods and services.  E.g. if DTI commissions CSIR for some research project and pay for this, this should be rightly classified as Sales.\n\n"]
[]
[null,null,null,null,null,9,null,"  Other Government Units","Money received from other governmental units either as a current or capital transfer.","(Not identified as grants in our format) which are voluntary transfers received by a government unit from either another government unit, foreign governments or an international organisation."]
[]
[null,null,null,null,null,10,null,"National government units","Money received from national departments either as a current or capital transfer.","Voluntary transfers received by a government unit from either another government unit, foreign governments or an international organisation."]
[]
[null,null,null,null,null,11,null,"Departmental Transfers",null,"Voluntary transfers received by a government unit from either another government unit, foreign governments or an international organisation."]
[]
[null,null,null,null,null,12,null,"Other National Departments",null,"Voluntary transfers received by a government unit from either another government unit, foreign governments or an international organisation."]
[]
[null,null,null,null,null,13,null,"Departmental agencies and accounts","Money received from departmental agencies either as a current or capital transfer."]
[]
[null,null,null,null,null,14,null,"Provincial department","Money received from provincial government as a current or capital transfer."]
[]
[null,null,null,null,null,15,null,"Local Governments","Money received from local governments (municipalities or municipal entities) either as a current or capital transfer."]
[]
[null,null,null,null,null,16,null,"Higher education institutions","Current and capital transfers received from Higher Education Institutions, deemed to be established or declared as a Technicon or University under the Higher Education Act of 1997.","*(Not identified as other transfers in our format)_ gifts and donations from sources other than government units and international organisations."]
[]
[null,null,null,null,null,17,null,"Foreign government and international organisations","Capital and current transfers received from foreign governments.","*(Not identified as grants in our format) which are voluntary transfers received by a government unit from either another government unit, foreign governments or an international organisation."]
[]
[null,null,null,null,null,18,null," Local non-government donors","Donations received from public corporations or private enterprises.","*(Not identified as other transfers in our format)_gifts and donations from sources other than government units and international organisations."]
[]
[null,null,null,null,null,19,null,"Fines, penalties and forfeits ","This item consists of all compulsory receipts imposed by a court or quasi-judicial body.\nOut-of-court settlements are also included in this category.  As with taxes, this item consists of unrequited, compulsory transactions.  Thus, the recipient public entity does not provide anything in return for these receipts.\n\n","*Consumer courts fines, courts fines, traffic fines, criminal offence plea&snt fine "]
[]
[null,null,null,null,null,20,null,"Interest and rent on land ","This item consist of the income associated with ownership of interest-bearing financial instruments, such as bank deposits, loans extended to others, and bills and bonds issued by others. A dividend is a sum of money paid regularly (typically annually) by a company to its shareholders out of its profits (or reserves). Rent on land consists of economic rent, interest on capital invested for improvement of land, and reward for the risk taken by the landlord in investing his or her capital. ","*Land, Prospecting fees, retension fees, royalties, surface rental"]
[]
[null,null,null,null,null,21,null,"Interest ","This item consist of the income associated with ownership of interest-bearing financial instruments, such as bank deposits, loans extended to others, and bills and bonds issued by others.","*Bank deposits, loans extended to others, and bills and bonds issued by others."]
[]
[null,null,null,null,null,22,null,"Dividends ","A dividend is a distribution of money or property paid by a corporation out of the corporation's profits to shareholders.\nGovernment units are not payers of dividends as a rule.  Exceptions may be public corporations.\n","*Shares and other equity"]
[]
[null,null,null,null,null,23,null,"Rent on land","The item consists of the money received due to ownership of land.  This item also includes all revenue due to ownership of sub-soil assets and other commercially exploitable naturally occurring assets such as virgin forests, game and fisheries. ","*Land, Prospecting fees, retension fees, royalties, surface rental"]
[]
[null,null,null,null,null,24,null,"Unclassified revenue ","All revenue items that could not be classified above. Please make sure that the items are clearly specified, i.e. we will not accept \"other\" as a specification. This is so that we can then classify the revenue in one of the classes given..\nOut-of-court settlements are also included in this category. As with taxes, this item consists of unrequited, compulsory transactions. Thus, the recipient public entity does not provide anything in return for these receipts.\n","*All other revenue items that could not be classified above."]
[]
[null,null,null,null,null,25,null,"Tax benefit ","A tax benefit is an allowable deduction on a tax return intended to reduce a taxpayer's burden while typically supporting certain types of commercial activity. A tax benefit allows some type of adjustment benefiting a taxpayer's tax liability.","*Tax deductions, credits, and exclusions are benefits that reduce the amount taxpayers owe annually to federal and state governments. Tax shelters are another form of tax benefit that can help to lower taxes through special investments."]
[]
[null,null,null,null,null,26,null,"Outside Shareholder's interest","Outside shareholders have no links with the company but have a financial interest in its operating performance"]
[]
[null,null,null,null,null,27,null,"Compensation of employees","Compensation of employees includes remuneration in cash, including social contributions by employers. Specifically included are basic wages and salaries, overtime, remuneration for nightshift, cost of living allowances, transport, house allowances, bonuses.  "]
[]
[null,null,null,null,null,28,null,"Salaries and wages","This item includes payments to employees, except social contributions. Social contributions are recorded separately.  The item, salaries and wages, includes:Salaries or wages payable at regular weekly, monthly or other intervals. Remuneration to staff members employed on a contractual basis is included, provided that these staff members are paid at regular intervals and that they are listed on the government payroll. This also includes payments by results and piecework payments; enhanced payments or special allowances for working overtime, at nights, at weekends or other unusual hours; allowances for working away from home or in disagreeable or hazardous circumstances; and expatriation allowances for working abroad; Supplementary allowances payable regularly, such as housing allowances or allowances to cover the costs of travel to and from work.  \nSalaries or wages payable to employees away from work for short periods, for example, on holiday; \nAd hoc bonuses or other exceptional payments made, for example, under incentive schemes.\n\nSalaries and wages include the values of any social contributions, income taxes, etc., payable by the employee. This applies even if they are compulsory or withheld by the employer for administrative convenience or other reasons and paid directly to social insurance funds, tax authorities, etc., on behalf of the employee. For example, employees’ contributions to pension funds and medical aid are included in salaries and wages. \nThe item, salaries and wages, does not include:\n\nReimbursements of costs incurred by employees on tools, equipment, uniforms and other items that are needed to enable them to carry out their work. For example, uniforms provided to police officers are not compensation of employees, but use of goods and services. Uniform allowances are classified as use of goods and services if the employee is required to use the funds to purchase a uniform that will mainly be used at work;\n \nRelocation costs reimbursement _costs incurred by employees when they take up new jobs or are required by their employers to move their homes, for example, travel and moving expense;\n \nPayments for travel and subsistence while on government duty away from duty station. Per Diem and out-of-town allowances fall under this category;\n \nPurchases of services provided by people who are not government employees, for example, consultants, architects and occasional workers. \n \nThe above four items should be classified under use of goods and services\n \nSocial benefits to employees. These can be in the form of allowances made for accidental injury, severance and incapacity pay. Allowances to employees’ dependants are also considered social benefits. In most cases, payments falling under this category are made from a social insurance fund. \n \nPayments to employees or former employees that are not remuneration for work \n \nThe above two items should be classified under transfers to households, social benefits\n\nThis item includes payments to employees, except social contributions. Social contributions are recorded separately.  The item, salaries and wages, includes:\n \n\nSalaries or wages payable at regular weekly, monthly or other intervals. Remuneration to staff members employed on a contractual basis is included, provided that these staff members are paid at regular intervals and that they are listed on the government payroll. This also includes payments by results and piecework payments; enhanced payments or special allowances for working overtime, at nights, at weekends or other unusual hours; allowances for working away from home or in disagreeable or hazardous circumstances; and expatriation allowances for working abroad;\n \n\nSupplementary allowances payable regularly, such as housing allowances or allowances to cover the costs of travel to and from work. \n \nSalaries or wages payable to employees away from work for short periods, for example, on holiday;\n \nAd hoc bonuses or other exceptional payments made, for example, under incentive schemes.\n \n\nSalaries and wages include the values of any social contributions, income taxes, etc., payable by the employee. This applies even if they are compulsory or withheld by the employer for administrative convenience or other reasons and paid directly to social insurance funds, tax authorities, etc., on behalf of the employee. For example, employees’ contributions to pension funds and medical aid are included in salaries and wages.\n \nThe item, salaries and wages, does not include:\n\nReimbursements of costs incurred by employees on tools, equipment, uniforms and other items that are needed to enable them to carry out their work. For example, uniforms provided to police officers are not compensation of employees, but use of goods and services. Uniform allowances are classified as use of goods and services if the employee is required to use the funds to purchase a uniform that will mainly be used at work;\n \nRelocation costs reimbursement _costs incurred by employees when they take up new jobs or are required by their employers to move their homes, for example, travel and moving expense;\n \nPayments for travel and subsistence while on government duty away from duty station. Per Diem and out-of-town allowances fall under this category;\n \nPurchases of services provided by people who are not government employees, for example, consultants, architects and occasional workers. \n \nThe above four items should be classified under use of goods and services\n \nSocial benefits to employees. These can be in the form of allowances made for accidental injury, severance and incapacity pay. Allowances to employees’ dependants are also considered social benefits. In most cases, payments falling under this category are made from a social insurance fund. \n \nPayments to employees or former employees that are not remuneration for work \n \nThe above two items should be classified under transfers to households, social benefits\n"]
[]
[null,null,null,null,null,29,null,"Social contributions","This item includes the government’s contribution (but not the employees’ contribution) to social insurance schemes paid on behalf of employees."]
[]
[null,null,null,null,null,30,null,"Administrative fees:  Payments","An expense incurred in controlling and directing an organization, but not directly identifiable with financing, marketing, or production operations.","*Accredition fees\n*Appeals fees\n*Bank charges and card fees\n*Copy right fees\n*Firearm handling fees\n*Licence agency fees\n*Management/ Handling fees\n*Personnel agency fees\n*Registration fees\n*System access & information fees\n*Travel agency fees"]
[]
[null,null,null,null,null,31,null,"Advertising","Costs of the specific formulation and publication of notices to attract prospective service providers and suppliers, promote government activities and/or projects or for filling of vacant positions. Advertising media includes television, radio, movies, magazines, newspapers, video games, internet, billboards.","*Advertising: Auctions\n*Advertising: Bursaries (Non-employees)\n*Advertising: Marketing\n*Advertising: Promotional items\n*Advertising: Public notices\n*Advertising: Recruitment\n*Advertising: Tenders"]
[]
[null,null,null,null,null,32,null,"Minor assets","This asset category includes machinery and equipment, furniture and computer hardware costing less than R5 000/capitalisation threshold.  These assets can be used continuously or repeatedly in production for at least one year. They are treated as current payments and not capitalised."]
[]
[null,null,null,null,null,33,null,"Audit cost: external","This item refers to external/ regulatory audits, conducted by the Auditor-General or Private Auditing companies in SA, whereby the audit provides an independent opinion on published information. This is different from internal auditors who do not attest to financial reports but focus mainly on the internal controls of the organization. ","*Regularity\n*External computer audits\n*External environmental audits\n*External forensic investigation\n*External performance audit"]
[]
[null,null,null,null,null,34,null,"Bursaries (Employees)","Bursaries include payments made to provide direct support to employees for studying at universities or other tertiary institutions, where all the conditions and terms have been complied with in terms of the contract with the bursary holder. Direct support could include fees, text books and other aids and accommodation at the university residence."]
[]
[null,null,null,null,null,35,null,"Catering: Internal activities","Expenditure incurred on individuals employed or contracted to the public entity or individuals outside the employ of the public entity, in connection with the activities of a entity, or division within the entity, that directly relates to the achievement of its objectives.","*Catering for conferences, bosberade, workshops, indabas, courses, forums, hearings and meetings held with the intention to discuss the entity’s initiatives;\n*Catering for a function for the launching/roll-out of an product of the department or division within a department\n*Catering for interviews or training sessions;\n*Dinner and drinks supplied at year-end functions;\n*Eatery provided for members of standing boards, other government bodies and official commissions or committees of enquiry. "]
[]
[null,null,null,null,null,36,null,"Communication","Payments for the usage of telephones, faxes, telegraphs and telex for communication purposes, including costs for teleconferences.  Communication by telephones and faxes includes the sending of messages electronically i.e. the sending of a message, image or document via a fax machine or a telephone or cellular phone.  Telex is a communications system using teleprinters that communicate via telephone lines.  Teleconference is a meeting via telecommunications equipment: a meeting held among people in different places by means of telecommunications equipment. Telecommunication equipment includes phones, faxes, telegraphs and telex excluding cellular phones refer to \"Communication: Cell contract (Subscription and calls). Rental of equipment defined as operating or finance leases should be allocated under the item provided for leases.","*Communication: Airtime and data\n*Communication: Postage/stamps/franking machines\n*Communication: Radio and tv transmissions\n*Communication: Rent private bag and postal box\n*Communication: Satellite signals\n*Communication: Telephone, fax, telegraph and telex\n*Communication: Telephone installation"]
[]
[null,null,null,null,null,37,null,"Computer services","Expenditure for the utilisation of information technology, information systems and related services provided by an external service provider.  ","*SITA computer services\n*External computer services: Data lines\n*External computer services: Information services\n*External computer services: Internet charge\n*External computer services: Mainframe time\n*External computer services: Software licences\n*External computer services: Specialised computer services\n*External computer services: System adviser\n*External computer services: System development\n*External computer services: Website design and development"]
[]
[null,null,null,null,null,38,null,"Consultants: Business and advisory services","Consulting services refer to specialist services and skills provided that are required for the achievement of a specific objective, with the aim of providing expert and professional advise on a time and material basis. It is unnecessary to maintain these skills in-house, since they are required on a once-off or temporary basis. Therefore a consultant is a professional person appointed by the department to provide technical and specialist advise or to assist with he design and implementation of specific projects/programs. The legal status of this person can be an individual, a partnership or a corporation. The fact that a consultant is defined as a professional person implies that the consultant is professionally qualified. The provision of advise or service is in line with a contractual arrangement. Remuneration is usually based on an hourly fee or a fixed fee for a product/deliverable. ","*Consultants: Business and advisory services: Accountants and auditors\n*Consultants: Business and advisory services: Audit committee (non-officials)\n*Consultants: Business and advisory services: Board members\n*Consultants: Business and advisory services: Commissions and committees of enquiry\n*Consultants: Business and advisory services: Communications strategy\n*Consultants: Business and advisory services: Business management\n*Consultants: Business and advisory services: Human resource \n*Consultants: Business and advisory services: Occupational safety and health\n*Consultants: Business and advisory services: Organisational \n*Consultants: Business and advisory services: Project management\n*Consultants: Business and advisory services: Quality control inspectorate\n*Consultants: Business and advisory services: Qualification verification\n*Consultants: Business and advisory services: Research and advisory services\n*Consultants: Business and advisory services: Translations and transcriptions\n*Consultants: Business and advisory services: Valuer"]
[]
[null,null,null,null,null,39,null,"Infrastructure and planning services","This group of professional service providers refers to qualified infrastructure and planning professional services. These are specialised services which require expert and professional advice on a time and material basis for the achievement of specific objectives. It is unnecessary to maintain these skills in-house, since they are required on a once-off or temporary basis. This professional person(s) is appointed by the department to provide technical and expert advice or to assist with the design and implementation of specific projects/programmes. The legal status of this person can be an individual, a partnership or a corporation. The provision of advice or service should be in line with a contractual arrangement. ","*Infrastructure and planning services: Engineering\n*Infrastructure and planning services: Agriculture services\n*Infrastructure and planning services: Architectural services\n*Infrastructure and planning services: Ecological services\n*Infrastructure and planning services: Geodetic and control survey services\n*Infrastructure and planning services: Geoinformatic services\n*Infrastructure and planning services: Geologist services\n*Infrastructure and planning services: Landscape designer services\n*Infrastructure and planning services: Land and quantity surveyors services\n*Infrastructure and planning services: Town planner services\n*Maintenance and repairs: buildings:  consultants\n*Maintenance and repairs: other fixed structures:  consultants"]
[]
[null,null,null,null,null,40,null,"Maintenance and repairs: Buildings: Consultants","The costs incurred to bring an asset back to an earlier condition or to keep the asset operating at its present condition (as opposed to improving the asset). For example, if a building is damaged, the cost to repair the damage is immediately debited to repairs and maintenance expense. ","*Maintenance and repairs: Buildings: Consultants: Architectural services\n*Maintenance and repairs: Buildings: Consultants: Engineering civil services\n*Maintenance and repairs: Buildings: Consultants: Engineering electrical services\n*Maintenance and repairs: Buildings: Consultants: Engineering mechanical services\n*Maintenance and repairs: Buildings: Consultants: Engineers structural services\n*Maintenance and repairs: Buildings: Consultants: Health and safety officers\n*Maintenance and repairs: Buildings: Consultants: Land and quantity surveyors services\n*Maintenance and repairs: Buildings: Consultants: Engineering structural services"]
[]
[null,null,null,null,null,41,null,"Maintenance and repairs: Other fixed structures: Consultants","The costs incurred to bring an asset back to an earlier condition or to keep the asset operating at its present condition (as opposed to improving the asset). For example, if a company truck is damaged, the cost to repair the damage is immediately debited to repairs and maintenance expense. ","*Maintenance and repairs: Other fixed structures: Consultants: Architectural services\n*Maintenance and repairs: Other fixed structures: Consultants: Engineers structural services\n*Maintenance and repairs: Other fixed structures: Consultants: Engineering civil services\n*Maintenance and repairs: Other fixed structures: Consultants: Engineering electrical services\n*Maintenance and repairs: Other fixed structures: Consultants: Engineering mechanical services\n*Maintenance and repairs: Other fixed structures: Consultants: Health and safety\n*Maintenance and repairs: Other fixed structures: Consultants: Land and quantity surveyors services\n*Maintenance and repairs: Other fixed structures: Consultants: Engineering structural services"]
[]
[null,null,null,null,null,42,null,"Laboratory services","Payments specifically related to laboratory services. This item include the cost associated with making use of professionals or professional services for laboratory services such as scientific experiments, research, manufacturing of drugs or chemicals, observation and testing.","*Laboratory services: Agriculture\n*Laboratory services: Medical laboratory services\n*Laboratory services: Roads laboratory services\n*Laboratory services: Water laboratory services\n"]
[]
[null,null,null,null,null,43,null,"Legal services","Payments for any legal services to either private firms or state attorneys. This is for the service cost of attorneys. ","Legal cost: Private firm: Legal advice services\nLegal cost: Private firm: Messenger of court services\nLegal cost state attorney: Advice services\nLegal cost state attorney: Conveyancing services\nLegal cost state attorney: Messenger of court services"]
[]
[null,null,null,null,null,44,null,"Science and technology services","Scientific and technological services are defined as activities concerned with research and experimental development and contributing to the generation, dissemination and application of scientific and technical knowledge.","*Science and technology services: Special services\n*Science and technology services: Research and development support services"]
[]
[null,null,null,null,null,45,null,"Contractors","Contractors are required to provide services that are not the core business of the department. It is normally not cost effective to maintain these skills within the department.  Contractors includes costs associated with the use of contracted individuals or businesses on projects or tasks. This does not include amounts payable to contractors in respect of provision of services such as cleaning and security even if a staff element can be identified. Note also that it is common practice that the said contractor provides all the materials required for the project - he/she tenders for the whole project, materials included.","*Contractors: Abbatoir services\n*Contractors: Aerial photography\n*Contractors: Artists and performers\n*Contractors: Auctioneers\n*Contractors: Audio-visual service\n*Contractors: Bore waterhole drilling\n*Contractors: Bottling and packaging\n*Contractors: Burial services\n*Contractors: Casual labourers\n*Maintenance of buildings: Casual labourers\n*Contractors: Curators\n*Contractors: Disposal services\n*Contractors: Editorial services\n*Contractors: Employee wellness\n*Contractors: Event promoters\n*Contractors: Fire fighting services. \n*Contractors: Forensic investigators\n*Contractors: Graphic designers\n*Contractors: Interior decorator\n*Contractors: Medical services\n*Contractors: Mint of decoration\n*Contractors: Photographer\n*Contractors: Plants, flowers and other decorations\n*Contractors: Preservation/restoration/dismantling/cleaning services\n*Contractors: Professional drivers\n*Contractors: Private firm: legal services\n*Contractors: Security services\n*Contractors: Sports and recreation\n*Contractors: Stage and sound crew\n*Contractors: Tour guides\n*Contractors:Tracing agents and debt collectors\n*Contractors:Transportation/relocation contractor\n*Contractors: South african social security agency (sassa) payment contractors\n*Contractors: Maintenance and repairs of other fixed structures\n*Contractors: Maintenance and repairs of other machinery and equipment\n*Contractors: Maintenance and repairs of heritage buildings\n*Contractors: Maintenance and repairs of other heritage fixed structures\n"]
[]
[null,null,null,null,null,46,null,"Agency and support/Outsourced services","Agency and support or outsourced services refers to staff appointed through an agency or staff appointed individually on contract or similar binding arrangement. An entity should have the capacity and expertise to carry out certain services, but for some reasons are not utilising their own staff. The services do not form part of Compensation of employees. The reasons might include temporary incapacity or the outsourcing of services to save costs, for example cleaning, security and recruitment. In evaluating the classification of agency/outsourced services it should be established whether the services being procured could have been provided by the entity itself. ","Agency and support/Outsourced services: Adjudicators\nAgency and support/Outsourced services: Administration and support staff\nAgency and support/Outsourced services: Agricultural services\nAgency and support/Outsourced services: Biocontrol services\nAgency and support/Outsourced services: Burial services\nAgency and support/Outsourced services: Census field staff\nAgency and support/Outsourced services: Covid cleaners and screeners\nAgency and support/Outsourced services:  Editorial services\nAgency and support/Outsourced services: Education / General assistants\nAgency and support/Outsourced services: EPWP workers\nAgency and support/Outsourced services: Facilitators\nAgency and support/Outsourced services: Financial management\nAgency and support/Outsourced services: Fire services\nAgency and support/Outsourced services: Health professional allied\nAgency and support/Outsourced services: International institute of communications\nAgency and support/Outsourced services: Inmates recovery fee\nAgency and support/Outsourced services: Investigation services\nAgency and support/Outsourced services: Land claim verification\nAgency and support/Outsourced services: Lectures\nAgency and support/Outsourced services: Legal services\nAgency and support/Outsourced services: Medical and chemical waste removal\nAgency and support/Outsourced services: Medical doctor\nAgency and support/Outsourced services: Medical services\nAgency and support/Outsourced services: Nursing staff\nAgency and support/Outsourced services: Nutritional services\nAgency and support/Outsourced services: Personnel and labour\nAgency and support/Outsourced services: Pharmacy professionals\nAgency and support/Outsourced services: Photographers\nAgency and support/Outsourced services: Porter services\nAgency and support/Outsourced services: Postmortem\nAgency and support/Outsourced services: Researcher\nAgency and support/Outsourced services: Security services\nAgency and support/Outsourced services: Social care services\nAgency and support/Outsourced services: Statisticians\nAgency and support/Outsourced services: Steam provision\nAgency and support/Outsourced services: Universities certification\nAgency and support/Outsourced services: Universities\nAgency and support/Outsourced services: Veterinary services\nAgency and support/Outsourced services: Waste services"]
[]
[null,null,null,null,null,47,null,"Entertainment","This item includes entertainment expenditure incurred by members of the Senior Management Service (SMS) as well as Ministers and his/her office bearers in performance of their duties. ","*Luncheon meetings held with colleagues, foreign delegations and/or other individuals in and outside the public sector; \n*Purchase of dinner during authorised overtime, if no compensation in the form of time off or additional pay is approved, provided that the closing time is later than 20h00."]
[]
[null,null,null,null,null,48,null,"Fleet services(Fleet/Services)","Cost relating to operation and maintenance of fleet services including entity owned vehicles, leased or rented vehicles. The lease amount will be classified accordingly under the Lease payments category. This item caters for charges over and above the lease payment (flat rate). ","Fleet services: Computer time-license\nFleet services: Development fees\nFleet services: Tracking (physical cs)\nFleet services: Batteries\nFleet services: Car valet and washing services\nFleet services: Depreciation\nFleet services: Depreciation equipment\nFleet services: Fuel, oil and grease\nFleet services: Kilometres\nFleet services: Licence plates\nFleet services: Repairs\nFleet services: Spares and accessories\nFleet services: Toll fees\nFleet services: Towing costs\nFleet services: Transaction costs\nFleet services: Tyres and tubes\nMaintenance: Fleet services: Operating payments\nMaintenance: Machinery and equipment: Operating payments\nFleet services: Loss sale equipment\nFleet services: Loss sale fleet"]
[]
[null,null,null,null,null,49,null,"Housing","Department of Housing - specific accounts for interfacing accounts.","*Housing: Capital adjustments\n*Housing: Devolution of debtors\n*Housing: Devolution of proper\n*Housing: Rebate R75\n*Housing: Subsidy"]
[]
[null,null,null,null,null,50,null,"Inventory: Clothing material and accessories","The category includes corporate gear, Uniforms and Protective Clothing and Needlework's Accessories","*Inventory: Clothing material and accessories: Corporate gear\n*Inventory: Clothing material and accessories: Uniform and protective clothing\n*Inventory: Clothing material and accessories: Needlework accessories"]
[]
[null,null,null,null,null,51,null,"Inventory: Farming supplies","This item includes farming animal supplements, plastic bags for seedlings, packaging for produce, labels & tags for identification and marking of animals and plants, etc. excluding items specifically identified such as fertilizer, gardening supplies, insecticides, animal fodder and feed, seed and seedlings and irrigation material.","*Inventory: Farming supplies: Farming supplies\n*Inventory: Farming supplies: Fertilizer\n*Inventory: Farming supplies: Gardening supplies\n*Inventory: Farming supplies: Insecticides\n*Inventory: Farming supplies: Livestock and plant consumption\n*Inventory: Farming supplies: Livestock food and animal feed\n*Inventory: Farming supplies: Seeds and seedlings"]
[]
[null,null,null,null,null,52,null,"Inventory: Food and food supplies","Food and food supplies includes items like baby and special foods, bread and confectionary, eggs and egg products, fruits (fresh and frozen), groceries, meat, poultry and fish and milk and milk products. Limited for use by DOH, DCS, DSD. This category will not be distributed for use by other departments. Similar expenses incurred by other departments will be allocated under Consumable Supplies; Household Supplies; Groceries","*Inventory: Food and food supplies: Baby and special foods\n*Inventory: Food and food supplies: Bread and baked confectionery\n*Inventory: Food and food supplies: Eggs and egg products\n*Inventory: Food and food supplies: Fruit and vegetables\n*Inventory: Food and food supplies: Groceries\n*Inventory: Food and food supplies: Meat, poultry, fish"]
[]
[null,null,null,null,null,53,null,"Inventory: Chemicals, fuel, oil, gas, wood and coal","Items under this category caters for chemicals, fuel, oil, gas, wood and coal  ","*Inventory: Chemicals, fuel, oil, gas, wood and coal: Chemicals\n*Inventory: Chemicals, fuel, oil, gas, wood and coal: Fuel, oil  and  lubricants\n*Inventory: Chemicals, fuel, oil, gas, wood and coal: Gas\n*Inventory: Chemicals, fuel, oil, gas, wood and coal: Wood and coal"]
[]
[null,null,null,null,null,54,null,"Inventory: Learning and teaching supplies material","This category is created for Education Sector, it caters for Media Collections and Learning and Teaching Support Materials purchased by the Department of Education (DoE) for distribution to the schools","*Inventory: Learning and teaching supplies material: Media collections (library material;  school library/media/films; school books/magazines)\n*Inventory: Learning and teaching supplies material: Learning supporting material (school material subjects; school stationery; school textbook/prescribed)"]
[]
[null,null,null,null,null,55,null,"Inventory: Materials and supplies","Materials and supplies include items such as building materials, hardware, painting materials and workshop accessories, etc.","*Inventory: Materials and supplies: Building and construction material\n*Inventory: Materials and supplies: Camping material\n*Inventory: Materials and supplies: Disposable testing material non medical\n*Inventory: Materials and supplies: Electrical supplies\n*Inventory: Materials and supplies: Fencing material      \n*Inventory: Materials and supplies: Hardware\n*Inventory: Materials and supplies: Irrigation material\n*Inventory: Materials and supplies: Notice boards and signs\n*Inventory: Materials and supplies: Operational health&safety kit\n*Inventory: Materials and supplies: road construction and supplies\n*Inventory: Materials and supplies: road signs\n*Inventory: Materials and supplies: sport and recreational consumables\n*Inventory: Materials and supplies: tents, flags and accessories\n*Inventory: Materials and supplies: workshop materials and supplies  \n*Inventory: Materials and supplies: workshop testing material and supplies"]
[]
[null,null,null,null,null,56,null,"Inventory: Medical supplies","Medical supplies includes all medical related inventory items. Limited for use DOH  AND  DOD. This category will not be distributed for use by other departments. Similar expenses incurred by other departments will be allocated under Consumable Supplies: First Aid Kid or Contraceptives\n","*Inventory: Medical supplies: Artificial aids\n*Inventory: Medical supplies: Application sets\n*Inventory: Medical supplies: Bandages and dressing\n*Inventory: Medical supplies: Blood-product and plasma\n*Inventory: Medical supplies: Catheters, tubes and urine bag\n*Inventory: Medical supplies: Contraceptives\n*Inventory: Medical supplies: Crutches\n*Inventory: Medical supplies: Dental consumables\n*Inventory: Medical supplies: Disposable nappies\n*Inventory: Medical supplies: First aid kit\n*Inventory: Medical supplies: Gloves, disposable sundries\n*Inventory: Medical supplies: Heart valves  and  pacemakers\n*Inventory: Medical supplies: HIV/aids test kits\n*Inventory: Medical supplies: Implantable sets\n*Inventory: Medical supplies: In-vitro diagnostic testing strips\n*Inventory: Medical supplies: Medical gas\n*Inventory: Medical supplies: Occupational therapy consumables\n*Inventory: Medical supplies: Optical items and hearing aids\n*Inventory: Medical supplies: Orthopaedic artificial limbs\n*Inventory: Medical supplies: Patient clothing\n*Inventory: Medical supplies: Radio-isotopes\n*Inventory: Medical supplies: Renal dialysis\n*Inventory: Medical supplies: Stoma therapy reqs\n*Inventory: Medical supplies: Surgical consumables\n*Inventory: Medical supplies: Surgical, implants prosthesis\n*Inventory: Medical supplies: Surgical/medical supplies\n*Inventory: Medical supplies: Sutures, ligature and skin staples\n*Inventory: Medical supplies: Syringes, needles\n*Inventory: Medical supplies: Therapeutic requisitions\n*Inventory: Medical supplies: Vinyl body bag\n*Inventory: Medical supplies: Wheelchair consumables\n*Inventory: Medical supplies: X-ray consumables"]
[]
[null,null,null,null,null,57,null,"Inventory: Medicine","A drug or other preparation used for the treatment or prevention of disease. Limited for use by DOH  AND  DOD.  This category will not be distributed for use by other departments. ","*Inventory: Medicine: Animal medicine\n*Inventory: Medicine: Animal vaccines\n*Inventory: Medicine: Antiretroviral drugs\n*Inventory: Medicine: Anti-tuberculosis medicines\n*Inventory: Medicine: Contraceptives\n*Inventory: Medicine: Large volume parenterals\n*Inventory: Medicine:Medicine medical depot\n*Inventory: Medicine: Other medicine\n*Inventory: Medicine: Vaccines"]
[]
[null,null,null,null,null,58,null,"Medsas inventory interface","MEDSAS is a system used for the procurement, and management of pharmaceutical products, including medicines etc. This system is mainly used by the National and Provincial Departments of Health.","*Medsas inventory interface: Miscellaneous variance\n*Medsas inventory interface: Price variance\n*Medsas inventory interface: Purchase variance\n*Medsas inventory interface: Stock issues\n*Medsas inventory interface: Stock purchase general\n*Medsas inventory interface: Stock purchase system\n*Medsas inventory interfaceS: Stores surpluses"]
[]
[null,null,null,null,null,59,null,"Inventory: Other supplies","Included in this category is Laboratory Chemical and Supplies, Military Stores, Ammunition and Security Supplies and Assets Held for Distribution","*Inventory: Other supplies: Laboratory chemicals and supplies\n*Inventory: Other supplies: Military stores \n*Inventory: Other supplies: Assets for distribution \n*Inventory: Other supplies: Print supplies \n*Inventory: Other supplies: Household supplies"]
[]
[null,null,null,null,null,60,null,"Consumables supplies","This category caters for all consumable supplies ","*Consumables supplies: Animal food and medical supplies\n*Consumables supplies: Gifts and awards\n*Consumables supplies: Saddlery and other tackle\n*Consumables supplies: Uniform  and  clothing\n*Consumables supplies: Medical supplies\n*Consumables supplies: Household supplies\n*Maintenance of machinery and equipment: fuel and gas supplies\n*Consumables supplies: Fuel supplies\n*Consumables supplies: Materials and supplies\n*Consumables supplies: Contraceptives\n*Consumables supplies: Bags and accessories\n*Consumables supplies: Communication accessories\n*Consumables supplies: IT consumables\n*Consumables supplies: Laboratories consumables\n*Consumables supplies: Medical kit\n*Consumables supplies: Name tags\n*Consumables supplies: Occupational health safety kit\n*Consumables supplies: Photographic consumables\n*Consumables supplies: Security accessories consumables\n*Consumables supplies: Tent, flag and accessories\n*Consumables supplies: Stationery, printing and office supplies"]
[]
[null,null,null,null,null,61,null,"Consumables: Stationery, printing and office supplies","Included in this item is stationery and office consumables.  Also included in this category is Audio Visual Consumables, Government Printers, Mag/News/Journals, Stationery, ART AND Drawings, Media Collections, PRINTER Cartridges, and PRINTING Paper","*Consumables: Stationery, printing and office supplies: Audio visual consumables\n*Consumables: Stationery, printing and office supplies: Art and drawings\n*Consumables: Stationery, printing and office supplies: External printers\n*Consumables: Stationery, printing and office supplies: Magazines/Newspapers/Journals\n*Consumables: Stationery, printing and office supplies: Media collections\n*Consumables: Stationery, printing and office supplies: Printing cartridge\n*Consumables: Stationery, printing and office supplies: Printing paper\n*Consumables: Stationery, printing and office supplies: Stationery"]
[]
[null,null,null,null,null,62,null,"Operating leases","Operating leasing is a productive activity that involves renting capital assets for terms less than the expected service lives of the assets. It is a form of production in which the lessor normally lets the use of a capital equipment / asset in exchange for the lease payments. Operating leasing can be identified by the following characteristics: (a) the lessor normally maintains a stock of equipment in good working order which can be hired on demand or at short notice, (b) the equipment may be rented out for varying periods of time, and (c) the lessor is frequently responsible for the maintenance and repair of the equipment as part of the service provided to the lessee.","Operating lease: Buildings\nOperating lease: Other fixed structures\nOperating lease: Other machinery and equipment\nOperating lease: Transport equipment\nMaintenance: Operating leases machinery"]
[]
[null,null,null,null,null,63,null,"Rental and hiring","Rental and hiring includes transactions that involves a once-off payment for the temporary use of an item which is owned by an external party. This is not the same as Lease payments as \"Lease Payments\" refer to series of payments made. "]
[]
[null,null,null,null,null,64,null,"Property payments","This category provides for all payments related to contractual obligations contributing to the functionality of, for example, building or land. for example, gardening services, cleaning services, municipal services, deeds, electricity compliance certificate, fire protection, etc. municipalities.","*Property payments: Cleaning services\n*Property payments: Commission on municipal services\n*Property payments: Contracted maintenance property\n*Property payments: Deeds\n*Property payments: Electrical compliance certificate\n*Property payments: Fire protection\n*Property payments: First aid\n*Property payments: Gardening services\n*Property payments: Gas\n*Property payments: Laundry services\n*Property payments: Management fee\n*Property payments: Pest control/fumigation services\n*Property payments: Safeguard and security\n*Property payments: Municipal services (Electricity, Sewerage, Waste/Refuse removal, Water)"]
[]
[null,null,null,null,null,65,null,"Transport provided as part of internal activities","Expenses associated with transport provided by the entity itself in transporting people during the execution of its mandate. ","*Transport for excursions\n*Transport for public events\n*Transport: illegal immigrants deportation\n*Transport: land reform/restitution beneficiaries\n*Transport of children vagrants\n*Transport of patients & corps\n*Transport of scholars"]
[]
[null,null,null,null,null,66,null,"Travel and subsistence","\nTravel and subsistence includes all domestic and foreign travel related expenditure paid for employees and non-employees. This item specifically covers expenditure on accommodation cost,  food and beverage, incidental cost, and car rental paid for official travelling purposes.  The amount could also be paid by the entity directly to the travel agency responsible for making the travel arrangements or the service provider.","*Travel and subsistence: Per diem out of town allowance\n*Travel and subsistence: Accommodation\n*Travel and subsistence: Daily allowance\n*Travel and subsistence: Food and beverage\n*Travel and subsistence: Incidental cost\n*Travel and subsistence: Transport\n*Travel and subsistence: Transport-shuttle services"]
[]
[null,null,null,null,null,67,null,"Training and development","Training and development provided to employees and non-employees as well as training materials not provided for separately under goods and services.","*Training and development: Employees\t\n*Training and development: Material&manuals\t\n*Training and development: Non-employees\t"]
[]
[null,null,null,null,null,68,null,"Operating payments","Operating payments category caters for services that are related to the operations of the entity","*Operating payments: Achievements and awards\n*Operating payments: Air charter services and landing rights\n*Operating payments: Cash discount (temporary)\n*Operating payments: Competency certificates / licences / permits\n*Operating payments: Courier and delivery services\n*Operating payments: Freight services transport goods\n*Operating payments: Harbour services, docking fees\n*Operating payments: Honoraria (voluntarily workers)\n*Operating payments: Laundry services\n*Operating payments: Non-life insurance premiums\n*Operating payments: Printing and publications\n*Operating payments: Professional bodies, membership and subscriptions\n*Operating payments: Resettlement cost\n*Operating payments: Road worthy tests\n*Operating payments: School boarding/tuition cost\n*Operating payments: Storage services\n*Operating payments: Warrantees and guarantees\n*Operating payments: Taking over contractual obligations\n*Operating payments: Witness and related cost"]
[]
[null,null,null,null,null,69,null,"Venues and facilities","Venue costs are those cost which are associated with obtaining a right to use that place/ site/location at that particular time. Facilities is anything that helps someone to perform their duties at an optimal level e.g. maintenance of computers and or making sure that all air-conditions are working. Included are the cost incurred from using venues and/or facilities not available within the normal business premises of the entity, normally specialist in nature. Facilities includes all the individual items e.g. chairs, tables, equipment, etc. that comes with the venue."]
[]
[null,null,null,null,null,70,null,"Interest","This item includes the total value of interest payments.\n\nThese are payments associated with debt, for example interest on borrowing and overdraft facilities.  Interest payments on bills and bonds issued by other government units are also included here.  "]
[]
[null,null,null,null,null,71,null,"Dividends","A dividend is a distribution of money or property paid by a corporation out of the corporation's profits to shareholders.\n\nGovernment units are not payers of dividends as a rule.  Exceptions may be public corporations."]
[]
[null,null,null,null,null,72,null,"Rent on land","Rent relates payments in respect of certain leases of land, subsoil assets, and other naturally occurring assets.   Includes only rent of land, and royalties, exploration and rights of use. Rent of buildings are included in operating leases."]
[]
[null,null,null,null,null,73,null,"Transfers and subsidies","This item consists of all unrequited, voluntary payments to other parties. Thus, an entry should be made under this item when government does not receive anything directly in return for the transfer to the other party and the transfer is voluntary.  Both current and capital transfers are included in this item. An example of a capital transfer is a cash payment, which the unit is required to use toward the acquisition of a capital asset. All other transfers are current, for example, donations and grants, which the recipient is not obliged to use to acquire capital assets. The transfers paid are further categorised as;\nSubsidies \nSubsidies on production comprise all current, unrequited payments to businesses – both government and privately owned – on the basis of their level of production or quantity, or values of products produced, sold, imported or exported. Subsidies influence the level of production and / or pricing policies of the recipient. To be classified as a subsidy on production, the transfer must be current.  Subsidies can be payable on specific products or on production in general.\nA subsidy on a product is a subsidy payable per unit of a good or service. The subsidy may be a specific amount of money per unit of quantity of a good or service, or it may be calculated ad valorem as a specified percentage of the price per unit. A subsidy may also be calculated as the difference between a specified target price and the market price actually paid by a buyer. A subsidy on a product usually becomes payable when the good or service is produced, sold, exported, or imported. But it may also be payable in other circumstances, such as when a good is transferred, leased, delivered, or used for own consumption or own capital formation.\nSubsidies on production consist of subsidies that enterprises receive for engaging in production but that are not related to specific products. Included are subsidies on payroll or workforce, which are payable on the total wage or salary bill, the size of the total workforce, or the employment of particular types of person; subsidies to reduce pollution; and payments of interest on behalf of corporations.\nSubsidies also include transfers to public corporations to compensate for losses they incur on their productive activities as a result of charging prices that are lower than their average costs of production because of deliberate government economic and social policy. If such losses have been accumulated over two or more years, however, the transfer is considered of a capital nature and classified as other transfers to public corporations and private enterprises.\n\n\n\n\n"]
[]
[null,null,null,null,null,74,null,"Public and private corporations","Public corporations are resident corporations and quasi-corporations that are subject to control by government units, \nPrivate corporations are all resident corporations and quasi-corporations that are not controlled by government."]
[]
[null,null,null,null,null,75,null,"Transfers to households: Social benefits","These are transfers to protect the entire population or specific segments of the population against certain social risks: events that may adversely affect the welfare of the households concerned such as, loss of employment, poverty etc.\nOther government units can also pay social benefits, like the Unemployment Insurance Fund.\n\n"]
[]
[null,null,null,null,null,76,null,"Other transfers to households","This item includes all other unrequited payments made to individuals and households that are not for social benefits.\nTo note is the inclusion of bursaries awarded to persons who are not employed by the public entity for the purpose of assisting them with tuition and other education and training related costs.  They are transfers since the recipient has no obligation towards the benefactor"]
[]
[null,null,null,null,null,77,null,"Technical reserves (social security funds only)","\nTechnical reserves are as a result of an actuarial evaluation.  They consist of net equity of households in insurance reserves, prepaid premiums and reserves against outstanding claims."]
[]
[null,null,null,null,null,78,null,"Tax payments ","Tax payments include personal income tax, employer-paid payroll tax, real estate property tax, other personal property taxes, unemployment tax, business income tax, and sales and use tax."]
[]
[null,null,null,null,null,79,null,"Surplus/(deficit) for the year/ net cash and cash equivalents/assets-liabilities","The formula checks if the above balances in the template are in accordance with the published audited financial statements"]
[]
[null,null,null,null,null,80,null,"Other movements","Any other non-cash movement not classified in the \"Adjust surplus / (deficit) for accrual transactions\" adjustments."]
[]
[null,null,null,null,null,81,null,"Other flows from Investing Activities\n\n\n\n\n\n\n\n\n\n\n\n\n\n\n\n\n\n\n\n\n\n\n\n\n","Inflows and outflows of cash arising from acquisition and disposal of long-term financial assets and other investments not included in cash equivalents.\n\n\nReason for disclosure of cash flows arising from investing activities \nThe separate disclosure of cash flows arising from investing activities is important because the cash flows represent the extent to which cash outflows have been made for resources which are intended to contribute to the entity’s future service delivery. \n\n\n","•\tCash payments to acquire equity or debt instruments of other entities and interests in joint ventures (other than payments for those instruments considered to be cash equivalents or those held for dealing or trading purposes);\n\n•\tCash receipts from sales of equity or debt instruments of other entities and interests in joint ventures (other than receipts for those instruments considered to be cash equivalents and those held for dealing or trading purposes);\n\n•\tCash advances and loans made to other parties (other than advances and loans made by a public financial institution);\n\n•\tCash receipts from the repayment of advances and loans made to other parties (other than advances and loans of a public financial institution);\n \n•\tCash payments for futures contracts, forward contracts, option contracts and swap contracts except when the contracts are held for dealing or trading purposes, or the payments are classified as financing activities; and\n \n•\tCash receipts from futures contracts, forward contracts, option contracts and swap contracts except when the contracts are held for dealing or trading purposes, or the receipts are classified as financing activities. "]
[]
[null,null,null,null,null,82,null,"Buildings: residential","Dwellings or residential are buildings that are used entirely or primarily as residences, including garages and other associated structures. Houseboats, barges, mobile homes, caravans and military personnel dwellings that are used as principal residences "]
[]
[null,null,null,null,null,83,null,"Buildings: non-residential","Non-residential buildings are all buildings other than dwellings. Examples of types of Buildings included in this category are office buildings, schools, hospitals, buildings for public entertainment, warehouse and industrial buildings, commercial building"]
[]
[null,null,null,null,null,84,null,"Other fixed structures","Other fixed structures consists of all fixed structures other than buildings. For example, roads, bridges and dams."]
[]
[null,null,null,null,null,85,null,"Transport equipment","Transport equipment consists of equipment for moving people and objects. For example, aircrafts, aircraft engines, airport transport equipment, buses, cycles, emergency vehicles, mobile clinics, motor vehicles, railway rolling stock, ships and boats and engines, trailers and accessories and trucks.\n\nFurniture, Machinery, Computer and Office equipment\ni)  Furniture and Office equipment\nThis group of items provides for furniture and office equipment including items such as advertising boards, air conditioners, crockery and cutlery, domestic furniture, linen and soft furnishing, office equipment/furniture, paintings, sculptures, ornaments and school furniture.\n\nii)  Other Machinery and Equipment\nConsists of other machinery and equipment other than transport equipment. They are general and special purpose machinery i.e. electrical machinery, radio, television and communication equipment, furniture, watches and sports goods.\n\niii)  Computer Equipment\nThis includes costs for desktop computers and terminals.  Also included in this item are the once-off cost if separately identified for the operating system purchased with the hardware (e.g. Windows XP Professional, etc).\n\n"]
[]
[null,null,null,null,null,86,null,"Heritage assets","Heritage assets are assets of significant value that government intends to preserve indefinitely because they have unique history, cultural, educational, artistic or architectural significance. Examples are; archives, areas/land of historic significance, library materials,  antiques and collectables, sculpture, paintings, sculptures, state jewellery, works of art, etc."]
[]
[null,null,null,null,null,87,null,"Biological assets","Biological and cultivated assets are animals and plants that are used repeatedly or continuously for more than one year to produce other goods or services. Examples of animals to be included in this category are dairy cattle, draft animals, wool-producing, breeding stocks, game and animals used for transportation and entertainment. Examples of plants are trees, vines and shrubs cultivated for production of fruits, nuts, sap, resin, bark and leaf products. Slaughter animals are not cultivated assets, because they can only be used once."]
[]
[null,null,null,null,null,88,null,"Land and Subsoil assets","Land is the ground itself, including the soil covering, associated surface water, and major improvements that cannot be physically separated from the land but not buildings on it and cultivated plantations etc.\n\nSubsoil assets consist of proven reserves of oil, gas, coal, metallic mineral reserves and nonmetallic mineral reserves, minerals and ores. Mine shafts, wells and other subsoil extraction facilities are fixed assets, rather than subsoil assets."]
[]
[null,null,null,null,null,89,null,"Investment Property","Investment property is property (land or a building or part of a building or both) held (by the owner or by the lessee under a finance lease) to earn rentals or for capital appreciation or both. [IAS 40.5] \nExamples of investment property: [IAS 40.8], land held for long-term capital appreciation, land held for undetermined future use, building leased out under an operating lease, vacant building held to be leased out under an operating lease, property that is being constructed or developed for future use as investment property "]
[]
[null,null,null,null,null,90,null,"Software and other intangible assets","An intangible is an identifiable non-monetary asset without any physical substance. Examples of intangible fixed assets are mineral exploration rights; computer software; literary and artistic originals; and miscellaneous other intangible fixed assets. To qualify as a fixed asset, the item must be intended for use in production for more that one year and its use must be restricted to the units that have established ownership rights over it or to units licensed by the owner. "]
[]
[null,null,null,null,null,91,null,"Domestic long term investments\n\n\n\n\n\n\n\n\n","Net flows of cash made within the borders of South Africa arising from acquisition and/ disposal of assets that an entity intends to hold for more than a year."]
[]
[null,null,null,null,null,92,null,"Foreign long term investments\n            \n\n\n\n\n\n\n\n","Net flows of cash made from outside the borders of South Africa arising from acquisition and/ disposal of assets that an entity intends to hold for more than a year."]
[]
[null,null,null,null,null,93,null,"Interest","Income associated with ownership of interest-bearing financial instruments, such as and bills and bonds issued by third parties.","*Interest from financial derivatives"]
[]
[null,null,null,null,null,94,null,"Dividends","These are profit distributions receivable by public entities on equity participation in private and public sector entities.  Dividends come in the form of revenue from shares and distribution of profits to the owner.  Gains/losses associated with valuation changes should not be included in the amount reported here, these are recorded under the transactions in financial assets and liabilities category.","*Dividends from shares and other equity"]
[]
[null,null,null,null,null,95,null,"Outside shareholders interest","Outside shareholders have no links with the company but have a financial Interest in its operating performance."]
[]
[null,null,null,null,null,96,null,"Deferred income","Deferred income is the converse of accruals. It is income received during an accounting period, but which is not yet reported as earned.  For example, a business may receive payment for a service or a product that has not yet been supplied. Thus cannot be recognised as income up until such time the condition is fulfilled.(from the template)"]
[]
[null,null,null,null,null,97,null,"Borrowing activities ","in a cash flow environment is the lending of money by one institution to the next and this amounts to loans.\nA loan is an arrangement in which a lender gives money to a borrower, and the borrower agrees to repay the money, usually along with interest, at some future point(s) in time. There is usually a predetermined time for repaying a loan, and mostly the lender has to bear the risk that the borrower may not repay a loan.\nThe loan could be obtained from either:\n(a)One of the local government institutions (Domestic loan denominated in Rand value) or\n(b)Through the market (searching for the most economical deal in the market. The market includes both local and foreign)\ni.One of the local financial services providers (Local or domestic loan denominated in Rand value) or\nii.One of the international financial services providers (Foreign loan denominated in a foreign currency which comes with the risk of foreign exchange currency fluctuations).\nThe agreed-upon loan repayment period determines further classification between long-term and short-term loans.\nShort term loans are loans payable within 12 months and long term loans are payable beyond 12 months period. \n"]
[]
[null,null,null,null,null,98,null,"Repayment of finance leases","A finance lease is a lease that transfers substantially all the risks and rewards of ownership of an asset. Title may or may not eventually be transferred. In substance, the lessee purchases an asset by way of a financing arrangement between itself (the lessee) and the lessor. This payment should be classified as a payment for capital assets in the budget format. The interest portion is classified as current interest, dividends and rent on land, interest paid finance leases in the budget format. Refer to Practice Note 5 of 2006/07 issued by the Office of the Accountant- General for specific rules regarding this type of transaction."]
[]
[null,null,null,null,null,99,null,"Other (e.g. issuance of shares, revaluations)"]
[]
[null,null,null,null,null,100,null,"Interest and dividends or similar distributions","Interest and dividends or similar distributions received and paid should be disclosed separately.\nThe total amount of interest paid during a period is disclosed in the cash flow statement.\nInterest paid and interest and dividends (or similar distributions) received may be classified as either operating, investing, or financing activities. The classification of interest paid, and interest and dividends (or similar distributions) received should be driven by the source.\n"]
[null,null,null,null,null,null,null," STATEMENT OF FINANCIAL POSITION"]
[null,null,null,null,null,101,null,"Cash and cash equivalents","Cash and cash equivalents are the most liquid assets found within the asset portion of a company's balance sheet. Cash equivalents are assets that are readily convertible into cash, such as money market holdings, short-term government bonds or Treasury bills, marketable securities and commercial paper."]
[]
[null,null,null,null,null,102,null,"Trade and other receivables from exchange transactions","These are current asset representing money due for services performed or merchandise sold on credit after adjusting provision for doubtful debts. The provision for doubtful debts is subtracted from Accounts Receivable to arrive at what is called \"net realizable receivables.\""]
[]
[null,null,null,null,null,103,null,"Other receivables from non-exchange transactions, including taxes, fines and transfers","These are current asset representing money due from non-exchange activities such as fines. The provision for doubtful debts is subtracted from Accounts Receivable to arrive at what is called \"net realizable receivables.\""]
[]
[null,null,null,null,null,104,null,"Prepayments","The satisfaction of a debt or installment payment before its official due date. A prepayment can be for the entire balance or for any upcoming payment that is paid in advance of the date for which the borrower is contractually obligated to pay it. Examples of a prepayment come in the form of rent or early loan repayments. "]
[]
[null,null,null,null,null,105,null,"VAT receivable","VAT Receivables is the carrying amount due within one year of one operating cycle from tax authorities as of the balance sheet date representing VAT refunds of overpayment e.g. Input tax vs Output tax."]
[]
[null,null,null,null,null,106,null,"Income tax receivable","Its carrying amount due within one year of one operating cycle from tax authorities as of the balance sheet date representing refunds of overpayments or recoveries based on agreed-upon resolutions of disputes."]
[]
[null,null,null,null,null,107,null,"Inventory","Inventories are assets/ goods and services held for sale in the ordinary course of business (finshed goods), in the process of production for such sale (working in process), or in the form of materials or supplies to be consumed in the production process or in the rendering of service.Goods\" in question will however have an aspect of service which was provided in the form of labour that went into the manufacture of whatever item is being produced"]
[]
[null,null,null,null,null,108,null,"Short term loans","Short term loans are non-derivative financial assets with fixed or determinable payments that are not quoted in an active market. Loans to other enterprises expected to be recovered within twelve months period are examples of assets falling into the loans and receivables category."]
[]
[null,null,null,null,null,109,null,"Accrued Investment Interest/Accrued interest","A term used to describe an accrual accounting method when interest that is receivable has been recognized, but not yet received"]
[]
[null,null,null,null,null,110,null,"Current investments","Current investment is a purchase of an asset or item with the hope that it will generate income or appreciate and/sold at the higher price or that will expire within one year , such as bonds, stock, collectible annuities and real property."]
[]
[null,null,null,null,null,111,null,"Other current financial assets","A current financial assets is  any asset that is cash, equity instrument of another entity e.g. investment in the ordinary shares of another entity; a contractual right to receive cash or  another  financial asset from another entity (e.g. bonds); a contractual right to exchange financial instruments with  another entity under conditions that are potentially favourable (e.g. an option to acquire shares in another company); a contract that will or may be settled in the entity's own equity instrument (Derivative or Non- derivative). These are expected to be realised in a period of less than twelve months."]
[]
[null,null,null,null,null,112,null,"Construction contracts and receivables","These are construction contracts monies receivable over a short period."]
[]
[null,null,null,null,null,113,null,"Non Current Assets Held for Sale","Non-current assets are reclassiﬁed as current assets when they are held for sale. A non-current asset is regarded as ‘held for sale’ if its carrying amount will be recovered principally through a sale transaction, rather than through continuing use. To be classiﬁed as a non-current asset held for sale: the asset must be available for immediate sale; and the sale must be highly probable.  This requires management commitment to sell, active marketing at a reasonable price, and the expectation of a completed sale within one year.Non-current assets classified as held for sale shall not be depreciated. But Impairment must be considered both at the time of classification as held for sale and after classification as held for sale.\n"]
[]
[null,null,null,null,null,114,null,"Finance lease receivable","The present value of the lease receipts expected during the lease term"]
[]
[null,null,null,null,null,115,null,"Statutory Receivables - Exchange","These are receivables that arise from legislation, supporting regulations, or similar means and require settlement by another entity in cash or using another financial instrument. These receivables are in exchange for a good or a service.","E.g property rates, levies, licences"]
[]
[null,null,null,null,null,116,null,"Statutory Receivables - Non Exchange","These are receivables that arise from legislation, supporting regulations, or similar means and require settlement by another entity in cash or using another financial instrument. This receivable is not in exchange of anything.","Income tax, grants and transfers, fines and penalties"]
[]
[null,null,null,null,null,117,null,"Operating Lease Asset ","The receivable arising from a contract that allows an external party to use an asset, but rights or ownership do not pass to the lessee.","e.g lease receivable from an opeerating lease agreement."]
[]
[null,null,null,null,null,118,null,"Derivatives financial instruments"," A derivative is a financial instrument whose value changes in relation to changes in a variable, such as an interest rate, commodity price, credit rating, or foreign exchange rate. It also requires either a small or no initial investment, and it is settled at a future date. It allows an entity to speculate on or hedge against future changes in market factors at minimal initial cost.  Examples of derivatives are call options, put options, forwards, futures, and swaps.  "]
[]
[null,null,null,null,null,119,null,"Non-current receivables from non-exchange transactions","These are accounts or promissory notes due for payment to an entity other than from its normal operations that is not expected to be collected within one year of the balance sheet date.  Examples of non-trade receivables are amounts owed to a company by its employees for loans or wage advances, tax refunds owed to it by taxing authorities, or insurance claims owed to it by an insurance company"]
[]
[null,null,null,null,null,120,null,"Non-current receivables from exchange transactions","These are accounts or promissory notes due for payment to an entity other than from its normal operations that is not expected to be collected within one year of the balance sheet date.  Examples of non-trade receivables are amounts owed to a company by its employees for loans or wage advances, tax refunds owed to it by taxing authorities, or insurance claims owed to it by an insurance company"]
[]
[null,null,null,null,null,121,null,"Non Current Receivables - Statutory Receivables - Exchange","These are receivables that arise from legislation, supporting regulations, or similar means and require settlement by another entity in cash or using another financial instrument. These receivables are in exchange for a good or a service.","E.g property rates, levies, licences"]
[]
[null,null,null,null,null,122,null,"Non Current Receivables - Statutory Receivables - Non-Exchange","These are receivables that arise from legislation, supporting regulations, or similar means and require settlement by another entity in cash or using another financial instrument. This receivable is not in exchange of anything.","Income tax, grants and transfers, fines and penalties"]
[]
[null,null,null,null,null,123,null,"Finance lease receivable","The present value of the lease receipts expected during the lease term"]
[]
[null,null,null,null,null,124,null,"Long term loan","Long term loans and receivables are non-derivative financial assets with fixed or determinable payments that are not quoted in an active market.  These are loans to other enterprises expected to be recoverd over twelve months period."]
[]
[null,null,null,null,null,125,null,"Other non-current financial assets","A non curent financial assets is  any asset that is cash, equity instrument of another entity e.g. investment in the ordinary shares of another entity; a contractual right to receive cash or  another  financial asset from another entity (e.g. bonds); a contractual right to exchange financial instruments with  another entity under conditions that are potentially favourable (e.g. an option to acquire shares in another company); a contract that will or may be settled in the entity's own equity instrument (Derivative or Non- derivative). These are expected to be realised in a period of over twelve months."]
[]
[null,null,null,null,null,126,null,"Non-Current Investments","Investments are long term shares such as real property, stocks, bonds, collectible annuities, mutual fund shares, etc., held by an entity in another company. An entity acquires these shares with the expectation of realizing income or capital gain, or both, in the long term future"]
[]
[null,null,null,null,null,127,null,"Investments in Subsidiary / Municipal entity","This is an investment in a subsidiary which is a company that is partly or completely owned by another company that holds a controlling interest in the subsidiary company"]
[]
[null,null,null,null,null,128,null,"Investments in Joint Ventures","This is an investment in a joint venture which is a business agreement in which parties agree to develop, for a finite time, a new entity and new assets by contributing equity. They exercise control over the enterprise and consequently share revenues, expenses and assets."]
[]
[null,null,null,null,null,129,null,"Investments in Associates","This is an investment in an associate which is an entity over which an investor has significant influence, being the power to participate in the financial and operating policy decisions of the investee (but not control or joint control)."]
[]
[null,null,null,null,null,130,null,"Deferred Tax Assets","Deferred tax assets are amounts of income taxes recoverable in future periods in respect of deductible temporary differences; the carry forward of unused tax losses; and the carry forward of unused tax credits"]
[]
[null,null,null,null,null,131,null,"Defined Benefit Plan Assets","Defined Benefit Plans are plans in which the employer’s obligation is not limited to contribution toward a benefit, but rather based on the benefit promised to the employees. The amount could be determined with reference to a plan benefit formula, which stipulates the value of the benefit, a guarantee of a specified return on contribution, or informal practices that give rise to constructive obligation.  Many defined benefit plans include early retirement provisions to encourage employees to retire early, before the attainment of normal retirement age (usually age 65). Companies would rather hire younger employees at lower wages."]
[]
[null,null,null,null,null,132,null,"Property, plant and equipment","This is a term used in accounting for assets and property which cannot easily be converted into cash.  These are items of value which the organization has bought and will use for an extended period of time; this normally include items such as land and buildings, motor vehicles, furniture, office equipment, computers, fixtures and fittings, and plant and machinery"]
[]
[null,null,null,null,null,133,null,"Investment property","These are properties not occupied by the owner held to earn rentals or for capital appreciation or both."]
[]
[null,null,null,null,null,134,null,"Intangible assets","An intangible asset is an identifiable non-monetary asset without any physical substance. Examples of intangible assets are mineral exploration rights; computer software; literary and artistic originals; patents, copyrights, trademarks, trade names, licenses, goodwill and miscellaneous other items that lack physical substance but provide long term benefits to the company. To qualify as a fixed asset, the item must be intended for use in production for more that one year and its use must be restricted to the units that have established ownership rights over it or to units licensed by the owner. "]
[]
[null,null,null,null,null,135,null,"Biological assets","Biological and cultivated assets are animals and plants that are used repeatedly or continuously for more than one year to produce other goods or services. Examples of animals to be included in this category are dairy cattle, draft animals, wool-producing, breeding stocks, game and animals used for transportation and entertainment. Examples of plants are trees, vines and shrubs cultivated for production of fruits, nuts, sap, resin, bark and leaf products. Slaughter animals are not cultivated assets, because they can only be used once."]
[]
[null,null,null,null,null,136,null,"Heritage assets","A heritage assets is an item that has value because of its contribution to a nation’s society, knowledge and/or culture.  They are of such significant value that government intends to preserve indefinitely because they have unique history, cultural, educational, artistic or architectural significance. South African examples are archives, areas/land of historic significance and culture."]
[]
[null,null,null,null,null,137,null,"Living resources ","Living resources are those resources that undergo biological transformation.","E.g animals and plants that are used or held for: research, conservation, recreation, agricultural activities, education/training and rehabilitation or breeding purposes."]
[]
[null,null,null,null,null,138,null,"Operating Lease Assets","The receivable arising from a contract that allows an external party to use an asset, but rights or ownership do not pass to the lessee.","e.g lease receivable from an opeerating lease agreement."]
[]
[null,null,null,null,null,139,null,"Bank overdraft","A credit agreement made with a financial institution that permits an account holder to use or withdraw more than they have in their account, without exceeding a specified maximum negative balance. Establishing an overdraft facility with a bank can help an individual or small business with short term cash flowproblems, although the negative balance typically needs to be repaid within a month."]
[]
[null,null,null,null,null,140,null,"Trade and other payables from exchange transactions","Accounts payable is an entity's short-term obligation to pay suppliers for products and services, which the entity purchased on credit. If accounts payable are not paid within the payment terms agreed to with the supplier, the payables are considered to be in default, which may trigger a penalty or interest payment, or the revocation or curtailment of additional credit from the supplier."]
[]
[null,null,null,null,null,141,null,"Benefits payable (for UIF only)","This account group is used to record amounts due to eligible third party claimants within the current operating period. It consists of benefits to be paid to authorized or designated retirees within the current fiscal year. "]
[]
[null,null,null,null,null,142,null,"Accrued interest","Accrued interest is the amount of loan interest that has already occurred, but has not yet been paid to the lender by the borrower"]
[]
[null,null,null,null,null,143,null,"VAT payable","VAT registered businesses collect VAT on behalf of the government. Businesses add a certain percentage of the sales price as VAT and charge the full amount to the customer. For example, if a VAT registered dealer sells a car for R10, 000 and the VAT rate is 15 per cent, then the dealer charges the customer R11, 500. The dealer then forwards the R1, 500 to the government. The amount that the dealer is required to forward to the government is called VAT payable."]
[]
[null,null,null,null,null,144,null,"Income Tax Payable","Income tax is a liability showing the income taxes now due, this includes the current portion (due) of any deferred taxes. It is paid by employees and people who are self-employed. It may also be payable if you aren't working if, for example, you have an income from a pension or savings."]
[]
[null,null,null,null,null,145,null,"Taxes and transfers payable","Taxes and transfers payables are unrequited payments to other government units, corporations and households.Taxes are compulsory and there have no direct quid pro quo. Transfers can either be compulsory or voluntary"]
[]
[null,null,null,null,null,146,null,"Current provisions(Other)","Provision, generally, is to prepare in advance for an event that is projected to take place in the future. In accounting, it is an amount charged against profits for a specific liability (for example: bad debts, depreciation or taxes). A liability may be known, but the amount is often uncertain. This uncertainty may lead to an adjustment in a later income statement once the final amount of the liability is ascertained."]
[]
[null,null,null,null,null,147,null,"Current portion of unspent conditional grants and receipts","A conditional grant is an allocation of money from one sphere of government to another, conditional on certain services being delivered or on compliance with specified requirements. It is payable within a specific period of time of less than a year."]
[]
[null,null,null,null,null,148,null,"Deferred income","Deferred income is the converse of accruals. It is income received during an accounting period, but which is not yet reported as earned.  For example, a business may receive payment for a service or a product that has not yet been supplied. Thus cannot be recognised as income up until such time the condition is fulfilled."]
[]
[null,null,null,null,null,149,null,"Current portion of long-term borrowings","It is the amount of unpaid principal from long term loans or borrowings that has accrued in a normal operating cycle.","E.g a portion or an instalment towards a long term loan that is paid or supoosed to be paid in that certain financial year. E.g an entity takes a long term loan from another entity and the agreement is that a quarter of that loan is to be paid every 3 years until the loan is paid up, within those financial years that the instalment is paid, it will be considered as current portion of long term loan."]
[]
[null,null,null,null,null,150,null,"Short-term loans","Short-term loans are generally loans in which borrowers can receive cash quickly from a lender, typically a bank or a paycheck loan business. Usually, short-term loans are processed fast and the minimum amount of time for a short-term loan is about 3 months, and in some cases, short-term loans can extend to up to 1 year."]
[]
[null,null,null,null,null,151,null,"Other current financial liabilities","A financial liability is a contractual obligation to deliver cash or similar to another entity or a potentially unfavourable exchange of financial assets or liabilities with another entity over a period of less than twelve months. "]
[]
[null,null,null,null,null,152,null,"Current portion of finance lease liability","A finance lease is a lease that is primarily a method of raising finance to pay for assets. It is also termed a capital lease.  At the end of the lease, the ownership of the assets reverts to the lease. This is an estimated figure payable within twelve months  period"]
[]
[null,null,null,null,null,153,null,"Managed funds","A fund in a public sector is a self-balancing set of financial books that is used to control and monitor the planned use of resources, often in compliance with legal and administrative requirements. Public-sector organizations use funds to demonstrate their fiscal accountability. \n\nThe word \"fund\" in government has taken several meanings or connotations. It is sometimes used to refer an appropriation which is a legislative authorization to spend or an allotment which is an authorization by the Department of Budget and Management (DBM) to obligate, or as actual cash available","E.g a fund manager manages a portfolio of investments such as shares and corporate bonds on behalf of the trust's beneficiaries. "]
[]
[null,null,null,null,null,154,null,"Service Concession Arrangement ","It is an arrangement whereby a government or other public sector body contracts with a private operator to develop, operate and maintain an infrastructure asset. ","E.g an arrangement for building of a road, bridge, tunnel, airport etc"]
[]
[null,null,null,null,null,155,null,"Derivatives financial instruments"," A derivative is a financial instrument whose value changes in relation to changes in a variable, such as an interest rate, commodity price, credit rating, or foreign exchange rate. It also requires either a small or no initial investment, and it is settled at a future date. It allows an entity to speculate on or hedge against future changes in market factors at minimal initial cost.  Examples of derivatives are call options, put options, forwards, futures, and swaps.   Examples of derivatives are call options, put options, forwards, futures, and swaps.\n\n \n"]
[]
[null,null,null,null,null,156,null,"Deferred tax liabilities","Deferred tax liability is the amount of income tax payable in future periods in respect of the taxable temporary differences. A deferred tax liability records the fact that the company will, in the future, pay more income tax because of a transaction that took place during the current period, such as an instalment sale receivable. "]
[]
[null,null,null,null,null,157,null,"Unspent conditional grants and receipts","A conditional grant is an allocation of money from one sphere of government to another. The grant is only recognised as revenue to the extent that the recipient/spending agency has complied with all of the criteria, conditions or obligations embodied in the agreement. The unspent conditional grants therefore represent the unspent portion of government grants, subsidies and contributions from the other spheres of government."]
[]
[null,null,null,null,null,158,null,"Benefits payable (UIF only)","This account group is used to record amounts due to eligible third party claimants within the current operating period. It consists of benefits to be paid to authorized or designated retirees within the current fiscal year. The Non-current portion of this item represents the part recognised by the Fund in the year under review but only to be paid in future."]
[]
[null,null,null,null,null,159,null,"Long-term borrowings","Borrowings comprise obligations under bank overdrafts, loans due to other group companies, redeemable debentures, bonds, commercial paper, bills of exchange and any other form of borrowing. These borrowings are payable over a period of twelve months.  Accrued interest on borrowings should not be included here.  Finance leases, although are borrowings too, should not be classified under this line."]
[]
[null,null,null,null,null,160,null,"Finance lease liability","A finance lease is a lease that transfers substantially all the risks and rewards incidental to the ownership of an asset. The title may (through a bargain purchase option) or may not eventually be transferred to the lessee. "]
[]
[null,null,null,null,null,161,null,"Operating Lease Liability","An operating lease is the rental of an asset from a lessor, but not under the terms that would classify it as a capital lease. An operating lease tends to have a shorter duration than a capital lease, and the lessee does not have the option to acquire the asset through a bargain purchase option.  The liability is the amount owed under the contract.  Operating lease liability is the  amount of money that a customer owes under the terms of a lease contract."]
[]
[null,null,null,null,null,162,null,"Other non-current financial liabilities","A financial liability is any liability that is a contractual obligation to deliver cash or another financial asset to another entity or to exchange financial instruments with another entity under conditions that are potentially unfavourable. It is also a contract that will or may be settled in the entity's own equity instruments (could be a non-derivative for which the entity is/may be obliged to deliver a variable number of its own equity instruments or a derivative that will/may be settled other than by the exchange of fixed amount of cash  for a fixed number of the entity's own equity instruments)"]
[]
[null,null,null,null,null,163,null,"Non-current provisions(Post retirement benefits)","Benefits provided by a company to retirees. Typical examples of potential benefits are pensions, life insurance, and health insurance."]
[]
[null,null,null,null,null,164,null,"Defined benefit plan obligations"," A defined benefit plan is a retirement benefit plan under which payments to former employees are fixed based on a formula that typically incorporates employee earnings and/or years of service. It has no direct relationship to the funding entity's payments to the fund from which payments are made"]
[]
[null,null,null,null,null,165,null,"Deferred income","Deferred income is the converse of accruals. It is income received during an accounting period, but which is not yet reported as earned.  For example, a business may receive payment for a service or a product that has not yet been supplied. Thus cannot be recognised as income up until such time the condition is fulfilled."]
[]
[null,null,null,null,null,166,null,"Managed funds","These are funds instituted by the fiscus to run activities across various government institutions to deliver on a particular national priority, e.g. poverty alleviation fund.  Allocations are typically disbursed from those particular funds and are monitored from one central point. It is payable over a specific period of more than twelve months."]
[]
[null,null,null,null,null,167,null,"Service Concession Arrangement ","It is an arrangement whereby a government or other public sector body contracts with a private operator to develop, operate and maintain an infrastructure asset. ","E.g an arrangement for building of a road, bridge, tunnel, airport etc"]
[]
[null,null,null,null,null,168,null,"Derivatives financial instruments","A derivative is a financial instrument whose value changes in relation to changes in a variable, such as an interest rate, commodity price, credit rating, or foreign exchange rate. It also requires either a small or no initial investment, and it is settled at a future date. It allows an entity to speculate on or hedge against future changes in market factors at minimal initial cost. Examples of derivatives include structured debt obligations and deposits, swaps, futures, options, caps, floors, collars, forwards, and other various combinations. "]
[]
[null,null,null,null,null,169,null,"Accumulated surplus / (deficit)","Accumulated surplus refers to the portion of net income which is retained by the organization rather than distributed to its owners as dividends. Similarly, if the organization makes a loss, then that loss is retained and called variously accumulated losses or accumulated deficit. Accumulated surpluses and deficits are cumulative from year to year with losses offsetting earnings."]
[]
[null,null,null,null,null,170,null,"Reserves","Capital, in economics, can mean: factories, machines, and other man-made inputs into a production process. In finance, capital is money and other property of a corporation or other enterprise used in transacting the business.                                                                                                             Reserves are generally those accounts where retained earnings are set aside to satisfy dividends, improvements, contingencies, retirement of preferred stock, etc., thereby cannot be distributed for other uses. Included are Non-distributable reserves (other than share capital and share premium). It will include Capital Redemption reserves, contingency reserves and other capital reserves. Amounts attributable to minority interests (if applicable) should also be included in this category"]
[]
[null,null,null,null,null,171,null,"Revaluation Reserve","A revaluation reserve is a non-cash reserve created to reflect the true value of the asset when the market value of a certain category of asset is more or less than the value of such asset at which it is recorded in the books of account.","For example, revaluation reserves are often used when an asset’s market value greatly fluctuates or is volatile due to currency relationships."]
[]
[null,null,null,null,null,172,null,"Translation Reserve","Is a type of reserve that is created to account for foreign currency translation. ","For example, if your company has its headquarters in the US but has operations in the UK, you must translate the British pound into US dollar."]
[]
[null,null,null,null,null,173,null,"Share capital / capital fund","Share capital is the proportion of a company’s equity that came from the sale of its shares to the shareholders for cash. \n","Examples of share capital: authorized capital, issued capital, subscribed capital etc. "]
[]
[null,null,null,null,null,174,null,"Capitalised value of pensions (for Comp Fund only)","Whenever a compensation claim has been approved and registered as a permanent disability, the total amount payable will be calculated and capitalised, and the monthly pension payments will be made from that capitalised value amount up to the last month of pension ( normally is up to 68 years or when the beneficiary pass on, whichever comes first)."]
[]
[null,null,null,null,null,175,null,"Non-Controlling Interests","A non-controlling interest, also known as a minority interest, is an ownership position wherein a shareholder owns less than 50% of outstanding shares and has no control over decisions. Non-controlling interests are measured at the net asset value of entities and do not account for potential voting rights."]
[]
[null,null,null,null,null,176,null,"Consumer deposits","Consumer deposits are refundable deposits paid by consumer on securing a contract for services. Examples are deposits for electricity and water."]
[]
[null,null,null,null,null,177,null,"Taxation","A means by which governments finance their expenditure by imposing charges on citizens and corporate entities.\nGovernments use taxation to encourage or discourage certain economic decisions. For example, reduction in taxable personal (or household) income by the amount paid as interest on home mortgage loans results in greater construction activity, and generates more jobs. See also taxation principles.\n"]
[]
[null,null,null,null,null,178,null,"Payments received in advance","The satisfaction of a debt or installment payment before its official due date. A prepayment can be for the entire balance or for any upcoming payment that is paid in advance of the date for which the borrower is contractually obligated to pay it. Examples of a prepayment come in the form of rent or early loan repayments. "]
[]
[null,null,null,null,null,179,null,"Official development assistance","Official resource flows (from international development partners) to South Africa in the form of grants, technical assistance and concessional loans and guarantees, where the South African Government is held at least partially responsible or accountable for the management of such resources."]
[]
[null,null,null,null,null,180,null,"Partner (Country)","The common name of the foreign country from which the funds originate, i.e. the home country of the partner (institution); or regional/international organisation (e.g. European Union, African Union etc.) or multilateral institution (e.g. United Nations, World Bank etc.)"]
[]
[null,null,null,null,null,190,null,"Partner (Institution)","The name of the foreign government department or agency (e.g. Federal Foreign Office, European Investment Bank etc.); or regional/international organisation agency (e.g. European Investment Bank, African Development Bank etc.) or multilateral institution agency (United Nations Environment Programme, International Reconstruction and Development Bank etc.)"]
[]
[null,null,null,null,null,200,null,"Programme/Project","The non-abbreviated name of the programme/project as it appears in the allocation letter/notice of award/agreement with the partner (institution)"]
[]
[null,null,null,null,null,201,null,"Total Commitment","Total funds committed by the partner (institution) to the programme/project denominated in the relevant currency per the allocation letter/notice of award/agreement with the partner (institution)"]
[]
[null,null,null,null,null,202,null,"Receipts","Funds received (cash receipts) from the partner (institution) for the programme/project denominated in Rands"]
[]
[null,null,null,null,null,203,null,"Payments","Funds disbursed or spent (cash payments) against the funds received from the partner (institution) for the programme/project) denominated in Rands"]

{"sheet":"Revenue","index":4,"n_rows":73,"n_cols":21,"rows_kept":73,"cut":false,"hidden":false,"merged":[[8,16,8,17],[8,14,8,15],[8,10,8,11],[8,12,8,13]]}
[]
[]
[]
[]
[]
[null,null,null,null,null,"PE No",{"$f":"Settings!$O$2","v":"PE126"}]
[null,null,null,null,null,"Entity name",{"$f":"Settings!$E$2","v":"South African Revenue Service"},null,null,null,null,null,null,null,null,null,null,null,{"$f":"IF(S65<R65/2,\"Complete outer year budget\",\"\")","v":"Complete outer year budget"}]
[]
[null,null,null,null,null,null,"Notes",null,{"$f":"MyYearM3","v":"2022/23"},{"$f":"MyYearM2","v":"2023/24"},{"$f":"MyYearM1","v":"2024/25"},null,{"$f":"MyYear0","v":"2025/26"},null,{"$f":"MyYearP1","v":"2026/27"},null,{"$f":"MyYearP2","v":"2027/28"},null,{"$f":"MyYearP3","v":"2028/29"}]
["ItemCat","Item code",null,null,null,"Revenue",null,null,{"$f":"Hist_year2RestatedAudited","v":"Audited\noutcome"},{"$f":"Hist_year2RestatedAudited","v":"Audited\noutcome"},{"$f":"Hist_year1Budget","v":"Budget"},{"$f":"Hist_year1Audited","v":"Audited\noutcome"},{"$f":"Cur_YearBudgEst","v":"Budget\nestimate"},{"$f":"Cur_YearApprovedBudg","v":"Approved budget"},{"$f":"MTEF1BudgEst","v":"Budget\nestimate"},{"$f":"MTEF1RevBudgEst","v":"Revised\nbudget\nestimate"},{"$f":"MTEF2BudgEst","v":"Budget\nestimate"},{"$f":"MTEF2RevBudgEst","v":"Revised\nbudget\nestimate"},{"$f":"MTEF3PlanBudgetEst","v":"Planning\nbudget \nestimate"}]
[1,null,null,null,null,"R Thousand "]
[1,"RE1",null,null,null,"Revenue"]
[1,"RE11",null,null,null,"Tax revenue",1,null,{"$f":"[1]Revenue!J13","v":0},{"$f":"[1]Revenue!L13","v":0},{"$f":"[1]Revenue!N13","v":0},{"$f":"[1]Revenue!N13","v":0},{"$f":"[1]Revenue!P13","v":0},{"$f":"[1]Revenue!P13","v":0},{"$f":"[1]Revenue!R13","v":0},{"$f":"[1]Revenue!R13","v":0},{"$f":"[1]Revenue!S13","v":0},{"$f":"[1]Revenue!S13","v":0},0]
[1,"RE12",null,null,null,"Sales of goods and services other than capital assets",3,null,{"$f":"SUM(I15,I29,I30)","v":715182.73576999991},{"$f":"SUM(J15,J29,J30)","v":616661.2215499999},1632739.5569041055,1632739.5569041055,532723.806116155,532723.806116155,552813.15919012437,552813.15919012437,573873.39181011461,573873.39181011461,0]
[1,"RE121",null,null,null,"Sales of goods and services produced by entity",3,null,{"$f":"SUM(I16,I21,I26)","v":429948.87092999992},{"$f":"SUM(J16,J21,J26)","v":462935.73148999998},431549.4111441056,431549.4111441056,443999.80611615477,443999.80611615477,456813.79119011993,456813.79119011993,470002.07563411363,470002.07563411363,0]
[1,"RE1211",null,null,null,"Administration fees",4,null,{"$f":"SUM(I17:I20)","v":429948.87092999992},462935.73148999998,431549.4111441056,431549.4111441056,443999.80611615477,443999.80611615477,456813.79119011993,456813.79119011993,470002.07563411363,470002.07563411363,0]
[1,"RE12111",null,null,null,{"$f":"[1]Revenue!F17","v":"Commission received"},null,null,{"$f":"[1]Revenue!J17","v":429948.87092999992},{"$f":"[1]Revenue!L17","v":462935.73148999998},{"$f":"[1]Revenue!N17","v":431549.4111441056},{"$f":"[1]Revenue!N17","v":431549.4111441056},{"$f":"[1]Revenue!P17","v":443999.80611615477},{"$f":"[1]Revenue!P17","v":443999.80611615477},{"$f":"[1]Revenue!R17","v":456813.79119011993},{"$f":"[1]Revenue!R17","v":456813.79119011993},{"$f":"[1]Revenue!S17","v":470002.07563411363},{"$f":"[1]Revenue!S17","v":470002.07563411363},0]
[1,"RE12112",null,null,null,{"$f":"[1]Revenue!F18","v":"Please specify"},null,null,{"$f":"[1]Revenue!J18","v":0},{"$f":"[1]Revenue!L18","v":0},{"$f":"[1]Revenue!N18","v":0},{"$f":"[1]Revenue!N18","v":0},{"$f":"[1]Revenue!P18","v":0},{"$f":"[1]Revenue!P18","v":0},{"$f":"[1]Revenue!R18","v":0},{"$f":"[1]Revenue!R18","v":0},{"$f":"[1]Revenue!S18","v":0},{"$f":"[1]Revenue!S18","v":0},0]
[1,"RE12113",null,null,null,{"$f":"[1]Revenue!F19","v":"Please specify"},null,null,{"$f":"[1]Revenue!J19","v":0},{"$f":"[1]Revenue!L19","v":0},{"$f":"[1]Revenue!N19","v":0},{"$f":"[1]Revenue!N19","v":0},{"$f":"[1]Revenue!P19","v":0},{"$f":"[1]Revenue!P19","v":0},{"$f":"[1]Revenue!R19","v":0},{"$f":"[1]Revenue!R19","v":0},{"$f":"[1]Revenue!S19","v":0},{"$f":"[1]Revenue!S19","v":0},0]
[1,"RE12114",null,null,null,{"$f":"[1]Revenue!F20","v":"Please specify"},null,null,{"$f":"[1]Revenue!J20","v":0},{"$f":"[1]Revenue!L20","v":0},{"$f":"[1]Revenue!N20","v":0},{"$f":"[1]Revenue!N20","v":0},{"$f":"[1]Revenue!P20","v":0},{"$f":"[1]Revenue!P20","v":0},{"$f":"[1]Revenue!R20","v":0},{"$f":"[1]Revenue!R20","v":0},{"$f":"[1]Revenue!S20","v":0},{"$f":"[1]Revenue!S20","v":0},0]
[1,"RE1212",null,null,null,"Sales by market establishments",5,null,{"$f":"SUM(I22:I25)","v":0},0,0,0,0,0,0,0,0,0,0]
[1,"RE12121",null,null,null,{"$f":"[1]Revenue!F22","v":"Please specify"},null,null,{"$f":"[1]Revenue!J22","v":0},{"$f":"[1]Revenue!L22","v":0},{"$f":"[1]Revenue!N22","v":0},{"$f":"[1]Revenue!N22","v":0},{"$f":"[1]Revenue!P22","v":0},{"$f":"[1]Revenue!P22","v":0},{"$f":"[1]Revenue!R22","v":0},{"$f":"[1]Revenue!R22","v":0},{"$f":"[1]Revenue!S22","v":0},{"$f":"[1]Revenue!S22","v":0},0]
[1,"RE12122",null,null,null,{"$f":"[1]Revenue!F23","v":"Please specify"},null,null,{"$f":"[1]Revenue!J23","v":0},{"$f":"[1]Revenue!L23","v":0},{"$f":"[1]Revenue!N23","v":0},{"$f":"[1]Revenue!N23","v":0},{"$f":"[1]Revenue!P23","v":0},{"$f":"[1]Revenue!P23","v":0},{"$f":"[1]Revenue!R23","v":0},{"$f":"[1]Revenue!R23","v":0},{"$f":"[1]Revenue!S23","v":0},{"$f":"[1]Revenue!S23","v":0},0]
[1,"RE12123",null,null,null,{"$f":"[1]Revenue!F24","v":"Please specify"},null,null,{"$f":"[1]Revenue!J24","v":0},{"$f":"[1]Revenue!L24","v":0},{"$f":"[1]Revenue!N24","v":0},{"$f":"[1]Revenue!N24","v":0},{"$f":"[1]Revenue!P24","v":0},{"$f":"[1]Revenue!P24","v":0},{"$f":"[1]Revenue!R24","v":0},{"$f":"[1]Revenue!R24","v":0},{"$f":"[1]Revenue!S24","v":0},{"$f":"[1]Revenue!S24","v":0},0]
[1,"RE12124",null,null,null,{"$f":"[1]Revenue!F25","v":"Please specify"},null,null,{"$f":"[1]Revenue!J25","v":0},{"$f":"[1]Revenue!L25","v":0},{"$f":"[1]Revenue!N25","v":0},{"$f":"[1]Revenue!N25","v":0},{"$f":"[1]Revenue!P25","v":0},{"$f":"[1]Revenue!P25","v":0},{"$f":"[1]Revenue!R25","v":0},{"$f":"[1]Revenue!R25","v":0},{"$f":"[1]Revenue!S25","v":0},{"$f":"[1]Revenue!S25","v":0},0]
[1,"RE1213",null,null,null,"Other sales",6,null,{"$f":"SUM(I27:I28)","v":0},{"$f":"SUM(J27:J28)","v":0},{"$f":"SUM(K27:K28)","v":0},{"$f":"SUM(L27:L28)","v":0},0,{"$f":"SUM(N27:N28)","v":0},0,{"$f":"SUM(P27:P28)","v":0},0,{"$f":"SUM(R27:R28)","v":0},{"$f":"SUM(S27:S28)","v":0}]
[1,"RE12131",null,null,null,"User charges",null,null,{"$f":"[1]Revenue!J27","v":0},{"$f":"[1]Revenue!L27","v":0},{"$f":"[1]Revenue!N27","v":0},{"$f":"[1]Revenue!N27","v":0},{"$f":"[1]Revenue!P27","v":0},{"$f":"[1]Revenue!P27","v":0},{"$f":"[1]Revenue!R27","v":0},{"$f":"[1]Revenue!R27","v":0},{"$f":"[1]Revenue!S27","v":0},{"$f":"[1]Revenue!S27","v":0},0]
[1,"RE12132",null,null,null,"Sales other than user charges",null,null,{"$f":"[1]Revenue!J28","v":0},{"$f":"[1]Revenue!L28","v":0},{"$f":"[1]Revenue!N28","v":0},{"$f":"[1]Revenue!N28","v":0},{"$f":"[1]Revenue!P28","v":0},{"$f":"[1]Revenue!P28","v":0},{"$f":"[1]Revenue!R28","v":0},{"$f":"[1]Revenue!R28","v":0},{"$f":"[1]Revenue!S28","v":0},{"$f":"[1]Revenue!S28","v":0},0]
[null,"RE1214",null,null,null,"Sales of scrap, waste, arms and other used current goods",7,null,{"$f":"[1]Revenue!J29","v":0},{"$f":"[1]Revenue!L29","v":0},{"$f":"[1]Revenue!N29","v":0},{"$f":"[1]Revenue!N29","v":0},{"$f":"[1]Revenue!P29","v":0},{"$f":"[1]Revenue!P29","v":0},{"$f":"[1]Revenue!R29","v":0},{"$f":"[1]Revenue!R29","v":0},{"$f":"[1]Revenue!S29","v":0},{"$f":"[1]Revenue!S29","v":0},0]
[1,"RE122",null,null,null,"Entity revenue other than sales",null,null,{"$f":"SUM(I31,I32,I36,I40)","v":285233.86483999999},153725.49005999998,1201190.14576,1201190.14576,88724.000000000233,88724.000000000233,95999.368000004441,95999.368000004441,103871.31617600098,103871.31617600098,0]
[1,"RE1221",null,null,null,"Fines penalties and forfeits",19,null,{"$f":"[1]Revenue!J31","v":0},{"$f":"[1]Revenue!L31","v":0},{"$f":"[1]Revenue!N31","v":0},{"$f":"[1]Revenue!N31","v":0},{"$f":"[1]Revenue!P31","v":0},{"$f":"[1]Revenue!P31","v":0},{"$f":"[1]Revenue!R31","v":0},{"$f":"[1]Revenue!R31","v":0},{"$f":"[1]Revenue!S31","v":0},{"$f":"[1]Revenue!S31","v":0},0]
[1,"RE1222",null,null,null,"Gains from",null,null,{"$f":"SUM(I33:I35)","v":181604.70103},{"$f":"SUM(J33:J35)","v":4799.6097899999995},0,0,0,0,0,0,0,0,0]
[1,"RE12221",null,null,null,"Sale of fixed assets",null,null,{"$f":"[1]Revenue!J33","v":0},{"$f":"[1]Revenue!L33","v":214.42812000000001},{"$f":"[1]Revenue!N33","v":0},{"$f":"[1]Revenue!N33","v":0},{"$f":"[1]Revenue!P33","v":0},{"$f":"[1]Revenue!P33","v":0},{"$f":"[1]Revenue!R33","v":0},{"$f":"[1]Revenue!R33","v":0},{"$f":"[1]Revenue!S33","v":0},{"$f":"[1]Revenue!S33","v":0},0]
[1,"RE12222",null,null,null,"Adjustments to fair value of assets",null,null,{"$f":"[1]Revenue!J34","v":0},{"$f":"[1]Revenue!L34","v":0},{"$f":"[1]Revenue!N34","v":0},{"$f":"[1]Revenue!N34","v":0},{"$f":"[1]Revenue!P34","v":0},{"$f":"[1]Revenue!P34","v":0},{"$f":"[1]Revenue!R34","v":0},{"$f":"[1]Revenue!R34","v":0},{"$f":"[1]Revenue!S34","v":0},{"$f":"[1]Revenue!S34","v":0},0]
[1,"RE12223",null,null,null,"    Other ",null,null,{"$f":"[1]Revenue!J35","v":181604.70103},{"$f":"[1]Revenue!L35","v":4585.1816699999999},{"$f":"[1]Revenue!N35","v":0},{"$f":"[1]Revenue!N35","v":0},{"$f":"[1]Revenue!P35","v":0},{"$f":"[1]Revenue!P35","v":0},{"$f":"[1]Revenue!R35","v":0},{"$f":"[1]Revenue!R35","v":0},{"$f":"[1]Revenue!S35","v":0},{"$f":"[1]Revenue!S35","v":0},0]
[1,"RE1223",null,null,null,"Interest, dividends and rent on land",20,null,{"$f":"SUM(I37:I39)","v":103629.16381},{"$f":"SUM(J37:J39)","v":148925.88026999999},126470.14575999997,126470.14575999997,88724.000000000233,88724.000000000233,95999.368000004441,95999.368000004441,103871.31617600098,103871.31617600098,0]
[1,"RE12231",null,null,null,"Interest",21,null,{"$f":"[1]Revenue!J37","v":103629.16381},{"$f":"[1]Revenue!L37","v":148925.88026999999},{"$f":"[1]Revenue!N37","v":126470.14575999997},{"$f":"[1]Revenue!N37","v":126470.14575999997},{"$f":"[1]Revenue!P37","v":88724.000000000233},{"$f":"[1]Revenue!P37","v":88724.000000000233},{"$f":"[1]Revenue!R37","v":95999.368000004441},{"$f":"[1]Revenue!R37","v":95999.368000004441},{"$f":"[1]Revenue!S37","v":103871.31617600098},{"$f":"[1]Revenue!S37","v":103871.31617600098},0]
[1,"RE12232",null,null,null,"Dividends",22,null,{"$f":"[1]Revenue!J38","v":0},{"$f":"[1]Revenue!L38","v":0},{"$f":"[1]Revenue!N38","v":0},{"$f":"[1]Revenue!N38","v":0},{"$f":"[1]Revenue!P38","v":0},{"$f":"[1]Revenue!P38","v":0},{"$f":"[1]Revenue!R38","v":0},{"$f":"[1]Revenue!R38","v":0},{"$f":"[1]Revenue!S38","v":0},{"$f":"[1]Revenue!S38","v":0},0]
[1,"RE12233",null,null,null,"Rent on land",23,null,{"$f":"[1]Revenue!J39","v":0},{"$f":"[1]Revenue!L39","v":0},{"$f":"[1]Revenue!N39","v":0},{"$f":"[1]Revenue!N39","v":0},{"$f":"[1]Revenue!P39","v":0},{"$f":"[1]Revenue!P39","v":0},{"$f":"[1]Revenue!R39","v":0},{"$f":"[1]Revenue!R39","v":0},{"$f":"[1]Revenue!S39","v":0},{"$f":"[1]Revenue!S39","v":0},0]
[1,"RE1224",null,null,null,"Unclassified revenue ",24,null,{"$f":"SUM(I41:I43)","v":0},{"$f":"SUM(J41:J43)","v":0},1074720,{"$f":"SUM(L41:L43)","v":1074720},0,{"$f":"SUM(N41:N43)","v":0},0,{"$f":"SUM(P41:P43)","v":0},0,{"$f":"SUM(R41:R43)","v":0},{"$f":"SUM(S41:S43)","v":0}]
[1,"RE12241",null,null,null,"Realisation of deferred income (other than transfers) ",null,null,{"$f":"[1]Revenue!J41","v":0},{"$f":"[1]Revenue!L41","v":0},{"$f":"[1]Revenue!N41","v":0},{"$f":"[1]Revenue!N41","v":0},{"$f":"[1]Revenue!P41","v":0},{"$f":"[1]Revenue!P41","v":0},{"$f":"[1]Revenue!R41","v":0},{"$f":"[1]Revenue!R41","v":0},{"$f":"[1]Revenue!S41","v":0},{"$f":"[1]Revenue!S41","v":0},0]
[1,"RE12242",null,null,null,{"$f":"[1]Revenue!F42","v":"Please specify"},null,null,{"$f":"[1]Revenue!J42","v":0},{"$f":"[1]Revenue!L42","v":0},{"$f":"[1]Revenue!N42","v":0},{"$f":"[1]Revenue!N42","v":0},{"$f":"[1]Revenue!P42","v":0},{"$f":"[1]Revenue!P42","v":0},{"$f":"[1]Revenue!R42","v":0},{"$f":"[1]Revenue!R42","v":0},{"$f":"[1]Revenue!S42","v":0},{"$f":"[1]Revenue!S42","v":0},0]
[1,"RE12243",null,null,null,"Other income",null,null,{"$f":"[1]Revenue!J43","v":0},{"$f":"[1]Revenue!L43","v":0},{"$f":"[1]Revenue!N43","v":1074720},{"$f":"[1]Revenue!N43","v":1074720},{"$f":"[1]Revenue!P43","v":0},{"$f":"[1]Revenue!P43","v":0},{"$f":"[1]Revenue!R43","v":0},{"$f":"[1]Revenue!R43","v":0},{"$f":"[1]Revenue!S43","v":0},{"$f":"[1]Revenue!S43","v":0},0]
[1,"RE13",null,null,null,"Transfers received",8,null,{"$f":"SUM(I45:I46,I54,I60:I62)","v":11635781},13280696,12388563,12388563,15409637,15409637,14895308,14895308,15455832.380799999,15455832.380799999,0]
[4,"RE131",null,null,null,"Social contributions received (social security funds only)",null,null,{"$f":"[1]Revenue!J45","v":0},{"$f":"[1]Revenue!L45","v":0},{"$f":"[1]Revenue!N45","v":0},{"$f":"[1]Revenue!N45","v":0},{"$f":"[1]Revenue!P45","v":0},{"$f":"[1]Revenue!P45","v":0},{"$f":"[1]Revenue!R45","v":0},{"$f":"[1]Revenue!R45","v":0},{"$f":"[1]Revenue!S45","v":0},{"$f":"[1]Revenue!S45","v":0},0]
[1,"RE132",null,null,null,"Other government units",9,null,{"$f":"SUM(I47,I51:I53)","v":11635781},{"$f":"SUM(J47,J51:J53)","v":13280696},{"$f":"SUM(K47,K51:K53)","v":12388563},{"$f":"SUM(L47,L51:L53)","v":12388563},15409637,{"$f":"SUM(N47,N51:N53)","v":15409637},14895308,{"$f":"SUM(P47,P51:P53)","v":14895308},15455832.380799999,{"$f":"SUM(R47,R51:R53)","v":15455832.380799999},{"$f":"SUM(S47,S51:S53)","v":0}]
[1,"RE1321",null,null,null,"National government",10,null,{"$f":"SUM(I48:I50)","v":11635781},{"$f":"SUM(J48:J50)","v":13280696},{"$f":"SUM(K48:K50)","v":12388563},{"$f":"SUM(L48:L50)","v":12388563},15409637,{"$f":"SUM(N48:N50)","v":15409637},14895308,{"$f":"SUM(P48:P50)","v":14895308},15455832.380799999,{"$f":"SUM(R48:R50)","v":15455832.380799999},{"$f":"SUM(S48:S50)","v":0}]
[1,"RE13211",null,null,null,"Departmental transfers",null,null,{"$f":"[1]Revenue!J48","v":11589257},{"$f":"[1]Revenue!L48","v":13229455},{"$f":"[1]Revenue!N48","v":12335021},{"$f":"[1]Revenue!N48","v":12335021},{"$f":"[1]Revenue!P48","v":15353696},{"$f":"[1]Revenue!P48","v":15353696},{"$f":"[1]Revenue!R48","v":14836804},{"$f":"[1]Revenue!R48","v":14836804},{"$f":"[1]Revenue!S48","v":15394682},{"$f":"[1]Revenue!S48","v":15394682},0]
[1,"RE13212",null,null,null,"Realisation of deferred transfers",null,null,{"$f":"[1]Revenue!J49","v":0},{"$f":"[1]Revenue!L49","v":0},{"$f":"[1]Revenue!N49","v":0},{"$f":"[1]Revenue!N49","v":0},{"$f":"[1]Revenue!P49","v":0},{"$f":"[1]Revenue!P49","v":0},{"$f":"[1]Revenue!R49","v":0},{"$f":"[1]Revenue!R49","v":0},{"$f":"[1]Revenue!S49","v":0},{"$f":"[1]Revenue!S49","v":0},0]
[1,"RE13213",null,null,null,"Other government units",null,null,{"$f":"[1]Revenue!J50","v":46524},{"$f":"[1]Revenue!L50","v":51241},{"$f":"[1]Revenue!N50","v":53542},{"$f":"[1]Revenue!N50","v":53542},{"$f":"[1]Revenue!P50","v":55941},{"$f":"[1]Revenue!P50","v":55941},{"$f":"[1]Revenue!R50","v":58504},{"$f":"[1]Revenue!R50","v":58504},{"$f":"[1]Revenue!S50","v":61150.380799999992},{"$f":"[1]Revenue!S50","v":61150.380799999992},0]
[1,"RE1322",null,null,null,"Departmental agencies and accounts",13,null,{"$f":"[1]Revenue!J51","v":0},{"$f":"[1]Revenue!L51","v":0},{"$f":"[1]Revenue!N51","v":0},{"$f":"[1]Revenue!N51","v":0},{"$f":"[1]Revenue!P51","v":0},{"$f":"[1]Revenue!P51","v":0},{"$f":"[1]Revenue!R51","v":0},{"$f":"[1]Revenue!R51","v":0},{"$f":"[1]Revenue!S51","v":0},{"$f":"[1]Revenue!S51","v":0},0]
[1,"RE1323",null,null,null,"Provincial governments",14,null,{"$f":"[1]Revenue!J52","v":0},{"$f":"[1]Revenue!L52","v":0},{"$f":"[1]Revenue!N52","v":0},{"$f":"[1]Revenue!N52","v":0},{"$f":"[1]Revenue!P52","v":0},{"$f":"[1]Revenue!P52","v":0},{"$f":"[1]Revenue!R52","v":0},{"$f":"[1]Revenue!R52","v":0},{"$f":"[1]Revenue!S52","v":0},{"$f":"[1]Revenue!S52","v":0},0]
[1,"RE1324",null,null,null,"Local governments",15,null,{"$f":"[1]Revenue!J53","v":0},{"$f":"[1]Revenue!L53","v":0},{"$f":"[1]Revenue!N53","v":0},{"$f":"[1]Revenue!N53","v":0},{"$f":"[1]Revenue!P53","v":0},{"$f":"[1]Revenue!P53","v":0},{"$f":"[1]Revenue!R53","v":0},{"$f":"[1]Revenue!R53","v":0},{"$f":"[1]Revenue!S53","v":0},{"$f":"[1]Revenue!S53","v":0},0]
[2,"RE133",null,null,null,"Skills development  (SETAS only)",null,null,{"$f":"SUM(I55,I59)","v":0},{"$f":"SUM(J55,J59)","v":0},0,0,0,0,0,0,0,0,0]
[2,"RE1331",null,null,null,"Skills development levies ",null,null,{"$f":"SUM(I56:I58)","v":0},{"$f":"SUM(J56:J58)","v":0},0,0,0,0,0,0,0,0,0]
[2,"RE13311",null,null,null," Admin - 10.5%",null,null,{"$f":"[1]Revenue!J56","v":0},{"$f":"[1]Revenue!L56","v":0},{"$f":"[1]Revenue!N56","v":0},{"$f":"[1]Revenue!N56","v":0},{"$f":"[1]Revenue!P56","v":0},{"$f":"[1]Revenue!P56","v":0},{"$f":"[1]Revenue!R56","v":0},{"$f":"[1]Revenue!R56","v":0},{"$f":"[1]Revenue!S56","v":0},{"$f":"[1]Revenue!S56","v":0},0]
[2,"RE13312",null,null,null,"Employer grant fund levy -  20%",null,null,{"$f":"[1]Revenue!J57","v":0},{"$f":"[1]Revenue!L57","v":0},{"$f":"[1]Revenue!N57","v":0},{"$f":"[1]Revenue!N57","v":0},{"$f":"[1]Revenue!P57","v":0},{"$f":"[1]Revenue!P57","v":0},{"$f":"[1]Revenue!R57","v":0},{"$f":"[1]Revenue!R57","v":0},{"$f":"[1]Revenue!S57","v":0},{"$f":"[1]Revenue!S57","v":0},0]
[2,"RE13313",null,null,null,"Discretionary grants - 49.5%",null,null,{"$f":"[1]Revenue!J58","v":0},{"$f":"[1]Revenue!L58","v":0},{"$f":"[1]Revenue!N58","v":0},{"$f":"[1]Revenue!N58","v":0},{"$f":"[1]Revenue!P58","v":0},{"$f":"[1]Revenue!P58","v":0},{"$f":"[1]Revenue!R58","v":0},{"$f":"[1]Revenue!R58","v":0},{"$f":"[1]Revenue!S58","v":0},{"$f":"[1]Revenue!S58","v":0},0]
[2,"RE1332",null,null,null,"National skills fund ",null,null,{"$f":"[1]Revenue!J59","v":0},{"$f":"[1]Revenue!L59","v":0},{"$f":"[1]Revenue!N59","v":0},{"$f":"[1]Revenue!N59","v":0},{"$f":"[1]Revenue!P59","v":0},{"$f":"[1]Revenue!P59","v":0},{"$f":"[1]Revenue!R59","v":0},{"$f":"[1]Revenue!R59","v":0},{"$f":"[1]Revenue!S59","v":0},{"$f":"[1]Revenue!S59","v":0},0]
[1,"RE134",null,null,null,"Higher education institutions",16,null,{"$f":"[1]Revenue!J60","v":0},{"$f":"[1]Revenue!L60","v":0},{"$f":"[1]Revenue!N60","v":0},{"$f":"[1]Revenue!N60","v":0},{"$f":"[1]Revenue!P60","v":0},{"$f":"[1]Revenue!P60","v":0},{"$f":"[1]Revenue!R60","v":0},{"$f":"[1]Revenue!R60","v":0},{"$f":"[1]Revenue!S60","v":0},{"$f":"[1]Revenue!S60","v":0},0]
[1,"RE136",null,null,null,"Foreign governments and international organisations",17,null,{"$f":"[1]Revenue!J61","v":0},{"$f":"[1]Revenue!L61","v":0},{"$f":"[1]Revenue!N61","v":0},{"$f":"[1]Revenue!N61","v":0},{"$f":"[1]Revenue!P61","v":0},{"$f":"[1]Revenue!P61","v":0},{"$f":"[1]Revenue!R61","v":0},{"$f":"[1]Revenue!R61","v":0},{"$f":"[1]Revenue!S61","v":0},{"$f":"[1]Revenue!S61","v":0},0]
[1,"RE135",null,null,null,"Local non-government donors",18,null,{"$f":"[1]Revenue!J62","v":0},{"$f":"[1]Revenue!L62","v":0},{"$f":"[1]Revenue!N62","v":0},{"$f":"[1]Revenue!N62","v":0},{"$f":"[1]Revenue!P62","v":0},{"$f":"[1]Revenue!P62","v":0},{"$f":"[1]Revenue!R62","v":0},{"$f":"[1]Revenue!R62","v":0},{"$f":"[1]Revenue!S62","v":0},{"$f":"[1]Revenue!S62","v":0},0]
[1,"RE14",null,null,null,"Tax benefit",25,null,{"$f":"[1]Revenue!J63","v":0},{"$f":"[1]Revenue!L63","v":0},{"$f":"[1]Revenue!N63","v":0},{"$f":"[1]Revenue!N63","v":0},{"$f":"[1]Revenue!P63","v":0},{"$f":"[1]Revenue!P63","v":0},{"$f":"[1]Revenue!R63","v":0},{"$f":"[1]Revenue!R63","v":0},{"$f":"[1]Revenue!S63","v":0},{"$f":"[1]Revenue!S63","v":0},0]
[1,"RE15",null,null,null,"Outside shareholders interest",26,null,{"$f":"[1]Revenue!J64","v":0},{"$f":"[1]Revenue!L64","v":0},{"$f":"[1]Revenue!N64","v":0},{"$f":"[1]Revenue!N64","v":0},{"$f":"[1]Revenue!P64","v":0},{"$f":"[1]Revenue!P64","v":0},{"$f":"[1]Revenue!R64","v":0},{"$f":"[1]Revenue!R64","v":0},{"$f":"[1]Revenue!S64","v":0},{"$f":"[1]Revenue!S64","v":0},0]
[1,"RE16",null,null,null,"Total revenue",null,null,{"$f":"SUM(I13:I14,I44,I63:I64)","v":12350963.73577},{"$f":"SUM(J13:J14,J44,J63:J64)","v":13897357.221549999},14021302.556904105,14021302.556904105,15942360.806116154,15942360.806116154,15448121.159190124,15448121.159190124,16029705.772610115,16029705.772610115,0,null,{"$f":"IF(S65<R65/2,\"Complete outer year budget\",\"\")","v":"Complete outer year budget"}]
[1]
[1,null,null,null,null,"Check"]
[1,null,null,null,null,"Total revenue",null,null,{"$f":"I65","v":12350963.73577},{"$f":"J65","v":13897357.221549999},{"$f":"K65","v":14021302.556904105},{"$f":"L65","v":14021302.556904105},{"$f":"M65","v":15942360.806116154},15942360.806116154,{"$f":"O65","v":15448121.159190124},15448121.159190124,16029705.772610115,16029705.772610115,0]
[1,null,null,null,null,"Total expenses",null,null,{"$f":"'Expend summary'!I140","v":11990466.348149998},{"$f":"'Expend summary'!J140","v":13077380.232659999},{"$f":"'Expend summary'!K140","v":14211908.925360348},{"$f":"'Expend summary'!L140","v":14211908.925360348},{"$f":"'Expend summary'!M140","v":15564581.248370012},{"$f":"'Expend summary'!N140","v":15564581.248370012},{"$f":"'Expend summary'!P140","v":15507164.239034686},{"$f":"'Expend summary'!Q140","v":15507164.239034686},{"$f":"'Expend summary'!S140","v":16284536.679091636},{"$f":"'Expend summary'!T140","v":16284536.679091636},{"$f":"'Expend summary'!V140","v":0}]
[1,null,null,null,null,"Surplus / (Deficit)",null,null,{"$f":"I68-I69","v":360497.38762000203},{"$f":"J68-J69","v":819976.98888999969},{"$f":"K68-K69","v":-190606.36845624261},{"$f":"L68-L69","v":-190606.36845624261},377779.55774614215,377779.55774614215,{"$f":"O68-O69","v":-59043.079844562337},-59043.079844562337,-254830.9064815212,-254830.9064815212,0]
[1,null,null,null,null,"Annual report Surplus / (Deficit)",null,null,null,{"$f":"[1]Revenue!L71","v":819975},null,{"$f":"[1]Revenue!N70","v":-190606.36845624261}]
[1,null,null,null,null,"Differences",null,null,null,{"$f":"ROUND(IF(J70-J71>0,IF(J70-J71<1,0,J70-J71),J70-J71),0)","v":2},null,{"$f":"ROUND(IF(L70-L71>0,IF(L70-L71<1,0,L70-L71),L70-L71),0)","v":0}]
[1]

{"sheet":"Admin","index":5,"n_rows":143,"n_cols":23,"rows_kept":143,"cut":false,"hidden":false,"merged":[[31,15,31,17],[31,18,31,20],[31,12,31,14],[31,10,31,11]]}
[]
[]
[]
[]
[]
[null,null,null,null,null,"PE No",{"$f":"Settings!O2","v":"PE126"}]
[null,null,null,null,null,"Entity name",{"$f":"Settings!$E$2","v":"South African Revenue Service"}]
[]
[null,null,null,null,null,"Performance and operations information"]
["ItemCat","Item code","Hide/unhide",null,null,"Activity/Output/Outcome/Efficiency Indicator","MTDP Outcomes",null,{"$f":"MyYearM3","v":"2022/23"},{"$f":"MyYearM2","v":"2023/24"},{"$f":"MyYearM1","v":"2024/25"},{"$f":"MyYear0","v":"2025/26"},{"$f":"MyYearP1","v":"2026/27"},{"$f":"MyYearP2","v":"2027/28"},{"$f":"MyYearP3","v":"2028/29"},"Related Objectives","Add to 'Performance Indicators' Sheet","Comments"]
[1,null,null,null,null,{"$f":"[1]Admin!F11","v":"Employee Engagement Index score achieved based on survey of employees"},{"$f":"[1]Admin!G11","v":"Outcome 10: Reduced poverty and improved livelihoods"},0,{"$f":"[1]Admin!J11","v":"69.40%"},{"$f":"[1]Admin!K11","v":"The Employee Engagement action plan \nto address shortcomings identified in \nthe last survey, was developed and \napproved and is in the process of being \nimplemented. The impact of the \ninterventions will be tested in the next \nsurvey scheduled for 2024/25."},{"$f":"[1]Admin!L11","v":"Achieve a top \n15% place in \nthe market \n(the market \ncomprises \nof RSA \ninstitutions and \ngovernment\u0002comparable \nsectors)"},{"$f":"[1]Admin!M11","v":"Continue to \nimplement \ncustomised \nsolutions \nto enable \nengagement \npriorities and \nachieve 80% \nimplementation \nagainst the \nmilestone plan"},{"$f":"[1]Admin!N11","v":"Achieve a top \n15% place in \nthe market, \ncomprising RSA \ninstitutions and \ngovernment\u0002comparable \nsectors"},{"$f":"[1]Admin!O11","v":"Continue to \nimplement \ncustomised \nsolutions \nto enable \nengagement \npriorities and \nachieve 80% \nimplementation \nagainst the \nmilestone plan"},null,{"$f":"[1]Admin!P11","v":"Administration"},{"$f":"[1]Admin!Q11","v":"Yes"},{"$f":"[1]Admin!R11","v":0}]
[1,null,null,null,null,{"$f":"[1]Admin!F12","v":"% attainment of targets as per approved Employment Equity Plan"},{"$f":"[1]Admin!G12","v":"Outcome 10: Reduced poverty and improved livelihoods"},0,{"$f":"[1]Admin!J12","v":"Racial Equity:\n80.29%\nGender Equity: 50.13%\nDisability Equity: 2.08%"},{"$f":"[1]Admin!K12","v":"Racial Equity: \n81.56% \nGender Equity: \n50.75% \nDisability Equity: \n2.21%"},{"$f":"[1]Admin!L12","v":"Racial Equity \n= 81.96%\nGender \nEquity \n= 51.82%\nDisability \nEquity \n= 3.39%"},{"$f":"[1]Admin!M12","v":"Racial Equity \n= 82.98%\nGender \nEquity \n= 52.09%\nDisability \nEquity \n= 4.11%"},{"$f":"[1]Admin!N12","v":"Racial Equity \n= 84.01%\nGender \nEquity \n= 52.37%\nDisability \nEquity \n= 4.84%"},{"$f":"[1]Admin!O12","v":"Racial Equity \n= 84.01%\nGender \nEquity \n= 52.37%\nDisability \nEquity \n= 4.84%"},null,{"$f":"[1]Admin!P12","v":"Administration"},{"$f":"[1]Admin!Q12","v":"Yes"},{"$f":"[1]Admin!R12","v":0}]
[1,null,null,null,null,{"$f":"[1]Admin!F13","v":"Unqualified audit opinion"},{"$f":"[1]Admin!G13","v":"Outcome 10: Reduced poverty and improved livelihoods"},0,{"$f":"[1]Admin!J13","v":"Clean AG Audit Report from AG"},{"$f":"[1]Admin!K13","v":"Clean Audit \nreport"},{"$f":"[1]Admin!L13","v":"Unqualified audit opinion"},{"$f":"[1]Admin!M13","v":"Unqualified audit opinion"},{"$f":"[1]Admin!N13","v":"Unqualified audit opinion"},{"$f":"[1]Admin!O13","v":"Unqualified audit opinion"},null,{"$f":"[1]Admin!P13","v":"Administration"},{"$f":"[1]Admin!Q13","v":"Yes"},{"$f":"[1]Admin!R13","v":0}]
[1,null,null,null,null,{"$f":"[1]Admin!F14","v":"% Deviation between SARS’ spending for the year and the allocation SARS received from National Treasury"},{"$f":"[1]Admin!G14","v":"Outcome 10: Reduced poverty and improved livelihoods"},0,{"$f":"[1]Admin!J14","v":3.8E-3},{"$f":"[1]Admin!K14","v":3.0099999999999998E-2},{"$f":"[1]Admin!L14","v":0.02},{"$f":"[1]Admin!M14","v":0.02},{"$f":"[1]Admin!N14","v":0.02},{"$f":"[1]Admin!O14","v":0.02},null,{"$f":"[1]Admin!P14","v":"Administration"},{"$f":"[1]Admin!Q14","v":"Yes"},{"$f":"[1]Admin!R14","v":0}]
[1,null,null,null,null,{"$f":"[1]Admin!F15","v":"% of intermediaries surveyed that are satisfied with SARS’ cooperation and collaboration"},{"$f":"[1]Admin!G15","v":"Outcome 10: Reduced poverty and improved livelihoods"},0,{"$f":"[1]Admin!J15","v":"90.32%"},{"$f":"[1]Admin!K15","v":"82.86%"},{"$f":"[1]Admin!L15","v":"70.00%"},{"$f":"[1]Admin!M15","v":"72.00%"},{"$f":"[1]Admin!N15","v":"83.00%"},{"$f":"[1]Admin!O15","v":0},null,{"$f":"[1]Admin!P15","v":"Administration"},{"$f":"[1]Admin!Q15","v":"No"},{"$f":"[1]Admin!R15","v":0}]
[1,null,null,null,null,{"$f":"[1]Admin!F16","v":"% score per public opinion survey"},{"$f":"[1]Admin!G16","v":"Outcome 10: Reduced poverty and improved livelihoods"},0,{"$f":"[1]Admin!J16","v":"76.50%"},{"$f":"[1]Admin!K16","v":"77.53%"},{"$f":"[1]Admin!L16","v":"76.50%"},{"$f":"[1]Admin!M16","v":"77.50%"},{"$f":"[1]Admin!N16","v":"78.50%"},{"$f":"[1]Admin!O16","v":"78.50%"},null,{"$f":"[1]Admin!P16","v":"Administration"},{"$f":"[1]Admin!Q16","v":"Yes"},{"$f":"[1]Admin!R16","v":0}]
[1,null,null,null,null,{"$f":"[1]Admin!F17","v":"% Service Charter performance score "},{"$f":"[1]Admin!G17","v":"Outcome 10: Reduced poverty and improved livelihoods"},0,{"$f":"[1]Admin!J17","v":"79.32%"},{"$f":"[1]Admin!K17","v":"81.33%"},{"$f":"[1]Admin!L17","v":"85%"},{"$f":"[1]Admin!M17","v":"86.00%"},{"$f":"[1]Admin!N17","v":"87.00%"},{"$f":"[1]Admin!O17","v":"88.00%"},null,{"$f":"[1]Admin!P17","v":"Administration"},{"$f":"[1]Admin!Q17","v":"Yes"},{"$f":"[1]Admin!R17","v":0}]
[1,null,null,null,null,{"$f":"[1]Admin!F18","v":"A SARS Career Progression Framework is developed and implemented"},{"$f":"[1]Admin!G18","v":"Outcome 10: Reduced poverty and improved livelihoods"},0,{"$f":"[1]Admin!J18","v":"New measure"},{"$f":"[1]Admin!K18","v":"SARS Career Progression Frameworks \nfor Service Consultants, Audit and \nInvestigations, Customs and Legal, \nwere developed and approved"},{"$f":"[1]Admin!L18","v":"Implement\nthe Career\nProgression\nFramework"},{"$f":"[1]Admin!M18","v":"Implement\nthe Career\nProgression\nFramework"},{"$f":"[1]Admin!N18","v":"Implement\nthe Career\nProgression\nFramework"},{"$f":"[1]Admin!O18","v":0},null,{"$f":"[1]Admin!P18","v":"Administration"},{"$f":"[1]Admin!Q18","v":"No"},{"$f":"[1]Admin!R18","v":0}]
[1,null,null,null,null,{"$f":"[1]Admin!F19","v":"Number of programmes launched with identified government\ndepartments"},{"$f":"[1]Admin!G19","v":"Outcome 10: Reduced poverty and improved livelihoods"},0,{"$f":"[1]Admin!J19","v":"New measure"},{"$f":"[1]Admin!K19","v":"0"},{"$f":"[1]Admin!L19","v":"2"},{"$f":"[1]Admin!M19","v":"2"},{"$f":"[1]Admin!N19","v":"2"},{"$f":"[1]Admin!O19","v":0},null,{"$f":"[1]Admin!P19","v":"Administration"},{"$f":"[1]Admin!Q19","v":"No"},{"$f":"[1]Admin!R19","v":0}]
[1,null,null,null,null,{"$f":"[1]Admin!F20","v":"Stakeholder engagement effectiveness Index (score)"},{"$f":"[1]Admin!G20","v":"Outcome 10: Reduced poverty and improved livelihoods"},0,{"$f":"[1]Admin!J20","v":"New indicator"},{"$f":"[1]Admin!K20","v":"New indicator"},{"$f":"[1]Admin!L20","v":"Formulate \na new \nEnterprise \nStakeholder \nManagement \nPolicy"},{"$f":"[1]Admin!M20","v":"Determine \nbaseline for \nstakeholder \nengagement \neffectiveness \nIndex"},{"$f":"[1]Admin!N20","v":"Achieve \n1.50% point \nimprovement \non \nstakeholder \nengagement \neffectiveness \nIndex"},{"$f":"[1]Admin!O20","v":"Achieve \n1.00% point \nimprovement \non \nstakeholder \nengagement \neffectiveness \nIndex"},null,{"$f":"[1]Admin!P20","v":"Administration"},{"$f":"[1]Admin!Q20","v":"Yes"},{"$f":"[1]Admin!R20","v":0}]
[1,null,null,null,null,{"$f":"[1]Admin!F21","v":"% \nimplementation \nof prioritised \njob families"},{"$f":"[1]Admin!G21","v":"Outcome 10: Reduced poverty and improved livelihoods"},0,{"$f":"[1]Admin!J21","v":"New indicator"},{"$f":"[1]Admin!K21","v":"New indicator"},{"$f":"[1]Admin!L21","v":"Achieve 90% \nimplementation \nof prioritised \njob families"},{"$f":"[1]Admin!M21","v":"Achieve 90% \nimplementation \nof prioritised \njob families"},{"$f":"[1]Admin!N21","v":"Achieve 90% \nimplementation \nof prioritised \njob families"},{"$f":"[1]Admin!O21","v":"Achieve 90% \nimplementation \nof prioritised \njob families"},null,{"$f":"[1]Admin!P21","v":"Administration"},{"$f":"[1]Admin!Q21","v":"Yes"},{"$f":"[1]Admin!R21","v":0}]
[1,null,null,null,null,{"$f":"[1]Admin!F22","v":"Percentage of \nimplementation \nof the action \nplan developed \nthrough self\u0002assessment \nof the OECD/\nSARS Trust \nMaturity Model"},{"$f":"[1]Admin!G22","v":"Outcome 10: Reduced poverty and improved livelihoods"},0,{"$f":"[1]Admin!J22","v":"New indicator"},{"$f":"[1]Admin!K22","v":"New indicator"},{"$f":"[1]Admin!L22","v":"Achieve 50% \nof action plan"},{"$f":"[1]Admin!M22","v":"Achieve 70% \nof action plan"},{"$f":"[1]Admin!N22","v":"Achieve 85% \nof action plan"},{"$f":"[1]Admin!O22","v":"Achieve 100% \nof action plan"},null,{"$f":"[1]Admin!P22","v":"Administration"},{"$f":"[1]Admin!Q22","v":"Yes"},{"$f":"[1]Admin!R22","v":0}]
[1,null,null,null,null,{"$f":"[1]Admin!F23","v":"A SARS Career \nProgression \nFramework is \ndeveloped and \nimplemented"},{"$f":"[1]Admin!G23","v":"Outcome 10: Reduced poverty and improved livelihoods"},0,{"$f":"[1]Admin!J23","v":"New indicator"},{"$f":"[1]Admin!K23","v":"SARS Career Progression Frameworks \nfor Service Consultants, Audit and \nInvestigations, Customs and Legal, \nwere developed and approved"},{"$f":"[1]Admin!L23","v":0},{"$f":"[1]Admin!M23","v":0},{"$f":"[1]Admin!N23","v":0},{"$f":"[1]Admin!O23","v":0},null,{"$f":"[1]Admin!P23","v":"Administration"},{"$f":"[1]Admin!Q23","v":"No"},{"$f":"[1]Admin!R23","v":0}]
[1,null,null,null,null,{"$f":"[1]Admin!F24","v":0},{"$f":"[1]Admin!G24","v":0},0,{"$f":"[1]Admin!J24","v":0},{"$f":"[1]Admin!K24","v":0},{"$f":"[1]Admin!L24","v":0},{"$f":"[1]Admin!M24","v":0},{"$f":"[1]Admin!N24","v":0},{"$f":"[1]Admin!O24","v":0},null,{"$f":"[1]Admin!P24","v":0},{"$f":"[1]Admin!Q24","v":0},{"$f":"[1]Admin!R24","v":0}]
[1,null,null,null,null,{"$f":"[1]Admin!F25","v":0},{"$f":"[1]Admin!G25","v":0},0,{"$f":"[1]Admin!J25","v":0},{"$f":"[1]Admin!K25","v":0},{"$f":"[1]Admin!L25","v":0},{"$f":"[1]Admin!M25","v":0},{"$f":"[1]Admin!N25","v":0},{"$f":"[1]Admin!O25","v":0},null,{"$f":"[1]Admin!P25","v":0},{"$f":"[1]Admin!Q25","v":0},{"$f":"[1]Admin!R25","v":0}]
[1,null,null,null,null,"Notes:"]
[1,null,null,null,null,"Performance indicators are an explanation of objectives performance.   "]
[1,null,null,null,null,"1. They are specific measurements that track progress towards achieving the goals and objectives of an institution."]
[1,null,null,null,null,"2. Institutions should use performance indicators in the 2024/25 Annual Performance Plans and those in the 2025 ENE. "]
[1,null,null,null,null,"3. Institutions should also indicate instances where targets are not affected by budget baseline reprioritisation."]
[1]
[1,null,null,null,null,null,null,null,{"$f":"MyYearM3","v":"2022/23"},{"$f":"MyYearM2","v":"2023/24"},{"$f":"MyYearM1","v":"2024/25"},null,{"$f":"MyYear0","v":"2025/26"},null,null,{"$f":"MyYearP1","v":"2026/27"},null,null,{"$f":"MyYearP2","v":"2027/28"},null,null,{"$f":"MyYearP3","v":"2028/29"}]
[1,null,null,null,null,"Expenses",null,null,{"$f":"Hist_year3RestatedAudited","v":"Audited\noutcome"},{"$f":"Hist_year2RestatedAudited","v":"Audited\noutcome"},{"$f":"Hist_year1Budget","v":"Budget"},{"$f":"Hist_year1Audited","v":"Audited\noutcome"},{"$f":"Cur_YearBudgEst","v":"Budget\nestimate"},{"$f":"Cur_YearApprovedBudg","v":"Approved budget"},{"$f":"Cur_YearChangeFrRevBudg","v":"Changes from \nbudget estimate"},{"$f":"MTEF1BudgEst","v":"Budget\nestimate"},{"$f":"MTEF1RevBudgEst","v":"Revised\nbudget\nestimate"},{"$f":"MTEF1_ChangeFrBudgEst","v":"Changes from budget estimate"},{"$f":"MTEF2BudgEst","v":"Budget\nestimate"},{"$f":"MTEF2RevBudgEst","v":"Revised\nbudget\nestimate"},{"$f":"MTEF2_ChangeFrBudgEst","v":"Changes from budget estimate"},{"$f":"MTEF3PlanBudgetEst","v":"Planning\nbudget \nestimate"}]
[1]
[1,null,null,null,null,"Rand thousand"]
[1,null,null,null,null,"Objective/Activity"]
[1,null,null,null,null,"Administration",null,null,{"$f":"[1]Admin!J37","v":3251758.1058299998},{"$f":"[1]Admin!L37","v":2948677.6081000003},{"$f":"[1]Admin!N37","v":3392951.2575703519},{"$f":"[1]Admin!N37","v":3392951.2575703519},{"$f":"[1]Admin!Q37","v":3198111.7300132173},{"$f":"[1]Admin!Q37","v":3198111.7300132173},{"$f":"SUM(N37-M37)","v":0},{"$f":"[1]Admin!T37","v":3288268.7993594953},{"$f":"[1]Admin!T37","v":3288268.7993594953},{"$f":"SUM(Q37-P37)","v":0},{"$f":"[1]Admin!V37","v":3388249.6977805565},{"$f":"[1]Admin!V37","v":3388249.6977805565},{"$f":"SUM(T37-S37)","v":0}]
[1,null,null,null,null,"Economic classification"]
[1,"EX11",null,null,null,"Current payments",null,null,{"$f":"SUM(I40,I43,I98:I99,I105)","v":3251757.8258299995},2948677.6081000003,3392951.2575703519,3392951.2575703519,3198111.7300132173,3198111.7300132173,{"$f":"SUM(N39-M39)","v":0},{"$f":"SUM(P40,P43,P98:P99,P105)","v":3288268.7993594953},{"$f":"SUM(Q40,Q43,Q98:Q99,Q105)","v":3288268.7993594953},{"$f":"SUM(Q39-P39)","v":0},{"$f":"SUM(S40,S43,S98:S99,S105)","v":3388249.6977805565},{"$f":"SUM(T40,T43,T98:T99,T105)","v":3388249.6977805565},{"$f":"SUM(T39-S39)","v":0},{"$f":"SUM(V40,V43,V98:V99,V105)","v":0}]
[1,"EX111",null,null,null,"Compensation of employees",null,null,{"$f":"SUM(I41:I42)","v":1523957.6850399999},1289812.6474600001,1478620.7218899997,1478620.7218899997,1321473.2114843919,1321473.2114843919,{"$f":"SUM(N40-M40)","v":0},{"$f":"SUM(P41:P42)","v":1381600.1321069319},{"$f":"SUM(Q41:Q42)","v":1381600.1321069319},{"$f":"SUM(Q40-P40)","v":0},{"$f":"SUM(S41:S42)","v":1444049.1292781653},{"$f":"SUM(T41:T42)","v":1444049.1292781653},{"$f":"SUM(T40-S40)","v":0},{"$f":"SUM(V41:V42)","v":0}]
[1,"EX1111",null,null,null,"Salaries and wages",null,null,{"$f":"[1]Admin!J41","v":1396295.3446899999},{"$f":"[1]Admin!L41","v":1152039.9901200002},{"$f":"[1]Admin!N41","v":1335483.8843599998},{"$f":"[1]Admin!N41","v":1335483.8843599998},{"$f":"[1]Admin!Q41","v":1173628.2620669079},{"$f":"[1]Admin!Q41","v":1173628.2620669079},{"$f":"SUM(N41-M41)","v":0},{"$f":"[1]Admin!T41","v":1227028.2374909522},{"$f":"[1]Admin!T41","v":1227028.2374909522},{"$f":"SUM(Q41-P41)","v":0},{"$f":"[1]Admin!V41","v":1282490.5850255436},{"$f":"[1]Admin!V41","v":1282490.5850255436},{"$f":"SUM(T41-S41)","v":0}]
[1,"EX1112",null,null,null,"Social contributions",null,null,{"$f":"[1]Admin!J42","v":127662.34035000001},{"$f":"[1]Admin!L42","v":137772.65734000001},{"$f":"[1]Admin!N42","v":143136.83753000002},{"$f":"[1]Admin!N42","v":143136.83753000002},{"$f":"[1]Admin!Q42","v":147844.94941748399},{"$f":"[1]Admin!Q42","v":147844.94941748399},{"$f":"SUM(N42-M42)","v":0},{"$f":"[1]Admin!T42","v":154571.89461597952},{"$f":"[1]Admin!T42","v":154571.89461597952},{"$f":"SUM(Q42-P42)","v":0},{"$f":"[1]Admin!V42","v":161558.5442526218},{"$f":"[1]Admin!V42","v":161558.5442526218},{"$f":"SUM(T42-S42)","v":0}]
[1,"EX112",null,null,null,"Goods and services",null,null,{"$f":"SUM(I45:I54,I58:I61,I73,I75:I97)","v":1024719.02853},{"$f":"SUM(J45:J54,J58:J61,J73,J75:J97)","v":1059148.3288399999},{"$f":"SUM(K45:K54,K58:K61,K73,K75:K97)","v":1183485.2999800001},1183485.2999800001,1264785.3227604078,1264785.3227604078,0,{"$f":"SUM(P45:P54,P58:P61,P73,P75:P97)","v":1357142.5204233071},{"$f":"SUM(Q45:Q54,Q58:Q61,Q73,Q75:Q97)","v":1357142.5204233071},{"$f":"SUM(R45:R54,R58:R61,R73,R75:R97)","v":0},1465839.4919391016,1465839.4919391016,0,0,0]
[1,"EX000",null,null,null,"Of which 1"]
[1,"EX1133",null,null,null,"Administrative fees",null,null,{"$f":"[1]Admin!J45","v":34223.349349999997},{"$f":"[1]Admin!L45","v":36330.699570000004},{"$f":"[1]Admin!N45","v":35964.195030000003},{"$f":"[1]Admin!N45","v":35964.195030000003},{"$f":"[1]Admin!Q45","v":37622.144420883},{"$f":"[1]Admin!Q45","v":37622.144420883},{"$f":"SUM(N45-M45)","v":0},{"$f":"[1]Admin!T45","v":39333.951992033173},{"$f":"[1]Admin!T45","v":39333.951992033173},{"$f":"SUM(Q45-P45)","v":0},{"$f":"[1]Admin!V45","v":41111.84662207307},{"$f":"[1]Admin!V45","v":41111.84662207307},{"$f":"SUM(T45-S45)","v":0}]
[1,"EX1134",null,null,null,"Advertising",null,null,{"$f":"[1]Admin!J46","v":49855.123800000001},{"$f":"[1]Admin!L46","v":44132.596129999998},{"$f":"[1]Admin!N46","v":61014.29464},{"$f":"[1]Admin!N46","v":61014.29464},{"$f":"[1]Admin!Q46","v":63827.053622904001},{"$f":"[1]Admin!Q46","v":63827.053622904001},0,{"$f":"[1]Admin!T46","v":66731.18456274613},{"$f":"[1]Admin!T46","v":66731.18456274613},0,{"$f":"[1]Admin!V46","v":69747.434104982254},{"$f":"[1]Admin!V46","v":69747.434104982254},0]
[1,"EX1135",null,null,null,"Minor assets",null,null,{"$f":"[1]Admin!J47","v":870.04453000000058},{"$f":"[1]Admin!L47","v":848.11990999999909},{"$f":"[1]Admin!N47","v":1804.59059},{"$f":"[1]Admin!N47","v":1804.59059},{"$f":"[1]Admin!Q47","v":1891.21093832},{"$f":"[1]Admin!Q47","v":1891.21093832},0,{"$f":"[1]Admin!T47","v":1981.98906335936},{"$f":"[1]Admin!T47","v":1981.98906335936},0,{"$f":"[1]Admin!V47","v":2077.1245384006093},{"$f":"[1]Admin!V47","v":2077.1245384006093},0]
[1,"EX1136",null,null,null,"Audit costs: External",null,null,{"$f":"[1]Admin!J48","v":37636.177889999999},{"$f":"[1]Admin!L48","v":42383.141369999998},{"$f":"[1]Admin!N48","v":37164.360500000003},{"$f":"[1]Admin!N48","v":37164.360500000003},{"$f":"[1]Admin!Q48","v":38877.637519050004},{"$f":"[1]Admin!Q48","v":38877.637519050004},0,{"$f":"[1]Admin!T48","v":40646.570026166781},{"$f":"[1]Admin!T48","v":40646.570026166781},0,{"$f":"[1]Admin!V48","v":42483.794991349518},{"$f":"[1]Admin!V48","v":42483.794991349518},0]
[1,"EX1139",null,null,null,"Bursaries: Employees",null,null,{"$f":"[1]Admin!J49","v":8385.6695500000005},{"$f":"[1]Admin!L49","v":33369.699769999999},{"$f":"[1]Admin!N49","v":34757.474990000002},{"$f":"[1]Admin!N49","v":34757.474990000002},{"$f":"[1]Admin!Q49","v":36359.794587039003},{"$f":"[1]Admin!Q49","v":36359.794587039003},0,{"$f":"[1]Admin!T49","v":38014.16524074928},{"$f":"[1]Admin!T49","v":38014.16524074928},0,{"$f":"[1]Admin!V49","v":39732.405509631149},{"$f":"[1]Admin!V49","v":39732.405509631149},0]
[1,"EX1140",null,null,null,"Catering: Internal activities",null,null,{"$f":"[1]Admin!J50","v":340.47477000000003},{"$f":"[1]Admin!L50","v":261.18610000000001},{"$f":"[1]Admin!N50","v":568.67119000000002},{"$f":"[1]Admin!N50","v":568.67119000000002},{"$f":"[1]Admin!Q50","v":594.88693185900001},{"$f":"[1]Admin!Q50","v":594.88693185900001},0,{"$f":"[1]Admin!T50","v":621.95428725858449},{"$f":"[1]Admin!T50","v":621.95428725858449},0,{"$f":"[1]Admin!V50","v":650.06662104267252},{"$f":"[1]Admin!V50","v":650.06662104267252},0]
[1,"EX1122",null,null,null,"Communication (G&S)",null,null,{"$f":"[1]Admin!J51","v":11281.667750000006},{"$f":"[1]Admin!L51","v":13140.354920000009},{"$f":"[1]Admin!N51","v":13453.196349999998},{"$f":"[1]Admin!N51","v":13453.196349999998},{"$f":"[1]Admin!Q51","v":14767.068657396001},{"$f":"[1]Admin!Q51","v":14767.068657396001},0,{"$f":"[1]Admin!T51","v":16210.512272808017},{"$f":"[1]Admin!T51","v":16210.512272808017},0,{"$f":"[1]Admin!V51","v":17796.59534033986},{"$f":"[1]Admin!V51","v":17796.59534033986},0]
[1,"EX1123",null,null,null,"Computer services",null,null,{"$f":"[1]Admin!J52","v":-2578.3258300000093},{"$f":"[1]Admin!L52","v":1052.6946400000077},{"$f":"[1]Admin!N52","v":4510.3417200000004},{"$f":"[1]Admin!N52","v":4510.3417200000004},{"$f":"[1]Admin!Q52","v":4961.375892},{"$f":"[1]Admin!Q52","v":4961.375892},0,{"$f":"[1]Admin!T52","v":5457.5134812000006},{"$f":"[1]Admin!T52","v":5457.5134812000006},0,{"$f":"[1]Admin!V52","v":6003.26482932},{"$f":"[1]Admin!V52","v":6003.26482932},0]
[1,"EX1124",null,null,null,"Consultants: Business and advisory services",null,null,{"$f":"[1]Admin!J53","v":425.15409000000341},{"$f":"[1]Admin!L53","v":6425.9006799999997},{"$f":"[1]Admin!N53","v":22521.620699999999},{"$f":"[1]Admin!N53","v":22521.620699999999},{"$f":"[1]Admin!Q53","v":24695.038103999999},{"$f":"[1]Admin!Q53","v":24695.038103999999},0,{"$f":"[1]Admin!T53","v":27081.250145696999},{"$f":"[1]Admin!T53","v":27081.250145696999},0,{"$f":"[1]Admin!V53","v":29701.814268138107},{"$f":"[1]Admin!V53","v":29701.814268138107},0]
[1,"EX1180",null,null,null,"Infrastructure and planning services",null,null,{"$f":"SUM(I55:I57)","v":0},0,0,0,0,0,{"$f":"SUM(N54-M54)","v":0},{"$f":"SUM(P55:P57)","v":0},{"$f":"SUM(Q55:Q57)","v":0},{"$f":"SUM(Q54-P54)","v":0},{"$f":"SUM(S55:S57)","v":0},{"$f":"SUM(T55:T57)","v":0},{"$f":"SUM(T54-S54)","v":0},{"$f":"SUM(V55:V57)","v":0}]
[1,"EX11801",null,null,null,"Maintenance and repairs: Buildings: Consultants",null,null,{"$f":"[1]Admin!J55","v":0},{"$f":"[1]Admin!L55","v":0},{"$f":"[1]Admin!N55","v":0},{"$f":"[1]Admin!N55","v":0},{"$f":"[1]Admin!Q55","v":0},{"$f":"[1]Admin!Q55","v":0},{"$f":"SUM(N55-M55)","v":0},{"$f":"[1]Admin!T55","v":0},{"$f":"[1]Admin!T55","v":0},{"$f":"SUM(Q55-P55)","v":0},{"$f":"[1]Admin!V55","v":0},{"$f":"[1]Admin!V55","v":0},0]
[1,"EX11802",null,null,null,"Maintenance and repairs: Other fixed structures: Consultants",null,null,{"$f":"[1]Admin!J56","v":0},{"$f":"[1]Admin!L56","v":0},{"$f":"[1]Admin!N56","v":0},{"$f":"[1]Admin!N56","v":0},{"$f":"[1]Admin!Q56","v":0},{"$f":"[1]Admin!Q56","v":0},0,{"$f":"[1]Admin!T56","v":0},{"$f":"[1]Admin!T56","v":0},0,{"$f":"[1]Admin!V56","v":0},{"$f":"[1]Admin!V56","v":0},0]
[1,"EX11803",null,null,null,"Other",null,null,{"$f":"[1]Admin!J57","v":0},{"$f":"[1]Admin!L57","v":0},{"$f":"[1]Admin!N57","v":0},{"$f":"[1]Admin!N57","v":0},{"$f":"[1]Admin!Q57","v":0},{"$f":"[1]Admin!Q57","v":0},0,{"$f":"[1]Admin!T57","v":0},{"$f":"[1]Admin!T57","v":0},0,{"$f":"[1]Admin!V57","v":0},{"$f":"[1]Admin!V57","v":0},0]
[1,"EX1164",null,null,null,"Laboratory services",null,null,{"$f":"[1]Admin!J58","v":0},{"$f":"[1]Admin!L58","v":0},{"$f":"[1]Admin!N58","v":0},{"$f":"[1]Admin!N58","v":0},{"$f":"[1]Admin!Q58","v":0},{"$f":"[1]Admin!Q58","v":0},0,{"$f":"[1]Admin!T58","v":0},{"$f":"[1]Admin!T58","v":0},0,{"$f":"[1]Admin!V58","v":0},{"$f":"[1]Admin!V58","v":0},0]
[1,"EX1162",null,null,null,"Legal services (G&S)",null,null,{"$f":"[1]Admin!J59","v":27599.613249999999},{"$f":"[1]Admin!L59","v":12146.525890000001},{"$f":"[1]Admin!N59","v":29339.162959999998},{"$f":"[1]Admin!N59","v":29339.162959999998},{"$f":"[1]Admin!Q59","v":30691.698372455998},{"$f":"[1]Admin!Q59","v":30691.698372455998},0,{"$f":"[1]Admin!T59","v":32088.170648402742},{"$f":"[1]Admin!T59","v":32088.170648402742},0,{"$f":"[1]Admin!V59","v":33538.555961710546},{"$f":"[1]Admin!V59","v":33538.555961710546},0]
[1,"EX1165",null,null,null,"Science and technological services",null,null,{"$f":"[1]Admin!J60","v":0},{"$f":"[1]Admin!L60","v":0},{"$f":"[1]Admin!N60","v":0},{"$f":"[1]Admin!N60","v":0},{"$f":"[1]Admin!Q60","v":0},{"$f":"[1]Admin!Q60","v":0},0,{"$f":"[1]Admin!T60","v":0},{"$f":"[1]Admin!T60","v":0},0,{"$f":"[1]Admin!V60","v":0},{"$f":"[1]Admin!V60","v":0},0]
[1,"EX1125",null,null,null,"Contractors",null,null,{"$f":"SUM(I62:I66,I72)","v":78.90255000001541},0,1342.62751,1342.62751,1406.4171870980001,1406.4171870980001,{"$f":"SUM(N61-M61)","v":0},{"$f":"SUM(P62:P66,P72)","v":1471.7515178459503},{"$f":"SUM(Q62:Q66,Q72)","v":1471.7515178459503},{"$f":"SUM(Q61-P61)","v":0},{"$f":"SUM(S62:S66,S72)","v":1539.8455576184776},{"$f":"SUM(T62:T66,T72)","v":1539.8455576184776},0,{"$f":"SUM(V62:V66,V72)","v":0}]
[1,"EX11251",null,null,null,"Maintenance and repairs of other fixed structures",null,null,{"$f":"[1]Admin!J62","v":78.90255000001541},{"$f":"[1]Admin!L62","v":0},{"$f":"[1]Admin!N62","v":1342.62751},{"$f":"[1]Admin!N62","v":1342.62751},{"$f":"[1]Admin!Q62","v":1406.4171870980001},{"$f":"[1]Admin!Q62","v":1406.4171870980001},0,{"$f":"[1]Admin!T62","v":1471.7515178459503},{"$f":"[1]Admin!T62","v":1471.7515178459503},0,{"$f":"[1]Admin!V62","v":1539.8455576184776},{"$f":"[1]Admin!V62","v":1539.8455576184776},0]
[1,"EX11252",null,null,null,"Maintenance and repairs of other machinery and equipment",null,null,{"$f":"[1]Admin!J63","v":0},{"$f":"[1]Admin!L63","v":0},{"$f":"[1]Admin!N63","v":0},{"$f":"[1]Admin!N63","v":0},{"$f":"[1]Admin!Q63","v":0},{"$f":"[1]Admin!Q63","v":0},0,{"$f":"[1]Admin!T63","v":0},{"$f":"[1]Admin!T63","v":0},0,{"$f":"[1]Admin!V63","v":0},{"$f":"[1]Admin!V63","v":0},0]
[1,"EX11253",null,null,null,"Maintenance and repairs of heritage buildings",null,null,{"$f":"[1]Admin!J64","v":0},{"$f":"[1]Admin!L64","v":0},{"$f":"[1]Admin!N64","v":0},{"$f":"[1]Admin!N64","v":0},{"$f":"[1]Admin!Q64","v":0},{"$f":"[1]Admin!Q64","v":0},0,{"$f":"[1]Admin!T64","v":0},{"$f":"[1]Admin!T64","v":0},0,{"$f":"[1]Admin!V64","v":0},{"$f":"[1]Admin!V64","v":0},0]
[1,"EX11254",null,null,null,"Maintenance and repairs of other heritage fixed structures",null,null,{"$f":"[1]Admin!J65","v":0},{"$f":"[1]Admin!L65","v":0},{"$f":"[1]Admin!N65","v":0},{"$f":"[1]Admin!N65","v":0},{"$f":"[1]Admin!Q65","v":0},{"$f":"[1]Admin!Q65","v":0},0,{"$f":"[1]Admin!T65","v":0},{"$f":"[1]Admin!T65","v":0},0,{"$f":"[1]Admin!V65","v":0},{"$f":"[1]Admin!V65","v":0},0]
[5,"EX11255",null,null,null,"South african social security agency payment contractors",null,null,{"$f":"SUM(I67:I71)","v":0},0,0,0,0,0,0,{"$f":"SUM(P67:P71)","v":0},{"$f":"SUM(Q67:Q71)","v":0},0,{"$f":"SUM(S67:S71)","v":0},{"$f":"SUM(T67:T71)","v":0},0,{"$f":"SUM(V67:V71)","v":0}]
[5,"EX112551",null,null,null,"SASSA Admin fees",null,null,{"$f":"[1]Admin!J67","v":0},{"$f":"[1]Admin!L67","v":0},{"$f":"[1]Admin!N67","v":0},{"$f":"[1]Admin!N67","v":0},{"$f":"[1]Admin!Q67","v":0},{"$f":"[1]Admin!Q67","v":0},{"$f":"SUM(N67-M67)","v":0},{"$f":"[1]Admin!T67","v":0},{"$f":"[1]Admin!T67","v":0},{"$f":"SUM(Q67-P67)","v":0},{"$f":"[1]Admin!V67","v":0},{"$f":"[1]Admin!V67","v":0},{"$f":"SUM(T67-S67)","v":0}]
[5,"EX112552",null,null,null,"SASSA Bankcard fees",null,null,{"$f":"[1]Admin!J68","v":0},{"$f":"[1]Admin!L68","v":0},{"$f":"[1]Admin!N68","v":0},{"$f":"[1]Admin!N68","v":0},{"$f":"[1]Admin!Q68","v":0},{"$f":"[1]Admin!Q68","v":0},0,{"$f":"[1]Admin!T68","v":0},{"$f":"[1]Admin!T68","v":0},0,{"$f":"[1]Admin!V68","v":0},{"$f":"[1]Admin!V68","v":0},0]
[5,"EX112553",null,null,null,"SASSA registration fees",null,null,{"$f":"[1]Admin!J69","v":0},{"$f":"[1]Admin!L69","v":0},{"$f":"[1]Admin!N69","v":0},{"$f":"[1]Admin!N69","v":0},{"$f":"[1]Admin!Q69","v":0},{"$f":"[1]Admin!Q69","v":0},0,{"$f":"[1]Admin!T69","v":0},{"$f":"[1]Admin!T69","v":0},0,{"$f":"[1]Admin!V69","v":0},{"$f":"[1]Admin!V69","v":0},0]
[5,"EX112554",null,null,null,"SASSA beneficiary fees",null,null,{"$f":"[1]Admin!J70","v":0},{"$f":"[1]Admin!L70","v":0},{"$f":"[1]Admin!N70","v":0},{"$f":"[1]Admin!N70","v":0},{"$f":"[1]Admin!Q70","v":0},{"$f":"[1]Admin!Q70","v":0},0,{"$f":"[1]Admin!T70","v":0},{"$f":"[1]Admin!T70","v":0},0,{"$f":"[1]Admin!V70","v":0},{"$f":"[1]Admin!V70","v":0},0]
[5,"EX112555",null,null,null,"SASSA help desk fees",null,null,{"$f":"[1]Admin!J71","v":0},{"$f":"[1]Admin!L71","v":0},{"$f":"[1]Admin!N71","v":0},{"$f":"[1]Admin!N71","v":0},{"$f":"[1]Admin!Q71","v":0},{"$f":"[1]Admin!Q71","v":0},0,{"$f":"[1]Admin!T71","v":0},{"$f":"[1]Admin!T71","v":0},0,{"$f":"[1]Admin!V71","v":0},{"$f":"[1]Admin!V71","v":0},0]
[1,"EX11256",null,null,null,"Other",null,null,{"$f":"[1]Admin!J72","v":0},{"$f":"[1]Admin!L72","v":0},{"$f":"[1]Admin!N72","v":0},{"$f":"[1]Admin!N72","v":0},{"$f":"[1]Admin!Q72","v":0},{"$f":"[1]Admin!Q72","v":0},0,{"$f":"[1]Admin!T72","v":0},{"$f":"[1]Admin!T72","v":0},0,{"$f":"[1]Admin!V72","v":0},{"$f":"[1]Admin!V72","v":0},0]
[1,"EX1121",null,null,null,"Agency and support/outsourced services",null,null,{"$f":"[1]Admin!J73","v":6508.8186599999681},{"$f":"[1]Admin!L73","v":5670.7388199999996},{"$f":"[1]Admin!N73","v":7667.9870899999996},{"$f":"[1]Admin!N73","v":7667.9870899999996},{"$f":"[1]Admin!Q73","v":8021.4812948489998},{"$f":"[1]Admin!Q73","v":8021.4812948489998},0,{"$f":"[1]Admin!T73","v":8386.4586937646291},{"$f":"[1]Admin!T73","v":8386.4586937646291},0,{"$f":"[1]Admin!V73","v":8765.5266267227908},{"$f":"[1]Admin!V73","v":8765.5266267227908},0]
[5,"EX11211",null,null,null,"     Of Which: Medical assessments",null,null,{"$f":"[1]Admin!J74","v":0},{"$f":"[1]Admin!L74","v":0},{"$f":"[1]Admin!N74","v":0},{"$f":"[1]Admin!N74","v":0},{"$f":"[1]Admin!Q74","v":0},{"$f":"[1]Admin!Q74","v":0},0,{"$f":"[1]Admin!T74","v":0},{"$f":"[1]Admin!T74","v":0},0,{"$f":"[1]Admin!V74","v":0},{"$f":"[1]Admin!V74","v":0},0]
[1,"EX1161",null,null,null,"Entertainment",null,null,{"$f":"[1]Admin!J75","v":0},{"$f":"[1]Admin!L75","v":3.5},{"$f":"[1]Admin!N75","v":6},{"$f":"[1]Admin!N75","v":6},{"$f":"[1]Admin!Q75","v":6.2766000000000002},{"$f":"[1]Admin!Q75","v":6.2766000000000002},0,{"$f":"[1]Admin!T75","v":6.5621853000000003},{"$f":"[1]Admin!T75","v":6.5621853000000003},0,{"$f":"[1]Admin!V75","v":6.8587960755599999},{"$f":"[1]Admin!V75","v":6.8587960755599999},0]
[1,"EX1166",null,null,null,"Fleet services (including government motor transport)",null,null,{"$f":"[1]Admin!J76","v":0},{"$f":"[1]Admin!L76","v":0},{"$f":"[1]Admin!N76","v":0},{"$f":"[1]Admin!N76","v":0},{"$f":"[1]Admin!Q76","v":0},{"$f":"[1]Admin!Q76","v":0},0,{"$f":"[1]Admin!T76","v":0},{"$f":"[1]Admin!T76","v":0},0,{"$f":"[1]Admin!V76","v":0},{"$f":"[1]Admin!V76","v":0},0]
[1,"EX1167",null,null,null,"Housing",null,null,{"$f":"[1]Admin!J77","v":0},{"$f":"[1]Admin!L77","v":0},{"$f":"[1]Admin!N77","v":0},{"$f":"[1]Admin!N77","v":0},{"$f":"[1]Admin!Q77","v":0},{"$f":"[1]Admin!Q77","v":0},0,{"$f":"[1]Admin!T77","v":0},{"$f":"[1]Admin!T77","v":0},0,{"$f":"[1]Admin!V77","v":0},{"$f":"[1]Admin!V77","v":0},0]
[1,"EX1168",null,null,null,"Inventory: Clothing material and accessories",null,null,{"$f":"[1]Admin!J78","v":0},{"$f":"[1]Admin!L78","v":0},{"$f":"[1]Admin!N78","v":0},{"$f":"[1]Admin!N78","v":0},{"$f":"[1]Admin!Q78","v":0},{"$f":"[1]Admin!Q78","v":0},0,{"$f":"[1]Admin!T78","v":0},{"$f":"[1]Admin!T78","v":0},0,{"$f":"[1]Admin!V78","v":0},{"$f":"[1]Admin!V78","v":0},0]
[1,"EX1169",null,null,null,"Inventory: Farming supplies",null,null,{"$f":"[1]Admin!J79","v":0},{"$f":"[1]Admin!L79","v":0},{"$f":"[1]Admin!N79","v":0},{"$f":"[1]Admin!N79","v":0},{"$f":"[1]Admin!Q79","v":0},{"$f":"[1]Admin!Q79","v":0},0,{"$f":"[1]Admin!T79","v":0},{"$f":"[1]Admin!T79","v":0},0,{"$f":"[1]Admin!V79","v":0},{"$f":"[1]Admin!V79","v":0},0]
[1,"EX1170",null,null,null,"Inventory: Food and food supplies",null,null,{"$f":"[1]Admin!J80","v":0},{"$f":"[1]Admin!L80","v":0},{"$f":"[1]Admin!N80","v":0},{"$f":"[1]Admin!N80","v":0},{"$f":"[1]Admin!Q80","v":0},{"$f":"[1]Admin!Q80","v":0},0,{"$f":"[1]Admin!T80","v":0},{"$f":"[1]Admin!T80","v":0},0,{"$f":"[1]Admin!V80","v":0},{"$f":"[1]Admin!V80","v":0},0]
[1,"EX1171",null,null,null,"Inventory: Fuel, oil and gas",null,null,{"$f":"[1]Admin!J81","v":0},{"$f":"[1]Admin!L81","v":0},{"$f":"[1]Admin!N81","v":0},{"$f":"[1]Admin!N81","v":0},{"$f":"[1]Admin!Q81","v":0},{"$f":"[1]Admin!Q81","v":0},0,{"$f":"[1]Admin!T81","v":0},{"$f":"[1]Admin!T81","v":0},0,{"$f":"[1]Admin!V81","v":0},{"$f":"[1]Admin!V81","v":0},0]
[1,"EX1172",null,null,null,"Inventory: Learner and teacher support material",null,null,{"$f":"[1]Admin!J82","v":0},{"$f":"[1]Admin!L82","v":0},{"$f":"[1]Admin!N82","v":0},{"$f":"[1]Admin!N82","v":0},{"$f":"[1]Admin!Q82","v":0},{"$f":"[1]Admin!Q82","v":0},0,{"$f":"[1]Admin!T82","v":0},{"$f":"[1]Admin!T82","v":0},0,{"$f":"[1]Admin!V82","v":0},{"$f":"[1]Admin!V82","v":0},0]
[1,"EX1126",null,null,null,"Inventory: Materials and supplies",null,null,{"$f":"[1]Admin!J83","v":0},{"$f":"[1]Admin!L83","v":0},{"$f":"[1]Admin!N83","v":0},{"$f":"[1]Admin!N83","v":0},{"$f":"[1]Admin!Q83","v":0},{"$f":"[1]Admin!Q83","v":0},0,{"$f":"[1]Admin!T83","v":0},{"$f":"[1]Admin!T83","v":0},0,{"$f":"[1]Admin!V83","v":0},{"$f":"[1]Admin!V83","v":0},0]
[1,"EX1173",null,null,null,"Inventory: Medical supplies",null,null,{"$f":"[1]Admin!J84","v":0},{"$f":"[1]Admin!L84","v":0},{"$f":"[1]Admin!N84","v":0},{"$f":"[1]Admin!N84","v":0},{"$f":"[1]Admin!Q84","v":0},{"$f":"[1]Admin!Q84","v":0},0,{"$f":"[1]Admin!T84","v":0},{"$f":"[1]Admin!T84","v":0},0,{"$f":"[1]Admin!V84","v":0},{"$f":"[1]Admin!V84","v":0},0]
[1,"EX1174",null,null,null,"Inventory: Medicine",null,null,{"$f":"[1]Admin!J85","v":0},{"$f":"[1]Admin!L85","v":0},{"$f":"[1]Admin!N85","v":0},{"$f":"[1]Admin!N85","v":0},{"$f":"[1]Admin!Q85","v":0},{"$f":"[1]Admin!Q85","v":0},0,{"$f":"[1]Admin!T85","v":0},{"$f":"[1]Admin!T85","v":0},0,{"$f":"[1]Admin!V85","v":0},{"$f":"[1]Admin!V85","v":0},0]
[1,"EX1175",null,null,null,"Medsas inventory interface",null,null,{"$f":"[1]Admin!J86","v":0},{"$f":"[1]Admin!L86","v":0},{"$f":"[1]Admin!N86","v":0},{"$f":"[1]Admin!N86","v":0},{"$f":"[1]Admin!Q86","v":0},{"$f":"[1]Admin!Q86","v":0},0,{"$f":"[1]Admin!T86","v":0},{"$f":"[1]Admin!T86","v":0},0,{"$f":"[1]Admin!V86","v":0},{"$f":"[1]Admin!V86","v":0},0]
[1,"EX1176",null,null,null,"Inventory: Other supplies",null,null,{"$f":"[1]Admin!J87","v":15879.473430000002},{"$f":"[1]Admin!L87","v":10380.23861},{"$f":"[1]Admin!N87","v":28764.389930000001},{"$f":"[1]Admin!N87","v":28764.389930000001},{"$f":"[1]Admin!Q87","v":30090.428305773003},{"$f":"[1]Admin!Q87","v":30090.428305773003},0,{"$f":"[1]Admin!T87","v":31459.542793685676},{"$f":"[1]Admin!T87","v":31459.542793685676},0,{"$f":"[1]Admin!V87","v":32881.514127960269},{"$f":"[1]Admin!V87","v":32881.514127960269},0]
[1,"EX1177",null,null,null,"Consumable supplies",null,null,{"$f":"[1]Admin!J88","v":1024.2476600000002},{"$f":"[1]Admin!L88","v":1906.3013300000002},{"$f":"[1]Admin!N88","v":3595.2721499999998},{"$f":"[1]Admin!N88","v":3595.2721499999998},{"$f":"[1]Admin!Q88","v":3761.0141961149993},{"$f":"[1]Admin!Q88","v":3761.0141961149993},0,{"$f":"[1]Admin!T88","v":3932.1403420382321},{"$f":"[1]Admin!T88","v":3932.1403420382321},0,{"$f":"[1]Admin!V88","v":4109.8730854983596},{"$f":"[1]Admin!V88","v":4109.8730854983596},0]
[1,"EX1144",null,null,null,"Consumables: Stationery, printing and office supplies",null,null,{"$f":"[1]Admin!J89","v":23467.963369999998},{"$f":"[1]Admin!L89","v":20088.146040000003},{"$f":"[1]Admin!N89","v":36007.709730000002},{"$f":"[1]Admin!N89","v":36007.709730000002},{"$f":"[1]Admin!Q89","v":37667.880748552998},{"$f":"[1]Admin!Q89","v":37667.880748552998},0,{"$f":"[1]Admin!T89","v":39382.009122612159},{"$f":"[1]Admin!T89","v":39382.009122612159},0,{"$f":"[1]Admin!V89","v":41162.341166954226},{"$f":"[1]Admin!V89","v":41162.341166954226},0]
[1,"EX1127",null,null,null,"Operating leases",null,null,{"$f":"[1]Admin!J90","v":-21180.086579999996},{"$f":"[1]Admin!L90","v":0},{"$f":"[1]Admin!N90","v":0},{"$f":"[1]Admin!N90","v":0},{"$f":"[1]Admin!Q90","v":0},{"$f":"[1]Admin!Q90","v":0},0,{"$f":"[1]Admin!T90","v":0},{"$f":"[1]Admin!T90","v":0},0,{"$f":"[1]Admin!V90","v":0},{"$f":"[1]Admin!V90","v":0},0]
[1,"EX1178",null,null,null,"Rental and hiring",null,null,{"$f":"[1]Admin!J91","v":0},{"$f":"[1]Admin!L91","v":0},{"$f":"[1]Admin!N91","v":0},{"$f":"[1]Admin!N91","v":0},{"$f":"[1]Admin!Q91","v":0},{"$f":"[1]Admin!Q91","v":0},0,{"$f":"[1]Admin!T91","v":0},{"$f":"[1]Admin!T91","v":0},0,{"$f":"[1]Admin!V91","v":0},{"$f":"[1]Admin!V91","v":0},0]
[1,"EX1145",null,null,null,"Property payments",null,null,{"$f":"[1]Admin!J92","v":683699.38095000014},{"$f":"[1]Admin!L92","v":647674.55259999994},{"$f":"[1]Admin!N92","v":701040.97892000002},{"$f":"[1]Admin!N92","v":701040.97892000002},{"$f":"[1]Admin!Q92","v":756633.05908611591},{"$f":"[1]Admin!Q92","v":756633.05908611591},0,{"$f":"[1]Admin!T92","v":823775.81267958472},{"$f":"[1]Admin!T92","v":823775.81267958472},0,{"$f":"[1]Admin!V92","v":906017.63751722744},{"$f":"[1]Admin!V92","v":906017.63751722744},0]
[1,"EX1179",null,null,null,"Transport provided: Internal activities",null,null,{"$f":"[1]Admin!J93","v":9174.4410700000008},{"$f":"[1]Admin!L93","v":8330.1393200000057},{"$f":"[1]Admin!N93","v":10678.706389999999},{"$f":"[1]Admin!N93","v":10678.706389999999},{"$f":"[1]Admin!Q93","v":11170.994754579},{"$f":"[1]Admin!Q93","v":11170.994754579},0,{"$f":"[1]Admin!T93","v":11679.275015912346},{"$f":"[1]Admin!T93","v":11679.275015912346},0,{"$f":"[1]Admin!V93","v":12207.178246631582},{"$f":"[1]Admin!V93","v":12207.178246631582},0]
[1,"EX1131",null,null,null,"Travel and subsistence",null,null,{"$f":"[1]Admin!J94","v":24373.757669999988},{"$f":"[1]Admin!L94","v":23957.231100000001},{"$f":"[1]Admin!N94","v":31715.504919999999},{"$f":"[1]Admin!N94","v":31715.504919999999},{"$f":"[1]Admin!Q94","v":33177.589696812},{"$f":"[1]Admin!Q94","v":33177.589696812},0,{"$f":"[1]Admin!T94","v":34687.170028016946},{"$f":"[1]Admin!T94","v":34687.170028016946},0,{"$f":"[1]Admin!V94","v":36255.030113283312},{"$f":"[1]Admin!V94","v":36255.030113283312},0]
[1,"EX1130",null,null,null,"Training and development",null,null,{"$f":"[1]Admin!J95","v":24018.68894},{"$f":"[1]Admin!L95","v":27915.036489999999},{"$f":"[1]Admin!N95","v":31795.232310000003},{"$f":"[1]Admin!N95","v":31795.232310000003},{"$f":"[1]Admin!Q95","v":33260.992519491003},{"$f":"[1]Admin!Q95","v":33260.992519491003},0,{"$f":"[1]Admin!T95","v":34774.367679127841},{"$f":"[1]Admin!T95","v":34774.367679127841},0,{"$f":"[1]Admin!V95","v":36346.169098224418},{"$f":"[1]Admin!V95","v":36346.169098224418},0]
[1,"EX1132",null,null,null,"Operating payments",null,null,{"$f":"[1]Admin!J96","v":89368.751660000009},{"$f":"[1]Admin!L96","v":111372.95056},{"$f":"[1]Admin!N96","v":76117.710210000005},{"$f":"[1]Admin!N96","v":76117.710210000005},{"$f":"[1]Admin!Q96","v":80990.554111915},{"$f":"[1]Admin!Q96","v":80990.554111915},0,{"$f":"[1]Admin!T96","v":84422.528621564066},{"$f":"[1]Admin!T96","v":84422.528621564066},0,{"$f":"[1]Admin!V96","v":87987.088071358841},{"$f":"[1]Admin!V96","v":87987.088071358841},0]
[1,"EX1146",null,null,null,"Venues and facilities",null,null,{"$f":"[1]Admin!J97","v":265.74},{"$f":"[1]Admin!L97","v":11758.574990000001},{"$f":"[1]Admin!N97","v":13655.272150000001},{"$f":"[1]Admin!N97","v":13655.272150000001},{"$f":"[1]Admin!Q97","v":14310.725213199999},{"$f":"[1]Admin!Q97","v":14310.725213199999},0,{"$f":"[1]Admin!T97","v":14997.6400234336},{"$f":"[1]Admin!T97","v":14997.6400234336},0,{"$f":"[1]Admin!V97","v":15717.526744558412},{"$f":"[1]Admin!V97","v":15717.526744558412},0]
[1,"EX113",null,null,null,"Depreciation",null,null,{"$f":"[1]Admin!J98","v":669908},{"$f":"[1]Admin!L98","v":592003},{"$f":"[1]Admin!N98","v":730826.98658035218},{"$f":"[1]Admin!N98","v":730826.98658035218},{"$f":"[1]Admin!Q98","v":611834.10536398564},{"$f":"[1]Admin!Q98","v":611834.10536398564},0,{"$f":"[1]Admin!T98","v":549506.18781142251},{"$f":"[1]Admin!T98","v":549506.18781142251},0,{"$f":"[1]Admin!V98","v":478340.21539785026},{"$f":"[1]Admin!V98","v":478340.21539785026},0]
[1,"EX114",null,null,null,"Losses from",null,null,{"$f":"SUM(I100:I101,I104)","v":24148},0,0,0,0,0,{"$f":"SUM(N99-M99)","v":0},{"$f":"SUM(P100:P101,P104)","v":0},{"$f":"SUM(Q100:Q101,Q104)","v":0},{"$f":"SUM(Q99-P99)","v":0},{"$f":"SUM(S100:S101,S104)","v":0},{"$f":"SUM(T100:T101,T104)","v":0},{"$f":"SUM(T99-S99)","v":0},{"$f":"SUM(V100:V101,V104)","v":0}]
[1,"EX1141",null,null,null,"Sale of fixed assets",null,null,{"$f":"[1]Admin!J100","v":0},{"$f":"[1]Admin!L100","v":0},{"$f":"[1]Admin!N100","v":0},{"$f":"[1]Admin!N100","v":0},{"$f":"[1]Admin!Q100","v":0},{"$f":"[1]Admin!Q100","v":0},0,{"$f":"[1]Admin!T100","v":0},{"$f":"[1]Admin!T100","v":0},0,{"$f":"[1]Admin!V100","v":0},{"$f":"[1]Admin!V100","v":0},0]
[1,"EX1142",null,null,null,"Impairments and adjustments to fair value",null,null,{"$f":"SUM(I102:I103)","v":24148},0,0,0,0,0,0,{"$f":"SUM(P102:P103)","v":0},{"$f":"SUM(Q102:Q103)","v":0},0,{"$f":"SUM(S102:S103)","v":0},{"$f":"SUM(T102:T103)","v":0},0,{"$f":"SUM(V102:V103)","v":0}]
[1,"EX11421",null,null,null,"Adjustments to fair value of assets",null,null,{"$f":"[1]Admin!J102","v":0},{"$f":"[1]Admin!L102","v":0},{"$f":"[1]Admin!N102","v":0},{"$f":"[1]Admin!N102","v":0},{"$f":"[1]Admin!Q102","v":0},{"$f":"[1]Admin!Q102","v":0},0,{"$f":"[1]Admin!T102","v":0},{"$f":"[1]Admin!T102","v":0},0,{"$f":"[1]Admin!V102","v":0},{"$f":"[1]Admin!V102","v":0},0]
[1,"EX11422",null,null,null,"Impairments to assets",null,null,{"$f":"[1]Admin!J103","v":24148},{"$f":"[1]Admin!L103","v":0},{"$f":"[1]Admin!N103","v":0},{"$f":"[1]Admin!N103","v":0},{"$f":"[1]Admin!Q103","v":0},{"$f":"[1]Admin!Q103","v":0},0,{"$f":"[1]Admin!T103","v":0},{"$f":"[1]Admin!T103","v":0},0,{"$f":"[1]Admin!V103","v":0},{"$f":"[1]Admin!V103","v":0},0]
[1,"EX1143",null,null,null,"Other",null,null,{"$f":"[1]Admin!J104","v":0},{"$f":"[1]Admin!L104","v":0},{"$f":"[1]Admin!N104","v":0},{"$f":"[1]Admin!N104","v":0},{"$f":"[1]Admin!Q104","v":0},{"$f":"[1]Admin!Q104","v":0},0,{"$f":"[1]Admin!T104","v":0},{"$f":"[1]Admin!T104","v":0},0,{"$f":"[1]Admin!V104","v":0},{"$f":"[1]Admin!V104","v":0},0]
[1,"EX115",null,null,null,"Interest, dividends and rent on land",null,null,{"$f":"SUM(I106:I108)","v":9025.1122599999981},7713.6318000000001,18.249120000000001,18.249120000000001,19.090404432,19.090404432,0,{"$f":"SUM(P106:P108)","v":19.959017833656002},{"$f":"SUM(Q106:Q108)","v":19.959017833656002},0,{"$f":"SUM(S106:S108)","v":20.861165439737253},{"$f":"SUM(T106:T108)","v":20.861165439737253},0,{"$f":"SUM(V106:V108)","v":0}]
[1,"EX1151",null,null,null,"Interest",null,null,{"$f":"[1]Admin!J106","v":9025.1122599999981},{"$f":"[1]Admin!L106","v":7713.6318000000001},{"$f":"[1]Admin!N106","v":18.249120000000001},{"$f":"[1]Admin!N106","v":18.249120000000001},{"$f":"[1]Admin!Q106","v":19.090404432},{"$f":"[1]Admin!Q106","v":19.090404432},0,{"$f":"[1]Admin!T106","v":19.959017833656002},{"$f":"[1]Admin!T106","v":19.959017833656002},0,{"$f":"[1]Admin!V106","v":20.861165439737253},{"$f":"[1]Admin!V106","v":20.861165439737253},0]
[1,"EX1152",null,null,null,"Dividends",null,null,{"$f":"[1]Admin!J107","v":0},{"$f":"[1]Admin!L107","v":0},{"$f":"[1]Admin!N107","v":0},{"$f":"[1]Admin!N107","v":0},{"$f":"[1]Admin!Q107","v":0},{"$f":"[1]Admin!Q107","v":0},0,{"$f":"[1]Admin!T107","v":0},{"$f":"[1]Admin!T107","v":0},0,{"$f":"[1]Admin!V107","v":0},{"$f":"[1]Admin!V107","v":0},0]
[1,"EX1153",null,null,null,"Rent on land",null,null,{"$f":"[1]Admin!J108","v":0},{"$f":"[1]Admin!L108","v":0},{"$f":"[1]Admin!N108","v":0},{"$f":"[1]Admin!N108","v":0},{"$f":"[1]Admin!Q108","v":0},{"$f":"[1]Admin!Q108","v":0},0,{"$f":"[1]Admin!T108","v":0},{"$f":"[1]Admin!T108","v":0},0,{"$f":"[1]Admin!V108","v":0},{"$f":"[1]Admin!V108","v":0},0]
[1,"EX12",null,null,null,"Transfers and subsidies",null,null,{"$f":"SUM(I110,I121,I132:I135)","v":0},0,0,0,0,0,0,{"$f":"SUM(P110,P121,P132:P135)","v":0},{"$f":"SUM(Q110,Q121,Q132:Q135)","v":0},0,{"$f":"SUM(S110,S121,S132:S135)","v":0},{"$f":"SUM(T110,T121,T132:T135)","v":0},0,{"$f":"SUM(V110,V121,V132:V135)","v":0}]
[2,"EX121",null,null,null,"Employer Grant (SETAs only)",null,null,{"$f":"SUM(I111,I117,I120)","v":0},0,0,0,0,0,0,{"$f":"SUM(P111,P117,P120)","v":0},{"$f":"SUM(Q111,Q117,Q120)","v":0},0,{"$f":"SUM(S111,S117,S120)","v":0},{"$f":"SUM(T111,T117,T120)","v":0},0,{"$f":"SUM(V111,V117,V120)","v":0}]
[1,"EX122",null,null,null,"Other government units",null,null,{"$f":"SUM(I112:I116)","v":0},0,0,0,0,0,0,{"$f":"SUM(P112:P116)","v":0},{"$f":"SUM(Q112:Q116)","v":0},0,{"$f":"SUM(S112:S116)","v":0},{"$f":"SUM(T112:T116)","v":0},0,{"$f":"SUM(V112:V116)","v":0}]
[1,"EX1221",null,null,null,"National government",null,null,{"$f":"[1]Admin!J112","v":0},{"$f":"[1]Admin!L112","v":0},{"$f":"[1]Admin!N112","v":0},{"$f":"[1]Admin!N112","v":0},{"$f":"[1]Admin!Q112","v":0},{"$f":"[1]Admin!Q112","v":0},0,{"$f":"[1]Admin!T112","v":0},{"$f":"[1]Admin!T112","v":0},0,{"$f":"[1]Admin!V112","v":0},{"$f":"[1]Admin!V112","v":0},0]
[1,"EX1222",null,null,null,"Departmental agencies and accounts",null,null,{"$f":"[1]Admin!J113","v":0},{"$f":"[1]Admin!L113","v":0},{"$f":"[1]Admin!N113","v":0},{"$f":"[1]Admin!N113","v":0},{"$f":"[1]Admin!Q113","v":0},{"$f":"[1]Admin!Q113","v":0},0,{"$f":"[1]Admin!T113","v":0},{"$f":"[1]Admin!T113","v":0},0,{"$f":"[1]Admin!V113","v":0},{"$f":"[1]Admin!V113","v":0},0]
[1,"EX1223",null,null,null,"Provinces",null,null,{"$f":"[1]Admin!J114","v":0},{"$f":"[1]Admin!L114","v":0},{"$f":"[1]Admin!N114","v":0},{"$f":"[1]Admin!N114","v":0},{"$f":"[1]Admin!Q114","v":0},{"$f":"[1]Admin!Q114","v":0},0,{"$f":"[1]Admin!T114","v":0},{"$f":"[1]Admin!T114","v":0},0,{"$f":"[1]Admin!V114","v":0},{"$f":"[1]Admin!V114","v":0},0]
[1,"EX1224",null,null,null,"Municipalities",null,null,{"$f":"[1]Admin!J115","v":0},{"$f":"[1]Admin!L115","v":0},{"$f":"[1]Admin!N115","v":0},{"$f":"[1]Admin!N115","v":0},{"$f":"[1]Admin!Q115","v":0},{"$f":"[1]Admin!Q115","v":0},0,{"$f":"[1]Admin!T115","v":0},{"$f":"[1]Admin!T115","v":0},0,{"$f":"[1]Admin!V115","v":0},{"$f":"[1]Admin!V115","v":0},0]
[2,"EX1225",null,null,null,"National Skills Fund",null,null,{"$f":"[1]Admin!J116","v":0},{"$f":"[1]Admin!L116","v":0},{"$f":"[1]Admin!N116","v":0},{"$f":"[1]Admin!N116","v":0},{"$f":"[1]Admin!Q116","v":0},{"$f":"[1]Admin!Q116","v":0},0,{"$f":"[1]Admin!T116","v":0},{"$f":"[1]Admin!T116","v":0},0,{"$f":"[1]Admin!V116","v":0},{"$f":"[1]Admin!V116","v":0},0]
[1,"EX123",null,null,null,"Public corporations and private enterprises (subsidies and other transfers)",null,null,{"$f":"SUM(I118:I119)","v":0},0,0,0,0,0,0,{"$f":"SUM(P118:P119)","v":0},{"$f":"SUM(Q118:Q119)","v":0},0,{"$f":"SUM(S118:S119)","v":0},{"$f":"SUM(T118:T119)","v":0},0,{"$f":"SUM(V118:V119)","v":0}]
[1,"EX1231",null,null,null,"Public corporations",null,null,{"$f":"[1]Admin!J118","v":0},{"$f":"[1]Admin!L118","v":0},{"$f":"[1]Admin!N118","v":0},{"$f":"[1]Admin!N118","v":0},{"$f":"[1]Admin!Q118","v":0},{"$f":"[1]Admin!Q118","v":0},0,{"$f":"[1]Admin!T118","v":0},{"$f":"[1]Admin!T118","v":0},0,{"$f":"[1]Admin!V118","v":0},{"$f":"[1]Admin!V118","v":0},0]
[1,"EX1232",null,null,null,"Private enterprises",null,null,{"$f":"[1]Admin!J119","v":0},{"$f":"[1]Admin!L119","v":0},{"$f":"[1]Admin!N119","v":0},{"$f":"[1]Admin!N119","v":0},{"$f":"[1]Admin!Q119","v":0},{"$f":"[1]Admin!Q119","v":0},0,{"$f":"[1]Admin!T119","v":0},{"$f":"[1]Admin!T119","v":0},0,{"$f":"[1]Admin!V119","v":0},{"$f":"[1]Admin!V119","v":0},0]
[2,"EX124",null,null,null,"Households and non government units",null,null,{"$f":"[1]Admin!J120","v":0},{"$f":"[1]Admin!L120","v":0},{"$f":"[1]Admin!N120","v":0},{"$f":"[1]Admin!N120","v":0},{"$f":"[1]Admin!Q120","v":0},{"$f":"[1]Admin!Q120","v":0},0,{"$f":"[1]Admin!T120","v":0},{"$f":"[1]Admin!T120","v":0},0,{"$f":"[1]Admin!V120","v":0},{"$f":"[1]Admin!V120","v":0},0]
[2,"EX125",null,null,null,"Discretionary Grant (SETAs only)",null,null,{"$f":"SUM(I122,I128,I131)","v":0},0,0,0,0,0,0,{"$f":"SUM(P122,P128,P131)","v":0},{"$f":"SUM(Q122,Q128,Q131)","v":0},0,{"$f":"SUM(S122,S128,S131)","v":0},{"$f":"SUM(T122,T128,T131)","v":0},0,{"$f":"SUM(V122,V128,V131)","v":0}]
[2,"EX126",null,null,null,"Other government units",null,null,{"$f":"SUM(I123:I127)","v":0},0,0,0,0,0,0,{"$f":"SUM(P123:P127)","v":0},{"$f":"SUM(Q123:Q127)","v":0},0,{"$f":"SUM(S123:S127)","v":0},{"$f":"SUM(T123:T127)","v":0},0,{"$f":"SUM(V123:V127)","v":0}]
[2,"EX1261",null,null,null,"National government",null,null,{"$f":"[1]Admin!J123","v":0},{"$f":"[1]Admin!L123","v":0},{"$f":"[1]Admin!N123","v":0},{"$f":"[1]Admin!N123","v":0},{"$f":"[1]Admin!Q123","v":0},{"$f":"[1]Admin!Q123","v":0},0,{"$f":"[1]Admin!T123","v":0},{"$f":"[1]Admin!T123","v":0},0,{"$f":"[1]Admin!V123","v":0},{"$f":"[1]Admin!V123","v":0},0]
[2,"EX1262",null,null,null,"Departmental agencies and accounts",null,null,{"$f":"[1]Admin!J124","v":0},{"$f":"[1]Admin!L124","v":0},{"$f":"[1]Admin!N124","v":0},{"$f":"[1]Admin!N124","v":0},{"$f":"[1]Admin!Q124","v":0},{"$f":"[1]Admin!Q124","v":0},0,{"$f":"[1]Admin!T124","v":0},{"$f":"[1]Admin!T124","v":0},0,{"$f":"[1]Admin!V124","v":0},{"$f":"[1]Admin!V124","v":0},0]
[2,"EX1263",null,null,null,"Provinces",null,null,{"$f":"[1]Admin!J125","v":0},{"$f":"[1]Admin!L125","v":0},{"$f":"[1]Admin!N125","v":0},{"$f":"[1]Admin!N125","v":0},{"$f":"[1]Admin!Q125","v":0},{"$f":"[1]Admin!Q125","v":0},0,{"$f":"[1]Admin!T125","v":0},{"$f":"[1]Admin!T125","v":0},0,{"$f":"[1]Admin!V125","v":0},{"$f":"[1]Admin!V125","v":0},0]
[2,"EX1264",null,null,null,"Municipalities",null,null,{"$f":"[1]Admin!J126","v":0},{"$f":"[1]Admin!L126","v":0},{"$f":"[1]Admin!N126","v":0},{"$f":"[1]Admin!N126","v":0},{"$f":"[1]Admin!Q126","v":0},{"$f":"[1]Admin!Q126","v":0},0,{"$f":"[1]Admin!T126","v":0},{"$f":"[1]Admin!T126","v":0},0,{"$f":"[1]Admin!V126","v":0},{"$f":"[1]Admin!V126","v":0},0]
[2,"EX1265",null,null,null,"National Skills Fund",null,null,{"$f":"[1]Admin!J127","v":0},{"$f":"[1]Admin!L127","v":0},{"$f":"[1]Admin!N127","v":0},{"$f":"[1]Admin!N127","v":0},{"$f":"[1]Admin!Q127","v":0},{"$f":"[1]Admin!Q127","v":0},0,{"$f":"[1]Admin!T127","v":0},{"$f":"[1]Admin!T127","v":0},0,{"$f":"[1]Admin!V127","v":0},{"$f":"[1]Admin!V127","v":0},0]
[2,"EX127",null,null,null,"Public corporations and private enterprises (subsidies and other transfers)",null,null,{"$f":"SUM(I129:I130)","v":0},0,0,0,0,0,0,{"$f":"SUM(P129:P130)","v":0},{"$f":"SUM(Q129:Q130)","v":0},0,{"$f":"SUM(S129:S130)","v":0},{"$f":"SUM(T129:T130)","v":0},0,{"$f":"SUM(V129:V130)","v":0}]
[2,"EX1271",null,null,null,"Public corporations",null,null,{"$f":"[1]Admin!J129","v":0},{"$f":"[1]Admin!L129","v":0},{"$f":"[1]Admin!N129","v":0},{"$f":"[1]Admin!N129","v":0},{"$f":"[1]Admin!Q129","v":0},{"$f":"[1]Admin!Q129","v":0},0,{"$f":"[1]Admin!T129","v":0},{"$f":"[1]Admin!T129","v":0},0,{"$f":"[1]Admin!V129","v":0},{"$f":"[1]Admin!V129","v":0},{"$f":"SUM(T129-S129)","v":0}]
[2,"EX1272",null,null,null,"Private enterprises",null,null,{"$f":"[1]Admin!J130","v":0},{"$f":"[1]Admin!L130","v":0},{"$f":"[1]Admin!N130","v":0},{"$f":"[1]Admin!N130","v":0},{"$f":"[1]Admin!Q130","v":0},{"$f":"[1]Admin!Q130","v":0},0,{"$f":"[1]Admin!T130","v":0},{"$f":"[1]Admin!T130","v":0},0,{"$f":"[1]Admin!V130","v":0},{"$f":"[1]Admin!V130","v":0},0]
[2,"EX128",null,null,null,"Households and non government units",null,null,{"$f":"[1]Admin!J131","v":0},{"$f":"[1]Admin!L131","v":0},{"$f":"[1]Admin!N131","v":0},{"$f":"[1]Admin!N131","v":0},{"$f":"[1]Admin!Q131","v":0},{"$f":"[1]Admin!Q131","v":0},0,{"$f":"[1]Admin!T131","v":0},{"$f":"[1]Admin!T131","v":0},0,{"$f":"[1]Admin!V131","v":0},{"$f":"[1]Admin!V131","v":0},0]
[1,"EX129",null,null,null,"Higher education institutions",null,null,{"$f":"[1]Admin!J132","v":0},{"$f":"[1]Admin!L132","v":0},{"$f":"[1]Admin!N132","v":0},{"$f":"[1]Admin!N132","v":0},{"$f":"[1]Admin!Q132","v":0},{"$f":"[1]Admin!Q132","v":0},0,{"$f":"[1]Admin!T132","v":0},{"$f":"[1]Admin!T132","v":0},0,{"$f":"[1]Admin!V132","v":0},{"$f":"[1]Admin!V132","v":0},0]
[1,"EX130",null,null,null,"Foreign governments and international organisations ",null,null,{"$f":"[1]Admin!J133","v":0},{"$f":"[1]Admin!L133","v":0},{"$f":"[1]Admin!N133","v":0},{"$f":"[1]Admin!N133","v":0},{"$f":"[1]Admin!Q133","v":0},{"$f":"[1]Admin!Q133","v":0},0,{"$f":"[1]Admin!T133","v":0},{"$f":"[1]Admin!T133","v":0},0,{"$f":"[1]Admin!V133","v":0},{"$f":"[1]Admin!V133","v":0},0]
[1,"EX131",null,null,null,"Non-profit institutions",null,null,{"$f":"[1]Admin!J134","v":0},{"$f":"[1]Admin!L134","v":0},{"$f":"[1]Admin!N134","v":0},{"$f":"[1]Admin!N134","v":0},{"$f":"[1]Admin!Q134","v":0},{"$f":"[1]Admin!Q134","v":0},0,{"$f":"[1]Admin!T134","v":0},{"$f":"[1]Admin!T134","v":0},0,{"$f":"[1]Admin!V134","v":0},{"$f":"[1]Admin!V134","v":0},0]
[1,"EX132",null,null,null,"Households",null,null,{"$f":"SUM(I136:I137)","v":0},0,0,0,0,0,{"$f":"SUM(N135-M135)","v":0},{"$f":"SUM(P136:P137)","v":0},{"$f":"SUM(Q136:Q137)","v":0},{"$f":"SUM(Q135-P135)","v":0},{"$f":"SUM(S136:S137)","v":0},{"$f":"SUM(T136:T137)","v":0},{"$f":"SUM(T135-S135)","v":0},{"$f":"SUM(V136:V137)","v":0}]
[1,"EX1301",null,null,null,"Social benefits ",null,null,{"$f":"[1]Admin!J136","v":0},{"$f":"[1]Admin!L136","v":0},{"$f":"[1]Admin!N136","v":0},{"$f":"[1]Admin!N136","v":0},{"$f":"[1]Admin!Q136","v":0},{"$f":"[1]Admin!Q136","v":0},0,{"$f":"[1]Admin!T136","v":0},{"$f":"[1]Admin!T136","v":0},0,{"$f":"[1]Admin!V136","v":0},{"$f":"[1]Admin!V136","v":0},0]
[1,"EX1302",null,null,null,"Other transfers to households",null,null,{"$f":"[1]Admin!J137","v":0},{"$f":"[1]Admin!L137","v":0},{"$f":"[1]Admin!N137","v":0},{"$f":"[1]Admin!N137","v":0},{"$f":"[1]Admin!Q137","v":0},{"$f":"[1]Admin!Q137","v":0},0,{"$f":"[1]Admin!T137","v":0},{"$f":"[1]Admin!T137","v":0},0,{"$f":"[1]Admin!V137","v":0},{"$f":"[1]Admin!V137","v":0},0]
[1,"EX13",null,null,null,"Tax payment",null,null,{"$f":"[1]Admin!J138","v":0},{"$f":"[1]Admin!L138","v":0},{"$f":"[1]Admin!N138","v":0},{"$f":"[1]Admin!N138","v":0},{"$f":"[1]Admin!Q138","v":0},{"$f":"[1]Admin!Q138","v":0},0,{"$f":"[1]Admin!T138","v":0},{"$f":"[1]Admin!T138","v":0},0,{"$f":"[1]Admin!V138","v":0},{"$f":"[1]Admin!V138","v":0},0]
[1,"EX14",null,null,null,"Outside shareholders Interest",null,null,{"$f":"[1]Admin!J139","v":0},{"$f":"[1]Admin!L139","v":0},{"$f":"[1]Admin!N139","v":0},{"$f":"[1]Admin!N139","v":0},{"$f":"[1]Admin!Q139","v":0},{"$f":"[1]Admin!Q139","v":0},0,{"$f":"[1]Admin!T139","v":0},{"$f":"[1]Admin!T139","v":0},0,{"$f":"[1]Admin!V139","v":0},{"$f":"[1]Admin!V139","v":0},0]
[1,"EX15",null,null,null,"Total Expenditure",null,null,{"$f":"SUM(I39,I109,I138:I139)","v":3251757.8258299995},2948677.6081000003,3392951.2575703519,3392951.2575703519,3198111.7300132173,3198111.7300132173,0,{"$f":"SUM(P39,P109,P138:P139)","v":3288268.7993594953},{"$f":"SUM(Q39,Q109,Q138:Q139)","v":3288268.7993594953},0,{"$f":"SUM(S39,S109,S138:S139)","v":3388249.6977805565},{"$f":"SUM(T39,T109,T138:T139)","v":3388249.6977805565},0,{"$f":"SUM(V39,V109,V138:V139)","v":0}]
[1]
[1,null,null,null,null,"Objective less Expenditure",null,null,{"$f":"ROUND(IF(I37-I140>0,IF(I37-I140<1,0,I37-I140),I37-I140),0)","v":0},0,null,0,0,0,{"$f":"ROUND(IF(O37-O140>0,IF(O37-O140<1,0,O37-O140),O37-O140),0)","v":0},0,0,0,0,0,0,0]
[1]

{"sheet":"2","index":6,"n_rows":143,"n_cols":23,"rows_kept":143,"cut":false,"hidden":false,"merged":[[31,15,31,17],[31,18,31,20],[31,12,31,14],[31,10,31,11]]}
[]
[]
[]
[]
[]
[null,null,null,null,null,"PE No",{"$f":"Settings!O2","v":"PE126"}]
[null,null,null,null,null,"Entity name",{"$f":"Settings!$E$2","v":"South African Revenue Service"}]
[]
[null,null,null,null,null,"Performance and operations information"]
["ItemCat","Item code","Hide/unhide",null,null,"Activity/Output/Outcome/Efficiency Indicator","MTDP Outcomes",null,{"$f":"MyYearM3","v":"2022/23"},{"$f":"MyYearM2","v":"2023/24"},{"$f":"MyYearM1","v":"2024/25"},{"$f":"MyYear0","v":"2025/26"},{"$f":"MyYearP1","v":"2026/27"},{"$f":"MyYearP2","v":"2027/28"},{"$f":"MyYearP3","v":"2028/29"},"Related Objectives","Add to 'Performance Indicators' Sheet","Comments"]
[1,null,null,null,null,{"$f":"'[1]2'!F11","v":"Percentage of collection of revenue as agreed with Minister of Finance"},{"$f":"'[1]2'!G11","v":"Outcome 10: Reduced poverty and improved livelihoods"},0,{"$f":"'[1]2'!J11","v":"R1 686.70 billion"},{"$f":"'[1]2'!K11","v":"R1 740.87 billion"},{"$f":"'[1]2'!L11","v":"100% "},{"$f":"'[1]2'!M11","v":"100% "},{"$f":"'[1]2'!N11","v":"100% "},{"$f":"'[1]2'!O11","v":"100% "},null,{"$f":"'[1]2'!P11","v":"Deputy Commissioner: Taxpayer Engagement and Operations"},{"$f":"'[1]2'!Q11","v":"Yes"},{"$f":"'[1]2'!R11","v":0}]
[1,null,null,null,null,{"$f":"'[1]2'!F12","v":"Level of overall tax compliance (%)"},{"$f":"'[1]2'!G12","v":"Outcome 10: Reduced poverty and improved livelihoods"},0,{"$f":"'[1]2'!J12","v":"(-)1.28% decline \non baseline \n61.61%\n(62.89% - 1.28%) "},{"$f":"'[1]2'!K12","v":"2.02 percentage \npoints increase on \nprior year \nachievement.\n63.63% \n(61.61% + 2.02%)"},{"$f":"'[1]2'!L12","v":"3.00% points \nincrease on \nprior year’s \nachievement"},{"$f":"'[1]2'!M12","v":"5.00% points \nincrease on \nprior year’s \nachievement"},{"$f":"'[1]2'!N12","v":"3.00% points \nincrease on \nprior year’s \nachievement"},{"$f":"'[1]2'!O12","v":"2.00% points \nincrease on \nprior year’s \nachievement"},null,{"$f":"'[1]2'!P12","v":"Deputy Commissioner: Taxpayer Engagement and Operations"},{"$f":"'[1]2'!Q12","v":"Yes"},{"$f":"'[1]2'!R12","v":0}]
[1,null,null,null,null,{"$f":"'[1]2'!F13","v":"Enhanced Trade Facilitation"},{"$f":"'[1]2'!G13","v":"Outcome 10: Reduced poverty and improved livelihoods"},0,{"$f":"'[1]2'!J13","v":"A trade facilitation \nindex was developed \nand approved. \nA baseline was \ndetermined and future \ntargets were set"},{"$f":"'[1]2'!K13","v":"18.80 percentage \npoints increase on \nbaseline \n71.60% \n(52.80% + 18.80%)"},{"$f":"'[1]2'!L13","v":"5.00%\nincrease on\nprior year\nachievement"},{"$f":"'[1]2'!M13","v":"5.00% points \nincrease on \nprior year’s \nachievement"},{"$f":"'[1]2'!N13","v":"2.00% points \nincrease on \nprior year’s \nachievement"},{"$f":"'[1]2'!O13","v":"2.00% points \nincrease on \nprior year’s \nachievement"},null,{"$f":"'[1]2'!P13","v":"Deputy Commissioner: Taxpayer Engagement and Operations"},{"$f":"'[1]2'!Q13","v":"Yes"},{"$f":"'[1]2'!R13","v":0}]
[1,null,null,null,null,{"$f":"'[1]2'!F14","v":"Percentage of taxpayers and traders surveyed are satisfied with the clarity and certainty provided by SARS"},{"$f":"'[1]2'!G14","v":"Outcome 10: Reduced poverty and improved livelihoods"},0,{"$f":"'[1]2'!J14","v":"75.33%"},{"$f":"'[1]2'!K14","v":"66.86%"},{"$f":"'[1]2'!L14","v":"77.00% "},{"$f":"'[1]2'!M14","v":"77.50% "},{"$f":"'[1]2'!N14","v":"78.00%"},{"$f":"'[1]2'!O14","v":"78.50%"},null,{"$f":"'[1]2'!P14","v":"Deputy Commissioner: Taxpayer Engagement and Operations"},{"$f":"'[1]2'!Q14","v":"Yes"},{"$f":"'[1]2'!R14","v":0}]
[1,null,null,null,null,{"$f":"'[1]2'!F15","v":"% of taxpayers and traders using digital and self-help platforms to interact with SARS "},{"$f":"'[1]2'!G15","v":"Outcome 10: Reduced poverty and improved livelihoods"},0,{"$f":"'[1]2'!J15","v":"89.38%"},{"$f":"'[1]2'!K15","v":"88.49%"},{"$f":"'[1]2'!L15","v":"91.00%"},{"$f":"'[1]2'!M15","v":"91.50%"},{"$f":"'[1]2'!N15","v":"92.00%"},{"$f":"'[1]2'!O15","v":"92.50%"},null,{"$f":"'[1]2'!P15","v":"Deputy Commissioner: Taxpayer Engagement and Operations"},{"$f":"'[1]2'!Q15","v":"Yes"},{"$f":"'[1]2'!R15","v":0}]
[1,null,null,null,null,{"$f":"'[1]2'!F16","v":"Percentage of standard taxpayers’ returns auto assessed by SARS (individual taxpayers)"},{"$f":"'[1]2'!G16","v":"Outcome 10: Reduced poverty and improved livelihoods"},0,{"$f":"'[1]2'!J16","v":"94.70%"},{"$f":"'[1]2'!K16","v":"97.33%"},{"$f":"'[1]2'!L16","v":"95.00%"},{"$f":"'[1]2'!M16","v":"95.00%"},{"$f":"'[1]2'!N16","v":"95.00%"},{"$f":"'[1]2'!O16","v":"95.00%"},null,{"$f":"'[1]2'!P16","v":"Deputy Commissioner: Taxpayer Engagement and Operations"},{"$f":"'[1]2'!Q16","v":"Yes"},{"$f":"'[1]2'!R16","v":0}]
[1,null,null,null,null,{"$f":"'[1]2'!F17","v":"Extent to which SARS enables the NPA to successfully prosecute criminal cases referred by SARS (quality of the document)"},{"$f":"'[1]2'!G17","v":"Outcome 10: Reduced poverty and improved livelihoods"},0,{"$f":"'[1]2'!J17","v":"not applicable "},{"$f":"'[1]2'!K17","v":"95.29%"},{"$f":"'[1]2'!L17","v":"95.00%"},{"$f":"'[1]2'!M17","v":"95.00%"},{"$f":"'[1]2'!N17","v":"90.00%"},{"$f":"'[1]2'!O17","v":0},null,{"$f":"'[1]2'!P17","v":"Deputy Commissioner: Taxpayer Engagement and Operations"},{"$f":"'[1]2'!Q17","v":"No"},{"$f":"'[1]2'!R17","v":0}]
[1,null,null,null,null,{"$f":"'[1]2'!F18","v":"Risk detection rate"},{"$f":"'[1]2'!G18","v":"Outcome 10: Reduced poverty and improved livelihoods"},0,{"$f":"'[1]2'!J18","v":"96.61%"},{"$f":"'[1]2'!K18","v":"98.10%"},{"$f":"'[1]2'!L18","v":"95.00%"},{"$f":"'[1]2'!M18","v":"96.00%"},{"$f":"'[1]2'!N18","v":"97.00%"},{"$f":"'[1]2'!O18","v":"97.00%"},null,{"$f":"'[1]2'!P18","v":"Deputy Commissioner: Taxpayer Engagement and Operations"},{"$f":"'[1]2'!Q18","v":"Yes"},{"$f":"'[1]2'!R18","v":0}]
[1,null,null,null,null,{"$f":"'[1]2'!F19","v":"% utilisation of automated risk assessment for taxpayers and traders"},{"$f":"'[1]2'!G19","v":"Outcome 10: Reduced poverty and improved livelihoods"},0,{"$f":"'[1]2'!J19","v":"100.00% standard\n66.95% complex"},{"$f":"'[1]2'!K19","v":"100.00% \nStandard \n82.80% \nComplex"},{"$f":"'[1]2'!L19","v":"100.00% standard\n77.00% complex"},{"$f":"'[1]2'!M19","v":"100.00% standard\n75.00% complex"},{"$f":"'[1]2'!N19","v":"100.00% standard\n80.00% complex"},{"$f":"'[1]2'!O19","v":"100.00%\nstandard\n80.00%\ncomplex"},null,{"$f":"'[1]2'!P19","v":"Deputy Commissioner: Taxpayer Engagement and Operations"},{"$f":"'[1]2'!Q19","v":"Yes"},{"$f":"'[1]2'!R19","v":0}]
[1,null,null,null,null,{"$f":"'[1]2'!F20","v":"Expanded enrolment of Economic Operators to the AEO Programme "},{"$f":"'[1]2'!G20","v":"Outcome 10: Reduced poverty and improved livelihoods"},0,{"$f":"'[1]2'!J20","v":"New measure"},{"$f":"'[1]2'!K20","v":"190"},{"$f":"'[1]2'!L20","v":"130"},{"$f":"'[1]2'!M20","v":"130"},{"$f":"'[1]2'!N20","v":"135"},{"$f":"'[1]2'!O20","v":"140"},null,{"$f":"'[1]2'!P20","v":"Deputy Commissioner: Taxpayer Engagement and Operations"},{"$f":"'[1]2'!Q20","v":"No"},{"$f":"'[1]2'!R20","v":0}]
[1,null,null,null,null,{"$f":"'[1]2'!F21","v":"% \nimplementation \nof the focused \nSMME \nCompliance \nProgramme \ninitiatives \non the pilot population"},{"$f":"'[1]2'!G21","v":"Outcome 10: Reduced poverty and improved livelihoods"},0,{"$f":"'[1]2'!J21","v":"New measure"},{"$f":"'[1]2'!K21","v":"The SMME\ncompliance\nprogramme\nis approved"},{"$f":"'[1]2'!L21","v":"80.00% \ncompletion \nof the pilot \nand impact \nassessment \non \nimprovement \nof SMMEs’ \ncustomer \nexperience \nand \nfacilitation \nof seamless \ncompliance"},{"$f":"'[1]2'!M21","v":"Implement \nthe SMME \nCompliance \nProgramme "},{"$f":"'[1]2'!N21","v":"Track the \nSMME \nCompliance \nImprovement \nper Programme"},{"$f":"'[1]2'!O21","v":"Track the \nSMME \nCompliance \nImprovement \nper Programme"},null,{"$f":"'[1]2'!P21","v":"Deputy Commissioner: Taxpayer Engagement and Operations"},{"$f":"'[1]2'!Q21","v":"Yes"},{"$f":"'[1]2'!R21","v":0}]
[1,null,null,null,null,{"$f":"'[1]2'!F22","v":"Number of \nsignificant \nschemes \ncollapsed "},{"$f":"'[1]2'!G22","v":"Outcome 10: Reduced poverty and improved livelihoods"},0,{"$f":"'[1]2'!J22","v":"New measure"},{"$f":"'[1]2'!K22","v":"New measure"},{"$f":"'[1]2'!L22","v":"3"},{"$f":"'[1]2'!M22","v":"3"},{"$f":"'[1]2'!N22","v":"3"},{"$f":"'[1]2'!O22","v":"3"},null,{"$f":"'[1]2'!P22","v":"Deputy commissioner: Taxpayer engagement and operations "},{"$f":"'[1]2'!Q22","v":"Yes"},{"$f":"'[1]2'!R22","v":0}]
[1,null,null,null,null,{"$f":"'[1]2'!F23","v":0},{"$f":"'[1]2'!G23","v":0},0,{"$f":"'[1]2'!J23","v":0},{"$f":"'[1]2'!K23","v":0},{"$f":"'[1]2'!L23","v":0},{"$f":"'[1]2'!M23","v":0},{"$f":"'[1]2'!N23","v":0},{"$f":"'[1]2'!O23","v":0},null,{"$f":"'[1]2'!P23","v":0},{"$f":"'[1]2'!Q23","v":0},{"$f":"'[1]2'!R23","v":0}]
[1,null,null,null,null,{"$f":"'[1]2'!F24","v":0},{"$f":"'[1]2'!G24","v":0},0,{"$f":"'[1]2'!J24","v":0},{"$f":"'[1]2'!K24","v":0},{"$f":"'[1]2'!L24","v":0},{"$f":"'[1]2'!M24","v":0},{"$f":"'[1]2'!N24","v":0},{"$f":"'[1]2'!O24","v":0},null,{"$f":"'[1]2'!P24","v":0},{"$f":"'[1]2'!Q24","v":0},{"$f":"'[1]2'!R24","v":0}]
[1,null,null,null,null,{"$f":"'[1]2'!F25","v":0},{"$f":"'[1]2'!G25","v":0},0,{"$f":"'[1]2'!J25","v":0},{"$f":"'[1]2'!K25","v":0},{"$f":"'[1]2'!L25","v":0},{"$f":"'[1]2'!M25","v":0},{"$f":"'[1]2'!N25","v":0},{"$f":"'[1]2'!O25","v":0},null,{"$f":"'[1]2'!P25","v":0},{"$f":"'[1]2'!Q25","v":0},{"$f":"'[1]2'!R25","v":0}]
[1,null,null,null,null,"Notes:"]
[1,null,null,null,null,"Performance indicators are an explanation of objectives performance.   "]
[1,null,null,null,null,"1. They are specific measurements that track progress towards achieving the goals and objectives of an institution."]
[1,null,null,null,null,"2. Institutions should use performance indicators in the 2024/25 Annual Performance Plans and those in the 2025 ENE. "]
[1,null,null,null,null,"3. Institutions should also indicate instances where targets are not affected by budget baseline reprioritisation."]
[1]
[1,null,null,null,null,null,null,null,{"$f":"MyYearM3","v":"2022/23"},{"$f":"MyYearM2","v":"2023/24"},{"$f":"MyYearM1","v":"2024/25"},null,{"$f":"MyYear0","v":"2025/26"},null,null,{"$f":"MyYearP1","v":"2026/27"},null,null,{"$f":"MyYearP2","v":"2027/28"},null,null,{"$f":"MyYearP3","v":"2028/29"}]
[1,null,null,null,null,"Expenses",null,null,{"$f":"Hist_year3RestatedAudited","v":"Audited\noutcome"},{"$f":"Hist_year2RestatedAudited","v":"Audited\noutcome"},{"$f":"Hist_year1Budget","v":"Budget"},{"$f":"Hist_year1Audited","v":"Audited\noutcome"},{"$f":"Cur_YearBudgEst","v":"Budget\nestimate"},{"$f":"Cur_YearApprovedBudg","v":"Approved budget"},{"$f":"Cur_YearChangeFrRevBudg","v":"Changes from \nbudget estimate"},{"$f":"MTEF1BudgEst","v":"Budget\nestimate"},{"$f":"MTEF1RevBudgEst","v":"Revised\nbudget\nestimate"},{"$f":"MTEF1_ChangeFrBudgEst","v":"Changes from budget estimate"},{"$f":"MTEF2BudgEst","v":"Budget\nestimate"},{"$f":"MTEF2RevBudgEst","v":"Revised\nbudget\nestimate"},{"$f":"MTEF2_ChangeFrBudgEst","v":"Changes from budget estimate"},{"$f":"MTEF3PlanBudgetEst","v":"Planning\nbudget \nestimate"}]
[1]
[1,null,null,null,null,"Rand thousand"]
[1,null,null,null,null,"Objective/Activity"]
[1,null,null,null,null,{"$f":"'[1]2'!F37","v":"Deputy commissioner: Taxpayer engagement and operations "},null,null,{"$f":"'[1]2'!J37","v":6435782.4652199997},{"$f":"'[1]2'!L37","v":7331552.6430699993},{"$f":"'[1]2'!N37","v":7266002.6030899975},{"$f":"'[1]2'!N37","v":7266002.6030899975},{"$f":"'[1]2'!Q37","v":7698741.6299284389},{"$f":"'[1]2'!Q37","v":7698741.6299284389},{"$f":"SUM(N37-M37)","v":0},{"$f":"'[1]2'!T37","v":8069993.9109454416},{"$f":"'[1]2'!T37","v":8069993.9109454416},{"$f":"SUM(Q37-P37)","v":0},{"$f":"'[1]2'!V37","v":8463747.2865662836},{"$f":"'[1]2'!V37","v":8463747.2865662836},{"$f":"SUM(T37-S37)","v":0}]
[1,null,null,null,null,"Economic classification"]
[1,"EX11",null,null,null,"Current payments",null,null,{"$f":"SUM(I40,I43,I98:I99,I105)","v":6435782.4652199997},7331552.6430699993,7266002.6030899975,7266002.6030899975,7698741.6299284389,7698741.6299284389,{"$f":"SUM(N39-M39)","v":0},{"$f":"SUM(P40,P43,P98:P99,P105)","v":8069993.9109454416},{"$f":"SUM(Q40,Q43,Q98:Q99,Q105)","v":8069993.9109454416},{"$f":"SUM(Q39-P39)","v":0},{"$f":"SUM(S40,S43,S98:S99,S105)","v":8463747.2865662836},{"$f":"SUM(T40,T43,T98:T99,T105)","v":8463747.2865662836},{"$f":"SUM(T39-S39)","v":0},{"$f":"SUM(V40,V43,V98:V99,V105)","v":0}]
[1,"EX111",null,null,null,"Compensation of employees",null,null,{"$f":"SUM(I41:I42)","v":5627377.4613599991},6373723.5888799997,6306224.9947299976,6306224.9947299976,6658919.0404098118,6658919.0404098118,{"$f":"SUM(N40-M40)","v":0},{"$f":"SUM(P41:P42)","v":6961899.8567484599},{"$f":"SUM(Q41:Q42)","v":6961899.8567484599},{"$f":"SUM(Q40-P40)","v":0},{"$f":"SUM(S41:S42)","v":7276577.730273488},{"$f":"SUM(T41:T42)","v":7276577.730273488},{"$f":"SUM(T40-S40)","v":0},{"$f":"SUM(V41:V42)","v":0}]
[1,"EX1111",null,null,null,"Salaries and wages",null,null,{"$f":"'[1]2'!J41","v":4640728.0690899994},{"$f":"'[1]2'!L41","v":5303029.94948},{"$f":"'[1]2'!N41","v":5190318.0350999981},{"$f":"'[1]2'!N41","v":5190318.0350999981},{"$f":"'[1]2'!Q41","v":5498294.4999937676},{"$f":"'[1]2'!Q41","v":5498294.4999937676},{"$f":"SUM(N41-M41)","v":0},{"$f":"'[1]2'!T41","v":5748466.8997434862},{"$f":"'[1]2'!T41","v":5748466.8997434862},{"$f":"SUM(Q41-P41)","v":0},{"$f":"'[1]2'!V41","v":6008297.6036118893},{"$f":"'[1]2'!V41","v":6008297.6036118893},{"$f":"SUM(T41-S41)","v":0}]
[1,"EX1112",null,null,null,"Social contributions",null,null,{"$f":"'[1]2'!J42","v":986649.39226999995},{"$f":"'[1]2'!L42","v":1070693.6394},{"$f":"'[1]2'!N42","v":1115906.9596299999},{"$f":"'[1]2'!N42","v":1115906.9596299999},{"$f":"'[1]2'!Q42","v":1160624.540416044},{"$f":"'[1]2'!Q42","v":1160624.540416044},{"$f":"SUM(N42-M42)","v":0},{"$f":"'[1]2'!T42","v":1213432.9570049741},{"$f":"'[1]2'!T42","v":1213432.9570049741},{"$f":"SUM(Q42-P42)","v":0},{"$f":"'[1]2'!V42","v":1268280.1266615989},{"$f":"'[1]2'!V42","v":1268280.1266615989},{"$f":"SUM(T42-S42)","v":0}]
[1,"EX112",null,null,null,"Goods and services",null,null,{"$f":"SUM(I45:I54,I58:I61,I73,I75:I97)","v":808216.97525000002},{"$f":"SUM(J45:J54,J58:J61,J73,J75:J97)","v":957626.8803800001},{"$f":"SUM(K45:K54,K58:K61,K73,K75:K97)","v":959578.79492999986},959578.79492999986,1039614.6107895041,1039614.6107895041,0,1107876.6124356836,1107876.6124356836,0,1186942.2861638858,1186942.2861638858,0,0,{"$f":"SUM(W45:W54,W58:W61,W73,W75:W97)","v":0}]
[1,"EX000",null,null,null,"Of which 1"]
[1,"EX1133",null,null,null,"Administrative fees",null,null,{"$f":"'[1]2'!J45","v":0},{"$f":"'[1]2'!L45","v":0},{"$f":"'[1]2'!N45","v":0},{"$f":"'[1]2'!N45","v":0},{"$f":"'[1]2'!Q45","v":0},{"$f":"'[1]2'!Q45","v":0},{"$f":"SUM(N45-M45)","v":0},{"$f":"'[1]2'!T45","v":0},{"$f":"'[1]2'!T45","v":0},{"$f":"SUM(Q45-P45)","v":0},{"$f":"'[1]2'!V45","v":0},{"$f":"'[1]2'!V45","v":0},{"$f":"SUM(T45-S45)","v":0}]
[1,"EX1134",null,null,null,"Advertising",null,null,{"$f":"'[1]2'!J46","v":6794.9821499999998},{"$f":"'[1]2'!L46","v":1671.5798},{"$f":"'[1]2'!N46","v":1545.4639400000001},{"$f":"'[1]2'!N46","v":1545.4639400000001},{"$f":"'[1]2'!Q46","v":1616.709827634},{"$f":"'[1]2'!Q46","v":1616.709827634},0,{"$f":"'[1]2'!T46","v":1690.2701247913471},{"$f":"'[1]2'!T46","v":1690.2701247913471},0,{"$f":"'[1]2'!V46","v":1766.670334431916},{"$f":"'[1]2'!V46","v":1766.670334431916},0]
[1,"EX1135",null,null,null,"Minor assets",null,null,{"$f":"'[1]2'!J47","v":4922.8512899999996},{"$f":"'[1]2'!L47","v":5186.2313100000001},{"$f":"'[1]2'!N47","v":11931.55414},{"$f":"'[1]2'!N47","v":11931.55414},{"$f":"'[1]2'!Q47","v":12504.26873872},{"$f":"'[1]2'!Q47","v":12504.26873872},0,{"$f":"'[1]2'!T47","v":13104.473638178561},{"$f":"'[1]2'!T47","v":13104.473638178561},0,{"$f":"'[1]2'!V47","v":13733.488372811131},{"$f":"'[1]2'!V47","v":13733.488372811131},0]
[1,"EX1136",null,null,null,"Audit costs: External",null,null,{"$f":"'[1]2'!J48","v":0},{"$f":"'[1]2'!L48","v":0},{"$f":"'[1]2'!N48","v":0},{"$f":"'[1]2'!N48","v":0},{"$f":"'[1]2'!Q48","v":0},{"$f":"'[1]2'!Q48","v":0},0,{"$f":"'[1]2'!T48","v":0},{"$f":"'[1]2'!T48","v":0},0,{"$f":"'[1]2'!V48","v":0},{"$f":"'[1]2'!V48","v":0},0]
[1,"EX1139",null,null,null,"Bursaries: Employees",null,null,{"$f":"'[1]2'!J49","v":1020.5209},{"$f":"'[1]2'!L49","v":1359.38678},{"$f":"'[1]2'!N49","v":145.81371999999999},{"$f":"'[1]2'!N49","v":145.81371999999999},{"$f":"'[1]2'!Q49","v":152.53573249200002},{"$f":"'[1]2'!Q49","v":152.53573249200002},0,{"$f":"'[1]2'!T49","v":159.476108320386},{"$f":"'[1]2'!T49","v":159.476108320386},0,{"$f":"'[1]2'!V49","v":166.68442841646748},{"$f":"'[1]2'!V49","v":166.68442841646748},0]
[1,"EX1140",null,null,null,"Catering: Internal activities",null,null,{"$f":"'[1]2'!J50","v":778.73540000000003},{"$f":"'[1]2'!L50","v":1934.46416},{"$f":"'[1]2'!N50","v":545.96681000000001},{"$f":"'[1]2'!N50","v":545.96681000000001},{"$f":"'[1]2'!Q50","v":571.13587994099998},{"$f":"'[1]2'!Q50","v":571.13587994099998},0,{"$f":"'[1]2'!T50","v":597.12256247831544},{"$f":"'[1]2'!T50","v":597.12256247831544},0,{"$f":"'[1]2'!V50","v":624.11250230233532},{"$f":"'[1]2'!V50","v":624.11250230233532},0]
[1,"EX1122",null,null,null,"Communication (G&S)",null,null,{"$f":"'[1]2'!J51","v":48077.299440000003},{"$f":"'[1]2'!L51","v":53618.492790000004},{"$f":"'[1]2'!N51","v":76158.842489999995},{"$f":"'[1]2'!N51","v":76158.842489999995},{"$f":"'[1]2'!Q51","v":83710.103568465012},{"$f":"'[1]2'!Q51","v":83710.103568465012},0,{"$f":"'[1]2'!T51","v":92012.759096388152},{"$f":"'[1]2'!T51","v":92012.759096388152},0,{"$f":"'[1]2'!V51","v":101142.17664721163},{"$f":"'[1]2'!V51","v":101142.17664721163},0]
[1,"EX1123",null,null,null,"Computer services",null,null,{"$f":"'[1]2'!J52","v":16206.579399999999},{"$f":"'[1]2'!L52","v":20181.3079},{"$f":"'[1]2'!N52","v":25281.22395},{"$f":"'[1]2'!N52","v":25281.22395},{"$f":"'[1]2'!Q52","v":27809.346345000002},{"$f":"'[1]2'!Q52","v":27809.346345000002},0,{"$f":"'[1]2'!T52","v":30590.280979499999},{"$f":"'[1]2'!T52","v":30590.280979499999},0,{"$f":"'[1]2'!V52","v":33649.309077450001},{"$f":"'[1]2'!V52","v":33649.309077450001},0]
[1,"EX1124",null,null,null,"Consultants: Business and advisory services",null,null,{"$f":"'[1]2'!J53","v":5336.5895899999996},{"$f":"'[1]2'!L53","v":17683.205020000001},{"$f":"'[1]2'!N53","v":17386.412379999998},{"$f":"'[1]2'!N53","v":17386.412379999998},{"$f":"'[1]2'!Q53","v":19033.210759354002},{"$f":"'[1]2'!Q53","v":19033.210759354002},0,{"$f":"'[1]2'!T53","v":20839.385520142605},{"$f":"'[1]2'!T53","v":20839.385520142605},0,{"$f":"'[1]2'!V53","v":22821.198518170975},{"$f":"'[1]2'!V53","v":22821.198518170975},0]
[1,"EX1180",null,null,null,"Infrastructure and planning services",null,null,{"$f":"SUM(I55:I57)","v":0},0,0,0,0,0,{"$f":"SUM(N54-M54)","v":0},{"$f":"SUM(P55:P57)","v":0},{"$f":"SUM(Q55:Q57)","v":0},{"$f":"SUM(Q54-P54)","v":0},{"$f":"SUM(S55:S57)","v":0},{"$f":"SUM(T55:T57)","v":0},{"$f":"SUM(T54-S54)","v":0},{"$f":"SUM(V55:V57)","v":0}]
[1,"EX11801",null,null,null,"Maintenance and repairs: Buildings: Consultants",null,null,{"$f":"'[1]2'!J55","v":0},{"$f":"'[1]2'!L55","v":0},{"$f":"'[1]2'!N55","v":0},{"$f":"'[1]2'!N55","v":0},{"$f":"'[1]2'!Q55","v":0},{"$f":"'[1]2'!Q55","v":0},{"$f":"SUM(N55-M55)","v":0},{"$f":"'[1]2'!T55","v":0},{"$f":"'[1]2'!T55","v":0},{"$f":"SUM(Q55-P55)","v":0},{"$f":"'[1]2'!V55","v":0},{"$f":"'[1]2'!V55","v":0},0]
[1,"EX11802",null,null,null,"Maintenance and repairs: Other fixed structures: Consultants",null,null,{"$f":"'[1]2'!J56","v":0},{"$f":"'[1]2'!L56","v":0},{"$f":"'[1]2'!N56","v":0},{"$f":"'[1]2'!N56","v":0},{"$f":"'[1]2'!Q56","v":0},{"$f":"'[1]2'!Q56","v":0},0,{"$f":"'[1]2'!T56","v":0},{"$f":"'[1]2'!T56","v":0},0,{"$f":"'[1]2'!V56","v":0},{"$f":"'[1]2'!V56","v":0},0]
[1,"EX11803",null,null,null,"Other",null,null,{"$f":"'[1]2'!J57","v":0},{"$f":"'[1]2'!L57","v":0},{"$f":"'[1]2'!N57","v":0},{"$f":"'[1]2'!N57","v":0},{"$f":"'[1]2'!Q57","v":0},{"$f":"'[1]2'!Q57","v":0},0,{"$f":"'[1]2'!T57","v":0},{"$f":"'[1]2'!T57","v":0},0,{"$f":"'[1]2'!V57","v":0},{"$f":"'[1]2'!V57","v":0},0]
[1,"EX1164",null,null,null,"Laboratory services",null,null,{"$f":"'[1]2'!J58","v":0},{"$f":"'[1]2'!L58","v":0},{"$f":"'[1]2'!N58","v":0},{"$f":"'[1]2'!N58","v":0},{"$f":"'[1]2'!Q58","v":0},{"$f":"'[1]2'!Q58","v":0},0,{"$f":"'[1]2'!T58","v":0},{"$f":"'[1]2'!T58","v":0},0,{"$f":"'[1]2'!V58","v":0},{"$f":"'[1]2'!V58","v":0},0]
[1,"EX1162",null,null,null,"Legal services (G&S)",null,null,{"$f":"'[1]2'!J59","v":228548.90771999999},{"$f":"'[1]2'!L59","v":258937.56455000001},{"$f":"'[1]2'!N59","v":234380.30285000001},{"$f":"'[1]2'!N59","v":234380.30285000001},{"$f":"'[1]2'!Q59","v":245185.23481138502},{"$f":"'[1]2'!Q59","v":245185.23481138502},0,{"$f":"'[1]2'!T59","v":256341.16299530302},{"$f":"'[1]2'!T59","v":256341.16299530302},0,{"$f":"'[1]2'!V59","v":267927.78356269072},{"$f":"'[1]2'!V59","v":267927.78356269072},0]
[1,"EX1165",null,null,null,"Science and technological services",null,null,{"$f":"'[1]2'!J60","v":0},{"$f":"'[1]2'!L60","v":0},{"$f":"'[1]2'!N60","v":0},{"$f":"'[1]2'!N60","v":0},{"$f":"'[1]2'!Q60","v":0},{"$f":"'[1]2'!Q60","v":0},0,{"$f":"'[1]2'!T60","v":0},{"$f":"'[1]2'!T60","v":0},0,{"$f":"'[1]2'!V60","v":0},{"$f":"'[1]2'!V60","v":0},0]
[1,"EX1125",null,null,null,"Contractors",null,null,{"$f":"SUM(I62:I66,I72)","v":74599.611560000005},84934.29393,91541.228929999997,91541.228929999997,97849.650222565993,97849.650222565993,{"$f":"SUM(N61-M61)","v":0},{"$f":"SUM(P62:P66,P72)","v":104624.58889584924},{"$f":"SUM(Q62:Q66,Q72)","v":104624.58889584924},{"$f":"SUM(Q61-P61)","v":0},{"$f":"SUM(S62:S66,S72)","v":111922.7423978696},{"$f":"SUM(T62:T66,T72)","v":111922.7423978696},0,{"$f":"SUM(V62:V66,V72)","v":0}]
[1,"EX11251",null,null,null,"Maintenance and repairs of other fixed structures",null,null,{"$f":"'[1]2'!J62","v":74599.611560000005},{"$f":"'[1]2'!L62","v":84934.29393},{"$f":"'[1]2'!N62","v":91541.228929999997},{"$f":"'[1]2'!N62","v":91541.228929999997},{"$f":"'[1]2'!Q62","v":97849.650222565993},{"$f":"'[1]2'!Q62","v":97849.650222565993},0,{"$f":"'[1]2'!T62","v":104624.58889584924},{"$f":"'[1]2'!T62","v":104624.58889584924},0,{"$f":"'[1]2'!V62","v":111922.7423978696},{"$f":"'[1]2'!V62","v":111922.7423978696},0]
[1,"EX11252",null,null,null,"Maintenance and repairs of other machinery and equipment",null,null,{"$f":"'[1]2'!J63","v":0},{"$f":"'[1]2'!L63","v":0},{"$f":"'[1]2'!N63","v":0},{"$f":"'[1]2'!N63","v":0},{"$f":"'[1]2'!Q63","v":0},{"$f":"'[1]2'!Q63","v":0},0,{"$f":"'[1]2'!T63","v":0},{"$f":"'[1]2'!T63","v":0},0,{"$f":"'[1]2'!V63","v":0},{"$f":"'[1]2'!V63","v":0},0]
[1,"EX11253",null,null,null,"Maintenance and repairs of heritage buildings",null,null,{"$f":"'[1]2'!J64","v":0},{"$f":"'[1]2'!L64","v":0},{"$f":"'[1]2'!N64","v":0},{"$f":"'[1]2'!N64","v":0},{"$f":"'[1]2'!Q64","v":0},{"$f":"'[1]2'!Q64","v":0},0,{"$f":"'[1]2'!T64","v":0},{"$f":"'[1]2'!T64","v":0},0,{"$f":"'[1]2'!V64","v":0},{"$f":"'[1]2'!V64","v":0},0]
[1,"EX11254",null,null,null,"Maintenance and repairs of other heritage fixed structures",null,null,{"$f":"'[1]2'!J65","v":0},{"$f":"'[1]2'!L65","v":0},{"$f":"'[1]2'!N65","v":0},{"$f":"'[1]2'!N65","v":0},{"$f":"'[1]2'!Q65","v":0},{"$f":"'[1]2'!Q65","v":0},0,{"$f":"'[1]2'!T65","v":0},{"$f":"'[1]2'!T65","v":0},0,{"$f":"'[1]2'!V65","v":0},{"$f":"'[1]2'!V65","v":0},0]
[5,"EX11255",null,null,null,"South african social security agency payment contractors",null,null,{"$f":"SUM(I67:I71)","v":0},0,0,0,0,0,0,{"$f":"SUM(P67:P71)","v":0},{"$f":"SUM(Q67:Q71)","v":0},0,{"$f":"SUM(S67:S71)","v":0},{"$f":"SUM(T67:T71)","v":0},0,{"$f":"SUM(V67:V71)","v":0}]
[5,"EX112551",null,null,null,"SASSA Admin fees",null,null,{"$f":"'[1]2'!J67","v":0},{"$f":"'[1]2'!L67","v":0},{"$f":"'[1]2'!N67","v":0},{"$f":"'[1]2'!N67","v":0},{"$f":"'[1]2'!Q67","v":0},{"$f":"'[1]2'!Q67","v":0},{"$f":"SUM(N67-M67)","v":0},{"$f":"'[1]2'!T67","v":0},{"$f":"'[1]2'!T67","v":0},{"$f":"SUM(Q67-P67)","v":0},{"$f":"'[1]2'!V67","v":0},{"$f":"'[1]2'!V67","v":0},{"$f":"SUM(T67-S67)","v":0}]
[5,"EX112552",null,null,null,"SASSA Bankcard fees",null,null,{"$f":"'[1]2'!J68","v":0},{"$f":"'[1]2'!L68","v":0},{"$f":"'[1]2'!N68","v":0},{"$f":"'[1]2'!N68","v":0},{"$f":"'[1]2'!Q68","v":0},{"$f":"'[1]2'!Q68","v":0},0,{"$f":"'[1]2'!T68","v":0},{"$f":"'[1]2'!T68","v":0},0,{"$f":"'[1]2'!V68","v":0},{"$f":"'[1]2'!V68","v":0},0]
[5,"EX112553",null,null,null,"SASSA registration fees",null,null,{"$f":"'[1]2'!J69","v":0},{"$f":"'[1]2'!L69","v":0},{"$f":"'[1]2'!N69","v":0},{"$f":"'[1]2'!N69","v":0},{"$f":"'[1]2'!Q69","v":0},{"$f":"'[1]2'!Q69","v":0},0,{"$f":"'[1]2'!T69","v":0},{"$f":"'[1]2'!T69","v":0},0,{"$f":"'[1]2'!V69","v":0},{"$f":"'[1]2'!V69","v":0},0]
[5,"EX112554",null,null,null,"SASSA beneficiary fees",null,null,{"$f":"'[1]2'!J70","v":0},{"$f":"'[1]2'!L70","v":0},{"$f":"'[1]2'!N70","v":0},{"$f":"'[1]2'!N70","v":0},{"$f":"'[1]2'!Q70","v":0},{"$f":"'[1]2'!Q70","v":0},0,{"$f":"'[1]2'!T70","v":0},{"$f":"'[1]2'!T70","v":0},0,{"$f":"'[1]2'!V70","v":0},{"$f":"'[1]2'!V70","v":0},0]
[5,"EX112555",null,null,null,"SASSA help desk fees",null,null,{"$f":"'[1]2'!J71","v":0},{"$f":"'[1]2'!L71","v":0},{"$f":"'[1]2'!N71","v":0},{"$f":"'[1]2'!N71","v":0},{"$f":"'[1]2'!Q71","v":0},{"$f":"'[1]2'!Q71","v":0},0,{"$f":"'[1]2'!T71","v":0},{"$f":"'[1]2'!T71","v":0},0,{"$f":"'[1]2'!V71","v":0},{"$f":"'[1]2'!V71","v":0},0]
[1,"EX11256",null,null,null,"Other",null,null,{"$f":"'[1]2'!J72","v":0},{"$f":"'[1]2'!L72","v":0},{"$f":"'[1]2'!N72","v":0},{"$f":"'[1]2'!N72","v":0},{"$f":"'[1]2'!Q72","v":0},{"$f":"'[1]2'!Q72","v":0},0,{"$f":"'[1]2'!T72","v":0},{"$f":"'[1]2'!T72","v":0},0,{"$f":"'[1]2'!V72","v":0},{"$f":"'[1]2'!V72","v":0},0]
[1,"EX1121",null,null,null,"Agency and support/outsourced services",null,null,{"$f":"'[1]2'!J73","v":203135.74081000005},{"$f":"'[1]2'!L73","v":251152.18424},{"$f":"'[1]2'!N73","v":240447.59612999996},{"$f":"'[1]2'!N73","v":240447.59612999996},{"$f":"'[1]2'!Q73","v":261028.96448296198},{"$f":"'[1]2'!Q73","v":261028.96448296198},0,{"$f":"'[1]2'!T73","v":288114.6182648433},{"$f":"'[1]2'!T73","v":288114.6182648433},0,{"$f":"'[1]2'!V73","v":323332.39599333127},{"$f":"'[1]2'!V73","v":323332.39599333127},0]
[5,"EX11211",null,null,null,"     Of Which: Medical assessments",null,null,{"$f":"'[1]2'!J74","v":0},{"$f":"'[1]2'!L74","v":0},{"$f":"'[1]2'!N74","v":0},{"$f":"'[1]2'!N74","v":0},{"$f":"'[1]2'!Q74","v":0},{"$f":"'[1]2'!Q74","v":0},0,{"$f":"'[1]2'!T74","v":0},{"$f":"'[1]2'!T74","v":0},0,{"$f":"'[1]2'!V74","v":0},{"$f":"'[1]2'!V74","v":0},0]
[1,"EX1161",null,null,null,"Entertainment",null,null,{"$f":"'[1]2'!J75","v":0},{"$f":"'[1]2'!L75","v":0},{"$f":"'[1]2'!N75","v":26},{"$f":"'[1]2'!N75","v":26},{"$f":"'[1]2'!Q75","v":27.198599999999999},{"$f":"'[1]2'!Q75","v":27.198599999999999},0,{"$f":"'[1]2'!T75","v":28.436136299999998},{"$f":"'[1]2'!T75","v":28.436136299999998},0,{"$f":"'[1]2'!V75","v":29.721449660759998},{"$f":"'[1]2'!V75","v":29.721449660759998},0]
[1,"EX1166",null,null,null,"Fleet services (including government motor transport)",null,null,{"$f":"'[1]2'!J76","v":0},{"$f":"'[1]2'!L76","v":0},{"$f":"'[1]2'!N76","v":0},{"$f":"'[1]2'!N76","v":0},{"$f":"'[1]2'!Q76","v":0},{"$f":"'[1]2'!Q76","v":0},0,{"$f":"'[1]2'!T76","v":0},{"$f":"'[1]2'!T76","v":0},0,{"$f":"'[1]2'!V76","v":0},{"$f":"'[1]2'!V76","v":0},0]
[1,"EX1167",null,null,null,"Housing",null,null,{"$f":"'[1]2'!J77","v":0},{"$f":"'[1]2'!L77","v":0},{"$f":"'[1]2'!N77","v":0},{"$f":"'[1]2'!N77","v":0},{"$f":"'[1]2'!Q77","v":0},{"$f":"'[1]2'!Q77","v":0},0,{"$f":"'[1]2'!T77","v":0},{"$f":"'[1]2'!T77","v":0},0,{"$f":"'[1]2'!V77","v":0},{"$f":"'[1]2'!V77","v":0},0]
[1,"EX1168",null,null,null,"Inventory: Clothing material and accessories",null,null,{"$f":"'[1]2'!J78","v":0},{"$f":"'[1]2'!L78","v":0},{"$f":"'[1]2'!N78","v":0},{"$f":"'[1]2'!N78","v":0},{"$f":"'[1]2'!Q78","v":0},{"$f":"'[1]2'!Q78","v":0},0,{"$f":"'[1]2'!T78","v":0},{"$f":"'[1]2'!T78","v":0},0,{"$f":"'[1]2'!V78","v":0},{"$f":"'[1]2'!V78","v":0},0]
[1,"EX1169",null,null,null,"Inventory: Farming supplies",null,null,{"$f":"'[1]2'!J79","v":0},{"$f":"'[1]2'!L79","v":0},{"$f":"'[1]2'!N79","v":0},{"$f":"'[1]2'!N79","v":0},{"$f":"'[1]2'!Q79","v":0},{"$f":"'[1]2'!Q79","v":0},0,{"$f":"'[1]2'!T79","v":0},{"$f":"'[1]2'!T79","v":0},0,{"$f":"'[1]2'!V79","v":0},{"$f":"'[1]2'!V79","v":0},0]
[1,"EX1170",null,null,null,"Inventory: Food and food supplies",null,null,{"$f":"'[1]2'!J80","v":0},{"$f":"'[1]2'!L80","v":0},{"$f":"'[1]2'!N80","v":0},{"$f":"'[1]2'!N80","v":0},{"$f":"'[1]2'!Q80","v":0},{"$f":"'[1]2'!Q80","v":0},0,{"$f":"'[1]2'!T80","v":0},{"$f":"'[1]2'!T80","v":0},0,{"$f":"'[1]2'!V80","v":0},{"$f":"'[1]2'!V80","v":0},0]
[1,"EX1171",null,null,null,"Inventory: Fuel, oil and gas",null,null,{"$f":"'[1]2'!J81","v":0},{"$f":"'[1]2'!L81","v":0},{"$f":"'[1]2'!N81","v":0},{"$f":"'[1]2'!N81","v":0},{"$f":"'[1]2'!Q81","v":0},{"$f":"'[1]2'!Q81","v":0},0,{"$f":"'[1]2'!T81","v":0},{"$f":"'[1]2'!T81","v":0},0,{"$f":"'[1]2'!V81","v":0},{"$f":"'[1]2'!V81","v":0},0]
[1,"EX1172",null,null,null,"Inventory: Learner and teacher support material",null,null,{"$f":"'[1]2'!J82","v":0},{"$f":"'[1]2'!L82","v":0},{"$f":"'[1]2'!N82","v":0},{"$f":"'[1]2'!N82","v":0},{"$f":"'[1]2'!Q82","v":0},{"$f":"'[1]2'!Q82","v":0},0,{"$f":"'[1]2'!T82","v":0},{"$f":"'[1]2'!T82","v":0},0,{"$f":"'[1]2'!V82","v":0},{"$f":"'[1]2'!V82","v":0},0]
[1,"EX1126",null,null,null,"Inventory: Materials and supplies",null,null,{"$f":"'[1]2'!J83","v":0},{"$f":"'[1]2'!L83","v":0},{"$f":"'[1]2'!N83","v":0},{"$f":"'[1]2'!N83","v":0},{"$f":"'[1]2'!Q83","v":0},{"$f":"'[1]2'!Q83","v":0},0,{"$f":"'[1]2'!T83","v":0},{"$f":"'[1]2'!T83","v":0},0,{"$f":"'[1]2'!V83","v":0},{"$f":"'[1]2'!V83","v":0},0]
[1,"EX1173",null,null,null,"Inventory: Medical supplies",null,null,{"$f":"'[1]2'!J84","v":0},{"$f":"'[1]2'!L84","v":0},{"$f":"'[1]2'!N84","v":0},{"$f":"'[1]2'!N84","v":0},{"$f":"'[1]2'!Q84","v":0},{"$f":"'[1]2'!Q84","v":0},0,{"$f":"'[1]2'!T84","v":0},{"$f":"'[1]2'!T84","v":0},0,{"$f":"'[1]2'!V84","v":0},{"$f":"'[1]2'!V84","v":0},0]
[1,"EX1174",null,null,null,"Inventory: Medicine",null,null,{"$f":"'[1]2'!J85","v":0},{"$f":"'[1]2'!L85","v":0},{"$f":"'[1]2'!N85","v":0},{"$f":"'[1]2'!N85","v":0},{"$f":"'[1]2'!Q85","v":0},{"$f":"'[1]2'!Q85","v":0},0,{"$f":"'[1]2'!T85","v":0},{"$f":"'[1]2'!T85","v":0},0,{"$f":"'[1]2'!V85","v":0},{"$f":"'[1]2'!V85","v":0},0]
[1,"EX1175",null,null,null,"Medsas inventory interface",null,null,{"$f":"'[1]2'!J86","v":0},{"$f":"'[1]2'!L86","v":0},{"$f":"'[1]2'!N86","v":0},{"$f":"'[1]2'!N86","v":0},{"$f":"'[1]2'!Q86","v":0},{"$f":"'[1]2'!Q86","v":0},0,{"$f":"'[1]2'!T86","v":0},{"$f":"'[1]2'!T86","v":0},0,{"$f":"'[1]2'!V86","v":0},{"$f":"'[1]2'!V86","v":0},0]
[1,"EX1176",null,null,null,"Inventory: Other supplies",null,null,{"$f":"'[1]2'!J87","v":2005.6441600000001},{"$f":"'[1]2'!L87","v":1006.4579600000001},{"$f":"'[1]2'!N87","v":3925.7554700000001},{"$f":"'[1]2'!N87","v":3925.7554700000001},{"$f":"'[1]2'!Q87","v":4106.7327971670002},{"$f":"'[1]2'!Q87","v":4106.7327971670002},0,{"$f":"'[1]2'!T87","v":4293.5891394380988},{"$f":"'[1]2'!T87","v":4293.5891394380988},0,{"$f":"'[1]2'!V87","v":4487.6593685407006},{"$f":"'[1]2'!V87","v":4487.6593685407006},0]
[1,"EX1177",null,null,null,"Consumable supplies",null,null,{"$f":"'[1]2'!J88","v":7475.4080599999998},{"$f":"'[1]2'!L88","v":8965.8242399999999},{"$f":"'[1]2'!N88","v":13748.288520000002},{"$f":"'[1]2'!N88","v":13748.288520000002},{"$f":"'[1]2'!Q88","v":14382.084620771999},{"$f":"'[1]2'!Q88","v":14382.084620771999},0,{"$f":"'[1]2'!T88","v":15036.469471017124},{"$f":"'[1]2'!T88","v":15036.469471017124},0,{"$f":"'[1]2'!V88","v":15716.1178911071},{"$f":"'[1]2'!V88","v":15716.1178911071},0]
[1,"EX1144",null,null,null,"Consumables: Stationery, printing and office supplies",null,null,{"$f":"'[1]2'!J89","v":4737.4719700000005},{"$f":"'[1]2'!L89","v":2751.9911300000003},{"$f":"'[1]2'!N89","v":6396.8172799999993},{"$f":"'[1]2'!N89","v":6396.8172799999993},{"$f":"'[1]2'!Q89","v":6850.6765195330008},{"$f":"'[1]2'!Q89","v":6850.6765195330008},0,{"$f":"'[1]2'!T89","v":7339.1913823842515},{"$f":"'[1]2'!T89","v":7339.1913823842515},0,{"$f":"'[1]2'!V89","v":7866.4834092990186},{"$f":"'[1]2'!V89","v":7866.4834092990186},0]
[1,"EX1127",null,null,null,"Operating leases",null,null,{"$f":"'[1]2'!J90","v":207.64824999999999},{"$f":"'[1]2'!L90","v":8081.0935200000004},{"$f":"'[1]2'!N90","v":12058.17001},{"$f":"'[1]2'!N90","v":12058.17001},{"$f":"'[1]2'!Q90","v":12636.962170479999},{"$f":"'[1]2'!Q90","v":12636.962170479999},0,{"$f":"'[1]2'!T90","v":13243.53635466304},{"$f":"'[1]2'!T90","v":13243.53635466304},0,{"$f":"'[1]2'!V90","v":13879.226099686866},{"$f":"'[1]2'!V90","v":13879.226099686866},0]
[1,"EX1178",null,null,null,"Rental and hiring",null,null,{"$f":"'[1]2'!J91","v":0},{"$f":"'[1]2'!L91","v":0},{"$f":"'[1]2'!N91","v":0},{"$f":"'[1]2'!N91","v":0},{"$f":"'[1]2'!Q91","v":0},{"$f":"'[1]2'!Q91","v":0},0,{"$f":"'[1]2'!T91","v":0},{"$f":"'[1]2'!T91","v":0},0,{"$f":"'[1]2'!V91","v":0},{"$f":"'[1]2'!V91","v":0},0]
[1,"EX1145",null,null,null,"Property payments",null,null,{"$f":"'[1]2'!J92","v":23929.86822},{"$f":"'[1]2'!L92","v":28956.73675},{"$f":"'[1]2'!N92","v":22501.972089999996},{"$f":"'[1]2'!N92","v":22501.972089999996},{"$f":"'[1]2'!Q92","v":23550.056394581999},{"$f":"'[1]2'!Q92","v":23550.056394581999},0,{"$f":"'[1]2'!T92","v":24636.665786301633},{"$f":"'[1]2'!T92","v":24636.665786301633},0,{"$f":"'[1]2'!V92","v":25770.783206469241},{"$f":"'[1]2'!V92","v":25770.783206469241},0]
[1,"EX1179",null,null,null,"Transport provided: Internal activities",null,null,{"$f":"'[1]2'!J93","v":37710.731120000004},{"$f":"'[1]2'!L93","v":40845.607230000001},{"$f":"'[1]2'!N93","v":42714.119520000007},{"$f":"'[1]2'!N93","v":42714.119520000007},{"$f":"'[1]2'!Q93","v":44683.240429872007},{"$f":"'[1]2'!Q93","v":44683.240429872007},0,{"$f":"'[1]2'!T93","v":46716.327869431174},{"$f":"'[1]2'!T93","v":46716.327869431174},0,{"$f":"'[1]2'!V93","v":48827.90588912947},{"$f":"'[1]2'!V93","v":48827.90588912947},0]
[1,"EX1131",null,null,null,"Travel and subsistence",null,null,{"$f":"'[1]2'!J94","v":43477.344730000004},{"$f":"'[1]2'!L94","v":52167.927300000003},{"$f":"'[1]2'!N94","v":52152.33466},{"$f":"'[1]2'!N94","v":52152.33466},{"$f":"'[1]2'!Q94","v":54556.557287825999},{"$f":"'[1]2'!Q94","v":54556.557287825999},0,{"$f":"'[1]2'!T94","v":57038.880644422083},{"$f":"'[1]2'!T94","v":57038.880644422083},0,{"$f":"'[1]2'!V94","v":59617.038049549963},{"$f":"'[1]2'!V94","v":59617.038049549963},0]
[1,"EX1130",null,null,null,"Training and development",null,null,{"$f":"'[1]2'!J95","v":2305.7128699999998},{"$f":"'[1]2'!L95","v":2379.1260600000001},{"$f":"'[1]2'!N95","v":4916.0133100000003},{"$f":"'[1]2'!N95","v":4916.0133100000003},{"$f":"'[1]2'!Q95","v":5142.6415235909999},{"$f":"'[1]2'!Q95","v":5142.6415235909999},0,{"$f":"'[1]2'!T95","v":5376.6317129143899},{"$f":"'[1]2'!T95","v":5376.6317129143899},0,{"$f":"'[1]2'!V95","v":5619.6554663381203},{"$f":"'[1]2'!V95","v":5619.6554663381203},0]
[1,"EX1132",null,null,null,"Operating payments",null,null,{"$f":"'[1]2'!J96","v":96461.381569999998},{"$f":"'[1]2'!L96","v":115224.04639},{"$f":"'[1]2'!N96","v":101349.80798000001},{"$f":"'[1]2'!N96","v":101349.80798000001},{"$f":"'[1]2'!Q96","v":123771.784011162},{"$f":"'[1]2'!Q96","v":123771.784011162},0,{"$f":"'[1]2'!T96","v":125625.84491584878},{"$f":"'[1]2'!T96","v":125625.84491584878},0,{"$f":"'[1]2'!V96","v":127551.82142206655},{"$f":"'[1]2'!V96","v":127551.82142206655},0]
[1,"EX1146",null,null,null,"Venues and facilities",null,null,{"$f":"'[1]2'!J97","v":483.94603999999998},{"$f":"'[1]2'!L97","v":589.35932000000003},{"$f":"'[1]2'!N97","v":425.11075},{"$f":"'[1]2'!N97","v":425.11075},{"$f":"'[1]2'!Q97","v":445.51606600000002},{"$f":"'[1]2'!Q97","v":445.51606600000002},0,{"$f":"'[1]2'!T97","v":466.90083716800001},{"$f":"'[1]2'!T97","v":466.90083716800001},0,{"$f":"'[1]2'!V97","v":489.31207735206402},{"$f":"'[1]2'!V97","v":489.31207735206402},0]
[1,"EX113",null,null,null,"Depreciation",null,null,{"$f":"'[1]2'!J98","v":0},{"$f":"'[1]2'!L98","v":0},{"$f":"'[1]2'!N98","v":0},{"$f":"'[1]2'!N98","v":0},{"$f":"'[1]2'!Q98","v":0},{"$f":"'[1]2'!Q98","v":0},0,{"$f":"'[1]2'!T98","v":0},{"$f":"'[1]2'!T98","v":0},0,{"$f":"'[1]2'!V98","v":0},{"$f":"'[1]2'!V98","v":0},0]
[1,"EX114",null,null,null,"Losses from",null,null,{"$f":"SUM(I100:I101,I104)","v":0},0,0,0,0,0,{"$f":"SUM(N99-M99)","v":0},{"$f":"SUM(P100:P101,P104)","v":0},{"$f":"SUM(Q100:Q101,Q104)","v":0},{"$f":"SUM(Q99-P99)","v":0},{"$f":"SUM(S100:S101,S104)","v":0},{"$f":"SUM(T100:T101,T104)","v":0},{"$f":"SUM(T99-S99)","v":0},{"$f":"SUM(V100:V101,V104)","v":0}]
[1,"EX1141",null,null,null,"Sale of fixed assets",null,null,{"$f":"'[1]2'!J100","v":0},{"$f":"'[1]2'!L100","v":0},{"$f":"'[1]2'!N100","v":0},{"$f":"'[1]2'!N100","v":0},{"$f":"'[1]2'!Q100","v":0},{"$f":"'[1]2'!Q100","v":0},0,{"$f":"'[1]2'!T100","v":0},{"$f":"'[1]2'!T100","v":0},0,{"$f":"'[1]2'!V100","v":0},{"$f":"'[1]2'!V100","v":0},0]
[1,"EX1142",null,null,null,"Impairments and adjustments to fair value",null,null,{"$f":"SUM(I102:I103)","v":0},0,0,0,0,0,0,{"$f":"SUM(P102:P103)","v":0},{"$f":"SUM(Q102:Q103)","v":0},0,{"$f":"SUM(S102:S103)","v":0},{"$f":"SUM(T102:T103)","v":0},0,{"$f":"SUM(V102:V103)","v":0}]
[1,"EX11421",null,null,null,"Adjustments to fair value of assets",null,null,{"$f":"'[1]2'!J102","v":0},{"$f":"'[1]2'!L102","v":0},{"$f":"'[1]2'!N102","v":0},{"$f":"'[1]2'!N102","v":0},{"$f":"'[1]2'!Q102","v":0},{"$f":"'[1]2'!Q102","v":0},0,{"$f":"'[1]2'!T102","v":0},{"$f":"'[1]2'!T102","v":0},0,{"$f":"'[1]2'!V102","v":0},{"$f":"'[1]2'!V102","v":0},0]
[1,"EX11422",null,null,null,"Impairments to assets",null,null,{"$f":"'[1]2'!J103","v":0},{"$f":"'[1]2'!L103","v":0},{"$f":"'[1]2'!N103","v":0},{"$f":"'[1]2'!N103","v":0},{"$f":"'[1]2'!Q103","v":0},{"$f":"'[1]2'!Q103","v":0},0,{"$f":"'[1]2'!T103","v":0},{"$f":"'[1]2'!T103","v":0},0,{"$f":"'[1]2'!V103","v":0},{"$f":"'[1]2'!V103","v":0},0]
[1,"EX1143",null,null,null,"Other",null,null,{"$f":"'[1]2'!J104","v":0},{"$f":"'[1]2'!L104","v":0},{"$f":"'[1]2'!N104","v":0},{"$f":"'[1]2'!N104","v":0},{"$f":"'[1]2'!Q104","v":0},{"$f":"'[1]2'!Q104","v":0},0,{"$f":"'[1]2'!T104","v":0},{"$f":"'[1]2'!T104","v":0},0,{"$f":"'[1]2'!V104","v":0},{"$f":"'[1]2'!V104","v":0},0]
[1,"EX115",null,null,null,"Interest, dividends and rent on land",null,null,{"$f":"SUM(I106:I108)","v":188.02860999999999},202.17381,198.81343000000001,198.81343000000001,207.97872912300002,207.97872912300002,0,{"$f":"SUM(P106:P108)","v":217.44176129809654},{"$f":"SUM(Q106:Q108)","v":217.44176129809654},0,{"$f":"SUM(S106:S108)","v":227.27012890877049},{"$f":"SUM(T106:T108)","v":227.27012890877049},0,{"$f":"SUM(V106:V108)","v":0}]
[1,"EX1151",null,null,null,"Interest",null,null,{"$f":"'[1]2'!J106","v":188.02860999999999},{"$f":"'[1]2'!L106","v":202.17381},{"$f":"'[1]2'!N106","v":198.81343000000001},{"$f":"'[1]2'!N106","v":198.81343000000001},{"$f":"'[1]2'!Q106","v":207.97872912300002},{"$f":"'[1]2'!Q106","v":207.97872912300002},0,{"$f":"'[1]2'!T106","v":217.44176129809654},{"$f":"'[1]2'!T106","v":217.44176129809654},0,{"$f":"'[1]2'!V106","v":227.27012890877049},{"$f":"'[1]2'!V106","v":227.27012890877049},0]
[1,"EX1152",null,null,null,"Dividends",null,null,{"$f":"'[1]2'!J107","v":0},{"$f":"'[1]2'!L107","v":0},{"$f":"'[1]2'!N107","v":0},{"$f":"'[1]2'!N107","v":0},{"$f":"'[1]2'!Q107","v":0},{"$f":"'[1]2'!Q107","v":0},0,{"$f":"'[1]2'!T107","v":0},{"$f":"'[1]2'!T107","v":0},0,{"$f":"'[1]2'!V107","v":0},{"$f":"'[1]2'!V107","v":0},0]
[1,"EX1153",null,null,null,"Rent on land",null,null,{"$f":"'[1]2'!J108","v":0},{"$f":"'[1]2'!L108","v":0},{"$f":"'[1]2'!N108","v":0},{"$f":"'[1]2'!N108","v":0},{"$f":"'[1]2'!Q108","v":0},{"$f":"'[1]2'!Q108","v":0},0,{"$f":"'[1]2'!T108","v":0},{"$f":"'[1]2'!T108","v":0},0,{"$f":"'[1]2'!V108","v":0},{"$f":"'[1]2'!V108","v":0},0]
[1,"EX12",null,null,null,"Transfers and subsidies",null,null,{"$f":"SUM(I110,I121,I132:I135)","v":0},0,0,0,0,0,0,{"$f":"SUM(P110,P121,P132:P135)","v":0},{"$f":"SUM(Q110,Q121,Q132:Q135)","v":0},0,{"$f":"SUM(S110,S121,S132:S135)","v":0},{"$f":"SUM(T110,T121,T132:T135)","v":0},0,{"$f":"SUM(V110,V121,V132:V135)","v":0}]
[2,"EX121",null,null,null,"Employer Grant (SETAs only)",null,null,{"$f":"SUM(I111,I117,I120)","v":0},0,0,0,0,0,0,{"$f":"SUM(P111,P117,P120)","v":0},{"$f":"SUM(Q111,Q117,Q120)","v":0},0,{"$f":"SUM(S111,S117,S120)","v":0},{"$f":"SUM(T111,T117,T120)","v":0},0,{"$f":"SUM(V111,V117,V120)","v":0}]
[1,"EX122",null,null,null,"Other government units",null,null,{"$f":"SUM(I112:I116)","v":0},0,0,0,0,0,0,{"$f":"SUM(P112:P116)","v":0},{"$f":"SUM(Q112:Q116)","v":0},0,{"$f":"SUM(S112:S116)","v":0},{"$f":"SUM(T112:T116)","v":0},0,{"$f":"SUM(V112:V116)","v":0}]
[1,"EX1221",null,null,null,"National government",null,null,{"$f":"'[1]2'!J112","v":0},{"$f":"'[1]2'!L112","v":0},{"$f":"'[1]2'!N112","v":0},{"$f":"'[1]2'!N112","v":0},{"$f":"'[1]2'!Q112","v":0},{"$f":"'[1]2'!Q112","v":0},0,{"$f":"'[1]2'!T112","v":0},{"$f":"'[1]2'!T112","v":0},0,{"$f":"'[1]2'!V112","v":0},{"$f":"'[1]2'!V112","v":0},0]
[1,"EX1222",null,null,null,"Departmental agencies and accounts",null,null,{"$f":"'[1]2'!J113","v":0},{"$f":"'[1]2'!L113","v":0},{"$f":"'[1]2'!N113","v":0},{"$f":"'[1]2'!N113","v":0},{"$f":"'[1]2'!Q113","v":0},{"$f":"'[1]2'!Q113","v":0},0,{"$f":"'[1]2'!T113","v":0},{"$f":"'[1]2'!T113","v":0},0,{"$f":"'[1]2'!V113","v":0},{"$f":"'[1]2'!V113","v":0},0]
[1,"EX1223",null,null,null,"Provinces",null,null,{"$f":"'[1]2'!J114","v":0},{"$f":"'[1]2'!L114","v":0},{"$f":"'[1]2'!N114","v":0},{"$f":"'[1]2'!N114","v":0},{"$f":"'[1]2'!Q114","v":0},{"$f":"'[1]2'!Q114","v":0},0,{"$f":"'[1]2'!T114","v":0},{"$f":"'[1]2'!T114","v":0},0,{"$f":"'[1]2'!V114","v":0},{"$f":"'[1]2'!V114","v":0},0]
[1,"EX1224",null,null,null,"Municipalities",null,null,{"$f":"'[1]2'!J115","v":0},{"$f":"'[1]2'!L115","v":0},{"$f":"'[1]2'!N115","v":0},{"$f":"'[1]2'!N115","v":0},{"$f":"'[1]2'!Q115","v":0},{"$f":"'[1]2'!Q115","v":0},0,{"$f":"'[1]2'!T115","v":0},{"$f":"'[1]2'!T115","v":0},0,{"$f":"'[1]2'!V115","v":0},{"$f":"'[1]2'!V115","v":0},0]
[2,"EX1225",null,null,null,"National Skills Fund",null,null,{"$f":"'[1]2'!J116","v":0},{"$f":"'[1]2'!L116","v":0},{"$f":"'[1]2'!N116","v":0},{"$f":"'[1]2'!N116","v":0},{"$f":"'[1]2'!Q116","v":0},{"$f":"'[1]2'!Q116","v":0},0,{"$f":"'[1]2'!T116","v":0},{"$f":"'[1]2'!T116","v":0},0,{"$f":"'[1]2'!V116","v":0},{"$f":"'[1]2'!V116","v":0},0]
[1,"EX123",null,null,null,"Public corporations and private enterprises (subsidies and other transfers)",null,null,{"$f":"SUM(I118:I119)","v":0},0,0,0,0,0,0,{"$f":"SUM(P118:P119)","v":0},{"$f":"SUM(Q118:Q119)","v":0},0,{"$f":"SUM(S118:S119)","v":0},{"$f":"SUM(T118:T119)","v":0},0,{"$f":"SUM(V118:V119)","v":0}]
[1,"EX1231",null,null,null,"Public corporations",null,null,{"$f":"'[1]2'!J118","v":0},{"$f":"'[1]2'!L118","v":0},{"$f":"'[1]2'!N118","v":0},{"$f":"'[1]2'!N118","v":0},{"$f":"'[1]2'!Q118","v":0},{"$f":"'[1]2'!Q118","v":0},0,{"$f":"'[1]2'!T118","v":0},{"$f":"'[1]2'!T118","v":0},0,{"$f":"'[1]2'!V118","v":0},{"$f":"'[1]2'!V118","v":0},0]
[1,"EX1232",null,null,null,"Private enterprises",null,null,{"$f":"'[1]2'!J119","v":0},{"$f":"'[1]2'!L119","v":0},{"$f":"'[1]2'!N119","v":0},{"$f":"'[1]2'!N119","v":0},{"$f":"'[1]2'!Q119","v":0},{"$f":"'[1]2'!Q119","v":0},0,{"$f":"'[1]2'!T119","v":0},{"$f":"'[1]2'!T119","v":0},0,{"$f":"'[1]2'!V119","v":0},{"$f":"'[1]2'!V119","v":0},0]
[2,"EX124",null,null,null,"Households and non government units",null,null,{"$f":"'[1]2'!J120","v":0},{"$f":"'[1]2'!L120","v":0},{"$f":"'[1]2'!N120","v":0},{"$f":"'[1]2'!N120","v":0},{"$f":"'[1]2'!Q120","v":0},{"$f":"'[1]2'!Q120","v":0},0,{"$f":"'[1]2'!T120","v":0},{"$f":"'[1]2'!T120","v":0},0,{"$f":"'[1]2'!V120","v":0},{"$f":"'[1]2'!V120","v":0},0]
[2,"EX125",null,null,null,"Discretionary Grant (SETAs only)",null,null,{"$f":"SUM(I122,I128,I131)","v":0},0,0,0,0,0,0,{"$f":"SUM(P122,P128,P131)","v":0},{"$f":"SUM(Q122,Q128,Q131)","v":0},0,{"$f":"SUM(S122,S128,S131)","v":0},{"$f":"SUM(T122,T128,T131)","v":0},0,{"$f":"SUM(V122,V128,V131)","v":0}]
[2,"EX126",null,null,null,"Other government units",null,null,{"$f":"SUM(I123:I127)","v":0},0,0,0,0,0,0,{"$f":"SUM(P123:P127)","v":0},{"$f":"SUM(Q123:Q127)","v":0},0,{"$f":"SUM(S123:S127)","v":0},{"$f":"SUM(T123:T127)","v":0},0,{"$f":"SUM(V123:V127)","v":0}]
[2,"EX1261",null,null,null,"National government",null,null,{"$f":"'[1]2'!J123","v":0},{"$f":"'[1]2'!L123","v":0},{"$f":"'[1]2'!N123","v":0},{"$f":"'[1]2'!N123","v":0},{"$f":"'[1]2'!Q123","v":0},{"$f":"'[1]2'!Q123","v":0},0,{"$f":"'[1]2'!T123","v":0},{"$f":"'[1]2'!T123","v":0},0,{"$f":"'[1]2'!V123","v":0},{"$f":"'[1]2'!V123","v":0},0]
[2,"EX1262",null,null,null,"Departmental agencies and accounts",null,null,{"$f":"'[1]2'!J124","v":0},{"$f":"'[1]2'!L124","v":0},{"$f":"'[1]2'!N124","v":0},{"$f":"'[1]2'!N124","v":0},{"$f":"'[1]2'!Q124","v":0},{"$f":"'[1]2'!Q124","v":0},0,{"$f":"'[1]2'!T124","v":0},{"$f":"'[1]2'!T124","v":0},0,{"$f":"'[1]2'!V124","v":0},{"$f":"'[1]2'!V124","v":0},0]
[2,"EX1263",null,null,null,"Provinces",null,null,{"$f":"'[1]2'!J125","v":0},{"$f":"'[1]2'!L125","v":0},{"$f":"'[1]2'!N125","v":0},{"$f":"'[1]2'!N125","v":0},{"$f":"'[1]2'!Q125","v":0},{"$f":"'[1]2'!Q125","v":0},0,{"$f":"'[1]2'!T125","v":0},{"$f":"'[1]2'!T125","v":0},0,{"$f":"'[1]2'!V125","v":0},{"$f":"'[1]2'!V125","v":0},0]
[2,"EX1264",null,null,null,"Municipalities",null,null,{"$f":"'[1]2'!J126","v":0},{"$f":"'[1]2'!L126","v":0},{"$f":"'[1]2'!N126","v":0},{"$f":"'[1]2'!N126","v":0},{"$f":"'[1]2'!Q126","v":0},{"$f":"'[1]2'!Q126","v":0},0,{"$f":"'[1]2'!T126","v":0},{"$f":"'[1]2'!T126","v":0},0,{"$f":"'[1]2'!V126","v":0},{"$f":"'[1]2'!V126","v":0},0]
[2,"EX1265",null,null,null,"National Skills Fund",null,null,{"$f":"'[1]2'!J127","v":0},{"$f":"'[1]2'!L127","v":0},{"$f":"'[1]2'!N127","v":0},{"$f":"'[1]2'!N127","v":0},{"$f":"'[1]2'!Q127","v":0},{"$f":"'[1]2'!Q127","v":0},0,{"$f":"'[1]2'!T127","v":0},{"$f":"'[1]2'!T127","v":0},0,{"$f":"'[1]2'!V127","v":0},{"$f":"'[1]2'!V127","v":0},0]
[2,"EX127",null,null,null,"Public corporations and private enterprises (subsidies and other transfers)",null,null,{"$f":"SUM(I129:I130)","v":0},0,0,0,0,0,0,{"$f":"SUM(P129:P130)","v":0},{"$f":"SUM(Q129:Q130)","v":0},0,{"$f":"SUM(S129:S130)","v":0},{"$f":"SUM(T129:T130)","v":0},0,{"$f":"SUM(V129:V130)","v":0}]
[2,"EX1271",null,null,null,"Public corporations",null,null,{"$f":"'[1]2'!J129","v":0},{"$f":"'[1]2'!L129","v":0},{"$f":"'[1]2'!N129","v":0},{"$f":"'[1]2'!N129","v":0},{"$f":"'[1]2'!Q129","v":0},{"$f":"'[1]2'!Q129","v":0},0,{"$f":"'[1]2'!T129","v":0},{"$f":"'[1]2'!T129","v":0},0,{"$f":"'[1]2'!V129","v":0},{"$f":"'[1]2'!V129","v":0},{"$f":"SUM(T129-S129)","v":0}]
[2,"EX1272",null,null,null,"Private enterprises",null,null,{"$f":"'[1]2'!J130","v":0},{"$f":"'[1]2'!L130","v":0},{"$f":"'[1]2'!N130","v":0},{"$f":"'[1]2'!N130","v":0},{"$f":"'[1]2'!Q130","v":0},{"$f":"'[1]2'!Q130","v":0},0,{"$f":"'[1]2'!T130","v":0},{"$f":"'[1]2'!T130","v":0},0,{"$f":"'[1]2'!V130","v":0},{"$f":"'[1]2'!V130","v":0},0]
[2,"EX128",null,null,null,"Households and non government units",null,null,{"$f":"'[1]2'!J131","v":0},{"$f":"'[1]2'!L131","v":0},{"$f":"'[1]2'!N131","v":0},{"$f":"'[1]2'!N131","v":0},{"$f":"'[1]2'!Q131","v":0},{"$f":"'[1]2'!Q131","v":0},0,{"$f":"'[1]2'!T131","v":0},{"$f":"'[1]2'!T131","v":0},0,{"$f":"'[1]2'!V131","v":0},{"$f":"'[1]2'!V131","v":0},0]
[1,"EX129",null,null,null,"Higher education institutions",null,null,{"$f":"'[1]2'!J132","v":0},{"$f":"'[1]2'!L132","v":0},{"$f":"'[1]2'!N132","v":0},{"$f":"'[1]2'!N132","v":0},{"$f":"'[1]2'!Q132","v":0},{"$f":"'[1]2'!Q132","v":0},0,{"$f":"'[1]2'!T132","v":0},{"$f":"'[1]2'!T132","v":0},0,{"$f":"'[1]2'!V132","v":0},{"$f":"'[1]2'!V132","v":0},0]
[1,"EX130",null,null,null,"Foreign governments and international organisations ",null,null,{"$f":"'[1]2'!J133","v":0},{"$f":"'[1]2'!L133","v":0},{"$f":"'[1]2'!N133","v":0},{"$f":"'[1]2'!N133","v":0},{"$f":"'[1]2'!Q133","v":0},{"$f":"'[1]2'!Q133","v":0},0,{"$f":"'[1]2'!T133","v":0},{"$f":"'[1]2'!T133","v":0},0,{"$f":"'[1]2'!V133","v":0},{"$f":"'[1]2'!V133","v":0},0]
[1,"EX131",null,null,null,"Non-profit institutions",null,null,{"$f":"'[1]2'!J134","v":0},{"$f":"'[1]2'!L134","v":0},{"$f":"'[1]2'!N134","v":0},{"$f":"'[1]2'!N134","v":0},{"$f":"'[1]2'!Q134","v":0},{"$f":"'[1]2'!Q134","v":0},0,{"$f":"'[1]2'!T134","v":0},{"$f":"'[1]2'!T134","v":0},0,{"$f":"'[1]2'!V134","v":0},{"$f":"'[1]2'!V134","v":0},0]
[1,"EX132",null,null,null,"Households",null,null,{"$f":"SUM(I136:I137)","v":0},0,0,0,0,0,{"$f":"SUM(N135-M135)","v":0},{"$f":"SUM(P136:P137)","v":0},{"$f":"SUM(Q136:Q137)","v":0},{"$f":"SUM(Q135-P135)","v":0},{"$f":"SUM(S136:S137)","v":0},{"$f":"SUM(T136:T137)","v":0},{"$f":"SUM(T135-S135)","v":0},{"$f":"SUM(V136:V137)","v":0}]
[1,"EX1301",null,null,null,"Social benefits ",null,null,{"$f":"'[1]2'!J136","v":0},{"$f":"'[1]2'!L136","v":0},{"$f":"'[1]2'!N136","v":0},{"$f":"'[1]2'!N136","v":0},{"$f":"'[1]2'!Q136","v":0},{"$f":"'[1]2'!Q136","v":0},0,{"$f":"'[1]2'!T136","v":0},{"$f":"'[1]2'!T136","v":0},0,{"$f":"'[1]2'!V136","v":0},{"$f":"'[1]2'!V136","v":0},0]
[1,"EX1302",null,null,null,"Other transfers to households",null,null,{"$f":"'[1]2'!J137","v":0},{"$f":"'[1]2'!L137","v":0},{"$f":"'[1]2'!N137","v":0},{"$f":"'[1]2'!N137","v":0},{"$f":"'[1]2'!Q137","v":0},{"$f":"'[1]2'!Q137","v":0},0,{"$f":"'[1]2'!T137","v":0},{"$f":"'[1]2'!T137","v":0},0,{"$f":"'[1]2'!V137","v":0},{"$f":"'[1]2'!V137","v":0},0]
[1,"EX13",null,null,null,"Tax payment",null,null,{"$f":"'[1]2'!J138","v":0},{"$f":"'[1]2'!L138","v":0},{"$f":"'[1]2'!N138","v":0},{"$f":"'[1]2'!N138","v":0},{"$f":"'[1]2'!Q138","v":0},{"$f":"'[1]2'!Q138","v":0},0,{"$f":"'[1]2'!T138","v":0},{"$f":"'[1]2'!T138","v":0},0,{"$f":"'[1]2'!V138","v":0},{"$f":"'[1]2'!V138","v":0},0]
[1,"EX14",null,null,null,"Outside shareholders Interest",null,null,{"$f":"'[1]2'!J139","v":0},{"$f":"'[1]2'!L139","v":0},{"$f":"'[1]2'!N139","v":0},{"$f":"'[1]2'!N139","v":0},{"$f":"'[1]2'!Q139","v":0},{"$f":"'[1]2'!Q139","v":0},0,{"$f":"'[1]2'!T139","v":0},{"$f":"'[1]2'!T139","v":0},0,{"$f":"'[1]2'!V139","v":0},{"$f":"'[1]2'!V139","v":0},0]
[1,"EX15",null,null,null,"Total Expenditure",null,null,{"$f":"SUM(I39,I109,I138:I139)","v":6435782.4652199997},7331552.6430699993,7266002.6030899975,7266002.6030899975,7698741.6299284389,7698741.6299284389,0,{"$f":"SUM(P39,P109,P138:P139)","v":8069993.9109454416},{"$f":"SUM(Q39,Q109,Q138:Q139)","v":8069993.9109454416},0,{"$f":"SUM(S39,S109,S138:S139)","v":8463747.2865662836},{"$f":"SUM(T39,T109,T138:T139)","v":8463747.2865662836},0,{"$f":"SUM(V39,V109,V138:V139)","v":0}]
[1]
[1,null,null,null,null,"Objective less Expenditure",null,null,{"$f":"ROUND(IF(I37-I140>0,IF(I37-I140<1,0,I37-I140),I37-I140),0)","v":0},0,null,0,0,0,{"$f":"ROUND(IF(O37-O140>0,IF(O37-O140<1,0,O37-O140),O37-O140),0)","v":0},0,0,0,0,0,0,0]
[1]

{"sheet":"3","index":7,"n_rows":143,"n_cols":23,"rows_kept":143,"cut":false,"hidden":false,"merged":[[31,15,31,17],[31,18,31,20],[31,12,31,14],[31,10,31,11]]}
[]
[]
[]
[]
[]
[null,null,null,null,null,"PE No",{"$f":"Settings!O2","v":"PE126"}]
[null,null,null,null,null,"Entity name",{"$f":"Settings!$E$2","v":"South African Revenue Service"}]
[]
[null,null,null,null,null,"Performance and operations information"]
["ItemCat","Item code","Hide/unhide",null,null,"Activity/Output/Outcome/Efficiency Indicator","MTDP Outcomes",null,{"$f":"MyYearM3","v":"2022/23"},{"$f":"MyYearM2","v":"2023/24"},{"$f":"MyYearM1","v":"2024/25"},{"$f":"MyYear0","v":"2025/26"},{"$f":"MyYearP1","v":"2026/27"},{"$f":"MyYearP2","v":"2027/28"},{"$f":"MyYearP3","v":"2028/29"},"Related Objectives","Add to 'Performance Indicators' Sheet","Comments"]
[1,null,null,null,null,{"$f":"'[1]3'!F11","v":"% of planned capacity to be available for mission critical systems"},{"$f":"'[1]3'!G11","v":"Outcome 10: Reduced poverty and improved livelihoods"},0,{"$f":"'[1]3'!J11","v":"99.70%"},{"$f":"'[1]3'!K11","v":"99.61%"},{"$f":"'[1]3'!L11","v":"99.00%"},{"$f":"'[1]3'!M11","v":"99.00%"},{"$f":"'[1]3'!N11","v":"99.00%"},{"$f":"'[1]3'!O11","v":"99.00%"},null,{"$f":"'[1]3'!P11","v":"Deputy Commissioner: Strategy, Enabling and Modernisation"},{"$f":"'[1]3'!Q11","v":"Yes"},{"$f":"'[1]3'!R11","v":0}]
[1,null,null,null,null,{"$f":"'[1]3'!F12","v":"Number of security breaches on digital platforms from known risks"},{"$f":"'[1]3'!G12","v":"Outcome 10: Reduced poverty and improved livelihoods"},0,{"$f":"'[1]3'!J12","v":"Nil "},{"$f":"'[1]3'!K12","v":"Nil "},{"$f":"'[1]3'!L12","v":"Nil "},{"$f":"'[1]3'!M12","v":"Nil "},{"$f":"'[1]3'!N12","v":"Nil "},{"$f":"'[1]3'!O12","v":"nil"},null,{"$f":"'[1]3'!P12","v":"Deputy Commissioner: Strategy, Enabling and Modernisation"},{"$f":"'[1]3'!Q12","v":"Yes"},{"$f":"'[1]3'!R12","v":0}]
[1,null,null,null,null,{"$f":"'[1]3'!F13","v":"Increase ICT investment as % of total allocation"},{"$f":"'[1]3'!G13","v":"Outcome 10: Reduced poverty and improved livelihoods"},0,{"$f":"'[1]3'!J13","v":1.7999999999999999E-2},{"$f":"'[1]3'!K13","v":"-0.24%"},{"$f":"'[1]3'!L13","v":"2.00%"},{"$f":"'[1]3'!M13","v":"2.00%"},{"$f":"'[1]3'!N13","v":"2.00%"},{"$f":"'[1]3'!O13","v":0},null,{"$f":"'[1]3'!P13","v":"Deputy Commissioner: Strategy, Enabling and Modernisation"},{"$f":"'[1]3'!Q13","v":"No"},{"$f":"'[1]3'!R13","v":0}]
[1,null,null,null,null,{"$f":"'[1]3'!F14","v":"More data sources are utilised to improve service and/or respond to compliance risks"},{"$f":"'[1]3'!G14","v":"Outcome 10: Reduced poverty and improved livelihoods"},0,{"$f":"'[1]3'!J14","v":"New measure"},{"$f":"'[1]3'!K14","v":"The \ncomprehensive \ndata sourcing plan \nwas developed \nand approved"},{"$f":"'[1]3'!L14","v":"Implement\nthe data\nsourcing\nplan"},{"$f":"'[1]3'!M14","v":"Implement\nthe data\nsourcing\nplan"},{"$f":"'[1]3'!N14","v":"Implement\nthe data\nsourcing\nplan"},{"$f":"'[1]3'!O14","v":0},null,{"$f":"'[1]3'!P14","v":"Deputy Commissioner: Strategy, Enabling and Modernisation"},{"$f":"'[1]3'!Q14","v":"No"},{"$f":"'[1]3'!R14","v":0}]
[1,null,null,null,null,{"$f":"'[1]3'!F15","v":0},{"$f":"'[1]3'!G15","v":0},0,{"$f":"'[1]3'!J15","v":0},{"$f":"'[1]3'!K15","v":0},{"$f":"'[1]3'!L15","v":0},{"$f":"'[1]3'!M15","v":0},{"$f":"'[1]3'!N15","v":0},{"$f":"'[1]3'!O15","v":0},null,{"$f":"'[1]3'!P15","v":0},{"$f":"'[1]3'!Q15","v":0},{"$f":"'[1]3'!R15","v":0}]
[1,null,null,null,null,{"$f":"'[1]3'!F16","v":0},{"$f":"'[1]3'!G16","v":0},0,{"$f":"'[1]3'!J16","v":0},{"$f":"'[1]3'!K16","v":0},{"$f":"'[1]3'!L16","v":0},{"$f":"'[1]3'!M16","v":0},{"$f":"'[1]3'!N16","v":0},{"$f":"'[1]3'!O16","v":0},null,{"$f":"'[1]3'!P16","v":0},{"$f":"'[1]3'!Q16","v":0},{"$f":"'[1]3'!R16","v":0}]
[1,null,null,null,null,{"$f":"'[1]3'!F17","v":0},{"$f":"'[1]3'!G17","v":0},0,{"$f":"'[1]3'!J17","v":0},{"$f":"'[1]3'!K17","v":0},{"$f":"'[1]3'!L17","v":0},{"$f":"'[1]3'!M17","v":0},{"$f":"'[1]3'!N17","v":0},{"$f":"'[1]3'!O17","v":0},null,{"$f":"'[1]3'!P17","v":0},{"$f":"'[1]3'!Q17","v":0},{"$f":"'[1]3'!R17","v":0}]
[1,null,null,null,null,{"$f":"'[1]3'!F18","v":0},{"$f":"'[1]3'!G18","v":0},0,{"$f":"'[1]3'!J18","v":0},{"$f":"'[1]3'!K18","v":0},{"$f":"'[1]3'!L18","v":0},{"$f":"'[1]3'!M18","v":0},{"$f":"'[1]3'!N18","v":0},{"$f":"'[1]3'!O18","v":0},null,{"$f":"'[1]3'!P18","v":0},{"$f":"'[1]3'!Q18","v":0},{"$f":"'[1]3'!R18","v":0}]
[1,null,null,null,null,{"$f":"'[1]3'!F19","v":0},{"$f":"'[1]3'!G19","v":0},0,{"$f":"'[1]3'!J19","v":0},{"$f":"'[1]3'!K19","v":0},{"$f":"'[1]3'!L19","v":0},{"$f":"'[1]3'!M19","v":0},{"$f":"'[1]3'!N19","v":0},{"$f":"'[1]3'!O19","v":0},null,{"$f":"'[1]3'!P19","v":0},{"$f":"'[1]3'!Q19","v":0},{"$f":"'[1]3'!R19","v":0}]
[1,null,null,null,null,{"$f":"'[1]3'!F20","v":0},{"$f":"'[1]3'!G20","v":0},0,{"$f":"'[1]3'!J20","v":0},{"$f":"'[1]3'!K20","v":0},{"$f":"'[1]3'!L20","v":0},{"$f":"'[1]3'!M20","v":0},{"$f":"'[1]3'!N20","v":0},{"$f":"'[1]3'!O20","v":0},null,{"$f":"'[1]3'!P20","v":0},{"$f":"'[1]3'!Q20","v":0},{"$f":"'[1]3'!R20","v":0}]
[1,null,null,null,null,{"$f":"'[1]3'!F21","v":0},{"$f":"'[1]3'!G21","v":0},0,{"$f":"'[1]3'!J21","v":0},{"$f":"'[1]3'!K21","v":0},{"$f":"'[1]3'!L21","v":0},{"$f":"'[1]3'!M21","v":0},{"$f":"'[1]3'!N21","v":0},{"$f":"'[1]3'!O21","v":0},null,{"$f":"'[1]3'!P21","v":0},{"$f":"'[1]3'!Q21","v":0},{"$f":"'[1]3'!R21","v":0}]
[1,null,null,null,null,{"$f":"'[1]3'!F22","v":0},{"$f":"'[1]3'!G22","v":0},0,{"$f":"'[1]3'!J22","v":0},{"$f":"'[1]3'!K22","v":0},{"$f":"'[1]3'!L22","v":0},{"$f":"'[1]3'!M22","v":0},{"$f":"'[1]3'!N22","v":0},{"$f":"'[1]3'!O22","v":0},null,{"$f":"'[1]3'!P22","v":0},{"$f":"'[1]3'!Q22","v":0},{"$f":"'[1]3'!R22","v":0}]
[1,null,null,null,null,{"$f":"'[1]3'!F23","v":0},{"$f":"'[1]3'!G23","v":0},0,{"$f":"'[1]3'!J23","v":0},{"$f":"'[1]3'!K23","v":0},{"$f":"'[1]3'!L23","v":0},{"$f":"'[1]3'!M23","v":0},{"$f":"'[1]3'!N23","v":0},{"$f":"'[1]3'!O23","v":0},null,{"$f":"'[1]3'!P23","v":0},{"$f":"'[1]3'!Q23","v":0},{"$f":"'[1]3'!R23","v":0}]
[1,null,null,null,null,{"$f":"'[1]3'!F24","v":0},{"$f":"'[1]3'!G24","v":0},0,{"$f":"'[1]3'!J24","v":0},{"$f":"'[1]3'!K24","v":0},{"$f":"'[1]3'!L24","v":0},{"$f":"'[1]3'!M24","v":0},{"$f":"'[1]3'!N24","v":0},{"$f":"'[1]3'!O24","v":0},null,{"$f":"'[1]3'!P24","v":0},{"$f":"'[1]3'!Q24","v":0},{"$f":"'[1]3'!R24","v":0}]
[1,null,null,null,null,{"$f":"'[1]3'!F25","v":0},{"$f":"'[1]3'!G25","v":0},0,{"$f":"'[1]3'!J25","v":0},{"$f":"'[1]3'!K25","v":0},{"$f":"'[1]3'!L25","v":0},{"$f":"'[1]3'!M25","v":0},{"$f":"'[1]3'!N25","v":0},{"$f":"'[1]3'!O25","v":0},null,{"$f":"'[1]3'!P25","v":0},{"$f":"'[1]3'!Q25","v":0},{"$f":"'[1]3'!R25","v":0}]
[1,null,null,null,null,"Notes:"]
[1,null,null,null,null,"Performance indicators are an explanation of objectives performance.   "]
[1,null,null,null,null,"1. They are specific measurements that track progress towards achieving the goals and objectives of an institution."]
[1,null,null,null,null,"2. Institutions should use performance indicators in the 2024/25 Annual Performance Plans and those in the 2025 ENE. "]
[1,null,null,null,null,"3. Institutions should also indicate instances where targets are not affected by budget baseline reprioritisation."]
[1]
[1,null,null,null,null,null,null,null,{"$f":"MyYearM3","v":"2022/23"},{"$f":"MyYearM2","v":"2023/24"},{"$f":"MyYearM1","v":"2024/25"},null,{"$f":"MyYear0","v":"2025/26"},null,null,{"$f":"MyYearP1","v":"2026/27"},null,null,{"$f":"MyYearP2","v":"2027/28"},null,null,{"$f":"MyYearP3","v":"2028/29"}]
[1,null,null,null,null,"Expenses",null,null,{"$f":"Hist_year3RestatedAudited","v":"Audited\noutcome"},{"$f":"Hist_year2RestatedAudited","v":"Audited\noutcome"},{"$f":"Hist_year1Budget","v":"Budget"},{"$f":"Hist_year1Audited","v":"Audited\noutcome"},{"$f":"Cur_YearBudgEst","v":"Budget\nestimate"},{"$f":"Cur_YearApprovedBudg","v":"Approved budget"},{"$f":"Cur_YearChangeFrRevBudg","v":"Changes from \nbudget estimate"},{"$f":"MTEF1BudgEst","v":"Budget\nestimate"},{"$f":"MTEF1RevBudgEst","v":"Revised\nbudget\nestimate"},{"$f":"MTEF1_ChangeFrBudgEst","v":"Changes from budget estimate"},{"$f":"MTEF2BudgEst","v":"Budget\nestimate"},{"$f":"MTEF2RevBudgEst","v":"Revised\nbudget\nestimate"},{"$f":"MTEF2_ChangeFrBudgEst","v":"Changes from budget estimate"},{"$f":"MTEF3PlanBudgetEst","v":"Planning\nbudget \nestimate"}]
[1]
[1,null,null,null,null,"Rand thousand"]
[1,null,null,null,null,"Objective/Activity"]
[1,null,null,null,null,{"$f":"'[1]3'!F37","v":"Deputy commissioner: Strategy, enabling and modernisation"},null,null,{"$f":"'[1]3'!J37","v":2241248.3125},{"$f":"'[1]3'!L37","v":2547801.5585699994},{"$f":"'[1]3'!N37","v":2749763.8667199998},{"$f":"'[1]3'!N37","v":2749763.8667199998},{"$f":"'[1]3'!Q37","v":2950376.3035165197},{"$f":"'[1]3'!Q37","v":2950376.3035165197},{"$f":"SUM(N37-M37)","v":0},{"$f":"'[1]3'!T37","v":3175778.7227006108},{"$f":"'[1]3'!T37","v":3175778.7227006108},{"$f":"SUM(Q37-P37)","v":0},{"$f":"'[1]3'!V37","v":3420158.0628184988},{"$f":"'[1]3'!V37","v":3420158.0628184988},{"$f":"SUM(T37-S37)","v":0}]
[1,null,null,null,null,"Economic classification"]
[1,"EX11",null,null,null,"Current payments",null,null,{"$f":"SUM(I40,I43,I98:I99,I105)","v":2241247.7976299999},2547801.5585699994,2749763.8667199998,2749763.8667199998,2950376.3035165197,2950376.3035165197,{"$f":"SUM(N39-M39)","v":0},{"$f":"SUM(P40,P43,P98:P99,P105)","v":3175778.7227006108},{"$f":"SUM(Q40,Q43,Q98:Q99,Q105)","v":3175778.7227006108},{"$f":"SUM(Q39-P39)","v":0},{"$f":"SUM(S40,S43,S98:S99,S105)","v":3420158.0628184988},{"$f":"SUM(T40,T43,T98:T99,T105)","v":3420158.0628184988},{"$f":"SUM(T39-S39)","v":0},{"$f":"SUM(V40,V43,V98:V99,V105)","v":0}]
[1,"EX111",null,null,null,"Compensation of employees",null,null,{"$f":"SUM(I41:I42)","v":1109624.3321799999},1170108.9477500001,1186153.70524,1186153.70524,1232365.7577340892,1232365.7577340892,{"$f":"SUM(N40-M40)","v":0},{"$f":"SUM(P41:P42)","v":1288438.3997109905},{"$f":"SUM(Q41:Q42)","v":1288438.3997109905},{"$f":"SUM(Q40-P40)","v":0},{"$f":"SUM(S41:S42)","v":1346675.8153779267},{"$f":"SUM(T41:T42)","v":1346675.8153779267},{"$f":"SUM(T40-S40)","v":0},{"$f":"SUM(V41:V42)","v":0}]
[1,"EX1111",null,null,null,"Salaries and wages",null,null,{"$f":"'[1]3'!J41","v":954807.95727999997},{"$f":"'[1]3'!L41","v":1016767.82482},{"$f":"'[1]3'!N41","v":1021759.4602200001},{"$f":"'[1]3'!N41","v":1021759.4602200001},{"$f":"'[1]3'!Q41","v":1061649.7837555171},{"$f":"'[1]3'!Q41","v":1061649.7837555171},{"$f":"SUM(N41-M41)","v":0},{"$f":"'[1]3'!T41","v":1109954.8489163935},{"$f":"'[1]3'!T41","v":1109954.8489163935},{"$f":"SUM(Q41-P41)","v":0},{"$f":"'[1]3'!V41","v":1160124.8080874139},{"$f":"'[1]3'!V41","v":1160124.8080874139},{"$f":"SUM(T41-S41)","v":0}]
[1,"EX1112",null,null,null,"Social contributions",null,null,{"$f":"'[1]3'!J42","v":154816.3749},{"$f":"'[1]3'!L42","v":153341.12293000001},{"$f":"'[1]3'!N42","v":164394.24502},{"$f":"'[1]3'!N42","v":164394.24502},{"$f":"'[1]3'!Q42","v":170715.973978572},{"$f":"'[1]3'!Q42","v":170715.973978572},{"$f":"SUM(N42-M42)","v":0},{"$f":"'[1]3'!T42","v":178483.55079459705},{"$f":"'[1]3'!T42","v":178483.55079459705},{"$f":"SUM(Q42-P42)","v":0},{"$f":"'[1]3'!V42","v":186551.00729051282},{"$f":"'[1]3'!V42","v":186551.00729051282},{"$f":"SUM(T42-S42)","v":0}]
[1,"EX112",null,null,null,"Goods and services",null,null,{"$f":"SUM(I45:I54,I58:I61,I73,I75:I97)","v":1131623.46545},{"$f":"SUM(J45:J54,J58:J61,J73,J75:J97)","v":1377691.8034399995},{"$f":"SUM(K45:K54,K58:K61,K73,K75:K97)","v":1563609.9536099997},1563609.9536099997,1718010.3283296237,1718010.3283296237,0,1887340.0956427106,1887340.0956427106,0,2073482.0098175821,2073482.0098175821,0,0,{"$f":"SUM(W45:W54,W58:W61,W73,W75:W97)","v":0}]
[1,"EX000",null,null,null,"Of which 1"]
[1,"EX1133",null,null,null,"Administrative fees",null,null,{"$f":"'[1]3'!J45","v":0},{"$f":"'[1]3'!L45","v":0},{"$f":"'[1]3'!N45","v":0},{"$f":"'[1]3'!N45","v":0},{"$f":"'[1]3'!Q45","v":0},{"$f":"'[1]3'!Q45","v":0},{"$f":"SUM(N45-M45)","v":0},{"$f":"'[1]3'!T45","v":0},{"$f":"'[1]3'!T45","v":0},{"$f":"SUM(Q45-P45)","v":0},{"$f":"'[1]3'!V45","v":0},{"$f":"'[1]3'!V45","v":0},{"$f":"SUM(T45-S45)","v":0}]
[1,"EX1134",null,null,null,"Advertising",null,null,{"$f":"'[1]3'!J46","v":3.9247299999999998},{"$f":"'[1]3'!L46","v":0},{"$f":"'[1]3'!N46","v":0},{"$f":"'[1]3'!N46","v":0},{"$f":"'[1]3'!Q46","v":0},{"$f":"'[1]3'!Q46","v":0},0,{"$f":"'[1]3'!T46","v":0},{"$f":"'[1]3'!T46","v":0},0,{"$f":"'[1]3'!V46","v":0},{"$f":"'[1]3'!V46","v":0},0]
[1,"EX1135",null,null,null,"Minor assets",null,null,{"$f":"'[1]3'!J47","v":1464.7366500000001},{"$f":"'[1]3'!L47","v":557.20135000000005},{"$f":"'[1]3'!N47","v":478.40998000000002},{"$f":"'[1]3'!N47","v":478.40998000000002},{"$f":"'[1]3'!Q47","v":501.37365904000001},{"$f":"'[1]3'!Q47","v":501.37365904000001},0,{"$f":"'[1]3'!T47","v":525.43959467392006},{"$f":"'[1]3'!T47","v":525.43959467392006},0,{"$f":"'[1]3'!V47","v":550.66069521826819},{"$f":"'[1]3'!V47","v":550.66069521826819},0]
[1,"EX1136",null,null,null,"Audit costs: External",null,null,{"$f":"'[1]3'!J48","v":0},{"$f":"'[1]3'!L48","v":0},{"$f":"'[1]3'!N48","v":0},{"$f":"'[1]3'!N48","v":0},{"$f":"'[1]3'!Q48","v":0},{"$f":"'[1]3'!Q48","v":0},0,{"$f":"'[1]3'!T48","v":0},{"$f":"'[1]3'!T48","v":0},0,{"$f":"'[1]3'!V48","v":0},{"$f":"'[1]3'!V48","v":0},0]
[1,"EX1139",null,null,null,"Bursaries: Employees",null,null,{"$f":"'[1]3'!J49","v":135.93709999999999},{"$f":"'[1]3'!L49","v":76.720380000000006},{"$f":"'[1]3'!N49","v":12.04},{"$f":"'[1]3'!N49","v":12.04},{"$f":"'[1]3'!Q49","v":12.595044},{"$f":"'[1]3'!Q49","v":12.595044},0,{"$f":"'[1]3'!T49","v":13.168118502},{"$f":"'[1]3'!T49","v":13.168118502},0,{"$f":"'[1]3'!V49","v":13.7633174582904},{"$f":"'[1]3'!V49","v":13.7633174582904},0]
[1,"EX1140",null,null,null,"Catering: Internal activities",null,null,{"$f":"'[1]3'!J50","v":133.29847000000001},{"$f":"'[1]3'!L50","v":264.55491000000001},{"$f":"'[1]3'!N50","v":210.98424},{"$f":"'[1]3'!N50","v":210.98424},{"$f":"'[1]3'!Q50","v":220.71061346400001},{"$f":"'[1]3'!Q50","v":220.71061346400001},0,{"$f":"'[1]3'!T50","v":230.75294637661202},{"$f":"'[1]3'!T50","v":230.75294637661202},0,{"$f":"'[1]3'!V50","v":241.18297955283487},{"$f":"'[1]3'!V50","v":241.18297955283487},0]
[1,"EX1122",null,null,null,"Communication (G&S)",null,null,{"$f":"'[1]3'!J51","v":236576.45004},{"$f":"'[1]3'!L51","v":249143.06731999997},{"$f":"'[1]3'!N51","v":272637.72357999999},{"$f":"'[1]3'!N51","v":272637.72357999999},{"$f":"'[1]3'!Q51","v":299897.02143003902},{"$f":"'[1]3'!Q51","v":299897.02143003902},0,{"$f":"'[1]3'!T51","v":329881.99068507628},{"$f":"'[1]3'!T51","v":329881.99068507628},0,{"$f":"'[1]3'!V51","v":362865.21428122744},{"$f":"'[1]3'!V51","v":362865.21428122744},0]
[1,"EX1123",null,null,null,"Computer services",null,null,{"$f":"'[1]3'!J52","v":756884.33464000013},{"$f":"'[1]3'!L52","v":910983.85836999991},{"$f":"'[1]3'!N52","v":1012756.9384},{"$f":"'[1]3'!N52","v":1012756.9384},{"$f":"'[1]3'!Q52","v":1114032.6322399999},{"$f":"'[1]3'!Q52","v":1114032.6322399999},0,{"$f":"'[1]3'!T52","v":1225435.8954640001},{"$f":"'[1]3'!T52","v":1225435.8954640001},0,{"$f":"'[1]3'!V52","v":1347979.4850103999},{"$f":"'[1]3'!V52","v":1347979.4850103999},0]
[1,"EX1124",null,null,null,"Consultants: Business and advisory services",null,null,{"$f":"'[1]3'!J53","v":50055.465259999997},{"$f":"'[1]3'!L53","v":129737.00486},{"$f":"'[1]3'!N53","v":190731.09437000001},{"$f":"'[1]3'!N53","v":190731.09437000001},{"$f":"'[1]3'!Q53","v":209804.20380700001},{"$f":"'[1]3'!Q53","v":209804.20380700001},0,{"$f":"'[1]3'!T53","v":230784.62418770001},{"$f":"'[1]3'!T53","v":230784.62418770001},0,{"$f":"'[1]3'!V53","v":253863.08660647002},{"$f":"'[1]3'!V53","v":253863.08660647002},0]
[1,"EX1180",null,null,null,"Infrastructure and planning services",null,null,{"$f":"SUM(I55:I57)","v":0},0,0,0,0,0,{"$f":"SUM(N54-M54)","v":0},{"$f":"SUM(P55:P57)","v":0},{"$f":"SUM(Q55:Q57)","v":0},{"$f":"SUM(Q54-P54)","v":0},{"$f":"SUM(S55:S57)","v":0},{"$f":"SUM(T55:T57)","v":0},{"$f":"SUM(T54-S54)","v":0},{"$f":"SUM(V55:V57)","v":0}]
[1,"EX11801",null,null,null,"Maintenance and repairs: Buildings: Consultants",null,null,{"$f":"'[1]3'!J55","v":0},{"$f":"'[1]3'!L55","v":0},{"$f":"'[1]3'!N55","v":0},{"$f":"'[1]3'!N55","v":0},{"$f":"'[1]3'!Q55","v":0},{"$f":"'[1]3'!Q55","v":0},{"$f":"SUM(N55-M55)","v":0},{"$f":"'[1]3'!T55","v":0},{"$f":"'[1]3'!T55","v":0},{"$f":"SUM(Q55-P55)","v":0},{"$f":"'[1]3'!V55","v":0},{"$f":"'[1]3'!V55","v":0},0]
[1,"EX11802",null,null,null,"Maintenance and repairs: Other fixed structures: Consultants",null,null,{"$f":"'[1]3'!J56","v":0},{"$f":"'[1]3'!L56","v":0},{"$f":"'[1]3'!N56","v":0},{"$f":"'[1]3'!N56","v":0},{"$f":"'[1]3'!Q56","v":0},{"$f":"'[1]3'!Q56","v":0},0,{"$f":"'[1]3'!T56","v":0},{"$f":"'[1]3'!T56","v":0},0,{"$f":"'[1]3'!V56","v":0},{"$f":"'[1]3'!V56","v":0},0]
[1,"EX11803",null,null,null,"Other",null,null,{"$f":"'[1]3'!J57","v":0},{"$f":"'[1]3'!L57","v":0},{"$f":"'[1]3'!N57","v":0},{"$f":"'[1]3'!N57","v":0},{"$f":"'[1]3'!Q57","v":0},{"$f":"'[1]3'!Q57","v":0},0,{"$f":"'[1]3'!T57","v":0},{"$f":"'[1]3'!T57","v":0},0,{"$f":"'[1]3'!V57","v":0},{"$f":"'[1]3'!V57","v":0},0]
[1,"EX1164",null,null,null,"Laboratory services",null,null,{"$f":"'[1]3'!J58","v":0},{"$f":"'[1]3'!L58","v":0},{"$f":"'[1]3'!N58","v":0},{"$f":"'[1]3'!N58","v":0},{"$f":"'[1]3'!Q58","v":0},{"$f":"'[1]3'!Q58","v":0},0,{"$f":"'[1]3'!T58","v":0},{"$f":"'[1]3'!T58","v":0},0,{"$f":"'[1]3'!V58","v":0},{"$f":"'[1]3'!V58","v":0},0]
[1,"EX1162",null,null,null,"Legal services (G&S)",null,null,{"$f":"'[1]3'!J59","v":37.28736},{"$f":"'[1]3'!L59","v":20.17398},{"$f":"'[1]3'!N59","v":76.929919999999996},{"$f":"'[1]3'!N59","v":76.929919999999996},{"$f":"'[1]3'!Q59","v":80.476389311999995},{"$f":"'[1]3'!Q59","v":80.476389311999995},0,{"$f":"'[1]3'!T59","v":84.138065025695994},{"$f":"'[1]3'!T59","v":84.138065025695994},0,{"$f":"'[1]3'!V59","v":87.941105564857452},{"$f":"'[1]3'!V59","v":87.941105564857452},0]
[1,"EX1165",null,null,null,"Science and technological services",null,null,{"$f":"'[1]3'!J60","v":0},{"$f":"'[1]3'!L60","v":0},{"$f":"'[1]3'!N60","v":0},{"$f":"'[1]3'!N60","v":0},{"$f":"'[1]3'!Q60","v":0},{"$f":"'[1]3'!Q60","v":0},0,{"$f":"'[1]3'!T60","v":0},{"$f":"'[1]3'!T60","v":0},0,{"$f":"'[1]3'!V60","v":0},{"$f":"'[1]3'!V60","v":0},0]
[1,"EX1125",null,null,null,"Contractors",null,null,{"$f":"SUM(I62:I66,I72)","v":508.11624999999998},557.21311000000003,721.84900000000005,721.84900000000005,794.03390000000002,794.03390000000002,{"$f":"SUM(N61-M61)","v":0},{"$f":"SUM(P62:P66,P72)","v":873.43729000000008},{"$f":"SUM(Q62:Q66,Q72)","v":873.43729000000008},{"$f":"SUM(Q61-P61)","v":0},{"$f":"SUM(S62:S66,S72)","v":960.78101900000013},{"$f":"SUM(T62:T66,T72)","v":960.78101900000013},0,{"$f":"SUM(V62:V66,V72)","v":0}]
[1,"EX11251",null,null,null,"Maintenance and repairs of other fixed structures",null,null,{"$f":"'[1]3'!J62","v":508.11624999999998},{"$f":"'[1]3'!L62","v":557.21311000000003},{"$f":"'[1]3'!N62","v":721.84900000000005},{"$f":"'[1]3'!N62","v":721.84900000000005},{"$f":"'[1]3'!Q62","v":794.03390000000002},{"$f":"'[1]3'!Q62","v":794.03390000000002},0,{"$f":"'[1]3'!T62","v":873.43729000000008},{"$f":"'[1]3'!T62","v":873.43729000000008},0,{"$f":"'[1]3'!V62","v":960.78101900000013},{"$f":"'[1]3'!V62","v":960.78101900000013},0]
[1,"EX11252",null,null,null,"Maintenance and repairs of other machinery and equipment",null,null,{"$f":"'[1]3'!J63","v":0},{"$f":"'[1]3'!L63","v":0},{"$f":"'[1]3'!N63","v":0},{"$f":"'[1]3'!N63","v":0},{"$f":"'[1]3'!Q63","v":0},{"$f":"'[1]3'!Q63","v":0},0,{"$f":"'[1]3'!T63","v":0},{"$f":"'[1]3'!T63","v":0},0,{"$f":"'[1]3'!V63","v":0},{"$f":"'[1]3'!V63","v":0},0]
[1,"EX11253",null,null,null,"Maintenance and repairs of heritage buildings",null,null,{"$f":"'[1]3'!J64","v":0},{"$f":"'[1]3'!L64","v":0},{"$f":"'[1]3'!N64","v":0},{"$f":"'[1]3'!N64","v":0},{"$f":"'[1]3'!Q64","v":0},{"$f":"'[1]3'!Q64","v":0},0,{"$f":"'[1]3'!T64","v":0},{"$f":"'[1]3'!T64","v":0},0,{"$f":"'[1]3'!V64","v":0},{"$f":"'[1]3'!V64","v":0},0]
[1,"EX11254",null,null,null,"Maintenance and repairs of other heritage fixed structures",null,null,{"$f":"'[1]3'!J65","v":0},{"$f":"'[1]3'!L65","v":0},{"$f":"'[1]3'!N65","v":0},{"$f":"'[1]3'!N65","v":0},{"$f":"'[1]3'!Q65","v":0},{"$f":"'[1]3'!Q65","v":0},0,{"$f":"'[1]3'!T65","v":0},{"$f":"'[1]3'!T65","v":0},0,{"$f":"'[1]3'!V65","v":0},{"$f":"'[1]3'!V65","v":0},0]
[5,"EX11255",null,null,null,"South african social security agency payment contractors",null,null,{"$f":"SUM(I67:I71)","v":0},0,0,0,0,0,0,{"$f":"SUM(P67:P71)","v":0},{"$f":"SUM(Q67:Q71)","v":0},0,{"$f":"SUM(S67:S71)","v":0},{"$f":"SUM(T67:T71)","v":0},0,{"$f":"SUM(V67:V71)","v":0}]
[5,"EX112551",null,null,null,"SASSA Admin fees",null,null,{"$f":"'[1]3'!J67","v":0},{"$f":"'[1]3'!L67","v":0},{"$f":"'[1]3'!N67","v":0},{"$f":"'[1]3'!N67","v":0},{"$f":"'[1]3'!Q67","v":0},{"$f":"'[1]3'!Q67","v":0},{"$f":"SUM(N67-M67)","v":0},{"$f":"'[1]3'!T67","v":0},{"$f":"'[1]3'!T67","v":0},{"$f":"SUM(Q67-P67)","v":0},{"$f":"'[1]3'!V67","v":0},{"$f":"'[1]3'!V67","v":0},{"$f":"SUM(T67-S67)","v":0}]
[5,"EX112552",null,null,null,"SASSA Bankcard fees",null,null,{"$f":"'[1]3'!J68","v":0},{"$f":"'[1]3'!L68","v":0},{"$f":"'[1]3'!N68","v":0},{"$f":"'[1]3'!N68","v":0},{"$f":"'[1]3'!Q68","v":0},{"$f":"'[1]3'!Q68","v":0},0,{"$f":"'[1]3'!T68","v":0},{"$f":"'[1]3'!T68","v":0},0,{"$f":"'[1]3'!V68","v":0},{"$f":"'[1]3'!V68","v":0},0]
[5,"EX112553",null,null,null,"SASSA registration fees",null,null,{"$f":"'[1]3'!J69","v":0},{"$f":"'[1]3'!L69","v":0},{"$f":"'[1]3'!N69","v":0},{"$f":"'[1]3'!N69","v":0},{"$f":"'[1]3'!Q69","v":0},{"$f":"'[1]3'!Q69","v":0},0,{"$f":"'[1]3'!T69","v":0},{"$f":"'[1]3'!T69","v":0},0,{"$f":"'[1]3'!V69","v":0},{"$f":"'[1]3'!V69","v":0},0]
[5,"EX112554",null,null,null,"SASSA beneficiary fees",null,null,{"$f":"'[1]3'!J70","v":0},{"$f":"'[1]3'!L70","v":0},{"$f":"'[1]3'!N70","v":0},{"$f":"'[1]3'!N70","v":0},{"$f":"'[1]3'!Q70","v":0},{"$f":"'[1]3'!Q70","v":0},0,{"$f":"'[1]3'!T70","v":0},{"$f":"'[1]3'!T70","v":0},0,{"$f":"'[1]3'!V70","v":0},{"$f":"'[1]3'!V70","v":0},0]
[5,"EX112555",null,null,null,"SASSA help desk fees",null,null,{"$f":"'[1]3'!J71","v":0},{"$f":"'[1]3'!L71","v":0},{"$f":"'[1]3'!N71","v":0},{"$f":"'[1]3'!N71","v":0},{"$f":"'[1]3'!Q71","v":0},{"$f":"'[1]3'!Q71","v":0},0,{"$f":"'[1]3'!T71","v":0},{"$f":"'[1]3'!T71","v":0},0,{"$f":"'[1]3'!V71","v":0},{"$f":"'[1]3'!V71","v":0},0]
[1,"EX11256",null,null,null,"Other",null,null,{"$f":"'[1]3'!J72","v":0},{"$f":"'[1]3'!L72","v":0},{"$f":"'[1]3'!N72","v":0},{"$f":"'[1]3'!N72","v":0},{"$f":"'[1]3'!Q72","v":0},{"$f":"'[1]3'!Q72","v":0},0,{"$f":"'[1]3'!T72","v":0},{"$f":"'[1]3'!T72","v":0},0,{"$f":"'[1]3'!V72","v":0},{"$f":"'[1]3'!V72","v":0},0]
[1,"EX1121",null,null,null,"Agency and support/outsourced services",null,null,{"$f":"'[1]3'!J73","v":119.98854},{"$f":"'[1]3'!L73","v":0},{"$f":"'[1]3'!N73","v":0},{"$f":"'[1]3'!N73","v":0},{"$f":"'[1]3'!Q73","v":0},{"$f":"'[1]3'!Q73","v":0},0,{"$f":"'[1]3'!T73","v":0},{"$f":"'[1]3'!T73","v":0},0,{"$f":"'[1]3'!V73","v":0},{"$f":"'[1]3'!V73","v":0},0]
[5,"EX11211",null,null,null,"     Of Which: Medical assessments",null,null,{"$f":"'[1]3'!J74","v":0},{"$f":"'[1]3'!L74","v":0},{"$f":"'[1]3'!N74","v":0},{"$f":"'[1]3'!N74","v":0},{"$f":"'[1]3'!Q74","v":0},{"$f":"'[1]3'!Q74","v":0},0,{"$f":"'[1]3'!T74","v":0},{"$f":"'[1]3'!T74","v":0},0,{"$f":"'[1]3'!V74","v":0},{"$f":"'[1]3'!V74","v":0},0]
[1,"EX1161",null,null,null,"Entertainment",null,null,{"$f":"'[1]3'!J75","v":0},{"$f":"'[1]3'!L75","v":0},{"$f":"'[1]3'!N75","v":0},{"$f":"'[1]3'!N75","v":0},{"$f":"'[1]3'!Q75","v":0},{"$f":"'[1]3'!Q75","v":0},0,{"$f":"'[1]3'!T75","v":0},{"$f":"'[1]3'!T75","v":0},0,{"$f":"'[1]3'!V75","v":0},{"$f":"'[1]3'!V75","v":0},0]
[1,"EX1166",null,null,null,"Fleet services (including government motor transport)",null,null,{"$f":"'[1]3'!J76","v":0},{"$f":"'[1]3'!L76","v":0},{"$f":"'[1]3'!N76","v":0},{"$f":"'[1]3'!N76","v":0},{"$f":"'[1]3'!Q76","v":0},{"$f":"'[1]3'!Q76","v":0},0,{"$f":"'[1]3'!T76","v":0},{"$f":"'[1]3'!T76","v":0},0,{"$f":"'[1]3'!V76","v":0},{"$f":"'[1]3'!V76","v":0},0]
[1,"EX1167",null,null,null,"Housing",null,null,{"$f":"'[1]3'!J77","v":0},{"$f":"'[1]3'!L77","v":0},{"$f":"'[1]3'!N77","v":0},{"$f":"'[1]3'!N77","v":0},{"$f":"'[1]3'!Q77","v":0},{"$f":"'[1]3'!Q77","v":0},0,{"$f":"'[1]3'!T77","v":0},{"$f":"'[1]3'!T77","v":0},0,{"$f":"'[1]3'!V77","v":0},{"$f":"'[1]3'!V77","v":0},0]
[1,"EX1168",null,null,null,"Inventory: Clothing material and accessories",null,null,{"$f":"'[1]3'!J78","v":0},{"$f":"'[1]3'!L78","v":0},{"$f":"'[1]3'!N78","v":0},{"$f":"'[1]3'!N78","v":0},{"$f":"'[1]3'!Q78","v":0},{"$f":"'[1]3'!Q78","v":0},0,{"$f":"'[1]3'!T78","v":0},{"$f":"'[1]3'!T78","v":0},0,{"$f":"'[1]3'!V78","v":0},{"$f":"'[1]3'!V78","v":0},0]
[1,"EX1169",null,null,null,"Inventory: Farming supplies",null,null,{"$f":"'[1]3'!J79","v":0},{"$f":"'[1]3'!L79","v":0},{"$f":"'[1]3'!N79","v":0},{"$f":"'[1]3'!N79","v":0},{"$f":"'[1]3'!Q79","v":0},{"$f":"'[1]3'!Q79","v":0},0,{"$f":"'[1]3'!T79","v":0},{"$f":"'[1]3'!T79","v":0},0,{"$f":"'[1]3'!V79","v":0},{"$f":"'[1]3'!V79","v":0},0]
[1,"EX1170",null,null,null,"Inventory: Food and food supplies",null,null,{"$f":"'[1]3'!J80","v":0},{"$f":"'[1]3'!L80","v":0},{"$f":"'[1]3'!N80","v":0},{"$f":"'[1]3'!N80","v":0},{"$f":"'[1]3'!Q80","v":0},{"$f":"'[1]3'!Q80","v":0},0,{"$f":"'[1]3'!T80","v":0},{"$f":"'[1]3'!T80","v":0},0,{"$f":"'[1]3'!V80","v":0},{"$f":"'[1]3'!V80","v":0},0]
[1,"EX1171",null,null,null,"Inventory: Fuel, oil and gas",null,null,{"$f":"'[1]3'!J81","v":0},{"$f":"'[1]3'!L81","v":0},{"$f":"'[1]3'!N81","v":0},{"$f":"'[1]3'!N81","v":0},{"$f":"'[1]3'!Q81","v":0},{"$f":"'[1]3'!Q81","v":0},0,{"$f":"'[1]3'!T81","v":0},{"$f":"'[1]3'!T81","v":0},0,{"$f":"'[1]3'!V81","v":0},{"$f":"'[1]3'!V81","v":0},0]
[1,"EX1172",null,null,null,"Inventory: Learner and teacher support material",null,null,{"$f":"'[1]3'!J82","v":0},{"$f":"'[1]3'!L82","v":0},{"$f":"'[1]3'!N82","v":0},{"$f":"'[1]3'!N82","v":0},{"$f":"'[1]3'!Q82","v":0},{"$f":"'[1]3'!Q82","v":0},0,{"$f":"'[1]3'!T82","v":0},{"$f":"'[1]3'!T82","v":0},0,{"$f":"'[1]3'!V82","v":0},{"$f":"'[1]3'!V82","v":0},0]
[1,"EX1126",null,null,null,"Inventory: Materials and supplies",null,null,{"$f":"'[1]3'!J83","v":0},{"$f":"'[1]3'!L83","v":0},{"$f":"'[1]3'!N83","v":0},{"$f":"'[1]3'!N83","v":0},{"$f":"'[1]3'!Q83","v":0},{"$f":"'[1]3'!Q83","v":0},0,{"$f":"'[1]3'!T83","v":0},{"$f":"'[1]3'!T83","v":0},0,{"$f":"'[1]3'!V83","v":0},{"$f":"'[1]3'!V83","v":0},0]
[1,"EX1173",null,null,null,"Inventory: Medical supplies",null,null,{"$f":"'[1]3'!J84","v":0},{"$f":"'[1]3'!L84","v":0},{"$f":"'[1]3'!N84","v":0},{"$f":"'[1]3'!N84","v":0},{"$f":"'[1]3'!Q84","v":0},{"$f":"'[1]3'!Q84","v":0},0,{"$f":"'[1]3'!T84","v":0},{"$f":"'[1]3'!T84","v":0},0,{"$f":"'[1]3'!V84","v":0},{"$f":"'[1]3'!V84","v":0},0]
[1,"EX1174",null,null,null,"Inventory: Medicine",null,null,{"$f":"'[1]3'!J85","v":0},{"$f":"'[1]3'!L85","v":0},{"$f":"'[1]3'!N85","v":0},{"$f":"'[1]3'!N85","v":0},{"$f":"'[1]3'!Q85","v":0},{"$f":"'[1]3'!Q85","v":0},0,{"$f":"'[1]3'!T85","v":0},{"$f":"'[1]3'!T85","v":0},0,{"$f":"'[1]3'!V85","v":0},{"$f":"'[1]3'!V85","v":0},0]
[1,"EX1175",null,null,null,"Medsas inventory interface",null,null,{"$f":"'[1]3'!J86","v":0},{"$f":"'[1]3'!L86","v":0},{"$f":"'[1]3'!N86","v":0},{"$f":"'[1]3'!N86","v":0},{"$f":"'[1]3'!Q86","v":0},{"$f":"'[1]3'!Q86","v":0},0,{"$f":"'[1]3'!T86","v":0},{"$f":"'[1]3'!T86","v":0},0,{"$f":"'[1]3'!V86","v":0},{"$f":"'[1]3'!V86","v":0},0]
[1,"EX1176",null,null,null,"Inventory: Other supplies",null,null,{"$f":"'[1]3'!J87","v":0},{"$f":"'[1]3'!L87","v":17.792000000000002},{"$f":"'[1]3'!N87","v":73.010000000000005},{"$f":"'[1]3'!N87","v":73.010000000000005},{"$f":"'[1]3'!Q87","v":76.375761000000011},{"$f":"'[1]3'!Q87","v":76.375761000000011},0,{"$f":"'[1]3'!T87","v":79.850858125500011},{"$f":"'[1]3'!T87","v":79.850858125500011},0,{"$f":"'[1]3'!V87","v":83.460116912772605},{"$f":"'[1]3'!V87","v":83.460116912772605},0]
[1,"EX1177",null,null,null,"Consumable supplies",null,null,{"$f":"'[1]3'!J88","v":6060.0673099999995},{"$f":"'[1]3'!L88","v":1161.3807099999999},{"$f":"'[1]3'!N88","v":1095.85214},{"$f":"'[1]3'!N88","v":1095.85214},{"$f":"'[1]3'!Q88","v":1146.3709236539999},{"$f":"'[1]3'!Q88","v":1146.3709236539999},0,{"$f":"'[1]3'!T88","v":1198.530800680257},{"$f":"'[1]3'!T88","v":1198.530800680257},0,{"$f":"'[1]3'!V88","v":1252.7043928710048},{"$f":"'[1]3'!V88","v":1252.7043928710048},0]
[1,"EX1144",null,null,null,"Consumables: Stationery, printing and office supplies",null,null,{"$f":"'[1]3'!J89","v":29868.203399999999},{"$f":"'[1]3'!L89","v":36367.190439999998},{"$f":"'[1]3'!N89","v":44554.77031},{"$f":"'[1]3'!N89","v":44554.77031},{"$f":"'[1]3'!Q89","v":48906.754767585},{"$f":"'[1]3'!Q89","v":48906.754767585},0,{"$f":"'[1]3'!T89","v":53687.961502837112},{"$f":"'[1]3'!T89","v":53687.961502837112},0,{"$f":"'[1]3'!V89","v":58941.678086247033},{"$f":"'[1]3'!V89","v":58941.678086247033},0]
[1,"EX1127",null,null,null,"Operating leases",null,null,{"$f":"'[1]3'!J90","v":30052.205999999998},{"$f":"'[1]3'!L90","v":28934.744780000001},{"$f":"'[1]3'!N90","v":29088.560170000001},{"$f":"'[1]3'!N90","v":29088.560170000001},{"$f":"'[1]3'!Q90","v":30484.811058160001},{"$f":"'[1]3'!Q90","v":30484.811058160001},0,{"$f":"'[1]3'!T90","v":31948.081988951682},{"$f":"'[1]3'!T90","v":31948.081988951682},0,{"$f":"'[1]3'!V90","v":33481.589924421365},{"$f":"'[1]3'!V90","v":33481.589924421365},0]
[1,"EX1178",null,null,null,"Rental and hiring",null,null,{"$f":"'[1]3'!J91","v":0},{"$f":"'[1]3'!L91","v":0},{"$f":"'[1]3'!N91","v":0},{"$f":"'[1]3'!N91","v":0},{"$f":"'[1]3'!Q91","v":0},{"$f":"'[1]3'!Q91","v":0},0,{"$f":"'[1]3'!T91","v":0},{"$f":"'[1]3'!T91","v":0},0,{"$f":"'[1]3'!V91","v":0},{"$f":"'[1]3'!V91","v":0},0]
[1,"EX1145",null,null,null,"Property payments",null,null,{"$f":"'[1]3'!J92","v":7.5129700000000001},{"$f":"'[1]3'!L92","v":13.37393},{"$f":"'[1]3'!N92","v":6.6913999999999998},{"$f":"'[1]3'!N92","v":6.6913999999999998},{"$f":"'[1]3'!Q92","v":6.9998735399999994},{"$f":"'[1]3'!Q92","v":6.9998735399999994},0,{"$f":"'[1]3'!T92","v":7.3183677860699996},{"$f":"'[1]3'!T92","v":7.3183677860699996},0,{"$f":"'[1]3'!V92","v":7.6491580100003631},{"$f":"'[1]3'!V92","v":7.6491580100003631},0]
[1,"EX1179",null,null,null,"Transport provided: Internal activities",null,null,{"$f":"'[1]3'!J93","v":1139.43578},{"$f":"'[1]3'!L93","v":1088.6816799999999},{"$f":"'[1]3'!N93","v":1022.7304799999999},{"$f":"'[1]3'!N93","v":1022.7304799999999},{"$f":"'[1]3'!Q93","v":1069.8783551280001},{"$f":"'[1]3'!Q93","v":1069.8783551280001},0,{"$f":"'[1]3'!T93","v":1118.5578202863239},{"$f":"'[1]3'!T93","v":1118.5578202863239},0,{"$f":"'[1]3'!V93","v":1169.1166337632656},{"$f":"'[1]3'!V93","v":1169.1166337632656},0]
[1,"EX1131",null,null,null,"Travel and subsistence",null,null,{"$f":"'[1]3'!J94","v":3265.8907599999998},{"$f":"'[1]3'!L94","v":2594.2836600000001},{"$f":"'[1]3'!N94","v":2580.0942000000005},{"$f":"'[1]3'!N94","v":2580.0942000000005},{"$f":"'[1]3'!Q94","v":2699.0365426200005},{"$f":"'[1]3'!Q94","v":2699.0365426200005},0,{"$f":"'[1]3'!T94","v":2821.84270530921},{"$f":"'[1]3'!T94","v":2821.84270530921},0,{"$f":"'[1]3'!V94","v":2949.3899955891866},{"$f":"'[1]3'!V94","v":2949.3899955891866},0]
[1,"EX1130",null,null,null,"Training and development",null,null,{"$f":"'[1]3'!J95","v":600.95397000000003},{"$f":"'[1]3'!L95","v":144.89236},{"$f":"'[1]3'!N95","v":332.84073999999998},{"$f":"'[1]3'!N95","v":332.84073999999998},{"$f":"'[1]3'!Q95","v":348.18469811400001},{"$f":"'[1]3'!Q95","v":348.18469811400001},0,{"$f":"'[1]3'!T95","v":364.02710187818701},{"$f":"'[1]3'!T95","v":364.02710187818701},0,{"$f":"'[1]3'!V95","v":380.48112688308106},{"$f":"'[1]3'!V95","v":380.48112688308106},0]
[1,"EX1132",null,null,null,"Operating payments",null,null,{"$f":"'[1]3'!J96","v":12912.946030000001},{"$f":"'[1]3'!L96","v":16029.669600000001},{"$f":"'[1]3'!N96","v":7229.4346800000003},{"$f":"'[1]3'!N96","v":7229.4346800000003},{"$f":"'[1]3'!Q96","v":7928.8692669680004},{"$f":"'[1]3'!Q96","v":7928.8692669680004},0,{"$f":"'[1]3'!T96","v":8284.478145502093},{"$f":"'[1]3'!T96","v":8284.478145502093},0,{"$f":"'[1]3'!V96","v":8653.8253679924092},{"$f":"'[1]3'!V96","v":8653.8253679924092},0]
[1,"EX1146",null,null,null,"Venues and facilities",null,null,{"$f":"'[1]3'!J97","v":1796.71019},{"$f":"'[1]3'!L97","v":0},{"$f":"'[1]3'!N97","v":0},{"$f":"'[1]3'!N97","v":0},{"$f":"'[1]3'!Q97","v":0},{"$f":"'[1]3'!Q97","v":0},0,{"$f":"'[1]3'!T97","v":0},{"$f":"'[1]3'!T97","v":0},0,{"$f":"'[1]3'!V97","v":0},{"$f":"'[1]3'!V97","v":0},0]
[1,"EX113",null,null,null,"Depreciation",null,null,{"$f":"'[1]3'!J98","v":0},{"$f":"'[1]3'!L98","v":0},{"$f":"'[1]3'!N98","v":0},{"$f":"'[1]3'!N98","v":0},{"$f":"'[1]3'!Q98","v":0},{"$f":"'[1]3'!Q98","v":0},0,{"$f":"'[1]3'!T98","v":0},{"$f":"'[1]3'!T98","v":0},0,{"$f":"'[1]3'!V98","v":0},{"$f":"'[1]3'!V98","v":0},0]
[1,"EX114",null,null,null,"Losses from",null,null,{"$f":"SUM(I100:I101,I104)","v":0},0,0,0,0,0,{"$f":"SUM(N99-M99)","v":0},{"$f":"SUM(P100:P101,P104)","v":0},{"$f":"SUM(Q100:Q101,Q104)","v":0},{"$f":"SUM(Q99-P99)","v":0},{"$f":"SUM(S100:S101,S104)","v":0},{"$f":"SUM(T100:T101,T104)","v":0},{"$f":"SUM(T99-S99)","v":0},{"$f":"SUM(V100:V101,V104)","v":0}]
[1,"EX1141",null,null,null,"Sale of fixed assets",null,null,{"$f":"'[1]3'!J100","v":0},{"$f":"'[1]3'!L100","v":0},{"$f":"'[1]3'!N100","v":0},{"$f":"'[1]3'!N100","v":0},{"$f":"'[1]3'!Q100","v":0},{"$f":"'[1]3'!Q100","v":0},0,{"$f":"'[1]3'!T100","v":0},{"$f":"'[1]3'!T100","v":0},0,{"$f":"'[1]3'!V100","v":0},{"$f":"'[1]3'!V100","v":0},0]
[1,"EX1142",null,null,null,"Impairments and adjustments to fair value",null,null,{"$f":"SUM(I102:I103)","v":0},0,0,0,0,0,0,{"$f":"SUM(P102:P103)","v":0},{"$f":"SUM(Q102:Q103)","v":0},0,{"$f":"SUM(S102:S103)","v":0},{"$f":"SUM(T102:T103)","v":0},0,{"$f":"SUM(V102:V103)","v":0}]
[1,"EX11421",null,null,null,"Adjustments to fair value of assets",null,null,{"$f":"'[1]3'!J102","v":0},{"$f":"'[1]3'!L102","v":0},{"$f":"'[1]3'!N102","v":0},{"$f":"'[1]3'!N102","v":0},{"$f":"'[1]3'!Q102","v":0},{"$f":"'[1]3'!Q102","v":0},0,{"$f":"'[1]3'!T102","v":0},{"$f":"'[1]3'!T102","v":0},0,{"$f":"'[1]3'!V102","v":0},{"$f":"'[1]3'!V102","v":0},0]
[1,"EX11422",null,null,null,"Impairments to assets",null,null,{"$f":"'[1]3'!J103","v":0},{"$f":"'[1]3'!L103","v":0},{"$f":"'[1]3'!N103","v":0},{"$f":"'[1]3'!N103","v":0},{"$f":"'[1]3'!Q103","v":0},{"$f":"'[1]3'!Q103","v":0},0,{"$f":"'[1]3'!T103","v":0},{"$f":"'[1]3'!T103","v":0},0,{"$f":"'[1]3'!V103","v":0},{"$f":"'[1]3'!V103","v":0},0]
[1,"EX1143",null,null,null,"Other",null,null,{"$f":"'[1]3'!J104","v":0},{"$f":"'[1]3'!L104","v":0},{"$f":"'[1]3'!N104","v":0},{"$f":"'[1]3'!N104","v":0},{"$f":"'[1]3'!Q104","v":0},{"$f":"'[1]3'!Q104","v":0},0,{"$f":"'[1]3'!T104","v":0},{"$f":"'[1]3'!T104","v":0},0,{"$f":"'[1]3'!V104","v":0},{"$f":"'[1]3'!V104","v":0},0]
[1,"EX115",null,null,null,"Interest, dividends and rent on land",null,null,{"$f":"SUM(I106:I108)","v":0},0.80737999999999999,0.20787,0.20787,0.217452807,0.217452807,0,{"$f":"SUM(P106:P108)","v":0.2273469097185},{"$f":"SUM(Q106:Q108)","v":0.2273469097185},0,{"$f":"SUM(S106:S108)","v":0.2376229900377762},{"$f":"SUM(T106:T108)","v":0.2376229900377762},0,{"$f":"SUM(V106:V108)","v":0}]
[1,"EX1151",null,null,null,"Interest",null,null,{"$f":"'[1]3'!J106","v":0},{"$f":"'[1]3'!L106","v":0.80737999999999999},{"$f":"'[1]3'!N106","v":0.20787},{"$f":"'[1]3'!N106","v":0.20787},{"$f":"'[1]3'!Q106","v":0.217452807},{"$f":"'[1]3'!Q106","v":0.217452807},0,{"$f":"'[1]3'!T106","v":0.2273469097185},{"$f":"'[1]3'!T106","v":0.2273469097185},0,{"$f":"'[1]3'!V106","v":0.2376229900377762},{"$f":"'[1]3'!V106","v":0.2376229900377762},0]
[1,"EX1152",null,null,null,"Dividends",null,null,{"$f":"'[1]3'!J107","v":0},{"$f":"'[1]3'!L107","v":0},{"$f":"'[1]3'!N107","v":0},{"$f":"'[1]3'!N107","v":0},{"$f":"'[1]3'!Q107","v":0},{"$f":"'[1]3'!Q107","v":0},0,{"$f":"'[1]3'!T107","v":0},{"$f":"'[1]3'!T107","v":0},0,{"$f":"'[1]3'!V107","v":0},{"$f":"'[1]3'!V107","v":0},0]
[1,"EX1153",null,null,null,"Rent on land",null,null,{"$f":"'[1]3'!J108","v":0},{"$f":"'[1]3'!L108","v":0},{"$f":"'[1]3'!N108","v":0},{"$f":"'[1]3'!N108","v":0},{"$f":"'[1]3'!Q108","v":0},{"$f":"'[1]3'!Q108","v":0},0,{"$f":"'[1]3'!T108","v":0},{"$f":"'[1]3'!T108","v":0},0,{"$f":"'[1]3'!V108","v":0},{"$f":"'[1]3'!V108","v":0},0]
[1,"EX12",null,null,null,"Transfers and subsidies",null,null,{"$f":"SUM(I110,I121,I132:I135)","v":0},0,0,0,0,0,0,{"$f":"SUM(P110,P121,P132:P135)","v":0},{"$f":"SUM(Q110,Q121,Q132:Q135)","v":0},0,{"$f":"SUM(S110,S121,S132:S135)","v":0},{"$f":"SUM(T110,T121,T132:T135)","v":0},0,{"$f":"SUM(V110,V121,V132:V135)","v":0}]
[2,"EX121",null,null,null,"Employer Grant (SETAs only)",null,null,{"$f":"SUM(I111,I117,I120)","v":0},0,0,0,0,0,0,{"$f":"SUM(P111,P117,P120)","v":0},{"$f":"SUM(Q111,Q117,Q120)","v":0},0,{"$f":"SUM(S111,S117,S120)","v":0},{"$f":"SUM(T111,T117,T120)","v":0},0,{"$f":"SUM(V111,V117,V120)","v":0}]
[1,"EX122",null,null,null,"Other government units",null,null,{"$f":"SUM(I112:I116)","v":0},0,0,0,0,0,0,{"$f":"SUM(P112:P116)","v":0},{"$f":"SUM(Q112:Q116)","v":0},0,{"$f":"SUM(S112:S116)","v":0},{"$f":"SUM(T112:T116)","v":0},0,{"$f":"SUM(V112:V116)","v":0}]
[1,"EX1221",null,null,null,"National government",null,null,{"$f":"'[1]3'!J112","v":0},{"$f":"'[1]3'!L112","v":0},{"$f":"'[1]3'!N112","v":0},{"$f":"'[1]3'!N112","v":0},{"$f":"'[1]3'!Q112","v":0},{"$f":"'[1]3'!Q112","v":0},0,{"$f":"'[1]3'!T112","v":0},{"$f":"'[1]3'!T112","v":0},0,{"$f":"'[1]3'!V112","v":0},{"$f":"'[1]3'!V112","v":0},0]
[1,"EX1222",null,null,null,"Departmental agencies and accounts",null,null,{"$f":"'[1]3'!J113","v":0},{"$f":"'[1]3'!L113","v":0},{"$f":"'[1]3'!N113","v":0},{"$f":"'[1]3'!N113","v":0},{"$f":"'[1]3'!Q113","v":0},{"$f":"'[1]3'!Q113","v":0},0,{"$f":"'[1]3'!T113","v":0},{"$f":"'[1]3'!T113","v":0},0,{"$f":"'[1]3'!V113","v":0},{"$f":"'[1]3'!V113","v":0},0]
[1,"EX1223",null,null,null,"Provinces",null,null,{"$f":"'[1]3'!J114","v":0},{"$f":"'[1]3'!L114","v":0},{"$f":"'[1]3'!N114","v":0},{"$f":"'[1]3'!N114","v":0},{"$f":"'[1]3'!Q114","v":0},{"$f":"'[1]3'!Q114","v":0},0,{"$f":"'[1]3'!T114","v":0},{"$f":"'[1]3'!T114","v":0},0,{"$f":"'[1]3'!V114","v":0},{"$f":"'[1]3'!V114","v":0},0]
[1,"EX1224",null,null,null,"Municipalities",null,null,{"$f":"'[1]3'!J115","v":0},{"$f":"'[1]3'!L115","v":0},{"$f":"'[1]3'!N115","v":0},{"$f":"'[1]3'!N115","v":0},{"$f":"'[1]3'!Q115","v":0},{"$f":"'[1]3'!Q115","v":0},0,{"$f":"'[1]3'!T115","v":0},{"$f":"'[1]3'!T115","v":0},0,{"$f":"'[1]3'!V115","v":0},{"$f":"'[1]3'!V115","v":0},0]
[2,"EX1225",null,null,null,"National Skills Fund",null,null,{"$f":"'[1]3'!J116","v":0},{"$f":"'[1]3'!L116","v":0},{"$f":"'[1]3'!N116","v":0},{"$f":"'[1]3'!N116","v":0},{"$f":"'[1]3'!Q116","v":0},{"$f":"'[1]3'!Q116","v":0},0,{"$f":"'[1]3'!T116","v":0},{"$f":"'[1]3'!T116","v":0},0,{"$f":"'[1]3'!V116","v":0},{"$f":"'[1]3'!V116","v":0},0]
[1,"EX123",null,null,null,"Public corporations and private enterprises (subsidies and other transfers)",null,null,{"$f":"SUM(I118:I119)","v":0},0,0,0,0,0,0,{"$f":"SUM(P118:P119)","v":0},{"$f":"SUM(Q118:Q119)","v":0},0,{"$f":"SUM(S118:S119)","v":0},{"$f":"SUM(T118:T119)","v":0},0,{"$f":"SUM(V118:V119)","v":0}]
[1,"EX1231",null,null,null,"Public corporations",null,null,{"$f":"'[1]3'!J118","v":0},{"$f":"'[1]3'!L118","v":0},{"$f":"'[1]3'!N118","v":0},{"$f":"'[1]3'!N118","v":0},{"$f":"'[1]3'!Q118","v":0},{"$f":"'[1]3'!Q118","v":0},0,{"$f":"'[1]3'!T118","v":0},{"$f":"'[1]3'!T118","v":0},0,{"$f":"'[1]3'!V118","v":0},{"$f":"'[1]3'!V118","v":0},0]
[1,"EX1232",null,null,null,"Private enterprises",null,null,{"$f":"'[1]3'!J119","v":0},{"$f":"'[1]3'!L119","v":0},{"$f":"'[1]3'!N119","v":0},{"$f":"'[1]3'!N119","v":0},{"$f":"'[1]3'!Q119","v":0},{"$f":"'[1]3'!Q119","v":0},0,{"$f":"'[1]3'!T119","v":0},{"$f":"'[1]3'!T119","v":0},0,{"$f":"'[1]3'!V119","v":0},{"$f":"'[1]3'!V119","v":0},0]
[2,"EX124",null,null,null,"Households and non government units",null,null,{"$f":"'[1]3'!J120","v":0},{"$f":"'[1]3'!L120","v":0},{"$f":"'[1]3'!N120","v":0},{"$f":"'[1]3'!N120","v":0},{"$f":"'[1]3'!Q120","v":0},{"$f":"'[1]3'!Q120","v":0},0,{"$f":"'[1]3'!T120","v":0},{"$f":"'[1]3'!T120","v":0},0,{"$f":"'[1]3'!V120","v":0},{"$f":"'[1]3'!V120","v":0},0]
[2,"EX125",null,null,null,"Discretionary Grant (SETAs only)",null,null,{"$f":"SUM(I122,I128,I131)","v":0},0,0,0,0,0,0,{"$f":"SUM(P122,P128,P131)","v":0},{"$f":"SUM(Q122,Q128,Q131)","v":0},0,{"$f":"SUM(S122,S128,S131)","v":0},{"$f":"SUM(T122,T128,T131)","v":0},0,{"$f":"SUM(V122,V128,V131)","v":0}]
[2,"EX126",null,null,null,"Other government units",null,null,{"$f":"SUM(I123:I127)","v":0},0,0,0,0,0,0,{"$f":"SUM(P123:P127)","v":0},{"$f":"SUM(Q123:Q127)","v":0},0,{"$f":"SUM(S123:S127)","v":0},{"$f":"SUM(T123:T127)","v":0},0,{"$f":"SUM(V123:V127)","v":0}]
[2,"EX1261",null,null,null,"National government",null,null,{"$f":"'[1]3'!J123","v":0},{"$f":"'[1]3'!L123","v":0},{"$f":"'[1]3'!N123","v":0},{"$f":"'[1]3'!N123","v":0},{"$f":"'[1]3'!Q123","v":0},{"$f":"'[1]3'!Q123","v":0},0,{"$f":"'[1]3'!T123","v":0},{"$f":"'[1]3'!T123","v":0},0,{"$f":"'[1]3'!V123","v":0},{"$f":"'[1]3'!V123","v":0},0]
[2,"EX1262",null,null,null,"Departmental agencies and accounts",null,null,{"$f":"'[1]3'!J124","v":0},{"$f":"'[1]3'!L124","v":0},{"$f":"'[1]3'!N124","v":0},{"$f":"'[1]3'!N124","v":0},{"$f":"'[1]3'!Q124","v":0},{"$f":"'[1]3'!Q124","v":0},0,{"$f":"'[1]3'!T124","v":0},{"$f":"'[1]3'!T124","v":0},0,{"$f":"'[1]3'!V124","v":0},{"$f":"'[1]3'!V124","v":0},0]
[2,"EX1263",null,null,null,"Provinces",null,null,{"$f":"'[1]3'!J125","v":0},{"$f":"'[1]3'!L125","v":0},{"$f":"'[1]3'!N125","v":0},{"$f":"'[1]3'!N125","v":0},{"$f":"'[1]3'!Q125","v":0},{"$f":"'[1]3'!Q125","v":0},0,{"$f":"'[1]3'!T125","v":0},{"$f":"'[1]3'!T125","v":0},0,{"$f":"'[1]3'!V125","v":0},{"$f":"'[1]3'!V125","v":0},0]
[2,"EX1264",null,null,null,"Municipalities",null,null,{"$f":"'[1]3'!J126","v":0},{"$f":"'[1]3'!L126","v":0},{"$f":"'[1]3'!N126","v":0},{"$f":"'[1]3'!N126","v":0},{"$f":"'[1]3'!Q126","v":0},{"$f":"'[1]3'!Q126","v":0},0,{"$f":"'[1]3'!T126","v":0},{"$f":"'[1]3'!T126","v":0},0,{"$f":"'[1]3'!V126","v":0},{"$f":"'[1]3'!V126","v":0},0]
[2,"EX1265",null,null,null,"National Skills Fund",null,null,{"$f":"'[1]3'!J127","v":0},{"$f":"'[1]3'!L127","v":0},{"$f":"'[1]3'!N127","v":0},{"$f":"'[1]3'!N127","v":0},{"$f":"'[1]3'!Q127","v":0},{"$f":"'[1]3'!Q127","v":0},0,{"$f":"'[1]3'!T127","v":0},{"$f":"'[1]3'!T127","v":0},0,{"$f":"'[1]3'!V127","v":0},{"$f":"'[1]3'!V127","v":0},0]
[2,"EX127",null,null,null,"Public corporations and private enterprises (subsidies and other transfers)",null,null,{"$f":"SUM(I129:I130)","v":0},0,0,0,0,0,0,{"$f":"SUM(P129:P130)","v":0},{"$f":"SUM(Q129:Q130)","v":0},0,{"$f":"SUM(S129:S130)","v":0},{"$f":"SUM(T129:T130)","v":0},0,{"$f":"SUM(V129:V130)","v":0}]
[2,"EX1271",null,null,null,"Public corporations",null,null,{"$f":"'[1]3'!J129","v":0},{"$f":"'[1]3'!L129","v":0},{"$f":"'[1]3'!N129","v":0},{"$f":"'[1]3'!N129","v":0},{"$f":"'[1]3'!Q129","v":0},{"$f":"'[1]3'!Q129","v":0},0,{"$f":"'[1]3'!T129","v":0},{"$f":"'[1]3'!T129","v":0},0,{"$f":"'[1]3'!V129","v":0},{"$f":"'[1]3'!V129","v":0},{"$f":"SUM(T129-S129)","v":0}]
[2,"EX1272",null,null,null,"Private enterprises",null,null,{"$f":"'[1]3'!J130","v":0},{"$f":"'[1]3'!L130","v":0},{"$f":"'[1]3'!N130","v":0},{"$f":"'[1]3'!N130","v":0},{"$f":"'[1]3'!Q130","v":0},{"$f":"'[1]3'!Q130","v":0},0,{"$f":"'[1]3'!T130","v":0},{"$f":"'[1]3'!T130","v":0},0,{"$f":"'[1]3'!V130","v":0},{"$f":"'[1]3'!V130","v":0},0]
[2,"EX128",null,null,null,"Households and non government units",null,null,{"$f":"'[1]3'!J131","v":0},{"$f":"'[1]3'!L131","v":0},{"$f":"'[1]3'!N131","v":0},{"$f":"'[1]3'!N131","v":0},{"$f":"'[1]3'!Q131","v":0},{"$f":"'[1]3'!Q131","v":0},0,{"$f":"'[1]3'!T131","v":0},{"$f":"'[1]3'!T131","v":0},0,{"$f":"'[1]3'!V131","v":0},{"$f":"'[1]3'!V131","v":0},0]
[1,"EX129",null,null,null,"Higher education institutions",null,null,{"$f":"'[1]3'!J132","v":0},{"$f":"'[1]3'!L132","v":0},{"$f":"'[1]3'!N132","v":0},{"$f":"'[1]3'!N132","v":0},{"$f":"'[1]3'!Q132","v":0},{"$f":"'[1]3'!Q132","v":0},0,{"$f":"'[1]3'!T132","v":0},{"$f":"'[1]3'!T132","v":0},0,{"$f":"'[1]3'!V132","v":0},{"$f":"'[1]3'!V132","v":0},0]
[1,"EX130",null,null,null,"Foreign governments and international organisations ",null,null,{"$f":"'[1]3'!J133","v":0},{"$f":"'[1]3'!L133","v":0},{"$f":"'[1]3'!N133","v":0},{"$f":"'[1]3'!N133","v":0},{"$f":"'[1]3'!Q133","v":0},{"$f":"'[1]3'!Q133","v":0},0,{"$f":"'[1]3'!T133","v":0},{"$f":"'[1]3'!T133","v":0},0,{"$f":"'[1]3'!V133","v":0},{"$f":"'[1]3'!V133","v":0},0]
[1,"EX131",null,null,null,"Non-profit institutions",null,null,{"$f":"'[1]3'!J134","v":0},{"$f":"'[1]3'!L134","v":0},{"$f":"'[1]3'!N134","v":0},{"$f":"'[1]3'!N134","v":0},{"$f":"'[1]3'!Q134","v":0},{"$f":"'[1]3'!Q134","v":0},0,{"$f":"'[1]3'!T134","v":0},{"$f":"'[1]3'!T134","v":0},0,{"$f":"'[1]3'!V134","v":0},{"$f":"'[1]3'!V134","v":0},0]
[1,"EX132",null,null,null,"Households",null,null,{"$f":"SUM(I136:I137)","v":0},0,0,0,0,0,{"$f":"SUM(N135-M135)","v":0},{"$f":"SUM(P136:P137)","v":0},{"$f":"SUM(Q136:Q137)","v":0},{"$f":"SUM(Q135-P135)","v":0},{"$f":"SUM(S136:S137)","v":0},{"$f":"SUM(T136:T137)","v":0},{"$f":"SUM(T135-S135)","v":0},{"$f":"SUM(V136:V137)","v":0}]
[1,"EX1301",null,null,null,"Social benefits ",null,null,{"$f":"'[1]3'!J136","v":0},{"$f":"'[1]3'!L136","v":0},{"$f":"'[1]3'!N136","v":0},{"$f":"'[1]3'!N136","v":0},{"$f":"'[1]3'!Q136","v":0},{"$f":"'[1]3'!Q136","v":0},0,{"$f":"'[1]3'!T136","v":0},{"$f":"'[1]3'!T136","v":0},0,{"$f":"'[1]3'!V136","v":0},{"$f":"'[1]3'!V136","v":0},0]
[1,"EX1302",null,null,null,"Other transfers to households",null,null,{"$f":"'[1]3'!J137","v":0},{"$f":"'[1]3'!L137","v":0},{"$f":"'[1]3'!N137","v":0},{"$f":"'[1]3'!N137","v":0},{"$f":"'[1]3'!Q137","v":0},{"$f":"'[1]3'!Q137","v":0},0,{"$f":"'[1]3'!T137","v":0},{"$f":"'[1]3'!T137","v":0},0,{"$f":"'[1]3'!V137","v":0},{"$f":"'[1]3'!V137","v":0},0]
[1,"EX13",null,null,null,"Tax payment",null,null,{"$f":"'[1]3'!J138","v":0},{"$f":"'[1]3'!L138","v":0},{"$f":"'[1]3'!N138","v":0},{"$f":"'[1]3'!N138","v":0},{"$f":"'[1]3'!Q138","v":0},{"$f":"'[1]3'!Q138","v":0},0,{"$f":"'[1]3'!T138","v":0},{"$f":"'[1]3'!T138","v":0},0,{"$f":"'[1]3'!V138","v":0},{"$f":"'[1]3'!V138","v":0},0]
[1,"EX14",null,null,null,"Outside shareholders Interest",null,null,{"$f":"'[1]3'!J139","v":0},{"$f":"'[1]3'!L139","v":0},{"$f":"'[1]3'!N139","v":0},{"$f":"'[1]3'!N139","v":0},{"$f":"'[1]3'!Q139","v":0},{"$f":"'[1]3'!Q139","v":0},0,{"$f":"'[1]3'!T139","v":0},{"$f":"'[1]3'!T139","v":0},0,{"$f":"'[1]3'!V139","v":0},{"$f":"'[1]3'!V139","v":0},0]
[1,"EX15",null,null,null,"Total Expenditure",null,null,{"$f":"SUM(I39,I109,I138:I139)","v":2241247.7976299999},2547801.5585699994,2749763.8667199998,2749763.8667199998,2950376.3035165197,2950376.3035165197,0,{"$f":"SUM(P39,P109,P138:P139)","v":3175778.7227006108},{"$f":"SUM(Q39,Q109,Q138:Q139)","v":3175778.7227006108},0,{"$f":"SUM(S39,S109,S138:S139)","v":3420158.0628184988},{"$f":"SUM(T39,T109,T138:T139)","v":3420158.0628184988},0,{"$f":"SUM(V39,V109,V138:V139)","v":0}]
[1]
[1,null,null,null,null,"Objective less Expenditure",null,null,{"$f":"ROUND(IF(I37-I140>0,IF(I37-I140<1,0,I37-I140),I37-I140),0)","v":0},0,null,0,0,0,{"$f":"ROUND(IF(O37-O140>0,IF(O37-O140<1,0,O37-O140),O37-O140),0)","v":0},0,0,0,0,0,0,0]
[1]

{"sheet":"4","index":8,"n_rows":143,"n_cols":23,"rows_kept":143,"cut":false,"hidden":false,"merged":[[31,15,31,17],[31,18,31,20],[31,12,31,14],[31,10,31,11]]}
[]
[]
[]
[]
[]
[null,null,null,null,null,"PE No",{"$f":"Settings!O2","v":"PE126"}]
[null,null,null,null,null,"Entity name",{"$f":"Settings!$E$2","v":"South African Revenue Service"}]
[]
[null,null,null,null,null,"Performance and operations information"]
["ItemCat","Item code","Hide/unhide",null,null,"Activity/Output/Outcome/Efficiency Indicator","MTDP Outcomes",null,{"$f":"MyYearM3","v":"2022/23"},{"$f":"MyYearM2","v":"2023/24"},{"$f":"MyYearM1","v":"2024/25"},{"$f":"MyYear0","v":"2025/26"},{"$f":"MyYearP1","v":"2026/27"},{"$f":"MyYearP2","v":"2027/28"},{"$f":"MyYearP3","v":"2028/29"},"Related Objectives","Add to 'Performance Indicators' Sheet","Comments"]
[1,null,null,null,null,{"$f":"'[1]4'!F11","v":"% of complainants understanding the recommendations made"},{"$f":"'[1]4'!G11","v":"Outcome 10: Reduced poverty and improved livelihoods"},0,{"$f":"'[1]4'!J11","v":0},{"$f":"'[1]4'!K11","v":0},{"$f":"'[1]4'!L11","v":0},{"$f":"'[1]4'!M11","v":0},{"$f":"'[1]4'!N11","v":0},{"$f":"'[1]4'!O11","v":0},null,{"$f":"'[1]4'!P11","v":"Office of the Tax Ombud"},{"$f":"'[1]4'!Q11","v":"No"},{"$f":"'[1]4'!R11","v":0}]
[1,null,null,null,null,{"$f":"'[1]4'!F12","v":"% of cases evaluated and reviewed within agreed turnaround time od 5 days after capturing"},{"$f":"'[1]4'!G12","v":"Outcome 10: Reduced poverty and improved livelihoods"},0,{"$f":"'[1]4'!J12","v":0},{"$f":"'[1]4'!K12","v":0},{"$f":"'[1]4'!L12","v":0},{"$f":"'[1]4'!M12","v":0},{"$f":"'[1]4'!N12","v":0},{"$f":"'[1]4'!O12","v":0},null,{"$f":"'[1]4'!P12","v":"Office of the Tax Ombud"},{"$f":"'[1]4'!Q12","v":"No"},{"$f":"'[1]4'!R12","v":0}]
[1,null,null,null,null,{"$f":"'[1]4'!F13","v":"% of recommendations sent to SARS within 3 days of reviewing a complaint."},{"$f":"'[1]4'!G13","v":"Outcome 10: Reduced poverty and improved livelihoods"},0,{"$f":"'[1]4'!J13","v":0},{"$f":"'[1]4'!K13","v":0},{"$f":"'[1]4'!L13","v":0},{"$f":"'[1]4'!M13","v":0},{"$f":"'[1]4'!N13","v":0},{"$f":"'[1]4'!O13","v":0},null,{"$f":"'[1]4'!P13","v":"Office of the Tax Ombud"},{"$f":"'[1]4'!Q13","v":"No"},{"$f":"'[1]4'!R13","v":0}]
[1,null,null,null,null,{"$f":"'[1]4'!F14","v":"Average cost reduction per complaint, year on year."},{"$f":"'[1]4'!G14","v":"Outcome 10: Reduced poverty and improved livelihoods"},0,{"$f":"'[1]4'!J14","v":0},{"$f":"'[1]4'!K14","v":0},{"$f":"'[1]4'!L14","v":0},{"$f":"'[1]4'!M14","v":0},{"$f":"'[1]4'!N14","v":0},{"$f":"'[1]4'!O14","v":0},null,{"$f":"'[1]4'!P14","v":"Office of the Tax Ombud"},{"$f":"'[1]4'!Q14","v":"No"},{"$f":"'[1]4'!R14","v":0}]
[1,null,null,null,null,{"$f":"'[1]4'!F15","v":"Zero governance audit findings"},{"$f":"'[1]4'!G15","v":"Outcome 10: Reduced poverty and improved livelihoods"},0,{"$f":"'[1]4'!J15","v":0},{"$f":"'[1]4'!K15","v":0},{"$f":"'[1]4'!L15","v":0},{"$f":"'[1]4'!M15","v":0},{"$f":"'[1]4'!N15","v":0},{"$f":"'[1]4'!O15","v":0},null,{"$f":"'[1]4'!P15","v":"Office of the Tax Ombud"},{"$f":"'[1]4'!Q15","v":"No"},{"$f":"'[1]4'!R15","v":0}]
[1,null,null,null,null,{"$f":"'[1]4'!F16","v":"% of staff assessed against performance measures"},{"$f":"'[1]4'!G16","v":"Outcome 10: Reduced poverty and improved livelihoods"},0,{"$f":"'[1]4'!J16","v":0},{"$f":"'[1]4'!K16","v":0},{"$f":"'[1]4'!L16","v":0},{"$f":"'[1]4'!M16","v":0},{"$f":"'[1]4'!N16","v":0},{"$f":"'[1]4'!O16","v":0},null,{"$f":"'[1]4'!P16","v":"Office of the Tax Ombud"},{"$f":"'[1]4'!Q16","v":"No"},{"$f":"'[1]4'!R16","v":0}]
[1,null,null,null,null,{"$f":"'[1]4'!F17","v":"Positive brand recognition"},{"$f":"'[1]4'!G17","v":"Outcome 10: Reduced poverty and improved livelihoods"},0,{"$f":"'[1]4'!J17","v":0},{"$f":"'[1]4'!K17","v":0},{"$f":"'[1]4'!L17","v":0},{"$f":"'[1]4'!M17","v":0},{"$f":"'[1]4'!N17","v":0},{"$f":"'[1]4'!O17","v":0},null,{"$f":"'[1]4'!P17","v":"Office of the Tax Ombud"},{"$f":"'[1]4'!Q17","v":"No"},{"$f":"'[1]4'!R17","v":0}]
[1,null,null,null,null,{"$f":"'[1]4'!F18","v":"Number of communications and outreach activities"},{"$f":"'[1]4'!G18","v":"Outcome 10: Reduced poverty and improved livelihoods"},0,{"$f":"'[1]4'!J18","v":0},{"$f":"'[1]4'!K18","v":0},{"$f":"'[1]4'!L18","v":0},{"$f":"'[1]4'!M18","v":0},{"$f":"'[1]4'!N18","v":0},{"$f":"'[1]4'!O18","v":0},null,{"$f":"'[1]4'!P18","v":"Office of the Tax Ombud"},{"$f":"'[1]4'!Q18","v":"No"},{"$f":"'[1]4'!R18","v":0}]
[1,null,null,null,null,{"$f":"'[1]4'!F19","v":"Number of engagements/collaboration with key stakeholders"},{"$f":"'[1]4'!G19","v":"Outcome 10: Reduced poverty and improved livelihoods"},0,{"$f":"'[1]4'!J19","v":0},{"$f":"'[1]4'!K19","v":0},{"$f":"'[1]4'!L19","v":0},{"$f":"'[1]4'!M19","v":0},{"$f":"'[1]4'!N19","v":0},{"$f":"'[1]4'!O19","v":0},null,{"$f":"'[1]4'!P19","v":"Office of the Tax Ombud"},{"$f":"'[1]4'!Q19","v":"No"},{"$f":"'[1]4'!R19","v":0}]
[1,null,null,null,null,{"$f":"'[1]4'!F20","v":"MOU signed off by both parties"},{"$f":"'[1]4'!G20","v":"Outcome 10: Reduced poverty and improved livelihoods"},0,{"$f":"'[1]4'!J20","v":0},{"$f":"'[1]4'!K20","v":0},{"$f":"'[1]4'!L20","v":0},{"$f":"'[1]4'!M20","v":0},{"$f":"'[1]4'!N20","v":0},{"$f":"'[1]4'!O20","v":0},null,{"$f":"'[1]4'!P20","v":"Office of the Tax Ombud"},{"$f":"'[1]4'!Q20","v":"No"},{"$f":"'[1]4'!R20","v":0}]
[1,null,null,null,null,{"$f":"'[1]4'!F21","v":"Number of deviations from the MOU"},{"$f":"'[1]4'!G21","v":"Outcome 10: Reduced poverty and improved livelihoods"},0,{"$f":"'[1]4'!J21","v":0},{"$f":"'[1]4'!K21","v":0},{"$f":"'[1]4'!L21","v":0},{"$f":"'[1]4'!M21","v":0},{"$f":"'[1]4'!N21","v":0},{"$f":"'[1]4'!O21","v":0},null,{"$f":"'[1]4'!P21","v":"Office of the Tax Ombud"},{"$f":"'[1]4'!Q21","v":"No"},{"$f":"'[1]4'!R21","v":0}]
[1,null,null,null,null,{"$f":"'[1]4'!F22","v":"Employee Culture Survey - score benchmarked"},{"$f":"'[1]4'!G22","v":"Outcome 10: Reduced poverty and improved livelihoods"},0,{"$f":"'[1]4'!J22","v":0},{"$f":"'[1]4'!K22","v":0},{"$f":"'[1]4'!L22","v":0},{"$f":"'[1]4'!M22","v":0},{"$f":"'[1]4'!N22","v":0},{"$f":"'[1]4'!O22","v":0},null,{"$f":"'[1]4'!P22","v":"Office of the Tax Ombud"},{"$f":"'[1]4'!Q22","v":"No"},{"$f":"'[1]4'!R22","v":0}]
[1,null,null,null,null,{"$f":"'[1]4'!F23","v":0},{"$f":"'[1]4'!G23","v":0},0,{"$f":"'[1]4'!J23","v":0},{"$f":"'[1]4'!K23","v":0},{"$f":"'[1]4'!L23","v":0},{"$f":"'[1]4'!M23","v":0},{"$f":"'[1]4'!N23","v":0},{"$f":"'[1]4'!O23","v":0},null,{"$f":"'[1]4'!P23","v":0},{"$f":"'[1]4'!Q23","v":0},{"$f":"'[1]4'!R23","v":0}]
[1,null,null,null,null,{"$f":"'[1]4'!F24","v":0},{"$f":"'[1]4'!G24","v":0},0,{"$f":"'[1]4'!J24","v":0},{"$f":"'[1]4'!K24","v":0},{"$f":"'[1]4'!L24","v":0},{"$f":"'[1]4'!M24","v":0},{"$f":"'[1]4'!N24","v":0},{"$f":"'[1]4'!O24","v":0},null,{"$f":"'[1]4'!P24","v":0},{"$f":"'[1]4'!Q24","v":0},{"$f":"'[1]4'!R24","v":0}]
[1,null,null,null,null,{"$f":"'[1]4'!F25","v":0},{"$f":"'[1]4'!G25","v":0},0,{"$f":"'[1]4'!J25","v":0},{"$f":"'[1]4'!K25","v":0},{"$f":"'[1]4'!L25","v":0},{"$f":"'[1]4'!M25","v":0},{"$f":"'[1]4'!N25","v":0},{"$f":"'[1]4'!O25","v":0},null,{"$f":"'[1]4'!P25","v":0},{"$f":"'[1]4'!Q25","v":0},{"$f":"'[1]4'!R25","v":0}]
[1,null,null,null,null,"Notes:"]
[1,null,null,null,null,"Performance indicators are an explanation of objectives performance.   "]
[1,null,null,null,null,"1. They are specific measurements that track progress towards achieving the goals and objectives of an institution."]
[1,null,null,null,null,"2. Institutions should use performance indicators in the 2024/25 Annual Performance Plans and those in the 2025 ENE. "]
[1,null,null,null,null,"3. Institutions should also indicate instances where targets are not affected by budget baseline reprioritisation."]
[1]
[1,null,null,null,null,null,null,null,{"$f":"MyYearM3","v":"2022/23"},{"$f":"MyYearM2","v":"2023/24"},{"$f":"MyYearM1","v":"2024/25"},null,{"$f":"MyYear0","v":"2025/26"},null,null,{"$f":"MyYearP1","v":"2026/27"},null,null,{"$f":"MyYearP2","v":"2027/28"},null,null,{"$f":"MyYearP3","v":"2028/29"}]
[1,null,null,null,null,"Expenses",null,null,{"$f":"Hist_year3RestatedAudited","v":"Audited\noutcome"},{"$f":"Hist_year2RestatedAudited","v":"Audited\noutcome"},{"$f":"Hist_year1Budget","v":"Budget"},{"$f":"Hist_year1Audited","v":"Audited\noutcome"},{"$f":"Cur_YearBudgEst","v":"Budget\nestimate"},{"$f":"Cur_YearApprovedBudg","v":"Approved budget"},{"$f":"Cur_YearChangeFrRevBudg","v":"Changes from \nbudget estimate"},{"$f":"MTEF1BudgEst","v":"Budget\nestimate"},{"$f":"MTEF1RevBudgEst","v":"Revised\nbudget\nestimate"},{"$f":"MTEF1_ChangeFrBudgEst","v":"Changes from budget estimate"},{"$f":"MTEF2BudgEst","v":"Budget\nestimate"},{"$f":"MTEF2RevBudgEst","v":"Revised\nbudget\nestimate"},{"$f":"MTEF2_ChangeFrBudgEst","v":"Changes from budget estimate"},{"$f":"MTEF3PlanBudgetEst","v":"Planning\nbudget \nestimate"}]
[1]
[1,null,null,null,null,"Rand thousand"]
[1,null,null,null,null,"Objective/Activity"]
[1,null,null,null,null,{"$f":"'[1]4'!F37","v":"Office of the Tax Ombud "},null,null,{"$f":"'[1]4'!J37","v":48073.455640000007},{"$f":"'[1]4'!L37","v":51576.357839999997},{"$f":"'[1]4'!N37","v":57733.000909999995},{"$f":"'[1]4'!N37","v":57733.000909999995},{"$f":"'[1]4'!Q37","v":55940.631806631995},{"$f":"'[1]4'!Q37","v":55940.631806631995},{"$f":"SUM(N37-M37)","v":0},{"$f":"'[1]4'!T37","v":58503.890162754855},{"$f":"'[1]4'!T37","v":58503.890162754855},{"$f":"SUM(Q37-P37)","v":0},{"$f":"'[1]4'!V37","v":61150.638083940947},{"$f":"'[1]4'!V37","v":61150.638083940947},{"$f":"SUM(T37-S37)","v":0}]
[1,null,null,null,null,"Economic classification"]
[1,"EX11",null,null,null,"Current payments",null,null,{"$f":"SUM(I40,I43,I98:I99,I105)","v":48072.96074000001},51576.357839999997,57733.000909999995,57733.000909999995,55940.631806631995,55940.631806631995,{"$f":"SUM(N39-M39)","v":0},{"$f":"SUM(P40,P43,P98:P99,P105)","v":58503.890162754855},{"$f":"SUM(Q40,Q43,Q98:Q99,Q105)","v":58503.890162754855},{"$f":"SUM(Q39-P39)","v":0},{"$f":"SUM(S40,S43,S98:S99,S105)","v":61150.638083940947},{"$f":"SUM(T40,T43,T98:T99,T105)","v":61150.638083940947},{"$f":"SUM(T39-S39)","v":0},{"$f":"SUM(V40,V43,V98:V99,V105)","v":0}]
[1,"EX111",null,null,null,"Compensation of employees",null,null,{"$f":"SUM(I41:I42)","v":41885.195410000008},44772.117610000001,42929.50733,42929.50733,39966.736545740001,39966.736545740001,{"$f":"SUM(N40-M40)","v":0},{"$f":"SUM(P41:P42)","v":41295.026558571175},{"$f":"SUM(Q41:Q42)","v":41295.026558571175},{"$f":"SUM(Q40-P40)","v":0},{"$f":"SUM(S41:S42)","v":42601.224559018585},{"$f":"SUM(T41:T42)","v":42601.224559018585},{"$f":"SUM(T40-S40)","v":0},{"$f":"SUM(V41:V42)","v":0}]
[1,"EX1111",null,null,null,"Salaries and wages",null,null,{"$f":"'[1]4'!J41","v":36621.428970000008},{"$f":"'[1]4'!L41","v":38864.538280000001},{"$f":"'[1]4'!N41","v":37185.247900000002},{"$f":"'[1]4'!N41","v":37185.247900000002},{"$f":"'[1]4'!Q41","v":33957.666756017003},{"$f":"'[1]4'!Q41","v":33957.666756017003},{"$f":"SUM(N41-M41)","v":0},{"$f":"'[1]4'!T41","v":35012.544093415781},{"$f":"'[1]4'!T41","v":35012.544093415781},{"$f":"SUM(Q41-P41)","v":0},{"$f":"'[1]4'!V41","v":36034.773886438161},{"$f":"'[1]4'!V41","v":36034.773886438161},{"$f":"SUM(T41-S41)","v":0}]
[1,"EX1112",null,null,null,"Social contributions",null,null,{"$f":"'[1]4'!J42","v":5263.7664399999994},{"$f":"'[1]4'!L42","v":5907.5793299999996},{"$f":"'[1]4'!N42","v":5744.2594300000001},{"$f":"'[1]4'!N42","v":5744.2594300000001},{"$f":"'[1]4'!Q42","v":6009.0697897230002},{"$f":"'[1]4'!Q42","v":6009.0697897230002},{"$f":"SUM(N42-M42)","v":0},{"$f":"'[1]4'!T42","v":6282.4824651553972},{"$f":"'[1]4'!T42","v":6282.4824651553972},{"$f":"SUM(Q42-P42)","v":0},{"$f":"'[1]4'!V42","v":6566.4506725804213},{"$f":"'[1]4'!V42","v":6566.4506725804213},{"$f":"SUM(T42-S42)","v":0}]
[1,"EX112",null,null,null,"Goods and services",null,null,{"$f":"SUM(I45:I54,I58:I61,I73,I75:I97)","v":6187.7653299999993},{"$f":"SUM(J45:J54,J58:J61,J73,J75:J97)","v":6803.8931099999973},{"$f":"SUM(K45:K54,K58:K61,K73,K75:K97)","v":14803.384709999998},14803.384709999998,15973.781371984996,15973.781371984996,0,17208.744533331414,17208.744533331414,0,18549.289072067571,18549.289072067571,0,0,{"$f":"SUM(W45:W54,W58:W61,W73,W75:W97)","v":0}]
[1,"EX000",null,null,null,"Of which 1"]
[1,"EX1133",null,null,null,"Administrative fees",null,null,{"$f":"'[1]4'!J45","v":0},{"$f":"'[1]4'!L45","v":0},{"$f":"'[1]4'!N45","v":0},{"$f":"'[1]4'!N45","v":0},{"$f":"'[1]4'!Q45","v":0},{"$f":"'[1]4'!Q45","v":0},{"$f":"SUM(N45-M45)","v":0},{"$f":"'[1]4'!T45","v":0},{"$f":"'[1]4'!T45","v":0},{"$f":"SUM(Q45-P45)","v":0},{"$f":"'[1]4'!V45","v":0},{"$f":"'[1]4'!V45","v":0},{"$f":"SUM(T45-S45)","v":0}]
[1,"EX1134",null,null,null,"Advertising",null,null,{"$f":"'[1]4'!J46","v":2287.8978499999998},{"$f":"'[1]4'!L46","v":1852.36716},{"$f":"'[1]4'!N46","v":3333.74127},{"$f":"'[1]4'!N46","v":3333.74127},{"$f":"'[1]4'!Q46","v":3487.4267425469998},{"$f":"'[1]4'!Q46","v":3487.4267425469998},0,{"$f":"'[1]4'!T46","v":3646.1046593328883},{"$f":"'[1]4'!T46","v":3646.1046593328883},0,{"$f":"'[1]4'!V46","v":3810.9085899347351},{"$f":"'[1]4'!V46","v":3810.9085899347351},0]
[1,"EX1135",null,null,null,"Minor assets",null,null,{"$f":"'[1]4'!J47","v":0},{"$f":"'[1]4'!L47","v":11.997999999999999},{"$f":"'[1]4'!N47","v":140},{"$f":"'[1]4'!N47","v":140},{"$f":"'[1]4'!Q47","v":146.72},{"$f":"'[1]4'!Q47","v":146.72},0,{"$f":"'[1]4'!T47","v":153.76256000000001},{"$f":"'[1]4'!T47","v":153.76256000000001},0,{"$f":"'[1]4'!V47","v":161.14316288000001},{"$f":"'[1]4'!V47","v":161.14316288000001},0]
[1,"EX1136",null,null,null,"Audit costs: External",null,null,{"$f":"'[1]4'!J48","v":300.19346999999999},{"$f":"'[1]4'!L48","v":311.60836999999998},{"$f":"'[1]4'!N48","v":411.54165},{"$f":"'[1]4'!N48","v":411.54165},{"$f":"'[1]4'!Q48","v":430.51372006500003},{"$f":"'[1]4'!Q48","v":430.51372006500003},0,{"$f":"'[1]4'!T48","v":450.1020943279575},{"$f":"'[1]4'!T48","v":450.1020943279575},0,{"$f":"'[1]4'!V48","v":470.4467089915812},{"$f":"'[1]4'!V48","v":470.4467089915812},0]
[1,"EX1139",null,null,null,"Bursaries: Employees",null,null,{"$f":"'[1]4'!J49","v":559.21579999999994},{"$f":"'[1]4'!L49","v":178.87288000000001},{"$f":"'[1]4'!N49","v":354.99999000000003},{"$f":"'[1]4'!N49","v":354.99999000000003},{"$f":"'[1]4'!Q49","v":371.36548953900001},{"$f":"'[1]4'!Q49","v":371.36548953900001},0,{"$f":"'[1]4'!T49","v":388.26261931302452},{"$f":"'[1]4'!T49","v":388.26261931302452},0,{"$f":"'[1]4'!V49","v":405.81208970597322},{"$f":"'[1]4'!V49","v":405.81208970597322},0]
[1,"EX1140",null,null,null,"Catering: Internal activities",null,null,{"$f":"'[1]4'!J50","v":2.1920999999999999},{"$f":"'[1]4'!L50","v":63.952599999999997},{"$f":"'[1]4'!N50","v":53.000039999999998},{"$f":"'[1]4'!N50","v":53.000039999999998},{"$f":"'[1]4'!Q50","v":55.443341843999995},{"$f":"'[1]4'!Q50","v":55.443341843999995},0,{"$f":"'[1]4'!T50","v":57.966013897901995},{"$f":"'[1]4'!T50","v":57.966013897901995},0,{"$f":"'[1]4'!V50","v":60.586077726087161},{"$f":"'[1]4'!V50","v":60.586077726087161},0]
[1,"EX1122",null,null,null,"Communication (G&S)",null,null,{"$f":"'[1]4'!J51","v":254.17188999999999},{"$f":"'[1]4'!L51","v":444.32177999999999},{"$f":"'[1]4'!N51","v":361.90878999999995},{"$f":"'[1]4'!N51","v":361.90878999999995},{"$f":"'[1]4'!Q51","v":397.21031846099999},{"$f":"'[1]4'!Q51","v":397.21031846099999},0,{"$f":"'[1]4'!T51","v":435.99064431197547},{"$f":"'[1]4'!T51","v":435.99064431197547},0,{"$f":"'[1]4'!V51","v":478.60078681911682},{"$f":"'[1]4'!V51","v":478.60078681911682},0]
[1,"EX1123",null,null,null,"Computer services",null,null,{"$f":"'[1]4'!J52","v":2327.93057},{"$f":"'[1]4'!L52","v":3035.4343899999999},{"$f":"'[1]4'!N52","v":8278.2291999999998},{"$f":"'[1]4'!N52","v":8278.2291999999998},{"$f":"'[1]4'!Q52","v":9106.0521200000003},{"$f":"'[1]4'!Q52","v":9106.0521200000003},0,{"$f":"'[1]4'!T52","v":10016.657331999999},{"$f":"'[1]4'!T52","v":10016.657331999999},0,{"$f":"'[1]4'!V52","v":11018.3230652},{"$f":"'[1]4'!V52","v":11018.3230652},0]
[1,"EX1124",null,null,null,"Consultants: Business and advisory services",null,null,{"$f":"'[1]4'!J53","v":0},{"$f":"'[1]4'!L53","v":0},{"$f":"'[1]4'!N53","v":303.92},{"$f":"'[1]4'!N53","v":303.92},{"$f":"'[1]4'!Q53","v":317.93071200000003},{"$f":"'[1]4'!Q53","v":317.93071200000003},0,{"$f":"'[1]4'!T53","v":332.39655939600004},{"$f":"'[1]4'!T53","v":332.39655939600004},0,{"$f":"'[1]4'!V53","v":347.42088388069925},{"$f":"'[1]4'!V53","v":347.42088388069925},0]
[1,"EX1180",null,null,null,"Infrastructure and planning services",null,null,{"$f":"SUM(I55:I57)","v":0},0,0,0,0,0,{"$f":"SUM(N54-M54)","v":0},{"$f":"SUM(P55:P57)","v":0},{"$f":"SUM(Q55:Q57)","v":0},{"$f":"SUM(Q54-P54)","v":0},{"$f":"SUM(S55:S57)","v":0},{"$f":"SUM(T55:T57)","v":0},{"$f":"SUM(T54-S54)","v":0},{"$f":"SUM(V55:V57)","v":0}]
[1,"EX11801",null,null,null,"Maintenance and repairs: Buildings: Consultants",null,null,{"$f":"'[1]4'!J55","v":0},{"$f":"'[1]4'!L55","v":0},{"$f":"'[1]4'!N55","v":0},{"$f":"'[1]4'!N55","v":0},{"$f":"'[1]4'!Q55","v":0},{"$f":"'[1]4'!Q55","v":0},{"$f":"SUM(N55-M55)","v":0},{"$f":"'[1]4'!T55","v":0},{"$f":"'[1]4'!T55","v":0},{"$f":"SUM(Q55-P55)","v":0},{"$f":"'[1]4'!V55","v":0},{"$f":"'[1]4'!V55","v":0},0]
[1,"EX11802",null,null,null,"Maintenance and repairs: Other fixed structures: Consultants",null,null,{"$f":"'[1]4'!J56","v":0},{"$f":"'[1]4'!L56","v":0},{"$f":"'[1]4'!N56","v":0},{"$f":"'[1]4'!N56","v":0},{"$f":"'[1]4'!Q56","v":0},{"$f":"'[1]4'!Q56","v":0},0,{"$f":"'[1]4'!T56","v":0},{"$f":"'[1]4'!T56","v":0},0,{"$f":"'[1]4'!V56","v":0},{"$f":"'[1]4'!V56","v":0},0]
[1,"EX11803",null,null,null,"Other",null,null,{"$f":"'[1]4'!J57","v":0},{"$f":"'[1]4'!L57","v":0},{"$f":"'[1]4'!N57","v":0},{"$f":"'[1]4'!N57","v":0},{"$f":"'[1]4'!Q57","v":0},{"$f":"'[1]4'!Q57","v":0},0,{"$f":"'[1]4'!T57","v":0},{"$f":"'[1]4'!T57","v":0},0,{"$f":"'[1]4'!V57","v":0},{"$f":"'[1]4'!V57","v":0},0]
[1,"EX1164",null,null,null,"Laboratory services",null,null,{"$f":"'[1]4'!J58","v":0},{"$f":"'[1]4'!L58","v":0},{"$f":"'[1]4'!N58","v":0},{"$f":"'[1]4'!N58","v":0},{"$f":"'[1]4'!Q58","v":0},{"$f":"'[1]4'!Q58","v":0},0,{"$f":"'[1]4'!T58","v":0},{"$f":"'[1]4'!T58","v":0},0,{"$f":"'[1]4'!V58","v":0},{"$f":"'[1]4'!V58","v":0},0]
[1,"EX1162",null,null,null,"Legal services (G&S)",null,null,{"$f":"'[1]4'!J59","v":0},{"$f":"'[1]4'!L59","v":0},{"$f":"'[1]4'!N59","v":0},{"$f":"'[1]4'!N59","v":0},{"$f":"'[1]4'!Q59","v":0},{"$f":"'[1]4'!Q59","v":0},0,{"$f":"'[1]4'!T59","v":0},{"$f":"'[1]4'!T59","v":0},0,{"$f":"'[1]4'!V59","v":0},{"$f":"'[1]4'!V59","v":0},0]
[1,"EX1165",null,null,null,"Science and technological services",null,null,{"$f":"'[1]4'!J60","v":0},{"$f":"'[1]4'!L60","v":0},{"$f":"'[1]4'!N60","v":0},{"$f":"'[1]4'!N60","v":0},{"$f":"'[1]4'!Q60","v":0},{"$f":"'[1]4'!Q60","v":0},0,{"$f":"'[1]4'!T60","v":0},{"$f":"'[1]4'!T60","v":0},0,{"$f":"'[1]4'!V60","v":0},{"$f":"'[1]4'!V60","v":0},0]
[1,"EX1125",null,null,null,"Contractors",null,null,{"$f":"SUM(I62:I66,I72)","v":0},0,0,0,0,0,{"$f":"SUM(N61-M61)","v":0},{"$f":"SUM(P62:P66,P72)","v":0},{"$f":"SUM(Q62:Q66,Q72)","v":0},{"$f":"SUM(Q61-P61)","v":0},{"$f":"SUM(S62:S66,S72)","v":0},{"$f":"SUM(T62:T66,T72)","v":0},0,{"$f":"SUM(V62:V66,V72)","v":0}]
[1,"EX11251",null,null,null,"Maintenance and repairs of other fixed structures",null,null,{"$f":"'[1]4'!J62","v":0},{"$f":"'[1]4'!L62","v":0},{"$f":"'[1]4'!N62","v":0},{"$f":"'[1]4'!N62","v":0},{"$f":"'[1]4'!Q62","v":0},{"$f":"'[1]4'!Q62","v":0},0,{"$f":"'[1]4'!T62","v":0},{"$f":"'[1]4'!T62","v":0},0,{"$f":"'[1]4'!V62","v":0},{"$f":"'[1]4'!V62","v":0},0]
[1,"EX11252",null,null,null,"Maintenance and repairs of other machinery and equipment",null,null,{"$f":"'[1]4'!J63","v":0},{"$f":"'[1]4'!L63","v":0},{"$f":"'[1]4'!N63","v":0},{"$f":"'[1]4'!N63","v":0},{"$f":"'[1]4'!Q63","v":0},{"$f":"'[1]4'!Q63","v":0},0,{"$f":"'[1]4'!T63","v":0},{"$f":"'[1]4'!T63","v":0},0,{"$f":"'[1]4'!V63","v":0},{"$f":"'[1]4'!V63","v":0},0]
[1,"EX11253",null,null,null,"Maintenance and repairs of heritage buildings",null,null,{"$f":"'[1]4'!J64","v":0},{"$f":"'[1]4'!L64","v":0},{"$f":"'[1]4'!N64","v":0},{"$f":"'[1]4'!N64","v":0},{"$f":"'[1]4'!Q64","v":0},{"$f":"'[1]4'!Q64","v":0},0,{"$f":"'[1]4'!T64","v":0},{"$f":"'[1]4'!T64","v":0},0,{"$f":"'[1]4'!V64","v":0},{"$f":"'[1]4'!V64","v":0},0]
[1,"EX11254",null,null,null,"Maintenance and repairs of other heritage fixed structures",null,null,{"$f":"'[1]4'!J65","v":0},{"$f":"'[1]4'!L65","v":0},{"$f":"'[1]4'!N65","v":0},{"$f":"'[1]4'!N65","v":0},{"$f":"'[1]4'!Q65","v":0},{"$f":"'[1]4'!Q65","v":0},0,{"$f":"'[1]4'!T65","v":0},{"$f":"'[1]4'!T65","v":0},0,{"$f":"'[1]4'!V65","v":0},{"$f":"'[1]4'!V65","v":0},0]
[5,"EX11255",null,null,null,"South african social security agency payment contractors",null,null,{"$f":"SUM(I67:I71)","v":0},0,0,0,0,0,0,{"$f":"SUM(P67:P71)","v":0},{"$f":"SUM(Q67:Q71)","v":0},0,{"$f":"SUM(S67:S71)","v":0},{"$f":"SUM(T67:T71)","v":0},0,{"$f":"SUM(V67:V71)","v":0}]
[5,"EX112551",null,null,null,"SASSA Admin fees",null,null,{"$f":"'[1]4'!J67","v":0},{"$f":"'[1]4'!L67","v":0},{"$f":"'[1]4'!N67","v":0},{"$f":"'[1]4'!N67","v":0},{"$f":"'[1]4'!Q67","v":0},{"$f":"'[1]4'!Q67","v":0},{"$f":"SUM(N67-M67)","v":0},{"$f":"'[1]4'!T67","v":0},{"$f":"'[1]4'!T67","v":0},{"$f":"SUM(Q67-P67)","v":0},{"$f":"'[1]4'!V67","v":0},{"$f":"'[1]4'!V67","v":0},{"$f":"SUM(T67-S67)","v":0}]
[5,"EX112552",null,null,null,"SASSA Bankcard fees",null,null,{"$f":"'[1]4'!J68","v":0},{"$f":"'[1]4'!L68","v":0},{"$f":"'[1]4'!N68","v":0},{"$f":"'[1]4'!N68","v":0},{"$f":"'[1]4'!Q68","v":0},{"$f":"'[1]4'!Q68","v":0},0,{"$f":"'[1]4'!T68","v":0},{"$f":"'[1]4'!T68","v":0},0,{"$f":"'[1]4'!V68","v":0},{"$f":"'[1]4'!V68","v":0},0]
[5,"EX112553",null,null,null,"SASSA registration fees",null,null,{"$f":"'[1]4'!J69","v":0},{"$f":"'[1]4'!L69","v":0},{"$f":"'[1]4'!N69","v":0},{"$f":"'[1]4'!N69","v":0},{"$f":"'[1]4'!Q69","v":0},{"$f":"'[1]4'!Q69","v":0},0,{"$f":"'[1]4'!T69","v":0},{"$f":"'[1]4'!T69","v":0},0,{"$f":"'[1]4'!V69","v":0},{"$f":"'[1]4'!V69","v":0},0]
[5,"EX112554",null,null,null,"SASSA beneficiary fees",null,null,{"$f":"'[1]4'!J70","v":0},{"$f":"'[1]4'!L70","v":0},{"$f":"'[1]4'!N70","v":0},{"$f":"'[1]4'!N70","v":0},{"$f":"'[1]4'!Q70","v":0},{"$f":"'[1]4'!Q70","v":0},0,{"$f":"'[1]4'!T70","v":0},{"$f":"'[1]4'!T70","v":0},0,{"$f":"'[1]4'!V70","v":0},{"$f":"'[1]4'!V70","v":0},0]
[5,"EX112555",null,null,null,"SASSA help desk fees",null,null,{"$f":"'[1]4'!J71","v":0},{"$f":"'[1]4'!L71","v":0},{"$f":"'[1]4'!N71","v":0},{"$f":"'[1]4'!N71","v":0},{"$f":"'[1]4'!Q71","v":0},{"$f":"'[1]4'!Q71","v":0},0,{"$f":"'[1]4'!T71","v":0},{"$f":"'[1]4'!T71","v":0},0,{"$f":"'[1]4'!V71","v":0},{"$f":"'[1]4'!V71","v":0},0]
[1,"EX11256",null,null,null,"Other",null,null,{"$f":"'[1]4'!J72","v":0},{"$f":"'[1]4'!L72","v":0},{"$f":"'[1]4'!N72","v":0},{"$f":"'[1]4'!N72","v":0},{"$f":"'[1]4'!Q72","v":0},{"$f":"'[1]4'!Q72","v":0},0,{"$f":"'[1]4'!T72","v":0},{"$f":"'[1]4'!T72","v":0},0,{"$f":"'[1]4'!V72","v":0},{"$f":"'[1]4'!V72","v":0},0]
[1,"EX1121",null,null,null,"Agency and support/outsourced services",null,null,{"$f":"'[1]4'!J73","v":126.16173000000001},{"$f":"'[1]4'!L73","v":279.35068000000001},{"$f":"'[1]4'!N73","v":100},{"$f":"'[1]4'!N73","v":100},{"$f":"'[1]4'!Q73","v":104.61},{"$f":"'[1]4'!Q73","v":104.61},0,{"$f":"'[1]4'!T73","v":109.369755},{"$f":"'[1]4'!T73","v":109.369755},0,{"$f":"'[1]4'!V73","v":114.31326792599999},{"$f":"'[1]4'!V73","v":114.31326792599999},0]
[5,"EX11211",null,null,null,"     Of Which: Medical assessments",null,null,{"$f":"'[1]4'!J74","v":0},{"$f":"'[1]4'!L74","v":0},{"$f":"'[1]4'!N74","v":0},{"$f":"'[1]4'!N74","v":0},{"$f":"'[1]4'!Q74","v":0},{"$f":"'[1]4'!Q74","v":0},0,{"$f":"'[1]4'!T74","v":0},{"$f":"'[1]4'!T74","v":0},0,{"$f":"'[1]4'!V74","v":0},{"$f":"'[1]4'!V74","v":0},0]
[1,"EX1161",null,null,null,"Entertainment",null,null,{"$f":"'[1]4'!J75","v":0},{"$f":"'[1]4'!L75","v":1.9776},{"$f":"'[1]4'!N75","v":2},{"$f":"'[1]4'!N75","v":2},{"$f":"'[1]4'!Q75","v":2.0922000000000001},{"$f":"'[1]4'!Q75","v":2.0922000000000001},0,{"$f":"'[1]4'!T75","v":2.1873951000000003},{"$f":"'[1]4'!T75","v":2.1873951000000003},0,{"$f":"'[1]4'!V75","v":2.2862653585200001},{"$f":"'[1]4'!V75","v":2.2862653585200001},0]
[1,"EX1166",null,null,null,"Fleet services (including government motor transport)",null,null,{"$f":"'[1]4'!J76","v":0},{"$f":"'[1]4'!L76","v":0},{"$f":"'[1]4'!N76","v":0},{"$f":"'[1]4'!N76","v":0},{"$f":"'[1]4'!Q76","v":0},{"$f":"'[1]4'!Q76","v":0},0,{"$f":"'[1]4'!T76","v":0},{"$f":"'[1]4'!T76","v":0},0,{"$f":"'[1]4'!V76","v":0},{"$f":"'[1]4'!V76","v":0},0]
[1,"EX1167",null,null,null,"Housing",null,null,{"$f":"'[1]4'!J77","v":0},{"$f":"'[1]4'!L77","v":0},{"$f":"'[1]4'!N77","v":0},{"$f":"'[1]4'!N77","v":0},{"$f":"'[1]4'!Q77","v":0},{"$f":"'[1]4'!Q77","v":0},0,{"$f":"'[1]4'!T77","v":0},{"$f":"'[1]4'!T77","v":0},0,{"$f":"'[1]4'!V77","v":0},{"$f":"'[1]4'!V77","v":0},0]
[1,"EX1168",null,null,null,"Inventory: Clothing material and accessories",null,null,{"$f":"'[1]4'!J78","v":0},{"$f":"'[1]4'!L78","v":0},{"$f":"'[1]4'!N78","v":0},{"$f":"'[1]4'!N78","v":0},{"$f":"'[1]4'!Q78","v":0},{"$f":"'[1]4'!Q78","v":0},0,{"$f":"'[1]4'!T78","v":0},{"$f":"'[1]4'!T78","v":0},0,{"$f":"'[1]4'!V78","v":0},{"$f":"'[1]4'!V78","v":0},0]
[1,"EX1169",null,null,null,"Inventory: Farming supplies",null,null,{"$f":"'[1]4'!J79","v":0},{"$f":"'[1]4'!L79","v":0},{"$f":"'[1]4'!N79","v":0},{"$f":"'[1]4'!N79","v":0},{"$f":"'[1]4'!Q79","v":0},{"$f":"'[1]4'!Q79","v":0},0,{"$f":"'[1]4'!T79","v":0},{"$f":"'[1]4'!T79","v":0},0,{"$f":"'[1]4'!V79","v":0},{"$f":"'[1]4'!V79","v":0},0]
[1,"EX1170",null,null,null,"Inventory: Food and food supplies",null,null,{"$f":"'[1]4'!J80","v":0},{"$f":"'[1]4'!L80","v":0},{"$f":"'[1]4'!N80","v":0},{"$f":"'[1]4'!N80","v":0},{"$f":"'[1]4'!Q80","v":0},{"$f":"'[1]4'!Q80","v":0},0,{"$f":"'[1]4'!T80","v":0},{"$f":"'[1]4'!T80","v":0},0,{"$f":"'[1]4'!V80","v":0},{"$f":"'[1]4'!V80","v":0},0]
[1,"EX1171",null,null,null,"Inventory: Fuel, oil and gas",null,null,{"$f":"'[1]4'!J81","v":0},{"$f":"'[1]4'!L81","v":0},{"$f":"'[1]4'!N81","v":0},{"$f":"'[1]4'!N81","v":0},{"$f":"'[1]4'!Q81","v":0},{"$f":"'[1]4'!Q81","v":0},0,{"$f":"'[1]4'!T81","v":0},{"$f":"'[1]4'!T81","v":0},0,{"$f":"'[1]4'!V81","v":0},{"$f":"'[1]4'!V81","v":0},0]
[1,"EX1172",null,null,null,"Inventory: Learner and teacher support material",null,null,{"$f":"'[1]4'!J82","v":0},{"$f":"'[1]4'!L82","v":0},{"$f":"'[1]4'!N82","v":0},{"$f":"'[1]4'!N82","v":0},{"$f":"'[1]4'!Q82","v":0},{"$f":"'[1]4'!Q82","v":0},0,{"$f":"'[1]4'!T82","v":0},{"$f":"'[1]4'!T82","v":0},0,{"$f":"'[1]4'!V82","v":0},{"$f":"'[1]4'!V82","v":0},0]
[1,"EX1126",null,null,null,"Inventory: Materials and supplies",null,null,{"$f":"'[1]4'!J83","v":0},{"$f":"'[1]4'!L83","v":0},{"$f":"'[1]4'!N83","v":0},{"$f":"'[1]4'!N83","v":0},{"$f":"'[1]4'!Q83","v":0},{"$f":"'[1]4'!Q83","v":0},0,{"$f":"'[1]4'!T83","v":0},{"$f":"'[1]4'!T83","v":0},0,{"$f":"'[1]4'!V83","v":0},{"$f":"'[1]4'!V83","v":0},0]
[1,"EX1173",null,null,null,"Inventory: Medical supplies",null,null,{"$f":"'[1]4'!J84","v":0},{"$f":"'[1]4'!L84","v":0},{"$f":"'[1]4'!N84","v":0},{"$f":"'[1]4'!N84","v":0},{"$f":"'[1]4'!Q84","v":0},{"$f":"'[1]4'!Q84","v":0},0,{"$f":"'[1]4'!T84","v":0},{"$f":"'[1]4'!T84","v":0},0,{"$f":"'[1]4'!V84","v":0},{"$f":"'[1]4'!V84","v":0},0]
[1,"EX1174",null,null,null,"Inventory: Medicine",null,null,{"$f":"'[1]4'!J85","v":0},{"$f":"'[1]4'!L85","v":0},{"$f":"'[1]4'!N85","v":0},{"$f":"'[1]4'!N85","v":0},{"$f":"'[1]4'!Q85","v":0},{"$f":"'[1]4'!Q85","v":0},0,{"$f":"'[1]4'!T85","v":0},{"$f":"'[1]4'!T85","v":0},0,{"$f":"'[1]4'!V85","v":0},{"$f":"'[1]4'!V85","v":0},0]
[1,"EX1175",null,null,null,"Medsas inventory interface",null,null,{"$f":"'[1]4'!J86","v":0},{"$f":"'[1]4'!L86","v":0},{"$f":"'[1]4'!N86","v":0},{"$f":"'[1]4'!N86","v":0},{"$f":"'[1]4'!Q86","v":0},{"$f":"'[1]4'!Q86","v":0},0,{"$f":"'[1]4'!T86","v":0},{"$f":"'[1]4'!T86","v":0},0,{"$f":"'[1]4'!V86","v":0},{"$f":"'[1]4'!V86","v":0},0]
[1,"EX1176",null,null,null,"Inventory: Other supplies",null,null,{"$f":"'[1]4'!J87","v":0},{"$f":"'[1]4'!L87","v":68.405000000000001},{"$f":"'[1]4'!N87","v":50},{"$f":"'[1]4'!N87","v":50},{"$f":"'[1]4'!Q87","v":52.305},{"$f":"'[1]4'!Q87","v":52.305},0,{"$f":"'[1]4'!T87","v":54.684877499999999},{"$f":"'[1]4'!T87","v":54.684877499999999},0,{"$f":"'[1]4'!V87","v":57.156633962999997},{"$f":"'[1]4'!V87","v":57.156633962999997},0]
[1,"EX1177",null,null,null,"Consumable supplies",null,null,{"$f":"'[1]4'!J88","v":74.20335},{"$f":"'[1]4'!L88","v":39.365000000000002},{"$f":"'[1]4'!N88","v":61.323},{"$f":"'[1]4'!N88","v":61.323},{"$f":"'[1]4'!Q88","v":64.149990299999999},{"$f":"'[1]4'!Q88","v":64.149990299999999},0,{"$f":"'[1]4'!T88","v":67.068814858650001},{"$f":"'[1]4'!T88","v":67.068814858650001},0,{"$f":"'[1]4'!V88","v":70.100325290260997},{"$f":"'[1]4'!V88","v":70.100325290260997},0]
[1,"EX1144",null,null,null,"Consumables: Stationery, printing and office supplies",null,null,{"$f":"'[1]4'!J89","v":20.419219999999999},{"$f":"'[1]4'!L89","v":58.932400000000001},{"$f":"'[1]4'!N89","v":171.46154999999999},{"$f":"'[1]4'!N89","v":171.46154999999999},{"$f":"'[1]4'!Q89","v":179.36592745499999},{"$f":"'[1]4'!Q89","v":179.36592745499999},0,{"$f":"'[1]4'!T89","v":187.52707715420249},{"$f":"'[1]4'!T89","v":187.52707715420249},0,{"$f":"'[1]4'!V89","v":196.00330104157246},{"$f":"'[1]4'!V89","v":196.00330104157246},0]
[1,"EX1127",null,null,null,"Operating leases",null,null,{"$f":"'[1]4'!J90","v":0},{"$f":"'[1]4'!L90","v":0},{"$f":"'[1]4'!N90","v":0},{"$f":"'[1]4'!N90","v":0},{"$f":"'[1]4'!Q90","v":0},{"$f":"'[1]4'!Q90","v":0},0,{"$f":"'[1]4'!T90","v":0},{"$f":"'[1]4'!T90","v":0},0,{"$f":"'[1]4'!V90","v":0},{"$f":"'[1]4'!V90","v":0},0]
[1,"EX1178",null,null,null,"Rental and hiring",null,null,{"$f":"'[1]4'!J91","v":0},{"$f":"'[1]4'!L91","v":0},{"$f":"'[1]4'!N91","v":0},{"$f":"'[1]4'!N91","v":0},{"$f":"'[1]4'!Q91","v":0},{"$f":"'[1]4'!Q91","v":0},0,{"$f":"'[1]4'!T91","v":0},{"$f":"'[1]4'!T91","v":0},0,{"$f":"'[1]4'!V91","v":0},{"$f":"'[1]4'!V91","v":0},0]
[1,"EX1145",null,null,null,"Property payments",null,null,{"$f":"'[1]4'!J92","v":0},{"$f":"'[1]4'!L92","v":0.84},{"$f":"'[1]4'!N92","v":0},{"$f":"'[1]4'!N92","v":0},{"$f":"'[1]4'!Q92","v":0},{"$f":"'[1]4'!Q92","v":0},0,{"$f":"'[1]4'!T92","v":0},{"$f":"'[1]4'!T92","v":0},0,{"$f":"'[1]4'!V92","v":0},{"$f":"'[1]4'!V92","v":0},0]
[1,"EX1179",null,null,null,"Transport provided: Internal activities",null,null,{"$f":"'[1]4'!J93","v":80.361679999999978},{"$f":"'[1]4'!L93","v":73.759299999999996},{"$f":"'[1]4'!N93","v":217.19234},{"$f":"'[1]4'!N93","v":217.19234},{"$f":"'[1]4'!Q93","v":227.20490687399999},{"$f":"'[1]4'!Q93","v":227.20490687399999},0,{"$f":"'[1]4'!T93","v":237.54273013676698},{"$f":"'[1]4'!T93","v":237.54273013676698},0,{"$f":"'[1]4'!V93","v":248.27966153894886},{"$f":"'[1]4'!V93","v":248.27966153894886},0]
[1,"EX1131",null,null,null,"Travel and subsistence",null,null,{"$f":"'[1]4'!J94","v":6.4229200000000004},{"$f":"'[1]4'!L94","v":147.00214},{"$f":"'[1]4'!N94","v":549.22647000000006},{"$f":"'[1]4'!N94","v":549.22647000000006},{"$f":"'[1]4'!Q94","v":574.54581026699998},{"$f":"'[1]4'!Q94","v":574.54581026699998},0,{"$f":"'[1]4'!T94","v":600.68764463414846},{"$f":"'[1]4'!T94","v":600.68764463414846},0,{"$f":"'[1]4'!V94","v":627.83872617161194},{"$f":"'[1]4'!V94","v":627.83872617161194},0]
[1,"EX1130",null,null,null,"Training and development",null,null,{"$f":"'[1]4'!J95","v":16.583010000000002},{"$f":"'[1]4'!L95","v":7.75},{"$f":"'[1]4'!N95","v":27.90015},{"$f":"'[1]4'!N95","v":27.90015},{"$f":"'[1]4'!Q95","v":29.186346915000001},{"$f":"'[1]4'!Q95","v":29.186346915000001},0,{"$f":"'[1]4'!T95","v":30.514325699632501},{"$f":"'[1]4'!T95","v":30.514325699632501},0,{"$f":"'[1]4'!V95","v":31.893573221255888},{"$f":"'[1]4'!V95","v":31.893573221255888},0]
[1,"EX1132",null,null,null,"Operating payments",null,null,{"$f":"'[1]4'!J96","v":132.01174},{"$f":"'[1]4'!L96","v":198.08580999999998},{"$f":"'[1]4'!N96","v":343.27152999999998},{"$f":"'[1]4'!N96","v":343.27152999999998},{"$f":"'[1]4'!Q96","v":381.89391667799998},{"$f":"'[1]4'!Q96","v":381.89391667799998},0,{"$f":"'[1]4'!T96","v":389.95788983434898},{"$f":"'[1]4'!T96","v":389.95788983434898},0,{"$f":"'[1]4'!V96","v":397.91225762426149},{"$f":"'[1]4'!V96","v":397.91225762426149},0]
[1,"EX1146",null,null,null,"Venues and facilities",null,null,{"$f":"'[1]4'!J97","v":0},{"$f":"'[1]4'!L97","v":29.87},{"$f":"'[1]4'!N97","v":43.668729999999996},{"$f":"'[1]4'!N97","v":43.668729999999996},{"$f":"'[1]4'!Q97","v":45.764829039999995},{"$f":"'[1]4'!Q97","v":45.764829039999995},0,{"$f":"'[1]4'!T97","v":47.961540833919997},{"$f":"'[1]4'!T97","v":47.961540833919997},0,{"$f":"'[1]4'!V97","v":50.263694793948154},{"$f":"'[1]4'!V97","v":50.263694793948154},0]
[1,"EX113",null,null,null,"Depreciation",null,null,{"$f":"'[1]4'!J98","v":0},{"$f":"'[1]4'!L98","v":0},{"$f":"'[1]4'!N98","v":0},{"$f":"'[1]4'!N98","v":0},{"$f":"'[1]4'!Q98","v":0},{"$f":"'[1]4'!Q98","v":0},0,{"$f":"'[1]4'!T98","v":0},{"$f":"'[1]4'!T98","v":0},0,{"$f":"'[1]4'!V98","v":0},{"$f":"'[1]4'!V98","v":0},0]
[1,"EX114",null,null,null,"Losses from",null,null,{"$f":"SUM(I100:I101,I104)","v":0},0,0,0,0,0,{"$f":"SUM(N99-M99)","v":0},{"$f":"SUM(P100:P101,P104)","v":0},{"$f":"SUM(Q100:Q101,Q104)","v":0},{"$f":"SUM(Q99-P99)","v":0},{"$f":"SUM(S100:S101,S104)","v":0},{"$f":"SUM(T100:T101,T104)","v":0},{"$f":"SUM(T99-S99)","v":0},{"$f":"SUM(V100:V101,V104)","v":0}]
[1,"EX1141",null,null,null,"Sale of fixed assets",null,null,{"$f":"'[1]4'!J100","v":0},{"$f":"'[1]4'!L100","v":0},{"$f":"'[1]4'!N100","v":0},{"$f":"'[1]4'!N100","v":0},{"$f":"'[1]4'!Q100","v":0},{"$f":"'[1]4'!Q100","v":0},0,{"$f":"'[1]4'!T100","v":0},{"$f":"'[1]4'!T100","v":0},0,{"$f":"'[1]4'!V100","v":0},{"$f":"'[1]4'!V100","v":0},0]
[1,"EX1142",null,null,null,"Impairments and adjustments to fair value",null,null,{"$f":"SUM(I102:I103)","v":0},0,0,0,0,0,0,{"$f":"SUM(P102:P103)","v":0},{"$f":"SUM(Q102:Q103)","v":0},0,{"$f":"SUM(S102:S103)","v":0},{"$f":"SUM(T102:T103)","v":0},0,{"$f":"SUM(V102:V103)","v":0}]
[1,"EX11421",null,null,null,"Adjustments to fair value of assets",null,null,{"$f":"'[1]4'!J102","v":0},{"$f":"'[1]4'!L102","v":0},{"$f":"'[1]4'!N102","v":0},{"$f":"'[1]4'!N102","v":0},{"$f":"'[1]4'!Q102","v":0},{"$f":"'[1]4'!Q102","v":0},0,{"$f":"'[1]4'!T102","v":0},{"$f":"'[1]4'!T102","v":0},0,{"$f":"'[1]4'!V102","v":0},{"$f":"'[1]4'!V102","v":0},0]
[1,"EX11422",null,null,null,"Impairments to assets",null,null,{"$f":"'[1]4'!J103","v":0},{"$f":"'[1]4'!L103","v":0},{"$f":"'[1]4'!N103","v":0},{"$f":"'[1]4'!N103","v":0},{"$f":"'[1]4'!Q103","v":0},{"$f":"'[1]4'!Q103","v":0},0,{"$f":"'[1]4'!T103","v":0},{"$f":"'[1]4'!T103","v":0},0,{"$f":"'[1]4'!V103","v":0},{"$f":"'[1]4'!V103","v":0},0]
[1,"EX1143",null,null,null,"Other",null,null,{"$f":"'[1]4'!J104","v":0},{"$f":"'[1]4'!L104","v":0},{"$f":"'[1]4'!N104","v":0},{"$f":"'[1]4'!N104","v":0},{"$f":"'[1]4'!Q104","v":0},{"$f":"'[1]4'!Q104","v":0},0,{"$f":"'[1]4'!T104","v":0},{"$f":"'[1]4'!T104","v":0},0,{"$f":"'[1]4'!V104","v":0},{"$f":"'[1]4'!V104","v":0},0]
[1,"EX115",null,null,null,"Interest, dividends and rent on land",null,null,{"$f":"SUM(I106:I108)","v":0},0.34711999999999998,0.10886999999999999,0.10886999999999999,0.113888907,0.113888907,0,{"$f":"SUM(P106:P108)","v":0.11907085226849999},{"$f":"SUM(Q106:Q108)","v":0.11907085226849999},0,{"$f":"SUM(S106:S108)","v":0.1244528547910362},{"$f":"SUM(T106:T108)","v":0.1244528547910362},0,{"$f":"SUM(V106:V108)","v":0}]
[1,"EX1151",null,null,null,"Interest",null,null,{"$f":"'[1]4'!J106","v":0},{"$f":"'[1]4'!L106","v":0.34711999999999998},{"$f":"'[1]4'!N106","v":0.10886999999999999},{"$f":"'[1]4'!N106","v":0.10886999999999999},{"$f":"'[1]4'!Q106","v":0.113888907},{"$f":"'[1]4'!Q106","v":0.113888907},0,{"$f":"'[1]4'!T106","v":0.11907085226849999},{"$f":"'[1]4'!T106","v":0.11907085226849999},0,{"$f":"'[1]4'!V106","v":0.1244528547910362},{"$f":"'[1]4'!V106","v":0.1244528547910362},0]
[1,"EX1152",null,null,null,"Dividends",null,null,{"$f":"'[1]4'!J107","v":0},{"$f":"'[1]4'!L107","v":0},{"$f":"'[1]4'!N107","v":0},{"$f":"'[1]4'!N107","v":0},{"$f":"'[1]4'!Q107","v":0},{"$f":"'[1]4'!Q107","v":0},0,{"$f":"'[1]4'!T107","v":0},{"$f":"'[1]4'!T107","v":0},0,{"$f":"'[1]4'!V107","v":0},{"$f":"'[1]4'!V107","v":0},0]
[1,"EX1153",null,null,null,"Rent on land",null,null,{"$f":"'[1]4'!J108","v":0},{"$f":"'[1]4'!L108","v":0},{"$f":"'[1]4'!N108","v":0},{"$f":"'[1]4'!N108","v":0},{"$f":"'[1]4'!Q108","v":0},{"$f":"'[1]4'!Q108","v":0},0,{"$f":"'[1]4'!T108","v":0},{"$f":"'[1]4'!T108","v":0},0,{"$f":"'[1]4'!V108","v":0},{"$f":"'[1]4'!V108","v":0},0]
[1,"EX12",null,null,null,"Transfers and subsidies",null,null,{"$f":"SUM(I110,I121,I132:I135)","v":0},0,0,0,0,0,0,{"$f":"SUM(P110,P121,P132:P135)","v":0},{"$f":"SUM(Q110,Q121,Q132:Q135)","v":0},0,{"$f":"SUM(S110,S121,S132:S135)","v":0},{"$f":"SUM(T110,T121,T132:T135)","v":0},0,{"$f":"SUM(V110,V121,V132:V135)","v":0}]
[2,"EX121",null,null,null,"Employer Grant (SETAs only)",null,null,{"$f":"SUM(I111,I117,I120)","v":0},0,0,0,0,0,0,{"$f":"SUM(P111,P117,P120)","v":0},{"$f":"SUM(Q111,Q117,Q120)","v":0},0,{"$f":"SUM(S111,S117,S120)","v":0},{"$f":"SUM(T111,T117,T120)","v":0},0,{"$f":"SUM(V111,V117,V120)","v":0}]
[1,"EX122",null,null,null,"Other government units",null,null,{"$f":"SUM(I112:I116)","v":0},0,0,0,0,0,0,{"$f":"SUM(P112:P116)","v":0},{"$f":"SUM(Q112:Q116)","v":0},0,{"$f":"SUM(S112:S116)","v":0},{"$f":"SUM(T112:T116)","v":0},0,{"$f":"SUM(V112:V116)","v":0}]
[1,"EX1221",null,null,null,"National government",null,null,{"$f":"'[1]4'!J112","v":0},{"$f":"'[1]4'!L112","v":0},{"$f":"'[1]4'!N112","v":0},{"$f":"'[1]4'!N112","v":0},{"$f":"'[1]4'!Q112","v":0},{"$f":"'[1]4'!Q112","v":0},0,{"$f":"'[1]4'!T112","v":0},{"$f":"'[1]4'!T112","v":0},0,{"$f":"'[1]4'!V112","v":0},{"$f":"'[1]4'!V112","v":0},0]
[1,"EX1222",null,null,null,"Departmental agencies and accounts",null,null,{"$f":"'[1]4'!J113","v":0},{"$f":"'[1]4'!L113","v":0},{"$f":"'[1]4'!N113","v":0},{"$f":"'[1]4'!N113","v":0},{"$f":"'[1]4'!Q113","v":0},{"$f":"'[1]4'!Q113","v":0},0,{"$f":"'[1]4'!T113","v":0},{"$f":"'[1]4'!T113","v":0},0,{"$f":"'[1]4'!V113","v":0},{"$f":"'[1]4'!V113","v":0},0]
[1,"EX1223",null,null,null,"Provinces",null,null,{"$f":"'[1]4'!J114","v":0},{"$f":"'[1]4'!L114","v":0},{"$f":"'[1]4'!N114","v":0},{"$f":"'[1]4'!N114","v":0},{"$f":"'[1]4'!Q114","v":0},{"$f":"'[1]4'!Q114","v":0},0,{"$f":"'[1]4'!T114","v":0},{"$f":"'[1]4'!T114","v":0},0,{"$f":"'[1]4'!V114","v":0},{"$f":"'[1]4'!V114","v":0},0]
[1,"EX1224",null,null,null,"Municipalities",null,null,{"$f":"'[1]4'!J115","v":0},{"$f":"'[1]4'!L115","v":0},{"$f":"'[1]4'!N115","v":0},{"$f":"'[1]4'!N115","v":0},{"$f":"'[1]4'!Q115","v":0},{"$f":"'[1]4'!Q115","v":0},0,{"$f":"'[1]4'!T115","v":0},{"$f":"'[1]4'!T115","v":0},0,{"$f":"'[1]4'!V115","v":0},{"$f":"'[1]4'!V115","v":0},0]
[2,"EX1225",null,null,null,"National Skills Fund",null,null,{"$f":"'[1]4'!J116","v":0},{"$f":"'[1]4'!L116","v":0},{"$f":"'[1]4'!N116","v":0},{"$f":"'[1]4'!N116","v":0},{"$f":"'[1]4'!Q116","v":0},{"$f":"'[1]4'!Q116","v":0},0,{"$f":"'[1]4'!T116","v":0},{"$f":"'[1]4'!T116","v":0},0,{"$f":"'[1]4'!V116","v":0},{"$f":"'[1]4'!V116","v":0},0]
[1,"EX123",null,null,null,"Public corporations and private enterprises (subsidies and other transfers)",null,null,{"$f":"SUM(I118:I119)","v":0},0,0,0,0,0,0,{"$f":"SUM(P118:P119)","v":0},{"$f":"SUM(Q118:Q119)","v":0},0,{"$f":"SUM(S118:S119)","v":0},{"$f":"SUM(T118:T119)","v":0},0,{"$f":"SUM(V118:V119)","v":0}]
[1,"EX1231",null,null,null,"Public corporations",null,null,{"$f":"'[1]4'!J118","v":0},{"$f":"'[1]4'!L118","v":0},{"$f":"'[1]4'!N118","v":0},{"$f":"'[1]4'!N118","v":0},{"$f":"'[1]4'!Q118","v":0},{"$f":"'[1]4'!Q118","v":0},0,{"$f":"'[1]4'!T118","v":0},{"$f":"'[1]4'!T118","v":0},0,{"$f":"'[1]4'!V118","v":0},{"$f":"'[1]4'!V118","v":0},0]
[1,"EX1232",null,null,null,"Private enterprises",null,null,{"$f":"'[1]4'!J119","v":0},{"$f":"'[1]4'!L119","v":0},{"$f":"'[1]4'!N119","v":0},{"$f":"'[1]4'!N119","v":0},{"$f":"'[1]4'!Q119","v":0},{"$f":"'[1]4'!Q119","v":0},0,{"$f":"'[1]4'!T119","v":0},{"$f":"'[1]4'!T119","v":0},0,{"$f":"'[1]4'!V119","v":0},{"$f":"'[1]4'!V119","v":0},0]
[2,"EX124",null,null,null,"Households and non government units",null,null,{"$f":"'[1]4'!J120","v":0},{"$f":"'[1]4'!L120","v":0},{"$f":"'[1]4'!N120","v":0},{"$f":"'[1]4'!N120","v":0},{"$f":"'[1]4'!Q120","v":0},{"$f":"'[1]4'!Q120","v":0},0,{"$f":"'[1]4'!T120","v":0},{"$f":"'[1]4'!T120","v":0},0,{"$f":"'[1]4'!V120","v":0},{"$f":"'[1]4'!V120","v":0},0]
[2,"EX125",null,null,null,"Discretionary Grant (SETAs only)",null,null,{"$f":"SUM(I122,I128,I131)","v":0},0,0,0,0,0,0,{"$f":"SUM(P122,P128,P131)","v":0},{"$f":"SUM(Q122,Q128,Q131)","v":0},0,{"$f":"SUM(S122,S128,S131)","v":0},{"$f":"SUM(T122,T128,T131)","v":0},0,{"$f":"SUM(V122,V128,V131)","v":0}]
[2,"EX126",null,null,null,"Other government units",null,null,{"$f":"SUM(I123:I127)","v":0},0,0,0,0,0,0,{"$f":"SUM(P123:P127)","v":0},{"$f":"SUM(Q123:Q127)","v":0},0,{"$f":"SUM(S123:S127)","v":0},{"$f":"SUM(T123:T127)","v":0},0,{"$f":"SUM(V123:V127)","v":0}]
[2,"EX1261",null,null,null,"National government",null,null,{"$f":"'[1]4'!J123","v":0},{"$f":"'[1]4'!L123","v":0},{"$f":"'[1]4'!N123","v":0},{"$f":"'[1]4'!N123","v":0},{"$f":"'[1]4'!Q123","v":0},{"$f":"'[1]4'!Q123","v":0},0,{"$f":"'[1]4'!T123","v":0},{"$f":"'[1]4'!T123","v":0},0,{"$f":"'[1]4'!V123","v":0},{"$f":"'[1]4'!V123","v":0},0]
[2,"EX1262",null,null,null,"Departmental agencies and accounts",null,null,{"$f":"'[1]4'!J124","v":0},{"$f":"'[1]4'!L124","v":0},{"$f":"'[1]4'!N124","v":0},{"$f":"'[1]4'!N124","v":0},{"$f":"'[1]4'!Q124","v":0},{"$f":"'[1]4'!Q124","v":0},0,{"$f":"'[1]4'!T124","v":0},{"$f":"'[1]4'!T124","v":0},0,{"$f":"'[1]4'!V124","v":0},{"$f":"'[1]4'!V124","v":0},0]
[2,"EX1263",null,null,null,"Provinces",null,null,{"$f":"'[1]4'!J125","v":0},{"$f":"'[1]4'!L125","v":0},{"$f":"'[1]4'!N125","v":0},{"$f":"'[1]4'!N125","v":0},{"$f":"'[1]4'!Q125","v":0},{"$f":"'[1]4'!Q125","v":0},0,{"$f":"'[1]4'!T125","v":0},{"$f":"'[1]4'!T125","v":0},0,{"$f":"'[1]4'!V125","v":0},{"$f":"'[1]4'!V125","v":0},0]
[2,"EX1264",null,null,null,"Municipalities",null,null,{"$f":"'[1]4'!J126","v":0},{"$f":"'[1]4'!L126","v":0},{"$f":"'[1]4'!N126","v":0},{"$f":"'[1]4'!N126","v":0},{"$f":"'[1]4'!Q126","v":0},{"$f":"'[1]4'!Q126","v":0},0,{"$f":"'[1]4'!T126","v":0},{"$f":"'[1]4'!T126","v":0},0,{"$f":"'[1]4'!V126","v":0},{"$f":"'[1]4'!V126","v":0},0]
[2,"EX1265",null,null,null,"National Skills Fund",null,null,{"$f":"'[1]4'!J127","v":0},{"$f":"'[1]4'!L127","v":0},{"$f":"'[1]4'!N127","v":0},{"$f":"'[1]4'!N127","v":0},{"$f":"'[1]4'!Q127","v":0},{"$f":"'[1]4'!Q127","v":0},0,{"$f":"'[1]4'!T127","v":0},{"$f":"'[1]4'!T127","v":0},0,{"$f":"'[1]4'!V127","v":0},{"$f":"'[1]4'!V127","v":0},0]
[2,"EX127",null,null,null,"Public corporations and private enterprises (subsidies and other transfers)",null,null,{"$f":"SUM(I129:I130)","v":0},0,0,0,0,0,0,{"$f":"SUM(P129:P130)","v":0},{"$f":"SUM(Q129:Q130)","v":0},0,{"$f":"SUM(S129:S130)","v":0},{"$f":"SUM(T129:T130)","v":0},0,{"$f":"SUM(V129:V130)","v":0}]
[2,"EX1271",null,null,null,"Public corporations",null,null,{"$f":"'[1]4'!J129","v":0},{"$f":"'[1]4'!L129","v":0},{"$f":"'[1]4'!N129","v":0},{"$f":"'[1]4'!N129","v":0},{"$f":"'[1]4'!Q129","v":0},{"$f":"'[1]4'!Q129","v":0},0,{"$f":"'[1]4'!T129","v":0},{"$f":"'[1]4'!T129","v":0},0,{"$f":"'[1]4'!V129","v":0},{"$f":"'[1]4'!V129","v":0},{"$f":"SUM(T129-S129)","v":0}]
[2,"EX1272",null,null,null,"Private enterprises",null,null,{"$f":"'[1]4'!J130","v":0},{"$f":"'[1]4'!L130","v":0},{"$f":"'[1]4'!N130","v":0},{"$f":"'[1]4'!N130","v":0},{"$f":"'[1]4'!Q130","v":0},{"$f":"'[1]4'!Q130","v":0},0,{"$f":"'[1]4'!T130","v":0},{"$f":"'[1]4'!T130","v":0},0,{"$f":"'[1]4'!V130","v":0},{"$f":"'[1]4'!V130","v":0},0]
[2,"EX128",null,null,null,"Households and non government units",null,null,{"$f":"'[1]4'!J131","v":0},{"$f":"'[1]4'!L131","v":0},{"$f":"'[1]4'!N131","v":0},{"$f":"'[1]4'!N131","v":0},{"$f":"'[1]4'!Q131","v":0},{"$f":"'[1]4'!Q131","v":0},0,{"$f":"'[1]4'!T131","v":0},{"$f":"'[1]4'!T131","v":0},0,{"$f":"'[1]4'!V131","v":0},{"$f":"'[1]4'!V131","v":0},0]
[1,"EX129",null,null,null,"Higher education institutions",null,null,{"$f":"'[1]4'!J132","v":0},{"$f":"'[1]4'!L132","v":0},{"$f":"'[1]4'!N132","v":0},{"$f":"'[1]4'!N132","v":0},{"$f":"'[1]4'!Q132","v":0},{"$f":"'[1]4'!Q132","v":0},0,{"$f":"'[1]4'!T132","v":0},{"$f":"'[1]4'!T132","v":0},0,{"$f":"'[1]4'!V132","v":0},{"$f":"'[1]4'!V132","v":0},0]
[1,"EX130",null,null,null,"Foreign governments and international organisations ",null,null,{"$f":"'[1]4'!J133","v":0},{"$f":"'[1]4'!L133","v":0},{"$f":"'[1]4'!N133","v":0},{"$f":"'[1]4'!N133","v":0},{"$f":"'[1]4'!Q133","v":0},{"$f":"'[1]4'!Q133","v":0},0,{"$f":"'[1]4'!T133","v":0},{"$f":"'[1]4'!T133","v":0},0,{"$f":"'[1]4'!V133","v":0},{"$f":"'[1]4'!V133","v":0},0]
[1,"EX131",null,null,null,"Non-profit institutions",null,null,{"$f":"'[1]4'!J134","v":0},{"$f":"'[1]4'!L134","v":0},{"$f":"'[1]4'!N134","v":0},{"$f":"'[1]4'!N134","v":0},{"$f":"'[1]4'!Q134","v":0},{"$f":"'[1]4'!Q134","v":0},0,{"$f":"'[1]4'!T134","v":0},{"$f":"'[1]4'!T134","v":0},0,{"$f":"'[1]4'!V134","v":0},{"$f":"'[1]4'!V134","v":0},0]
[1,"EX132",null,null,null,"Households",null,null,{"$f":"SUM(I136:I137)","v":0},0,0,0,0,0,{"$f":"SUM(N135-M135)","v":0},{"$f":"SUM(P136:P137)","v":0},{"$f":"SUM(Q136:Q137)","v":0},{"$f":"SUM(Q135-P135)","v":0},{"$f":"SUM(S136:S137)","v":0},{"$f":"SUM(T136:T137)","v":0},{"$f":"SUM(T135-S135)","v":0},{"$f":"SUM(V136:V137)","v":0}]
[1,"EX1301",null,null,null,"Social benefits ",null,null,{"$f":"'[1]4'!J136","v":0},{"$f":"'[1]4'!L136","v":0},{"$f":"'[1]4'!N136","v":0},{"$f":"'[1]4'!N136","v":0},{"$f":"'[1]4'!Q136","v":0},{"$f":"'[1]4'!Q136","v":0},0,{"$f":"'[1]4'!T136","v":0},{"$f":"'[1]4'!T136","v":0},0,{"$f":"'[1]4'!V136","v":0},{"$f":"'[1]4'!V136","v":0},0]
[1,"EX1302",null,null,null,"Other transfers to households",null,null,{"$f":"'[1]4'!J137","v":0},{"$f":"'[1]4'!L137","v":0},{"$f":"'[1]4'!N137","v":0},{"$f":"'[1]4'!N137","v":0},{"$f":"'[1]4'!Q137","v":0},{"$f":"'[1]4'!Q137","v":0},0,{"$f":"'[1]4'!T137","v":0},{"$f":"'[1]4'!T137","v":0},0,{"$f":"'[1]4'!V137","v":0},{"$f":"'[1]4'!V137","v":0},0]
[1,"EX13",null,null,null,"Tax payment",null,null,{"$f":"'[1]4'!J138","v":0},{"$f":"'[1]4'!L138","v":0},{"$f":"'[1]4'!N138","v":0},{"$f":"'[1]4'!N138","v":0},{"$f":"'[1]4'!Q138","v":0},{"$f":"'[1]4'!Q138","v":0},0,{"$f":"'[1]4'!T138","v":0},{"$f":"'[1]4'!T138","v":0},0,{"$f":"'[1]4'!V138","v":0},{"$f":"'[1]4'!V138","v":0},0]
[1,"EX14",null,null,null,"Outside shareholders Interest",null,null,{"$f":"'[1]4'!J139","v":0},{"$f":"'[1]4'!L139","v":0},{"$f":"'[1]4'!N139","v":0},{"$f":"'[1]4'!N139","v":0},{"$f":"'[1]4'!Q139","v":0},{"$f":"'[1]4'!Q139","v":0},0,{"$f":"'[1]4'!T139","v":0},{"$f":"'[1]4'!T139","v":0},0,{"$f":"'[1]4'!V139","v":0},{"$f":"'[1]4'!V139","v":0},0]
[1,"EX15",null,null,null,"Total Expenditure",null,null,{"$f":"SUM(I39,I109,I138:I139)","v":48072.96074000001},51576.357839999997,57733.000909999995,57733.000909999995,55940.631806631995,55940.631806631995,0,{"$f":"SUM(P39,P109,P138:P139)","v":58503.890162754855},{"$f":"SUM(Q39,Q109,Q138:Q139)","v":58503.890162754855},0,{"$f":"SUM(S39,S109,S138:S139)","v":61150.638083940947},{"$f":"SUM(T39,T109,T138:T139)","v":61150.638083940947},0,{"$f":"SUM(V39,V109,V138:V139)","v":0}]
[1]
[1,null,null,null,null,"Objective less Expenditure",null,null,{"$f":"ROUND(IF(I37-I140>0,IF(I37-I140<1,0,I37-I140),I37-I140),0)","v":0},0,null,0,0,0,{"$f":"ROUND(IF(O37-O140>0,IF(O37-O140<1,0,O37-O140),O37-O140),0)","v":0},0,0,0,0,0,0,0]
[1]

{"sheet":"5","index":9,"n_rows":143,"n_cols":23,"rows_kept":143,"cut":false,"hidden":false,"merged":[[31,15,31,17],[31,18,31,20],[31,12,31,14],[31,10,31,11]]}
[]
[]
[]
[]
[]
[null,null,null,null,null,"PE No",{"$f":"Settings!O2","v":"PE126"}]
[null,null,null,null,null,"Entity name",{"$f":"Settings!$E$2","v":"South African Revenue Service"}]
[]
[null,null,null,null,null,"Performance and operations information"]
["ItemCat","Item code","Hide/unhide",null,null,"Activity/Output/Outcome/Efficiency Indicator","MTDP Outcomes",null,{"$f":"MyYearM3","v":"2022/23"},{"$f":"MyYearM2","v":"2023/24"},{"$f":"MyYearM1","v":"2024/25"},{"$f":"MyYear0","v":"2025/26"},{"$f":"MyYearP1","v":"2026/27"},{"$f":"MyYearP2","v":"2027/28"},{"$f":"MyYearP3","v":"2028/29"},"Related Objectives","Add to 'Performance Indicators' Sheet","Comments"]
[1,null,null,null,null,{"$f":"'[1]5'!F11","v":0},{"$f":"'[1]5'!G11","v":0},0,{"$f":"'[1]5'!J11","v":0},{"$f":"'[1]5'!K11","v":0},{"$f":"'[1]5'!L11","v":0},{"$f":"'[1]5'!M11","v":0},{"$f":"'[1]5'!N11","v":0},{"$f":"'[1]5'!O11","v":0},null,{"$f":"'[1]5'!P11","v":0},{"$f":"'[1]5'!Q11","v":0},{"$f":"'[1]5'!R11","v":0}]
[1,null,null,null,null,{"$f":"'[1]5'!F12","v":0},{"$f":"'[1]5'!G12","v":0},0,{"$f":"'[1]5'!J12","v":0},{"$f":"'[1]5'!K12","v":0},{"$f":"'[1]5'!L12","v":0},{"$f":"'[1]5'!M12","v":0},{"$f":"'[1]5'!N12","v":0},{"$f":"'[1]5'!O12","v":0},null,{"$f":"'[1]5'!P12","v":0},{"$f":"'[1]5'!Q12","v":0},{"$f":"'[1]5'!R12","v":0}]
[1,null,null,null,null,{"$f":"'[1]5'!F13","v":0},{"$f":"'[1]5'!G13","v":0},0,{"$f":"'[1]5'!J13","v":0},{"$f":"'[1]5'!K13","v":0},{"$f":"'[1]5'!L13","v":0},{"$f":"'[1]5'!M13","v":0},{"$f":"'[1]5'!N13","v":0},{"$f":"'[1]5'!O13","v":0},null,{"$f":"'[1]5'!P13","v":0},{"$f":"'[1]5'!Q13","v":0},{"$f":"'[1]5'!R13","v":0}]
[1,null,null,null,null,{"$f":"'[1]5'!F14","v":0},{"$f":"'[1]5'!G14","v":0},0,{"$f":"'[1]5'!J14","v":0},{"$f":"'[1]5'!K14","v":0},{"$f":"'[1]5'!L14","v":0},{"$f":"'[1]5'!M14","v":0},{"$f":"'[1]5'!N14","v":0},{"$f":"'[1]5'!O14","v":0},null,{"$f":"'[1]5'!P14","v":0},{"$f":"'[1]5'!Q14","v":0},{"$f":"'[1]5'!R14","v":0}]
[1,null,null,null,null,{"$f":"'[1]5'!F15","v":0},{"$f":"'[1]5'!G15","v":0},0,{"$f":"'[1]5'!J15","v":0},{"$f":"'[1]5'!K15","v":0},{"$f":"'[1]5'!L15","v":0},{"$f":"'[1]5'!M15","v":0},{"$f":"'[1]5'!N15","v":0},{"$f":"'[1]5'!O15","v":0},null,{"$f":"'[1]5'!P15","v":0},{"$f":"'[1]5'!Q15","v":0},{"$f":"'[1]5'!R15","v":0}]
[1,null,null,null,null,{"$f":"'[1]5'!F16","v":0},{"$f":"'[1]5'!G16","v":0},0,{"$f":"'[1]5'!J16","v":0},{"$f":"'[1]5'!K16","v":0},{"$f":"'[1]5'!L16","v":0},{"$f":"'[1]5'!M16","v":0},{"$f":"'[1]5'!N16","v":0},{"$f":"'[1]5'!O16","v":0},null,{"$f":"'[1]5'!P16","v":0},{"$f":"'[1]5'!Q16","v":0},{"$f":"'[1]5'!R16","v":0}]
[1,null,null,null,null,{"$f":"'[1]5'!F17","v":0},{"$f":"'[1]5'!G17","v":0},0,{"$f":"'[1]5'!J17","v":0},{"$f":"'[1]5'!K17","v":0},{"$f":"'[1]5'!L17","v":0},{"$f":"'[1]5'!M17","v":0},{"$f":"'[1]5'!N17","v":0},{"$f":"'[1]5'!O17","v":0},null,{"$f":"'[1]5'!P17","v":0},{"$f":"'[1]5'!Q17","v":0},{"$f":"'[1]5'!R17","v":0}]
[1,null,null,null,null,{"$f":"'[1]5'!F18","v":0},{"$f":"'[1]5'!G18","v":0},0,{"$f":"'[1]5'!J18","v":0},{"$f":"'[1]5'!K18","v":0},{"$f":"'[1]5'!L18","v":0},{"$f":"'[1]5'!M18","v":0},{"$f":"'[1]5'!N18","v":0},{"$f":"'[1]5'!O18","v":0},null,{"$f":"'[1]5'!P18","v":0},{"$f":"'[1]5'!Q18","v":0},{"$f":"'[1]5'!R18","v":0}]
[1,null,null,null,null,{"$f":"'[1]5'!F19","v":0},{"$f":"'[1]5'!G19","v":0},0,{"$f":"'[1]5'!J19","v":0},{"$f":"'[1]5'!K19","v":0},{"$f":"'[1]5'!L19","v":0},{"$f":"'[1]5'!M19","v":0},{"$f":"'[1]5'!N19","v":0},{"$f":"'[1]5'!O19","v":0},null,{"$f":"'[1]5'!P19","v":0},{"$f":"'[1]5'!Q19","v":0},{"$f":"'[1]5'!R19","v":0}]
[1,null,null,null,null,{"$f":"'[1]5'!F20","v":0},{"$f":"'[1]5'!G20","v":0},0,{"$f":"'[1]5'!J20","v":0},{"$f":"'[1]5'!K20","v":0},{"$f":"'[1]5'!L20","v":0},{"$f":"'[1]5'!M20","v":0},{"$f":"'[1]5'!N20","v":0},{"$f":"'[1]5'!O20","v":0},null,{"$f":"'[1]5'!P20","v":0},{"$f":"'[1]5'!Q20","v":0},{"$f":"'[1]5'!R20","v":0}]
[1,null,null,null,null,{"$f":"'[1]5'!F21","v":0},{"$f":"'[1]5'!G21","v":0},0,{"$f":"'[1]5'!J21","v":0},{"$f":"'[1]5'!K21","v":0},{"$f":"'[1]5'!L21","v":0},{"$f":"'[1]5'!M21","v":0},{"$f":"'[1]5'!N21","v":0},{"$f":"'[1]5'!O21","v":0},null,{"$f":"'[1]5'!P21","v":0},{"$f":"'[1]5'!Q21","v":0},{"$f":"'[1]5'!R21","v":0}]
[1,null,null,null,null,{"$f":"'[1]5'!F22","v":0},{"$f":"'[1]5'!G22","v":0},0,{"$f":"'[1]5'!J22","v":0},{"$f":"'[1]5'!K22","v":0},{"$f":"'[1]5'!L22","v":0},{"$f":"'[1]5'!M22","v":0},{"$f":"'[1]5'!N22","v":0},{"$f":"'[1]5'!O22","v":0},null,{"$f":"'[1]5'!P22","v":0},{"$f":"'[1]5'!Q22","v":0},{"$f":"'[1]5'!R22","v":0}]
[1,null,null,null,null,{"$f":"'[1]5'!F23","v":0},{"$f":"'[1]5'!G23","v":0},0,{"$f":"'[1]5'!J23","v":0},{"$f":"'[1]5'!K23","v":0},{"$f":"'[1]5'!L23","v":0},{"$f":"'[1]5'!M23","v":0},{"$f":"'[1]5'!N23","v":0},{"$f":"'[1]5'!O23","v":0},null,{"$f":"'[1]5'!P23","v":0},{"$f":"'[1]5'!Q23","v":0},{"$f":"'[1]5'!R23","v":0}]
[1,null,null,null,null,{"$f":"'[1]5'!F24","v":0},{"$f":"'[1]5'!G24","v":0},0,{"$f":"'[1]5'!J24","v":0},{"$f":"'[1]5'!K24","v":0},{"$f":"'[1]5'!L24","v":0},{"$f":"'[1]5'!M24","v":0},{"$f":"'[1]5'!N24","v":0},{"$f":"'[1]5'!O24","v":0},null,{"$f":"'[1]5'!P24","v":0},{"$f":"'[1]5'!Q24","v":0},{"$f":"'[1]5'!R24","v":0}]
[1,null,null,null,null,{"$f":"'[1]5'!F25","v":0},{"$f":"'[1]5'!G25","v":0},0,{"$f":"'[1]5'!J25","v":0},{"$f":"'[1]5'!K25","v":0},{"$f":"'[1]5'!L25","v":0},{"$f":"'[1]5'!M25","v":0},{"$f":"'[1]5'!N25","v":0},{"$f":"'[1]5'!O25","v":0},null,{"$f":"'[1]5'!P25","v":0},{"$f":"'[1]5'!Q25","v":0},{"$f":"'[1]5'!R25","v":0}]
[1,null,null,null,null,"Notes:"]
[1,null,null,null,null,"Performance indicators are an explanation of objectives performance.   "]
[1,null,null,null,null,"1. They are specific measurements that track progress towards achieving the goals and objectives of an institution."]
[1,null,null,null,null,"2. Institutions should use performance indicators in the 2024/25 Annual Performance Plans and those in the 2025 ENE. "]
[1,null,null,null,null,"3. Institutions should also indicate instances where targets are not affected by budget baseline reprioritisation."]
[1]
[1,null,null,null,null,null,null,null,{"$f":"MyYearM3","v":"2022/23"},{"$f":"MyYearM2","v":"2023/24"},{"$f":"MyYearM1","v":"2024/25"},null,{"$f":"MyYear0","v":"2025/26"},null,null,{"$f":"MyYearP1","v":"2026/27"},null,null,{"$f":"MyYearP2","v":"2027/28"},null,null,{"$f":"MyYearP3","v":"2028/29"}]
[1,null,null,null,null,"Expenses",null,null,{"$f":"Hist_year3RestatedAudited","v":"Audited\noutcome"},{"$f":"Hist_year2RestatedAudited","v":"Audited\noutcome"},{"$f":"Hist_year1Budget","v":"Budget"},{"$f":"Hist_year1Audited","v":"Audited\noutcome"},{"$f":"Cur_YearBudgEst","v":"Budget\nestimate"},{"$f":"Cur_YearApprovedBudg","v":"Approved budget"},{"$f":"Cur_YearChangeFrRevBudg","v":"Changes from \nbudget estimate"},{"$f":"MTEF1BudgEst","v":"Budget\nestimate"},{"$f":"MTEF1RevBudgEst","v":"Revised\nbudget\nestimate"},{"$f":"MTEF1_ChangeFrBudgEst","v":"Changes from budget estimate"},{"$f":"MTEF2BudgEst","v":"Budget\nestimate"},{"$f":"MTEF2RevBudgEst","v":"Revised\nbudget\nestimate"},{"$f":"MTEF2_ChangeFrBudgEst","v":"Changes from budget estimate"},{"$f":"MTEF3PlanBudgetEst","v":"Planning\nbudget \nestimate"}]
[1]
[1,null,null,null,null,"Rand thousand"]
[1,null,null,null,null,"Objective/Activity"]
[1,null,null,null,null,{"$f":"'[1]5'!F37","v":"Projects"},null,null,{"$f":"'[1]5'!J37","v":13605.29873},{"$f":"'[1]5'!L37","v":197772.06507999997},{"$f":"'[1]5'!N37","v":745458.19707000011},{"$f":"'[1]5'!N37","v":745458.19707000011},{"$f":"'[1]5'!Q37","v":1661410.9531052033},{"$f":"'[1]5'!Q37","v":1661410.9531052033},{"$f":"SUM(N37-M37)","v":0},{"$f":"'[1]5'!T37","v":914618.91586638126},{"$f":"'[1]5'!T37","v":914618.91586638126},{"$f":"SUM(Q37-P37)","v":0},{"$f":"'[1]5'!V37","v":951230.99384235626},{"$f":"'[1]5'!V37","v":951230.99384235626},{"$f":"SUM(T37-S37)","v":0}]
[1,null,null,null,null,"Economic classification"]
[1,"EX11",null,null,null,"Current payments",null,null,{"$f":"SUM(I40,I43,I98:I99,I105)","v":13605.29873},197772.06507999997,745458.19707000011,745458.19707000011,1661410.9531052033,1661410.9531052033,{"$f":"SUM(N39-M39)","v":0},{"$f":"SUM(P40,P43,P98:P99,P105)","v":914618.91586638126},{"$f":"SUM(Q40,Q43,Q98:Q99,Q105)","v":914618.91586638126},{"$f":"SUM(Q39-P39)","v":0},{"$f":"SUM(S40,S43,S98:S99,S105)","v":951230.99384235626},{"$f":"SUM(T40,T43,T98:T99,T105)","v":951230.99384235626},{"$f":"SUM(T39-S39)","v":0},{"$f":"SUM(V40,V43,V98:V99,V105)","v":0}]
[1,"EX111",null,null,null,"Compensation of employees",null,null,{"$f":"SUM(I41:I42)","v":1158.46685},104988.33172,629765.62507000007,629765.62507000007,1086965.8563366919,1086965.8563366919,{"$f":"SUM(N40-M40)","v":0},{"$f":"SUM(P41:P42)","v":660424.1738266527},{"$f":"SUM(Q41:Q42)","v":660424.1738266527},{"$f":"SUM(Q40-P40)","v":0},{"$f":"SUM(S41:S42)","v":690268.89154353528},{"$f":"SUM(T41:T42)","v":690268.89154353528},{"$f":"SUM(T40-S40)","v":0},{"$f":"SUM(V41:V42)","v":0}]
[1,"EX1111",null,null,null,"Salaries and wages",null,null,{"$f":"'[1]5'!J41","v":1158.46685},{"$f":"'[1]5'!L41","v":104988.33172},{"$f":"'[1]5'!N41","v":629765.62507000007},{"$f":"'[1]5'!N41","v":629765.62507000007},{"$f":"'[1]5'!Q41","v":1086965.8563366919},{"$f":"'[1]5'!Q41","v":1086965.8563366919},{"$f":"SUM(N41-M41)","v":0},{"$f":"'[1]5'!T41","v":660424.1738266527},{"$f":"'[1]5'!T41","v":660424.1738266527},{"$f":"SUM(Q41-P41)","v":0},{"$f":"'[1]5'!V41","v":690268.89154353528},{"$f":"'[1]5'!V41","v":690268.89154353528},{"$f":"SUM(T41-S41)","v":0}]
[1,"EX1112",null,null,null,"Social contributions",null,null,{"$f":"'[1]5'!J42","v":0},{"$f":"'[1]5'!L42","v":0},{"$f":"'[1]5'!N42","v":0},{"$f":"'[1]5'!N42","v":0},{"$f":"'[1]5'!Q42","v":0},{"$f":"'[1]5'!Q42","v":0},{"$f":"SUM(N42-M42)","v":0},{"$f":"'[1]5'!T42","v":0},{"$f":"'[1]5'!T42","v":0},{"$f":"SUM(Q42-P42)","v":0},{"$f":"'[1]5'!V42","v":0},{"$f":"'[1]5'!V42","v":0},{"$f":"SUM(T42-S42)","v":0}]
[1,"EX112",null,null,null,"Goods and services",null,null,{"$f":"SUM(I45:I54,I58:I61,I73,I75:I97)","v":12446.83188},{"$f":"SUM(J45:J54,J58:J61,J73,J75:J97)","v":92783.733359999984},{"$f":"SUM(K45:K54,K58:K61,K73,K75:K97)","v":115692.57200000001},115692.57200000001,574445.09676851146,574445.09676851146,0,254194.7420397285,254194.7420397285,0,260962.10229882097,260962.10229882097,0,0,{"$f":"SUM(W45:W54,W58:W61,W73,W75:W97)","v":0}]
[1,"EX000",null,null,null,"Of which 1"]
[1,"EX1133",null,null,null,"Administrative fees",null,null,{"$f":"'[1]5'!J45","v":0},{"$f":"'[1]5'!L45","v":0},{"$f":"'[1]5'!N45","v":0},{"$f":"'[1]5'!N45","v":0},{"$f":"'[1]5'!Q45","v":0},{"$f":"'[1]5'!Q45","v":0},{"$f":"SUM(N45-M45)","v":0},{"$f":"'[1]5'!T45","v":0},{"$f":"'[1]5'!T45","v":0},{"$f":"SUM(Q45-P45)","v":0},{"$f":"'[1]5'!V45","v":0},{"$f":"'[1]5'!V45","v":0},{"$f":"SUM(T45-S45)","v":0}]
[1,"EX1134",null,null,null,"Advertising",null,null,{"$f":"'[1]5'!J46","v":1178.1491000000001},{"$f":"'[1]5'!L46","v":3144.9944300000002},{"$f":"'[1]5'!N46","v":548.13300000000004},{"$f":"'[1]5'!N46","v":548.13300000000004},{"$f":"'[1]5'!Q46","v":381.48024121385589},{"$f":"'[1]5'!Q46","v":381.48024121385589},0,{"$f":"'[1]5'!T46","v":335.46858455286144},{"$f":"'[1]5'!T46","v":335.46858455286144},0,{"$f":"'[1]5'!V46","v":293.10057966675782},{"$f":"'[1]5'!V46","v":293.10057966675782},0]
[1,"EX1135",null,null,null,"Minor assets",null,null,{"$f":"'[1]5'!J47","v":534.62302999999997},{"$f":"'[1]5'!L47","v":1124.1564700000001},{"$f":"'[1]5'!N47","v":2.875},{"$f":"'[1]5'!N47","v":2.875},{"$f":"'[1]5'!Q47","v":2.0008933844337697},{"$f":"'[1]5'!Q47","v":2.0008933844337697},0,{"$f":"'[1]5'!T47","v":1.7595586848255378},{"$f":"'[1]5'!T47","v":1.7595586848255378},0,{"$f":"'[1]5'!V47","v":1.5373352207254964},{"$f":"'[1]5'!V47","v":1.5373352207254964},0]
[1,"EX1136",null,null,null,"Audit costs: External",null,null,{"$f":"'[1]5'!J48","v":0},{"$f":"'[1]5'!L48","v":0},{"$f":"'[1]5'!N48","v":0},{"$f":"'[1]5'!N48","v":0},{"$f":"'[1]5'!Q48","v":0},{"$f":"'[1]5'!Q48","v":0},0,{"$f":"'[1]5'!T48","v":0},{"$f":"'[1]5'!T48","v":0},0,{"$f":"'[1]5'!V48","v":0},{"$f":"'[1]5'!V48","v":0},0]
[1,"EX1139",null,null,null,"Bursaries: Employees",null,null,{"$f":"'[1]5'!J49","v":0},{"$f":"'[1]5'!L49","v":0},{"$f":"'[1]5'!N49","v":0},{"$f":"'[1]5'!N49","v":0},{"$f":"'[1]5'!Q49","v":0},{"$f":"'[1]5'!Q49","v":0},0,{"$f":"'[1]5'!T49","v":0},{"$f":"'[1]5'!T49","v":0},0,{"$f":"'[1]5'!V49","v":0},{"$f":"'[1]5'!V49","v":0},0]
[1,"EX1140",null,null,null,"Catering: Internal activities",null,null,{"$f":"'[1]5'!J50","v":0},{"$f":"'[1]5'!L50","v":0},{"$f":"'[1]5'!N50","v":20},{"$f":"'[1]5'!N50","v":20},{"$f":"'[1]5'!Q50","v":13.919258326495791},{"$f":"'[1]5'!Q50","v":13.919258326495791},0,{"$f":"'[1]5'!T50","v":12.240408242264612},{"$f":"'[1]5'!T50","v":12.240408242264612},0,{"$f":"'[1]5'!V50","v":10.694505883307803},{"$f":"'[1]5'!V50","v":10.694505883307803},0]
[1,"EX1122",null,null,null,"Communication (G&S)",null,null,{"$f":"'[1]5'!J51","v":0},{"$f":"'[1]5'!L51","v":152.84880000000001},{"$f":"'[1]5'!N51","v":0},{"$f":"'[1]5'!N51","v":0},{"$f":"'[1]5'!Q51","v":0},{"$f":"'[1]5'!Q51","v":0},0,{"$f":"'[1]5'!T51","v":0},{"$f":"'[1]5'!T51","v":0},0,{"$f":"'[1]5'!V51","v":0},{"$f":"'[1]5'!V51","v":0},0]
[1,"EX1123",null,null,null,"Computer services",null,null,{"$f":"'[1]5'!J52","v":658.69331999999997},{"$f":"'[1]5'!L52","v":7791.6582399999998},{"$f":"'[1]5'!N52","v":5117.3107399999999},{"$f":"'[1]5'!N52","v":5117.3107399999999},{"$f":"'[1]5'!Q52","v":3561.4585063505669},{"$f":"'[1]5'!Q52","v":3561.4585063505669},0,{"$f":"'[1]5'!T52","v":3131.8986280062609},{"$f":"'[1]5'!T52","v":3131.8986280062609},0,{"$f":"'[1]5'!V52","v":2736.3554907822099},{"$f":"'[1]5'!V52","v":2736.3554907822099},0]
[1,"EX1124",null,null,null,"Consultants: Business and advisory services",null,null,{"$f":"'[1]5'!J53","v":3400.0689200000002},{"$f":"'[1]5'!L53","v":59238.533199999998},{"$f":"'[1]5'!N53","v":56826.597849999998},{"$f":"'[1]5'!N53","v":56826.597849999998},{"$f":"'[1]5'!Q53","v":2737.6448012248516},{"$f":"'[1]5'!Q53","v":2737.6448012248516},0,{"$f":"'[1]5'!T53","v":2407.4479547174078},{"$f":"'[1]5'!T53","v":2407.4479547174078},0,{"$f":"'[1]5'!V53","v":2103.3993152763728},{"$f":"'[1]5'!V53","v":2103.3993152763728},0]
[1,"EX1180",null,null,null,"Infrastructure and planning services",null,null,{"$f":"SUM(I55:I57)","v":0},0,0,0,0,0,{"$f":"SUM(N54-M54)","v":0},{"$f":"SUM(P55:P57)","v":0},{"$f":"SUM(Q55:Q57)","v":0},{"$f":"SUM(Q54-P54)","v":0},{"$f":"SUM(S55:S57)","v":0},{"$f":"SUM(T55:T57)","v":0},{"$f":"SUM(T54-S54)","v":0},{"$f":"SUM(V55:V57)","v":0}]
[1,"EX11801",null,null,null,"Maintenance and repairs: Buildings: Consultants",null,null,{"$f":"'[1]5'!J55","v":0},{"$f":"'[1]5'!L55","v":0},{"$f":"'[1]5'!N55","v":0},{"$f":"'[1]5'!N55","v":0},{"$f":"'[1]5'!Q55","v":0},{"$f":"'[1]5'!Q55","v":0},{"$f":"SUM(N55-M55)","v":0},{"$f":"'[1]5'!T55","v":0},{"$f":"'[1]5'!T55","v":0},{"$f":"SUM(Q55-P55)","v":0},{"$f":"'[1]5'!V55","v":0},{"$f":"'[1]5'!V55","v":0},0]
[1,"EX11802",null,null,null,"Maintenance and repairs: Other fixed structures: Consultants",null,null,{"$f":"'[1]5'!J56","v":0},{"$f":"'[1]5'!L56","v":0},{"$f":"'[1]5'!N56","v":0},{"$f":"'[1]5'!N56","v":0},{"$f":"'[1]5'!Q56","v":0},{"$f":"'[1]5'!Q56","v":0},0,{"$f":"'[1]5'!T56","v":0},{"$f":"'[1]5'!T56","v":0},0,{"$f":"'[1]5'!V56","v":0},{"$f":"'[1]5'!V56","v":0},0]
[1,"EX11803",null,null,null,"Other",null,null,{"$f":"'[1]5'!J57","v":0},{"$f":"'[1]5'!L57","v":0},{"$f":"'[1]5'!N57","v":0},{"$f":"'[1]5'!N57","v":0},{"$f":"'[1]5'!Q57","v":0},{"$f":"'[1]5'!Q57","v":0},0,{"$f":"'[1]5'!T57","v":0},{"$f":"'[1]5'!T57","v":0},0,{"$f":"'[1]5'!V57","v":0},{"$f":"'[1]5'!V57","v":0},0]
[1,"EX1164",null,null,null,"Laboratory services",null,null,{"$f":"'[1]5'!J58","v":0},{"$f":"'[1]5'!L58","v":0},{"$f":"'[1]5'!N58","v":0},{"$f":"'[1]5'!N58","v":0},{"$f":"'[1]5'!Q58","v":0},{"$f":"'[1]5'!Q58","v":0},0,{"$f":"'[1]5'!T58","v":0},{"$f":"'[1]5'!T58","v":0},0,{"$f":"'[1]5'!V58","v":0},{"$f":"'[1]5'!V58","v":0},0]
[1,"EX1162",null,null,null,"Legal services (G&S)",null,null,{"$f":"'[1]5'!J59","v":0},{"$f":"'[1]5'!L59","v":1727.1573900000001},{"$f":"'[1]5'!N59","v":5077.0007100000003},{"$f":"'[1]5'!N59","v":5077.0007100000003},{"$f":"'[1]5'!Q59","v":0},{"$f":"'[1]5'!Q59","v":0},0,{"$f":"'[1]5'!T59","v":0},{"$f":"'[1]5'!T59","v":0},0,{"$f":"'[1]5'!V59","v":0},{"$f":"'[1]5'!V59","v":0},0]
[1,"EX1165",null,null,null,"Science and technological services",null,null,{"$f":"'[1]5'!J60","v":0},{"$f":"'[1]5'!L60","v":0},{"$f":"'[1]5'!N60","v":0},{"$f":"'[1]5'!N60","v":0},{"$f":"'[1]5'!Q60","v":0},{"$f":"'[1]5'!Q60","v":0},0,{"$f":"'[1]5'!T60","v":0},{"$f":"'[1]5'!T60","v":0},0,{"$f":"'[1]5'!V60","v":0},{"$f":"'[1]5'!V60","v":0},0]
[1,"EX1125",null,null,null,"Contractors",null,null,{"$f":"SUM(I62:I66,I72)","v":751.22029999999995},2008.1810499999999,21902.031530000004,21902.031530000004,15243.001737056293,15243.001737056293,{"$f":"SUM(N61-M61)","v":0},{"$f":"SUM(P62:P66,P72)","v":13404.490363107569},{"$f":"SUM(Q62:Q66,Q72)","v":13404.490363107569},{"$f":"SUM(Q61-P61)","v":0},{"$f":"SUM(S62:S66,S72)","v":11711.570252698901},{"$f":"SUM(T62:T66,T72)","v":11711.570252698901},0,{"$f":"SUM(V62:V66,V72)","v":0}]
[1,"EX11251",null,null,null,"Maintenance and repairs of other fixed structures",null,null,{"$f":"'[1]5'!J62","v":751.22029999999995},{"$f":"'[1]5'!L62","v":2008.1810499999999},{"$f":"'[1]5'!N62","v":21902.031530000004},{"$f":"'[1]5'!N62","v":21902.031530000004},{"$f":"'[1]5'!Q62","v":15243.001737056293},{"$f":"'[1]5'!Q62","v":15243.001737056293},0,{"$f":"'[1]5'!T62","v":13404.490363107569},{"$f":"'[1]5'!T62","v":13404.490363107569},0,{"$f":"'[1]5'!V62","v":11711.570252698901},{"$f":"'[1]5'!V62","v":11711.570252698901},0]
[1,"EX11252",null,null,null,"Maintenance and repairs of other machinery and equipment",null,null,{"$f":"'[1]5'!J63","v":0},{"$f":"'[1]5'!L63","v":0},{"$f":"'[1]5'!N63","v":0},{"$f":"'[1]5'!N63","v":0},{"$f":"'[1]5'!Q63","v":0},{"$f":"'[1]5'!Q63","v":0},0,{"$f":"'[1]5'!T63","v":0},{"$f":"'[1]5'!T63","v":0},0,{"$f":"'[1]5'!V63","v":0},{"$f":"'[1]5'!V63","v":0},0]
[1,"EX11253",null,null,null,"Maintenance and repairs of heritage buildings",null,null,{"$f":"'[1]5'!J64","v":0},{"$f":"'[1]5'!L64","v":0},{"$f":"'[1]5'!N64","v":0},{"$f":"'[1]5'!N64","v":0},{"$f":"'[1]5'!Q64","v":0},{"$f":"'[1]5'!Q64","v":0},0,{"$f":"'[1]5'!T64","v":0},{"$f":"'[1]5'!T64","v":0},0,{"$f":"'[1]5'!V64","v":0},{"$f":"'[1]5'!V64","v":0},0]
[1,"EX11254",null,null,null,"Maintenance and repairs of other heritage fixed structures",null,null,{"$f":"'[1]5'!J65","v":0},{"$f":"'[1]5'!L65","v":0},{"$f":"'[1]5'!N65","v":0},{"$f":"'[1]5'!N65","v":0},{"$f":"'[1]5'!Q65","v":0},{"$f":"'[1]5'!Q65","v":0},0,{"$f":"'[1]5'!T65","v":0},{"$f":"'[1]5'!T65","v":0},0,{"$f":"'[1]5'!V65","v":0},{"$f":"'[1]5'!V65","v":0},0]
[5,"EX11255",null,null,null,"South african social security agency payment contractors",null,null,{"$f":"SUM(I67:I71)","v":0},0,0,0,0,0,0,{"$f":"SUM(P67:P71)","v":0},{"$f":"SUM(Q67:Q71)","v":0},0,{"$f":"SUM(S67:S71)","v":0},{"$f":"SUM(T67:T71)","v":0},0,{"$f":"SUM(V67:V71)","v":0}]
[5,"EX112551",null,null,null,"SASSA Admin fees",null,null,{"$f":"'[1]5'!J67","v":0},{"$f":"'[1]5'!L67","v":0},{"$f":"'[1]5'!N67","v":0},{"$f":"'[1]5'!N67","v":0},{"$f":"'[1]5'!Q67","v":0},{"$f":"'[1]5'!Q67","v":0},{"$f":"SUM(N67-M67)","v":0},{"$f":"'[1]5'!T67","v":0},{"$f":"'[1]5'!T67","v":0},{"$f":"SUM(Q67-P67)","v":0},{"$f":"'[1]5'!V67","v":0},{"$f":"'[1]5'!V67","v":0},{"$f":"SUM(T67-S67)","v":0}]
[5,"EX112552",null,null,null,"SASSA Bankcard fees",null,null,{"$f":"'[1]5'!J68","v":0},{"$f":"'[1]5'!L68","v":0},{"$f":"'[1]5'!N68","v":0},{"$f":"'[1]5'!N68","v":0},{"$f":"'[1]5'!Q68","v":0},{"$f":"'[1]5'!Q68","v":0},0,{"$f":"'[1]5'!T68","v":0},{"$f":"'[1]5'!T68","v":0},0,{"$f":"'[1]5'!V68","v":0},{"$f":"'[1]5'!V68","v":0},0]
[5,"EX112553",null,null,null,"SASSA registration fees",null,null,{"$f":"'[1]5'!J69","v":0},{"$f":"'[1]5'!L69","v":0},{"$f":"'[1]5'!N69","v":0},{"$f":"'[1]5'!N69","v":0},{"$f":"'[1]5'!Q69","v":0},{"$f":"'[1]5'!Q69","v":0},0,{"$f":"'[1]5'!T69","v":0},{"$f":"'[1]5'!T69","v":0},0,{"$f":"'[1]5'!V69","v":0},{"$f":"'[1]5'!V69","v":0},0]
[5,"EX112554",null,null,null,"SASSA beneficiary fees",null,null,{"$f":"'[1]5'!J70","v":0},{"$f":"'[1]5'!L70","v":0},{"$f":"'[1]5'!N70","v":0},{"$f":"'[1]5'!N70","v":0},{"$f":"'[1]5'!Q70","v":0},{"$f":"'[1]5'!Q70","v":0},0,{"$f":"'[1]5'!T70","v":0},{"$f":"'[1]5'!T70","v":0},0,{"$f":"'[1]5'!V70","v":0},{"$f":"'[1]5'!V70","v":0},0]
[5,"EX112555",null,null,null,"SASSA help desk fees",null,null,{"$f":"'[1]5'!J71","v":0},{"$f":"'[1]5'!L71","v":0},{"$f":"'[1]5'!N71","v":0},{"$f":"'[1]5'!N71","v":0},{"$f":"'[1]5'!Q71","v":0},{"$f":"'[1]5'!Q71","v":0},0,{"$f":"'[1]5'!T71","v":0},{"$f":"'[1]5'!T71","v":0},0,{"$f":"'[1]5'!V71","v":0},{"$f":"'[1]5'!V71","v":0},0]
[1,"EX11256",null,null,null,"Other",null,null,{"$f":"'[1]5'!J72","v":0},{"$f":"'[1]5'!L72","v":0},{"$f":"'[1]5'!N72","v":0},{"$f":"'[1]5'!N72","v":0},{"$f":"'[1]5'!Q72","v":0},{"$f":"'[1]5'!Q72","v":0},0,{"$f":"'[1]5'!T72","v":0},{"$f":"'[1]5'!T72","v":0},0,{"$f":"'[1]5'!V72","v":0},{"$f":"'[1]5'!V72","v":0},0]
[1,"EX1121",null,null,null,"Agency and support/outsourced services",null,null,{"$f":"'[1]5'!J73","v":0},{"$f":"'[1]5'!L73","v":3203.6754900000001},{"$f":"'[1]5'!N73","v":12293.96312},{"$f":"'[1]5'!N73","v":12293.96312},{"$f":"'[1]5'!Q73","v":235000},{"$f":"'[1]5'!Q73","v":235000},0,{"$f":"'[1]5'!T73","v":80000},{"$f":"'[1]5'!T73","v":80000},0,{"$f":"'[1]5'!V73","v":83615.999999999985},{"$f":"'[1]5'!V73","v":83615.999999999985},0]
[5,"EX11211",null,null,null,"     Of Which: Medical assessments",null,null,{"$f":"'[1]5'!J74","v":0},{"$f":"'[1]5'!L74","v":0},{"$f":"'[1]5'!N74","v":0},{"$f":"'[1]5'!N74","v":0},{"$f":"'[1]5'!Q74","v":0},{"$f":"'[1]5'!Q74","v":0},0,{"$f":"'[1]5'!T74","v":0},{"$f":"'[1]5'!T74","v":0},0,{"$f":"'[1]5'!V74","v":0},{"$f":"'[1]5'!V74","v":0},0]
[1,"EX1161",null,null,null,"Entertainment",null,null,{"$f":"'[1]5'!J75","v":0},{"$f":"'[1]5'!L75","v":0},{"$f":"'[1]5'!N75","v":0},{"$f":"'[1]5'!N75","v":0},{"$f":"'[1]5'!Q75","v":0},{"$f":"'[1]5'!Q75","v":0},0,{"$f":"'[1]5'!T75","v":0},{"$f":"'[1]5'!T75","v":0},0,{"$f":"'[1]5'!V75","v":0},{"$f":"'[1]5'!V75","v":0},0]
[1,"EX1166",null,null,null,"Fleet services (including government motor transport)",null,null,{"$f":"'[1]5'!J76","v":0},{"$f":"'[1]5'!L76","v":0},{"$f":"'[1]5'!N76","v":0},{"$f":"'[1]5'!N76","v":0},{"$f":"'[1]5'!Q76","v":0},{"$f":"'[1]5'!Q76","v":0},0,{"$f":"'[1]5'!T76","v":0},{"$f":"'[1]5'!T76","v":0},0,{"$f":"'[1]5'!V76","v":0},{"$f":"'[1]5'!V76","v":0},0]
[1,"EX1167",null,null,null,"Housing",null,null,{"$f":"'[1]5'!J77","v":0},{"$f":"'[1]5'!L77","v":0},{"$f":"'[1]5'!N77","v":0},{"$f":"'[1]5'!N77","v":0},{"$f":"'[1]5'!Q77","v":0},{"$f":"'[1]5'!Q77","v":0},0,{"$f":"'[1]5'!T77","v":0},{"$f":"'[1]5'!T77","v":0},0,{"$f":"'[1]5'!V77","v":0},{"$f":"'[1]5'!V77","v":0},0]
[1,"EX1168",null,null,null,"Inventory: Clothing material and accessories",null,null,{"$f":"'[1]5'!J78","v":0},{"$f":"'[1]5'!L78","v":0},{"$f":"'[1]5'!N78","v":0},{"$f":"'[1]5'!N78","v":0},{"$f":"'[1]5'!Q78","v":0},{"$f":"'[1]5'!Q78","v":0},0,{"$f":"'[1]5'!T78","v":0},{"$f":"'[1]5'!T78","v":0},0,{"$f":"'[1]5'!V78","v":0},{"$f":"'[1]5'!V78","v":0},0]
[1,"EX1169",null,null,null,"Inventory: Farming supplies",null,null,{"$f":"'[1]5'!J79","v":0},{"$f":"'[1]5'!L79","v":0},{"$f":"'[1]5'!N79","v":0},{"$f":"'[1]5'!N79","v":0},{"$f":"'[1]5'!Q79","v":0},{"$f":"'[1]5'!Q79","v":0},0,{"$f":"'[1]5'!T79","v":0},{"$f":"'[1]5'!T79","v":0},0,{"$f":"'[1]5'!V79","v":0},{"$f":"'[1]5'!V79","v":0},0]
[1,"EX1170",null,null,null,"Inventory: Food and food supplies",null,null,{"$f":"'[1]5'!J80","v":0},{"$f":"'[1]5'!L80","v":0},{"$f":"'[1]5'!N80","v":0},{"$f":"'[1]5'!N80","v":0},{"$f":"'[1]5'!Q80","v":0},{"$f":"'[1]5'!Q80","v":0},0,{"$f":"'[1]5'!T80","v":0},{"$f":"'[1]5'!T80","v":0},0,{"$f":"'[1]5'!V80","v":0},{"$f":"'[1]5'!V80","v":0},0]
[1,"EX1171",null,null,null,"Inventory: Fuel, oil and gas",null,null,{"$f":"'[1]5'!J81","v":0},{"$f":"'[1]5'!L81","v":0},{"$f":"'[1]5'!N81","v":0},{"$f":"'[1]5'!N81","v":0},{"$f":"'[1]5'!Q81","v":0},{"$f":"'[1]5'!Q81","v":0},0,{"$f":"'[1]5'!T81","v":0},{"$f":"'[1]5'!T81","v":0},0,{"$f":"'[1]5'!V81","v":0},{"$f":"'[1]5'!V81","v":0},0]
[1,"EX1172",null,null,null,"Inventory: Learner and teacher support material",null,null,{"$f":"'[1]5'!J82","v":0},{"$f":"'[1]5'!L82","v":0},{"$f":"'[1]5'!N82","v":0},{"$f":"'[1]5'!N82","v":0},{"$f":"'[1]5'!Q82","v":0},{"$f":"'[1]5'!Q82","v":0},0,{"$f":"'[1]5'!T82","v":0},{"$f":"'[1]5'!T82","v":0},0,{"$f":"'[1]5'!V82","v":0},{"$f":"'[1]5'!V82","v":0},0]
[1,"EX1126",null,null,null,"Inventory: Materials and supplies",null,null,{"$f":"'[1]5'!J83","v":0},{"$f":"'[1]5'!L83","v":0},{"$f":"'[1]5'!N83","v":0},{"$f":"'[1]5'!N83","v":0},{"$f":"'[1]5'!Q83","v":0},{"$f":"'[1]5'!Q83","v":0},0,{"$f":"'[1]5'!T83","v":0},{"$f":"'[1]5'!T83","v":0},0,{"$f":"'[1]5'!V83","v":0},{"$f":"'[1]5'!V83","v":0},0]
[1,"EX1173",null,null,null,"Inventory: Medical supplies",null,null,{"$f":"'[1]5'!J84","v":0},{"$f":"'[1]5'!L84","v":0},{"$f":"'[1]5'!N84","v":0},{"$f":"'[1]5'!N84","v":0},{"$f":"'[1]5'!Q84","v":0},{"$f":"'[1]5'!Q84","v":0},0,{"$f":"'[1]5'!T84","v":0},{"$f":"'[1]5'!T84","v":0},0,{"$f":"'[1]5'!V84","v":0},{"$f":"'[1]5'!V84","v":0},0]
[1,"EX1174",null,null,null,"Inventory: Medicine",null,null,{"$f":"'[1]5'!J85","v":0},{"$f":"'[1]5'!L85","v":0},{"$f":"'[1]5'!N85","v":0},{"$f":"'[1]5'!N85","v":0},{"$f":"'[1]5'!Q85","v":0},{"$f":"'[1]5'!Q85","v":0},0,{"$f":"'[1]5'!T85","v":0},{"$f":"'[1]5'!T85","v":0},0,{"$f":"'[1]5'!V85","v":0},{"$f":"'[1]5'!V85","v":0},0]
[1,"EX1175",null,null,null,"Medsas inventory interface",null,null,{"$f":"'[1]5'!J86","v":0},{"$f":"'[1]5'!L86","v":0},{"$f":"'[1]5'!N86","v":0},{"$f":"'[1]5'!N86","v":0},{"$f":"'[1]5'!Q86","v":0},{"$f":"'[1]5'!Q86","v":0},0,{"$f":"'[1]5'!T86","v":0},{"$f":"'[1]5'!T86","v":0},0,{"$f":"'[1]5'!V86","v":0},{"$f":"'[1]5'!V86","v":0},0]
[1,"EX1176",null,null,null,"Inventory: Other supplies",null,null,{"$f":"'[1]5'!J87","v":216.59008},{"$f":"'[1]5'!L87","v":12.96},{"$f":"'[1]5'!N87","v":0},{"$f":"'[1]5'!N87","v":0},{"$f":"'[1]5'!Q87","v":0},{"$f":"'[1]5'!Q87","v":0},0,{"$f":"'[1]5'!T87","v":0},{"$f":"'[1]5'!T87","v":0},0,{"$f":"'[1]5'!V87","v":0},{"$f":"'[1]5'!V87","v":0},0]
[1,"EX1177",null,null,null,"Consumable supplies",null,null,{"$f":"'[1]5'!J88","v":152.84255999999999},{"$f":"'[1]5'!L88","v":111.88239999999999},{"$f":"'[1]5'!N88","v":73.719380000000001},{"$f":"'[1]5'!N88","v":73.719380000000001},{"$f":"'[1]5'!Q88","v":28051.305954694453},{"$f":"'[1]5'!Q88","v":28051.305954694453},0,{"$f":"'[1]5'!T88","v":45.117765328331849},{"$f":"'[1]5'!T88","v":45.117765328331849},0,{"$f":"'[1]5'!V88","v":39.419617156190185},{"$f":"'[1]5'!V88","v":39.419617156190185},0]
[1,"EX1144",null,null,null,"Consumables: Stationery, printing and office supplies",null,null,{"$f":"'[1]5'!J89","v":0},{"$f":"'[1]5'!L89","v":96.20429},{"$f":"'[1]5'!N89","v":97.773210000000006},{"$f":"'[1]5'!N89","v":97.773210000000006},{"$f":"'[1]5'!Q89","v":69.596291632478952},{"$f":"'[1]5'!Q89","v":69.596291632478952},0,{"$f":"'[1]5'!T89","v":61.202041211323056},{"$f":"'[1]5'!T89","v":61.202041211323056},0,{"$f":"'[1]5'!V89","v":53.472529416539011},{"$f":"'[1]5'!V89","v":53.472529416539011},0]
[1,"EX1127",null,null,null,"Operating leases",null,null,{"$f":"'[1]5'!J90","v":0},{"$f":"'[1]5'!L90","v":139.96673000000001},{"$f":"'[1]5'!N90","v":722.80696999999998},{"$f":"'[1]5'!N90","v":722.80696999999998},{"$f":"'[1]5'!Q90","v":503.04684678108464},{"$f":"'[1]5'!Q90","v":503.04684678108464},0,{"$f":"'[1]5'!T90","v":442.37261965771552},{"$f":"'[1]5'!T90","v":442.37261965771552},0,{"$f":"'[1]5'!V90","v":386.50316965804433},{"$f":"'[1]5'!V90","v":386.50316965804433},0]
[1,"EX1178",null,null,null,"Rental and hiring",null,null,{"$f":"'[1]5'!J91","v":0},{"$f":"'[1]5'!L91","v":0},{"$f":"'[1]5'!N91","v":0},{"$f":"'[1]5'!N91","v":0},{"$f":"'[1]5'!Q91","v":0},{"$f":"'[1]5'!Q91","v":0},0,{"$f":"'[1]5'!T91","v":0},{"$f":"'[1]5'!T91","v":0},0,{"$f":"'[1]5'!V91","v":0},{"$f":"'[1]5'!V91","v":0},0]
[1,"EX1145",null,null,null,"Property payments",null,null,{"$f":"'[1]5'!J92","v":-6.4403100000000109},{"$f":"'[1]5'!L92","v":0},{"$f":"'[1]5'!N92","v":250},{"$f":"'[1]5'!N92","v":250},{"$f":"'[1]5'!Q92","v":146832.96307908124},{"$f":"'[1]5'!Q92","v":146832.96307908124},0,{"$f":"'[1]5'!T92","v":146812.00510302832},{"$f":"'[1]5'!T92","v":146812.00510302832},0,{"$f":"'[1]5'!V92","v":153421.66812354134},{"$f":"'[1]5'!V92","v":153421.66812354134},0]
[1,"EX1179",null,null,null,"Transport provided: Internal activities",null,null,{"$f":"'[1]5'!J93","v":2011.3743999999999},{"$f":"'[1]5'!L93","v":4045.6185700000005},{"$f":"'[1]5'!N93","v":1971.53298},{"$f":"'[1]5'!N93","v":1971.53298},{"$f":"'[1]5'!Q93","v":1372.1138423913028},{"$f":"'[1]5'!Q93","v":1372.1138423913028},0,{"$f":"'[1]5'!T93","v":1206.6184269144255},{"$f":"'[1]5'!T93","v":1206.6184269144255},0,{"$f":"'[1]5'!V93","v":1054.2285526872683},{"$f":"'[1]5'!V93","v":1054.2285526872683},0]
[1,"EX1131",null,null,null,"Travel and subsistence",null,null,{"$f":"'[1]5'!J94","v":2689.0273900000002},{"$f":"'[1]5'!L94","v":1919.19238},{"$f":"'[1]5'!N94","v":2075.6411699999999},{"$f":"'[1]5'!N94","v":2075.6411699999999},{"$f":"'[1]5'!Q94","v":1444.5692819169981},{"$f":"'[1]5'!Q94","v":1444.5692819169981},0,{"$f":"'[1]5'!T94","v":1270.3347642625881},{"$f":"'[1]5'!T94","v":1270.3347642625881},0,{"$f":"'[1]5'!V94","v":1109.8978352100446},{"$f":"'[1]5'!V94","v":1109.8978352100446},0]
[1,"EX1130",null,null,null,"Training and development",null,null,{"$f":"'[1]5'!J95","v":250.24},{"$f":"'[1]5'!L95","v":0},{"$f":"'[1]5'!N95","v":0},{"$f":"'[1]5'!N95","v":0},{"$f":"'[1]5'!Q95","v":0},{"$f":"'[1]5'!Q95","v":0},0,{"$f":"'[1]5'!T95","v":0},{"$f":"'[1]5'!T95","v":0},0,{"$f":"'[1]5'!V95","v":0},{"$f":"'[1]5'!V95","v":0},0]
[1,"EX1132",null,null,null,"Operating payments",null,null,{"$f":"'[1]5'!J96","v":610.44308999999998},{"$f":"'[1]5'!L96","v":8066.7039199999999},{"$f":"'[1]5'!N96","v":8713.1863400000002},{"$f":"'[1]5'!N96","v":8713.1863400000002},{"$f":"'[1]5'!Q96","v":139231.99603445746},{"$f":"'[1]5'!Q96","v":139231.99603445746},0,{"$f":"'[1]5'!T96","v":5063.7858220146154},{"$f":"'[1]5'!T96","v":5063.7858220146154},0,{"$f":"'[1]5'!V96","v":4424.2549916232801},{"$f":"'[1]5'!V96","v":4424.2549916232801},0]
[1,"EX1146",null,null,null,"Venues and facilities",null,null,{"$f":"'[1]5'!J97","v":0},{"$f":"'[1]5'!L97","v":0},{"$f":"'[1]5'!N97","v":0},{"$f":"'[1]5'!N97","v":0},{"$f":"'[1]5'!Q97","v":0},{"$f":"'[1]5'!Q97","v":0},0,{"$f":"'[1]5'!T97","v":0},{"$f":"'[1]5'!T97","v":0},0,{"$f":"'[1]5'!V97","v":0},{"$f":"'[1]5'!V97","v":0},0]
[1,"EX113",null,null,null,"Depreciation",null,null,{"$f":"'[1]5'!J98","v":0},{"$f":"'[1]5'!L98","v":0},{"$f":"'[1]5'!N98","v":0},{"$f":"'[1]5'!N98","v":0},{"$f":"'[1]5'!Q98","v":0},{"$f":"'[1]5'!Q98","v":0},0,{"$f":"'[1]5'!T98","v":0},{"$f":"'[1]5'!T98","v":0},0,{"$f":"'[1]5'!V98","v":0},{"$f":"'[1]5'!V98","v":0},0]
[1,"EX114",null,null,null,"Losses from",null,null,{"$f":"SUM(I100:I101,I104)","v":0},0,0,0,0,0,{"$f":"SUM(N99-M99)","v":0},{"$f":"SUM(P100:P101,P104)","v":0},{"$f":"SUM(Q100:Q101,Q104)","v":0},{"$f":"SUM(Q99-P99)","v":0},{"$f":"SUM(S100:S101,S104)","v":0},{"$f":"SUM(T100:T101,T104)","v":0},{"$f":"SUM(T99-S99)","v":0},{"$f":"SUM(V100:V101,V104)","v":0}]
[1,"EX1141",null,null,null,"Sale of fixed assets",null,null,{"$f":"'[1]5'!J100","v":0},{"$f":"'[1]5'!L100","v":0},{"$f":"'[1]5'!N100","v":0},{"$f":"'[1]5'!N100","v":0},{"$f":"'[1]5'!Q100","v":0},{"$f":"'[1]5'!Q100","v":0},0,{"$f":"'[1]5'!T100","v":0},{"$f":"'[1]5'!T100","v":0},0,{"$f":"'[1]5'!V100","v":0},{"$f":"'[1]5'!V100","v":0},0]
[1,"EX1142",null,null,null,"Impairments and adjustments to fair value",null,null,{"$f":"SUM(I102:I103)","v":0},0,0,0,0,0,0,{"$f":"SUM(P102:P103)","v":0},{"$f":"SUM(Q102:Q103)","v":0},0,{"$f":"SUM(S102:S103)","v":0},{"$f":"SUM(T102:T103)","v":0},0,{"$f":"SUM(V102:V103)","v":0}]
[1,"EX11421",null,null,null,"Adjustments to fair value of assets",null,null,{"$f":"'[1]5'!J102","v":0},{"$f":"'[1]5'!L102","v":0},{"$f":"'[1]5'!N102","v":0},{"$f":"'[1]5'!N102","v":0},{"$f":"'[1]5'!Q102","v":0},{"$f":"'[1]5'!Q102","v":0},0,{"$f":"'[1]5'!T102","v":0},{"$f":"'[1]5'!T102","v":0},0,{"$f":"'[1]5'!V102","v":0},{"$f":"'[1]5'!V102","v":0},0]
[1,"EX11422",null,null,null,"Impairments to assets",null,null,{"$f":"'[1]5'!J103","v":0},{"$f":"'[1]5'!L103","v":0},{"$f":"'[1]5'!N103","v":0},{"$f":"'[1]5'!N103","v":0},{"$f":"'[1]5'!Q103","v":0},{"$f":"'[1]5'!Q103","v":0},0,{"$f":"'[1]5'!T103","v":0},{"$f":"'[1]5'!T103","v":0},0,{"$f":"'[1]5'!V103","v":0},{"$f":"'[1]5'!V103","v":0},0]
[1,"EX1143",null,null,null,"Other",null,null,{"$f":"'[1]5'!J104","v":0},{"$f":"'[1]5'!L104","v":0},{"$f":"'[1]5'!N104","v":0},{"$f":"'[1]5'!N104","v":0},{"$f":"'[1]5'!Q104","v":0},{"$f":"'[1]5'!Q104","v":0},0,{"$f":"'[1]5'!T104","v":0},{"$f":"'[1]5'!T104","v":0},0,{"$f":"'[1]5'!V104","v":0},{"$f":"'[1]5'!V104","v":0},0]
[1,"EX115",null,null,null,"Interest, dividends and rent on land",null,null,{"$f":"SUM(I106:I108)","v":0},0,0,0,0,0,0,{"$f":"SUM(P106:P108)","v":0},{"$f":"SUM(Q106:Q108)","v":0},0,{"$f":"SUM(S106:S108)","v":0},{"$f":"SUM(T106:T108)","v":0},0,{"$f":"SUM(V106:V108)","v":0}]
[1,"EX1151",null,null,null,"Interest",null,null,{"$f":"'[1]5'!J106","v":0},{"$f":"'[1]5'!L106","v":0},{"$f":"'[1]5'!N106","v":0},{"$f":"'[1]5'!N106","v":0},{"$f":"'[1]5'!Q106","v":0},{"$f":"'[1]5'!Q106","v":0},0,{"$f":"'[1]5'!T106","v":0},{"$f":"'[1]5'!T106","v":0},0,{"$f":"'[1]5'!V106","v":0},{"$f":"'[1]5'!V106","v":0},0]
[1,"EX1152",null,null,null,"Dividends",null,null,{"$f":"'[1]5'!J107","v":0},{"$f":"'[1]5'!L107","v":0},{"$f":"'[1]5'!N107","v":0},{"$f":"'[1]5'!N107","v":0},{"$f":"'[1]5'!Q107","v":0},{"$f":"'[1]5'!Q107","v":0},0,{"$f":"'[1]5'!T107","v":0},{"$f":"'[1]5'!T107","v":0},0,{"$f":"'[1]5'!V107","v":0},{"$f":"'[1]5'!V107","v":0},0]
[1,"EX1153",null,null,null,"Rent on land",null,null,{"$f":"'[1]5'!J108","v":0},{"$f":"'[1]5'!L108","v":0},{"$f":"'[1]5'!N108","v":0},{"$f":"'[1]5'!N108","v":0},{"$f":"'[1]5'!Q108","v":0},{"$f":"'[1]5'!Q108","v":0},0,{"$f":"'[1]5'!T108","v":0},{"$f":"'[1]5'!T108","v":0},0,{"$f":"'[1]5'!V108","v":0},{"$f":"'[1]5'!V108","v":0},0]
[1,"EX12",null,null,null,"Transfers and subsidies",null,null,{"$f":"SUM(I110,I121,I132:I135)","v":0},0,0,0,0,0,0,{"$f":"SUM(P110,P121,P132:P135)","v":0},{"$f":"SUM(Q110,Q121,Q132:Q135)","v":0},0,{"$f":"SUM(S110,S121,S132:S135)","v":0},{"$f":"SUM(T110,T121,T132:T135)","v":0},0,{"$f":"SUM(V110,V121,V132:V135)","v":0}]
[2,"EX121",null,null,null,"Employer Grant (SETAs only)",null,null,{"$f":"SUM(I111,I117,I120)","v":0},0,0,0,0,0,0,{"$f":"SUM(P111,P117,P120)","v":0},{"$f":"SUM(Q111,Q117,Q120)","v":0},0,{"$f":"SUM(S111,S117,S120)","v":0},{"$f":"SUM(T111,T117,T120)","v":0},0,{"$f":"SUM(V111,V117,V120)","v":0}]
[1,"EX122",null,null,null,"Other government units",null,null,{"$f":"SUM(I112:I116)","v":0},0,0,0,0,0,0,{"$f":"SUM(P112:P116)","v":0},{"$f":"SUM(Q112:Q116)","v":0},0,{"$f":"SUM(S112:S116)","v":0},{"$f":"SUM(T112:T116)","v":0},0,{"$f":"SUM(V112:V116)","v":0}]
[1,"EX1221",null,null,null,"National government",null,null,{"$f":"'[1]5'!J112","v":0},{"$f":"'[1]5'!L112","v":0},{"$f":"'[1]5'!N112","v":0},{"$f":"'[1]5'!N112","v":0},{"$f":"'[1]5'!Q112","v":0},{"$f":"'[1]5'!Q112","v":0},0,{"$f":"'[1]5'!T112","v":0},{"$f":"'[1]5'!T112","v":0},0,{"$f":"'[1]5'!V112","v":0},{"$f":"'[1]5'!V112","v":0},0]
[1,"EX1222",null,null,null,"Departmental agencies and accounts",null,null,{"$f":"'[1]5'!J113","v":0},{"$f":"'[1]5'!L113","v":0},{"$f":"'[1]5'!N113","v":0},{"$f":"'[1]5'!N113","v":0},{"$f":"'[1]5'!Q113","v":0},{"$f":"'[1]5'!Q113","v":0},0,{"$f":"'[1]5'!T113","v":0},{"$f":"'[1]5'!T113","v":0},0,{"$f":"'[1]5'!V113","v":0},{"$f":"'[1]5'!V113","v":0},0]
[1,"EX1223",null,null,null,"Provinces",null,null,{"$f":"'[1]5'!J114","v":0},{"$f":"'[1]5'!L114","v":0},{"$f":"'[1]5'!N114","v":0},{"$f":"'[1]5'!N114","v":0},{"$f":"'[1]5'!Q114","v":0},{"$f":"'[1]5'!Q114","v":0},0,{"$f":"'[1]5'!T114","v":0},{"$f":"'[1]5'!T114","v":0},0,{"$f":"'[1]5'!V114","v":0},{"$f":"'[1]5'!V114","v":0},0]
[1,"EX1224",null,null,null,"Municipalities",null,null,{"$f":"'[1]5'!J115","v":0},{"$f":"'[1]5'!L115","v":0},{"$f":"'[1]5'!N115","v":0},{"$f":"'[1]5'!N115","v":0},{"$f":"'[1]5'!Q115","v":0},{"$f":"'[1]5'!Q115","v":0},0,{"$f":"'[1]5'!T115","v":0},{"$f":"'[1]5'!T115","v":0},0,{"$f":"'[1]5'!V115","v":0},{"$f":"'[1]5'!V115","v":0},0]
[2,"EX1225",null,null,null,"National Skills Fund",null,null,{"$f":"'[1]5'!J116","v":0},{"$f":"'[1]5'!L116","v":0},{"$f":"'[1]5'!N116","v":0},{"$f":"'[1]5'!N116","v":0},{"$f":"'[1]5'!Q116","v":0},{"$f":"'[1]5'!Q116","v":0},0,{"$f":"'[1]5'!T116","v":0},{"$f":"'[1]5'!T116","v":0},0,{"$f":"'[1]5'!V116","v":0},{"$f":"'[1]5'!V116","v":0},0]
[1,"EX123",null,null,null,"Public corporations and private enterprises (subsidies and other transfers)",null,null,{"$f":"SUM(I118:I119)","v":0},0,0,0,0,0,0,{"$f":"SUM(P118:P119)","v":0},{"$f":"SUM(Q118:Q119)","v":0},0,{"$f":"SUM(S118:S119)","v":0},{"$f":"SUM(T118:T119)","v":0},0,{"$f":"SUM(V118:V119)","v":0}]
[1,"EX1231",null,null,null,"Public corporations",null,null,{"$f":"'[1]5'!J118","v":0},{"$f":"'[1]5'!L118","v":0},{"$f":"'[1]5'!N118","v":0},{"$f":"'[1]5'!N118","v":0},{"$f":"'[1]5'!Q118","v":0},{"$f":"'[1]5'!Q118","v":0},0,{"$f":"'[1]5'!T118","v":0},{"$f":"'[1]5'!T118","v":0},0,{"$f":"'[1]5'!V118","v":0},{"$f":"'[1]5'!V118","v":0},0]
[1,"EX1232",null,null,null,"Private enterprises",null,null,{"$f":"'[1]5'!J119","v":0},{"$f":"'[1]5'!L119","v":0},{"$f":"'[1]5'!N119","v":0},{"$f":"'[1]5'!N119","v":0},{"$f":"'[1]5'!Q119","v":0},{"$f":"'[1]5'!Q119","v":0},0,{"$f":"'[1]5'!T119","v":0},{"$f":"'[1]5'!T119","v":0},0,{"$f":"'[1]5'!V119","v":0},{"$f":"'[1]5'!V119","v":0},0]
[2,"EX124",null,null,null,"Households and non government units",null,null,{"$f":"'[1]5'!J120","v":0},{"$f":"'[1]5'!L120","v":0},{"$f":"'[1]5'!N120","v":0},{"$f":"'[1]5'!N120","v":0},{"$f":"'[1]5'!Q120","v":0},{"$f":"'[1]5'!Q120","v":0},0,{"$f":"'[1]5'!T120","v":0},{"$f":"'[1]5'!T120","v":0},0,{"$f":"'[1]5'!V120","v":0},{"$f":"'[1]5'!V120","v":0},0]
[2,"EX125",null,null,null,"Discretionary Grant (SETAs only)",null,null,{"$f":"SUM(I122,I128,I131)","v":0},0,0,0,0,0,0,{"$f":"SUM(P122,P128,P131)","v":0},{"$f":"SUM(Q122,Q128,Q131)","v":0},0,{"$f":"SUM(S122,S128,S131)","v":0},{"$f":"SUM(T122,T128,T131)","v":0},0,{"$f":"SUM(V122,V128,V131)","v":0}]
[2,"EX126",null,null,null,"Other government units",null,null,{"$f":"SUM(I123:I127)","v":0},0,0,0,0,0,0,{"$f":"SUM(P123:P127)","v":0},{"$f":"SUM(Q123:Q127)","v":0},0,{"$f":"SUM(S123:S127)","v":0},{"$f":"SUM(T123:T127)","v":0},0,{"$f":"SUM(V123:V127)","v":0}]
[2,"EX1261",null,null,null,"National government",null,null,{"$f":"'[1]5'!J123","v":0},{"$f":"'[1]5'!L123","v":0},{"$f":"'[1]5'!N123","v":0},{"$f":"'[1]5'!N123","v":0},{"$f":"'[1]5'!Q123","v":0},{"$f":"'[1]5'!Q123","v":0},0,{"$f":"'[1]5'!T123","v":0},{"$f":"'[1]5'!T123","v":0},0,{"$f":"'[1]5'!V123","v":0},{"$f":"'[1]5'!V123","v":0},0]
[2,"EX1262",null,null,null,"Departmental agencies and accounts",null,null,{"$f":"'[1]5'!J124","v":0},{"$f":"'[1]5'!L124","v":0},{"$f":"'[1]5'!N124","v":0},{"$f":"'[1]5'!N124","v":0},{"$f":"'[1]5'!Q124","v":0},{"$f":"'[1]5'!Q124","v":0},0,{"$f":"'[1]5'!T124","v":0},{"$f":"'[1]5'!T124","v":0},0,{"$f":"'[1]5'!V124","v":0},{"$f":"'[1]5'!V124","v":0},0]
[2,"EX1263",null,null,null,"Provinces",null,null,{"$f":"'[1]5'!J125","v":0},{"$f":"'[1]5'!L125","v":0},{"$f":"'[1]5'!N125","v":0},{"$f":"'[1]5'!N125","v":0},{"$f":"'[1]5'!Q125","v":0},{"$f":"'[1]5'!Q125","v":0},0,{"$f":"'[1]5'!T125","v":0},{"$f":"'[1]5'!T125","v":0},0,{"$f":"'[1]5'!V125","v":0},{"$f":"'[1]5'!V125","v":0},0]
[2,"EX1264",null,null,null,"Municipalities",null,null,{"$f":"'[1]5'!J126","v":0},{"$f":"'[1]5'!L126","v":0},{"$f":"'[1]5'!N126","v":0},{"$f":"'[1]5'!N126","v":0},{"$f":"'[1]5'!Q126","v":0},{"$f":"'[1]5'!Q126","v":0},0,{"$f":"'[1]5'!T126","v":0},{"$f":"'[1]5'!T126","v":0},0,{"$f":"'[1]5'!V126","v":0},{"$f":"'[1]5'!V126","v":0},0]
[2,"EX1265",null,null,null,"National Skills Fund",null,null,{"$f":"'[1]5'!J127","v":0},{"$f":"'[1]5'!L127","v":0},{"$f":"'[1]5'!N127","v":0},{"$f":"'[1]5'!N127","v":0},{"$f":"'[1]5'!Q127","v":0},{"$f":"'[1]5'!Q127","v":0},0,{"$f":"'[1]5'!T127","v":0},{"$f":"'[1]5'!T127","v":0},0,{"$f":"'[1]5'!V127","v":0},{"$f":"'[1]5'!V127","v":0},0]
[2,"EX127",null,null,null,"Public corporations and private enterprises (subsidies and other transfers)",null,null,{"$f":"SUM(I129:I130)","v":0},0,0,0,0,0,0,{"$f":"SUM(P129:P130)","v":0},{"$f":"SUM(Q129:Q130)","v":0},0,{"$f":"SUM(S129:S130)","v":0},{"$f":"SUM(T129:T130)","v":0},0,{"$f":"SUM(V129:V130)","v":0}]
[2,"EX1271",null,null,null,"Public corporations",null,null,{"$f":"'[1]5'!J129","v":0},{"$f":"'[1]5'!L129","v":0},{"$f":"'[1]5'!N129","v":0},{"$f":"'[1]5'!N129","v":0},{"$f":"'[1]5'!Q129","v":0},{"$f":"'[1]5'!Q129","v":0},0,{"$f":"'[1]5'!T129","v":0},{"$f":"'[1]5'!T129","v":0},0,{"$f":"'[1]5'!V129","v":0},{"$f":"'[1]5'!V129","v":0},{"$f":"SUM(T129-S129)","v":0}]
[2,"EX1272",null,null,null,"Private enterprises",null,null,{"$f":"'[1]5'!J130","v":0},{"$f":"'[1]5'!L130","v":0},{"$f":"'[1]5'!N130","v":0},{"$f":"'[1]5'!N130","v":0},{"$f":"'[1]5'!Q130","v":0},{"$f":"'[1]5'!Q130","v":0},0,{"$f":"'[1]5'!T130","v":0},{"$f":"'[1]5'!T130","v":0},0,{"$f":"'[1]5'!V130","v":0},{"$f":"'[1]5'!V130","v":0},0]
[2,"EX128",null,null,null,"Households and non government units",null,null,{"$f":"'[1]5'!J131","v":0},{"$f":"'[1]5'!L131","v":0},{"$f":"'[1]5'!N131","v":0},{"$f":"'[1]5'!N131","v":0},{"$f":"'[1]5'!Q131","v":0},{"$f":"'[1]5'!Q131","v":0},0,{"$f":"'[1]5'!T131","v":0},{"$f":"'[1]5'!T131","v":0},0,{"$f":"'[1]5'!V131","v":0},{"$f":"'[1]5'!V131","v":0},0]
[1,"EX129",null,null,null,"Higher education institutions",null,null,{"$f":"'[1]5'!J132","v":0},{"$f":"'[1]5'!L132","v":0},{"$f":"'[1]5'!N132","v":0},{"$f":"'[1]5'!N132","v":0},{"$f":"'[1]5'!Q132","v":0},{"$f":"'[1]5'!Q132","v":0},0,{"$f":"'[1]5'!T132","v":0},{"$f":"'[1]5'!T132","v":0},0,{"$f":"'[1]5'!V132","v":0},{"$f":"'[1]5'!V132","v":0},0]
[1,"EX130",null,null,null,"Foreign governments and international organisations ",null,null,{"$f":"'[1]5'!J133","v":0},{"$f":"'[1]5'!L133","v":0},{"$f":"'[1]5'!N133","v":0},{"$f":"'[1]5'!N133","v":0},{"$f":"'[1]5'!Q133","v":0},{"$f":"'[1]5'!Q133","v":0},0,{"$f":"'[1]5'!T133","v":0},{"$f":"'[1]5'!T133","v":0},0,{"$f":"'[1]5'!V133","v":0},{"$f":"'[1]5'!V133","v":0},0]
[1,"EX131",null,null,null,"Non-profit institutions",null,null,{"$f":"'[1]5'!J134","v":0},{"$f":"'[1]5'!L134","v":0},{"$f":"'[1]5'!N134","v":0},{"$f":"'[1]5'!N134","v":0},{"$f":"'[1]5'!Q134","v":0},{"$f":"'[1]5'!Q134","v":0},0,{"$f":"'[1]5'!T134","v":0},{"$f":"'[1]5'!T134","v":0},0,{"$f":"'[1]5'!V134","v":0},{"$f":"'[1]5'!V134","v":0},0]
[1,"EX132",null,null,null,"Households",null,null,{"$f":"SUM(I136:I137)","v":0},0,0,0,0,0,{"$f":"SUM(N135-M135)","v":0},{"$f":"SUM(P136:P137)","v":0},{"$f":"SUM(Q136:Q137)","v":0},{"$f":"SUM(Q135-P135)","v":0},{"$f":"SUM(S136:S137)","v":0},{"$f":"SUM(T136:T137)","v":0},{"$f":"SUM(T135-S135)","v":0},{"$f":"SUM(V136:V137)","v":0}]
[1,"EX1301",null,null,null,"Social benefits ",null,null,{"$f":"'[1]5'!J136","v":0},{"$f":"'[1]5'!L136","v":0},{"$f":"'[1]5'!N136","v":0},{"$f":"'[1]5'!N136","v":0},{"$f":"'[1]5'!Q136","v":0},{"$f":"'[1]5'!Q136","v":0},0,{"$f":"'[1]5'!T136","v":0},{"$f":"'[1]5'!T136","v":0},0,{"$f":"'[1]5'!V136","v":0},{"$f":"'[1]5'!V136","v":0},0]
[1,"EX1302",null,null,null,"Other transfers to households",null,null,{"$f":"'[1]5'!J137","v":0},{"$f":"'[1]5'!L137","v":0},{"$f":"'[1]5'!N137","v":0},{"$f":"'[1]5'!N137","v":0},{"$f":"'[1]5'!Q137","v":0},{"$f":"'[1]5'!Q137","v":0},0,{"$f":"'[1]5'!T137","v":0},{"$f":"'[1]5'!T137","v":0},0,{"$f":"'[1]5'!V137","v":0},{"$f":"'[1]5'!V137","v":0},0]
[1,"EX13",null,null,null,"Tax payment",null,null,{"$f":"'[1]5'!J138","v":0},{"$f":"'[1]5'!L138","v":0},{"$f":"'[1]5'!N138","v":0},{"$f":"'[1]5'!N138","v":0},{"$f":"'[1]5'!Q138","v":0},{"$f":"'[1]5'!Q138","v":0},0,{"$f":"'[1]5'!T138","v":0},{"$f":"'[1]5'!T138","v":0},0,{"$f":"'[1]5'!V138","v":0},{"$f":"'[1]5'!V138","v":0},0]
[1,"EX14",null,null,null,"Outside shareholders Interest",null,null,{"$f":"'[1]5'!J139","v":0},{"$f":"'[1]5'!L139","v":0},{"$f":"'[1]5'!N139","v":0},{"$f":"'[1]5'!N139","v":0},{"$f":"'[1]5'!Q139","v":0},{"$f":"'[1]5'!Q139","v":0},0,{"$f":"'[1]5'!T139","v":0},{"$f":"'[1]5'!T139","v":0},0,{"$f":"'[1]5'!V139","v":0},{"$f":"'[1]5'!V139","v":0},0]
[1,"EX15",null,null,null,"Total Expenditure",null,null,{"$f":"SUM(I39,I109,I138:I139)","v":13605.29873},197772.06507999997,745458.19707000011,745458.19707000011,1661410.9531052033,1661410.9531052033,0,{"$f":"SUM(P39,P109,P138:P139)","v":914618.91586638126},{"$f":"SUM(Q39,Q109,Q138:Q139)","v":914618.91586638126},0,{"$f":"SUM(S39,S109,S138:S139)","v":951230.99384235626},{"$f":"SUM(T39,T109,T138:T139)","v":951230.99384235626},0,{"$f":"SUM(V39,V109,V138:V139)","v":0}]
[1]
[1,null,null,null,null,"Objective less Expenditure",null,null,{"$f":"ROUND(IF(I37-I140>0,IF(I37-I140<1,0,I37-I140),I37-I140),0)","v":0},0,null,0,0,0,{"$f":"ROUND(IF(O37-O140>0,IF(O37-O140<1,0,O37-O140),O37-O140),0)","v":0},0,0,0,0,0,0,0]
[1]

{"sheet":"6","index":10,"n_rows":143,"n_cols":23,"rows_kept":143,"cut":false,"hidden":false,"merged":[[31,15,31,17],[31,18,31,20],[31,12,31,14],[31,10,31,11]]}
[]
[]
[]
[]
[]
[null,null,null,null,null,"PE No",{"$f":"Settings!O2","v":"PE126"}]
[null,null,null,null,null,"Entity name",{"$f":"Settings!$E$2","v":"South African Revenue Service"}]
[]
[null,null,null,null,null,"Performance and operations information"]
["ItemCat","Item code","Hide/unhide",null,null,"Activity/Output/Outcome/Efficiency Indicator","MTDP Outcomes",null,{"$f":"MyYearM3","v":"2022/23"},{"$f":"MyYearM2","v":"2023/24"},{"$f":"MyYearM1","v":"2024/25"},{"$f":"MyYear0","v":"2025/26"},{"$f":"MyYearP1","v":"2026/27"},{"$f":"MyYearP2","v":"2027/28"},{"$f":"MyYearP3","v":"2028/29"},"Related Objectives","Add to 'Performance Indicators' Sheet","Comments"]
[1,null,null,null,null,{"$f":"'[1]6'!F11","v":"Employee Engagement (%)"},{"$f":"'[1]6'!G11","v":"Outcome 10: Reduced poverty and improved livelihoods"},0,{"$f":"'[1]6'!J11","v":0.62},{"$f":"'[1]6'!K11","v":"Develop plan to address shortcomings identified in last  engagement survey "},{"$f":"'[1]6'!L11","v":"Top quartile in the market"},{"$f":"'[1]6'!M11","v":"Develop plan to address shortcomings identified in last engagement survey."},{"$f":"'[1]6'!N11","v":0},{"$f":"'[1]6'!O11","v":0},null,{"$f":"'[1]6'!P11","v":"Administration"},{"$f":"'[1]6'!Q11","v":"No"},{"$f":"'[1]6'!R11","v":0}]
[1,null,null,null,null,{"$f":"'[1]6'!F12","v":"Leadership Effectiveness Index (%)"},{"$f":"'[1]6'!G12","v":"Outcome 10: Reduced poverty and improved livelihoods"},0,{"$f":"'[1]6'!J12","v":0.88},{"$f":"'[1]6'!K12","v":0},{"$f":"'[1]6'!L12","v":0},{"$f":"'[1]6'!M12","v":0},{"$f":"'[1]6'!N12","v":0},{"$f":"'[1]6'!O12","v":0},null,{"$f":"'[1]6'!P12","v":"Administration"},{"$f":"'[1]6'!Q12","v":"No"},{"$f":"'[1]6'!R12","v":0}]
[1,null,null,null,null,{"$f":"'[1]6'!F13","v":"Employment Equity: Demographics (%)"},{"$f":"'[1]6'!G13","v":"Outcome 10: Reduced poverty and improved livelihoods"},0,{"$f":"'[1]6'!J13","v":0.80300000000000005},{"$f":"'[1]6'!K13","v":0.81130000000000002},{"$f":"'[1]6'!L13","v":"81.97"},{"$f":"'[1]6'!M13","v":"82.80"},{"$f":"'[1]6'!N13","v":0},{"$f":"'[1]6'!O13","v":0},null,{"$f":"'[1]6'!P13","v":"Administration"},{"$f":"'[1]6'!Q13","v":"No"},{"$f":"'[1]6'!R13","v":0}]
[1,null,null,null,null,{"$f":"'[1]6'!F14","v":"Employment Equity: Gender on Management Level (%)\n"},{"$f":"'[1]6'!G14","v":"Outcome 10: Reduced poverty and improved livelihoods"},0,{"$f":"'[1]6'!J14","v":0.49469999999999997},{"$f":"'[1]6'!K14","v":0.4975},{"$f":"'[1]6'!L14","v":"50.04"},{"$f":"'[1]6'!M14","v":"50.32"},{"$f":"'[1]6'!N14","v":0},{"$f":"'[1]6'!O14","v":0},null,{"$f":"'[1]6'!P14","v":"Administration"},{"$f":"'[1]6'!Q14","v":"No"},{"$f":"'[1]6'!R14","v":0}]
[1,null,null,null,null,{"$f":"'[1]6'!F15","v":"Employment Equity: Disability (%)"},{"$f":"'[1]6'!G15","v":"Outcome 10: Reduced poverty and improved livelihoods"},0,{"$f":"'[1]6'!J15","v":1.95E-2},{"$f":"'[1]6'!K15","v":"2.09%"},{"$f":"'[1]6'!L15","v":"2.24"},{"$f":"'[1]6'!M15","v":"2.38"},{"$f":"'[1]6'!N15","v":0},{"$f":"'[1]6'!O15","v":0},null,{"$f":"'[1]6'!P15","v":"Administration"},{"$f":"'[1]6'!Q15","v":"No"},{"$f":"'[1]6'!R15","v":0}]
[1,null,null,null,null,{"$f":"'[1]6'!F16","v":"Treasury allocation to revenue percentage "},{"$f":"'[1]6'!G16","v":"Outcome 10: Reduced poverty and improved livelihoods"},0,{"$f":"'[1]6'!J16","v":"1%"},{"$f":"'[1]6'!K16","v":"1%"},{"$f":"'[1]6'!L16","v":"1%"},{"$f":"'[1]6'!M16","v":0},{"$f":"'[1]6'!N16","v":0},{"$f":"'[1]6'!O16","v":0},null,{"$f":"'[1]6'!P16","v":"Administration"},{"$f":"'[1]6'!Q16","v":"No"},{"$f":"'[1]6'!R16","v":0}]
[1,null,null,null,null,{"$f":"'[1]6'!F17","v":"Unqualified report by Auditor-General"},{"$f":"'[1]6'!G17","v":"Outcome 10: Reduced poverty and improved livelihoods"},0,{"$f":"'[1]6'!J17","v":"Clean Audit Report "},{"$f":"'[1]6'!K17","v":"Clean Audit Report "},{"$f":"'[1]6'!L17","v":"Clean Audit Report "},{"$f":"'[1]6'!M17","v":"Clean Audit Report "},{"$f":"'[1]6'!N17","v":0},{"$f":"'[1]6'!O17","v":0},null,{"$f":"'[1]6'!P17","v":"Administration"},{"$f":"'[1]6'!Q17","v":"No"},{"$f":"'[1]6'!R17","v":0}]
[1,null,null,null,null,{"$f":"'[1]6'!F18","v":"Public Opinion Index (%)"},{"$f":"'[1]6'!G18","v":"Outcome 10: Reduced poverty and improved livelihoods"},0,{"$f":"'[1]6'!J18","v":0.73499999999999999},{"$f":"'[1]6'!K18","v":0},{"$f":"'[1]6'!L18","v":0},{"$f":"'[1]6'!M18","v":0},{"$f":"'[1]6'!N18","v":0},{"$f":"'[1]6'!O18","v":0},null,{"$f":"'[1]6'!P18","v":"Administration"},{"$f":"'[1]6'!Q18","v":"No"},{"$f":"'[1]6'!R18","v":0}]
[1,null,null,null,null,{"$f":"'[1]6'!F19","v":"Customer satisfaction with Contact Centre service"},{"$f":"'[1]6'!G19","v":"Outcome 10: Reduced poverty and improved livelihoods"},0,{"$f":"'[1]6'!J19","v":0.90500000000000003},{"$f":"'[1]6'!K19","v":0},{"$f":"'[1]6'!L19","v":0},{"$f":"'[1]6'!M19","v":0},{"$f":"'[1]6'!N19","v":0},{"$f":"'[1]6'!O19","v":0},null,{"$f":"'[1]6'!P19","v":"Administration"},{"$f":"'[1]6'!Q19","v":"No"},{"$f":"'[1]6'!R19","v":0}]
[1,null,null,null,null,{"$f":"'[1]6'!F20","v":"% first contact resolution in contact centre"},{"$f":"'[1]6'!G20","v":"Outcome 10: Reduced poverty and improved livelihoods"},0,{"$f":"'[1]6'!J20","v":0.96},{"$f":"'[1]6'!K20","v":0},{"$f":"'[1]6'!L20","v":0},{"$f":"'[1]6'!M20","v":0},{"$f":"'[1]6'!N20","v":0},{"$f":"'[1]6'!O20","v":0},null,{"$f":"'[1]6'!P20","v":"Administration"},{"$f":"'[1]6'!Q20","v":"No"},{"$f":"'[1]6'!R20","v":0}]
[1,null,null,null,null,{"$f":"'[1]6'!F21","v":"Payment turnaround time for supplier invoices in working days\n"},{"$f":"'[1]6'!G21","v":"Outcome 10: Reduced poverty and improved livelihoods"},0,{"$f":"'[1]6'!J21","v":"33 days"},{"$f":"'[1]6'!K21","v":0},{"$f":"'[1]6'!L21","v":0},{"$f":"'[1]6'!M21","v":0},{"$f":"'[1]6'!N21","v":0},{"$f":"'[1]6'!O21","v":0},null,{"$f":"'[1]6'!P21","v":"Administration"},{"$f":"'[1]6'!Q21","v":"No"},{"$f":"'[1]6'!R21","v":0}]
[1,null,null,null,null,{"$f":"'[1]6'!F22","v":"% of acquisition spend through B-BBEE Level 1-4 Compliant Entities\n"},{"$f":"'[1]6'!G22","v":"Outcome 10: Reduced poverty and improved livelihoods"},0,{"$f":"'[1]6'!J22","v":0},{"$f":"'[1]6'!K22","v":0},{"$f":"'[1]6'!L22","v":0},{"$f":"'[1]6'!M22","v":0},{"$f":"'[1]6'!N22","v":0},{"$f":"'[1]6'!O22","v":0},null,{"$f":"'[1]6'!P22","v":"Administration"},{"$f":"'[1]6'!Q22","v":"No"},{"$f":"'[1]6'!R22","v":0}]
[1,null,null,null,null,{"$f":"'[1]6'!F23","v":"% of acquisition spend through Black Women Owned Entities\n"},{"$f":"'[1]6'!G23","v":"Outcome 10: Reduced poverty and improved livelihoods"},0,{"$f":"'[1]6'!J23","v":0.125},{"$f":"'[1]6'!K23","v":0},{"$f":"'[1]6'!L23","v":0},{"$f":"'[1]6'!M23","v":0},{"$f":"'[1]6'!N23","v":0},{"$f":"'[1]6'!O23","v":0},null,{"$f":"'[1]6'!P23","v":"Administration"},{"$f":"'[1]6'!Q23","v":"No"},{"$f":"'[1]6'!R23","v":0}]
[1,null,null,null,null,{"$f":"'[1]6'!F24","v":"% of acquisition spend through Exempted Micro Enterprises\n"},{"$f":"'[1]6'!G24","v":"Outcome 10: Reduced poverty and improved livelihoods"},0,{"$f":"'[1]6'!J24","v":0.2},{"$f":"'[1]6'!K24","v":0},{"$f":"'[1]6'!L24","v":0},{"$f":"'[1]6'!M24","v":0},{"$f":"'[1]6'!N24","v":0},{"$f":"'[1]6'!O24","v":0},null,{"$f":"'[1]6'!P24","v":"Administration"},{"$f":"'[1]6'!Q24","v":"No"},{"$f":"'[1]6'!R24","v":0}]
[1,null,null,null,null,{"$f":"'[1]6'!F25","v":"% of acquisition spend through Qualifying Small Enterprises\n"},{"$f":"'[1]6'!G25","v":"Outcome 10: Reduced poverty and improved livelihoods"},0,{"$f":"'[1]6'!J25","v":0.1},{"$f":"'[1]6'!K25","v":0},{"$f":"'[1]6'!L25","v":0},{"$f":"'[1]6'!M25","v":0},{"$f":"'[1]6'!N25","v":0},{"$f":"'[1]6'!O25","v":0},null,{"$f":"'[1]6'!P25","v":"Administration"},{"$f":"'[1]6'!Q25","v":"No"},{"$f":"'[1]6'!R25","v":0}]
[1,null,null,null,null,"Notes:"]
[1,null,null,null,null,"Performance indicators are an explanation of objectives performance.   "]
[1,null,null,null,null,"1. They are specific measurements that track progress towards achieving the goals and objectives of an institution."]
[1,null,null,null,null,"2. Institutions should use performance indicators in the 2024/25 Annual Performance Plans and those in the 2025 ENE. "]
[1,null,null,null,null,"3. Institutions should also indicate instances where targets are not affected by budget baseline reprioritisation."]
[1]
[1,null,null,null,null,null,null,null,{"$f":"MyYearM3","v":"2022/23"},{"$f":"MyYearM2","v":"2023/24"},{"$f":"MyYearM1","v":"2024/25"},null,{"$f":"MyYear0","v":"2025/26"},null,null,{"$f":"MyYearP1","v":"2026/27"},null,null,{"$f":"MyYearP2","v":"2027/28"},null,null,{"$f":"MyYearP3","v":"2028/29"}]
[1,null,null,null,null,"Expenses",null,null,{"$f":"Hist_year3RestatedAudited","v":"Audited\noutcome"},{"$f":"Hist_year2RestatedAudited","v":"Audited\noutcome"},{"$f":"Hist_year1Budget","v":"Budget"},{"$f":"Hist_year1Audited","v":"Audited\noutcome"},{"$f":"Cur_YearBudgEst","v":"Budget\nestimate"},{"$f":"Cur_YearApprovedBudg","v":"Approved budget"},{"$f":"Cur_YearChangeFrRevBudg","v":"Changes from \nbudget estimate"},{"$f":"MTEF1BudgEst","v":"Budget\nestimate"},{"$f":"MTEF1RevBudgEst","v":"Revised\nbudget\nestimate"},{"$f":"MTEF1_ChangeFrBudgEst","v":"Changes from budget estimate"},{"$f":"MTEF2BudgEst","v":"Budget\nestimate"},{"$f":"MTEF2RevBudgEst","v":"Revised\nbudget\nestimate"},{"$f":"MTEF2_ChangeFrBudgEst","v":"Changes from budget estimate"},{"$f":"MTEF3PlanBudgetEst","v":"Planning\nbudget \nestimate"}]
[1]
[1,null,null,null,null,"Rand thousand"]
[1,null,null,null,null,"Objective/Activity"]
[1,null,null,null,null,{"$f":"'[1]6'!F37","v":0},null,null,{"$f":"'[1]6'!J37","v":0},{"$f":"'[1]6'!L37","v":0},{"$f":"'[1]6'!N37","v":0},{"$f":"'[1]6'!N37","v":0},{"$f":"'[1]6'!Q37","v":0},{"$f":"'[1]6'!Q37","v":0},{"$f":"SUM(N37-M37)","v":0},{"$f":"'[1]6'!T37","v":0},{"$f":"'[1]6'!T37","v":0},{"$f":"SUM(Q37-P37)","v":0},{"$f":"'[1]6'!V37","v":0},{"$f":"'[1]6'!V37","v":0},{"$f":"SUM(T37-S37)","v":0}]
[1,null,null,null,null,"Economic classification"]
[1,"EX11",null,null,null,"Current payments",null,null,{"$f":"SUM(I40,I43,I98:I99,I105)","v":0},0,0,0,0,0,{"$f":"SUM(N39-M39)","v":0},{"$f":"SUM(P40,P43,P98:P99,P105)","v":0},{"$f":"SUM(Q40,Q43,Q98:Q99,Q105)","v":0},{"$f":"SUM(Q39-P39)","v":0},{"$f":"SUM(S40,S43,S98:S99,S105)","v":0},{"$f":"SUM(T40,T43,T98:T99,T105)","v":0},{"$f":"SUM(T39-S39)","v":0},{"$f":"SUM(V40,V43,V98:V99,V105)","v":0}]
[1,"EX111",null,null,null,"Compensation of employees",null,null,{"$f":"SUM(I41:I42)","v":0},0,0,0,0,0,{"$f":"SUM(N40-M40)","v":0},{"$f":"SUM(P41:P42)","v":0},{"$f":"SUM(Q41:Q42)","v":0},{"$f":"SUM(Q40-P40)","v":0},{"$f":"SUM(S41:S42)","v":0},{"$f":"SUM(T41:T42)","v":0},{"$f":"SUM(T40-S40)","v":0},{"$f":"SUM(V41:V42)","v":0}]
[1,"EX1111",null,null,null,"Salaries and wages",null,null,{"$f":"'[1]6'!J41","v":0},{"$f":"'[1]6'!L41","v":0},{"$f":"'[1]6'!N41","v":0},{"$f":"'[1]6'!N41","v":0},{"$f":"'[1]6'!Q41","v":0},{"$f":"'[1]6'!Q41","v":0},{"$f":"SUM(N41-M41)","v":0},{"$f":"'[1]6'!T41","v":0},{"$f":"'[1]6'!T41","v":0},{"$f":"SUM(Q41-P41)","v":0},{"$f":"'[1]6'!V41","v":0},{"$f":"'[1]6'!V41","v":0},{"$f":"SUM(T41-S41)","v":0}]
[1,"EX1112",null,null,null,"Social contributions",null,null,{"$f":"'[1]6'!J42","v":0},{"$f":"'[1]6'!L42","v":0},{"$f":"'[1]6'!N42","v":0},{"$f":"'[1]6'!N42","v":0},{"$f":"'[1]6'!Q42","v":0},{"$f":"'[1]6'!Q42","v":0},{"$f":"SUM(N42-M42)","v":0},{"$f":"'[1]6'!T42","v":0},{"$f":"'[1]6'!T42","v":0},{"$f":"SUM(Q42-P42)","v":0},{"$f":"'[1]6'!V42","v":0},{"$f":"'[1]6'!V42","v":0},{"$f":"SUM(T42-S42)","v":0}]
[1,"EX112",null,null,null,"Goods and services",null,null,{"$f":"SUM(I45:I54,I58:I61,I73,I75:I97)","v":0},{"$f":"SUM(J45:J54,J58:J61,J73,J75:J97)","v":0},{"$f":"SUM(K45:K54,K58:K61,K73,K75:K97)","v":0},0,0,0,0,0,0,0,0,0,0,0,{"$f":"SUM(W45:W54,W58:W61,W73,W75:W97)","v":0}]
[1,"EX000",null,null,null,"Of which 1"]
[1,"EX1133",null,null,null,"Administrative fees",null,null,{"$f":"'[1]6'!J45","v":0},{"$f":"'[1]6'!L45","v":0},{"$f":"'[1]6'!N45","v":0},{"$f":"'[1]6'!N45","v":0},{"$f":"'[1]6'!Q45","v":0},{"$f":"'[1]6'!Q45","v":0},{"$f":"SUM(N45-M45)","v":0},{"$f":"'[1]6'!T45","v":0},{"$f":"'[1]6'!T45","v":0},{"$f":"SUM(Q45-P45)","v":0},{"$f":"'[1]6'!V45","v":0},{"$f":"'[1]6'!V45","v":0},{"$f":"SUM(T45-S45)","v":0}]
[1,"EX1134",null,null,null,"Advertising",null,null,{"$f":"'[1]6'!J46","v":0},{"$f":"'[1]6'!L46","v":0},{"$f":"'[1]6'!N46","v":0},{"$f":"'[1]6'!N46","v":0},{"$f":"'[1]6'!Q46","v":0},{"$f":"'[1]6'!Q46","v":0},0,{"$f":"'[1]6'!T46","v":0},{"$f":"'[1]6'!T46","v":0},0,{"$f":"'[1]6'!V46","v":0},{"$f":"'[1]6'!V46","v":0},0]
[1,"EX1135",null,null,null,"Minor assets",null,null,{"$f":"'[1]6'!J47","v":0},{"$f":"'[1]6'!L47","v":0},{"$f":"'[1]6'!N47","v":0},{"$f":"'[1]6'!N47","v":0},{"$f":"'[1]6'!Q47","v":0},{"$f":"'[1]6'!Q47","v":0},0,{"$f":"'[1]6'!T47","v":0},{"$f":"'[1]6'!T47","v":0},0,{"$f":"'[1]6'!V47","v":0},{"$f":"'[1]6'!V47","v":0},0]
[1,"EX1136",null,null,null,"Audit costs: External",null,null,{"$f":"'[1]6'!J48","v":0},{"$f":"'[1]6'!L48","v":0},{"$f":"'[1]6'!N48","v":0},{"$f":"'[1]6'!N48","v":0},{"$f":"'[1]6'!Q48","v":0},{"$f":"'[1]6'!Q48","v":0},0,{"$f":"'[1]6'!T48","v":0},{"$f":"'[1]6'!T48","v":0},0,{"$f":"'[1]6'!V48","v":0},{"$f":"'[1]6'!V48","v":0},0]
[1,"EX1139",null,null,null,"Bursaries: Employees",null,null,{"$f":"'[1]6'!J49","v":0},{"$f":"'[1]6'!L49","v":0},{"$f":"'[1]6'!N49","v":0},{"$f":"'[1]6'!N49","v":0},{"$f":"'[1]6'!Q49","v":0},{"$f":"'[1]6'!Q49","v":0},0,{"$f":"'[1]6'!T49","v":0},{"$f":"'[1]6'!T49","v":0},0,{"$f":"'[1]6'!V49","v":0},{"$f":"'[1]6'!V49","v":0},0]
[1,"EX1140",null,null,null,"Catering: Internal activities",null,null,{"$f":"'[1]6'!J50","v":0},{"$f":"'[1]6'!L50","v":0},{"$f":"'[1]6'!N50","v":0},{"$f":"'[1]6'!N50","v":0},{"$f":"'[1]6'!Q50","v":0},{"$f":"'[1]6'!Q50","v":0},0,{"$f":"'[1]6'!T50","v":0},{"$f":"'[1]6'!T50","v":0},0,{"$f":"'[1]6'!V50","v":0},{"$f":"'[1]6'!V50","v":0},0]
[1,"EX1122",null,null,null,"Communication (G&S)",null,null,{"$f":"'[1]6'!J51","v":0},{"$f":"'[1]6'!L51","v":0},{"$f":"'[1]6'!N51","v":0},{"$f":"'[1]6'!N51","v":0},{"$f":"'[1]6'!Q51","v":0},{"$f":"'[1]6'!Q51","v":0},0,{"$f":"'[1]6'!T51","v":0},{"$f":"'[1]6'!T51","v":0},0,{"$f":"'[1]6'!V51","v":0},{"$f":"'[1]6'!V51","v":0},0]
[1,"EX1123",null,null,null,"Computer services",null,null,{"$f":"'[1]6'!J52","v":0},{"$f":"'[1]6'!L52","v":0},{"$f":"'[1]6'!N52","v":0},{"$f":"'[1]6'!N52","v":0},{"$f":"'[1]6'!Q52","v":0},{"$f":"'[1]6'!Q52","v":0},0,{"$f":"'[1]6'!T52","v":0},{"$f":"'[1]6'!T52","v":0},0,{"$f":"'[1]6'!V52","v":0},{"$f":"'[1]6'!V52","v":0},0]
[1,"EX1124",null,null,null,"Consultants: Business and advisory services",null,null,{"$f":"'[1]6'!J53","v":0},{"$f":"'[1]6'!L53","v":0},{"$f":"'[1]6'!N53","v":0},{"$f":"'[1]6'!N53","v":0},{"$f":"'[1]6'!Q53","v":0},{"$f":"'[1]6'!Q53","v":0},0,{"$f":"'[1]6'!T53","v":0},{"$f":"'[1]6'!T53","v":0},0,{"$f":"'[1]6'!V53","v":0},{"$f":"'[1]6'!V53","v":0},0]
[1,"EX1180",null,null,null,"Infrastructure and planning services",null,null,{"$f":"SUM(I55:I57)","v":0},0,0,0,0,0,{"$f":"SUM(N54-M54)","v":0},{"$f":"SUM(P55:P57)","v":0},{"$f":"SUM(Q55:Q57)","v":0},{"$f":"SUM(Q54-P54)","v":0},{"$f":"SUM(S55:S57)","v":0},{"$f":"SUM(T55:T57)","v":0},{"$f":"SUM(T54-S54)","v":0},{"$f":"SUM(V55:V57)","v":0}]
[1,"EX11801",null,null,null,"Maintenance and repairs: Buildings: Consultants",null,null,{"$f":"'[1]6'!J55","v":0},{"$f":"'[1]6'!L55","v":0},{"$f":"'[1]6'!N55","v":0},{"$f":"'[1]6'!N55","v":0},{"$f":"'[1]6'!Q55","v":0},{"$f":"'[1]6'!Q55","v":0},{"$f":"SUM(N55-M55)","v":0},{"$f":"'[1]6'!T55","v":0},{"$f":"'[1]6'!T55","v":0},{"$f":"SUM(Q55-P55)","v":0},{"$f":"'[1]6'!V55","v":0},{"$f":"'[1]6'!V55","v":0},0]
[1,"EX11802",null,null,null,"Maintenance and repairs: Other fixed structures: Consultants",null,null,{"$f":"'[1]6'!J56","v":0},{"$f":"'[1]6'!L56","v":0},{"$f":"'[1]6'!N56","v":0},{"$f":"'[1]6'!N56","v":0},{"$f":"'[1]6'!Q56","v":0},{"$f":"'[1]6'!Q56","v":0},0,{"$f":"'[1]6'!T56","v":0},{"$f":"'[1]6'!T56","v":0},0,{"$f":"'[1]6'!V56","v":0},{"$f":"'[1]6'!V56","v":0},0]
[1,"EX11803",null,null,null,"Other",null,null,{"$f":"'[1]6'!J57","v":0},{"$f":"'[1]6'!L57","v":0},{"$f":"'[1]6'!N57","v":0},{"$f":"'[1]6'!N57","v":0},{"$f":"'[1]6'!Q57","v":0},{"$f":"'[1]6'!Q57","v":0},0,{"$f":"'[1]6'!T57","v":0},{"$f":"'[1]6'!T57","v":0},0,{"$f":"'[1]6'!V57","v":0},{"$f":"'[1]6'!V57","v":0},0]
[1,"EX1164",null,null,null,"Laboratory services",null,null,{"$f":"'[1]6'!J58","v":0},{"$f":"'[1]6'!L58","v":0},{"$f":"'[1]6'!N58","v":0},{"$f":"'[1]6'!N58","v":0},{"$f":"'[1]6'!Q58","v":0},{"$f":"'[1]6'!Q58","v":0},0,{"$f":"'[1]6'!T58","v":0},{"$f":"'[1]6'!T58","v":0},0,{"$f":"'[1]6'!V58","v":0},{"$f":"'[1]6'!V58","v":0},0]
[1,"EX1162",null,null,null,"Legal services (G&S)",null,null,{"$f":"'[1]6'!J59","v":0},{"$f":"'[1]6'!L59","v":0},{"$f":"'[1]6'!N59","v":0},{"$f":"'[1]6'!N59","v":0},{"$f":"'[1]6'!Q59","v":0},{"$f":"'[1]6'!Q59","v":0},0,{"$f":"'[1]6'!T59","v":0},{"$f":"'[1]6'!T59","v":0},0,{"$f":"'[1]6'!V59","v":0},{"$f":"'[1]6'!V59","v":0},0]
[1,"EX1165",null,null,null,"Science and technological services",null,null,{"$f":"'[1]6'!J60","v":0},{"$f":"'[1]6'!L60","v":0},{"$f":"'[1]6'!N60","v":0},{"$f":"'[1]6'!N60","v":0},{"$f":"'[1]6'!Q60","v":0},{"$f":"'[1]6'!Q60","v":0},0,{"$f":"'[1]6'!T60","v":0},{"$f":"'[1]6'!T60","v":0},0,{"$f":"'[1]6'!V60","v":0},{"$f":"'[1]6'!V60","v":0},0]
[1,"EX1125",null,null,null,"Contractors",null,null,{"$f":"SUM(I62:I66,I72)","v":0},0,0,0,0,0,{"$f":"SUM(N61-M61)","v":0},{"$f":"SUM(P62:P66,P72)","v":0},{"$f":"SUM(Q62:Q66,Q72)","v":0},{"$f":"SUM(Q61-P61)","v":0},{"$f":"SUM(S62:S66,S72)","v":0},{"$f":"SUM(T62:T66,T72)","v":0},0,{"$f":"SUM(V62:V66,V72)","v":0}]
[1,"EX11251",null,null,null,"Maintenance and repairs of other fixed structures",null,null,{"$f":"'[1]6'!J62","v":0},{"$f":"'[1]6'!L62","v":0},{"$f":"'[1]6'!N62","v":0},{"$f":"'[1]6'!N62","v":0},{"$f":"'[1]6'!Q62","v":0},{"$f":"'[1]6'!Q62","v":0},0,{"$f":"'[1]6'!T62","v":0},{"$f":"'[1]6'!T62","v":0},0,{"$f":"'[1]6'!V62","v":0},{"$f":"'[1]6'!V62","v":0},0]
[1,"EX11252",null,null,null,"Maintenance and repairs of other machinery and equipment",null,null,{"$f":"'[1]6'!J63","v":0},{"$f":"'[1]6'!L63","v":0},{"$f":"'[1]6'!N63","v":0},{"$f":"'[1]6'!N63","v":0},{"$f":"'[1]6'!Q63","v":0},{"$f":"'[1]6'!Q63","v":0},0,{"$f":"'[1]6'!T63","v":0},{"$f":"'[1]6'!T63","v":0},0,{"$f":"'[1]6'!V63","v":0},{"$f":"'[1]6'!V63","v":0},0]
[1,"EX11253",null,null,null,"Maintenance and repairs of heritage buildings",null,null,{"$f":"'[1]6'!J64","v":0},{"$f":"'[1]6'!L64","v":0},{"$f":"'[1]6'!N64","v":0},{"$f":"'[1]6'!N64","v":0},{"$f":"'[1]6'!Q64","v":0},{"$f":"'[1]6'!Q64","v":0},0,{"$f":"'[1]6'!T64","v":0},{"$f":"'[1]6'!T64","v":0},0,{"$f":"'[1]6'!V64","v":0},{"$f":"'[1]6'!V64","v":0},0]
[1,"EX11254",null,null,null,"Maintenance and repairs of other heritage fixed structures",null,null,{"$f":"'[1]6'!J65","v":0},{"$f":"'[1]6'!L65","v":0},{"$f":"'[1]6'!N65","v":0},{"$f":"'[1]6'!N65","v":0},{"$f":"'[1]6'!Q65","v":0},{"$f":"'[1]6'!Q65","v":0},0,{"$f":"'[1]6'!T65","v":0},{"$f":"'[1]6'!T65","v":0},0,{"$f":"'[1]6'!V65","v":0},{"$f":"'[1]6'!V65","v":0},0]
[5,"EX11255",null,null,null,"South african social security agency payment contractors",null,null,{"$f":"SUM(I67:I71)","v":0},0,0,0,0,0,0,{"$f":"SUM(P67:P71)","v":0},{"$f":"SUM(Q67:Q71)","v":0},0,{"$f":"SUM(S67:S71)","v":0},{"$f":"SUM(T67:T71)","v":0},0,{"$f":"SUM(V67:V71)","v":0}]
[5,"EX112551",null,null,null,"SASSA Admin fees",null,null,{"$f":"'[1]6'!J67","v":0},{"$f":"'[1]6'!L67","v":0},{"$f":"'[1]6'!N67","v":0},{"$f":"'[1]6'!N67","v":0},{"$f":"'[1]6'!Q67","v":0},{"$f":"'[1]6'!Q67","v":0},{"$f":"SUM(N67-M67)","v":0},{"$f":"'[1]6'!T67","v":0},{"$f":"'[1]6'!T67","v":0},{"$f":"SUM(Q67-P67)","v":0},{"$f":"'[1]6'!V67","v":0},{"$f":"'[1]6'!V67","v":0},{"$f":"SUM(T67-S67)","v":0}]
[5,"EX112552",null,null,null,"SASSA Bankcard fees",null,null,{"$f":"'[1]6'!J68","v":0},{"$f":"'[1]6'!L68","v":0},{"$f":"'[1]6'!N68","v":0},{"$f":"'[1]6'!N68","v":0},{"$f":"'[1]6'!Q68","v":0},{"$f":"'[1]6'!Q68","v":0},0,{"$f":"'[1]6'!T68","v":0},{"$f":"'[1]6'!T68","v":0},0,{"$f":"'[1]6'!V68","v":0},{"$f":"'[1]6'!V68","v":0},0]
[5,"EX112553",null,null,null,"SASSA registration fees",null,null,{"$f":"'[1]6'!J69","v":0},{"$f":"'[1]6'!L69","v":0},{"$f":"'[1]6'!N69","v":0},{"$f":"'[1]6'!N69","v":0},{"$f":"'[1]6'!Q69","v":0},{"$f":"'[1]6'!Q69","v":0},0,{"$f":"'[1]6'!T69","v":0},{"$f":"'[1]6'!T69","v":0},0,{"$f":"'[1]6'!V69","v":0},{"$f":"'[1]6'!V69","v":0},0]
[5,"EX112554",null,null,null,"SASSA beneficiary fees",null,null,{"$f":"'[1]6'!J70","v":0},{"$f":"'[1]6'!L70","v":0},{"$f":"'[1]6'!N70","v":0},{"$f":"'[1]6'!N70","v":0},{"$f":"'[1]6'!Q70","v":0},{"$f":"'[1]6'!Q70","v":0},0,{"$f":"'[1]6'!T70","v":0},{"$f":"'[1]6'!T70","v":0},0,{"$f":"'[1]6'!V70","v":0},{"$f":"'[1]6'!V70","v":0},0]
[5,"EX112555",null,null,null,"SASSA help desk fees",null,null,{"$f":"'[1]6'!J71","v":0},{"$f":"'[1]6'!L71","v":0},{"$f":"'[1]6'!N71","v":0},{"$f":"'[1]6'!N71","v":0},{"$f":"'[1]6'!Q71","v":0},{"$f":"'[1]6'!Q71","v":0},0,{"$f":"'[1]6'!T71","v":0},{"$f":"'[1]6'!T71","v":0},0,{"$f":"'[1]6'!V71","v":0},{"$f":"'[1]6'!V71","v":0},0]
[1,"EX11256",null,null,null,"Other",null,null,{"$f":"'[1]6'!J72","v":0},{"$f":"'[1]6'!L72","v":0},{"$f":"'[1]6'!N72","v":0},{"$f":"'[1]6'!N72","v":0},{"$f":"'[1]6'!Q72","v":0},{"$f":"'[1]6'!Q72","v":0},0,{"$f":"'[1]6'!T72","v":0},{"$f":"'[1]6'!T72","v":0},0,{"$f":"'[1]6'!V72","v":0},{"$f":"'[1]6'!V72","v":0},0]
[1,"EX1121",null,null,null,"Agency and support/outsourced services",null,null,{"$f":"'[1]6'!J73","v":0},{"$f":"'[1]6'!L73","v":0},{"$f":"'[1]6'!N73","v":0},{"$f":"'[1]6'!N73","v":0},{"$f":"'[1]6'!Q73","v":0},{"$f":"'[1]6'!Q73","v":0},0,{"$f":"'[1]6'!T73","v":0},{"$f":"'[1]6'!T73","v":0},0,{"$f":"'[1]6'!V73","v":0},{"$f":"'[1]6'!V73","v":0},0]
[5,"EX11211",null,null,null,"     Of Which: Medical assessments",null,null,{"$f":"'[1]6'!J74","v":0},{"$f":"'[1]6'!L74","v":0},{"$f":"'[1]6'!N74","v":0},{"$f":"'[1]6'!N74","v":0},{"$f":"'[1]6'!Q74","v":0},{"$f":"'[1]6'!Q74","v":0},0,{"$f":"'[1]6'!T74","v":0},{"$f":"'[1]6'!T74","v":0},0,{"$f":"'[1]6'!V74","v":0},{"$f":"'[1]6'!V74","v":0},0]
[1,"EX1161",null,null,null,"Entertainment",null,null,{"$f":"'[1]6'!J75","v":0},{"$f":"'[1]6'!L75","v":0},{"$f":"'[1]6'!N75","v":0},{"$f":"'[1]6'!N75","v":0},{"$f":"'[1]6'!Q75","v":0},{"$f":"'[1]6'!Q75","v":0},0,{"$f":"'[1]6'!T75","v":0},{"$f":"'[1]6'!T75","v":0},0,{"$f":"'[1]6'!V75","v":0},{"$f":"'[1]6'!V75","v":0},0]
[1,"EX1166",null,null,null,"Fleet services (including government motor transport)",null,null,{"$f":"'[1]6'!J76","v":0},{"$f":"'[1]6'!L76","v":0},{"$f":"'[1]6'!N76","v":0},{"$f":"'[1]6'!N76","v":0},{"$f":"'[1]6'!Q76","v":0},{"$f":"'[1]6'!Q76","v":0},0,{"$f":"'[1]6'!T76","v":0},{"$f":"'[1]6'!T76","v":0},0,{"$f":"'[1]6'!V76","v":0},{"$f":"'[1]6'!V76","v":0},0]
[1,"EX1167",null,null,null,"Housing",null,null,{"$f":"'[1]6'!J77","v":0},{"$f":"'[1]6'!L77","v":0},{"$f":"'[1]6'!N77","v":0},{"$f":"'[1]6'!N77","v":0},{"$f":"'[1]6'!Q77","v":0},{"$f":"'[1]6'!Q77","v":0},0,{"$f":"'[1]6'!T77","v":0},{"$f":"'[1]6'!T77","v":0},0,{"$f":"'[1]6'!V77","v":0},{"$f":"'[1]6'!V77","v":0},0]
[1,"EX1168",null,null,null,"Inventory: Clothing material and accessories",null,null,{"$f":"'[1]6'!J78","v":0},{"$f":"'[1]6'!L78","v":0},{"$f":"'[1]6'!N78","v":0},{"$f":"'[1]6'!N78","v":0},{"$f":"'[1]6'!Q78","v":0},{"$f":"'[1]6'!Q78","v":0},0,{"$f":"'[1]6'!T78","v":0},{"$f":"'[1]6'!T78","v":0},0,{"$f":"'[1]6'!V78","v":0},{"$f":"'[1]6'!V78","v":0},0]
[1,"EX1169",null,null,null,"Inventory: Farming supplies",null,null,{"$f":"'[1]6'!J79","v":0},{"$f":"'[1]6'!L79","v":0},{"$f":"'[1]6'!N79","v":0},{"$f":"'[1]6'!N79","v":0},{"$f":"'[1]6'!Q79","v":0},{"$f":"'[1]6'!Q79","v":0},0,{"$f":"'[1]6'!T79","v":0},{"$f":"'[1]6'!T79","v":0},0,{"$f":"'[1]6'!V79","v":0},{"$f":"'[1]6'!V79","v":0},0]
[1,"EX1170",null,null,null,"Inventory: Food and food supplies",null,null,{"$f":"'[1]6'!J80","v":0},{"$f":"'[1]6'!L80","v":0},{"$f":"'[1]6'!N80","v":0},{"$f":"'[1]6'!N80","v":0},{"$f":"'[1]6'!Q80","v":0},{"$f":"'[1]6'!Q80","v":0},0,{"$f":"'[1]6'!T80","v":0},{"$f":"'[1]6'!T80","v":0},0,{"$f":"'[1]6'!V80","v":0},{"$f":"'[1]6'!V80","v":0},0]
[1,"EX1171",null,null,null,"Inventory: Fuel, oil and gas",null,null,{"$f":"'[1]6'!J81","v":0},{"$f":"'[1]6'!L81","v":0},{"$f":"'[1]6'!N81","v":0},{"$f":"'[1]6'!N81","v":0},{"$f":"'[1]6'!Q81","v":0},{"$f":"'[1]6'!Q81","v":0},0,{"$f":"'[1]6'!T81","v":0},{"$f":"'[1]6'!T81","v":0},0,{"$f":"'[1]6'!V81","v":0},{"$f":"'[1]6'!V81","v":0},0]
[1,"EX1172",null,null,null,"Inventory: Learner and teacher support material",null,null,{"$f":"'[1]6'!J82","v":0},{"$f":"'[1]6'!L82","v":0},{"$f":"'[1]6'!N82","v":0},{"$f":"'[1]6'!N82","v":0},{"$f":"'[1]6'!Q82","v":0},{"$f":"'[1]6'!Q82","v":0},0,{"$f":"'[1]6'!T82","v":0},{"$f":"'[1]6'!T82","v":0},0,{"$f":"'[1]6'!V82","v":0},{"$f":"'[1]6'!V82","v":0},0]
[1,"EX1126",null,null,null,"Inventory: Materials and supplies",null,null,{"$f":"'[1]6'!J83","v":0},{"$f":"'[1]6'!L83","v":0},{"$f":"'[1]6'!N83","v":0},{"$f":"'[1]6'!N83","v":0},{"$f":"'[1]6'!Q83","v":0},{"$f":"'[1]6'!Q83","v":0},0,{"$f":"'[1]6'!T83","v":0},{"$f":"'[1]6'!T83","v":0},0,{"$f":"'[1]6'!V83","v":0},{"$f":"'[1]6'!V83","v":0},0]
[1,"EX1173",null,null,null,"Inventory: Medical supplies",null,null,{"$f":"'[1]6'!J84","v":0},{"$f":"'[1]6'!L84","v":0},{"$f":"'[1]6'!N84","v":0},{"$f":"'[1]6'!N84","v":0},{"$f":"'[1]6'!Q84","v":0},{"$f":"'[1]6'!Q84","v":0},0,{"$f":"'[1]6'!T84","v":0},{"$f":"'[1]6'!T84","v":0},0,{"$f":"'[1]6'!V84","v":0},{"$f":"'[1]6'!V84","v":0},0]
[1,"EX1174",null,null,null,"Inventory: Medicine",null,null,{"$f":"'[1]6'!J85","v":0},{"$f":"'[1]6'!L85","v":0},{"$f":"'[1]6'!N85","v":0},{"$f":"'[1]6'!N85","v":0},{"$f":"'[1]6'!Q85","v":0},{"$f":"'[1]6'!Q85","v":0},0,{"$f":"'[1]6'!T85","v":0},{"$f":"'[1]6'!T85","v":0},0,{"$f":"'[1]6'!V85","v":0},{"$f":"'[1]6'!V85","v":0},0]
[1,"EX1175",null,null,null,"Medsas inventory interface",null,null,{"$f":"'[1]6'!J86","v":0},{"$f":"'[1]6'!L86","v":0},{"$f":"'[1]6'!N86","v":0},{"$f":"'[1]6'!N86","v":0},{"$f":"'[1]6'!Q86","v":0},{"$f":"'[1]6'!Q86","v":0},0,{"$f":"'[1]6'!T86","v":0},{"$f":"'[1]6'!T86","v":0},0,{"$f":"'[1]6'!V86","v":0},{"$f":"'[1]6'!V86","v":0},0]
[1,"EX1176",null,null,null,"Inventory: Other supplies",null,null,{"$f":"'[1]6'!J87","v":0},{"$f":"'[1]6'!L87","v":0},{"$f":"'[1]6'!N87","v":0},{"$f":"'[1]6'!N87","v":0},{"$f":"'[1]6'!Q87","v":0},{"$f":"'[1]6'!Q87","v":0},0,{"$f":"'[1]6'!T87","v":0},{"$f":"'[1]6'!T87","v":0},0,{"$f":"'[1]6'!V87","v":0},{"$f":"'[1]6'!V87","v":0},0]
[1,"EX1177",null,null,null,"Consumable supplies",null,null,{"$f":"'[1]6'!J88","v":0},{"$f":"'[1]6'!L88","v":0},{"$f":"'[1]6'!N88","v":0},{"$f":"'[1]6'!N88","v":0},{"$f":"'[1]6'!Q88","v":0},{"$f":"'[1]6'!Q88","v":0},0,{"$f":"'[1]6'!T88","v":0},{"$f":"'[1]6'!T88","v":0},0,{"$f":"'[1]6'!V88","v":0},{"$f":"'[1]6'!V88","v":0},0]
[1,"EX1144",null,null,null,"Consumables: Stationery, printing and office supplies",null,null,{"$f":"'[1]6'!J89","v":0},{"$f":"'[1]6'!L89","v":0},{"$f":"'[1]6'!N89","v":0},{"$f":"'[1]6'!N89","v":0},{"$f":"'[1]6'!Q89","v":0},{"$f":"'[1]6'!Q89","v":0},0,{"$f":"'[1]6'!T89","v":0},{"$f":"'[1]6'!T89","v":0},0,{"$f":"'[1]6'!V89","v":0},{"$f":"'[1]6'!V89","v":0},0]
[1,"EX1127",null,null,null,"Operating leases",null,null,{"$f":"'[1]6'!J90","v":0},{"$f":"'[1]6'!L90","v":0},{"$f":"'[1]6'!N90","v":0},{"$f":"'[1]6'!N90","v":0},{"$f":"'[1]6'!Q90","v":0},{"$f":"'[1]6'!Q90","v":0},0,{"$f":"'[1]6'!T90","v":0},{"$f":"'[1]6'!T90","v":0},0,{"$f":"'[1]6'!V90","v":0},{"$f":"'[1]6'!V90","v":0},0]
[1,"EX1178",null,null,null,"Rental and hiring",null,null,{"$f":"'[1]6'!J91","v":0},{"$f":"'[1]6'!L91","v":0},{"$f":"'[1]6'!N91","v":0},{"$f":"'[1]6'!N91","v":0},{"$f":"'[1]6'!Q91","v":0},{"$f":"'[1]6'!Q91","v":0},0,{"$f":"'[1]6'!T91","v":0},{"$f":"'[1]6'!T91","v":0},0,{"$f":"'[1]6'!V91","v":0},{"$f":"'[1]6'!V91","v":0},0]
[1,"EX1145",null,null,null,"Property payments",null,null,{"$f":"'[1]6'!J92","v":0},{"$f":"'[1]6'!L92","v":0},{"$f":"'[1]6'!N92","v":0},{"$f":"'[1]6'!N92","v":0},{"$f":"'[1]6'!Q92","v":0},{"$f":"'[1]6'!Q92","v":0},0,{"$f":"'[1]6'!T92","v":0},{"$f":"'[1]6'!T92","v":0},0,{"$f":"'[1]6'!V92","v":0},{"$f":"'[1]6'!V92","v":0},0]
[1,"EX1179",null,null,null,"Transport provided: Internal activities",null,null,{"$f":"'[1]6'!J93","v":0},{"$f":"'[1]6'!L93","v":0},{"$f":"'[1]6'!N93","v":0},{"$f":"'[1]6'!N93","v":0},{"$f":"'[1]6'!Q93","v":0},{"$f":"'[1]6'!Q93","v":0},0,{"$f":"'[1]6'!T93","v":0},{"$f":"'[1]6'!T93","v":0},0,{"$f":"'[1]6'!V93","v":0},{"$f":"'[1]6'!V93","v":0},0]
[1,"EX1131",null,null,null,"Travel and subsistence",null,null,{"$f":"'[1]6'!J94","v":0},{"$f":"'[1]6'!L94","v":0},{"$f":"'[1]6'!N94","v":0},{"$f":"'[1]6'!N94","v":0},{"$f":"'[1]6'!Q94","v":0},{"$f":"'[1]6'!Q94","v":0},0,{"$f":"'[1]6'!T94","v":0},{"$f":"'[1]6'!T94","v":0},0,{"$f":"'[1]6'!V94","v":0},{"$f":"'[1]6'!V94","v":0},0]
[1,"EX1130",null,null,null,"Training and development",null,null,{"$f":"'[1]6'!J95","v":0},{"$f":"'[1]6'!L95","v":0},{"$f":"'[1]6'!N95","v":0},{"$f":"'[1]6'!N95","v":0},{"$f":"'[1]6'!Q95","v":0},{"$f":"'[1]6'!Q95","v":0},0,{"$f":"'[1]6'!T95","v":0},{"$f":"'[1]6'!T95","v":0},0,{"$f":"'[1]6'!V95","v":0},{"$f":"'[1]6'!V95","v":0},0]
[1,"EX1132",null,null,null,"Operating payments",null,null,{"$f":"'[1]6'!J96","v":0},{"$f":"'[1]6'!L96","v":0},{"$f":"'[1]6'!N96","v":0},{"$f":"'[1]6'!N96","v":0},{"$f":"'[1]6'!Q96","v":0},{"$f":"'[1]6'!Q96","v":0},0,{"$f":"'[1]6'!T96","v":0},{"$f":"'[1]6'!T96","v":0},0,{"$f":"'[1]6'!V96","v":0},{"$f":"'[1]6'!V96","v":0},0]
[1,"EX1146",null,null,null,"Venues and facilities",null,null,{"$f":"'[1]6'!J97","v":0},{"$f":"'[1]6'!L97","v":0},{"$f":"'[1]6'!N97","v":0},{"$f":"'[1]6'!N97","v":0},{"$f":"'[1]6'!Q97","v":0},{"$f":"'[1]6'!Q97","v":0},0,{"$f":"'[1]6'!T97","v":0},{"$f":"'[1]6'!T97","v":0},0,{"$f":"'[1]6'!V97","v":0},{"$f":"'[1]6'!V97","v":0},0]
[1,"EX113",null,null,null,"Depreciation",null,null,{"$f":"'[1]6'!J98","v":0},{"$f":"'[1]6'!L98","v":0},{"$f":"'[1]6'!N98","v":0},{"$f":"'[1]6'!N98","v":0},{"$f":"'[1]6'!Q98","v":0},{"$f":"'[1]6'!Q98","v":0},0,{"$f":"'[1]6'!T98","v":0},{"$f":"'[1]6'!T98","v":0},0,{"$f":"'[1]6'!V98","v":0},{"$f":"'[1]6'!V98","v":0},0]
[1,"EX114",null,null,null,"Losses from",null,null,{"$f":"SUM(I100:I101,I104)","v":0},0,0,0,0,0,{"$f":"SUM(N99-M99)","v":0},{"$f":"SUM(P100:P101,P104)","v":0},{"$f":"SUM(Q100:Q101,Q104)","v":0},{"$f":"SUM(Q99-P99)","v":0},{"$f":"SUM(S100:S101,S104)","v":0},{"$f":"SUM(T100:T101,T104)","v":0},{"$f":"SUM(T99-S99)","v":0},{"$f":"SUM(V100:V101,V104)","v":0}]
[1,"EX1141",null,null,null,"Sale of fixed assets",null,null,{"$f":"'[1]6'!J100","v":0},{"$f":"'[1]6'!L100","v":0},{"$f":"'[1]6'!N100","v":0},{"$f":"'[1]6'!N100","v":0},{"$f":"'[1]6'!Q100","v":0},{"$f":"'[1]6'!Q100","v":0},0,{"$f":"'[1]6'!T100","v":0},{"$f":"'[1]6'!T100","v":0},0,{"$f":"'[1]6'!V100","v":0},{"$f":"'[1]6'!V100","v":0},0]
[1,"EX1142",null,null,null,"Impairments and adjustments to fair value",null,null,{"$f":"SUM(I102:I103)","v":0},0,0,0,0,0,0,{"$f":"SUM(P102:P103)","v":0},{"$f":"SUM(Q102:Q103)","v":0},0,{"$f":"SUM(S102:S103)","v":0},{"$f":"SUM(T102:T103)","v":0},0,{"$f":"SUM(V102:V103)","v":0}]
[1,"EX11421",null,null,null,"Adjustments to fair value of assets",null,null,{"$f":"'[1]6'!J102","v":0},{"$f":"'[1]6'!L102","v":0},{"$f":"'[1]6'!N102","v":0},{"$f":"'[1]6'!N102","v":0},{"$f":"'[1]6'!Q102","v":0},{"$f":"'[1]6'!Q102","v":0},0,{"$f":"'[1]6'!T102","v":0},{"$f":"'[1]6'!T102","v":0},0,{"$f":"'[1]6'!V102","v":0},{"$f":"'[1]6'!V102","v":0},0]
[1,"EX11422",null,null,null,"Impairments to assets",null,null,{"$f":"'[1]6'!J103","v":0},{"$f":"'[1]6'!L103","v":0},{"$f":"'[1]6'!N103","v":0},{"$f":"'[1]6'!N103","v":0},{"$f":"'[1]6'!Q103","v":0},{"$f":"'[1]6'!Q103","v":0},0,{"$f":"'[1]6'!T103","v":0},{"$f":"'[1]6'!T103","v":0},0,{"$f":"'[1]6'!V103","v":0},{"$f":"'[1]6'!V103","v":0},0]
[1,"EX1143",null,null,null,"Other",null,null,{"$f":"'[1]6'!J104","v":0},{"$f":"'[1]6'!L104","v":0},{"$f":"'[1]6'!N104","v":0},{"$f":"'[1]6'!N104","v":0},{"$f":"'[1]6'!Q104","v":0},{"$f":"'[1]6'!Q104","v":0},0,{"$f":"'[1]6'!T104","v":0},{"$f":"'[1]6'!T104","v":0},0,{"$f":"'[1]6'!V104","v":0},{"$f":"'[1]6'!V104","v":0},0]
[1,"EX115",null,null,null,"Interest, dividends and rent on land",null,null,{"$f":"SUM(I106:I108)","v":0},0,0,0,0,0,0,{"$f":"SUM(P106:P108)","v":0},{"$f":"SUM(Q106:Q108)","v":0},0,{"$f":"SUM(S106:S108)","v":0},{"$f":"SUM(T106:T108)","v":0},0,{"$f":"SUM(V106:V108)","v":0}]
[1,"EX1151",null,null,null,"Interest",null,null,{"$f":"'[1]6'!J106","v":0},{"$f":"'[1]6'!L106","v":0},{"$f":"'[1]6'!N106","v":0},{"$f":"'[1]6'!N106","v":0},{"$f":"'[1]6'!Q106","v":0},{"$f":"'[1]6'!Q106","v":0},0,{"$f":"'[1]6'!T106","v":0},{"$f":"'[1]6'!T106","v":0},0,{"$f":"'[1]6'!V106","v":0},{"$f":"'[1]6'!V106","v":0},0]
[1,"EX1152",null,null,null,"Dividends",null,null,{"$f":"'[1]6'!J107","v":0},{"$f":"'[1]6'!L107","v":0},{"$f":"'[1]6'!N107","v":0},{"$f":"'[1]6'!N107","v":0},{"$f":"'[1]6'!Q107","v":0},{"$f":"'[1]6'!Q107","v":0},0,{"$f":"'[1]6'!T107","v":0},{"$f":"'[1]6'!T107","v":0},0,{"$f":"'[1]6'!V107","v":0},{"$f":"'[1]6'!V107","v":0},0]
[1,"EX1153",null,null,null,"Rent on land",null,null,{"$f":"'[1]6'!J108","v":0},{"$f":"'[1]6'!L108","v":0},{"$f":"'[1]6'!N108","v":0},{"$f":"'[1]6'!N108","v":0},{"$f":"'[1]6'!Q108","v":0},{"$f":"'[1]6'!Q108","v":0},0,{"$f":"'[1]6'!T108","v":0},{"$f":"'[1]6'!T108","v":0},0,{"$f":"'[1]6'!V108","v":0},{"$f":"'[1]6'!V108","v":0},0]
[1,"EX12",null,null,null,"Transfers and subsidies",null,null,{"$f":"SUM(I110,I121,I132:I135)","v":0},0,0,0,0,0,0,{"$f":"SUM(P110,P121,P132:P135)","v":0},{"$f":"SUM(Q110,Q121,Q132:Q135)","v":0},0,{"$f":"SUM(S110,S121,S132:S135)","v":0},{"$f":"SUM(T110,T121,T132:T135)","v":0},0,{"$f":"SUM(V110,V121,V132:V135)","v":0}]
[2,"EX121",null,null,null,"Employer Grant (SETAs only)",null,null,{"$f":"SUM(I111,I117,I120)","v":0},0,0,0,0,0,0,{"$f":"SUM(P111,P117,P120)","v":0},{"$f":"SUM(Q111,Q117,Q120)","v":0},0,{"$f":"SUM(S111,S117,S120)","v":0},{"$f":"SUM(T111,T117,T120)","v":0},0,{"$f":"SUM(V111,V117,V120)","v":0}]
[1,"EX122",null,null,null,"Other government units",null,null,{"$f":"SUM(I112:I116)","v":0},0,0,0,0,0,0,{"$f":"SUM(P112:P116)","v":0},{"$f":"SUM(Q112:Q116)","v":0},0,{"$f":"SUM(S112:S116)","v":0},{"$f":"SUM(T112:T116)","v":0},0,{"$f":"SUM(V112:V116)","v":0}]
[1,"EX1221",null,null,null,"National government",null,null,{"$f":"'[1]6'!J112","v":0},{"$f":"'[1]6'!L112","v":0},{"$f":"'[1]6'!N112","v":0},{"$f":"'[1]6'!N112","v":0},{"$f":"'[1]6'!Q112","v":0},{"$f":"'[1]6'!Q112","v":0},0,{"$f":"'[1]6'!T112","v":0},{"$f":"'[1]6'!T112","v":0},0,{"$f":"'[1]6'!V112","v":0},{"$f":"'[1]6'!V112","v":0},0]
[1,"EX1222",null,null,null,"Departmental agencies and accounts",null,null,{"$f":"'[1]6'!J113","v":0},{"$f":"'[1]6'!L113","v":0},{"$f":"'[1]6'!N113","v":0},{"$f":"'[1]6'!N113","v":0},{"$f":"'[1]6'!Q113","v":0},{"$f":"'[1]6'!Q113","v":0},0,{"$f":"'[1]6'!T113","v":0},{"$f":"'[1]6'!T113","v":0},0,{"$f":"'[1]6'!V113","v":0},{"$f":"'[1]6'!V113","v":0},0]
[1,"EX1223",null,null,null,"Provinces",null,null,{"$f":"'[1]6'!J114","v":0},{"$f":"'[1]6'!L114","v":0},{"$f":"'[1]6'!N114","v":0},{"$f":"'[1]6'!N114","v":0},{"$f":"'[1]6'!Q114","v":0},{"$f":"'[1]6'!Q114","v":0},0,{"$f":"'[1]6'!T114","v":0},{"$f":"'[1]6'!T114","v":0},0,{"$f":"'[1]6'!V114","v":0},{"$f":"'[1]6'!V114","v":0},0]
[1,"EX1224",null,null,null,"Municipalities",null,null,{"$f":"'[1]6'!J115","v":0},{"$f":"'[1]6'!L115","v":0},{"$f":"'[1]6'!N115","v":0},{"$f":"'[1]6'!N115","v":0},{"$f":"'[1]6'!Q115","v":0},{"$f":"'[1]6'!Q115","v":0},0,{"$f":"'[1]6'!T115","v":0},{"$f":"'[1]6'!T115","v":0},0,{"$f":"'[1]6'!V115","v":0},{"$f":"'[1]6'!V115","v":0},0]
[2,"EX1225",null,null,null,"National Skills Fund",null,null,{"$f":"'[1]6'!J116","v":0},{"$f":"'[1]6'!L116","v":0},{"$f":"'[1]6'!N116","v":0},{"$f":"'[1]6'!N116","v":0},{"$f":"'[1]6'!Q116","v":0},{"$f":"'[1]6'!Q116","v":0},0,{"$f":"'[1]6'!T116","v":0},{"$f":"'[1]6'!T116","v":0},0,{"$f":"'[1]6'!V116","v":0},{"$f":"'[1]6'!V116","v":0},0]
[1,"EX123",null,null,null,"Public corporations and private enterprises (subsidies and other transfers)",null,null,{"$f":"SUM(I118:I119)","v":0},0,0,0,0,0,0,{"$f":"SUM(P118:P119)","v":0},{"$f":"SUM(Q118:Q119)","v":0},0,{"$f":"SUM(S118:S119)","v":0},{"$f":"SUM(T118:T119)","v":0},0,{"$f":"SUM(V118:V119)","v":0}]
[1,"EX1231",null,null,null,"Public corporations",null,null,{"$f":"'[1]6'!J118","v":0},{"$f":"'[1]6'!L118","v":0},{"$f":"'[1]6'!N118","v":0},{"$f":"'[1]6'!N118","v":0},{"$f":"'[1]6'!Q118","v":0},{"$f":"'[1]6'!Q118","v":0},0,{"$f":"'[1]6'!T118","v":0},{"$f":"'[1]6'!T118","v":0},0,{"$f":"'[1]6'!V118","v":0},{"$f":"'[1]6'!V118","v":0},0]
[1,"EX1232",null,null,null,"Private enterprises",null,null,{"$f":"'[1]6'!J119","v":0},{"$f":"'[1]6'!L119","v":0},{"$f":"'[1]6'!N119","v":0},{"$f":"'[1]6'!N119","v":0},{"$f":"'[1]6'!Q119","v":0},{"$f":"'[1]6'!Q119","v":0},0,{"$f":"'[1]6'!T119","v":0},{"$f":"'[1]6'!T119","v":0},0,{"$f":"'[1]6'!V119","v":0},{"$f":"'[1]6'!V119","v":0},0]
[2,"EX124",null,null,null,"Households and non government units",null,null,{"$f":"'[1]6'!J120","v":0},{"$f":"'[1]6'!L120","v":0},{"$f":"'[1]6'!N120","v":0},{"$f":"'[1]6'!N120","v":0},{"$f":"'[1]6'!Q120","v":0},{"$f":"'[1]6'!Q120","v":0},0,{"$f":"'[1]6'!T120","v":0},{"$f":"'[1]6'!T120","v":0},0,{"$f":"'[1]6'!V120","v":0},{"$f":"'[1]6'!V120","v":0},0]
[2,"EX125",null,null,null,"Discretionary Grant (SETAs only)",null,null,{"$f":"SUM(I122,I128,I131)","v":0},0,0,0,0,0,0,{"$f":"SUM(P122,P128,P131)","v":0},{"$f":"SUM(Q122,Q128,Q131)","v":0},0,{"$f":"SUM(S122,S128,S131)","v":0},{"$f":"SUM(T122,T128,T131)","v":0},0,{"$f":"SUM(V122,V128,V131)","v":0}]
[2,"EX126",null,null,null,"Other government units",null,null,{"$f":"SUM(I123:I127)","v":0},0,0,0,0,0,0,{"$f":"SUM(P123:P127)","v":0},{"$f":"SUM(Q123:Q127)","v":0},0,{"$f":"SUM(S123:S127)","v":0},{"$f":"SUM(T123:T127)","v":0},0,{"$f":"SUM(V123:V127)","v":0}]
[2,"EX1261",null,null,null,"National government",null,null,{"$f":"'[1]6'!J123","v":0},{"$f":"'[1]6'!L123","v":0},{"$f":"'[1]6'!N123","v":0},{"$f":"'[1]6'!N123","v":0},{"$f":"'[1]6'!Q123","v":0},{"$f":"'[1]6'!Q123","v":0},0,{"$f":"'[1]6'!T123","v":0},{"$f":"'[1]6'!T123","v":0},0,{"$f":"'[1]6'!V123","v":0},{"$f":"'[1]6'!V123","v":0},0]
[2,"EX1262",null,null,null,"Departmental agencies and accounts",null,null,{"$f":"'[1]6'!J124","v":0},{"$f":"'[1]6'!L124","v":0},{"$f":"'[1]6'!N124","v":0},{"$f":"'[1]6'!N124","v":0},{"$f":"'[1]6'!Q124","v":0},{"$f":"'[1]6'!Q124","v":0},0,{"$f":"'[1]6'!T124","v":0},{"$f":"'[1]6'!T124","v":0},0,{"$f":"'[1]6'!V124","v":0},{"$f":"'[1]6'!V124","v":0},0]
[2,"EX1263",null,null,null,"Provinces",null,null,{"$f":"'[1]6'!J125","v":0},{"$f":"'[1]6'!L125","v":0},{"$f":"'[1]6'!N125","v":0},{"$f":"'[1]6'!N125","v":0},{"$f":"'[1]6'!Q125","v":0},{"$f":"'[1]6'!Q125","v":0},0,{"$f":"'[1]6'!T125","v":0},{"$f":"'[1]6'!T125","v":0},0,{"$f":"'[1]6'!V125","v":0},{"$f":"'[1]6'!V125","v":0},0]
[2,"EX1264",null,null,null,"Municipalities",null,null,{"$f":"'[1]6'!J126","v":0},{"$f":"'[1]6'!L126","v":0},{"$f":"'[1]6'!N126","v":0},{"$f":"'[1]6'!N126","v":0},{"$f":"'[1]6'!Q126","v":0},{"$f":"'[1]6'!Q126","v":0},0,{"$f":"'[1]6'!T126","v":0},{"$f":"'[1]6'!T126","v":0},0,{"$f":"'[1]6'!V126","v":0},{"$f":"'[1]6'!V126","v":0},0]
[2,"EX1265",null,null,null,"National Skills Fund",null,null,{"$f":"'[1]6'!J127","v":0},{"$f":"'[1]6'!L127","v":0},{"$f":"'[1]6'!N127","v":0},{"$f":"'[1]6'!N127","v":0},{"$f":"'[1]6'!Q127","v":0},{"$f":"'[1]6'!Q127","v":0},0,{"$f":"'[1]6'!T127","v":0},{"$f":"'[1]6'!T127","v":0},0,{"$f":"'[1]6'!V127","v":0},{"$f":"'[1]6'!V127","v":0},0]
[2,"EX127",null,null,null,"Public corporations and private enterprises (subsidies and other transfers)",null,null,{"$f":"SUM(I129:I130)","v":0},0,0,0,0,0,0,{"$f":"SUM(P129:P130)","v":0},{"$f":"SUM(Q129:Q130)","v":0},0,{"$f":"SUM(S129:S130)","v":0},{"$f":"SUM(T129:T130)","v":0},0,{"$f":"SUM(V129:V130)","v":0}]
[2,"EX1271",null,null,null,"Public corporations",null,null,{"$f":"'[1]6'!J129","v":0},{"$f":"'[1]6'!L129","v":0},{"$f":"'[1]6'!N129","v":0},{"$f":"'[1]6'!N129","v":0},{"$f":"'[1]6'!Q129","v":0},{"$f":"'[1]6'!Q129","v":0},0,{"$f":"'[1]6'!T129","v":0},{"$f":"'[1]6'!T129","v":0},0,{"$f":"'[1]6'!V129","v":0},{"$f":"'[1]6'!V129","v":0},{"$f":"SUM(T129-S129)","v":0}]
[2,"EX1272",null,null,null,"Private enterprises",null,null,{"$f":"'[1]6'!J130","v":0},{"$f":"'[1]6'!L130","v":0},{"$f":"'[1]6'!N130","v":0},{"$f":"'[1]6'!N130","v":0},{"$f":"'[1]6'!Q130","v":0},{"$f":"'[1]6'!Q130","v":0},0,{"$f":"'[1]6'!T130","v":0},{"$f":"'[1]6'!T130","v":0},0,{"$f":"'[1]6'!V130","v":0},{"$f":"'[1]6'!V130","v":0},0]
[2,"EX128",null,null,null,"Households and non government units",null,null,{"$f":"'[1]6'!J131","v":0},{"$f":"'[1]6'!L131","v":0},{"$f":"'[1]6'!N131","v":0},{"$f":"'[1]6'!N131","v":0},{"$f":"'[1]6'!Q131","v":0},{"$f":"'[1]6'!Q131","v":0},0,{"$f":"'[1]6'!T131","v":0},{"$f":"'[1]6'!T131","v":0},0,{"$f":"'[1]6'!V131","v":0},{"$f":"'[1]6'!V131","v":0},0]
[1,"EX129",null,null,null,"Higher education institutions",null,null,{"$f":"'[1]6'!J132","v":0},{"$f":"'[1]6'!L132","v":0},{"$f":"'[1]6'!N132","v":0},{"$f":"'[1]6'!N132","v":0},{"$f":"'[1]6'!Q132","v":0},{"$f":"'[1]6'!Q132","v":0},0,{"$f":"'[1]6'!T132","v":0},{"$f":"'[1]6'!T132","v":0},0,{"$f":"'[1]6'!V132","v":0},{"$f":"'[1]6'!V132","v":0},0]
[1,"EX130",null,null,null,"Foreign governments and international organisations ",null,null,{"$f":"'[1]6'!J133","v":0},{"$f":"'[1]6'!L133","v":0},{"$f":"'[1]6'!N133","v":0},{"$f":"'[1]6'!N133","v":0},{"$f":"'[1]6'!Q133","v":0},{"$f":"'[1]6'!Q133","v":0},0,{"$f":"'[1]6'!T133","v":0},{"$f":"'[1]6'!T133","v":0},0,{"$f":"'[1]6'!V133","v":0},{"$f":"'[1]6'!V133","v":0},0]
[1,"EX131",null,null,null,"Non-profit institutions",null,null,{"$f":"'[1]6'!J134","v":0},{"$f":"'[1]6'!L134","v":0},{"$f":"'[1]6'!N134","v":0},{"$f":"'[1]6'!N134","v":0},{"$f":"'[1]6'!Q134","v":0},{"$f":"'[1]6'!Q134","v":0},0,{"$f":"'[1]6'!T134","v":0},{"$f":"'[1]6'!T134","v":0},0,{"$f":"'[1]6'!V134","v":0},{"$f":"'[1]6'!V134","v":0},0]
[1,"EX132",null,null,null,"Households",null,null,{"$f":"SUM(I136:I137)","v":0},0,0,0,0,0,{"$f":"SUM(N135-M135)","v":0},{"$f":"SUM(P136:P137)","v":0},{"$f":"SUM(Q136:Q137)","v":0},{"$f":"SUM(Q135-P135)","v":0},{"$f":"SUM(S136:S137)","v":0},{"$f":"SUM(T136:T137)","v":0},{"$f":"SUM(T135-S135)","v":0},{"$f":"SUM(V136:V137)","v":0}]
[1,"EX1301",null,null,null,"Social benefits ",null,null,{"$f":"'[1]6'!J136","v":0},{"$f":"'[1]6'!L136","v":0},{"$f":"'[1]6'!N136","v":0},{"$f":"'[1]6'!N136","v":0},{"$f":"'[1]6'!Q136","v":0},{"$f":"'[1]6'!Q136","v":0},0,{"$f":"'[1]6'!T136","v":0},{"$f":"'[1]6'!T136","v":0},0,{"$f":"'[1]6'!V136","v":0},{"$f":"'[1]6'!V136","v":0},0]
[1,"EX1302",null,null,null,"Other transfers to households",null,null,{"$f":"'[1]6'!J137","v":0},{"$f":"'[1]6'!L137","v":0},{"$f":"'[1]6'!N137","v":0},{"$f":"'[1]6'!N137","v":0},{"$f":"'[1]6'!Q137","v":0},{"$f":"'[1]6'!Q137","v":0},0,{"$f":"'[1]6'!T137","v":0},{"$f":"'[1]6'!T137","v":0},0,{"$f":"'[1]6'!V137","v":0},{"$f":"'[1]6'!V137","v":0},0]
[1,"EX13",null,null,null,"Tax payment",null,null,{"$f":"'[1]6'!J138","v":0},{"$f":"'[1]6'!L138","v":0},{"$f":"'[1]6'!N138","v":0},{"$f":"'[1]6'!N138","v":0},{"$f":"'[1]6'!Q138","v":0},{"$f":"'[1]6'!Q138","v":0},0,{"$f":"'[1]6'!T138","v":0},{"$f":"'[1]6'!T138","v":0},0,{"$f":"'[1]6'!V138","v":0},{"$f":"'[1]6'!V138","v":0},0]
[1,"EX14",null,null,null,"Outside shareholders Interest",null,null,{"$f":"'[1]6'!J139","v":0},{"$f":"'[1]6'!L139","v":0},{"$f":"'[1]6'!N139","v":0},{"$f":"'[1]6'!N139","v":0},{"$f":"'[1]6'!Q139","v":0},{"$f":"'[1]6'!Q139","v":0},0,{"$f":"'[1]6'!T139","v":0},{"$f":"'[1]6'!T139","v":0},0,{"$f":"'[1]6'!V139","v":0},{"$f":"'[1]6'!V139","v":0},0]
[1,"EX15",null,null,null,"Total Expenditure",null,null,{"$f":"SUM(I39,I109,I138:I139)","v":0},0,0,0,0,0,0,{"$f":"SUM(P39,P109,P138:P139)","v":0},{"$f":"SUM(Q39,Q109,Q138:Q139)","v":0},0,{"$f":"SUM(S39,S109,S138:S139)","v":0},{"$f":"SUM(T39,T109,T138:T139)","v":0},0,{"$f":"SUM(V39,V109,V138:V139)","v":0}]
[1]
[1,null,null,null,null,"Objective less Expenditure",null,null,{"$f":"ROUND(IF(I37-I140>0,IF(I37-I140<1,0,I37-I140),I37-I140),0)","v":0},0,null,0,0,0,{"$f":"ROUND(IF(O37-O140>0,IF(O37-O140<1,0,O37-O140),O37-O140),0)","v":0},0,0,0,0,0,0,0]
[1]

{"sheet":"7","index":11,"n_rows":143,"n_cols":23,"rows_kept":143,"cut":false,"hidden":false,"merged":[[31,15,31,17],[31,18,31,20],[31,12,31,14],[31,10,31,11]]}
[]
[]
[]
[]
[]
[null,null,null,null,null,"PE No",{"$f":"Settings!O2","v":"PE126"}]
[null,null,null,null,null,"Entity name",{"$f":"Settings!$E$2","v":"South African Revenue Service"}]
[]
[null,null,null,null,null,"Performance and operations information"]
["ItemCat","Item code","Hide/unhide",null,null,"Activity/Output/Outcome/Efficiency Indicator","MTDP Outcomes",null,{"$f":"MyYearM3","v":"2022/23"},{"$f":"MyYearM2","v":"2023/24"},{"$f":"MyYearM1","v":"2024/25"},{"$f":"MyYear0","v":"2025/26"},{"$f":"MyYearP1","v":"2026/27"},{"$f":"MyYearP2","v":"2027/28"},{"$f":"MyYearP3","v":"2028/29"},"Related Objectives","Add to 'Performance Indicators' Sheet","Comments"]
[1,null,null,null,null,{"$f":"'[1]7'!F11","v":"Revenue collected (excluding customs and excise revenue) per year"},{"$f":"'[1]7'!G11","v":"Outcome 10: Reduced poverty and improved livelihoods"},0,{"$f":"'[1]7'!J11","v":"100.00% collection of revenue as agreed with Minister"},{"$f":"'[1]7'!K11","v":"100.00% collection of revenue as agreed with Minister"},{"$f":"'[1]7'!L11","v":"100.00% collection of revenue as agreed with Minister"},{"$f":"'[1]7'!M11","v":"100.00% collection of revenue as agreed with Minister"},{"$f":"'[1]7'!N11","v":0},{"$f":"'[1]7'!O11","v":0},null,{"$f":"'[1]7'!P11","v":"Operations & Delivery - National "},{"$f":"'[1]7'!Q11","v":"No"},{"$f":"'[1]7'!R11","v":0}]
[1,null,null,null,null,{"$f":"'[1]7'!F12","v":"% Uptake of PIT eFiling channel"},{"$f":"'[1]7'!G12","v":"Outcome 10: Reduced poverty and improved livelihoods"},0,{"$f":"'[1]7'!J12","v":0.56999999999999995},{"$f":"'[1]7'!K12","v":0},{"$f":"'[1]7'!L12","v":0},{"$f":"'[1]7'!M12","v":0},{"$f":"'[1]7'!N12","v":0},{"$f":"'[1]7'!O12","v":0},null,{"$f":"'[1]7'!P12","v":"Operations & Delivery - National "},{"$f":"'[1]7'!Q12","v":"No"},{"$f":"'[1]7'!R12","v":0}]
[1,null,null,null,null,{"$f":"'[1]7'!F13","v":"% PIT filing compliance"},{"$f":"'[1]7'!G13","v":"Outcome 10: Reduced poverty and improved livelihoods"},0,{"$f":"'[1]7'!J13","v":0.92},{"$f":"'[1]7'!K13","v":0},{"$f":"'[1]7'!L13","v":0},{"$f":"'[1]7'!M13","v":0},{"$f":"'[1]7'!N13","v":0},{"$f":"'[1]7'!O13","v":0},null,{"$f":"'[1]7'!P13","v":"Operations & Delivery - National "},{"$f":"'[1]7'!Q13","v":"No"},{"$f":"'[1]7'!R13","v":0}]
[1,null,null,null,null,{"$f":"'[1]7'!F14","v":"% PIT payment compliance"},{"$f":"'[1]7'!G14","v":"Outcome 10: Reduced poverty and improved livelihoods"},0,{"$f":"'[1]7'!J14","v":0.82},{"$f":"'[1]7'!K14","v":0},{"$f":"'[1]7'!L14","v":0},{"$f":"'[1]7'!M14","v":0},{"$f":"'[1]7'!N14","v":0},{"$f":"'[1]7'!O14","v":0},null,{"$f":"'[1]7'!P14","v":"Operations & Delivery - National "},{"$f":"'[1]7'!Q14","v":"No"},{"$f":"'[1]7'!R14","v":0}]
[1,null,null,null,null,{"$f":"'[1]7'!F15","v":"% CIT filing compliance"},{"$f":"'[1]7'!G15","v":"Outcome 10: Reduced poverty and improved livelihoods"},0,{"$f":"'[1]7'!J15","v":0.83},{"$f":"'[1]7'!K15","v":0},{"$f":"'[1]7'!L15","v":0},{"$f":"'[1]7'!M15","v":0},{"$f":"'[1]7'!N15","v":0},{"$f":"'[1]7'!O15","v":0},null,{"$f":"'[1]7'!P15","v":"Operations & Delivery - National "},{"$f":"'[1]7'!Q15","v":"No"},{"$f":"'[1]7'!R15","v":0}]
[1,null,null,null,null,{"$f":"'[1]7'!F16","v":"% CIT payment compliance"},{"$f":"'[1]7'!G16","v":"Outcome 10: Reduced poverty and improved livelihoods"},0,{"$f":"'[1]7'!J16","v":0.93},{"$f":"'[1]7'!K16","v":0},{"$f":"'[1]7'!L16","v":0},{"$f":"'[1]7'!M16","v":0},{"$f":"'[1]7'!N16","v":0},{"$f":"'[1]7'!O16","v":0},null,{"$f":"'[1]7'!P16","v":"Operations & Delivery - National "},{"$f":"'[1]7'!Q16","v":"No"},{"$f":"'[1]7'!R16","v":0}]
[1,null,null,null,null,{"$f":"'[1]7'!F17","v":"% VAT filing compliance"},{"$f":"'[1]7'!G17","v":"Outcome 10: Reduced poverty and improved livelihoods"},0,{"$f":"'[1]7'!J17","v":0.91},{"$f":"'[1]7'!K17","v":0},{"$f":"'[1]7'!L17","v":0},{"$f":"'[1]7'!M17","v":0},{"$f":"'[1]7'!N17","v":0},{"$f":"'[1]7'!O17","v":0},null,{"$f":"'[1]7'!P17","v":"Operations & Delivery - National "},{"$f":"'[1]7'!Q17","v":"No"},{"$f":"'[1]7'!R17","v":0}]
[1,null,null,null,null,{"$f":"'[1]7'!F18","v":"% VAT payment compliance"},{"$f":"'[1]7'!G18","v":"Outcome 10: Reduced poverty and improved livelihoods"},0,{"$f":"'[1]7'!J18","v":0.96},{"$f":"'[1]7'!K18","v":0},{"$f":"'[1]7'!L18","v":0},{"$f":"'[1]7'!M18","v":0},{"$f":"'[1]7'!N18","v":0},{"$f":"'[1]7'!O18","v":0},null,{"$f":"'[1]7'!P18","v":"Operations & Delivery - National "},{"$f":"'[1]7'!Q18","v":"No"},{"$f":"'[1]7'!R18","v":0}]
[1,null,null,null,null,{"$f":"'[1]7'!F19","v":"% PAYE filing compliance"},{"$f":"'[1]7'!G19","v":"Outcome 10: Reduced poverty and improved livelihoods"},0,{"$f":"'[1]7'!J19","v":0.87},{"$f":"'[1]7'!K19","v":0},{"$f":"'[1]7'!L19","v":0},{"$f":"'[1]7'!M19","v":0},{"$f":"'[1]7'!N19","v":0},{"$f":"'[1]7'!O19","v":0},null,{"$f":"'[1]7'!P19","v":"Operations & Delivery - National "},{"$f":"'[1]7'!Q19","v":"No"},{"$f":"'[1]7'!R19","v":0}]
[1,null,null,null,null,{"$f":"'[1]7'!F20","v":"% PAYE payment compliance"},{"$f":"'[1]7'!G20","v":"Outcome 10: Reduced poverty and improved livelihoods"},0,{"$f":"'[1]7'!J20","v":0.93},{"$f":"'[1]7'!K20","v":0},{"$f":"'[1]7'!L20","v":0},{"$f":"'[1]7'!M20","v":0},{"$f":"'[1]7'!N20","v":0},{"$f":"'[1]7'!O20","v":0},null,{"$f":"'[1]7'!P20","v":"Operations & Delivery - National "},{"$f":"'[1]7'!Q20","v":"No"},{"$f":"'[1]7'!R20","v":0}]
[1,null,null,null,null,{"$f":"'[1]7'!F21","v":"Average processing turn-around time for PIT returns (working days)"},{"$f":"'[1]7'!G21","v":"Outcome 10: Reduced poverty and improved livelihoods"},0,{"$f":"'[1]7'!J21","v":0},{"$f":"'[1]7'!K21","v":0},{"$f":"'[1]7'!L21","v":0},{"$f":"'[1]7'!M21","v":0},{"$f":"'[1]7'!N21","v":0},{"$f":"'[1]7'!O21","v":0},null,{"$f":"'[1]7'!P21","v":"Operations & Delivery - National "},{"$f":"'[1]7'!Q21","v":"No"},{"$f":"'[1]7'!R21","v":0}]
[1,null,null,null,null,{"$f":"'[1]7'!F22","v":"Average processing turn-around time for CIT returns (working days)"},{"$f":"'[1]7'!G22","v":"Outcome 10: Reduced poverty and improved livelihoods"},0,{"$f":"'[1]7'!J22","v":0},{"$f":"'[1]7'!K22","v":0},{"$f":"'[1]7'!L22","v":0},{"$f":"'[1]7'!M22","v":0},{"$f":"'[1]7'!N22","v":0},{"$f":"'[1]7'!O22","v":0},null,{"$f":"'[1]7'!P22","v":"Operations & Delivery - National "},{"$f":"'[1]7'!Q22","v":"No"},{"$f":"'[1]7'!R22","v":0}]
[1,null,null,null,null,{"$f":"'[1]7'!F23","v":"Average processing turn-around time for VAT returns (working days)"},{"$f":"'[1]7'!G23","v":"Outcome 10: Reduced poverty and improved livelihoods"},0,{"$f":"'[1]7'!J23","v":21},{"$f":"'[1]7'!K23","v":0},{"$f":"'[1]7'!L23","v":0},{"$f":"'[1]7'!M23","v":0},{"$f":"'[1]7'!N23","v":0},{"$f":"'[1]7'!O23","v":0},null,{"$f":"'[1]7'!P23","v":"Operations & Delivery - National "},{"$f":"'[1]7'!Q23","v":"No"},{"$f":"'[1]7'!R23","v":0}]
[1,null,null,null,null,{"$f":"'[1]7'!F24","v":"% improvement in the collection of overdue debt\n0"},{"$f":"'[1]7'!G24","v":"Outcome 10: Reduced poverty and improved livelihoods"},0,{"$f":"'[1]7'!J24","v":0.15},{"$f":"'[1]7'!K24","v":0},{"$f":"'[1]7'!L24","v":0},{"$f":"'[1]7'!M24","v":0},{"$f":"'[1]7'!N24","v":0},{"$f":"'[1]7'!O24","v":0},null,{"$f":"'[1]7'!P24","v":"Operations & Delivery - National "},{"$f":"'[1]7'!Q24","v":"No"},{"$f":"'[1]7'!R24","v":0}]
[1,null,null,null,null,{"$f":"'[1]7'!F25","v":"Debt Book as a % of tax revenue"},{"$f":"'[1]7'!G25","v":"Outcome 10: Reduced poverty and improved livelihoods"},0,{"$f":"'[1]7'!J25","v":0.06},{"$f":"'[1]7'!K25","v":0},{"$f":"'[1]7'!L25","v":0},{"$f":"'[1]7'!M25","v":0},{"$f":"'[1]7'!N25","v":0},{"$f":"'[1]7'!O25","v":0},null,{"$f":"'[1]7'!P25","v":"Operations & Delivery - National "},{"$f":"'[1]7'!Q25","v":"No"},{"$f":"'[1]7'!R25","v":0}]
[1,null,null,null,null,"Notes:"]
[1,null,null,null,null,"Performance indicators are an explanation of objectives performance.   "]
[1,null,null,null,null,"1. They are specific measurements that track progress towards achieving the goals and objectives of an institution."]
[1,null,null,null,null,"2. Institutions should use performance indicators in the 2024/25 Annual Performance Plans and those in the 2025 ENE. "]
[1,null,null,null,null,"3. Institutions should also indicate instances where targets are not affected by budget baseline reprioritisation."]
[1]
[1,null,null,null,null,null,null,null,{"$f":"MyYearM3","v":"2022/23"},{"$f":"MyYearM2","v":"2023/24"},{"$f":"MyYearM1","v":"2024/25"},null,{"$f":"MyYear0","v":"2025/26"},null,null,{"$f":"MyYearP1","v":"2026/27"},null,null,{"$f":"MyYearP2","v":"2027/28"},null,null,{"$f":"MyYearP3","v":"2028/29"}]
[1,null,null,null,null,"Expenses",null,null,{"$f":"Hist_year3RestatedAudited","v":"Audited\noutcome"},{"$f":"Hist_year2RestatedAudited","v":"Audited\noutcome"},{"$f":"Hist_year1Budget","v":"Budget"},{"$f":"Hist_year1Audited","v":"Audited\noutcome"},{"$f":"Cur_YearBudgEst","v":"Budget\nestimate"},{"$f":"Cur_YearApprovedBudg","v":"Approved budget"},{"$f":"Cur_YearChangeFrRevBudg","v":"Changes from \nbudget estimate"},{"$f":"MTEF1BudgEst","v":"Budget\nestimate"},{"$f":"MTEF1RevBudgEst","v":"Revised\nbudget\nestimate"},{"$f":"MTEF1_ChangeFrBudgEst","v":"Changes from budget estimate"},{"$f":"MTEF2BudgEst","v":"Budget\nestimate"},{"$f":"MTEF2RevBudgEst","v":"Revised\nbudget\nestimate"},{"$f":"MTEF2_ChangeFrBudgEst","v":"Changes from budget estimate"},{"$f":"MTEF3PlanBudgetEst","v":"Planning\nbudget \nestimate"}]
[1]
[1,null,null,null,null,"Rand thousand"]
[1,null,null,null,null,"Objective/Activity"]
[1,null,null,null,null,{"$f":"'[1]7'!F37","v":0},null,null,{"$f":"'[1]7'!J37","v":0},{"$f":"'[1]7'!L37","v":0},{"$f":"'[1]7'!N37","v":0},{"$f":"'[1]7'!N37","v":0},{"$f":"'[1]7'!Q37","v":0},{"$f":"'[1]7'!Q37","v":0},{"$f":"SUM(N37-M37)","v":0},{"$f":"'[1]7'!T37","v":0},{"$f":"'[1]7'!T37","v":0},{"$f":"SUM(Q37-P37)","v":0},{"$f":"'[1]7'!V37","v":0},{"$f":"'[1]7'!V37","v":0},{"$f":"SUM(T37-S37)","v":0}]
[1,null,null,null,null,"Economic classification"]
[1,"EX11",null,null,null,"Current payments",null,null,{"$f":"SUM(I40,I43,I98:I99,I105)","v":0},0,0,0,0,0,{"$f":"SUM(N39-M39)","v":0},{"$f":"SUM(P40,P43,P98:P99,P105)","v":0},{"$f":"SUM(Q40,Q43,Q98:Q99,Q105)","v":0},{"$f":"SUM(Q39-P39)","v":0},{"$f":"SUM(S40,S43,S98:S99,S105)","v":0},{"$f":"SUM(T40,T43,T98:T99,T105)","v":0},{"$f":"SUM(T39-S39)","v":0},{"$f":"SUM(V40,V43,V98:V99,V105)","v":0}]
[1,"EX111",null,null,null,"Compensation of employees",null,null,{"$f":"SUM(I41:I42)","v":0},0,0,0,0,0,{"$f":"SUM(N40-M40)","v":0},{"$f":"SUM(P41:P42)","v":0},{"$f":"SUM(Q41:Q42)","v":0},{"$f":"SUM(Q40-P40)","v":0},{"$f":"SUM(S41:S42)","v":0},{"$f":"SUM(T41:T42)","v":0},{"$f":"SUM(T40-S40)","v":0},{"$f":"SUM(V41:V42)","v":0}]
[1,"EX1111",null,null,null,"Salaries and wages",null,null,{"$f":"'[1]7'!J41","v":0},{"$f":"'[1]7'!L41","v":0},{"$f":"'[1]7'!N41","v":0},{"$f":"'[1]7'!N41","v":0},{"$f":"'[1]7'!Q41","v":0},{"$f":"'[1]7'!Q41","v":0},{"$f":"SUM(N41-M41)","v":0},{"$f":"'[1]7'!T41","v":0},{"$f":"'[1]7'!T41","v":0},{"$f":"SUM(Q41-P41)","v":0},{"$f":"'[1]7'!V41","v":0},{"$f":"'[1]7'!V41","v":0},{"$f":"SUM(T41-S41)","v":0}]
[1,"EX1112",null,null,null,"Social contributions",null,null,{"$f":"'[1]7'!J42","v":0},{"$f":"'[1]7'!L42","v":0},{"$f":"'[1]7'!N42","v":0},{"$f":"'[1]7'!N42","v":0},{"$f":"'[1]7'!Q42","v":0},{"$f":"'[1]7'!Q42","v":0},{"$f":"SUM(N42-M42)","v":0},{"$f":"'[1]7'!T42","v":0},{"$f":"'[1]7'!T42","v":0},{"$f":"SUM(Q42-P42)","v":0},{"$f":"'[1]7'!V42","v":0},{"$f":"'[1]7'!V42","v":0},{"$f":"SUM(T42-S42)","v":0}]
[1,"EX112",null,null,null,"Goods and services",null,null,{"$f":"SUM(I45:I54,I58:I61,I73,I75:I97)","v":0},{"$f":"SUM(J45:J54,J58:J61,J73,J75:J97)","v":0},{"$f":"SUM(K45:K54,K58:K61,K73,K75:K97)","v":0},0,0,0,0,0,0,0,0,0,0,0,{"$f":"SUM(W45:W54,W58:W61,W73,W75:W97)","v":0}]
[1,"EX000",null,null,null,"Of which 1"]
[1,"EX1133",null,null,null,"Administrative fees",null,null,{"$f":"'[1]7'!J45","v":0},{"$f":"'[1]7'!L45","v":0},{"$f":"'[1]7'!N45","v":0},{"$f":"'[1]7'!N45","v":0},{"$f":"'[1]7'!Q45","v":0},{"$f":"'[1]7'!Q45","v":0},{"$f":"SUM(N45-M45)","v":0},{"$f":"'[1]7'!T45","v":0},{"$f":"'[1]7'!T45","v":0},{"$f":"SUM(Q45-P45)","v":0},{"$f":"'[1]7'!V45","v":0},{"$f":"'[1]7'!V45","v":0},{"$f":"SUM(T45-S45)","v":0}]
[1,"EX1134",null,null,null,"Advertising",null,null,{"$f":"'[1]7'!J46","v":0},{"$f":"'[1]7'!L46","v":0},{"$f":"'[1]7'!N46","v":0},{"$f":"'[1]7'!N46","v":0},{"$f":"'[1]7'!Q46","v":0},{"$f":"'[1]7'!Q46","v":0},0,{"$f":"'[1]7'!T46","v":0},{"$f":"'[1]7'!T46","v":0},0,{"$f":"'[1]7'!V46","v":0},{"$f":"'[1]7'!V46","v":0},0]
[1,"EX1135",null,null,null,"Minor assets",null,null,{"$f":"'[1]7'!J47","v":0},{"$f":"'[1]7'!L47","v":0},{"$f":"'[1]7'!N47","v":0},{"$f":"'[1]7'!N47","v":0},{"$f":"'[1]7'!Q47","v":0},{"$f":"'[1]7'!Q47","v":0},0,{"$f":"'[1]7'!T47","v":0},{"$f":"'[1]7'!T47","v":0},0,{"$f":"'[1]7'!V47","v":0},{"$f":"'[1]7'!V47","v":0},0]
[1,"EX1136",null,null,null,"Audit costs: External",null,null,{"$f":"'[1]7'!J48","v":0},{"$f":"'[1]7'!L48","v":0},{"$f":"'[1]7'!N48","v":0},{"$f":"'[1]7'!N48","v":0},{"$f":"'[1]7'!Q48","v":0},{"$f":"'[1]7'!Q48","v":0},0,{"$f":"'[1]7'!T48","v":0},{"$f":"'[1]7'!T48","v":0},0,{"$f":"'[1]7'!V48","v":0},{"$f":"'[1]7'!V48","v":0},0]
[1,"EX1139",null,null,null,"Bursaries: Employees",null,null,{"$f":"'[1]7'!J49","v":0},{"$f":"'[1]7'!L49","v":0},{"$f":"'[1]7'!N49","v":0},{"$f":"'[1]7'!N49","v":0},{"$f":"'[1]7'!Q49","v":0},{"$f":"'[1]7'!Q49","v":0},0,{"$f":"'[1]7'!T49","v":0},{"$f":"'[1]7'!T49","v":0},0,{"$f":"'[1]7'!V49","v":0},{"$f":"'[1]7'!V49","v":0},0]
[1,"EX1140",null,null,null,"Catering: Internal activities",null,null,{"$f":"'[1]7'!J50","v":0},{"$f":"'[1]7'!L50","v":0},{"$f":"'[1]7'!N50","v":0},{"$f":"'[1]7'!N50","v":0},{"$f":"'[1]7'!Q50","v":0},{"$f":"'[1]7'!Q50","v":0},0,{"$f":"'[1]7'!T50","v":0},{"$f":"'[1]7'!T50","v":0},0,{"$f":"'[1]7'!V50","v":0},{"$f":"'[1]7'!V50","v":0},0]
[1,"EX1122",null,null,null,"Communication (G&S)",null,null,{"$f":"'[1]7'!J51","v":0},{"$f":"'[1]7'!L51","v":0},{"$f":"'[1]7'!N51","v":0},{"$f":"'[1]7'!N51","v":0},{"$f":"'[1]7'!Q51","v":0},{"$f":"'[1]7'!Q51","v":0},0,{"$f":"'[1]7'!T51","v":0},{"$f":"'[1]7'!T51","v":0},0,{"$f":"'[1]7'!V51","v":0},{"$f":"'[1]7'!V51","v":0},0]
[1,"EX1123",null,null,null,"Computer services",null,null,{"$f":"'[1]7'!J52","v":0},{"$f":"'[1]7'!L52","v":0},{"$f":"'[1]7'!N52","v":0},{"$f":"'[1]7'!N52","v":0},{"$f":"'[1]7'!Q52","v":0},{"$f":"'[1]7'!Q52","v":0},0,{"$f":"'[1]7'!T52","v":0},{"$f":"'[1]7'!T52","v":0},0,{"$f":"'[1]7'!V52","v":0},{"$f":"'[1]7'!V52","v":0},0]
[1,"EX1124",null,null,null,"Consultants: Business and advisory services",null,null,{"$f":"'[1]7'!J53","v":0},{"$f":"'[1]7'!L53","v":0},{"$f":"'[1]7'!N53","v":0},{"$f":"'[1]7'!N53","v":0},{"$f":"'[1]7'!Q53","v":0},{"$f":"'[1]7'!Q53","v":0},0,{"$f":"'[1]7'!T53","v":0},{"$f":"'[1]7'!T53","v":0},0,{"$f":"'[1]7'!V53","v":0},{"$f":"'[1]7'!V53","v":0},0]
[1,"EX1180",null,null,null,"Infrastructure and planning services",null,null,{"$f":"SUM(I55:I57)","v":0},0,0,0,0,0,{"$f":"SUM(N54-M54)","v":0},{"$f":"SUM(P55:P57)","v":0},{"$f":"SUM(Q55:Q57)","v":0},{"$f":"SUM(Q54-P54)","v":0},{"$f":"SUM(S55:S57)","v":0},{"$f":"SUM(T55:T57)","v":0},{"$f":"SUM(T54-S54)","v":0},{"$f":"SUM(V55:V57)","v":0}]
[1,"EX11801",null,null,null,"Maintenance and repairs: Buildings: Consultants",null,null,{"$f":"'[1]7'!J55","v":0},{"$f":"'[1]7'!L55","v":0},{"$f":"'[1]7'!N55","v":0},{"$f":"'[1]7'!N55","v":0},{"$f":"'[1]7'!Q55","v":0},{"$f":"'[1]7'!Q55","v":0},{"$f":"SUM(N55-M55)","v":0},{"$f":"'[1]7'!T55","v":0},{"$f":"'[1]7'!T55","v":0},{"$f":"SUM(Q55-P55)","v":0},{"$f":"'[1]7'!V55","v":0},{"$f":"'[1]7'!V55","v":0},0]
[1,"EX11802",null,null,null,"Maintenance and repairs: Other fixed structures: Consultants",null,null,{"$f":"'[1]7'!J56","v":0},{"$f":"'[1]7'!L56","v":0},{"$f":"'[1]7'!N56","v":0},{"$f":"'[1]7'!N56","v":0},{"$f":"'[1]7'!Q56","v":0},{"$f":"'[1]7'!Q56","v":0},0,{"$f":"'[1]7'!T56","v":0},{"$f":"'[1]7'!T56","v":0},0,{"$f":"'[1]7'!V56","v":0},{"$f":"'[1]7'!V56","v":0},0]
[1,"EX11803",null,null,null,"Other",null,null,{"$f":"'[1]7'!J57","v":0},{"$f":"'[1]7'!L57","v":0},{"$f":"'[1]7'!N57","v":0},{"$f":"'[1]7'!N57","v":0},{"$f":"'[1]7'!Q57","v":0},{"$f":"'[1]7'!Q57","v":0},0,{"$f":"'[1]7'!T57","v":0},{"$f":"'[1]7'!T57","v":0},0,{"$f":"'[1]7'!V57","v":0},{"$f":"'[1]7'!V57","v":0},0]
[1,"EX1164",null,null,null,"Laboratory services",null,null,{"$f":"'[1]7'!J58","v":0},{"$f":"'[1]7'!L58","v":0},{"$f":"'[1]7'!N58","v":0},{"$f":"'[1]7'!N58","v":0},{"$f":"'[1]7'!Q58","v":0},{"$f":"'[1]7'!Q58","v":0},0,{"$f":"'[1]7'!T58","v":0},{"$f":"'[1]7'!T58","v":0},0,{"$f":"'[1]7'!V58","v":0},{"$f":"'[1]7'!V58","v":0},0]
[1,"EX1162",null,null,null,"Legal services (G&S)",null,null,{"$f":"'[1]7'!J59","v":0},{"$f":"'[1]7'!L59","v":0},{"$f":"'[1]7'!N59","v":0},{"$f":"'[1]7'!N59","v":0},{"$f":"'[1]7'!Q59","v":0},{"$f":"'[1]7'!Q59","v":0},0,{"$f":"'[1]7'!T59","v":0},{"$f":"'[1]7'!T59","v":0},0,{"$f":"'[1]7'!V59","v":0},{"$f":"'[1]7'!V59","v":0},0]
[1,"EX1165",null,null,null,"Science and technological services",null,null,{"$f":"'[1]7'!J60","v":0},{"$f":"'[1]7'!L60","v":0},{"$f":"'[1]7'!N60","v":0},{"$f":"'[1]7'!N60","v":0},{"$f":"'[1]7'!Q60","v":0},{"$f":"'[1]7'!Q60","v":0},0,{"$f":"'[1]7'!T60","v":0},{"$f":"'[1]7'!T60","v":0},0,{"$f":"'[1]7'!V60","v":0},{"$f":"'[1]7'!V60","v":0},0]
[1,"EX1125",null,null,null,"Contractors",null,null,{"$f":"SUM(I62:I66,I72)","v":0},0,0,0,0,0,{"$f":"SUM(N61-M61)","v":0},{"$f":"SUM(P62:P66,P72)","v":0},{"$f":"SUM(Q62:Q66,Q72)","v":0},{"$f":"SUM(Q61-P61)","v":0},{"$f":"SUM(S62:S66,S72)","v":0},{"$f":"SUM(T62:T66,T72)","v":0},0,{"$f":"SUM(V62:V66,V72)","v":0}]
[1,"EX11251",null,null,null,"Maintenance and repairs of other fixed structures",null,null,{"$f":"'[1]7'!J62","v":0},{"$f":"'[1]7'!L62","v":0},{"$f":"'[1]7'!N62","v":0},{"$f":"'[1]7'!N62","v":0},{"$f":"'[1]7'!Q62","v":0},{"$f":"'[1]7'!Q62","v":0},0,{"$f":"'[1]7'!T62","v":0},{"$f":"'[1]7'!T62","v":0},0,{"$f":"'[1]7'!V62","v":0},{"$f":"'[1]7'!V62","v":0},0]
[1,"EX11252",null,null,null,"Maintenance and repairs of other machinery and equipment",null,null,{"$f":"'[1]7'!J63","v":0},{"$f":"'[1]7'!L63","v":0},{"$f":"'[1]7'!N63","v":0},{"$f":"'[1]7'!N63","v":0},{"$f":"'[1]7'!Q63","v":0},{"$f":"'[1]7'!Q63","v":0},0,{"$f":"'[1]7'!T63","v":0},{"$f":"'[1]7'!T63","v":0},0,{"$f":"'[1]7'!V63","v":0},{"$f":"'[1]7'!V63","v":0},0]
[1,"EX11253",null,null,null,"Maintenance and repairs of heritage buildings",null,null,{"$f":"'[1]7'!J64","v":0},{"$f":"'[1]7'!L64","v":0},{"$f":"'[1]7'!N64","v":0},{"$f":"'[1]7'!N64","v":0},{"$f":"'[1]7'!Q64","v":0},{"$f":"'[1]7'!Q64","v":0},0,{"$f":"'[1]7'!T64","v":0},{"$f":"'[1]7'!T64","v":0},0,{"$f":"'[1]7'!V64","v":0},{"$f":"'[1]7'!V64","v":0},0]
[1,"EX11254",null,null,null,"Maintenance and repairs of other heritage fixed structures",null,null,{"$f":"'[1]7'!J65","v":0},{"$f":"'[1]7'!L65","v":0},{"$f":"'[1]7'!N65","v":0},{"$f":"'[1]7'!N65","v":0},{"$f":"'[1]7'!Q65","v":0},{"$f":"'[1]7'!Q65","v":0},0,{"$f":"'[1]7'!T65","v":0},{"$f":"'[1]7'!T65","v":0},0,{"$f":"'[1]7'!V65","v":0},{"$f":"'[1]7'!V65","v":0},0]
[5,"EX11255",null,null,null,"South african social security agency payment contractors",null,null,{"$f":"SUM(I67:I71)","v":0},0,0,0,0,0,0,{"$f":"SUM(P67:P71)","v":0},{"$f":"SUM(Q67:Q71)","v":0},0,{"$f":"SUM(S67:S71)","v":0},{"$f":"SUM(T67:T71)","v":0},0,{"$f":"SUM(V67:V71)","v":0}]
[5,"EX112551",null,null,null,"SASSA Admin fees",null,null,{"$f":"'[1]7'!J67","v":0},{"$f":"'[1]7'!L67","v":0},{"$f":"'[1]7'!N67","v":0},{"$f":"'[1]7'!N67","v":0},{"$f":"'[1]7'!Q67","v":0},{"$f":"'[1]7'!Q67","v":0},{"$f":"SUM(N67-M67)","v":0},{"$f":"'[1]7'!T67","v":0},{"$f":"'[1]7'!T67","v":0},{"$f":"SUM(Q67-P67)","v":0},{"$f":"'[1]7'!V67","v":0},{"$f":"'[1]7'!V67","v":0},{"$f":"SUM(T67-S67)","v":0}]
[5,"EX112552",null,null,null,"SASSA Bankcard fees",null,null,{"$f":"'[1]7'!J68","v":0},{"$f":"'[1]7'!L68","v":0},{"$f":"'[1]7'!N68","v":0},{"$f":"'[1]7'!N68","v":0},{"$f":"'[1]7'!Q68","v":0},{"$f":"'[1]7'!Q68","v":0},0,{"$f":"'[1]7'!T68","v":0},{"$f":"'[1]7'!T68","v":0},0,{"$f":"'[1]7'!V68","v":0},{"$f":"'[1]7'!V68","v":0},0]
[5,"EX112553",null,null,null,"SASSA registration fees",null,null,{"$f":"'[1]7'!J69","v":0},{"$f":"'[1]7'!L69","v":0},{"$f":"'[1]7'!N69","v":0},{"$f":"'[1]7'!N69","v":0},{"$f":"'[1]7'!Q69","v":0},{"$f":"'[1]7'!Q69","v":0},0,{"$f":"'[1]7'!T69","v":0},{"$f":"'[1]7'!T69","v":0},0,{"$f":"'[1]7'!V69","v":0},{"$f":"'[1]7'!V69","v":0},0]
[5,"EX112554",null,null,null,"SASSA beneficiary fees",null,null,{"$f":"'[1]7'!J70","v":0},{"$f":"'[1]7'!L70","v":0},{"$f":"'[1]7'!N70","v":0},{"$f":"'[1]7'!N70","v":0},{"$f":"'[1]7'!Q70","v":0},{"$f":"'[1]7'!Q70","v":0},0,{"$f":"'[1]7'!T70","v":0},{"$f":"'[1]7'!T70","v":0},0,{"$f":"'[1]7'!V70","v":0},{"$f":"'[1]7'!V70","v":0},0]
[5,"EX112555",null,null,null,"SASSA help desk fees",null,null,{"$f":"'[1]7'!J71","v":0},{"$f":"'[1]7'!L71","v":0},{"$f":"'[1]7'!N71","v":0},{"$f":"'[1]7'!N71","v":0},{"$f":"'[1]7'!Q71","v":0},{"$f":"'[1]7'!Q71","v":0},0,{"$f":"'[1]7'!T71","v":0},{"$f":"'[1]7'!T71","v":0},0,{"$f":"'[1]7'!V71","v":0},{"$f":"'[1]7'!V71","v":0},0]
[1,"EX11256",null,null,null,"Other",null,null,{"$f":"'[1]7'!J72","v":0},{"$f":"'[1]7'!L72","v":0},{"$f":"'[1]7'!N72","v":0},{"$f":"'[1]7'!N72","v":0},{"$f":"'[1]7'!Q72","v":0},{"$f":"'[1]7'!Q72","v":0},0,{"$f":"'[1]7'!T72","v":0},{"$f":"'[1]7'!T72","v":0},0,{"$f":"'[1]7'!V72","v":0},{"$f":"'[1]7'!V72","v":0},0]
[1,"EX1121",null,null,null,"Agency and support/outsourced services",null,null,{"$f":"'[1]7'!J73","v":0},{"$f":"'[1]7'!L73","v":0},{"$f":"'[1]7'!N73","v":0},{"$f":"'[1]7'!N73","v":0},{"$f":"'[1]7'!Q73","v":0},{"$f":"'[1]7'!Q73","v":0},0,{"$f":"'[1]7'!T73","v":0},{"$f":"'[1]7'!T73","v":0},0,{"$f":"'[1]7'!V73","v":0},{"$f":"'[1]7'!V73","v":0},0]
[5,"EX11211",null,null,null,"     Of Which: Medical assessments",null,null,{"$f":"'[1]7'!J74","v":0},{"$f":"'[1]7'!L74","v":0},{"$f":"'[1]7'!N74","v":0},{"$f":"'[1]7'!N74","v":0},{"$f":"'[1]7'!Q74","v":0},{"$f":"'[1]7'!Q74","v":0},0,{"$f":"'[1]7'!T74","v":0},{"$f":"'[1]7'!T74","v":0},0,{"$f":"'[1]7'!V74","v":0},{"$f":"'[1]7'!V74","v":0},0]
[1,"EX1161",null,null,null,"Entertainment",null,null,{"$f":"'[1]7'!J75","v":0},{"$f":"'[1]7'!L75","v":0},{"$f":"'[1]7'!N75","v":0},{"$f":"'[1]7'!N75","v":0},{"$f":"'[1]7'!Q75","v":0},{"$f":"'[1]7'!Q75","v":0},0,{"$f":"'[1]7'!T75","v":0},{"$f":"'[1]7'!T75","v":0},0,{"$f":"'[1]7'!V75","v":0},{"$f":"'[1]7'!V75","v":0},0]
[1,"EX1166",null,null,null,"Fleet services (including government motor transport)",null,null,{"$f":"'[1]7'!J76","v":0},{"$f":"'[1]7'!L76","v":0},{"$f":"'[1]7'!N76","v":0},{"$f":"'[1]7'!N76","v":0},{"$f":"'[1]7'!Q76","v":0},{"$f":"'[1]7'!Q76","v":0},0,{"$f":"'[1]7'!T76","v":0},{"$f":"'[1]7'!T76","v":0},0,{"$f":"'[1]7'!V76","v":0},{"$f":"'[1]7'!V76","v":0},0]
[1,"EX1167",null,null,null,"Housing",null,null,{"$f":"'[1]7'!J77","v":0},{"$f":"'[1]7'!L77","v":0},{"$f":"'[1]7'!N77","v":0},{"$f":"'[1]7'!N77","v":0},{"$f":"'[1]7'!Q77","v":0},{"$f":"'[1]7'!Q77","v":0},0,{"$f":"'[1]7'!T77","v":0},{"$f":"'[1]7'!T77","v":0},0,{"$f":"'[1]7'!V77","v":0},{"$f":"'[1]7'!V77","v":0},0]
[1,"EX1168",null,null,null,"Inventory: Clothing material and accessories",null,null,{"$f":"'[1]7'!J78","v":0},{"$f":"'[1]7'!L78","v":0},{"$f":"'[1]7'!N78","v":0},{"$f":"'[1]7'!N78","v":0},{"$f":"'[1]7'!Q78","v":0},{"$f":"'[1]7'!Q78","v":0},0,{"$f":"'[1]7'!T78","v":0},{"$f":"'[1]7'!T78","v":0},0,{"$f":"'[1]7'!V78","v":0},{"$f":"'[1]7'!V78","v":0},0]
[1,"EX1169",null,null,null,"Inventory: Farming supplies",null,null,{"$f":"'[1]7'!J79","v":0},{"$f":"'[1]7'!L79","v":0},{"$f":"'[1]7'!N79","v":0},{"$f":"'[1]7'!N79","v":0},{"$f":"'[1]7'!Q79","v":0},{"$f":"'[1]7'!Q79","v":0},0,{"$f":"'[1]7'!T79","v":0},{"$f":"'[1]7'!T79","v":0},0,{"$f":"'[1]7'!V79","v":0},{"$f":"'[1]7'!V79","v":0},0]
[1,"EX1170",null,null,null,"Inventory: Food and food supplies",null,null,{"$f":"'[1]7'!J80","v":0},{"$f":"'[1]7'!L80","v":0},{"$f":"'[1]7'!N80","v":0},{"$f":"'[1]7'!N80","v":0},{"$f":"'[1]7'!Q80","v":0},{"$f":"'[1]7'!Q80","v":0},0,{"$f":"'[1]7'!T80","v":0},{"$f":"'[1]7'!T80","v":0},0,{"$f":"'[1]7'!V80","v":0},{"$f":"'[1]7'!V80","v":0},0]
[1,"EX1171",null,null,null,"Inventory: Fuel, oil and gas",null,null,{"$f":"'[1]7'!J81","v":0},{"$f":"'[1]7'!L81","v":0},{"$f":"'[1]7'!N81","v":0},{"$f":"'[1]7'!N81","v":0},{"$f":"'[1]7'!Q81","v":0},{"$f":"'[1]7'!Q81","v":0},0,{"$f":"'[1]7'!T81","v":0},{"$f":"'[1]7'!T81","v":0},0,{"$f":"'[1]7'!V81","v":0},{"$f":"'[1]7'!V81","v":0},0]
[1,"EX1172",null,null,null,"Inventory: Learner and teacher support material",null,null,{"$f":"'[1]7'!J82","v":0},{"$f":"'[1]7'!L82","v":0},{"$f":"'[1]7'!N82","v":0},{"$f":"'[1]7'!N82","v":0},{"$f":"'[1]7'!Q82","v":0},{"$f":"'[1]7'!Q82","v":0},0,{"$f":"'[1]7'!T82","v":0},{"$f":"'[1]7'!T82","v":0},0,{"$f":"'[1]7'!V82","v":0},{"$f":"'[1]7'!V82","v":0},0]
[1,"EX1126",null,null,null,"Inventory: Materials and supplies",null,null,{"$f":"'[1]7'!J83","v":0},{"$f":"'[1]7'!L83","v":0},{"$f":"'[1]7'!N83","v":0},{"$f":"'[1]7'!N83","v":0},{"$f":"'[1]7'!Q83","v":0},{"$f":"'[1]7'!Q83","v":0},0,{"$f":"'[1]7'!T83","v":0},{"$f":"'[1]7'!T83","v":0},0,{"$f":"'[1]7'!V83","v":0},{"$f":"'[1]7'!V83","v":0},0]
[1,"EX1173",null,null,null,"Inventory: Medical supplies",null,null,{"$f":"'[1]7'!J84","v":0},{"$f":"'[1]7'!L84","v":0},{"$f":"'[1]7'!N84","v":0},{"$f":"'[1]7'!N84","v":0},{"$f":"'[1]7'!Q84","v":0},{"$f":"'[1]7'!Q84","v":0},0,{"$f":"'[1]7'!T84","v":0},{"$f":"'[1]7'!T84","v":0},0,{"$f":"'[1]7'!V84","v":0},{"$f":"'[1]7'!V84","v":0},0]
[1,"EX1174",null,null,null,"Inventory: Medicine",null,null,{"$f":"'[1]7'!J85","v":0},{"$f":"'[1]7'!L85","v":0},{"$f":"'[1]7'!N85","v":0},{"$f":"'[1]7'!N85","v":0},{"$f":"'[1]7'!Q85","v":0},{"$f":"'[1]7'!Q85","v":0},0,{"$f":"'[1]7'!T85","v":0},{"$f":"'[1]7'!T85","v":0},0,{"$f":"'[1]7'!V85","v":0},{"$f":"'[1]7'!V85","v":0},0]
[1,"EX1175",null,null,null,"Medsas inventory interface",null,null,{"$f":"'[1]7'!J86","v":0},{"$f":"'[1]7'!L86","v":0},{"$f":"'[1]7'!N86","v":0},{"$f":"'[1]7'!N86","v":0},{"$f":"'[1]7'!Q86","v":0},{"$f":"'[1]7'!Q86","v":0},0,{"$f":"'[1]7'!T86","v":0},{"$f":"'[1]7'!T86","v":0},0,{"$f":"'[1]7'!V86","v":0},{"$f":"'[1]7'!V86","v":0},0]
[1,"EX1176",null,null,null,"Inventory: Other supplies",null,null,{"$f":"'[1]7'!J87","v":0},{"$f":"'[1]7'!L87","v":0},{"$f":"'[1]7'!N87","v":0},{"$f":"'[1]7'!N87","v":0},{"$f":"'[1]7'!Q87","v":0},{"$f":"'[1]7'!Q87","v":0},0,{"$f":"'[1]7'!T87","v":0},{"$f":"'[1]7'!T87","v":0},0,{"$f":"'[1]7'!V87","v":0},{"$f":"'[1]7'!V87","v":0},0]
[1,"EX1177",null,null,null,"Consumable supplies",null,null,{"$f":"'[1]7'!J88","v":0},{"$f":"'[1]7'!L88","v":0},{"$f":"'[1]7'!N88","v":0},{"$f":"'[1]7'!N88","v":0},{"$f":"'[1]7'!Q88","v":0},{"$f":"'[1]7'!Q88","v":0},0,{"$f":"'[1]7'!T88","v":0},{"$f":"'[1]7'!T88","v":0},0,{"$f":"'[1]7'!V88","v":0},{"$f":"'[1]7'!V88","v":0},0]
[1,"EX1144",null,null,null,"Consumables: Stationery, printing and office supplies",null,null,{"$f":"'[1]7'!J89","v":0},{"$f":"'[1]7'!L89","v":0},{"$f":"'[1]7'!N89","v":0},{"$f":"'[1]7'!N89","v":0},{"$f":"'[1]7'!Q89","v":0},{"$f":"'[1]7'!Q89","v":0},0,{"$f":"'[1]7'!T89","v":0},{"$f":"'[1]7'!T89","v":0},0,{"$f":"'[1]7'!V89","v":0},{"$f":"'[1]7'!V89","v":0},0]
[1,"EX1127",null,null,null,"Operating leases",null,null,{"$f":"'[1]7'!J90","v":0},{"$f":"'[1]7'!L90","v":0},{"$f":"'[1]7'!N90","v":0},{"$f":"'[1]7'!N90","v":0},{"$f":"'[1]7'!Q90","v":0},{"$f":"'[1]7'!Q90","v":0},0,{"$f":"'[1]7'!T90","v":0},{"$f":"'[1]7'!T90","v":0},0,{"$f":"'[1]7'!V90","v":0},{"$f":"'[1]7'!V90","v":0},0]
[1,"EX1178",null,null,null,"Rental and hiring",null,null,{"$f":"'[1]7'!J91","v":0},{"$f":"'[1]7'!L91","v":0},{"$f":"'[1]7'!N91","v":0},{"$f":"'[1]7'!N91","v":0},{"$f":"'[1]7'!Q91","v":0},{"$f":"'[1]7'!Q91","v":0},0,{"$f":"'[1]7'!T91","v":0},{"$f":"'[1]7'!T91","v":0},0,{"$f":"'[1]7'!V91","v":0},{"$f":"'[1]7'!V91","v":0},0]
[1,"EX1145",null,null,null,"Property payments",null,null,{"$f":"'[1]7'!J92","v":0},{"$f":"'[1]7'!L92","v":0},{"$f":"'[1]7'!N92","v":0},{"$f":"'[1]7'!N92","v":0},{"$f":"'[1]7'!Q92","v":0},{"$f":"'[1]7'!Q92","v":0},0,{"$f":"'[1]7'!T92","v":0},{"$f":"'[1]7'!T92","v":0},0,{"$f":"'[1]7'!V92","v":0},{"$f":"'[1]7'!V92","v":0},0]
[1,"EX1179",null,null,null,"Transport provided: Internal activities",null,null,{"$f":"'[1]7'!J93","v":0},{"$f":"'[1]7'!L93","v":0},{"$f":"'[1]7'!N93","v":0},{"$f":"'[1]7'!N93","v":0},{"$f":"'[1]7'!Q93","v":0},{"$f":"'[1]7'!Q93","v":0},0,{"$f":"'[1]7'!T93","v":0},{"$f":"'[1]7'!T93","v":0},0,{"$f":"'[1]7'!V93","v":0},{"$f":"'[1]7'!V93","v":0},0]
[1,"EX1131",null,null,null,"Travel and subsistence",null,null,{"$f":"'[1]7'!J94","v":0},{"$f":"'[1]7'!L94","v":0},{"$f":"'[1]7'!N94","v":0},{"$f":"'[1]7'!N94","v":0},{"$f":"'[1]7'!Q94","v":0},{"$f":"'[1]7'!Q94","v":0},0,{"$f":"'[1]7'!T94","v":0},{"$f":"'[1]7'!T94","v":0},0,{"$f":"'[1]7'!V94","v":0},{"$f":"'[1]7'!V94","v":0},0]
[1,"EX1130",null,null,null,"Training and development",null,null,{"$f":"'[1]7'!J95","v":0},{"$f":"'[1]7'!L95","v":0},{"$f":"'[1]7'!N95","v":0},{"$f":"'[1]7'!N95","v":0},{"$f":"'[1]7'!Q95","v":0},{"$f":"'[1]7'!Q95","v":0},0,{"$f":"'[1]7'!T95","v":0},{"$f":"'[1]7'!T95","v":0},0,{"$f":"'[1]7'!V95","v":0},{"$f":"'[1]7'!V95","v":0},0]
[1,"EX1132",null,null,null,"Operating payments",null,null,{"$f":"'[1]7'!J96","v":0},{"$f":"'[1]7'!L96","v":0},{"$f":"'[1]7'!N96","v":0},{"$f":"'[1]7'!N96","v":0},{"$f":"'[1]7'!Q96","v":0},{"$f":"'[1]7'!Q96","v":0},0,{"$f":"'[1]7'!T96","v":0},{"$f":"'[1]7'!T96","v":0},0,{"$f":"'[1]7'!V96","v":0},{"$f":"'[1]7'!V96","v":0},0]
[1,"EX1146",null,null,null,"Venues and facilities",null,null,{"$f":"'[1]7'!J97","v":0},{"$f":"'[1]7'!L97","v":0},{"$f":"'[1]7'!N97","v":0},{"$f":"'[1]7'!N97","v":0},{"$f":"'[1]7'!Q97","v":0},{"$f":"'[1]7'!Q97","v":0},0,{"$f":"'[1]7'!T97","v":0},{"$f":"'[1]7'!T97","v":0},0,{"$f":"'[1]7'!V97","v":0},{"$f":"'[1]7'!V97","v":0},0]
[1,"EX113",null,null,null,"Depreciation",null,null,{"$f":"'[1]7'!J98","v":0},{"$f":"'[1]7'!L98","v":0},{"$f":"'[1]7'!N98","v":0},{"$f":"'[1]7'!N98","v":0},{"$f":"'[1]7'!Q98","v":0},{"$f":"'[1]7'!Q98","v":0},0,{"$f":"'[1]7'!T98","v":0},{"$f":"'[1]7'!T98","v":0},0,{"$f":"'[1]7'!V98","v":0},{"$f":"'[1]7'!V98","v":0},0]
[1,"EX114",null,null,null,"Losses from",null,null,{"$f":"SUM(I100:I101,I104)","v":0},0,0,0,0,0,{"$f":"SUM(N99-M99)","v":0},{"$f":"SUM(P100:P101,P104)","v":0},{"$f":"SUM(Q100:Q101,Q104)","v":0},{"$f":"SUM(Q99-P99)","v":0},{"$f":"SUM(S100:S101,S104)","v":0},{"$f":"SUM(T100:T101,T104)","v":0},{"$f":"SUM(T99-S99)","v":0},{"$f":"SUM(V100:V101,V104)","v":0}]
[1,"EX1141",null,null,null,"Sale of fixed assets",null,null,{"$f":"'[1]7'!J100","v":0},{"$f":"'[1]7'!L100","v":0},{"$f":"'[1]7'!N100","v":0},{"$f":"'[1]7'!N100","v":0},{"$f":"'[1]7'!Q100","v":0},{"$f":"'[1]7'!Q100","v":0},0,{"$f":"'[1]7'!T100","v":0},{"$f":"'[1]7'!T100","v":0},0,{"$f":"'[1]7'!V100","v":0},{"$f":"'[1]7'!V100","v":0},0]
[1,"EX1142",null,null,null,"Impairments and adjustments to fair value",null,null,{"$f":"SUM(I102:I103)","v":0},0,0,0,0,0,0,{"$f":"SUM(P102:P103)","v":0},{"$f":"SUM(Q102:Q103)","v":0},0,{"$f":"SUM(S102:S103)","v":0},{"$f":"SUM(T102:T103)","v":0},0,{"$f":"SUM(V102:V103)","v":0}]
[1,"EX11421",null,null,null,"Adjustments to fair value of assets",null,null,{"$f":"'[1]7'!J102","v":0},{"$f":"'[1]7'!L102","v":0},{"$f":"'[1]7'!N102","v":0},{"$f":"'[1]7'!N102","v":0},{"$f":"'[1]7'!Q102","v":0},{"$f":"'[1]7'!Q102","v":0},0,{"$f":"'[1]7'!T102","v":0},{"$f":"'[1]7'!T102","v":0},0,{"$f":"'[1]7'!V102","v":0},{"$f":"'[1]7'!V102","v":0},0]
[1,"EX11422",null,null,null,"Impairments to assets",null,null,{"$f":"'[1]7'!J103","v":0},{"$f":"'[1]7'!L103","v":0},{"$f":"'[1]7'!N103","v":0},{"$f":"'[1]7'!N103","v":0},{"$f":"'[1]7'!Q103","v":0},{"$f":"'[1]7'!Q103","v":0},0,{"$f":"'[1]7'!T103","v":0},{"$f":"'[1]7'!T103","v":0},0,{"$f":"'[1]7'!V103","v":0},{"$f":"'[1]7'!V103","v":0},0]
[1,"EX1143",null,null,null,"Other",null,null,{"$f":"'[1]7'!J104","v":0},{"$f":"'[1]7'!L104","v":0},{"$f":"'[1]7'!N104","v":0},{"$f":"'[1]7'!N104","v":0},{"$f":"'[1]7'!Q104","v":0},{"$f":"'[1]7'!Q104","v":0},0,{"$f":"'[1]7'!T104","v":0},{"$f":"'[1]7'!T104","v":0},0,{"$f":"'[1]7'!V104","v":0},{"$f":"'[1]7'!V104","v":0},0]
[1,"EX115",null,null,null,"Interest, dividends and rent on land",null,null,{"$f":"SUM(I106:I108)","v":0},0,0,0,0,0,0,{"$f":"SUM(P106:P108)","v":0},{"$f":"SUM(Q106:Q108)","v":0},0,{"$f":"SUM(S106:S108)","v":0},{"$f":"SUM(T106:T108)","v":0},0,{"$f":"SUM(V106:V108)","v":0}]
[1,"EX1151",null,null,null,"Interest",null,null,{"$f":"'[1]7'!J106","v":0},{"$f":"'[1]7'!L106","v":0},{"$f":"'[1]7'!N106","v":0},{"$f":"'[1]7'!N106","v":0},{"$f":"'[1]7'!Q106","v":0},{"$f":"'[1]7'!Q106","v":0},0,{"$f":"'[1]7'!T106","v":0},{"$f":"'[1]7'!T106","v":0},0,{"$f":"'[1]7'!V106","v":0},{"$f":"'[1]7'!V106","v":0},0]
[1,"EX1152",null,null,null,"Dividends",null,null,{"$f":"'[1]7'!J107","v":0},{"$f":"'[1]7'!L107","v":0},{"$f":"'[1]7'!N107","v":0},{"$f":"'[1]7'!N107","v":0},{"$f":"'[1]7'!Q107","v":0},{"$f":"'[1]7'!Q107","v":0},0,{"$f":"'[1]7'!T107","v":0},{"$f":"'[1]7'!T107","v":0},0,{"$f":"'[1]7'!V107","v":0},{"$f":"'[1]7'!V107","v":0},0]
[1,"EX1153",null,null,null,"Rent on land",null,null,{"$f":"'[1]7'!J108","v":0},{"$f":"'[1]7'!L108","v":0},{"$f":"'[1]7'!N108","v":0},{"$f":"'[1]7'!N108","v":0},{"$f":"'[1]7'!Q108","v":0},{"$f":"'[1]7'!Q108","v":0},0,{"$f":"'[1]7'!T108","v":0},{"$f":"'[1]7'!T108","v":0},0,{"$f":"'[1]7'!V108","v":0},{"$f":"'[1]7'!V108","v":0},0]
[1,"EX12",null,null,null,"Transfers and subsidies",null,null,{"$f":"SUM(I110,I121,I132:I135)","v":0},0,0,0,0,0,0,{"$f":"SUM(P110,P121,P132:P135)","v":0},{"$f":"SUM(Q110,Q121,Q132:Q135)","v":0},0,{"$f":"SUM(S110,S121,S132:S135)","v":0},{"$f":"SUM(T110,T121,T132:T135)","v":0},0,{"$f":"SUM(V110,V121,V132:V135)","v":0}]
[2,"EX121",null,null,null,"Employer Grant (SETAs only)",null,null,{"$f":"SUM(I111,I117,I120)","v":0},0,0,0,0,0,0,{"$f":"SUM(P111,P117,P120)","v":0},{"$f":"SUM(Q111,Q117,Q120)","v":0},0,{"$f":"SUM(S111,S117,S120)","v":0},{"$f":"SUM(T111,T117,T120)","v":0},0,{"$f":"SUM(V111,V117,V120)","v":0}]
[1,"EX122",null,null,null,"Other government units",null,null,{"$f":"SUM(I112:I116)","v":0},0,0,0,0,0,0,{"$f":"SUM(P112:P116)","v":0},{"$f":"SUM(Q112:Q116)","v":0},0,{"$f":"SUM(S112:S116)","v":0},{"$f":"SUM(T112:T116)","v":0},0,{"$f":"SUM(V112:V116)","v":0}]
[1,"EX1221",null,null,null,"National government",null,null,{"$f":"'[1]7'!J112","v":0},{"$f":"'[1]7'!L112","v":0},{"$f":"'[1]7'!N112","v":0},{"$f":"'[1]7'!N112","v":0},{"$f":"'[1]7'!Q112","v":0},{"$f":"'[1]7'!Q112","v":0},0,{"$f":"'[1]7'!T112","v":0},{"$f":"'[1]7'!T112","v":0},0,{"$f":"'[1]7'!V112","v":0},{"$f":"'[1]7'!V112","v":0},0]
[1,"EX1222",null,null,null,"Departmental agencies and accounts",null,null,{"$f":"'[1]7'!J113","v":0},{"$f":"'[1]7'!L113","v":0},{"$f":"'[1]7'!N113","v":0},{"$f":"'[1]7'!N113","v":0},{"$f":"'[1]7'!Q113","v":0},{"$f":"'[1]7'!Q113","v":0},0,{"$f":"'[1]7'!T113","v":0},{"$f":"'[1]7'!T113","v":0},0,{"$f":"'[1]7'!V113","v":0},{"$f":"'[1]7'!V113","v":0},0]
[1,"EX1223",null,null,null,"Provinces",null,null,{"$f":"'[1]7'!J114","v":0},{"$f":"'[1]7'!L114","v":0},{"$f":"'[1]7'!N114","v":0},{"$f":"'[1]7'!N114","v":0},{"$f":"'[1]7'!Q114","v":0},{"$f":"'[1]7'!Q114","v":0},0,{"$f":"'[1]7'!T114","v":0},{"$f":"'[1]7'!T114","v":0},0,{"$f":"'[1]7'!V114","v":0},{"$f":"'[1]7'!V114","v":0},0]
[1,"EX1224",null,null,null,"Municipalities",null,null,{"$f":"'[1]7'!J115","v":0},{"$f":"'[1]7'!L115","v":0},{"$f":"'[1]7'!N115","v":0},{"$f":"'[1]7'!N115","v":0},{"$f":"'[1]7'!Q115","v":0},{"$f":"'[1]7'!Q115","v":0},0,{"$f":"'[1]7'!T115","v":0},{"$f":"'[1]7'!T115","v":0},0,{"$f":"'[1]7'!V115","v":0},{"$f":"'[1]7'!V115","v":0},0]
[2,"EX1225",null,null,null,"National Skills Fund",null,null,{"$f":"'[1]7'!J116","v":0},{"$f":"'[1]7'!L116","v":0},{"$f":"'[1]7'!N116","v":0},{"$f":"'[1]7'!N116","v":0},{"$f":"'[1]7'!Q116","v":0},{"$f":"'[1]7'!Q116","v":0},0,{"$f":"'[1]7'!T116","v":0},{"$f":"'[1]7'!T116","v":0},0,{"$f":"'[1]7'!V116","v":0},{"$f":"'[1]7'!V116","v":0},0]
[1,"EX123",null,null,null,"Public corporations and private enterprises (subsidies and other transfers)",null,null,{"$f":"SUM(I118:I119)","v":0},0,0,0,0,0,0,{"$f":"SUM(P118:P119)","v":0},{"$f":"SUM(Q118:Q119)","v":0},0,{"$f":"SUM(S118:S119)","v":0},{"$f":"SUM(T118:T119)","v":0},0,{"$f":"SUM(V118:V119)","v":0}]
[1,"EX1231",null,null,null,"Public corporations",null,null,{"$f":"'[1]7'!J118","v":0},{"$f":"'[1]7'!L118","v":0},{"$f":"'[1]7'!N118","v":0},{"$f":"'[1]7'!N118","v":0},{"$f":"'[1]7'!Q118","v":0},{"$f":"'[1]7'!Q118","v":0},0,{"$f":"'[1]7'!T118","v":0},{"$f":"'[1]7'!T118","v":0},0,{"$f":"'[1]7'!V118","v":0},{"$f":"'[1]7'!V118","v":0},0]
[1,"EX1232",null,null,null,"Private enterprises",null,null,{"$f":"'[1]7'!J119","v":0},{"$f":"'[1]7'!L119","v":0},{"$f":"'[1]7'!N119","v":0},{"$f":"'[1]7'!N119","v":0},{"$f":"'[1]7'!Q119","v":0},{"$f":"'[1]7'!Q119","v":0},0,{"$f":"'[1]7'!T119","v":0},{"$f":"'[1]7'!T119","v":0},0,{"$f":"'[1]7'!V119","v":0},{"$f":"'[1]7'!V119","v":0},0]
[2,"EX124",null,null,null,"Households and non government units",null,null,{"$f":"'[1]7'!J120","v":0},{"$f":"'[1]7'!L120","v":0},{"$f":"'[1]7'!N120","v":0},{"$f":"'[1]7'!N120","v":0},{"$f":"'[1]7'!Q120","v":0},{"$f":"'[1]7'!Q120","v":0},0,{"$f":"'[1]7'!T120","v":0},{"$f":"'[1]7'!T120","v":0},0,{"$f":"'[1]7'!V120","v":0},{"$f":"'[1]7'!V120","v":0},0]
[2,"EX125",null,null,null,"Discretionary Grant (SETAs only)",null,null,{"$f":"SUM(I122,I128,I131)","v":0},0,0,0,0,0,0,{"$f":"SUM(P122,P128,P131)","v":0},{"$f":"SUM(Q122,Q128,Q131)","v":0},0,{"$f":"SUM(S122,S128,S131)","v":0},{"$f":"SUM(T122,T128,T131)","v":0},0,{"$f":"SUM(V122,V128,V131)","v":0}]
[2,"EX126",null,null,null,"Other government units",null,null,{"$f":"SUM(I123:I127)","v":0},0,0,0,0,0,0,{"$f":"SUM(P123:P127)","v":0},{"$f":"SUM(Q123:Q127)","v":0},0,{"$f":"SUM(S123:S127)","v":0},{"$f":"SUM(T123:T127)","v":0},0,{"$f":"SUM(V123:V127)","v":0}]
[2,"EX1261",null,null,null,"National government",null,null,{"$f":"'[1]7'!J123","v":0},{"$f":"'[1]7'!L123","v":0},{"$f":"'[1]7'!N123","v":0},{"$f":"'[1]7'!N123","v":0},{"$f":"'[1]7'!Q123","v":0},{"$f":"'[1]7'!Q123","v":0},0,{"$f":"'[1]7'!T123","v":0},{"$f":"'[1]7'!T123","v":0},0,{"$f":"'[1]7'!V123","v":0},{"$f":"'[1]7'!V123","v":0},0]
[2,"EX1262",null,null,null,"Departmental agencies and accounts",null,null,{"$f":"'[1]7'!J124","v":0},{"$f":"'[1]7'!L124","v":0},{"$f":"'[1]7'!N124","v":0},{"$f":"'[1]7'!N124","v":0},{"$f":"'[1]7'!Q124","v":0},{"$f":"'[1]7'!Q124","v":0},0,{"$f":"'[1]7'!T124","v":0},{"$f":"'[1]7'!T124","v":0},0,{"$f":"'[1]7'!V124","v":0},{"$f":"'[1]7'!V124","v":0},0]
[2,"EX1263",null,null,null,"Provinces",null,null,{"$f":"'[1]7'!J125","v":0},{"$f":"'[1]7'!L125","v":0},{"$f":"'[1]7'!N125","v":0},{"$f":"'[1]7'!N125","v":0},{"$f":"'[1]7'!Q125","v":0},{"$f":"'[1]7'!Q125","v":0},0,{"$f":"'[1]7'!T125","v":0},{"$f":"'[1]7'!T125","v":0},0,{"$f":"'[1]7'!V125","v":0},{"$f":"'[1]7'!V125","v":0},0]
[2,"EX1264",null,null,null,"Municipalities",null,null,{"$f":"'[1]7'!J126","v":0},{"$f":"'[1]7'!L126","v":0},{"$f":"'[1]7'!N126","v":0},{"$f":"'[1]7'!N126","v":0},{"$f":"'[1]7'!Q126","v":0},{"$f":"'[1]7'!Q126","v":0},0,{"$f":"'[1]7'!T126","v":0},{"$f":"'[1]7'!T126","v":0},0,{"$f":"'[1]7'!V126","v":0},{"$f":"'[1]7'!V126","v":0},0]
[2,"EX1265",null,null,null,"National Skills Fund",null,null,{"$f":"'[1]7'!J127","v":0},{"$f":"'[1]7'!L127","v":0},{"$f":"'[1]7'!N127","v":0},{"$f":"'[1]7'!N127","v":0},{"$f":"'[1]7'!Q127","v":0},{"$f":"'[1]7'!Q127","v":0},0,{"$f":"'[1]7'!T127","v":0},{"$f":"'[1]7'!T127","v":0},0,{"$f":"'[1]7'!V127","v":0},{"$f":"'[1]7'!V127","v":0},0]
[2,"EX127",null,null,null,"Public corporations and private enterprises (subsidies and other transfers)",null,null,{"$f":"SUM(I129:I130)","v":0},0,0,0,0,0,0,{"$f":"SUM(P129:P130)","v":0},{"$f":"SUM(Q129:Q130)","v":0},0,{"$f":"SUM(S129:S130)","v":0},{"$f":"SUM(T129:T130)","v":0},0,{"$f":"SUM(V129:V130)","v":0}]
[2,"EX1271",null,null,null,"Public corporations",null,null,{"$f":"'[1]7'!J129","v":0},{"$f":"'[1]7'!L129","v":0},{"$f":"'[1]7'!N129","v":0},{"$f":"'[1]7'!N129","v":0},{"$f":"'[1]7'!Q129","v":0},{"$f":"'[1]7'!Q129","v":0},0,{"$f":"'[1]7'!T129","v":0},{"$f":"'[1]7'!T129","v":0},0,{"$f":"'[1]7'!V129","v":0},{"$f":"'[1]7'!V129","v":0},{"$f":"SUM(T129-S129)","v":0}]
[2,"EX1272",null,null,null,"Private enterprises",null,null,{"$f":"'[1]7'!J130","v":0},{"$f":"'[1]7'!L130","v":0},{"$f":"'[1]7'!N130","v":0},{"$f":"'[1]7'!N130","v":0},{"$f":"'[1]7'!Q130","v":0},{"$f":"'[1]7'!Q130","v":0},0,{"$f":"'[1]7'!T130","v":0},{"$f":"'[1]7'!T130","v":0},0,{"$f":"'[1]7'!V130","v":0},{"$f":"'[1]7'!V130","v":0},0]
[2,"EX128",null,null,null,"Households and non government units",null,null,{"$f":"'[1]7'!J131","v":0},{"$f":"'[1]7'!L131","v":0},{"$f":"'[1]7'!N131","v":0},{"$f":"'[1]7'!N131","v":0},{"$f":"'[1]7'!Q131","v":0},{"$f":"'[1]7'!Q131","v":0},0,{"$f":"'[1]7'!T131","v":0},{"$f":"'[1]7'!T131","v":0},0,{"$f":"'[1]7'!V131","v":0},{"$f":"'[1]7'!V131","v":0},0]
[1,"EX129",null,null,null,"Higher education institutions",null,null,{"$f":"'[1]7'!J132","v":0},{"$f":"'[1]7'!L132","v":0},{"$f":"'[1]7'!N132","v":0},{"$f":"'[1]7'!N132","v":0},{"$f":"'[1]7'!Q132","v":0},{"$f":"'[1]7'!Q132","v":0},0,{"$f":"'[1]7'!T132","v":0},{"$f":"'[1]7'!T132","v":0},0,{"$f":"'[1]7'!V132","v":0},{"$f":"'[1]7'!V132","v":0},0]
[1,"EX130",null,null,null,"Foreign governments and international organisations ",null,null,{"$f":"'[1]7'!J133","v":0},{"$f":"'[1]7'!L133","v":0},{"$f":"'[1]7'!N133","v":0},{"$f":"'[1]7'!N133","v":0},{"$f":"'[1]7'!Q133","v":0},{"$f":"'[1]7'!Q133","v":0},0,{"$f":"'[1]7'!T133","v":0},{"$f":"'[1]7'!T133","v":0},0,{"$f":"'[1]7'!V133","v":0},{"$f":"'[1]7'!V133","v":0},0]
[1,"EX131",null,null,null,"Non-profit institutions",null,null,{"$f":"'[1]7'!J134","v":0},{"$f":"'[1]7'!L134","v":0},{"$f":"'[1]7'!N134","v":0},{"$f":"'[1]7'!N134","v":0},{"$f":"'[1]7'!Q134","v":0},{"$f":"'[1]7'!Q134","v":0},0,{"$f":"'[1]7'!T134","v":0},{"$f":"'[1]7'!T134","v":0},0,{"$f":"'[1]7'!V134","v":0},{"$f":"'[1]7'!V134","v":0},0]
[1,"EX132",null,null,null,"Households",null,null,{"$f":"SUM(I136:I137)","v":0},0,0,0,0,0,{"$f":"SUM(N135-M135)","v":0},{"$f":"SUM(P136:P137)","v":0},{"$f":"SUM(Q136:Q137)","v":0},{"$f":"SUM(Q135-P135)","v":0},{"$f":"SUM(S136:S137)","v":0},{"$f":"SUM(T136:T137)","v":0},{"$f":"SUM(T135-S135)","v":0},{"$f":"SUM(V136:V137)","v":0}]
[1,"EX1301",null,null,null,"Social benefits ",null,null,{"$f":"'[1]7'!J136","v":0},{"$f":"'[1]7'!L136","v":0},{"$f":"'[1]7'!N136","v":0},{"$f":"'[1]7'!N136","v":0},{"$f":"'[1]7'!Q136","v":0},{"$f":"'[1]7'!Q136","v":0},0,{"$f":"'[1]7'!T136","v":0},{"$f":"'[1]7'!T136","v":0},0,{"$f":"'[1]7'!V136","v":0},{"$f":"'[1]7'!V136","v":0},0]
[1,"EX1302",null,null,null,"Other transfers to households",null,null,{"$f":"'[1]7'!J137","v":0},{"$f":"'[1]7'!L137","v":0},{"$f":"'[1]7'!N137","v":0},{"$f":"'[1]7'!N137","v":0},{"$f":"'[1]7'!Q137","v":0},{"$f":"'[1]7'!Q137","v":0},0,{"$f":"'[1]7'!T137","v":0},{"$f":"'[1]7'!T137","v":0},0,{"$f":"'[1]7'!V137","v":0},{"$f":"'[1]7'!V137","v":0},0]
[1,"EX13",null,null,null,"Tax payment",null,null,{"$f":"'[1]7'!J138","v":0},{"$f":"'[1]7'!L138","v":0},{"$f":"'[1]7'!N138","v":0},{"$f":"'[1]7'!N138","v":0},{"$f":"'[1]7'!Q138","v":0},{"$f":"'[1]7'!Q138","v":0},0,{"$f":"'[1]7'!T138","v":0},{"$f":"'[1]7'!T138","v":0},0,{"$f":"'[1]7'!V138","v":0},{"$f":"'[1]7'!V138","v":0},0]
[1,"EX14",null,null,null,"Outside shareholders Interest",null,null,{"$f":"'[1]7'!J139","v":0},{"$f":"'[1]7'!L139","v":0},{"$f":"'[1]7'!N139","v":0},{"$f":"'[1]7'!N139","v":0},{"$f":"'[1]7'!Q139","v":0},{"$f":"'[1]7'!Q139","v":0},0,{"$f":"'[1]7'!T139","v":0},{"$f":"'[1]7'!T139","v":0},0,{"$f":"'[1]7'!V139","v":0},{"$f":"'[1]7'!V139","v":0},0]
[1,"EX15",null,null,null,"Total Expenditure",null,null,{"$f":"SUM(I39,I109,I138:I139)","v":0},0,0,0,0,0,0,{"$f":"SUM(P39,P109,P138:P139)","v":0},{"$f":"SUM(Q39,Q109,Q138:Q139)","v":0},0,{"$f":"SUM(S39,S109,S138:S139)","v":0},{"$f":"SUM(T39,T109,T138:T139)","v":0},0,{"$f":"SUM(V39,V109,V138:V139)","v":0}]
[1]
[1,null,null,null,null,"Objective less Expenditure",null,null,{"$f":"ROUND(IF(I37-I140>0,IF(I37-I140<1,0,I37-I140),I37-I140),0)","v":0},0,null,0,0,0,{"$f":"ROUND(IF(O37-O140>0,IF(O37-O140<1,0,O37-O140),O37-O140),0)","v":0},0,0,0,0,0,0,0]
[1]

{"sheet":"8","index":12,"n_rows":143,"n_cols":23,"rows_kept":143,"cut":false,"hidden":false,"merged":[[31,15,31,17],[31,18,31,20],[31,12,31,14],[31,10,31,11]]}
[]
[]
[]
[]
[]
[null,null,null,null,null,"PE No",{"$f":"Settings!O2","v":"PE126"}]
[null,null,null,null,null,"Entity name",{"$f":"Settings!$E$2","v":"South African Revenue Service"}]
[]
[null,null,null,null,null,"Performance and operations information"]
["ItemCat","Item code","Hide/unhide",null,null,"Activity/Output/Outcome/Efficiency Indicator","MTDP Outcomes",null,{"$f":"MyYearM3","v":"2022/23"},{"$f":"MyYearM2","v":"2023/24"},{"$f":"MyYearM1","v":"2024/25"},{"$f":"MyYear0","v":"2025/26"},{"$f":"MyYearP1","v":"2026/27"},{"$f":"MyYearP2","v":"2027/28"},{"$f":"MyYearP3","v":"2028/29"},"Related Objectives","Add to 'Performance Indicators' Sheet","Comments"]
[1,null,null,null,null,{"$f":"'[1]8'!F11","v":"Customs and Excise revenue collected (R billion)"},{"$f":"'[1]8'!G11","v":"Outcome 10: Reduced poverty and improved livelihoods"},0,{"$f":"'[1]8'!J11","v":"Collect 100% of the target as agreed with Minister of Finance"},{"$f":"'[1]8'!K11","v":"Collect 100% of the target as agreed with Minister of Finance"},{"$f":"'[1]8'!L11","v":"Collect 100% of the target as agreed with Minister of Finance"},{"$f":"'[1]8'!M11","v":0},{"$f":"'[1]8'!N11","v":0},{"$f":"'[1]8'!O11","v":0},null,{"$f":"'[1]8'!P11","v":"Operations & Delivery - Regional"},{"$f":"'[1]8'!Q11","v":"No"},{"$f":"'[1]8'!R11","v":0}]
[1,null,null,null,null,{"$f":"'[1]8'!F12","v":"% of  trade attributable to Preferred Traders"},{"$f":"'[1]8'!G12","v":"Outcome 10: Reduced poverty and improved livelihoods"},0,{"$f":"'[1]8'!J12","v":0.15},{"$f":"'[1]8'!K12","v":0},{"$f":"'[1]8'!L12","v":"0"},{"$f":"'[1]8'!M12","v":0},{"$f":"'[1]8'!N12","v":0},{"$f":"'[1]8'!O12","v":0},null,{"$f":"'[1]8'!P12","v":"Operations & Delivery - Regional"},{"$f":"'[1]8'!Q12","v":"No"},{"$f":"'[1]8'!R12","v":0}]
[1,null,null,null,null,{"$f":"'[1]8'!F13","v":"% Of goods targeted for the purpose of detecting under-declarations "},{"$f":"'[1]8'!G13","v":"Outcome 10: Reduced poverty and improved livelihoods"},0,{"$f":"'[1]8'!J13","v":0},{"$f":"'[1]8'!K13","v":0},{"$f":"'[1]8'!L13","v":0},{"$f":"'[1]8'!M13","v":0},{"$f":"'[1]8'!N13","v":0},{"$f":"'[1]8'!O13","v":0},null,{"$f":"'[1]8'!P13","v":"Operations & Delivery - Regional"},{"$f":"'[1]8'!Q13","v":"No"},{"$f":"'[1]8'!R13","v":0}]
[1,null,null,null,null,{"$f":"'[1]8'!F14","v":"% Compliance to Excise Framework"},{"$f":"'[1]8'!G14","v":"Outcome 10: Reduced poverty and improved livelihoods"},0,{"$f":"'[1]8'!J14","v":0},{"$f":"'[1]8'!K14","v":0},{"$f":"'[1]8'!L14","v":0},{"$f":"'[1]8'!M14","v":0},{"$f":"'[1]8'!N14","v":0},{"$f":"'[1]8'!O14","v":0},null,{"$f":"'[1]8'!P14","v":"Operations & Delivery - Regional"},{"$f":"'[1]8'!Q14","v":"No"},{"$f":"'[1]8'!R14","v":0}]
[1,null,null,null,null,{"$f":"'[1]8'!F15","v":"% matching of customs declarations to cargo reports"},{"$f":"'[1]8'!G15","v":"Outcome 10: Reduced poverty and improved livelihoods"},0,{"$f":"'[1]8'!J15","v":"Sea 90%\nAir 90%\nRail 90%\nRoad 98%"},{"$f":"'[1]8'!K15","v":0},{"$f":"'[1]8'!L15","v":0},{"$f":"'[1]8'!M15","v":0},{"$f":"'[1]8'!N15","v":0},{"$f":"'[1]8'!O15","v":0},null,{"$f":"'[1]8'!P15","v":"Operations & Delivery - Regional"},{"$f":"'[1]8'!Q15","v":"No"},{"$f":"'[1]8'!R15","v":0}]
[1,null,null,null,null,{"$f":"'[1]8'!F16","v":"% Audit coverage of Excise clients\n"},{"$f":"'[1]8'!G16","v":"Outcome 10: Reduced poverty and improved livelihoods"},0,{"$f":"'[1]8'!J16","v":0.4},{"$f":"'[1]8'!K16","v":0},{"$f":"'[1]8'!L16","v":0},{"$f":"'[1]8'!M16","v":0},{"$f":"'[1]8'!N16","v":0},{"$f":"'[1]8'!O16","v":0},null,{"$f":"'[1]8'!P16","v":"Operations & Delivery - Regional"},{"$f":"'[1]8'!Q16","v":"No"},{"$f":"'[1]8'!R16","v":0}]
[1,null,null,null,null,{"$f":"'[1]8'!F17","v":"% of standard taxpayers\nreturns auto assessed by SARS (individual taxpayers)\n"},{"$f":"'[1]8'!G17","v":"Outcome 10: Reduced poverty and improved livelihoods"},0,{"$f":"'[1]8'!J17","v":90},{"$f":"'[1]8'!K17","v":"93"},{"$f":"'[1]8'!L17","v":"95"},{"$f":"'[1]8'!M17","v":"95"},{"$f":"'[1]8'!N17","v":0},{"$f":"'[1]8'!O17","v":0},null,{"$f":"'[1]8'!P17","v":"Operations & Delivery - Regional"},{"$f":"'[1]8'!Q17","v":"No"},{"$f":"'[1]8'!R17","v":0}]
[1,null,null,null,null,{"$f":"'[1]8'!F18","v":"There are fewer taxpayers and traders that need SARS to help them resolve their tax and customs queries – % reduction in the number of taxpayers and traders requiring to visit a SARS branch office"},{"$f":"'[1]8'!G18","v":"Outcome 10: Reduced poverty and improved livelihoods"},0,{"$f":"'[1]8'!J18","v":"30.00% reduction in inbound volumes relative to base"},{"$f":"'[1]8'!K18","v":"40.00% reduction in inbound volumes relative to base"},{"$f":"'[1]8'!L18","v":"60.00% reduction in inbound volumes relative to base"},{"$f":"'[1]8'!M18","v":0},{"$f":"'[1]8'!N18","v":0},{"$f":"'[1]8'!O18","v":0},null,{"$f":"'[1]8'!P18","v":"Operations and delivery  (Regional)"},{"$f":"'[1]8'!Q18","v":"No"},{"$f":"'[1]8'!R18","v":0}]
[1,null,null,null,null,{"$f":"'[1]8'!F19","v":"We have a continuous\ndownward trend in overall disputes - % reduction in the number of disputes lodged with SARS"},{"$f":"'[1]8'!G19","v":"Outcome 10: Reduced poverty and improved livelihoods"},0,{"$f":"'[1]8'!J19","v":"15.00%\nreduction"},{"$f":"'[1]8'!K19","v":"30.00%\nreduction"},{"$f":"'[1]8'!L19","v":"• Simple taxpayers Personal Income Tax (PIT) disputes to largely disappear by 2024/25\n• Provisional taxpayer disputes to significantly\ndecrease by 2024/25\n• VAT disputes to\nsignificantly decrease by 2024/25"},{"$f":"'[1]8'!M19","v":0},{"$f":"'[1]8'!N19","v":0},{"$f":"'[1]8'!O19","v":0},null,{"$f":"'[1]8'!P19","v":"Operations and delivery  (Regional)"},{"$f":"'[1]8'!Q19","v":"No"},{"$f":"'[1]8'!R19","v":0}]
[1,null,null,null,null,{"$f":"'[1]8'!F20","v":"Leveraged products introduced – Advance Pricing Agreement (APA) Programme introduced"},{"$f":"'[1]8'!G20","v":"Outcome 10: Reduced poverty and improved livelihoods"},0,{"$f":"'[1]8'!J20","v":"Legislation for APA Programme proposed to National, Treasury"},{"$f":"'[1]8'!K20","v":"Legislation for APA Programme introduced\nAPA Programme pilot launched"},{"$f":"'[1]8'!L20","v":"Outcome of pilot reviewed with a view to broader implementation of APA Programme"},{"$f":"'[1]8'!M20","v":0},{"$f":"'[1]8'!N20","v":0},{"$f":"'[1]8'!O20","v":0},null,{"$f":"'[1]8'!P20","v":"Operations and delivery  (Regional)"},{"$f":"'[1]8'!Q20","v":"No"},{"$f":"'[1]8'!R20","v":0}]
[1,null,null,null,null,{"$f":"'[1]8'!F21","v":"Uptake of AEO\nProgramme by traders - % uptake of Authorised Economic Operator (AEO) Programme by active economic\noperators"},{"$f":"'[1]8'!G21","v":"Outcome 10: Reduced poverty and improved livelihoods"},0,{"$f":"'[1]8'!J21","v":"50.00% of total active economic operators\ntargeted"},{"$f":"'[1]8'!K21","v":"70.00% of total active economic operators\ntargeted"},{"$f":"'[1]8'!L21","v":"80.00% of total active economic operators\ntargeted"},{"$f":"'[1]8'!M21","v":0},{"$f":"'[1]8'!N21","v":0},{"$f":"'[1]8'!O21","v":0},null,{"$f":"'[1]8'!P21","v":"Operations and delivery  (Regional)"},{"$f":"'[1]8'!Q21","v":"No"},{"$f":"'[1]8'!R21","v":0}]
[1,null,null,null,null,{"$f":"'[1]8'!F22","v":"Overall compliance has increased as measured by a well-defined compliance index"},{"$f":"'[1]8'!G22","v":"Outcome 10: Reduced poverty and improved livelihoods"},0,{"$f":"'[1]8'!J22","v":"5.00% improvement on baseline \n"},{"$f":"'[1]8'!K22","v":"5.00% improvement on baseline \n"},{"$f":"'[1]8'!L22","v":"5.00% improvement on baseline \n"},{"$f":"'[1]8'!M22","v":"5.00% improvement on baseline \n"},{"$f":"'[1]8'!N22","v":0},{"$f":"'[1]8'!O22","v":0},null,{"$f":"'[1]8'!P22","v":0},{"$f":"'[1]8'!Q22","v":0},{"$f":"'[1]8'!R22","v":0}]
[1,null,null,null,null,{"$f":"'[1]8'!F23","v":"Enhanced Trade Facilitation"},{"$f":"'[1]8'!G23","v":"Outcome 10: Reduced poverty and improved livelihoods"},0,{"$f":"'[1]8'!J23","v":"A trade facilitation index is developed and approved, baseline determined and future targets set"},{"$f":"'[1]8'!K23","v":0},{"$f":"'[1]8'!L23","v":0},{"$f":"'[1]8'!M23","v":0},{"$f":"'[1]8'!N23","v":0},{"$f":"'[1]8'!O23","v":0},null,{"$f":"'[1]8'!P23","v":0},{"$f":"'[1]8'!Q23","v":"No"},{"$f":"'[1]8'!R23","v":0}]
[1,null,null,null,null,{"$f":"'[1]8'!F24","v":"% of cases SARS referred to the NPA that is accepted for prosecution"},{"$f":"'[1]8'!G24","v":"Outcome 10: Reduced poverty and improved livelihoods"},0,{"$f":"'[1]8'!J24","v":"90"},{"$f":"'[1]8'!K24","v":"90"},{"$f":"'[1]8'!L24","v":"95"},{"$f":"'[1]8'!M24","v":"95"},{"$f":"'[1]8'!N24","v":0},{"$f":"'[1]8'!O24","v":0},null,{"$f":"'[1]8'!P24","v":"Operations and delivery (national)"},{"$f":"'[1]8'!Q24","v":"No"},{"$f":"'[1]8'!R24","v":0}]
[1,null,null,null,null,{"$f":"'[1]8'!F25","v":0},{"$f":"'[1]8'!G25","v":"Outcome 10: Reduced poverty and improved livelihoods"},0,{"$f":"'[1]8'!J25","v":0},{"$f":"'[1]8'!K25","v":0},{"$f":"'[1]8'!L25","v":0},{"$f":"'[1]8'!M25","v":0},{"$f":"'[1]8'!N25","v":0},{"$f":"'[1]8'!O25","v":0},null,{"$f":"'[1]8'!P25","v":0},{"$f":"'[1]8'!Q25","v":0},{"$f":"'[1]8'!R25","v":0}]
[1,null,null,null,null,"Notes:"]
[1,null,null,null,null,"Performance indicators are an explanation of objectives performance.   "]
[1,null,null,null,null,"1. They are specific measurements that track progress towards achieving the goals and objectives of an institution."]
[1,null,null,null,null,"2. Institutions should use performance indicators in the 2024/25 Annual Performance Plans and those in the 2025 ENE. "]
[1,null,null,null,null,"3. Institutions should also indicate instances where targets are not affected by budget baseline reprioritisation."]
[1]
[1,null,null,null,null,null,null,null,{"$f":"MyYearM3","v":"2022/23"},{"$f":"MyYearM2","v":"2023/24"},{"$f":"MyYearM1","v":"2024/25"},null,{"$f":"MyYear0","v":"2025/26"},null,null,{"$f":"MyYearP1","v":"2026/27"},null,null,{"$f":"MyYearP2","v":"2027/28"},null,null,{"$f":"MyYearP3","v":"2028/29"}]
[1,null,null,null,null,"Expenses",null,null,{"$f":"Hist_year3RestatedAudited","v":"Audited\noutcome"},{"$f":"Hist_year2RestatedAudited","v":"Audited\noutcome"},{"$f":"Hist_year1Budget","v":"Budget"},{"$f":"Hist_year1Audited","v":"Audited\noutcome"},{"$f":"Cur_YearBudgEst","v":"Budget\nestimate"},{"$f":"Cur_YearApprovedBudg","v":"Approved budget"},{"$f":"Cur_YearChangeFrRevBudg","v":"Changes from \nbudget estimate"},{"$f":"MTEF1BudgEst","v":"Budget\nestimate"},{"$f":"MTEF1RevBudgEst","v":"Revised\nbudget\nestimate"},{"$f":"MTEF1_ChangeFrBudgEst","v":"Changes from budget estimate"},{"$f":"MTEF2BudgEst","v":"Budget\nestimate"},{"$f":"MTEF2RevBudgEst","v":"Revised\nbudget\nestimate"},{"$f":"MTEF2_ChangeFrBudgEst","v":"Changes from budget estimate"},{"$f":"MTEF3PlanBudgetEst","v":"Planning\nbudget \nestimate"}]
[1]
[1,null,null,null,null,"Rand thousand"]
[1,null,null,null,null,"Objective/Activity"]
[1,null,null,null,null,{"$f":"'[1]8'!F37","v":0},null,null,{"$f":"'[1]8'!J37","v":0},{"$f":"'[1]8'!L37","v":0},{"$f":"'[1]8'!N37","v":0},{"$f":"'[1]8'!N37","v":0},{"$f":"'[1]8'!Q37","v":0},{"$f":"'[1]8'!Q37","v":0},{"$f":"SUM(N37-M37)","v":0},{"$f":"'[1]8'!T37","v":0},{"$f":"'[1]8'!T37","v":0},{"$f":"SUM(Q37-P37)","v":0},{"$f":"'[1]8'!V37","v":0},{"$f":"'[1]8'!V37","v":0},{"$f":"SUM(T37-S37)","v":0}]
[1,null,null,null,null,"Economic classification"]
[1,"EX11",null,null,null,"Current payments",null,null,{"$f":"SUM(I40,I43,I98:I99,I105)","v":0},0,0,0,0,0,{"$f":"SUM(N39-M39)","v":0},{"$f":"SUM(P40,P43,P98:P99,P105)","v":0},{"$f":"SUM(Q40,Q43,Q98:Q99,Q105)","v":0},{"$f":"SUM(Q39-P39)","v":0},{"$f":"SUM(S40,S43,S98:S99,S105)","v":0},{"$f":"SUM(T40,T43,T98:T99,T105)","v":0},{"$f":"SUM(T39-S39)","v":0},{"$f":"SUM(V40,V43,V98:V99,V105)","v":0}]
[1,"EX111",null,null,null,"Compensation of employees",null,null,{"$f":"SUM(I41:I42)","v":0},0,0,0,0,0,{"$f":"SUM(N40-M40)","v":0},{"$f":"SUM(P41:P42)","v":0},{"$f":"SUM(Q41:Q42)","v":0},{"$f":"SUM(Q40-P40)","v":0},{"$f":"SUM(S41:S42)","v":0},{"$f":"SUM(T41:T42)","v":0},{"$f":"SUM(T40-S40)","v":0},{"$f":"SUM(V41:V42)","v":0}]
[1,"EX1111",null,null,null,"Salaries and wages",null,null,{"$f":"'[1]8'!J41","v":0},{"$f":"'[1]8'!L41","v":0},{"$f":"'[1]8'!N41","v":0},{"$f":"'[1]8'!N41","v":0},{"$f":"'[1]8'!Q41","v":0},{"$f":"'[1]8'!Q41","v":0},{"$f":"SUM(N41-M41)","v":0},{"$f":"'[1]8'!T41","v":0},{"$f":"'[1]8'!T41","v":0},{"$f":"SUM(Q41-P41)","v":0},{"$f":"'[1]8'!V41","v":0},{"$f":"'[1]8'!V41","v":0},{"$f":"SUM(T41-S41)","v":0}]
[1,"EX1112",null,null,null,"Social contributions",null,null,{"$f":"'[1]8'!J42","v":0},{"$f":"'[1]8'!L42","v":0},{"$f":"'[1]8'!N42","v":0},{"$f":"'[1]8'!N42","v":0},{"$f":"'[1]8'!Q42","v":0},{"$f":"'[1]8'!Q42","v":0},{"$f":"SUM(N42-M42)","v":0},{"$f":"'[1]8'!T42","v":0},{"$f":"'[1]8'!T42","v":0},{"$f":"SUM(Q42-P42)","v":0},{"$f":"'[1]8'!V42","v":0},{"$f":"'[1]8'!V42","v":0},{"$f":"SUM(T42-S42)","v":0}]
[1,"EX112",null,null,null,"Goods and services",null,null,{"$f":"SUM(I45:I54,I58:I61,I73,I75:I97)","v":0},{"$f":"SUM(J45:J54,J58:J61,J73,J75:J97)","v":0},{"$f":"SUM(K45:K54,K58:K61,K73,K75:K97)","v":0},0,0,0,0,0,0,0,0,0,0,0,{"$f":"SUM(W45:W54,W58:W61,W73,W75:W97)","v":0}]
[1,"EX000",null,null,null,"Of which 1"]
[1,"EX1133",null,null,null,"Administrative fees",null,null,{"$f":"'[1]8'!J45","v":0},{"$f":"'[1]8'!L45","v":0},{"$f":"'[1]8'!N45","v":0},{"$f":"'[1]8'!N45","v":0},{"$f":"'[1]8'!Q45","v":0},{"$f":"'[1]8'!Q45","v":0},{"$f":"SUM(N45-M45)","v":0},{"$f":"'[1]8'!T45","v":0},{"$f":"'[1]8'!T45","v":0},{"$f":"SUM(Q45-P45)","v":0},{"$f":"'[1]8'!V45","v":0},{"$f":"'[1]8'!V45","v":0},{"$f":"SUM(T45-S45)","v":0}]
[1,"EX1134",null,null,null,"Advertising",null,null,{"$f":"'[1]8'!J46","v":0},{"$f":"'[1]8'!L46","v":0},{"$f":"'[1]8'!N46","v":0},{"$f":"'[1]8'!N46","v":0},{"$f":"'[1]8'!Q46","v":0},{"$f":"'[1]8'!Q46","v":0},0,{"$f":"'[1]8'!T46","v":0},{"$f":"'[1]8'!T46","v":0},0,{"$f":"'[1]8'!V46","v":0},{"$f":"'[1]8'!V46","v":0},0]
[1,"EX1135",null,null,null,"Minor assets",null,null,{"$f":"'[1]8'!J47","v":0},{"$f":"'[1]8'!L47","v":0},{"$f":"'[1]8'!N47","v":0},{"$f":"'[1]8'!N47","v":0},{"$f":"'[1]8'!Q47","v":0},{"$f":"'[1]8'!Q47","v":0},0,{"$f":"'[1]8'!T47","v":0},{"$f":"'[1]8'!T47","v":0},0,{"$f":"'[1]8'!V47","v":0},{"$f":"'[1]8'!V47","v":0},0]
[1,"EX1136",null,null,null,"Audit costs: External",null,null,{"$f":"'[1]8'!J48","v":0},{"$f":"'[1]8'!L48","v":0},{"$f":"'[1]8'!N48","v":0},{"$f":"'[1]8'!N48","v":0},{"$f":"'[1]8'!Q48","v":0},{"$f":"'[1]8'!Q48","v":0},0,{"$f":"'[1]8'!T48","v":0},{"$f":"'[1]8'!T48","v":0},0,{"$f":"'[1]8'!V48","v":0},{"$f":"'[1]8'!V48","v":0},0]
[1,"EX1139",null,null,null,"Bursaries: Employees",null,null,{"$f":"'[1]8'!J49","v":0},{"$f":"'[1]8'!L49","v":0},{"$f":"'[1]8'!N49","v":0},{"$f":"'[1]8'!N49","v":0},{"$f":"'[1]8'!Q49","v":0},{"$f":"'[1]8'!Q49","v":0},0,{"$f":"'[1]8'!T49","v":0},{"$f":"'[1]8'!T49","v":0},0,{"$f":"'[1]8'!V49","v":0},{"$f":"'[1]8'!V49","v":0},0]
[1,"EX1140",null,null,null,"Catering: Internal activities",null,null,{"$f":"'[1]8'!J50","v":0},{"$f":"'[1]8'!L50","v":0},{"$f":"'[1]8'!N50","v":0},{"$f":"'[1]8'!N50","v":0},{"$f":"'[1]8'!Q50","v":0},{"$f":"'[1]8'!Q50","v":0},0,{"$f":"'[1]8'!T50","v":0},{"$f":"'[1]8'!T50","v":0},0,{"$f":"'[1]8'!V50","v":0},{"$f":"'[1]8'!V50","v":0},0]
[1,"EX1122",null,null,null,"Communication (G&S)",null,null,{"$f":"'[1]8'!J51","v":0},{"$f":"'[1]8'!L51","v":0},{"$f":"'[1]8'!N51","v":0},{"$f":"'[1]8'!N51","v":0},{"$f":"'[1]8'!Q51","v":0},{"$f":"'[1]8'!Q51","v":0},0,{"$f":"'[1]8'!T51","v":0},{"$f":"'[1]8'!T51","v":0},0,{"$f":"'[1]8'!V51","v":0},{"$f":"'[1]8'!V51","v":0},0]
[1,"EX1123",null,null,null,"Computer services",null,null,{"$f":"'[1]8'!J52","v":0},{"$f":"'[1]8'!L52","v":0},{"$f":"'[1]8'!N52","v":0},{"$f":"'[1]8'!N52","v":0},{"$f":"'[1]8'!Q52","v":0},{"$f":"'[1]8'!Q52","v":0},0,{"$f":"'[1]8'!T52","v":0},{"$f":"'[1]8'!T52","v":0},0,{"$f":"'[1]8'!V52","v":0},{"$f":"'[1]8'!V52","v":0},0]
[1,"EX1124",null,null,null,"Consultants: Business and advisory services",null,null,{"$f":"'[1]8'!J53","v":0},{"$f":"'[1]8'!L53","v":0},{"$f":"'[1]8'!N53","v":0},{"$f":"'[1]8'!N53","v":0},{"$f":"'[1]8'!Q53","v":0},{"$f":"'[1]8'!Q53","v":0},0,{"$f":"'[1]8'!T53","v":0},{"$f":"'[1]8'!T53","v":0},0,{"$f":"'[1]8'!V53","v":0},{"$f":"'[1]8'!V53","v":0},0]
[1,"EX1180",null,null,null,"Infrastructure and planning services",null,null,{"$f":"SUM(I55:I57)","v":0},0,0,0,0,0,{"$f":"SUM(N54-M54)","v":0},{"$f":"SUM(P55:P57)","v":0},{"$f":"SUM(Q55:Q57)","v":0},{"$f":"SUM(Q54-P54)","v":0},{"$f":"SUM(S55:S57)","v":0},{"$f":"SUM(T55:T57)","v":0},{"$f":"SUM(T54-S54)","v":0},{"$f":"SUM(V55:V57)","v":0}]
[1,"EX11801",null,null,null,"Maintenance and repairs: Buildings: Consultants",null,null,{"$f":"'[1]8'!J55","v":0},{"$f":"'[1]8'!L55","v":0},{"$f":"'[1]8'!N55","v":0},{"$f":"'[1]8'!N55","v":0},{"$f":"'[1]8'!Q55","v":0},{"$f":"'[1]8'!Q55","v":0},{"$f":"SUM(N55-M55)","v":0},{"$f":"'[1]8'!T55","v":0},{"$f":"'[1]8'!T55","v":0},{"$f":"SUM(Q55-P55)","v":0},{"$f":"'[1]8'!V55","v":0},{"$f":"'[1]8'!V55","v":0},0]
[1,"EX11802",null,null,null,"Maintenance and repairs: Other fixed structures: Consultants",null,null,{"$f":"'[1]8'!J56","v":0},{"$f":"'[1]8'!L56","v":0},{"$f":"'[1]8'!N56","v":0},{"$f":"'[1]8'!N56","v":0},{"$f":"'[1]8'!Q56","v":0},{"$f":"'[1]8'!Q56","v":0},0,{"$f":"'[1]8'!T56","v":0},{"$f":"'[1]8'!T56","v":0},0,{"$f":"'[1]8'!V56","v":0},{"$f":"'[1]8'!V56","v":0},0]
[1,"EX11803",null,null,null,"Other",null,null,{"$f":"'[1]8'!J57","v":0},{"$f":"'[1]8'!L57","v":0},{"$f":"'[1]8'!N57","v":0},{"$f":"'[1]8'!N57","v":0},{"$f":"'[1]8'!Q57","v":0},{"$f":"'[1]8'!Q57","v":0},0,{"$f":"'[1]8'!T57","v":0},{"$f":"'[1]8'!T57","v":0},0,{"$f":"'[1]8'!V57","v":0},{"$f":"'[1]8'!V57","v":0},0]
[1,"EX1164",null,null,null,"Laboratory services",null,null,{"$f":"'[1]8'!J58","v":0},{"$f":"'[1]8'!L58","v":0},{"$f":"'[1]8'!N58","v":0},{"$f":"'[1]8'!N58","v":0},{"$f":"'[1]8'!Q58","v":0},{"$f":"'[1]8'!Q58","v":0},0,{"$f":"'[1]8'!T58","v":0},{"$f":"'[1]8'!T58","v":0},0,{"$f":"'[1]8'!V58","v":0},{"$f":"'[1]8'!V58","v":0},0]
[1,"EX1162",null,null,null,"Legal services (G&S)",null,null,{"$f":"'[1]8'!J59","v":0},{"$f":"'[1]8'!L59","v":0},{"$f":"'[1]8'!N59","v":0},{"$f":"'[1]8'!N59","v":0},{"$f":"'[1]8'!Q59","v":0},{"$f":"'[1]8'!Q59","v":0},0,{"$f":"'[1]8'!T59","v":0},{"$f":"'[1]8'!T59","v":0},0,{"$f":"'[1]8'!V59","v":0},{"$f":"'[1]8'!V59","v":0},0]
[1,"EX1165",null,null,null,"Science and technological services",null,null,{"$f":"'[1]8'!J60","v":0},{"$f":"'[1]8'!L60","v":0},{"$f":"'[1]8'!N60","v":0},{"$f":"'[1]8'!N60","v":0},{"$f":"'[1]8'!Q60","v":0},{"$f":"'[1]8'!Q60","v":0},0,{"$f":"'[1]8'!T60","v":0},{"$f":"'[1]8'!T60","v":0},0,{"$f":"'[1]8'!V60","v":0},{"$f":"'[1]8'!V60","v":0},0]
[1,"EX1125",null,null,null,"Contractors",null,null,{"$f":"SUM(I62:I66,I72)","v":0},0,0,0,0,0,{"$f":"SUM(N61-M61)","v":0},{"$f":"SUM(P62:P66,P72)","v":0},{"$f":"SUM(Q62:Q66,Q72)","v":0},{"$f":"SUM(Q61-P61)","v":0},{"$f":"SUM(S62:S66,S72)","v":0},{"$f":"SUM(T62:T66,T72)","v":0},0,{"$f":"SUM(V62:V66,V72)","v":0}]
[1,"EX11251",null,null,null,"Maintenance and repairs of other fixed structures",null,null,{"$f":"'[1]8'!J62","v":0},{"$f":"'[1]8'!L62","v":0},{"$f":"'[1]8'!N62","v":0},{"$f":"'[1]8'!N62","v":0},{"$f":"'[1]8'!Q62","v":0},{"$f":"'[1]8'!Q62","v":0},0,{"$f":"'[1]8'!T62","v":0},{"$f":"'[1]8'!T62","v":0},0,{"$f":"'[1]8'!V62","v":0},{"$f":"'[1]8'!V62","v":0},0]
[1,"EX11252",null,null,null,"Maintenance and repairs of other machinery and equipment",null,null,{"$f":"'[1]8'!J63","v":0},{"$f":"'[1]8'!L63","v":0},{"$f":"'[1]8'!N63","v":0},{"$f":"'[1]8'!N63","v":0},{"$f":"'[1]8'!Q63","v":0},{"$f":"'[1]8'!Q63","v":0},0,{"$f":"'[1]8'!T63","v":0},{"$f":"'[1]8'!T63","v":0},0,{"$f":"'[1]8'!V63","v":0},{"$f":"'[1]8'!V63","v":0},0]
[1,"EX11253",null,null,null,"Maintenance and repairs of heritage buildings",null,null,{"$f":"'[1]8'!J64","v":0},{"$f":"'[1]8'!L64","v":0},{"$f":"'[1]8'!N64","v":0},{"$f":"'[1]8'!N64","v":0},{"$f":"'[1]8'!Q64","v":0},{"$f":"'[1]8'!Q64","v":0},0,{"$f":"'[1]8'!T64","v":0},{"$f":"'[1]8'!T64","v":0},0,{"$f":"'[1]8'!V64","v":0},{"$f":"'[1]8'!V64","v":0},0]
[1,"EX11254",null,null,null,"Maintenance and repairs of other heritage fixed structures",null,null,{"$f":"'[1]8'!J65","v":0},{"$f":"'[1]8'!L65","v":0},{"$f":"'[1]8'!N65","v":0},{"$f":"'[1]8'!N65","v":0},{"$f":"'[1]8'!Q65","v":0},{"$f":"'[1]8'!Q65","v":0},0,{"$f":"'[1]8'!T65","v":0},{"$f":"'[1]8'!T65","v":0},0,{"$f":"'[1]8'!V65","v":0},{"$f":"'[1]8'!V65","v":0},0]
[5,"EX11255",null,null,null,"South african social security agency payment contractors",null,null,{"$f":"SUM(I67:I71)","v":0},0,0,0,0,0,0,{"$f":"SUM(P67:P71)","v":0},{"$f":"SUM(Q67:Q71)","v":0},0,{"$f":"SUM(S67:S71)","v":0},{"$f":"SUM(T67:T71)","v":0},0,{"$f":"SUM(V67:V71)","v":0}]
[5,"EX112551",null,null,null,"SASSA Admin fees",null,null,{"$f":"'[1]8'!J67","v":0},{"$f":"'[1]8'!L67","v":0},{"$f":"'[1]8'!N67","v":0},{"$f":"'[1]8'!N67","v":0},{"$f":"'[1]8'!Q67","v":0},{"$f":"'[1]8'!Q67","v":0},{"$f":"SUM(N67-M67)","v":0},{"$f":"'[1]8'!T67","v":0},{"$f":"'[1]8'!T67","v":0},{"$f":"SUM(Q67-P67)","v":0},{"$f":"'[1]8'!V67","v":0},{"$f":"'[1]8'!V67","v":0},{"$f":"SUM(T67-S67)","v":0}]
[5,"EX112552",null,null,null,"SASSA Bankcard fees",null,null,{"$f":"'[1]8'!J68","v":0},{"$f":"'[1]8'!L68","v":0},{"$f":"'[1]8'!N68","v":0},{"$f":"'[1]8'!N68","v":0},{"$f":"'[1]8'!Q68","v":0},{"$f":"'[1]8'!Q68","v":0},0,{"$f":"'[1]8'!T68","v":0},{"$f":"'[1]8'!T68","v":0},0,{"$f":"'[1]8'!V68","v":0},{"$f":"'[1]8'!V68","v":0},0]
[5,"EX112553",null,null,null,"SASSA registration fees",null,null,{"$f":"'[1]8'!J69","v":0},{"$f":"'[1]8'!L69","v":0},{"$f":"'[1]8'!N69","v":0},{"$f":"'[1]8'!N69","v":0},{"$f":"'[1]8'!Q69","v":0},{"$f":"'[1]8'!Q69","v":0},0,{"$f":"'[1]8'!T69","v":0},{"$f":"'[1]8'!T69","v":0},0,{"$f":"'[1]8'!V69","v":0},{"$f":"'[1]8'!V69","v":0},0]
[5,"EX112554",null,null,null,"SASSA beneficiary fees",null,null,{"$f":"'[1]8'!J70","v":0},{"$f":"'[1]8'!L70","v":0},{"$f":"'[1]8'!N70","v":0},{"$f":"'[1]8'!N70","v":0},{"$f":"'[1]8'!Q70","v":0},{"$f":"'[1]8'!Q70","v":0},0,{"$f":"'[1]8'!T70","v":0},{"$f":"'[1]8'!T70","v":0},0,{"$f":"'[1]8'!V70","v":0},{"$f":"'[1]8'!V70","v":0},0]
[5,"EX112555",null,null,null,"SASSA help desk fees",null,null,{"$f":"'[1]8'!J71","v":0},{"$f":"'[1]8'!L71","v":0},{"$f":"'[1]8'!N71","v":0},{"$f":"'[1]8'!N71","v":0},{"$f":"'[1]8'!Q71","v":0},{"$f":"'[1]8'!Q71","v":0},0,{"$f":"'[1]8'!T71","v":0},{"$f":"'[1]8'!T71","v":0},0,{"$f":"'[1]8'!V71","v":0},{"$f":"'[1]8'!V71","v":0},0]
[1,"EX11256",null,null,null,"Other",null,null,{"$f":"'[1]8'!J72","v":0},{"$f":"'[1]8'!L72","v":0},{"$f":"'[1]8'!N72","v":0},{"$f":"'[1]8'!N72","v":0},{"$f":"'[1]8'!Q72","v":0},{"$f":"'[1]8'!Q72","v":0},0,{"$f":"'[1]8'!T72","v":0},{"$f":"'[1]8'!T72","v":0},0,{"$f":"'[1]8'!V72","v":0},{"$f":"'[1]8'!V72","v":0},0]
[1,"EX1121",null,null,null,"Agency and support/outsourced services",null,null,{"$f":"'[1]8'!J73","v":0},{"$f":"'[1]8'!L73","v":0},{"$f":"'[1]8'!N73","v":0},{"$f":"'[1]8'!N73","v":0},{"$f":"'[1]8'!Q73","v":0},{"$f":"'[1]8'!Q73","v":0},0,{"$f":"'[1]8'!T73","v":0},{"$f":"'[1]8'!T73","v":0},0,{"$f":"'[1]8'!V73","v":0},{"$f":"'[1]8'!V73","v":0},0]
[5,"EX11211",null,null,null,"     Of Which: Medical assessments",null,null,{"$f":"'[1]8'!J74","v":0},{"$f":"'[1]8'!L74","v":0},{"$f":"'[1]8'!N74","v":0},{"$f":"'[1]8'!N74","v":0},{"$f":"'[1]8'!Q74","v":0},{"$f":"'[1]8'!Q74","v":0},0,{"$f":"'[1]8'!T74","v":0},{"$f":"'[1]8'!T74","v":0},0,{"$f":"'[1]8'!V74","v":0},{"$f":"'[1]8'!V74","v":0},0]
[1,"EX1161",null,null,null,"Entertainment",null,null,{"$f":"'[1]8'!J75","v":0},{"$f":"'[1]8'!L75","v":0},{"$f":"'[1]8'!N75","v":0},{"$f":"'[1]8'!N75","v":0},{"$f":"'[1]8'!Q75","v":0},{"$f":"'[1]8'!Q75","v":0},0,{"$f":"'[1]8'!T75","v":0},{"$f":"'[1]8'!T75","v":0},0,{"$f":"'[1]8'!V75","v":0},{"$f":"'[1]8'!V75","v":0},0]
[1,"EX1166",null,null,null,"Fleet services (including government motor transport)",null,null,{"$f":"'[1]8'!J76","v":0},{"$f":"'[1]8'!L76","v":0},{"$f":"'[1]8'!N76","v":0},{"$f":"'[1]8'!N76","v":0},{"$f":"'[1]8'!Q76","v":0},{"$f":"'[1]8'!Q76","v":0},0,{"$f":"'[1]8'!T76","v":0},{"$f":"'[1]8'!T76","v":0},0,{"$f":"'[1]8'!V76","v":0},{"$f":"'[1]8'!V76","v":0},0]
[1,"EX1167",null,null,null,"Housing",null,null,{"$f":"'[1]8'!J77","v":0},{"$f":"'[1]8'!L77","v":0},{"$f":"'[1]8'!N77","v":0},{"$f":"'[1]8'!N77","v":0},{"$f":"'[1]8'!Q77","v":0},{"$f":"'[1]8'!Q77","v":0},0,{"$f":"'[1]8'!T77","v":0},{"$f":"'[1]8'!T77","v":0},0,{"$f":"'[1]8'!V77","v":0},{"$f":"'[1]8'!V77","v":0},0]
[1,"EX1168",null,null,null,"Inventory: Clothing material and accessories",null,null,{"$f":"'[1]8'!J78","v":0},{"$f":"'[1]8'!L78","v":0},{"$f":"'[1]8'!N78","v":0},{"$f":"'[1]8'!N78","v":0},{"$f":"'[1]8'!Q78","v":0},{"$f":"'[1]8'!Q78","v":0},0,{"$f":"'[1]8'!T78","v":0},{"$f":"'[1]8'!T78","v":0},0,{"$f":"'[1]8'!V78","v":0},{"$f":"'[1]8'!V78","v":0},0]
[1,"EX1169",null,null,null,"Inventory: Farming supplies",null,null,{"$f":"'[1]8'!J79","v":0},{"$f":"'[1]8'!L79","v":0},{"$f":"'[1]8'!N79","v":0},{"$f":"'[1]8'!N79","v":0},{"$f":"'[1]8'!Q79","v":0},{"$f":"'[1]8'!Q79","v":0},0,{"$f":"'[1]8'!T79","v":0},{"$f":"'[1]8'!T79","v":0},0,{"$f":"'[1]8'!V79","v":0},{"$f":"'[1]8'!V79","v":0},0]
[1,"EX1170",null,null,null,"Inventory: Food and food supplies",null,null,{"$f":"'[1]8'!J80","v":0},{"$f":"'[1]8'!L80","v":0},{"$f":"'[1]8'!N80","v":0},{"$f":"'[1]8'!N80","v":0},{"$f":"'[1]8'!Q80","v":0},{"$f":"'[1]8'!Q80","v":0},0,{"$f":"'[1]8'!T80","v":0},{"$f":"'[1]8'!T80","v":0},0,{"$f":"'[1]8'!V80","v":0},{"$f":"'[1]8'!V80","v":0},0]
[1,"EX1171",null,null,null,"Inventory: Fuel, oil and gas",null,null,{"$f":"'[1]8'!J81","v":0},{"$f":"'[1]8'!L81","v":0},{"$f":"'[1]8'!N81","v":0},{"$f":"'[1]8'!N81","v":0},{"$f":"'[1]8'!Q81","v":0},{"$f":"'[1]8'!Q81","v":0},0,{"$f":"'[1]8'!T81","v":0},{"$f":"'[1]8'!T81","v":0},0,{"$f":"'[1]8'!V81","v":0},{"$f":"'[1]8'!V81","v":0},0]
[1,"EX1172",null,null,null,"Inventory: Learner and teacher support material",null,null,{"$f":"'[1]8'!J82","v":0},{"$f":"'[1]8'!L82","v":0},{"$f":"'[1]8'!N82","v":0},{"$f":"'[1]8'!N82","v":0},{"$f":"'[1]8'!Q82","v":0},{"$f":"'[1]8'!Q82","v":0},0,{"$f":"'[1]8'!T82","v":0},{"$f":"'[1]8'!T82","v":0},0,{"$f":"'[1]8'!V82","v":0},{"$f":"'[1]8'!V82","v":0},0]
[1,"EX1126",null,null,null,"Inventory: Materials and supplies",null,null,{"$f":"'[1]8'!J83","v":0},{"$f":"'[1]8'!L83","v":0},{"$f":"'[1]8'!N83","v":0},{"$f":"'[1]8'!N83","v":0},{"$f":"'[1]8'!Q83","v":0},{"$f":"'[1]8'!Q83","v":0},0,{"$f":"'[1]8'!T83","v":0},{"$f":"'[1]8'!T83","v":0},0,{"$f":"'[1]8'!V83","v":0},{"$f":"'[1]8'!V83","v":0},0]
[1,"EX1173",null,null,null,"Inventory: Medical supplies",null,null,{"$f":"'[1]8'!J84","v":0},{"$f":"'[1]8'!L84","v":0},{"$f":"'[1]8'!N84","v":0},{"$f":"'[1]8'!N84","v":0},{"$f":"'[1]8'!Q84","v":0},{"$f":"'[1]8'!Q84","v":0},0,{"$f":"'[1]8'!T84","v":0},{"$f":"'[1]8'!T84","v":0},0,{"$f":"'[1]8'!V84","v":0},{"$f":"'[1]8'!V84","v":0},0]
[1,"EX1174",null,null,null,"Inventory: Medicine",null,null,{"$f":"'[1]8'!J85","v":0},{"$f":"'[1]8'!L85","v":0},{"$f":"'[1]8'!N85","v":0},{"$f":"'[1]8'!N85","v":0},{"$f":"'[1]8'!Q85","v":0},{"$f":"'[1]8'!Q85","v":0},0,{"$f":"'[1]8'!T85","v":0},{"$f":"'[1]8'!T85","v":0},0,{"$f":"'[1]8'!V85","v":0},{"$f":"'[1]8'!V85","v":0},0]
[1,"EX1175",null,null,null,"Medsas inventory interface",null,null,{"$f":"'[1]8'!J86","v":0},{"$f":"'[1]8'!L86","v":0},{"$f":"'[1]8'!N86","v":0},{"$f":"'[1]8'!N86","v":0},{"$f":"'[1]8'!Q86","v":0},{"$f":"'[1]8'!Q86","v":0},0,{"$f":"'[1]8'!T86","v":0},{"$f":"'[1]8'!T86","v":0},0,{"$f":"'[1]8'!V86","v":0},{"$f":"'[1]8'!V86","v":0},0]
[1,"EX1176",null,null,null,"Inventory: Other supplies",null,null,{"$f":"'[1]8'!J87","v":0},{"$f":"'[1]8'!L87","v":0},{"$f":"'[1]8'!N87","v":0},{"$f":"'[1]8'!N87","v":0},{"$f":"'[1]8'!Q87","v":0},{"$f":"'[1]8'!Q87","v":0},0,{"$f":"'[1]8'!T87","v":0},{"$f":"'[1]8'!T87","v":0},0,{"$f":"'[1]8'!V87","v":0},{"$f":"'[1]8'!V87","v":0},0]
[1,"EX1177",null,null,null,"Consumable supplies",null,null,{"$f":"'[1]8'!J88","v":0},{"$f":"'[1]8'!L88","v":0},{"$f":"'[1]8'!N88","v":0},{"$f":"'[1]8'!N88","v":0},{"$f":"'[1]8'!Q88","v":0},{"$f":"'[1]8'!Q88","v":0},0,{"$f":"'[1]8'!T88","v":0},{"$f":"'[1]8'!T88","v":0},0,{"$f":"'[1]8'!V88","v":0},{"$f":"'[1]8'!V88","v":0},0]
[1,"EX1144",null,null,null,"Consumables: Stationery, printing and office supplies",null,null,{"$f":"'[1]8'!J89","v":0},{"$f":"'[1]8'!L89","v":0},{"$f":"'[1]8'!N89","v":0},{"$f":"'[1]8'!N89","v":0},{"$f":"'[1]8'!Q89","v":0},{"$f":"'[1]8'!Q89","v":0},0,{"$f":"'[1]8'!T89","v":0},{"$f":"'[1]8'!T89","v":0},0,{"$f":"'[1]8'!V89","v":0},{"$f":"'[1]8'!V89","v":0},0]
[1,"EX1127",null,null,null,"Operating leases",null,null,{"$f":"'[1]8'!J90","v":0},{"$f":"'[1]8'!L90","v":0},{"$f":"'[1]8'!N90","v":0},{"$f":"'[1]8'!N90","v":0},{"$f":"'[1]8'!Q90","v":0},{"$f":"'[1]8'!Q90","v":0},0,{"$f":"'[1]8'!T90","v":0},{"$f":"'[1]8'!T90","v":0},0,{"$f":"'[1]8'!V90","v":0},{"$f":"'[1]8'!V90","v":0},0]
[1,"EX1178",null,null,null,"Rental and hiring",null,null,{"$f":"'[1]8'!J91","v":0},{"$f":"'[1]8'!L91","v":0},{"$f":"'[1]8'!N91","v":0},{"$f":"'[1]8'!N91","v":0},{"$f":"'[1]8'!Q91","v":0},{"$f":"'[1]8'!Q91","v":0},0,{"$f":"'[1]8'!T91","v":0},{"$f":"'[1]8'!T91","v":0},0,{"$f":"'[1]8'!V91","v":0},{"$f":"'[1]8'!V91","v":0},0]
[1,"EX1145",null,null,null,"Property payments",null,null,{"$f":"'[1]8'!J92","v":0},{"$f":"'[1]8'!L92","v":0},{"$f":"'[1]8'!N92","v":0},{"$f":"'[1]8'!N92","v":0},{"$f":"'[1]8'!Q92","v":0},{"$f":"'[1]8'!Q92","v":0},0,{"$f":"'[1]8'!T92","v":0},{"$f":"'[1]8'!T92","v":0},0,{"$f":"'[1]8'!V92","v":0},{"$f":"'[1]8'!V92","v":0},0]
[1,"EX1179",null,null,null,"Transport provided: Internal activities",null,null,{"$f":"'[1]8'!J93","v":0},{"$f":"'[1]8'!L93","v":0},{"$f":"'[1]8'!N93","v":0},{"$f":"'[1]8'!N93","v":0},{"$f":"'[1]8'!Q93","v":0},{"$f":"'[1]8'!Q93","v":0},0,{"$f":"'[1]8'!T93","v":0},{"$f":"'[1]8'!T93","v":0},0,{"$f":"'[1]8'!V93","v":0},{"$f":"'[1]8'!V93","v":0},0]
[1,"EX1131",null,null,null,"Travel and subsistence",null,null,{"$f":"'[1]8'!J94","v":0},{"$f":"'[1]8'!L94","v":0},{"$f":"'[1]8'!N94","v":0},{"$f":"'[1]8'!N94","v":0},{"$f":"'[1]8'!Q94","v":0},{"$f":"'[1]8'!Q94","v":0},0,{"$f":"'[1]8'!T94","v":0},{"$f":"'[1]8'!T94","v":0},0,{"$f":"'[1]8'!V94","v":0},{"$f":"'[1]8'!V94","v":0},0]
[1,"EX1130",null,null,null,"Training and development",null,null,{"$f":"'[1]8'!J95","v":0},{"$f":"'[1]8'!L95","v":0},{"$f":"'[1]8'!N95","v":0},{"$f":"'[1]8'!N95","v":0},{"$f":"'[1]8'!Q95","v":0},{"$f":"'[1]8'!Q95","v":0},0,{"$f":"'[1]8'!T95","v":0},{"$f":"'[1]8'!T95","v":0},0,{"$f":"'[1]8'!V95","v":0},{"$f":"'[1]8'!V95","v":0},0]
[1,"EX1132",null,null,null,"Operating payments",null,null,{"$f":"'[1]8'!J96","v":0},{"$f":"'[1]8'!L96","v":0},{"$f":"'[1]8'!N96","v":0},{"$f":"'[1]8'!N96","v":0},{"$f":"'[1]8'!Q96","v":0},{"$f":"'[1]8'!Q96","v":0},0,{"$f":"'[1]8'!T96","v":0},{"$f":"'[1]8'!T96","v":0},0,{"$f":"'[1]8'!V96","v":0},{"$f":"'[1]8'!V96","v":0},0]
[1,"EX1146",null,null,null,"Venues and facilities",null,null,{"$f":"'[1]8'!J97","v":0},{"$f":"'[1]8'!L97","v":0},{"$f":"'[1]8'!N97","v":0},{"$f":"'[1]8'!N97","v":0},{"$f":"'[1]8'!Q97","v":0},{"$f":"'[1]8'!Q97","v":0},0,{"$f":"'[1]8'!T97","v":0},{"$f":"'[1]8'!T97","v":0},0,{"$f":"'[1]8'!V97","v":0},{"$f":"'[1]8'!V97","v":0},0]
[1,"EX113",null,null,null,"Depreciation",null,null,{"$f":"'[1]8'!J98","v":0},{"$f":"'[1]8'!L98","v":0},{"$f":"'[1]8'!N98","v":0},{"$f":"'[1]8'!N98","v":0},{"$f":"'[1]8'!Q98","v":0},{"$f":"'[1]8'!Q98","v":0},0,{"$f":"'[1]8'!T98","v":0},{"$f":"'[1]8'!T98","v":0},0,{"$f":"'[1]8'!V98","v":0},{"$f":"'[1]8'!V98","v":0},0]
[1,"EX114",null,null,null,"Losses from",null,null,{"$f":"SUM(I100:I101,I104)","v":0},0,0,0,0,0,{"$f":"SUM(N99-M99)","v":0},{"$f":"SUM(P100:P101,P104)","v":0},{"$f":"SUM(Q100:Q101,Q104)","v":0},{"$f":"SUM(Q99-P99)","v":0},{"$f":"SUM(S100:S101,S104)","v":0},{"$f":"SUM(T100:T101,T104)","v":0},{"$f":"SUM(T99-S99)","v":0},{"$f":"SUM(V100:V101,V104)","v":0}]
[1,"EX1141",null,null,null,"Sale of fixed assets",null,null,{"$f":"'[1]8'!J100","v":0},{"$f":"'[1]8'!L100","v":0},{"$f":"'[1]8'!N100","v":0},{"$f":"'[1]8'!N100","v":0},{"$f":"'[1]8'!Q100","v":0},{"$f":"'[1]8'!Q100","v":0},0,{"$f":"'[1]8'!T100","v":0},{"$f":"'[1]8'!T100","v":0},0,{"$f":"'[1]8'!V100","v":0},{"$f":"'[1]8'!V100","v":0},0]
[1,"EX1142",null,null,null,"Impairments and adjustments to fair value",null,null,{"$f":"SUM(I102:I103)","v":0},0,0,0,0,0,0,{"$f":"SUM(P102:P103)","v":0},{"$f":"SUM(Q102:Q103)","v":0},0,{"$f":"SUM(S102:S103)","v":0},{"$f":"SUM(T102:T103)","v":0},0,{"$f":"SUM(V102:V103)","v":0}]
[1,"EX11421",null,null,null,"Adjustments to fair value of assets",null,null,{"$f":"'[1]8'!J102","v":0},{"$f":"'[1]8'!L102","v":0},{"$f":"'[1]8'!N102","v":0},{"$f":"'[1]8'!N102","v":0},{"$f":"'[1]8'!Q102","v":0},{"$f":"'[1]8'!Q102","v":0},0,{"$f":"'[1]8'!T102","v":0},{"$f":"'[1]8'!T102","v":0},0,{"$f":"'[1]8'!V102","v":0},{"$f":"'[1]8'!V102","v":0},0]
[1,"EX11422",null,null,null,"Impairments to assets",null,null,{"$f":"'[1]8'!J103","v":0},{"$f":"'[1]8'!L103","v":0},{"$f":"'[1]8'!N103","v":0},{"$f":"'[1]8'!N103","v":0},{"$f":"'[1]8'!Q103","v":0},{"$f":"'[1]8'!Q103","v":0},0,{"$f":"'[1]8'!T103","v":0},{"$f":"'[1]8'!T103","v":0},0,{"$f":"'[1]8'!V103","v":0},{"$f":"'[1]8'!V103","v":0},0]
[1,"EX1143",null,null,null,"Other",null,null,{"$f":"'[1]8'!J104","v":0},{"$f":"'[1]8'!L104","v":0},{"$f":"'[1]8'!N104","v":0},{"$f":"'[1]8'!N104","v":0},{"$f":"'[1]8'!Q104","v":0},{"$f":"'[1]8'!Q104","v":0},0,{"$f":"'[1]8'!T104","v":0},{"$f":"'[1]8'!T104","v":0},0,{"$f":"'[1]8'!V104","v":0},{"$f":"'[1]8'!V104","v":0},0]
[1,"EX115",null,null,null,"Interest, dividends and rent on land",null,null,{"$f":"SUM(I106:I108)","v":0},0,0,0,0,0,0,{"$f":"SUM(P106:P108)","v":0},{"$f":"SUM(Q106:Q108)","v":0},0,{"$f":"SUM(S106:S108)","v":0},{"$f":"SUM(T106:T108)","v":0},0,{"$f":"SUM(V106:V108)","v":0}]
[1,"EX1151",null,null,null,"Interest",null,null,{"$f":"'[1]8'!J106","v":0},{"$f":"'[1]8'!L106","v":0},{"$f":"'[1]8'!N106","v":0},{"$f":"'[1]8'!N106","v":0},{"$f":"'[1]8'!Q106","v":0},{"$f":"'[1]8'!Q106","v":0},0,{"$f":"'[1]8'!T106","v":0},{"$f":"'[1]8'!T106","v":0},0,{"$f":"'[1]8'!V106","v":0},{"$f":"'[1]8'!V106","v":0},0]
[1,"EX1152",null,null,null,"Dividends",null,null,{"$f":"'[1]8'!J107","v":0},{"$f":"'[1]8'!L107","v":0},{"$f":"'[1]8'!N107","v":0},{"$f":"'[1]8'!N107","v":0},{"$f":"'[1]8'!Q107","v":0},{"$f":"'[1]8'!Q107","v":0},0,{"$f":"'[1]8'!T107","v":0},{"$f":"'[1]8'!T107","v":0},0,{"$f":"'[1]8'!V107","v":0},{"$f":"'[1]8'!V107","v":0},0]
[1,"EX1153",null,null,null,"Rent on land",null,null,{"$f":"'[1]8'!J108","v":0},{"$f":"'[1]8'!L108","v":0},{"$f":"'[1]8'!N108","v":0},{"$f":"'[1]8'!N108","v":0},{"$f":"'[1]8'!Q108","v":0},{"$f":"'[1]8'!Q108","v":0},0,{"$f":"'[1]8'!T108","v":0},{"$f":"'[1]8'!T108","v":0},0,{"$f":"'[1]8'!V108","v":0},{"$f":"'[1]8'!V108","v":0},0]
[1,"EX12",null,null,null,"Transfers and subsidies",null,null,{"$f":"SUM(I110,I121,I132:I135)","v":0},0,0,0,0,0,0,{"$f":"SUM(P110,P121,P132:P135)","v":0},{"$f":"SUM(Q110,Q121,Q132:Q135)","v":0},0,{"$f":"SUM(S110,S121,S132:S135)","v":0},{"$f":"SUM(T110,T121,T132:T135)","v":0},0,{"$f":"SUM(V110,V121,V132:V135)","v":0}]
[2,"EX121",null,null,null,"Employer Grant (SETAs only)",null,null,{"$f":"SUM(I111,I117,I120)","v":0},0,0,0,0,0,0,{"$f":"SUM(P111,P117,P120)","v":0},{"$f":"SUM(Q111,Q117,Q120)","v":0},0,{"$f":"SUM(S111,S117,S120)","v":0},{"$f":"SUM(T111,T117,T120)","v":0},0,{"$f":"SUM(V111,V117,V120)","v":0}]
[1,"EX122",null,null,null,"Other government units",null,null,{"$f":"SUM(I112:I116)","v":0},0,0,0,0,0,0,{"$f":"SUM(P112:P116)","v":0},{"$f":"SUM(Q112:Q116)","v":0},0,{"$f":"SUM(S112:S116)","v":0},{"$f":"SUM(T112:T116)","v":0},0,{"$f":"SUM(V112:V116)","v":0}]
[1,"EX1221",null,null,null,"National government",null,null,{"$f":"'[1]8'!J112","v":0},{"$f":"'[1]8'!L112","v":0},{"$f":"'[1]8'!N112","v":0},{"$f":"'[1]8'!N112","v":0},{"$f":"'[1]8'!Q112","v":0},{"$f":"'[1]8'!Q112","v":0},0,{"$f":"'[1]8'!T112","v":0},{"$f":"'[1]8'!T112","v":0},0,{"$f":"'[1]8'!V112","v":0},{"$f":"'[1]8'!V112","v":0},0]
[1,"EX1222",null,null,null,"Departmental agencies and accounts",null,null,{"$f":"'[1]8'!J113","v":0},{"$f":"'[1]8'!L113","v":0},{"$f":"'[1]8'!N113","v":0},{"$f":"'[1]8'!N113","v":0},{"$f":"'[1]8'!Q113","v":0},{"$f":"'[1]8'!Q113","v":0},0,{"$f":"'[1]8'!T113","v":0},{"$f":"'[1]8'!T113","v":0},0,{"$f":"'[1]8'!V113","v":0},{"$f":"'[1]8'!V113","v":0},0]
[1,"EX1223",null,null,null,"Provinces",null,null,{"$f":"'[1]8'!J114","v":0},{"$f":"'[1]8'!L114","v":0},{"$f":"'[1]8'!N114","v":0},{"$f":"'[1]8'!N114","v":0},{"$f":"'[1]8'!Q114","v":0},{"$f":"'[1]8'!Q114","v":0},0,{"$f":"'[1]8'!T114","v":0},{"$f":"'[1]8'!T114","v":0},0,{"$f":"'[1]8'!V114","v":0},{"$f":"'[1]8'!V114","v":0},0]
[1,"EX1224",null,null,null,"Municipalities",null,null,{"$f":"'[1]8'!J115","v":0},{"$f":"'[1]8'!L115","v":0},{"$f":"'[1]8'!N115","v":0},{"$f":"'[1]8'!N115","v":0},{"$f":"'[1]8'!Q115","v":0},{"$f":"'[1]8'!Q115","v":0},0,{"$f":"'[1]8'!T115","v":0},{"$f":"'[1]8'!T115","v":0},0,{"$f":"'[1]8'!V115","v":0},{"$f":"'[1]8'!V115","v":0},0]
[2,"EX1225",null,null,null,"National Skills Fund",null,null,{"$f":"'[1]8'!J116","v":0},{"$f":"'[1]8'!L116","v":0},{"$f":"'[1]8'!N116","v":0},{"$f":"'[1]8'!N116","v":0},{"$f":"'[1]8'!Q116","v":0},{"$f":"'[1]8'!Q116","v":0},0,{"$f":"'[1]8'!T116","v":0},{"$f":"'[1]8'!T116","v":0},0,{"$f":"'[1]8'!V116","v":0},{"$f":"'[1]8'!V116","v":0},0]
[1,"EX123",null,null,null,"Public corporations and private enterprises (subsidies and other transfers)",null,null,{"$f":"SUM(I118:I119)","v":0},0,0,0,0,0,0,{"$f":"SUM(P118:P119)","v":0},{"$f":"SUM(Q118:Q119)","v":0},0,{"$f":"SUM(S118:S119)","v":0},{"$f":"SUM(T118:T119)","v":0},0,{"$f":"SUM(V118:V119)","v":0}]
[1,"EX1231",null,null,null,"Public corporations",null,null,{"$f":"'[1]8'!J118","v":0},{"$f":"'[1]8'!L118","v":0},{"$f":"'[1]8'!N118","v":0},{"$f":"'[1]8'!N118","v":0},{"$f":"'[1]8'!Q118","v":0},{"$f":"'[1]8'!Q118","v":0},0,{"$f":"'[1]8'!T118","v":0},{"$f":"'[1]8'!T118","v":0},0,{"$f":"'[1]8'!V118","v":0},{"$f":"'[1]8'!V118","v":0},0]
[1,"EX1232",null,null,null,"Private enterprises",null,null,{"$f":"'[1]8'!J119","v":0},{"$f":"'[1]8'!L119","v":0},{"$f":"'[1]8'!N119","v":0},{"$f":"'[1]8'!N119","v":0},{"$f":"'[1]8'!Q119","v":0},{"$f":"'[1]8'!Q119","v":0},0,{"$f":"'[1]8'!T119","v":0},{"$f":"'[1]8'!T119","v":0},0,{"$f":"'[1]8'!V119","v":0},{"$f":"'[1]8'!V119","v":0},0]
[2,"EX124",null,null,null,"Households and non government units",null,null,{"$f":"'[1]8'!J120","v":0},{"$f":"'[1]8'!L120","v":0},{"$f":"'[1]8'!N120","v":0},{"$f":"'[1]8'!N120","v":0},{"$f":"'[1]8'!Q120","v":0},{"$f":"'[1]8'!Q120","v":0},0,{"$f":"'[1]8'!T120","v":0},{"$f":"'[1]8'!T120","v":0},0,{"$f":"'[1]8'!V120","v":0},{"$f":"'[1]8'!V120","v":0},0]
[2,"EX125",null,null,null,"Discretionary Grant (SETAs only)",null,null,{"$f":"SUM(I122,I128,I131)","v":0},0,0,0,0,0,0,{"$f":"SUM(P122,P128,P131)","v":0},{"$f":"SUM(Q122,Q128,Q131)","v":0},0,{"$f":"SUM(S122,S128,S131)","v":0},{"$f":"SUM(T122,T128,T131)","v":0},0,{"$f":"SUM(V122,V128,V131)","v":0}]
[2,"EX126",null,null,null,"Other government units",null,null,{"$f":"SUM(I123:I127)","v":0},0,0,0,0,0,0,{"$f":"SUM(P123:P127)","v":0},{"$f":"SUM(Q123:Q127)","v":0},0,{"$f":"SUM(S123:S127)","v":0},{"$f":"SUM(T123:T127)","v":0},0,{"$f":"SUM(V123:V127)","v":0}]
[2,"EX1261",null,null,null,"National government",null,null,{"$f":"'[1]8'!J123","v":0},{"$f":"'[1]8'!L123","v":0},{"$f":"'[1]8'!N123","v":0},{"$f":"'[1]8'!N123","v":0},{"$f":"'[1]8'!Q123","v":0},{"$f":"'[1]8'!Q123","v":0},0,{"$f":"'[1]8'!T123","v":0},{"$f":"'[1]8'!T123","v":0},0,{"$f":"'[1]8'!V123","v":0},{"$f":"'[1]8'!V123","v":0},0]
[2,"EX1262",null,null,null,"Departmental agencies and accounts",null,null,{"$f":"'[1]8'!J124","v":0},{"$f":"'[1]8'!L124","v":0},{"$f":"'[1]8'!N124","v":0},{"$f":"'[1]8'!N124","v":0},{"$f":"'[1]8'!Q124","v":0},{"$f":"'[1]8'!Q124","v":0},0,{"$f":"'[1]8'!T124","v":0},{"$f":"'[1]8'!T124","v":0},0,{"$f":"'[1]8'!V124","v":0},{"$f":"'[1]8'!V124","v":0},0]
[2,"EX1263",null,null,null,"Provinces",null,null,{"$f":"'[1]8'!J125","v":0},{"$f":"'[1]8'!L125","v":0},{"$f":"'[1]8'!N125","v":0},{"$f":"'[1]8'!N125","v":0},{"$f":"'[1]8'!Q125","v":0},{"$f":"'[1]8'!Q125","v":0},0,{"$f":"'[1]8'!T125","v":0},{"$f":"'[1]8'!T125","v":0},0,{"$f":"'[1]8'!V125","v":0},{"$f":"'[1]8'!V125","v":0},0]
[2,"EX1264",null,null,null,"Municipalities",null,null,{"$f":"'[1]8'!J126","v":0},{"$f":"'[1]8'!L126","v":0},{"$f":"'[1]8'!N126","v":0},{"$f":"'[1]8'!N126","v":0},{"$f":"'[1]8'!Q126","v":0},{"$f":"'[1]8'!Q126","v":0},0,{"$f":"'[1]8'!T126","v":0},{"$f":"'[1]8'!T126","v":0},0,{"$f":"'[1]8'!V126","v":0},{"$f":"'[1]8'!V126","v":0},0]
[2,"EX1265",null,null,null,"National Skills Fund",null,null,{"$f":"'[1]8'!J127","v":0},{"$f":"'[1]8'!L127","v":0},{"$f":"'[1]8'!N127","v":0},{"$f":"'[1]8'!N127","v":0},{"$f":"'[1]8'!Q127","v":0},{"$f":"'[1]8'!Q127","v":0},0,{"$f":"'[1]8'!T127","v":0},{"$f":"'[1]8'!T127","v":0},0,{"$f":"'[1]8'!V127","v":0},{"$f":"'[1]8'!V127","v":0},0]
[2,"EX127",null,null,null,"Public corporations and private enterprises (subsidies and other transfers)",null,null,{"$f":"SUM(I129:I130)","v":0},0,0,0,0,0,0,{"$f":"SUM(P129:P130)","v":0},{"$f":"SUM(Q129:Q130)","v":0},0,{"$f":"SUM(S129:S130)","v":0},{"$f":"SUM(T129:T130)","v":0},0,{"$f":"SUM(V129:V130)","v":0}]
[2,"EX1271",null,null,null,"Public corporations",null,null,{"$f":"'[1]8'!J129","v":0},{"$f":"'[1]8'!L129","v":0},{"$f":"'[1]8'!N129","v":0},{"$f":"'[1]8'!N129","v":0},{"$f":"'[1]8'!Q129","v":0},{"$f":"'[1]8'!Q129","v":0},0,{"$f":"'[1]8'!T129","v":0},{"$f":"'[1]8'!T129","v":0},0,{"$f":"'[1]8'!V129","v":0},{"$f":"'[1]8'!V129","v":0},{"$f":"SUM(T129-S129)","v":0}]
[2,"EX1272",null,null,null,"Private enterprises",null,null,{"$f":"'[1]8'!J130","v":0},{"$f":"'[1]8'!L130","v":0},{"$f":"'[1]8'!N130","v":0},{"$f":"'[1]8'!N130","v":0},{"$f":"'[1]8'!Q130","v":0},{"$f":"'[1]8'!Q130","v":0},0,{"$f":"'[1]8'!T130","v":0},{"$f":"'[1]8'!T130","v":0},0,{"$f":"'[1]8'!V130","v":0},{"$f":"'[1]8'!V130","v":0},0]
[2,"EX128",null,null,null,"Households and non government units",null,null,{"$f":"'[1]8'!J131","v":0},{"$f":"'[1]8'!L131","v":0},{"$f":"'[1]8'!N131","v":0},{"$f":"'[1]8'!N131","v":0},{"$f":"'[1]8'!Q131","v":0},{"$f":"'[1]8'!Q131","v":0},0,{"$f":"'[1]8'!T131","v":0},{"$f":"'[1]8'!T131","v":0},0,{"$f":"'[1]8'!V131","v":0},{"$f":"'[1]8'!V131","v":0},0]
[1,"EX129",null,null,null,"Higher education institutions",null,null,{"$f":"'[1]8'!J132","v":0},{"$f":"'[1]8'!L132","v":0},{"$f":"'[1]8'!N132","v":0},{"$f":"'[1]8'!N132","v":0},{"$f":"'[1]8'!Q132","v":0},{"$f":"'[1]8'!Q132","v":0},0,{"$f":"'[1]8'!T132","v":0},{"$f":"'[1]8'!T132","v":0},0,{"$f":"'[1]8'!V132","v":0},{"$f":"'[1]8'!V132","v":0},0]
[1,"EX130",null,null,null,"Foreign governments and international organisations ",null,null,{"$f":"'[1]8'!J133","v":0},{"$f":"'[1]8'!L133","v":0},{"$f":"'[1]8'!N133","v":0},{"$f":"'[1]8'!N133","v":0},{"$f":"'[1]8'!Q133","v":0},{"$f":"'[1]8'!Q133","v":0},0,{"$f":"'[1]8'!T133","v":0},{"$f":"'[1]8'!T133","v":0},0,{"$f":"'[1]8'!V133","v":0},{"$f":"'[1]8'!V133","v":0},0]
[1,"EX131",null,null,null,"Non-profit institutions",null,null,{"$f":"'[1]8'!J134","v":0},{"$f":"'[1]8'!L134","v":0},{"$f":"'[1]8'!N134","v":0},{"$f":"'[1]8'!N134","v":0},{"$f":"'[1]8'!Q134","v":0},{"$f":"'[1]8'!Q134","v":0},0,{"$f":"'[1]8'!T134","v":0},{"$f":"'[1]8'!T134","v":0},0,{"$f":"'[1]8'!V134","v":0},{"$f":"'[1]8'!V134","v":0},0]
[1,"EX132",null,null,null,"Households",null,null,{"$f":"SUM(I136:I137)","v":0},0,0,0,0,0,{"$f":"SUM(N135-M135)","v":0},{"$f":"SUM(P136:P137)","v":0},{"$f":"SUM(Q136:Q137)","v":0},{"$f":"SUM(Q135-P135)","v":0},{"$f":"SUM(S136:S137)","v":0},{"$f":"SUM(T136:T137)","v":0},{"$f":"SUM(T135-S135)","v":0},{"$f":"SUM(V136:V137)","v":0}]
[1,"EX1301",null,null,null,"Social benefits ",null,null,{"$f":"'[1]8'!J136","v":0},{"$f":"'[1]8'!L136","v":0},{"$f":"'[1]8'!N136","v":0},{"$f":"'[1]8'!N136","v":0},{"$f":"'[1]8'!Q136","v":0},{"$f":"'[1]8'!Q136","v":0},0,{"$f":"'[1]8'!T136","v":0},{"$f":"'[1]8'!T136","v":0},0,{"$f":"'[1]8'!V136","v":0},{"$f":"'[1]8'!V136","v":0},0]
[1,"EX1302",null,null,null,"Other transfers to households",null,null,{"$f":"'[1]8'!J137","v":0},{"$f":"'[1]8'!L137","v":0},{"$f":"'[1]8'!N137","v":0},{"$f":"'[1]8'!N137","v":0},{"$f":"'[1]8'!Q137","v":0},{"$f":"'[1]8'!Q137","v":0},0,{"$f":"'[1]8'!T137","v":0},{"$f":"'[1]8'!T137","v":0},0,{"$f":"'[1]8'!V137","v":0},{"$f":"'[1]8'!V137","v":0},0]
[1,"EX13",null,null,null,"Tax payment",null,null,{"$f":"'[1]8'!J138","v":0},{"$f":"'[1]8'!L138","v":0},{"$f":"'[1]8'!N138","v":0},{"$f":"'[1]8'!N138","v":0},{"$f":"'[1]8'!Q138","v":0},{"$f":"'[1]8'!Q138","v":0},0,{"$f":"'[1]8'!T138","v":0},{"$f":"'[1]8'!T138","v":0},0,{"$f":"'[1]8'!V138","v":0},{"$f":"'[1]8'!V138","v":0},0]
[1,"EX14",null,null,null,"Outside shareholders Interest",null,null,{"$f":"'[1]8'!J139","v":0},{"$f":"'[1]8'!L139","v":0},{"$f":"'[1]8'!N139","v":0},{"$f":"'[1]8'!N139","v":0},{"$f":"'[1]8'!Q139","v":0},{"$f":"'[1]8'!Q139","v":0},0,{"$f":"'[1]8'!T139","v":0},{"$f":"'[1]8'!T139","v":0},0,{"$f":"'[1]8'!V139","v":0},{"$f":"'[1]8'!V139","v":0},0]
[1,"EX15",null,null,null,"Total Expenditure",null,null,{"$f":"SUM(I39,I109,I138:I139)","v":0},0,0,0,0,0,0,{"$f":"SUM(P39,P109,P138:P139)","v":0},{"$f":"SUM(Q39,Q109,Q138:Q139)","v":0},0,{"$f":"SUM(S39,S109,S138:S139)","v":0},{"$f":"SUM(T39,T109,T138:T139)","v":0},0,{"$f":"SUM(V39,V109,V138:V139)","v":0}]
[1]
[1,null,null,null,null,"Objective less Expenditure",null,null,{"$f":"ROUND(IF(I37-I140>0,IF(I37-I140<1,0,I37-I140),I37-I140),0)","v":0},0,null,0,0,0,{"$f":"ROUND(IF(O37-O140>0,IF(O37-O140<1,0,O37-O140),O37-O140),0)","v":0},0,0,0,0,0,0,0]
[1]

{"sheet":"9","index":13,"n_rows":143,"n_cols":23,"rows_kept":143,"cut":false,"hidden":false,"merged":[[31,15,31,17],[31,18,31,20],[31,12,31,14],[31,10,31,11]]}
[]
[]
[]
[]
[]
[null,null,null,null,null,"PE No",{"$f":"Settings!O2","v":"PE126"}]
[null,null,null,null,null,"Entity name",{"$f":"Settings!$E$2","v":"South African Revenue Service"}]
[]
[null,null,null,null,null,"Performance and operations information"]
["ItemCat","Item code","Hide/unhide",null,null,"Activity/Output/Outcome/Efficiency Indicator","MTDP Outcomes",null,{"$f":"MyYearM3","v":"2022/23"},{"$f":"MyYearM2","v":"2023/24"},{"$f":"MyYearM1","v":"2024/25"},{"$f":"MyYear0","v":"2025/26"},{"$f":"MyYearP1","v":"2026/27"},{"$f":"MyYearP2","v":"2027/28"},{"$f":"MyYearP3","v":"2028/29"},"Related Objectives","Add to 'Performance Indicators' Sheet","Comments"]
[1,null,null,null,null,{"$f":"'[1]9'!F11","v":"% System Uptime for e-channels"},{"$f":"'[1]9'!G11","v":"Outcome 10: Reduced poverty and improved livelihoods"},0,{"$f":"'[1]9'!J11","v":0.99},{"$f":"'[1]9'!K11","v":0.99},{"$f":"'[1]9'!L11","v":0.99},{"$f":"'[1]9'!M11","v":0.99},{"$f":"'[1]9'!N11","v":0},{"$f":"'[1]9'!O11","v":0},null,{"$f":"'[1]9'!P11","v":"Design & Enabling - Enterprise Enabling"},{"$f":"'[1]9'!Q11","v":"No"},{"$f":"'[1]9'!R11","v":0}]
[1,null,null,null,null,{"$f":"'[1]9'!F12","v":"% of planned capacity to be available for mission critical systems"},{"$f":"'[1]9'!G12","v":"Outcome 10: Reduced poverty and improved livelihoods"},0,{"$f":"'[1]9'!J12","v":"100"},{"$f":"'[1]9'!K12","v":100},{"$f":"'[1]9'!L12","v":"100"},{"$f":"'[1]9'!M12","v":0},{"$f":"'[1]9'!N12","v":0},{"$f":"'[1]9'!O12","v":0},null,{"$f":"'[1]9'!P12","v":"Design & Enabling - Enterprise Enabling"},{"$f":"'[1]9'!Q12","v":"No"},{"$f":"'[1]9'!R12","v":0}]
[1,null,null,null,null,{"$f":"'[1]9'!F13","v":"Number of security breaches on digital platforms for known risks"},{"$f":"'[1]9'!G13","v":"Outcome 10: Reduced poverty and improved livelihoods"},0,{"$f":"'[1]9'!J13","v":"No security\nbreaches risk\nfrom known\nrisks\n"},{"$f":"'[1]9'!K13","v":"No security\nbreaches risk\nfrom known\nrisks\n"},{"$f":"'[1]9'!L13","v":"No security\nbreaches risk\nfrom known\nrisks\n"},{"$f":"'[1]9'!M13","v":"No security\nbreaches risk\nfrom known\nrisks\n"},{"$f":"'[1]9'!N13","v":0},{"$f":"'[1]9'!O13","v":0},null,{"$f":"'[1]9'!P13","v":"Design & Enabling - Enterprise Enabling"},{"$f":"'[1]9'!Q13","v":"No"},{"$f":"'[1]9'!R13","v":0}]
[1,null,null,null,null,{"$f":"'[1]9'!F14","v":"% of SARS taxpayer and trader service offerings made available online"},{"$f":"'[1]9'!G14","v":"Outcome 10: Reduced poverty and improved livelihoods"},0,{"$f":"'[1]9'!J14","v":"80.00% of all\nSARS taxpayer\nand trader\nservice offerings\navailable\non online\nchannels\n"},{"$f":"'[1]9'!K14","v":"90.00% of all\nSARS taxpayer\nand trader\nservice offerings\navailable\non online\nchannels\n"},{"$f":"'[1]9'!L14","v":"95.00% of all\nSARS taxpayer\nand trader\nservice offerings\navailable\non online\nchannels\n"},{"$f":"'[1]9'!M14","v":0},{"$f":"'[1]9'!N14","v":0},{"$f":"'[1]9'!O14","v":0},null,{"$f":"'[1]9'!P14","v":"Design & Enabling - Enterprise Enabling"},{"$f":"'[1]9'!Q14","v":"No"},{"$f":"'[1]9'!R14","v":0}]
[1,null,null,null,null,{"$f":"'[1]9'!F15","v":"ICT investment as % of total grant"},{"$f":"'[1]9'!G15","v":"Outcome 10: Reduced poverty and improved livelihoods"},0,{"$f":"'[1]9'!J15","v":"2.00%"},{"$f":"'[1]9'!K15","v":"2.00%"},{"$f":"'[1]9'!L15","v":"2.00%"},{"$f":"'[1]9'!M15","v":"2.00%"},{"$f":"'[1]9'!N15","v":0},{"$f":"'[1]9'!O15","v":0},null,{"$f":"'[1]9'!P15","v":"Administration"},{"$f":"'[1]9'!Q15","v":"No"},{"$f":"'[1]9'!R15","v":0}]
[1,null,null,null,null,{"$f":"'[1]9'!F16","v":"Achieve 5% non-people operational cost savings"},{"$f":"'[1]9'!G16","v":"Outcome 10: Reduced poverty and improved livelihoods"},0,{"$f":"'[1]9'!J16","v":5},{"$f":"'[1]9'!K16","v":0},{"$f":"'[1]9'!L16","v":"0"},{"$f":"'[1]9'!M16","v":0},{"$f":"'[1]9'!N16","v":0},{"$f":"'[1]9'!O16","v":0},null,{"$f":"'[1]9'!P16","v":"Administration"},{"$f":"'[1]9'!Q16","v":"No"},{"$f":"'[1]9'!R16","v":0}]
[1,null,null,null,null,{"$f":"'[1]9'!F17","v":"% productivity levels achieved across SARS"},{"$f":"'[1]9'!G17","v":"Outcome 10: Reduced poverty and improved livelihoods"},0,{"$f":"'[1]9'!J17","v":"80.00% productivity achieved across SARS"},{"$f":"'[1]9'!K17","v":"80.00% productivity achieved across SARS"},{"$f":"'[1]9'!L17","v":"80.00% productivity achieved across SARS"},{"$f":"'[1]9'!M17","v":0},{"$f":"'[1]9'!N17","v":0},{"$f":"'[1]9'!O17","v":0},null,{"$f":"'[1]9'!P17","v":"Administration"},{"$f":"'[1]9'!Q17","v":"No"},{"$f":"'[1]9'!R17","v":0}]
[1,null,null,null,null,{"$f":"'[1]9'!F18","v":"We have satisfied all SARS’ commitments in terms of Organisation for Economic Cooperation and Development (OECD) Exchange of Information (EOI) standards - % of commitments met"},{"$f":"'[1]9'!G18","v":"Outcome 10: Reduced poverty and improved livelihoods"},0,{"$f":"'[1]9'!J18","v":"100.00%\ncompliance in terms of OECD EOI Standards"},{"$f":"'[1]9'!K18","v":"100.00%\ncompliance in terms of OECD EOI Standards"},{"$f":"'[1]9'!L18","v":"100.00%\ncompliance in terms of OECD EOI Standards"},{"$f":"'[1]9'!M18","v":0},{"$f":"'[1]9'!N18","v":0},{"$f":"'[1]9'!O18","v":0},null,{"$f":"'[1]9'!P18","v":"Administration"},{"$f":"'[1]9'!Q18","v":"No"},{"$f":"'[1]9'!R18","v":0}]
[1,null,null,null,null,{"$f":"'[1]9'!F19","v":"A high number of intermediaries that are satisfied with our cooperation and collaboration - % of intermediaries that are satisfied with our assistance"},{"$f":"'[1]9'!G19","v":"Outcome 10: Reduced poverty and improved livelihoods"},0,{"$f":"'[1]9'!J19","v":"65.00%"},{"$f":"'[1]9'!K19","v":"70.00%"},{"$f":"'[1]9'!L19","v":"70.00%"},{"$f":"'[1]9'!M19","v":"72.00%"},{"$f":"'[1]9'!N19","v":0},{"$f":"'[1]9'!O19","v":0},null,{"$f":"'[1]9'!P19","v":"Administration"},{"$f":"'[1]9'!Q19","v":"No"},{"$f":"'[1]9'!R19","v":0}]
[1,null,null,null,null,{"$f":"'[1]9'!F20","v":"We have met SARS’ commitments in terms of Financial Action Task Force (FATF) Mutual Evaluation findings -\n% of FATF deliverables met"},{"$f":"'[1]9'!G20","v":"Outcome 10: Reduced poverty and improved livelihoods"},0,{"$f":"'[1]9'!J20","v":"100% Achievement on SARS’ deliverables to South Africa’s Action Plan"},{"$f":"'[1]9'!K20","v":0},{"$f":"'[1]9'!L20","v":"0"},{"$f":"'[1]9'!M20","v":0},{"$f":"'[1]9'!N20","v":0},{"$f":"'[1]9'!O20","v":0},null,{"$f":"'[1]9'!P20","v":"Administration"},{"$f":"'[1]9'!Q20","v":"No"},{"$f":"'[1]9'!R20","v":0}]
[1,null,null,null,null,{"$f":"'[1]9'!F21","v":"Public opinion survey results reflects high trust and confidence in SARS – % score as per public opinion survey"},{"$f":"'[1]9'!G21","v":"Outcome 10: Reduced poverty and improved livelihoods"},0,{"$f":"'[1]9'!J21","v":"75.50"},{"$f":"'[1]9'!K21","v":"76.00"},{"$f":"'[1]9'!L21","v":"76.50"},{"$f":"'[1]9'!M21","v":"77.50"},{"$f":"'[1]9'!N21","v":0},{"$f":"'[1]9'!O21","v":0},null,{"$f":"'[1]9'!P21","v":"Administration"},{"$f":"'[1]9'!Q21","v":"No"},{"$f":"'[1]9'!R21","v":0}]
[1,null,null,null,null,{"$f":"'[1]9'!F22","v":"Sentiments analysis continuously reflects high confidence in SARS – top 3 words that the public associates with SARS are positive"},{"$f":"'[1]9'!G22","v":"Outcome 10: Reduced poverty and improved livelihoods"},0,{"$f":"'[1]9'!J22","v":"Top 3 words the public associates with SARS are positive"},{"$f":"'[1]9'!K22","v":"Top 3 words the public associates with SARS are positive"},{"$f":"'[1]9'!L22","v":"Top 3 words the public associates with SARS are positive"},{"$f":"'[1]9'!M22","v":0},{"$f":"'[1]9'!N22","v":0},{"$f":"'[1]9'!O22","v":0},null,{"$f":"'[1]9'!P22","v":0},{"$f":"'[1]9'!Q22","v":"No"},{"$f":"'[1]9'!R22","v":0}]
[1,null,null,null,null,{"$f":"'[1]9'!F23","v":"% Deviation between SARS’ spending for the year and the allocation SARS received from National Treasury"},{"$f":"'[1]9'!G23","v":"Outcome 10: Reduced poverty and improved livelihoods"},0,{"$f":"'[1]9'!J23","v":"5%"},{"$f":"'[1]9'!K23","v":"5%"},{"$f":"'[1]9'!L23","v":"5%"},{"$f":"'[1]9'!M23","v":"5%"},{"$f":"'[1]9'!N23","v":0},{"$f":"'[1]9'!O23","v":0},null,{"$f":"'[1]9'!P23","v":"Administration"},{"$f":"'[1]9'!Q23","v":"No"},{"$f":"'[1]9'!R23","v":0}]
[1,null,null,null,null,{"$f":"'[1]9'!F24","v":"% Service Charter performance score "},{"$f":"'[1]9'!G24","v":"Outcome 10: Reduced poverty and improved livelihoods"},0,{"$f":"'[1]9'!J24","v":"82"},{"$f":"'[1]9'!K24","v":"85"},{"$f":"'[1]9'!L24","v":"88"},{"$f":"'[1]9'!M24","v":"90"},{"$f":"'[1]9'!N24","v":0},{"$f":"'[1]9'!O24","v":0},null,{"$f":"'[1]9'!P24","v":"Administration"},{"$f":"'[1]9'!Q24","v":"No"},{"$f":"'[1]9'!R24","v":0}]
[1,null,null,null,null,{"$f":"'[1]9'!F25","v":0},{"$f":"'[1]9'!G25","v":"Outcome 10: Reduced poverty and improved livelihoods"},0,{"$f":"'[1]9'!J25","v":0},{"$f":"'[1]9'!K25","v":0},{"$f":"'[1]9'!L25","v":0},{"$f":"'[1]9'!M25","v":0},{"$f":"'[1]9'!N25","v":0},{"$f":"'[1]9'!O25","v":0},null,{"$f":"'[1]9'!P25","v":0},{"$f":"'[1]9'!Q25","v":0},{"$f":"'[1]9'!R25","v":0}]
[1,null,null,null,null,"Notes:"]
[1,null,null,null,null,"Performance indicators are an explanation of objectives performance.   "]
[1,null,null,null,null,"1. They are specific measurements that track progress towards achieving the goals and objectives of an institution."]
[1,null,null,null,null,"2. Institutions should use performance indicators in the 2024/25 Annual Performance Plans and those in the 2025 ENE. "]
[1,null,null,null,null,"3. Institutions should also indicate instances where targets are not affected by budget baseline reprioritisation."]
[1]
[1,null,null,null,null,null,null,null,{"$f":"MyYearM3","v":"2022/23"},{"$f":"MyYearM2","v":"2023/24"},{"$f":"MyYearM1","v":"2024/25"},null,{"$f":"MyYear0","v":"2025/26"},null,null,{"$f":"MyYearP1","v":"2026/27"},null,null,{"$f":"MyYearP2","v":"2027/28"},null,null,{"$f":"MyYearP3","v":"2028/29"}]
[1,null,null,null,null,"Expenses",null,null,{"$f":"Hist_year3RestatedAudited","v":"Audited\noutcome"},{"$f":"Hist_year2RestatedAudited","v":"Audited\noutcome"},{"$f":"Hist_year1Budget","v":"Budget"},{"$f":"Hist_year1Audited","v":"Audited\noutcome"},{"$f":"Cur_YearBudgEst","v":"Budget\nestimate"},{"$f":"Cur_YearApprovedBudg","v":"Approved budget"},{"$f":"Cur_YearChangeFrRevBudg","v":"Changes from \nbudget estimate"},{"$f":"MTEF1BudgEst","v":"Budget\nestimate"},{"$f":"MTEF1RevBudgEst","v":"Revised\nbudget\nestimate"},{"$f":"MTEF1_ChangeFrBudgEst","v":"Changes from budget estimate"},{"$f":"MTEF2BudgEst","v":"Budget\nestimate"},{"$f":"MTEF2RevBudgEst","v":"Revised\nbudget\nestimate"},{"$f":"MTEF2_ChangeFrBudgEst","v":"Changes from budget estimate"},{"$f":"MTEF3PlanBudgetEst","v":"Planning\nbudget \nestimate"}]
[1]
[1,null,null,null,null,"Rand thousand"]
[1,null,null,null,null,"Objective/Activity"]
[1,null,null,null,null,{"$f":"'[1]9'!F37","v":0},null,null,{"$f":"'[1]9'!J37","v":0},{"$f":"'[1]9'!L37","v":0},{"$f":"'[1]9'!N37","v":0},{"$f":"'[1]9'!N37","v":0},{"$f":"'[1]9'!Q37","v":0},{"$f":"'[1]9'!Q37","v":0},{"$f":"SUM(N37-M37)","v":0},{"$f":"'[1]9'!T37","v":0},{"$f":"'[1]9'!T37","v":0},{"$f":"SUM(Q37-P37)","v":0},{"$f":"'[1]9'!V37","v":0},{"$f":"'[1]9'!V37","v":0},{"$f":"SUM(T37-S37)","v":0}]
[1,null,null,null,null,"Economic classification"]
[1,"EX11",null,null,null,"Current payments",null,null,{"$f":"SUM(I40,I43,I98:I99,I105)","v":0},0,0,0,0,0,{"$f":"SUM(N39-M39)","v":0},{"$f":"SUM(P40,P43,P98:P99,P105)","v":0},{"$f":"SUM(Q40,Q43,Q98:Q99,Q105)","v":0},{"$f":"SUM(Q39-P39)","v":0},{"$f":"SUM(S40,S43,S98:S99,S105)","v":0},{"$f":"SUM(T40,T43,T98:T99,T105)","v":0},{"$f":"SUM(T39-S39)","v":0},{"$f":"SUM(V40,V43,V98:V99,V105)","v":0}]
[1,"EX111",null,null,null,"Compensation of employees",null,null,{"$f":"SUM(I41:I42)","v":0},0,0,0,0,0,{"$f":"SUM(N40-M40)","v":0},{"$f":"SUM(P41:P42)","v":0},{"$f":"SUM(Q41:Q42)","v":0},{"$f":"SUM(Q40-P40)","v":0},{"$f":"SUM(S41:S42)","v":0},{"$f":"SUM(T41:T42)","v":0},{"$f":"SUM(T40-S40)","v":0},{"$f":"SUM(V41:V42)","v":0}]
[1,"EX1111",null,null,null,"Salaries and wages",null,null,{"$f":"'[1]9'!J41","v":0},{"$f":"'[1]9'!L41","v":0},{"$f":"'[1]9'!N41","v":0},{"$f":"'[1]9'!N41","v":0},{"$f":"'[1]9'!Q41","v":0},{"$f":"'[1]9'!Q41","v":0},{"$f":"SUM(N41-M41)","v":0},{"$f":"'[1]9'!T41","v":0},{"$f":"'[1]9'!T41","v":0},{"$f":"SUM(Q41-P41)","v":0},{"$f":"'[1]9'!V41","v":0},{"$f":"'[1]9'!V41","v":0},{"$f":"SUM(T41-S41)","v":0}]
[1,"EX1112",null,null,null,"Social contributions",null,null,{"$f":"'[1]9'!J42","v":0},{"$f":"'[1]9'!L42","v":0},{"$f":"'[1]9'!N42","v":0},{"$f":"'[1]9'!N42","v":0},{"$f":"'[1]9'!Q42","v":0},{"$f":"'[1]9'!Q42","v":0},{"$f":"SUM(N42-M42)","v":0},{"$f":"'[1]9'!T42","v":0},{"$f":"'[1]9'!T42","v":0},{"$f":"SUM(Q42-P42)","v":0},{"$f":"'[1]9'!V42","v":0},{"$f":"'[1]9'!V42","v":0},{"$f":"SUM(T42-S42)","v":0}]
[1,"EX112",null,null,null,"Goods and services",null,null,{"$f":"SUM(I45:I54,I58:I61,I73,I75:I97)","v":0},{"$f":"SUM(J45:J54,J58:J61,J73,J75:J97)","v":0},{"$f":"SUM(K45:K54,K58:K61,K73,K75:K97)","v":0},0,0,0,0,0,0,0,0,0,0,0,{"$f":"SUM(W45:W54,W58:W61,W73,W75:W97)","v":0}]
[1,"EX000",null,null,null,"Of which 1"]
[1,"EX1133",null,null,null,"Administrative fees",null,null,{"$f":"'[1]9'!J45","v":0},{"$f":"'[1]9'!L45","v":0},{"$f":"'[1]9'!N45","v":0},{"$f":"'[1]9'!N45","v":0},{"$f":"'[1]9'!Q45","v":0},{"$f":"'[1]9'!Q45","v":0},{"$f":"SUM(N45-M45)","v":0},{"$f":"'[1]9'!T45","v":0},{"$f":"'[1]9'!T45","v":0},{"$f":"SUM(Q45-P45)","v":0},{"$f":"'[1]9'!V45","v":0},{"$f":"'[1]9'!V45","v":0},{"$f":"SUM(T45-S45)","v":0}]
[1,"EX1134",null,null,null,"Advertising",null,null,{"$f":"'[1]9'!J46","v":0},{"$f":"'[1]9'!L46","v":0},{"$f":"'[1]9'!N46","v":0},{"$f":"'[1]9'!N46","v":0},{"$f":"'[1]9'!Q46","v":0},{"$f":"'[1]9'!Q46","v":0},0,{"$f":"'[1]9'!T46","v":0},{"$f":"'[1]9'!T46","v":0},0,{"$f":"'[1]9'!V46","v":0},{"$f":"'[1]9'!V46","v":0},0]
[1,"EX1135",null,null,null,"Minor assets",null,null,{"$f":"'[1]9'!J47","v":0},{"$f":"'[1]9'!L47","v":0},{"$f":"'[1]9'!N47","v":0},{"$f":"'[1]9'!N47","v":0},{"$f":"'[1]9'!Q47","v":0},{"$f":"'[1]9'!Q47","v":0},0,{"$f":"'[1]9'!T47","v":0},{"$f":"'[1]9'!T47","v":0},0,{"$f":"'[1]9'!V47","v":0},{"$f":"'[1]9'!V47","v":0},0]
[1,"EX1136",null,null,null,"Audit costs: External",null,null,{"$f":"'[1]9'!J48","v":0},{"$f":"'[1]9'!L48","v":0},{"$f":"'[1]9'!N48","v":0},{"$f":"'[1]9'!N48","v":0},{"$f":"'[1]9'!Q48","v":0},{"$f":"'[1]9'!Q48","v":0},0,{"$f":"'[1]9'!T48","v":0},{"$f":"'[1]9'!T48","v":0},0,{"$f":"'[1]9'!V48","v":0},{"$f":"'[1]9'!V48","v":0},0]
[1,"EX1139",null,null,null,"Bursaries: Employees",null,null,{"$f":"'[1]9'!J49","v":0},{"$f":"'[1]9'!L49","v":0},{"$f":"'[1]9'!N49","v":0},{"$f":"'[1]9'!N49","v":0},{"$f":"'[1]9'!Q49","v":0},{"$f":"'[1]9'!Q49","v":0},0,{"$f":"'[1]9'!T49","v":0},{"$f":"'[1]9'!T49","v":0},0,{"$f":"'[1]9'!V49","v":0},{"$f":"'[1]9'!V49","v":0},0]
[1,"EX1140",null,null,null,"Catering: Internal activities",null,null,{"$f":"'[1]9'!J50","v":0},{"$f":"'[1]9'!L50","v":0},{"$f":"'[1]9'!N50","v":0},{"$f":"'[1]9'!N50","v":0},{"$f":"'[1]9'!Q50","v":0},{"$f":"'[1]9'!Q50","v":0},0,{"$f":"'[1]9'!T50","v":0},{"$f":"'[1]9'!T50","v":0},0,{"$f":"'[1]9'!V50","v":0},{"$f":"'[1]9'!V50","v":0},0]
[1,"EX1122",null,null,null,"Communication (G&S)",null,null,{"$f":"'[1]9'!J51","v":0},{"$f":"'[1]9'!L51","v":0},{"$f":"'[1]9'!N51","v":0},{"$f":"'[1]9'!N51","v":0},{"$f":"'[1]9'!Q51","v":0},{"$f":"'[1]9'!Q51","v":0},0,{"$f":"'[1]9'!T51","v":0},{"$f":"'[1]9'!T51","v":0},0,{"$f":"'[1]9'!V51","v":0},{"$f":"'[1]9'!V51","v":0},0]
[1,"EX1123",null,null,null,"Computer services",null,null,{"$f":"'[1]9'!J52","v":0},{"$f":"'[1]9'!L52","v":0},{"$f":"'[1]9'!N52","v":0},{"$f":"'[1]9'!N52","v":0},{"$f":"'[1]9'!Q52","v":0},{"$f":"'[1]9'!Q52","v":0},0,{"$f":"'[1]9'!T52","v":0},{"$f":"'[1]9'!T52","v":0},0,{"$f":"'[1]9'!V52","v":0},{"$f":"'[1]9'!V52","v":0},0]
[1,"EX1124",null,null,null,"Consultants: Business and advisory services",null,null,{"$f":"'[1]9'!J53","v":0},{"$f":"'[1]9'!L53","v":0},{"$f":"'[1]9'!N53","v":0},{"$f":"'[1]9'!N53","v":0},{"$f":"'[1]9'!Q53","v":0},{"$f":"'[1]9'!Q53","v":0},0,{"$f":"'[1]9'!T53","v":0},{"$f":"'[1]9'!T53","v":0},0,{"$f":"'[1]9'!V53","v":0},{"$f":"'[1]9'!V53","v":0},0]
[1,"EX1180",null,null,null,"Infrastructure and planning services",null,null,{"$f":"SUM(I55:I57)","v":0},0,0,0,0,0,{"$f":"SUM(N54-M54)","v":0},{"$f":"SUM(P55:P57)","v":0},{"$f":"SUM(Q55:Q57)","v":0},{"$f":"SUM(Q54-P54)","v":0},{"$f":"SUM(S55:S57)","v":0},{"$f":"SUM(T55:T57)","v":0},{"$f":"SUM(T54-S54)","v":0},{"$f":"SUM(V55:V57)","v":0}]
[1,"EX11801",null,null,null,"Maintenance and repairs: Buildings: Consultants",null,null,{"$f":"'[1]9'!J55","v":0},{"$f":"'[1]9'!L55","v":0},{"$f":"'[1]9'!N55","v":0},{"$f":"'[1]9'!N55","v":0},{"$f":"'[1]9'!Q55","v":0},{"$f":"'[1]9'!Q55","v":0},{"$f":"SUM(N55-M55)","v":0},{"$f":"'[1]9'!T55","v":0},{"$f":"'[1]9'!T55","v":0},{"$f":"SUM(Q55-P55)","v":0},{"$f":"'[1]9'!V55","v":0},{"$f":"'[1]9'!V55","v":0},0]
[1,"EX11802",null,null,null,"Maintenance and repairs: Other fixed structures: Consultants",null,null,{"$f":"'[1]9'!J56","v":0},{"$f":"'[1]9'!L56","v":0},{"$f":"'[1]9'!N56","v":0},{"$f":"'[1]9'!N56","v":0},{"$f":"'[1]9'!Q56","v":0},{"$f":"'[1]9'!Q56","v":0},0,{"$f":"'[1]9'!T56","v":0},{"$f":"'[1]9'!T56","v":0},0,{"$f":"'[1]9'!V56","v":0},{"$f":"'[1]9'!V56","v":0},0]
[1,"EX11803",null,null,null,"Other",null,null,{"$f":"'[1]9'!J57","v":0},{"$f":"'[1]9'!L57","v":0},{"$f":"'[1]9'!N57","v":0},{"$f":"'[1]9'!N57","v":0},{"$f":"'[1]9'!Q57","v":0},{"$f":"'[1]9'!Q57","v":0},0,{"$f":"'[1]9'!T57","v":0},{"$f":"'[1]9'!T57","v":0},0,{"$f":"'[1]9'!V57","v":0},{"$f":"'[1]9'!V57","v":0},0]
[1,"EX1164",null,null,null,"Laboratory services",null,null,{"$f":"'[1]9'!J58","v":0},{"$f":"'[1]9'!L58","v":0},{"$f":"'[1]9'!N58","v":0},{"$f":"'[1]9'!N58","v":0},{"$f":"'[1]9'!Q58","v":0},{"$f":"'[1]9'!Q58","v":0},0,{"$f":"'[1]9'!T58","v":0},{"$f":"'[1]9'!T58","v":0},0,{"$f":"'[1]9'!V58","v":0},{"$f":"'[1]9'!V58","v":0},0]
[1,"EX1162",null,null,null,"Legal services (G&S)",null,null,{"$f":"'[1]9'!J59","v":0},{"$f":"'[1]9'!L59","v":0},{"$f":"'[1]9'!N59","v":0},{"$f":"'[1]9'!N59","v":0},{"$f":"'[1]9'!Q59","v":0},{"$f":"'[1]9'!Q59","v":0},0,{"$f":"'[1]9'!T59","v":0},{"$f":"'[1]9'!T59","v":0},0,{"$f":"'[1]9'!V59","v":0},{"$f":"'[1]9'!V59","v":0},0]
[1,"EX1165",null,null,null,"Science and technological services",null,null,{"$f":"'[1]9'!J60","v":0},{"$f":"'[1]9'!L60","v":0},{"$f":"'[1]9'!N60","v":0},{"$f":"'[1]9'!N60","v":0},{"$f":"'[1]9'!Q60","v":0},{"$f":"'[1]9'!Q60","v":0},0,{"$f":"'[1]9'!T60","v":0},{"$f":"'[1]9'!T60","v":0},0,{"$f":"'[1]9'!V60","v":0},{"$f":"'[1]9'!V60","v":0},0]
[1,"EX1125",null,null,null,"Contractors",null,null,{"$f":"SUM(I62:I66,I72)","v":0},0,0,0,0,0,{"$f":"SUM(N61-M61)","v":0},{"$f":"SUM(P62:P66,P72)","v":0},{"$f":"SUM(Q62:Q66,Q72)","v":0},{"$f":"SUM(Q61-P61)","v":0},{"$f":"SUM(S62:S66,S72)","v":0},{"$f":"SUM(T62:T66,T72)","v":0},0,{"$f":"SUM(V62:V66,V72)","v":0}]
[1,"EX11251",null,null,null,"Maintenance and repairs of other fixed structures",null,null,{"$f":"'[1]9'!J62","v":0},{"$f":"'[1]9'!L62","v":0},{"$f":"'[1]9'!N62","v":0},{"$f":"'[1]9'!N62","v":0},{"$f":"'[1]9'!Q62","v":0},{"$f":"'[1]9'!Q62","v":0},0,{"$f":"'[1]9'!T62","v":0},{"$f":"'[1]9'!T62","v":0},0,{"$f":"'[1]9'!V62","v":0},{"$f":"'[1]9'!V62","v":0},0]
[1,"EX11252",null,null,null,"Maintenance and repairs of other machinery and equipment",null,null,{"$f":"'[1]9'!J63","v":0},{"$f":"'[1]9'!L63","v":0},{"$f":"'[1]9'!N63","v":0},{"$f":"'[1]9'!N63","v":0},{"$f":"'[1]9'!Q63","v":0},{"$f":"'[1]9'!Q63","v":0},0,{"$f":"'[1]9'!T63","v":0},{"$f":"'[1]9'!T63","v":0},0,{"$f":"'[1]9'!V63","v":0},{"$f":"'[1]9'!V63","v":0},0]
[1,"EX11253",null,null,null,"Maintenance and repairs of heritage buildings",null,null,{"$f":"'[1]9'!J64","v":0},{"$f":"'[1]9'!L64","v":0},{"$f":"'[1]9'!N64","v":0},{"$f":"'[1]9'!N64","v":0},{"$f":"'[1]9'!Q64","v":0},{"$f":"'[1]9'!Q64","v":0},0,{"$f":"'[1]9'!T64","v":0},{"$f":"'[1]9'!T64","v":0},0,{"$f":"'[1]9'!V64","v":0},{"$f":"'[1]9'!V64","v":0},0]
[1,"EX11254",null,null,null,"Maintenance and repairs of other heritage fixed structures",null,null,{"$f":"'[1]9'!J65","v":0},{"$f":"'[1]9'!L65","v":0},{"$f":"'[1]9'!N65","v":0},{"$f":"'[1]9'!N65","v":0},{"$f":"'[1]9'!Q65","v":0},{"$f":"'[1]9'!Q65","v":0},0,{"$f":"'[1]9'!T65","v":0},{"$f":"'[1]9'!T65","v":0},0,{"$f":"'[1]9'!V65","v":0},{"$f":"'[1]9'!V65","v":0},0]
[5,"EX11255",null,null,null,"South african social security agency payment contractors",null,null,{"$f":"SUM(I67:I71)","v":0},0,0,0,0,0,0,{"$f":"SUM(P67:P71)","v":0},{"$f":"SUM(Q67:Q71)","v":0},0,{"$f":"SUM(S67:S71)","v":0},{"$f":"SUM(T67:T71)","v":0},0,{"$f":"SUM(V67:V71)","v":0}]
[5,"EX112551",null,null,null,"SASSA Admin fees",null,null,{"$f":"'[1]9'!J67","v":0},{"$f":"'[1]9'!L67","v":0},{"$f":"'[1]9'!N67","v":0},{"$f":"'[1]9'!N67","v":0},{"$f":"'[1]9'!Q67","v":0},{"$f":"'[1]9'!Q67","v":0},{"$f":"SUM(N67-M67)","v":0},{"$f":"'[1]9'!T67","v":0},{"$f":"'[1]9'!T67","v":0},{"$f":"SUM(Q67-P67)","v":0},{"$f":"'[1]9'!V67","v":0},{"$f":"'[1]9'!V67","v":0},{"$f":"SUM(T67-S67)","v":0}]
[5,"EX112552",null,null,null,"SASSA Bankcard fees",null,null,{"$f":"'[1]9'!J68","v":0},{"$f":"'[1]9'!L68","v":0},{"$f":"'[1]9'!N68","v":0},{"$f":"'[1]9'!N68","v":0},{"$f":"'[1]9'!Q68","v":0},{"$f":"'[1]9'!Q68","v":0},0,{"$f":"'[1]9'!T68","v":0},{"$f":"'[1]9'!T68","v":0},0,{"$f":"'[1]9'!V68","v":0},{"$f":"'[1]9'!V68","v":0},0]
[5,"EX112553",null,null,null,"SASSA registration fees",null,null,{"$f":"'[1]9'!J69","v":0},{"$f":"'[1]9'!L69","v":0},{"$f":"'[1]9'!N69","v":0},{"$f":"'[1]9'!N69","v":0},{"$f":"'[1]9'!Q69","v":0},{"$f":"'[1]9'!Q69","v":0},0,{"$f":"'[1]9'!T69","v":0},{"$f":"'[1]9'!T69","v":0},0,{"$f":"'[1]9'!V69","v":0},{"$f":"'[1]9'!V69","v":0},0]
[5,"EX112554",null,null,null,"SASSA beneficiary fees",null,null,{"$f":"'[1]9'!J70","v":0},{"$f":"'[1]9'!L70","v":0},{"$f":"'[1]9'!N70","v":0},{"$f":"'[1]9'!N70","v":0},{"$f":"'[1]9'!Q70","v":0},{"$f":"'[1]9'!Q70","v":0},0,{"$f":"'[1]9'!T70","v":0},{"$f":"'[1]9'!T70","v":0},0,{"$f":"'[1]9'!V70","v":0},{"$f":"'[1]9'!V70","v":0},0]
[5,"EX112555",null,null,null,"SASSA help desk fees",null,null,{"$f":"'[1]9'!J71","v":0},{"$f":"'[1]9'!L71","v":0},{"$f":"'[1]9'!N71","v":0},{"$f":"'[1]9'!N71","v":0},{"$f":"'[1]9'!Q71","v":0},{"$f":"'[1]9'!Q71","v":0},0,{"$f":"'[1]9'!T71","v":0},{"$f":"'[1]9'!T71","v":0},0,{"$f":"'[1]9'!V71","v":0},{"$f":"'[1]9'!V71","v":0},0]
[1,"EX11256",null,null,null,"Other",null,null,{"$f":"'[1]9'!J72","v":0},{"$f":"'[1]9'!L72","v":0},{"$f":"'[1]9'!N72","v":0},{"$f":"'[1]9'!N72","v":0},{"$f":"'[1]9'!Q72","v":0},{"$f":"'[1]9'!Q72","v":0},0,{"$f":"'[1]9'!T72","v":0},{"$f":"'[1]9'!T72","v":0},0,{"$f":"'[1]9'!V72","v":0},{"$f":"'[1]9'!V72","v":0},0]
[1,"EX1121",null,null,null,"Agency and support/outsourced services",null,null,{"$f":"'[1]9'!J73","v":0},{"$f":"'[1]9'!L73","v":0},{"$f":"'[1]9'!N73","v":0},{"$f":"'[1]9'!N73","v":0},{"$f":"'[1]9'!Q73","v":0},{"$f":"'[1]9'!Q73","v":0},0,{"$f":"'[1]9'!T73","v":0},{"$f":"'[1]9'!T73","v":0},0,{"$f":"'[1]9'!V73","v":0},{"$f":"'[1]9'!V73","v":0},0]
[5,"EX11211",null,null,null,"     Of Which: Medical assessments",null,null,{"$f":"'[1]9'!J74","v":0},{"$f":"'[1]9'!L74","v":0},{"$f":"'[1]9'!N74","v":0},{"$f":"'[1]9'!N74","v":0},{"$f":"'[1]9'!Q74","v":0},{"$f":"'[1]9'!Q74","v":0},0,{"$f":"'[1]9'!T74","v":0},{"$f":"'[1]9'!T74","v":0},0,{"$f":"'[1]9'!V74","v":0},{"$f":"'[1]9'!V74","v":0},0]
[1,"EX1161",null,null,null,"Entertainment",null,null,{"$f":"'[1]9'!J75","v":0},{"$f":"'[1]9'!L75","v":0},{"$f":"'[1]9'!N75","v":0},{"$f":"'[1]9'!N75","v":0},{"$f":"'[1]9'!Q75","v":0},{"$f":"'[1]9'!Q75","v":0},0,{"$f":"'[1]9'!T75","v":0},{"$f":"'[1]9'!T75","v":0},0,{"$f":"'[1]9'!V75","v":0},{"$f":"'[1]9'!V75","v":0},0]
[1,"EX1166",null,null,null,"Fleet services (including government motor transport)",null,null,{"$f":"'[1]9'!J76","v":0},{"$f":"'[1]9'!L76","v":0},{"$f":"'[1]9'!N76","v":0},{"$f":"'[1]9'!N76","v":0},{"$f":"'[1]9'!Q76","v":0},{"$f":"'[1]9'!Q76","v":0},0,{"$f":"'[1]9'!T76","v":0},{"$f":"'[1]9'!T76","v":0},0,{"$f":"'[1]9'!V76","v":0},{"$f":"'[1]9'!V76","v":0},0]
[1,"EX1167",null,null,null,"Housing",null,null,{"$f":"'[1]9'!J77","v":0},{"$f":"'[1]9'!L77","v":0},{"$f":"'[1]9'!N77","v":0},{"$f":"'[1]9'!N77","v":0},{"$f":"'[1]9'!Q77","v":0},{"$f":"'[1]9'!Q77","v":0},0,{"$f":"'[1]9'!T77","v":0},{"$f":"'[1]9'!T77","v":0},0,{"$f":"'[1]9'!V77","v":0},{"$f":"'[1]9'!V77","v":0},0]
[1,"EX1168",null,null,null,"Inventory: Clothing material and accessories",null,null,{"$f":"'[1]9'!J78","v":0},{"$f":"'[1]9'!L78","v":0},{"$f":"'[1]9'!N78","v":0},{"$f":"'[1]9'!N78","v":0},{"$f":"'[1]9'!Q78","v":0},{"$f":"'[1]9'!Q78","v":0},0,{"$f":"'[1]9'!T78","v":0},{"$f":"'[1]9'!T78","v":0},0,{"$f":"'[1]9'!V78","v":0},{"$f":"'[1]9'!V78","v":0},0]
[1,"EX1169",null,null,null,"Inventory: Farming supplies",null,null,{"$f":"'[1]9'!J79","v":0},{"$f":"'[1]9'!L79","v":0},{"$f":"'[1]9'!N79","v":0},{"$f":"'[1]9'!N79","v":0},{"$f":"'[1]9'!Q79","v":0},{"$f":"'[1]9'!Q79","v":0},0,{"$f":"'[1]9'!T79","v":0},{"$f":"'[1]9'!T79","v":0},0,{"$f":"'[1]9'!V79","v":0},{"$f":"'[1]9'!V79","v":0},0]
[1,"EX1170",null,null,null,"Inventory: Food and food supplies",null,null,{"$f":"'[1]9'!J80","v":0},{"$f":"'[1]9'!L80","v":0},{"$f":"'[1]9'!N80","v":0},{"$f":"'[1]9'!N80","v":0},{"$f":"'[1]9'!Q80","v":0},{"$f":"'[1]9'!Q80","v":0},0,{"$f":"'[1]9'!T80","v":0},{"$f":"'[1]9'!T80","v":0},0,{"$f":"'[1]9'!V80","v":0},{"$f":"'[1]9'!V80","v":0},0]
[1,"EX1171",null,null,null,"Inventory: Fuel, oil and gas",null,null,{"$f":"'[1]9'!J81","v":0},{"$f":"'[1]9'!L81","v":0},{"$f":"'[1]9'!N81","v":0},{"$f":"'[1]9'!N81","v":0},{"$f":"'[1]9'!Q81","v":0},{"$f":"'[1]9'!Q81","v":0},0,{"$f":"'[1]9'!T81","v":0},{"$f":"'[1]9'!T81","v":0},0,{"$f":"'[1]9'!V81","v":0},{"$f":"'[1]9'!V81","v":0},0]
[1,"EX1172",null,null,null,"Inventory: Learner and teacher support material",null,null,{"$f":"'[1]9'!J82","v":0},{"$f":"'[1]9'!L82","v":0},{"$f":"'[1]9'!N82","v":0},{"$f":"'[1]9'!N82","v":0},{"$f":"'[1]9'!Q82","v":0},{"$f":"'[1]9'!Q82","v":0},0,{"$f":"'[1]9'!T82","v":0},{"$f":"'[1]9'!T82","v":0},0,{"$f":"'[1]9'!V82","v":0},{"$f":"'[1]9'!V82","v":0},0]
[1,"EX1126",null,null,null,"Inventory: Materials and supplies",null,null,{"$f":"'[1]9'!J83","v":0},{"$f":"'[1]9'!L83","v":0},{"$f":"'[1]9'!N83","v":0},{"$f":"'[1]9'!N83","v":0},{"$f":"'[1]9'!Q83","v":0},{"$f":"'[1]9'!Q83","v":0},0,{"$f":"'[1]9'!T83","v":0},{"$f":"'[1]9'!T83","v":0},0,{"$f":"'[1]9'!V83","v":0},{"$f":"'[1]9'!V83","v":0},0]
[1,"EX1173",null,null,null,"Inventory: Medical supplies",null,null,{"$f":"'[1]9'!J84","v":0},{"$f":"'[1]9'!L84","v":0},{"$f":"'[1]9'!N84","v":0},{"$f":"'[1]9'!N84","v":0},{"$f":"'[1]9'!Q84","v":0},{"$f":"'[1]9'!Q84","v":0},0,{"$f":"'[1]9'!T84","v":0},{"$f":"'[1]9'!T84","v":0},0,{"$f":"'[1]9'!V84","v":0},{"$f":"'[1]9'!V84","v":0},0]
[1,"EX1174",null,null,null,"Inventory: Medicine",null,null,{"$f":"'[1]9'!J85","v":0},{"$f":"'[1]9'!L85","v":0},{"$f":"'[1]9'!N85","v":0},{"$f":"'[1]9'!N85","v":0},{"$f":"'[1]9'!Q85","v":0},{"$f":"'[1]9'!Q85","v":0},0,{"$f":"'[1]9'!T85","v":0},{"$f":"'[1]9'!T85","v":0},0,{"$f":"'[1]9'!V85","v":0},{"$f":"'[1]9'!V85","v":0},0]
[1,"EX1175",null,null,null,"Medsas inventory interface",null,null,{"$f":"'[1]9'!J86","v":0},{"$f":"'[1]9'!L86","v":0},{"$f":"'[1]9'!N86","v":0},{"$f":"'[1]9'!N86","v":0},{"$f":"'[1]9'!Q86","v":0},{"$f":"'[1]9'!Q86","v":0},0,{"$f":"'[1]9'!T86","v":0},{"$f":"'[1]9'!T86","v":0},0,{"$f":"'[1]9'!V86","v":0},{"$f":"'[1]9'!V86","v":0},0]
[1,"EX1176",null,null,null,"Inventory: Other supplies",null,null,{"$f":"'[1]9'!J87","v":0},{"$f":"'[1]9'!L87","v":0},{"$f":"'[1]9'!N87","v":0},{"$f":"'[1]9'!N87","v":0},{"$f":"'[1]9'!Q87","v":0},{"$f":"'[1]9'!Q87","v":0},0,{"$f":"'[1]9'!T87","v":0},{"$f":"'[1]9'!T87","v":0},0,{"$f":"'[1]9'!V87","v":0},{"$f":"'[1]9'!V87","v":0},0]
[1,"EX1177",null,null,null,"Consumable supplies",null,null,{"$f":"'[1]9'!J88","v":0},{"$f":"'[1]9'!L88","v":0},{"$f":"'[1]9'!N88","v":0},{"$f":"'[1]9'!N88","v":0},{"$f":"'[1]9'!Q88","v":0},{"$f":"'[1]9'!Q88","v":0},0,{"$f":"'[1]9'!T88","v":0},{"$f":"'[1]9'!T88","v":0},0,{"$f":"'[1]9'!V88","v":0},{"$f":"'[1]9'!V88","v":0},0]
[1,"EX1144",null,null,null,"Consumables: Stationery, printing and office supplies",null,null,{"$f":"'[1]9'!J89","v":0},{"$f":"'[1]9'!L89","v":0},{"$f":"'[1]9'!N89","v":0},{"$f":"'[1]9'!N89","v":0},{"$f":"'[1]9'!Q89","v":0},{"$f":"'[1]9'!Q89","v":0},0,{"$f":"'[1]9'!T89","v":0},{"$f":"'[1]9'!T89","v":0},0,{"$f":"'[1]9'!V89","v":0},{"$f":"'[1]9'!V89","v":0},0]
[1,"EX1127",null,null,null,"Operating leases",null,null,{"$f":"'[1]9'!J90","v":0},{"$f":"'[1]9'!L90","v":0},{"$f":"'[1]9'!N90","v":0},{"$f":"'[1]9'!N90","v":0},{"$f":"'[1]9'!Q90","v":0},{"$f":"'[1]9'!Q90","v":0},0,{"$f":"'[1]9'!T90","v":0},{"$f":"'[1]9'!T90","v":0},0,{"$f":"'[1]9'!V90","v":0},{"$f":"'[1]9'!V90","v":0},0]
[1,"EX1178",null,null,null,"Rental and hiring",null,null,{"$f":"'[1]9'!J91","v":0},{"$f":"'[1]9'!L91","v":0},{"$f":"'[1]9'!N91","v":0},{"$f":"'[1]9'!N91","v":0},{"$f":"'[1]9'!Q91","v":0},{"$f":"'[1]9'!Q91","v":0},0,{"$f":"'[1]9'!T91","v":0},{"$f":"'[1]9'!T91","v":0},0,{"$f":"'[1]9'!V91","v":0},{"$f":"'[1]9'!V91","v":0},0]
[1,"EX1145",null,null,null,"Property payments",null,null,{"$f":"'[1]9'!J92","v":0},{"$f":"'[1]9'!L92","v":0},{"$f":"'[1]9'!N92","v":0},{"$f":"'[1]9'!N92","v":0},{"$f":"'[1]9'!Q92","v":0},{"$f":"'[1]9'!Q92","v":0},0,{"$f":"'[1]9'!T92","v":0},{"$f":"'[1]9'!T92","v":0},0,{"$f":"'[1]9'!V92","v":0},{"$f":"'[1]9'!V92","v":0},0]
[1,"EX1179",null,null,null,"Transport provided: Internal activities",null,null,{"$f":"'[1]9'!J93","v":0},{"$f":"'[1]9'!L93","v":0},{"$f":"'[1]9'!N93","v":0},{"$f":"'[1]9'!N93","v":0},{"$f":"'[1]9'!Q93","v":0},{"$f":"'[1]9'!Q93","v":0},0,{"$f":"'[1]9'!T93","v":0},{"$f":"'[1]9'!T93","v":0},0,{"$f":"'[1]9'!V93","v":0},{"$f":"'[1]9'!V93","v":0},0]
[1,"EX1131",null,null,null,"Travel and subsistence",null,null,{"$f":"'[1]9'!J94","v":0},{"$f":"'[1]9'!L94","v":0},{"$f":"'[1]9'!N94","v":0},{"$f":"'[1]9'!N94","v":0},{"$f":"'[1]9'!Q94","v":0},{"$f":"'[1]9'!Q94","v":0},0,{"$f":"'[1]9'!T94","v":0},{"$f":"'[1]9'!T94","v":0},0,{"$f":"'[1]9'!V94","v":0},{"$f":"'[1]9'!V94","v":0},0]
[1,"EX1130",null,null,null,"Training and development",null,null,{"$f":"'[1]9'!J95","v":0},{"$f":"'[1]9'!L95","v":0},{"$f":"'[1]9'!N95","v":0},{"$f":"'[1]9'!N95","v":0},{"$f":"'[1]9'!Q95","v":0},{"$f":"'[1]9'!Q95","v":0},0,{"$f":"'[1]9'!T95","v":0},{"$f":"'[1]9'!T95","v":0},0,{"$f":"'[1]9'!V95","v":0},{"$f":"'[1]9'!V95","v":0},0]
[1,"EX1132",null,null,null,"Operating payments",null,null,{"$f":"'[1]9'!J96","v":0},{"$f":"'[1]9'!L96","v":0},{"$f":"'[1]9'!N96","v":0},{"$f":"'[1]9'!N96","v":0},{"$f":"'[1]9'!Q96","v":0},{"$f":"'[1]9'!Q96","v":0},0,{"$f":"'[1]9'!T96","v":0},{"$f":"'[1]9'!T96","v":0},0,{"$f":"'[1]9'!V96","v":0},{"$f":"'[1]9'!V96","v":0},0]
[1,"EX1146",null,null,null,"Venues and facilities",null,null,{"$f":"'[1]9'!J97","v":0},{"$f":"'[1]9'!L97","v":0},{"$f":"'[1]9'!N97","v":0},{"$f":"'[1]9'!N97","v":0},{"$f":"'[1]9'!Q97","v":0},{"$f":"'[1]9'!Q97","v":0},0,{"$f":"'[1]9'!T97","v":0},{"$f":"'[1]9'!T97","v":0},0,{"$f":"'[1]9'!V97","v":0},{"$f":"'[1]9'!V97","v":0},0]
[1,"EX113",null,null,null,"Depreciation",null,null,{"$f":"'[1]9'!J98","v":0},{"$f":"'[1]9'!L98","v":0},{"$f":"'[1]9'!N98","v":0},{"$f":"'[1]9'!N98","v":0},{"$f":"'[1]9'!Q98","v":0},{"$f":"'[1]9'!Q98","v":0},0,{"$f":"'[1]9'!T98","v":0},{"$f":"'[1]9'!T98","v":0},0,{"$f":"'[1]9'!V98","v":0},{"$f":"'[1]9'!V98","v":0},0]
[1,"EX114",null,null,null,"Losses from",null,null,{"$f":"SUM(I100:I101,I104)","v":0},0,0,0,0,0,{"$f":"SUM(N99-M99)","v":0},{"$f":"SUM(P100:P101,P104)","v":0},{"$f":"SUM(Q100:Q101,Q104)","v":0},{"$f":"SUM(Q99-P99)","v":0},{"$f":"SUM(S100:S101,S104)","v":0},{"$f":"SUM(T100:T101,T104)","v":0},{"$f":"SUM(T99-S99)","v":0},{"$f":"SUM(V100:V101,V104)","v":0}]
[1,"EX1141",null,null,null,"Sale of fixed assets",null,null,{"$f":"'[1]9'!J100","v":0},{"$f":"'[1]9'!L100","v":0},{"$f":"'[1]9'!N100","v":0},{"$f":"'[1]9'!N100","v":0},{"$f":"'[1]9'!Q100","v":0},{"$f":"'[1]9'!Q100","v":0},0,{"$f":"'[1]9'!T100","v":0},{"$f":"'[1]9'!T100","v":0},0,{"$f":"'[1]9'!V100","v":0},{"$f":"'[1]9'!V100","v":0},0]
[1,"EX1142",null,null,null,"Impairments and adjustments to fair value",null,null,{"$f":"SUM(I102:I103)","v":0},0,0,0,0,0,0,{"$f":"SUM(P102:P103)","v":0},{"$f":"SUM(Q102:Q103)","v":0},0,{"$f":"SUM(S102:S103)","v":0},{"$f":"SUM(T102:T103)","v":0},0,{"$f":"SUM(V102:V103)","v":0}]
[1,"EX11421",null,null,null,"Adjustments to fair value of assets",null,null,{"$f":"'[1]9'!J102","v":0},{"$f":"'[1]9'!L102","v":0},{"$f":"'[1]9'!N102","v":0},{"$f":"'[1]9'!N102","v":0},{"$f":"'[1]9'!Q102","v":0},{"$f":"'[1]9'!Q102","v":0},0,{"$f":"'[1]9'!T102","v":0},{"$f":"'[1]9'!T102","v":0},0,{"$f":"'[1]9'!V102","v":0},{"$f":"'[1]9'!V102","v":0},0]
[1,"EX11422",null,null,null,"Impairments to assets",null,null,{"$f":"'[1]9'!J103","v":0},{"$f":"'[1]9'!L103","v":0},{"$f":"'[1]9'!N103","v":0},{"$f":"'[1]9'!N103","v":0},{"$f":"'[1]9'!Q103","v":0},{"$f":"'[1]9'!Q103","v":0},0,{"$f":"'[1]9'!T103","v":0},{"$f":"'[1]9'!T103","v":0},0,{"$f":"'[1]9'!V103","v":0},{"$f":"'[1]9'!V103","v":0},0]
[1,"EX1143",null,null,null,"Other",null,null,{"$f":"'[1]9'!J104","v":0},{"$f":"'[1]9'!L104","v":0},{"$f":"'[1]9'!N104","v":0},{"$f":"'[1]9'!N104","v":0},{"$f":"'[1]9'!Q104","v":0},{"$f":"'[1]9'!Q104","v":0},0,{"$f":"'[1]9'!T104","v":0},{"$f":"'[1]9'!T104","v":0},0,{"$f":"'[1]9'!V104","v":0},{"$f":"'[1]9'!V104","v":0},0]
[1,"EX115",null,null,null,"Interest, dividends and rent on land",null,null,{"$f":"SUM(I106:I108)","v":0},0,0,0,0,0,0,{"$f":"SUM(P106:P108)","v":0},{"$f":"SUM(Q106:Q108)","v":0},0,{"$f":"SUM(S106:S108)","v":0},{"$f":"SUM(T106:T108)","v":0},0,{"$f":"SUM(V106:V108)","v":0}]
[1,"EX1151",null,null,null,"Interest",null,null,{"$f":"'[1]9'!J106","v":0},{"$f":"'[1]9'!L106","v":0},{"$f":"'[1]9'!N106","v":0},{"$f":"'[1]9'!N106","v":0},{"$f":"'[1]9'!Q106","v":0},{"$f":"'[1]9'!Q106","v":0},0,{"$f":"'[1]9'!T106","v":0},{"$f":"'[1]9'!T106","v":0},0,{"$f":"'[1]9'!V106","v":0},{"$f":"'[1]9'!V106","v":0},0]
[1,"EX1152",null,null,null,"Dividends",null,null,{"$f":"'[1]9'!J107","v":0},{"$f":"'[1]9'!L107","v":0},{"$f":"'[1]9'!N107","v":0},{"$f":"'[1]9'!N107","v":0},{"$f":"'[1]9'!Q107","v":0},{"$f":"'[1]9'!Q107","v":0},0,{"$f":"'[1]9'!T107","v":0},{"$f":"'[1]9'!T107","v":0},0,{"$f":"'[1]9'!V107","v":0},{"$f":"'[1]9'!V107","v":0},0]
[1,"EX1153",null,null,null,"Rent on land",null,null,{"$f":"'[1]9'!J108","v":0},{"$f":"'[1]9'!L108","v":0},{"$f":"'[1]9'!N108","v":0},{"$f":"'[1]9'!N108","v":0},{"$f":"'[1]9'!Q108","v":0},{"$f":"'[1]9'!Q108","v":0},0,{"$f":"'[1]9'!T108","v":0},{"$f":"'[1]9'!T108","v":0},0,{"$f":"'[1]9'!V108","v":0},{"$f":"'[1]9'!V108","v":0},0]
[1,"EX12",null,null,null,"Transfers and subsidies",null,null,{"$f":"SUM(I110,I121,I132:I135)","v":0},0,0,0,0,0,0,{"$f":"SUM(P110,P121,P132:P135)","v":0},{"$f":"SUM(Q110,Q121,Q132:Q135)","v":0},0,{"$f":"SUM(S110,S121,S132:S135)","v":0},{"$f":"SUM(T110,T121,T132:T135)","v":0},0,{"$f":"SUM(V110,V121,V132:V135)","v":0}]
[2,"EX121",null,null,null,"Employer Grant (SETAs only)",null,null,{"$f":"SUM(I111,I117,I120)","v":0},0,0,0,0,0,0,{"$f":"SUM(P111,P117,P120)","v":0},{"$f":"SUM(Q111,Q117,Q120)","v":0},0,{"$f":"SUM(S111,S117,S120)","v":0},{"$f":"SUM(T111,T117,T120)","v":0},0,{"$f":"SUM(V111,V117,V120)","v":0}]
[1,"EX122",null,null,null,"Other government units",null,null,{"$f":"SUM(I112:I116)","v":0},0,0,0,0,0,0,{"$f":"SUM(P112:P116)","v":0},{"$f":"SUM(Q112:Q116)","v":0},0,{"$f":"SUM(S112:S116)","v":0},{"$f":"SUM(T112:T116)","v":0},0,{"$f":"SUM(V112:V116)","v":0}]
[1,"EX1221",null,null,null,"National government",null,null,{"$f":"'[1]9'!J112","v":0},{"$f":"'[1]9'!L112","v":0},{"$f":"'[1]9'!N112","v":0},{"$f":"'[1]9'!N112","v":0},{"$f":"'[1]9'!Q112","v":0},{"$f":"'[1]9'!Q112","v":0},0,{"$f":"'[1]9'!T112","v":0},{"$f":"'[1]9'!T112","v":0},0,{"$f":"'[1]9'!V112","v":0},{"$f":"'[1]9'!V112","v":0},0]
[1,"EX1222",null,null,null,"Departmental agencies and accounts",null,null,{"$f":"'[1]9'!J113","v":0},{"$f":"'[1]9'!L113","v":0},{"$f":"'[1]9'!N113","v":0},{"$f":"'[1]9'!N113","v":0},{"$f":"'[1]9'!Q113","v":0},{"$f":"'[1]9'!Q113","v":0},0,{"$f":"'[1]9'!T113","v":0},{"$f":"'[1]9'!T113","v":0},0,{"$f":"'[1]9'!V113","v":0},{"$f":"'[1]9'!V113","v":0},0]
[1,"EX1223",null,null,null,"Provinces",null,null,{"$f":"'[1]9'!J114","v":0},{"$f":"'[1]9'!L114","v":0},{"$f":"'[1]9'!N114","v":0},{"$f":"'[1]9'!N114","v":0},{"$f":"'[1]9'!Q114","v":0},{"$f":"'[1]9'!Q114","v":0},0,{"$f":"'[1]9'!T114","v":0},{"$f":"'[1]9'!T114","v":0},0,{"$f":"'[1]9'!V114","v":0},{"$f":"'[1]9'!V114","v":0},0]
[1,"EX1224",null,null,null,"Municipalities",null,null,{"$f":"'[1]9'!J115","v":0},{"$f":"'[1]9'!L115","v":0},{"$f":"'[1]9'!N115","v":0},{"$f":"'[1]9'!N115","v":0},{"$f":"'[1]9'!Q115","v":0},{"$f":"'[1]9'!Q115","v":0},0,{"$f":"'[1]9'!T115","v":0},{"$f":"'[1]9'!T115","v":0},0,{"$f":"'[1]9'!V115","v":0},{"$f":"'[1]9'!V115","v":0},0]
[2,"EX1225",null,null,null,"National Skills Fund",null,null,{"$f":"'[1]9'!J116","v":0},{"$f":"'[1]9'!L116","v":0},{"$f":"'[1]9'!N116","v":0},{"$f":"'[1]9'!N116","v":0},{"$f":"'[1]9'!Q116","v":0},{"$f":"'[1]9'!Q116","v":0},0,{"$f":"'[1]9'!T116","v":0},{"$f":"'[1]9'!T116","v":0},0,{"$f":"'[1]9'!V116","v":0},{"$f":"'[1]9'!V116","v":0},0]
[1,"EX123",null,null,null,"Public corporations and private enterprises (subsidies and other transfers)",null,null,{"$f":"SUM(I118:I119)","v":0},0,0,0,0,0,0,{"$f":"SUM(P118:P119)","v":0},{"$f":"SUM(Q118:Q119)","v":0},0,{"$f":"SUM(S118:S119)","v":0},{"$f":"SUM(T118:T119)","v":0},0,{"$f":"SUM(V118:V119)","v":0}]
[1,"EX1231",null,null,null,"Public corporations",null,null,{"$f":"'[1]9'!J118","v":0},{"$f":"'[1]9'!L118","v":0},{"$f":"'[1]9'!N118","v":0},{"$f":"'[1]9'!N118","v":0},{"$f":"'[1]9'!Q118","v":0},{"$f":"'[1]9'!Q118","v":0},0,{"$f":"'[1]9'!T118","v":0},{"$f":"'[1]9'!T118","v":0},0,{"$f":"'[1]9'!V118","v":0},{"$f":"'[1]9'!V118","v":0},0]
[1,"EX1232",null,null,null,"Private enterprises",null,null,{"$f":"'[1]9'!J119","v":0},{"$f":"'[1]9'!L119","v":0},{"$f":"'[1]9'!N119","v":0},{"$f":"'[1]9'!N119","v":0},{"$f":"'[1]9'!Q119","v":0},{"$f":"'[1]9'!Q119","v":0},0,{"$f":"'[1]9'!T119","v":0},{"$f":"'[1]9'!T119","v":0},0,{"$f":"'[1]9'!V119","v":0},{"$f":"'[1]9'!V119","v":0},0]
[2,"EX124",null,null,null,"Households and non government units",null,null,{"$f":"'[1]9'!J120","v":0},{"$f":"'[1]9'!L120","v":0},{"$f":"'[1]9'!N120","v":0},{"$f":"'[1]9'!N120","v":0},{"$f":"'[1]9'!Q120","v":0},{"$f":"'[1]9'!Q120","v":0},0,{"$f":"'[1]9'!T120","v":0},{"$f":"'[1]9'!T120","v":0},0,{"$f":"'[1]9'!V120","v":0},{"$f":"'[1]9'!V120","v":0},0]
[2,"EX125",null,null,null,"Discretionary Grant (SETAs only)",null,null,{"$f":"SUM(I122,I128,I131)","v":0},0,0,0,0,0,0,{"$f":"SUM(P122,P128,P131)","v":0},{"$f":"SUM(Q122,Q128,Q131)","v":0},0,{"$f":"SUM(S122,S128,S131)","v":0},{"$f":"SUM(T122,T128,T131)","v":0},0,{"$f":"SUM(V122,V128,V131)","v":0}]
[2,"EX126",null,null,null,"Other government units",null,null,{"$f":"SUM(I123:I127)","v":0},0,0,0,0,0,0,{"$f":"SUM(P123:P127)","v":0},{"$f":"SUM(Q123:Q127)","v":0},0,{"$f":"SUM(S123:S127)","v":0},{"$f":"SUM(T123:T127)","v":0},0,{"$f":"SUM(V123:V127)","v":0}]
[2,"EX1261",null,null,null,"National government",null,null,{"$f":"'[1]9'!J123","v":0},{"$f":"'[1]9'!L123","v":0},{"$f":"'[1]9'!N123","v":0},{"$f":"'[1]9'!N123","v":0},{"$f":"'[1]9'!Q123","v":0},{"$f":"'[1]9'!Q123","v":0},0,{"$f":"'[1]9'!T123","v":0},{"$f":"'[1]9'!T123","v":0},0,{"$f":"'[1]9'!V123","v":0},{"$f":"'[1]9'!V123","v":0},0]
[2,"EX1262",null,null,null,"Departmental agencies and accounts",null,null,{"$f":"'[1]9'!J124","v":0},{"$f":"'[1]9'!L124","v":0},{"$f":"'[1]9'!N124","v":0},{"$f":"'[1]9'!N124","v":0},{"$f":"'[1]9'!Q124","v":0},{"$f":"'[1]9'!Q124","v":0},0,{"$f":"'[1]9'!T124","v":0},{"$f":"'[1]9'!T124","v":0},0,{"$f":"'[1]9'!V124","v":0},{"$f":"'[1]9'!V124","v":0},0]
[2,"EX1263",null,null,null,"Provinces",null,null,{"$f":"'[1]9'!J125","v":0},{"$f":"'[1]9'!L125","v":0},{"$f":"'[1]9'!N125","v":0},{"$f":"'[1]9'!N125","v":0},{"$f":"'[1]9'!Q125","v":0},{"$f":"'[1]9'!Q125","v":0},0,{"$f":"'[1]9'!T125","v":0},{"$f":"'[1]9'!T125","v":0},0,{"$f":"'[1]9'!V125","v":0},{"$f":"'[1]9'!V125","v":0},0]
[2,"EX1264",null,null,null,"Municipalities",null,null,{"$f":"'[1]9'!J126","v":0},{"$f":"'[1]9'!L126","v":0},{"$f":"'[1]9'!N126","v":0},{"$f":"'[1]9'!N126","v":0},{"$f":"'[1]9'!Q126","v":0},{"$f":"'[1]9'!Q126","v":0},0,{"$f":"'[1]9'!T126","v":0},{"$f":"'[1]9'!T126","v":0},0,{"$f":"'[1]9'!V126","v":0},{"$f":"'[1]9'!V126","v":0},0]
[2,"EX1265",null,null,null,"National Skills Fund",null,null,{"$f":"'[1]9'!J127","v":0},{"$f":"'[1]9'!L127","v":0},{"$f":"'[1]9'!N127","v":0},{"$f":"'[1]9'!N127","v":0},{"$f":"'[1]9'!Q127","v":0},{"$f":"'[1]9'!Q127","v":0},0,{"$f":"'[1]9'!T127","v":0},{"$f":"'[1]9'!T127","v":0},0,{"$f":"'[1]9'!V127","v":0},{"$f":"'[1]9'!V127","v":0},0]
[2,"EX127",null,null,null,"Public corporations and private enterprises (subsidies and other transfers)",null,null,{"$f":"SUM(I129:I130)","v":0},0,0,0,0,0,0,{"$f":"SUM(P129:P130)","v":0},{"$f":"SUM(Q129:Q130)","v":0},0,{"$f":"SUM(S129:S130)","v":0},{"$f":"SUM(T129:T130)","v":0},0,{"$f":"SUM(V129:V130)","v":0}]
[2,"EX1271",null,null,null,"Public corporations",null,null,{"$f":"'[1]9'!J129","v":0},{"$f":"'[1]9'!L129","v":0},{"$f":"'[1]9'!N129","v":0},{"$f":"'[1]9'!N129","v":0},{"$f":"'[1]9'!Q129","v":0},{"$f":"'[1]9'!Q129","v":0},0,{"$f":"'[1]9'!T129","v":0},{"$f":"'[1]9'!T129","v":0},0,{"$f":"'[1]9'!V129","v":0},{"$f":"'[1]9'!V129","v":0},{"$f":"SUM(T129-S129)","v":0}]
[2,"EX1272",null,null,null,"Private enterprises",null,null,{"$f":"'[1]9'!J130","v":0},{"$f":"'[1]9'!L130","v":0},{"$f":"'[1]9'!N130","v":0},{"$f":"'[1]9'!N130","v":0},{"$f":"'[1]9'!Q130","v":0},{"$f":"'[1]9'!Q130","v":0},0,{"$f":"'[1]9'!T130","v":0},{"$f":"'[1]9'!T130","v":0},0,{"$f":"'[1]9'!V130","v":0},{"$f":"'[1]9'!V130","v":0},0]
[2,"EX128",null,null,null,"Households and non government units",null,null,{"$f":"'[1]9'!J131","v":0},{"$f":"'[1]9'!L131","v":0},{"$f":"'[1]9'!N131","v":0},{"$f":"'[1]9'!N131","v":0},{"$f":"'[1]9'!Q131","v":0},{"$f":"'[1]9'!Q131","v":0},0,{"$f":"'[1]9'!T131","v":0},{"$f":"'[1]9'!T131","v":0},0,{"$f":"'[1]9'!V131","v":0},{"$f":"'[1]9'!V131","v":0},0]
[1,"EX129",null,null,null,"Higher education institutions",null,null,{"$f":"'[1]9'!J132","v":0},{"$f":"'[1]9'!L132","v":0},{"$f":"'[1]9'!N132","v":0},{"$f":"'[1]9'!N132","v":0},{"$f":"'[1]9'!Q132","v":0},{"$f":"'[1]9'!Q132","v":0},0,{"$f":"'[1]9'!T132","v":0},{"$f":"'[1]9'!T132","v":0},0,{"$f":"'[1]9'!V132","v":0},{"$f":"'[1]9'!V132","v":0},0]
[1,"EX130",null,null,null,"Foreign governments and international organisations ",null,null,{"$f":"'[1]9'!J133","v":0},{"$f":"'[1]9'!L133","v":0},{"$f":"'[1]9'!N133","v":0},{"$f":"'[1]9'!N133","v":0},{"$f":"'[1]9'!Q133","v":0},{"$f":"'[1]9'!Q133","v":0},0,{"$f":"'[1]9'!T133","v":0},{"$f":"'[1]9'!T133","v":0},0,{"$f":"'[1]9'!V133","v":0},{"$f":"'[1]9'!V133","v":0},0]
[1,"EX131",null,null,null,"Non-profit institutions",null,null,{"$f":"'[1]9'!J134","v":0},{"$f":"'[1]9'!L134","v":0},{"$f":"'[1]9'!N134","v":0},{"$f":"'[1]9'!N134","v":0},{"$f":"'[1]9'!Q134","v":0},{"$f":"'[1]9'!Q134","v":0},0,{"$f":"'[1]9'!T134","v":0},{"$f":"'[1]9'!T134","v":0},0,{"$f":"'[1]9'!V134","v":0},{"$f":"'[1]9'!V134","v":0},0]
[1,"EX132",null,null,null,"Households",null,null,{"$f":"SUM(I136:I137)","v":0},0,0,0,0,0,{"$f":"SUM(N135-M135)","v":0},{"$f":"SUM(P136:P137)","v":0},{"$f":"SUM(Q136:Q137)","v":0},{"$f":"SUM(Q135-P135)","v":0},{"$f":"SUM(S136:S137)","v":0},{"$f":"SUM(T136:T137)","v":0},{"$f":"SUM(T135-S135)","v":0},{"$f":"SUM(V136:V137)","v":0}]
[1,"EX1301",null,null,null,"Social benefits ",null,null,{"$f":"'[1]9'!J136","v":0},{"$f":"'[1]9'!L136","v":0},{"$f":"'[1]9'!N136","v":0},{"$f":"'[1]9'!N136","v":0},{"$f":"'[1]9'!Q136","v":0},{"$f":"'[1]9'!Q136","v":0},0,{"$f":"'[1]9'!T136","v":0},{"$f":"'[1]9'!T136","v":0},0,{"$f":"'[1]9'!V136","v":0},{"$f":"'[1]9'!V136","v":0},0]
[1,"EX1302",null,null,null,"Other transfers to households",null,null,{"$f":"'[1]9'!J137","v":0},{"$f":"'[1]9'!L137","v":0},{"$f":"'[1]9'!N137","v":0},{"$f":"'[1]9'!N137","v":0},{"$f":"'[1]9'!Q137","v":0},{"$f":"'[1]9'!Q137","v":0},0,{"$f":"'[1]9'!T137","v":0},{"$f":"'[1]9'!T137","v":0},0,{"$f":"'[1]9'!V137","v":0},{"$f":"'[1]9'!V137","v":0},0]
[1,"EX13",null,null,null,"Tax payment",null,null,{"$f":"'[1]9'!J138","v":0},{"$f":"'[1]9'!L138","v":0},{"$f":"'[1]9'!N138","v":0},{"$f":"'[1]9'!N138","v":0},{"$f":"'[1]9'!Q138","v":0},{"$f":"'[1]9'!Q138","v":0},0,{"$f":"'[1]9'!T138","v":0},{"$f":"'[1]9'!T138","v":0},0,{"$f":"'[1]9'!V138","v":0},{"$f":"'[1]9'!V138","v":0},0]
[1,"EX14",null,null,null,"Outside shareholders Interest",null,null,{"$f":"'[1]9'!J139","v":0},{"$f":"'[1]9'!L139","v":0},{"$f":"'[1]9'!N139","v":0},{"$f":"'[1]9'!N139","v":0},{"$f":"'[1]9'!Q139","v":0},{"$f":"'[1]9'!Q139","v":0},0,{"$f":"'[1]9'!T139","v":0},{"$f":"'[1]9'!T139","v":0},0,{"$f":"'[1]9'!V139","v":0},{"$f":"'[1]9'!V139","v":0},0]
[1,"EX15",null,null,null,"Total Expenditure",null,null,{"$f":"SUM(I39,I109,I138:I139)","v":0},0,0,0,0,0,0,{"$f":"SUM(P39,P109,P138:P139)","v":0},{"$f":"SUM(Q39,Q109,Q138:Q139)","v":0},0,{"$f":"SUM(S39,S109,S138:S139)","v":0},{"$f":"SUM(T39,T109,T138:T139)","v":0},0,{"$f":"SUM(V39,V109,V138:V139)","v":0}]
[1]
[1,null,null,null,null,"Objective less Expenditure",null,null,{"$f":"ROUND(IF(I37-I140>0,IF(I37-I140<1,0,I37-I140),I37-I140),0)","v":0},0,null,0,0,0,{"$f":"ROUND(IF(O37-O140>0,IF(O37-O140<1,0,O37-O140),O37-O140),0)","v":0},0,0,0,0,0,0,0]
[1]

{"sheet":"10","index":14,"n_rows":143,"n_cols":23,"rows_kept":143,"cut":false,"hidden":false,"merged":[[31,15,31,17],[31,18,31,20],[31,12,31,14],[31,10,31,11]]}
[]
[]
[]
[]
[]
[null,null,null,null,null,"PE No",{"$f":"Settings!O2","v":"PE126"}]
[null,null,null,null,null,"Entity name",{"$f":"Settings!$E$2","v":"South African Revenue Service"}]
[]
[null,null,null,null,null,"Performance and operations information"]
["ItemCat","Item code","Hide/unhide",null,null,"Activity/Output/Outcome/Efficiency Indicator","MTDP Outcomes",null,{"$f":"MyYearM3","v":"2022/23"},{"$f":"MyYearM2","v":"2023/24"},{"$f":"MyYearM1","v":"2024/25"},{"$f":"MyYear0","v":"2025/26"},{"$f":"MyYearP1","v":"2026/27"},{"$f":"MyYearP2","v":"2027/28"},{"$f":"MyYearP3","v":"2028/29"},"Related Objectives","Add to 'Performance Indicators' Sheet","Comments"]
[1,null,null,null,null,{"$f":"'[1]10'!F11","v":"Completeness of data achieved0"},{"$f":"'[1]10'!G11","v":"Outcome 10: Reduced poverty and improved livelihoods"},0,{"$f":"'[1]10'!J11","v":"Expanded\nuse of\nunstructured\nand\nstructured\ndata\n"},{"$f":"'[1]10'!K11","v":0},{"$f":"'[1]10'!L11","v":0},{"$f":"'[1]10'!M11","v":0},{"$f":"'[1]10'!N11","v":0},{"$f":"'[1]10'!O11","v":0},null,{"$f":"'[1]10'!P11","v":"Design & Enabling - Segments"},{"$f":"'[1]10'!Q11","v":"No"},{"$f":"'[1]10'!R11","v":0}]
[1,null,null,null,null,{"$f":"'[1]10'!F12","v":"Methodology and algorithms to improve case selection completed"},{"$f":"'[1]10'!G12","v":"Outcome 10: Reduced poverty and improved livelihoods"},0,{"$f":"'[1]10'!J12","v":"Increased use\nof machine\nlearning\ncapability\n"},{"$f":"'[1]10'!K12","v":"Performance\nreview of\nnew machine\nlearning\ncapability"},{"$f":"'[1]10'!L12","v":0},{"$f":"'[1]10'!M12","v":0},{"$f":"'[1]10'!N12","v":0},{"$f":"'[1]10'!O12","v":0},null,{"$f":"'[1]10'!P12","v":"Design & Enabling - Segments"},{"$f":"'[1]10'!Q12","v":"No"},{"$f":"'[1]10'!R12","v":0}]
[1,null,null,null,null,{"$f":"'[1]10'!F13","v":"Data governance framework developed and implemented0"},{"$f":"'[1]10'!G13","v":"Outcome 10: Reduced poverty and improved livelihoods"},0,{"$f":"'[1]10'!J13","v":"Data\ngovernance\nframework\nimplemented\n"},{"$f":"'[1]10'!K13","v":"Data\ngovernance\nframework\nimplemented\n"},{"$f":"'[1]10'!L13","v":"Data\ngovernance\nframework\nimplemented\n"},{"$f":"'[1]10'!M13","v":0},{"$f":"'[1]10'!N13","v":0},{"$f":"'[1]10'!O13","v":0},null,{"$f":"'[1]10'!P13","v":"Design & Enabling - Segments"},{"$f":"'[1]10'!Q13","v":"No"},{"$f":"'[1]10'!R13","v":0}]
[1,null,null,null,null,{"$f":"'[1]10'!F14","v":0},{"$f":"'[1]10'!G14","v":0},0,{"$f":"'[1]10'!J14","v":0},{"$f":"'[1]10'!K14","v":0},{"$f":"'[1]10'!L14","v":0},{"$f":"'[1]10'!M14","v":0},{"$f":"'[1]10'!N14","v":0},{"$f":"'[1]10'!O14","v":0},null,{"$f":"'[1]10'!P14","v":0},{"$f":"'[1]10'!Q14","v":0},{"$f":"'[1]10'!R14","v":0}]
[1,null,null,null,null,{"$f":"'[1]10'!F15","v":0},{"$f":"'[1]10'!G15","v":0},0,{"$f":"'[1]10'!J15","v":0},{"$f":"'[1]10'!K15","v":0},{"$f":"'[1]10'!L15","v":0},{"$f":"'[1]10'!M15","v":0},{"$f":"'[1]10'!N15","v":0},{"$f":"'[1]10'!O15","v":0},null,{"$f":"'[1]10'!P15","v":0},{"$f":"'[1]10'!Q15","v":0},{"$f":"'[1]10'!R15","v":0}]
[1,null,null,null,null,{"$f":"'[1]10'!F16","v":0},{"$f":"'[1]10'!G16","v":0},0,{"$f":"'[1]10'!J16","v":0},{"$f":"'[1]10'!K16","v":0},{"$f":"'[1]10'!L16","v":0},{"$f":"'[1]10'!M16","v":0},{"$f":"'[1]10'!N16","v":0},{"$f":"'[1]10'!O16","v":0},null,{"$f":"'[1]10'!P16","v":0},{"$f":"'[1]10'!Q16","v":0},{"$f":"'[1]10'!R16","v":0}]
[1,null,null,null,null,{"$f":"'[1]10'!F17","v":0},{"$f":"'[1]10'!G17","v":0},0,{"$f":"'[1]10'!J17","v":0},{"$f":"'[1]10'!K17","v":0},{"$f":"'[1]10'!L17","v":0},{"$f":"'[1]10'!M17","v":0},{"$f":"'[1]10'!N17","v":0},{"$f":"'[1]10'!O17","v":0},null,{"$f":"'[1]10'!P17","v":0},{"$f":"'[1]10'!Q17","v":0},{"$f":"'[1]10'!R17","v":0}]
[1,null,null,null,null,{"$f":"'[1]10'!F18","v":0},{"$f":"'[1]10'!G18","v":0},0,{"$f":"'[1]10'!J18","v":0},{"$f":"'[1]10'!K18","v":0},{"$f":"'[1]10'!L18","v":0},{"$f":"'[1]10'!M18","v":0},{"$f":"'[1]10'!N18","v":0},{"$f":"'[1]10'!O18","v":0},null,{"$f":"'[1]10'!P18","v":0},{"$f":"'[1]10'!Q18","v":0},{"$f":"'[1]10'!R18","v":0}]
[1,null,null,null,null,{"$f":"'[1]10'!F19","v":0},{"$f":"'[1]10'!G19","v":0},0,{"$f":"'[1]10'!J19","v":0},{"$f":"'[1]10'!K19","v":0},{"$f":"'[1]10'!L19","v":0},{"$f":"'[1]10'!M19","v":0},{"$f":"'[1]10'!N19","v":0},{"$f":"'[1]10'!O19","v":0},null,{"$f":"'[1]10'!P19","v":0},{"$f":"'[1]10'!Q19","v":0},{"$f":"'[1]10'!R19","v":0}]
[1,null,null,null,null,{"$f":"'[1]10'!F20","v":0},{"$f":"'[1]10'!G20","v":0},0,{"$f":"'[1]10'!J20","v":0},{"$f":"'[1]10'!K20","v":0},{"$f":"'[1]10'!L20","v":0},{"$f":"'[1]10'!M20","v":0},{"$f":"'[1]10'!N20","v":0},{"$f":"'[1]10'!O20","v":0},null,{"$f":"'[1]10'!P20","v":0},{"$f":"'[1]10'!Q20","v":0},{"$f":"'[1]10'!R20","v":0}]
[1,null,null,null,null,{"$f":"'[1]10'!F21","v":0},{"$f":"'[1]10'!G21","v":0},0,{"$f":"'[1]10'!J21","v":0},{"$f":"'[1]10'!K21","v":0},{"$f":"'[1]10'!L21","v":0},{"$f":"'[1]10'!M21","v":0},{"$f":"'[1]10'!N21","v":0},{"$f":"'[1]10'!O21","v":0},null,{"$f":"'[1]10'!P21","v":0},{"$f":"'[1]10'!Q21","v":0},{"$f":"'[1]10'!R21","v":0}]
[1,null,null,null,null,{"$f":"'[1]10'!F22","v":0},{"$f":"'[1]10'!G22","v":0},0,{"$f":"'[1]10'!J22","v":0},{"$f":"'[1]10'!K22","v":0},{"$f":"'[1]10'!L22","v":0},{"$f":"'[1]10'!M22","v":0},{"$f":"'[1]10'!N22","v":0},{"$f":"'[1]10'!O22","v":0},null,{"$f":"'[1]10'!P22","v":0},{"$f":"'[1]10'!Q22","v":0},{"$f":"'[1]10'!R22","v":0}]
[1,null,null,null,null,{"$f":"'[1]10'!F23","v":0},{"$f":"'[1]10'!G23","v":0},0,{"$f":"'[1]10'!J23","v":0},{"$f":"'[1]10'!K23","v":0},{"$f":"'[1]10'!L23","v":0},{"$f":"'[1]10'!M23","v":0},{"$f":"'[1]10'!N23","v":0},{"$f":"'[1]10'!O23","v":0},null,{"$f":"'[1]10'!P23","v":0},{"$f":"'[1]10'!Q23","v":0},{"$f":"'[1]10'!R23","v":0}]
[1,null,null,null,null,{"$f":"'[1]10'!F24","v":0},{"$f":"'[1]10'!G24","v":0},0,{"$f":"'[1]10'!J24","v":0},{"$f":"'[1]10'!K24","v":0},{"$f":"'[1]10'!L24","v":0},{"$f":"'[1]10'!M24","v":0},{"$f":"'[1]10'!N24","v":0},{"$f":"'[1]10'!O24","v":0},null,{"$f":"'[1]10'!P24","v":0},{"$f":"'[1]10'!Q24","v":0},{"$f":"'[1]10'!R24","v":0}]
[1,null,null,null,null,{"$f":"'[1]10'!F25","v":0},{"$f":"'[1]10'!G25","v":0},0,{"$f":"'[1]10'!J25","v":0},{"$f":"'[1]10'!K25","v":0},{"$f":"'[1]10'!L25","v":0},{"$f":"'[1]10'!M25","v":0},{"$f":"'[1]10'!N25","v":0},{"$f":"'[1]10'!O25","v":0},null,{"$f":"'[1]10'!P25","v":0},{"$f":"'[1]10'!Q25","v":0},{"$f":"'[1]10'!R25","v":0}]
[1,null,null,null,null,"Notes:"]
[1,null,null,null,null,"Performance indicators are an explanation of objectives performance.   "]
[1,null,null,null,null,"1. They are specific measurements that track progress towards achieving the goals and objectives of an institution."]
[1,null,null,null,null,"2. Institutions should use performance indicators in the 2024/25 Annual Performance Plans and those in the 2025 ENE. "]
[1,null,null,null,null,"3. Institutions should also indicate instances where targets are not affected by budget baseline reprioritisation."]
[1]
[1,null,null,null,null,null,null,null,{"$f":"MyYearM3","v":"2022/23"},{"$f":"MyYearM2","v":"2023/24"},{"$f":"MyYearM1","v":"2024/25"},null,{"$f":"MyYear0","v":"2025/26"},null,null,{"$f":"MyYearP1","v":"2026/27"},null,null,{"$f":"MyYearP2","v":"2027/28"},null,null,{"$f":"MyYearP3","v":"2028/29"}]
[1,null,null,null,null,"Expenses",null,null,{"$f":"Hist_year3RestatedAudited","v":"Audited\noutcome"},{"$f":"Hist_year2RestatedAudited","v":"Audited\noutcome"},{"$f":"Hist_year1Budget","v":"Budget"},{"$f":"Hist_year1Audited","v":"Audited\noutcome"},{"$f":"Cur_YearBudgEst","v":"Budget\nestimate"},{"$f":"Cur_YearApprovedBudg","v":"Approved budget"},{"$f":"Cur_YearChangeFrRevBudg","v":"Changes from \nbudget estimate"},{"$f":"MTEF1BudgEst","v":"Budget\nestimate"},{"$f":"MTEF1RevBudgEst","v":"Revised\nbudget\nestimate"},{"$f":"MTEF1_ChangeFrBudgEst","v":"Changes from budget estimate"},{"$f":"MTEF2BudgEst","v":"Budget\nestimate"},{"$f":"MTEF2RevBudgEst","v":"Revised\nbudget\nestimate"},{"$f":"MTEF2_ChangeFrBudgEst","v":"Changes from budget estimate"},{"$f":"MTEF3PlanBudgetEst","v":"Planning\nbudget \nestimate"}]
[1]
[1,null,null,null,null,"Rand thousand"]
[1,null,null,null,null,"Objective/Activity"]
[1,null,null,null,null,{"$f":"'[1]10'!F37","v":0},null,null,{"$f":"'[1]10'!J37","v":0},{"$f":"'[1]10'!L37","v":0},{"$f":"'[1]10'!N37","v":0},{"$f":"'[1]10'!N37","v":0},{"$f":"'[1]10'!Q37","v":0},{"$f":"'[1]10'!Q37","v":0},{"$f":"SUM(N37-M37)","v":0},{"$f":"'[1]10'!T37","v":0},{"$f":"'[1]10'!T37","v":0},{"$f":"SUM(Q37-P37)","v":0},{"$f":"'[1]10'!V37","v":0},{"$f":"'[1]10'!V37","v":0},{"$f":"SUM(T37-S37)","v":0}]
[1,null,null,null,null,"Economic classification"]
[1,"EX11",null,null,null,"Current payments",null,null,{"$f":"SUM(I40,I43,I98:I99,I105)","v":0},0,0,0,0,0,{"$f":"SUM(N39-M39)","v":0},{"$f":"SUM(P40,P43,P98:P99,P105)","v":0},{"$f":"SUM(Q40,Q43,Q98:Q99,Q105)","v":0},{"$f":"SUM(Q39-P39)","v":0},{"$f":"SUM(S40,S43,S98:S99,S105)","v":0},{"$f":"SUM(T40,T43,T98:T99,T105)","v":0},{"$f":"SUM(T39-S39)","v":0},{"$f":"SUM(V40,V43,V98:V99,V105)","v":0}]
[1,"EX111",null,null,null,"Compensation of employees",null,null,{"$f":"SUM(I41:I42)","v":0},0,0,0,0,0,{"$f":"SUM(N40-M40)","v":0},{"$f":"SUM(P41:P42)","v":0},{"$f":"SUM(Q41:Q42)","v":0},{"$f":"SUM(Q40-P40)","v":0},{"$f":"SUM(S41:S42)","v":0},{"$f":"SUM(T41:T42)","v":0},{"$f":"SUM(T40-S40)","v":0},{"$f":"SUM(V41:V42)","v":0}]
[1,"EX1111",null,null,null,"Salaries and wages",null,null,{"$f":"'[1]10'!J41","v":0},{"$f":"'[1]10'!L41","v":0},{"$f":"'[1]10'!N41","v":0},{"$f":"'[1]10'!N41","v":0},{"$f":"'[1]10'!Q41","v":0},{"$f":"'[1]10'!Q41","v":0},{"$f":"SUM(N41-M41)","v":0},{"$f":"'[1]10'!T41","v":0},{"$f":"'[1]10'!T41","v":0},{"$f":"SUM(Q41-P41)","v":0},{"$f":"'[1]10'!V41","v":0},{"$f":"'[1]10'!V41","v":0},{"$f":"SUM(T41-S41)","v":0}]
[1,"EX1112",null,null,null,"Social contributions",null,null,{"$f":"'[1]10'!J42","v":0},{"$f":"'[1]10'!L42","v":0},{"$f":"'[1]10'!N42","v":0},{"$f":"'[1]10'!N42","v":0},{"$f":"'[1]10'!Q42","v":0},{"$f":"'[1]10'!Q42","v":0},{"$f":"SUM(N42-M42)","v":0},{"$f":"'[1]10'!T42","v":0},{"$f":"'[1]10'!T42","v":0},{"$f":"SUM(Q42-P42)","v":0},{"$f":"'[1]10'!V42","v":0},{"$f":"'[1]10'!V42","v":0},{"$f":"SUM(T42-S42)","v":0}]
[1,"EX112",null,null,null,"Goods and services",null,null,{"$f":"SUM(I45:I54,I58:I61,I73,I75:I97)","v":0},{"$f":"SUM(J45:J54,J58:J61,J73,J75:J97)","v":0},{"$f":"SUM(K45:K54,K58:K61,K73,K75:K97)","v":0},0,0,0,0,0,0,0,0,0,0,0,{"$f":"SUM(W45:W54,W58:W61,W73,W75:W97)","v":0}]
[1,"EX000",null,null,null,"Of which 1"]
[1,"EX1133",null,null,null,"Administrative fees",null,null,{"$f":"'[1]10'!J45","v":0},{"$f":"'[1]10'!L45","v":0},{"$f":"'[1]10'!N45","v":0},{"$f":"'[1]10'!N45","v":0},{"$f":"'[1]10'!Q45","v":0},{"$f":"'[1]10'!Q45","v":0},{"$f":"SUM(N45-M45)","v":0},{"$f":"'[1]10'!T45","v":0},{"$f":"'[1]10'!T45","v":0},{"$f":"SUM(Q45-P45)","v":0},{"$f":"'[1]10'!V45","v":0},{"$f":"'[1]10'!V45","v":0},{"$f":"SUM(T45-S45)","v":0}]
[1,"EX1134",null,null,null,"Advertising",null,null,{"$f":"'[1]10'!J46","v":0},{"$f":"'[1]10'!L46","v":0},{"$f":"'[1]10'!N46","v":0},{"$f":"'[1]10'!N46","v":0},{"$f":"'[1]10'!Q46","v":0},{"$f":"'[1]10'!Q46","v":0},0,{"$f":"'[1]10'!T46","v":0},{"$f":"'[1]10'!T46","v":0},0,{"$f":"'[1]10'!V46","v":0},{"$f":"'[1]10'!V46","v":0},0]
[1,"EX1135",null,null,null,"Minor assets",null,null,{"$f":"'[1]10'!J47","v":0},{"$f":"'[1]10'!L47","v":0},{"$f":"'[1]10'!N47","v":0},{"$f":"'[1]10'!N47","v":0},{"$f":"'[1]10'!Q47","v":0},{"$f":"'[1]10'!Q47","v":0},0,{"$f":"'[1]10'!T47","v":0},{"$f":"'[1]10'!T47","v":0},0,{"$f":"'[1]10'!V47","v":0},{"$f":"'[1]10'!V47","v":0},0]
[1,"EX1136",null,null,null,"Audit costs: External",null,null,{"$f":"'[1]10'!J48","v":0},{"$f":"'[1]10'!L48","v":0},{"$f":"'[1]10'!N48","v":0},{"$f":"'[1]10'!N48","v":0},{"$f":"'[1]10'!Q48","v":0},{"$f":"'[1]10'!Q48","v":0},0,{"$f":"'[1]10'!T48","v":0},{"$f":"'[1]10'!T48","v":0},0,{"$f":"'[1]10'!V48","v":0},{"$f":"'[1]10'!V48","v":0},0]
[1,"EX1139",null,null,null,"Bursaries: Employees",null,null,{"$f":"'[1]10'!J49","v":0},{"$f":"'[1]10'!L49","v":0},{"$f":"'[1]10'!N49","v":0},{"$f":"'[1]10'!N49","v":0},{"$f":"'[1]10'!Q49","v":0},{"$f":"'[1]10'!Q49","v":0},0,{"$f":"'[1]10'!T49","v":0},{"$f":"'[1]10'!T49","v":0},0,{"$f":"'[1]10'!V49","v":0},{"$f":"'[1]10'!V49","v":0},0]
[1,"EX1140",null,null,null,"Catering: Internal activities",null,null,{"$f":"'[1]10'!J50","v":0},{"$f":"'[1]10'!L50","v":0},{"$f":"'[1]10'!N50","v":0},{"$f":"'[1]10'!N50","v":0},{"$f":"'[1]10'!Q50","v":0},{"$f":"'[1]10'!Q50","v":0},0,{"$f":"'[1]10'!T50","v":0},{"$f":"'[1]10'!T50","v":0},0,{"$f":"'[1]10'!V50","v":0},{"$f":"'[1]10'!V50","v":0},0]
[1,"EX1122",null,null,null,"Communication (G&S)",null,null,{"$f":"'[1]10'!J51","v":0},{"$f":"'[1]10'!L51","v":0},{"$f":"'[1]10'!N51","v":0},{"$f":"'[1]10'!N51","v":0},{"$f":"'[1]10'!Q51","v":0},{"$f":"'[1]10'!Q51","v":0},0,{"$f":"'[1]10'!T51","v":0},{"$f":"'[1]10'!T51","v":0},0,{"$f":"'[1]10'!V51","v":0},{"$f":"'[1]10'!V51","v":0},0]
[1,"EX1123",null,null,null,"Computer services",null,null,{"$f":"'[1]10'!J52","v":0},{"$f":"'[1]10'!L52","v":0},{"$f":"'[1]10'!N52","v":0},{"$f":"'[1]10'!N52","v":0},{"$f":"'[1]10'!Q52","v":0},{"$f":"'[1]10'!Q52","v":0},0,{"$f":"'[1]10'!T52","v":0},{"$f":"'[1]10'!T52","v":0},0,{"$f":"'[1]10'!V52","v":0},{"$f":"'[1]10'!V52","v":0},0]
[1,"EX1124",null,null,null,"Consultants: Business and advisory services",null,null,{"$f":"'[1]10'!J53","v":0},{"$f":"'[1]10'!L53","v":0},{"$f":"'[1]10'!N53","v":0},{"$f":"'[1]10'!N53","v":0},{"$f":"'[1]10'!Q53","v":0},{"$f":"'[1]10'!Q53","v":0},0,{"$f":"'[1]10'!T53","v":0},{"$f":"'[1]10'!T53","v":0},0,{"$f":"'[1]10'!V53","v":0},{"$f":"'[1]10'!V53","v":0},0]
[1,"EX1180",null,null,null,"Infrastructure and planning services",null,null,{"$f":"SUM(I55:I57)","v":0},0,0,0,0,0,{"$f":"SUM(N54-M54)","v":0},{"$f":"SUM(P55:P57)","v":0},{"$f":"SUM(Q55:Q57)","v":0},{"$f":"SUM(Q54-P54)","v":0},{"$f":"SUM(S55:S57)","v":0},{"$f":"SUM(T55:T57)","v":0},{"$f":"SUM(T54-S54)","v":0},{"$f":"SUM(V55:V57)","v":0}]
[1,"EX11801",null,null,null,"Maintenance and repairs: Buildings: Consultants",null,null,{"$f":"'[1]10'!J55","v":0},{"$f":"'[1]10'!L55","v":0},{"$f":"'[1]10'!N55","v":0},{"$f":"'[1]10'!N55","v":0},{"$f":"'[1]10'!Q55","v":0},{"$f":"'[1]10'!Q55","v":0},{"$f":"SUM(N55-M55)","v":0},{"$f":"'[1]10'!T55","v":0},{"$f":"'[1]10'!T55","v":0},{"$f":"SUM(Q55-P55)","v":0},{"$f":"'[1]10'!V55","v":0},{"$f":"'[1]10'!V55","v":0},0]
[1,"EX11802",null,null,null,"Maintenance and repairs: Other fixed structures: Consultants",null,null,{"$f":"'[1]10'!J56","v":0},{"$f":"'[1]10'!L56","v":0},{"$f":"'[1]10'!N56","v":0},{"$f":"'[1]10'!N56","v":0},{"$f":"'[1]10'!Q56","v":0},{"$f":"'[1]10'!Q56","v":0},0,{"$f":"'[1]10'!T56","v":0},{"$f":"'[1]10'!T56","v":0},0,{"$f":"'[1]10'!V56","v":0},{"$f":"'[1]10'!V56","v":0},0]
[1,"EX11803",null,null,null,"Other",null,null,{"$f":"'[1]10'!J57","v":0},{"$f":"'[1]10'!L57","v":0},{"$f":"'[1]10'!N57","v":0},{"$f":"'[1]10'!N57","v":0},{"$f":"'[1]10'!Q57","v":0},{"$f":"'[1]10'!Q57","v":0},0,{"$f":"'[1]10'!T57","v":0},{"$f":"'[1]10'!T57","v":0},0,{"$f":"'[1]10'!V57","v":0},{"$f":"'[1]10'!V57","v":0},0]
[1,"EX1164",null,null,null,"Laboratory services",null,null,{"$f":"'[1]10'!J58","v":0},{"$f":"'[1]10'!L58","v":0},{"$f":"'[1]10'!N58","v":0},{"$f":"'[1]10'!N58","v":0},{"$f":"'[1]10'!Q58","v":0},{"$f":"'[1]10'!Q58","v":0},0,{"$f":"'[1]10'!T58","v":0},{"$f":"'[1]10'!T58","v":0},0,{"$f":"'[1]10'!V58","v":0},{"$f":"'[1]10'!V58","v":0},0]
[1,"EX1162",null,null,null,"Legal services (G&S)",null,null,{"$f":"'[1]10'!J59","v":0},{"$f":"'[1]10'!L59","v":0},{"$f":"'[1]10'!N59","v":0},{"$f":"'[1]10'!N59","v":0},{"$f":"'[1]10'!Q59","v":0},{"$f":"'[1]10'!Q59","v":0},0,{"$f":"'[1]10'!T59","v":0},{"$f":"'[1]10'!T59","v":0},0,{"$f":"'[1]10'!V59","v":0},{"$f":"'[1]10'!V59","v":0},0]
[1,"EX1165",null,null,null,"Science and technological services",null,null,{"$f":"'[1]10'!J60","v":0},{"$f":"'[1]10'!L60","v":0},{"$f":"'[1]10'!N60","v":0},{"$f":"'[1]10'!N60","v":0},{"$f":"'[1]10'!Q60","v":0},{"$f":"'[1]10'!Q60","v":0},0,{"$f":"'[1]10'!T60","v":0},{"$f":"'[1]10'!T60","v":0},0,{"$f":"'[1]10'!V60","v":0},{"$f":"'[1]10'!V60","v":0},0]
[1,"EX1125",null,null,null,"Contractors",null,null,{"$f":"SUM(I62:I66,I72)","v":0},0,0,0,0,0,{"$f":"SUM(N61-M61)","v":0},{"$f":"SUM(P62:P66,P72)","v":0},{"$f":"SUM(Q62:Q66,Q72)","v":0},{"$f":"SUM(Q61-P61)","v":0},{"$f":"SUM(S62:S66,S72)","v":0},{"$f":"SUM(T62:T66,T72)","v":0},0,{"$f":"SUM(V62:V66,V72)","v":0}]
[1,"EX11251",null,null,null,"Maintenance and repairs of other fixed structures",null,null,{"$f":"'[1]10'!J62","v":0},{"$f":"'[1]10'!L62","v":0},{"$f":"'[1]10'!N62","v":0},{"$f":"'[1]10'!N62","v":0},{"$f":"'[1]10'!Q62","v":0},{"$f":"'[1]10'!Q62","v":0},0,{"$f":"'[1]10'!T62","v":0},{"$f":"'[1]10'!T62","v":0},0,{"$f":"'[1]10'!V62","v":0},{"$f":"'[1]10'!V62","v":0},0]
[1,"EX11252",null,null,null,"Maintenance and repairs of other machinery and equipment",null,null,{"$f":"'[1]10'!J63","v":0},{"$f":"'[1]10'!L63","v":0},{"$f":"'[1]10'!N63","v":0},{"$f":"'[1]10'!N63","v":0},{"$f":"'[1]10'!Q63","v":0},{"$f":"'[1]10'!Q63","v":0},0,{"$f":"'[1]10'!T63","v":0},{"$f":"'[1]10'!T63","v":0},0,{"$f":"'[1]10'!V63","v":0},{"$f":"'[1]10'!V63","v":0},0]
[1,"EX11253",null,null,null,"Maintenance and repairs of heritage buildings",null,null,{"$f":"'[1]10'!J64","v":0},{"$f":"'[1]10'!L64","v":0},{"$f":"'[1]10'!N64","v":0},{"$f":"'[1]10'!N64","v":0},{"$f":"'[1]10'!Q64","v":0},{"$f":"'[1]10'!Q64","v":0},0,{"$f":"'[1]10'!T64","v":0},{"$f":"'[1]10'!T64","v":0},0,{"$f":"'[1]10'!V64","v":0},{"$f":"'[1]10'!V64","v":0},0]
[1,"EX11254",null,null,null,"Maintenance and repairs of other heritage fixed structures",null,null,{"$f":"'[1]10'!J65","v":0},{"$f":"'[1]10'!L65","v":0},{"$f":"'[1]10'!N65","v":0},{"$f":"'[1]10'!N65","v":0},{"$f":"'[1]10'!Q65","v":0},{"$f":"'[1]10'!Q65","v":0},0,{"$f":"'[1]10'!T65","v":0},{"$f":"'[1]10'!T65","v":0},0,{"$f":"'[1]10'!V65","v":0},{"$f":"'[1]10'!V65","v":0},0]
[5,"EX11255",null,null,null,"South african social security agency payment contractors",null,null,{"$f":"SUM(I67:I71)","v":0},0,0,0,0,0,0,{"$f":"SUM(P67:P71)","v":0},{"$f":"SUM(Q67:Q71)","v":0},0,{"$f":"SUM(S67:S71)","v":0},{"$f":"SUM(T67:T71)","v":0},0,{"$f":"SUM(V67:V71)","v":0}]
[5,"EX112551",null,null,null,"SASSA Admin fees",null,null,{"$f":"'[1]10'!J67","v":0},{"$f":"'[1]10'!L67","v":0},{"$f":"'[1]10'!N67","v":0},{"$f":"'[1]10'!N67","v":0},{"$f":"'[1]10'!Q67","v":0},{"$f":"'[1]10'!Q67","v":0},{"$f":"SUM(N67-M67)","v":0},{"$f":"'[1]10'!T67","v":0},{"$f":"'[1]10'!T67","v":0},{"$f":"SUM(Q67-P67)","v":0},{"$f":"'[1]10'!V67","v":0},{"$f":"'[1]10'!V67","v":0},{"$f":"SUM(T67-S67)","v":0}]
[5,"EX112552",null,null,null,"SASSA Bankcard fees",null,null,{"$f":"'[1]10'!J68","v":0},{"$f":"'[1]10'!L68","v":0},{"$f":"'[1]10'!N68","v":0},{"$f":"'[1]10'!N68","v":0},{"$f":"'[1]10'!Q68","v":0},{"$f":"'[1]10'!Q68","v":0},0,{"$f":"'[1]10'!T68","v":0},{"$f":"'[1]10'!T68","v":0},0,{"$f":"'[1]10'!V68","v":0},{"$f":"'[1]10'!V68","v":0},0]
[5,"EX112553",null,null,null,"SASSA registration fees",null,null,{"$f":"'[1]10'!J69","v":0},{"$f":"'[1]10'!L69","v":0},{"$f":"'[1]10'!N69","v":0},{"$f":"'[1]10'!N69","v":0},{"$f":"'[1]10'!Q69","v":0},{"$f":"'[1]10'!Q69","v":0},0,{"$f":"'[1]10'!T69","v":0},{"$f":"'[1]10'!T69","v":0},0,{"$f":"'[1]10'!V69","v":0},{"$f":"'[1]10'!V69","v":0},0]
[5,"EX112554",null,null,null,"SASSA beneficiary fees",null,null,{"$f":"'[1]10'!J70","v":0},{"$f":"'[1]10'!L70","v":0},{"$f":"'[1]10'!N70","v":0},{"$f":"'[1]10'!N70","v":0},{"$f":"'[1]10'!Q70","v":0},{"$f":"'[1]10'!Q70","v":0},0,{"$f":"'[1]10'!T70","v":0},{"$f":"'[1]10'!T70","v":0},0,{"$f":"'[1]10'!V70","v":0},{"$f":"'[1]10'!V70","v":0},0]
[5,"EX112555",null,null,null,"SASSA help desk fees",null,null,{"$f":"'[1]10'!J71","v":0},{"$f":"'[1]10'!L71","v":0},{"$f":"'[1]10'!N71","v":0},{"$f":"'[1]10'!N71","v":0},{"$f":"'[1]10'!Q71","v":0},{"$f":"'[1]10'!Q71","v":0},0,{"$f":"'[1]10'!T71","v":0},{"$f":"'[1]10'!T71","v":0},0,{"$f":"'[1]10'!V71","v":0},{"$f":"'[1]10'!V71","v":0},0]
[1,"EX11256",null,null,null,"Other",null,null,{"$f":"'[1]10'!J72","v":0},{"$f":"'[1]10'!L72","v":0},{"$f":"'[1]10'!N72","v":0},{"$f":"'[1]10'!N72","v":0},{"$f":"'[1]10'!Q72","v":0},{"$f":"'[1]10'!Q72","v":0},0,{"$f":"'[1]10'!T72","v":0},{"$f":"'[1]10'!T72","v":0},0,{"$f":"'[1]10'!V72","v":0},{"$f":"'[1]10'!V72","v":0},0]
[1,"EX1121",null,null,null,"Agency and support/outsourced services",null,null,{"$f":"'[1]10'!J73","v":0},{"$f":"'[1]10'!L73","v":0},{"$f":"'[1]10'!N73","v":0},{"$f":"'[1]10'!N73","v":0},{"$f":"'[1]10'!Q73","v":0},{"$f":"'[1]10'!Q73","v":0},0,{"$f":"'[1]10'!T73","v":0},{"$f":"'[1]10'!T73","v":0},0,{"$f":"'[1]10'!V73","v":0},{"$f":"'[1]10'!V73","v":0},0]
[5,"EX11211",null,null,null,"     Of Which: Medical assessments",null,null,{"$f":"'[1]10'!J74","v":0},{"$f":"'[1]10'!L74","v":0},{"$f":"'[1]10'!N74","v":0},{"$f":"'[1]10'!N74","v":0},{"$f":"'[1]10'!Q74","v":0},{"$f":"'[1]10'!Q74","v":0},0,{"$f":"'[1]10'!T74","v":0},{"$f":"'[1]10'!T74","v":0},0,{"$f":"'[1]10'!V74","v":0},{"$f":"'[1]10'!V74","v":0},0]
[1,"EX1161",null,null,null,"Entertainment",null,null,{"$f":"'[1]10'!J75","v":0},{"$f":"'[1]10'!L75","v":0},{"$f":"'[1]10'!N75","v":0},{"$f":"'[1]10'!N75","v":0},{"$f":"'[1]10'!Q75","v":0},{"$f":"'[1]10'!Q75","v":0},0,{"$f":"'[1]10'!T75","v":0},{"$f":"'[1]10'!T75","v":0},0,{"$f":"'[1]10'!V75","v":0},{"$f":"'[1]10'!V75","v":0},0]
[1,"EX1166",null,null,null,"Fleet services (including government motor transport)",null,null,{"$f":"'[1]10'!J76","v":0},{"$f":"'[1]10'!L76","v":0},{"$f":"'[1]10'!N76","v":0},{"$f":"'[1]10'!N76","v":0},{"$f":"'[1]10'!Q76","v":0},{"$f":"'[1]10'!Q76","v":0},0,{"$f":"'[1]10'!T76","v":0},{"$f":"'[1]10'!T76","v":0},0,{"$f":"'[1]10'!V76","v":0},{"$f":"'[1]10'!V76","v":0},0]
[1,"EX1167",null,null,null,"Housing",null,null,{"$f":"'[1]10'!J77","v":0},{"$f":"'[1]10'!L77","v":0},{"$f":"'[1]10'!N77","v":0},{"$f":"'[1]10'!N77","v":0},{"$f":"'[1]10'!Q77","v":0},{"$f":"'[1]10'!Q77","v":0},0,{"$f":"'[1]10'!T77","v":0},{"$f":"'[1]10'!T77","v":0},0,{"$f":"'[1]10'!V77","v":0},{"$f":"'[1]10'!V77","v":0},0]
[1,"EX1168",null,null,null,"Inventory: Clothing material and accessories",null,null,{"$f":"'[1]10'!J78","v":0},{"$f":"'[1]10'!L78","v":0},{"$f":"'[1]10'!N78","v":0},{"$f":"'[1]10'!N78","v":0},{"$f":"'[1]10'!Q78","v":0},{"$f":"'[1]10'!Q78","v":0},0,{"$f":"'[1]10'!T78","v":0},{"$f":"'[1]10'!T78","v":0},0,{"$f":"'[1]10'!V78","v":0},{"$f":"'[1]10'!V78","v":0},0]
[1,"EX1169",null,null,null,"Inventory: Farming supplies",null,null,{"$f":"'[1]10'!J79","v":0},{"$f":"'[1]10'!L79","v":0},{"$f":"'[1]10'!N79","v":0},{"$f":"'[1]10'!N79","v":0},{"$f":"'[1]10'!Q79","v":0},{"$f":"'[1]10'!Q79","v":0},0,{"$f":"'[1]10'!T79","v":0},{"$f":"'[1]10'!T79","v":0},0,{"$f":"'[1]10'!V79","v":0},{"$f":"'[1]10'!V79","v":0},0]
[1,"EX1170",null,null,null,"Inventory: Food and food supplies",null,null,{"$f":"'[1]10'!J80","v":0},{"$f":"'[1]10'!L80","v":0},{"$f":"'[1]10'!N80","v":0},{"$f":"'[1]10'!N80","v":0},{"$f":"'[1]10'!Q80","v":0},{"$f":"'[1]10'!Q80","v":0},0,{"$f":"'[1]10'!T80","v":0},{"$f":"'[1]10'!T80","v":0},0,{"$f":"'[1]10'!V80","v":0},{"$f":"'[1]10'!V80","v":0},0]
[1,"EX1171",null,null,null,"Inventory: Fuel, oil and gas",null,null,{"$f":"'[1]10'!J81","v":0},{"$f":"'[1]10'!L81","v":0},{"$f":"'[1]10'!N81","v":0},{"$f":"'[1]10'!N81","v":0},{"$f":"'[1]10'!Q81","v":0},{"$f":"'[1]10'!Q81","v":0},0,{"$f":"'[1]10'!T81","v":0},{"$f":"'[1]10'!T81","v":0},0,{"$f":"'[1]10'!V81","v":0},{"$f":"'[1]10'!V81","v":0},0]
[1,"EX1172",null,null,null,"Inventory: Learner and teacher support material",null,null,{"$f":"'[1]10'!J82","v":0},{"$f":"'[1]10'!L82","v":0},{"$f":"'[1]10'!N82","v":0},{"$f":"'[1]10'!N82","v":0},{"$f":"'[1]10'!Q82","v":0},{"$f":"'[1]10'!Q82","v":0},0,{"$f":"'[1]10'!T82","v":0},{"$f":"'[1]10'!T82","v":0},0,{"$f":"'[1]10'!V82","v":0},{"$f":"'[1]10'!V82","v":0},0]
[1,"EX1126",null,null,null,"Inventory: Materials and supplies",null,null,{"$f":"'[1]10'!J83","v":0},{"$f":"'[1]10'!L83","v":0},{"$f":"'[1]10'!N83","v":0},{"$f":"'[1]10'!N83","v":0},{"$f":"'[1]10'!Q83","v":0},{"$f":"'[1]10'!Q83","v":0},0,{"$f":"'[1]10'!T83","v":0},{"$f":"'[1]10'!T83","v":0},0,{"$f":"'[1]10'!V83","v":0},{"$f":"'[1]10'!V83","v":0},0]
[1,"EX1173",null,null,null,"Inventory: Medical supplies",null,null,{"$f":"'[1]10'!J84","v":0},{"$f":"'[1]10'!L84","v":0},{"$f":"'[1]10'!N84","v":0},{"$f":"'[1]10'!N84","v":0},{"$f":"'[1]10'!Q84","v":0},{"$f":"'[1]10'!Q84","v":0},0,{"$f":"'[1]10'!T84","v":0},{"$f":"'[1]10'!T84","v":0},0,{"$f":"'[1]10'!V84","v":0},{"$f":"'[1]10'!V84","v":0},0]
[1,"EX1174",null,null,null,"Inventory: Medicine",null,null,{"$f":"'[1]10'!J85","v":0},{"$f":"'[1]10'!L85","v":0},{"$f":"'[1]10'!N85","v":0},{"$f":"'[1]10'!N85","v":0},{"$f":"'[1]10'!Q85","v":0},{"$f":"'[1]10'!Q85","v":0},0,{"$f":"'[1]10'!T85","v":0},{"$f":"'[1]10'!T85","v":0},0,{"$f":"'[1]10'!V85","v":0},{"$f":"'[1]10'!V85","v":0},0]
[1,"EX1175",null,null,null,"Medsas inventory interface",null,null,{"$f":"'[1]10'!J86","v":0},{"$f":"'[1]10'!L86","v":0},{"$f":"'[1]10'!N86","v":0},{"$f":"'[1]10'!N86","v":0},{"$f":"'[1]10'!Q86","v":0},{"$f":"'[1]10'!Q86","v":0},0,{"$f":"'[1]10'!T86","v":0},{"$f":"'[1]10'!T86","v":0},0,{"$f":"'[1]10'!V86","v":0},{"$f":"'[1]10'!V86","v":0},0]
[1,"EX1176",null,null,null,"Inventory: Other supplies",null,null,{"$f":"'[1]10'!J87","v":0},{"$f":"'[1]10'!L87","v":0},{"$f":"'[1]10'!N87","v":0},{"$f":"'[1]10'!N87","v":0},{"$f":"'[1]10'!Q87","v":0},{"$f":"'[1]10'!Q87","v":0},0,{"$f":"'[1]10'!T87","v":0},{"$f":"'[1]10'!T87","v":0},0,{"$f":"'[1]10'!V87","v":0},{"$f":"'[1]10'!V87","v":0},0]
[1,"EX1177",null,null,null,"Consumable supplies",null,null,{"$f":"'[1]10'!J88","v":0},{"$f":"'[1]10'!L88","v":0},{"$f":"'[1]10'!N88","v":0},{"$f":"'[1]10'!N88","v":0},{"$f":"'[1]10'!Q88","v":0},{"$f":"'[1]10'!Q88","v":0},0,{"$f":"'[1]10'!T88","v":0},{"$f":"'[1]10'!T88","v":0},0,{"$f":"'[1]10'!V88","v":0},{"$f":"'[1]10'!V88","v":0},0]
[1,"EX1144",null,null,null,"Consumables: Stationery, printing and office supplies",null,null,{"$f":"'[1]10'!J89","v":0},{"$f":"'[1]10'!L89","v":0},{"$f":"'[1]10'!N89","v":0},{"$f":"'[1]10'!N89","v":0},{"$f":"'[1]10'!Q89","v":0},{"$f":"'[1]10'!Q89","v":0},0,{"$f":"'[1]10'!T89","v":0},{"$f":"'[1]10'!T89","v":0},0,{"$f":"'[1]10'!V89","v":0},{"$f":"'[1]10'!V89","v":0},0]
[1,"EX1127",null,null,null,"Operating leases",null,null,{"$f":"'[1]10'!J90","v":0},{"$f":"'[1]10'!L90","v":0},{"$f":"'[1]10'!N90","v":0},{"$f":"'[1]10'!N90","v":0},{"$f":"'[1]10'!Q90","v":0},{"$f":"'[1]10'!Q90","v":0},0,{"$f":"'[1]10'!T90","v":0},{"$f":"'[1]10'!T90","v":0},0,{"$f":"'[1]10'!V90","v":0},{"$f":"'[1]10'!V90","v":0},0]
[1,"EX1178",null,null,null,"Rental and hiring",null,null,{"$f":"'[1]10'!J91","v":0},{"$f":"'[1]10'!L91","v":0},{"$f":"'[1]10'!N91","v":0},{"$f":"'[1]10'!N91","v":0},{"$f":"'[1]10'!Q91","v":0},{"$f":"'[1]10'!Q91","v":0},0,{"$f":"'[1]10'!T91","v":0},{"$f":"'[1]10'!T91","v":0},0,{"$f":"'[1]10'!V91","v":0},{"$f":"'[1]10'!V91","v":0},0]
[1,"EX1145",null,null,null,"Property payments",null,null,{"$f":"'[1]10'!J92","v":0},{"$f":"'[1]10'!L92","v":0},{"$f":"'[1]10'!N92","v":0},{"$f":"'[1]10'!N92","v":0},{"$f":"'[1]10'!Q92","v":0},{"$f":"'[1]10'!Q92","v":0},0,{"$f":"'[1]10'!T92","v":0},{"$f":"'[1]10'!T92","v":0},0,{"$f":"'[1]10'!V92","v":0},{"$f":"'[1]10'!V92","v":0},0]
[1,"EX1179",null,null,null,"Transport provided: Internal activities",null,null,{"$f":"'[1]10'!J93","v":0},{"$f":"'[1]10'!L93","v":0},{"$f":"'[1]10'!N93","v":0},{"$f":"'[1]10'!N93","v":0},{"$f":"'[1]10'!Q93","v":0},{"$f":"'[1]10'!Q93","v":0},0,{"$f":"'[1]10'!T93","v":0},{"$f":"'[1]10'!T93","v":0},0,{"$f":"'[1]10'!V93","v":0},{"$f":"'[1]10'!V93","v":0},0]
[1,"EX1131",null,null,null,"Travel and subsistence",null,null,{"$f":"'[1]10'!J94","v":0},{"$f":"'[1]10'!L94","v":0},{"$f":"'[1]10'!N94","v":0},{"$f":"'[1]10'!N94","v":0},{"$f":"'[1]10'!Q94","v":0},{"$f":"'[1]10'!Q94","v":0},0,{"$f":"'[1]10'!T94","v":0},{"$f":"'[1]10'!T94","v":0},0,{"$f":"'[1]10'!V94","v":0},{"$f":"'[1]10'!V94","v":0},0]
[1,"EX1130",null,null,null,"Training and development",null,null,{"$f":"'[1]10'!J95","v":0},{"$f":"'[1]10'!L95","v":0},{"$f":"'[1]10'!N95","v":0},{"$f":"'[1]10'!N95","v":0},{"$f":"'[1]10'!Q95","v":0},{"$f":"'[1]10'!Q95","v":0},0,{"$f":"'[1]10'!T95","v":0},{"$f":"'[1]10'!T95","v":0},0,{"$f":"'[1]10'!V95","v":0},{"$f":"'[1]10'!V95","v":0},0]
[1,"EX1132",null,null,null,"Operating payments",null,null,{"$f":"'[1]10'!J96","v":0},{"$f":"'[1]10'!L96","v":0},{"$f":"'[1]10'!N96","v":0},{"$f":"'[1]10'!N96","v":0},{"$f":"'[1]10'!Q96","v":0},{"$f":"'[1]10'!Q96","v":0},0,{"$f":"'[1]10'!T96","v":0},{"$f":"'[1]10'!T96","v":0},0,{"$f":"'[1]10'!V96","v":0},{"$f":"'[1]10'!V96","v":0},0]
[1,"EX1146",null,null,null,"Venues and facilities",null,null,{"$f":"'[1]10'!J97","v":0},{"$f":"'[1]10'!L97","v":0},{"$f":"'[1]10'!N97","v":0},{"$f":"'[1]10'!N97","v":0},{"$f":"'[1]10'!Q97","v":0},{"$f":"'[1]10'!Q97","v":0},0,{"$f":"'[1]10'!T97","v":0},{"$f":"'[1]10'!T97","v":0},0,{"$f":"'[1]10'!V97","v":0},{"$f":"'[1]10'!V97","v":0},0]
[1,"EX113",null,null,null,"Depreciation",null,null,{"$f":"'[1]10'!J98","v":0},{"$f":"'[1]10'!L98","v":0},{"$f":"'[1]10'!N98","v":0},{"$f":"'[1]10'!N98","v":0},{"$f":"'[1]10'!Q98","v":0},{"$f":"'[1]10'!Q98","v":0},0,{"$f":"'[1]10'!T98","v":0},{"$f":"'[1]10'!T98","v":0},0,{"$f":"'[1]10'!V98","v":0},{"$f":"'[1]10'!V98","v":0},0]
[1,"EX114",null,null,null,"Losses from",null,null,{"$f":"SUM(I100:I101,I104)","v":0},0,0,0,0,0,{"$f":"SUM(N99-M99)","v":0},{"$f":"SUM(P100:P101,P104)","v":0},{"$f":"SUM(Q100:Q101,Q104)","v":0},{"$f":"SUM(Q99-P99)","v":0},{"$f":"SUM(S100:S101,S104)","v":0},{"$f":"SUM(T100:T101,T104)","v":0},{"$f":"SUM(T99-S99)","v":0},{"$f":"SUM(V100:V101,V104)","v":0}]
[1,"EX1141",null,null,null,"Sale of fixed assets",null,null,{"$f":"'[1]10'!J100","v":0},{"$f":"'[1]10'!L100","v":0},{"$f":"'[1]10'!N100","v":0},{"$f":"'[1]10'!N100","v":0},{"$f":"'[1]10'!Q100","v":0},{"$f":"'[1]10'!Q100","v":0},0,{"$f":"'[1]10'!T100","v":0},{"$f":"'[1]10'!T100","v":0},0,{"$f":"'[1]10'!V100","v":0},{"$f":"'[1]10'!V100","v":0},0]
[1,"EX1142",null,null,null,"Impairments and adjustments to fair value",null,null,{"$f":"SUM(I102:I103)","v":0},0,0,0,0,0,0,{"$f":"SUM(P102:P103)","v":0},{"$f":"SUM(Q102:Q103)","v":0},0,{"$f":"SUM(S102:S103)","v":0},{"$f":"SUM(T102:T103)","v":0},0,{"$f":"SUM(V102:V103)","v":0}]
[1,"EX11421",null,null,null,"Adjustments to fair value of assets",null,null,{"$f":"'[1]10'!J102","v":0},{"$f":"'[1]10'!L102","v":0},{"$f":"'[1]10'!N102","v":0},{"$f":"'[1]10'!N102","v":0},{"$f":"'[1]10'!Q102","v":0},{"$f":"'[1]10'!Q102","v":0},0,{"$f":"'[1]10'!T102","v":0},{"$f":"'[1]10'!T102","v":0},0,{"$f":"'[1]10'!V102","v":0},{"$f":"'[1]10'!V102","v":0},0]
[1,"EX11422",null,null,null,"Impairments to assets",null,null,{"$f":"'[1]10'!J103","v":0},{"$f":"'[1]10'!L103","v":0},{"$f":"'[1]10'!N103","v":0},{"$f":"'[1]10'!N103","v":0},{"$f":"'[1]10'!Q103","v":0},{"$f":"'[1]10'!Q103","v":0},0,{"$f":"'[1]10'!T103","v":0},{"$f":"'[1]10'!T103","v":0},0,{"$f":"'[1]10'!V103","v":0},{"$f":"'[1]10'!V103","v":0},0]
[1,"EX1143",null,null,null,"Other",null,null,{"$f":"'[1]10'!J104","v":0},{"$f":"'[1]10'!L104","v":0},{"$f":"'[1]10'!N104","v":0},{"$f":"'[1]10'!N104","v":0},{"$f":"'[1]10'!Q104","v":0},{"$f":"'[1]10'!Q104","v":0},0,{"$f":"'[1]10'!T104","v":0},{"$f":"'[1]10'!T104","v":0},0,{"$f":"'[1]10'!V104","v":0},{"$f":"'[1]10'!V104","v":0},0]
[1,"EX115",null,null,null,"Interest, dividends and rent on land",null,null,{"$f":"SUM(I106:I108)","v":0},0,0,0,0,0,0,{"$f":"SUM(P106:P108)","v":0},{"$f":"SUM(Q106:Q108)","v":0},0,{"$f":"SUM(S106:S108)","v":0},{"$f":"SUM(T106:T108)","v":0},0,{"$f":"SUM(V106:V108)","v":0}]
[1,"EX1151",null,null,null,"Interest",null,null,{"$f":"'[1]10'!J106","v":0},{"$f":"'[1]10'!L106","v":0},{"$f":"'[1]10'!N106","v":0},{"$f":"'[1]10'!N106","v":0},{"$f":"'[1]10'!Q106","v":0},{"$f":"'[1]10'!Q106","v":0},0,{"$f":"'[1]10'!T106","v":0},{"$f":"'[1]10'!T106","v":0},0,{"$f":"'[1]10'!V106","v":0},{"$f":"'[1]10'!V106","v":0},0]
[1,"EX1152",null,null,null,"Dividends",null,null,{"$f":"'[1]10'!J107","v":0},{"$f":"'[1]10'!L107","v":0},{"$f":"'[1]10'!N107","v":0},{"$f":"'[1]10'!N107","v":0},{"$f":"'[1]10'!Q107","v":0},{"$f":"'[1]10'!Q107","v":0},0,{"$f":"'[1]10'!T107","v":0},{"$f":"'[1]10'!T107","v":0},0,{"$f":"'[1]10'!V107","v":0},{"$f":"'[1]10'!V107","v":0},0]
[1,"EX1153",null,null,null,"Rent on land",null,null,{"$f":"'[1]10'!J108","v":0},{"$f":"'[1]10'!L108","v":0},{"$f":"'[1]10'!N108","v":0},{"$f":"'[1]10'!N108","v":0},{"$f":"'[1]10'!Q108","v":0},{"$f":"'[1]10'!Q108","v":0},0,{"$f":"'[1]10'!T108","v":0},{"$f":"'[1]10'!T108","v":0},0,{"$f":"'[1]10'!V108","v":0},{"$f":"'[1]10'!V108","v":0},0]
[1,"EX12",null,null,null,"Transfers and subsidies",null,null,{"$f":"SUM(I110,I121,I132:I135)","v":0},0,0,0,0,0,0,{"$f":"SUM(P110,P121,P132:P135)","v":0},{"$f":"SUM(Q110,Q121,Q132:Q135)","v":0},0,{"$f":"SUM(S110,S121,S132:S135)","v":0},{"$f":"SUM(T110,T121,T132:T135)","v":0},0,{"$f":"SUM(V110,V121,V132:V135)","v":0}]
[2,"EX121",null,null,null,"Employer Grant (SETAs only)",null,null,{"$f":"SUM(I111,I117,I120)","v":0},0,0,0,0,0,0,{"$f":"SUM(P111,P117,P120)","v":0},{"$f":"SUM(Q111,Q117,Q120)","v":0},0,{"$f":"SUM(S111,S117,S120)","v":0},{"$f":"SUM(T111,T117,T120)","v":0},0,{"$f":"SUM(V111,V117,V120)","v":0}]
[1,"EX122",null,null,null,"Other government units",null,null,{"$f":"SUM(I112:I116)","v":0},0,0,0,0,0,0,{"$f":"SUM(P112:P116)","v":0},{"$f":"SUM(Q112:Q116)","v":0},0,{"$f":"SUM(S112:S116)","v":0},{"$f":"SUM(T112:T116)","v":0},0,{"$f":"SUM(V112:V116)","v":0}]
[1,"EX1221",null,null,null,"National government",null,null,{"$f":"'[1]10'!J112","v":0},{"$f":"'[1]10'!L112","v":0},{"$f":"'[1]10'!N112","v":0},{"$f":"'[1]10'!N112","v":0},{"$f":"'[1]10'!Q112","v":0},{"$f":"'[1]10'!Q112","v":0},0,{"$f":"'[1]10'!T112","v":0},{"$f":"'[1]10'!T112","v":0},0,{"$f":"'[1]10'!V112","v":0},{"$f":"'[1]10'!V112","v":0},0]
[1,"EX1222",null,null,null,"Departmental agencies and accounts",null,null,{"$f":"'[1]10'!J113","v":0},{"$f":"'[1]10'!L113","v":0},{"$f":"'[1]10'!N113","v":0},{"$f":"'[1]10'!N113","v":0},{"$f":"'[1]10'!Q113","v":0},{"$f":"'[1]10'!Q113","v":0},0,{"$f":"'[1]10'!T113","v":0},{"$f":"'[1]10'!T113","v":0},0,{"$f":"'[1]10'!V113","v":0},{"$f":"'[1]10'!V113","v":0},0]
[1,"EX1223",null,null,null,"Provinces",null,null,{"$f":"'[1]10'!J114","v":0},{"$f":"'[1]10'!L114","v":0},{"$f":"'[1]10'!N114","v":0},{"$f":"'[1]10'!N114","v":0},{"$f":"'[1]10'!Q114","v":0},{"$f":"'[1]10'!Q114","v":0},0,{"$f":"'[1]10'!T114","v":0},{"$f":"'[1]10'!T114","v":0},0,{"$f":"'[1]10'!V114","v":0},{"$f":"'[1]10'!V114","v":0},0]
[1,"EX1224",null,null,null,"Municipalities",null,null,{"$f":"'[1]10'!J115","v":0},{"$f":"'[1]10'!L115","v":0},{"$f":"'[1]10'!N115","v":0},{"$f":"'[1]10'!N115","v":0},{"$f":"'[1]10'!Q115","v":0},{"$f":"'[1]10'!Q115","v":0},0,{"$f":"'[1]10'!T115","v":0},{"$f":"'[1]10'!T115","v":0},0,{"$f":"'[1]10'!V115","v":0},{"$f":"'[1]10'!V115","v":0},0]
[2,"EX1225",null,null,null,"National Skills Fund",null,null,{"$f":"'[1]10'!J116","v":0},{"$f":"'[1]10'!L116","v":0},{"$f":"'[1]10'!N116","v":0},{"$f":"'[1]10'!N116","v":0},{"$f":"'[1]10'!Q116","v":0},{"$f":"'[1]10'!Q116","v":0},0,{"$f":"'[1]10'!T116","v":0},{"$f":"'[1]10'!T116","v":0},0,{"$f":"'[1]10'!V116","v":0},{"$f":"'[1]10'!V116","v":0},0]
[1,"EX123",null,null,null,"Public corporations and private enterprises (subsidies and other transfers)",null,null,{"$f":"SUM(I118:I119)","v":0},0,0,0,0,0,0,{"$f":"SUM(P118:P119)","v":0},{"$f":"SUM(Q118:Q119)","v":0},0,{"$f":"SUM(S118:S119)","v":0},{"$f":"SUM(T118:T119)","v":0},0,{"$f":"SUM(V118:V119)","v":0}]
[1,"EX1231",null,null,null,"Public corporations",null,null,{"$f":"'[1]10'!J118","v":0},{"$f":"'[1]10'!L118","v":0},{"$f":"'[1]10'!N118","v":0},{"$f":"'[1]10'!N118","v":0},{"$f":"'[1]10'!Q118","v":0},{"$f":"'[1]10'!Q118","v":0},0,{"$f":"'[1]10'!T118","v":0},{"$f":"'[1]10'!T118","v":0},0,{"$f":"'[1]10'!V118","v":0},{"$f":"'[1]10'!V118","v":0},0]
[1,"EX1232",null,null,null,"Private enterprises",null,null,{"$f":"'[1]10'!J119","v":0},{"$f":"'[1]10'!L119","v":0},{"$f":"'[1]10'!N119","v":0},{"$f":"'[1]10'!N119","v":0},{"$f":"'[1]10'!Q119","v":0},{"$f":"'[1]10'!Q119","v":0},0,{"$f":"'[1]10'!T119","v":0},{"$f":"'[1]10'!T119","v":0},0,{"$f":"'[1]10'!V119","v":0},{"$f":"'[1]10'!V119","v":0},0]
[2,"EX124",null,null,null,"Households and non government units",null,null,{"$f":"'[1]10'!J120","v":0},{"$f":"'[1]10'!L120","v":0},{"$f":"'[1]10'!N120","v":0},{"$f":"'[1]10'!N120","v":0},{"$f":"'[1]10'!Q120","v":0},{"$f":"'[1]10'!Q120","v":0},0,{"$f":"'[1]10'!T120","v":0},{"$f":"'[1]10'!T120","v":0},0,{"$f":"'[1]10'!V120","v":0},{"$f":"'[1]10'!V120","v":0},0]
[2,"EX125",null,null,null,"Discretionary Grant (SETAs only)",null,null,{"$f":"SUM(I122,I128,I131)","v":0},0,0,0,0,0,0,{"$f":"SUM(P122,P128,P131)","v":0},{"$f":"SUM(Q122,Q128,Q131)","v":0},0,{"$f":"SUM(S122,S128,S131)","v":0},{"$f":"SUM(T122,T128,T131)","v":0},0,{"$f":"SUM(V122,V128,V131)","v":0}]
[2,"EX126",null,null,null,"Other government units",null,null,{"$f":"SUM(I123:I127)","v":0},0,0,0,0,0,0,{"$f":"SUM(P123:P127)","v":0},{"$f":"SUM(Q123:Q127)","v":0},0,{"$f":"SUM(S123:S127)","v":0},{"$f":"SUM(T123:T127)","v":0},0,{"$f":"SUM(V123:V127)","v":0}]
[2,"EX1261",null,null,null,"National government",null,null,{"$f":"'[1]10'!J123","v":0},{"$f":"'[1]10'!L123","v":0},{"$f":"'[1]10'!N123","v":0},{"$f":"'[1]10'!N123","v":0},{"$f":"'[1]10'!Q123","v":0},{"$f":"'[1]10'!Q123","v":0},0,{"$f":"'[1]10'!T123","v":0},{"$f":"'[1]10'!T123","v":0},0,{"$f":"'[1]10'!V123","v":0},{"$f":"'[1]10'!V123","v":0},0]
[2,"EX1262",null,null,null,"Departmental agencies and accounts",null,null,{"$f":"'[1]10'!J124","v":0},{"$f":"'[1]10'!L124","v":0},{"$f":"'[1]10'!N124","v":0},{"$f":"'[1]10'!N124","v":0},{"$f":"'[1]10'!Q124","v":0},{"$f":"'[1]10'!Q124","v":0},0,{"$f":"'[1]10'!T124","v":0},{"$f":"'[1]10'!T124","v":0},0,{"$f":"'[1]10'!V124","v":0},{"$f":"'[1]10'!V124","v":0},0]
[2,"EX1263",null,null,null,"Provinces",null,null,{"$f":"'[1]10'!J125","v":0},{"$f":"'[1]10'!L125","v":0},{"$f":"'[1]10'!N125","v":0},{"$f":"'[1]10'!N125","v":0},{"$f":"'[1]10'!Q125","v":0},{"$f":"'[1]10'!Q125","v":0},0,{"$f":"'[1]10'!T125","v":0},{"$f":"'[1]10'!T125","v":0},0,{"$f":"'[1]10'!V125","v":0},{"$f":"'[1]10'!V125","v":0},0]
[2,"EX1264",null,null,null,"Municipalities",null,null,{"$f":"'[1]10'!J126","v":0},{"$f":"'[1]10'!L126","v":0},{"$f":"'[1]10'!N126","v":0},{"$f":"'[1]10'!N126","v":0},{"$f":"'[1]10'!Q126","v":0},{"$f":"'[1]10'!Q126","v":0},0,{"$f":"'[1]10'!T126","v":0},{"$f":"'[1]10'!T126","v":0},0,{"$f":"'[1]10'!V126","v":0},{"$f":"'[1]10'!V126","v":0},0]
[2,"EX1265",null,null,null,"National Skills Fund",null,null,{"$f":"'[1]10'!J127","v":0},{"$f":"'[1]10'!L127","v":0},{"$f":"'[1]10'!N127","v":0},{"$f":"'[1]10'!N127","v":0},{"$f":"'[1]10'!Q127","v":0},{"$f":"'[1]10'!Q127","v":0},0,{"$f":"'[1]10'!T127","v":0},{"$f":"'[1]10'!T127","v":0},0,{"$f":"'[1]10'!V127","v":0},{"$f":"'[1]10'!V127","v":0},0]
[2,"EX127",null,null,null,"Public corporations and private enterprises (subsidies and other transfers)",null,null,{"$f":"SUM(I129:I130)","v":0},0,0,0,0,0,0,{"$f":"SUM(P129:P130)","v":0},{"$f":"SUM(Q129:Q130)","v":0},0,{"$f":"SUM(S129:S130)","v":0},{"$f":"SUM(T129:T130)","v":0},0,{"$f":"SUM(V129:V130)","v":0}]
[2,"EX1271",null,null,null,"Public corporations",null,null,{"$f":"'[1]10'!J129","v":0},{"$f":"'[1]10'!L129","v":0},{"$f":"'[1]10'!N129","v":0},{"$f":"'[1]10'!N129","v":0},{"$f":"'[1]10'!Q129","v":0},{"$f":"'[1]10'!Q129","v":0},0,{"$f":"'[1]10'!T129","v":0},{"$f":"'[1]10'!T129","v":0},0,{"$f":"'[1]10'!V129","v":0},{"$f":"'[1]10'!V129","v":0},{"$f":"SUM(T129-S129)","v":0}]
[2,"EX1272",null,null,null,"Private enterprises",null,null,{"$f":"'[1]10'!J130","v":0},{"$f":"'[1]10'!L130","v":0},{"$f":"'[1]10'!N130","v":0},{"$f":"'[1]10'!N130","v":0},{"$f":"'[1]10'!Q130","v":0},{"$f":"'[1]10'!Q130","v":0},0,{"$f":"'[1]10'!T130","v":0},{"$f":"'[1]10'!T130","v":0},0,{"$f":"'[1]10'!V130","v":0},{"$f":"'[1]10'!V130","v":0},0]
[2,"EX128",null,null,null,"Households and non government units",null,null,{"$f":"'[1]10'!J131","v":0},{"$f":"'[1]10'!L131","v":0},{"$f":"'[1]10'!N131","v":0},{"$f":"'[1]10'!N131","v":0},{"$f":"'[1]10'!Q131","v":0},{"$f":"'[1]10'!Q131","v":0},0,{"$f":"'[1]10'!T131","v":0},{"$f":"'[1]10'!T131","v":0},0,{"$f":"'[1]10'!V131","v":0},{"$f":"'[1]10'!V131","v":0},0]
[1,"EX129",null,null,null,"Higher education institutions",null,null,{"$f":"'[1]10'!J132","v":0},{"$f":"'[1]10'!L132","v":0},{"$f":"'[1]10'!N132","v":0},{"$f":"'[1]10'!N132","v":0},{"$f":"'[1]10'!Q132","v":0},{"$f":"'[1]10'!Q132","v":0},0,{"$f":"'[1]10'!T132","v":0},{"$f":"'[1]10'!T132","v":0},0,{"$f":"'[1]10'!V132","v":0},{"$f":"'[1]10'!V132","v":0},0]
[1,"EX130",null,null,null,"Foreign governments and international organisations ",null,null,{"$f":"'[1]10'!J133","v":0},{"$f":"'[1]10'!L133","v":0},{"$f":"'[1]10'!N133","v":0},{"$f":"'[1]10'!N133","v":0},{"$f":"'[1]10'!Q133","v":0},{"$f":"'[1]10'!Q133","v":0},0,{"$f":"'[1]10'!T133","v":0},{"$f":"'[1]10'!T133","v":0},0,{"$f":"'[1]10'!V133","v":0},{"$f":"'[1]10'!V133","v":0},0]
[1,"EX131",null,null,null,"Non-profit institutions",null,null,{"$f":"'[1]10'!J134","v":0},{"$f":"'[1]10'!L134","v":0},{"$f":"'[1]10'!N134","v":0},{"$f":"'[1]10'!N134","v":0},{"$f":"'[1]10'!Q134","v":0},{"$f":"'[1]10'!Q134","v":0},0,{"$f":"'[1]10'!T134","v":0},{"$f":"'[1]10'!T134","v":0},0,{"$f":"'[1]10'!V134","v":0},{"$f":"'[1]10'!V134","v":0},0]
[1,"EX132",null,null,null,"Households",null,null,{"$f":"SUM(I136:I137)","v":0},0,0,0,0,0,{"$f":"SUM(N135-M135)","v":0},{"$f":"SUM(P136:P137)","v":0},{"$f":"SUM(Q136:Q137)","v":0},{"$f":"SUM(Q135-P135)","v":0},{"$f":"SUM(S136:S137)","v":0},{"$f":"SUM(T136:T137)","v":0},{"$f":"SUM(T135-S135)","v":0},{"$f":"SUM(V136:V137)","v":0}]
[1,"EX1301",null,null,null,"Social benefits ",null,null,{"$f":"'[1]10'!J136","v":0},{"$f":"'[1]10'!L136","v":0},{"$f":"'[1]10'!N136","v":0},{"$f":"'[1]10'!N136","v":0},{"$f":"'[1]10'!Q136","v":0},{"$f":"'[1]10'!Q136","v":0},0,{"$f":"'[1]10'!T136","v":0},{"$f":"'[1]10'!T136","v":0},0,{"$f":"'[1]10'!V136","v":0},{"$f":"'[1]10'!V136","v":0},0]
[1,"EX1302",null,null,null,"Other transfers to households",null,null,{"$f":"'[1]10'!J137","v":0},{"$f":"'[1]10'!L137","v":0},{"$f":"'[1]10'!N137","v":0},{"$f":"'[1]10'!N137","v":0},{"$f":"'[1]10'!Q137","v":0},{"$f":"'[1]10'!Q137","v":0},0,{"$f":"'[1]10'!T137","v":0},{"$f":"'[1]10'!T137","v":0},0,{"$f":"'[1]10'!V137","v":0},{"$f":"'[1]10'!V137","v":0},0]
[1,"EX13",null,null,null,"Tax payment",null,null,{"$f":"'[1]10'!J138","v":0},{"$f":"'[1]10'!L138","v":0},{"$f":"'[1]10'!N138","v":0},{"$f":"'[1]10'!N138","v":0},{"$f":"'[1]10'!Q138","v":0},{"$f":"'[1]10'!Q138","v":0},0,{"$f":"'[1]10'!T138","v":0},{"$f":"'[1]10'!T138","v":0},0,{"$f":"'[1]10'!V138","v":0},{"$f":"'[1]10'!V138","v":0},0]
[1,"EX14",null,null,null,"Outside shareholders Interest",null,null,{"$f":"'[1]10'!J139","v":0},{"$f":"'[1]10'!L139","v":0},{"$f":"'[1]10'!N139","v":0},{"$f":"'[1]10'!N139","v":0},{"$f":"'[1]10'!Q139","v":0},{"$f":"'[1]10'!Q139","v":0},0,{"$f":"'[1]10'!T139","v":0},{"$f":"'[1]10'!T139","v":0},0,{"$f":"'[1]10'!V139","v":0},{"$f":"'[1]10'!V139","v":0},0]
[1,"EX15",null,null,null,"Total Expenditure",null,null,{"$f":"SUM(I39,I109,I138:I139)","v":0},0,0,0,0,0,0,{"$f":"SUM(P39,P109,P138:P139)","v":0},{"$f":"SUM(Q39,Q109,Q138:Q139)","v":0},0,{"$f":"SUM(S39,S109,S138:S139)","v":0},{"$f":"SUM(T39,T109,T138:T139)","v":0},0,{"$f":"SUM(V39,V109,V138:V139)","v":0}]
[1]
[1,null,null,null,null,"Objective less Expenditure",null,null,{"$f":"ROUND(IF(I37-I140>0,IF(I37-I140<1,0,I37-I140),I37-I140),0)","v":0},0,null,0,0,0,{"$f":"ROUND(IF(O37-O140>0,IF(O37-O140<1,0,O37-O140),O37-O140),0)","v":0},0,0,0,0,0,0,0]
[1]

{"sheet":"11","index":15,"n_rows":143,"n_cols":23,"rows_kept":143,"cut":false,"hidden":false,"merged":[[31,12,31,14],[31,15,31,17],[31,18,31,20],[31,10,31,11]]}
[]
[]
[]
[]
[]
[null,null,null,null,null,"PE No",{"$f":"Settings!O2","v":"PE126"}]
[null,null,null,null,null,"Entity name",{"$f":"Settings!$E$2","v":"South African Revenue Service"}]
[]
[null,null,null,null,null,"Performance and operations information"]
["ItemCat","Item code","Hide/unhide",null,null,"Activity/Output/Outcome/Efficiency Indicator","MTDP Outcomes",null,{"$f":"MyYearM3","v":"2022/23"},{"$f":"MyYearM2","v":"2023/24"},{"$f":"MyYearM1","v":"2024/25"},{"$f":"MyYear0","v":"2025/26"},{"$f":"MyYearP1","v":"2026/27"},{"$f":"MyYearP2","v":"2027/28"},{"$f":"MyYearP3","v":"2028/29"},"Related Objectives","Add to 'Performance Indicators' Sheet","Comments"]
[1,null,null,null,null,{"$f":"'[1]11'!F11","v":0},{"$f":"'[1]11'!G11","v":0},0,{"$f":"'[1]11'!J11","v":0},{"$f":"'[1]11'!K11","v":0},{"$f":"'[1]11'!L11","v":0},{"$f":"'[1]11'!M11","v":0},{"$f":"'[1]11'!N11","v":0},{"$f":"'[1]11'!O11","v":0},null,{"$f":"'[1]11'!P11","v":0},{"$f":"'[1]11'!Q11","v":0},{"$f":"'[1]11'!R11","v":0}]
[1,null,null,null,null,{"$f":"'[1]11'!F12","v":0},{"$f":"'[1]11'!G12","v":0},0,{"$f":"'[1]11'!J12","v":0},{"$f":"'[1]11'!K12","v":0},{"$f":"'[1]11'!L12","v":0},{"$f":"'[1]11'!M12","v":0},{"$f":"'[1]11'!N12","v":0},{"$f":"'[1]11'!O12","v":0},null,{"$f":"'[1]11'!P12","v":0},{"$f":"'[1]11'!Q12","v":0},{"$f":"'[1]11'!R12","v":0}]
[1,null,null,null,null,{"$f":"'[1]11'!F13","v":0},{"$f":"'[1]11'!G13","v":0},0,{"$f":"'[1]11'!J13","v":0},{"$f":"'[1]11'!K13","v":0},{"$f":"'[1]11'!L13","v":0},{"$f":"'[1]11'!M13","v":0},{"$f":"'[1]11'!N13","v":0},{"$f":"'[1]11'!O13","v":0},null,{"$f":"'[1]11'!P13","v":0},{"$f":"'[1]11'!Q13","v":0},{"$f":"'[1]11'!R13","v":0}]
[1,null,null,null,null,{"$f":"'[1]11'!F14","v":0},{"$f":"'[1]11'!G14","v":0},0,{"$f":"'[1]11'!J14","v":0},{"$f":"'[1]11'!K14","v":0},{"$f":"'[1]11'!L14","v":0},{"$f":"'[1]11'!M14","v":0},{"$f":"'[1]11'!N14","v":0},{"$f":"'[1]11'!O14","v":0},null,{"$f":"'[1]11'!P14","v":0},{"$f":"'[1]11'!Q14","v":0},{"$f":"'[1]11'!R14","v":0}]
[1,null,null,null,null,{"$f":"'[1]11'!F15","v":0},{"$f":"'[1]11'!G15","v":0},0,{"$f":"'[1]11'!J15","v":0},{"$f":"'[1]11'!K15","v":0},{"$f":"'[1]11'!L15","v":0},{"$f":"'[1]11'!M15","v":0},{"$f":"'[1]11'!N15","v":0},{"$f":"'[1]11'!O15","v":0},null,{"$f":"'[1]11'!P15","v":0},{"$f":"'[1]11'!Q15","v":0},{"$f":"'[1]11'!R15","v":0}]
[1,null,null,null,null,{"$f":"'[1]11'!F16","v":0},{"$f":"'[1]11'!G16","v":0},0,{"$f":"'[1]11'!J16","v":0},{"$f":"'[1]11'!K16","v":0},{"$f":"'[1]11'!L16","v":0},{"$f":"'[1]11'!M16","v":0},{"$f":"'[1]11'!N16","v":0},{"$f":"'[1]11'!O16","v":0},null,{"$f":"'[1]11'!P16","v":0},{"$f":"'[1]11'!Q16","v":0},{"$f":"'[1]11'!R16","v":0}]
[1,null,null,null,null,{"$f":"'[1]11'!F17","v":0},{"$f":"'[1]11'!G17","v":0},0,{"$f":"'[1]11'!J17","v":0},{"$f":"'[1]11'!K17","v":0},{"$f":"'[1]11'!L17","v":0},{"$f":"'[1]11'!M17","v":0},{"$f":"'[1]11'!N17","v":0},{"$f":"'[1]11'!O17","v":0},null,{"$f":"'[1]11'!P17","v":0},{"$f":"'[1]11'!Q17","v":0},{"$f":"'[1]11'!R17","v":0}]
[1,null,null,null,null,{"$f":"'[1]11'!F18","v":0},{"$f":"'[1]11'!G18","v":0},0,{"$f":"'[1]11'!J18","v":0},{"$f":"'[1]11'!K18","v":0},{"$f":"'[1]11'!L18","v":0},{"$f":"'[1]11'!M18","v":0},{"$f":"'[1]11'!N18","v":0},{"$f":"'[1]11'!O18","v":0},null,{"$f":"'[1]11'!P18","v":0},{"$f":"'[1]11'!Q18","v":0},{"$f":"'[1]11'!R18","v":0}]
[1,null,null,null,null,{"$f":"'[1]11'!F19","v":0},{"$f":"'[1]11'!G19","v":0},0,{"$f":"'[1]11'!J19","v":0},{"$f":"'[1]11'!K19","v":0},{"$f":"'[1]11'!L19","v":0},{"$f":"'[1]11'!M19","v":0},{"$f":"'[1]11'!N19","v":0},{"$f":"'[1]11'!O19","v":0},null,{"$f":"'[1]11'!P19","v":0},{"$f":"'[1]11'!Q19","v":0},{"$f":"'[1]11'!R19","v":0}]
[1,null,null,null,null,{"$f":"'[1]11'!F20","v":0},{"$f":"'[1]11'!G20","v":0},0,{"$f":"'[1]11'!J20","v":0},{"$f":"'[1]11'!K20","v":0},{"$f":"'[1]11'!L20","v":0},{"$f":"'[1]11'!M20","v":0},{"$f":"'[1]11'!N20","v":0},{"$f":"'[1]11'!O20","v":0},null,{"$f":"'[1]11'!P20","v":0},{"$f":"'[1]11'!Q20","v":0},{"$f":"'[1]11'!R20","v":0}]
[1,null,null,null,null,{"$f":"'[1]11'!F21","v":0},{"$f":"'[1]11'!G21","v":0},0,{"$f":"'[1]11'!J21","v":0},{"$f":"'[1]11'!K21","v":0},{"$f":"'[1]11'!L21","v":0},{"$f":"'[1]11'!M21","v":0},{"$f":"'[1]11'!N21","v":0},{"$f":"'[1]11'!O21","v":0},null,{"$f":"'[1]11'!P21","v":0},{"$f":"'[1]11'!Q21","v":0},{"$f":"'[1]11'!R21","v":0}]
[1,null,null,null,null,{"$f":"'[1]11'!F22","v":0},{"$f":"'[1]11'!G22","v":0},0,{"$f":"'[1]11'!J22","v":0},{"$f":"'[1]11'!K22","v":0},{"$f":"'[1]11'!L22","v":0},{"$f":"'[1]11'!M22","v":0},{"$f":"'[1]11'!N22","v":0},{"$f":"'[1]11'!O22","v":0},null,{"$f":"'[1]11'!P22","v":0},{"$f":"'[1]11'!Q22","v":0},{"$f":"'[1]11'!R22","v":0}]
[1,null,null,null,null,{"$f":"'[1]11'!F23","v":0},{"$f":"'[1]11'!G23","v":0},0,{"$f":"'[1]11'!J23","v":0},{"$f":"'[1]11'!K23","v":0},{"$f":"'[1]11'!L23","v":0},{"$f":"'[1]11'!M23","v":0},{"$f":"'[1]11'!N23","v":0},{"$f":"'[1]11'!O23","v":0},null,{"$f":"'[1]11'!P23","v":0},{"$f":"'[1]11'!Q23","v":0},{"$f":"'[1]11'!R23","v":0}]
[1,null,null,null,null,{"$f":"'[1]11'!F24","v":0},{"$f":"'[1]11'!G24","v":0},0,{"$f":"'[1]11'!J24","v":0},{"$f":"'[1]11'!K24","v":0},{"$f":"'[1]11'!L24","v":0},{"$f":"'[1]11'!M24","v":0},{"$f":"'[1]11'!N24","v":0},{"$f":"'[1]11'!O24","v":0},null,{"$f":"'[1]11'!P24","v":0},{"$f":"'[1]11'!Q24","v":0},{"$f":"'[1]11'!R24","v":0}]
[1,null,null,null,null,{"$f":"'[1]11'!F25","v":0},{"$f":"'[1]11'!G25","v":0},0,{"$f":"'[1]11'!J25","v":0},{"$f":"'[1]11'!K25","v":0},{"$f":"'[1]11'!L25","v":0},{"$f":"'[1]11'!M25","v":0},{"$f":"'[1]11'!N25","v":0},{"$f":"'[1]11'!O25","v":0},null,{"$f":"'[1]11'!P25","v":0},{"$f":"'[1]11'!Q25","v":0},{"$f":"'[1]11'!R25","v":0}]
[1,null,null,null,null,"Notes:"]
[1,null,null,null,null,"Performance indicators are an explanation of objectives performance.   "]
[1,null,null,null,null,"1. They are specific measurements that track progress towards achieving the goals and objectives of an institution."]
[1,null,null,null,null,"2. Institutions should use performance indicators in the 2024/25 Annual Performance Plans and those in the 2025 ENE. "]
[1,null,null,null,null,"3. Institutions should also indicate instances where targets are not affected by budget baseline reprioritisation."]
[1]
[1,null,null,null,null,null,null,null,{"$f":"MyYearM3","v":"2022/23"},{"$f":"MyYearM2","v":"2023/24"},{"$f":"MyYearM1","v":"2024/25"},null,{"$f":"MyYear0","v":"2025/26"},null,null,{"$f":"MyYearP1","v":"2026/27"},null,null,{"$f":"MyYearP2","v":"2027/28"},null,null,{"$f":"MyYearP3","v":"2028/29"}]
[1,null,null,null,null,"Expenses",null,null,{"$f":"Hist_year3RestatedAudited","v":"Audited\noutcome"},{"$f":"Hist_year2RestatedAudited","v":"Audited\noutcome"},{"$f":"Hist_year1Budget","v":"Budget"},{"$f":"Hist_year1Audited","v":"Audited\noutcome"},{"$f":"Cur_YearBudgEst","v":"Budget\nestimate"},{"$f":"Cur_YearApprovedBudg","v":"Approved budget"},{"$f":"Cur_YearChangeFrRevBudg","v":"Changes from \nbudget estimate"},{"$f":"MTEF1BudgEst","v":"Budget\nestimate"},{"$f":"MTEF1RevBudgEst","v":"Revised\nbudget\nestimate"},{"$f":"MTEF1_ChangeFrBudgEst","v":"Changes from budget estimate"},{"$f":"MTEF2BudgEst","v":"Budget\nestimate"},{"$f":"MTEF2RevBudgEst","v":"Revised\nbudget\nestimate"},{"$f":"MTEF2_ChangeFrBudgEst","v":"Changes from budget estimate"},{"$f":"MTEF3PlanBudgetEst","v":"Planning\nbudget \nestimate"}]
[1]
[1,null,null,null,null,"Rand thousand"]
[1,null,null,null,null,"Objective/Activity"]
[1,null,null,null,null,{"$f":"'[1]11'!F37","v":0},null,null,{"$f":"'[1]11'!J37","v":0},{"$f":"'[1]11'!L37","v":0},{"$f":"'[1]11'!N37","v":0},{"$f":"'[1]11'!N37","v":0},{"$f":"'[1]11'!Q37","v":0},{"$f":"'[1]11'!Q37","v":0},{"$f":"SUM(N37-M37)","v":0},{"$f":"'[1]11'!T37","v":0},{"$f":"'[1]11'!T37","v":0},{"$f":"SUM(Q37-P37)","v":0},{"$f":"'[1]11'!V37","v":0},{"$f":"'[1]11'!V37","v":0},{"$f":"SUM(T37-S37)","v":0}]
[1,null,null,null,null,"Economic classification"]
[1,"EX11",null,null,null,"Current payments",null,null,{"$f":"SUM(I40,I43,I98:I99,I105)","v":0},0,0,0,0,0,{"$f":"SUM(N39-M39)","v":0},{"$f":"SUM(P40,P43,P98:P99,P105)","v":0},{"$f":"SUM(Q40,Q43,Q98:Q99,Q105)","v":0},{"$f":"SUM(Q39-P39)","v":0},{"$f":"SUM(S40,S43,S98:S99,S105)","v":0},{"$f":"SUM(T40,T43,T98:T99,T105)","v":0},{"$f":"SUM(T39-S39)","v":0},{"$f":"SUM(V40,V43,V98:V99,V105)","v":0}]
[1,"EX111",null,null,null,"Compensation of employees",null,null,{"$f":"SUM(I41:I42)","v":0},0,0,0,0,0,{"$f":"SUM(N40-M40)","v":0},{"$f":"SUM(P41:P42)","v":0},{"$f":"SUM(Q41:Q42)","v":0},{"$f":"SUM(Q40-P40)","v":0},{"$f":"SUM(S41:S42)","v":0},{"$f":"SUM(T41:T42)","v":0},{"$f":"SUM(T40-S40)","v":0},{"$f":"SUM(V41:V42)","v":0}]
[1,"EX1111",null,null,null,"Salaries and wages",null,null,{"$f":"'[1]11'!J41","v":0},{"$f":"'[1]11'!L41","v":0},{"$f":"'[1]11'!N41","v":0},{"$f":"'[1]11'!N41","v":0},{"$f":"'[1]11'!Q41","v":0},{"$f":"'[1]11'!Q41","v":0},{"$f":"SUM(N41-M41)","v":0},{"$f":"'[1]11'!T41","v":0},{"$f":"'[1]11'!T41","v":0},{"$f":"SUM(Q41-P41)","v":0},{"$f":"'[1]11'!V41","v":0},{"$f":"'[1]11'!V41","v":0},{"$f":"SUM(T41-S41)","v":0}]
[1,"EX1112",null,null,null,"Social contributions",null,null,{"$f":"'[1]11'!J42","v":0},{"$f":"'[1]11'!L42","v":0},{"$f":"'[1]11'!N42","v":0},{"$f":"'[1]11'!N42","v":0},{"$f":"'[1]11'!Q42","v":0},{"$f":"'[1]11'!Q42","v":0},{"$f":"SUM(N42-M42)","v":0},{"$f":"'[1]11'!T42","v":0},{"$f":"'[1]11'!T42","v":0},{"$f":"SUM(Q42-P42)","v":0},{"$f":"'[1]11'!V42","v":0},{"$f":"'[1]11'!V42","v":0},{"$f":"SUM(T42-S42)","v":0}]
[1,"EX112",null,null,null,"Goods and services",null,null,{"$f":"SUM(I45:I54,I58:I61,I73,I75:I97)","v":0},{"$f":"SUM(J45:J54,J58:J61,J73,J75:J97)","v":0},{"$f":"SUM(K45:K54,K58:K61,K73,K75:K97)","v":0},0,0,0,0,0,0,0,0,0,0,0,{"$f":"SUM(W45:W54,W58:W61,W73,W75:W97)","v":0}]
[1,"EX000",null,null,null,"Of which 1"]
[1,"EX1133",null,null,null,"Administrative fees",null,null,{"$f":"'[1]11'!J45","v":0},{"$f":"'[1]11'!L45","v":0},{"$f":"'[1]11'!N45","v":0},{"$f":"'[1]11'!N45","v":0},{"$f":"'[1]11'!Q45","v":0},{"$f":"'[1]11'!Q45","v":0},{"$f":"SUM(N45-M45)","v":0},{"$f":"'[1]11'!T45","v":0},{"$f":"'[1]11'!T45","v":0},{"$f":"SUM(Q45-P45)","v":0},{"$f":"'[1]11'!V45","v":0},{"$f":"'[1]11'!V45","v":0},{"$f":"SUM(T45-S45)","v":0}]
[1,"EX1134",null,null,null,"Advertising",null,null,{"$f":"'[1]11'!J46","v":0},{"$f":"'[1]11'!L46","v":0},{"$f":"'[1]11'!N46","v":0},{"$f":"'[1]11'!N46","v":0},{"$f":"'[1]11'!Q46","v":0},{"$f":"'[1]11'!Q46","v":0},0,{"$f":"'[1]11'!T46","v":0},{"$f":"'[1]11'!T46","v":0},0,{"$f":"'[1]11'!V46","v":0},{"$f":"'[1]11'!V46","v":0},0]
[1,"EX1135",null,null,null,"Minor assets",null,null,{"$f":"'[1]11'!J47","v":0},{"$f":"'[1]11'!L47","v":0},{"$f":"'[1]11'!N47","v":0},{"$f":"'[1]11'!N47","v":0},{"$f":"'[1]11'!Q47","v":0},{"$f":"'[1]11'!Q47","v":0},0,{"$f":"'[1]11'!T47","v":0},{"$f":"'[1]11'!T47","v":0},0,{"$f":"'[1]11'!V47","v":0},{"$f":"'[1]11'!V47","v":0},0]
[1,"EX1136",null,null,null,"Audit costs: External",null,null,{"$f":"'[1]11'!J48","v":0},{"$f":"'[1]11'!L48","v":0},{"$f":"'[1]11'!N48","v":0},{"$f":"'[1]11'!N48","v":0},{"$f":"'[1]11'!Q48","v":0},{"$f":"'[1]11'!Q48","v":0},0,{"$f":"'[1]11'!T48","v":0},{"$f":"'[1]11'!T48","v":0},0,{"$f":"'[1]11'!V48","v":0},{"$f":"'[1]11'!V48","v":0},0]
[1,"EX1139",null,null,null,"Bursaries: Employees",null,null,{"$f":"'[1]11'!J49","v":0},{"$f":"'[1]11'!L49","v":0},{"$f":"'[1]11'!N49","v":0},{"$f":"'[1]11'!N49","v":0},{"$f":"'[1]11'!Q49","v":0},{"$f":"'[1]11'!Q49","v":0},0,{"$f":"'[1]11'!T49","v":0},{"$f":"'[1]11'!T49","v":0},0,{"$f":"'[1]11'!V49","v":0},{"$f":"'[1]11'!V49","v":0},0]
[1,"EX1140",null,null,null,"Catering: Internal activities",null,null,{"$f":"'[1]11'!J50","v":0},{"$f":"'[1]11'!L50","v":0},{"$f":"'[1]11'!N50","v":0},{"$f":"'[1]11'!N50","v":0},{"$f":"'[1]11'!Q50","v":0},{"$f":"'[1]11'!Q50","v":0},0,{"$f":"'[1]11'!T50","v":0},{"$f":"'[1]11'!T50","v":0},0,{"$f":"'[1]11'!V50","v":0},{"$f":"'[1]11'!V50","v":0},0]
[1,"EX1122",null,null,null,"Communication (G&S)",null,null,{"$f":"'[1]11'!J51","v":0},{"$f":"'[1]11'!L51","v":0},{"$f":"'[1]11'!N51","v":0},{"$f":"'[1]11'!N51","v":0},{"$f":"'[1]11'!Q51","v":0},{"$f":"'[1]11'!Q51","v":0},0,{"$f":"'[1]11'!T51","v":0},{"$f":"'[1]11'!T51","v":0},0,{"$f":"'[1]11'!V51","v":0},{"$f":"'[1]11'!V51","v":0},0]
[1,"EX1123",null,null,null,"Computer services",null,null,{"$f":"'[1]11'!J52","v":0},{"$f":"'[1]11'!L52","v":0},{"$f":"'[1]11'!N52","v":0},{"$f":"'[1]11'!N52","v":0},{"$f":"'[1]11'!Q52","v":0},{"$f":"'[1]11'!Q52","v":0},0,{"$f":"'[1]11'!T52","v":0},{"$f":"'[1]11'!T52","v":0},0,{"$f":"'[1]11'!V52","v":0},{"$f":"'[1]11'!V52","v":0},0]
[1,"EX1124",null,null,null,"Consultants: Business and advisory services",null,null,{"$f":"'[1]11'!J53","v":0},{"$f":"'[1]11'!L53","v":0},{"$f":"'[1]11'!N53","v":0},{"$f":"'[1]11'!N53","v":0},{"$f":"'[1]11'!Q53","v":0},{"$f":"'[1]11'!Q53","v":0},0,{"$f":"'[1]11'!T53","v":0},{"$f":"'[1]11'!T53","v":0},0,{"$f":"'[1]11'!V53","v":0},{"$f":"'[1]11'!V53","v":0},0]
[1,"EX1180",null,null,null,"Infrastructure and planning services",null,null,{"$f":"SUM(I55:I57)","v":0},0,0,0,0,0,{"$f":"SUM(N54-M54)","v":0},{"$f":"SUM(P55:P57)","v":0},{"$f":"SUM(Q55:Q57)","v":0},{"$f":"SUM(Q54-P54)","v":0},{"$f":"SUM(S55:S57)","v":0},{"$f":"SUM(T55:T57)","v":0},{"$f":"SUM(T54-S54)","v":0},{"$f":"SUM(V55:V57)","v":0}]
[1,"EX11801",null,null,null,"Maintenance and repairs: Buildings: Consultants",null,null,{"$f":"'[1]11'!J55","v":0},{"$f":"'[1]11'!L55","v":0},{"$f":"'[1]11'!N55","v":0},{"$f":"'[1]11'!N55","v":0},{"$f":"'[1]11'!Q55","v":0},{"$f":"'[1]11'!Q55","v":0},{"$f":"SUM(N55-M55)","v":0},{"$f":"'[1]11'!T55","v":0},{"$f":"'[1]11'!T55","v":0},{"$f":"SUM(Q55-P55)","v":0},{"$f":"'[1]11'!V55","v":0},{"$f":"'[1]11'!V55","v":0},0]
[1,"EX11802",null,null,null,"Maintenance and repairs: Other fixed structures: Consultants",null,null,{"$f":"'[1]11'!J56","v":0},{"$f":"'[1]11'!L56","v":0},{"$f":"'[1]11'!N56","v":0},{"$f":"'[1]11'!N56","v":0},{"$f":"'[1]11'!Q56","v":0},{"$f":"'[1]11'!Q56","v":0},0,{"$f":"'[1]11'!T56","v":0},{"$f":"'[1]11'!T56","v":0},0,{"$f":"'[1]11'!V56","v":0},{"$f":"'[1]11'!V56","v":0},0]
[1,"EX11803",null,null,null,"Other",null,null,{"$f":"'[1]11'!J57","v":0},{"$f":"'[1]11'!L57","v":0},{"$f":"'[1]11'!N57","v":0},{"$f":"'[1]11'!N57","v":0},{"$f":"'[1]11'!Q57","v":0},{"$f":"'[1]11'!Q57","v":0},0,{"$f":"'[1]11'!T57","v":0},{"$f":"'[1]11'!T57","v":0},0,{"$f":"'[1]11'!V57","v":0},{"$f":"'[1]11'!V57","v":0},0]
[1,"EX1164",null,null,null,"Laboratory services",null,null,{"$f":"'[1]11'!J58","v":0},{"$f":"'[1]11'!L58","v":0},{"$f":"'[1]11'!N58","v":0},{"$f":"'[1]11'!N58","v":0},{"$f":"'[1]11'!Q58","v":0},{"$f":"'[1]11'!Q58","v":0},0,{"$f":"'[1]11'!T58","v":0},{"$f":"'[1]11'!T58","v":0},0,{"$f":"'[1]11'!V58","v":0},{"$f":"'[1]11'!V58","v":0},0]
[1,"EX1162",null,null,null,"Legal services (G&S)",null,null,{"$f":"'[1]11'!J59","v":0},{"$f":"'[1]11'!L59","v":0},{"$f":"'[1]11'!N59","v":0},{"$f":"'[1]11'!N59","v":0},{"$f":"'[1]11'!Q59","v":0},{"$f":"'[1]11'!Q59","v":0},0,{"$f":"'[1]11'!T59","v":0},{"$f":"'[1]11'!T59","v":0},0,{"$f":"'[1]11'!V59","v":0},{"$f":"'[1]11'!V59","v":0},0]
[1,"EX1165",null,null,null,"Science and technological services",null,null,{"$f":"'[1]11'!J60","v":0},{"$f":"'[1]11'!L60","v":0},{"$f":"'[1]11'!N60","v":0},{"$f":"'[1]11'!N60","v":0},{"$f":"'[1]11'!Q60","v":0},{"$f":"'[1]11'!Q60","v":0},0,{"$f":"'[1]11'!T60","v":0},{"$f":"'[1]11'!T60","v":0},0,{"$f":"'[1]11'!V60","v":0},{"$f":"'[1]11'!V60","v":0},0]
[1,"EX1125",null,null,null,"Contractors",null,null,{"$f":"SUM(I62:I66,I72)","v":0},0,0,0,0,0,{"$f":"SUM(N61-M61)","v":0},{"$f":"SUM(P62:P66,P72)","v":0},{"$f":"SUM(Q62:Q66,Q72)","v":0},{"$f":"SUM(Q61-P61)","v":0},{"$f":"SUM(S62:S66,S72)","v":0},{"$f":"SUM(T62:T66,T72)","v":0},0,{"$f":"SUM(V62:V66,V72)","v":0}]
[1,"EX11251",null,null,null,"Maintenance and repairs of other fixed structures",null,null,{"$f":"'[1]11'!J62","v":0},{"$f":"'[1]11'!L62","v":0},{"$f":"'[1]11'!N62","v":0},{"$f":"'[1]11'!N62","v":0},{"$f":"'[1]11'!Q62","v":0},{"$f":"'[1]11'!Q62","v":0},0,{"$f":"'[1]11'!T62","v":0},{"$f":"'[1]11'!T62","v":0},0,{"$f":"'[1]11'!V62","v":0},{"$f":"'[1]11'!V62","v":0},0]
[1,"EX11252",null,null,null,"Maintenance and repairs of other machinery and equipment",null,null,{"$f":"'[1]11'!J63","v":0},{"$f":"'[1]11'!L63","v":0},{"$f":"'[1]11'!N63","v":0},{"$f":"'[1]11'!N63","v":0},{"$f":"'[1]11'!Q63","v":0},{"$f":"'[1]11'!Q63","v":0},0,{"$f":"'[1]11'!T63","v":0},{"$f":"'[1]11'!T63","v":0},0,{"$f":"'[1]11'!V63","v":0},{"$f":"'[1]11'!V63","v":0},0]
[1,"EX11253",null,null,null,"Maintenance and repairs of heritage buildings",null,null,{"$f":"'[1]11'!J64","v":0},{"$f":"'[1]11'!L64","v":0},{"$f":"'[1]11'!N64","v":0},{"$f":"'[1]11'!N64","v":0},{"$f":"'[1]11'!Q64","v":0},{"$f":"'[1]11'!Q64","v":0},0,{"$f":"'[1]11'!T64","v":0},{"$f":"'[1]11'!T64","v":0},0,{"$f":"'[1]11'!V64","v":0},{"$f":"'[1]11'!V64","v":0},0]
[1,"EX11254",null,null,null,"Maintenance and repairs of other heritage fixed structures",null,null,{"$f":"'[1]11'!J65","v":0},{"$f":"'[1]11'!L65","v":0},{"$f":"'[1]11'!N65","v":0},{"$f":"'[1]11'!N65","v":0},{"$f":"'[1]11'!Q65","v":0},{"$f":"'[1]11'!Q65","v":0},0,{"$f":"'[1]11'!T65","v":0},{"$f":"'[1]11'!T65","v":0},0,{"$f":"'[1]11'!V65","v":0},{"$f":"'[1]11'!V65","v":0},0]
[5,"EX11255",null,null,null,"South african social security agency payment contractors",null,null,{"$f":"SUM(I67:I71)","v":0},0,0,0,0,0,0,{"$f":"SUM(P67:P71)","v":0},{"$f":"SUM(Q67:Q71)","v":0},0,{"$f":"SUM(S67:S71)","v":0},{"$f":"SUM(T67:T71)","v":0},0,{"$f":"SUM(V67:V71)","v":0}]
[5,"EX112551",null,null,null,"SASSA Admin fees",null,null,{"$f":"'[1]11'!J67","v":0},{"$f":"'[1]11'!L67","v":0},{"$f":"'[1]11'!N67","v":0},{"$f":"'[1]11'!N67","v":0},{"$f":"'[1]11'!Q67","v":0},{"$f":"'[1]11'!Q67","v":0},{"$f":"SUM(N67-M67)","v":0},{"$f":"'[1]11'!T67","v":0},{"$f":"'[1]11'!T67","v":0},{"$f":"SUM(Q67-P67)","v":0},{"$f":"'[1]11'!V67","v":0},{"$f":"'[1]11'!V67","v":0},{"$f":"SUM(T67-S67)","v":0}]
[5,"EX112552",null,null,null,"SASSA Bankcard fees",null,null,{"$f":"'[1]11'!J68","v":0},{"$f":"'[1]11'!L68","v":0},{"$f":"'[1]11'!N68","v":0},{"$f":"'[1]11'!N68","v":0},{"$f":"'[1]11'!Q68","v":0},{"$f":"'[1]11'!Q68","v":0},0,{"$f":"'[1]11'!T68","v":0},{"$f":"'[1]11'!T68","v":0},0,{"$f":"'[1]11'!V68","v":0},{"$f":"'[1]11'!V68","v":0},0]
[5,"EX112553",null,null,null,"SASSA registration fees",null,null,{"$f":"'[1]11'!J69","v":0},{"$f":"'[1]11'!L69","v":0},{"$f":"'[1]11'!N69","v":0},{"$f":"'[1]11'!N69","v":0},{"$f":"'[1]11'!Q69","v":0},{"$f":"'[1]11'!Q69","v":0},0,{"$f":"'[1]11'!T69","v":0},{"$f":"'[1]11'!T69","v":0},0,{"$f":"'[1]11'!V69","v":0},{"$f":"'[1]11'!V69","v":0},0]
[5,"EX112554",null,null,null,"SASSA beneficiary fees",null,null,{"$f":"'[1]11'!J70","v":0},{"$f":"'[1]11'!L70","v":0},{"$f":"'[1]11'!N70","v":0},{"$f":"'[1]11'!N70","v":0},{"$f":"'[1]11'!Q70","v":0},{"$f":"'[1]11'!Q70","v":0},0,{"$f":"'[1]11'!T70","v":0},{"$f":"'[1]11'!T70","v":0},0,{"$f":"'[1]11'!V70","v":0},{"$f":"'[1]11'!V70","v":0},0]
[5,"EX112555",null,null,null,"SASSA help desk fees",null,null,{"$f":"'[1]11'!J71","v":0},{"$f":"'[1]11'!L71","v":0},{"$f":"'[1]11'!N71","v":0},{"$f":"'[1]11'!N71","v":0},{"$f":"'[1]11'!Q71","v":0},{"$f":"'[1]11'!Q71","v":0},0,{"$f":"'[1]11'!T71","v":0},{"$f":"'[1]11'!T71","v":0},0,{"$f":"'[1]11'!V71","v":0},{"$f":"'[1]11'!V71","v":0},0]
[1,"EX11256",null,null,null,"Other",null,null,{"$f":"'[1]11'!J72","v":0},{"$f":"'[1]11'!L72","v":0},{"$f":"'[1]11'!N72","v":0},{"$f":"'[1]11'!N72","v":0},{"$f":"'[1]11'!Q72","v":0},{"$f":"'[1]11'!Q72","v":0},0,{"$f":"'[1]11'!T72","v":0},{"$f":"'[1]11'!T72","v":0},0,{"$f":"'[1]11'!V72","v":0},{"$f":"'[1]11'!V72","v":0},0]
[1,"EX1121",null,null,null,"Agency and support/outsourced services",null,null,{"$f":"'[1]11'!J73","v":0},{"$f":"'[1]11'!L73","v":0},{"$f":"'[1]11'!N73","v":0},{"$f":"'[1]11'!N73","v":0},{"$f":"'[1]11'!Q73","v":0},{"$f":"'[1]11'!Q73","v":0},0,{"$f":"'[1]11'!T73","v":0},{"$f":"'[1]11'!T73","v":0},0,{"$f":"'[1]11'!V73","v":0},{"$f":"'[1]11'!V73","v":0},0]
[5,"EX11211",null,null,null,"     Of Which: Medical assessments",null,null,{"$f":"'[1]11'!J74","v":0},{"$f":"'[1]11'!L74","v":0},{"$f":"'[1]11'!N74","v":0},{"$f":"'[1]11'!N74","v":0},{"$f":"'[1]11'!Q74","v":0},{"$f":"'[1]11'!Q74","v":0},0,{"$f":"'[1]11'!T74","v":0},{"$f":"'[1]11'!T74","v":0},0,{"$f":"'[1]11'!V74","v":0},{"$f":"'[1]11'!V74","v":0},0]
[1,"EX1161",null,null,null,"Entertainment",null,null,{"$f":"'[1]11'!J75","v":0},{"$f":"'[1]11'!L75","v":0},{"$f":"'[1]11'!N75","v":0},{"$f":"'[1]11'!N75","v":0},{"$f":"'[1]11'!Q75","v":0},{"$f":"'[1]11'!Q75","v":0},0,{"$f":"'[1]11'!T75","v":0},{"$f":"'[1]11'!T75","v":0},0,{"$f":"'[1]11'!V75","v":0},{"$f":"'[1]11'!V75","v":0},0]
[1,"EX1166",null,null,null,"Fleet services (including government motor transport)",null,null,{"$f":"'[1]11'!J76","v":0},{"$f":"'[1]11'!L76","v":0},{"$f":"'[1]11'!N76","v":0},{"$f":"'[1]11'!N76","v":0},{"$f":"'[1]11'!Q76","v":0},{"$f":"'[1]11'!Q76","v":0},0,{"$f":"'[1]11'!T76","v":0},{"$f":"'[1]11'!T76","v":0},0,{"$f":"'[1]11'!V76","v":0},{"$f":"'[1]11'!V76","v":0},0]
[1,"EX1167",null,null,null,"Housing",null,null,{"$f":"'[1]11'!J77","v":0},{"$f":"'[1]11'!L77","v":0},{"$f":"'[1]11'!N77","v":0},{"$f":"'[1]11'!N77","v":0},{"$f":"'[1]11'!Q77","v":0},{"$f":"'[1]11'!Q77","v":0},0,{"$f":"'[1]11'!T77","v":0},{"$f":"'[1]11'!T77","v":0},0,{"$f":"'[1]11'!V77","v":0},{"$f":"'[1]11'!V77","v":0},0]
[1,"EX1168",null,null,null,"Inventory: Clothing material and accessories",null,null,{"$f":"'[1]11'!J78","v":0},{"$f":"'[1]11'!L78","v":0},{"$f":"'[1]11'!N78","v":0},{"$f":"'[1]11'!N78","v":0},{"$f":"'[1]11'!Q78","v":0},{"$f":"'[1]11'!Q78","v":0},0,{"$f":"'[1]11'!T78","v":0},{"$f":"'[1]11'!T78","v":0},0,{"$f":"'[1]11'!V78","v":0},{"$f":"'[1]11'!V78","v":0},0]
[1,"EX1169",null,null,null,"Inventory: Farming supplies",null,null,{"$f":"'[1]11'!J79","v":0},{"$f":"'[1]11'!L79","v":0},{"$f":"'[1]11'!N79","v":0},{"$f":"'[1]11'!N79","v":0},{"$f":"'[1]11'!Q79","v":0},{"$f":"'[1]11'!Q79","v":0},0,{"$f":"'[1]11'!T79","v":0},{"$f":"'[1]11'!T79","v":0},0,{"$f":"'[1]11'!V79","v":0},{"$f":"'[1]11'!V79","v":0},0]
[1,"EX1170",null,null,null,"Inventory: Food and food supplies",null,null,{"$f":"'[1]11'!J80","v":0},{"$f":"'[1]11'!L80","v":0},{"$f":"'[1]11'!N80","v":0},{"$f":"'[1]11'!N80","v":0},{"$f":"'[1]11'!Q80","v":0},{"$f":"'[1]11'!Q80","v":0},0,{"$f":"'[1]11'!T80","v":0},{"$f":"'[1]11'!T80","v":0},0,{"$f":"'[1]11'!V80","v":0},{"$f":"'[1]11'!V80","v":0},0]
[1,"EX1171",null,null,null,"Inventory: Fuel, oil and gas",null,null,{"$f":"'[1]11'!J81","v":0},{"$f":"'[1]11'!L81","v":0},{"$f":"'[1]11'!N81","v":0},{"$f":"'[1]11'!N81","v":0},{"$f":"'[1]11'!Q81","v":0},{"$f":"'[1]11'!Q81","v":0},0,{"$f":"'[1]11'!T81","v":0},{"$f":"'[1]11'!T81","v":0},0,{"$f":"'[1]11'!V81","v":0},{"$f":"'[1]11'!V81","v":0},0]
[1,"EX1172",null,null,null,"Inventory: Learner and teacher support material",null,null,{"$f":"'[1]11'!J82","v":0},{"$f":"'[1]11'!L82","v":0},{"$f":"'[1]11'!N82","v":0},{"$f":"'[1]11'!N82","v":0},{"$f":"'[1]11'!Q82","v":0},{"$f":"'[1]11'!Q82","v":0},0,{"$f":"'[1]11'!T82","v":0},{"$f":"'[1]11'!T82","v":0},0,{"$f":"'[1]11'!V82","v":0},{"$f":"'[1]11'!V82","v":0},0]
[1,"EX1126",null,null,null,"Inventory: Materials and supplies",null,null,{"$f":"'[1]11'!J83","v":0},{"$f":"'[1]11'!L83","v":0},{"$f":"'[1]11'!N83","v":0},{"$f":"'[1]11'!N83","v":0},{"$f":"'[1]11'!Q83","v":0},{"$f":"'[1]11'!Q83","v":0},0,{"$f":"'[1]11'!T83","v":0},{"$f":"'[1]11'!T83","v":0},0,{"$f":"'[1]11'!V83","v":0},{"$f":"'[1]11'!V83","v":0},0]
[1,"EX1173",null,null,null,"Inventory: Medical supplies",null,null,{"$f":"'[1]11'!J84","v":0},{"$f":"'[1]11'!L84","v":0},{"$f":"'[1]11'!N84","v":0},{"$f":"'[1]11'!N84","v":0},{"$f":"'[1]11'!Q84","v":0},{"$f":"'[1]11'!Q84","v":0},0,{"$f":"'[1]11'!T84","v":0},{"$f":"'[1]11'!T84","v":0},0,{"$f":"'[1]11'!V84","v":0},{"$f":"'[1]11'!V84","v":0},0]
[1,"EX1174",null,null,null,"Inventory: Medicine",null,null,{"$f":"'[1]11'!J85","v":0},{"$f":"'[1]11'!L85","v":0},{"$f":"'[1]11'!N85","v":0},{"$f":"'[1]11'!N85","v":0},{"$f":"'[1]11'!Q85","v":0},{"$f":"'[1]11'!Q85","v":0},0,{"$f":"'[1]11'!T85","v":0},{"$f":"'[1]11'!T85","v":0},0,{"$f":"'[1]11'!V85","v":0},{"$f":"'[1]11'!V85","v":0},0]
[1,"EX1175",null,null,null,"Medsas inventory interface",null,null,{"$f":"'[1]11'!J86","v":0},{"$f":"'[1]11'!L86","v":0},{"$f":"'[1]11'!N86","v":0},{"$f":"'[1]11'!N86","v":0},{"$f":"'[1]11'!Q86","v":0},{"$f":"'[1]11'!Q86","v":0},0,{"$f":"'[1]11'!T86","v":0},{"$f":"'[1]11'!T86","v":0},0,{"$f":"'[1]11'!V86","v":0},{"$f":"'[1]11'!V86","v":0},0]
[1,"EX1176",null,null,null,"Inventory: Other supplies",null,null,{"$f":"'[1]11'!J87","v":0},{"$f":"'[1]11'!L87","v":0},{"$f":"'[1]11'!N87","v":0},{"$f":"'[1]11'!N87","v":0},{"$f":"'[1]11'!Q87","v":0},{"$f":"'[1]11'!Q87","v":0},0,{"$f":"'[1]11'!T87","v":0},{"$f":"'[1]11'!T87","v":0},0,{"$f":"'[1]11'!V87","v":0},{"$f":"'[1]11'!V87","v":0},0]
[1,"EX1177",null,null,null,"Consumable supplies",null,null,{"$f":"'[1]11'!J88","v":0},{"$f":"'[1]11'!L88","v":0},{"$f":"'[1]11'!N88","v":0},{"$f":"'[1]11'!N88","v":0},{"$f":"'[1]11'!Q88","v":0},{"$f":"'[1]11'!Q88","v":0},0,{"$f":"'[1]11'!T88","v":0},{"$f":"'[1]11'!T88","v":0},0,{"$f":"'[1]11'!V88","v":0},{"$f":"'[1]11'!V88","v":0},0]
[1,"EX1144",null,null,null,"Consumables: Stationery, printing and office supplies",null,null,{"$f":"'[1]11'!J89","v":0},{"$f":"'[1]11'!L89","v":0},{"$f":"'[1]11'!N89","v":0},{"$f":"'[1]11'!N89","v":0},{"$f":"'[1]11'!Q89","v":0},{"$f":"'[1]11'!Q89","v":0},0,{"$f":"'[1]11'!T89","v":0},{"$f":"'[1]11'!T89","v":0},0,{"$f":"'[1]11'!V89","v":0},{"$f":"'[1]11'!V89","v":0},0]
[1,"EX1127",null,null,null,"Operating leases",null,null,{"$f":"'[1]11'!J90","v":0},{"$f":"'[1]11'!L90","v":0},{"$f":"'[1]11'!N90","v":0},{"$f":"'[1]11'!N90","v":0},{"$f":"'[1]11'!Q90","v":0},{"$f":"'[1]11'!Q90","v":0},0,{"$f":"'[1]11'!T90","v":0},{"$f":"'[1]11'!T90","v":0},0,{"$f":"'[1]11'!V90","v":0},{"$f":"'[1]11'!V90","v":0},0]
[1,"EX1178",null,null,null,"Rental and hiring",null,null,{"$f":"'[1]11'!J91","v":0},{"$f":"'[1]11'!L91","v":0},{"$f":"'[1]11'!N91","v":0},{"$f":"'[1]11'!N91","v":0},{"$f":"'[1]11'!Q91","v":0},{"$f":"'[1]11'!Q91","v":0},0,{"$f":"'[1]11'!T91","v":0},{"$f":"'[1]11'!T91","v":0},0,{"$f":"'[1]11'!V91","v":0},{"$f":"'[1]11'!V91","v":0},0]
[1,"EX1145",null,null,null,"Property payments",null,null,{"$f":"'[1]11'!J92","v":0},{"$f":"'[1]11'!L92","v":0},{"$f":"'[1]11'!N92","v":0},{"$f":"'[1]11'!N92","v":0},{"$f":"'[1]11'!Q92","v":0},{"$f":"'[1]11'!Q92","v":0},0,{"$f":"'[1]11'!T92","v":0},{"$f":"'[1]11'!T92","v":0},0,{"$f":"'[1]11'!V92","v":0},{"$f":"'[1]11'!V92","v":0},0]
[1,"EX1179",null,null,null,"Transport provided: Internal activities",null,null,{"$f":"'[1]11'!J93","v":0},{"$f":"'[1]11'!L93","v":0},{"$f":"'[1]11'!N93","v":0},{"$f":"'[1]11'!N93","v":0},{"$f":"'[1]11'!Q93","v":0},{"$f":"'[1]11'!Q93","v":0},0,{"$f":"'[1]11'!T93","v":0},{"$f":"'[1]11'!T93","v":0},0,{"$f":"'[1]11'!V93","v":0},{"$f":"'[1]11'!V93","v":0},0]
[1,"EX1131",null,null,null,"Travel and subsistence",null,null,{"$f":"'[1]11'!J94","v":0},{"$f":"'[1]11'!L94","v":0},{"$f":"'[1]11'!N94","v":0},{"$f":"'[1]11'!N94","v":0},{"$f":"'[1]11'!Q94","v":0},{"$f":"'[1]11'!Q94","v":0},0,{"$f":"'[1]11'!T94","v":0},{"$f":"'[1]11'!T94","v":0},0,{"$f":"'[1]11'!V94","v":0},{"$f":"'[1]11'!V94","v":0},0]
[1,"EX1130",null,null,null,"Training and development",null,null,{"$f":"'[1]11'!J95","v":0},{"$f":"'[1]11'!L95","v":0},{"$f":"'[1]11'!N95","v":0},{"$f":"'[1]11'!N95","v":0},{"$f":"'[1]11'!Q95","v":0},{"$f":"'[1]11'!Q95","v":0},0,{"$f":"'[1]11'!T95","v":0},{"$f":"'[1]11'!T95","v":0},0,{"$f":"'[1]11'!V95","v":0},{"$f":"'[1]11'!V95","v":0},0]
[1,"EX1132",null,null,null,"Operating payments",null,null,{"$f":"'[1]11'!J96","v":0},{"$f":"'[1]11'!L96","v":0},{"$f":"'[1]11'!N96","v":0},{"$f":"'[1]11'!N96","v":0},{"$f":"'[1]11'!Q96","v":0},{"$f":"'[1]11'!Q96","v":0},0,{"$f":"'[1]11'!T96","v":0},{"$f":"'[1]11'!T96","v":0},0,{"$f":"'[1]11'!V96","v":0},{"$f":"'[1]11'!V96","v":0},0]
[1,"EX1146",null,null,null,"Venues and facilities",null,null,{"$f":"'[1]11'!J97","v":0},{"$f":"'[1]11'!L97","v":0},{"$f":"'[1]11'!N97","v":0},{"$f":"'[1]11'!N97","v":0},{"$f":"'[1]11'!Q97","v":0},{"$f":"'[1]11'!Q97","v":0},0,{"$f":"'[1]11'!T97","v":0},{"$f":"'[1]11'!T97","v":0},0,{"$f":"'[1]11'!V97","v":0},{"$f":"'[1]11'!V97","v":0},0]
[1,"EX113",null,null,null,"Depreciation",null,null,{"$f":"'[1]11'!J98","v":0},{"$f":"'[1]11'!L98","v":0},{"$f":"'[1]11'!N98","v":0},{"$f":"'[1]11'!N98","v":0},{"$f":"'[1]11'!Q98","v":0},{"$f":"'[1]11'!Q98","v":0},0,{"$f":"'[1]11'!T98","v":0},{"$f":"'[1]11'!T98","v":0},0,{"$f":"'[1]11'!V98","v":0},{"$f":"'[1]11'!V98","v":0},0]
[1,"EX114",null,null,null,"Losses from",null,null,{"$f":"SUM(I100:I101,I104)","v":0},0,0,0,0,0,{"$f":"SUM(N99-M99)","v":0},{"$f":"SUM(P100:P101,P104)","v":0},{"$f":"SUM(Q100:Q101,Q104)","v":0},{"$f":"SUM(Q99-P99)","v":0},{"$f":"SUM(S100:S101,S104)","v":0},{"$f":"SUM(T100:T101,T104)","v":0},{"$f":"SUM(T99-S99)","v":0},{"$f":"SUM(V100:V101,V104)","v":0}]
[1,"EX1141",null,null,null,"Sale of fixed assets",null,null,{"$f":"'[1]11'!J100","v":0},{"$f":"'[1]11'!L100","v":0},{"$f":"'[1]11'!N100","v":0},{"$f":"'[1]11'!N100","v":0},{"$f":"'[1]11'!Q100","v":0},{"$f":"'[1]11'!Q100","v":0},0,{"$f":"'[1]11'!T100","v":0},{"$f":"'[1]11'!T100","v":0},0,{"$f":"'[1]11'!V100","v":0},{"$f":"'[1]11'!V100","v":0},0]
[1,"EX1142",null,null,null,"Impairments and adjustments to fair value",null,null,{"$f":"SUM(I102:I103)","v":0},0,0,0,0,0,0,{"$f":"SUM(P102:P103)","v":0},{"$f":"SUM(Q102:Q103)","v":0},0,{"$f":"SUM(S102:S103)","v":0},{"$f":"SUM(T102:T103)","v":0},0,{"$f":"SUM(V102:V103)","v":0}]
[1,"EX11421",null,null,null,"Adjustments to fair value of assets",null,null,{"$f":"'[1]11'!J102","v":0},{"$f":"'[1]11'!L102","v":0},{"$f":"'[1]11'!N102","v":0},{"$f":"'[1]11'!N102","v":0},{"$f":"'[1]11'!Q102","v":0},{"$f":"'[1]11'!Q102","v":0},0,{"$f":"'[1]11'!T102","v":0},{"$f":"'[1]11'!T102","v":0},0,{"$f":"'[1]11'!V102","v":0},{"$f":"'[1]11'!V102","v":0},0]
[1,"EX11422",null,null,null,"Impairments to assets",null,null,{"$f":"'[1]11'!J103","v":0},{"$f":"'[1]11'!L103","v":0},{"$f":"'[1]11'!N103","v":0},{"$f":"'[1]11'!N103","v":0},{"$f":"'[1]11'!Q103","v":0},{"$f":"'[1]11'!Q103","v":0},0,{"$f":"'[1]11'!T103","v":0},{"$f":"'[1]11'!T103","v":0},0,{"$f":"'[1]11'!V103","v":0},{"$f":"'[1]11'!V103","v":0},0]
[1,"EX1143",null,null,null,"Other",null,null,{"$f":"'[1]11'!J104","v":0},{"$f":"'[1]11'!L104","v":0},{"$f":"'[1]11'!N104","v":0},{"$f":"'[1]11'!N104","v":0},{"$f":"'[1]11'!Q104","v":0},{"$f":"'[1]11'!Q104","v":0},0,{"$f":"'[1]11'!T104","v":0},{"$f":"'[1]11'!T104","v":0},0,{"$f":"'[1]11'!V104","v":0},{"$f":"'[1]11'!V104","v":0},0]
[1,"EX115",null,null,null,"Interest, dividends and rent on land",null,null,{"$f":"SUM(I106:I108)","v":0},0,0,0,0,0,0,{"$f":"SUM(P106:P108)","v":0},{"$f":"SUM(Q106:Q108)","v":0},0,{"$f":"SUM(S106:S108)","v":0},{"$f":"SUM(T106:T108)","v":0},0,{"$f":"SUM(V106:V108)","v":0}]
[1,"EX1151",null,null,null,"Interest",null,null,{"$f":"'[1]11'!J106","v":0},{"$f":"'[1]11'!L106","v":0},{"$f":"'[1]11'!N106","v":0},{"$f":"'[1]11'!N106","v":0},{"$f":"'[1]11'!Q106","v":0},{"$f":"'[1]11'!Q106","v":0},0,{"$f":"'[1]11'!T106","v":0},{"$f":"'[1]11'!T106","v":0},0,{"$f":"'[1]11'!V106","v":0},{"$f":"'[1]11'!V106","v":0},0]
[1,"EX1152",null,null,null,"Dividends",null,null,{"$f":"'[1]11'!J107","v":0},{"$f":"'[1]11'!L107","v":0},{"$f":"'[1]11'!N107","v":0},{"$f":"'[1]11'!N107","v":0},{"$f":"'[1]11'!Q107","v":0},{"$f":"'[1]11'!Q107","v":0},0,{"$f":"'[1]11'!T107","v":0},{"$f":"'[1]11'!T107","v":0},0,{"$f":"'[1]11'!V107","v":0},{"$f":"'[1]11'!V107","v":0},0]
[1,"EX1153",null,null,null,"Rent on land",null,null,{"$f":"'[1]11'!J108","v":0},{"$f":"'[1]11'!L108","v":0},{"$f":"'[1]11'!N108","v":0},{"$f":"'[1]11'!N108","v":0},{"$f":"'[1]11'!Q108","v":0},{"$f":"'[1]11'!Q108","v":0},0,{"$f":"'[1]11'!T108","v":0},{"$f":"'[1]11'!T108","v":0},0,{"$f":"'[1]11'!V108","v":0},{"$f":"'[1]11'!V108","v":0},0]
[1,"EX12",null,null,null,"Transfers and subsidies",null,null,{"$f":"SUM(I110,I121,I132:I135)","v":0},0,0,0,0,0,0,{"$f":"SUM(P110,P121,P132:P135)","v":0},{"$f":"SUM(Q110,Q121,Q132:Q135)","v":0},0,{"$f":"SUM(S110,S121,S132:S135)","v":0},{"$f":"SUM(T110,T121,T132:T135)","v":0},0,{"$f":"SUM(V110,V121,V132:V135)","v":0}]
[2,"EX121",null,null,null,"Employer Grant (SETAs only)",null,null,{"$f":"SUM(I111,I117,I120)","v":0},0,0,0,0,0,0,{"$f":"SUM(P111,P117,P120)","v":0},{"$f":"SUM(Q111,Q117,Q120)","v":0},0,{"$f":"SUM(S111,S117,S120)","v":0},{"$f":"SUM(T111,T117,T120)","v":0},0,{"$f":"SUM(V111,V117,V120)","v":0}]
[1,"EX122",null,null,null,"Other government units",null,null,{"$f":"SUM(I112:I116)","v":0},0,0,0,0,0,0,{"$f":"SUM(P112:P116)","v":0},{"$f":"SUM(Q112:Q116)","v":0},0,{"$f":"SUM(S112:S116)","v":0},{"$f":"SUM(T112:T116)","v":0},0,{"$f":"SUM(V112:V116)","v":0}]
[1,"EX1221",null,null,null,"National government",null,null,{"$f":"'[1]11'!J112","v":0},{"$f":"'[1]11'!L112","v":0},{"$f":"'[1]11'!N112","v":0},{"$f":"'[1]11'!N112","v":0},{"$f":"'[1]11'!Q112","v":0},{"$f":"'[1]11'!Q112","v":0},0,{"$f":"'[1]11'!T112","v":0},{"$f":"'[1]11'!T112","v":0},0,{"$f":"'[1]11'!V112","v":0},{"$f":"'[1]11'!V112","v":0},0]
[1,"EX1222",null,null,null,"Departmental agencies and accounts",null,null,{"$f":"'[1]11'!J113","v":0},{"$f":"'[1]11'!L113","v":0},{"$f":"'[1]11'!N113","v":0},{"$f":"'[1]11'!N113","v":0},{"$f":"'[1]11'!Q113","v":0},{"$f":"'[1]11'!Q113","v":0},0,{"$f":"'[1]11'!T113","v":0},{"$f":"'[1]11'!T113","v":0},0,{"$f":"'[1]11'!V113","v":0},{"$f":"'[1]11'!V113","v":0},0]
[1,"EX1223",null,null,null,"Provinces",null,null,{"$f":"'[1]11'!J114","v":0},{"$f":"'[1]11'!L114","v":0},{"$f":"'[1]11'!N114","v":0},{"$f":"'[1]11'!N114","v":0},{"$f":"'[1]11'!Q114","v":0},{"$f":"'[1]11'!Q114","v":0},0,{"$f":"'[1]11'!T114","v":0},{"$f":"'[1]11'!T114","v":0},0,{"$f":"'[1]11'!V114","v":0},{"$f":"'[1]11'!V114","v":0},0]
[1,"EX1224",null,null,null,"Municipalities",null,null,{"$f":"'[1]11'!J115","v":0},{"$f":"'[1]11'!L115","v":0},{"$f":"'[1]11'!N115","v":0},{"$f":"'[1]11'!N115","v":0},{"$f":"'[1]11'!Q115","v":0},{"$f":"'[1]11'!Q115","v":0},0,{"$f":"'[1]11'!T115","v":0},{"$f":"'[1]11'!T115","v":0},0,{"$f":"'[1]11'!V115","v":0},{"$f":"'[1]11'!V115","v":0},0]
[2,"EX1225",null,null,null,"National Skills Fund",null,null,{"$f":"'[1]11'!J116","v":0},{"$f":"'[1]11'!L116","v":0},{"$f":"'[1]11'!N116","v":0},{"$f":"'[1]11'!N116","v":0},{"$f":"'[1]11'!Q116","v":0},{"$f":"'[1]11'!Q116","v":0},0,{"$f":"'[1]11'!T116","v":0},{"$f":"'[1]11'!T116","v":0},0,{"$f":"'[1]11'!V116","v":0},{"$f":"'[1]11'!V116","v":0},0]
[1,"EX123",null,null,null,"Public corporations and private enterprises (subsidies and other transfers)",null,null,{"$f":"SUM(I118:I119)","v":0},0,0,0,0,0,0,{"$f":"SUM(P118:P119)","v":0},{"$f":"SUM(Q118:Q119)","v":0},0,{"$f":"SUM(S118:S119)","v":0},{"$f":"SUM(T118:T119)","v":0},0,{"$f":"SUM(V118:V119)","v":0}]
[1,"EX1231",null,null,null,"Public corporations",null,null,{"$f":"'[1]11'!J118","v":0},{"$f":"'[1]11'!L118","v":0},{"$f":"'[1]11'!N118","v":0},{"$f":"'[1]11'!N118","v":0},{"$f":"'[1]11'!Q118","v":0},{"$f":"'[1]11'!Q118","v":0},0,{"$f":"'[1]11'!T118","v":0},{"$f":"'[1]11'!T118","v":0},0,{"$f":"'[1]11'!V118","v":0},{"$f":"'[1]11'!V118","v":0},0]
[1,"EX1232",null,null,null,"Private enterprises",null,null,{"$f":"'[1]11'!J119","v":0},{"$f":"'[1]11'!L119","v":0},{"$f":"'[1]11'!N119","v":0},{"$f":"'[1]11'!N119","v":0},{"$f":"'[1]11'!Q119","v":0},{"$f":"'[1]11'!Q119","v":0},0,{"$f":"'[1]11'!T119","v":0},{"$f":"'[1]11'!T119","v":0},0,{"$f":"'[1]11'!V119","v":0},{"$f":"'[1]11'!V119","v":0},0]
[2,"EX124",null,null,null,"Households and non government units",null,null,{"$f":"'[1]11'!J120","v":0},{"$f":"'[1]11'!L120","v":0},{"$f":"'[1]11'!N120","v":0},{"$f":"'[1]11'!N120","v":0},{"$f":"'[1]11'!Q120","v":0},{"$f":"'[1]11'!Q120","v":0},0,{"$f":"'[1]11'!T120","v":0},{"$f":"'[1]11'!T120","v":0},0,{"$f":"'[1]11'!V120","v":0},{"$f":"'[1]11'!V120","v":0},0]
[2,"EX125",null,null,null,"Discretionary Grant (SETAs only)",null,null,{"$f":"SUM(I122,I128,I131)","v":0},0,0,0,0,0,0,{"$f":"SUM(P122,P128,P131)","v":0},{"$f":"SUM(Q122,Q128,Q131)","v":0},0,{"$f":"SUM(S122,S128,S131)","v":0},{"$f":"SUM(T122,T128,T131)","v":0},0,{"$f":"SUM(V122,V128,V131)","v":0}]
[2,"EX126",null,null,null,"Other government units",null,null,{"$f":"SUM(I123:I127)","v":0},0,0,0,0,0,0,{"$f":"SUM(P123:P127)","v":0},{"$f":"SUM(Q123:Q127)","v":0},0,{"$f":"SUM(S123:S127)","v":0},{"$f":"SUM(T123:T127)","v":0},0,{"$f":"SUM(V123:V127)","v":0}]
[2,"EX1261",null,null,null,"National government",null,null,{"$f":"'[1]11'!J123","v":0},{"$f":"'[1]11'!L123","v":0},{"$f":"'[1]11'!N123","v":0},{"$f":"'[1]11'!N123","v":0},{"$f":"'[1]11'!Q123","v":0},{"$f":"'[1]11'!Q123","v":0},0,{"$f":"'[1]11'!T123","v":0},{"$f":"'[1]11'!T123","v":0},0,{"$f":"'[1]11'!V123","v":0},{"$f":"'[1]11'!V123","v":0},0]
[2,"EX1262",null,null,null,"Departmental agencies and accounts",null,null,{"$f":"'[1]11'!J124","v":0},{"$f":"'[1]11'!L124","v":0},{"$f":"'[1]11'!N124","v":0},{"$f":"'[1]11'!N124","v":0},{"$f":"'[1]11'!Q124","v":0},{"$f":"'[1]11'!Q124","v":0},0,{"$f":"'[1]11'!T124","v":0},{"$f":"'[1]11'!T124","v":0},0,{"$f":"'[1]11'!V124","v":0},{"$f":"'[1]11'!V124","v":0},0]
[2,"EX1263",null,null,null,"Provinces",null,null,{"$f":"'[1]11'!J125","v":0},{"$f":"'[1]11'!L125","v":0},{"$f":"'[1]11'!N125","v":0},{"$f":"'[1]11'!N125","v":0},{"$f":"'[1]11'!Q125","v":0},{"$f":"'[1]11'!Q125","v":0},0,{"$f":"'[1]11'!T125","v":0},{"$f":"'[1]11'!T125","v":0},0,{"$f":"'[1]11'!V125","v":0},{"$f":"'[1]11'!V125","v":0},0]
[2,"EX1264",null,null,null,"Municipalities",null,null,{"$f":"'[1]11'!J126","v":0},{"$f":"'[1]11'!L126","v":0},{"$f":"'[1]11'!N126","v":0},{"$f":"'[1]11'!N126","v":0},{"$f":"'[1]11'!Q126","v":0},{"$f":"'[1]11'!Q126","v":0},0,{"$f":"'[1]11'!T126","v":0},{"$f":"'[1]11'!T126","v":0},0,{"$f":"'[1]11'!V126","v":0},{"$f":"'[1]11'!V126","v":0},0]
[2,"EX1265",null,null,null,"National Skills Fund",null,null,{"$f":"'[1]11'!J127","v":0},{"$f":"'[1]11'!L127","v":0},{"$f":"'[1]11'!N127","v":0},{"$f":"'[1]11'!N127","v":0},{"$f":"'[1]11'!Q127","v":0},{"$f":"'[1]11'!Q127","v":0},0,{"$f":"'[1]11'!T127","v":0},{"$f":"'[1]11'!T127","v":0},0,{"$f":"'[1]11'!V127","v":0},{"$f":"'[1]11'!V127","v":0},0]
[2,"EX127",null,null,null,"Public corporations and private enterprises (subsidies and other transfers)",null,null,{"$f":"SUM(I129:I130)","v":0},0,0,0,0,0,0,{"$f":"SUM(P129:P130)","v":0},{"$f":"SUM(Q129:Q130)","v":0},0,{"$f":"SUM(S129:S130)","v":0},{"$f":"SUM(T129:T130)","v":0},0,{"$f":"SUM(V129:V130)","v":0}]
[2,"EX1271",null,null,null,"Public corporations",null,null,{"$f":"'[1]11'!J129","v":0},{"$f":"'[1]11'!L129","v":0},{"$f":"'[1]11'!N129","v":0},{"$f":"'[1]11'!N129","v":0},{"$f":"'[1]11'!Q129","v":0},{"$f":"'[1]11'!Q129","v":0},0,{"$f":"'[1]11'!T129","v":0},{"$f":"'[1]11'!T129","v":0},0,{"$f":"'[1]11'!V129","v":0},{"$f":"'[1]11'!V129","v":0},{"$f":"SUM(T129-S129)","v":0}]
[2,"EX1272",null,null,null,"Private enterprises",null,null,{"$f":"'[1]11'!J130","v":0},{"$f":"'[1]11'!L130","v":0},{"$f":"'[1]11'!N130","v":0},{"$f":"'[1]11'!N130","v":0},{"$f":"'[1]11'!Q130","v":0},{"$f":"'[1]11'!Q130","v":0},0,{"$f":"'[1]11'!T130","v":0},{"$f":"'[1]11'!T130","v":0},0,{"$f":"'[1]11'!V130","v":0},{"$f":"'[1]11'!V130","v":0},0]
[2,"EX128",null,null,null,"Households and non government units",null,null,{"$f":"'[1]11'!J131","v":0},{"$f":"'[1]11'!L131","v":0},{"$f":"'[1]11'!N131","v":0},{"$f":"'[1]11'!N131","v":0},{"$f":"'[1]11'!Q131","v":0},{"$f":"'[1]11'!Q131","v":0},0,{"$f":"'[1]11'!T131","v":0},{"$f":"'[1]11'!T131","v":0},0,{"$f":"'[1]11'!V131","v":0},{"$f":"'[1]11'!V131","v":0},0]
[1,"EX129",null,null,null,"Higher education institutions",null,null,{"$f":"'[1]11'!J132","v":0},{"$f":"'[1]11'!L132","v":0},{"$f":"'[1]11'!N132","v":0},{"$f":"'[1]11'!N132","v":0},{"$f":"'[1]11'!Q132","v":0},{"$f":"'[1]11'!Q132","v":0},0,{"$f":"'[1]11'!T132","v":0},{"$f":"'[1]11'!T132","v":0},0,{"$f":"'[1]11'!V132","v":0},{"$f":"'[1]11'!V132","v":0},0]
[1,"EX130",null,null,null,"Foreign governments and international organisations ",null,null,{"$f":"'[1]11'!J133","v":0},{"$f":"'[1]11'!L133","v":0},{"$f":"'[1]11'!N133","v":0},{"$f":"'[1]11'!N133","v":0},{"$f":"'[1]11'!Q133","v":0},{"$f":"'[1]11'!Q133","v":0},0,{"$f":"'[1]11'!T133","v":0},{"$f":"'[1]11'!T133","v":0},0,{"$f":"'[1]11'!V133","v":0},{"$f":"'[1]11'!V133","v":0},0]
[1,"EX131",null,null,null,"Non-profit institutions",null,null,{"$f":"'[1]11'!J134","v":0},{"$f":"'[1]11'!L134","v":0},{"$f":"'[1]11'!N134","v":0},{"$f":"'[1]11'!N134","v":0},{"$f":"'[1]11'!Q134","v":0},{"$f":"'[1]11'!Q134","v":0},0,{"$f":"'[1]11'!T134","v":0},{"$f":"'[1]11'!T134","v":0},0,{"$f":"'[1]11'!V134","v":0},{"$f":"'[1]11'!V134","v":0},0]
[1,"EX132",null,null,null,"Households",null,null,{"$f":"SUM(I136:I137)","v":0},0,0,0,0,0,{"$f":"SUM(N135-M135)","v":0},{"$f":"SUM(P136:P137)","v":0},{"$f":"SUM(Q136:Q137)","v":0},{"$f":"SUM(Q135-P135)","v":0},{"$f":"SUM(S136:S137)","v":0},{"$f":"SUM(T136:T137)","v":0},{"$f":"SUM(T135-S135)","v":0},{"$f":"SUM(V136:V137)","v":0}]
[1,"EX1301",null,null,null,"Social benefits ",null,null,{"$f":"'[1]11'!J136","v":0},{"$f":"'[1]11'!L136","v":0},{"$f":"'[1]11'!N136","v":0},{"$f":"'[1]11'!N136","v":0},{"$f":"'[1]11'!Q136","v":0},{"$f":"'[1]11'!Q136","v":0},0,{"$f":"'[1]11'!T136","v":0},{"$f":"'[1]11'!T136","v":0},0,{"$f":"'[1]11'!V136","v":0},{"$f":"'[1]11'!V136","v":0},0]
[1,"EX1302",null,null,null,"Other transfers to households",null,null,{"$f":"'[1]11'!J137","v":0},{"$f":"'[1]11'!L137","v":0},{"$f":"'[1]11'!N137","v":0},{"$f":"'[1]11'!N137","v":0},{"$f":"'[1]11'!Q137","v":0},{"$f":"'[1]11'!Q137","v":0},0,{"$f":"'[1]11'!T137","v":0},{"$f":"'[1]11'!T137","v":0},0,{"$f":"'[1]11'!V137","v":0},{"$f":"'[1]11'!V137","v":0},0]
[1,"EX13",null,null,null,"Tax payment",null,null,{"$f":"'[1]11'!J138","v":0},{"$f":"'[1]11'!L138","v":0},{"$f":"'[1]11'!N138","v":0},{"$f":"'[1]11'!N138","v":0},{"$f":"'[1]11'!Q138","v":0},{"$f":"'[1]11'!Q138","v":0},0,{"$f":"'[1]11'!T138","v":0},{"$f":"'[1]11'!T138","v":0},0,{"$f":"'[1]11'!V138","v":0},{"$f":"'[1]11'!V138","v":0},0]
[1,"EX14",null,null,null,"Outside shareholders Interest",null,null,{"$f":"'[1]11'!J139","v":0},{"$f":"'[1]11'!L139","v":0},{"$f":"'[1]11'!N139","v":0},{"$f":"'[1]11'!N139","v":0},{"$f":"'[1]11'!Q139","v":0},{"$f":"'[1]11'!Q139","v":0},0,{"$f":"'[1]11'!T139","v":0},{"$f":"'[1]11'!T139","v":0},0,{"$f":"'[1]11'!V139","v":0},{"$f":"'[1]11'!V139","v":0},0]
[1,"EX15",null,null,null,"Total Expenditure",null,null,{"$f":"SUM(I39,I109,I138:I139)","v":0},0,0,0,0,0,0,{"$f":"SUM(P39,P109,P138:P139)","v":0},{"$f":"SUM(Q39,Q109,Q138:Q139)","v":0},0,{"$f":"SUM(S39,S109,S138:S139)","v":0},{"$f":"SUM(T39,T109,T138:T139)","v":0},0,{"$f":"SUM(V39,V109,V138:V139)","v":0}]
[1]
[1,null,null,null,null,"Objective less Expenditure",null,null,{"$f":"ROUND(IF(I37-I140>0,IF(I37-I140<1,0,I37-I140),I37-I140),0)","v":0},0,null,0,0,0,{"$f":"ROUND(IF(O37-O140>0,IF(O37-O140<1,0,O37-O140),O37-O140),0)","v":0},0,0,0,0,0,0,0]
[1]

{"sheet":"12","index":16,"n_rows":143,"n_cols":23,"rows_kept":143,"cut":false,"hidden":false,"merged":[[31,12,31,14],[31,15,31,17],[31,18,31,20],[31,10,31,11]]}
[]
[]
[]
[]
[]
[null,null,null,null,null,"PE No",{"$f":"Settings!O2","v":"PE126"}]
[null,null,null,null,null,"Entity name",{"$f":"Settings!$E$2","v":"South African Revenue Service"}]
[]
[null,null,null,null,null,"Performance and operations information"]
["ItemCat","Item code","Hide/unhide",null,null,"Activity/Output/Outcome/Efficiency Indicator","MTDP Outcomes",null,{"$f":"MyYearM3","v":"2022/23"},{"$f":"MyYearM2","v":"2023/24"},{"$f":"MyYearM1","v":"2024/25"},{"$f":"MyYear0","v":"2025/26"},{"$f":"MyYearP1","v":"2026/27"},{"$f":"MyYearP2","v":"2027/28"},{"$f":"MyYearP3","v":"2028/29"},"Related Objectives","Add to 'Performance Indicators' Sheet","Comments"]
[1,null,null,null,null,{"$f":"'[1]12'!F11","v":0},{"$f":"'[1]12'!G11","v":0},0,{"$f":"'[1]12'!J11","v":0},{"$f":"'[1]12'!K11","v":0},{"$f":"'[1]12'!L11","v":0},{"$f":"'[1]12'!M11","v":0},{"$f":"'[1]12'!N11","v":0},{"$f":"'[1]12'!O11","v":0},null,{"$f":"'[1]12'!P11","v":0},{"$f":"'[1]12'!Q11","v":0},{"$f":"'[1]12'!R11","v":0}]
[1,null,null,null,null,{"$f":"'[1]12'!F12","v":0},{"$f":"'[1]12'!G12","v":0},0,{"$f":"'[1]12'!J12","v":0},{"$f":"'[1]12'!K12","v":0},{"$f":"'[1]12'!L12","v":0},{"$f":"'[1]12'!M12","v":0},{"$f":"'[1]12'!N12","v":0},{"$f":"'[1]12'!O12","v":0},null,{"$f":"'[1]12'!P12","v":0},{"$f":"'[1]12'!Q12","v":0},{"$f":"'[1]12'!R12","v":0}]
[1,null,null,null,null,{"$f":"'[1]12'!F13","v":0},{"$f":"'[1]12'!G13","v":0},0,{"$f":"'[1]12'!J13","v":0},{"$f":"'[1]12'!K13","v":0},{"$f":"'[1]12'!L13","v":0},{"$f":"'[1]12'!M13","v":0},{"$f":"'[1]12'!N13","v":0},{"$f":"'[1]12'!O13","v":0},null,{"$f":"'[1]12'!P13","v":0},{"$f":"'[1]12'!Q13","v":0},{"$f":"'[1]12'!R13","v":0}]
[1,null,null,null,null,{"$f":"'[1]12'!F14","v":0},{"$f":"'[1]12'!G14","v":0},0,{"$f":"'[1]12'!J14","v":0},{"$f":"'[1]12'!K14","v":0},{"$f":"'[1]12'!L14","v":0},{"$f":"'[1]12'!M14","v":0},{"$f":"'[1]12'!N14","v":0},{"$f":"'[1]12'!O14","v":0},null,{"$f":"'[1]12'!P14","v":0},{"$f":"'[1]12'!Q14","v":0},{"$f":"'[1]12'!R14","v":0}]
[1,null,null,null,null,{"$f":"'[1]12'!F15","v":0},{"$f":"'[1]12'!G15","v":0},0,{"$f":"'[1]12'!J15","v":0},{"$f":"'[1]12'!K15","v":0},{"$f":"'[1]12'!L15","v":0},{"$f":"'[1]12'!M15","v":0},{"$f":"'[1]12'!N15","v":0},{"$f":"'[1]12'!O15","v":0},null,{"$f":"'[1]12'!P15","v":0},{"$f":"'[1]12'!Q15","v":0},{"$f":"'[1]12'!R15","v":0}]
[1,null,null,null,null,{"$f":"'[1]12'!F16","v":0},{"$f":"'[1]12'!G16","v":0},0,{"$f":"'[1]12'!J16","v":0},{"$f":"'[1]12'!K16","v":0},{"$f":"'[1]12'!L16","v":0},{"$f":"'[1]12'!M16","v":0},{"$f":"'[1]12'!N16","v":0},{"$f":"'[1]12'!O16","v":0},null,{"$f":"'[1]12'!P16","v":0},{"$f":"'[1]12'!Q16","v":0},{"$f":"'[1]12'!R16","v":0}]
[1,null,null,null,null,{"$f":"'[1]12'!F17","v":0},{"$f":"'[1]12'!G17","v":0},0,{"$f":"'[1]12'!J17","v":0},{"$f":"'[1]12'!K17","v":0},{"$f":"'[1]12'!L17","v":0},{"$f":"'[1]12'!M17","v":0},{"$f":"'[1]12'!N17","v":0},{"$f":"'[1]12'!O17","v":0},null,{"$f":"'[1]12'!P17","v":0},{"$f":"'[1]12'!Q17","v":0},{"$f":"'[1]12'!R17","v":0}]
[1,null,null,null,null,{"$f":"'[1]12'!F18","v":0},{"$f":"'[1]12'!G18","v":0},0,{"$f":"'[1]12'!J18","v":0},{"$f":"'[1]12'!K18","v":0},{"$f":"'[1]12'!L18","v":0},{"$f":"'[1]12'!M18","v":0},{"$f":"'[1]12'!N18","v":0},{"$f":"'[1]12'!O18","v":0},null,{"$f":"'[1]12'!P18","v":0},{"$f":"'[1]12'!Q18","v":0},{"$f":"'[1]12'!R18","v":0}]
[1,null,null,null,null,{"$f":"'[1]12'!F19","v":0},{"$f":"'[1]12'!G19","v":0},0,{"$f":"'[1]12'!J19","v":0},{"$f":"'[1]12'!K19","v":0},{"$f":"'[1]12'!L19","v":0},{"$f":"'[1]12'!M19","v":0},{"$f":"'[1]12'!N19","v":0},{"$f":"'[1]12'!O19","v":0},null,{"$f":"'[1]12'!P19","v":0},{"$f":"'[1]12'!Q19","v":0},{"$f":"'[1]12'!R19","v":0}]
[1,null,null,null,null,{"$f":"'[1]12'!F20","v":0},{"$f":"'[1]12'!G20","v":0},0,{"$f":"'[1]12'!J20","v":0},{"$f":"'[1]12'!K20","v":0},{"$f":"'[1]12'!L20","v":0},{"$f":"'[1]12'!M20","v":0},{"$f":"'[1]12'!N20","v":0},{"$f":"'[1]12'!O20","v":0},null,{"$f":"'[1]12'!P20","v":0},{"$f":"'[1]12'!Q20","v":0},{"$f":"'[1]12'!R20","v":0}]
[1,null,null,null,null,{"$f":"'[1]12'!F21","v":0},{"$f":"'[1]12'!G21","v":0},0,{"$f":"'[1]12'!J21","v":0},{"$f":"'[1]12'!K21","v":0},{"$f":"'[1]12'!L21","v":0},{"$f":"'[1]12'!M21","v":0},{"$f":"'[1]12'!N21","v":0},{"$f":"'[1]12'!O21","v":0},null,{"$f":"'[1]12'!P21","v":0},{"$f":"'[1]12'!Q21","v":0},{"$f":"'[1]12'!R21","v":0}]
[1,null,null,null,null,{"$f":"'[1]12'!F22","v":0},{"$f":"'[1]12'!G22","v":0},0,{"$f":"'[1]12'!J22","v":0},{"$f":"'[1]12'!K22","v":0},{"$f":"'[1]12'!L22","v":0},{"$f":"'[1]12'!M22","v":0},{"$f":"'[1]12'!N22","v":0},{"$f":"'[1]12'!O22","v":0},null,{"$f":"'[1]12'!P22","v":0},{"$f":"'[1]12'!Q22","v":0},{"$f":"'[1]12'!R22","v":0}]
[1,null,null,null,null,{"$f":"'[1]12'!F23","v":0},{"$f":"'[1]12'!G23","v":0},0,{"$f":"'[1]12'!J23","v":0},{"$f":"'[1]12'!K23","v":0},{"$f":"'[1]12'!L23","v":0},{"$f":"'[1]12'!M23","v":0},{"$f":"'[1]12'!N23","v":0},{"$f":"'[1]12'!O23","v":0},null,{"$f":"'[1]12'!P23","v":0},{"$f":"'[1]12'!Q23","v":0},{"$f":"'[1]12'!R23","v":0}]
[1,null,null,null,null,{"$f":"'[1]12'!F24","v":0},{"$f":"'[1]12'!G24","v":0},0,{"$f":"'[1]12'!J24","v":0},{"$f":"'[1]12'!K24","v":0},{"$f":"'[1]12'!L24","v":0},{"$f":"'[1]12'!M24","v":0},{"$f":"'[1]12'!N24","v":0},{"$f":"'[1]12'!O24","v":0},null,{"$f":"'[1]12'!P24","v":0},{"$f":"'[1]12'!Q24","v":0},{"$f":"'[1]12'!R24","v":0}]
[1,null,null,null,null,{"$f":"'[1]12'!F25","v":0},{"$f":"'[1]12'!G25","v":0},0,{"$f":"'[1]12'!J25","v":0},{"$f":"'[1]12'!K25","v":0},{"$f":"'[1]12'!L25","v":0},{"$f":"'[1]12'!M25","v":0},{"$f":"'[1]12'!N25","v":0},{"$f":"'[1]12'!O25","v":0},null,{"$f":"'[1]12'!P25","v":0},{"$f":"'[1]12'!Q25","v":0},{"$f":"'[1]12'!R25","v":0}]
[1,null,null,null,null,"Notes:"]
[1,null,null,null,null,"Performance indicators are an explanation of objectives performance.   "]
[1,null,null,null,null,"1. They are specific measurements that track progress towards achieving the goals and objectives of an institution."]
[1,null,null,null,null,"2. Institutions should use performance indicators in the 2024/25 Annual Performance Plans and those in the 2025 ENE. "]
[1,null,null,null,null,"3. Institutions should also indicate instances where targets are not affected by budget baseline reprioritisation."]
[1]
[1,null,null,null,null,null,null,null,{"$f":"MyYearM3","v":"2022/23"},{"$f":"MyYearM2","v":"2023/24"},{"$f":"MyYearM1","v":"2024/25"},null,{"$f":"MyYear0","v":"2025/26"},null,null,{"$f":"MyYearP1","v":"2026/27"},null,null,{"$f":"MyYearP2","v":"2027/28"},null,null,{"$f":"MyYearP3","v":"2028/29"}]
[1,null,null,null,null,"Expenses",null,null,{"$f":"Hist_year3RestatedAudited","v":"Audited\noutcome"},{"$f":"Hist_year2RestatedAudited","v":"Audited\noutcome"},{"$f":"Hist_year1Budget","v":"Budget"},{"$f":"Hist_year1Audited","v":"Audited\noutcome"},{"$f":"Cur_YearBudgEst","v":"Budget\nestimate"},{"$f":"Cur_YearApprovedBudg","v":"Approved budget"},{"$f":"Cur_YearChangeFrRevBudg","v":"Changes from \nbudget estimate"},{"$f":"MTEF1BudgEst","v":"Budget\nestimate"},{"$f":"MTEF1RevBudgEst","v":"Revised\nbudget\nestimate"},{"$f":"MTEF1_ChangeFrBudgEst","v":"Changes from budget estimate"},{"$f":"MTEF2BudgEst","v":"Budget\nestimate"},{"$f":"MTEF2RevBudgEst","v":"Revised\nbudget\nestimate"},{"$f":"MTEF2_ChangeFrBudgEst","v":"Changes from budget estimate"},{"$f":"MTEF3PlanBudgetEst","v":"Planning\nbudget \nestimate"}]
[1]
[1,null,null,null,null,"Rand thousand"]
[1,null,null,null,null,"Objective/Activity"]
[1,null,null,null,null,{"$f":"'[1]12'!F37","v":0},null,null,{"$f":"'[1]12'!J37","v":0},{"$f":"'[1]12'!L37","v":0},{"$f":"'[1]12'!N37","v":0},{"$f":"'[1]12'!N37","v":0},{"$f":"'[1]12'!Q37","v":0},{"$f":"'[1]12'!Q37","v":0},{"$f":"SUM(N37-M37)","v":0},{"$f":"'[1]12'!T37","v":0},{"$f":"'[1]12'!T37","v":0},{"$f":"SUM(Q37-P37)","v":0},{"$f":"'[1]12'!V37","v":0},{"$f":"'[1]12'!V37","v":0},{"$f":"SUM(T37-S37)","v":0}]
[1,null,null,null,null,"Economic classification"]
[1,"EX11",null,null,null,"Current payments",null,null,{"$f":"SUM(I40,I43,I98:I99,I105)","v":0},0,0,0,0,0,{"$f":"SUM(N39-M39)","v":0},{"$f":"SUM(P40,P43,P98:P99,P105)","v":0},{"$f":"SUM(Q40,Q43,Q98:Q99,Q105)","v":0},{"$f":"SUM(Q39-P39)","v":0},{"$f":"SUM(S40,S43,S98:S99,S105)","v":0},{"$f":"SUM(T40,T43,T98:T99,T105)","v":0},{"$f":"SUM(T39-S39)","v":0},{"$f":"SUM(V40,V43,V98:V99,V105)","v":0}]
[1,"EX111",null,null,null,"Compensation of employees",null,null,{"$f":"SUM(I41:I42)","v":0},0,0,0,0,0,{"$f":"SUM(N40-M40)","v":0},{"$f":"SUM(P41:P42)","v":0},{"$f":"SUM(Q41:Q42)","v":0},{"$f":"SUM(Q40-P40)","v":0},{"$f":"SUM(S41:S42)","v":0},{"$f":"SUM(T41:T42)","v":0},{"$f":"SUM(T40-S40)","v":0},{"$f":"SUM(V41:V42)","v":0}]
[1,"EX1111",null,null,null,"Salaries and wages",null,null,{"$f":"'[1]12'!J41","v":0},{"$f":"'[1]12'!L41","v":0},{"$f":"'[1]12'!N41","v":0},{"$f":"'[1]12'!N41","v":0},{"$f":"'[1]12'!Q41","v":0},{"$f":"'[1]12'!Q41","v":0},{"$f":"SUM(N41-M41)","v":0},{"$f":"'[1]12'!T41","v":0},{"$f":"'[1]12'!T41","v":0},{"$f":"SUM(Q41-P41)","v":0},{"$f":"'[1]12'!V41","v":0},{"$f":"'[1]12'!V41","v":0},{"$f":"SUM(T41-S41)","v":0}]
[1,"EX1112",null,null,null,"Social contributions",null,null,{"$f":"'[1]12'!J42","v":0},{"$f":"'[1]12'!L42","v":0},{"$f":"'[1]12'!N42","v":0},{"$f":"'[1]12'!N42","v":0},{"$f":"'[1]12'!Q42","v":0},{"$f":"'[1]12'!Q42","v":0},{"$f":"SUM(N42-M42)","v":0},{"$f":"'[1]12'!T42","v":0},{"$f":"'[1]12'!T42","v":0},{"$f":"SUM(Q42-P42)","v":0},{"$f":"'[1]12'!V42","v":0},{"$f":"'[1]12'!V42","v":0},{"$f":"SUM(T42-S42)","v":0}]
[1,"EX112",null,null,null,"Goods and services",null,null,{"$f":"SUM(I45:I54,I58:I61,I73,I75:I97)","v":0},{"$f":"SUM(J45:J54,J58:J61,J73,J75:J97)","v":0},{"$f":"SUM(K45:K54,K58:K61,K73,K75:K97)","v":0},0,0,0,0,0,0,0,0,0,0,0,{"$f":"SUM(W45:W54,W58:W61,W73,W75:W97)","v":0}]
[1,"EX000",null,null,null,"Of which 1"]
[1,"EX1133",null,null,null,"Administrative fees",null,null,{"$f":"'[1]12'!J45","v":0},{"$f":"'[1]12'!L45","v":0},{"$f":"'[1]12'!N45","v":0},{"$f":"'[1]12'!N45","v":0},{"$f":"'[1]12'!Q45","v":0},{"$f":"'[1]12'!Q45","v":0},{"$f":"SUM(N45-M45)","v":0},{"$f":"'[1]12'!T45","v":0},{"$f":"'[1]12'!T45","v":0},{"$f":"SUM(Q45-P45)","v":0},{"$f":"'[1]12'!V45","v":0},{"$f":"'[1]12'!V45","v":0},{"$f":"SUM(T45-S45)","v":0}]
[1,"EX1134",null,null,null,"Advertising",null,null,{"$f":"'[1]12'!J46","v":0},{"$f":"'[1]12'!L46","v":0},{"$f":"'[1]12'!N46","v":0},{"$f":"'[1]12'!N46","v":0},{"$f":"'[1]12'!Q46","v":0},{"$f":"'[1]12'!Q46","v":0},0,{"$f":"'[1]12'!T46","v":0},{"$f":"'[1]12'!T46","v":0},0,{"$f":"'[1]12'!V46","v":0},{"$f":"'[1]12'!V46","v":0},0]
[1,"EX1135",null,null,null,"Minor assets",null,null,{"$f":"'[1]12'!J47","v":0},{"$f":"'[1]12'!L47","v":0},{"$f":"'[1]12'!N47","v":0},{"$f":"'[1]12'!N47","v":0},{"$f":"'[1]12'!Q47","v":0},{"$f":"'[1]12'!Q47","v":0},0,{"$f":"'[1]12'!T47","v":0},{"$f":"'[1]12'!T47","v":0},0,{"$f":"'[1]12'!V47","v":0},{"$f":"'[1]12'!V47","v":0},0]
[1,"EX1136",null,null,null,"Audit costs: External",null,null,{"$f":"'[1]12'!J48","v":0},{"$f":"'[1]12'!L48","v":0},{"$f":"'[1]12'!N48","v":0},{"$f":"'[1]12'!N48","v":0},{"$f":"'[1]12'!Q48","v":0},{"$f":"'[1]12'!Q48","v":0},0,{"$f":"'[1]12'!T48","v":0},{"$f":"'[1]12'!T48","v":0},0,{"$f":"'[1]12'!V48","v":0},{"$f":"'[1]12'!V48","v":0},0]
[1,"EX1139",null,null,null,"Bursaries: Employees",null,null,{"$f":"'[1]12'!J49","v":0},{"$f":"'[1]12'!L49","v":0},{"$f":"'[1]12'!N49","v":0},{"$f":"'[1]12'!N49","v":0},{"$f":"'[1]12'!Q49","v":0},{"$f":"'[1]12'!Q49","v":0},0,{"$f":"'[1]12'!T49","v":0},{"$f":"'[1]12'!T49","v":0},0,{"$f":"'[1]12'!V49","v":0},{"$f":"'[1]12'!V49","v":0},0]
[1,"EX1140",null,null,null,"Catering: Internal activities",null,null,{"$f":"'[1]12'!J50","v":0},{"$f":"'[1]12'!L50","v":0},{"$f":"'[1]12'!N50","v":0},{"$f":"'[1]12'!N50","v":0},{"$f":"'[1]12'!Q50","v":0},{"$f":"'[1]12'!Q50","v":0},0,{"$f":"'[1]12'!T50","v":0},{"$f":"'[1]12'!T50","v":0},0,{"$f":"'[1]12'!V50","v":0},{"$f":"'[1]12'!V50","v":0},0]
[1,"EX1122",null,null,null,"Communication (G&S)",null,null,{"$f":"'[1]12'!J51","v":0},{"$f":"'[1]12'!L51","v":0},{"$f":"'[1]12'!N51","v":0},{"$f":"'[1]12'!N51","v":0},{"$f":"'[1]12'!Q51","v":0},{"$f":"'[1]12'!Q51","v":0},0,{"$f":"'[1]12'!T51","v":0},{"$f":"'[1]12'!T51","v":0},0,{"$f":"'[1]12'!V51","v":0},{"$f":"'[1]12'!V51","v":0},0]
[1,"EX1123",null,null,null,"Computer services",null,null,{"$f":"'[1]12'!J52","v":0},{"$f":"'[1]12'!L52","v":0},{"$f":"'[1]12'!N52","v":0},{"$f":"'[1]12'!N52","v":0},{"$f":"'[1]12'!Q52","v":0},{"$f":"'[1]12'!Q52","v":0},0,{"$f":"'[1]12'!T52","v":0},{"$f":"'[1]12'!T52","v":0},0,{"$f":"'[1]12'!V52","v":0},{"$f":"'[1]12'!V52","v":0},0]
[1,"EX1124",null,null,null,"Consultants: Business and advisory services",null,null,{"$f":"'[1]12'!J53","v":0},{"$f":"'[1]12'!L53","v":0},{"$f":"'[1]12'!N53","v":0},{"$f":"'[1]12'!N53","v":0},{"$f":"'[1]12'!Q53","v":0},{"$f":"'[1]12'!Q53","v":0},0,{"$f":"'[1]12'!T53","v":0},{"$f":"'[1]12'!T53","v":0},0,{"$f":"'[1]12'!V53","v":0},{"$f":"'[1]12'!V53","v":0},0]
[1,"EX1180",null,null,null,"Infrastructure and planning services",null,null,{"$f":"SUM(I55:I57)","v":0},0,0,0,0,0,{"$f":"SUM(N54-M54)","v":0},{"$f":"SUM(P55:P57)","v":0},{"$f":"SUM(Q55:Q57)","v":0},{"$f":"SUM(Q54-P54)","v":0},{"$f":"SUM(S55:S57)","v":0},{"$f":"SUM(T55:T57)","v":0},{"$f":"SUM(T54-S54)","v":0},{"$f":"SUM(V55:V57)","v":0}]
[1,"EX11801",null,null,null,"Maintenance and repairs: Buildings: Consultants",null,null,{"$f":"'[1]12'!J55","v":0},{"$f":"'[1]12'!L55","v":0},{"$f":"'[1]12'!N55","v":0},{"$f":"'[1]12'!N55","v":0},{"$f":"'[1]12'!Q55","v":0},{"$f":"'[1]12'!Q55","v":0},{"$f":"SUM(N55-M55)","v":0},{"$f":"'[1]12'!T55","v":0},{"$f":"'[1]12'!T55","v":0},{"$f":"SUM(Q55-P55)","v":0},{"$f":"'[1]12'!V55","v":0},{"$f":"'[1]12'!V55","v":0},0]
[1,"EX11802",null,null,null,"Maintenance and repairs: Other fixed structures: Consultants",null,null,{"$f":"'[1]12'!J56","v":0},{"$f":"'[1]12'!L56","v":0},{"$f":"'[1]12'!N56","v":0},{"$f":"'[1]12'!N56","v":0},{"$f":"'[1]12'!Q56","v":0},{"$f":"'[1]12'!Q56","v":0},0,{"$f":"'[1]12'!T56","v":0},{"$f":"'[1]12'!T56","v":0},0,{"$f":"'[1]12'!V56","v":0},{"$f":"'[1]12'!V56","v":0},0]
[1,"EX11803",null,null,null,"Other",null,null,{"$f":"'[1]12'!J57","v":0},{"$f":"'[1]12'!L57","v":0},{"$f":"'[1]12'!N57","v":0},{"$f":"'[1]12'!N57","v":0},{"$f":"'[1]12'!Q57","v":0},{"$f":"'[1]12'!Q57","v":0},0,{"$f":"'[1]12'!T57","v":0},{"$f":"'[1]12'!T57","v":0},0,{"$f":"'[1]12'!V57","v":0},{"$f":"'[1]12'!V57","v":0},0]
[1,"EX1164",null,null,null,"Laboratory services",null,null,{"$f":"'[1]12'!J58","v":0},{"$f":"'[1]12'!L58","v":0},{"$f":"'[1]12'!N58","v":0},{"$f":"'[1]12'!N58","v":0},{"$f":"'[1]12'!Q58","v":0},{"$f":"'[1]12'!Q58","v":0},0,{"$f":"'[1]12'!T58","v":0},{"$f":"'[1]12'!T58","v":0},0,{"$f":"'[1]12'!V58","v":0},{"$f":"'[1]12'!V58","v":0},0]
[1,"EX1162",null,null,null,"Legal services (G&S)",null,null,{"$f":"'[1]12'!J59","v":0},{"$f":"'[1]12'!L59","v":0},{"$f":"'[1]12'!N59","v":0},{"$f":"'[1]12'!N59","v":0},{"$f":"'[1]12'!Q59","v":0},{"$f":"'[1]12'!Q59","v":0},0,{"$f":"'[1]12'!T59","v":0},{"$f":"'[1]12'!T59","v":0},0,{"$f":"'[1]12'!V59","v":0},{"$f":"'[1]12'!V59","v":0},0]
[1,"EX1165",null,null,null,"Science and technological services",null,null,{"$f":"'[1]12'!J60","v":0},{"$f":"'[1]12'!L60","v":0},{"$f":"'[1]12'!N60","v":0},{"$f":"'[1]12'!N60","v":0},{"$f":"'[1]12'!Q60","v":0},{"$f":"'[1]12'!Q60","v":0},0,{"$f":"'[1]12'!T60","v":0},{"$f":"'[1]12'!T60","v":0},0,{"$f":"'[1]12'!V60","v":0},{"$f":"'[1]12'!V60","v":0},0]
[1,"EX1125",null,null,null,"Contractors",null,null,{"$f":"SUM(I62:I66,I72)","v":0},0,0,0,0,0,{"$f":"SUM(N61-M61)","v":0},{"$f":"SUM(P62:P66,P72)","v":0},{"$f":"SUM(Q62:Q66,Q72)","v":0},{"$f":"SUM(Q61-P61)","v":0},{"$f":"SUM(S62:S66,S72)","v":0},{"$f":"SUM(T62:T66,T72)","v":0},0,{"$f":"SUM(V62:V66,V72)","v":0}]
[1,"EX11251",null,null,null,"Maintenance and repairs of other fixed structures",null,null,{"$f":"'[1]12'!J62","v":0},{"$f":"'[1]12'!L62","v":0},{"$f":"'[1]12'!N62","v":0},{"$f":"'[1]12'!N62","v":0},{"$f":"'[1]12'!Q62","v":0},{"$f":"'[1]12'!Q62","v":0},0,{"$f":"'[1]12'!T62","v":0},{"$f":"'[1]12'!T62","v":0},0,{"$f":"'[1]12'!V62","v":0},{"$f":"'[1]12'!V62","v":0},0]
[1,"EX11252",null,null,null,"Maintenance and repairs of other machinery and equipment",null,null,{"$f":"'[1]12'!J63","v":0},{"$f":"'[1]12'!L63","v":0},{"$f":"'[1]12'!N63","v":0},{"$f":"'[1]12'!N63","v":0},{"$f":"'[1]12'!Q63","v":0},{"$f":"'[1]12'!Q63","v":0},0,{"$f":"'[1]12'!T63","v":0},{"$f":"'[1]12'!T63","v":0},0,{"$f":"'[1]12'!V63","v":0},{"$f":"'[1]12'!V63","v":0},0]
[1,"EX11253",null,null,null,"Maintenance and repairs of heritage buildings",null,null,{"$f":"'[1]12'!J64","v":0},{"$f":"'[1]12'!L64","v":0},{"$f":"'[1]12'!N64","v":0},{"$f":"'[1]12'!N64","v":0},{"$f":"'[1]12'!Q64","v":0},{"$f":"'[1]12'!Q64","v":0},0,{"$f":"'[1]12'!T64","v":0},{"$f":"'[1]12'!T64","v":0},0,{"$f":"'[1]12'!V64","v":0},{"$f":"'[1]12'!V64","v":0},0]
[1,"EX11254",null,null,null,"Maintenance and repairs of other heritage fixed structures",null,null,{"$f":"'[1]12'!J65","v":0},{"$f":"'[1]12'!L65","v":0},{"$f":"'[1]12'!N65","v":0},{"$f":"'[1]12'!N65","v":0},{"$f":"'[1]12'!Q65","v":0},{"$f":"'[1]12'!Q65","v":0},0,{"$f":"'[1]12'!T65","v":0},{"$f":"'[1]12'!T65","v":0},0,{"$f":"'[1]12'!V65","v":0},{"$f":"'[1]12'!V65","v":0},0]
[5,"EX11255",null,null,null,"South african social security agency payment contractors",null,null,{"$f":"SUM(I67:I71)","v":0},0,0,0,0,0,0,{"$f":"SUM(P67:P71)","v":0},{"$f":"SUM(Q67:Q71)","v":0},0,{"$f":"SUM(S67:S71)","v":0},{"$f":"SUM(T67:T71)","v":0},0,{"$f":"SUM(V67:V71)","v":0}]
[5,"EX112551",null,null,null,"SASSA Admin fees",null,null,{"$f":"'[1]12'!J67","v":0},{"$f":"'[1]12'!L67","v":0},{"$f":"'[1]12'!N67","v":0},{"$f":"'[1]12'!N67","v":0},{"$f":"'[1]12'!Q67","v":0},{"$f":"'[1]12'!Q67","v":0},{"$f":"SUM(N67-M67)","v":0},{"$f":"'[1]12'!T67","v":0},{"$f":"'[1]12'!T67","v":0},{"$f":"SUM(Q67-P67)","v":0},{"$f":"'[1]12'!V67","v":0},{"$f":"'[1]12'!V67","v":0},{"$f":"SUM(T67-S67)","v":0}]
[5,"EX112552",null,null,null,"SASSA Bankcard fees",null,null,{"$f":"'[1]12'!J68","v":0},{"$f":"'[1]12'!L68","v":0},{"$f":"'[1]12'!N68","v":0},{"$f":"'[1]12'!N68","v":0},{"$f":"'[1]12'!Q68","v":0},{"$f":"'[1]12'!Q68","v":0},0,{"$f":"'[1]12'!T68","v":0},{"$f":"'[1]12'!T68","v":0},0,{"$f":"'[1]12'!V68","v":0},{"$f":"'[1]12'!V68","v":0},0]
[5,"EX112553",null,null,null,"SASSA registration fees",null,null,{"$f":"'[1]12'!J69","v":0},{"$f":"'[1]12'!L69","v":0},{"$f":"'[1]12'!N69","v":0},{"$f":"'[1]12'!N69","v":0},{"$f":"'[1]12'!Q69","v":0},{"$f":"'[1]12'!Q69","v":0},0,{"$f":"'[1]12'!T69","v":0},{"$f":"'[1]12'!T69","v":0},0,{"$f":"'[1]12'!V69","v":0},{"$f":"'[1]12'!V69","v":0},0]
[5,"EX112554",null,null,null,"SASSA beneficiary fees",null,null,{"$f":"'[1]12'!J70","v":0},{"$f":"'[1]12'!L70","v":0},{"$f":"'[1]12'!N70","v":0},{"$f":"'[1]12'!N70","v":0},{"$f":"'[1]12'!Q70","v":0},{"$f":"'[1]12'!Q70","v":0},0,{"$f":"'[1]12'!T70","v":0},{"$f":"'[1]12'!T70","v":0},0,{"$f":"'[1]12'!V70","v":0},{"$f":"'[1]12'!V70","v":0},0]
[5,"EX112555",null,null,null,"SASSA help desk fees",null,null,{"$f":"'[1]12'!J71","v":0},{"$f":"'[1]12'!L71","v":0},{"$f":"'[1]12'!N71","v":0},{"$f":"'[1]12'!N71","v":0},{"$f":"'[1]12'!Q71","v":0},{"$f":"'[1]12'!Q71","v":0},0,{"$f":"'[1]12'!T71","v":0},{"$f":"'[1]12'!T71","v":0},0,{"$f":"'[1]12'!V71","v":0},{"$f":"'[1]12'!V71","v":0},0]
[1,"EX11256",null,null,null,"Other",null,null,{"$f":"'[1]12'!J72","v":0},{"$f":"'[1]12'!L72","v":0},{"$f":"'[1]12'!N72","v":0},{"$f":"'[1]12'!N72","v":0},{"$f":"'[1]12'!Q72","v":0},{"$f":"'[1]12'!Q72","v":0},0,{"$f":"'[1]12'!T72","v":0},{"$f":"'[1]12'!T72","v":0},0,{"$f":"'[1]12'!V72","v":0},{"$f":"'[1]12'!V72","v":0},0]
[1,"EX1121",null,null,null,"Agency and support/outsourced services",null,null,{"$f":"'[1]12'!J73","v":0},{"$f":"'[1]12'!L73","v":0},{"$f":"'[1]12'!N73","v":0},{"$f":"'[1]12'!N73","v":0},{"$f":"'[1]12'!Q73","v":0},{"$f":"'[1]12'!Q73","v":0},0,{"$f":"'[1]12'!T73","v":0},{"$f":"'[1]12'!T73","v":0},0,{"$f":"'[1]12'!V73","v":0},{"$f":"'[1]12'!V73","v":0},0]
[5,"EX11211",null,null,null,"     Of Which: Medical assessments",null,null,{"$f":"'[1]12'!J74","v":0},{"$f":"'[1]12'!L74","v":0},{"$f":"'[1]12'!N74","v":0},{"$f":"'[1]12'!N74","v":0},{"$f":"'[1]12'!Q74","v":0},{"$f":"'[1]12'!Q74","v":0},0,{"$f":"'[1]12'!T74","v":0},{"$f":"'[1]12'!T74","v":0},0,{"$f":"'[1]12'!V74","v":0},{"$f":"'[1]12'!V74","v":0},0]
[1,"EX1161",null,null,null,"Entertainment",null,null,{"$f":"'[1]12'!J75","v":0},{"$f":"'[1]12'!L75","v":0},{"$f":"'[1]12'!N75","v":0},{"$f":"'[1]12'!N75","v":0},{"$f":"'[1]12'!Q75","v":0},{"$f":"'[1]12'!Q75","v":0},0,{"$f":"'[1]12'!T75","v":0},{"$f":"'[1]12'!T75","v":0},0,{"$f":"'[1]12'!V75","v":0},{"$f":"'[1]12'!V75","v":0},0]
[1,"EX1166",null,null,null,"Fleet services (including government motor transport)",null,null,{"$f":"'[1]12'!J76","v":0},{"$f":"'[1]12'!L76","v":0},{"$f":"'[1]12'!N76","v":0},{"$f":"'[1]12'!N76","v":0},{"$f":"'[1]12'!Q76","v":0},{"$f":"'[1]12'!Q76","v":0},0,{"$f":"'[1]12'!T76","v":0},{"$f":"'[1]12'!T76","v":0},0,{"$f":"'[1]12'!V76","v":0},{"$f":"'[1]12'!V76","v":0},0]
[1,"EX1167",null,null,null,"Housing",null,null,{"$f":"'[1]12'!J77","v":0},{"$f":"'[1]12'!L77","v":0},{"$f":"'[1]12'!N77","v":0},{"$f":"'[1]12'!N77","v":0},{"$f":"'[1]12'!Q77","v":0},{"$f":"'[1]12'!Q77","v":0},0,{"$f":"'[1]12'!T77","v":0},{"$f":"'[1]12'!T77","v":0},0,{"$f":"'[1]12'!V77","v":0},{"$f":"'[1]12'!V77","v":0},0]
[1,"EX1168",null,null,null,"Inventory: Clothing material and accessories",null,null,{"$f":"'[1]12'!J78","v":0},{"$f":"'[1]12'!L78","v":0},{"$f":"'[1]12'!N78","v":0},{"$f":"'[1]12'!N78","v":0},{"$f":"'[1]12'!Q78","v":0},{"$f":"'[1]12'!Q78","v":0},0,{"$f":"'[1]12'!T78","v":0},{"$f":"'[1]12'!T78","v":0},0,{"$f":"'[1]12'!V78","v":0},{"$f":"'[1]12'!V78","v":0},0]
[1,"EX1169",null,null,null,"Inventory: Farming supplies",null,null,{"$f":"'[1]12'!J79","v":0},{"$f":"'[1]12'!L79","v":0},{"$f":"'[1]12'!N79","v":0},{"$f":"'[1]12'!N79","v":0},{"$f":"'[1]12'!Q79","v":0},{"$f":"'[1]12'!Q79","v":0},0,{"$f":"'[1]12'!T79","v":0},{"$f":"'[1]12'!T79","v":0},0,{"$f":"'[1]12'!V79","v":0},{"$f":"'[1]12'!V79","v":0},0]
[1,"EX1170",null,null,null,"Inventory: Food and food supplies",null,null,{"$f":"'[1]12'!J80","v":0},{"$f":"'[1]12'!L80","v":0},{"$f":"'[1]12'!N80","v":0},{"$f":"'[1]12'!N80","v":0},{"$f":"'[1]12'!Q80","v":0},{"$f":"'[1]12'!Q80","v":0},0,{"$f":"'[1]12'!T80","v":0},{"$f":"'[1]12'!T80","v":0},0,{"$f":"'[1]12'!V80","v":0},{"$f":"'[1]12'!V80","v":0},0]
[1,"EX1171",null,null,null,"Inventory: Fuel, oil and gas",null,null,{"$f":"'[1]12'!J81","v":0},{"$f":"'[1]12'!L81","v":0},{"$f":"'[1]12'!N81","v":0},{"$f":"'[1]12'!N81","v":0},{"$f":"'[1]12'!Q81","v":0},{"$f":"'[1]12'!Q81","v":0},0,{"$f":"'[1]12'!T81","v":0},{"$f":"'[1]12'!T81","v":0},0,{"$f":"'[1]12'!V81","v":0},{"$f":"'[1]12'!V81","v":0},0]
[1,"EX1172",null,null,null,"Inventory: Learner and teacher support material",null,null,{"$f":"'[1]12'!J82","v":0},{"$f":"'[1]12'!L82","v":0},{"$f":"'[1]12'!N82","v":0},{"$f":"'[1]12'!N82","v":0},{"$f":"'[1]12'!Q82","v":0},{"$f":"'[1]12'!Q82","v":0},0,{"$f":"'[1]12'!T82","v":0},{"$f":"'[1]12'!T82","v":0},0,{"$f":"'[1]12'!V82","v":0},{"$f":"'[1]12'!V82","v":0},0]
[1,"EX1126",null,null,null,"Inventory: Materials and supplies",null,null,{"$f":"'[1]12'!J83","v":0},{"$f":"'[1]12'!L83","v":0},{"$f":"'[1]12'!N83","v":0},{"$f":"'[1]12'!N83","v":0},{"$f":"'[1]12'!Q83","v":0},{"$f":"'[1]12'!Q83","v":0},0,{"$f":"'[1]12'!T83","v":0},{"$f":"'[1]12'!T83","v":0},0,{"$f":"'[1]12'!V83","v":0},{"$f":"'[1]12'!V83","v":0},0]
[1,"EX1173",null,null,null,"Inventory: Medical supplies",null,null,{"$f":"'[1]12'!J84","v":0},{"$f":"'[1]12'!L84","v":0},{"$f":"'[1]12'!N84","v":0},{"$f":"'[1]12'!N84","v":0},{"$f":"'[1]12'!Q84","v":0},{"$f":"'[1]12'!Q84","v":0},0,{"$f":"'[1]12'!T84","v":0},{"$f":"'[1]12'!T84","v":0},0,{"$f":"'[1]12'!V84","v":0},{"$f":"'[1]12'!V84","v":0},0]
[1,"EX1174",null,null,null,"Inventory: Medicine",null,null,{"$f":"'[1]12'!J85","v":0},{"$f":"'[1]12'!L85","v":0},{"$f":"'[1]12'!N85","v":0},{"$f":"'[1]12'!N85","v":0},{"$f":"'[1]12'!Q85","v":0},{"$f":"'[1]12'!Q85","v":0},0,{"$f":"'[1]12'!T85","v":0},{"$f":"'[1]12'!T85","v":0},0,{"$f":"'[1]12'!V85","v":0},{"$f":"'[1]12'!V85","v":0},0]
[1,"EX1175",null,null,null,"Medsas inventory interface",null,null,{"$f":"'[1]12'!J86","v":0},{"$f":"'[1]12'!L86","v":0},{"$f":"'[1]12'!N86","v":0},{"$f":"'[1]12'!N86","v":0},{"$f":"'[1]12'!Q86","v":0},{"$f":"'[1]12'!Q86","v":0},0,{"$f":"'[1]12'!T86","v":0},{"$f":"'[1]12'!T86","v":0},0,{"$f":"'[1]12'!V86","v":0},{"$f":"'[1]12'!V86","v":0},0]
[1,"EX1176",null,null,null,"Inventory: Other supplies",null,null,{"$f":"'[1]12'!J87","v":0},{"$f":"'[1]12'!L87","v":0},{"$f":"'[1]12'!N87","v":0},{"$f":"'[1]12'!N87","v":0},{"$f":"'[1]12'!Q87","v":0},{"$f":"'[1]12'!Q87","v":0},0,{"$f":"'[1]12'!T87","v":0},{"$f":"'[1]12'!T87","v":0},0,{"$f":"'[1]12'!V87","v":0},{"$f":"'[1]12'!V87","v":0},0]
[1,"EX1177",null,null,null,"Consumable supplies",null,null,{"$f":"'[1]12'!J88","v":0},{"$f":"'[1]12'!L88","v":0},{"$f":"'[1]12'!N88","v":0},{"$f":"'[1]12'!N88","v":0},{"$f":"'[1]12'!Q88","v":0},{"$f":"'[1]12'!Q88","v":0},0,{"$f":"'[1]12'!T88","v":0},{"$f":"'[1]12'!T88","v":0},0,{"$f":"'[1]12'!V88","v":0},{"$f":"'[1]12'!V88","v":0},0]
[1,"EX1144",null,null,null,"Consumables: Stationery, printing and office supplies",null,null,{"$f":"'[1]12'!J89","v":0},{"$f":"'[1]12'!L89","v":0},{"$f":"'[1]12'!N89","v":0},{"$f":"'[1]12'!N89","v":0},{"$f":"'[1]12'!Q89","v":0},{"$f":"'[1]12'!Q89","v":0},0,{"$f":"'[1]12'!T89","v":0},{"$f":"'[1]12'!T89","v":0},0,{"$f":"'[1]12'!V89","v":0},{"$f":"'[1]12'!V89","v":0},0]
[1,"EX1127",null,null,null,"Operating leases",null,null,{"$f":"'[1]12'!J90","v":0},{"$f":"'[1]12'!L90","v":0},{"$f":"'[1]12'!N90","v":0},{"$f":"'[1]12'!N90","v":0},{"$f":"'[1]12'!Q90","v":0},{"$f":"'[1]12'!Q90","v":0},0,{"$f":"'[1]12'!T90","v":0},{"$f":"'[1]12'!T90","v":0},0,{"$f":"'[1]12'!V90","v":0},{"$f":"'[1]12'!V90","v":0},0]
[1,"EX1178",null,null,null,"Rental and hiring",null,null,{"$f":"'[1]12'!J91","v":0},{"$f":"'[1]12'!L91","v":0},{"$f":"'[1]12'!N91","v":0},{"$f":"'[1]12'!N91","v":0},{"$f":"'[1]12'!Q91","v":0},{"$f":"'[1]12'!Q91","v":0},0,{"$f":"'[1]12'!T91","v":0},{"$f":"'[1]12'!T91","v":0},0,{"$f":"'[1]12'!V91","v":0},{"$f":"'[1]12'!V91","v":0},0]
[1,"EX1145",null,null,null,"Property payments",null,null,{"$f":"'[1]12'!J92","v":0},{"$f":"'[1]12'!L92","v":0},{"$f":"'[1]12'!N92","v":0},{"$f":"'[1]12'!N92","v":0},{"$f":"'[1]12'!Q92","v":0},{"$f":"'[1]12'!Q92","v":0},0,{"$f":"'[1]12'!T92","v":0},{"$f":"'[1]12'!T92","v":0},0,{"$f":"'[1]12'!V92","v":0},{"$f":"'[1]12'!V92","v":0},0]
[1,"EX1179",null,null,null,"Transport provided: Internal activities",null,null,{"$f":"'[1]12'!J93","v":0},{"$f":"'[1]12'!L93","v":0},{"$f":"'[1]12'!N93","v":0},{"$f":"'[1]12'!N93","v":0},{"$f":"'[1]12'!Q93","v":0},{"$f":"'[1]12'!Q93","v":0},0,{"$f":"'[1]12'!T93","v":0},{"$f":"'[1]12'!T93","v":0},0,{"$f":"'[1]12'!V93","v":0},{"$f":"'[1]12'!V93","v":0},0]
[1,"EX1131",null,null,null,"Travel and subsistence",null,null,{"$f":"'[1]12'!J94","v":0},{"$f":"'[1]12'!L94","v":0},{"$f":"'[1]12'!N94","v":0},{"$f":"'[1]12'!N94","v":0},{"$f":"'[1]12'!Q94","v":0},{"$f":"'[1]12'!Q94","v":0},0,{"$f":"'[1]12'!T94","v":0},{"$f":"'[1]12'!T94","v":0},0,{"$f":"'[1]12'!V94","v":0},{"$f":"'[1]12'!V94","v":0},0]
[1,"EX1130",null,null,null,"Training and development",null,null,{"$f":"'[1]12'!J95","v":0},{"$f":"'[1]12'!L95","v":0},{"$f":"'[1]12'!N95","v":0},{"$f":"'[1]12'!N95","v":0},{"$f":"'[1]12'!Q95","v":0},{"$f":"'[1]12'!Q95","v":0},0,{"$f":"'[1]12'!T95","v":0},{"$f":"'[1]12'!T95","v":0},0,{"$f":"'[1]12'!V95","v":0},{"$f":"'[1]12'!V95","v":0},0]
[1,"EX1132",null,null,null,"Operating payments",null,null,{"$f":"'[1]12'!J96","v":0},{"$f":"'[1]12'!L96","v":0},{"$f":"'[1]12'!N96","v":0},{"$f":"'[1]12'!N96","v":0},{"$f":"'[1]12'!Q96","v":0},{"$f":"'[1]12'!Q96","v":0},0,{"$f":"'[1]12'!T96","v":0},{"$f":"'[1]12'!T96","v":0},0,{"$f":"'[1]12'!V96","v":0},{"$f":"'[1]12'!V96","v":0},0]
[1,"EX1146",null,null,null,"Venues and facilities",null,null,{"$f":"'[1]12'!J97","v":0},{"$f":"'[1]12'!L97","v":0},{"$f":"'[1]12'!N97","v":0},{"$f":"'[1]12'!N97","v":0},{"$f":"'[1]12'!Q97","v":0},{"$f":"'[1]12'!Q97","v":0},0,{"$f":"'[1]12'!T97","v":0},{"$f":"'[1]12'!T97","v":0},0,{"$f":"'[1]12'!V97","v":0},{"$f":"'[1]12'!V97","v":0},0]
[1,"EX113",null,null,null,"Depreciation",null,null,{"$f":"'[1]12'!J98","v":0},{"$f":"'[1]12'!L98","v":0},{"$f":"'[1]12'!N98","v":0},{"$f":"'[1]12'!N98","v":0},{"$f":"'[1]12'!Q98","v":0},{"$f":"'[1]12'!Q98","v":0},0,{"$f":"'[1]12'!T98","v":0},{"$f":"'[1]12'!T98","v":0},0,{"$f":"'[1]12'!V98","v":0},{"$f":"'[1]12'!V98","v":0},0]
[1,"EX114",null,null,null,"Losses from",null,null,{"$f":"SUM(I100:I101,I104)","v":0},0,0,0,0,0,{"$f":"SUM(N99-M99)","v":0},{"$f":"SUM(P100:P101,P104)","v":0},{"$f":"SUM(Q100:Q101,Q104)","v":0},{"$f":"SUM(Q99-P99)","v":0},{"$f":"SUM(S100:S101,S104)","v":0},{"$f":"SUM(T100:T101,T104)","v":0},{"$f":"SUM(T99-S99)","v":0},{"$f":"SUM(V100:V101,V104)","v":0}]
[1,"EX1141",null,null,null,"Sale of fixed assets",null,null,{"$f":"'[1]12'!J100","v":0},{"$f":"'[1]12'!L100","v":0},{"$f":"'[1]12'!N100","v":0},{"$f":"'[1]12'!N100","v":0},{"$f":"'[1]12'!Q100","v":0},{"$f":"'[1]12'!Q100","v":0},0,{"$f":"'[1]12'!T100","v":0},{"$f":"'[1]12'!T100","v":0},0,{"$f":"'[1]12'!V100","v":0},{"$f":"'[1]12'!V100","v":0},0]
[1,"EX1142",null,null,null,"Impairments and adjustments to fair value",null,null,{"$f":"SUM(I102:I103)","v":0},0,0,0,0,0,0,{"$f":"SUM(P102:P103)","v":0},{"$f":"SUM(Q102:Q103)","v":0},0,{"$f":"SUM(S102:S103)","v":0},{"$f":"SUM(T102:T103)","v":0},0,{"$f":"SUM(V102:V103)","v":0}]
[1,"EX11421",null,null,null,"Adjustments to fair value of assets",null,null,{"$f":"'[1]12'!J102","v":0},{"$f":"'[1]12'!L102","v":0},{"$f":"'[1]12'!N102","v":0},{"$f":"'[1]12'!N102","v":0},{"$f":"'[1]12'!Q102","v":0},{"$f":"'[1]12'!Q102","v":0},0,{"$f":"'[1]12'!T102","v":0},{"$f":"'[1]12'!T102","v":0},0,{"$f":"'[1]12'!V102","v":0},{"$f":"'[1]12'!V102","v":0},0]
[1,"EX11422",null,null,null,"Impairments to assets",null,null,{"$f":"'[1]12'!J103","v":0},{"$f":"'[1]12'!L103","v":0},{"$f":"'[1]12'!N103","v":0},{"$f":"'[1]12'!N103","v":0},{"$f":"'[1]12'!Q103","v":0},{"$f":"'[1]12'!Q103","v":0},0,{"$f":"'[1]12'!T103","v":0},{"$f":"'[1]12'!T103","v":0},0,{"$f":"'[1]12'!V103","v":0},{"$f":"'[1]12'!V103","v":0},0]
[1,"EX1143",null,null,null,"Other",null,null,{"$f":"'[1]12'!J104","v":0},{"$f":"'[1]12'!L104","v":0},{"$f":"'[1]12'!N104","v":0},{"$f":"'[1]12'!N104","v":0},{"$f":"'[1]12'!Q104","v":0},{"$f":"'[1]12'!Q104","v":0},0,{"$f":"'[1]12'!T104","v":0},{"$f":"'[1]12'!T104","v":0},0,{"$f":"'[1]12'!V104","v":0},{"$f":"'[1]12'!V104","v":0},0]
[1,"EX115",null,null,null,"Interest, dividends and rent on land",null,null,{"$f":"SUM(I106:I108)","v":0},0,0,0,0,0,0,{"$f":"SUM(P106:P108)","v":0},{"$f":"SUM(Q106:Q108)","v":0},0,{"$f":"SUM(S106:S108)","v":0},{"$f":"SUM(T106:T108)","v":0},0,{"$f":"SUM(V106:V108)","v":0}]
[1,"EX1151",null,null,null,"Interest",null,null,{"$f":"'[1]12'!J106","v":0},{"$f":"'[1]12'!L106","v":0},{"$f":"'[1]12'!N106","v":0},{"$f":"'[1]12'!N106","v":0},{"$f":"'[1]12'!Q106","v":0},{"$f":"'[1]12'!Q106","v":0},0,{"$f":"'[1]12'!T106","v":0},{"$f":"'[1]12'!T106","v":0},0,{"$f":"'[1]12'!V106","v":0},{"$f":"'[1]12'!V106","v":0},0]
[1,"EX1152",null,null,null,"Dividends",null,null,{"$f":"'[1]12'!J107","v":0},{"$f":"'[1]12'!L107","v":0},{"$f":"'[1]12'!N107","v":0},{"$f":"'[1]12'!N107","v":0},{"$f":"'[1]12'!Q107","v":0},{"$f":"'[1]12'!Q107","v":0},0,{"$f":"'[1]12'!T107","v":0},{"$f":"'[1]12'!T107","v":0},0,{"$f":"'[1]12'!V107","v":0},{"$f":"'[1]12'!V107","v":0},0]
[1,"EX1153",null,null,null,"Rent on land",null,null,{"$f":"'[1]12'!J108","v":0},{"$f":"'[1]12'!L108","v":0},{"$f":"'[1]12'!N108","v":0},{"$f":"'[1]12'!N108","v":0},{"$f":"'[1]12'!Q108","v":0},{"$f":"'[1]12'!Q108","v":0},0,{"$f":"'[1]12'!T108","v":0},{"$f":"'[1]12'!T108","v":0},0,{"$f":"'[1]12'!V108","v":0},{"$f":"'[1]12'!V108","v":0},0]
[1,"EX12",null,null,null,"Transfers and subsidies",null,null,{"$f":"SUM(I110,I121,I132:I135)","v":0},0,0,0,0,0,0,{"$f":"SUM(P110,P121,P132:P135)","v":0},{"$f":"SUM(Q110,Q121,Q132:Q135)","v":0},0,{"$f":"SUM(S110,S121,S132:S135)","v":0},{"$f":"SUM(T110,T121,T132:T135)","v":0},0,{"$f":"SUM(V110,V121,V132:V135)","v":0}]
[2,"EX121",null,null,null,"Employer Grant (SETAs only)",null,null,{"$f":"SUM(I111,I117,I120)","v":0},0,0,0,0,0,0,{"$f":"SUM(P111,P117,P120)","v":0},{"$f":"SUM(Q111,Q117,Q120)","v":0},0,{"$f":"SUM(S111,S117,S120)","v":0},{"$f":"SUM(T111,T117,T120)","v":0},0,{"$f":"SUM(V111,V117,V120)","v":0}]
[1,"EX122",null,null,null,"Other government units",null,null,{"$f":"SUM(I112:I116)","v":0},0,0,0,0,0,0,{"$f":"SUM(P112:P116)","v":0},{"$f":"SUM(Q112:Q116)","v":0},0,{"$f":"SUM(S112:S116)","v":0},{"$f":"SUM(T112:T116)","v":0},0,{"$f":"SUM(V112:V116)","v":0}]
[1,"EX1221",null,null,null,"National government",null,null,{"$f":"'[1]12'!J112","v":0},{"$f":"'[1]12'!L112","v":0},{"$f":"'[1]12'!N112","v":0},{"$f":"'[1]12'!N112","v":0},{"$f":"'[1]12'!Q112","v":0},{"$f":"'[1]12'!Q112","v":0},0,{"$f":"'[1]12'!T112","v":0},{"$f":"'[1]12'!T112","v":0},0,{"$f":"'[1]12'!V112","v":0},{"$f":"'[1]12'!V112","v":0},0]
[1,"EX1222",null,null,null,"Departmental agencies and accounts",null,null,{"$f":"'[1]12'!J113","v":0},{"$f":"'[1]12'!L113","v":0},{"$f":"'[1]12'!N113","v":0},{"$f":"'[1]12'!N113","v":0},{"$f":"'[1]12'!Q113","v":0},{"$f":"'[1]12'!Q113","v":0},0,{"$f":"'[1]12'!T113","v":0},{"$f":"'[1]12'!T113","v":0},0,{"$f":"'[1]12'!V113","v":0},{"$f":"'[1]12'!V113","v":0},0]
[1,"EX1223",null,null,null,"Provinces",null,null,{"$f":"'[1]12'!J114","v":0},{"$f":"'[1]12'!L114","v":0},{"$f":"'[1]12'!N114","v":0},{"$f":"'[1]12'!N114","v":0},{"$f":"'[1]12'!Q114","v":0},{"$f":"'[1]12'!Q114","v":0},0,{"$f":"'[1]12'!T114","v":0},{"$f":"'[1]12'!T114","v":0},0,{"$f":"'[1]12'!V114","v":0},{"$f":"'[1]12'!V114","v":0},0]
[1,"EX1224",null,null,null,"Municipalities",null,null,{"$f":"'[1]12'!J115","v":0},{"$f":"'[1]12'!L115","v":0},{"$f":"'[1]12'!N115","v":0},{"$f":"'[1]12'!N115","v":0},{"$f":"'[1]12'!Q115","v":0},{"$f":"'[1]12'!Q115","v":0},0,{"$f":"'[1]12'!T115","v":0},{"$f":"'[1]12'!T115","v":0},0,{"$f":"'[1]12'!V115","v":0},{"$f":"'[1]12'!V115","v":0},0]
[2,"EX1225",null,null,null,"National Skills Fund",null,null,{"$f":"'[1]12'!J116","v":0},{"$f":"'[1]12'!L116","v":0},{"$f":"'[1]12'!N116","v":0},{"$f":"'[1]12'!N116","v":0},{"$f":"'[1]12'!Q116","v":0},{"$f":"'[1]12'!Q116","v":0},0,{"$f":"'[1]12'!T116","v":0},{"$f":"'[1]12'!T116","v":0},0,{"$f":"'[1]12'!V116","v":0},{"$f":"'[1]12'!V116","v":0},0]
[1,"EX123",null,null,null,"Public corporations and private enterprises (subsidies and other transfers)",null,null,{"$f":"SUM(I118:I119)","v":0},0,0,0,0,0,0,{"$f":"SUM(P118:P119)","v":0},{"$f":"SUM(Q118:Q119)","v":0},0,{"$f":"SUM(S118:S119)","v":0},{"$f":"SUM(T118:T119)","v":0},0,{"$f":"SUM(V118:V119)","v":0}]
[1,"EX1231",null,null,null,"Public corporations",null,null,{"$f":"'[1]12'!J118","v":0},{"$f":"'[1]12'!L118","v":0},{"$f":"'[1]12'!N118","v":0},{"$f":"'[1]12'!N118","v":0},{"$f":"'[1]12'!Q118","v":0},{"$f":"'[1]12'!Q118","v":0},0,{"$f":"'[1]12'!T118","v":0},{"$f":"'[1]12'!T118","v":0},0,{"$f":"'[1]12'!V118","v":0},{"$f":"'[1]12'!V118","v":0},0]
[1,"EX1232",null,null,null,"Private enterprises",null,null,{"$f":"'[1]12'!J119","v":0},{"$f":"'[1]12'!L119","v":0},{"$f":"'[1]12'!N119","v":0},{"$f":"'[1]12'!N119","v":0},{"$f":"'[1]12'!Q119","v":0},{"$f":"'[1]12'!Q119","v":0},0,{"$f":"'[1]12'!T119","v":0},{"$f":"'[1]12'!T119","v":0},0,{"$f":"'[1]12'!V119","v":0},{"$f":"'[1]12'!V119","v":0},0]
[2,"EX124",null,null,null,"Households and non government units",null,null,{"$f":"'[1]12'!J120","v":0},{"$f":"'[1]12'!L120","v":0},{"$f":"'[1]12'!N120","v":0},{"$f":"'[1]12'!N120","v":0},{"$f":"'[1]12'!Q120","v":0},{"$f":"'[1]12'!Q120","v":0},0,{"$f":"'[1]12'!T120","v":0},{"$f":"'[1]12'!T120","v":0},0,{"$f":"'[1]12'!V120","v":0},{"$f":"'[1]12'!V120","v":0},0]
[2,"EX125",null,null,null,"Discretionary Grant (SETAs only)",null,null,{"$f":"SUM(I122,I128,I131)","v":0},0,0,0,0,0,0,{"$f":"SUM(P122,P128,P131)","v":0},{"$f":"SUM(Q122,Q128,Q131)","v":0},0,{"$f":"SUM(S122,S128,S131)","v":0},{"$f":"SUM(T122,T128,T131)","v":0},0,{"$f":"SUM(V122,V128,V131)","v":0}]
[2,"EX126",null,null,null,"Other government units",null,null,{"$f":"SUM(I123:I127)","v":0},0,0,0,0,0,0,{"$f":"SUM(P123:P127)","v":0},{"$f":"SUM(Q123:Q127)","v":0},0,{"$f":"SUM(S123:S127)","v":0},{"$f":"SUM(T123:T127)","v":0},0,{"$f":"SUM(V123:V127)","v":0}]
[2,"EX1261",null,null,null,"National government",null,null,{"$f":"'[1]12'!J123","v":0},{"$f":"'[1]12'!L123","v":0},{"$f":"'[1]12'!N123","v":0},{"$f":"'[1]12'!N123","v":0},{"$f":"'[1]12'!Q123","v":0},{"$f":"'[1]12'!Q123","v":0},0,{"$f":"'[1]12'!T123","v":0},{"$f":"'[1]12'!T123","v":0},0,{"$f":"'[1]12'!V123","v":0},{"$f":"'[1]12'!V123","v":0},0]
[2,"EX1262",null,null,null,"Departmental agencies and accounts",null,null,{"$f":"'[1]12'!J124","v":0},{"$f":"'[1]12'!L124","v":0},{"$f":"'[1]12'!N124","v":0},{"$f":"'[1]12'!N124","v":0},{"$f":"'[1]12'!Q124","v":0},{"$f":"'[1]12'!Q124","v":0},0,{"$f":"'[1]12'!T124","v":0},{"$f":"'[1]12'!T124","v":0},0,{"$f":"'[1]12'!V124","v":0},{"$f":"'[1]12'!V124","v":0},0]
[2,"EX1263",null,null,null,"Provinces",null,null,{"$f":"'[1]12'!J125","v":0},{"$f":"'[1]12'!L125","v":0},{"$f":"'[1]12'!N125","v":0},{"$f":"'[1]12'!N125","v":0},{"$f":"'[1]12'!Q125","v":0},{"$f":"'[1]12'!Q125","v":0},0,{"$f":"'[1]12'!T125","v":0},{"$f":"'[1]12'!T125","v":0},0,{"$f":"'[1]12'!V125","v":0},{"$f":"'[1]12'!V125","v":0},0]
[2,"EX1264",null,null,null,"Municipalities",null,null,{"$f":"'[1]12'!J126","v":0},{"$f":"'[1]12'!L126","v":0},{"$f":"'[1]12'!N126","v":0},{"$f":"'[1]12'!N126","v":0},{"$f":"'[1]12'!Q126","v":0},{"$f":"'[1]12'!Q126","v":0},0,{"$f":"'[1]12'!T126","v":0},{"$f":"'[1]12'!T126","v":0},0,{"$f":"'[1]12'!V126","v":0},{"$f":"'[1]12'!V126","v":0},0]
[2,"EX1265",null,null,null,"National Skills Fund",null,null,{"$f":"'[1]12'!J127","v":0},{"$f":"'[1]12'!L127","v":0},{"$f":"'[1]12'!N127","v":0},{"$f":"'[1]12'!N127","v":0},{"$f":"'[1]12'!Q127","v":0},{"$f":"'[1]12'!Q127","v":0},0,{"$f":"'[1]12'!T127","v":0},{"$f":"'[1]12'!T127","v":0},0,{"$f":"'[1]12'!V127","v":0},{"$f":"'[1]12'!V127","v":0},0]
[2,"EX127",null,null,null,"Public corporations and private enterprises (subsidies and other transfers)",null,null,{"$f":"SUM(I129:I130)","v":0},0,0,0,0,0,0,{"$f":"SUM(P129:P130)","v":0},{"$f":"SUM(Q129:Q130)","v":0},0,{"$f":"SUM(S129:S130)","v":0},{"$f":"SUM(T129:T130)","v":0},0,{"$f":"SUM(V129:V130)","v":0}]
[2,"EX1271",null,null,null,"Public corporations",null,null,{"$f":"'[1]12'!J129","v":0},{"$f":"'[1]12'!L129","v":0},{"$f":"'[1]12'!N129","v":0},{"$f":"'[1]12'!N129","v":0},{"$f":"'[1]12'!Q129","v":0},{"$f":"'[1]12'!Q129","v":0},0,{"$f":"'[1]12'!T129","v":0},{"$f":"'[1]12'!T129","v":0},0,{"$f":"'[1]12'!V129","v":0},{"$f":"'[1]12'!V129","v":0},{"$f":"SUM(T129-S129)","v":0}]
[2,"EX1272",null,null,null,"Private enterprises",null,null,{"$f":"'[1]12'!J130","v":0},{"$f":"'[1]12'!L130","v":0},{"$f":"'[1]12'!N130","v":0},{"$f":"'[1]12'!N130","v":0},{"$f":"'[1]12'!Q130","v":0},{"$f":"'[1]12'!Q130","v":0},0,{"$f":"'[1]12'!T130","v":0},{"$f":"'[1]12'!T130","v":0},0,{"$f":"'[1]12'!V130","v":0},{"$f":"'[1]12'!V130","v":0},0]
[2,"EX128",null,null,null,"Households and non government units",null,null,{"$f":"'[1]12'!J131","v":0},{"$f":"'[1]12'!L131","v":0},{"$f":"'[1]12'!N131","v":0},{"$f":"'[1]12'!N131","v":0},{"$f":"'[1]12'!Q131","v":0},{"$f":"'[1]12'!Q131","v":0},0,{"$f":"'[1]12'!T131","v":0},{"$f":"'[1]12'!T131","v":0},0,{"$f":"'[1]12'!V131","v":0},{"$f":"'[1]12'!V131","v":0},0]
[1,"EX129",null,null,null,"Higher education institutions",null,null,{"$f":"'[1]12'!J132","v":0},{"$f":"'[1]12'!L132","v":0},{"$f":"'[1]12'!N132","v":0},{"$f":"'[1]12'!N132","v":0},{"$f":"'[1]12'!Q132","v":0},{"$f":"'[1]12'!Q132","v":0},0,{"$f":"'[1]12'!T132","v":0},{"$f":"'[1]12'!T132","v":0},0,{"$f":"'[1]12'!V132","v":0},{"$f":"'[1]12'!V132","v":0},0]
[1,"EX130",null,null,null,"Foreign governments and international organisations ",null,null,{"$f":"'[1]12'!J133","v":0},{"$f":"'[1]12'!L133","v":0},{"$f":"'[1]12'!N133","v":0},{"$f":"'[1]12'!N133","v":0},{"$f":"'[1]12'!Q133","v":0},{"$f":"'[1]12'!Q133","v":0},0,{"$f":"'[1]12'!T133","v":0},{"$f":"'[1]12'!T133","v":0},0,{"$f":"'[1]12'!V133","v":0},{"$f":"'[1]12'!V133","v":0},0]
[1,"EX131",null,null,null,"Non-profit institutions",null,null,{"$f":"'[1]12'!J134","v":0},{"$f":"'[1]12'!L134","v":0},{"$f":"'[1]12'!N134","v":0},{"$f":"'[1]12'!N134","v":0},{"$f":"'[1]12'!Q134","v":0},{"$f":"'[1]12'!Q134","v":0},0,{"$f":"'[1]12'!T134","v":0},{"$f":"'[1]12'!T134","v":0},0,{"$f":"'[1]12'!V134","v":0},{"$f":"'[1]12'!V134","v":0},0]
[1,"EX132",null,null,null,"Households",null,null,{"$f":"SUM(I136:I137)","v":0},0,0,0,0,0,{"$f":"SUM(N135-M135)","v":0},{"$f":"SUM(P136:P137)","v":0},{"$f":"SUM(Q136:Q137)","v":0},{"$f":"SUM(Q135-P135)","v":0},{"$f":"SUM(S136:S137)","v":0},{"$f":"SUM(T136:T137)","v":0},{"$f":"SUM(T135-S135)","v":0},{"$f":"SUM(V136:V137)","v":0}]
[1,"EX1301",null,null,null,"Social benefits ",null,null,{"$f":"'[1]12'!J136","v":0},{"$f":"'[1]12'!L136","v":0},{"$f":"'[1]12'!N136","v":0},{"$f":"'[1]12'!N136","v":0},{"$f":"'[1]12'!Q136","v":0},{"$f":"'[1]12'!Q136","v":0},0,{"$f":"'[1]12'!T136","v":0},{"$f":"'[1]12'!T136","v":0},0,{"$f":"'[1]12'!V136","v":0},{"$f":"'[1]12'!V136","v":0},0]
[1,"EX1302",null,null,null,"Other transfers to households",null,null,{"$f":"'[1]12'!J137","v":0},{"$f":"'[1]12'!L137","v":0},{"$f":"'[1]12'!N137","v":0},{"$f":"'[1]12'!N137","v":0},{"$f":"'[1]12'!Q137","v":0},{"$f":"'[1]12'!Q137","v":0},0,{"$f":"'[1]12'!T137","v":0},{"$f":"'[1]12'!T137","v":0},0,{"$f":"'[1]12'!V137","v":0},{"$f":"'[1]12'!V137","v":0},0]
[1,"EX13",null,null,null,"Tax payment",null,null,{"$f":"'[1]12'!J138","v":0},{"$f":"'[1]12'!L138","v":0},{"$f":"'[1]12'!N138","v":0},{"$f":"'[1]12'!N138","v":0},{"$f":"'[1]12'!Q138","v":0},{"$f":"'[1]12'!Q138","v":0},0,{"$f":"'[1]12'!T138","v":0},{"$f":"'[1]12'!T138","v":0},0,{"$f":"'[1]12'!V138","v":0},{"$f":"'[1]12'!V138","v":0},0]
[1,"EX14",null,null,null,"Outside shareholders Interest",null,null,{"$f":"'[1]12'!J139","v":0},{"$f":"'[1]12'!L139","v":0},{"$f":"'[1]12'!N139","v":0},{"$f":"'[1]12'!N139","v":0},{"$f":"'[1]12'!Q139","v":0},{"$f":"'[1]12'!Q139","v":0},0,{"$f":"'[1]12'!T139","v":0},{"$f":"'[1]12'!T139","v":0},0,{"$f":"'[1]12'!V139","v":0},{"$f":"'[1]12'!V139","v":0},0]
[1,"EX15",null,null,null,"Total Expenditure",null,null,{"$f":"SUM(I39,I109,I138:I139)","v":0},0,0,0,0,0,0,{"$f":"SUM(P39,P109,P138:P139)","v":0},{"$f":"SUM(Q39,Q109,Q138:Q139)","v":0},0,{"$f":"SUM(S39,S109,S138:S139)","v":0},{"$f":"SUM(T39,T109,T138:T139)","v":0},0,{"$f":"SUM(V39,V109,V138:V139)","v":0}]
[1]
[1,null,null,null,null,"Objective less Expenditure",null,null,{"$f":"ROUND(IF(I37-I140>0,IF(I37-I140<1,0,I37-I140),I37-I140),0)","v":0},0,null,0,0,0,{"$f":"ROUND(IF(O37-O140>0,IF(O37-O140<1,0,O37-O140),O37-O140),0)","v":0},0,0,0,0,0,0,0]
[1]

{"sheet":"13","index":17,"n_rows":143,"n_cols":23,"rows_kept":143,"cut":false,"hidden":false,"merged":[[31,12,31,14],[31,15,31,17],[31,18,31,20],[31,10,31,11]]}
[]
[]
[]
[]
[]
[null,null,null,null,null,"PE No",{"$f":"Settings!O2","v":"PE126"}]
[null,null,null,null,null,"Entity name",{"$f":"Settings!$E$2","v":"South African Revenue Service"}]
[]
[null,null,null,null,null,"Performance and operations information"]
["ItemCat","Item code","Hide/unhide",null,null,"Activity/Output/Outcome/Efficiency Indicator","MTDP Outcomes",null,{"$f":"MyYearM3","v":"2022/23"},{"$f":"MyYearM2","v":"2023/24"},{"$f":"MyYearM1","v":"2024/25"},{"$f":"MyYear0","v":"2025/26"},{"$f":"MyYearP1","v":"2026/27"},{"$f":"MyYearP2","v":"2027/28"},{"$f":"MyYearP3","v":"2028/29"},"Related Objectives","Add to 'Performance Indicators' Sheet","Comments"]
[1,null,null,null,null,{"$f":"'[1]13'!F11","v":0},{"$f":"'[1]13'!G11","v":0},0,{"$f":"'[1]13'!J11","v":0},{"$f":"'[1]13'!K11","v":0},{"$f":"'[1]13'!L11","v":0},{"$f":"'[1]13'!M11","v":0},{"$f":"'[1]13'!N11","v":0},{"$f":"'[1]13'!O11","v":0},null,{"$f":"'[1]13'!P11","v":0},{"$f":"'[1]13'!Q11","v":0},{"$f":"'[1]13'!R11","v":0}]
[1,null,null,null,null,{"$f":"'[1]13'!F12","v":0},{"$f":"'[1]13'!G12","v":0},0,{"$f":"'[1]13'!J12","v":0},{"$f":"'[1]13'!K12","v":0},{"$f":"'[1]13'!L12","v":0},{"$f":"'[1]13'!M12","v":0},{"$f":"'[1]13'!N12","v":0},{"$f":"'[1]13'!O12","v":0},null,{"$f":"'[1]13'!P12","v":0},{"$f":"'[1]13'!Q12","v":0},{"$f":"'[1]13'!R12","v":0}]
[1,null,null,null,null,{"$f":"'[1]13'!F13","v":0},{"$f":"'[1]13'!G13","v":0},0,{"$f":"'[1]13'!J13","v":0},{"$f":"'[1]13'!K13","v":0},{"$f":"'[1]13'!L13","v":0},{"$f":"'[1]13'!M13","v":0},{"$f":"'[1]13'!N13","v":0},{"$f":"'[1]13'!O13","v":0},null,{"$f":"'[1]13'!P13","v":0},{"$f":"'[1]13'!Q13","v":0},{"$f":"'[1]13'!R13","v":0}]
[1,null,null,null,null,{"$f":"'[1]13'!F14","v":0},{"$f":"'[1]13'!G14","v":0},0,{"$f":"'[1]13'!J14","v":0},{"$f":"'[1]13'!K14","v":0},{"$f":"'[1]13'!L14","v":0},{"$f":"'[1]13'!M14","v":0},{"$f":"'[1]13'!N14","v":0},{"$f":"'[1]13'!O14","v":0},null,{"$f":"'[1]13'!P14","v":0},{"$f":"'[1]13'!Q14","v":0},{"$f":"'[1]13'!R14","v":0}]
[1,null,null,null,null,{"$f":"'[1]13'!F15","v":0},{"$f":"'[1]13'!G15","v":0},0,{"$f":"'[1]13'!J15","v":0},{"$f":"'[1]13'!K15","v":0},{"$f":"'[1]13'!L15","v":0},{"$f":"'[1]13'!M15","v":0},{"$f":"'[1]13'!N15","v":0},{"$f":"'[1]13'!O15","v":0},null,{"$f":"'[1]13'!P15","v":0},{"$f":"'[1]13'!Q15","v":0},{"$f":"'[1]13'!R15","v":0}]
[1,null,null,null,null,{"$f":"'[1]13'!F16","v":0},{"$f":"'[1]13'!G16","v":0},0,{"$f":"'[1]13'!J16","v":0},{"$f":"'[1]13'!K16","v":0},{"$f":"'[1]13'!L16","v":0},{"$f":"'[1]13'!M16","v":0},{"$f":"'[1]13'!N16","v":0},{"$f":"'[1]13'!O16","v":0},null,{"$f":"'[1]13'!P16","v":0},{"$f":"'[1]13'!Q16","v":0},{"$f":"'[1]13'!R16","v":0}]
[1,null,null,null,null,{"$f":"'[1]13'!F17","v":0},{"$f":"'[1]13'!G17","v":0},0,{"$f":"'[1]13'!J17","v":0},{"$f":"'[1]13'!K17","v":0},{"$f":"'[1]13'!L17","v":0},{"$f":"'[1]13'!M17","v":0},{"$f":"'[1]13'!N17","v":0},{"$f":"'[1]13'!O17","v":0},null,{"$f":"'[1]13'!P17","v":0},{"$f":"'[1]13'!Q17","v":0},{"$f":"'[1]13'!R17","v":0}]
[1,null,null,null,null,{"$f":"'[1]13'!F18","v":0},{"$f":"'[1]13'!G18","v":0},0,{"$f":"'[1]13'!J18","v":0},{"$f":"'[1]13'!K18","v":0},{"$f":"'[1]13'!L18","v":0},{"$f":"'[1]13'!M18","v":0},{"$f":"'[1]13'!N18","v":0},{"$f":"'[1]13'!O18","v":0},null,{"$f":"'[1]13'!P18","v":0},{"$f":"'[1]13'!Q18","v":0},{"$f":"'[1]13'!R18","v":0}]
[1,null,null,null,null,{"$f":"'[1]13'!F19","v":0},{"$f":"'[1]13'!G19","v":0},0,{"$f":"'[1]13'!J19","v":0},{"$f":"'[1]13'!K19","v":0},{"$f":"'[1]13'!L19","v":0},{"$f":"'[1]13'!M19","v":0},{"$f":"'[1]13'!N19","v":0},{"$f":"'[1]13'!O19","v":0},null,{"$f":"'[1]13'!P19","v":0},{"$f":"'[1]13'!Q19","v":0},{"$f":"'[1]13'!R19","v":0}]
[1,null,null,null,null,{"$f":"'[1]13'!F20","v":0},{"$f":"'[1]13'!G20","v":0},0,{"$f":"'[1]13'!J20","v":0},{"$f":"'[1]13'!K20","v":0},{"$f":"'[1]13'!L20","v":0},{"$f":"'[1]13'!M20","v":0},{"$f":"'[1]13'!N20","v":0},{"$f":"'[1]13'!O20","v":0},null,{"$f":"'[1]13'!P20","v":0},{"$f":"'[1]13'!Q20","v":0},{"$f":"'[1]13'!R20","v":0}]
[1,null,null,null,null,{"$f":"'[1]13'!F21","v":0},{"$f":"'[1]13'!G21","v":0},0,{"$f":"'[1]13'!J21","v":0},{"$f":"'[1]13'!K21","v":0},{"$f":"'[1]13'!L21","v":0},{"$f":"'[1]13'!M21","v":0},{"$f":"'[1]13'!N21","v":0},{"$f":"'[1]13'!O21","v":0},null,{"$f":"'[1]13'!P21","v":0},{"$f":"'[1]13'!Q21","v":0},{"$f":"'[1]13'!R21","v":0}]
[1,null,null,null,null,{"$f":"'[1]13'!F22","v":0},{"$f":"'[1]13'!G22","v":0},0,{"$f":"'[1]13'!J22","v":0},{"$f":"'[1]13'!K22","v":0},{"$f":"'[1]13'!L22","v":0},{"$f":"'[1]13'!M22","v":0},{"$f":"'[1]13'!N22","v":0},{"$f":"'[1]13'!O22","v":0},null,{"$f":"'[1]13'!P22","v":0},{"$f":"'[1]13'!Q22","v":0},{"$f":"'[1]13'!R22","v":0}]
[1,null,null,null,null,{"$f":"'[1]13'!F23","v":0},{"$f":"'[1]13'!G23","v":0},0,{"$f":"'[1]13'!J23","v":0},{"$f":"'[1]13'!K23","v":0},{"$f":"'[1]13'!L23","v":0},{"$f":"'[1]13'!M23","v":0},{"$f":"'[1]13'!N23","v":0},{"$f":"'[1]13'!O23","v":0},null,{"$f":"'[1]13'!P23","v":0},{"$f":"'[1]13'!Q23","v":0},{"$f":"'[1]13'!R23","v":0}]
[1,null,null,null,null,{"$f":"'[1]13'!F24","v":0},{"$f":"'[1]13'!G24","v":0},0,{"$f":"'[1]13'!J24","v":0},{"$f":"'[1]13'!K24","v":0},{"$f":"'[1]13'!L24","v":0},{"$f":"'[1]13'!M24","v":0},{"$f":"'[1]13'!N24","v":0},{"$f":"'[1]13'!O24","v":0},null,{"$f":"'[1]13'!P24","v":0},{"$f":"'[1]13'!Q24","v":0},{"$f":"'[1]13'!R24","v":0}]
[1,null,null,null,null,{"$f":"'[1]13'!F25","v":0},{"$f":"'[1]13'!G25","v":0},0,{"$f":"'[1]13'!J25","v":0},{"$f":"'[1]13'!K25","v":0},{"$f":"'[1]13'!L25","v":0},{"$f":"'[1]13'!M25","v":0},{"$f":"'[1]13'!N25","v":0},{"$f":"'[1]13'!O25","v":0},null,{"$f":"'[1]13'!P25","v":0},{"$f":"'[1]13'!Q25","v":0},{"$f":"'[1]13'!R25","v":0}]
[1,null,null,null,null,"Notes:"]
[1,null,null,null,null,"Performance indicators are an explanation of objectives performance.   "]
[1,null,null,null,null,"1. They are specific measurements that track progress towards achieving the goals and objectives of an institution."]
[1,null,null,null,null,"2. Institutions should use performance indicators in the 2024/25 Annual Performance Plans and those in the 2025 ENE. "]
[1,null,null,null,null,"3. Institutions should also indicate instances where targets are not affected by budget baseline reprioritisation."]
[1]
[1,null,null,null,null,null,null,null,{"$f":"MyYearM3","v":"2022/23"},{"$f":"MyYearM2","v":"2023/24"},{"$f":"MyYearM1","v":"2024/25"},null,{"$f":"MyYear0","v":"2025/26"},null,null,{"$f":"MyYearP1","v":"2026/27"},null,null,{"$f":"MyYearP2","v":"2027/28"},null,null,{"$f":"MyYearP3","v":"2028/29"}]
[1,null,null,null,null,"Expenses",null,null,{"$f":"Hist_year3RestatedAudited","v":"Audited\noutcome"},{"$f":"Hist_year2RestatedAudited","v":"Audited\noutcome"},{"$f":"Hist_year1Budget","v":"Budget"},{"$f":"Hist_year1Audited","v":"Audited\noutcome"},{"$f":"Cur_YearBudgEst","v":"Budget\nestimate"},{"$f":"Cur_YearApprovedBudg","v":"Approved budget"},{"$f":"Cur_YearChangeFrRevBudg","v":"Changes from \nbudget estimate"},{"$f":"MTEF1BudgEst","v":"Budget\nestimate"},{"$f":"MTEF1RevBudgEst","v":"Revised\nbudget\nestimate"},{"$f":"MTEF1_ChangeFrBudgEst","v":"Changes from budget estimate"},{"$f":"MTEF2BudgEst","v":"Budget\nestimate"},{"$f":"MTEF2RevBudgEst","v":"Revised\nbudget\nestimate"},{"$f":"MTEF2_ChangeFrBudgEst","v":"Changes from budget estimate"},{"$f":"MTEF3PlanBudgetEst","v":"Planning\nbudget \nestimate"}]
[1]
[1,null,null,null,null,"Rand thousand"]
[1,null,null,null,null,"Objective/Activity"]
[1,null,null,null,null,{"$f":"'[1]13'!F37","v":0},null,null,{"$f":"'[1]13'!J37","v":0},{"$f":"'[1]13'!L37","v":0},{"$f":"'[1]13'!N37","v":0},{"$f":"'[1]13'!N37","v":0},{"$f":"'[1]13'!Q37","v":0},{"$f":"'[1]13'!Q37","v":0},{"$f":"SUM(N37-M37)","v":0},{"$f":"'[1]13'!T37","v":0},{"$f":"'[1]13'!T37","v":0},{"$f":"SUM(Q37-P37)","v":0},{"$f":"'[1]13'!V37","v":0},{"$f":"'[1]13'!V37","v":0},{"$f":"SUM(T37-S37)","v":0}]
[1,null,null,null,null,"Economic classification"]
[1,"EX11",null,null,null,"Current payments",null,null,{"$f":"SUM(I40,I43,I98:I99,I105)","v":0},0,0,0,0,0,{"$f":"SUM(N39-M39)","v":0},{"$f":"SUM(P40,P43,P98:P99,P105)","v":0},{"$f":"SUM(Q40,Q43,Q98:Q99,Q105)","v":0},{"$f":"SUM(Q39-P39)","v":0},{"$f":"SUM(S40,S43,S98:S99,S105)","v":0},{"$f":"SUM(T40,T43,T98:T99,T105)","v":0},{"$f":"SUM(T39-S39)","v":0},{"$f":"SUM(V40,V43,V98:V99,V105)","v":0}]
[1,"EX111",null,null,null,"Compensation of employees",null,null,{"$f":"SUM(I41:I42)","v":0},0,0,0,0,0,{"$f":"SUM(N40-M40)","v":0},{"$f":"SUM(P41:P42)","v":0},{"$f":"SUM(Q41:Q42)","v":0},{"$f":"SUM(Q40-P40)","v":0},{"$f":"SUM(S41:S42)","v":0},{"$f":"SUM(T41:T42)","v":0},{"$f":"SUM(T40-S40)","v":0},{"$f":"SUM(V41:V42)","v":0}]
[1,"EX1111",null,null,null,"Salaries and wages",null,null,{"$f":"'[1]13'!J41","v":0},{"$f":"'[1]13'!L41","v":0},{"$f":"'[1]13'!N41","v":0},{"$f":"'[1]13'!N41","v":0},{"$f":"'[1]13'!Q41","v":0},{"$f":"'[1]13'!Q41","v":0},{"$f":"SUM(N41-M41)","v":0},{"$f":"'[1]13'!T41","v":0},{"$f":"'[1]13'!T41","v":0},{"$f":"SUM(Q41-P41)","v":0},{"$f":"'[1]13'!V41","v":0},{"$f":"'[1]13'!V41","v":0},{"$f":"SUM(T41-S41)","v":0}]
[1,"EX1112",null,null,null,"Social contributions",null,null,{"$f":"'[1]13'!J42","v":0},{"$f":"'[1]13'!L42","v":0},{"$f":"'[1]13'!N42","v":0},{"$f":"'[1]13'!N42","v":0},{"$f":"'[1]13'!Q42","v":0},{"$f":"'[1]13'!Q42","v":0},{"$f":"SUM(N42-M42)","v":0},{"$f":"'[1]13'!T42","v":0},{"$f":"'[1]13'!T42","v":0},{"$f":"SUM(Q42-P42)","v":0},{"$f":"'[1]13'!V42","v":0},{"$f":"'[1]13'!V42","v":0},{"$f":"SUM(T42-S42)","v":0}]
[1,"EX112",null,null,null,"Goods and services",null,null,{"$f":"SUM(I45:I54,I58:I61,I73,I75:I97)","v":0},{"$f":"SUM(J45:J54,J58:J61,J73,J75:J97)","v":0},{"$f":"SUM(K45:K54,K58:K61,K73,K75:K97)","v":0},0,0,0,0,0,0,0,0,0,0,0,{"$f":"SUM(W45:W54,W58:W61,W73,W75:W97)","v":0}]
[1,"EX000",null,null,null,"Of which 1"]
[1,"EX1133",null,null,null,"Administrative fees",null,null,{"$f":"'[1]13'!J45","v":0},{"$f":"'[1]13'!L45","v":0},{"$f":"'[1]13'!N45","v":0},{"$f":"'[1]13'!N45","v":0},{"$f":"'[1]13'!Q45","v":0},{"$f":"'[1]13'!Q45","v":0},{"$f":"SUM(N45-M45)","v":0},{"$f":"'[1]13'!T45","v":0},{"$f":"'[1]13'!T45","v":0},{"$f":"SUM(Q45-P45)","v":0},{"$f":"'[1]13'!V45","v":0},{"$f":"'[1]13'!V45","v":0},{"$f":"SUM(T45-S45)","v":0}]
[1,"EX1134",null,null,null,"Advertising",null,null,{"$f":"'[1]13'!J46","v":0},{"$f":"'[1]13'!L46","v":0},{"$f":"'[1]13'!N46","v":0},{"$f":"'[1]13'!N46","v":0},{"$f":"'[1]13'!Q46","v":0},{"$f":"'[1]13'!Q46","v":0},0,{"$f":"'[1]13'!T46","v":0},{"$f":"'[1]13'!T46","v":0},0,{"$f":"'[1]13'!V46","v":0},{"$f":"'[1]13'!V46","v":0},0]
[1,"EX1135",null,null,null,"Minor assets",null,null,{"$f":"'[1]13'!J47","v":0},{"$f":"'[1]13'!L47","v":0},{"$f":"'[1]13'!N47","v":0},{"$f":"'[1]13'!N47","v":0},{"$f":"'[1]13'!Q47","v":0},{"$f":"'[1]13'!Q47","v":0},0,{"$f":"'[1]13'!T47","v":0},{"$f":"'[1]13'!T47","v":0},0,{"$f":"'[1]13'!V47","v":0},{"$f":"'[1]13'!V47","v":0},0]
[1,"EX1136",null,null,null,"Audit costs: External",null,null,{"$f":"'[1]13'!J48","v":0},{"$f":"'[1]13'!L48","v":0},{"$f":"'[1]13'!N48","v":0},{"$f":"'[1]13'!N48","v":0},{"$f":"'[1]13'!Q48","v":0},{"$f":"'[1]13'!Q48","v":0},0,{"$f":"'[1]13'!T48","v":0},{"$f":"'[1]13'!T48","v":0},0,{"$f":"'[1]13'!V48","v":0},{"$f":"'[1]13'!V48","v":0},0]
[1,"EX1139",null,null,null,"Bursaries: Employees",null,null,{"$f":"'[1]13'!J49","v":0},{"$f":"'[1]13'!L49","v":0},{"$f":"'[1]13'!N49","v":0},{"$f":"'[1]13'!N49","v":0},{"$f":"'[1]13'!Q49","v":0},{"$f":"'[1]13'!Q49","v":0},0,{"$f":"'[1]13'!T49","v":0},{"$f":"'[1]13'!T49","v":0},0,{"$f":"'[1]13'!V49","v":0},{"$f":"'[1]13'!V49","v":0},0]
[1,"EX1140",null,null,null,"Catering: Internal activities",null,null,{"$f":"'[1]13'!J50","v":0},{"$f":"'[1]13'!L50","v":0},{"$f":"'[1]13'!N50","v":0},{"$f":"'[1]13'!N50","v":0},{"$f":"'[1]13'!Q50","v":0},{"$f":"'[1]13'!Q50","v":0},0,{"$f":"'[1]13'!T50","v":0},{"$f":"'[1]13'!T50","v":0},0,{"$f":"'[1]13'!V50","v":0},{"$f":"'[1]13'!V50","v":0},0]
[1,"EX1122",null,null,null,"Communication (G&S)",null,null,{"$f":"'[1]13'!J51","v":0},{"$f":"'[1]13'!L51","v":0},{"$f":"'[1]13'!N51","v":0},{"$f":"'[1]13'!N51","v":0},{"$f":"'[1]13'!Q51","v":0},{"$f":"'[1]13'!Q51","v":0},0,{"$f":"'[1]13'!T51","v":0},{"$f":"'[1]13'!T51","v":0},0,{"$f":"'[1]13'!V51","v":0},{"$f":"'[1]13'!V51","v":0},0]
[1,"EX1123",null,null,null,"Computer services",null,null,{"$f":"'[1]13'!J52","v":0},{"$f":"'[1]13'!L52","v":0},{"$f":"'[1]13'!N52","v":0},{"$f":"'[1]13'!N52","v":0},{"$f":"'[1]13'!Q52","v":0},{"$f":"'[1]13'!Q52","v":0},0,{"$f":"'[1]13'!T52","v":0},{"$f":"'[1]13'!T52","v":0},0,{"$f":"'[1]13'!V52","v":0},{"$f":"'[1]13'!V52","v":0},0]
[1,"EX1124",null,null,null,"Consultants: Business and advisory services",null,null,{"$f":"'[1]13'!J53","v":0},{"$f":"'[1]13'!L53","v":0},{"$f":"'[1]13'!N53","v":0},{"$f":"'[1]13'!N53","v":0},{"$f":"'[1]13'!Q53","v":0},{"$f":"'[1]13'!Q53","v":0},0,{"$f":"'[1]13'!T53","v":0},{"$f":"'[1]13'!T53","v":0},0,{"$f":"'[1]13'!V53","v":0},{"$f":"'[1]13'!V53","v":0},0]
[1,"EX1180",null,null,null,"Infrastructure and planning services",null,null,{"$f":"SUM(I55:I57)","v":0},0,0,0,0,0,{"$f":"SUM(N54-M54)","v":0},{"$f":"SUM(P55:P57)","v":0},{"$f":"SUM(Q55:Q57)","v":0},{"$f":"SUM(Q54-P54)","v":0},{"$f":"SUM(S55:S57)","v":0},{"$f":"SUM(T55:T57)","v":0},{"$f":"SUM(T54-S54)","v":0},{"$f":"SUM(V55:V57)","v":0}]
[1,"EX11801",null,null,null,"Maintenance and repairs: Buildings: Consultants",null,null,{"$f":"'[1]13'!J55","v":0},{"$f":"'[1]13'!L55","v":0},{"$f":"'[1]13'!N55","v":0},{"$f":"'[1]13'!N55","v":0},{"$f":"'[1]13'!Q55","v":0},{"$f":"'[1]13'!Q55","v":0},{"$f":"SUM(N55-M55)","v":0},{"$f":"'[1]13'!T55","v":0},{"$f":"'[1]13'!T55","v":0},{"$f":"SUM(Q55-P55)","v":0},{"$f":"'[1]13'!V55","v":0},{"$f":"'[1]13'!V55","v":0},0]
[1,"EX11802",null,null,null,"Maintenance and repairs: Other fixed structures: Consultants",null,null,{"$f":"'[1]13'!J56","v":0},{"$f":"'[1]13'!L56","v":0},{"$f":"'[1]13'!N56","v":0},{"$f":"'[1]13'!N56","v":0},{"$f":"'[1]13'!Q56","v":0},{"$f":"'[1]13'!Q56","v":0},0,{"$f":"'[1]13'!T56","v":0},{"$f":"'[1]13'!T56","v":0},0,{"$f":"'[1]13'!V56","v":0},{"$f":"'[1]13'!V56","v":0},0]
[1,"EX11803",null,null,null,"Other",null,null,{"$f":"'[1]13'!J57","v":0},{"$f":"'[1]13'!L57","v":0},{"$f":"'[1]13'!N57","v":0},{"$f":"'[1]13'!N57","v":0},{"$f":"'[1]13'!Q57","v":0},{"$f":"'[1]13'!Q57","v":0},0,{"$f":"'[1]13'!T57","v":0},{"$f":"'[1]13'!T57","v":0},0,{"$f":"'[1]13'!V57","v":0},{"$f":"'[1]13'!V57","v":0},0]
[1,"EX1164",null,null,null,"Laboratory services",null,null,{"$f":"'[1]13'!J58","v":0},{"$f":"'[1]13'!L58","v":0},{"$f":"'[1]13'!N58","v":0},{"$f":"'[1]13'!N58","v":0},{"$f":"'[1]13'!Q58","v":0},{"$f":"'[1]13'!Q58","v":0},0,{"$f":"'[1]13'!T58","v":0},{"$f":"'[1]13'!T58","v":0},0,{"$f":"'[1]13'!V58","v":0},{"$f":"'[1]13'!V58","v":0},0]
[1,"EX1162",null,null,null,"Legal services (G&S)",null,null,{"$f":"'[1]13'!J59","v":0},{"$f":"'[1]13'!L59","v":0},{"$f":"'[1]13'!N59","v":0},{"$f":"'[1]13'!N59","v":0},{"$f":"'[1]13'!Q59","v":0},{"$f":"'[1]13'!Q59","v":0},0,{"$f":"'[1]13'!T59","v":0},{"$f":"'[1]13'!T59","v":0},0,{"$f":"'[1]13'!V59","v":0},{"$f":"'[1]13'!V59","v":0},0]
[1,"EX1165",null,null,null,"Science and technological services",null,null,{"$f":"'[1]13'!J60","v":0},{"$f":"'[1]13'!L60","v":0},{"$f":"'[1]13'!N60","v":0},{"$f":"'[1]13'!N60","v":0},{"$f":"'[1]13'!Q60","v":0},{"$f":"'[1]13'!Q60","v":0},0,{"$f":"'[1]13'!T60","v":0},{"$f":"'[1]13'!T60","v":0},0,{"$f":"'[1]13'!V60","v":0},{"$f":"'[1]13'!V60","v":0},0]
[1,"EX1125",null,null,null,"Contractors",null,null,{"$f":"SUM(I62:I66,I72)","v":0},0,0,0,0,0,{"$f":"SUM(N61-M61)","v":0},{"$f":"SUM(P62:P66,P72)","v":0},{"$f":"SUM(Q62:Q66,Q72)","v":0},{"$f":"SUM(Q61-P61)","v":0},{"$f":"SUM(S62:S66,S72)","v":0},{"$f":"SUM(T62:T66,T72)","v":0},0,{"$f":"SUM(V62:V66,V72)","v":0}]
[1,"EX11251",null,null,null,"Maintenance and repairs of other fixed structures",null,null,{"$f":"'[1]13'!J62","v":0},{"$f":"'[1]13'!L62","v":0},{"$f":"'[1]13'!N62","v":0},{"$f":"'[1]13'!N62","v":0},{"$f":"'[1]13'!Q62","v":0},{"$f":"'[1]13'!Q62","v":0},0,{"$f":"'[1]13'!T62","v":0},{"$f":"'[1]13'!T62","v":0},0,{"$f":"'[1]13'!V62","v":0},{"$f":"'[1]13'!V62","v":0},0]
[1,"EX11252",null,null,null,"Maintenance and repairs of other machinery and equipment",null,null,{"$f":"'[1]13'!J63","v":0},{"$f":"'[1]13'!L63","v":0},{"$f":"'[1]13'!N63","v":0},{"$f":"'[1]13'!N63","v":0},{"$f":"'[1]13'!Q63","v":0},{"$f":"'[1]13'!Q63","v":0},0,{"$f":"'[1]13'!T63","v":0},{"$f":"'[1]13'!T63","v":0},0,{"$f":"'[1]13'!V63","v":0},{"$f":"'[1]13'!V63","v":0},0]
[1,"EX11253",null,null,null,"Maintenance and repairs of heritage buildings",null,null,{"$f":"'[1]13'!J64","v":0},{"$f":"'[1]13'!L64","v":0},{"$f":"'[1]13'!N64","v":0},{"$f":"'[1]13'!N64","v":0},{"$f":"'[1]13'!Q64","v":0},{"$f":"'[1]13'!Q64","v":0},0,{"$f":"'[1]13'!T64","v":0},{"$f":"'[1]13'!T64","v":0},0,{"$f":"'[1]13'!V64","v":0},{"$f":"'[1]13'!V64","v":0},0]
[1,"EX11254",null,null,null,"Maintenance and repairs of other heritage fixed structures",null,null,{"$f":"'[1]13'!J65","v":0},{"$f":"'[1]13'!L65","v":0},{"$f":"'[1]13'!N65","v":0},{"$f":"'[1]13'!N65","v":0},{"$f":"'[1]13'!Q65","v":0},{"$f":"'[1]13'!Q65","v":0},0,{"$f":"'[1]13'!T65","v":0},{"$f":"'[1]13'!T65","v":0},0,{"$f":"'[1]13'!V65","v":0},{"$f":"'[1]13'!V65","v":0},0]
[5,"EX11255",null,null,null,"South african social security agency payment contractors",null,null,{"$f":"SUM(I67:I71)","v":0},0,0,0,0,0,0,{"$f":"SUM(P67:P71)","v":0},{"$f":"SUM(Q67:Q71)","v":0},0,{"$f":"SUM(S67:S71)","v":0},{"$f":"SUM(T67:T71)","v":0},0,{"$f":"SUM(V67:V71)","v":0}]
[5,"EX112551",null,null,null,"SASSA Admin fees",null,null,{"$f":"'[1]13'!J67","v":0},{"$f":"'[1]13'!L67","v":0},{"$f":"'[1]13'!N67","v":0},{"$f":"'[1]13'!N67","v":0},{"$f":"'[1]13'!Q67","v":0},{"$f":"'[1]13'!Q67","v":0},{"$f":"SUM(N67-M67)","v":0},{"$f":"'[1]13'!T67","v":0},{"$f":"'[1]13'!T67","v":0},{"$f":"SUM(Q67-P67)","v":0},{"$f":"'[1]13'!V67","v":0},{"$f":"'[1]13'!V67","v":0},{"$f":"SUM(T67-S67)","v":0}]
[5,"EX112552",null,null,null,"SASSA Bankcard fees",null,null,{"$f":"'[1]13'!J68","v":0},{"$f":"'[1]13'!L68","v":0},{"$f":"'[1]13'!N68","v":0},{"$f":"'[1]13'!N68","v":0},{"$f":"'[1]13'!Q68","v":0},{"$f":"'[1]13'!Q68","v":0},0,{"$f":"'[1]13'!T68","v":0},{"$f":"'[1]13'!T68","v":0},0,{"$f":"'[1]13'!V68","v":0},{"$f":"'[1]13'!V68","v":0},0]
[5,"EX112553",null,null,null,"SASSA registration fees",null,null,{"$f":"'[1]13'!J69","v":0},{"$f":"'[1]13'!L69","v":0},{"$f":"'[1]13'!N69","v":0},{"$f":"'[1]13'!N69","v":0},{"$f":"'[1]13'!Q69","v":0},{"$f":"'[1]13'!Q69","v":0},0,{"$f":"'[1]13'!T69","v":0},{"$f":"'[1]13'!T69","v":0},0,{"$f":"'[1]13'!V69","v":0},{"$f":"'[1]13'!V69","v":0},0]
[5,"EX112554",null,null,null,"SASSA beneficiary fees",null,null,{"$f":"'[1]13'!J70","v":0},{"$f":"'[1]13'!L70","v":0},{"$f":"'[1]13'!N70","v":0},{"$f":"'[1]13'!N70","v":0},{"$f":"'[1]13'!Q70","v":0},{"$f":"'[1]13'!Q70","v":0},0,{"$f":"'[1]13'!T70","v":0},{"$f":"'[1]13'!T70","v":0},0,{"$f":"'[1]13'!V70","v":0},{"$f":"'[1]13'!V70","v":0},0]
[5,"EX112555",null,null,null,"SASSA help desk fees",null,null,{"$f":"'[1]13'!J71","v":0},{"$f":"'[1]13'!L71","v":0},{"$f":"'[1]13'!N71","v":0},{"$f":"'[1]13'!N71","v":0},{"$f":"'[1]13'!Q71","v":0},{"$f":"'[1]13'!Q71","v":0},0,{"$f":"'[1]13'!T71","v":0},{"$f":"'[1]13'!T71","v":0},0,{"$f":"'[1]13'!V71","v":0},{"$f":"'[1]13'!V71","v":0},0]
[1,"EX11256",null,null,null,"Other",null,null,{"$f":"'[1]13'!J72","v":0},{"$f":"'[1]13'!L72","v":0},{"$f":"'[1]13'!N72","v":0},{"$f":"'[1]13'!N72","v":0},{"$f":"'[1]13'!Q72","v":0},{"$f":"'[1]13'!Q72","v":0},0,{"$f":"'[1]13'!T72","v":0},{"$f":"'[1]13'!T72","v":0},0,{"$f":"'[1]13'!V72","v":0},{"$f":"'[1]13'!V72","v":0},0]
[1,"EX1121",null,null,null,"Agency and support/outsourced services",null,null,{"$f":"'[1]13'!J73","v":0},{"$f":"'[1]13'!L73","v":0},{"$f":"'[1]13'!N73","v":0},{"$f":"'[1]13'!N73","v":0},{"$f":"'[1]13'!Q73","v":0},{"$f":"'[1]13'!Q73","v":0},0,{"$f":"'[1]13'!T73","v":0},{"$f":"'[1]13'!T73","v":0},0,{"$f":"'[1]13'!V73","v":0},{"$f":"'[1]13'!V73","v":0},0]
[5,"EX11211",null,null,null,"     Of Which: Medical assessments",null,null,{"$f":"'[1]13'!J74","v":0},{"$f":"'[1]13'!L74","v":0},{"$f":"'[1]13'!N74","v":0},{"$f":"'[1]13'!N74","v":0},{"$f":"'[1]13'!Q74","v":0},{"$f":"'[1]13'!Q74","v":0},0,{"$f":"'[1]13'!T74","v":0},{"$f":"'[1]13'!T74","v":0},0,{"$f":"'[1]13'!V74","v":0},{"$f":"'[1]13'!V74","v":0},0]
[1,"EX1161",null,null,null,"Entertainment",null,null,{"$f":"'[1]13'!J75","v":0},{"$f":"'[1]13'!L75","v":0},{"$f":"'[1]13'!N75","v":0},{"$f":"'[1]13'!N75","v":0},{"$f":"'[1]13'!Q75","v":0},{"$f":"'[1]13'!Q75","v":0},0,{"$f":"'[1]13'!T75","v":0},{"$f":"'[1]13'!T75","v":0},0,{"$f":"'[1]13'!V75","v":0},{"$f":"'[1]13'!V75","v":0},0]
[1,"EX1166",null,null,null,"Fleet services (including government motor transport)",null,null,{"$f":"'[1]13'!J76","v":0},{"$f":"'[1]13'!L76","v":0},{"$f":"'[1]13'!N76","v":0},{"$f":"'[1]13'!N76","v":0},{"$f":"'[1]13'!Q76","v":0},{"$f":"'[1]13'!Q76","v":0},0,{"$f":"'[1]13'!T76","v":0},{"$f":"'[1]13'!T76","v":0},0,{"$f":"'[1]13'!V76","v":0},{"$f":"'[1]13'!V76","v":0},0]
[1,"EX1167",null,null,null,"Housing",null,null,{"$f":"'[1]13'!J77","v":0},{"$f":"'[1]13'!L77","v":0},{"$f":"'[1]13'!N77","v":0},{"$f":"'[1]13'!N77","v":0},{"$f":"'[1]13'!Q77","v":0},{"$f":"'[1]13'!Q77","v":0},0,{"$f":"'[1]13'!T77","v":0},{"$f":"'[1]13'!T77","v":0},0,{"$f":"'[1]13'!V77","v":0},{"$f":"'[1]13'!V77","v":0},0]
[1,"EX1168",null,null,null,"Inventory: Clothing material and accessories",null,null,{"$f":"'[1]13'!J78","v":0},{"$f":"'[1]13'!L78","v":0},{"$f":"'[1]13'!N78","v":0},{"$f":"'[1]13'!N78","v":0},{"$f":"'[1]13'!Q78","v":0},{"$f":"'[1]13'!Q78","v":0},0,{"$f":"'[1]13'!T78","v":0},{"$f":"'[1]13'!T78","v":0},0,{"$f":"'[1]13'!V78","v":0},{"$f":"'[1]13'!V78","v":0},0]
[1,"EX1169",null,null,null,"Inventory: Farming supplies",null,null,{"$f":"'[1]13'!J79","v":0},{"$f":"'[1]13'!L79","v":0},{"$f":"'[1]13'!N79","v":0},{"$f":"'[1]13'!N79","v":0},{"$f":"'[1]13'!Q79","v":0},{"$f":"'[1]13'!Q79","v":0},0,{"$f":"'[1]13'!T79","v":0},{"$f":"'[1]13'!T79","v":0},0,{"$f":"'[1]13'!V79","v":0},{"$f":"'[1]13'!V79","v":0},0]
[1,"EX1170",null,null,null,"Inventory: Food and food supplies",null,null,{"$f":"'[1]13'!J80","v":0},{"$f":"'[1]13'!L80","v":0},{"$f":"'[1]13'!N80","v":0},{"$f":"'[1]13'!N80","v":0},{"$f":"'[1]13'!Q80","v":0},{"$f":"'[1]13'!Q80","v":0},0,{"$f":"'[1]13'!T80","v":0},{"$f":"'[1]13'!T80","v":0},0,{"$f":"'[1]13'!V80","v":0},{"$f":"'[1]13'!V80","v":0},0]
[1,"EX1171",null,null,null,"Inventory: Fuel, oil and gas",null,null,{"$f":"'[1]13'!J81","v":0},{"$f":"'[1]13'!L81","v":0},{"$f":"'[1]13'!N81","v":0},{"$f":"'[1]13'!N81","v":0},{"$f":"'[1]13'!Q81","v":0},{"$f":"'[1]13'!Q81","v":0},0,{"$f":"'[1]13'!T81","v":0},{"$f":"'[1]13'!T81","v":0},0,{"$f":"'[1]13'!V81","v":0},{"$f":"'[1]13'!V81","v":0},0]
[1,"EX1172",null,null,null,"Inventory: Learner and teacher support material",null,null,{"$f":"'[1]13'!J82","v":0},{"$f":"'[1]13'!L82","v":0},{"$f":"'[1]13'!N82","v":0},{"$f":"'[1]13'!N82","v":0},{"$f":"'[1]13'!Q82","v":0},{"$f":"'[1]13'!Q82","v":0},0,{"$f":"'[1]13'!T82","v":0},{"$f":"'[1]13'!T82","v":0},0,{"$f":"'[1]13'!V82","v":0},{"$f":"'[1]13'!V82","v":0},0]
[1,"EX1126",null,null,null,"Inventory: Materials and supplies",null,null,{"$f":"'[1]13'!J83","v":0},{"$f":"'[1]13'!L83","v":0},{"$f":"'[1]13'!N83","v":0},{"$f":"'[1]13'!N83","v":0},{"$f":"'[1]13'!Q83","v":0},{"$f":"'[1]13'!Q83","v":0},0,{"$f":"'[1]13'!T83","v":0},{"$f":"'[1]13'!T83","v":0},0,{"$f":"'[1]13'!V83","v":0},{"$f":"'[1]13'!V83","v":0},0]
[1,"EX1173",null,null,null,"Inventory: Medical supplies",null,null,{"$f":"'[1]13'!J84","v":0},{"$f":"'[1]13'!L84","v":0},{"$f":"'[1]13'!N84","v":0},{"$f":"'[1]13'!N84","v":0},{"$f":"'[1]13'!Q84","v":0},{"$f":"'[1]13'!Q84","v":0},0,{"$f":"'[1]13'!T84","v":0},{"$f":"'[1]13'!T84","v":0},0,{"$f":"'[1]13'!V84","v":0},{"$f":"'[1]13'!V84","v":0},0]
[1,"EX1174",null,null,null,"Inventory: Medicine",null,null,{"$f":"'[1]13'!J85","v":0},{"$f":"'[1]13'!L85","v":0},{"$f":"'[1]13'!N85","v":0},{"$f":"'[1]13'!N85","v":0},{"$f":"'[1]13'!Q85","v":0},{"$f":"'[1]13'!Q85","v":0},0,{"$f":"'[1]13'!T85","v":0},{"$f":"'[1]13'!T85","v":0},0,{"$f":"'[1]13'!V85","v":0},{"$f":"'[1]13'!V85","v":0},0]
[1,"EX1175",null,null,null,"Medsas inventory interface",null,null,{"$f":"'[1]13'!J86","v":0},{"$f":"'[1]13'!L86","v":0},{"$f":"'[1]13'!N86","v":0},{"$f":"'[1]13'!N86","v":0},{"$f":"'[1]13'!Q86","v":0},{"$f":"'[1]13'!Q86","v":0},0,{"$f":"'[1]13'!T86","v":0},{"$f":"'[1]13'!T86","v":0},0,{"$f":"'[1]13'!V86","v":0},{"$f":"'[1]13'!V86","v":0},0]
[1,"EX1176",null,null,null,"Inventory: Other supplies",null,null,{"$f":"'[1]13'!J87","v":0},{"$f":"'[1]13'!L87","v":0},{"$f":"'[1]13'!N87","v":0},{"$f":"'[1]13'!N87","v":0},{"$f":"'[1]13'!Q87","v":0},{"$f":"'[1]13'!Q87","v":0},0,{"$f":"'[1]13'!T87","v":0},{"$f":"'[1]13'!T87","v":0},0,{"$f":"'[1]13'!V87","v":0},{"$f":"'[1]13'!V87","v":0},0]
[1,"EX1177",null,null,null,"Consumable supplies",null,null,{"$f":"'[1]13'!J88","v":0},{"$f":"'[1]13'!L88","v":0},{"$f":"'[1]13'!N88","v":0},{"$f":"'[1]13'!N88","v":0},{"$f":"'[1]13'!Q88","v":0},{"$f":"'[1]13'!Q88","v":0},0,{"$f":"'[1]13'!T88","v":0},{"$f":"'[1]13'!T88","v":0},0,{"$f":"'[1]13'!V88","v":0},{"$f":"'[1]13'!V88","v":0},0]
[1,"EX1144",null,null,null,"Consumables: Stationery, printing and office supplies",null,null,{"$f":"'[1]13'!J89","v":0},{"$f":"'[1]13'!L89","v":0},{"$f":"'[1]13'!N89","v":0},{"$f":"'[1]13'!N89","v":0},{"$f":"'[1]13'!Q89","v":0},{"$f":"'[1]13'!Q89","v":0},0,{"$f":"'[1]13'!T89","v":0},{"$f":"'[1]13'!T89","v":0},0,{"$f":"'[1]13'!V89","v":0},{"$f":"'[1]13'!V89","v":0},0]
[1,"EX1127",null,null,null,"Operating leases",null,null,{"$f":"'[1]13'!J90","v":0},{"$f":"'[1]13'!L90","v":0},{"$f":"'[1]13'!N90","v":0},{"$f":"'[1]13'!N90","v":0},{"$f":"'[1]13'!Q90","v":0},{"$f":"'[1]13'!Q90","v":0},0,{"$f":"'[1]13'!T90","v":0},{"$f":"'[1]13'!T90","v":0},0,{"$f":"'[1]13'!V90","v":0},{"$f":"'[1]13'!V90","v":0},0]
[1,"EX1178",null,null,null,"Rental and hiring",null,null,{"$f":"'[1]13'!J91","v":0},{"$f":"'[1]13'!L91","v":0},{"$f":"'[1]13'!N91","v":0},{"$f":"'[1]13'!N91","v":0},{"$f":"'[1]13'!Q91","v":0},{"$f":"'[1]13'!Q91","v":0},0,{"$f":"'[1]13'!T91","v":0},{"$f":"'[1]13'!T91","v":0},0,{"$f":"'[1]13'!V91","v":0},{"$f":"'[1]13'!V91","v":0},0]
[1,"EX1145",null,null,null,"Property payments",null,null,{"$f":"'[1]13'!J92","v":0},{"$f":"'[1]13'!L92","v":0},{"$f":"'[1]13'!N92","v":0},{"$f":"'[1]13'!N92","v":0},{"$f":"'[1]13'!Q92","v":0},{"$f":"'[1]13'!Q92","v":0},0,{"$f":"'[1]13'!T92","v":0},{"$f":"'[1]13'!T92","v":0},0,{"$f":"'[1]13'!V92","v":0},{"$f":"'[1]13'!V92","v":0},0]
[1,"EX1179",null,null,null,"Transport provided: Internal activities",null,null,{"$f":"'[1]13'!J93","v":0},{"$f":"'[1]13'!L93","v":0},{"$f":"'[1]13'!N93","v":0},{"$f":"'[1]13'!N93","v":0},{"$f":"'[1]13'!Q93","v":0},{"$f":"'[1]13'!Q93","v":0},0,{"$f":"'[1]13'!T93","v":0},{"$f":"'[1]13'!T93","v":0},0,{"$f":"'[1]13'!V93","v":0},{"$f":"'[1]13'!V93","v":0},0]
[1,"EX1131",null,null,null,"Travel and subsistence",null,null,{"$f":"'[1]13'!J94","v":0},{"$f":"'[1]13'!L94","v":0},{"$f":"'[1]13'!N94","v":0},{"$f":"'[1]13'!N94","v":0},{"$f":"'[1]13'!Q94","v":0},{"$f":"'[1]13'!Q94","v":0},0,{"$f":"'[1]13'!T94","v":0},{"$f":"'[1]13'!T94","v":0},0,{"$f":"'[1]13'!V94","v":0},{"$f":"'[1]13'!V94","v":0},0]
[1,"EX1130",null,null,null,"Training and development",null,null,{"$f":"'[1]13'!J95","v":0},{"$f":"'[1]13'!L95","v":0},{"$f":"'[1]13'!N95","v":0},{"$f":"'[1]13'!N95","v":0},{"$f":"'[1]13'!Q95","v":0},{"$f":"'[1]13'!Q95","v":0},0,{"$f":"'[1]13'!T95","v":0},{"$f":"'[1]13'!T95","v":0},0,{"$f":"'[1]13'!V95","v":0},{"$f":"'[1]13'!V95","v":0},0]
[1,"EX1132",null,null,null,"Operating payments",null,null,{"$f":"'[1]13'!J96","v":0},{"$f":"'[1]13'!L96","v":0},{"$f":"'[1]13'!N96","v":0},{"$f":"'[1]13'!N96","v":0},{"$f":"'[1]13'!Q96","v":0},{"$f":"'[1]13'!Q96","v":0},0,{"$f":"'[1]13'!T96","v":0},{"$f":"'[1]13'!T96","v":0},0,{"$f":"'[1]13'!V96","v":0},{"$f":"'[1]13'!V96","v":0},0]
[1,"EX1146",null,null,null,"Venues and facilities",null,null,{"$f":"'[1]13'!J97","v":0},{"$f":"'[1]13'!L97","v":0},{"$f":"'[1]13'!N97","v":0},{"$f":"'[1]13'!N97","v":0},{"$f":"'[1]13'!Q97","v":0},{"$f":"'[1]13'!Q97","v":0},0,{"$f":"'[1]13'!T97","v":0},{"$f":"'[1]13'!T97","v":0},0,{"$f":"'[1]13'!V97","v":0},{"$f":"'[1]13'!V97","v":0},0]
[1,"EX113",null,null,null,"Depreciation",null,null,{"$f":"'[1]13'!J98","v":0},{"$f":"'[1]13'!L98","v":0},{"$f":"'[1]13'!N98","v":0},{"$f":"'[1]13'!N98","v":0},{"$f":"'[1]13'!Q98","v":0},{"$f":"'[1]13'!Q98","v":0},0,{"$f":"'[1]13'!T98","v":0},{"$f":"'[1]13'!T98","v":0},0,{"$f":"'[1]13'!V98","v":0},{"$f":"'[1]13'!V98","v":0},0]
[1,"EX114",null,null,null,"Losses from",null,null,{"$f":"SUM(I100:I101,I104)","v":0},0,0,0,0,0,{"$f":"SUM(N99-M99)","v":0},{"$f":"SUM(P100:P101,P104)","v":0},{"$f":"SUM(Q100:Q101,Q104)","v":0},{"$f":"SUM(Q99-P99)","v":0},{"$f":"SUM(S100:S101,S104)","v":0},{"$f":"SUM(T100:T101,T104)","v":0},{"$f":"SUM(T99-S99)","v":0},{"$f":"SUM(V100:V101,V104)","v":0}]
[1,"EX1141",null,null,null,"Sale of fixed assets",null,null,{"$f":"'[1]13'!J100","v":0},{"$f":"'[1]13'!L100","v":0},{"$f":"'[1]13'!N100","v":0},{"$f":"'[1]13'!N100","v":0},{"$f":"'[1]13'!Q100","v":0},{"$f":"'[1]13'!Q100","v":0},0,{"$f":"'[1]13'!T100","v":0},{"$f":"'[1]13'!T100","v":0},0,{"$f":"'[1]13'!V100","v":0},{"$f":"'[1]13'!V100","v":0},0]
[1,"EX1142",null,null,null,"Impairments and adjustments to fair value",null,null,{"$f":"SUM(I102:I103)","v":0},0,0,0,0,0,0,{"$f":"SUM(P102:P103)","v":0},{"$f":"SUM(Q102:Q103)","v":0},0,{"$f":"SUM(S102:S103)","v":0},{"$f":"SUM(T102:T103)","v":0},0,{"$f":"SUM(V102:V103)","v":0}]
[1,"EX11421",null,null,null,"Adjustments to fair value of assets",null,null,{"$f":"'[1]13'!J102","v":0},{"$f":"'[1]13'!L102","v":0},{"$f":"'[1]13'!N102","v":0},{"$f":"'[1]13'!N102","v":0},{"$f":"'[1]13'!Q102","v":0},{"$f":"'[1]13'!Q102","v":0},0,{"$f":"'[1]13'!T102","v":0},{"$f":"'[1]13'!T102","v":0},0,{"$f":"'[1]13'!V102","v":0},{"$f":"'[1]13'!V102","v":0},0]
[1,"EX11422",null,null,null,"Impairments to assets",null,null,{"$f":"'[1]13'!J103","v":0},{"$f":"'[1]13'!L103","v":0},{"$f":"'[1]13'!N103","v":0},{"$f":"'[1]13'!N103","v":0},{"$f":"'[1]13'!Q103","v":0},{"$f":"'[1]13'!Q103","v":0},0,{"$f":"'[1]13'!T103","v":0},{"$f":"'[1]13'!T103","v":0},0,{"$f":"'[1]13'!V103","v":0},{"$f":"'[1]13'!V103","v":0},0]
[1,"EX1143",null,null,null,"Other",null,null,{"$f":"'[1]13'!J104","v":0},{"$f":"'[1]13'!L104","v":0},{"$f":"'[1]13'!N104","v":0},{"$f":"'[1]13'!N104","v":0},{"$f":"'[1]13'!Q104","v":0},{"$f":"'[1]13'!Q104","v":0},0,{"$f":"'[1]13'!T104","v":0},{"$f":"'[1]13'!T104","v":0},0,{"$f":"'[1]13'!V104","v":0},{"$f":"'[1]13'!V104","v":0},0]
[1,"EX115",null,null,null,"Interest, dividends and rent on land",null,null,{"$f":"SUM(I106:I108)","v":0},0,0,0,0,0,0,{"$f":"SUM(P106:P108)","v":0},{"$f":"SUM(Q106:Q108)","v":0},0,{"$f":"SUM(S106:S108)","v":0},{"$f":"SUM(T106:T108)","v":0},0,{"$f":"SUM(V106:V108)","v":0}]
[1,"EX1151",null,null,null,"Interest",null,null,{"$f":"'[1]13'!J106","v":0},{"$f":"'[1]13'!L106","v":0},{"$f":"'[1]13'!N106","v":0},{"$f":"'[1]13'!N106","v":0},{"$f":"'[1]13'!Q106","v":0},{"$f":"'[1]13'!Q106","v":0},0,{"$f":"'[1]13'!T106","v":0},{"$f":"'[1]13'!T106","v":0},0,{"$f":"'[1]13'!V106","v":0},{"$f":"'[1]13'!V106","v":0},0]
[1,"EX1152",null,null,null,"Dividends",null,null,{"$f":"'[1]13'!J107","v":0},{"$f":"'[1]13'!L107","v":0},{"$f":"'[1]13'!N107","v":0},{"$f":"'[1]13'!N107","v":0},{"$f":"'[1]13'!Q107","v":0},{"$f":"'[1]13'!Q107","v":0},0,{"$f":"'[1]13'!T107","v":0},{"$f":"'[1]13'!T107","v":0},0,{"$f":"'[1]13'!V107","v":0},{"$f":"'[1]13'!V107","v":0},0]
[1,"EX1153",null,null,null,"Rent on land",null,null,{"$f":"'[1]13'!J108","v":0},{"$f":"'[1]13'!L108","v":0},{"$f":"'[1]13'!N108","v":0},{"$f":"'[1]13'!N108","v":0},{"$f":"'[1]13'!Q108","v":0},{"$f":"'[1]13'!Q108","v":0},0,{"$f":"'[1]13'!T108","v":0},{"$f":"'[1]13'!T108","v":0},0,{"$f":"'[1]13'!V108","v":0},{"$f":"'[1]13'!V108","v":0},0]
[1,"EX12",null,null,null,"Transfers and subsidies",null,null,{"$f":"SUM(I110,I121,I132:I135)","v":0},0,0,0,0,0,0,{"$f":"SUM(P110,P121,P132:P135)","v":0},{"$f":"SUM(Q110,Q121,Q132:Q135)","v":0},0,{"$f":"SUM(S110,S121,S132:S135)","v":0},{"$f":"SUM(T110,T121,T132:T135)","v":0},0,{"$f":"SUM(V110,V121,V132:V135)","v":0}]
[2,"EX121",null,null,null,"Employer Grant (SETAs only)",null,null,{"$f":"SUM(I111,I117,I120)","v":0},0,0,0,0,0,0,{"$f":"SUM(P111,P117,P120)","v":0},{"$f":"SUM(Q111,Q117,Q120)","v":0},0,{"$f":"SUM(S111,S117,S120)","v":0},{"$f":"SUM(T111,T117,T120)","v":0},0,{"$f":"SUM(V111,V117,V120)","v":0}]
[1,"EX122",null,null,null,"Other government units",null,null,{"$f":"SUM(I112:I116)","v":0},0,0,0,0,0,0,{"$f":"SUM(P112:P116)","v":0},{"$f":"SUM(Q112:Q116)","v":0},0,{"$f":"SUM(S112:S116)","v":0},{"$f":"SUM(T112:T116)","v":0},0,{"$f":"SUM(V112:V116)","v":0}]
[1,"EX1221",null,null,null,"National government",null,null,{"$f":"'[1]13'!J112","v":0},{"$f":"'[1]13'!L112","v":0},{"$f":"'[1]13'!N112","v":0},{"$f":"'[1]13'!N112","v":0},{"$f":"'[1]13'!Q112","v":0},{"$f":"'[1]13'!Q112","v":0},0,{"$f":"'[1]13'!T112","v":0},{"$f":"'[1]13'!T112","v":0},0,{"$f":"'[1]13'!V112","v":0},{"$f":"'[1]13'!V112","v":0},0]
[1,"EX1222",null,null,null,"Departmental agencies and accounts",null,null,{"$f":"'[1]13'!J113","v":0},{"$f":"'[1]13'!L113","v":0},{"$f":"'[1]13'!N113","v":0},{"$f":"'[1]13'!N113","v":0},{"$f":"'[1]13'!Q113","v":0},{"$f":"'[1]13'!Q113","v":0},0,{"$f":"'[1]13'!T113","v":0},{"$f":"'[1]13'!T113","v":0},0,{"$f":"'[1]13'!V113","v":0},{"$f":"'[1]13'!V113","v":0},0]
[1,"EX1223",null,null,null,"Provinces",null,null,{"$f":"'[1]13'!J114","v":0},{"$f":"'[1]13'!L114","v":0},{"$f":"'[1]13'!N114","v":0},{"$f":"'[1]13'!N114","v":0},{"$f":"'[1]13'!Q114","v":0},{"$f":"'[1]13'!Q114","v":0},0,{"$f":"'[1]13'!T114","v":0},{"$f":"'[1]13'!T114","v":0},0,{"$f":"'[1]13'!V114","v":0},{"$f":"'[1]13'!V114","v":0},0]
[1,"EX1224",null,null,null,"Municipalities",null,null,{"$f":"'[1]13'!J115","v":0},{"$f":"'[1]13'!L115","v":0},{"$f":"'[1]13'!N115","v":0},{"$f":"'[1]13'!N115","v":0},{"$f":"'[1]13'!Q115","v":0},{"$f":"'[1]13'!Q115","v":0},0,{"$f":"'[1]13'!T115","v":0},{"$f":"'[1]13'!T115","v":0},0,{"$f":"'[1]13'!V115","v":0},{"$f":"'[1]13'!V115","v":0},0]
[2,"EX1225",null,null,null,"National Skills Fund",null,null,{"$f":"'[1]13'!J116","v":0},{"$f":"'[1]13'!L116","v":0},{"$f":"'[1]13'!N116","v":0},{"$f":"'[1]13'!N116","v":0},{"$f":"'[1]13'!Q116","v":0},{"$f":"'[1]13'!Q116","v":0},0,{"$f":"'[1]13'!T116","v":0},{"$f":"'[1]13'!T116","v":0},0,{"$f":"'[1]13'!V116","v":0},{"$f":"'[1]13'!V116","v":0},0]
[1,"EX123",null,null,null,"Public corporations and private enterprises (subsidies and other transfers)",null,null,{"$f":"SUM(I118:I119)","v":0},0,0,0,0,0,0,{"$f":"SUM(P118:P119)","v":0},{"$f":"SUM(Q118:Q119)","v":0},0,{"$f":"SUM(S118:S119)","v":0},{"$f":"SUM(T118:T119)","v":0},0,{"$f":"SUM(V118:V119)","v":0}]
[1,"EX1231",null,null,null,"Public corporations",null,null,{"$f":"'[1]13'!J118","v":0},{"$f":"'[1]13'!L118","v":0},{"$f":"'[1]13'!N118","v":0},{"$f":"'[1]13'!N118","v":0},{"$f":"'[1]13'!Q118","v":0},{"$f":"'[1]13'!Q118","v":0},0,{"$f":"'[1]13'!T118","v":0},{"$f":"'[1]13'!T118","v":0},0,{"$f":"'[1]13'!V118","v":0},{"$f":"'[1]13'!V118","v":0},0]
[1,"EX1232",null,null,null,"Private enterprises",null,null,{"$f":"'[1]13'!J119","v":0},{"$f":"'[1]13'!L119","v":0},{"$f":"'[1]13'!N119","v":0},{"$f":"'[1]13'!N119","v":0},{"$f":"'[1]13'!Q119","v":0},{"$f":"'[1]13'!Q119","v":0},0,{"$f":"'[1]13'!T119","v":0},{"$f":"'[1]13'!T119","v":0},0,{"$f":"'[1]13'!V119","v":0},{"$f":"'[1]13'!V119","v":0},0]
[2,"EX124",null,null,null,"Households and non government units",null,null,{"$f":"'[1]13'!J120","v":0},{"$f":"'[1]13'!L120","v":0},{"$f":"'[1]13'!N120","v":0},{"$f":"'[1]13'!N120","v":0},{"$f":"'[1]13'!Q120","v":0},{"$f":"'[1]13'!Q120","v":0},0,{"$f":"'[1]13'!T120","v":0},{"$f":"'[1]13'!T120","v":0},0,{"$f":"'[1]13'!V120","v":0},{"$f":"'[1]13'!V120","v":0},0]
[2,"EX125",null,null,null,"Discretionary Grant (SETAs only)",null,null,{"$f":"SUM(I122,I128,I131)","v":0},0,0,0,0,0,0,{"$f":"SUM(P122,P128,P131)","v":0},{"$f":"SUM(Q122,Q128,Q131)","v":0},0,{"$f":"SUM(S122,S128,S131)","v":0},{"$f":"SUM(T122,T128,T131)","v":0},0,{"$f":"SUM(V122,V128,V131)","v":0}]
[2,"EX126",null,null,null,"Other government units",null,null,{"$f":"SUM(I123:I127)","v":0},0,0,0,0,0,0,{"$f":"SUM(P123:P127)","v":0},{"$f":"SUM(Q123:Q127)","v":0},0,{"$f":"SUM(S123:S127)","v":0},{"$f":"SUM(T123:T127)","v":0},0,{"$f":"SUM(V123:V127)","v":0}]
[2,"EX1261",null,null,null,"National government",null,null,{"$f":"'[1]13'!J123","v":0},{"$f":"'[1]13'!L123","v":0},{"$f":"'[1]13'!N123","v":0},{"$f":"'[1]13'!N123","v":0},{"$f":"'[1]13'!Q123","v":0},{"$f":"'[1]13'!Q123","v":0},0,{"$f":"'[1]13'!T123","v":0},{"$f":"'[1]13'!T123","v":0},0,{"$f":"'[1]13'!V123","v":0},{"$f":"'[1]13'!V123","v":0},0]
[2,"EX1262",null,null,null,"Departmental agencies and accounts",null,null,{"$f":"'[1]13'!J124","v":0},{"$f":"'[1]13'!L124","v":0},{"$f":"'[1]13'!N124","v":0},{"$f":"'[1]13'!N124","v":0},{"$f":"'[1]13'!Q124","v":0},{"$f":"'[1]13'!Q124","v":0},0,{"$f":"'[1]13'!T124","v":0},{"$f":"'[1]13'!T124","v":0},0,{"$f":"'[1]13'!V124","v":0},{"$f":"'[1]13'!V124","v":0},0]
[2,"EX1263",null,null,null,"Provinces",null,null,{"$f":"'[1]13'!J125","v":0},{"$f":"'[1]13'!L125","v":0},{"$f":"'[1]13'!N125","v":0},{"$f":"'[1]13'!N125","v":0},{"$f":"'[1]13'!Q125","v":0},{"$f":"'[1]13'!Q125","v":0},0,{"$f":"'[1]13'!T125","v":0},{"$f":"'[1]13'!T125","v":0},0,{"$f":"'[1]13'!V125","v":0},{"$f":"'[1]13'!V125","v":0},0]
[2,"EX1264",null,null,null,"Municipalities",null,null,{"$f":"'[1]13'!J126","v":0},{"$f":"'[1]13'!L126","v":0},{"$f":"'[1]13'!N126","v":0},{"$f":"'[1]13'!N126","v":0},{"$f":"'[1]13'!Q126","v":0},{"$f":"'[1]13'!Q126","v":0},0,{"$f":"'[1]13'!T126","v":0},{"$f":"'[1]13'!T126","v":0},0,{"$f":"'[1]13'!V126","v":0},{"$f":"'[1]13'!V126","v":0},0]
[2,"EX1265",null,null,null,"National Skills Fund",null,null,{"$f":"'[1]13'!J127","v":0},{"$f":"'[1]13'!L127","v":0},{"$f":"'[1]13'!N127","v":0},{"$f":"'[1]13'!N127","v":0},{"$f":"'[1]13'!Q127","v":0},{"$f":"'[1]13'!Q127","v":0},0,{"$f":"'[1]13'!T127","v":0},{"$f":"'[1]13'!T127","v":0},0,{"$f":"'[1]13'!V127","v":0},{"$f":"'[1]13'!V127","v":0},0]
[2,"EX127",null,null,null,"Public corporations and private enterprises (subsidies and other transfers)",null,null,{"$f":"SUM(I129:I130)","v":0},0,0,0,0,0,0,{"$f":"SUM(P129:P130)","v":0},{"$f":"SUM(Q129:Q130)","v":0},0,{"$f":"SUM(S129:S130)","v":0},{"$f":"SUM(T129:T130)","v":0},0,{"$f":"SUM(V129:V130)","v":0}]
[2,"EX1271",null,null,null,"Public corporations",null,null,{"$f":"'[1]13'!J129","v":0},{"$f":"'[1]13'!L129","v":0},{"$f":"'[1]13'!N129","v":0},{"$f":"'[1]13'!N129","v":0},{"$f":"'[1]13'!Q129","v":0},{"$f":"'[1]13'!Q129","v":0},0,{"$f":"'[1]13'!T129","v":0},{"$f":"'[1]13'!T129","v":0},0,{"$f":"'[1]13'!V129","v":0},{"$f":"'[1]13'!V129","v":0},{"$f":"SUM(T129-S129)","v":0}]
[2,"EX1272",null,null,null,"Private enterprises",null,null,{"$f":"'[1]13'!J130","v":0},{"$f":"'[1]13'!L130","v":0},{"$f":"'[1]13'!N130","v":0},{"$f":"'[1]13'!N130","v":0},{"$f":"'[1]13'!Q130","v":0},{"$f":"'[1]13'!Q130","v":0},0,{"$f":"'[1]13'!T130","v":0},{"$f":"'[1]13'!T130","v":0},0,{"$f":"'[1]13'!V130","v":0},{"$f":"'[1]13'!V130","v":0},0]
[2,"EX128",null,null,null,"Households and non government units",null,null,{"$f":"'[1]13'!J131","v":0},{"$f":"'[1]13'!L131","v":0},{"$f":"'[1]13'!N131","v":0},{"$f":"'[1]13'!N131","v":0},{"$f":"'[1]13'!Q131","v":0},{"$f":"'[1]13'!Q131","v":0},0,{"$f":"'[1]13'!T131","v":0},{"$f":"'[1]13'!T131","v":0},0,{"$f":"'[1]13'!V131","v":0},{"$f":"'[1]13'!V131","v":0},0]
[1,"EX129",null,null,null,"Higher education institutions",null,null,{"$f":"'[1]13'!J132","v":0},{"$f":"'[1]13'!L132","v":0},{"$f":"'[1]13'!N132","v":0},{"$f":"'[1]13'!N132","v":0},{"$f":"'[1]13'!Q132","v":0},{"$f":"'[1]13'!Q132","v":0},0,{"$f":"'[1]13'!T132","v":0},{"$f":"'[1]13'!T132","v":0},0,{"$f":"'[1]13'!V132","v":0},{"$f":"'[1]13'!V132","v":0},0]
[1,"EX130",null,null,null,"Foreign governments and international organisations ",null,null,{"$f":"'[1]13'!J133","v":0},{"$f":"'[1]13'!L133","v":0},{"$f":"'[1]13'!N133","v":0},{"$f":"'[1]13'!N133","v":0},{"$f":"'[1]13'!Q133","v":0},{"$f":"'[1]13'!Q133","v":0},0,{"$f":"'[1]13'!T133","v":0},{"$f":"'[1]13'!T133","v":0},0,{"$f":"'[1]13'!V133","v":0},{"$f":"'[1]13'!V133","v":0},0]
[1,"EX131",null,null,null,"Non-profit institutions",null,null,{"$f":"'[1]13'!J134","v":0},{"$f":"'[1]13'!L134","v":0},{"$f":"'[1]13'!N134","v":0},{"$f":"'[1]13'!N134","v":0},{"$f":"'[1]13'!Q134","v":0},{"$f":"'[1]13'!Q134","v":0},0,{"$f":"'[1]13'!T134","v":0},{"$f":"'[1]13'!T134","v":0},0,{"$f":"'[1]13'!V134","v":0},{"$f":"'[1]13'!V134","v":0},0]
[1,"EX132",null,null,null,"Households",null,null,{"$f":"SUM(I136:I137)","v":0},0,0,0,0,0,{"$f":"SUM(N135-M135)","v":0},{"$f":"SUM(P136:P137)","v":0},{"$f":"SUM(Q136:Q137)","v":0},{"$f":"SUM(Q135-P135)","v":0},{"$f":"SUM(S136:S137)","v":0},{"$f":"SUM(T136:T137)","v":0},{"$f":"SUM(T135-S135)","v":0},{"$f":"SUM(V136:V137)","v":0}]
[1,"EX1301",null,null,null,"Social benefits ",null,null,{"$f":"'[1]13'!J136","v":0},{"$f":"'[1]13'!L136","v":0},{"$f":"'[1]13'!N136","v":0},{"$f":"'[1]13'!N136","v":0},{"$f":"'[1]13'!Q136","v":0},{"$f":"'[1]13'!Q136","v":0},0,{"$f":"'[1]13'!T136","v":0},{"$f":"'[1]13'!T136","v":0},0,{"$f":"'[1]13'!V136","v":0},{"$f":"'[1]13'!V136","v":0},0]
[1,"EX1302",null,null,null,"Other transfers to households",null,null,{"$f":"'[1]13'!J137","v":0},{"$f":"'[1]13'!L137","v":0},{"$f":"'[1]13'!N137","v":0},{"$f":"'[1]13'!N137","v":0},{"$f":"'[1]13'!Q137","v":0},{"$f":"'[1]13'!Q137","v":0},0,{"$f":"'[1]13'!T137","v":0},{"$f":"'[1]13'!T137","v":0},0,{"$f":"'[1]13'!V137","v":0},{"$f":"'[1]13'!V137","v":0},0]
[1,"EX13",null,null,null,"Tax payment",null,null,{"$f":"'[1]13'!J138","v":0},{"$f":"'[1]13'!L138","v":0},{"$f":"'[1]13'!N138","v":0},{"$f":"'[1]13'!N138","v":0},{"$f":"'[1]13'!Q138","v":0},{"$f":"'[1]13'!Q138","v":0},0,{"$f":"'[1]13'!T138","v":0},{"$f":"'[1]13'!T138","v":0},0,{"$f":"'[1]13'!V138","v":0},{"$f":"'[1]13'!V138","v":0},0]
[1,"EX14",null,null,null,"Outside shareholders Interest",null,null,{"$f":"'[1]13'!J139","v":0},{"$f":"'[1]13'!L139","v":0},{"$f":"'[1]13'!N139","v":0},{"$f":"'[1]13'!N139","v":0},{"$f":"'[1]13'!Q139","v":0},{"$f":"'[1]13'!Q139","v":0},0,{"$f":"'[1]13'!T139","v":0},{"$f":"'[1]13'!T139","v":0},0,{"$f":"'[1]13'!V139","v":0},{"$f":"'[1]13'!V139","v":0},0]
[1,"EX15",null,null,null,"Total Expenditure",null,null,{"$f":"SUM(I39,I109,I138:I139)","v":0},0,0,0,0,0,0,{"$f":"SUM(P39,P109,P138:P139)","v":0},{"$f":"SUM(Q39,Q109,Q138:Q139)","v":0},0,{"$f":"SUM(S39,S109,S138:S139)","v":0},{"$f":"SUM(T39,T109,T138:T139)","v":0},0,{"$f":"SUM(V39,V109,V138:V139)","v":0}]
[1]
[1,null,null,null,null,"Objective less Expenditure",null,null,{"$f":"ROUND(IF(I37-I140>0,IF(I37-I140<1,0,I37-I140),I37-I140),0)","v":0},0,null,0,0,0,{"$f":"ROUND(IF(O37-O140>0,IF(O37-O140<1,0,O37-O140),O37-O140),0)","v":0},0,0,0,0,0,0,0]
[1]

{"sheet":"14","index":18,"n_rows":143,"n_cols":23,"rows_kept":143,"cut":false,"hidden":false,"merged":[[31,12,31,14],[31,15,31,17],[31,18,31,20],[31,10,31,11]]}
[]
[]
[]
[]
[]
[null,null,null,null,null,"PE No",{"$f":"Settings!O2","v":"PE126"}]
[null,null,null,null,null,"Entity name",{"$f":"Settings!$E$2","v":"South African Revenue Service"}]
[]
[null,null,null,null,null,"Performance and operations information"]
["ItemCat","Item code","Hide/unhide",null,null,"Activity/Output/Outcome/Efficiency Indicator","MTDP Outcomes",null,{"$f":"MyYearM3","v":"2022/23"},{"$f":"MyYearM2","v":"2023/24"},{"$f":"MyYearM1","v":"2024/25"},{"$f":"MyYear0","v":"2025/26"},{"$f":"MyYearP1","v":"2026/27"},{"$f":"MyYearP2","v":"2027/28"},{"$f":"MyYearP3","v":"2028/29"},"Related Objectives","Add to 'Performance Indicators' Sheet","Comments"]
[1,null,null,null,null,{"$f":"'[1]14'!F11","v":0},{"$f":"'[1]14'!G11","v":0},0,{"$f":"'[1]14'!J11","v":0},{"$f":"'[1]14'!K11","v":0},{"$f":"'[1]14'!L11","v":0},{"$f":"'[1]14'!M11","v":0},{"$f":"'[1]14'!N11","v":0},{"$f":"'[1]14'!O11","v":0},null,{"$f":"'[1]14'!P11","v":0},{"$f":"'[1]14'!Q11","v":0},{"$f":"'[1]14'!R11","v":0}]
[1,null,null,null,null,{"$f":"'[1]14'!F12","v":0},{"$f":"'[1]14'!G12","v":0},0,{"$f":"'[1]14'!J12","v":0},{"$f":"'[1]14'!K12","v":0},{"$f":"'[1]14'!L12","v":0},{"$f":"'[1]14'!M12","v":0},{"$f":"'[1]14'!N12","v":0},{"$f":"'[1]14'!O12","v":0},null,{"$f":"'[1]14'!P12","v":0},{"$f":"'[1]14'!Q12","v":0},{"$f":"'[1]14'!R12","v":0}]
[1,null,null,null,null,{"$f":"'[1]14'!F13","v":0},{"$f":"'[1]14'!G13","v":0},0,{"$f":"'[1]14'!J13","v":0},{"$f":"'[1]14'!K13","v":0},{"$f":"'[1]14'!L13","v":0},{"$f":"'[1]14'!M13","v":0},{"$f":"'[1]14'!N13","v":0},{"$f":"'[1]14'!O13","v":0},null,{"$f":"'[1]14'!P13","v":0},{"$f":"'[1]14'!Q13","v":0},{"$f":"'[1]14'!R13","v":0}]
[1,null,null,null,null,{"$f":"'[1]14'!F14","v":0},{"$f":"'[1]14'!G14","v":0},0,{"$f":"'[1]14'!J14","v":0},{"$f":"'[1]14'!K14","v":0},{"$f":"'[1]14'!L14","v":0},{"$f":"'[1]14'!M14","v":0},{"$f":"'[1]14'!N14","v":0},{"$f":"'[1]14'!O14","v":0},null,{"$f":"'[1]14'!P14","v":0},{"$f":"'[1]14'!Q14","v":0},{"$f":"'[1]14'!R14","v":0}]
[1,null,null,null,null,{"$f":"'[1]14'!F15","v":0},{"$f":"'[1]14'!G15","v":0},0,{"$f":"'[1]14'!J15","v":0},{"$f":"'[1]14'!K15","v":0},{"$f":"'[1]14'!L15","v":0},{"$f":"'[1]14'!M15","v":0},{"$f":"'[1]14'!N15","v":0},{"$f":"'[1]14'!O15","v":0},null,{"$f":"'[1]14'!P15","v":0},{"$f":"'[1]14'!Q15","v":0},{"$f":"'[1]14'!R15","v":0}]
[1,null,null,null,null,{"$f":"'[1]14'!F16","v":0},{"$f":"'[1]14'!G16","v":0},0,{"$f":"'[1]14'!J16","v":0},{"$f":"'[1]14'!K16","v":0},{"$f":"'[1]14'!L16","v":0},{"$f":"'[1]14'!M16","v":0},{"$f":"'[1]14'!N16","v":0},{"$f":"'[1]14'!O16","v":0},null,{"$f":"'[1]14'!P16","v":0},{"$f":"'[1]14'!Q16","v":0},{"$f":"'[1]14'!R16","v":0}]
[1,null,null,null,null,{"$f":"'[1]14'!F17","v":0},{"$f":"'[1]14'!G17","v":0},0,{"$f":"'[1]14'!J17","v":0},{"$f":"'[1]14'!K17","v":0},{"$f":"'[1]14'!L17","v":0},{"$f":"'[1]14'!M17","v":0},{"$f":"'[1]14'!N17","v":0},{"$f":"'[1]14'!O17","v":0},null,{"$f":"'[1]14'!P17","v":0},{"$f":"'[1]14'!Q17","v":0},{"$f":"'[1]14'!R17","v":0}]
[1,null,null,null,null,{"$f":"'[1]14'!F18","v":0},{"$f":"'[1]14'!G18","v":0},0,{"$f":"'[1]14'!J18","v":0},{"$f":"'[1]14'!K18","v":0},{"$f":"'[1]14'!L18","v":0},{"$f":"'[1]14'!M18","v":0},{"$f":"'[1]14'!N18","v":0},{"$f":"'[1]14'!O18","v":0},null,{"$f":"'[1]14'!P18","v":0},{"$f":"'[1]14'!Q18","v":0},{"$f":"'[1]14'!R18","v":0}]
[1,null,null,null,null,{"$f":"'[1]14'!F19","v":0},{"$f":"'[1]14'!G19","v":0},0,{"$f":"'[1]14'!J19","v":0},{"$f":"'[1]14'!K19","v":0},{"$f":"'[1]14'!L19","v":0},{"$f":"'[1]14'!M19","v":0},{"$f":"'[1]14'!N19","v":0},{"$f":"'[1]14'!O19","v":0},null,{"$f":"'[1]14'!P19","v":0},{"$f":"'[1]14'!Q19","v":0},{"$f":"'[1]14'!R19","v":0}]
[1,null,null,null,null,{"$f":"'[1]14'!F20","v":0},{"$f":"'[1]14'!G20","v":0},0,{"$f":"'[1]14'!J20","v":0},{"$f":"'[1]14'!K20","v":0},{"$f":"'[1]14'!L20","v":0},{"$f":"'[1]14'!M20","v":0},{"$f":"'[1]14'!N20","v":0},{"$f":"'[1]14'!O20","v":0},null,{"$f":"'[1]14'!P20","v":0},{"$f":"'[1]14'!Q20","v":0},{"$f":"'[1]14'!R20","v":0}]
[1,null,null,null,null,{"$f":"'[1]14'!F21","v":0},{"$f":"'[1]14'!G21","v":0},0,{"$f":"'[1]14'!J21","v":0},{"$f":"'[1]14'!K21","v":0},{"$f":"'[1]14'!L21","v":0},{"$f":"'[1]14'!M21","v":0},{"$f":"'[1]14'!N21","v":0},{"$f":"'[1]14'!O21","v":0},null,{"$f":"'[1]14'!P21","v":0},{"$f":"'[1]14'!Q21","v":0},{"$f":"'[1]14'!R21","v":0}]
[1,null,null,null,null,{"$f":"'[1]14'!F22","v":0},{"$f":"'[1]14'!G22","v":0},0,{"$f":"'[1]14'!J22","v":0},{"$f":"'[1]14'!K22","v":0},{"$f":"'[1]14'!L22","v":0},{"$f":"'[1]14'!M22","v":0},{"$f":"'[1]14'!N22","v":0},{"$f":"'[1]14'!O22","v":0},null,{"$f":"'[1]14'!P22","v":0},{"$f":"'[1]14'!Q22","v":0},{"$f":"'[1]14'!R22","v":0}]
[1,null,null,null,null,{"$f":"'[1]14'!F23","v":0},{"$f":"'[1]14'!G23","v":0},0,{"$f":"'[1]14'!J23","v":0},{"$f":"'[1]14'!K23","v":0},{"$f":"'[1]14'!L23","v":0},{"$f":"'[1]14'!M23","v":0},{"$f":"'[1]14'!N23","v":0},{"$f":"'[1]14'!O23","v":0},null,{"$f":"'[1]14'!P23","v":0},{"$f":"'[1]14'!Q23","v":0},{"$f":"'[1]14'!R23","v":0}]
[1,null,null,null,null,{"$f":"'[1]14'!F24","v":0},{"$f":"'[1]14'!G24","v":0},0,{"$f":"'[1]14'!J24","v":0},{"$f":"'[1]14'!K24","v":0},{"$f":"'[1]14'!L24","v":0},{"$f":"'[1]14'!M24","v":0},{"$f":"'[1]14'!N24","v":0},{"$f":"'[1]14'!O24","v":0},null,{"$f":"'[1]14'!P24","v":0},{"$f":"'[1]14'!Q24","v":0},{"$f":"'[1]14'!R24","v":0}]
[1,null,null,null,null,{"$f":"'[1]14'!F25","v":0},{"$f":"'[1]14'!G25","v":0},0,{"$f":"'[1]14'!J25","v":0},{"$f":"'[1]14'!K25","v":0},{"$f":"'[1]14'!L25","v":0},{"$f":"'[1]14'!M25","v":0},{"$f":"'[1]14'!N25","v":0},{"$f":"'[1]14'!O25","v":0},null,{"$f":"'[1]14'!P25","v":0},{"$f":"'[1]14'!Q25","v":0},{"$f":"'[1]14'!R25","v":0}]
[1,null,null,null,null,"Notes:"]
[1,null,null,null,null,"Performance indicators are an explanation of objectives performance.   "]
[1,null,null,null,null,"1. They are specific measurements that track progress towards achieving the goals and objectives of an institution."]
[1,null,null,null,null,"2. Institutions should use performance indicators in the 2024/25 Annual Performance Plans and those in the 2025 ENE. "]
[1,null,null,null,null,"3. Institutions should also indicate instances where targets are not affected by budget baseline reprioritisation."]
[1]
[1,null,null,null,null,null,null,null,{"$f":"MyYearM3","v":"2022/23"},{"$f":"MyYearM2","v":"2023/24"},{"$f":"MyYearM1","v":"2024/25"},null,{"$f":"MyYear0","v":"2025/26"},null,null,{"$f":"MyYearP1","v":"2026/27"},null,null,{"$f":"MyYearP2","v":"2027/28"},null,null,{"$f":"MyYearP3","v":"2028/29"}]
[1,null,null,null,null,"Expenses",null,null,{"$f":"Hist_year3RestatedAudited","v":"Audited\noutcome"},{"$f":"Hist_year2RestatedAudited","v":"Audited\noutcome"},{"$f":"Hist_year1Budget","v":"Budget"},{"$f":"Hist_year1Audited","v":"Audited\noutcome"},{"$f":"Cur_YearBudgEst","v":"Budget\nestimate"},{"$f":"Cur_YearApprovedBudg","v":"Approved budget"},{"$f":"Cur_YearChangeFrRevBudg","v":"Changes from \nbudget estimate"},{"$f":"MTEF1BudgEst","v":"Budget\nestimate"},{"$f":"MTEF1RevBudgEst","v":"Revised\nbudget\nestimate"},{"$f":"MTEF1_ChangeFrBudgEst","v":"Changes from budget estimate"},{"$f":"MTEF2BudgEst","v":"Budget\nestimate"},{"$f":"MTEF2RevBudgEst","v":"Revised\nbudget\nestimate"},{"$f":"MTEF2_ChangeFrBudgEst","v":"Changes from budget estimate"},{"$f":"MTEF3PlanBudgetEst","v":"Planning\nbudget \nestimate"}]
[1]
[1,null,null,null,null,"Rand thousand"]
[1,null,null,null,null,"Objective/Activity"]
[1,null,null,null,null,{"$f":"'[1]14'!F37","v":0},null,null,{"$f":"'[1]14'!J37","v":0},{"$f":"'[1]14'!L37","v":0},{"$f":"'[1]14'!N37","v":0},{"$f":"'[1]14'!N37","v":0},{"$f":"'[1]14'!Q37","v":0},{"$f":"'[1]14'!Q37","v":0},{"$f":"SUM(N37-M37)","v":0},{"$f":"'[1]14'!T37","v":0},{"$f":"'[1]14'!T37","v":0},{"$f":"SUM(Q37-P37)","v":0},{"$f":"'[1]14'!V37","v":0},{"$f":"'[1]14'!V37","v":0},{"$f":"SUM(T37-S37)","v":0}]
[1,null,null,null,null,"Economic classification"]
[1,"EX11",null,null,null,"Current payments",null,null,{"$f":"SUM(I40,I43,I98:I99,I105)","v":0},0,0,0,0,0,{"$f":"SUM(N39-M39)","v":0},{"$f":"SUM(P40,P43,P98:P99,P105)","v":0},{"$f":"SUM(Q40,Q43,Q98:Q99,Q105)","v":0},{"$f":"SUM(Q39-P39)","v":0},{"$f":"SUM(S40,S43,S98:S99,S105)","v":0},{"$f":"SUM(T40,T43,T98:T99,T105)","v":0},{"$f":"SUM(T39-S39)","v":0},{"$f":"SUM(V40,V43,V98:V99,V105)","v":0}]
[1,"EX111",null,null,null,"Compensation of employees",null,null,{"$f":"SUM(I41:I42)","v":0},0,0,0,0,0,{"$f":"SUM(N40-M40)","v":0},{"$f":"SUM(P41:P42)","v":0},{"$f":"SUM(Q41:Q42)","v":0},{"$f":"SUM(Q40-P40)","v":0},{"$f":"SUM(S41:S42)","v":0},{"$f":"SUM(T41:T42)","v":0},{"$f":"SUM(T40-S40)","v":0},{"$f":"SUM(V41:V42)","v":0}]
[1,"EX1111",null,null,null,"Salaries and wages",null,null,{"$f":"'[1]14'!J41","v":0},{"$f":"'[1]14'!L41","v":0},{"$f":"'[1]14'!N41","v":0},{"$f":"'[1]14'!N41","v":0},{"$f":"'[1]14'!Q41","v":0},{"$f":"'[1]14'!Q41","v":0},{"$f":"SUM(N41-M41)","v":0},{"$f":"'[1]14'!T41","v":0},{"$f":"'[1]14'!T41","v":0},{"$f":"SUM(Q41-P41)","v":0},{"$f":"'[1]14'!V41","v":0},{"$f":"'[1]14'!V41","v":0},{"$f":"SUM(T41-S41)","v":0}]
[1,"EX1112",null,null,null,"Social contributions",null,null,{"$f":"'[1]14'!J42","v":0},{"$f":"'[1]14'!L42","v":0},{"$f":"'[1]14'!N42","v":0},{"$f":"'[1]14'!N42","v":0},{"$f":"'[1]14'!Q42","v":0},{"$f":"'[1]14'!Q42","v":0},{"$f":"SUM(N42-M42)","v":0},{"$f":"'[1]14'!T42","v":0},{"$f":"'[1]14'!T42","v":0},{"$f":"SUM(Q42-P42)","v":0},{"$f":"'[1]14'!V42","v":0},{"$f":"'[1]14'!V42","v":0},{"$f":"SUM(T42-S42)","v":0}]
[1,"EX112",null,null,null,"Goods and services",null,null,{"$f":"SUM(I45:I54,I58:I61,I73,I75:I97)","v":0},{"$f":"SUM(J45:J54,J58:J61,J73,J75:J97)","v":0},{"$f":"SUM(K45:K54,K58:K61,K73,K75:K97)","v":0},0,0,0,0,0,0,0,0,0,0,0,{"$f":"SUM(W45:W54,W58:W61,W73,W75:W97)","v":0}]
[1,"EX000",null,null,null,"Of which 1"]
[1,"EX1133",null,null,null,"Administrative fees",null,null,{"$f":"'[1]14'!J45","v":0},{"$f":"'[1]14'!L45","v":0},{"$f":"'[1]14'!N45","v":0},{"$f":"'[1]14'!N45","v":0},{"$f":"'[1]14'!Q45","v":0},{"$f":"'[1]14'!Q45","v":0},{"$f":"SUM(N45-M45)","v":0},{"$f":"'[1]14'!T45","v":0},{"$f":"'[1]14'!T45","v":0},{"$f":"SUM(Q45-P45)","v":0},{"$f":"'[1]14'!V45","v":0},{"$f":"'[1]14'!V45","v":0},{"$f":"SUM(T45-S45)","v":0}]
[1,"EX1134",null,null,null,"Advertising",null,null,{"$f":"'[1]14'!J46","v":0},{"$f":"'[1]14'!L46","v":0},{"$f":"'[1]14'!N46","v":0},{"$f":"'[1]14'!N46","v":0},{"$f":"'[1]14'!Q46","v":0},{"$f":"'[1]14'!Q46","v":0},0,{"$f":"'[1]14'!T46","v":0},{"$f":"'[1]14'!T46","v":0},0,{"$f":"'[1]14'!V46","v":0},{"$f":"'[1]14'!V46","v":0},0]
[1,"EX1135",null,null,null,"Minor assets",null,null,{"$f":"'[1]14'!J47","v":0},{"$f":"'[1]14'!L47","v":0},{"$f":"'[1]14'!N47","v":0},{"$f":"'[1]14'!N47","v":0},{"$f":"'[1]14'!Q47","v":0},{"$f":"'[1]14'!Q47","v":0},0,{"$f":"'[1]14'!T47","v":0},{"$f":"'[1]14'!T47","v":0},0,{"$f":"'[1]14'!V47","v":0},{"$f":"'[1]14'!V47","v":0},0]
[1,"EX1136",null,null,null,"Audit costs: External",null,null,{"$f":"'[1]14'!J48","v":0},{"$f":"'[1]14'!L48","v":0},{"$f":"'[1]14'!N48","v":0},{"$f":"'[1]14'!N48","v":0},{"$f":"'[1]14'!Q48","v":0},{"$f":"'[1]14'!Q48","v":0},0,{"$f":"'[1]14'!T48","v":0},{"$f":"'[1]14'!T48","v":0},0,{"$f":"'[1]14'!V48","v":0},{"$f":"'[1]14'!V48","v":0},0]
[1,"EX1139",null,null,null,"Bursaries: Employees",null,null,{"$f":"'[1]14'!J49","v":0},{"$f":"'[1]14'!L49","v":0},{"$f":"'[1]14'!N49","v":0},{"$f":"'[1]14'!N49","v":0},{"$f":"'[1]14'!Q49","v":0},{"$f":"'[1]14'!Q49","v":0},0,{"$f":"'[1]14'!T49","v":0},{"$f":"'[1]14'!T49","v":0},0,{"$f":"'[1]14'!V49","v":0},{"$f":"'[1]14'!V49","v":0},0]
[1,"EX1140",null,null,null,"Catering: Internal activities",null,null,{"$f":"'[1]14'!J50","v":0},{"$f":"'[1]14'!L50","v":0},{"$f":"'[1]14'!N50","v":0},{"$f":"'[1]14'!N50","v":0},{"$f":"'[1]14'!Q50","v":0},{"$f":"'[1]14'!Q50","v":0},0,{"$f":"'[1]14'!T50","v":0},{"$f":"'[1]14'!T50","v":0},0,{"$f":"'[1]14'!V50","v":0},{"$f":"'[1]14'!V50","v":0},0]
[1,"EX1122",null,null,null,"Communication (G&S)",null,null,{"$f":"'[1]14'!J51","v":0},{"$f":"'[1]14'!L51","v":0},{"$f":"'[1]14'!N51","v":0},{"$f":"'[1]14'!N51","v":0},{"$f":"'[1]14'!Q51","v":0},{"$f":"'[1]14'!Q51","v":0},0,{"$f":"'[1]14'!T51","v":0},{"$f":"'[1]14'!T51","v":0},0,{"$f":"'[1]14'!V51","v":0},{"$f":"'[1]14'!V51","v":0},0]
[1,"EX1123",null,null,null,"Computer services",null,null,{"$f":"'[1]14'!J52","v":0},{"$f":"'[1]14'!L52","v":0},{"$f":"'[1]14'!N52","v":0},{"$f":"'[1]14'!N52","v":0},{"$f":"'[1]14'!Q52","v":0},{"$f":"'[1]14'!Q52","v":0},0,{"$f":"'[1]14'!T52","v":0},{"$f":"'[1]14'!T52","v":0},0,{"$f":"'[1]14'!V52","v":0},{"$f":"'[1]14'!V52","v":0},0]
[1,"EX1124",null,null,null,"Consultants: Business and advisory services",null,null,{"$f":"'[1]14'!J53","v":0},{"$f":"'[1]14'!L53","v":0},{"$f":"'[1]14'!N53","v":0},{"$f":"'[1]14'!N53","v":0},{"$f":"'[1]14'!Q53","v":0},{"$f":"'[1]14'!Q53","v":0},0,{"$f":"'[1]14'!T53","v":0},{"$f":"'[1]14'!T53","v":0},0,{"$f":"'[1]14'!V53","v":0},{"$f":"'[1]14'!V53","v":0},0]
[1,"EX1180",null,null,null,"Infrastructure and planning services",null,null,{"$f":"SUM(I55:I57)","v":0},0,0,0,0,0,{"$f":"SUM(N54-M54)","v":0},{"$f":"SUM(P55:P57)","v":0},{"$f":"SUM(Q55:Q57)","v":0},{"$f":"SUM(Q54-P54)","v":0},{"$f":"SUM(S55:S57)","v":0},{"$f":"SUM(T55:T57)","v":0},{"$f":"SUM(T54-S54)","v":0},{"$f":"SUM(V55:V57)","v":0}]
[1,"EX11801",null,null,null,"Maintenance and repairs: Buildings: Consultants",null,null,{"$f":"'[1]14'!J55","v":0},{"$f":"'[1]14'!L55","v":0},{"$f":"'[1]14'!N55","v":0},{"$f":"'[1]14'!N55","v":0},{"$f":"'[1]14'!Q55","v":0},{"$f":"'[1]14'!Q55","v":0},{"$f":"SUM(N55-M55)","v":0},{"$f":"'[1]14'!T55","v":0},{"$f":"'[1]14'!T55","v":0},{"$f":"SUM(Q55-P55)","v":0},{"$f":"'[1]14'!V55","v":0},{"$f":"'[1]14'!V55","v":0},0]
[1,"EX11802",null,null,null,"Maintenance and repairs: Other fixed structures: Consultants",null,null,{"$f":"'[1]14'!J56","v":0},{"$f":"'[1]14'!L56","v":0},{"$f":"'[1]14'!N56","v":0},{"$f":"'[1]14'!N56","v":0},{"$f":"'[1]14'!Q56","v":0},{"$f":"'[1]14'!Q56","v":0},0,{"$f":"'[1]14'!T56","v":0},{"$f":"'[1]14'!T56","v":0},0,{"$f":"'[1]14'!V56","v":0},{"$f":"'[1]14'!V56","v":0},0]
[1,"EX11803",null,null,null,"Other",null,null,{"$f":"'[1]14'!J57","v":0},{"$f":"'[1]14'!L57","v":0},{"$f":"'[1]14'!N57","v":0},{"$f":"'[1]14'!N57","v":0},{"$f":"'[1]14'!Q57","v":0},{"$f":"'[1]14'!Q57","v":0},0,{"$f":"'[1]14'!T57","v":0},{"$f":"'[1]14'!T57","v":0},0,{"$f":"'[1]14'!V57","v":0},{"$f":"'[1]14'!V57","v":0},0]
[1,"EX1164",null,null,null,"Laboratory services",null,null,{"$f":"'[1]14'!J58","v":0},{"$f":"'[1]14'!L58","v":0},{"$f":"'[1]14'!N58","v":0},{"$f":"'[1]14'!N58","v":0},{"$f":"'[1]14'!Q58","v":0},{"$f":"'[1]14'!Q58","v":0},0,{"$f":"'[1]14'!T58","v":0},{"$f":"'[1]14'!T58","v":0},0,{"$f":"'[1]14'!V58","v":0},{"$f":"'[1]14'!V58","v":0},0]
[1,"EX1162",null,null,null,"Legal services (G&S)",null,null,{"$f":"'[1]14'!J59","v":0},{"$f":"'[1]14'!L59","v":0},{"$f":"'[1]14'!N59","v":0},{"$f":"'[1]14'!N59","v":0},{"$f":"'[1]14'!Q59","v":0},{"$f":"'[1]14'!Q59","v":0},0,{"$f":"'[1]14'!T59","v":0},{"$f":"'[1]14'!T59","v":0},0,{"$f":"'[1]14'!V59","v":0},{"$f":"'[1]14'!V59","v":0},0]
[1,"EX1165",null,null,null,"Science and technological services",null,null,{"$f":"'[1]14'!J60","v":0},{"$f":"'[1]14'!L60","v":0},{"$f":"'[1]14'!N60","v":0},{"$f":"'[1]14'!N60","v":0},{"$f":"'[1]14'!Q60","v":0},{"$f":"'[1]14'!Q60","v":0},0,{"$f":"'[1]14'!T60","v":0},{"$f":"'[1]14'!T60","v":0},0,{"$f":"'[1]14'!V60","v":0},{"$f":"'[1]14'!V60","v":0},0]
[1,"EX1125",null,null,null,"Contractors",null,null,{"$f":"SUM(I62:I66,I72)","v":0},0,0,0,0,0,{"$f":"SUM(N61-M61)","v":0},{"$f":"SUM(P62:P66,P72)","v":0},{"$f":"SUM(Q62:Q66,Q72)","v":0},{"$f":"SUM(Q61-P61)","v":0},{"$f":"SUM(S62:S66,S72)","v":0},{"$f":"SUM(T62:T66,T72)","v":0},0,{"$f":"SUM(V62:V66,V72)","v":0}]
[1,"EX11251",null,null,null,"Maintenance and repairs of other fixed structures",null,null,{"$f":"'[1]14'!J62","v":0},{"$f":"'[1]14'!L62","v":0},{"$f":"'[1]14'!N62","v":0},{"$f":"'[1]14'!N62","v":0},{"$f":"'[1]14'!Q62","v":0},{"$f":"'[1]14'!Q62","v":0},0,{"$f":"'[1]14'!T62","v":0},{"$f":"'[1]14'!T62","v":0},0,{"$f":"'[1]14'!V62","v":0},{"$f":"'[1]14'!V62","v":0},0]
[1,"EX11252",null,null,null,"Maintenance and repairs of other machinery and equipment",null,null,{"$f":"'[1]14'!J63","v":0},{"$f":"'[1]14'!L63","v":0},{"$f":"'[1]14'!N63","v":0},{"$f":"'[1]14'!N63","v":0},{"$f":"'[1]14'!Q63","v":0},{"$f":"'[1]14'!Q63","v":0},0,{"$f":"'[1]14'!T63","v":0},{"$f":"'[1]14'!T63","v":0},0,{"$f":"'[1]14'!V63","v":0},{"$f":"'[1]14'!V63","v":0},0]
[1,"EX11253",null,null,null,"Maintenance and repairs of heritage buildings",null,null,{"$f":"'[1]14'!J64","v":0},{"$f":"'[1]14'!L64","v":0},{"$f":"'[1]14'!N64","v":0},{"$f":"'[1]14'!N64","v":0},{"$f":"'[1]14'!Q64","v":0},{"$f":"'[1]14'!Q64","v":0},0,{"$f":"'[1]14'!T64","v":0},{"$f":"'[1]14'!T64","v":0},0,{"$f":"'[1]14'!V64","v":0},{"$f":"'[1]14'!V64","v":0},0]
[1,"EX11254",null,null,null,"Maintenance and repairs of other heritage fixed structures",null,null,{"$f":"'[1]14'!J65","v":0},{"$f":"'[1]14'!L65","v":0},{"$f":"'[1]14'!N65","v":0},{"$f":"'[1]14'!N65","v":0},{"$f":"'[1]14'!Q65","v":0},{"$f":"'[1]14'!Q65","v":0},0,{"$f":"'[1]14'!T65","v":0},{"$f":"'[1]14'!T65","v":0},0,{"$f":"'[1]14'!V65","v":0},{"$f":"'[1]14'!V65","v":0},0]
[5,"EX11255",null,null,null,"South african social security agency payment contractors",null,null,{"$f":"SUM(I67:I71)","v":0},0,0,0,0,0,0,{"$f":"SUM(P67:P71)","v":0},{"$f":"SUM(Q67:Q71)","v":0},0,{"$f":"SUM(S67:S71)","v":0},{"$f":"SUM(T67:T71)","v":0},0,{"$f":"SUM(V67:V71)","v":0}]
[5,"EX112551",null,null,null,"SASSA Admin fees",null,null,{"$f":"'[1]14'!J67","v":0},{"$f":"'[1]14'!L67","v":0},{"$f":"'[1]14'!N67","v":0},{"$f":"'[1]14'!N67","v":0},{"$f":"'[1]14'!Q67","v":0},{"$f":"'[1]14'!Q67","v":0},{"$f":"SUM(N67-M67)","v":0},{"$f":"'[1]14'!T67","v":0},{"$f":"'[1]14'!T67","v":0},{"$f":"SUM(Q67-P67)","v":0},{"$f":"'[1]14'!V67","v":0},{"$f":"'[1]14'!V67","v":0},{"$f":"SUM(T67-S67)","v":0}]
[5,"EX112552",null,null,null,"SASSA Bankcard fees",null,null,{"$f":"'[1]14'!J68","v":0},{"$f":"'[1]14'!L68","v":0},{"$f":"'[1]14'!N68","v":0},{"$f":"'[1]14'!N68","v":0},{"$f":"'[1]14'!Q68","v":0},{"$f":"'[1]14'!Q68","v":0},0,{"$f":"'[1]14'!T68","v":0},{"$f":"'[1]14'!T68","v":0},0,{"$f":"'[1]14'!V68","v":0},{"$f":"'[1]14'!V68","v":0},0]
[5,"EX112553",null,null,null,"SASSA registration fees",null,null,{"$f":"'[1]14'!J69","v":0},{"$f":"'[1]14'!L69","v":0},{"$f":"'[1]14'!N69","v":0},{"$f":"'[1]14'!N69","v":0},{"$f":"'[1]14'!Q69","v":0},{"$f":"'[1]14'!Q69","v":0},0,{"$f":"'[1]14'!T69","v":0},{"$f":"'[1]14'!T69","v":0},0,{"$f":"'[1]14'!V69","v":0},{"$f":"'[1]14'!V69","v":0},0]
[5,"EX112554",null,null,null,"SASSA beneficiary fees",null,null,{"$f":"'[1]14'!J70","v":0},{"$f":"'[1]14'!L70","v":0},{"$f":"'[1]14'!N70","v":0},{"$f":"'[1]14'!N70","v":0},{"$f":"'[1]14'!Q70","v":0},{"$f":"'[1]14'!Q70","v":0},0,{"$f":"'[1]14'!T70","v":0},{"$f":"'[1]14'!T70","v":0},0,{"$f":"'[1]14'!V70","v":0},{"$f":"'[1]14'!V70","v":0},0]
[5,"EX112555",null,null,null,"SASSA help desk fees",null,null,{"$f":"'[1]14'!J71","v":0},{"$f":"'[1]14'!L71","v":0},{"$f":"'[1]14'!N71","v":0},{"$f":"'[1]14'!N71","v":0},{"$f":"'[1]14'!Q71","v":0},{"$f":"'[1]14'!Q71","v":0},0,{"$f":"'[1]14'!T71","v":0},{"$f":"'[1]14'!T71","v":0},0,{"$f":"'[1]14'!V71","v":0},{"$f":"'[1]14'!V71","v":0},0]
[1,"EX11256",null,null,null,"Other",null,null,{"$f":"'[1]14'!J72","v":0},{"$f":"'[1]14'!L72","v":0},{"$f":"'[1]14'!N72","v":0},{"$f":"'[1]14'!N72","v":0},{"$f":"'[1]14'!Q72","v":0},{"$f":"'[1]14'!Q72","v":0},0,{"$f":"'[1]14'!T72","v":0},{"$f":"'[1]14'!T72","v":0},0,{"$f":"'[1]14'!V72","v":0},{"$f":"'[1]14'!V72","v":0},0]
[1,"EX1121",null,null,null,"Agency and support/outsourced services",null,null,{"$f":"'[1]14'!J73","v":0},{"$f":"'[1]14'!L73","v":0},{"$f":"'[1]14'!N73","v":0},{"$f":"'[1]14'!N73","v":0},{"$f":"'[1]14'!Q73","v":0},{"$f":"'[1]14'!Q73","v":0},0,{"$f":"'[1]14'!T73","v":0},{"$f":"'[1]14'!T73","v":0},0,{"$f":"'[1]14'!V73","v":0},{"$f":"'[1]14'!V73","v":0},0]
[5,"EX11211",null,null,null,"     Of Which: Medical assessments",null,null,{"$f":"'[1]14'!J74","v":0},{"$f":"'[1]14'!L74","v":0},{"$f":"'[1]14'!N74","v":0},{"$f":"'[1]14'!N74","v":0},{"$f":"'[1]14'!Q74","v":0},{"$f":"'[1]14'!Q74","v":0},0,{"$f":"'[1]14'!T74","v":0},{"$f":"'[1]14'!T74","v":0},0,{"$f":"'[1]14'!V74","v":0},{"$f":"'[1]14'!V74","v":0},0]
[1,"EX1161",null,null,null,"Entertainment",null,null,{"$f":"'[1]14'!J75","v":0},{"$f":"'[1]14'!L75","v":0},{"$f":"'[1]14'!N75","v":0},{"$f":"'[1]14'!N75","v":0},{"$f":"'[1]14'!Q75","v":0},{"$f":"'[1]14'!Q75","v":0},0,{"$f":"'[1]14'!T75","v":0},{"$f":"'[1]14'!T75","v":0},0,{"$f":"'[1]14'!V75","v":0},{"$f":"'[1]14'!V75","v":0},0]
[1,"EX1166",null,null,null,"Fleet services (including government motor transport)",null,null,{"$f":"'[1]14'!J76","v":0},{"$f":"'[1]14'!L76","v":0},{"$f":"'[1]14'!N76","v":0},{"$f":"'[1]14'!N76","v":0},{"$f":"'[1]14'!Q76","v":0},{"$f":"'[1]14'!Q76","v":0},0,{"$f":"'[1]14'!T76","v":0},{"$f":"'[1]14'!T76","v":0},0,{"$f":"'[1]14'!V76","v":0},{"$f":"'[1]14'!V76","v":0},0]
[1,"EX1167",null,null,null,"Housing",null,null,{"$f":"'[1]14'!J77","v":0},{"$f":"'[1]14'!L77","v":0},{"$f":"'[1]14'!N77","v":0},{"$f":"'[1]14'!N77","v":0},{"$f":"'[1]14'!Q77","v":0},{"$f":"'[1]14'!Q77","v":0},0,{"$f":"'[1]14'!T77","v":0},{"$f":"'[1]14'!T77","v":0},0,{"$f":"'[1]14'!V77","v":0},{"$f":"'[1]14'!V77","v":0},0]
[1,"EX1168",null,null,null,"Inventory: Clothing material and accessories",null,null,{"$f":"'[1]14'!J78","v":0},{"$f":"'[1]14'!L78","v":0},{"$f":"'[1]14'!N78","v":0},{"$f":"'[1]14'!N78","v":0},{"$f":"'[1]14'!Q78","v":0},{"$f":"'[1]14'!Q78","v":0},0,{"$f":"'[1]14'!T78","v":0},{"$f":"'[1]14'!T78","v":0},0,{"$f":"'[1]14'!V78","v":0},{"$f":"'[1]14'!V78","v":0},0]
[1,"EX1169",null,null,null,"Inventory: Farming supplies",null,null,{"$f":"'[1]14'!J79","v":0},{"$f":"'[1]14'!L79","v":0},{"$f":"'[1]14'!N79","v":0},{"$f":"'[1]14'!N79","v":0},{"$f":"'[1]14'!Q79","v":0},{"$f":"'[1]14'!Q79","v":0},0,{"$f":"'[1]14'!T79","v":0},{"$f":"'[1]14'!T79","v":0},0,{"$f":"'[1]14'!V79","v":0},{"$f":"'[1]14'!V79","v":0},0]
[1,"EX1170",null,null,null,"Inventory: Food and food supplies",null,null,{"$f":"'[1]14'!J80","v":0},{"$f":"'[1]14'!L80","v":0},{"$f":"'[1]14'!N80","v":0},{"$f":"'[1]14'!N80","v":0},{"$f":"'[1]14'!Q80","v":0},{"$f":"'[1]14'!Q80","v":0},0,{"$f":"'[1]14'!T80","v":0},{"$f":"'[1]14'!T80","v":0},0,{"$f":"'[1]14'!V80","v":0},{"$f":"'[1]14'!V80","v":0},0]
[1,"EX1171",null,null,null,"Inventory: Fuel, oil and gas",null,null,{"$f":"'[1]14'!J81","v":0},{"$f":"'[1]14'!L81","v":0},{"$f":"'[1]14'!N81","v":0},{"$f":"'[1]14'!N81","v":0},{"$f":"'[1]14'!Q81","v":0},{"$f":"'[1]14'!Q81","v":0},0,{"$f":"'[1]14'!T81","v":0},{"$f":"'[1]14'!T81","v":0},0,{"$f":"'[1]14'!V81","v":0},{"$f":"'[1]14'!V81","v":0},0]
[1,"EX1172",null,null,null,"Inventory: Learner and teacher support material",null,null,{"$f":"'[1]14'!J82","v":0},{"$f":"'[1]14'!L82","v":0},{"$f":"'[1]14'!N82","v":0},{"$f":"'[1]14'!N82","v":0},{"$f":"'[1]14'!Q82","v":0},{"$f":"'[1]14'!Q82","v":0},0,{"$f":"'[1]14'!T82","v":0},{"$f":"'[1]14'!T82","v":0},0,{"$f":"'[1]14'!V82","v":0},{"$f":"'[1]14'!V82","v":0},0]
[1,"EX1126",null,null,null,"Inventory: Materials and supplies",null,null,{"$f":"'[1]14'!J83","v":0},{"$f":"'[1]14'!L83","v":0},{"$f":"'[1]14'!N83","v":0},{"$f":"'[1]14'!N83","v":0},{"$f":"'[1]14'!Q83","v":0},{"$f":"'[1]14'!Q83","v":0},0,{"$f":"'[1]14'!T83","v":0},{"$f":"'[1]14'!T83","v":0},0,{"$f":"'[1]14'!V83","v":0},{"$f":"'[1]14'!V83","v":0},0]
[1,"EX1173",null,null,null,"Inventory: Medical supplies",null,null,{"$f":"'[1]14'!J84","v":0},{"$f":"'[1]14'!L84","v":0},{"$f":"'[1]14'!N84","v":0},{"$f":"'[1]14'!N84","v":0},{"$f":"'[1]14'!Q84","v":0},{"$f":"'[1]14'!Q84","v":0},0,{"$f":"'[1]14'!T84","v":0},{"$f":"'[1]14'!T84","v":0},0,{"$f":"'[1]14'!V84","v":0},{"$f":"'[1]14'!V84","v":0},0]
[1,"EX1174",null,null,null,"Inventory: Medicine",null,null,{"$f":"'[1]14'!J85","v":0},{"$f":"'[1]14'!L85","v":0},{"$f":"'[1]14'!N85","v":0},{"$f":"'[1]14'!N85","v":0},{"$f":"'[1]14'!Q85","v":0},{"$f":"'[1]14'!Q85","v":0},0,{"$f":"'[1]14'!T85","v":0},{"$f":"'[1]14'!T85","v":0},0,{"$f":"'[1]14'!V85","v":0},{"$f":"'[1]14'!V85","v":0},0]
[1,"EX1175",null,null,null,"Medsas inventory interface",null,null,{"$f":"'[1]14'!J86","v":0},{"$f":"'[1]14'!L86","v":0},{"$f":"'[1]14'!N86","v":0},{"$f":"'[1]14'!N86","v":0},{"$f":"'[1]14'!Q86","v":0},{"$f":"'[1]14'!Q86","v":0},0,{"$f":"'[1]14'!T86","v":0},{"$f":"'[1]14'!T86","v":0},0,{"$f":"'[1]14'!V86","v":0},{"$f":"'[1]14'!V86","v":0},0]
[1,"EX1176",null,null,null,"Inventory: Other supplies",null,null,{"$f":"'[1]14'!J87","v":0},{"$f":"'[1]14'!L87","v":0},{"$f":"'[1]14'!N87","v":0},{"$f":"'[1]14'!N87","v":0},{"$f":"'[1]14'!Q87","v":0},{"$f":"'[1]14'!Q87","v":0},0,{"$f":"'[1]14'!T87","v":0},{"$f":"'[1]14'!T87","v":0},0,{"$f":"'[1]14'!V87","v":0},{"$f":"'[1]14'!V87","v":0},0]
[1,"EX1177",null,null,null,"Consumable supplies",null,null,{"$f":"'[1]14'!J88","v":0},{"$f":"'[1]14'!L88","v":0},{"$f":"'[1]14'!N88","v":0},{"$f":"'[1]14'!N88","v":0},{"$f":"'[1]14'!Q88","v":0},{"$f":"'[1]14'!Q88","v":0},0,{"$f":"'[1]14'!T88","v":0},{"$f":"'[1]14'!T88","v":0},0,{"$f":"'[1]14'!V88","v":0},{"$f":"'[1]14'!V88","v":0},0]
[1,"EX1144",null,null,null,"Consumables: Stationery, printing and office supplies",null,null,{"$f":"'[1]14'!J89","v":0},{"$f":"'[1]14'!L89","v":0},{"$f":"'[1]14'!N89","v":0},{"$f":"'[1]14'!N89","v":0},{"$f":"'[1]14'!Q89","v":0},{"$f":"'[1]14'!Q89","v":0},0,{"$f":"'[1]14'!T89","v":0},{"$f":"'[1]14'!T89","v":0},0,{"$f":"'[1]14'!V89","v":0},{"$f":"'[1]14'!V89","v":0},0]
[1,"EX1127",null,null,null,"Operating leases",null,null,{"$f":"'[1]14'!J90","v":0},{"$f":"'[1]14'!L90","v":0},{"$f":"'[1]14'!N90","v":0},{"$f":"'[1]14'!N90","v":0},{"$f":"'[1]14'!Q90","v":0},{"$f":"'[1]14'!Q90","v":0},0,{"$f":"'[1]14'!T90","v":0},{"$f":"'[1]14'!T90","v":0},0,{"$f":"'[1]14'!V90","v":0},{"$f":"'[1]14'!V90","v":0},0]
[1,"EX1178",null,null,null,"Rental and hiring",null,null,{"$f":"'[1]14'!J91","v":0},{"$f":"'[1]14'!L91","v":0},{"$f":"'[1]14'!N91","v":0},{"$f":"'[1]14'!N91","v":0},{"$f":"'[1]14'!Q91","v":0},{"$f":"'[1]14'!Q91","v":0},0,{"$f":"'[1]14'!T91","v":0},{"$f":"'[1]14'!T91","v":0},0,{"$f":"'[1]14'!V91","v":0},{"$f":"'[1]14'!V91","v":0},0]
[1,"EX1145",null,null,null,"Property payments",null,null,{"$f":"'[1]14'!J92","v":0},{"$f":"'[1]14'!L92","v":0},{"$f":"'[1]14'!N92","v":0},{"$f":"'[1]14'!N92","v":0},{"$f":"'[1]14'!Q92","v":0},{"$f":"'[1]14'!Q92","v":0},0,{"$f":"'[1]14'!T92","v":0},{"$f":"'[1]14'!T92","v":0},0,{"$f":"'[1]14'!V92","v":0},{"$f":"'[1]14'!V92","v":0},0]
[1,"EX1179",null,null,null,"Transport provided: Internal activities",null,null,{"$f":"'[1]14'!J93","v":0},{"$f":"'[1]14'!L93","v":0},{"$f":"'[1]14'!N93","v":0},{"$f":"'[1]14'!N93","v":0},{"$f":"'[1]14'!Q93","v":0},{"$f":"'[1]14'!Q93","v":0},0,{"$f":"'[1]14'!T93","v":0},{"$f":"'[1]14'!T93","v":0},0,{"$f":"'[1]14'!V93","v":0},{"$f":"'[1]14'!V93","v":0},0]
[1,"EX1131",null,null,null,"Travel and subsistence",null,null,{"$f":"'[1]14'!J94","v":0},{"$f":"'[1]14'!L94","v":0},{"$f":"'[1]14'!N94","v":0},{"$f":"'[1]14'!N94","v":0},{"$f":"'[1]14'!Q94","v":0},{"$f":"'[1]14'!Q94","v":0},0,{"$f":"'[1]14'!T94","v":0},{"$f":"'[1]14'!T94","v":0},0,{"$f":"'[1]14'!V94","v":0},{"$f":"'[1]14'!V94","v":0},0]
[1,"EX1130",null,null,null,"Training and development",null,null,{"$f":"'[1]14'!J95","v":0},{"$f":"'[1]14'!L95","v":0},{"$f":"'[1]14'!N95","v":0},{"$f":"'[1]14'!N95","v":0},{"$f":"'[1]14'!Q95","v":0},{"$f":"'[1]14'!Q95","v":0},0,{"$f":"'[1]14'!T95","v":0},{"$f":"'[1]14'!T95","v":0},0,{"$f":"'[1]14'!V95","v":0},{"$f":"'[1]14'!V95","v":0},0]
[1,"EX1132",null,null,null,"Operating payments",null,null,{"$f":"'[1]14'!J96","v":0},{"$f":"'[1]14'!L96","v":0},{"$f":"'[1]14'!N96","v":0},{"$f":"'[1]14'!N96","v":0},{"$f":"'[1]14'!Q96","v":0},{"$f":"'[1]14'!Q96","v":0},0,{"$f":"'[1]14'!T96","v":0},{"$f":"'[1]14'!T96","v":0},0,{"$f":"'[1]14'!V96","v":0},{"$f":"'[1]14'!V96","v":0},0]
[1,"EX1146",null,null,null,"Venues and facilities",null,null,{"$f":"'[1]14'!J97","v":0},{"$f":"'[1]14'!L97","v":0},{"$f":"'[1]14'!N97","v":0},{"$f":"'[1]14'!N97","v":0},{"$f":"'[1]14'!Q97","v":0},{"$f":"'[1]14'!Q97","v":0},0,{"$f":"'[1]14'!T97","v":0},{"$f":"'[1]14'!T97","v":0},0,{"$f":"'[1]14'!V97","v":0},{"$f":"'[1]14'!V97","v":0},0]
[1,"EX113",null,null,null,"Depreciation",null,null,{"$f":"'[1]14'!J98","v":0},{"$f":"'[1]14'!L98","v":0},{"$f":"'[1]14'!N98","v":0},{"$f":"'[1]14'!N98","v":0},{"$f":"'[1]14'!Q98","v":0},{"$f":"'[1]14'!Q98","v":0},0,{"$f":"'[1]14'!T98","v":0},{"$f":"'[1]14'!T98","v":0},0,{"$f":"'[1]14'!V98","v":0},{"$f":"'[1]14'!V98","v":0},0]
[1,"EX114",null,null,null,"Losses from",null,null,{"$f":"SUM(I100:I101,I104)","v":0},0,0,0,0,0,{"$f":"SUM(N99-M99)","v":0},{"$f":"SUM(P100:P101,P104)","v":0},{"$f":"SUM(Q100:Q101,Q104)","v":0},{"$f":"SUM(Q99-P99)","v":0},{"$f":"SUM(S100:S101,S104)","v":0},{"$f":"SUM(T100:T101,T104)","v":0},{"$f":"SUM(T99-S99)","v":0},{"$f":"SUM(V100:V101,V104)","v":0}]
[1,"EX1141",null,null,null,"Sale of fixed assets",null,null,{"$f":"'[1]14'!J100","v":0},{"$f":"'[1]14'!L100","v":0},{"$f":"'[1]14'!N100","v":0},{"$f":"'[1]14'!N100","v":0},{"$f":"'[1]14'!Q100","v":0},{"$f":"'[1]14'!Q100","v":0},0,{"$f":"'[1]14'!T100","v":0},{"$f":"'[1]14'!T100","v":0},0,{"$f":"'[1]14'!V100","v":0},{"$f":"'[1]14'!V100","v":0},0]
[1,"EX1142",null,null,null,"Impairments and adjustments to fair value",null,null,{"$f":"SUM(I102:I103)","v":0},0,0,0,0,0,0,{"$f":"SUM(P102:P103)","v":0},{"$f":"SUM(Q102:Q103)","v":0},0,{"$f":"SUM(S102:S103)","v":0},{"$f":"SUM(T102:T103)","v":0},0,{"$f":"SUM(V102:V103)","v":0}]
[1,"EX11421",null,null,null,"Adjustments to fair value of assets",null,null,{"$f":"'[1]14'!J102","v":0},{"$f":"'[1]14'!L102","v":0},{"$f":"'[1]14'!N102","v":0},{"$f":"'[1]14'!N102","v":0},{"$f":"'[1]14'!Q102","v":0},{"$f":"'[1]14'!Q102","v":0},0,{"$f":"'[1]14'!T102","v":0},{"$f":"'[1]14'!T102","v":0},0,{"$f":"'[1]14'!V102","v":0},{"$f":"'[1]14'!V102","v":0},0]
[1,"EX11422",null,null,null,"Impairments to assets",null,null,{"$f":"'[1]14'!J103","v":0},{"$f":"'[1]14'!L103","v":0},{"$f":"'[1]14'!N103","v":0},{"$f":"'[1]14'!N103","v":0},{"$f":"'[1]14'!Q103","v":0},{"$f":"'[1]14'!Q103","v":0},0,{"$f":"'[1]14'!T103","v":0},{"$f":"'[1]14'!T103","v":0},0,{"$f":"'[1]14'!V103","v":0},{"$f":"'[1]14'!V103","v":0},0]
[1,"EX1143",null,null,null,"Other",null,null,{"$f":"'[1]14'!J104","v":0},{"$f":"'[1]14'!L104","v":0},{"$f":"'[1]14'!N104","v":0},{"$f":"'[1]14'!N104","v":0},{"$f":"'[1]14'!Q104","v":0},{"$f":"'[1]14'!Q104","v":0},0,{"$f":"'[1]14'!T104","v":0},{"$f":"'[1]14'!T104","v":0},0,{"$f":"'[1]14'!V104","v":0},{"$f":"'[1]14'!V104","v":0},0]
[1,"EX115",null,null,null,"Interest, dividends and rent on land",null,null,{"$f":"SUM(I106:I108)","v":0},0,0,0,0,0,0,{"$f":"SUM(P106:P108)","v":0},{"$f":"SUM(Q106:Q108)","v":0},0,{"$f":"SUM(S106:S108)","v":0},{"$f":"SUM(T106:T108)","v":0},0,{"$f":"SUM(V106:V108)","v":0}]
[1,"EX1151",null,null,null,"Interest",null,null,{"$f":"'[1]14'!J106","v":0},{"$f":"'[1]14'!L106","v":0},{"$f":"'[1]14'!N106","v":0},{"$f":"'[1]14'!N106","v":0},{"$f":"'[1]14'!Q106","v":0},{"$f":"'[1]14'!Q106","v":0},0,{"$f":"'[1]14'!T106","v":0},{"$f":"'[1]14'!T106","v":0},0,{"$f":"'[1]14'!V106","v":0},{"$f":"'[1]14'!V106","v":0},0]
[1,"EX1152",null,null,null,"Dividends",null,null,{"$f":"'[1]14'!J107","v":0},{"$f":"'[1]14'!L107","v":0},{"$f":"'[1]14'!N107","v":0},{"$f":"'[1]14'!N107","v":0},{"$f":"'[1]14'!Q107","v":0},{"$f":"'[1]14'!Q107","v":0},0,{"$f":"'[1]14'!T107","v":0},{"$f":"'[1]14'!T107","v":0},0,{"$f":"'[1]14'!V107","v":0},{"$f":"'[1]14'!V107","v":0},0]
[1,"EX1153",null,null,null,"Rent on land",null,null,{"$f":"'[1]14'!J108","v":0},{"$f":"'[1]14'!L108","v":0},{"$f":"'[1]14'!N108","v":0},{"$f":"'[1]14'!N108","v":0},{"$f":"'[1]14'!Q108","v":0},{"$f":"'[1]14'!Q108","v":0},0,{"$f":"'[1]14'!T108","v":0},{"$f":"'[1]14'!T108","v":0},0,{"$f":"'[1]14'!V108","v":0},{"$f":"'[1]14'!V108","v":0},0]
[1,"EX12",null,null,null,"Transfers and subsidies",null,null,{"$f":"SUM(I110,I121,I132:I135)","v":0},0,0,0,0,0,0,{"$f":"SUM(P110,P121,P132:P135)","v":0},{"$f":"SUM(Q110,Q121,Q132:Q135)","v":0},0,{"$f":"SUM(S110,S121,S132:S135)","v":0},{"$f":"SUM(T110,T121,T132:T135)","v":0},0,{"$f":"SUM(V110,V121,V132:V135)","v":0}]
[2,"EX121",null,null,null,"Employer Grant (SETAs only)",null,null,{"$f":"SUM(I111,I117,I120)","v":0},0,0,0,0,0,0,{"$f":"SUM(P111,P117,P120)","v":0},{"$f":"SUM(Q111,Q117,Q120)","v":0},0,{"$f":"SUM(S111,S117,S120)","v":0},{"$f":"SUM(T111,T117,T120)","v":0},0,{"$f":"SUM(V111,V117,V120)","v":0}]
[1,"EX122",null,null,null,"Other government units",null,null,{"$f":"SUM(I112:I116)","v":0},0,0,0,0,0,0,{"$f":"SUM(P112:P116)","v":0},{"$f":"SUM(Q112:Q116)","v":0},0,{"$f":"SUM(S112:S116)","v":0},{"$f":"SUM(T112:T116)","v":0},0,{"$f":"SUM(V112:V116)","v":0}]
[1,"EX1221",null,null,null,"National government",null,null,{"$f":"'[1]14'!J112","v":0},{"$f":"'[1]14'!L112","v":0},{"$f":"'[1]14'!N112","v":0},{"$f":"'[1]14'!N112","v":0},{"$f":"'[1]14'!Q112","v":0},{"$f":"'[1]14'!Q112","v":0},0,{"$f":"'[1]14'!T112","v":0},{"$f":"'[1]14'!T112","v":0},0,{"$f":"'[1]14'!V112","v":0},{"$f":"'[1]14'!V112","v":0},0]
[1,"EX1222",null,null,null,"Departmental agencies and accounts",null,null,{"$f":"'[1]14'!J113","v":0},{"$f":"'[1]14'!L113","v":0},{"$f":"'[1]14'!N113","v":0},{"$f":"'[1]14'!N113","v":0},{"$f":"'[1]14'!Q113","v":0},{"$f":"'[1]14'!Q113","v":0},0,{"$f":"'[1]14'!T113","v":0},{"$f":"'[1]14'!T113","v":0},0,{"$f":"'[1]14'!V113","v":0},{"$f":"'[1]14'!V113","v":0},0]
[1,"EX1223",null,null,null,"Provinces",null,null,{"$f":"'[1]14'!J114","v":0},{"$f":"'[1]14'!L114","v":0},{"$f":"'[1]14'!N114","v":0},{"$f":"'[1]14'!N114","v":0},{"$f":"'[1]14'!Q114","v":0},{"$f":"'[1]14'!Q114","v":0},0,{"$f":"'[1]14'!T114","v":0},{"$f":"'[1]14'!T114","v":0},0,{"$f":"'[1]14'!V114","v":0},{"$f":"'[1]14'!V114","v":0},0]
[1,"EX1224",null,null,null,"Municipalities",null,null,{"$f":"'[1]14'!J115","v":0},{"$f":"'[1]14'!L115","v":0},{"$f":"'[1]14'!N115","v":0},{"$f":"'[1]14'!N115","v":0},{"$f":"'[1]14'!Q115","v":0},{"$f":"'[1]14'!Q115","v":0},0,{"$f":"'[1]14'!T115","v":0},{"$f":"'[1]14'!T115","v":0},0,{"$f":"'[1]14'!V115","v":0},{"$f":"'[1]14'!V115","v":0},0]
[2,"EX1225",null,null,null,"National Skills Fund",null,null,{"$f":"'[1]14'!J116","v":0},{"$f":"'[1]14'!L116","v":0},{"$f":"'[1]14'!N116","v":0},{"$f":"'[1]14'!N116","v":0},{"$f":"'[1]14'!Q116","v":0},{"$f":"'[1]14'!Q116","v":0},0,{"$f":"'[1]14'!T116","v":0},{"$f":"'[1]14'!T116","v":0},0,{"$f":"'[1]14'!V116","v":0},{"$f":"'[1]14'!V116","v":0},0]
[1,"EX123",null,null,null,"Public corporations and private enterprises (subsidies and other transfers)",null,null,{"$f":"SUM(I118:I119)","v":0},0,0,0,0,0,0,{"$f":"SUM(P118:P119)","v":0},{"$f":"SUM(Q118:Q119)","v":0},0,{"$f":"SUM(S118:S119)","v":0},{"$f":"SUM(T118:T119)","v":0},0,{"$f":"SUM(V118:V119)","v":0}]
[1,"EX1231",null,null,null,"Public corporations",null,null,{"$f":"'[1]14'!J118","v":0},{"$f":"'[1]14'!L118","v":0},{"$f":"'[1]14'!N118","v":0},{"$f":"'[1]14'!N118","v":0},{"$f":"'[1]14'!Q118","v":0},{"$f":"'[1]14'!Q118","v":0},0,{"$f":"'[1]14'!T118","v":0},{"$f":"'[1]14'!T118","v":0},0,{"$f":"'[1]14'!V118","v":0},{"$f":"'[1]14'!V118","v":0},0]
[1,"EX1232",null,null,null,"Private enterprises",null,null,{"$f":"'[1]14'!J119","v":0},{"$f":"'[1]14'!L119","v":0},{"$f":"'[1]14'!N119","v":0},{"$f":"'[1]14'!N119","v":0},{"$f":"'[1]14'!Q119","v":0},{"$f":"'[1]14'!Q119","v":0},0,{"$f":"'[1]14'!T119","v":0},{"$f":"'[1]14'!T119","v":0},0,{"$f":"'[1]14'!V119","v":0},{"$f":"'[1]14'!V119","v":0},0]
[2,"EX124",null,null,null,"Households and non government units",null,null,{"$f":"'[1]14'!J120","v":0},{"$f":"'[1]14'!L120","v":0},{"$f":"'[1]14'!N120","v":0},{"$f":"'[1]14'!N120","v":0},{"$f":"'[1]14'!Q120","v":0},{"$f":"'[1]14'!Q120","v":0},0,{"$f":"'[1]14'!T120","v":0},{"$f":"'[1]14'!T120","v":0},0,{"$f":"'[1]14'!V120","v":0},{"$f":"'[1]14'!V120","v":0},0]
[2,"EX125",null,null,null,"Discretionary Grant (SETAs only)",null,null,{"$f":"SUM(I122,I128,I131)","v":0},0,0,0,0,0,0,{"$f":"SUM(P122,P128,P131)","v":0},{"$f":"SUM(Q122,Q128,Q131)","v":0},0,{"$f":"SUM(S122,S128,S131)","v":0},{"$f":"SUM(T122,T128,T131)","v":0},0,{"$f":"SUM(V122,V128,V131)","v":0}]
[2,"EX126",null,null,null,"Other government units",null,null,{"$f":"SUM(I123:I127)","v":0},0,0,0,0,0,0,{"$f":"SUM(P123:P127)","v":0},{"$f":"SUM(Q123:Q127)","v":0},0,{"$f":"SUM(S123:S127)","v":0},{"$f":"SUM(T123:T127)","v":0},0,{"$f":"SUM(V123:V127)","v":0}]
[2,"EX1261",null,null,null,"National government",null,null,{"$f":"'[1]14'!J123","v":0},{"$f":"'[1]14'!L123","v":0},{"$f":"'[1]14'!N123","v":0},{"$f":"'[1]14'!N123","v":0},{"$f":"'[1]14'!Q123","v":0},{"$f":"'[1]14'!Q123","v":0},0,{"$f":"'[1]14'!T123","v":0},{"$f":"'[1]14'!T123","v":0},0,{"$f":"'[1]14'!V123","v":0},{"$f":"'[1]14'!V123","v":0},0]
[2,"EX1262",null,null,null,"Departmental agencies and accounts",null,null,{"$f":"'[1]14'!J124","v":0},{"$f":"'[1]14'!L124","v":0},{"$f":"'[1]14'!N124","v":0},{"$f":"'[1]14'!N124","v":0},{"$f":"'[1]14'!Q124","v":0},{"$f":"'[1]14'!Q124","v":0},0,{"$f":"'[1]14'!T124","v":0},{"$f":"'[1]14'!T124","v":0},0,{"$f":"'[1]14'!V124","v":0},{"$f":"'[1]14'!V124","v":0},0]
[2,"EX1263",null,null,null,"Provinces",null,null,{"$f":"'[1]14'!J125","v":0},{"$f":"'[1]14'!L125","v":0},{"$f":"'[1]14'!N125","v":0},{"$f":"'[1]14'!N125","v":0},{"$f":"'[1]14'!Q125","v":0},{"$f":"'[1]14'!Q125","v":0},0,{"$f":"'[1]14'!T125","v":0},{"$f":"'[1]14'!T125","v":0},0,{"$f":"'[1]14'!V125","v":0},{"$f":"'[1]14'!V125","v":0},0]
[2,"EX1264",null,null,null,"Municipalities",null,null,{"$f":"'[1]14'!J126","v":0},{"$f":"'[1]14'!L126","v":0},{"$f":"'[1]14'!N126","v":0},{"$f":"'[1]14'!N126","v":0},{"$f":"'[1]14'!Q126","v":0},{"$f":"'[1]14'!Q126","v":0},0,{"$f":"'[1]14'!T126","v":0},{"$f":"'[1]14'!T126","v":0},0,{"$f":"'[1]14'!V126","v":0},{"$f":"'[1]14'!V126","v":0},0]
[2,"EX1265",null,null,null,"National Skills Fund",null,null,{"$f":"'[1]14'!J127","v":0},{"$f":"'[1]14'!L127","v":0},{"$f":"'[1]14'!N127","v":0},{"$f":"'[1]14'!N127","v":0},{"$f":"'[1]14'!Q127","v":0},{"$f":"'[1]14'!Q127","v":0},0,{"$f":"'[1]14'!T127","v":0},{"$f":"'[1]14'!T127","v":0},0,{"$f":"'[1]14'!V127","v":0},{"$f":"'[1]14'!V127","v":0},0]
[2,"EX127",null,null,null,"Public corporations and private enterprises (subsidies and other transfers)",null,null,{"$f":"SUM(I129:I130)","v":0},0,0,0,0,0,0,{"$f":"SUM(P129:P130)","v":0},{"$f":"SUM(Q129:Q130)","v":0},0,{"$f":"SUM(S129:S130)","v":0},{"$f":"SUM(T129:T130)","v":0},0,{"$f":"SUM(V129:V130)","v":0}]
[2,"EX1271",null,null,null,"Public corporations",null,null,{"$f":"'[1]14'!J129","v":0},{"$f":"'[1]14'!L129","v":0},{"$f":"'[1]14'!N129","v":0},{"$f":"'[1]14'!N129","v":0},{"$f":"'[1]14'!Q129","v":0},{"$f":"'[1]14'!Q129","v":0},0,{"$f":"'[1]14'!T129","v":0},{"$f":"'[1]14'!T129","v":0},0,{"$f":"'[1]14'!V129","v":0},{"$f":"'[1]14'!V129","v":0},{"$f":"SUM(T129-S129)","v":0}]
[2,"EX1272",null,null,null,"Private enterprises",null,null,{"$f":"'[1]14'!J130","v":0},{"$f":"'[1]14'!L130","v":0},{"$f":"'[1]14'!N130","v":0},{"$f":"'[1]14'!N130","v":0},{"$f":"'[1]14'!Q130","v":0},{"$f":"'[1]14'!Q130","v":0},0,{"$f":"'[1]14'!T130","v":0},{"$f":"'[1]14'!T130","v":0},0,{"$f":"'[1]14'!V130","v":0},{"$f":"'[1]14'!V130","v":0},0]
[2,"EX128",null,null,null,"Households and non government units",null,null,{"$f":"'[1]14'!J131","v":0},{"$f":"'[1]14'!L131","v":0},{"$f":"'[1]14'!N131","v":0},{"$f":"'[1]14'!N131","v":0},{"$f":"'[1]14'!Q131","v":0},{"$f":"'[1]14'!Q131","v":0},0,{"$f":"'[1]14'!T131","v":0},{"$f":"'[1]14'!T131","v":0},0,{"$f":"'[1]14'!V131","v":0},{"$f":"'[1]14'!V131","v":0},0]
[1,"EX129",null,null,null,"Higher education institutions",null,null,{"$f":"'[1]14'!J132","v":0},{"$f":"'[1]14'!L132","v":0},{"$f":"'[1]14'!N132","v":0},{"$f":"'[1]14'!N132","v":0},{"$f":"'[1]14'!Q132","v":0},{"$f":"'[1]14'!Q132","v":0},0,{"$f":"'[1]14'!T132","v":0},{"$f":"'[1]14'!T132","v":0},0,{"$f":"'[1]14'!V132","v":0},{"$f":"'[1]14'!V132","v":0},0]
[1,"EX130",null,null,null,"Foreign governments and international organisations ",null,null,{"$f":"'[1]14'!J133","v":0},{"$f":"'[1]14'!L133","v":0},{"$f":"'[1]14'!N133","v":0},{"$f":"'[1]14'!N133","v":0},{"$f":"'[1]14'!Q133","v":0},{"$f":"'[1]14'!Q133","v":0},0,{"$f":"'[1]14'!T133","v":0},{"$f":"'[1]14'!T133","v":0},0,{"$f":"'[1]14'!V133","v":0},{"$f":"'[1]14'!V133","v":0},0]
[1,"EX131",null,null,null,"Non-profit institutions",null,null,{"$f":"'[1]14'!J134","v":0},{"$f":"'[1]14'!L134","v":0},{"$f":"'[1]14'!N134","v":0},{"$f":"'[1]14'!N134","v":0},{"$f":"'[1]14'!Q134","v":0},{"$f":"'[1]14'!Q134","v":0},0,{"$f":"'[1]14'!T134","v":0},{"$f":"'[1]14'!T134","v":0},0,{"$f":"'[1]14'!V134","v":0},{"$f":"'[1]14'!V134","v":0},0]
[1,"EX132",null,null,null,"Households",null,null,{"$f":"SUM(I136:I137)","v":0},0,0,0,0,0,{"$f":"SUM(N135-M135)","v":0},{"$f":"SUM(P136:P137)","v":0},{"$f":"SUM(Q136:Q137)","v":0},{"$f":"SUM(Q135-P135)","v":0},{"$f":"SUM(S136:S137)","v":0},{"$f":"SUM(T136:T137)","v":0},{"$f":"SUM(T135-S135)","v":0},{"$f":"SUM(V136:V137)","v":0}]
[1,"EX1301",null,null,null,"Social benefits ",null,null,{"$f":"'[1]14'!J136","v":0},{"$f":"'[1]14'!L136","v":0},{"$f":"'[1]14'!N136","v":0},{"$f":"'[1]14'!N136","v":0},{"$f":"'[1]14'!Q136","v":0},{"$f":"'[1]14'!Q136","v":0},0,{"$f":"'[1]14'!T136","v":0},{"$f":"'[1]14'!T136","v":0},0,{"$f":"'[1]14'!V136","v":0},{"$f":"'[1]14'!V136","v":0},0]
[1,"EX1302",null,null,null,"Other transfers to households",null,null,{"$f":"'[1]14'!J137","v":0},{"$f":"'[1]14'!L137","v":0},{"$f":"'[1]14'!N137","v":0},{"$f":"'[1]14'!N137","v":0},{"$f":"'[1]14'!Q137","v":0},{"$f":"'[1]14'!Q137","v":0},0,{"$f":"'[1]14'!T137","v":0},{"$f":"'[1]14'!T137","v":0},0,{"$f":"'[1]14'!V137","v":0},{"$f":"'[1]14'!V137","v":0},0]
[1,"EX13",null,null,null,"Tax payment",null,null,{"$f":"'[1]14'!J138","v":0},{"$f":"'[1]14'!L138","v":0},{"$f":"'[1]14'!N138","v":0},{"$f":"'[1]14'!N138","v":0},{"$f":"'[1]14'!Q138","v":0},{"$f":"'[1]14'!Q138","v":0},0,{"$f":"'[1]14'!T138","v":0},{"$f":"'[1]14'!T138","v":0},0,{"$f":"'[1]14'!V138","v":0},{"$f":"'[1]14'!V138","v":0},0]
[1,"EX14",null,null,null,"Outside shareholders Interest",null,null,{"$f":"'[1]14'!J139","v":0},{"$f":"'[1]14'!L139","v":0},{"$f":"'[1]14'!N139","v":0},{"$f":"'[1]14'!N139","v":0},{"$f":"'[1]14'!Q139","v":0},{"$f":"'[1]14'!Q139","v":0},0,{"$f":"'[1]14'!T139","v":0},{"$f":"'[1]14'!T139","v":0},0,{"$f":"'[1]14'!V139","v":0},{"$f":"'[1]14'!V139","v":0},0]
[1,"EX15",null,null,null,"Total Expenditure",null,null,{"$f":"SUM(I39,I109,I138:I139)","v":0},0,0,0,0,0,0,{"$f":"SUM(P39,P109,P138:P139)","v":0},{"$f":"SUM(Q39,Q109,Q138:Q139)","v":0},0,{"$f":"SUM(S39,S109,S138:S139)","v":0},{"$f":"SUM(T39,T109,T138:T139)","v":0},0,{"$f":"SUM(V39,V109,V138:V139)","v":0}]
[1]
[1,null,null,null,null,"Objective less Expenditure",null,null,{"$f":"ROUND(IF(I37-I140>0,IF(I37-I140<1,0,I37-I140),I37-I140),0)","v":0},0,null,0,0,0,{"$f":"ROUND(IF(O37-O140>0,IF(O37-O140<1,0,O37-O140),O37-O140),0)","v":0},0,0,0,0,0,0,0]
[1]

{"sheet":"15","index":19,"n_rows":143,"n_cols":23,"rows_kept":143,"cut":false,"hidden":false,"merged":[[31,12,31,14],[31,15,31,17],[31,18,31,20],[31,10,31,11]]}
[]
[]
[]
[]
[]
[null,null,null,null,null,"PE No",{"$f":"Settings!O2","v":"PE126"}]
[null,null,null,null,null,"Entity name",{"$f":"Settings!$E$2","v":"South African Revenue Service"}]
[]
[null,null,null,null,null,"Performance and operations information"]
["ItemCat","Item code","Hide/unhide",null,null,"Activity/Output/Outcome/Efficiency Indicator","MTDP Outcomes",null,{"$f":"MyYearM3","v":"2022/23"},{"$f":"MyYearM2","v":"2023/24"},{"$f":"MyYearM1","v":"2024/25"},{"$f":"MyYear0","v":"2025/26"},{"$f":"MyYearP1","v":"2026/27"},{"$f":"MyYearP2","v":"2027/28"},{"$f":"MyYearP3","v":"2028/29"},"Related Objectives","Add to 'Performance Indicators' Sheet","Comments"]
[1,null,null,null,null,{"$f":"'[1]15'!F11","v":0},{"$f":"'[1]15'!G11","v":0},0,{"$f":"'[1]15'!J11","v":0},{"$f":"'[1]15'!K11","v":0},{"$f":"'[1]15'!L11","v":0},{"$f":"'[1]15'!M11","v":0},{"$f":"'[1]15'!N11","v":0},{"$f":"'[1]15'!O11","v":0},null,{"$f":"'[1]15'!P11","v":0},{"$f":"'[1]15'!Q11","v":0},{"$f":"'[1]15'!R11","v":0}]
[1,null,null,null,null,{"$f":"'[1]15'!F12","v":0},{"$f":"'[1]15'!G12","v":0},0,{"$f":"'[1]15'!J12","v":0},{"$f":"'[1]15'!K12","v":0},{"$f":"'[1]15'!L12","v":0},{"$f":"'[1]15'!M12","v":0},{"$f":"'[1]15'!N12","v":0},{"$f":"'[1]15'!O12","v":0},null,{"$f":"'[1]15'!P12","v":0},{"$f":"'[1]15'!Q12","v":0},{"$f":"'[1]15'!R12","v":0}]
[1,null,null,null,null,{"$f":"'[1]15'!F13","v":0},{"$f":"'[1]15'!G13","v":0},0,{"$f":"'[1]15'!J13","v":0},{"$f":"'[1]15'!K13","v":0},{"$f":"'[1]15'!L13","v":0},{"$f":"'[1]15'!M13","v":0},{"$f":"'[1]15'!N13","v":0},{"$f":"'[1]15'!O13","v":0},null,{"$f":"'[1]15'!P13","v":0},{"$f":"'[1]15'!Q13","v":0},{"$f":"'[1]15'!R13","v":0}]
[1,null,null,null,null,{"$f":"'[1]15'!F14","v":0},{"$f":"'[1]15'!G14","v":0},0,{"$f":"'[1]15'!J14","v":0},{"$f":"'[1]15'!K14","v":0},{"$f":"'[1]15'!L14","v":0},{"$f":"'[1]15'!M14","v":0},{"$f":"'[1]15'!N14","v":0},{"$f":"'[1]15'!O14","v":0},null,{"$f":"'[1]15'!P14","v":0},{"$f":"'[1]15'!Q14","v":0},{"$f":"'[1]15'!R14","v":0}]
[1,null,null,null,null,{"$f":"'[1]15'!F15","v":0},{"$f":"'[1]15'!G15","v":0},0,{"$f":"'[1]15'!J15","v":0},{"$f":"'[1]15'!K15","v":0},{"$f":"'[1]15'!L15","v":0},{"$f":"'[1]15'!M15","v":0},{"$f":"'[1]15'!N15","v":0},{"$f":"'[1]15'!O15","v":0},null,{"$f":"'[1]15'!P15","v":0},{"$f":"'[1]15'!Q15","v":0},{"$f":"'[1]15'!R15","v":0}]
[1,null,null,null,null,{"$f":"'[1]15'!F16","v":0},{"$f":"'[1]15'!G16","v":0},0,{"$f":"'[1]15'!J16","v":0},{"$f":"'[1]15'!K16","v":0},{"$f":"'[1]15'!L16","v":0},{"$f":"'[1]15'!M16","v":0},{"$f":"'[1]15'!N16","v":0},{"$f":"'[1]15'!O16","v":0},null,{"$f":"'[1]15'!P16","v":0},{"$f":"'[1]15'!Q16","v":0},{"$f":"'[1]15'!R16","v":0}]
[1,null,null,null,null,{"$f":"'[1]15'!F17","v":0},{"$f":"'[1]15'!G17","v":0},0,{"$f":"'[1]15'!J17","v":0},{"$f":"'[1]15'!K17","v":0},{"$f":"'[1]15'!L17","v":0},{"$f":"'[1]15'!M17","v":0},{"$f":"'[1]15'!N17","v":0},{"$f":"'[1]15'!O17","v":0},null,{"$f":"'[1]15'!P17","v":0},{"$f":"'[1]15'!Q17","v":0},{"$f":"'[1]15'!R17","v":0}]
[1,null,null,null,null,{"$f":"'[1]15'!F18","v":0},{"$f":"'[1]15'!G18","v":0},0,{"$f":"'[1]15'!J18","v":0},{"$f":"'[1]15'!K18","v":0},{"$f":"'[1]15'!L18","v":0},{"$f":"'[1]15'!M18","v":0},{"$f":"'[1]15'!N18","v":0},{"$f":"'[1]15'!O18","v":0},null,{"$f":"'[1]15'!P18","v":0},{"$f":"'[1]15'!Q18","v":0},{"$f":"'[1]15'!R18","v":0}]
[1,null,null,null,null,{"$f":"'[1]15'!F19","v":0},{"$f":"'[1]15'!G19","v":0},0,{"$f":"'[1]15'!J19","v":0},{"$f":"'[1]15'!K19","v":0},{"$f":"'[1]15'!L19","v":0},{"$f":"'[1]15'!M19","v":0},{"$f":"'[1]15'!N19","v":0},{"$f":"'[1]15'!O19","v":0},null,{"$f":"'[1]15'!P19","v":0},{"$f":"'[1]15'!Q19","v":0},{"$f":"'[1]15'!R19","v":0}]
[1,null,null,null,null,{"$f":"'[1]15'!F20","v":0},{"$f":"'[1]15'!G20","v":0},0,{"$f":"'[1]15'!J20","v":0},{"$f":"'[1]15'!K20","v":0},{"$f":"'[1]15'!L20","v":0},{"$f":"'[1]15'!M20","v":0},{"$f":"'[1]15'!N20","v":0},{"$f":"'[1]15'!O20","v":0},null,{"$f":"'[1]15'!P20","v":0},{"$f":"'[1]15'!Q20","v":0},{"$f":"'[1]15'!R20","v":0}]
[1,null,null,null,null,{"$f":"'[1]15'!F21","v":0},{"$f":"'[1]15'!G21","v":0},0,{"$f":"'[1]15'!J21","v":0},{"$f":"'[1]15'!K21","v":0},{"$f":"'[1]15'!L21","v":0},{"$f":"'[1]15'!M21","v":0},{"$f":"'[1]15'!N21","v":0},{"$f":"'[1]15'!O21","v":0},null,{"$f":"'[1]15'!P21","v":0},{"$f":"'[1]15'!Q21","v":0},{"$f":"'[1]15'!R21","v":0}]
[1,null,null,null,null,{"$f":"'[1]15'!F22","v":0},{"$f":"'[1]15'!G22","v":0},0,{"$f":"'[1]15'!J22","v":0},{"$f":"'[1]15'!K22","v":0},{"$f":"'[1]15'!L22","v":0},{"$f":"'[1]15'!M22","v":0},{"$f":"'[1]15'!N22","v":0},{"$f":"'[1]15'!O22","v":0},null,{"$f":"'[1]15'!P22","v":0},{"$f":"'[1]15'!Q22","v":0},{"$f":"'[1]15'!R22","v":0}]
[1,null,null,null,null,{"$f":"'[1]15'!F23","v":0},{"$f":"'[1]15'!G23","v":0},0,{"$f":"'[1]15'!J23","v":0},{"$f":"'[1]15'!K23","v":0},{"$f":"'[1]15'!L23","v":0},{"$f":"'[1]15'!M23","v":0},{"$f":"'[1]15'!N23","v":0},{"$f":"'[1]15'!O23","v":0},null,{"$f":"'[1]15'!P23","v":0},{"$f":"'[1]15'!Q23","v":0},{"$f":"'[1]15'!R23","v":0}]
[1,null,null,null,null,{"$f":"'[1]15'!F24","v":0},{"$f":"'[1]15'!G24","v":0},0,{"$f":"'[1]15'!J24","v":0},{"$f":"'[1]15'!K24","v":0},{"$f":"'[1]15'!L24","v":0},{"$f":"'[1]15'!M24","v":0},{"$f":"'[1]15'!N24","v":0},{"$f":"'[1]15'!O24","v":0},null,{"$f":"'[1]15'!P24","v":0},{"$f":"'[1]15'!Q24","v":0},{"$f":"'[1]15'!R24","v":0}]
[1,null,null,null,null,{"$f":"'[1]15'!F25","v":0},{"$f":"'[1]15'!G25","v":0},0,{"$f":"'[1]15'!J25","v":0},{"$f":"'[1]15'!K25","v":0},{"$f":"'[1]15'!L25","v":0},{"$f":"'[1]15'!M25","v":0},{"$f":"'[1]15'!N25","v":0},{"$f":"'[1]15'!O25","v":0},null,{"$f":"'[1]15'!P25","v":0},{"$f":"'[1]15'!Q25","v":0},{"$f":"'[1]15'!R25","v":0}]
[1,null,null,null,null,"Notes:"]
[1,null,null,null,null,"Performance indicators are an explanation of objectives performance.   "]
[1,null,null,null,null,"1. They are specific measurements that track progress towards achieving the goals and objectives of an institution."]
[1,null,null,null,null,"2. Institutions should use performance indicators in the 2024/25 Annual Performance Plans and those in the 2025 ENE. "]
[1,null,null,null,null,"3. Institutions should also indicate instances where targets are not affected by budget baseline reprioritisation."]
[1]
[1,null,null,null,null,null,null,null,{"$f":"MyYearM3","v":"2022/23"},{"$f":"MyYearM2","v":"2023/24"},{"$f":"MyYearM1","v":"2024/25"},null,{"$f":"MyYear0","v":"2025/26"},null,null,{"$f":"MyYearP1","v":"2026/27"},null,null,{"$f":"MyYearP2","v":"2027/28"},null,null,{"$f":"MyYearP3","v":"2028/29"}]
[1,null,null,null,null,"Expenses",null,null,{"$f":"Hist_year3RestatedAudited","v":"Audited\noutcome"},{"$f":"Hist_year2RestatedAudited","v":"Audited\noutcome"},{"$f":"Hist_year1Budget","v":"Budget"},{"$f":"Hist_year1Audited","v":"Audited\noutcome"},{"$f":"Cur_YearBudgEst","v":"Budget\nestimate"},{"$f":"Cur_YearApprovedBudg","v":"Approved budget"},{"$f":"Cur_YearChangeFrRevBudg","v":"Changes from \nbudget estimate"},{"$f":"MTEF1BudgEst","v":"Budget\nestimate"},{"$f":"MTEF1RevBudgEst","v":"Revised\nbudget\nestimate"},{"$f":"MTEF1_ChangeFrBudgEst","v":"Changes from budget estimate"},{"$f":"MTEF2BudgEst","v":"Budget\nestimate"},{"$f":"MTEF2RevBudgEst","v":"Revised\nbudget\nestimate"},{"$f":"MTEF2_ChangeFrBudgEst","v":"Changes from budget estimate"},{"$f":"MTEF3PlanBudgetEst","v":"Planning\nbudget \nestimate"}]
[1]
[1,null,null,null,null,"Rand thousand"]
[1,null,null,null,null,"Objective/Activity"]
[1,null,null,null,null,{"$f":"'[1]15'!F37","v":0},null,null,{"$f":"'[1]15'!J37","v":0},{"$f":"'[1]15'!L37","v":0},{"$f":"'[1]15'!N37","v":0},{"$f":"'[1]15'!N37","v":0},{"$f":"'[1]15'!Q37","v":0},{"$f":"'[1]15'!Q37","v":0},{"$f":"SUM(N37-M37)","v":0},{"$f":"'[1]15'!T37","v":0},{"$f":"'[1]15'!T37","v":0},{"$f":"SUM(Q37-P37)","v":0},{"$f":"'[1]15'!V37","v":0},{"$f":"'[1]15'!V37","v":0},{"$f":"SUM(T37-S37)","v":0}]
[1,null,null,null,null,"Economic classification"]
[1,"EX11",null,null,null,"Current payments",null,null,{"$f":"SUM(I40,I43,I98:I99,I105)","v":0},0,0,0,0,0,{"$f":"SUM(N39-M39)","v":0},{"$f":"SUM(P40,P43,P98:P99,P105)","v":0},{"$f":"SUM(Q40,Q43,Q98:Q99,Q105)","v":0},{"$f":"SUM(Q39-P39)","v":0},{"$f":"SUM(S40,S43,S98:S99,S105)","v":0},{"$f":"SUM(T40,T43,T98:T99,T105)","v":0},{"$f":"SUM(T39-S39)","v":0},{"$f":"SUM(V40,V43,V98:V99,V105)","v":0}]
[1,"EX111",null,null,null,"Compensation of employees",null,null,{"$f":"SUM(I41:I42)","v":0},0,0,0,0,0,{"$f":"SUM(N40-M40)","v":0},{"$f":"SUM(P41:P42)","v":0},{"$f":"SUM(Q41:Q42)","v":0},{"$f":"SUM(Q40-P40)","v":0},{"$f":"SUM(S41:S42)","v":0},{"$f":"SUM(T41:T42)","v":0},{"$f":"SUM(T40-S40)","v":0},{"$f":"SUM(V41:V42)","v":0}]
[1,"EX1111",null,null,null,"Salaries and wages",null,null,{"$f":"'[1]15'!J41","v":0},{"$f":"'[1]15'!L41","v":0},{"$f":"'[1]15'!N41","v":0},{"$f":"'[1]15'!N41","v":0},{"$f":"'[1]15'!Q41","v":0},{"$f":"'[1]15'!Q41","v":0},{"$f":"SUM(N41-M41)","v":0},{"$f":"'[1]15'!T41","v":0},{"$f":"'[1]15'!T41","v":0},{"$f":"SUM(Q41-P41)","v":0},{"$f":"'[1]15'!V41","v":0},{"$f":"'[1]15'!V41","v":0},{"$f":"SUM(T41-S41)","v":0}]
[1,"EX1112",null,null,null,"Social contributions",null,null,{"$f":"'[1]15'!J42","v":0},{"$f":"'[1]15'!L42","v":0},{"$f":"'[1]15'!N42","v":0},{"$f":"'[1]15'!N42","v":0},{"$f":"'[1]15'!Q42","v":0},{"$f":"'[1]15'!Q42","v":0},{"$f":"SUM(N42-M42)","v":0},{"$f":"'[1]15'!T42","v":0},{"$f":"'[1]15'!T42","v":0},{"$f":"SUM(Q42-P42)","v":0},{"$f":"'[1]15'!V42","v":0},{"$f":"'[1]15'!V42","v":0},{"$f":"SUM(T42-S42)","v":0}]
[1,"EX112",null,null,null,"Goods and services",null,null,{"$f":"SUM(I45:I54,I58:I61,I73,I75:I97)","v":0},{"$f":"SUM(J45:J54,J58:J61,J73,J75:J97)","v":0},{"$f":"SUM(K45:K54,K58:K61,K73,K75:K97)","v":0},0,0,0,0,0,0,0,0,0,0,0,{"$f":"SUM(W45:W54,W58:W61,W73,W75:W97)","v":0}]
[1,"EX000",null,null,null,"Of which 1"]
[1,"EX1133",null,null,null,"Administrative fees",null,null,{"$f":"'[1]15'!J45","v":0},{"$f":"'[1]15'!L45","v":0},{"$f":"'[1]15'!N45","v":0},{"$f":"'[1]15'!N45","v":0},{"$f":"'[1]15'!Q45","v":0},{"$f":"'[1]15'!Q45","v":0},{"$f":"SUM(N45-M45)","v":0},{"$f":"'[1]15'!T45","v":0},{"$f":"'[1]15'!T45","v":0},{"$f":"SUM(Q45-P45)","v":0},{"$f":"'[1]15'!V45","v":0},{"$f":"'[1]15'!V45","v":0},{"$f":"SUM(T45-S45)","v":0}]
[1,"EX1134",null,null,null,"Advertising",null,null,{"$f":"'[1]15'!J46","v":0},{"$f":"'[1]15'!L46","v":0},{"$f":"'[1]15'!N46","v":0},{"$f":"'[1]15'!N46","v":0},{"$f":"'[1]15'!Q46","v":0},{"$f":"'[1]15'!Q46","v":0},0,{"$f":"'[1]15'!T46","v":0},{"$f":"'[1]15'!T46","v":0},0,{"$f":"'[1]15'!V46","v":0},{"$f":"'[1]15'!V46","v":0},0]
[1,"EX1135",null,null,null,"Minor assets",null,null,{"$f":"'[1]15'!J47","v":0},{"$f":"'[1]15'!L47","v":0},{"$f":"'[1]15'!N47","v":0},{"$f":"'[1]15'!N47","v":0},{"$f":"'[1]15'!Q47","v":0},{"$f":"'[1]15'!Q47","v":0},0,{"$f":"'[1]15'!T47","v":0},{"$f":"'[1]15'!T47","v":0},0,{"$f":"'[1]15'!V47","v":0},{"$f":"'[1]15'!V47","v":0},0]
[1,"EX1136",null,null,null,"Audit costs: External",null,null,{"$f":"'[1]15'!J48","v":0},{"$f":"'[1]15'!L48","v":0},{"$f":"'[1]15'!N48","v":0},{"$f":"'[1]15'!N48","v":0},{"$f":"'[1]15'!Q48","v":0},{"$f":"'[1]15'!Q48","v":0},0,{"$f":"'[1]15'!T48","v":0},{"$f":"'[1]15'!T48","v":0},0,{"$f":"'[1]15'!V48","v":0},{"$f":"'[1]15'!V48","v":0},0]
[1,"EX1139",null,null,null,"Bursaries: Employees",null,null,{"$f":"'[1]15'!J49","v":0},{"$f":"'[1]15'!L49","v":0},{"$f":"'[1]15'!N49","v":0},{"$f":"'[1]15'!N49","v":0},{"$f":"'[1]15'!Q49","v":0},{"$f":"'[1]15'!Q49","v":0},0,{"$f":"'[1]15'!T49","v":0},{"$f":"'[1]15'!T49","v":0},0,{"$f":"'[1]15'!V49","v":0},{"$f":"'[1]15'!V49","v":0},0]
[1,"EX1140",null,null,null,"Catering: Internal activities",null,null,{"$f":"'[1]15'!J50","v":0},{"$f":"'[1]15'!L50","v":0},{"$f":"'[1]15'!N50","v":0},{"$f":"'[1]15'!N50","v":0},{"$f":"'[1]15'!Q50","v":0},{"$f":"'[1]15'!Q50","v":0},0,{"$f":"'[1]15'!T50","v":0},{"$f":"'[1]15'!T50","v":0},0,{"$f":"'[1]15'!V50","v":0},{"$f":"'[1]15'!V50","v":0},0]
[1,"EX1122",null,null,null,"Communication (G&S)",null,null,{"$f":"'[1]15'!J51","v":0},{"$f":"'[1]15'!L51","v":0},{"$f":"'[1]15'!N51","v":0},{"$f":"'[1]15'!N51","v":0},{"$f":"'[1]15'!Q51","v":0},{"$f":"'[1]15'!Q51","v":0},0,{"$f":"'[1]15'!T51","v":0},{"$f":"'[1]15'!T51","v":0},0,{"$f":"'[1]15'!V51","v":0},{"$f":"'[1]15'!V51","v":0},0]
[1,"EX1123",null,null,null,"Computer services",null,null,{"$f":"'[1]15'!J52","v":0},{"$f":"'[1]15'!L52","v":0},{"$f":"'[1]15'!N52","v":0},{"$f":"'[1]15'!N52","v":0},{"$f":"'[1]15'!Q52","v":0},{"$f":"'[1]15'!Q52","v":0},0,{"$f":"'[1]15'!T52","v":0},{"$f":"'[1]15'!T52","v":0},0,{"$f":"'[1]15'!V52","v":0},{"$f":"'[1]15'!V52","v":0},0]
[1,"EX1124",null,null,null,"Consultants: Business and advisory services",null,null,{"$f":"'[1]15'!J53","v":0},{"$f":"'[1]15'!L53","v":0},{"$f":"'[1]15'!N53","v":0},{"$f":"'[1]15'!N53","v":0},{"$f":"'[1]15'!Q53","v":0},{"$f":"'[1]15'!Q53","v":0},0,{"$f":"'[1]15'!T53","v":0},{"$f":"'[1]15'!T53","v":0},0,{"$f":"'[1]15'!V53","v":0},{"$f":"'[1]15'!V53","v":0},0]
[1,"EX1180",null,null,null,"Infrastructure and planning services",null,null,{"$f":"SUM(I55:I57)","v":0},0,0,0,0,0,{"$f":"SUM(N54-M54)","v":0},{"$f":"SUM(P55:P57)","v":0},{"$f":"SUM(Q55:Q57)","v":0},{"$f":"SUM(Q54-P54)","v":0},{"$f":"SUM(S55:S57)","v":0},{"$f":"SUM(T55:T57)","v":0},{"$f":"SUM(T54-S54)","v":0},{"$f":"SUM(V55:V57)","v":0}]
[1,"EX11801",null,null,null,"Maintenance and repairs: Buildings: Consultants",null,null,{"$f":"'[1]15'!J55","v":0},{"$f":"'[1]15'!L55","v":0},{"$f":"'[1]15'!N55","v":0},{"$f":"'[1]15'!N55","v":0},{"$f":"'[1]15'!Q55","v":0},{"$f":"'[1]15'!Q55","v":0},{"$f":"SUM(N55-M55)","v":0},{"$f":"'[1]15'!T55","v":0},{"$f":"'[1]15'!T55","v":0},{"$f":"SUM(Q55-P55)","v":0},{"$f":"'[1]15'!V55","v":0},{"$f":"'[1]15'!V55","v":0},0]
[1,"EX11802",null,null,null,"Maintenance and repairs: Other fixed structures: Consultants",null,null,{"$f":"'[1]15'!J56","v":0},{"$f":"'[1]15'!L56","v":0},{"$f":"'[1]15'!N56","v":0},{"$f":"'[1]15'!N56","v":0},{"$f":"'[1]15'!Q56","v":0},{"$f":"'[1]15'!Q56","v":0},0,{"$f":"'[1]15'!T56","v":0},{"$f":"'[1]15'!T56","v":0},0,{"$f":"'[1]15'!V56","v":0},{"$f":"'[1]15'!V56","v":0},0]
[1,"EX11803",null,null,null,"Other",null,null,{"$f":"'[1]15'!J57","v":0},{"$f":"'[1]15'!L57","v":0},{"$f":"'[1]15'!N57","v":0},{"$f":"'[1]15'!N57","v":0},{"$f":"'[1]15'!Q57","v":0},{"$f":"'[1]15'!Q57","v":0},0,{"$f":"'[1]15'!T57","v":0},{"$f":"'[1]15'!T57","v":0},0,{"$f":"'[1]15'!V57","v":0},{"$f":"'[1]15'!V57","v":0},0]
[1,"EX1164",null,null,null,"Laboratory services",null,null,{"$f":"'[1]15'!J58","v":0},{"$f":"'[1]15'!L58","v":0},{"$f":"'[1]15'!N58","v":0},{"$f":"'[1]15'!N58","v":0},{"$f":"'[1]15'!Q58","v":0},{"$f":"'[1]15'!Q58","v":0},0,{"$f":"'[1]15'!T58","v":0},{"$f":"'[1]15'!T58","v":0},0,{"$f":"'[1]15'!V58","v":0},{"$f":"'[1]15'!V58","v":0},0]
[1,"EX1162",null,null,null,"Legal services (G&S)",null,null,{"$f":"'[1]15'!J59","v":0},{"$f":"'[1]15'!L59","v":0},{"$f":"'[1]15'!N59","v":0},{"$f":"'[1]15'!N59","v":0},{"$f":"'[1]15'!Q59","v":0},{"$f":"'[1]15'!Q59","v":0},0,{"$f":"'[1]15'!T59","v":0},{"$f":"'[1]15'!T59","v":0},0,{"$f":"'[1]15'!V59","v":0},{"$f":"'[1]15'!V59","v":0},0]
[1,"EX1165",null,null,null,"Science and technological services",null,null,{"$f":"'[1]15'!J60","v":0},{"$f":"'[1]15'!L60","v":0},{"$f":"'[1]15'!N60","v":0},{"$f":"'[1]15'!N60","v":0},{"$f":"'[1]15'!Q60","v":0},{"$f":"'[1]15'!Q60","v":0},0,{"$f":"'[1]15'!T60","v":0},{"$f":"'[1]15'!T60","v":0},0,{"$f":"'[1]15'!V60","v":0},{"$f":"'[1]15'!V60","v":0},0]
[1,"EX1125",null,null,null,"Contractors",null,null,{"$f":"SUM(I62:I66,I72)","v":0},0,0,0,0,0,{"$f":"SUM(N61-M61)","v":0},{"$f":"SUM(P62:P66,P72)","v":0},{"$f":"SUM(Q62:Q66,Q72)","v":0},{"$f":"SUM(Q61-P61)","v":0},{"$f":"SUM(S62:S66,S72)","v":0},{"$f":"SUM(T62:T66,T72)","v":0},0,{"$f":"SUM(V62:V66,V72)","v":0}]
[1,"EX11251",null,null,null,"Maintenance and repairs of other fixed structures",null,null,{"$f":"'[1]15'!J62","v":0},{"$f":"'[1]15'!L62","v":0},{"$f":"'[1]15'!N62","v":0},{"$f":"'[1]15'!N62","v":0},{"$f":"'[1]15'!Q62","v":0},{"$f":"'[1]15'!Q62","v":0},0,{"$f":"'[1]15'!T62","v":0},{"$f":"'[1]15'!T62","v":0},0,{"$f":"'[1]15'!V62","v":0},{"$f":"'[1]15'!V62","v":0},0]
[1,"EX11252",null,null,null,"Maintenance and repairs of other machinery and equipment",null,null,{"$f":"'[1]15'!J63","v":0},{"$f":"'[1]15'!L63","v":0},{"$f":"'[1]15'!N63","v":0},{"$f":"'[1]15'!N63","v":0},{"$f":"'[1]15'!Q63","v":0},{"$f":"'[1]15'!Q63","v":0},0,{"$f":"'[1]15'!T63","v":0},{"$f":"'[1]15'!T63","v":0},0,{"$f":"'[1]15'!V63","v":0},{"$f":"'[1]15'!V63","v":0},0]
[1,"EX11253",null,null,null,"Maintenance and repairs of heritage buildings",null,null,{"$f":"'[1]15'!J64","v":0},{"$f":"'[1]15'!L64","v":0},{"$f":"'[1]15'!N64","v":0},{"$f":"'[1]15'!N64","v":0},{"$f":"'[1]15'!Q64","v":0},{"$f":"'[1]15'!Q64","v":0},0,{"$f":"'[1]15'!T64","v":0},{"$f":"'[1]15'!T64","v":0},0,{"$f":"'[1]15'!V64","v":0},{"$f":"'[1]15'!V64","v":0},0]
[1,"EX11254",null,null,null,"Maintenance and repairs of other heritage fixed structures",null,null,{"$f":"'[1]15'!J65","v":0},{"$f":"'[1]15'!L65","v":0},{"$f":"'[1]15'!N65","v":0},{"$f":"'[1]15'!N65","v":0},{"$f":"'[1]15'!Q65","v":0},{"$f":"'[1]15'!Q65","v":0},0,{"$f":"'[1]15'!T65","v":0},{"$f":"'[1]15'!T65","v":0},0,{"$f":"'[1]15'!V65","v":0},{"$f":"'[1]15'!V65","v":0},0]
[5,"EX11255",null,null,null,"South african social security agency payment contractors",null,null,{"$f":"SUM(I67:I71)","v":0},0,0,0,0,0,0,{"$f":"SUM(P67:P71)","v":0},{"$f":"SUM(Q67:Q71)","v":0},0,{"$f":"SUM(S67:S71)","v":0},{"$f":"SUM(T67:T71)","v":0},0,{"$f":"SUM(V67:V71)","v":0}]
[5,"EX112551",null,null,null,"SASSA Admin fees",null,null,{"$f":"'[1]15'!J67","v":0},{"$f":"'[1]15'!L67","v":0},{"$f":"'[1]15'!N67","v":0},{"$f":"'[1]15'!N67","v":0},{"$f":"'[1]15'!Q67","v":0},{"$f":"'[1]15'!Q67","v":0},{"$f":"SUM(N67-M67)","v":0},{"$f":"'[1]15'!T67","v":0},{"$f":"'[1]15'!T67","v":0},{"$f":"SUM(Q67-P67)","v":0},{"$f":"'[1]15'!V67","v":0},{"$f":"'[1]15'!V67","v":0},{"$f":"SUM(T67-S67)","v":0}]
[5,"EX112552",null,null,null,"SASSA Bankcard fees",null,null,{"$f":"'[1]15'!J68","v":0},{"$f":"'[1]15'!L68","v":0},{"$f":"'[1]15'!N68","v":0},{"$f":"'[1]15'!N68","v":0},{"$f":"'[1]15'!Q68","v":0},{"$f":"'[1]15'!Q68","v":0},0,{"$f":"'[1]15'!T68","v":0},{"$f":"'[1]15'!T68","v":0},0,{"$f":"'[1]15'!V68","v":0},{"$f":"'[1]15'!V68","v":0},0]
[5,"EX112553",null,null,null,"SASSA registration fees",null,null,{"$f":"'[1]15'!J69","v":0},{"$f":"'[1]15'!L69","v":0},{"$f":"'[1]15'!N69","v":0},{"$f":"'[1]15'!N69","v":0},{"$f":"'[1]15'!Q69","v":0},{"$f":"'[1]15'!Q69","v":0},0,{"$f":"'[1]15'!T69","v":0},{"$f":"'[1]15'!T69","v":0},0,{"$f":"'[1]15'!V69","v":0},{"$f":"'[1]15'!V69","v":0},0]
[5,"EX112554",null,null,null,"SASSA beneficiary fees",null,null,{"$f":"'[1]15'!J70","v":0},{"$f":"'[1]15'!L70","v":0},{"$f":"'[1]15'!N70","v":0},{"$f":"'[1]15'!N70","v":0},{"$f":"'[1]15'!Q70","v":0},{"$f":"'[1]15'!Q70","v":0},0,{"$f":"'[1]15'!T70","v":0},{"$f":"'[1]15'!T70","v":0},0,{"$f":"'[1]15'!V70","v":0},{"$f":"'[1]15'!V70","v":0},0]
[5,"EX112555",null,null,null,"SASSA help desk fees",null,null,{"$f":"'[1]15'!J71","v":0},{"$f":"'[1]15'!L71","v":0},{"$f":"'[1]15'!N71","v":0},{"$f":"'[1]15'!N71","v":0},{"$f":"'[1]15'!Q71","v":0},{"$f":"'[1]15'!Q71","v":0},0,{"$f":"'[1]15'!T71","v":0},{"$f":"'[1]15'!T71","v":0},0,{"$f":"'[1]15'!V71","v":0},{"$f":"'[1]15'!V71","v":0},0]
[1,"EX11256",null,null,null,"Other",null,null,{"$f":"'[1]15'!J72","v":0},{"$f":"'[1]15'!L72","v":0},{"$f":"'[1]15'!N72","v":0},{"$f":"'[1]15'!N72","v":0},{"$f":"'[1]15'!Q72","v":0},{"$f":"'[1]15'!Q72","v":0},0,{"$f":"'[1]15'!T72","v":0},{"$f":"'[1]15'!T72","v":0},0,{"$f":"'[1]15'!V72","v":0},{"$f":"'[1]15'!V72","v":0},0]
[1,"EX1121",null,null,null,"Agency and support/outsourced services",null,null,{"$f":"'[1]15'!J73","v":0},{"$f":"'[1]15'!L73","v":0},{"$f":"'[1]15'!N73","v":0},{"$f":"'[1]15'!N73","v":0},{"$f":"'[1]15'!Q73","v":0},{"$f":"'[1]15'!Q73","v":0},0,{"$f":"'[1]15'!T73","v":0},{"$f":"'[1]15'!T73","v":0},0,{"$f":"'[1]15'!V73","v":0},{"$f":"'[1]15'!V73","v":0},0]
[5,"EX11211",null,null,null,"     Of Which: Medical assessments",null,null,{"$f":"'[1]15'!J74","v":0},{"$f":"'[1]15'!L74","v":0},{"$f":"'[1]15'!N74","v":0},{"$f":"'[1]15'!N74","v":0},{"$f":"'[1]15'!Q74","v":0},{"$f":"'[1]15'!Q74","v":0},0,{"$f":"'[1]15'!T74","v":0},{"$f":"'[1]15'!T74","v":0},0,{"$f":"'[1]15'!V74","v":0},{"$f":"'[1]15'!V74","v":0},0]
[1,"EX1161",null,null,null,"Entertainment",null,null,{"$f":"'[1]15'!J75","v":0},{"$f":"'[1]15'!L75","v":0},{"$f":"'[1]15'!N75","v":0},{"$f":"'[1]15'!N75","v":0},{"$f":"'[1]15'!Q75","v":0},{"$f":"'[1]15'!Q75","v":0},0,{"$f":"'[1]15'!T75","v":0},{"$f":"'[1]15'!T75","v":0},0,{"$f":"'[1]15'!V75","v":0},{"$f":"'[1]15'!V75","v":0},0]
[1,"EX1166",null,null,null,"Fleet services (including government motor transport)",null,null,{"$f":"'[1]15'!J76","v":0},{"$f":"'[1]15'!L76","v":0},{"$f":"'[1]15'!N76","v":0},{"$f":"'[1]15'!N76","v":0},{"$f":"'[1]15'!Q76","v":0},{"$f":"'[1]15'!Q76","v":0},0,{"$f":"'[1]15'!T76","v":0},{"$f":"'[1]15'!T76","v":0},0,{"$f":"'[1]15'!V76","v":0},{"$f":"'[1]15'!V76","v":0},0]
[1,"EX1167",null,null,null,"Housing",null,null,{"$f":"'[1]15'!J77","v":0},{"$f":"'[1]15'!L77","v":0},{"$f":"'[1]15'!N77","v":0},{"$f":"'[1]15'!N77","v":0},{"$f":"'[1]15'!Q77","v":0},{"$f":"'[1]15'!Q77","v":0},0,{"$f":"'[1]15'!T77","v":0},{"$f":"'[1]15'!T77","v":0},0,{"$f":"'[1]15'!V77","v":0},{"$f":"'[1]15'!V77","v":0},0]
[1,"EX1168",null,null,null,"Inventory: Clothing material and accessories",null,null,{"$f":"'[1]15'!J78","v":0},{"$f":"'[1]15'!L78","v":0},{"$f":"'[1]15'!N78","v":0},{"$f":"'[1]15'!N78","v":0},{"$f":"'[1]15'!Q78","v":0},{"$f":"'[1]15'!Q78","v":0},0,{"$f":"'[1]15'!T78","v":0},{"$f":"'[1]15'!T78","v":0},0,{"$f":"'[1]15'!V78","v":0},{"$f":"'[1]15'!V78","v":0},0]
[1,"EX1169",null,null,null,"Inventory: Farming supplies",null,null,{"$f":"'[1]15'!J79","v":0},{"$f":"'[1]15'!L79","v":0},{"$f":"'[1]15'!N79","v":0},{"$f":"'[1]15'!N79","v":0},{"$f":"'[1]15'!Q79","v":0},{"$f":"'[1]15'!Q79","v":0},0,{"$f":"'[1]15'!T79","v":0},{"$f":"'[1]15'!T79","v":0},0,{"$f":"'[1]15'!V79","v":0},{"$f":"'[1]15'!V79","v":0},0]
[1,"EX1170",null,null,null,"Inventory: Food and food supplies",null,null,{"$f":"'[1]15'!J80","v":0},{"$f":"'[1]15'!L80","v":0},{"$f":"'[1]15'!N80","v":0},{"$f":"'[1]15'!N80","v":0},{"$f":"'[1]15'!Q80","v":0},{"$f":"'[1]15'!Q80","v":0},0,{"$f":"'[1]15'!T80","v":0},{"$f":"'[1]15'!T80","v":0},0,{"$f":"'[1]15'!V80","v":0},{"$f":"'[1]15'!V80","v":0},0]
[1,"EX1171",null,null,null,"Inventory: Fuel, oil and gas",null,null,{"$f":"'[1]15'!J81","v":0},{"$f":"'[1]15'!L81","v":0},{"$f":"'[1]15'!N81","v":0},{"$f":"'[1]15'!N81","v":0},{"$f":"'[1]15'!Q81","v":0},{"$f":"'[1]15'!Q81","v":0},0,{"$f":"'[1]15'!T81","v":0},{"$f":"'[1]15'!T81","v":0},0,{"$f":"'[1]15'!V81","v":0},{"$f":"'[1]15'!V81","v":0},0]
[1,"EX1172",null,null,null,"Inventory: Learner and teacher support material",null,null,{"$f":"'[1]15'!J82","v":0},{"$f":"'[1]15'!L82","v":0},{"$f":"'[1]15'!N82","v":0},{"$f":"'[1]15'!N82","v":0},{"$f":"'[1]15'!Q82","v":0},{"$f":"'[1]15'!Q82","v":0},0,{"$f":"'[1]15'!T82","v":0},{"$f":"'[1]15'!T82","v":0},0,{"$f":"'[1]15'!V82","v":0},{"$f":"'[1]15'!V82","v":0},0]
[1,"EX1126",null,null,null,"Inventory: Materials and supplies",null,null,{"$f":"'[1]15'!J83","v":0},{"$f":"'[1]15'!L83","v":0},{"$f":"'[1]15'!N83","v":0},{"$f":"'[1]15'!N83","v":0},{"$f":"'[1]15'!Q83","v":0},{"$f":"'[1]15'!Q83","v":0},0,{"$f":"'[1]15'!T83","v":0},{"$f":"'[1]15'!T83","v":0},0,{"$f":"'[1]15'!V83","v":0},{"$f":"'[1]15'!V83","v":0},0]
[1,"EX1173",null,null,null,"Inventory: Medical supplies",null,null,{"$f":"'[1]15'!J84","v":0},{"$f":"'[1]15'!L84","v":0},{"$f":"'[1]15'!N84","v":0},{"$f":"'[1]15'!N84","v":0},{"$f":"'[1]15'!Q84","v":0},{"$f":"'[1]15'!Q84","v":0},0,{"$f":"'[1]15'!T84","v":0},{"$f":"'[1]15'!T84","v":0},0,{"$f":"'[1]15'!V84","v":0},{"$f":"'[1]15'!V84","v":0},0]
[1,"EX1174",null,null,null,"Inventory: Medicine",null,null,{"$f":"'[1]15'!J85","v":0},{"$f":"'[1]15'!L85","v":0},{"$f":"'[1]15'!N85","v":0},{"$f":"'[1]15'!N85","v":0},{"$f":"'[1]15'!Q85","v":0},{"$f":"'[1]15'!Q85","v":0},0,{"$f":"'[1]15'!T85","v":0},{"$f":"'[1]15'!T85","v":0},0,{"$f":"'[1]15'!V85","v":0},{"$f":"'[1]15'!V85","v":0},0]
[1,"EX1175",null,null,null,"Medsas inventory interface",null,null,{"$f":"'[1]15'!J86","v":0},{"$f":"'[1]15'!L86","v":0},{"$f":"'[1]15'!N86","v":0},{"$f":"'[1]15'!N86","v":0},{"$f":"'[1]15'!Q86","v":0},{"$f":"'[1]15'!Q86","v":0},0,{"$f":"'[1]15'!T86","v":0},{"$f":"'[1]15'!T86","v":0},0,{"$f":"'[1]15'!V86","v":0},{"$f":"'[1]15'!V86","v":0},0]
[1,"EX1176",null,null,null,"Inventory: Other supplies",null,null,{"$f":"'[1]15'!J87","v":0},{"$f":"'[1]15'!L87","v":0},{"$f":"'[1]15'!N87","v":0},{"$f":"'[1]15'!N87","v":0},{"$f":"'[1]15'!Q87","v":0},{"$f":"'[1]15'!Q87","v":0},0,{"$f":"'[1]15'!T87","v":0},{"$f":"'[1]15'!T87","v":0},0,{"$f":"'[1]15'!V87","v":0},{"$f":"'[1]15'!V87","v":0},0]
[1,"EX1177",null,null,null,"Consumable supplies",null,null,{"$f":"'[1]15'!J88","v":0},{"$f":"'[1]15'!L88","v":0},{"$f":"'[1]15'!N88","v":0},{"$f":"'[1]15'!N88","v":0},{"$f":"'[1]15'!Q88","v":0},{"$f":"'[1]15'!Q88","v":0},0,{"$f":"'[1]15'!T88","v":0},{"$f":"'[1]15'!T88","v":0},0,{"$f":"'[1]15'!V88","v":0},{"$f":"'[1]15'!V88","v":0},0]
[1,"EX1144",null,null,null,"Consumables: Stationery, printing and office supplies",null,null,{"$f":"'[1]15'!J89","v":0},{"$f":"'[1]15'!L89","v":0},{"$f":"'[1]15'!N89","v":0},{"$f":"'[1]15'!N89","v":0},{"$f":"'[1]15'!Q89","v":0},{"$f":"'[1]15'!Q89","v":0},0,{"$f":"'[1]15'!T89","v":0},{"$f":"'[1]15'!T89","v":0},0,{"$f":"'[1]15'!V89","v":0},{"$f":"'[1]15'!V89","v":0},0]
[1,"EX1127",null,null,null,"Operating leases",null,null,{"$f":"'[1]15'!J90","v":0},{"$f":"'[1]15'!L90","v":0},{"$f":"'[1]15'!N90","v":0},{"$f":"'[1]15'!N90","v":0},{"$f":"'[1]15'!Q90","v":0},{"$f":"'[1]15'!Q90","v":0},0,{"$f":"'[1]15'!T90","v":0},{"$f":"'[1]15'!T90","v":0},0,{"$f":"'[1]15'!V90","v":0},{"$f":"'[1]15'!V90","v":0},0]
[1,"EX1178",null,null,null,"Rental and hiring",null,null,{"$f":"'[1]15'!J91","v":0},{"$f":"'[1]15'!L91","v":0},{"$f":"'[1]15'!N91","v":0},{"$f":"'[1]15'!N91","v":0},{"$f":"'[1]15'!Q91","v":0},{"$f":"'[1]15'!Q91","v":0},0,{"$f":"'[1]15'!T91","v":0},{"$f":"'[1]15'!T91","v":0},0,{"$f":"'[1]15'!V91","v":0},{"$f":"'[1]15'!V91","v":0},0]
[1,"EX1145",null,null,null,"Property payments",null,null,{"$f":"'[1]15'!J92","v":0},{"$f":"'[1]15'!L92","v":0},{"$f":"'[1]15'!N92","v":0},{"$f":"'[1]15'!N92","v":0},{"$f":"'[1]15'!Q92","v":0},{"$f":"'[1]15'!Q92","v":0},0,{"$f":"'[1]15'!T92","v":0},{"$f":"'[1]15'!T92","v":0},0,{"$f":"'[1]15'!V92","v":0},{"$f":"'[1]15'!V92","v":0},0]
[1,"EX1179",null,null,null,"Transport provided: Internal activities",null,null,{"$f":"'[1]15'!J93","v":0},{"$f":"'[1]15'!L93","v":0},{"$f":"'[1]15'!N93","v":0},{"$f":"'[1]15'!N93","v":0},{"$f":"'[1]15'!Q93","v":0},{"$f":"'[1]15'!Q93","v":0},0,{"$f":"'[1]15'!T93","v":0},{"$f":"'[1]15'!T93","v":0},0,{"$f":"'[1]15'!V93","v":0},{"$f":"'[1]15'!V93","v":0},0]
[1,"EX1131",null,null,null,"Travel and subsistence",null,null,{"$f":"'[1]15'!J94","v":0},{"$f":"'[1]15'!L94","v":0},{"$f":"'[1]15'!N94","v":0},{"$f":"'[1]15'!N94","v":0},{"$f":"'[1]15'!Q94","v":0},{"$f":"'[1]15'!Q94","v":0},0,{"$f":"'[1]15'!T94","v":0},{"$f":"'[1]15'!T94","v":0},0,{"$f":"'[1]15'!V94","v":0},{"$f":"'[1]15'!V94","v":0},0]
[1,"EX1130",null,null,null,"Training and development",null,null,{"$f":"'[1]15'!J95","v":0},{"$f":"'[1]15'!L95","v":0},{"$f":"'[1]15'!N95","v":0},{"$f":"'[1]15'!N95","v":0},{"$f":"'[1]15'!Q95","v":0},{"$f":"'[1]15'!Q95","v":0},0,{"$f":"'[1]15'!T95","v":0},{"$f":"'[1]15'!T95","v":0},0,{"$f":"'[1]15'!V95","v":0},{"$f":"'[1]15'!V95","v":0},0]
[1,"EX1132",null,null,null,"Operating payments",null,null,{"$f":"'[1]15'!J96","v":0},{"$f":"'[1]15'!L96","v":0},{"$f":"'[1]15'!N96","v":0},{"$f":"'[1]15'!N96","v":0},{"$f":"'[1]15'!Q96","v":0},{"$f":"'[1]15'!Q96","v":0},0,{"$f":"'[1]15'!T96","v":0},{"$f":"'[1]15'!T96","v":0},0,{"$f":"'[1]15'!V96","v":0},{"$f":"'[1]15'!V96","v":0},0]
[1,"EX1146",null,null,null,"Venues and facilities",null,null,{"$f":"'[1]15'!J97","v":0},{"$f":"'[1]15'!L97","v":0},{"$f":"'[1]15'!N97","v":0},{"$f":"'[1]15'!N97","v":0},{"$f":"'[1]15'!Q97","v":0},{"$f":"'[1]15'!Q97","v":0},0,{"$f":"'[1]15'!T97","v":0},{"$f":"'[1]15'!T97","v":0},0,{"$f":"'[1]15'!V97","v":0},{"$f":"'[1]15'!V97","v":0},0]
[1,"EX113",null,null,null,"Depreciation",null,null,{"$f":"'[1]15'!J98","v":0},{"$f":"'[1]15'!L98","v":0},{"$f":"'[1]15'!N98","v":0},{"$f":"'[1]15'!N98","v":0},{"$f":"'[1]15'!Q98","v":0},{"$f":"'[1]15'!Q98","v":0},0,{"$f":"'[1]15'!T98","v":0},{"$f":"'[1]15'!T98","v":0},0,{"$f":"'[1]15'!V98","v":0},{"$f":"'[1]15'!V98","v":0},0]
[1,"EX114",null,null,null,"Losses from",null,null,{"$f":"SUM(I100:I101,I104)","v":0},0,0,0,0,0,{"$f":"SUM(N99-M99)","v":0},{"$f":"SUM(P100:P101,P104)","v":0},{"$f":"SUM(Q100:Q101,Q104)","v":0},{"$f":"SUM(Q99-P99)","v":0},{"$f":"SUM(S100:S101,S104)","v":0},{"$f":"SUM(T100:T101,T104)","v":0},{"$f":"SUM(T99-S99)","v":0},{"$f":"SUM(V100:V101,V104)","v":0}]
[1,"EX1141",null,null,null,"Sale of fixed assets",null,null,{"$f":"'[1]15'!J100","v":0},{"$f":"'[1]15'!L100","v":0},{"$f":"'[1]15'!N100","v":0},{"$f":"'[1]15'!N100","v":0},{"$f":"'[1]15'!Q100","v":0},{"$f":"'[1]15'!Q100","v":0},0,{"$f":"'[1]15'!T100","v":0},{"$f":"'[1]15'!T100","v":0},0,{"$f":"'[1]15'!V100","v":0},{"$f":"'[1]15'!V100","v":0},0]
[1,"EX1142",null,null,null,"Impairments and adjustments to fair value",null,null,{"$f":"SUM(I102:I103)","v":0},0,0,0,0,0,0,{"$f":"SUM(P102:P103)","v":0},{"$f":"SUM(Q102:Q103)","v":0},0,{"$f":"SUM(S102:S103)","v":0},{"$f":"SUM(T102:T103)","v":0},0,{"$f":"SUM(V102:V103)","v":0}]
[1,"EX11421",null,null,null,"Adjustments to fair value of assets",null,null,{"$f":"'[1]15'!J102","v":0},{"$f":"'[1]15'!L102","v":0},{"$f":"'[1]15'!N102","v":0},{"$f":"'[1]15'!N102","v":0},{"$f":"'[1]15'!Q102","v":0},{"$f":"'[1]15'!Q102","v":0},0,{"$f":"'[1]15'!T102","v":0},{"$f":"'[1]15'!T102","v":0},0,{"$f":"'[1]15'!V102","v":0},{"$f":"'[1]15'!V102","v":0},0]
[1,"EX11422",null,null,null,"Impairments to assets",null,null,{"$f":"'[1]15'!J103","v":0},{"$f":"'[1]15'!L103","v":0},{"$f":"'[1]15'!N103","v":0},{"$f":"'[1]15'!N103","v":0},{"$f":"'[1]15'!Q103","v":0},{"$f":"'[1]15'!Q103","v":0},0,{"$f":"'[1]15'!T103","v":0},{"$f":"'[1]15'!T103","v":0},0,{"$f":"'[1]15'!V103","v":0},{"$f":"'[1]15'!V103","v":0},0]
[1,"EX1143",null,null,null,"Other",null,null,{"$f":"'[1]15'!J104","v":0},{"$f":"'[1]15'!L104","v":0},{"$f":"'[1]15'!N104","v":0},{"$f":"'[1]15'!N104","v":0},{"$f":"'[1]15'!Q104","v":0},{"$f":"'[1]15'!Q104","v":0},0,{"$f":"'[1]15'!T104","v":0},{"$f":"'[1]15'!T104","v":0},0,{"$f":"'[1]15'!V104","v":0},{"$f":"'[1]15'!V104","v":0},0]
[1,"EX115",null,null,null,"Interest, dividends and rent on land",null,null,{"$f":"SUM(I106:I108)","v":0},0,0,0,0,0,0,{"$f":"SUM(P106:P108)","v":0},{"$f":"SUM(Q106:Q108)","v":0},0,{"$f":"SUM(S106:S108)","v":0},{"$f":"SUM(T106:T108)","v":0},0,{"$f":"SUM(V106:V108)","v":0}]
[1,"EX1151",null,null,null,"Interest",null,null,{"$f":"'[1]15'!J106","v":0},{"$f":"'[1]15'!L106","v":0},{"$f":"'[1]15'!N106","v":0},{"$f":"'[1]15'!N106","v":0},{"$f":"'[1]15'!Q106","v":0},{"$f":"'[1]15'!Q106","v":0},0,{"$f":"'[1]15'!T106","v":0},{"$f":"'[1]15'!T106","v":0},0,{"$f":"'[1]15'!V106","v":0},{"$f":"'[1]15'!V106","v":0},0]
[1,"EX1152",null,null,null,"Dividends",null,null,{"$f":"'[1]15'!J107","v":0},{"$f":"'[1]15'!L107","v":0},{"$f":"'[1]15'!N107","v":0},{"$f":"'[1]15'!N107","v":0},{"$f":"'[1]15'!Q107","v":0},{"$f":"'[1]15'!Q107","v":0},0,{"$f":"'[1]15'!T107","v":0},{"$f":"'[1]15'!T107","v":0},0,{"$f":"'[1]15'!V107","v":0},{"$f":"'[1]15'!V107","v":0},0]
[1,"EX1153",null,null,null,"Rent on land",null,null,{"$f":"'[1]15'!J108","v":0},{"$f":"'[1]15'!L108","v":0},{"$f":"'[1]15'!N108","v":0},{"$f":"'[1]15'!N108","v":0},{"$f":"'[1]15'!Q108","v":0},{"$f":"'[1]15'!Q108","v":0},0,{"$f":"'[1]15'!T108","v":0},{"$f":"'[1]15'!T108","v":0},0,{"$f":"'[1]15'!V108","v":0},{"$f":"'[1]15'!V108","v":0},0]
[1,"EX12",null,null,null,"Transfers and subsidies",null,null,{"$f":"SUM(I110,I121,I132:I135)","v":0},0,0,0,0,0,0,{"$f":"SUM(P110,P121,P132:P135)","v":0},{"$f":"SUM(Q110,Q121,Q132:Q135)","v":0},0,{"$f":"SUM(S110,S121,S132:S135)","v":0},{"$f":"SUM(T110,T121,T132:T135)","v":0},0,{"$f":"SUM(V110,V121,V132:V135)","v":0}]
[2,"EX121",null,null,null,"Employer Grant (SETAs only)",null,null,{"$f":"SUM(I111,I117,I120)","v":0},0,0,0,0,0,0,{"$f":"SUM(P111,P117,P120)","v":0},{"$f":"SUM(Q111,Q117,Q120)","v":0},0,{"$f":"SUM(S111,S117,S120)","v":0},{"$f":"SUM(T111,T117,T120)","v":0},0,{"$f":"SUM(V111,V117,V120)","v":0}]
[1,"EX122",null,null,null,"Other government units",null,null,{"$f":"SUM(I112:I116)","v":0},0,0,0,0,0,0,{"$f":"SUM(P112:P116)","v":0},{"$f":"SUM(Q112:Q116)","v":0},0,{"$f":"SUM(S112:S116)","v":0},{"$f":"SUM(T112:T116)","v":0},0,{"$f":"SUM(V112:V116)","v":0}]
[1,"EX1221",null,null,null,"National government",null,null,{"$f":"'[1]15'!J112","v":0},{"$f":"'[1]15'!L112","v":0},{"$f":"'[1]15'!N112","v":0},{"$f":"'[1]15'!N112","v":0},{"$f":"'[1]15'!Q112","v":0},{"$f":"'[1]15'!Q112","v":0},0,{"$f":"'[1]15'!T112","v":0},{"$f":"'[1]15'!T112","v":0},0,{"$f":"'[1]15'!V112","v":0},{"$f":"'[1]15'!V112","v":0},0]
[1,"EX1222",null,null,null,"Departmental agencies and accounts",null,null,{"$f":"'[1]15'!J113","v":0},{"$f":"'[1]15'!L113","v":0},{"$f":"'[1]15'!N113","v":0},{"$f":"'[1]15'!N113","v":0},{"$f":"'[1]15'!Q113","v":0},{"$f":"'[1]15'!Q113","v":0},0,{"$f":"'[1]15'!T113","v":0},{"$f":"'[1]15'!T113","v":0},0,{"$f":"'[1]15'!V113","v":0},{"$f":"'[1]15'!V113","v":0},0]
[1,"EX1223",null,null,null,"Provinces",null,null,{"$f":"'[1]15'!J114","v":0},{"$f":"'[1]15'!L114","v":0},{"$f":"'[1]15'!N114","v":0},{"$f":"'[1]15'!N114","v":0},{"$f":"'[1]15'!Q114","v":0},{"$f":"'[1]15'!Q114","v":0},0,{"$f":"'[1]15'!T114","v":0},{"$f":"'[1]15'!T114","v":0},0,{"$f":"'[1]15'!V114","v":0},{"$f":"'[1]15'!V114","v":0},0]
[1,"EX1224",null,null,null,"Municipalities",null,null,{"$f":"'[1]15'!J115","v":0},{"$f":"'[1]15'!L115","v":0},{"$f":"'[1]15'!N115","v":0},{"$f":"'[1]15'!N115","v":0},{"$f":"'[1]15'!Q115","v":0},{"$f":"'[1]15'!Q115","v":0},0,{"$f":"'[1]15'!T115","v":0},{"$f":"'[1]15'!T115","v":0},0,{"$f":"'[1]15'!V115","v":0},{"$f":"'[1]15'!V115","v":0},0]
[2,"EX1225",null,null,null,"National Skills Fund",null,null,{"$f":"'[1]15'!J116","v":0},{"$f":"'[1]15'!L116","v":0},{"$f":"'[1]15'!N116","v":0},{"$f":"'[1]15'!N116","v":0},{"$f":"'[1]15'!Q116","v":0},{"$f":"'[1]15'!Q116","v":0},0,{"$f":"'[1]15'!T116","v":0},{"$f":"'[1]15'!T116","v":0},0,{"$f":"'[1]15'!V116","v":0},{"$f":"'[1]15'!V116","v":0},0]
[1,"EX123",null,null,null,"Public corporations and private enterprises (subsidies and other transfers)",null,null,{"$f":"SUM(I118:I119)","v":0},0,0,0,0,0,0,{"$f":"SUM(P118:P119)","v":0},{"$f":"SUM(Q118:Q119)","v":0},0,{"$f":"SUM(S118:S119)","v":0},{"$f":"SUM(T118:T119)","v":0},0,{"$f":"SUM(V118:V119)","v":0}]
[1,"EX1231",null,null,null,"Public corporations",null,null,{"$f":"'[1]15'!J118","v":0},{"$f":"'[1]15'!L118","v":0},{"$f":"'[1]15'!N118","v":0},{"$f":"'[1]15'!N118","v":0},{"$f":"'[1]15'!Q118","v":0},{"$f":"'[1]15'!Q118","v":0},0,{"$f":"'[1]15'!T118","v":0},{"$f":"'[1]15'!T118","v":0},0,{"$f":"'[1]15'!V118","v":0},{"$f":"'[1]15'!V118","v":0},0]
[1,"EX1232",null,null,null,"Private enterprises",null,null,{"$f":"'[1]15'!J119","v":0},{"$f":"'[1]15'!L119","v":0},{"$f":"'[1]15'!N119","v":0},{"$f":"'[1]15'!N119","v":0},{"$f":"'[1]15'!Q119","v":0},{"$f":"'[1]15'!Q119","v":0},0,{"$f":"'[1]15'!T119","v":0},{"$f":"'[1]15'!T119","v":0},0,{"$f":"'[1]15'!V119","v":0},{"$f":"'[1]15'!V119","v":0},0]
[2,"EX124",null,null,null,"Households and non government units",null,null,{"$f":"'[1]15'!J120","v":0},{"$f":"'[1]15'!L120","v":0},{"$f":"'[1]15'!N120","v":0},{"$f":"'[1]15'!N120","v":0},{"$f":"'[1]15'!Q120","v":0},{"$f":"'[1]15'!Q120","v":0},0,{"$f":"'[1]15'!T120","v":0},{"$f":"'[1]15'!T120","v":0},0,{"$f":"'[1]15'!V120","v":0},{"$f":"'[1]15'!V120","v":0},0]
[2,"EX125",null,null,null,"Discretionary Grant (SETAs only)",null,null,{"$f":"SUM(I122,I128,I131)","v":0},0,0,0,0,0,0,{"$f":"SUM(P122,P128,P131)","v":0},{"$f":"SUM(Q122,Q128,Q131)","v":0},0,{"$f":"SUM(S122,S128,S131)","v":0},{"$f":"SUM(T122,T128,T131)","v":0},0,{"$f":"SUM(V122,V128,V131)","v":0}]
[2,"EX126",null,null,null,"Other government units",null,null,{"$f":"SUM(I123:I127)","v":0},0,0,0,0,0,0,{"$f":"SUM(P123:P127)","v":0},{"$f":"SUM(Q123:Q127)","v":0},0,{"$f":"SUM(S123:S127)","v":0},{"$f":"SUM(T123:T127)","v":0},0,{"$f":"SUM(V123:V127)","v":0}]
[2,"EX1261",null,null,null,"National government",null,null,{"$f":"'[1]15'!J123","v":0},{"$f":"'[1]15'!L123","v":0},{"$f":"'[1]15'!N123","v":0},{"$f":"'[1]15'!N123","v":0},{"$f":"'[1]15'!Q123","v":0},{"$f":"'[1]15'!Q123","v":0},0,{"$f":"'[1]15'!T123","v":0},{"$f":"'[1]15'!T123","v":0},0,{"$f":"'[1]15'!V123","v":0},{"$f":"'[1]15'!V123","v":0},0]
[2,"EX1262",null,null,null,"Departmental agencies and accounts",null,null,{"$f":"'[1]15'!J124","v":0},{"$f":"'[1]15'!L124","v":0},{"$f":"'[1]15'!N124","v":0},{"$f":"'[1]15'!N124","v":0},{"$f":"'[1]15'!Q124","v":0},{"$f":"'[1]15'!Q124","v":0},0,{"$f":"'[1]15'!T124","v":0},{"$f":"'[1]15'!T124","v":0},0,{"$f":"'[1]15'!V124","v":0},{"$f":"'[1]15'!V124","v":0},0]
[2,"EX1263",null,null,null,"Provinces",null,null,{"$f":"'[1]15'!J125","v":0},{"$f":"'[1]15'!L125","v":0},{"$f":"'[1]15'!N125","v":0},{"$f":"'[1]15'!N125","v":0},{"$f":"'[1]15'!Q125","v":0},{"$f":"'[1]15'!Q125","v":0},0,{"$f":"'[1]15'!T125","v":0},{"$f":"'[1]15'!T125","v":0},0,{"$f":"'[1]15'!V125","v":0},{"$f":"'[1]15'!V125","v":0},0]
[2,"EX1264",null,null,null,"Municipalities",null,null,{"$f":"'[1]15'!J126","v":0},{"$f":"'[1]15'!L126","v":0},{"$f":"'[1]15'!N126","v":0},{"$f":"'[1]15'!N126","v":0},{"$f":"'[1]15'!Q126","v":0},{"$f":"'[1]15'!Q126","v":0},0,{"$f":"'[1]15'!T126","v":0},{"$f":"'[1]15'!T126","v":0},0,{"$f":"'[1]15'!V126","v":0},{"$f":"'[1]15'!V126","v":0},0]
[2,"EX1265",null,null,null,"National Skills Fund",null,null,{"$f":"'[1]15'!J127","v":0},{"$f":"'[1]15'!L127","v":0},{"$f":"'[1]15'!N127","v":0},{"$f":"'[1]15'!N127","v":0},{"$f":"'[1]15'!Q127","v":0},{"$f":"'[1]15'!Q127","v":0},0,{"$f":"'[1]15'!T127","v":0},{"$f":"'[1]15'!T127","v":0},0,{"$f":"'[1]15'!V127","v":0},{"$f":"'[1]15'!V127","v":0},0]
[2,"EX127",null,null,null,"Public corporations and private enterprises (subsidies and other transfers)",null,null,{"$f":"SUM(I129:I130)","v":0},0,0,0,0,0,0,{"$f":"SUM(P129:P130)","v":0},{"$f":"SUM(Q129:Q130)","v":0},0,{"$f":"SUM(S129:S130)","v":0},{"$f":"SUM(T129:T130)","v":0},0,{"$f":"SUM(V129:V130)","v":0}]
[2,"EX1271",null,null,null,"Public corporations",null,null,{"$f":"'[1]15'!J129","v":0},{"$f":"'[1]15'!L129","v":0},{"$f":"'[1]15'!N129","v":0},{"$f":"'[1]15'!N129","v":0},{"$f":"'[1]15'!Q129","v":0},{"$f":"'[1]15'!Q129","v":0},0,{"$f":"'[1]15'!T129","v":0},{"$f":"'[1]15'!T129","v":0},0,{"$f":"'[1]15'!V129","v":0},{"$f":"'[1]15'!V129","v":0},{"$f":"SUM(T129-S129)","v":0}]
[2,"EX1272",null,null,null,"Private enterprises",null,null,{"$f":"'[1]15'!J130","v":0},{"$f":"'[1]15'!L130","v":0},{"$f":"'[1]15'!N130","v":0},{"$f":"'[1]15'!N130","v":0},{"$f":"'[1]15'!Q130","v":0},{"$f":"'[1]15'!Q130","v":0},0,{"$f":"'[1]15'!T130","v":0},{"$f":"'[1]15'!T130","v":0},0,{"$f":"'[1]15'!V130","v":0},{"$f":"'[1]15'!V130","v":0},0]
[2,"EX128",null,null,null,"Households and non government units",null,null,{"$f":"'[1]15'!J131","v":0},{"$f":"'[1]15'!L131","v":0},{"$f":"'[1]15'!N131","v":0},{"$f":"'[1]15'!N131","v":0},{"$f":"'[1]15'!Q131","v":0},{"$f":"'[1]15'!Q131","v":0},0,{"$f":"'[1]15'!T131","v":0},{"$f":"'[1]15'!T131","v":0},0,{"$f":"'[1]15'!V131","v":0},{"$f":"'[1]15'!V131","v":0},0]
[1,"EX129",null,null,null,"Higher education institutions",null,null,{"$f":"'[1]15'!J132","v":0},{"$f":"'[1]15'!L132","v":0},{"$f":"'[1]15'!N132","v":0},{"$f":"'[1]15'!N132","v":0},{"$f":"'[1]15'!Q132","v":0},{"$f":"'[1]15'!Q132","v":0},0,{"$f":"'[1]15'!T132","v":0},{"$f":"'[1]15'!T132","v":0},0,{"$f":"'[1]15'!V132","v":0},{"$f":"'[1]15'!V132","v":0},0]
[1,"EX130",null,null,null,"Foreign governments and international organisations ",null,null,{"$f":"'[1]15'!J133","v":0},{"$f":"'[1]15'!L133","v":0},{"$f":"'[1]15'!N133","v":0},{"$f":"'[1]15'!N133","v":0},{"$f":"'[1]15'!Q133","v":0},{"$f":"'[1]15'!Q133","v":0},0,{"$f":"'[1]15'!T133","v":0},{"$f":"'[1]15'!T133","v":0},0,{"$f":"'[1]15'!V133","v":0},{"$f":"'[1]15'!V133","v":0},0]
[1,"EX131",null,null,null,"Non-profit institutions",null,null,{"$f":"'[1]15'!J134","v":0},{"$f":"'[1]15'!L134","v":0},{"$f":"'[1]15'!N134","v":0},{"$f":"'[1]15'!N134","v":0},{"$f":"'[1]15'!Q134","v":0},{"$f":"'[1]15'!Q134","v":0},0,{"$f":"'[1]15'!T134","v":0},{"$f":"'[1]15'!T134","v":0},0,{"$f":"'[1]15'!V134","v":0},{"$f":"'[1]15'!V134","v":0},0]
[1,"EX132",null,null,null,"Households",null,null,{"$f":"SUM(I136:I137)","v":0},0,0,0,0,0,{"$f":"SUM(N135-M135)","v":0},{"$f":"SUM(P136:P137)","v":0},{"$f":"SUM(Q136:Q137)","v":0},{"$f":"SUM(Q135-P135)","v":0},{"$f":"SUM(S136:S137)","v":0},{"$f":"SUM(T136:T137)","v":0},{"$f":"SUM(T135-S135)","v":0},{"$f":"SUM(V136:V137)","v":0}]
[1,"EX1301",null,null,null,"Social benefits ",null,null,{"$f":"'[1]15'!J136","v":0},{"$f":"'[1]15'!L136","v":0},{"$f":"'[1]15'!N136","v":0},{"$f":"'[1]15'!N136","v":0},{"$f":"'[1]15'!Q136","v":0},{"$f":"'[1]15'!Q136","v":0},0,{"$f":"'[1]15'!T136","v":0},{"$f":"'[1]15'!T136","v":0},0,{"$f":"'[1]15'!V136","v":0},{"$f":"'[1]15'!V136","v":0},0]
[1,"EX1302",null,null,null,"Other transfers to households",null,null,{"$f":"'[1]15'!J137","v":0},{"$f":"'[1]15'!L137","v":0},{"$f":"'[1]15'!N137","v":0},{"$f":"'[1]15'!N137","v":0},{"$f":"'[1]15'!Q137","v":0},{"$f":"'[1]15'!Q137","v":0},0,{"$f":"'[1]15'!T137","v":0},{"$f":"'[1]15'!T137","v":0},0,{"$f":"'[1]15'!V137","v":0},{"$f":"'[1]15'!V137","v":0},0]
[1,"EX13",null,null,null,"Tax payment",null,null,{"$f":"'[1]15'!J138","v":0},{"$f":"'[1]15'!L138","v":0},{"$f":"'[1]15'!N138","v":0},{"$f":"'[1]15'!N138","v":0},{"$f":"'[1]15'!Q138","v":0},{"$f":"'[1]15'!Q138","v":0},0,{"$f":"'[1]15'!T138","v":0},{"$f":"'[1]15'!T138","v":0},0,{"$f":"'[1]15'!V138","v":0},{"$f":"'[1]15'!V138","v":0},0]
[1,"EX14",null,null,null,"Outside shareholders Interest",null,null,{"$f":"'[1]15'!J139","v":0},{"$f":"'[1]15'!L139","v":0},{"$f":"'[1]15'!N139","v":0},{"$f":"'[1]15'!N139","v":0},{"$f":"'[1]15'!Q139","v":0},{"$f":"'[1]15'!Q139","v":0},0,{"$f":"'[1]15'!T139","v":0},{"$f":"'[1]15'!T139","v":0},0,{"$f":"'[1]15'!V139","v":0},{"$f":"'[1]15'!V139","v":0},0]
[1,"EX15",null,null,null,"Total Expenditure",null,null,{"$f":"SUM(I39,I109,I138:I139)","v":0},0,0,0,0,0,0,{"$f":"SUM(P39,P109,P138:P139)","v":0},{"$f":"SUM(Q39,Q109,Q138:Q139)","v":0},0,{"$f":"SUM(S39,S109,S138:S139)","v":0},{"$f":"SUM(T39,T109,T138:T139)","v":0},0,{"$f":"SUM(V39,V109,V138:V139)","v":0}]
[1]
[1,null,null,null,null,"Objective less Expenditure",null,null,{"$f":"ROUND(IF(I37-I140>0,IF(I37-I140<1,0,I37-I140),I37-I140),0)","v":0},0,null,0,0,0,{"$f":"ROUND(IF(O37-O140>0,IF(O37-O140<1,0,O37-O140),O37-O140),0)","v":0},0,0,0,0,0,0,0]
[1]

{"sheet":"Expend summary","index":20,"n_rows":143,"n_cols":24,"rows_kept":143,"cut":false,"hidden":false,"merged":[[15,12,15,14],[15,15,15,17],[15,18,15,20],[15,10,15,11]]}
[]
[]
[]
[]
[]
[null,null,null,null,null,"PE No",{"$f":"Settings!$O$2","v":"PE126"}]
[null,null,null,null,null,"Entity name",{"$f":"Settings!$E$2","v":"South African Revenue Service"}]
[]
[]
["ItemCat","Item code","Hide/unhide"]
[1]
[1]
[1]
[1]
[1,null,null,null,null,null,null,null,null,null,null,null,null,null,null,null,null,null,null,null,null,{"$f":"IF(V140<T140/2,\"Complete the outer year in the Objective sheets\",\"\")","v":"Complete the outer year in the Objective sheets"}]
[1,null,null,null,null,null,null,null,{"$f":"MyYearM3","v":"2022/23"},{"$f":"MyYearM2","v":"2023/24"},{"$f":"MyYearM1","v":"2024/25"},null,{"$f":"MyYear0","v":"2025/26"},null,null,{"$f":"MyYearP1","v":"2026/27"},null,null,{"$f":"MyYearP2","v":"2027/28"},null,null,{"$f":"MyYearP3","v":"2028/29"}]
[1,null,null,null,null,"",null,null,"Audited\noutcome",{"$f":"Hist_year2RestatedAudited","v":"Audited\noutcome"},{"$f":"Hist_year1Budget","v":"Budget"},{"$f":"Hist_year1Audited","v":"Audited\noutcome"},{"$f":"Cur_YearBudgEst","v":"Budget\nestimate"},{"$f":"Cur_YearApprovedBudg","v":"Approved budget"},{"$f":"Cur_YearChangeFrRevBudg","v":"Changes from \nbudget estimate"},{"$f":"MTEF1BudgEst","v":"Budget\nestimate"},{"$f":"MTEF1RevBudgEst","v":"Revised\nbudget\nestimate"},{"$f":"MTEF1_ChangeFrBudgEst","v":"Changes from budget estimate"},{"$f":"MTEF2BudgEst","v":"Budget\nestimate"},{"$f":"MTEF2RevBudgEst","v":"Revised\nbudget\nestimate"},{"$f":"MTEF2_ChangeFrBudgEst","v":"Changes from budget estimate"},{"$f":"MTEF3PlanBudgetEst","v":"Planning\nbudget \nestimate"}]
[1]
[1,null,null,null,null,"Rand thousand"]
[1,null,null,null,null,"Objective/Activity"]
[1,null,null,null,null,{"$f":"Admin!F37","v":"Administration"},null,null,{"$f":"Admin!I37","v":3251758.1058299998},{"$f":"Admin!J37","v":2948677.6081000003},{"$f":"Admin!K37","v":3392951.2575703519},{"$f":"Admin!L37","v":3392951.2575703519},{"$f":"Admin!M37","v":3198111.7300132173},{"$f":"Admin!N37","v":3198111.7300132173},{"$f":"Admin!O37","v":0},{"$f":"Admin!P37","v":3288268.7993594953},{"$f":"Admin!Q37","v":3288268.7993594953},{"$f":"Admin!R37","v":0},{"$f":"Admin!S37","v":3388249.6977805565},{"$f":"Admin!T37","v":3388249.6977805565},{"$f":"Admin!U37","v":0},{"$f":"Admin!V37","v":0}]
[1,null,null,null,null,{"$f":"'2'!F37","v":"Deputy commissioner: Taxpayer engagement and operations "},null,null,{"$f":"'2'!I37","v":6435782.4652199997},{"$f":"'2'!J37","v":7331552.6430699993},{"$f":"'2'!K37","v":7266002.6030899975},{"$f":"'2'!L37","v":7266002.6030899975},{"$f":"'2'!M37","v":7698741.6299284389},{"$f":"'2'!N37","v":7698741.6299284389},{"$f":"'2'!O37","v":0},{"$f":"'2'!P37","v":8069993.9109454416},{"$f":"'2'!Q37","v":8069993.9109454416},{"$f":"'2'!R37","v":0},{"$f":"'2'!S37","v":8463747.2865662836},{"$f":"'2'!T37","v":8463747.2865662836},{"$f":"'2'!U37","v":0},{"$f":"'2'!V37","v":0}]
[1,null,null,null,null,{"$f":"'3'!F37","v":"Deputy commissioner: Strategy, enabling and modernisation"},null,null,{"$f":"'3'!I37","v":2241248.3125},{"$f":"'3'!J37","v":2547801.5585699994},{"$f":"'3'!K37","v":2749763.8667199998},{"$f":"'3'!L37","v":2749763.8667199998},{"$f":"'3'!M37","v":2950376.3035165197},{"$f":"'3'!N37","v":2950376.3035165197},{"$f":"'3'!O37","v":0},{"$f":"'3'!P37","v":3175778.7227006108},{"$f":"'3'!Q37","v":3175778.7227006108},{"$f":"'3'!R37","v":0},{"$f":"'3'!S37","v":3420158.0628184988},{"$f":"'3'!T37","v":3420158.0628184988},{"$f":"'3'!U37","v":0},{"$f":"'3'!V37","v":0}]
[1,null,null,null,null,{"$f":"'4'!F37","v":"Office of the Tax Ombud "},null,null,{"$f":"'4'!I37","v":48073.455640000007},{"$f":"'4'!J37","v":51576.357839999997},{"$f":"'4'!K37","v":57733.000909999995},{"$f":"'4'!L37","v":57733.000909999995},{"$f":"'4'!M37","v":55940.631806631995},{"$f":"'4'!N37","v":55940.631806631995},{"$f":"'4'!O37","v":0},{"$f":"'4'!P37","v":58503.890162754855},{"$f":"'4'!Q37","v":58503.890162754855},{"$f":"'4'!R37","v":0},{"$f":"'4'!S37","v":61150.638083940947},{"$f":"'4'!T37","v":61150.638083940947},{"$f":"'4'!U37","v":0},{"$f":"'4'!V37","v":0}]
[1,null,null,null,null,{"$f":"'5'!F37","v":"Projects"},null,null,{"$f":"'5'!I37","v":13605.29873},{"$f":"'5'!J37","v":197772.06507999997},{"$f":"'5'!K37","v":745458.19707000011},{"$f":"'5'!L37","v":745458.19707000011},{"$f":"'5'!M37","v":1661410.9531052033},{"$f":"'5'!N37","v":1661410.9531052033},{"$f":"'5'!O37","v":0},{"$f":"'5'!P37","v":914618.91586638126},{"$f":"'5'!Q37","v":914618.91586638126},{"$f":"'5'!R37","v":0},{"$f":"'5'!S37","v":951230.99384235626},{"$f":"'5'!T37","v":951230.99384235626},{"$f":"'5'!U37","v":0},{"$f":"'5'!V37","v":0}]
[1,null,null,null,null,{"$f":"'6'!F37","v":0},null,null,{"$f":"'6'!I37","v":0},{"$f":"'6'!J37","v":0},{"$f":"'6'!K37","v":0},{"$f":"'6'!L37","v":0},{"$f":"'6'!M37","v":0},{"$f":"'6'!N37","v":0},{"$f":"'6'!O37","v":0},{"$f":"'6'!P37","v":0},{"$f":"'6'!Q37","v":0},{"$f":"'6'!R37","v":0},{"$f":"'6'!S37","v":0},{"$f":"'6'!T37","v":0},{"$f":"'6'!U37","v":0},{"$f":"'6'!V37","v":0}]
[1,null,null,null,null,{"$f":"'7'!F37","v":0},null,null,{"$f":"'7'!I37","v":0},{"$f":"'7'!J37","v":0},{"$f":"'7'!K37","v":0},{"$f":"'7'!L37","v":0},{"$f":"'7'!M37","v":0},{"$f":"'7'!N37","v":0},{"$f":"'7'!O37","v":0},{"$f":"'7'!P37","v":0},{"$f":"'7'!Q37","v":0},{"$f":"'7'!R37","v":0},{"$f":"'7'!S37","v":0},{"$f":"'7'!T37","v":0},{"$f":"'7'!U37","v":0},{"$f":"'7'!V37","v":0}]
[1,null,null,null,null,{"$f":"'8'!F37","v":0},null,null,{"$f":"'8'!I37","v":0},{"$f":"'8'!J37","v":0},{"$f":"'8'!K37","v":0},{"$f":"'8'!L37","v":0},{"$f":"'8'!M37","v":0},{"$f":"'8'!N37","v":0},{"$f":"'8'!O37","v":0},{"$f":"'8'!P37","v":0},{"$f":"'8'!Q37","v":0},{"$f":"'8'!R37","v":0},{"$f":"'8'!S37","v":0},{"$f":"'8'!T37","v":0},{"$f":"'8'!U37","v":0},{"$f":"'8'!V37","v":0}]
[1,null,null,null,null,{"$f":"'9'!F37","v":0},null,null,{"$f":"'9'!I37","v":0},{"$f":"'9'!J37","v":0},{"$f":"'9'!K37","v":0},{"$f":"'9'!L37","v":0},{"$f":"'9'!M37","v":0},{"$f":"'9'!N37","v":0},{"$f":"'9'!O37","v":0},{"$f":"'9'!P37","v":0},{"$f":"'9'!Q37","v":0},{"$f":"'9'!R37","v":0},{"$f":"'9'!S37","v":0},{"$f":"'9'!T37","v":0},{"$f":"'9'!U37","v":0},{"$f":"'9'!V37","v":0}]
[1,null,null,null,null,{"$f":"'10'!F37","v":0},null,null,{"$f":"'10'!I37","v":0},{"$f":"'10'!J37","v":0},{"$f":"'10'!K37","v":0},{"$f":"'10'!L37","v":0},{"$f":"'10'!M37","v":0},{"$f":"'10'!N37","v":0},{"$f":"'10'!O37","v":0},{"$f":"'10'!P37","v":0},{"$f":"'10'!Q37","v":0},{"$f":"'10'!R37","v":0},{"$f":"'10'!S37","v":0},{"$f":"'10'!T37","v":0},{"$f":"'10'!U37","v":0},{"$f":"'10'!V37","v":0}]
[1,null,null,null,null,{"$f":"'11'!F37","v":0},null,null,{"$f":"'11'!I37","v":0},{"$f":"'11'!J37","v":0},{"$f":"'11'!K37","v":0},{"$f":"'11'!L37","v":0},{"$f":"'11'!M37","v":0},{"$f":"'11'!N37","v":0},{"$f":"'11'!O37","v":0},{"$f":"'11'!P37","v":0},{"$f":"'11'!Q37","v":0},{"$f":"'11'!R37","v":0},{"$f":"'11'!S37","v":0},{"$f":"'11'!T37","v":0},{"$f":"'11'!U37","v":0},{"$f":"'11'!V37","v":0}]
[1,null,null,null,null,{"$f":"'12'!F37","v":0},null,null,{"$f":"'12'!I37","v":0},{"$f":"'12'!J37","v":0},{"$f":"'12'!K37","v":0},{"$f":"'12'!L37","v":0},{"$f":"'12'!M37","v":0},{"$f":"'12'!N37","v":0},{"$f":"'12'!O37","v":0},{"$f":"'12'!P37","v":0},{"$f":"'12'!Q37","v":0},{"$f":"'12'!R37","v":0},{"$f":"'12'!S37","v":0},{"$f":"'12'!T37","v":0},{"$f":"'12'!U37","v":0},{"$f":"'12'!V37","v":0}]
[1,null,null,null,null,{"$f":"'13'!F37","v":0},null,null,{"$f":"'13'!I37","v":0},{"$f":"'13'!J37","v":0},{"$f":"'13'!K37","v":0},{"$f":"'13'!L37","v":0},{"$f":"'13'!M37","v":0},{"$f":"'13'!N37","v":0},{"$f":"'13'!O37","v":0},{"$f":"'13'!P37","v":0},{"$f":"'13'!Q37","v":0},{"$f":"'13'!R37","v":0},{"$f":"'13'!S37","v":0},{"$f":"'13'!T37","v":0},{"$f":"'13'!U37","v":0},{"$f":"'13'!V37","v":0}]
[1,null,null,null,null,{"$f":"'14'!F37","v":0},null,null,{"$f":"'14'!I37","v":0},{"$f":"'14'!J37","v":0},{"$f":"'14'!K37","v":0},{"$f":"'14'!L37","v":0},{"$f":"'14'!M37","v":0},{"$f":"'14'!N37","v":0},{"$f":"'14'!O37","v":0},{"$f":"'14'!P37","v":0},{"$f":"'14'!Q37","v":0},{"$f":"'14'!R37","v":0},{"$f":"'14'!S37","v":0},{"$f":"'14'!T37","v":0},{"$f":"'14'!U37","v":0},{"$f":"'14'!V37","v":0}]
[1,null,null,null,null,{"$f":"'15'!F37","v":0},null,null,{"$f":"'15'!I37","v":0},{"$f":"'15'!J37","v":0},{"$f":"'15'!K37","v":0},{"$f":"'15'!L37","v":0},{"$f":"'15'!M37","v":0},{"$f":"'15'!N37","v":0},{"$f":"'15'!O37","v":0},{"$f":"'15'!P37","v":0},{"$f":"'15'!Q37","v":0},{"$f":"'15'!R37","v":0},{"$f":"'15'!S37","v":0},{"$f":"'15'!T37","v":0},{"$f":"'15'!U37","v":0},{"$f":"'15'!V37","v":0}]
[1,null,null,null,null,"Total",null,null,{"$f":"SUM(I21:I35)","v":11990467.63792},{"$f":"SUM(J21:J35)","v":13077380.232659999},{"$f":"SUM(K21:K35)","v":14211908.925360352},14211908.925360352,15564581.248370012,15564581.248370012,0,15507164.239034683,15507164.239034683,0,16284536.679091636,16284536.679091636,0,0]
[1,null,null,null,null,null,null,null,null,null,null,null,null,{"$f":"SUM(M37-J37)","v":0}]
[1,"EX1",null,null,null,"Economic classification"]
[1,"EX11",null,null,null,"Current payments",null,null,{"$f":"SUM(I40,I43,I98:I99,I105)","v":11990466.348149998},{"$f":"SUM(J40,J43,J98:J99,J105)","v":13077380.232659999},{"$f":"SUM(K40,K43,K98:K99,K105)","v":14211908.925360348},{"$f":"SUM(L40,L43,L98:L99,L105)","v":14211908.925360348},{"$f":"SUM(M40,M43,M98:M99,M105)","v":15564581.248370012},15564581.248370012,0,15507164.239034686,15507164.239034686,0,16284536.679091636,16284536.679091636,0,0]
[1,"EX111",null,null,null,"Compensation of employees",null,null,{"$f":"SUM(I41:I42)","v":8304003.1408399986},{"$f":"SUM(J41:J42)","v":8983405.6334199999},{"$f":"SUM(K41:K42)","v":9643694.5542599969},{"$f":"SUM(L41:L42)","v":9643694.5542599969},{"$f":"SUM(M41:M42)","v":10339690.602510724},10339690.602510724,0,10333657.588951608,10333657.588951608,0,10800172.791032134,10800172.791032134,0,0]
[1,"EX1111",null,null,null,"Salaries and wages",null,null,{"$f":"SUM('Admin:15'!I41)","v":7029611.2668799991},{"$f":"SUM('Admin:15'!J41)","v":7615690.63442},{"$f":"SUM('Admin:15'!K41)","v":8214512.2526499974},{"$f":"SUM('Admin:15'!L41)","v":8214512.2526499974},{"$f":"SUM('Admin:15'!M41)","v":8854496.0689089019},{"$f":"SUM('Admin:15'!N41)","v":8854496.0689089019},{"$f":"SUM('Admin:15'!O41)","v":0},{"$f":"SUM('Admin:15'!P41)","v":8780886.7040709015},{"$f":"SUM('Admin:15'!Q41)","v":8780886.7040709015},{"$f":"SUM('Admin:15'!R41)","v":0},{"$f":"SUM('Admin:15'!S41)","v":9177216.6621548198},{"$f":"SUM('Admin:15'!T41)","v":9177216.6621548198},{"$f":"SUM('Admin:15'!U41)","v":0},{"$f":"SUM('Admin:15'!V41)","v":0}]
[1,"EX1112",null,null,null,"Social contributions",null,null,{"$f":"SUM('Admin:15'!I42)","v":1274391.8739599998},{"$f":"SUM('Admin:15'!J42)","v":1367714.9990000001},{"$f":"SUM('Admin:15'!K42)","v":1429182.3016100002},{"$f":"SUM('Admin:15'!L42)","v":1429182.3016100002},{"$f":"SUM('Admin:15'!M42)","v":1485194.533601823},{"$f":"SUM('Admin:15'!N42)","v":1485194.533601823},{"$f":"SUM('Admin:15'!O42)","v":0},{"$f":"SUM('Admin:15'!P42)","v":1552770.884880706},{"$f":"SUM('Admin:15'!Q42)","v":1552770.884880706},{"$f":"SUM('Admin:15'!R42)","v":0},{"$f":"SUM('Admin:15'!S42)","v":1622956.1288773138},{"$f":"SUM('Admin:15'!T42)","v":1622956.1288773138},{"$f":"SUM('Admin:15'!U42)","v":0},{"$f":"SUM('Admin:15'!V42)","v":0}]
[1,"EX112",null,null,null,"Goods and services",null,null,{"$f":"SUM(I45:I54,I58:I61,I73,I75:I97)","v":2983194.0664399993},3494054.6391299996,3837170.0052300002,3837170.0052300002,4612829.1400200333,4612829.1400200333,{"$f":"SUM(O45:O54,O58:O61,O73,O75:O97)","v":0},4623762.7150747618,4623762.7150747618,0,5005775.1792914579,5005775.1792914579,0,0]
[1,"EX000",null,null,null,"Of which "]
[1,"EX1133",null,null,null,"Administrative fees",null,null,{"$f":"SUM('Admin:15'!I45)","v":34223.349349999997},{"$f":"SUM('Admin:15'!J45)","v":36330.699570000004},{"$f":"SUM('Admin:15'!K45)","v":35964.195030000003},{"$f":"SUM('Admin:15'!L45)","v":35964.195030000003},{"$f":"SUM('Admin:15'!M45)","v":37622.144420883},{"$f":"SUM('Admin:15'!N45)","v":37622.144420883},{"$f":"SUM('Admin:15'!O45)","v":0},{"$f":"SUM('Admin:15'!P45)","v":39333.951992033173},{"$f":"SUM('Admin:15'!Q45)","v":39333.951992033173},{"$f":"SUM('Admin:15'!R45)","v":0},{"$f":"SUM('Admin:15'!S45)","v":41111.84662207307},{"$f":"SUM('Admin:15'!T45)","v":41111.84662207307},{"$f":"SUM('Admin:15'!U45)","v":0},{"$f":"SUM('Admin:15'!V45)","v":0}]
[1,"EX1134",null,null,null,"Advertising",null,null,{"$f":"SUM('Admin:15'!I46)","v":60120.07763},{"$f":"SUM('Admin:15'!J46)","v":50801.537519999998},{"$f":"SUM('Admin:15'!K46)","v":66441.632850000009},{"$f":"SUM('Admin:15'!L46)","v":66441.632850000009},{"$f":"SUM('Admin:15'!M46)","v":69312.670434298852},{"$f":"SUM('Admin:15'!N46)","v":69312.670434298852},{"$f":"SUM('Admin:15'!O46)","v":0},{"$f":"SUM('Admin:15'!P46)","v":72403.027931423232},{"$f":"SUM('Admin:15'!Q46)","v":72403.027931423232},{"$f":"SUM('Admin:15'!R46)","v":0},{"$f":"SUM('Admin:15'!S46)","v":75618.113609015665},{"$f":"SUM('Admin:15'!T46)","v":75618.113609015665},{"$f":"SUM('Admin:15'!U46)","v":0},{"$f":"SUM('Admin:15'!V46)","v":0}]
[1,"EX1135",null,null,null,"Minor assets",null,null,{"$f":"SUM('Admin:15'!I47)","v":7792.2554999999993},{"$f":"SUM('Admin:15'!J47)","v":7727.7070399999993},{"$f":"SUM('Admin:15'!K47)","v":14357.42971},{"$f":"SUM('Admin:15'!L47)","v":14357.42971},{"$f":"SUM('Admin:15'!M47)","v":15045.574229464435},{"$f":"SUM('Admin:15'!N47)","v":15045.574229464435},{"$f":"SUM('Admin:15'!O47)","v":0},{"$f":"SUM('Admin:15'!P47)","v":15767.424414896666},{"$f":"SUM('Admin:15'!Q47)","v":15767.424414896666},{"$f":"SUM('Admin:15'!R47)","v":0},{"$f":"SUM('Admin:15'!S47)","v":16523.954104530731},{"$f":"SUM('Admin:15'!T47)","v":16523.954104530731},{"$f":"SUM('Admin:15'!U47)","v":0},{"$f":"SUM('Admin:15'!V47)","v":0}]
[1,"EX1136",null,null,null,"Audit costs: External",null,null,{"$f":"SUM('Admin:15'!I48)","v":37936.371359999997},{"$f":"SUM('Admin:15'!J48)","v":42694.749739999999},{"$f":"SUM('Admin:15'!K48)","v":37575.902150000002},{"$f":"SUM('Admin:15'!L48)","v":37575.902150000002},{"$f":"SUM('Admin:15'!M48)","v":39308.151239115003},{"$f":"SUM('Admin:15'!N48)","v":39308.151239115003},{"$f":"SUM('Admin:15'!O48)","v":0},{"$f":"SUM('Admin:15'!P48)","v":41096.672120494739},{"$f":"SUM('Admin:15'!Q48)","v":41096.672120494739},{"$f":"SUM('Admin:15'!R48)","v":0},{"$f":"SUM('Admin:15'!S48)","v":42954.241700341096},{"$f":"SUM('Admin:15'!T48)","v":42954.241700341096},{"$f":"SUM('Admin:15'!U48)","v":0},{"$f":"SUM('Admin:15'!V48)","v":0}]
[1,"EX1139",null,null,null,"Bursaries: Employees",null,null,{"$f":"SUM('Admin:15'!I49)","v":10101.343349999999},{"$f":"SUM('Admin:15'!J49)","v":34984.679810000001},{"$f":"SUM('Admin:15'!K49)","v":35270.328699999998},{"$f":"SUM('Admin:15'!L49)","v":35270.328699999998},{"$f":"SUM('Admin:15'!M49)","v":36896.290853070001},{"$f":"SUM('Admin:15'!N49)","v":36896.290853070001},{"$f":"SUM('Admin:15'!O49)","v":0},{"$f":"SUM('Admin:15'!P49)","v":38575.072086884691},{"$f":"SUM('Admin:15'!Q49)","v":38575.072086884691},{"$f":"SUM('Admin:15'!R49)","v":0},{"$f":"SUM('Admin:15'!S49)","v":40318.665345211877},{"$f":"SUM('Admin:15'!T49)","v":40318.665345211877},{"$f":"SUM('Admin:15'!U49)","v":0},{"$f":"SUM('Admin:15'!V49)","v":0}]
[1,"EX1140",null,null,null,"Catering: Internal activities",null,null,{"$f":"SUM('Admin:15'!I50)","v":1254.70074},{"$f":"SUM('Admin:15'!J50)","v":2524.1577699999998},{"$f":"SUM('Admin:15'!K50)","v":1398.6222799999998},{"$f":"SUM('Admin:15'!L50)","v":1398.6222799999998},{"$f":"SUM('Admin:15'!M50)","v":1456.0960254344959},{"$f":"SUM('Admin:15'!N50)","v":1456.0960254344959},{"$f":"SUM('Admin:15'!O50)","v":0},{"$f":"SUM('Admin:15'!P50)","v":1520.0362182536787},{"$f":"SUM('Admin:15'!Q50)","v":1520.0362182536787},{"$f":"SUM('Admin:15'!R50)","v":0},{"$f":"SUM('Admin:15'!S50)","v":1586.6426865072376},{"$f":"SUM('Admin:15'!T50)","v":1586.6426865072376},{"$f":"SUM('Admin:15'!U50)","v":0},{"$f":"SUM('Admin:15'!V50)","v":0}]
[1,"EX1122",null,null,null,"Communication (G&S)",null,null,{"$f":"SUM('Admin:15'!I51)","v":296189.58912000002},{"$f":"SUM('Admin:15'!J51)","v":316499.08560999995},{"$f":"SUM('Admin:15'!K51)","v":362611.67121},{"$f":"SUM('Admin:15'!L51)","v":362611.67121},{"$f":"SUM('Admin:15'!M51)","v":398771.40397436102},{"$f":"SUM('Admin:15'!N51)","v":398771.40397436102},{"$f":"SUM('Admin:15'!O51)","v":0},{"$f":"SUM('Admin:15'!P51)","v":438541.25269858446},{"$f":"SUM('Admin:15'!Q51)","v":438541.25269858446},{"$f":"SUM('Admin:15'!R51)","v":0},{"$f":"SUM('Admin:15'!S51)","v":482282.58705559804},{"$f":"SUM('Admin:15'!T51)","v":482282.58705559804},{"$f":"SUM('Admin:15'!U51)","v":0},{"$f":"SUM('Admin:15'!V51)","v":0}]
[1,"EX1123",null,null,null,"Computer services",null,null,{"$f":"SUM('Admin:15'!I52)","v":773499.2121},{"$f":"SUM('Admin:15'!J52)","v":943044.9535399999},{"$f":"SUM('Admin:15'!K52)","v":1055944.0440100001},{"$f":"SUM('Admin:15'!L52)","v":1055944.0440100001},{"$f":"SUM('Admin:15'!M52)","v":1159470.8651033505},{"$f":"SUM('Admin:15'!N52)","v":1159470.8651033505},{"$f":"SUM('Admin:15'!O52)","v":0},{"$f":"SUM('Admin:15'!P52)","v":1274632.2458847063},{"$f":"SUM('Admin:15'!Q52)","v":1274632.2458847063},{"$f":"SUM('Admin:15'!R52)","v":0},{"$f":"SUM('Admin:15'!S52)","v":1401386.7374731521},{"$f":"SUM('Admin:15'!T52)","v":1401386.7374731521},{"$f":"SUM('Admin:15'!U52)","v":0},{"$f":"SUM('Admin:15'!V52)","v":0}]
[1,"EX1124",null,null,null,"Consultants: Business and advisory services",null,null,{"$f":"SUM('Admin:15'!I53)","v":59217.277859999995},{"$f":"SUM('Admin:15'!J53)","v":213084.64376000001},{"$f":"SUM('Admin:15'!K53)","v":287769.64530000003},{"$f":"SUM('Admin:15'!L53)","v":287769.64530000003},{"$f":"SUM('Admin:15'!M53)","v":256588.02818357886},{"$f":"SUM('Admin:15'!N53)","v":256588.02818357886},{"$f":"SUM('Admin:15'!O53)","v":0},{"$f":"SUM('Admin:15'!P53)","v":281445.10436765302},{"$f":"SUM('Admin:15'!Q53)","v":281445.10436765302},{"$f":"SUM('Admin:15'!R53)","v":0},{"$f":"SUM('Admin:15'!S53)","v":308836.91959193617},{"$f":"SUM('Admin:15'!T53)","v":308836.91959193617},{"$f":"SUM('Admin:15'!U53)","v":0},{"$f":"SUM('Admin:15'!V53)","v":0}]
[1,"EX1180",null,null,null,"Infrastructure and planning services",null,null,{"$f":"SUM(I55:I57)","v":0},{"$f":"SUM(J55:J57)","v":0},{"$f":"SUM(K55:K57)","v":0},{"$f":"SUM(L55:L57)","v":0},{"$f":"SUM(M55:M57)","v":0},0,0,0,0,0,0,0,0,0]
[1,"EX11801",null,null,null,"Maintenance and repairs: Buildings: Consultants",null,null,{"$f":"SUM('Admin:15'!I55)","v":0},{"$f":"SUM('Admin:15'!J55)","v":0},{"$f":"SUM('Admin:15'!K55)","v":0},{"$f":"SUM('Admin:15'!L55)","v":0},{"$f":"SUM('Admin:15'!M55)","v":0},{"$f":"SUM('Admin:15'!N55)","v":0},{"$f":"SUM('Admin:15'!O55)","v":0},{"$f":"SUM('Admin:15'!P55)","v":0},{"$f":"SUM('Admin:15'!Q55)","v":0},{"$f":"SUM('Admin:15'!R55)","v":0},{"$f":"SUM('Admin:15'!S55)","v":0},{"$f":"SUM('Admin:15'!T55)","v":0},{"$f":"SUM('Admin:15'!U55)","v":0},{"$f":"SUM('Admin:15'!V55)","v":0}]
[1,"EX11802",null,null,null,"Maintenance and repairs: Other fixed structures: Consultants",null,null,{"$f":"SUM('Admin:15'!I56)","v":0},{"$f":"SUM('Admin:15'!J56)","v":0},{"$f":"SUM('Admin:15'!K56)","v":0},{"$f":"SUM('Admin:15'!L56)","v":0},{"$f":"SUM('Admin:15'!M56)","v":0},{"$f":"SUM('Admin:15'!N56)","v":0},{"$f":"SUM('Admin:15'!O56)","v":0},{"$f":"SUM('Admin:15'!P56)","v":0},{"$f":"SUM('Admin:15'!Q56)","v":0},{"$f":"SUM('Admin:15'!R56)","v":0},{"$f":"SUM('Admin:15'!S56)","v":0},{"$f":"SUM('Admin:15'!T56)","v":0},{"$f":"SUM('Admin:15'!U56)","v":0},{"$f":"SUM('Admin:15'!V56)","v":0}]
[1,"EX11803",null,null,null,"Other",null,null,{"$f":"SUM('Admin:15'!I57)","v":0},{"$f":"SUM('Admin:15'!J57)","v":0},{"$f":"SUM('Admin:15'!K57)","v":0},{"$f":"SUM('Admin:15'!L57)","v":0},{"$f":"SUM('Admin:15'!M57)","v":0},{"$f":"SUM('Admin:15'!N57)","v":0},{"$f":"SUM('Admin:15'!O57)","v":0},{"$f":"SUM('Admin:15'!P57)","v":0},{"$f":"SUM('Admin:15'!Q57)","v":0},{"$f":"SUM('Admin:15'!R57)","v":0},{"$f":"SUM('Admin:15'!S57)","v":0},{"$f":"SUM('Admin:15'!T57)","v":0},{"$f":"SUM('Admin:15'!U57)","v":0},{"$f":"SUM('Admin:15'!V57)","v":0}]
[1,"EX1164",null,null,null,"Laboratory services",null,null,{"$f":"SUM('Admin:15'!I58)","v":0},{"$f":"SUM('Admin:15'!J58)","v":0},{"$f":"SUM('Admin:15'!K58)","v":0},{"$f":"SUM('Admin:15'!L58)","v":0},{"$f":"SUM('Admin:15'!M58)","v":0},{"$f":"SUM('Admin:15'!N58)","v":0},{"$f":"SUM('Admin:15'!O58)","v":0},{"$f":"SUM('Admin:15'!P58)","v":0},{"$f":"SUM('Admin:15'!Q58)","v":0},{"$f":"SUM('Admin:15'!R58)","v":0},{"$f":"SUM('Admin:15'!S58)","v":0},{"$f":"SUM('Admin:15'!T58)","v":0},{"$f":"SUM('Admin:15'!U58)","v":0},{"$f":"SUM('Admin:15'!V58)","v":0}]
[1,"EX1162",null,null,null,"Legal services (G&S)",null,null,{"$f":"SUM('Admin:15'!I59)","v":256185.80832999997},{"$f":"SUM('Admin:15'!J59)","v":272831.42181000003},{"$f":"SUM('Admin:15'!K59)","v":268873.39644000004},{"$f":"SUM('Admin:15'!L59)","v":268873.39644000004},{"$f":"SUM('Admin:15'!M59)","v":275957.40957315301},{"$f":"SUM('Admin:15'!N59)","v":275957.40957315301},{"$f":"SUM('Admin:15'!O59)","v":0},{"$f":"SUM('Admin:15'!P59)","v":288513.47170873143},{"$f":"SUM('Admin:15'!Q59)","v":288513.47170873143},{"$f":"SUM('Admin:15'!R59)","v":0},{"$f":"SUM('Admin:15'!S59)","v":301554.28062996612},{"$f":"SUM('Admin:15'!T59)","v":301554.28062996612},{"$f":"SUM('Admin:15'!U59)","v":0},{"$f":"SUM('Admin:15'!V59)","v":0}]
[1,"EX1165",null,null,null,"Science and technological services",null,null,{"$f":"SUM('Admin:15'!I60)","v":0},{"$f":"SUM('Admin:15'!J60)","v":0},{"$f":"SUM('Admin:15'!K60)","v":0},{"$f":"SUM('Admin:15'!L60)","v":0},{"$f":"SUM('Admin:15'!M60)","v":0},{"$f":"SUM('Admin:15'!N60)","v":0},{"$f":"SUM('Admin:15'!O60)","v":0},{"$f":"SUM('Admin:15'!P60)","v":0},{"$f":"SUM('Admin:15'!Q60)","v":0},{"$f":"SUM('Admin:15'!R60)","v":0},{"$f":"SUM('Admin:15'!S60)","v":0},{"$f":"SUM('Admin:15'!T60)","v":0},{"$f":"SUM('Admin:15'!U60)","v":0},{"$f":"SUM('Admin:15'!V60)","v":0}]
[1,"EX1125",null,null,null,"Contractors",null,null,{"$f":"SUM(I62:I66,I72)","v":75937.850660000026},{"$f":"SUM(J62:J66,J72)","v":87499.688089999996},{"$f":"SUM(K62:K66,K72)","v":115507.73697000001},115507.73697000001,115293.10304672029,115293.10304672029,0,120374.26806680276,120374.26806680276,0,126134.93922718699,126134.93922718699,0,0]
[1,"EX11251",null,null,null,"Maintenance and repairs of other fixed structures",null,null,{"$f":"SUM('Admin:15'!I62)","v":75937.850660000026},{"$f":"SUM('Admin:15'!J62)","v":87499.688089999996},{"$f":"SUM('Admin:15'!K62)","v":115507.73697000001},{"$f":"SUM('Admin:15'!L62)","v":115507.73697000001},{"$f":"SUM('Admin:15'!M62)","v":115293.10304672029},{"$f":"SUM('Admin:15'!N62)","v":115293.10304672029},{"$f":"SUM('Admin:15'!O62)","v":0},{"$f":"SUM('Admin:15'!P62)","v":120374.26806680276},{"$f":"SUM('Admin:15'!Q62)","v":120374.26806680276},{"$f":"SUM('Admin:15'!R62)","v":0},{"$f":"SUM('Admin:15'!S62)","v":126134.93922718699},{"$f":"SUM('Admin:15'!T62)","v":126134.93922718699},{"$f":"SUM('Admin:15'!U62)","v":0},{"$f":"SUM('Admin:15'!V62)","v":0}]
[1,"EX11252",null,null,null,"Maintenance and repairs of other machinery and equipment",null,null,{"$f":"SUM('Admin:15'!I63)","v":0},{"$f":"SUM('Admin:15'!J63)","v":0},{"$f":"SUM('Admin:15'!K63)","v":0},{"$f":"SUM('Admin:15'!L63)","v":0},{"$f":"SUM('Admin:15'!M63)","v":0},{"$f":"SUM('Admin:15'!N63)","v":0},{"$f":"SUM('Admin:15'!O63)","v":0},{"$f":"SUM('Admin:15'!P63)","v":0},{"$f":"SUM('Admin:15'!Q63)","v":0},{"$f":"SUM('Admin:15'!R63)","v":0},{"$f":"SUM('Admin:15'!S63)","v":0},{"$f":"SUM('Admin:15'!T63)","v":0},{"$f":"SUM('Admin:15'!U63)","v":0},{"$f":"SUM('Admin:15'!V63)","v":0}]
[1,"EX11253",null,null,null,"Maintenance and repairs of heritage buildings",null,null,{"$f":"SUM('Admin:15'!I64)","v":0},{"$f":"SUM('Admin:15'!J64)","v":0},{"$f":"SUM('Admin:15'!K64)","v":0},{"$f":"SUM('Admin:15'!L64)","v":0},{"$f":"SUM('Admin:15'!M64)","v":0},{"$f":"SUM('Admin:15'!N64)","v":0},{"$f":"SUM('Admin:15'!O64)","v":0},{"$f":"SUM('Admin:15'!P64)","v":0},{"$f":"SUM('Admin:15'!Q64)","v":0},{"$f":"SUM('Admin:15'!R64)","v":0},{"$f":"SUM('Admin:15'!S64)","v":0},{"$f":"SUM('Admin:15'!T64)","v":0},{"$f":"SUM('Admin:15'!U64)","v":0},{"$f":"SUM('Admin:15'!V64)","v":0}]
[1,"EX11254",null,null,null,"Maintenance and repairs of other heritage fixed structures",null,null,{"$f":"SUM('Admin:15'!I65)","v":0},{"$f":"SUM('Admin:15'!J65)","v":0},{"$f":"SUM('Admin:15'!K65)","v":0},{"$f":"SUM('Admin:15'!L65)","v":0},{"$f":"SUM('Admin:15'!M65)","v":0},{"$f":"SUM('Admin:15'!N65)","v":0},{"$f":"SUM('Admin:15'!O65)","v":0},{"$f":"SUM('Admin:15'!P65)","v":0},{"$f":"SUM('Admin:15'!Q65)","v":0},{"$f":"SUM('Admin:15'!R65)","v":0},{"$f":"SUM('Admin:15'!S65)","v":0},{"$f":"SUM('Admin:15'!T65)","v":0},{"$f":"SUM('Admin:15'!U65)","v":0},{"$f":"SUM('Admin:15'!V65)","v":0}]
[5,"EX11255",null,null,null,"South african social security agency payment contractors",null,null,{"$f":"SUM(I67:I71)","v":0},{"$f":"SUM(J67:J71)","v":0},{"$f":"SUM(K67:K71)","v":0},0,0,0,0,0,0,0,0,0,0,0]
[5,"EX112551",null,null,null,"SASSA Admin fees",null,null,{"$f":"SUM('Admin:15'!I67)","v":0},{"$f":"SUM('Admin:15'!J67)","v":0},{"$f":"SUM('Admin:15'!K67)","v":0},{"$f":"SUM('Admin:15'!L67)","v":0},{"$f":"SUM('Admin:15'!M67)","v":0},{"$f":"SUM('Admin:15'!N67)","v":0},{"$f":"SUM('Admin:15'!O67)","v":0},{"$f":"SUM('Admin:15'!P67)","v":0},{"$f":"SUM('Admin:15'!Q67)","v":0},{"$f":"SUM('Admin:15'!R67)","v":0},{"$f":"SUM('Admin:15'!S67)","v":0},{"$f":"SUM('Admin:15'!T67)","v":0},{"$f":"SUM('Admin:15'!U67)","v":0},{"$f":"SUM('Admin:15'!V67)","v":0}]
[5,"EX112552",null,null,null,"SASSA Bankcard fees",null,null,{"$f":"SUM('Admin:15'!I68)","v":0},{"$f":"SUM('Admin:15'!J68)","v":0},{"$f":"SUM('Admin:15'!K68)","v":0},{"$f":"SUM('Admin:15'!L68)","v":0},{"$f":"SUM('Admin:15'!M68)","v":0},{"$f":"SUM('Admin:15'!N68)","v":0},{"$f":"SUM('Admin:15'!O68)","v":0},{"$f":"SUM('Admin:15'!P68)","v":0},{"$f":"SUM('Admin:15'!Q68)","v":0},{"$f":"SUM('Admin:15'!R68)","v":0},{"$f":"SUM('Admin:15'!S68)","v":0},{"$f":"SUM('Admin:15'!T68)","v":0},{"$f":"SUM('Admin:15'!U68)","v":0},{"$f":"SUM('Admin:15'!V68)","v":0}]
[5,"EX112553",null,null,null,"SASSA registration fees",null,null,{"$f":"SUM('Admin:15'!I69)","v":0},{"$f":"SUM('Admin:15'!J69)","v":0},{"$f":"SUM('Admin:15'!K69)","v":0},{"$f":"SUM('Admin:15'!L69)","v":0},{"$f":"SUM('Admin:15'!M69)","v":0},{"$f":"SUM('Admin:15'!N69)","v":0},{"$f":"SUM('Admin:15'!O69)","v":0},{"$f":"SUM('Admin:15'!P69)","v":0},{"$f":"SUM('Admin:15'!Q69)","v":0},{"$f":"SUM('Admin:15'!R69)","v":0},{"$f":"SUM('Admin:15'!S69)","v":0},{"$f":"SUM('Admin:15'!T69)","v":0},{"$f":"SUM('Admin:15'!U69)","v":0},{"$f":"SUM('Admin:15'!V69)","v":0}]
[5,"EX112554",null,null,null,"SASSA beneficiary fees",null,null,{"$f":"SUM('Admin:15'!I70)","v":0},{"$f":"SUM('Admin:15'!J70)","v":0},{"$f":"SUM('Admin:15'!K70)","v":0},{"$f":"SUM('Admin:15'!L70)","v":0},{"$f":"SUM('Admin:15'!M70)","v":0},{"$f":"SUM('Admin:15'!N70)","v":0},{"$f":"SUM('Admin:15'!O70)","v":0},{"$f":"SUM('Admin:15'!P70)","v":0},{"$f":"SUM('Admin:15'!Q70)","v":0},{"$f":"SUM('Admin:15'!R70)","v":0},{"$f":"SUM('Admin:15'!S70)","v":0},{"$f":"SUM('Admin:15'!T70)","v":0},{"$f":"SUM('Admin:15'!U70)","v":0},{"$f":"SUM('Admin:15'!V70)","v":0}]
[5,"EX112555",null,null,null,"SASSA help desk fees",null,null,{"$f":"SUM('Admin:15'!I71)","v":0},{"$f":"SUM('Admin:15'!J71)","v":0},{"$f":"SUM('Admin:15'!K71)","v":0},{"$f":"SUM('Admin:15'!L71)","v":0},{"$f":"SUM('Admin:15'!M71)","v":0},{"$f":"SUM('Admin:15'!N71)","v":0},{"$f":"SUM('Admin:15'!O71)","v":0},{"$f":"SUM('Admin:15'!P71)","v":0},{"$f":"SUM('Admin:15'!Q71)","v":0},{"$f":"SUM('Admin:15'!R71)","v":0},{"$f":"SUM('Admin:15'!S71)","v":0},{"$f":"SUM('Admin:15'!T71)","v":0},{"$f":"SUM('Admin:15'!U71)","v":0},{"$f":"SUM('Admin:15'!V71)","v":0}]
[1,"EX11256",null,null,null,"Other",null,null,{"$f":"SUM('Admin:15'!I72)","v":0},{"$f":"SUM('Admin:15'!J72)","v":0},{"$f":"SUM('Admin:15'!K72)","v":0},{"$f":"SUM('Admin:15'!L72)","v":0},{"$f":"SUM('Admin:15'!M72)","v":0},{"$f":"SUM('Admin:15'!N72)","v":0},{"$f":"SUM('Admin:15'!O72)","v":0},{"$f":"SUM('Admin:15'!P72)","v":0},{"$f":"SUM('Admin:15'!Q72)","v":0},{"$f":"SUM('Admin:15'!R72)","v":0},{"$f":"SUM('Admin:15'!S72)","v":0},{"$f":"SUM('Admin:15'!T72)","v":0},{"$f":"SUM('Admin:15'!U72)","v":0},{"$f":"SUM('Admin:15'!V72)","v":0}]
[1,"EX1121",null,null,null,"Agency and support/outsourced services",null,null,{"$f":"SUM('Admin:15'!I73)","v":209890.70973999999},{"$f":"SUM('Admin:15'!J73)","v":260305.94923},{"$f":"SUM('Admin:15'!K73)","v":260509.54633999997},{"$f":"SUM('Admin:15'!L73)","v":260509.54633999997},{"$f":"SUM('Admin:15'!M73)","v":504155.05577781098},{"$f":"SUM('Admin:15'!N73)","v":504155.05577781098},{"$f":"SUM('Admin:15'!O73)","v":0},{"$f":"SUM('Admin:15'!P73)","v":376610.44671360793},{"$f":"SUM('Admin:15'!Q73)","v":376610.44671360793},{"$f":"SUM('Admin:15'!R73)","v":0},{"$f":"SUM('Admin:15'!S73)","v":415828.23588798003},{"$f":"SUM('Admin:15'!T73)","v":415828.23588798003},{"$f":"SUM('Admin:15'!U73)","v":0},{"$f":"SUM('Admin:15'!V73)","v":0}]
[5,"EX11211",null,null,null,"     Of Which: Medical assessments",null,null,{"$f":"SUM('Admin:15'!I74)","v":0},{"$f":"SUM('Admin:15'!J74)","v":0},{"$f":"SUM('Admin:15'!K74)","v":0},{"$f":"SUM('Admin:15'!L74)","v":0},{"$f":"SUM('Admin:15'!M74)","v":0},{"$f":"SUM('Admin:15'!N74)","v":0},{"$f":"SUM('Admin:15'!O74)","v":0},{"$f":"SUM('Admin:15'!P74)","v":0},{"$f":"SUM('Admin:15'!Q74)","v":0},{"$f":"SUM('Admin:15'!R74)","v":0},{"$f":"SUM('Admin:15'!S74)","v":0},{"$f":"SUM('Admin:15'!T74)","v":0},{"$f":"SUM('Admin:15'!U74)","v":0},{"$f":"SUM('Admin:15'!V74)","v":0}]
[1,"EX1161",null,null,null,"Entertainment",null,null,{"$f":"SUM('Admin:15'!I75)","v":0},{"$f":"SUM('Admin:15'!J75)","v":5.4775999999999998},{"$f":"SUM('Admin:15'!K75)","v":34},{"$f":"SUM('Admin:15'!L75)","v":34},{"$f":"SUM('Admin:15'!M75)","v":35.567399999999999},{"$f":"SUM('Admin:15'!N75)","v":35.567399999999999},{"$f":"SUM('Admin:15'!O75)","v":0},{"$f":"SUM('Admin:15'!P75)","v":37.1857167},{"$f":"SUM('Admin:15'!Q75)","v":37.1857167},{"$f":"SUM('Admin:15'!R75)","v":0},{"$f":"SUM('Admin:15'!S75)","v":38.866511094839993},{"$f":"SUM('Admin:15'!T75)","v":38.866511094839993},{"$f":"SUM('Admin:15'!U75)","v":0},{"$f":"SUM('Admin:15'!V75)","v":0}]
[1,"EX1166",null,null,null,"Fleet services (including government motor transport)",null,null,{"$f":"SUM('Admin:15'!I76)","v":0},{"$f":"SUM('Admin:15'!J76)","v":0},{"$f":"SUM('Admin:15'!K76)","v":0},{"$f":"SUM('Admin:15'!L76)","v":0},{"$f":"SUM('Admin:15'!M76)","v":0},{"$f":"SUM('Admin:15'!N76)","v":0},{"$f":"SUM('Admin:15'!O76)","v":0},{"$f":"SUM('Admin:15'!P76)","v":0},{"$f":"SUM('Admin:15'!Q76)","v":0},{"$f":"SUM('Admin:15'!R76)","v":0},{"$f":"SUM('Admin:15'!S76)","v":0},{"$f":"SUM('Admin:15'!T76)","v":0},{"$f":"SUM('Admin:15'!U76)","v":0},{"$f":"SUM('Admin:15'!V76)","v":0}]
[1,"EX1167",null,null,null,"Housing",null,null,{"$f":"SUM('Admin:15'!I77)","v":0},{"$f":"SUM('Admin:15'!J77)","v":0},{"$f":"SUM('Admin:15'!K77)","v":0},{"$f":"SUM('Admin:15'!L77)","v":0},{"$f":"SUM('Admin:15'!M77)","v":0},{"$f":"SUM('Admin:15'!N77)","v":0},{"$f":"SUM('Admin:15'!O77)","v":0},{"$f":"SUM('Admin:15'!P77)","v":0},{"$f":"SUM('Admin:15'!Q77)","v":0},{"$f":"SUM('Admin:15'!R77)","v":0},{"$f":"SUM('Admin:15'!S77)","v":0},{"$f":"SUM('Admin:15'!T77)","v":0},{"$f":"SUM('Admin:15'!U77)","v":0},{"$f":"SUM('Admin:15'!V77)","v":0}]
[1,"EX1168",null,null,null,"Inventory: Clothing material and accessories",null,null,{"$f":"SUM('Admin:15'!I78)","v":0},{"$f":"SUM('Admin:15'!J78)","v":0},{"$f":"SUM('Admin:15'!K78)","v":0},{"$f":"SUM('Admin:15'!L78)","v":0},{"$f":"SUM('Admin:15'!M78)","v":0},{"$f":"SUM('Admin:15'!N78)","v":0},{"$f":"SUM('Admin:15'!O78)","v":0},{"$f":"SUM('Admin:15'!P78)","v":0},{"$f":"SUM('Admin:15'!Q78)","v":0},{"$f":"SUM('Admin:15'!R78)","v":0},{"$f":"SUM('Admin:15'!S78)","v":0},{"$f":"SUM('Admin:15'!T78)","v":0},{"$f":"SUM('Admin:15'!U78)","v":0},{"$f":"SUM('Admin:15'!V78)","v":0}]
[1,"EX1169",null,null,null,"Inventory: Farming supplies",null,null,{"$f":"SUM('Admin:15'!I79)","v":0},{"$f":"SUM('Admin:15'!J79)","v":0},{"$f":"SUM('Admin:15'!K79)","v":0},{"$f":"SUM('Admin:15'!L79)","v":0},{"$f":"SUM('Admin:15'!M79)","v":0},{"$f":"SUM('Admin:15'!N79)","v":0},{"$f":"SUM('Admin:15'!O79)","v":0},{"$f":"SUM('Admin:15'!P79)","v":0},{"$f":"SUM('Admin:15'!Q79)","v":0},{"$f":"SUM('Admin:15'!R79)","v":0},{"$f":"SUM('Admin:15'!S79)","v":0},{"$f":"SUM('Admin:15'!T79)","v":0},{"$f":"SUM('Admin:15'!U79)","v":0},{"$f":"SUM('Admin:15'!V79)","v":0}]
[1,"EX1170",null,null,null,"Inventory: Food and food supplies",null,null,{"$f":"SUM('Admin:15'!I80)","v":0},{"$f":"SUM('Admin:15'!J80)","v":0},{"$f":"SUM('Admin:15'!K80)","v":0},{"$f":"SUM('Admin:15'!L80)","v":0},{"$f":"SUM('Admin:15'!M80)","v":0},{"$f":"SUM('Admin:15'!N80)","v":0},{"$f":"SUM('Admin:15'!O80)","v":0},{"$f":"SUM('Admin:15'!P80)","v":0},{"$f":"SUM('Admin:15'!Q80)","v":0},{"$f":"SUM('Admin:15'!R80)","v":0},{"$f":"SUM('Admin:15'!S80)","v":0},{"$f":"SUM('Admin:15'!T80)","v":0},{"$f":"SUM('Admin:15'!U80)","v":0},{"$f":"SUM('Admin:15'!V80)","v":0}]
[1,"EX1171",null,null,null,"Inventory: Fuel, oil and gas",null,null,{"$f":"SUM('Admin:15'!I81)","v":0},{"$f":"SUM('Admin:15'!J81)","v":0},{"$f":"SUM('Admin:15'!K81)","v":0},{"$f":"SUM('Admin:15'!L81)","v":0},{"$f":"SUM('Admin:15'!M81)","v":0},{"$f":"SUM('Admin:15'!N81)","v":0},{"$f":"SUM('Admin:15'!O81)","v":0},{"$f":"SUM('Admin:15'!P81)","v":0},{"$f":"SUM('Admin:15'!Q81)","v":0},{"$f":"SUM('Admin:15'!R81)","v":0},{"$f":"SUM('Admin:15'!S81)","v":0},{"$f":"SUM('Admin:15'!T81)","v":0},{"$f":"SUM('Admin:15'!U81)","v":0},{"$f":"SUM('Admin:15'!V81)","v":0}]
[1,"EX1172",null,null,null,"Inventory: Learner and teacher support material",null,null,{"$f":"SUM('Admin:15'!I82)","v":0},{"$f":"SUM('Admin:15'!J82)","v":0},{"$f":"SUM('Admin:15'!K82)","v":0},{"$f":"SUM('Admin:15'!L82)","v":0},{"$f":"SUM('Admin:15'!M82)","v":0},{"$f":"SUM('Admin:15'!N82)","v":0},{"$f":"SUM('Admin:15'!O82)","v":0},{"$f":"SUM('Admin:15'!P82)","v":0},{"$f":"SUM('Admin:15'!Q82)","v":0},{"$f":"SUM('Admin:15'!R82)","v":0},{"$f":"SUM('Admin:15'!S82)","v":0},{"$f":"SUM('Admin:15'!T82)","v":0},{"$f":"SUM('Admin:15'!U82)","v":0},{"$f":"SUM('Admin:15'!V82)","v":0}]
[1,"EX1126",null,null,null,"Inventory: Materials and supplies",null,null,{"$f":"SUM('Admin:15'!I83)","v":0},{"$f":"SUM('Admin:15'!J83)","v":0},{"$f":"SUM('Admin:15'!K83)","v":0},{"$f":"SUM('Admin:15'!L83)","v":0},{"$f":"SUM('Admin:15'!M83)","v":0},{"$f":"SUM('Admin:15'!N83)","v":0},{"$f":"SUM('Admin:15'!O83)","v":0},{"$f":"SUM('Admin:15'!P83)","v":0},{"$f":"SUM('Admin:15'!Q83)","v":0},{"$f":"SUM('Admin:15'!R83)","v":0},{"$f":"SUM('Admin:15'!S83)","v":0},{"$f":"SUM('Admin:15'!T83)","v":0},{"$f":"SUM('Admin:15'!U83)","v":0},{"$f":"SUM('Admin:15'!V83)","v":0}]
[1,"EX1173",null,null,null,"Inventory: Medical supplies",null,null,{"$f":"SUM('Admin:15'!I84)","v":0},{"$f":"SUM('Admin:15'!J84)","v":0},{"$f":"SUM('Admin:15'!K84)","v":0},{"$f":"SUM('Admin:15'!L84)","v":0},{"$f":"SUM('Admin:15'!M84)","v":0},{"$f":"SUM('Admin:15'!N84)","v":0},{"$f":"SUM('Admin:15'!O84)","v":0},{"$f":"SUM('Admin:15'!P84)","v":0},{"$f":"SUM('Admin:15'!Q84)","v":0},{"$f":"SUM('Admin:15'!R84)","v":0},{"$f":"SUM('Admin:15'!S84)","v":0},{"$f":"SUM('Admin:15'!T84)","v":0},{"$f":"SUM('Admin:15'!U84)","v":0},{"$f":"SUM('Admin:15'!V84)","v":0}]
[1,"EX1174",null,null,null,"Inventory: Medicine",null,null,{"$f":"SUM('Admin:15'!I85)","v":0},{"$f":"SUM('Admin:15'!J85)","v":0},{"$f":"SUM('Admin:15'!K85)","v":0},{"$f":"SUM('Admin:15'!L85)","v":0},{"$f":"SUM('Admin:15'!M85)","v":0},{"$f":"SUM('Admin:15'!N85)","v":0},{"$f":"SUM('Admin:15'!O85)","v":0},{"$f":"SUM('Admin:15'!P85)","v":0},{"$f":"SUM('Admin:15'!Q85)","v":0},{"$f":"SUM('Admin:15'!R85)","v":0},{"$f":"SUM('Admin:15'!S85)","v":0},{"$f":"SUM('Admin:15'!T85)","v":0},{"$f":"SUM('Admin:15'!U85)","v":0},{"$f":"SUM('Admin:15'!V85)","v":0}]
[1,"EX1175",null,null,null,"Medsas inventory interface",null,null,{"$f":"SUM('Admin:15'!I86)","v":0},{"$f":"SUM('Admin:15'!J86)","v":0},{"$f":"SUM('Admin:15'!K86)","v":0},{"$f":"SUM('Admin:15'!L86)","v":0},{"$f":"SUM('Admin:15'!M86)","v":0},{"$f":"SUM('Admin:15'!N86)","v":0},{"$f":"SUM('Admin:15'!O86)","v":0},{"$f":"SUM('Admin:15'!P86)","v":0},{"$f":"SUM('Admin:15'!Q86)","v":0},{"$f":"SUM('Admin:15'!R86)","v":0},{"$f":"SUM('Admin:15'!S86)","v":0},{"$f":"SUM('Admin:15'!T86)","v":0},{"$f":"SUM('Admin:15'!U86)","v":0},{"$f":"SUM('Admin:15'!V86)","v":0}]
[1,"EX1176",null,null,null,"Inventory: Other supplies",null,null,{"$f":"SUM('Admin:15'!I87)","v":18101.707670000003},{"$f":"SUM('Admin:15'!J87)","v":11485.853569999999},{"$f":"SUM('Admin:15'!K87)","v":32813.155400000003},{"$f":"SUM('Admin:15'!L87)","v":32813.155400000003},{"$f":"SUM('Admin:15'!M87)","v":34325.841863940004},{"$f":"SUM('Admin:15'!N87)","v":34325.841863940004},{"$f":"SUM('Admin:15'!O87)","v":0},{"$f":"SUM('Admin:15'!P87)","v":35887.66766874928},{"$f":"SUM('Admin:15'!Q87)","v":35887.66766874928},{"$f":"SUM('Admin:15'!R87)","v":0},{"$f":"SUM('Admin:15'!S87)","v":37509.790247376739},{"$f":"SUM('Admin:15'!T87)","v":37509.790247376739},{"$f":"SUM('Admin:15'!U87)","v":0},{"$f":"SUM('Admin:15'!V87)","v":0}]
[1,"EX1177",null,null,null,"Consumable supplies",null,null,{"$f":"SUM('Admin:15'!I88)","v":14786.76894},{"$f":"SUM('Admin:15'!J88)","v":12184.75368},{"$f":"SUM('Admin:15'!K88)","v":18574.455190000001},{"$f":"SUM('Admin:15'!L88)","v":18574.455190000001},{"$f":"SUM('Admin:15'!M88)","v":47404.925685535447},{"$f":"SUM('Admin:15'!N88)","v":47404.925685535447},{"$f":"SUM('Admin:15'!O88)","v":0},{"$f":"SUM('Admin:15'!P88)","v":20279.327193922596},{"$f":"SUM('Admin:15'!Q88)","v":20279.327193922596},{"$f":"SUM('Admin:15'!R88)","v":0},{"$f":"SUM('Admin:15'!S88)","v":21188.215311922911},{"$f":"SUM('Admin:15'!T88)","v":21188.215311922911},{"$f":"SUM('Admin:15'!U88)","v":0},{"$f":"SUM('Admin:15'!V88)","v":0}]
[1,"EX1144",null,null,null,"Consumables: Stationery, printing and office supplies",null,null,{"$f":"SUM('Admin:15'!I89)","v":58094.057959999998},{"$f":"SUM('Admin:15'!J89)","v":59362.4643},{"$f":"SUM('Admin:15'!K89)","v":87228.532080000019},{"$f":"SUM('Admin:15'!L89)","v":87228.532080000019},{"$f":"SUM('Admin:15'!M89)","v":93674.274254758478},{"$f":"SUM('Admin:15'!N89)","v":93674.274254758478},{"$f":"SUM('Admin:15'!O89)","v":0},{"$f":"SUM('Admin:15'!P89)","v":100657.89112619903},{"$f":"SUM('Admin:15'!Q89)","v":100657.89112619903},{"$f":"SUM('Admin:15'!R89)","v":0},{"$f":"SUM('Admin:15'!S89)","v":108219.9784929584},{"$f":"SUM('Admin:15'!T89)","v":108219.9784929584},{"$f":"SUM('Admin:15'!U89)","v":0},{"$f":"SUM('Admin:15'!V89)","v":0}]
[1,"EX1127",null,null,null,"Operating leases",null,null,{"$f":"SUM('Admin:15'!I90)","v":9079.7676700000011},{"$f":"SUM('Admin:15'!J90)","v":37155.805030000003},{"$f":"SUM('Admin:15'!K90)","v":41869.537149999996},{"$f":"SUM('Admin:15'!L90)","v":41869.537149999996},{"$f":"SUM('Admin:15'!M90)","v":43624.820075421085},{"$f":"SUM('Admin:15'!N90)","v":43624.820075421085},{"$f":"SUM('Admin:15'!O90)","v":0},{"$f":"SUM('Admin:15'!P90)","v":45633.990963272445},{"$f":"SUM('Admin:15'!Q90)","v":45633.990963272445},{"$f":"SUM('Admin:15'!R90)","v":0},{"$f":"SUM('Admin:15'!S90)","v":47747.31919376627},{"$f":"SUM('Admin:15'!T90)","v":47747.31919376627},{"$f":"SUM('Admin:15'!U90)","v":0},{"$f":"SUM('Admin:15'!V90)","v":0}]
[1,"EX1178",null,null,null,"Rental and hiring",null,null,{"$f":"SUM('Admin:15'!I91)","v":0},{"$f":"SUM('Admin:15'!J91)","v":0},{"$f":"SUM('Admin:15'!K91)","v":0},{"$f":"SUM('Admin:15'!L91)","v":0},{"$f":"SUM('Admin:15'!M91)","v":0},{"$f":"SUM('Admin:15'!N91)","v":0},{"$f":"SUM('Admin:15'!O91)","v":0},{"$f":"SUM('Admin:15'!P91)","v":0},{"$f":"SUM('Admin:15'!Q91)","v":0},{"$f":"SUM('Admin:15'!R91)","v":0},{"$f":"SUM('Admin:15'!S91)","v":0},{"$f":"SUM('Admin:15'!T91)","v":0},{"$f":"SUM('Admin:15'!U91)","v":0},{"$f":"SUM('Admin:15'!V91)","v":0}]
[1,"EX1145",null,null,null,"Property payments",null,null,{"$f":"SUM('Admin:15'!I92)","v":707630.32183000015},{"$f":"SUM('Admin:15'!J92)","v":676645.50327999995},{"$f":"SUM('Admin:15'!K92)","v":723799.64240999997},{"$f":"SUM('Admin:15'!L92)","v":723799.64240999997},{"$f":"SUM('Admin:15'!M92)","v":927023.07843331923},{"$f":"SUM('Admin:15'!N92)","v":927023.07843331923},{"$f":"SUM('Admin:15'!O92)","v":0},{"$f":"SUM('Admin:15'!P92)","v":995231.80193670071},{"$f":"SUM('Admin:15'!Q92)","v":995231.80193670071},{"$f":"SUM('Admin:15'!R92)","v":0},{"$f":"SUM('Admin:15'!S92)","v":1085217.7380052481},{"$f":"SUM('Admin:15'!T92)","v":1085217.7380052481},{"$f":"SUM('Admin:15'!U92)","v":0},{"$f":"SUM('Admin:15'!V92)","v":0}]
[1,"EX1179",null,null,null,"Transport provided: Internal activities",null,null,{"$f":"SUM('Admin:15'!I93)","v":50116.344050000007},{"$f":"SUM('Admin:15'!J93)","v":54383.806100000009},{"$f":"SUM('Admin:15'!K93)","v":56604.28171000001},{"$f":"SUM('Admin:15'!L93)","v":56604.28171000001},{"$f":"SUM('Admin:15'!M93)","v":58523.432288844306},{"$f":"SUM('Admin:15'!N93)","v":58523.432288844306},{"$f":"SUM('Admin:15'!O93)","v":0},{"$f":"SUM('Admin:15'!P93)","v":60958.321862681041},{"$f":"SUM('Admin:15'!Q93)","v":60958.321862681041},{"$f":"SUM('Admin:15'!R93)","v":0},{"$f":"SUM('Admin:15'!S93)","v":63506.708983750526},{"$f":"SUM('Admin:15'!T93)","v":63506.708983750526},{"$f":"SUM('Admin:15'!U93)","v":0},{"$f":"SUM('Admin:15'!V93)","v":0}]
[1,"EX1131",null,null,null,"Travel and subsistence",null,null,{"$f":"SUM('Admin:15'!I94)","v":73812.443469999984},{"$f":"SUM('Admin:15'!J94)","v":80785.636579999991},{"$f":"SUM('Admin:15'!K94)","v":89072.801420000003},{"$f":"SUM('Admin:15'!L94)","v":89072.801420000003},{"$f":"SUM('Admin:15'!M94)","v":92452.298619441994},{"$f":"SUM('Admin:15'!N94)","v":92452.298619441994},{"$f":"SUM('Admin:15'!O94)","v":0},{"$f":"SUM('Admin:15'!P94)","v":96418.915786644982},{"$f":"SUM('Admin:15'!Q94)","v":96418.915786644982},{"$f":"SUM('Admin:15'!R94)","v":0},{"$f":"SUM('Admin:15'!S94)","v":100559.19471980412},{"$f":"SUM('Admin:15'!T94)","v":100559.19471980412},{"$f":"SUM('Admin:15'!U94)","v":0},{"$f":"SUM('Admin:15'!V94)","v":0}]
[1,"EX1130",null,null,null,"Training and development",null,null,{"$f":"SUM('Admin:15'!I95)","v":27192.178789999998},{"$f":"SUM('Admin:15'!J95)","v":30446.804909999999},{"$f":"SUM('Admin:15'!K95)","v":37071.986510000002},{"$f":"SUM('Admin:15'!L95)","v":37071.986510000002},{"$f":"SUM('Admin:15'!M95)","v":38781.005088111},{"$f":"SUM('Admin:15'!N95)","v":38781.005088111},{"$f":"SUM('Admin:15'!O95)","v":0},{"$f":"SUM('Admin:15'!P95)","v":40545.540819620044},{"$f":"SUM('Admin:15'!Q95)","v":40545.540819620044},{"$f":"SUM('Admin:15'!R95)","v":0},{"$f":"SUM('Admin:15'!S95)","v":42378.199264666873},{"$f":"SUM('Admin:15'!T95)","v":42378.199264666873},{"$f":"SUM('Admin:15'!U95)","v":0},{"$f":"SUM('Admin:15'!V95)","v":0}]
[1,"EX1132",null,null,null,"Operating payments",null,null,{"$f":"SUM('Admin:15'!I96)","v":199485.53408999997},{"$f":"SUM('Admin:15'!J96)","v":250891.45627999998},{"$f":"SUM('Admin:15'!K96)","v":193753.41074000002},{"$f":"SUM('Admin:15'!L96)","v":193753.41074000002},{"$f":"SUM('Admin:15'!M96)","v":352305.09734118043},{"$f":"SUM('Admin:15'!N96)","v":352305.09734118043},{"$f":"SUM('Admin:15'!O96)","v":0},{"$f":"SUM('Admin:15'!P96)","v":223786.59539476392},{"$f":"SUM('Admin:15'!Q96)","v":223786.59539476392},{"$f":"SUM('Admin:15'!R96)","v":0},{"$f":"SUM('Admin:15'!S96)","v":229014.90211066534},{"$f":"SUM('Admin:15'!T96)","v":229014.90211066534},{"$f":"SUM('Admin:15'!U96)","v":0},{"$f":"SUM('Admin:15'!V96)","v":0}]
[1,"EX1146",null,null,null,"Venues and facilities",null,null,{"$f":"SUM('Admin:15'!I97)","v":2546.3962300000003},{"$f":"SUM('Admin:15'!J97)","v":12377.804310000001},{"$f":"SUM('Admin:15'!K97)","v":14124.05163},{"$f":"SUM('Admin:15'!L97)","v":14124.05163},{"$f":"SUM('Admin:15'!M97)","v":14802.006108239999},{"$f":"SUM('Admin:15'!N97)","v":14802.006108239999},{"$f":"SUM('Admin:15'!O97)","v":0},{"$f":"SUM('Admin:15'!P97)","v":15512.502401435519},{"$f":"SUM('Admin:15'!Q97)","v":15512.502401435519},{"$f":"SUM('Admin:15'!R97)","v":0},{"$f":"SUM('Admin:15'!S97)","v":16257.102516704424},{"$f":"SUM('Admin:15'!T97)","v":16257.102516704424},{"$f":"SUM('Admin:15'!U97)","v":0},{"$f":"SUM('Admin:15'!V97)","v":0}]
[1,"EX113",null,null,null,"Depreciation",null,null,{"$f":"SUM('Admin:15'!I98)","v":669908},{"$f":"SUM('Admin:15'!J98)","v":592003},{"$f":"SUM('Admin:15'!K98)","v":730826.98658035218},{"$f":"SUM('Admin:15'!L98)","v":730826.98658035218},{"$f":"SUM('Admin:15'!M98)","v":611834.10536398564},{"$f":"SUM('Admin:15'!N98)","v":611834.10536398564},{"$f":"SUM('Admin:15'!O98)","v":0},{"$f":"SUM('Admin:15'!P98)","v":549506.18781142251},{"$f":"SUM('Admin:15'!Q98)","v":549506.18781142251},{"$f":"SUM('Admin:15'!R98)","v":0},{"$f":"SUM('Admin:15'!S98)","v":478340.21539785026},{"$f":"SUM('Admin:15'!T98)","v":478340.21539785026},{"$f":"SUM('Admin:15'!U98)","v":0},{"$f":"SUM('Admin:15'!V98)","v":0}]
[1,"EX114",null,null,null,"Losses from",null,null,{"$f":"SUM(I100:I101,I104)","v":24148},{"$f":"SUM(J100:J101,J104)","v":0},{"$f":"SUM(K100:K101,K104)","v":0},{"$f":"SUM(L100:L101,L104)","v":0},{"$f":"SUM(M100:M101,M104)","v":0},0,0,0,0,0,0,0,0,0]
[1,"EX1141",null,null,null,"Sale of fixed assets",null,null,{"$f":"SUM('Admin:15'!I100)","v":0},{"$f":"SUM('Admin:15'!J100)","v":0},{"$f":"SUM('Admin:15'!K100)","v":0},{"$f":"SUM('Admin:15'!L100)","v":0},{"$f":"SUM('Admin:15'!M100)","v":0},{"$f":"SUM('Admin:15'!N100)","v":0},{"$f":"SUM('Admin:15'!O100)","v":0},{"$f":"SUM('Admin:15'!P100)","v":0},{"$f":"SUM('Admin:15'!Q100)","v":0},{"$f":"SUM('Admin:15'!R100)","v":0},{"$f":"SUM('Admin:15'!S100)","v":0},{"$f":"SUM('Admin:15'!T100)","v":0},{"$f":"SUM('Admin:15'!U100)","v":0},{"$f":"SUM('Admin:15'!V100)","v":0}]
[1,"EX1142",null,null,null,"Impairments and adjustments to fair value",null,null,{"$f":"SUM(I102:I103)","v":24148},{"$f":"SUM(J102:J103)","v":0},{"$f":"SUM(K102:K103)","v":0},{"$f":"SUM(L102:L103)","v":0},0,0,0,0,0,0,0,0,0,0]
[1,"EX11421",null,null,null,"Adjustments to fair value of assets",null,null,{"$f":"SUM('Admin:15'!I102)","v":0},{"$f":"SUM('Admin:15'!J102)","v":0},{"$f":"SUM('Admin:15'!K102)","v":0},{"$f":"SUM('Admin:15'!L102)","v":0},{"$f":"SUM('Admin:15'!M102)","v":0},{"$f":"SUM('Admin:15'!N102)","v":0},{"$f":"SUM('Admin:15'!O102)","v":0},{"$f":"SUM('Admin:15'!P102)","v":0},{"$f":"SUM('Admin:15'!Q102)","v":0},{"$f":"SUM('Admin:15'!R102)","v":0},{"$f":"SUM('Admin:15'!S102)","v":0},{"$f":"SUM('Admin:15'!T102)","v":0},{"$f":"SUM('Admin:15'!U102)","v":0},{"$f":"SUM('Admin:15'!V102)","v":0}]
[1,"EX11422",null,null,null,"Impairments to assets",null,null,{"$f":"SUM('Admin:15'!I103)","v":24148},{"$f":"SUM('Admin:15'!J103)","v":0},{"$f":"SUM('Admin:15'!K103)","v":0},{"$f":"SUM('Admin:15'!L103)","v":0},{"$f":"SUM('Admin:15'!M103)","v":0},{"$f":"SUM('Admin:15'!N103)","v":0},{"$f":"SUM('Admin:15'!O103)","v":0},{"$f":"SUM('Admin:15'!P103)","v":0},{"$f":"SUM('Admin:15'!Q103)","v":0},{"$f":"SUM('Admin:15'!R103)","v":0},{"$f":"SUM('Admin:15'!S103)","v":0},{"$f":"SUM('Admin:15'!T103)","v":0},{"$f":"SUM('Admin:15'!U103)","v":0},{"$f":"SUM('Admin:15'!V103)","v":0}]
[1,"EX1143",null,null,null,"Other",null,null,{"$f":"SUM('Admin:15'!I104)","v":0},{"$f":"SUM('Admin:15'!J104)","v":0},{"$f":"SUM('Admin:15'!K104)","v":0},{"$f":"SUM('Admin:15'!L104)","v":0},{"$f":"SUM('Admin:15'!M104)","v":0},{"$f":"SUM('Admin:15'!N104)","v":0},{"$f":"SUM('Admin:15'!O104)","v":0},{"$f":"SUM('Admin:15'!P104)","v":0},{"$f":"SUM('Admin:15'!Q104)","v":0},{"$f":"SUM('Admin:15'!R104)","v":0},{"$f":"SUM('Admin:15'!S104)","v":0},{"$f":"SUM('Admin:15'!T104)","v":0},{"$f":"SUM('Admin:15'!U104)","v":0},{"$f":"SUM('Admin:15'!V104)","v":0}]
[1,"EX115",null,null,null,"Interest, dividends and rent on land",null,null,{"$f":"SUM(I106:I108)","v":9213.1408699999974},{"$f":"SUM(J106:J108)","v":7916.9601100000009},{"$f":"SUM(K106:K108)","v":217.37929000000003},{"$f":"SUM(L106:L108)","v":217.37929000000003},{"$f":"SUM(M106:M108)","v":227.400475269},227.400475269,0,237.74719689373953,237.74719689373953,0,248.49337019333655,248.49337019333655,0,0]
[1,"EX1151",null,null,null,"Interest",null,null,{"$f":"SUM('Admin:15'!I106)","v":9213.1408699999974},{"$f":"SUM('Admin:15'!J106)","v":7916.9601100000009},{"$f":"SUM('Admin:15'!K106)","v":217.37929000000003},{"$f":"SUM('Admin:15'!L106)","v":217.37929000000003},{"$f":"SUM('Admin:15'!M106)","v":227.400475269},{"$f":"SUM('Admin:15'!N106)","v":227.400475269},{"$f":"SUM('Admin:15'!O106)","v":0},{"$f":"SUM('Admin:15'!P106)","v":237.74719689373953},{"$f":"SUM('Admin:15'!Q106)","v":237.74719689373953},{"$f":"SUM('Admin:15'!R106)","v":0},{"$f":"SUM('Admin:15'!S106)","v":248.49337019333655},{"$f":"SUM('Admin:15'!T106)","v":248.49337019333655},{"$f":"SUM('Admin:15'!U106)","v":0},{"$f":"SUM('Admin:15'!V106)","v":0}]
[1,"EX1152",null,null,null,"Dividends",null,null,{"$f":"SUM('Admin:15'!I107)","v":0},{"$f":"SUM('Admin:15'!J107)","v":0},{"$f":"SUM('Admin:15'!K107)","v":0},{"$f":"SUM('Admin:15'!L107)","v":0},{"$f":"SUM('Admin:15'!M107)","v":0},{"$f":"SUM('Admin:15'!N107)","v":0},{"$f":"SUM('Admin:15'!O107)","v":0},{"$f":"SUM('Admin:15'!P107)","v":0},{"$f":"SUM('Admin:15'!Q107)","v":0},{"$f":"SUM('Admin:15'!R107)","v":0},{"$f":"SUM('Admin:15'!S107)","v":0},{"$f":"SUM('Admin:15'!T107)","v":0},{"$f":"SUM('Admin:15'!U107)","v":0},{"$f":"SUM('Admin:15'!V107)","v":0}]
[1,"EX1153",null,null,null,"Rent on land",null,null,{"$f":"SUM('Admin:15'!I108)","v":0},{"$f":"SUM('Admin:15'!J108)","v":0},{"$f":"SUM('Admin:15'!K108)","v":0},{"$f":"SUM('Admin:15'!L108)","v":0},{"$f":"SUM('Admin:15'!M108)","v":0},{"$f":"SUM('Admin:15'!N108)","v":0},{"$f":"SUM('Admin:15'!O108)","v":0},{"$f":"SUM('Admin:15'!P108)","v":0},{"$f":"SUM('Admin:15'!Q108)","v":0},{"$f":"SUM('Admin:15'!R108)","v":0},{"$f":"SUM('Admin:15'!S108)","v":0},{"$f":"SUM('Admin:15'!T108)","v":0},{"$f":"SUM('Admin:15'!U108)","v":0},{"$f":"SUM('Admin:15'!V108)","v":0}]
[1,"EX12",null,null,null,"Transfers and subsidies",null,null,{"$f":"SUM(I110,I121,I132:I135)","v":0},{"$f":"SUM(J110,J121,J132:J135)","v":0},{"$f":"SUM(K110,K121,K132:K135)","v":0},{"$f":"SUM(L110,L121,L132:L135)","v":0},{"$f":"SUM(M110,M121,M132:M135)","v":0},0,0,0,0,0,0,0,0,0]
[2,"EX121",null,null,null,"Employer Grant (SETAs only)",null,null,{"$f":"SUM(I111,I117,I120)","v":0},{"$f":"SUM(J111,J117,J120)","v":0},{"$f":"SUM(K111,K117,K120)","v":0},{"$f":"SUM(L111,L117,L120)","v":0},{"$f":"SUM(M111,M117,M120)","v":0},0,0,0,0,0,0,0,0,0]
[1,"EX122",null,null,null,"Other government units",null,null,{"$f":"SUM(I112:I116)","v":0},{"$f":"SUM(J112:J116)","v":0},{"$f":"SUM(K112:K116)","v":0},{"$f":"SUM(L112:L116)","v":0},{"$f":"SUM(M112:M116)","v":0},0,0,0,0,0,0,0,0,0]
[1,"EX1221",null,null,null,"National government",null,null,{"$f":"SUM('Admin:15'!I112)","v":0},{"$f":"SUM('Admin:15'!J112)","v":0},{"$f":"SUM('Admin:15'!K112)","v":0},{"$f":"SUM('Admin:15'!L112)","v":0},{"$f":"SUM('Admin:15'!M112)","v":0},{"$f":"SUM('Admin:15'!N112)","v":0},{"$f":"SUM('Admin:15'!O112)","v":0},{"$f":"SUM('Admin:15'!P112)","v":0},{"$f":"SUM('Admin:15'!Q112)","v":0},{"$f":"SUM('Admin:15'!R112)","v":0},{"$f":"SUM('Admin:15'!S112)","v":0},{"$f":"SUM('Admin:15'!T112)","v":0},{"$f":"SUM('Admin:15'!U112)","v":0},{"$f":"SUM('Admin:15'!V112)","v":0}]
[1,"EX1222",null,null,null,"Departmental agencies and accounts",null,null,{"$f":"SUM('Admin:15'!I113)","v":0},{"$f":"SUM('Admin:15'!J113)","v":0},{"$f":"SUM('Admin:15'!K113)","v":0},{"$f":"SUM('Admin:15'!L113)","v":0},{"$f":"SUM('Admin:15'!M113)","v":0},{"$f":"SUM('Admin:15'!N113)","v":0},{"$f":"SUM('Admin:15'!O113)","v":0},{"$f":"SUM('Admin:15'!P113)","v":0},{"$f":"SUM('Admin:15'!Q113)","v":0},{"$f":"SUM('Admin:15'!R113)","v":0},{"$f":"SUM('Admin:15'!S113)","v":0},{"$f":"SUM('Admin:15'!T113)","v":0},{"$f":"SUM('Admin:15'!U113)","v":0},{"$f":"SUM('Admin:15'!V113)","v":0}]
[1,"EX1223",null,null,null,"Provinces",null,null,{"$f":"SUM('Admin:15'!I114)","v":0},{"$f":"SUM('Admin:15'!J114)","v":0},{"$f":"SUM('Admin:15'!K114)","v":0},{"$f":"SUM('Admin:15'!L114)","v":0},{"$f":"SUM('Admin:15'!M114)","v":0},{"$f":"SUM('Admin:15'!N114)","v":0},{"$f":"SUM('Admin:15'!O114)","v":0},{"$f":"SUM('Admin:15'!P114)","v":0},{"$f":"SUM('Admin:15'!Q114)","v":0},{"$f":"SUM('Admin:15'!R114)","v":0},{"$f":"SUM('Admin:15'!S114)","v":0},{"$f":"SUM('Admin:15'!T114)","v":0},{"$f":"SUM('Admin:15'!U114)","v":0},{"$f":"SUM('Admin:15'!V114)","v":0}]
[1,"EX1224",null,null,null,"Municipalities",null,null,{"$f":"SUM('Admin:15'!I115)","v":0},{"$f":"SUM('Admin:15'!J115)","v":0},{"$f":"SUM('Admin:15'!K115)","v":0},{"$f":"SUM('Admin:15'!L115)","v":0},{"$f":"SUM('Admin:15'!M115)","v":0},{"$f":"SUM('Admin:15'!N115)","v":0},{"$f":"SUM('Admin:15'!O115)","v":0},{"$f":"SUM('Admin:15'!P115)","v":0},{"$f":"SUM('Admin:15'!Q115)","v":0},{"$f":"SUM('Admin:15'!R115)","v":0},{"$f":"SUM('Admin:15'!S115)","v":0},{"$f":"SUM('Admin:15'!T115)","v":0},{"$f":"SUM('Admin:15'!U115)","v":0},{"$f":"SUM('Admin:15'!V115)","v":0}]
[2,"EX1225",null,null,null,"National Skills Fund",null,null,{"$f":"SUM('Admin:15'!I116)","v":0},{"$f":"SUM('Admin:15'!J116)","v":0},{"$f":"SUM('Admin:15'!K116)","v":0},{"$f":"SUM('Admin:15'!L116)","v":0},{"$f":"SUM('Admin:15'!M116)","v":0},{"$f":"SUM('Admin:15'!N116)","v":0},{"$f":"SUM('Admin:15'!O116)","v":0},{"$f":"SUM('Admin:15'!P116)","v":0},{"$f":"SUM('Admin:15'!Q116)","v":0},{"$f":"SUM('Admin:15'!R116)","v":0},{"$f":"SUM('Admin:15'!S116)","v":0},{"$f":"SUM('Admin:15'!T116)","v":0},{"$f":"SUM('Admin:15'!U116)","v":0},{"$f":"SUM('Admin:15'!V116)","v":0}]
[1,"EX123",null,null,null,"Public corporations and private enterprises (subsidies and other transfers)",null,null,{"$f":"SUM(I118:I119)","v":0},{"$f":"SUM(J118:J119)","v":0},{"$f":"SUM(K118:K119)","v":0},{"$f":"SUM(L118:L119)","v":0},{"$f":"SUM(M118:M119)","v":0},0,0,0,0,0,0,0,0,0]
[1,"EX1231",null,null,null,"Public corporations",null,null,{"$f":"SUM('Admin:15'!I118)","v":0},{"$f":"SUM('Admin:15'!J118)","v":0},{"$f":"SUM('Admin:15'!K118)","v":0},{"$f":"SUM('Admin:15'!L118)","v":0},{"$f":"SUM('Admin:15'!M118)","v":0},{"$f":"SUM('Admin:15'!N118)","v":0},{"$f":"SUM('Admin:15'!O118)","v":0},{"$f":"SUM('Admin:15'!P118)","v":0},{"$f":"SUM('Admin:15'!Q118)","v":0},{"$f":"SUM('Admin:15'!R118)","v":0},{"$f":"SUM('Admin:15'!S118)","v":0},{"$f":"SUM('Admin:15'!T118)","v":0},{"$f":"SUM('Admin:15'!U118)","v":0},{"$f":"SUM('Admin:15'!V118)","v":0}]
[1,"EX1232",null,null,null,"Private enterprises",null,null,{"$f":"SUM('Admin:15'!I119)","v":0},{"$f":"SUM('Admin:15'!J119)","v":0},{"$f":"SUM('Admin:15'!K119)","v":0},{"$f":"SUM('Admin:15'!L119)","v":0},{"$f":"SUM('Admin:15'!M119)","v":0},{"$f":"SUM('Admin:15'!N119)","v":0},{"$f":"SUM('Admin:15'!O119)","v":0},{"$f":"SUM('Admin:15'!P119)","v":0},{"$f":"SUM('Admin:15'!Q119)","v":0},{"$f":"SUM('Admin:15'!R119)","v":0},{"$f":"SUM('Admin:15'!S119)","v":0},{"$f":"SUM('Admin:15'!T119)","v":0},{"$f":"SUM('Admin:15'!U119)","v":0},{"$f":"SUM('Admin:15'!V119)","v":0}]
[2,"EX124",null,null,null,"Households and non government units",null,null,{"$f":"SUM('Admin:15'!I120)","v":0},{"$f":"SUM('Admin:15'!J120)","v":0},{"$f":"SUM('Admin:15'!K120)","v":0},{"$f":"SUM('Admin:15'!L120)","v":0},{"$f":"SUM('Admin:15'!M120)","v":0},{"$f":"SUM('Admin:15'!N120)","v":0},{"$f":"SUM('Admin:15'!O120)","v":0},{"$f":"SUM('Admin:15'!P120)","v":0},{"$f":"SUM('Admin:15'!Q120)","v":0},{"$f":"SUM('Admin:15'!R120)","v":0},{"$f":"SUM('Admin:15'!S120)","v":0},{"$f":"SUM('Admin:15'!T120)","v":0},{"$f":"SUM('Admin:15'!U120)","v":0},{"$f":"SUM('Admin:15'!V120)","v":0}]
[2,"EX125",null,null,null,"Discretionary Grant (SETAs only)",null,null,{"$f":"SUM(I122,I128,I131)","v":0},{"$f":"SUM(J122,J128,J131)","v":0},{"$f":"SUM(K122,K128,K131)","v":0},{"$f":"SUM(L122,L128,L131)","v":0},{"$f":"SUM(M122,M128,M131)","v":0},0,0,0,0,0,0,0,0,0]
[2,"EX126",null,null,null,"Other government units",null,null,{"$f":"SUM('Admin:15'!I122)","v":0},{"$f":"SUM('Admin:15'!J122)","v":0},{"$f":"SUM('Admin:15'!K122)","v":0},{"$f":"SUM('Admin:15'!L122)","v":0},{"$f":"SUM('Admin:15'!M122)","v":0},{"$f":"SUM('Admin:15'!N122)","v":0},{"$f":"SUM('Admin:15'!O122)","v":0},{"$f":"SUM('Admin:15'!P122)","v":0},{"$f":"SUM('Admin:15'!Q122)","v":0},{"$f":"SUM('Admin:15'!R122)","v":0},{"$f":"SUM('Admin:15'!S122)","v":0},{"$f":"SUM('Admin:15'!T122)","v":0},{"$f":"SUM('Admin:15'!U122)","v":0},{"$f":"SUM('Admin:15'!V122)","v":0}]
[2,"EX1261",null,null,null,"National government",null,null,{"$f":"SUM('Admin:15'!I123)","v":0},{"$f":"SUM('Admin:15'!J123)","v":0},{"$f":"SUM('Admin:15'!K123)","v":0},{"$f":"SUM('Admin:15'!L123)","v":0},{"$f":"SUM('Admin:15'!M123)","v":0},{"$f":"SUM('Admin:15'!N123)","v":0},{"$f":"SUM('Admin:15'!O123)","v":0},{"$f":"SUM('Admin:15'!P123)","v":0},{"$f":"SUM('Admin:15'!Q123)","v":0},{"$f":"SUM('Admin:15'!R123)","v":0},{"$f":"SUM('Admin:15'!S123)","v":0},{"$f":"SUM('Admin:15'!T123)","v":0},{"$f":"SUM('Admin:15'!U123)","v":0},{"$f":"SUM('Admin:15'!V123)","v":0}]
[2,"EX1262",null,null,null,"Departmental agencies and accounts",null,null,{"$f":"SUM('Admin:15'!I124)","v":0},{"$f":"SUM('Admin:15'!J124)","v":0},{"$f":"SUM('Admin:15'!K124)","v":0},{"$f":"SUM('Admin:15'!L124)","v":0},{"$f":"SUM('Admin:15'!M124)","v":0},{"$f":"SUM('Admin:15'!N124)","v":0},{"$f":"SUM('Admin:15'!O124)","v":0},{"$f":"SUM('Admin:15'!P124)","v":0},{"$f":"SUM('Admin:15'!Q124)","v":0},{"$f":"SUM('Admin:15'!R124)","v":0},{"$f":"SUM('Admin:15'!S124)","v":0},{"$f":"SUM('Admin:15'!T124)","v":0},{"$f":"SUM('Admin:15'!U124)","v":0},{"$f":"SUM('Admin:15'!V124)","v":0}]
[2,"EX1263",null,null,null,"Provinces",null,null,{"$f":"SUM('Admin:15'!I125)","v":0},{"$f":"SUM('Admin:15'!J125)","v":0},{"$f":"SUM('Admin:15'!K125)","v":0},{"$f":"SUM('Admin:15'!L125)","v":0},{"$f":"SUM('Admin:15'!M125)","v":0},{"$f":"SUM('Admin:15'!N125)","v":0},{"$f":"SUM('Admin:15'!O125)","v":0},{"$f":"SUM('Admin:15'!P125)","v":0},{"$f":"SUM('Admin:15'!Q125)","v":0},{"$f":"SUM('Admin:15'!R125)","v":0},{"$f":"SUM('Admin:15'!S125)","v":0},{"$f":"SUM('Admin:15'!T125)","v":0},{"$f":"SUM('Admin:15'!U125)","v":0},{"$f":"SUM('Admin:15'!V125)","v":0}]
[2,"EX1264",null,null,null,"Municipalities",null,null,{"$f":"SUM('Admin:15'!I126)","v":0},{"$f":"SUM('Admin:15'!J126)","v":0},{"$f":"SUM('Admin:15'!K126)","v":0},{"$f":"SUM('Admin:15'!L126)","v":0},{"$f":"SUM('Admin:15'!M126)","v":0},{"$f":"SUM('Admin:15'!N126)","v":0},{"$f":"SUM('Admin:15'!O126)","v":0},{"$f":"SUM('Admin:15'!P126)","v":0},{"$f":"SUM('Admin:15'!Q126)","v":0},{"$f":"SUM('Admin:15'!R126)","v":0},{"$f":"SUM('Admin:15'!S126)","v":0},{"$f":"SUM('Admin:15'!T126)","v":0},{"$f":"SUM('Admin:15'!U126)","v":0},{"$f":"SUM('Admin:15'!V126)","v":0}]
[2,"EX1265",null,null,null,"National Skills Fund",null,null,{"$f":"SUM('Admin:15'!I127)","v":0},{"$f":"SUM('Admin:15'!J127)","v":0},{"$f":"SUM('Admin:15'!K127)","v":0},{"$f":"SUM('Admin:15'!L127)","v":0},{"$f":"SUM('Admin:15'!M127)","v":0},{"$f":"SUM('Admin:15'!N127)","v":0},{"$f":"SUM('Admin:15'!O127)","v":0},{"$f":"SUM('Admin:15'!P127)","v":0},{"$f":"SUM('Admin:15'!Q127)","v":0},{"$f":"SUM('Admin:15'!R127)","v":0},{"$f":"SUM('Admin:15'!S127)","v":0},{"$f":"SUM('Admin:15'!T127)","v":0},{"$f":"SUM('Admin:15'!U127)","v":0},{"$f":"SUM('Admin:15'!V127)","v":0}]
[2,"EX127",null,null,null,"Public corporations and private enterprises (subsidies and other transfers)",null,null,{"$f":"SUM(I129:I130)","v":0},{"$f":"SUM(J129:J130)","v":0},{"$f":"SUM(K129:K130)","v":0},{"$f":"SUM(L129:L130)","v":0},{"$f":"SUM(M129:M130)","v":0},0,0,0,0,0,0,0,0,0]
[2,"EX1271",null,null,null,"Public corporations",null,null,{"$f":"SUM('Admin:15'!I129)","v":0},{"$f":"SUM('Admin:15'!J129)","v":0},{"$f":"SUM('Admin:15'!K129)","v":0},{"$f":"SUM('Admin:15'!L129)","v":0},{"$f":"SUM('Admin:15'!M129)","v":0},{"$f":"SUM('Admin:15'!N129)","v":0},{"$f":"SUM('Admin:15'!O129)","v":0},{"$f":"SUM('Admin:15'!P129)","v":0},{"$f":"SUM('Admin:15'!Q129)","v":0},{"$f":"SUM('Admin:15'!R129)","v":0},{"$f":"SUM('Admin:15'!S129)","v":0},{"$f":"SUM('Admin:15'!T129)","v":0},{"$f":"SUM('Admin:15'!U129)","v":0},{"$f":"SUM('Admin:15'!V129)","v":0}]
[2,"EX1272",null,null,null,"Private enterprises",null,null,{"$f":"SUM('Admin:15'!I130)","v":0},{"$f":"SUM('Admin:15'!J130)","v":0},{"$f":"SUM('Admin:15'!K130)","v":0},{"$f":"SUM('Admin:15'!L130)","v":0},{"$f":"SUM('Admin:15'!M130)","v":0},{"$f":"SUM('Admin:15'!N130)","v":0},{"$f":"SUM('Admin:15'!O130)","v":0},{"$f":"SUM('Admin:15'!P130)","v":0},{"$f":"SUM('Admin:15'!Q130)","v":0},{"$f":"SUM('Admin:15'!R130)","v":0},{"$f":"SUM('Admin:15'!S130)","v":0},{"$f":"SUM('Admin:15'!T130)","v":0},{"$f":"SUM('Admin:15'!U130)","v":0},{"$f":"SUM('Admin:15'!V130)","v":0}]
[2,"EX128",null,null,null,"Households and non government units",null,null,{"$f":"SUM('Admin:15'!I131)","v":0},{"$f":"SUM('Admin:15'!J131)","v":0},{"$f":"SUM('Admin:15'!K131)","v":0},{"$f":"SUM('Admin:15'!L131)","v":0},{"$f":"SUM('Admin:15'!M131)","v":0},{"$f":"SUM('Admin:15'!N131)","v":0},{"$f":"SUM('Admin:15'!O131)","v":0},{"$f":"SUM('Admin:15'!P131)","v":0},{"$f":"SUM('Admin:15'!Q131)","v":0},{"$f":"SUM('Admin:15'!R131)","v":0},{"$f":"SUM('Admin:15'!S131)","v":0},{"$f":"SUM('Admin:15'!T131)","v":0},{"$f":"SUM('Admin:15'!U131)","v":0},{"$f":"SUM('Admin:15'!V131)","v":0}]
[1,"EX129",null,null,null,"Higher education institutions",null,null,{"$f":"SUM('Admin:15'!I132)","v":0},{"$f":"SUM('Admin:15'!J132)","v":0},{"$f":"SUM('Admin:15'!K132)","v":0},{"$f":"SUM('Admin:15'!L132)","v":0},{"$f":"SUM('Admin:15'!M132)","v":0},{"$f":"SUM('Admin:15'!N132)","v":0},{"$f":"SUM('Admin:15'!O132)","v":0},{"$f":"SUM('Admin:15'!P132)","v":0},{"$f":"SUM('Admin:15'!Q132)","v":0},{"$f":"SUM('Admin:15'!R132)","v":0},{"$f":"SUM('Admin:15'!S132)","v":0},{"$f":"SUM('Admin:15'!T132)","v":0},{"$f":"SUM('Admin:15'!U132)","v":0},{"$f":"SUM('Admin:15'!V132)","v":0}]
[1,"EX130",null,null,null,"Foreign governments and international organisations ",null,null,{"$f":"SUM('Admin:15'!I133)","v":0},{"$f":"SUM('Admin:15'!J133)","v":0},{"$f":"SUM('Admin:15'!K133)","v":0},{"$f":"SUM('Admin:15'!L133)","v":0},{"$f":"SUM('Admin:15'!M133)","v":0},{"$f":"SUM('Admin:15'!N133)","v":0},{"$f":"SUM('Admin:15'!O133)","v":0},{"$f":"SUM('Admin:15'!P133)","v":0},{"$f":"SUM('Admin:15'!Q133)","v":0},{"$f":"SUM('Admin:15'!R133)","v":0},{"$f":"SUM('Admin:15'!S133)","v":0},{"$f":"SUM('Admin:15'!T133)","v":0},{"$f":"SUM('Admin:15'!U133)","v":0},{"$f":"SUM('Admin:15'!V133)","v":0}]
[1,"EX131",null,null,null,"Non-profit institutions",null,null,{"$f":"SUM('Admin:15'!I134)","v":0},{"$f":"SUM('Admin:15'!J134)","v":0},{"$f":"SUM('Admin:15'!K134)","v":0},{"$f":"SUM('Admin:15'!L134)","v":0},{"$f":"SUM('Admin:15'!M134)","v":0},{"$f":"SUM('Admin:15'!N134)","v":0},{"$f":"SUM('Admin:15'!O134)","v":0},{"$f":"SUM('Admin:15'!P134)","v":0},{"$f":"SUM('Admin:15'!Q134)","v":0},{"$f":"SUM('Admin:15'!R134)","v":0},{"$f":"SUM('Admin:15'!S134)","v":0},{"$f":"SUM('Admin:15'!T134)","v":0},{"$f":"SUM('Admin:15'!U134)","v":0},{"$f":"SUM('Admin:15'!V134)","v":0}]
[1,"EX132",null,null,null,"Households",null,null,{"$f":"SUM(I136:I137)","v":0},{"$f":"SUM(J136:J137)","v":0},{"$f":"SUM(K136:K137)","v":0},{"$f":"SUM(L136:L137)","v":0},{"$f":"SUM(M136:M137)","v":0},0,0,0,0,0,0,0,0,0]
[1,"EX1301",null,null,null,"Social benefits ",null,null,{"$f":"SUM('Admin:15'!I136)","v":0},{"$f":"SUM('Admin:15'!J136)","v":0},{"$f":"SUM('Admin:15'!K136)","v":0},{"$f":"SUM('Admin:15'!L136)","v":0},{"$f":"SUM('Admin:15'!M136)","v":0},{"$f":"SUM('Admin:15'!N136)","v":0},{"$f":"SUM('Admin:15'!O136)","v":0},{"$f":"SUM('Admin:15'!P136)","v":0},{"$f":"SUM('Admin:15'!Q136)","v":0},{"$f":"SUM('Admin:15'!R136)","v":0},{"$f":"SUM('Admin:15'!S136)","v":0},{"$f":"SUM('Admin:15'!T136)","v":0},{"$f":"SUM('Admin:15'!U136)","v":0},{"$f":"SUM('Admin:15'!V136)","v":0}]
[1,"EX1302",null,null,null,"Other transfers to households",null,null,{"$f":"SUM('Admin:15'!I137)","v":0},{"$f":"SUM('Admin:15'!J137)","v":0},{"$f":"SUM('Admin:15'!K137)","v":0},{"$f":"SUM('Admin:15'!L137)","v":0},{"$f":"SUM('Admin:15'!M137)","v":0},{"$f":"SUM('Admin:15'!N137)","v":0},{"$f":"SUM('Admin:15'!O137)","v":0},{"$f":"SUM('Admin:15'!P137)","v":0},{"$f":"SUM('Admin:15'!Q137)","v":0},{"$f":"SUM('Admin:15'!R137)","v":0},{"$f":"SUM('Admin:15'!S137)","v":0},{"$f":"SUM('Admin:15'!T137)","v":0},{"$f":"SUM('Admin:15'!U137)","v":0},{"$f":"SUM('Admin:15'!V137)","v":0}]
[1,"EX13",null,null,null,"Tax payment",null,null,{"$f":"SUM('Admin:15'!I138)","v":0},{"$f":"SUM('Admin:15'!J138)","v":0},{"$f":"SUM('Admin:15'!K138)","v":0},{"$f":"SUM('Admin:15'!L138)","v":0},{"$f":"SUM('Admin:15'!M138)","v":0},{"$f":"SUM('Admin:15'!N138)","v":0},{"$f":"SUM('Admin:15'!O138)","v":0},{"$f":"SUM('Admin:15'!P138)","v":0},{"$f":"SUM('Admin:15'!Q138)","v":0},{"$f":"SUM('Admin:15'!R138)","v":0},{"$f":"SUM('Admin:15'!S138)","v":0},{"$f":"SUM('Admin:15'!T138)","v":0},{"$f":"SUM('Admin:15'!U138)","v":0},{"$f":"SUM('Admin:15'!V138)","v":0}]
[1,"EX14",null,null,null,"Outside shareholders Interest",null,null,{"$f":"SUM('Admin:15'!I139)","v":0},{"$f":"SUM('Admin:15'!J139)","v":0},{"$f":"SUM('Admin:15'!K139)","v":0},{"$f":"SUM('Admin:15'!L139)","v":0},{"$f":"SUM('Admin:15'!M139)","v":0},{"$f":"SUM('Admin:15'!N139)","v":0},{"$f":"SUM('Admin:15'!O139)","v":0},{"$f":"SUM('Admin:15'!P139)","v":0},{"$f":"SUM('Admin:15'!Q139)","v":0},{"$f":"SUM('Admin:15'!R139)","v":0},{"$f":"SUM('Admin:15'!S139)","v":0},{"$f":"SUM('Admin:15'!T139)","v":0},{"$f":"SUM('Admin:15'!U139)","v":0},{"$f":"SUM('Admin:15'!V139)","v":0}]
[1,"EX15",null,null,null,"Total Expenditure",null,null,{"$f":"SUM(I39,I109,I138:I139)","v":11990466.348149998},{"$f":"SUM(J39,J109,J138:J139)","v":13077380.232659999},{"$f":"SUM(K39,K109,K138:K139)","v":14211908.925360348},{"$f":"SUM(L39,L109,L138:L139)","v":14211908.925360348},{"$f":"SUM(M39,M109,M138:M139)","v":15564581.248370012},15564581.248370012,0,15507164.239034686,15507164.239034686,0,16284536.679091636,16284536.679091636,0,0,null,{"$f":"IF(V140<T140/2,\"Complete the outer year in the Objective sheets\",\"\")","v":"Complete the outer year in the Objective sheets"}]
[1]
[1,null,null,null,null,"Objective less Expenditure",null,{"$f":"ROUND(IF(H36-H140>0,IF(H40-H140<1,0,H36-H140),H36-H140),0)","v":0},{"$f":"ROUND(IF(I36-I140>0,IF(I36-I140<1,0,I36-I140),I36-I140),0)","v":1},{"$f":"ROUND(IF(J36-J140>0,IF(J36-J140<1,0,J36-J140),J36-J140),0)","v":0},0,0,0,0,0,0,0,0,0,0,0,0]
[1]

{"sheet":"CashFlow","index":21,"n_rows":222,"n_cols":21,"rows_kept":222,"cut":false,"hidden":false,"merged":[[7,16,7,17],[7,10,7,11],[7,12,7,13],[7,14,7,15]]}
[]
[]
[]
[]
[]
[null,null,null,null,null,"PE No",{"$f":"Settings!$O$2","v":"PE126"}]
[null,null,null,null,null,"Entity name",{"$f":"Settings!$E$2","v":"South African Revenue Service"}]
[null,null,null,null,null,null,"Notes",null,{"$f":"MyYearM3","v":"2022/23"},{"$f":"MyYearM2","v":"2023/24"},{"$f":"MyYearM1","v":"2024/25"},null,{"$f":"MyYear0","v":"2025/26"},null,{"$f":"MyYearP1","v":"2026/27"},null,{"$f":"MyYearP2","v":"2027/28"},null,{"$f":"MyYearP3","v":"2028/29"}]
[null,null,null,null,null,"Cash flow data",null,null,{"$f":"Hist_year2RestatedAudited","v":"Audited\noutcome"},{"$f":"Hist_year2RestatedAudited","v":"Audited\noutcome"},{"$f":"Hist_year1Budget","v":"Budget"},{"$f":"Hist_year1Audited","v":"Audited\noutcome"},{"$f":"Cur_YearBudgEst","v":"Budget\nestimate"},{"$f":"Cur_YearApprovedBudg","v":"Approved budget"},{"$f":"MTEF1BudgEst","v":"Budget\nestimate"},{"$f":"MTEF1RevBudgEst","v":"Revised\nbudget\nestimate"},{"$f":"MTEF2BudgEst","v":"Budget\nestimate"},{"$f":"MTEF2RevBudgEst","v":"Revised\nbudget\nestimate"},{"$f":"MTEF3PlanBudgetEst","v":"Planning\nbudget \nestimate"}]
["ItemCat","Item code","Hide/unhide",null,null,"R Thousand"]
[1,"CF3",null,null,null,"Cash flow from operating activities",null,null,{"$f":"(I12-I58)","v":665308.37268999964},856437.24493999965,-380523.90497189574,-380523.90497189574,1140053.0617051907,1140053.0617051907,485904.0780388359,485904.0780388359,294684.81750541553,294684.81750541553,0]
[1,"CF1",null,null,null,"Cash receipts from stakeholders",null,null,{"$f":"SUM(I13,I14,I30,I48:I49,I53,I56:I57)","v":12169187},13806595,12946582.556904105,12946582.556904105,15942360.806116154,15942360.806116154,15448121.159190124,15448121.159190124,16029705.772610115,16029705.772610115,0,null,{"$f":"IF(S12<R12/2,\"Complete outer year budget\",\"\")","v":"Complete outer year budget"}]
[1,"CF11",null,null,null,"Tax receipts",1,null,{"$f":"[1]CashFlow!J13","v":0},{"$f":"[1]CashFlow!L13","v":0},{"$f":"[1]CashFlow!N13","v":0},{"$f":"[1]CashFlow!N13","v":0},{"$f":"[1]CashFlow!P13","v":0},{"$f":"[1]CashFlow!P13","v":0},{"$f":"[1]CashFlow!R13","v":0},{"$f":"[1]CashFlow!R13","v":0},{"$f":"[1]CashFlow!S13","v":0},{"$f":"[1]CashFlow!S13","v":0}]
[1,"CF12",null,null,null,"Sales of goods and services other than capital assets",2,null,{"$f":"SUM(I15,I29)","v":430771},{"$f":"SUM(J15,J29)","v":377667},431549.4111441056,431549.4111441056,443999.80611615477,443999.80611615477,456813.79119011993,456813.79119011993,470002.07563411363,470002.07563411363,0]
[1,"CF1111",null,null,null,"Sales of goods and services produced by entity",3,null,{"$f":"SUM(I16,I21,I26)","v":430771},{"$f":"SUM(J16,J21,J26)","v":377667},431549.4111441056,431549.4111441056,443999.80611615477,443999.80611615477,456813.79119011993,456813.79119011993,470002.07563411363,470002.07563411363,0]
[1,"CF11111",null,null,null,"Administrative fees",4,null,{"$f":"SUM(I17:I20)","v":0},{"$f":"SUM(J17:J20)","v":0},0,0,0,0,0,0,0,0,0]
[1,"CF111111",null,null,null,{"$f":"[1]CashFlow!F17","v":"Please specify"},null,null,{"$f":"[1]CashFlow!J17","v":0},{"$f":"[1]CashFlow!L17","v":0},{"$f":"[1]CashFlow!N17","v":0},{"$f":"[1]CashFlow!N17","v":0},{"$f":"[1]CashFlow!P17","v":0},{"$f":"[1]CashFlow!P17","v":0},{"$f":"[1]CashFlow!R17","v":0},{"$f":"[1]CashFlow!R17","v":0},{"$f":"[1]CashFlow!S17","v":0},{"$f":"[1]CashFlow!S17","v":0}]
[1,"CF111112",null,null,null,{"$f":"[1]CashFlow!F18","v":"Please specify"},null,null,{"$f":"[1]CashFlow!J18","v":0},{"$f":"[1]CashFlow!L18","v":0},{"$f":"[1]CashFlow!N18","v":0},{"$f":"[1]CashFlow!N18","v":0},{"$f":"[1]CashFlow!P18","v":0},{"$f":"[1]CashFlow!P18","v":0},{"$f":"[1]CashFlow!R18","v":0},{"$f":"[1]CashFlow!R18","v":0},{"$f":"[1]CashFlow!S18","v":0},{"$f":"[1]CashFlow!S18","v":0}]
[1,"CF111113",null,null,null,{"$f":"[1]CashFlow!F19","v":"Please specify"},null,null,{"$f":"[1]CashFlow!J19","v":0},{"$f":"[1]CashFlow!L19","v":0},{"$f":"[1]CashFlow!N19","v":0},{"$f":"[1]CashFlow!N19","v":0},{"$f":"[1]CashFlow!P19","v":0},{"$f":"[1]CashFlow!P19","v":0},{"$f":"[1]CashFlow!R19","v":0},{"$f":"[1]CashFlow!R19","v":0},{"$f":"[1]CashFlow!S19","v":0},{"$f":"[1]CashFlow!S19","v":0}]
[1,"CF111114",null,null,null,{"$f":"[1]CashFlow!F20","v":"Please specify"},null,null,{"$f":"[1]CashFlow!J20","v":0},{"$f":"[1]CashFlow!L20","v":0},{"$f":"[1]CashFlow!N20","v":0},{"$f":"[1]CashFlow!N20","v":0},{"$f":"[1]CashFlow!P20","v":0},{"$f":"[1]CashFlow!P20","v":0},{"$f":"[1]CashFlow!R20","v":0},{"$f":"[1]CashFlow!R20","v":0},{"$f":"[1]CashFlow!S20","v":0},{"$f":"[1]CashFlow!S20","v":0}]
[1,"CF11112",null,null,null,"Sales by market establishments",5,null,{"$f":"SUM(I22:I25)","v":0},{"$f":"SUM(J22:J25)","v":0},0,0,0,0,0,0,0,0,{"$f":"SUM(S22:S25)","v":0}]
[1,"CF111121",null,null,null,{"$f":"[1]CashFlow!F22","v":"Please specify"},null,null,{"$f":"[1]CashFlow!J22","v":0},{"$f":"[1]CashFlow!L22","v":0},{"$f":"[1]CashFlow!N22","v":0},{"$f":"[1]CashFlow!N22","v":0},{"$f":"[1]CashFlow!P22","v":0},{"$f":"[1]CashFlow!P22","v":0},{"$f":"[1]CashFlow!R22","v":0},{"$f":"[1]CashFlow!R22","v":0},{"$f":"[1]CashFlow!S22","v":0},{"$f":"[1]CashFlow!S22","v":0}]
[1,"CF111122",null,null,null,{"$f":"[1]CashFlow!F23","v":"Please specify"},null,null,{"$f":"[1]CashFlow!J23","v":0},{"$f":"[1]CashFlow!L23","v":0},{"$f":"[1]CashFlow!N23","v":0},{"$f":"[1]CashFlow!N23","v":0},{"$f":"[1]CashFlow!P23","v":0},{"$f":"[1]CashFlow!P23","v":0},{"$f":"[1]CashFlow!R23","v":0},{"$f":"[1]CashFlow!R23","v":0},{"$f":"[1]CashFlow!S23","v":0},{"$f":"[1]CashFlow!S23","v":0}]
[1,"CF111123",null,null,null,{"$f":"[1]CashFlow!F24","v":"Please specify"},null,null,{"$f":"[1]CashFlow!J24","v":0},{"$f":"[1]CashFlow!L24","v":0},{"$f":"[1]CashFlow!N24","v":0},{"$f":"[1]CashFlow!N24","v":0},{"$f":"[1]CashFlow!P24","v":0},{"$f":"[1]CashFlow!P24","v":0},{"$f":"[1]CashFlow!R24","v":0},{"$f":"[1]CashFlow!R24","v":0},{"$f":"[1]CashFlow!S24","v":0},{"$f":"[1]CashFlow!S24","v":0}]
[1,"CF111124",null,null,null,{"$f":"[1]CashFlow!F25","v":"Please specify"},null,null,{"$f":"[1]CashFlow!J25","v":0},{"$f":"[1]CashFlow!L25","v":0},{"$f":"[1]CashFlow!N25","v":0},{"$f":"[1]CashFlow!N25","v":0},{"$f":"[1]CashFlow!P25","v":0},{"$f":"[1]CashFlow!P25","v":0},{"$f":"[1]CashFlow!R25","v":0},{"$f":"[1]CashFlow!R25","v":0},{"$f":"[1]CashFlow!S25","v":0},{"$f":"[1]CashFlow!S25","v":0}]
[1,"CF11113",null,null,null,"Other sales",6,null,{"$f":"SUM(I27:I28)","v":430771},{"$f":"SUM(J27:J28)","v":377667},431549.4111441056,431549.4111441056,443999.80611615477,443999.80611615477,456813.79119011993,456813.79119011993,470002.07563411363,470002.07563411363,0]
[1,"CF111131",null,null,null,"User charges",null,null,{"$f":"[1]CashFlow!J27","v":430771},{"$f":"[1]CashFlow!L27","v":377667},{"$f":"[1]CashFlow!N27","v":431549.4111441056},{"$f":"[1]CashFlow!N27","v":431549.4111441056},{"$f":"[1]CashFlow!P27","v":443999.80611615477},{"$f":"[1]CashFlow!P27","v":443999.80611615477},{"$f":"[1]CashFlow!R27","v":456813.79119011993},{"$f":"[1]CashFlow!R27","v":456813.79119011993},{"$f":"[1]CashFlow!S27","v":470002.07563411363},{"$f":"[1]CashFlow!S27","v":470002.07563411363}]
[1,"CF111132",null,null,null,"Sales other than user charges",null,null,{"$f":"[1]CashFlow!J28","v":0},{"$f":"[1]CashFlow!L28","v":0},{"$f":"[1]CashFlow!N28","v":0},{"$f":"[1]CashFlow!N28","v":0},{"$f":"[1]CashFlow!P28","v":0},{"$f":"[1]CashFlow!P28","v":0},{"$f":"[1]CashFlow!R28","v":0},{"$f":"[1]CashFlow!R28","v":0},{"$f":"[1]CashFlow!S28","v":0},{"$f":"[1]CashFlow!S28","v":0}]
[1,"CF11114",null,null,null,"Sales of scrap, waste, arms and other used current goods",7,null,{"$f":"[1]CashFlow!J29","v":0},{"$f":"[1]CashFlow!L29","v":0},{"$f":"[1]CashFlow!N29","v":0},{"$f":"[1]CashFlow!N29","v":0},{"$f":"[1]CashFlow!P29","v":0},{"$f":"[1]CashFlow!P29","v":0},{"$f":"[1]CashFlow!R29","v":0},{"$f":"[1]CashFlow!R29","v":0},{"$f":"[1]CashFlow!S29","v":0},{"$f":"[1]CashFlow!S29","v":0}]
[1,"CF112",null,null,null,"Transfers received",8,null,{"$f":"SUM(I31:I32,I36,I45:I47)","v":11635781},13280696,12388563,12388563,15409637,15409637,14895308,14895308,15455832.380799999,15455832.380799999,0]
[4,"CF1121",null,null,null,"Social contributions",null,null,{"$f":"[1]CashFlow!J31","v":0},{"$f":"[1]CashFlow!L31","v":0},{"$f":"[1]CashFlow!N31","v":0},{"$f":"[1]CashFlow!N31","v":0},{"$f":"[1]CashFlow!P31","v":0},{"$f":"[1]CashFlow!P31","v":0},{"$f":"[1]CashFlow!R31","v":0},{"$f":"[1]CashFlow!R31","v":0},{"$f":"[1]CashFlow!S31","v":0},{"$f":"[1]CashFlow!S31","v":0}]
[1,"CF1122",null,null,null,"Other goverment units",9,null,{"$f":"SUM(I33,I42:I44)","v":11635781},13280696,12388563,12388563,15409637,15409637,14895308,14895308,15455832.380799999,15455832.380799999,0]
[1,"CF11221",null,null,null,"National government",10,null,{"$f":"SUM(I34:I35)","v":11635781},13280696,12388563,12388563,15409637,15409637,14895308,14895308,15455832.380799999,15455832.380799999,0]
[1,"CF112211",null,null,null,"Departmental transfers",11,null,{"$f":"[1]CashFlow!J34","v":11635781},{"$f":"[1]CashFlow!L34","v":13280696},{"$f":"[1]CashFlow!N34","v":12388563},{"$f":"[1]CashFlow!N34","v":12388563},{"$f":"[1]CashFlow!P34","v":15409637},{"$f":"[1]CashFlow!P34","v":15409637},{"$f":"[1]CashFlow!R34","v":14895308},{"$f":"[1]CashFlow!R34","v":14895308},{"$f":"[1]CashFlow!S34","v":15455832.380799999},{"$f":"[1]CashFlow!S34","v":15455832.380799999}]
[1,"CF1122121",null,null,null,"Other national departments",12,null,{"$f":"[1]CashFlow!J35","v":0},{"$f":"[1]CashFlow!L35","v":0},{"$f":"[1]CashFlow!N35","v":0},{"$f":"[1]CashFlow!N35","v":0},{"$f":"[1]CashFlow!P35","v":0},{"$f":"[1]CashFlow!P35","v":0},{"$f":"[1]CashFlow!R35","v":0},{"$f":"[1]CashFlow!R35","v":0},{"$f":"[1]CashFlow!S35","v":0},{"$f":"[1]CashFlow!S35","v":0}]
[2,"CF11225",null,null,null,"Skills development  (SETAS only)",null,null,{"$f":"SUM(I37,I41)","v":0},{"$f":"SUM(J37,J41)","v":0},0,0,0,0,0,0,0,0,0]
[2,"CF1122122",null,null,null,"Skills development levies ",null,null,{"$f":"SUM(I38:I40)","v":0},{"$f":"SUM(J38:J40)","v":0},0,0,0,0,0,0,0,0,0]
[2,"CF11221221",null,null,null," Admin - 10.5%",null,null,{"$f":"[1]CashFlow!J38","v":0},{"$f":"[1]CashFlow!L38","v":0},{"$f":"[1]CashFlow!N38","v":0},{"$f":"[1]CashFlow!N38","v":0},{"$f":"[1]CashFlow!P38","v":0},{"$f":"[1]CashFlow!P38","v":0},{"$f":"[1]CashFlow!R38","v":0},{"$f":"[1]CashFlow!R38","v":0},{"$f":"[1]CashFlow!S38","v":0},{"$f":"[1]CashFlow!S38","v":0}]
[2,"CF11221222",null,null,null,"Employer grant fund levy -  20%",null,null,{"$f":"[1]CashFlow!J39","v":0},{"$f":"[1]CashFlow!L39","v":0},{"$f":"[1]CashFlow!N39","v":0},{"$f":"[1]CashFlow!N39","v":0},{"$f":"[1]CashFlow!P39","v":0},{"$f":"[1]CashFlow!P39","v":0},{"$f":"[1]CashFlow!R39","v":0},{"$f":"[1]CashFlow!R39","v":0},{"$f":"[1]CashFlow!S39","v":0},{"$f":"[1]CashFlow!S39","v":0}]
[2,"CF11221223",null,null,null,"Discretionary grants - 49.5%",null,null,{"$f":"[1]CashFlow!J40","v":0},{"$f":"[1]CashFlow!L40","v":0},{"$f":"[1]CashFlow!N40","v":0},{"$f":"[1]CashFlow!N40","v":0},{"$f":"[1]CashFlow!P40","v":0},{"$f":"[1]CashFlow!P40","v":0},{"$f":"[1]CashFlow!R40","v":0},{"$f":"[1]CashFlow!R40","v":0},{"$f":"[1]CashFlow!S40","v":0},{"$f":"[1]CashFlow!S40","v":0}]
[2,"CF1122126",null,null,null,"National skills fund ",null,null,{"$f":"[1]CashFlow!J41","v":0},{"$f":"[1]CashFlow!L41","v":0},{"$f":"[1]CashFlow!N41","v":0},{"$f":"[1]CashFlow!N41","v":0},{"$f":"[1]CashFlow!P41","v":0},{"$f":"[1]CashFlow!P41","v":0},{"$f":"[1]CashFlow!R41","v":0},{"$f":"[1]CashFlow!R41","v":0},{"$f":"[1]CashFlow!S41","v":0},{"$f":"[1]CashFlow!S41","v":0}]
[1,"CF1122123",null,null,null,"Departmental agencies and accounts",13,null,{"$f":"[1]CashFlow!J42","v":0},{"$f":"[1]CashFlow!L42","v":0},{"$f":"[1]CashFlow!N42","v":0},{"$f":"[1]CashFlow!N42","v":0},{"$f":"[1]CashFlow!P42","v":0},{"$f":"[1]CashFlow!P42","v":0},{"$f":"[1]CashFlow!R42","v":0},{"$f":"[1]CashFlow!R42","v":0},{"$f":"[1]CashFlow!S42","v":0},{"$f":"[1]CashFlow!S42","v":0}]
[1,"CF1122124",null,null,null,"Provincial department",14,null,{"$f":"[1]CashFlow!J43","v":0},{"$f":"[1]CashFlow!L43","v":0},{"$f":"[1]CashFlow!N43","v":0},{"$f":"[1]CashFlow!N43","v":0},{"$f":"[1]CashFlow!P43","v":0},{"$f":"[1]CashFlow!P43","v":0},{"$f":"[1]CashFlow!R43","v":0},{"$f":"[1]CashFlow!R43","v":0},{"$f":"[1]CashFlow!S43","v":0},{"$f":"[1]CashFlow!S43","v":0}]
[1,"CF1122125",null,null,null,"Local governments",15,null,{"$f":"[1]CashFlow!J44","v":0},{"$f":"[1]CashFlow!L44","v":0},{"$f":"[1]CashFlow!N44","v":0},{"$f":"[1]CashFlow!N44","v":0},{"$f":"[1]CashFlow!P44","v":0},{"$f":"[1]CashFlow!P44","v":0},{"$f":"[1]CashFlow!R44","v":0},{"$f":"[1]CashFlow!R44","v":0},{"$f":"[1]CashFlow!S44","v":0},{"$f":"[1]CashFlow!S44","v":0}]
[1,"CF11222",null,null,null,"Higher education institutions",16,null,{"$f":"[1]CashFlow!J45","v":0},{"$f":"[1]CashFlow!L45","v":0},{"$f":"[1]CashFlow!N45","v":0},{"$f":"[1]CashFlow!N45","v":0},{"$f":"[1]CashFlow!P45","v":0},{"$f":"[1]CashFlow!P45","v":0},{"$f":"[1]CashFlow!R45","v":0},{"$f":"[1]CashFlow!R45","v":0},{"$f":"[1]CashFlow!S45","v":0},{"$f":"[1]CashFlow!S45","v":0}]
[1,"CF11223",null,null,null,"Foreign governments and international organisations",17,null,{"$f":"[1]CashFlow!J46","v":0},{"$f":"[1]CashFlow!L46","v":0},{"$f":"[1]CashFlow!N46","v":0},{"$f":"[1]CashFlow!N46","v":0},{"$f":"[1]CashFlow!P46","v":0},{"$f":"[1]CashFlow!P46","v":0},{"$f":"[1]CashFlow!R46","v":0},{"$f":"[1]CashFlow!R46","v":0},{"$f":"[1]CashFlow!S46","v":0},{"$f":"[1]CashFlow!S46","v":0}]
[1,"CF11224",null,null,null,"Local non-government donors",18,null,{"$f":"[1]CashFlow!J47","v":0},{"$f":"[1]CashFlow!L47","v":0},{"$f":"[1]CashFlow!N47","v":0},{"$f":"[1]CashFlow!N47","v":0},{"$f":"[1]CashFlow!P47","v":0},{"$f":"[1]CashFlow!P47","v":0},{"$f":"[1]CashFlow!R47","v":0},{"$f":"[1]CashFlow!R47","v":0},{"$f":"[1]CashFlow!S47","v":0},{"$f":"[1]CashFlow!S47","v":0}]
[1,"CF113",null,null,null,"Fines, penalties and forfeits",19,null,{"$f":"[1]CashFlow!J48","v":0},{"$f":"[1]CashFlow!L48","v":0},{"$f":"[1]CashFlow!N48","v":0},{"$f":"[1]CashFlow!N48","v":0},{"$f":"[1]CashFlow!P48","v":0},{"$f":"[1]CashFlow!P48","v":0},{"$f":"[1]CashFlow!R48","v":0},{"$f":"[1]CashFlow!R48","v":0},{"$f":"[1]CashFlow!S48","v":0},{"$f":"[1]CashFlow!S48","v":0}]
[1,"CF114",null,null,null,"Interest and rent on land",20,null,{"$f":"SUM(I50:I52)","v":102635},{"$f":"SUM(J50:J52)","v":148232},{"$f":"SUM(K50:K52)","v":126470.14575999997},126470.14575999997,88724.000000000233,88724.000000000233,95999.368000004441,95999.368000004441,103871.31617600098,{"$f":"SUM(R50:R52)","v":103871.31617600098},0]
[1,"CF1141",null,null,null,"Interest",21,null,{"$f":"[1]CashFlow!J50","v":102635},{"$f":"[1]CashFlow!L50","v":148232},{"$f":"[1]CashFlow!N50","v":126470.14575999997},{"$f":"[1]CashFlow!N50","v":126470.14575999997},{"$f":"[1]CashFlow!P50","v":88724.000000000233},{"$f":"[1]CashFlow!P50","v":88724.000000000233},{"$f":"[1]CashFlow!R50","v":95999.368000004441},{"$f":"[1]CashFlow!R50","v":95999.368000004441},{"$f":"[1]CashFlow!S50","v":103871.31617600098},{"$f":"[1]CashFlow!S50","v":103871.31617600098}]
[1,"CF1142",null,null,null,"Dividends",22,null,{"$f":"[1]CashFlow!J51","v":0},{"$f":"[1]CashFlow!L51","v":0},{"$f":"[1]CashFlow!N51","v":0},{"$f":"[1]CashFlow!N51","v":0},{"$f":"[1]CashFlow!P51","v":0},{"$f":"[1]CashFlow!P51","v":0},{"$f":"[1]CashFlow!R51","v":0},{"$f":"[1]CashFlow!R51","v":0},{"$f":"[1]CashFlow!S51","v":0},{"$f":"[1]CashFlow!S51","v":0}]
[1,"CF1143",null,null,null,"Rent on land",23,null,{"$f":"[1]CashFlow!J52","v":0},{"$f":"[1]CashFlow!L52","v":0},{"$f":"[1]CashFlow!N52","v":0},{"$f":"[1]CashFlow!N52","v":0},{"$f":"[1]CashFlow!P52","v":0},{"$f":"[1]CashFlow!P52","v":0},{"$f":"[1]CashFlow!R52","v":0},{"$f":"[1]CashFlow!R52","v":0},{"$f":"[1]CashFlow!S52","v":0},{"$f":"[1]CashFlow!S52","v":0}]
[1,"CF119",null,null,null,"Financial transactions in assets and liabilities",null,null,{"$f":"SUM(I54:I55)","v":0},{"$f":"SUM(J54:J55)","v":0},0,0,0,0,0,0,0,0,0]
[1,"CF1191",null,null,null,"Forex gains",null,null,{"$f":"[1]CashFlow!J54","v":0},{"$f":"[1]CashFlow!L54","v":0},{"$f":"[1]CashFlow!N54","v":0},{"$f":"[1]CashFlow!N54","v":0},{"$f":"[1]CashFlow!P54","v":0},{"$f":"[1]CashFlow!P54","v":0},{"$f":"[1]CashFlow!R54","v":0},{"$f":"[1]CashFlow!R54","v":0},{"$f":"[1]CashFlow!S54","v":0},{"$f":"[1]CashFlow!S54","v":0}]
[1,"CF115",null,null,null,"Other receipts",24,null,{"$f":"[1]CashFlow!J55","v":0},{"$f":"[1]CashFlow!L55","v":0},{"$f":"[1]CashFlow!N55","v":0},{"$f":"[1]CashFlow!N55","v":0},{"$f":"[1]CashFlow!P55","v":0},{"$f":"[1]CashFlow!P55","v":0},{"$f":"[1]CashFlow!R55","v":0},{"$f":"[1]CashFlow!R55","v":0},{"$f":"[1]CashFlow!S55","v":0},{"$f":"[1]CashFlow!S55","v":0}]
[1,"CF116",null,null,null,"Tax benefit",25,null,{"$f":"[1]CashFlow!J56","v":0},{"$f":"[1]CashFlow!L56","v":0},{"$f":"[1]CashFlow!N56","v":0},{"$f":"[1]CashFlow!N56","v":0},{"$f":"[1]CashFlow!P56","v":0},{"$f":"[1]CashFlow!P56","v":0},{"$f":"[1]CashFlow!R56","v":0},{"$f":"[1]CashFlow!R56","v":0},{"$f":"[1]CashFlow!S56","v":0},{"$f":"[1]CashFlow!S56","v":0}]
[1,"CF117",null,null,null,"Outside shareholders interest",26,null,{"$f":"[1]CashFlow!J57","v":0},{"$f":"[1]CashFlow!L57","v":0},{"$f":"[1]CashFlow!N57","v":0},{"$f":"[1]CashFlow!N57","v":0},{"$f":"[1]CashFlow!P57","v":0},{"$f":"[1]CashFlow!P57","v":0},{"$f":"[1]CashFlow!R57","v":0},{"$f":"[1]CashFlow!R57","v":0},{"$f":"[1]CashFlow!S57","v":0},{"$f":"[1]CashFlow!S57","v":0}]
[1,"CF2",null,null,null,"Cash paid to stakeholders",null,null,{"$f":"SUM(I59,I121,I150,I155:I156)","v":11503878.62731},{"$f":"SUM(J59,J121,J150,J155:J156)","v":12950157.75506},13327106.461876001,{"$f":"SUM(L59,L121,L150,L155:L156)","v":13327106.461876001},14802307.744410964,14802307.744410964,14962217.081151288,{"$f":"SUM(P59,P121,P150,P155:P156)","v":14962217.081151288},15735020.955104699,15735020.955104699,0,null,{"$f":"IF(S58<R58/2,\"Complete outer year budget\",\"\")","v":"Complete outer year budget"}]
[1,"CF21",null,null,null,"Current payments",null,null,{"$f":"SUM(I60,I63,,I117)","v":11503878.62731},{"$f":"SUM(J60,J63,J117)","v":12950157.75506},13327106.461876001,{"$f":"SUM(L60,L63,L117)","v":13327106.461876001},14802307.744410964,14802307.744410964,14962217.081151288,14962217.081151288,15735020.955104699,15735020.955104699,0]
[1,"CF211",null,null,null,"Compensation of employees",27,null,{"$f":"SUM(I61:I62)","v":8445367.1408399995},9498469.6334199999,9870140.5542600006,9870140.5542600006,10339690.602510722,10339690.602510722,10333657.588951603,10333657.588951603,10800172.791032141,10800172.791032141,0]
[1,"CF2111",null,null,null,"Salaries and wages",28,null,{"$f":"[1]CashFlow!J61","v":7170975.2668799991},{"$f":"[1]CashFlow!L61","v":8130754.63442},{"$f":"[1]CashFlow!N61","v":8440958.2526500002},{"$f":"[1]CashFlow!N61","v":8440958.2526500002},{"$f":"[1]CashFlow!P61","v":8854496.0689089},{"$f":"[1]CashFlow!P61","v":8854496.0689089},{"$f":"[1]CashFlow!R61","v":8780886.7040708959},{"$f":"[1]CashFlow!R61","v":8780886.7040708959},{"$f":"[1]CashFlow!S61","v":9177216.6621548273},{"$f":"[1]CashFlow!S61","v":9177216.6621548273}]
[1,"CF2112",null,null,null,"Social contributions",29,null,{"$f":"[1]CashFlow!J62","v":1274391.87396},{"$f":"[1]CashFlow!L62","v":1367714.9989999998},{"$f":"[1]CashFlow!N62","v":1429182.30161},{"$f":"[1]CashFlow!N62","v":1429182.30161},{"$f":"[1]CashFlow!P62","v":1485194.5336018228},{"$f":"[1]CashFlow!P62","v":1485194.5336018228},{"$f":"[1]CashFlow!R62","v":1552770.8848807062},{"$f":"[1]CashFlow!R62","v":1552770.8848807062},{"$f":"[1]CashFlow!S62","v":1622956.128877314},{"$f":"[1]CashFlow!S62","v":1622956.128877314}]
[1,"CF212",null,null,null,"Goods and services",null,null,{"$f":"SUM(I64:I73,I77:I80,I92,I94:I116)","v":3049297.6769499998},3443771.1615300006,3456748.5283260006,{"$f":"SUM(L64:L73,L77:L80,L92,L94:L116)","v":3456748.5283260006},4462389.7414249722,4462389.7414249722,4628321.7450027922,4628321.7450027922,4934599.6707023643,4934599.6707023643,0]
[1,"CF2121",null,null,null,"Administrative fees",30,null,{"$f":"[1]CashFlow!J64","v":34223.349349999997},{"$f":"[1]CashFlow!L64","v":36330.699570000004},{"$f":"[1]CashFlow!N64","v":35964.195030000003},{"$f":"[1]CashFlow!N64","v":35964.195030000003},{"$f":"[1]CashFlow!P64","v":37622.144420883},{"$f":"[1]CashFlow!P64","v":37622.144420883},{"$f":"[1]CashFlow!R64","v":39333.951992033173},{"$f":"[1]CashFlow!R64","v":39333.951992033173},{"$f":"[1]CashFlow!S64","v":41111.84662207307},{"$f":"[1]CashFlow!S64","v":41111.84662207307}]
[1,"CF2122",null,null,null,"Advertising",31,null,{"$f":"[1]CashFlow!J65","v":60120.07763},{"$f":"[1]CashFlow!L65","v":50801.537519999998},{"$f":"[1]CashFlow!N65","v":66441.632850000009},{"$f":"[1]CashFlow!N65","v":66441.632850000009},{"$f":"[1]CashFlow!P65","v":69312.670434298852},{"$f":"[1]CashFlow!P65","v":69312.670434298852},{"$f":"[1]CashFlow!R65","v":72403.027931423218},{"$f":"[1]CashFlow!R65","v":72403.027931423218},{"$f":"[1]CashFlow!S65","v":75618.11360901568},{"$f":"[1]CashFlow!S65","v":75618.11360901568}]
[1,"CF2124",null,null,null,"Minor assets",32,null,{"$f":"[1]CashFlow!J66","v":7792.2554999999993},{"$f":"[1]CashFlow!L66","v":7727.7070399999993},{"$f":"[1]CashFlow!N66","v":14357.42971},{"$f":"[1]CashFlow!N66","v":14357.42971},{"$f":"[1]CashFlow!P66","v":15045.574229464435},{"$f":"[1]CashFlow!P66","v":15045.574229464435},{"$f":"[1]CashFlow!R66","v":15767.424414896666},{"$f":"[1]CashFlow!R66","v":15767.424414896666},{"$f":"[1]CashFlow!S66","v":16523.954104530731},{"$f":"[1]CashFlow!S66","v":16523.954104530731}]
[1,"CF2125",null,null,null,"Audit costs: External",33,null,{"$f":"[1]CashFlow!J67","v":37936.371360000005},{"$f":"[1]CashFlow!L67","v":42694.749739999999},{"$f":"[1]CashFlow!N67","v":37575.902150000002},{"$f":"[1]CashFlow!N67","v":37575.902150000002},{"$f":"[1]CashFlow!P67","v":39308.151239115003},{"$f":"[1]CashFlow!P67","v":39308.151239115003},{"$f":"[1]CashFlow!R67","v":41096.672120494739},{"$f":"[1]CashFlow!R67","v":41096.672120494739},{"$f":"[1]CashFlow!S67","v":42954.241700341096},{"$f":"[1]CashFlow!S67","v":42954.241700341096}]
[1,"CF2128",null,null,null,"Bursaries: Employees",34,null,{"$f":"[1]CashFlow!J68","v":10101.343350000001},{"$f":"[1]CashFlow!L68","v":34984.679810000001},{"$f":"[1]CashFlow!N68","v":35270.328699999998},{"$f":"[1]CashFlow!N68","v":35270.328699999998},{"$f":"[1]CashFlow!P68","v":36896.290853070008},{"$f":"[1]CashFlow!P68","v":36896.290853070008},{"$f":"[1]CashFlow!R68","v":38575.072086884698},{"$f":"[1]CashFlow!R68","v":38575.072086884698},{"$f":"[1]CashFlow!S68","v":40318.665345211877},{"$f":"[1]CashFlow!S68","v":40318.665345211877}]
[1,"CF2129",null,null,null,"Catering: Internal activities",35,null,{"$f":"[1]CashFlow!J69","v":1254.70074},{"$f":"[1]CashFlow!L69","v":2524.1577699999998},{"$f":"[1]CashFlow!N69","v":1398.6222799999998},{"$f":"[1]CashFlow!N69","v":1398.6222799999998},{"$f":"[1]CashFlow!P69","v":1456.0960254344959},{"$f":"[1]CashFlow!P69","v":1456.0960254344959},{"$f":"[1]CashFlow!R69","v":1520.0362182536787},{"$f":"[1]CashFlow!R69","v":1520.0362182536787},{"$f":"[1]CashFlow!S69","v":1586.6426865072376},{"$f":"[1]CashFlow!S69","v":1586.6426865072376}]
[1,"CF2130",null,null,null,"Communication (G&S)",36,null,{"$f":"[1]CashFlow!J70","v":296189.58912000002},{"$f":"[1]CashFlow!L70","v":316499.08560999995},{"$f":"[1]CashFlow!N70","v":362611.67121},{"$f":"[1]CashFlow!N70","v":362611.67121},{"$f":"[1]CashFlow!P70","v":398771.40397436102},{"$f":"[1]CashFlow!P70","v":398771.40397436102},{"$f":"[1]CashFlow!R70","v":438541.25269858446},{"$f":"[1]CashFlow!R70","v":438541.25269858446},{"$f":"[1]CashFlow!S70","v":482282.58705559804},{"$f":"[1]CashFlow!S70","v":482282.58705559804}]
[1,"CF2131",null,null,null,"Computer services",37,null,{"$f":"[1]CashFlow!J71","v":773499.2121},{"$f":"[1]CashFlow!L71","v":892766.95354000002},{"$f":"[1]CashFlow!N71","v":675556.56710600038},{"$f":"[1]CashFlow!N71","v":675556.56710600038},{"$f":"[1]CashFlow!P71","v":1009067.0339082894},{"$f":"[1]CashFlow!P71","v":1009067.0339082894},{"$f":"[1]CashFlow!R71","v":1279228.4615294365},{"$f":"[1]CashFlow!R71","v":1279228.4615294365},{"$f":"[1]CashFlow!S71","v":1330250.0953951539},{"$f":"[1]CashFlow!S71","v":1330250.0953951539}]
[1,"CF2132",null,null,null,"Consultants: Business and advisory services",38,null,{"$f":"[1]CashFlow!J72","v":59217.277859999995},{"$f":"[1]CashFlow!L72","v":213084.64376000001},{"$f":"[1]CashFlow!N72","v":287769.64530000003},{"$f":"[1]CashFlow!N72","v":287769.64530000003},{"$f":"[1]CashFlow!P72","v":256588.02818357886},{"$f":"[1]CashFlow!P72","v":256588.02818357886},{"$f":"[1]CashFlow!R72","v":281445.10436765302},{"$f":"[1]CashFlow!R72","v":281445.10436765302},{"$f":"[1]CashFlow!S72","v":308836.91959193617},{"$f":"[1]CashFlow!S72","v":308836.91959193617}]
[1,"CF2179",null,null,null,"Infrastructure and planning services",39,null,{"$f":"SUM(I74:I76)","v":0},{"$f":"SUM(J74:J76)","v":0},{"$f":"SUM(K74:K76)","v":0},0,0,0,0,0,0,0,0]
[1,"CF21791",null,null,null,"Maintenance and repairs: Buildings: Consultants",40,null,{"$f":"[1]CashFlow!J74","v":0},{"$f":"[1]CashFlow!L74","v":0},{"$f":"[1]CashFlow!N74","v":0},{"$f":"[1]CashFlow!N74","v":0},{"$f":"[1]CashFlow!P74","v":0},{"$f":"[1]CashFlow!P74","v":0},{"$f":"[1]CashFlow!R74","v":0},{"$f":"[1]CashFlow!R74","v":0},{"$f":"[1]CashFlow!S74","v":0},{"$f":"[1]CashFlow!S74","v":0}]
[1,"CF21792",null,null,null,"Maintenance and repairs: Other fixed structures: Consultants",41,null,{"$f":"[1]CashFlow!J75","v":0},{"$f":"[1]CashFlow!L75","v":0},{"$f":"[1]CashFlow!N75","v":0},{"$f":"[1]CashFlow!N75","v":0},{"$f":"[1]CashFlow!P75","v":0},{"$f":"[1]CashFlow!P75","v":0},{"$f":"[1]CashFlow!R75","v":0},{"$f":"[1]CashFlow!R75","v":0},{"$f":"[1]CashFlow!S75","v":0},{"$f":"[1]CashFlow!S75","v":0}]
[1,"CF21793",null,null,null,"Other",null,null,{"$f":"[1]CashFlow!J76","v":0},{"$f":"[1]CashFlow!L76","v":0},{"$f":"[1]CashFlow!N76","v":0},{"$f":"[1]CashFlow!N76","v":0},{"$f":"[1]CashFlow!P76","v":0},{"$f":"[1]CashFlow!P76","v":0},{"$f":"[1]CashFlow!R76","v":0},{"$f":"[1]CashFlow!R76","v":0},{"$f":"[1]CashFlow!S76","v":0},{"$f":"[1]CashFlow!S76","v":0}]
[1,"CF2163",null,null,null,"Laboratory services",42,null,{"$f":"[1]CashFlow!J77","v":0},{"$f":"[1]CashFlow!L77","v":0},{"$f":"[1]CashFlow!N77","v":0},{"$f":"[1]CashFlow!N77","v":0},{"$f":"[1]CashFlow!P77","v":0},{"$f":"[1]CashFlow!P77","v":0},{"$f":"[1]CashFlow!R77","v":0},{"$f":"[1]CashFlow!R77","v":0},{"$f":"[1]CashFlow!S77","v":0},{"$f":"[1]CashFlow!S77","v":0}]
[1,"CF2137",null,null,null,"Legal services (G&S)",43,null,{"$f":"[1]CashFlow!J78","v":256185.80833},{"$f":"[1]CashFlow!L78","v":273000.36120000004},{"$f":"[1]CashFlow!N78","v":268873.39643999998},{"$f":"[1]CashFlow!N78","v":268873.39643999998},{"$f":"[1]CashFlow!P78","v":275957.40957315301},{"$f":"[1]CashFlow!P78","v":275957.40957315301},{"$f":"[1]CashFlow!R78","v":288513.47170873143},{"$f":"[1]CashFlow!R78","v":288513.47170873143},{"$f":"[1]CashFlow!S78","v":301554.28062996612},{"$f":"[1]CashFlow!S78","v":301554.28062996612}]
[1,"CF2164",null,null,null,"Science and technological services",44,null,{"$f":"[1]CashFlow!J79","v":0},{"$f":"[1]CashFlow!L79","v":0},{"$f":"[1]CashFlow!N79","v":0},{"$f":"[1]CashFlow!N79","v":0},{"$f":"[1]CashFlow!P79","v":0},{"$f":"[1]CashFlow!P79","v":0},{"$f":"[1]CashFlow!R79","v":0},{"$f":"[1]CashFlow!R79","v":0},{"$f":"[1]CashFlow!S79","v":0},{"$f":"[1]CashFlow!S79","v":0}]
[1,"CF2133",null,null,null,"Contractors",45,null,{"$f":"SUM(I81:I85,I91)","v":117892.97066000001},{"$f":"SUM(J81:J85,J91)","v":87330.748699999996},115507.73696999998,{"$f":"SUM(L81:L85,L91)","v":115507.73696999998},115293.10304672028,115293.10304672028,120374.26806680278,{"$f":"SUM(P81:P85,P91)","v":120374.26806680278},126134.93922718696,126134.93922718696,0]
[1,"CF21331",null,null,null,"Maintenance and repairs of other fixed structures",null,null,{"$f":"[1]CashFlow!J81","v":117892.97066000001},{"$f":"[1]CashFlow!L81","v":87330.748699999996},{"$f":"[1]CashFlow!N81","v":115507.73696999998},{"$f":"[1]CashFlow!N81","v":115507.73696999998},{"$f":"[1]CashFlow!P81","v":115293.10304672028},{"$f":"[1]CashFlow!P81","v":115293.10304672028},{"$f":"[1]CashFlow!R81","v":120374.26806680278},{"$f":"[1]CashFlow!R81","v":120374.26806680278},{"$f":"[1]CashFlow!S81","v":126134.93922718696},{"$f":"[1]CashFlow!S81","v":126134.93922718696}]
[1,"CF21332",null,null,null,"Maintenance and repairs of other machinery and equipment",null,null,{"$f":"[1]CashFlow!J82","v":0},{"$f":"[1]CashFlow!L82","v":0},{"$f":"[1]CashFlow!N82","v":0},{"$f":"[1]CashFlow!N82","v":0},{"$f":"[1]CashFlow!P82","v":0},{"$f":"[1]CashFlow!P82","v":0},{"$f":"[1]CashFlow!R82","v":0},{"$f":"[1]CashFlow!R82","v":0},{"$f":"[1]CashFlow!S82","v":0},{"$f":"[1]CashFlow!S82","v":0}]
[1,"CF21333",null,null,null,"Maintenance and repairs of heritage buildings",null,null,{"$f":"[1]CashFlow!J83","v":0},{"$f":"[1]CashFlow!L83","v":0},{"$f":"[1]CashFlow!N83","v":0},{"$f":"[1]CashFlow!N83","v":0},{"$f":"[1]CashFlow!P83","v":0},{"$f":"[1]CashFlow!P83","v":0},{"$f":"[1]CashFlow!R83","v":0},{"$f":"[1]CashFlow!R83","v":0},{"$f":"[1]CashFlow!S83","v":0},{"$f":"[1]CashFlow!S83","v":0}]
[1,"CF21334",null,null,null,"Maintenance and repairs of other heritage fixed structures",null,null,{"$f":"[1]CashFlow!J84","v":0},{"$f":"[1]CashFlow!L84","v":0},{"$f":"[1]CashFlow!N84","v":0},{"$f":"[1]CashFlow!N84","v":0},{"$f":"[1]CashFlow!P84","v":0},{"$f":"[1]CashFlow!P84","v":0},{"$f":"[1]CashFlow!R84","v":0},{"$f":"[1]CashFlow!R84","v":0},{"$f":"[1]CashFlow!S84","v":0},{"$f":"[1]CashFlow!S84","v":0}]
[5,"CF21335",null,null,null,"South african social security agency payment contractors",null,null,{"$f":"SUM(I86:I90)","v":0},{"$f":"SUM(J86:J90)","v":0},0,{"$f":"SUM(L86:L90)","v":0},0,0,0,0,0,0,0]
[5,"CF213351",null,null,null,"SASSA Admin fees",null,null,{"$f":"[1]CashFlow!J86","v":0},{"$f":"[1]CashFlow!L86","v":0},{"$f":"[1]CashFlow!N86","v":0},{"$f":"[1]CashFlow!N86","v":0},{"$f":"[1]CashFlow!P86","v":0},{"$f":"[1]CashFlow!P86","v":0},{"$f":"[1]CashFlow!R86","v":0},{"$f":"[1]CashFlow!R86","v":0},{"$f":"[1]CashFlow!S86","v":0},{"$f":"[1]CashFlow!S86","v":0}]
[5,"CF213352",null,null,null,"SASSA Bankcard fees",null,null,{"$f":"[1]CashFlow!J87","v":0},{"$f":"[1]CashFlow!L87","v":0},{"$f":"[1]CashFlow!N87","v":0},{"$f":"[1]CashFlow!N87","v":0},{"$f":"[1]CashFlow!P87","v":0},{"$f":"[1]CashFlow!P87","v":0},{"$f":"[1]CashFlow!R87","v":0},{"$f":"[1]CashFlow!R87","v":0},{"$f":"[1]CashFlow!S87","v":0},{"$f":"[1]CashFlow!S87","v":0}]
[5,"CF213353",null,null,null,"SASSA registration fees",null,null,{"$f":"[1]CashFlow!J88","v":0},{"$f":"[1]CashFlow!L88","v":0},{"$f":"[1]CashFlow!N88","v":0},{"$f":"[1]CashFlow!N88","v":0},{"$f":"[1]CashFlow!P88","v":0},{"$f":"[1]CashFlow!P88","v":0},{"$f":"[1]CashFlow!R88","v":0},{"$f":"[1]CashFlow!R88","v":0},{"$f":"[1]CashFlow!S88","v":0},{"$f":"[1]CashFlow!S88","v":0}]
[5,"CF213354",null,null,null,"SASSA beneficiary fees",null,null,{"$f":"[1]CashFlow!J89","v":0},{"$f":"[1]CashFlow!L89","v":0},{"$f":"[1]CashFlow!N89","v":0},{"$f":"[1]CashFlow!N89","v":0},{"$f":"[1]CashFlow!P89","v":0},{"$f":"[1]CashFlow!P89","v":0},{"$f":"[1]CashFlow!R89","v":0},{"$f":"[1]CashFlow!R89","v":0},{"$f":"[1]CashFlow!S89","v":0},{"$f":"[1]CashFlow!S89","v":0}]
[5,"CF213355",null,null,null,"SASSA help desk fees",null,null,{"$f":"[1]CashFlow!J90","v":0},{"$f":"[1]CashFlow!L90","v":0},{"$f":"[1]CashFlow!N90","v":0},{"$f":"[1]CashFlow!N90","v":0},{"$f":"[1]CashFlow!P90","v":0},{"$f":"[1]CashFlow!P90","v":0},{"$f":"[1]CashFlow!R90","v":0},{"$f":"[1]CashFlow!R90","v":0},{"$f":"[1]CashFlow!S90","v":0},{"$f":"[1]CashFlow!S90","v":0}]
[1,"CF21336",null,null,null,"Other",null,null,{"$f":"[1]CashFlow!J91","v":0},{"$f":"[1]CashFlow!L91","v":0},{"$f":"[1]CashFlow!N91","v":0},{"$f":"[1]CashFlow!N91","v":0},{"$f":"[1]CashFlow!P91","v":0},{"$f":"[1]CashFlow!P91","v":0},{"$f":"[1]CashFlow!R91","v":0},{"$f":"[1]CashFlow!R91","v":0},{"$f":"[1]CashFlow!S91","v":0},{"$f":"[1]CashFlow!S91","v":0}]
[1,"CF2123",null,null,null,"Agency and support/outsourced services",46,null,{"$f":"[1]CashFlow!J92","v":209890.70973999996},{"$f":"[1]CashFlow!L92","v":260305.94922999997},{"$f":"[1]CashFlow!N92","v":260509.54634},{"$f":"[1]CashFlow!N92","v":260509.54634},{"$f":"[1]CashFlow!P92","v":504155.05577781104},{"$f":"[1]CashFlow!P92","v":504155.05577781104},{"$f":"[1]CashFlow!R92","v":376610.44671360793},{"$f":"[1]CashFlow!R92","v":376610.44671360793},{"$f":"[1]CashFlow!S92","v":415828.23588798009},{"$f":"[1]CashFlow!S92","v":415828.23588798009}]
[5,"CF21231",null,null,null,"     Of Which: Medical assessments",null,null,{"$f":"[1]CashFlow!J93","v":0},{"$f":"[1]CashFlow!L93","v":5.4775999999999998},{"$f":"[1]CashFlow!N93","v":34},{"$f":"[1]CashFlow!N93","v":34},{"$f":"[1]CashFlow!P93","v":35.567399999999999},{"$f":"[1]CashFlow!P93","v":35.567399999999999},{"$f":"[1]CashFlow!R93","v":37.1857167},{"$f":"[1]CashFlow!R93","v":37.1857167},{"$f":"[1]CashFlow!S93","v":38.866511094839993},{"$f":"[1]CashFlow!S93","v":38.866511094839993}]
[1,"CF2134",null,null,null,"Entertainment",47,null,{"$f":"[1]CashFlow!J94","v":0.28000000000000003},{"$f":"[1]CashFlow!L94","v":0},{"$f":"[1]CashFlow!N94","v":0},{"$f":"[1]CashFlow!N94","v":0},{"$f":"[1]CashFlow!P94","v":0},{"$f":"[1]CashFlow!P94","v":0},{"$f":"[1]CashFlow!R94","v":0},{"$f":"[1]CashFlow!R94","v":0},{"$f":"[1]CashFlow!S94","v":0},{"$f":"[1]CashFlow!S94","v":0}]
[1,"CF2165",null,null,null,"Fleet services (including government motor transport)",48,null,{"$f":"[1]CashFlow!J95","v":0},{"$f":"[1]CashFlow!L95","v":0},{"$f":"[1]CashFlow!N95","v":0},{"$f":"[1]CashFlow!N95","v":0},{"$f":"[1]CashFlow!P95","v":0},{"$f":"[1]CashFlow!P95","v":0},{"$f":"[1]CashFlow!R95","v":0},{"$f":"[1]CashFlow!R95","v":0},{"$f":"[1]CashFlow!S95","v":0},{"$f":"[1]CashFlow!S95","v":0}]
[1,"CF2166",null,null,null,"Housing",49,null,{"$f":"[1]CashFlow!J96","v":0},{"$f":"[1]CashFlow!L96","v":0},{"$f":"[1]CashFlow!N96","v":0},{"$f":"[1]CashFlow!N96","v":0},{"$f":"[1]CashFlow!P96","v":0},{"$f":"[1]CashFlow!P96","v":0},{"$f":"[1]CashFlow!R96","v":0},{"$f":"[1]CashFlow!R96","v":0},{"$f":"[1]CashFlow!S96","v":0},{"$f":"[1]CashFlow!S96","v":0}]
[1,"CF2167",null,null,null,"Inventory: Clothing material and accessories",50,null,{"$f":"[1]CashFlow!J97","v":0},{"$f":"[1]CashFlow!L97","v":0},{"$f":"[1]CashFlow!N97","v":0},{"$f":"[1]CashFlow!N97","v":0},{"$f":"[1]CashFlow!P97","v":0},{"$f":"[1]CashFlow!P97","v":0},{"$f":"[1]CashFlow!R97","v":0},{"$f":"[1]CashFlow!R97","v":0},{"$f":"[1]CashFlow!S97","v":0},{"$f":"[1]CashFlow!S97","v":0}]
[1,"CF2168",null,null,null,"Inventory: Farming supplies",51,null,{"$f":"[1]CashFlow!J98","v":0},{"$f":"[1]CashFlow!L98","v":0},{"$f":"[1]CashFlow!N98","v":0},{"$f":"[1]CashFlow!N98","v":0},{"$f":"[1]CashFlow!P98","v":0},{"$f":"[1]CashFlow!P98","v":0},{"$f":"[1]CashFlow!R98","v":0},{"$f":"[1]CashFlow!R98","v":0},{"$f":"[1]CashFlow!S98","v":0},{"$f":"[1]CashFlow!S98","v":0}]
[1,"CF2169",null,null,null,"Inventory: Food and food supplies",52,null,{"$f":"[1]CashFlow!J99","v":0},{"$f":"[1]CashFlow!L99","v":0},{"$f":"[1]CashFlow!N99","v":0},{"$f":"[1]CashFlow!N99","v":0},{"$f":"[1]CashFlow!P99","v":0},{"$f":"[1]CashFlow!P99","v":0},{"$f":"[1]CashFlow!R99","v":0},{"$f":"[1]CashFlow!R99","v":0},{"$f":"[1]CashFlow!S99","v":0},{"$f":"[1]CashFlow!S99","v":0}]
[1,"CF2170",null,null,null,"Inventory: Fuel, oil and gas",53,null,{"$f":"[1]CashFlow!J100","v":0},{"$f":"[1]CashFlow!L100","v":0},{"$f":"[1]CashFlow!N100","v":0},{"$f":"[1]CashFlow!N100","v":0},{"$f":"[1]CashFlow!P100","v":0},{"$f":"[1]CashFlow!P100","v":0},{"$f":"[1]CashFlow!R100","v":0},{"$f":"[1]CashFlow!R100","v":0},{"$f":"[1]CashFlow!S100","v":0},{"$f":"[1]CashFlow!S100","v":0}]
[1,"CF2171",null,null,null,"Inventory: Learner and teacher support material",54,null,{"$f":"[1]CashFlow!J101","v":0},{"$f":"[1]CashFlow!L101","v":0},{"$f":"[1]CashFlow!N101","v":0},{"$f":"[1]CashFlow!N101","v":0},{"$f":"[1]CashFlow!P101","v":0},{"$f":"[1]CashFlow!P101","v":0},{"$f":"[1]CashFlow!R101","v":0},{"$f":"[1]CashFlow!R101","v":0},{"$f":"[1]CashFlow!S101","v":0},{"$f":"[1]CashFlow!S101","v":0}]
[1,"CF2135",null,null,null,"Inventory: Materials and supplies",55,null,{"$f":"[1]CashFlow!J102","v":0},{"$f":"[1]CashFlow!L102","v":0},{"$f":"[1]CashFlow!N102","v":0},{"$f":"[1]CashFlow!N102","v":0},{"$f":"[1]CashFlow!P102","v":0},{"$f":"[1]CashFlow!P102","v":0},{"$f":"[1]CashFlow!R102","v":0},{"$f":"[1]CashFlow!R102","v":0},{"$f":"[1]CashFlow!S102","v":0},{"$f":"[1]CashFlow!S102","v":0}]
[1,"CF2172",null,null,null,"Inventory: Medical supplies",56,null,{"$f":"[1]CashFlow!J103","v":0},{"$f":"[1]CashFlow!L103","v":0},{"$f":"[1]CashFlow!N103","v":0},{"$f":"[1]CashFlow!N103","v":0},{"$f":"[1]CashFlow!P103","v":0},{"$f":"[1]CashFlow!P103","v":0},{"$f":"[1]CashFlow!R103","v":0},{"$f":"[1]CashFlow!R103","v":0},{"$f":"[1]CashFlow!S103","v":0},{"$f":"[1]CashFlow!S103","v":0}]
[1,"CF2173",null,null,null,"Inventory: Medicine",57,null,{"$f":"[1]CashFlow!J104","v":0},{"$f":"[1]CashFlow!L104","v":0},{"$f":"[1]CashFlow!N104","v":0},{"$f":"[1]CashFlow!N104","v":0},{"$f":"[1]CashFlow!P104","v":0},{"$f":"[1]CashFlow!P104","v":0},{"$f":"[1]CashFlow!R104","v":0},{"$f":"[1]CashFlow!R104","v":0},{"$f":"[1]CashFlow!S104","v":0},{"$f":"[1]CashFlow!S104","v":0}]
[1,"CF2174",null,null,null,"Medsas inventory interface",58,null,{"$f":"[1]CashFlow!J105","v":0},{"$f":"[1]CashFlow!L105","v":0},{"$f":"[1]CashFlow!N105","v":0},{"$f":"[1]CashFlow!N105","v":0},{"$f":"[1]CashFlow!P105","v":0},{"$f":"[1]CashFlow!P105","v":0},{"$f":"[1]CashFlow!R105","v":0},{"$f":"[1]CashFlow!R105","v":0},{"$f":"[1]CashFlow!S105","v":0},{"$f":"[1]CashFlow!S105","v":0}]
[1,"CF2175",null,null,null,"Inventory: Other supplies",59,null,{"$f":"[1]CashFlow!J106","v":18101.70767},{"$f":"[1]CashFlow!L106","v":11485.853569999999},{"$f":"[1]CashFlow!N106","v":32813.155400000003},{"$f":"[1]CashFlow!N106","v":32813.155400000003},{"$f":"[1]CashFlow!P106","v":34325.841863940004},{"$f":"[1]CashFlow!P106","v":34325.841863940004},{"$f":"[1]CashFlow!R106","v":35887.667668749273},{"$f":"[1]CashFlow!R106","v":35887.667668749273},{"$f":"[1]CashFlow!S106","v":37509.790247376739},{"$f":"[1]CashFlow!S106","v":37509.790247376739}]
[1,"CF2176",null,null,null,"Consumable supplies",60,null,{"$f":"[1]CashFlow!J107","v":14786.768940000002},{"$f":"[1]CashFlow!L107","v":12184.75368},{"$f":"[1]CashFlow!N107","v":18574.455190000001},{"$f":"[1]CashFlow!N107","v":18574.455190000001},{"$f":"[1]CashFlow!P107","v":47404.925685535454},{"$f":"[1]CashFlow!P107","v":47404.925685535454},{"$f":"[1]CashFlow!R107","v":20279.327193922596},{"$f":"[1]CashFlow!R107","v":20279.327193922596},{"$f":"[1]CashFlow!S107","v":21188.215311922915},{"$f":"[1]CashFlow!S107","v":21188.215311922915}]
[1,"CF2139",null,null,null,"Consumables: Stationery, printing and office supplies",61,null,{"$f":"[1]CashFlow!J108","v":58094.057959999998},{"$f":"[1]CashFlow!L108","v":59362.464299999992},{"$f":"[1]CashFlow!N108","v":87228.53207999999},{"$f":"[1]CashFlow!N108","v":87228.53207999999},{"$f":"[1]CashFlow!P108","v":93674.274254758478},{"$f":"[1]CashFlow!P108","v":93674.274254758478},{"$f":"[1]CashFlow!R108","v":100657.89112619904},{"$f":"[1]CashFlow!R108","v":100657.89112619904},{"$f":"[1]CashFlow!S108","v":108219.97849295838},{"$f":"[1]CashFlow!S108","v":108219.97849295838}]
[1,"CF2136",null,null,null,"Operating leases",62,null,{"$f":"[1]CashFlow!J109","v":9079.7676700000011},{"$f":"[1]CashFlow!L109","v":13473.448949999996},{"$f":"[1]CashFlow!N109","v":41869.537149999996},{"$f":"[1]CashFlow!N109","v":41869.537149999996},{"$f":"[1]CashFlow!P109","v":43624.820075421085},{"$f":"[1]CashFlow!P109","v":43624.820075421085},{"$f":"[1]CashFlow!R109","v":45633.990963272445},{"$f":"[1]CashFlow!R109","v":45633.990963272445},{"$f":"[1]CashFlow!S109","v":47747.31919376627},{"$f":"[1]CashFlow!S109","v":47747.31919376627}]
[1,"CF2177",null,null,null,"Rental and hiring",63,null,{"$f":"[1]CashFlow!J110","v":0},{"$f":"[1]CashFlow!L110","v":0},{"$f":"[1]CashFlow!N110","v":0},{"$f":"[1]CashFlow!N110","v":0},{"$f":"[1]CashFlow!P110","v":0},{"$f":"[1]CashFlow!P110","v":0},{"$f":"[1]CashFlow!R110","v":0},{"$f":"[1]CashFlow!R110","v":0},{"$f":"[1]CashFlow!S110","v":0},{"$f":"[1]CashFlow!S110","v":0}]
[1,"CF2140",null,null,null,"Property payments",64,null,{"$f":"[1]CashFlow!J111","v":707630.32183000003},{"$f":"[1]CashFlow!L111","v":700327.85936},{"$f":"[1]CashFlow!N111","v":723799.64240999985},{"$f":"[1]CashFlow!N111","v":723799.64240999985},{"$f":"[1]CashFlow!P111","v":927023.07843331911},{"$f":"[1]CashFlow!P111","v":927023.07843331911},{"$f":"[1]CashFlow!R111","v":995231.80193670071},{"$f":"[1]CashFlow!R111","v":995231.80193670071},{"$f":"[1]CashFlow!S111","v":1085217.7380052479},{"$f":"[1]CashFlow!S111","v":1085217.7380052479}]
[1,"CF2178",null,null,null,"Transport provided: Internal activities",65,null,{"$f":"[1]CashFlow!J112","v":50116.34405},{"$f":"[1]CashFlow!L112","v":54383.806100000009},{"$f":"[1]CashFlow!N112","v":56604.281709999996},{"$f":"[1]CashFlow!N112","v":56604.281709999996},{"$f":"[1]CashFlow!P112","v":58523.432288844298},{"$f":"[1]CashFlow!P112","v":58523.432288844298},{"$f":"[1]CashFlow!R112","v":60958.321862681049},{"$f":"[1]CashFlow!R112","v":60958.321862681049},{"$f":"[1]CashFlow!S112","v":63506.708983750541},{"$f":"[1]CashFlow!S112","v":63506.708983750541}]
[1,"CF2144",null,null,null,"Travel and subsistence",66,null,{"$f":"[1]CashFlow!J113","v":73812.443469999998},{"$f":"[1]CashFlow!L113","v":80785.636580000006},{"$f":"[1]CashFlow!N113","v":89072.801419999989},{"$f":"[1]CashFlow!N113","v":89072.801419999989},{"$f":"[1]CashFlow!P113","v":92452.298619442008},{"$f":"[1]CashFlow!P113","v":92452.298619442008},{"$f":"[1]CashFlow!R113","v":96418.915786644982},{"$f":"[1]CashFlow!R113","v":96418.915786644982},{"$f":"[1]CashFlow!S113","v":100559.19471980413},{"$f":"[1]CashFlow!S113","v":100559.19471980413}]
[1,"CF2143",null,null,null,"Training and development",67,null,{"$f":"[1]CashFlow!J114","v":27192.178789999998},{"$f":"[1]CashFlow!L114","v":30446.804910000003},{"$f":"[1]CashFlow!N114","v":37071.986510000002},{"$f":"[1]CashFlow!N114","v":37071.986510000002},{"$f":"[1]CashFlow!P114","v":38781.005088111},{"$f":"[1]CashFlow!P114","v":38781.005088111},{"$f":"[1]CashFlow!R114","v":40545.540819620051},{"$f":"[1]CashFlow!R114","v":40545.540819620051},{"$f":"[1]CashFlow!S114","v":42378.19926466688},{"$f":"[1]CashFlow!S114","v":42378.19926466688}]
[1,"CF2146",null,null,null,"Operating payments",68,null,{"$f":"[1]CashFlow!J115","v":223633.74459999998},{"$f":"[1]CashFlow!L115","v":250891.45627999995},{"$f":"[1]CashFlow!N115","v":193753.41074000002},{"$f":"[1]CashFlow!N115","v":193753.41074000002},{"$f":"[1]CashFlow!P115","v":352305.09734118055},{"$f":"[1]CashFlow!P115","v":352305.09734118055},{"$f":"[1]CashFlow!R115","v":223786.59539476392},{"$f":"[1]CashFlow!R115","v":223786.59539476392},{"$f":"[1]CashFlow!S115","v":229014.90211066537},{"$f":"[1]CashFlow!S115","v":229014.90211066537}]
[1,"CF2145",null,null,null,"Venues and facilities",69,null,{"$f":"[1]CashFlow!J116","v":2546.3962300000003},{"$f":"[1]CashFlow!L116","v":12377.804310000001},{"$f":"[1]CashFlow!N116","v":14124.05163},{"$f":"[1]CashFlow!N116","v":14124.05163},{"$f":"[1]CashFlow!P116","v":14802.006108239999},{"$f":"[1]CashFlow!P116","v":14802.006108239999},{"$f":"[1]CashFlow!R116","v":15512.502401435519},{"$f":"[1]CashFlow!R116","v":15512.502401435519},{"$f":"[1]CashFlow!S116","v":16257.102516704424},{"$f":"[1]CashFlow!S116","v":16257.102516704424}]
[1,"CF213",null,null,null,"Interest and rent on land",null,null,{"$f":"SUM(I118:I120)","v":9213.8095199999989},{"$f":"SUM(J118:J120)","v":7916.96011},217.37929,217.37929,227.40047526900003,227.40047526900003,237.74719689373953,237.74719689373953,248.49337019333655,248.49337019333655,0]
[1,"CF2160",null,null,null,"Interest",70,null,{"$f":"[1]CashFlow!J118","v":9213.8095199999989},{"$f":"[1]CashFlow!L118","v":7916.96011},{"$f":"[1]CashFlow!N118","v":217.37929},{"$f":"[1]CashFlow!N118","v":217.37929},{"$f":"[1]CashFlow!P118","v":227.40047526900003},{"$f":"[1]CashFlow!P118","v":227.40047526900003},{"$f":"[1]CashFlow!R118","v":237.74719689373953},{"$f":"[1]CashFlow!R118","v":237.74719689373953},{"$f":"[1]CashFlow!S118","v":248.49337019333655},{"$f":"[1]CashFlow!S118","v":248.49337019333655}]
[1,"CF2161",null,null,null,"Dividends",71,null,{"$f":"[1]CashFlow!J119","v":0},{"$f":"[1]CashFlow!L119","v":0},{"$f":"[1]CashFlow!N119","v":0},{"$f":"[1]CashFlow!N119","v":0},{"$f":"[1]CashFlow!P119","v":0},{"$f":"[1]CashFlow!P119","v":0},{"$f":"[1]CashFlow!R119","v":0},{"$f":"[1]CashFlow!R119","v":0},{"$f":"[1]CashFlow!S119","v":0},{"$f":"[1]CashFlow!S119","v":0}]
[1,"CF2162",null,null,null,"Rent on land",72,null,{"$f":"[1]CashFlow!J120","v":0},{"$f":"[1]CashFlow!L120","v":0},{"$f":"[1]CashFlow!N120","v":0},{"$f":"[1]CashFlow!N120","v":0},{"$f":"[1]CashFlow!P120","v":0},{"$f":"[1]CashFlow!P120","v":0},{"$f":"[1]CashFlow!R120","v":0},{"$f":"[1]CashFlow!R120","v":0},{"$f":"[1]CashFlow!S120","v":0},{"$f":"[1]CashFlow!S120","v":0}]
[1,"CF24",null,null,null,"Transfers and subsidies",null,null,{"$f":"SUM(I122,I133,I144:I147)","v":0},0,0,0,0,0,0,0,0,0,0]
[2,"CF241",null,null,null,"Employer Grant (SETAs only)",null,null,{"$f":"SUM(I123,I129,I132)","v":0},0,0,0,0,0,0,0,0,0,0]
[1,"CF242",null,null,null,"Other government units",null,null,{"$f":"SUM(I124:I128)","v":0},0,0,0,0,0,0,0,0,0,0]
[1,"CF2421",null,null,null,"Other national departments",null,null,{"$f":"[1]CashFlow!J124","v":0},{"$f":"[1]CashFlow!L124","v":0},{"$f":"[1]CashFlow!N124","v":0},{"$f":"[1]CashFlow!N124","v":0},{"$f":"[1]CashFlow!P124","v":0},{"$f":"[1]CashFlow!P124","v":0},{"$f":"[1]CashFlow!R124","v":0},{"$f":"[1]CashFlow!R124","v":0},{"$f":"[1]CashFlow!S124","v":0},{"$f":"[1]CashFlow!S124","v":0}]
[1,"CF2422",null,null,null,"Departmental agencies and accounts",null,null,{"$f":"[1]CashFlow!J125","v":0},{"$f":"[1]CashFlow!L125","v":0},{"$f":"[1]CashFlow!N125","v":0},{"$f":"[1]CashFlow!N125","v":0},{"$f":"[1]CashFlow!P125","v":0},{"$f":"[1]CashFlow!P125","v":0},{"$f":"[1]CashFlow!R125","v":0},{"$f":"[1]CashFlow!R125","v":0},{"$f":"[1]CashFlow!S125","v":0},{"$f":"[1]CashFlow!S125","v":0}]
[1,"CF2423",null,null,null,"Provincial department",null,null,{"$f":"[1]CashFlow!J126","v":0},{"$f":"[1]CashFlow!L126","v":0},{"$f":"[1]CashFlow!N126","v":0},{"$f":"[1]CashFlow!N126","v":0},{"$f":"[1]CashFlow!P126","v":0},{"$f":"[1]CashFlow!P126","v":0},{"$f":"[1]CashFlow!R126","v":0},{"$f":"[1]CashFlow!R126","v":0},{"$f":"[1]CashFlow!S126","v":0},{"$f":"[1]CashFlow!S126","v":0}]
[1,"CF2424",null,null,null,"Municipalities",null,null,{"$f":"[1]CashFlow!J127","v":0},{"$f":"[1]CashFlow!L127","v":0},{"$f":"[1]CashFlow!N127","v":0},{"$f":"[1]CashFlow!N127","v":0},{"$f":"[1]CashFlow!P127","v":0},{"$f":"[1]CashFlow!P127","v":0},{"$f":"[1]CashFlow!R127","v":0},{"$f":"[1]CashFlow!R127","v":0},{"$f":"[1]CashFlow!S127","v":0},{"$f":"[1]CashFlow!S127","v":0}]
[1,"CF2425",null,null,null,"National Skills Fund",null,null,{"$f":"[1]CashFlow!J128","v":0},{"$f":"[1]CashFlow!L128","v":0},{"$f":"[1]CashFlow!N128","v":0},{"$f":"[1]CashFlow!N128","v":0},{"$f":"[1]CashFlow!P128","v":0},{"$f":"[1]CashFlow!P128","v":0},{"$f":"[1]CashFlow!R128","v":0},{"$f":"[1]CashFlow!R128","v":0},{"$f":"[1]CashFlow!S128","v":0},{"$f":"[1]CashFlow!S128","v":0}]
[1,"CF243",null,null,null,"Public corporations and private enterprises (subsidies and other transfers)",null,null,{"$f":"SUM(I130:I131)","v":0},{"$f":"SUM(J130:J131)","v":0},{"$f":"SUM(K130:K131)","v":0},0,0,0,0,0,0,{"$f":"SUM(R130:R131)","v":0},0]
[1,"CF2431",null,null,null,"Public corporations",null,null,{"$f":"[1]CashFlow!J130","v":0},{"$f":"[1]CashFlow!L130","v":0},{"$f":"[1]CashFlow!N130","v":0},{"$f":"[1]CashFlow!N130","v":0},{"$f":"[1]CashFlow!P130","v":0},{"$f":"[1]CashFlow!P130","v":0},{"$f":"[1]CashFlow!R130","v":0},{"$f":"[1]CashFlow!R130","v":0},{"$f":"[1]CashFlow!S130","v":0},{"$f":"[1]CashFlow!S130","v":0}]
[1,"CF2432",null,null,null,"Private enterprises",null,null,{"$f":"[1]CashFlow!J131","v":0},{"$f":"[1]CashFlow!L131","v":0},{"$f":"[1]CashFlow!N131","v":0},{"$f":"[1]CashFlow!N131","v":0},{"$f":"[1]CashFlow!P131","v":0},{"$f":"[1]CashFlow!P131","v":0},{"$f":"[1]CashFlow!R131","v":0},{"$f":"[1]CashFlow!R131","v":0},{"$f":"[1]CashFlow!S131","v":0},{"$f":"[1]CashFlow!S131","v":0}]
[2,"CF244",null,null,null,"Households and non government units",null,null,{"$f":"[1]CashFlow!J132","v":0},{"$f":"[1]CashFlow!L132","v":0},{"$f":"[1]CashFlow!N132","v":0},{"$f":"[1]CashFlow!N132","v":0},{"$f":"[1]CashFlow!P132","v":0},{"$f":"[1]CashFlow!P132","v":0},{"$f":"[1]CashFlow!R132","v":0},{"$f":"[1]CashFlow!R132","v":0},{"$f":"[1]CashFlow!S132","v":0},{"$f":"[1]CashFlow!S132","v":0}]
[2,"CF245",null,null,null,"Discretionary Grant (SETAs only)",null,null,{"$f":"SUM(I134,I140,I143)","v":0},0,0,0,0,0,0,0,0,0,0]
[2,"CF246",null,null,null,"Other government units",null,null,{"$f":"SUM(I135:I139)","v":0},0,0,0,0,0,0,0,0,0,0]
[2,"CF2461",null,null,null,"Other national departments",null,null,{"$f":"[1]CashFlow!J135","v":0},{"$f":"[1]CashFlow!L135","v":0},{"$f":"[1]CashFlow!N135","v":0},{"$f":"[1]CashFlow!N135","v":0},{"$f":"[1]CashFlow!P135","v":0},{"$f":"[1]CashFlow!P135","v":0},{"$f":"[1]CashFlow!R135","v":0},{"$f":"[1]CashFlow!R135","v":0},{"$f":"[1]CashFlow!S135","v":0},{"$f":"[1]CashFlow!S135","v":0}]
[2,"CF2462",null,null,null,"Departmental agencies and accounts",null,null,{"$f":"[1]CashFlow!J136","v":0},{"$f":"[1]CashFlow!L136","v":0},{"$f":"[1]CashFlow!N136","v":0},{"$f":"[1]CashFlow!N136","v":0},{"$f":"[1]CashFlow!P136","v":0},{"$f":"[1]CashFlow!P136","v":0},{"$f":"[1]CashFlow!R136","v":0},{"$f":"[1]CashFlow!R136","v":0},{"$f":"[1]CashFlow!S136","v":0},{"$f":"[1]CashFlow!S136","v":0}]
[2,"CF2463",null,null,null,"Provinces",null,null,{"$f":"[1]CashFlow!J137","v":0},{"$f":"[1]CashFlow!L137","v":0},{"$f":"[1]CashFlow!N137","v":0},{"$f":"[1]CashFlow!N137","v":0},{"$f":"[1]CashFlow!P137","v":0},{"$f":"[1]CashFlow!P137","v":0},{"$f":"[1]CashFlow!R137","v":0},{"$f":"[1]CashFlow!R137","v":0},{"$f":"[1]CashFlow!S137","v":0},{"$f":"[1]CashFlow!S137","v":0}]
[2,"CF2464",null,null,null,"Municipalities",null,null,{"$f":"[1]CashFlow!J138","v":0},{"$f":"[1]CashFlow!L138","v":0},{"$f":"[1]CashFlow!N138","v":0},{"$f":"[1]CashFlow!N138","v":0},{"$f":"[1]CashFlow!P138","v":0},{"$f":"[1]CashFlow!P138","v":0},{"$f":"[1]CashFlow!R138","v":0},{"$f":"[1]CashFlow!R138","v":0},{"$f":"[1]CashFlow!S138","v":0},{"$f":"[1]CashFlow!S138","v":0}]
[2,"CF2465",null,null,null,"National Skills Fund",null,null,{"$f":"[1]CashFlow!J139","v":0},{"$f":"[1]CashFlow!L139","v":0},{"$f":"[1]CashFlow!N139","v":0},{"$f":"[1]CashFlow!N139","v":0},{"$f":"[1]CashFlow!P139","v":0},{"$f":"[1]CashFlow!P139","v":0},{"$f":"[1]CashFlow!R139","v":0},{"$f":"[1]CashFlow!R139","v":0},{"$f":"[1]CashFlow!S139","v":0},{"$f":"[1]CashFlow!S139","v":0}]
[2,"CF247",null,null,null,"Public corporations and private enterprises (subsidies and other transfers)",null,null,{"$f":"SUM(I141:I142)","v":0},{"$f":"SUM(J141:J142)","v":0},0,0,0,0,0,0,0,{"$f":"SUM(R141:R142)","v":0},0]
[2,"CF2471",null,null,null,"Public corporations",null,null,{"$f":"[1]CashFlow!J141","v":0},{"$f":"[1]CashFlow!L141","v":0},{"$f":"[1]CashFlow!N141","v":0},{"$f":"[1]CashFlow!N141","v":0},{"$f":"[1]CashFlow!P141","v":0},{"$f":"[1]CashFlow!P141","v":0},{"$f":"[1]CashFlow!R141","v":0},{"$f":"[1]CashFlow!R141","v":0},{"$f":"[1]CashFlow!S141","v":0},{"$f":"[1]CashFlow!S141","v":0}]
[2,"CF2472",null,null,null,"Private enterprises",null,null,{"$f":"[1]CashFlow!J142","v":0},{"$f":"[1]CashFlow!L142","v":0},{"$f":"[1]CashFlow!N142","v":0},{"$f":"[1]CashFlow!N142","v":0},{"$f":"[1]CashFlow!P142","v":0},{"$f":"[1]CashFlow!P142","v":0},{"$f":"[1]CashFlow!R142","v":0},{"$f":"[1]CashFlow!R142","v":0},{"$f":"[1]CashFlow!S142","v":0},{"$f":"[1]CashFlow!S142","v":0}]
[2,"CF248",null,null,null,"Households and non government units",null,null,{"$f":"[1]CashFlow!J143","v":0},{"$f":"[1]CashFlow!L143","v":0},{"$f":"[1]CashFlow!N143","v":0},{"$f":"[1]CashFlow!N143","v":0},{"$f":"[1]CashFlow!P143","v":0},{"$f":"[1]CashFlow!P143","v":0},{"$f":"[1]CashFlow!R143","v":0},{"$f":"[1]CashFlow!R143","v":0},{"$f":"[1]CashFlow!S143","v":0},{"$f":"[1]CashFlow!S143","v":0}]
[1,"CF249",null,null,null,"Higher education institutions",null,null,{"$f":"[1]CashFlow!J144","v":0},{"$f":"[1]CashFlow!L144","v":0},{"$f":"[1]CashFlow!N144","v":0},{"$f":"[1]CashFlow!N144","v":0},{"$f":"[1]CashFlow!P144","v":0},{"$f":"[1]CashFlow!P144","v":0},{"$f":"[1]CashFlow!R144","v":0},{"$f":"[1]CashFlow!R144","v":0},{"$f":"[1]CashFlow!S144","v":0},{"$f":"[1]CashFlow!S144","v":0}]
[1,"CF250",null,null,null,"Foreign governments and international organisations",null,null,{"$f":"[1]CashFlow!J145","v":0},{"$f":"[1]CashFlow!L145","v":0},{"$f":"[1]CashFlow!N145","v":0},{"$f":"[1]CashFlow!N145","v":0},{"$f":"[1]CashFlow!P145","v":0},{"$f":"[1]CashFlow!P145","v":0},{"$f":"[1]CashFlow!R145","v":0},{"$f":"[1]CashFlow!R145","v":0},{"$f":"[1]CashFlow!S145","v":0},{"$f":"[1]CashFlow!S145","v":0}]
[1,"CF251",null,null,null,"Non-profit institutions",null,null,{"$f":"[1]CashFlow!J146","v":0},{"$f":"[1]CashFlow!L146","v":0},{"$f":"[1]CashFlow!N146","v":0},{"$f":"[1]CashFlow!N146","v":0},{"$f":"[1]CashFlow!P146","v":0},{"$f":"[1]CashFlow!P146","v":0},{"$f":"[1]CashFlow!R146","v":0},{"$f":"[1]CashFlow!R146","v":0},{"$f":"[1]CashFlow!S146","v":0},{"$f":"[1]CashFlow!S146","v":0}]
[1,"CF252",null,null,null,"Households",null,null,{"$f":"SUM(I148:I149)","v":0},0,0,0,0,0,0,0,0,0,0]
[1,"CF2521",null,null,null,"Social benefits",null,null,{"$f":"[1]CashFlow!J148","v":0},{"$f":"[1]CashFlow!L148","v":0},{"$f":"[1]CashFlow!N148","v":0},{"$f":"[1]CashFlow!N148","v":0},{"$f":"[1]CashFlow!P148","v":0},{"$f":"[1]CashFlow!P148","v":0},{"$f":"[1]CashFlow!R148","v":0},{"$f":"[1]CashFlow!R148","v":0},{"$f":"[1]CashFlow!S148","v":0},{"$f":"[1]CashFlow!S148","v":0}]
[1,"CF2522",null,null,null,"Other transfers to households",null,null,{"$f":"[1]CashFlow!J149","v":0},{"$f":"[1]CashFlow!L149","v":0},{"$f":"[1]CashFlow!N149","v":0},{"$f":"[1]CashFlow!N149","v":0},{"$f":"[1]CashFlow!P149","v":0},{"$f":"[1]CashFlow!P149","v":0},{"$f":"[1]CashFlow!R149","v":0},{"$f":"[1]CashFlow!R149","v":0},{"$f":"[1]CashFlow!S149","v":0},{"$f":"[1]CashFlow!S149","v":0}]
[1,"CF26",null,null,null,"Payments for financial assets",null,null,{"$f":"SUM(I151:I154)","v":0},{"$f":"SUM(J151:J154)","v":0},0,0,0,0,0,0,0,0,0]
[1,"CF261",null,null,null,"Forex losses",null,null,{"$f":"[1]CashFlow!J151","v":0},{"$f":"[1]CashFlow!L151","v":0},{"$f":"[1]CashFlow!N151","v":0},{"$f":"[1]CashFlow!N151","v":0},{"$f":"[1]CashFlow!P151","v":0},{"$f":"[1]CashFlow!P151","v":0},{"$f":"[1]CashFlow!R151","v":0},{"$f":"[1]CashFlow!R151","v":0},{"$f":"[1]CashFlow!S151","v":0},{"$f":"[1]CashFlow!S151","v":0}]
[1,"CF262",null,null,null,"Thefts and losses",null,null,{"$f":"[1]CashFlow!J152","v":0},{"$f":"[1]CashFlow!L152","v":0},{"$f":"[1]CashFlow!N152","v":0},{"$f":"[1]CashFlow!N152","v":0},{"$f":"[1]CashFlow!P152","v":0},{"$f":"[1]CashFlow!P152","v":0},{"$f":"[1]CashFlow!R152","v":0},{"$f":"[1]CashFlow!R152","v":0},{"$f":"[1]CashFlow!S152","v":0},{"$f":"[1]CashFlow!S152","v":0}]
[1,"CF263",null,null,null,"Purchase of equity",null,null,{"$f":"[1]CashFlow!J153","v":0},{"$f":"[1]CashFlow!L153","v":0},{"$f":"[1]CashFlow!N153","v":0},{"$f":"[1]CashFlow!N153","v":0},{"$f":"[1]CashFlow!P153","v":0},{"$f":"[1]CashFlow!P153","v":0},{"$f":"[1]CashFlow!R153","v":0},{"$f":"[1]CashFlow!R153","v":0},{"$f":"[1]CashFlow!S153","v":0},{"$f":"[1]CashFlow!S153","v":0}]
[1,"CF264",null,null,null,"Other",null,null,{"$f":"[1]CashFlow!J154","v":0},{"$f":"[1]CashFlow!L154","v":0},{"$f":"[1]CashFlow!N154","v":0},{"$f":"[1]CashFlow!N154","v":0},{"$f":"[1]CashFlow!P154","v":0},{"$f":"[1]CashFlow!P154","v":0},{"$f":"[1]CashFlow!R154","v":0},{"$f":"[1]CashFlow!R154","v":0},{"$f":"[1]CashFlow!S154","v":0},{"$f":"[1]CashFlow!S154","v":0}]
[1,"CF22",null,null,null,"Tax payment",null,null,{"$f":"[1]CashFlow!J155","v":0},{"$f":"[1]CashFlow!L155","v":0},{"$f":"[1]CashFlow!N155","v":0},{"$f":"[1]CashFlow!N155","v":0},{"$f":"[1]CashFlow!P155","v":0},{"$f":"[1]CashFlow!P155","v":0},{"$f":"[1]CashFlow!R155","v":0},{"$f":"[1]CashFlow!R155","v":0},{"$f":"[1]CashFlow!S155","v":0},{"$f":"[1]CashFlow!S155","v":0}]
[1,"CF23",null,null,null,"Outside shareholders interest",null,null,{"$f":"[1]CashFlow!J156","v":0},{"$f":"[1]CashFlow!L156","v":0},{"$f":"[1]CashFlow!N156","v":0},{"$f":"[1]CashFlow!N156","v":0},{"$f":"[1]CashFlow!P156","v":0},{"$f":"[1]CashFlow!P156","v":0},{"$f":"[1]CashFlow!R156","v":0},{"$f":"[1]CashFlow!R156","v":0},{"$f":"[1]CashFlow!S156","v":0},{"$f":"[1]CashFlow!S156","v":0}]
[3,"CF4",null,null,null,"Cash flow from advancing activities (Financial Institutions only)",null,null,{"$f":"SUM(I158,I163)","v":0},{"$f":"SUM(J158,J163)","v":0},{"$f":"SUM(K158,K163)","v":0},0,0,0,0,0,0,0,0]
[3,"CF41",null,null,null,"Disbursements and other payments",null,null,{"$f":"SUM(I159:I162)","v":0},{"$f":"SUM(J159:J162)","v":0},0,0,0,0,0,0,0,0,0]
[3,"CF411",null,null,null,"Loan disbursements",null,null,{"$f":"[1]CashFlow!J159","v":0},{"$f":"[1]CashFlow!L159","v":0},{"$f":"[1]CashFlow!N159","v":0},{"$f":"[1]CashFlow!N159","v":0},{"$f":"[1]CashFlow!P159","v":0},{"$f":"[1]CashFlow!P159","v":0},{"$f":"[1]CashFlow!R159","v":0},{"$f":"[1]CashFlow!R159","v":0},{"$f":"[1]CashFlow!S159","v":0},{"$f":"[1]CashFlow!S159","v":0}]
[3,"CF412",null,null,null,"Equity investments disbursements",null,null,{"$f":"[1]CashFlow!J160","v":0},{"$f":"[1]CashFlow!L160","v":0},{"$f":"[1]CashFlow!N160","v":0},{"$f":"[1]CashFlow!N160","v":0},{"$f":"[1]CashFlow!P160","v":0},{"$f":"[1]CashFlow!P160","v":0},{"$f":"[1]CashFlow!R160","v":0},{"$f":"[1]CashFlow!R160","v":0},{"$f":"[1]CashFlow!S160","v":0},{"$f":"[1]CashFlow!S160","v":0}]
[3,"CF413",null,null,null,{"$f":"[1]CashFlow!F161","v":"Please specify"},null,null,{"$f":"[1]CashFlow!J161","v":0},{"$f":"[1]CashFlow!L161","v":0},{"$f":"[1]CashFlow!N161","v":0},{"$f":"[1]CashFlow!N161","v":0},{"$f":"[1]CashFlow!P161","v":0},{"$f":"[1]CashFlow!P161","v":0},{"$f":"[1]CashFlow!R161","v":0},{"$f":"[1]CashFlow!R161","v":0},{"$f":"[1]CashFlow!S161","v":0},{"$f":"[1]CashFlow!S161","v":0}]
[3,"CF414",null,null,null,{"$f":"[1]CashFlow!F162","v":"Please specify"},null,null,{"$f":"[1]CashFlow!J162","v":0},{"$f":"[1]CashFlow!L162","v":0},{"$f":"[1]CashFlow!N162","v":0},{"$f":"[1]CashFlow!N162","v":0},{"$f":"[1]CashFlow!P162","v":0},{"$f":"[1]CashFlow!P162","v":0},{"$f":"[1]CashFlow!R162","v":0},{"$f":"[1]CashFlow!R162","v":0},{"$f":"[1]CashFlow!S162","v":0},{"$f":"[1]CashFlow!S162","v":0}]
[3,"CF42",null,null,null,"Repayments and other receipts",null,null,{"$f":"SUM(I164:I167)","v":0},{"$f":"SUM(J164:J167)","v":0},0,0,0,0,0,0,0,0,0]
[3,"CF421",null,null,null,"Loan principal repayments",null,null,{"$f":"[1]CashFlow!J164","v":0},{"$f":"[1]CashFlow!L164","v":0},{"$f":"[1]CashFlow!N164","v":0},{"$f":"[1]CashFlow!N164","v":0},{"$f":"[1]CashFlow!P164","v":0},{"$f":"[1]CashFlow!P164","v":0},{"$f":"[1]CashFlow!R164","v":0},{"$f":"[1]CashFlow!R164","v":0},{"$f":"[1]CashFlow!S164","v":0},{"$f":"[1]CashFlow!S164","v":0}]
[3,"CF422",null,null,null,"Equity investments repayments",null,null,{"$f":"[1]CashFlow!J165","v":0},{"$f":"[1]CashFlow!L165","v":0},{"$f":"[1]CashFlow!N165","v":0},{"$f":"[1]CashFlow!N165","v":0},{"$f":"[1]CashFlow!P165","v":0},{"$f":"[1]CashFlow!P165","v":0},{"$f":"[1]CashFlow!R165","v":0},{"$f":"[1]CashFlow!R165","v":0},{"$f":"[1]CashFlow!S165","v":0},{"$f":"[1]CashFlow!S165","v":0}]
[3,"CF423",null,null,null,{"$f":"[1]CashFlow!F166","v":"Please specify"},null,null,{"$f":"[1]CashFlow!J166","v":0},{"$f":"[1]CashFlow!L166","v":0},{"$f":"[1]CashFlow!N166","v":0},{"$f":"[1]CashFlow!N166","v":0},{"$f":"[1]CashFlow!P166","v":0},{"$f":"[1]CashFlow!P166","v":0},{"$f":"[1]CashFlow!R166","v":0},{"$f":"[1]CashFlow!R166","v":0},{"$f":"[1]CashFlow!S166","v":0},{"$f":"[1]CashFlow!S166","v":0}]
[3,"CF424",null,null,null,{"$f":"[1]CashFlow!F167","v":"Please specify"},null,null,{"$f":"[1]CashFlow!J167","v":0},{"$f":"[1]CashFlow!L167","v":0},{"$f":"[1]CashFlow!N167","v":0},{"$f":"[1]CashFlow!N167","v":0},{"$f":"[1]CashFlow!P167","v":0},{"$f":"[1]CashFlow!P167","v":0},{"$f":"[1]CashFlow!R167","v":0},{"$f":"[1]CashFlow!R167","v":0},{"$f":"[1]CashFlow!S167","v":0},{"$f":"[1]CashFlow!S167","v":0}]
[1,"CF5",null,null,null,"Cash flow from investing activities",null,null,{"$f":"SUM(I169,I182:I185)","v":-779440},-640760,-540221.21490000002,-540221.21490000002,-989614.64978879236,-989614.64978879236,-490463.23638710083,-490463.23638710083,-223510.47849298324,-223510.47849298324,0]
[1,"CF51",null,null,null,"Acquisition of property, plant, equipment",null,null,{"$f":"SUM(I170:I176,I179:I181)","v":-546647},{"$f":"SUM(J170:J176,J179:J181)","v":-393809},{"$f":"SUM(K170:K176,K179:K181)","v":-266549.19896999997},-266549.19896999997,-628999.92061654129,-628999.92061654129,-258102.10350970525,-258102.10350970525,-149009.33027115281,-149009.33027115281,0]
[1,"CF511",null,null,null,"Buildings: residential",82,null,{"$f":"[1]CashFlow!J170","v":0},{"$f":"[1]CashFlow!L170","v":0},{"$f":"[1]CashFlow!N170","v":0},{"$f":"[1]CashFlow!N170","v":0},{"$f":"[1]CashFlow!P170","v":0},{"$f":"[1]CashFlow!P170","v":0},{"$f":"[1]CashFlow!R170","v":0},{"$f":"[1]CashFlow!R170","v":0},{"$f":"[1]CashFlow!S170","v":0},{"$f":"[1]CashFlow!S170","v":0}]
[1,"CF512",null,null,null,"Buildings: non-residential",83,null,{"$f":"[1]CashFlow!J171","v":-98894},{"$f":"[1]CashFlow!L171","v":-50029},{"$f":"[1]CashFlow!N171","v":-39015.561129999995},{"$f":"[1]CashFlow!N171","v":-39015.561129999995},{"$f":"[1]CashFlow!P171","v":-23235.014676546074},{"$f":"[1]CashFlow!P171","v":-23235.014676546074},{"$f":"[1]CashFlow!R171","v":-20432.558868065331},{"$f":"[1]CashFlow!R171","v":-20432.558868065331},{"$f":"[1]CashFlow!S171","v":-17852.028845823021},{"$f":"[1]CashFlow!S171","v":-17852.028845823021}]
[1,"CF513",null,null,null,"Other fixed structures",84,null,{"$f":"[1]CashFlow!J172","v":-3781},{"$f":"[1]CashFlow!L172","v":-9806},{"$f":"[1]CashFlow!N172","v":-75370.420769999997},{"$f":"[1]CashFlow!N172","v":-75370.420769999997},{"$f":"[1]CashFlow!P172","v":-544718.82325176173},{"$f":"[1]CashFlow!P172","v":-544718.82325176173},{"$f":"[1]CashFlow!R172","v":-187158.99276229739},{"$f":"[1]CashFlow!R172","v":-187158.99276229739},{"$f":"[1]CashFlow!S172","v":-91836.311376575759},{"$f":"[1]CashFlow!S172","v":-91836.311376575759}]
[1,"CF515",null,null,null,"Transport equipment",85,null,{"$f":"[1]CashFlow!J173","v":-56888},{"$f":"[1]CashFlow!L173","v":-9442},{"$f":"[1]CashFlow!N173","v":-21099.1708},{"$f":"[1]CashFlow!N173","v":-21099.1708},{"$f":"[1]CashFlow!P173","v":0},{"$f":"[1]CashFlow!P173","v":0},{"$f":"[1]CashFlow!R173","v":0},{"$f":"[1]CashFlow!R173","v":0},{"$f":"[1]CashFlow!S173","v":0},{"$f":"[1]CashFlow!S173","v":0}]
[1,"CF516",null,null,null,"Furniture and office equipment",85,null,{"$f":"[1]CashFlow!J174","v":-40364},{"$f":"[1]CashFlow!L174","v":-13291},{"$f":"[1]CashFlow!N174","v":-34749.292109999995},{"$f":"[1]CashFlow!N174","v":-34749.292109999995},{"$f":"[1]CashFlow!P174","v":-11661.656922063736},{"$f":"[1]CashFlow!P174","v":-11661.656922063736},{"$f":"[1]CashFlow!R174","v":-7860.4082878982526},{"$f":"[1]CashFlow!R174","v":-7860.4082878982526},{"$f":"[1]CashFlow!S174","v":-3236.7572388733829},{"$f":"[1]CashFlow!S174","v":-3236.7572388733829}]
[1,"CF517",null,null,null,"Other machinery and equipment",85,null,{"$f":"[1]CashFlow!J175","v":-19279},{"$f":"[1]CashFlow!L175","v":-6364},{"$f":"[1]CashFlow!N175","v":-64715.761610000001},{"$f":"[1]CashFlow!N175","v":-64715.761610000001},{"$f":"[1]CashFlow!P175","v":-41628.487305649396},{"$f":"[1]CashFlow!P175","v":-41628.487305649396},{"$f":"[1]CashFlow!R175","v":-36607.530888275367},{"$f":"[1]CashFlow!R175","v":-36607.530888275367},{"$f":"[1]CashFlow!S175","v":-31984.182774740628},{"$f":"[1]CashFlow!S175","v":-31984.182774740628}]
[1,"CF518",null,null,null,"Heritage assets",86,null,{"$f":"SUM(I177:I178)","v":0},0,0,0,0,0,0,0,0,0,0]
[1,"CF5181",null,null,null,"Buildings and other fixed structures",null,null,{"$f":"[1]CashFlow!J177","v":0},{"$f":"[1]CashFlow!L177","v":0},{"$f":"[1]CashFlow!N177","v":0},{"$f":"[1]CashFlow!N177","v":0},{"$f":"[1]CashFlow!P177","v":0},{"$f":"[1]CashFlow!P177","v":0},{"$f":"[1]CashFlow!R177","v":0},{"$f":"[1]CashFlow!R177","v":0},{"$f":"[1]CashFlow!S177","v":0},{"$f":"[1]CashFlow!S177","v":0}]
[1,"CF5182",null,null,null,"Other than buildings and fixed structures",null,null,{"$f":"[1]CashFlow!J178","v":0},{"$f":"[1]CashFlow!L178","v":0},{"$f":"[1]CashFlow!N178","v":0},{"$f":"[1]CashFlow!N178","v":0},{"$f":"[1]CashFlow!P178","v":0},{"$f":"[1]CashFlow!P178","v":0},{"$f":"[1]CashFlow!R178","v":0},{"$f":"[1]CashFlow!R178","v":0},{"$f":"[1]CashFlow!S178","v":0},{"$f":"[1]CashFlow!S178","v":0}]
[1,"CF519",null,null,null,"Biological assets",87,null,{"$f":"[1]CashFlow!J179","v":-3725},{"$f":"[1]CashFlow!L179","v":-1676},{"$f":"[1]CashFlow!N179","v":-112.7},{"$f":"[1]CashFlow!N179","v":-112.7},{"$f":"[1]CashFlow!P179","v":0},{"$f":"[1]CashFlow!P179","v":0},{"$f":"[1]CashFlow!R179","v":0},{"$f":"[1]CashFlow!R179","v":0},{"$f":"[1]CashFlow!S179","v":0},{"$f":"[1]CashFlow!S179","v":0}]
[1,"CF531",null,null,null,"Land & subsoil assets",88,null,{"$f":"[1]CashFlow!J180","v":0},{"$f":"[1]CashFlow!L180","v":0},{"$f":"[1]CashFlow!N180","v":0},{"$f":"[1]CashFlow!N180","v":0},{"$f":"[1]CashFlow!P180","v":0},{"$f":"[1]CashFlow!P180","v":0},{"$f":"[1]CashFlow!R180","v":0},{"$f":"[1]CashFlow!R180","v":0},{"$f":"[1]CashFlow!S180","v":0},{"$f":"[1]CashFlow!S180","v":0}]
[1,"CF532",null,null,null,"Computer equipment",85,null,{"$f":"[1]CashFlow!J181","v":-323716},{"$f":"[1]CashFlow!L181","v":-303201},{"$f":"[1]CashFlow!N181","v":-31486.292549999998},{"$f":"[1]CashFlow!N181","v":-31486.292549999998},{"$f":"[1]CashFlow!P181","v":-7755.9384605201785},{"$f":"[1]CashFlow!P181","v":-7755.9384605201785},{"$f":"[1]CashFlow!R181","v":-6042.6127031689084},{"$f":"[1]CashFlow!R181","v":-6042.6127031689084},{"$f":"[1]CashFlow!S181","v":-4100.0500351399978},{"$f":"[1]CashFlow!S181","v":-4100.0500351399978}]
[1,"CF514",null,null,null,"Investment property",89,null,{"$f":"[1]CashFlow!J182","v":0},{"$f":"[1]CashFlow!L182","v":0},{"$f":"[1]CashFlow!N182","v":0},{"$f":"[1]CashFlow!N182","v":0},{"$f":"[1]CashFlow!P182","v":0},{"$f":"[1]CashFlow!P182","v":0},{"$f":"[1]CashFlow!R182","v":0},{"$f":"[1]CashFlow!R182","v":0},{"$f":"[1]CashFlow!S182","v":0},{"$f":"[1]CashFlow!S182","v":0}]
[1,"CF520",null,null,null,"Acquisition of software and other intangible assets",null,null,{"$f":"[1]CashFlow!J183","v":-242892},{"$f":"[1]CashFlow!L183","v":-248243},{"$f":"[1]CashFlow!N183","v":-273672.01592999999},{"$f":"[1]CashFlow!N183","v":-273672.01592999999},{"$f":"[1]CashFlow!P183","v":-360614.72917225107},{"$f":"[1]CashFlow!P183","v":-360614.72917225107},{"$f":"[1]CashFlow!R183","v":-232361.13287739558},{"$f":"[1]CashFlow!R183","v":-232361.13287739558},{"$f":"[1]CashFlow!S183","v":-74501.14822183043},{"$f":"[1]CashFlow!S183","v":-74501.14822183043}]
[1,"CF5212",null,null,null,"Proceeds from sale of property, plant, equipment & intangible assets",null,null,{"$f":"[1]CashFlow!J184","v":1610},{"$f":"[1]CashFlow!L184","v":1292},{"$f":"[1]CashFlow!N184","v":0},{"$f":"[1]CashFlow!N184","v":0},{"$f":"[1]CashFlow!P184","v":0},{"$f":"[1]CashFlow!P184","v":0},{"$f":"[1]CashFlow!R184","v":0},{"$f":"[1]CashFlow!R184","v":0},{"$f":"[1]CashFlow!S184","v":0},{"$f":"[1]CashFlow!S184","v":0}]
[1,"CF52",null,null,null,"Other flows from Investing Activities",81,null,{"$f":"SUM(I186,I189,I192:I194)","v":8489},0,0,0,0,0,0,0,0,0,0]
[1,"CF521",null,null,null,"Domestic",91,null,{"$f":"SUM(I187:I188)","v":8489},0,0,0,0,0,0,0,0,0,0]
[1,"CF5211",null,null,null,"long term investments",null,null,{"$f":"[1]CashFlow!J187","v":0},{"$f":"[1]CashFlow!L187","v":0},{"$f":"[1]CashFlow!N187","v":0},{"$f":"[1]CashFlow!N187","v":0},{"$f":"[1]CashFlow!P187","v":0},{"$f":"[1]CashFlow!P187","v":0},{"$f":"[1]CashFlow!R187","v":0},{"$f":"[1]CashFlow!R187","v":0},{"$f":"[1]CashFlow!S187","v":0},{"$f":"[1]CashFlow!S187","v":0}]
[1,"CF5214",null,null,null,"Other",null,null,{"$f":"[1]CashFlow!J188","v":8489},{"$f":"[1]CashFlow!L188","v":0},{"$f":"[1]CashFlow!N188","v":0},{"$f":"[1]CashFlow!N188","v":0},{"$f":"[1]CashFlow!P188","v":0},{"$f":"[1]CashFlow!P188","v":0},{"$f":"[1]CashFlow!R188","v":0},{"$f":"[1]CashFlow!R188","v":0},{"$f":"[1]CashFlow!S188","v":0},{"$f":"[1]CashFlow!S188","v":0}]
[1,"CF522",null,null,null,"Foreign",92,null,{"$f":"SUM(I190:I191)","v":0},0,0,0,0,0,0,0,0,0,0]
[1,"CF5221",null,null,null,"long term investments",null,null,{"$f":"[1]CashFlow!J190","v":0},{"$f":"[1]CashFlow!L190","v":0},{"$f":"[1]CashFlow!N190","v":0},{"$f":"[1]CashFlow!N190","v":0},{"$f":"[1]CashFlow!P190","v":0},{"$f":"[1]CashFlow!P190","v":0},{"$f":"[1]CashFlow!R190","v":0},{"$f":"[1]CashFlow!R190","v":0},{"$f":"[1]CashFlow!S190","v":0},{"$f":"[1]CashFlow!S190","v":0}]
[1,"CF5223",null,null,null,"Other",null,null,{"$f":"[1]CashFlow!J191","v":0},{"$f":"[1]CashFlow!L191","v":0},{"$f":"[1]CashFlow!N191","v":0},{"$f":"[1]CashFlow!N191","v":0},{"$f":"[1]CashFlow!P191","v":0},{"$f":"[1]CashFlow!P191","v":0},{"$f":"[1]CashFlow!R191","v":0},{"$f":"[1]CashFlow!R191","v":0},{"$f":"[1]CashFlow!S191","v":0},{"$f":"[1]CashFlow!S191","v":0}]
[1,"CF523",null,null,null,"Interest",93,null,{"$f":"[1]CashFlow!J192","v":0},{"$f":"[1]CashFlow!L192","v":0},{"$f":"[1]CashFlow!N192","v":0},{"$f":"[1]CashFlow!N192","v":0},{"$f":"[1]CashFlow!P192","v":0},{"$f":"[1]CashFlow!P192","v":0},{"$f":"[1]CashFlow!R192","v":0},{"$f":"[1]CashFlow!R192","v":0},{"$f":"[1]CashFlow!S192","v":0},{"$f":"[1]CashFlow!S192","v":0}]
[1,"CF524",null,null,null,"Dividends",94,null,{"$f":"[1]CashFlow!J193","v":0},{"$f":"[1]CashFlow!L193","v":0},{"$f":"[1]CashFlow!N193","v":0},{"$f":"[1]CashFlow!N193","v":0},{"$f":"[1]CashFlow!P193","v":0},{"$f":"[1]CashFlow!P193","v":0},{"$f":"[1]CashFlow!R193","v":0},{"$f":"[1]CashFlow!R193","v":0},{"$f":"[1]CashFlow!S193","v":0},{"$f":"[1]CashFlow!S193","v":0}]
[1,"CF525",null,null,null,"Outside shareholders interest",95,null,{"$f":"[1]CashFlow!J194","v":0},{"$f":"[1]CashFlow!L194","v":0},{"$f":"[1]CashFlow!N194","v":0},{"$f":"[1]CashFlow!N194","v":0},{"$f":"[1]CashFlow!P194","v":0},{"$f":"[1]CashFlow!P194","v":0},{"$f":"[1]CashFlow!R194","v":0},{"$f":"[1]CashFlow!R194","v":0},{"$f":"[1]CashFlow!S194","v":0},{"$f":"[1]CashFlow!S194","v":0}]
[1,"CF6",null,null,null,"Cash flow from financing activities",null,null,{"$f":"SUM(I196,I199,I211:I215)","v":2232},{"$f":"SUM(J196,J199,J211:J215)","v":-13776},{"$f":"SUM(K196,K199,K211:K215)","v":-20542},-20542,0,0,-8737,-8737,0,0,0]
[1,"CF61",null,null,null,"Deferred Income",96,null,{"$f":"SUM(I197:I198)","v":0},0,0,0,0,0,0,0,0,0,0]
[1,"CF611",null,null,null,"Departmental transfer",null,null,{"$f":"[1]CashFlow!J197","v":0},{"$f":"[1]CashFlow!L197","v":0},{"$f":"[1]CashFlow!N197","v":0},{"$f":"[1]CashFlow!N197","v":0},{"$f":"[1]CashFlow!P197","v":0},{"$f":"[1]CashFlow!P197","v":0},{"$f":"[1]CashFlow!R197","v":0},{"$f":"[1]CashFlow!R197","v":0},{"$f":"[1]CashFlow!S197","v":0},{"$f":"[1]CashFlow!S197","v":0}]
[1,"CF612",null,null,null,"Other Revenue",null,null,{"$f":"[1]CashFlow!J198","v":0},{"$f":"[1]CashFlow!L198","v":0},{"$f":"[1]CashFlow!N198","v":0},{"$f":"[1]CashFlow!N198","v":0},{"$f":"[1]CashFlow!P198","v":0},{"$f":"[1]CashFlow!P198","v":0},{"$f":"[1]CashFlow!R198","v":0},{"$f":"[1]CashFlow!R198","v":0},{"$f":"[1]CashFlow!S198","v":0},{"$f":"[1]CashFlow!S198","v":0}]
[1,"CF62",null,null,null,"Borrowing Activities",97,null,{"$f":"SUM(I200,I207)","v":0},{"$f":"SUM(J200,J207)","v":0},0,0,0,0,0,0,0,0,0]
[1,"CF621",null,null,null,"Domestic",null,null,{"$f":"SUM(I201:I203,I206)","v":0},{"$f":"SUM(J201:J203,J206)","v":0},0,0,0,0,0,0,0,0,0]
[1,"CF6211",null,null,null,"Loan from other government units",null,null,{"$f":"[1]CashFlow!J201","v":0},{"$f":"[1]CashFlow!L201","v":0},{"$f":"[1]CashFlow!N201","v":0},{"$f":"[1]CashFlow!N201","v":0},{"$f":"[1]CashFlow!P201","v":0},{"$f":"[1]CashFlow!P201","v":0},{"$f":"[1]CashFlow!R201","v":0},{"$f":"[1]CashFlow!R201","v":0},{"$f":"[1]CashFlow!S201","v":0},{"$f":"[1]CashFlow!S201","v":0}]
[1,"CF6212",null,null,null,"Short-term (≤12 months)",null,null,{"$f":"[1]CashFlow!J202","v":0},{"$f":"[1]CashFlow!L202","v":0},{"$f":"[1]CashFlow!N202","v":0},{"$f":"[1]CashFlow!N202","v":0},{"$f":"[1]CashFlow!P202","v":0},{"$f":"[1]CashFlow!P202","v":0},{"$f":"[1]CashFlow!R202","v":0},{"$f":"[1]CashFlow!R202","v":0},{"$f":"[1]CashFlow!S202","v":0},{"$f":"[1]CashFlow!S202","v":0}]
[1,"CF6213",null,null,null,"Long-term (>12 months)",null,null,{"$f":"SUM(I204:I205)","v":0},0,0,0,0,0,0,0,0,{"$f":"SUM(R204:R205)","v":0},0]
[1,"CF62131",null,null,null,"Market loans",null,null,{"$f":"[1]CashFlow!J204","v":0},{"$f":"[1]CashFlow!L204","v":0},{"$f":"[1]CashFlow!N204","v":0},{"$f":"[1]CashFlow!N204","v":0},{"$f":"[1]CashFlow!P204","v":0},{"$f":"[1]CashFlow!P204","v":0},{"$f":"[1]CashFlow!R204","v":0},{"$f":"[1]CashFlow!R204","v":0},{"$f":"[1]CashFlow!S204","v":0},{"$f":"[1]CashFlow!S204","v":0}]
[1,"CF62132",null,null,null,"Other",null,null,{"$f":"[1]CashFlow!J205","v":0},{"$f":"[1]CashFlow!L205","v":0},{"$f":"[1]CashFlow!N205","v":0},{"$f":"[1]CashFlow!N205","v":0},{"$f":"[1]CashFlow!P205","v":0},{"$f":"[1]CashFlow!P205","v":0},{"$f":"[1]CashFlow!R205","v":0},{"$f":"[1]CashFlow!R205","v":0},{"$f":"[1]CashFlow!S205","v":0},{"$f":"[1]CashFlow!S205","v":0}]
[1,"CF6214",null,null,null,"Repayment of long-term loans",null,null,{"$f":"[1]CashFlow!J206","v":0},{"$f":"[1]CashFlow!L206","v":0},{"$f":"[1]CashFlow!N206","v":0},{"$f":"[1]CashFlow!N206","v":0},{"$f":"[1]CashFlow!P206","v":0},{"$f":"[1]CashFlow!P206","v":0},{"$f":"[1]CashFlow!R206","v":0},{"$f":"[1]CashFlow!R206","v":0},{"$f":"[1]CashFlow!S206","v":0},{"$f":"[1]CashFlow!S206","v":0}]
[1,"CF622",null,null,null,"Foreign",null,null,{"$f":"SUM(I208:I210)","v":0},{"$f":"SUM(J208:J210)","v":0},{"$f":"SUM(K208:K210)","v":0},0,0,0,0,0,0,{"$f":"SUM(R208:R210)","v":0},0]
[1,"CF6221",null,null,null,"Market loans",null,null,{"$f":"[1]CashFlow!J208","v":0},{"$f":"[1]CashFlow!L208","v":0},{"$f":"[1]CashFlow!N208","v":0},{"$f":"[1]CashFlow!N208","v":0},{"$f":"[1]CashFlow!P208","v":0},{"$f":"[1]CashFlow!P208","v":0},{"$f":"[1]CashFlow!R208","v":0},{"$f":"[1]CashFlow!R208","v":0},{"$f":"[1]CashFlow!S208","v":0},{"$f":"[1]CashFlow!S208","v":0}]
[1,"CF6222",null,null,null,"Other",null,null,{"$f":"[1]CashFlow!J209","v":0},{"$f":"[1]CashFlow!L209","v":0},{"$f":"[1]CashFlow!N209","v":0},{"$f":"[1]CashFlow!N209","v":0},{"$f":"[1]CashFlow!P209","v":0},{"$f":"[1]CashFlow!P209","v":0},{"$f":"[1]CashFlow!R209","v":0},{"$f":"[1]CashFlow!R209","v":0},{"$f":"[1]CashFlow!S209","v":0},{"$f":"[1]CashFlow!S209","v":0}]
[1,"CF6223",null,null,null,"Repayment of long-term loans",null,null,{"$f":"[1]CashFlow!J210","v":0},{"$f":"[1]CashFlow!L210","v":0},{"$f":"[1]CashFlow!N210","v":0},{"$f":"[1]CashFlow!N210","v":0},{"$f":"[1]CashFlow!P210","v":0},{"$f":"[1]CashFlow!P210","v":0},{"$f":"[1]CashFlow!R210","v":0},{"$f":"[1]CashFlow!R210","v":0},{"$f":"[1]CashFlow!S210","v":0},{"$f":"[1]CashFlow!S210","v":0}]
[1,"CF63",null,null,null,"Repayment of finance leases",98,null,{"$f":"[1]CashFlow!J211","v":6520},{"$f":"[1]CashFlow!L211","v":-6620},{"$f":"[1]CashFlow!N211","v":-20542},{"$f":"[1]CashFlow!N211","v":-20542},{"$f":"[1]CashFlow!P211","v":0},{"$f":"[1]CashFlow!P211","v":0},{"$f":"[1]CashFlow!R211","v":-8737},{"$f":"[1]CashFlow!R211","v":-8737},{"$f":"[1]CashFlow!S211","v":0},{"$f":"[1]CashFlow!S211","v":0}]
[null,"CF67",null,null,null,"Special reserve grant",null,null,{"$f":"[1]CashFlow!J212","v":0},{"$f":"[1]CashFlow!L212","v":0},{"$f":"[1]CashFlow!N212","v":0},{"$f":"[1]CashFlow!N212","v":0},{"$f":"[1]CashFlow!P212","v":0},{"$f":"[1]CashFlow!P212","v":0},{"$f":"[1]CashFlow!R212","v":0},{"$f":"[1]CashFlow!R212","v":0},{"$f":"[1]CashFlow!S212","v":0},{"$f":"[1]CashFlow!S212","v":0}]
[1,"CF64",null,null,null,"Other (e.g. issuance of shares, revaluations)",99,null,{"$f":"[1]CashFlow!J213","v":0},{"$f":"[1]CashFlow!L213","v":-7156},{"$f":"[1]CashFlow!N213","v":0},{"$f":"[1]CashFlow!N213","v":0},{"$f":"[1]CashFlow!P213","v":0},{"$f":"[1]CashFlow!P213","v":0},{"$f":"[1]CashFlow!R213","v":0},{"$f":"[1]CashFlow!R213","v":0},{"$f":"[1]CashFlow!S213","v":0},{"$f":"[1]CashFlow!S213","v":0}]
[1,"CF65",null,null,null,"Interest",100,null,{"$f":"[1]CashFlow!J214","v":-4288},{"$f":"[1]CashFlow!L214","v":0},{"$f":"[1]CashFlow!N214","v":0},{"$f":"[1]CashFlow!N214","v":0},{"$f":"[1]CashFlow!P214","v":0},{"$f":"[1]CashFlow!P214","v":0},{"$f":"[1]CashFlow!R214","v":0},{"$f":"[1]CashFlow!R214","v":0},{"$f":"[1]CashFlow!S214","v":0},{"$f":"[1]CashFlow!S214","v":0}]
[1,"CF66",null,null,null,"Dividends",100,null,{"$f":"[1]CashFlow!$J$215","v":0},{"$f":"[1]CashFlow!L215","v":0},{"$f":"[1]CashFlow!N215","v":0},{"$f":"[1]CashFlow!N215","v":0},{"$f":"[1]CashFlow!P215","v":0},{"$f":"[1]CashFlow!P215","v":0},{"$f":"[1]CashFlow!R215","v":0},{"$f":"[1]CashFlow!R215","v":0},{"$f":"[1]CashFlow!S215","v":0},{"$f":"[1]CashFlow!S215","v":0}]
[1,"CF7",null,null,null,"Net increase / (decrease) in cash and cash equivalents",null,null,{"$f":"SUM(I11,I157,I168,I195)","v":-111899.62731000036},201901.24493999965,-941287.11987189576,-941287.11987189576,150438.41191639833,150438.41191639833,-13296.158348264929,-13296.158348264929,71174.33901243229,71174.33901243229,0]
[1]
[1]
[1,null,null,null,null,"Check"]
[1,null,null,null,null,"Net movement in Cash and cash equivalents as per the Financial statements",null,null,null,{"$f":"[1]CashFlow!L220","v":201896},null,{"$f":"[1]CashFlow!N216","v":-941321.11987189576}]
[1,null,null,null,null,"Differences",null,null,null,{"$f":"ROUND(IF(J216-J220>0,IF(J216-J220<1,0,J216-J220),J216-J220),0)","v":5},null,{"$f":"ROUND(IF(L216-L220>0,IF(L216-L220<1,0,L216-L220),L216-L220),0)","v":34}]
[1]

{"sheet":"CashFlowIndirect","index":22,"n_rows":81,"n_cols":21,"rows_kept":81,"cut":false,"hidden":true,"merged":[[7,16,7,17],[7,10,7,11],[7,14,7,15],[7,12,7,13]]}
[]
[]
[]
[]
[]
[null,null,null,null,null,"PE No",{"$f":"Settings!$O$2","v":"PE126"}]
[null,null,null,null,null,"Entity name",{"$f":"Settings!$E$2","v":"South African Revenue Service"}]
[null,null,null,null,null,null,"Notes",null,{"$f":"MyYearM3","v":"2022/23"},{"$f":"MyYearM2","v":"2023/24"},{"$f":"MyYearM1","v":"2024/25"},null,{"$f":"MyYear0","v":"2025/26"},null,{"$f":"MyYearP1","v":"2026/27"},null,{"$f":"MyYearP2","v":"2027/28"},null,{"$f":"MyYearP3","v":"2028/29"}]
[null,null,null,null,null,"Cash flow data",null,null,"Audited\noutcome",{"$f":"Hist_year2RestatedAudited","v":"Audited\noutcome"},{"$f":"Hist_year1Budget","v":"Budget"},{"$f":"Hist_year1Audited","v":"Audited\noutcome"},{"$f":"Cur_YearBudgEst","v":"Budget\nestimate"},{"$f":"Cur_YearApprovedBudg","v":"Approved budget"},{"$f":"MTEF1BudgEst","v":"Budget\nestimate"},{"$f":"MTEF1RevBudgEst","v":"Revised\nbudget\nestimate"},{"$f":"MTEF2BudgEst","v":"Budget\nestimate"},{"$f":"MTEF2RevBudgEst","v":"Revised\nbudget\nestimate"},{"$f":"MTEF3PlanBudgetEst","v":"Planning\nbudget \nestimate"}]
["ItemCat","Item code","Hide/unhide",null,null,"R Thousand"]
[1,"CFI1",null,null,null,"Cash flow from operating activities",null,null,{"$f":"SUM(I12:I13,I20)","v":0},{"$f":"SUM(J12:J13,J21:J27)","v":0},0,0,0,0,0,0,0,0,0]
[1,"CFI11",null,null,null,"Cash generated from operations before working capital",null,null,{"$f":"[1]CashFlowIndirect!J12","v":0},{"$f":"[1]CashFlowIndirect!L12","v":0},{"$f":"[1]CashFlowIndirect!N12","v":0},{"$f":"[1]CashFlowIndirect!N12","v":0},{"$f":"[1]CashFlowIndirect!P12","v":0},{"$f":"[1]CashFlowIndirect!P12","v":0},{"$f":"[1]CashFlowIndirect!R12","v":0},{"$f":"[1]CashFlowIndirect!R12","v":0},{"$f":"[1]CashFlowIndirect!S12","v":0},{"$f":"[1]CashFlowIndirect!S12","v":0},null,null,{"$f":"IF(S12<R12/2,\"Complete outer year budget\",\"\")","v":""}]
[1,"CFI12",null,null,null,"Changes in working capital   ",null,null,{"$f":"[1]CashFlowIndirect!J13","v":0},{"$f":"[1]CashFlowIndirect!L13","v":0},{"$f":"[1]CashFlowIndirect!N13","v":0},{"$f":"[1]CashFlowIndirect!N13","v":0},{"$f":"[1]CashFlowIndirect!P13","v":0},{"$f":"[1]CashFlowIndirect!P13","v":0},{"$f":"[1]CashFlowIndirect!R13","v":0},{"$f":"[1]CashFlowIndirect!R13","v":0},{"$f":"[1]CashFlowIndirect!S13","v":0},{"$f":"[1]CashFlowIndirect!S13","v":0},{"$f":"SUM(S14:S19)","v":0}]
[1,"CFI121",null,null,null,"(Increase)/decrease in inventories",null,null,{"$f":"[1]CashFlowIndirect!J14","v":0},{"$f":"[1]CashFlowIndirect!L14","v":0},{"$f":"[1]CashFlowIndirect!N14","v":0},{"$f":"[1]CashFlowIndirect!N14","v":0},{"$f":"[1]CashFlowIndirect!P14","v":0},{"$f":"[1]CashFlowIndirect!P14","v":0},{"$f":"[1]CashFlowIndirect!R14","v":0},{"$f":"[1]CashFlowIndirect!R14","v":0},{"$f":"[1]CashFlowIndirect!S14","v":0},{"$f":"[1]CashFlowIndirect!S14","v":0}]
[1,"CFI122",null,null,null,"(Increase)/decrease in trade and other receivables",null,null,{"$f":"[1]CashFlowIndirect!J15","v":0},{"$f":"[1]CashFlowIndirect!L15","v":0},{"$f":"[1]CashFlowIndirect!N15","v":0},{"$f":"[1]CashFlowIndirect!N15","v":0},{"$f":"[1]CashFlowIndirect!P15","v":0},{"$f":"[1]CashFlowIndirect!P15","v":0},{"$f":"[1]CashFlowIndirect!R15","v":0},{"$f":"[1]CashFlowIndirect!R15","v":0},{"$f":"[1]CashFlowIndirect!S15","v":0},{"$f":"[1]CashFlowIndirect!S15","v":0}]
[1,"CFI123",null,null,null,"Increase/(decrease) in trade and other payables",null,null,{"$f":"[1]CashFlowIndirect!J16","v":0},{"$f":"[1]CashFlowIndirect!L16","v":0},{"$f":"[1]CashFlowIndirect!N16","v":0},{"$f":"[1]CashFlowIndirect!N16","v":0},{"$f":"[1]CashFlowIndirect!P16","v":0},{"$f":"[1]CashFlowIndirect!P16","v":0},{"$f":"[1]CashFlowIndirect!R16","v":0},{"$f":"[1]CashFlowIndirect!R16","v":0},{"$f":"[1]CashFlowIndirect!S16","v":0},{"$f":"[1]CashFlowIndirect!S16","v":0}]
[1,"CFI124",null,null,null,"Increase/(decrease) in payments received in advance",null,null,{"$f":"[1]CashFlowIndirect!J17","v":0},{"$f":"[1]CashFlowIndirect!L17","v":0},{"$f":"[1]CashFlowIndirect!N17","v":0},{"$f":"[1]CashFlowIndirect!N17","v":0},{"$f":"[1]CashFlowIndirect!P17","v":0},{"$f":"[1]CashFlowIndirect!P17","v":0},{"$f":"[1]CashFlowIndirect!R17","v":0},{"$f":"[1]CashFlowIndirect!R17","v":0},{"$f":"[1]CashFlowIndirect!S17","v":0},{"$f":"[1]CashFlowIndirect!S17","v":0}]
[1,"CFI125",null,null,null,"Increase/(decrease) in provisions",null,null,{"$f":"[1]CashFlowIndirect!J18","v":0},{"$f":"[1]CashFlowIndirect!L18","v":0},{"$f":"[1]CashFlowIndirect!N18","v":0},{"$f":"[1]CashFlowIndirect!N18","v":0},{"$f":"[1]CashFlowIndirect!P18","v":0},{"$f":"[1]CashFlowIndirect!P18","v":0},{"$f":"[1]CashFlowIndirect!R18","v":0},{"$f":"[1]CashFlowIndirect!R18","v":0},{"$f":"[1]CashFlowIndirect!S18","v":0},{"$f":"[1]CashFlowIndirect!S18","v":0}]
[1,"CFI126",null,null,null,"Other working capital movements",null,null,{"$f":"[1]CashFlowIndirect!J19","v":0},{"$f":"[1]CashFlowIndirect!L19","v":0},{"$f":"[1]CashFlowIndirect!N19","v":0},{"$f":"[1]CashFlowIndirect!N19","v":0},{"$f":"[1]CashFlowIndirect!P19","v":0},{"$f":"[1]CashFlowIndirect!P19","v":0},{"$f":"[1]CashFlowIndirect!R19","v":0},{"$f":"[1]CashFlowIndirect!R19","v":0},{"$f":"[1]CashFlowIndirect!S19","v":0},{"$f":"[1]CashFlowIndirect!S19","v":0}]
[1,"CFI13",null,null,null,"Cash generated from operations after working capital",null,null,{"$f":"[1]CashFlowIndirect!J20","v":0},{"$f":"[1]CashFlowIndirect!L20","v":0},{"$f":"[1]CashFlowIndirect!N20","v":0},{"$f":"[1]CashFlowIndirect!N20","v":0},{"$f":"[1]CashFlowIndirect!P20","v":0},{"$f":"[1]CashFlowIndirect!P20","v":0},{"$f":"[1]CashFlowIndirect!R20","v":0},{"$f":"[1]CashFlowIndirect!R20","v":0},{"$f":"[1]CashFlowIndirect!S20","v":0},{"$f":"[1]CashFlowIndirect!S20","v":0},{"$f":"SUM(S21:S27)","v":0}]
[1,"CFI131",null,null,null,"Interest received",null,null,{"$f":"[1]CashFlowIndirect!J21","v":0},{"$f":"[1]CashFlowIndirect!L21","v":0},{"$f":"[1]CashFlowIndirect!N21","v":0},{"$f":"[1]CashFlowIndirect!N21","v":0},{"$f":"[1]CashFlowIndirect!P21","v":0},{"$f":"[1]CashFlowIndirect!P21","v":0},{"$f":"[1]CashFlowIndirect!R21","v":0},{"$f":"[1]CashFlowIndirect!R21","v":0},{"$f":"[1]CashFlowIndirect!S21","v":0},{"$f":"[1]CashFlowIndirect!S21","v":0}]
[1,"CFI132",null,null,null,"Interest paid",null,null,{"$f":"[1]CashFlowIndirect!J22","v":0},{"$f":"[1]CashFlowIndirect!L22","v":0},{"$f":"[1]CashFlowIndirect!N22","v":0},{"$f":"[1]CashFlowIndirect!N22","v":0},{"$f":"[1]CashFlowIndirect!P22","v":0},{"$f":"[1]CashFlowIndirect!P22","v":0},{"$f":"[1]CashFlowIndirect!R22","v":0},{"$f":"[1]CashFlowIndirect!R22","v":0},{"$f":"[1]CashFlowIndirect!S22","v":0},{"$f":"[1]CashFlowIndirect!S22","v":0}]
[1,"CFI133",null,null,null,"Dividends received",null,null,{"$f":"[1]CashFlowIndirect!J23","v":0},{"$f":"[1]CashFlowIndirect!L23","v":0},{"$f":"[1]CashFlowIndirect!N23","v":0},{"$f":"[1]CashFlowIndirect!N23","v":0},{"$f":"[1]CashFlowIndirect!P23","v":0},{"$f":"[1]CashFlowIndirect!P23","v":0},{"$f":"[1]CashFlowIndirect!R23","v":0},{"$f":"[1]CashFlowIndirect!R23","v":0},{"$f":"[1]CashFlowIndirect!S23","v":0},{"$f":"[1]CashFlowIndirect!S23","v":0}]
[1,"CFI134",null,null,null,"Dividends paid",null,null,{"$f":"[1]CashFlowIndirect!J24","v":0},{"$f":"[1]CashFlowIndirect!L24","v":0},{"$f":"[1]CashFlowIndirect!N24","v":0},{"$f":"[1]CashFlowIndirect!N24","v":0},{"$f":"[1]CashFlowIndirect!P24","v":0},{"$f":"[1]CashFlowIndirect!P24","v":0},{"$f":"[1]CashFlowIndirect!R24","v":0},{"$f":"[1]CashFlowIndirect!R24","v":0},{"$f":"[1]CashFlowIndirect!S24","v":0},{"$f":"[1]CashFlowIndirect!S24","v":0}]
[1,"CFI135",null,null,null,"Tax benefit",null,null,{"$f":"[1]CashFlowIndirect!J25","v":0},{"$f":"[1]CashFlowIndirect!L25","v":0},{"$f":"[1]CashFlowIndirect!N25","v":0},{"$f":"[1]CashFlowIndirect!N25","v":0},{"$f":"[1]CashFlowIndirect!P25","v":0},{"$f":"[1]CashFlowIndirect!P25","v":0},{"$f":"[1]CashFlowIndirect!R25","v":0},{"$f":"[1]CashFlowIndirect!R25","v":0},{"$f":"[1]CashFlowIndirect!S25","v":0},{"$f":"[1]CashFlowIndirect!S25","v":0}]
[1,"CFI136",null,null,null,"Tax payment",null,null,{"$f":"[1]CashFlowIndirect!J26","v":0},{"$f":"[1]CashFlowIndirect!L26","v":0},{"$f":"[1]CashFlowIndirect!N26","v":0},{"$f":"[1]CashFlowIndirect!N26","v":0},{"$f":"[1]CashFlowIndirect!P26","v":0},{"$f":"[1]CashFlowIndirect!P26","v":0},{"$f":"[1]CashFlowIndirect!R26","v":0},{"$f":"[1]CashFlowIndirect!R26","v":0},{"$f":"[1]CashFlowIndirect!S26","v":0},{"$f":"[1]CashFlowIndirect!S26","v":0}]
[1,"CFI137",null,null,null,"Other changes",null,null,{"$f":"[1]CashFlowIndirect!J27","v":0},{"$f":"[1]CashFlowIndirect!L27","v":0},{"$f":"[1]CashFlowIndirect!N27","v":0},{"$f":"[1]CashFlowIndirect!N27","v":0},{"$f":"[1]CashFlowIndirect!P27","v":0},{"$f":"[1]CashFlowIndirect!P27","v":0},{"$f":"[1]CashFlowIndirect!R27","v":0},{"$f":"[1]CashFlowIndirect!R27","v":0},{"$f":"[1]CashFlowIndirect!S27","v":0},{"$f":"[1]CashFlowIndirect!S27","v":0}]
[1,"CFI4",null,null,null,"Cash flow from investing activities",null,null,{"$f":"[1]CashFlowIndirect!J28","v":0},{"$f":"[1]CashFlowIndirect!L28","v":0},{"$f":"[1]CashFlowIndirect!N28","v":0},{"$f":"[1]CashFlowIndirect!N28","v":0},{"$f":"[1]CashFlowIndirect!P28","v":0},{"$f":"[1]CashFlowIndirect!P28","v":0},{"$f":"[1]CashFlowIndirect!R28","v":0},{"$f":"[1]CashFlowIndirect!R28","v":0},{"$f":"[1]CashFlowIndirect!S28","v":0},{"$f":"[1]CashFlowIndirect!S28","v":0},{"$f":"SUM(S29,S42:S45)","v":0}]
[1,"CFI41",null,null,null,"Acquisition of property, plant, equipment",null,null,{"$f":"[1]CashFlowIndirect!J29","v":0},{"$f":"[1]CashFlowIndirect!L29","v":0},{"$f":"[1]CashFlowIndirect!N29","v":0},{"$f":"[1]CashFlowIndirect!N29","v":0},{"$f":"[1]CashFlowIndirect!P29","v":0},{"$f":"[1]CashFlowIndirect!P29","v":0},{"$f":"[1]CashFlowIndirect!R29","v":0},{"$f":"[1]CashFlowIndirect!R29","v":0},{"$f":"[1]CashFlowIndirect!S29","v":0},{"$f":"[1]CashFlowIndirect!S29","v":0},{"$f":"SUM(S30:S36,S39:S41)","v":0}]
[1,"CFI411",null,null,null,"Buildings: residential",82,null,{"$f":"[1]CashFlowIndirect!J30","v":0},{"$f":"[1]CashFlowIndirect!L30","v":0},{"$f":"[1]CashFlowIndirect!N30","v":0},{"$f":"[1]CashFlowIndirect!N30","v":0},{"$f":"[1]CashFlowIndirect!P30","v":0},{"$f":"[1]CashFlowIndirect!P30","v":0},{"$f":"[1]CashFlowIndirect!R30","v":0},{"$f":"[1]CashFlowIndirect!R30","v":0},{"$f":"[1]CashFlowIndirect!S30","v":0},{"$f":"[1]CashFlowIndirect!S30","v":0}]
[1,"CFI412",null,null,null,"Buildings: non-residential",83,null,{"$f":"[1]CashFlowIndirect!J31","v":0},{"$f":"[1]CashFlowIndirect!L31","v":0},{"$f":"[1]CashFlowIndirect!N31","v":0},{"$f":"[1]CashFlowIndirect!N31","v":0},{"$f":"[1]CashFlowIndirect!P31","v":0},{"$f":"[1]CashFlowIndirect!P31","v":0},{"$f":"[1]CashFlowIndirect!R31","v":0},{"$f":"[1]CashFlowIndirect!R31","v":0},{"$f":"[1]CashFlowIndirect!S31","v":0},{"$f":"[1]CashFlowIndirect!S31","v":0}]
[1,"CFI413",null,null,null,"Other fixed structures",84,null,{"$f":"[1]CashFlowIndirect!J32","v":0},{"$f":"[1]CashFlowIndirect!L32","v":0},{"$f":"[1]CashFlowIndirect!N32","v":0},{"$f":"[1]CashFlowIndirect!N32","v":0},{"$f":"[1]CashFlowIndirect!P32","v":0},{"$f":"[1]CashFlowIndirect!P32","v":0},{"$f":"[1]CashFlowIndirect!R32","v":0},{"$f":"[1]CashFlowIndirect!R32","v":0},{"$f":"[1]CashFlowIndirect!S32","v":0},{"$f":"[1]CashFlowIndirect!S32","v":0}]
[1,"CFI415",null,null,null,"Transport equipment",85,null,{"$f":"[1]CashFlowIndirect!J33","v":0},{"$f":"[1]CashFlowIndirect!L33","v":0},{"$f":"[1]CashFlowIndirect!N33","v":0},{"$f":"[1]CashFlowIndirect!N33","v":0},{"$f":"[1]CashFlowIndirect!P33","v":0},{"$f":"[1]CashFlowIndirect!P33","v":0},{"$f":"[1]CashFlowIndirect!R33","v":0},{"$f":"[1]CashFlowIndirect!R33","v":0},{"$f":"[1]CashFlowIndirect!S33","v":0},{"$f":"[1]CashFlowIndirect!S33","v":0}]
[1,"CFI416",null,null,null,"Furniture and office equipment",85,null,{"$f":"[1]CashFlowIndirect!J34","v":0},{"$f":"[1]CashFlowIndirect!L34","v":0},{"$f":"[1]CashFlowIndirect!N34","v":0},{"$f":"[1]CashFlowIndirect!N34","v":0},{"$f":"[1]CashFlowIndirect!P34","v":0},{"$f":"[1]CashFlowIndirect!P34","v":0},{"$f":"[1]CashFlowIndirect!R34","v":0},{"$f":"[1]CashFlowIndirect!R34","v":0},{"$f":"[1]CashFlowIndirect!S34","v":0},{"$f":"[1]CashFlowIndirect!S34","v":0}]
[1,"CFI417",null,null,null,"Other machinery and equipment",85,null,{"$f":"[1]CashFlowIndirect!J35","v":0},{"$f":"[1]CashFlowIndirect!L35","v":0},{"$f":"[1]CashFlowIndirect!N35","v":0},{"$f":"[1]CashFlowIndirect!N35","v":0},{"$f":"[1]CashFlowIndirect!P35","v":0},{"$f":"[1]CashFlowIndirect!P35","v":0},{"$f":"[1]CashFlowIndirect!R35","v":0},{"$f":"[1]CashFlowIndirect!R35","v":0},{"$f":"[1]CashFlowIndirect!S35","v":0},{"$f":"[1]CashFlowIndirect!S35","v":0}]
[1,"CFI418",null,null,null,"Heritage assets",86,null,{"$f":"[1]CashFlowIndirect!J36","v":0},{"$f":"[1]CashFlowIndirect!L36","v":0},{"$f":"[1]CashFlowIndirect!N36","v":0},{"$f":"[1]CashFlowIndirect!N36","v":0},{"$f":"[1]CashFlowIndirect!P36","v":0},{"$f":"[1]CashFlowIndirect!P36","v":0},{"$f":"[1]CashFlowIndirect!R36","v":0},{"$f":"[1]CashFlowIndirect!R36","v":0},{"$f":"[1]CashFlowIndirect!S36","v":0},{"$f":"[1]CashFlowIndirect!S36","v":0},{"$f":"SUM(S37:S38)","v":0}]
[1,"CFI4181",null,null,null,"Buildings and other fixed structures",null,null,{"$f":"[1]CashFlowIndirect!J37","v":0},{"$f":"[1]CashFlowIndirect!L37","v":0},{"$f":"[1]CashFlowIndirect!N37","v":0},{"$f":"[1]CashFlowIndirect!N37","v":0},{"$f":"[1]CashFlowIndirect!P37","v":0},{"$f":"[1]CashFlowIndirect!P37","v":0},{"$f":"[1]CashFlowIndirect!R37","v":0},{"$f":"[1]CashFlowIndirect!R37","v":0},{"$f":"[1]CashFlowIndirect!S37","v":0},{"$f":"[1]CashFlowIndirect!S37","v":0}]
[1,"CFI4182",null,null,null,"Other than buildings and fixed structures",null,null,{"$f":"[1]CashFlowIndirect!J38","v":0},{"$f":"[1]CashFlowIndirect!L38","v":0},{"$f":"[1]CashFlowIndirect!N38","v":0},{"$f":"[1]CashFlowIndirect!N38","v":0},{"$f":"[1]CashFlowIndirect!P38","v":0},{"$f":"[1]CashFlowIndirect!P38","v":0},{"$f":"[1]CashFlowIndirect!R38","v":0},{"$f":"[1]CashFlowIndirect!R38","v":0},{"$f":"[1]CashFlowIndirect!S38","v":0},{"$f":"[1]CashFlowIndirect!S38","v":0}]
[1,"CFI419",null,null,null,"Biological assets",87,null,{"$f":"[1]CashFlowIndirect!J39","v":0},{"$f":"[1]CashFlowIndirect!L39","v":0},{"$f":"[1]CashFlowIndirect!N39","v":0},{"$f":"[1]CashFlowIndirect!N39","v":0},{"$f":"[1]CashFlowIndirect!P39","v":0},{"$f":"[1]CashFlowIndirect!P39","v":0},{"$f":"[1]CashFlowIndirect!R39","v":0},{"$f":"[1]CashFlowIndirect!R39","v":0},{"$f":"[1]CashFlowIndirect!S39","v":0},{"$f":"[1]CashFlowIndirect!S39","v":0}]
[1,"CFI431",null,null,null,"Land & subsoil assets",88,null,{"$f":"[1]CashFlowIndirect!J40","v":0},{"$f":"[1]CashFlowIndirect!L40","v":0},{"$f":"[1]CashFlowIndirect!N40","v":0},{"$f":"[1]CashFlowIndirect!N40","v":0},{"$f":"[1]CashFlowIndirect!P40","v":0},{"$f":"[1]CashFlowIndirect!P40","v":0},{"$f":"[1]CashFlowIndirect!R40","v":0},{"$f":"[1]CashFlowIndirect!R40","v":0},{"$f":"[1]CashFlowIndirect!S40","v":0},{"$f":"[1]CashFlowIndirect!S40","v":0}]
[1,"CFI432",null,null,null,"Computer equipment",85,null,{"$f":"[1]CashFlowIndirect!J41","v":0},{"$f":"[1]CashFlowIndirect!L41","v":0},{"$f":"[1]CashFlowIndirect!N41","v":0},{"$f":"[1]CashFlowIndirect!N41","v":0},{"$f":"[1]CashFlowIndirect!P41","v":0},{"$f":"[1]CashFlowIndirect!P41","v":0},{"$f":"[1]CashFlowIndirect!R41","v":0},{"$f":"[1]CashFlowIndirect!R41","v":0},{"$f":"[1]CashFlowIndirect!S41","v":0},{"$f":"[1]CashFlowIndirect!S41","v":0}]
[1,"CFI414",null,null,null,"Investment property",89,null,{"$f":"[1]CashFlowIndirect!J42","v":0},{"$f":"[1]CashFlowIndirect!L42","v":0},{"$f":"[1]CashFlowIndirect!N42","v":0},{"$f":"[1]CashFlowIndirect!N42","v":0},{"$f":"[1]CashFlowIndirect!P42","v":0},{"$f":"[1]CashFlowIndirect!P42","v":0},{"$f":"[1]CashFlowIndirect!R42","v":0},{"$f":"[1]CashFlowIndirect!R42","v":0},{"$f":"[1]CashFlowIndirect!S42","v":0},{"$f":"[1]CashFlowIndirect!S42","v":0}]
[1,"CFI420",null,null,null,"Acquisition of software and other intangible assets",null,null,{"$f":"[1]CashFlowIndirect!J43","v":0},{"$f":"[1]CashFlowIndirect!L43","v":0},{"$f":"[1]CashFlowIndirect!N43","v":0},{"$f":"[1]CashFlowIndirect!N43","v":0},{"$f":"[1]CashFlowIndirect!P43","v":0},{"$f":"[1]CashFlowIndirect!P43","v":0},{"$f":"[1]CashFlowIndirect!R43","v":0},{"$f":"[1]CashFlowIndirect!R43","v":0},{"$f":"[1]CashFlowIndirect!S43","v":0},{"$f":"[1]CashFlowIndirect!S43","v":0}]
[1,"CFI4212",null,null,null,"Proceeds from sale of property, plant, equipment & intangible assets",null,null,{"$f":"[1]CashFlowIndirect!J44","v":0},{"$f":"[1]CashFlowIndirect!L44","v":0},{"$f":"[1]CashFlowIndirect!N44","v":0},{"$f":"[1]CashFlowIndirect!N44","v":0},{"$f":"[1]CashFlowIndirect!P44","v":0},{"$f":"[1]CashFlowIndirect!P44","v":0},{"$f":"[1]CashFlowIndirect!R44","v":0},{"$f":"[1]CashFlowIndirect!R44","v":0},{"$f":"[1]CashFlowIndirect!S44","v":0},{"$f":"[1]CashFlowIndirect!S44","v":0}]
[1,"CFI42",null,null,null,"Other flows from Investing Activities",81,null,{"$f":"[1]CashFlowIndirect!J45","v":0},{"$f":"[1]CashFlowIndirect!L45","v":0},{"$f":"[1]CashFlowIndirect!N45","v":0},{"$f":"[1]CashFlowIndirect!N45","v":0},{"$f":"[1]CashFlowIndirect!P45","v":0},{"$f":"[1]CashFlowIndirect!P45","v":0},{"$f":"[1]CashFlowIndirect!R45","v":0},{"$f":"[1]CashFlowIndirect!R45","v":0},{"$f":"[1]CashFlowIndirect!S45","v":0},{"$f":"[1]CashFlowIndirect!S45","v":0},{"$f":"SUM(S46,S49,S52:S54)","v":0}]
[1,"CFI421",null,null,null,"Domestic",91,null,{"$f":"[1]CashFlowIndirect!J46","v":0},{"$f":"[1]CashFlowIndirect!L46","v":0},{"$f":"[1]CashFlowIndirect!N46","v":0},{"$f":"[1]CashFlowIndirect!N46","v":0},{"$f":"[1]CashFlowIndirect!P46","v":0},{"$f":"[1]CashFlowIndirect!P46","v":0},{"$f":"[1]CashFlowIndirect!R46","v":0},{"$f":"[1]CashFlowIndirect!R46","v":0},{"$f":"[1]CashFlowIndirect!S46","v":0},{"$f":"[1]CashFlowIndirect!S46","v":0},{"$f":"SUM(S47:S48)","v":0}]
[1,"CFI4211",null,null,null,"long term investments",null,null,{"$f":"[1]CashFlowIndirect!J47","v":0},{"$f":"[1]CashFlowIndirect!L47","v":0},{"$f":"[1]CashFlowIndirect!N47","v":0},{"$f":"[1]CashFlowIndirect!N47","v":0},{"$f":"[1]CashFlowIndirect!P47","v":0},{"$f":"[1]CashFlowIndirect!P47","v":0},{"$f":"[1]CashFlowIndirect!R47","v":0},{"$f":"[1]CashFlowIndirect!R47","v":0},{"$f":"[1]CashFlowIndirect!S47","v":0},{"$f":"[1]CashFlowIndirect!S47","v":0}]
[1,"CFI4214",null,null,null,"Other",null,null,{"$f":"[1]CashFlowIndirect!J48","v":0},{"$f":"[1]CashFlowIndirect!L48","v":0},{"$f":"[1]CashFlowIndirect!N48","v":0},{"$f":"[1]CashFlowIndirect!N48","v":0},{"$f":"[1]CashFlowIndirect!P48","v":0},{"$f":"[1]CashFlowIndirect!P48","v":0},{"$f":"[1]CashFlowIndirect!R48","v":0},{"$f":"[1]CashFlowIndirect!R48","v":0},{"$f":"[1]CashFlowIndirect!S48","v":0},{"$f":"[1]CashFlowIndirect!S48","v":0}]
[1,"CFI422",null,null,null,"Foreign",92,null,{"$f":"[1]CashFlowIndirect!J49","v":0},{"$f":"[1]CashFlowIndirect!L49","v":0},{"$f":"[1]CashFlowIndirect!N49","v":0},{"$f":"[1]CashFlowIndirect!N49","v":0},{"$f":"[1]CashFlowIndirect!P49","v":0},{"$f":"[1]CashFlowIndirect!P49","v":0},{"$f":"[1]CashFlowIndirect!R49","v":0},{"$f":"[1]CashFlowIndirect!R49","v":0},{"$f":"[1]CashFlowIndirect!S49","v":0},{"$f":"[1]CashFlowIndirect!S49","v":0},{"$f":"SUM(S50:S51)","v":0}]
[1,"CFI4221",null,null,null,"long term investments",null,null,{"$f":"[1]CashFlowIndirect!J50","v":0},{"$f":"[1]CashFlowIndirect!L50","v":0},{"$f":"[1]CashFlowIndirect!N50","v":0},{"$f":"[1]CashFlowIndirect!N50","v":0},{"$f":"[1]CashFlowIndirect!P50","v":0},{"$f":"[1]CashFlowIndirect!P50","v":0},{"$f":"[1]CashFlowIndirect!R50","v":0},{"$f":"[1]CashFlowIndirect!R50","v":0},{"$f":"[1]CashFlowIndirect!S50","v":0},{"$f":"[1]CashFlowIndirect!S50","v":0}]
[1,"CFI4223",null,null,null,"Other",null,null,{"$f":"[1]CashFlowIndirect!J51","v":0},{"$f":"[1]CashFlowIndirect!L51","v":0},{"$f":"[1]CashFlowIndirect!N51","v":0},{"$f":"[1]CashFlowIndirect!N51","v":0},{"$f":"[1]CashFlowIndirect!P51","v":0},{"$f":"[1]CashFlowIndirect!P51","v":0},{"$f":"[1]CashFlowIndirect!R51","v":0},{"$f":"[1]CashFlowIndirect!R51","v":0},{"$f":"[1]CashFlowIndirect!S51","v":0},{"$f":"[1]CashFlowIndirect!S51","v":0}]
[1,"CFI423",null,null,null,"Interest",93,null,{"$f":"[1]CashFlowIndirect!J52","v":0},{"$f":"[1]CashFlowIndirect!L52","v":0},{"$f":"[1]CashFlowIndirect!N52","v":0},{"$f":"[1]CashFlowIndirect!N52","v":0},{"$f":"[1]CashFlowIndirect!P52","v":0},{"$f":"[1]CashFlowIndirect!P52","v":0},{"$f":"[1]CashFlowIndirect!R52","v":0},{"$f":"[1]CashFlowIndirect!R52","v":0},{"$f":"[1]CashFlowIndirect!S52","v":0},{"$f":"[1]CashFlowIndirect!S52","v":0}]
[1,"CFI424",null,null,null,"Dividends",94,null,{"$f":"[1]CashFlowIndirect!J53","v":0},{"$f":"[1]CashFlowIndirect!L53","v":0},{"$f":"[1]CashFlowIndirect!N53","v":0},{"$f":"[1]CashFlowIndirect!N53","v":0},{"$f":"[1]CashFlowIndirect!P53","v":0},{"$f":"[1]CashFlowIndirect!P53","v":0},{"$f":"[1]CashFlowIndirect!R53","v":0},{"$f":"[1]CashFlowIndirect!R53","v":0},{"$f":"[1]CashFlowIndirect!S53","v":0},{"$f":"[1]CashFlowIndirect!S53","v":0}]
[1,"CFI425",null,null,null,"Outside shareholders interest",95,null,{"$f":"[1]CashFlowIndirect!J54","v":0},{"$f":"[1]CashFlowIndirect!L54","v":0},{"$f":"[1]CashFlowIndirect!N54","v":0},{"$f":"[1]CashFlowIndirect!N54","v":0},{"$f":"[1]CashFlowIndirect!P54","v":0},{"$f":"[1]CashFlowIndirect!P54","v":0},{"$f":"[1]CashFlowIndirect!R54","v":0},{"$f":"[1]CashFlowIndirect!R54","v":0},{"$f":"[1]CashFlowIndirect!S54","v":0},{"$f":"[1]CashFlowIndirect!S54","v":0}]
[1,"CFI5",null,null,null,"Cash flow from financing activities",null,null,{"$f":"[1]CashFlowIndirect!J55","v":0},{"$f":"[1]CashFlowIndirect!L55","v":0},{"$f":"[1]CashFlowIndirect!N55","v":0},{"$f":"[1]CashFlowIndirect!N55","v":0},{"$f":"[1]CashFlowIndirect!P55","v":0},{"$f":"[1]CashFlowIndirect!P55","v":0},{"$f":"[1]CashFlowIndirect!R55","v":0},{"$f":"[1]CashFlowIndirect!R55","v":0},{"$f":"[1]CashFlowIndirect!S55","v":0},{"$f":"[1]CashFlowIndirect!S55","v":0},{"$f":"SUM(S56,S59,S71:S75)","v":0}]
[1,"CFI51",null,null,null,"Deferred Income",96,null,{"$f":"[1]CashFlowIndirect!J56","v":0},{"$f":"[1]CashFlowIndirect!L56","v":0},{"$f":"[1]CashFlowIndirect!N56","v":0},{"$f":"[1]CashFlowIndirect!N56","v":0},{"$f":"[1]CashFlowIndirect!P56","v":0},{"$f":"[1]CashFlowIndirect!P56","v":0},{"$f":"[1]CashFlowIndirect!R56","v":0},{"$f":"[1]CashFlowIndirect!R56","v":0},{"$f":"[1]CashFlowIndirect!S56","v":0},{"$f":"[1]CashFlowIndirect!S56","v":0},{"$f":"SUM(S57:S58)","v":0}]
[1,"CFI511",null,null,null,"Departmental transfer",null,null,{"$f":"[1]CashFlowIndirect!J57","v":0},{"$f":"[1]CashFlowIndirect!L57","v":0},{"$f":"[1]CashFlowIndirect!N57","v":0},{"$f":"[1]CashFlowIndirect!N57","v":0},{"$f":"[1]CashFlowIndirect!P57","v":0},{"$f":"[1]CashFlowIndirect!P57","v":0},{"$f":"[1]CashFlowIndirect!R57","v":0},{"$f":"[1]CashFlowIndirect!R57","v":0},{"$f":"[1]CashFlowIndirect!S57","v":0},{"$f":"[1]CashFlowIndirect!S57","v":0}]
[1,"CFI512",null,null,null,"Other Revenue",null,null,{"$f":"[1]CashFlowIndirect!J58","v":0},{"$f":"[1]CashFlowIndirect!L58","v":0},{"$f":"[1]CashFlowIndirect!N58","v":0},{"$f":"[1]CashFlowIndirect!N58","v":0},{"$f":"[1]CashFlowIndirect!P58","v":0},{"$f":"[1]CashFlowIndirect!P58","v":0},{"$f":"[1]CashFlowIndirect!R58","v":0},{"$f":"[1]CashFlowIndirect!R58","v":0},{"$f":"[1]CashFlowIndirect!S58","v":0},{"$f":"[1]CashFlowIndirect!S58","v":0}]
[1,"CFI52",null,null,null,"Borrowing Activities",97,null,{"$f":"[1]CashFlowIndirect!J59","v":0},{"$f":"[1]CashFlowIndirect!L59","v":0},{"$f":"[1]CashFlowIndirect!N59","v":0},{"$f":"[1]CashFlowIndirect!N59","v":0},{"$f":"[1]CashFlowIndirect!P59","v":0},{"$f":"[1]CashFlowIndirect!P59","v":0},{"$f":"[1]CashFlowIndirect!R59","v":0},{"$f":"[1]CashFlowIndirect!R59","v":0},{"$f":"[1]CashFlowIndirect!S59","v":0},{"$f":"[1]CashFlowIndirect!S59","v":0},{"$f":"SUM(S60,S67)","v":0}]
[1,"CFI521",null,null,null,"Domestic",null,null,{"$f":"[1]CashFlowIndirect!J60","v":0},{"$f":"[1]CashFlowIndirect!L60","v":0},{"$f":"[1]CashFlowIndirect!N60","v":0},{"$f":"[1]CashFlowIndirect!N60","v":0},{"$f":"[1]CashFlowIndirect!P60","v":0},{"$f":"[1]CashFlowIndirect!P60","v":0},{"$f":"[1]CashFlowIndirect!R60","v":0},{"$f":"[1]CashFlowIndirect!R60","v":0},{"$f":"[1]CashFlowIndirect!S60","v":0},{"$f":"[1]CashFlowIndirect!S60","v":0},{"$f":"SUM(S61:S63,S66)","v":0}]
[1,"CFI5211",null,null,null,"Loan from other government units",null,null,{"$f":"[1]CashFlowIndirect!J61","v":0},{"$f":"[1]CashFlowIndirect!L61","v":0},{"$f":"[1]CashFlowIndirect!N61","v":0},{"$f":"[1]CashFlowIndirect!N61","v":0},{"$f":"[1]CashFlowIndirect!P61","v":0},{"$f":"[1]CashFlowIndirect!P61","v":0},{"$f":"[1]CashFlowIndirect!R61","v":0},{"$f":"[1]CashFlowIndirect!R61","v":0},{"$f":"[1]CashFlowIndirect!S61","v":0},{"$f":"[1]CashFlowIndirect!S61","v":0}]
[1,"CFI5212",null,null,null,"Short-term (≤12 months)",null,null,{"$f":"[1]CashFlowIndirect!J62","v":0},{"$f":"[1]CashFlowIndirect!L62","v":0},{"$f":"[1]CashFlowIndirect!N62","v":0},{"$f":"[1]CashFlowIndirect!N62","v":0},{"$f":"[1]CashFlowIndirect!P62","v":0},{"$f":"[1]CashFlowIndirect!P62","v":0},{"$f":"[1]CashFlowIndirect!R62","v":0},{"$f":"[1]CashFlowIndirect!R62","v":0},{"$f":"[1]CashFlowIndirect!S62","v":0},{"$f":"[1]CashFlowIndirect!S62","v":0}]
[1,"CFI5213",null,null,null,"Long-term (>12 months)",null,null,{"$f":"[1]CashFlowIndirect!J63","v":0},{"$f":"[1]CashFlowIndirect!L63","v":0},{"$f":"[1]CashFlowIndirect!N63","v":0},{"$f":"[1]CashFlowIndirect!N63","v":0},{"$f":"[1]CashFlowIndirect!P63","v":0},{"$f":"[1]CashFlowIndirect!P63","v":0},{"$f":"[1]CashFlowIndirect!R63","v":0},{"$f":"[1]CashFlowIndirect!R63","v":0},{"$f":"[1]CashFlowIndirect!S63","v":0},{"$f":"[1]CashFlowIndirect!S63","v":0},{"$f":"SUM(S64:S65)","v":0}]
[1,"CFI52131",null,null,null,"Market loans",null,null,{"$f":"[1]CashFlowIndirect!J64","v":0},{"$f":"[1]CashFlowIndirect!L64","v":0},{"$f":"[1]CashFlowIndirect!N64","v":0},{"$f":"[1]CashFlowIndirect!N64","v":0},{"$f":"[1]CashFlowIndirect!P64","v":0},{"$f":"[1]CashFlowIndirect!P64","v":0},{"$f":"[1]CashFlowIndirect!R64","v":0},{"$f":"[1]CashFlowIndirect!R64","v":0},{"$f":"[1]CashFlowIndirect!S64","v":0},{"$f":"[1]CashFlowIndirect!S64","v":0}]
[1,"CFI52132",null,null,null,"Other",null,null,{"$f":"[1]CashFlowIndirect!J65","v":0},{"$f":"[1]CashFlowIndirect!L65","v":0},{"$f":"[1]CashFlowIndirect!N65","v":0},{"$f":"[1]CashFlowIndirect!N65","v":0},{"$f":"[1]CashFlowIndirect!P65","v":0},{"$f":"[1]CashFlowIndirect!P65","v":0},{"$f":"[1]CashFlowIndirect!R65","v":0},{"$f":"[1]CashFlowIndirect!R65","v":0},{"$f":"[1]CashFlowIndirect!S65","v":0},{"$f":"[1]CashFlowIndirect!S65","v":0}]
[1,"CFI5214",null,null,null,"Repayment of long-term loans",null,null,{"$f":"[1]CashFlowIndirect!J66","v":0},{"$f":"[1]CashFlowIndirect!L66","v":0},{"$f":"[1]CashFlowIndirect!N66","v":0},{"$f":"[1]CashFlowIndirect!N66","v":0},{"$f":"[1]CashFlowIndirect!P66","v":0},{"$f":"[1]CashFlowIndirect!P66","v":0},{"$f":"[1]CashFlowIndirect!R66","v":0},{"$f":"[1]CashFlowIndirect!R66","v":0},{"$f":"[1]CashFlowIndirect!S66","v":0},{"$f":"[1]CashFlowIndirect!S66","v":0}]
[1,"CFI522",null,null,null,"Foreign",null,null,{"$f":"[1]CashFlowIndirect!J67","v":0},{"$f":"[1]CashFlowIndirect!L67","v":0},{"$f":"[1]CashFlowIndirect!N67","v":0},{"$f":"[1]CashFlowIndirect!N67","v":0},{"$f":"[1]CashFlowIndirect!P67","v":0},{"$f":"[1]CashFlowIndirect!P67","v":0},{"$f":"[1]CashFlowIndirect!R67","v":0},{"$f":"[1]CashFlowIndirect!R67","v":0},{"$f":"[1]CashFlowIndirect!S67","v":0},{"$f":"[1]CashFlowIndirect!S67","v":0},{"$f":"SUM(S68:S70)","v":0}]
[1,"CFI5221",null,null,null,"Market loans",null,null,{"$f":"[1]CashFlowIndirect!J68","v":0},{"$f":"[1]CashFlowIndirect!L68","v":0},{"$f":"[1]CashFlowIndirect!N68","v":0},{"$f":"[1]CashFlowIndirect!N68","v":0},{"$f":"[1]CashFlowIndirect!P68","v":0},{"$f":"[1]CashFlowIndirect!P68","v":0},{"$f":"[1]CashFlowIndirect!R68","v":0},{"$f":"[1]CashFlowIndirect!R68","v":0},{"$f":"[1]CashFlowIndirect!S68","v":0},{"$f":"[1]CashFlowIndirect!S68","v":0}]
[1,"CFI5222",null,null,null,"Other",null,null,{"$f":"[1]CashFlowIndirect!J69","v":0},{"$f":"[1]CashFlowIndirect!L69","v":0},{"$f":"[1]CashFlowIndirect!N69","v":0},{"$f":"[1]CashFlowIndirect!N69","v":0},{"$f":"[1]CashFlowIndirect!P69","v":0},{"$f":"[1]CashFlowIndirect!P69","v":0},{"$f":"[1]CashFlowIndirect!R69","v":0},{"$f":"[1]CashFlowIndirect!R69","v":0},{"$f":"[1]CashFlowIndirect!S69","v":0},{"$f":"[1]CashFlowIndirect!S69","v":0}]
[1,"CFI5223",null,null,null,"Repayment of long-term loans",null,null,{"$f":"[1]CashFlowIndirect!J70","v":0},{"$f":"[1]CashFlowIndirect!L70","v":0},{"$f":"[1]CashFlowIndirect!N70","v":0},{"$f":"[1]CashFlowIndirect!N70","v":0},{"$f":"[1]CashFlowIndirect!P70","v":0},{"$f":"[1]CashFlowIndirect!P70","v":0},{"$f":"[1]CashFlowIndirect!R70","v":0},{"$f":"[1]CashFlowIndirect!R70","v":0},{"$f":"[1]CashFlowIndirect!S70","v":0},{"$f":"[1]CashFlowIndirect!S70","v":0}]
[1,"CFI53",null,null,null,"Repayment of finance leases",98,null,{"$f":"[1]CashFlowIndirect!J71","v":0},{"$f":"[1]CashFlowIndirect!L71","v":0},{"$f":"[1]CashFlowIndirect!N71","v":0},{"$f":"[1]CashFlowIndirect!N71","v":0},{"$f":"[1]CashFlowIndirect!P71","v":0},{"$f":"[1]CashFlowIndirect!P71","v":0},{"$f":"[1]CashFlowIndirect!R71","v":0},{"$f":"[1]CashFlowIndirect!R71","v":0},{"$f":"[1]CashFlowIndirect!S71","v":0},{"$f":"[1]CashFlowIndirect!S71","v":0}]
[1,"CFI54",null,null,null,"Special reserve grant",null,null,{"$f":"[1]CashFlowIndirect!J72","v":0},{"$f":"[1]CashFlowIndirect!L72","v":0},{"$f":"[1]CashFlowIndirect!N72","v":0},{"$f":"[1]CashFlowIndirect!N72","v":0},{"$f":"[1]CashFlowIndirect!P72","v":0},{"$f":"[1]CashFlowIndirect!P72","v":0},{"$f":"[1]CashFlowIndirect!R72","v":0},{"$f":"[1]CashFlowIndirect!R72","v":0},{"$f":"[1]CashFlowIndirect!S72","v":0},{"$f":"[1]CashFlowIndirect!S72","v":0}]
[1,"CFI55",null,null,null,"Other (e.g. issuance of shares, revaluations)",99,null,{"$f":"[1]CashFlowIndirect!J73","v":0},{"$f":"[1]CashFlowIndirect!L73","v":0},{"$f":"[1]CashFlowIndirect!N73","v":0},{"$f":"[1]CashFlowIndirect!N73","v":0},{"$f":"[1]CashFlowIndirect!P73","v":0},{"$f":"[1]CashFlowIndirect!P73","v":0},{"$f":"[1]CashFlowIndirect!R73","v":0},{"$f":"[1]CashFlowIndirect!R73","v":0},{"$f":"[1]CashFlowIndirect!S73","v":0},{"$f":"[1]CashFlowIndirect!S73","v":0}]
[1,"CFI56",null,null,null,"Interest",100,null,{"$f":"[1]CashFlowIndirect!J74","v":0},{"$f":"[1]CashFlowIndirect!L74","v":0},{"$f":"[1]CashFlowIndirect!N74","v":0},{"$f":"[1]CashFlowIndirect!N74","v":0},{"$f":"[1]CashFlowIndirect!P74","v":0},{"$f":"[1]CashFlowIndirect!P74","v":0},{"$f":"[1]CashFlowIndirect!R74","v":0},{"$f":"[1]CashFlowIndirect!R74","v":0},{"$f":"[1]CashFlowIndirect!S74","v":0},{"$f":"[1]CashFlowIndirect!S74","v":0}]
[1,"CFI6",null,null,null,"Dividends",100,null,{"$f":"[1]CashFlowIndirect!J75","v":0},{"$f":"[1]CashFlowIndirect!L75","v":0},{"$f":"[1]CashFlowIndirect!N75","v":0},{"$f":"[1]CashFlowIndirect!N75","v":0},{"$f":"[1]CashFlowIndirect!P75","v":0},{"$f":"[1]CashFlowIndirect!P75","v":0},{"$f":"[1]CashFlowIndirect!R75","v":0},{"$f":"[1]CashFlowIndirect!R75","v":0},{"$f":"[1]CashFlowIndirect!S75","v":0},{"$f":"[1]CashFlowIndirect!S75","v":0}]
[1,null,null,null,null,"Net increase / (decrease) in cash and cash equivalents",null,null,{"$f":"SUM(I11,I28,I55)","v":0},{"$f":"[1]CashFlowIndirect!L76","v":0},{"$f":"[1]CashFlowIndirect!N76","v":0},{"$f":"[1]CashFlowIndirect!N76","v":0},{"$f":"SUM(M11,M28,M55)","v":0},0,{"$f":"[1]CashFlowIndirect!R76","v":0},{"$f":"[1]CashFlowIndirect!R76","v":0},{"$f":"[1]CashFlowIndirect!S76","v":0},{"$f":"[1]CashFlowIndirect!S76","v":0},0]
[1]
[1,null,null,null,null,null,null,null,null,null,null,null,null,null,null,null,null,{"$f":"+R55-ENESummary!N127","v":0}]
[1,null,null,null,null,"Check"]
[1,null,null,null,null,"Net movement in Cash and cash equivalents as per the Financial statements"]
[1,null,null,null,null,"Differences",null,null,null,{"$f":"ROUND(IF(J76-J80>0,IF(J76-J80<1,0,J76-J80),J76-J80),0)","v":0},null,{"$f":"ROUND(IF(L76-L80>0,IF(L76-L80<1,0,L76-L80),L76-L80),0)","v":0}]

{"sheet":"CF_Diff_MTEC_ENE","index":23,"n_rows":193,"n_cols":28,"rows_kept":193,"cut":false,"hidden":false,"merged":[[7,26,7,27],[7,16,7,17],[7,18,7,19],[7,20,7,21],[7,22,7,23],[7,24,7,25]]}
[]
[null,null,null,null,null,null,null,"Legend"]
[null,null,null,null,null,"Differences between ENE 2025 less MTEC 2026",null,"Red",null,"This colour signifies that the difference is above R100 000"]
[null,null,null,null,null,null,null,"Green",null,"This colour signifies that the difference is above (R100 000)"]
[]
[null,null,null,null,null,"PE No",{"$f":"Settings!$O$2","v":"PE126"}]
[null,null,null,null,null,"Entity name",{"$f":"Settings!$E$2","v":"South African Revenue Service"}]
[null,null,null,null,null,"Cash flow data",null,{"$f":"MyYearM3","v":"2022/23"},{"$f":"MyYearM2","v":"2023/24"},{"$f":"MyYearM1","v":"2024/25"},{"$f":"MyYear0","v":"2025/26"},{"$f":"MyYearP1","v":"2026/27"},{"$f":"MyYearP2","v":"2027/28"},null,"EXPLANATIONS",null,{"$f":"MyYearM3","v":"2022/23"},null,{"$f":"MyYearM2","v":"2023/24"},null,{"$f":"MyYearM1","v":"2024/25"},null,{"$f":"MyYear0","v":"2025/26"},null,{"$f":"MyYearP1","v":"2026/27"},null,{"$f":"MyYearP2","v":"2027/28"}]
[null,null,null,null,null,"R Thousand",null,{"$f":"Hist_year3RestatedAudited","v":"Audited\noutcome"},{"$f":"Hist_year2RestatedAudited","v":"Audited\noutcome"},{"$f":"Hist_year1Audited","v":"Audited\noutcome"},{"$f":"Cur_YearApprovedBudg","v":"Approved budget"},{"$f":"MTEF1RevBudgEst","v":"Revised\nbudget\nestimate"},{"$f":"MTEF2RevBudgEst","v":"Revised\nbudget\nestimate"},null,null,null,{"$f":"Hist_year3RestatedAudited","v":"Audited\noutcome"},{"$f":"Hist_year3RestatedAudited","v":"Audited\noutcome"},{"$f":"Hist_year3RestatedAudited","v":"Audited\noutcome"},{"$f":"Hist_year2RestatedAudited","v":"Audited\noutcome"},"Audited\noutcome",{"$f":"Hist_year1Audited","v":"Audited\noutcome"},"Approved budget",{"$f":"Cur_YearApprovedBudg","v":"Approved budget"},{"$f":"MTEF1BudgEst","v":"Budget\nestimate"},{"$f":"MTEF1RevBudgEst","v":"Revised\nbudget\nestimate"},{"$f":"MTEF2BudgEst","v":"Budget\nestimate"},{"$f":"MTEF2RevBudgEst","v":"Revised\nbudget\nestimate"}]
[null,null,null,null,null,null,null,null,null,null,null,null,null,null,null,null,{"$f":"\"ENE \"&LEFT($W$8,4)","v":"ENE 2025"},{"$f":"\"MTEC \"&LEFT($Y$8,4)","v":"MTEC 2026"},{"$f":"Q10","v":"ENE 2025"},"MTEC 2026","ENE 2025","MTEC 2026","ENE 2025","MTEC 2026","ENE 2025","MTEC 2026","ENE 2025","MTEC 2026"]
[{"$f":"CashFlow!A11","v":1},{"$f":"CashFlow!B11","v":"CF3"},null,null,null,"Cash flow from operating activities",null,null,null,null,null,null,null,null,null,null,{"$f":"(Q12-Q58)","v":665308.37268999964},665308.37268999964,856437.24493999965,856437.24493999965,-380523.90497189574,-380523.90497189574,1140053.0617051907,1140053.0617051907,485904.0780388359,485904.0780388359,294684.81750541553,294684.81750541553]
[{"$f":"CashFlow!A12","v":1},{"$f":"CashFlow!B12","v":"CF1"},null,null,null,"Cash receipts from stakeholders",null,{"$f":"R12-Q12","v":0},{"$f":"T12-S12","v":0},{"$f":"V12-U12","v":0},{"$f":"X12-W12","v":0},{"$f":"Z12-Y12","v":0},{"$f":"AB12-AA12","v":0},null,null,null,{"$f":"SUM(Q13,Q14,Q30,Q48:Q49,Q53,Q56:Q57)","v":12169187},12169187,13806595,13806595,12946582.556904105,12946582.556904105,15942360.806116154,15942360.806116154,15448121.159190124,15448121.159190124,16029705.772610115,16029705.772610115]
[{"$f":"CashFlow!A13","v":1},{"$f":"CashFlow!B13","v":"CF11"},null,null,null,"Tax receipts",null,0,0,0,0,0,0,null,null,null,{"$f":"[1]CashFlow!J13","v":0},{"$f":"CashFlow!I13","v":0},{"$f":"[1]CashFlow!L13","v":0},{"$f":"CashFlow!J13","v":0},{"$f":"[1]CashFlow!N13","v":0},{"$f":"CashFlow!L13","v":0},{"$f":"[1]CashFlow!P13","v":0},{"$f":"CashFlow!N13","v":0},{"$f":"[1]CashFlow!R13","v":0},{"$f":"CashFlow!P13","v":0},{"$f":"[1]CashFlow!S13","v":0},{"$f":"CashFlow!R13","v":0}]
[{"$f":"CashFlow!A14","v":1},{"$f":"CashFlow!B14","v":"CF12"},null,null,null,"Sales of goods and services other than capital assets",null,0,0,0,0,0,0,null,null,null,{"$f":"SUM(Q15,Q29)","v":430771},{"$f":"SUM(R15,R29)","v":430771},{"$f":"SUM(S15,S29)","v":377667},377667,431549.4111441056,431549.4111441056,443999.80611615477,443999.80611615477,456813.79119011993,456813.79119011993,470002.07563411363,470002.07563411363]
[{"$f":"CashFlow!A15","v":1},{"$f":"CashFlow!B15","v":"CF1111"},null,null,null,"Sales of goods and services produced by entity",null,0,0,0,0,0,0,null,null,null,{"$f":"SUM(Q16,Q21,Q26)","v":430771},{"$f":"SUM(R16,R21,R26)","v":430771},{"$f":"SUM(S16,S21,S26)","v":377667},377667,431549.4111441056,431549.4111441056,443999.80611615477,443999.80611615477,456813.79119011993,456813.79119011993,470002.07563411363,470002.07563411363]
[{"$f":"CashFlow!A16","v":1},{"$f":"CashFlow!B16","v":"CF11111"},null,null,null,"Administrative fees",null,0,0,0,0,0,0,null,null,null,{"$f":"SUM(Q17:Q20)","v":0},{"$f":"SUM(R17:R20)","v":0},{"$f":"SUM(S17:S20)","v":0},0,0,0,0,0,0,0,0,0]
[{"$f":"CashFlow!A17","v":1},{"$f":"CashFlow!B17","v":"CF111111"},null,null,null,{"$f":"CashFlow!F17","v":"Please specify"},null,0,0,0,0,0,0,null,null,null,{"$f":"[1]CashFlow!J17","v":0},{"$f":"CashFlow!I17","v":0},{"$f":"[1]CashFlow!L17","v":0},{"$f":"CashFlow!J17","v":0},{"$f":"[1]CashFlow!N17","v":0},{"$f":"CashFlow!L17","v":0},{"$f":"[1]CashFlow!P17","v":0},{"$f":"CashFlow!N17","v":0},{"$f":"[1]CashFlow!R17","v":0},{"$f":"CashFlow!P17","v":0},{"$f":"[1]CashFlow!S17","v":0},{"$f":"CashFlow!R17","v":0}]
[{"$f":"CashFlow!A18","v":1},{"$f":"CashFlow!B18","v":"CF111112"},null,null,null,{"$f":"CashFlow!F18","v":"Please specify"},null,0,0,0,0,0,0,null,null,null,{"$f":"[1]CashFlow!J18","v":0},{"$f":"CashFlow!I18","v":0},{"$f":"[1]CashFlow!L18","v":0},{"$f":"CashFlow!J18","v":0},{"$f":"[1]CashFlow!N18","v":0},{"$f":"CashFlow!L18","v":0},{"$f":"[1]CashFlow!P18","v":0},{"$f":"CashFlow!N18","v":0},{"$f":"[1]CashFlow!R18","v":0},{"$f":"CashFlow!P18","v":0},{"$f":"[1]CashFlow!S18","v":0},{"$f":"CashFlow!R18","v":0}]
[{"$f":"CashFlow!A19","v":1},{"$f":"CashFlow!B19","v":"CF111113"},null,null,null,{"$f":"CashFlow!F19","v":"Please specify"},null,0,0,0,0,0,0,null,null,null,{"$f":"[1]CashFlow!J19","v":0},{"$f":"CashFlow!I19","v":0},{"$f":"[1]CashFlow!L19","v":0},{"$f":"CashFlow!J19","v":0},{"$f":"[1]CashFlow!N19","v":0},{"$f":"CashFlow!L19","v":0},{"$f":"[1]CashFlow!P19","v":0},{"$f":"CashFlow!N19","v":0},{"$f":"[1]CashFlow!R19","v":0},{"$f":"CashFlow!P19","v":0},{"$f":"[1]CashFlow!S19","v":0},{"$f":"CashFlow!R19","v":0}]
[{"$f":"CashFlow!A20","v":1},{"$f":"CashFlow!B20","v":"CF111114"},null,null,null,{"$f":"CashFlow!F20","v":"Please specify"},null,0,0,0,0,0,0,null,null,null,{"$f":"[1]CashFlow!J20","v":0},{"$f":"CashFlow!I20","v":0},{"$f":"[1]CashFlow!L20","v":0},{"$f":"CashFlow!J20","v":0},{"$f":"[1]CashFlow!N20","v":0},{"$f":"CashFlow!L20","v":0},{"$f":"[1]CashFlow!P20","v":0},{"$f":"CashFlow!N20","v":0},{"$f":"[1]CashFlow!R20","v":0},{"$f":"CashFlow!P20","v":0},{"$f":"[1]CashFlow!S20","v":0},{"$f":"CashFlow!R20","v":0}]
[{"$f":"CashFlow!A21","v":1},{"$f":"CashFlow!B21","v":"CF11112"},null,null,null,"Sales by market establishments",null,0,0,0,0,0,0,null,null,null,{"$f":"SUM(Q22:Q25)","v":0},{"$f":"SUM(R22:R25)","v":0},{"$f":"SUM(S22:S25)","v":0},0,0,0,0,0,0,0,0,0]
[{"$f":"CashFlow!A22","v":1},{"$f":"CashFlow!B22","v":"CF111121"},null,null,null,{"$f":"CashFlow!F22","v":"Please specify"},null,0,0,0,0,0,0,null,null,null,{"$f":"[1]CashFlow!J22","v":0},{"$f":"CashFlow!I22","v":0},{"$f":"[1]CashFlow!L22","v":0},{"$f":"CashFlow!J22","v":0},{"$f":"[1]CashFlow!N22","v":0},{"$f":"CashFlow!L22","v":0},{"$f":"[1]CashFlow!P22","v":0},{"$f":"CashFlow!N22","v":0},{"$f":"[1]CashFlow!R22","v":0},{"$f":"CashFlow!P22","v":0},{"$f":"[1]CashFlow!S22","v":0},{"$f":"CashFlow!R22","v":0}]
[{"$f":"CashFlow!A23","v":1},{"$f":"CashFlow!B23","v":"CF111122"},null,null,null,{"$f":"CashFlow!F23","v":"Please specify"},null,0,0,0,0,0,0,null,null,null,{"$f":"[1]CashFlow!J23","v":0},{"$f":"CashFlow!I23","v":0},{"$f":"[1]CashFlow!L23","v":0},{"$f":"CashFlow!J23","v":0},{"$f":"[1]CashFlow!N23","v":0},{"$f":"CashFlow!L23","v":0},{"$f":"[1]CashFlow!P23","v":0},{"$f":"CashFlow!N23","v":0},{"$f":"[1]CashFlow!R23","v":0},{"$f":"CashFlow!P23","v":0},{"$f":"[1]CashFlow!S23","v":0},{"$f":"CashFlow!R23","v":0}]
[{"$f":"CashFlow!A24","v":1},{"$f":"CashFlow!B24","v":"CF111123"},null,null,null,{"$f":"CashFlow!F24","v":"Please specify"},null,0,0,0,0,0,0,null,null,null,{"$f":"[1]CashFlow!J24","v":0},{"$f":"CashFlow!I24","v":0},{"$f":"[1]CashFlow!L24","v":0},{"$f":"CashFlow!J24","v":0},{"$f":"[1]CashFlow!N24","v":0},{"$f":"CashFlow!L24","v":0},{"$f":"[1]CashFlow!P24","v":0},{"$f":"CashFlow!N24","v":0},{"$f":"[1]CashFlow!R24","v":0},{"$f":"CashFlow!P24","v":0},{"$f":"[1]CashFlow!S24","v":0},{"$f":"CashFlow!R24","v":0}]
[{"$f":"CashFlow!A25","v":1},{"$f":"CashFlow!B25","v":"CF111124"},null,null,null,{"$f":"CashFlow!F25","v":"Please specify"},null,0,0,0,0,0,0,null,null,null,{"$f":"[1]CashFlow!J25","v":0},{"$f":"CashFlow!I25","v":0},{"$f":"[1]CashFlow!L25","v":0},{"$f":"CashFlow!J25","v":0},{"$f":"[1]CashFlow!N25","v":0},{"$f":"CashFlow!L25","v":0},{"$f":"[1]CashFlow!P25","v":0},{"$f":"CashFlow!N25","v":0},{"$f":"[1]CashFlow!R25","v":0},{"$f":"CashFlow!P25","v":0},{"$f":"[1]CashFlow!S25","v":0},{"$f":"CashFlow!R25","v":0}]
[{"$f":"CashFlow!A26","v":1},{"$f":"CashFlow!B26","v":"CF11113"},null,null,null,"Other sales",null,0,0,0,0,0,0,null,null,null,{"$f":"SUM(Q27:Q28)","v":430771},{"$f":"SUM(R27:R28)","v":430771},{"$f":"SUM(S27:S28)","v":377667},{"$f":"SUM(T27:T28)","v":377667},431549.4111441056,431549.4111441056,443999.80611615477,443999.80611615477,456813.79119011993,456813.79119011993,470002.07563411363,470002.07563411363]
[{"$f":"CashFlow!A27","v":1},{"$f":"CashFlow!B27","v":"CF111131"},null,null,null,"User charges",null,0,0,0,0,0,0,null,null,null,{"$f":"[1]CashFlow!J27","v":430771},{"$f":"CashFlow!I27","v":430771},{"$f":"[1]CashFlow!L27","v":377667},{"$f":"CashFlow!J27","v":377667},{"$f":"[1]CashFlow!N27","v":431549.4111441056},{"$f":"CashFlow!L27","v":431549.4111441056},{"$f":"[1]CashFlow!P27","v":443999.80611615477},{"$f":"CashFlow!N27","v":443999.80611615477},{"$f":"[1]CashFlow!R27","v":456813.79119011993},{"$f":"CashFlow!P27","v":456813.79119011993},{"$f":"[1]CashFlow!S27","v":470002.07563411363},{"$f":"CashFlow!R27","v":470002.07563411363}]
[{"$f":"CashFlow!A28","v":1},{"$f":"CashFlow!B28","v":"CF111132"},null,null,null,"Sales other than user charges",null,0,0,0,0,0,0,null,null,null,{"$f":"[1]CashFlow!J28","v":0},{"$f":"CashFlow!I28","v":0},{"$f":"[1]CashFlow!L28","v":0},{"$f":"CashFlow!J28","v":0},{"$f":"[1]CashFlow!N28","v":0},{"$f":"CashFlow!L28","v":0},{"$f":"[1]CashFlow!P28","v":0},{"$f":"CashFlow!N28","v":0},{"$f":"[1]CashFlow!R28","v":0},{"$f":"CashFlow!P28","v":0},{"$f":"[1]CashFlow!S28","v":0},{"$f":"CashFlow!R28","v":0}]
[{"$f":"CashFlow!A29","v":1},{"$f":"CashFlow!B29","v":"CF11114"},null,null,null,"Sales of scrap, waste, arms and other used current goods",null,{"$f":"R29-Q29","v":0},{"$f":"T29-S29","v":0},{"$f":"V29-U29","v":0},{"$f":"X29-W29","v":0},{"$f":"Z29-Y29","v":0},{"$f":"AB29-AA29","v":0},null,null,null,{"$f":"[1]CashFlow!J29","v":0},{"$f":"CashFlow!I29","v":0},{"$f":"[1]CashFlow!L29","v":0},{"$f":"CashFlow!J29","v":0},{"$f":"[1]CashFlow!N29","v":0},{"$f":"CashFlow!L29","v":0},{"$f":"[1]CashFlow!P29","v":0},{"$f":"CashFlow!N29","v":0},{"$f":"[1]CashFlow!R29","v":0},{"$f":"CashFlow!P29","v":0},{"$f":"[1]CashFlow!S29","v":0},{"$f":"CashFlow!R29","v":0}]
[{"$f":"CashFlow!A30","v":1},{"$f":"CashFlow!B30","v":"CF112"},null,null,null,"Transfers received",null,0,0,0,0,0,0,null,null,null,{"$f":"SUM(Q31:Q32,Q36,Q45:Q47)","v":11635781},11635781,13280696,13280696,12388563,12388563,15409637,15409637,14895308,14895308,15455832.380799999,15455832.380799999]
[{"$f":"CashFlow!A31","v":4},{"$f":"CashFlow!B31","v":"CF1121"},null,null,null,"Social contributions",null,0,0,0,0,0,0,null,null,null,{"$f":"[1]CashFlow!J31","v":0},{"$f":"CashFlow!I31","v":0},{"$f":"[1]CashFlow!L31","v":0},{"$f":"CashFlow!J31","v":0},{"$f":"[1]CashFlow!N31","v":0},{"$f":"CashFlow!L31","v":0},{"$f":"[1]CashFlow!P31","v":0},{"$f":"CashFlow!N31","v":0},{"$f":"[1]CashFlow!R31","v":0},{"$f":"CashFlow!P31","v":0},{"$f":"[1]CashFlow!S31","v":0},{"$f":"CashFlow!R31","v":0}]
[{"$f":"CashFlow!A32","v":1},{"$f":"CashFlow!B32","v":"CF1122"},null,null,null,"Other goverment units",null,0,0,0,0,0,0,null,null,null,{"$f":"SUM(Q33,Q42:Q44)","v":11635781},11635781,13280696,13280696,12388563,12388563,15409637,15409637,14895308,14895308,15455832.380799999,15455832.380799999]
[{"$f":"CashFlow!A33","v":1},{"$f":"CashFlow!B33","v":"CF11221"},null,null,null,"National government",null,0,0,0,0,0,0,null,null,null,{"$f":"SUM(Q34:Q35)","v":11635781},11635781,13280696,13280696,12388563,12388563,15409637,15409637,14895308,14895308,15455832.380799999,15455832.380799999]
[{"$f":"CashFlow!A34","v":1},{"$f":"CashFlow!B34","v":"CF112211"},null,null,null,"Departmental transfers",null,0,0,0,0,0,0,null,null,null,{"$f":"[1]CashFlow!J34","v":11635781},{"$f":"CashFlow!I34","v":11635781},{"$f":"[1]CashFlow!L34","v":13280696},{"$f":"CashFlow!J34","v":13280696},{"$f":"[1]CashFlow!N34","v":12388563},{"$f":"CashFlow!L34","v":12388563},{"$f":"[1]CashFlow!P34","v":15409637},{"$f":"CashFlow!N34","v":15409637},{"$f":"[1]CashFlow!R34","v":14895308},{"$f":"CashFlow!P34","v":14895308},{"$f":"[1]CashFlow!S34","v":15455832.380799999},{"$f":"CashFlow!R34","v":15455832.380799999}]
[{"$f":"CashFlow!A35","v":1},{"$f":"CashFlow!B35","v":"CF1122121"},null,null,null,"Other national departments",null,0,0,0,0,0,0,null,null,null,{"$f":"[1]CashFlow!J35","v":0},{"$f":"CashFlow!I35","v":0},{"$f":"[1]CashFlow!L35","v":0},{"$f":"CashFlow!J35","v":0},{"$f":"[1]CashFlow!N35","v":0},{"$f":"CashFlow!L35","v":0},{"$f":"[1]CashFlow!P35","v":0},{"$f":"CashFlow!N35","v":0},{"$f":"[1]CashFlow!R35","v":0},{"$f":"CashFlow!P35","v":0},{"$f":"[1]CashFlow!S35","v":0},{"$f":"CashFlow!R35","v":0}]
[{"$f":"CashFlow!A36","v":2},{"$f":"CashFlow!B36","v":"CF11225"},null,null,null,"Skills development (SETAs)",null,0,0,0,0,0,0,null,null,null,{"$f":"SUM(Q37,Q41)","v":0},{"$f":"SUM(R37,R41)","v":0},{"$f":"SUM(S37,S41)","v":0},0,0,0,0,0,0,0,0,0]
[{"$f":"CashFlow!A37","v":2},{"$f":"CashFlow!B37","v":"CF1122122"},null,null,null,"Skills development levies ",null,{"$f":"R37-Q37","v":0},{"$f":"T37-S37","v":0},{"$f":"V37-U37","v":0},{"$f":"X37-W37","v":0},{"$f":"Z37-Y37","v":0},{"$f":"AB37-AA37","v":0},null,null,null,{"$f":"SUM(Q38:Q40)","v":0},{"$f":"SUM(R38:R40)","v":0},{"$f":"SUM(S38:S40)","v":0},0,0,0,0,0,0,0,0,0]
[{"$f":"CashFlow!A38","v":2},{"$f":"CashFlow!B38","v":"CF11221221"},null,null,null," Admin - 10.5%",null,{"$f":"R38-Q38","v":0},{"$f":"T38-S38","v":0},{"$f":"V38-U38","v":0},{"$f":"X38-W38","v":0},{"$f":"Z38-Y38","v":0},{"$f":"AB38-AA38","v":0},null,null,null,{"$f":"[1]CashFlow!J38","v":0},{"$f":"CashFlow!I38","v":0},{"$f":"[1]CashFlow!L38","v":0},{"$f":"CashFlow!J38","v":0},{"$f":"[1]CashFlow!N38","v":0},{"$f":"CashFlow!L38","v":0},{"$f":"[1]CashFlow!P38","v":0},{"$f":"CashFlow!N38","v":0},{"$f":"[1]CashFlow!R38","v":0},{"$f":"CashFlow!P38","v":0},{"$f":"[1]CashFlow!S38","v":0},{"$f":"CashFlow!R38","v":0}]
[{"$f":"CashFlow!A39","v":2},{"$f":"CashFlow!B39","v":"CF11221222"},null,null,null,"Employer grant fund levy -  20%",null,{"$f":"R39-Q39","v":0},{"$f":"T39-S39","v":0},{"$f":"V39-U39","v":0},{"$f":"X39-W39","v":0},{"$f":"Z39-Y39","v":0},{"$f":"AB39-AA39","v":0},null,null,null,{"$f":"[1]CashFlow!J39","v":0},{"$f":"CashFlow!I39","v":0},{"$f":"[1]CashFlow!L39","v":0},{"$f":"CashFlow!J39","v":0},{"$f":"[1]CashFlow!N39","v":0},{"$f":"CashFlow!L39","v":0},{"$f":"[1]CashFlow!P39","v":0},{"$f":"CashFlow!N39","v":0},{"$f":"[1]CashFlow!R39","v":0},{"$f":"CashFlow!P39","v":0},{"$f":"[1]CashFlow!S39","v":0},{"$f":"CashFlow!R39","v":0}]
[{"$f":"CashFlow!A40","v":2},{"$f":"CashFlow!B40","v":"CF11221223"},null,null,null,"Discretionary grants - 49.5%",null,{"$f":"R40-Q40","v":0},{"$f":"T40-S40","v":0},{"$f":"V40-U40","v":0},{"$f":"X40-W40","v":0},{"$f":"Z40-Y40","v":0},{"$f":"AB40-AA40","v":0},null,null,null,{"$f":"[1]CashFlow!J40","v":0},{"$f":"CashFlow!I40","v":0},{"$f":"[1]CashFlow!L40","v":0},{"$f":"CashFlow!J40","v":0},{"$f":"[1]CashFlow!N40","v":0},{"$f":"CashFlow!L40","v":0},{"$f":"[1]CashFlow!P40","v":0},{"$f":"CashFlow!N40","v":0},{"$f":"[1]CashFlow!R40","v":0},{"$f":"CashFlow!P40","v":0},{"$f":"[1]CashFlow!S40","v":0},{"$f":"CashFlow!R40","v":0}]
[{"$f":"CashFlow!A41","v":2},{"$f":"CashFlow!B41","v":"CF1122126"},null,null,null,"National skills fund ",null,0,0,0,0,0,0,null,null,null,{"$f":"[1]CashFlow!J41","v":0},{"$f":"CashFlow!I41","v":0},{"$f":"[1]CashFlow!L41","v":0},{"$f":"CashFlow!J41","v":0},{"$f":"[1]CashFlow!N41","v":0},{"$f":"CashFlow!L41","v":0},{"$f":"[1]CashFlow!P41","v":0},{"$f":"CashFlow!N41","v":0},{"$f":"[1]CashFlow!R41","v":0},{"$f":"CashFlow!P41","v":0},{"$f":"[1]CashFlow!S41","v":0},{"$f":"CashFlow!R41","v":0}]
[{"$f":"CashFlow!A42","v":1},{"$f":"CashFlow!B42","v":"CF1122123"},null,null,null,"Departmental agencies and accounts",null,0,0,0,0,0,0,null,null,null,{"$f":"[1]CashFlow!J42","v":0},{"$f":"CashFlow!I42","v":0},{"$f":"[1]CashFlow!L42","v":0},{"$f":"CashFlow!J42","v":0},{"$f":"[1]CashFlow!N42","v":0},{"$f":"CashFlow!L42","v":0},{"$f":"[1]CashFlow!P42","v":0},{"$f":"CashFlow!N42","v":0},{"$f":"[1]CashFlow!R42","v":0},{"$f":"CashFlow!P42","v":0},{"$f":"[1]CashFlow!S42","v":0},{"$f":"CashFlow!R42","v":0}]
[{"$f":"CashFlow!A43","v":1},{"$f":"CashFlow!B43","v":"CF1122124"},null,null,null,"Provincial governments",null,0,0,0,0,0,0,null,null,null,{"$f":"[1]CashFlow!J43","v":0},{"$f":"CashFlow!I43","v":0},{"$f":"[1]CashFlow!L43","v":0},{"$f":"CashFlow!J43","v":0},{"$f":"[1]CashFlow!N43","v":0},{"$f":"CashFlow!L43","v":0},{"$f":"[1]CashFlow!P43","v":0},{"$f":"CashFlow!N43","v":0},{"$f":"[1]CashFlow!R43","v":0},{"$f":"CashFlow!P43","v":0},{"$f":"[1]CashFlow!S43","v":0},{"$f":"CashFlow!R43","v":0}]
[{"$f":"CashFlow!A44","v":1},{"$f":"CashFlow!B44","v":"CF1122125"},null,null,null,"Local governments",null,0,0,0,0,0,0,null,null,null,{"$f":"[1]CashFlow!J44","v":0},{"$f":"CashFlow!I44","v":0},{"$f":"[1]CashFlow!L44","v":0},{"$f":"CashFlow!J44","v":0},{"$f":"[1]CashFlow!N44","v":0},{"$f":"CashFlow!L44","v":0},{"$f":"[1]CashFlow!P44","v":0},{"$f":"CashFlow!N44","v":0},{"$f":"[1]CashFlow!R44","v":0},{"$f":"CashFlow!P44","v":0},{"$f":"[1]CashFlow!S44","v":0},{"$f":"CashFlow!R44","v":0}]
[{"$f":"CashFlow!A45","v":1},{"$f":"CashFlow!B45","v":"CF11222"},null,null,null,"Higher education institutions",null,0,0,0,0,0,0,null,null,null,{"$f":"[1]CashFlow!J45","v":0},{"$f":"CashFlow!I45","v":0},{"$f":"[1]CashFlow!L45","v":0},{"$f":"CashFlow!J45","v":0},{"$f":"[1]CashFlow!N45","v":0},{"$f":"CashFlow!L45","v":0},{"$f":"[1]CashFlow!P45","v":0},{"$f":"CashFlow!N45","v":0},{"$f":"[1]CashFlow!R45","v":0},{"$f":"CashFlow!P45","v":0},{"$f":"[1]CashFlow!S45","v":0},{"$f":"CashFlow!R45","v":0}]
[{"$f":"CashFlow!A46","v":1},{"$f":"CashFlow!B46","v":"CF11223"},null,null,null,"Foreign governments and international organisations",null,0,0,0,0,0,0,null,null,null,{"$f":"[1]CashFlow!J46","v":0},{"$f":"CashFlow!I46","v":0},{"$f":"[1]CashFlow!L46","v":0},{"$f":"CashFlow!J46","v":0},{"$f":"[1]CashFlow!N46","v":0},{"$f":"CashFlow!L46","v":0},{"$f":"[1]CashFlow!P46","v":0},{"$f":"CashFlow!N46","v":0},{"$f":"[1]CashFlow!R46","v":0},{"$f":"CashFlow!P46","v":0},{"$f":"[1]CashFlow!S46","v":0},{"$f":"CashFlow!R46","v":0}]
[{"$f":"CashFlow!A47","v":1},{"$f":"CashFlow!B47","v":"CF11224"},null,null,null,"Local non-government donors",null,0,0,0,0,0,0,null,null,null,{"$f":"[1]CashFlow!J47","v":0},{"$f":"CashFlow!I47","v":0},{"$f":"[1]CashFlow!L47","v":0},{"$f":"CashFlow!J47","v":0},{"$f":"[1]CashFlow!N47","v":0},{"$f":"CashFlow!L47","v":0},{"$f":"[1]CashFlow!P47","v":0},{"$f":"CashFlow!N47","v":0},{"$f":"[1]CashFlow!R47","v":0},{"$f":"CashFlow!P47","v":0},{"$f":"[1]CashFlow!S47","v":0},{"$f":"CashFlow!R47","v":0}]
[{"$f":"CashFlow!A48","v":1},{"$f":"CashFlow!B48","v":"CF113"},null,null,null,"Fines, penalties and forfeits",null,0,0,0,0,0,0,null,null,null,{"$f":"[1]CashFlow!J48","v":0},{"$f":"CashFlow!I48","v":0},{"$f":"[1]CashFlow!L48","v":0},{"$f":"CashFlow!J48","v":0},{"$f":"[1]CashFlow!N48","v":0},{"$f":"CashFlow!L48","v":0},{"$f":"[1]CashFlow!P48","v":0},{"$f":"CashFlow!N48","v":0},{"$f":"[1]CashFlow!R48","v":0},{"$f":"CashFlow!P48","v":0},{"$f":"[1]CashFlow!S48","v":0},{"$f":"CashFlow!R48","v":0}]
[{"$f":"CashFlow!A49","v":1},{"$f":"CashFlow!B49","v":"CF114"},null,null,null,"Interest and rent on land",null,0,0,0,0,0,0,null,null,null,{"$f":"SUM(Q50:Q52)","v":102635},{"$f":"SUM(R50:R52)","v":102635},{"$f":"SUM(S50:S52)","v":148232},148232,126470.14575999997,126470.14575999997,88724.000000000233,88724.000000000233,95999.368000004441,95999.368000004441,103871.31617600098,103871.31617600098]
[{"$f":"CashFlow!A50","v":1},{"$f":"CashFlow!B50","v":"CF1141"},null,null,null,"Interest",null,0,0,0,0,0,0,null,null,null,{"$f":"[1]CashFlow!J50","v":102635},{"$f":"CashFlow!I50","v":102635},{"$f":"[1]CashFlow!L50","v":148232},{"$f":"CashFlow!J50","v":148232},{"$f":"[1]CashFlow!N50","v":126470.14575999997},{"$f":"CashFlow!L50","v":126470.14575999997},{"$f":"[1]CashFlow!P50","v":88724.000000000233},{"$f":"CashFlow!N50","v":88724.000000000233},{"$f":"[1]CashFlow!R50","v":95999.368000004441},{"$f":"CashFlow!P50","v":95999.368000004441},{"$f":"[1]CashFlow!S50","v":103871.31617600098},{"$f":"CashFlow!R50","v":103871.31617600098}]
[{"$f":"CashFlow!A51","v":1},{"$f":"CashFlow!B51","v":"CF1142"},null,null,null,"Dividends",null,0,0,0,0,0,0,null,null,null,{"$f":"[1]CashFlow!J51","v":0},{"$f":"CashFlow!I51","v":0},{"$f":"[1]CashFlow!L51","v":0},{"$f":"CashFlow!J51","v":0},{"$f":"[1]CashFlow!N51","v":0},{"$f":"CashFlow!L51","v":0},{"$f":"[1]CashFlow!P51","v":0},{"$f":"CashFlow!N51","v":0},{"$f":"[1]CashFlow!R51","v":0},{"$f":"CashFlow!P51","v":0},{"$f":"[1]CashFlow!S51","v":0},{"$f":"CashFlow!R51","v":0}]
[{"$f":"CashFlow!A52","v":1},{"$f":"CashFlow!B52","v":"CF1143"},null,null,null,"Rent on land",null,0,0,0,0,0,0,null,null,null,{"$f":"[1]CashFlow!J52","v":0},{"$f":"CashFlow!I52","v":0},{"$f":"[1]CashFlow!L52","v":0},{"$f":"CashFlow!J52","v":0},{"$f":"[1]CashFlow!N52","v":0},{"$f":"CashFlow!L52","v":0},{"$f":"[1]CashFlow!P52","v":0},{"$f":"CashFlow!N52","v":0},{"$f":"[1]CashFlow!R52","v":0},{"$f":"CashFlow!P52","v":0},{"$f":"[1]CashFlow!S52","v":0},{"$f":"CashFlow!R52","v":0}]
[{"$f":"CashFlow!A53","v":1},{"$f":"CashFlow!B53","v":"CF119"},null,null,null,"Financial transactions in assets and liabilities",null,{"$f":"R53-Q53","v":0},{"$f":"T53-S53","v":0},{"$f":"V53-U53","v":0},{"$f":"X53-W53","v":0},{"$f":"Z53-Y53","v":0},{"$f":"AB53-AA53","v":0},null,null,null,{"$f":"SUM(Q54:Q55)","v":0},{"$f":"SUM(R54:R55)","v":0},{"$f":"SUM(S54:S55)","v":0},{"$f":"SUM(T54:T55)","v":0},0,0,0,0,0,0,0,0]
[{"$f":"CashFlow!A54","v":1},{"$f":"CashFlow!B54","v":"CF1191"},null,null,null,"Forex gains",null,{"$f":"R54-Q54","v":0},{"$f":"T54-S54","v":0},{"$f":"V54-U54","v":0},{"$f":"X54-W54","v":0},{"$f":"Z54-Y54","v":0},{"$f":"AB54-AA54","v":0},null,null,null,{"$f":"[1]CashFlow!J54","v":0},{"$f":"CashFlow!I54","v":0},{"$f":"[1]CashFlow!L54","v":0},{"$f":"CashFlow!J54","v":0},{"$f":"[1]CashFlow!N54","v":0},{"$f":"CashFlow!L54","v":0},{"$f":"[1]CashFlow!P54","v":0},{"$f":"CashFlow!N54","v":0},{"$f":"[1]CashFlow!R54","v":0},{"$f":"CashFlow!P54","v":0},{"$f":"[1]CashFlow!S54","v":0},{"$f":"CashFlow!R54","v":0}]
[{"$f":"CashFlow!A55","v":1},{"$f":"CashFlow!B55","v":"CF115"},null,null,null,"Other receipts",null,0,0,0,0,0,0,null,null,null,{"$f":"[1]CashFlow!J55","v":0},{"$f":"CashFlow!I55","v":0},{"$f":"[1]CashFlow!L55","v":0},{"$f":"CashFlow!J55","v":0},{"$f":"[1]CashFlow!N55","v":0},{"$f":"CashFlow!L55","v":0},{"$f":"[1]CashFlow!P55","v":0},{"$f":"CashFlow!N55","v":0},{"$f":"[1]CashFlow!R55","v":0},{"$f":"CashFlow!P55","v":0},{"$f":"[1]CashFlow!S55","v":0},{"$f":"CashFlow!R55","v":0}]
[{"$f":"CashFlow!A56","v":1},{"$f":"CashFlow!B56","v":"CF116"},null,null,null,"Tax benefit",null,0,0,0,0,0,0,null,null,null,{"$f":"[1]CashFlow!J56","v":0},{"$f":"CashFlow!I56","v":0},{"$f":"[1]CashFlow!L56","v":0},{"$f":"CashFlow!J56","v":0},{"$f":"[1]CashFlow!N56","v":0},{"$f":"CashFlow!L56","v":0},{"$f":"[1]CashFlow!P56","v":0},{"$f":"CashFlow!N56","v":0},{"$f":"[1]CashFlow!R56","v":0},{"$f":"CashFlow!P56","v":0},{"$f":"[1]CashFlow!S56","v":0},{"$f":"CashFlow!R56","v":0}]
[{"$f":"CashFlow!A57","v":1},{"$f":"CashFlow!B57","v":"CF117"},null,null,null,"Outside shareholders interest",null,0,0,0,0,0,0,null,null,null,{"$f":"[1]CashFlow!J57","v":0},{"$f":"CashFlow!I57","v":0},{"$f":"[1]CashFlow!L57","v":0},{"$f":"CashFlow!J57","v":0},{"$f":"[1]CashFlow!N57","v":0},{"$f":"CashFlow!L57","v":0},{"$f":"[1]CashFlow!P57","v":0},{"$f":"CashFlow!N57","v":0},{"$f":"[1]CashFlow!R57","v":0},{"$f":"CashFlow!P57","v":0},{"$f":"[1]CashFlow!S57","v":0},{"$f":"CashFlow!R57","v":0}]
[{"$f":"CashFlow!A58","v":1},{"$f":"CashFlow!B58","v":"CF2"},null,null,null,"Cash paid to stakeholders",null,0,0,0,0,0,0,null,null,null,{"$f":"SUM(Q59,Q121,Q150,Q155:Q156)","v":11503878.62731},{"$f":"SUM(R59,R121,R150,R155:R156)","v":11503878.62731},{"$f":"SUM(S59,S121,S150,S155:S156)","v":12950157.75506},{"$f":"SUM(T59,T121,T150,T155:T156)","v":12950157.75506},13327106.461876001,13327106.461876001,14802307.744410964,14802307.744410964,14962217.081151288,14962217.081151288,15735020.955104699,15735020.955104699]
[{"$f":"CashFlow!A59","v":1},{"$f":"CashFlow!B59","v":"CF21"},null,null,null,"Current payments",null,0,0,0,0,0,0,null,null,null,{"$f":"SUM(Q60,Q63,Q117)","v":11503878.62731},{"$f":"SUM(R60,R63,R117)","v":11503878.62731},{"$f":"SUM(S60,S63,S117)","v":12950157.75506},12950157.75506,13327106.461876001,13327106.461876001,14802307.744410964,14802307.744410964,14962217.081151288,14962217.081151288,15735020.955104699,15735020.955104699]
[{"$f":"CashFlow!A60","v":1},{"$f":"CashFlow!B60","v":"CF211"},null,null,null,"Compensation of employees",null,0,0,0,0,0,0,null,null,null,{"$f":"SUM(Q61:Q62)","v":8445367.1408399995},{"$f":"SUM(R61:R62)","v":8445367.1408399995},{"$f":"SUM(S61:S62)","v":9498469.6334199999},9498469.6334199999,9870140.5542600006,9870140.5542600006,10339690.602510722,10339690.602510722,10333657.588951603,10333657.588951603,10800172.791032141,10800172.791032141]
[{"$f":"CashFlow!A61","v":1},{"$f":"CashFlow!B61","v":"CF2111"},null,null,null,"Salaries and wages",null,0,0,0,0,0,0,null,null,null,{"$f":"[1]CashFlow!J61","v":7170975.2668799991},{"$f":"CashFlow!I61","v":7170975.2668799991},{"$f":"[1]CashFlow!L61","v":8130754.63442},{"$f":"CashFlow!J61","v":8130754.63442},{"$f":"[1]CashFlow!N61","v":8440958.2526500002},{"$f":"CashFlow!L61","v":8440958.2526500002},{"$f":"[1]CashFlow!P61","v":8854496.0689089},{"$f":"CashFlow!N61","v":8854496.0689089},{"$f":"[1]CashFlow!R61","v":8780886.7040708959},{"$f":"CashFlow!P61","v":8780886.7040708959},{"$f":"[1]CashFlow!S61","v":9177216.6621548273},{"$f":"CashFlow!R61","v":9177216.6621548273}]
[{"$f":"CashFlow!A62","v":1},{"$f":"CashFlow!B62","v":"CF2112"},null,null,null,"Social contributions",null,0,0,0,0,0,0,null,null,null,{"$f":"[1]CashFlow!J62","v":1274391.87396},{"$f":"CashFlow!I62","v":1274391.87396},{"$f":"[1]CashFlow!L62","v":1367714.9989999998},{"$f":"CashFlow!J62","v":1367714.9989999998},{"$f":"[1]CashFlow!N62","v":1429182.30161},{"$f":"CashFlow!L62","v":1429182.30161},{"$f":"[1]CashFlow!P62","v":1485194.5336018228},{"$f":"CashFlow!N62","v":1485194.5336018228},{"$f":"[1]CashFlow!R62","v":1552770.8848807062},{"$f":"CashFlow!P62","v":1552770.8848807062},{"$f":"[1]CashFlow!S62","v":1622956.128877314},{"$f":"CashFlow!R62","v":1622956.128877314}]
[{"$f":"CashFlow!A63","v":1},{"$f":"CashFlow!B63","v":"CF212"},null,null,null,"Goods and services",null,0,0,0,0,0,0,null,null,null,{"$f":"SUM(Q64:Q73,Q77:Q80,Q92,Q94:Q116)","v":3049297.6769499998},{"$f":"SUM(R64:R73,R77:R80,R92,R94:R116)","v":3049297.6769499998},{"$f":"SUM(S64:S73,S77:S80,S92,S94:S116)","v":3443771.1615300006},3443771.1615300006,3456748.5283260006,3456748.5283260006,4462389.7414249722,4462389.7414249722,4628321.7450027922,4628321.7450027922,4934599.6707023643,4934599.6707023643]
[{"$f":"CashFlow!A64","v":1},{"$f":"CashFlow!B64","v":"CF2121"},null,null,null,"Administrative fees",null,0,0,0,0,0,0,null,null,null,{"$f":"[1]CashFlow!J64","v":34223.349349999997},{"$f":"CashFlow!I64","v":34223.349349999997},{"$f":"[1]CashFlow!L64","v":36330.699570000004},{"$f":"CashFlow!J64","v":36330.699570000004},{"$f":"[1]CashFlow!N64","v":35964.195030000003},{"$f":"CashFlow!L64","v":35964.195030000003},{"$f":"[1]CashFlow!P64","v":37622.144420883},{"$f":"CashFlow!N64","v":37622.144420883},{"$f":"[1]CashFlow!R64","v":39333.951992033173},{"$f":"CashFlow!P64","v":39333.951992033173},{"$f":"[1]CashFlow!S64","v":41111.84662207307},{"$f":"CashFlow!R64","v":41111.84662207307}]
[{"$f":"CashFlow!A65","v":1},{"$f":"CashFlow!B65","v":"CF2122"},null,null,null,"Advertising",null,0,0,0,0,0,0,null,null,null,{"$f":"[1]CashFlow!J65","v":60120.07763},{"$f":"CashFlow!I65","v":60120.07763},{"$f":"[1]CashFlow!L65","v":50801.537519999998},{"$f":"CashFlow!J65","v":50801.537519999998},{"$f":"[1]CashFlow!N65","v":66441.632850000009},{"$f":"CashFlow!L65","v":66441.632850000009},{"$f":"[1]CashFlow!P65","v":69312.670434298852},{"$f":"CashFlow!N65","v":69312.670434298852},{"$f":"[1]CashFlow!R65","v":72403.027931423218},{"$f":"CashFlow!P65","v":72403.027931423218},{"$f":"[1]CashFlow!S65","v":75618.11360901568},{"$f":"CashFlow!R65","v":75618.11360901568}]
[{"$f":"CashFlow!A66","v":1},{"$f":"CashFlow!B66","v":"CF2124"},null,null,null,"Minor assets",null,0,0,0,0,0,0,null,null,null,{"$f":"[1]CashFlow!J66","v":7792.2554999999993},{"$f":"CashFlow!I66","v":7792.2554999999993},{"$f":"[1]CashFlow!L66","v":7727.7070399999993},{"$f":"CashFlow!J66","v":7727.7070399999993},{"$f":"[1]CashFlow!N66","v":14357.42971},{"$f":"CashFlow!L66","v":14357.42971},{"$f":"[1]CashFlow!P66","v":15045.574229464435},{"$f":"CashFlow!N66","v":15045.574229464435},{"$f":"[1]CashFlow!R66","v":15767.424414896666},{"$f":"CashFlow!P66","v":15767.424414896666},{"$f":"[1]CashFlow!S66","v":16523.954104530731},{"$f":"CashFlow!R66","v":16523.954104530731}]
[{"$f":"CashFlow!A67","v":1},{"$f":"CashFlow!B67","v":"CF2125"},null,null,null,"Audit costs: External",null,0,0,0,0,0,0,null,null,null,{"$f":"[1]CashFlow!J67","v":37936.371360000005},{"$f":"CashFlow!I67","v":37936.371360000005},{"$f":"[1]CashFlow!L67","v":42694.749739999999},{"$f":"CashFlow!J67","v":42694.749739999999},{"$f":"[1]CashFlow!N67","v":37575.902150000002},{"$f":"CashFlow!L67","v":37575.902150000002},{"$f":"[1]CashFlow!P67","v":39308.151239115003},{"$f":"CashFlow!N67","v":39308.151239115003},{"$f":"[1]CashFlow!R67","v":41096.672120494739},{"$f":"CashFlow!P67","v":41096.672120494739},{"$f":"[1]CashFlow!S67","v":42954.241700341096},{"$f":"CashFlow!R67","v":42954.241700341096}]
[{"$f":"CashFlow!A68","v":1},{"$f":"CashFlow!B68","v":"CF2128"},null,null,null,"Bursaries: Employees",null,0,0,0,0,0,0,null,null,null,{"$f":"[1]CashFlow!J68","v":10101.343350000001},{"$f":"CashFlow!I68","v":10101.343350000001},{"$f":"[1]CashFlow!L68","v":34984.679810000001},{"$f":"CashFlow!J68","v":34984.679810000001},{"$f":"[1]CashFlow!N68","v":35270.328699999998},{"$f":"CashFlow!L68","v":35270.328699999998},{"$f":"[1]CashFlow!P68","v":36896.290853070008},{"$f":"CashFlow!N68","v":36896.290853070008},{"$f":"[1]CashFlow!R68","v":38575.072086884698},{"$f":"CashFlow!P68","v":38575.072086884698},{"$f":"[1]CashFlow!S68","v":40318.665345211877},{"$f":"CashFlow!R68","v":40318.665345211877}]
[{"$f":"CashFlow!A69","v":1},{"$f":"CashFlow!B69","v":"CF2129"},null,null,null,"Catering: Internal activities",null,0,0,0,0,0,0,null,null,null,{"$f":"[1]CashFlow!J69","v":1254.70074},{"$f":"CashFlow!I69","v":1254.70074},{"$f":"[1]CashFlow!L69","v":2524.1577699999998},{"$f":"CashFlow!J69","v":2524.1577699999998},{"$f":"[1]CashFlow!N69","v":1398.6222799999998},{"$f":"CashFlow!L69","v":1398.6222799999998},{"$f":"[1]CashFlow!P69","v":1456.0960254344959},{"$f":"CashFlow!N69","v":1456.0960254344959},{"$f":"[1]CashFlow!R69","v":1520.0362182536787},{"$f":"CashFlow!P69","v":1520.0362182536787},{"$f":"[1]CashFlow!S69","v":1586.6426865072376},{"$f":"CashFlow!R69","v":1586.6426865072376}]
[{"$f":"CashFlow!A70","v":1},{"$f":"CashFlow!B70","v":"CF2130"},null,null,null,"Communication (G&S)",null,0,0,0,0,0,0,null,null,null,{"$f":"[1]CashFlow!J70","v":296189.58912000002},{"$f":"CashFlow!I70","v":296189.58912000002},{"$f":"[1]CashFlow!L70","v":316499.08560999995},{"$f":"CashFlow!J70","v":316499.08560999995},{"$f":"[1]CashFlow!N70","v":362611.67121},{"$f":"CashFlow!L70","v":362611.67121},{"$f":"[1]CashFlow!P70","v":398771.40397436102},{"$f":"CashFlow!N70","v":398771.40397436102},{"$f":"[1]CashFlow!R70","v":438541.25269858446},{"$f":"CashFlow!P70","v":438541.25269858446},{"$f":"[1]CashFlow!S70","v":482282.58705559804},{"$f":"CashFlow!R70","v":482282.58705559804}]
[{"$f":"CashFlow!A71","v":1},{"$f":"CashFlow!B71","v":"CF2131"},null,null,null,"Computer services",null,0,0,0,0,0,0,null,null,null,{"$f":"[1]CashFlow!J71","v":773499.2121},{"$f":"CashFlow!I71","v":773499.2121},{"$f":"[1]CashFlow!L71","v":892766.95354000002},{"$f":"CashFlow!J71","v":892766.95354000002},{"$f":"[1]CashFlow!N71","v":675556.56710600038},{"$f":"CashFlow!L71","v":675556.56710600038},{"$f":"[1]CashFlow!P71","v":1009067.0339082894},{"$f":"CashFlow!N71","v":1009067.0339082894},{"$f":"[1]CashFlow!R71","v":1279228.4615294365},{"$f":"CashFlow!P71","v":1279228.4615294365},{"$f":"[1]CashFlow!S71","v":1330250.0953951539},{"$f":"CashFlow!R71","v":1330250.0953951539}]
[{"$f":"CashFlow!A72","v":1},{"$f":"CashFlow!B72","v":"CF2132"},null,null,null,"Consultants: Business and advisory services",null,0,0,0,0,0,0,null,null,null,{"$f":"[1]CashFlow!J72","v":59217.277859999995},{"$f":"CashFlow!I72","v":59217.277859999995},{"$f":"[1]CashFlow!L72","v":213084.64376000001},{"$f":"CashFlow!J72","v":213084.64376000001},{"$f":"[1]CashFlow!N72","v":287769.64530000003},{"$f":"CashFlow!L72","v":287769.64530000003},{"$f":"[1]CashFlow!P72","v":256588.02818357886},{"$f":"CashFlow!N72","v":256588.02818357886},{"$f":"[1]CashFlow!R72","v":281445.10436765302},{"$f":"CashFlow!P72","v":281445.10436765302},{"$f":"[1]CashFlow!S72","v":308836.91959193617},{"$f":"CashFlow!R72","v":308836.91959193617}]
[{"$f":"CashFlow!A73","v":1},{"$f":"CashFlow!B73","v":"CF2179"},null,null,null,"Infrastructure and planning services",null,0,0,0,0,0,0,null,null,null,{"$f":"SUM(Q74:Q76)","v":0},{"$f":"SUM(R74:R76)","v":0},{"$f":"SUM(S74:S76)","v":0},0,0,0,0,0,0,0,0,0]
[{"$f":"CashFlow!A74","v":1},{"$f":"CashFlow!B74","v":"CF21791"},null,null,null,"Maintenance and repairs: Buildings: Consultants",null,0,0,0,0,0,0,null,null,null,{"$f":"[1]CashFlow!J74","v":0},{"$f":"CashFlow!I74","v":0},{"$f":"[1]CashFlow!L74","v":0},{"$f":"CashFlow!J74","v":0},{"$f":"[1]CashFlow!N74","v":0},{"$f":"CashFlow!L74","v":0},{"$f":"[1]CashFlow!P74","v":0},{"$f":"CashFlow!N74","v":0},{"$f":"[1]CashFlow!R74","v":0},{"$f":"CashFlow!P74","v":0},{"$f":"[1]CashFlow!S74","v":0},{"$f":"CashFlow!R74","v":0}]
[{"$f":"CashFlow!A75","v":1},{"$f":"CashFlow!B75","v":"CF21792"},null,null,null,"Maintenance and repairs: Other fixed structures: Consultants",null,{"$f":"R75-Q75","v":0},{"$f":"T75-S75","v":0},{"$f":"V75-U75","v":0},{"$f":"X75-W75","v":0},{"$f":"Z75-Y75","v":0},{"$f":"AB75-AA75","v":0},null,null,null,{"$f":"[1]CashFlow!J75","v":0},{"$f":"CashFlow!I75","v":0},{"$f":"[1]CashFlow!L75","v":0},{"$f":"CashFlow!J75","v":0},{"$f":"[1]CashFlow!N75","v":0},{"$f":"CashFlow!L75","v":0},{"$f":"[1]CashFlow!P75","v":0},{"$f":"CashFlow!N75","v":0},{"$f":"[1]CashFlow!R75","v":0},{"$f":"CashFlow!P75","v":0},{"$f":"[1]CashFlow!S75","v":0},{"$f":"CashFlow!R75","v":0}]
[{"$f":"CashFlow!A76","v":1},{"$f":"CashFlow!B76","v":"CF21793"},null,null,null,"Other",null,0,0,0,0,0,0,null,null,null,{"$f":"[1]CashFlow!J76","v":0},{"$f":"CashFlow!I76","v":0},{"$f":"[1]CashFlow!L76","v":0},{"$f":"CashFlow!J76","v":0},{"$f":"[1]CashFlow!N76","v":0},{"$f":"CashFlow!L76","v":0},{"$f":"[1]CashFlow!P76","v":0},{"$f":"CashFlow!N76","v":0},{"$f":"[1]CashFlow!R76","v":0},{"$f":"CashFlow!P76","v":0},{"$f":"[1]CashFlow!S76","v":0},{"$f":"CashFlow!R76","v":0}]
[{"$f":"CashFlow!A77","v":1},{"$f":"CashFlow!B77","v":"CF2163"},null,null,null,"Laboratory services",null,0,0,0,0,0,0,null,null,null,{"$f":"[1]CashFlow!J77","v":0},{"$f":"CashFlow!I77","v":0},{"$f":"[1]CashFlow!L77","v":0},{"$f":"CashFlow!J77","v":0},{"$f":"[1]CashFlow!N77","v":0},{"$f":"CashFlow!L77","v":0},{"$f":"[1]CashFlow!P77","v":0},{"$f":"CashFlow!N77","v":0},{"$f":"[1]CashFlow!R77","v":0},{"$f":"CashFlow!P77","v":0},{"$f":"[1]CashFlow!S77","v":0},{"$f":"CashFlow!R77","v":0}]
[{"$f":"CashFlow!A78","v":1},{"$f":"CashFlow!B78","v":"CF2137"},null,null,null,"Legal services (G&S)",null,0,0,0,0,0,0,null,null,null,{"$f":"[1]CashFlow!J78","v":256185.80833},{"$f":"CashFlow!I78","v":256185.80833},{"$f":"[1]CashFlow!L78","v":273000.36120000004},{"$f":"CashFlow!J78","v":273000.36120000004},{"$f":"[1]CashFlow!N78","v":268873.39643999998},{"$f":"CashFlow!L78","v":268873.39643999998},{"$f":"[1]CashFlow!P78","v":275957.40957315301},{"$f":"CashFlow!N78","v":275957.40957315301},{"$f":"[1]CashFlow!R78","v":288513.47170873143},{"$f":"CashFlow!P78","v":288513.47170873143},{"$f":"[1]CashFlow!S78","v":301554.28062996612},{"$f":"CashFlow!R78","v":301554.28062996612}]
[{"$f":"CashFlow!A79","v":1},{"$f":"CashFlow!B79","v":"CF2164"},null,null,null,"Science and technological services",null,0,0,0,0,0,0,null,null,null,{"$f":"[1]CashFlow!J79","v":0},{"$f":"CashFlow!I79","v":0},{"$f":"[1]CashFlow!L79","v":0},{"$f":"CashFlow!J79","v":0},{"$f":"[1]CashFlow!N79","v":0},{"$f":"CashFlow!L79","v":0},{"$f":"[1]CashFlow!P79","v":0},{"$f":"CashFlow!N79","v":0},{"$f":"[1]CashFlow!R79","v":0},{"$f":"CashFlow!P79","v":0},{"$f":"[1]CashFlow!S79","v":0},{"$f":"CashFlow!R79","v":0}]
[{"$f":"CashFlow!A80","v":1},{"$f":"CashFlow!B80","v":"CF2133"},null,null,null,"Contractors",null,0,0,0,0,0,0,null,null,null,{"$f":"SUM(Q81:Q85,Q91)","v":117892.97066000001},{"$f":"SUM(R81:R85,R91)","v":117892.97066000001},{"$f":"SUM(S81:S85,S91)","v":87330.748699999996},87330.748699999996,115507.73696999998,115507.73696999998,115293.10304672028,115293.10304672028,120374.26806680278,120374.26806680278,126134.93922718696,126134.93922718696]
[{"$f":"CashFlow!A81","v":1},{"$f":"CashFlow!B81","v":"CF21331"},null,null,null,"Maintenance and repairs of other fixed structures",null,0,0,0,0,0,0,null,null,null,{"$f":"[1]CashFlow!J81","v":117892.97066000001},{"$f":"CashFlow!I81","v":117892.97066000001},{"$f":"[1]CashFlow!L81","v":87330.748699999996},{"$f":"CashFlow!J81","v":87330.748699999996},{"$f":"[1]CashFlow!N81","v":115507.73696999998},{"$f":"CashFlow!L81","v":115507.73696999998},{"$f":"[1]CashFlow!P81","v":115293.10304672028},{"$f":"CashFlow!N81","v":115293.10304672028},{"$f":"[1]CashFlow!R81","v":120374.26806680278},{"$f":"CashFlow!P81","v":120374.26806680278},{"$f":"[1]CashFlow!S81","v":126134.93922718696},{"$f":"CashFlow!R81","v":126134.93922718696}]
[{"$f":"CashFlow!A82","v":1},{"$f":"CashFlow!B82","v":"CF21332"},null,null,null,"Maintenance and repairs of other machinery and equipment",null,0,0,0,0,0,0,null,null,null,{"$f":"[1]CashFlow!J82","v":0},{"$f":"CashFlow!I82","v":0},{"$f":"[1]CashFlow!L82","v":0},{"$f":"CashFlow!J82","v":0},{"$f":"[1]CashFlow!N82","v":0},{"$f":"CashFlow!L82","v":0},{"$f":"[1]CashFlow!P82","v":0},{"$f":"CashFlow!N82","v":0},{"$f":"[1]CashFlow!R82","v":0},{"$f":"CashFlow!P82","v":0},{"$f":"[1]CashFlow!S82","v":0},{"$f":"CashFlow!R82","v":0}]
[{"$f":"CashFlow!A83","v":1},{"$f":"CashFlow!B83","v":"CF21333"},null,null,null,"Maintenance and repairs of heritage buildings",null,0,0,0,0,0,0,null,null,null,{"$f":"[1]CashFlow!J83","v":0},{"$f":"CashFlow!I83","v":0},{"$f":"[1]CashFlow!L83","v":0},{"$f":"CashFlow!J83","v":0},{"$f":"[1]CashFlow!N83","v":0},{"$f":"CashFlow!L83","v":0},{"$f":"[1]CashFlow!P83","v":0},{"$f":"CashFlow!N83","v":0},{"$f":"[1]CashFlow!R83","v":0},{"$f":"CashFlow!P83","v":0},{"$f":"[1]CashFlow!S83","v":0},{"$f":"CashFlow!R83","v":0}]
[{"$f":"CashFlow!A84","v":1},{"$f":"CashFlow!B84","v":"CF21334"},null,null,null,"Maintenance and repairs of other heritage fixed structures",null,0,0,0,0,0,0,null,null,null,{"$f":"[1]CashFlow!J84","v":0},{"$f":"CashFlow!I84","v":0},{"$f":"[1]CashFlow!L84","v":0},{"$f":"CashFlow!J84","v":0},{"$f":"[1]CashFlow!N84","v":0},{"$f":"CashFlow!L84","v":0},{"$f":"[1]CashFlow!P84","v":0},{"$f":"CashFlow!N84","v":0},{"$f":"[1]CashFlow!R84","v":0},{"$f":"CashFlow!P84","v":0},{"$f":"[1]CashFlow!S84","v":0},{"$f":"CashFlow!R84","v":0}]
[{"$f":"CashFlow!A85","v":5},{"$f":"CashFlow!B85","v":"CF21335"},null,null,null,"South african social security agency payment contractors",null,0,0,0,0,0,0,null,null,null,{"$f":"SUM(Q86:Q90)","v":0},{"$f":"SUM(R86:R90)","v":0},{"$f":"SUM(S86:S90)","v":0},0,0,0,0,0,0,0,0,0]
[{"$f":"CashFlow!A86","v":5},{"$f":"CashFlow!B86","v":"CF213351"},null,null,null,"SASSA Admin fees",null,0,0,0,0,0,0,null,null,null,{"$f":"[1]CashFlow!J86","v":0},{"$f":"CashFlow!I86","v":0},{"$f":"[1]CashFlow!L86","v":0},{"$f":"CashFlow!J86","v":0},{"$f":"[1]CashFlow!N86","v":0},{"$f":"CashFlow!L86","v":0},{"$f":"[1]CashFlow!P86","v":0},{"$f":"CashFlow!N86","v":0},{"$f":"[1]CashFlow!R86","v":0},{"$f":"CashFlow!P86","v":0},{"$f":"[1]CashFlow!S86","v":0},{"$f":"CashFlow!R86","v":0}]
[{"$f":"CashFlow!A87","v":5},{"$f":"CashFlow!B87","v":"CF213352"},null,null,null,"SASSA Bankcard fees",null,0,0,0,0,0,0,null,null,null,{"$f":"[1]CashFlow!J87","v":0},{"$f":"CashFlow!I87","v":0},{"$f":"[1]CashFlow!L87","v":0},{"$f":"CashFlow!J87","v":0},{"$f":"[1]CashFlow!N87","v":0},{"$f":"CashFlow!L87","v":0},{"$f":"[1]CashFlow!P87","v":0},{"$f":"CashFlow!N87","v":0},{"$f":"[1]CashFlow!R87","v":0},{"$f":"CashFlow!P87","v":0},{"$f":"[1]CashFlow!S87","v":0},{"$f":"CashFlow!R87","v":0}]
[{"$f":"CashFlow!A88","v":5},{"$f":"CashFlow!B88","v":"CF213353"},null,null,null,"SASSA registration fees",null,0,0,0,0,0,0,null,null,null,{"$f":"[1]CashFlow!J88","v":0},{"$f":"CashFlow!I88","v":0},{"$f":"[1]CashFlow!L88","v":0},{"$f":"CashFlow!J88","v":0},{"$f":"[1]CashFlow!N88","v":0},{"$f":"CashFlow!L88","v":0},{"$f":"[1]CashFlow!P88","v":0},{"$f":"CashFlow!N88","v":0},{"$f":"[1]CashFlow!R88","v":0},{"$f":"CashFlow!P88","v":0},{"$f":"[1]CashFlow!S88","v":0},{"$f":"CashFlow!R88","v":0}]
[{"$f":"CashFlow!A89","v":5},{"$f":"CashFlow!B89","v":"CF213354"},null,null,null,"SASSA beneficiary fees",null,0,0,0,0,0,0,null,null,null,{"$f":"[1]CashFlow!J89","v":0},{"$f":"CashFlow!I89","v":0},{"$f":"[1]CashFlow!L89","v":0},{"$f":"CashFlow!J89","v":0},{"$f":"[1]CashFlow!N89","v":0},{"$f":"CashFlow!L89","v":0},{"$f":"[1]CashFlow!P89","v":0},{"$f":"CashFlow!N89","v":0},{"$f":"[1]CashFlow!R89","v":0},{"$f":"CashFlow!P89","v":0},{"$f":"[1]CashFlow!S89","v":0},{"$f":"CashFlow!R89","v":0}]
[{"$f":"CashFlow!A90","v":5},{"$f":"CashFlow!B90","v":"CF213355"},null,null,null,"SASSA help desk fees",null,0,0,0,0,0,0,null,null,null,{"$f":"[1]CashFlow!J90","v":0},{"$f":"CashFlow!I90","v":0},{"$f":"[1]CashFlow!L90","v":0},{"$f":"CashFlow!J90","v":0},{"$f":"[1]CashFlow!N90","v":0},{"$f":"CashFlow!L90","v":0},{"$f":"[1]CashFlow!P90","v":0},{"$f":"CashFlow!N90","v":0},{"$f":"[1]CashFlow!R90","v":0},{"$f":"CashFlow!P90","v":0},{"$f":"[1]CashFlow!S90","v":0},{"$f":"CashFlow!R90","v":0}]
[{"$f":"CashFlow!A91","v":1},{"$f":"CashFlow!B91","v":"CF21336"},null,null,null,"Other",null,0,0,0,0,0,0,null,null,null,{"$f":"[1]CashFlow!J91","v":0},{"$f":"CashFlow!I91","v":0},{"$f":"[1]CashFlow!L91","v":0},{"$f":"CashFlow!J91","v":0},{"$f":"[1]CashFlow!N91","v":0},{"$f":"CashFlow!L91","v":0},{"$f":"[1]CashFlow!P91","v":0},{"$f":"CashFlow!N91","v":0},{"$f":"[1]CashFlow!R91","v":0},{"$f":"CashFlow!P91","v":0},{"$f":"[1]CashFlow!S91","v":0},{"$f":"CashFlow!R91","v":0}]
[{"$f":"CashFlow!A92","v":1},{"$f":"CashFlow!B92","v":"CF2123"},null,null,null,"Agency and support/outsourced services",null,0,0,0,0,0,0,null,null,null,{"$f":"[1]CashFlow!J92","v":209890.70973999996},{"$f":"CashFlow!I92","v":209890.70973999996},{"$f":"[1]CashFlow!L92","v":260305.94922999997},{"$f":"CashFlow!J92","v":260305.94922999997},{"$f":"[1]CashFlow!N92","v":260509.54634},{"$f":"CashFlow!L92","v":260509.54634},{"$f":"[1]CashFlow!P92","v":504155.05577781104},{"$f":"CashFlow!N92","v":504155.05577781104},{"$f":"[1]CashFlow!R92","v":376610.44671360793},{"$f":"CashFlow!P92","v":376610.44671360793},{"$f":"[1]CashFlow!S92","v":415828.23588798009},{"$f":"CashFlow!R92","v":415828.23588798009}]
[{"$f":"CashFlow!A93","v":5},{"$f":"CashFlow!B93","v":"CF21231"},null,null,null,"     Of Which: Medical assessments",null,null,null,null,null,null,null,null,null,null,{"$f":"[1]CashFlow!L93","v":5.4775999999999998},{"$f":"CashFlow!I93","v":0},{"$f":"[1]CashFlow!N93","v":34},{"$f":"CashFlow!J93","v":5.4775999999999998},{"$f":"[1]CashFlow!P93","v":35.567399999999999},{"$f":"CashFlow!L93","v":34},{"$f":"[1]CashFlow!R93","v":37.1857167},{"$f":"CashFlow!N93","v":35.567399999999999},{"$f":"[1]CashFlow!T93","v":0},{"$f":"CashFlow!P93","v":37.1857167},{"$f":"[1]CashFlow!U93","v":0},{"$f":"CashFlow!R93","v":38.866511094839993}]
[{"$f":"CashFlow!A94","v":1},{"$f":"CashFlow!B94","v":"CF2134"},null,null,null,"Entertainment",null,{"$f":"R94-Q94","v":0},{"$f":"T94-S94","v":0},{"$f":"V94-U94","v":0},{"$f":"X94-W94","v":0},{"$f":"Z94-Y94","v":0},{"$f":"AB94-AA94","v":0},null,null,null,{"$f":"[1]CashFlow!J94","v":0.28000000000000003},{"$f":"CashFlow!I94","v":0.28000000000000003},{"$f":"[1]CashFlow!L94","v":0},{"$f":"CashFlow!J94","v":0},{"$f":"[1]CashFlow!N94","v":0},{"$f":"CashFlow!L94","v":0},{"$f":"[1]CashFlow!P94","v":0},{"$f":"CashFlow!N94","v":0},{"$f":"[1]CashFlow!R94","v":0},{"$f":"CashFlow!P94","v":0},{"$f":"[1]CashFlow!S94","v":0},{"$f":"CashFlow!R94","v":0}]
[{"$f":"CashFlow!A95","v":1},{"$f":"CashFlow!B95","v":"CF2165"},null,null,null,"Fleet services (including government motor transport)",null,0,0,0,0,0,0,null,null,null,{"$f":"[1]CashFlow!J95","v":0},{"$f":"CashFlow!I95","v":0},{"$f":"[1]CashFlow!L95","v":0},{"$f":"CashFlow!J95","v":0},{"$f":"[1]CashFlow!N95","v":0},{"$f":"CashFlow!L95","v":0},{"$f":"[1]CashFlow!P95","v":0},{"$f":"CashFlow!N95","v":0},{"$f":"[1]CashFlow!R95","v":0},{"$f":"CashFlow!P95","v":0},{"$f":"[1]CashFlow!S95","v":0},{"$f":"CashFlow!R95","v":0}]
[{"$f":"CashFlow!A96","v":1},{"$f":"CashFlow!B96","v":"CF2166"},null,null,null,"Housing",null,0,0,0,0,0,0,null,null,null,{"$f":"[1]CashFlow!J96","v":0},{"$f":"CashFlow!I96","v":0},{"$f":"[1]CashFlow!L96","v":0},{"$f":"CashFlow!J96","v":0},{"$f":"[1]CashFlow!N96","v":0},{"$f":"CashFlow!L96","v":0},{"$f":"[1]CashFlow!P96","v":0},{"$f":"CashFlow!N96","v":0},{"$f":"[1]CashFlow!R96","v":0},{"$f":"CashFlow!P96","v":0},{"$f":"[1]CashFlow!S96","v":0},{"$f":"CashFlow!R96","v":0}]
[{"$f":"CashFlow!A97","v":1},{"$f":"CashFlow!B97","v":"CF2167"},null,null,null,"Inventory: Clothing material and accessories",null,0,0,0,0,0,0,null,null,null,{"$f":"[1]CashFlow!J97","v":0},{"$f":"CashFlow!I97","v":0},{"$f":"[1]CashFlow!L97","v":0},{"$f":"CashFlow!J97","v":0},{"$f":"[1]CashFlow!N97","v":0},{"$f":"CashFlow!L97","v":0},{"$f":"[1]CashFlow!P97","v":0},{"$f":"CashFlow!N97","v":0},{"$f":"[1]CashFlow!R97","v":0},{"$f":"CashFlow!P97","v":0},{"$f":"[1]CashFlow!S97","v":0},{"$f":"CashFlow!R97","v":0}]
[{"$f":"CashFlow!A98","v":1},{"$f":"CashFlow!B98","v":"CF2168"},null,null,null,"Inventory: Farming supplies",null,0,0,0,0,0,0,null,null,null,{"$f":"[1]CashFlow!J98","v":0},{"$f":"CashFlow!I98","v":0},{"$f":"[1]CashFlow!L98","v":0},{"$f":"CashFlow!J98","v":0},{"$f":"[1]CashFlow!N98","v":0},{"$f":"CashFlow!L98","v":0},{"$f":"[1]CashFlow!P98","v":0},{"$f":"CashFlow!N98","v":0},{"$f":"[1]CashFlow!R98","v":0},{"$f":"CashFlow!P98","v":0},{"$f":"[1]CashFlow!S98","v":0},{"$f":"CashFlow!R98","v":0}]
[{"$f":"CashFlow!A99","v":1},{"$f":"CashFlow!B99","v":"CF2169"},null,null,null,"Inventory: Food and food supplies",null,0,0,0,0,0,0,null,null,null,{"$f":"[1]CashFlow!J99","v":0},{"$f":"CashFlow!I99","v":0},{"$f":"[1]CashFlow!L99","v":0},{"$f":"CashFlow!J99","v":0},{"$f":"[1]CashFlow!N99","v":0},{"$f":"CashFlow!L99","v":0},{"$f":"[1]CashFlow!P99","v":0},{"$f":"CashFlow!N99","v":0},{"$f":"[1]CashFlow!R99","v":0},{"$f":"CashFlow!P99","v":0},{"$f":"[1]CashFlow!S99","v":0},{"$f":"CashFlow!R99","v":0}]
[{"$f":"CashFlow!A100","v":1},{"$f":"CashFlow!B100","v":"CF2170"},null,null,null,"Inventory: Fuel, oil and gas",null,0,0,0,0,0,0,null,null,null,{"$f":"[1]CashFlow!J100","v":0},{"$f":"CashFlow!I100","v":0},{"$f":"[1]CashFlow!L100","v":0},{"$f":"CashFlow!J100","v":0},{"$f":"[1]CashFlow!N100","v":0},{"$f":"CashFlow!L100","v":0},{"$f":"[1]CashFlow!P100","v":0},{"$f":"CashFlow!N100","v":0},{"$f":"[1]CashFlow!R100","v":0},{"$f":"CashFlow!P100","v":0},{"$f":"[1]CashFlow!S100","v":0},{"$f":"CashFlow!R100","v":0}]
[{"$f":"CashFlow!A101","v":1},{"$f":"CashFlow!B101","v":"CF2171"},null,null,null,"Inventory: Learner and teacher support material",null,0,0,0,0,0,0,null,null,null,{"$f":"[1]CashFlow!J101","v":0},{"$f":"CashFlow!I101","v":0},{"$f":"[1]CashFlow!L101","v":0},{"$f":"CashFlow!J101","v":0},{"$f":"[1]CashFlow!N101","v":0},{"$f":"CashFlow!L101","v":0},{"$f":"[1]CashFlow!P101","v":0},{"$f":"CashFlow!N101","v":0},{"$f":"[1]CashFlow!R101","v":0},{"$f":"CashFlow!P101","v":0},{"$f":"[1]CashFlow!S101","v":0},{"$f":"CashFlow!R101","v":0}]
[{"$f":"CashFlow!A102","v":1},{"$f":"CashFlow!B102","v":"CF2135"},null,null,null,"Inventory: Materials and supplies",null,0,0,0,0,0,0,null,null,null,{"$f":"[1]CashFlow!J102","v":0},{"$f":"CashFlow!I102","v":0},{"$f":"[1]CashFlow!L102","v":0},{"$f":"CashFlow!J102","v":0},{"$f":"[1]CashFlow!N102","v":0},{"$f":"CashFlow!L102","v":0},{"$f":"[1]CashFlow!P102","v":0},{"$f":"CashFlow!N102","v":0},{"$f":"[1]CashFlow!R102","v":0},{"$f":"CashFlow!P102","v":0},{"$f":"[1]CashFlow!S102","v":0},{"$f":"CashFlow!R102","v":0}]
[{"$f":"CashFlow!A103","v":1},{"$f":"CashFlow!B103","v":"CF2172"},null,null,null,"Inventory: Medical supplies",null,0,0,0,0,0,0,null,null,null,{"$f":"[1]CashFlow!J103","v":0},{"$f":"CashFlow!I103","v":0},{"$f":"[1]CashFlow!L103","v":0},{"$f":"CashFlow!J103","v":0},{"$f":"[1]CashFlow!N103","v":0},{"$f":"CashFlow!L103","v":0},{"$f":"[1]CashFlow!P103","v":0},{"$f":"CashFlow!N103","v":0},{"$f":"[1]CashFlow!R103","v":0},{"$f":"CashFlow!P103","v":0},{"$f":"[1]CashFlow!S103","v":0},{"$f":"CashFlow!R103","v":0}]
[{"$f":"CashFlow!A104","v":1},{"$f":"CashFlow!B104","v":"CF2173"},null,null,null,"Inventory: Medicine",null,0,0,0,0,0,0,null,null,null,{"$f":"[1]CashFlow!J104","v":0},{"$f":"CashFlow!I104","v":0},{"$f":"[1]CashFlow!L104","v":0},{"$f":"CashFlow!J104","v":0},{"$f":"[1]CashFlow!N104","v":0},{"$f":"CashFlow!L104","v":0},{"$f":"[1]CashFlow!P104","v":0},{"$f":"CashFlow!N104","v":0},{"$f":"[1]CashFlow!R104","v":0},{"$f":"CashFlow!P104","v":0},{"$f":"[1]CashFlow!S104","v":0},{"$f":"CashFlow!R104","v":0}]
[{"$f":"CashFlow!A105","v":1},{"$f":"CashFlow!B105","v":"CF2174"},null,null,null,"Medsas inventory interface",null,0,0,0,0,0,0,null,null,null,{"$f":"[1]CashFlow!J105","v":0},{"$f":"CashFlow!I105","v":0},{"$f":"[1]CashFlow!L105","v":0},{"$f":"CashFlow!J105","v":0},{"$f":"[1]CashFlow!N105","v":0},{"$f":"CashFlow!L105","v":0},{"$f":"[1]CashFlow!P105","v":0},{"$f":"CashFlow!N105","v":0},{"$f":"[1]CashFlow!R105","v":0},{"$f":"CashFlow!P105","v":0},{"$f":"[1]CashFlow!S105","v":0},{"$f":"CashFlow!R105","v":0}]
[{"$f":"CashFlow!A106","v":1},{"$f":"CashFlow!B106","v":"CF2175"},null,null,null,"Inventory: Other supplies",null,0,0,0,0,0,0,null,null,null,{"$f":"[1]CashFlow!J106","v":18101.70767},{"$f":"CashFlow!I106","v":18101.70767},{"$f":"[1]CashFlow!L106","v":11485.853569999999},{"$f":"CashFlow!J106","v":11485.853569999999},{"$f":"[1]CashFlow!N106","v":32813.155400000003},{"$f":"CashFlow!L106","v":32813.155400000003},{"$f":"[1]CashFlow!P106","v":34325.841863940004},{"$f":"CashFlow!N106","v":34325.841863940004},{"$f":"[1]CashFlow!R106","v":35887.667668749273},{"$f":"CashFlow!P106","v":35887.667668749273},{"$f":"[1]CashFlow!S106","v":37509.790247376739},{"$f":"CashFlow!R106","v":37509.790247376739}]
[{"$f":"CashFlow!A107","v":1},{"$f":"CashFlow!B107","v":"CF2176"},null,null,null,"Consumable supplies",null,0,0,0,0,0,0,null,null,null,{"$f":"[1]CashFlow!J107","v":14786.768940000002},{"$f":"CashFlow!I107","v":14786.768940000002},{"$f":"[1]CashFlow!L107","v":12184.75368},{"$f":"CashFlow!J107","v":12184.75368},{"$f":"[1]CashFlow!N107","v":18574.455190000001},{"$f":"CashFlow!L107","v":18574.455190000001},{"$f":"[1]CashFlow!P107","v":47404.925685535454},{"$f":"CashFlow!N107","v":47404.925685535454},{"$f":"[1]CashFlow!R107","v":20279.327193922596},{"$f":"CashFlow!P107","v":20279.327193922596},{"$f":"[1]CashFlow!S107","v":21188.215311922915},{"$f":"CashFlow!R107","v":21188.215311922915}]
[{"$f":"CashFlow!A108","v":1},{"$f":"CashFlow!B108","v":"CF2139"},null,null,null,"Consumables: Stationery, printing and office supplies",null,0,0,0,0,0,0,null,null,null,{"$f":"[1]CashFlow!J108","v":58094.057959999998},{"$f":"CashFlow!I108","v":58094.057959999998},{"$f":"[1]CashFlow!L108","v":59362.464299999992},{"$f":"CashFlow!J108","v":59362.464299999992},{"$f":"[1]CashFlow!N108","v":87228.53207999999},{"$f":"CashFlow!L108","v":87228.53207999999},{"$f":"[1]CashFlow!P108","v":93674.274254758478},{"$f":"CashFlow!N108","v":93674.274254758478},{"$f":"[1]CashFlow!R108","v":100657.89112619904},{"$f":"CashFlow!P108","v":100657.89112619904},{"$f":"[1]CashFlow!S108","v":108219.97849295838},{"$f":"CashFlow!R108","v":108219.97849295838}]
[{"$f":"CashFlow!A109","v":1},{"$f":"CashFlow!B109","v":"CF2136"},null,null,null,"Operating leases",null,0,0,0,0,0,0,null,null,null,{"$f":"[1]CashFlow!J109","v":9079.7676700000011},{"$f":"CashFlow!I109","v":9079.7676700000011},{"$f":"[1]CashFlow!L109","v":13473.448949999996},{"$f":"CashFlow!J109","v":13473.448949999996},{"$f":"[1]CashFlow!N109","v":41869.537149999996},{"$f":"CashFlow!L109","v":41869.537149999996},{"$f":"[1]CashFlow!P109","v":43624.820075421085},{"$f":"CashFlow!N109","v":43624.820075421085},{"$f":"[1]CashFlow!R109","v":45633.990963272445},{"$f":"CashFlow!P109","v":45633.990963272445},{"$f":"[1]CashFlow!S109","v":47747.31919376627},{"$f":"CashFlow!R109","v":47747.31919376627}]
[{"$f":"CashFlow!A110","v":1},{"$f":"CashFlow!B110","v":"CF2177"},null,null,null,"Rental and hiring",null,0,0,0,0,0,0,null,null,null,{"$f":"[1]CashFlow!J110","v":0},{"$f":"CashFlow!I110","v":0},{"$f":"[1]CashFlow!L110","v":0},{"$f":"CashFlow!J110","v":0},{"$f":"[1]CashFlow!N110","v":0},{"$f":"CashFlow!L110","v":0},{"$f":"[1]CashFlow!P110","v":0},{"$f":"CashFlow!N110","v":0},{"$f":"[1]CashFlow!R110","v":0},{"$f":"CashFlow!P110","v":0},{"$f":"[1]CashFlow!S110","v":0},{"$f":"CashFlow!R110","v":0}]
[{"$f":"CashFlow!A111","v":1},{"$f":"CashFlow!B111","v":"CF2140"},null,null,null,"Property payments",null,0,0,0,0,0,0,null,null,null,{"$f":"[1]CashFlow!J111","v":707630.32183000003},{"$f":"CashFlow!I111","v":707630.32183000003},{"$f":"[1]CashFlow!L111","v":700327.85936},{"$f":"CashFlow!J111","v":700327.85936},{"$f":"[1]CashFlow!N111","v":723799.64240999985},{"$f":"CashFlow!L111","v":723799.64240999985},{"$f":"[1]CashFlow!P111","v":927023.07843331911},{"$f":"CashFlow!N111","v":927023.07843331911},{"$f":"[1]CashFlow!R111","v":995231.80193670071},{"$f":"CashFlow!P111","v":995231.80193670071},{"$f":"[1]CashFlow!S111","v":1085217.7380052479},{"$f":"CashFlow!R111","v":1085217.7380052479}]
[{"$f":"CashFlow!A112","v":1},{"$f":"CashFlow!B112","v":"CF2178"},null,null,null,"Transport provided: Internal activities",null,0,0,0,0,0,0,null,null,null,{"$f":"[1]CashFlow!J112","v":50116.34405},{"$f":"CashFlow!I112","v":50116.34405},{"$f":"[1]CashFlow!L112","v":54383.806100000009},{"$f":"CashFlow!J112","v":54383.806100000009},{"$f":"[1]CashFlow!N112","v":56604.281709999996},{"$f":"CashFlow!L112","v":56604.281709999996},{"$f":"[1]CashFlow!P112","v":58523.432288844298},{"$f":"CashFlow!N112","v":58523.432288844298},{"$f":"[1]CashFlow!R112","v":60958.321862681049},{"$f":"CashFlow!P112","v":60958.321862681049},{"$f":"[1]CashFlow!S112","v":63506.708983750541},{"$f":"CashFlow!R112","v":63506.708983750541}]
[{"$f":"CashFlow!A113","v":1},{"$f":"CashFlow!B113","v":"CF2144"},null,null,null,"Travel and subsistence",null,0,0,0,0,0,0,null,null,null,{"$f":"[1]CashFlow!J113","v":73812.443469999998},{"$f":"CashFlow!I113","v":73812.443469999998},{"$f":"[1]CashFlow!L113","v":80785.636580000006},{"$f":"CashFlow!J113","v":80785.636580000006},{"$f":"[1]CashFlow!N113","v":89072.801419999989},{"$f":"CashFlow!L113","v":89072.801419999989},{"$f":"[1]CashFlow!P113","v":92452.298619442008},{"$f":"CashFlow!N113","v":92452.298619442008},{"$f":"[1]CashFlow!R113","v":96418.915786644982},{"$f":"CashFlow!P113","v":96418.915786644982},{"$f":"[1]CashFlow!S113","v":100559.19471980413},{"$f":"CashFlow!R113","v":100559.19471980413}]
[{"$f":"CashFlow!A114","v":1},{"$f":"CashFlow!B114","v":"CF2143"},null,null,null,"Training and development",null,0,0,0,0,0,0,null,null,null,{"$f":"[1]CashFlow!J114","v":27192.178789999998},{"$f":"CashFlow!I114","v":27192.178789999998},{"$f":"[1]CashFlow!L114","v":30446.804910000003},{"$f":"CashFlow!J114","v":30446.804910000003},{"$f":"[1]CashFlow!N114","v":37071.986510000002},{"$f":"CashFlow!L114","v":37071.986510000002},{"$f":"[1]CashFlow!P114","v":38781.005088111},{"$f":"CashFlow!N114","v":38781.005088111},{"$f":"[1]CashFlow!R114","v":40545.540819620051},{"$f":"CashFlow!P114","v":40545.540819620051},{"$f":"[1]CashFlow!S114","v":42378.19926466688},{"$f":"CashFlow!R114","v":42378.19926466688}]
[{"$f":"CashFlow!A115","v":1},{"$f":"CashFlow!B115","v":"CF2146"},null,null,null,"Operating payments",null,0,0,0,0,0,0,null,null,null,{"$f":"[1]CashFlow!J115","v":223633.74459999998},{"$f":"CashFlow!I115","v":223633.74459999998},{"$f":"[1]CashFlow!L115","v":250891.45627999995},{"$f":"CashFlow!J115","v":250891.45627999995},{"$f":"[1]CashFlow!N115","v":193753.41074000002},{"$f":"CashFlow!L115","v":193753.41074000002},{"$f":"[1]CashFlow!P115","v":352305.09734118055},{"$f":"CashFlow!N115","v":352305.09734118055},{"$f":"[1]CashFlow!R115","v":223786.59539476392},{"$f":"CashFlow!P115","v":223786.59539476392},{"$f":"[1]CashFlow!S115","v":229014.90211066537},{"$f":"CashFlow!R115","v":229014.90211066537}]
[{"$f":"CashFlow!A116","v":1},{"$f":"CashFlow!B116","v":"CF2145"},null,null,null,"Venues and facilities",null,0,0,0,0,0,0,null,null,null,{"$f":"[1]CashFlow!J116","v":2546.3962300000003},{"$f":"CashFlow!I116","v":2546.3962300000003},{"$f":"[1]CashFlow!L116","v":12377.804310000001},{"$f":"CashFlow!J116","v":12377.804310000001},{"$f":"[1]CashFlow!N116","v":14124.05163},{"$f":"CashFlow!L116","v":14124.05163},{"$f":"[1]CashFlow!P116","v":14802.006108239999},{"$f":"CashFlow!N116","v":14802.006108239999},{"$f":"[1]CashFlow!R116","v":15512.502401435519},{"$f":"CashFlow!P116","v":15512.502401435519},{"$f":"[1]CashFlow!S116","v":16257.102516704424},{"$f":"CashFlow!R116","v":16257.102516704424}]
[{"$f":"CashFlow!A117","v":1},{"$f":"CashFlow!B117","v":"CF213"},null,null,null,"Interest and rent on land",null,0,0,0,0,0,0,null,null,null,{"$f":"SUM(Q118:Q120)","v":9213.8095199999989},{"$f":"SUM(R118:R120)","v":9213.8095199999989},{"$f":"SUM(S118:S120)","v":7916.96011},7916.96011,217.37929,217.37929,227.40047526900003,227.40047526900003,237.74719689373953,237.74719689373953,248.49337019333655,248.49337019333655]
[{"$f":"CashFlow!A118","v":1},{"$f":"CashFlow!B118","v":"CF2160"},null,null,null,"Interest",null,0,0,0,0,0,0,null,null,null,{"$f":"[1]CashFlow!J118","v":9213.8095199999989},{"$f":"CashFlow!I118","v":9213.8095199999989},{"$f":"[1]CashFlow!L118","v":7916.96011},{"$f":"CashFlow!J118","v":7916.96011},{"$f":"[1]CashFlow!N118","v":217.37929},{"$f":"CashFlow!L118","v":217.37929},{"$f":"[1]CashFlow!P118","v":227.40047526900003},{"$f":"CashFlow!N118","v":227.40047526900003},{"$f":"[1]CashFlow!R118","v":237.74719689373953},{"$f":"CashFlow!P118","v":237.74719689373953},{"$f":"[1]CashFlow!S118","v":248.49337019333655},{"$f":"CashFlow!R118","v":248.49337019333655}]
[{"$f":"CashFlow!A119","v":1},{"$f":"CashFlow!B119","v":"CF2161"},null,null,null,"Dividends",null,0,0,0,0,0,0,null,null,null,{"$f":"[1]CashFlow!J119","v":0},{"$f":"CashFlow!I119","v":0},{"$f":"[1]CashFlow!L119","v":0},{"$f":"CashFlow!J119","v":0},{"$f":"[1]CashFlow!N119","v":0},{"$f":"CashFlow!L119","v":0},{"$f":"[1]CashFlow!P119","v":0},{"$f":"CashFlow!N119","v":0},{"$f":"[1]CashFlow!R119","v":0},{"$f":"CashFlow!P119","v":0},{"$f":"[1]CashFlow!S119","v":0},{"$f":"CashFlow!R119","v":0}]
[{"$f":"CashFlow!A120","v":1},{"$f":"CashFlow!B120","v":"CF2162"},null,null,null,"Rent on land",null,0,0,0,0,0,0,null,null,null,{"$f":"[1]CashFlow!J120","v":0},{"$f":"CashFlow!I120","v":0},{"$f":"[1]CashFlow!L120","v":0},{"$f":"CashFlow!J120","v":0},{"$f":"[1]CashFlow!N120","v":0},{"$f":"CashFlow!L120","v":0},{"$f":"[1]CashFlow!P120","v":0},{"$f":"CashFlow!N120","v":0},{"$f":"[1]CashFlow!R120","v":0},{"$f":"CashFlow!P120","v":0},{"$f":"[1]CashFlow!S120","v":0},{"$f":"CashFlow!R120","v":0}]
[{"$f":"CashFlow!A121","v":1},{"$f":"CashFlow!B121","v":"CF24"},null,null,null,"Transfers and subsidies",null,0,0,0,0,0,0,null,null,null,{"$f":"SUM(Q122,Q133,Q144:Q147)","v":0},{"$f":"SUM(R122,R133,R144:R147)","v":0},{"$f":"SUM(S122,S133,S144:S147)","v":0},0,0,0,0,0,0,0,0,0]
[{"$f":"CashFlow!A122","v":2},{"$f":"CashFlow!B122","v":"CF241"},null,null,null,"Employer Grant (SETAs only)",null,0,0,0,0,0,0,null,null,null,{"$f":"SUM(Q123,Q129,Q132)","v":0},{"$f":"SUM(R123,R129,R132)","v":0},{"$f":"SUM(S123,S129,S132)","v":0},0,0,0,0,0,0,0,0,0]
[{"$f":"CashFlow!A123","v":1},{"$f":"CashFlow!B123","v":"CF242"},null,null,null,"Other government units",null,0,0,0,0,0,0,null,null,null,{"$f":"SUM(Q124:Q128)","v":0},{"$f":"SUM(R124:R128)","v":0},{"$f":"SUM(S124:S128)","v":0},0,0,0,0,0,0,0,0,0]
[{"$f":"CashFlow!A124","v":1},{"$f":"CashFlow!B124","v":"CF2421"},null,null,null,"National government",null,0,0,0,0,0,0,null,null,null,{"$f":"[1]CashFlow!J124","v":0},{"$f":"CashFlow!I124","v":0},{"$f":"[1]CashFlow!L124","v":0},{"$f":"CashFlow!J124","v":0},{"$f":"[1]CashFlow!N124","v":0},{"$f":"CashFlow!L124","v":0},{"$f":"[1]CashFlow!P124","v":0},{"$f":"CashFlow!N124","v":0},{"$f":"[1]CashFlow!R124","v":0},{"$f":"CashFlow!P124","v":0},{"$f":"[1]CashFlow!S124","v":0},{"$f":"CashFlow!R124","v":0}]
[{"$f":"CashFlow!A125","v":1},{"$f":"CashFlow!B125","v":"CF2422"},null,null,null,"Departmental agencies and accounts",null,0,0,0,0,0,0,null,null,null,{"$f":"[1]CashFlow!J125","v":0},{"$f":"CashFlow!I125","v":0},{"$f":"[1]CashFlow!L125","v":0},{"$f":"CashFlow!J125","v":0},{"$f":"[1]CashFlow!N125","v":0},{"$f":"CashFlow!L125","v":0},{"$f":"[1]CashFlow!P125","v":0},{"$f":"CashFlow!N125","v":0},{"$f":"[1]CashFlow!R125","v":0},{"$f":"CashFlow!P125","v":0},{"$f":"[1]CashFlow!S125","v":0},{"$f":"CashFlow!R125","v":0}]
[{"$f":"CashFlow!A126","v":1},{"$f":"CashFlow!B126","v":"CF2423"},null,null,null,"Provinces",null,0,0,0,0,0,0,null,null,null,{"$f":"[1]CashFlow!J126","v":0},{"$f":"CashFlow!I126","v":0},{"$f":"[1]CashFlow!L126","v":0},{"$f":"CashFlow!J126","v":0},{"$f":"[1]CashFlow!N126","v":0},{"$f":"CashFlow!L126","v":0},{"$f":"[1]CashFlow!P126","v":0},{"$f":"CashFlow!N126","v":0},{"$f":"[1]CashFlow!R126","v":0},{"$f":"CashFlow!P126","v":0},{"$f":"[1]CashFlow!S126","v":0},{"$f":"CashFlow!R126","v":0}]
[{"$f":"CashFlow!A127","v":1},{"$f":"CashFlow!B127","v":"CF2424"},null,null,null,"Municipalities",null,0,0,0,0,0,0,null,null,null,{"$f":"[1]CashFlow!J127","v":0},{"$f":"CashFlow!I127","v":0},{"$f":"[1]CashFlow!L127","v":0},{"$f":"CashFlow!J127","v":0},{"$f":"[1]CashFlow!N127","v":0},{"$f":"CashFlow!L127","v":0},{"$f":"[1]CashFlow!P127","v":0},{"$f":"CashFlow!N127","v":0},{"$f":"[1]CashFlow!R127","v":0},{"$f":"CashFlow!P127","v":0},{"$f":"[1]CashFlow!S127","v":0},{"$f":"CashFlow!R127","v":0}]
[{"$f":"CashFlow!A128","v":1},{"$f":"CashFlow!B128","v":"CF2425"},null,null,null,"National Skills Fund",null,0,0,0,0,0,0,null,null,null,{"$f":"[1]CashFlow!J128","v":0},{"$f":"CashFlow!I128","v":0},{"$f":"[1]CashFlow!L128","v":0},{"$f":"CashFlow!J128","v":0},{"$f":"[1]CashFlow!N128","v":0},{"$f":"CashFlow!L128","v":0},{"$f":"[1]CashFlow!P128","v":0},{"$f":"CashFlow!N128","v":0},{"$f":"[1]CashFlow!R128","v":0},{"$f":"CashFlow!P128","v":0},{"$f":"[1]CashFlow!S128","v":0},{"$f":"CashFlow!R128","v":0}]
[{"$f":"CashFlow!A129","v":1},{"$f":"CashFlow!B129","v":"CF243"},null,null,null,"Public corporations and private enterprises (subsidies and other transfers)",null,0,0,0,0,0,0,null,null,null,{"$f":"SUM(Q130:Q131)","v":0},{"$f":"SUM(R130:R131)","v":0},{"$f":"SUM(S130:S131)","v":0},0,0,0,0,0,0,0,0,0]
[{"$f":"CashFlow!A130","v":1},{"$f":"CashFlow!B130","v":"CF2431"},null,null,null,"Public corporations",null,0,0,0,0,0,0,null,null,null,{"$f":"[1]CashFlow!J130","v":0},{"$f":"CashFlow!I130","v":0},{"$f":"[1]CashFlow!L130","v":0},{"$f":"CashFlow!J130","v":0},{"$f":"[1]CashFlow!N130","v":0},{"$f":"CashFlow!L130","v":0},{"$f":"[1]CashFlow!P130","v":0},{"$f":"CashFlow!N130","v":0},{"$f":"[1]CashFlow!R130","v":0},{"$f":"CashFlow!P130","v":0},{"$f":"[1]CashFlow!S130","v":0},{"$f":"CashFlow!R130","v":0}]
[{"$f":"CashFlow!A131","v":1},{"$f":"CashFlow!B131","v":"CF2432"},null,null,null,"Private enterprises",null,0,0,0,0,0,0,null,null,null,{"$f":"[1]CashFlow!J131","v":0},{"$f":"CashFlow!I131","v":0},{"$f":"[1]CashFlow!L131","v":0},{"$f":"CashFlow!J131","v":0},{"$f":"[1]CashFlow!N131","v":0},{"$f":"CashFlow!L131","v":0},{"$f":"[1]CashFlow!P131","v":0},{"$f":"CashFlow!N131","v":0},{"$f":"[1]CashFlow!R131","v":0},{"$f":"CashFlow!P131","v":0},{"$f":"[1]CashFlow!S131","v":0},{"$f":"CashFlow!R131","v":0}]
[{"$f":"CashFlow!A132","v":2},{"$f":"CashFlow!B132","v":"CF244"},null,null,null,"Households and non government units",null,0,0,0,0,0,0,null,null,null,{"$f":"[1]CashFlow!J132","v":0},{"$f":"CashFlow!I132","v":0},{"$f":"[1]CashFlow!L132","v":0},{"$f":"CashFlow!J132","v":0},{"$f":"[1]CashFlow!N132","v":0},{"$f":"CashFlow!L132","v":0},{"$f":"[1]CashFlow!P132","v":0},{"$f":"CashFlow!N132","v":0},{"$f":"[1]CashFlow!R132","v":0},{"$f":"CashFlow!P132","v":0},{"$f":"[1]CashFlow!S132","v":0},{"$f":"CashFlow!R132","v":0}]
[{"$f":"CashFlow!A133","v":2},{"$f":"CashFlow!B133","v":"CF245"},null,null,null,"Discretionary Grant (SETAs only)",null,0,0,0,0,0,0,null,null,null,{"$f":"SUM(Q134,Q140,Q143)","v":0},{"$f":"SUM(R134,R140,R143)","v":0},{"$f":"SUM(S134,S140,S143)","v":0},0,0,0,0,0,0,0,0,0]
[{"$f":"CashFlow!A134","v":2},{"$f":"CashFlow!B134","v":"CF246"},null,null,null,"Other government units",null,0,0,0,0,0,0,null,null,null,{"$f":"SUM(Q135:Q139)","v":0},{"$f":"SUM(R135:R139)","v":0},{"$f":"SUM(S135:S139)","v":0},0,0,0,0,0,0,0,0,0]
[{"$f":"CashFlow!A135","v":2},{"$f":"CashFlow!B135","v":"CF2461"},null,null,null,"National government",null,0,0,0,0,0,0,null,null,null,{"$f":"[1]CashFlow!J135","v":0},{"$f":"CashFlow!I135","v":0},{"$f":"[1]CashFlow!L135","v":0},{"$f":"CashFlow!J135","v":0},{"$f":"[1]CashFlow!N135","v":0},{"$f":"CashFlow!L135","v":0},{"$f":"[1]CashFlow!P135","v":0},{"$f":"CashFlow!N135","v":0},{"$f":"[1]CashFlow!R135","v":0},{"$f":"CashFlow!P135","v":0},{"$f":"[1]CashFlow!S135","v":0},{"$f":"CashFlow!R135","v":0}]
[{"$f":"CashFlow!A136","v":2},{"$f":"CashFlow!B136","v":"CF2462"},null,null,null,"Departmental agencies and accounts",null,0,0,0,0,0,0,null,null,null,{"$f":"[1]CashFlow!J136","v":0},{"$f":"CashFlow!I136","v":0},{"$f":"[1]CashFlow!L136","v":0},{"$f":"CashFlow!J136","v":0},{"$f":"[1]CashFlow!N136","v":0},{"$f":"CashFlow!L136","v":0},{"$f":"[1]CashFlow!P136","v":0},{"$f":"CashFlow!N136","v":0},{"$f":"[1]CashFlow!R136","v":0},{"$f":"CashFlow!P136","v":0},{"$f":"[1]CashFlow!S136","v":0},{"$f":"CashFlow!R136","v":0}]
[{"$f":"CashFlow!A137","v":2},{"$f":"CashFlow!B137","v":"CF2463"},null,null,null,"Provinces",null,0,0,0,0,0,0,null,null,null,{"$f":"[1]CashFlow!J137","v":0},{"$f":"CashFlow!I137","v":0},{"$f":"[1]CashFlow!L137","v":0},{"$f":"CashFlow!J137","v":0},{"$f":"[1]CashFlow!N137","v":0},{"$f":"CashFlow!L137","v":0},{"$f":"[1]CashFlow!P137","v":0},{"$f":"CashFlow!N137","v":0},{"$f":"[1]CashFlow!R137","v":0},{"$f":"CashFlow!P137","v":0},{"$f":"[1]CashFlow!S137","v":0},{"$f":"CashFlow!R137","v":0}]
[{"$f":"CashFlow!A138","v":2},{"$f":"CashFlow!B138","v":"CF2464"},null,null,null,"Municipalities",null,0,0,0,0,0,0,null,null,null,{"$f":"[1]CashFlow!J138","v":0},{"$f":"CashFlow!I138","v":0},{"$f":"[1]CashFlow!L138","v":0},{"$f":"CashFlow!J138","v":0},{"$f":"[1]CashFlow!N138","v":0},{"$f":"CashFlow!L138","v":0},{"$f":"[1]CashFlow!P138","v":0},{"$f":"CashFlow!N138","v":0},{"$f":"[1]CashFlow!R138","v":0},{"$f":"CashFlow!P138","v":0},{"$f":"[1]CashFlow!S138","v":0},{"$f":"CashFlow!R138","v":0}]
[{"$f":"CashFlow!A139","v":2},{"$f":"CashFlow!B139","v":"CF2465"},null,null,null,"National Skills Fund",null,0,0,0,0,0,0,null,null,null,{"$f":"[1]CashFlow!J139","v":0},{"$f":"CashFlow!I139","v":0},{"$f":"[1]CashFlow!L139","v":0},{"$f":"CashFlow!J139","v":0},{"$f":"[1]CashFlow!N139","v":0},{"$f":"CashFlow!L139","v":0},{"$f":"[1]CashFlow!P139","v":0},{"$f":"CashFlow!N139","v":0},{"$f":"[1]CashFlow!R139","v":0},{"$f":"CashFlow!P139","v":0},{"$f":"[1]CashFlow!S139","v":0},{"$f":"CashFlow!R139","v":0}]
[{"$f":"CashFlow!A140","v":2},{"$f":"CashFlow!B140","v":"CF247"},null,null,null,"Public corporations and private enterprises (subsidies and other transfers)",null,0,0,0,0,0,0,null,null,null,{"$f":"SUM(Q141:Q142)","v":0},{"$f":"SUM(R141:R142)","v":0},{"$f":"SUM(S141:S142)","v":0},0,0,0,0,0,0,0,0,0]
[{"$f":"CashFlow!A141","v":2},{"$f":"CashFlow!B141","v":"CF2471"},null,null,null,"Public corporations",null,0,0,0,0,0,0,null,null,null,{"$f":"[1]CashFlow!J141","v":0},{"$f":"CashFlow!I141","v":0},{"$f":"[1]CashFlow!L141","v":0},{"$f":"CashFlow!J141","v":0},{"$f":"[1]CashFlow!N141","v":0},{"$f":"CashFlow!L141","v":0},{"$f":"[1]CashFlow!P141","v":0},{"$f":"CashFlow!N141","v":0},{"$f":"[1]CashFlow!R141","v":0},{"$f":"CashFlow!P141","v":0},{"$f":"[1]CashFlow!S141","v":0},{"$f":"CashFlow!R141","v":0}]
[{"$f":"CashFlow!A142","v":2},{"$f":"CashFlow!B142","v":"CF2472"},null,null,null,"Private enterprises",null,0,0,0,0,0,0,null,null,null,{"$f":"[1]CashFlow!J142","v":0},{"$f":"CashFlow!I142","v":0},{"$f":"[1]CashFlow!L142","v":0},{"$f":"CashFlow!J142","v":0},{"$f":"[1]CashFlow!N142","v":0},{"$f":"CashFlow!L142","v":0},{"$f":"[1]CashFlow!P142","v":0},{"$f":"CashFlow!N142","v":0},{"$f":"[1]CashFlow!R142","v":0},{"$f":"CashFlow!P142","v":0},{"$f":"[1]CashFlow!S142","v":0},{"$f":"CashFlow!R142","v":0}]
[{"$f":"CashFlow!A143","v":2},{"$f":"CashFlow!B143","v":"CF248"},null,null,null,"Households and non government units",null,0,0,0,0,0,0,null,null,null,{"$f":"[1]CashFlow!J143","v":0},{"$f":"CashFlow!I143","v":0},{"$f":"[1]CashFlow!L143","v":0},{"$f":"CashFlow!J143","v":0},{"$f":"[1]CashFlow!N143","v":0},{"$f":"CashFlow!L143","v":0},{"$f":"[1]CashFlow!P143","v":0},{"$f":"CashFlow!N143","v":0},{"$f":"[1]CashFlow!R143","v":0},{"$f":"CashFlow!P143","v":0},{"$f":"[1]CashFlow!S143","v":0},{"$f":"CashFlow!R143","v":0}]
[{"$f":"CashFlow!A144","v":1},{"$f":"CashFlow!B144","v":"CF249"},null,null,null,"Higher education institutions",null,0,0,0,0,0,0,null,null,null,{"$f":"[1]CashFlow!J144","v":0},{"$f":"CashFlow!I144","v":0},{"$f":"[1]CashFlow!L144","v":0},{"$f":"CashFlow!J144","v":0},{"$f":"[1]CashFlow!N144","v":0},{"$f":"CashFlow!L144","v":0},{"$f":"[1]CashFlow!P144","v":0},{"$f":"CashFlow!N144","v":0},{"$f":"[1]CashFlow!R144","v":0},{"$f":"CashFlow!P144","v":0},{"$f":"[1]CashFlow!S144","v":0},{"$f":"CashFlow!R144","v":0}]
[{"$f":"CashFlow!A145","v":1},{"$f":"CashFlow!B145","v":"CF250"},null,null,null,"Foreign governments and international organisations",null,0,0,0,0,0,0,null,null,null,{"$f":"[1]CashFlow!J145","v":0},{"$f":"CashFlow!I145","v":0},{"$f":"[1]CashFlow!L145","v":0},{"$f":"CashFlow!J145","v":0},{"$f":"[1]CashFlow!N145","v":0},{"$f":"CashFlow!L145","v":0},{"$f":"[1]CashFlow!P145","v":0},{"$f":"CashFlow!N145","v":0},{"$f":"[1]CashFlow!R145","v":0},{"$f":"CashFlow!P145","v":0},{"$f":"[1]CashFlow!S145","v":0},{"$f":"CashFlow!R145","v":0}]
[{"$f":"CashFlow!A146","v":1},{"$f":"CashFlow!B146","v":"CF251"},null,null,null,"Non-profit institutions",null,0,0,0,0,0,0,null,null,null,{"$f":"[1]CashFlow!J146","v":0},{"$f":"CashFlow!I146","v":0},{"$f":"[1]CashFlow!L146","v":0},{"$f":"CashFlow!J146","v":0},{"$f":"[1]CashFlow!N146","v":0},{"$f":"CashFlow!L146","v":0},{"$f":"[1]CashFlow!P146","v":0},{"$f":"CashFlow!N146","v":0},{"$f":"[1]CashFlow!R146","v":0},{"$f":"CashFlow!P146","v":0},{"$f":"[1]CashFlow!S146","v":0},{"$f":"CashFlow!R146","v":0}]
[{"$f":"CashFlow!A147","v":1},{"$f":"CashFlow!B147","v":"CF252"},null,null,null,"Households",null,0,0,0,0,0,0,null,null,null,{"$f":"SUM(Q148:Q149)","v":0},{"$f":"SUM(R148:R149)","v":0},{"$f":"SUM(S148:S149)","v":0},0,0,0,0,0,0,0,0,0]
[{"$f":"CashFlow!A148","v":1},{"$f":"CashFlow!B148","v":"CF2521"},null,null,null,"Social benefits",null,0,0,0,0,0,0,null,null,null,{"$f":"[1]CashFlow!J148","v":0},{"$f":"CashFlow!I148","v":0},{"$f":"[1]CashFlow!L148","v":0},{"$f":"CashFlow!J148","v":0},{"$f":"[1]CashFlow!N148","v":0},{"$f":"CashFlow!L148","v":0},{"$f":"[1]CashFlow!P148","v":0},{"$f":"CashFlow!N148","v":0},{"$f":"[1]CashFlow!R148","v":0},{"$f":"CashFlow!P148","v":0},{"$f":"[1]CashFlow!S148","v":0},{"$f":"CashFlow!R148","v":0}]
[{"$f":"CashFlow!A149","v":1},{"$f":"CashFlow!B149","v":"CF2522"},null,null,null,"Other transfers to households",null,0,0,0,0,0,0,null,null,null,{"$f":"[1]CashFlow!J149","v":0},{"$f":"CashFlow!I149","v":0},{"$f":"[1]CashFlow!L149","v":0},{"$f":"CashFlow!J149","v":0},{"$f":"[1]CashFlow!N149","v":0},{"$f":"CashFlow!L149","v":0},{"$f":"[1]CashFlow!P149","v":0},{"$f":"CashFlow!N149","v":0},{"$f":"[1]CashFlow!R149","v":0},{"$f":"CashFlow!P149","v":0},{"$f":"[1]CashFlow!S149","v":0},{"$f":"CashFlow!R149","v":0}]
[{"$f":"CashFlow!A150","v":1},{"$f":"CashFlow!B150","v":"CF26"},null,null,null,"Payments for financial assets",null,{"$f":"R150-Q150","v":0},{"$f":"T150-S150","v":0},{"$f":"V150-U150","v":0},{"$f":"X150-W150","v":0},{"$f":"Z150-Y150","v":0},{"$f":"AB150-AA150","v":0},null,null,null,{"$f":"SUM(Q151:Q154)","v":0},{"$f":"SUM(R151:R154)","v":0},{"$f":"SUM(S151:S154)","v":0},{"$f":"SUM(T151:T154)","v":0},0,0,0,0,0,0,0,0]
[{"$f":"CashFlow!A151","v":1},{"$f":"CashFlow!B151","v":"CF261"},null,null,null,"Forex losses",null,{"$f":"R151-Q151","v":0},{"$f":"T151-S151","v":0},{"$f":"V151-U151","v":0},{"$f":"X151-W151","v":0},{"$f":"Z151-Y151","v":0},{"$f":"AB151-AA151","v":0},null,null,null,{"$f":"[1]CashFlow!J151","v":0},{"$f":"CashFlow!I151","v":0},{"$f":"[1]CashFlow!L151","v":0},{"$f":"CashFlow!J151","v":0},{"$f":"[1]CashFlow!N151","v":0},{"$f":"CashFlow!L151","v":0},{"$f":"[1]CashFlow!P151","v":0},{"$f":"CashFlow!N151","v":0},{"$f":"[1]CashFlow!R151","v":0},{"$f":"CashFlow!P151","v":0},{"$f":"[1]CashFlow!S151","v":0},{"$f":"CashFlow!R151","v":0}]
[{"$f":"CashFlow!A152","v":1},{"$f":"CashFlow!B152","v":"CF262"},null,null,null,"Thefts and losses",null,{"$f":"R152-Q152","v":0},{"$f":"T152-S152","v":0},{"$f":"V152-U152","v":0},{"$f":"X152-W152","v":0},{"$f":"Z152-Y152","v":0},{"$f":"AB152-AA152","v":0},null,null,null,{"$f":"[1]CashFlow!J152","v":0},{"$f":"CashFlow!I152","v":0},{"$f":"[1]CashFlow!L152","v":0},{"$f":"CashFlow!J152","v":0},{"$f":"[1]CashFlow!N152","v":0},{"$f":"CashFlow!L152","v":0},{"$f":"[1]CashFlow!P152","v":0},{"$f":"CashFlow!N152","v":0},{"$f":"[1]CashFlow!R152","v":0},{"$f":"CashFlow!P152","v":0},{"$f":"[1]CashFlow!S152","v":0},{"$f":"CashFlow!R152","v":0}]
[{"$f":"CashFlow!A153","v":1},{"$f":"CashFlow!B153","v":"CF263"},null,null,null,"Purchase of equity",null,{"$f":"R153-Q153","v":0},{"$f":"T153-S153","v":0},{"$f":"V153-U153","v":0},{"$f":"X153-W153","v":0},{"$f":"Z153-Y153","v":0},{"$f":"AB153-AA153","v":0},null,null,null,{"$f":"[1]CashFlow!J153","v":0},{"$f":"CashFlow!I153","v":0},{"$f":"[1]CashFlow!L153","v":0},{"$f":"CashFlow!J153","v":0},{"$f":"[1]CashFlow!N153","v":0},{"$f":"CashFlow!L153","v":0},{"$f":"[1]CashFlow!P153","v":0},{"$f":"CashFlow!N153","v":0},{"$f":"[1]CashFlow!R153","v":0},{"$f":"CashFlow!P153","v":0},{"$f":"[1]CashFlow!S153","v":0},{"$f":"CashFlow!R153","v":0}]
[{"$f":"CashFlow!A154","v":1},{"$f":"CashFlow!B154","v":"CF264"},null,null,null,"Other",null,{"$f":"R154-Q154","v":0},{"$f":"T154-S154","v":0},{"$f":"V154-U154","v":0},{"$f":"X154-W154","v":0},{"$f":"Z154-Y154","v":0},{"$f":"AB154-AA154","v":0},null,null,null,{"$f":"[1]CashFlow!J154","v":0},{"$f":"CashFlow!I154","v":0},{"$f":"[1]CashFlow!L154","v":0},{"$f":"CashFlow!J154","v":0},{"$f":"[1]CashFlow!N154","v":0},{"$f":"CashFlow!L154","v":0},{"$f":"[1]CashFlow!P154","v":0},{"$f":"CashFlow!N154","v":0},{"$f":"[1]CashFlow!R154","v":0},{"$f":"CashFlow!P154","v":0},{"$f":"[1]CashFlow!S154","v":0},{"$f":"CashFlow!R154","v":0}]
[{"$f":"CashFlow!A155","v":1},{"$f":"CashFlow!B155","v":"CF22"},null,null,null,"Tax payment",null,0,0,0,0,0,0,null,null,null,{"$f":"[1]CashFlow!J155","v":0},{"$f":"CashFlow!I155","v":0},{"$f":"[1]CashFlow!L155","v":0},{"$f":"CashFlow!J155","v":0},{"$f":"[1]CashFlow!N155","v":0},{"$f":"CashFlow!L155","v":0},{"$f":"[1]CashFlow!P155","v":0},{"$f":"CashFlow!N155","v":0},{"$f":"[1]CashFlow!R155","v":0},{"$f":"CashFlow!P155","v":0},{"$f":"[1]CashFlow!S155","v":0},{"$f":"CashFlow!R155","v":0}]
[{"$f":"CashFlow!A156","v":1},{"$f":"CashFlow!B156","v":"CF23"},null,null,null,"Outside shareholders interest",null,0,0,0,0,0,0,null,null,null,{"$f":"[1]CashFlow!J156","v":0},{"$f":"CashFlow!I156","v":0},{"$f":"[1]CashFlow!L156","v":0},{"$f":"CashFlow!J156","v":0},{"$f":"[1]CashFlow!N156","v":0},{"$f":"CashFlow!L156","v":0},{"$f":"[1]CashFlow!P156","v":0},{"$f":"CashFlow!N156","v":0},{"$f":"[1]CashFlow!R156","v":0},{"$f":"CashFlow!P156","v":0},{"$f":"[1]CashFlow!S156","v":0},{"$f":"CashFlow!R156","v":0}]
[{"$f":"CashFlow!A157","v":3},{"$f":"CashFlow!B157","v":"CF4"},null,null,null,"Cash flow from advancing activities (Financial Institutions only)",null,0,0,0,0,0,0,null,null,null,{"$f":"SUM(Q158,Q163)","v":0},{"$f":"SUM(R158,R163)","v":0},{"$f":"SUM(S158,S163)","v":0},{"$f":"SUM(T158,T163)","v":0},0,0,0,0,0,0,0,0]
[{"$f":"CashFlow!A158","v":3},{"$f":"CashFlow!B158","v":"CF41"},null,null,null,"Disbursements and other payments",null,{"$f":"R158-Q158","v":0},{"$f":"T158-S158","v":0},{"$f":"V158-U158","v":0},{"$f":"X158-W158","v":0},{"$f":"Z158-Y158","v":0},{"$f":"AB158-AA158","v":0},null,null,null,{"$f":"SUM(Q159:Q162)","v":0},{"$f":"SUM(R159:R162)","v":0},{"$f":"SUM(S159:S162)","v":0},{"$f":"SUM(T159:T162)","v":0},0,0,0,0,0,0,0,0]
[{"$f":"CashFlow!A159","v":3},{"$f":"CashFlow!B159","v":"CF411"},null,null,null,"Loan disbursements",null,{"$f":"R159-Q159","v":0},0,0,0,0,0,null,null,null,{"$f":"[1]CashFlow!J159","v":0},{"$f":"CashFlow!I159","v":0},{"$f":"[1]CashFlow!L159","v":0},{"$f":"CashFlow!J159","v":0},{"$f":"[1]CashFlow!N159","v":0},{"$f":"CashFlow!L159","v":0},{"$f":"[1]CashFlow!P159","v":0},{"$f":"CashFlow!N159","v":0},{"$f":"[1]CashFlow!R159","v":0},{"$f":"CashFlow!P159","v":0},{"$f":"[1]CashFlow!S159","v":0},{"$f":"CashFlow!R159","v":0}]
[{"$f":"CashFlow!A160","v":3},{"$f":"CashFlow!B160","v":"CF412"},null,null,null,"Equity investments disbursements",null,0,0,0,0,0,0,null,null,null,{"$f":"[1]CashFlow!J160","v":0},{"$f":"CashFlow!I160","v":0},{"$f":"[1]CashFlow!L160","v":0},{"$f":"CashFlow!J160","v":0},{"$f":"[1]CashFlow!N160","v":0},{"$f":"CashFlow!L160","v":0},{"$f":"[1]CashFlow!P160","v":0},{"$f":"CashFlow!N160","v":0},{"$f":"[1]CashFlow!R160","v":0},{"$f":"CashFlow!P160","v":0},{"$f":"[1]CashFlow!S160","v":0},{"$f":"CashFlow!R160","v":0}]
[{"$f":"CashFlow!A161","v":3},{"$f":"CashFlow!B161","v":"CF413"},null,null,null,{"$f":"CashFlow!F161","v":"Please specify"},null,0,0,0,0,0,0,null,null,null,{"$f":"[1]CashFlow!J161","v":0},{"$f":"CashFlow!I161","v":0},{"$f":"[1]CashFlow!L161","v":0},{"$f":"CashFlow!J161","v":0},{"$f":"[1]CashFlow!N161","v":0},{"$f":"CashFlow!L161","v":0},{"$f":"[1]CashFlow!P161","v":0},{"$f":"CashFlow!N161","v":0},{"$f":"[1]CashFlow!R161","v":0},{"$f":"CashFlow!P161","v":0},{"$f":"[1]CashFlow!S161","v":0},{"$f":"CashFlow!R161","v":0}]
[{"$f":"CashFlow!A162","v":3},{"$f":"CashFlow!B162","v":"CF414"},null,null,null,{"$f":"CashFlow!F162","v":"Please specify"},null,0,0,0,0,0,0,null,null,null,{"$f":"[1]CashFlow!J162","v":0},{"$f":"CashFlow!I162","v":0},{"$f":"[1]CashFlow!L162","v":0},{"$f":"CashFlow!J162","v":0},{"$f":"[1]CashFlow!N162","v":0},{"$f":"CashFlow!L162","v":0},{"$f":"[1]CashFlow!P162","v":0},{"$f":"CashFlow!N162","v":0},{"$f":"[1]CashFlow!R162","v":0},{"$f":"CashFlow!P162","v":0},{"$f":"[1]CashFlow!S162","v":0},{"$f":"CashFlow!R162","v":0}]
[{"$f":"CashFlow!A163","v":3},{"$f":"CashFlow!B163","v":"CF42"},null,null,null,"Repayments and other receipts",null,0,0,0,0,0,0,null,null,null,{"$f":"SUM(Q164:Q167)","v":0},{"$f":"SUM(R164:R167)","v":0},{"$f":"SUM(S164:S167)","v":0},{"$f":"SUM(T164:T167)","v":0},0,0,0,0,0,0,0,0]
[{"$f":"CashFlow!A164","v":3},{"$f":"CashFlow!B164","v":"CF421"},null,null,null,"Loan principal repayments",null,0,0,0,0,0,0,null,null,null,{"$f":"[1]CashFlow!J164","v":0},{"$f":"CashFlow!I164","v":0},{"$f":"[1]CashFlow!L164","v":0},{"$f":"CashFlow!J164","v":0},{"$f":"[1]CashFlow!N164","v":0},{"$f":"CashFlow!L164","v":0},{"$f":"[1]CashFlow!P164","v":0},{"$f":"CashFlow!N164","v":0},{"$f":"[1]CashFlow!R164","v":0},{"$f":"CashFlow!P164","v":0},{"$f":"[1]CashFlow!S164","v":0},{"$f":"CashFlow!R164","v":0}]
[{"$f":"CashFlow!A165","v":3},{"$f":"CashFlow!B165","v":"CF422"},null,null,null,"Equity investments repayments",null,0,0,0,0,0,0,null,null,null,{"$f":"[1]CashFlow!J165","v":0},{"$f":"CashFlow!I165","v":0},{"$f":"[1]CashFlow!L165","v":0},{"$f":"CashFlow!J165","v":0},{"$f":"[1]CashFlow!N165","v":0},{"$f":"CashFlow!L165","v":0},{"$f":"[1]CashFlow!P165","v":0},{"$f":"CashFlow!N165","v":0},{"$f":"[1]CashFlow!R165","v":0},{"$f":"CashFlow!P165","v":0},{"$f":"[1]CashFlow!S165","v":0},{"$f":"CashFlow!R165","v":0}]
[{"$f":"CashFlow!A166","v":3},{"$f":"CashFlow!B166","v":"CF423"},null,null,null,{"$f":"CashFlow!F166","v":"Please specify"},null,0,0,0,0,0,0,null,null,null,{"$f":"[1]CashFlow!J166","v":0},{"$f":"CashFlow!I166","v":0},{"$f":"[1]CashFlow!L166","v":0},{"$f":"CashFlow!J166","v":0},{"$f":"[1]CashFlow!N166","v":0},{"$f":"CashFlow!L166","v":0},{"$f":"[1]CashFlow!P166","v":0},{"$f":"CashFlow!N166","v":0},{"$f":"[1]CashFlow!R166","v":0},{"$f":"CashFlow!P166","v":0},{"$f":"[1]CashFlow!S166","v":0},{"$f":"CashFlow!R166","v":0}]
[{"$f":"CashFlow!A167","v":3},{"$f":"CashFlow!B167","v":"CF424"},null,null,null,{"$f":"CashFlow!F167","v":"Please specify"},null,0,0,0,0,0,0,null,null,null,{"$f":"[1]CashFlow!J167","v":0},{"$f":"CashFlow!I167","v":0},{"$f":"[1]CashFlow!L167","v":0},{"$f":"CashFlow!J167","v":0},{"$f":"[1]CashFlow!N167","v":0},{"$f":"CashFlow!L167","v":0},{"$f":"[1]CashFlow!P167","v":0},{"$f":"CashFlow!N167","v":0},{"$f":"[1]CashFlow!R167","v":0},{"$f":"CashFlow!P167","v":0},{"$f":"[1]CashFlow!S167","v":0},{"$f":"CashFlow!R167","v":0}]
[{"$f":"CashFlow!A168","v":1},{"$f":"CashFlow!B168","v":"CF5"},null,null,null,"Cash flow from investing activities",null,{"$f":"-R168+Q168","v":0},{"$f":"-T168+S168","v":0},{"$f":"-V168+U168","v":0},{"$f":"-X168+W168","v":0},{"$f":"-Z168+Y168","v":0},{"$f":"-AB168+AA168","v":0},null,null,null,{"$f":"SUM(Q169,Q182:Q183)","v":-789539},{"$f":"SUM(R169,R182:R183)","v":-789539},{"$f":"SUM(S169,S182:S183)","v":-642052},{"$f":"SUM(T169,T182:T183)","v":-642052},-540221.21490000002,-540221.21490000002,-989614.64978879236,-989614.64978879236,-490463.23638710083,-490463.23638710083,-223510.47849298324,-223510.47849298324]
[{"$f":"CashFlow!A169","v":1},{"$f":"CashFlow!B169","v":"CF51"},null,null,null,"Acquisition of property, plant, equipment",null,{"$f":"-R169+Q169","v":0},{"$f":"-T169+S169","v":0},{"$f":"-V169+U169","v":0},{"$f":"-X169+W169","v":0},{"$f":"-Z169+Y169","v":0},{"$f":"-AB169+AA169","v":0},null,null,null,{"$f":"SUM(Q170:Q176,Q179:Q181)","v":-546647},{"$f":"SUM(R170:R176,R179:R181)","v":-546647},{"$f":"SUM(S170:S176,S179:S181)","v":-393809},-393809,-266549.19896999997,-266549.19896999997,-628999.92061654129,-628999.92061654129,-258102.10350970525,-258102.10350970525,-149009.33027115281,-149009.33027115281]
[{"$f":"CashFlow!A170","v":1},{"$f":"CashFlow!B170","v":"CF511"},null,null,null,"Buildings: residential",null,{"$f":"-R170+Q170","v":0},{"$f":"-T170+S170","v":0},{"$f":"-V170+U170","v":0},{"$f":"-X170+W170","v":0},{"$f":"-Z170+Y170","v":0},{"$f":"-AB170+AA170","v":0},null,null,null,{"$f":"[1]CashFlow!J170","v":0},{"$f":"CashFlow!I170","v":0},{"$f":"[1]CashFlow!L170","v":0},{"$f":"CashFlow!J170","v":0},{"$f":"[1]CashFlow!N170","v":0},{"$f":"CashFlow!L170","v":0},{"$f":"[1]CashFlow!P170","v":0},{"$f":"CashFlow!N170","v":0},{"$f":"[1]CashFlow!R170","v":0},{"$f":"CashFlow!P170","v":0},{"$f":"[1]CashFlow!S170","v":0},{"$f":"CashFlow!R170","v":0}]
[{"$f":"CashFlow!A171","v":1},{"$f":"CashFlow!B171","v":"CF512"},null,null,null,"Buildings: non-residential",null,0,0,0,0,0,0,null,null,null,{"$f":"[1]CashFlow!J171","v":-98894},{"$f":"CashFlow!I171","v":-98894},{"$f":"[1]CashFlow!L171","v":-50029},{"$f":"CashFlow!J171","v":-50029},{"$f":"[1]CashFlow!N171","v":-39015.561129999995},{"$f":"CashFlow!L171","v":-39015.561129999995},{"$f":"[1]CashFlow!P171","v":-23235.014676546074},{"$f":"CashFlow!N171","v":-23235.014676546074},{"$f":"[1]CashFlow!R171","v":-20432.558868065331},{"$f":"CashFlow!P171","v":-20432.558868065331},{"$f":"[1]CashFlow!S171","v":-17852.028845823021},{"$f":"CashFlow!R171","v":-17852.028845823021}]
[{"$f":"CashFlow!A172","v":1},{"$f":"CashFlow!B172","v":"CF513"},null,null,null,"Other fixed structures",null,0,0,0,0,0,0,null,null,null,{"$f":"[1]CashFlow!J172","v":-3781},{"$f":"CashFlow!I172","v":-3781},{"$f":"[1]CashFlow!L172","v":-9806},{"$f":"CashFlow!J172","v":-9806},{"$f":"[1]CashFlow!N172","v":-75370.420769999997},{"$f":"CashFlow!L172","v":-75370.420769999997},{"$f":"[1]CashFlow!P172","v":-544718.82325176173},{"$f":"CashFlow!N172","v":-544718.82325176173},{"$f":"[1]CashFlow!R172","v":-187158.99276229739},{"$f":"CashFlow!P172","v":-187158.99276229739},{"$f":"[1]CashFlow!S172","v":-91836.311376575759},{"$f":"CashFlow!R172","v":-91836.311376575759}]
[{"$f":"CashFlow!A173","v":1},{"$f":"CashFlow!B173","v":"CF515"},null,null,null,"Transport equipment",null,0,0,0,0,0,0,null,null,null,{"$f":"[1]CashFlow!J173","v":-56888},{"$f":"CashFlow!I173","v":-56888},{"$f":"[1]CashFlow!L173","v":-9442},{"$f":"CashFlow!J173","v":-9442},{"$f":"[1]CashFlow!N173","v":-21099.1708},{"$f":"CashFlow!L173","v":-21099.1708},{"$f":"[1]CashFlow!P173","v":0},{"$f":"CashFlow!N173","v":0},{"$f":"[1]CashFlow!R173","v":0},{"$f":"CashFlow!P173","v":0},{"$f":"[1]CashFlow!S173","v":0},{"$f":"CashFlow!R173","v":0}]
[{"$f":"CashFlow!A174","v":1},{"$f":"CashFlow!B174","v":"CF516"},null,null,null,"Furniture and office equipment",null,0,0,0,0,0,0,null,null,null,{"$f":"[1]CashFlow!J174","v":-40364},{"$f":"CashFlow!I174","v":-40364},{"$f":"[1]CashFlow!L174","v":-13291},{"$f":"CashFlow!J174","v":-13291},{"$f":"[1]CashFlow!N174","v":-34749.292109999995},{"$f":"CashFlow!L174","v":-34749.292109999995},{"$f":"[1]CashFlow!P174","v":-11661.656922063736},{"$f":"CashFlow!N174","v":-11661.656922063736},{"$f":"[1]CashFlow!R174","v":-7860.4082878982526},{"$f":"CashFlow!P174","v":-7860.4082878982526},{"$f":"[1]CashFlow!S174","v":-3236.7572388733829},{"$f":"CashFlow!R174","v":-3236.7572388733829}]
[{"$f":"CashFlow!A175","v":1},{"$f":"CashFlow!B175","v":"CF517"},null,null,null,"Other machinery and equipment",null,0,0,0,0,0,0,null,null,null,{"$f":"[1]CashFlow!J175","v":-19279},{"$f":"CashFlow!I175","v":-19279},{"$f":"[1]CashFlow!L175","v":-6364},{"$f":"CashFlow!J175","v":-6364},{"$f":"[1]CashFlow!N175","v":-64715.761610000001},{"$f":"CashFlow!L175","v":-64715.761610000001},{"$f":"[1]CashFlow!P175","v":-41628.487305649396},{"$f":"CashFlow!N175","v":-41628.487305649396},{"$f":"[1]CashFlow!R175","v":-36607.530888275367},{"$f":"CashFlow!P175","v":-36607.530888275367},{"$f":"[1]CashFlow!S175","v":-31984.182774740628},{"$f":"CashFlow!R175","v":-31984.182774740628}]
[{"$f":"CashFlow!A176","v":1},{"$f":"CashFlow!B176","v":"CF518"},null,null,null,"Heritage assets",null,0,0,0,0,0,0,null,null,null,{"$f":"SUM(Q177:Q178)","v":0},{"$f":"SUM(R177:R178)","v":0},{"$f":"SUM(S177:S178)","v":0},0,0,0,0,0,0,0,0,0]
[{"$f":"CashFlow!A177","v":1},{"$f":"CashFlow!B177","v":"CF5181"},null,null,null,"Buildings and other fixed structures",null,0,0,0,0,0,0,null,null,null,{"$f":"[1]CashFlow!J177","v":0},{"$f":"CashFlow!I177","v":0},{"$f":"[1]CashFlow!L177","v":0},{"$f":"CashFlow!J177","v":0},{"$f":"[1]CashFlow!N177","v":0},{"$f":"CashFlow!L177","v":0},{"$f":"[1]CashFlow!P177","v":0},{"$f":"CashFlow!N177","v":0},{"$f":"[1]CashFlow!R177","v":0},{"$f":"CashFlow!P177","v":0},{"$f":"[1]CashFlow!S177","v":0},{"$f":"CashFlow!R177","v":0}]
[{"$f":"CashFlow!A178","v":1},{"$f":"CashFlow!B178","v":"CF5182"},null,null,null,"Other than buildings and fixed structures",null,0,0,0,0,0,0,null,null,null,{"$f":"[1]CashFlow!J178","v":0},{"$f":"CashFlow!I178","v":0},{"$f":"[1]CashFlow!L178","v":0},{"$f":"CashFlow!J178","v":0},{"$f":"[1]CashFlow!N178","v":0},{"$f":"CashFlow!L178","v":0},{"$f":"[1]CashFlow!P178","v":0},{"$f":"CashFlow!N178","v":0},{"$f":"[1]CashFlow!R178","v":0},{"$f":"CashFlow!P178","v":0},{"$f":"[1]CashFlow!S178","v":0},{"$f":"CashFlow!R178","v":0}]
[{"$f":"CashFlow!A179","v":1},{"$f":"CashFlow!B179","v":"CF519"},null,null,null,"Biological assets",null,0,0,0,0,0,0,null,null,null,{"$f":"[1]CashFlow!J179","v":-3725},{"$f":"CashFlow!I179","v":-3725},{"$f":"[1]CashFlow!L179","v":-1676},{"$f":"CashFlow!J179","v":-1676},{"$f":"[1]CashFlow!N179","v":-112.7},{"$f":"CashFlow!L179","v":-112.7},{"$f":"[1]CashFlow!P179","v":0},{"$f":"CashFlow!N179","v":0},{"$f":"[1]CashFlow!R179","v":0},{"$f":"CashFlow!P179","v":0},{"$f":"[1]CashFlow!S179","v":0},{"$f":"CashFlow!R179","v":0}]
[{"$f":"CashFlow!A180","v":1},{"$f":"CashFlow!B180","v":"CF531"},null,null,null,"Land & subsoil assets",null,0,0,0,0,0,0,null,null,null,{"$f":"[1]CashFlow!J180","v":0},{"$f":"CashFlow!I180","v":0},{"$f":"[1]CashFlow!L180","v":0},{"$f":"CashFlow!J180","v":0},{"$f":"[1]CashFlow!N180","v":0},{"$f":"CashFlow!L180","v":0},{"$f":"[1]CashFlow!P180","v":0},{"$f":"CashFlow!N180","v":0},{"$f":"[1]CashFlow!R180","v":0},{"$f":"CashFlow!P180","v":0},{"$f":"[1]CashFlow!S180","v":0},{"$f":"CashFlow!R180","v":0}]
[{"$f":"CashFlow!A181","v":1},{"$f":"CashFlow!B181","v":"CF532"},null,null,null,"Computer equipment",null,0,0,0,0,0,0,null,null,null,{"$f":"[1]CashFlow!J181","v":-323716},{"$f":"CashFlow!I181","v":-323716},{"$f":"[1]CashFlow!L181","v":-303201},{"$f":"CashFlow!J181","v":-303201},{"$f":"[1]CashFlow!N181","v":-31486.292549999998},{"$f":"CashFlow!L181","v":-31486.292549999998},{"$f":"[1]CashFlow!P181","v":-7755.9384605201785},{"$f":"CashFlow!N181","v":-7755.9384605201785},{"$f":"[1]CashFlow!R181","v":-6042.6127031689084},{"$f":"CashFlow!P181","v":-6042.6127031689084},{"$f":"[1]CashFlow!S181","v":-4100.0500351399978},{"$f":"CashFlow!R181","v":-4100.0500351399978}]
[{"$f":"CashFlow!A182","v":1},{"$f":"CashFlow!B182","v":"CF514"},null,null,null,"Investment property",null,{"$f":"-R182+Q182","v":0},{"$f":"-T182+S182","v":0},{"$f":"-V182+U182","v":0},{"$f":"-X182+W182","v":0},{"$f":"-Z182+Y182","v":0},{"$f":"-AB182+AA182","v":0},null,null,null,{"$f":"[1]CashFlow!J182","v":0},{"$f":"CashFlow!I182","v":0},{"$f":"[1]CashFlow!L182","v":0},{"$f":"CashFlow!J182","v":0},{"$f":"[1]CashFlow!N182","v":0},{"$f":"CashFlow!L182","v":0},{"$f":"[1]CashFlow!P182","v":0},{"$f":"CashFlow!N182","v":0},{"$f":"[1]CashFlow!R182","v":0},{"$f":"CashFlow!P182","v":0},{"$f":"[1]CashFlow!S182","v":0},{"$f":"CashFlow!R182","v":0}]
[{"$f":"CashFlow!A183","v":1},{"$f":"CashFlow!B183","v":"CF520"},null,null,null,"Acquisition of software and other intangible assets",null,{"$f":"-R183+Q183","v":0},{"$f":"-T183+S183","v":0},{"$f":"-V183+U183","v":0},{"$f":"-X183+W183","v":0},{"$f":"-Z183+Y183","v":0},{"$f":"-AB183+AA183","v":0},null,null,null,{"$f":"[1]CashFlow!J183","v":-242892},{"$f":"CashFlow!I183","v":-242892},{"$f":"[1]CashFlow!L183","v":-248243},{"$f":"CashFlow!J183","v":-248243},{"$f":"[1]CashFlow!N183","v":-273672.01592999999},{"$f":"CashFlow!L183","v":-273672.01592999999},{"$f":"[1]CashFlow!P183","v":-360614.72917225107},{"$f":"CashFlow!N183","v":-360614.72917225107},{"$f":"[1]CashFlow!R183","v":-232361.13287739558},{"$f":"CashFlow!P183","v":-232361.13287739558},{"$f":"[1]CashFlow!S183","v":-74501.14822183043},{"$f":"CashFlow!R183","v":-74501.14822183043}]
[{"$f":"CashFlow!A184","v":1},{"$f":"CashFlow!B195","v":"CF6"},null,null,null,"Cash flow from financing activities"]
[{"$f":"CashFlow!A185","v":1},{"$f":"CashFlow!B196","v":"CF61"},null,null,null,"Deferred Income",null,{"$f":"R185-Q185","v":0},{"$f":"T185-S185","v":0},{"$f":"V185-U185","v":0},{"$f":"X185-W185","v":0},{"$f":"Z185-Y185","v":0},{"$f":"AB185-AA185","v":0},null,null,null,{"$f":"SUM(Q186:Q187)","v":0},{"$f":"SUM(R186:R187)","v":0},{"$f":"SUM(S186:S187)","v":0},0,0,0,0,0,0,0,0,0]
[{"$f":"CashFlow!A186","v":1},{"$f":"CashFlow!B197","v":"CF611"},null,null,null,"Departmental transfer",null,{"$f":"R186-Q186","v":0},{"$f":"T186-S186","v":0},{"$f":"V186-U186","v":0},{"$f":"X186-W186","v":0},{"$f":"Z186-Y186","v":0},{"$f":"AB186-AA186","v":0},null,null,null,{"$f":"[1]CashFlow!J197","v":0},{"$f":"CashFlow!I197","v":0},{"$f":"[1]CashFlow!L197","v":0},{"$f":"CashFlow!J197","v":0},{"$f":"[1]CashFlow!N197","v":0},{"$f":"CashFlow!L197","v":0},{"$f":"[1]CashFlow!P197","v":0},{"$f":"CashFlow!N197","v":0},{"$f":"[1]CashFlow!R197","v":0},{"$f":"CashFlow!P197","v":0},{"$f":"[1]CashFlow!S197","v":0},{"$f":"CashFlow!R197","v":0}]
[{"$f":"CashFlow!A187","v":1},{"$f":"CashFlow!B198","v":"CF612"},null,null,null,"Other Revenue",null,{"$f":"R187-Q187","v":0},{"$f":"T187-S187","v":0},{"$f":"V187-U187","v":0},{"$f":"X187-W187","v":0},{"$f":"Z187-Y187","v":0},{"$f":"AB187-AA187","v":0},null,null,null,{"$f":"[1]CashFlow!J198","v":0},{"$f":"CashFlow!I198","v":0},{"$f":"[1]CashFlow!L198","v":0},{"$f":"CashFlow!J198","v":0},{"$f":"[1]CashFlow!N198","v":0},{"$f":"CashFlow!L198","v":0},{"$f":"[1]CashFlow!P198","v":0},{"$f":"CashFlow!N198","v":0},{"$f":"[1]CashFlow!R198","v":0},{"$f":"CashFlow!P198","v":0},{"$f":"[1]CashFlow!S198","v":0},{"$f":"CashFlow!R198","v":0}]
[]
[null,null,null,null,null,"CFD Receipts"]
[null,null,null,null,null,"CFD Payment"]
[null,null,null,null,null,"CFD Advancing"]
[null,null,null,null,null,"CFD Aqusition"]
[null,null,null,null,null,"CFD Deferred "]

{"sheet":"CF_Diff_ENEs","index":24,"n_rows":193,"n_cols":32,"rows_kept":193,"cut":false,"hidden":true,"merged":[[7,17,7,18],[7,27,7,28],[7,19,7,20],[7,21,7,22],[7,25,7,26],[7,23,7,24]]}
[]
[null,null,null,null,null,null,null,"Legend"]
[null,null,null,null,null,"Differences between ENE 2025 less ENE 2024",null,"Red",null,"This colour signifies that the difference is above R100 000"]
[null,null,null,null,null,null,null,"Green",null,"This colour signifies that the difference is above (R100 000)"]
[]
[null,null,null,null,null,"PE No",{"$f":"Settings!$O$2","v":"PE126"}]
[null,null,null,null,null,"Entity name",{"$f":"Settings!$E$2","v":"South African Revenue Service"}]
[null,null,null,null,null,"Cash flow data",null,{"$f":"MyYearM3","v":"2022/23"},{"$f":"MyYearM2","v":"2023/24"},{"$f":"MyYearM1","v":"2024/25"},{"$f":"MyYear0","v":"2025/26"},{"$f":"MyYearP1","v":"2026/27"},{"$f":"MyYearP2","v":"2027/28"},{"$f":"MyYearP3","v":"2028/29"},null,"EXPLANATIONS",null,{"$f":"MyYearM3","v":"2022/23"},null,{"$f":"MyYearM2","v":"2023/24"},null,{"$f":"MyYearM1","v":"2024/25"},null,{"$f":"MyYear0","v":"2025/26"},null,{"$f":"MyYearP1","v":"2026/27"},null,{"$f":"MyYearP2","v":"2027/28"},null,{"$f":"MyYearP3","v":"2028/29"},{"$f":"MyYearP3","v":"2028/29"}]
[null,null,null,null,null,"R Thousand",null,{"$f":"Hist_year3RestatedAudited","v":"Audited\noutcome"},{"$f":"Hist_year2RestatedAudited","v":"Audited\noutcome"},{"$f":"Hist_year1Audited","v":"Audited\noutcome"},{"$f":"Cur_YearApprovedBudg","v":"Approved budget"},{"$f":"MTEF1RevBudgEst","v":"Revised\nbudget\nestimate"},{"$f":"MTEF2RevBudgEst","v":"Revised\nbudget\nestimate"},{"$f":"MTEF2RevBudgEst","v":"Revised\nbudget\nestimate"},null,null,null,{"$f":"Hist_year3RestatedAudited","v":"Audited\noutcome"},{"$f":"Hist_year3RestatedAudited","v":"Audited\noutcome"},{"$f":"Hist_year3RestatedAudited","v":"Audited\noutcome"},{"$f":"Hist_year2RestatedAudited","v":"Audited\noutcome"},{"$f":"Hist_year1Budget","v":"Budget"},{"$f":"Hist_year1Audited","v":"Audited\noutcome"},{"$f":"Cur_YearBudgEst","v":"Budget\nestimate"},{"$f":"Cur_YearApprovedBudg","v":"Approved budget"},{"$f":"MTEF1BudgEst","v":"Budget\nestimate"},{"$f":"MTEF1RevBudgEst","v":"Revised\nbudget\nestimate"},{"$f":"MTEF2BudgEst","v":"Budget\nestimate"},{"$f":"MTEF2RevBudgEst","v":"Revised\nbudget\nestimate"},{"$f":"MTEF3PlanBudgetEst","v":"Planning\nbudget \nestimate"},{"$f":"MTEF3PlanBudgetEst","v":"Planning\nbudget \nestimate"}]
[null,null,null,null,null,null,null,null,null,null,null,null,null,null,null,null,null,{"$f":"\"ENE \"&LEFT($X$8,4)","v":"ENE 2025"},"ENE 2024",{"$f":"R10","v":"ENE 2025"},"ENE 2024",{"$f":"\"ENE \"&LEFT($X$8,4)","v":"ENE 2025"},"ENE 2024",{"$f":"\"ENE \"&LEFT($X$8,4)","v":"ENE 2025"},"ENE 2024",{"$f":"\"ENE \"&LEFT($X$8,4)","v":"ENE 2025"},"ENE 2024","ENE 2024","ENE 2024",{"$f":"\"ENE \"&LEFT($X$8,4)","v":"ENE 2025"},"ENE 2024"]
[{"$f":"CashFlow!A11","v":1},{"$f":"CashFlow!B11","v":"CF3"},null,null,null,"Cash flow from operating activities",null,null,null,null,null,null,null,null,null,null,null,{"$f":"(R12-R58)","v":665308.37268999964},665308.37268999964,856437.24493999965,856437.24493999965,-380523.90497189574,-380523.90497189574,1140053.0617051907,1140053.0617051907,485904.0780388359,485904.0780388359,294684.81750541553,294684.81750541553,0,0]
[{"$f":"CashFlow!A12","v":1},{"$f":"CashFlow!B12","v":"CF1"},null,null,null,"Cash receipts from stakeholders",null,{"$f":"S12-R12","v":0},{"$f":"U12-T12","v":0},{"$f":"W12-V12","v":0},{"$f":"Y12-X12","v":0},{"$f":"AA12-Z12","v":0},{"$f":"AC12-AB12","v":0},{"$f":"AE12-AD12","v":0},null,null,null,{"$f":"SUM(R13,R14,R30,R48:R49,R53,R56:R57)","v":12169187},12169187,13806595,13806595,12946582.556904105,12946582.556904105,15942360.806116154,15942360.806116154,15448121.159190124,15448121.159190124,16029705.772610115,16029705.772610115,0,0]
[{"$f":"CashFlow!A13","v":1},{"$f":"CashFlow!B13","v":"CF11"},null,null,null,"Tax receipts",null,0,0,0,0,0,{"$f":"AC13-AB13","v":0},{"$f":"AE13-AD13","v":0},null,null,null,{"$f":"[1]CF_Diff_ENEs!U13","v":0},{"$f":"CashFlow!I13","v":0},{"$f":"[1]CF_Diff_ENEs!W13","v":0},{"$f":"CashFlow!J13","v":0},{"$f":"CashFlow!K13","v":0},{"$f":"CashFlow!L13","v":0},{"$f":"CashFlow!M13","v":0},{"$f":"CashFlow!N13","v":0},{"$f":"CashFlow!O13","v":0},{"$f":"CashFlow!P13","v":0},{"$f":"CashFlow!Q13","v":0},{"$f":"CashFlow!R13","v":0},{"$f":"CashFlow!S13","v":0},{"$f":"CashFlow!S13","v":0},{"$f":"CashFlow!U13","v":0}]
[{"$f":"CashFlow!A14","v":1},{"$f":"CashFlow!B14","v":"CF12"},null,null,null,"Sales of goods and services other than capital assets",null,0,0,0,0,0,0,0,null,null,null,{"$f":"SUM(R15,R29)","v":430771},{"$f":"SUM(S15,S29)","v":430771},{"$f":"SUM(T15,T29)","v":377667},377667,431549.4111441056,431549.4111441056,443999.80611615477,443999.80611615477,456813.79119011993,456813.79119011993,470002.07563411363,470002.07563411363,0,0,{"$f":"SUM(AF15,AF29)","v":0}]
[{"$f":"CashFlow!A15","v":1},{"$f":"CashFlow!B15","v":"CF1111"},null,null,null,"Sales of goods and services produced by entity",null,0,0,0,0,0,0,0,null,null,null,{"$f":"SUM(R16,R21,R26)","v":430771},{"$f":"SUM(S16,S21,S26)","v":430771},{"$f":"SUM(T16,T21,T26)","v":377667},377667,431549.4111441056,431549.4111441056,443999.80611615477,443999.80611615477,456813.79119011993,456813.79119011993,470002.07563411363,470002.07563411363,0,0,{"$f":"SUM(AF16,AF21,AF26)","v":0}]
[{"$f":"CashFlow!A16","v":1},{"$f":"CashFlow!B16","v":"CF11111"},null,null,null,"Administrative fees",null,0,0,0,0,0,0,0,null,null,null,{"$f":"SUM(R17:R20)","v":0},{"$f":"SUM(S17:S20)","v":0},{"$f":"SUM(T17:T20)","v":0},0,0,0,0,0,0,0,0,0,0,0,{"$f":"SUM(AF17:AF20)","v":0}]
[{"$f":"CashFlow!A17","v":1},{"$f":"CashFlow!B17","v":"CF111111"},null,null,null,{"$f":"CashFlow!F17","v":"Please specify"},null,0,0,0,0,0,0,0,null,null,null,{"$f":"[1]CF_Diff_ENEs!U17","v":0},{"$f":"CashFlow!I17","v":0},{"$f":"[1]CF_Diff_ENEs!W17","v":0},{"$f":"CashFlow!J17","v":0},{"$f":"CashFlow!K17","v":0},{"$f":"CashFlow!L17","v":0},{"$f":"CashFlow!M17","v":0},{"$f":"CashFlow!N17","v":0},{"$f":"CashFlow!O17","v":0},{"$f":"CashFlow!P17","v":0},{"$f":"CashFlow!Q17","v":0},{"$f":"CashFlow!R17","v":0},{"$f":"CashFlow!S17","v":0},{"$f":"CashFlow!S17","v":0},{"$f":"CashFlow!U17","v":0}]
[{"$f":"CashFlow!A18","v":1},{"$f":"CashFlow!B18","v":"CF111112"},null,null,null,{"$f":"CashFlow!F18","v":"Please specify"},null,0,0,0,0,0,0,0,null,null,null,{"$f":"[1]CF_Diff_ENEs!U18","v":0},{"$f":"CashFlow!I18","v":0},{"$f":"[1]CF_Diff_ENEs!W18","v":0},{"$f":"CashFlow!J18","v":0},{"$f":"CashFlow!K18","v":0},{"$f":"CashFlow!L18","v":0},{"$f":"CashFlow!M18","v":0},{"$f":"CashFlow!N18","v":0},{"$f":"CashFlow!O18","v":0},{"$f":"CashFlow!P18","v":0},{"$f":"CashFlow!Q18","v":0},{"$f":"CashFlow!R18","v":0},{"$f":"CashFlow!S18","v":0},{"$f":"CashFlow!S18","v":0},{"$f":"CashFlow!U18","v":0}]
[{"$f":"CashFlow!A19","v":1},{"$f":"CashFlow!B19","v":"CF111113"},null,null,null,{"$f":"CashFlow!F19","v":"Please specify"},null,0,0,0,0,0,0,0,null,null,null,{"$f":"[1]CF_Diff_ENEs!U19","v":0},{"$f":"CashFlow!I19","v":0},{"$f":"[1]CF_Diff_ENEs!W19","v":0},{"$f":"CashFlow!J19","v":0},{"$f":"CashFlow!K19","v":0},{"$f":"CashFlow!L19","v":0},{"$f":"CashFlow!M19","v":0},{"$f":"CashFlow!N19","v":0},{"$f":"CashFlow!O19","v":0},{"$f":"CashFlow!P19","v":0},{"$f":"CashFlow!Q19","v":0},{"$f":"CashFlow!R19","v":0},{"$f":"CashFlow!S19","v":0},{"$f":"CashFlow!S19","v":0},{"$f":"CashFlow!U19","v":0}]
[{"$f":"CashFlow!A20","v":1},{"$f":"CashFlow!B20","v":"CF111114"},null,null,null,{"$f":"CashFlow!F20","v":"Please specify"},null,0,0,0,0,0,0,0,null,null,null,{"$f":"[1]CF_Diff_ENEs!U20","v":0},{"$f":"CashFlow!I20","v":0},{"$f":"[1]CF_Diff_ENEs!W20","v":0},{"$f":"CashFlow!J20","v":0},{"$f":"CashFlow!K20","v":0},{"$f":"CashFlow!L20","v":0},{"$f":"CashFlow!M20","v":0},{"$f":"CashFlow!N20","v":0},{"$f":"CashFlow!O20","v":0},{"$f":"CashFlow!P20","v":0},{"$f":"CashFlow!Q20","v":0},{"$f":"CashFlow!R20","v":0},{"$f":"CashFlow!S20","v":0},{"$f":"CashFlow!S20","v":0},{"$f":"CashFlow!U20","v":0}]
[{"$f":"CashFlow!A21","v":1},{"$f":"CashFlow!B21","v":"CF11112"},null,null,null,"Sales by market establishments",null,0,0,0,0,0,0,0,null,null,null,{"$f":"SUM(R22:R25)","v":0},{"$f":"SUM(S22:S25)","v":0},{"$f":"SUM(T22:T25)","v":0},0,0,0,0,0,0,0,0,0,0,0,{"$f":"SUM(AF22:AF25)","v":0}]
[{"$f":"CashFlow!A22","v":1},{"$f":"CashFlow!B22","v":"CF111121"},null,null,null,{"$f":"CashFlow!F22","v":"Please specify"},null,0,0,0,0,0,0,0,null,null,null,{"$f":"[1]CF_Diff_ENEs!U22","v":0},{"$f":"CashFlow!I22","v":0},{"$f":"[1]CF_Diff_ENEs!W22","v":0},{"$f":"CashFlow!J22","v":0},{"$f":"CashFlow!K22","v":0},{"$f":"CashFlow!L22","v":0},{"$f":"CashFlow!M22","v":0},{"$f":"CashFlow!N22","v":0},{"$f":"CashFlow!O22","v":0},{"$f":"CashFlow!P22","v":0},{"$f":"CashFlow!Q22","v":0},{"$f":"CashFlow!R22","v":0},{"$f":"CashFlow!S22","v":0},{"$f":"CashFlow!S22","v":0},{"$f":"CashFlow!U22","v":0}]
[{"$f":"CashFlow!A23","v":1},{"$f":"CashFlow!B23","v":"CF111122"},null,null,null,{"$f":"CashFlow!F23","v":"Please specify"},null,0,0,0,0,0,0,0,null,null,null,{"$f":"[1]CF_Diff_ENEs!U23","v":0},{"$f":"CashFlow!I23","v":0},{"$f":"[1]CF_Diff_ENEs!W23","v":0},{"$f":"CashFlow!J23","v":0},{"$f":"CashFlow!K23","v":0},{"$f":"CashFlow!L23","v":0},{"$f":"CashFlow!M23","v":0},{"$f":"CashFlow!N23","v":0},{"$f":"CashFlow!O23","v":0},{"$f":"CashFlow!P23","v":0},{"$f":"CashFlow!Q23","v":0},{"$f":"CashFlow!R23","v":0},{"$f":"CashFlow!S23","v":0},{"$f":"CashFlow!S23","v":0},{"$f":"CashFlow!U23","v":0}]
[{"$f":"CashFlow!A24","v":1},{"$f":"CashFlow!B24","v":"CF111123"},null,null,null,{"$f":"CashFlow!F24","v":"Please specify"},null,0,0,0,0,0,0,0,null,null,null,{"$f":"[1]CF_Diff_ENEs!U24","v":0},{"$f":"CashFlow!I24","v":0},{"$f":"[1]CF_Diff_ENEs!W24","v":0},{"$f":"CashFlow!J24","v":0},{"$f":"CashFlow!K24","v":0},{"$f":"CashFlow!L24","v":0},{"$f":"CashFlow!M24","v":0},{"$f":"CashFlow!N24","v":0},{"$f":"CashFlow!O24","v":0},{"$f":"CashFlow!P24","v":0},{"$f":"CashFlow!Q24","v":0},{"$f":"CashFlow!R24","v":0},{"$f":"CashFlow!S24","v":0},{"$f":"CashFlow!S24","v":0},{"$f":"CashFlow!U24","v":0}]
[{"$f":"CashFlow!A25","v":1},{"$f":"CashFlow!B25","v":"CF111124"},null,null,null,{"$f":"CashFlow!F25","v":"Please specify"},null,0,0,0,0,0,0,0,null,null,null,{"$f":"[1]CF_Diff_ENEs!U25","v":0},{"$f":"CashFlow!I25","v":0},{"$f":"[1]CF_Diff_ENEs!W25","v":0},{"$f":"CashFlow!J25","v":0},{"$f":"CashFlow!K25","v":0},{"$f":"CashFlow!L25","v":0},{"$f":"CashFlow!M25","v":0},{"$f":"CashFlow!N25","v":0},{"$f":"CashFlow!O25","v":0},{"$f":"CashFlow!P25","v":0},{"$f":"CashFlow!Q25","v":0},{"$f":"CashFlow!R25","v":0},{"$f":"CashFlow!S25","v":0},{"$f":"CashFlow!S25","v":0},{"$f":"CashFlow!U25","v":0}]
[{"$f":"CashFlow!A26","v":1},{"$f":"CashFlow!B26","v":"CF11113"},null,null,null,"Other sales",null,0,0,0,0,0,0,0,null,null,null,{"$f":"SUM(R27:R28)","v":430771},{"$f":"SUM(S27:S28)","v":430771},{"$f":"SUM(T27:T28)","v":377667},{"$f":"SUM(U27:U28)","v":377667},431549.4111441056,431549.4111441056,443999.80611615477,443999.80611615477,456813.79119011993,456813.79119011993,470002.07563411363,470002.07563411363,0,0,{"$f":"SUM(AF27:AF28)","v":0}]
[{"$f":"CashFlow!A27","v":1},{"$f":"CashFlow!B27","v":"CF111131"},null,null,null,"User charges",null,0,0,0,0,0,0,0,null,null,null,{"$f":"[1]CF_Diff_ENEs!U27","v":430771},{"$f":"CashFlow!I27","v":430771},{"$f":"[1]CF_Diff_ENEs!W27","v":377667},{"$f":"CashFlow!J27","v":377667},{"$f":"CashFlow!K27","v":431549.4111441056},{"$f":"CashFlow!L27","v":431549.4111441056},{"$f":"CashFlow!M27","v":443999.80611615477},{"$f":"CashFlow!N27","v":443999.80611615477},{"$f":"CashFlow!O27","v":456813.79119011993},{"$f":"CashFlow!P27","v":456813.79119011993},{"$f":"CashFlow!Q27","v":470002.07563411363},{"$f":"CashFlow!R27","v":470002.07563411363},{"$f":"CashFlow!S27","v":0},{"$f":"CashFlow!S27","v":0},{"$f":"CashFlow!U27","v":0}]
[{"$f":"CashFlow!A28","v":1},{"$f":"CashFlow!B28","v":"CF111132"},null,null,null,"Sales other than user charges",null,0,0,0,0,0,0,0,null,null,null,{"$f":"[1]CF_Diff_ENEs!U28","v":0},{"$f":"CashFlow!I28","v":0},{"$f":"[1]CF_Diff_ENEs!W28","v":0},{"$f":"CashFlow!J28","v":0},{"$f":"CashFlow!K28","v":0},{"$f":"CashFlow!L28","v":0},{"$f":"CashFlow!M28","v":0},{"$f":"CashFlow!N28","v":0},{"$f":"CashFlow!O28","v":0},{"$f":"CashFlow!P28","v":0},{"$f":"CashFlow!Q28","v":0},{"$f":"CashFlow!R28","v":0},{"$f":"CashFlow!S28","v":0},{"$f":"CashFlow!S28","v":0},{"$f":"CashFlow!U28","v":0}]
[{"$f":"CashFlow!A29","v":1},{"$f":"CashFlow!B29","v":"CF11114"},null,null,null,"Sales of scrap, waste, arms and other used current goods",null,null,null,null,null,null,null,0,null,null,null,{"$f":"[1]CF_Diff_ENEs!U29","v":0},{"$f":"CashFlow!I29","v":0},{"$f":"[1]CF_Diff_ENEs!W29","v":0},{"$f":"CashFlow!J29","v":0},{"$f":"CashFlow!K29","v":0},{"$f":"CashFlow!L29","v":0},{"$f":"CashFlow!M29","v":0},{"$f":"CashFlow!N29","v":0},{"$f":"CashFlow!O29","v":0},{"$f":"CashFlow!P29","v":0},{"$f":"CashFlow!Q29","v":0},{"$f":"CashFlow!R29","v":0},{"$f":"CashFlow!S29","v":0},{"$f":"CashFlow!S29","v":0},{"$f":"CashFlow!U29","v":0}]
[{"$f":"CashFlow!A30","v":1},{"$f":"CashFlow!B30","v":"CF112"},null,null,null,"Transfers received",null,0,0,0,0,0,0,0,null,null,null,{"$f":"SUM(R31:R32,R36,R45:R47)","v":11635781},11635781,13280696,13280696,12388563,12388563,15409637,15409637,14895308,14895308,15455832.380799999,15455832.380799999,0,0,{"$f":"SUM(AF31:AF32,AF36,AF45:AF47)","v":0}]
[{"$f":"CashFlow!A31","v":4},{"$f":"CashFlow!B31","v":"CF1121"},null,null,null,"Social contributions",null,0,0,0,0,0,0,0,null,null,null,{"$f":"[1]CF_Diff_ENEs!U31","v":0},{"$f":"CashFlow!I31","v":0},{"$f":"[1]CF_Diff_ENEs!W31","v":0},{"$f":"CashFlow!J31","v":0},{"$f":"CashFlow!K31","v":0},{"$f":"CashFlow!L31","v":0},{"$f":"CashFlow!M31","v":0},{"$f":"CashFlow!N31","v":0},{"$f":"CashFlow!O31","v":0},{"$f":"CashFlow!P31","v":0},{"$f":"CashFlow!Q31","v":0},{"$f":"CashFlow!R31","v":0},{"$f":"CashFlow!S31","v":0},{"$f":"CashFlow!S31","v":0},{"$f":"CashFlow!U31","v":0}]
[{"$f":"CashFlow!A32","v":1},{"$f":"CashFlow!B32","v":"CF1122"},null,null,null,"Other goverment units",null,0,0,0,0,0,0,0,null,null,null,{"$f":"SUM(R33,R42:R44)","v":11635781},11635781,13280696,13280696,12388563,12388563,15409637,15409637,14895308,14895308,15455832.380799999,15455832.380799999,0,0,{"$f":"SUM(AF33,AF42:AF44)","v":0}]
[{"$f":"CashFlow!A33","v":1},{"$f":"CashFlow!B33","v":"CF11221"},null,null,null,"National government",null,0,0,0,0,0,0,0,null,null,null,{"$f":"SUM(R34:R35)","v":11635781},11635781,13280696,13280696,12388563,12388563,15409637,15409637,14895308,14895308,15455832.380799999,15455832.380799999,0,{"$f":"SUM(AE34:AE35)","v":0},{"$f":"SUM(AF34:AF35)","v":0}]
[{"$f":"CashFlow!A34","v":1},{"$f":"CashFlow!B34","v":"CF112211"},null,null,null,"Departmental transfers",null,0,0,0,0,0,0,0,null,null,null,{"$f":"[1]CF_Diff_ENEs!U34","v":11635781},{"$f":"CashFlow!I34","v":11635781},{"$f":"[1]CF_Diff_ENEs!W34","v":13280696},{"$f":"CashFlow!J34","v":13280696},{"$f":"CashFlow!K34","v":12388563},{"$f":"CashFlow!L34","v":12388563},{"$f":"CashFlow!M34","v":15409637},{"$f":"CashFlow!N34","v":15409637},{"$f":"CashFlow!O34","v":14895308},{"$f":"CashFlow!P34","v":14895308},{"$f":"CashFlow!Q34","v":15455832.380799999},{"$f":"CashFlow!R34","v":15455832.380799999},{"$f":"CashFlow!S34","v":0},{"$f":"CashFlow!S34","v":0},{"$f":"CashFlow!U34","v":0}]
[{"$f":"CashFlow!A35","v":1},{"$f":"CashFlow!B35","v":"CF1122121"},null,null,null,"Other national departments",null,0,0,0,0,0,0,0,null,null,null,{"$f":"[1]CF_Diff_ENEs!U35","v":0},{"$f":"CashFlow!I35","v":0},{"$f":"[1]CF_Diff_ENEs!W35","v":0},{"$f":"CashFlow!J35","v":0},{"$f":"CashFlow!K35","v":0},{"$f":"CashFlow!L35","v":0},{"$f":"CashFlow!M35","v":0},{"$f":"CashFlow!N35","v":0},{"$f":"CashFlow!O35","v":0},{"$f":"CashFlow!P35","v":0},{"$f":"CashFlow!Q35","v":0},{"$f":"CashFlow!R35","v":0},{"$f":"CashFlow!S35","v":0},{"$f":"CashFlow!S35","v":0},{"$f":"CashFlow!U35","v":0}]
[{"$f":"CashFlow!A36","v":2},{"$f":"CashFlow!B36","v":"CF11225"},null,null,null,"Skills development (SETAs)",null,0,0,0,0,0,0,0,null,null,null,{"$f":"SUM(R37,R41)","v":0},{"$f":"SUM(S37,S41)","v":0},{"$f":"SUM(T37,T41)","v":0},0,0,0,0,0,0,0,0,0,0,0,{"$f":"SUM(AF37,AF41)","v":0}]
[{"$f":"CashFlow!A37","v":2},{"$f":"CashFlow!B37","v":"CF1122122"},null,null,null,"Skills development levies ",null,{"$f":"S37-R37","v":0},{"$f":"U37-T37","v":0},{"$f":"W37-V37","v":0},{"$f":"Y37-X37","v":0},{"$f":"AA37-Z37","v":0},{"$f":"AC37-AB37","v":0},0,null,null,null,{"$f":"SUM(R38:R40)","v":0},{"$f":"SUM(S38:S40)","v":0},{"$f":"SUM(T38:T40)","v":0},0,0,0,0,0,0,0,0,0,0,{"$f":"SUM(AE38:AE40)","v":0},{"$f":"SUM(AF38:AF40)","v":0}]
[{"$f":"CashFlow!A38","v":2},{"$f":"CashFlow!B38","v":"CF11221221"},null,null,null," Admin - 10.5%",null,{"$f":"S38-R38","v":0},{"$f":"U38-T38","v":0},{"$f":"W38-V38","v":0},{"$f":"Y38-X38","v":0},{"$f":"AA38-Z38","v":0},{"$f":"AC38-AB38","v":0},0,null,null,null,{"$f":"[1]CF_Diff_ENEs!U38","v":0},{"$f":"CashFlow!I38","v":0},{"$f":"[1]CF_Diff_ENEs!W38","v":0},{"$f":"CashFlow!J38","v":0},{"$f":"CashFlow!K38","v":0},{"$f":"CashFlow!L38","v":0},{"$f":"CashFlow!M38","v":0},{"$f":"CashFlow!N38","v":0},{"$f":"CashFlow!O38","v":0},{"$f":"CashFlow!P38","v":0},{"$f":"CashFlow!Q38","v":0},{"$f":"CashFlow!R38","v":0},{"$f":"CashFlow!S38","v":0},{"$f":"CashFlow!S38","v":0},{"$f":"CashFlow!U38","v":0}]
[{"$f":"CashFlow!A39","v":2},{"$f":"CashFlow!B39","v":"CF11221222"},null,null,null,"Employer grant fund levy -  20%",null,{"$f":"S39-R39","v":0},{"$f":"U39-T39","v":0},{"$f":"W39-V39","v":0},{"$f":"Y39-X39","v":0},{"$f":"AA39-Z39","v":0},{"$f":"AC39-AB39","v":0},0,null,null,null,{"$f":"[1]CF_Diff_ENEs!U39","v":0},{"$f":"CashFlow!I39","v":0},{"$f":"[1]CF_Diff_ENEs!W39","v":0},{"$f":"CashFlow!J39","v":0},{"$f":"CashFlow!K39","v":0},{"$f":"CashFlow!L39","v":0},{"$f":"CashFlow!M39","v":0},{"$f":"CashFlow!N39","v":0},{"$f":"CashFlow!O39","v":0},{"$f":"CashFlow!P39","v":0},{"$f":"CashFlow!Q39","v":0},{"$f":"CashFlow!R39","v":0},{"$f":"CashFlow!S39","v":0},{"$f":"CashFlow!S39","v":0},{"$f":"CashFlow!U39","v":0}]
[{"$f":"CashFlow!A40","v":2},{"$f":"CashFlow!B40","v":"CF11221223"},null,null,null,"Discretionary grants - 49.5%",null,{"$f":"S40-R40","v":0},{"$f":"U40-T40","v":0},{"$f":"W40-V40","v":0},{"$f":"Y40-X40","v":0},{"$f":"AA40-Z40","v":0},{"$f":"AC40-AB40","v":0},0,null,null,null,{"$f":"[1]CF_Diff_ENEs!U40","v":0},{"$f":"CashFlow!I40","v":0},{"$f":"[1]CF_Diff_ENEs!W40","v":0},{"$f":"CashFlow!J40","v":0},{"$f":"CashFlow!K40","v":0},{"$f":"CashFlow!L40","v":0},{"$f":"CashFlow!M40","v":0},{"$f":"CashFlow!N40","v":0},{"$f":"CashFlow!O40","v":0},{"$f":"CashFlow!P40","v":0},{"$f":"CashFlow!Q40","v":0},{"$f":"CashFlow!R40","v":0},{"$f":"CashFlow!S40","v":0},{"$f":"CashFlow!S40","v":0},{"$f":"CashFlow!U40","v":0}]
[{"$f":"CashFlow!A41","v":2},{"$f":"CashFlow!B41","v":"CF1122126"},null,null,null,"National skills fund ",null,0,0,0,0,0,0,0,null,null,null,{"$f":"[1]CF_Diff_ENEs!U41","v":0},{"$f":"CashFlow!I41","v":0},{"$f":"[1]CF_Diff_ENEs!W41","v":0},{"$f":"CashFlow!J41","v":0},{"$f":"CashFlow!K41","v":0},{"$f":"CashFlow!L41","v":0},{"$f":"CashFlow!M41","v":0},{"$f":"CashFlow!N41","v":0},{"$f":"CashFlow!O41","v":0},{"$f":"CashFlow!P41","v":0},{"$f":"CashFlow!Q41","v":0},{"$f":"CashFlow!R41","v":0},{"$f":"CashFlow!S41","v":0},{"$f":"CashFlow!S41","v":0},{"$f":"CashFlow!U41","v":0}]
[{"$f":"CashFlow!A42","v":1},{"$f":"CashFlow!B42","v":"CF1122123"},null,null,null,"Departmental agencies and accounts",null,0,0,0,0,0,0,0,null,null,null,{"$f":"[1]CF_Diff_ENEs!U42","v":0},{"$f":"CashFlow!I42","v":0},{"$f":"[1]CF_Diff_ENEs!W42","v":0},{"$f":"CashFlow!J42","v":0},{"$f":"CashFlow!K42","v":0},{"$f":"CashFlow!L42","v":0},{"$f":"CashFlow!M42","v":0},{"$f":"CashFlow!N42","v":0},{"$f":"CashFlow!O42","v":0},{"$f":"CashFlow!P42","v":0},{"$f":"CashFlow!Q42","v":0},{"$f":"CashFlow!R42","v":0},{"$f":"CashFlow!S42","v":0},{"$f":"CashFlow!S42","v":0},{"$f":"CashFlow!U42","v":0}]
[{"$f":"CashFlow!A43","v":1},{"$f":"CashFlow!B43","v":"CF1122124"},null,null,null,"Provincial governments",null,0,0,0,0,0,0,0,null,null,null,{"$f":"[1]CF_Diff_ENEs!U43","v":0},{"$f":"CashFlow!I43","v":0},{"$f":"[1]CF_Diff_ENEs!W43","v":0},{"$f":"CashFlow!J43","v":0},{"$f":"CashFlow!K43","v":0},{"$f":"CashFlow!L43","v":0},{"$f":"CashFlow!M43","v":0},{"$f":"CashFlow!N43","v":0},{"$f":"CashFlow!O43","v":0},{"$f":"CashFlow!P43","v":0},{"$f":"CashFlow!Q43","v":0},{"$f":"CashFlow!R43","v":0},{"$f":"CashFlow!S43","v":0},{"$f":"CashFlow!S43","v":0},{"$f":"CashFlow!U43","v":0}]
[{"$f":"CashFlow!A44","v":1},{"$f":"CashFlow!B44","v":"CF1122125"},null,null,null,"Local governments",null,0,0,0,0,0,0,0,null,null,null,{"$f":"[1]CF_Diff_ENEs!U44","v":0},{"$f":"CashFlow!I44","v":0},{"$f":"[1]CF_Diff_ENEs!W44","v":0},{"$f":"CashFlow!J44","v":0},{"$f":"CashFlow!K44","v":0},{"$f":"CashFlow!L44","v":0},{"$f":"CashFlow!M44","v":0},{"$f":"CashFlow!N44","v":0},{"$f":"CashFlow!O44","v":0},{"$f":"CashFlow!P44","v":0},{"$f":"CashFlow!Q44","v":0},{"$f":"CashFlow!R44","v":0},{"$f":"CashFlow!S44","v":0},{"$f":"CashFlow!S44","v":0},{"$f":"CashFlow!U44","v":0}]
[{"$f":"CashFlow!A45","v":1},{"$f":"CashFlow!B45","v":"CF11222"},null,null,null,"Higher education institutions",null,0,0,0,0,0,0,0,null,null,null,{"$f":"[1]CF_Diff_ENEs!U45","v":0},{"$f":"CashFlow!I45","v":0},{"$f":"[1]CF_Diff_ENEs!W45","v":0},{"$f":"CashFlow!J45","v":0},{"$f":"CashFlow!K45","v":0},{"$f":"CashFlow!L45","v":0},{"$f":"CashFlow!M45","v":0},{"$f":"CashFlow!N45","v":0},{"$f":"CashFlow!O45","v":0},{"$f":"CashFlow!P45","v":0},{"$f":"CashFlow!Q45","v":0},{"$f":"CashFlow!R45","v":0},{"$f":"CashFlow!S45","v":0},{"$f":"CashFlow!S45","v":0},{"$f":"CashFlow!U45","v":0}]
[{"$f":"CashFlow!A46","v":1},{"$f":"CashFlow!B46","v":"CF11223"},null,null,null,"Foreign governments and international organisations",null,0,0,0,0,0,0,0,null,null,null,{"$f":"[1]CF_Diff_ENEs!U46","v":0},{"$f":"CashFlow!I46","v":0},{"$f":"[1]CF_Diff_ENEs!W46","v":0},{"$f":"CashFlow!J46","v":0},{"$f":"CashFlow!K46","v":0},{"$f":"CashFlow!L46","v":0},{"$f":"CashFlow!M46","v":0},{"$f":"CashFlow!N46","v":0},{"$f":"CashFlow!O46","v":0},{"$f":"CashFlow!P46","v":0},{"$f":"CashFlow!Q46","v":0},{"$f":"CashFlow!R46","v":0},{"$f":"CashFlow!S46","v":0},{"$f":"CashFlow!S46","v":0},{"$f":"CashFlow!U46","v":0}]
[{"$f":"CashFlow!A47","v":1},{"$f":"CashFlow!B47","v":"CF11224"},null,null,null,"Local non-government donors",null,0,0,0,0,0,0,0,null,null,null,{"$f":"[1]CF_Diff_ENEs!U47","v":0},{"$f":"CashFlow!I47","v":0},{"$f":"[1]CF_Diff_ENEs!W47","v":0},{"$f":"CashFlow!J47","v":0},{"$f":"CashFlow!K47","v":0},{"$f":"CashFlow!L47","v":0},{"$f":"CashFlow!M47","v":0},{"$f":"CashFlow!N47","v":0},{"$f":"CashFlow!O47","v":0},{"$f":"CashFlow!P47","v":0},{"$f":"CashFlow!Q47","v":0},{"$f":"CashFlow!R47","v":0},{"$f":"CashFlow!S47","v":0},{"$f":"CashFlow!S47","v":0},{"$f":"CashFlow!U47","v":0}]
[{"$f":"CashFlow!A48","v":1},{"$f":"CashFlow!B48","v":"CF113"},null,null,null,"Fines, penalties and forfeits",null,0,0,0,0,0,0,0,null,null,null,{"$f":"[1]CF_Diff_ENEs!U48","v":0},{"$f":"CashFlow!I48","v":0},{"$f":"[1]CF_Diff_ENEs!W48","v":0},{"$f":"CashFlow!J48","v":0},{"$f":"CashFlow!K48","v":0},{"$f":"CashFlow!L48","v":0},{"$f":"CashFlow!M48","v":0},{"$f":"CashFlow!N48","v":0},{"$f":"CashFlow!O48","v":0},{"$f":"CashFlow!P48","v":0},{"$f":"CashFlow!Q48","v":0},{"$f":"CashFlow!R48","v":0},{"$f":"CashFlow!S48","v":0},{"$f":"CashFlow!S48","v":0},{"$f":"CashFlow!U48","v":0}]
[{"$f":"CashFlow!A49","v":1},{"$f":"CashFlow!B49","v":"CF114"},null,null,null,"Interest and rent on land",null,{"$f":"S49-R49","v":0},{"$f":"U49-T49","v":0},{"$f":"W49-V49","v":0},{"$f":"Y49-X49","v":0},{"$f":"AA49-Z49","v":0},{"$f":"AC49-AB49","v":0},0,null,null,null,{"$f":"SUM(R50:R52)","v":102635},{"$f":"SUM(S50:S52)","v":102635},{"$f":"SUM(T50:T52)","v":148232},148232,126470.14575999997,126470.14575999997,88724.000000000233,88724.000000000233,95999.368000004441,95999.368000004441,103871.31617600098,103871.31617600098,0,0,{"$f":"SUM(AF50:AF52)","v":0}]
[{"$f":"CashFlow!A50","v":1},{"$f":"CashFlow!B50","v":"CF1141"},null,null,null,"Interest",null,0,0,0,0,0,0,0,null,null,null,{"$f":"[1]CF_Diff_ENEs!U50","v":102635},{"$f":"CashFlow!I50","v":102635},{"$f":"[1]CF_Diff_ENEs!W50","v":148232},{"$f":"CashFlow!J50","v":148232},{"$f":"CashFlow!K50","v":126470.14575999997},{"$f":"CashFlow!L50","v":126470.14575999997},{"$f":"CashFlow!M50","v":88724.000000000233},{"$f":"CashFlow!N50","v":88724.000000000233},{"$f":"CashFlow!O50","v":95999.368000004441},{"$f":"CashFlow!P50","v":95999.368000004441},{"$f":"CashFlow!Q50","v":103871.31617600098},{"$f":"CashFlow!R50","v":103871.31617600098},{"$f":"CashFlow!S50","v":0},{"$f":"CashFlow!S50","v":0},{"$f":"CashFlow!U50","v":0}]
[{"$f":"CashFlow!A51","v":1},{"$f":"CashFlow!B51","v":"CF1142"},null,null,null,"Dividends",null,0,0,0,0,0,0,0,null,null,null,{"$f":"[1]CF_Diff_ENEs!U51","v":0},{"$f":"CashFlow!I51","v":0},{"$f":"[1]CF_Diff_ENEs!W51","v":0},{"$f":"CashFlow!J51","v":0},{"$f":"CashFlow!K51","v":0},{"$f":"CashFlow!L51","v":0},{"$f":"CashFlow!M51","v":0},{"$f":"CashFlow!N51","v":0},{"$f":"CashFlow!O51","v":0},{"$f":"CashFlow!P51","v":0},{"$f":"CashFlow!Q51","v":0},{"$f":"CashFlow!R51","v":0},{"$f":"CashFlow!S51","v":0},{"$f":"CashFlow!S51","v":0},{"$f":"CashFlow!U51","v":0}]
[{"$f":"CashFlow!A52","v":1},{"$f":"CashFlow!B52","v":"CF1143"},null,null,null,"Rent on land",null,0,0,0,0,0,0,0,null,null,null,{"$f":"[1]CF_Diff_ENEs!U52","v":0},{"$f":"CashFlow!I52","v":0},{"$f":"[1]CF_Diff_ENEs!W52","v":0},{"$f":"CashFlow!J52","v":0},{"$f":"CashFlow!K52","v":0},{"$f":"CashFlow!L52","v":0},{"$f":"CashFlow!M52","v":0},{"$f":"CashFlow!N52","v":0},{"$f":"CashFlow!O52","v":0},{"$f":"CashFlow!P52","v":0},{"$f":"CashFlow!Q52","v":0},{"$f":"CashFlow!R52","v":0},{"$f":"CashFlow!S52","v":0},{"$f":"CashFlow!S52","v":0},{"$f":"CashFlow!U52","v":0}]
[{"$f":"CashFlow!A53","v":1},{"$f":"CashFlow!B53","v":"CF119"},null,null,null,"Financial transactions in assets and liabilities",null,{"$f":"S53-R53","v":0},{"$f":"U53-T53","v":0},{"$f":"W53-V53","v":0},{"$f":"Y53-X53","v":0},{"$f":"AA53-Z53","v":0},{"$f":"AC53-AB53","v":0},0,null,null,null,{"$f":"SUM(R54:R55)","v":0},{"$f":"SUM(S54:S55)","v":0},{"$f":"SUM(T54:T55)","v":0},{"$f":"SUM(U54:U55)","v":0},0,0,0,0,0,0,0,0,0,0,{"$f":"SUM(AF54:AF55)","v":0}]
[{"$f":"CashFlow!A54","v":1},{"$f":"CashFlow!B54","v":"CF1191"},null,null,null,"Forex gains",null,{"$f":"S54-R54","v":0},{"$f":"U54-T54","v":0},{"$f":"W54-V54","v":0},{"$f":"Y54-X54","v":0},{"$f":"AA54-Z54","v":0},{"$f":"AC54-AB54","v":0},0,null,null,null,{"$f":"[1]CF_Diff_ENEs!U54","v":0},{"$f":"CashFlow!I54","v":0},{"$f":"[1]CF_Diff_ENEs!W54","v":0},{"$f":"CashFlow!J54","v":0},{"$f":"CashFlow!K54","v":0},{"$f":"CashFlow!L54","v":0},{"$f":"CashFlow!M54","v":0},{"$f":"CashFlow!N54","v":0},{"$f":"CashFlow!O54","v":0},{"$f":"CashFlow!P54","v":0},{"$f":"CashFlow!Q54","v":0},{"$f":"CashFlow!R54","v":0},{"$f":"CashFlow!S54","v":0},{"$f":"CashFlow!S54","v":0},{"$f":"CashFlow!U54","v":0}]
[{"$f":"CashFlow!A55","v":1},{"$f":"CashFlow!B55","v":"CF115"},null,null,null,"Other receipts",null,0,0,0,0,0,0,0,null,null,null,{"$f":"[1]CF_Diff_ENEs!U55","v":0},{"$f":"CashFlow!I55","v":0},{"$f":"[1]CF_Diff_ENEs!W55","v":0},{"$f":"CashFlow!J55","v":0},{"$f":"CashFlow!K55","v":0},{"$f":"CashFlow!L55","v":0},{"$f":"CashFlow!M55","v":0},{"$f":"CashFlow!N55","v":0},{"$f":"CashFlow!O55","v":0},{"$f":"CashFlow!P55","v":0},{"$f":"CashFlow!Q55","v":0},{"$f":"CashFlow!R55","v":0},{"$f":"CashFlow!S55","v":0},{"$f":"CashFlow!S55","v":0},{"$f":"CashFlow!U55","v":0}]
[{"$f":"CashFlow!A56","v":1},{"$f":"CashFlow!B56","v":"CF116"},null,null,null,"Tax benefit",null,0,0,0,0,0,0,0,null,null,null,{"$f":"[1]CF_Diff_ENEs!U56","v":0},{"$f":"CashFlow!I56","v":0},{"$f":"[1]CF_Diff_ENEs!W56","v":0},{"$f":"CashFlow!J56","v":0},{"$f":"CashFlow!K56","v":0},{"$f":"CashFlow!L56","v":0},{"$f":"CashFlow!M56","v":0},{"$f":"CashFlow!N56","v":0},{"$f":"CashFlow!O56","v":0},{"$f":"CashFlow!P56","v":0},{"$f":"CashFlow!Q56","v":0},{"$f":"CashFlow!R56","v":0},{"$f":"CashFlow!S56","v":0},{"$f":"CashFlow!S56","v":0},{"$f":"CashFlow!U56","v":0}]
[{"$f":"CashFlow!A57","v":1},{"$f":"CashFlow!B57","v":"CF117"},null,null,null,"Outside shareholders interest",null,0,0,0,0,0,0,0,null,null,null,{"$f":"[1]CF_Diff_ENEs!U57","v":0},{"$f":"CashFlow!I57","v":0},{"$f":"[1]CF_Diff_ENEs!W57","v":0},{"$f":"CashFlow!J57","v":0},{"$f":"CashFlow!K57","v":0},{"$f":"CashFlow!L57","v":0},{"$f":"CashFlow!M57","v":0},{"$f":"CashFlow!N57","v":0},{"$f":"CashFlow!O57","v":0},{"$f":"CashFlow!P57","v":0},{"$f":"CashFlow!Q57","v":0},{"$f":"CashFlow!R57","v":0},{"$f":"CashFlow!S57","v":0},{"$f":"CashFlow!S57","v":0},{"$f":"CashFlow!U57","v":0}]
[{"$f":"CashFlow!A58","v":1},{"$f":"CashFlow!B58","v":"CF2"},null,null,null,"Cash paid to stakeholders",null,0,0,0,0,0,0,0,null,null,null,{"$f":"SUM(R59,R121,R150,R155:R156)","v":11503878.62731},{"$f":"SUM(S59,S121,S150,S155:S156)","v":11503878.62731},{"$f":"SUM(T59,T121,T150,T155:T156)","v":12950157.75506},{"$f":"SUM(U59,U121,U150,U155:U156)","v":12950157.75506},13327106.461876001,13327106.461876001,14802307.744410964,14802307.744410964,14962217.081151288,14962217.081151288,15735020.955104699,15735020.955104699,0,0,{"$f":"SUM(AF59,AF121,AF150,AF155:AF156)","v":0}]
[{"$f":"CashFlow!A59","v":1},{"$f":"CashFlow!B59","v":"CF21"},null,null,null,"Current payments",null,0,0,0,0,0,0,0,null,null,null,{"$f":"SUM(R60,R63,R117)","v":11503878.62731},{"$f":"SUM(S60,S63,S117)","v":11503878.62731},{"$f":"SUM(T60,T63,T117)","v":12950157.75506},12950157.75506,13327106.461876001,13327106.461876001,14802307.744410964,14802307.744410964,14962217.081151288,14962217.081151288,15735020.955104699,15735020.955104699,0,0,{"$f":"SUM(AF60,AF63,AF117)","v":0}]
[{"$f":"CashFlow!A60","v":1},{"$f":"CashFlow!B60","v":"CF211"},null,null,null,"Compensation of employees",null,0,0,0,0,0,0,0,null,null,null,{"$f":"SUM(R61:R62)","v":8445367.1408399995},{"$f":"SUM(S61:S62)","v":8445367.1408399995},{"$f":"SUM(T61:T62)","v":9498469.6334199999},9498469.6334199999,9870140.5542600006,9870140.5542600006,10339690.602510722,10339690.602510722,10333657.588951603,10333657.588951603,10800172.791032141,10800172.791032141,0,0,{"$f":"SUM(AF61:AF62)","v":0}]
[{"$f":"CashFlow!A61","v":1},{"$f":"CashFlow!B61","v":"CF2111"},null,null,null,"Salaries and wages",null,0,0,0,0,0,0,0,null,null,null,{"$f":"[1]CF_Diff_ENEs!U61","v":7170975.2668799991},{"$f":"CashFlow!I61","v":7170975.2668799991},{"$f":"[1]CF_Diff_ENEs!W61","v":8130754.63442},{"$f":"CashFlow!J61","v":8130754.63442},{"$f":"CashFlow!K61","v":8440958.2526500002},{"$f":"CashFlow!L61","v":8440958.2526500002},{"$f":"CashFlow!M61","v":8854496.0689089},{"$f":"CashFlow!N61","v":8854496.0689089},{"$f":"CashFlow!O61","v":8780886.7040708959},{"$f":"CashFlow!P61","v":8780886.7040708959},{"$f":"CashFlow!Q61","v":9177216.6621548273},{"$f":"CashFlow!R61","v":9177216.6621548273},{"$f":"CashFlow!S61","v":0},{"$f":"CashFlow!S61","v":0},{"$f":"CashFlow!U61","v":0}]
[{"$f":"CashFlow!A62","v":1},{"$f":"CashFlow!B62","v":"CF2112"},null,null,null,"Social contributions",null,0,0,0,0,0,0,0,null,null,null,{"$f":"[1]CF_Diff_ENEs!U62","v":1274391.87396},{"$f":"CashFlow!I62","v":1274391.87396},{"$f":"[1]CF_Diff_ENEs!W62","v":1367714.9989999998},{"$f":"CashFlow!J62","v":1367714.9989999998},{"$f":"CashFlow!K62","v":1429182.30161},{"$f":"CashFlow!L62","v":1429182.30161},{"$f":"CashFlow!M62","v":1485194.5336018228},{"$f":"CashFlow!N62","v":1485194.5336018228},{"$f":"CashFlow!O62","v":1552770.8848807062},{"$f":"CashFlow!P62","v":1552770.8848807062},{"$f":"CashFlow!Q62","v":1622956.128877314},{"$f":"CashFlow!R62","v":1622956.128877314},{"$f":"CashFlow!S62","v":0},{"$f":"CashFlow!S62","v":0},{"$f":"CashFlow!U62","v":0}]
[{"$f":"CashFlow!A63","v":1},{"$f":"CashFlow!B63","v":"CF212"},null,null,null,"Goods and services",null,0,0,0,0,0,0,0,null,null,null,{"$f":"SUM(R64:R73,R77:R80,R92,R94:R116)","v":3049297.6769499998},{"$f":"SUM(S64:S73,S77:S80,S92,S94:S116)","v":3049297.6769499998},{"$f":"SUM(T64:T73,T77:T80,T92,T94:T116)","v":3443771.1615300006},3443771.1615300006,3456748.5283260006,3456748.5283260006,4462389.7414249722,4462389.7414249722,4628321.7450027922,4628321.7450027922,4934599.6707023643,4934599.6707023643,0,0,{"$f":"SUM(AF64:AF73,AF77:AF80,AF92,AF94:AF116)","v":0}]
[{"$f":"CashFlow!A64","v":1},{"$f":"CashFlow!B64","v":"CF2121"},null,null,null,"Administrative fees",null,0,0,0,0,0,0,0,null,null,null,{"$f":"[1]CF_Diff_ENEs!U64","v":34223.349349999997},{"$f":"CashFlow!I64","v":34223.349349999997},{"$f":"[1]CF_Diff_ENEs!W64","v":36330.699570000004},{"$f":"CashFlow!J64","v":36330.699570000004},{"$f":"CashFlow!K64","v":35964.195030000003},{"$f":"CashFlow!L64","v":35964.195030000003},{"$f":"CashFlow!M64","v":37622.144420883},{"$f":"CashFlow!N64","v":37622.144420883},{"$f":"CashFlow!O64","v":39333.951992033173},{"$f":"CashFlow!P64","v":39333.951992033173},{"$f":"CashFlow!Q64","v":41111.84662207307},{"$f":"CashFlow!R64","v":41111.84662207307},{"$f":"CashFlow!S64","v":0},{"$f":"CashFlow!S64","v":0},{"$f":"CashFlow!U64","v":0}]
[{"$f":"CashFlow!A65","v":1},{"$f":"CashFlow!B65","v":"CF2122"},null,null,null,"Advertising",null,0,0,0,0,0,0,0,null,null,null,{"$f":"[1]CF_Diff_ENEs!U65","v":60120.07763},{"$f":"CashFlow!I65","v":60120.07763},{"$f":"[1]CF_Diff_ENEs!W65","v":50801.537519999998},{"$f":"CashFlow!J65","v":50801.537519999998},{"$f":"CashFlow!K65","v":66441.632850000009},{"$f":"CashFlow!L65","v":66441.632850000009},{"$f":"CashFlow!M65","v":69312.670434298852},{"$f":"CashFlow!N65","v":69312.670434298852},{"$f":"CashFlow!O65","v":72403.027931423218},{"$f":"CashFlow!P65","v":72403.027931423218},{"$f":"CashFlow!Q65","v":75618.11360901568},{"$f":"CashFlow!R65","v":75618.11360901568},{"$f":"CashFlow!S65","v":0},{"$f":"CashFlow!S65","v":0},{"$f":"CashFlow!U65","v":0}]
[{"$f":"CashFlow!A66","v":1},{"$f":"CashFlow!B66","v":"CF2124"},null,null,null,"Minor assets",null,0,0,0,0,0,0,0,null,null,null,{"$f":"[1]CF_Diff_ENEs!U66","v":7792.2554999999993},{"$f":"CashFlow!I66","v":7792.2554999999993},{"$f":"[1]CF_Diff_ENEs!W66","v":7727.7070399999993},{"$f":"CashFlow!J66","v":7727.7070399999993},{"$f":"CashFlow!K66","v":14357.42971},{"$f":"CashFlow!L66","v":14357.42971},{"$f":"CashFlow!M66","v":15045.574229464435},{"$f":"CashFlow!N66","v":15045.574229464435},{"$f":"CashFlow!O66","v":15767.424414896666},{"$f":"CashFlow!P66","v":15767.424414896666},{"$f":"CashFlow!Q66","v":16523.954104530731},{"$f":"CashFlow!R66","v":16523.954104530731},{"$f":"CashFlow!S66","v":0},{"$f":"CashFlow!S66","v":0},{"$f":"CashFlow!U66","v":0}]
[{"$f":"CashFlow!A67","v":1},{"$f":"CashFlow!B67","v":"CF2125"},null,null,null,"Audit costs: External",null,0,0,0,0,0,0,0,null,null,null,{"$f":"[1]CF_Diff_ENEs!U67","v":37936.371360000005},{"$f":"CashFlow!I67","v":37936.371360000005},{"$f":"[1]CF_Diff_ENEs!W67","v":42694.749739999999},{"$f":"CashFlow!J67","v":42694.749739999999},{"$f":"CashFlow!K67","v":37575.902150000002},{"$f":"CashFlow!L67","v":37575.902150000002},{"$f":"CashFlow!M67","v":39308.151239115003},{"$f":"CashFlow!N67","v":39308.151239115003},{"$f":"CashFlow!O67","v":41096.672120494739},{"$f":"CashFlow!P67","v":41096.672120494739},{"$f":"CashFlow!Q67","v":42954.241700341096},{"$f":"CashFlow!R67","v":42954.241700341096},{"$f":"CashFlow!S67","v":0},{"$f":"CashFlow!S67","v":0},{"$f":"CashFlow!U67","v":0}]
[{"$f":"CashFlow!A68","v":1},{"$f":"CashFlow!B68","v":"CF2128"},null,null,null,"Bursaries: Employees",null,0,0,0,0,0,0,0,null,null,null,{"$f":"[1]CF_Diff_ENEs!U68","v":10101.343350000001},{"$f":"CashFlow!I68","v":10101.343350000001},{"$f":"[1]CF_Diff_ENEs!W68","v":34984.679810000001},{"$f":"CashFlow!J68","v":34984.679810000001},{"$f":"CashFlow!K68","v":35270.328699999998},{"$f":"CashFlow!L68","v":35270.328699999998},{"$f":"CashFlow!M68","v":36896.290853070008},{"$f":"CashFlow!N68","v":36896.290853070008},{"$f":"CashFlow!O68","v":38575.072086884698},{"$f":"CashFlow!P68","v":38575.072086884698},{"$f":"CashFlow!Q68","v":40318.665345211877},{"$f":"CashFlow!R68","v":40318.665345211877},{"$f":"CashFlow!S68","v":0},{"$f":"CashFlow!S68","v":0},{"$f":"CashFlow!U68","v":0}]
[{"$f":"CashFlow!A69","v":1},{"$f":"CashFlow!B69","v":"CF2129"},null,null,null,"Catering: Internal activities",null,0,0,0,0,0,0,0,null,null,null,{"$f":"[1]CF_Diff_ENEs!U69","v":1254.70074},{"$f":"CashFlow!I69","v":1254.70074},{"$f":"[1]CF_Diff_ENEs!W69","v":2524.1577699999998},{"$f":"CashFlow!J69","v":2524.1577699999998},{"$f":"CashFlow!K69","v":1398.6222799999998},{"$f":"CashFlow!L69","v":1398.6222799999998},{"$f":"CashFlow!M69","v":1456.0960254344959},{"$f":"CashFlow!N69","v":1456.0960254344959},{"$f":"CashFlow!O69","v":1520.0362182536787},{"$f":"CashFlow!P69","v":1520.0362182536787},{"$f":"CashFlow!Q69","v":1586.6426865072376},{"$f":"CashFlow!R69","v":1586.6426865072376},{"$f":"CashFlow!S69","v":0},{"$f":"CashFlow!S69","v":0},{"$f":"CashFlow!U69","v":0}]
[{"$f":"CashFlow!A70","v":1},{"$f":"CashFlow!B70","v":"CF2130"},null,null,null,"Communication (G&S)",null,0,0,0,0,0,0,0,null,null,null,{"$f":"[1]CF_Diff_ENEs!U70","v":296189.58912000002},{"$f":"CashFlow!I70","v":296189.58912000002},{"$f":"[1]CF_Diff_ENEs!W70","v":316499.08560999995},{"$f":"CashFlow!J70","v":316499.08560999995},{"$f":"CashFlow!K70","v":362611.67121},{"$f":"CashFlow!L70","v":362611.67121},{"$f":"CashFlow!M70","v":398771.40397436102},{"$f":"CashFlow!N70","v":398771.40397436102},{"$f":"CashFlow!O70","v":438541.25269858446},{"$f":"CashFlow!P70","v":438541.25269858446},{"$f":"CashFlow!Q70","v":482282.58705559804},{"$f":"CashFlow!R70","v":482282.58705559804},{"$f":"CashFlow!S70","v":0},{"$f":"CashFlow!S70","v":0},{"$f":"CashFlow!U70","v":0}]
[{"$f":"CashFlow!A71","v":1},{"$f":"CashFlow!B71","v":"CF2131"},null,null,null,"Computer services",null,0,0,0,0,0,0,0,null,null,null,{"$f":"[1]CF_Diff_ENEs!U71","v":773499.2121},{"$f":"CashFlow!I71","v":773499.2121},{"$f":"[1]CF_Diff_ENEs!W71","v":892766.95354000002},{"$f":"CashFlow!J71","v":892766.95354000002},{"$f":"CashFlow!K71","v":675556.56710600038},{"$f":"CashFlow!L71","v":675556.56710600038},{"$f":"CashFlow!M71","v":1009067.0339082894},{"$f":"CashFlow!N71","v":1009067.0339082894},{"$f":"CashFlow!O71","v":1279228.4615294365},{"$f":"CashFlow!P71","v":1279228.4615294365},{"$f":"CashFlow!Q71","v":1330250.0953951539},{"$f":"CashFlow!R71","v":1330250.0953951539},{"$f":"CashFlow!S71","v":0},{"$f":"CashFlow!S71","v":0},{"$f":"CashFlow!U71","v":0}]
[{"$f":"CashFlow!A72","v":1},{"$f":"CashFlow!B72","v":"CF2132"},null,null,null,"Consultants: Business and advisory services",null,0,0,0,0,0,0,0,null,null,null,{"$f":"[1]CF_Diff_ENEs!U72","v":59217.277859999995},{"$f":"CashFlow!I72","v":59217.277859999995},{"$f":"[1]CF_Diff_ENEs!W72","v":213084.64376000001},{"$f":"CashFlow!J72","v":213084.64376000001},{"$f":"CashFlow!K72","v":287769.64530000003},{"$f":"CashFlow!L72","v":287769.64530000003},{"$f":"CashFlow!M72","v":256588.02818357886},{"$f":"CashFlow!N72","v":256588.02818357886},{"$f":"CashFlow!O72","v":281445.10436765302},{"$f":"CashFlow!P72","v":281445.10436765302},{"$f":"CashFlow!Q72","v":308836.91959193617},{"$f":"CashFlow!R72","v":308836.91959193617},{"$f":"CashFlow!S72","v":0},{"$f":"CashFlow!S72","v":0},{"$f":"CashFlow!U72","v":0}]
[{"$f":"CashFlow!A73","v":1},{"$f":"CashFlow!B73","v":"CF2179"},null,null,null,"Infrastructure and planning services",null,0,0,0,0,0,0,0,null,null,null,{"$f":"SUM(R74:R76)","v":0},{"$f":"SUM(S74:S76)","v":0},{"$f":"SUM(T74:T76)","v":0},0,0,0,0,0,0,0,0,0,0,0,{"$f":"SUM(AF74:AF76)","v":0}]
[{"$f":"CashFlow!A74","v":1},{"$f":"CashFlow!B74","v":"CF21791"},null,null,null,"Maintenance and repairs: Buildings: Consultants",null,0,0,0,0,0,0,0,null,null,null,{"$f":"[1]CF_Diff_ENEs!U74","v":0},{"$f":"CashFlow!I74","v":0},{"$f":"[1]CF_Diff_ENEs!W74","v":0},{"$f":"CashFlow!J74","v":0},{"$f":"CashFlow!K74","v":0},{"$f":"CashFlow!L74","v":0},{"$f":"CashFlow!M74","v":0},{"$f":"CashFlow!N74","v":0},{"$f":"CashFlow!O74","v":0},{"$f":"CashFlow!P74","v":0},{"$f":"CashFlow!Q74","v":0},{"$f":"CashFlow!R74","v":0},{"$f":"CashFlow!S74","v":0},{"$f":"CashFlow!S74","v":0},{"$f":"CashFlow!U74","v":0}]
[{"$f":"CashFlow!A75","v":1},{"$f":"CashFlow!B75","v":"CF21792"},null,null,null,"Maintenance and repairs: Other fixed structures: Consultants",null,0,0,0,0,0,0,0,null,null,null,{"$f":"[1]CF_Diff_ENEs!U75","v":0},{"$f":"CashFlow!I75","v":0},{"$f":"[1]CF_Diff_ENEs!W75","v":0},{"$f":"CashFlow!J75","v":0},{"$f":"CashFlow!K75","v":0},{"$f":"CashFlow!L75","v":0},{"$f":"CashFlow!M75","v":0},{"$f":"CashFlow!N75","v":0},{"$f":"CashFlow!O75","v":0},{"$f":"CashFlow!P75","v":0},{"$f":"CashFlow!Q75","v":0},{"$f":"CashFlow!R75","v":0},{"$f":"CashFlow!S75","v":0},{"$f":"CashFlow!S75","v":0},{"$f":"CashFlow!U75","v":0}]
[{"$f":"CashFlow!A76","v":1},{"$f":"CashFlow!B76","v":"CF21793"},null,null,null,"Other",null,0,0,0,0,0,0,0,null,null,null,{"$f":"[1]CF_Diff_ENEs!U76","v":0},{"$f":"CashFlow!I76","v":0},{"$f":"[1]CF_Diff_ENEs!W76","v":0},{"$f":"CashFlow!J76","v":0},{"$f":"CashFlow!K76","v":0},{"$f":"CashFlow!L76","v":0},{"$f":"CashFlow!M76","v":0},{"$f":"CashFlow!N76","v":0},{"$f":"CashFlow!O76","v":0},{"$f":"CashFlow!P76","v":0},{"$f":"CashFlow!Q76","v":0},{"$f":"CashFlow!R76","v":0},{"$f":"CashFlow!S76","v":0},{"$f":"CashFlow!S76","v":0},{"$f":"CashFlow!U76","v":0}]
[{"$f":"CashFlow!A77","v":1},{"$f":"CashFlow!B77","v":"CF2163"},null,null,null,"Laboratory services",null,0,0,0,0,0,0,{"$f":"AE77-AD77","v":0},null,null,null,{"$f":"[1]CF_Diff_ENEs!U77","v":0},{"$f":"CashFlow!I77","v":0},{"$f":"[1]CF_Diff_ENEs!W77","v":0},{"$f":"CashFlow!J77","v":0},{"$f":"CashFlow!K77","v":0},{"$f":"CashFlow!L77","v":0},{"$f":"CashFlow!M77","v":0},{"$f":"CashFlow!N77","v":0},{"$f":"CashFlow!O77","v":0},{"$f":"CashFlow!P77","v":0},{"$f":"CashFlow!Q77","v":0},{"$f":"CashFlow!R77","v":0},{"$f":"CashFlow!S77","v":0},{"$f":"CashFlow!S77","v":0},{"$f":"CashFlow!U77","v":0}]
[{"$f":"CashFlow!A78","v":1},{"$f":"CashFlow!B78","v":"CF2137"},null,null,null,"Legal services (G&S)",null,0,0,0,0,0,0,0,null,null,null,{"$f":"[1]CF_Diff_ENEs!U78","v":256185.80833},{"$f":"CashFlow!I78","v":256185.80833},{"$f":"[1]CF_Diff_ENEs!W78","v":273000.36120000004},{"$f":"CashFlow!J78","v":273000.36120000004},{"$f":"CashFlow!K78","v":268873.39643999998},{"$f":"CashFlow!L78","v":268873.39643999998},{"$f":"CashFlow!M78","v":275957.40957315301},{"$f":"CashFlow!N78","v":275957.40957315301},{"$f":"CashFlow!O78","v":288513.47170873143},{"$f":"CashFlow!P78","v":288513.47170873143},{"$f":"CashFlow!Q78","v":301554.28062996612},{"$f":"CashFlow!R78","v":301554.28062996612},{"$f":"CashFlow!S78","v":0},{"$f":"CashFlow!S78","v":0},{"$f":"CashFlow!U78","v":0}]
[{"$f":"CashFlow!A79","v":1},{"$f":"CashFlow!B79","v":"CF2164"},null,null,null,"Science and technological services",null,0,0,0,0,0,0,0,null,null,null,{"$f":"[1]CF_Diff_ENEs!U79","v":0},{"$f":"CashFlow!I79","v":0},{"$f":"[1]CF_Diff_ENEs!W79","v":0},{"$f":"CashFlow!J79","v":0},{"$f":"CashFlow!K79","v":0},{"$f":"CashFlow!L79","v":0},{"$f":"CashFlow!M79","v":0},{"$f":"CashFlow!N79","v":0},{"$f":"CashFlow!O79","v":0},{"$f":"CashFlow!P79","v":0},{"$f":"CashFlow!Q79","v":0},{"$f":"CashFlow!R79","v":0},{"$f":"CashFlow!S79","v":0},{"$f":"CashFlow!S79","v":0},{"$f":"CashFlow!U79","v":0}]
[{"$f":"CashFlow!A80","v":1},{"$f":"CashFlow!B80","v":"CF2133"},null,null,null,"Contractors",null,0,0,0,0,0,0,0,null,null,null,{"$f":"SUM(R81:R85,R91)","v":117892.97066000001},{"$f":"SUM(S81:S85,S91)","v":117892.97066000001},{"$f":"SUM(T81:T85,T91)","v":87330.748699999996},87330.748699999996,115507.73696999998,115507.73696999998,115293.10304672028,115293.10304672028,120374.26806680278,120374.26806680278,126134.93922718696,126134.93922718696,0,0,{"$f":"SUM(AF81:AF85,AF91)","v":0}]
[{"$f":"CashFlow!A81","v":1},{"$f":"CashFlow!B81","v":"CF21331"},null,null,null,"Maintenance and repairs of other fixed structures",null,0,0,0,0,0,0,0,null,null,null,{"$f":"[1]CF_Diff_ENEs!U81","v":117892.97066000001},{"$f":"CashFlow!I81","v":117892.97066000001},{"$f":"[1]CF_Diff_ENEs!W81","v":87330.748699999996},{"$f":"CashFlow!J81","v":87330.748699999996},{"$f":"CashFlow!K81","v":115507.73696999998},{"$f":"CashFlow!L81","v":115507.73696999998},{"$f":"CashFlow!M81","v":115293.10304672028},{"$f":"CashFlow!N81","v":115293.10304672028},{"$f":"CashFlow!O81","v":120374.26806680278},{"$f":"CashFlow!P81","v":120374.26806680278},{"$f":"CashFlow!Q81","v":126134.93922718696},{"$f":"CashFlow!R81","v":126134.93922718696},{"$f":"CashFlow!S81","v":0},{"$f":"CashFlow!S81","v":0},{"$f":"CashFlow!U81","v":0}]
[{"$f":"CashFlow!A82","v":1},{"$f":"CashFlow!B82","v":"CF21332"},null,null,null,"Maintenance and repairs of other machinery and equipment",null,0,0,0,0,0,0,0,null,null,null,{"$f":"[1]CF_Diff_ENEs!U82","v":0},{"$f":"CashFlow!I82","v":0},{"$f":"[1]CF_Diff_ENEs!W82","v":0},{"$f":"CashFlow!J82","v":0},{"$f":"CashFlow!K82","v":0},{"$f":"CashFlow!L82","v":0},{"$f":"CashFlow!M82","v":0},{"$f":"CashFlow!N82","v":0},{"$f":"CashFlow!O82","v":0},{"$f":"CashFlow!P82","v":0},{"$f":"CashFlow!Q82","v":0},{"$f":"CashFlow!R82","v":0},{"$f":"CashFlow!S82","v":0},{"$f":"CashFlow!S82","v":0},{"$f":"CashFlow!U82","v":0}]
[{"$f":"CashFlow!A83","v":1},{"$f":"CashFlow!B83","v":"CF21333"},null,null,null,"Maintenance and repairs of heritage buildings",null,{"$f":"S83-R83","v":0},{"$f":"U83-T83","v":0},{"$f":"W83-V83","v":0},{"$f":"Y83-X83","v":0},{"$f":"AA83-Z83","v":0},{"$f":"AC83-AB83","v":0},0,null,null,null,{"$f":"[1]CF_Diff_ENEs!U83","v":0},{"$f":"CashFlow!I83","v":0},{"$f":"[1]CF_Diff_ENEs!W83","v":0},{"$f":"CashFlow!J83","v":0},{"$f":"CashFlow!K83","v":0},{"$f":"CashFlow!L83","v":0},{"$f":"CashFlow!M83","v":0},{"$f":"CashFlow!N83","v":0},{"$f":"CashFlow!O83","v":0},{"$f":"CashFlow!P83","v":0},{"$f":"CashFlow!Q83","v":0},{"$f":"CashFlow!R83","v":0},{"$f":"CashFlow!S83","v":0},{"$f":"CashFlow!S83","v":0},{"$f":"CashFlow!U83","v":0}]
[{"$f":"CashFlow!A84","v":1},{"$f":"CashFlow!B84","v":"CF21334"},null,null,null,"Maintenance and repairs of other heritage fixed structures",null,0,0,0,0,0,0,0,null,null,null,{"$f":"[1]CF_Diff_ENEs!U84","v":0},{"$f":"CashFlow!I84","v":0},{"$f":"[1]CF_Diff_ENEs!W84","v":0},{"$f":"CashFlow!J84","v":0},{"$f":"CashFlow!K84","v":0},{"$f":"CashFlow!L84","v":0},{"$f":"CashFlow!M84","v":0},{"$f":"CashFlow!N84","v":0},{"$f":"CashFlow!O84","v":0},{"$f":"CashFlow!P84","v":0},{"$f":"CashFlow!Q84","v":0},{"$f":"CashFlow!R84","v":0},{"$f":"CashFlow!S84","v":0},{"$f":"CashFlow!S84","v":0},{"$f":"CashFlow!U84","v":0}]
[{"$f":"CashFlow!A85","v":5},{"$f":"CashFlow!B85","v":"CF21335"},null,null,null,"South african social security agency payment contractors",null,0,0,0,0,0,0,0,null,null,null,{"$f":"SUM(R86:R90)","v":0},{"$f":"SUM(S86:S90)","v":0},{"$f":"SUM(T86:T90)","v":0},0,0,0,0,0,0,0,0,0,0,0,{"$f":"SUM(AF86:AF90)","v":0}]
[{"$f":"CashFlow!A86","v":5},{"$f":"CashFlow!B86","v":"CF213351"},null,null,null,"SASSA Admin fees",null,0,0,0,0,0,0,0,null,null,null,{"$f":"[1]CF_Diff_ENEs!U86","v":0},{"$f":"CashFlow!I86","v":0},{"$f":"[1]CF_Diff_ENEs!W86","v":0},{"$f":"CashFlow!J86","v":0},{"$f":"CashFlow!K86","v":0},{"$f":"CashFlow!L86","v":0},{"$f":"CashFlow!M86","v":0},{"$f":"CashFlow!N86","v":0},{"$f":"CashFlow!O86","v":0},{"$f":"CashFlow!P86","v":0},{"$f":"CashFlow!Q86","v":0},{"$f":"CashFlow!R86","v":0},{"$f":"CashFlow!S86","v":0},{"$f":"CashFlow!S86","v":0},{"$f":"CashFlow!U86","v":0}]
[{"$f":"CashFlow!A87","v":5},{"$f":"CashFlow!B87","v":"CF213352"},null,null,null,"SASSA Bankcard fees",null,0,0,0,0,0,0,0,null,null,null,{"$f":"[1]CF_Diff_ENEs!U87","v":0},{"$f":"CashFlow!I87","v":0},{"$f":"[1]CF_Diff_ENEs!W87","v":0},{"$f":"CashFlow!J87","v":0},{"$f":"CashFlow!K87","v":0},{"$f":"CashFlow!L87","v":0},{"$f":"CashFlow!M87","v":0},{"$f":"CashFlow!N87","v":0},{"$f":"CashFlow!O87","v":0},{"$f":"CashFlow!P87","v":0},{"$f":"CashFlow!Q87","v":0},{"$f":"CashFlow!R87","v":0},{"$f":"CashFlow!S87","v":0},{"$f":"CashFlow!S87","v":0},{"$f":"CashFlow!U87","v":0}]
[{"$f":"CashFlow!A88","v":5},{"$f":"CashFlow!B88","v":"CF213353"},null,null,null,"SASSA registration fees",null,0,0,0,0,0,0,0,null,null,null,{"$f":"[1]CF_Diff_ENEs!U88","v":0},{"$f":"CashFlow!I88","v":0},{"$f":"[1]CF_Diff_ENEs!W88","v":0},{"$f":"CashFlow!J88","v":0},{"$f":"CashFlow!K88","v":0},{"$f":"CashFlow!L88","v":0},{"$f":"CashFlow!M88","v":0},{"$f":"CashFlow!N88","v":0},{"$f":"CashFlow!O88","v":0},{"$f":"CashFlow!P88","v":0},{"$f":"CashFlow!Q88","v":0},{"$f":"CashFlow!R88","v":0},{"$f":"CashFlow!S88","v":0},{"$f":"CashFlow!S88","v":0},{"$f":"CashFlow!U88","v":0}]
[{"$f":"CashFlow!A89","v":5},{"$f":"CashFlow!B89","v":"CF213354"},null,null,null,"SASSA beneficiary fees",null,0,0,0,0,0,0,0,null,null,null,{"$f":"[1]CF_Diff_ENEs!U89","v":0},{"$f":"CashFlow!I89","v":0},{"$f":"[1]CF_Diff_ENEs!W89","v":0},{"$f":"CashFlow!J89","v":0},{"$f":"CashFlow!K89","v":0},{"$f":"CashFlow!L89","v":0},{"$f":"CashFlow!M89","v":0},{"$f":"CashFlow!N89","v":0},{"$f":"CashFlow!O89","v":0},{"$f":"CashFlow!P89","v":0},{"$f":"CashFlow!Q89","v":0},{"$f":"CashFlow!R89","v":0},{"$f":"CashFlow!S89","v":0},{"$f":"CashFlow!S89","v":0},{"$f":"CashFlow!U89","v":0}]
[{"$f":"CashFlow!A90","v":5},{"$f":"CashFlow!B90","v":"CF213355"},null,null,null,"SASSA help desk fees",null,0,0,0,0,0,0,0,null,null,null,{"$f":"[1]CF_Diff_ENEs!U90","v":0},{"$f":"CashFlow!I90","v":0},{"$f":"[1]CF_Diff_ENEs!W90","v":0},{"$f":"CashFlow!J90","v":0},{"$f":"CashFlow!K90","v":0},{"$f":"CashFlow!L90","v":0},{"$f":"CashFlow!M90","v":0},{"$f":"CashFlow!N90","v":0},{"$f":"CashFlow!O90","v":0},{"$f":"CashFlow!P90","v":0},{"$f":"CashFlow!Q90","v":0},{"$f":"CashFlow!R90","v":0},{"$f":"CashFlow!S90","v":0},{"$f":"CashFlow!S90","v":0},{"$f":"CashFlow!U90","v":0}]
[{"$f":"CashFlow!A91","v":1},{"$f":"CashFlow!B91","v":"CF21336"},null,null,null,"Other",null,0,0,0,0,0,0,0,null,null,null,{"$f":"[1]CF_Diff_ENEs!U91","v":0},{"$f":"CashFlow!I91","v":0},{"$f":"[1]CF_Diff_ENEs!W91","v":0},{"$f":"CashFlow!J91","v":0},{"$f":"CashFlow!K91","v":0},{"$f":"CashFlow!L91","v":0},{"$f":"CashFlow!M91","v":0},{"$f":"CashFlow!N91","v":0},{"$f":"CashFlow!O91","v":0},{"$f":"CashFlow!P91","v":0},{"$f":"CashFlow!Q91","v":0},{"$f":"CashFlow!R91","v":0},{"$f":"CashFlow!S91","v":0},{"$f":"CashFlow!S91","v":0},{"$f":"CashFlow!U91","v":0}]
[{"$f":"CashFlow!A92","v":1},{"$f":"CashFlow!B92","v":"CF2123"},null,null,null,"Agency and support/outsourced services",null,0,0,0,0,0,0,0,null,null,null,{"$f":"[1]CF_Diff_ENEs!U92","v":209890.70973999996},{"$f":"CashFlow!I92","v":209890.70973999996},{"$f":"[1]CF_Diff_ENEs!W92","v":260305.94922999997},{"$f":"CashFlow!J92","v":260305.94922999997},{"$f":"CashFlow!K92","v":260509.54634},{"$f":"CashFlow!L92","v":260509.54634},{"$f":"CashFlow!M92","v":504155.05577781104},{"$f":"CashFlow!N92","v":504155.05577781104},{"$f":"CashFlow!O92","v":376610.44671360793},{"$f":"CashFlow!P92","v":376610.44671360793},{"$f":"CashFlow!Q92","v":415828.23588798009},{"$f":"CashFlow!R92","v":415828.23588798009},{"$f":"CashFlow!S92","v":0},{"$f":"CashFlow!S92","v":0},{"$f":"CashFlow!U92","v":0}]
[{"$f":"CashFlow!A93","v":5},{"$f":"CashFlow!B93","v":"CF21231"},null,null,null,"     Of Which: Medical assessments",null,null,null,null,null,null,null,0,null,null,null,{"$f":"[1]CF_Diff_ENEs!U93","v":0},{"$f":"CashFlow!I93","v":0},{"$f":"[1]CF_Diff_ENEs!W93","v":5.4775999999999998},{"$f":"CashFlow!J93","v":5.4775999999999998},{"$f":"CashFlow!K93","v":34},{"$f":"CashFlow!L93","v":34},{"$f":"CashFlow!M93","v":35.567399999999999},{"$f":"CashFlow!N93","v":35.567399999999999},{"$f":"CashFlow!O93","v":37.1857167},{"$f":"CashFlow!P93","v":37.1857167},{"$f":"CashFlow!Q93","v":38.866511094839993},{"$f":"CashFlow!R93","v":38.866511094839993},{"$f":"CashFlow!S93","v":0},{"$f":"CashFlow!S93","v":0},{"$f":"CashFlow!U93","v":0}]
[{"$f":"CashFlow!A94","v":1},{"$f":"CashFlow!B94","v":"CF2134"},null,null,null,"Entertainment",null,{"$f":"S94-R94","v":0},{"$f":"U94-T94","v":0},{"$f":"W94-V94","v":0},{"$f":"Y94-X94","v":0},{"$f":"AA94-Z94","v":0},{"$f":"AC94-AB94","v":0},0,null,null,null,{"$f":"[1]CF_Diff_ENEs!U94","v":0.28000000000000003},{"$f":"CashFlow!I94","v":0.28000000000000003},{"$f":"[1]CF_Diff_ENEs!W94","v":0},{"$f":"CashFlow!J94","v":0},{"$f":"CashFlow!K94","v":0},{"$f":"CashFlow!L94","v":0},{"$f":"CashFlow!M94","v":0},{"$f":"CashFlow!N94","v":0},{"$f":"CashFlow!O94","v":0},{"$f":"CashFlow!P94","v":0},{"$f":"CashFlow!Q94","v":0},{"$f":"CashFlow!R94","v":0},{"$f":"CashFlow!S94","v":0},{"$f":"CashFlow!S94","v":0},{"$f":"CashFlow!U94","v":0}]
[{"$f":"CashFlow!A95","v":1},{"$f":"CashFlow!B95","v":"CF2165"},null,null,null,"Fleet services (including government motor transport)",null,0,0,0,0,0,0,0,null,null,null,{"$f":"[1]CF_Diff_ENEs!U95","v":0},{"$f":"CashFlow!I95","v":0},{"$f":"[1]CF_Diff_ENEs!W95","v":0},{"$f":"CashFlow!J95","v":0},{"$f":"CashFlow!K95","v":0},{"$f":"CashFlow!L95","v":0},{"$f":"CashFlow!M95","v":0},{"$f":"CashFlow!N95","v":0},{"$f":"CashFlow!O95","v":0},{"$f":"CashFlow!P95","v":0},{"$f":"CashFlow!Q95","v":0},{"$f":"CashFlow!R95","v":0},{"$f":"CashFlow!S95","v":0},{"$f":"CashFlow!S95","v":0},{"$f":"CashFlow!U95","v":0}]
[{"$f":"CashFlow!A96","v":1},{"$f":"CashFlow!B96","v":"CF2166"},null,null,null,"Housing",null,0,0,0,0,0,0,0,null,null,null,{"$f":"[1]CF_Diff_ENEs!U96","v":0},{"$f":"CashFlow!I96","v":0},{"$f":"[1]CF_Diff_ENEs!W96","v":0},{"$f":"CashFlow!J96","v":0},{"$f":"CashFlow!K96","v":0},{"$f":"CashFlow!L96","v":0},{"$f":"CashFlow!M96","v":0},{"$f":"CashFlow!N96","v":0},{"$f":"CashFlow!O96","v":0},{"$f":"CashFlow!P96","v":0},{"$f":"CashFlow!Q96","v":0},{"$f":"CashFlow!R96","v":0},{"$f":"CashFlow!S96","v":0},{"$f":"CashFlow!S96","v":0},{"$f":"CashFlow!U96","v":0}]
[{"$f":"CashFlow!A97","v":1},{"$f":"CashFlow!B97","v":"CF2167"},null,null,null,"Inventory: Clothing material and accessories",null,0,0,0,0,0,0,0,null,null,null,{"$f":"[1]CF_Diff_ENEs!U97","v":0},{"$f":"CashFlow!I97","v":0},{"$f":"[1]CF_Diff_ENEs!W97","v":0},{"$f":"CashFlow!J97","v":0},{"$f":"CashFlow!K97","v":0},{"$f":"CashFlow!L97","v":0},{"$f":"CashFlow!M97","v":0},{"$f":"CashFlow!N97","v":0},{"$f":"CashFlow!O97","v":0},{"$f":"CashFlow!P97","v":0},{"$f":"CashFlow!Q97","v":0},{"$f":"CashFlow!R97","v":0},{"$f":"CashFlow!S97","v":0},{"$f":"CashFlow!S97","v":0},{"$f":"CashFlow!U97","v":0}]
[{"$f":"CashFlow!A98","v":1},{"$f":"CashFlow!B98","v":"CF2168"},null,null,null,"Inventory: Farming supplies",null,0,0,0,0,0,0,0,null,null,null,{"$f":"[1]CF_Diff_ENEs!U98","v":0},{"$f":"CashFlow!I98","v":0},{"$f":"[1]CF_Diff_ENEs!W98","v":0},{"$f":"CashFlow!J98","v":0},{"$f":"CashFlow!K98","v":0},{"$f":"CashFlow!L98","v":0},{"$f":"CashFlow!M98","v":0},{"$f":"CashFlow!N98","v":0},{"$f":"CashFlow!O98","v":0},{"$f":"CashFlow!P98","v":0},{"$f":"CashFlow!Q98","v":0},{"$f":"CashFlow!R98","v":0},{"$f":"CashFlow!S98","v":0},{"$f":"CashFlow!S98","v":0},{"$f":"CashFlow!U98","v":0}]
[{"$f":"CashFlow!A99","v":1},{"$f":"CashFlow!B99","v":"CF2169"},null,null,null,"Inventory: Food and food supplies",null,0,0,0,0,0,0,0,null,null,null,{"$f":"[1]CF_Diff_ENEs!U99","v":0},{"$f":"CashFlow!I99","v":0},{"$f":"[1]CF_Diff_ENEs!W99","v":0},{"$f":"CashFlow!J99","v":0},{"$f":"CashFlow!K99","v":0},{"$f":"CashFlow!L99","v":0},{"$f":"CashFlow!M99","v":0},{"$f":"CashFlow!N99","v":0},{"$f":"CashFlow!O99","v":0},{"$f":"CashFlow!P99","v":0},{"$f":"CashFlow!Q99","v":0},{"$f":"CashFlow!R99","v":0},{"$f":"CashFlow!S99","v":0},{"$f":"CashFlow!S99","v":0},{"$f":"CashFlow!U99","v":0}]
[{"$f":"CashFlow!A100","v":1},{"$f":"CashFlow!B100","v":"CF2170"},null,null,null,"Inventory: Fuel, oil and gas",null,0,0,0,0,0,0,0,null,null,null,{"$f":"[1]CF_Diff_ENEs!U100","v":0},{"$f":"CashFlow!I100","v":0},{"$f":"[1]CF_Diff_ENEs!W100","v":0},{"$f":"CashFlow!J100","v":0},{"$f":"CashFlow!K100","v":0},{"$f":"CashFlow!L100","v":0},{"$f":"CashFlow!M100","v":0},{"$f":"CashFlow!N100","v":0},{"$f":"CashFlow!O100","v":0},{"$f":"CashFlow!P100","v":0},{"$f":"CashFlow!Q100","v":0},{"$f":"CashFlow!R100","v":0},{"$f":"CashFlow!S100","v":0},{"$f":"CashFlow!S100","v":0},{"$f":"CashFlow!U100","v":0}]
[{"$f":"CashFlow!A101","v":1},{"$f":"CashFlow!B101","v":"CF2171"},null,null,null,"Inventory: Learner and teacher support material",null,0,0,0,0,0,0,0,null,null,null,{"$f":"[1]CF_Diff_ENEs!U101","v":0},{"$f":"CashFlow!I101","v":0},{"$f":"[1]CF_Diff_ENEs!W101","v":0},{"$f":"CashFlow!J101","v":0},{"$f":"CashFlow!K101","v":0},{"$f":"CashFlow!L101","v":0},{"$f":"CashFlow!M101","v":0},{"$f":"CashFlow!N101","v":0},{"$f":"CashFlow!O101","v":0},{"$f":"CashFlow!P101","v":0},{"$f":"CashFlow!Q101","v":0},{"$f":"CashFlow!R101","v":0},{"$f":"CashFlow!S101","v":0},{"$f":"CashFlow!S101","v":0},{"$f":"CashFlow!U101","v":0}]
[{"$f":"CashFlow!A102","v":1},{"$f":"CashFlow!B102","v":"CF2135"},null,null,null,"Inventory: Materials and supplies",null,0,0,0,0,0,0,0,null,null,null,{"$f":"[1]CF_Diff_ENEs!U102","v":0},{"$f":"CashFlow!I102","v":0},{"$f":"[1]CF_Diff_ENEs!W102","v":0},{"$f":"CashFlow!J102","v":0},{"$f":"CashFlow!K102","v":0},{"$f":"CashFlow!L102","v":0},{"$f":"CashFlow!M102","v":0},{"$f":"CashFlow!N102","v":0},{"$f":"CashFlow!O102","v":0},{"$f":"CashFlow!P102","v":0},{"$f":"CashFlow!Q102","v":0},{"$f":"CashFlow!R102","v":0},{"$f":"CashFlow!S102","v":0},{"$f":"CashFlow!S102","v":0},{"$f":"CashFlow!U102","v":0}]
[{"$f":"CashFlow!A103","v":1},{"$f":"CashFlow!B103","v":"CF2172"},null,null,null,"Inventory: Medical supplies",null,0,0,0,0,0,0,0,null,null,null,{"$f":"[1]CF_Diff_ENEs!U103","v":0},{"$f":"CashFlow!I103","v":0},{"$f":"[1]CF_Diff_ENEs!W103","v":0},{"$f":"CashFlow!J103","v":0},{"$f":"CashFlow!K103","v":0},{"$f":"CashFlow!L103","v":0},{"$f":"CashFlow!M103","v":0},{"$f":"CashFlow!N103","v":0},{"$f":"CashFlow!O103","v":0},{"$f":"CashFlow!P103","v":0},{"$f":"CashFlow!Q103","v":0},{"$f":"CashFlow!R103","v":0},{"$f":"CashFlow!S103","v":0},{"$f":"CashFlow!S103","v":0},{"$f":"CashFlow!U103","v":0}]
[{"$f":"CashFlow!A104","v":1},{"$f":"CashFlow!B104","v":"CF2173"},null,null,null,"Inventory: Medicine",null,0,0,0,0,0,0,0,null,null,null,{"$f":"[1]CF_Diff_ENEs!U104","v":0},{"$f":"CashFlow!I104","v":0},{"$f":"[1]CF_Diff_ENEs!W104","v":0},{"$f":"CashFlow!J104","v":0},{"$f":"CashFlow!K104","v":0},{"$f":"CashFlow!L104","v":0},{"$f":"CashFlow!M104","v":0},{"$f":"CashFlow!N104","v":0},{"$f":"CashFlow!O104","v":0},{"$f":"CashFlow!P104","v":0},{"$f":"CashFlow!Q104","v":0},{"$f":"CashFlow!R104","v":0},{"$f":"CashFlow!S104","v":0},{"$f":"CashFlow!S104","v":0},{"$f":"CashFlow!U104","v":0}]
[{"$f":"CashFlow!A105","v":1},{"$f":"CashFlow!B105","v":"CF2174"},null,null,null,"Medsas inventory interface",null,0,0,0,0,0,0,0,null,null,null,{"$f":"[1]CF_Diff_ENEs!U105","v":0},{"$f":"CashFlow!I105","v":0},{"$f":"[1]CF_Diff_ENEs!W105","v":0},{"$f":"CashFlow!J105","v":0},{"$f":"CashFlow!K105","v":0},{"$f":"CashFlow!L105","v":0},{"$f":"CashFlow!M105","v":0},{"$f":"CashFlow!N105","v":0},{"$f":"CashFlow!O105","v":0},{"$f":"CashFlow!P105","v":0},{"$f":"CashFlow!Q105","v":0},{"$f":"CashFlow!R105","v":0},{"$f":"CashFlow!S105","v":0},{"$f":"CashFlow!S105","v":0},{"$f":"CashFlow!U105","v":0}]
[{"$f":"CashFlow!A106","v":1},{"$f":"CashFlow!B106","v":"CF2175"},null,null,null,"Inventory: Other supplies",null,0,0,0,0,0,0,0,null,null,null,{"$f":"[1]CF_Diff_ENEs!U106","v":18101.70767},{"$f":"CashFlow!I106","v":18101.70767},{"$f":"[1]CF_Diff_ENEs!W106","v":11485.853569999999},{"$f":"CashFlow!J106","v":11485.853569999999},{"$f":"CashFlow!K106","v":32813.155400000003},{"$f":"CashFlow!L106","v":32813.155400000003},{"$f":"CashFlow!M106","v":34325.841863940004},{"$f":"CashFlow!N106","v":34325.841863940004},{"$f":"CashFlow!O106","v":35887.667668749273},{"$f":"CashFlow!P106","v":35887.667668749273},{"$f":"CashFlow!Q106","v":37509.790247376739},{"$f":"CashFlow!R106","v":37509.790247376739},{"$f":"CashFlow!S106","v":0},{"$f":"CashFlow!S106","v":0},{"$f":"CashFlow!U106","v":0}]
[{"$f":"CashFlow!A107","v":1},{"$f":"CashFlow!B107","v":"CF2176"},null,null,null,"Consumable supplies",null,0,0,0,0,0,0,0,null,null,null,{"$f":"[1]CF_Diff_ENEs!U107","v":14786.768940000002},{"$f":"CashFlow!I107","v":14786.768940000002},{"$f":"[1]CF_Diff_ENEs!W107","v":12184.75368},{"$f":"CashFlow!J107","v":12184.75368},{"$f":"CashFlow!K107","v":18574.455190000001},{"$f":"CashFlow!L107","v":18574.455190000001},{"$f":"CashFlow!M107","v":47404.925685535454},{"$f":"CashFlow!N107","v":47404.925685535454},{"$f":"CashFlow!O107","v":20279.327193922596},{"$f":"CashFlow!P107","v":20279.327193922596},{"$f":"CashFlow!Q107","v":21188.215311922915},{"$f":"CashFlow!R107","v":21188.215311922915},{"$f":"CashFlow!S107","v":0},{"$f":"CashFlow!S107","v":0},{"$f":"CashFlow!U107","v":0}]
[{"$f":"CashFlow!A108","v":1},{"$f":"CashFlow!B108","v":"CF2139"},null,null,null,"Consumables: Stationery, printing and office supplies",null,0,0,0,0,0,0,0,null,null,null,{"$f":"[1]CF_Diff_ENEs!U108","v":58094.057959999998},{"$f":"CashFlow!I108","v":58094.057959999998},{"$f":"[1]CF_Diff_ENEs!W108","v":59362.464299999992},{"$f":"CashFlow!J108","v":59362.464299999992},{"$f":"CashFlow!K108","v":87228.53207999999},{"$f":"CashFlow!L108","v":87228.53207999999},{"$f":"CashFlow!M108","v":93674.274254758478},{"$f":"CashFlow!N108","v":93674.274254758478},{"$f":"CashFlow!O108","v":100657.89112619904},{"$f":"CashFlow!P108","v":100657.89112619904},{"$f":"CashFlow!Q108","v":108219.97849295838},{"$f":"CashFlow!R108","v":108219.97849295838},{"$f":"CashFlow!S108","v":0},{"$f":"CashFlow!S108","v":0},{"$f":"CashFlow!U108","v":0}]
[{"$f":"CashFlow!A109","v":1},{"$f":"CashFlow!B109","v":"CF2136"},null,null,null,"Operating leases",null,0,0,0,0,0,0,0,null,null,null,{"$f":"[1]CF_Diff_ENEs!U109","v":9079.7676700000011},{"$f":"CashFlow!I109","v":9079.7676700000011},{"$f":"[1]CF_Diff_ENEs!W109","v":13473.448949999996},{"$f":"CashFlow!J109","v":13473.448949999996},{"$f":"CashFlow!K109","v":41869.537149999996},{"$f":"CashFlow!L109","v":41869.537149999996},{"$f":"CashFlow!M109","v":43624.820075421085},{"$f":"CashFlow!N109","v":43624.820075421085},{"$f":"CashFlow!O109","v":45633.990963272445},{"$f":"CashFlow!P109","v":45633.990963272445},{"$f":"CashFlow!Q109","v":47747.31919376627},{"$f":"CashFlow!R109","v":47747.31919376627},{"$f":"CashFlow!S109","v":0},{"$f":"CashFlow!S109","v":0},{"$f":"CashFlow!U109","v":0}]
[{"$f":"CashFlow!A110","v":1},{"$f":"CashFlow!B110","v":"CF2177"},null,null,null,"Rental and hiring",null,0,0,0,0,0,0,0,null,null,null,{"$f":"[1]CF_Diff_ENEs!U110","v":0},{"$f":"CashFlow!I110","v":0},{"$f":"[1]CF_Diff_ENEs!W110","v":0},{"$f":"CashFlow!J110","v":0},{"$f":"CashFlow!K110","v":0},{"$f":"CashFlow!L110","v":0},{"$f":"CashFlow!M110","v":0},{"$f":"CashFlow!N110","v":0},{"$f":"CashFlow!O110","v":0},{"$f":"CashFlow!P110","v":0},{"$f":"CashFlow!Q110","v":0},{"$f":"CashFlow!R110","v":0},{"$f":"CashFlow!S110","v":0},{"$f":"CashFlow!S110","v":0},{"$f":"CashFlow!U110","v":0}]
[{"$f":"CashFlow!A111","v":1},{"$f":"CashFlow!B111","v":"CF2140"},null,null,null,"Property payments",null,0,0,0,0,0,0,0,null,null,null,{"$f":"[1]CF_Diff_ENEs!U111","v":707630.32183000003},{"$f":"CashFlow!I111","v":707630.32183000003},{"$f":"[1]CF_Diff_ENEs!W111","v":700327.85936},{"$f":"CashFlow!J111","v":700327.85936},{"$f":"CashFlow!K111","v":723799.64240999985},{"$f":"CashFlow!L111","v":723799.64240999985},{"$f":"CashFlow!M111","v":927023.07843331911},{"$f":"CashFlow!N111","v":927023.07843331911},{"$f":"CashFlow!O111","v":995231.80193670071},{"$f":"CashFlow!P111","v":995231.80193670071},{"$f":"CashFlow!Q111","v":1085217.7380052479},{"$f":"CashFlow!R111","v":1085217.7380052479},{"$f":"CashFlow!S111","v":0},{"$f":"CashFlow!S111","v":0},{"$f":"CashFlow!U111","v":0}]
[{"$f":"CashFlow!A112","v":1},{"$f":"CashFlow!B112","v":"CF2178"},null,null,null,"Transport provided: Internal activities",null,0,0,0,0,0,0,0,null,null,null,{"$f":"[1]CF_Diff_ENEs!U112","v":50116.34405},{"$f":"CashFlow!I112","v":50116.34405},{"$f":"[1]CF_Diff_ENEs!W112","v":54383.806100000009},{"$f":"CashFlow!J112","v":54383.806100000009},{"$f":"CashFlow!K112","v":56604.281709999996},{"$f":"CashFlow!L112","v":56604.281709999996},{"$f":"CashFlow!M112","v":58523.432288844298},{"$f":"CashFlow!N112","v":58523.432288844298},{"$f":"CashFlow!O112","v":60958.321862681049},{"$f":"CashFlow!P112","v":60958.321862681049},{"$f":"CashFlow!Q112","v":63506.708983750541},{"$f":"CashFlow!R112","v":63506.708983750541},{"$f":"CashFlow!S112","v":0},{"$f":"CashFlow!S112","v":0},{"$f":"CashFlow!U112","v":0}]
[{"$f":"CashFlow!A113","v":1},{"$f":"CashFlow!B113","v":"CF2144"},null,null,null,"Travel and subsistence",null,0,0,0,0,0,0,0,null,null,null,{"$f":"[1]CF_Diff_ENEs!U113","v":73812.443469999998},{"$f":"CashFlow!I113","v":73812.443469999998},{"$f":"[1]CF_Diff_ENEs!W113","v":80785.636580000006},{"$f":"CashFlow!J113","v":80785.636580000006},{"$f":"CashFlow!K113","v":89072.801419999989},{"$f":"CashFlow!L113","v":89072.801419999989},{"$f":"CashFlow!M113","v":92452.298619442008},{"$f":"CashFlow!N113","v":92452.298619442008},{"$f":"CashFlow!O113","v":96418.915786644982},{"$f":"CashFlow!P113","v":96418.915786644982},{"$f":"CashFlow!Q113","v":100559.19471980413},{"$f":"CashFlow!R113","v":100559.19471980413},{"$f":"CashFlow!S113","v":0},{"$f":"CashFlow!S113","v":0},{"$f":"CashFlow!U113","v":0}]
[{"$f":"CashFlow!A114","v":1},{"$f":"CashFlow!B114","v":"CF2143"},null,null,null,"Training and development",null,0,0,0,0,0,0,0,null,null,null,{"$f":"[1]CF_Diff_ENEs!U114","v":27192.178789999998},{"$f":"CashFlow!I114","v":27192.178789999998},{"$f":"[1]CF_Diff_ENEs!W114","v":30446.804910000003},{"$f":"CashFlow!J114","v":30446.804910000003},{"$f":"CashFlow!K114","v":37071.986510000002},{"$f":"CashFlow!L114","v":37071.986510000002},{"$f":"CashFlow!M114","v":38781.005088111},{"$f":"CashFlow!N114","v":38781.005088111},{"$f":"CashFlow!O114","v":40545.540819620051},{"$f":"CashFlow!P114","v":40545.540819620051},{"$f":"CashFlow!Q114","v":42378.19926466688},{"$f":"CashFlow!R114","v":42378.19926466688},{"$f":"CashFlow!S114","v":0},{"$f":"CashFlow!S114","v":0},{"$f":"CashFlow!U114","v":0}]
[{"$f":"CashFlow!A115","v":1},{"$f":"CashFlow!B115","v":"CF2146"},null,null,null,"Operating payments",null,0,0,0,0,0,0,0,null,null,null,{"$f":"[1]CF_Diff_ENEs!U115","v":223633.74459999998},{"$f":"CashFlow!I115","v":223633.74459999998},{"$f":"[1]CF_Diff_ENEs!W115","v":250891.45627999995},{"$f":"CashFlow!J115","v":250891.45627999995},{"$f":"CashFlow!K115","v":193753.41074000002},{"$f":"CashFlow!L115","v":193753.41074000002},{"$f":"CashFlow!M115","v":352305.09734118055},{"$f":"CashFlow!N115","v":352305.09734118055},{"$f":"CashFlow!O115","v":223786.59539476392},{"$f":"CashFlow!P115","v":223786.59539476392},{"$f":"CashFlow!Q115","v":229014.90211066537},{"$f":"CashFlow!R115","v":229014.90211066537},{"$f":"CashFlow!S115","v":0},{"$f":"CashFlow!S115","v":0},{"$f":"CashFlow!U115","v":0}]
[{"$f":"CashFlow!A116","v":1},{"$f":"CashFlow!B116","v":"CF2145"},null,null,null,"Venues and facilities",null,0,0,0,0,0,0,0,null,null,null,{"$f":"[1]CF_Diff_ENEs!U116","v":2546.3962300000003},{"$f":"CashFlow!I116","v":2546.3962300000003},{"$f":"[1]CF_Diff_ENEs!W116","v":12377.804310000001},{"$f":"CashFlow!J116","v":12377.804310000001},{"$f":"CashFlow!K116","v":14124.05163},{"$f":"CashFlow!L116","v":14124.05163},{"$f":"CashFlow!M116","v":14802.006108239999},{"$f":"CashFlow!N116","v":14802.006108239999},{"$f":"CashFlow!O116","v":15512.502401435519},{"$f":"CashFlow!P116","v":15512.502401435519},{"$f":"CashFlow!Q116","v":16257.102516704424},{"$f":"CashFlow!R116","v":16257.102516704424},{"$f":"CashFlow!S116","v":0},{"$f":"CashFlow!S116","v":0},{"$f":"CashFlow!U116","v":0}]
[{"$f":"CashFlow!A117","v":1},{"$f":"CashFlow!B117","v":"CF213"},null,null,null,"Interest and rent on land",null,0,0,0,0,0,0,0,null,null,null,{"$f":"SUM(R118:R120)","v":9213.8095199999989},{"$f":"SUM(S118:S120)","v":9213.8095199999989},{"$f":"SUM(T118:T120)","v":7916.96011},7916.96011,217.37929,217.37929,227.40047526900003,227.40047526900003,237.74719689373953,237.74719689373953,248.49337019333655,248.49337019333655,0,0,{"$f":"SUM(AF118:AF120)","v":0}]
[{"$f":"CashFlow!A118","v":1},{"$f":"CashFlow!B118","v":"CF2160"},null,null,null,"Interest",null,0,0,0,0,0,0,0,null,null,null,{"$f":"[1]CF_Diff_ENEs!U118","v":9213.8095199999989},{"$f":"CashFlow!I118","v":9213.8095199999989},{"$f":"[1]CF_Diff_ENEs!W118","v":7916.96011},{"$f":"CashFlow!J118","v":7916.96011},{"$f":"CashFlow!K118","v":217.37929},{"$f":"CashFlow!L118","v":217.37929},{"$f":"CashFlow!M118","v":227.40047526900003},{"$f":"CashFlow!N118","v":227.40047526900003},{"$f":"CashFlow!O118","v":237.74719689373953},{"$f":"CashFlow!P118","v":237.74719689373953},{"$f":"CashFlow!Q118","v":248.49337019333655},{"$f":"CashFlow!R118","v":248.49337019333655},{"$f":"CashFlow!S118","v":0},{"$f":"CashFlow!S118","v":0},{"$f":"CashFlow!U118","v":0}]
[{"$f":"CashFlow!A119","v":1},{"$f":"CashFlow!B119","v":"CF2161"},null,null,null,"Dividends",null,0,0,0,0,0,0,0,null,null,null,{"$f":"[1]CF_Diff_ENEs!U119","v":0},{"$f":"CashFlow!I119","v":0},{"$f":"[1]CF_Diff_ENEs!W119","v":0},{"$f":"CashFlow!J119","v":0},{"$f":"CashFlow!K119","v":0},{"$f":"CashFlow!L119","v":0},{"$f":"CashFlow!M119","v":0},{"$f":"CashFlow!N119","v":0},{"$f":"CashFlow!O119","v":0},{"$f":"CashFlow!P119","v":0},{"$f":"CashFlow!Q119","v":0},{"$f":"CashFlow!R119","v":0},{"$f":"CashFlow!S119","v":0},{"$f":"CashFlow!S119","v":0},{"$f":"CashFlow!U119","v":0}]
[{"$f":"CashFlow!A120","v":1},{"$f":"CashFlow!B120","v":"CF2162"},null,null,null,"Rent on land",null,0,0,0,0,0,0,0,null,null,null,{"$f":"[1]CF_Diff_ENEs!U120","v":0},{"$f":"CashFlow!I120","v":0},{"$f":"[1]CF_Diff_ENEs!W120","v":0},{"$f":"CashFlow!J120","v":0},{"$f":"CashFlow!K120","v":0},{"$f":"CashFlow!L120","v":0},{"$f":"CashFlow!M120","v":0},{"$f":"CashFlow!N120","v":0},{"$f":"CashFlow!O120","v":0},{"$f":"CashFlow!P120","v":0},{"$f":"CashFlow!Q120","v":0},{"$f":"CashFlow!R120","v":0},{"$f":"CashFlow!S120","v":0},{"$f":"CashFlow!S120","v":0},{"$f":"CashFlow!U120","v":0}]
[{"$f":"CashFlow!A121","v":1},{"$f":"CashFlow!B121","v":"CF24"},null,null,null,"Transfers and subsidies",null,0,0,0,0,0,0,0,null,null,null,{"$f":"SUM(R122,R133,R144:R147)","v":0},{"$f":"SUM(S122,S133,S144:S147)","v":0},{"$f":"SUM(T122,T133,T144:T147)","v":0},0,0,0,0,0,0,0,0,0,0,0,{"$f":"SUM(AF122,AF133,AF144:AF147)","v":0}]
[{"$f":"CashFlow!A122","v":2},{"$f":"CashFlow!B122","v":"CF241"},null,null,null,"Employer Grant (SETAs only)",null,0,0,0,0,0,0,0,null,null,null,{"$f":"SUM(R123,R129,R132)","v":0},{"$f":"SUM(S123,S129,S132)","v":0},{"$f":"SUM(T123,T129,T132)","v":0},0,0,0,0,0,0,0,0,0,0,0,{"$f":"SUM(AF123,AF129,AF132)","v":0}]
[{"$f":"CashFlow!A123","v":1},{"$f":"CashFlow!B123","v":"CF242"},null,null,null,"Other government units",null,0,0,0,0,0,0,0,null,null,null,{"$f":"SUM(R124:R128)","v":0},{"$f":"SUM(S124:S128)","v":0},{"$f":"SUM(T124:T128)","v":0},0,0,0,0,0,0,0,0,0,0,0,{"$f":"SUM(AF124:AF128)","v":0}]
[{"$f":"CashFlow!A124","v":1},{"$f":"CashFlow!B124","v":"CF2421"},null,null,null,"National government",null,0,0,0,0,0,0,0,null,null,null,{"$f":"[1]CF_Diff_ENEs!U124","v":0},{"$f":"CashFlow!I124","v":0},{"$f":"[1]CF_Diff_ENEs!W124","v":0},{"$f":"CashFlow!J124","v":0},{"$f":"CashFlow!K124","v":0},{"$f":"CashFlow!L124","v":0},{"$f":"CashFlow!M124","v":0},{"$f":"CashFlow!N124","v":0},{"$f":"CashFlow!O124","v":0},{"$f":"CashFlow!P124","v":0},{"$f":"CashFlow!Q124","v":0},{"$f":"CashFlow!R124","v":0},{"$f":"CashFlow!S124","v":0},{"$f":"CashFlow!S124","v":0},{"$f":"CashFlow!U124","v":0}]
[{"$f":"CashFlow!A125","v":1},{"$f":"CashFlow!B125","v":"CF2422"},null,null,null,"Departmental agencies and accounts",null,0,0,0,0,0,0,0,null,null,null,{"$f":"[1]CF_Diff_ENEs!U125","v":0},{"$f":"CashFlow!I125","v":0},{"$f":"[1]CF_Diff_ENEs!W125","v":0},{"$f":"CashFlow!J125","v":0},{"$f":"CashFlow!K125","v":0},{"$f":"CashFlow!L125","v":0},{"$f":"CashFlow!M125","v":0},{"$f":"CashFlow!N125","v":0},{"$f":"CashFlow!O125","v":0},{"$f":"CashFlow!P125","v":0},{"$f":"CashFlow!Q125","v":0},{"$f":"CashFlow!R125","v":0},{"$f":"CashFlow!S125","v":0},{"$f":"CashFlow!S125","v":0},{"$f":"CashFlow!U125","v":0}]
[{"$f":"CashFlow!A126","v":1},{"$f":"CashFlow!B126","v":"CF2423"},null,null,null,"Provinces",null,{"$f":"S126-R126","v":0},{"$f":"U126-T126","v":0},{"$f":"W126-V126","v":0},{"$f":"Y126-X126","v":0},{"$f":"AA126-Z126","v":0},{"$f":"AC126-AB126","v":0},0,null,null,null,{"$f":"[1]CF_Diff_ENEs!U126","v":0},{"$f":"CashFlow!I126","v":0},{"$f":"[1]CF_Diff_ENEs!W126","v":0},{"$f":"CashFlow!J126","v":0},{"$f":"CashFlow!K126","v":0},{"$f":"CashFlow!L126","v":0},{"$f":"CashFlow!M126","v":0},{"$f":"CashFlow!N126","v":0},{"$f":"CashFlow!O126","v":0},{"$f":"CashFlow!P126","v":0},{"$f":"CashFlow!Q126","v":0},{"$f":"CashFlow!R126","v":0},{"$f":"CashFlow!S126","v":0},{"$f":"CashFlow!S126","v":0},{"$f":"CashFlow!U126","v":0}]
[{"$f":"CashFlow!A127","v":1},{"$f":"CashFlow!B127","v":"CF2424"},null,null,null,"Municipalities",null,0,0,0,0,0,0,0,null,null,null,{"$f":"[1]CF_Diff_ENEs!U127","v":0},{"$f":"CashFlow!I127","v":0},{"$f":"[1]CF_Diff_ENEs!W127","v":0},{"$f":"CashFlow!J127","v":0},{"$f":"CashFlow!K127","v":0},{"$f":"CashFlow!L127","v":0},{"$f":"CashFlow!M127","v":0},{"$f":"CashFlow!N127","v":0},{"$f":"CashFlow!O127","v":0},{"$f":"CashFlow!P127","v":0},{"$f":"CashFlow!Q127","v":0},{"$f":"CashFlow!R127","v":0},{"$f":"CashFlow!S127","v":0},{"$f":"CashFlow!S127","v":0},{"$f":"CashFlow!U127","v":0}]
[{"$f":"CashFlow!A128","v":1},{"$f":"CashFlow!B128","v":"CF2425"},null,null,null,"National Skills Fund",null,0,0,0,0,0,0,0,null,null,null,{"$f":"[1]CF_Diff_ENEs!U128","v":0},{"$f":"CashFlow!I128","v":0},{"$f":"[1]CF_Diff_ENEs!W128","v":0},{"$f":"CashFlow!J128","v":0},{"$f":"CashFlow!K128","v":0},{"$f":"CashFlow!L128","v":0},{"$f":"CashFlow!M128","v":0},{"$f":"CashFlow!N128","v":0},{"$f":"CashFlow!O128","v":0},{"$f":"CashFlow!P128","v":0},{"$f":"CashFlow!Q128","v":0},{"$f":"CashFlow!R128","v":0},{"$f":"CashFlow!S128","v":0},{"$f":"CashFlow!S128","v":0},{"$f":"CashFlow!U128","v":0}]
[{"$f":"CashFlow!A129","v":1},{"$f":"CashFlow!B129","v":"CF243"},null,null,null,"Public corporations and private enterprises (subsidies and other transfers)",null,0,0,0,0,0,0,0,null,null,null,{"$f":"SUM(R130:R131)","v":0},{"$f":"SUM(S130:S131)","v":0},{"$f":"SUM(T130:T131)","v":0},0,0,0,0,0,0,0,0,0,0,0,{"$f":"SUM(AF130:AF131)","v":0}]
[{"$f":"CashFlow!A130","v":1},{"$f":"CashFlow!B130","v":"CF2431"},null,null,null,"Public corporations",null,0,0,0,0,0,0,0,null,null,null,{"$f":"[1]CF_Diff_ENEs!U130","v":0},{"$f":"CashFlow!I130","v":0},{"$f":"[1]CF_Diff_ENEs!W130","v":0},{"$f":"CashFlow!J130","v":0},{"$f":"CashFlow!K130","v":0},{"$f":"CashFlow!L130","v":0},{"$f":"CashFlow!M130","v":0},{"$f":"CashFlow!N130","v":0},{"$f":"CashFlow!O130","v":0},{"$f":"CashFlow!P130","v":0},{"$f":"CashFlow!Q130","v":0},{"$f":"CashFlow!R130","v":0},{"$f":"CashFlow!S130","v":0},{"$f":"CashFlow!S130","v":0},{"$f":"CashFlow!U130","v":0}]
[{"$f":"CashFlow!A131","v":1},{"$f":"CashFlow!B131","v":"CF2432"},null,null,null,"Private enterprises",null,0,0,0,0,0,0,0,null,null,null,{"$f":"[1]CF_Diff_ENEs!U131","v":0},{"$f":"CashFlow!I131","v":0},{"$f":"[1]CF_Diff_ENEs!W131","v":0},{"$f":"CashFlow!J131","v":0},{"$f":"CashFlow!K131","v":0},{"$f":"CashFlow!L131","v":0},{"$f":"CashFlow!M131","v":0},{"$f":"CashFlow!N131","v":0},{"$f":"CashFlow!O131","v":0},{"$f":"CashFlow!P131","v":0},{"$f":"CashFlow!Q131","v":0},{"$f":"CashFlow!R131","v":0},{"$f":"CashFlow!S131","v":0},{"$f":"CashFlow!S131","v":0},{"$f":"CashFlow!U131","v":0}]
[{"$f":"CashFlow!A132","v":2},{"$f":"CashFlow!B132","v":"CF244"},null,null,null,"Households and non government units",null,0,0,0,0,0,0,0,null,null,null,{"$f":"[1]CF_Diff_ENEs!U132","v":0},{"$f":"CashFlow!I132","v":0},{"$f":"[1]CF_Diff_ENEs!W132","v":0},{"$f":"CashFlow!J132","v":0},{"$f":"CashFlow!K132","v":0},{"$f":"CashFlow!L132","v":0},{"$f":"CashFlow!M132","v":0},{"$f":"CashFlow!N132","v":0},{"$f":"CashFlow!O132","v":0},{"$f":"CashFlow!P132","v":0},{"$f":"CashFlow!Q132","v":0},{"$f":"CashFlow!R132","v":0},{"$f":"CashFlow!S132","v":0},{"$f":"CashFlow!S132","v":0},{"$f":"CashFlow!U132","v":0}]
[{"$f":"CashFlow!A133","v":2},{"$f":"CashFlow!B133","v":"CF245"},null,null,null,"Discretionary Grant (SETAs only)",null,0,0,0,0,0,0,0,null,null,null,{"$f":"SUM(R134,R140,R143)","v":0},{"$f":"SUM(S134,S140,S143)","v":0},{"$f":"SUM(T134,T140,T143)","v":0},0,0,0,0,0,0,0,0,0,0,0,{"$f":"SUM(AF134,AF140,AF143)","v":0}]
[{"$f":"CashFlow!A134","v":2},{"$f":"CashFlow!B134","v":"CF246"},null,null,null,"Other government units",null,0,0,0,0,0,0,0,null,null,null,{"$f":"SUM(R135:R139)","v":0},{"$f":"SUM(S135:S139)","v":0},{"$f":"SUM(T135:T139)","v":0},0,0,0,0,0,0,0,0,0,0,0,{"$f":"SUM(AF135:AF139)","v":0}]
[{"$f":"CashFlow!A135","v":2},{"$f":"CashFlow!B135","v":"CF2461"},null,null,null,"National government",null,0,0,0,0,0,0,0,null,null,null,{"$f":"[1]CF_Diff_ENEs!U135","v":0},{"$f":"CashFlow!I135","v":0},{"$f":"[1]CF_Diff_ENEs!W135","v":0},{"$f":"CashFlow!J135","v":0},{"$f":"CashFlow!K135","v":0},{"$f":"CashFlow!L135","v":0},{"$f":"CashFlow!M135","v":0},{"$f":"CashFlow!N135","v":0},{"$f":"CashFlow!O135","v":0},{"$f":"CashFlow!P135","v":0},{"$f":"CashFlow!Q135","v":0},{"$f":"CashFlow!R135","v":0},{"$f":"CashFlow!S135","v":0},{"$f":"CashFlow!S135","v":0},{"$f":"CashFlow!U135","v":0}]
[{"$f":"CashFlow!A136","v":2},{"$f":"CashFlow!B136","v":"CF2462"},null,null,null,"Departmental agencies and accounts",null,0,0,0,0,0,0,0,null,null,null,{"$f":"[1]CF_Diff_ENEs!U136","v":0},{"$f":"CashFlow!I136","v":0},{"$f":"[1]CF_Diff_ENEs!W136","v":0},{"$f":"CashFlow!J136","v":0},{"$f":"CashFlow!K136","v":0},{"$f":"CashFlow!L136","v":0},{"$f":"CashFlow!M136","v":0},{"$f":"CashFlow!N136","v":0},{"$f":"CashFlow!O136","v":0},{"$f":"CashFlow!P136","v":0},{"$f":"CashFlow!Q136","v":0},{"$f":"CashFlow!R136","v":0},{"$f":"CashFlow!S136","v":0},{"$f":"CashFlow!S136","v":0},{"$f":"CashFlow!U136","v":0}]
[{"$f":"CashFlow!A137","v":2},{"$f":"CashFlow!B137","v":"CF2463"},null,null,null,"Provinces",null,0,0,0,0,0,0,0,null,null,null,{"$f":"[1]CF_Diff_ENEs!U137","v":0},{"$f":"CashFlow!I137","v":0},{"$f":"[1]CF_Diff_ENEs!W137","v":0},{"$f":"CashFlow!J137","v":0},{"$f":"CashFlow!K137","v":0},{"$f":"CashFlow!L137","v":0},{"$f":"CashFlow!M137","v":0},{"$f":"CashFlow!N137","v":0},{"$f":"CashFlow!O137","v":0},{"$f":"CashFlow!P137","v":0},{"$f":"CashFlow!Q137","v":0},{"$f":"CashFlow!R137","v":0},{"$f":"CashFlow!S137","v":0},{"$f":"CashFlow!S137","v":0},{"$f":"CashFlow!U137","v":0}]
[{"$f":"CashFlow!A138","v":2},{"$f":"CashFlow!B138","v":"CF2464"},null,null,null,"Municipalities",null,0,0,0,0,0,0,0,null,null,null,{"$f":"[1]CF_Diff_ENEs!U138","v":0},{"$f":"CashFlow!I138","v":0},{"$f":"[1]CF_Diff_ENEs!W138","v":0},{"$f":"CashFlow!J138","v":0},{"$f":"CashFlow!K138","v":0},{"$f":"CashFlow!L138","v":0},{"$f":"CashFlow!M138","v":0},{"$f":"CashFlow!N138","v":0},{"$f":"CashFlow!O138","v":0},{"$f":"CashFlow!P138","v":0},{"$f":"CashFlow!Q138","v":0},{"$f":"CashFlow!R138","v":0},{"$f":"CashFlow!S138","v":0},{"$f":"CashFlow!S138","v":0},{"$f":"CashFlow!U138","v":0}]
[{"$f":"CashFlow!A139","v":2},{"$f":"CashFlow!B139","v":"CF2465"},null,null,null,"National Skills Fund",null,0,0,0,0,0,0,0,null,null,null,{"$f":"[1]CF_Diff_ENEs!U139","v":0},{"$f":"CashFlow!I139","v":0},{"$f":"[1]CF_Diff_ENEs!W139","v":0},{"$f":"CashFlow!J139","v":0},{"$f":"CashFlow!K139","v":0},{"$f":"CashFlow!L139","v":0},{"$f":"CashFlow!M139","v":0},{"$f":"CashFlow!N139","v":0},{"$f":"CashFlow!O139","v":0},{"$f":"CashFlow!P139","v":0},{"$f":"CashFlow!Q139","v":0},{"$f":"CashFlow!R139","v":0},{"$f":"CashFlow!S139","v":0},{"$f":"CashFlow!S139","v":0},{"$f":"CashFlow!U139","v":0}]
[{"$f":"CashFlow!A140","v":2},{"$f":"CashFlow!B140","v":"CF247"},null,null,null,"Public corporations and private enterprises (subsidies and other transfers)",null,0,0,0,0,0,0,0,null,null,null,{"$f":"SUM(R141:R142)","v":0},{"$f":"SUM(S141:S142)","v":0},{"$f":"SUM(T141:T142)","v":0},0,0,0,0,0,0,0,0,0,0,0,{"$f":"SUM(AF141:AF142)","v":0}]
[{"$f":"CashFlow!A141","v":2},{"$f":"CashFlow!B141","v":"CF2471"},null,null,null,"Public corporations",null,0,0,0,0,0,0,{"$f":"AE141-AD141","v":0},null,null,null,{"$f":"[1]CF_Diff_ENEs!U141","v":0},{"$f":"CashFlow!I141","v":0},{"$f":"[1]CF_Diff_ENEs!W141","v":0},{"$f":"CashFlow!J141","v":0},{"$f":"CashFlow!K141","v":0},{"$f":"CashFlow!L141","v":0},{"$f":"CashFlow!M141","v":0},{"$f":"CashFlow!N141","v":0},{"$f":"CashFlow!O141","v":0},{"$f":"CashFlow!P141","v":0},{"$f":"CashFlow!Q141","v":0},{"$f":"CashFlow!R141","v":0},{"$f":"CashFlow!S141","v":0},{"$f":"CashFlow!S141","v":0},{"$f":"CashFlow!U141","v":0}]
[{"$f":"CashFlow!A142","v":2},{"$f":"CashFlow!B142","v":"CF2472"},null,null,null,"Private enterprises",null,0,0,0,0,0,0,0,null,null,null,{"$f":"[1]CF_Diff_ENEs!U142","v":0},{"$f":"CashFlow!I142","v":0},{"$f":"[1]CF_Diff_ENEs!W142","v":0},{"$f":"CashFlow!J142","v":0},{"$f":"CashFlow!K142","v":0},{"$f":"CashFlow!L142","v":0},{"$f":"CashFlow!M142","v":0},{"$f":"CashFlow!N142","v":0},{"$f":"CashFlow!O142","v":0},{"$f":"CashFlow!P142","v":0},{"$f":"CashFlow!Q142","v":0},{"$f":"CashFlow!R142","v":0},{"$f":"CashFlow!S142","v":0},{"$f":"CashFlow!S142","v":0},{"$f":"CashFlow!U142","v":0}]
[{"$f":"CashFlow!A143","v":2},{"$f":"CashFlow!B143","v":"CF248"},null,null,null,"Households and non government units",null,0,0,0,0,0,0,0,null,null,null,{"$f":"[1]CF_Diff_ENEs!U143","v":0},{"$f":"CashFlow!I143","v":0},{"$f":"[1]CF_Diff_ENEs!W143","v":0},{"$f":"CashFlow!J143","v":0},{"$f":"CashFlow!K143","v":0},{"$f":"CashFlow!L143","v":0},{"$f":"CashFlow!M143","v":0},{"$f":"CashFlow!N143","v":0},{"$f":"CashFlow!O143","v":0},{"$f":"CashFlow!P143","v":0},{"$f":"CashFlow!Q143","v":0},{"$f":"CashFlow!R143","v":0},{"$f":"CashFlow!S143","v":0},{"$f":"CashFlow!S143","v":0},{"$f":"CashFlow!U143","v":0}]
[{"$f":"CashFlow!A144","v":1},{"$f":"CashFlow!B144","v":"CF249"},null,null,null,"Higher education institutions",null,0,0,0,0,0,0,0,null,null,null,{"$f":"[1]CF_Diff_ENEs!U144","v":0},{"$f":"CashFlow!I144","v":0},{"$f":"[1]CF_Diff_ENEs!W144","v":0},{"$f":"CashFlow!J144","v":0},{"$f":"CashFlow!K144","v":0},{"$f":"CashFlow!L144","v":0},{"$f":"CashFlow!M144","v":0},{"$f":"CashFlow!N144","v":0},{"$f":"CashFlow!O144","v":0},{"$f":"CashFlow!P144","v":0},{"$f":"CashFlow!Q144","v":0},{"$f":"CashFlow!R144","v":0},{"$f":"CashFlow!S144","v":0},{"$f":"CashFlow!S144","v":0},{"$f":"CashFlow!U144","v":0}]
[{"$f":"CashFlow!A145","v":1},{"$f":"CashFlow!B145","v":"CF250"},null,null,null,"Foreign governments and international organisations",null,0,0,0,0,0,0,0,null,null,null,{"$f":"[1]CF_Diff_ENEs!U145","v":0},{"$f":"CashFlow!I145","v":0},{"$f":"[1]CF_Diff_ENEs!W145","v":0},{"$f":"CashFlow!J145","v":0},{"$f":"CashFlow!K145","v":0},{"$f":"CashFlow!L145","v":0},{"$f":"CashFlow!M145","v":0},{"$f":"CashFlow!N145","v":0},{"$f":"CashFlow!O145","v":0},{"$f":"CashFlow!P145","v":0},{"$f":"CashFlow!Q145","v":0},{"$f":"CashFlow!R145","v":0},{"$f":"CashFlow!S145","v":0},{"$f":"CashFlow!S145","v":0},{"$f":"CashFlow!U145","v":0}]
[{"$f":"CashFlow!A146","v":1},{"$f":"CashFlow!B146","v":"CF251"},null,null,null,"Non-profit institutions",null,0,0,0,0,0,0,0,null,null,null,{"$f":"[1]CF_Diff_ENEs!U146","v":0},{"$f":"CashFlow!I146","v":0},{"$f":"[1]CF_Diff_ENEs!W146","v":0},{"$f":"CashFlow!J146","v":0},{"$f":"CashFlow!K146","v":0},{"$f":"CashFlow!L146","v":0},{"$f":"CashFlow!M146","v":0},{"$f":"CashFlow!N146","v":0},{"$f":"CashFlow!O146","v":0},{"$f":"CashFlow!P146","v":0},{"$f":"CashFlow!Q146","v":0},{"$f":"CashFlow!R146","v":0},{"$f":"CashFlow!S146","v":0},{"$f":"CashFlow!S146","v":0},{"$f":"CashFlow!U146","v":0}]
[{"$f":"CashFlow!A147","v":1},{"$f":"CashFlow!B147","v":"CF252"},null,null,null,"Households",null,0,0,0,0,0,0,0,null,null,null,{"$f":"SUM(R148:R149)","v":0},{"$f":"SUM(S148:S149)","v":0},{"$f":"SUM(T148:T149)","v":0},0,0,0,0,0,0,0,0,0,0,0,{"$f":"SUM(AF148:AF149)","v":0}]
[{"$f":"CashFlow!A148","v":1},{"$f":"CashFlow!B148","v":"CF2521"},null,null,null,"Social benefits",null,0,0,0,0,0,0,0,null,null,null,{"$f":"[1]CF_Diff_ENEs!U148","v":0},{"$f":"CashFlow!I148","v":0},{"$f":"[1]CF_Diff_ENEs!W148","v":0},{"$f":"CashFlow!J148","v":0},{"$f":"CashFlow!K148","v":0},{"$f":"CashFlow!L148","v":0},{"$f":"CashFlow!M148","v":0},{"$f":"CashFlow!N148","v":0},{"$f":"CashFlow!O148","v":0},{"$f":"CashFlow!P148","v":0},{"$f":"CashFlow!Q148","v":0},{"$f":"CashFlow!R148","v":0},{"$f":"CashFlow!S148","v":0},{"$f":"CashFlow!S148","v":0},{"$f":"CashFlow!U148","v":0}]
[{"$f":"CashFlow!A149","v":1},{"$f":"CashFlow!B149","v":"CF2522"},null,null,null,"Other transfers to households",null,0,0,0,0,0,0,0,null,null,null,{"$f":"[1]CF_Diff_ENEs!U149","v":0},{"$f":"CashFlow!I149","v":0},{"$f":"[1]CF_Diff_ENEs!W149","v":0},{"$f":"CashFlow!J149","v":0},{"$f":"CashFlow!K149","v":0},{"$f":"CashFlow!L149","v":0},{"$f":"CashFlow!M149","v":0},{"$f":"CashFlow!N149","v":0},{"$f":"CashFlow!O149","v":0},{"$f":"CashFlow!P149","v":0},{"$f":"CashFlow!Q149","v":0},{"$f":"CashFlow!R149","v":0},{"$f":"CashFlow!S149","v":0},{"$f":"CashFlow!S149","v":0},{"$f":"CashFlow!U149","v":0}]
[{"$f":"CashFlow!A150","v":1},{"$f":"CashFlow!B150","v":"CF26"},null,null,null,"Payments for financial assets",null,{"$f":"S150-R150","v":0},{"$f":"U150-T150","v":0},{"$f":"W150-V150","v":0},{"$f":"Y150-X150","v":0},{"$f":"AA150-Z150","v":0},{"$f":"AC150-AB150","v":0},0,null,null,null,{"$f":"SUM(R151:R154)","v":0},{"$f":"SUM(S151:S154)","v":0},{"$f":"SUM(T151:T154)","v":0},{"$f":"SUM(U151:U154)","v":0},0,0,0,0,0,0,0,0,0,0,{"$f":"SUM(AF151:AF154)","v":0}]
[{"$f":"CashFlow!A151","v":1},{"$f":"CashFlow!B151","v":"CF261"},null,null,null,"Forex losses",null,{"$f":"S151-R151","v":0},{"$f":"U151-T151","v":0},{"$f":"W151-V151","v":0},{"$f":"Y151-X151","v":0},{"$f":"AA151-Z151","v":0},{"$f":"AC151-AB151","v":0},0,null,null,null,{"$f":"[1]CF_Diff_ENEs!U151","v":0},{"$f":"CashFlow!I151","v":0},{"$f":"[1]CF_Diff_ENEs!W151","v":0},{"$f":"CashFlow!J151","v":0},{"$f":"CashFlow!K151","v":0},{"$f":"CashFlow!L151","v":0},{"$f":"CashFlow!M151","v":0},{"$f":"CashFlow!N151","v":0},{"$f":"CashFlow!O151","v":0},{"$f":"CashFlow!P151","v":0},{"$f":"CashFlow!Q151","v":0},{"$f":"CashFlow!R151","v":0},{"$f":"CashFlow!S151","v":0},{"$f":"CashFlow!S151","v":0},{"$f":"CashFlow!U151","v":0}]
[{"$f":"CashFlow!A152","v":1},{"$f":"CashFlow!B152","v":"CF262"},null,null,null,"Thefts and losses",null,{"$f":"S152-R152","v":0},{"$f":"U152-T152","v":0},{"$f":"W152-V152","v":0},{"$f":"Y152-X152","v":0},{"$f":"AA152-Z152","v":0},{"$f":"AC152-AB152","v":0},0,null,null,null,{"$f":"[1]CF_Diff_ENEs!U152","v":0},{"$f":"CashFlow!I152","v":0},{"$f":"[1]CF_Diff_ENEs!W152","v":0},{"$f":"CashFlow!J152","v":0},{"$f":"CashFlow!K152","v":0},{"$f":"CashFlow!L152","v":0},{"$f":"CashFlow!M152","v":0},{"$f":"CashFlow!N152","v":0},{"$f":"CashFlow!O152","v":0},{"$f":"CashFlow!P152","v":0},{"$f":"CashFlow!Q152","v":0},{"$f":"CashFlow!R152","v":0},{"$f":"CashFlow!S152","v":0},{"$f":"CashFlow!S152","v":0},{"$f":"CashFlow!U152","v":0}]
[{"$f":"CashFlow!A153","v":1},{"$f":"CashFlow!B153","v":"CF263"},null,null,null,"Purchase of equity",null,{"$f":"S153-R153","v":0},{"$f":"U153-T153","v":0},{"$f":"W153-V153","v":0},{"$f":"Y153-X153","v":0},{"$f":"AA153-Z153","v":0},{"$f":"AC153-AB153","v":0},0,null,null,null,{"$f":"[1]CF_Diff_ENEs!U153","v":0},{"$f":"CashFlow!I153","v":0},{"$f":"[1]CF_Diff_ENEs!W153","v":0},{"$f":"CashFlow!J153","v":0},{"$f":"CashFlow!K153","v":0},{"$f":"CashFlow!L153","v":0},{"$f":"CashFlow!M153","v":0},{"$f":"CashFlow!N153","v":0},{"$f":"CashFlow!O153","v":0},{"$f":"CashFlow!P153","v":0},{"$f":"CashFlow!Q153","v":0},{"$f":"CashFlow!R153","v":0},{"$f":"CashFlow!S153","v":0},{"$f":"CashFlow!S153","v":0},{"$f":"CashFlow!U153","v":0}]
[{"$f":"CashFlow!A154","v":1},{"$f":"CashFlow!B154","v":"CF264"},null,null,null,"Other",null,{"$f":"S154-R154","v":0},{"$f":"U154-T154","v":0},{"$f":"W154-V154","v":0},{"$f":"Y154-X154","v":0},{"$f":"AA154-Z154","v":0},{"$f":"AC154-AB154","v":0},0,null,null,null,{"$f":"[1]CF_Diff_ENEs!U154","v":0},{"$f":"CashFlow!I154","v":0},{"$f":"[1]CF_Diff_ENEs!W154","v":0},{"$f":"CashFlow!J154","v":0},{"$f":"CashFlow!K154","v":0},{"$f":"CashFlow!L154","v":0},{"$f":"CashFlow!M154","v":0},{"$f":"CashFlow!N154","v":0},{"$f":"CashFlow!O154","v":0},{"$f":"CashFlow!P154","v":0},{"$f":"CashFlow!Q154","v":0},{"$f":"CashFlow!R154","v":0},{"$f":"CashFlow!S154","v":0},{"$f":"CashFlow!S154","v":0},{"$f":"CashFlow!U154","v":0}]
[{"$f":"CashFlow!A155","v":1},{"$f":"CashFlow!B155","v":"CF22"},null,null,null,"Tax payment",null,0,0,0,0,0,0,0,null,null,null,{"$f":"[1]CF_Diff_ENEs!U155","v":0},{"$f":"CashFlow!I155","v":0},{"$f":"[1]CF_Diff_ENEs!W155","v":0},{"$f":"CashFlow!J155","v":0},{"$f":"CashFlow!K155","v":0},{"$f":"CashFlow!L155","v":0},{"$f":"CashFlow!M155","v":0},{"$f":"CashFlow!N155","v":0},{"$f":"CashFlow!O155","v":0},{"$f":"CashFlow!P155","v":0},{"$f":"CashFlow!Q155","v":0},{"$f":"CashFlow!R155","v":0},{"$f":"CashFlow!S155","v":0},{"$f":"CashFlow!S155","v":0},{"$f":"CashFlow!U155","v":0}]
[{"$f":"CashFlow!A156","v":1},{"$f":"CashFlow!B156","v":"CF23"},null,null,null,"Outside shareholders interest",null,0,0,0,0,0,0,0,null,null,null,{"$f":"[1]CF_Diff_ENEs!U156","v":0},{"$f":"CashFlow!I156","v":0},{"$f":"[1]CF_Diff_ENEs!W156","v":0},{"$f":"CashFlow!J156","v":0},{"$f":"CashFlow!K156","v":0},{"$f":"CashFlow!L156","v":0},{"$f":"CashFlow!M156","v":0},{"$f":"CashFlow!N156","v":0},{"$f":"CashFlow!O156","v":0},{"$f":"CashFlow!P156","v":0},{"$f":"CashFlow!Q156","v":0},{"$f":"CashFlow!R156","v":0},{"$f":"CashFlow!S156","v":0},{"$f":"CashFlow!S156","v":0},{"$f":"CashFlow!U156","v":0}]
[{"$f":"CashFlow!A157","v":3},{"$f":"CashFlow!B157","v":"CF4"},null,null,null,"Cash flow from advancing activities (Financial Institutions only)",null,{"$f":"S157-R157","v":0},{"$f":"U157-T157","v":0},{"$f":"W157-V157","v":0},{"$f":"Y157-X157","v":0},{"$f":"AA157-Z157","v":0},{"$f":"AC157-AB157","v":0},0,null,null,null,{"$f":"SUM(R158,R163)","v":0},{"$f":"SUM(S158,S163)","v":0},{"$f":"SUM(T158,T163)","v":0},{"$f":"SUM(U158,U163)","v":0},0,0,0,0,0,0,0,0,0,0,{"$f":"SUM(AF158,AF163)","v":0}]
[{"$f":"CashFlow!A158","v":3},{"$f":"CashFlow!B158","v":"CF41"},null,null,null,"Disbursements and other payments",null,0,0,0,0,0,0,0,null,null,null,{"$f":"SUM(R159:R162)","v":0},{"$f":"SUM(S159:S162)","v":0},{"$f":"SUM(T159:T162)","v":0},{"$f":"SUM(U159:U162)","v":0},0,0,0,0,0,0,0,0,0,0,{"$f":"SUM(AF159:AF162)","v":0}]
[{"$f":"CashFlow!A159","v":3},{"$f":"CashFlow!B159","v":"CF411"},null,null,null,"Loan disbursements",null,{"$f":"S159-R159","v":0},0,0,0,0,0,0,null,null,null,{"$f":"[1]CF_Diff_ENEs!U159","v":0},{"$f":"CashFlow!I159","v":0},{"$f":"[1]CF_Diff_ENEs!W159","v":0},{"$f":"CashFlow!J159","v":0},{"$f":"CashFlow!K159","v":0},{"$f":"CashFlow!L159","v":0},{"$f":"CashFlow!M159","v":0},{"$f":"CashFlow!N159","v":0},{"$f":"CashFlow!O159","v":0},{"$f":"CashFlow!P159","v":0},{"$f":"CashFlow!Q159","v":0},{"$f":"CashFlow!R159","v":0},{"$f":"CashFlow!S159","v":0},{"$f":"CashFlow!S159","v":0},{"$f":"CashFlow!U159","v":0}]
[{"$f":"CashFlow!A160","v":3},{"$f":"CashFlow!B160","v":"CF412"},null,null,null,"Equity investments disbursements",null,0,0,0,0,0,0,0,null,null,null,{"$f":"[1]CF_Diff_ENEs!U160","v":0},{"$f":"CashFlow!I160","v":0},{"$f":"[1]CF_Diff_ENEs!W160","v":0},{"$f":"CashFlow!J160","v":0},{"$f":"CashFlow!K160","v":0},{"$f":"CashFlow!L160","v":0},{"$f":"CashFlow!M160","v":0},{"$f":"CashFlow!N160","v":0},{"$f":"CashFlow!O160","v":0},{"$f":"CashFlow!P160","v":0},{"$f":"CashFlow!Q160","v":0},{"$f":"CashFlow!R160","v":0},{"$f":"CashFlow!S160","v":0},{"$f":"CashFlow!S160","v":0},{"$f":"CashFlow!U160","v":0}]
[{"$f":"CashFlow!A161","v":3},{"$f":"CashFlow!B161","v":"CF413"},null,null,null,{"$f":"CashFlow!F161","v":"Please specify"},null,0,0,0,0,0,0,0,null,null,null,{"$f":"[1]CF_Diff_ENEs!U161","v":0},{"$f":"CashFlow!I161","v":0},{"$f":"[1]CF_Diff_ENEs!W161","v":0},{"$f":"CashFlow!J161","v":0},{"$f":"CashFlow!K161","v":0},{"$f":"CashFlow!L161","v":0},{"$f":"CashFlow!M161","v":0},{"$f":"CashFlow!N161","v":0},{"$f":"CashFlow!O161","v":0},{"$f":"CashFlow!P161","v":0},{"$f":"CashFlow!Q161","v":0},{"$f":"CashFlow!R161","v":0},{"$f":"CashFlow!S161","v":0},{"$f":"CashFlow!S161","v":0},{"$f":"CashFlow!U161","v":0}]
[{"$f":"CashFlow!A162","v":3},{"$f":"CashFlow!B162","v":"CF414"},null,null,null,{"$f":"CashFlow!F162","v":"Please specify"},null,0,0,0,0,0,0,0,null,null,null,{"$f":"[1]CF_Diff_ENEs!U162","v":0},{"$f":"CashFlow!I162","v":0},{"$f":"[1]CF_Diff_ENEs!W162","v":0},{"$f":"CashFlow!J162","v":0},{"$f":"CashFlow!K162","v":0},{"$f":"CashFlow!L162","v":0},{"$f":"CashFlow!M162","v":0},{"$f":"CashFlow!N162","v":0},{"$f":"CashFlow!O162","v":0},{"$f":"CashFlow!P162","v":0},{"$f":"CashFlow!Q162","v":0},{"$f":"CashFlow!R162","v":0},{"$f":"CashFlow!S162","v":0},{"$f":"CashFlow!S162","v":0},{"$f":"CashFlow!U162","v":0}]
[{"$f":"CashFlow!A163","v":3},{"$f":"CashFlow!B163","v":"CF42"},null,null,null,"Repayments and other receipts",null,0,0,0,0,0,0,0,null,null,null,{"$f":"SUM(R164:R167)","v":0},{"$f":"SUM(S164:S167)","v":0},{"$f":"SUM(T164:T167)","v":0},{"$f":"SUM(U164:U167)","v":0},0,0,0,0,0,0,0,0,0,0,{"$f":"SUM(AF164:AF167)","v":0}]
[{"$f":"CashFlow!A164","v":3},{"$f":"CashFlow!B164","v":"CF421"},null,null,null,"Loan principal repayments",null,0,0,0,0,0,0,0,null,null,null,{"$f":"[1]CF_Diff_ENEs!U164","v":0},{"$f":"CashFlow!I164","v":0},{"$f":"[1]CF_Diff_ENEs!W164","v":0},{"$f":"CashFlow!J164","v":0},{"$f":"CashFlow!K164","v":0},{"$f":"CashFlow!L164","v":0},{"$f":"CashFlow!M164","v":0},{"$f":"CashFlow!N164","v":0},{"$f":"CashFlow!O164","v":0},{"$f":"CashFlow!P164","v":0},{"$f":"CashFlow!Q164","v":0},{"$f":"CashFlow!R164","v":0},{"$f":"CashFlow!S164","v":0},{"$f":"CashFlow!S164","v":0},{"$f":"CashFlow!U164","v":0}]
[{"$f":"CashFlow!A165","v":3},{"$f":"CashFlow!B165","v":"CF422"},null,null,null,"Equity investments repayments",null,0,0,0,0,0,0,0,null,null,null,{"$f":"[1]CF_Diff_ENEs!U165","v":0},{"$f":"CashFlow!I165","v":0},{"$f":"[1]CF_Diff_ENEs!W165","v":0},{"$f":"CashFlow!J165","v":0},{"$f":"CashFlow!K165","v":0},{"$f":"CashFlow!L165","v":0},{"$f":"CashFlow!M165","v":0},{"$f":"CashFlow!N165","v":0},{"$f":"CashFlow!O165","v":0},{"$f":"CashFlow!P165","v":0},{"$f":"CashFlow!Q165","v":0},{"$f":"CashFlow!R165","v":0},{"$f":"CashFlow!S165","v":0},{"$f":"CashFlow!S165","v":0},{"$f":"CashFlow!U165","v":0}]
[{"$f":"CashFlow!A166","v":3},{"$f":"CashFlow!B166","v":"CF423"},null,null,null,{"$f":"CashFlow!F166","v":"Please specify"},null,0,0,0,0,0,0,0,null,null,null,{"$f":"[1]CF_Diff_ENEs!U166","v":0},{"$f":"CashFlow!I166","v":0},{"$f":"[1]CF_Diff_ENEs!W166","v":0},{"$f":"CashFlow!J166","v":0},{"$f":"CashFlow!K166","v":0},{"$f":"CashFlow!L166","v":0},{"$f":"CashFlow!M166","v":0},{"$f":"CashFlow!N166","v":0},{"$f":"CashFlow!O166","v":0},{"$f":"CashFlow!P166","v":0},{"$f":"CashFlow!Q166","v":0},{"$f":"CashFlow!R166","v":0},{"$f":"CashFlow!S166","v":0},{"$f":"CashFlow!S166","v":0},{"$f":"CashFlow!U166","v":0}]
[{"$f":"CashFlow!A167","v":3},{"$f":"CashFlow!B167","v":"CF424"},null,null,null,{"$f":"CashFlow!F167","v":"Please specify"},null,0,0,0,0,0,0,0,null,null,null,{"$f":"[1]CF_Diff_ENEs!U167","v":0},{"$f":"CashFlow!I167","v":0},{"$f":"[1]CF_Diff_ENEs!W167","v":0},{"$f":"CashFlow!J167","v":0},{"$f":"CashFlow!K167","v":0},{"$f":"CashFlow!L167","v":0},{"$f":"CashFlow!M167","v":0},{"$f":"CashFlow!N167","v":0},{"$f":"CashFlow!O167","v":0},{"$f":"CashFlow!P167","v":0},{"$f":"CashFlow!Q167","v":0},{"$f":"CashFlow!R167","v":0},{"$f":"CashFlow!S167","v":0},{"$f":"CashFlow!S167","v":0},{"$f":"CashFlow!U167","v":0}]
[{"$f":"CashFlow!A168","v":1},{"$f":"CashFlow!B168","v":"CF5"},null,null,null,"Cash flow from investing activities",null,{"$f":"-S168+R168","v":0},{"$f":"-U168+T168","v":0},{"$f":"-W168+V168","v":0},{"$f":"-Y168+X168","v":0},{"$f":"-AA168+Z168","v":0},{"$f":"-AC168+AB168","v":0},0,null,null,null,{"$f":"SUM(R169,R182:R183)","v":-789539},{"$f":"SUM(S169,S182:S183)","v":-789539},{"$f":"SUM(T169,T182:T183)","v":-642052},{"$f":"SUM(U169,U182:U183)","v":-642052},-540221.21490000002,-540221.21490000002,-989614.64978879236,-989614.64978879236,-490463.23638710083,-490463.23638710083,-223510.47849298324,-223510.47849298324,0,0,{"$f":"SUM(AF169,AF182:AF183)","v":0}]
[{"$f":"CashFlow!A169","v":1},{"$f":"CashFlow!B169","v":"CF51"},null,null,null,"Acquisition of property, plant, equipment",null,{"$f":"-S169+R169","v":0},{"$f":"-U169+T169","v":0},{"$f":"-W169+V169","v":0},{"$f":"-Y169+X169","v":0},{"$f":"-AA169+Z169","v":0},{"$f":"-AC169+AB169","v":0},0,null,null,null,{"$f":"SUM(R170:R176,R179:R181)","v":-546647},{"$f":"SUM(S170:S176,S179:S181)","v":-546647},{"$f":"SUM(T170:T176,T179:T181)","v":-393809},-393809,-266549.19896999997,-266549.19896999997,-628999.92061654129,-628999.92061654129,-258102.10350970525,-258102.10350970525,-149009.33027115281,-149009.33027115281,0,0,{"$f":"SUM(AF170:AF176,AF179:AF181)","v":0}]
[{"$f":"CashFlow!A170","v":1},{"$f":"CashFlow!B170","v":"CF511"},null,null,null,"Buildings: residential",null,{"$f":"-S170+R170","v":0},{"$f":"-U170+T170","v":0},{"$f":"-W170+V170","v":0},{"$f":"-Y170+X170","v":0},{"$f":"-AA170+Z170","v":0},{"$f":"-AC170+AB170","v":0},0,null,null,null,{"$f":"[1]CF_Diff_ENEs!U170","v":0},{"$f":"CashFlow!I170","v":0},{"$f":"[1]CF_Diff_ENEs!W170","v":0},{"$f":"CashFlow!J170","v":0},{"$f":"CashFlow!K170","v":0},{"$f":"CashFlow!L170","v":0},{"$f":"CashFlow!M170","v":0},{"$f":"CashFlow!N170","v":0},{"$f":"CashFlow!O170","v":0},{"$f":"CashFlow!P170","v":0},{"$f":"CashFlow!Q170","v":0},{"$f":"CashFlow!R170","v":0},{"$f":"CashFlow!S170","v":0},{"$f":"CashFlow!S170","v":0},{"$f":"CashFlow!U170","v":0}]
[{"$f":"CashFlow!A171","v":1},{"$f":"CashFlow!B171","v":"CF512"},null,null,null,"Buildings: non-residential",null,0,0,0,0,0,0,0,null,null,null,{"$f":"[1]CF_Diff_ENEs!U171","v":-98894},{"$f":"CashFlow!I171","v":-98894},{"$f":"[1]CF_Diff_ENEs!W171","v":-50029},{"$f":"CashFlow!J171","v":-50029},{"$f":"CashFlow!K171","v":-39015.561129999995},{"$f":"CashFlow!L171","v":-39015.561129999995},{"$f":"CashFlow!M171","v":-23235.014676546074},{"$f":"CashFlow!N171","v":-23235.014676546074},{"$f":"CashFlow!O171","v":-20432.558868065331},{"$f":"CashFlow!P171","v":-20432.558868065331},{"$f":"CashFlow!Q171","v":-17852.028845823021},{"$f":"CashFlow!R171","v":-17852.028845823021},{"$f":"CashFlow!S171","v":0},{"$f":"CashFlow!S171","v":0},{"$f":"CashFlow!U171","v":0}]
[{"$f":"CashFlow!A172","v":1},{"$f":"CashFlow!B172","v":"CF513"},null,null,null,"Other fixed structures",null,0,0,0,0,0,0,0,null,null,null,{"$f":"[1]CF_Diff_ENEs!U172","v":-3781},{"$f":"CashFlow!I172","v":-3781},{"$f":"[1]CF_Diff_ENEs!W172","v":-9806},{"$f":"CashFlow!J172","v":-9806},{"$f":"CashFlow!K172","v":-75370.420769999997},{"$f":"CashFlow!L172","v":-75370.420769999997},{"$f":"CashFlow!M172","v":-544718.82325176173},{"$f":"CashFlow!N172","v":-544718.82325176173},{"$f":"CashFlow!O172","v":-187158.99276229739},{"$f":"CashFlow!P172","v":-187158.99276229739},{"$f":"CashFlow!Q172","v":-91836.311376575759},{"$f":"CashFlow!R172","v":-91836.311376575759},{"$f":"CashFlow!S172","v":0},{"$f":"CashFlow!S172","v":0},{"$f":"CashFlow!U172","v":0}]
[{"$f":"CashFlow!A173","v":1},{"$f":"CashFlow!B173","v":"CF515"},null,null,null,"Transport equipment",null,0,0,0,0,0,0,0,null,null,null,{"$f":"[1]CF_Diff_ENEs!U173","v":-56888},{"$f":"CashFlow!I173","v":-56888},{"$f":"[1]CF_Diff_ENEs!W173","v":-9442},{"$f":"CashFlow!J173","v":-9442},{"$f":"CashFlow!K173","v":-21099.1708},{"$f":"CashFlow!L173","v":-21099.1708},{"$f":"CashFlow!M173","v":0},{"$f":"CashFlow!N173","v":0},{"$f":"CashFlow!O173","v":0},{"$f":"CashFlow!P173","v":0},{"$f":"CashFlow!Q173","v":0},{"$f":"CashFlow!R173","v":0},{"$f":"CashFlow!S173","v":0},{"$f":"CashFlow!S173","v":0},{"$f":"CashFlow!U173","v":0}]
[{"$f":"CashFlow!A174","v":1},{"$f":"CashFlow!B174","v":"CF516"},null,null,null,"Furniture and office equipment",null,0,0,0,0,0,0,0,null,null,null,{"$f":"[1]CF_Diff_ENEs!U174","v":-40364},{"$f":"CashFlow!I174","v":-40364},{"$f":"[1]CF_Diff_ENEs!W174","v":-13291},{"$f":"CashFlow!J174","v":-13291},{"$f":"CashFlow!K174","v":-34749.292109999995},{"$f":"CashFlow!L174","v":-34749.292109999995},{"$f":"CashFlow!M174","v":-11661.656922063736},{"$f":"CashFlow!N174","v":-11661.656922063736},{"$f":"CashFlow!O174","v":-7860.4082878982526},{"$f":"CashFlow!P174","v":-7860.4082878982526},{"$f":"CashFlow!Q174","v":-3236.7572388733829},{"$f":"CashFlow!R174","v":-3236.7572388733829},{"$f":"CashFlow!S174","v":0},{"$f":"CashFlow!S174","v":0},{"$f":"CashFlow!U174","v":0}]
[{"$f":"CashFlow!A175","v":1},{"$f":"CashFlow!B175","v":"CF517"},null,null,null,"Other machinery and equipment",null,0,0,0,0,0,0,0,null,null,null,{"$f":"[1]CF_Diff_ENEs!U175","v":-19279},{"$f":"CashFlow!I175","v":-19279},{"$f":"[1]CF_Diff_ENEs!W175","v":-6364},{"$f":"CashFlow!J175","v":-6364},{"$f":"CashFlow!K175","v":-64715.761610000001},{"$f":"CashFlow!L175","v":-64715.761610000001},{"$f":"CashFlow!M175","v":-41628.487305649396},{"$f":"CashFlow!N175","v":-41628.487305649396},{"$f":"CashFlow!O175","v":-36607.530888275367},{"$f":"CashFlow!P175","v":-36607.530888275367},{"$f":"CashFlow!Q175","v":-31984.182774740628},{"$f":"CashFlow!R175","v":-31984.182774740628},{"$f":"CashFlow!S175","v":0},{"$f":"CashFlow!S175","v":0},{"$f":"CashFlow!U175","v":0}]
[{"$f":"CashFlow!A176","v":1},{"$f":"CashFlow!B176","v":"CF518"},null,null,null,"Heritage assets",null,0,0,0,0,0,0,0,null,null,null,{"$f":"SUM(R177:R178)","v":0},{"$f":"SUM(S177:S178)","v":0},{"$f":"SUM(T177:T178)","v":0},0,0,0,0,0,0,0,0,0,0,0,{"$f":"SUM(AF177:AF178)","v":0}]
[{"$f":"CashFlow!A177","v":1},{"$f":"CashFlow!B177","v":"CF5181"},null,null,null,"Buildings and other fixed structures",null,0,0,0,0,0,0,0,null,null,null,{"$f":"[1]CF_Diff_ENEs!U177","v":0},{"$f":"CashFlow!I177","v":0},{"$f":"[1]CF_Diff_ENEs!W177","v":0},{"$f":"CashFlow!J177","v":0},{"$f":"CashFlow!K177","v":0},{"$f":"CashFlow!L177","v":0},{"$f":"CashFlow!M177","v":0},{"$f":"CashFlow!N177","v":0},{"$f":"CashFlow!O177","v":0},{"$f":"CashFlow!P177","v":0},{"$f":"CashFlow!Q177","v":0},{"$f":"CashFlow!R177","v":0},{"$f":"CashFlow!S177","v":0},{"$f":"CashFlow!S177","v":0},{"$f":"CashFlow!U177","v":0}]
[{"$f":"CashFlow!A178","v":1},{"$f":"CashFlow!B178","v":"CF5182"},null,null,null,"Other than buildings and fixed structures",null,0,0,0,0,0,0,0,null,null,null,{"$f":"[1]CF_Diff_ENEs!U178","v":0},{"$f":"CashFlow!I178","v":0},{"$f":"[1]CF_Diff_ENEs!W178","v":0},{"$f":"CashFlow!J178","v":0},{"$f":"CashFlow!K178","v":0},{"$f":"CashFlow!L178","v":0},{"$f":"CashFlow!M178","v":0},{"$f":"CashFlow!N178","v":0},{"$f":"CashFlow!O178","v":0},{"$f":"CashFlow!P178","v":0},{"$f":"CashFlow!Q178","v":0},{"$f":"CashFlow!R178","v":0},{"$f":"CashFlow!S178","v":0},{"$f":"CashFlow!S178","v":0},{"$f":"CashFlow!U178","v":0}]
[{"$f":"CashFlow!A179","v":1},{"$f":"CashFlow!B179","v":"CF519"},null,null,null,"Biological assets",null,0,0,0,0,0,0,0,null,null,null,{"$f":"[1]CF_Diff_ENEs!U179","v":-3725},{"$f":"CashFlow!I179","v":-3725},{"$f":"[1]CF_Diff_ENEs!W179","v":-1676},{"$f":"CashFlow!J179","v":-1676},{"$f":"CashFlow!K179","v":-112.7},{"$f":"CashFlow!L179","v":-112.7},{"$f":"CashFlow!M179","v":0},{"$f":"CashFlow!N179","v":0},{"$f":"CashFlow!O179","v":0},{"$f":"CashFlow!P179","v":0},{"$f":"CashFlow!Q179","v":0},{"$f":"CashFlow!R179","v":0},{"$f":"CashFlow!S179","v":0},{"$f":"CashFlow!S179","v":0},{"$f":"CashFlow!U179","v":0}]
[{"$f":"CashFlow!A180","v":1},{"$f":"CashFlow!B180","v":"CF531"},null,null,null,"Land & subsoil assets",null,0,0,0,0,0,0,0,null,null,null,{"$f":"[1]CF_Diff_ENEs!U180","v":0},{"$f":"CashFlow!I180","v":0},{"$f":"[1]CF_Diff_ENEs!W180","v":0},{"$f":"CashFlow!J180","v":0},{"$f":"CashFlow!K180","v":0},{"$f":"CashFlow!L180","v":0},{"$f":"CashFlow!M180","v":0},{"$f":"CashFlow!N180","v":0},{"$f":"CashFlow!O180","v":0},{"$f":"CashFlow!P180","v":0},{"$f":"CashFlow!Q180","v":0},{"$f":"CashFlow!R180","v":0},{"$f":"CashFlow!S180","v":0},{"$f":"CashFlow!S180","v":0},{"$f":"CashFlow!U180","v":0}]
[{"$f":"CashFlow!A181","v":1},{"$f":"CashFlow!B181","v":"CF532"},null,null,null,"Computer equipment",null,0,0,0,0,0,0,0,null,null,null,{"$f":"[1]CF_Diff_ENEs!U181","v":-323716},{"$f":"CashFlow!I181","v":-323716},{"$f":"[1]CF_Diff_ENEs!W181","v":-303201},{"$f":"CashFlow!J181","v":-303201},{"$f":"CashFlow!K181","v":-31486.292549999998},{"$f":"CashFlow!L181","v":-31486.292549999998},{"$f":"CashFlow!M181","v":-7755.9384605201785},{"$f":"CashFlow!N181","v":-7755.9384605201785},{"$f":"CashFlow!O181","v":-6042.6127031689084},{"$f":"CashFlow!P181","v":-6042.6127031689084},{"$f":"CashFlow!Q181","v":-4100.0500351399978},{"$f":"CashFlow!R181","v":-4100.0500351399978},{"$f":"CashFlow!S181","v":0},{"$f":"CashFlow!S181","v":0},{"$f":"CashFlow!U181","v":0}]
[{"$f":"CashFlow!A182","v":1},{"$f":"CashFlow!B182","v":"CF514"},null,null,null,"Investment property",null,{"$f":"-S182+R182","v":0},{"$f":"-U182+T182","v":0},{"$f":"-W182+V182","v":0},{"$f":"-Y182+X182","v":0},{"$f":"-AA182+Z182","v":0},{"$f":"-AC182+AB182","v":0},0,null,null,null,{"$f":"[1]CF_Diff_ENEs!U182","v":0},{"$f":"CashFlow!I182","v":0},{"$f":"[1]CF_Diff_ENEs!W182","v":0},{"$f":"CashFlow!J182","v":0},{"$f":"CashFlow!K182","v":0},{"$f":"CashFlow!L182","v":0},{"$f":"CashFlow!M182","v":0},{"$f":"CashFlow!N182","v":0},{"$f":"CashFlow!O182","v":0},{"$f":"CashFlow!P182","v":0},{"$f":"CashFlow!Q182","v":0},{"$f":"CashFlow!R182","v":0},{"$f":"CashFlow!S182","v":0},{"$f":"CashFlow!S182","v":0},{"$f":"CashFlow!U182","v":0}]
[{"$f":"CashFlow!A183","v":1},{"$f":"CashFlow!B183","v":"CF520"},null,null,null,"Acquisition of software and other intangible assets",null,{"$f":"-S183+R183","v":0},{"$f":"-U183+T183","v":0},{"$f":"-W183+V183","v":0},{"$f":"-Y183+X183","v":0},{"$f":"-AA183+Z183","v":0},{"$f":"-AC183+AB183","v":0},0,null,null,null,{"$f":"[1]CF_Diff_ENEs!U183","v":-242892},{"$f":"CashFlow!I183","v":-242892},{"$f":"[1]CF_Diff_ENEs!W183","v":-248243},{"$f":"CashFlow!J183","v":-248243},{"$f":"CashFlow!K183","v":-273672.01592999999},{"$f":"CashFlow!L183","v":-273672.01592999999},{"$f":"CashFlow!M183","v":-360614.72917225107},{"$f":"CashFlow!N183","v":-360614.72917225107},{"$f":"CashFlow!O183","v":-232361.13287739558},{"$f":"CashFlow!P183","v":-232361.13287739558},{"$f":"CashFlow!Q183","v":-74501.14822183043},{"$f":"CashFlow!R183","v":-74501.14822183043},{"$f":"CashFlow!S183","v":0},{"$f":"CashFlow!S183","v":0},{"$f":"CashFlow!U183","v":0}]
[{"$f":"CashFlow!A184","v":1},{"$f":"CashFlow!B195","v":"CF6"},null,null,null,"Cash flow from financing activities",null,null,null,null,null,null,null,0]
[{"$f":"CashFlow!A185","v":1},{"$f":"CashFlow!B196","v":"CF61"},null,null,null,"Deferred Income",null,{"$f":"S185-R185","v":0},{"$f":"U185-T185","v":0},{"$f":"W185-V185","v":0},{"$f":"Y185-X185","v":0},{"$f":"AA185-Z185","v":0},{"$f":"AC185-AB185","v":0},0,null,null,null,{"$f":"SUM(R186:R187)","v":0},{"$f":"SUM(S186:S187)","v":0},{"$f":"SUM(T186:T187)","v":0},0,0,0,0,0,0,0,0,0,0,0,{"$f":"SUM(AF186:AF187)","v":0}]
[{"$f":"CashFlow!A186","v":1},{"$f":"CashFlow!B197","v":"CF611"},null,null,null,"Departmental transfer",null,{"$f":"S186-R186","v":0},{"$f":"U186-T186","v":0},{"$f":"W186-V186","v":0},{"$f":"Y186-X186","v":0},{"$f":"AA186-Z186","v":0},{"$f":"AC186-AB186","v":0},0,null,null,null,{"$f":"[1]CF_Diff_ENEs!U186","v":0},{"$f":"CashFlow!I197","v":0},{"$f":"[1]CF_Diff_ENEs!W186","v":0},{"$f":"CashFlow!J197","v":0},{"$f":"CashFlow!K197","v":0},{"$f":"CashFlow!L197","v":0},{"$f":"CashFlow!M197","v":0},{"$f":"CashFlow!N197","v":0},{"$f":"CashFlow!O197","v":0},{"$f":"CashFlow!P197","v":0},{"$f":"CashFlow!Q197","v":0},{"$f":"CashFlow!R197","v":0},{"$f":"CashFlow!S197","v":0},{"$f":"CashFlow!S197","v":0},{"$f":"CashFlow!U197","v":0}]
[{"$f":"CashFlow!A187","v":1},{"$f":"CashFlow!B198","v":"CF612"},null,null,null,"Other Revenue",null,{"$f":"S187-R187","v":0},{"$f":"U187-T187","v":0},{"$f":"W187-V187","v":0},{"$f":"Y187-X187","v":0},{"$f":"AA187-Z187","v":0},{"$f":"AC187-AB187","v":0},0,null,null,null,{"$f":"[1]CF_Diff_ENEs!U187","v":0},{"$f":"CashFlow!I198","v":0},{"$f":"[1]CF_Diff_ENEs!W187","v":0},{"$f":"CashFlow!J198","v":0},{"$f":"CashFlow!K198","v":0},{"$f":"CashFlow!L198","v":0},{"$f":"CashFlow!M198","v":0},{"$f":"CashFlow!N198","v":0},{"$f":"CashFlow!O198","v":0},{"$f":"CashFlow!P198","v":0},{"$f":"CashFlow!Q198","v":0},{"$f":"CashFlow!R198","v":0},{"$f":"CashFlow!S198","v":0},{"$f":"CashFlow!S198","v":0},{"$f":"CashFlow!U198","v":0}]
[]
[null,null,null,null,null,"CFD Receipts"]
[null,null,null,null,null,"CFD Payment"]
[null,null,null,null,null,"CFD Advancing"]
[null,null,null,null,null,"CFD Aqusition"]
[null,null,null,null,null,"CFD Deferred "]

{"sheet":"TrendsAnalysis","index":25,"n_rows":40,"n_cols":15,"rows_kept":40,"cut":false,"hidden":false,"merged":[]}
[null,null,null,null,null,null,null,null,null,"Legend"]
[null,null,null,null,null,null,null,null,null,"Red",null,"This colour signifies that the entity's growth rate in a particular year(s) increased"]
[null,null,null,null,null,null,null,null,null,"Green",null,"This colour signifies that the entity's growth rate in a particular year(s) decreased"]
[]
[]
[null,null,null,null,null,"PE No",{"$f":"Settings!$O$2","v":"PE126"}]
[null,null,null,null,null,"Entity name",{"$f":"Settings!$E$2","v":"South African Revenue Service"}]
[null,null,null,null,null,null,{"$f":"MyYearM3","v":"2022/23"},{"$f":"MyYearM2","v":"2023/24"},{"$f":"MyYearM1","v":"2024/25"},{"$f":"MyYear0","v":"2025/26"},{"$f":"MyYearP1","v":"2026/27"},{"$f":"MyYearP2","v":"2027/28"},{"$f":"MyYearP3","v":"2028/29"}]
[null,null,null,null,null,"CPI",7.1999999999999995E-2,5.5E-2,3.9E-2,4.7E-2,4.1399999999999999E-2,4.36E-2,4.4900000000000002E-2]
[]
[]
[null,null,null,null,null,"Year on Year Growth rates",null,null,null,null,null,null,null,null,"Cash Flow direct method trends analysis"]
[null,null,null,null,null,"Cash flow data",null,{"$f":"MyYearM2","v":"2023/24"},{"$f":"MyYearM1","v":"2024/25"},{"$f":"MyYear0","v":"2025/26"},{"$f":"MyYearP1","v":"2026/27"},{"$f":"MyYearP2","v":"2027/28"},{"$f":"MyYearP3","v":"2028/29"}]
[null,null,null,null,null,{"$f":"ENESummary!BV6","v":"R thousand"}]
[null,null,null,null,null,"Cash receipts from stakeholders",null,{"$f":"IF(ISERROR(ENESummary!H74/ENESummary!G74-1),0,(ENESummary!H74/ENESummary!G74-1))","v":0.1345536065802917},{"$f":"IF(ISERROR(ENESummary!I74/ENESummary!H74-1),0,(ENESummary!I74/ENESummary!H74-1))","v":-6.2289973965043099E-2},{"$f":"IF(ISERROR(ENESummary!J74/ENESummary!I74-1),0,(ENESummary!J74/ENESummary!I74-1))","v":0.23139529184977636},{"$f":"IF(ISERROR(ENESummary!M74/ENESummary!J74-1),0,(ENESummary!M74/ENESummary!J74-1))","v":-3.1001659850554808E-2},{"$f":"IF(ISERROR(ENESummary!N74/ENESummary!M74-1),0,(ENESummary!N74/ENESummary!M74-1))","v":3.7647595291806946E-2},{"$f":"IF(ISERROR(ENESummary!O74/ENESummary!N74-1),0,(ENESummary!O74/ENESummary!N74-1))","v":-1}]
[null,null,null,null,null,"Tax receipts",null,{"$f":"IF(ISERROR(ENESummary!H62/ENESummary!G62-1),0,(ENESummary!H62/ENESummary!G62-1))","v":0},{"$f":"IF(ISERROR(ENESummary!I62/ENESummary!H62-1),0,(ENESummary!I62/ENESummary!H62-1))","v":0},{"$f":"IF(ISERROR(ENESummary!J62/ENESummary!I62-1),0,(ENESummary!J62/ENESummary!I62-1))","v":0},{"$f":"IF(ISERROR(ENESummary!M62/ENESummary!J62-1),0,(ENESummary!M62/ENESummary!J62-1))","v":0},{"$f":"IF(ISERROR(ENESummary!N62/ENESummary!M62-1),0,(ENESummary!N62/ENESummary!M62-1))","v":0},{"$f":"IF(ISERROR(ENESummary!O62/ENESummary!N62-1),0,(ENESummary!O62/ENESummary!N62-1))","v":0}]
[null,null,null,null,null,"Non-tax revenue",null,{"$f":"IF(ISERROR(ENESummary!H63/ENESummary!G63-1),0,(ENESummary!H63/ENESummary!G63-1))","v":-1.4073707457358919E-2},{"$f":"IF(ISERROR(ENESummary!I63/ENESummary!H63-1),0,(ENESummary!I63/ENESummary!H63-1))","v":6.1077425330920088E-2},{"$f":"IF(ISERROR(ENESummary!J63/ENESummary!I63-1),0,(ENESummary!J63/ENESummary!I63-1))","v":-4.5331297935670034E-2},{"$f":"IF(ISERROR(ENESummary!M63/ENESummary!J63-1),0,(ENESummary!M63/ENESummary!J63-1))","v":3.7710635123351599E-2},{"$f":"IF(ISERROR(ENESummary!N63/ENESummary!M63-1),0,(ENESummary!N63/ENESummary!M63-1))","v":3.8096474857515439E-2},{"$f":"IF(ISERROR(ENESummary!O63/ENESummary!N63-1),0,(ENESummary!O63/ENESummary!N63-1))","v":-1}]
[null,null,null,null,null,"Sales of goods and services other than capital assets",null,{"$f":"IF(ISERROR(ENESummary!H64/ENESummary!G64-1),0,(ENESummary!H64/ENESummary!G64-1))","v":-0.12327663654238563},{"$f":"IF(ISERROR(ENESummary!I64/ENESummary!H64-1),0,(ENESummary!I64/ENESummary!H64-1))","v":0.14267174824410289},{"$f":"IF(ISERROR(ENESummary!J64/ENESummary!I64-1),0,(ENESummary!J64/ENESummary!I64-1))","v":2.8850450610142575E-2},{"$f":"IF(ISERROR(ENESummary!M64/ENESummary!J64-1),0,(ENESummary!M64/ENESummary!J64-1))","v":2.8860339345762931E-2},{"$f":"IF(ISERROR(ENESummary!N64/ENESummary!M64-1),0,(ENESummary!N64/ENESummary!M64-1))","v":2.887015387524694E-2},{"$f":"IF(ISERROR(ENESummary!O64/ENESummary!N64-1),0,(ENESummary!O64/ENESummary!N64-1))","v":-1}]
[null,null,null,null,null,"Sales of goods and services produced by entity",null,{"$f":"IF(ISERROR(ENESummary!H65/ENESummary!G65-1),0,(ENESummary!H65/ENESummary!G65-1))","v":-0.12327663654238563},{"$f":"IF(ISERROR(ENESummary!I65/ENESummary!H65-1),0,(ENESummary!I65/ENESummary!H65-1))","v":0.14267174824410289},{"$f":"IF(ISERROR(ENESummary!J65/ENESummary!I65-1),0,(ENESummary!J65/ENESummary!I65-1))","v":2.8850450610142575E-2},{"$f":"IF(ISERROR(ENESummary!M65/ENESummary!J65-1),0,(ENESummary!M65/ENESummary!J65-1))","v":2.8860339345762931E-2},{"$f":"IF(ISERROR(ENESummary!N65/ENESummary!M65-1),0,(ENESummary!N65/ENESummary!M65-1))","v":2.887015387524694E-2},{"$f":"IF(ISERROR(ENESummary!O65/ENESummary!N65-1),0,(ENESummary!O65/ENESummary!N65-1))","v":-1}]
[null,null,null,null,null,"of which:"]
[null,null,null,null,null,"Administrative fees",null,{"$f":"IF(ISERROR(ENESummary!H67/ENESummary!G67-1),0,(ENESummary!H67/ENESummary!G67-1))","v":0},{"$f":"IF(ISERROR(ENESummary!I67/ENESummary!H67-1),0,(ENESummary!I67/ENESummary!H67-1))","v":0},{"$f":"IF(ISERROR(ENESummary!J67/ENESummary!I67-1),0,(ENESummary!J67/ENESummary!I67-1))","v":0},{"$f":"IF(ISERROR(ENESummary!M67/ENESummary!J67-1),0,(ENESummary!M67/ENESummary!J67-1))","v":0},{"$f":"IF(ISERROR(ENESummary!N67/ENESummary!M67-1),0,(ENESummary!N67/ENESummary!M67-1))","v":0},{"$f":"IF(ISERROR(ENESummary!O67/ENESummary!N67-1),0,(ENESummary!O67/ENESummary!N67-1))","v":0}]
[null,null,null,null,null,"Sales by market establishment",null,{"$f":"IF(ISERROR(ENESummary!H68/ENESummary!G68-1),0,(ENESummary!H68/ENESummary!G68-1))","v":0},{"$f":"IF(ISERROR(ENESummary!I68/ENESummary!H68-1),0,(ENESummary!I68/ENESummary!H68-1))","v":0},{"$f":"IF(ISERROR(ENESummary!J68/ENESummary!I68-1),0,(ENESummary!J68/ENESummary!I68-1))","v":0},{"$f":"IF(ISERROR(ENESummary!M68/ENESummary!J68-1),0,(ENESummary!M68/ENESummary!J68-1))","v":0},{"$f":"IF(ISERROR(ENESummary!N68/ENESummary!M68-1),0,(ENESummary!N68/ENESummary!M68-1))","v":0},{"$f":"IF(ISERROR(ENESummary!O68/ENESummary!N68-1),0,(ENESummary!O68/ENESummary!N68-1))","v":0}]
[null,null,null,null,null,"Other sales",null,{"$f":"IF(ISERROR(ENESummary!H69/ENESummary!G69-1),0,(ENESummary!H69/ENESummary!G69-1))","v":-0.12327663654238563},{"$f":"IF(ISERROR(ENESummary!I69/ENESummary!H69-1),0,(ENESummary!I69/ENESummary!H69-1))","v":0.14267174824410289},{"$f":"IF(ISERROR(ENESummary!J69/ENESummary!I69-1),0,(ENESummary!J69/ENESummary!I69-1))","v":2.8850450610142575E-2},{"$f":"IF(ISERROR(ENESummary!M69/ENESummary!J69-1),0,(ENESummary!M69/ENESummary!J69-1))","v":2.8860339345762931E-2},{"$f":"IF(ISERROR(ENESummary!N69/ENESummary!M69-1),0,(ENESummary!N69/ENESummary!M69-1))","v":2.887015387524694E-2},{"$f":"IF(ISERROR(ENESummary!O69/ENESummary!N69-1),0,(ENESummary!O69/ENESummary!N69-1))","v":-1}]
[null,null,null,null,null,"Sales of scrap, waste, arms and other used current goods",null,{"$f":"IF(ISERROR(ENESummary!H70/ENESummary!G70-1),0,(ENESummary!H70/ENESummary!G70-1))","v":0},{"$f":"IF(ISERROR(ENESummary!I70/ENESummary!H70-1),0,(ENESummary!I70/ENESummary!H70-1))","v":0},{"$f":"IF(ISERROR(ENESummary!J70/ENESummary!I70-1),0,(ENESummary!J70/ENESummary!I70-1))","v":0},{"$f":"IF(ISERROR(ENESummary!M70/ENESummary!J70-1),0,(ENESummary!M70/ENESummary!J70-1))","v":0},{"$f":"IF(ISERROR(ENESummary!N70/ENESummary!M70-1),0,(ENESummary!N70/ENESummary!M70-1))","v":0},{"$f":"IF(ISERROR(ENESummary!O70/ENESummary!N70-1),0,(ENESummary!O70/ENESummary!N70-1))","v":0}]
[null,null,null,null,null,"Other non-tax revenue",null,{"$f":"IF(ISERROR(ENESummary!H71/ENESummary!G71-1),0,(ENESummary!H71/ENESummary!G71-1))","v":0.44426365275003654},{"$f":"IF(ISERROR(ENESummary!I71/ENESummary!H71-1),0,(ENESummary!I71/ENESummary!H71-1))","v":-0.14680942198715552},{"$f":"IF(ISERROR(ENESummary!J71/ENESummary!I71-1),0,(ENESummary!J71/ENESummary!I71-1))","v":-0.29845894090791902},{"$f":"IF(ISERROR(ENESummary!M71/ENESummary!J71-1),0,(ENESummary!M71/ENESummary!J71-1))","v":8.2000000000047146E-2},{"$f":"IF(ISERROR(ENESummary!N71/ENESummary!M71-1),0,(ENESummary!N71/ENESummary!M71-1))","v":8.1999999999960105E-2},{"$f":"IF(ISERROR(ENESummary!O71/ENESummary!N71-1),0,(ENESummary!O71/ENESummary!N71-1))","v":-1}]
[null,null,null,null,null,"Transfers received",null,{"$f":"IF(ISERROR(ENESummary!H72/ENESummary!G72-1),0,(ENESummary!H72/ENESummary!G72-1))","v":0.14136696110041957},{"$f":"IF(ISERROR(ENESummary!I72/ENESummary!H72-1),0,(ENESummary!I72/ENESummary!H72-1))","v":-6.7175169132702051E-2},{"$f":"IF(ISERROR(ENESummary!J72/ENESummary!I72-1),0,(ENESummary!J72/ENESummary!I72-1))","v":0.2438599214452879},{"$f":"IF(ISERROR(ENESummary!M72/ENESummary!J72-1),0,(ENESummary!M72/ENESummary!J72-1))","v":-3.3377100317158681E-2},{"$f":"IF(ISERROR(ENESummary!N72/ENESummary!M72-1),0,(ENESummary!N72/ENESummary!M72-1))","v":3.7630935916195929E-2},{"$f":"IF(ISERROR(ENESummary!O72/ENESummary!N72-1),0,(ENESummary!O72/ENESummary!N72-1))","v":-1}]
[null,null,null,null,null,"Financial transactions in assets and liabilities",null,{"$f":"IF(ISERROR(ENESummary!H73/ENESummary!G73-1),0,(ENESummary!H73/ENESummary!G73-1))","v":0},{"$f":"IF(ISERROR(ENESummary!I73/ENESummary!H73-1),0,(ENESummary!I73/ENESummary!H73-1))","v":0},{"$f":"IF(ISERROR(ENESummary!J73/ENESummary!I73-1),0,(ENESummary!J73/ENESummary!I73-1))","v":0},{"$f":"IF(ISERROR(ENESummary!M73/ENESummary!J73-1),0,(ENESummary!M73/ENESummary!J73-1))","v":0},{"$f":"IF(ISERROR(ENESummary!N73/ENESummary!M73-1),0,(ENESummary!N73/ENESummary!M73-1))","v":0},{"$f":"IF(ISERROR(ENESummary!O73/ENESummary!N73-1),0,(ENESummary!O73/ENESummary!N73-1))","v":0}]
[null,null,null,null,null,"Cash paid to stakeholders",null,{"$f":"IF(ISERROR(ENESummary!H82/ENESummary!G82-1),0,(ENESummary!H82/ENESummary!G82-1))","v":0.12572100024739119},{"$f":"IF(ISERROR(ENESummary!I82/ENESummary!H82-1),0,(ENESummary!I82/ENESummary!H82-1))","v":2.910765366303858E-2},{"$f":"IF(ISERROR(ENESummary!J82/ENESummary!I82-1),0,(ENESummary!J82/ENESummary!I82-1))","v":0.11069179095664738},{"$f":"IF(ISERROR(ENESummary!M82/ENESummary!J82-1),0,(ENESummary!M82/ENESummary!J82-1))","v":1.0803000417330288E-2},{"$f":"IF(ISERROR(ENESummary!N82/ENESummary!M82-1),0,(ENESummary!N82/ENESummary!M82-1))","v":5.1650358350097347E-2},{"$f":"IF(ISERROR(ENESummary!O82/ENESummary!N82-1),0,(ENESummary!O82/ENESummary!N82-1))","v":-1}]
[null,null,null,null,null,"Current payments",null,{"$f":"IF(ISERROR(ENESummary!H76/ENESummary!G76-1),0,(ENESummary!H76/ENESummary!G76-1))","v":0.12572100024739119},{"$f":"IF(ISERROR(ENESummary!I76/ENESummary!H76-1),0,(ENESummary!I76/ENESummary!H76-1))","v":2.910765366303858E-2},{"$f":"IF(ISERROR(ENESummary!J76/ENESummary!I76-1),0,(ENESummary!J76/ENESummary!I76-1))","v":0.11069179095664738},{"$f":"IF(ISERROR(ENESummary!M76/ENESummary!J76-1),0,(ENESummary!M76/ENESummary!J76-1))","v":1.0803000417330288E-2},{"$f":"IF(ISERROR(ENESummary!N76/ENESummary!M76-1),0,(ENESummary!N76/ENESummary!M76-1))","v":5.1650358350097347E-2},{"$f":"IF(ISERROR(ENESummary!O76/ENESummary!N76-1),0,(ENESummary!O76/ENESummary!N76-1))","v":-1}]
[null,null,null,null,null,"Compensation of employees",null,{"$f":"IF(ISERROR(ENESummary!H77/ENESummary!G77-1),0,(ENESummary!H77/ENESummary!G77-1))","v":0.12469588059557779},{"$f":"IF(ISERROR(ENESummary!I77/ENESummary!H77-1),0,(ENESummary!I77/ENESummary!H77-1))","v":3.9129558253499175E-2},{"$f":"IF(ISERROR(ENESummary!J77/ENESummary!I77-1),0,(ENESummary!J77/ENESummary!I77-1))","v":4.7572782339767361E-2},{"$f":"IF(ISERROR(ENESummary!M77/ENESummary!J77-1),0,(ENESummary!M77/ENESummary!J77-1))","v":-5.8348105287164831E-4},{"$f":"IF(ISERROR(ENESummary!N77/ENESummary!M77-1),0,(ENESummary!N77/ENESummary!M77-1))","v":4.5145215821677853E-2},{"$f":"IF(ISERROR(ENESummary!O77/ENESummary!N77-1),0,(ENESummary!O77/ENESummary!N77-1))","v":-1}]
[null,null,null,null,null,"Goods and services",null,{"$f":"IF(ISERROR(ENESummary!H78/ENESummary!G78-1),0,(ENESummary!H78/ENESummary!G78-1))","v":0.1293653576565752},{"$f":"IF(ISERROR(ENESummary!I78/ENESummary!H78-1),0,(ENESummary!I78/ENESummary!H78-1))","v":3.7683592164801105E-3},{"$f":"IF(ISERROR(ENESummary!J78/ENESummary!I78-1),0,(ENESummary!J78/ENESummary!I78-1))","v":0.29092113726478486},{"$f":"IF(ISERROR(ENESummary!M78/ENESummary!J78-1),0,(ENESummary!M78/ENESummary!J78-1))","v":3.7184561007177486E-2},{"$f":"IF(ISERROR(ENESummary!N78/ENESummary!M78-1),0,(ENESummary!N78/ENESummary!M78-1))","v":6.6174726515126236E-2},{"$f":"IF(ISERROR(ENESummary!O78/ENESummary!N78-1),0,(ENESummary!O78/ENESummary!N78-1))","v":-1}]
[null,null,null,null,null,"Interest and rent on land",null,{"$f":"IF(ISERROR(ENESummary!H79/ENESummary!G79-1),0,(ENESummary!H79/ENESummary!G79-1))","v":-0.14075062081378897},{"$f":"IF(ISERROR(ENESummary!I79/ENESummary!H79-1),0,(ENESummary!I79/ENESummary!H79-1))","v":-0.9725425811195606},{"$f":"IF(ISERROR(ENESummary!J79/ENESummary!I79-1),0,(ENESummary!J79/ENESummary!I79-1))","v":4.610000000000003E-2},{"$f":"IF(ISERROR(ENESummary!M79/ENESummary!J79-1),0,(ENESummary!M79/ENESummary!J79-1))","v":4.5500000000000096E-2},{"$f":"IF(ISERROR(ENESummary!N79/ENESummary!M79-1),0,(ENESummary!N79/ENESummary!M79-1))","v":4.5199999999999907E-2},{"$f":"IF(ISERROR(ENESummary!O79/ENESummary!N79-1),0,(ENESummary!O79/ENESummary!N79-1))","v":-1}]
[null,null,null,null,null,"Transfers and subsidies",null,{"$f":"IF(ISERROR(ENESummary!H80/ENESummary!G80-1),0,(ENESummary!H80/ENESummary!G80-1))","v":0},{"$f":"IF(ISERROR(ENESummary!I80/ENESummary!H80-1),0,(ENESummary!I80/ENESummary!H80-1))","v":0},{"$f":"IF(ISERROR(ENESummary!J80/ENESummary!I80-1),0,(ENESummary!J80/ENESummary!I80-1))","v":0},{"$f":"IF(ISERROR(ENESummary!M80/ENESummary!J80-1),0,(ENESummary!M80/ENESummary!J80-1))","v":0},{"$f":"IF(ISERROR(ENESummary!N80/ENESummary!M80-1),0,(ENESummary!N80/ENESummary!M80-1))","v":0},{"$f":"IF(ISERROR(ENESummary!O80/ENESummary!N80-1),0,(ENESummary!O80/ENESummary!N80-1))","v":0}]
[null,null,null,null,null,"Payments for financial assets",null,{"$f":"IF(ISERROR(ENESummary!H81/ENESummary!G81-1),0,(ENESummary!H81/ENESummary!G81-1))","v":0},{"$f":"IF(ISERROR(ENESummary!I81/ENESummary!H81-1),0,(ENESummary!I81/ENESummary!H81-1))","v":0},{"$f":"IF(ISERROR(ENESummary!J81/ENESummary!I81-1),0,(ENESummary!J81/ENESummary!I81-1))","v":0},{"$f":"IF(ISERROR(ENESummary!M81/ENESummary!J81-1),0,(ENESummary!M81/ENESummary!J81-1))","v":0},{"$f":"IF(ISERROR(ENESummary!N81/ENESummary!M81-1),0,(ENESummary!N81/ENESummary!M81-1))","v":0},{"$f":"IF(ISERROR(ENESummary!O81/ENESummary!N81-1),0,(ENESummary!O81/ENESummary!N81-1))","v":0}]
[null,null,null,null,null,"Cash flow from operating activities",null,{"$f":"IF(ISERROR(ENESummary!H60/ENESummary!G60-1),0,(ENESummary!H60/ENESummary!G60-1))","v":0.2872786216070311},{"$f":"IF(ISERROR(ENESummary!I60/ENESummary!H60-1),0,(ENESummary!I60/ENESummary!H60-1))","v":-1.4443103183801336},{"$f":"IF(ISERROR(ENESummary!J60/ENESummary!I60-1),0,(ENESummary!J60/ENESummary!I60-1))","v":-3.9960090464996969},{"$f":"IF(ISERROR(ENESummary!M60/ENESummary!J60-1),0,(ENESummary!M60/ENESummary!J60-1))","v":-0.57378819077766119},{"$f":"IF(ISERROR(ENESummary!N60/ENESummary!M60-1),0,(ENESummary!N60/ENESummary!M60-1))","v":-0.39353294029801733},{"$f":"IF(ISERROR(ENESummary!O60/ENESummary!N60-1),0,(ENESummary!O60/ENESummary!N60-1))","v":-1}]
[null,null,null,null,null,"Cash flow from advancing activities (Financial Institutions only)",null,{"$f":"IF(ISERROR(ENESummary!H83/ENESummary!G83-1),0,(ENESummary!H83/ENESummary!G83-1))","v":0},{"$f":"IF(ISERROR(ENESummary!I83/ENESummary!H83-1),0,(ENESummary!I83/ENESummary!H83-1))","v":0},{"$f":"IF(ISERROR(ENESummary!J83/ENESummary!I83-1),0,(ENESummary!J83/ENESummary!I83-1))","v":0},{"$f":"IF(ISERROR(ENESummary!M83/ENESummary!J83-1),0,(ENESummary!M83/ENESummary!J83-1))","v":0},{"$f":"IF(ISERROR(ENESummary!N83/ENESummary!M83-1),0,(ENESummary!N83/ENESummary!M83-1))","v":0},{"$f":"IF(ISERROR(ENESummary!O83/ENESummary!N83-1),0,(ENESummary!O83/ENESummary!N83-1))","v":0}]
[null,null,null,null,null,"Disbursements and other payments",null,{"$f":"IF(ISERROR(ENESummary!H84/ENESummary!G84-1),0,(ENESummary!H84/ENESummary!G84-1))","v":0},{"$f":"IF(ISERROR(ENESummary!I84/ENESummary!H84-1),0,(ENESummary!I84/ENESummary!H84-1))","v":0},{"$f":"IF(ISERROR(ENESummary!J84/ENESummary!I84-1),0,(ENESummary!J84/ENESummary!I84-1))","v":0},{"$f":"IF(ISERROR(ENESummary!M84/ENESummary!J84-1),0,(ENESummary!M84/ENESummary!J84-1))","v":0},{"$f":"IF(ISERROR(ENESummary!N84/ENESummary!M84-1),0,(ENESummary!N84/ENESummary!M84-1))","v":0},{"$f":"IF(ISERROR(ENESummary!O84/ENESummary!N84-1),0,(ENESummary!O84/ENESummary!N84-1))","v":0}]
[null,null,null,null,null,"Repayments and other receipts",null,{"$f":"IF(ISERROR(ENESummary!H85/ENESummary!G85-1),0,(ENESummary!H85/ENESummary!G85-1))","v":0},{"$f":"IF(ISERROR(ENESummary!I85/ENESummary!H85-1),0,(ENESummary!I85/ENESummary!H85-1))","v":0},{"$f":"IF(ISERROR(ENESummary!J85/ENESummary!I85-1),0,(ENESummary!J85/ENESummary!I85-1))","v":0},{"$f":"IF(ISERROR(ENESummary!M85/ENESummary!J85-1),0,(ENESummary!M85/ENESummary!J85-1))","v":0},{"$f":"IF(ISERROR(ENESummary!N85/ENESummary!M85-1),0,(ENESummary!N85/ENESummary!M85-1))","v":0},{"$f":"IF(ISERROR(ENESummary!O85/ENESummary!N85-1),0,(ENESummary!O85/ENESummary!N85-1))","v":0}]
[null,null,null,null,null,"Cash flow from investing activities",null,{"$f":"IF(ISERROR(ENESummary!H86/ENESummary!G86-1),0,(ENESummary!H86/ENESummary!G86-1))","v":-0.17792261110540897},{"$f":"IF(ISERROR(ENESummary!I86/ENESummary!H86-1),0,(ENESummary!I86/ENESummary!H86-1))","v":-0.15690552640614264},{"$f":"IF(ISERROR(ENESummary!J86/ENESummary!I86-1),0,(ENESummary!J86/ENESummary!I86-1))","v":0.83186928334900601},{"$f":"IF(ISERROR(ENESummary!M86/ENESummary!J86-1),0,(ENESummary!M86/ENESummary!J86-1))","v":-0.50438967683857805},{"$f":"IF(ISERROR(ENESummary!N86/ENESummary!M86-1),0,(ENESummary!N86/ENESummary!M86-1))","v":-0.54428698848168844},{"$f":"IF(ISERROR(ENESummary!O86/ENESummary!N86-1),0,(ENESummary!O86/ENESummary!N86-1))","v":-1}]
[null,null,null,null,null,"Acquisition of property, plant, equipment & intangible assets",null,{"$f":"IF(ISERROR(ENESummary!H87/ENESummary!G87-1),0,(ENESummary!H87/ENESummary!G87-1))","v":-0.27959176580133061},{"$f":"IF(ISERROR(ENESummary!I87/ENESummary!H87-1),0,(ENESummary!I87/ENESummary!H87-1))","v":-0.32315107331218951},{"$f":"IF(ISERROR(ENESummary!J87/ENESummary!I87-1),0,(ENESummary!J87/ENESummary!I87-1))","v":1.3597891985686852},{"$f":"IF(ISERROR(ENESummary!M87/ENESummary!J87-1),0,(ENESummary!M87/ENESummary!J87-1))","v":-0.58966274072544334},{"$f":"IF(ISERROR(ENESummary!N87/ENESummary!M87-1),0,(ENESummary!N87/ENESummary!M87-1))","v":-0.42267293352163748},{"$f":"IF(ISERROR(ENESummary!O87/ENESummary!N87-1),0,(ENESummary!O87/ENESummary!N87-1))","v":-1}]

{"sheet":"FinancialPosition","index":26,"n_rows":119,"n_cols":21,"rows_kept":119,"cut":false,"hidden":false,"merged":[[110,16,110,17],[110,10,110,11],[110,12,110,13],[110,14,110,15],[8,16,8,17],[8,10,8,11],[8,14,8,15],[8,12,8,13]]}
[]
[]
[]
[]
[]
[null,null,null,null,null,"PE No",{"$f":"Settings!$O$2","v":"PE126"}]
[null,null,null,null,null,"Entity name",{"$f":"Settings!$E$2","v":"South African Revenue Service"},null,null,null,null,null,null,null,null,null,null,null,{"$f":"IF(S103<R103/2,\"Complete outer year budget\",\"\")","v":"Complete outer year budget"}]
[]
[null,null,null,null,null,"R Thousand",null,null,{"$f":"MyYearM3","v":"2022/23"},{"$f":"MyYearM2","v":"2023/24"},{"$f":"MyYearM1","v":"2024/25"},null,{"$f":"MyYear0","v":"2025/26"},null,{"$f":"MyYearP1","v":"2026/27"},null,{"$f":"MyYearP2","v":"2027/28"},null,{"$f":"MyYearP3","v":"2028/29"}]
["ItemCat","Item code",null,null,null,"Statement of Financial Position","Notes",null,{"$f":"Hist_year3RestatedAudited","v":"Audited\noutcome"},{"$f":"Hist_year2RestatedAudited","v":"Audited\noutcome"},{"$f":"Hist_year1Budget","v":"Budget"},{"$f":"Hist_year1Audited","v":"Audited\noutcome"},{"$f":"Cur_YearBudgEst","v":"Budget\nestimate"},{"$f":"Cur_YearApprovedBudg","v":"Approved budget"},{"$f":"MTEF1BudgEst","v":"Budget\nestimate"},{"$f":"MTEF1RevBudgEst","v":"Revised\nbudget\nestimate"},{"$f":"MTEF2BudgEst","v":"Budget\nestimate"},{"$f":"MTEF2RevBudgEst","v":"Revised\nbudget\nestimate"},{"$f":"MTEF3PlanBudgetEst","v":"Planning\nbudget \nestimate"}]
[1,"BS11",null,null,null,"ASSETS"]
[1,"BS111",null,null,null,"Current assets",null,null,{"$f":"SUM(I13:I30)","v":1812487},2182297,1245705.8801281066,1245705.8801281066,1431108.7246445036,1431108.7246445036,1421775.3805795405,1421775.3805795405,1462910.853080878,1462910.853080878,0]
[1,"BS1118",null,null,null,"Cash and cash equivalents",101,null,{"$f":"[1]FinancialPosition!J13","v":1309476},{"$f":"[1]FinancialPosition!L13","v":1511372},{"$f":"[1]FinancialPosition!N13","v":570050.88012810657},{"$f":"[1]FinancialPosition!N13","v":570050.88012810657},{"$f":"[1]FinancialPosition!P13","v":720453.72464450356},{"$f":"[1]FinancialPosition!P13","v":720453.72464450356},{"$f":"[1]FinancialPosition!R13","v":707120.38057954051},{"$f":"[1]FinancialPosition!R13","v":707120.38057954051},{"$f":"[1]FinancialPosition!S13","v":778255.85308087803},{"$f":"[1]FinancialPosition!S13","v":778255.85308087803}]
[1,"BS1115",null,null,null,"Trade and other receivables from exchange transactions",102,null,{"$f":"[1]FinancialPosition!J14","v":61748},{"$f":"[1]FinancialPosition!L14","v":119826},{"$f":"[1]FinancialPosition!N14","v":119826},{"$f":"[1]FinancialPosition!N14","v":119826},{"$f":"[1]FinancialPosition!P14","v":118826},{"$f":"[1]FinancialPosition!P14","v":118826},{"$f":"[1]FinancialPosition!R14","v":116826},{"$f":"[1]FinancialPosition!R14","v":116826},{"$f":"[1]FinancialPosition!S14","v":114826},{"$f":"[1]FinancialPosition!S14","v":114826}]
[1,"BS1116",null,null,null,"Other receivables from non-exchange transactions, including taxes, fines and transfers",103,null,{"$f":"[1]FinancialPosition!J15","v":0},{"$f":"[1]FinancialPosition!L15","v":0},{"$f":"[1]FinancialPosition!N15","v":0},{"$f":"[1]FinancialPosition!N15","v":0},{"$f":"[1]FinancialPosition!P15","v":0},{"$f":"[1]FinancialPosition!P15","v":0},{"$f":"[1]FinancialPosition!R15","v":0},{"$f":"[1]FinancialPosition!R15","v":0},{"$f":"[1]FinancialPosition!S15","v":0},{"$f":"[1]FinancialPosition!S15","v":0}]
[1,"BS1117",null,null,null,"Prepayments",104,null,{"$f":"[1]FinancialPosition!J16","v":421682},{"$f":"[1]FinancialPosition!L16","v":528764},{"$f":"[1]FinancialPosition!N16","v":528764},{"$f":"[1]FinancialPosition!N16","v":528764},{"$f":"[1]FinancialPosition!P16","v":563764},{"$f":"[1]FinancialPosition!P16","v":563764},{"$f":"[1]FinancialPosition!R16","v":567764},{"$f":"[1]FinancialPosition!R16","v":567764},{"$f":"[1]FinancialPosition!S16","v":537764},{"$f":"[1]FinancialPosition!S16","v":537764}]
[1,"BS1221",null,null,null,"VAT receivable",105,null,{"$f":"[1]FinancialPosition!J17","v":0},{"$f":"[1]FinancialPosition!L17","v":0},{"$f":"[1]FinancialPosition!N17","v":0},{"$f":"[1]FinancialPosition!N17","v":0},{"$f":"[1]FinancialPosition!P17","v":0},{"$f":"[1]FinancialPosition!P17","v":0},{"$f":"[1]FinancialPosition!R17","v":0},{"$f":"[1]FinancialPosition!R17","v":0},{"$f":"[1]FinancialPosition!S17","v":0},{"$f":"[1]FinancialPosition!S17","v":0}]
[1,"BS1223",null,null,null,"Income tax receivable",106,null,{"$f":"[1]FinancialPosition!J18","v":0},{"$f":"[1]FinancialPosition!L18","v":0},{"$f":"[1]FinancialPosition!N18","v":0},{"$f":"[1]FinancialPosition!N18","v":0},{"$f":"[1]FinancialPosition!P18","v":0},{"$f":"[1]FinancialPosition!P18","v":0},{"$f":"[1]FinancialPosition!R18","v":0},{"$f":"[1]FinancialPosition!R18","v":0},{"$f":"[1]FinancialPosition!S18","v":0},{"$f":"[1]FinancialPosition!S18","v":0}]
[1,"BS1112",null,null,null,"Inventory",107,null,{"$f":"[1]FinancialPosition!J19","v":19581},{"$f":"[1]FinancialPosition!L19","v":22335},{"$f":"[1]FinancialPosition!N19","v":27065},{"$f":"[1]FinancialPosition!N19","v":27065},{"$f":"[1]FinancialPosition!P19","v":28065},{"$f":"[1]FinancialPosition!P19","v":28065},{"$f":"[1]FinancialPosition!R19","v":30065},{"$f":"[1]FinancialPosition!R19","v":30065},{"$f":"[1]FinancialPosition!S19","v":32065},{"$f":"[1]FinancialPosition!S19","v":32065}]
[1,"BS1113",null,null,null,"Short-term loans",108,null,{"$f":"[1]FinancialPosition!J20","v":0},{"$f":"[1]FinancialPosition!L20","v":0},{"$f":"[1]FinancialPosition!N20","v":0},{"$f":"[1]FinancialPosition!N20","v":0},{"$f":"[1]FinancialPosition!P20","v":0},{"$f":"[1]FinancialPosition!P20","v":0},{"$f":"[1]FinancialPosition!R20","v":0},{"$f":"[1]FinancialPosition!R20","v":0},{"$f":"[1]FinancialPosition!S20","v":0},{"$f":"[1]FinancialPosition!S20","v":0}]
[1,"BS1114",null,null,null,"Accrued interest",109,null,{"$f":"[1]FinancialPosition!J21","v":0},{"$f":"[1]FinancialPosition!L21","v":0},{"$f":"[1]FinancialPosition!N21","v":0},{"$f":"[1]FinancialPosition!N21","v":0},{"$f":"[1]FinancialPosition!P21","v":0},{"$f":"[1]FinancialPosition!P21","v":0},{"$f":"[1]FinancialPosition!R21","v":0},{"$f":"[1]FinancialPosition!R21","v":0},{"$f":"[1]FinancialPosition!S21","v":0},{"$f":"[1]FinancialPosition!S21","v":0}]
[1,"BS1111",null,null,null,"Current investments",110,null,{"$f":"[1]FinancialPosition!J22","v":0},{"$f":"[1]FinancialPosition!L22","v":0},{"$f":"[1]FinancialPosition!N22","v":0},{"$f":"[1]FinancialPosition!N22","v":0},{"$f":"[1]FinancialPosition!P22","v":0},{"$f":"[1]FinancialPosition!P22","v":0},{"$f":"[1]FinancialPosition!R22","v":0},{"$f":"[1]FinancialPosition!R22","v":0},{"$f":"[1]FinancialPosition!S22","v":0},{"$f":"[1]FinancialPosition!S22","v":0}]
[1,"BS1220",null,null,null,"Other current financial assets",111,null,{"$f":"[1]FinancialPosition!J23","v":0},{"$f":"[1]FinancialPosition!L23","v":0},{"$f":"[1]FinancialPosition!N23","v":0},{"$f":"[1]FinancialPosition!N23","v":0},{"$f":"[1]FinancialPosition!P23","v":0},{"$f":"[1]FinancialPosition!P23","v":0},{"$f":"[1]FinancialPosition!R23","v":0},{"$f":"[1]FinancialPosition!R23","v":0},{"$f":"[1]FinancialPosition!S23","v":0},{"$f":"[1]FinancialPosition!S23","v":0}]
[1,"BS1222",null,null,null,"Construction contracts and receivables",112,null,{"$f":"[1]FinancialPosition!J24","v":0},{"$f":"[1]FinancialPosition!L24","v":0},{"$f":"[1]FinancialPosition!N24","v":0},{"$f":"[1]FinancialPosition!N24","v":0},{"$f":"[1]FinancialPosition!P24","v":0},{"$f":"[1]FinancialPosition!P24","v":0},{"$f":"[1]FinancialPosition!R24","v":0},{"$f":"[1]FinancialPosition!R24","v":0},{"$f":"[1]FinancialPosition!S24","v":0},{"$f":"[1]FinancialPosition!S24","v":0}]
[1,"BS1119",null,null,null,"Non-current assets held for sale",113,null,{"$f":"[1]FinancialPosition!J25","v":0},{"$f":"[1]FinancialPosition!L25","v":0},{"$f":"[1]FinancialPosition!N25","v":0},{"$f":"[1]FinancialPosition!N25","v":0},{"$f":"[1]FinancialPosition!P25","v":0},{"$f":"[1]FinancialPosition!P25","v":0},{"$f":"[1]FinancialPosition!R25","v":0},{"$f":"[1]FinancialPosition!R25","v":0},{"$f":"[1]FinancialPosition!S25","v":0},{"$f":"[1]FinancialPosition!S25","v":0}]
[1,"BS1225",null,null,null,"Finance lease receivable",114,null,{"$f":"[1]FinancialPosition!J26","v":0},{"$f":"[1]FinancialPosition!L26","v":0},{"$f":"[1]FinancialPosition!N26","v":0},{"$f":"[1]FinancialPosition!N26","v":0},{"$f":"[1]FinancialPosition!P26","v":0},{"$f":"[1]FinancialPosition!P26","v":0},{"$f":"[1]FinancialPosition!R26","v":0},{"$f":"[1]FinancialPosition!R26","v":0},{"$f":"[1]FinancialPosition!S26","v":0},{"$f":"[1]FinancialPosition!S26","v":0}]
[1,"BS1226",null,null,null,"Statutory Receivables - Exchange",115,null,{"$f":"[1]FinancialPosition!J27","v":0},{"$f":"[1]FinancialPosition!L27","v":0},{"$f":"[1]FinancialPosition!N27","v":0},{"$f":"[1]FinancialPosition!N27","v":0},{"$f":"[1]FinancialPosition!P27","v":0},{"$f":"[1]FinancialPosition!P27","v":0},{"$f":"[1]FinancialPosition!R27","v":0},{"$f":"[1]FinancialPosition!R27","v":0},{"$f":"[1]FinancialPosition!S27","v":0},{"$f":"[1]FinancialPosition!S27","v":0}]
[1,"BS1227",null,null,null,"Statutory Receivables - Non Exchange",116,null,{"$f":"[1]FinancialPosition!J28","v":0},{"$f":"[1]FinancialPosition!L28","v":0},{"$f":"[1]FinancialPosition!N28","v":0},{"$f":"[1]FinancialPosition!N28","v":0},{"$f":"[1]FinancialPosition!P28","v":0},{"$f":"[1]FinancialPosition!P28","v":0},{"$f":"[1]FinancialPosition!R28","v":0},{"$f":"[1]FinancialPosition!R28","v":0},{"$f":"[1]FinancialPosition!S28","v":0},{"$f":"[1]FinancialPosition!S28","v":0}]
[1,"BS1228",null,null,null,"Operating Lease Asset ",117,null,{"$f":"[1]FinancialPosition!J29","v":0},{"$f":"[1]FinancialPosition!L29","v":0},{"$f":"[1]FinancialPosition!N29","v":0},{"$f":"[1]FinancialPosition!N29","v":0},{"$f":"[1]FinancialPosition!P29","v":0},{"$f":"[1]FinancialPosition!P29","v":0},{"$f":"[1]FinancialPosition!R29","v":0},{"$f":"[1]FinancialPosition!R29","v":0},{"$f":"[1]FinancialPosition!S29","v":0},{"$f":"[1]FinancialPosition!S29","v":0}]
[1,"BS1224",null,null,null,"Derivatives financial instruments",118,null,{"$f":"[1]FinancialPosition!J30","v":0},{"$f":"[1]FinancialPosition!L30","v":0},{"$f":"[1]FinancialPosition!N30","v":0},{"$f":"[1]FinancialPosition!N30","v":0},{"$f":"[1]FinancialPosition!P30","v":0},{"$f":"[1]FinancialPosition!P30","v":0},{"$f":"[1]FinancialPosition!R30","v":0},{"$f":"[1]FinancialPosition!R30","v":0},{"$f":"[1]FinancialPosition!S30","v":0},{"$f":"[1]FinancialPosition!S30","v":0}]
[1,"BS112",null,null,null,"Non-current assets",null,null,{"$f":"SUM(I32:I52)","v":4431766},4484366,4293760.2283196477,4293760.2283196477,4671540.7727444544,4671540.7727444544,4612497.8213201314,4612497.8213201314,4357668.0844152644,4357668.0844152644,0]
[1,"BS1131",null,null,null,"Non-current receivables from non-exchange transactions",119,null,{"$f":"[1]FinancialPosition!J32","v":0},{"$f":"[1]FinancialPosition!L32","v":0},{"$f":"[1]FinancialPosition!N32","v":0},{"$f":"[1]FinancialPosition!N32","v":0},{"$f":"[1]FinancialPosition!P32","v":0},{"$f":"[1]FinancialPosition!P32","v":0},{"$f":"[1]FinancialPosition!R32","v":0},{"$f":"[1]FinancialPosition!R32","v":0},{"$f":"[1]FinancialPosition!S32","v":0},{"$f":"[1]FinancialPosition!S32","v":0}]
[1,"BS1132",null,null,null,"Non-current receivables from exchange transactions",120,null,{"$f":"[1]FinancialPosition!J33","v":0},{"$f":"[1]FinancialPosition!L33","v":3793},{"$f":"[1]FinancialPosition!N33","v":3793},{"$f":"[1]FinancialPosition!N33","v":3793},{"$f":"[1]FinancialPosition!P33","v":3793},{"$f":"[1]FinancialPosition!P33","v":3793},{"$f":"[1]FinancialPosition!R33","v":3793},{"$f":"[1]FinancialPosition!R33","v":3793},{"$f":"[1]FinancialPosition!S33","v":3793},{"$f":"[1]FinancialPosition!S33","v":3793}]
[1,"BS1137",null,null,null,"Non Current Receivables - Statutory Receivables - Exchange",121,null,{"$f":"[1]FinancialPosition!J34","v":0},{"$f":"[1]FinancialPosition!L34","v":0},{"$f":"[1]FinancialPosition!N34","v":0},{"$f":"[1]FinancialPosition!N34","v":0},{"$f":"[1]FinancialPosition!P34","v":0},{"$f":"[1]FinancialPosition!P34","v":0},{"$f":"[1]FinancialPosition!R34","v":0},{"$f":"[1]FinancialPosition!R34","v":0},{"$f":"[1]FinancialPosition!S34","v":0},{"$f":"[1]FinancialPosition!S34","v":0}]
[1,"BS1138",null,null,null,"Non Current Receivables - Statutory Receivables - Non-Exchange",122,null,{"$f":"[1]FinancialPosition!J35","v":0},{"$f":"[1]FinancialPosition!L35","v":0},{"$f":"[1]FinancialPosition!N35","v":0},{"$f":"[1]FinancialPosition!N35","v":0},{"$f":"[1]FinancialPosition!P35","v":0},{"$f":"[1]FinancialPosition!P35","v":0},{"$f":"[1]FinancialPosition!R35","v":0},{"$f":"[1]FinancialPosition!R35","v":0},{"$f":"[1]FinancialPosition!S35","v":0},{"$f":"[1]FinancialPosition!S35","v":0}]
[1,"BS1139",null,null,null,"Non-Current Finance Lease Receivable",123,null,{"$f":"[1]FinancialPosition!J36","v":0},{"$f":"[1]FinancialPosition!L36","v":0},{"$f":"[1]FinancialPosition!N36","v":0},{"$f":"[1]FinancialPosition!N36","v":0},{"$f":"[1]FinancialPosition!P36","v":0},{"$f":"[1]FinancialPosition!P36","v":0},{"$f":"[1]FinancialPosition!R36","v":0},{"$f":"[1]FinancialPosition!R36","v":0},{"$f":"[1]FinancialPosition!S36","v":0},{"$f":"[1]FinancialPosition!S36","v":0}]
[1,"BS1130",null,null,null,"Long-term loan",124,null,{"$f":"[1]FinancialPosition!J37","v":0},{"$f":"[1]FinancialPosition!L37","v":0},{"$f":"[1]FinancialPosition!N37","v":0},{"$f":"[1]FinancialPosition!N37","v":0},{"$f":"[1]FinancialPosition!P37","v":0},{"$f":"[1]FinancialPosition!P37","v":0},{"$f":"[1]FinancialPosition!R37","v":0},{"$f":"[1]FinancialPosition!R37","v":0},{"$f":"[1]FinancialPosition!S37","v":0},{"$f":"[1]FinancialPosition!S37","v":0}]
[1,"BS1134",null,null,null,"Other non-current financial assets",125,null,{"$f":"[1]FinancialPosition!J38","v":0},{"$f":"[1]FinancialPosition!L38","v":0},{"$f":"[1]FinancialPosition!N38","v":0},{"$f":"[1]FinancialPosition!N38","v":0},{"$f":"[1]FinancialPosition!P38","v":0},{"$f":"[1]FinancialPosition!P38","v":0},{"$f":"[1]FinancialPosition!R38","v":0},{"$f":"[1]FinancialPosition!R38","v":0},{"$f":"[1]FinancialPosition!S38","v":0},{"$f":"[1]FinancialPosition!S38","v":0}]
[1,"BS1125",null,null,null,"Non-Current Investments",126,null,{"$f":"[1]FinancialPosition!J39","v":0},{"$f":"[1]FinancialPosition!L39","v":0},{"$f":"[1]FinancialPosition!N39","v":0},{"$f":"[1]FinancialPosition!N39","v":0},{"$f":"[1]FinancialPosition!P39","v":0},{"$f":"[1]FinancialPosition!P39","v":0},{"$f":"[1]FinancialPosition!R39","v":0},{"$f":"[1]FinancialPosition!R39","v":0},{"$f":"[1]FinancialPosition!S39","v":0},{"$f":"[1]FinancialPosition!S39","v":0}]
[1,"BS1126",null,null,null,"Investments in Subsidiary / Municipal entity",127,null,{"$f":"[1]FinancialPosition!J40","v":0},{"$f":"[1]FinancialPosition!L40","v":0},{"$f":"[1]FinancialPosition!N40","v":0},{"$f":"[1]FinancialPosition!N40","v":0},{"$f":"[1]FinancialPosition!P40","v":0},{"$f":"[1]FinancialPosition!P40","v":0},{"$f":"[1]FinancialPosition!R40","v":0},{"$f":"[1]FinancialPosition!R40","v":0},{"$f":"[1]FinancialPosition!S40","v":0},{"$f":"[1]FinancialPosition!S40","v":0}]
[1,"BS1127",null,null,null,"Investments in Joint Ventures",128,null,{"$f":"[1]FinancialPosition!J41","v":0},{"$f":"[1]FinancialPosition!L41","v":0},{"$f":"[1]FinancialPosition!N41","v":0},{"$f":"[1]FinancialPosition!N41","v":0},{"$f":"[1]FinancialPosition!P41","v":0},{"$f":"[1]FinancialPosition!P41","v":0},{"$f":"[1]FinancialPosition!R41","v":0},{"$f":"[1]FinancialPosition!R41","v":0},{"$f":"[1]FinancialPosition!S41","v":0},{"$f":"[1]FinancialPosition!S41","v":0}]
[1,"BS1128",null,null,null,"Investments in Associates",129,null,{"$f":"[1]FinancialPosition!J42","v":0},{"$f":"[1]FinancialPosition!L42","v":0},{"$f":"[1]FinancialPosition!N42","v":0},{"$f":"[1]FinancialPosition!N42","v":0},{"$f":"[1]FinancialPosition!P42","v":0},{"$f":"[1]FinancialPosition!P42","v":0},{"$f":"[1]FinancialPosition!R42","v":0},{"$f":"[1]FinancialPosition!R42","v":0},{"$f":"[1]FinancialPosition!S42","v":0},{"$f":"[1]FinancialPosition!S42","v":0}]
[1,"BS1135",null,null,null,"Deferred Tax Assets",130,null,{"$f":"[1]FinancialPosition!J43","v":0},{"$f":"[1]FinancialPosition!L43","v":0},{"$f":"[1]FinancialPosition!N43","v":0},{"$f":"[1]FinancialPosition!N43","v":0},{"$f":"[1]FinancialPosition!P43","v":0},{"$f":"[1]FinancialPosition!P43","v":0},{"$f":"[1]FinancialPosition!R43","v":0},{"$f":"[1]FinancialPosition!R43","v":0},{"$f":"[1]FinancialPosition!S43","v":0},{"$f":"[1]FinancialPosition!S43","v":0}]
[1,"BS1133",null,null,null,"Defined benefit plan assets",131,null,{"$f":"[1]FinancialPosition!J44","v":0},{"$f":"[1]FinancialPosition!L44","v":0},{"$f":"[1]FinancialPosition!N44","v":0},{"$f":"[1]FinancialPosition!N44","v":0},{"$f":"[1]FinancialPosition!P44","v":0},{"$f":"[1]FinancialPosition!P44","v":0},{"$f":"[1]FinancialPosition!R44","v":0},{"$f":"[1]FinancialPosition!R44","v":0},{"$f":"[1]FinancialPosition!S44","v":0},{"$f":"[1]FinancialPosition!S44","v":0}]
[1,"BS1121",null,null,null,"Property, plant and equipment",132,null,{"$f":"[1]FinancialPosition!J45","v":2837181},{"$f":"[1]FinancialPosition!L45","v":2851007},{"$f":"[1]FinancialPosition!N45","v":2647814.2145022727},{"$f":"[1]FinancialPosition!N45","v":2647814.2145022727},{"$f":"[1]FinancialPosition!P45","v":2885476.971161738},{"$f":"[1]FinancialPosition!P45","v":2885476.971161738},{"$f":"[1]FinancialPosition!R45","v":2788153.106340616},{"$f":"[1]FinancialPosition!R45","v":2788153.106340616},{"$f":"[1]FinancialPosition!S45","v":2628801.9173621456},{"$f":"[1]FinancialPosition!S45","v":2628801.9173621456}]
[1,"BS1129",null,null,null,"Investment property",133,null,{"$f":"[1]FinancialPosition!J46","v":0},{"$f":"[1]FinancialPosition!L46","v":0},{"$f":"[1]FinancialPosition!N46","v":0},{"$f":"[1]FinancialPosition!N46","v":0},{"$f":"[1]FinancialPosition!P46","v":0},{"$f":"[1]FinancialPosition!P46","v":0},{"$f":"[1]FinancialPosition!R46","v":0},{"$f":"[1]FinancialPosition!R46","v":0},{"$f":"[1]FinancialPosition!S46","v":0},{"$f":"[1]FinancialPosition!S46","v":0}]
[1,"BS1122",null,null,null,"Intangible assets",134,null,{"$f":"[1]FinancialPosition!J47","v":1589957},{"$f":"[1]FinancialPosition!L47","v":1624604},{"$f":"[1]FinancialPosition!N47","v":1637748.1274573749},{"$f":"[1]FinancialPosition!N47","v":1637748.1274573749},{"$f":"[1]FinancialPosition!P47","v":1778517.336572716},{"$f":"[1]FinancialPosition!P47","v":1778517.336572716},{"$f":"[1]FinancialPosition!R47","v":1817421.0507195159},{"$f":"[1]FinancialPosition!R47","v":1817421.0507195159},{"$f":"[1]FinancialPosition!S47","v":1722553.5968031192},{"$f":"[1]FinancialPosition!S47","v":1722553.5968031192}]
[1,"BS1123",null,null,null,"Biological assets",135,null,{"$f":"[1]FinancialPosition!J48","v":4628},{"$f":"[1]FinancialPosition!L48","v":4962},{"$f":"[1]FinancialPosition!N48","v":4404.8863599999995},{"$f":"[1]FinancialPosition!N48","v":4404.8863599999995},{"$f":"[1]FinancialPosition!P48","v":3753.4650099999994},{"$f":"[1]FinancialPosition!P48","v":3753.4650099999994},{"$f":"[1]FinancialPosition!R48","v":3130.6642599999996},{"$f":"[1]FinancialPosition!R48","v":3130.6642599999996},{"$f":"[1]FinancialPosition!S48","v":2519.5702499999998},{"$f":"[1]FinancialPosition!S48","v":2519.5702499999998}]
[1,"BS1124",null,null,null,"Heritage assets",136,null,{"$f":"[1]FinancialPosition!J49","v":0},{"$f":"[1]FinancialPosition!L49","v":0},{"$f":"[1]FinancialPosition!N49","v":0},{"$f":"[1]FinancialPosition!N49","v":0},{"$f":"[1]FinancialPosition!P49","v":0},{"$f":"[1]FinancialPosition!P49","v":0},{"$f":"[1]FinancialPosition!R49","v":0},{"$f":"[1]FinancialPosition!R49","v":0},{"$f":"[1]FinancialPosition!S49","v":0},{"$f":"[1]FinancialPosition!S49","v":0}]
[1,"BS1140",null,null,null,"Living resources ",137,null,{"$f":"[1]FinancialPosition!J50","v":0},{"$f":"[1]FinancialPosition!L50","v":0},{"$f":"[1]FinancialPosition!N50","v":0},{"$f":"[1]FinancialPosition!N50","v":0},{"$f":"[1]FinancialPosition!P50","v":0},{"$f":"[1]FinancialPosition!P50","v":0},{"$f":"[1]FinancialPosition!R50","v":0},{"$f":"[1]FinancialPosition!R50","v":0},{"$f":"[1]FinancialPosition!S50","v":0},{"$f":"[1]FinancialPosition!S50","v":0}]
[1,"BS1141",null,null,null,"Operating Lease Assets",138,null,{"$f":"[1]FinancialPosition!J51","v":0},{"$f":"[1]FinancialPosition!L51","v":0},{"$f":"[1]FinancialPosition!N51","v":0},{"$f":"[1]FinancialPosition!N51","v":0},{"$f":"[1]FinancialPosition!P51","v":0},{"$f":"[1]FinancialPosition!P51","v":0},{"$f":"[1]FinancialPosition!R51","v":0},{"$f":"[1]FinancialPosition!R51","v":0},{"$f":"[1]FinancialPosition!S51","v":0},{"$f":"[1]FinancialPosition!S51","v":0}]
[1,"BS1136",null,null,null,"Derivatives financial instruments",null,null,{"$f":"[1]FinancialPosition!J52","v":0},{"$f":"[1]FinancialPosition!L52","v":0},{"$f":"[1]FinancialPosition!N52","v":0},{"$f":"[1]FinancialPosition!N52","v":0},{"$f":"[1]FinancialPosition!P52","v":0},{"$f":"[1]FinancialPosition!P52","v":0},{"$f":"[1]FinancialPosition!R52","v":0},{"$f":"[1]FinancialPosition!R52","v":0},{"$f":"[1]FinancialPosition!S52","v":0},{"$f":"[1]FinancialPosition!S52","v":0}]
[1,"BS1",null,null,null,"Total assets",null,null,{"$f":"SUM(I31,I12)","v":6244253},6666663,5539466.1084477548,5539466.1084477548,6102649.497388958,6102649.497388958,6034273.2018996719,6034273.2018996719,5820578.9374961425,5820578.9374961425,0,null,{"$f":"IF(S53<R53/2,\"Complete outer year budget\",\"\")","v":"Complete outer year budget"}]
[1,"BS000"]
[1,"BS21",null,null,null,"LIABILITIES"]
[1,"BS211",null,null,null,"Current liabilities",null,null,{"$f":"SUM(I57:I75)","v":1496449},1086468,1224597.4769039997,1224597.4769039997,1390523.3080990594,1390523.3080990594,1382458.092454331,1382458.092454331,1461079.7345323293,1461079.7345323293,0]
[1,"BS2119",null,null,null,"Bank overdraft",139,null,{"$f":"[1]FinancialPosition!J57","v":0},{"$f":"[1]FinancialPosition!L57","v":0},{"$f":"[1]FinancialPosition!N57","v":0},{"$f":"[1]FinancialPosition!N57","v":0},{"$f":"[1]FinancialPosition!P57","v":0},{"$f":"[1]FinancialPosition!P57","v":0},{"$f":"[1]FinancialPosition!R57","v":0},{"$f":"[1]FinancialPosition!R57","v":0},{"$f":"[1]FinancialPosition!S57","v":0},{"$f":"[1]FinancialPosition!S57","v":0}]
[1,"BS2112",null,null,null,"Trade and other payables from exchange transactions",140,null,{"$f":"[1]FinancialPosition!J58","v":760353},{"$f":"[1]FinancialPosition!L58","v":824992},{"$f":"[1]FinancialPosition!N58","v":1219699.4769039997},{"$f":"[1]FinancialPosition!N58","v":1219699.4769039997},{"$f":"[1]FinancialPosition!P58","v":1374833.3080990594},{"$f":"[1]FinancialPosition!P58","v":1374833.3080990594},{"$f":"[1]FinancialPosition!R58","v":1377022.092454331},{"$f":"[1]FinancialPosition!R58","v":1377022.092454331},{"$f":"[1]FinancialPosition!S58","v":1453426.7345323293},{"$f":"[1]FinancialPosition!S58","v":1453426.7345323293}]
[1,"BS2228",null,null,null,"Other payable from non-exchange transactions, including taxes, fines and transfers",null,null,{"$f":"[1]FinancialPosition!J59","v":0},{"$f":"[1]FinancialPosition!L59","v":0},{"$f":"[1]FinancialPosition!N59","v":0},{"$f":"[1]FinancialPosition!N59","v":0},{"$f":"[1]FinancialPosition!P59","v":0},{"$f":"[1]FinancialPosition!P59","v":0},{"$f":"[1]FinancialPosition!R59","v":0},{"$f":"[1]FinancialPosition!R59","v":0},{"$f":"[1]FinancialPosition!S59","v":0},{"$f":"[1]FinancialPosition!S59","v":0}]
[4,"BS2113",null,null,null,"Benefits payable (UIF only)",141,null,{"$f":"[1]FinancialPosition!J60","v":0},{"$f":"[1]FinancialPosition!L60","v":0},{"$f":"[1]FinancialPosition!N60","v":0},{"$f":"[1]FinancialPosition!N60","v":0},{"$f":"[1]FinancialPosition!P60","v":0},{"$f":"[1]FinancialPosition!P60","v":0},{"$f":"[1]FinancialPosition!R60","v":0},{"$f":"[1]FinancialPosition!R60","v":0},{"$f":"[1]FinancialPosition!S60","v":0},{"$f":"[1]FinancialPosition!S60","v":0}]
[1,"BS2114",null,null,null,"Accrued interest",142,null,{"$f":"[1]FinancialPosition!J61","v":0},{"$f":"[1]FinancialPosition!L61","v":0},{"$f":"[1]FinancialPosition!N61","v":0},{"$f":"[1]FinancialPosition!N61","v":0},{"$f":"[1]FinancialPosition!P61","v":0},{"$f":"[1]FinancialPosition!P61","v":0},{"$f":"[1]FinancialPosition!R61","v":0},{"$f":"[1]FinancialPosition!R61","v":0},{"$f":"[1]FinancialPosition!S61","v":0},{"$f":"[1]FinancialPosition!S61","v":0}]
[1,"BS2115",null,null,null,"VAT payable",143,null,{"$f":"[1]FinancialPosition!J62","v":0},{"$f":"[1]FinancialPosition!L62","v":0},{"$f":"[1]FinancialPosition!N62","v":0},{"$f":"[1]FinancialPosition!N62","v":0},{"$f":"[1]FinancialPosition!P62","v":0},{"$f":"[1]FinancialPosition!P62","v":0},{"$f":"[1]FinancialPosition!R62","v":0},{"$f":"[1]FinancialPosition!R62","v":0},{"$f":"[1]FinancialPosition!S62","v":0},{"$f":"[1]FinancialPosition!S62","v":0}]
[1,"BS2116",null,null,null,"Income Tax Payable",144,null,{"$f":"[1]FinancialPosition!J63","v":0},{"$f":"[1]FinancialPosition!L63","v":0},{"$f":"[1]FinancialPosition!N63","v":0},{"$f":"[1]FinancialPosition!N63","v":0},{"$f":"[1]FinancialPosition!P63","v":0},{"$f":"[1]FinancialPosition!P63","v":0},{"$f":"[1]FinancialPosition!R63","v":0},{"$f":"[1]FinancialPosition!R63","v":0},{"$f":"[1]FinancialPosition!S63","v":0},{"$f":"[1]FinancialPosition!S63","v":0}]
[1,"BS2117",null,null,null,"Taxes and transfers payable",145,null,{"$f":"[1]FinancialPosition!J64","v":0},{"$f":"[1]FinancialPosition!L64","v":0},{"$f":"[1]FinancialPosition!N64","v":0},{"$f":"[1]FinancialPosition!N64","v":0},{"$f":"[1]FinancialPosition!P64","v":0},{"$f":"[1]FinancialPosition!P64","v":0},{"$f":"[1]FinancialPosition!R64","v":0},{"$f":"[1]FinancialPosition!R64","v":0},{"$f":"[1]FinancialPosition!S64","v":0},{"$f":"[1]FinancialPosition!S64","v":0}]
[1,"BS2118",null,null,null,"Current provisions",146,null,{"$f":"[1]FinancialPosition!J65","v":718043},{"$f":"[1]FinancialPosition!L65","v":240766},{"$f":"[1]FinancialPosition!N65","v":4730},{"$f":"[1]FinancialPosition!N65","v":4730},{"$f":"[1]FinancialPosition!P65","v":6785},{"$f":"[1]FinancialPosition!P65","v":6785},{"$f":"[1]FinancialPosition!R65","v":5268},{"$f":"[1]FinancialPosition!R65","v":5268},{"$f":"[1]FinancialPosition!S65","v":7485},{"$f":"[1]FinancialPosition!S65","v":7485}]
[1,"BS2220",null,null,null,"Current portion of unspent conditional grants and receipts",147,null,{"$f":"[1]FinancialPosition!J66","v":0},{"$f":"[1]FinancialPosition!L66","v":0},{"$f":"[1]FinancialPosition!N66","v":0},{"$f":"[1]FinancialPosition!N66","v":0},{"$f":"[1]FinancialPosition!P66","v":0},{"$f":"[1]FinancialPosition!P66","v":0},{"$f":"[1]FinancialPosition!R66","v":0},{"$f":"[1]FinancialPosition!R66","v":0},{"$f":"[1]FinancialPosition!S66","v":0},{"$f":"[1]FinancialPosition!S66","v":0}]
[1,"BS2222",null,null,null,"Deferred income",148,null,{"$f":"[1]FinancialPosition!J67","v":163},{"$f":"[1]FinancialPosition!L67","v":168},{"$f":"[1]FinancialPosition!N67","v":168},{"$f":"[1]FinancialPosition!N67","v":168},{"$f":"[1]FinancialPosition!P67","v":168},{"$f":"[1]FinancialPosition!P67","v":168},{"$f":"[1]FinancialPosition!R67","v":168},{"$f":"[1]FinancialPosition!R67","v":168},{"$f":"[1]FinancialPosition!S67","v":168},{"$f":"[1]FinancialPosition!S67","v":168}]
[1,"BS2230",null,null,null,"Current portion of long-term borrowings",149,null,{"$f":"[1]FinancialPosition!J68","v":0},{"$f":"[1]FinancialPosition!L68","v":0},{"$f":"[1]FinancialPosition!N68","v":0},{"$f":"[1]FinancialPosition!N68","v":0},{"$f":"[1]FinancialPosition!P68","v":0},{"$f":"[1]FinancialPosition!P68","v":0},{"$f":"[1]FinancialPosition!R68","v":0},{"$f":"[1]FinancialPosition!R68","v":0},{"$f":"[1]FinancialPosition!S68","v":0},{"$f":"[1]FinancialPosition!S68","v":0}]
[1,"BS2221",null,null,null,"Short-term loans",150,null,{"$f":"[1]FinancialPosition!J69","v":0},{"$f":"[1]FinancialPosition!L69","v":0},{"$f":"[1]FinancialPosition!N69","v":0},{"$f":"[1]FinancialPosition!N69","v":0},{"$f":"[1]FinancialPosition!P69","v":0},{"$f":"[1]FinancialPosition!P69","v":0},{"$f":"[1]FinancialPosition!R69","v":0},{"$f":"[1]FinancialPosition!R69","v":0},{"$f":"[1]FinancialPosition!S69","v":0},{"$f":"[1]FinancialPosition!S69","v":0}]
[1,"BS2223",null,null,null,"Other current financial liabilities",151,null,{"$f":"[1]FinancialPosition!J70","v":0},{"$f":"[1]FinancialPosition!L70","v":0},{"$f":"[1]FinancialPosition!N70","v":0},{"$f":"[1]FinancialPosition!N70","v":0},{"$f":"[1]FinancialPosition!P70","v":0},{"$f":"[1]FinancialPosition!P70","v":0},{"$f":"[1]FinancialPosition!R70","v":0},{"$f":"[1]FinancialPosition!R70","v":0},{"$f":"[1]FinancialPosition!S70","v":0},{"$f":"[1]FinancialPosition!S70","v":0}]
[1,"BS2225",null,null,null,"Current portion of finance lease liability",152,null,{"$f":"[1]FinancialPosition!J71","v":17890},{"$f":"[1]FinancialPosition!L71","v":20542},{"$f":"[1]FinancialPosition!N71","v":0},{"$f":"[1]FinancialPosition!N71","v":0},{"$f":"[1]FinancialPosition!P71","v":8737},{"$f":"[1]FinancialPosition!P71","v":8737},{"$f":"[1]FinancialPosition!R71","v":0},{"$f":"[1]FinancialPosition!R71","v":0},{"$f":"[1]FinancialPosition!S71","v":0},{"$f":"[1]FinancialPosition!S71","v":0}]
[1,"BS2229",null,null,null,"Current portion of operating lease liability",null,null,{"$f":"[1]FinancialPosition!J72","v":0},{"$f":"[1]FinancialPosition!L72","v":0},{"$f":"[1]FinancialPosition!N72","v":0},{"$f":"[1]FinancialPosition!N72","v":0},{"$f":"[1]FinancialPosition!P72","v":0},{"$f":"[1]FinancialPosition!P72","v":0},{"$f":"[1]FinancialPosition!R72","v":0},{"$f":"[1]FinancialPosition!R72","v":0},{"$f":"[1]FinancialPosition!S72","v":0},{"$f":"[1]FinancialPosition!S72","v":0}]
[1,"BS2226",null,null,null,"Managed funds",153,null,{"$f":"[1]FinancialPosition!J73","v":0},{"$f":"[1]FinancialPosition!L73","v":0},{"$f":"[1]FinancialPosition!N73","v":0},{"$f":"[1]FinancialPosition!N73","v":0},{"$f":"[1]FinancialPosition!P73","v":0},{"$f":"[1]FinancialPosition!P73","v":0},{"$f":"[1]FinancialPosition!R73","v":0},{"$f":"[1]FinancialPosition!R73","v":0},{"$f":"[1]FinancialPosition!S73","v":0},{"$f":"[1]FinancialPosition!S73","v":0}]
[1,"BS2231",null,null,null,"Service concession arrangement ",154,null,{"$f":"[1]FinancialPosition!J74","v":0},{"$f":"[1]FinancialPosition!L74","v":0},{"$f":"[1]FinancialPosition!N74","v":0},{"$f":"[1]FinancialPosition!N74","v":0},{"$f":"[1]FinancialPosition!P74","v":0},{"$f":"[1]FinancialPosition!P74","v":0},{"$f":"[1]FinancialPosition!R74","v":0},{"$f":"[1]FinancialPosition!R74","v":0},{"$f":"[1]FinancialPosition!S74","v":0},{"$f":"[1]FinancialPosition!S74","v":0}]
[1,"BS2227",null,null,null,"Derivatives financial instruments",155,null,{"$f":"[1]FinancialPosition!J75","v":0},{"$f":"[1]FinancialPosition!L75","v":0},{"$f":"[1]FinancialPosition!N75","v":0},{"$f":"[1]FinancialPosition!N75","v":0},{"$f":"[1]FinancialPosition!P75","v":0},{"$f":"[1]FinancialPosition!P75","v":0},{"$f":"[1]FinancialPosition!R75","v":0},{"$f":"[1]FinancialPosition!R75","v":0},{"$f":"[1]FinancialPosition!S75","v":0},{"$f":"[1]FinancialPosition!S75","v":0}]
[1,"BS212",null,null,null,"Non-current liabilities",null,null,{"$f":"SUM(I77:I89)","v":396457},389018,389018,389018,401715,401715,398932,398932,365540.5,365540.5,0]
[1,"BS2130",null,null,null,"Deferred tax liabilities",156,null,{"$f":"[1]FinancialPosition!J77","v":0},{"$f":"[1]FinancialPosition!L77","v":0},{"$f":"[1]FinancialPosition!N77","v":0},{"$f":"[1]FinancialPosition!N77","v":0},{"$f":"[1]FinancialPosition!P77","v":0},{"$f":"[1]FinancialPosition!P77","v":0},{"$f":"[1]FinancialPosition!R77","v":0},{"$f":"[1]FinancialPosition!R77","v":0},{"$f":"[1]FinancialPosition!S77","v":0},{"$f":"[1]FinancialPosition!S77","v":0}]
[1,"BS2121",null,null,null,"Unspent conditional grants and receipts",157,null,{"$f":"[1]FinancialPosition!J78","v":0},{"$f":"[1]FinancialPosition!L78","v":0},{"$f":"[1]FinancialPosition!N78","v":0},{"$f":"[1]FinancialPosition!N78","v":0},{"$f":"[1]FinancialPosition!P78","v":0},{"$f":"[1]FinancialPosition!P78","v":0},{"$f":"[1]FinancialPosition!R78","v":0},{"$f":"[1]FinancialPosition!R78","v":0},{"$f":"[1]FinancialPosition!S78","v":0},{"$f":"[1]FinancialPosition!S78","v":0}]
[4,"BS2122",null,null,null,"Benefits payable (UIF only)",158,null,{"$f":"[1]FinancialPosition!J79","v":0},{"$f":"[1]FinancialPosition!L79","v":0},{"$f":"[1]FinancialPosition!N79","v":0},{"$f":"[1]FinancialPosition!N79","v":0},{"$f":"[1]FinancialPosition!P79","v":0},{"$f":"[1]FinancialPosition!P79","v":0},{"$f":"[1]FinancialPosition!R79","v":0},{"$f":"[1]FinancialPosition!R79","v":0},{"$f":"[1]FinancialPosition!S79","v":0},{"$f":"[1]FinancialPosition!S79","v":0}]
[1,"BS2123",null,null,null,"Long-term borrowings",159,null,{"$f":"[1]FinancialPosition!J80","v":0},{"$f":"[1]FinancialPosition!L80","v":0},{"$f":"[1]FinancialPosition!N80","v":0},{"$f":"[1]FinancialPosition!N80","v":0},{"$f":"[1]FinancialPosition!P80","v":0},{"$f":"[1]FinancialPosition!P80","v":0},{"$f":"[1]FinancialPosition!R80","v":0},{"$f":"[1]FinancialPosition!R80","v":0},{"$f":"[1]FinancialPosition!S80","v":0},{"$f":"[1]FinancialPosition!S80","v":0}]
[1,"BS2124",null,null,null,"Finance lease liability",160,null,{"$f":"[1]FinancialPosition!J81","v":18009},{"$f":"[1]FinancialPosition!L81","v":8737},{"$f":"[1]FinancialPosition!N81","v":8737},{"$f":"[1]FinancialPosition!N81","v":8737},{"$f":"[1]FinancialPosition!P81","v":0},{"$f":"[1]FinancialPosition!P81","v":0},{"$f":"[1]FinancialPosition!R81","v":0},{"$f":"[1]FinancialPosition!R81","v":0},{"$f":"[1]FinancialPosition!S81","v":0},{"$f":"[1]FinancialPosition!S81","v":0}]
[1,"BS2125",null,null,null,"Operating Lease Liability",161,null,{"$f":"[1]FinancialPosition!J82","v":42365},{"$f":"[1]FinancialPosition!L82","v":27132},{"$f":"[1]FinancialPosition!N82","v":27132},{"$f":"[1]FinancialPosition!N82","v":27132},{"$f":"[1]FinancialPosition!P82","v":13566},{"$f":"[1]FinancialPosition!P82","v":13566},{"$f":"[1]FinancialPosition!R82","v":6783},{"$f":"[1]FinancialPosition!R82","v":6783},{"$f":"[1]FinancialPosition!S82","v":3391.5},{"$f":"[1]FinancialPosition!S82","v":3391.5}]
[1,"BS2126",null,null,null,"Other non-current financial liabilities",162,null,{"$f":"[1]FinancialPosition!J83","v":0},{"$f":"[1]FinancialPosition!L83","v":0},{"$f":"[1]FinancialPosition!N83","v":0},{"$f":"[1]FinancialPosition!N83","v":0},{"$f":"[1]FinancialPosition!P83","v":0},{"$f":"[1]FinancialPosition!P83","v":0},{"$f":"[1]FinancialPosition!R83","v":0},{"$f":"[1]FinancialPosition!R83","v":0},{"$f":"[1]FinancialPosition!S83","v":0},{"$f":"[1]FinancialPosition!S83","v":0}]
[1,"BS2127",null,null,null,"Non-current provisions",163,null,{"$f":"[1]FinancialPosition!J84","v":0},{"$f":"[1]FinancialPosition!L84","v":0},{"$f":"[1]FinancialPosition!N84","v":0},{"$f":"[1]FinancialPosition!N84","v":0},{"$f":"[1]FinancialPosition!P84","v":0},{"$f":"[1]FinancialPosition!P84","v":0},{"$f":"[1]FinancialPosition!R84","v":0},{"$f":"[1]FinancialPosition!R84","v":0},{"$f":"[1]FinancialPosition!S84","v":0},{"$f":"[1]FinancialPosition!S84","v":0}]
[1,"BS2128",null,null,null,"Defined benefit plan obligations",164,null,{"$f":"[1]FinancialPosition!J85","v":336083},{"$f":"[1]FinancialPosition!L85","v":353149},{"$f":"[1]FinancialPosition!N85","v":353149},{"$f":"[1]FinancialPosition!N85","v":353149},{"$f":"[1]FinancialPosition!P85","v":388149},{"$f":"[1]FinancialPosition!P85","v":388149},{"$f":"[1]FinancialPosition!R85","v":392149},{"$f":"[1]FinancialPosition!R85","v":392149},{"$f":"[1]FinancialPosition!S85","v":362149},{"$f":"[1]FinancialPosition!S85","v":362149}]
[1,"BS2129",null,null,null,"Deferred income",165,null,{"$f":"[1]FinancialPosition!J86","v":0},{"$f":"[1]FinancialPosition!L86","v":0},{"$f":"[1]FinancialPosition!N86","v":0},{"$f":"[1]FinancialPosition!N86","v":0},{"$f":"[1]FinancialPosition!P86","v":0},{"$f":"[1]FinancialPosition!P86","v":0},{"$f":"[1]FinancialPosition!R86","v":0},{"$f":"[1]FinancialPosition!R86","v":0},{"$f":"[1]FinancialPosition!S86","v":0},{"$f":"[1]FinancialPosition!S86","v":0}]
[1,"BS2131",null,null,null,"Managed funds",166,null,{"$f":"[1]FinancialPosition!J87","v":0},{"$f":"[1]FinancialPosition!L87","v":0},{"$f":"[1]FinancialPosition!N87","v":0},{"$f":"[1]FinancialPosition!N87","v":0},{"$f":"[1]FinancialPosition!P87","v":0},{"$f":"[1]FinancialPosition!P87","v":0},{"$f":"[1]FinancialPosition!R87","v":0},{"$f":"[1]FinancialPosition!R87","v":0},{"$f":"[1]FinancialPosition!S87","v":0},{"$f":"[1]FinancialPosition!S87","v":0}]
[1,"BS2133",null,null,null,"Service concession arrangement ",167,null,{"$f":"[1]FinancialPosition!J88","v":0},{"$f":"[1]FinancialPosition!L88","v":0},{"$f":"[1]FinancialPosition!N88","v":0},{"$f":"[1]FinancialPosition!N88","v":0},{"$f":"[1]FinancialPosition!P88","v":0},{"$f":"[1]FinancialPosition!P88","v":0},{"$f":"[1]FinancialPosition!R88","v":0},{"$f":"[1]FinancialPosition!R88","v":0},{"$f":"[1]FinancialPosition!S88","v":0},{"$f":"[1]FinancialPosition!S88","v":0}]
[1,"BS2132",null,null,null,"Derivatives financial instruments",168,null,{"$f":"[1]FinancialPosition!J89","v":0},{"$f":"[1]FinancialPosition!L89","v":0},{"$f":"[1]FinancialPosition!N89","v":0},{"$f":"[1]FinancialPosition!N89","v":0},{"$f":"[1]FinancialPosition!P89","v":0},{"$f":"[1]FinancialPosition!P89","v":0},{"$f":"[1]FinancialPosition!R89","v":0},{"$f":"[1]FinancialPosition!R89","v":0},{"$f":"[1]FinancialPosition!S89","v":0},{"$f":"[1]FinancialPosition!S89","v":0}]
[1,"BS2",null,null,null,"Total liabilities",null,null,{"$f":"SUM(I76,I56)","v":1892906},1475486,1613615.4769039997,1613615.4769039997,1792238.3080990594,1792238.3080990594,1781390.092454331,1781390.092454331,1826620.2345323293,1826620.2345323293,0]
[1,"BS00"]
[1,"BS31",null,null,null,"NET ASSETS",null,null,{"$f":"SUM(I93:I94,I100:I102)","v":4351347},5191177,3925850.6315437546,3925850.6315437546,4310411.1892898977,4310411.1892898977,4252883.1094453391,4252883.1094453391,3993958.7029638109,3993958.7029638109,0]
[1,"BS311",null,null,null,"Accumulated surplus / (deficit)",169,null,{"$f":"[1]FinancialPosition!J93","v":4250108},{"$f":"[1]FinancialPosition!L93","v":5070082},{"$f":"[1]FinancialPosition!N93","v":3804755.6315437546},{"$f":"[1]FinancialPosition!N93","v":3804755.6315437546},{"$f":"[1]FinancialPosition!P93","v":4182535.1892898977},{"$f":"[1]FinancialPosition!P93","v":4182535.1892898977},{"$f":"[1]FinancialPosition!R93","v":4123492.1094453395},{"$f":"[1]FinancialPosition!R93","v":4123492.1094453395},{"$f":"[1]FinancialPosition!S93","v":3868661.2029638109},{"$f":"[1]FinancialPosition!S93","v":3868661.2029638109}]
[1,"BS312",null,null,null,"Reserves",170,null,{"$f":"SUM(I95:I99)","v":101239},121095,121095,121095,127876,127876,129391,129391,125297.5,125297.5,0]
[1,"BS3121",null,null,null,"Cash reserves",null,null,{"$f":"[1]FinancialPosition!J95","v":0},{"$f":"[1]FinancialPosition!L95","v":0},{"$f":"[1]FinancialPosition!N95","v":0},{"$f":"[1]FinancialPosition!N95","v":0},{"$f":"[1]FinancialPosition!P95","v":0},{"$f":"[1]FinancialPosition!P95","v":0},{"$f":"[1]FinancialPosition!R95","v":0},{"$f":"[1]FinancialPosition!R95","v":0},{"$f":"[1]FinancialPosition!S95","v":0},{"$f":"[1]FinancialPosition!S95","v":0}]
[1,"BS3122",null,null,null,"Non_cash reserves",null,null,{"$f":"[1]FinancialPosition!J96","v":101239},{"$f":"[1]FinancialPosition!L96","v":121095},{"$f":"[1]FinancialPosition!N96","v":121095},{"$f":"[1]FinancialPosition!N96","v":121095},{"$f":"[1]FinancialPosition!P96","v":127876},{"$f":"[1]FinancialPosition!P96","v":127876},{"$f":"[1]FinancialPosition!R96","v":129391},{"$f":"[1]FinancialPosition!R96","v":129391},{"$f":"[1]FinancialPosition!S96","v":125297.5},{"$f":"[1]FinancialPosition!S96","v":125297.5}]
[1,"BS3124",null,null,null,"Revaluation Reserve",171,null,{"$f":"[1]FinancialPosition!J97","v":0},{"$f":"[1]FinancialPosition!L97","v":0},{"$f":"[1]FinancialPosition!N97","v":0},{"$f":"[1]FinancialPosition!N97","v":0},{"$f":"[1]FinancialPosition!P97","v":0},{"$f":"[1]FinancialPosition!P97","v":0},{"$f":"[1]FinancialPosition!R97","v":0},{"$f":"[1]FinancialPosition!R97","v":0},{"$f":"[1]FinancialPosition!S97","v":0},{"$f":"[1]FinancialPosition!S97","v":0}]
[1,"BS3125",null,null,null,"Translation Reserve",172,null,{"$f":"[1]FinancialPosition!J98","v":0},{"$f":"[1]FinancialPosition!L98","v":0},{"$f":"[1]FinancialPosition!N98","v":0},{"$f":"[1]FinancialPosition!N98","v":0},{"$f":"[1]FinancialPosition!P98","v":0},{"$f":"[1]FinancialPosition!P98","v":0},{"$f":"[1]FinancialPosition!R98","v":0},{"$f":"[1]FinancialPosition!R98","v":0},{"$f":"[1]FinancialPosition!S98","v":0},{"$f":"[1]FinancialPosition!S98","v":0}]
[1,"BS3123",null,null,null,"Technical reserves (Social security funds only)",null,null,{"$f":"[1]FinancialPosition!J99","v":0},{"$f":"[1]FinancialPosition!L99","v":0},{"$f":"[1]FinancialPosition!N99","v":0},{"$f":"[1]FinancialPosition!N99","v":0},{"$f":"[1]FinancialPosition!P99","v":0},{"$f":"[1]FinancialPosition!P99","v":0},{"$f":"[1]FinancialPosition!R99","v":0},{"$f":"[1]FinancialPosition!R99","v":0},{"$f":"[1]FinancialPosition!S99","v":0},{"$f":"[1]FinancialPosition!S99","v":0}]
[1,"BS313",null,null,null,"Share capital / capital fund",173,null,{"$f":"[1]FinancialPosition!J100","v":0},{"$f":"[1]FinancialPosition!L100","v":0},{"$f":"[1]FinancialPosition!N100","v":0},{"$f":"[1]FinancialPosition!N100","v":0},{"$f":"[1]FinancialPosition!P100","v":0},{"$f":"[1]FinancialPosition!P100","v":0},{"$f":"[1]FinancialPosition!R100","v":0},{"$f":"[1]FinancialPosition!R100","v":0},{"$f":"[1]FinancialPosition!S100","v":0},{"$f":"[1]FinancialPosition!S100","v":0}]
[1,"BS314",null,null,null,"Capitalised value of pensions (Comp Fund only)",174,null,{"$f":"[1]FinancialPosition!J101","v":0},{"$f":"[1]FinancialPosition!L101","v":0},{"$f":"[1]FinancialPosition!N101","v":0},{"$f":"[1]FinancialPosition!N101","v":0},{"$f":"[1]FinancialPosition!P101","v":0},{"$f":"[1]FinancialPosition!P101","v":0},{"$f":"[1]FinancialPosition!R101","v":0},{"$f":"[1]FinancialPosition!R101","v":0},{"$f":"[1]FinancialPosition!S101","v":0},{"$f":"[1]FinancialPosition!S101","v":0}]
[1,"BS3126",null,null,null,"Non-Controlling Interests",174,null,{"$f":"[1]FinancialPosition!J102","v":0},{"$f":"[1]FinancialPosition!L102","v":0},{"$f":"[1]FinancialPosition!N102","v":0},{"$f":"[1]FinancialPosition!N102","v":0},{"$f":"[1]FinancialPosition!P102","v":0},{"$f":"[1]FinancialPosition!P102","v":0},{"$f":"[1]FinancialPosition!R102","v":0},{"$f":"[1]FinancialPosition!R102","v":0},{"$f":"[1]FinancialPosition!S102","v":0},{"$f":"[1]FinancialPosition!S102","v":0}]
[1,"BS3",null,null,null,"Total net assets and liabilities",null,null,{"$f":"SUM(I90,I92)","v":6244253},6666663,5539466.1084477548,5539466.1084477548,6102649.4973889571,6102649.4973889571,6034273.2018996701,6034273.2018996701,5820578.9374961406,5820578.9374961406,0,null,{"$f":"IF(S103<R103/2,\"Complete outer year budget\",\"\")","v":"Complete outer year budget"}]
[1,"BS4",null,null,null,"Contingent liabilities",null,null,{"$f":"[1]FinancialPosition!J104","v":0},{"$f":"[1]FinancialPosition!L104","v":0},{"$f":"[1]FinancialPosition!N104","v":0},{"$f":"[1]FinancialPosition!N104","v":0},{"$f":"[1]FinancialPosition!P104","v":0},{"$f":"[1]FinancialPosition!P104","v":0},{"$f":"[1]FinancialPosition!R104","v":0},{"$f":"[1]FinancialPosition!R104","v":0},{"$f":"[1]FinancialPosition!S104","v":0},{"$f":"[1]FinancialPosition!S104","v":0}]
[1,null,null,null,null,null,null,null,null,null,null,null,null,null,null,null,null,null,null,true]
[1,null,null,null,null,"Check"]
[1,null,null,null,null,"Total assets as per the Financial statements",null,null,null,{"$f":"[1]FinancialPosition!L107","v":6666663},null,{"$f":"[1]FinancialPosition!N53","v":5539466.1084477548}]
[1,null,null,null,null,"Differences",null,null,null,{"$f":"ROUND(IF(J103-J107>0,IF(J103-J107<1,0,J103-J107),J103-J107),0)","v":0},null,{"$f":"ROUND(IF(L103-L107>0,IF(L103-L107<1,0,L103-L107),L103-L107),0)","v":0}]
[1,null,null,null,null,"Total assets less Total net assets and liabilities",null,null,{"$f":"ROUND(IF(I103-I53>0,IF(I103-I53<1,0,I103-I53),I103-I53),0)","v":0},0,0,0,0,0,0,0,0,0,0,{"$f":"T53-T103","v":0}]
[]
[null,null,null,null,null,"Movements in Cash flow vs Movements in Financial position",null,null,{"$f":"MyYearM3","v":"2022/23"},{"$f":"MyYearM2","v":"2023/24"},{"$f":"MyYearM1","v":"2024/25"},null,{"$f":"MyYear0","v":"2025/26"},null,{"$f":"MyYearP1","v":"2026/27"},null,{"$f":"MyYearP2","v":"2027/28"},null,{"$f":"MyYearP3","v":"2028/29"}]
[]
[null,null,null,null,null,"Checks"]
[null,null,null,null,null,"Assets"]
[null,null,null,null,null,"Carrying value of fixed assets",null,null,null,{"$f":"J45+J47+CashFlow!J169+CashFlow!J183+'Expend summary'!J184+'Expend summary'!J98+'Expend summary'!J103-I45-I47","v":-1576},null,{"$f":"ENESummary!I137-L46+'Expend summary'!L99+'Expend summary'!L103+CashFlow!L183-CashFlow!L169-ENESummary!H137","v":-197728.58864035178},null,{"$f":"ENESummary!J137-N46+'Expend summary'!N99+'Expend summary'!N103+CashFlow!N183-CashFlow!N169-ENESummary!I137","v":646165.73586909659},null,{"$f":"ENESummary!M137-P46+'Expend summary'!Q99+'Expend summary'!Q103+CashFlow!P183-CashFlow!P169-ENESummary!J137","v":-33301.980792012997},null,{"$f":"ENESummary!N137-R46+'Expend summary'!T99+'Expend summary'!T103+CashFlow!R183-CashFlow!R169-ENESummary!M137","v":-180321.55485554505},{"$f":"ENESummary!O137-S46+'Expend summary'!V99+'Expend summary'!V103+CashFlow!S183-CashFlow!S169-ENESummary!N137","v":-4353875.0844152644}]
[null,null,null,null,null,"Cash and cash equivalents",null,null,null,{"$f":"J13-CashFlow!J216-I13","v":-5.2449399996548891},null,{"$f":"L13-CashFlow!L216-J13","v":-33.999999997671694},null,{"$f":"N13-CashFlow!N216-L13","v":-35.567400001338683},null,{"$f":"P13-CashFlow!P216-N13","v":-37.185716698179021},null,{"$f":"R13-CashFlow!R216-P13","v":-38.866511094733141},{"$f":"S13-CashFlow!S216-R13","v":-778255.85308087803}]
[null,null,null,null,null,"Net assets and liabilities"]
[null,null,null,null,null,"Accumulated surplus/deficit",null,null,null,{"$f":"J93-I93+J99-I99-ENESummary!H54","v":-3},null,{"$f":"L93-J93+L99-J99-ENESummary!I54","v":-1074720.3684562454},null,{"$f":"N93-L93+N99-L99-ENESummary!J54","v":-0.44225385691970587},null,{"$f":"P93-N93+P99-N99-ENESummary!M54","v":-7.9844558145850897E-2},null,{"$f":"R93-P93+R99-P99-ENESummary!N54","v":9.3518471345305443E-2},{"$f":"S93-R93+S99-R99-ENESummary!O54","v":-3868661.2029638109}]
[null,null,null,null,null,"Unspent conditional grants and receipts",null,null,null,{"$f":"ENESummary!H159-CashFlow!J197+Revenue!J49-ENESummary!G159","v":0},null,{"$f":"ENESummary!I159-CashFlow!L197+Revenue!L49-ENESummary!H159","v":0},null,{"$f":"ENESummary!J159-CashFlow!N197+Revenue!N49-ENESummary!I159","v":0},null,{"$f":"ENESummary!M159-CashFlow!P197+Revenue!P49-ENESummary!J159","v":0},null,{"$f":"ENESummary!N159-CashFlow!R197+Revenue!R49-ENESummary!M159","v":0},{"$f":"ENESummary!O159-CashFlow!S197+Revenue!S49-ENESummary!N159","v":0}]

{"sheet":"ENESummary","index":27,"n_rows":205,"n_cols":85,"rows_kept":205,"cut":false,"hidden":false,"merged":[[7,6,7,12],[195,6,195,8],[135,10,135,11],[192,22,192,67],[192,19,192,21],[10,10,10,11],[31,10,31,11],[58,10,58,11],[102,10,102,11]]}
[]
[null,null,null,null,null,null,null,null,null,null,null,null,null,"Legend"]
[null,null,null,null,null,null,null,null,null,null,null,null,null,"Orange",null,"This colour signifies that the outer year Is not fully completed"]
[]
[]
[null,null,null,null,null,"PE No",{"$f":"Settings!$O$2","v":"PE126"},null,null,null,null,null,null,null,null,null,null,null,null,null,null,null,null,null,null,null,null,null,null,null,null,null,null,null,null,null,null,null,null,null,null,null,null,null,null,null,null,null,null,null,null,null,null,null,null,null,null,null,null,null,null,null,null,null,null,null,null,null,null,"South African Medical Research Council ",null,null,1,{"$f":"IF(BU6=1,\"R thousand\",\"R million\")","v":"R thousand"},"Selected performance and operations indicators",17.8,7,7,7,7.56,6.89,6.89,6.89,null,{"$f":"SUM(BX6:CE6)","v":67.03}]
[null,null,null,null,null,"Entity name",{"$f":"Settings!$E$2","v":"South African Revenue Service"},null,null,null,null,null,null,null,null,null,null,null,null,null,null,null,null,null,null,null,null,null,null,null,null,null,null,null,null,null,null,null,null,null,null,null,null,null,null,null,null,null,null,null,null,null,null,null,null,null,null,null,null,null,null,null,null,null,null,null,null,null,null,null,null,null,{"$f":"IF(BU6=1,1,1000)","v":1}]
[null,null,null,null,null,{"$f":"Information!A21","v":"Mandate of the entity:"},{"$f":"Information!A22","v":"SARS’s mandate is to:\nCollect all revenues due.\nEnsure optimal compliance with Tax, Customs and Excise legislation.\nProvide a customs and excise service that will facilitate legitimate trade as well as protect our economy and society."}]
[]
[null,null,null,null,null,null,{"$f":"Hist_year3RestatedAudited","v":"Audited\noutcome"},{"$f":"Hist_year2RestatedAudited","v":"Audited\noutcome"},{"$f":"Hist_year1Audited","v":"Audited\noutcome"},{"$f":"Cur_YearApprovedBudg","v":"Approved budget"},"Average\ngrowth\nrate\n(%)","Expen-\nditure/\ntotal:\nAverage\n(%)"," Medium-term estimate",null,null,"Average\ngrowth\nrate\n(%)","Expen-\nditure/\ntotal:\nAverage\n(%)"]
[null,null,null,null,null,{"$f":"BV6","v":"R thousand"},{"$f":"MyYearM3","v":"2022/23"},{"$f":"MyYearM2","v":"2023/24"},{"$f":"MyYearM1","v":"2024/25"},{"$f":"MyYear0","v":"2025/26"},{"$f":"MyYearM3&\"-\"&MyYear0","v":"2022/23-2025/26"},null,{"$f":"MyYearP1","v":"2026/27"},{"$f":"MyYearP2","v":"2027/28"},{"$f":"MyYearP3","v":"2028/29"},{"$f":"MyYear0&\" - \"&MyYearP3","v":"2025/26 - 2028/29"}]
[null,null,null,null,null,{"$f":"'Expend summary'!F21","v":"Administration"},{"$f":"'Expend summary'!I21","v":3251758.1058299998},{"$f":"'Expend summary'!J21","v":2948677.6081000003},{"$f":"'Expend summary'!L21","v":3392951.2575703519},{"$f":"'Expend summary'!N21","v":3198111.7300132173},{"$f":"IFERROR((J12/G12)^(1/3)-1,0)","v":-5.5297392116421262E-3},{"$f":"IFERROR(AVERAGE(G12/$G$27,H12/$H$27,I12/$I$27,J12/$J$27),0)","v":0.23522204582836365},{"$f":"'Expend summary'!Q21","v":3288268.7993594953},{"$f":"'Expend summary'!T21","v":3388249.6977805565},{"$f":"'Expend summary'!V21","v":0},{"$f":"IFERROR((O12/J12)^(1/3)-1,0)","v":-1},{"$f":"IFERROR(AVERAGE(J12/$J$27,M12/$M$27,N12/$N$27,O12/$O$27),0)","v":0}]
[null,null,null,null,null,{"$f":"'Expend summary'!F22","v":"Deputy commissioner: Taxpayer engagement and operations "},{"$f":"'Expend summary'!I22","v":6435782.4652199997},{"$f":"'Expend summary'!J22","v":7331552.6430699993},{"$f":"'Expend summary'!L22","v":7266002.6030899975},{"$f":"'Expend summary'!N22","v":7698741.6299284389},{"$f":"IFERROR((J13/G13)^(1/3)-1,0)","v":6.1547575890951167E-2},{"$f":"IFERROR(AVERAGE(G13/$G$27,H13/$H$27,I13/$I$27,J13/$J$27),0)","v":0.52581594417024391},{"$f":"'Expend summary'!Q22","v":8069993.9109454416},{"$f":"'Expend summary'!T22","v":8463747.2865662836},{"$f":"'Expend summary'!V22","v":0},{"$f":"IFERROR((O13/J13)^(1/3)-1,0)","v":-1},{"$f":"IFERROR(AVERAGE(J13/$J$27,M13/$M$27,N13/$N$27,O13/$O$27),0)","v":0}]
[null,null,null,null,null,{"$f":"'Expend summary'!F23","v":"Deputy commissioner: Strategy, enabling and modernisation"},{"$f":"'Expend summary'!I23","v":2241248.3125},{"$f":"'Expend summary'!J23","v":2547801.5585699994},{"$f":"'Expend summary'!L23","v":2749763.8667199998},{"$f":"'Expend summary'!N23","v":2950376.3035165197},9.5962796598832334E-2,{"$f":"IFERROR(AVERAGE(G14/$G$27,H14/$H$27,I14/$I$27,J14/$J$27),0)","v":0.19119609675656318},{"$f":"'Expend summary'!Q23","v":3175778.7227006108},{"$f":"'Expend summary'!T23","v":3420158.0628184988},{"$f":"'Expend summary'!V23","v":0},-1,{"$f":"IFERROR(AVERAGE(J14/$J$27,M14/$M$27,N14/$N$27,O14/$O$27),0)","v":0}]
[null,null,null,null,null,{"$f":"'Expend summary'!F24","v":"Office of the Tax Ombud "},{"$f":"'Expend summary'!I24","v":48073.455640000007},{"$f":"'Expend summary'!J24","v":51576.357839999997},{"$f":"'Expend summary'!L24","v":57733.000909999995},{"$f":"'Expend summary'!N24","v":55940.631806631995},5.181818527686799E-2,{"$f":"IFERROR(AVERAGE(G15/$G$27,H15/$H$27,I15/$I$27,J15/$J$27),0)","v":3.9024095519679413E-3},{"$f":"'Expend summary'!Q24","v":58503.890162754855},{"$f":"'Expend summary'!T24","v":61150.638083940947},{"$f":"'Expend summary'!V24","v":0},-1,{"$f":"IFERROR(AVERAGE(J15/$J$27,M15/$M$27,N15/$N$27,O15/$O$27),0)","v":0}]
[null,null,null,null,null,{"$f":"'Expend summary'!F25","v":"Projects"},{"$f":"'Expend summary'!I25","v":13605.29873},{"$f":"'Expend summary'!J25","v":197772.06507999997},{"$f":"'Expend summary'!L25","v":745458.19707000011},{"$f":"'Expend summary'!N25","v":1661410.9531052033},3.9612334416425918,{"$f":"IFERROR(AVERAGE(G16/$G$27,H16/$H$27,I16/$I$27,J16/$J$27),0)","v":4.3863503692861239E-2},{"$f":"'Expend summary'!Q25","v":914618.91586638126},{"$f":"'Expend summary'!T25","v":951230.99384235626},{"$f":"'Expend summary'!V25","v":0},-1,{"$f":"IFERROR(AVERAGE(J16/$J$27,M16/$M$27,N16/$N$27,O16/$O$27),0)","v":0}]
[null,null,null,null,null,{"$f":"'Expend summary'!F26","v":0},{"$f":"'Expend summary'!I26","v":0},{"$f":"'Expend summary'!J26","v":0},{"$f":"'Expend summary'!L26","v":0},{"$f":"'Expend summary'!N26","v":0},0,0,{"$f":"'Expend summary'!Q26","v":0},{"$f":"'Expend summary'!T26","v":0},{"$f":"'Expend summary'!V26","v":0},0,0]
[null,null,null,null,null,{"$f":"'Expend summary'!F27","v":0},{"$f":"'Expend summary'!I27","v":0},{"$f":"'Expend summary'!J27","v":0},{"$f":"'Expend summary'!L27","v":0},{"$f":"'Expend summary'!N27","v":0},0,0,{"$f":"'Expend summary'!Q27","v":0},{"$f":"'Expend summary'!T27","v":0},{"$f":"'Expend summary'!V27","v":0},{"$f":"IFERROR((O18/J18)^(1/3)-1,0)","v":0},0]
[null,null,null,null,null,{"$f":"'Expend summary'!F28","v":0},{"$f":"'Expend summary'!I28","v":0},{"$f":"'Expend summary'!J28","v":0},{"$f":"'Expend summary'!L28","v":0},{"$f":"'Expend summary'!N28","v":0},0,0,{"$f":"'Expend summary'!Q28","v":0},{"$f":"'Expend summary'!T28","v":0},{"$f":"'Expend summary'!V28","v":0},0,0]
[null,null,null,null,null,{"$f":"'Expend summary'!F29","v":0},{"$f":"'Expend summary'!I29","v":0},{"$f":"'Expend summary'!J29","v":0},{"$f":"'Expend summary'!L29","v":0},{"$f":"'Expend summary'!N29","v":0},0,0,{"$f":"'Expend summary'!Q29","v":0},{"$f":"'Expend summary'!T29","v":0},{"$f":"'Expend summary'!V29","v":0},0,0]
[null,null,null,null,null,{"$f":"'Expend summary'!F30","v":0},{"$f":"'Expend summary'!I30","v":0},{"$f":"'Expend summary'!J30","v":0},{"$f":"'Expend summary'!L30","v":0},{"$f":"'Expend summary'!N30","v":0},0,0,{"$f":"'Expend summary'!Q30","v":0},{"$f":"'Expend summary'!T30","v":0},{"$f":"'Expend summary'!V30","v":0},0,0]
[null,null,null,null,null,{"$f":"'Expend summary'!F31","v":0},{"$f":"'Expend summary'!I31","v":0},{"$f":"'Expend summary'!J31","v":0},{"$f":"'Expend summary'!L31","v":0},{"$f":"'Expend summary'!N31","v":0},0,0,{"$f":"'Expend summary'!Q31","v":0},{"$f":"'Expend summary'!T31","v":0},{"$f":"'Expend summary'!V31","v":0},0,0]
[null,null,null,null,null,{"$f":"'Expend summary'!F32","v":0},{"$f":"'Expend summary'!I32","v":0},{"$f":"'Expend summary'!J32","v":0},{"$f":"'Expend summary'!L32","v":0},{"$f":"'Expend summary'!N32","v":0},0,0,{"$f":"'Expend summary'!Q32","v":0},{"$f":"'Expend summary'!T32","v":0},{"$f":"'Expend summary'!V32","v":0},0,0]
[null,null,null,null,null,{"$f":"'Expend summary'!F33","v":0},{"$f":"'Expend summary'!I33","v":0},{"$f":"'Expend summary'!J33","v":0},{"$f":"'Expend summary'!L33","v":0},{"$f":"'Expend summary'!N33","v":0},0,0,{"$f":"'Expend summary'!Q33","v":0},{"$f":"'Expend summary'!T33","v":0},{"$f":"'Expend summary'!V33","v":0},0,0]
[null,null,null,null,null,{"$f":"'Expend summary'!F34","v":0},{"$f":"'Expend summary'!I34","v":0},{"$f":"'Expend summary'!J34","v":0},{"$f":"'Expend summary'!L34","v":0},{"$f":"'Expend summary'!N34","v":0},0,0,{"$f":"'Expend summary'!Q34","v":0},{"$f":"'Expend summary'!T34","v":0},{"$f":"'Expend summary'!V34","v":0},0,0]
[null,null,null,null,null,{"$f":"'Expend summary'!F35","v":0},{"$f":"'Expend summary'!I35","v":0},{"$f":"'Expend summary'!J35","v":0},{"$f":"'Expend summary'!L35","v":0},{"$f":"'Expend summary'!N35","v":0},0,0,{"$f":"'Expend summary'!Q35","v":0},{"$f":"'Expend summary'!T35","v":0},{"$f":"'Expend summary'!V35","v":0},0,0]
[null,null,null,null,null,"Total expense ",{"$f":"SUM(G12:G26)","v":11990467.63792},{"$f":"SUM(H12:H26)","v":13077380.232659999},{"$f":"SUM(I12:I26)","v":14211908.925360352},{"$f":"SUM(J12:J26)","v":15564581.248370012},9.0855200800888936E-2,{"$f":"IFERROR(AVERAGE(G27/$G$27,H27/$H$27,I27/$I$27,J27/$J$27),0)","v":1},{"$f":"SUM(M12:M26)","v":15507164.239034683},{"$f":"SUM(N12:N26)","v":16284536.679091636},{"$f":"SUM(O12:O26)","v":0},-1,{"$f":"SUBTOTAL(9,Q12:Q26)","v":0}]
[null,null,null,null,null,"Check expenditure",{"$f":"ROUND(IF(G53-G27>0,IF(G53-G27<1,0,G53-G27),G53-G27),0)","v":-1},{"$f":"ROUND(IF(H53-H27>0,IF(H53-H27<1,0,H53-H27),H53-H27),0)","v":0},{"$f":"ROUND(IF(I53-I27>0,IF(I53-I27<1,0,I53-I27),I53-I27),0)","v":0},{"$f":"ROUND(IF(J53-J27>0,IF(J53-J27<1,0,J53-J27),J53-J27),0)","v":0},null,null,{"$f":"ROUND(IF(M53-M27>0,IF(M53-M27<1,0,M53-M27),M53-M27),0)","v":0},{"$f":"ROUND(IF(N53-N27>0,IF(N53-N27<1,0,N53-N27),N53-N27),0)","v":0},{"$f":"ROUND(IF(O53-O27>0,IF(O53-O27<1,0,O53-O27),O53-O27),0)","v":0},null,null,null,null,null,null,null,null,null,null,null,null,null,null,null,null,null,null,null,null,null,null,null,null,null,null,null,null,null,null,null,null,null,null,null,null,null,null,null,null,null,null,null,null,null,null,null,null,null,null,null,null,null,null,null,null,"Table number","A.3"]
[]
[]
[null,null,null,null,null,"Statement of financial perfomance",{"$f":"Hist_year3RestatedAudited","v":"Audited\noutcome"},{"$f":"Hist_year2RestatedAudited","v":"Audited\noutcome"},{"$f":"Hist_year1Audited","v":"Audited\noutcome"},{"$f":"Cur_YearApprovedBudg","v":"Approved budget"},"Average\ngrowth\nrate\n(%)","Expen-\nditure/\ntotal:\nAverage\n(%)"," Medium-term estimate",null,null,"Average\ngrowth\nrate\n(%)","Expen-\nditure/\ntotal:\nAverage\n(%)"]
[null,null,null,null,null,{"$f":"BV6","v":"R thousand"},{"$f":"MyYearM3","v":"2022/23"},{"$f":"MyYearM2","v":"2023/24"},{"$f":"MyYearM1","v":"2024/25"},{"$f":"MyYear0","v":"2025/26"},{"$f":"MyYearM3&\"-\"&MyYear0","v":"2022/23-2025/26"},null,{"$f":"MyYearP1","v":"2026/27"},{"$f":"MyYearP2","v":"2027/28"},{"$f":"MyYearP3","v":"2028/29"},{"$f":"MyYear0&\" - \"&MyYearP3","v":"2025/26 - 2028/29"}]
[null,null,null,null,null,"Revenue"]
[null,null,null,null,null,"Tax revenue",{"$f":"SUM(Revenue!I13)","v":0},{"$f":"SUM(Revenue!J13)","v":0},{"$f":"SUM(Revenue!L13)","v":0},{"$f":"SUM(Revenue!N13)","v":0},{"$f":"ROUND(IF(ISERROR((J34/G34)^(1/3)-1),0,((J34/G34)^(1/3)-1)),3)","v":0},{"$f":"ROUND(IFERROR(AVERAGE(G34/$G$45,H34/$H$45,I34/$I$45,J34/$J$45),0),3)","v":0},{"$f":"SUM(Revenue!P13)","v":0},{"$f":"SUM(Revenue!R13)","v":0},{"$f":"SUM(Revenue!S13)","v":0},{"$f":"ROUND(IF(ISERROR((O34/J34)^(1/3)-1),0,((O34/J34)^(1/3)-1)),3)","v":0},{"$f":"ROUND(IFERROR(AVERAGE(J34/$J$45,M34/$M$45,N34/$N$45,O34/$O$45),0),3)","v":0}]
[null,null,null,null,null,"Non-tax revenue",{"$f":"SUM(G36,G43)","v":715182.73576999991},{"$f":"SUM(H36,H43)","v":616661.2215499999},{"$f":"SUM(I36,I43)","v":1632739.5569041055},{"$f":"SUM(J36,J43)","v":532723.806116155},-9.4E-2,{"$f":"ROUND(IFERROR(AVERAGE(G35/$G$45,H35/$H$45,I35/$I$45,J35/$J$45),0),3)","v":6.3E-2},{"$f":"SUM(M36,M43)","v":552813.15919012437},{"$f":"SUM(N36,N43)","v":573873.39181011461},{"$f":"SUM(O36,O43)","v":0},{"$f":"ROUND(IF(ISERROR((O35/J35)^(1/3)-1),0,((O35/J35)^(1/3)-1)),3)","v":-1},{"$f":"ROUND(IFERROR(AVERAGE(J35/$J$45,M35/$M$45,N35/$N$45,O35/$O$45),0),3)","v":0}]
[null,null,null,null,null,"Sale of goods and services other than capital assets",{"$f":"SUM(G37,G42)","v":429948.87092999992},{"$f":"SUM(H37,H42)","v":462935.73148999998},{"$f":"SUM(I37,I42)","v":431549.4111441056},{"$f":"SUM(J37,J42)","v":443999.80611615477},1.0999999999999999E-2,{"$f":"ROUND(IFERROR(AVERAGE(G36/$G$45,H36/$H$45,I36/$I$45,J36/$J$45),0),3)","v":3.2000000000000001E-2},{"$f":"SUM(M37,M42)","v":456813.79119011993},{"$f":"SUM(N37,N42)","v":470002.07563411363},{"$f":"SUM(O37,O42)","v":0},{"$f":"ROUND(IF(ISERROR((O36/J36)^(1/3)-1),0,((O36/J36)^(1/3)-1)),3)","v":-1},{"$f":"ROUND(IFERROR(AVERAGE(J36/$J$45,M36/$M$45,N36/$N$45,O36/$O$45),0),3)","v":0}]
[null,null,null,null,null,"Sales of goods and services produced by entity",{"$f":"SUM(G39:G41)","v":429948.87092999992},{"$f":"SUM(H39:H41)","v":462935.73148999998},{"$f":"SUM(I39:I41)","v":431549.4111441056},{"$f":"SUM(J39:J41)","v":443999.80611615477},1.0999999999999999E-2,{"$f":"ROUND(IFERROR(AVERAGE(G37/$G$45,H37/$H$45,I37/$I$45,J37/$J$45),0),3)","v":3.2000000000000001E-2},{"$f":"SUM(M39:M41)","v":456813.79119011993},{"$f":"SUM(N39:N41)","v":470002.07563411363},{"$f":"SUM(O39:O41)","v":0},{"$f":"ROUND(IF(ISERROR((O37/J37)^(1/3)-1),0,((O37/J37)^(1/3)-1)),3)","v":-1},{"$f":"ROUND(IFERROR(AVERAGE(J37/$J$45,M37/$M$45,N37/$N$45,O37/$O$45),0),3)","v":0}]
[null,null,null,null,null,"of which:"]
[null,null,null,null,null,"Administrative fees",{"$f":"(Revenue!I16)","v":429948.87092999992},{"$f":"(Revenue!J16)","v":462935.73148999998},{"$f":"(Revenue!L16)","v":431549.4111441056},{"$f":"(Revenue!N16)","v":443999.80611615477},1.0999999999999999E-2,{"$f":"ROUND(IFERROR(AVERAGE(G39/$G$45,H39/$H$45,I39/$I$45,J39/$J$45),0),3)","v":3.2000000000000001E-2},{"$f":"(Revenue!P16)","v":456813.79119011993},{"$f":"(Revenue!R16)","v":470002.07563411363},{"$f":"(Revenue!S16)","v":0},{"$f":"ROUND(IF(ISERROR((O39/J39)^(1/3)-1),0,((O39/J39)^(1/3)-1)),3)","v":-1},{"$f":"ROUND(IFERROR(AVERAGE(J39/$J$45,M39/$M$45,N39/$N$45,O39/$O$45),0),3)","v":0}]
[null,null,null,null,null,"Sales by market establishment",{"$f":"(Revenue!I21)","v":0},{"$f":"(Revenue!J21)","v":0},{"$f":"(Revenue!L21)","v":0},{"$f":"(Revenue!N21)","v":0},0,0,{"$f":"(Revenue!P21)","v":0},{"$f":"(Revenue!R21)","v":0},{"$f":"(Revenue!S21)","v":0},0,0]
[null,null,null,null,null,"Other sales",{"$f":"(Revenue!I26)","v":0},{"$f":"(Revenue!J26)","v":0},{"$f":"(Revenue!L26)","v":0},{"$f":"(Revenue!N26)","v":0},0,0,{"$f":"(Revenue!P26)","v":0},{"$f":"(Revenue!R26)","v":0},{"$f":"(Revenue!S26)","v":0},0,0]
[null,null,null,null,null,"Sales of scrap, waste, arms and other used current goods",{"$f":"(Revenue!I29)","v":0},{"$f":"(Revenue!J29)","v":0},{"$f":"(Revenue!L29)","v":0},{"$f":"(Revenue!N29)","v":0},0,0,{"$f":"(Revenue!P29)","v":0},{"$f":"(Revenue!R29)","v":0},{"$f":"(Revenue!S29)","v":0},0,0]
[null,null,null,null,null,"Other non-tax revenue",{"$f":"SUM(Revenue!I30,Revenue!I64)","v":285233.86483999999},{"$f":"SUM(Revenue!J30,Revenue!J64)","v":153725.49005999998},{"$f":"SUM(Revenue!L30,Revenue!L64)","v":1201190.14576},{"$f":"SUM(Revenue!N30,Revenue!N64)","v":88724.000000000233},-0.32200000000000001,3.1E-2,{"$f":"SUM(Revenue!P30,Revenue!P64)","v":95999.368000004441},{"$f":"SUM(Revenue!R30,Revenue!R64)","v":103871.31617600098},{"$f":"SUM(Revenue!S30,Revenue!S64)","v":0},-1,0]
[null,null,null,null,null,"Transfers received",{"$f":"SUM(Revenue!I44,Revenue!I63)","v":11635781},{"$f":"SUM(Revenue!J44,Revenue!J63)","v":13280696},{"$f":"SUM(Revenue!L44,Revenue!L63)","v":12388563},{"$f":"SUM(Revenue!N44,Revenue!N63)","v":15409637},9.8000000000000004E-2,0.93700000000000006,{"$f":"SUM(Revenue!P44,Revenue!P63)","v":14895308},{"$f":"SUM(Revenue!R44,Revenue!R63)","v":15455832.380799999},{"$f":"SUM(Revenue!S44,Revenue!S63)","v":0},-1,0]
[null,null,null,null,null,"Total revenue",{"$f":"SUM(G34,G35,G44:G44)","v":12350963.73577},{"$f":"SUM(H34,H35,H44:H44)","v":13897357.221549999},{"$f":"SUM(I34,I35,I44:I44)","v":14021302.556904105},{"$f":"SUM(J34,J35,J44:J44)","v":15942360.806116154},8.8999999999999996E-2,1,{"$f":"SUM(M34,M35,M44:M44)","v":15448121.159190124},{"$f":"SUM(N34,N35,N44:N44)","v":16029705.772610115},{"$f":"SUM(O34,O35,O44:O44)","v":0},-1,0]
[null,null,null,null,null,"Expenses"]
[null,null,null,null,null,"Current expenses",{"$f":"SUM(G48:G51)","v":11990466.348149998},{"$f":"SUM(H48:H51)","v":13077380.232659999},{"$f":"SUM(I48:I51)","v":14211908.925360348},{"$f":"SUM(J48:J51)","v":15564581.248370012},9.0999999999999998E-2,{"$f":"ROUND(IFERROR(AVERAGE(G53/$G$53,H53/$H$53,I53/$I$53,J53/$J$53),0),3)","v":1},{"$f":"SUM(M48:M51)","v":15507164.239034686},{"$f":"SUM(N48:N51)","v":16284536.679091636},{"$f":"SUM(O48:O51)","v":0},{"$f":"ROUND(IF(ISERROR((O47/J47)^(1/3)-1),0,((O47/J47)^(1/3)-1)),3)","v":-1},{"$f":"ROUND(IFERROR(AVERAGE(J47/$J$53,M47/$M$53,N47/$N$53,O47/$O$53),0),3)","v":0}]
[null,null,null,null,null,"Compensation of employees",{"$f":"SUM('Expend summary'!I40)","v":8304003.1408399986},{"$f":"SUM('Expend summary'!J40)","v":8983405.6334199999},{"$f":"SUM('Expend summary'!L40)","v":9643694.5542599969},{"$f":"SUM('Expend summary'!N40)","v":10339690.602510724},7.5999999999999998E-2,{"$f":"ROUND(IFERROR(AVERAGE(G48/$G$53,H48/$H$53,I48/$I$53,J48/$J$53),0),3)","v":0.68100000000000005},{"$f":"SUM('Expend summary'!Q40)","v":10333657.588951608},{"$f":"SUM('Expend summary'!T40)","v":10800172.791032134},{"$f":"SUM('Expend summary'!V40)","v":0},-1,0]
[null,null,null,null,null,"Goods and services",{"$f":"SUM('Expend summary'!I43,'Expend summary'!I99)","v":3007342.0664399993},{"$f":"SUM('Expend summary'!J43,'Expend summary'!J99)","v":3494054.6391299996},{"$f":"SUM('Expend summary'!L43,'Expend summary'!L99)","v":3837170.0052300002},{"$f":"SUM('Expend summary'!N43,'Expend summary'!N99)","v":4612829.1400200333},0.153,0.27100000000000002,{"$f":"SUM('Expend summary'!Q43,'Expend summary'!Q99)","v":4623762.7150747618},{"$f":"SUM('Expend summary'!T43,'Expend summary'!T99)","v":5005775.1792914579},{"$f":"SUM('Expend summary'!V43,'Expend summary'!V99)","v":0},-1,0]
[null,null,null,null,null,"Depreciation",{"$f":"SUM('Expend summary'!I98)","v":669908},{"$f":"SUM('Expend summary'!J98)","v":592003},{"$f":"SUM('Expend summary'!L98)","v":730826.98658035218},{"$f":"SUM('Expend summary'!N98)","v":611834.10536398564},-0.03,4.8000000000000001E-2,{"$f":"SUM('Expend summary'!Q98)","v":549506.18781142251},{"$f":"SUM('Expend summary'!T98)","v":478340.21539785026},{"$f":"SUM('Expend summary'!V98)","v":0},-1,0]
[null,null,null,null,null,"Interest, dividends and rent on land",{"$f":"SUM('Expend summary'!I105,'Expend summary'!I139)","v":9213.1408699999974},{"$f":"SUM('Expend summary'!J105,'Expend summary'!J139)","v":7916.9601100000009},{"$f":"SUM('Expend summary'!L105,'Expend summary'!L139)","v":217.37929000000003},{"$f":"SUM('Expend summary'!N105,'Expend summary'!N139)","v":227.400475269},-0.70899999999999996,0,{"$f":"SUM('Expend summary'!Q105,'Expend summary'!Q139)","v":237.74719689373953},{"$f":"SUM('Expend summary'!T105,'Expend summary'!T139)","v":248.49337019333655},{"$f":"SUM('Expend summary'!V105,'Expend summary'!V139)","v":0},-1,0]
[null,null,null,null,null,"Transfers and subsidies",{"$f":"SUM('Expend summary'!I109,'Expend summary'!I138)","v":0},{"$f":"SUM('Expend summary'!J109,'Expend summary'!J138)","v":0},{"$f":"SUM('Expend summary'!L109,'Expend summary'!L138)","v":0},{"$f":"SUM('Expend summary'!N109,'Expend summary'!N138)","v":0},0,0,{"$f":"SUM('Expend summary'!Q109,'Expend summary'!Q138)","v":0},{"$f":"SUM('Expend summary'!T109,'Expend summary'!T138)","v":0},{"$f":"SUM('Expend summary'!V109,'Expend summary'!V138)","v":0},0,0]
[null,null,null,null,null,"Total expenses",{"$f":"SUM(G47,G52:G52)","v":11990466.348149998},{"$f":"SUM(H47,H52:H52)","v":13077380.232659999},{"$f":"SUM(I47,I52:I52)","v":14211908.925360348},{"$f":"SUM(J47,J52:J52)","v":15564581.248370012},9.0999999999999998E-2,1,{"$f":"SUM(M47,M52:M52)","v":15507164.239034686},{"$f":"SUM(N47,N52:N52)","v":16284536.679091636},{"$f":"SUM(O47,O52:O52)","v":0},-1,0]
[null,null,null,null,null,"Surplus/(Deficit)",{"$f":"ROUND(IF(G45-G53>0,IF(G45-G53<1,0,G45-G53),G45-G53),0)","v":360497},{"$f":"ROUND(IF(H45-H53>0,IF(H45-H53<1,0,H45-H53),H45-H53),0)","v":819977},{"$f":"ROUND(IF(I45-I53>0,IF(I45-I53<1,0,I45-I53),I45-I53),0)","v":-190606},{"$f":"ROUND(IF(J45-J53>0,IF(J45-J53<1,0,J45-J53),J45-J53),0)","v":377780},{"$f":"ROUND(IF(ISERROR((J54/G54)^(1/3)-1),0,((J54/G54)^(1/3)-1)),3)","v":1.6E-2},null,{"$f":"ROUND(IF(M45-M53>0,IF(M45-M53<1,0,M45-M53),M45-M53),0)","v":-59043},{"$f":"ROUND(IF(N45-N53>0,IF(N45-N53<1,0,N45-N53),N45-N53),0)","v":-254831},{"$f":"ROUND(IF(O45-O53>0,IF(O45-O53<1,0,O45-O53),O45-O53),0)","v":0},{"$f":"IFERROR((O54/J54)^(1/3)-1,0)","v":-1}]
[null,null,null,null,null,"Check",{"$f":"ROUND(G54-Revenue!I70,0)","v":0},{"$f":"ROUND(H54-Revenue!J70,0)","v":0},{"$f":"ROUND(I54-Revenue!L70,0)","v":0},{"$f":"ROUND(J54-Revenue!N70,0)","v":0},null,null,{"$f":"ROUND(M54-Revenue!P70,0)","v":0},{"$f":"ROUND(N54-Revenue!R70,0)","v":0},{"$f":"ROUND(O54-Revenue!S70,0)","v":0}]
[]
[]
[null,null,null,null,null,"Cash flow direct method",{"$f":"Hist_year3RestatedAudited","v":"Audited\noutcome"},{"$f":"Hist_year2RestatedAudited","v":"Audited\noutcome"},{"$f":"Hist_year1Audited","v":"Audited\noutcome"},{"$f":"Cur_YearApprovedBudg","v":"Approved budget"},"Average\ngrowth\nrate\n(%)","Expen-\nditure/\ntotal:\nAverage\n(%)"," Medium-term estimate",null,null,"Average\ngrowth\nrate\n(%)","Expen-\nditure/\ntotal:\nAverage\n(%)"]
[null,null,null,null,null,{"$f":"BV6","v":"R thousand"},{"$f":"MyYearM3","v":"2022/23"},{"$f":"MyYearM2","v":"2023/24"},{"$f":"MyYearM1","v":"2024/25"},{"$f":"MyYear0","v":"2025/26"},{"$f":"MyYearM3&\" - \"&MyYearM1","v":"2022/23 - 2024/25"},null,{"$f":"MyYearP1","v":"2026/27"},{"$f":"MyYearP2","v":"2027/28"},{"$f":"MyYearP3","v":"2028/29"},{"$f":"MyYear0&\" - \"&MyYearP3","v":"2025/26 - 2028/29"}]
[null,null,null,null,null,"Cash flow from operating activities",{"$f":"G74-G82","v":665308.37268999964},{"$f":"H74-H82","v":856437.24493999965},{"$f":"I74-I82","v":-380523.90497189574},{"$f":"J74-J82","v":1140053.0617051907},{"$f":"ROUND(IF(ISERROR((J60/G60)^(1/3)-1),0,((J60/G60)^(1/3)-1)),3)","v":0.19700000000000001},{"$f":"ROUND(IFERROR(AVERAGE(G60/$G$87,H60/$H$87,I60/$I$87,J60/$J$87),0),3)","v":-0.94399999999999995},{"$f":"M74-M82","v":485904.0780388359},{"$f":"N74-N82","v":294684.81750541553},{"$f":"O74-O82","v":0},{"$f":"IFERROR((O60/J60)^(1/3)-1,0)","v":-1},{"$f":"IFERROR(AVERAGE(J60/$J$60,M60/$M$60,N60/$N$60,O60/$O$60),0)","v":0}]
[null,null,null,null,null,"Receipts"]
[null,null,null,null,null,"Tax receipts",{"$f":"CashFlow!I13","v":0},{"$f":"CashFlow!J13","v":0},{"$f":"CashFlow!L13","v":0},{"$f":"CashFlow!N13","v":0},{"$f":"ROUND(IF(ISERROR((J62/G62)^(1/3)-1),0,((J62/G62)^(1/3)-1)),3)","v":0},{"$f":"ROUND(IFERROR(AVERAGE(G62/$G$74,H62/$H$74,I62/$I$74,J62/$J$74),0),3)","v":0},{"$f":"CashFlow!P13","v":0},{"$f":"CashFlow!R13","v":0},{"$f":"CashFlow!S13","v":0},{"$f":"ROUND(IF(ISERROR((O62/J62)^(1/3)-1),0,((O62/J62)^(1/3)-1)),3)","v":0},{"$f":"ROUND(IFERROR(AVERAGE(J62/$J$74,M62/$M$74,N62/$N$74,O62/$O$74),0),3)","v":0}]
[null,null,null,null,null,"Non-tax receipts",{"$f":"SUM(G64,G71)","v":533406},{"$f":"SUM(H64,H71)","v":525899},{"$f":"SUM(I64,I71)","v":558019.55690410559},{"$f":"SUM(J64,J71)","v":532723.806116155},0,0.04,{"$f":"SUM(M64,M71)","v":552813.15919012437},{"$f":"SUM(N64,N71)","v":573873.39181011461},{"$f":"SUM(O64,O71)","v":0},-1,0]
[null,null,null,null,null,"Sales of goods and services other than capital assets",{"$f":"SUM(G65,G70)","v":430771},{"$f":"SUM(H65,H70)","v":377667},{"$f":"SUM(I65,I70)","v":431549.4111441056},{"$f":"SUM(J65,J70)","v":443999.80611615477},0.01,3.1E-2,{"$f":"SUM(M65,M70)","v":456813.79119011993},{"$f":"SUM(N65,N70)","v":470002.07563411363},{"$f":"SUM(O65,O70)","v":0},-1,0]
[null,null,null,null,null,"Sales of goods and services produced by entity (excl. capital assets)",{"$f":"SUM(G67:G69)","v":430771},{"$f":"SUM(H67:H69)","v":377667},{"$f":"SUM(I67:I69)","v":431549.4111441056},{"$f":"SUM(J67:J69)","v":443999.80611615477},0.01,3.1E-2,{"$f":"SUM(M67:M69)","v":456813.79119011993},{"$f":"SUM(N67:N69)","v":470002.07563411363},{"$f":"SUM(O67:O69)","v":0},-1,0]
[null,null,null,null,null,"of which:",null,null,null,null,0,0,null,null,null,0,0]
[null,null,null,null,null,"Administrative fees",{"$f":"CashFlow!I16","v":0},{"$f":"CashFlow!J16","v":0},{"$f":"CashFlow!L16","v":0},{"$f":"CashFlow!N16","v":0},0,0,{"$f":"CashFlow!P16","v":0},{"$f":"CashFlow!R16","v":0},{"$f":"CashFlow!S16","v":0},0,0]
[null,null,null,null,null,"Sales by market establishment",{"$f":"CashFlow!I21","v":0},{"$f":"CashFlow!J21","v":0},{"$f":"CashFlow!L21","v":0},{"$f":"CashFlow!N21","v":0},0,0,{"$f":"CashFlow!P21","v":0},{"$f":"CashFlow!R21","v":0},{"$f":"CashFlow!S21","v":0},0,0]
[null,null,null,null,null,"Other sales",{"$f":"CashFlow!I26","v":430771},{"$f":"CashFlow!J26","v":377667},{"$f":"CashFlow!L26","v":431549.4111441056},{"$f":"CashFlow!N26","v":443999.80611615477},0.01,3.1E-2,{"$f":"CashFlow!P26","v":456813.79119011993},{"$f":"CashFlow!R26","v":470002.07563411363},{"$f":"CashFlow!S26","v":0},-1,0]
[null,null,null,null,null,"Sales of scrap, waste, arms and other used current goods (excl capital assets)",{"$f":"CashFlow!I29","v":0},{"$f":"CashFlow!J29","v":0},{"$f":"CashFlow!L29","v":0},{"$f":"CashFlow!N29","v":0},0,0,{"$f":"CashFlow!P29","v":0},{"$f":"CashFlow!R29","v":0},{"$f":"CashFlow!S29","v":0},0,0]
[null,null,null,null,null,"Other non-tax receipts",{"$f":"SUM(CashFlow!I48,CashFlow!I49,CashFlow!I57)","v":102635},{"$f":"SUM(CashFlow!J48,CashFlow!J49,CashFlow!J57)","v":148232},{"$f":"SUM(CashFlow!L48,CashFlow!L49,CashFlow!L57)","v":126470.14575999997},{"$f":"SUM(CashFlow!N48,CashFlow!N49,CashFlow!N57)","v":88724.000000000233},-4.7E-2,8.9999999999999993E-3,{"$f":"SUM(CashFlow!P48,CashFlow!P49,CashFlow!P57)","v":95999.368000004441},{"$f":"SUM(CashFlow!R48,CashFlow!R49,CashFlow!R57)","v":103871.31617600098},{"$f":"SUM(CashFlow!S48,CashFlow!S49,CashFlow!S57)","v":0},-1,0]
[null,null,null,null,null,"Transfers received",{"$f":"SUM(CashFlow!I30,CashFlow!I56)","v":11635781},{"$f":"SUM(CashFlow!J30,CashFlow!J56)","v":13280696},{"$f":"SUM(CashFlow!L30,CashFlow!L56)","v":12388563},{"$f":"SUM(CashFlow!N30,CashFlow!N56)","v":15409637},9.8000000000000004E-2,0.96,{"$f":"SUM(CashFlow!P30,CashFlow!P56)","v":14895308},{"$f":"SUM(CashFlow!R30,CashFlow!R56)","v":15455832.380799999},{"$f":"SUM(CashFlow!S30,CashFlow!S56)","v":0},-1,0]
[null,null,null,null,null,"Financial transactions in assets and liabilities",{"$f":"CashFlow!I53","v":0},{"$f":"CashFlow!J53","v":0},{"$f":"CashFlow!L53","v":0},{"$f":"CashFlow!N53","v":0},0,0,{"$f":"CashFlow!P53","v":0},{"$f":"CashFlow!R53","v":0},{"$f":"CashFlow!S53","v":0},0,0]
[null,null,null,null,null,"Total receipts",{"$f":"SUM(G62:G63,G72:G73)","v":12169187},{"$f":"SUM(H62:H63,H72:H73)","v":13806595},{"$f":"SUM(I62:I63,I72:I73)","v":12946582.556904105},{"$f":"SUM(J62:J63,J72:J73)","v":15942360.806116154},9.4E-2,1,{"$f":"SUM(M62:M63,M72:M73)","v":15448121.159190124},{"$f":"SUM(N62:N63,N72:N73)","v":16029705.772610115},{"$f":"SUM(O62:O63,O72:O73)","v":0},-1,0]
[null,null,null,null,null,"Payment"]
[null,null,null,null,null,"Current payments",{"$f":"SUM(G77:G79)","v":11503878.62731},{"$f":"SUM(H77:H79)","v":12950157.75506},{"$f":"SUM(I77:I79)","v":13327106.461876001},{"$f":"SUM(J77:J79)","v":14802307.744410964},8.7999999999999995E-2,{"$f":"ROUND(IFERROR(AVERAGE(G76/$G$82,H76/$H$82,I76/$I$82,J76/$J$82),0),3)","v":1},{"$f":"SUM(M77:M79)","v":14962217.081151288},{"$f":"SUM(N77:N79)","v":15735020.955104699},{"$f":"SUM(O77:O79)","v":0},{"$f":"ROUND(IF(ISERROR((O76/J76)^(1/3)-1),0,((O76/J76)^(1/3)-1)),3)","v":-1},{"$f":"ROUND(IFERROR(AVERAGE(J76/$J$82,M76/$M$82,N76/$N$82,O76/$O$82),0),3)","v":0}]
[null,null,null,null,null,"Compensation of employees",{"$f":"CashFlow!I60","v":8445367.1408399995},{"$f":"CashFlow!J60","v":9498469.6334199999},{"$f":"CashFlow!L60","v":9870140.5542600006},{"$f":"CashFlow!N60","v":10339690.602510722},7.0000000000000007E-2,0.72699999999999998,{"$f":"CashFlow!P60","v":10333657.588951603},{"$f":"CashFlow!R60","v":10800172.791032141},{"$f":"CashFlow!S60","v":0},-1,0]
[null,null,null,null,null,"Goods and services",{"$f":"CashFlow!I63","v":3049297.6769499998},{"$f":"CashFlow!J63","v":3443771.1615300006},{"$f":"CashFlow!L63","v":3456748.5283260006},{"$f":"CashFlow!N63","v":4462389.7414249722},0.13500000000000001,0.27300000000000002,{"$f":"CashFlow!P63","v":4628321.7450027922},{"$f":"CashFlow!R63","v":4934599.6707023643},{"$f":"CashFlow!S63","v":0},-1,0]
[null,null,null,null,null,"Interest and rent on land",{"$f":"SUM(CashFlow!I117,CashFlow!I156)","v":9213.8095199999989},{"$f":"SUM(CashFlow!J117,CashFlow!J156)","v":7916.96011},{"$f":"SUM(CashFlow!L117,CashFlow!L156)","v":217.37929},{"$f":"SUM(CashFlow!N117,CashFlow!N156)","v":227.40047526900003},-0.70899999999999996,0,{"$f":"SUM(CashFlow!P117,CashFlow!P156)","v":237.74719689373953},{"$f":"SUM(CashFlow!R117,CashFlow!R156)","v":248.49337019333655},{"$f":"SUM(CashFlow!S117,CashFlow!S156)","v":0},-1,0]
[null,null,null,null,null,"Transfers and subsidies",{"$f":"SUM(CashFlow!I121,CashFlow!I155)","v":0},{"$f":"SUM(CashFlow!J121,CashFlow!J155)","v":0},{"$f":"SUM(CashFlow!L121,CashFlow!L155)","v":0},{"$f":"SUM(CashFlow!N121,CashFlow!N155)","v":0},0,0,{"$f":"SUM(CashFlow!P121,CashFlow!P155)","v":0},{"$f":"SUM(CashFlow!R121,CashFlow!R155)","v":0},{"$f":"SUM(CashFlow!S121,CashFlow!S155)","v":0},0,0]
[null,null,null,null,null,"Payments for financial assets",{"$f":"CashFlow!I150","v":0},{"$f":"CashFlow!J150","v":0},{"$f":"CashFlow!L150","v":0},{"$f":"CashFlow!N150","v":0},0,0,{"$f":"CashFlow!P150","v":0},{"$f":"CashFlow!R150","v":0},{"$f":"CashFlow!S150","v":0},0,0]
[null,null,null,null,null,"Total payment",{"$f":"SUM(G76,G80:G81)","v":11503878.62731},{"$f":"SUM(H76,H80:H81)","v":12950157.75506},{"$f":"SUM(I76,I80:I81)","v":13327106.461876001},{"$f":"SUM(J76,J80:J81)","v":14802307.744410964},8.7999999999999995E-2,1,{"$f":"SUM(M76,M80:M81)","v":14962217.081151288},{"$f":"SUM(N76,N80:N81)","v":15735020.955104699},{"$f":"SUM(O76,O80:O81)","v":0},-1,0]
[null,null,null,null,null,"Cash flow from advancing activities (Financial Institutions only)",{"$f":"SUM(G84:G85)","v":0},{"$f":"SUM(H84:H85)","v":0},{"$f":"SUM(I84:I85)","v":0},{"$f":"SUM(J84:J85)","v":0},0,{"$f":"ROUND(IFERROR(AVERAGE(G83/$G$83,H83/$H$83,I83/$I$83,J83/$J$83),0),3)","v":0},{"$f":"SUM(M84:M85)","v":0},{"$f":"SUM(N84:N85)","v":0},{"$f":"SUM(O84:O85)","v":0},0,{"$f":"ROUND(IFERROR(AVERAGE(J83/$J$83,M83/$M$83,N83/$N$83,O83/$O$83),0),3)","v":0}]
[null,null,null,null,null,"Disbursements and other payments",{"$f":"CashFlow!I158","v":0},{"$f":"CashFlow!J158","v":0},{"$f":"CashFlow!L158","v":0},{"$f":"CashFlow!N158","v":0},0,{"$f":"ROUND(IFERROR(AVERAGE(G84/$G$83,H84/$H$83,I84/$I$83,J84/$J$83),0),3)","v":0},{"$f":"CashFlow!P158","v":0},{"$f":"CashFlow!R158","v":0},{"$f":"CashFlow!S158","v":0},0,{"$f":"ROUND(IFERROR(AVERAGE(J84/$J$83,M84/$M$83,N84/$N$83,O84/$O$83),0),3)","v":0}]
[null,null,null,null,null,"Repayments and other receipts",{"$f":"CashFlow!I163","v":0},{"$f":"CashFlow!J163","v":0},{"$f":"CashFlow!L163","v":0},{"$f":"CashFlow!N163","v":0},0,{"$f":"ROUND(IFERROR(AVERAGE(G85/$G$83,H85/$H$83,I85/$I$83,J85/$J$83),0),3)","v":0},{"$f":"CashFlow!P163","v":0},{"$f":"CashFlow!R163","v":0},{"$f":"CashFlow!S163","v":0},0,{"$f":"ROUND(IFERROR(AVERAGE(J85/$J$83,M85/$M$83,N85/$N$83,O85/$O$83),0),3)","v":0}]
[null,null,null,null,null,"Cash flow from investing activities",{"$f":"SUM(G87:G91)","v":-779440},{"$f":"SUM(H87:H91)","v":-640760},{"$f":"SUM(I87:I91)","v":-540221.21490000002},{"$f":"SUM(J87:J91)","v":-989614.64978879236},8.3000000000000004E-2,{"$f":"ROUND(IFERROR(AVERAGE(G86/$G$86,H86/$H$86,I86/$I$86,J86/$J$86),0),3)","v":1},{"$f":"SUM(M87:M91)","v":-490463.23638710083},{"$f":"SUM(N87:N91)","v":-223510.47849298324},{"$f":"SUM(O87:O91)","v":0},-1,{"$f":"ROUND(IFERROR(AVERAGE(J86/$J$86,M86/$M$86,N86/$N$86,O86/$O$86),0),3)","v":0}]
[null,null,null,null,null,"Acquisition of property, plant, equipment and intangible assets",{"$f":"CashFlow!I169","v":-546647},{"$f":"CashFlow!J169","v":-393809},{"$f":"CashFlow!L169","v":-266549.19896999997},{"$f":"CashFlow!N169","v":-628999.92061654129},4.8000000000000001E-2,{"$f":"ROUND(IFERROR(AVERAGE(G86/$G$86,H86/$H$86,I86/$I$86,J86/$J$86),0),3)","v":1},{"$f":"CashFlow!P169","v":-258102.10350970525},{"$f":"CashFlow!R169","v":-149009.33027115281},{"$f":"CashFlow!S169","v":0},-1,0]
[null,null,null,null,null,"Investment property",{"$f":"CashFlow!I182","v":0},{"$f":"CashFlow!J182","v":0},{"$f":"CashFlow!L182","v":0},{"$f":"CashFlow!N182","v":0},0,{"$f":"ROUND(IFERROR(AVERAGE(G88/$G$86,H88/$H$86,I88/$I$86,J88/$J$86),0),3)","v":0},{"$f":"CashFlow!P182","v":0},{"$f":"CashFlow!R182","v":0},{"$f":"CashFlow!S182","v":0},0,0]
[null,null,null,null,null,"Acquisition of software and other intangible assets",{"$f":"CashFlow!I183","v":-242892},{"$f":"CashFlow!J183","v":-248243},{"$f":"CashFlow!L183","v":-273672.01592999999},{"$f":"CashFlow!N183","v":-360614.72917225107},0.14099999999999999,{"$f":"ROUND(IFERROR(AVERAGE(G89/$G$86,H89/$H$86,I89/$I$86,J89/$J$86),0),3)","v":0.39300000000000002},{"$f":"CashFlow!P183","v":-232361.13287739558},{"$f":"CashFlow!R183","v":-74501.14822183043},{"$f":"CashFlow!S183","v":0},-1,0]
[null,null,null,null,null,"Proceeds from the sale of property, plant, equipment and intangible assets",{"$f":"CashFlow!I184","v":1610},{"$f":"CashFlow!J184","v":1292},{"$f":"CashFlow!L184","v":0},{"$f":"CashFlow!N184","v":0},{"$f":"ROUND(IF(ISERROR((J90/G90)^(1/3)-1),0,((J90/G90)^(1/3)-1)),3)","v":-1},{"$f":"ROUND(IFERROR(AVERAGE(G90/$G$86,H90/$H$86,I90/$I$86,J90/$J$86),0),3)","v":-1E-3},{"$f":"CashFlow!P184","v":0},{"$f":"CashFlow!R184","v":0},{"$f":"CashFlow!S184","v":0},0,0]
[null,null,null,null,null,"Other flows from investing activities",{"$f":"CashFlow!I185","v":8489},{"$f":"CashFlow!J185","v":0},{"$f":"CashFlow!L185","v":0},{"$f":"CashFlow!N185","v":0},-1,{"$f":"ROUND(IFERROR(AVERAGE(G91/$G$86,H91/$H$86,I91/$I$86,J91/$J$86),0),3)","v":-3.0000000000000001E-3},{"$f":"CashFlow!P185","v":0},{"$f":"CashFlow!R185","v":0},{"$f":"CashFlow!S185","v":0},0,0]
[null,null,null,null,null,"Cash flow from financing activities",{"$f":"SUM(G93:G94,G95:G97)","v":2232},{"$f":"SUM(H93:H94,H95:H97)","v":-13776},{"$f":"SUM(I93:I94,I95:I97)","v":-20542},{"$f":"SUM(J93:J94,J95:J97)","v":0},-1,{"$f":"ROUND(IFERROR(AVERAGE(G92/$G$92,H92/$H$92,I92/$I$92,J92/$J$92),0),3)","v":0},{"$f":"SUM(M93:M94,M95:M97)","v":-8737},{"$f":"SUM(N93:N94,N95:N97)","v":0},{"$f":"SUM(O93:O94,O95:O97)","v":0},0,{"$f":"ROUND(IFERROR(AVERAGE(J92/$J$92,M92/$M$92,N92/$N$92,O92/$O$92),0),3)","v":0}]
[null,null,null,null,null,"Deferred income",{"$f":"CashFlow!I196","v":0},{"$f":"CashFlow!J196","v":0},{"$f":"CashFlow!L196","v":0},{"$f":"CashFlow!N196","v":0},0,0,{"$f":"CashFlow!P196","v":0},{"$f":"CashFlow!R196","v":0},{"$f":"CashFlow!S196","v":0},0,0]
[null,null,null,null,null,"Borrowing activities",{"$f":"CashFlow!I199","v":0},{"$f":"CashFlow!J199","v":0},{"$f":"CashFlow!L199","v":0},{"$f":"CashFlow!N199","v":0},0,0,{"$f":"CashFlow!P199","v":0},{"$f":"CashFlow!R199","v":0},{"$f":"CashFlow!S199","v":0},0,0]
[null,null,null,null,null,"Repayment of finance leases",{"$f":"CashFlow!I211","v":6520},{"$f":"CashFlow!J211","v":-6620},{"$f":"CashFlow!L211","v":-20542},{"$f":"CashFlow!N211","v":0},-1,0,{"$f":"CashFlow!P211","v":-8737},{"$f":"CashFlow!R211","v":0},{"$f":"CashFlow!S211","v":0},0,0]
[null,null,null,null,null,"Special reserve grant",{"$f":"CashFlow!I212","v":0},{"$f":"CashFlow!J212","v":0},{"$f":"CashFlow!L212","v":0},{"$f":"CashFlow!N212","v":0},0,0,{"$f":"CashFlow!P212","v":0},{"$f":"CashFlow!R212","v":0},{"$f":"CashFlow!S212","v":0},0,0]
[null,null,null,null,null,"Other flows from financing activities",{"$f":"SUM(CashFlow!I213:I215)","v":-4288},{"$f":"SUM(CashFlow!J213:J215)","v":-7156},{"$f":"SUM(CashFlow!L213:L215)","v":0},{"$f":"SUM(CashFlow!N213:N215)","v":0},-1,0,{"$f":"SUM(CashFlow!P213:P215)","v":0},{"$f":"SUM(CashFlow!R213:R215)","v":0},{"$f":"SUM(CashFlow!S213:S215)","v":0},0,0]
[null,null,null,null,null,"Net increase / (decrease) in cash and cash equivalents",{"$f":"SUM(G60,G83,G86,G92)","v":-111899.62731000036},{"$f":"SUM(H60,H83,H86,H92)","v":201901.24493999965},{"$f":"SUM(I60,I83,I86,I92)","v":-941287.11987189576},{"$f":"SUM(J60,J83,J86,J92)","v":150438.41191639833},{"$f":"ROUND(IF(ISERROR((J98/G98)^(1/3)-1),0,((J98/G98)^(1/3)-1)),3)","v":-2.1040000000000001},null,{"$f":"SUM(M60,M83,M86,M92)","v":-13296.158348264929},{"$f":"SUM(N60,N83,N86,N92)","v":71174.33901243229},{"$f":"SUM(O60,O83,O86,O92)","v":0},-1]
[null,null,null,null,null,"Check",{"$f":"ROUND(G98-CashFlow!I216,0)","v":0},{"$f":"ROUND(H98-CashFlow!J216,0)","v":0},{"$f":"ROUND(I98-CashFlow!L216,0)","v":0},{"$f":"ROUND(J98-CashFlow!N216,0)","v":0},null,null,{"$f":"ROUND(M98-CashFlow!P216,0)","v":0},{"$f":"ROUND(N98-CashFlow!R216,0)","v":0},{"$f":"ROUND(O98-CashFlow!S216,0)","v":0}]
[]
[]
[null,null,null,null,null,"Cash flow indirect method",{"$f":"Hist_year3RestatedAudited","v":"Audited\noutcome"},{"$f":"Hist_year2RestatedAudited","v":"Audited\noutcome"},{"$f":"Hist_year1Audited","v":"Audited\noutcome"},{"$f":"Cur_YearApprovedBudg","v":"Approved budget"},"Average\ngrowth\nrate\n(%)","Expen-\nditure/\ntotal:\nAverage\n(%)"," Medium-term estimate",null,null,"Average\ngrowth\nrate\n(%)","Expen-\nditure/\ntotal:\nAverage\n(%)"]
[null,null,null,null,null,{"$f":"BV6","v":"R thousand"},{"$f":"MyYearM3","v":"2022/23"},{"$f":"MyYearM2","v":"2023/24"},{"$f":"MyYearM1","v":"2024/25"},{"$f":"MyYear0","v":"2025/26"},{"$f":"MyYearM3&\" - \"&MyYearM1","v":"2022/23 - 2024/25"},null,{"$f":"MyYearP1","v":"2026/27"},{"$f":"MyYearP2","v":"2027/28"},{"$f":"MyYearP3","v":"2028/29"},{"$f":"MyYear0&\" - \"&MyYearP3","v":"2025/26 - 2028/29"}]
[null,null,null,null,null,"Cash flow from operating activities",{"$f":"SUM(G105:G106,G113)","v":0},{"$f":"SUM(H105:H106,H113)","v":0},{"$f":"SUM(I105:I106,I113)","v":0},{"$f":"SUM(J105:J106,J113)","v":0},{"$f":"ROUND(IF(ISERROR((J104/G104)^(1/3)-1),0,((J104/G104)^(1/3)-1)),3)","v":0},{"$f":"ROUND(IFERROR(AVERAGE(G104/$G$104,H104/$H$104,I104/$I$104,J104/$J$104),0),3)","v":0},{"$f":"SUM(M105:M106,M113)","v":0},{"$f":"SUM(N105:N106,N113)","v":0},{"$f":"SUM(O105:O106,O113)","v":0},{"$f":"ROUND(IF(ISERROR((O104/J104)^(1/3)-1),0,((O104/J104)^(1/3)-1)),3)","v":0},{"$f":"ROUND(IFERROR(AVERAGE(J104/$J$104,M104/$M$104,N104/$N$104,O104/$O$104),0),3)","v":0}]
[null,null,null,null,null,"Cash generated from operations before working capital",{"$f":"CashFlowIndirect!I12","v":0},{"$f":"CashFlowIndirect!J12","v":0},{"$f":"CashFlowIndirect!L12","v":0},{"$f":"CashFlowIndirect!N12","v":0},{"$f":"ROUND(IF(ISERROR((J105/G105)^(1/3)-1),0,((J105/G105)^(1/3)-1)),3)","v":0},0,{"$f":"CashFlowIndirect!P12","v":0},{"$f":"CashFlowIndirect!R12","v":0},{"$f":"CashFlowIndirect!S12","v":0},{"$f":"ROUND(IF(ISERROR((O105/J105)^(1/3)-1),0,((O105/J105)^(1/3)-1)),3)","v":0},0]
[null,null,null,null,null,"Changes in working capital   ",{"$f":"SUM(G107:G112)","v":0},{"$f":"SUM(H107:H112)","v":0},{"$f":"SUM(I107:I112)","v":0},{"$f":"SUM(J107:J112)","v":0},{"$f":"ROUND(IF(ISERROR((J106/G106)^(1/3)-1),0,((J106/G106)^(1/3)-1)),3)","v":0},0,{"$f":"SUM(M107:M112)","v":0},{"$f":"SUM(N107:N112)","v":0},{"$f":"SUM(O107:O112)","v":0},0,0]
[null,null,null,null,null,"(Increase)/decrease in inventories",{"$f":"CashFlowIndirect!I14","v":0},{"$f":"CashFlowIndirect!J14","v":0},{"$f":"CashFlowIndirect!L14","v":0},{"$f":"CashFlowIndirect!N14","v":0},{"$f":"ROUND(IF(ISERROR((J107/G107)^(1/3)-1),0,((J107/G107)^(1/3)-1)),3)","v":0},0,{"$f":"CashFlowIndirect!P14","v":0},{"$f":"CashFlowIndirect!R14","v":0},{"$f":"CashFlowIndirect!S14","v":0},0,0]
[null,null,null,null,null,"(Increase)/decrease in trade and other receivables",{"$f":"CashFlowIndirect!I15","v":0},{"$f":"CashFlowIndirect!J15","v":0},{"$f":"CashFlowIndirect!L15","v":0},{"$f":"CashFlowIndirect!N15","v":0},0,0,{"$f":"CashFlowIndirect!P15","v":0},{"$f":"CashFlowIndirect!R15","v":0},{"$f":"CashFlowIndirect!S15","v":0},0,0]
[null,null,null,null,null,"Increase/(decrease) in trade and other payables",{"$f":"CashFlowIndirect!I16","v":0},{"$f":"CashFlowIndirect!J16","v":0},{"$f":"CashFlowIndirect!L16","v":0},{"$f":"CashFlowIndirect!N16","v":0},0,0,{"$f":"CashFlowIndirect!P16","v":0},{"$f":"CashFlowIndirect!R16","v":0},{"$f":"CashFlowIndirect!S16","v":0},0,0]
[null,null,null,null,null,"Increase/(decrease) in payments received in advance",{"$f":"CashFlowIndirect!I17","v":0},{"$f":"CashFlowIndirect!J17","v":0},{"$f":"CashFlowIndirect!L17","v":0},{"$f":"CashFlowIndirect!N17","v":0},0,0,{"$f":"CashFlowIndirect!P17","v":0},{"$f":"CashFlowIndirect!R17","v":0},{"$f":"CashFlowIndirect!S17","v":0},0,0]
[null,null,null,null,null,"Increase/(decrease) in provisions",{"$f":"CashFlowIndirect!I18","v":0},{"$f":"CashFlowIndirect!J18","v":0},{"$f":"CashFlowIndirect!L18","v":0},{"$f":"CashFlowIndirect!N18","v":0},0,0,{"$f":"CashFlowIndirect!P18","v":0},{"$f":"CashFlowIndirect!R18","v":0},{"$f":"CashFlowIndirect!S18","v":0},0,0]
[null,null,null,null,null,"Other working capital movements",{"$f":"CashFlowIndirect!I19","v":0},{"$f":"CashFlowIndirect!J19","v":0},{"$f":"CashFlowIndirect!L19","v":0},{"$f":"CashFlowIndirect!N19","v":0},0,0,{"$f":"CashFlowIndirect!P19","v":0},{"$f":"CashFlowIndirect!R19","v":0},{"$f":"CashFlowIndirect!S19","v":0},0,0]
[null,null,null,null,null,"Cash generated from operations after working capital",{"$f":"SUM(G114:G120)","v":0},{"$f":"SUM(H114:H120)","v":0},{"$f":"SUM(I114:I120)","v":0},{"$f":"SUM(J114:J120)","v":0},{"$f":"ROUND(IF(ISERROR((J113/G113)^(1/3)-1),0,((J113/G113)^(1/3)-1)),3)","v":0},0,{"$f":"SUM(M114:M120)","v":0},{"$f":"SUM(N114:N120)","v":0},{"$f":"SUM(O114:O120)","v":0},0,0]
[null,null,null,null,null,"Interest received",{"$f":"CashFlowIndirect!I21","v":0},{"$f":"CashFlowIndirect!J21","v":0},{"$f":"CashFlowIndirect!L21","v":0},{"$f":"CashFlowIndirect!N21","v":0},0,0,{"$f":"CashFlowIndirect!P21","v":0},{"$f":"CashFlowIndirect!R21","v":0},{"$f":"CashFlowIndirect!S21","v":0},0,0]
[null,null,null,null,null,"Interest paid",{"$f":"CashFlowIndirect!I22","v":0},{"$f":"CashFlowIndirect!J22","v":0},{"$f":"CashFlowIndirect!L22","v":0},{"$f":"CashFlowIndirect!N22","v":0},0,0,{"$f":"CashFlowIndirect!P22","v":0},{"$f":"CashFlowIndirect!R22","v":0},{"$f":"CashFlowIndirect!S22","v":0},0,0]
[null,null,null,null,null,"Dividends received",{"$f":"CashFlowIndirect!I23","v":0},{"$f":"CashFlowIndirect!J23","v":0},{"$f":"CashFlowIndirect!L23","v":0},{"$f":"CashFlowIndirect!N23","v":0},{"$f":"ROUND(IF(ISERROR((J116/G116)^(1/3)-1),0,((J116/G116)^(1/3)-1)),3)","v":0},0,{"$f":"CashFlowIndirect!P23","v":0},{"$f":"CashFlowIndirect!R23","v":0},{"$f":"CashFlowIndirect!S23","v":0},0,0]
[null,null,null,null,null,"Dividends paid",{"$f":"CashFlowIndirect!I24","v":0},{"$f":"CashFlowIndirect!J24","v":0},{"$f":"CashFlowIndirect!L24","v":0},{"$f":"CashFlowIndirect!N24","v":0},0,{"$f":"ROUND(IFERROR(AVERAGE(G117/$G$104,H117/$H$104,I117/$I$104,J117/$J$104),0),3)","v":0},{"$f":"CashFlowIndirect!P24","v":0},{"$f":"CashFlowIndirect!R24","v":0},{"$f":"CashFlowIndirect!S24","v":0},0,0]
[null,null,null,null,null,"Tax benefit",{"$f":"CashFlowIndirect!I25","v":0},{"$f":"CashFlowIndirect!J25","v":0},{"$f":"CashFlowIndirect!L25","v":0},{"$f":"CashFlowIndirect!N25","v":0},0,0,{"$f":"CashFlowIndirect!P25","v":0},{"$f":"CashFlowIndirect!R25","v":0},{"$f":"CashFlowIndirect!S25","v":0},0,0]
[null,null,null,null,null,"Tax payment",{"$f":"CashFlowIndirect!I26","v":0},{"$f":"CashFlowIndirect!J26","v":0},{"$f":"CashFlowIndirect!L26","v":0},{"$f":"CashFlowIndirect!N26","v":0},0,0,{"$f":"CashFlowIndirect!P26","v":0},{"$f":"CashFlowIndirect!R26","v":0},{"$f":"CashFlowIndirect!S26","v":0},{"$f":"ROUND(IF(ISERROR((O119/J119)^(1/3)-1),0,((O119/J119)^(1/3)-1)),3)","v":0},0]
[null,null,null,null,null,"Other changes",{"$f":"CashFlowIndirect!I27","v":0},{"$f":"CashFlowIndirect!J27","v":0},{"$f":"CashFlowIndirect!L27","v":0},{"$f":"CashFlowIndirect!N27","v":0},0,0,{"$f":"CashFlowIndirect!P27","v":0},{"$f":"CashFlowIndirect!R27","v":0},{"$f":"CashFlowIndirect!S27","v":0},0,0]
[null,null,null,null,null,"Cash flow from investing activities",{"$f":"SUM(G122:G126)","v":0},{"$f":"SUM(H122:H126)","v":0},{"$f":"SUM(I122:I126)","v":0},{"$f":"SUM(J122:J126)","v":0},0,{"$f":"ROUND(IFERROR(AVERAGE(G121/$G$121,H121/$H$121,I121/$I$121,J121/$J$121),0),3)","v":0},{"$f":"SUM(M122:M126)","v":0},{"$f":"SUM(N122:N126)","v":0},{"$f":"SUM(O122:O126)","v":0},0,{"$f":"ROUND(IFERROR(AVERAGE(J121/$J$121,M121/$M$121,N121/$N$121,O121/$O$121),0),3)","v":0}]
[null,null,null,null,null,"Acquisition of property, plant, equipment and intangible assets",{"$f":"CashFlowIndirect!I29","v":0},{"$f":"CashFlowIndirect!J29","v":0},{"$f":"CashFlowIndirect!L29","v":0},{"$f":"CashFlowIndirect!N29","v":0},0,0,{"$f":"CashFlowIndirect!P29","v":0},{"$f":"CashFlowIndirect!R29","v":0},{"$f":"CashFlowIndirect!S29","v":0},0,{"$f":"ROUND(IFERROR(AVERAGE(J122/$J$121,M122/$M$121,N122/$N$121,O122/$O$121),0),3)","v":0}]
[null,null,null,null,null,"Investment property",{"$f":"CashFlowIndirect!I42","v":0},{"$f":"CashFlowIndirect!J42","v":0},{"$f":"CashFlowIndirect!L42","v":0},{"$f":"CashFlowIndirect!N42","v":0},0,0,{"$f":"CashFlowIndirect!P42","v":0},{"$f":"CashFlowIndirect!R42","v":0},{"$f":"CashFlowIndirect!S42","v":0},0,{"$f":"ROUND(IFERROR(AVERAGE(J123/$J$121,M123/$M$121,N123/$N$121,O123/$O$121),0),3)","v":0}]
[null,null,null,null,null,"Acquisition of software and other intangible assets",{"$f":"CashFlowIndirect!I43","v":0},{"$f":"CashFlowIndirect!J43","v":0},{"$f":"CashFlowIndirect!L43","v":0},{"$f":"CashFlowIndirect!N43","v":0},0,0,{"$f":"CashFlowIndirect!P43","v":0},{"$f":"CashFlowIndirect!R43","v":0},{"$f":"CashFlowIndirect!S43","v":0},0,{"$f":"ROUND(IFERROR(AVERAGE(J1121/$J$121,M1121/$M$121,N1121/$N$121,O1121/$O$121),0),3)","v":0}]
[null,null,null,null,null,"Proceeds from the sale of property, plant, equipment and intangible assets",{"$f":"CashFlowIndirect!I44","v":0},{"$f":"CashFlowIndirect!J44","v":0},{"$f":"CashFlowIndirect!L44","v":0},{"$f":"CashFlowIndirect!N44","v":0},0,0,{"$f":"CashFlowIndirect!P44","v":0},{"$f":"CashFlowIndirect!R44","v":0},{"$f":"CashFlowIndirect!S44","v":0},0,{"$f":"ROUND(IFERROR(AVERAGE(J125/$J$121,M125/$M$121,N125/$N$121,O125/$O$121),0),3)","v":0}]
[null,null,null,null,null,"Other flows from investing activities",{"$f":"CashFlowIndirect!I45","v":0},{"$f":"CashFlowIndirect!J45","v":0},{"$f":"CashFlowIndirect!L45","v":0},{"$f":"CashFlowIndirect!N45","v":0},0,0,{"$f":"CashFlowIndirect!P45","v":0},{"$f":"CashFlowIndirect!R45","v":0},{"$f":"CashFlowIndirect!S45","v":0},0,{"$f":"ROUND(IFERROR(AVERAGE(J126/$J$121,M126/$M$121,N126/$N$121,O126/$O$121),0),3)","v":0}]
[null,null,null,null,null,"Cash flow from financing activities",{"$f":"SUM(G128:G129,G130:G131)","v":0},{"$f":"SUM(H128:H129,H130:H131)","v":0},{"$f":"SUM(I128:I129,I130:I131)","v":0},{"$f":"SUM(J128:J129,J130:J131)","v":0},0,{"$f":"ROUND(IFERROR(AVERAGE(G127/$G$127,H127/$H$127,I127/$I$127,J127/$J$127),0),3)","v":0},{"$f":"SUM(M128:M129,M130:M131)","v":0},{"$f":"SUM(N128:N129,N130:N131)","v":0},{"$f":"SUM(O128:O129,O130:O131)","v":0},0,{"$f":"ROUND(IFERROR(AVERAGE(J127/$J$127,M127/$M$127,N127/$N$127,O127/$O$127),0),3)","v":0}]
[null,null,null,null,null,"Deferred income",{"$f":"CashFlowIndirect!I56","v":0},{"$f":"CashFlowIndirect!J56","v":0},{"$f":"CashFlowIndirect!L56","v":0},{"$f":"CashFlowIndirect!N56","v":0},0,{"$f":"ROUND(IFERROR(AVERAGE(G128/$G$127,H128/$H$127,I128/$I$127,J128/$J$127),0),3)","v":0},{"$f":"CashFlowIndirect!P56","v":0},{"$f":"CashFlowIndirect!R56","v":0},{"$f":"CashFlowIndirect!S56","v":0},0,{"$f":"ROUND(IFERROR(AVERAGE(J1127/$J$127,M1127/$M$127,N1127/$N$127,O1127/$O$127),0),3)","v":0}]
[null,null,null,null,null,"Borrowing activities",{"$f":"CashFlowIndirect!I59","v":0},{"$f":"CashFlowIndirect!J59","v":0},{"$f":"CashFlowIndirect!L59","v":0},{"$f":"CashFlowIndirect!N59","v":0},0,{"$f":"ROUND(IFERROR(AVERAGE(G129/$G$127,H129/$H$127,I129/$I$127,J129/$J$127),0),3)","v":0},{"$f":"CashFlowIndirect!P59","v":0},{"$f":"CashFlowIndirect!R59","v":0},{"$f":"CashFlowIndirect!S59","v":0},0,{"$f":"ROUND(IFERROR(AVERAGE(J129/$J$127,M129/$M$127,N129/$N$127,O129/$O$127),0),3)","v":0}]
[null,null,null,null,null,"Repayment of finance leases",{"$f":"CashFlowIndirect!I71","v":0},{"$f":"CashFlowIndirect!J71","v":0},{"$f":"CashFlowIndirect!L71","v":0},{"$f":"CashFlowIndirect!N71","v":0},0,{"$f":"ROUND(IFERROR(AVERAGE(G130/$G$127,H130/$H$127,I130/$I$127,J130/$J$127),0),3)","v":0},{"$f":"CashFlowIndirect!P71","v":0},{"$f":"CashFlowIndirect!R71","v":0},{"$f":"CashFlowIndirect!S71","v":0},{"$f":"ROUND(IF(ISERROR((O130/J130)^(1/3)-1),0,((O130/J130)^(1/3)-1)),3)","v":0},{"$f":"ROUND(IFERROR(AVERAGE(J130/$J$127,M130/$M$127,N130/$N$127,O130/$O$127),0),3)","v":0}]
[null,null,null,null,null,"Other flows from financing activities",{"$f":"SUM(CashFlowIndirect!I73:I75)","v":0},{"$f":"SUM(CashFlowIndirect!J73:J75)","v":0},{"$f":"SUM(CashFlowIndirect!L73:L75)","v":0},{"$f":"SUM(CashFlowIndirect!N73:N75)","v":0},{"$f":"ROUND(IF(ISERROR((J131/G131)^(1/3)-1),0,((J131/G131)^(1/3)-1)),3)","v":0},{"$f":"ROUND(IFERROR(AVERAGE(G131/$G$127,H131/$H$127,I131/$I$127,J131/$J$127),0),3)","v":0},{"$f":"SUM(CashFlowIndirect!P73:P75)","v":0},{"$f":"SUM(CashFlowIndirect!R73:R75)","v":0},{"$f":"SUM(CashFlowIndirect!S73:S75)","v":0},0,{"$f":"ROUND(IFERROR(AVERAGE(J131/$J$127,M131/$M$127,N131/$N$127,O131/$O$127),0),3)","v":0}]
[null,null,null,null,null,"Net increase / (decrease) in cash and cash equivalents",{"$f":"SUM(G104,G121,G127)","v":0},{"$f":"SUM(H104,H121,H127)","v":0},{"$f":"SUM(I104,I121,I127)","v":0},{"$f":"SUM(J104,J121,J127)","v":0},0,{"$f":"ROUND(IFERROR(AVERAGE(G132/$G$132,H132/$H$132,I132/$I$132,J132/$J$132),0),3)","v":0},{"$f":"SUM(M104,M121,M127)","v":0},{"$f":"SUM(N104,N121,N127)","v":0},{"$f":"SUM(O104,O121,O127)","v":0},0,{"$f":"ROUND(IFERROR(AVERAGE(J132/$J$132,M132/$M$132,N132/$N$132,O132/$O$132),0),3)","v":0}]
[null,null,null,null,null,"Check",{"$f":"ROUND(G132-CashFlowIndirect!I76,0)","v":0},{"$f":"ROUND(H132-CashFlowIndirect!J76,0)","v":0},{"$f":"ROUND(I132-CashFlowIndirect!L76,0)","v":0},{"$f":"ROUND(J132-CashFlowIndirect!N76,0)","v":0},null,null,{"$f":"ROUND(M132-CashFlowIndirect!P76,0)","v":0},{"$f":"ROUND(N132-CashFlowIndirect!R76,0)","v":0},{"$f":"ROUND(O132-CashFlowIndirect!S76,0)","v":0}]
[]
[null,null,null,null,null,"Financial position",{"$f":"Hist_year3RestatedAudited","v":"Audited\noutcome"},{"$f":"Hist_year2RestatedAudited","v":"Audited\noutcome"},{"$f":"Hist_year1Audited","v":"Audited\noutcome"},{"$f":"Cur_YearApprovedBudg","v":"Approved budget"},"Average\ngrowth\nrate\n(%)","Net change/\ntotal:\nAverage\n(%)"," Medium-term estimate",null,null,"Average\ngrowth\nrate\n(%)","Net change/\ntotal:\nAverage\n(%)"]
[null,null,null,null,null,null,{"$f":"MyYearM3","v":"2022/23"},{"$f":"MyYearM2","v":"2023/24"},{"$f":"MyYearM1","v":"2024/25"},{"$f":"MyYear0","v":"2025/26"},{"$f":"MyYearM3& \" - \" &MyYear0","v":"2022/23 - 2025/26"},null,{"$f":"MyYearP1","v":"2026/27"},{"$f":"MyYearP2","v":"2027/28"},{"$f":"MyYearP3","v":"2028/29"},{"$f":"MyYear0&\" - \"&MyYearP3","v":"2025/26 - 2028/29"}]
[null,null,null,null,null,"Carrying value of assets",{"$f":"SUM(FinancialPosition!I45:I50)","v":4431766},{"$f":"SUM(FinancialPosition!J45:J50)","v":4480573},{"$f":"SUM(FinancialPosition!L45:L50)","v":4289967.2283196477},{"$f":"SUM(FinancialPosition!N45:N50)","v":4667747.7727444544},{"$f":"ROUND(IF(ISERROR((J137/G137)^(1/3)-1),0,((J137/G137)^(1/3)-1)),3)","v":1.7000000000000001E-2},{"$f":"ROUND(IFERROR(AVERAGE(G137/$G$152,H137/$H$152,I137/$I$152,J137/$J$152),0),3)","v":0.73},{"$f":"SUM(FinancialPosition!P45:P50)","v":4608704.8213201314},{"$f":"SUM(FinancialPosition!R45:R50)","v":4353875.0844152644},{"$f":"SUM(FinancialPosition!S45:S50)","v":0},{"$f":"ROUND(IF(ISERROR((O137/J137)^(1/3)-1),0,((O137/J137)^(1/3)-1)),3)","v":-1},{"$f":"ROUND(IFERROR(AVERAGE(J137/$J$152,M137/$M$152,N137/$N$152,O137/$O$152),0),3)","v":0}]
[null,null,null,null,null,"of which:",null,null,null,null,0,0,null,null,null,0,0]
[null,null,null,null,null,"Acquisition of assets",{"$f":"G87","v":-546647},{"$f":"H87","v":-393809},{"$f":"I87","v":-266549.19896999997},{"$f":"J87","v":-628999.92061654129},4.8000000000000001E-2,-7.3999999999999996E-2,{"$f":"M87","v":-258102.10350970525},{"$f":"N87","v":-149009.33027115281},{"$f":"O87","v":0},-1,0]
[null,null,null,null,null,"Investments",{"$f":"SUM(FinancialPosition!I22:I23,FinancialPosition!I38:I42)","v":0},{"$f":"SUM(FinancialPosition!J22,FinancialPosition!J23,FinancialPosition!J38:J42)","v":0},{"$f":"SUM(FinancialPosition!L22,FinancialPosition!L23,FinancialPosition!L38:L42)","v":0},{"$f":"SUM(FinancialPosition!N22,FinancialPosition!N23,FinancialPosition!N38:N42)","v":0},0,0,{"$f":"SUM(FinancialPosition!P22,FinancialPosition!P23,FinancialPosition!P38:P42)","v":0},{"$f":"SUM(FinancialPosition!R22,FinancialPosition!R23,FinancialPosition!R38:R42)","v":0},{"$f":"SUM(FinancialPosition!S22,FinancialPosition!S23,FinancialPosition!S38:S42)","v":0},0,0]
[null,null,null,null,null,"Inventory",{"$f":"FinancialPosition!I19","v":19581},{"$f":"FinancialPosition!J19","v":22335},{"$f":"FinancialPosition!L19","v":27065},{"$f":"FinancialPosition!N19","v":28065},0.127,4.0000000000000001E-3,{"$f":"FinancialPosition!P19","v":30065},{"$f":"FinancialPosition!R19","v":32065},{"$f":"FinancialPosition!S19","v":0},-1,0]
[null,null,null,null,null,"Loans",{"$f":"SUM(FinancialPosition!I20,FinancialPosition!I37)","v":0},{"$f":"SUM(FinancialPosition!J20,FinancialPosition!J37)","v":0},{"$f":"SUM(FinancialPosition!L20,FinancialPosition!L37)","v":0},{"$f":"SUM(FinancialPosition!N20,FinancialPosition!N37)","v":0},0,0,{"$f":"SUM(FinancialPosition!P20,FinancialPosition!P37)","v":0},{"$f":"SUM(FinancialPosition!R20,FinancialPosition!R37)","v":0},{"$f":"SUM(FinancialPosition!S20,FinancialPosition!S37)","v":0},0,0]
[null,null,null,null,null,"Accrued investment interest",{"$f":"FinancialPosition!I21","v":0},{"$f":"FinancialPosition!J21","v":0},{"$f":"FinancialPosition!L21","v":0},{"$f":"FinancialPosition!N21","v":0},0,0,{"$f":"FinancialPosition!P21","v":0},{"$f":"FinancialPosition!R21","v":0},{"$f":"FinancialPosition!S21","v":0},0,0]
[null,null,null,null,null,"Receivables and prepayments",{"$f":"SUM(FinancialPosition!I14:I16,FinancialPosition!I24,FinancialPosition!I32:I33,FinancialPosition!I29,FinancialPosition!I51)","v":483430},{"$f":"SUM(FinancialPosition!J14:J16,FinancialPosition!J24,FinancialPosition!J32:J33,FinancialPosition!J29,FinancialPosition!J51)","v":652383},{"$f":"SUM(FinancialPosition!L14:L16,FinancialPosition!L24,FinancialPosition!L32:L33,FinancialPosition!L29,FinancialPosition!L51)","v":652383},{"$f":"SUM(FinancialPosition!N14:N16,FinancialPosition!N24,FinancialPosition!N32:N33,FinancialPosition!N29,FinancialPosition!N51)","v":686383},0.124,0.10100000000000001,{"$f":"SUM(FinancialPosition!P14:P16,FinancialPosition!P24,FinancialPosition!P32:P33,FinancialPosition!P29,FinancialPosition!P51)","v":688383},{"$f":"SUM(FinancialPosition!R14:R16,FinancialPosition!R24,FinancialPosition!R32:R33,FinancialPosition!R29,FinancialPosition!R51)","v":656383},{"$f":"SUM(FinancialPosition!S14:S16,FinancialPosition!S24,FinancialPosition!S32:S33,FinancialPosition!S29,FinancialPosition!S51)","v":0},-1,0]
[null,null,null,null,null,"Cash and cash equivalents",{"$f":"FinancialPosition!I13","v":1309476},{"$f":"FinancialPosition!J13","v":1511372},{"$f":"FinancialPosition!L13","v":570050.88012810657},{"$f":"FinancialPosition!N13","v":720453.72464450356},-0.18099999999999999,0.16400000000000001,{"$f":"FinancialPosition!P13","v":707120.38057954051},{"$f":"FinancialPosition!R13","v":778255.85308087803},{"$f":"FinancialPosition!S13","v":0},-1,0]
[null,null,null,null,null,"Non-current assets held for sale",{"$f":"FinancialPosition!I25","v":0},{"$f":"FinancialPosition!J25","v":0},{"$f":"FinancialPosition!L25","v":0},{"$f":"FinancialPosition!N25","v":0},0,0,{"$f":"FinancialPosition!P25","v":0},{"$f":"FinancialPosition!R25","v":0},{"$f":"FinancialPosition!S25","v":0},0,0]
[null,null,null,null,null,"Defined benefit plan assets",{"$f":"FinancialPosition!I44","v":0},{"$f":"FinancialPosition!J44","v":0},{"$f":"FinancialPosition!L44","v":0},{"$f":"FinancialPosition!N44","v":0},0,0,{"$f":"FinancialPosition!P44","v":0},{"$f":"FinancialPosition!R44","v":0},{"$f":"FinancialPosition!S44","v":0},0,0]
[null,null,null,null,null,"Taxation",{"$f":"SUM(FinancialPosition!I17:I18,FinancialPosition!I43)","v":0},{"$f":"SUM(FinancialPosition!J17:J18,FinancialPosition!J43)","v":0},{"$f":"SUM(FinancialPosition!L17:L18,FinancialPosition!L43)","v":0},{"$f":"SUM(FinancialPosition!N17:N18,FinancialPosition!N43)","v":0},0,0,{"$f":"SUM(FinancialPosition!P17:P18,FinancialPosition!P43)","v":0},{"$f":"SUM(FinancialPosition!R17:R18,FinancialPosition!R43)","v":0},{"$f":"SUM(FinancialPosition!S17:S18,FinancialPosition!S43)","v":0},0,0]
[null,null,null,null,null,"Statutory receivables ",{"$f":"SUM(FinancialPosition!I27:I28,FinancialPosition!I34:I35)","v":0},{"$f":"SUM(FinancialPosition!J27:J28,FinancialPosition!J34:J35)","v":0},{"$f":"SUM(FinancialPosition!L27:L28,FinancialPosition!L34:L35)","v":0},{"$f":"SUM(FinancialPosition!N27:N28,FinancialPosition!N34:N35)","v":0},0,0,{"$f":"SUM(FinancialPosition!P27:P28,FinancialPosition!P34:P35)","v":0},{"$f":"SUM(FinancialPosition!R27:R28,FinancialPosition!R34:R35)","v":0},{"$f":"SUM(FinancialPosition!S27:S28,FinancialPosition!S34:S35)","v":0},0,0]
[null,null,null,null,null,"Finance lease receivable",{"$f":"SUM(FinancialPosition!I26,FinancialPosition!I36)","v":0},{"$f":"SUM(FinancialPosition!J26,FinancialPosition!J36)","v":0},{"$f":"SUM(FinancialPosition!L26,FinancialPosition!L36)","v":0},{"$f":"SUM(FinancialPosition!N26,FinancialPosition!N36)","v":0},0,0,{"$f":"SUM(FinancialPosition!P26,FinancialPosition!P36)","v":0},{"$f":"SUM(FinancialPosition!R26,FinancialPosition!R36)","v":0},{"$f":"SUM(FinancialPosition!S26,FinancialPosition!S36)","v":0},0,0]
[null,null,null,null,null,"Derivatives financial instruments",{"$f":"SUM(FinancialPosition!I30,FinancialPosition!I52)","v":0},{"$f":"SUM(FinancialPosition!J30,FinancialPosition!J52)","v":0},{"$f":"SUM(FinancialPosition!L30,FinancialPosition!L52)","v":0},{"$f":"SUM(FinancialPosition!N30,FinancialPosition!N52)","v":0},0,0,{"$f":"SUM(FinancialPosition!P30,FinancialPosition!P52)","v":0},{"$f":"SUM(FinancialPosition!R30,FinancialPosition!R52)","v":0},{"$f":"SUM(FinancialPosition!S30,FinancialPosition!S52)","v":0},0,0]
[null,null,null,null,null,"Total assets",{"$f":"SUM(G137,G140:G151)","v":6244253},{"$f":"SUM(H137,H140:H151)","v":6666663},{"$f":"SUM(I137,I140:I151)","v":5539466.1084477548},{"$f":"SUM(J137,J140:J151)","v":6102649.497388958},-8.0000000000000002E-3,1,{"$f":"SUM(M137,M140:M151)","v":6034273.2018996719},{"$f":"SUM(N137,N140:N151)","v":5820578.9374961425},{"$f":"SUM(O137,O140:O151)","v":0},-1,0]
[null,null,null,null,null,"Accumulated surplus/(deficit)",{"$f":"FinancialPosition!I93","v":4250108},{"$f":"FinancialPosition!J93","v":5070082},{"$f":"FinancialPosition!L93","v":3804755.6315437546},{"$f":"FinancialPosition!N93","v":4182535.1892898977},-5.0000000000000001E-3,{"$f":"ROUND(IFERROR(AVERAGE(G153/$G$170,H153/$H$170,I153/$I$170,J153/$J$170),0),3)","v":0.70299999999999996},{"$f":"FinancialPosition!P93","v":4123492.1094453395},{"$f":"FinancialPosition!R93","v":3868661.2029638109},{"$f":"FinancialPosition!S93","v":0},-1,{"$f":"ROUND(IFERROR(AVERAGE(J153/$J$170,M153/$M$170,N153/$N$170,O153/$O$170),0),3)","v":0}]
[null,null,null,null,null,"Capital and reserves",{"$f":"FinancialPosition!I94","v":101239},{"$f":"FinancialPosition!J94","v":121095},{"$f":"FinancialPosition!L94","v":121095},{"$f":"FinancialPosition!N94","v":127876},8.1000000000000003E-2,1.9E-2,{"$f":"FinancialPosition!P94","v":129391},{"$f":"FinancialPosition!R94","v":125297.5},{"$f":"FinancialPosition!S94","v":0},{"$f":"ROUND(IF(ISERROR((O154/J154)^(1/3)-1),0,((O154/J154)^(1/3)-1)),3)","v":-1},{"$f":"ROUND(IFERROR(AVERAGE(J154/$J$170,M154/$M$170,N154/$N$170,O154/$O$170),0),3)","v":0}]
[null,null,null,null,null,"Capital reserve fund",{"$f":"SUM(FinancialPosition!I100)","v":0},{"$f":"SUM(FinancialPosition!J100)","v":0},{"$f":"SUM(FinancialPosition!L100)","v":0},{"$f":"SUM(FinancialPosition!N100)","v":0},0,0,{"$f":"SUM(FinancialPosition!P100)","v":0},{"$f":"SUM(FinancialPosition!R100)","v":0},{"$f":"SUM(FinancialPosition!S100)","v":0},0,0]
[null,null,null,null,null,"Borrowings",{"$f":"SUM(FinancialPosition!I57,FinancialPosition!I68:I69,FinancialPosition!I80)","v":0},{"$f":"SUM(FinancialPosition!J57,FinancialPosition!J68:J69,FinancialPosition!J80)","v":0},{"$f":"SUM(FinancialPosition!L57,FinancialPosition!L68:L69,FinancialPosition!L80)","v":0},{"$f":"SUM(FinancialPosition!N57,FinancialPosition!N68:N69,FinancialPosition!N80)","v":0},{"$f":"ROUND(IF(ISERROR((J156/G156)^(1/3)-1),0,((J156/G156)^(1/3)-1)),3)","v":0},0,{"$f":"SUM(FinancialPosition!P57,FinancialPosition!P68:P69,FinancialPosition!P80)","v":0},{"$f":"SUM(FinancialPosition!R57,FinancialPosition!R68:R69,FinancialPosition!R80)","v":0},{"$f":"SUM(FinancialPosition!S57,FinancialPosition!S68:S69,FinancialPosition!S80)","v":0},0,0]
[null,null,null,null,null,"Finance lease ",{"$f":"SUM(FinancialPosition!I71,FinancialPosition!I81)","v":35899},{"$f":"SUM(FinancialPosition!J71,FinancialPosition!J81)","v":29279},{"$f":"SUM(FinancialPosition!L71,FinancialPosition!L81)","v":8737},{"$f":"SUM(FinancialPosition!N71,FinancialPosition!N81)","v":8737},-0.376,{"$f":"ROUND(IFERROR(AVERAGE(G157/$G$170,H157/$H$170,I157/$I$170,J157/$J$170),0),3)","v":3.0000000000000001E-3},{"$f":"SUM(FinancialPosition!P71,FinancialPosition!P81)","v":0},{"$f":"SUM(FinancialPosition!R71,FinancialPosition!R81)","v":0},{"$f":"SUM(FinancialPosition!S71,FinancialPosition!S81)","v":0},-1,0]
[null,null,null,null,null,"Accrued interest",{"$f":"FinancialPosition!I61","v":0},{"$f":"FinancialPosition!J61","v":0},{"$f":"FinancialPosition!L61","v":0},{"$f":"FinancialPosition!N61","v":0},0,0,{"$f":"FinancialPosition!P61","v":0},{"$f":"FinancialPosition!R61","v":0},{"$f":"FinancialPosition!S61","v":0},0,0]
[null,null,null,null,null,"Unspent conditional grants and receipts",{"$f":"SUM(FinancialPosition!I66,FinancialPosition!I78)","v":0},{"$f":"SUM(FinancialPosition!J66,FinancialPosition!J78)","v":0},{"$f":"SUM(FinancialPosition!L66,FinancialPosition!L78)","v":0},{"$f":"SUM(FinancialPosition!N66,FinancialPosition!N78)","v":0},0,0,{"$f":"SUM(FinancialPosition!P66,FinancialPosition!P78)","v":0},{"$f":"SUM(FinancialPosition!R66,FinancialPosition!R78)","v":0},{"$f":"SUM(FinancialPosition!S66,FinancialPosition!S78)","v":0},0,0]
[null,null,null,null,null,"Deferred income",{"$f":"SUM(FinancialPosition!I67,FinancialPosition!I86)","v":163},{"$f":"SUM(FinancialPosition!J67,FinancialPosition!J86)","v":168},{"$f":"SUM(FinancialPosition!L67,FinancialPosition!L86)","v":168},{"$f":"SUM(FinancialPosition!N67,FinancialPosition!N86)","v":168},0.01,0,{"$f":"SUM(FinancialPosition!P67,FinancialPosition!P86)","v":168},{"$f":"SUM(FinancialPosition!R67,FinancialPosition!R86)","v":168},{"$f":"SUM(FinancialPosition!S67,FinancialPosition!S86)","v":0},-1,0]
[null,null,null,null,null,"Trade and other payables",{"$f":"SUM(FinancialPosition!I58:I59,FinancialPosition!I72,FinancialPosition!I82)","v":802718},{"$f":"SUM(FinancialPosition!J58:J59,FinancialPosition!J72,FinancialPosition!J82)","v":852124},{"$f":"SUM(FinancialPosition!L58:L59,FinancialPosition!L72,FinancialPosition!L82)","v":1246831.4769039997},{"$f":"SUM(FinancialPosition!N58:N59,FinancialPosition!N72,FinancialPosition!N82)","v":1388399.3080990594},0.2,0.17699999999999999,{"$f":"SUM(FinancialPosition!P58:P59,FinancialPosition!P72,FinancialPosition!P82)","v":1383805.092454331},{"$f":"SUM(FinancialPosition!R58:R59,FinancialPosition!R72,FinancialPosition!R82)","v":1456818.2345323293},{"$f":"SUM(FinancialPosition!S58:S59,FinancialPosition!S72,FinancialPosition!S82)","v":0},-1,0]
[null,null,null,null,null,"Benefits payable",{"$f":"SUM(FinancialPosition!I60,FinancialPosition!I79)","v":0},{"$f":"SUM(FinancialPosition!J60,FinancialPosition!J79)","v":0},{"$f":"SUM(FinancialPosition!L60,FinancialPosition!L79)","v":0},{"$f":"SUM(FinancialPosition!N60,FinancialPosition!N79)","v":0},0,0,{"$f":"SUM(FinancialPosition!P60,FinancialPosition!P79)","v":0},{"$f":"SUM(FinancialPosition!R60,FinancialPosition!R79)","v":0},{"$f":"SUM(FinancialPosition!S60,FinancialPosition!S79)","v":0},0,0]
[null,null,null,null,null,"Capitalised value of pensions",{"$f":"FinancialPosition!I101","v":0},{"$f":"FinancialPosition!J101","v":0},{"$f":"FinancialPosition!L101","v":0},{"$f":"FinancialPosition!N101","v":0},0,0,{"$f":"FinancialPosition!P101","v":0},{"$f":"FinancialPosition!R101","v":0},{"$f":"FinancialPosition!S101","v":0},0,0]
[null,null,null,null,null,"Non controlling interests",{"$f":"FinancialPosition!I102","v":0},{"$f":"FinancialPosition!J102","v":0},{"$f":"FinancialPosition!L102","v":0},{"$f":"FinancialPosition!N102","v":0},0,0,{"$f":"FinancialPosition!P102","v":0},{"$f":"FinancialPosition!R102","v":0},{"$f":"FinancialPosition!S102","v":0},0,0]
[null,null,null,null,null,"Taxation",{"$f":"SUM(FinancialPosition!I62:I64,FinancialPosition!I77)","v":0},{"$f":"SUM(FinancialPosition!J62:J64,FinancialPosition!J77)","v":0},{"$f":"SUM(FinancialPosition!L62:L64,FinancialPosition!L77)","v":0},{"$f":"SUM(FinancialPosition!N62:N64,FinancialPosition!N77)","v":0},0,0,{"$f":"SUM(FinancialPosition!P62:P64,FinancialPosition!P77)","v":0},{"$f":"SUM(FinancialPosition!R62:R64,FinancialPosition!R77)","v":0},{"$f":"SUM(FinancialPosition!S62:S64,FinancialPosition!S77)","v":0},0,0]
[null,null,null,null,null,"Provisions",{"$f":"SUM(FinancialPosition!I65,FinancialPosition!I84:I85)","v":1054126},{"$f":"SUM(FinancialPosition!J65,FinancialPosition!J84:J85)","v":593915},{"$f":"SUM(FinancialPosition!L65,FinancialPosition!L84:L85)","v":357879},{"$f":"SUM(FinancialPosition!N65,FinancialPosition!N84:N85)","v":394934},-0.27900000000000003,9.7000000000000003E-2,{"$f":"SUM(FinancialPosition!P65,FinancialPosition!P84:P85)","v":397417},{"$f":"SUM(FinancialPosition!R65,FinancialPosition!R84:R85)","v":369634},{"$f":"SUM(FinancialPosition!S65,FinancialPosition!S84:S85)","v":0},-1,0]
[null,null,null,null,null,"Managed funds (e.g. poverty alleviation fund)",{"$f":"SUM(FinancialPosition!I73,FinancialPosition!I87)","v":0},{"$f":"SUM(FinancialPosition!J73,FinancialPosition!J87)","v":0},{"$f":"SUM(FinancialPosition!L73,FinancialPosition!L87)","v":0},{"$f":"SUM(FinancialPosition!N73,FinancialPosition!N87)","v":0},0,0,{"$f":"SUM(FinancialPosition!P73,FinancialPosition!P87)","v":0},{"$f":"SUM(FinancialPosition!R73,FinancialPosition!R87)","v":0},{"$f":"SUM(FinancialPosition!S73,FinancialPosition!S87)","v":0},0,0]
[null,null,null,null,null,"Service concession arrangement ",{"$f":"SUM(FinancialPosition!I74,FinancialPosition!I88)","v":0},{"$f":"SUM(FinancialPosition!J74,FinancialPosition!J88)","v":0},{"$f":"SUM(FinancialPosition!L74,FinancialPosition!L88)","v":0},{"$f":"SUM(FinancialPosition!N74,FinancialPosition!N88)","v":0},0,0,{"$f":"SUM(FinancialPosition!P74,FinancialPosition!P88)","v":0},{"$f":"SUM(FinancialPosition!R74,FinancialPosition!R88)","v":0},{"$f":"SUM(FinancialPosition!S74,FinancialPosition!S88)","v":0},0,0]
[null,null,null,null,null,"Derivatives financial instruments",{"$f":"SUM(FinancialPosition!I70,FinancialPosition!I75,FinancialPosition!I83,FinancialPosition!I89)","v":0},{"$f":"SUM(FinancialPosition!J70,FinancialPosition!J75,FinancialPosition!J83,FinancialPosition!J89)","v":0},{"$f":"SUM(FinancialPosition!L70,FinancialPosition!L75,FinancialPosition!L83,FinancialPosition!L89)","v":0},{"$f":"SUM(FinancialPosition!N70,FinancialPosition!N75,FinancialPosition!N83,FinancialPosition!N89)","v":0},0,0,{"$f":"SUM(FinancialPosition!P70,FinancialPosition!P75,FinancialPosition!P83,FinancialPosition!P89)","v":0},{"$f":"SUM(FinancialPosition!R70,FinancialPosition!R75,FinancialPosition!R83,FinancialPosition!R89)","v":0},{"$f":"SUM(FinancialPosition!S70,FinancialPosition!S75,FinancialPosition!S83,FinancialPosition!S89)","v":0},0,0]
[null,null,null,null,null,"Total equity and liabilities",{"$f":"SUM(G153:G169)","v":6244253},{"$f":"SUM(H153:H169)","v":6666663},{"$f":"SUM(I153:I169)","v":5539466.1084477548},{"$f":"SUM(J153:J169)","v":6102649.4973889571},-8.0000000000000002E-3,1,{"$f":"SUM(M153:M169)","v":6034273.2018996701},{"$f":"SUM(N153:N169)","v":5820578.9374961406},{"$f":"SUM(O153:O169)","v":0},-1,0]
[null,null,null,null,null,"Contingent liabilities",{"$f":"FinancialPosition!I104","v":0},{"$f":"FinancialPosition!J104","v":0},{"$f":"FinancialPosition!L104","v":0},{"$f":"FinancialPosition!N104","v":0},null,null,{"$f":"FinancialPosition!P104","v":0},{"$f":"FinancialPosition!R104","v":0},{"$f":"FinancialPosition!S104","v":0}]
[null,null,null,null,null,"Check",{"$f":"ROUND(G152-FinancialPosition!I53+ENESummary!G170-FinancialPosition!I103,0)","v":0},{"$f":"ROUND(H152-FinancialPosition!J53+ENESummary!H170-FinancialPosition!J103,0)","v":0},{"$f":"ROUND(I152-FinancialPosition!L53+ENESummary!I170-FinancialPosition!L103,0)","v":0},{"$f":"ROUND(J152-FinancialPosition!N53+ENESummary!J170-FinancialPosition!N103,0)","v":0},null,null,null,{"$f":"ROUND(M152-FinancialPosition!P53+ENESummary!M170-FinancialPosition!P103,0)","v":0},{"$f":"ROUND(N152-FinancialPosition!R53+ENESummary!N170-FinancialPosition!R103,0)","v":0}]
[]
[]
[]
[]
[]
[]
[]
[]
[]
[]
[]
[]
[]
[]
[]
[]
[]
[]
[]
[]
[]
[]
[]
[null,null,null,null,null,"Performance analysis",{"$f":"Hist_year2Audited","v":{"$error":"#NAME?"}},null,null,{"$f":"Cur_YearApprovedBudg","v":"Approved budget"}," Medium-term estimate"]
[null,null,null,null,null,"Financial performance ratios",{"$f":"MyYearM3","v":"2022/23"},{"$f":"MyYearM2","v":"2023/24"},{"$f":"MyYearM1","v":"2024/25"},{"$f":"MyYear0","v":"2025/26"},{"$f":"MyYearP1","v":"2026/27"},{"$f":"MyYearP2","v":"2027/28"},{"$f":"MyYearP3","v":"2028/29"}]
[null,null,null,null,null,"Current ratio = current Assets/Current liabilities",{"$f":"IF(ISERROR(SUM(FinancialPosition!#REF!)/FinancialPosition!#REF!),0,(SUM(FinancialPosition!#REF!)/FinancialPosition!#REF!))","v":0},{"$f":"IF(ISERROR(SUM(FinancialPosition!J12)/FinancialPosition!J56),0,(SUM(FinancialPosition!J12)/FinancialPosition!J56))","v":2.0086159923716114},{"$f":"IF(ISERROR(SUM(FinancialPosition!L12)/FinancialPosition!L56),0,(SUM(FinancialPosition!L12)/FinancialPosition!L56))","v":1.0172370134858293},{"$f":"IF(ISERROR(SUM(FinancialPosition!N12)/FinancialPosition!N56),0,(SUM(FinancialPosition!N12)/FinancialPosition!N56))","v":1.0291871530013597},{"$f":"IF(ISERROR(SUM(FinancialPosition!O12)/FinancialPosition!O56),0,(SUM(FinancialPosition!O12)/FinancialPosition!O56))","v":1.0284401301853627},{"$f":"IF(ISERROR(SUM(FinancialPosition!Q12)/FinancialPosition!Q56),0,(SUM(FinancialPosition!Q12)/FinancialPosition!Q56))","v":1.0012532639425971},{"$f":"IF(ISERROR(SUM(FinancialPosition!S12)/FinancialPosition!S56),0,(SUM(FinancialPosition!S12)/FinancialPosition!S56))","v":0}]
[null,null,null,null,null,"Quick ratio = Current Assets-inventory/Current liabilities",{"$f":"IF(ISERROR(SUM(FinancialPosition!#REF!-FinancialPosition!#REF!)/FinancialPosition!#REF!),0,(SUM(FinancialPosition!#REF!-FinancialPosition!#REF!)/FinancialPosition!#REF!))","v":0},{"$f":"IF(ISERROR(SUM(FinancialPosition!J12-FinancialPosition!J14)/FinancialPosition!J56),0,(SUM(FinancialPosition!J12-FinancialPosition!J14)/FinancialPosition!J56))","v":1.8983265038638966},{"$f":"IF(ISERROR(SUM(FinancialPosition!L12-FinancialPosition!L14)/FinancialPosition!L56),0,(SUM(FinancialPosition!L12-FinancialPosition!L14)/FinancialPosition!L56))","v":0.9193877183011443},{"$f":"IF(ISERROR(SUM(FinancialPosition!N12-FinancialPosition!N14)/FinancialPosition!N56),0,(SUM(FinancialPosition!N12-FinancialPosition!N14)/FinancialPosition!N56))","v":0.94373299390319743},{"$f":"IF(ISERROR(SUM(FinancialPosition!O12-FinancialPosition!O14)/FinancialPosition!O56),0,(SUM(FinancialPosition!O12-FinancialPosition!O14)/FinancialPosition!O56))","v":0.94393413276117011},{"$f":"IF(ISERROR(SUM(FinancialPosition!Q12-FinancialPosition!Q14)/FinancialPosition!Q56),0,(SUM(FinancialPosition!Q12-FinancialPosition!Q14)/FinancialPosition!Q56))","v":0.92266343938606521},{"$f":"IF(ISERROR(SUM(FinancialPosition!S12-FinancialPosition!S14)/FinancialPosition!S56),0,(SUM(FinancialPosition!S12-FinancialPosition!S14)/FinancialPosition!S56))","v":0}]
[null,null,null,null,null,"Cash ratio = Cash and Cash Equivalents/Current Liabilities\n",{"$f":"IF(ISERROR(FinancialPosition!#REF!/FinancialPosition!#REF!),0,(FinancialPosition!#REF!/FinancialPosition!#REF!))","v":0},{"$f":"IF(ISERROR(FinancialPosition!J20/FinancialPosition!J56),0,(FinancialPosition!J20/FinancialPosition!J56))","v":0},{"$f":"IF(ISERROR(FinancialPosition!L20/FinancialPosition!L56),0,(FinancialPosition!L20/FinancialPosition!L56))","v":0},{"$f":"IF(ISERROR(FinancialPosition!N20/FinancialPosition!N56),0,(FinancialPosition!N20/FinancialPosition!N56))","v":0},{"$f":"IF(ISERROR(FinancialPosition!O20/FinancialPosition!O56),0,(FinancialPosition!O20/FinancialPosition!O56))","v":0},{"$f":"IF(ISERROR(FinancialPosition!Q20/FinancialPosition!Q56),0,(FinancialPosition!Q20/FinancialPosition!Q56))","v":0},{"$f":"IF(ISERROR(FinancialPosition!S20/FinancialPosition!S56),0,(FinancialPosition!S20/FinancialPosition!S56))","v":0}]
[null,null,null,null,null,"Debts-Assets Ratio = Total Liabilities/Total Assets",{"$f":"IFERROR((FinancialPosition!#REF!)/(FinancialPosition!#REF!),0)","v":0},{"$f":"IFERROR((FinancialPosition!J90)/(FinancialPosition!J53),0)","v":0.22132302172766194},{"$f":"IFERROR((FinancialPosition!L90)/(FinancialPosition!L53),0)","v":0.29129440370493753},{"$f":"IFERROR((FinancialPosition!N90)/(FinancialPosition!N53),0)","v":0.29368199973894543},{"$f":"IFERROR((FinancialPosition!O90)/(FinancialPosition!O53),0)","v":0.29521203844292715},{"$f":"IFERROR((FinancialPosition!Q90)/(FinancialPosition!Q53),0)","v":0.31382105700263768},{"$f":"IFERROR((FinancialPosition!S90)/(FinancialPosition!S53),0)","v":0}]
[null,null,null,null,null,"Fixed asset turnover = Revenue/Fixed Assets",{"$f":"IF(ISERROR(Revenue!#REF!/FinancialPosition!#REF!),0,Revenue!#REF!/FinancialPosition!#REF!)","v":0},{"$f":"IF(ISERROR(Revenue!J15/FinancialPosition!J31),0,Revenue!J15/FinancialPosition!J31)","v":0.10323326229170411},{"$f":"IF(ISERROR(Revenue!L15/FinancialPosition!L31),0,Revenue!L15/FinancialPosition!L31)","v":0.10050617365585673},{"$f":"IF(ISERROR(Revenue!N15/FinancialPosition!N31),0,Revenue!N15/FinancialPosition!N31)","v":9.5043547239621343E-2},{"$f":"IF(ISERROR(Revenue!O15/FinancialPosition!O31),0,Revenue!O15/FinancialPosition!O31)","v":9.9038267092205673E-2},{"$f":"IF(ISERROR(Revenue!Q15/FinancialPosition!Q31),0,Revenue!Q15/FinancialPosition!Q31)","v":0.10785632740479385},{"$f":"IF(ISERROR(Revenue!S15/FinancialPosition!S31),0,Revenue!S15/FinancialPosition!S31)","v":0}]
[null,null,null,null,null,"Asset turnover = Revenue/Total Assets",{"$f":"IF(ISERROR(Revenue!#REF!/FinancialPosition!#REF!),0,Revenue!#REF!/FinancialPosition!#REF!)","v":0},{"$f":"IF(ISERROR(Revenue!J15/FinancialPosition!J53),0,Revenue!J15/FinancialPosition!J53)","v":6.9440397915718849E-2},{"$f":"IF(ISERROR(Revenue!L15/FinancialPosition!L53),0,Revenue!L15/FinancialPosition!L53)","v":7.7904513304267245E-2},{"$f":"IF(ISERROR(Revenue!N15/FinancialPosition!N53),0,Revenue!N15/FinancialPosition!N53)","v":7.2755252666259429E-2},{"$f":"IF(ISERROR(Revenue!O15/FinancialPosition!O53),0,Revenue!O15/FinancialPosition!O53)","v":7.5703200021886422E-2},{"$f":"IF(ISERROR(Revenue!Q15/FinancialPosition!Q53),0,Revenue!Q15/FinancialPosition!Q53)","v":8.0748338040115289E-2},{"$f":"IF(ISERROR(Revenue!S15/FinancialPosition!S53),0,Revenue!S15/FinancialPosition!S53)","v":0}]
[null,null,null,null,null,"Debt Ratio= Total Debt /Capital Employed",{"$f":"IFERROR(SUM(FinancialPosition!#REF!)/(FinancialPosition!#REF!+FinancialPosition!#REF!),0)","v":0},{"$f":"IFERROR(SUM(FinancialPosition!J90)/(FinancialPosition!J92+FinancialPosition!J79),0)","v":0.28422956874712613},{"$f":"IFERROR(SUM(FinancialPosition!L90)/(FinancialPosition!L92+FinancialPosition!L79),0)","v":0.41102314589831473},{"$f":"IFERROR(SUM(FinancialPosition!N90)/(FinancialPosition!N92+FinancialPosition!N79),0)","v":0.41579288596694525},{"$f":"IFERROR(SUM(FinancialPosition!O90)/(FinancialPosition!O92+FinancialPosition!O79),0)","v":0.41886645990763188},{"$f":"IFERROR(SUM(FinancialPosition!Q90)/(FinancialPosition!Q92+FinancialPosition!Q79),0)","v":0.4573457990882186},{"$f":"IFERROR(SUM(FinancialPosition!S90)/(FinancialPosition!S92+FinancialPosition!S79),0)","v":0}]
[null,null,null,null,null,"Debt-Equity Ratio=Total Debt/Net Worth",{"$f":"IFERROR(SUM(FinancialPosition!#REF!)/(FinancialPosition!#REF!),0)","v":0},{"$f":"IFERROR(SUM(FinancialPosition!J90)/(FinancialPosition!J92),0)","v":0.28422956874712613},{"$f":"IFERROR(SUM(FinancialPosition!L90)/(FinancialPosition!L92),0)","v":0.41102314589831473},{"$f":"IFERROR(SUM(FinancialPosition!N90)/(FinancialPosition!N92),0)","v":0.41579288596694525},{"$f":"IFERROR(SUM(FinancialPosition!O90)/(FinancialPosition!O92),0)","v":0.41886645990763188},{"$f":"IFERROR(SUM(FinancialPosition!Q90)/(FinancialPosition!Q92),0)","v":0.4573457990882186},{"$f":"IFERROR(SUM(FinancialPosition!S90)/(FinancialPosition!S92),0)","v":0}]

{"sheet":"RelatedPartyRevenue","index":28,"n_rows":363,"n_cols":31,"rows_kept":363,"cut":false,"hidden":true,"merged":[[7,17,7,18],[7,19,7,20],[6,8,6,14],[7,9,7,10],[7,11,7,12],[7,13,7,14],[7,15,7,16]]}
[]
[]
[]
[]
[]
[null,null,null,null,null,"PE No",{"$f":"Settings!$O$2","v":"PE126"}]
[null,null,null,null,null,"Entity name",{"$f":"Settings!$E$2","v":"South African Revenue Service"},null,null,null,null,null,null,null,null,null,null,null,null,null,null,{"$f":"IF(V361<U361/2,\"Complete outer year budget\",\"\")","v":""},{"$f":"SUM(W11:W360)","v":0}]
[null,null,null,null,null,"Related Party Revenue (Collections)",null,null,null,{"$f":"MyYearM3","v":"2022/23"},null,{"$f":"MyYearM2","v":"2023/24"},null,{"$f":"MyYearM1","v":"2024/25"},null,{"$f":"MyYear0","v":"2025/26"},null,{"$f":"MyYearP1","v":"2026/27"},null,{"$f":"MyYearP2","v":"2027/28"},null,{"$f":"MyYearP3","v":"2028/29"},null,"EXPLANATIONS",null,{"$f":"MyYearM3","v":"2022/23"},{"$f":"MyYearM2","v":"2023/24"},{"$f":"MyYearM1","v":"2024/25"},{"$f":"MyYear0","v":"2025/26"},{"$f":"MyYearP1","v":"2026/27"},{"$f":"MyYearP2","v":"2027/28"}]
[null,null,null,null,null,"R Thousand ",null,null,null,"Audited\noutcome",{"$f":"Hist_year3RestatedAudited","v":"Audited\noutcome"},"Audited\noutcome",{"$f":"Hist_year2RestatedAudited","v":"Audited\noutcome"},{"$f":"Hist_year1Budget","v":"Budget"},{"$f":"Hist_year1Audited","v":"Audited\noutcome"},{"$f":"Cur_YearBudgEst","v":"Budget\nestimate"},{"$f":"Cur_YearApprovedBudg","v":"Approved budget"},{"$f":"MTEF1BudgEst","v":"Budget\nestimate"},{"$f":"MTEF1RevBudgEst","v":"Revised\nbudget\nestimate"},{"$f":"MTEF2BudgEst","v":"Budget\nestimate"},{"$f":"MTEF2RevBudgEst","v":"Revised\nbudget\nestimate"},{"$f":"MTEF3PlanBudgetEst","v":"Planning\nbudget \nestimate"},null,null,null,{"$f":"Hist_year3RestatedAudited","v":"Audited\noutcome"},{"$f":"Hist_year2RestatedAudited","v":"Audited\noutcome"},{"$f":"Hist_year1Audited","v":"Audited\noutcome"},{"$f":"Cur_YearApprovedBudg","v":"Approved budget"},{"$f":"MTEF1RevBudgEst","v":"Revised\nbudget\nestimate"},{"$f":"MTEF2RevBudgEst","v":"Revised\nbudget\nestimate"}]
["Hide/unhide","Item code","ItemCat",null,null,"Related Party category","Related Party Name","Related Party transaction"]
[{"$f":"IF(SUM(J11:V11)>0,1,0)","v":0},{"$f":"IF($G11=$G$7,1,0)","v":0},{"$f":"IFERROR(INDEX((Settings!$M$17:$M$236),MATCH(RelatedPartyRevenue!G11,Settings!$AD$18:$AD$166,0)),0)","v":0},null,null,{"$f":"[1]RelatedPartyRevenue!F11","v":0},{"$f":"[1]RelatedPartyRevenue!G11","v":0},{"$f":"[1]RelatedPartyRevenue!H11","v":0},null,{"$f":"[1]RelatedPartyRevenue!M11","v":0},{"$f":"[1]RelatedPartyRevenue!M11","v":0},{"$f":"[1]RelatedPartyRevenue!O11","v":0},{"$f":"[1]RelatedPartyRevenue!O11","v":0},{"$f":"[1]RelatedPartyRevenue!Q11","v":0},{"$f":"[1]RelatedPartyRevenue!Q11","v":0},{"$f":"[1]RelatedPartyRevenue!S11","v":0},{"$f":"[1]RelatedPartyRevenue!S11","v":0},{"$f":"[1]RelatedPartyRevenue!U11","v":0},{"$f":"[1]RelatedPartyRevenue!U11","v":0},{"$f":"[1]RelatedPartyRevenue!V11","v":0},{"$f":"[1]RelatedPartyRevenue!V11","v":0},0,null,{"$f":"[1]RelatedPartyRevenue!X11","v":0},null,{"$f":"K11-J11","v":0},{"$f":"M11-L11","v":0},{"$f":"O11-N11","v":0},{"$f":"Q11-P11","v":0},{"$f":"S11-R11","v":0},{"$f":"U11-T11","v":0}]
[{"$f":"IF(SUM(J12:V12)>0,1,0)","v":0},0,{"$f":"IFERROR(INDEX((Settings!$M$17:$M$236),MATCH(RelatedPartyRevenue!G12,Settings!$AD$18:$AD$166,0)),0)","v":0},null,null,{"$f":"[1]RelatedPartyRevenue!F12","v":0},{"$f":"[1]RelatedPartyRevenue!G12","v":0},{"$f":"[1]RelatedPartyRevenue!H12","v":0},null,{"$f":"[1]RelatedPartyRevenue!M12","v":0},{"$f":"[1]RelatedPartyRevenue!M12","v":0},{"$f":"[1]RelatedPartyRevenue!O12","v":0},{"$f":"[1]RelatedPartyRevenue!O12","v":0},{"$f":"[1]RelatedPartyRevenue!Q12","v":0},{"$f":"[1]RelatedPartyRevenue!Q12","v":0},{"$f":"[1]RelatedPartyRevenue!S12","v":0},{"$f":"[1]RelatedPartyRevenue!S12","v":0},{"$f":"[1]RelatedPartyRevenue!U12","v":0},{"$f":"[1]RelatedPartyRevenue!U12","v":0},{"$f":"[1]RelatedPartyRevenue!V12","v":0},{"$f":"[1]RelatedPartyRevenue!V12","v":0},0,null,{"$f":"[1]RelatedPartyRevenue!X12","v":0},null,{"$f":"K12-J12","v":0},{"$f":"M12-L12","v":0},{"$f":"O12-N12","v":0},{"$f":"Q12-P12","v":0},{"$f":"S12-R12","v":0},{"$f":"U12-T12","v":0}]
[0,0,{"$f":"IFERROR(INDEX((Settings!$M$17:$M$236),MATCH(RelatedPartyRevenue!G13,Settings!$AD$18:$AD$166,0)),0)","v":0},null,null,{"$f":"[1]RelatedPartyRevenue!F13","v":0},{"$f":"[1]RelatedPartyRevenue!G13","v":0},{"$f":"[1]RelatedPartyRevenue!H13","v":0},null,{"$f":"[1]RelatedPartyRevenue!M13","v":0},{"$f":"[1]RelatedPartyRevenue!M13","v":0},{"$f":"[1]RelatedPartyRevenue!O13","v":0},{"$f":"[1]RelatedPartyRevenue!O13","v":0},{"$f":"[1]RelatedPartyRevenue!Q13","v":0},{"$f":"[1]RelatedPartyRevenue!Q13","v":0},{"$f":"[1]RelatedPartyRevenue!S13","v":0},{"$f":"[1]RelatedPartyRevenue!S13","v":0},{"$f":"[1]RelatedPartyRevenue!U13","v":0},{"$f":"[1]RelatedPartyRevenue!U13","v":0},{"$f":"[1]RelatedPartyRevenue!V13","v":0},{"$f":"[1]RelatedPartyRevenue!V13","v":0},0,null,{"$f":"[1]RelatedPartyRevenue!X13","v":0},null,0,0,{"$f":"O13-N13","v":0},{"$f":"Q13-P13","v":0},{"$f":"S13-R13","v":0},{"$f":"U13-T13","v":0}]
[0,0,{"$f":"IFERROR(INDEX((Settings!$M$17:$M$236),MATCH(RelatedPartyRevenue!G14,Settings!$AD$18:$AD$166,0)),0)","v":0},null,null,{"$f":"[1]RelatedPartyRevenue!F14","v":0},{"$f":"[1]RelatedPartyRevenue!G14","v":0},{"$f":"[1]RelatedPartyRevenue!H14","v":0},null,{"$f":"[1]RelatedPartyRevenue!M14","v":0},{"$f":"[1]RelatedPartyRevenue!M14","v":0},{"$f":"[1]RelatedPartyRevenue!O14","v":0},{"$f":"[1]RelatedPartyRevenue!O14","v":0},{"$f":"[1]RelatedPartyRevenue!Q14","v":0},{"$f":"[1]RelatedPartyRevenue!Q14","v":0},{"$f":"[1]RelatedPartyRevenue!S14","v":0},{"$f":"[1]RelatedPartyRevenue!S14","v":0},{"$f":"[1]RelatedPartyRevenue!U14","v":0},{"$f":"[1]RelatedPartyRevenue!U14","v":0},{"$f":"[1]RelatedPartyRevenue!V14","v":0},{"$f":"[1]RelatedPartyRevenue!V14","v":0},0,null,{"$f":"[1]RelatedPartyRevenue!X14","v":0},null,0,0,0,0,0,0]
[0,0,{"$f":"IFERROR(INDEX((Settings!$M$17:$M$236),MATCH(RelatedPartyRevenue!G15,Settings!$AD$18:$AD$166,0)),0)","v":0},null,null,{"$f":"[1]RelatedPartyRevenue!F15","v":0},{"$f":"[1]RelatedPartyRevenue!G15","v":0},{"$f":"[1]RelatedPartyRevenue!H15","v":0},null,{"$f":"[1]RelatedPartyRevenue!M15","v":0},{"$f":"[1]RelatedPartyRevenue!M15","v":0},{"$f":"[1]RelatedPartyRevenue!O15","v":0},{"$f":"[1]RelatedPartyRevenue!O15","v":0},{"$f":"[1]RelatedPartyRevenue!Q15","v":0},{"$f":"[1]RelatedPartyRevenue!Q15","v":0},{"$f":"[1]RelatedPartyRevenue!S15","v":0},{"$f":"[1]RelatedPartyRevenue!S15","v":0},{"$f":"[1]RelatedPartyRevenue!U15","v":0},{"$f":"[1]RelatedPartyRevenue!U15","v":0},{"$f":"[1]RelatedPartyRevenue!V15","v":0},{"$f":"[1]RelatedPartyRevenue!V15","v":0},0,null,{"$f":"[1]RelatedPartyRevenue!X15","v":0},null,0,0,0,0,0,0]
[0,0,{"$f":"IFERROR(INDEX((Settings!$M$17:$M$236),MATCH(RelatedPartyRevenue!G16,Settings!$AD$18:$AD$166,0)),0)","v":0},null,null,{"$f":"[1]RelatedPartyRevenue!F16","v":0},{"$f":"[1]RelatedPartyRevenue!G16","v":0},{"$f":"[1]RelatedPartyRevenue!H16","v":0},null,{"$f":"[1]RelatedPartyRevenue!M16","v":0},{"$f":"[1]RelatedPartyRevenue!M16","v":0},{"$f":"[1]RelatedPartyRevenue!O16","v":0},{"$f":"[1]RelatedPartyRevenue!O16","v":0},{"$f":"[1]RelatedPartyRevenue!Q16","v":0},{"$f":"[1]RelatedPartyRevenue!Q16","v":0},{"$f":"[1]RelatedPartyRevenue!S16","v":0},{"$f":"[1]RelatedPartyRevenue!S16","v":0},{"$f":"[1]RelatedPartyRevenue!U16","v":0},{"$f":"[1]RelatedPartyRevenue!U16","v":0},{"$f":"[1]RelatedPartyRevenue!V16","v":0},{"$f":"[1]RelatedPartyRevenue!V16","v":0},0,null,{"$f":"[1]RelatedPartyRevenue!X16","v":0},null,0,0,0,0,0,0]
[0,0,{"$f":"IFERROR(INDEX((Settings!$M$17:$M$236),MATCH(RelatedPartyRevenue!G17,Settings!$AD$18:$AD$166,0)),0)","v":0},null,null,{"$f":"[1]RelatedPartyRevenue!F17","v":0},{"$f":"[1]RelatedPartyRevenue!G17","v":0},{"$f":"[1]RelatedPartyRevenue!H17","v":0},null,{"$f":"[1]RelatedPartyRevenue!M17","v":0},{"$f":"[1]RelatedPartyRevenue!M17","v":0},{"$f":"[1]RelatedPartyRevenue!O17","v":0},{"$f":"[1]RelatedPartyRevenue!O17","v":0},{"$f":"[1]RelatedPartyRevenue!Q17","v":0},{"$f":"[1]RelatedPartyRevenue!Q17","v":0},{"$f":"[1]RelatedPartyRevenue!S17","v":0},{"$f":"[1]RelatedPartyRevenue!S17","v":0},{"$f":"[1]RelatedPartyRevenue!U17","v":0},{"$f":"[1]RelatedPartyRevenue!U17","v":0},{"$f":"[1]RelatedPartyRevenue!V17","v":0},{"$f":"[1]RelatedPartyRevenue!V17","v":0},0,null,{"$f":"[1]RelatedPartyRevenue!X17","v":0},null,0,0,0,0,0,0]
[0,0,{"$f":"IFERROR(INDEX((Settings!$M$17:$M$236),MATCH(RelatedPartyRevenue!G18,Settings!$AD$18:$AD$166,0)),0)","v":0},null,null,{"$f":"[1]RelatedPartyRevenue!F18","v":0},{"$f":"[1]RelatedPartyRevenue!G18","v":0},{"$f":"[1]RelatedPartyRevenue!H18","v":0},null,{"$f":"[1]RelatedPartyRevenue!M18","v":0},{"$f":"[1]RelatedPartyRevenue!M18","v":0},{"$f":"[1]RelatedPartyRevenue!O18","v":0},{"$f":"[1]RelatedPartyRevenue!O18","v":0},{"$f":"[1]RelatedPartyRevenue!Q18","v":0},{"$f":"[1]RelatedPartyRevenue!Q18","v":0},{"$f":"[1]RelatedPartyRevenue!S18","v":0},{"$f":"[1]RelatedPartyRevenue!S18","v":0},{"$f":"[1]RelatedPartyRevenue!U18","v":0},{"$f":"[1]RelatedPartyRevenue!U18","v":0},{"$f":"[1]RelatedPartyRevenue!V18","v":0},{"$f":"[1]RelatedPartyRevenue!V18","v":0},0,null,{"$f":"[1]RelatedPartyRevenue!X18","v":0},null,0,0,0,0,0,0]
[0,0,{"$f":"IFERROR(INDEX((Settings!$M$17:$M$236),MATCH(RelatedPartyRevenue!G19,Settings!$AD$18:$AD$166,0)),0)","v":0},null,null,{"$f":"[1]RelatedPartyRevenue!F19","v":0},{"$f":"[1]RelatedPartyRevenue!G19","v":0},{"$f":"[1]RelatedPartyRevenue!H19","v":0},null,{"$f":"[1]RelatedPartyRevenue!M19","v":0},{"$f":"[1]RelatedPartyRevenue!M19","v":0},{"$f":"[1]RelatedPartyRevenue!O19","v":0},{"$f":"[1]RelatedPartyRevenue!O19","v":0},{"$f":"[1]RelatedPartyRevenue!Q19","v":0},{"$f":"[1]RelatedPartyRevenue!Q19","v":0},{"$f":"[1]RelatedPartyRevenue!S19","v":0},{"$f":"[1]RelatedPartyRevenue!S19","v":0},{"$f":"[1]RelatedPartyRevenue!U19","v":0},{"$f":"[1]RelatedPartyRevenue!U19","v":0},{"$f":"[1]RelatedPartyRevenue!V19","v":0},{"$f":"[1]RelatedPartyRevenue!V19","v":0},0,null,{"$f":"[1]RelatedPartyRevenue!X19","v":0},null,0,0,0,0,0,0]
[0,0,{"$f":"IFERROR(INDEX((Settings!$M$17:$M$236),MATCH(RelatedPartyRevenue!G20,Settings!$AD$18:$AD$166,0)),0)","v":0},null,null,{"$f":"[1]RelatedPartyRevenue!F20","v":0},{"$f":"[1]RelatedPartyRevenue!G20","v":0},{"$f":"[1]RelatedPartyRevenue!H20","v":0},null,{"$f":"[1]RelatedPartyRevenue!M20","v":0},{"$f":"[1]RelatedPartyRevenue!M20","v":0},{"$f":"[1]RelatedPartyRevenue!O20","v":0},{"$f":"[1]RelatedPartyRevenue!O20","v":0},{"$f":"[1]RelatedPartyRevenue!Q20","v":0},{"$f":"[1]RelatedPartyRevenue!Q20","v":0},{"$f":"[1]RelatedPartyRevenue!S20","v":0},{"$f":"[1]RelatedPartyRevenue!S20","v":0},{"$f":"[1]RelatedPartyRevenue!U20","v":0},{"$f":"[1]RelatedPartyRevenue!U20","v":0},{"$f":"[1]RelatedPartyRevenue!V20","v":0},{"$f":"[1]RelatedPartyRevenue!V20","v":0},0,null,{"$f":"[1]RelatedPartyRevenue!X20","v":0},null,0,0,0,0,0,0]
[0,0,{"$f":"IFERROR(INDEX((Settings!$M$17:$M$236),MATCH(RelatedPartyRevenue!G21,Settings!$AD$18:$AD$166,0)),0)","v":0},null,null,{"$f":"[1]RelatedPartyRevenue!F21","v":0},{"$f":"[1]RelatedPartyRevenue!G21","v":0},{"$f":"[1]RelatedPartyRevenue!H21","v":0},null,{"$f":"[1]RelatedPartyRevenue!M21","v":0},{"$f":"[1]RelatedPartyRevenue!M21","v":0},{"$f":"[1]RelatedPartyRevenue!O21","v":0},{"$f":"[1]RelatedPartyRevenue!O21","v":0},{"$f":"[1]RelatedPartyRevenue!Q21","v":0},{"$f":"[1]RelatedPartyRevenue!Q21","v":0},{"$f":"[1]RelatedPartyRevenue!S21","v":0},{"$f":"[1]RelatedPartyRevenue!S21","v":0},{"$f":"[1]RelatedPartyRevenue!U21","v":0},{"$f":"[1]RelatedPartyRevenue!U21","v":0},{"$f":"[1]RelatedPartyRevenue!V21","v":0},{"$f":"[1]RelatedPartyRevenue!V21","v":0},0,null,{"$f":"[1]RelatedPartyRevenue!X21","v":0},null,0,0,0,0,0,0]
[0,0,{"$f":"IFERROR(INDEX((Settings!$M$17:$M$236),MATCH(RelatedPartyRevenue!G22,Settings!$AD$18:$AD$166,0)),0)","v":0},null,null,{"$f":"[1]RelatedPartyRevenue!F22","v":0},{"$f":"[1]RelatedPartyRevenue!G22","v":0},{"$f":"[1]RelatedPartyRevenue!H22","v":0},null,{"$f":"[1]RelatedPartyRevenue!M22","v":0},{"$f":"[1]RelatedPartyRevenue!M22","v":0},{"$f":"[1]RelatedPartyRevenue!O22","v":0},{"$f":"[1]RelatedPartyRevenue!O22","v":0},{"$f":"[1]RelatedPartyRevenue!Q22","v":0},{"$f":"[1]RelatedPartyRevenue!Q22","v":0},{"$f":"[1]RelatedPartyRevenue!S22","v":0},{"$f":"[1]RelatedPartyRevenue!S22","v":0},{"$f":"[1]RelatedPartyRevenue!U22","v":0},{"$f":"[1]RelatedPartyRevenue!U22","v":0},{"$f":"[1]RelatedPartyRevenue!V22","v":0},{"$f":"[1]RelatedPartyRevenue!V22","v":0},0,null,{"$f":"[1]RelatedPartyRevenue!X22","v":0},null,0,0,0,0,0,0]
[0,0,{"$f":"IFERROR(INDEX((Settings!$M$17:$M$236),MATCH(RelatedPartyRevenue!G23,Settings!$AD$18:$AD$166,0)),0)","v":0},null,null,{"$f":"[1]RelatedPartyRevenue!F23","v":0},{"$f":"[1]RelatedPartyRevenue!G23","v":0},{"$f":"[1]RelatedPartyRevenue!H23","v":0},null,{"$f":"[1]RelatedPartyRevenue!M23","v":0},{"$f":"[1]RelatedPartyRevenue!M23","v":0},{"$f":"[1]RelatedPartyRevenue!O23","v":0},{"$f":"[1]RelatedPartyRevenue!O23","v":0},{"$f":"[1]RelatedPartyRevenue!Q23","v":0},{"$f":"[1]RelatedPartyRevenue!Q23","v":0},{"$f":"[1]RelatedPartyRevenue!S23","v":0},{"$f":"[1]RelatedPartyRevenue!S23","v":0},{"$f":"[1]RelatedPartyRevenue!U23","v":0},{"$f":"[1]RelatedPartyRevenue!U23","v":0},{"$f":"[1]RelatedPartyRevenue!V23","v":0},{"$f":"[1]RelatedPartyRevenue!V23","v":0},0,null,{"$f":"[1]RelatedPartyRevenue!X23","v":0},null,0,0,0,0,0,0]
[0,0,{"$f":"IFERROR(INDEX((Settings!$M$17:$M$236),MATCH(RelatedPartyRevenue!G24,Settings!$AD$18:$AD$166,0)),0)","v":0},null,null,{"$f":"[1]RelatedPartyRevenue!F24","v":0},{"$f":"[1]RelatedPartyRevenue!G24","v":0},{"$f":"[1]RelatedPartyRevenue!H24","v":0},null,{"$f":"[1]RelatedPartyRevenue!M24","v":0},{"$f":"[1]RelatedPartyRevenue!M24","v":0},{"$f":"[1]RelatedPartyRevenue!O24","v":0},{"$f":"[1]RelatedPartyRevenue!O24","v":0},{"$f":"[1]RelatedPartyRevenue!Q24","v":0},{"$f":"[1]RelatedPartyRevenue!Q24","v":0},{"$f":"[1]RelatedPartyRevenue!S24","v":0},{"$f":"[1]RelatedPartyRevenue!S24","v":0},{"$f":"[1]RelatedPartyRevenue!U24","v":0},{"$f":"[1]RelatedPartyRevenue!U24","v":0},{"$f":"[1]RelatedPartyRevenue!V24","v":0},{"$f":"[1]RelatedPartyRevenue!V24","v":0},0,null,{"$f":"[1]RelatedPartyRevenue!X24","v":0},null,0,0,0,0,0,0]
[0,0,{"$f":"IFERROR(INDEX((Settings!$M$17:$M$236),MATCH(RelatedPartyRevenue!G25,Settings!$AD$18:$AD$166,0)),0)","v":0},null,null,{"$f":"[1]RelatedPartyRevenue!F25","v":0},{"$f":"[1]RelatedPartyRevenue!G25","v":0},{"$f":"[1]RelatedPartyRevenue!H25","v":0},null,{"$f":"[1]RelatedPartyRevenue!M25","v":0},{"$f":"[1]RelatedPartyRevenue!M25","v":0},{"$f":"[1]RelatedPartyRevenue!O25","v":0},{"$f":"[1]RelatedPartyRevenue!O25","v":0},{"$f":"[1]RelatedPartyRevenue!Q25","v":0},{"$f":"[1]RelatedPartyRevenue!Q25","v":0},{"$f":"[1]RelatedPartyRevenue!S25","v":0},{"$f":"[1]RelatedPartyRevenue!S25","v":0},{"$f":"[1]RelatedPartyRevenue!U25","v":0},{"$f":"[1]RelatedPartyRevenue!U25","v":0},{"$f":"[1]RelatedPartyRevenue!V25","v":0},{"$f":"[1]RelatedPartyRevenue!V25","v":0},0,null,{"$f":"[1]RelatedPartyRevenue!X25","v":0},null,0,0,0,0,0,0]
[0,0,{"$f":"IFERROR(INDEX((Settings!$M$17:$M$236),MATCH(RelatedPartyRevenue!G26,Settings!$AD$18:$AD$166,0)),0)","v":0},null,null,{"$f":"[1]RelatedPartyRevenue!F26","v":0},{"$f":"[1]RelatedPartyRevenue!G26","v":0},{"$f":"[1]RelatedPartyRevenue!H26","v":0},null,{"$f":"[1]RelatedPartyRevenue!M26","v":0},{"$f":"[1]RelatedPartyRevenue!M26","v":0},{"$f":"[1]RelatedPartyRevenue!O26","v":0},{"$f":"[1]RelatedPartyRevenue!O26","v":0},{"$f":"[1]RelatedPartyRevenue!Q26","v":0},{"$f":"[1]RelatedPartyRevenue!Q26","v":0},{"$f":"[1]RelatedPartyRevenue!S26","v":0},{"$f":"[1]RelatedPartyRevenue!S26","v":0},{"$f":"[1]RelatedPartyRevenue!U26","v":0},{"$f":"[1]RelatedPartyRevenue!U26","v":0},{"$f":"[1]RelatedPartyRevenue!V26","v":0},{"$f":"[1]RelatedPartyRevenue!V26","v":0},0,null,{"$f":"[1]RelatedPartyRevenue!X26","v":0},null,0,0,0,0,0,0]
[0,0,{"$f":"IFERROR(INDEX((Settings!$M$17:$M$236),MATCH(RelatedPartyRevenue!G27,Settings!$AD$18:$AD$166,0)),0)","v":0},null,null,{"$f":"[1]RelatedPartyRevenue!F27","v":0},{"$f":"[1]RelatedPartyRevenue!G27","v":0},{"$f":"[1]RelatedPartyRevenue!H27","v":0},null,{"$f":"[1]RelatedPartyRevenue!M27","v":0},{"$f":"[1]RelatedPartyRevenue!M27","v":0},{"$f":"[1]RelatedPartyRevenue!O27","v":0},{"$f":"[1]RelatedPartyRevenue!O27","v":0},{"$f":"[1]RelatedPartyRevenue!Q27","v":0},{"$f":"[1]RelatedPartyRevenue!Q27","v":0},{"$f":"[1]RelatedPartyRevenue!S27","v":0},{"$f":"[1]RelatedPartyRevenue!S27","v":0},{"$f":"[1]RelatedPartyRevenue!U27","v":0},{"$f":"[1]RelatedPartyRevenue!U27","v":0},{"$f":"[1]RelatedPartyRevenue!V27","v":0},{"$f":"[1]RelatedPartyRevenue!V27","v":0},0,null,{"$f":"[1]RelatedPartyRevenue!X27","v":0},null,0,0,0,0,0,0]
[0,0,{"$f":"IFERROR(INDEX((Settings!$M$17:$M$236),MATCH(RelatedPartyRevenue!G28,Settings!$AD$18:$AD$166,0)),0)","v":0},null,null,{"$f":"[1]RelatedPartyRevenue!F28","v":0},{"$f":"[1]RelatedPartyRevenue!G28","v":0},{"$f":"[1]RelatedPartyRevenue!H28","v":0},null,{"$f":"[1]RelatedPartyRevenue!M28","v":0},{"$f":"[1]RelatedPartyRevenue!M28","v":0},{"$f":"[1]RelatedPartyRevenue!O28","v":0},{"$f":"[1]RelatedPartyRevenue!O28","v":0},{"$f":"[1]RelatedPartyRevenue!Q28","v":0},{"$f":"[1]RelatedPartyRevenue!Q28","v":0},{"$f":"[1]RelatedPartyRevenue!S28","v":0},{"$f":"[1]RelatedPartyRevenue!S28","v":0},{"$f":"[1]RelatedPartyRevenue!U28","v":0},{"$f":"[1]RelatedPartyRevenue!U28","v":0},{"$f":"[1]RelatedPartyRevenue!V28","v":0},{"$f":"[1]RelatedPartyRevenue!V28","v":0},0,null,{"$f":"[1]RelatedPartyRevenue!X28","v":0},null,0,0,0,0,0,0]
[0,0,{"$f":"IFERROR(INDEX((Settings!$M$17:$M$236),MATCH(RelatedPartyRevenue!G29,Settings!$AD$18:$AD$166,0)),0)","v":0},null,null,{"$f":"[1]RelatedPartyRevenue!F29","v":0},{"$f":"[1]RelatedPartyRevenue!G29","v":0},{"$f":"[1]RelatedPartyRevenue!H29","v":0},null,{"$f":"[1]RelatedPartyRevenue!M29","v":0},{"$f":"[1]RelatedPartyRevenue!M29","v":0},{"$f":"[1]RelatedPartyRevenue!O29","v":0},{"$f":"[1]RelatedPartyRevenue!O29","v":0},{"$f":"[1]RelatedPartyRevenue!Q29","v":0},{"$f":"[1]RelatedPartyRevenue!Q29","v":0},{"$f":"[1]RelatedPartyRevenue!S29","v":0},{"$f":"[1]RelatedPartyRevenue!S29","v":0},{"$f":"[1]RelatedPartyRevenue!U29","v":0},{"$f":"[1]RelatedPartyRevenue!U29","v":0},{"$f":"[1]RelatedPartyRevenue!V29","v":0},{"$f":"[1]RelatedPartyRevenue!V29","v":0},0,null,{"$f":"[1]RelatedPartyRevenue!X29","v":0},null,0,0,0,0,0,0]
[0,0,{"$f":"IFERROR(INDEX((Settings!$M$17:$M$236),MATCH(RelatedPartyRevenue!G30,Settings!$AD$18:$AD$166,0)),0)","v":0},null,null,{"$f":"[1]RelatedPartyRevenue!F30","v":0},{"$f":"[1]RelatedPartyRevenue!G30","v":0},{"$f":"[1]RelatedPartyRevenue!H30","v":0},null,{"$f":"[1]RelatedPartyRevenue!M30","v":0},{"$f":"[1]RelatedPartyRevenue!M30","v":0},{"$f":"[1]RelatedPartyRevenue!O30","v":0},{"$f":"[1]RelatedPartyRevenue!O30","v":0},{"$f":"[1]RelatedPartyRevenue!Q30","v":0},{"$f":"[1]RelatedPartyRevenue!Q30","v":0},{"$f":"[1]RelatedPartyRevenue!S30","v":0},{"$f":"[1]RelatedPartyRevenue!S30","v":0},{"$f":"[1]RelatedPartyRevenue!U30","v":0},{"$f":"[1]RelatedPartyRevenue!U30","v":0},{"$f":"[1]RelatedPartyRevenue!V30","v":0},{"$f":"[1]RelatedPartyRevenue!V30","v":0},0,null,{"$f":"[1]RelatedPartyRevenue!X30","v":0},null,0,0,0,0,0,0]
[0,0,{"$f":"IFERROR(INDEX((Settings!$M$17:$M$236),MATCH(RelatedPartyRevenue!G31,Settings!$AD$18:$AD$166,0)),0)","v":0},null,null,{"$f":"[1]RelatedPartyRevenue!F31","v":0},{"$f":"[1]RelatedPartyRevenue!G31","v":0},{"$f":"[1]RelatedPartyRevenue!H31","v":0},null,{"$f":"[1]RelatedPartyRevenue!M31","v":0},{"$f":"[1]RelatedPartyRevenue!M31","v":0},{"$f":"[1]RelatedPartyRevenue!O31","v":0},{"$f":"[1]RelatedPartyRevenue!O31","v":0},{"$f":"[1]RelatedPartyRevenue!Q31","v":0},{"$f":"[1]RelatedPartyRevenue!Q31","v":0},{"$f":"[1]RelatedPartyRevenue!S31","v":0},{"$f":"[1]RelatedPartyRevenue!S31","v":0},{"$f":"[1]RelatedPartyRevenue!U31","v":0},{"$f":"[1]RelatedPartyRevenue!U31","v":0},{"$f":"[1]RelatedPartyRevenue!V31","v":0},{"$f":"[1]RelatedPartyRevenue!V31","v":0},0,null,{"$f":"[1]RelatedPartyRevenue!X31","v":0},null,0,0,0,0,0,0]
[0,0,{"$f":"IFERROR(INDEX((Settings!$M$17:$M$236),MATCH(RelatedPartyRevenue!G32,Settings!$AD$18:$AD$166,0)),0)","v":0},null,null,{"$f":"[1]RelatedPartyRevenue!F32","v":0},{"$f":"[1]RelatedPartyRevenue!G32","v":0},{"$f":"[1]RelatedPartyRevenue!H32","v":0},null,{"$f":"[1]RelatedPartyRevenue!M32","v":0},{"$f":"[1]RelatedPartyRevenue!M32","v":0},{"$f":"[1]RelatedPartyRevenue!O32","v":0},{"$f":"[1]RelatedPartyRevenue!O32","v":0},{"$f":"[1]RelatedPartyRevenue!Q32","v":0},{"$f":"[1]RelatedPartyRevenue!Q32","v":0},{"$f":"[1]RelatedPartyRevenue!S32","v":0},{"$f":"[1]RelatedPartyRevenue!S32","v":0},{"$f":"[1]RelatedPartyRevenue!U32","v":0},{"$f":"[1]RelatedPartyRevenue!U32","v":0},{"$f":"[1]RelatedPartyRevenue!V32","v":0},{"$f":"[1]RelatedPartyRevenue!V32","v":0},0,null,{"$f":"[1]RelatedPartyRevenue!X32","v":0},null,0,0,0,0,0,0]
[0,0,{"$f":"IFERROR(INDEX((Settings!$M$17:$M$236),MATCH(RelatedPartyRevenue!G33,Settings!$AD$18:$AD$166,0)),0)","v":0},null,null,{"$f":"[1]RelatedPartyRevenue!F33","v":0},{"$f":"[1]RelatedPartyRevenue!G33","v":0},{"$f":"[1]RelatedPartyRevenue!H33","v":0},null,{"$f":"[1]RelatedPartyRevenue!M33","v":0},{"$f":"[1]RelatedPartyRevenue!M33","v":0},{"$f":"[1]RelatedPartyRevenue!O33","v":0},{"$f":"[1]RelatedPartyRevenue!O33","v":0},{"$f":"[1]RelatedPartyRevenue!Q33","v":0},{"$f":"[1]RelatedPartyRevenue!Q33","v":0},{"$f":"[1]RelatedPartyRevenue!S33","v":0},{"$f":"[1]RelatedPartyRevenue!S33","v":0},{"$f":"[1]RelatedPartyRevenue!U33","v":0},{"$f":"[1]RelatedPartyRevenue!U33","v":0},{"$f":"[1]RelatedPartyRevenue!V33","v":0},{"$f":"[1]RelatedPartyRevenue!V33","v":0},0,null,{"$f":"[1]RelatedPartyRevenue!X33","v":0},null,0,0,0,0,0,0]
[0,0,{"$f":"IFERROR(INDEX((Settings!$M$17:$M$236),MATCH(RelatedPartyRevenue!G34,Settings!$AD$18:$AD$166,0)),0)","v":0},null,null,{"$f":"[1]RelatedPartyRevenue!F34","v":0},{"$f":"[1]RelatedPartyRevenue!G34","v":0},{"$f":"[1]RelatedPartyRevenue!H34","v":0},null,{"$f":"[1]RelatedPartyRevenue!M34","v":0},{"$f":"[1]RelatedPartyRevenue!M34","v":0},{"$f":"[1]RelatedPartyRevenue!O34","v":0},{"$f":"[1]RelatedPartyRevenue!O34","v":0},{"$f":"[1]RelatedPartyRevenue!Q34","v":0},{"$f":"[1]RelatedPartyRevenue!Q34","v":0},{"$f":"[1]RelatedPartyRevenue!S34","v":0},{"$f":"[1]RelatedPartyRevenue!S34","v":0},{"$f":"[1]RelatedPartyRevenue!U34","v":0},{"$f":"[1]RelatedPartyRevenue!U34","v":0},{"$f":"[1]RelatedPartyRevenue!V34","v":0},{"$f":"[1]RelatedPartyRevenue!V34","v":0},0,null,{"$f":"[1]RelatedPartyRevenue!X34","v":0},null,0,0,0,0,0,0]
[0,0,{"$f":"IFERROR(INDEX((Settings!$M$17:$M$236),MATCH(RelatedPartyRevenue!G35,Settings!$AD$18:$AD$166,0)),0)","v":0},null,null,{"$f":"[1]RelatedPartyRevenue!F35","v":0},{"$f":"[1]RelatedPartyRevenue!G35","v":0},{"$f":"[1]RelatedPartyRevenue!H35","v":0},null,{"$f":"[1]RelatedPartyRevenue!M35","v":0},{"$f":"[1]RelatedPartyRevenue!M35","v":0},{"$f":"[1]RelatedPartyRevenue!O35","v":0},{"$f":"[1]RelatedPartyRevenue!O35","v":0},{"$f":"[1]RelatedPartyRevenue!Q35","v":0},{"$f":"[1]RelatedPartyRevenue!Q35","v":0},{"$f":"[1]RelatedPartyRevenue!S35","v":0},{"$f":"[1]RelatedPartyRevenue!S35","v":0},{"$f":"[1]RelatedPartyRevenue!U35","v":0},{"$f":"[1]RelatedPartyRevenue!U35","v":0},{"$f":"[1]RelatedPartyRevenue!V35","v":0},{"$f":"[1]RelatedPartyRevenue!V35","v":0},0,null,{"$f":"[1]RelatedPartyRevenue!X35","v":0},null,0,0,0,0,0,0]
[0,0,{"$f":"IFERROR(INDEX((Settings!$M$17:$M$236),MATCH(RelatedPartyRevenue!G36,Settings!$AD$18:$AD$166,0)),0)","v":0},null,null,{"$f":"[1]RelatedPartyRevenue!F36","v":0},{"$f":"[1]RelatedPartyRevenue!G36","v":0},{"$f":"[1]RelatedPartyRevenue!H36","v":0},null,{"$f":"[1]RelatedPartyRevenue!M36","v":0},{"$f":"[1]RelatedPartyRevenue!M36","v":0},{"$f":"[1]RelatedPartyRevenue!O36","v":0},{"$f":"[1]RelatedPartyRevenue!O36","v":0},{"$f":"[1]RelatedPartyRevenue!Q36","v":0},{"$f":"[1]RelatedPartyRevenue!Q36","v":0},{"$f":"[1]RelatedPartyRevenue!S36","v":0},{"$f":"[1]RelatedPartyRevenue!S36","v":0},{"$f":"[1]RelatedPartyRevenue!U36","v":0},{"$f":"[1]RelatedPartyRevenue!U36","v":0},{"$f":"[1]RelatedPartyRevenue!V36","v":0},{"$f":"[1]RelatedPartyRevenue!V36","v":0},0,null,{"$f":"[1]RelatedPartyRevenue!X36","v":0},null,0,0,0,0,0,0]
[0,0,{"$f":"IFERROR(INDEX((Settings!$M$17:$M$236),MATCH(RelatedPartyRevenue!G37,Settings!$AD$18:$AD$166,0)),0)","v":0},null,null,{"$f":"[1]RelatedPartyRevenue!F37","v":0},{"$f":"[1]RelatedPartyRevenue!G37","v":0},{"$f":"[1]RelatedPartyRevenue!H37","v":0},null,{"$f":"[1]RelatedPartyRevenue!M37","v":0},{"$f":"[1]RelatedPartyRevenue!M37","v":0},{"$f":"[1]RelatedPartyRevenue!O37","v":0},{"$f":"[1]RelatedPartyRevenue!O37","v":0},{"$f":"[1]RelatedPartyRevenue!Q37","v":0},{"$f":"[1]RelatedPartyRevenue!Q37","v":0},{"$f":"[1]RelatedPartyRevenue!S37","v":0},{"$f":"[1]RelatedPartyRevenue!S37","v":0},{"$f":"[1]RelatedPartyRevenue!U37","v":0},{"$f":"[1]RelatedPartyRevenue!U37","v":0},{"$f":"[1]RelatedPartyRevenue!V37","v":0},{"$f":"[1]RelatedPartyRevenue!V37","v":0},0,null,{"$f":"[1]RelatedPartyRevenue!X37","v":0},null,0,0,0,0,0,0]
[0,0,{"$f":"IFERROR(INDEX((Settings!$M$17:$M$236),MATCH(RelatedPartyRevenue!G38,Settings!$AD$18:$AD$166,0)),0)","v":0},null,null,{"$f":"[1]RelatedPartyRevenue!F38","v":0},{"$f":"[1]RelatedPartyRevenue!G38","v":0},{"$f":"[1]RelatedPartyRevenue!H38","v":0},null,{"$f":"[1]RelatedPartyRevenue!M38","v":0},{"$f":"[1]RelatedPartyRevenue!M38","v":0},{"$f":"[1]RelatedPartyRevenue!O38","v":0},{"$f":"[1]RelatedPartyRevenue!O38","v":0},{"$f":"[1]RelatedPartyRevenue!Q38","v":0},{"$f":"[1]RelatedPartyRevenue!Q38","v":0},{"$f":"[1]RelatedPartyRevenue!S38","v":0},{"$f":"[1]RelatedPartyRevenue!S38","v":0},{"$f":"[1]RelatedPartyRevenue!U38","v":0},{"$f":"[1]RelatedPartyRevenue!U38","v":0},{"$f":"[1]RelatedPartyRevenue!V38","v":0},{"$f":"[1]RelatedPartyRevenue!V38","v":0},0,null,{"$f":"[1]RelatedPartyRevenue!X38","v":0},null,0,0,0,0,0,0]
[0,0,{"$f":"IFERROR(INDEX((Settings!$M$17:$M$236),MATCH(RelatedPartyRevenue!G39,Settings!$AD$18:$AD$166,0)),0)","v":0},null,null,{"$f":"[1]RelatedPartyRevenue!F39","v":0},{"$f":"[1]RelatedPartyRevenue!G39","v":0},{"$f":"[1]RelatedPartyRevenue!H39","v":0},null,{"$f":"[1]RelatedPartyRevenue!M39","v":0},{"$f":"[1]RelatedPartyRevenue!M39","v":0},{"$f":"[1]RelatedPartyRevenue!O39","v":0},{"$f":"[1]RelatedPartyRevenue!O39","v":0},{"$f":"[1]RelatedPartyRevenue!Q39","v":0},{"$f":"[1]RelatedPartyRevenue!Q39","v":0},{"$f":"[1]RelatedPartyRevenue!S39","v":0},{"$f":"[1]RelatedPartyRevenue!S39","v":0},{"$f":"[1]RelatedPartyRevenue!U39","v":0},{"$f":"[1]RelatedPartyRevenue!U39","v":0},{"$f":"[1]RelatedPartyRevenue!V39","v":0},{"$f":"[1]RelatedPartyRevenue!V39","v":0},0,null,{"$f":"[1]RelatedPartyRevenue!X39","v":0},null,0,0,0,0,0,0]
[0,0,{"$f":"IFERROR(INDEX((Settings!$M$17:$M$236),MATCH(RelatedPartyRevenue!G40,Settings!$AD$18:$AD$166,0)),0)","v":0},null,null,{"$f":"[1]RelatedPartyRevenue!F40","v":0},{"$f":"[1]RelatedPartyRevenue!G40","v":0},{"$f":"[1]RelatedPartyRevenue!H40","v":0},null,{"$f":"[1]RelatedPartyRevenue!M40","v":0},{"$f":"[1]RelatedPartyRevenue!M40","v":0},{"$f":"[1]RelatedPartyRevenue!O40","v":0},{"$f":"[1]RelatedPartyRevenue!O40","v":0},{"$f":"[1]RelatedPartyRevenue!Q40","v":0},{"$f":"[1]RelatedPartyRevenue!Q40","v":0},{"$f":"[1]RelatedPartyRevenue!S40","v":0},{"$f":"[1]RelatedPartyRevenue!S40","v":0},{"$f":"[1]RelatedPartyRevenue!U40","v":0},{"$f":"[1]RelatedPartyRevenue!U40","v":0},{"$f":"[1]RelatedPartyRevenue!V40","v":0},{"$f":"[1]RelatedPartyRevenue!V40","v":0},0,null,{"$f":"[1]RelatedPartyRevenue!X40","v":0},null,0,0,0,0,0,0]
[0,0,{"$f":"IFERROR(INDEX((Settings!$M$17:$M$236),MATCH(RelatedPartyRevenue!G41,Settings!$AD$18:$AD$166,0)),0)","v":0},null,null,{"$f":"[1]RelatedPartyRevenue!F41","v":0},{"$f":"[1]RelatedPartyRevenue!G41","v":0},{"$f":"[1]RelatedPartyRevenue!H41","v":0},null,{"$f":"[1]RelatedPartyRevenue!M41","v":0},{"$f":"[1]RelatedPartyRevenue!M41","v":0},{"$f":"[1]RelatedPartyRevenue!O41","v":0},{"$f":"[1]RelatedPartyRevenue!O41","v":0},{"$f":"[1]RelatedPartyRevenue!Q41","v":0},{"$f":"[1]RelatedPartyRevenue!Q41","v":0},{"$f":"[1]RelatedPartyRevenue!S41","v":0},{"$f":"[1]RelatedPartyRevenue!S41","v":0},{"$f":"[1]RelatedPartyRevenue!U41","v":0},{"$f":"[1]RelatedPartyRevenue!U41","v":0},{"$f":"[1]RelatedPartyRevenue!V41","v":0},{"$f":"[1]RelatedPartyRevenue!V41","v":0},0,null,{"$f":"[1]RelatedPartyRevenue!X41","v":0},null,0,0,0,0,0,0]
[0,0,{"$f":"IFERROR(INDEX((Settings!$M$17:$M$236),MATCH(RelatedPartyRevenue!G42,Settings!$AD$18:$AD$166,0)),0)","v":0},null,null,{"$f":"[1]RelatedPartyRevenue!F42","v":0},{"$f":"[1]RelatedPartyRevenue!G42","v":0},{"$f":"[1]RelatedPartyRevenue!H42","v":0},null,{"$f":"[1]RelatedPartyRevenue!M42","v":0},{"$f":"[1]RelatedPartyRevenue!M42","v":0},{"$f":"[1]RelatedPartyRevenue!O42","v":0},{"$f":"[1]RelatedPartyRevenue!O42","v":0},{"$f":"[1]RelatedPartyRevenue!Q42","v":0},{"$f":"[1]RelatedPartyRevenue!Q42","v":0},{"$f":"[1]RelatedPartyRevenue!S42","v":0},{"$f":"[1]RelatedPartyRevenue!S42","v":0},{"$f":"[1]RelatedPartyRevenue!U42","v":0},{"$f":"[1]RelatedPartyRevenue!U42","v":0},{"$f":"[1]RelatedPartyRevenue!V42","v":0},{"$f":"[1]RelatedPartyRevenue!V42","v":0},0,null,{"$f":"[1]RelatedPartyRevenue!X42","v":0},null,0,0,0,0,0,0]
[0,0,{"$f":"IFERROR(INDEX((Settings!$M$17:$M$236),MATCH(RelatedPartyRevenue!G43,Settings!$AD$18:$AD$166,0)),0)","v":0},null,null,{"$f":"[1]RelatedPartyRevenue!F43","v":0},{"$f":"[1]RelatedPartyRevenue!G43","v":0},{"$f":"[1]RelatedPartyRevenue!H43","v":0},null,{"$f":"[1]RelatedPartyRevenue!M43","v":0},{"$f":"[1]RelatedPartyRevenue!M43","v":0},{"$f":"[1]RelatedPartyRevenue!O43","v":0},{"$f":"[1]RelatedPartyRevenue!O43","v":0},{"$f":"[1]RelatedPartyRevenue!Q43","v":0},{"$f":"[1]RelatedPartyRevenue!Q43","v":0},{"$f":"[1]RelatedPartyRevenue!S43","v":0},{"$f":"[1]RelatedPartyRevenue!S43","v":0},{"$f":"[1]RelatedPartyRevenue!U43","v":0},{"$f":"[1]RelatedPartyRevenue!U43","v":0},{"$f":"[1]RelatedPartyRevenue!V43","v":0},{"$f":"[1]RelatedPartyRevenue!V43","v":0},0,null,{"$f":"[1]RelatedPartyRevenue!X43","v":0},null,0,0,0,0,0,0]
[0,0,{"$f":"IFERROR(INDEX((Settings!$M$17:$M$236),MATCH(RelatedPartyRevenue!G44,Settings!$AD$18:$AD$166,0)),0)","v":0},null,null,{"$f":"[1]RelatedPartyRevenue!F44","v":0},{"$f":"[1]RelatedPartyRevenue!G44","v":0},{"$f":"[1]RelatedPartyRevenue!H44","v":0},null,{"$f":"[1]RelatedPartyRevenue!M44","v":0},{"$f":"[1]RelatedPartyRevenue!M44","v":0},{"$f":"[1]RelatedPartyRevenue!O44","v":0},{"$f":"[1]RelatedPartyRevenue!O44","v":0},{"$f":"[1]RelatedPartyRevenue!Q44","v":0},{"$f":"[1]RelatedPartyRevenue!Q44","v":0},{"$f":"[1]RelatedPartyRevenue!S44","v":0},{"$f":"[1]RelatedPartyRevenue!S44","v":0},{"$f":"[1]RelatedPartyRevenue!U44","v":0},{"$f":"[1]RelatedPartyRevenue!U44","v":0},{"$f":"[1]RelatedPartyRevenue!V44","v":0},{"$f":"[1]RelatedPartyRevenue!V44","v":0},0,null,{"$f":"[1]RelatedPartyRevenue!X44","v":0},null,0,0,0,0,0,0]
[0,0,{"$f":"IFERROR(INDEX((Settings!$M$17:$M$236),MATCH(RelatedPartyRevenue!G45,Settings!$AD$18:$AD$166,0)),0)","v":0},null,null,{"$f":"[1]RelatedPartyRevenue!F45","v":0},{"$f":"[1]RelatedPartyRevenue!G45","v":0},{"$f":"[1]RelatedPartyRevenue!H45","v":0},null,{"$f":"[1]RelatedPartyRevenue!M45","v":0},{"$f":"[1]RelatedPartyRevenue!M45","v":0},{"$f":"[1]RelatedPartyRevenue!O45","v":0},{"$f":"[1]RelatedPartyRevenue!O45","v":0},{"$f":"[1]RelatedPartyRevenue!Q45","v":0},{"$f":"[1]RelatedPartyRevenue!Q45","v":0},{"$f":"[1]RelatedPartyRevenue!S45","v":0},{"$f":"[1]RelatedPartyRevenue!S45","v":0},{"$f":"[1]RelatedPartyRevenue!U45","v":0},{"$f":"[1]RelatedPartyRevenue!U45","v":0},{"$f":"[1]RelatedPartyRevenue!V45","v":0},{"$f":"[1]RelatedPartyRevenue!V45","v":0},0,null,{"$f":"[1]RelatedPartyRevenue!X45","v":0},null,0,0,0,0,0,0]
[0,0,{"$f":"IFERROR(INDEX((Settings!$M$17:$M$236),MATCH(RelatedPartyRevenue!G46,Settings!$AD$18:$AD$166,0)),0)","v":0},null,null,{"$f":"[1]RelatedPartyRevenue!F46","v":0},{"$f":"[1]RelatedPartyRevenue!G46","v":0},{"$f":"[1]RelatedPartyRevenue!H46","v":0},null,{"$f":"[1]RelatedPartyRevenue!M46","v":0},{"$f":"[1]RelatedPartyRevenue!M46","v":0},{"$f":"[1]RelatedPartyRevenue!O46","v":0},{"$f":"[1]RelatedPartyRevenue!O46","v":0},{"$f":"[1]RelatedPartyRevenue!Q46","v":0},{"$f":"[1]RelatedPartyRevenue!Q46","v":0},{"$f":"[1]RelatedPartyRevenue!S46","v":0},{"$f":"[1]RelatedPartyRevenue!S46","v":0},{"$f":"[1]RelatedPartyRevenue!U46","v":0},{"$f":"[1]RelatedPartyRevenue!U46","v":0},{"$f":"[1]RelatedPartyRevenue!V46","v":0},{"$f":"[1]RelatedPartyRevenue!V46","v":0},0,null,{"$f":"[1]RelatedPartyRevenue!X46","v":0},null,0,0,0,0,0,0]
[0,0,{"$f":"IFERROR(INDEX((Settings!$M$17:$M$236),MATCH(RelatedPartyRevenue!G47,Settings!$AD$18:$AD$166,0)),0)","v":0},null,null,{"$f":"[1]RelatedPartyRevenue!F47","v":0},{"$f":"[1]RelatedPartyRevenue!G47","v":0},{"$f":"[1]RelatedPartyRevenue!H47","v":0},null,{"$f":"[1]RelatedPartyRevenue!M47","v":0},{"$f":"[1]RelatedPartyRevenue!M47","v":0},{"$f":"[1]RelatedPartyRevenue!O47","v":0},{"$f":"[1]RelatedPartyRevenue!O47","v":0},{"$f":"[1]RelatedPartyRevenue!Q47","v":0},{"$f":"[1]RelatedPartyRevenue!Q47","v":0},{"$f":"[1]RelatedPartyRevenue!S47","v":0},{"$f":"[1]RelatedPartyRevenue!S47","v":0},{"$f":"[1]RelatedPartyRevenue!U47","v":0},{"$f":"[1]RelatedPartyRevenue!U47","v":0},{"$f":"[1]RelatedPartyRevenue!V47","v":0},{"$f":"[1]RelatedPartyRevenue!V47","v":0},0,null,{"$f":"[1]RelatedPartyRevenue!X47","v":0},null,0,0,0,0,0,0]
[0,0,{"$f":"IFERROR(INDEX((Settings!$M$17:$M$236),MATCH(RelatedPartyRevenue!G48,Settings!$AD$18:$AD$166,0)),0)","v":0},null,null,{"$f":"[1]RelatedPartyRevenue!F48","v":0},{"$f":"[1]RelatedPartyRevenue!G48","v":0},{"$f":"[1]RelatedPartyRevenue!H48","v":0},null,{"$f":"[1]RelatedPartyRevenue!M48","v":0},{"$f":"[1]RelatedPartyRevenue!M48","v":0},{"$f":"[1]RelatedPartyRevenue!O48","v":0},{"$f":"[1]RelatedPartyRevenue!O48","v":0},{"$f":"[1]RelatedPartyRevenue!Q48","v":0},{"$f":"[1]RelatedPartyRevenue!Q48","v":0},{"$f":"[1]RelatedPartyRevenue!S48","v":0},{"$f":"[1]RelatedPartyRevenue!S48","v":0},{"$f":"[1]RelatedPartyRevenue!U48","v":0},{"$f":"[1]RelatedPartyRevenue!U48","v":0},{"$f":"[1]RelatedPartyRevenue!V48","v":0},{"$f":"[1]RelatedPartyRevenue!V48","v":0},0,null,{"$f":"[1]RelatedPartyRevenue!X48","v":0},null,0,0,0,0,0,0]
[0,0,{"$f":"IFERROR(INDEX((Settings!$M$17:$M$236),MATCH(RelatedPartyRevenue!G49,Settings!$AD$18:$AD$166,0)),0)","v":0},null,null,{"$f":"[1]RelatedPartyRevenue!F49","v":0},{"$f":"[1]RelatedPartyRevenue!G49","v":0},{"$f":"[1]RelatedPartyRevenue!H49","v":0},null,{"$f":"[1]RelatedPartyRevenue!M49","v":0},{"$f":"[1]RelatedPartyRevenue!M49","v":0},{"$f":"[1]RelatedPartyRevenue!O49","v":0},{"$f":"[1]RelatedPartyRevenue!O49","v":0},{"$f":"[1]RelatedPartyRevenue!Q49","v":0},{"$f":"[1]RelatedPartyRevenue!Q49","v":0},{"$f":"[1]RelatedPartyRevenue!S49","v":0},{"$f":"[1]RelatedPartyRevenue!S49","v":0},{"$f":"[1]RelatedPartyRevenue!U49","v":0},{"$f":"[1]RelatedPartyRevenue!U49","v":0},{"$f":"[1]RelatedPartyRevenue!V49","v":0},{"$f":"[1]RelatedPartyRevenue!V49","v":0},0,null,{"$f":"[1]RelatedPartyRevenue!X49","v":0},null,0,0,0,0,0,0]
[0,0,{"$f":"IFERROR(INDEX((Settings!$M$17:$M$236),MATCH(RelatedPartyRevenue!G50,Settings!$AD$18:$AD$166,0)),0)","v":0},null,null,{"$f":"[1]RelatedPartyRevenue!F50","v":0},{"$f":"[1]RelatedPartyRevenue!G50","v":0},{"$f":"[1]RelatedPartyRevenue!H50","v":0},null,{"$f":"[1]RelatedPartyRevenue!M50","v":0},{"$f":"[1]RelatedPartyRevenue!M50","v":0},{"$f":"[1]RelatedPartyRevenue!O50","v":0},{"$f":"[1]RelatedPartyRevenue!O50","v":0},{"$f":"[1]RelatedPartyRevenue!Q50","v":0},{"$f":"[1]RelatedPartyRevenue!Q50","v":0},{"$f":"[1]RelatedPartyRevenue!S50","v":0},{"$f":"[1]RelatedPartyRevenue!S50","v":0},{"$f":"[1]RelatedPartyRevenue!U50","v":0},{"$f":"[1]RelatedPartyRevenue!U50","v":0},{"$f":"[1]RelatedPartyRevenue!V50","v":0},{"$f":"[1]RelatedPartyRevenue!V50","v":0},0,null,{"$f":"[1]RelatedPartyRevenue!X50","v":0},null,0,0,0,0,0,0]
[0,0,{"$f":"IFERROR(INDEX((Settings!$M$17:$M$236),MATCH(RelatedPartyRevenue!G51,Settings!$AD$18:$AD$166,0)),0)","v":0},null,null,{"$f":"[1]RelatedPartyRevenue!F51","v":0},{"$f":"[1]RelatedPartyRevenue!G51","v":0},{"$f":"[1]RelatedPartyRevenue!H51","v":0},null,{"$f":"[1]RelatedPartyRevenue!M51","v":0},{"$f":"[1]RelatedPartyRevenue!M51","v":0},{"$f":"[1]RelatedPartyRevenue!O51","v":0},{"$f":"[1]RelatedPartyRevenue!O51","v":0},{"$f":"[1]RelatedPartyRevenue!Q51","v":0},{"$f":"[1]RelatedPartyRevenue!Q51","v":0},{"$f":"[1]RelatedPartyRevenue!S51","v":0},{"$f":"[1]RelatedPartyRevenue!S51","v":0},{"$f":"[1]RelatedPartyRevenue!U51","v":0},{"$f":"[1]RelatedPartyRevenue!U51","v":0},{"$f":"[1]RelatedPartyRevenue!V51","v":0},{"$f":"[1]RelatedPartyRevenue!V51","v":0},0,null,{"$f":"[1]RelatedPartyRevenue!X51","v":0},null,0,0,0,0,0,0]
[0,0,{"$f":"IFERROR(INDEX((Settings!$M$17:$M$236),MATCH(RelatedPartyRevenue!G52,Settings!$AD$18:$AD$166,0)),0)","v":0},null,null,{"$f":"[1]RelatedPartyRevenue!F52","v":0},{"$f":"[1]RelatedPartyRevenue!G52","v":0},{"$f":"[1]RelatedPartyRevenue!H52","v":0},null,{"$f":"[1]RelatedPartyRevenue!M52","v":0},{"$f":"[1]RelatedPartyRevenue!M52","v":0},{"$f":"[1]RelatedPartyRevenue!O52","v":0},{"$f":"[1]RelatedPartyRevenue!O52","v":0},{"$f":"[1]RelatedPartyRevenue!Q52","v":0},{"$f":"[1]RelatedPartyRevenue!Q52","v":0},{"$f":"[1]RelatedPartyRevenue!S52","v":0},{"$f":"[1]RelatedPartyRevenue!S52","v":0},{"$f":"[1]RelatedPartyRevenue!U52","v":0},{"$f":"[1]RelatedPartyRevenue!U52","v":0},{"$f":"[1]RelatedPartyRevenue!V52","v":0},{"$f":"[1]RelatedPartyRevenue!V52","v":0},0,null,{"$f":"[1]RelatedPartyRevenue!X52","v":0},null,0,0,0,0,0,0]
[0,0,{"$f":"IFERROR(INDEX((Settings!$M$17:$M$236),MATCH(RelatedPartyRevenue!G53,Settings!$AD$18:$AD$166,0)),0)","v":0},null,null,{"$f":"[1]RelatedPartyRevenue!F53","v":0},{"$f":"[1]RelatedPartyRevenue!G53","v":0},{"$f":"[1]RelatedPartyRevenue!H53","v":0},null,{"$f":"[1]RelatedPartyRevenue!M53","v":0},{"$f":"[1]RelatedPartyRevenue!M53","v":0},{"$f":"[1]RelatedPartyRevenue!O53","v":0},{"$f":"[1]RelatedPartyRevenue!O53","v":0},{"$f":"[1]RelatedPartyRevenue!Q53","v":0},{"$f":"[1]RelatedPartyRevenue!Q53","v":0},{"$f":"[1]RelatedPartyRevenue!S53","v":0},{"$f":"[1]RelatedPartyRevenue!S53","v":0},{"$f":"[1]RelatedPartyRevenue!U53","v":0},{"$f":"[1]RelatedPartyRevenue!U53","v":0},{"$f":"[1]RelatedPartyRevenue!V53","v":0},{"$f":"[1]RelatedPartyRevenue!V53","v":0},0,null,{"$f":"[1]RelatedPartyRevenue!X53","v":0},null,0,0,0,0,0,0]
[0,0,{"$f":"IFERROR(INDEX((Settings!$M$17:$M$236),MATCH(RelatedPartyRevenue!G54,Settings!$AD$18:$AD$166,0)),0)","v":0},null,null,{"$f":"[1]RelatedPartyRevenue!F54","v":0},{"$f":"[1]RelatedPartyRevenue!G54","v":0},{"$f":"[1]RelatedPartyRevenue!H54","v":0},null,{"$f":"[1]RelatedPartyRevenue!M54","v":0},{"$f":"[1]RelatedPartyRevenue!M54","v":0},{"$f":"[1]RelatedPartyRevenue!O54","v":0},{"$f":"[1]RelatedPartyRevenue!O54","v":0},{"$f":"[1]RelatedPartyRevenue!Q54","v":0},{"$f":"[1]RelatedPartyRevenue!Q54","v":0},{"$f":"[1]RelatedPartyRevenue!S54","v":0},{"$f":"[1]RelatedPartyRevenue!S54","v":0},{"$f":"[1]RelatedPartyRevenue!U54","v":0},{"$f":"[1]RelatedPartyRevenue!U54","v":0},{"$f":"[1]RelatedPartyRevenue!V54","v":0},{"$f":"[1]RelatedPartyRevenue!V54","v":0},0,null,{"$f":"[1]RelatedPartyRevenue!X54","v":0},null,0,0,0,0,0,0]
[0,0,{"$f":"IFERROR(INDEX((Settings!$M$17:$M$236),MATCH(RelatedPartyRevenue!G55,Settings!$AD$18:$AD$166,0)),0)","v":0},null,null,{"$f":"[1]RelatedPartyRevenue!F55","v":0},{"$f":"[1]RelatedPartyRevenue!G55","v":0},{"$f":"[1]RelatedPartyRevenue!H55","v":0},null,{"$f":"[1]RelatedPartyRevenue!M55","v":0},{"$f":"[1]RelatedPartyRevenue!M55","v":0},{"$f":"[1]RelatedPartyRevenue!O55","v":0},{"$f":"[1]RelatedPartyRevenue!O55","v":0},{"$f":"[1]RelatedPartyRevenue!Q55","v":0},{"$f":"[1]RelatedPartyRevenue!Q55","v":0},{"$f":"[1]RelatedPartyRevenue!S55","v":0},{"$f":"[1]RelatedPartyRevenue!S55","v":0},{"$f":"[1]RelatedPartyRevenue!U55","v":0},{"$f":"[1]RelatedPartyRevenue!U55","v":0},{"$f":"[1]RelatedPartyRevenue!V55","v":0},{"$f":"[1]RelatedPartyRevenue!V55","v":0},0,null,{"$f":"[1]RelatedPartyRevenue!X55","v":0},null,0,0,0,0,0,0]
[0,0,{"$f":"IFERROR(INDEX((Settings!$M$17:$M$236),MATCH(RelatedPartyRevenue!G56,Settings!$AD$18:$AD$166,0)),0)","v":0},null,null,{"$f":"[1]RelatedPartyRevenue!F56","v":0},{"$f":"[1]RelatedPartyRevenue!G56","v":0},{"$f":"[1]RelatedPartyRevenue!H56","v":0},null,{"$f":"[1]RelatedPartyRevenue!M56","v":0},{"$f":"[1]RelatedPartyRevenue!M56","v":0},{"$f":"[1]RelatedPartyRevenue!O56","v":0},{"$f":"[1]RelatedPartyRevenue!O56","v":0},{"$f":"[1]RelatedPartyRevenue!Q56","v":0},{"$f":"[1]RelatedPartyRevenue!Q56","v":0},{"$f":"[1]RelatedPartyRevenue!S56","v":0},{"$f":"[1]RelatedPartyRevenue!S56","v":0},{"$f":"[1]RelatedPartyRevenue!U56","v":0},{"$f":"[1]RelatedPartyRevenue!U56","v":0},{"$f":"[1]RelatedPartyRevenue!V56","v":0},{"$f":"[1]RelatedPartyRevenue!V56","v":0},0,null,{"$f":"[1]RelatedPartyRevenue!X56","v":0},null,0,0,0,0,0,0]
[0,0,{"$f":"IFERROR(INDEX((Settings!$M$17:$M$236),MATCH(RelatedPartyRevenue!G57,Settings!$AD$18:$AD$166,0)),0)","v":0},null,null,{"$f":"[1]RelatedPartyRevenue!F57","v":0},{"$f":"[1]RelatedPartyRevenue!G57","v":0},{"$f":"[1]RelatedPartyRevenue!H57","v":0},null,{"$f":"[1]RelatedPartyRevenue!M57","v":0},{"$f":"[1]RelatedPartyRevenue!M57","v":0},{"$f":"[1]RelatedPartyRevenue!O57","v":0},{"$f":"[1]RelatedPartyRevenue!O57","v":0},{"$f":"[1]RelatedPartyRevenue!Q57","v":0},{"$f":"[1]RelatedPartyRevenue!Q57","v":0},{"$f":"[1]RelatedPartyRevenue!S57","v":0},{"$f":"[1]RelatedPartyRevenue!S57","v":0},{"$f":"[1]RelatedPartyRevenue!U57","v":0},{"$f":"[1]RelatedPartyRevenue!U57","v":0},{"$f":"[1]RelatedPartyRevenue!V57","v":0},{"$f":"[1]RelatedPartyRevenue!V57","v":0},0,null,{"$f":"[1]RelatedPartyRevenue!X57","v":0},null,0,0,0,0,0,0]
[0,0,{"$f":"IFERROR(INDEX((Settings!$M$17:$M$236),MATCH(RelatedPartyRevenue!G58,Settings!$AD$18:$AD$166,0)),0)","v":0},null,null,{"$f":"[1]RelatedPartyRevenue!F58","v":0},{"$f":"[1]RelatedPartyRevenue!G58","v":0},{"$f":"[1]RelatedPartyRevenue!H58","v":0},null,{"$f":"[1]RelatedPartyRevenue!M58","v":0},{"$f":"[1]RelatedPartyRevenue!M58","v":0},{"$f":"[1]RelatedPartyRevenue!O58","v":0},{"$f":"[1]RelatedPartyRevenue!O58","v":0},{"$f":"[1]RelatedPartyRevenue!Q58","v":0},{"$f":"[1]RelatedPartyRevenue!Q58","v":0},{"$f":"[1]RelatedPartyRevenue!S58","v":0},{"$f":"[1]RelatedPartyRevenue!S58","v":0},{"$f":"[1]RelatedPartyRevenue!U58","v":0},{"$f":"[1]RelatedPartyRevenue!U58","v":0},{"$f":"[1]RelatedPartyRevenue!V58","v":0},{"$f":"[1]RelatedPartyRevenue!V58","v":0},0,null,{"$f":"[1]RelatedPartyRevenue!X58","v":0},null,0,0,0,0,0,0]
[0,0,{"$f":"IFERROR(INDEX((Settings!$M$17:$M$236),MATCH(RelatedPartyRevenue!G59,Settings!$AD$18:$AD$166,0)),0)","v":0},null,null,{"$f":"[1]RelatedPartyRevenue!F59","v":0},{"$f":"[1]RelatedPartyRevenue!G59","v":0},{"$f":"[1]RelatedPartyRevenue!H59","v":0},null,{"$f":"[1]RelatedPartyRevenue!M59","v":0},{"$f":"[1]RelatedPartyRevenue!M59","v":0},{"$f":"[1]RelatedPartyRevenue!O59","v":0},{"$f":"[1]RelatedPartyRevenue!O59","v":0},{"$f":"[1]RelatedPartyRevenue!Q59","v":0},{"$f":"[1]RelatedPartyRevenue!Q59","v":0},{"$f":"[1]RelatedPartyRevenue!S59","v":0},{"$f":"[1]RelatedPartyRevenue!S59","v":0},{"$f":"[1]RelatedPartyRevenue!U59","v":0},{"$f":"[1]RelatedPartyRevenue!U59","v":0},{"$f":"[1]RelatedPartyRevenue!V59","v":0},{"$f":"[1]RelatedPartyRevenue!V59","v":0},0,null,{"$f":"[1]RelatedPartyRevenue!X59","v":0},null,0,0,0,0,0,0]
[0,0,{"$f":"IFERROR(INDEX((Settings!$M$17:$M$236),MATCH(RelatedPartyRevenue!G60,Settings!$AD$18:$AD$166,0)),0)","v":0},null,null,{"$f":"[1]RelatedPartyRevenue!F60","v":0},{"$f":"[1]RelatedPartyRevenue!G60","v":0},{"$f":"[1]RelatedPartyRevenue!H60","v":0},null,{"$f":"[1]RelatedPartyRevenue!M60","v":0},{"$f":"[1]RelatedPartyRevenue!M60","v":0},{"$f":"[1]RelatedPartyRevenue!O60","v":0},{"$f":"[1]RelatedPartyRevenue!O60","v":0},{"$f":"[1]RelatedPartyRevenue!Q60","v":0},{"$f":"[1]RelatedPartyRevenue!Q60","v":0},{"$f":"[1]RelatedPartyRevenue!S60","v":0},{"$f":"[1]RelatedPartyRevenue!S60","v":0},{"$f":"[1]RelatedPartyRevenue!U60","v":0},{"$f":"[1]RelatedPartyRevenue!U60","v":0},{"$f":"[1]RelatedPartyRevenue!V60","v":0},{"$f":"[1]RelatedPartyRevenue!V60","v":0},0,null,{"$f":"[1]RelatedPartyRevenue!X60","v":0},null,0,0,0,0,0,0]
[0,0,{"$f":"IFERROR(INDEX((Settings!$M$17:$M$236),MATCH(RelatedPartyRevenue!G61,Settings!$AD$18:$AD$166,0)),0)","v":0},null,null,{"$f":"[1]RelatedPartyRevenue!F61","v":0},{"$f":"[1]RelatedPartyRevenue!G61","v":0},{"$f":"[1]RelatedPartyRevenue!H61","v":0},null,{"$f":"[1]RelatedPartyRevenue!M61","v":0},{"$f":"[1]RelatedPartyRevenue!M61","v":0},{"$f":"[1]RelatedPartyRevenue!O61","v":0},{"$f":"[1]RelatedPartyRevenue!O61","v":0},{"$f":"[1]RelatedPartyRevenue!Q61","v":0},{"$f":"[1]RelatedPartyRevenue!Q61","v":0},{"$f":"[1]RelatedPartyRevenue!S61","v":0},{"$f":"[1]RelatedPartyRevenue!S61","v":0},{"$f":"[1]RelatedPartyRevenue!U61","v":0},{"$f":"[1]RelatedPartyRevenue!U61","v":0},{"$f":"[1]RelatedPartyRevenue!V61","v":0},{"$f":"[1]RelatedPartyRevenue!V61","v":0},0,null,{"$f":"[1]RelatedPartyRevenue!X61","v":0},null,0,0,0,0,0,0]
[0,0,{"$f":"IFERROR(INDEX((Settings!$M$17:$M$236),MATCH(RelatedPartyRevenue!G62,Settings!$AD$18:$AD$166,0)),0)","v":0},null,null,{"$f":"[1]RelatedPartyRevenue!F62","v":0},{"$f":"[1]RelatedPartyRevenue!G62","v":0},{"$f":"[1]RelatedPartyRevenue!H62","v":0},null,{"$f":"[1]RelatedPartyRevenue!M62","v":0},{"$f":"[1]RelatedPartyRevenue!M62","v":0},{"$f":"[1]RelatedPartyRevenue!O62","v":0},{"$f":"[1]RelatedPartyRevenue!O62","v":0},{"$f":"[1]RelatedPartyRevenue!Q62","v":0},{"$f":"[1]RelatedPartyRevenue!Q62","v":0},{"$f":"[1]RelatedPartyRevenue!S62","v":0},{"$f":"[1]RelatedPartyRevenue!S62","v":0},{"$f":"[1]RelatedPartyRevenue!U62","v":0},{"$f":"[1]RelatedPartyRevenue!U62","v":0},{"$f":"[1]RelatedPartyRevenue!V62","v":0},{"$f":"[1]RelatedPartyRevenue!V62","v":0},0,null,{"$f":"[1]RelatedPartyRevenue!X62","v":0},null,0,0,0,0,0,0]
[0,0,{"$f":"IFERROR(INDEX((Settings!$M$17:$M$236),MATCH(RelatedPartyRevenue!G63,Settings!$AD$18:$AD$166,0)),0)","v":0},null,null,{"$f":"[1]RelatedPartyRevenue!F63","v":0},{"$f":"[1]RelatedPartyRevenue!G63","v":0},{"$f":"[1]RelatedPartyRevenue!H63","v":0},null,{"$f":"[1]RelatedPartyRevenue!M63","v":0},{"$f":"[1]RelatedPartyRevenue!M63","v":0},{"$f":"[1]RelatedPartyRevenue!O63","v":0},{"$f":"[1]RelatedPartyRevenue!O63","v":0},{"$f":"[1]RelatedPartyRevenue!Q63","v":0},{"$f":"[1]RelatedPartyRevenue!Q63","v":0},{"$f":"[1]RelatedPartyRevenue!S63","v":0},{"$f":"[1]RelatedPartyRevenue!S63","v":0},{"$f":"[1]RelatedPartyRevenue!U63","v":0},{"$f":"[1]RelatedPartyRevenue!U63","v":0},{"$f":"[1]RelatedPartyRevenue!V63","v":0},{"$f":"[1]RelatedPartyRevenue!V63","v":0},0,null,{"$f":"[1]RelatedPartyRevenue!X63","v":0},null,0,0,0,0,0,0]
[0,0,{"$f":"IFERROR(INDEX((Settings!$M$17:$M$236),MATCH(RelatedPartyRevenue!G64,Settings!$AD$18:$AD$166,0)),0)","v":0},null,null,{"$f":"[1]RelatedPartyRevenue!F64","v":0},{"$f":"[1]RelatedPartyRevenue!G64","v":0},{"$f":"[1]RelatedPartyRevenue!H64","v":0},null,{"$f":"[1]RelatedPartyRevenue!M64","v":0},{"$f":"[1]RelatedPartyRevenue!M64","v":0},{"$f":"[1]RelatedPartyRevenue!O64","v":0},{"$f":"[1]RelatedPartyRevenue!O64","v":0},{"$f":"[1]RelatedPartyRevenue!Q64","v":0},{"$f":"[1]RelatedPartyRevenue!Q64","v":0},{"$f":"[1]RelatedPartyRevenue!S64","v":0},{"$f":"[1]RelatedPartyRevenue!S64","v":0},{"$f":"[1]RelatedPartyRevenue!U64","v":0},{"$f":"[1]RelatedPartyRevenue!U64","v":0},{"$f":"[1]RelatedPartyRevenue!V64","v":0},{"$f":"[1]RelatedPartyRevenue!V64","v":0},0,null,{"$f":"[1]RelatedPartyRevenue!X64","v":0},null,0,0,0,0,0,0]
[0,0,{"$f":"IFERROR(INDEX((Settings!$M$17:$M$236),MATCH(RelatedPartyRevenue!G65,Settings!$AD$18:$AD$166,0)),0)","v":0},null,null,{"$f":"[1]RelatedPartyRevenue!F65","v":0},{"$f":"[1]RelatedPartyRevenue!G65","v":0},{"$f":"[1]RelatedPartyRevenue!H65","v":0},null,{"$f":"[1]RelatedPartyRevenue!M65","v":0},{"$f":"[1]RelatedPartyRevenue!M65","v":0},{"$f":"[1]RelatedPartyRevenue!O65","v":0},{"$f":"[1]RelatedPartyRevenue!O65","v":0},{"$f":"[1]RelatedPartyRevenue!Q65","v":0},{"$f":"[1]RelatedPartyRevenue!Q65","v":0},{"$f":"[1]RelatedPartyRevenue!S65","v":0},{"$f":"[1]RelatedPartyRevenue!S65","v":0},{"$f":"[1]RelatedPartyRevenue!U65","v":0},{"$f":"[1]RelatedPartyRevenue!U65","v":0},{"$f":"[1]RelatedPartyRevenue!V65","v":0},{"$f":"[1]RelatedPartyRevenue!V65","v":0},0,null,{"$f":"[1]RelatedPartyRevenue!X65","v":0},null,0,0,0,0,0,0]
[0,0,{"$f":"IFERROR(INDEX((Settings!$M$17:$M$236),MATCH(RelatedPartyRevenue!G66,Settings!$AD$18:$AD$166,0)),0)","v":0},null,null,{"$f":"[1]RelatedPartyRevenue!F66","v":0},{"$f":"[1]RelatedPartyRevenue!G66","v":0},{"$f":"[1]RelatedPartyRevenue!H66","v":0},null,{"$f":"[1]RelatedPartyRevenue!M66","v":0},{"$f":"[1]RelatedPartyRevenue!M66","v":0},{"$f":"[1]RelatedPartyRevenue!O66","v":0},{"$f":"[1]RelatedPartyRevenue!O66","v":0},{"$f":"[1]RelatedPartyRevenue!Q66","v":0},{"$f":"[1]RelatedPartyRevenue!Q66","v":0},{"$f":"[1]RelatedPartyRevenue!S66","v":0},{"$f":"[1]RelatedPartyRevenue!S66","v":0},{"$f":"[1]RelatedPartyRevenue!U66","v":0},{"$f":"[1]RelatedPartyRevenue!U66","v":0},{"$f":"[1]RelatedPartyRevenue!V66","v":0},{"$f":"[1]RelatedPartyRevenue!V66","v":0},0,null,{"$f":"[1]RelatedPartyRevenue!X66","v":0},null,0,0,0,0,0,0]
[0,0,{"$f":"IFERROR(INDEX((Settings!$M$17:$M$236),MATCH(RelatedPartyRevenue!G67,Settings!$AD$18:$AD$166,0)),0)","v":0},null,null,{"$f":"[1]RelatedPartyRevenue!F67","v":0},{"$f":"[1]RelatedPartyRevenue!G67","v":0},{"$f":"[1]RelatedPartyRevenue!H67","v":0},null,{"$f":"[1]RelatedPartyRevenue!M67","v":0},{"$f":"[1]RelatedPartyRevenue!M67","v":0},{"$f":"[1]RelatedPartyRevenue!O67","v":0},{"$f":"[1]RelatedPartyRevenue!O67","v":0},{"$f":"[1]RelatedPartyRevenue!Q67","v":0},{"$f":"[1]RelatedPartyRevenue!Q67","v":0},{"$f":"[1]RelatedPartyRevenue!S67","v":0},{"$f":"[1]RelatedPartyRevenue!S67","v":0},{"$f":"[1]RelatedPartyRevenue!U67","v":0},{"$f":"[1]RelatedPartyRevenue!U67","v":0},{"$f":"[1]RelatedPartyRevenue!V67","v":0},{"$f":"[1]RelatedPartyRevenue!V67","v":0},0,null,{"$f":"[1]RelatedPartyRevenue!X67","v":0},null,0,0,0,0,0,0]
[0,0,{"$f":"IFERROR(INDEX((Settings!$M$17:$M$236),MATCH(RelatedPartyRevenue!G68,Settings!$AD$18:$AD$166,0)),0)","v":0},null,null,{"$f":"[1]RelatedPartyRevenue!F68","v":0},{"$f":"[1]RelatedPartyRevenue!G68","v":0},{"$f":"[1]RelatedPartyRevenue!H68","v":0},null,{"$f":"[1]RelatedPartyRevenue!M68","v":0},{"$f":"[1]RelatedPartyRevenue!M68","v":0},{"$f":"[1]RelatedPartyRevenue!O68","v":0},{"$f":"[1]RelatedPartyRevenue!O68","v":0},{"$f":"[1]RelatedPartyRevenue!Q68","v":0},{"$f":"[1]RelatedPartyRevenue!Q68","v":0},{"$f":"[1]RelatedPartyRevenue!S68","v":0},{"$f":"[1]RelatedPartyRevenue!S68","v":0},{"$f":"[1]RelatedPartyRevenue!U68","v":0},{"$f":"[1]RelatedPartyRevenue!U68","v":0},{"$f":"[1]RelatedPartyRevenue!V68","v":0},{"$f":"[1]RelatedPartyRevenue!V68","v":0},0,null,{"$f":"[1]RelatedPartyRevenue!X68","v":0},null,0,0,0,0,0,0]
[0,0,{"$f":"IFERROR(INDEX((Settings!$M$17:$M$236),MATCH(RelatedPartyRevenue!G69,Settings!$AD$18:$AD$166,0)),0)","v":0},null,null,{"$f":"[1]RelatedPartyRevenue!F69","v":0},{"$f":"[1]RelatedPartyRevenue!G69","v":0},{"$f":"[1]RelatedPartyRevenue!H69","v":0},null,{"$f":"[1]RelatedPartyRevenue!M69","v":0},{"$f":"[1]RelatedPartyRevenue!M69","v":0},{"$f":"[1]RelatedPartyRevenue!O69","v":0},{"$f":"[1]RelatedPartyRevenue!O69","v":0},{"$f":"[1]RelatedPartyRevenue!Q69","v":0},{"$f":"[1]RelatedPartyRevenue!Q69","v":0},{"$f":"[1]RelatedPartyRevenue!S69","v":0},{"$f":"[1]RelatedPartyRevenue!S69","v":0},{"$f":"[1]RelatedPartyRevenue!U69","v":0},{"$f":"[1]RelatedPartyRevenue!U69","v":0},{"$f":"[1]RelatedPartyRevenue!V69","v":0},{"$f":"[1]RelatedPartyRevenue!V69","v":0},0,null,{"$f":"[1]RelatedPartyRevenue!X69","v":0},null,0,0,0,0,0,0]
[0,0,{"$f":"IFERROR(INDEX((Settings!$M$17:$M$236),MATCH(RelatedPartyRevenue!G70,Settings!$AD$18:$AD$166,0)),0)","v":0},null,null,{"$f":"[1]RelatedPartyRevenue!F70","v":0},{"$f":"[1]RelatedPartyRevenue!G70","v":0},{"$f":"[1]RelatedPartyRevenue!H70","v":0},null,{"$f":"[1]RelatedPartyRevenue!M70","v":0},{"$f":"[1]RelatedPartyRevenue!M70","v":0},{"$f":"[1]RelatedPartyRevenue!O70","v":0},{"$f":"[1]RelatedPartyRevenue!O70","v":0},{"$f":"[1]RelatedPartyRevenue!Q70","v":0},{"$f":"[1]RelatedPartyRevenue!Q70","v":0},{"$f":"[1]RelatedPartyRevenue!S70","v":0},{"$f":"[1]RelatedPartyRevenue!S70","v":0},{"$f":"[1]RelatedPartyRevenue!U70","v":0},{"$f":"[1]RelatedPartyRevenue!U70","v":0},{"$f":"[1]RelatedPartyRevenue!V70","v":0},{"$f":"[1]RelatedPartyRevenue!V70","v":0},0,null,{"$f":"[1]RelatedPartyRevenue!X70","v":0},null,0,0,0,0,0,0]
[0,0,{"$f":"IFERROR(INDEX((Settings!$M$17:$M$236),MATCH(RelatedPartyRevenue!G71,Settings!$AD$18:$AD$166,0)),0)","v":0},null,null,{"$f":"[1]RelatedPartyRevenue!F71","v":0},{"$f":"[1]RelatedPartyRevenue!G71","v":0},{"$f":"[1]RelatedPartyRevenue!H71","v":0},null,{"$f":"[1]RelatedPartyRevenue!M71","v":0},{"$f":"[1]RelatedPartyRevenue!M71","v":0},{"$f":"[1]RelatedPartyRevenue!O71","v":0},{"$f":"[1]RelatedPartyRevenue!O71","v":0},{"$f":"[1]RelatedPartyRevenue!Q71","v":0},{"$f":"[1]RelatedPartyRevenue!Q71","v":0},{"$f":"[1]RelatedPartyRevenue!S71","v":0},{"$f":"[1]RelatedPartyRevenue!S71","v":0},{"$f":"[1]RelatedPartyRevenue!U71","v":0},{"$f":"[1]RelatedPartyRevenue!U71","v":0},{"$f":"[1]RelatedPartyRevenue!V71","v":0},{"$f":"[1]RelatedPartyRevenue!V71","v":0},0,null,{"$f":"[1]RelatedPartyRevenue!X71","v":0},null,0,0,0,0,0,0]
[0,0,{"$f":"IFERROR(INDEX((Settings!$M$17:$M$236),MATCH(RelatedPartyRevenue!G72,Settings!$AD$18:$AD$166,0)),0)","v":0},null,null,{"$f":"[1]RelatedPartyRevenue!F72","v":0},{"$f":"[1]RelatedPartyRevenue!G72","v":0},{"$f":"[1]RelatedPartyRevenue!H72","v":0},null,{"$f":"[1]RelatedPartyRevenue!M72","v":0},{"$f":"[1]RelatedPartyRevenue!M72","v":0},{"$f":"[1]RelatedPartyRevenue!O72","v":0},{"$f":"[1]RelatedPartyRevenue!O72","v":0},{"$f":"[1]RelatedPartyRevenue!Q72","v":0},{"$f":"[1]RelatedPartyRevenue!Q72","v":0},{"$f":"[1]RelatedPartyRevenue!S72","v":0},{"$f":"[1]RelatedPartyRevenue!S72","v":0},{"$f":"[1]RelatedPartyRevenue!U72","v":0},{"$f":"[1]RelatedPartyRevenue!U72","v":0},{"$f":"[1]RelatedPartyRevenue!V72","v":0},{"$f":"[1]RelatedPartyRevenue!V72","v":0},0,null,{"$f":"[1]RelatedPartyRevenue!X72","v":0},null,0,0,0,0,0,0]
[0,0,{"$f":"IFERROR(INDEX((Settings!$M$17:$M$236),MATCH(RelatedPartyRevenue!G73,Settings!$AD$18:$AD$166,0)),0)","v":0},null,null,{"$f":"[1]RelatedPartyRevenue!F73","v":0},{"$f":"[1]RelatedPartyRevenue!G73","v":0},{"$f":"[1]RelatedPartyRevenue!H73","v":0},null,{"$f":"[1]RelatedPartyRevenue!M73","v":0},{"$f":"[1]RelatedPartyRevenue!M73","v":0},{"$f":"[1]RelatedPartyRevenue!O73","v":0},{"$f":"[1]RelatedPartyRevenue!O73","v":0},{"$f":"[1]RelatedPartyRevenue!Q73","v":0},{"$f":"[1]RelatedPartyRevenue!Q73","v":0},{"$f":"[1]RelatedPartyRevenue!S73","v":0},{"$f":"[1]RelatedPartyRevenue!S73","v":0},{"$f":"[1]RelatedPartyRevenue!U73","v":0},{"$f":"[1]RelatedPartyRevenue!U73","v":0},{"$f":"[1]RelatedPartyRevenue!V73","v":0},{"$f":"[1]RelatedPartyRevenue!V73","v":0},0,null,{"$f":"[1]RelatedPartyRevenue!X73","v":0},null,0,0,0,0,0,0]
[0,0,{"$f":"IFERROR(INDEX((Settings!$M$17:$M$236),MATCH(RelatedPartyRevenue!G74,Settings!$AD$18:$AD$166,0)),0)","v":0},null,null,{"$f":"[1]RelatedPartyRevenue!F74","v":0},{"$f":"[1]RelatedPartyRevenue!G74","v":0},{"$f":"[1]RelatedPartyRevenue!H74","v":0},null,{"$f":"[1]RelatedPartyRevenue!M74","v":0},{"$f":"[1]RelatedPartyRevenue!M74","v":0},{"$f":"[1]RelatedPartyRevenue!O74","v":0},{"$f":"[1]RelatedPartyRevenue!O74","v":0},{"$f":"[1]RelatedPartyRevenue!Q74","v":0},{"$f":"[1]RelatedPartyRevenue!Q74","v":0},{"$f":"[1]RelatedPartyRevenue!S74","v":0},{"$f":"[1]RelatedPartyRevenue!S74","v":0},{"$f":"[1]RelatedPartyRevenue!U74","v":0},{"$f":"[1]RelatedPartyRevenue!U74","v":0},{"$f":"[1]RelatedPartyRevenue!V74","v":0},{"$f":"[1]RelatedPartyRevenue!V74","v":0},0,null,{"$f":"[1]RelatedPartyRevenue!X74","v":0},null,0,0,0,0,0,0]
[0,{"$f":"IF($G75=$G$7,1,0)","v":0},{"$f":"IFERROR(INDEX((Settings!$M$17:$M$236),MATCH(RelatedPartyRevenue!G75,Settings!$AD$18:$AD$166,0)),0)","v":0},null,null,{"$f":"[1]RelatedPartyRevenue!F75","v":0},{"$f":"[1]RelatedPartyRevenue!G75","v":0},{"$f":"[1]RelatedPartyRevenue!H75","v":0},null,{"$f":"[1]RelatedPartyRevenue!M75","v":0},{"$f":"[1]RelatedPartyRevenue!M75","v":0},{"$f":"[1]RelatedPartyRevenue!O75","v":0},{"$f":"[1]RelatedPartyRevenue!O75","v":0},{"$f":"[1]RelatedPartyRevenue!Q75","v":0},{"$f":"[1]RelatedPartyRevenue!Q75","v":0},{"$f":"[1]RelatedPartyRevenue!S75","v":0},{"$f":"[1]RelatedPartyRevenue!S75","v":0},{"$f":"[1]RelatedPartyRevenue!U75","v":0},{"$f":"[1]RelatedPartyRevenue!U75","v":0},{"$f":"[1]RelatedPartyRevenue!V75","v":0},{"$f":"[1]RelatedPartyRevenue!V75","v":0},0,null,{"$f":"[1]RelatedPartyRevenue!X75","v":0},null,0,0,0,0,0,0]
[{"$f":"IF(SUM(J76:V76)>0,1,0)","v":0},0,{"$f":"IFERROR(INDEX((Settings!$M$17:$M$236),MATCH(RelatedPartyRevenue!G76,Settings!$AD$18:$AD$166,0)),0)","v":0},null,null,{"$f":"[1]RelatedPartyRevenue!F76","v":0},{"$f":"[1]RelatedPartyRevenue!G76","v":0},{"$f":"[1]RelatedPartyRevenue!H76","v":0},null,{"$f":"[1]RelatedPartyRevenue!M76","v":0},{"$f":"[1]RelatedPartyRevenue!M76","v":0},{"$f":"[1]RelatedPartyRevenue!O76","v":0},{"$f":"[1]RelatedPartyRevenue!O76","v":0},{"$f":"[1]RelatedPartyRevenue!Q76","v":0},{"$f":"[1]RelatedPartyRevenue!Q76","v":0},{"$f":"[1]RelatedPartyRevenue!S76","v":0},{"$f":"[1]RelatedPartyRevenue!S76","v":0},{"$f":"[1]RelatedPartyRevenue!U76","v":0},{"$f":"[1]RelatedPartyRevenue!U76","v":0},{"$f":"[1]RelatedPartyRevenue!V76","v":0},{"$f":"[1]RelatedPartyRevenue!V76","v":0},0,null,{"$f":"[1]RelatedPartyRevenue!X76","v":0},null,{"$f":"K76-J76","v":0},{"$f":"M76-L76","v":0},0,0,0,0]
[0,0,{"$f":"IFERROR(INDEX((Settings!$M$17:$M$236),MATCH(RelatedPartyRevenue!G77,Settings!$AD$18:$AD$166,0)),0)","v":0},null,null,{"$f":"[1]RelatedPartyRevenue!F77","v":0},{"$f":"[1]RelatedPartyRevenue!G77","v":0},{"$f":"[1]RelatedPartyRevenue!H77","v":0},null,{"$f":"[1]RelatedPartyRevenue!M77","v":0},{"$f":"[1]RelatedPartyRevenue!M77","v":0},{"$f":"[1]RelatedPartyRevenue!O77","v":0},{"$f":"[1]RelatedPartyRevenue!O77","v":0},{"$f":"[1]RelatedPartyRevenue!Q77","v":0},{"$f":"[1]RelatedPartyRevenue!Q77","v":0},{"$f":"[1]RelatedPartyRevenue!S77","v":0},{"$f":"[1]RelatedPartyRevenue!S77","v":0},{"$f":"[1]RelatedPartyRevenue!U77","v":0},{"$f":"[1]RelatedPartyRevenue!U77","v":0},{"$f":"[1]RelatedPartyRevenue!V77","v":0},{"$f":"[1]RelatedPartyRevenue!V77","v":0},0,null,{"$f":"[1]RelatedPartyRevenue!X77","v":0},null,0,0,{"$f":"O77-N77","v":0},{"$f":"Q77-P77","v":0},{"$f":"S77-R77","v":0},{"$f":"U77-T77","v":0}]
[0,0,{"$f":"IFERROR(INDEX((Settings!$M$17:$M$236),MATCH(RelatedPartyRevenue!G78,Settings!$AD$18:$AD$166,0)),0)","v":0},null,null,{"$f":"[1]RelatedPartyRevenue!F78","v":0},{"$f":"[1]RelatedPartyRevenue!G78","v":0},{"$f":"[1]RelatedPartyRevenue!H78","v":0},null,{"$f":"[1]RelatedPartyRevenue!M78","v":0},{"$f":"[1]RelatedPartyRevenue!M78","v":0},{"$f":"[1]RelatedPartyRevenue!O78","v":0},{"$f":"[1]RelatedPartyRevenue!O78","v":0},{"$f":"[1]RelatedPartyRevenue!Q78","v":0},{"$f":"[1]RelatedPartyRevenue!Q78","v":0},{"$f":"[1]RelatedPartyRevenue!S78","v":0},{"$f":"[1]RelatedPartyRevenue!S78","v":0},{"$f":"[1]RelatedPartyRevenue!U78","v":0},{"$f":"[1]RelatedPartyRevenue!U78","v":0},{"$f":"[1]RelatedPartyRevenue!V78","v":0},{"$f":"[1]RelatedPartyRevenue!V78","v":0},0,null,{"$f":"[1]RelatedPartyRevenue!X78","v":0},null,0,0,0,0,0,0]
[0,0,{"$f":"IFERROR(INDEX((Settings!$M$17:$M$236),MATCH(RelatedPartyRevenue!G79,Settings!$AD$18:$AD$166,0)),0)","v":0},null,null,{"$f":"[1]RelatedPartyRevenue!F79","v":0},{"$f":"[1]RelatedPartyRevenue!G79","v":0},{"$f":"[1]RelatedPartyRevenue!H79","v":0},null,{"$f":"[1]RelatedPartyRevenue!M79","v":0},{"$f":"[1]RelatedPartyRevenue!M79","v":0},{"$f":"[1]RelatedPartyRevenue!O79","v":0},{"$f":"[1]RelatedPartyRevenue!O79","v":0},{"$f":"[1]RelatedPartyRevenue!Q79","v":0},{"$f":"[1]RelatedPartyRevenue!Q79","v":0},{"$f":"[1]RelatedPartyRevenue!S79","v":0},{"$f":"[1]RelatedPartyRevenue!S79","v":0},{"$f":"[1]RelatedPartyRevenue!U79","v":0},{"$f":"[1]RelatedPartyRevenue!U79","v":0},{"$f":"[1]RelatedPartyRevenue!V79","v":0},{"$f":"[1]RelatedPartyRevenue!V79","v":0},0,null,{"$f":"[1]RelatedPartyRevenue!X79","v":0},null,0,0,0,0,0,0]
[0,0,{"$f":"IFERROR(INDEX((Settings!$M$17:$M$236),MATCH(RelatedPartyRevenue!G80,Settings!$AD$18:$AD$166,0)),0)","v":0},null,null,{"$f":"[1]RelatedPartyRevenue!F80","v":0},{"$f":"[1]RelatedPartyRevenue!G80","v":0},{"$f":"[1]RelatedPartyRevenue!H80","v":0},null,{"$f":"[1]RelatedPartyRevenue!M80","v":0},{"$f":"[1]RelatedPartyRevenue!M80","v":0},{"$f":"[1]RelatedPartyRevenue!O80","v":0},{"$f":"[1]RelatedPartyRevenue!O80","v":0},{"$f":"[1]RelatedPartyRevenue!Q80","v":0},{"$f":"[1]RelatedPartyRevenue!Q80","v":0},{"$f":"[1]RelatedPartyRevenue!S80","v":0},{"$f":"[1]RelatedPartyRevenue!S80","v":0},{"$f":"[1]RelatedPartyRevenue!U80","v":0},{"$f":"[1]RelatedPartyRevenue!U80","v":0},{"$f":"[1]RelatedPartyRevenue!V80","v":0},{"$f":"[1]RelatedPartyRevenue!V80","v":0},0,null,{"$f":"[1]RelatedPartyRevenue!X80","v":0},null,0,0,0,0,0,0]
[0,0,{"$f":"IFERROR(INDEX((Settings!$M$17:$M$236),MATCH(RelatedPartyRevenue!G81,Settings!$AD$18:$AD$166,0)),0)","v":0},null,null,{"$f":"[1]RelatedPartyRevenue!F81","v":0},{"$f":"[1]RelatedPartyRevenue!G81","v":0},{"$f":"[1]RelatedPartyRevenue!H81","v":0},null,{"$f":"[1]RelatedPartyRevenue!M81","v":0},{"$f":"[1]RelatedPartyRevenue!M81","v":0},{"$f":"[1]RelatedPartyRevenue!O81","v":0},{"$f":"[1]RelatedPartyRevenue!O81","v":0},{"$f":"[1]RelatedPartyRevenue!Q81","v":0},{"$f":"[1]RelatedPartyRevenue!Q81","v":0},{"$f":"[1]RelatedPartyRevenue!S81","v":0},{"$f":"[1]RelatedPartyRevenue!S81","v":0},{"$f":"[1]RelatedPartyRevenue!U81","v":0},{"$f":"[1]RelatedPartyRevenue!U81","v":0},{"$f":"[1]RelatedPartyRevenue!V81","v":0},{"$f":"[1]RelatedPartyRevenue!V81","v":0},0,null,{"$f":"[1]RelatedPartyRevenue!X81","v":0},null,0,0,0,0,0,0]
[0,0,{"$f":"IFERROR(INDEX((Settings!$M$17:$M$236),MATCH(RelatedPartyRevenue!G82,Settings!$AD$18:$AD$166,0)),0)","v":0},null,null,{"$f":"[1]RelatedPartyRevenue!F82","v":0},{"$f":"[1]RelatedPartyRevenue!G82","v":0},{"$f":"[1]RelatedPartyRevenue!H82","v":0},null,{"$f":"[1]RelatedPartyRevenue!M82","v":0},{"$f":"[1]RelatedPartyRevenue!M82","v":0},{"$f":"[1]RelatedPartyRevenue!O82","v":0},{"$f":"[1]RelatedPartyRevenue!O82","v":0},{"$f":"[1]RelatedPartyRevenue!Q82","v":0},{"$f":"[1]RelatedPartyRevenue!Q82","v":0},{"$f":"[1]RelatedPartyRevenue!S82","v":0},{"$f":"[1]RelatedPartyRevenue!S82","v":0},{"$f":"[1]RelatedPartyRevenue!U82","v":0},{"$f":"[1]RelatedPartyRevenue!U82","v":0},{"$f":"[1]RelatedPartyRevenue!V82","v":0},{"$f":"[1]RelatedPartyRevenue!V82","v":0},0,null,{"$f":"[1]RelatedPartyRevenue!X82","v":0},null,0,0,0,0,0,0]
[0,0,{"$f":"IFERROR(INDEX((Settings!$M$17:$M$236),MATCH(RelatedPartyRevenue!G83,Settings!$AD$18:$AD$166,0)),0)","v":0},null,null,{"$f":"[1]RelatedPartyRevenue!F83","v":0},{"$f":"[1]RelatedPartyRevenue!G83","v":0},{"$f":"[1]RelatedPartyRevenue!H83","v":0},null,{"$f":"[1]RelatedPartyRevenue!M83","v":0},{"$f":"[1]RelatedPartyRevenue!M83","v":0},{"$f":"[1]RelatedPartyRevenue!O83","v":0},{"$f":"[1]RelatedPartyRevenue!O83","v":0},{"$f":"[1]RelatedPartyRevenue!Q83","v":0},{"$f":"[1]RelatedPartyRevenue!Q83","v":0},{"$f":"[1]RelatedPartyRevenue!S83","v":0},{"$f":"[1]RelatedPartyRevenue!S83","v":0},{"$f":"[1]RelatedPartyRevenue!U83","v":0},{"$f":"[1]RelatedPartyRevenue!U83","v":0},{"$f":"[1]RelatedPartyRevenue!V83","v":0},{"$f":"[1]RelatedPartyRevenue!V83","v":0},0,null,{"$f":"[1]RelatedPartyRevenue!X83","v":0},null,0,0,0,0,0,0]
[0,0,{"$f":"IFERROR(INDEX((Settings!$M$17:$M$236),MATCH(RelatedPartyRevenue!G84,Settings!$AD$18:$AD$166,0)),0)","v":0},null,null,{"$f":"[1]RelatedPartyRevenue!F84","v":0},{"$f":"[1]RelatedPartyRevenue!G84","v":0},{"$f":"[1]RelatedPartyRevenue!H84","v":0},null,{"$f":"[1]RelatedPartyRevenue!M84","v":0},{"$f":"[1]RelatedPartyRevenue!M84","v":0},{"$f":"[1]RelatedPartyRevenue!O84","v":0},{"$f":"[1]RelatedPartyRevenue!O84","v":0},{"$f":"[1]RelatedPartyRevenue!Q84","v":0},{"$f":"[1]RelatedPartyRevenue!Q84","v":0},{"$f":"[1]RelatedPartyRevenue!S84","v":0},{"$f":"[1]RelatedPartyRevenue!S84","v":0},{"$f":"[1]RelatedPartyRevenue!U84","v":0},{"$f":"[1]RelatedPartyRevenue!U84","v":0},{"$f":"[1]RelatedPartyRevenue!V84","v":0},{"$f":"[1]RelatedPartyRevenue!V84","v":0},0,null,{"$f":"[1]RelatedPartyRevenue!X84","v":0},null,0,0,0,0,0,0]
[0,0,{"$f":"IFERROR(INDEX((Settings!$M$17:$M$236),MATCH(RelatedPartyRevenue!G85,Settings!$AD$18:$AD$166,0)),0)","v":0},null,null,{"$f":"[1]RelatedPartyRevenue!F85","v":0},{"$f":"[1]RelatedPartyRevenue!G85","v":0},{"$f":"[1]RelatedPartyRevenue!H85","v":0},null,{"$f":"[1]RelatedPartyRevenue!M85","v":0},{"$f":"[1]RelatedPartyRevenue!M85","v":0},{"$f":"[1]RelatedPartyRevenue!O85","v":0},{"$f":"[1]RelatedPartyRevenue!O85","v":0},{"$f":"[1]RelatedPartyRevenue!Q85","v":0},{"$f":"[1]RelatedPartyRevenue!Q85","v":0},{"$f":"[1]RelatedPartyRevenue!S85","v":0},{"$f":"[1]RelatedPartyRevenue!S85","v":0},{"$f":"[1]RelatedPartyRevenue!U85","v":0},{"$f":"[1]RelatedPartyRevenue!U85","v":0},{"$f":"[1]RelatedPartyRevenue!V85","v":0},{"$f":"[1]RelatedPartyRevenue!V85","v":0},0,null,{"$f":"[1]RelatedPartyRevenue!X85","v":0},null,0,0,0,0,0,0]
[0,0,{"$f":"IFERROR(INDEX((Settings!$M$17:$M$236),MATCH(RelatedPartyRevenue!G86,Settings!$AD$18:$AD$166,0)),0)","v":0},null,null,{"$f":"[1]RelatedPartyRevenue!F86","v":0},{"$f":"[1]RelatedPartyRevenue!G86","v":0},{"$f":"[1]RelatedPartyRevenue!H86","v":0},null,{"$f":"[1]RelatedPartyRevenue!M86","v":0},{"$f":"[1]RelatedPartyRevenue!M86","v":0},{"$f":"[1]RelatedPartyRevenue!O86","v":0},{"$f":"[1]RelatedPartyRevenue!O86","v":0},{"$f":"[1]RelatedPartyRevenue!Q86","v":0},{"$f":"[1]RelatedPartyRevenue!Q86","v":0},{"$f":"[1]RelatedPartyRevenue!S86","v":0},{"$f":"[1]RelatedPartyRevenue!S86","v":0},{"$f":"[1]RelatedPartyRevenue!U86","v":0},{"$f":"[1]RelatedPartyRevenue!U86","v":0},{"$f":"[1]RelatedPartyRevenue!V86","v":0},{"$f":"[1]RelatedPartyRevenue!V86","v":0},0,null,{"$f":"[1]RelatedPartyRevenue!X86","v":0},null,0,0,0,0,0,0]
[0,0,{"$f":"IFERROR(INDEX((Settings!$M$17:$M$236),MATCH(RelatedPartyRevenue!G87,Settings!$AD$18:$AD$166,0)),0)","v":0},null,null,{"$f":"[1]RelatedPartyRevenue!F87","v":0},{"$f":"[1]RelatedPartyRevenue!G87","v":0},{"$f":"[1]RelatedPartyRevenue!H87","v":0},null,{"$f":"[1]RelatedPartyRevenue!M87","v":0},{"$f":"[1]RelatedPartyRevenue!M87","v":0},{"$f":"[1]RelatedPartyRevenue!O87","v":0},{"$f":"[1]RelatedPartyRevenue!O87","v":0},{"$f":"[1]RelatedPartyRevenue!Q87","v":0},{"$f":"[1]RelatedPartyRevenue!Q87","v":0},{"$f":"[1]RelatedPartyRevenue!S87","v":0},{"$f":"[1]RelatedPartyRevenue!S87","v":0},{"$f":"[1]RelatedPartyRevenue!U87","v":0},{"$f":"[1]RelatedPartyRevenue!U87","v":0},{"$f":"[1]RelatedPartyRevenue!V87","v":0},{"$f":"[1]RelatedPartyRevenue!V87","v":0},0,null,{"$f":"[1]RelatedPartyRevenue!X87","v":0},null,0,0,0,0,0,0]
[0,0,{"$f":"IFERROR(INDEX((Settings!$M$17:$M$236),MATCH(RelatedPartyRevenue!G88,Settings!$AD$18:$AD$166,0)),0)","v":0},null,null,{"$f":"[1]RelatedPartyRevenue!F88","v":0},{"$f":"[1]RelatedPartyRevenue!G88","v":0},{"$f":"[1]RelatedPartyRevenue!H88","v":0},null,{"$f":"[1]RelatedPartyRevenue!M88","v":0},{"$f":"[1]RelatedPartyRevenue!M88","v":0},{"$f":"[1]RelatedPartyRevenue!O88","v":0},{"$f":"[1]RelatedPartyRevenue!O88","v":0},{"$f":"[1]RelatedPartyRevenue!Q88","v":0},{"$f":"[1]RelatedPartyRevenue!Q88","v":0},{"$f":"[1]RelatedPartyRevenue!S88","v":0},{"$f":"[1]RelatedPartyRevenue!S88","v":0},{"$f":"[1]RelatedPartyRevenue!U88","v":0},{"$f":"[1]RelatedPartyRevenue!U88","v":0},{"$f":"[1]RelatedPartyRevenue!V88","v":0},{"$f":"[1]RelatedPartyRevenue!V88","v":0},0,null,{"$f":"[1]RelatedPartyRevenue!X88","v":0},null,0,0,0,0,0,0]
[0,0,{"$f":"IFERROR(INDEX((Settings!$M$17:$M$236),MATCH(RelatedPartyRevenue!G89,Settings!$AD$18:$AD$166,0)),0)","v":0},null,null,{"$f":"[1]RelatedPartyRevenue!F89","v":0},{"$f":"[1]RelatedPartyRevenue!G89","v":0},{"$f":"[1]RelatedPartyRevenue!H89","v":0},null,{"$f":"[1]RelatedPartyRevenue!M89","v":0},{"$f":"[1]RelatedPartyRevenue!M89","v":0},{"$f":"[1]RelatedPartyRevenue!O89","v":0},{"$f":"[1]RelatedPartyRevenue!O89","v":0},{"$f":"[1]RelatedPartyRevenue!Q89","v":0},{"$f":"[1]RelatedPartyRevenue!Q89","v":0},{"$f":"[1]RelatedPartyRevenue!S89","v":0},{"$f":"[1]RelatedPartyRevenue!S89","v":0},{"$f":"[1]RelatedPartyRevenue!U89","v":0},{"$f":"[1]RelatedPartyRevenue!U89","v":0},{"$f":"[1]RelatedPartyRevenue!V89","v":0},{"$f":"[1]RelatedPartyRevenue!V89","v":0},0,null,{"$f":"[1]RelatedPartyRevenue!X89","v":0},null,0,0,0,0,0,0]
[0,0,{"$f":"IFERROR(INDEX((Settings!$M$17:$M$236),MATCH(RelatedPartyRevenue!G90,Settings!$AD$18:$AD$166,0)),0)","v":0},null,null,{"$f":"[1]RelatedPartyRevenue!F90","v":0},{"$f":"[1]RelatedPartyRevenue!G90","v":0},{"$f":"[1]RelatedPartyRevenue!H90","v":0},null,{"$f":"[1]RelatedPartyRevenue!M90","v":0},{"$f":"[1]RelatedPartyRevenue!M90","v":0},{"$f":"[1]RelatedPartyRevenue!O90","v":0},{"$f":"[1]RelatedPartyRevenue!O90","v":0},{"$f":"[1]RelatedPartyRevenue!Q90","v":0},{"$f":"[1]RelatedPartyRevenue!Q90","v":0},{"$f":"[1]RelatedPartyRevenue!S90","v":0},{"$f":"[1]RelatedPartyRevenue!S90","v":0},{"$f":"[1]RelatedPartyRevenue!U90","v":0},{"$f":"[1]RelatedPartyRevenue!U90","v":0},{"$f":"[1]RelatedPartyRevenue!V90","v":0},{"$f":"[1]RelatedPartyRevenue!V90","v":0},0,null,{"$f":"[1]RelatedPartyRevenue!X90","v":0},null,0,0,0,0,0,0]
[0,0,{"$f":"IFERROR(INDEX((Settings!$M$17:$M$236),MATCH(RelatedPartyRevenue!G91,Settings!$AD$18:$AD$166,0)),0)","v":0},null,null,{"$f":"[1]RelatedPartyRevenue!F91","v":0},{"$f":"[1]RelatedPartyRevenue!G91","v":0},{"$f":"[1]RelatedPartyRevenue!H91","v":0},null,{"$f":"[1]RelatedPartyRevenue!M91","v":0},{"$f":"[1]RelatedPartyRevenue!M91","v":0},{"$f":"[1]RelatedPartyRevenue!O91","v":0},{"$f":"[1]RelatedPartyRevenue!O91","v":0},{"$f":"[1]RelatedPartyRevenue!Q91","v":0},{"$f":"[1]RelatedPartyRevenue!Q91","v":0},{"$f":"[1]RelatedPartyRevenue!S91","v":0},{"$f":"[1]RelatedPartyRevenue!S91","v":0},{"$f":"[1]RelatedPartyRevenue!U91","v":0},{"$f":"[1]RelatedPartyRevenue!U91","v":0},{"$f":"[1]RelatedPartyRevenue!V91","v":0},{"$f":"[1]RelatedPartyRevenue!V91","v":0},0,null,{"$f":"[1]RelatedPartyRevenue!X91","v":0},null,0,0,0,0,0,0]
[0,0,{"$f":"IFERROR(INDEX((Settings!$M$17:$M$236),MATCH(RelatedPartyRevenue!G92,Settings!$AD$18:$AD$166,0)),0)","v":0},null,null,{"$f":"[1]RelatedPartyRevenue!F92","v":0},{"$f":"[1]RelatedPartyRevenue!G92","v":0},{"$f":"[1]RelatedPartyRevenue!H92","v":0},null,{"$f":"[1]RelatedPartyRevenue!M92","v":0},{"$f":"[1]RelatedPartyRevenue!M92","v":0},{"$f":"[1]RelatedPartyRevenue!O92","v":0},{"$f":"[1]RelatedPartyRevenue!O92","v":0},{"$f":"[1]RelatedPartyRevenue!Q92","v":0},{"$f":"[1]RelatedPartyRevenue!Q92","v":0},{"$f":"[1]RelatedPartyRevenue!S92","v":0},{"$f":"[1]RelatedPartyRevenue!S92","v":0},{"$f":"[1]RelatedPartyRevenue!U92","v":0},{"$f":"[1]RelatedPartyRevenue!U92","v":0},{"$f":"[1]RelatedPartyRevenue!V92","v":0},{"$f":"[1]RelatedPartyRevenue!V92","v":0},0,null,{"$f":"[1]RelatedPartyRevenue!X92","v":0},null,0,0,0,0,0,0]
[0,0,{"$f":"IFERROR(INDEX((Settings!$M$17:$M$236),MATCH(RelatedPartyRevenue!G93,Settings!$AD$18:$AD$166,0)),0)","v":0},null,null,{"$f":"[1]RelatedPartyRevenue!F93","v":0},{"$f":"[1]RelatedPartyRevenue!G93","v":0},{"$f":"[1]RelatedPartyRevenue!H93","v":0},null,{"$f":"[1]RelatedPartyRevenue!M93","v":0},{"$f":"[1]RelatedPartyRevenue!M93","v":0},{"$f":"[1]RelatedPartyRevenue!O93","v":0},{"$f":"[1]RelatedPartyRevenue!O93","v":0},{"$f":"[1]RelatedPartyRevenue!Q93","v":0},{"$f":"[1]RelatedPartyRevenue!Q93","v":0},{"$f":"[1]RelatedPartyRevenue!S93","v":0},{"$f":"[1]RelatedPartyRevenue!S93","v":0},{"$f":"[1]RelatedPartyRevenue!U93","v":0},{"$f":"[1]RelatedPartyRevenue!U93","v":0},{"$f":"[1]RelatedPartyRevenue!V93","v":0},{"$f":"[1]RelatedPartyRevenue!V93","v":0},0,null,{"$f":"[1]RelatedPartyRevenue!X93","v":0},null,0,0,0,0,0,0]
[0,0,{"$f":"IFERROR(INDEX((Settings!$M$17:$M$236),MATCH(RelatedPartyRevenue!G94,Settings!$AD$18:$AD$166,0)),0)","v":0},null,null,{"$f":"[1]RelatedPartyRevenue!F94","v":0},{"$f":"[1]RelatedPartyRevenue!G94","v":0},{"$f":"[1]RelatedPartyRevenue!H94","v":0},null,{"$f":"[1]RelatedPartyRevenue!M94","v":0},{"$f":"[1]RelatedPartyRevenue!M94","v":0},{"$f":"[1]RelatedPartyRevenue!O94","v":0},{"$f":"[1]RelatedPartyRevenue!O94","v":0},{"$f":"[1]RelatedPartyRevenue!Q94","v":0},{"$f":"[1]RelatedPartyRevenue!Q94","v":0},{"$f":"[1]RelatedPartyRevenue!S94","v":0},{"$f":"[1]RelatedPartyRevenue!S94","v":0},{"$f":"[1]RelatedPartyRevenue!U94","v":0},{"$f":"[1]RelatedPartyRevenue!U94","v":0},{"$f":"[1]RelatedPartyRevenue!V94","v":0},{"$f":"[1]RelatedPartyRevenue!V94","v":0},0,null,{"$f":"[1]RelatedPartyRevenue!X94","v":0},null,0,0,0,0,0,0]
[0,0,{"$f":"IFERROR(INDEX((Settings!$M$17:$M$236),MATCH(RelatedPartyRevenue!G95,Settings!$AD$18:$AD$166,0)),0)","v":0},null,null,{"$f":"[1]RelatedPartyRevenue!F95","v":0},{"$f":"[1]RelatedPartyRevenue!G95","v":0},{"$f":"[1]RelatedPartyRevenue!H95","v":0},null,{"$f":"[1]RelatedPartyRevenue!M95","v":0},{"$f":"[1]RelatedPartyRevenue!M95","v":0},{"$f":"[1]RelatedPartyRevenue!O95","v":0},{"$f":"[1]RelatedPartyRevenue!O95","v":0},{"$f":"[1]RelatedPartyRevenue!Q95","v":0},{"$f":"[1]RelatedPartyRevenue!Q95","v":0},{"$f":"[1]RelatedPartyRevenue!S95","v":0},{"$f":"[1]RelatedPartyRevenue!S95","v":0},{"$f":"[1]RelatedPartyRevenue!U95","v":0},{"$f":"[1]RelatedPartyRevenue!U95","v":0},{"$f":"[1]RelatedPartyRevenue!V95","v":0},{"$f":"[1]RelatedPartyRevenue!V95","v":0},0,null,{"$f":"[1]RelatedPartyRevenue!X95","v":0},null,0,0,0,0,0,0]
[0,0,{"$f":"IFERROR(INDEX((Settings!$M$17:$M$236),MATCH(RelatedPartyRevenue!G96,Settings!$AD$18:$AD$166,0)),0)","v":0},null,null,{"$f":"[1]RelatedPartyRevenue!F96","v":0},{"$f":"[1]RelatedPartyRevenue!G96","v":0},{"$f":"[1]RelatedPartyRevenue!H96","v":0},null,{"$f":"[1]RelatedPartyRevenue!M96","v":0},{"$f":"[1]RelatedPartyRevenue!M96","v":0},{"$f":"[1]RelatedPartyRevenue!O96","v":0},{"$f":"[1]RelatedPartyRevenue!O96","v":0},{"$f":"[1]RelatedPartyRevenue!Q96","v":0},{"$f":"[1]RelatedPartyRevenue!Q96","v":0},{"$f":"[1]RelatedPartyRevenue!S96","v":0},{"$f":"[1]RelatedPartyRevenue!S96","v":0},{"$f":"[1]RelatedPartyRevenue!U96","v":0},{"$f":"[1]RelatedPartyRevenue!U96","v":0},{"$f":"[1]RelatedPartyRevenue!V96","v":0},{"$f":"[1]RelatedPartyRevenue!V96","v":0},0,null,{"$f":"[1]RelatedPartyRevenue!X96","v":0},null,0,0,0,0,0,0]
[0,0,{"$f":"IFERROR(INDEX((Settings!$M$17:$M$236),MATCH(RelatedPartyRevenue!G97,Settings!$AD$18:$AD$166,0)),0)","v":0},null,null,{"$f":"[1]RelatedPartyRevenue!F97","v":0},{"$f":"[1]RelatedPartyRevenue!G97","v":0},{"$f":"[1]RelatedPartyRevenue!H97","v":0},null,{"$f":"[1]RelatedPartyRevenue!M97","v":0},{"$f":"[1]RelatedPartyRevenue!M97","v":0},{"$f":"[1]RelatedPartyRevenue!O97","v":0},{"$f":"[1]RelatedPartyRevenue!O97","v":0},{"$f":"[1]RelatedPartyRevenue!Q97","v":0},{"$f":"[1]RelatedPartyRevenue!Q97","v":0},{"$f":"[1]RelatedPartyRevenue!S97","v":0},{"$f":"[1]RelatedPartyRevenue!S97","v":0},{"$f":"[1]RelatedPartyRevenue!U97","v":0},{"$f":"[1]RelatedPartyRevenue!U97","v":0},{"$f":"[1]RelatedPartyRevenue!V97","v":0},{"$f":"[1]RelatedPartyRevenue!V97","v":0},0,null,{"$f":"[1]RelatedPartyRevenue!X97","v":0},null,0,0,0,0,0,0]
[0,0,{"$f":"IFERROR(INDEX((Settings!$M$17:$M$236),MATCH(RelatedPartyRevenue!G98,Settings!$AD$18:$AD$166,0)),0)","v":0},null,null,{"$f":"[1]RelatedPartyRevenue!F98","v":0},{"$f":"[1]RelatedPartyRevenue!G98","v":0},{"$f":"[1]RelatedPartyRevenue!H98","v":0},null,{"$f":"[1]RelatedPartyRevenue!M98","v":0},{"$f":"[1]RelatedPartyRevenue!M98","v":0},{"$f":"[1]RelatedPartyRevenue!O98","v":0},{"$f":"[1]RelatedPartyRevenue!O98","v":0},{"$f":"[1]RelatedPartyRevenue!Q98","v":0},{"$f":"[1]RelatedPartyRevenue!Q98","v":0},{"$f":"[1]RelatedPartyRevenue!S98","v":0},{"$f":"[1]RelatedPartyRevenue!S98","v":0},{"$f":"[1]RelatedPartyRevenue!U98","v":0},{"$f":"[1]RelatedPartyRevenue!U98","v":0},{"$f":"[1]RelatedPartyRevenue!V98","v":0},{"$f":"[1]RelatedPartyRevenue!V98","v":0},0,null,{"$f":"[1]RelatedPartyRevenue!X98","v":0},null,0,0,0,0,0,0]
[0,0,{"$f":"IFERROR(INDEX((Settings!$M$17:$M$236),MATCH(RelatedPartyRevenue!G99,Settings!$AD$18:$AD$166,0)),0)","v":0},null,null,{"$f":"[1]RelatedPartyRevenue!F99","v":0},{"$f":"[1]RelatedPartyRevenue!G99","v":0},{"$f":"[1]RelatedPartyRevenue!H99","v":0},null,{"$f":"[1]RelatedPartyRevenue!M99","v":0},{"$f":"[1]RelatedPartyRevenue!M99","v":0},{"$f":"[1]RelatedPartyRevenue!O99","v":0},{"$f":"[1]RelatedPartyRevenue!O99","v":0},{"$f":"[1]RelatedPartyRevenue!Q99","v":0},{"$f":"[1]RelatedPartyRevenue!Q99","v":0},{"$f":"[1]RelatedPartyRevenue!S99","v":0},{"$f":"[1]RelatedPartyRevenue!S99","v":0},{"$f":"[1]RelatedPartyRevenue!U99","v":0},{"$f":"[1]RelatedPartyRevenue!U99","v":0},{"$f":"[1]RelatedPartyRevenue!V99","v":0},{"$f":"[1]RelatedPartyRevenue!V99","v":0},0,null,{"$f":"[1]RelatedPartyRevenue!X99","v":0},null,0,0,0,0,0,0]
[0,0,{"$f":"IFERROR(INDEX((Settings!$M$17:$M$236),MATCH(RelatedPartyRevenue!G100,Settings!$AD$18:$AD$166,0)),0)","v":0},null,null,{"$f":"[1]RelatedPartyRevenue!F100","v":0},{"$f":"[1]RelatedPartyRevenue!G100","v":0},{"$f":"[1]RelatedPartyRevenue!H100","v":0},null,{"$f":"[1]RelatedPartyRevenue!M100","v":0},{"$f":"[1]RelatedPartyRevenue!M100","v":0},{"$f":"[1]RelatedPartyRevenue!O100","v":0},{"$f":"[1]RelatedPartyRevenue!O100","v":0},{"$f":"[1]RelatedPartyRevenue!Q100","v":0},{"$f":"[1]RelatedPartyRevenue!Q100","v":0},{"$f":"[1]RelatedPartyRevenue!S100","v":0},{"$f":"[1]RelatedPartyRevenue!S100","v":0},{"$f":"[1]RelatedPartyRevenue!U100","v":0},{"$f":"[1]RelatedPartyRevenue!U100","v":0},{"$f":"[1]RelatedPartyRevenue!V100","v":0},{"$f":"[1]RelatedPartyRevenue!V100","v":0},0,null,{"$f":"[1]RelatedPartyRevenue!X100","v":0},null,0,0,0,0,0,0]
[0,0,{"$f":"IFERROR(INDEX((Settings!$M$17:$M$236),MATCH(RelatedPartyRevenue!G101,Settings!$AD$18:$AD$166,0)),0)","v":0},null,null,{"$f":"[1]RelatedPartyRevenue!F101","v":0},{"$f":"[1]RelatedPartyRevenue!G101","v":0},{"$f":"[1]RelatedPartyRevenue!H101","v":0},null,{"$f":"[1]RelatedPartyRevenue!M101","v":0},{"$f":"[1]RelatedPartyRevenue!M101","v":0},{"$f":"[1]RelatedPartyRevenue!O101","v":0},{"$f":"[1]RelatedPartyRevenue!O101","v":0},{"$f":"[1]RelatedPartyRevenue!Q101","v":0},{"$f":"[1]RelatedPartyRevenue!Q101","v":0},{"$f":"[1]RelatedPartyRevenue!S101","v":0},{"$f":"[1]RelatedPartyRevenue!S101","v":0},{"$f":"[1]RelatedPartyRevenue!U101","v":0},{"$f":"[1]RelatedPartyRevenue!U101","v":0},{"$f":"[1]RelatedPartyRevenue!V101","v":0},{"$f":"[1]RelatedPartyRevenue!V101","v":0},0,null,{"$f":"[1]RelatedPartyRevenue!X101","v":0},null,0,0,0,0,0,0]
[0,0,{"$f":"IFERROR(INDEX((Settings!$M$17:$M$236),MATCH(RelatedPartyRevenue!G102,Settings!$AD$18:$AD$166,0)),0)","v":0},null,null,{"$f":"[1]RelatedPartyRevenue!F102","v":0},{"$f":"[1]RelatedPartyRevenue!G102","v":0},{"$f":"[1]RelatedPartyRevenue!H102","v":0},null,{"$f":"[1]RelatedPartyRevenue!M102","v":0},{"$f":"[1]RelatedPartyRevenue!M102","v":0},{"$f":"[1]RelatedPartyRevenue!O102","v":0},{"$f":"[1]RelatedPartyRevenue!O102","v":0},{"$f":"[1]RelatedPartyRevenue!Q102","v":0},{"$f":"[1]RelatedPartyRevenue!Q102","v":0},{"$f":"[1]RelatedPartyRevenue!S102","v":0},{"$f":"[1]RelatedPartyRevenue!S102","v":0},{"$f":"[1]RelatedPartyRevenue!U102","v":0},{"$f":"[1]RelatedPartyRevenue!U102","v":0},{"$f":"[1]RelatedPartyRevenue!V102","v":0},{"$f":"[1]RelatedPartyRevenue!V102","v":0},0,null,{"$f":"[1]RelatedPartyRevenue!X102","v":0},null,0,0,0,0,0,0]
[0,0,{"$f":"IFERROR(INDEX((Settings!$M$17:$M$236),MATCH(RelatedPartyRevenue!G103,Settings!$AD$18:$AD$166,0)),0)","v":0},null,null,{"$f":"[1]RelatedPartyRevenue!F103","v":0},{"$f":"[1]RelatedPartyRevenue!G103","v":0},{"$f":"[1]RelatedPartyRevenue!H103","v":0},null,{"$f":"[1]RelatedPartyRevenue!M103","v":0},{"$f":"[1]RelatedPartyRevenue!M103","v":0},{"$f":"[1]RelatedPartyRevenue!O103","v":0},{"$f":"[1]RelatedPartyRevenue!O103","v":0},{"$f":"[1]RelatedPartyRevenue!Q103","v":0},{"$f":"[1]RelatedPartyRevenue!Q103","v":0},{"$f":"[1]RelatedPartyRevenue!S103","v":0},{"$f":"[1]RelatedPartyRevenue!S103","v":0},{"$f":"[1]RelatedPartyRevenue!U103","v":0},{"$f":"[1]RelatedPartyRevenue!U103","v":0},{"$f":"[1]RelatedPartyRevenue!V103","v":0},{"$f":"[1]RelatedPartyRevenue!V103","v":0},0,null,{"$f":"[1]RelatedPartyRevenue!X103","v":0},null,0,0,0,0,0,0]
[0,0,{"$f":"IFERROR(INDEX((Settings!$M$17:$M$236),MATCH(RelatedPartyRevenue!G104,Settings!$AD$18:$AD$166,0)),0)","v":0},null,null,{"$f":"[1]RelatedPartyRevenue!F104","v":0},{"$f":"[1]RelatedPartyRevenue!G104","v":0},{"$f":"[1]RelatedPartyRevenue!H104","v":0},null,{"$f":"[1]RelatedPartyRevenue!M104","v":0},{"$f":"[1]RelatedPartyRevenue!M104","v":0},{"$f":"[1]RelatedPartyRevenue!O104","v":0},{"$f":"[1]RelatedPartyRevenue!O104","v":0},{"$f":"[1]RelatedPartyRevenue!Q104","v":0},{"$f":"[1]RelatedPartyRevenue!Q104","v":0},{"$f":"[1]RelatedPartyRevenue!S104","v":0},{"$f":"[1]RelatedPartyRevenue!S104","v":0},{"$f":"[1]RelatedPartyRevenue!U104","v":0},{"$f":"[1]RelatedPartyRevenue!U104","v":0},{"$f":"[1]RelatedPartyRevenue!V104","v":0},{"$f":"[1]RelatedPartyRevenue!V104","v":0},0,null,{"$f":"[1]RelatedPartyRevenue!X104","v":0},null,0,0,0,0,0,0]
[0,0,{"$f":"IFERROR(INDEX((Settings!$M$17:$M$236),MATCH(RelatedPartyRevenue!G105,Settings!$AD$18:$AD$166,0)),0)","v":0},null,null,{"$f":"[1]RelatedPartyRevenue!F105","v":0},{"$f":"[1]RelatedPartyRevenue!G105","v":0},{"$f":"[1]RelatedPartyRevenue!H105","v":0},null,{"$f":"[1]RelatedPartyRevenue!M105","v":0},{"$f":"[1]RelatedPartyRevenue!M105","v":0},{"$f":"[1]RelatedPartyRevenue!O105","v":0},{"$f":"[1]RelatedPartyRevenue!O105","v":0},{"$f":"[1]RelatedPartyRevenue!Q105","v":0},{"$f":"[1]RelatedPartyRevenue!Q105","v":0},{"$f":"[1]RelatedPartyRevenue!S105","v":0},{"$f":"[1]RelatedPartyRevenue!S105","v":0},{"$f":"[1]RelatedPartyRevenue!U105","v":0},{"$f":"[1]RelatedPartyRevenue!U105","v":0},{"$f":"[1]RelatedPartyRevenue!V105","v":0},{"$f":"[1]RelatedPartyRevenue!V105","v":0},0,null,{"$f":"[1]RelatedPartyRevenue!X105","v":0},null,0,0,0,0,0,0]
[0,0,{"$f":"IFERROR(INDEX((Settings!$M$17:$M$236),MATCH(RelatedPartyRevenue!G106,Settings!$AD$18:$AD$166,0)),0)","v":0},null,null,{"$f":"[1]RelatedPartyRevenue!F106","v":0},{"$f":"[1]RelatedPartyRevenue!G106","v":0},{"$f":"[1]RelatedPartyRevenue!H106","v":0},null,{"$f":"[1]RelatedPartyRevenue!M106","v":0},{"$f":"[1]RelatedPartyRevenue!M106","v":0},{"$f":"[1]RelatedPartyRevenue!O106","v":0},{"$f":"[1]RelatedPartyRevenue!O106","v":0},{"$f":"[1]RelatedPartyRevenue!Q106","v":0},{"$f":"[1]RelatedPartyRevenue!Q106","v":0},{"$f":"[1]RelatedPartyRevenue!S106","v":0},{"$f":"[1]RelatedPartyRevenue!S106","v":0},{"$f":"[1]RelatedPartyRevenue!U106","v":0},{"$f":"[1]RelatedPartyRevenue!U106","v":0},{"$f":"[1]RelatedPartyRevenue!V106","v":0},{"$f":"[1]RelatedPartyRevenue!V106","v":0},0,null,{"$f":"[1]RelatedPartyRevenue!X106","v":0},null,0,0,0,0,0,0]
[0,0,{"$f":"IFERROR(INDEX((Settings!$M$17:$M$236),MATCH(RelatedPartyRevenue!G107,Settings!$AD$18:$AD$166,0)),0)","v":0},null,null,{"$f":"[1]RelatedPartyRevenue!F107","v":0},{"$f":"[1]RelatedPartyRevenue!G107","v":0},{"$f":"[1]RelatedPartyRevenue!H107","v":0},null,{"$f":"[1]RelatedPartyRevenue!M107","v":0},{"$f":"[1]RelatedPartyRevenue!M107","v":0},{"$f":"[1]RelatedPartyRevenue!O107","v":0},{"$f":"[1]RelatedPartyRevenue!O107","v":0},{"$f":"[1]RelatedPartyRevenue!Q107","v":0},{"$f":"[1]RelatedPartyRevenue!Q107","v":0},{"$f":"[1]RelatedPartyRevenue!S107","v":0},{"$f":"[1]RelatedPartyRevenue!S107","v":0},{"$f":"[1]RelatedPartyRevenue!U107","v":0},{"$f":"[1]RelatedPartyRevenue!U107","v":0},{"$f":"[1]RelatedPartyRevenue!V107","v":0},{"$f":"[1]RelatedPartyRevenue!V107","v":0},0,null,{"$f":"[1]RelatedPartyRevenue!X107","v":0},null,0,0,0,0,0,0]
[0,0,{"$f":"IFERROR(INDEX((Settings!$M$17:$M$236),MATCH(RelatedPartyRevenue!G108,Settings!$AD$18:$AD$166,0)),0)","v":0},null,null,{"$f":"[1]RelatedPartyRevenue!F108","v":0},{"$f":"[1]RelatedPartyRevenue!G108","v":0},{"$f":"[1]RelatedPartyRevenue!H108","v":0},null,{"$f":"[1]RelatedPartyRevenue!M108","v":0},{"$f":"[1]RelatedPartyRevenue!M108","v":0},{"$f":"[1]RelatedPartyRevenue!O108","v":0},{"$f":"[1]RelatedPartyRevenue!O108","v":0},{"$f":"[1]RelatedPartyRevenue!Q108","v":0},{"$f":"[1]RelatedPartyRevenue!Q108","v":0},{"$f":"[1]RelatedPartyRevenue!S108","v":0},{"$f":"[1]RelatedPartyRevenue!S108","v":0},{"$f":"[1]RelatedPartyRevenue!U108","v":0},{"$f":"[1]RelatedPartyRevenue!U108","v":0},{"$f":"[1]RelatedPartyRevenue!V108","v":0},{"$f":"[1]RelatedPartyRevenue!V108","v":0},0,null,{"$f":"[1]RelatedPartyRevenue!X108","v":0},null,0,0,0,0,0,0]
[0,0,{"$f":"IFERROR(INDEX((Settings!$M$17:$M$236),MATCH(RelatedPartyRevenue!G109,Settings!$AD$18:$AD$166,0)),0)","v":0},null,null,{"$f":"[1]RelatedPartyRevenue!F109","v":0},{"$f":"[1]RelatedPartyRevenue!G109","v":0},{"$f":"[1]RelatedPartyRevenue!H109","v":0},null,{"$f":"[1]RelatedPartyRevenue!M109","v":0},{"$f":"[1]RelatedPartyRevenue!M109","v":0},{"$f":"[1]RelatedPartyRevenue!O109","v":0},{"$f":"[1]RelatedPartyRevenue!O109","v":0},{"$f":"[1]RelatedPartyRevenue!Q109","v":0},{"$f":"[1]RelatedPartyRevenue!Q109","v":0},{"$f":"[1]RelatedPartyRevenue!S109","v":0},{"$f":"[1]RelatedPartyRevenue!S109","v":0},{"$f":"[1]RelatedPartyRevenue!U109","v":0},{"$f":"[1]RelatedPartyRevenue!U109","v":0},{"$f":"[1]RelatedPartyRevenue!V109","v":0},{"$f":"[1]RelatedPartyRevenue!V109","v":0},0,null,{"$f":"[1]RelatedPartyRevenue!X109","v":0},null,0,0,0,0,0,0]
[0,0,{"$f":"IFERROR(INDEX((Settings!$M$17:$M$236),MATCH(RelatedPartyRevenue!G110,Settings!$AD$18:$AD$166,0)),0)","v":0},null,null,{"$f":"[1]RelatedPartyRevenue!F110","v":0},{"$f":"[1]RelatedPartyRevenue!G110","v":0},{"$f":"[1]RelatedPartyRevenue!H110","v":0},null,{"$f":"[1]RelatedPartyRevenue!M110","v":0},{"$f":"[1]RelatedPartyRevenue!M110","v":0},{"$f":"[1]RelatedPartyRevenue!O110","v":0},{"$f":"[1]RelatedPartyRevenue!O110","v":0},{"$f":"[1]RelatedPartyRevenue!Q110","v":0},{"$f":"[1]RelatedPartyRevenue!Q110","v":0},{"$f":"[1]RelatedPartyRevenue!S110","v":0},{"$f":"[1]RelatedPartyRevenue!S110","v":0},{"$f":"[1]RelatedPartyRevenue!U110","v":0},{"$f":"[1]RelatedPartyRevenue!U110","v":0},{"$f":"[1]RelatedPartyRevenue!V110","v":0},{"$f":"[1]RelatedPartyRevenue!V110","v":0},0,null,{"$f":"[1]RelatedPartyRevenue!X110","v":0},null,0,0,0,0,0,0]
[0,0,{"$f":"IFERROR(INDEX((Settings!$M$17:$M$236),MATCH(RelatedPartyRevenue!G111,Settings!$AD$18:$AD$166,0)),0)","v":0},null,null,{"$f":"[1]RelatedPartyRevenue!F111","v":0},{"$f":"[1]RelatedPartyRevenue!G111","v":0},{"$f":"[1]RelatedPartyRevenue!H111","v":0},null,{"$f":"[1]RelatedPartyRevenue!M111","v":0},{"$f":"[1]RelatedPartyRevenue!M111","v":0},{"$f":"[1]RelatedPartyRevenue!O111","v":0},{"$f":"[1]RelatedPartyRevenue!O111","v":0},{"$f":"[1]RelatedPartyRevenue!Q111","v":0},{"$f":"[1]RelatedPartyRevenue!Q111","v":0},{"$f":"[1]RelatedPartyRevenue!S111","v":0},{"$f":"[1]RelatedPartyRevenue!S111","v":0},{"$f":"[1]RelatedPartyRevenue!U111","v":0},{"$f":"[1]RelatedPartyRevenue!U111","v":0},{"$f":"[1]RelatedPartyRevenue!V111","v":0},{"$f":"[1]RelatedPartyRevenue!V111","v":0},0,null,{"$f":"[1]RelatedPartyRevenue!X111","v":0},null,0,0,0,0,0,0]
[0,0,{"$f":"IFERROR(INDEX((Settings!$M$17:$M$236),MATCH(RelatedPartyRevenue!G112,Settings!$AD$18:$AD$166,0)),0)","v":0},null,null,{"$f":"[1]RelatedPartyRevenue!F112","v":0},{"$f":"[1]RelatedPartyRevenue!G112","v":0},{"$f":"[1]RelatedPartyRevenue!H112","v":0},null,{"$f":"[1]RelatedPartyRevenue!M112","v":0},{"$f":"[1]RelatedPartyRevenue!M112","v":0},{"$f":"[1]RelatedPartyRevenue!O112","v":0},{"$f":"[1]RelatedPartyRevenue!O112","v":0},{"$f":"[1]RelatedPartyRevenue!Q112","v":0},{"$f":"[1]RelatedPartyRevenue!Q112","v":0},{"$f":"[1]RelatedPartyRevenue!S112","v":0},{"$f":"[1]RelatedPartyRevenue!S112","v":0},{"$f":"[1]RelatedPartyRevenue!U112","v":0},{"$f":"[1]RelatedPartyRevenue!U112","v":0},{"$f":"[1]RelatedPartyRevenue!V112","v":0},{"$f":"[1]RelatedPartyRevenue!V112","v":0},0,null,{"$f":"[1]RelatedPartyRevenue!X112","v":0},null,0,0,0,0,0,0]
[0,0,{"$f":"IFERROR(INDEX((Settings!$M$17:$M$236),MATCH(RelatedPartyRevenue!G113,Settings!$AD$18:$AD$166,0)),0)","v":0},null,null,{"$f":"[1]RelatedPartyRevenue!F113","v":0},{"$f":"[1]RelatedPartyRevenue!G113","v":0},{"$f":"[1]RelatedPartyRevenue!H113","v":0},null,{"$f":"[1]RelatedPartyRevenue!M113","v":0},{"$f":"[1]RelatedPartyRevenue!M113","v":0},{"$f":"[1]RelatedPartyRevenue!O113","v":0},{"$f":"[1]RelatedPartyRevenue!O113","v":0},{"$f":"[1]RelatedPartyRevenue!Q113","v":0},{"$f":"[1]RelatedPartyRevenue!Q113","v":0},{"$f":"[1]RelatedPartyRevenue!S113","v":0},{"$f":"[1]RelatedPartyRevenue!S113","v":0},{"$f":"[1]RelatedPartyRevenue!U113","v":0},{"$f":"[1]RelatedPartyRevenue!U113","v":0},{"$f":"[1]RelatedPartyRevenue!V113","v":0},{"$f":"[1]RelatedPartyRevenue!V113","v":0},0,null,{"$f":"[1]RelatedPartyRevenue!X113","v":0},null,0,0,0,0,0,0]
[0,0,{"$f":"IFERROR(INDEX((Settings!$M$17:$M$236),MATCH(RelatedPartyRevenue!G114,Settings!$AD$18:$AD$166,0)),0)","v":0},null,null,{"$f":"[1]RelatedPartyRevenue!F114","v":0},{"$f":"[1]RelatedPartyRevenue!G114","v":0},{"$f":"[1]RelatedPartyRevenue!H114","v":0},null,{"$f":"[1]RelatedPartyRevenue!M114","v":0},{"$f":"[1]RelatedPartyRevenue!M114","v":0},{"$f":"[1]RelatedPartyRevenue!O114","v":0},{"$f":"[1]RelatedPartyRevenue!O114","v":0},{"$f":"[1]RelatedPartyRevenue!Q114","v":0},{"$f":"[1]RelatedPartyRevenue!Q114","v":0},{"$f":"[1]RelatedPartyRevenue!S114","v":0},{"$f":"[1]RelatedPartyRevenue!S114","v":0},{"$f":"[1]RelatedPartyRevenue!U114","v":0},{"$f":"[1]RelatedPartyRevenue!U114","v":0},{"$f":"[1]RelatedPartyRevenue!V114","v":0},{"$f":"[1]RelatedPartyRevenue!V114","v":0},0,null,{"$f":"[1]RelatedPartyRevenue!X114","v":0},null,0,0,0,0,0,0]
[0,0,{"$f":"IFERROR(INDEX((Settings!$M$17:$M$236),MATCH(RelatedPartyRevenue!G115,Settings!$AD$18:$AD$166,0)),0)","v":0},null,null,{"$f":"[1]RelatedPartyRevenue!F115","v":0},{"$f":"[1]RelatedPartyRevenue!G115","v":0},{"$f":"[1]RelatedPartyRevenue!H115","v":0},null,{"$f":"[1]RelatedPartyRevenue!M115","v":0},{"$f":"[1]RelatedPartyRevenue!M115","v":0},{"$f":"[1]RelatedPartyRevenue!O115","v":0},{"$f":"[1]RelatedPartyRevenue!O115","v":0},{"$f":"[1]RelatedPartyRevenue!Q115","v":0},{"$f":"[1]RelatedPartyRevenue!Q115","v":0},{"$f":"[1]RelatedPartyRevenue!S115","v":0},{"$f":"[1]RelatedPartyRevenue!S115","v":0},{"$f":"[1]RelatedPartyRevenue!U115","v":0},{"$f":"[1]RelatedPartyRevenue!U115","v":0},{"$f":"[1]RelatedPartyRevenue!V115","v":0},{"$f":"[1]RelatedPartyRevenue!V115","v":0},0,null,{"$f":"[1]RelatedPartyRevenue!X115","v":0},null,0,0,0,0,0,0]
[0,0,{"$f":"IFERROR(INDEX((Settings!$M$17:$M$236),MATCH(RelatedPartyRevenue!G116,Settings!$AD$18:$AD$166,0)),0)","v":0},null,null,{"$f":"[1]RelatedPartyRevenue!F116","v":0},{"$f":"[1]RelatedPartyRevenue!G116","v":0},{"$f":"[1]RelatedPartyRevenue!H116","v":0},null,{"$f":"[1]RelatedPartyRevenue!M116","v":0},{"$f":"[1]RelatedPartyRevenue!M116","v":0},{"$f":"[1]RelatedPartyRevenue!O116","v":0},{"$f":"[1]RelatedPartyRevenue!O116","v":0},{"$f":"[1]RelatedPartyRevenue!Q116","v":0},{"$f":"[1]RelatedPartyRevenue!Q116","v":0},{"$f":"[1]RelatedPartyRevenue!S116","v":0},{"$f":"[1]RelatedPartyRevenue!S116","v":0},{"$f":"[1]RelatedPartyRevenue!U116","v":0},{"$f":"[1]RelatedPartyRevenue!U116","v":0},{"$f":"[1]RelatedPartyRevenue!V116","v":0},{"$f":"[1]RelatedPartyRevenue!V116","v":0},0,null,{"$f":"[1]RelatedPartyRevenue!X116","v":0},null,0,0,0,0,0,0]
[0,0,{"$f":"IFERROR(INDEX((Settings!$M$17:$M$236),MATCH(RelatedPartyRevenue!G117,Settings!$AD$18:$AD$166,0)),0)","v":0},null,null,{"$f":"[1]RelatedPartyRevenue!F117","v":0},{"$f":"[1]RelatedPartyRevenue!G117","v":0},{"$f":"[1]RelatedPartyRevenue!H117","v":0},null,{"$f":"[1]RelatedPartyRevenue!M117","v":0},{"$f":"[1]RelatedPartyRevenue!M117","v":0},{"$f":"[1]RelatedPartyRevenue!O117","v":0},{"$f":"[1]RelatedPartyRevenue!O117","v":0},{"$f":"[1]RelatedPartyRevenue!Q117","v":0},{"$f":"[1]RelatedPartyRevenue!Q117","v":0},{"$f":"[1]RelatedPartyRevenue!S117","v":0},{"$f":"[1]RelatedPartyRevenue!S117","v":0},{"$f":"[1]RelatedPartyRevenue!U117","v":0},{"$f":"[1]RelatedPartyRevenue!U117","v":0},{"$f":"[1]RelatedPartyRevenue!V117","v":0},{"$f":"[1]RelatedPartyRevenue!V117","v":0},0,null,{"$f":"[1]RelatedPartyRevenue!X117","v":0},null,0,0,0,0,0,0]
[0,0,{"$f":"IFERROR(INDEX((Settings!$M$17:$M$236),MATCH(RelatedPartyRevenue!G118,Settings!$AD$18:$AD$166,0)),0)","v":0},null,null,{"$f":"[1]RelatedPartyRevenue!F118","v":0},{"$f":"[1]RelatedPartyRevenue!G118","v":0},{"$f":"[1]RelatedPartyRevenue!H118","v":0},null,{"$f":"[1]RelatedPartyRevenue!M118","v":0},{"$f":"[1]RelatedPartyRevenue!M118","v":0},{"$f":"[1]RelatedPartyRevenue!O118","v":0},{"$f":"[1]RelatedPartyRevenue!O118","v":0},{"$f":"[1]RelatedPartyRevenue!Q118","v":0},{"$f":"[1]RelatedPartyRevenue!Q118","v":0},{"$f":"[1]RelatedPartyRevenue!S118","v":0},{"$f":"[1]RelatedPartyRevenue!S118","v":0},{"$f":"[1]RelatedPartyRevenue!U118","v":0},{"$f":"[1]RelatedPartyRevenue!U118","v":0},{"$f":"[1]RelatedPartyRevenue!V118","v":0},{"$f":"[1]RelatedPartyRevenue!V118","v":0},0,null,{"$f":"[1]RelatedPartyRevenue!X118","v":0},null,0,0,0,0,0,0]
[0,0,{"$f":"IFERROR(INDEX((Settings!$M$17:$M$236),MATCH(RelatedPartyRevenue!G119,Settings!$AD$18:$AD$166,0)),0)","v":0},null,null,{"$f":"[1]RelatedPartyRevenue!F119","v":0},{"$f":"[1]RelatedPartyRevenue!G119","v":0},{"$f":"[1]RelatedPartyRevenue!H119","v":0},null,{"$f":"[1]RelatedPartyRevenue!M119","v":0},{"$f":"[1]RelatedPartyRevenue!M119","v":0},{"$f":"[1]RelatedPartyRevenue!O119","v":0},{"$f":"[1]RelatedPartyRevenue!O119","v":0},{"$f":"[1]RelatedPartyRevenue!Q119","v":0},{"$f":"[1]RelatedPartyRevenue!Q119","v":0},{"$f":"[1]RelatedPartyRevenue!S119","v":0},{"$f":"[1]RelatedPartyRevenue!S119","v":0},{"$f":"[1]RelatedPartyRevenue!U119","v":0},{"$f":"[1]RelatedPartyRevenue!U119","v":0},{"$f":"[1]RelatedPartyRevenue!V119","v":0},{"$f":"[1]RelatedPartyRevenue!V119","v":0},0,null,{"$f":"[1]RelatedPartyRevenue!X119","v":0},null,0,0,0,0,0,0]
[0,0,{"$f":"IFERROR(INDEX((Settings!$M$17:$M$236),MATCH(RelatedPartyRevenue!G120,Settings!$AD$18:$AD$166,0)),0)","v":0},null,null,{"$f":"[1]RelatedPartyRevenue!F120","v":0},{"$f":"[1]RelatedPartyRevenue!G120","v":0},{"$f":"[1]RelatedPartyRevenue!H120","v":0},null,{"$f":"[1]RelatedPartyRevenue!M120","v":0},{"$f":"[1]RelatedPartyRevenue!M120","v":0},{"$f":"[1]RelatedPartyRevenue!O120","v":0},{"$f":"[1]RelatedPartyRevenue!O120","v":0},{"$f":"[1]RelatedPartyRevenue!Q120","v":0},{"$f":"[1]RelatedPartyRevenue!Q120","v":0},{"$f":"[1]RelatedPartyRevenue!S120","v":0},{"$f":"[1]RelatedPartyRevenue!S120","v":0},{"$f":"[1]RelatedPartyRevenue!U120","v":0},{"$f":"[1]RelatedPartyRevenue!U120","v":0},{"$f":"[1]RelatedPartyRevenue!V120","v":0},{"$f":"[1]RelatedPartyRevenue!V120","v":0},0,null,{"$f":"[1]RelatedPartyRevenue!X120","v":0},null,0,0,0,0,0,0]
[0,0,{"$f":"IFERROR(INDEX((Settings!$M$17:$M$236),MATCH(RelatedPartyRevenue!G121,Settings!$AD$18:$AD$166,0)),0)","v":0},null,null,{"$f":"[1]RelatedPartyRevenue!F121","v":0},{"$f":"[1]RelatedPartyRevenue!G121","v":0},{"$f":"[1]RelatedPartyRevenue!H121","v":0},null,{"$f":"[1]RelatedPartyRevenue!M121","v":0},{"$f":"[1]RelatedPartyRevenue!M121","v":0},{"$f":"[1]RelatedPartyRevenue!O121","v":0},{"$f":"[1]RelatedPartyRevenue!O121","v":0},{"$f":"[1]RelatedPartyRevenue!Q121","v":0},{"$f":"[1]RelatedPartyRevenue!Q121","v":0},{"$f":"[1]RelatedPartyRevenue!S121","v":0},{"$f":"[1]RelatedPartyRevenue!S121","v":0},{"$f":"[1]RelatedPartyRevenue!U121","v":0},{"$f":"[1]RelatedPartyRevenue!U121","v":0},{"$f":"[1]RelatedPartyRevenue!V121","v":0},{"$f":"[1]RelatedPartyRevenue!V121","v":0},0,null,{"$f":"[1]RelatedPartyRevenue!X121","v":0},null,0,0,0,0,0,0]
[0,0,{"$f":"IFERROR(INDEX((Settings!$M$17:$M$236),MATCH(RelatedPartyRevenue!G122,Settings!$AD$18:$AD$166,0)),0)","v":0},null,null,{"$f":"[1]RelatedPartyRevenue!F122","v":0},{"$f":"[1]RelatedPartyRevenue!G122","v":0},{"$f":"[1]RelatedPartyRevenue!H122","v":0},null,{"$f":"[1]RelatedPartyRevenue!M122","v":0},{"$f":"[1]RelatedPartyRevenue!M122","v":0},{"$f":"[1]RelatedPartyRevenue!O122","v":0},{"$f":"[1]RelatedPartyRevenue!O122","v":0},{"$f":"[1]RelatedPartyRevenue!Q122","v":0},{"$f":"[1]RelatedPartyRevenue!Q122","v":0},{"$f":"[1]RelatedPartyRevenue!S122","v":0},{"$f":"[1]RelatedPartyRevenue!S122","v":0},{"$f":"[1]RelatedPartyRevenue!U122","v":0},{"$f":"[1]RelatedPartyRevenue!U122","v":0},{"$f":"[1]RelatedPartyRevenue!V122","v":0},{"$f":"[1]RelatedPartyRevenue!V122","v":0},0,null,{"$f":"[1]RelatedPartyRevenue!X122","v":0},null,0,0,0,0,0,0]
[0,0,{"$f":"IFERROR(INDEX((Settings!$M$17:$M$236),MATCH(RelatedPartyRevenue!G123,Settings!$AD$18:$AD$166,0)),0)","v":0},null,null,{"$f":"[1]RelatedPartyRevenue!F123","v":0},{"$f":"[1]RelatedPartyRevenue!G123","v":0},{"$f":"[1]RelatedPartyRevenue!H123","v":0},null,{"$f":"[1]RelatedPartyRevenue!M123","v":0},{"$f":"[1]RelatedPartyRevenue!M123","v":0},{"$f":"[1]RelatedPartyRevenue!O123","v":0},{"$f":"[1]RelatedPartyRevenue!O123","v":0},{"$f":"[1]RelatedPartyRevenue!Q123","v":0},{"$f":"[1]RelatedPartyRevenue!Q123","v":0},{"$f":"[1]RelatedPartyRevenue!S123","v":0},{"$f":"[1]RelatedPartyRevenue!S123","v":0},{"$f":"[1]RelatedPartyRevenue!U123","v":0},{"$f":"[1]RelatedPartyRevenue!U123","v":0},{"$f":"[1]RelatedPartyRevenue!V123","v":0},{"$f":"[1]RelatedPartyRevenue!V123","v":0},0,null,{"$f":"[1]RelatedPartyRevenue!X123","v":0},null,0,0,0,0,0,0]
[0,0,{"$f":"IFERROR(INDEX((Settings!$M$17:$M$236),MATCH(RelatedPartyRevenue!G124,Settings!$AD$18:$AD$166,0)),0)","v":0},null,null,{"$f":"[1]RelatedPartyRevenue!F124","v":0},{"$f":"[1]RelatedPartyRevenue!G124","v":0},{"$f":"[1]RelatedPartyRevenue!H124","v":0},null,{"$f":"[1]RelatedPartyRevenue!M124","v":0},{"$f":"[1]RelatedPartyRevenue!M124","v":0},{"$f":"[1]RelatedPartyRevenue!O124","v":0},{"$f":"[1]RelatedPartyRevenue!O124","v":0},{"$f":"[1]RelatedPartyRevenue!Q124","v":0},{"$f":"[1]RelatedPartyRevenue!Q124","v":0},{"$f":"[1]RelatedPartyRevenue!S124","v":0},{"$f":"[1]RelatedPartyRevenue!S124","v":0},{"$f":"[1]RelatedPartyRevenue!U124","v":0},{"$f":"[1]RelatedPartyRevenue!U124","v":0},{"$f":"[1]RelatedPartyRevenue!V124","v":0},{"$f":"[1]RelatedPartyRevenue!V124","v":0},0,null,{"$f":"[1]RelatedPartyRevenue!X124","v":0},null,0,0,0,0,0,0]
[0,0,{"$f":"IFERROR(INDEX((Settings!$M$17:$M$236),MATCH(RelatedPartyRevenue!G125,Settings!$AD$18:$AD$166,0)),0)","v":0},null,null,{"$f":"[1]RelatedPartyRevenue!F125","v":0},{"$f":"[1]RelatedPartyRevenue!G125","v":0},{"$f":"[1]RelatedPartyRevenue!H125","v":0},null,{"$f":"[1]RelatedPartyRevenue!M125","v":0},{"$f":"[1]RelatedPartyRevenue!M125","v":0},{"$f":"[1]RelatedPartyRevenue!O125","v":0},{"$f":"[1]RelatedPartyRevenue!O125","v":0},{"$f":"[1]RelatedPartyRevenue!Q125","v":0},{"$f":"[1]RelatedPartyRevenue!Q125","v":0},{"$f":"[1]RelatedPartyRevenue!S125","v":0},{"$f":"[1]RelatedPartyRevenue!S125","v":0},{"$f":"[1]RelatedPartyRevenue!U125","v":0},{"$f":"[1]RelatedPartyRevenue!U125","v":0},{"$f":"[1]RelatedPartyRevenue!V125","v":0},{"$f":"[1]RelatedPartyRevenue!V125","v":0},0,null,{"$f":"[1]RelatedPartyRevenue!X125","v":0},null,0,0,0,0,0,0]
[0,0,{"$f":"IFERROR(INDEX((Settings!$M$17:$M$236),MATCH(RelatedPartyRevenue!G126,Settings!$AD$18:$AD$166,0)),0)","v":0},null,null,{"$f":"[1]RelatedPartyRevenue!F126","v":0},{"$f":"[1]RelatedPartyRevenue!G126","v":0},{"$f":"[1]RelatedPartyRevenue!H126","v":0},null,{"$f":"[1]RelatedPartyRevenue!M126","v":0},{"$f":"[1]RelatedPartyRevenue!M126","v":0},{"$f":"[1]RelatedPartyRevenue!O126","v":0},{"$f":"[1]RelatedPartyRevenue!O126","v":0},{"$f":"[1]RelatedPartyRevenue!Q126","v":0},{"$f":"[1]RelatedPartyRevenue!Q126","v":0},{"$f":"[1]RelatedPartyRevenue!S126","v":0},{"$f":"[1]RelatedPartyRevenue!S126","v":0},{"$f":"[1]RelatedPartyRevenue!U126","v":0},{"$f":"[1]RelatedPartyRevenue!U126","v":0},{"$f":"[1]RelatedPartyRevenue!V126","v":0},{"$f":"[1]RelatedPartyRevenue!V126","v":0},0,null,{"$f":"[1]RelatedPartyRevenue!X126","v":0},null,0,0,0,0,0,0]
[0,0,{"$f":"IFERROR(INDEX((Settings!$M$17:$M$236),MATCH(RelatedPartyRevenue!G127,Settings!$AD$18:$AD$166,0)),0)","v":0},null,null,{"$f":"[1]RelatedPartyRevenue!F127","v":0},{"$f":"[1]RelatedPartyRevenue!G127","v":0},{"$f":"[1]RelatedPartyRevenue!H127","v":0},null,{"$f":"[1]RelatedPartyRevenue!M127","v":0},{"$f":"[1]RelatedPartyRevenue!M127","v":0},{"$f":"[1]RelatedPartyRevenue!O127","v":0},{"$f":"[1]RelatedPartyRevenue!O127","v":0},{"$f":"[1]RelatedPartyRevenue!Q127","v":0},{"$f":"[1]RelatedPartyRevenue!Q127","v":0},{"$f":"[1]RelatedPartyRevenue!S127","v":0},{"$f":"[1]RelatedPartyRevenue!S127","v":0},{"$f":"[1]RelatedPartyRevenue!U127","v":0},{"$f":"[1]RelatedPartyRevenue!U127","v":0},{"$f":"[1]RelatedPartyRevenue!V127","v":0},{"$f":"[1]RelatedPartyRevenue!V127","v":0},0,null,{"$f":"[1]RelatedPartyRevenue!X127","v":0},null,0,0,0,0,0,0]
[0,0,{"$f":"IFERROR(INDEX((Settings!$M$17:$M$236),MATCH(RelatedPartyRevenue!G128,Settings!$AD$18:$AD$166,0)),0)","v":0},null,null,{"$f":"[1]RelatedPartyRevenue!F128","v":0},{"$f":"[1]RelatedPartyRevenue!G128","v":0},{"$f":"[1]RelatedPartyRevenue!H128","v":0},null,{"$f":"[1]RelatedPartyRevenue!M128","v":0},{"$f":"[1]RelatedPartyRevenue!M128","v":0},{"$f":"[1]RelatedPartyRevenue!O128","v":0},{"$f":"[1]RelatedPartyRevenue!O128","v":0},{"$f":"[1]RelatedPartyRevenue!Q128","v":0},{"$f":"[1]RelatedPartyRevenue!Q128","v":0},{"$f":"[1]RelatedPartyRevenue!S128","v":0},{"$f":"[1]RelatedPartyRevenue!S128","v":0},{"$f":"[1]RelatedPartyRevenue!U128","v":0},{"$f":"[1]RelatedPartyRevenue!U128","v":0},{"$f":"[1]RelatedPartyRevenue!V128","v":0},{"$f":"[1]RelatedPartyRevenue!V128","v":0},0,null,{"$f":"[1]RelatedPartyRevenue!X128","v":0},null,0,0,0,0,0,0]
[0,0,{"$f":"IFERROR(INDEX((Settings!$M$17:$M$236),MATCH(RelatedPartyRevenue!G129,Settings!$AD$18:$AD$166,0)),0)","v":0},null,null,{"$f":"[1]RelatedPartyRevenue!F129","v":0},{"$f":"[1]RelatedPartyRevenue!G129","v":0},{"$f":"[1]RelatedPartyRevenue!H129","v":0},null,{"$f":"[1]RelatedPartyRevenue!M129","v":0},{"$f":"[1]RelatedPartyRevenue!M129","v":0},{"$f":"[1]RelatedPartyRevenue!O129","v":0},{"$f":"[1]RelatedPartyRevenue!O129","v":0},{"$f":"[1]RelatedPartyRevenue!Q129","v":0},{"$f":"[1]RelatedPartyRevenue!Q129","v":0},{"$f":"[1]RelatedPartyRevenue!S129","v":0},{"$f":"[1]RelatedPartyRevenue!S129","v":0},{"$f":"[1]RelatedPartyRevenue!U129","v":0},{"$f":"[1]RelatedPartyRevenue!U129","v":0},{"$f":"[1]RelatedPartyRevenue!V129","v":0},{"$f":"[1]RelatedPartyRevenue!V129","v":0},0,null,{"$f":"[1]RelatedPartyRevenue!X129","v":0},null,0,0,0,0,0,0]
[0,0,{"$f":"IFERROR(INDEX((Settings!$M$17:$M$236),MATCH(RelatedPartyRevenue!G130,Settings!$AD$18:$AD$166,0)),0)","v":0},null,null,{"$f":"[1]RelatedPartyRevenue!F130","v":0},{"$f":"[1]RelatedPartyRevenue!G130","v":0},{"$f":"[1]RelatedPartyRevenue!H130","v":0},null,{"$f":"[1]RelatedPartyRevenue!M130","v":0},{"$f":"[1]RelatedPartyRevenue!M130","v":0},{"$f":"[1]RelatedPartyRevenue!O130","v":0},{"$f":"[1]RelatedPartyRevenue!O130","v":0},{"$f":"[1]RelatedPartyRevenue!Q130","v":0},{"$f":"[1]RelatedPartyRevenue!Q130","v":0},{"$f":"[1]RelatedPartyRevenue!S130","v":0},{"$f":"[1]RelatedPartyRevenue!S130","v":0},{"$f":"[1]RelatedPartyRevenue!U130","v":0},{"$f":"[1]RelatedPartyRevenue!U130","v":0},{"$f":"[1]RelatedPartyRevenue!V130","v":0},{"$f":"[1]RelatedPartyRevenue!V130","v":0},0,null,{"$f":"[1]RelatedPartyRevenue!X130","v":0},null,0,0,0,0,0,0]
[0,0,{"$f":"IFERROR(INDEX((Settings!$M$17:$M$236),MATCH(RelatedPartyRevenue!G131,Settings!$AD$18:$AD$166,0)),0)","v":0},null,null,{"$f":"[1]RelatedPartyRevenue!F131","v":0},{"$f":"[1]RelatedPartyRevenue!G131","v":0},{"$f":"[1]RelatedPartyRevenue!H131","v":0},null,{"$f":"[1]RelatedPartyRevenue!M131","v":0},{"$f":"[1]RelatedPartyRevenue!M131","v":0},{"$f":"[1]RelatedPartyRevenue!O131","v":0},{"$f":"[1]RelatedPartyRevenue!O131","v":0},{"$f":"[1]RelatedPartyRevenue!Q131","v":0},{"$f":"[1]RelatedPartyRevenue!Q131","v":0},{"$f":"[1]RelatedPartyRevenue!S131","v":0},{"$f":"[1]RelatedPartyRevenue!S131","v":0},{"$f":"[1]RelatedPartyRevenue!U131","v":0},{"$f":"[1]RelatedPartyRevenue!U131","v":0},{"$f":"[1]RelatedPartyRevenue!V131","v":0},{"$f":"[1]RelatedPartyRevenue!V131","v":0},0,null,{"$f":"[1]RelatedPartyRevenue!X131","v":0},null,0,0,0,0,0,0]
[0,0,{"$f":"IFERROR(INDEX((Settings!$M$17:$M$236),MATCH(RelatedPartyRevenue!G132,Settings!$AD$18:$AD$166,0)),0)","v":0},null,null,{"$f":"[1]RelatedPartyRevenue!F132","v":0},{"$f":"[1]RelatedPartyRevenue!G132","v":0},{"$f":"[1]RelatedPartyRevenue!H132","v":0},null,{"$f":"[1]RelatedPartyRevenue!M132","v":0},{"$f":"[1]RelatedPartyRevenue!M132","v":0},{"$f":"[1]RelatedPartyRevenue!O132","v":0},{"$f":"[1]RelatedPartyRevenue!O132","v":0},{"$f":"[1]RelatedPartyRevenue!Q132","v":0},{"$f":"[1]RelatedPartyRevenue!Q132","v":0},{"$f":"[1]RelatedPartyRevenue!S132","v":0},{"$f":"[1]RelatedPartyRevenue!S132","v":0},{"$f":"[1]RelatedPartyRevenue!U132","v":0},{"$f":"[1]RelatedPartyRevenue!U132","v":0},{"$f":"[1]RelatedPartyRevenue!V132","v":0},{"$f":"[1]RelatedPartyRevenue!V132","v":0},0,null,{"$f":"[1]RelatedPartyRevenue!X132","v":0},null,0,0,0,0,0,0]
[0,0,{"$f":"IFERROR(INDEX((Settings!$M$17:$M$236),MATCH(RelatedPartyRevenue!G133,Settings!$AD$18:$AD$166,0)),0)","v":0},null,null,{"$f":"[1]RelatedPartyRevenue!F133","v":0},{"$f":"[1]RelatedPartyRevenue!G133","v":0},{"$f":"[1]RelatedPartyRevenue!H133","v":0},null,{"$f":"[1]RelatedPartyRevenue!M133","v":0},{"$f":"[1]RelatedPartyRevenue!M133","v":0},{"$f":"[1]RelatedPartyRevenue!O133","v":0},{"$f":"[1]RelatedPartyRevenue!O133","v":0},{"$f":"[1]RelatedPartyRevenue!Q133","v":0},{"$f":"[1]RelatedPartyRevenue!Q133","v":0},{"$f":"[1]RelatedPartyRevenue!S133","v":0},{"$f":"[1]RelatedPartyRevenue!S133","v":0},{"$f":"[1]RelatedPartyRevenue!U133","v":0},{"$f":"[1]RelatedPartyRevenue!U133","v":0},{"$f":"[1]RelatedPartyRevenue!V133","v":0},{"$f":"[1]RelatedPartyRevenue!V133","v":0},0,null,{"$f":"[1]RelatedPartyRevenue!X133","v":0},null,0,0,0,0,0,0]
[0,0,{"$f":"IFERROR(INDEX((Settings!$M$17:$M$236),MATCH(RelatedPartyRevenue!G134,Settings!$AD$18:$AD$166,0)),0)","v":0},null,null,{"$f":"[1]RelatedPartyRevenue!F134","v":0},{"$f":"[1]RelatedPartyRevenue!G134","v":0},{"$f":"[1]RelatedPartyRevenue!H134","v":0},null,{"$f":"[1]RelatedPartyRevenue!M134","v":0},{"$f":"[1]RelatedPartyRevenue!M134","v":0},{"$f":"[1]RelatedPartyRevenue!O134","v":0},{"$f":"[1]RelatedPartyRevenue!O134","v":0},{"$f":"[1]RelatedPartyRevenue!Q134","v":0},{"$f":"[1]RelatedPartyRevenue!Q134","v":0},{"$f":"[1]RelatedPartyRevenue!S134","v":0},{"$f":"[1]RelatedPartyRevenue!S134","v":0},{"$f":"[1]RelatedPartyRevenue!U134","v":0},{"$f":"[1]RelatedPartyRevenue!U134","v":0},{"$f":"[1]RelatedPartyRevenue!V134","v":0},{"$f":"[1]RelatedPartyRevenue!V134","v":0},0,null,{"$f":"[1]RelatedPartyRevenue!X134","v":0},null,0,0,0,0,0,0]
[0,0,{"$f":"IFERROR(INDEX((Settings!$M$17:$M$236),MATCH(RelatedPartyRevenue!G135,Settings!$AD$18:$AD$166,0)),0)","v":0},null,null,{"$f":"[1]RelatedPartyRevenue!F135","v":0},{"$f":"[1]RelatedPartyRevenue!G135","v":0},{"$f":"[1]RelatedPartyRevenue!H135","v":0},null,{"$f":"[1]RelatedPartyRevenue!M135","v":0},{"$f":"[1]RelatedPartyRevenue!M135","v":0},{"$f":"[1]RelatedPartyRevenue!O135","v":0},{"$f":"[1]RelatedPartyRevenue!O135","v":0},{"$f":"[1]RelatedPartyRevenue!Q135","v":0},{"$f":"[1]RelatedPartyRevenue!Q135","v":0},{"$f":"[1]RelatedPartyRevenue!S135","v":0},{"$f":"[1]RelatedPartyRevenue!S135","v":0},{"$f":"[1]RelatedPartyRevenue!U135","v":0},{"$f":"[1]RelatedPartyRevenue!U135","v":0},{"$f":"[1]RelatedPartyRevenue!V135","v":0},{"$f":"[1]RelatedPartyRevenue!V135","v":0},0,null,{"$f":"[1]RelatedPartyRevenue!X135","v":0},null,0,0,0,0,0,0]
[0,0,{"$f":"IFERROR(INDEX((Settings!$M$17:$M$236),MATCH(RelatedPartyRevenue!G136,Settings!$AD$18:$AD$166,0)),0)","v":0},null,null,{"$f":"[1]RelatedPartyRevenue!F136","v":0},{"$f":"[1]RelatedPartyRevenue!G136","v":0},{"$f":"[1]RelatedPartyRevenue!H136","v":0},null,{"$f":"[1]RelatedPartyRevenue!M136","v":0},{"$f":"[1]RelatedPartyRevenue!M136","v":0},{"$f":"[1]RelatedPartyRevenue!O136","v":0},{"$f":"[1]RelatedPartyRevenue!O136","v":0},{"$f":"[1]RelatedPartyRevenue!Q136","v":0},{"$f":"[1]RelatedPartyRevenue!Q136","v":0},{"$f":"[1]RelatedPartyRevenue!S136","v":0},{"$f":"[1]RelatedPartyRevenue!S136","v":0},{"$f":"[1]RelatedPartyRevenue!U136","v":0},{"$f":"[1]RelatedPartyRevenue!U136","v":0},{"$f":"[1]RelatedPartyRevenue!V136","v":0},{"$f":"[1]RelatedPartyRevenue!V136","v":0},0,null,{"$f":"[1]RelatedPartyRevenue!X136","v":0},null,0,0,0,0,0,0]
[0,0,{"$f":"IFERROR(INDEX((Settings!$M$17:$M$236),MATCH(RelatedPartyRevenue!G137,Settings!$AD$18:$AD$166,0)),0)","v":0},null,null,{"$f":"[1]RelatedPartyRevenue!F137","v":0},{"$f":"[1]RelatedPartyRevenue!G137","v":0},{"$f":"[1]RelatedPartyRevenue!H137","v":0},null,{"$f":"[1]RelatedPartyRevenue!M137","v":0},{"$f":"[1]RelatedPartyRevenue!M137","v":0},{"$f":"[1]RelatedPartyRevenue!O137","v":0},{"$f":"[1]RelatedPartyRevenue!O137","v":0},{"$f":"[1]RelatedPartyRevenue!Q137","v":0},{"$f":"[1]RelatedPartyRevenue!Q137","v":0},{"$f":"[1]RelatedPartyRevenue!S137","v":0},{"$f":"[1]RelatedPartyRevenue!S137","v":0},{"$f":"[1]RelatedPartyRevenue!U137","v":0},{"$f":"[1]RelatedPartyRevenue!U137","v":0},{"$f":"[1]RelatedPartyRevenue!V137","v":0},{"$f":"[1]RelatedPartyRevenue!V137","v":0},0,null,{"$f":"[1]RelatedPartyRevenue!X137","v":0},null,0,0,0,0,0,0]
[0,0,{"$f":"IFERROR(INDEX((Settings!$M$17:$M$236),MATCH(RelatedPartyRevenue!G138,Settings!$AD$18:$AD$166,0)),0)","v":0},null,null,{"$f":"[1]RelatedPartyRevenue!F138","v":0},{"$f":"[1]RelatedPartyRevenue!G138","v":0},{"$f":"[1]RelatedPartyRevenue!H138","v":0},null,{"$f":"[1]RelatedPartyRevenue!M138","v":0},{"$f":"[1]RelatedPartyRevenue!M138","v":0},{"$f":"[1]RelatedPartyRevenue!O138","v":0},{"$f":"[1]RelatedPartyRevenue!O138","v":0},{"$f":"[1]RelatedPartyRevenue!Q138","v":0},{"$f":"[1]RelatedPartyRevenue!Q138","v":0},{"$f":"[1]RelatedPartyRevenue!S138","v":0},{"$f":"[1]RelatedPartyRevenue!S138","v":0},{"$f":"[1]RelatedPartyRevenue!U138","v":0},{"$f":"[1]RelatedPartyRevenue!U138","v":0},{"$f":"[1]RelatedPartyRevenue!V138","v":0},{"$f":"[1]RelatedPartyRevenue!V138","v":0},0,null,{"$f":"[1]RelatedPartyRevenue!X138","v":0},null,0,0,0,0,0,0]
[0,{"$f":"IF($G139=$G$7,1,0)","v":0},{"$f":"IFERROR(INDEX((Settings!$M$17:$M$236),MATCH(RelatedPartyRevenue!G139,Settings!$AD$18:$AD$166,0)),0)","v":0},null,null,{"$f":"[1]RelatedPartyRevenue!F139","v":0},{"$f":"[1]RelatedPartyRevenue!G139","v":0},{"$f":"[1]RelatedPartyRevenue!H139","v":0},null,{"$f":"[1]RelatedPartyRevenue!M139","v":0},{"$f":"[1]RelatedPartyRevenue!M139","v":0},{"$f":"[1]RelatedPartyRevenue!O139","v":0},{"$f":"[1]RelatedPartyRevenue!O139","v":0},{"$f":"[1]RelatedPartyRevenue!Q139","v":0},{"$f":"[1]RelatedPartyRevenue!Q139","v":0},{"$f":"[1]RelatedPartyRevenue!S139","v":0},{"$f":"[1]RelatedPartyRevenue!S139","v":0},{"$f":"[1]RelatedPartyRevenue!U139","v":0},{"$f":"[1]RelatedPartyRevenue!U139","v":0},{"$f":"[1]RelatedPartyRevenue!V139","v":0},{"$f":"[1]RelatedPartyRevenue!V139","v":0},0,null,{"$f":"[1]RelatedPartyRevenue!X139","v":0},null,0,0,0,0,0,0]
[{"$f":"IF(SUM(J140:V140)>0,1,0)","v":0},0,{"$f":"IFERROR(INDEX((Settings!$M$17:$M$236),MATCH(RelatedPartyRevenue!G140,Settings!$AD$18:$AD$166,0)),0)","v":0},null,null,{"$f":"[1]RelatedPartyRevenue!F140","v":0},{"$f":"[1]RelatedPartyRevenue!G140","v":0},{"$f":"[1]RelatedPartyRevenue!H140","v":0},null,{"$f":"[1]RelatedPartyRevenue!M140","v":0},{"$f":"[1]RelatedPartyRevenue!M140","v":0},{"$f":"[1]RelatedPartyRevenue!O140","v":0},{"$f":"[1]RelatedPartyRevenue!O140","v":0},{"$f":"[1]RelatedPartyRevenue!Q140","v":0},{"$f":"[1]RelatedPartyRevenue!Q140","v":0},{"$f":"[1]RelatedPartyRevenue!S140","v":0},{"$f":"[1]RelatedPartyRevenue!S140","v":0},{"$f":"[1]RelatedPartyRevenue!U140","v":0},{"$f":"[1]RelatedPartyRevenue!U140","v":0},{"$f":"[1]RelatedPartyRevenue!V140","v":0},{"$f":"[1]RelatedPartyRevenue!V140","v":0},0,null,{"$f":"[1]RelatedPartyRevenue!X140","v":0},null,{"$f":"K140-J140","v":0},{"$f":"M140-L140","v":0},0,0,0,0]
[0,0,{"$f":"IFERROR(INDEX((Settings!$M$17:$M$236),MATCH(RelatedPartyRevenue!G141,Settings!$AD$18:$AD$166,0)),0)","v":0},null,null,{"$f":"[1]RelatedPartyRevenue!F141","v":0},{"$f":"[1]RelatedPartyRevenue!G141","v":0},{"$f":"[1]RelatedPartyRevenue!H141","v":0},null,{"$f":"[1]RelatedPartyRevenue!M141","v":0},{"$f":"[1]RelatedPartyRevenue!M141","v":0},{"$f":"[1]RelatedPartyRevenue!O141","v":0},{"$f":"[1]RelatedPartyRevenue!O141","v":0},{"$f":"[1]RelatedPartyRevenue!Q141","v":0},{"$f":"[1]RelatedPartyRevenue!Q141","v":0},{"$f":"[1]RelatedPartyRevenue!S141","v":0},{"$f":"[1]RelatedPartyRevenue!S141","v":0},{"$f":"[1]RelatedPartyRevenue!U141","v":0},{"$f":"[1]RelatedPartyRevenue!U141","v":0},{"$f":"[1]RelatedPartyRevenue!V141","v":0},{"$f":"[1]RelatedPartyRevenue!V141","v":0},0,null,{"$f":"[1]RelatedPartyRevenue!X141","v":0},null,0,0,{"$f":"O141-N141","v":0},{"$f":"Q141-P141","v":0},{"$f":"S141-R141","v":0},{"$f":"U141-T141","v":0}]
[0,0,{"$f":"IFERROR(INDEX((Settings!$M$17:$M$236),MATCH(RelatedPartyRevenue!G142,Settings!$AD$18:$AD$166,0)),0)","v":0},null,null,{"$f":"[1]RelatedPartyRevenue!F142","v":0},{"$f":"[1]RelatedPartyRevenue!G142","v":0},{"$f":"[1]RelatedPartyRevenue!H142","v":0},null,{"$f":"[1]RelatedPartyRevenue!M142","v":0},{"$f":"[1]RelatedPartyRevenue!M142","v":0},{"$f":"[1]RelatedPartyRevenue!O142","v":0},{"$f":"[1]RelatedPartyRevenue!O142","v":0},{"$f":"[1]RelatedPartyRevenue!Q142","v":0},{"$f":"[1]RelatedPartyRevenue!Q142","v":0},{"$f":"[1]RelatedPartyRevenue!S142","v":0},{"$f":"[1]RelatedPartyRevenue!S142","v":0},{"$f":"[1]RelatedPartyRevenue!U142","v":0},{"$f":"[1]RelatedPartyRevenue!U142","v":0},{"$f":"[1]RelatedPartyRevenue!V142","v":0},{"$f":"[1]RelatedPartyRevenue!V142","v":0},0,null,{"$f":"[1]RelatedPartyRevenue!X142","v":0},null,0,0,0,0,0,0]
[0,0,{"$f":"IFERROR(INDEX((Settings!$M$17:$M$236),MATCH(RelatedPartyRevenue!G143,Settings!$AD$18:$AD$166,0)),0)","v":0},null,null,{"$f":"[1]RelatedPartyRevenue!F143","v":0},{"$f":"[1]RelatedPartyRevenue!G143","v":0},{"$f":"[1]RelatedPartyRevenue!H143","v":0},null,{"$f":"[1]RelatedPartyRevenue!M143","v":0},{"$f":"[1]RelatedPartyRevenue!M143","v":0},{"$f":"[1]RelatedPartyRevenue!O143","v":0},{"$f":"[1]RelatedPartyRevenue!O143","v":0},{"$f":"[1]RelatedPartyRevenue!Q143","v":0},{"$f":"[1]RelatedPartyRevenue!Q143","v":0},{"$f":"[1]RelatedPartyRevenue!S143","v":0},{"$f":"[1]RelatedPartyRevenue!S143","v":0},{"$f":"[1]RelatedPartyRevenue!U143","v":0},{"$f":"[1]RelatedPartyRevenue!U143","v":0},{"$f":"[1]RelatedPartyRevenue!V143","v":0},{"$f":"[1]RelatedPartyRevenue!V143","v":0},0,null,{"$f":"[1]RelatedPartyRevenue!X143","v":0},null,0,0,0,0,0,0]
[0,0,{"$f":"IFERROR(INDEX((Settings!$M$17:$M$236),MATCH(RelatedPartyRevenue!G144,Settings!$AD$18:$AD$166,0)),0)","v":0},null,null,{"$f":"[1]RelatedPartyRevenue!F144","v":0},{"$f":"[1]RelatedPartyRevenue!G144","v":0},{"$f":"[1]RelatedPartyRevenue!H144","v":0},null,{"$f":"[1]RelatedPartyRevenue!M144","v":0},{"$f":"[1]RelatedPartyRevenue!M144","v":0},{"$f":"[1]RelatedPartyRevenue!O144","v":0},{"$f":"[1]RelatedPartyRevenue!O144","v":0},{"$f":"[1]RelatedPartyRevenue!Q144","v":0},{"$f":"[1]RelatedPartyRevenue!Q144","v":0},{"$f":"[1]RelatedPartyRevenue!S144","v":0},{"$f":"[1]RelatedPartyRevenue!S144","v":0},{"$f":"[1]RelatedPartyRevenue!U144","v":0},{"$f":"[1]RelatedPartyRevenue!U144","v":0},{"$f":"[1]RelatedPartyRevenue!V144","v":0},{"$f":"[1]RelatedPartyRevenue!V144","v":0},0,null,{"$f":"[1]RelatedPartyRevenue!X144","v":0},null,0,0,0,0,0,0]
[0,0,{"$f":"IFERROR(INDEX((Settings!$M$17:$M$236),MATCH(RelatedPartyRevenue!G145,Settings!$AD$18:$AD$166,0)),0)","v":0},null,null,{"$f":"[1]RelatedPartyRevenue!F145","v":0},{"$f":"[1]RelatedPartyRevenue!G145","v":0},{"$f":"[1]RelatedPartyRevenue!H145","v":0},null,{"$f":"[1]RelatedPartyRevenue!M145","v":0},{"$f":"[1]RelatedPartyRevenue!M145","v":0},{"$f":"[1]RelatedPartyRevenue!O145","v":0},{"$f":"[1]RelatedPartyRevenue!O145","v":0},{"$f":"[1]RelatedPartyRevenue!Q145","v":0},{"$f":"[1]RelatedPartyRevenue!Q145","v":0},{"$f":"[1]RelatedPartyRevenue!S145","v":0},{"$f":"[1]RelatedPartyRevenue!S145","v":0},{"$f":"[1]RelatedPartyRevenue!U145","v":0},{"$f":"[1]RelatedPartyRevenue!U145","v":0},{"$f":"[1]RelatedPartyRevenue!V145","v":0},{"$f":"[1]RelatedPartyRevenue!V145","v":0},0,null,{"$f":"[1]RelatedPartyRevenue!X145","v":0},null,0,0,0,0,0,0]
[0,0,{"$f":"IFERROR(INDEX((Settings!$M$17:$M$236),MATCH(RelatedPartyRevenue!G146,Settings!$AD$18:$AD$166,0)),0)","v":0},null,null,{"$f":"[1]RelatedPartyRevenue!F146","v":0},{"$f":"[1]RelatedPartyRevenue!G146","v":0},{"$f":"[1]RelatedPartyRevenue!H146","v":0},null,{"$f":"[1]RelatedPartyRevenue!M146","v":0},{"$f":"[1]RelatedPartyRevenue!M146","v":0},{"$f":"[1]RelatedPartyRevenue!O146","v":0},{"$f":"[1]RelatedPartyRevenue!O146","v":0},{"$f":"[1]RelatedPartyRevenue!Q146","v":0},{"$f":"[1]RelatedPartyRevenue!Q146","v":0},{"$f":"[1]RelatedPartyRevenue!S146","v":0},{"$f":"[1]RelatedPartyRevenue!S146","v":0},{"$f":"[1]RelatedPartyRevenue!U146","v":0},{"$f":"[1]RelatedPartyRevenue!U146","v":0},{"$f":"[1]RelatedPartyRevenue!V146","v":0},{"$f":"[1]RelatedPartyRevenue!V146","v":0},0,null,{"$f":"[1]RelatedPartyRevenue!X146","v":0},null,0,0,0,0,0,0]
[0,0,{"$f":"IFERROR(INDEX((Settings!$M$17:$M$236),MATCH(RelatedPartyRevenue!G147,Settings!$AD$18:$AD$166,0)),0)","v":0},null,null,{"$f":"[1]RelatedPartyRevenue!F147","v":0},{"$f":"[1]RelatedPartyRevenue!G147","v":0},{"$f":"[1]RelatedPartyRevenue!H147","v":0},null,{"$f":"[1]RelatedPartyRevenue!M147","v":0},{"$f":"[1]RelatedPartyRevenue!M147","v":0},{"$f":"[1]RelatedPartyRevenue!O147","v":0},{"$f":"[1]RelatedPartyRevenue!O147","v":0},{"$f":"[1]RelatedPartyRevenue!Q147","v":0},{"$f":"[1]RelatedPartyRevenue!Q147","v":0},{"$f":"[1]RelatedPartyRevenue!S147","v":0},{"$f":"[1]RelatedPartyRevenue!S147","v":0},{"$f":"[1]RelatedPartyRevenue!U147","v":0},{"$f":"[1]RelatedPartyRevenue!U147","v":0},{"$f":"[1]RelatedPartyRevenue!V147","v":0},{"$f":"[1]RelatedPartyRevenue!V147","v":0},0,null,{"$f":"[1]RelatedPartyRevenue!X147","v":0},null,0,0,0,0,0,0]
[0,0,{"$f":"IFERROR(INDEX((Settings!$M$17:$M$236),MATCH(RelatedPartyRevenue!G148,Settings!$AD$18:$AD$166,0)),0)","v":0},null,null,{"$f":"[1]RelatedPartyRevenue!F148","v":0},{"$f":"[1]RelatedPartyRevenue!G148","v":0},{"$f":"[1]RelatedPartyRevenue!H148","v":0},null,{"$f":"[1]RelatedPartyRevenue!M148","v":0},{"$f":"[1]RelatedPartyRevenue!M148","v":0},{"$f":"[1]RelatedPartyRevenue!O148","v":0},{"$f":"[1]RelatedPartyRevenue!O148","v":0},{"$f":"[1]RelatedPartyRevenue!Q148","v":0},{"$f":"[1]RelatedPartyRevenue!Q148","v":0},{"$f":"[1]RelatedPartyRevenue!S148","v":0},{"$f":"[1]RelatedPartyRevenue!S148","v":0},{"$f":"[1]RelatedPartyRevenue!U148","v":0},{"$f":"[1]RelatedPartyRevenue!U148","v":0},{"$f":"[1]RelatedPartyRevenue!V148","v":0},{"$f":"[1]RelatedPartyRevenue!V148","v":0},0,null,{"$f":"[1]RelatedPartyRevenue!X148","v":0},null,0,0,0,0,0,0]
[0,0,{"$f":"IFERROR(INDEX((Settings!$M$17:$M$236),MATCH(RelatedPartyRevenue!G149,Settings!$AD$18:$AD$166,0)),0)","v":0},null,null,{"$f":"[1]RelatedPartyRevenue!F149","v":0},{"$f":"[1]RelatedPartyRevenue!G149","v":0},{"$f":"[1]RelatedPartyRevenue!H149","v":0},null,{"$f":"[1]RelatedPartyRevenue!M149","v":0},{"$f":"[1]RelatedPartyRevenue!M149","v":0},{"$f":"[1]RelatedPartyRevenue!O149","v":0},{"$f":"[1]RelatedPartyRevenue!O149","v":0},{"$f":"[1]RelatedPartyRevenue!Q149","v":0},{"$f":"[1]RelatedPartyRevenue!Q149","v":0},{"$f":"[1]RelatedPartyRevenue!S149","v":0},{"$f":"[1]RelatedPartyRevenue!S149","v":0},{"$f":"[1]RelatedPartyRevenue!U149","v":0},{"$f":"[1]RelatedPartyRevenue!U149","v":0},{"$f":"[1]RelatedPartyRevenue!V149","v":0},{"$f":"[1]RelatedPartyRevenue!V149","v":0},0,null,{"$f":"[1]RelatedPartyRevenue!X149","v":0},null,0,0,0,0,0,0]
[0,0,{"$f":"IFERROR(INDEX((Settings!$M$17:$M$236),MATCH(RelatedPartyRevenue!G150,Settings!$AD$18:$AD$166,0)),0)","v":0},null,null,{"$f":"[1]RelatedPartyRevenue!F150","v":0},{"$f":"[1]RelatedPartyRevenue!G150","v":0},{"$f":"[1]RelatedPartyRevenue!H150","v":0},null,{"$f":"[1]RelatedPartyRevenue!M150","v":0},{"$f":"[1]RelatedPartyRevenue!M150","v":0},{"$f":"[1]RelatedPartyRevenue!O150","v":0},{"$f":"[1]RelatedPartyRevenue!O150","v":0},{"$f":"[1]RelatedPartyRevenue!Q150","v":0},{"$f":"[1]RelatedPartyRevenue!Q150","v":0},{"$f":"[1]RelatedPartyRevenue!S150","v":0},{"$f":"[1]RelatedPartyRevenue!S150","v":0},{"$f":"[1]RelatedPartyRevenue!U150","v":0},{"$f":"[1]RelatedPartyRevenue!U150","v":0},{"$f":"[1]RelatedPartyRevenue!V150","v":0},{"$f":"[1]RelatedPartyRevenue!V150","v":0},0,null,{"$f":"[1]RelatedPartyRevenue!X150","v":0},null,0,0,0,0,0,0]
[0,0,{"$f":"IFERROR(INDEX((Settings!$M$17:$M$236),MATCH(RelatedPartyRevenue!G151,Settings!$AD$18:$AD$166,0)),0)","v":0},null,null,{"$f":"[1]RelatedPartyRevenue!F151","v":0},{"$f":"[1]RelatedPartyRevenue!G151","v":0},{"$f":"[1]RelatedPartyRevenue!H151","v":0},null,{"$f":"[1]RelatedPartyRevenue!M151","v":0},{"$f":"[1]RelatedPartyRevenue!M151","v":0},{"$f":"[1]RelatedPartyRevenue!O151","v":0},{"$f":"[1]RelatedPartyRevenue!O151","v":0},{"$f":"[1]RelatedPartyRevenue!Q151","v":0},{"$f":"[1]RelatedPartyRevenue!Q151","v":0},{"$f":"[1]RelatedPartyRevenue!S151","v":0},{"$f":"[1]RelatedPartyRevenue!S151","v":0},{"$f":"[1]RelatedPartyRevenue!U151","v":0},{"$f":"[1]RelatedPartyRevenue!U151","v":0},{"$f":"[1]RelatedPartyRevenue!V151","v":0},{"$f":"[1]RelatedPartyRevenue!V151","v":0},0,null,{"$f":"[1]RelatedPartyRevenue!X151","v":0},null,0,0,0,0,0,0]
[0,0,{"$f":"IFERROR(INDEX((Settings!$M$17:$M$236),MATCH(RelatedPartyRevenue!G152,Settings!$AD$18:$AD$166,0)),0)","v":0},null,null,{"$f":"[1]RelatedPartyRevenue!F152","v":0},{"$f":"[1]RelatedPartyRevenue!G152","v":0},{"$f":"[1]RelatedPartyRevenue!H152","v":0},null,{"$f":"[1]RelatedPartyRevenue!M152","v":0},{"$f":"[1]RelatedPartyRevenue!M152","v":0},{"$f":"[1]RelatedPartyRevenue!O152","v":0},{"$f":"[1]RelatedPartyRevenue!O152","v":0},{"$f":"[1]RelatedPartyRevenue!Q152","v":0},{"$f":"[1]RelatedPartyRevenue!Q152","v":0},{"$f":"[1]RelatedPartyRevenue!S152","v":0},{"$f":"[1]RelatedPartyRevenue!S152","v":0},{"$f":"[1]RelatedPartyRevenue!U152","v":0},{"$f":"[1]RelatedPartyRevenue!U152","v":0},{"$f":"[1]RelatedPartyRevenue!V152","v":0},{"$f":"[1]RelatedPartyRevenue!V152","v":0},0,null,{"$f":"[1]RelatedPartyRevenue!X152","v":0},null,0,0,0,0,0,0]
[0,0,{"$f":"IFERROR(INDEX((Settings!$M$17:$M$236),MATCH(RelatedPartyRevenue!G153,Settings!$AD$18:$AD$166,0)),0)","v":0},null,null,{"$f":"[1]RelatedPartyRevenue!F153","v":0},{"$f":"[1]RelatedPartyRevenue!G153","v":0},{"$f":"[1]RelatedPartyRevenue!H153","v":0},null,{"$f":"[1]RelatedPartyRevenue!M153","v":0},{"$f":"[1]RelatedPartyRevenue!M153","v":0},{"$f":"[1]RelatedPartyRevenue!O153","v":0},{"$f":"[1]RelatedPartyRevenue!O153","v":0},{"$f":"[1]RelatedPartyRevenue!Q153","v":0},{"$f":"[1]RelatedPartyRevenue!Q153","v":0},{"$f":"[1]RelatedPartyRevenue!S153","v":0},{"$f":"[1]RelatedPartyRevenue!S153","v":0},{"$f":"[1]RelatedPartyRevenue!U153","v":0},{"$f":"[1]RelatedPartyRevenue!U153","v":0},{"$f":"[1]RelatedPartyRevenue!V153","v":0},{"$f":"[1]RelatedPartyRevenue!V153","v":0},0,null,{"$f":"[1]RelatedPartyRevenue!X153","v":0},null,0,0,0,0,0,0]
[0,0,{"$f":"IFERROR(INDEX((Settings!$M$17:$M$236),MATCH(RelatedPartyRevenue!G154,Settings!$AD$18:$AD$166,0)),0)","v":0},null,null,{"$f":"[1]RelatedPartyRevenue!F154","v":0},{"$f":"[1]RelatedPartyRevenue!G154","v":0},{"$f":"[1]RelatedPartyRevenue!H154","v":0},null,{"$f":"[1]RelatedPartyRevenue!M154","v":0},{"$f":"[1]RelatedPartyRevenue!M154","v":0},{"$f":"[1]RelatedPartyRevenue!O154","v":0},{"$f":"[1]RelatedPartyRevenue!O154","v":0},{"$f":"[1]RelatedPartyRevenue!Q154","v":0},{"$f":"[1]RelatedPartyRevenue!Q154","v":0},{"$f":"[1]RelatedPartyRevenue!S154","v":0},{"$f":"[1]RelatedPartyRevenue!S154","v":0},{"$f":"[1]RelatedPartyRevenue!U154","v":0},{"$f":"[1]RelatedPartyRevenue!U154","v":0},{"$f":"[1]RelatedPartyRevenue!V154","v":0},{"$f":"[1]RelatedPartyRevenue!V154","v":0},0,null,{"$f":"[1]RelatedPartyRevenue!X154","v":0},null,0,0,0,0,0,0]
[0,0,{"$f":"IFERROR(INDEX((Settings!$M$17:$M$236),MATCH(RelatedPartyRevenue!G155,Settings!$AD$18:$AD$166,0)),0)","v":0},null,null,{"$f":"[1]RelatedPartyRevenue!F155","v":0},{"$f":"[1]RelatedPartyRevenue!G155","v":0},{"$f":"[1]RelatedPartyRevenue!H155","v":0},null,{"$f":"[1]RelatedPartyRevenue!M155","v":0},{"$f":"[1]RelatedPartyRevenue!M155","v":0},{"$f":"[1]RelatedPartyRevenue!O155","v":0},{"$f":"[1]RelatedPartyRevenue!O155","v":0},{"$f":"[1]RelatedPartyRevenue!Q155","v":0},{"$f":"[1]RelatedPartyRevenue!Q155","v":0},{"$f":"[1]RelatedPartyRevenue!S155","v":0},{"$f":"[1]RelatedPartyRevenue!S155","v":0},{"$f":"[1]RelatedPartyRevenue!U155","v":0},{"$f":"[1]RelatedPartyRevenue!U155","v":0},{"$f":"[1]RelatedPartyRevenue!V155","v":0},{"$f":"[1]RelatedPartyRevenue!V155","v":0},0,null,{"$f":"[1]RelatedPartyRevenue!X155","v":0},null,0,0,0,0,0,0]
[0,0,{"$f":"IFERROR(INDEX((Settings!$M$17:$M$236),MATCH(RelatedPartyRevenue!G156,Settings!$AD$18:$AD$166,0)),0)","v":0},null,null,{"$f":"[1]RelatedPartyRevenue!F156","v":0},{"$f":"[1]RelatedPartyRevenue!G156","v":0},{"$f":"[1]RelatedPartyRevenue!H156","v":0},null,{"$f":"[1]RelatedPartyRevenue!M156","v":0},{"$f":"[1]RelatedPartyRevenue!M156","v":0},{"$f":"[1]RelatedPartyRevenue!O156","v":0},{"$f":"[1]RelatedPartyRevenue!O156","v":0},{"$f":"[1]RelatedPartyRevenue!Q156","v":0},{"$f":"[1]RelatedPartyRevenue!Q156","v":0},{"$f":"[1]RelatedPartyRevenue!S156","v":0},{"$f":"[1]RelatedPartyRevenue!S156","v":0},{"$f":"[1]RelatedPartyRevenue!U156","v":0},{"$f":"[1]RelatedPartyRevenue!U156","v":0},{"$f":"[1]RelatedPartyRevenue!V156","v":0},{"$f":"[1]RelatedPartyRevenue!V156","v":0},0,null,{"$f":"[1]RelatedPartyRevenue!X156","v":0},null,0,0,0,0,0,0]
[0,0,{"$f":"IFERROR(INDEX((Settings!$M$17:$M$236),MATCH(RelatedPartyRevenue!G157,Settings!$AD$18:$AD$166,0)),0)","v":0},null,null,{"$f":"[1]RelatedPartyRevenue!F157","v":0},{"$f":"[1]RelatedPartyRevenue!G157","v":0},{"$f":"[1]RelatedPartyRevenue!H157","v":0},null,{"$f":"[1]RelatedPartyRevenue!M157","v":0},{"$f":"[1]RelatedPartyRevenue!M157","v":0},{"$f":"[1]RelatedPartyRevenue!O157","v":0},{"$f":"[1]RelatedPartyRevenue!O157","v":0},{"$f":"[1]RelatedPartyRevenue!Q157","v":0},{"$f":"[1]RelatedPartyRevenue!Q157","v":0},{"$f":"[1]RelatedPartyRevenue!S157","v":0},{"$f":"[1]RelatedPartyRevenue!S157","v":0},{"$f":"[1]RelatedPartyRevenue!U157","v":0},{"$f":"[1]RelatedPartyRevenue!U157","v":0},{"$f":"[1]RelatedPartyRevenue!V157","v":0},{"$f":"[1]RelatedPartyRevenue!V157","v":0},0,null,{"$f":"[1]RelatedPartyRevenue!X157","v":0},null,0,0,0,0,0,0]
[0,0,{"$f":"IFERROR(INDEX((Settings!$M$17:$M$236),MATCH(RelatedPartyRevenue!G158,Settings!$AD$18:$AD$166,0)),0)","v":0},null,null,{"$f":"[1]RelatedPartyRevenue!F158","v":0},{"$f":"[1]RelatedPartyRevenue!G158","v":0},{"$f":"[1]RelatedPartyRevenue!H158","v":0},null,{"$f":"[1]RelatedPartyRevenue!M158","v":0},{"$f":"[1]RelatedPartyRevenue!M158","v":0},{"$f":"[1]RelatedPartyRevenue!O158","v":0},{"$f":"[1]RelatedPartyRevenue!O158","v":0},{"$f":"[1]RelatedPartyRevenue!Q158","v":0},{"$f":"[1]RelatedPartyRevenue!Q158","v":0},{"$f":"[1]RelatedPartyRevenue!S158","v":0},{"$f":"[1]RelatedPartyRevenue!S158","v":0},{"$f":"[1]RelatedPartyRevenue!U158","v":0},{"$f":"[1]RelatedPartyRevenue!U158","v":0},{"$f":"[1]RelatedPartyRevenue!V158","v":0},{"$f":"[1]RelatedPartyRevenue!V158","v":0},0,null,{"$f":"[1]RelatedPartyRevenue!X158","v":0},null,0,0,0,0,0,0]
[0,0,{"$f":"IFERROR(INDEX((Settings!$M$17:$M$236),MATCH(RelatedPartyRevenue!G159,Settings!$AD$18:$AD$166,0)),0)","v":0},null,null,{"$f":"[1]RelatedPartyRevenue!F159","v":0},{"$f":"[1]RelatedPartyRevenue!G159","v":0},{"$f":"[1]RelatedPartyRevenue!H159","v":0},null,{"$f":"[1]RelatedPartyRevenue!M159","v":0},{"$f":"[1]RelatedPartyRevenue!M159","v":0},{"$f":"[1]RelatedPartyRevenue!O159","v":0},{"$f":"[1]RelatedPartyRevenue!O159","v":0},{"$f":"[1]RelatedPartyRevenue!Q159","v":0},{"$f":"[1]RelatedPartyRevenue!Q159","v":0},{"$f":"[1]RelatedPartyRevenue!S159","v":0},{"$f":"[1]RelatedPartyRevenue!S159","v":0},{"$f":"[1]RelatedPartyRevenue!U159","v":0},{"$f":"[1]RelatedPartyRevenue!U159","v":0},{"$f":"[1]RelatedPartyRevenue!V159","v":0},{"$f":"[1]RelatedPartyRevenue!V159","v":0},0,null,{"$f":"[1]RelatedPartyRevenue!X159","v":0},null,0,0,0,0,0,0]
[0,0,{"$f":"IFERROR(INDEX((Settings!$M$17:$M$236),MATCH(RelatedPartyRevenue!G160,Settings!$AD$18:$AD$166,0)),0)","v":0},null,null,{"$f":"[1]RelatedPartyRevenue!F160","v":0},{"$f":"[1]RelatedPartyRevenue!G160","v":0},{"$f":"[1]RelatedPartyRevenue!H160","v":0},null,{"$f":"[1]RelatedPartyRevenue!M160","v":0},{"$f":"[1]RelatedPartyRevenue!M160","v":0},{"$f":"[1]RelatedPartyRevenue!O160","v":0},{"$f":"[1]RelatedPartyRevenue!O160","v":0},{"$f":"[1]RelatedPartyRevenue!Q160","v":0},{"$f":"[1]RelatedPartyRevenue!Q160","v":0},{"$f":"[1]RelatedPartyRevenue!S160","v":0},{"$f":"[1]RelatedPartyRevenue!S160","v":0},{"$f":"[1]RelatedPartyRevenue!U160","v":0},{"$f":"[1]RelatedPartyRevenue!U160","v":0},{"$f":"[1]RelatedPartyRevenue!V160","v":0},{"$f":"[1]RelatedPartyRevenue!V160","v":0},0,null,{"$f":"[1]RelatedPartyRevenue!X160","v":0},null,0,0,0,0,0,0]
[0,0,{"$f":"IFERROR(INDEX((Settings!$M$17:$M$236),MATCH(RelatedPartyRevenue!G161,Settings!$AD$18:$AD$166,0)),0)","v":0},null,null,{"$f":"[1]RelatedPartyRevenue!F161","v":0},{"$f":"[1]RelatedPartyRevenue!G161","v":0},{"$f":"[1]RelatedPartyRevenue!H161","v":0},null,{"$f":"[1]RelatedPartyRevenue!M161","v":0},{"$f":"[1]RelatedPartyRevenue!M161","v":0},{"$f":"[1]RelatedPartyRevenue!O161","v":0},{"$f":"[1]RelatedPartyRevenue!O161","v":0},{"$f":"[1]RelatedPartyRevenue!Q161","v":0},{"$f":"[1]RelatedPartyRevenue!Q161","v":0},{"$f":"[1]RelatedPartyRevenue!S161","v":0},{"$f":"[1]RelatedPartyRevenue!S161","v":0},{"$f":"[1]RelatedPartyRevenue!U161","v":0},{"$f":"[1]RelatedPartyRevenue!U161","v":0},{"$f":"[1]RelatedPartyRevenue!V161","v":0},{"$f":"[1]RelatedPartyRevenue!V161","v":0},0,null,{"$f":"[1]RelatedPartyRevenue!X161","v":0},null,0,0,0,0,0,0]
[0,0,{"$f":"IFERROR(INDEX((Settings!$M$17:$M$236),MATCH(RelatedPartyRevenue!G162,Settings!$AD$18:$AD$166,0)),0)","v":0},null,null,{"$f":"[1]RelatedPartyRevenue!F162","v":0},{"$f":"[1]RelatedPartyRevenue!G162","v":0},{"$f":"[1]RelatedPartyRevenue!H162","v":0},null,{"$f":"[1]RelatedPartyRevenue!M162","v":0},{"$f":"[1]RelatedPartyRevenue!M162","v":0},{"$f":"[1]RelatedPartyRevenue!O162","v":0},{"$f":"[1]RelatedPartyRevenue!O162","v":0},{"$f":"[1]RelatedPartyRevenue!Q162","v":0},{"$f":"[1]RelatedPartyRevenue!Q162","v":0},{"$f":"[1]RelatedPartyRevenue!S162","v":0},{"$f":"[1]RelatedPartyRevenue!S162","v":0},{"$f":"[1]RelatedPartyRevenue!U162","v":0},{"$f":"[1]RelatedPartyRevenue!U162","v":0},{"$f":"[1]RelatedPartyRevenue!V162","v":0},{"$f":"[1]RelatedPartyRevenue!V162","v":0},0,null,{"$f":"[1]RelatedPartyRevenue!X162","v":0},null,0,0,0,0,0,0]
[0,0,{"$f":"IFERROR(INDEX((Settings!$M$17:$M$236),MATCH(RelatedPartyRevenue!G163,Settings!$AD$18:$AD$166,0)),0)","v":0},null,null,{"$f":"[1]RelatedPartyRevenue!F163","v":0},{"$f":"[1]RelatedPartyRevenue!G163","v":0},{"$f":"[1]RelatedPartyRevenue!H163","v":0},null,{"$f":"[1]RelatedPartyRevenue!M163","v":0},{"$f":"[1]RelatedPartyRevenue!M163","v":0},{"$f":"[1]RelatedPartyRevenue!O163","v":0},{"$f":"[1]RelatedPartyRevenue!O163","v":0},{"$f":"[1]RelatedPartyRevenue!Q163","v":0},{"$f":"[1]RelatedPartyRevenue!Q163","v":0},{"$f":"[1]RelatedPartyRevenue!S163","v":0},{"$f":"[1]RelatedPartyRevenue!S163","v":0},{"$f":"[1]RelatedPartyRevenue!U163","v":0},{"$f":"[1]RelatedPartyRevenue!U163","v":0},{"$f":"[1]RelatedPartyRevenue!V163","v":0},{"$f":"[1]RelatedPartyRevenue!V163","v":0},0,null,{"$f":"[1]RelatedPartyRevenue!X163","v":0},null,0,0,0,0,0,0]
[0,0,{"$f":"IFERROR(INDEX((Settings!$M$17:$M$236),MATCH(RelatedPartyRevenue!G164,Settings!$AD$18:$AD$166,0)),0)","v":0},null,null,{"$f":"[1]RelatedPartyRevenue!F164","v":0},{"$f":"[1]RelatedPartyRevenue!G164","v":0},{"$f":"[1]RelatedPartyRevenue!H164","v":0},null,{"$f":"[1]RelatedPartyRevenue!M164","v":0},{"$f":"[1]RelatedPartyRevenue!M164","v":0},{"$f":"[1]RelatedPartyRevenue!O164","v":0},{"$f":"[1]RelatedPartyRevenue!O164","v":0},{"$f":"[1]RelatedPartyRevenue!Q164","v":0},{"$f":"[1]RelatedPartyRevenue!Q164","v":0},{"$f":"[1]RelatedPartyRevenue!S164","v":0},{"$f":"[1]RelatedPartyRevenue!S164","v":0},{"$f":"[1]RelatedPartyRevenue!U164","v":0},{"$f":"[1]RelatedPartyRevenue!U164","v":0},{"$f":"[1]RelatedPartyRevenue!V164","v":0},{"$f":"[1]RelatedPartyRevenue!V164","v":0},0,null,{"$f":"[1]RelatedPartyRevenue!X164","v":0},null,0,0,0,0,0,0]
[0,0,{"$f":"IFERROR(INDEX((Settings!$M$17:$M$236),MATCH(RelatedPartyRevenue!G165,Settings!$AD$18:$AD$166,0)),0)","v":0},null,null,{"$f":"[1]RelatedPartyRevenue!F165","v":0},{"$f":"[1]RelatedPartyRevenue!G165","v":0},{"$f":"[1]RelatedPartyRevenue!H165","v":0},null,{"$f":"[1]RelatedPartyRevenue!M165","v":0},{"$f":"[1]RelatedPartyRevenue!M165","v":0},{"$f":"[1]RelatedPartyRevenue!O165","v":0},{"$f":"[1]RelatedPartyRevenue!O165","v":0},{"$f":"[1]RelatedPartyRevenue!Q165","v":0},{"$f":"[1]RelatedPartyRevenue!Q165","v":0},{"$f":"[1]RelatedPartyRevenue!S165","v":0},{"$f":"[1]RelatedPartyRevenue!S165","v":0},{"$f":"[1]RelatedPartyRevenue!U165","v":0},{"$f":"[1]RelatedPartyRevenue!U165","v":0},{"$f":"[1]RelatedPartyRevenue!V165","v":0},{"$f":"[1]RelatedPartyRevenue!V165","v":0},0,null,{"$f":"[1]RelatedPartyRevenue!X165","v":0},null,0,0,0,0,0,0]
[0,0,{"$f":"IFERROR(INDEX((Settings!$M$17:$M$236),MATCH(RelatedPartyRevenue!G166,Settings!$AD$18:$AD$166,0)),0)","v":0},null,null,{"$f":"[1]RelatedPartyRevenue!F166","v":0},{"$f":"[1]RelatedPartyRevenue!G166","v":0},{"$f":"[1]RelatedPartyRevenue!H166","v":0},null,{"$f":"[1]RelatedPartyRevenue!M166","v":0},{"$f":"[1]RelatedPartyRevenue!M166","v":0},{"$f":"[1]RelatedPartyRevenue!O166","v":0},{"$f":"[1]RelatedPartyRevenue!O166","v":0},{"$f":"[1]RelatedPartyRevenue!Q166","v":0},{"$f":"[1]RelatedPartyRevenue!Q166","v":0},{"$f":"[1]RelatedPartyRevenue!S166","v":0},{"$f":"[1]RelatedPartyRevenue!S166","v":0},{"$f":"[1]RelatedPartyRevenue!U166","v":0},{"$f":"[1]RelatedPartyRevenue!U166","v":0},{"$f":"[1]RelatedPartyRevenue!V166","v":0},{"$f":"[1]RelatedPartyRevenue!V166","v":0},0,null,{"$f":"[1]RelatedPartyRevenue!X166","v":0},null,0,0,0,0,0,0]
[0,0,{"$f":"IFERROR(INDEX((Settings!$M$17:$M$236),MATCH(RelatedPartyRevenue!G167,Settings!$AD$18:$AD$166,0)),0)","v":0},null,null,{"$f":"[1]RelatedPartyRevenue!F167","v":0},{"$f":"[1]RelatedPartyRevenue!G167","v":0},{"$f":"[1]RelatedPartyRevenue!H167","v":0},null,{"$f":"[1]RelatedPartyRevenue!M167","v":0},{"$f":"[1]RelatedPartyRevenue!M167","v":0},{"$f":"[1]RelatedPartyRevenue!O167","v":0},{"$f":"[1]RelatedPartyRevenue!O167","v":0},{"$f":"[1]RelatedPartyRevenue!Q167","v":0},{"$f":"[1]RelatedPartyRevenue!Q167","v":0},{"$f":"[1]RelatedPartyRevenue!S167","v":0},{"$f":"[1]RelatedPartyRevenue!S167","v":0},{"$f":"[1]RelatedPartyRevenue!U167","v":0},{"$f":"[1]RelatedPartyRevenue!U167","v":0},{"$f":"[1]RelatedPartyRevenue!V167","v":0},{"$f":"[1]RelatedPartyRevenue!V167","v":0},0,null,{"$f":"[1]RelatedPartyRevenue!X167","v":0},null,0,0,0,0,0,0]
[0,0,{"$f":"IFERROR(INDEX((Settings!$M$17:$M$236),MATCH(RelatedPartyRevenue!G168,Settings!$AD$18:$AD$166,0)),0)","v":0},null,null,{"$f":"[1]RelatedPartyRevenue!F168","v":0},{"$f":"[1]RelatedPartyRevenue!G168","v":0},{"$f":"[1]RelatedPartyRevenue!H168","v":0},null,{"$f":"[1]RelatedPartyRevenue!M168","v":0},{"$f":"[1]RelatedPartyRevenue!M168","v":0},{"$f":"[1]RelatedPartyRevenue!O168","v":0},{"$f":"[1]RelatedPartyRevenue!O168","v":0},{"$f":"[1]RelatedPartyRevenue!Q168","v":0},{"$f":"[1]RelatedPartyRevenue!Q168","v":0},{"$f":"[1]RelatedPartyRevenue!S168","v":0},{"$f":"[1]RelatedPartyRevenue!S168","v":0},{"$f":"[1]RelatedPartyRevenue!U168","v":0},{"$f":"[1]RelatedPartyRevenue!U168","v":0},{"$f":"[1]RelatedPartyRevenue!V168","v":0},{"$f":"[1]RelatedPartyRevenue!V168","v":0},0,null,{"$f":"[1]RelatedPartyRevenue!X168","v":0},null,0,0,0,0,0,0]
[0,0,{"$f":"IFERROR(INDEX((Settings!$M$17:$M$236),MATCH(RelatedPartyRevenue!G169,Settings!$AD$18:$AD$166,0)),0)","v":0},null,null,{"$f":"[1]RelatedPartyRevenue!F169","v":0},{"$f":"[1]RelatedPartyRevenue!G169","v":0},{"$f":"[1]RelatedPartyRevenue!H169","v":0},null,{"$f":"[1]RelatedPartyRevenue!M169","v":0},{"$f":"[1]RelatedPartyRevenue!M169","v":0},{"$f":"[1]RelatedPartyRevenue!O169","v":0},{"$f":"[1]RelatedPartyRevenue!O169","v":0},{"$f":"[1]RelatedPartyRevenue!Q169","v":0},{"$f":"[1]RelatedPartyRevenue!Q169","v":0},{"$f":"[1]RelatedPartyRevenue!S169","v":0},{"$f":"[1]RelatedPartyRevenue!S169","v":0},{"$f":"[1]RelatedPartyRevenue!U169","v":0},{"$f":"[1]RelatedPartyRevenue!U169","v":0},{"$f":"[1]RelatedPartyRevenue!V169","v":0},{"$f":"[1]RelatedPartyRevenue!V169","v":0},0,null,{"$f":"[1]RelatedPartyRevenue!X169","v":0},null,0,0,0,0,0,0]
[0,0,{"$f":"IFERROR(INDEX((Settings!$M$17:$M$236),MATCH(RelatedPartyRevenue!G170,Settings!$AD$18:$AD$166,0)),0)","v":0},null,null,{"$f":"[1]RelatedPartyRevenue!F170","v":0},{"$f":"[1]RelatedPartyRevenue!G170","v":0},{"$f":"[1]RelatedPartyRevenue!H170","v":0},null,{"$f":"[1]RelatedPartyRevenue!M170","v":0},{"$f":"[1]RelatedPartyRevenue!M170","v":0},{"$f":"[1]RelatedPartyRevenue!O170","v":0},{"$f":"[1]RelatedPartyRevenue!O170","v":0},{"$f":"[1]RelatedPartyRevenue!Q170","v":0},{"$f":"[1]RelatedPartyRevenue!Q170","v":0},{"$f":"[1]RelatedPartyRevenue!S170","v":0},{"$f":"[1]RelatedPartyRevenue!S170","v":0},{"$f":"[1]RelatedPartyRevenue!U170","v":0},{"$f":"[1]RelatedPartyRevenue!U170","v":0},{"$f":"[1]RelatedPartyRevenue!V170","v":0},{"$f":"[1]RelatedPartyRevenue!V170","v":0},0,null,{"$f":"[1]RelatedPartyRevenue!X170","v":0},null,0,0,0,0,0,0]
[0,0,{"$f":"IFERROR(INDEX((Settings!$M$17:$M$236),MATCH(RelatedPartyRevenue!G171,Settings!$AD$18:$AD$166,0)),0)","v":0},null,null,{"$f":"[1]RelatedPartyRevenue!F171","v":0},{"$f":"[1]RelatedPartyRevenue!G171","v":0},{"$f":"[1]RelatedPartyRevenue!H171","v":0},null,{"$f":"[1]RelatedPartyRevenue!M171","v":0},{"$f":"[1]RelatedPartyRevenue!M171","v":0},{"$f":"[1]RelatedPartyRevenue!O171","v":0},{"$f":"[1]RelatedPartyRevenue!O171","v":0},{"$f":"[1]RelatedPartyRevenue!Q171","v":0},{"$f":"[1]RelatedPartyRevenue!Q171","v":0},{"$f":"[1]RelatedPartyRevenue!S171","v":0},{"$f":"[1]RelatedPartyRevenue!S171","v":0},{"$f":"[1]RelatedPartyRevenue!U171","v":0},{"$f":"[1]RelatedPartyRevenue!U171","v":0},{"$f":"[1]RelatedPartyRevenue!V171","v":0},{"$f":"[1]RelatedPartyRevenue!V171","v":0},0,null,{"$f":"[1]RelatedPartyRevenue!X171","v":0},null,0,0,0,0,0,0]
[0,0,{"$f":"IFERROR(INDEX((Settings!$M$17:$M$236),MATCH(RelatedPartyRevenue!G172,Settings!$AD$18:$AD$166,0)),0)","v":0},null,null,{"$f":"[1]RelatedPartyRevenue!F172","v":0},{"$f":"[1]RelatedPartyRevenue!G172","v":0},{"$f":"[1]RelatedPartyRevenue!H172","v":0},null,{"$f":"[1]RelatedPartyRevenue!M172","v":0},{"$f":"[1]RelatedPartyRevenue!M172","v":0},{"$f":"[1]RelatedPartyRevenue!O172","v":0},{"$f":"[1]RelatedPartyRevenue!O172","v":0},{"$f":"[1]RelatedPartyRevenue!Q172","v":0},{"$f":"[1]RelatedPartyRevenue!Q172","v":0},{"$f":"[1]RelatedPartyRevenue!S172","v":0},{"$f":"[1]RelatedPartyRevenue!S172","v":0},{"$f":"[1]RelatedPartyRevenue!U172","v":0},{"$f":"[1]RelatedPartyRevenue!U172","v":0},{"$f":"[1]RelatedPartyRevenue!V172","v":0},{"$f":"[1]RelatedPartyRevenue!V172","v":0},0,null,{"$f":"[1]RelatedPartyRevenue!X172","v":0},null,0,0,0,0,0,0]
[0,0,{"$f":"IFERROR(INDEX((Settings!$M$17:$M$236),MATCH(RelatedPartyRevenue!G173,Settings!$AD$18:$AD$166,0)),0)","v":0},null,null,{"$f":"[1]RelatedPartyRevenue!F173","v":0},{"$f":"[1]RelatedPartyRevenue!G173","v":0},{"$f":"[1]RelatedPartyRevenue!H173","v":0},null,{"$f":"[1]RelatedPartyRevenue!M173","v":0},{"$f":"[1]RelatedPartyRevenue!M173","v":0},{"$f":"[1]RelatedPartyRevenue!O173","v":0},{"$f":"[1]RelatedPartyRevenue!O173","v":0},{"$f":"[1]RelatedPartyRevenue!Q173","v":0},{"$f":"[1]RelatedPartyRevenue!Q173","v":0},{"$f":"[1]RelatedPartyRevenue!S173","v":0},{"$f":"[1]RelatedPartyRevenue!S173","v":0},{"$f":"[1]RelatedPartyRevenue!U173","v":0},{"$f":"[1]RelatedPartyRevenue!U173","v":0},{"$f":"[1]RelatedPartyRevenue!V173","v":0},{"$f":"[1]RelatedPartyRevenue!V173","v":0},0,null,{"$f":"[1]RelatedPartyRevenue!X173","v":0},null,0,0,0,0,0,0]
[0,0,{"$f":"IFERROR(INDEX((Settings!$M$17:$M$236),MATCH(RelatedPartyRevenue!G174,Settings!$AD$18:$AD$166,0)),0)","v":0},null,null,{"$f":"[1]RelatedPartyRevenue!F174","v":0},{"$f":"[1]RelatedPartyRevenue!G174","v":0},{"$f":"[1]RelatedPartyRevenue!H174","v":0},null,{"$f":"[1]RelatedPartyRevenue!M174","v":0},{"$f":"[1]RelatedPartyRevenue!M174","v":0},{"$f":"[1]RelatedPartyRevenue!O174","v":0},{"$f":"[1]RelatedPartyRevenue!O174","v":0},{"$f":"[1]RelatedPartyRevenue!Q174","v":0},{"$f":"[1]RelatedPartyRevenue!Q174","v":0},{"$f":"[1]RelatedPartyRevenue!S174","v":0},{"$f":"[1]RelatedPartyRevenue!S174","v":0},{"$f":"[1]RelatedPartyRevenue!U174","v":0},{"$f":"[1]RelatedPartyRevenue!U174","v":0},{"$f":"[1]RelatedPartyRevenue!V174","v":0},{"$f":"[1]RelatedPartyRevenue!V174","v":0},0,null,{"$f":"[1]RelatedPartyRevenue!X174","v":0},null,0,0,0,0,0,0]
[0,0,{"$f":"IFERROR(INDEX((Settings!$M$17:$M$236),MATCH(RelatedPartyRevenue!G175,Settings!$AD$18:$AD$166,0)),0)","v":0},null,null,{"$f":"[1]RelatedPartyRevenue!F175","v":0},{"$f":"[1]RelatedPartyRevenue!G175","v":0},{"$f":"[1]RelatedPartyRevenue!H175","v":0},null,{"$f":"[1]RelatedPartyRevenue!M175","v":0},{"$f":"[1]RelatedPartyRevenue!M175","v":0},{"$f":"[1]RelatedPartyRevenue!O175","v":0},{"$f":"[1]RelatedPartyRevenue!O175","v":0},{"$f":"[1]RelatedPartyRevenue!Q175","v":0},{"$f":"[1]RelatedPartyRevenue!Q175","v":0},{"$f":"[1]RelatedPartyRevenue!S175","v":0},{"$f":"[1]RelatedPartyRevenue!S175","v":0},{"$f":"[1]RelatedPartyRevenue!U175","v":0},{"$f":"[1]RelatedPartyRevenue!U175","v":0},{"$f":"[1]RelatedPartyRevenue!V175","v":0},{"$f":"[1]RelatedPartyRevenue!V175","v":0},0,null,{"$f":"[1]RelatedPartyRevenue!X175","v":0},null,0,0,0,0,0,0]
[0,0,{"$f":"IFERROR(INDEX((Settings!$M$17:$M$236),MATCH(RelatedPartyRevenue!G176,Settings!$AD$18:$AD$166,0)),0)","v":0},null,null,{"$f":"[1]RelatedPartyRevenue!F176","v":0},{"$f":"[1]RelatedPartyRevenue!G176","v":0},{"$f":"[1]RelatedPartyRevenue!H176","v":0},null,{"$f":"[1]RelatedPartyRevenue!M176","v":0},{"$f":"[1]RelatedPartyRevenue!M176","v":0},{"$f":"[1]RelatedPartyRevenue!O176","v":0},{"$f":"[1]RelatedPartyRevenue!O176","v":0},{"$f":"[1]RelatedPartyRevenue!Q176","v":0},{"$f":"[1]RelatedPartyRevenue!Q176","v":0},{"$f":"[1]RelatedPartyRevenue!S176","v":0},{"$f":"[1]RelatedPartyRevenue!S176","v":0},{"$f":"[1]RelatedPartyRevenue!U176","v":0},{"$f":"[1]RelatedPartyRevenue!U176","v":0},{"$f":"[1]RelatedPartyRevenue!V176","v":0},{"$f":"[1]RelatedPartyRevenue!V176","v":0},0,null,{"$f":"[1]RelatedPartyRevenue!X176","v":0},null,0,0,0,0,0,0]
[0,0,{"$f":"IFERROR(INDEX((Settings!$M$17:$M$236),MATCH(RelatedPartyRevenue!G177,Settings!$AD$18:$AD$166,0)),0)","v":0},null,null,{"$f":"[1]RelatedPartyRevenue!F177","v":0},{"$f":"[1]RelatedPartyRevenue!G177","v":0},{"$f":"[1]RelatedPartyRevenue!H177","v":0},null,{"$f":"[1]RelatedPartyRevenue!M177","v":0},{"$f":"[1]RelatedPartyRevenue!M177","v":0},{"$f":"[1]RelatedPartyRevenue!O177","v":0},{"$f":"[1]RelatedPartyRevenue!O177","v":0},{"$f":"[1]RelatedPartyRevenue!Q177","v":0},{"$f":"[1]RelatedPartyRevenue!Q177","v":0},{"$f":"[1]RelatedPartyRevenue!S177","v":0},{"$f":"[1]RelatedPartyRevenue!S177","v":0},{"$f":"[1]RelatedPartyRevenue!U177","v":0},{"$f":"[1]RelatedPartyRevenue!U177","v":0},{"$f":"[1]RelatedPartyRevenue!V177","v":0},{"$f":"[1]RelatedPartyRevenue!V177","v":0},0,null,{"$f":"[1]RelatedPartyRevenue!X177","v":0},null,0,0,0,0,0,0]
[0,0,{"$f":"IFERROR(INDEX((Settings!$M$17:$M$236),MATCH(RelatedPartyRevenue!G178,Settings!$AD$18:$AD$166,0)),0)","v":0},null,null,{"$f":"[1]RelatedPartyRevenue!F178","v":0},{"$f":"[1]RelatedPartyRevenue!G178","v":0},{"$f":"[1]RelatedPartyRevenue!H178","v":0},null,{"$f":"[1]RelatedPartyRevenue!M178","v":0},{"$f":"[1]RelatedPartyRevenue!M178","v":0},{"$f":"[1]RelatedPartyRevenue!O178","v":0},{"$f":"[1]RelatedPartyRevenue!O178","v":0},{"$f":"[1]RelatedPartyRevenue!Q178","v":0},{"$f":"[1]RelatedPartyRevenue!Q178","v":0},{"$f":"[1]RelatedPartyRevenue!S178","v":0},{"$f":"[1]RelatedPartyRevenue!S178","v":0},{"$f":"[1]RelatedPartyRevenue!U178","v":0},{"$f":"[1]RelatedPartyRevenue!U178","v":0},{"$f":"[1]RelatedPartyRevenue!V178","v":0},{"$f":"[1]RelatedPartyRevenue!V178","v":0},0,null,{"$f":"[1]RelatedPartyRevenue!X178","v":0},null,0,0,0,0,0,0]
[0,0,{"$f":"IFERROR(INDEX((Settings!$M$17:$M$236),MATCH(RelatedPartyRevenue!G179,Settings!$AD$18:$AD$166,0)),0)","v":0},null,null,{"$f":"[1]RelatedPartyRevenue!F179","v":0},{"$f":"[1]RelatedPartyRevenue!G179","v":0},{"$f":"[1]RelatedPartyRevenue!H179","v":0},null,{"$f":"[1]RelatedPartyRevenue!M179","v":0},{"$f":"[1]RelatedPartyRevenue!M179","v":0},{"$f":"[1]RelatedPartyRevenue!O179","v":0},{"$f":"[1]RelatedPartyRevenue!O179","v":0},{"$f":"[1]RelatedPartyRevenue!Q179","v":0},{"$f":"[1]RelatedPartyRevenue!Q179","v":0},{"$f":"[1]RelatedPartyRevenue!S179","v":0},{"$f":"[1]RelatedPartyRevenue!S179","v":0},{"$f":"[1]RelatedPartyRevenue!U179","v":0},{"$f":"[1]RelatedPartyRevenue!U179","v":0},{"$f":"[1]RelatedPartyRevenue!V179","v":0},{"$f":"[1]RelatedPartyRevenue!V179","v":0},0,null,{"$f":"[1]RelatedPartyRevenue!X179","v":0},null,0,0,0,0,0,0]
[0,0,{"$f":"IFERROR(INDEX((Settings!$M$17:$M$236),MATCH(RelatedPartyRevenue!G180,Settings!$AD$18:$AD$166,0)),0)","v":0},null,null,{"$f":"[1]RelatedPartyRevenue!F180","v":0},{"$f":"[1]RelatedPartyRevenue!G180","v":0},{"$f":"[1]RelatedPartyRevenue!H180","v":0},null,{"$f":"[1]RelatedPartyRevenue!M180","v":0},{"$f":"[1]RelatedPartyRevenue!M180","v":0},{"$f":"[1]RelatedPartyRevenue!O180","v":0},{"$f":"[1]RelatedPartyRevenue!O180","v":0},{"$f":"[1]RelatedPartyRevenue!Q180","v":0},{"$f":"[1]RelatedPartyRevenue!Q180","v":0},{"$f":"[1]RelatedPartyRevenue!S180","v":0},{"$f":"[1]RelatedPartyRevenue!S180","v":0},{"$f":"[1]RelatedPartyRevenue!U180","v":0},{"$f":"[1]RelatedPartyRevenue!U180","v":0},{"$f":"[1]RelatedPartyRevenue!V180","v":0},{"$f":"[1]RelatedPartyRevenue!V180","v":0},0,null,{"$f":"[1]RelatedPartyRevenue!X180","v":0},null,0,0,0,0,0,0]
[0,0,{"$f":"IFERROR(INDEX((Settings!$M$17:$M$236),MATCH(RelatedPartyRevenue!G181,Settings!$AD$18:$AD$166,0)),0)","v":0},null,null,{"$f":"[1]RelatedPartyRevenue!F181","v":0},{"$f":"[1]RelatedPartyRevenue!G181","v":0},{"$f":"[1]RelatedPartyRevenue!H181","v":0},null,{"$f":"[1]RelatedPartyRevenue!M181","v":0},{"$f":"[1]RelatedPartyRevenue!M181","v":0},{"$f":"[1]RelatedPartyRevenue!O181","v":0},{"$f":"[1]RelatedPartyRevenue!O181","v":0},{"$f":"[1]RelatedPartyRevenue!Q181","v":0},{"$f":"[1]RelatedPartyRevenue!Q181","v":0},{"$f":"[1]RelatedPartyRevenue!S181","v":0},{"$f":"[1]RelatedPartyRevenue!S181","v":0},{"$f":"[1]RelatedPartyRevenue!U181","v":0},{"$f":"[1]RelatedPartyRevenue!U181","v":0},{"$f":"[1]RelatedPartyRevenue!V181","v":0},{"$f":"[1]RelatedPartyRevenue!V181","v":0},0,null,{"$f":"[1]RelatedPartyRevenue!X181","v":0},null,0,0,0,0,0,0]
[0,0,{"$f":"IFERROR(INDEX((Settings!$M$17:$M$236),MATCH(RelatedPartyRevenue!G182,Settings!$AD$18:$AD$166,0)),0)","v":0},null,null,{"$f":"[1]RelatedPartyRevenue!F182","v":0},{"$f":"[1]RelatedPartyRevenue!G182","v":0},{"$f":"[1]RelatedPartyRevenue!H182","v":0},null,{"$f":"[1]RelatedPartyRevenue!M182","v":0},{"$f":"[1]RelatedPartyRevenue!M182","v":0},{"$f":"[1]RelatedPartyRevenue!O182","v":0},{"$f":"[1]RelatedPartyRevenue!O182","v":0},{"$f":"[1]RelatedPartyRevenue!Q182","v":0},{"$f":"[1]RelatedPartyRevenue!Q182","v":0},{"$f":"[1]RelatedPartyRevenue!S182","v":0},{"$f":"[1]RelatedPartyRevenue!S182","v":0},{"$f":"[1]RelatedPartyRevenue!U182","v":0},{"$f":"[1]RelatedPartyRevenue!U182","v":0},{"$f":"[1]RelatedPartyRevenue!V182","v":0},{"$f":"[1]RelatedPartyRevenue!V182","v":0},0,null,{"$f":"[1]RelatedPartyRevenue!X182","v":0},null,0,0,0,0,0,0]
[0,0,{"$f":"IFERROR(INDEX((Settings!$M$17:$M$236),MATCH(RelatedPartyRevenue!G183,Settings!$AD$18:$AD$166,0)),0)","v":0},null,null,{"$f":"[1]RelatedPartyRevenue!F183","v":0},{"$f":"[1]RelatedPartyRevenue!G183","v":0},{"$f":"[1]RelatedPartyRevenue!H183","v":0},null,{"$f":"[1]RelatedPartyRevenue!M183","v":0},{"$f":"[1]RelatedPartyRevenue!M183","v":0},{"$f":"[1]RelatedPartyRevenue!O183","v":0},{"$f":"[1]RelatedPartyRevenue!O183","v":0},{"$f":"[1]RelatedPartyRevenue!Q183","v":0},{"$f":"[1]RelatedPartyRevenue!Q183","v":0},{"$f":"[1]RelatedPartyRevenue!S183","v":0},{"$f":"[1]RelatedPartyRevenue!S183","v":0},{"$f":"[1]RelatedPartyRevenue!U183","v":0},{"$f":"[1]RelatedPartyRevenue!U183","v":0},{"$f":"[1]RelatedPartyRevenue!V183","v":0},{"$f":"[1]RelatedPartyRevenue!V183","v":0},0,null,{"$f":"[1]RelatedPartyRevenue!X183","v":0},null,0,0,0,0,0,0]
[0,0,{"$f":"IFERROR(INDEX((Settings!$M$17:$M$236),MATCH(RelatedPartyRevenue!G184,Settings!$AD$18:$AD$166,0)),0)","v":0},null,null,{"$f":"[1]RelatedPartyRevenue!F184","v":0},{"$f":"[1]RelatedPartyRevenue!G184","v":0},{"$f":"[1]RelatedPartyRevenue!H184","v":0},null,{"$f":"[1]RelatedPartyRevenue!M184","v":0},{"$f":"[1]RelatedPartyRevenue!M184","v":0},{"$f":"[1]RelatedPartyRevenue!O184","v":0},{"$f":"[1]RelatedPartyRevenue!O184","v":0},{"$f":"[1]RelatedPartyRevenue!Q184","v":0},{"$f":"[1]RelatedPartyRevenue!Q184","v":0},{"$f":"[1]RelatedPartyRevenue!S184","v":0},{"$f":"[1]RelatedPartyRevenue!S184","v":0},{"$f":"[1]RelatedPartyRevenue!U184","v":0},{"$f":"[1]RelatedPartyRevenue!U184","v":0},{"$f":"[1]RelatedPartyRevenue!V184","v":0},{"$f":"[1]RelatedPartyRevenue!V184","v":0},0,null,{"$f":"[1]RelatedPartyRevenue!X184","v":0},null,0,0,0,0,0,0]
[0,0,{"$f":"IFERROR(INDEX((Settings!$M$17:$M$236),MATCH(RelatedPartyRevenue!G185,Settings!$AD$18:$AD$166,0)),0)","v":0},null,null,{"$f":"[1]RelatedPartyRevenue!F185","v":0},{"$f":"[1]RelatedPartyRevenue!G185","v":0},{"$f":"[1]RelatedPartyRevenue!H185","v":0},null,{"$f":"[1]RelatedPartyRevenue!M185","v":0},{"$f":"[1]RelatedPartyRevenue!M185","v":0},{"$f":"[1]RelatedPartyRevenue!O185","v":0},{"$f":"[1]RelatedPartyRevenue!O185","v":0},{"$f":"[1]RelatedPartyRevenue!Q185","v":0},{"$f":"[1]RelatedPartyRevenue!Q185","v":0},{"$f":"[1]RelatedPartyRevenue!S185","v":0},{"$f":"[1]RelatedPartyRevenue!S185","v":0},{"$f":"[1]RelatedPartyRevenue!U185","v":0},{"$f":"[1]RelatedPartyRevenue!U185","v":0},{"$f":"[1]RelatedPartyRevenue!V185","v":0},{"$f":"[1]RelatedPartyRevenue!V185","v":0},0,null,{"$f":"[1]RelatedPartyRevenue!X185","v":0},null,0,0,0,0,0,0]
[0,0,{"$f":"IFERROR(INDEX((Settings!$M$17:$M$236),MATCH(RelatedPartyRevenue!G186,Settings!$AD$18:$AD$166,0)),0)","v":0},null,null,{"$f":"[1]RelatedPartyRevenue!F186","v":0},{"$f":"[1]RelatedPartyRevenue!G186","v":0},{"$f":"[1]RelatedPartyRevenue!H186","v":0},null,{"$f":"[1]RelatedPartyRevenue!M186","v":0},{"$f":"[1]RelatedPartyRevenue!M186","v":0},{"$f":"[1]RelatedPartyRevenue!O186","v":0},{"$f":"[1]RelatedPartyRevenue!O186","v":0},{"$f":"[1]RelatedPartyRevenue!Q186","v":0},{"$f":"[1]RelatedPartyRevenue!Q186","v":0},{"$f":"[1]RelatedPartyRevenue!S186","v":0},{"$f":"[1]RelatedPartyRevenue!S186","v":0},{"$f":"[1]RelatedPartyRevenue!U186","v":0},{"$f":"[1]RelatedPartyRevenue!U186","v":0},{"$f":"[1]RelatedPartyRevenue!V186","v":0},{"$f":"[1]RelatedPartyRevenue!V186","v":0},0,null,{"$f":"[1]RelatedPartyRevenue!X186","v":0},null,0,0,0,0,0,0]
[0,0,{"$f":"IFERROR(INDEX((Settings!$M$17:$M$236),MATCH(RelatedPartyRevenue!G187,Settings!$AD$18:$AD$166,0)),0)","v":0},null,null,{"$f":"[1]RelatedPartyRevenue!F187","v":0},{"$f":"[1]RelatedPartyRevenue!G187","v":0},{"$f":"[1]RelatedPartyRevenue!H187","v":0},null,{"$f":"[1]RelatedPartyRevenue!M187","v":0},{"$f":"[1]RelatedPartyRevenue!M187","v":0},{"$f":"[1]RelatedPartyRevenue!O187","v":0},{"$f":"[1]RelatedPartyRevenue!O187","v":0},{"$f":"[1]RelatedPartyRevenue!Q187","v":0},{"$f":"[1]RelatedPartyRevenue!Q187","v":0},{"$f":"[1]RelatedPartyRevenue!S187","v":0},{"$f":"[1]RelatedPartyRevenue!S187","v":0},{"$f":"[1]RelatedPartyRevenue!U187","v":0},{"$f":"[1]RelatedPartyRevenue!U187","v":0},{"$f":"[1]RelatedPartyRevenue!V187","v":0},{"$f":"[1]RelatedPartyRevenue!V187","v":0},0,null,{"$f":"[1]RelatedPartyRevenue!X187","v":0},null,0,0,0,0,0,0]
[0,0,{"$f":"IFERROR(INDEX((Settings!$M$17:$M$236),MATCH(RelatedPartyRevenue!G188,Settings!$AD$18:$AD$166,0)),0)","v":0},null,null,{"$f":"[1]RelatedPartyRevenue!F188","v":0},{"$f":"[1]RelatedPartyRevenue!G188","v":0},{"$f":"[1]RelatedPartyRevenue!H188","v":0},null,{"$f":"[1]RelatedPartyRevenue!M188","v":0},{"$f":"[1]RelatedPartyRevenue!M188","v":0},{"$f":"[1]RelatedPartyRevenue!O188","v":0},{"$f":"[1]RelatedPartyRevenue!O188","v":0},{"$f":"[1]RelatedPartyRevenue!Q188","v":0},{"$f":"[1]RelatedPartyRevenue!Q188","v":0},{"$f":"[1]RelatedPartyRevenue!S188","v":0},{"$f":"[1]RelatedPartyRevenue!S188","v":0},{"$f":"[1]RelatedPartyRevenue!U188","v":0},{"$f":"[1]RelatedPartyRevenue!U188","v":0},{"$f":"[1]RelatedPartyRevenue!V188","v":0},{"$f":"[1]RelatedPartyRevenue!V188","v":0},0,null,{"$f":"[1]RelatedPartyRevenue!X188","v":0},null,0,0,0,0,0,0]
[0,0,{"$f":"IFERROR(INDEX((Settings!$M$17:$M$236),MATCH(RelatedPartyRevenue!G189,Settings!$AD$18:$AD$166,0)),0)","v":0},null,null,{"$f":"[1]RelatedPartyRevenue!F189","v":0},{"$f":"[1]RelatedPartyRevenue!G189","v":0},{"$f":"[1]RelatedPartyRevenue!H189","v":0},null,{"$f":"[1]RelatedPartyRevenue!M189","v":0},{"$f":"[1]RelatedPartyRevenue!M189","v":0},{"$f":"[1]RelatedPartyRevenue!O189","v":0},{"$f":"[1]RelatedPartyRevenue!O189","v":0},{"$f":"[1]RelatedPartyRevenue!Q189","v":0},{"$f":"[1]RelatedPartyRevenue!Q189","v":0},{"$f":"[1]RelatedPartyRevenue!S189","v":0},{"$f":"[1]RelatedPartyRevenue!S189","v":0},{"$f":"[1]RelatedPartyRevenue!U189","v":0},{"$f":"[1]RelatedPartyRevenue!U189","v":0},{"$f":"[1]RelatedPartyRevenue!V189","v":0},{"$f":"[1]RelatedPartyRevenue!V189","v":0},0,null,{"$f":"[1]RelatedPartyRevenue!X189","v":0},null,0,0,0,0,0,0]
[0,0,{"$f":"IFERROR(INDEX((Settings!$M$17:$M$236),MATCH(RelatedPartyRevenue!G190,Settings!$AD$18:$AD$166,0)),0)","v":0},null,null,{"$f":"[1]RelatedPartyRevenue!F190","v":0},{"$f":"[1]RelatedPartyRevenue!G190","v":0},{"$f":"[1]RelatedPartyRevenue!H190","v":0},null,{"$f":"[1]RelatedPartyRevenue!M190","v":0},{"$f":"[1]RelatedPartyRevenue!M190","v":0},{"$f":"[1]RelatedPartyRevenue!O190","v":0},{"$f":"[1]RelatedPartyRevenue!O190","v":0},{"$f":"[1]RelatedPartyRevenue!Q190","v":0},{"$f":"[1]RelatedPartyRevenue!Q190","v":0},{"$f":"[1]RelatedPartyRevenue!S190","v":0},{"$f":"[1]RelatedPartyRevenue!S190","v":0},{"$f":"[1]RelatedPartyRevenue!U190","v":0},{"$f":"[1]RelatedPartyRevenue!U190","v":0},{"$f":"[1]RelatedPartyRevenue!V190","v":0},{"$f":"[1]RelatedPartyRevenue!V190","v":0},0,null,{"$f":"[1]RelatedPartyRevenue!X190","v":0},null,0,0,0,0,0,0]
[0,0,{"$f":"IFERROR(INDEX((Settings!$M$17:$M$236),MATCH(RelatedPartyRevenue!G191,Settings!$AD$18:$AD$166,0)),0)","v":0},null,null,{"$f":"[1]RelatedPartyRevenue!F191","v":0},{"$f":"[1]RelatedPartyRevenue!G191","v":0},{"$f":"[1]RelatedPartyRevenue!H191","v":0},null,{"$f":"[1]RelatedPartyRevenue!M191","v":0},{"$f":"[1]RelatedPartyRevenue!M191","v":0},{"$f":"[1]RelatedPartyRevenue!O191","v":0},{"$f":"[1]RelatedPartyRevenue!O191","v":0},{"$f":"[1]RelatedPartyRevenue!Q191","v":0},{"$f":"[1]RelatedPartyRevenue!Q191","v":0},{"$f":"[1]RelatedPartyRevenue!S191","v":0},{"$f":"[1]RelatedPartyRevenue!S191","v":0},{"$f":"[1]RelatedPartyRevenue!U191","v":0},{"$f":"[1]RelatedPartyRevenue!U191","v":0},{"$f":"[1]RelatedPartyRevenue!V191","v":0},{"$f":"[1]RelatedPartyRevenue!V191","v":0},0,null,{"$f":"[1]RelatedPartyRevenue!X191","v":0},null,0,0,0,0,0,0]
[0,0,{"$f":"IFERROR(INDEX((Settings!$M$17:$M$236),MATCH(RelatedPartyRevenue!G192,Settings!$AD$18:$AD$166,0)),0)","v":0},null,null,{"$f":"[1]RelatedPartyRevenue!F192","v":0},{"$f":"[1]RelatedPartyRevenue!G192","v":0},{"$f":"[1]RelatedPartyRevenue!H192","v":0},null,{"$f":"[1]RelatedPartyRevenue!M192","v":0},{"$f":"[1]RelatedPartyRevenue!M192","v":0},{"$f":"[1]RelatedPartyRevenue!O192","v":0},{"$f":"[1]RelatedPartyRevenue!O192","v":0},{"$f":"[1]RelatedPartyRevenue!Q192","v":0},{"$f":"[1]RelatedPartyRevenue!Q192","v":0},{"$f":"[1]RelatedPartyRevenue!S192","v":0},{"$f":"[1]RelatedPartyRevenue!S192","v":0},{"$f":"[1]RelatedPartyRevenue!U192","v":0},{"$f":"[1]RelatedPartyRevenue!U192","v":0},{"$f":"[1]RelatedPartyRevenue!V192","v":0},{"$f":"[1]RelatedPartyRevenue!V192","v":0},0,null,{"$f":"[1]RelatedPartyRevenue!X192","v":0},null,0,0,0,0,0,0]
[0,0,{"$f":"IFERROR(INDEX((Settings!$M$17:$M$236),MATCH(RelatedPartyRevenue!G193,Settings!$AD$18:$AD$166,0)),0)","v":0},null,null,{"$f":"[1]RelatedPartyRevenue!F193","v":0},{"$f":"[1]RelatedPartyRevenue!G193","v":0},{"$f":"[1]RelatedPartyRevenue!H193","v":0},null,{"$f":"[1]RelatedPartyRevenue!M193","v":0},{"$f":"[1]RelatedPartyRevenue!M193","v":0},{"$f":"[1]RelatedPartyRevenue!O193","v":0},{"$f":"[1]RelatedPartyRevenue!O193","v":0},{"$f":"[1]RelatedPartyRevenue!Q193","v":0},{"$f":"[1]RelatedPartyRevenue!Q193","v":0},{"$f":"[1]RelatedPartyRevenue!S193","v":0},{"$f":"[1]RelatedPartyRevenue!S193","v":0},{"$f":"[1]RelatedPartyRevenue!U193","v":0},{"$f":"[1]RelatedPartyRevenue!U193","v":0},{"$f":"[1]RelatedPartyRevenue!V193","v":0},{"$f":"[1]RelatedPartyRevenue!V193","v":0},0,null,{"$f":"[1]RelatedPartyRevenue!X193","v":0},null,0,0,0,0,0,0]
[0,0,{"$f":"IFERROR(INDEX((Settings!$M$17:$M$236),MATCH(RelatedPartyRevenue!G194,Settings!$AD$18:$AD$166,0)),0)","v":0},null,null,{"$f":"[1]RelatedPartyRevenue!F194","v":0},{"$f":"[1]RelatedPartyRevenue!G194","v":0},{"$f":"[1]RelatedPartyRevenue!H194","v":0},null,{"$f":"[1]RelatedPartyRevenue!M194","v":0},{"$f":"[1]RelatedPartyRevenue!M194","v":0},{"$f":"[1]RelatedPartyRevenue!O194","v":0},{"$f":"[1]RelatedPartyRevenue!O194","v":0},{"$f":"[1]RelatedPartyRevenue!Q194","v":0},{"$f":"[1]RelatedPartyRevenue!Q194","v":0},{"$f":"[1]RelatedPartyRevenue!S194","v":0},{"$f":"[1]RelatedPartyRevenue!S194","v":0},{"$f":"[1]RelatedPartyRevenue!U194","v":0},{"$f":"[1]RelatedPartyRevenue!U194","v":0},{"$f":"[1]RelatedPartyRevenue!V194","v":0},{"$f":"[1]RelatedPartyRevenue!V194","v":0},0,null,{"$f":"[1]RelatedPartyRevenue!X194","v":0},null,0,0,0,0,0,0]
[0,0,{"$f":"IFERROR(INDEX((Settings!$M$17:$M$236),MATCH(RelatedPartyRevenue!G195,Settings!$AD$18:$AD$166,0)),0)","v":0},null,null,{"$f":"[1]RelatedPartyRevenue!F195","v":0},{"$f":"[1]RelatedPartyRevenue!G195","v":0},{"$f":"[1]RelatedPartyRevenue!H195","v":0},null,{"$f":"[1]RelatedPartyRevenue!M195","v":0},{"$f":"[1]RelatedPartyRevenue!M195","v":0},{"$f":"[1]RelatedPartyRevenue!O195","v":0},{"$f":"[1]RelatedPartyRevenue!O195","v":0},{"$f":"[1]RelatedPartyRevenue!Q195","v":0},{"$f":"[1]RelatedPartyRevenue!Q195","v":0},{"$f":"[1]RelatedPartyRevenue!S195","v":0},{"$f":"[1]RelatedPartyRevenue!S195","v":0},{"$f":"[1]RelatedPartyRevenue!U195","v":0},{"$f":"[1]RelatedPartyRevenue!U195","v":0},{"$f":"[1]RelatedPartyRevenue!V195","v":0},{"$f":"[1]RelatedPartyRevenue!V195","v":0},0,null,{"$f":"[1]RelatedPartyRevenue!X195","v":0},null,0,0,0,0,0,0]
[0,0,{"$f":"IFERROR(INDEX((Settings!$M$17:$M$236),MATCH(RelatedPartyRevenue!G196,Settings!$AD$18:$AD$166,0)),0)","v":0},null,null,{"$f":"[1]RelatedPartyRevenue!F196","v":0},{"$f":"[1]RelatedPartyRevenue!G196","v":0},{"$f":"[1]RelatedPartyRevenue!H196","v":0},null,{"$f":"[1]RelatedPartyRevenue!M196","v":0},{"$f":"[1]RelatedPartyRevenue!M196","v":0},{"$f":"[1]RelatedPartyRevenue!O196","v":0},{"$f":"[1]RelatedPartyRevenue!O196","v":0},{"$f":"[1]RelatedPartyRevenue!Q196","v":0},{"$f":"[1]RelatedPartyRevenue!Q196","v":0},{"$f":"[1]RelatedPartyRevenue!S196","v":0},{"$f":"[1]RelatedPartyRevenue!S196","v":0},{"$f":"[1]RelatedPartyRevenue!U196","v":0},{"$f":"[1]RelatedPartyRevenue!U196","v":0},{"$f":"[1]RelatedPartyRevenue!V196","v":0},{"$f":"[1]RelatedPartyRevenue!V196","v":0},0,null,{"$f":"[1]RelatedPartyRevenue!X196","v":0},null,0,0,0,0,0,0]
[0,0,{"$f":"IFERROR(INDEX((Settings!$M$17:$M$236),MATCH(RelatedPartyRevenue!G197,Settings!$AD$18:$AD$166,0)),0)","v":0},null,null,{"$f":"[1]RelatedPartyRevenue!F197","v":0},{"$f":"[1]RelatedPartyRevenue!G197","v":0},{"$f":"[1]RelatedPartyRevenue!H197","v":0},null,{"$f":"[1]RelatedPartyRevenue!M197","v":0},{"$f":"[1]RelatedPartyRevenue!M197","v":0},{"$f":"[1]RelatedPartyRevenue!O197","v":0},{"$f":"[1]RelatedPartyRevenue!O197","v":0},{"$f":"[1]RelatedPartyRevenue!Q197","v":0},{"$f":"[1]RelatedPartyRevenue!Q197","v":0},{"$f":"[1]RelatedPartyRevenue!S197","v":0},{"$f":"[1]RelatedPartyRevenue!S197","v":0},{"$f":"[1]RelatedPartyRevenue!U197","v":0},{"$f":"[1]RelatedPartyRevenue!U197","v":0},{"$f":"[1]RelatedPartyRevenue!V197","v":0},{"$f":"[1]RelatedPartyRevenue!V197","v":0},0,null,{"$f":"[1]RelatedPartyRevenue!X197","v":0},null,0,0,0,0,0,0]
[0,0,{"$f":"IFERROR(INDEX((Settings!$M$17:$M$236),MATCH(RelatedPartyRevenue!G198,Settings!$AD$18:$AD$166,0)),0)","v":0},null,null,{"$f":"[1]RelatedPartyRevenue!F198","v":0},{"$f":"[1]RelatedPartyRevenue!G198","v":0},{"$f":"[1]RelatedPartyRevenue!H198","v":0},null,{"$f":"[1]RelatedPartyRevenue!M198","v":0},{"$f":"[1]RelatedPartyRevenue!M198","v":0},{"$f":"[1]RelatedPartyRevenue!O198","v":0},{"$f":"[1]RelatedPartyRevenue!O198","v":0},{"$f":"[1]RelatedPartyRevenue!Q198","v":0},{"$f":"[1]RelatedPartyRevenue!Q198","v":0},{"$f":"[1]RelatedPartyRevenue!S198","v":0},{"$f":"[1]RelatedPartyRevenue!S198","v":0},{"$f":"[1]RelatedPartyRevenue!U198","v":0},{"$f":"[1]RelatedPartyRevenue!U198","v":0},{"$f":"[1]RelatedPartyRevenue!V198","v":0},{"$f":"[1]RelatedPartyRevenue!V198","v":0},0,null,{"$f":"[1]RelatedPartyRevenue!X198","v":0},null,0,0,0,0,0,0]
[0,0,{"$f":"IFERROR(INDEX((Settings!$M$17:$M$236),MATCH(RelatedPartyRevenue!G199,Settings!$AD$18:$AD$166,0)),0)","v":0},null,null,{"$f":"[1]RelatedPartyRevenue!F199","v":0},{"$f":"[1]RelatedPartyRevenue!G199","v":0},{"$f":"[1]RelatedPartyRevenue!H199","v":0},null,{"$f":"[1]RelatedPartyRevenue!M199","v":0},{"$f":"[1]RelatedPartyRevenue!M199","v":0},{"$f":"[1]RelatedPartyRevenue!O199","v":0},{"$f":"[1]RelatedPartyRevenue!O199","v":0},{"$f":"[1]RelatedPartyRevenue!Q199","v":0},{"$f":"[1]RelatedPartyRevenue!Q199","v":0},{"$f":"[1]RelatedPartyRevenue!S199","v":0},{"$f":"[1]RelatedPartyRevenue!S199","v":0},{"$f":"[1]RelatedPartyRevenue!U199","v":0},{"$f":"[1]RelatedPartyRevenue!U199","v":0},{"$f":"[1]RelatedPartyRevenue!V199","v":0},{"$f":"[1]RelatedPartyRevenue!V199","v":0},0,null,{"$f":"[1]RelatedPartyRevenue!X199","v":0},null,0,0,0,0,0,0]
[0,0,{"$f":"IFERROR(INDEX((Settings!$M$17:$M$236),MATCH(RelatedPartyRevenue!G200,Settings!$AD$18:$AD$166,0)),0)","v":0},null,null,{"$f":"[1]RelatedPartyRevenue!F200","v":0},{"$f":"[1]RelatedPartyRevenue!G200","v":0},{"$f":"[1]RelatedPartyRevenue!H200","v":0},null,{"$f":"[1]RelatedPartyRevenue!M200","v":0},{"$f":"[1]RelatedPartyRevenue!M200","v":0},{"$f":"[1]RelatedPartyRevenue!O200","v":0},{"$f":"[1]RelatedPartyRevenue!O200","v":0},{"$f":"[1]RelatedPartyRevenue!Q200","v":0},{"$f":"[1]RelatedPartyRevenue!Q200","v":0},{"$f":"[1]RelatedPartyRevenue!S200","v":0},{"$f":"[1]RelatedPartyRevenue!S200","v":0},{"$f":"[1]RelatedPartyRevenue!U200","v":0},{"$f":"[1]RelatedPartyRevenue!U200","v":0},{"$f":"[1]RelatedPartyRevenue!V200","v":0},{"$f":"[1]RelatedPartyRevenue!V200","v":0},0,null,{"$f":"[1]RelatedPartyRevenue!X200","v":0},null,0,0,0,0,0,0]
[0,0,{"$f":"IFERROR(INDEX((Settings!$M$17:$M$236),MATCH(RelatedPartyRevenue!G201,Settings!$AD$18:$AD$166,0)),0)","v":0},null,null,{"$f":"[1]RelatedPartyRevenue!F201","v":0},{"$f":"[1]RelatedPartyRevenue!G201","v":0},{"$f":"[1]RelatedPartyRevenue!H201","v":0},null,{"$f":"[1]RelatedPartyRevenue!M201","v":0},{"$f":"[1]RelatedPartyRevenue!M201","v":0},{"$f":"[1]RelatedPartyRevenue!O201","v":0},{"$f":"[1]RelatedPartyRevenue!O201","v":0},{"$f":"[1]RelatedPartyRevenue!Q201","v":0},{"$f":"[1]RelatedPartyRevenue!Q201","v":0},{"$f":"[1]RelatedPartyRevenue!S201","v":0},{"$f":"[1]RelatedPartyRevenue!S201","v":0},{"$f":"[1]RelatedPartyRevenue!U201","v":0},{"$f":"[1]RelatedPartyRevenue!U201","v":0},{"$f":"[1]RelatedPartyRevenue!V201","v":0},{"$f":"[1]RelatedPartyRevenue!V201","v":0},0,null,{"$f":"[1]RelatedPartyRevenue!X201","v":0},null,0,0,0,0,0,0]
[0,0,{"$f":"IFERROR(INDEX((Settings!$M$17:$M$236),MATCH(RelatedPartyRevenue!G202,Settings!$AD$18:$AD$166,0)),0)","v":0},null,null,{"$f":"[1]RelatedPartyRevenue!F202","v":0},{"$f":"[1]RelatedPartyRevenue!G202","v":0},{"$f":"[1]RelatedPartyRevenue!H202","v":0},null,{"$f":"[1]RelatedPartyRevenue!M202","v":0},{"$f":"[1]RelatedPartyRevenue!M202","v":0},{"$f":"[1]RelatedPartyRevenue!O202","v":0},{"$f":"[1]RelatedPartyRevenue!O202","v":0},{"$f":"[1]RelatedPartyRevenue!Q202","v":0},{"$f":"[1]RelatedPartyRevenue!Q202","v":0},{"$f":"[1]RelatedPartyRevenue!S202","v":0},{"$f":"[1]RelatedPartyRevenue!S202","v":0},{"$f":"[1]RelatedPartyRevenue!U202","v":0},{"$f":"[1]RelatedPartyRevenue!U202","v":0},{"$f":"[1]RelatedPartyRevenue!V202","v":0},{"$f":"[1]RelatedPartyRevenue!V202","v":0},0,null,{"$f":"[1]RelatedPartyRevenue!X202","v":0},null,0,0,0,0,0,0]
[0,{"$f":"IF($G203=$G$7,1,0)","v":0},{"$f":"IFERROR(INDEX((Settings!$M$17:$M$236),MATCH(RelatedPartyRevenue!G203,Settings!$AD$18:$AD$166,0)),0)","v":0},null,null,{"$f":"[1]RelatedPartyRevenue!F203","v":0},{"$f":"[1]RelatedPartyRevenue!G203","v":0},{"$f":"[1]RelatedPartyRevenue!H203","v":0},null,{"$f":"[1]RelatedPartyRevenue!M203","v":0},{"$f":"[1]RelatedPartyRevenue!M203","v":0},{"$f":"[1]RelatedPartyRevenue!O203","v":0},{"$f":"[1]RelatedPartyRevenue!O203","v":0},{"$f":"[1]RelatedPartyRevenue!Q203","v":0},{"$f":"[1]RelatedPartyRevenue!Q203","v":0},{"$f":"[1]RelatedPartyRevenue!S203","v":0},{"$f":"[1]RelatedPartyRevenue!S203","v":0},{"$f":"[1]RelatedPartyRevenue!U203","v":0},{"$f":"[1]RelatedPartyRevenue!U203","v":0},{"$f":"[1]RelatedPartyRevenue!V203","v":0},{"$f":"[1]RelatedPartyRevenue!V203","v":0},0,null,{"$f":"[1]RelatedPartyRevenue!X203","v":0},null,0,0,0,0,0,0]
[{"$f":"IF(SUM(J204:V204)>0,1,0)","v":0},0,{"$f":"IFERROR(INDEX((Settings!$M$17:$M$236),MATCH(RelatedPartyRevenue!G204,Settings!$AD$18:$AD$166,0)),0)","v":0},null,null,{"$f":"[1]RelatedPartyRevenue!F204","v":0},{"$f":"[1]RelatedPartyRevenue!G204","v":0},{"$f":"[1]RelatedPartyRevenue!H204","v":0},null,{"$f":"[1]RelatedPartyRevenue!M204","v":0},{"$f":"[1]RelatedPartyRevenue!M204","v":0},{"$f":"[1]RelatedPartyRevenue!O204","v":0},{"$f":"[1]RelatedPartyRevenue!O204","v":0},{"$f":"[1]RelatedPartyRevenue!Q204","v":0},{"$f":"[1]RelatedPartyRevenue!Q204","v":0},{"$f":"[1]RelatedPartyRevenue!S204","v":0},{"$f":"[1]RelatedPartyRevenue!S204","v":0},{"$f":"[1]RelatedPartyRevenue!U204","v":0},{"$f":"[1]RelatedPartyRevenue!U204","v":0},{"$f":"[1]RelatedPartyRevenue!V204","v":0},{"$f":"[1]RelatedPartyRevenue!V204","v":0},0,null,{"$f":"[1]RelatedPartyRevenue!X204","v":0},null,{"$f":"K204-J204","v":0},{"$f":"M204-L204","v":0},0,0,0,0]
[0,0,{"$f":"IFERROR(INDEX((Settings!$M$17:$M$236),MATCH(RelatedPartyRevenue!G205,Settings!$AD$18:$AD$166,0)),0)","v":0},null,null,{"$f":"[1]RelatedPartyRevenue!F205","v":0},{"$f":"[1]RelatedPartyRevenue!G205","v":0},{"$f":"[1]RelatedPartyRevenue!H205","v":0},null,{"$f":"[1]RelatedPartyRevenue!M205","v":0},{"$f":"[1]RelatedPartyRevenue!M205","v":0},{"$f":"[1]RelatedPartyRevenue!O205","v":0},{"$f":"[1]RelatedPartyRevenue!O205","v":0},{"$f":"[1]RelatedPartyRevenue!Q205","v":0},{"$f":"[1]RelatedPartyRevenue!Q205","v":0},{"$f":"[1]RelatedPartyRevenue!S205","v":0},{"$f":"[1]RelatedPartyRevenue!S205","v":0},{"$f":"[1]RelatedPartyRevenue!U205","v":0},{"$f":"[1]RelatedPartyRevenue!U205","v":0},{"$f":"[1]RelatedPartyRevenue!V205","v":0},{"$f":"[1]RelatedPartyRevenue!V205","v":0},0,null,{"$f":"[1]RelatedPartyRevenue!X205","v":0},null,0,0,{"$f":"O205-N205","v":0},{"$f":"Q205-P205","v":0},{"$f":"S205-R205","v":0},{"$f":"U205-T205","v":0}]
[0,0,{"$f":"IFERROR(INDEX((Settings!$M$17:$M$236),MATCH(RelatedPartyRevenue!G206,Settings!$AD$18:$AD$166,0)),0)","v":0},null,null,{"$f":"[1]RelatedPartyRevenue!F206","v":0},{"$f":"[1]RelatedPartyRevenue!G206","v":0},{"$f":"[1]RelatedPartyRevenue!H206","v":0},null,{"$f":"[1]RelatedPartyRevenue!M206","v":0},{"$f":"[1]RelatedPartyRevenue!M206","v":0},{"$f":"[1]RelatedPartyRevenue!O206","v":0},{"$f":"[1]RelatedPartyRevenue!O206","v":0},{"$f":"[1]RelatedPartyRevenue!Q206","v":0},{"$f":"[1]RelatedPartyRevenue!Q206","v":0},{"$f":"[1]RelatedPartyRevenue!S206","v":0},{"$f":"[1]RelatedPartyRevenue!S206","v":0},{"$f":"[1]RelatedPartyRevenue!U206","v":0},{"$f":"[1]RelatedPartyRevenue!U206","v":0},{"$f":"[1]RelatedPartyRevenue!V206","v":0},{"$f":"[1]RelatedPartyRevenue!V206","v":0},0,null,{"$f":"[1]RelatedPartyRevenue!X206","v":0},null,0,0,0,0,0,0]
[0,0,{"$f":"IFERROR(INDEX((Settings!$M$17:$M$236),MATCH(RelatedPartyRevenue!G207,Settings!$AD$18:$AD$166,0)),0)","v":0},null,null,{"$f":"[1]RelatedPartyRevenue!F207","v":0},{"$f":"[1]RelatedPartyRevenue!G207","v":0},{"$f":"[1]RelatedPartyRevenue!H207","v":0},null,{"$f":"[1]RelatedPartyRevenue!M207","v":0},{"$f":"[1]RelatedPartyRevenue!M207","v":0},{"$f":"[1]RelatedPartyRevenue!O207","v":0},{"$f":"[1]RelatedPartyRevenue!O207","v":0},{"$f":"[1]RelatedPartyRevenue!Q207","v":0},{"$f":"[1]RelatedPartyRevenue!Q207","v":0},{"$f":"[1]RelatedPartyRevenue!S207","v":0},{"$f":"[1]RelatedPartyRevenue!S207","v":0},{"$f":"[1]RelatedPartyRevenue!U207","v":0},{"$f":"[1]RelatedPartyRevenue!U207","v":0},{"$f":"[1]RelatedPartyRevenue!V207","v":0},{"$f":"[1]RelatedPartyRevenue!V207","v":0},0,null,{"$f":"[1]RelatedPartyRevenue!X207","v":0},null,0,0,0,0,0,0]
[0,0,{"$f":"IFERROR(INDEX((Settings!$M$17:$M$236),MATCH(RelatedPartyRevenue!G208,Settings!$AD$18:$AD$166,0)),0)","v":0},null,null,{"$f":"[1]RelatedPartyRevenue!F208","v":0},{"$f":"[1]RelatedPartyRevenue!G208","v":0},{"$f":"[1]RelatedPartyRevenue!H208","v":0},null,{"$f":"[1]RelatedPartyRevenue!M208","v":0},{"$f":"[1]RelatedPartyRevenue!M208","v":0},{"$f":"[1]RelatedPartyRevenue!O208","v":0},{"$f":"[1]RelatedPartyRevenue!O208","v":0},{"$f":"[1]RelatedPartyRevenue!Q208","v":0},{"$f":"[1]RelatedPartyRevenue!Q208","v":0},{"$f":"[1]RelatedPartyRevenue!S208","v":0},{"$f":"[1]RelatedPartyRevenue!S208","v":0},{"$f":"[1]RelatedPartyRevenue!U208","v":0},{"$f":"[1]RelatedPartyRevenue!U208","v":0},{"$f":"[1]RelatedPartyRevenue!V208","v":0},{"$f":"[1]RelatedPartyRevenue!V208","v":0},0,null,{"$f":"[1]RelatedPartyRevenue!X208","v":0},null,0,0,0,0,0,0]
[0,0,{"$f":"IFERROR(INDEX((Settings!$M$17:$M$236),MATCH(RelatedPartyRevenue!G209,Settings!$AD$18:$AD$166,0)),0)","v":0},null,null,{"$f":"[1]RelatedPartyRevenue!F209","v":0},{"$f":"[1]RelatedPartyRevenue!G209","v":0},{"$f":"[1]RelatedPartyRevenue!H209","v":0},null,{"$f":"[1]RelatedPartyRevenue!M209","v":0},{"$f":"[1]RelatedPartyRevenue!M209","v":0},{"$f":"[1]RelatedPartyRevenue!O209","v":0},{"$f":"[1]RelatedPartyRevenue!O209","v":0},{"$f":"[1]RelatedPartyRevenue!Q209","v":0},{"$f":"[1]RelatedPartyRevenue!Q209","v":0},{"$f":"[1]RelatedPartyRevenue!S209","v":0},{"$f":"[1]RelatedPartyRevenue!S209","v":0},{"$f":"[1]RelatedPartyRevenue!U209","v":0},{"$f":"[1]RelatedPartyRevenue!U209","v":0},{"$f":"[1]RelatedPartyRevenue!V209","v":0},{"$f":"[1]RelatedPartyRevenue!V209","v":0},0,null,{"$f":"[1]RelatedPartyRevenue!X209","v":0},null,0,0,0,0,0,0]
[0,0,{"$f":"IFERROR(INDEX((Settings!$M$17:$M$236),MATCH(RelatedPartyRevenue!G210,Settings!$AD$18:$AD$166,0)),0)","v":0},null,null,{"$f":"[1]RelatedPartyRevenue!F210","v":0},{"$f":"[1]RelatedPartyRevenue!G210","v":0},{"$f":"[1]RelatedPartyRevenue!H210","v":0},null,{"$f":"[1]RelatedPartyRevenue!M210","v":0},{"$f":"[1]RelatedPartyRevenue!M210","v":0},{"$f":"[1]RelatedPartyRevenue!O210","v":0},{"$f":"[1]RelatedPartyRevenue!O210","v":0},{"$f":"[1]RelatedPartyRevenue!Q210","v":0},{"$f":"[1]RelatedPartyRevenue!Q210","v":0},{"$f":"[1]RelatedPartyRevenue!S210","v":0},{"$f":"[1]RelatedPartyRevenue!S210","v":0},{"$f":"[1]RelatedPartyRevenue!U210","v":0},{"$f":"[1]RelatedPartyRevenue!U210","v":0},{"$f":"[1]RelatedPartyRevenue!V210","v":0},{"$f":"[1]RelatedPartyRevenue!V210","v":0},0,null,{"$f":"[1]RelatedPartyRevenue!X210","v":0},null,0,0,0,0,0,0]
[0,0,{"$f":"IFERROR(INDEX((Settings!$M$17:$M$236),MATCH(RelatedPartyRevenue!G211,Settings!$AD$18:$AD$166,0)),0)","v":0},null,null,{"$f":"[1]RelatedPartyRevenue!F211","v":0},{"$f":"[1]RelatedPartyRevenue!G211","v":0},{"$f":"[1]RelatedPartyRevenue!H211","v":0},null,{"$f":"[1]RelatedPartyRevenue!M211","v":0},{"$f":"[1]RelatedPartyRevenue!M211","v":0},{"$f":"[1]RelatedPartyRevenue!O211","v":0},{"$f":"[1]RelatedPartyRevenue!O211","v":0},{"$f":"[1]RelatedPartyRevenue!Q211","v":0},{"$f":"[1]RelatedPartyRevenue!Q211","v":0},{"$f":"[1]RelatedPartyRevenue!S211","v":0},{"$f":"[1]RelatedPartyRevenue!S211","v":0},{"$f":"[1]RelatedPartyRevenue!U211","v":0},{"$f":"[1]RelatedPartyRevenue!U211","v":0},{"$f":"[1]RelatedPartyRevenue!V211","v":0},{"$f":"[1]RelatedPartyRevenue!V211","v":0},0,null,{"$f":"[1]RelatedPartyRevenue!X211","v":0},null,0,0,0,0,0,0]
[0,0,{"$f":"IFERROR(INDEX((Settings!$M$17:$M$236),MATCH(RelatedPartyRevenue!G212,Settings!$AD$18:$AD$166,0)),0)","v":0},null,null,{"$f":"[1]RelatedPartyRevenue!F212","v":0},{"$f":"[1]RelatedPartyRevenue!G212","v":0},{"$f":"[1]RelatedPartyRevenue!H212","v":0},null,{"$f":"[1]RelatedPartyRevenue!M212","v":0},{"$f":"[1]RelatedPartyRevenue!M212","v":0},{"$f":"[1]RelatedPartyRevenue!O212","v":0},{"$f":"[1]RelatedPartyRevenue!O212","v":0},{"$f":"[1]RelatedPartyRevenue!Q212","v":0},{"$f":"[1]RelatedPartyRevenue!Q212","v":0},{"$f":"[1]RelatedPartyRevenue!S212","v":0},{"$f":"[1]RelatedPartyRevenue!S212","v":0},{"$f":"[1]RelatedPartyRevenue!U212","v":0},{"$f":"[1]RelatedPartyRevenue!U212","v":0},{"$f":"[1]RelatedPartyRevenue!V212","v":0},{"$f":"[1]RelatedPartyRevenue!V212","v":0},0,null,{"$f":"[1]RelatedPartyRevenue!X212","v":0},null,0,0,0,0,0,0]
[0,0,{"$f":"IFERROR(INDEX((Settings!$M$17:$M$236),MATCH(RelatedPartyRevenue!G213,Settings!$AD$18:$AD$166,0)),0)","v":0},null,null,{"$f":"[1]RelatedPartyRevenue!F213","v":0},{"$f":"[1]RelatedPartyRevenue!G213","v":0},{"$f":"[1]RelatedPartyRevenue!H213","v":0},null,{"$f":"[1]RelatedPartyRevenue!M213","v":0},{"$f":"[1]RelatedPartyRevenue!M213","v":0},{"$f":"[1]RelatedPartyRevenue!O213","v":0},{"$f":"[1]RelatedPartyRevenue!O213","v":0},{"$f":"[1]RelatedPartyRevenue!Q213","v":0},{"$f":"[1]RelatedPartyRevenue!Q213","v":0},{"$f":"[1]RelatedPartyRevenue!S213","v":0},{"$f":"[1]RelatedPartyRevenue!S213","v":0},{"$f":"[1]RelatedPartyRevenue!U213","v":0},{"$f":"[1]RelatedPartyRevenue!U213","v":0},{"$f":"[1]RelatedPartyRevenue!V213","v":0},{"$f":"[1]RelatedPartyRevenue!V213","v":0},0,null,{"$f":"[1]RelatedPartyRevenue!X213","v":0},null,0,0,0,0,0,0]
[0,0,{"$f":"IFERROR(INDEX((Settings!$M$17:$M$236),MATCH(RelatedPartyRevenue!G214,Settings!$AD$18:$AD$166,0)),0)","v":0},null,null,{"$f":"[1]RelatedPartyRevenue!F214","v":0},{"$f":"[1]RelatedPartyRevenue!G214","v":0},{"$f":"[1]RelatedPartyRevenue!H214","v":0},null,{"$f":"[1]RelatedPartyRevenue!M214","v":0},{"$f":"[1]RelatedPartyRevenue!M214","v":0},{"$f":"[1]RelatedPartyRevenue!O214","v":0},{"$f":"[1]RelatedPartyRevenue!O214","v":0},{"$f":"[1]RelatedPartyRevenue!Q214","v":0},{"$f":"[1]RelatedPartyRevenue!Q214","v":0},{"$f":"[1]RelatedPartyRevenue!S214","v":0},{"$f":"[1]RelatedPartyRevenue!S214","v":0},{"$f":"[1]RelatedPartyRevenue!U214","v":0},{"$f":"[1]RelatedPartyRevenue!U214","v":0},{"$f":"[1]RelatedPartyRevenue!V214","v":0},{"$f":"[1]RelatedPartyRevenue!V214","v":0},0,null,{"$f":"[1]RelatedPartyRevenue!X214","v":0},null,0,0,0,0,0,0]
[0,0,{"$f":"IFERROR(INDEX((Settings!$M$17:$M$236),MATCH(RelatedPartyRevenue!G215,Settings!$AD$18:$AD$166,0)),0)","v":0},null,null,{"$f":"[1]RelatedPartyRevenue!F215","v":0},{"$f":"[1]RelatedPartyRevenue!G215","v":0},{"$f":"[1]RelatedPartyRevenue!H215","v":0},null,{"$f":"[1]RelatedPartyRevenue!M215","v":0},{"$f":"[1]RelatedPartyRevenue!M215","v":0},{"$f":"[1]RelatedPartyRevenue!O215","v":0},{"$f":"[1]RelatedPartyRevenue!O215","v":0},{"$f":"[1]RelatedPartyRevenue!Q215","v":0},{"$f":"[1]RelatedPartyRevenue!Q215","v":0},{"$f":"[1]RelatedPartyRevenue!S215","v":0},{"$f":"[1]RelatedPartyRevenue!S215","v":0},{"$f":"[1]RelatedPartyRevenue!U215","v":0},{"$f":"[1]RelatedPartyRevenue!U215","v":0},{"$f":"[1]RelatedPartyRevenue!V215","v":0},{"$f":"[1]RelatedPartyRevenue!V215","v":0},0,null,{"$f":"[1]RelatedPartyRevenue!X215","v":0},null,0,0,0,0,0,0]
[0,0,{"$f":"IFERROR(INDEX((Settings!$M$17:$M$236),MATCH(RelatedPartyRevenue!G216,Settings!$AD$18:$AD$166,0)),0)","v":0},null,null,{"$f":"[1]RelatedPartyRevenue!F216","v":0},{"$f":"[1]RelatedPartyRevenue!G216","v":0},{"$f":"[1]RelatedPartyRevenue!H216","v":0},null,{"$f":"[1]RelatedPartyRevenue!M216","v":0},{"$f":"[1]RelatedPartyRevenue!M216","v":0},{"$f":"[1]RelatedPartyRevenue!O216","v":0},{"$f":"[1]RelatedPartyRevenue!O216","v":0},{"$f":"[1]RelatedPartyRevenue!Q216","v":0},{"$f":"[1]RelatedPartyRevenue!Q216","v":0},{"$f":"[1]RelatedPartyRevenue!S216","v":0},{"$f":"[1]RelatedPartyRevenue!S216","v":0},{"$f":"[1]RelatedPartyRevenue!U216","v":0},{"$f":"[1]RelatedPartyRevenue!U216","v":0},{"$f":"[1]RelatedPartyRevenue!V216","v":0},{"$f":"[1]RelatedPartyRevenue!V216","v":0},0,null,{"$f":"[1]RelatedPartyRevenue!X216","v":0},null,0,0,0,0,0,0]
[0,0,{"$f":"IFERROR(INDEX((Settings!$M$17:$M$236),MATCH(RelatedPartyRevenue!G217,Settings!$AD$18:$AD$166,0)),0)","v":0},null,null,{"$f":"[1]RelatedPartyRevenue!F217","v":0},{"$f":"[1]RelatedPartyRevenue!G217","v":0},{"$f":"[1]RelatedPartyRevenue!H217","v":0},null,{"$f":"[1]RelatedPartyRevenue!M217","v":0},{"$f":"[1]RelatedPartyRevenue!M217","v":0},{"$f":"[1]RelatedPartyRevenue!O217","v":0},{"$f":"[1]RelatedPartyRevenue!O217","v":0},{"$f":"[1]RelatedPartyRevenue!Q217","v":0},{"$f":"[1]RelatedPartyRevenue!Q217","v":0},{"$f":"[1]RelatedPartyRevenue!S217","v":0},{"$f":"[1]RelatedPartyRevenue!S217","v":0},{"$f":"[1]RelatedPartyRevenue!U217","v":0},{"$f":"[1]RelatedPartyRevenue!U217","v":0},{"$f":"[1]RelatedPartyRevenue!V217","v":0},{"$f":"[1]RelatedPartyRevenue!V217","v":0},0,null,{"$f":"[1]RelatedPartyRevenue!X217","v":0},null,0,0,0,0,0,0]
[0,0,{"$f":"IFERROR(INDEX((Settings!$M$17:$M$236),MATCH(RelatedPartyRevenue!G218,Settings!$AD$18:$AD$166,0)),0)","v":0},null,null,{"$f":"[1]RelatedPartyRevenue!F218","v":0},{"$f":"[1]RelatedPartyRevenue!G218","v":0},{"$f":"[1]RelatedPartyRevenue!H218","v":0},null,{"$f":"[1]RelatedPartyRevenue!M218","v":0},{"$f":"[1]RelatedPartyRevenue!M218","v":0},{"$f":"[1]RelatedPartyRevenue!O218","v":0},{"$f":"[1]RelatedPartyRevenue!O218","v":0},{"$f":"[1]RelatedPartyRevenue!Q218","v":0},{"$f":"[1]RelatedPartyRevenue!Q218","v":0},{"$f":"[1]RelatedPartyRevenue!S218","v":0},{"$f":"[1]RelatedPartyRevenue!S218","v":0},{"$f":"[1]RelatedPartyRevenue!U218","v":0},{"$f":"[1]RelatedPartyRevenue!U218","v":0},{"$f":"[1]RelatedPartyRevenue!V218","v":0},{"$f":"[1]RelatedPartyRevenue!V218","v":0},0,null,{"$f":"[1]RelatedPartyRevenue!X218","v":0},null,0,0,0,0,0,0]
[0,0,{"$f":"IFERROR(INDEX((Settings!$M$17:$M$236),MATCH(RelatedPartyRevenue!G219,Settings!$AD$18:$AD$166,0)),0)","v":0},null,null,{"$f":"[1]RelatedPartyRevenue!F219","v":0},{"$f":"[1]RelatedPartyRevenue!G219","v":0},{"$f":"[1]RelatedPartyRevenue!H219","v":0},null,{"$f":"[1]RelatedPartyRevenue!M219","v":0},{"$f":"[1]RelatedPartyRevenue!M219","v":0},{"$f":"[1]RelatedPartyRevenue!O219","v":0},{"$f":"[1]RelatedPartyRevenue!O219","v":0},{"$f":"[1]RelatedPartyRevenue!Q219","v":0},{"$f":"[1]RelatedPartyRevenue!Q219","v":0},{"$f":"[1]RelatedPartyRevenue!S219","v":0},{"$f":"[1]RelatedPartyRevenue!S219","v":0},{"$f":"[1]RelatedPartyRevenue!U219","v":0},{"$f":"[1]RelatedPartyRevenue!U219","v":0},{"$f":"[1]RelatedPartyRevenue!V219","v":0},{"$f":"[1]RelatedPartyRevenue!V219","v":0},0,null,{"$f":"[1]RelatedPartyRevenue!X219","v":0},null,0,0,0,0,0,0]
[0,0,{"$f":"IFERROR(INDEX((Settings!$M$17:$M$236),MATCH(RelatedPartyRevenue!G220,Settings!$AD$18:$AD$166,0)),0)","v":0},null,null,{"$f":"[1]RelatedPartyRevenue!F220","v":0},{"$f":"[1]RelatedPartyRevenue!G220","v":0},{"$f":"[1]RelatedPartyRevenue!H220","v":0},null,{"$f":"[1]RelatedPartyRevenue!M220","v":0},{"$f":"[1]RelatedPartyRevenue!M220","v":0},{"$f":"[1]RelatedPartyRevenue!O220","v":0},{"$f":"[1]RelatedPartyRevenue!O220","v":0},{"$f":"[1]RelatedPartyRevenue!Q220","v":0},{"$f":"[1]RelatedPartyRevenue!Q220","v":0},{"$f":"[1]RelatedPartyRevenue!S220","v":0},{"$f":"[1]RelatedPartyRevenue!S220","v":0},{"$f":"[1]RelatedPartyRevenue!U220","v":0},{"$f":"[1]RelatedPartyRevenue!U220","v":0},{"$f":"[1]RelatedPartyRevenue!V220","v":0},{"$f":"[1]RelatedPartyRevenue!V220","v":0},0,null,{"$f":"[1]RelatedPartyRevenue!X220","v":0},null,0,0,0,0,0,0]
[0,0,{"$f":"IFERROR(INDEX((Settings!$M$17:$M$236),MATCH(RelatedPartyRevenue!G221,Settings!$AD$18:$AD$166,0)),0)","v":0},null,null,{"$f":"[1]RelatedPartyRevenue!F221","v":0},{"$f":"[1]RelatedPartyRevenue!G221","v":0},{"$f":"[1]RelatedPartyRevenue!H221","v":0},null,{"$f":"[1]RelatedPartyRevenue!M221","v":0},{"$f":"[1]RelatedPartyRevenue!M221","v":0},{"$f":"[1]RelatedPartyRevenue!O221","v":0},{"$f":"[1]RelatedPartyRevenue!O221","v":0},{"$f":"[1]RelatedPartyRevenue!Q221","v":0},{"$f":"[1]RelatedPartyRevenue!Q221","v":0},{"$f":"[1]RelatedPartyRevenue!S221","v":0},{"$f":"[1]RelatedPartyRevenue!S221","v":0},{"$f":"[1]RelatedPartyRevenue!U221","v":0},{"$f":"[1]RelatedPartyRevenue!U221","v":0},{"$f":"[1]RelatedPartyRevenue!V221","v":0},{"$f":"[1]RelatedPartyRevenue!V221","v":0},0,null,{"$f":"[1]RelatedPartyRevenue!X221","v":0},null,0,0,0,0,0,0]
[0,0,{"$f":"IFERROR(INDEX((Settings!$M$17:$M$236),MATCH(RelatedPartyRevenue!G222,Settings!$AD$18:$AD$166,0)),0)","v":0},null,null,{"$f":"[1]RelatedPartyRevenue!F222","v":0},{"$f":"[1]RelatedPartyRevenue!G222","v":0},{"$f":"[1]RelatedPartyRevenue!H222","v":0},null,{"$f":"[1]RelatedPartyRevenue!M222","v":0},{"$f":"[1]RelatedPartyRevenue!M222","v":0},{"$f":"[1]RelatedPartyRevenue!O222","v":0},{"$f":"[1]RelatedPartyRevenue!O222","v":0},{"$f":"[1]RelatedPartyRevenue!Q222","v":0},{"$f":"[1]RelatedPartyRevenue!Q222","v":0},{"$f":"[1]RelatedPartyRevenue!S222","v":0},{"$f":"[1]RelatedPartyRevenue!S222","v":0},{"$f":"[1]RelatedPartyRevenue!U222","v":0},{"$f":"[1]RelatedPartyRevenue!U222","v":0},{"$f":"[1]RelatedPartyRevenue!V222","v":0},{"$f":"[1]RelatedPartyRevenue!V222","v":0},0,null,{"$f":"[1]RelatedPartyRevenue!X222","v":0},null,0,0,0,0,0,0]
[0,0,{"$f":"IFERROR(INDEX((Settings!$M$17:$M$236),MATCH(RelatedPartyRevenue!G223,Settings!$AD$18:$AD$166,0)),0)","v":0},null,null,{"$f":"[1]RelatedPartyRevenue!F223","v":0},{"$f":"[1]RelatedPartyRevenue!G223","v":0},{"$f":"[1]RelatedPartyRevenue!H223","v":0},null,{"$f":"[1]RelatedPartyRevenue!M223","v":0},{"$f":"[1]RelatedPartyRevenue!M223","v":0},{"$f":"[1]RelatedPartyRevenue!O223","v":0},{"$f":"[1]RelatedPartyRevenue!O223","v":0},{"$f":"[1]RelatedPartyRevenue!Q223","v":0},{"$f":"[1]RelatedPartyRevenue!Q223","v":0},{"$f":"[1]RelatedPartyRevenue!S223","v":0},{"$f":"[1]RelatedPartyRevenue!S223","v":0},{"$f":"[1]RelatedPartyRevenue!U223","v":0},{"$f":"[1]RelatedPartyRevenue!U223","v":0},{"$f":"[1]RelatedPartyRevenue!V223","v":0},{"$f":"[1]RelatedPartyRevenue!V223","v":0},0,null,{"$f":"[1]RelatedPartyRevenue!X223","v":0},null,0,0,0,0,0,0]
[0,0,{"$f":"IFERROR(INDEX((Settings!$M$17:$M$236),MATCH(RelatedPartyRevenue!G224,Settings!$AD$18:$AD$166,0)),0)","v":0},null,null,{"$f":"[1]RelatedPartyRevenue!F224","v":0},{"$f":"[1]RelatedPartyRevenue!G224","v":0},{"$f":"[1]RelatedPartyRevenue!H224","v":0},null,{"$f":"[1]RelatedPartyRevenue!M224","v":0},{"$f":"[1]RelatedPartyRevenue!M224","v":0},{"$f":"[1]RelatedPartyRevenue!O224","v":0},{"$f":"[1]RelatedPartyRevenue!O224","v":0},{"$f":"[1]RelatedPartyRevenue!Q224","v":0},{"$f":"[1]RelatedPartyRevenue!Q224","v":0},{"$f":"[1]RelatedPartyRevenue!S224","v":0},{"$f":"[1]RelatedPartyRevenue!S224","v":0},{"$f":"[1]RelatedPartyRevenue!U224","v":0},{"$f":"[1]RelatedPartyRevenue!U224","v":0},{"$f":"[1]RelatedPartyRevenue!V224","v":0},{"$f":"[1]RelatedPartyRevenue!V224","v":0},0,null,{"$f":"[1]RelatedPartyRevenue!X224","v":0},null,0,0,0,0,0,0]
[0,0,{"$f":"IFERROR(INDEX((Settings!$M$17:$M$236),MATCH(RelatedPartyRevenue!G225,Settings!$AD$18:$AD$166,0)),0)","v":0},null,null,{"$f":"[1]RelatedPartyRevenue!F225","v":0},{"$f":"[1]RelatedPartyRevenue!G225","v":0},{"$f":"[1]RelatedPartyRevenue!H225","v":0},null,{"$f":"[1]RelatedPartyRevenue!M225","v":0},{"$f":"[1]RelatedPartyRevenue!M225","v":0},{"$f":"[1]RelatedPartyRevenue!O225","v":0},{"$f":"[1]RelatedPartyRevenue!O225","v":0},{"$f":"[1]RelatedPartyRevenue!Q225","v":0},{"$f":"[1]RelatedPartyRevenue!Q225","v":0},{"$f":"[1]RelatedPartyRevenue!S225","v":0},{"$f":"[1]RelatedPartyRevenue!S225","v":0},{"$f":"[1]RelatedPartyRevenue!U225","v":0},{"$f":"[1]RelatedPartyRevenue!U225","v":0},{"$f":"[1]RelatedPartyRevenue!V225","v":0},{"$f":"[1]RelatedPartyRevenue!V225","v":0},0,null,{"$f":"[1]RelatedPartyRevenue!X225","v":0},null,0,0,0,0,0,0]
[0,0,{"$f":"IFERROR(INDEX((Settings!$M$17:$M$236),MATCH(RelatedPartyRevenue!G226,Settings!$AD$18:$AD$166,0)),0)","v":0},null,null,{"$f":"[1]RelatedPartyRevenue!F226","v":0},{"$f":"[1]RelatedPartyRevenue!G226","v":0},{"$f":"[1]RelatedPartyRevenue!H226","v":0},null,{"$f":"[1]RelatedPartyRevenue!M226","v":0},{"$f":"[1]RelatedPartyRevenue!M226","v":0},{"$f":"[1]RelatedPartyRevenue!O226","v":0},{"$f":"[1]RelatedPartyRevenue!O226","v":0},{"$f":"[1]RelatedPartyRevenue!Q226","v":0},{"$f":"[1]RelatedPartyRevenue!Q226","v":0},{"$f":"[1]RelatedPartyRevenue!S226","v":0},{"$f":"[1]RelatedPartyRevenue!S226","v":0},{"$f":"[1]RelatedPartyRevenue!U226","v":0},{"$f":"[1]RelatedPartyRevenue!U226","v":0},{"$f":"[1]RelatedPartyRevenue!V226","v":0},{"$f":"[1]RelatedPartyRevenue!V226","v":0},0,null,{"$f":"[1]RelatedPartyRevenue!X226","v":0},null,0,0,0,0,0,0]
[0,0,{"$f":"IFERROR(INDEX((Settings!$M$17:$M$236),MATCH(RelatedPartyRevenue!G227,Settings!$AD$18:$AD$166,0)),0)","v":0},null,null,{"$f":"[1]RelatedPartyRevenue!F227","v":0},{"$f":"[1]RelatedPartyRevenue!G227","v":0},{"$f":"[1]RelatedPartyRevenue!H227","v":0},null,{"$f":"[1]RelatedPartyRevenue!M227","v":0},{"$f":"[1]RelatedPartyRevenue!M227","v":0},{"$f":"[1]RelatedPartyRevenue!O227","v":0},{"$f":"[1]RelatedPartyRevenue!O227","v":0},{"$f":"[1]RelatedPartyRevenue!Q227","v":0},{"$f":"[1]RelatedPartyRevenue!Q227","v":0},{"$f":"[1]RelatedPartyRevenue!S227","v":0},{"$f":"[1]RelatedPartyRevenue!S227","v":0},{"$f":"[1]RelatedPartyRevenue!U227","v":0},{"$f":"[1]RelatedPartyRevenue!U227","v":0},{"$f":"[1]RelatedPartyRevenue!V227","v":0},{"$f":"[1]RelatedPartyRevenue!V227","v":0},0,null,{"$f":"[1]RelatedPartyRevenue!X227","v":0},null,0,0,0,0,0,0]
[0,0,{"$f":"IFERROR(INDEX((Settings!$M$17:$M$236),MATCH(RelatedPartyRevenue!G228,Settings!$AD$18:$AD$166,0)),0)","v":0},null,null,{"$f":"[1]RelatedPartyRevenue!F228","v":0},{"$f":"[1]RelatedPartyRevenue!G228","v":0},{"$f":"[1]RelatedPartyRevenue!H228","v":0},null,{"$f":"[1]RelatedPartyRevenue!M228","v":0},{"$f":"[1]RelatedPartyRevenue!M228","v":0},{"$f":"[1]RelatedPartyRevenue!O228","v":0},{"$f":"[1]RelatedPartyRevenue!O228","v":0},{"$f":"[1]RelatedPartyRevenue!Q228","v":0},{"$f":"[1]RelatedPartyRevenue!Q228","v":0},{"$f":"[1]RelatedPartyRevenue!S228","v":0},{"$f":"[1]RelatedPartyRevenue!S228","v":0},{"$f":"[1]RelatedPartyRevenue!U228","v":0},{"$f":"[1]RelatedPartyRevenue!U228","v":0},{"$f":"[1]RelatedPartyRevenue!V228","v":0},{"$f":"[1]RelatedPartyRevenue!V228","v":0},0,null,{"$f":"[1]RelatedPartyRevenue!X228","v":0},null,0,0,0,0,0,0]
[0,0,{"$f":"IFERROR(INDEX((Settings!$M$17:$M$236),MATCH(RelatedPartyRevenue!G229,Settings!$AD$18:$AD$166,0)),0)","v":0},null,null,{"$f":"[1]RelatedPartyRevenue!F229","v":0},{"$f":"[1]RelatedPartyRevenue!G229","v":0},{"$f":"[1]RelatedPartyRevenue!H229","v":0},null,{"$f":"[1]RelatedPartyRevenue!M229","v":0},{"$f":"[1]RelatedPartyRevenue!M229","v":0},{"$f":"[1]RelatedPartyRevenue!O229","v":0},{"$f":"[1]RelatedPartyRevenue!O229","v":0},{"$f":"[1]RelatedPartyRevenue!Q229","v":0},{"$f":"[1]RelatedPartyRevenue!Q229","v":0},{"$f":"[1]RelatedPartyRevenue!S229","v":0},{"$f":"[1]RelatedPartyRevenue!S229","v":0},{"$f":"[1]RelatedPartyRevenue!U229","v":0},{"$f":"[1]RelatedPartyRevenue!U229","v":0},{"$f":"[1]RelatedPartyRevenue!V229","v":0},{"$f":"[1]RelatedPartyRevenue!V229","v":0},0,null,{"$f":"[1]RelatedPartyRevenue!X229","v":0},null,0,0,0,0,0,0]
[0,0,{"$f":"IFERROR(INDEX((Settings!$M$17:$M$236),MATCH(RelatedPartyRevenue!G230,Settings!$AD$18:$AD$166,0)),0)","v":0},null,null,{"$f":"[1]RelatedPartyRevenue!F230","v":0},{"$f":"[1]RelatedPartyRevenue!G230","v":0},{"$f":"[1]RelatedPartyRevenue!H230","v":0},null,{"$f":"[1]RelatedPartyRevenue!M230","v":0},{"$f":"[1]RelatedPartyRevenue!M230","v":0},{"$f":"[1]RelatedPartyRevenue!O230","v":0},{"$f":"[1]RelatedPartyRevenue!O230","v":0},{"$f":"[1]RelatedPartyRevenue!Q230","v":0},{"$f":"[1]RelatedPartyRevenue!Q230","v":0},{"$f":"[1]RelatedPartyRevenue!S230","v":0},{"$f":"[1]RelatedPartyRevenue!S230","v":0},{"$f":"[1]RelatedPartyRevenue!U230","v":0},{"$f":"[1]RelatedPartyRevenue!U230","v":0},{"$f":"[1]RelatedPartyRevenue!V230","v":0},{"$f":"[1]RelatedPartyRevenue!V230","v":0},0,null,{"$f":"[1]RelatedPartyRevenue!X230","v":0},null,0,0,0,0,0,0]
[0,0,{"$f":"IFERROR(INDEX((Settings!$M$17:$M$236),MATCH(RelatedPartyRevenue!G231,Settings!$AD$18:$AD$166,0)),0)","v":0},null,null,{"$f":"[1]RelatedPartyRevenue!F231","v":0},{"$f":"[1]RelatedPartyRevenue!G231","v":0},{"$f":"[1]RelatedPartyRevenue!H231","v":0},null,{"$f":"[1]RelatedPartyRevenue!M231","v":0},{"$f":"[1]RelatedPartyRevenue!M231","v":0},{"$f":"[1]RelatedPartyRevenue!O231","v":0},{"$f":"[1]RelatedPartyRevenue!O231","v":0},{"$f":"[1]RelatedPartyRevenue!Q231","v":0},{"$f":"[1]RelatedPartyRevenue!Q231","v":0},{"$f":"[1]RelatedPartyRevenue!S231","v":0},{"$f":"[1]RelatedPartyRevenue!S231","v":0},{"$f":"[1]RelatedPartyRevenue!U231","v":0},{"$f":"[1]RelatedPartyRevenue!U231","v":0},{"$f":"[1]RelatedPartyRevenue!V231","v":0},{"$f":"[1]RelatedPartyRevenue!V231","v":0},0,null,{"$f":"[1]RelatedPartyRevenue!X231","v":0},null,0,0,0,0,0,0]
[0,0,{"$f":"IFERROR(INDEX((Settings!$M$17:$M$236),MATCH(RelatedPartyRevenue!G232,Settings!$AD$18:$AD$166,0)),0)","v":0},null,null,{"$f":"[1]RelatedPartyRevenue!F232","v":0},{"$f":"[1]RelatedPartyRevenue!G232","v":0},{"$f":"[1]RelatedPartyRevenue!H232","v":0},null,{"$f":"[1]RelatedPartyRevenue!M232","v":0},{"$f":"[1]RelatedPartyRevenue!M232","v":0},{"$f":"[1]RelatedPartyRevenue!O232","v":0},{"$f":"[1]RelatedPartyRevenue!O232","v":0},{"$f":"[1]RelatedPartyRevenue!Q232","v":0},{"$f":"[1]RelatedPartyRevenue!Q232","v":0},{"$f":"[1]RelatedPartyRevenue!S232","v":0},{"$f":"[1]RelatedPartyRevenue!S232","v":0},{"$f":"[1]RelatedPartyRevenue!U232","v":0},{"$f":"[1]RelatedPartyRevenue!U232","v":0},{"$f":"[1]RelatedPartyRevenue!V232","v":0},{"$f":"[1]RelatedPartyRevenue!V232","v":0},0,null,{"$f":"[1]RelatedPartyRevenue!X232","v":0},null,0,0,0,0,0,0]
[0,0,{"$f":"IFERROR(INDEX((Settings!$M$17:$M$236),MATCH(RelatedPartyRevenue!G233,Settings!$AD$18:$AD$166,0)),0)","v":0},null,null,{"$f":"[1]RelatedPartyRevenue!F233","v":0},{"$f":"[1]RelatedPartyRevenue!G233","v":0},{"$f":"[1]RelatedPartyRevenue!H233","v":0},null,{"$f":"[1]RelatedPartyRevenue!M233","v":0},{"$f":"[1]RelatedPartyRevenue!M233","v":0},{"$f":"[1]RelatedPartyRevenue!O233","v":0},{"$f":"[1]RelatedPartyRevenue!O233","v":0},{"$f":"[1]RelatedPartyRevenue!Q233","v":0},{"$f":"[1]RelatedPartyRevenue!Q233","v":0},{"$f":"[1]RelatedPartyRevenue!S233","v":0},{"$f":"[1]RelatedPartyRevenue!S233","v":0},{"$f":"[1]RelatedPartyRevenue!U233","v":0},{"$f":"[1]RelatedPartyRevenue!U233","v":0},{"$f":"[1]RelatedPartyRevenue!V233","v":0},{"$f":"[1]RelatedPartyRevenue!V233","v":0},0,null,{"$f":"[1]RelatedPartyRevenue!X233","v":0},null,0,0,0,0,0,0]
[0,0,{"$f":"IFERROR(INDEX((Settings!$M$17:$M$236),MATCH(RelatedPartyRevenue!G234,Settings!$AD$18:$AD$166,0)),0)","v":0},null,null,{"$f":"[1]RelatedPartyRevenue!F234","v":0},{"$f":"[1]RelatedPartyRevenue!G234","v":0},{"$f":"[1]RelatedPartyRevenue!H234","v":0},null,{"$f":"[1]RelatedPartyRevenue!M234","v":0},{"$f":"[1]RelatedPartyRevenue!M234","v":0},{"$f":"[1]RelatedPartyRevenue!O234","v":0},{"$f":"[1]RelatedPartyRevenue!O234","v":0},{"$f":"[1]RelatedPartyRevenue!Q234","v":0},{"$f":"[1]RelatedPartyRevenue!Q234","v":0},{"$f":"[1]RelatedPartyRevenue!S234","v":0},{"$f":"[1]RelatedPartyRevenue!S234","v":0},{"$f":"[1]RelatedPartyRevenue!U234","v":0},{"$f":"[1]RelatedPartyRevenue!U234","v":0},{"$f":"[1]RelatedPartyRevenue!V234","v":0},{"$f":"[1]RelatedPartyRevenue!V234","v":0},0,null,{"$f":"[1]RelatedPartyRevenue!X234","v":0},null,0,0,0,0,0,0]
[0,0,{"$f":"IFERROR(INDEX((Settings!$M$17:$M$236),MATCH(RelatedPartyRevenue!G235,Settings!$AD$18:$AD$166,0)),0)","v":0},null,null,{"$f":"[1]RelatedPartyRevenue!F235","v":0},{"$f":"[1]RelatedPartyRevenue!G235","v":0},{"$f":"[1]RelatedPartyRevenue!H235","v":0},null,{"$f":"[1]RelatedPartyRevenue!M235","v":0},{"$f":"[1]RelatedPartyRevenue!M235","v":0},{"$f":"[1]RelatedPartyRevenue!O235","v":0},{"$f":"[1]RelatedPartyRevenue!O235","v":0},{"$f":"[1]RelatedPartyRevenue!Q235","v":0},{"$f":"[1]RelatedPartyRevenue!Q235","v":0},{"$f":"[1]RelatedPartyRevenue!S235","v":0},{"$f":"[1]RelatedPartyRevenue!S235","v":0},{"$f":"[1]RelatedPartyRevenue!U235","v":0},{"$f":"[1]RelatedPartyRevenue!U235","v":0},{"$f":"[1]RelatedPartyRevenue!V235","v":0},{"$f":"[1]RelatedPartyRevenue!V235","v":0},0,null,{"$f":"[1]RelatedPartyRevenue!X235","v":0},null,0,0,0,0,0,0]
[0,0,{"$f":"IFERROR(INDEX((Settings!$M$17:$M$236),MATCH(RelatedPartyRevenue!G236,Settings!$AD$18:$AD$166,0)),0)","v":0},null,null,{"$f":"[1]RelatedPartyRevenue!F236","v":0},{"$f":"[1]RelatedPartyRevenue!G236","v":0},{"$f":"[1]RelatedPartyRevenue!H236","v":0},null,{"$f":"[1]RelatedPartyRevenue!M236","v":0},{"$f":"[1]RelatedPartyRevenue!M236","v":0},{"$f":"[1]RelatedPartyRevenue!O236","v":0},{"$f":"[1]RelatedPartyRevenue!O236","v":0},{"$f":"[1]RelatedPartyRevenue!Q236","v":0},{"$f":"[1]RelatedPartyRevenue!Q236","v":0},{"$f":"[1]RelatedPartyRevenue!S236","v":0},{"$f":"[1]RelatedPartyRevenue!S236","v":0},{"$f":"[1]RelatedPartyRevenue!U236","v":0},{"$f":"[1]RelatedPartyRevenue!U236","v":0},{"$f":"[1]RelatedPartyRevenue!V236","v":0},{"$f":"[1]RelatedPartyRevenue!V236","v":0},0,null,{"$f":"[1]RelatedPartyRevenue!X236","v":0},null,0,0,0,0,0,0]
[0,0,{"$f":"IFERROR(INDEX((Settings!$M$17:$M$236),MATCH(RelatedPartyRevenue!G237,Settings!$AD$18:$AD$166,0)),0)","v":0},null,null,{"$f":"[1]RelatedPartyRevenue!F237","v":0},{"$f":"[1]RelatedPartyRevenue!G237","v":0},{"$f":"[1]RelatedPartyRevenue!H237","v":0},null,{"$f":"[1]RelatedPartyRevenue!M237","v":0},{"$f":"[1]RelatedPartyRevenue!M237","v":0},{"$f":"[1]RelatedPartyRevenue!O237","v":0},{"$f":"[1]RelatedPartyRevenue!O237","v":0},{"$f":"[1]RelatedPartyRevenue!Q237","v":0},{"$f":"[1]RelatedPartyRevenue!Q237","v":0},{"$f":"[1]RelatedPartyRevenue!S237","v":0},{"$f":"[1]RelatedPartyRevenue!S237","v":0},{"$f":"[1]RelatedPartyRevenue!U237","v":0},{"$f":"[1]RelatedPartyRevenue!U237","v":0},{"$f":"[1]RelatedPartyRevenue!V237","v":0},{"$f":"[1]RelatedPartyRevenue!V237","v":0},0,null,{"$f":"[1]RelatedPartyRevenue!X237","v":0},null,0,0,0,0,0,0]
[0,0,{"$f":"IFERROR(INDEX((Settings!$M$17:$M$236),MATCH(RelatedPartyRevenue!G238,Settings!$AD$18:$AD$166,0)),0)","v":0},null,null,{"$f":"[1]RelatedPartyRevenue!F238","v":0},{"$f":"[1]RelatedPartyRevenue!G238","v":0},{"$f":"[1]RelatedPartyRevenue!H238","v":0},null,{"$f":"[1]RelatedPartyRevenue!M238","v":0},{"$f":"[1]RelatedPartyRevenue!M238","v":0},{"$f":"[1]RelatedPartyRevenue!O238","v":0},{"$f":"[1]RelatedPartyRevenue!O238","v":0},{"$f":"[1]RelatedPartyRevenue!Q238","v":0},{"$f":"[1]RelatedPartyRevenue!Q238","v":0},{"$f":"[1]RelatedPartyRevenue!S238","v":0},{"$f":"[1]RelatedPartyRevenue!S238","v":0},{"$f":"[1]RelatedPartyRevenue!U238","v":0},{"$f":"[1]RelatedPartyRevenue!U238","v":0},{"$f":"[1]RelatedPartyRevenue!V238","v":0},{"$f":"[1]RelatedPartyRevenue!V238","v":0},0,null,{"$f":"[1]RelatedPartyRevenue!X238","v":0},null,0,0,0,0,0,0]
[0,0,{"$f":"IFERROR(INDEX((Settings!$M$17:$M$236),MATCH(RelatedPartyRevenue!G239,Settings!$AD$18:$AD$166,0)),0)","v":0},null,null,{"$f":"[1]RelatedPartyRevenue!F239","v":0},{"$f":"[1]RelatedPartyRevenue!G239","v":0},{"$f":"[1]RelatedPartyRevenue!H239","v":0},null,{"$f":"[1]RelatedPartyRevenue!M239","v":0},{"$f":"[1]RelatedPartyRevenue!M239","v":0},{"$f":"[1]RelatedPartyRevenue!O239","v":0},{"$f":"[1]RelatedPartyRevenue!O239","v":0},{"$f":"[1]RelatedPartyRevenue!Q239","v":0},{"$f":"[1]RelatedPartyRevenue!Q239","v":0},{"$f":"[1]RelatedPartyRevenue!S239","v":0},{"$f":"[1]RelatedPartyRevenue!S239","v":0},{"$f":"[1]RelatedPartyRevenue!U239","v":0},{"$f":"[1]RelatedPartyRevenue!U239","v":0},{"$f":"[1]RelatedPartyRevenue!V239","v":0},{"$f":"[1]RelatedPartyRevenue!V239","v":0},0,null,{"$f":"[1]RelatedPartyRevenue!X239","v":0},null,0,0,0,0,0,0]
[0,0,{"$f":"IFERROR(INDEX((Settings!$M$17:$M$236),MATCH(RelatedPartyRevenue!G240,Settings!$AD$18:$AD$166,0)),0)","v":0},null,null,{"$f":"[1]RelatedPartyRevenue!F240","v":0},{"$f":"[1]RelatedPartyRevenue!G240","v":0},{"$f":"[1]RelatedPartyRevenue!H240","v":0},null,{"$f":"[1]RelatedPartyRevenue!M240","v":0},{"$f":"[1]RelatedPartyRevenue!M240","v":0},{"$f":"[1]RelatedPartyRevenue!O240","v":0},{"$f":"[1]RelatedPartyRevenue!O240","v":0},{"$f":"[1]RelatedPartyRevenue!Q240","v":0},{"$f":"[1]RelatedPartyRevenue!Q240","v":0},{"$f":"[1]RelatedPartyRevenue!S240","v":0},{"$f":"[1]RelatedPartyRevenue!S240","v":0},{"$f":"[1]RelatedPartyRevenue!U240","v":0},{"$f":"[1]RelatedPartyRevenue!U240","v":0},{"$f":"[1]RelatedPartyRevenue!V240","v":0},{"$f":"[1]RelatedPartyRevenue!V240","v":0},0,null,{"$f":"[1]RelatedPartyRevenue!X240","v":0},null,0,0,0,0,0,0]
[0,0,{"$f":"IFERROR(INDEX((Settings!$M$17:$M$236),MATCH(RelatedPartyRevenue!G241,Settings!$AD$18:$AD$166,0)),0)","v":0},null,null,{"$f":"[1]RelatedPartyRevenue!F241","v":0},{"$f":"[1]RelatedPartyRevenue!G241","v":0},{"$f":"[1]RelatedPartyRevenue!H241","v":0},null,{"$f":"[1]RelatedPartyRevenue!M241","v":0},{"$f":"[1]RelatedPartyRevenue!M241","v":0},{"$f":"[1]RelatedPartyRevenue!O241","v":0},{"$f":"[1]RelatedPartyRevenue!O241","v":0},{"$f":"[1]RelatedPartyRevenue!Q241","v":0},{"$f":"[1]RelatedPartyRevenue!Q241","v":0},{"$f":"[1]RelatedPartyRevenue!S241","v":0},{"$f":"[1]RelatedPartyRevenue!S241","v":0},{"$f":"[1]RelatedPartyRevenue!U241","v":0},{"$f":"[1]RelatedPartyRevenue!U241","v":0},{"$f":"[1]RelatedPartyRevenue!V241","v":0},{"$f":"[1]RelatedPartyRevenue!V241","v":0},0,null,{"$f":"[1]RelatedPartyRevenue!X241","v":0},null,0,0,0,0,0,0]
[0,0,{"$f":"IFERROR(INDEX((Settings!$M$17:$M$236),MATCH(RelatedPartyRevenue!G242,Settings!$AD$18:$AD$166,0)),0)","v":0},null,null,{"$f":"[1]RelatedPartyRevenue!F242","v":0},{"$f":"[1]RelatedPartyRevenue!G242","v":0},{"$f":"[1]RelatedPartyRevenue!H242","v":0},null,{"$f":"[1]RelatedPartyRevenue!M242","v":0},{"$f":"[1]RelatedPartyRevenue!M242","v":0},{"$f":"[1]RelatedPartyRevenue!O242","v":0},{"$f":"[1]RelatedPartyRevenue!O242","v":0},{"$f":"[1]RelatedPartyRevenue!Q242","v":0},{"$f":"[1]RelatedPartyRevenue!Q242","v":0},{"$f":"[1]RelatedPartyRevenue!S242","v":0},{"$f":"[1]RelatedPartyRevenue!S242","v":0},{"$f":"[1]RelatedPartyRevenue!U242","v":0},{"$f":"[1]RelatedPartyRevenue!U242","v":0},{"$f":"[1]RelatedPartyRevenue!V242","v":0},{"$f":"[1]RelatedPartyRevenue!V242","v":0},0,null,{"$f":"[1]RelatedPartyRevenue!X242","v":0},null,0,0,0,0,0,0]
[0,0,{"$f":"IFERROR(INDEX((Settings!$M$17:$M$236),MATCH(RelatedPartyRevenue!G243,Settings!$AD$18:$AD$166,0)),0)","v":0},null,null,{"$f":"[1]RelatedPartyRevenue!F243","v":0},{"$f":"[1]RelatedPartyRevenue!G243","v":0},{"$f":"[1]RelatedPartyRevenue!H243","v":0},null,{"$f":"[1]RelatedPartyRevenue!M243","v":0},{"$f":"[1]RelatedPartyRevenue!M243","v":0},{"$f":"[1]RelatedPartyRevenue!O243","v":0},{"$f":"[1]RelatedPartyRevenue!O243","v":0},{"$f":"[1]RelatedPartyRevenue!Q243","v":0},{"$f":"[1]RelatedPartyRevenue!Q243","v":0},{"$f":"[1]RelatedPartyRevenue!S243","v":0},{"$f":"[1]RelatedPartyRevenue!S243","v":0},{"$f":"[1]RelatedPartyRevenue!U243","v":0},{"$f":"[1]RelatedPartyRevenue!U243","v":0},{"$f":"[1]RelatedPartyRevenue!V243","v":0},{"$f":"[1]RelatedPartyRevenue!V243","v":0},0,null,{"$f":"[1]RelatedPartyRevenue!X243","v":0},null,0,0,0,0,0,0]
[0,0,{"$f":"IFERROR(INDEX((Settings!$M$17:$M$236),MATCH(RelatedPartyRevenue!G244,Settings!$AD$18:$AD$166,0)),0)","v":0},null,null,{"$f":"[1]RelatedPartyRevenue!F244","v":0},{"$f":"[1]RelatedPartyRevenue!G244","v":0},{"$f":"[1]RelatedPartyRevenue!H244","v":0},null,{"$f":"[1]RelatedPartyRevenue!M244","v":0},{"$f":"[1]RelatedPartyRevenue!M244","v":0},{"$f":"[1]RelatedPartyRevenue!O244","v":0},{"$f":"[1]RelatedPartyRevenue!O244","v":0},{"$f":"[1]RelatedPartyRevenue!Q244","v":0},{"$f":"[1]RelatedPartyRevenue!Q244","v":0},{"$f":"[1]RelatedPartyRevenue!S244","v":0},{"$f":"[1]RelatedPartyRevenue!S244","v":0},{"$f":"[1]RelatedPartyRevenue!U244","v":0},{"$f":"[1]RelatedPartyRevenue!U244","v":0},{"$f":"[1]RelatedPartyRevenue!V244","v":0},{"$f":"[1]RelatedPartyRevenue!V244","v":0},0,null,{"$f":"[1]RelatedPartyRevenue!X244","v":0},null,0,0,0,0,0,0]
[0,0,{"$f":"IFERROR(INDEX((Settings!$M$17:$M$236),MATCH(RelatedPartyRevenue!G245,Settings!$AD$18:$AD$166,0)),0)","v":0},null,null,{"$f":"[1]RelatedPartyRevenue!F245","v":0},{"$f":"[1]RelatedPartyRevenue!G245","v":0},{"$f":"[1]RelatedPartyRevenue!H245","v":0},null,{"$f":"[1]RelatedPartyRevenue!M245","v":0},{"$f":"[1]RelatedPartyRevenue!M245","v":0},{"$f":"[1]RelatedPartyRevenue!O245","v":0},{"$f":"[1]RelatedPartyRevenue!O245","v":0},{"$f":"[1]RelatedPartyRevenue!Q245","v":0},{"$f":"[1]RelatedPartyRevenue!Q245","v":0},{"$f":"[1]RelatedPartyRevenue!S245","v":0},{"$f":"[1]RelatedPartyRevenue!S245","v":0},{"$f":"[1]RelatedPartyRevenue!U245","v":0},{"$f":"[1]RelatedPartyRevenue!U245","v":0},{"$f":"[1]RelatedPartyRevenue!V245","v":0},{"$f":"[1]RelatedPartyRevenue!V245","v":0},0,null,{"$f":"[1]RelatedPartyRevenue!X245","v":0},null,0,0,0,0,0,0]
[0,0,{"$f":"IFERROR(INDEX((Settings!$M$17:$M$236),MATCH(RelatedPartyRevenue!G246,Settings!$AD$18:$AD$166,0)),0)","v":0},null,null,{"$f":"[1]RelatedPartyRevenue!F246","v":0},{"$f":"[1]RelatedPartyRevenue!G246","v":0},{"$f":"[1]RelatedPartyRevenue!H246","v":0},null,{"$f":"[1]RelatedPartyRevenue!M246","v":0},{"$f":"[1]RelatedPartyRevenue!M246","v":0},{"$f":"[1]RelatedPartyRevenue!O246","v":0},{"$f":"[1]RelatedPartyRevenue!O246","v":0},{"$f":"[1]RelatedPartyRevenue!Q246","v":0},{"$f":"[1]RelatedPartyRevenue!Q246","v":0},{"$f":"[1]RelatedPartyRevenue!S246","v":0},{"$f":"[1]RelatedPartyRevenue!S246","v":0},{"$f":"[1]RelatedPartyRevenue!U246","v":0},{"$f":"[1]RelatedPartyRevenue!U246","v":0},{"$f":"[1]RelatedPartyRevenue!V246","v":0},{"$f":"[1]RelatedPartyRevenue!V246","v":0},0,null,{"$f":"[1]RelatedPartyRevenue!X246","v":0},null,0,0,0,0,0,0]
[0,0,{"$f":"IFERROR(INDEX((Settings!$M$17:$M$236),MATCH(RelatedPartyRevenue!G247,Settings!$AD$18:$AD$166,0)),0)","v":0},null,null,{"$f":"[1]RelatedPartyRevenue!F247","v":0},{"$f":"[1]RelatedPartyRevenue!G247","v":0},{"$f":"[1]RelatedPartyRevenue!H247","v":0},null,{"$f":"[1]RelatedPartyRevenue!M247","v":0},{"$f":"[1]RelatedPartyRevenue!M247","v":0},{"$f":"[1]RelatedPartyRevenue!O247","v":0},{"$f":"[1]RelatedPartyRevenue!O247","v":0},{"$f":"[1]RelatedPartyRevenue!Q247","v":0},{"$f":"[1]RelatedPartyRevenue!Q247","v":0},{"$f":"[1]RelatedPartyRevenue!S247","v":0},{"$f":"[1]RelatedPartyRevenue!S247","v":0},{"$f":"[1]RelatedPartyRevenue!U247","v":0},{"$f":"[1]RelatedPartyRevenue!U247","v":0},{"$f":"[1]RelatedPartyRevenue!V247","v":0},{"$f":"[1]RelatedPartyRevenue!V247","v":0},0,null,{"$f":"[1]RelatedPartyRevenue!X247","v":0},null,0,0,0,0,0,0]
[0,0,{"$f":"IFERROR(INDEX((Settings!$M$17:$M$236),MATCH(RelatedPartyRevenue!G248,Settings!$AD$18:$AD$166,0)),0)","v":0},null,null,{"$f":"[1]RelatedPartyRevenue!F248","v":0},{"$f":"[1]RelatedPartyRevenue!G248","v":0},{"$f":"[1]RelatedPartyRevenue!H248","v":0},null,{"$f":"[1]RelatedPartyRevenue!M248","v":0},{"$f":"[1]RelatedPartyRevenue!M248","v":0},{"$f":"[1]RelatedPartyRevenue!O248","v":0},{"$f":"[1]RelatedPartyRevenue!O248","v":0},{"$f":"[1]RelatedPartyRevenue!Q248","v":0},{"$f":"[1]RelatedPartyRevenue!Q248","v":0},{"$f":"[1]RelatedPartyRevenue!S248","v":0},{"$f":"[1]RelatedPartyRevenue!S248","v":0},{"$f":"[1]RelatedPartyRevenue!U248","v":0},{"$f":"[1]RelatedPartyRevenue!U248","v":0},{"$f":"[1]RelatedPartyRevenue!V248","v":0},{"$f":"[1]RelatedPartyRevenue!V248","v":0},0,null,{"$f":"[1]RelatedPartyRevenue!X248","v":0},null,0,0,0,0,0,0]
[0,0,{"$f":"IFERROR(INDEX((Settings!$M$17:$M$236),MATCH(RelatedPartyRevenue!G249,Settings!$AD$18:$AD$166,0)),0)","v":0},null,null,{"$f":"[1]RelatedPartyRevenue!F249","v":0},{"$f":"[1]RelatedPartyRevenue!G249","v":0},{"$f":"[1]RelatedPartyRevenue!H249","v":0},null,{"$f":"[1]RelatedPartyRevenue!M249","v":0},{"$f":"[1]RelatedPartyRevenue!M249","v":0},{"$f":"[1]RelatedPartyRevenue!O249","v":0},{"$f":"[1]RelatedPartyRevenue!O249","v":0},{"$f":"[1]RelatedPartyRevenue!Q249","v":0},{"$f":"[1]RelatedPartyRevenue!Q249","v":0},{"$f":"[1]RelatedPartyRevenue!S249","v":0},{"$f":"[1]RelatedPartyRevenue!S249","v":0},{"$f":"[1]RelatedPartyRevenue!U249","v":0},{"$f":"[1]RelatedPartyRevenue!U249","v":0},{"$f":"[1]RelatedPartyRevenue!V249","v":0},{"$f":"[1]RelatedPartyRevenue!V249","v":0},0,null,{"$f":"[1]RelatedPartyRevenue!X249","v":0},null,0,0,0,0,0,0]
[0,0,{"$f":"IFERROR(INDEX((Settings!$M$17:$M$236),MATCH(RelatedPartyRevenue!G250,Settings!$AD$18:$AD$166,0)),0)","v":0},null,null,{"$f":"[1]RelatedPartyRevenue!F250","v":0},{"$f":"[1]RelatedPartyRevenue!G250","v":0},{"$f":"[1]RelatedPartyRevenue!H250","v":0},null,{"$f":"[1]RelatedPartyRevenue!M250","v":0},{"$f":"[1]RelatedPartyRevenue!M250","v":0},{"$f":"[1]RelatedPartyRevenue!O250","v":0},{"$f":"[1]RelatedPartyRevenue!O250","v":0},{"$f":"[1]RelatedPartyRevenue!Q250","v":0},{"$f":"[1]RelatedPartyRevenue!Q250","v":0},{"$f":"[1]RelatedPartyRevenue!S250","v":0},{"$f":"[1]RelatedPartyRevenue!S250","v":0},{"$f":"[1]RelatedPartyRevenue!U250","v":0},{"$f":"[1]RelatedPartyRevenue!U250","v":0},{"$f":"[1]RelatedPartyRevenue!V250","v":0},{"$f":"[1]RelatedPartyRevenue!V250","v":0},0,null,{"$f":"[1]RelatedPartyRevenue!X250","v":0},null,0,0,0,0,0,0]
[0,0,{"$f":"IFERROR(INDEX((Settings!$M$17:$M$236),MATCH(RelatedPartyRevenue!G251,Settings!$AD$18:$AD$166,0)),0)","v":0},null,null,{"$f":"[1]RelatedPartyRevenue!F251","v":0},{"$f":"[1]RelatedPartyRevenue!G251","v":0},{"$f":"[1]RelatedPartyRevenue!H251","v":0},null,{"$f":"[1]RelatedPartyRevenue!M251","v":0},{"$f":"[1]RelatedPartyRevenue!M251","v":0},{"$f":"[1]RelatedPartyRevenue!O251","v":0},{"$f":"[1]RelatedPartyRevenue!O251","v":0},{"$f":"[1]RelatedPartyRevenue!Q251","v":0},{"$f":"[1]RelatedPartyRevenue!Q251","v":0},{"$f":"[1]RelatedPartyRevenue!S251","v":0},{"$f":"[1]RelatedPartyRevenue!S251","v":0},{"$f":"[1]RelatedPartyRevenue!U251","v":0},{"$f":"[1]RelatedPartyRevenue!U251","v":0},{"$f":"[1]RelatedPartyRevenue!V251","v":0},{"$f":"[1]RelatedPartyRevenue!V251","v":0},0,null,{"$f":"[1]RelatedPartyRevenue!X251","v":0},null,0,0,0,0,0,0]
[0,0,{"$f":"IFERROR(INDEX((Settings!$M$17:$M$236),MATCH(RelatedPartyRevenue!G252,Settings!$AD$18:$AD$166,0)),0)","v":0},null,null,{"$f":"[1]RelatedPartyRevenue!F252","v":0},{"$f":"[1]RelatedPartyRevenue!G252","v":0},{"$f":"[1]RelatedPartyRevenue!H252","v":0},null,{"$f":"[1]RelatedPartyRevenue!M252","v":0},{"$f":"[1]RelatedPartyRevenue!M252","v":0},{"$f":"[1]RelatedPartyRevenue!O252","v":0},{"$f":"[1]RelatedPartyRevenue!O252","v":0},{"$f":"[1]RelatedPartyRevenue!Q252","v":0},{"$f":"[1]RelatedPartyRevenue!Q252","v":0},{"$f":"[1]RelatedPartyRevenue!S252","v":0},{"$f":"[1]RelatedPartyRevenue!S252","v":0},{"$f":"[1]RelatedPartyRevenue!U252","v":0},{"$f":"[1]RelatedPartyRevenue!U252","v":0},{"$f":"[1]RelatedPartyRevenue!V252","v":0},{"$f":"[1]RelatedPartyRevenue!V252","v":0},0,null,{"$f":"[1]RelatedPartyRevenue!X252","v":0},null,0,0,0,0,0,0]
[0,0,{"$f":"IFERROR(INDEX((Settings!$M$17:$M$236),MATCH(RelatedPartyRevenue!G253,Settings!$AD$18:$AD$166,0)),0)","v":0},null,null,{"$f":"[1]RelatedPartyRevenue!F253","v":0},{"$f":"[1]RelatedPartyRevenue!G253","v":0},{"$f":"[1]RelatedPartyRevenue!H253","v":0},null,{"$f":"[1]RelatedPartyRevenue!M253","v":0},{"$f":"[1]RelatedPartyRevenue!M253","v":0},{"$f":"[1]RelatedPartyRevenue!O253","v":0},{"$f":"[1]RelatedPartyRevenue!O253","v":0},{"$f":"[1]RelatedPartyRevenue!Q253","v":0},{"$f":"[1]RelatedPartyRevenue!Q253","v":0},{"$f":"[1]RelatedPartyRevenue!S253","v":0},{"$f":"[1]RelatedPartyRevenue!S253","v":0},{"$f":"[1]RelatedPartyRevenue!U253","v":0},{"$f":"[1]RelatedPartyRevenue!U253","v":0},{"$f":"[1]RelatedPartyRevenue!V253","v":0},{"$f":"[1]RelatedPartyRevenue!V253","v":0},0,null,{"$f":"[1]RelatedPartyRevenue!X253","v":0},null,0,0,0,0,0,0]
[0,0,{"$f":"IFERROR(INDEX((Settings!$M$17:$M$236),MATCH(RelatedPartyRevenue!G254,Settings!$AD$18:$AD$166,0)),0)","v":0},null,null,{"$f":"[1]RelatedPartyRevenue!F254","v":0},{"$f":"[1]RelatedPartyRevenue!G254","v":0},{"$f":"[1]RelatedPartyRevenue!H254","v":0},null,{"$f":"[1]RelatedPartyRevenue!M254","v":0},{"$f":"[1]RelatedPartyRevenue!M254","v":0},{"$f":"[1]RelatedPartyRevenue!O254","v":0},{"$f":"[1]RelatedPartyRevenue!O254","v":0},{"$f":"[1]RelatedPartyRevenue!Q254","v":0},{"$f":"[1]RelatedPartyRevenue!Q254","v":0},{"$f":"[1]RelatedPartyRevenue!S254","v":0},{"$f":"[1]RelatedPartyRevenue!S254","v":0},{"$f":"[1]RelatedPartyRevenue!U254","v":0},{"$f":"[1]RelatedPartyRevenue!U254","v":0},{"$f":"[1]RelatedPartyRevenue!V254","v":0},{"$f":"[1]RelatedPartyRevenue!V254","v":0},0,null,{"$f":"[1]RelatedPartyRevenue!X254","v":0},null,0,0,0,0,0,0]
[0,0,{"$f":"IFERROR(INDEX((Settings!$M$17:$M$236),MATCH(RelatedPartyRevenue!G255,Settings!$AD$18:$AD$166,0)),0)","v":0},null,null,{"$f":"[1]RelatedPartyRevenue!F255","v":0},{"$f":"[1]RelatedPartyRevenue!G255","v":0},{"$f":"[1]RelatedPartyRevenue!H255","v":0},null,{"$f":"[1]RelatedPartyRevenue!M255","v":0},{"$f":"[1]RelatedPartyRevenue!M255","v":0},{"$f":"[1]RelatedPartyRevenue!O255","v":0},{"$f":"[1]RelatedPartyRevenue!O255","v":0},{"$f":"[1]RelatedPartyRevenue!Q255","v":0},{"$f":"[1]RelatedPartyRevenue!Q255","v":0},{"$f":"[1]RelatedPartyRevenue!S255","v":0},{"$f":"[1]RelatedPartyRevenue!S255","v":0},{"$f":"[1]RelatedPartyRevenue!U255","v":0},{"$f":"[1]RelatedPartyRevenue!U255","v":0},{"$f":"[1]RelatedPartyRevenue!V255","v":0},{"$f":"[1]RelatedPartyRevenue!V255","v":0},0,null,{"$f":"[1]RelatedPartyRevenue!X255","v":0},null,0,0,0,0,0,0]
[0,0,{"$f":"IFERROR(INDEX((Settings!$M$17:$M$236),MATCH(RelatedPartyRevenue!G256,Settings!$AD$18:$AD$166,0)),0)","v":0},null,null,{"$f":"[1]RelatedPartyRevenue!F256","v":0},{"$f":"[1]RelatedPartyRevenue!G256","v":0},{"$f":"[1]RelatedPartyRevenue!H256","v":0},null,{"$f":"[1]RelatedPartyRevenue!M256","v":0},{"$f":"[1]RelatedPartyRevenue!M256","v":0},{"$f":"[1]RelatedPartyRevenue!O256","v":0},{"$f":"[1]RelatedPartyRevenue!O256","v":0},{"$f":"[1]RelatedPartyRevenue!Q256","v":0},{"$f":"[1]RelatedPartyRevenue!Q256","v":0},{"$f":"[1]RelatedPartyRevenue!S256","v":0},{"$f":"[1]RelatedPartyRevenue!S256","v":0},{"$f":"[1]RelatedPartyRevenue!U256","v":0},{"$f":"[1]RelatedPartyRevenue!U256","v":0},{"$f":"[1]RelatedPartyRevenue!V256","v":0},{"$f":"[1]RelatedPartyRevenue!V256","v":0},0,null,{"$f":"[1]RelatedPartyRevenue!X256","v":0},null,0,0,0,0,0,0]
[0,0,{"$f":"IFERROR(INDEX((Settings!$M$17:$M$236),MATCH(RelatedPartyRevenue!G257,Settings!$AD$18:$AD$166,0)),0)","v":0},null,null,{"$f":"[1]RelatedPartyRevenue!F257","v":0},{"$f":"[1]RelatedPartyRevenue!G257","v":0},{"$f":"[1]RelatedPartyRevenue!H257","v":0},null,{"$f":"[1]RelatedPartyRevenue!M257","v":0},{"$f":"[1]RelatedPartyRevenue!M257","v":0},{"$f":"[1]RelatedPartyRevenue!O257","v":0},{"$f":"[1]RelatedPartyRevenue!O257","v":0},{"$f":"[1]RelatedPartyRevenue!Q257","v":0},{"$f":"[1]RelatedPartyRevenue!Q257","v":0},{"$f":"[1]RelatedPartyRevenue!S257","v":0},{"$f":"[1]RelatedPartyRevenue!S257","v":0},{"$f":"[1]RelatedPartyRevenue!U257","v":0},{"$f":"[1]RelatedPartyRevenue!U257","v":0},{"$f":"[1]RelatedPartyRevenue!V257","v":0},{"$f":"[1]RelatedPartyRevenue!V257","v":0},0,null,{"$f":"[1]RelatedPartyRevenue!X257","v":0},null,0,0,0,0,0,0]
[0,0,{"$f":"IFERROR(INDEX((Settings!$M$17:$M$236),MATCH(RelatedPartyRevenue!G258,Settings!$AD$18:$AD$166,0)),0)","v":0},null,null,{"$f":"[1]RelatedPartyRevenue!F258","v":0},{"$f":"[1]RelatedPartyRevenue!G258","v":0},{"$f":"[1]RelatedPartyRevenue!H258","v":0},null,{"$f":"[1]RelatedPartyRevenue!M258","v":0},{"$f":"[1]RelatedPartyRevenue!M258","v":0},{"$f":"[1]RelatedPartyRevenue!O258","v":0},{"$f":"[1]RelatedPartyRevenue!O258","v":0},{"$f":"[1]RelatedPartyRevenue!Q258","v":0},{"$f":"[1]RelatedPartyRevenue!Q258","v":0},{"$f":"[1]RelatedPartyRevenue!S258","v":0},{"$f":"[1]RelatedPartyRevenue!S258","v":0},{"$f":"[1]RelatedPartyRevenue!U258","v":0},{"$f":"[1]RelatedPartyRevenue!U258","v":0},{"$f":"[1]RelatedPartyRevenue!V258","v":0},{"$f":"[1]RelatedPartyRevenue!V258","v":0},0,null,{"$f":"[1]RelatedPartyRevenue!X258","v":0},null,0,0,0,0,0,0]
[0,0,{"$f":"IFERROR(INDEX((Settings!$M$17:$M$236),MATCH(RelatedPartyRevenue!G259,Settings!$AD$18:$AD$166,0)),0)","v":0},null,null,{"$f":"[1]RelatedPartyRevenue!F259","v":0},{"$f":"[1]RelatedPartyRevenue!G259","v":0},{"$f":"[1]RelatedPartyRevenue!H259","v":0},null,{"$f":"[1]RelatedPartyRevenue!M259","v":0},{"$f":"[1]RelatedPartyRevenue!M259","v":0},{"$f":"[1]RelatedPartyRevenue!O259","v":0},{"$f":"[1]RelatedPartyRevenue!O259","v":0},{"$f":"[1]RelatedPartyRevenue!Q259","v":0},{"$f":"[1]RelatedPartyRevenue!Q259","v":0},{"$f":"[1]RelatedPartyRevenue!S259","v":0},{"$f":"[1]RelatedPartyRevenue!S259","v":0},{"$f":"[1]RelatedPartyRevenue!U259","v":0},{"$f":"[1]RelatedPartyRevenue!U259","v":0},{"$f":"[1]RelatedPartyRevenue!V259","v":0},{"$f":"[1]RelatedPartyRevenue!V259","v":0},0,null,{"$f":"[1]RelatedPartyRevenue!X259","v":0},null,0,0,0,0,0,0]
[0,0,{"$f":"IFERROR(INDEX((Settings!$M$17:$M$236),MATCH(RelatedPartyRevenue!G260,Settings!$AD$18:$AD$166,0)),0)","v":0},null,null,{"$f":"[1]RelatedPartyRevenue!F260","v":0},{"$f":"[1]RelatedPartyRevenue!G260","v":0},{"$f":"[1]RelatedPartyRevenue!H260","v":0},null,{"$f":"[1]RelatedPartyRevenue!M260","v":0},{"$f":"[1]RelatedPartyRevenue!M260","v":0},{"$f":"[1]RelatedPartyRevenue!O260","v":0},{"$f":"[1]RelatedPartyRevenue!O260","v":0},{"$f":"[1]RelatedPartyRevenue!Q260","v":0},{"$f":"[1]RelatedPartyRevenue!Q260","v":0},{"$f":"[1]RelatedPartyRevenue!S260","v":0},{"$f":"[1]RelatedPartyRevenue!S260","v":0},{"$f":"[1]RelatedPartyRevenue!U260","v":0},{"$f":"[1]RelatedPartyRevenue!U260","v":0},{"$f":"[1]RelatedPartyRevenue!V260","v":0},{"$f":"[1]RelatedPartyRevenue!V260","v":0},0,null,{"$f":"[1]RelatedPartyRevenue!X260","v":0},null,0,0,0,0,0,0]
[0,0,{"$f":"IFERROR(INDEX((Settings!$M$17:$M$236),MATCH(RelatedPartyRevenue!G261,Settings!$AD$18:$AD$166,0)),0)","v":0},null,null,{"$f":"[1]RelatedPartyRevenue!F261","v":0},{"$f":"[1]RelatedPartyRevenue!G261","v":0},{"$f":"[1]RelatedPartyRevenue!H261","v":0},null,{"$f":"[1]RelatedPartyRevenue!M261","v":0},{"$f":"[1]RelatedPartyRevenue!M261","v":0},{"$f":"[1]RelatedPartyRevenue!O261","v":0},{"$f":"[1]RelatedPartyRevenue!O261","v":0},{"$f":"[1]RelatedPartyRevenue!Q261","v":0},{"$f":"[1]RelatedPartyRevenue!Q261","v":0},{"$f":"[1]RelatedPartyRevenue!S261","v":0},{"$f":"[1]RelatedPartyRevenue!S261","v":0},{"$f":"[1]RelatedPartyRevenue!U261","v":0},{"$f":"[1]RelatedPartyRevenue!U261","v":0},{"$f":"[1]RelatedPartyRevenue!V261","v":0},{"$f":"[1]RelatedPartyRevenue!V261","v":0},0,null,{"$f":"[1]RelatedPartyRevenue!X261","v":0},null,0,0,0,0,0,0]
[0,0,{"$f":"IFERROR(INDEX((Settings!$M$17:$M$236),MATCH(RelatedPartyRevenue!G262,Settings!$AD$18:$AD$166,0)),0)","v":0},null,null,{"$f":"[1]RelatedPartyRevenue!F262","v":0},{"$f":"[1]RelatedPartyRevenue!G262","v":0},{"$f":"[1]RelatedPartyRevenue!H262","v":0},null,{"$f":"[1]RelatedPartyRevenue!M262","v":0},{"$f":"[1]RelatedPartyRevenue!M262","v":0},{"$f":"[1]RelatedPartyRevenue!O262","v":0},{"$f":"[1]RelatedPartyRevenue!O262","v":0},{"$f":"[1]RelatedPartyRevenue!Q262","v":0},{"$f":"[1]RelatedPartyRevenue!Q262","v":0},{"$f":"[1]RelatedPartyRevenue!S262","v":0},{"$f":"[1]RelatedPartyRevenue!S262","v":0},{"$f":"[1]RelatedPartyRevenue!U262","v":0},{"$f":"[1]RelatedPartyRevenue!U262","v":0},{"$f":"[1]RelatedPartyRevenue!V262","v":0},{"$f":"[1]RelatedPartyRevenue!V262","v":0},0,null,{"$f":"[1]RelatedPartyRevenue!X262","v":0},null,0,0,0,0,0,0]
[0,0,{"$f":"IFERROR(INDEX((Settings!$M$17:$M$236),MATCH(RelatedPartyRevenue!G263,Settings!$AD$18:$AD$166,0)),0)","v":0},null,null,{"$f":"[1]RelatedPartyRevenue!F263","v":0},{"$f":"[1]RelatedPartyRevenue!G263","v":0},{"$f":"[1]RelatedPartyRevenue!H263","v":0},null,{"$f":"[1]RelatedPartyRevenue!M263","v":0},{"$f":"[1]RelatedPartyRevenue!M263","v":0},{"$f":"[1]RelatedPartyRevenue!O263","v":0},{"$f":"[1]RelatedPartyRevenue!O263","v":0},{"$f":"[1]RelatedPartyRevenue!Q263","v":0},{"$f":"[1]RelatedPartyRevenue!Q263","v":0},{"$f":"[1]RelatedPartyRevenue!S263","v":0},{"$f":"[1]RelatedPartyRevenue!S263","v":0},{"$f":"[1]RelatedPartyRevenue!U263","v":0},{"$f":"[1]RelatedPartyRevenue!U263","v":0},{"$f":"[1]RelatedPartyRevenue!V263","v":0},{"$f":"[1]RelatedPartyRevenue!V263","v":0},0,null,{"$f":"[1]RelatedPartyRevenue!X263","v":0},null,0,0,0,0,0,0]
[0,0,{"$f":"IFERROR(INDEX((Settings!$M$17:$M$236),MATCH(RelatedPartyRevenue!G264,Settings!$AD$18:$AD$166,0)),0)","v":0},null,null,{"$f":"[1]RelatedPartyRevenue!F264","v":0},{"$f":"[1]RelatedPartyRevenue!G264","v":0},{"$f":"[1]RelatedPartyRevenue!H264","v":0},null,{"$f":"[1]RelatedPartyRevenue!M264","v":0},{"$f":"[1]RelatedPartyRevenue!M264","v":0},{"$f":"[1]RelatedPartyRevenue!O264","v":0},{"$f":"[1]RelatedPartyRevenue!O264","v":0},{"$f":"[1]RelatedPartyRevenue!Q264","v":0},{"$f":"[1]RelatedPartyRevenue!Q264","v":0},{"$f":"[1]RelatedPartyRevenue!S264","v":0},{"$f":"[1]RelatedPartyRevenue!S264","v":0},{"$f":"[1]RelatedPartyRevenue!U264","v":0},{"$f":"[1]RelatedPartyRevenue!U264","v":0},{"$f":"[1]RelatedPartyRevenue!V264","v":0},{"$f":"[1]RelatedPartyRevenue!V264","v":0},0,null,{"$f":"[1]RelatedPartyRevenue!X264","v":0},null,0,0,0,0,0,0]
[0,0,{"$f":"IFERROR(INDEX((Settings!$M$17:$M$236),MATCH(RelatedPartyRevenue!G265,Settings!$AD$18:$AD$166,0)),0)","v":0},null,null,{"$f":"[1]RelatedPartyRevenue!F265","v":0},{"$f":"[1]RelatedPartyRevenue!G265","v":0},{"$f":"[1]RelatedPartyRevenue!H265","v":0},null,{"$f":"[1]RelatedPartyRevenue!M265","v":0},{"$f":"[1]RelatedPartyRevenue!M265","v":0},{"$f":"[1]RelatedPartyRevenue!O265","v":0},{"$f":"[1]RelatedPartyRevenue!O265","v":0},{"$f":"[1]RelatedPartyRevenue!Q265","v":0},{"$f":"[1]RelatedPartyRevenue!Q265","v":0},{"$f":"[1]RelatedPartyRevenue!S265","v":0},{"$f":"[1]RelatedPartyRevenue!S265","v":0},{"$f":"[1]RelatedPartyRevenue!U265","v":0},{"$f":"[1]RelatedPartyRevenue!U265","v":0},{"$f":"[1]RelatedPartyRevenue!V265","v":0},{"$f":"[1]RelatedPartyRevenue!V265","v":0},0,null,{"$f":"[1]RelatedPartyRevenue!X265","v":0},null,0,0,0,0,0,0]
[0,0,{"$f":"IFERROR(INDEX((Settings!$M$17:$M$236),MATCH(RelatedPartyRevenue!G266,Settings!$AD$18:$AD$166,0)),0)","v":0},null,null,{"$f":"[1]RelatedPartyRevenue!F266","v":0},{"$f":"[1]RelatedPartyRevenue!G266","v":0},{"$f":"[1]RelatedPartyRevenue!H266","v":0},null,{"$f":"[1]RelatedPartyRevenue!M266","v":0},{"$f":"[1]RelatedPartyRevenue!M266","v":0},{"$f":"[1]RelatedPartyRevenue!O266","v":0},{"$f":"[1]RelatedPartyRevenue!O266","v":0},{"$f":"[1]RelatedPartyRevenue!Q266","v":0},{"$f":"[1]RelatedPartyRevenue!Q266","v":0},{"$f":"[1]RelatedPartyRevenue!S266","v":0},{"$f":"[1]RelatedPartyRevenue!S266","v":0},{"$f":"[1]RelatedPartyRevenue!U266","v":0},{"$f":"[1]RelatedPartyRevenue!U266","v":0},{"$f":"[1]RelatedPartyRevenue!V266","v":0},{"$f":"[1]RelatedPartyRevenue!V266","v":0},0,null,{"$f":"[1]RelatedPartyRevenue!X266","v":0},null,0,0,0,0,0,0]
[0,{"$f":"IF($G267=$G$7,1,0)","v":0},{"$f":"IFERROR(INDEX((Settings!$M$17:$M$236),MATCH(RelatedPartyRevenue!G267,Settings!$AD$18:$AD$166,0)),0)","v":0},null,null,{"$f":"[1]RelatedPartyRevenue!F267","v":0},{"$f":"[1]RelatedPartyRevenue!G267","v":0},{"$f":"[1]RelatedPartyRevenue!H267","v":0},null,{"$f":"[1]RelatedPartyRevenue!M267","v":0},{"$f":"[1]RelatedPartyRevenue!M267","v":0},{"$f":"[1]RelatedPartyRevenue!O267","v":0},{"$f":"[1]RelatedPartyRevenue!O267","v":0},{"$f":"[1]RelatedPartyRevenue!Q267","v":0},{"$f":"[1]RelatedPartyRevenue!Q267","v":0},{"$f":"[1]RelatedPartyRevenue!S267","v":0},{"$f":"[1]RelatedPartyRevenue!S267","v":0},{"$f":"[1]RelatedPartyRevenue!U267","v":0},{"$f":"[1]RelatedPartyRevenue!U267","v":0},{"$f":"[1]RelatedPartyRevenue!V267","v":0},{"$f":"[1]RelatedPartyRevenue!V267","v":0},0,null,{"$f":"[1]RelatedPartyRevenue!X267","v":0},null,0,0,0,0,0,0]
[{"$f":"IF(SUM(J268:V268)>0,1,0)","v":0},0,{"$f":"IFERROR(INDEX((Settings!$M$17:$M$236),MATCH(RelatedPartyRevenue!G268,Settings!$AD$18:$AD$166,0)),0)","v":0},null,null,{"$f":"[1]RelatedPartyRevenue!F268","v":0},{"$f":"[1]RelatedPartyRevenue!G268","v":0},{"$f":"[1]RelatedPartyRevenue!H268","v":0},null,{"$f":"[1]RelatedPartyRevenue!M268","v":0},{"$f":"[1]RelatedPartyRevenue!M268","v":0},{"$f":"[1]RelatedPartyRevenue!O268","v":0},{"$f":"[1]RelatedPartyRevenue!O268","v":0},{"$f":"[1]RelatedPartyRevenue!Q268","v":0},{"$f":"[1]RelatedPartyRevenue!Q268","v":0},{"$f":"[1]RelatedPartyRevenue!S268","v":0},{"$f":"[1]RelatedPartyRevenue!S268","v":0},{"$f":"[1]RelatedPartyRevenue!U268","v":0},{"$f":"[1]RelatedPartyRevenue!U268","v":0},{"$f":"[1]RelatedPartyRevenue!V268","v":0},{"$f":"[1]RelatedPartyRevenue!V268","v":0},0,null,{"$f":"[1]RelatedPartyRevenue!X268","v":0},null,{"$f":"K268-J268","v":0},{"$f":"M268-L268","v":0},0,0,0,0]
[0,0,{"$f":"IFERROR(INDEX((Settings!$M$17:$M$236),MATCH(RelatedPartyRevenue!G269,Settings!$AD$18:$AD$166,0)),0)","v":0},null,null,{"$f":"[1]RelatedPartyRevenue!F269","v":0},{"$f":"[1]RelatedPartyRevenue!G269","v":0},{"$f":"[1]RelatedPartyRevenue!H269","v":0},null,{"$f":"[1]RelatedPartyRevenue!M269","v":0},{"$f":"[1]RelatedPartyRevenue!M269","v":0},{"$f":"[1]RelatedPartyRevenue!O269","v":0},{"$f":"[1]RelatedPartyRevenue!O269","v":0},{"$f":"[1]RelatedPartyRevenue!Q269","v":0},{"$f":"[1]RelatedPartyRevenue!Q269","v":0},{"$f":"[1]RelatedPartyRevenue!S269","v":0},{"$f":"[1]RelatedPartyRevenue!S269","v":0},{"$f":"[1]RelatedPartyRevenue!U269","v":0},{"$f":"[1]RelatedPartyRevenue!U269","v":0},{"$f":"[1]RelatedPartyRevenue!V269","v":0},{"$f":"[1]RelatedPartyRevenue!V269","v":0},0,null,{"$f":"[1]RelatedPartyRevenue!X269","v":0},null,0,0,{"$f":"O269-N269","v":0},{"$f":"Q269-P269","v":0},{"$f":"S269-R269","v":0},{"$f":"U269-T269","v":0}]
[0,0,{"$f":"IFERROR(INDEX((Settings!$M$17:$M$236),MATCH(RelatedPartyRevenue!G270,Settings!$AD$18:$AD$166,0)),0)","v":0},null,null,{"$f":"[1]RelatedPartyRevenue!F270","v":0},{"$f":"[1]RelatedPartyRevenue!G270","v":0},{"$f":"[1]RelatedPartyRevenue!H270","v":0},null,{"$f":"[1]RelatedPartyRevenue!M270","v":0},{"$f":"[1]RelatedPartyRevenue!M270","v":0},{"$f":"[1]RelatedPartyRevenue!O270","v":0},{"$f":"[1]RelatedPartyRevenue!O270","v":0},{"$f":"[1]RelatedPartyRevenue!Q270","v":0},{"$f":"[1]RelatedPartyRevenue!Q270","v":0},{"$f":"[1]RelatedPartyRevenue!S270","v":0},{"$f":"[1]RelatedPartyRevenue!S270","v":0},{"$f":"[1]RelatedPartyRevenue!U270","v":0},{"$f":"[1]RelatedPartyRevenue!U270","v":0},{"$f":"[1]RelatedPartyRevenue!V270","v":0},{"$f":"[1]RelatedPartyRevenue!V270","v":0},0,null,{"$f":"[1]RelatedPartyRevenue!X270","v":0},null,0,0,0,0,0,0]
[0,0,{"$f":"IFERROR(INDEX((Settings!$M$17:$M$236),MATCH(RelatedPartyRevenue!G271,Settings!$AD$18:$AD$166,0)),0)","v":0},null,null,{"$f":"[1]RelatedPartyRevenue!F271","v":0},{"$f":"[1]RelatedPartyRevenue!G271","v":0},{"$f":"[1]RelatedPartyRevenue!H271","v":0},null,{"$f":"[1]RelatedPartyRevenue!M271","v":0},{"$f":"[1]RelatedPartyRevenue!M271","v":0},{"$f":"[1]RelatedPartyRevenue!O271","v":0},{"$f":"[1]RelatedPartyRevenue!O271","v":0},{"$f":"[1]RelatedPartyRevenue!Q271","v":0},{"$f":"[1]RelatedPartyRevenue!Q271","v":0},{"$f":"[1]RelatedPartyRevenue!S271","v":0},{"$f":"[1]RelatedPartyRevenue!S271","v":0},{"$f":"[1]RelatedPartyRevenue!U271","v":0},{"$f":"[1]RelatedPartyRevenue!U271","v":0},{"$f":"[1]RelatedPartyRevenue!V271","v":0},{"$f":"[1]RelatedPartyRevenue!V271","v":0},0,null,{"$f":"[1]RelatedPartyRevenue!X271","v":0},null,0,0,0,0,0,0]
[0,0,{"$f":"IFERROR(INDEX((Settings!$M$17:$M$236),MATCH(RelatedPartyRevenue!G272,Settings!$AD$18:$AD$166,0)),0)","v":0},null,null,{"$f":"[1]RelatedPartyRevenue!F272","v":0},{"$f":"[1]RelatedPartyRevenue!G272","v":0},{"$f":"[1]RelatedPartyRevenue!H272","v":0},null,{"$f":"[1]RelatedPartyRevenue!M272","v":0},{"$f":"[1]RelatedPartyRevenue!M272","v":0},{"$f":"[1]RelatedPartyRevenue!O272","v":0},{"$f":"[1]RelatedPartyRevenue!O272","v":0},{"$f":"[1]RelatedPartyRevenue!Q272","v":0},{"$f":"[1]RelatedPartyRevenue!Q272","v":0},{"$f":"[1]RelatedPartyRevenue!S272","v":0},{"$f":"[1]RelatedPartyRevenue!S272","v":0},{"$f":"[1]RelatedPartyRevenue!U272","v":0},{"$f":"[1]RelatedPartyRevenue!U272","v":0},{"$f":"[1]RelatedPartyRevenue!V272","v":0},{"$f":"[1]RelatedPartyRevenue!V272","v":0},0,null,{"$f":"[1]RelatedPartyRevenue!X272","v":0},null,0,0,0,0,0,0]
[0,0,{"$f":"IFERROR(INDEX((Settings!$M$17:$M$236),MATCH(RelatedPartyRevenue!G273,Settings!$AD$18:$AD$166,0)),0)","v":0},null,null,{"$f":"[1]RelatedPartyRevenue!F273","v":0},{"$f":"[1]RelatedPartyRevenue!G273","v":0},{"$f":"[1]RelatedPartyRevenue!H273","v":0},null,{"$f":"[1]RelatedPartyRevenue!M273","v":0},{"$f":"[1]RelatedPartyRevenue!M273","v":0},{"$f":"[1]RelatedPartyRevenue!O273","v":0},{"$f":"[1]RelatedPartyRevenue!O273","v":0},{"$f":"[1]RelatedPartyRevenue!Q273","v":0},{"$f":"[1]RelatedPartyRevenue!Q273","v":0},{"$f":"[1]RelatedPartyRevenue!S273","v":0},{"$f":"[1]RelatedPartyRevenue!S273","v":0},{"$f":"[1]RelatedPartyRevenue!U273","v":0},{"$f":"[1]RelatedPartyRevenue!U273","v":0},{"$f":"[1]RelatedPartyRevenue!V273","v":0},{"$f":"[1]RelatedPartyRevenue!V273","v":0},0,null,{"$f":"[1]RelatedPartyRevenue!X273","v":0},null,0,0,0,0,0,0]
[0,0,{"$f":"IFERROR(INDEX((Settings!$M$17:$M$236),MATCH(RelatedPartyRevenue!G274,Settings!$AD$18:$AD$166,0)),0)","v":0},null,null,{"$f":"[1]RelatedPartyRevenue!F274","v":0},{"$f":"[1]RelatedPartyRevenue!G274","v":0},{"$f":"[1]RelatedPartyRevenue!H274","v":0},null,{"$f":"[1]RelatedPartyRevenue!M274","v":0},{"$f":"[1]RelatedPartyRevenue!M274","v":0},{"$f":"[1]RelatedPartyRevenue!O274","v":0},{"$f":"[1]RelatedPartyRevenue!O274","v":0},{"$f":"[1]RelatedPartyRevenue!Q274","v":0},{"$f":"[1]RelatedPartyRevenue!Q274","v":0},{"$f":"[1]RelatedPartyRevenue!S274","v":0},{"$f":"[1]RelatedPartyRevenue!S274","v":0},{"$f":"[1]RelatedPartyRevenue!U274","v":0},{"$f":"[1]RelatedPartyRevenue!U274","v":0},{"$f":"[1]RelatedPartyRevenue!V274","v":0},{"$f":"[1]RelatedPartyRevenue!V274","v":0},0,null,{"$f":"[1]RelatedPartyRevenue!X274","v":0},null,0,0,0,0,0,0]
[0,0,{"$f":"IFERROR(INDEX((Settings!$M$17:$M$236),MATCH(RelatedPartyRevenue!G275,Settings!$AD$18:$AD$166,0)),0)","v":0},null,null,{"$f":"[1]RelatedPartyRevenue!F275","v":0},{"$f":"[1]RelatedPartyRevenue!G275","v":0},{"$f":"[1]RelatedPartyRevenue!H275","v":0},null,{"$f":"[1]RelatedPartyRevenue!M275","v":0},{"$f":"[1]RelatedPartyRevenue!M275","v":0},{"$f":"[1]RelatedPartyRevenue!O275","v":0},{"$f":"[1]RelatedPartyRevenue!O275","v":0},{"$f":"[1]RelatedPartyRevenue!Q275","v":0},{"$f":"[1]RelatedPartyRevenue!Q275","v":0},{"$f":"[1]RelatedPartyRevenue!S275","v":0},{"$f":"[1]RelatedPartyRevenue!S275","v":0},{"$f":"[1]RelatedPartyRevenue!U275","v":0},{"$f":"[1]RelatedPartyRevenue!U275","v":0},{"$f":"[1]RelatedPartyRevenue!V275","v":0},{"$f":"[1]RelatedPartyRevenue!V275","v":0},0,null,{"$f":"[1]RelatedPartyRevenue!X275","v":0},null,0,0,0,0,0,0]
[0,0,{"$f":"IFERROR(INDEX((Settings!$M$17:$M$236),MATCH(RelatedPartyRevenue!G276,Settings!$AD$18:$AD$166,0)),0)","v":0},null,null,{"$f":"[1]RelatedPartyRevenue!F276","v":0},{"$f":"[1]RelatedPartyRevenue!G276","v":0},{"$f":"[1]RelatedPartyRevenue!H276","v":0},null,{"$f":"[1]RelatedPartyRevenue!M276","v":0},{"$f":"[1]RelatedPartyRevenue!M276","v":0},{"$f":"[1]RelatedPartyRevenue!O276","v":0},{"$f":"[1]RelatedPartyRevenue!O276","v":0},{"$f":"[1]RelatedPartyRevenue!Q276","v":0},{"$f":"[1]RelatedPartyRevenue!Q276","v":0},{"$f":"[1]RelatedPartyRevenue!S276","v":0},{"$f":"[1]RelatedPartyRevenue!S276","v":0},{"$f":"[1]RelatedPartyRevenue!U276","v":0},{"$f":"[1]RelatedPartyRevenue!U276","v":0},{"$f":"[1]RelatedPartyRevenue!V276","v":0},{"$f":"[1]RelatedPartyRevenue!V276","v":0},0,null,{"$f":"[1]RelatedPartyRevenue!X276","v":0},null,0,0,0,0,0,0]
[0,0,{"$f":"IFERROR(INDEX((Settings!$M$17:$M$236),MATCH(RelatedPartyRevenue!G277,Settings!$AD$18:$AD$166,0)),0)","v":0},null,null,{"$f":"[1]RelatedPartyRevenue!F277","v":0},{"$f":"[1]RelatedPartyRevenue!G277","v":0},{"$f":"[1]RelatedPartyRevenue!H277","v":0},null,{"$f":"[1]RelatedPartyRevenue!M277","v":0},{"$f":"[1]RelatedPartyRevenue!M277","v":0},{"$f":"[1]RelatedPartyRevenue!O277","v":0},{"$f":"[1]RelatedPartyRevenue!O277","v":0},{"$f":"[1]RelatedPartyRevenue!Q277","v":0},{"$f":"[1]RelatedPartyRevenue!Q277","v":0},{"$f":"[1]RelatedPartyRevenue!S277","v":0},{"$f":"[1]RelatedPartyRevenue!S277","v":0},{"$f":"[1]RelatedPartyRevenue!U277","v":0},{"$f":"[1]RelatedPartyRevenue!U277","v":0},{"$f":"[1]RelatedPartyRevenue!V277","v":0},{"$f":"[1]RelatedPartyRevenue!V277","v":0},0,null,{"$f":"[1]RelatedPartyRevenue!X277","v":0},null,0,0,0,0,0,0]
[0,0,{"$f":"IFERROR(INDEX((Settings!$M$17:$M$236),MATCH(RelatedPartyRevenue!G278,Settings!$AD$18:$AD$166,0)),0)","v":0},null,null,{"$f":"[1]RelatedPartyRevenue!F278","v":0},{"$f":"[1]RelatedPartyRevenue!G278","v":0},{"$f":"[1]RelatedPartyRevenue!H278","v":0},null,{"$f":"[1]RelatedPartyRevenue!M278","v":0},{"$f":"[1]RelatedPartyRevenue!M278","v":0},{"$f":"[1]RelatedPartyRevenue!O278","v":0},{"$f":"[1]RelatedPartyRevenue!O278","v":0},{"$f":"[1]RelatedPartyRevenue!Q278","v":0},{"$f":"[1]RelatedPartyRevenue!Q278","v":0},{"$f":"[1]RelatedPartyRevenue!S278","v":0},{"$f":"[1]RelatedPartyRevenue!S278","v":0},{"$f":"[1]RelatedPartyRevenue!U278","v":0},{"$f":"[1]RelatedPartyRevenue!U278","v":0},{"$f":"[1]RelatedPartyRevenue!V278","v":0},{"$f":"[1]RelatedPartyRevenue!V278","v":0},0,null,{"$f":"[1]RelatedPartyRevenue!X278","v":0},null,0,0,0,0,0,0]
[0,0,{"$f":"IFERROR(INDEX((Settings!$M$17:$M$236),MATCH(RelatedPartyRevenue!G279,Settings!$AD$18:$AD$166,0)),0)","v":0},null,null,{"$f":"[1]RelatedPartyRevenue!F279","v":0},{"$f":"[1]RelatedPartyRevenue!G279","v":0},{"$f":"[1]RelatedPartyRevenue!H279","v":0},null,{"$f":"[1]RelatedPartyRevenue!M279","v":0},{"$f":"[1]RelatedPartyRevenue!M279","v":0},{"$f":"[1]RelatedPartyRevenue!O279","v":0},{"$f":"[1]RelatedPartyRevenue!O279","v":0},{"$f":"[1]RelatedPartyRevenue!Q279","v":0},{"$f":"[1]RelatedPartyRevenue!Q279","v":0},{"$f":"[1]RelatedPartyRevenue!S279","v":0},{"$f":"[1]RelatedPartyRevenue!S279","v":0},{"$f":"[1]RelatedPartyRevenue!U279","v":0},{"$f":"[1]RelatedPartyRevenue!U279","v":0},{"$f":"[1]RelatedPartyRevenue!V279","v":0},{"$f":"[1]RelatedPartyRevenue!V279","v":0},0,null,{"$f":"[1]RelatedPartyRevenue!X279","v":0},null,0,0,0,0,0,0]
[0,0,{"$f":"IFERROR(INDEX((Settings!$M$17:$M$236),MATCH(RelatedPartyRevenue!G280,Settings!$AD$18:$AD$166,0)),0)","v":0},null,null,{"$f":"[1]RelatedPartyRevenue!F280","v":0},{"$f":"[1]RelatedPartyRevenue!G280","v":0},{"$f":"[1]RelatedPartyRevenue!H280","v":0},null,{"$f":"[1]RelatedPartyRevenue!M280","v":0},{"$f":"[1]RelatedPartyRevenue!M280","v":0},{"$f":"[1]RelatedPartyRevenue!O280","v":0},{"$f":"[1]RelatedPartyRevenue!O280","v":0},{"$f":"[1]RelatedPartyRevenue!Q280","v":0},{"$f":"[1]RelatedPartyRevenue!Q280","v":0},{"$f":"[1]RelatedPartyRevenue!S280","v":0},{"$f":"[1]RelatedPartyRevenue!S280","v":0},{"$f":"[1]RelatedPartyRevenue!U280","v":0},{"$f":"[1]RelatedPartyRevenue!U280","v":0},{"$f":"[1]RelatedPartyRevenue!V280","v":0},{"$f":"[1]RelatedPartyRevenue!V280","v":0},0,null,{"$f":"[1]RelatedPartyRevenue!X280","v":0},null,0,0,0,0,0,0]
[0,0,{"$f":"IFERROR(INDEX((Settings!$M$17:$M$236),MATCH(RelatedPartyRevenue!G281,Settings!$AD$18:$AD$166,0)),0)","v":0},null,null,{"$f":"[1]RelatedPartyRevenue!F281","v":0},{"$f":"[1]RelatedPartyRevenue!G281","v":0},{"$f":"[1]RelatedPartyRevenue!H281","v":0},null,{"$f":"[1]RelatedPartyRevenue!M281","v":0},{"$f":"[1]RelatedPartyRevenue!M281","v":0},{"$f":"[1]RelatedPartyRevenue!O281","v":0},{"$f":"[1]RelatedPartyRevenue!O281","v":0},{"$f":"[1]RelatedPartyRevenue!Q281","v":0},{"$f":"[1]RelatedPartyRevenue!Q281","v":0},{"$f":"[1]RelatedPartyRevenue!S281","v":0},{"$f":"[1]RelatedPartyRevenue!S281","v":0},{"$f":"[1]RelatedPartyRevenue!U281","v":0},{"$f":"[1]RelatedPartyRevenue!U281","v":0},{"$f":"[1]RelatedPartyRevenue!V281","v":0},{"$f":"[1]RelatedPartyRevenue!V281","v":0},0,null,{"$f":"[1]RelatedPartyRevenue!X281","v":0},null,0,0,0,0,0,0]
[0,0,{"$f":"IFERROR(INDEX((Settings!$M$17:$M$236),MATCH(RelatedPartyRevenue!G282,Settings!$AD$18:$AD$166,0)),0)","v":0},null,null,{"$f":"[1]RelatedPartyRevenue!F282","v":0},{"$f":"[1]RelatedPartyRevenue!G282","v":0},{"$f":"[1]RelatedPartyRevenue!H282","v":0},null,{"$f":"[1]RelatedPartyRevenue!M282","v":0},{"$f":"[1]RelatedPartyRevenue!M282","v":0},{"$f":"[1]RelatedPartyRevenue!O282","v":0},{"$f":"[1]RelatedPartyRevenue!O282","v":0},{"$f":"[1]RelatedPartyRevenue!Q282","v":0},{"$f":"[1]RelatedPartyRevenue!Q282","v":0},{"$f":"[1]RelatedPartyRevenue!S282","v":0},{"$f":"[1]RelatedPartyRevenue!S282","v":0},{"$f":"[1]RelatedPartyRevenue!U282","v":0},{"$f":"[1]RelatedPartyRevenue!U282","v":0},{"$f":"[1]RelatedPartyRevenue!V282","v":0},{"$f":"[1]RelatedPartyRevenue!V282","v":0},0,null,{"$f":"[1]RelatedPartyRevenue!X282","v":0},null,0,0,0,0,0,0]
[0,0,{"$f":"IFERROR(INDEX((Settings!$M$17:$M$236),MATCH(RelatedPartyRevenue!G283,Settings!$AD$18:$AD$166,0)),0)","v":0},null,null,{"$f":"[1]RelatedPartyRevenue!F283","v":0},{"$f":"[1]RelatedPartyRevenue!G283","v":0},{"$f":"[1]RelatedPartyRevenue!H283","v":0},null,{"$f":"[1]RelatedPartyRevenue!M283","v":0},{"$f":"[1]RelatedPartyRevenue!M283","v":0},{"$f":"[1]RelatedPartyRevenue!O283","v":0},{"$f":"[1]RelatedPartyRevenue!O283","v":0},{"$f":"[1]RelatedPartyRevenue!Q283","v":0},{"$f":"[1]RelatedPartyRevenue!Q283","v":0},{"$f":"[1]RelatedPartyRevenue!S283","v":0},{"$f":"[1]RelatedPartyRevenue!S283","v":0},{"$f":"[1]RelatedPartyRevenue!U283","v":0},{"$f":"[1]RelatedPartyRevenue!U283","v":0},{"$f":"[1]RelatedPartyRevenue!V283","v":0},{"$f":"[1]RelatedPartyRevenue!V283","v":0},0,null,{"$f":"[1]RelatedPartyRevenue!X283","v":0},null,0,0,0,0,0,0]
[0,0,{"$f":"IFERROR(INDEX((Settings!$M$17:$M$236),MATCH(RelatedPartyRevenue!G284,Settings!$AD$18:$AD$166,0)),0)","v":0},null,null,{"$f":"[1]RelatedPartyRevenue!F284","v":0},{"$f":"[1]RelatedPartyRevenue!G284","v":0},{"$f":"[1]RelatedPartyRevenue!H284","v":0},null,{"$f":"[1]RelatedPartyRevenue!M284","v":0},{"$f":"[1]RelatedPartyRevenue!M284","v":0},{"$f":"[1]RelatedPartyRevenue!O284","v":0},{"$f":"[1]RelatedPartyRevenue!O284","v":0},{"$f":"[1]RelatedPartyRevenue!Q284","v":0},{"$f":"[1]RelatedPartyRevenue!Q284","v":0},{"$f":"[1]RelatedPartyRevenue!S284","v":0},{"$f":"[1]RelatedPartyRevenue!S284","v":0},{"$f":"[1]RelatedPartyRevenue!U284","v":0},{"$f":"[1]RelatedPartyRevenue!U284","v":0},{"$f":"[1]RelatedPartyRevenue!V284","v":0},{"$f":"[1]RelatedPartyRevenue!V284","v":0},0,null,{"$f":"[1]RelatedPartyRevenue!X284","v":0},null,0,0,0,0,0,0]
[0,0,{"$f":"IFERROR(INDEX((Settings!$M$17:$M$236),MATCH(RelatedPartyRevenue!G285,Settings!$AD$18:$AD$166,0)),0)","v":0},null,null,{"$f":"[1]RelatedPartyRevenue!F285","v":0},{"$f":"[1]RelatedPartyRevenue!G285","v":0},{"$f":"[1]RelatedPartyRevenue!H285","v":0},null,{"$f":"[1]RelatedPartyRevenue!M285","v":0},{"$f":"[1]RelatedPartyRevenue!M285","v":0},{"$f":"[1]RelatedPartyRevenue!O285","v":0},{"$f":"[1]RelatedPartyRevenue!O285","v":0},{"$f":"[1]RelatedPartyRevenue!Q285","v":0},{"$f":"[1]RelatedPartyRevenue!Q285","v":0},{"$f":"[1]RelatedPartyRevenue!S285","v":0},{"$f":"[1]RelatedPartyRevenue!S285","v":0},{"$f":"[1]RelatedPartyRevenue!U285","v":0},{"$f":"[1]RelatedPartyRevenue!U285","v":0},{"$f":"[1]RelatedPartyRevenue!V285","v":0},{"$f":"[1]RelatedPartyRevenue!V285","v":0},0,null,{"$f":"[1]RelatedPartyRevenue!X285","v":0},null,0,0,0,0,0,0]
[0,0,{"$f":"IFERROR(INDEX((Settings!$M$17:$M$236),MATCH(RelatedPartyRevenue!G286,Settings!$AD$18:$AD$166,0)),0)","v":0},null,null,{"$f":"[1]RelatedPartyRevenue!F286","v":0},{"$f":"[1]RelatedPartyRevenue!G286","v":0},{"$f":"[1]RelatedPartyRevenue!H286","v":0},null,{"$f":"[1]RelatedPartyRevenue!M286","v":0},{"$f":"[1]RelatedPartyRevenue!M286","v":0},{"$f":"[1]RelatedPartyRevenue!O286","v":0},{"$f":"[1]RelatedPartyRevenue!O286","v":0},{"$f":"[1]RelatedPartyRevenue!Q286","v":0},{"$f":"[1]RelatedPartyRevenue!Q286","v":0},{"$f":"[1]RelatedPartyRevenue!S286","v":0},{"$f":"[1]RelatedPartyRevenue!S286","v":0},{"$f":"[1]RelatedPartyRevenue!U286","v":0},{"$f":"[1]RelatedPartyRevenue!U286","v":0},{"$f":"[1]RelatedPartyRevenue!V286","v":0},{"$f":"[1]RelatedPartyRevenue!V286","v":0},0,null,{"$f":"[1]RelatedPartyRevenue!X286","v":0},null,0,0,0,0,0,0]
[0,0,{"$f":"IFERROR(INDEX((Settings!$M$17:$M$236),MATCH(RelatedPartyRevenue!G287,Settings!$AD$18:$AD$166,0)),0)","v":0},null,null,{"$f":"[1]RelatedPartyRevenue!F287","v":0},{"$f":"[1]RelatedPartyRevenue!G287","v":0},{"$f":"[1]RelatedPartyRevenue!H287","v":0},null,{"$f":"[1]RelatedPartyRevenue!M287","v":0},{"$f":"[1]RelatedPartyRevenue!M287","v":0},{"$f":"[1]RelatedPartyRevenue!O287","v":0},{"$f":"[1]RelatedPartyRevenue!O287","v":0},{"$f":"[1]RelatedPartyRevenue!Q287","v":0},{"$f":"[1]RelatedPartyRevenue!Q287","v":0},{"$f":"[1]RelatedPartyRevenue!S287","v":0},{"$f":"[1]RelatedPartyRevenue!S287","v":0},{"$f":"[1]RelatedPartyRevenue!U287","v":0},{"$f":"[1]RelatedPartyRevenue!U287","v":0},{"$f":"[1]RelatedPartyRevenue!V287","v":0},{"$f":"[1]RelatedPartyRevenue!V287","v":0},0,null,{"$f":"[1]RelatedPartyRevenue!X287","v":0},null,0,0,0,0,0,0]
[0,0,{"$f":"IFERROR(INDEX((Settings!$M$17:$M$236),MATCH(RelatedPartyRevenue!G288,Settings!$AD$18:$AD$166,0)),0)","v":0},null,null,{"$f":"[1]RelatedPartyRevenue!F288","v":0},{"$f":"[1]RelatedPartyRevenue!G288","v":0},{"$f":"[1]RelatedPartyRevenue!H288","v":0},null,{"$f":"[1]RelatedPartyRevenue!M288","v":0},{"$f":"[1]RelatedPartyRevenue!M288","v":0},{"$f":"[1]RelatedPartyRevenue!O288","v":0},{"$f":"[1]RelatedPartyRevenue!O288","v":0},{"$f":"[1]RelatedPartyRevenue!Q288","v":0},{"$f":"[1]RelatedPartyRevenue!Q288","v":0},{"$f":"[1]RelatedPartyRevenue!S288","v":0},{"$f":"[1]RelatedPartyRevenue!S288","v":0},{"$f":"[1]RelatedPartyRevenue!U288","v":0},{"$f":"[1]RelatedPartyRevenue!U288","v":0},{"$f":"[1]RelatedPartyRevenue!V288","v":0},{"$f":"[1]RelatedPartyRevenue!V288","v":0},0,null,{"$f":"[1]RelatedPartyRevenue!X288","v":0},null,0,0,0,0,0,0]
[0,0,{"$f":"IFERROR(INDEX((Settings!$M$17:$M$236),MATCH(RelatedPartyRevenue!G289,Settings!$AD$18:$AD$166,0)),0)","v":0},null,null,{"$f":"[1]RelatedPartyRevenue!F289","v":0},{"$f":"[1]RelatedPartyRevenue!G289","v":0},{"$f":"[1]RelatedPartyRevenue!H289","v":0},null,{"$f":"[1]RelatedPartyRevenue!M289","v":0},{"$f":"[1]RelatedPartyRevenue!M289","v":0},{"$f":"[1]RelatedPartyRevenue!O289","v":0},{"$f":"[1]RelatedPartyRevenue!O289","v":0},{"$f":"[1]RelatedPartyRevenue!Q289","v":0},{"$f":"[1]RelatedPartyRevenue!Q289","v":0},{"$f":"[1]RelatedPartyRevenue!S289","v":0},{"$f":"[1]RelatedPartyRevenue!S289","v":0},{"$f":"[1]RelatedPartyRevenue!U289","v":0},{"$f":"[1]RelatedPartyRevenue!U289","v":0},{"$f":"[1]RelatedPartyRevenue!V289","v":0},{"$f":"[1]RelatedPartyRevenue!V289","v":0},0,null,{"$f":"[1]RelatedPartyRevenue!X289","v":0},null,0,0,0,0,0,0]
[0,0,{"$f":"IFERROR(INDEX((Settings!$M$17:$M$236),MATCH(RelatedPartyRevenue!G290,Settings!$AD$18:$AD$166,0)),0)","v":0},null,null,{"$f":"[1]RelatedPartyRevenue!F290","v":0},{"$f":"[1]RelatedPartyRevenue!G290","v":0},{"$f":"[1]RelatedPartyRevenue!H290","v":0},null,{"$f":"[1]RelatedPartyRevenue!M290","v":0},{"$f":"[1]RelatedPartyRevenue!M290","v":0},{"$f":"[1]RelatedPartyRevenue!O290","v":0},{"$f":"[1]RelatedPartyRevenue!O290","v":0},{"$f":"[1]RelatedPartyRevenue!Q290","v":0},{"$f":"[1]RelatedPartyRevenue!Q290","v":0},{"$f":"[1]RelatedPartyRevenue!S290","v":0},{"$f":"[1]RelatedPartyRevenue!S290","v":0},{"$f":"[1]RelatedPartyRevenue!U290","v":0},{"$f":"[1]RelatedPartyRevenue!U290","v":0},{"$f":"[1]RelatedPartyRevenue!V290","v":0},{"$f":"[1]RelatedPartyRevenue!V290","v":0},0,null,{"$f":"[1]RelatedPartyRevenue!X290","v":0},null,0,0,0,0,0,0]
[0,0,{"$f":"IFERROR(INDEX((Settings!$M$17:$M$236),MATCH(RelatedPartyRevenue!G291,Settings!$AD$18:$AD$166,0)),0)","v":0},null,null,{"$f":"[1]RelatedPartyRevenue!F291","v":0},{"$f":"[1]RelatedPartyRevenue!G291","v":0},{"$f":"[1]RelatedPartyRevenue!H291","v":0},null,{"$f":"[1]RelatedPartyRevenue!M291","v":0},{"$f":"[1]RelatedPartyRevenue!M291","v":0},{"$f":"[1]RelatedPartyRevenue!O291","v":0},{"$f":"[1]RelatedPartyRevenue!O291","v":0},{"$f":"[1]RelatedPartyRevenue!Q291","v":0},{"$f":"[1]RelatedPartyRevenue!Q291","v":0},{"$f":"[1]RelatedPartyRevenue!S291","v":0},{"$f":"[1]RelatedPartyRevenue!S291","v":0},{"$f":"[1]RelatedPartyRevenue!U291","v":0},{"$f":"[1]RelatedPartyRevenue!U291","v":0},{"$f":"[1]RelatedPartyRevenue!V291","v":0},{"$f":"[1]RelatedPartyRevenue!V291","v":0},0,null,{"$f":"[1]RelatedPartyRevenue!X291","v":0},null,0,0,0,0,0,0]
[0,0,{"$f":"IFERROR(INDEX((Settings!$M$17:$M$236),MATCH(RelatedPartyRevenue!G292,Settings!$AD$18:$AD$166,0)),0)","v":0},null,null,{"$f":"[1]RelatedPartyRevenue!F292","v":0},{"$f":"[1]RelatedPartyRevenue!G292","v":0},{"$f":"[1]RelatedPartyRevenue!H292","v":0},null,{"$f":"[1]RelatedPartyRevenue!M292","v":0},{"$f":"[1]RelatedPartyRevenue!M292","v":0},{"$f":"[1]RelatedPartyRevenue!O292","v":0},{"$f":"[1]RelatedPartyRevenue!O292","v":0},{"$f":"[1]RelatedPartyRevenue!Q292","v":0},{"$f":"[1]RelatedPartyRevenue!Q292","v":0},{"$f":"[1]RelatedPartyRevenue!S292","v":0},{"$f":"[1]RelatedPartyRevenue!S292","v":0},{"$f":"[1]RelatedPartyRevenue!U292","v":0},{"$f":"[1]RelatedPartyRevenue!U292","v":0},{"$f":"[1]RelatedPartyRevenue!V292","v":0},{"$f":"[1]RelatedPartyRevenue!V292","v":0},0,null,{"$f":"[1]RelatedPartyRevenue!X292","v":0},null,0,0,0,0,0,0]
[0,0,{"$f":"IFERROR(INDEX((Settings!$M$17:$M$236),MATCH(RelatedPartyRevenue!G293,Settings!$AD$18:$AD$166,0)),0)","v":0},null,null,{"$f":"[1]RelatedPartyRevenue!F293","v":0},{"$f":"[1]RelatedPartyRevenue!G293","v":0},{"$f":"[1]RelatedPartyRevenue!H293","v":0},null,{"$f":"[1]RelatedPartyRevenue!M293","v":0},{"$f":"[1]RelatedPartyRevenue!M293","v":0},{"$f":"[1]RelatedPartyRevenue!O293","v":0},{"$f":"[1]RelatedPartyRevenue!O293","v":0},{"$f":"[1]RelatedPartyRevenue!Q293","v":0},{"$f":"[1]RelatedPartyRevenue!Q293","v":0},{"$f":"[1]RelatedPartyRevenue!S293","v":0},{"$f":"[1]RelatedPartyRevenue!S293","v":0},{"$f":"[1]RelatedPartyRevenue!U293","v":0},{"$f":"[1]RelatedPartyRevenue!U293","v":0},{"$f":"[1]RelatedPartyRevenue!V293","v":0},{"$f":"[1]RelatedPartyRevenue!V293","v":0},0,null,{"$f":"[1]RelatedPartyRevenue!X293","v":0},null,0,0,0,0,0,0]
[0,0,{"$f":"IFERROR(INDEX((Settings!$M$17:$M$236),MATCH(RelatedPartyRevenue!G294,Settings!$AD$18:$AD$166,0)),0)","v":0},null,null,{"$f":"[1]RelatedPartyRevenue!F294","v":0},{"$f":"[1]RelatedPartyRevenue!G294","v":0},{"$f":"[1]RelatedPartyRevenue!H294","v":0},null,{"$f":"[1]RelatedPartyRevenue!M294","v":0},{"$f":"[1]RelatedPartyRevenue!M294","v":0},{"$f":"[1]RelatedPartyRevenue!O294","v":0},{"$f":"[1]RelatedPartyRevenue!O294","v":0},{"$f":"[1]RelatedPartyRevenue!Q294","v":0},{"$f":"[1]RelatedPartyRevenue!Q294","v":0},{"$f":"[1]RelatedPartyRevenue!S294","v":0},{"$f":"[1]RelatedPartyRevenue!S294","v":0},{"$f":"[1]RelatedPartyRevenue!U294","v":0},{"$f":"[1]RelatedPartyRevenue!U294","v":0},{"$f":"[1]RelatedPartyRevenue!V294","v":0},{"$f":"[1]RelatedPartyRevenue!V294","v":0},0,null,{"$f":"[1]RelatedPartyRevenue!X294","v":0},null,0,0,0,0,0,0]
[0,0,{"$f":"IFERROR(INDEX((Settings!$M$17:$M$236),MATCH(RelatedPartyRevenue!G295,Settings!$AD$18:$AD$166,0)),0)","v":0},null,null,{"$f":"[1]RelatedPartyRevenue!F295","v":0},{"$f":"[1]RelatedPartyRevenue!G295","v":0},{"$f":"[1]RelatedPartyRevenue!H295","v":0},null,{"$f":"[1]RelatedPartyRevenue!M295","v":0},{"$f":"[1]RelatedPartyRevenue!M295","v":0},{"$f":"[1]RelatedPartyRevenue!O295","v":0},{"$f":"[1]RelatedPartyRevenue!O295","v":0},{"$f":"[1]RelatedPartyRevenue!Q295","v":0},{"$f":"[1]RelatedPartyRevenue!Q295","v":0},{"$f":"[1]RelatedPartyRevenue!S295","v":0},{"$f":"[1]RelatedPartyRevenue!S295","v":0},{"$f":"[1]RelatedPartyRevenue!U295","v":0},{"$f":"[1]RelatedPartyRevenue!U295","v":0},{"$f":"[1]RelatedPartyRevenue!V295","v":0},{"$f":"[1]RelatedPartyRevenue!V295","v":0},0,null,{"$f":"[1]RelatedPartyRevenue!X295","v":0},null,0,0,0,0,0,0]
[0,0,{"$f":"IFERROR(INDEX((Settings!$M$17:$M$236),MATCH(RelatedPartyRevenue!G296,Settings!$AD$18:$AD$166,0)),0)","v":0},null,null,null,{"$f":"[1]RelatedPartyRevenue!G296","v":0},{"$f":"[1]RelatedPartyRevenue!H296","v":0},null,{"$f":"[1]RelatedPartyRevenue!M296","v":0},{"$f":"[1]RelatedPartyRevenue!M296","v":0},{"$f":"[1]RelatedPartyRevenue!O296","v":0},{"$f":"[1]RelatedPartyRevenue!O296","v":0},{"$f":"[1]RelatedPartyRevenue!Q296","v":0},{"$f":"[1]RelatedPartyRevenue!Q296","v":0},{"$f":"[1]RelatedPartyRevenue!S296","v":0},{"$f":"[1]RelatedPartyRevenue!S296","v":0},{"$f":"[1]RelatedPartyRevenue!U296","v":0},{"$f":"[1]RelatedPartyRevenue!U296","v":0},{"$f":"[1]RelatedPartyRevenue!V296","v":0},{"$f":"[1]RelatedPartyRevenue!V296","v":0},0,null,{"$f":"[1]RelatedPartyRevenue!X296","v":0},null,0,0,0,0,0,0]
[0,0,{"$f":"IFERROR(INDEX((Settings!$M$17:$M$236),MATCH(RelatedPartyRevenue!G297,Settings!$AD$18:$AD$166,0)),0)","v":0},null,null,{"$f":"[1]RelatedPartyRevenue!F297","v":0},{"$f":"[1]RelatedPartyRevenue!G297","v":0},{"$f":"[1]RelatedPartyRevenue!H297","v":0},null,{"$f":"[1]RelatedPartyRevenue!M297","v":0},{"$f":"[1]RelatedPartyRevenue!M297","v":0},{"$f":"[1]RelatedPartyRevenue!O297","v":0},{"$f":"[1]RelatedPartyRevenue!O297","v":0},{"$f":"[1]RelatedPartyRevenue!Q297","v":0},{"$f":"[1]RelatedPartyRevenue!Q297","v":0},{"$f":"[1]RelatedPartyRevenue!S297","v":0},{"$f":"[1]RelatedPartyRevenue!S297","v":0},{"$f":"[1]RelatedPartyRevenue!U297","v":0},{"$f":"[1]RelatedPartyRevenue!U297","v":0},{"$f":"[1]RelatedPartyRevenue!V297","v":0},{"$f":"[1]RelatedPartyRevenue!V297","v":0},0,null,{"$f":"[1]RelatedPartyRevenue!X297","v":0},null,0,0,0,0,0,0]
[0,0,{"$f":"IFERROR(INDEX((Settings!$M$17:$M$236),MATCH(RelatedPartyRevenue!G298,Settings!$AD$18:$AD$166,0)),0)","v":0},null,null,{"$f":"[1]RelatedPartyRevenue!F298","v":0},{"$f":"[1]RelatedPartyRevenue!G298","v":0},{"$f":"[1]RelatedPartyRevenue!H298","v":0},null,{"$f":"[1]RelatedPartyRevenue!M298","v":0},{"$f":"[1]RelatedPartyRevenue!M298","v":0},{"$f":"[1]RelatedPartyRevenue!O298","v":0},{"$f":"[1]RelatedPartyRevenue!O298","v":0},{"$f":"[1]RelatedPartyRevenue!Q298","v":0},{"$f":"[1]RelatedPartyRevenue!Q298","v":0},{"$f":"[1]RelatedPartyRevenue!S298","v":0},{"$f":"[1]RelatedPartyRevenue!S298","v":0},{"$f":"[1]RelatedPartyRevenue!U298","v":0},{"$f":"[1]RelatedPartyRevenue!U298","v":0},{"$f":"[1]RelatedPartyRevenue!V298","v":0},{"$f":"[1]RelatedPartyRevenue!V298","v":0},0,null,{"$f":"[1]RelatedPartyRevenue!X298","v":0},null,0,0,0,0,0,0]
[0,0,{"$f":"IFERROR(INDEX((Settings!$M$17:$M$236),MATCH(RelatedPartyRevenue!G299,Settings!$AD$18:$AD$166,0)),0)","v":0},null,null,{"$f":"[1]RelatedPartyRevenue!F299","v":0},{"$f":"[1]RelatedPartyRevenue!G299","v":0},{"$f":"[1]RelatedPartyRevenue!H299","v":0},null,{"$f":"[1]RelatedPartyRevenue!M299","v":0},{"$f":"[1]RelatedPartyRevenue!M299","v":0},{"$f":"[1]RelatedPartyRevenue!O299","v":0},{"$f":"[1]RelatedPartyRevenue!O299","v":0},{"$f":"[1]RelatedPartyRevenue!Q299","v":0},{"$f":"[1]RelatedPartyRevenue!Q299","v":0},{"$f":"[1]RelatedPartyRevenue!S299","v":0},{"$f":"[1]RelatedPartyRevenue!S299","v":0},{"$f":"[1]RelatedPartyRevenue!U299","v":0},{"$f":"[1]RelatedPartyRevenue!U299","v":0},{"$f":"[1]RelatedPartyRevenue!V299","v":0},{"$f":"[1]RelatedPartyRevenue!V299","v":0},0,null,{"$f":"[1]RelatedPartyRevenue!X299","v":0},null,0,0,0,0,0,0]
[0,0,{"$f":"IFERROR(INDEX((Settings!$M$17:$M$236),MATCH(RelatedPartyRevenue!G300,Settings!$AD$18:$AD$166,0)),0)","v":0},null,null,{"$f":"[1]RelatedPartyRevenue!F300","v":0},{"$f":"[1]RelatedPartyRevenue!G300","v":0},{"$f":"[1]RelatedPartyRevenue!H300","v":0},null,{"$f":"[1]RelatedPartyRevenue!M300","v":0},{"$f":"[1]RelatedPartyRevenue!M300","v":0},{"$f":"[1]RelatedPartyRevenue!O300","v":0},{"$f":"[1]RelatedPartyRevenue!O300","v":0},{"$f":"[1]RelatedPartyRevenue!Q300","v":0},{"$f":"[1]RelatedPartyRevenue!Q300","v":0},{"$f":"[1]RelatedPartyRevenue!S300","v":0},{"$f":"[1]RelatedPartyRevenue!S300","v":0},{"$f":"[1]RelatedPartyRevenue!U300","v":0},{"$f":"[1]RelatedPartyRevenue!U300","v":0},{"$f":"[1]RelatedPartyRevenue!V300","v":0},{"$f":"[1]RelatedPartyRevenue!V300","v":0},0,null,{"$f":"[1]RelatedPartyRevenue!X300","v":0},null,0,0,0,0,0,0]
[0,0,{"$f":"IFERROR(INDEX((Settings!$M$17:$M$236),MATCH(RelatedPartyRevenue!G301,Settings!$AD$18:$AD$166,0)),0)","v":0},null,null,{"$f":"[1]RelatedPartyRevenue!F301","v":0},{"$f":"[1]RelatedPartyRevenue!G301","v":0},{"$f":"[1]RelatedPartyRevenue!H301","v":0},null,{"$f":"[1]RelatedPartyRevenue!M301","v":0},{"$f":"[1]RelatedPartyRevenue!M301","v":0},{"$f":"[1]RelatedPartyRevenue!O301","v":0},{"$f":"[1]RelatedPartyRevenue!O301","v":0},{"$f":"[1]RelatedPartyRevenue!Q301","v":0},{"$f":"[1]RelatedPartyRevenue!Q301","v":0},{"$f":"[1]RelatedPartyRevenue!S301","v":0},{"$f":"[1]RelatedPartyRevenue!S301","v":0},{"$f":"[1]RelatedPartyRevenue!U301","v":0},{"$f":"[1]RelatedPartyRevenue!U301","v":0},{"$f":"[1]RelatedPartyRevenue!V301","v":0},{"$f":"[1]RelatedPartyRevenue!V301","v":0},0,null,{"$f":"[1]RelatedPartyRevenue!X301","v":0},null,0,0,0,0,0,0]
[0,0,{"$f":"IFERROR(INDEX((Settings!$M$17:$M$236),MATCH(RelatedPartyRevenue!G302,Settings!$AD$18:$AD$166,0)),0)","v":0},null,null,{"$f":"[1]RelatedPartyRevenue!F302","v":0},{"$f":"[1]RelatedPartyRevenue!G302","v":0},{"$f":"[1]RelatedPartyRevenue!H302","v":0},null,{"$f":"[1]RelatedPartyRevenue!M302","v":0},{"$f":"[1]RelatedPartyRevenue!M302","v":0},{"$f":"[1]RelatedPartyRevenue!O302","v":0},{"$f":"[1]RelatedPartyRevenue!O302","v":0},{"$f":"[1]RelatedPartyRevenue!Q302","v":0},{"$f":"[1]RelatedPartyRevenue!Q302","v":0},{"$f":"[1]RelatedPartyRevenue!S302","v":0},{"$f":"[1]RelatedPartyRevenue!S302","v":0},{"$f":"[1]RelatedPartyRevenue!U302","v":0},{"$f":"[1]RelatedPartyRevenue!U302","v":0},{"$f":"[1]RelatedPartyRevenue!V302","v":0},{"$f":"[1]RelatedPartyRevenue!V302","v":0},0,null,{"$f":"[1]RelatedPartyRevenue!X302","v":0},null,0,0,0,0,0,0]
[0,0,{"$f":"IFERROR(INDEX((Settings!$M$17:$M$236),MATCH(RelatedPartyRevenue!G303,Settings!$AD$18:$AD$166,0)),0)","v":0},null,null,{"$f":"[1]RelatedPartyRevenue!F303","v":0},{"$f":"[1]RelatedPartyRevenue!G303","v":0},{"$f":"[1]RelatedPartyRevenue!H303","v":0},null,{"$f":"[1]RelatedPartyRevenue!M303","v":0},{"$f":"[1]RelatedPartyRevenue!M303","v":0},{"$f":"[1]RelatedPartyRevenue!O303","v":0},{"$f":"[1]RelatedPartyRevenue!O303","v":0},{"$f":"[1]RelatedPartyRevenue!Q303","v":0},{"$f":"[1]RelatedPartyRevenue!Q303","v":0},{"$f":"[1]RelatedPartyRevenue!S303","v":0},{"$f":"[1]RelatedPartyRevenue!S303","v":0},{"$f":"[1]RelatedPartyRevenue!U303","v":0},{"$f":"[1]RelatedPartyRevenue!U303","v":0},{"$f":"[1]RelatedPartyRevenue!V303","v":0},{"$f":"[1]RelatedPartyRevenue!V303","v":0},0,null,{"$f":"[1]RelatedPartyRevenue!X303","v":0},null,0,0,0,0,0,0]
[0,0,{"$f":"IFERROR(INDEX((Settings!$M$17:$M$236),MATCH(RelatedPartyRevenue!G304,Settings!$AD$18:$AD$166,0)),0)","v":0},null,null,{"$f":"[1]RelatedPartyRevenue!F304","v":0},{"$f":"[1]RelatedPartyRevenue!G304","v":0},{"$f":"[1]RelatedPartyRevenue!H304","v":0},null,{"$f":"[1]RelatedPartyRevenue!M304","v":0},{"$f":"[1]RelatedPartyRevenue!M304","v":0},{"$f":"[1]RelatedPartyRevenue!O304","v":0},{"$f":"[1]RelatedPartyRevenue!O304","v":0},{"$f":"[1]RelatedPartyRevenue!Q304","v":0},{"$f":"[1]RelatedPartyRevenue!Q304","v":0},{"$f":"[1]RelatedPartyRevenue!S304","v":0},{"$f":"[1]RelatedPartyRevenue!S304","v":0},{"$f":"[1]RelatedPartyRevenue!U304","v":0},{"$f":"[1]RelatedPartyRevenue!U304","v":0},{"$f":"[1]RelatedPartyRevenue!V304","v":0},{"$f":"[1]RelatedPartyRevenue!V304","v":0},0,null,{"$f":"[1]RelatedPartyRevenue!X304","v":0},null,0,0,0,0,0,0]
[0,0,{"$f":"IFERROR(INDEX((Settings!$M$17:$M$236),MATCH(RelatedPartyRevenue!G305,Settings!$AD$18:$AD$166,0)),0)","v":0},null,null,{"$f":"[1]RelatedPartyRevenue!F305","v":0},{"$f":"[1]RelatedPartyRevenue!G305","v":0},{"$f":"[1]RelatedPartyRevenue!H305","v":0},null,{"$f":"[1]RelatedPartyRevenue!M305","v":0},{"$f":"[1]RelatedPartyRevenue!M305","v":0},{"$f":"[1]RelatedPartyRevenue!O305","v":0},{"$f":"[1]RelatedPartyRevenue!O305","v":0},{"$f":"[1]RelatedPartyRevenue!Q305","v":0},{"$f":"[1]RelatedPartyRevenue!Q305","v":0},{"$f":"[1]RelatedPartyRevenue!S305","v":0},{"$f":"[1]RelatedPartyRevenue!S305","v":0},{"$f":"[1]RelatedPartyRevenue!U305","v":0},{"$f":"[1]RelatedPartyRevenue!U305","v":0},{"$f":"[1]RelatedPartyRevenue!V305","v":0},{"$f":"[1]RelatedPartyRevenue!V305","v":0},0,null,{"$f":"[1]RelatedPartyRevenue!X305","v":0},null,0,0,0,0,0,0]
[0,0,{"$f":"IFERROR(INDEX((Settings!$M$17:$M$236),MATCH(RelatedPartyRevenue!G306,Settings!$AD$18:$AD$166,0)),0)","v":0},null,null,{"$f":"[1]RelatedPartyRevenue!F306","v":0},{"$f":"[1]RelatedPartyRevenue!G306","v":0},{"$f":"[1]RelatedPartyRevenue!H306","v":0},null,{"$f":"[1]RelatedPartyRevenue!M306","v":0},{"$f":"[1]RelatedPartyRevenue!M306","v":0},{"$f":"[1]RelatedPartyRevenue!O306","v":0},{"$f":"[1]RelatedPartyRevenue!O306","v":0},{"$f":"[1]RelatedPartyRevenue!Q306","v":0},{"$f":"[1]RelatedPartyRevenue!Q306","v":0},{"$f":"[1]RelatedPartyRevenue!S306","v":0},{"$f":"[1]RelatedPartyRevenue!S306","v":0},{"$f":"[1]RelatedPartyRevenue!U306","v":0},{"$f":"[1]RelatedPartyRevenue!U306","v":0},{"$f":"[1]RelatedPartyRevenue!V306","v":0},{"$f":"[1]RelatedPartyRevenue!V306","v":0},0,null,{"$f":"[1]RelatedPartyRevenue!X306","v":0},null,0,0,0,0,0,0]
[0,0,{"$f":"IFERROR(INDEX((Settings!$M$17:$M$236),MATCH(RelatedPartyRevenue!G307,Settings!$AD$18:$AD$166,0)),0)","v":0},null,null,{"$f":"[1]RelatedPartyRevenue!F307","v":0},{"$f":"[1]RelatedPartyRevenue!G307","v":0},{"$f":"[1]RelatedPartyRevenue!H307","v":0},null,{"$f":"[1]RelatedPartyRevenue!M307","v":0},{"$f":"[1]RelatedPartyRevenue!M307","v":0},{"$f":"[1]RelatedPartyRevenue!O307","v":0},{"$f":"[1]RelatedPartyRevenue!O307","v":0},{"$f":"[1]RelatedPartyRevenue!Q307","v":0},{"$f":"[1]RelatedPartyRevenue!Q307","v":0},{"$f":"[1]RelatedPartyRevenue!S307","v":0},{"$f":"[1]RelatedPartyRevenue!S307","v":0},{"$f":"[1]RelatedPartyRevenue!U307","v":0},{"$f":"[1]RelatedPartyRevenue!U307","v":0},{"$f":"[1]RelatedPartyRevenue!V307","v":0},{"$f":"[1]RelatedPartyRevenue!V307","v":0},0,null,{"$f":"[1]RelatedPartyRevenue!X307","v":0},null,0,0,0,0,0,0]
[0,0,{"$f":"IFERROR(INDEX((Settings!$M$17:$M$236),MATCH(RelatedPartyRevenue!G308,Settings!$AD$18:$AD$166,0)),0)","v":0},null,null,{"$f":"[1]RelatedPartyRevenue!F308","v":0},{"$f":"[1]RelatedPartyRevenue!G308","v":0},{"$f":"[1]RelatedPartyRevenue!H308","v":0},null,{"$f":"[1]RelatedPartyRevenue!M308","v":0},{"$f":"[1]RelatedPartyRevenue!M308","v":0},{"$f":"[1]RelatedPartyRevenue!O308","v":0},{"$f":"[1]RelatedPartyRevenue!O308","v":0},{"$f":"[1]RelatedPartyRevenue!Q308","v":0},{"$f":"[1]RelatedPartyRevenue!Q308","v":0},{"$f":"[1]RelatedPartyRevenue!S308","v":0},{"$f":"[1]RelatedPartyRevenue!S308","v":0},{"$f":"[1]RelatedPartyRevenue!U308","v":0},{"$f":"[1]RelatedPartyRevenue!U308","v":0},{"$f":"[1]RelatedPartyRevenue!V308","v":0},{"$f":"[1]RelatedPartyRevenue!V308","v":0},0,null,{"$f":"[1]RelatedPartyRevenue!X308","v":0},null,0,0,0,0,0,0]
[0,0,{"$f":"IFERROR(INDEX((Settings!$M$17:$M$236),MATCH(RelatedPartyRevenue!G309,Settings!$AD$18:$AD$166,0)),0)","v":0},null,null,{"$f":"[1]RelatedPartyRevenue!F309","v":0},{"$f":"[1]RelatedPartyRevenue!G309","v":0},{"$f":"[1]RelatedPartyRevenue!H309","v":0},null,{"$f":"[1]RelatedPartyRevenue!M309","v":0},{"$f":"[1]RelatedPartyRevenue!M309","v":0},{"$f":"[1]RelatedPartyRevenue!O309","v":0},{"$f":"[1]RelatedPartyRevenue!O309","v":0},{"$f":"[1]RelatedPartyRevenue!Q309","v":0},{"$f":"[1]RelatedPartyRevenue!Q309","v":0},{"$f":"[1]RelatedPartyRevenue!S309","v":0},{"$f":"[1]RelatedPartyRevenue!S309","v":0},{"$f":"[1]RelatedPartyRevenue!U309","v":0},{"$f":"[1]RelatedPartyRevenue!U309","v":0},{"$f":"[1]RelatedPartyRevenue!V309","v":0},{"$f":"[1]RelatedPartyRevenue!V309","v":0},0,null,{"$f":"[1]RelatedPartyRevenue!X309","v":0},null,0,0,0,0,0,0]
[0,0,{"$f":"IFERROR(INDEX((Settings!$M$17:$M$236),MATCH(RelatedPartyRevenue!G310,Settings!$AD$18:$AD$166,0)),0)","v":0},null,null,{"$f":"[1]RelatedPartyRevenue!F310","v":0},{"$f":"[1]RelatedPartyRevenue!G310","v":0},{"$f":"[1]RelatedPartyRevenue!H310","v":0},null,{"$f":"[1]RelatedPartyRevenue!M310","v":0},{"$f":"[1]RelatedPartyRevenue!M310","v":0},{"$f":"[1]RelatedPartyRevenue!O310","v":0},{"$f":"[1]RelatedPartyRevenue!O310","v":0},{"$f":"[1]RelatedPartyRevenue!Q310","v":0},{"$f":"[1]RelatedPartyRevenue!Q310","v":0},{"$f":"[1]RelatedPartyRevenue!S310","v":0},{"$f":"[1]RelatedPartyRevenue!S310","v":0},{"$f":"[1]RelatedPartyRevenue!U310","v":0},{"$f":"[1]RelatedPartyRevenue!U310","v":0},{"$f":"[1]RelatedPartyRevenue!V310","v":0},{"$f":"[1]RelatedPartyRevenue!V310","v":0},0,null,{"$f":"[1]RelatedPartyRevenue!X310","v":0},null,0,0,0,0,0,0]
[0,0,{"$f":"IFERROR(INDEX((Settings!$M$17:$M$236),MATCH(RelatedPartyRevenue!G311,Settings!$AD$18:$AD$166,0)),0)","v":0},null,null,{"$f":"[1]RelatedPartyRevenue!F311","v":0},{"$f":"[1]RelatedPartyRevenue!G311","v":0},{"$f":"[1]RelatedPartyRevenue!H311","v":0},null,{"$f":"[1]RelatedPartyRevenue!M311","v":0},{"$f":"[1]RelatedPartyRevenue!M311","v":0},{"$f":"[1]RelatedPartyRevenue!O311","v":0},{"$f":"[1]RelatedPartyRevenue!O311","v":0},{"$f":"[1]RelatedPartyRevenue!Q311","v":0},{"$f":"[1]RelatedPartyRevenue!Q311","v":0},{"$f":"[1]RelatedPartyRevenue!S311","v":0},{"$f":"[1]RelatedPartyRevenue!S311","v":0},{"$f":"[1]RelatedPartyRevenue!U311","v":0},{"$f":"[1]RelatedPartyRevenue!U311","v":0},{"$f":"[1]RelatedPartyRevenue!V311","v":0},{"$f":"[1]RelatedPartyRevenue!V311","v":0},0,null,{"$f":"[1]RelatedPartyRevenue!X311","v":0},null,0,0,0,0,0,0]
[0,0,{"$f":"IFERROR(INDEX((Settings!$M$17:$M$236),MATCH(RelatedPartyRevenue!G312,Settings!$AD$18:$AD$166,0)),0)","v":0},null,null,{"$f":"[1]RelatedPartyRevenue!F312","v":0},{"$f":"[1]RelatedPartyRevenue!G312","v":0},{"$f":"[1]RelatedPartyRevenue!H312","v":0},null,{"$f":"[1]RelatedPartyRevenue!M312","v":0},{"$f":"[1]RelatedPartyRevenue!M312","v":0},{"$f":"[1]RelatedPartyRevenue!O312","v":0},{"$f":"[1]RelatedPartyRevenue!O312","v":0},{"$f":"[1]RelatedPartyRevenue!Q312","v":0},{"$f":"[1]RelatedPartyRevenue!Q312","v":0},{"$f":"[1]RelatedPartyRevenue!S312","v":0},{"$f":"[1]RelatedPartyRevenue!S312","v":0},{"$f":"[1]RelatedPartyRevenue!U312","v":0},{"$f":"[1]RelatedPartyRevenue!U312","v":0},{"$f":"[1]RelatedPartyRevenue!V312","v":0},{"$f":"[1]RelatedPartyRevenue!V312","v":0},0,null,{"$f":"[1]RelatedPartyRevenue!X312","v":0},null,0,0,0,0,0,0]
[0,0,{"$f":"IFERROR(INDEX((Settings!$M$17:$M$236),MATCH(RelatedPartyRevenue!G313,Settings!$AD$18:$AD$166,0)),0)","v":0},null,null,{"$f":"[1]RelatedPartyRevenue!F313","v":0},{"$f":"[1]RelatedPartyRevenue!G313","v":0},{"$f":"[1]RelatedPartyRevenue!H313","v":0},null,{"$f":"[1]RelatedPartyRevenue!M313","v":0},{"$f":"[1]RelatedPartyRevenue!M313","v":0},{"$f":"[1]RelatedPartyRevenue!O313","v":0},{"$f":"[1]RelatedPartyRevenue!O313","v":0},{"$f":"[1]RelatedPartyRevenue!Q313","v":0},{"$f":"[1]RelatedPartyRevenue!Q313","v":0},{"$f":"[1]RelatedPartyRevenue!S313","v":0},{"$f":"[1]RelatedPartyRevenue!S313","v":0},{"$f":"[1]RelatedPartyRevenue!U313","v":0},{"$f":"[1]RelatedPartyRevenue!U313","v":0},{"$f":"[1]RelatedPartyRevenue!V313","v":0},{"$f":"[1]RelatedPartyRevenue!V313","v":0},0,null,{"$f":"[1]RelatedPartyRevenue!X313","v":0},null,0,0,0,0,0,0]
[0,0,{"$f":"IFERROR(INDEX((Settings!$M$17:$M$236),MATCH(RelatedPartyRevenue!G314,Settings!$AD$18:$AD$166,0)),0)","v":0},null,null,{"$f":"[1]RelatedPartyRevenue!F314","v":0},{"$f":"[1]RelatedPartyRevenue!G314","v":0},{"$f":"[1]RelatedPartyRevenue!H314","v":0},null,{"$f":"[1]RelatedPartyRevenue!M314","v":0},{"$f":"[1]RelatedPartyRevenue!M314","v":0},{"$f":"[1]RelatedPartyRevenue!O314","v":0},{"$f":"[1]RelatedPartyRevenue!O314","v":0},{"$f":"[1]RelatedPartyRevenue!Q314","v":0},{"$f":"[1]RelatedPartyRevenue!Q314","v":0},{"$f":"[1]RelatedPartyRevenue!S314","v":0},{"$f":"[1]RelatedPartyRevenue!S314","v":0},{"$f":"[1]RelatedPartyRevenue!U314","v":0},{"$f":"[1]RelatedPartyRevenue!U314","v":0},{"$f":"[1]RelatedPartyRevenue!V314","v":0},{"$f":"[1]RelatedPartyRevenue!V314","v":0},0,null,{"$f":"[1]RelatedPartyRevenue!X314","v":0},null,0,0,0,0,0,0]
[0,0,{"$f":"IFERROR(INDEX((Settings!$M$17:$M$236),MATCH(RelatedPartyRevenue!G315,Settings!$AD$18:$AD$166,0)),0)","v":0},null,null,{"$f":"[1]RelatedPartyRevenue!F315","v":0},{"$f":"[1]RelatedPartyRevenue!G315","v":0},{"$f":"[1]RelatedPartyRevenue!H315","v":0},null,{"$f":"[1]RelatedPartyRevenue!M315","v":0},{"$f":"[1]RelatedPartyRevenue!M315","v":0},{"$f":"[1]RelatedPartyRevenue!O315","v":0},{"$f":"[1]RelatedPartyRevenue!O315","v":0},{"$f":"[1]RelatedPartyRevenue!Q315","v":0},{"$f":"[1]RelatedPartyRevenue!Q315","v":0},{"$f":"[1]RelatedPartyRevenue!S315","v":0},{"$f":"[1]RelatedPartyRevenue!S315","v":0},{"$f":"[1]RelatedPartyRevenue!U315","v":0},{"$f":"[1]RelatedPartyRevenue!U315","v":0},{"$f":"[1]RelatedPartyRevenue!V315","v":0},{"$f":"[1]RelatedPartyRevenue!V315","v":0},0,null,{"$f":"[1]RelatedPartyRevenue!X315","v":0},null,0,0,0,0,0,0]
[0,0,{"$f":"IFERROR(INDEX((Settings!$M$17:$M$236),MATCH(RelatedPartyRevenue!G316,Settings!$AD$18:$AD$166,0)),0)","v":0},null,null,{"$f":"[1]RelatedPartyRevenue!F316","v":0},{"$f":"[1]RelatedPartyRevenue!G316","v":0},{"$f":"[1]RelatedPartyRevenue!H316","v":0},null,{"$f":"[1]RelatedPartyRevenue!M316","v":0},{"$f":"[1]RelatedPartyRevenue!M316","v":0},{"$f":"[1]RelatedPartyRevenue!O316","v":0},{"$f":"[1]RelatedPartyRevenue!O316","v":0},{"$f":"[1]RelatedPartyRevenue!Q316","v":0},{"$f":"[1]RelatedPartyRevenue!Q316","v":0},{"$f":"[1]RelatedPartyRevenue!S316","v":0},{"$f":"[1]RelatedPartyRevenue!S316","v":0},{"$f":"[1]RelatedPartyRevenue!U316","v":0},{"$f":"[1]RelatedPartyRevenue!U316","v":0},{"$f":"[1]RelatedPartyRevenue!V316","v":0},{"$f":"[1]RelatedPartyRevenue!V316","v":0},0,null,{"$f":"[1]RelatedPartyRevenue!X316","v":0},null,0,0,0,0,0,0]
[0,0,{"$f":"IFERROR(INDEX((Settings!$M$17:$M$236),MATCH(RelatedPartyRevenue!G317,Settings!$AD$18:$AD$166,0)),0)","v":0},null,null,{"$f":"[1]RelatedPartyRevenue!F317","v":0},{"$f":"[1]RelatedPartyRevenue!G317","v":0},{"$f":"[1]RelatedPartyRevenue!H317","v":0},null,{"$f":"[1]RelatedPartyRevenue!M317","v":0},{"$f":"[1]RelatedPartyRevenue!M317","v":0},{"$f":"[1]RelatedPartyRevenue!O317","v":0},{"$f":"[1]RelatedPartyRevenue!O317","v":0},{"$f":"[1]RelatedPartyRevenue!Q317","v":0},{"$f":"[1]RelatedPartyRevenue!Q317","v":0},{"$f":"[1]RelatedPartyRevenue!S317","v":0},{"$f":"[1]RelatedPartyRevenue!S317","v":0},{"$f":"[1]RelatedPartyRevenue!U317","v":0},{"$f":"[1]RelatedPartyRevenue!U317","v":0},{"$f":"[1]RelatedPartyRevenue!V317","v":0},{"$f":"[1]RelatedPartyRevenue!V317","v":0},0,null,{"$f":"[1]RelatedPartyRevenue!X317","v":0},null,0,0,0,0,0,0]
[0,0,{"$f":"IFERROR(INDEX((Settings!$M$17:$M$236),MATCH(RelatedPartyRevenue!G318,Settings!$AD$18:$AD$166,0)),0)","v":0},null,null,{"$f":"[1]RelatedPartyRevenue!F318","v":0},{"$f":"[1]RelatedPartyRevenue!G318","v":0},{"$f":"[1]RelatedPartyRevenue!H318","v":0},null,{"$f":"[1]RelatedPartyRevenue!M318","v":0},{"$f":"[1]RelatedPartyRevenue!M318","v":0},{"$f":"[1]RelatedPartyRevenue!O318","v":0},{"$f":"[1]RelatedPartyRevenue!O318","v":0},{"$f":"[1]RelatedPartyRevenue!Q318","v":0},{"$f":"[1]RelatedPartyRevenue!Q318","v":0},{"$f":"[1]RelatedPartyRevenue!S318","v":0},{"$f":"[1]RelatedPartyRevenue!S318","v":0},{"$f":"[1]RelatedPartyRevenue!U318","v":0},{"$f":"[1]RelatedPartyRevenue!U318","v":0},{"$f":"[1]RelatedPartyRevenue!V318","v":0},{"$f":"[1]RelatedPartyRevenue!V318","v":0},0,null,{"$f":"[1]RelatedPartyRevenue!X318","v":0},null,0,0,0,0,0,0]
[0,0,{"$f":"IFERROR(INDEX((Settings!$M$17:$M$236),MATCH(RelatedPartyRevenue!G319,Settings!$AD$18:$AD$166,0)),0)","v":0},null,null,{"$f":"[1]RelatedPartyRevenue!F319","v":0},{"$f":"[1]RelatedPartyRevenue!G319","v":0},{"$f":"[1]RelatedPartyRevenue!H319","v":0},null,{"$f":"[1]RelatedPartyRevenue!M319","v":0},{"$f":"[1]RelatedPartyRevenue!M319","v":0},{"$f":"[1]RelatedPartyRevenue!O319","v":0},{"$f":"[1]RelatedPartyRevenue!O319","v":0},{"$f":"[1]RelatedPartyRevenue!Q319","v":0},{"$f":"[1]RelatedPartyRevenue!Q319","v":0},{"$f":"[1]RelatedPartyRevenue!S319","v":0},{"$f":"[1]RelatedPartyRevenue!S319","v":0},{"$f":"[1]RelatedPartyRevenue!U319","v":0},{"$f":"[1]RelatedPartyRevenue!U319","v":0},{"$f":"[1]RelatedPartyRevenue!V319","v":0},{"$f":"[1]RelatedPartyRevenue!V319","v":0},0,null,{"$f":"[1]RelatedPartyRevenue!X319","v":0},null,0,0,0,0,0,0]
[0,0,{"$f":"IFERROR(INDEX((Settings!$M$17:$M$236),MATCH(RelatedPartyRevenue!G320,Settings!$AD$18:$AD$166,0)),0)","v":0},null,null,{"$f":"[1]RelatedPartyRevenue!F320","v":0},{"$f":"[1]RelatedPartyRevenue!G320","v":0},{"$f":"[1]RelatedPartyRevenue!H320","v":0},null,{"$f":"[1]RelatedPartyRevenue!M320","v":0},{"$f":"[1]RelatedPartyRevenue!M320","v":0},{"$f":"[1]RelatedPartyRevenue!O320","v":0},{"$f":"[1]RelatedPartyRevenue!O320","v":0},{"$f":"[1]RelatedPartyRevenue!Q320","v":0},{"$f":"[1]RelatedPartyRevenue!Q320","v":0},{"$f":"[1]RelatedPartyRevenue!S320","v":0},{"$f":"[1]RelatedPartyRevenue!S320","v":0},{"$f":"[1]RelatedPartyRevenue!U320","v":0},{"$f":"[1]RelatedPartyRevenue!U320","v":0},{"$f":"[1]RelatedPartyRevenue!V320","v":0},{"$f":"[1]RelatedPartyRevenue!V320","v":0},0,null,{"$f":"[1]RelatedPartyRevenue!X320","v":0},null,0,0,0,0,0,0]
[0,0,{"$f":"IFERROR(INDEX((Settings!$M$17:$M$236),MATCH(RelatedPartyRevenue!G321,Settings!$AD$18:$AD$166,0)),0)","v":0},null,null,{"$f":"[1]RelatedPartyRevenue!F321","v":0},{"$f":"[1]RelatedPartyRevenue!G321","v":0},{"$f":"[1]RelatedPartyRevenue!H321","v":0},null,{"$f":"[1]RelatedPartyRevenue!M321","v":0},{"$f":"[1]RelatedPartyRevenue!M321","v":0},{"$f":"[1]RelatedPartyRevenue!O321","v":0},{"$f":"[1]RelatedPartyRevenue!O321","v":0},{"$f":"[1]RelatedPartyRevenue!Q321","v":0},{"$f":"[1]RelatedPartyRevenue!Q321","v":0},{"$f":"[1]RelatedPartyRevenue!S321","v":0},{"$f":"[1]RelatedPartyRevenue!S321","v":0},{"$f":"[1]RelatedPartyRevenue!U321","v":0},{"$f":"[1]RelatedPartyRevenue!U321","v":0},{"$f":"[1]RelatedPartyRevenue!V321","v":0},{"$f":"[1]RelatedPartyRevenue!V321","v":0},0,null,{"$f":"[1]RelatedPartyRevenue!X321","v":0},null,0,0,0,0,0,0]
[0,0,{"$f":"IFERROR(INDEX((Settings!$M$17:$M$236),MATCH(RelatedPartyRevenue!G322,Settings!$AD$18:$AD$166,0)),0)","v":0},null,null,{"$f":"[1]RelatedPartyRevenue!F322","v":0},{"$f":"[1]RelatedPartyRevenue!G322","v":0},{"$f":"[1]RelatedPartyRevenue!H322","v":0},null,{"$f":"[1]RelatedPartyRevenue!M322","v":0},{"$f":"[1]RelatedPartyRevenue!M322","v":0},{"$f":"[1]RelatedPartyRevenue!O322","v":0},{"$f":"[1]RelatedPartyRevenue!O322","v":0},{"$f":"[1]RelatedPartyRevenue!Q322","v":0},{"$f":"[1]RelatedPartyRevenue!Q322","v":0},{"$f":"[1]RelatedPartyRevenue!S322","v":0},{"$f":"[1]RelatedPartyRevenue!S322","v":0},{"$f":"[1]RelatedPartyRevenue!U322","v":0},{"$f":"[1]RelatedPartyRevenue!U322","v":0},{"$f":"[1]RelatedPartyRevenue!V322","v":0},{"$f":"[1]RelatedPartyRevenue!V322","v":0},0,null,{"$f":"[1]RelatedPartyRevenue!X322","v":0},null,0,0,0,0,0,0]
[0,0,{"$f":"IFERROR(INDEX((Settings!$M$17:$M$236),MATCH(RelatedPartyRevenue!G323,Settings!$AD$18:$AD$166,0)),0)","v":0},null,null,{"$f":"[1]RelatedPartyRevenue!F323","v":0},{"$f":"[1]RelatedPartyRevenue!G323","v":0},{"$f":"[1]RelatedPartyRevenue!H323","v":0},null,{"$f":"[1]RelatedPartyRevenue!M323","v":0},{"$f":"[1]RelatedPartyRevenue!M323","v":0},{"$f":"[1]RelatedPartyRevenue!O323","v":0},{"$f":"[1]RelatedPartyRevenue!O323","v":0},{"$f":"[1]RelatedPartyRevenue!Q323","v":0},{"$f":"[1]RelatedPartyRevenue!Q323","v":0},{"$f":"[1]RelatedPartyRevenue!S323","v":0},{"$f":"[1]RelatedPartyRevenue!S323","v":0},{"$f":"[1]RelatedPartyRevenue!U323","v":0},{"$f":"[1]RelatedPartyRevenue!U323","v":0},{"$f":"[1]RelatedPartyRevenue!V323","v":0},{"$f":"[1]RelatedPartyRevenue!V323","v":0},0,null,{"$f":"[1]RelatedPartyRevenue!X323","v":0},null,0,0,0,0,0,0]
[0,0,{"$f":"IFERROR(INDEX((Settings!$M$17:$M$236),MATCH(RelatedPartyRevenue!G324,Settings!$AD$18:$AD$166,0)),0)","v":0},null,null,{"$f":"[1]RelatedPartyRevenue!F324","v":0},{"$f":"[1]RelatedPartyRevenue!G324","v":0},{"$f":"[1]RelatedPartyRevenue!H324","v":0},null,{"$f":"[1]RelatedPartyRevenue!M324","v":0},{"$f":"[1]RelatedPartyRevenue!M324","v":0},{"$f":"[1]RelatedPartyRevenue!O324","v":0},{"$f":"[1]RelatedPartyRevenue!O324","v":0},{"$f":"[1]RelatedPartyRevenue!Q324","v":0},{"$f":"[1]RelatedPartyRevenue!Q324","v":0},{"$f":"[1]RelatedPartyRevenue!S324","v":0},{"$f":"[1]RelatedPartyRevenue!S324","v":0},{"$f":"[1]RelatedPartyRevenue!U324","v":0},{"$f":"[1]RelatedPartyRevenue!U324","v":0},{"$f":"[1]RelatedPartyRevenue!V324","v":0},{"$f":"[1]RelatedPartyRevenue!V324","v":0},0,null,{"$f":"[1]RelatedPartyRevenue!X324","v":0},null,0,0,0,0,0,0]
[0,0,{"$f":"IFERROR(INDEX((Settings!$M$17:$M$236),MATCH(RelatedPartyRevenue!G325,Settings!$AD$18:$AD$166,0)),0)","v":0},null,null,{"$f":"[1]RelatedPartyRevenue!F325","v":0},{"$f":"[1]RelatedPartyRevenue!G325","v":0},{"$f":"[1]RelatedPartyRevenue!H325","v":0},null,{"$f":"[1]RelatedPartyRevenue!M325","v":0},{"$f":"[1]RelatedPartyRevenue!M325","v":0},{"$f":"[1]RelatedPartyRevenue!O325","v":0},{"$f":"[1]RelatedPartyRevenue!O325","v":0},{"$f":"[1]RelatedPartyRevenue!Q325","v":0},{"$f":"[1]RelatedPartyRevenue!Q325","v":0},{"$f":"[1]RelatedPartyRevenue!S325","v":0},{"$f":"[1]RelatedPartyRevenue!S325","v":0},{"$f":"[1]RelatedPartyRevenue!U325","v":0},{"$f":"[1]RelatedPartyRevenue!U325","v":0},{"$f":"[1]RelatedPartyRevenue!V325","v":0},{"$f":"[1]RelatedPartyRevenue!V325","v":0},0,null,{"$f":"[1]RelatedPartyRevenue!X325","v":0},null,0,0,0,0,0,0]
[0,0,{"$f":"IFERROR(INDEX((Settings!$M$17:$M$236),MATCH(RelatedPartyRevenue!G326,Settings!$AD$18:$AD$166,0)),0)","v":0},null,null,{"$f":"[1]RelatedPartyRevenue!F326","v":0},{"$f":"[1]RelatedPartyRevenue!G326","v":0},{"$f":"[1]RelatedPartyRevenue!H326","v":0},null,{"$f":"[1]RelatedPartyRevenue!M326","v":0},{"$f":"[1]RelatedPartyRevenue!M326","v":0},{"$f":"[1]RelatedPartyRevenue!O326","v":0},{"$f":"[1]RelatedPartyRevenue!O326","v":0},{"$f":"[1]RelatedPartyRevenue!Q326","v":0},{"$f":"[1]RelatedPartyRevenue!Q326","v":0},{"$f":"[1]RelatedPartyRevenue!S326","v":0},{"$f":"[1]RelatedPartyRevenue!S326","v":0},{"$f":"[1]RelatedPartyRevenue!U326","v":0},{"$f":"[1]RelatedPartyRevenue!U326","v":0},{"$f":"[1]RelatedPartyRevenue!V326","v":0},{"$f":"[1]RelatedPartyRevenue!V326","v":0},0,null,{"$f":"[1]RelatedPartyRevenue!X326","v":0},null,0,0,0,0,0,0]
[0,0,{"$f":"IFERROR(INDEX((Settings!$M$17:$M$236),MATCH(RelatedPartyRevenue!G327,Settings!$AD$18:$AD$166,0)),0)","v":0},null,null,{"$f":"[1]RelatedPartyRevenue!F327","v":0},{"$f":"[1]RelatedPartyRevenue!G327","v":0},{"$f":"[1]RelatedPartyRevenue!H327","v":0},null,{"$f":"[1]RelatedPartyRevenue!M327","v":0},{"$f":"[1]RelatedPartyRevenue!M327","v":0},{"$f":"[1]RelatedPartyRevenue!O327","v":0},{"$f":"[1]RelatedPartyRevenue!O327","v":0},{"$f":"[1]RelatedPartyRevenue!Q327","v":0},{"$f":"[1]RelatedPartyRevenue!Q327","v":0},{"$f":"[1]RelatedPartyRevenue!S327","v":0},{"$f":"[1]RelatedPartyRevenue!S327","v":0},{"$f":"[1]RelatedPartyRevenue!U327","v":0},{"$f":"[1]RelatedPartyRevenue!U327","v":0},{"$f":"[1]RelatedPartyRevenue!V327","v":0},{"$f":"[1]RelatedPartyRevenue!V327","v":0},0,null,{"$f":"[1]RelatedPartyRevenue!X327","v":0},null,0,0,0,0,0,0]
[0,0,{"$f":"IFERROR(INDEX((Settings!$M$17:$M$236),MATCH(RelatedPartyRevenue!G328,Settings!$AD$18:$AD$166,0)),0)","v":0},null,null,{"$f":"[1]RelatedPartyRevenue!F328","v":0},{"$f":"[1]RelatedPartyRevenue!G328","v":0},{"$f":"[1]RelatedPartyRevenue!H328","v":0},null,{"$f":"[1]RelatedPartyRevenue!M328","v":0},{"$f":"[1]RelatedPartyRevenue!M328","v":0},{"$f":"[1]RelatedPartyRevenue!O328","v":0},{"$f":"[1]RelatedPartyRevenue!O328","v":0},{"$f":"[1]RelatedPartyRevenue!Q328","v":0},{"$f":"[1]RelatedPartyRevenue!Q328","v":0},{"$f":"[1]RelatedPartyRevenue!S328","v":0},{"$f":"[1]RelatedPartyRevenue!S328","v":0},{"$f":"[1]RelatedPartyRevenue!U328","v":0},{"$f":"[1]RelatedPartyRevenue!U328","v":0},{"$f":"[1]RelatedPartyRevenue!V328","v":0},{"$f":"[1]RelatedPartyRevenue!V328","v":0},0,null,{"$f":"[1]RelatedPartyRevenue!X328","v":0},null,0,0,0,0,0,0]
[0,0,{"$f":"IFERROR(INDEX((Settings!$M$17:$M$236),MATCH(RelatedPartyRevenue!G329,Settings!$AD$18:$AD$166,0)),0)","v":0},null,null,{"$f":"[1]RelatedPartyRevenue!F329","v":0},{"$f":"[1]RelatedPartyRevenue!G329","v":0},{"$f":"[1]RelatedPartyRevenue!H329","v":0},null,{"$f":"[1]RelatedPartyRevenue!M329","v":0},{"$f":"[1]RelatedPartyRevenue!M329","v":0},{"$f":"[1]RelatedPartyRevenue!O329","v":0},{"$f":"[1]RelatedPartyRevenue!O329","v":0},{"$f":"[1]RelatedPartyRevenue!Q329","v":0},{"$f":"[1]RelatedPartyRevenue!Q329","v":0},{"$f":"[1]RelatedPartyRevenue!S329","v":0},{"$f":"[1]RelatedPartyRevenue!S329","v":0},{"$f":"[1]RelatedPartyRevenue!U329","v":0},{"$f":"[1]RelatedPartyRevenue!U329","v":0},{"$f":"[1]RelatedPartyRevenue!V329","v":0},{"$f":"[1]RelatedPartyRevenue!V329","v":0},0,null,{"$f":"[1]RelatedPartyRevenue!X329","v":0},null,0,0,0,0,0,0]
[0,0,{"$f":"IFERROR(INDEX((Settings!$M$17:$M$236),MATCH(RelatedPartyRevenue!G330,Settings!$AD$18:$AD$166,0)),0)","v":0},null,null,{"$f":"[1]RelatedPartyRevenue!F330","v":0},{"$f":"[1]RelatedPartyRevenue!G330","v":0},{"$f":"[1]RelatedPartyRevenue!H330","v":0},null,{"$f":"[1]RelatedPartyRevenue!M330","v":0},{"$f":"[1]RelatedPartyRevenue!M330","v":0},{"$f":"[1]RelatedPartyRevenue!O330","v":0},{"$f":"[1]RelatedPartyRevenue!O330","v":0},{"$f":"[1]RelatedPartyRevenue!Q330","v":0},{"$f":"[1]RelatedPartyRevenue!Q330","v":0},{"$f":"[1]RelatedPartyRevenue!S330","v":0},{"$f":"[1]RelatedPartyRevenue!S330","v":0},{"$f":"[1]RelatedPartyRevenue!U330","v":0},{"$f":"[1]RelatedPartyRevenue!U330","v":0},{"$f":"[1]RelatedPartyRevenue!V330","v":0},{"$f":"[1]RelatedPartyRevenue!V330","v":0},0,null,{"$f":"[1]RelatedPartyRevenue!X330","v":0},null,0,0,0,0,0,0]
[0,{"$f":"IF($G331=$G$7,1,0)","v":0},{"$f":"IFERROR(INDEX((Settings!$M$17:$M$236),MATCH(RelatedPartyRevenue!G331,Settings!$AD$18:$AD$166,0)),0)","v":0},null,null,{"$f":"[1]RelatedPartyRevenue!F331","v":0},{"$f":"[1]RelatedPartyRevenue!G331","v":0},{"$f":"[1]RelatedPartyRevenue!H331","v":0},null,{"$f":"[1]RelatedPartyRevenue!M331","v":0},{"$f":"[1]RelatedPartyRevenue!M331","v":0},{"$f":"[1]RelatedPartyRevenue!O331","v":0},{"$f":"[1]RelatedPartyRevenue!O331","v":0},{"$f":"[1]RelatedPartyRevenue!Q331","v":0},{"$f":"[1]RelatedPartyRevenue!Q331","v":0},{"$f":"[1]RelatedPartyRevenue!S331","v":0},{"$f":"[1]RelatedPartyRevenue!S331","v":0},{"$f":"[1]RelatedPartyRevenue!U331","v":0},{"$f":"[1]RelatedPartyRevenue!U331","v":0},{"$f":"[1]RelatedPartyRevenue!V331","v":0},{"$f":"[1]RelatedPartyRevenue!V331","v":0},0,null,{"$f":"[1]RelatedPartyRevenue!X331","v":0},null,0,0,0,0,0,0]
[{"$f":"IF(SUM(J332:V332)>0,1,0)","v":0},0,{"$f":"IFERROR(INDEX((Settings!$M$17:$M$236),MATCH(RelatedPartyRevenue!G332,Settings!$AD$18:$AD$166,0)),0)","v":0},null,null,{"$f":"[1]RelatedPartyRevenue!F332","v":0},{"$f":"[1]RelatedPartyRevenue!G332","v":0},{"$f":"[1]RelatedPartyRevenue!H332","v":0},null,{"$f":"[1]RelatedPartyRevenue!M332","v":0},{"$f":"[1]RelatedPartyRevenue!M332","v":0},{"$f":"[1]RelatedPartyRevenue!O332","v":0},{"$f":"[1]RelatedPartyRevenue!O332","v":0},{"$f":"[1]RelatedPartyRevenue!Q332","v":0},{"$f":"[1]RelatedPartyRevenue!Q332","v":0},{"$f":"[1]RelatedPartyRevenue!S332","v":0},{"$f":"[1]RelatedPartyRevenue!S332","v":0},{"$f":"[1]RelatedPartyRevenue!U332","v":0},{"$f":"[1]RelatedPartyRevenue!U332","v":0},{"$f":"[1]RelatedPartyRevenue!V332","v":0},{"$f":"[1]RelatedPartyRevenue!V332","v":0},0,null,{"$f":"[1]RelatedPartyRevenue!X332","v":0},null,{"$f":"K332-J332","v":0},{"$f":"M332-L332","v":0},0,0,0,0]
[0,0,{"$f":"IFERROR(INDEX((Settings!$M$17:$M$236),MATCH(RelatedPartyRevenue!G333,Settings!$AD$18:$AD$166,0)),0)","v":0},null,null,{"$f":"[1]RelatedPartyRevenue!F333","v":0},{"$f":"[1]RelatedPartyRevenue!G333","v":0},{"$f":"[1]RelatedPartyRevenue!H333","v":0},null,{"$f":"[1]RelatedPartyRevenue!M333","v":0},{"$f":"[1]RelatedPartyRevenue!M333","v":0},{"$f":"[1]RelatedPartyRevenue!O333","v":0},{"$f":"[1]RelatedPartyRevenue!O333","v":0},{"$f":"[1]RelatedPartyRevenue!Q333","v":0},{"$f":"[1]RelatedPartyRevenue!Q333","v":0},{"$f":"[1]RelatedPartyRevenue!S333","v":0},{"$f":"[1]RelatedPartyRevenue!S333","v":0},{"$f":"[1]RelatedPartyRevenue!U333","v":0},{"$f":"[1]RelatedPartyRevenue!U333","v":0},{"$f":"[1]RelatedPartyRevenue!V333","v":0},{"$f":"[1]RelatedPartyRevenue!V333","v":0},0,null,{"$f":"[1]RelatedPartyRevenue!X333","v":0},null,0,0,{"$f":"O333-N333","v":0},{"$f":"Q333-P333","v":0},{"$f":"S333-R333","v":0},{"$f":"U333-T333","v":0}]
[0,0,{"$f":"IFERROR(INDEX((Settings!$M$17:$M$236),MATCH(RelatedPartyRevenue!G334,Settings!$AD$18:$AD$166,0)),0)","v":0},null,null,{"$f":"[1]RelatedPartyRevenue!F334","v":0},{"$f":"[1]RelatedPartyRevenue!G334","v":0},{"$f":"[1]RelatedPartyRevenue!H334","v":0},null,{"$f":"[1]RelatedPartyRevenue!M334","v":0},{"$f":"[1]RelatedPartyRevenue!M334","v":0},{"$f":"[1]RelatedPartyRevenue!O334","v":0},{"$f":"[1]RelatedPartyRevenue!O334","v":0},{"$f":"[1]RelatedPartyRevenue!Q334","v":0},{"$f":"[1]RelatedPartyRevenue!Q334","v":0},{"$f":"[1]RelatedPartyRevenue!S334","v":0},{"$f":"[1]RelatedPartyRevenue!S334","v":0},{"$f":"[1]RelatedPartyRevenue!U334","v":0},{"$f":"[1]RelatedPartyRevenue!U334","v":0},{"$f":"[1]RelatedPartyRevenue!V334","v":0},{"$f":"[1]RelatedPartyRevenue!V334","v":0},0,null,{"$f":"[1]RelatedPartyRevenue!X334","v":0},null,0,0,0,0,0,0]
[0,0,{"$f":"IFERROR(INDEX((Settings!$M$17:$M$236),MATCH(RelatedPartyRevenue!G335,Settings!$AD$18:$AD$166,0)),0)","v":0},null,null,{"$f":"[1]RelatedPartyRevenue!F335","v":0},{"$f":"[1]RelatedPartyRevenue!G335","v":0},{"$f":"[1]RelatedPartyRevenue!H335","v":0},null,{"$f":"[1]RelatedPartyRevenue!M335","v":0},{"$f":"[1]RelatedPartyRevenue!M335","v":0},{"$f":"[1]RelatedPartyRevenue!O335","v":0},{"$f":"[1]RelatedPartyRevenue!O335","v":0},{"$f":"[1]RelatedPartyRevenue!Q335","v":0},{"$f":"[1]RelatedPartyRevenue!Q335","v":0},{"$f":"[1]RelatedPartyRevenue!S335","v":0},{"$f":"[1]RelatedPartyRevenue!S335","v":0},{"$f":"[1]RelatedPartyRevenue!U335","v":0},{"$f":"[1]RelatedPartyRevenue!U335","v":0},{"$f":"[1]RelatedPartyRevenue!V335","v":0},{"$f":"[1]RelatedPartyRevenue!V335","v":0},0,null,{"$f":"[1]RelatedPartyRevenue!X335","v":0},null,0,0,0,0,0,0]
[0,0,{"$f":"IFERROR(INDEX((Settings!$M$17:$M$236),MATCH(RelatedPartyRevenue!G336,Settings!$AD$18:$AD$166,0)),0)","v":0},null,null,{"$f":"[1]RelatedPartyRevenue!F336","v":0},{"$f":"[1]RelatedPartyRevenue!G336","v":0},{"$f":"[1]RelatedPartyRevenue!H336","v":0},null,{"$f":"[1]RelatedPartyRevenue!M336","v":0},{"$f":"[1]RelatedPartyRevenue!M336","v":0},{"$f":"[1]RelatedPartyRevenue!O336","v":0},{"$f":"[1]RelatedPartyRevenue!O336","v":0},{"$f":"[1]RelatedPartyRevenue!Q336","v":0},{"$f":"[1]RelatedPartyRevenue!Q336","v":0},{"$f":"[1]RelatedPartyRevenue!S336","v":0},{"$f":"[1]RelatedPartyRevenue!S336","v":0},{"$f":"[1]RelatedPartyRevenue!U336","v":0},{"$f":"[1]RelatedPartyRevenue!U336","v":0},{"$f":"[1]RelatedPartyRevenue!V336","v":0},{"$f":"[1]RelatedPartyRevenue!V336","v":0},0,null,{"$f":"[1]RelatedPartyRevenue!X336","v":0},null,0,0,0,0,0,0]
[0,0,{"$f":"IFERROR(INDEX((Settings!$M$17:$M$236),MATCH(RelatedPartyRevenue!G337,Settings!$AD$18:$AD$166,0)),0)","v":0},null,null,{"$f":"[1]RelatedPartyRevenue!F337","v":0},{"$f":"[1]RelatedPartyRevenue!G337","v":0},{"$f":"[1]RelatedPartyRevenue!H337","v":0},null,{"$f":"[1]RelatedPartyRevenue!M337","v":0},{"$f":"[1]RelatedPartyRevenue!M337","v":0},{"$f":"[1]RelatedPartyRevenue!O337","v":0},{"$f":"[1]RelatedPartyRevenue!O337","v":0},{"$f":"[1]RelatedPartyRevenue!Q337","v":0},{"$f":"[1]RelatedPartyRevenue!Q337","v":0},{"$f":"[1]RelatedPartyRevenue!S337","v":0},{"$f":"[1]RelatedPartyRevenue!S337","v":0},{"$f":"[1]RelatedPartyRevenue!U337","v":0},{"$f":"[1]RelatedPartyRevenue!U337","v":0},{"$f":"[1]RelatedPartyRevenue!V337","v":0},{"$f":"[1]RelatedPartyRevenue!V337","v":0},0,null,{"$f":"[1]RelatedPartyRevenue!X337","v":0},null,0,0,0,0,0,0]
[0,0,{"$f":"IFERROR(INDEX((Settings!$M$17:$M$236),MATCH(RelatedPartyRevenue!G338,Settings!$AD$18:$AD$166,0)),0)","v":0},null,null,{"$f":"[1]RelatedPartyRevenue!F338","v":0},{"$f":"[1]RelatedPartyRevenue!G338","v":0},{"$f":"[1]RelatedPartyRevenue!H338","v":0},null,{"$f":"[1]RelatedPartyRevenue!M338","v":0},{"$f":"[1]RelatedPartyRevenue!M338","v":0},{"$f":"[1]RelatedPartyRevenue!O338","v":0},{"$f":"[1]RelatedPartyRevenue!O338","v":0},{"$f":"[1]RelatedPartyRevenue!Q338","v":0},{"$f":"[1]RelatedPartyRevenue!Q338","v":0},{"$f":"[1]RelatedPartyRevenue!S338","v":0},{"$f":"[1]RelatedPartyRevenue!S338","v":0},{"$f":"[1]RelatedPartyRevenue!U338","v":0},{"$f":"[1]RelatedPartyRevenue!U338","v":0},{"$f":"[1]RelatedPartyRevenue!V338","v":0},{"$f":"[1]RelatedPartyRevenue!V338","v":0},0,null,{"$f":"[1]RelatedPartyRevenue!X338","v":0},null,0,0,0,0,0,0]
[0,0,{"$f":"IFERROR(INDEX((Settings!$M$17:$M$236),MATCH(RelatedPartyRevenue!G339,Settings!$AD$18:$AD$166,0)),0)","v":0},null,null,{"$f":"[1]RelatedPartyRevenue!F339","v":0},{"$f":"[1]RelatedPartyRevenue!G339","v":0},{"$f":"[1]RelatedPartyRevenue!H339","v":0},null,{"$f":"[1]RelatedPartyRevenue!M339","v":0},{"$f":"[1]RelatedPartyRevenue!M339","v":0},{"$f":"[1]RelatedPartyRevenue!O339","v":0},{"$f":"[1]RelatedPartyRevenue!O339","v":0},{"$f":"[1]RelatedPartyRevenue!Q339","v":0},{"$f":"[1]RelatedPartyRevenue!Q339","v":0},{"$f":"[1]RelatedPartyRevenue!S339","v":0},{"$f":"[1]RelatedPartyRevenue!S339","v":0},{"$f":"[1]RelatedPartyRevenue!U339","v":0},{"$f":"[1]RelatedPartyRevenue!U339","v":0},{"$f":"[1]RelatedPartyRevenue!V339","v":0},{"$f":"[1]RelatedPartyRevenue!V339","v":0},0,null,{"$f":"[1]RelatedPartyRevenue!X339","v":0},null,0,0,0,0,0,0]
[0,0,{"$f":"IFERROR(INDEX((Settings!$M$17:$M$236),MATCH(RelatedPartyRevenue!G340,Settings!$AD$18:$AD$166,0)),0)","v":0},null,null,{"$f":"[1]RelatedPartyRevenue!F340","v":0},{"$f":"[1]RelatedPartyRevenue!G340","v":0},{"$f":"[1]RelatedPartyRevenue!H340","v":0},null,{"$f":"[1]RelatedPartyRevenue!M340","v":0},{"$f":"[1]RelatedPartyRevenue!M340","v":0},{"$f":"[1]RelatedPartyRevenue!O340","v":0},{"$f":"[1]RelatedPartyRevenue!O340","v":0},{"$f":"[1]RelatedPartyRevenue!Q340","v":0},{"$f":"[1]RelatedPartyRevenue!Q340","v":0},{"$f":"[1]RelatedPartyRevenue!S340","v":0},{"$f":"[1]RelatedPartyRevenue!S340","v":0},{"$f":"[1]RelatedPartyRevenue!U340","v":0},{"$f":"[1]RelatedPartyRevenue!U340","v":0},{"$f":"[1]RelatedPartyRevenue!V340","v":0},{"$f":"[1]RelatedPartyRevenue!V340","v":0},0,null,{"$f":"[1]RelatedPartyRevenue!X340","v":0},null,0,0,0,0,0,0]
[0,0,{"$f":"IFERROR(INDEX((Settings!$M$17:$M$236),MATCH(RelatedPartyRevenue!G341,Settings!$AD$18:$AD$166,0)),0)","v":0},null,null,{"$f":"[1]RelatedPartyRevenue!F341","v":0},{"$f":"[1]RelatedPartyRevenue!G341","v":0},{"$f":"[1]RelatedPartyRevenue!H341","v":0},null,{"$f":"[1]RelatedPartyRevenue!M341","v":0},{"$f":"[1]RelatedPartyRevenue!M341","v":0},{"$f":"[1]RelatedPartyRevenue!O341","v":0},{"$f":"[1]RelatedPartyRevenue!O341","v":0},{"$f":"[1]RelatedPartyRevenue!Q341","v":0},{"$f":"[1]RelatedPartyRevenue!Q341","v":0},{"$f":"[1]RelatedPartyRevenue!S341","v":0},{"$f":"[1]RelatedPartyRevenue!S341","v":0},{"$f":"[1]RelatedPartyRevenue!U341","v":0},{"$f":"[1]RelatedPartyRevenue!U341","v":0},{"$f":"[1]RelatedPartyRevenue!V341","v":0},{"$f":"[1]RelatedPartyRevenue!V341","v":0},0,null,{"$f":"[1]RelatedPartyRevenue!X341","v":0},null,0,0,0,0,0,0]
[0,0,{"$f":"IFERROR(INDEX((Settings!$M$17:$M$236),MATCH(RelatedPartyRevenue!G342,Settings!$AD$18:$AD$166,0)),0)","v":0},null,null,{"$f":"[1]RelatedPartyRevenue!F342","v":0},{"$f":"[1]RelatedPartyRevenue!G342","v":0},{"$f":"[1]RelatedPartyRevenue!H342","v":0},null,{"$f":"[1]RelatedPartyRevenue!M342","v":0},{"$f":"[1]RelatedPartyRevenue!M342","v":0},{"$f":"[1]RelatedPartyRevenue!O342","v":0},{"$f":"[1]RelatedPartyRevenue!O342","v":0},{"$f":"[1]RelatedPartyRevenue!Q342","v":0},{"$f":"[1]RelatedPartyRevenue!Q342","v":0},{"$f":"[1]RelatedPartyRevenue!S342","v":0},{"$f":"[1]RelatedPartyRevenue!S342","v":0},{"$f":"[1]RelatedPartyRevenue!U342","v":0},{"$f":"[1]RelatedPartyRevenue!U342","v":0},{"$f":"[1]RelatedPartyRevenue!V342","v":0},{"$f":"[1]RelatedPartyRevenue!V342","v":0},0,null,{"$f":"[1]RelatedPartyRevenue!X342","v":0},null,0,0,0,0,0,0]
[0,0,{"$f":"IFERROR(INDEX((Settings!$M$17:$M$236),MATCH(RelatedPartyRevenue!G343,Settings!$AD$18:$AD$166,0)),0)","v":0},null,null,{"$f":"[1]RelatedPartyRevenue!F343","v":0},{"$f":"[1]RelatedPartyRevenue!G343","v":0},{"$f":"[1]RelatedPartyRevenue!H343","v":0},null,{"$f":"[1]RelatedPartyRevenue!M343","v":0},{"$f":"[1]RelatedPartyRevenue!M343","v":0},{"$f":"[1]RelatedPartyRevenue!O343","v":0},{"$f":"[1]RelatedPartyRevenue!O343","v":0},{"$f":"[1]RelatedPartyRevenue!Q343","v":0},{"$f":"[1]RelatedPartyRevenue!Q343","v":0},{"$f":"[1]RelatedPartyRevenue!S343","v":0},{"$f":"[1]RelatedPartyRevenue!S343","v":0},{"$f":"[1]RelatedPartyRevenue!U343","v":0},{"$f":"[1]RelatedPartyRevenue!U343","v":0},{"$f":"[1]RelatedPartyRevenue!V343","v":0},{"$f":"[1]RelatedPartyRevenue!V343","v":0},0,null,{"$f":"[1]RelatedPartyRevenue!X343","v":0},null,0,0,0,0,0,0]
[0,0,{"$f":"IFERROR(INDEX((Settings!$M$17:$M$236),MATCH(RelatedPartyRevenue!G344,Settings!$AD$18:$AD$166,0)),0)","v":0},null,null,{"$f":"[1]RelatedPartyRevenue!F344","v":0},{"$f":"[1]RelatedPartyRevenue!G344","v":0},{"$f":"[1]RelatedPartyRevenue!H344","v":0},null,{"$f":"[1]RelatedPartyRevenue!M344","v":0},{"$f":"[1]RelatedPartyRevenue!M344","v":0},{"$f":"[1]RelatedPartyRevenue!O344","v":0},{"$f":"[1]RelatedPartyRevenue!O344","v":0},{"$f":"[1]RelatedPartyRevenue!Q344","v":0},{"$f":"[1]RelatedPartyRevenue!Q344","v":0},{"$f":"[1]RelatedPartyRevenue!S344","v":0},{"$f":"[1]RelatedPartyRevenue!S344","v":0},{"$f":"[1]RelatedPartyRevenue!U344","v":0},{"$f":"[1]RelatedPartyRevenue!U344","v":0},{"$f":"[1]RelatedPartyRevenue!V344","v":0},{"$f":"[1]RelatedPartyRevenue!V344","v":0},0,null,{"$f":"[1]RelatedPartyRevenue!X344","v":0},null,0,0,0,0,0,0]
[0,0,{"$f":"IFERROR(INDEX((Settings!$M$17:$M$236),MATCH(RelatedPartyRevenue!G345,Settings!$AD$18:$AD$166,0)),0)","v":0},null,null,{"$f":"[1]RelatedPartyRevenue!F345","v":0},{"$f":"[1]RelatedPartyRevenue!G345","v":0},{"$f":"[1]RelatedPartyRevenue!H345","v":0},null,{"$f":"[1]RelatedPartyRevenue!M345","v":0},{"$f":"[1]RelatedPartyRevenue!M345","v":0},{"$f":"[1]RelatedPartyRevenue!O345","v":0},{"$f":"[1]RelatedPartyRevenue!O345","v":0},{"$f":"[1]RelatedPartyRevenue!Q345","v":0},{"$f":"[1]RelatedPartyRevenue!Q345","v":0},{"$f":"[1]RelatedPartyRevenue!S345","v":0},{"$f":"[1]RelatedPartyRevenue!S345","v":0},{"$f":"[1]RelatedPartyRevenue!U345","v":0},{"$f":"[1]RelatedPartyRevenue!U345","v":0},{"$f":"[1]RelatedPartyRevenue!V345","v":0},{"$f":"[1]RelatedPartyRevenue!V345","v":0},0,null,{"$f":"[1]RelatedPartyRevenue!X345","v":0},null,0,0,0,0,0,0]
[0,0,{"$f":"IFERROR(INDEX((Settings!$M$17:$M$236),MATCH(RelatedPartyRevenue!G346,Settings!$AD$18:$AD$166,0)),0)","v":0},null,null,{"$f":"[1]RelatedPartyRevenue!F346","v":0},{"$f":"[1]RelatedPartyRevenue!G346","v":0},{"$f":"[1]RelatedPartyRevenue!H346","v":0},null,{"$f":"[1]RelatedPartyRevenue!M346","v":0},{"$f":"[1]RelatedPartyRevenue!M346","v":0},{"$f":"[1]RelatedPartyRevenue!O346","v":0},{"$f":"[1]RelatedPartyRevenue!O346","v":0},{"$f":"[1]RelatedPartyRevenue!Q346","v":0},{"$f":"[1]RelatedPartyRevenue!Q346","v":0},{"$f":"[1]RelatedPartyRevenue!S346","v":0},{"$f":"[1]RelatedPartyRevenue!S346","v":0},{"$f":"[1]RelatedPartyRevenue!U346","v":0},{"$f":"[1]RelatedPartyRevenue!U346","v":0},{"$f":"[1]RelatedPartyRevenue!V346","v":0},{"$f":"[1]RelatedPartyRevenue!V346","v":0},0,null,{"$f":"[1]RelatedPartyRevenue!X346","v":0},null,0,0,0,0,0,0]
[0,0,{"$f":"IFERROR(INDEX((Settings!$M$17:$M$236),MATCH(RelatedPartyRevenue!G347,Settings!$AD$18:$AD$166,0)),0)","v":0},null,null,{"$f":"[1]RelatedPartyRevenue!F347","v":0},{"$f":"[1]RelatedPartyRevenue!G347","v":0},{"$f":"[1]RelatedPartyRevenue!H347","v":0},null,{"$f":"[1]RelatedPartyRevenue!M347","v":0},{"$f":"[1]RelatedPartyRevenue!M347","v":0},{"$f":"[1]RelatedPartyRevenue!O347","v":0},{"$f":"[1]RelatedPartyRevenue!O347","v":0},{"$f":"[1]RelatedPartyRevenue!Q347","v":0},{"$f":"[1]RelatedPartyRevenue!Q347","v":0},{"$f":"[1]RelatedPartyRevenue!S347","v":0},{"$f":"[1]RelatedPartyRevenue!S347","v":0},{"$f":"[1]RelatedPartyRevenue!U347","v":0},{"$f":"[1]RelatedPartyRevenue!U347","v":0},{"$f":"[1]RelatedPartyRevenue!V347","v":0},{"$f":"[1]RelatedPartyRevenue!V347","v":0},0,null,{"$f":"[1]RelatedPartyRevenue!X347","v":0},null,0,0,0,0,0,0]
[0,0,{"$f":"IFERROR(INDEX((Settings!$M$17:$M$236),MATCH(RelatedPartyRevenue!G348,Settings!$AD$18:$AD$166,0)),0)","v":0},null,null,{"$f":"[1]RelatedPartyRevenue!F348","v":0},{"$f":"[1]RelatedPartyRevenue!G348","v":0},{"$f":"[1]RelatedPartyRevenue!H348","v":0},null,{"$f":"[1]RelatedPartyRevenue!M348","v":0},{"$f":"[1]RelatedPartyRevenue!M348","v":0},{"$f":"[1]RelatedPartyRevenue!O348","v":0},{"$f":"[1]RelatedPartyRevenue!O348","v":0},{"$f":"[1]RelatedPartyRevenue!Q348","v":0},{"$f":"[1]RelatedPartyRevenue!Q348","v":0},{"$f":"[1]RelatedPartyRevenue!S348","v":0},{"$f":"[1]RelatedPartyRevenue!S348","v":0},{"$f":"[1]RelatedPartyRevenue!U348","v":0},{"$f":"[1]RelatedPartyRevenue!U348","v":0},{"$f":"[1]RelatedPartyRevenue!V348","v":0},{"$f":"[1]RelatedPartyRevenue!V348","v":0},0,null,{"$f":"[1]RelatedPartyRevenue!X348","v":0},null,0,0,0,0,0,0]
[0,0,{"$f":"IFERROR(INDEX((Settings!$M$17:$M$236),MATCH(RelatedPartyRevenue!G349,Settings!$AD$18:$AD$166,0)),0)","v":0},null,null,{"$f":"[1]RelatedPartyRevenue!F349","v":0},{"$f":"[1]RelatedPartyRevenue!G349","v":0},{"$f":"[1]RelatedPartyRevenue!H349","v":0},null,{"$f":"[1]RelatedPartyRevenue!M349","v":0},{"$f":"[1]RelatedPartyRevenue!M349","v":0},{"$f":"[1]RelatedPartyRevenue!O349","v":0},{"$f":"[1]RelatedPartyRevenue!O349","v":0},{"$f":"[1]RelatedPartyRevenue!Q349","v":0},{"$f":"[1]RelatedPartyRevenue!Q349","v":0},{"$f":"[1]RelatedPartyRevenue!S349","v":0},{"$f":"[1]RelatedPartyRevenue!S349","v":0},{"$f":"[1]RelatedPartyRevenue!U349","v":0},{"$f":"[1]RelatedPartyRevenue!U349","v":0},{"$f":"[1]RelatedPartyRevenue!V349","v":0},{"$f":"[1]RelatedPartyRevenue!V349","v":0},0,null,{"$f":"[1]RelatedPartyRevenue!X349","v":0},null,0,0,0,0,0,0]
[0,0,{"$f":"IFERROR(INDEX((Settings!$M$17:$M$236),MATCH(RelatedPartyRevenue!G350,Settings!$AD$18:$AD$166,0)),0)","v":0},null,null,{"$f":"[1]RelatedPartyRevenue!F350","v":0},{"$f":"[1]RelatedPartyRevenue!G350","v":0},{"$f":"[1]RelatedPartyRevenue!H350","v":0},null,{"$f":"[1]RelatedPartyRevenue!M350","v":0},{"$f":"[1]RelatedPartyRevenue!M350","v":0},{"$f":"[1]RelatedPartyRevenue!O350","v":0},{"$f":"[1]RelatedPartyRevenue!O350","v":0},{"$f":"[1]RelatedPartyRevenue!Q350","v":0},{"$f":"[1]RelatedPartyRevenue!Q350","v":0},{"$f":"[1]RelatedPartyRevenue!S350","v":0},{"$f":"[1]RelatedPartyRevenue!S350","v":0},{"$f":"[1]RelatedPartyRevenue!U350","v":0},{"$f":"[1]RelatedPartyRevenue!U350","v":0},{"$f":"[1]RelatedPartyRevenue!V350","v":0},{"$f":"[1]RelatedPartyRevenue!V350","v":0},0,null,{"$f":"[1]RelatedPartyRevenue!X350","v":0},null,0,0,0,0,0,0]
[0,0,{"$f":"IFERROR(INDEX((Settings!$M$17:$M$236),MATCH(RelatedPartyRevenue!G351,Settings!$AD$18:$AD$166,0)),0)","v":0},null,null,{"$f":"[1]RelatedPartyRevenue!F351","v":0},{"$f":"[1]RelatedPartyRevenue!G351","v":0},{"$f":"[1]RelatedPartyRevenue!H351","v":0},null,{"$f":"[1]RelatedPartyRevenue!M351","v":0},{"$f":"[1]RelatedPartyRevenue!M351","v":0},{"$f":"[1]RelatedPartyRevenue!O351","v":0},{"$f":"[1]RelatedPartyRevenue!O351","v":0},{"$f":"[1]RelatedPartyRevenue!Q351","v":0},{"$f":"[1]RelatedPartyRevenue!Q351","v":0},{"$f":"[1]RelatedPartyRevenue!S351","v":0},{"$f":"[1]RelatedPartyRevenue!S351","v":0},{"$f":"[1]RelatedPartyRevenue!U351","v":0},{"$f":"[1]RelatedPartyRevenue!U351","v":0},{"$f":"[1]RelatedPartyRevenue!V351","v":0},{"$f":"[1]RelatedPartyRevenue!V351","v":0},0,null,{"$f":"[1]RelatedPartyRevenue!X351","v":0},null,0,0,0,0,0,0]
[0,0,{"$f":"IFERROR(INDEX((Settings!$M$17:$M$236),MATCH(RelatedPartyRevenue!G352,Settings!$AD$18:$AD$166,0)),0)","v":0},null,null,{"$f":"[1]RelatedPartyRevenue!F352","v":0},{"$f":"[1]RelatedPartyRevenue!G352","v":0},{"$f":"[1]RelatedPartyRevenue!H352","v":0},null,{"$f":"[1]RelatedPartyRevenue!M352","v":0},{"$f":"[1]RelatedPartyRevenue!M352","v":0},{"$f":"[1]RelatedPartyRevenue!O352","v":0},{"$f":"[1]RelatedPartyRevenue!O352","v":0},{"$f":"[1]RelatedPartyRevenue!Q352","v":0},{"$f":"[1]RelatedPartyRevenue!Q352","v":0},{"$f":"[1]RelatedPartyRevenue!S352","v":0},{"$f":"[1]RelatedPartyRevenue!S352","v":0},{"$f":"[1]RelatedPartyRevenue!U352","v":0},{"$f":"[1]RelatedPartyRevenue!U352","v":0},{"$f":"[1]RelatedPartyRevenue!V352","v":0},{"$f":"[1]RelatedPartyRevenue!V352","v":0},0,null,{"$f":"[1]RelatedPartyRevenue!X352","v":0},null,0,0,0,0,0,0]
[0,0,{"$f":"IFERROR(INDEX((Settings!$M$17:$M$236),MATCH(RelatedPartyRevenue!G353,Settings!$AD$18:$AD$166,0)),0)","v":0},null,null,{"$f":"[1]RelatedPartyRevenue!F353","v":0},{"$f":"[1]RelatedPartyRevenue!G353","v":0},{"$f":"[1]RelatedPartyRevenue!H353","v":0},null,{"$f":"[1]RelatedPartyRevenue!M353","v":0},{"$f":"[1]RelatedPartyRevenue!M353","v":0},{"$f":"[1]RelatedPartyRevenue!O353","v":0},{"$f":"[1]RelatedPartyRevenue!O353","v":0},{"$f":"[1]RelatedPartyRevenue!Q353","v":0},{"$f":"[1]RelatedPartyRevenue!Q353","v":0},{"$f":"[1]RelatedPartyRevenue!S353","v":0},{"$f":"[1]RelatedPartyRevenue!S353","v":0},{"$f":"[1]RelatedPartyRevenue!U353","v":0},{"$f":"[1]RelatedPartyRevenue!U353","v":0},{"$f":"[1]RelatedPartyRevenue!V353","v":0},{"$f":"[1]RelatedPartyRevenue!V353","v":0},0,null,{"$f":"[1]RelatedPartyRevenue!X353","v":0},null,0,0,0,0,0,0]
[0,0,{"$f":"IFERROR(INDEX((Settings!$M$17:$M$236),MATCH(RelatedPartyRevenue!G354,Settings!$AD$18:$AD$166,0)),0)","v":0},null,null,{"$f":"[1]RelatedPartyRevenue!F354","v":0},{"$f":"[1]RelatedPartyRevenue!G354","v":0},{"$f":"[1]RelatedPartyRevenue!H354","v":0},null,{"$f":"[1]RelatedPartyRevenue!M354","v":0},{"$f":"[1]RelatedPartyRevenue!M354","v":0},{"$f":"[1]RelatedPartyRevenue!O354","v":0},{"$f":"[1]RelatedPartyRevenue!O354","v":0},{"$f":"[1]RelatedPartyRevenue!Q354","v":0},{"$f":"[1]RelatedPartyRevenue!Q354","v":0},{"$f":"[1]RelatedPartyRevenue!S354","v":0},{"$f":"[1]RelatedPartyRevenue!S354","v":0},{"$f":"[1]RelatedPartyRevenue!U354","v":0},{"$f":"[1]RelatedPartyRevenue!U354","v":0},{"$f":"[1]RelatedPartyRevenue!V354","v":0},{"$f":"[1]RelatedPartyRevenue!V354","v":0},0,null,{"$f":"[1]RelatedPartyRevenue!X354","v":0},null,0,0,0,0,0,0]
[0,0,{"$f":"IFERROR(INDEX((Settings!$M$17:$M$236),MATCH(RelatedPartyRevenue!G355,Settings!$AD$18:$AD$166,0)),0)","v":0},null,null,{"$f":"[1]RelatedPartyRevenue!F355","v":0},{"$f":"[1]RelatedPartyRevenue!G355","v":0},{"$f":"[1]RelatedPartyRevenue!H355","v":0},null,{"$f":"[1]RelatedPartyRevenue!M355","v":0},{"$f":"[1]RelatedPartyRevenue!M355","v":0},{"$f":"[1]RelatedPartyRevenue!O355","v":0},{"$f":"[1]RelatedPartyRevenue!O355","v":0},{"$f":"[1]RelatedPartyRevenue!Q355","v":0},{"$f":"[1]RelatedPartyRevenue!Q355","v":0},{"$f":"[1]RelatedPartyRevenue!S355","v":0},{"$f":"[1]RelatedPartyRevenue!S355","v":0},{"$f":"[1]RelatedPartyRevenue!U355","v":0},{"$f":"[1]RelatedPartyRevenue!U355","v":0},{"$f":"[1]RelatedPartyRevenue!V355","v":0},{"$f":"[1]RelatedPartyRevenue!V355","v":0},0,null,{"$f":"[1]RelatedPartyRevenue!X355","v":0},null,0,0,0,0,0,0]
[0,0,{"$f":"IFERROR(INDEX((Settings!$M$17:$M$236),MATCH(RelatedPartyRevenue!G356,Settings!$AD$18:$AD$166,0)),0)","v":0},null,null,{"$f":"[1]RelatedPartyRevenue!F356","v":0},{"$f":"[1]RelatedPartyRevenue!G356","v":0},{"$f":"[1]RelatedPartyRevenue!H356","v":0},null,{"$f":"[1]RelatedPartyRevenue!M356","v":0},{"$f":"[1]RelatedPartyRevenue!M356","v":0},{"$f":"[1]RelatedPartyRevenue!O356","v":0},{"$f":"[1]RelatedPartyRevenue!O356","v":0},{"$f":"[1]RelatedPartyRevenue!Q356","v":0},{"$f":"[1]RelatedPartyRevenue!Q356","v":0},{"$f":"[1]RelatedPartyRevenue!S356","v":0},{"$f":"[1]RelatedPartyRevenue!S356","v":0},{"$f":"[1]RelatedPartyRevenue!U356","v":0},{"$f":"[1]RelatedPartyRevenue!U356","v":0},{"$f":"[1]RelatedPartyRevenue!V356","v":0},{"$f":"[1]RelatedPartyRevenue!V356","v":0},0,null,{"$f":"[1]RelatedPartyRevenue!X356","v":0},null,0,0,0,0,0,0]
[0,0,{"$f":"IFERROR(INDEX((Settings!$M$17:$M$236),MATCH(RelatedPartyRevenue!G357,Settings!$AD$18:$AD$166,0)),0)","v":0},null,null,{"$f":"[1]RelatedPartyRevenue!F357","v":0},{"$f":"[1]RelatedPartyRevenue!G357","v":0},{"$f":"[1]RelatedPartyRevenue!H357","v":0},null,{"$f":"[1]RelatedPartyRevenue!M357","v":0},{"$f":"[1]RelatedPartyRevenue!M357","v":0},{"$f":"[1]RelatedPartyRevenue!O357","v":0},{"$f":"[1]RelatedPartyRevenue!O357","v":0},{"$f":"[1]RelatedPartyRevenue!Q357","v":0},{"$f":"[1]RelatedPartyRevenue!Q357","v":0},{"$f":"[1]RelatedPartyRevenue!S357","v":0},{"$f":"[1]RelatedPartyRevenue!S357","v":0},{"$f":"[1]RelatedPartyRevenue!U357","v":0},{"$f":"[1]RelatedPartyRevenue!U357","v":0},{"$f":"[1]RelatedPartyRevenue!V357","v":0},{"$f":"[1]RelatedPartyRevenue!V357","v":0},0,null,{"$f":"[1]RelatedPartyRevenue!X357","v":0},null,0,0,0,0,0,0]
[0,0,{"$f":"IFERROR(INDEX((Settings!$M$17:$M$236),MATCH(RelatedPartyRevenue!G358,Settings!$AD$18:$AD$166,0)),0)","v":0},null,null,{"$f":"[1]RelatedPartyRevenue!F358","v":0},{"$f":"[1]RelatedPartyRevenue!G358","v":0},{"$f":"[1]RelatedPartyRevenue!H358","v":0},null,{"$f":"[1]RelatedPartyRevenue!M358","v":0},{"$f":"[1]RelatedPartyRevenue!M358","v":0},{"$f":"[1]RelatedPartyRevenue!O358","v":0},{"$f":"[1]RelatedPartyRevenue!O358","v":0},{"$f":"[1]RelatedPartyRevenue!Q358","v":0},{"$f":"[1]RelatedPartyRevenue!Q358","v":0},{"$f":"[1]RelatedPartyRevenue!S358","v":0},{"$f":"[1]RelatedPartyRevenue!S358","v":0},{"$f":"[1]RelatedPartyRevenue!U358","v":0},{"$f":"[1]RelatedPartyRevenue!U358","v":0},{"$f":"[1]RelatedPartyRevenue!V358","v":0},{"$f":"[1]RelatedPartyRevenue!V358","v":0},0,null,{"$f":"[1]RelatedPartyRevenue!X358","v":0},null,0,0,0,0,0,0]
[0,0,{"$f":"IFERROR(INDEX((Settings!$M$17:$M$236),MATCH(RelatedPartyRevenue!G359,Settings!$AD$18:$AD$166,0)),0)","v":0},null,null,{"$f":"[1]RelatedPartyRevenue!F359","v":0},{"$f":"[1]RelatedPartyRevenue!G359","v":0},{"$f":"[1]RelatedPartyRevenue!H359","v":0},null,{"$f":"[1]RelatedPartyRevenue!M359","v":0},{"$f":"[1]RelatedPartyRevenue!M359","v":0},{"$f":"[1]RelatedPartyRevenue!O359","v":0},{"$f":"[1]RelatedPartyRevenue!O359","v":0},{"$f":"[1]RelatedPartyRevenue!Q359","v":0},{"$f":"[1]RelatedPartyRevenue!Q359","v":0},{"$f":"[1]RelatedPartyRevenue!S359","v":0},{"$f":"[1]RelatedPartyRevenue!S359","v":0},{"$f":"[1]RelatedPartyRevenue!U359","v":0},{"$f":"[1]RelatedPartyRevenue!U359","v":0},{"$f":"[1]RelatedPartyRevenue!V359","v":0},{"$f":"[1]RelatedPartyRevenue!V359","v":0},0,null,{"$f":"[1]RelatedPartyRevenue!X359","v":0},null,0,0,0,0,0,0]
[0,0,{"$f":"IFERROR(INDEX((Settings!$M$17:$M$236),MATCH(RelatedPartyRevenue!G360,Settings!$AD$18:$AD$166,0)),0)","v":0},null,null,{"$f":"[1]RelatedPartyRevenue!F360","v":0},{"$f":"[1]RelatedPartyRevenue!G360","v":0},{"$f":"[1]RelatedPartyRevenue!H360","v":0},null,{"$f":"[1]RelatedPartyRevenue!M360","v":0},{"$f":"[1]RelatedPartyRevenue!M360","v":0},{"$f":"[1]RelatedPartyRevenue!O360","v":0},{"$f":"[1]RelatedPartyRevenue!O360","v":0},{"$f":"[1]RelatedPartyRevenue!Q360","v":0},{"$f":"[1]RelatedPartyRevenue!Q360","v":0},{"$f":"[1]RelatedPartyRevenue!S360","v":0},{"$f":"[1]RelatedPartyRevenue!S360","v":0},{"$f":"[1]RelatedPartyRevenue!U360","v":0},{"$f":"[1]RelatedPartyRevenue!U360","v":0},{"$f":"[1]RelatedPartyRevenue!V360","v":0},{"$f":"[1]RelatedPartyRevenue!V360","v":0},0,null,{"$f":"[1]RelatedPartyRevenue!X360","v":0},null,0,0,0,0,0,0]
[null,null,null,null,null,"Total",null,null,null,{"$f":"SUM(J11:J360)","v":0},{"$f":"SUM(K11:K360)","v":0},{"$f":"SUM(L11:L360)","v":0},{"$f":"SUM(M11:M360)","v":0},{"$f":"SUM(N11:N360)","v":0},{"$f":"SUM(O11:O360)","v":0},{"$f":"SUM(P11:P360)","v":0},0,0,{"$f":"SUM(S11:S360)","v":0},0,{"$f":"SUM(U11:U360)","v":0},0,null,{"$f":"IF(V361<U361/2,\"Complete outer year budget\",\"\")","v":""}]
[]
[null,null,null,null,null,"Check",null,null,null,null,{"$f":"IF(K361>ENESummary!G63,K361-ENESummary!G63,0)","v":0},null,{"$f":"IF(M361>ENESummary!H63,M361-ENESummary!H63,0)","v":0},null,{"$f":"IF(O361>ENESummary!I63,O361-ENESummary!I63,0)","v":0},null,{"$f":"IF(Q361>ENESummary!J63,Q361-ENESummary!J63,0)","v":0},null,{"$f":"IF(S361>ENESummary!M63,S361-ENESummary!M63,0)","v":0},null,{"$f":"IF(U361>ENESummary!N63,U361-ENESummary!N63,0)","v":0},{"$f":"IF(V361>ENESummary!O63,V361-ENESummary!O63,0)","v":0}]

{"sheet":"RelatedPartyTransfers","index":29,"n_rows":375,"n_cols":31,"rows_kept":375,"cut":false,"hidden":false,"merged":[[7,20,7,21],[7,14,7,15],[7,16,7,17],[7,18,7,19]]}
[]
[null,null,null,null,null,null,null,null,null,null,null,null,null,null,null,null,null,null,null,null,null,null,null,null,null,null,null,null,null,null,"Receipt"]
[null,null,null,null,null,null,null,null,null,null,null,null,null,null,null,null,null,null,null,null,null,null,null,null,null,null,null,null,null,null,"Payment"]
[]
[]
[null,null,null,null,null,"PE No",{"$f":"Settings!$O$2","v":"PE126"}]
[null,null,null,null,null,"Entity name",{"$f":"Settings!$E$2","v":"South African Revenue Service"},null,null,null,null,{"$f":"IF(SUM($L$367:L369,L373:L375)=0,\"\",\"One of the checks are not BALANCING\")","v":""},null,{"$f":"IF(SUM($L$367:N369,N373:N375)=0,\"\",\"One of the checks are not BALANCING\")","v":""},null,{"$f":"IF(SUM($L$367:P369,P373:P375)=0,\"\",\"One of the checks are not BALANCING\")","v":""},null,{"$f":"IF(SUM($L$367:R369,R373:R375)=0,\"\",\"One of the checks are not BALANCING\")","v":""},null,{"$f":"IF(SUM($L$367:T369,T373:T375)=0,\"\",\"One of the checks are not BALANCING\")","v":""},null,{"$f":"IF(SUM($L$367:V369,V373:V375)=0,\"\",\"One of the checks are not BALANCING\")","v":""},{"$f":"IF(SUM($L$367:W369,W373:W375)=0,\"\",\"One of the checks are not BALANCING\")","v":""}]
[null,null,null,null,null,"Related Party Transfers (Receipts and Payments)",null,null,null,null,null,{"$f":"MyYearM3","v":"2022/23"},null,{"$f":"MyYearM2","v":"2023/24"},{"$f":"MyYearM1","v":"2024/25"},null,{"$f":"MyYear0","v":"2025/26"},null,{"$f":"MyYearP1","v":"2026/27"},null,{"$f":"MyYearP2","v":"2027/28"},null,{"$f":"MyYearP3","v":"2028/29"}]
[null,null,null,null,null,"R Thousand ",null,null,null,null,"Audited\noutcome",{"$f":"Hist_year3RestatedAudited","v":"Audited\noutcome"},"Audited\noutcome",{"$f":"Hist_year2RestatedAudited","v":"Audited\noutcome"},{"$f":"Hist_year1Budget","v":"Budget"},{"$f":"Hist_year1Audited","v":"Audited\noutcome"},{"$f":"Cur_YearBudgEst","v":"Budget\nestimate"},{"$f":"Cur_YearApprovedBudg","v":"Approved budget"},{"$f":"MTEF1BudgEst","v":"Budget\nestimate"},{"$f":"MTEF1RevBudgEst","v":"Revised\nbudget\nestimate"},{"$f":"MTEF2BudgEst","v":"Budget\nestimate"},{"$f":"MTEF2RevBudgEst","v":"Revised\nbudget\nestimate"},{"$f":"MTEF3PlanBudgetEst","v":"Planning\nbudget \nestimate"}]
["Hide/unhide","Item code","ItemCat",null,null,"Related Party Category","Related Party Name","Transfer Receipt/Payment","Purpose of transfer"]
[{"$f":"IF(SUM(K11:W11)>0,1,0)","v":0},{"$f":"IF($G11=$G$7,1,0)","v":0},{"$f":"IFERROR(INDEX((Settings!$M$17:$M$236),MATCH(RelatedPartyTransfers!G11,Settings!$AD$18:$AD$166,0)),0)","v":0},null,null,{"$f":"[1]RelatedPartyTransfers!F11","v":0},{"$f":"[1]RelatedPartyTransfers!G11","v":0},{"$f":"[1]RelatedPartyTransfers!H11","v":0},{"$f":"[1]RelatedPartyTransfers!I11","v":0},null,{"$f":"[1]RelatedPartyTransfers!M11","v":0},{"$f":"[1]RelatedPartyTransfers!N11","v":0},{"$f":"[1]RelatedPartyTransfers!O11","v":0},{"$f":"[1]RelatedPartyTransfers!P11","v":0},{"$f":"[1]RelatedPartyTransfers!Q11","v":0},{"$f":"[1]RelatedPartyTransfers!R11","v":0},{"$f":"[1]RelatedPartyTransfers!S11","v":0},{"$f":"[1]RelatedPartyTransfers!T11","v":0},{"$f":"[1]RelatedPartyTransfers!U11","v":0},{"$f":"[1]RelatedPartyTransfers!V11","v":0},{"$f":"[1]RelatedPartyTransfers!W11","v":0},{"$f":"[1]RelatedPartyTransfers!W11","v":0},0]
[{"$f":"IF(SUM(K12:W12)>0,1,0)","v":0},0,{"$f":"IFERROR(INDEX((Settings!$M$17:$M$236),MATCH(RelatedPartyTransfers!G12,Settings!$AD$18:$AD$166,0)),0)","v":0},null,null,{"$f":"[1]RelatedPartyTransfers!F12","v":0},{"$f":"[1]RelatedPartyTransfers!G12","v":0},{"$f":"[1]RelatedPartyTransfers!H12","v":0},{"$f":"[1]RelatedPartyTransfers!I12","v":0},null,{"$f":"[1]RelatedPartyTransfers!M12","v":0},{"$f":"[1]RelatedPartyTransfers!N12","v":0},{"$f":"[1]RelatedPartyTransfers!O12","v":0},{"$f":"[1]RelatedPartyTransfers!P12","v":0},{"$f":"[1]RelatedPartyTransfers!Q12","v":0},{"$f":"[1]RelatedPartyTransfers!R12","v":0},{"$f":"[1]RelatedPartyTransfers!S12","v":0},{"$f":"[1]RelatedPartyTransfers!T12","v":0},{"$f":"[1]RelatedPartyTransfers!U12","v":0},{"$f":"[1]RelatedPartyTransfers!V12","v":0},{"$f":"[1]RelatedPartyTransfers!W12","v":0},{"$f":"[1]RelatedPartyTransfers!W12","v":0},0]
[0,0,{"$f":"IFERROR(INDEX((Settings!$M$17:$M$236),MATCH(RelatedPartyTransfers!G13,Settings!$AD$18:$AD$166,0)),0)","v":0},null,null,{"$f":"[1]RelatedPartyTransfers!F13","v":0},{"$f":"[1]RelatedPartyTransfers!G13","v":0},{"$f":"[1]RelatedPartyTransfers!H13","v":0},{"$f":"[1]RelatedPartyTransfers!I13","v":0},null,{"$f":"[1]RelatedPartyTransfers!M13","v":0},{"$f":"[1]RelatedPartyTransfers!N13","v":0},{"$f":"[1]RelatedPartyTransfers!O13","v":0},{"$f":"[1]RelatedPartyTransfers!P13","v":0},{"$f":"[1]RelatedPartyTransfers!Q13","v":0},{"$f":"[1]RelatedPartyTransfers!R13","v":0},{"$f":"[1]RelatedPartyTransfers!S13","v":0},{"$f":"[1]RelatedPartyTransfers!T13","v":0},{"$f":"[1]RelatedPartyTransfers!U13","v":0},{"$f":"[1]RelatedPartyTransfers!V13","v":0},{"$f":"[1]RelatedPartyTransfers!W13","v":0},{"$f":"[1]RelatedPartyTransfers!W13","v":0},0]
[0,0,{"$f":"IFERROR(INDEX((Settings!$M$17:$M$236),MATCH(RelatedPartyTransfers!G14,Settings!$AD$18:$AD$166,0)),0)","v":0},null,null,{"$f":"[1]RelatedPartyTransfers!F14","v":0},{"$f":"[1]RelatedPartyTransfers!G14","v":0},{"$f":"[1]RelatedPartyTransfers!H14","v":0},{"$f":"[1]RelatedPartyTransfers!I14","v":0},null,{"$f":"[1]RelatedPartyTransfers!M14","v":0},{"$f":"[1]RelatedPartyTransfers!N14","v":0},{"$f":"[1]RelatedPartyTransfers!O14","v":0},{"$f":"[1]RelatedPartyTransfers!P14","v":0},{"$f":"[1]RelatedPartyTransfers!Q14","v":0},{"$f":"[1]RelatedPartyTransfers!R14","v":0},{"$f":"[1]RelatedPartyTransfers!S14","v":0},{"$f":"[1]RelatedPartyTransfers!T14","v":0},{"$f":"[1]RelatedPartyTransfers!U14","v":0},{"$f":"[1]RelatedPartyTransfers!V14","v":0},{"$f":"[1]RelatedPartyTransfers!W14","v":0},{"$f":"[1]RelatedPartyTransfers!W14","v":0},0]
[0,0,{"$f":"IFERROR(INDEX((Settings!$M$17:$M$236),MATCH(RelatedPartyTransfers!G15,Settings!$AD$18:$AD$166,0)),0)","v":0},null,null,{"$f":"[1]RelatedPartyTransfers!F15","v":0},{"$f":"[1]RelatedPartyTransfers!G15","v":0},{"$f":"[1]RelatedPartyTransfers!H15","v":0},{"$f":"[1]RelatedPartyTransfers!I15","v":0},null,{"$f":"[1]RelatedPartyTransfers!M15","v":0},{"$f":"[1]RelatedPartyTransfers!N15","v":0},{"$f":"[1]RelatedPartyTransfers!O15","v":0},{"$f":"[1]RelatedPartyTransfers!P15","v":0},{"$f":"[1]RelatedPartyTransfers!Q15","v":0},{"$f":"[1]RelatedPartyTransfers!R15","v":0},{"$f":"[1]RelatedPartyTransfers!S15","v":0},{"$f":"[1]RelatedPartyTransfers!T15","v":0},{"$f":"[1]RelatedPartyTransfers!U15","v":0},{"$f":"[1]RelatedPartyTransfers!V15","v":0},{"$f":"[1]RelatedPartyTransfers!W15","v":0},{"$f":"[1]RelatedPartyTransfers!W15","v":0},0]
[0,0,{"$f":"IFERROR(INDEX((Settings!$M$17:$M$236),MATCH(RelatedPartyTransfers!G16,Settings!$AD$18:$AD$166,0)),0)","v":0},null,null,{"$f":"[1]RelatedPartyTransfers!F16","v":0},{"$f":"[1]RelatedPartyTransfers!G16","v":0},{"$f":"[1]RelatedPartyTransfers!H16","v":0},{"$f":"[1]RelatedPartyTransfers!I16","v":0},null,{"$f":"[1]RelatedPartyTransfers!M16","v":0},{"$f":"[1]RelatedPartyTransfers!N16","v":0},{"$f":"[1]RelatedPartyTransfers!O16","v":0},{"$f":"[1]RelatedPartyTransfers!P16","v":0},{"$f":"[1]RelatedPartyTransfers!Q16","v":0},{"$f":"[1]RelatedPartyTransfers!R16","v":0},{"$f":"[1]RelatedPartyTransfers!S16","v":0},{"$f":"[1]RelatedPartyTransfers!T16","v":0},{"$f":"[1]RelatedPartyTransfers!U16","v":0},{"$f":"[1]RelatedPartyTransfers!V16","v":0},{"$f":"[1]RelatedPartyTransfers!W16","v":0},{"$f":"[1]RelatedPartyTransfers!W16","v":0},0]
[0,0,{"$f":"IFERROR(INDEX((Settings!$M$17:$M$236),MATCH(RelatedPartyTransfers!G17,Settings!$AD$18:$AD$166,0)),0)","v":0},null,null,{"$f":"[1]RelatedPartyTransfers!F17","v":0},{"$f":"[1]RelatedPartyTransfers!G17","v":0},{"$f":"[1]RelatedPartyTransfers!H17","v":0},{"$f":"[1]RelatedPartyTransfers!I17","v":0},null,{"$f":"[1]RelatedPartyTransfers!M17","v":0},{"$f":"[1]RelatedPartyTransfers!N17","v":0},{"$f":"[1]RelatedPartyTransfers!O17","v":0},{"$f":"[1]RelatedPartyTransfers!P17","v":0},{"$f":"[1]RelatedPartyTransfers!Q17","v":0},{"$f":"[1]RelatedPartyTransfers!R17","v":0},{"$f":"[1]RelatedPartyTransfers!S17","v":0},{"$f":"[1]RelatedPartyTransfers!T17","v":0},{"$f":"[1]RelatedPartyTransfers!U17","v":0},{"$f":"[1]RelatedPartyTransfers!V17","v":0},{"$f":"[1]RelatedPartyTransfers!W17","v":0},{"$f":"[1]RelatedPartyTransfers!W17","v":0},0]
[0,0,{"$f":"IFERROR(INDEX((Settings!$M$17:$M$236),MATCH(RelatedPartyTransfers!G18,Settings!$AD$18:$AD$166,0)),0)","v":0},null,null,{"$f":"[1]RelatedPartyTransfers!F18","v":0},{"$f":"[1]RelatedPartyTransfers!G18","v":0},{"$f":"[1]RelatedPartyTransfers!H18","v":0},{"$f":"[1]RelatedPartyTransfers!I18","v":0},null,{"$f":"[1]RelatedPartyTransfers!M18","v":0},{"$f":"[1]RelatedPartyTransfers!N18","v":0},{"$f":"[1]RelatedPartyTransfers!O18","v":0},{"$f":"[1]RelatedPartyTransfers!P18","v":0},{"$f":"[1]RelatedPartyTransfers!Q18","v":0},{"$f":"[1]RelatedPartyTransfers!R18","v":0},{"$f":"[1]RelatedPartyTransfers!S18","v":0},{"$f":"[1]RelatedPartyTransfers!T18","v":0},{"$f":"[1]RelatedPartyTransfers!U18","v":0},{"$f":"[1]RelatedPartyTransfers!V18","v":0},{"$f":"[1]RelatedPartyTransfers!W18","v":0},{"$f":"[1]RelatedPartyTransfers!W18","v":0},0]
[0,0,{"$f":"IFERROR(INDEX((Settings!$M$17:$M$236),MATCH(RelatedPartyTransfers!G19,Settings!$AD$18:$AD$166,0)),0)","v":0},null,null,{"$f":"[1]RelatedPartyTransfers!F19","v":0},{"$f":"[1]RelatedPartyTransfers!G19","v":0},{"$f":"[1]RelatedPartyTransfers!H19","v":0},{"$f":"[1]RelatedPartyTransfers!I19","v":0},null,{"$f":"[1]RelatedPartyTransfers!M19","v":0},{"$f":"[1]RelatedPartyTransfers!N19","v":0},{"$f":"[1]RelatedPartyTransfers!O19","v":0},{"$f":"[1]RelatedPartyTransfers!P19","v":0},{"$f":"[1]RelatedPartyTransfers!Q19","v":0},{"$f":"[1]RelatedPartyTransfers!R19","v":0},{"$f":"[1]RelatedPartyTransfers!S19","v":0},{"$f":"[1]RelatedPartyTransfers!T19","v":0},{"$f":"[1]RelatedPartyTransfers!U19","v":0},{"$f":"[1]RelatedPartyTransfers!V19","v":0},{"$f":"[1]RelatedPartyTransfers!W19","v":0},{"$f":"[1]RelatedPartyTransfers!W19","v":0},0]
[0,0,{"$f":"IFERROR(INDEX((Settings!$M$17:$M$236),MATCH(RelatedPartyTransfers!G20,Settings!$AD$18:$AD$166,0)),0)","v":0},null,null,{"$f":"[1]RelatedPartyTransfers!F20","v":0},{"$f":"[1]RelatedPartyTransfers!G20","v":0},{"$f":"[1]RelatedPartyTransfers!H20","v":0},{"$f":"[1]RelatedPartyTransfers!I20","v":0},null,{"$f":"[1]RelatedPartyTransfers!M20","v":0},{"$f":"[1]RelatedPartyTransfers!N20","v":0},{"$f":"[1]RelatedPartyTransfers!O20","v":0},{"$f":"[1]RelatedPartyTransfers!P20","v":0},{"$f":"[1]RelatedPartyTransfers!Q20","v":0},{"$f":"[1]RelatedPartyTransfers!R20","v":0},{"$f":"[1]RelatedPartyTransfers!S20","v":0},{"$f":"[1]RelatedPartyTransfers!T20","v":0},{"$f":"[1]RelatedPartyTransfers!U20","v":0},{"$f":"[1]RelatedPartyTransfers!V20","v":0},{"$f":"[1]RelatedPartyTransfers!W20","v":0},{"$f":"[1]RelatedPartyTransfers!W20","v":0},0]
[0,0,{"$f":"IFERROR(INDEX((Settings!$M$17:$M$236),MATCH(RelatedPartyTransfers!G21,Settings!$AD$18:$AD$166,0)),0)","v":0},null,null,{"$f":"[1]RelatedPartyTransfers!F21","v":0},{"$f":"[1]RelatedPartyTransfers!G21","v":0},{"$f":"[1]RelatedPartyTransfers!H21","v":0},{"$f":"[1]RelatedPartyTransfers!I21","v":0},null,{"$f":"[1]RelatedPartyTransfers!M21","v":0},{"$f":"[1]RelatedPartyTransfers!N21","v":0},{"$f":"[1]RelatedPartyTransfers!O21","v":0},{"$f":"[1]RelatedPartyTransfers!P21","v":0},{"$f":"[1]RelatedPartyTransfers!Q21","v":0},{"$f":"[1]RelatedPartyTransfers!R21","v":0},{"$f":"[1]RelatedPartyTransfers!S21","v":0},{"$f":"[1]RelatedPartyTransfers!T21","v":0},{"$f":"[1]RelatedPartyTransfers!U21","v":0},{"$f":"[1]RelatedPartyTransfers!V21","v":0},{"$f":"[1]RelatedPartyTransfers!W21","v":0},{"$f":"[1]RelatedPartyTransfers!W21","v":0},0]
[0,0,{"$f":"IFERROR(INDEX((Settings!$M$17:$M$236),MATCH(RelatedPartyTransfers!G22,Settings!$AD$18:$AD$166,0)),0)","v":0},null,null,{"$f":"[1]RelatedPartyTransfers!F22","v":0},{"$f":"[1]RelatedPartyTransfers!G22","v":0},{"$f":"[1]RelatedPartyTransfers!H22","v":0},{"$f":"[1]RelatedPartyTransfers!I22","v":0},null,{"$f":"[1]RelatedPartyTransfers!M22","v":0},{"$f":"[1]RelatedPartyTransfers!N22","v":0},{"$f":"[1]RelatedPartyTransfers!O22","v":0},{"$f":"[1]RelatedPartyTransfers!P22","v":0},{"$f":"[1]RelatedPartyTransfers!Q22","v":0},{"$f":"[1]RelatedPartyTransfers!R22","v":0},{"$f":"[1]RelatedPartyTransfers!S22","v":0},{"$f":"[1]RelatedPartyTransfers!T22","v":0},{"$f":"[1]RelatedPartyTransfers!U22","v":0},{"$f":"[1]RelatedPartyTransfers!V22","v":0},{"$f":"[1]RelatedPartyTransfers!W22","v":0},{"$f":"[1]RelatedPartyTransfers!W22","v":0},0]
[0,0,{"$f":"IFERROR(INDEX((Settings!$M$17:$M$236),MATCH(RelatedPartyTransfers!G23,Settings!$AD$18:$AD$166,0)),0)","v":0},null,null,{"$f":"[1]RelatedPartyTransfers!F23","v":0},{"$f":"[1]RelatedPartyTransfers!G23","v":0},{"$f":"[1]RelatedPartyTransfers!H23","v":0},{"$f":"[1]RelatedPartyTransfers!I23","v":0},null,{"$f":"[1]RelatedPartyTransfers!M23","v":0},{"$f":"[1]RelatedPartyTransfers!N23","v":0},{"$f":"[1]RelatedPartyTransfers!O23","v":0},{"$f":"[1]RelatedPartyTransfers!P23","v":0},{"$f":"[1]RelatedPartyTransfers!Q23","v":0},{"$f":"[1]RelatedPartyTransfers!R23","v":0},{"$f":"[1]RelatedPartyTransfers!S23","v":0},{"$f":"[1]RelatedPartyTransfers!T23","v":0},{"$f":"[1]RelatedPartyTransfers!U23","v":0},{"$f":"[1]RelatedPartyTransfers!V23","v":0},{"$f":"[1]RelatedPartyTransfers!W23","v":0},{"$f":"[1]RelatedPartyTransfers!W23","v":0},0]
[0,0,{"$f":"IFERROR(INDEX((Settings!$M$17:$M$236),MATCH(RelatedPartyTransfers!G24,Settings!$AD$18:$AD$166,0)),0)","v":0},null,null,{"$f":"[1]RelatedPartyTransfers!F24","v":0},{"$f":"[1]RelatedPartyTransfers!G24","v":0},{"$f":"[1]RelatedPartyTransfers!H24","v":0},{"$f":"[1]RelatedPartyTransfers!I24","v":0},null,{"$f":"[1]RelatedPartyTransfers!M24","v":0},{"$f":"[1]RelatedPartyTransfers!N24","v":0},{"$f":"[1]RelatedPartyTransfers!O24","v":0},{"$f":"[1]RelatedPartyTransfers!P24","v":0},{"$f":"[1]RelatedPartyTransfers!Q24","v":0},{"$f":"[1]RelatedPartyTransfers!R24","v":0},{"$f":"[1]RelatedPartyTransfers!S24","v":0},{"$f":"[1]RelatedPartyTransfers!T24","v":0},{"$f":"[1]RelatedPartyTransfers!U24","v":0},{"$f":"[1]RelatedPartyTransfers!V24","v":0},{"$f":"[1]RelatedPartyTransfers!W24","v":0},{"$f":"[1]RelatedPartyTransfers!W24","v":0},0]
[0,0,{"$f":"IFERROR(INDEX((Settings!$M$17:$M$236),MATCH(RelatedPartyTransfers!G25,Settings!$AD$18:$AD$166,0)),0)","v":0},null,null,{"$f":"[1]RelatedPartyTransfers!F25","v":0},{"$f":"[1]RelatedPartyTransfers!G25","v":0},{"$f":"[1]RelatedPartyTransfers!H25","v":0},{"$f":"[1]RelatedPartyTransfers!I25","v":0},null,{"$f":"[1]RelatedPartyTransfers!M25","v":0},{"$f":"[1]RelatedPartyTransfers!N25","v":0},{"$f":"[1]RelatedPartyTransfers!O25","v":0},{"$f":"[1]RelatedPartyTransfers!P25","v":0},{"$f":"[1]RelatedPartyTransfers!Q25","v":0},{"$f":"[1]RelatedPartyTransfers!R25","v":0},{"$f":"[1]RelatedPartyTransfers!S25","v":0},{"$f":"[1]RelatedPartyTransfers!T25","v":0},{"$f":"[1]RelatedPartyTransfers!U25","v":0},{"$f":"[1]RelatedPartyTransfers!V25","v":0},{"$f":"[1]RelatedPartyTransfers!W25","v":0},{"$f":"[1]RelatedPartyTransfers!W25","v":0},0]
[0,0,{"$f":"IFERROR(INDEX((Settings!$M$17:$M$236),MATCH(RelatedPartyTransfers!G26,Settings!$AD$18:$AD$166,0)),0)","v":0},null,null,{"$f":"[1]RelatedPartyTransfers!F26","v":0},{"$f":"[1]RelatedPartyTransfers!G26","v":0},{"$f":"[1]RelatedPartyTransfers!H26","v":0},{"$f":"[1]RelatedPartyTransfers!I26","v":0},null,{"$f":"[1]RelatedPartyTransfers!M26","v":0},{"$f":"[1]RelatedPartyTransfers!N26","v":0},{"$f":"[1]RelatedPartyTransfers!O26","v":0},{"$f":"[1]RelatedPartyTransfers!P26","v":0},{"$f":"[1]RelatedPartyTransfers!Q26","v":0},{"$f":"[1]RelatedPartyTransfers!R26","v":0},{"$f":"[1]RelatedPartyTransfers!S26","v":0},{"$f":"[1]RelatedPartyTransfers!T26","v":0},{"$f":"[1]RelatedPartyTransfers!U26","v":0},{"$f":"[1]RelatedPartyTransfers!V26","v":0},{"$f":"[1]RelatedPartyTransfers!W26","v":0},{"$f":"[1]RelatedPartyTransfers!W26","v":0},0]
[0,0,{"$f":"IFERROR(INDEX((Settings!$M$17:$M$236),MATCH(RelatedPartyTransfers!G27,Settings!$AD$18:$AD$166,0)),0)","v":0},null,null,{"$f":"[1]RelatedPartyTransfers!F27","v":0},{"$f":"[1]RelatedPartyTransfers!G27","v":0},{"$f":"[1]RelatedPartyTransfers!H27","v":0},{"$f":"[1]RelatedPartyTransfers!I27","v":0},null,{"$f":"[1]RelatedPartyTransfers!M27","v":0},{"$f":"[1]RelatedPartyTransfers!N27","v":0},{"$f":"[1]RelatedPartyTransfers!O27","v":0},{"$f":"[1]RelatedPartyTransfers!P27","v":0},{"$f":"[1]RelatedPartyTransfers!Q27","v":0},{"$f":"[1]RelatedPartyTransfers!R27","v":0},{"$f":"[1]RelatedPartyTransfers!S27","v":0},{"$f":"[1]RelatedPartyTransfers!T27","v":0},{"$f":"[1]RelatedPartyTransfers!U27","v":0},{"$f":"[1]RelatedPartyTransfers!V27","v":0},{"$f":"[1]RelatedPartyTransfers!W27","v":0},{"$f":"[1]RelatedPartyTransfers!W27","v":0},0]
[0,0,{"$f":"IFERROR(INDEX((Settings!$M$17:$M$236),MATCH(RelatedPartyTransfers!G28,Settings!$AD$18:$AD$166,0)),0)","v":0},null,null,{"$f":"[1]RelatedPartyTransfers!F28","v":0},{"$f":"[1]RelatedPartyTransfers!G28","v":0},{"$f":"[1]RelatedPartyTransfers!H28","v":0},{"$f":"[1]RelatedPartyTransfers!I28","v":0},null,{"$f":"[1]RelatedPartyTransfers!M28","v":0},{"$f":"[1]RelatedPartyTransfers!N28","v":0},{"$f":"[1]RelatedPartyTransfers!O28","v":0},{"$f":"[1]RelatedPartyTransfers!P28","v":0},{"$f":"[1]RelatedPartyTransfers!Q28","v":0},{"$f":"[1]RelatedPartyTransfers!R28","v":0},{"$f":"[1]RelatedPartyTransfers!S28","v":0},{"$f":"[1]RelatedPartyTransfers!T28","v":0},{"$f":"[1]RelatedPartyTransfers!U28","v":0},{"$f":"[1]RelatedPartyTransfers!V28","v":0},{"$f":"[1]RelatedPartyTransfers!W28","v":0},{"$f":"[1]RelatedPartyTransfers!W28","v":0},0]
[0,0,{"$f":"IFERROR(INDEX((Settings!$M$17:$M$236),MATCH(RelatedPartyTransfers!G29,Settings!$AD$18:$AD$166,0)),0)","v":0},null,null,{"$f":"[1]RelatedPartyTransfers!F29","v":0},{"$f":"[1]RelatedPartyTransfers!G29","v":0},{"$f":"[1]RelatedPartyTransfers!H29","v":0},{"$f":"[1]RelatedPartyTransfers!I29","v":0},null,{"$f":"[1]RelatedPartyTransfers!M29","v":0},{"$f":"[1]RelatedPartyTransfers!N29","v":0},{"$f":"[1]RelatedPartyTransfers!O29","v":0},{"$f":"[1]RelatedPartyTransfers!P29","v":0},{"$f":"[1]RelatedPartyTransfers!Q29","v":0},{"$f":"[1]RelatedPartyTransfers!R29","v":0},{"$f":"[1]RelatedPartyTransfers!S29","v":0},{"$f":"[1]RelatedPartyTransfers!T29","v":0},{"$f":"[1]RelatedPartyTransfers!U29","v":0},{"$f":"[1]RelatedPartyTransfers!V29","v":0},{"$f":"[1]RelatedPartyTransfers!W29","v":0},{"$f":"[1]RelatedPartyTransfers!W29","v":0},0]
[0,0,{"$f":"IFERROR(INDEX((Settings!$M$17:$M$236),MATCH(RelatedPartyTransfers!G30,Settings!$AD$18:$AD$166,0)),0)","v":0},null,null,{"$f":"[1]RelatedPartyTransfers!F30","v":0},{"$f":"[1]RelatedPartyTransfers!G30","v":0},{"$f":"[1]RelatedPartyTransfers!H30","v":0},{"$f":"[1]RelatedPartyTransfers!I30","v":0},null,{"$f":"[1]RelatedPartyTransfers!M30","v":0},{"$f":"[1]RelatedPartyTransfers!N30","v":0},{"$f":"[1]RelatedPartyTransfers!O30","v":0},{"$f":"[1]RelatedPartyTransfers!P30","v":0},{"$f":"[1]RelatedPartyTransfers!Q30","v":0},{"$f":"[1]RelatedPartyTransfers!R30","v":0},{"$f":"[1]RelatedPartyTransfers!S30","v":0},{"$f":"[1]RelatedPartyTransfers!T30","v":0},{"$f":"[1]RelatedPartyTransfers!U30","v":0},{"$f":"[1]RelatedPartyTransfers!V30","v":0},{"$f":"[1]RelatedPartyTransfers!W30","v":0},{"$f":"[1]RelatedPartyTransfers!W30","v":0},0]
[0,0,{"$f":"IFERROR(INDEX((Settings!$M$17:$M$236),MATCH(RelatedPartyTransfers!G31,Settings!$AD$18:$AD$166,0)),0)","v":0},null,null,{"$f":"[1]RelatedPartyTransfers!F31","v":0},{"$f":"[1]RelatedPartyTransfers!G31","v":0},{"$f":"[1]RelatedPartyTransfers!H31","v":0},{"$f":"[1]RelatedPartyTransfers!I31","v":0},null,{"$f":"[1]RelatedPartyTransfers!M31","v":0},{"$f":"[1]RelatedPartyTransfers!N31","v":0},{"$f":"[1]RelatedPartyTransfers!O31","v":0},{"$f":"[1]RelatedPartyTransfers!P31","v":0},{"$f":"[1]RelatedPartyTransfers!Q31","v":0},{"$f":"[1]RelatedPartyTransfers!R31","v":0},{"$f":"[1]RelatedPartyTransfers!S31","v":0},{"$f":"[1]RelatedPartyTransfers!T31","v":0},{"$f":"[1]RelatedPartyTransfers!U31","v":0},{"$f":"[1]RelatedPartyTransfers!V31","v":0},{"$f":"[1]RelatedPartyTransfers!W31","v":0},{"$f":"[1]RelatedPartyTransfers!W31","v":0},0]
[0,0,{"$f":"IFERROR(INDEX((Settings!$M$17:$M$236),MATCH(RelatedPartyTransfers!G32,Settings!$AD$18:$AD$166,0)),0)","v":0},null,null,{"$f":"[1]RelatedPartyTransfers!F32","v":0},{"$f":"[1]RelatedPartyTransfers!G32","v":0},{"$f":"[1]RelatedPartyTransfers!H32","v":0},{"$f":"[1]RelatedPartyTransfers!I32","v":0},null,{"$f":"[1]RelatedPartyTransfers!M32","v":0},{"$f":"[1]RelatedPartyTransfers!N32","v":0},{"$f":"[1]RelatedPartyTransfers!O32","v":0},{"$f":"[1]RelatedPartyTransfers!P32","v":0},{"$f":"[1]RelatedPartyTransfers!Q32","v":0},{"$f":"[1]RelatedPartyTransfers!R32","v":0},{"$f":"[1]RelatedPartyTransfers!S32","v":0},{"$f":"[1]RelatedPartyTransfers!T32","v":0},{"$f":"[1]RelatedPartyTransfers!U32","v":0},{"$f":"[1]RelatedPartyTransfers!V32","v":0},{"$f":"[1]RelatedPartyTransfers!W32","v":0},{"$f":"[1]RelatedPartyTransfers!W32","v":0},0]
[0,0,{"$f":"IFERROR(INDEX((Settings!$M$17:$M$236),MATCH(RelatedPartyTransfers!G33,Settings!$AD$18:$AD$166,0)),0)","v":0},null,null,{"$f":"[1]RelatedPartyTransfers!F33","v":0},{"$f":"[1]RelatedPartyTransfers!G33","v":0},{"$f":"[1]RelatedPartyTransfers!H33","v":0},{"$f":"[1]RelatedPartyTransfers!I33","v":0},null,{"$f":"[1]RelatedPartyTransfers!M33","v":0},{"$f":"[1]RelatedPartyTransfers!N33","v":0},{"$f":"[1]RelatedPartyTransfers!O33","v":0},{"$f":"[1]RelatedPartyTransfers!P33","v":0},{"$f":"[1]RelatedPartyTransfers!Q33","v":0},{"$f":"[1]RelatedPartyTransfers!R33","v":0},{"$f":"[1]RelatedPartyTransfers!S33","v":0},{"$f":"[1]RelatedPartyTransfers!T33","v":0},{"$f":"[1]RelatedPartyTransfers!U33","v":0},{"$f":"[1]RelatedPartyTransfers!V33","v":0},{"$f":"[1]RelatedPartyTransfers!W33","v":0},{"$f":"[1]RelatedPartyTransfers!W33","v":0},0]
[0,0,{"$f":"IFERROR(INDEX((Settings!$M$17:$M$236),MATCH(RelatedPartyTransfers!G34,Settings!$AD$18:$AD$166,0)),0)","v":0},null,null,{"$f":"[1]RelatedPartyTransfers!F34","v":0},{"$f":"[1]RelatedPartyTransfers!G34","v":0},{"$f":"[1]RelatedPartyTransfers!H34","v":0},{"$f":"[1]RelatedPartyTransfers!I34","v":0},null,{"$f":"[1]RelatedPartyTransfers!M34","v":0},{"$f":"[1]RelatedPartyTransfers!N34","v":0},{"$f":"[1]RelatedPartyTransfers!O34","v":0},{"$f":"[1]RelatedPartyTransfers!P34","v":0},{"$f":"[1]RelatedPartyTransfers!Q34","v":0},{"$f":"[1]RelatedPartyTransfers!R34","v":0},{"$f":"[1]RelatedPartyTransfers!S34","v":0},{"$f":"[1]RelatedPartyTransfers!T34","v":0},{"$f":"[1]RelatedPartyTransfers!U34","v":0},{"$f":"[1]RelatedPartyTransfers!V34","v":0},{"$f":"[1]RelatedPartyTransfers!W34","v":0},{"$f":"[1]RelatedPartyTransfers!W34","v":0},0]
[0,0,{"$f":"IFERROR(INDEX((Settings!$M$17:$M$236),MATCH(RelatedPartyTransfers!G35,Settings!$AD$18:$AD$166,0)),0)","v":0},null,null,{"$f":"[1]RelatedPartyTransfers!F35","v":0},{"$f":"[1]RelatedPartyTransfers!G35","v":0},{"$f":"[1]RelatedPartyTransfers!H35","v":0},{"$f":"[1]RelatedPartyTransfers!I35","v":0},null,{"$f":"[1]RelatedPartyTransfers!M35","v":0},{"$f":"[1]RelatedPartyTransfers!N35","v":0},{"$f":"[1]RelatedPartyTransfers!O35","v":0},{"$f":"[1]RelatedPartyTransfers!P35","v":0},{"$f":"[1]RelatedPartyTransfers!Q35","v":0},{"$f":"[1]RelatedPartyTransfers!R35","v":0},{"$f":"[1]RelatedPartyTransfers!S35","v":0},{"$f":"[1]RelatedPartyTransfers!T35","v":0},{"$f":"[1]RelatedPartyTransfers!U35","v":0},{"$f":"[1]RelatedPartyTransfers!V35","v":0},{"$f":"[1]RelatedPartyTransfers!W35","v":0},{"$f":"[1]RelatedPartyTransfers!W35","v":0},0]
[0,0,{"$f":"IFERROR(INDEX((Settings!$M$17:$M$236),MATCH(RelatedPartyTransfers!G36,Settings!$AD$18:$AD$166,0)),0)","v":0},null,null,{"$f":"[1]RelatedPartyTransfers!F36","v":0},{"$f":"[1]RelatedPartyTransfers!G36","v":0},{"$f":"[1]RelatedPartyTransfers!H36","v":0},{"$f":"[1]RelatedPartyTransfers!I36","v":0},null,{"$f":"[1]RelatedPartyTransfers!M36","v":0},{"$f":"[1]RelatedPartyTransfers!N36","v":0},{"$f":"[1]RelatedPartyTransfers!O36","v":0},{"$f":"[1]RelatedPartyTransfers!P36","v":0},{"$f":"[1]RelatedPartyTransfers!Q36","v":0},{"$f":"[1]RelatedPartyTransfers!R36","v":0},{"$f":"[1]RelatedPartyTransfers!S36","v":0},{"$f":"[1]RelatedPartyTransfers!T36","v":0},{"$f":"[1]RelatedPartyTransfers!U36","v":0},{"$f":"[1]RelatedPartyTransfers!V36","v":0},{"$f":"[1]RelatedPartyTransfers!W36","v":0},{"$f":"[1]RelatedPartyTransfers!W36","v":0},0]
[0,0,{"$f":"IFERROR(INDEX((Settings!$M$17:$M$236),MATCH(RelatedPartyTransfers!G37,Settings!$AD$18:$AD$166,0)),0)","v":0},null,null,{"$f":"[1]RelatedPartyTransfers!F37","v":0},{"$f":"[1]RelatedPartyTransfers!G37","v":0},{"$f":"[1]RelatedPartyTransfers!H37","v":0},{"$f":"[1]RelatedPartyTransfers!I37","v":0},null,{"$f":"[1]RelatedPartyTransfers!M37","v":0},{"$f":"[1]RelatedPartyTransfers!N37","v":0},{"$f":"[1]RelatedPartyTransfers!O37","v":0},{"$f":"[1]RelatedPartyTransfers!P37","v":0},{"$f":"[1]RelatedPartyTransfers!Q37","v":0},{"$f":"[1]RelatedPartyTransfers!R37","v":0},{"$f":"[1]RelatedPartyTransfers!S37","v":0},{"$f":"[1]RelatedPartyTransfers!T37","v":0},{"$f":"[1]RelatedPartyTransfers!U37","v":0},{"$f":"[1]RelatedPartyTransfers!V37","v":0},{"$f":"[1]RelatedPartyTransfers!W37","v":0},{"$f":"[1]RelatedPartyTransfers!W37","v":0},0]
[0,0,{"$f":"IFERROR(INDEX((Settings!$M$17:$M$236),MATCH(RelatedPartyTransfers!G38,Settings!$AD$18:$AD$166,0)),0)","v":0},null,null,{"$f":"[1]RelatedPartyTransfers!F38","v":0},{"$f":"[1]RelatedPartyTransfers!G38","v":0},{"$f":"[1]RelatedPartyTransfers!H38","v":0},{"$f":"[1]RelatedPartyTransfers!I38","v":0},null,{"$f":"[1]RelatedPartyTransfers!M38","v":0},{"$f":"[1]RelatedPartyTransfers!N38","v":0},{"$f":"[1]RelatedPartyTransfers!O38","v":0},{"$f":"[1]RelatedPartyTransfers!P38","v":0},{"$f":"[1]RelatedPartyTransfers!Q38","v":0},{"$f":"[1]RelatedPartyTransfers!R38","v":0},{"$f":"[1]RelatedPartyTransfers!S38","v":0},{"$f":"[1]RelatedPartyTransfers!T38","v":0},{"$f":"[1]RelatedPartyTransfers!U38","v":0},{"$f":"[1]RelatedPartyTransfers!V38","v":0},{"$f":"[1]RelatedPartyTransfers!W38","v":0},{"$f":"[1]RelatedPartyTransfers!W38","v":0},0]
[0,0,{"$f":"IFERROR(INDEX((Settings!$M$17:$M$236),MATCH(RelatedPartyTransfers!G39,Settings!$AD$18:$AD$166,0)),0)","v":0},null,null,{"$f":"[1]RelatedPartyTransfers!F39","v":0},{"$f":"[1]RelatedPartyTransfers!G39","v":0},{"$f":"[1]RelatedPartyTransfers!H39","v":0},{"$f":"[1]RelatedPartyTransfers!I39","v":0},null,{"$f":"[1]RelatedPartyTransfers!M39","v":0},{"$f":"[1]RelatedPartyTransfers!N39","v":0},{"$f":"[1]RelatedPartyTransfers!O39","v":0},{"$f":"[1]RelatedPartyTransfers!P39","v":0},{"$f":"[1]RelatedPartyTransfers!Q39","v":0},{"$f":"[1]RelatedPartyTransfers!R39","v":0},{"$f":"[1]RelatedPartyTransfers!S39","v":0},{"$f":"[1]RelatedPartyTransfers!T39","v":0},{"$f":"[1]RelatedPartyTransfers!U39","v":0},{"$f":"[1]RelatedPartyTransfers!V39","v":0},{"$f":"[1]RelatedPartyTransfers!W39","v":0},{"$f":"[1]RelatedPartyTransfers!W39","v":0},0]
[0,0,{"$f":"IFERROR(INDEX((Settings!$M$17:$M$236),MATCH(RelatedPartyTransfers!G40,Settings!$AD$18:$AD$166,0)),0)","v":0},null,null,{"$f":"[1]RelatedPartyTransfers!F40","v":0},{"$f":"[1]RelatedPartyTransfers!G40","v":0},{"$f":"[1]RelatedPartyTransfers!H40","v":0},{"$f":"[1]RelatedPartyTransfers!I40","v":0},null,{"$f":"[1]RelatedPartyTransfers!M40","v":0},{"$f":"[1]RelatedPartyTransfers!N40","v":0},{"$f":"[1]RelatedPartyTransfers!O40","v":0},{"$f":"[1]RelatedPartyTransfers!P40","v":0},{"$f":"[1]RelatedPartyTransfers!Q40","v":0},{"$f":"[1]RelatedPartyTransfers!R40","v":0},{"$f":"[1]RelatedPartyTransfers!S40","v":0},{"$f":"[1]RelatedPartyTransfers!T40","v":0},{"$f":"[1]RelatedPartyTransfers!U40","v":0},{"$f":"[1]RelatedPartyTransfers!V40","v":0},{"$f":"[1]RelatedPartyTransfers!W40","v":0},{"$f":"[1]RelatedPartyTransfers!W40","v":0},0]
[0,0,{"$f":"IFERROR(INDEX((Settings!$M$17:$M$236),MATCH(RelatedPartyTransfers!G41,Settings!$AD$18:$AD$166,0)),0)","v":0},null,null,{"$f":"[1]RelatedPartyTransfers!F41","v":0},{"$f":"[1]RelatedPartyTransfers!G41","v":0},{"$f":"[1]RelatedPartyTransfers!H41","v":0},{"$f":"[1]RelatedPartyTransfers!I41","v":0},null,{"$f":"[1]RelatedPartyTransfers!M41","v":0},{"$f":"[1]RelatedPartyTransfers!N41","v":0},{"$f":"[1]RelatedPartyTransfers!O41","v":0},{"$f":"[1]RelatedPartyTransfers!P41","v":0},{"$f":"[1]RelatedPartyTransfers!Q41","v":0},{"$f":"[1]RelatedPartyTransfers!R41","v":0},{"$f":"[1]RelatedPartyTransfers!S41","v":0},{"$f":"[1]RelatedPartyTransfers!T41","v":0},{"$f":"[1]RelatedPartyTransfers!U41","v":0},{"$f":"[1]RelatedPartyTransfers!V41","v":0},{"$f":"[1]RelatedPartyTransfers!W41","v":0},{"$f":"[1]RelatedPartyTransfers!W41","v":0},0]
[0,0,{"$f":"IFERROR(INDEX((Settings!$M$17:$M$236),MATCH(RelatedPartyTransfers!G42,Settings!$AD$18:$AD$166,0)),0)","v":0},null,null,{"$f":"[1]RelatedPartyTransfers!F42","v":0},{"$f":"[1]RelatedPartyTransfers!G42","v":0},{"$f":"[1]RelatedPartyTransfers!H42","v":0},{"$f":"[1]RelatedPartyTransfers!I42","v":0},null,{"$f":"[1]RelatedPartyTransfers!M42","v":0},{"$f":"[1]RelatedPartyTransfers!N42","v":0},{"$f":"[1]RelatedPartyTransfers!O42","v":0},{"$f":"[1]RelatedPartyTransfers!P42","v":0},{"$f":"[1]RelatedPartyTransfers!Q42","v":0},{"$f":"[1]RelatedPartyTransfers!R42","v":0},{"$f":"[1]RelatedPartyTransfers!S42","v":0},{"$f":"[1]RelatedPartyTransfers!T42","v":0},{"$f":"[1]RelatedPartyTransfers!U42","v":0},{"$f":"[1]RelatedPartyTransfers!V42","v":0},{"$f":"[1]RelatedPartyTransfers!W42","v":0},{"$f":"[1]RelatedPartyTransfers!W42","v":0},0]
[0,0,{"$f":"IFERROR(INDEX((Settings!$M$17:$M$236),MATCH(RelatedPartyTransfers!G43,Settings!$AD$18:$AD$166,0)),0)","v":0},null,null,{"$f":"[1]RelatedPartyTransfers!F43","v":0},{"$f":"[1]RelatedPartyTransfers!G43","v":0},{"$f":"[1]RelatedPartyTransfers!H43","v":0},{"$f":"[1]RelatedPartyTransfers!I43","v":0},null,{"$f":"[1]RelatedPartyTransfers!M43","v":0},{"$f":"[1]RelatedPartyTransfers!N43","v":0},{"$f":"[1]RelatedPartyTransfers!O43","v":0},{"$f":"[1]RelatedPartyTransfers!P43","v":0},{"$f":"[1]RelatedPartyTransfers!Q43","v":0},{"$f":"[1]RelatedPartyTransfers!R43","v":0},{"$f":"[1]RelatedPartyTransfers!S43","v":0},{"$f":"[1]RelatedPartyTransfers!T43","v":0},{"$f":"[1]RelatedPartyTransfers!U43","v":0},{"$f":"[1]RelatedPartyTransfers!V43","v":0},{"$f":"[1]RelatedPartyTransfers!W43","v":0},{"$f":"[1]RelatedPartyTransfers!W43","v":0},0]
[0,0,{"$f":"IFERROR(INDEX((Settings!$M$17:$M$236),MATCH(RelatedPartyTransfers!G44,Settings!$AD$18:$AD$166,0)),0)","v":0},null,null,{"$f":"[1]RelatedPartyTransfers!F44","v":0},{"$f":"[1]RelatedPartyTransfers!G44","v":0},{"$f":"[1]RelatedPartyTransfers!H44","v":0},{"$f":"[1]RelatedPartyTransfers!I44","v":0},null,{"$f":"[1]RelatedPartyTransfers!M44","v":0},{"$f":"[1]RelatedPartyTransfers!N44","v":0},{"$f":"[1]RelatedPartyTransfers!O44","v":0},{"$f":"[1]RelatedPartyTransfers!P44","v":0},{"$f":"[1]RelatedPartyTransfers!Q44","v":0},{"$f":"[1]RelatedPartyTransfers!R44","v":0},{"$f":"[1]RelatedPartyTransfers!S44","v":0},{"$f":"[1]RelatedPartyTransfers!T44","v":0},{"$f":"[1]RelatedPartyTransfers!U44","v":0},{"$f":"[1]RelatedPartyTransfers!V44","v":0},{"$f":"[1]RelatedPartyTransfers!W44","v":0},{"$f":"[1]RelatedPartyTransfers!W44","v":0},0]
[0,0,{"$f":"IFERROR(INDEX((Settings!$M$17:$M$236),MATCH(RelatedPartyTransfers!G45,Settings!$AD$18:$AD$166,0)),0)","v":0},null,null,{"$f":"[1]RelatedPartyTransfers!F45","v":0},{"$f":"[1]RelatedPartyTransfers!G45","v":0},{"$f":"[1]RelatedPartyTransfers!H45","v":0},{"$f":"[1]RelatedPartyTransfers!I45","v":0},null,{"$f":"[1]RelatedPartyTransfers!M45","v":0},{"$f":"[1]RelatedPartyTransfers!N45","v":0},{"$f":"[1]RelatedPartyTransfers!O45","v":0},{"$f":"[1]RelatedPartyTransfers!P45","v":0},{"$f":"[1]RelatedPartyTransfers!Q45","v":0},{"$f":"[1]RelatedPartyTransfers!R45","v":0},{"$f":"[1]RelatedPartyTransfers!S45","v":0},{"$f":"[1]RelatedPartyTransfers!T45","v":0},{"$f":"[1]RelatedPartyTransfers!U45","v":0},{"$f":"[1]RelatedPartyTransfers!V45","v":0},{"$f":"[1]RelatedPartyTransfers!W45","v":0},{"$f":"[1]RelatedPartyTransfers!W45","v":0},0]
[0,0,{"$f":"IFERROR(INDEX((Settings!$M$17:$M$236),MATCH(RelatedPartyTransfers!G46,Settings!$AD$18:$AD$166,0)),0)","v":0},null,null,{"$f":"[1]RelatedPartyTransfers!F46","v":0},{"$f":"[1]RelatedPartyTransfers!G46","v":0},{"$f":"[1]RelatedPartyTransfers!H46","v":0},{"$f":"[1]RelatedPartyTransfers!I46","v":0},null,{"$f":"[1]RelatedPartyTransfers!M46","v":0},{"$f":"[1]RelatedPartyTransfers!N46","v":0},{"$f":"[1]RelatedPartyTransfers!O46","v":0},{"$f":"[1]RelatedPartyTransfers!P46","v":0},{"$f":"[1]RelatedPartyTransfers!Q46","v":0},{"$f":"[1]RelatedPartyTransfers!R46","v":0},{"$f":"[1]RelatedPartyTransfers!S46","v":0},{"$f":"[1]RelatedPartyTransfers!T46","v":0},{"$f":"[1]RelatedPartyTransfers!U46","v":0},{"$f":"[1]RelatedPartyTransfers!V46","v":0},{"$f":"[1]RelatedPartyTransfers!W46","v":0},{"$f":"[1]RelatedPartyTransfers!W46","v":0},0]
[0,0,{"$f":"IFERROR(INDEX((Settings!$M$17:$M$236),MATCH(RelatedPartyTransfers!G47,Settings!$AD$18:$AD$166,0)),0)","v":0},null,null,{"$f":"[1]RelatedPartyTransfers!F47","v":0},{"$f":"[1]RelatedPartyTransfers!G47","v":0},{"$f":"[1]RelatedPartyTransfers!H47","v":0},{"$f":"[1]RelatedPartyTransfers!I47","v":0},null,{"$f":"[1]RelatedPartyTransfers!M47","v":0},{"$f":"[1]RelatedPartyTransfers!N47","v":0},{"$f":"[1]RelatedPartyTransfers!O47","v":0},{"$f":"[1]RelatedPartyTransfers!P47","v":0},{"$f":"[1]RelatedPartyTransfers!Q47","v":0},{"$f":"[1]RelatedPartyTransfers!R47","v":0},{"$f":"[1]RelatedPartyTransfers!S47","v":0},{"$f":"[1]RelatedPartyTransfers!T47","v":0},{"$f":"[1]RelatedPartyTransfers!U47","v":0},{"$f":"[1]RelatedPartyTransfers!V47","v":0},{"$f":"[1]RelatedPartyTransfers!W47","v":0},{"$f":"[1]RelatedPartyTransfers!W47","v":0},0]
[0,0,{"$f":"IFERROR(INDEX((Settings!$M$17:$M$236),MATCH(RelatedPartyTransfers!G48,Settings!$AD$18:$AD$166,0)),0)","v":0},null,null,{"$f":"[1]RelatedPartyTransfers!F48","v":0},{"$f":"[1]RelatedPartyTransfers!G48","v":0},{"$f":"[1]RelatedPartyTransfers!H48","v":0},{"$f":"[1]RelatedPartyTransfers!I48","v":0},null,{"$f":"[1]RelatedPartyTransfers!M48","v":0},{"$f":"[1]RelatedPartyTransfers!N48","v":0},{"$f":"[1]RelatedPartyTransfers!O48","v":0},{"$f":"[1]RelatedPartyTransfers!P48","v":0},{"$f":"[1]RelatedPartyTransfers!Q48","v":0},{"$f":"[1]RelatedPartyTransfers!R48","v":0},{"$f":"[1]RelatedPartyTransfers!S48","v":0},{"$f":"[1]RelatedPartyTransfers!T48","v":0},{"$f":"[1]RelatedPartyTransfers!U48","v":0},{"$f":"[1]RelatedPartyTransfers!V48","v":0},{"$f":"[1]RelatedPartyTransfers!W48","v":0},{"$f":"[1]RelatedPartyTransfers!W48","v":0},0]
[0,0,{"$f":"IFERROR(INDEX((Settings!$M$17:$M$236),MATCH(RelatedPartyTransfers!G49,Settings!$AD$18:$AD$166,0)),0)","v":0},null,null,{"$f":"[1]RelatedPartyTransfers!F49","v":0},{"$f":"[1]RelatedPartyTransfers!G49","v":0},{"$f":"[1]RelatedPartyTransfers!H49","v":0},{"$f":"[1]RelatedPartyTransfers!I49","v":0},null,{"$f":"[1]RelatedPartyTransfers!M49","v":0},{"$f":"[1]RelatedPartyTransfers!N49","v":0},{"$f":"[1]RelatedPartyTransfers!O49","v":0},{"$f":"[1]RelatedPartyTransfers!P49","v":0},{"$f":"[1]RelatedPartyTransfers!Q49","v":0},{"$f":"[1]RelatedPartyTransfers!R49","v":0},{"$f":"[1]RelatedPartyTransfers!S49","v":0},{"$f":"[1]RelatedPartyTransfers!T49","v":0},{"$f":"[1]RelatedPartyTransfers!U49","v":0},{"$f":"[1]RelatedPartyTransfers!V49","v":0},{"$f":"[1]RelatedPartyTransfers!W49","v":0},{"$f":"[1]RelatedPartyTransfers!W49","v":0},0]
[0,0,{"$f":"IFERROR(INDEX((Settings!$M$17:$M$236),MATCH(RelatedPartyTransfers!G50,Settings!$AD$18:$AD$166,0)),0)","v":0},null,null,{"$f":"[1]RelatedPartyTransfers!F50","v":0},{"$f":"[1]RelatedPartyTransfers!G50","v":0},{"$f":"[1]RelatedPartyTransfers!H50","v":0},{"$f":"[1]RelatedPartyTransfers!I50","v":0},null,{"$f":"[1]RelatedPartyTransfers!M50","v":0},{"$f":"[1]RelatedPartyTransfers!N50","v":0},{"$f":"[1]RelatedPartyTransfers!O50","v":0},{"$f":"[1]RelatedPartyTransfers!P50","v":0},{"$f":"[1]RelatedPartyTransfers!Q50","v":0},{"$f":"[1]RelatedPartyTransfers!R50","v":0},{"$f":"[1]RelatedPartyTransfers!S50","v":0},{"$f":"[1]RelatedPartyTransfers!T50","v":0},{"$f":"[1]RelatedPartyTransfers!U50","v":0},{"$f":"[1]RelatedPartyTransfers!V50","v":0},{"$f":"[1]RelatedPartyTransfers!W50","v":0},{"$f":"[1]RelatedPartyTransfers!W50","v":0},0]
[0,0,{"$f":"IFERROR(INDEX((Settings!$M$17:$M$236),MATCH(RelatedPartyTransfers!G51,Settings!$AD$18:$AD$166,0)),0)","v":0},null,null,{"$f":"[1]RelatedPartyTransfers!F51","v":0},{"$f":"[1]RelatedPartyTransfers!G51","v":0},{"$f":"[1]RelatedPartyTransfers!H51","v":0},{"$f":"[1]RelatedPartyTransfers!I51","v":0},null,{"$f":"[1]RelatedPartyTransfers!M51","v":0},{"$f":"[1]RelatedPartyTransfers!N51","v":0},{"$f":"[1]RelatedPartyTransfers!O51","v":0},{"$f":"[1]RelatedPartyTransfers!P51","v":0},{"$f":"[1]RelatedPartyTransfers!Q51","v":0},{"$f":"[1]RelatedPartyTransfers!R51","v":0},{"$f":"[1]RelatedPartyTransfers!S51","v":0},{"$f":"[1]RelatedPartyTransfers!T51","v":0},{"$f":"[1]RelatedPartyTransfers!U51","v":0},{"$f":"[1]RelatedPartyTransfers!V51","v":0},{"$f":"[1]RelatedPartyTransfers!W51","v":0},{"$f":"[1]RelatedPartyTransfers!W51","v":0},0]
[0,0,{"$f":"IFERROR(INDEX((Settings!$M$17:$M$236),MATCH(RelatedPartyTransfers!G52,Settings!$AD$18:$AD$166,0)),0)","v":0},null,null,{"$f":"[1]RelatedPartyTransfers!F52","v":0},{"$f":"[1]RelatedPartyTransfers!G52","v":0},{"$f":"[1]RelatedPartyTransfers!H52","v":0},{"$f":"[1]RelatedPartyTransfers!I52","v":0},null,{"$f":"[1]RelatedPartyTransfers!M52","v":0},{"$f":"[1]RelatedPartyTransfers!N52","v":0},{"$f":"[1]RelatedPartyTransfers!O52","v":0},{"$f":"[1]RelatedPartyTransfers!P52","v":0},{"$f":"[1]RelatedPartyTransfers!Q52","v":0},{"$f":"[1]RelatedPartyTransfers!R52","v":0},{"$f":"[1]RelatedPartyTransfers!S52","v":0},{"$f":"[1]RelatedPartyTransfers!T52","v":0},{"$f":"[1]RelatedPartyTransfers!U52","v":0},{"$f":"[1]RelatedPartyTransfers!V52","v":0},{"$f":"[1]RelatedPartyTransfers!W52","v":0},{"$f":"[1]RelatedPartyTransfers!W52","v":0},0]
[0,0,{"$f":"IFERROR(INDEX((Settings!$M$17:$M$236),MATCH(RelatedPartyTransfers!G53,Settings!$AD$18:$AD$166,0)),0)","v":0},null,null,{"$f":"[1]RelatedPartyTransfers!F53","v":0},{"$f":"[1]RelatedPartyTransfers!G53","v":0},{"$f":"[1]RelatedPartyTransfers!H53","v":0},{"$f":"[1]RelatedPartyTransfers!I53","v":0},null,{"$f":"[1]RelatedPartyTransfers!M53","v":0},{"$f":"[1]RelatedPartyTransfers!N53","v":0},{"$f":"[1]RelatedPartyTransfers!O53","v":0},{"$f":"[1]RelatedPartyTransfers!P53","v":0},{"$f":"[1]RelatedPartyTransfers!Q53","v":0},{"$f":"[1]RelatedPartyTransfers!R53","v":0},{"$f":"[1]RelatedPartyTransfers!S53","v":0},{"$f":"[1]RelatedPartyTransfers!T53","v":0},{"$f":"[1]RelatedPartyTransfers!U53","v":0},{"$f":"[1]RelatedPartyTransfers!V53","v":0},{"$f":"[1]RelatedPartyTransfers!W53","v":0},{"$f":"[1]RelatedPartyTransfers!W53","v":0},0]
[0,0,{"$f":"IFERROR(INDEX((Settings!$M$17:$M$236),MATCH(RelatedPartyTransfers!G54,Settings!$AD$18:$AD$166,0)),0)","v":0},null,null,{"$f":"[1]RelatedPartyTransfers!F54","v":0},{"$f":"[1]RelatedPartyTransfers!G54","v":0},{"$f":"[1]RelatedPartyTransfers!H54","v":0},{"$f":"[1]RelatedPartyTransfers!I54","v":0},null,{"$f":"[1]RelatedPartyTransfers!M54","v":0},{"$f":"[1]RelatedPartyTransfers!N54","v":0},{"$f":"[1]RelatedPartyTransfers!O54","v":0},{"$f":"[1]RelatedPartyTransfers!P54","v":0},{"$f":"[1]RelatedPartyTransfers!Q54","v":0},{"$f":"[1]RelatedPartyTransfers!R54","v":0},{"$f":"[1]RelatedPartyTransfers!S54","v":0},{"$f":"[1]RelatedPartyTransfers!T54","v":0},{"$f":"[1]RelatedPartyTransfers!U54","v":0},{"$f":"[1]RelatedPartyTransfers!V54","v":0},{"$f":"[1]RelatedPartyTransfers!W54","v":0},{"$f":"[1]RelatedPartyTransfers!W54","v":0},0]
[0,0,{"$f":"IFERROR(INDEX((Settings!$M$17:$M$236),MATCH(RelatedPartyTransfers!G55,Settings!$AD$18:$AD$166,0)),0)","v":0},null,null,{"$f":"[1]RelatedPartyTransfers!F55","v":0},{"$f":"[1]RelatedPartyTransfers!G55","v":0},{"$f":"[1]RelatedPartyTransfers!H55","v":0},{"$f":"[1]RelatedPartyTransfers!I55","v":0},null,{"$f":"[1]RelatedPartyTransfers!M55","v":0},{"$f":"[1]RelatedPartyTransfers!N55","v":0},{"$f":"[1]RelatedPartyTransfers!O55","v":0},{"$f":"[1]RelatedPartyTransfers!P55","v":0},{"$f":"[1]RelatedPartyTransfers!Q55","v":0},{"$f":"[1]RelatedPartyTransfers!R55","v":0},{"$f":"[1]RelatedPartyTransfers!S55","v":0},{"$f":"[1]RelatedPartyTransfers!T55","v":0},{"$f":"[1]RelatedPartyTransfers!U55","v":0},{"$f":"[1]RelatedPartyTransfers!V55","v":0},{"$f":"[1]RelatedPartyTransfers!W55","v":0},{"$f":"[1]RelatedPartyTransfers!W55","v":0},0]
[0,0,{"$f":"IFERROR(INDEX((Settings!$M$17:$M$236),MATCH(RelatedPartyTransfers!G56,Settings!$AD$18:$AD$166,0)),0)","v":0},null,null,{"$f":"[1]RelatedPartyTransfers!F56","v":0},{"$f":"[1]RelatedPartyTransfers!G56","v":0},{"$f":"[1]RelatedPartyTransfers!H56","v":0},{"$f":"[1]RelatedPartyTransfers!I56","v":0},null,{"$f":"[1]RelatedPartyTransfers!M56","v":0},{"$f":"[1]RelatedPartyTransfers!N56","v":0},{"$f":"[1]RelatedPartyTransfers!O56","v":0},{"$f":"[1]RelatedPartyTransfers!P56","v":0},{"$f":"[1]RelatedPartyTransfers!Q56","v":0},{"$f":"[1]RelatedPartyTransfers!R56","v":0},{"$f":"[1]RelatedPartyTransfers!S56","v":0},{"$f":"[1]RelatedPartyTransfers!T56","v":0},{"$f":"[1]RelatedPartyTransfers!U56","v":0},{"$f":"[1]RelatedPartyTransfers!V56","v":0},{"$f":"[1]RelatedPartyTransfers!W56","v":0},{"$f":"[1]RelatedPartyTransfers!W56","v":0},0]
[0,0,{"$f":"IFERROR(INDEX((Settings!$M$17:$M$236),MATCH(RelatedPartyTransfers!G57,Settings!$AD$18:$AD$166,0)),0)","v":0},null,null,{"$f":"[1]RelatedPartyTransfers!F57","v":0},{"$f":"[1]RelatedPartyTransfers!G57","v":0},{"$f":"[1]RelatedPartyTransfers!H57","v":0},{"$f":"[1]RelatedPartyTransfers!I57","v":0},null,{"$f":"[1]RelatedPartyTransfers!M57","v":0},{"$f":"[1]RelatedPartyTransfers!N57","v":0},{"$f":"[1]RelatedPartyTransfers!O57","v":0},{"$f":"[1]RelatedPartyTransfers!P57","v":0},{"$f":"[1]RelatedPartyTransfers!Q57","v":0},{"$f":"[1]RelatedPartyTransfers!R57","v":0},{"$f":"[1]RelatedPartyTransfers!S57","v":0},{"$f":"[1]RelatedPartyTransfers!T57","v":0},{"$f":"[1]RelatedPartyTransfers!U57","v":0},{"$f":"[1]RelatedPartyTransfers!V57","v":0},{"$f":"[1]RelatedPartyTransfers!W57","v":0},{"$f":"[1]RelatedPartyTransfers!W57","v":0},0]
[0,0,{"$f":"IFERROR(INDEX((Settings!$M$17:$M$236),MATCH(RelatedPartyTransfers!G58,Settings!$AD$18:$AD$166,0)),0)","v":0},null,null,{"$f":"[1]RelatedPartyTransfers!F58","v":0},{"$f":"[1]RelatedPartyTransfers!G58","v":0},{"$f":"[1]RelatedPartyTransfers!H58","v":0},{"$f":"[1]RelatedPartyTransfers!I58","v":0},null,{"$f":"[1]RelatedPartyTransfers!M58","v":0},{"$f":"[1]RelatedPartyTransfers!N58","v":0},{"$f":"[1]RelatedPartyTransfers!O58","v":0},{"$f":"[1]RelatedPartyTransfers!P58","v":0},{"$f":"[1]RelatedPartyTransfers!Q58","v":0},{"$f":"[1]RelatedPartyTransfers!R58","v":0},{"$f":"[1]RelatedPartyTransfers!S58","v":0},{"$f":"[1]RelatedPartyTransfers!T58","v":0},{"$f":"[1]RelatedPartyTransfers!U58","v":0},{"$f":"[1]RelatedPartyTransfers!V58","v":0},{"$f":"[1]RelatedPartyTransfers!W58","v":0},{"$f":"[1]RelatedPartyTransfers!W58","v":0},0]
[0,0,{"$f":"IFERROR(INDEX((Settings!$M$17:$M$236),MATCH(RelatedPartyTransfers!G59,Settings!$AD$18:$AD$166,0)),0)","v":0},null,null,{"$f":"[1]RelatedPartyTransfers!F59","v":0},{"$f":"[1]RelatedPartyTransfers!G59","v":0},{"$f":"[1]RelatedPartyTransfers!H59","v":0},{"$f":"[1]RelatedPartyTransfers!I59","v":0},null,{"$f":"[1]RelatedPartyTransfers!M59","v":0},{"$f":"[1]RelatedPartyTransfers!N59","v":0},{"$f":"[1]RelatedPartyTransfers!O59","v":0},{"$f":"[1]RelatedPartyTransfers!P59","v":0},{"$f":"[1]RelatedPartyTransfers!Q59","v":0},{"$f":"[1]RelatedPartyTransfers!R59","v":0},{"$f":"[1]RelatedPartyTransfers!S59","v":0},{"$f":"[1]RelatedPartyTransfers!T59","v":0},{"$f":"[1]RelatedPartyTransfers!U59","v":0},{"$f":"[1]RelatedPartyTransfers!V59","v":0},{"$f":"[1]RelatedPartyTransfers!W59","v":0},{"$f":"[1]RelatedPartyTransfers!W59","v":0},0]
[0,0,{"$f":"IFERROR(INDEX((Settings!$M$17:$M$236),MATCH(RelatedPartyTransfers!G60,Settings!$AD$18:$AD$166,0)),0)","v":0},null,null,{"$f":"[1]RelatedPartyTransfers!F60","v":0},{"$f":"[1]RelatedPartyTransfers!G60","v":0},{"$f":"[1]RelatedPartyTransfers!H60","v":0},{"$f":"[1]RelatedPartyTransfers!I60","v":0},null,{"$f":"[1]RelatedPartyTransfers!M60","v":0},{"$f":"[1]RelatedPartyTransfers!N60","v":0},{"$f":"[1]RelatedPartyTransfers!O60","v":0},{"$f":"[1]RelatedPartyTransfers!P60","v":0},{"$f":"[1]RelatedPartyTransfers!Q60","v":0},{"$f":"[1]RelatedPartyTransfers!R60","v":0},{"$f":"[1]RelatedPartyTransfers!S60","v":0},{"$f":"[1]RelatedPartyTransfers!T60","v":0},{"$f":"[1]RelatedPartyTransfers!U60","v":0},{"$f":"[1]RelatedPartyTransfers!V60","v":0},{"$f":"[1]RelatedPartyTransfers!W60","v":0},{"$f":"[1]RelatedPartyTransfers!W60","v":0},0]
[0,0,{"$f":"IFERROR(INDEX((Settings!$M$17:$M$236),MATCH(RelatedPartyTransfers!G61,Settings!$AD$18:$AD$166,0)),0)","v":0},null,null,{"$f":"[1]RelatedPartyTransfers!F61","v":0},{"$f":"[1]RelatedPartyTransfers!G61","v":0},{"$f":"[1]RelatedPartyTransfers!H61","v":0},{"$f":"[1]RelatedPartyTransfers!I61","v":0},null,{"$f":"[1]RelatedPartyTransfers!M61","v":0},{"$f":"[1]RelatedPartyTransfers!N61","v":0},{"$f":"[1]RelatedPartyTransfers!O61","v":0},{"$f":"[1]RelatedPartyTransfers!P61","v":0},{"$f":"[1]RelatedPartyTransfers!Q61","v":0},{"$f":"[1]RelatedPartyTransfers!R61","v":0},{"$f":"[1]RelatedPartyTransfers!S61","v":0},{"$f":"[1]RelatedPartyTransfers!T61","v":0},{"$f":"[1]RelatedPartyTransfers!U61","v":0},{"$f":"[1]RelatedPartyTransfers!V61","v":0},{"$f":"[1]RelatedPartyTransfers!W61","v":0},{"$f":"[1]RelatedPartyTransfers!W61","v":0},0]
[0,0,{"$f":"IFERROR(INDEX((Settings!$M$17:$M$236),MATCH(RelatedPartyTransfers!G62,Settings!$AD$18:$AD$166,0)),0)","v":0},null,null,{"$f":"[1]RelatedPartyTransfers!F62","v":0},{"$f":"[1]RelatedPartyTransfers!G62","v":0},{"$f":"[1]RelatedPartyTransfers!H62","v":0},{"$f":"[1]RelatedPartyTransfers!I62","v":0},null,{"$f":"[1]RelatedPartyTransfers!M62","v":0},{"$f":"[1]RelatedPartyTransfers!N62","v":0},{"$f":"[1]RelatedPartyTransfers!O62","v":0},{"$f":"[1]RelatedPartyTransfers!P62","v":0},{"$f":"[1]RelatedPartyTransfers!Q62","v":0},{"$f":"[1]RelatedPartyTransfers!R62","v":0},{"$f":"[1]RelatedPartyTransfers!S62","v":0},{"$f":"[1]RelatedPartyTransfers!T62","v":0},{"$f":"[1]RelatedPartyTransfers!U62","v":0},{"$f":"[1]RelatedPartyTransfers!V62","v":0},{"$f":"[1]RelatedPartyTransfers!W62","v":0},{"$f":"[1]RelatedPartyTransfers!W62","v":0},0]
[0,0,{"$f":"IFERROR(INDEX((Settings!$M$17:$M$236),MATCH(RelatedPartyTransfers!G63,Settings!$AD$18:$AD$166,0)),0)","v":0},null,null,{"$f":"[1]RelatedPartyTransfers!F63","v":0},{"$f":"[1]RelatedPartyTransfers!G63","v":0},{"$f":"[1]RelatedPartyTransfers!H63","v":0},{"$f":"[1]RelatedPartyTransfers!I63","v":0},null,{"$f":"[1]RelatedPartyTransfers!M63","v":0},{"$f":"[1]RelatedPartyTransfers!N63","v":0},{"$f":"[1]RelatedPartyTransfers!O63","v":0},{"$f":"[1]RelatedPartyTransfers!P63","v":0},{"$f":"[1]RelatedPartyTransfers!Q63","v":0},{"$f":"[1]RelatedPartyTransfers!R63","v":0},{"$f":"[1]RelatedPartyTransfers!S63","v":0},{"$f":"[1]RelatedPartyTransfers!T63","v":0},{"$f":"[1]RelatedPartyTransfers!U63","v":0},{"$f":"[1]RelatedPartyTransfers!V63","v":0},{"$f":"[1]RelatedPartyTransfers!W63","v":0},{"$f":"[1]RelatedPartyTransfers!W63","v":0},0]
[0,0,{"$f":"IFERROR(INDEX((Settings!$M$17:$M$236),MATCH(RelatedPartyTransfers!G64,Settings!$AD$18:$AD$166,0)),0)","v":0},null,null,{"$f":"[1]RelatedPartyTransfers!F64","v":0},{"$f":"[1]RelatedPartyTransfers!G64","v":0},{"$f":"[1]RelatedPartyTransfers!H64","v":0},{"$f":"[1]RelatedPartyTransfers!I64","v":0},null,{"$f":"[1]RelatedPartyTransfers!M64","v":0},{"$f":"[1]RelatedPartyTransfers!N64","v":0},{"$f":"[1]RelatedPartyTransfers!O64","v":0},{"$f":"[1]RelatedPartyTransfers!P64","v":0},{"$f":"[1]RelatedPartyTransfers!Q64","v":0},{"$f":"[1]RelatedPartyTransfers!R64","v":0},{"$f":"[1]RelatedPartyTransfers!S64","v":0},{"$f":"[1]RelatedPartyTransfers!T64","v":0},{"$f":"[1]RelatedPartyTransfers!U64","v":0},{"$f":"[1]RelatedPartyTransfers!V64","v":0},{"$f":"[1]RelatedPartyTransfers!W64","v":0},{"$f":"[1]RelatedPartyTransfers!W64","v":0},0]
[0,0,{"$f":"IFERROR(INDEX((Settings!$M$17:$M$236),MATCH(RelatedPartyTransfers!G65,Settings!$AD$18:$AD$166,0)),0)","v":0},null,null,{"$f":"[1]RelatedPartyTransfers!F65","v":0},{"$f":"[1]RelatedPartyTransfers!G65","v":0},{"$f":"[1]RelatedPartyTransfers!H65","v":0},{"$f":"[1]RelatedPartyTransfers!I65","v":0},null,{"$f":"[1]RelatedPartyTransfers!M65","v":0},{"$f":"[1]RelatedPartyTransfers!N65","v":0},{"$f":"[1]RelatedPartyTransfers!O65","v":0},{"$f":"[1]RelatedPartyTransfers!P65","v":0},{"$f":"[1]RelatedPartyTransfers!Q65","v":0},{"$f":"[1]RelatedPartyTransfers!R65","v":0},{"$f":"[1]RelatedPartyTransfers!S65","v":0},{"$f":"[1]RelatedPartyTransfers!T65","v":0},{"$f":"[1]RelatedPartyTransfers!U65","v":0},{"$f":"[1]RelatedPartyTransfers!V65","v":0},{"$f":"[1]RelatedPartyTransfers!W65","v":0},{"$f":"[1]RelatedPartyTransfers!W65","v":0},0]
[0,0,{"$f":"IFERROR(INDEX((Settings!$M$17:$M$236),MATCH(RelatedPartyTransfers!G66,Settings!$AD$18:$AD$166,0)),0)","v":0},null,null,{"$f":"[1]RelatedPartyTransfers!F66","v":0},{"$f":"[1]RelatedPartyTransfers!G66","v":0},{"$f":"[1]RelatedPartyTransfers!H66","v":0},{"$f":"[1]RelatedPartyTransfers!I66","v":0},null,{"$f":"[1]RelatedPartyTransfers!M66","v":0},{"$f":"[1]RelatedPartyTransfers!N66","v":0},{"$f":"[1]RelatedPartyTransfers!O66","v":0},{"$f":"[1]RelatedPartyTransfers!P66","v":0},{"$f":"[1]RelatedPartyTransfers!Q66","v":0},{"$f":"[1]RelatedPartyTransfers!R66","v":0},{"$f":"[1]RelatedPartyTransfers!S66","v":0},{"$f":"[1]RelatedPartyTransfers!T66","v":0},{"$f":"[1]RelatedPartyTransfers!U66","v":0},{"$f":"[1]RelatedPartyTransfers!V66","v":0},{"$f":"[1]RelatedPartyTransfers!W66","v":0},{"$f":"[1]RelatedPartyTransfers!W66","v":0},0]
[0,0,{"$f":"IFERROR(INDEX((Settings!$M$17:$M$236),MATCH(RelatedPartyTransfers!G67,Settings!$AD$18:$AD$166,0)),0)","v":0},null,null,{"$f":"[1]RelatedPartyTransfers!F67","v":0},{"$f":"[1]RelatedPartyTransfers!G67","v":0},{"$f":"[1]RelatedPartyTransfers!H67","v":0},{"$f":"[1]RelatedPartyTransfers!I67","v":0},null,{"$f":"[1]RelatedPartyTransfers!M67","v":0},{"$f":"[1]RelatedPartyTransfers!N67","v":0},{"$f":"[1]RelatedPartyTransfers!O67","v":0},{"$f":"[1]RelatedPartyTransfers!P67","v":0},{"$f":"[1]RelatedPartyTransfers!Q67","v":0},{"$f":"[1]RelatedPartyTransfers!R67","v":0},{"$f":"[1]RelatedPartyTransfers!S67","v":0},{"$f":"[1]RelatedPartyTransfers!T67","v":0},{"$f":"[1]RelatedPartyTransfers!U67","v":0},{"$f":"[1]RelatedPartyTransfers!V67","v":0},{"$f":"[1]RelatedPartyTransfers!W67","v":0},{"$f":"[1]RelatedPartyTransfers!W67","v":0},0]
[0,0,{"$f":"IFERROR(INDEX((Settings!$M$17:$M$236),MATCH(RelatedPartyTransfers!G68,Settings!$AD$18:$AD$166,0)),0)","v":0},null,null,{"$f":"[1]RelatedPartyTransfers!F68","v":0},{"$f":"[1]RelatedPartyTransfers!G68","v":0},{"$f":"[1]RelatedPartyTransfers!H68","v":0},{"$f":"[1]RelatedPartyTransfers!I68","v":0},null,{"$f":"[1]RelatedPartyTransfers!M68","v":0},{"$f":"[1]RelatedPartyTransfers!N68","v":0},{"$f":"[1]RelatedPartyTransfers!O68","v":0},{"$f":"[1]RelatedPartyTransfers!P68","v":0},{"$f":"[1]RelatedPartyTransfers!Q68","v":0},{"$f":"[1]RelatedPartyTransfers!R68","v":0},{"$f":"[1]RelatedPartyTransfers!S68","v":0},{"$f":"[1]RelatedPartyTransfers!T68","v":0},{"$f":"[1]RelatedPartyTransfers!U68","v":0},{"$f":"[1]RelatedPartyTransfers!V68","v":0},{"$f":"[1]RelatedPartyTransfers!W68","v":0},{"$f":"[1]RelatedPartyTransfers!W68","v":0},0]
[0,0,{"$f":"IFERROR(INDEX((Settings!$M$17:$M$236),MATCH(RelatedPartyTransfers!G69,Settings!$AD$18:$AD$166,0)),0)","v":0},null,null,{"$f":"[1]RelatedPartyTransfers!F69","v":0},{"$f":"[1]RelatedPartyTransfers!G69","v":0},{"$f":"[1]RelatedPartyTransfers!H69","v":0},{"$f":"[1]RelatedPartyTransfers!I69","v":0},null,{"$f":"[1]RelatedPartyTransfers!M69","v":0},{"$f":"[1]RelatedPartyTransfers!N69","v":0},{"$f":"[1]RelatedPartyTransfers!O69","v":0},{"$f":"[1]RelatedPartyTransfers!P69","v":0},{"$f":"[1]RelatedPartyTransfers!Q69","v":0},{"$f":"[1]RelatedPartyTransfers!R69","v":0},{"$f":"[1]RelatedPartyTransfers!S69","v":0},{"$f":"[1]RelatedPartyTransfers!T69","v":0},{"$f":"[1]RelatedPartyTransfers!U69","v":0},{"$f":"[1]RelatedPartyTransfers!V69","v":0},{"$f":"[1]RelatedPartyTransfers!W69","v":0},{"$f":"[1]RelatedPartyTransfers!W69","v":0},0]
[0,0,{"$f":"IFERROR(INDEX((Settings!$M$17:$M$236),MATCH(RelatedPartyTransfers!G70,Settings!$AD$18:$AD$166,0)),0)","v":0},null,null,{"$f":"[1]RelatedPartyTransfers!F70","v":0},{"$f":"[1]RelatedPartyTransfers!G70","v":0},{"$f":"[1]RelatedPartyTransfers!H70","v":0},{"$f":"[1]RelatedPartyTransfers!I70","v":0},null,{"$f":"[1]RelatedPartyTransfers!M70","v":0},{"$f":"[1]RelatedPartyTransfers!N70","v":0},{"$f":"[1]RelatedPartyTransfers!O70","v":0},{"$f":"[1]RelatedPartyTransfers!P70","v":0},{"$f":"[1]RelatedPartyTransfers!Q70","v":0},{"$f":"[1]RelatedPartyTransfers!R70","v":0},{"$f":"[1]RelatedPartyTransfers!S70","v":0},{"$f":"[1]RelatedPartyTransfers!T70","v":0},{"$f":"[1]RelatedPartyTransfers!U70","v":0},{"$f":"[1]RelatedPartyTransfers!V70","v":0},{"$f":"[1]RelatedPartyTransfers!W70","v":0},{"$f":"[1]RelatedPartyTransfers!W70","v":0},0]
[0,0,{"$f":"IFERROR(INDEX((Settings!$M$17:$M$236),MATCH(RelatedPartyTransfers!G71,Settings!$AD$18:$AD$166,0)),0)","v":0},null,null,{"$f":"[1]RelatedPartyTransfers!F71","v":0},{"$f":"[1]RelatedPartyTransfers!G71","v":0},{"$f":"[1]RelatedPartyTransfers!H71","v":0},{"$f":"[1]RelatedPartyTransfers!I71","v":0},null,{"$f":"[1]RelatedPartyTransfers!M71","v":0},{"$f":"[1]RelatedPartyTransfers!N71","v":0},{"$f":"[1]RelatedPartyTransfers!O71","v":0},{"$f":"[1]RelatedPartyTransfers!P71","v":0},{"$f":"[1]RelatedPartyTransfers!Q71","v":0},{"$f":"[1]RelatedPartyTransfers!R71","v":0},{"$f":"[1]RelatedPartyTransfers!S71","v":0},{"$f":"[1]RelatedPartyTransfers!T71","v":0},{"$f":"[1]RelatedPartyTransfers!U71","v":0},{"$f":"[1]RelatedPartyTransfers!V71","v":0},{"$f":"[1]RelatedPartyTransfers!W71","v":0},{"$f":"[1]RelatedPartyTransfers!W71","v":0},0]
[0,0,{"$f":"IFERROR(INDEX((Settings!$M$17:$M$236),MATCH(RelatedPartyTransfers!G72,Settings!$AD$18:$AD$166,0)),0)","v":0},null,null,{"$f":"[1]RelatedPartyTransfers!F72","v":0},{"$f":"[1]RelatedPartyTransfers!G72","v":0},{"$f":"[1]RelatedPartyTransfers!H72","v":0},{"$f":"[1]RelatedPartyTransfers!I72","v":0},null,{"$f":"[1]RelatedPartyTransfers!M72","v":0},{"$f":"[1]RelatedPartyTransfers!N72","v":0},{"$f":"[1]RelatedPartyTransfers!O72","v":0},{"$f":"[1]RelatedPartyTransfers!P72","v":0},{"$f":"[1]RelatedPartyTransfers!Q72","v":0},{"$f":"[1]RelatedPartyTransfers!R72","v":0},{"$f":"[1]RelatedPartyTransfers!S72","v":0},{"$f":"[1]RelatedPartyTransfers!T72","v":0},{"$f":"[1]RelatedPartyTransfers!U72","v":0},{"$f":"[1]RelatedPartyTransfers!V72","v":0},{"$f":"[1]RelatedPartyTransfers!W72","v":0},{"$f":"[1]RelatedPartyTransfers!W72","v":0},0]
[0,0,{"$f":"IFERROR(INDEX((Settings!$M$17:$M$236),MATCH(RelatedPartyTransfers!G73,Settings!$AD$18:$AD$166,0)),0)","v":0},null,null,{"$f":"[1]RelatedPartyTransfers!F73","v":0},{"$f":"[1]RelatedPartyTransfers!G73","v":0},{"$f":"[1]RelatedPartyTransfers!H73","v":0},{"$f":"[1]RelatedPartyTransfers!I73","v":0},null,{"$f":"[1]RelatedPartyTransfers!M73","v":0},{"$f":"[1]RelatedPartyTransfers!N73","v":0},{"$f":"[1]RelatedPartyTransfers!O73","v":0},{"$f":"[1]RelatedPartyTransfers!P73","v":0},{"$f":"[1]RelatedPartyTransfers!Q73","v":0},{"$f":"[1]RelatedPartyTransfers!R73","v":0},{"$f":"[1]RelatedPartyTransfers!S73","v":0},{"$f":"[1]RelatedPartyTransfers!T73","v":0},{"$f":"[1]RelatedPartyTransfers!U73","v":0},{"$f":"[1]RelatedPartyTransfers!V73","v":0},{"$f":"[1]RelatedPartyTransfers!W73","v":0},{"$f":"[1]RelatedPartyTransfers!W73","v":0},0]
[0,0,{"$f":"IFERROR(INDEX((Settings!$M$17:$M$236),MATCH(RelatedPartyTransfers!G74,Settings!$AD$18:$AD$166,0)),0)","v":0},null,null,{"$f":"[1]RelatedPartyTransfers!F74","v":0},{"$f":"[1]RelatedPartyTransfers!G74","v":0},{"$f":"[1]RelatedPartyTransfers!H74","v":0},{"$f":"[1]RelatedPartyTransfers!I74","v":0},null,{"$f":"[1]RelatedPartyTransfers!M74","v":0},{"$f":"[1]RelatedPartyTransfers!N74","v":0},{"$f":"[1]RelatedPartyTransfers!O74","v":0},{"$f":"[1]RelatedPartyTransfers!P74","v":0},{"$f":"[1]RelatedPartyTransfers!Q74","v":0},{"$f":"[1]RelatedPartyTransfers!R74","v":0},{"$f":"[1]RelatedPartyTransfers!S74","v":0},{"$f":"[1]RelatedPartyTransfers!T74","v":0},{"$f":"[1]RelatedPartyTransfers!U74","v":0},{"$f":"[1]RelatedPartyTransfers!V74","v":0},{"$f":"[1]RelatedPartyTransfers!W74","v":0},{"$f":"[1]RelatedPartyTransfers!W74","v":0},0]
[0,{"$f":"IF($G75=$G$7,1,0)","v":0},{"$f":"IFERROR(INDEX((Settings!$M$17:$M$236),MATCH(RelatedPartyTransfers!G75,Settings!$AD$18:$AD$166,0)),0)","v":0},null,null,{"$f":"[1]RelatedPartyTransfers!F75","v":0},{"$f":"[1]RelatedPartyTransfers!G75","v":0},{"$f":"[1]RelatedPartyTransfers!H75","v":0},{"$f":"[1]RelatedPartyTransfers!I75","v":0},null,{"$f":"[1]RelatedPartyTransfers!M75","v":0},{"$f":"[1]RelatedPartyTransfers!N75","v":0},{"$f":"[1]RelatedPartyTransfers!O75","v":0},{"$f":"[1]RelatedPartyTransfers!P75","v":0},{"$f":"[1]RelatedPartyTransfers!Q75","v":0},{"$f":"[1]RelatedPartyTransfers!R75","v":0},{"$f":"[1]RelatedPartyTransfers!S75","v":0},{"$f":"[1]RelatedPartyTransfers!T75","v":0},{"$f":"[1]RelatedPartyTransfers!U75","v":0},{"$f":"[1]RelatedPartyTransfers!V75","v":0},{"$f":"[1]RelatedPartyTransfers!W75","v":0},{"$f":"[1]RelatedPartyTransfers!W75","v":0},0]
[{"$f":"IF(SUM(K76:W76)>0,1,0)","v":0},0,{"$f":"IFERROR(INDEX((Settings!$M$17:$M$236),MATCH(RelatedPartyTransfers!G76,Settings!$AD$18:$AD$166,0)),0)","v":0},null,null,{"$f":"[1]RelatedPartyTransfers!F76","v":0},{"$f":"[1]RelatedPartyTransfers!G76","v":0},{"$f":"[1]RelatedPartyTransfers!H76","v":0},{"$f":"[1]RelatedPartyTransfers!I76","v":0},null,{"$f":"[1]RelatedPartyTransfers!M76","v":0},{"$f":"[1]RelatedPartyTransfers!N76","v":0},{"$f":"[1]RelatedPartyTransfers!O76","v":0},{"$f":"[1]RelatedPartyTransfers!P76","v":0},{"$f":"[1]RelatedPartyTransfers!Q76","v":0},{"$f":"[1]RelatedPartyTransfers!R76","v":0},{"$f":"[1]RelatedPartyTransfers!S76","v":0},{"$f":"[1]RelatedPartyTransfers!T76","v":0},{"$f":"[1]RelatedPartyTransfers!U76","v":0},{"$f":"[1]RelatedPartyTransfers!V76","v":0},{"$f":"[1]RelatedPartyTransfers!W76","v":0},{"$f":"[1]RelatedPartyTransfers!W76","v":0},0]
[0,0,{"$f":"IFERROR(INDEX((Settings!$M$17:$M$236),MATCH(RelatedPartyTransfers!G77,Settings!$AD$18:$AD$166,0)),0)","v":0},null,null,{"$f":"[1]RelatedPartyTransfers!F77","v":0},{"$f":"[1]RelatedPartyTransfers!G77","v":0},{"$f":"[1]RelatedPartyTransfers!H77","v":0},{"$f":"[1]RelatedPartyTransfers!I77","v":0},null,{"$f":"[1]RelatedPartyTransfers!M77","v":0},{"$f":"[1]RelatedPartyTransfers!N77","v":0},{"$f":"[1]RelatedPartyTransfers!O77","v":0},{"$f":"[1]RelatedPartyTransfers!P77","v":0},{"$f":"[1]RelatedPartyTransfers!Q77","v":0},{"$f":"[1]RelatedPartyTransfers!R77","v":0},{"$f":"[1]RelatedPartyTransfers!S77","v":0},{"$f":"[1]RelatedPartyTransfers!T77","v":0},{"$f":"[1]RelatedPartyTransfers!U77","v":0},{"$f":"[1]RelatedPartyTransfers!V77","v":0},{"$f":"[1]RelatedPartyTransfers!W77","v":0},{"$f":"[1]RelatedPartyTransfers!W77","v":0},0]
[0,0,{"$f":"IFERROR(INDEX((Settings!$M$17:$M$236),MATCH(RelatedPartyTransfers!G78,Settings!$AD$18:$AD$166,0)),0)","v":0},null,null,{"$f":"[1]RelatedPartyTransfers!F78","v":0},{"$f":"[1]RelatedPartyTransfers!G78","v":0},{"$f":"[1]RelatedPartyTransfers!H78","v":0},{"$f":"[1]RelatedPartyTransfers!I78","v":0},null,{"$f":"[1]RelatedPartyTransfers!M78","v":0},{"$f":"[1]RelatedPartyTransfers!N78","v":0},{"$f":"[1]RelatedPartyTransfers!O78","v":0},{"$f":"[1]RelatedPartyTransfers!P78","v":0},{"$f":"[1]RelatedPartyTransfers!Q78","v":0},{"$f":"[1]RelatedPartyTransfers!R78","v":0},{"$f":"[1]RelatedPartyTransfers!S78","v":0},{"$f":"[1]RelatedPartyTransfers!T78","v":0},{"$f":"[1]RelatedPartyTransfers!U78","v":0},{"$f":"[1]RelatedPartyTransfers!V78","v":0},{"$f":"[1]RelatedPartyTransfers!W78","v":0},{"$f":"[1]RelatedPartyTransfers!W78","v":0},0]
[0,0,{"$f":"IFERROR(INDEX((Settings!$M$17:$M$236),MATCH(RelatedPartyTransfers!G79,Settings!$AD$18:$AD$166,0)),0)","v":0},null,null,{"$f":"[1]RelatedPartyTransfers!F79","v":0},{"$f":"[1]RelatedPartyTransfers!G79","v":0},{"$f":"[1]RelatedPartyTransfers!H79","v":0},{"$f":"[1]RelatedPartyTransfers!I79","v":0},null,{"$f":"[1]RelatedPartyTransfers!M79","v":0},{"$f":"[1]RelatedPartyTransfers!N79","v":0},{"$f":"[1]RelatedPartyTransfers!O79","v":0},{"$f":"[1]RelatedPartyTransfers!P79","v":0},{"$f":"[1]RelatedPartyTransfers!Q79","v":0},{"$f":"[1]RelatedPartyTransfers!R79","v":0},{"$f":"[1]RelatedPartyTransfers!S79","v":0},{"$f":"[1]RelatedPartyTransfers!T79","v":0},{"$f":"[1]RelatedPartyTransfers!U79","v":0},{"$f":"[1]RelatedPartyTransfers!V79","v":0},{"$f":"[1]RelatedPartyTransfers!W79","v":0},{"$f":"[1]RelatedPartyTransfers!W79","v":0},0]
[0,0,{"$f":"IFERROR(INDEX((Settings!$M$17:$M$236),MATCH(RelatedPartyTransfers!G80,Settings!$AD$18:$AD$166,0)),0)","v":0},null,null,{"$f":"[1]RelatedPartyTransfers!F80","v":0},{"$f":"[1]RelatedPartyTransfers!G80","v":0},{"$f":"[1]RelatedPartyTransfers!H80","v":0},{"$f":"[1]RelatedPartyTransfers!I80","v":0},null,{"$f":"[1]RelatedPartyTransfers!M80","v":0},{"$f":"[1]RelatedPartyTransfers!N80","v":0},{"$f":"[1]RelatedPartyTransfers!O80","v":0},{"$f":"[1]RelatedPartyTransfers!P80","v":0},{"$f":"[1]RelatedPartyTransfers!Q80","v":0},{"$f":"[1]RelatedPartyTransfers!R80","v":0},{"$f":"[1]RelatedPartyTransfers!S80","v":0},{"$f":"[1]RelatedPartyTransfers!T80","v":0},{"$f":"[1]RelatedPartyTransfers!U80","v":0},{"$f":"[1]RelatedPartyTransfers!V80","v":0},{"$f":"[1]RelatedPartyTransfers!W80","v":0},{"$f":"[1]RelatedPartyTransfers!W80","v":0},0]
[0,0,{"$f":"IFERROR(INDEX((Settings!$M$17:$M$236),MATCH(RelatedPartyTransfers!G81,Settings!$AD$18:$AD$166,0)),0)","v":0},null,null,{"$f":"[1]RelatedPartyTransfers!F81","v":0},{"$f":"[1]RelatedPartyTransfers!G81","v":0},{"$f":"[1]RelatedPartyTransfers!H81","v":0},{"$f":"[1]RelatedPartyTransfers!I81","v":0},null,{"$f":"[1]RelatedPartyTransfers!M81","v":0},{"$f":"[1]RelatedPartyTransfers!N81","v":0},{"$f":"[1]RelatedPartyTransfers!O81","v":0},{"$f":"[1]RelatedPartyTransfers!P81","v":0},{"$f":"[1]RelatedPartyTransfers!Q81","v":0},{"$f":"[1]RelatedPartyTransfers!R81","v":0},{"$f":"[1]RelatedPartyTransfers!S81","v":0},{"$f":"[1]RelatedPartyTransfers!T81","v":0},{"$f":"[1]RelatedPartyTransfers!U81","v":0},{"$f":"[1]RelatedPartyTransfers!V81","v":0},{"$f":"[1]RelatedPartyTransfers!W81","v":0},{"$f":"[1]RelatedPartyTransfers!W81","v":0},0]
[0,0,{"$f":"IFERROR(INDEX((Settings!$M$17:$M$236),MATCH(RelatedPartyTransfers!G82,Settings!$AD$18:$AD$166,0)),0)","v":0},null,null,{"$f":"[1]RelatedPartyTransfers!F82","v":0},{"$f":"[1]RelatedPartyTransfers!G82","v":0},{"$f":"[1]RelatedPartyTransfers!H82","v":0},{"$f":"[1]RelatedPartyTransfers!I82","v":0},null,{"$f":"[1]RelatedPartyTransfers!M82","v":0},{"$f":"[1]RelatedPartyTransfers!N82","v":0},{"$f":"[1]RelatedPartyTransfers!O82","v":0},{"$f":"[1]RelatedPartyTransfers!P82","v":0},{"$f":"[1]RelatedPartyTransfers!Q82","v":0},{"$f":"[1]RelatedPartyTransfers!R82","v":0},{"$f":"[1]RelatedPartyTransfers!S82","v":0},{"$f":"[1]RelatedPartyTransfers!T82","v":0},{"$f":"[1]RelatedPartyTransfers!U82","v":0},{"$f":"[1]RelatedPartyTransfers!V82","v":0},{"$f":"[1]RelatedPartyTransfers!W82","v":0},{"$f":"[1]RelatedPartyTransfers!W82","v":0},0]
[0,0,{"$f":"IFERROR(INDEX((Settings!$M$17:$M$236),MATCH(RelatedPartyTransfers!G83,Settings!$AD$18:$AD$166,0)),0)","v":0},null,null,{"$f":"[1]RelatedPartyTransfers!F83","v":0},{"$f":"[1]RelatedPartyTransfers!G83","v":0},{"$f":"[1]RelatedPartyTransfers!H83","v":0},{"$f":"[1]RelatedPartyTransfers!I83","v":0},null,{"$f":"[1]RelatedPartyTransfers!M83","v":0},{"$f":"[1]RelatedPartyTransfers!N83","v":0},{"$f":"[1]RelatedPartyTransfers!O83","v":0},{"$f":"[1]RelatedPartyTransfers!P83","v":0},{"$f":"[1]RelatedPartyTransfers!Q83","v":0},{"$f":"[1]RelatedPartyTransfers!R83","v":0},{"$f":"[1]RelatedPartyTransfers!S83","v":0},{"$f":"[1]RelatedPartyTransfers!T83","v":0},{"$f":"[1]RelatedPartyTransfers!U83","v":0},{"$f":"[1]RelatedPartyTransfers!V83","v":0},{"$f":"[1]RelatedPartyTransfers!W83","v":0},{"$f":"[1]RelatedPartyTransfers!W83","v":0},0]
[0,0,{"$f":"IFERROR(INDEX((Settings!$M$17:$M$236),MATCH(RelatedPartyTransfers!G84,Settings!$AD$18:$AD$166,0)),0)","v":0},null,null,{"$f":"[1]RelatedPartyTransfers!F84","v":0},{"$f":"[1]RelatedPartyTransfers!G84","v":0},{"$f":"[1]RelatedPartyTransfers!H84","v":0},{"$f":"[1]RelatedPartyTransfers!I84","v":0},null,{"$f":"[1]RelatedPartyTransfers!M84","v":0},{"$f":"[1]RelatedPartyTransfers!N84","v":0},{"$f":"[1]RelatedPartyTransfers!O84","v":0},{"$f":"[1]RelatedPartyTransfers!P84","v":0},{"$f":"[1]RelatedPartyTransfers!Q84","v":0},{"$f":"[1]RelatedPartyTransfers!R84","v":0},{"$f":"[1]RelatedPartyTransfers!S84","v":0},{"$f":"[1]RelatedPartyTransfers!T84","v":0},{"$f":"[1]RelatedPartyTransfers!U84","v":0},{"$f":"[1]RelatedPartyTransfers!V84","v":0},{"$f":"[1]RelatedPartyTransfers!W84","v":0},{"$f":"[1]RelatedPartyTransfers!W84","v":0},0]
[0,0,{"$f":"IFERROR(INDEX((Settings!$M$17:$M$236),MATCH(RelatedPartyTransfers!G85,Settings!$AD$18:$AD$166,0)),0)","v":0},null,null,{"$f":"[1]RelatedPartyTransfers!F85","v":0},{"$f":"[1]RelatedPartyTransfers!G85","v":0},{"$f":"[1]RelatedPartyTransfers!H85","v":0},{"$f":"[1]RelatedPartyTransfers!I85","v":0},null,{"$f":"[1]RelatedPartyTransfers!M85","v":0},{"$f":"[1]RelatedPartyTransfers!N85","v":0},{"$f":"[1]RelatedPartyTransfers!O85","v":0},{"$f":"[1]RelatedPartyTransfers!P85","v":0},{"$f":"[1]RelatedPartyTransfers!Q85","v":0},{"$f":"[1]RelatedPartyTransfers!R85","v":0},{"$f":"[1]RelatedPartyTransfers!S85","v":0},{"$f":"[1]RelatedPartyTransfers!T85","v":0},{"$f":"[1]RelatedPartyTransfers!U85","v":0},{"$f":"[1]RelatedPartyTransfers!V85","v":0},{"$f":"[1]RelatedPartyTransfers!W85","v":0},{"$f":"[1]RelatedPartyTransfers!W85","v":0},0]
[0,0,{"$f":"IFERROR(INDEX((Settings!$M$17:$M$236),MATCH(RelatedPartyTransfers!G86,Settings!$AD$18:$AD$166,0)),0)","v":0},null,null,{"$f":"[1]RelatedPartyTransfers!F86","v":0},{"$f":"[1]RelatedPartyTransfers!G86","v":0},{"$f":"[1]RelatedPartyTransfers!H86","v":0},{"$f":"[1]RelatedPartyTransfers!I86","v":0},null,{"$f":"[1]RelatedPartyTransfers!M86","v":0},{"$f":"[1]RelatedPartyTransfers!N86","v":0},{"$f":"[1]RelatedPartyTransfers!O86","v":0},{"$f":"[1]RelatedPartyTransfers!P86","v":0},{"$f":"[1]RelatedPartyTransfers!Q86","v":0},{"$f":"[1]RelatedPartyTransfers!R86","v":0},{"$f":"[1]RelatedPartyTransfers!S86","v":0},{"$f":"[1]RelatedPartyTransfers!T86","v":0},{"$f":"[1]RelatedPartyTransfers!U86","v":0},{"$f":"[1]RelatedPartyTransfers!V86","v":0},{"$f":"[1]RelatedPartyTransfers!W86","v":0},{"$f":"[1]RelatedPartyTransfers!W86","v":0},0]
[0,0,{"$f":"IFERROR(INDEX((Settings!$M$17:$M$236),MATCH(RelatedPartyTransfers!G87,Settings!$AD$18:$AD$166,0)),0)","v":0},null,null,{"$f":"[1]RelatedPartyTransfers!F87","v":0},{"$f":"[1]RelatedPartyTransfers!G87","v":0},{"$f":"[1]RelatedPartyTransfers!H87","v":0},{"$f":"[1]RelatedPartyTransfers!I87","v":0},null,{"$f":"[1]RelatedPartyTransfers!M87","v":0},{"$f":"[1]RelatedPartyTransfers!N87","v":0},{"$f":"[1]RelatedPartyTransfers!O87","v":0},{"$f":"[1]RelatedPartyTransfers!P87","v":0},{"$f":"[1]RelatedPartyTransfers!Q87","v":0},{"$f":"[1]RelatedPartyTransfers!R87","v":0},{"$f":"[1]RelatedPartyTransfers!S87","v":0},{"$f":"[1]RelatedPartyTransfers!T87","v":0},{"$f":"[1]RelatedPartyTransfers!U87","v":0},{"$f":"[1]RelatedPartyTransfers!V87","v":0},{"$f":"[1]RelatedPartyTransfers!W87","v":0},{"$f":"[1]RelatedPartyTransfers!W87","v":0},0]
[0,0,{"$f":"IFERROR(INDEX((Settings!$M$17:$M$236),MATCH(RelatedPartyTransfers!G88,Settings!$AD$18:$AD$166,0)),0)","v":0},null,null,{"$f":"[1]RelatedPartyTransfers!F88","v":0},{"$f":"[1]RelatedPartyTransfers!G88","v":0},{"$f":"[1]RelatedPartyTransfers!H88","v":0},{"$f":"[1]RelatedPartyTransfers!I88","v":0},null,{"$f":"[1]RelatedPartyTransfers!M88","v":0},{"$f":"[1]RelatedPartyTransfers!N88","v":0},{"$f":"[1]RelatedPartyTransfers!O88","v":0},{"$f":"[1]RelatedPartyTransfers!P88","v":0},{"$f":"[1]RelatedPartyTransfers!Q88","v":0},{"$f":"[1]RelatedPartyTransfers!R88","v":0},{"$f":"[1]RelatedPartyTransfers!S88","v":0},{"$f":"[1]RelatedPartyTransfers!T88","v":0},{"$f":"[1]RelatedPartyTransfers!U88","v":0},{"$f":"[1]RelatedPartyTransfers!V88","v":0},{"$f":"[1]RelatedPartyTransfers!W88","v":0},{"$f":"[1]RelatedPartyTransfers!W88","v":0},0]
[0,0,{"$f":"IFERROR(INDEX((Settings!$M$17:$M$236),MATCH(RelatedPartyTransfers!G89,Settings!$AD$18:$AD$166,0)),0)","v":0},null,null,{"$f":"[1]RelatedPartyTransfers!F89","v":0},{"$f":"[1]RelatedPartyTransfers!G89","v":0},{"$f":"[1]RelatedPartyTransfers!H89","v":0},{"$f":"[1]RelatedPartyTransfers!I89","v":0},null,{"$f":"[1]RelatedPartyTransfers!M89","v":0},{"$f":"[1]RelatedPartyTransfers!N89","v":0},{"$f":"[1]RelatedPartyTransfers!O89","v":0},{"$f":"[1]RelatedPartyTransfers!P89","v":0},{"$f":"[1]RelatedPartyTransfers!Q89","v":0},{"$f":"[1]RelatedPartyTransfers!R89","v":0},{"$f":"[1]RelatedPartyTransfers!S89","v":0},{"$f":"[1]RelatedPartyTransfers!T89","v":0},{"$f":"[1]RelatedPartyTransfers!U89","v":0},{"$f":"[1]RelatedPartyTransfers!V89","v":0},{"$f":"[1]RelatedPartyTransfers!W89","v":0},{"$f":"[1]RelatedPartyTransfers!W89","v":0},0]
[0,0,{"$f":"IFERROR(INDEX((Settings!$M$17:$M$236),MATCH(RelatedPartyTransfers!G90,Settings!$AD$18:$AD$166,0)),0)","v":0},null,null,{"$f":"[1]RelatedPartyTransfers!F90","v":0},{"$f":"[1]RelatedPartyTransfers!G90","v":0},{"$f":"[1]RelatedPartyTransfers!H90","v":0},{"$f":"[1]RelatedPartyTransfers!I90","v":0},null,{"$f":"[1]RelatedPartyTransfers!M90","v":0},{"$f":"[1]RelatedPartyTransfers!N90","v":0},{"$f":"[1]RelatedPartyTransfers!O90","v":0},{"$f":"[1]RelatedPartyTransfers!P90","v":0},{"$f":"[1]RelatedPartyTransfers!Q90","v":0},{"$f":"[1]RelatedPartyTransfers!R90","v":0},{"$f":"[1]RelatedPartyTransfers!S90","v":0},{"$f":"[1]RelatedPartyTransfers!T90","v":0},{"$f":"[1]RelatedPartyTransfers!U90","v":0},{"$f":"[1]RelatedPartyTransfers!V90","v":0},{"$f":"[1]RelatedPartyTransfers!W90","v":0},{"$f":"[1]RelatedPartyTransfers!W90","v":0},0]
[0,0,{"$f":"IFERROR(INDEX((Settings!$M$17:$M$236),MATCH(RelatedPartyTransfers!G91,Settings!$AD$18:$AD$166,0)),0)","v":0},null,null,{"$f":"[1]RelatedPartyTransfers!F91","v":0},{"$f":"[1]RelatedPartyTransfers!G91","v":0},{"$f":"[1]RelatedPartyTransfers!H91","v":0},{"$f":"[1]RelatedPartyTransfers!I91","v":0},null,{"$f":"[1]RelatedPartyTransfers!M91","v":0},{"$f":"[1]RelatedPartyTransfers!N91","v":0},{"$f":"[1]RelatedPartyTransfers!O91","v":0},{"$f":"[1]RelatedPartyTransfers!P91","v":0},{"$f":"[1]RelatedPartyTransfers!Q91","v":0},{"$f":"[1]RelatedPartyTransfers!R91","v":0},{"$f":"[1]RelatedPartyTransfers!S91","v":0},{"$f":"[1]RelatedPartyTransfers!T91","v":0},{"$f":"[1]RelatedPartyTransfers!U91","v":0},{"$f":"[1]RelatedPartyTransfers!V91","v":0},{"$f":"[1]RelatedPartyTransfers!W91","v":0},{"$f":"[1]RelatedPartyTransfers!W91","v":0},0]
[0,0,{"$f":"IFERROR(INDEX((Settings!$M$17:$M$236),MATCH(RelatedPartyTransfers!G92,Settings!$AD$18:$AD$166,0)),0)","v":0},null,null,{"$f":"[1]RelatedPartyTransfers!F92","v":0},{"$f":"[1]RelatedPartyTransfers!G92","v":0},{"$f":"[1]RelatedPartyTransfers!H92","v":0},{"$f":"[1]RelatedPartyTransfers!I92","v":0},null,{"$f":"[1]RelatedPartyTransfers!M92","v":0},{"$f":"[1]RelatedPartyTransfers!N92","v":0},{"$f":"[1]RelatedPartyTransfers!O92","v":0},{"$f":"[1]RelatedPartyTransfers!P92","v":0},{"$f":"[1]RelatedPartyTransfers!Q92","v":0},{"$f":"[1]RelatedPartyTransfers!R92","v":0},{"$f":"[1]RelatedPartyTransfers!S92","v":0},{"$f":"[1]RelatedPartyTransfers!T92","v":0},{"$f":"[1]RelatedPartyTransfers!U92","v":0},{"$f":"[1]RelatedPartyTransfers!V92","v":0},{"$f":"[1]RelatedPartyTransfers!W92","v":0},{"$f":"[1]RelatedPartyTransfers!W92","v":0},0]
[0,0,{"$f":"IFERROR(INDEX((Settings!$M$17:$M$236),MATCH(RelatedPartyTransfers!G93,Settings!$AD$18:$AD$166,0)),0)","v":0},null,null,{"$f":"[1]RelatedPartyTransfers!F93","v":0},{"$f":"[1]RelatedPartyTransfers!G93","v":0},{"$f":"[1]RelatedPartyTransfers!H93","v":0},{"$f":"[1]RelatedPartyTransfers!I93","v":0},null,{"$f":"[1]RelatedPartyTransfers!M93","v":0},{"$f":"[1]RelatedPartyTransfers!N93","v":0},{"$f":"[1]RelatedPartyTransfers!O93","v":0},{"$f":"[1]RelatedPartyTransfers!P93","v":0},{"$f":"[1]RelatedPartyTransfers!Q93","v":0},{"$f":"[1]RelatedPartyTransfers!R93","v":0},{"$f":"[1]RelatedPartyTransfers!S93","v":0},{"$f":"[1]RelatedPartyTransfers!T93","v":0},{"$f":"[1]RelatedPartyTransfers!U93","v":0},{"$f":"[1]RelatedPartyTransfers!V93","v":0},{"$f":"[1]RelatedPartyTransfers!W93","v":0},{"$f":"[1]RelatedPartyTransfers!W93","v":0},0]
[0,0,{"$f":"IFERROR(INDEX((Settings!$M$17:$M$236),MATCH(RelatedPartyTransfers!G94,Settings!$AD$18:$AD$166,0)),0)","v":0},null,null,{"$f":"[1]RelatedPartyTransfers!F94","v":0},{"$f":"[1]RelatedPartyTransfers!G94","v":0},{"$f":"[1]RelatedPartyTransfers!H94","v":0},{"$f":"[1]RelatedPartyTransfers!I94","v":0},null,{"$f":"[1]RelatedPartyTransfers!M94","v":0},{"$f":"[1]RelatedPartyTransfers!N94","v":0},{"$f":"[1]RelatedPartyTransfers!O94","v":0},{"$f":"[1]RelatedPartyTransfers!P94","v":0},{"$f":"[1]RelatedPartyTransfers!Q94","v":0},{"$f":"[1]RelatedPartyTransfers!R94","v":0},{"$f":"[1]RelatedPartyTransfers!S94","v":0},{"$f":"[1]RelatedPartyTransfers!T94","v":0},{"$f":"[1]RelatedPartyTransfers!U94","v":0},{"$f":"[1]RelatedPartyTransfers!V94","v":0},{"$f":"[1]RelatedPartyTransfers!W94","v":0},{"$f":"[1]RelatedPartyTransfers!W94","v":0},0]
[0,0,{"$f":"IFERROR(INDEX((Settings!$M$17:$M$236),MATCH(RelatedPartyTransfers!G95,Settings!$AD$18:$AD$166,0)),0)","v":0},null,null,{"$f":"[1]RelatedPartyTransfers!F95","v":0},{"$f":"[1]RelatedPartyTransfers!G95","v":0},{"$f":"[1]RelatedPartyTransfers!H95","v":0},{"$f":"[1]RelatedPartyTransfers!I95","v":0},null,{"$f":"[1]RelatedPartyTransfers!M95","v":0},{"$f":"[1]RelatedPartyTransfers!N95","v":0},{"$f":"[1]RelatedPartyTransfers!O95","v":0},{"$f":"[1]RelatedPartyTransfers!P95","v":0},{"$f":"[1]RelatedPartyTransfers!Q95","v":0},{"$f":"[1]RelatedPartyTransfers!R95","v":0},{"$f":"[1]RelatedPartyTransfers!S95","v":0},{"$f":"[1]RelatedPartyTransfers!T95","v":0},{"$f":"[1]RelatedPartyTransfers!U95","v":0},{"$f":"[1]RelatedPartyTransfers!V95","v":0},{"$f":"[1]RelatedPartyTransfers!W95","v":0},{"$f":"[1]RelatedPartyTransfers!W95","v":0},0]
[0,0,{"$f":"IFERROR(INDEX((Settings!$M$17:$M$236),MATCH(RelatedPartyTransfers!G96,Settings!$AD$18:$AD$166,0)),0)","v":0},null,null,{"$f":"[1]RelatedPartyTransfers!F96","v":0},{"$f":"[1]RelatedPartyTransfers!G96","v":0},{"$f":"[1]RelatedPartyTransfers!H96","v":0},{"$f":"[1]RelatedPartyTransfers!I96","v":0},null,{"$f":"[1]RelatedPartyTransfers!M96","v":0},{"$f":"[1]RelatedPartyTransfers!N96","v":0},{"$f":"[1]RelatedPartyTransfers!O96","v":0},{"$f":"[1]RelatedPartyTransfers!P96","v":0},{"$f":"[1]RelatedPartyTransfers!Q96","v":0},{"$f":"[1]RelatedPartyTransfers!R96","v":0},{"$f":"[1]RelatedPartyTransfers!S96","v":0},{"$f":"[1]RelatedPartyTransfers!T96","v":0},{"$f":"[1]RelatedPartyTransfers!U96","v":0},{"$f":"[1]RelatedPartyTransfers!V96","v":0},{"$f":"[1]RelatedPartyTransfers!W96","v":0},{"$f":"[1]RelatedPartyTransfers!W96","v":0},0]
[0,0,{"$f":"IFERROR(INDEX((Settings!$M$17:$M$236),MATCH(RelatedPartyTransfers!G97,Settings!$AD$18:$AD$166,0)),0)","v":0},null,null,{"$f":"[1]RelatedPartyTransfers!F97","v":0},{"$f":"[1]RelatedPartyTransfers!G97","v":0},{"$f":"[1]RelatedPartyTransfers!H97","v":0},{"$f":"[1]RelatedPartyTransfers!I97","v":0},null,{"$f":"[1]RelatedPartyTransfers!M97","v":0},{"$f":"[1]RelatedPartyTransfers!N97","v":0},{"$f":"[1]RelatedPartyTransfers!O97","v":0},{"$f":"[1]RelatedPartyTransfers!P97","v":0},{"$f":"[1]RelatedPartyTransfers!Q97","v":0},{"$f":"[1]RelatedPartyTransfers!R97","v":0},{"$f":"[1]RelatedPartyTransfers!S97","v":0},{"$f":"[1]RelatedPartyTransfers!T97","v":0},{"$f":"[1]RelatedPartyTransfers!U97","v":0},{"$f":"[1]RelatedPartyTransfers!V97","v":0},{"$f":"[1]RelatedPartyTransfers!W97","v":0},{"$f":"[1]RelatedPartyTransfers!W97","v":0},0]
[0,0,{"$f":"IFERROR(INDEX((Settings!$M$17:$M$236),MATCH(RelatedPartyTransfers!G98,Settings!$AD$18:$AD$166,0)),0)","v":0},null,null,{"$f":"[1]RelatedPartyTransfers!F98","v":0},{"$f":"[1]RelatedPartyTransfers!G98","v":0},{"$f":"[1]RelatedPartyTransfers!H98","v":0},{"$f":"[1]RelatedPartyTransfers!I98","v":0},null,{"$f":"[1]RelatedPartyTransfers!M98","v":0},{"$f":"[1]RelatedPartyTransfers!N98","v":0},{"$f":"[1]RelatedPartyTransfers!O98","v":0},{"$f":"[1]RelatedPartyTransfers!P98","v":0},{"$f":"[1]RelatedPartyTransfers!Q98","v":0},{"$f":"[1]RelatedPartyTransfers!R98","v":0},{"$f":"[1]RelatedPartyTransfers!S98","v":0},{"$f":"[1]RelatedPartyTransfers!T98","v":0},{"$f":"[1]RelatedPartyTransfers!U98","v":0},{"$f":"[1]RelatedPartyTransfers!V98","v":0},{"$f":"[1]RelatedPartyTransfers!W98","v":0},{"$f":"[1]RelatedPartyTransfers!W98","v":0},0]
[0,0,{"$f":"IFERROR(INDEX((Settings!$M$17:$M$236),MATCH(RelatedPartyTransfers!G99,Settings!$AD$18:$AD$166,0)),0)","v":0},null,null,{"$f":"[1]RelatedPartyTransfers!F99","v":0},{"$f":"[1]RelatedPartyTransfers!G99","v":0},{"$f":"[1]RelatedPartyTransfers!H99","v":0},{"$f":"[1]RelatedPartyTransfers!I99","v":0},null,{"$f":"[1]RelatedPartyTransfers!M99","v":0},{"$f":"[1]RelatedPartyTransfers!N99","v":0},{"$f":"[1]RelatedPartyTransfers!O99","v":0},{"$f":"[1]RelatedPartyTransfers!P99","v":0},{"$f":"[1]RelatedPartyTransfers!Q99","v":0},{"$f":"[1]RelatedPartyTransfers!R99","v":0},{"$f":"[1]RelatedPartyTransfers!S99","v":0},{"$f":"[1]RelatedPartyTransfers!T99","v":0},{"$f":"[1]RelatedPartyTransfers!U99","v":0},{"$f":"[1]RelatedPartyTransfers!V99","v":0},{"$f":"[1]RelatedPartyTransfers!W99","v":0},{"$f":"[1]RelatedPartyTransfers!W99","v":0},0]
[0,0,{"$f":"IFERROR(INDEX((Settings!$M$17:$M$236),MATCH(RelatedPartyTransfers!G100,Settings!$AD$18:$AD$166,0)),0)","v":0},null,null,{"$f":"[1]RelatedPartyTransfers!F100","v":0},{"$f":"[1]RelatedPartyTransfers!G100","v":0},{"$f":"[1]RelatedPartyTransfers!H100","v":0},{"$f":"[1]RelatedPartyTransfers!I100","v":0},null,{"$f":"[1]RelatedPartyTransfers!M100","v":0},{"$f":"[1]RelatedPartyTransfers!N100","v":0},{"$f":"[1]RelatedPartyTransfers!O100","v":0},{"$f":"[1]RelatedPartyTransfers!P100","v":0},{"$f":"[1]RelatedPartyTransfers!Q100","v":0},{"$f":"[1]RelatedPartyTransfers!R100","v":0},{"$f":"[1]RelatedPartyTransfers!S100","v":0},{"$f":"[1]RelatedPartyTransfers!T100","v":0},{"$f":"[1]RelatedPartyTransfers!U100","v":0},{"$f":"[1]RelatedPartyTransfers!V100","v":0},{"$f":"[1]RelatedPartyTransfers!W100","v":0},{"$f":"[1]RelatedPartyTransfers!W100","v":0},0]
[0,0,{"$f":"IFERROR(INDEX((Settings!$M$17:$M$236),MATCH(RelatedPartyTransfers!G101,Settings!$AD$18:$AD$166,0)),0)","v":0},null,null,{"$f":"[1]RelatedPartyTransfers!F101","v":0},{"$f":"[1]RelatedPartyTransfers!G101","v":0},{"$f":"[1]RelatedPartyTransfers!H101","v":0},{"$f":"[1]RelatedPartyTransfers!I101","v":0},null,{"$f":"[1]RelatedPartyTransfers!M101","v":0},{"$f":"[1]RelatedPartyTransfers!N101","v":0},{"$f":"[1]RelatedPartyTransfers!O101","v":0},{"$f":"[1]RelatedPartyTransfers!P101","v":0},{"$f":"[1]RelatedPartyTransfers!Q101","v":0},{"$f":"[1]RelatedPartyTransfers!R101","v":0},{"$f":"[1]RelatedPartyTransfers!S101","v":0},{"$f":"[1]RelatedPartyTransfers!T101","v":0},{"$f":"[1]RelatedPartyTransfers!U101","v":0},{"$f":"[1]RelatedPartyTransfers!V101","v":0},{"$f":"[1]RelatedPartyTransfers!W101","v":0},{"$f":"[1]RelatedPartyTransfers!W101","v":0},0]
[0,0,{"$f":"IFERROR(INDEX((Settings!$M$17:$M$236),MATCH(RelatedPartyTransfers!G102,Settings!$AD$18:$AD$166,0)),0)","v":0},null,null,{"$f":"[1]RelatedPartyTransfers!F102","v":0},{"$f":"[1]RelatedPartyTransfers!G102","v":0},{"$f":"[1]RelatedPartyTransfers!H102","v":0},{"$f":"[1]RelatedPartyTransfers!I102","v":0},null,{"$f":"[1]RelatedPartyTransfers!M102","v":0},{"$f":"[1]RelatedPartyTransfers!N102","v":0},{"$f":"[1]RelatedPartyTransfers!O102","v":0},{"$f":"[1]RelatedPartyTransfers!P102","v":0},{"$f":"[1]RelatedPartyTransfers!Q102","v":0},{"$f":"[1]RelatedPartyTransfers!R102","v":0},{"$f":"[1]RelatedPartyTransfers!S102","v":0},{"$f":"[1]RelatedPartyTransfers!T102","v":0},{"$f":"[1]RelatedPartyTransfers!U102","v":0},{"$f":"[1]RelatedPartyTransfers!V102","v":0},{"$f":"[1]RelatedPartyTransfers!W102","v":0},{"$f":"[1]RelatedPartyTransfers!W102","v":0},0]
[0,0,{"$f":"IFERROR(INDEX((Settings!$M$17:$M$236),MATCH(RelatedPartyTransfers!G103,Settings!$AD$18:$AD$166,0)),0)","v":0},null,null,{"$f":"[1]RelatedPartyTransfers!F103","v":0},{"$f":"[1]RelatedPartyTransfers!G103","v":0},{"$f":"[1]RelatedPartyTransfers!H103","v":0},{"$f":"[1]RelatedPartyTransfers!I103","v":0},null,{"$f":"[1]RelatedPartyTransfers!M103","v":0},{"$f":"[1]RelatedPartyTransfers!N103","v":0},{"$f":"[1]RelatedPartyTransfers!O103","v":0},{"$f":"[1]RelatedPartyTransfers!P103","v":0},{"$f":"[1]RelatedPartyTransfers!Q103","v":0},{"$f":"[1]RelatedPartyTransfers!R103","v":0},{"$f":"[1]RelatedPartyTransfers!S103","v":0},{"$f":"[1]RelatedPartyTransfers!T103","v":0},{"$f":"[1]RelatedPartyTransfers!U103","v":0},{"$f":"[1]RelatedPartyTransfers!V103","v":0},{"$f":"[1]RelatedPartyTransfers!W103","v":0},{"$f":"[1]RelatedPartyTransfers!W103","v":0},0]
[0,0,{"$f":"IFERROR(INDEX((Settings!$M$17:$M$236),MATCH(RelatedPartyTransfers!G104,Settings!$AD$18:$AD$166,0)),0)","v":0},null,null,{"$f":"[1]RelatedPartyTransfers!F104","v":0},{"$f":"[1]RelatedPartyTransfers!G104","v":0},{"$f":"[1]RelatedPartyTransfers!H104","v":0},{"$f":"[1]RelatedPartyTransfers!I104","v":0},null,{"$f":"[1]RelatedPartyTransfers!M104","v":0},{"$f":"[1]RelatedPartyTransfers!N104","v":0},{"$f":"[1]RelatedPartyTransfers!O104","v":0},{"$f":"[1]RelatedPartyTransfers!P104","v":0},{"$f":"[1]RelatedPartyTransfers!Q104","v":0},{"$f":"[1]RelatedPartyTransfers!R104","v":0},{"$f":"[1]RelatedPartyTransfers!S104","v":0},{"$f":"[1]RelatedPartyTransfers!T104","v":0},{"$f":"[1]RelatedPartyTransfers!U104","v":0},{"$f":"[1]RelatedPartyTransfers!V104","v":0},{"$f":"[1]RelatedPartyTransfers!W104","v":0},{"$f":"[1]RelatedPartyTransfers!W104","v":0},0]
[0,0,{"$f":"IFERROR(INDEX((Settings!$M$17:$M$236),MATCH(RelatedPartyTransfers!G105,Settings!$AD$18:$AD$166,0)),0)","v":0},null,null,{"$f":"[1]RelatedPartyTransfers!F105","v":0},{"$f":"[1]RelatedPartyTransfers!G105","v":0},{"$f":"[1]RelatedPartyTransfers!H105","v":0},{"$f":"[1]RelatedPartyTransfers!I105","v":0},null,{"$f":"[1]RelatedPartyTransfers!M105","v":0},{"$f":"[1]RelatedPartyTransfers!N105","v":0},{"$f":"[1]RelatedPartyTransfers!O105","v":0},{"$f":"[1]RelatedPartyTransfers!P105","v":0},{"$f":"[1]RelatedPartyTransfers!Q105","v":0},{"$f":"[1]RelatedPartyTransfers!R105","v":0},{"$f":"[1]RelatedPartyTransfers!S105","v":0},{"$f":"[1]RelatedPartyTransfers!T105","v":0},{"$f":"[1]RelatedPartyTransfers!U105","v":0},{"$f":"[1]RelatedPartyTransfers!V105","v":0},{"$f":"[1]RelatedPartyTransfers!W105","v":0},{"$f":"[1]RelatedPartyTransfers!W105","v":0},0]
[0,0,{"$f":"IFERROR(INDEX((Settings!$M$17:$M$236),MATCH(RelatedPartyTransfers!G106,Settings!$AD$18:$AD$166,0)),0)","v":0},null,null,{"$f":"[1]RelatedPartyTransfers!F106","v":0},{"$f":"[1]RelatedPartyTransfers!G106","v":0},{"$f":"[1]RelatedPartyTransfers!H106","v":0},{"$f":"[1]RelatedPartyTransfers!I106","v":0},null,{"$f":"[1]RelatedPartyTransfers!M106","v":0},{"$f":"[1]RelatedPartyTransfers!N106","v":0},{"$f":"[1]RelatedPartyTransfers!O106","v":0},{"$f":"[1]RelatedPartyTransfers!P106","v":0},{"$f":"[1]RelatedPartyTransfers!Q106","v":0},{"$f":"[1]RelatedPartyTransfers!R106","v":0},{"$f":"[1]RelatedPartyTransfers!S106","v":0},{"$f":"[1]RelatedPartyTransfers!T106","v":0},{"$f":"[1]RelatedPartyTransfers!U106","v":0},{"$f":"[1]RelatedPartyTransfers!V106","v":0},{"$f":"[1]RelatedPartyTransfers!W106","v":0},{"$f":"[1]RelatedPartyTransfers!W106","v":0},0]
[0,0,{"$f":"IFERROR(INDEX((Settings!$M$17:$M$236),MATCH(RelatedPartyTransfers!G107,Settings!$AD$18:$AD$166,0)),0)","v":0},null,null,{"$f":"[1]RelatedPartyTransfers!F107","v":0},{"$f":"[1]RelatedPartyTransfers!G107","v":0},{"$f":"[1]RelatedPartyTransfers!H107","v":0},{"$f":"[1]RelatedPartyTransfers!I107","v":0},null,{"$f":"[1]RelatedPartyTransfers!M107","v":0},{"$f":"[1]RelatedPartyTransfers!N107","v":0},{"$f":"[1]RelatedPartyTransfers!O107","v":0},{"$f":"[1]RelatedPartyTransfers!P107","v":0},{"$f":"[1]RelatedPartyTransfers!Q107","v":0},{"$f":"[1]RelatedPartyTransfers!R107","v":0},{"$f":"[1]RelatedPartyTransfers!S107","v":0},{"$f":"[1]RelatedPartyTransfers!T107","v":0},{"$f":"[1]RelatedPartyTransfers!U107","v":0},{"$f":"[1]RelatedPartyTransfers!V107","v":0},{"$f":"[1]RelatedPartyTransfers!W107","v":0},{"$f":"[1]RelatedPartyTransfers!W107","v":0},0]
[0,0,{"$f":"IFERROR(INDEX((Settings!$M$17:$M$236),MATCH(RelatedPartyTransfers!G108,Settings!$AD$18:$AD$166,0)),0)","v":0},null,null,{"$f":"[1]RelatedPartyTransfers!F108","v":0},{"$f":"[1]RelatedPartyTransfers!G108","v":0},{"$f":"[1]RelatedPartyTransfers!H108","v":0},{"$f":"[1]RelatedPartyTransfers!I108","v":0},null,{"$f":"[1]RelatedPartyTransfers!M108","v":0},{"$f":"[1]RelatedPartyTransfers!N108","v":0},{"$f":"[1]RelatedPartyTransfers!O108","v":0},{"$f":"[1]RelatedPartyTransfers!P108","v":0},{"$f":"[1]RelatedPartyTransfers!Q108","v":0},{"$f":"[1]RelatedPartyTransfers!R108","v":0},{"$f":"[1]RelatedPartyTransfers!S108","v":0},{"$f":"[1]RelatedPartyTransfers!T108","v":0},{"$f":"[1]RelatedPartyTransfers!U108","v":0},{"$f":"[1]RelatedPartyTransfers!V108","v":0},{"$f":"[1]RelatedPartyTransfers!W108","v":0},{"$f":"[1]RelatedPartyTransfers!W108","v":0},0]
[0,0,{"$f":"IFERROR(INDEX((Settings!$M$17:$M$236),MATCH(RelatedPartyTransfers!G109,Settings!$AD$18:$AD$166,0)),0)","v":0},null,null,{"$f":"[1]RelatedPartyTransfers!F109","v":0},{"$f":"[1]RelatedPartyTransfers!G109","v":0},{"$f":"[1]RelatedPartyTransfers!H109","v":0},{"$f":"[1]RelatedPartyTransfers!I109","v":0},null,{"$f":"[1]RelatedPartyTransfers!M109","v":0},{"$f":"[1]RelatedPartyTransfers!N109","v":0},{"$f":"[1]RelatedPartyTransfers!O109","v":0},{"$f":"[1]RelatedPartyTransfers!P109","v":0},{"$f":"[1]RelatedPartyTransfers!Q109","v":0},{"$f":"[1]RelatedPartyTransfers!R109","v":0},{"$f":"[1]RelatedPartyTransfers!S109","v":0},{"$f":"[1]RelatedPartyTransfers!T109","v":0},{"$f":"[1]RelatedPartyTransfers!U109","v":0},{"$f":"[1]RelatedPartyTransfers!V109","v":0},{"$f":"[1]RelatedPartyTransfers!W109","v":0},{"$f":"[1]RelatedPartyTransfers!W109","v":0},0]
[0,0,{"$f":"IFERROR(INDEX((Settings!$M$17:$M$236),MATCH(RelatedPartyTransfers!G110,Settings!$AD$18:$AD$166,0)),0)","v":0},null,null,{"$f":"[1]RelatedPartyTransfers!F110","v":0},{"$f":"[1]RelatedPartyTransfers!G110","v":0},{"$f":"[1]RelatedPartyTransfers!H110","v":0},{"$f":"[1]RelatedPartyTransfers!I110","v":0},null,{"$f":"[1]RelatedPartyTransfers!M110","v":0},{"$f":"[1]RelatedPartyTransfers!N110","v":0},{"$f":"[1]RelatedPartyTransfers!O110","v":0},{"$f":"[1]RelatedPartyTransfers!P110","v":0},{"$f":"[1]RelatedPartyTransfers!Q110","v":0},{"$f":"[1]RelatedPartyTransfers!R110","v":0},{"$f":"[1]RelatedPartyTransfers!S110","v":0},{"$f":"[1]RelatedPartyTransfers!T110","v":0},{"$f":"[1]RelatedPartyTransfers!U110","v":0},{"$f":"[1]RelatedPartyTransfers!V110","v":0},{"$f":"[1]RelatedPartyTransfers!W110","v":0},{"$f":"[1]RelatedPartyTransfers!W110","v":0},0]
[0,0,{"$f":"IFERROR(INDEX((Settings!$M$17:$M$236),MATCH(RelatedPartyTransfers!G111,Settings!$AD$18:$AD$166,0)),0)","v":0},null,null,{"$f":"[1]RelatedPartyTransfers!F111","v":0},{"$f":"[1]RelatedPartyTransfers!G111","v":0},{"$f":"[1]RelatedPartyTransfers!H111","v":0},{"$f":"[1]RelatedPartyTransfers!I111","v":0},null,{"$f":"[1]RelatedPartyTransfers!M111","v":0},{"$f":"[1]RelatedPartyTransfers!N111","v":0},{"$f":"[1]RelatedPartyTransfers!O111","v":0},{"$f":"[1]RelatedPartyTransfers!P111","v":0},{"$f":"[1]RelatedPartyTransfers!Q111","v":0},{"$f":"[1]RelatedPartyTransfers!R111","v":0},{"$f":"[1]RelatedPartyTransfers!S111","v":0},{"$f":"[1]RelatedPartyTransfers!T111","v":0},{"$f":"[1]RelatedPartyTransfers!U111","v":0},{"$f":"[1]RelatedPartyTransfers!V111","v":0},{"$f":"[1]RelatedPartyTransfers!W111","v":0},{"$f":"[1]RelatedPartyTransfers!W111","v":0},0]
[0,0,{"$f":"IFERROR(INDEX((Settings!$M$17:$M$236),MATCH(RelatedPartyTransfers!G112,Settings!$AD$18:$AD$166,0)),0)","v":0},null,null,{"$f":"[1]RelatedPartyTransfers!F112","v":0},{"$f":"[1]RelatedPartyTransfers!G112","v":0},{"$f":"[1]RelatedPartyTransfers!H112","v":0},{"$f":"[1]RelatedPartyTransfers!I112","v":0},null,{"$f":"[1]RelatedPartyTransfers!M112","v":0},{"$f":"[1]RelatedPartyTransfers!N112","v":0},{"$f":"[1]RelatedPartyTransfers!O112","v":0},{"$f":"[1]RelatedPartyTransfers!P112","v":0},{"$f":"[1]RelatedPartyTransfers!Q112","v":0},{"$f":"[1]RelatedPartyTransfers!R112","v":0},{"$f":"[1]RelatedPartyTransfers!S112","v":0},{"$f":"[1]RelatedPartyTransfers!T112","v":0},{"$f":"[1]RelatedPartyTransfers!U112","v":0},{"$f":"[1]RelatedPartyTransfers!V112","v":0},{"$f":"[1]RelatedPartyTransfers!W112","v":0},{"$f":"[1]RelatedPartyTransfers!W112","v":0},0]
[0,0,{"$f":"IFERROR(INDEX((Settings!$M$17:$M$236),MATCH(RelatedPartyTransfers!G113,Settings!$AD$18:$AD$166,0)),0)","v":0},null,null,{"$f":"[1]RelatedPartyTransfers!F113","v":0},{"$f":"[1]RelatedPartyTransfers!G113","v":0},{"$f":"[1]RelatedPartyTransfers!H113","v":0},{"$f":"[1]RelatedPartyTransfers!I113","v":0},null,{"$f":"[1]RelatedPartyTransfers!M113","v":0},{"$f":"[1]RelatedPartyTransfers!N113","v":0},{"$f":"[1]RelatedPartyTransfers!O113","v":0},{"$f":"[1]RelatedPartyTransfers!P113","v":0},{"$f":"[1]RelatedPartyTransfers!Q113","v":0},{"$f":"[1]RelatedPartyTransfers!R113","v":0},{"$f":"[1]RelatedPartyTransfers!S113","v":0},{"$f":"[1]RelatedPartyTransfers!T113","v":0},{"$f":"[1]RelatedPartyTransfers!U113","v":0},{"$f":"[1]RelatedPartyTransfers!V113","v":0},{"$f":"[1]RelatedPartyTransfers!W113","v":0},{"$f":"[1]RelatedPartyTransfers!W113","v":0},0]
[0,0,{"$f":"IFERROR(INDEX((Settings!$M$17:$M$236),MATCH(RelatedPartyTransfers!G114,Settings!$AD$18:$AD$166,0)),0)","v":0},null,null,{"$f":"[1]RelatedPartyTransfers!F114","v":0},{"$f":"[1]RelatedPartyTransfers!G114","v":0},{"$f":"[1]RelatedPartyTransfers!H114","v":0},{"$f":"[1]RelatedPartyTransfers!I114","v":0},null,{"$f":"[1]RelatedPartyTransfers!M114","v":0},{"$f":"[1]RelatedPartyTransfers!N114","v":0},{"$f":"[1]RelatedPartyTransfers!O114","v":0},{"$f":"[1]RelatedPartyTransfers!P114","v":0},{"$f":"[1]RelatedPartyTransfers!Q114","v":0},{"$f":"[1]RelatedPartyTransfers!R114","v":0},{"$f":"[1]RelatedPartyTransfers!S114","v":0},{"$f":"[1]RelatedPartyTransfers!T114","v":0},{"$f":"[1]RelatedPartyTransfers!U114","v":0},{"$f":"[1]RelatedPartyTransfers!V114","v":0},{"$f":"[1]RelatedPartyTransfers!W114","v":0},{"$f":"[1]RelatedPartyTransfers!W114","v":0},0]
[0,0,{"$f":"IFERROR(INDEX((Settings!$M$17:$M$236),MATCH(RelatedPartyTransfers!G115,Settings!$AD$18:$AD$166,0)),0)","v":0},null,null,{"$f":"[1]RelatedPartyTransfers!F115","v":0},{"$f":"[1]RelatedPartyTransfers!G115","v":0},{"$f":"[1]RelatedPartyTransfers!H115","v":0},{"$f":"[1]RelatedPartyTransfers!I115","v":0},null,{"$f":"[1]RelatedPartyTransfers!M115","v":0},{"$f":"[1]RelatedPartyTransfers!N115","v":0},{"$f":"[1]RelatedPartyTransfers!O115","v":0},{"$f":"[1]RelatedPartyTransfers!P115","v":0},{"$f":"[1]RelatedPartyTransfers!Q115","v":0},{"$f":"[1]RelatedPartyTransfers!R115","v":0},{"$f":"[1]RelatedPartyTransfers!S115","v":0},{"$f":"[1]RelatedPartyTransfers!T115","v":0},{"$f":"[1]RelatedPartyTransfers!U115","v":0},{"$f":"[1]RelatedPartyTransfers!V115","v":0},{"$f":"[1]RelatedPartyTransfers!W115","v":0},{"$f":"[1]RelatedPartyTransfers!W115","v":0},0]
[0,0,{"$f":"IFERROR(INDEX((Settings!$M$17:$M$236),MATCH(RelatedPartyTransfers!G116,Settings!$AD$18:$AD$166,0)),0)","v":0},null,null,{"$f":"[1]RelatedPartyTransfers!F116","v":0},{"$f":"[1]RelatedPartyTransfers!G116","v":0},{"$f":"[1]RelatedPartyTransfers!H116","v":0},{"$f":"[1]RelatedPartyTransfers!I116","v":0},null,{"$f":"[1]RelatedPartyTransfers!M116","v":0},{"$f":"[1]RelatedPartyTransfers!N116","v":0},{"$f":"[1]RelatedPartyTransfers!O116","v":0},{"$f":"[1]RelatedPartyTransfers!P116","v":0},{"$f":"[1]RelatedPartyTransfers!Q116","v":0},{"$f":"[1]RelatedPartyTransfers!R116","v":0},{"$f":"[1]RelatedPartyTransfers!S116","v":0},{"$f":"[1]RelatedPartyTransfers!T116","v":0},{"$f":"[1]RelatedPartyTransfers!U116","v":0},{"$f":"[1]RelatedPartyTransfers!V116","v":0},{"$f":"[1]RelatedPartyTransfers!W116","v":0},{"$f":"[1]RelatedPartyTransfers!W116","v":0},0]
[0,0,{"$f":"IFERROR(INDEX((Settings!$M$17:$M$236),MATCH(RelatedPartyTransfers!G117,Settings!$AD$18:$AD$166,0)),0)","v":0},null,null,{"$f":"[1]RelatedPartyTransfers!F117","v":0},{"$f":"[1]RelatedPartyTransfers!G117","v":0},{"$f":"[1]RelatedPartyTransfers!H117","v":0},{"$f":"[1]RelatedPartyTransfers!I117","v":0},null,{"$f":"[1]RelatedPartyTransfers!M117","v":0},{"$f":"[1]RelatedPartyTransfers!N117","v":0},{"$f":"[1]RelatedPartyTransfers!O117","v":0},{"$f":"[1]RelatedPartyTransfers!P117","v":0},{"$f":"[1]RelatedPartyTransfers!Q117","v":0},{"$f":"[1]RelatedPartyTransfers!R117","v":0},{"$f":"[1]RelatedPartyTransfers!S117","v":0},{"$f":"[1]RelatedPartyTransfers!T117","v":0},{"$f":"[1]RelatedPartyTransfers!U117","v":0},{"$f":"[1]RelatedPartyTransfers!V117","v":0},{"$f":"[1]RelatedPartyTransfers!W117","v":0},{"$f":"[1]RelatedPartyTransfers!W117","v":0},0]
[0,0,{"$f":"IFERROR(INDEX((Settings!$M$17:$M$236),MATCH(RelatedPartyTransfers!G118,Settings!$AD$18:$AD$166,0)),0)","v":0},null,null,{"$f":"[1]RelatedPartyTransfers!F118","v":0},{"$f":"[1]RelatedPartyTransfers!G118","v":0},{"$f":"[1]RelatedPartyTransfers!H118","v":0},{"$f":"[1]RelatedPartyTransfers!I118","v":0},null,{"$f":"[1]RelatedPartyTransfers!M118","v":0},{"$f":"[1]RelatedPartyTransfers!N118","v":0},{"$f":"[1]RelatedPartyTransfers!O118","v":0},{"$f":"[1]RelatedPartyTransfers!P118","v":0},{"$f":"[1]RelatedPartyTransfers!Q118","v":0},{"$f":"[1]RelatedPartyTransfers!R118","v":0},{"$f":"[1]RelatedPartyTransfers!S118","v":0},{"$f":"[1]RelatedPartyTransfers!T118","v":0},{"$f":"[1]RelatedPartyTransfers!U118","v":0},{"$f":"[1]RelatedPartyTransfers!V118","v":0},{"$f":"[1]RelatedPartyTransfers!W118","v":0},{"$f":"[1]RelatedPartyTransfers!W118","v":0},0]
[0,0,{"$f":"IFERROR(INDEX((Settings!$M$17:$M$236),MATCH(RelatedPartyTransfers!G119,Settings!$AD$18:$AD$166,0)),0)","v":0},null,null,{"$f":"[1]RelatedPartyTransfers!F119","v":0},{"$f":"[1]RelatedPartyTransfers!G119","v":0},{"$f":"[1]RelatedPartyTransfers!H119","v":0},{"$f":"[1]RelatedPartyTransfers!I119","v":0},null,{"$f":"[1]RelatedPartyTransfers!M119","v":0},{"$f":"[1]RelatedPartyTransfers!N119","v":0},{"$f":"[1]RelatedPartyTransfers!O119","v":0},{"$f":"[1]RelatedPartyTransfers!P119","v":0},{"$f":"[1]RelatedPartyTransfers!Q119","v":0},{"$f":"[1]RelatedPartyTransfers!R119","v":0},{"$f":"[1]RelatedPartyTransfers!S119","v":0},{"$f":"[1]RelatedPartyTransfers!T119","v":0},{"$f":"[1]RelatedPartyTransfers!U119","v":0},{"$f":"[1]RelatedPartyTransfers!V119","v":0},{"$f":"[1]RelatedPartyTransfers!W119","v":0},{"$f":"[1]RelatedPartyTransfers!W119","v":0},0]
[0,0,{"$f":"IFERROR(INDEX((Settings!$M$17:$M$236),MATCH(RelatedPartyTransfers!G120,Settings!$AD$18:$AD$166,0)),0)","v":0},null,null,{"$f":"[1]RelatedPartyTransfers!F120","v":0},{"$f":"[1]RelatedPartyTransfers!G120","v":0},{"$f":"[1]RelatedPartyTransfers!H120","v":0},{"$f":"[1]RelatedPartyTransfers!I120","v":0},null,{"$f":"[1]RelatedPartyTransfers!M120","v":0},{"$f":"[1]RelatedPartyTransfers!N120","v":0},{"$f":"[1]RelatedPartyTransfers!O120","v":0},{"$f":"[1]RelatedPartyTransfers!P120","v":0},{"$f":"[1]RelatedPartyTransfers!Q120","v":0},{"$f":"[1]RelatedPartyTransfers!R120","v":0},{"$f":"[1]RelatedPartyTransfers!S120","v":0},{"$f":"[1]RelatedPartyTransfers!T120","v":0},{"$f":"[1]RelatedPartyTransfers!U120","v":0},{"$f":"[1]RelatedPartyTransfers!V120","v":0},{"$f":"[1]RelatedPartyTransfers!W120","v":0},{"$f":"[1]RelatedPartyTransfers!W120","v":0},0]
[0,0,{"$f":"IFERROR(INDEX((Settings!$M$17:$M$236),MATCH(RelatedPartyTransfers!G121,Settings!$AD$18:$AD$166,0)),0)","v":0},null,null,{"$f":"[1]RelatedPartyTransfers!F121","v":0},{"$f":"[1]RelatedPartyTransfers!G121","v":0},{"$f":"[1]RelatedPartyTransfers!H121","v":0},{"$f":"[1]RelatedPartyTransfers!I121","v":0},null,{"$f":"[1]RelatedPartyTransfers!M121","v":0},{"$f":"[1]RelatedPartyTransfers!N121","v":0},{"$f":"[1]RelatedPartyTransfers!O121","v":0},{"$f":"[1]RelatedPartyTransfers!P121","v":0},{"$f":"[1]RelatedPartyTransfers!Q121","v":0},{"$f":"[1]RelatedPartyTransfers!R121","v":0},{"$f":"[1]RelatedPartyTransfers!S121","v":0},{"$f":"[1]RelatedPartyTransfers!T121","v":0},{"$f":"[1]RelatedPartyTransfers!U121","v":0},{"$f":"[1]RelatedPartyTransfers!V121","v":0},{"$f":"[1]RelatedPartyTransfers!W121","v":0},{"$f":"[1]RelatedPartyTransfers!W121","v":0},0]
[0,0,{"$f":"IFERROR(INDEX((Settings!$M$17:$M$236),MATCH(RelatedPartyTransfers!G122,Settings!$AD$18:$AD$166,0)),0)","v":0},null,null,{"$f":"[1]RelatedPartyTransfers!F122","v":0},{"$f":"[1]RelatedPartyTransfers!G122","v":0},{"$f":"[1]RelatedPartyTransfers!H122","v":0},{"$f":"[1]RelatedPartyTransfers!I122","v":0},null,{"$f":"[1]RelatedPartyTransfers!M122","v":0},{"$f":"[1]RelatedPartyTransfers!N122","v":0},{"$f":"[1]RelatedPartyTransfers!O122","v":0},{"$f":"[1]RelatedPartyTransfers!P122","v":0},{"$f":"[1]RelatedPartyTransfers!Q122","v":0},{"$f":"[1]RelatedPartyTransfers!R122","v":0},{"$f":"[1]RelatedPartyTransfers!S122","v":0},{"$f":"[1]RelatedPartyTransfers!T122","v":0},{"$f":"[1]RelatedPartyTransfers!U122","v":0},{"$f":"[1]RelatedPartyTransfers!V122","v":0},{"$f":"[1]RelatedPartyTransfers!W122","v":0},{"$f":"[1]RelatedPartyTransfers!W122","v":0},0]
[0,0,{"$f":"IFERROR(INDEX((Settings!$M$17:$M$236),MATCH(RelatedPartyTransfers!G123,Settings!$AD$18:$AD$166,0)),0)","v":0},null,null,{"$f":"[1]RelatedPartyTransfers!F123","v":0},{"$f":"[1]RelatedPartyTransfers!G123","v":0},{"$f":"[1]RelatedPartyTransfers!H123","v":0},{"$f":"[1]RelatedPartyTransfers!I123","v":0},null,{"$f":"[1]RelatedPartyTransfers!M123","v":0},{"$f":"[1]RelatedPartyTransfers!N123","v":0},{"$f":"[1]RelatedPartyTransfers!O123","v":0},{"$f":"[1]RelatedPartyTransfers!P123","v":0},{"$f":"[1]RelatedPartyTransfers!Q123","v":0},{"$f":"[1]RelatedPartyTransfers!R123","v":0},{"$f":"[1]RelatedPartyTransfers!S123","v":0},{"$f":"[1]RelatedPartyTransfers!T123","v":0},{"$f":"[1]RelatedPartyTransfers!U123","v":0},{"$f":"[1]RelatedPartyTransfers!V123","v":0},{"$f":"[1]RelatedPartyTransfers!W123","v":0},{"$f":"[1]RelatedPartyTransfers!W123","v":0},0]
[0,0,{"$f":"IFERROR(INDEX((Settings!$M$17:$M$236),MATCH(RelatedPartyTransfers!G124,Settings!$AD$18:$AD$166,0)),0)","v":0},null,null,{"$f":"[1]RelatedPartyTransfers!F124","v":0},{"$f":"[1]RelatedPartyTransfers!G124","v":0},{"$f":"[1]RelatedPartyTransfers!H124","v":0},{"$f":"[1]RelatedPartyTransfers!I124","v":0},null,{"$f":"[1]RelatedPartyTransfers!M124","v":0},{"$f":"[1]RelatedPartyTransfers!N124","v":0},{"$f":"[1]RelatedPartyTransfers!O124","v":0},{"$f":"[1]RelatedPartyTransfers!P124","v":0},{"$f":"[1]RelatedPartyTransfers!Q124","v":0},{"$f":"[1]RelatedPartyTransfers!R124","v":0},{"$f":"[1]RelatedPartyTransfers!S124","v":0},{"$f":"[1]RelatedPartyTransfers!T124","v":0},{"$f":"[1]RelatedPartyTransfers!U124","v":0},{"$f":"[1]RelatedPartyTransfers!V124","v":0},{"$f":"[1]RelatedPartyTransfers!W124","v":0},{"$f":"[1]RelatedPartyTransfers!W124","v":0},0]
[0,0,{"$f":"IFERROR(INDEX((Settings!$M$17:$M$236),MATCH(RelatedPartyTransfers!G125,Settings!$AD$18:$AD$166,0)),0)","v":0},null,null,{"$f":"[1]RelatedPartyTransfers!F125","v":0},{"$f":"[1]RelatedPartyTransfers!G125","v":0},{"$f":"[1]RelatedPartyTransfers!H125","v":0},{"$f":"[1]RelatedPartyTransfers!I125","v":0},null,{"$f":"[1]RelatedPartyTransfers!M125","v":0},{"$f":"[1]RelatedPartyTransfers!N125","v":0},{"$f":"[1]RelatedPartyTransfers!O125","v":0},{"$f":"[1]RelatedPartyTransfers!P125","v":0},{"$f":"[1]RelatedPartyTransfers!Q125","v":0},{"$f":"[1]RelatedPartyTransfers!R125","v":0},{"$f":"[1]RelatedPartyTransfers!S125","v":0},{"$f":"[1]RelatedPartyTransfers!T125","v":0},{"$f":"[1]RelatedPartyTransfers!U125","v":0},{"$f":"[1]RelatedPartyTransfers!V125","v":0},{"$f":"[1]RelatedPartyTransfers!W125","v":0},{"$f":"[1]RelatedPartyTransfers!W125","v":0},0]
[0,0,{"$f":"IFERROR(INDEX((Settings!$M$17:$M$236),MATCH(RelatedPartyTransfers!G126,Settings!$AD$18:$AD$166,0)),0)","v":0},null,null,{"$f":"[1]RelatedPartyTransfers!F126","v":0},{"$f":"[1]RelatedPartyTransfers!G126","v":0},{"$f":"[1]RelatedPartyTransfers!H126","v":0},{"$f":"[1]RelatedPartyTransfers!I126","v":0},null,{"$f":"[1]RelatedPartyTransfers!M126","v":0},{"$f":"[1]RelatedPartyTransfers!N126","v":0},{"$f":"[1]RelatedPartyTransfers!O126","v":0},{"$f":"[1]RelatedPartyTransfers!P126","v":0},{"$f":"[1]RelatedPartyTransfers!Q126","v":0},{"$f":"[1]RelatedPartyTransfers!R126","v":0},{"$f":"[1]RelatedPartyTransfers!S126","v":0},{"$f":"[1]RelatedPartyTransfers!T126","v":0},{"$f":"[1]RelatedPartyTransfers!U126","v":0},{"$f":"[1]RelatedPartyTransfers!V126","v":0},{"$f":"[1]RelatedPartyTransfers!W126","v":0},{"$f":"[1]RelatedPartyTransfers!W126","v":0},0]
[0,0,{"$f":"IFERROR(INDEX((Settings!$M$17:$M$236),MATCH(RelatedPartyTransfers!G127,Settings!$AD$18:$AD$166,0)),0)","v":0},null,null,{"$f":"[1]RelatedPartyTransfers!F127","v":0},{"$f":"[1]RelatedPartyTransfers!G127","v":0},{"$f":"[1]RelatedPartyTransfers!H127","v":0},{"$f":"[1]RelatedPartyTransfers!I127","v":0},null,{"$f":"[1]RelatedPartyTransfers!M127","v":0},{"$f":"[1]RelatedPartyTransfers!N127","v":0},{"$f":"[1]RelatedPartyTransfers!O127","v":0},{"$f":"[1]RelatedPartyTransfers!P127","v":0},{"$f":"[1]RelatedPartyTransfers!Q127","v":0},{"$f":"[1]RelatedPartyTransfers!R127","v":0},{"$f":"[1]RelatedPartyTransfers!S127","v":0},{"$f":"[1]RelatedPartyTransfers!T127","v":0},{"$f":"[1]RelatedPartyTransfers!U127","v":0},{"$f":"[1]RelatedPartyTransfers!V127","v":0},{"$f":"[1]RelatedPartyTransfers!W127","v":0},{"$f":"[1]RelatedPartyTransfers!W127","v":0},0]
[0,0,{"$f":"IFERROR(INDEX((Settings!$M$17:$M$236),MATCH(RelatedPartyTransfers!G128,Settings!$AD$18:$AD$166,0)),0)","v":0},null,null,{"$f":"[1]RelatedPartyTransfers!F128","v":0},{"$f":"[1]RelatedPartyTransfers!G128","v":0},{"$f":"[1]RelatedPartyTransfers!H128","v":0},{"$f":"[1]RelatedPartyTransfers!I128","v":0},null,{"$f":"[1]RelatedPartyTransfers!M128","v":0},{"$f":"[1]RelatedPartyTransfers!N128","v":0},{"$f":"[1]RelatedPartyTransfers!O128","v":0},{"$f":"[1]RelatedPartyTransfers!P128","v":0},{"$f":"[1]RelatedPartyTransfers!Q128","v":0},{"$f":"[1]RelatedPartyTransfers!R128","v":0},{"$f":"[1]RelatedPartyTransfers!S128","v":0},{"$f":"[1]RelatedPartyTransfers!T128","v":0},{"$f":"[1]RelatedPartyTransfers!U128","v":0},{"$f":"[1]RelatedPartyTransfers!V128","v":0},{"$f":"[1]RelatedPartyTransfers!W128","v":0},{"$f":"[1]RelatedPartyTransfers!W128","v":0},0]
[0,0,{"$f":"IFERROR(INDEX((Settings!$M$17:$M$236),MATCH(RelatedPartyTransfers!G129,Settings!$AD$18:$AD$166,0)),0)","v":0},null,null,{"$f":"[1]RelatedPartyTransfers!F129","v":0},{"$f":"[1]RelatedPartyTransfers!G129","v":0},{"$f":"[1]RelatedPartyTransfers!H129","v":0},{"$f":"[1]RelatedPartyTransfers!I129","v":0},null,{"$f":"[1]RelatedPartyTransfers!M129","v":0},{"$f":"[1]RelatedPartyTransfers!N129","v":0},{"$f":"[1]RelatedPartyTransfers!O129","v":0},{"$f":"[1]RelatedPartyTransfers!P129","v":0},{"$f":"[1]RelatedPartyTransfers!Q129","v":0},{"$f":"[1]RelatedPartyTransfers!R129","v":0},{"$f":"[1]RelatedPartyTransfers!S129","v":0},{"$f":"[1]RelatedPartyTransfers!T129","v":0},{"$f":"[1]RelatedPartyTransfers!U129","v":0},{"$f":"[1]RelatedPartyTransfers!V129","v":0},{"$f":"[1]RelatedPartyTransfers!W129","v":0},{"$f":"[1]RelatedPartyTransfers!W129","v":0},0]
[0,0,{"$f":"IFERROR(INDEX((Settings!$M$17:$M$236),MATCH(RelatedPartyTransfers!G130,Settings!$AD$18:$AD$166,0)),0)","v":0},null,null,{"$f":"[1]RelatedPartyTransfers!F130","v":0},{"$f":"[1]RelatedPartyTransfers!G130","v":0},{"$f":"[1]RelatedPartyTransfers!H130","v":0},{"$f":"[1]RelatedPartyTransfers!I130","v":0},null,{"$f":"[1]RelatedPartyTransfers!M130","v":0},{"$f":"[1]RelatedPartyTransfers!N130","v":0},{"$f":"[1]RelatedPartyTransfers!O130","v":0},{"$f":"[1]RelatedPartyTransfers!P130","v":0},{"$f":"[1]RelatedPartyTransfers!Q130","v":0},{"$f":"[1]RelatedPartyTransfers!R130","v":0},{"$f":"[1]RelatedPartyTransfers!S130","v":0},{"$f":"[1]RelatedPartyTransfers!T130","v":0},{"$f":"[1]RelatedPartyTransfers!U130","v":0},{"$f":"[1]RelatedPartyTransfers!V130","v":0},{"$f":"[1]RelatedPartyTransfers!W130","v":0},{"$f":"[1]RelatedPartyTransfers!W130","v":0},0]
[0,0,{"$f":"IFERROR(INDEX((Settings!$M$17:$M$236),MATCH(RelatedPartyTransfers!G131,Settings!$AD$18:$AD$166,0)),0)","v":0},null,null,{"$f":"[1]RelatedPartyTransfers!F131","v":0},{"$f":"[1]RelatedPartyTransfers!G131","v":0},{"$f":"[1]RelatedPartyTransfers!H131","v":0},{"$f":"[1]RelatedPartyTransfers!I131","v":0},null,{"$f":"[1]RelatedPartyTransfers!M131","v":0},{"$f":"[1]RelatedPartyTransfers!N131","v":0},{"$f":"[1]RelatedPartyTransfers!O131","v":0},{"$f":"[1]RelatedPartyTransfers!P131","v":0},{"$f":"[1]RelatedPartyTransfers!Q131","v":0},{"$f":"[1]RelatedPartyTransfers!R131","v":0},{"$f":"[1]RelatedPartyTransfers!S131","v":0},{"$f":"[1]RelatedPartyTransfers!T131","v":0},{"$f":"[1]RelatedPartyTransfers!U131","v":0},{"$f":"[1]RelatedPartyTransfers!V131","v":0},{"$f":"[1]RelatedPartyTransfers!W131","v":0},{"$f":"[1]RelatedPartyTransfers!W131","v":0},0]
[0,0,{"$f":"IFERROR(INDEX((Settings!$M$17:$M$236),MATCH(RelatedPartyTransfers!G132,Settings!$AD$18:$AD$166,0)),0)","v":0},null,null,{"$f":"[1]RelatedPartyTransfers!F132","v":0},{"$f":"[1]RelatedPartyTransfers!G132","v":0},{"$f":"[1]RelatedPartyTransfers!H132","v":0},{"$f":"[1]RelatedPartyTransfers!I132","v":0},null,{"$f":"[1]RelatedPartyTransfers!M132","v":0},{"$f":"[1]RelatedPartyTransfers!N132","v":0},{"$f":"[1]RelatedPartyTransfers!O132","v":0},{"$f":"[1]RelatedPartyTransfers!P132","v":0},{"$f":"[1]RelatedPartyTransfers!Q132","v":0},{"$f":"[1]RelatedPartyTransfers!R132","v":0},{"$f":"[1]RelatedPartyTransfers!S132","v":0},{"$f":"[1]RelatedPartyTransfers!T132","v":0},{"$f":"[1]RelatedPartyTransfers!U132","v":0},{"$f":"[1]RelatedPartyTransfers!V132","v":0},{"$f":"[1]RelatedPartyTransfers!W132","v":0},{"$f":"[1]RelatedPartyTransfers!W132","v":0},0]
[0,0,{"$f":"IFERROR(INDEX((Settings!$M$17:$M$236),MATCH(RelatedPartyTransfers!G133,Settings!$AD$18:$AD$166,0)),0)","v":0},null,null,{"$f":"[1]RelatedPartyTransfers!F133","v":0},{"$f":"[1]RelatedPartyTransfers!G133","v":0},{"$f":"[1]RelatedPartyTransfers!H133","v":0},{"$f":"[1]RelatedPartyTransfers!I133","v":0},null,{"$f":"[1]RelatedPartyTransfers!M133","v":0},{"$f":"[1]RelatedPartyTransfers!N133","v":0},{"$f":"[1]RelatedPartyTransfers!O133","v":0},{"$f":"[1]RelatedPartyTransfers!P133","v":0},{"$f":"[1]RelatedPartyTransfers!Q133","v":0},{"$f":"[1]RelatedPartyTransfers!R133","v":0},{"$f":"[1]RelatedPartyTransfers!S133","v":0},{"$f":"[1]RelatedPartyTransfers!T133","v":0},{"$f":"[1]RelatedPartyTransfers!U133","v":0},{"$f":"[1]RelatedPartyTransfers!V133","v":0},{"$f":"[1]RelatedPartyTransfers!W133","v":0},{"$f":"[1]RelatedPartyTransfers!W133","v":0},0]
[0,0,{"$f":"IFERROR(INDEX((Settings!$M$17:$M$236),MATCH(RelatedPartyTransfers!G134,Settings!$AD$18:$AD$166,0)),0)","v":0},null,null,{"$f":"[1]RelatedPartyTransfers!F134","v":0},{"$f":"[1]RelatedPartyTransfers!G134","v":0},{"$f":"[1]RelatedPartyTransfers!H134","v":0},{"$f":"[1]RelatedPartyTransfers!I134","v":0},null,{"$f":"[1]RelatedPartyTransfers!M134","v":0},{"$f":"[1]RelatedPartyTransfers!N134","v":0},{"$f":"[1]RelatedPartyTransfers!O134","v":0},{"$f":"[1]RelatedPartyTransfers!P134","v":0},{"$f":"[1]RelatedPartyTransfers!Q134","v":0},{"$f":"[1]RelatedPartyTransfers!R134","v":0},{"$f":"[1]RelatedPartyTransfers!S134","v":0},{"$f":"[1]RelatedPartyTransfers!T134","v":0},{"$f":"[1]RelatedPartyTransfers!U134","v":0},{"$f":"[1]RelatedPartyTransfers!V134","v":0},{"$f":"[1]RelatedPartyTransfers!W134","v":0},{"$f":"[1]RelatedPartyTransfers!W134","v":0},0]
[0,0,{"$f":"IFERROR(INDEX((Settings!$M$17:$M$236),MATCH(RelatedPartyTransfers!G135,Settings!$AD$18:$AD$166,0)),0)","v":0},null,null,{"$f":"[1]RelatedPartyTransfers!F135","v":0},{"$f":"[1]RelatedPartyTransfers!G135","v":0},{"$f":"[1]RelatedPartyTransfers!H135","v":0},{"$f":"[1]RelatedPartyTransfers!I135","v":0},null,{"$f":"[1]RelatedPartyTransfers!M135","v":0},{"$f":"[1]RelatedPartyTransfers!N135","v":0},{"$f":"[1]RelatedPartyTransfers!O135","v":0},{"$f":"[1]RelatedPartyTransfers!P135","v":0},{"$f":"[1]RelatedPartyTransfers!Q135","v":0},{"$f":"[1]RelatedPartyTransfers!R135","v":0},{"$f":"[1]RelatedPartyTransfers!S135","v":0},{"$f":"[1]RelatedPartyTransfers!T135","v":0},{"$f":"[1]RelatedPartyTransfers!U135","v":0},{"$f":"[1]RelatedPartyTransfers!V135","v":0},{"$f":"[1]RelatedPartyTransfers!W135","v":0},{"$f":"[1]RelatedPartyTransfers!W135","v":0},0]
[0,0,{"$f":"IFERROR(INDEX((Settings!$M$17:$M$236),MATCH(RelatedPartyTransfers!G136,Settings!$AD$18:$AD$166,0)),0)","v":0},null,null,{"$f":"[1]RelatedPartyTransfers!F136","v":0},{"$f":"[1]RelatedPartyTransfers!G136","v":0},{"$f":"[1]RelatedPartyTransfers!H136","v":0},{"$f":"[1]RelatedPartyTransfers!I136","v":0},null,{"$f":"[1]RelatedPartyTransfers!M136","v":0},{"$f":"[1]RelatedPartyTransfers!N136","v":0},{"$f":"[1]RelatedPartyTransfers!O136","v":0},{"$f":"[1]RelatedPartyTransfers!P136","v":0},{"$f":"[1]RelatedPartyTransfers!Q136","v":0},{"$f":"[1]RelatedPartyTransfers!R136","v":0},{"$f":"[1]RelatedPartyTransfers!S136","v":0},{"$f":"[1]RelatedPartyTransfers!T136","v":0},{"$f":"[1]RelatedPartyTransfers!U136","v":0},{"$f":"[1]RelatedPartyTransfers!V136","v":0},{"$f":"[1]RelatedPartyTransfers!W136","v":0},{"$f":"[1]RelatedPartyTransfers!W136","v":0},0]
[0,0,{"$f":"IFERROR(INDEX((Settings!$M$17:$M$236),MATCH(RelatedPartyTransfers!G137,Settings!$AD$18:$AD$166,0)),0)","v":0},null,null,{"$f":"[1]RelatedPartyTransfers!F137","v":0},{"$f":"[1]RelatedPartyTransfers!G137","v":0},{"$f":"[1]RelatedPartyTransfers!H137","v":0},{"$f":"[1]RelatedPartyTransfers!I137","v":0},null,{"$f":"[1]RelatedPartyTransfers!M137","v":0},{"$f":"[1]RelatedPartyTransfers!N137","v":0},{"$f":"[1]RelatedPartyTransfers!O137","v":0},{"$f":"[1]RelatedPartyTransfers!P137","v":0},{"$f":"[1]RelatedPartyTransfers!Q137","v":0},{"$f":"[1]RelatedPartyTransfers!R137","v":0},{"$f":"[1]RelatedPartyTransfers!S137","v":0},{"$f":"[1]RelatedPartyTransfers!T137","v":0},{"$f":"[1]RelatedPartyTransfers!U137","v":0},{"$f":"[1]RelatedPartyTransfers!V137","v":0},{"$f":"[1]RelatedPartyTransfers!W137","v":0},{"$f":"[1]RelatedPartyTransfers!W137","v":0},0]
[0,0,{"$f":"IFERROR(INDEX((Settings!$M$17:$M$236),MATCH(RelatedPartyTransfers!G138,Settings!$AD$18:$AD$166,0)),0)","v":0},null,null,{"$f":"[1]RelatedPartyTransfers!F138","v":0},{"$f":"[1]RelatedPartyTransfers!G138","v":0},{"$f":"[1]RelatedPartyTransfers!H138","v":0},{"$f":"[1]RelatedPartyTransfers!I138","v":0},null,{"$f":"[1]RelatedPartyTransfers!M138","v":0},{"$f":"[1]RelatedPartyTransfers!N138","v":0},{"$f":"[1]RelatedPartyTransfers!O138","v":0},{"$f":"[1]RelatedPartyTransfers!P138","v":0},{"$f":"[1]RelatedPartyTransfers!Q138","v":0},{"$f":"[1]RelatedPartyTransfers!R138","v":0},{"$f":"[1]RelatedPartyTransfers!S138","v":0},{"$f":"[1]RelatedPartyTransfers!T138","v":0},{"$f":"[1]RelatedPartyTransfers!U138","v":0},{"$f":"[1]RelatedPartyTransfers!V138","v":0},{"$f":"[1]RelatedPartyTransfers!W138","v":0},{"$f":"[1]RelatedPartyTransfers!W138","v":0},0]
[0,{"$f":"IF($G139=$G$7,1,0)","v":0},{"$f":"IFERROR(INDEX((Settings!$M$17:$M$236),MATCH(RelatedPartyTransfers!G139,Settings!$AD$18:$AD$166,0)),0)","v":0},null,null,{"$f":"[1]RelatedPartyTransfers!F139","v":0},{"$f":"[1]RelatedPartyTransfers!G139","v":0},{"$f":"[1]RelatedPartyTransfers!H139","v":0},{"$f":"[1]RelatedPartyTransfers!I139","v":0},null,{"$f":"[1]RelatedPartyTransfers!M139","v":0},{"$f":"[1]RelatedPartyTransfers!N139","v":0},{"$f":"[1]RelatedPartyTransfers!O139","v":0},{"$f":"[1]RelatedPartyTransfers!P139","v":0},{"$f":"[1]RelatedPartyTransfers!Q139","v":0},{"$f":"[1]RelatedPartyTransfers!R139","v":0},{"$f":"[1]RelatedPartyTransfers!S139","v":0},{"$f":"[1]RelatedPartyTransfers!T139","v":0},{"$f":"[1]RelatedPartyTransfers!U139","v":0},{"$f":"[1]RelatedPartyTransfers!V139","v":0},{"$f":"[1]RelatedPartyTransfers!W139","v":0},{"$f":"[1]RelatedPartyTransfers!W139","v":0},0]
[{"$f":"IF(SUM(K140:W140)>0,1,0)","v":0},0,{"$f":"IFERROR(INDEX((Settings!$M$17:$M$236),MATCH(RelatedPartyTransfers!G140,Settings!$AD$18:$AD$166,0)),0)","v":0},null,null,{"$f":"[1]RelatedPartyTransfers!F140","v":0},{"$f":"[1]RelatedPartyTransfers!G140","v":0},{"$f":"[1]RelatedPartyTransfers!H140","v":0},{"$f":"[1]RelatedPartyTransfers!I140","v":0},null,{"$f":"[1]RelatedPartyTransfers!M140","v":0},{"$f":"[1]RelatedPartyTransfers!N140","v":0},{"$f":"[1]RelatedPartyTransfers!O140","v":0},{"$f":"[1]RelatedPartyTransfers!P140","v":0},{"$f":"[1]RelatedPartyTransfers!Q140","v":0},{"$f":"[1]RelatedPartyTransfers!R140","v":0},{"$f":"[1]RelatedPartyTransfers!S140","v":0},{"$f":"[1]RelatedPartyTransfers!T140","v":0},{"$f":"[1]RelatedPartyTransfers!U140","v":0},{"$f":"[1]RelatedPartyTransfers!V140","v":0},{"$f":"[1]RelatedPartyTransfers!W140","v":0},{"$f":"[1]RelatedPartyTransfers!W140","v":0},0]
[0,0,{"$f":"IFERROR(INDEX((Settings!$M$17:$M$236),MATCH(RelatedPartyTransfers!G141,Settings!$AD$18:$AD$166,0)),0)","v":0},null,null,{"$f":"[1]RelatedPartyTransfers!F141","v":0},{"$f":"[1]RelatedPartyTransfers!G141","v":0},{"$f":"[1]RelatedPartyTransfers!H141","v":0},{"$f":"[1]RelatedPartyTransfers!I141","v":0},null,{"$f":"[1]RelatedPartyTransfers!M141","v":0},{"$f":"[1]RelatedPartyTransfers!N141","v":0},{"$f":"[1]RelatedPartyTransfers!O141","v":0},{"$f":"[1]RelatedPartyTransfers!P141","v":0},{"$f":"[1]RelatedPartyTransfers!Q141","v":0},{"$f":"[1]RelatedPartyTransfers!R141","v":0},{"$f":"[1]RelatedPartyTransfers!S141","v":0},{"$f":"[1]RelatedPartyTransfers!T141","v":0},{"$f":"[1]RelatedPartyTransfers!U141","v":0},{"$f":"[1]RelatedPartyTransfers!V141","v":0},{"$f":"[1]RelatedPartyTransfers!W141","v":0},{"$f":"[1]RelatedPartyTransfers!W141","v":0},0]
[0,0,{"$f":"IFERROR(INDEX((Settings!$M$17:$M$236),MATCH(RelatedPartyTransfers!G142,Settings!$AD$18:$AD$166,0)),0)","v":0},null,null,{"$f":"[1]RelatedPartyTransfers!F142","v":0},{"$f":"[1]RelatedPartyTransfers!G142","v":0},{"$f":"[1]RelatedPartyTransfers!H142","v":0},{"$f":"[1]RelatedPartyTransfers!I142","v":0},null,{"$f":"[1]RelatedPartyTransfers!M142","v":0},{"$f":"[1]RelatedPartyTransfers!N142","v":0},{"$f":"[1]RelatedPartyTransfers!O142","v":0},{"$f":"[1]RelatedPartyTransfers!P142","v":0},{"$f":"[1]RelatedPartyTransfers!Q142","v":0},{"$f":"[1]RelatedPartyTransfers!R142","v":0},{"$f":"[1]RelatedPartyTransfers!S142","v":0},{"$f":"[1]RelatedPartyTransfers!T142","v":0},{"$f":"[1]RelatedPartyTransfers!U142","v":0},{"$f":"[1]RelatedPartyTransfers!V142","v":0},{"$f":"[1]RelatedPartyTransfers!W142","v":0},{"$f":"[1]RelatedPartyTransfers!W142","v":0},0]
[0,0,{"$f":"IFERROR(INDEX((Settings!$M$17:$M$236),MATCH(RelatedPartyTransfers!G143,Settings!$AD$18:$AD$166,0)),0)","v":0},null,null,{"$f":"[1]RelatedPartyTransfers!F143","v":0},{"$f":"[1]RelatedPartyTransfers!G143","v":0},{"$f":"[1]RelatedPartyTransfers!H143","v":0},{"$f":"[1]RelatedPartyTransfers!I143","v":0},null,{"$f":"[1]RelatedPartyTransfers!M143","v":0},{"$f":"[1]RelatedPartyTransfers!N143","v":0},{"$f":"[1]RelatedPartyTransfers!O143","v":0},{"$f":"[1]RelatedPartyTransfers!P143","v":0},{"$f":"[1]RelatedPartyTransfers!Q143","v":0},{"$f":"[1]RelatedPartyTransfers!R143","v":0},{"$f":"[1]RelatedPartyTransfers!S143","v":0},{"$f":"[1]RelatedPartyTransfers!T143","v":0},{"$f":"[1]RelatedPartyTransfers!U143","v":0},{"$f":"[1]RelatedPartyTransfers!V143","v":0},{"$f":"[1]RelatedPartyTransfers!W143","v":0},{"$f":"[1]RelatedPartyTransfers!W143","v":0},0]
[0,0,{"$f":"IFERROR(INDEX((Settings!$M$17:$M$236),MATCH(RelatedPartyTransfers!G144,Settings!$AD$18:$AD$166,0)),0)","v":0},null,null,{"$f":"[1]RelatedPartyTransfers!F144","v":0},{"$f":"[1]RelatedPartyTransfers!G144","v":0},{"$f":"[1]RelatedPartyTransfers!H144","v":0},{"$f":"[1]RelatedPartyTransfers!I144","v":0},null,{"$f":"[1]RelatedPartyTransfers!M144","v":0},{"$f":"[1]RelatedPartyTransfers!N144","v":0},{"$f":"[1]RelatedPartyTransfers!O144","v":0},{"$f":"[1]RelatedPartyTransfers!P144","v":0},{"$f":"[1]RelatedPartyTransfers!Q144","v":0},{"$f":"[1]RelatedPartyTransfers!R144","v":0},{"$f":"[1]RelatedPartyTransfers!S144","v":0},{"$f":"[1]RelatedPartyTransfers!T144","v":0},{"$f":"[1]RelatedPartyTransfers!U144","v":0},{"$f":"[1]RelatedPartyTransfers!V144","v":0},{"$f":"[1]RelatedPartyTransfers!W144","v":0},{"$f":"[1]RelatedPartyTransfers!W144","v":0},0]
[0,0,{"$f":"IFERROR(INDEX((Settings!$M$17:$M$236),MATCH(RelatedPartyTransfers!G145,Settings!$AD$18:$AD$166,0)),0)","v":0},null,null,{"$f":"[1]RelatedPartyTransfers!F145","v":0},{"$f":"[1]RelatedPartyTransfers!G145","v":0},{"$f":"[1]RelatedPartyTransfers!H145","v":0},{"$f":"[1]RelatedPartyTransfers!I145","v":0},null,{"$f":"[1]RelatedPartyTransfers!M145","v":0},{"$f":"[1]RelatedPartyTransfers!N145","v":0},{"$f":"[1]RelatedPartyTransfers!O145","v":0},{"$f":"[1]RelatedPartyTransfers!P145","v":0},{"$f":"[1]RelatedPartyTransfers!Q145","v":0},{"$f":"[1]RelatedPartyTransfers!R145","v":0},{"$f":"[1]RelatedPartyTransfers!S145","v":0},{"$f":"[1]RelatedPartyTransfers!T145","v":0},{"$f":"[1]RelatedPartyTransfers!U145","v":0},{"$f":"[1]RelatedPartyTransfers!V145","v":0},{"$f":"[1]RelatedPartyTransfers!W145","v":0},{"$f":"[1]RelatedPartyTransfers!W145","v":0},0]
[0,0,{"$f":"IFERROR(INDEX((Settings!$M$17:$M$236),MATCH(RelatedPartyTransfers!G146,Settings!$AD$18:$AD$166,0)),0)","v":0},null,null,{"$f":"[1]RelatedPartyTransfers!F146","v":0},{"$f":"[1]RelatedPartyTransfers!G146","v":0},{"$f":"[1]RelatedPartyTransfers!H146","v":0},{"$f":"[1]RelatedPartyTransfers!I146","v":0},null,{"$f":"[1]RelatedPartyTransfers!M146","v":0},{"$f":"[1]RelatedPartyTransfers!N146","v":0},{"$f":"[1]RelatedPartyTransfers!O146","v":0},{"$f":"[1]RelatedPartyTransfers!P146","v":0},{"$f":"[1]RelatedPartyTransfers!Q146","v":0},{"$f":"[1]RelatedPartyTransfers!R146","v":0},{"$f":"[1]RelatedPartyTransfers!S146","v":0},{"$f":"[1]RelatedPartyTransfers!T146","v":0},{"$f":"[1]RelatedPartyTransfers!U146","v":0},{"$f":"[1]RelatedPartyTransfers!V146","v":0},{"$f":"[1]RelatedPartyTransfers!W146","v":0},{"$f":"[1]RelatedPartyTransfers!W146","v":0},0]
[0,0,{"$f":"IFERROR(INDEX((Settings!$M$17:$M$236),MATCH(RelatedPartyTransfers!G147,Settings!$AD$18:$AD$166,0)),0)","v":0},null,null,{"$f":"[1]RelatedPartyTransfers!F147","v":0},{"$f":"[1]RelatedPartyTransfers!G147","v":0},{"$f":"[1]RelatedPartyTransfers!H147","v":0},{"$f":"[1]RelatedPartyTransfers!I147","v":0},null,{"$f":"[1]RelatedPartyTransfers!M147","v":0},{"$f":"[1]RelatedPartyTransfers!N147","v":0},{"$f":"[1]RelatedPartyTransfers!O147","v":0},{"$f":"[1]RelatedPartyTransfers!P147","v":0},{"$f":"[1]RelatedPartyTransfers!Q147","v":0},{"$f":"[1]RelatedPartyTransfers!R147","v":0},{"$f":"[1]RelatedPartyTransfers!S147","v":0},{"$f":"[1]RelatedPartyTransfers!T147","v":0},{"$f":"[1]RelatedPartyTransfers!U147","v":0},{"$f":"[1]RelatedPartyTransfers!V147","v":0},{"$f":"[1]RelatedPartyTransfers!W147","v":0},{"$f":"[1]RelatedPartyTransfers!W147","v":0},0]
[0,0,{"$f":"IFERROR(INDEX((Settings!$M$17:$M$236),MATCH(RelatedPartyTransfers!G148,Settings!$AD$18:$AD$166,0)),0)","v":0},null,null,{"$f":"[1]RelatedPartyTransfers!F148","v":0},{"$f":"[1]RelatedPartyTransfers!G148","v":0},{"$f":"[1]RelatedPartyTransfers!H148","v":0},{"$f":"[1]RelatedPartyTransfers!I148","v":0},null,{"$f":"[1]RelatedPartyTransfers!M148","v":0},{"$f":"[1]RelatedPartyTransfers!N148","v":0},{"$f":"[1]RelatedPartyTransfers!O148","v":0},{"$f":"[1]RelatedPartyTransfers!P148","v":0},{"$f":"[1]RelatedPartyTransfers!Q148","v":0},{"$f":"[1]RelatedPartyTransfers!R148","v":0},{"$f":"[1]RelatedPartyTransfers!S148","v":0},{"$f":"[1]RelatedPartyTransfers!T148","v":0},{"$f":"[1]RelatedPartyTransfers!U148","v":0},{"$f":"[1]RelatedPartyTransfers!V148","v":0},{"$f":"[1]RelatedPartyTransfers!W148","v":0},{"$f":"[1]RelatedPartyTransfers!W148","v":0},0]
[0,0,{"$f":"IFERROR(INDEX((Settings!$M$17:$M$236),MATCH(RelatedPartyTransfers!G149,Settings!$AD$18:$AD$166,0)),0)","v":0},null,null,{"$f":"[1]RelatedPartyTransfers!F149","v":0},{"$f":"[1]RelatedPartyTransfers!G149","v":0},{"$f":"[1]RelatedPartyTransfers!H149","v":0},{"$f":"[1]RelatedPartyTransfers!I149","v":0},null,{"$f":"[1]RelatedPartyTransfers!M149","v":0},{"$f":"[1]RelatedPartyTransfers!N149","v":0},{"$f":"[1]RelatedPartyTransfers!O149","v":0},{"$f":"[1]RelatedPartyTransfers!P149","v":0},{"$f":"[1]RelatedPartyTransfers!Q149","v":0},{"$f":"[1]RelatedPartyTransfers!R149","v":0},{"$f":"[1]RelatedPartyTransfers!S149","v":0},{"$f":"[1]RelatedPartyTransfers!T149","v":0},{"$f":"[1]RelatedPartyTransfers!U149","v":0},{"$f":"[1]RelatedPartyTransfers!V149","v":0},{"$f":"[1]RelatedPartyTransfers!W149","v":0},{"$f":"[1]RelatedPartyTransfers!W149","v":0},0]
[0,0,{"$f":"IFERROR(INDEX((Settings!$M$17:$M$236),MATCH(RelatedPartyTransfers!G150,Settings!$AD$18:$AD$166,0)),0)","v":0},null,null,{"$f":"[1]RelatedPartyTransfers!F150","v":0},{"$f":"[1]RelatedPartyTransfers!G150","v":0},{"$f":"[1]RelatedPartyTransfers!H150","v":0},{"$f":"[1]RelatedPartyTransfers!I150","v":0},null,{"$f":"[1]RelatedPartyTransfers!M150","v":0},{"$f":"[1]RelatedPartyTransfers!N150","v":0},{"$f":"[1]RelatedPartyTransfers!O150","v":0},{"$f":"[1]RelatedPartyTransfers!P150","v":0},{"$f":"[1]RelatedPartyTransfers!Q150","v":0},{"$f":"[1]RelatedPartyTransfers!R150","v":0},{"$f":"[1]RelatedPartyTransfers!S150","v":0},{"$f":"[1]RelatedPartyTransfers!T150","v":0},{"$f":"[1]RelatedPartyTransfers!U150","v":0},{"$f":"[1]RelatedPartyTransfers!V150","v":0},{"$f":"[1]RelatedPartyTransfers!W150","v":0},{"$f":"[1]RelatedPartyTransfers!W150","v":0},0]
[0,0,{"$f":"IFERROR(INDEX((Settings!$M$17:$M$236),MATCH(RelatedPartyTransfers!G151,Settings!$AD$18:$AD$166,0)),0)","v":0},null,null,{"$f":"[1]RelatedPartyTransfers!F151","v":0},{"$f":"[1]RelatedPartyTransfers!G151","v":0},{"$f":"[1]RelatedPartyTransfers!H151","v":0},{"$f":"[1]RelatedPartyTransfers!I151","v":0},null,{"$f":"[1]RelatedPartyTransfers!M151","v":0},{"$f":"[1]RelatedPartyTransfers!N151","v":0},{"$f":"[1]RelatedPartyTransfers!O151","v":0},{"$f":"[1]RelatedPartyTransfers!P151","v":0},{"$f":"[1]RelatedPartyTransfers!Q151","v":0},{"$f":"[1]RelatedPartyTransfers!R151","v":0},{"$f":"[1]RelatedPartyTransfers!S151","v":0},{"$f":"[1]RelatedPartyTransfers!T151","v":0},{"$f":"[1]RelatedPartyTransfers!U151","v":0},{"$f":"[1]RelatedPartyTransfers!V151","v":0},{"$f":"[1]RelatedPartyTransfers!W151","v":0},{"$f":"[1]RelatedPartyTransfers!W151","v":0},0]
[0,0,{"$f":"IFERROR(INDEX((Settings!$M$17:$M$236),MATCH(RelatedPartyTransfers!G152,Settings!$AD$18:$AD$166,0)),0)","v":0},null,null,{"$f":"[1]RelatedPartyTransfers!F152","v":0},{"$f":"[1]RelatedPartyTransfers!G152","v":0},{"$f":"[1]RelatedPartyTransfers!H152","v":0},{"$f":"[1]RelatedPartyTransfers!I152","v":0},null,{"$f":"[1]RelatedPartyTransfers!M152","v":0},{"$f":"[1]RelatedPartyTransfers!N152","v":0},{"$f":"[1]RelatedPartyTransfers!O152","v":0},{"$f":"[1]RelatedPartyTransfers!P152","v":0},{"$f":"[1]RelatedPartyTransfers!Q152","v":0},{"$f":"[1]RelatedPartyTransfers!R152","v":0},{"$f":"[1]RelatedPartyTransfers!S152","v":0},{"$f":"[1]RelatedPartyTransfers!T152","v":0},{"$f":"[1]RelatedPartyTransfers!U152","v":0},{"$f":"[1]RelatedPartyTransfers!V152","v":0},{"$f":"[1]RelatedPartyTransfers!W152","v":0},{"$f":"[1]RelatedPartyTransfers!W152","v":0},0]
[0,0,{"$f":"IFERROR(INDEX((Settings!$M$17:$M$236),MATCH(RelatedPartyTransfers!G153,Settings!$AD$18:$AD$166,0)),0)","v":0},null,null,{"$f":"[1]RelatedPartyTransfers!F153","v":0},{"$f":"[1]RelatedPartyTransfers!G153","v":0},{"$f":"[1]RelatedPartyTransfers!H153","v":0},{"$f":"[1]RelatedPartyTransfers!I153","v":0},null,{"$f":"[1]RelatedPartyTransfers!M153","v":0},{"$f":"[1]RelatedPartyTransfers!N153","v":0},{"$f":"[1]RelatedPartyTransfers!O153","v":0},{"$f":"[1]RelatedPartyTransfers!P153","v":0},{"$f":"[1]RelatedPartyTransfers!Q153","v":0},{"$f":"[1]RelatedPartyTransfers!R153","v":0},{"$f":"[1]RelatedPartyTransfers!S153","v":0},{"$f":"[1]RelatedPartyTransfers!T153","v":0},{"$f":"[1]RelatedPartyTransfers!U153","v":0},{"$f":"[1]RelatedPartyTransfers!V153","v":0},{"$f":"[1]RelatedPartyTransfers!W153","v":0},{"$f":"[1]RelatedPartyTransfers!W153","v":0},0]
[0,0,{"$f":"IFERROR(INDEX((Settings!$M$17:$M$236),MATCH(RelatedPartyTransfers!G154,Settings!$AD$18:$AD$166,0)),0)","v":0},null,null,{"$f":"[1]RelatedPartyTransfers!F154","v":0},{"$f":"[1]RelatedPartyTransfers!G154","v":0},{"$f":"[1]RelatedPartyTransfers!H154","v":0},{"$f":"[1]RelatedPartyTransfers!I154","v":0},null,{"$f":"[1]RelatedPartyTransfers!M154","v":0},{"$f":"[1]RelatedPartyTransfers!N154","v":0},{"$f":"[1]RelatedPartyTransfers!O154","v":0},{"$f":"[1]RelatedPartyTransfers!P154","v":0},{"$f":"[1]RelatedPartyTransfers!Q154","v":0},{"$f":"[1]RelatedPartyTransfers!R154","v":0},{"$f":"[1]RelatedPartyTransfers!S154","v":0},{"$f":"[1]RelatedPartyTransfers!T154","v":0},{"$f":"[1]RelatedPartyTransfers!U154","v":0},{"$f":"[1]RelatedPartyTransfers!V154","v":0},{"$f":"[1]RelatedPartyTransfers!W154","v":0},{"$f":"[1]RelatedPartyTransfers!W154","v":0},0]
[0,0,{"$f":"IFERROR(INDEX((Settings!$M$17:$M$236),MATCH(RelatedPartyTransfers!G155,Settings!$AD$18:$AD$166,0)),0)","v":0},null,null,{"$f":"[1]RelatedPartyTransfers!F155","v":0},{"$f":"[1]RelatedPartyTransfers!G155","v":0},{"$f":"[1]RelatedPartyTransfers!H155","v":0},{"$f":"[1]RelatedPartyTransfers!I155","v":0},null,{"$f":"[1]RelatedPartyTransfers!M155","v":0},{"$f":"[1]RelatedPartyTransfers!N155","v":0},{"$f":"[1]RelatedPartyTransfers!O155","v":0},{"$f":"[1]RelatedPartyTransfers!P155","v":0},{"$f":"[1]RelatedPartyTransfers!Q155","v":0},{"$f":"[1]RelatedPartyTransfers!R155","v":0},{"$f":"[1]RelatedPartyTransfers!S155","v":0},{"$f":"[1]RelatedPartyTransfers!T155","v":0},{"$f":"[1]RelatedPartyTransfers!U155","v":0},{"$f":"[1]RelatedPartyTransfers!V155","v":0},{"$f":"[1]RelatedPartyTransfers!W155","v":0},{"$f":"[1]RelatedPartyTransfers!W155","v":0},0]
[0,0,{"$f":"IFERROR(INDEX((Settings!$M$17:$M$236),MATCH(RelatedPartyTransfers!G156,Settings!$AD$18:$AD$166,0)),0)","v":0},null,null,{"$f":"[1]RelatedPartyTransfers!F156","v":0},{"$f":"[1]RelatedPartyTransfers!G156","v":0},{"$f":"[1]RelatedPartyTransfers!H156","v":0},{"$f":"[1]RelatedPartyTransfers!I156","v":0},null,{"$f":"[1]RelatedPartyTransfers!M156","v":0},{"$f":"[1]RelatedPartyTransfers!N156","v":0},{"$f":"[1]RelatedPartyTransfers!O156","v":0},{"$f":"[1]RelatedPartyTransfers!P156","v":0},{"$f":"[1]RelatedPartyTransfers!Q156","v":0},{"$f":"[1]RelatedPartyTransfers!R156","v":0},{"$f":"[1]RelatedPartyTransfers!S156","v":0},{"$f":"[1]RelatedPartyTransfers!T156","v":0},{"$f":"[1]RelatedPartyTransfers!U156","v":0},{"$f":"[1]RelatedPartyTransfers!V156","v":0},{"$f":"[1]RelatedPartyTransfers!W156","v":0},{"$f":"[1]RelatedPartyTransfers!W156","v":0},0]
[0,0,{"$f":"IFERROR(INDEX((Settings!$M$17:$M$236),MATCH(RelatedPartyTransfers!G157,Settings!$AD$18:$AD$166,0)),0)","v":0},null,null,{"$f":"[1]RelatedPartyTransfers!F157","v":0},{"$f":"[1]RelatedPartyTransfers!G157","v":0},{"$f":"[1]RelatedPartyTransfers!H157","v":0},{"$f":"[1]RelatedPartyTransfers!I157","v":0},null,{"$f":"[1]RelatedPartyTransfers!M157","v":0},{"$f":"[1]RelatedPartyTransfers!N157","v":0},{"$f":"[1]RelatedPartyTransfers!O157","v":0},{"$f":"[1]RelatedPartyTransfers!P157","v":0},{"$f":"[1]RelatedPartyTransfers!Q157","v":0},{"$f":"[1]RelatedPartyTransfers!R157","v":0},{"$f":"[1]RelatedPartyTransfers!S157","v":0},{"$f":"[1]RelatedPartyTransfers!T157","v":0},{"$f":"[1]RelatedPartyTransfers!U157","v":0},{"$f":"[1]RelatedPartyTransfers!V157","v":0},{"$f":"[1]RelatedPartyTransfers!W157","v":0},{"$f":"[1]RelatedPartyTransfers!W157","v":0},0]
[0,0,{"$f":"IFERROR(INDEX((Settings!$M$17:$M$236),MATCH(RelatedPartyTransfers!G158,Settings!$AD$18:$AD$166,0)),0)","v":0},null,null,{"$f":"[1]RelatedPartyTransfers!F158","v":0},{"$f":"[1]RelatedPartyTransfers!G158","v":0},{"$f":"[1]RelatedPartyTransfers!H158","v":0},{"$f":"[1]RelatedPartyTransfers!I158","v":0},null,{"$f":"[1]RelatedPartyTransfers!M158","v":0},{"$f":"[1]RelatedPartyTransfers!N158","v":0},{"$f":"[1]RelatedPartyTransfers!O158","v":0},{"$f":"[1]RelatedPartyTransfers!P158","v":0},{"$f":"[1]RelatedPartyTransfers!Q158","v":0},{"$f":"[1]RelatedPartyTransfers!R158","v":0},{"$f":"[1]RelatedPartyTransfers!S158","v":0},{"$f":"[1]RelatedPartyTransfers!T158","v":0},{"$f":"[1]RelatedPartyTransfers!U158","v":0},{"$f":"[1]RelatedPartyTransfers!V158","v":0},{"$f":"[1]RelatedPartyTransfers!W158","v":0},{"$f":"[1]RelatedPartyTransfers!W158","v":0},0]
[0,0,{"$f":"IFERROR(INDEX((Settings!$M$17:$M$236),MATCH(RelatedPartyTransfers!G159,Settings!$AD$18:$AD$166,0)),0)","v":0},null,null,{"$f":"[1]RelatedPartyTransfers!F159","v":0},{"$f":"[1]RelatedPartyTransfers!G159","v":0},{"$f":"[1]RelatedPartyTransfers!H159","v":0},{"$f":"[1]RelatedPartyTransfers!I159","v":0},null,{"$f":"[1]RelatedPartyTransfers!M159","v":0},{"$f":"[1]RelatedPartyTransfers!N159","v":0},{"$f":"[1]RelatedPartyTransfers!O159","v":0},{"$f":"[1]RelatedPartyTransfers!P159","v":0},{"$f":"[1]RelatedPartyTransfers!Q159","v":0},{"$f":"[1]RelatedPartyTransfers!R159","v":0},{"$f":"[1]RelatedPartyTransfers!S159","v":0},{"$f":"[1]RelatedPartyTransfers!T159","v":0},{"$f":"[1]RelatedPartyTransfers!U159","v":0},{"$f":"[1]RelatedPartyTransfers!V159","v":0},{"$f":"[1]RelatedPartyTransfers!W159","v":0},{"$f":"[1]RelatedPartyTransfers!W159","v":0},0]
[0,0,{"$f":"IFERROR(INDEX((Settings!$M$17:$M$236),MATCH(RelatedPartyTransfers!G160,Settings!$AD$18:$AD$166,0)),0)","v":0},null,null,{"$f":"[1]RelatedPartyTransfers!F160","v":0},{"$f":"[1]RelatedPartyTransfers!G160","v":0},{"$f":"[1]RelatedPartyTransfers!H160","v":0},{"$f":"[1]RelatedPartyTransfers!I160","v":0},null,{"$f":"[1]RelatedPartyTransfers!M160","v":0},{"$f":"[1]RelatedPartyTransfers!N160","v":0},{"$f":"[1]RelatedPartyTransfers!O160","v":0},{"$f":"[1]RelatedPartyTransfers!P160","v":0},{"$f":"[1]RelatedPartyTransfers!Q160","v":0},{"$f":"[1]RelatedPartyTransfers!R160","v":0},{"$f":"[1]RelatedPartyTransfers!S160","v":0},{"$f":"[1]RelatedPartyTransfers!T160","v":0},{"$f":"[1]RelatedPartyTransfers!U160","v":0},{"$f":"[1]RelatedPartyTransfers!V160","v":0},{"$f":"[1]RelatedPartyTransfers!W160","v":0},{"$f":"[1]RelatedPartyTransfers!W160","v":0},0]
[0,0,{"$f":"IFERROR(INDEX((Settings!$M$17:$M$236),MATCH(RelatedPartyTransfers!G161,Settings!$AD$18:$AD$166,0)),0)","v":0},null,null,{"$f":"[1]RelatedPartyTransfers!F161","v":0},{"$f":"[1]RelatedPartyTransfers!G161","v":0},{"$f":"[1]RelatedPartyTransfers!H161","v":0},{"$f":"[1]RelatedPartyTransfers!I161","v":0},null,{"$f":"[1]RelatedPartyTransfers!M161","v":0},{"$f":"[1]RelatedPartyTransfers!N161","v":0},{"$f":"[1]RelatedPartyTransfers!O161","v":0},{"$f":"[1]RelatedPartyTransfers!P161","v":0},{"$f":"[1]RelatedPartyTransfers!Q161","v":0},{"$f":"[1]RelatedPartyTransfers!R161","v":0},{"$f":"[1]RelatedPartyTransfers!S161","v":0},{"$f":"[1]RelatedPartyTransfers!T161","v":0},{"$f":"[1]RelatedPartyTransfers!U161","v":0},{"$f":"[1]RelatedPartyTransfers!V161","v":0},{"$f":"[1]RelatedPartyTransfers!W161","v":0},{"$f":"[1]RelatedPartyTransfers!W161","v":0},0]
[0,0,{"$f":"IFERROR(INDEX((Settings!$M$17:$M$236),MATCH(RelatedPartyTransfers!G162,Settings!$AD$18:$AD$166,0)),0)","v":0},null,null,{"$f":"[1]RelatedPartyTransfers!F162","v":0},{"$f":"[1]RelatedPartyTransfers!G162","v":0},{"$f":"[1]RelatedPartyTransfers!H162","v":0},{"$f":"[1]RelatedPartyTransfers!I162","v":0},null,{"$f":"[1]RelatedPartyTransfers!M162","v":0},{"$f":"[1]RelatedPartyTransfers!N162","v":0},{"$f":"[1]RelatedPartyTransfers!O162","v":0},{"$f":"[1]RelatedPartyTransfers!P162","v":0},{"$f":"[1]RelatedPartyTransfers!Q162","v":0},{"$f":"[1]RelatedPartyTransfers!R162","v":0},{"$f":"[1]RelatedPartyTransfers!S162","v":0},{"$f":"[1]RelatedPartyTransfers!T162","v":0},{"$f":"[1]RelatedPartyTransfers!U162","v":0},{"$f":"[1]RelatedPartyTransfers!V162","v":0},{"$f":"[1]RelatedPartyTransfers!W162","v":0},{"$f":"[1]RelatedPartyTransfers!W162","v":0},0]
[0,0,{"$f":"IFERROR(INDEX((Settings!$M$17:$M$236),MATCH(RelatedPartyTransfers!G163,Settings!$AD$18:$AD$166,0)),0)","v":0},null,null,{"$f":"[1]RelatedPartyTransfers!F163","v":0},{"$f":"[1]RelatedPartyTransfers!G163","v":0},{"$f":"[1]RelatedPartyTransfers!H163","v":0},{"$f":"[1]RelatedPartyTransfers!I163","v":0},null,{"$f":"[1]RelatedPartyTransfers!M163","v":0},{"$f":"[1]RelatedPartyTransfers!N163","v":0},{"$f":"[1]RelatedPartyTransfers!O163","v":0},{"$f":"[1]RelatedPartyTransfers!P163","v":0},{"$f":"[1]RelatedPartyTransfers!Q163","v":0},{"$f":"[1]RelatedPartyTransfers!R163","v":0},{"$f":"[1]RelatedPartyTransfers!S163","v":0},{"$f":"[1]RelatedPartyTransfers!T163","v":0},{"$f":"[1]RelatedPartyTransfers!U163","v":0},{"$f":"[1]RelatedPartyTransfers!V163","v":0},{"$f":"[1]RelatedPartyTransfers!W163","v":0},{"$f":"[1]RelatedPartyTransfers!W163","v":0},0]
[0,0,{"$f":"IFERROR(INDEX((Settings!$M$17:$M$236),MATCH(RelatedPartyTransfers!G164,Settings!$AD$18:$AD$166,0)),0)","v":0},null,null,{"$f":"[1]RelatedPartyTransfers!F164","v":0},{"$f":"[1]RelatedPartyTransfers!G164","v":0},{"$f":"[1]RelatedPartyTransfers!H164","v":0},{"$f":"[1]RelatedPartyTransfers!I164","v":0},null,{"$f":"[1]RelatedPartyTransfers!M164","v":0},{"$f":"[1]RelatedPartyTransfers!N164","v":0},{"$f":"[1]RelatedPartyTransfers!O164","v":0},{"$f":"[1]RelatedPartyTransfers!P164","v":0},{"$f":"[1]RelatedPartyTransfers!Q164","v":0},{"$f":"[1]RelatedPartyTransfers!R164","v":0},{"$f":"[1]RelatedPartyTransfers!S164","v":0},{"$f":"[1]RelatedPartyTransfers!T164","v":0},{"$f":"[1]RelatedPartyTransfers!U164","v":0},{"$f":"[1]RelatedPartyTransfers!V164","v":0},{"$f":"[1]RelatedPartyTransfers!W164","v":0},{"$f":"[1]RelatedPartyTransfers!W164","v":0},0]
[0,0,{"$f":"IFERROR(INDEX((Settings!$M$17:$M$236),MATCH(RelatedPartyTransfers!G165,Settings!$AD$18:$AD$166,0)),0)","v":0},null,null,{"$f":"[1]RelatedPartyTransfers!F165","v":0},{"$f":"[1]RelatedPartyTransfers!G165","v":0},{"$f":"[1]RelatedPartyTransfers!H165","v":0},{"$f":"[1]RelatedPartyTransfers!I165","v":0},null,{"$f":"[1]RelatedPartyTransfers!M165","v":0},{"$f":"[1]RelatedPartyTransfers!N165","v":0},{"$f":"[1]RelatedPartyTransfers!O165","v":0},{"$f":"[1]RelatedPartyTransfers!P165","v":0},{"$f":"[1]RelatedPartyTransfers!Q165","v":0},{"$f":"[1]RelatedPartyTransfers!R165","v":0},{"$f":"[1]RelatedPartyTransfers!S165","v":0},{"$f":"[1]RelatedPartyTransfers!T165","v":0},{"$f":"[1]RelatedPartyTransfers!U165","v":0},{"$f":"[1]RelatedPartyTransfers!V165","v":0},{"$f":"[1]RelatedPartyTransfers!W165","v":0},{"$f":"[1]RelatedPartyTransfers!W165","v":0},0]
[0,0,{"$f":"IFERROR(INDEX((Settings!$M$17:$M$236),MATCH(RelatedPartyTransfers!G166,Settings!$AD$18:$AD$166,0)),0)","v":0},null,null,{"$f":"[1]RelatedPartyTransfers!F166","v":0},{"$f":"[1]RelatedPartyTransfers!G166","v":0},{"$f":"[1]RelatedPartyTransfers!H166","v":0},{"$f":"[1]RelatedPartyTransfers!I166","v":0},null,{"$f":"[1]RelatedPartyTransfers!M166","v":0},{"$f":"[1]RelatedPartyTransfers!N166","v":0},{"$f":"[1]RelatedPartyTransfers!O166","v":0},{"$f":"[1]RelatedPartyTransfers!P166","v":0},{"$f":"[1]RelatedPartyTransfers!Q166","v":0},{"$f":"[1]RelatedPartyTransfers!R166","v":0},{"$f":"[1]RelatedPartyTransfers!S166","v":0},{"$f":"[1]RelatedPartyTransfers!T166","v":0},{"$f":"[1]RelatedPartyTransfers!U166","v":0},{"$f":"[1]RelatedPartyTransfers!V166","v":0},{"$f":"[1]RelatedPartyTransfers!W166","v":0},{"$f":"[1]RelatedPartyTransfers!W166","v":0},0]
[0,0,{"$f":"IFERROR(INDEX((Settings!$M$17:$M$236),MATCH(RelatedPartyTransfers!G167,Settings!$AD$18:$AD$166,0)),0)","v":0},null,null,{"$f":"[1]RelatedPartyTransfers!F167","v":0},{"$f":"[1]RelatedPartyTransfers!G167","v":0},{"$f":"[1]RelatedPartyTransfers!H167","v":0},{"$f":"[1]RelatedPartyTransfers!I167","v":0},null,{"$f":"[1]RelatedPartyTransfers!M167","v":0},{"$f":"[1]RelatedPartyTransfers!N167","v":0},{"$f":"[1]RelatedPartyTransfers!O167","v":0},{"$f":"[1]RelatedPartyTransfers!P167","v":0},{"$f":"[1]RelatedPartyTransfers!Q167","v":0},{"$f":"[1]RelatedPartyTransfers!R167","v":0},{"$f":"[1]RelatedPartyTransfers!S167","v":0},{"$f":"[1]RelatedPartyTransfers!T167","v":0},{"$f":"[1]RelatedPartyTransfers!U167","v":0},{"$f":"[1]RelatedPartyTransfers!V167","v":0},{"$f":"[1]RelatedPartyTransfers!W167","v":0},{"$f":"[1]RelatedPartyTransfers!W167","v":0},0]
[0,0,{"$f":"IFERROR(INDEX((Settings!$M$17:$M$236),MATCH(RelatedPartyTransfers!G168,Settings!$AD$18:$AD$166,0)),0)","v":0},null,null,{"$f":"[1]RelatedPartyTransfers!F168","v":0},{"$f":"[1]RelatedPartyTransfers!G168","v":0},{"$f":"[1]RelatedPartyTransfers!H168","v":0},{"$f":"[1]RelatedPartyTransfers!I168","v":0},null,{"$f":"[1]RelatedPartyTransfers!M168","v":0},{"$f":"[1]RelatedPartyTransfers!N168","v":0},{"$f":"[1]RelatedPartyTransfers!O168","v":0},{"$f":"[1]RelatedPartyTransfers!P168","v":0},{"$f":"[1]RelatedPartyTransfers!Q168","v":0},{"$f":"[1]RelatedPartyTransfers!R168","v":0},{"$f":"[1]RelatedPartyTransfers!S168","v":0},{"$f":"[1]RelatedPartyTransfers!T168","v":0},{"$f":"[1]RelatedPartyTransfers!U168","v":0},{"$f":"[1]RelatedPartyTransfers!V168","v":0},{"$f":"[1]RelatedPartyTransfers!W168","v":0},{"$f":"[1]RelatedPartyTransfers!W168","v":0},0]
[0,0,{"$f":"IFERROR(INDEX((Settings!$M$17:$M$236),MATCH(RelatedPartyTransfers!G169,Settings!$AD$18:$AD$166,0)),0)","v":0},null,null,{"$f":"[1]RelatedPartyTransfers!F169","v":0},{"$f":"[1]RelatedPartyTransfers!G169","v":0},{"$f":"[1]RelatedPartyTransfers!H169","v":0},{"$f":"[1]RelatedPartyTransfers!I169","v":0},null,{"$f":"[1]RelatedPartyTransfers!M169","v":0},{"$f":"[1]RelatedPartyTransfers!N169","v":0},{"$f":"[1]RelatedPartyTransfers!O169","v":0},{"$f":"[1]RelatedPartyTransfers!P169","v":0},{"$f":"[1]RelatedPartyTransfers!Q169","v":0},{"$f":"[1]RelatedPartyTransfers!R169","v":0},{"$f":"[1]RelatedPartyTransfers!S169","v":0},{"$f":"[1]RelatedPartyTransfers!T169","v":0},{"$f":"[1]RelatedPartyTransfers!U169","v":0},{"$f":"[1]RelatedPartyTransfers!V169","v":0},{"$f":"[1]RelatedPartyTransfers!W169","v":0},{"$f":"[1]RelatedPartyTransfers!W169","v":0},0]
[0,0,{"$f":"IFERROR(INDEX((Settings!$M$17:$M$236),MATCH(RelatedPartyTransfers!G170,Settings!$AD$18:$AD$166,0)),0)","v":0},null,null,{"$f":"[1]RelatedPartyTransfers!F170","v":0},{"$f":"[1]RelatedPartyTransfers!G170","v":0},{"$f":"[1]RelatedPartyTransfers!H170","v":0},{"$f":"[1]RelatedPartyTransfers!I170","v":0},null,{"$f":"[1]RelatedPartyTransfers!M170","v":0},{"$f":"[1]RelatedPartyTransfers!N170","v":0},{"$f":"[1]RelatedPartyTransfers!O170","v":0},{"$f":"[1]RelatedPartyTransfers!P170","v":0},{"$f":"[1]RelatedPartyTransfers!Q170","v":0},{"$f":"[1]RelatedPartyTransfers!R170","v":0},{"$f":"[1]RelatedPartyTransfers!S170","v":0},{"$f":"[1]RelatedPartyTransfers!T170","v":0},{"$f":"[1]RelatedPartyTransfers!U170","v":0},{"$f":"[1]RelatedPartyTransfers!V170","v":0},{"$f":"[1]RelatedPartyTransfers!W170","v":0},{"$f":"[1]RelatedPartyTransfers!W170","v":0},0]
[0,0,{"$f":"IFERROR(INDEX((Settings!$M$17:$M$236),MATCH(RelatedPartyTransfers!G171,Settings!$AD$18:$AD$166,0)),0)","v":0},null,null,{"$f":"[1]RelatedPartyTransfers!F171","v":0},{"$f":"[1]RelatedPartyTransfers!G171","v":0},{"$f":"[1]RelatedPartyTransfers!H171","v":0},{"$f":"[1]RelatedPartyTransfers!I171","v":0},null,{"$f":"[1]RelatedPartyTransfers!M171","v":0},{"$f":"[1]RelatedPartyTransfers!N171","v":0},{"$f":"[1]RelatedPartyTransfers!O171","v":0},{"$f":"[1]RelatedPartyTransfers!P171","v":0},{"$f":"[1]RelatedPartyTransfers!Q171","v":0},{"$f":"[1]RelatedPartyTransfers!R171","v":0},{"$f":"[1]RelatedPartyTransfers!S171","v":0},{"$f":"[1]RelatedPartyTransfers!T171","v":0},{"$f":"[1]RelatedPartyTransfers!U171","v":0},{"$f":"[1]RelatedPartyTransfers!V171","v":0},{"$f":"[1]RelatedPartyTransfers!W171","v":0},{"$f":"[1]RelatedPartyTransfers!W171","v":0},0]
[0,0,{"$f":"IFERROR(INDEX((Settings!$M$17:$M$236),MATCH(RelatedPartyTransfers!G172,Settings!$AD$18:$AD$166,0)),0)","v":0},null,null,{"$f":"[1]RelatedPartyTransfers!F172","v":0},{"$f":"[1]RelatedPartyTransfers!G172","v":0},{"$f":"[1]RelatedPartyTransfers!H172","v":0},{"$f":"[1]RelatedPartyTransfers!I172","v":0},null,{"$f":"[1]RelatedPartyTransfers!M172","v":0},{"$f":"[1]RelatedPartyTransfers!N172","v":0},{"$f":"[1]RelatedPartyTransfers!O172","v":0},{"$f":"[1]RelatedPartyTransfers!P172","v":0},{"$f":"[1]RelatedPartyTransfers!Q172","v":0},{"$f":"[1]RelatedPartyTransfers!R172","v":0},{"$f":"[1]RelatedPartyTransfers!S172","v":0},{"$f":"[1]RelatedPartyTransfers!T172","v":0},{"$f":"[1]RelatedPartyTransfers!U172","v":0},{"$f":"[1]RelatedPartyTransfers!V172","v":0},{"$f":"[1]RelatedPartyTransfers!W172","v":0},{"$f":"[1]RelatedPartyTransfers!W172","v":0},0]
[0,0,{"$f":"IFERROR(INDEX((Settings!$M$17:$M$236),MATCH(RelatedPartyTransfers!G173,Settings!$AD$18:$AD$166,0)),0)","v":0},null,null,{"$f":"[1]RelatedPartyTransfers!F173","v":0},{"$f":"[1]RelatedPartyTransfers!G173","v":0},{"$f":"[1]RelatedPartyTransfers!H173","v":0},{"$f":"[1]RelatedPartyTransfers!I173","v":0},null,{"$f":"[1]RelatedPartyTransfers!M173","v":0},{"$f":"[1]RelatedPartyTransfers!N173","v":0},{"$f":"[1]RelatedPartyTransfers!O173","v":0},{"$f":"[1]RelatedPartyTransfers!P173","v":0},{"$f":"[1]RelatedPartyTransfers!Q173","v":0},{"$f":"[1]RelatedPartyTransfers!R173","v":0},{"$f":"[1]RelatedPartyTransfers!S173","v":0},{"$f":"[1]RelatedPartyTransfers!T173","v":0},{"$f":"[1]RelatedPartyTransfers!U173","v":0},{"$f":"[1]RelatedPartyTransfers!V173","v":0},{"$f":"[1]RelatedPartyTransfers!W173","v":0},{"$f":"[1]RelatedPartyTransfers!W173","v":0},0]
[0,0,{"$f":"IFERROR(INDEX((Settings!$M$17:$M$236),MATCH(RelatedPartyTransfers!G174,Settings!$AD$18:$AD$166,0)),0)","v":0},null,null,{"$f":"[1]RelatedPartyTransfers!F174","v":0},{"$f":"[1]RelatedPartyTransfers!G174","v":0},{"$f":"[1]RelatedPartyTransfers!H174","v":0},{"$f":"[1]RelatedPartyTransfers!I174","v":0},null,{"$f":"[1]RelatedPartyTransfers!M174","v":0},{"$f":"[1]RelatedPartyTransfers!N174","v":0},{"$f":"[1]RelatedPartyTransfers!O174","v":0},{"$f":"[1]RelatedPartyTransfers!P174","v":0},{"$f":"[1]RelatedPartyTransfers!Q174","v":0},{"$f":"[1]RelatedPartyTransfers!R174","v":0},{"$f":"[1]RelatedPartyTransfers!S174","v":0},{"$f":"[1]RelatedPartyTransfers!T174","v":0},{"$f":"[1]RelatedPartyTransfers!U174","v":0},{"$f":"[1]RelatedPartyTransfers!V174","v":0},{"$f":"[1]RelatedPartyTransfers!W174","v":0},{"$f":"[1]RelatedPartyTransfers!W174","v":0},0]
[0,0,{"$f":"IFERROR(INDEX((Settings!$M$17:$M$236),MATCH(RelatedPartyTransfers!G175,Settings!$AD$18:$AD$166,0)),0)","v":0},null,null,{"$f":"[1]RelatedPartyTransfers!F175","v":0},{"$f":"[1]RelatedPartyTransfers!G175","v":0},{"$f":"[1]RelatedPartyTransfers!H175","v":0},{"$f":"[1]RelatedPartyTransfers!I175","v":0},null,{"$f":"[1]RelatedPartyTransfers!M175","v":0},{"$f":"[1]RelatedPartyTransfers!N175","v":0},{"$f":"[1]RelatedPartyTransfers!O175","v":0},{"$f":"[1]RelatedPartyTransfers!P175","v":0},{"$f":"[1]RelatedPartyTransfers!Q175","v":0},{"$f":"[1]RelatedPartyTransfers!R175","v":0},{"$f":"[1]RelatedPartyTransfers!S175","v":0},{"$f":"[1]RelatedPartyTransfers!T175","v":0},{"$f":"[1]RelatedPartyTransfers!U175","v":0},{"$f":"[1]RelatedPartyTransfers!V175","v":0},{"$f":"[1]RelatedPartyTransfers!W175","v":0},{"$f":"[1]RelatedPartyTransfers!W175","v":0},0]
[0,0,{"$f":"IFERROR(INDEX((Settings!$M$17:$M$236),MATCH(RelatedPartyTransfers!G176,Settings!$AD$18:$AD$166,0)),0)","v":0},null,null,{"$f":"[1]RelatedPartyTransfers!F176","v":0},{"$f":"[1]RelatedPartyTransfers!G176","v":0},{"$f":"[1]RelatedPartyTransfers!H176","v":0},{"$f":"[1]RelatedPartyTransfers!I176","v":0},null,{"$f":"[1]RelatedPartyTransfers!M176","v":0},{"$f":"[1]RelatedPartyTransfers!N176","v":0},{"$f":"[1]RelatedPartyTransfers!O176","v":0},{"$f":"[1]RelatedPartyTransfers!P176","v":0},{"$f":"[1]RelatedPartyTransfers!Q176","v":0},{"$f":"[1]RelatedPartyTransfers!R176","v":0},{"$f":"[1]RelatedPartyTransfers!S176","v":0},{"$f":"[1]RelatedPartyTransfers!T176","v":0},{"$f":"[1]RelatedPartyTransfers!U176","v":0},{"$f":"[1]RelatedPartyTransfers!V176","v":0},{"$f":"[1]RelatedPartyTransfers!W176","v":0},{"$f":"[1]RelatedPartyTransfers!W176","v":0},0]
[0,0,{"$f":"IFERROR(INDEX((Settings!$M$17:$M$236),MATCH(RelatedPartyTransfers!G177,Settings!$AD$18:$AD$166,0)),0)","v":0},null,null,{"$f":"[1]RelatedPartyTransfers!F177","v":0},{"$f":"[1]RelatedPartyTransfers!G177","v":0},{"$f":"[1]RelatedPartyTransfers!H177","v":0},{"$f":"[1]RelatedPartyTransfers!I177","v":0},null,{"$f":"[1]RelatedPartyTransfers!M177","v":0},{"$f":"[1]RelatedPartyTransfers!N177","v":0},{"$f":"[1]RelatedPartyTransfers!O177","v":0},{"$f":"[1]RelatedPartyTransfers!P177","v":0},{"$f":"[1]RelatedPartyTransfers!Q177","v":0},{"$f":"[1]RelatedPartyTransfers!R177","v":0},{"$f":"[1]RelatedPartyTransfers!S177","v":0},{"$f":"[1]RelatedPartyTransfers!T177","v":0},{"$f":"[1]RelatedPartyTransfers!U177","v":0},{"$f":"[1]RelatedPartyTransfers!V177","v":0},{"$f":"[1]RelatedPartyTransfers!W177","v":0},{"$f":"[1]RelatedPartyTransfers!W177","v":0},0]
[0,0,{"$f":"IFERROR(INDEX((Settings!$M$17:$M$236),MATCH(RelatedPartyTransfers!G178,Settings!$AD$18:$AD$166,0)),0)","v":0},null,null,{"$f":"[1]RelatedPartyTransfers!F178","v":0},{"$f":"[1]RelatedPartyTransfers!G178","v":0},{"$f":"[1]RelatedPartyTransfers!H178","v":0},{"$f":"[1]RelatedPartyTransfers!I178","v":0},null,{"$f":"[1]RelatedPartyTransfers!M178","v":0},{"$f":"[1]RelatedPartyTransfers!N178","v":0},{"$f":"[1]RelatedPartyTransfers!O178","v":0},{"$f":"[1]RelatedPartyTransfers!P178","v":0},{"$f":"[1]RelatedPartyTransfers!Q178","v":0},{"$f":"[1]RelatedPartyTransfers!R178","v":0},{"$f":"[1]RelatedPartyTransfers!S178","v":0},{"$f":"[1]RelatedPartyTransfers!T178","v":0},{"$f":"[1]RelatedPartyTransfers!U178","v":0},{"$f":"[1]RelatedPartyTransfers!V178","v":0},{"$f":"[1]RelatedPartyTransfers!W178","v":0},{"$f":"[1]RelatedPartyTransfers!W178","v":0},0]
[0,0,{"$f":"IFERROR(INDEX((Settings!$M$17:$M$236),MATCH(RelatedPartyTransfers!G179,Settings!$AD$18:$AD$166,0)),0)","v":0},null,null,{"$f":"[1]RelatedPartyTransfers!F179","v":0},{"$f":"[1]RelatedPartyTransfers!G179","v":0},{"$f":"[1]RelatedPartyTransfers!H179","v":0},{"$f":"[1]RelatedPartyTransfers!I179","v":0},null,{"$f":"[1]RelatedPartyTransfers!M179","v":0},{"$f":"[1]RelatedPartyTransfers!N179","v":0},{"$f":"[1]RelatedPartyTransfers!O179","v":0},{"$f":"[1]RelatedPartyTransfers!P179","v":0},{"$f":"[1]RelatedPartyTransfers!Q179","v":0},{"$f":"[1]RelatedPartyTransfers!R179","v":0},{"$f":"[1]RelatedPartyTransfers!S179","v":0},{"$f":"[1]RelatedPartyTransfers!T179","v":0},{"$f":"[1]RelatedPartyTransfers!U179","v":0},{"$f":"[1]RelatedPartyTransfers!V179","v":0},{"$f":"[1]RelatedPartyTransfers!W179","v":0},{"$f":"[1]RelatedPartyTransfers!W179","v":0},0]
[0,0,{"$f":"IFERROR(INDEX((Settings!$M$17:$M$236),MATCH(RelatedPartyTransfers!G180,Settings!$AD$18:$AD$166,0)),0)","v":0},null,null,{"$f":"[1]RelatedPartyTransfers!F180","v":0},{"$f":"[1]RelatedPartyTransfers!G180","v":0},{"$f":"[1]RelatedPartyTransfers!H180","v":0},{"$f":"[1]RelatedPartyTransfers!I180","v":0},null,{"$f":"[1]RelatedPartyTransfers!M180","v":0},{"$f":"[1]RelatedPartyTransfers!N180","v":0},{"$f":"[1]RelatedPartyTransfers!O180","v":0},{"$f":"[1]RelatedPartyTransfers!P180","v":0},{"$f":"[1]RelatedPartyTransfers!Q180","v":0},{"$f":"[1]RelatedPartyTransfers!R180","v":0},{"$f":"[1]RelatedPartyTransfers!S180","v":0},{"$f":"[1]RelatedPartyTransfers!T180","v":0},{"$f":"[1]RelatedPartyTransfers!U180","v":0},{"$f":"[1]RelatedPartyTransfers!V180","v":0},{"$f":"[1]RelatedPartyTransfers!W180","v":0},{"$f":"[1]RelatedPartyTransfers!W180","v":0},0]
[0,0,{"$f":"IFERROR(INDEX((Settings!$M$17:$M$236),MATCH(RelatedPartyTransfers!G181,Settings!$AD$18:$AD$166,0)),0)","v":0},null,null,{"$f":"[1]RelatedPartyTransfers!F181","v":0},{"$f":"[1]RelatedPartyTransfers!G181","v":0},{"$f":"[1]RelatedPartyTransfers!H181","v":0},{"$f":"[1]RelatedPartyTransfers!I181","v":0},null,{"$f":"[1]RelatedPartyTransfers!M181","v":0},{"$f":"[1]RelatedPartyTransfers!N181","v":0},{"$f":"[1]RelatedPartyTransfers!O181","v":0},{"$f":"[1]RelatedPartyTransfers!P181","v":0},{"$f":"[1]RelatedPartyTransfers!Q181","v":0},{"$f":"[1]RelatedPartyTransfers!R181","v":0},{"$f":"[1]RelatedPartyTransfers!S181","v":0},{"$f":"[1]RelatedPartyTransfers!T181","v":0},{"$f":"[1]RelatedPartyTransfers!U181","v":0},{"$f":"[1]RelatedPartyTransfers!V181","v":0},{"$f":"[1]RelatedPartyTransfers!W181","v":0},{"$f":"[1]RelatedPartyTransfers!W181","v":0},0]
[0,0,{"$f":"IFERROR(INDEX((Settings!$M$17:$M$236),MATCH(RelatedPartyTransfers!G182,Settings!$AD$18:$AD$166,0)),0)","v":0},null,null,{"$f":"[1]RelatedPartyTransfers!F182","v":0},{"$f":"[1]RelatedPartyTransfers!G182","v":0},{"$f":"[1]RelatedPartyTransfers!H182","v":0},{"$f":"[1]RelatedPartyTransfers!I182","v":0},null,{"$f":"[1]RelatedPartyTransfers!M182","v":0},{"$f":"[1]RelatedPartyTransfers!N182","v":0},{"$f":"[1]RelatedPartyTransfers!O182","v":0},{"$f":"[1]RelatedPartyTransfers!P182","v":0},{"$f":"[1]RelatedPartyTransfers!Q182","v":0},{"$f":"[1]RelatedPartyTransfers!R182","v":0},{"$f":"[1]RelatedPartyTransfers!S182","v":0},{"$f":"[1]RelatedPartyTransfers!T182","v":0},{"$f":"[1]RelatedPartyTransfers!U182","v":0},{"$f":"[1]RelatedPartyTransfers!V182","v":0},{"$f":"[1]RelatedPartyTransfers!W182","v":0},{"$f":"[1]RelatedPartyTransfers!W182","v":0},0]
[0,0,{"$f":"IFERROR(INDEX((Settings!$M$17:$M$236),MATCH(RelatedPartyTransfers!G183,Settings!$AD$18:$AD$166,0)),0)","v":0},null,null,{"$f":"[1]RelatedPartyTransfers!F183","v":0},{"$f":"[1]RelatedPartyTransfers!G183","v":0},{"$f":"[1]RelatedPartyTransfers!H183","v":0},{"$f":"[1]RelatedPartyTransfers!I183","v":0},null,{"$f":"[1]RelatedPartyTransfers!M183","v":0},{"$f":"[1]RelatedPartyTransfers!N183","v":0},{"$f":"[1]RelatedPartyTransfers!O183","v":0},{"$f":"[1]RelatedPartyTransfers!P183","v":0},{"$f":"[1]RelatedPartyTransfers!Q183","v":0},{"$f":"[1]RelatedPartyTransfers!R183","v":0},{"$f":"[1]RelatedPartyTransfers!S183","v":0},{"$f":"[1]RelatedPartyTransfers!T183","v":0},{"$f":"[1]RelatedPartyTransfers!U183","v":0},{"$f":"[1]RelatedPartyTransfers!V183","v":0},{"$f":"[1]RelatedPartyTransfers!W183","v":0},{"$f":"[1]RelatedPartyTransfers!W183","v":0},0]
[0,0,{"$f":"IFERROR(INDEX((Settings!$M$17:$M$236),MATCH(RelatedPartyTransfers!G184,Settings!$AD$18:$AD$166,0)),0)","v":0},null,null,{"$f":"[1]RelatedPartyTransfers!F184","v":0},{"$f":"[1]RelatedPartyTransfers!G184","v":0},{"$f":"[1]RelatedPartyTransfers!H184","v":0},{"$f":"[1]RelatedPartyTransfers!I184","v":0},null,{"$f":"[1]RelatedPartyTransfers!M184","v":0},{"$f":"[1]RelatedPartyTransfers!N184","v":0},{"$f":"[1]RelatedPartyTransfers!O184","v":0},{"$f":"[1]RelatedPartyTransfers!P184","v":0},{"$f":"[1]RelatedPartyTransfers!Q184","v":0},{"$f":"[1]RelatedPartyTransfers!R184","v":0},{"$f":"[1]RelatedPartyTransfers!S184","v":0},{"$f":"[1]RelatedPartyTransfers!T184","v":0},{"$f":"[1]RelatedPartyTransfers!U184","v":0},{"$f":"[1]RelatedPartyTransfers!V184","v":0},{"$f":"[1]RelatedPartyTransfers!W184","v":0},{"$f":"[1]RelatedPartyTransfers!W184","v":0},0]
[0,0,{"$f":"IFERROR(INDEX((Settings!$M$17:$M$236),MATCH(RelatedPartyTransfers!G185,Settings!$AD$18:$AD$166,0)),0)","v":0},null,null,{"$f":"[1]RelatedPartyTransfers!F185","v":0},{"$f":"[1]RelatedPartyTransfers!G185","v":0},{"$f":"[1]RelatedPartyTransfers!H185","v":0},{"$f":"[1]RelatedPartyTransfers!I185","v":0},null,{"$f":"[1]RelatedPartyTransfers!M185","v":0},{"$f":"[1]RelatedPartyTransfers!N185","v":0},{"$f":"[1]RelatedPartyTransfers!O185","v":0},{"$f":"[1]RelatedPartyTransfers!P185","v":0},{"$f":"[1]RelatedPartyTransfers!Q185","v":0},{"$f":"[1]RelatedPartyTransfers!R185","v":0},{"$f":"[1]RelatedPartyTransfers!S185","v":0},{"$f":"[1]RelatedPartyTransfers!T185","v":0},{"$f":"[1]RelatedPartyTransfers!U185","v":0},{"$f":"[1]RelatedPartyTransfers!V185","v":0},{"$f":"[1]RelatedPartyTransfers!W185","v":0},{"$f":"[1]RelatedPartyTransfers!W185","v":0},0]
[0,0,{"$f":"IFERROR(INDEX((Settings!$M$17:$M$236),MATCH(RelatedPartyTransfers!G186,Settings!$AD$18:$AD$166,0)),0)","v":0},null,null,{"$f":"[1]RelatedPartyTransfers!F186","v":0},{"$f":"[1]RelatedPartyTransfers!G186","v":0},{"$f":"[1]RelatedPartyTransfers!H186","v":0},{"$f":"[1]RelatedPartyTransfers!I186","v":0},null,{"$f":"[1]RelatedPartyTransfers!M186","v":0},{"$f":"[1]RelatedPartyTransfers!N186","v":0},{"$f":"[1]RelatedPartyTransfers!O186","v":0},{"$f":"[1]RelatedPartyTransfers!P186","v":0},{"$f":"[1]RelatedPartyTransfers!Q186","v":0},{"$f":"[1]RelatedPartyTransfers!R186","v":0},{"$f":"[1]RelatedPartyTransfers!S186","v":0},{"$f":"[1]RelatedPartyTransfers!T186","v":0},{"$f":"[1]RelatedPartyTransfers!U186","v":0},{"$f":"[1]RelatedPartyTransfers!V186","v":0},{"$f":"[1]RelatedPartyTransfers!W186","v":0},{"$f":"[1]RelatedPartyTransfers!W186","v":0},0]
[0,0,{"$f":"IFERROR(INDEX((Settings!$M$17:$M$236),MATCH(RelatedPartyTransfers!G187,Settings!$AD$18:$AD$166,0)),0)","v":0},null,null,{"$f":"[1]RelatedPartyTransfers!F187","v":0},{"$f":"[1]RelatedPartyTransfers!G187","v":0},{"$f":"[1]RelatedPartyTransfers!H187","v":0},{"$f":"[1]RelatedPartyTransfers!I187","v":0},null,{"$f":"[1]RelatedPartyTransfers!M187","v":0},{"$f":"[1]RelatedPartyTransfers!N187","v":0},{"$f":"[1]RelatedPartyTransfers!O187","v":0},{"$f":"[1]RelatedPartyTransfers!P187","v":0},{"$f":"[1]RelatedPartyTransfers!Q187","v":0},{"$f":"[1]RelatedPartyTransfers!R187","v":0},{"$f":"[1]RelatedPartyTransfers!S187","v":0},{"$f":"[1]RelatedPartyTransfers!T187","v":0},{"$f":"[1]RelatedPartyTransfers!U187","v":0},{"$f":"[1]RelatedPartyTransfers!V187","v":0},{"$f":"[1]RelatedPartyTransfers!W187","v":0},{"$f":"[1]RelatedPartyTransfers!W187","v":0},0]
[0,0,{"$f":"IFERROR(INDEX((Settings!$M$17:$M$236),MATCH(RelatedPartyTransfers!G188,Settings!$AD$18:$AD$166,0)),0)","v":0},null,null,{"$f":"[1]RelatedPartyTransfers!F188","v":0},{"$f":"[1]RelatedPartyTransfers!G188","v":0},{"$f":"[1]RelatedPartyTransfers!H188","v":0},{"$f":"[1]RelatedPartyTransfers!I188","v":0},null,{"$f":"[1]RelatedPartyTransfers!M188","v":0},{"$f":"[1]RelatedPartyTransfers!N188","v":0},{"$f":"[1]RelatedPartyTransfers!O188","v":0},{"$f":"[1]RelatedPartyTransfers!P188","v":0},{"$f":"[1]RelatedPartyTransfers!Q188","v":0},{"$f":"[1]RelatedPartyTransfers!R188","v":0},{"$f":"[1]RelatedPartyTransfers!S188","v":0},{"$f":"[1]RelatedPartyTransfers!T188","v":0},{"$f":"[1]RelatedPartyTransfers!U188","v":0},{"$f":"[1]RelatedPartyTransfers!V188","v":0},{"$f":"[1]RelatedPartyTransfers!W188","v":0},{"$f":"[1]RelatedPartyTransfers!W188","v":0},0]
[0,0,{"$f":"IFERROR(INDEX((Settings!$M$17:$M$236),MATCH(RelatedPartyTransfers!G189,Settings!$AD$18:$AD$166,0)),0)","v":0},null,null,{"$f":"[1]RelatedPartyTransfers!F189","v":0},{"$f":"[1]RelatedPartyTransfers!G189","v":0},{"$f":"[1]RelatedPartyTransfers!H189","v":0},{"$f":"[1]RelatedPartyTransfers!I189","v":0},null,{"$f":"[1]RelatedPartyTransfers!M189","v":0},{"$f":"[1]RelatedPartyTransfers!N189","v":0},{"$f":"[1]RelatedPartyTransfers!O189","v":0},{"$f":"[1]RelatedPartyTransfers!P189","v":0},{"$f":"[1]RelatedPartyTransfers!Q189","v":0},{"$f":"[1]RelatedPartyTransfers!R189","v":0},{"$f":"[1]RelatedPartyTransfers!S189","v":0},{"$f":"[1]RelatedPartyTransfers!T189","v":0},{"$f":"[1]RelatedPartyTransfers!U189","v":0},{"$f":"[1]RelatedPartyTransfers!V189","v":0},{"$f":"[1]RelatedPartyTransfers!W189","v":0},{"$f":"[1]RelatedPartyTransfers!W189","v":0},0]
[0,0,{"$f":"IFERROR(INDEX((Settings!$M$17:$M$236),MATCH(RelatedPartyTransfers!G190,Settings!$AD$18:$AD$166,0)),0)","v":0},null,null,{"$f":"[1]RelatedPartyTransfers!F190","v":0},{"$f":"[1]RelatedPartyTransfers!G190","v":0},{"$f":"[1]RelatedPartyTransfers!H190","v":0},{"$f":"[1]RelatedPartyTransfers!I190","v":0},null,{"$f":"[1]RelatedPartyTransfers!M190","v":0},{"$f":"[1]RelatedPartyTransfers!N190","v":0},{"$f":"[1]RelatedPartyTransfers!O190","v":0},{"$f":"[1]RelatedPartyTransfers!P190","v":0},{"$f":"[1]RelatedPartyTransfers!Q190","v":0},{"$f":"[1]RelatedPartyTransfers!R190","v":0},{"$f":"[1]RelatedPartyTransfers!S190","v":0},{"$f":"[1]RelatedPartyTransfers!T190","v":0},{"$f":"[1]RelatedPartyTransfers!U190","v":0},{"$f":"[1]RelatedPartyTransfers!V190","v":0},{"$f":"[1]RelatedPartyTransfers!W190","v":0},{"$f":"[1]RelatedPartyTransfers!W190","v":0},0]
[0,0,{"$f":"IFERROR(INDEX((Settings!$M$17:$M$236),MATCH(RelatedPartyTransfers!G191,Settings!$AD$18:$AD$166,0)),0)","v":0},null,null,{"$f":"[1]RelatedPartyTransfers!F191","v":0},{"$f":"[1]RelatedPartyTransfers!G191","v":0},{"$f":"[1]RelatedPartyTransfers!H191","v":0},{"$f":"[1]RelatedPartyTransfers!I191","v":0},null,{"$f":"[1]RelatedPartyTransfers!M191","v":0},{"$f":"[1]RelatedPartyTransfers!N191","v":0},{"$f":"[1]RelatedPartyTransfers!O191","v":0},{"$f":"[1]RelatedPartyTransfers!P191","v":0},{"$f":"[1]RelatedPartyTransfers!Q191","v":0},{"$f":"[1]RelatedPartyTransfers!R191","v":0},{"$f":"[1]RelatedPartyTransfers!S191","v":0},{"$f":"[1]RelatedPartyTransfers!T191","v":0},{"$f":"[1]RelatedPartyTransfers!U191","v":0},{"$f":"[1]RelatedPartyTransfers!V191","v":0},{"$f":"[1]RelatedPartyTransfers!W191","v":0},{"$f":"[1]RelatedPartyTransfers!W191","v":0},0]
[0,0,{"$f":"IFERROR(INDEX((Settings!$M$17:$M$236),MATCH(RelatedPartyTransfers!G192,Settings!$AD$18:$AD$166,0)),0)","v":0},null,null,{"$f":"[1]RelatedPartyTransfers!F192","v":0},{"$f":"[1]RelatedPartyTransfers!G192","v":0},{"$f":"[1]RelatedPartyTransfers!H192","v":0},{"$f":"[1]RelatedPartyTransfers!I192","v":0},null,{"$f":"[1]RelatedPartyTransfers!M192","v":0},{"$f":"[1]RelatedPartyTransfers!N192","v":0},{"$f":"[1]RelatedPartyTransfers!O192","v":0},{"$f":"[1]RelatedPartyTransfers!P192","v":0},{"$f":"[1]RelatedPartyTransfers!Q192","v":0},{"$f":"[1]RelatedPartyTransfers!R192","v":0},{"$f":"[1]RelatedPartyTransfers!S192","v":0},{"$f":"[1]RelatedPartyTransfers!T192","v":0},{"$f":"[1]RelatedPartyTransfers!U192","v":0},{"$f":"[1]RelatedPartyTransfers!V192","v":0},{"$f":"[1]RelatedPartyTransfers!W192","v":0},{"$f":"[1]RelatedPartyTransfers!W192","v":0},0]
[0,0,{"$f":"IFERROR(INDEX((Settings!$M$17:$M$236),MATCH(RelatedPartyTransfers!G193,Settings!$AD$18:$AD$166,0)),0)","v":0},null,null,{"$f":"[1]RelatedPartyTransfers!F193","v":0},{"$f":"[1]RelatedPartyTransfers!G193","v":0},{"$f":"[1]RelatedPartyTransfers!H193","v":0},{"$f":"[1]RelatedPartyTransfers!I193","v":0},null,{"$f":"[1]RelatedPartyTransfers!M193","v":0},{"$f":"[1]RelatedPartyTransfers!N193","v":0},{"$f":"[1]RelatedPartyTransfers!O193","v":0},{"$f":"[1]RelatedPartyTransfers!P193","v":0},{"$f":"[1]RelatedPartyTransfers!Q193","v":0},{"$f":"[1]RelatedPartyTransfers!R193","v":0},{"$f":"[1]RelatedPartyTransfers!S193","v":0},{"$f":"[1]RelatedPartyTransfers!T193","v":0},{"$f":"[1]RelatedPartyTransfers!U193","v":0},{"$f":"[1]RelatedPartyTransfers!V193","v":0},{"$f":"[1]RelatedPartyTransfers!W193","v":0},{"$f":"[1]RelatedPartyTransfers!W193","v":0},0]
[0,0,{"$f":"IFERROR(INDEX((Settings!$M$17:$M$236),MATCH(RelatedPartyTransfers!G194,Settings!$AD$18:$AD$166,0)),0)","v":0},null,null,{"$f":"[1]RelatedPartyTransfers!F194","v":0},{"$f":"[1]RelatedPartyTransfers!G194","v":0},{"$f":"[1]RelatedPartyTransfers!H194","v":0},{"$f":"[1]RelatedPartyTransfers!I194","v":0},null,{"$f":"[1]RelatedPartyTransfers!M194","v":0},{"$f":"[1]RelatedPartyTransfers!N194","v":0},{"$f":"[1]RelatedPartyTransfers!O194","v":0},{"$f":"[1]RelatedPartyTransfers!P194","v":0},{"$f":"[1]RelatedPartyTransfers!Q194","v":0},{"$f":"[1]RelatedPartyTransfers!R194","v":0},{"$f":"[1]RelatedPartyTransfers!S194","v":0},{"$f":"[1]RelatedPartyTransfers!T194","v":0},{"$f":"[1]RelatedPartyTransfers!U194","v":0},{"$f":"[1]RelatedPartyTransfers!V194","v":0},{"$f":"[1]RelatedPartyTransfers!W194","v":0},{"$f":"[1]RelatedPartyTransfers!W194","v":0},0]
[0,0,{"$f":"IFERROR(INDEX((Settings!$M$17:$M$236),MATCH(RelatedPartyTransfers!G195,Settings!$AD$18:$AD$166,0)),0)","v":0},null,null,{"$f":"[1]RelatedPartyTransfers!F195","v":0},{"$f":"[1]RelatedPartyTransfers!G195","v":0},{"$f":"[1]RelatedPartyTransfers!H195","v":0},{"$f":"[1]RelatedPartyTransfers!I195","v":0},null,{"$f":"[1]RelatedPartyTransfers!M195","v":0},{"$f":"[1]RelatedPartyTransfers!N195","v":0},{"$f":"[1]RelatedPartyTransfers!O195","v":0},{"$f":"[1]RelatedPartyTransfers!P195","v":0},{"$f":"[1]RelatedPartyTransfers!Q195","v":0},{"$f":"[1]RelatedPartyTransfers!R195","v":0},{"$f":"[1]RelatedPartyTransfers!S195","v":0},{"$f":"[1]RelatedPartyTransfers!T195","v":0},{"$f":"[1]RelatedPartyTransfers!U195","v":0},{"$f":"[1]RelatedPartyTransfers!V195","v":0},{"$f":"[1]RelatedPartyTransfers!W195","v":0},{"$f":"[1]RelatedPartyTransfers!W195","v":0},0]
[0,0,{"$f":"IFERROR(INDEX((Settings!$M$17:$M$236),MATCH(RelatedPartyTransfers!G196,Settings!$AD$18:$AD$166,0)),0)","v":0},null,null,{"$f":"[1]RelatedPartyTransfers!F196","v":0},{"$f":"[1]RelatedPartyTransfers!G196","v":0},{"$f":"[1]RelatedPartyTransfers!H196","v":0},{"$f":"[1]RelatedPartyTransfers!I196","v":0},null,{"$f":"[1]RelatedPartyTransfers!M196","v":0},{"$f":"[1]RelatedPartyTransfers!N196","v":0},{"$f":"[1]RelatedPartyTransfers!O196","v":0},{"$f":"[1]RelatedPartyTransfers!P196","v":0},{"$f":"[1]RelatedPartyTransfers!Q196","v":0},{"$f":"[1]RelatedPartyTransfers!R196","v":0},{"$f":"[1]RelatedPartyTransfers!S196","v":0},{"$f":"[1]RelatedPartyTransfers!T196","v":0},{"$f":"[1]RelatedPartyTransfers!U196","v":0},{"$f":"[1]RelatedPartyTransfers!V196","v":0},{"$f":"[1]RelatedPartyTransfers!W196","v":0},{"$f":"[1]RelatedPartyTransfers!W196","v":0},0]
[0,0,{"$f":"IFERROR(INDEX((Settings!$M$17:$M$236),MATCH(RelatedPartyTransfers!G197,Settings!$AD$18:$AD$166,0)),0)","v":0},null,null,{"$f":"[1]RelatedPartyTransfers!F197","v":0},{"$f":"[1]RelatedPartyTransfers!G197","v":0},{"$f":"[1]RelatedPartyTransfers!H197","v":0},{"$f":"[1]RelatedPartyTransfers!I197","v":0},null,{"$f":"[1]RelatedPartyTransfers!M197","v":0},{"$f":"[1]RelatedPartyTransfers!N197","v":0},{"$f":"[1]RelatedPartyTransfers!O197","v":0},{"$f":"[1]RelatedPartyTransfers!P197","v":0},{"$f":"[1]RelatedPartyTransfers!Q197","v":0},{"$f":"[1]RelatedPartyTransfers!R197","v":0},{"$f":"[1]RelatedPartyTransfers!S197","v":0},{"$f":"[1]RelatedPartyTransfers!T197","v":0},{"$f":"[1]RelatedPartyTransfers!U197","v":0},{"$f":"[1]RelatedPartyTransfers!V197","v":0},{"$f":"[1]RelatedPartyTransfers!W197","v":0},{"$f":"[1]RelatedPartyTransfers!W197","v":0},0]
[0,0,{"$f":"IFERROR(INDEX((Settings!$M$17:$M$236),MATCH(RelatedPartyTransfers!G198,Settings!$AD$18:$AD$166,0)),0)","v":0},null,null,{"$f":"[1]RelatedPartyTransfers!F198","v":0},{"$f":"[1]RelatedPartyTransfers!G198","v":0},{"$f":"[1]RelatedPartyTransfers!H198","v":0},{"$f":"[1]RelatedPartyTransfers!I198","v":0},null,{"$f":"[1]RelatedPartyTransfers!M198","v":0},{"$f":"[1]RelatedPartyTransfers!N198","v":0},{"$f":"[1]RelatedPartyTransfers!O198","v":0},{"$f":"[1]RelatedPartyTransfers!P198","v":0},{"$f":"[1]RelatedPartyTransfers!Q198","v":0},{"$f":"[1]RelatedPartyTransfers!R198","v":0},{"$f":"[1]RelatedPartyTransfers!S198","v":0},{"$f":"[1]RelatedPartyTransfers!T198","v":0},{"$f":"[1]RelatedPartyTransfers!U198","v":0},{"$f":"[1]RelatedPartyTransfers!V198","v":0},{"$f":"[1]RelatedPartyTransfers!W198","v":0},{"$f":"[1]RelatedPartyTransfers!W198","v":0},0]
[0,0,{"$f":"IFERROR(INDEX((Settings!$M$17:$M$236),MATCH(RelatedPartyTransfers!G199,Settings!$AD$18:$AD$166,0)),0)","v":0},null,null,{"$f":"[1]RelatedPartyTransfers!F199","v":0},{"$f":"[1]RelatedPartyTransfers!G199","v":0},{"$f":"[1]RelatedPartyTransfers!H199","v":0},{"$f":"[1]RelatedPartyTransfers!I199","v":0},null,{"$f":"[1]RelatedPartyTransfers!M199","v":0},{"$f":"[1]RelatedPartyTransfers!N199","v":0},{"$f":"[1]RelatedPartyTransfers!O199","v":0},{"$f":"[1]RelatedPartyTransfers!P199","v":0},{"$f":"[1]RelatedPartyTransfers!Q199","v":0},{"$f":"[1]RelatedPartyTransfers!R199","v":0},{"$f":"[1]RelatedPartyTransfers!S199","v":0},{"$f":"[1]RelatedPartyTransfers!T199","v":0},{"$f":"[1]RelatedPartyTransfers!U199","v":0},{"$f":"[1]RelatedPartyTransfers!V199","v":0},{"$f":"[1]RelatedPartyTransfers!W199","v":0},{"$f":"[1]RelatedPartyTransfers!W199","v":0},0]
[0,0,{"$f":"IFERROR(INDEX((Settings!$M$17:$M$236),MATCH(RelatedPartyTransfers!G200,Settings!$AD$18:$AD$166,0)),0)","v":0},null,null,{"$f":"[1]RelatedPartyTransfers!F200","v":0},{"$f":"[1]RelatedPartyTransfers!G200","v":0},{"$f":"[1]RelatedPartyTransfers!H200","v":0},{"$f":"[1]RelatedPartyTransfers!I200","v":0},null,{"$f":"[1]RelatedPartyTransfers!M200","v":0},{"$f":"[1]RelatedPartyTransfers!N200","v":0},{"$f":"[1]RelatedPartyTransfers!O200","v":0},{"$f":"[1]RelatedPartyTransfers!P200","v":0},{"$f":"[1]RelatedPartyTransfers!Q200","v":0},{"$f":"[1]RelatedPartyTransfers!R200","v":0},{"$f":"[1]RelatedPartyTransfers!S200","v":0},{"$f":"[1]RelatedPartyTransfers!T200","v":0},{"$f":"[1]RelatedPartyTransfers!U200","v":0},{"$f":"[1]RelatedPartyTransfers!V200","v":0},{"$f":"[1]RelatedPartyTransfers!W200","v":0},{"$f":"[1]RelatedPartyTransfers!W200","v":0},0]
[0,0,{"$f":"IFERROR(INDEX((Settings!$M$17:$M$236),MATCH(RelatedPartyTransfers!G201,Settings!$AD$18:$AD$166,0)),0)","v":0},null,null,{"$f":"[1]RelatedPartyTransfers!F201","v":0},{"$f":"[1]RelatedPartyTransfers!G201","v":0},{"$f":"[1]RelatedPartyTransfers!H201","v":0},{"$f":"[1]RelatedPartyTransfers!I201","v":0},null,{"$f":"[1]RelatedPartyTransfers!M201","v":0},{"$f":"[1]RelatedPartyTransfers!N201","v":0},{"$f":"[1]RelatedPartyTransfers!O201","v":0},{"$f":"[1]RelatedPartyTransfers!P201","v":0},{"$f":"[1]RelatedPartyTransfers!Q201","v":0},{"$f":"[1]RelatedPartyTransfers!R201","v":0},{"$f":"[1]RelatedPartyTransfers!S201","v":0},{"$f":"[1]RelatedPartyTransfers!T201","v":0},{"$f":"[1]RelatedPartyTransfers!U201","v":0},{"$f":"[1]RelatedPartyTransfers!V201","v":0},{"$f":"[1]RelatedPartyTransfers!W201","v":0},{"$f":"[1]RelatedPartyTransfers!W201","v":0},0]
[0,0,{"$f":"IFERROR(INDEX((Settings!$M$17:$M$236),MATCH(RelatedPartyTransfers!G202,Settings!$AD$18:$AD$166,0)),0)","v":0},null,null,{"$f":"[1]RelatedPartyTransfers!F202","v":0},{"$f":"[1]RelatedPartyTransfers!G202","v":0},{"$f":"[1]RelatedPartyTransfers!H202","v":0},{"$f":"[1]RelatedPartyTransfers!I202","v":0},null,{"$f":"[1]RelatedPartyTransfers!M202","v":0},{"$f":"[1]RelatedPartyTransfers!N202","v":0},{"$f":"[1]RelatedPartyTransfers!O202","v":0},{"$f":"[1]RelatedPartyTransfers!P202","v":0},{"$f":"[1]RelatedPartyTransfers!Q202","v":0},{"$f":"[1]RelatedPartyTransfers!R202","v":0},{"$f":"[1]RelatedPartyTransfers!S202","v":0},{"$f":"[1]RelatedPartyTransfers!T202","v":0},{"$f":"[1]RelatedPartyTransfers!U202","v":0},{"$f":"[1]RelatedPartyTransfers!V202","v":0},{"$f":"[1]RelatedPartyTransfers!W202","v":0},{"$f":"[1]RelatedPartyTransfers!W202","v":0},0]
[0,{"$f":"IF($G203=$G$7,1,0)","v":0},{"$f":"IFERROR(INDEX((Settings!$M$17:$M$236),MATCH(RelatedPartyTransfers!G203,Settings!$AD$18:$AD$166,0)),0)","v":0},null,null,{"$f":"[1]RelatedPartyTransfers!F203","v":0},{"$f":"[1]RelatedPartyTransfers!G203","v":0},{"$f":"[1]RelatedPartyTransfers!H203","v":0},{"$f":"[1]RelatedPartyTransfers!I203","v":0},null,{"$f":"[1]RelatedPartyTransfers!M203","v":0},{"$f":"[1]RelatedPartyTransfers!N203","v":0},{"$f":"[1]RelatedPartyTransfers!O203","v":0},{"$f":"[1]RelatedPartyTransfers!P203","v":0},{"$f":"[1]RelatedPartyTransfers!Q203","v":0},{"$f":"[1]RelatedPartyTransfers!R203","v":0},{"$f":"[1]RelatedPartyTransfers!S203","v":0},{"$f":"[1]RelatedPartyTransfers!T203","v":0},{"$f":"[1]RelatedPartyTransfers!U203","v":0},{"$f":"[1]RelatedPartyTransfers!V203","v":0},{"$f":"[1]RelatedPartyTransfers!W203","v":0},{"$f":"[1]RelatedPartyTransfers!W203","v":0},0]
[{"$f":"IF(SUM(K204:W204)>0,1,0)","v":0},0,{"$f":"IFERROR(INDEX((Settings!$M$17:$M$236),MATCH(RelatedPartyTransfers!G204,Settings!$AD$18:$AD$166,0)),0)","v":0},null,null,{"$f":"[1]RelatedPartyTransfers!F204","v":0},{"$f":"[1]RelatedPartyTransfers!G204","v":0},{"$f":"[1]RelatedPartyTransfers!H204","v":0},{"$f":"[1]RelatedPartyTransfers!I204","v":0},null,{"$f":"[1]RelatedPartyTransfers!M204","v":0},{"$f":"[1]RelatedPartyTransfers!N204","v":0},{"$f":"[1]RelatedPartyTransfers!O204","v":0},{"$f":"[1]RelatedPartyTransfers!P204","v":0},{"$f":"[1]RelatedPartyTransfers!Q204","v":0},{"$f":"[1]RelatedPartyTransfers!R204","v":0},{"$f":"[1]RelatedPartyTransfers!S204","v":0},{"$f":"[1]RelatedPartyTransfers!T204","v":0},{"$f":"[1]RelatedPartyTransfers!U204","v":0},{"$f":"[1]RelatedPartyTransfers!V204","v":0},{"$f":"[1]RelatedPartyTransfers!W204","v":0},{"$f":"[1]RelatedPartyTransfers!W204","v":0},0]
[0,0,{"$f":"IFERROR(INDEX((Settings!$M$17:$M$236),MATCH(RelatedPartyTransfers!G205,Settings!$AD$18:$AD$166,0)),0)","v":0},null,null,{"$f":"[1]RelatedPartyTransfers!F205","v":0},{"$f":"[1]RelatedPartyTransfers!G205","v":0},{"$f":"[1]RelatedPartyTransfers!H205","v":0},{"$f":"[1]RelatedPartyTransfers!I205","v":0},null,{"$f":"[1]RelatedPartyTransfers!M205","v":0},{"$f":"[1]RelatedPartyTransfers!N205","v":0},{"$f":"[1]RelatedPartyTransfers!O205","v":0},{"$f":"[1]RelatedPartyTransfers!P205","v":0},{"$f":"[1]RelatedPartyTransfers!Q205","v":0},{"$f":"[1]RelatedPartyTransfers!R205","v":0},{"$f":"[1]RelatedPartyTransfers!S205","v":0},{"$f":"[1]RelatedPartyTransfers!T205","v":0},{"$f":"[1]RelatedPartyTransfers!U205","v":0},{"$f":"[1]RelatedPartyTransfers!V205","v":0},{"$f":"[1]RelatedPartyTransfers!W205","v":0},{"$f":"[1]RelatedPartyTransfers!W205","v":0},0]
[0,0,{"$f":"IFERROR(INDEX((Settings!$M$17:$M$236),MATCH(RelatedPartyTransfers!G206,Settings!$AD$18:$AD$166,0)),0)","v":0},null,null,{"$f":"[1]RelatedPartyTransfers!F206","v":0},{"$f":"[1]RelatedPartyTransfers!G206","v":0},{"$f":"[1]RelatedPartyTransfers!H206","v":0},{"$f":"[1]RelatedPartyTransfers!I206","v":0},null,{"$f":"[1]RelatedPartyTransfers!M206","v":0},{"$f":"[1]RelatedPartyTransfers!N206","v":0},{"$f":"[1]RelatedPartyTransfers!O206","v":0},{"$f":"[1]RelatedPartyTransfers!P206","v":0},{"$f":"[1]RelatedPartyTransfers!Q206","v":0},{"$f":"[1]RelatedPartyTransfers!R206","v":0},{"$f":"[1]RelatedPartyTransfers!S206","v":0},{"$f":"[1]RelatedPartyTransfers!T206","v":0},{"$f":"[1]RelatedPartyTransfers!U206","v":0},{"$f":"[1]RelatedPartyTransfers!V206","v":0},{"$f":"[1]RelatedPartyTransfers!W206","v":0},{"$f":"[1]RelatedPartyTransfers!W206","v":0},0]
[0,0,{"$f":"IFERROR(INDEX((Settings!$M$17:$M$236),MATCH(RelatedPartyTransfers!G207,Settings!$AD$18:$AD$166,0)),0)","v":0},null,null,{"$f":"[1]RelatedPartyTransfers!F207","v":0},{"$f":"[1]RelatedPartyTransfers!G207","v":0},{"$f":"[1]RelatedPartyTransfers!H207","v":0},{"$f":"[1]RelatedPartyTransfers!I207","v":0},null,{"$f":"[1]RelatedPartyTransfers!M207","v":0},{"$f":"[1]RelatedPartyTransfers!N207","v":0},{"$f":"[1]RelatedPartyTransfers!O207","v":0},{"$f":"[1]RelatedPartyTransfers!P207","v":0},{"$f":"[1]RelatedPartyTransfers!Q207","v":0},{"$f":"[1]RelatedPartyTransfers!R207","v":0},{"$f":"[1]RelatedPartyTransfers!S207","v":0},{"$f":"[1]RelatedPartyTransfers!T207","v":0},{"$f":"[1]RelatedPartyTransfers!U207","v":0},{"$f":"[1]RelatedPartyTransfers!V207","v":0},{"$f":"[1]RelatedPartyTransfers!W207","v":0},{"$f":"[1]RelatedPartyTransfers!W207","v":0},0]
[0,0,{"$f":"IFERROR(INDEX((Settings!$M$17:$M$236),MATCH(RelatedPartyTransfers!G208,Settings!$AD$18:$AD$166,0)),0)","v":0},null,null,{"$f":"[1]RelatedPartyTransfers!F208","v":0},{"$f":"[1]RelatedPartyTransfers!G208","v":0},{"$f":"[1]RelatedPartyTransfers!H208","v":0},{"$f":"[1]RelatedPartyTransfers!I208","v":0},null,{"$f":"[1]RelatedPartyTransfers!M208","v":0},{"$f":"[1]RelatedPartyTransfers!N208","v":0},{"$f":"[1]RelatedPartyTransfers!O208","v":0},{"$f":"[1]RelatedPartyTransfers!P208","v":0},{"$f":"[1]RelatedPartyTransfers!Q208","v":0},{"$f":"[1]RelatedPartyTransfers!R208","v":0},{"$f":"[1]RelatedPartyTransfers!S208","v":0},{"$f":"[1]RelatedPartyTransfers!T208","v":0},{"$f":"[1]RelatedPartyTransfers!U208","v":0},{"$f":"[1]RelatedPartyTransfers!V208","v":0},{"$f":"[1]RelatedPartyTransfers!W208","v":0},{"$f":"[1]RelatedPartyTransfers!W208","v":0},0]
[0,0,{"$f":"IFERROR(INDEX((Settings!$M$17:$M$236),MATCH(RelatedPartyTransfers!G209,Settings!$AD$18:$AD$166,0)),0)","v":0},null,null,{"$f":"[1]RelatedPartyTransfers!F209","v":0},{"$f":"[1]RelatedPartyTransfers!G209","v":0},{"$f":"[1]RelatedPartyTransfers!H209","v":0},{"$f":"[1]RelatedPartyTransfers!I209","v":0},null,{"$f":"[1]RelatedPartyTransfers!M209","v":0},{"$f":"[1]RelatedPartyTransfers!N209","v":0},{"$f":"[1]RelatedPartyTransfers!O209","v":0},{"$f":"[1]RelatedPartyTransfers!P209","v":0},{"$f":"[1]RelatedPartyTransfers!Q209","v":0},{"$f":"[1]RelatedPartyTransfers!R209","v":0},{"$f":"[1]RelatedPartyTransfers!S209","v":0},{"$f":"[1]RelatedPartyTransfers!T209","v":0},{"$f":"[1]RelatedPartyTransfers!U209","v":0},{"$f":"[1]RelatedPartyTransfers!V209","v":0},{"$f":"[1]RelatedPartyTransfers!W209","v":0},{"$f":"[1]RelatedPartyTransfers!W209","v":0},0]
[0,0,{"$f":"IFERROR(INDEX((Settings!$M$17:$M$236),MATCH(RelatedPartyTransfers!G210,Settings!$AD$18:$AD$166,0)),0)","v":0},null,null,{"$f":"[1]RelatedPartyTransfers!F210","v":0},{"$f":"[1]RelatedPartyTransfers!G210","v":0},{"$f":"[1]RelatedPartyTransfers!H210","v":0},{"$f":"[1]RelatedPartyTransfers!I210","v":0},null,{"$f":"[1]RelatedPartyTransfers!M210","v":0},{"$f":"[1]RelatedPartyTransfers!N210","v":0},{"$f":"[1]RelatedPartyTransfers!O210","v":0},{"$f":"[1]RelatedPartyTransfers!P210","v":0},{"$f":"[1]RelatedPartyTransfers!Q210","v":0},{"$f":"[1]RelatedPartyTransfers!R210","v":0},{"$f":"[1]RelatedPartyTransfers!S210","v":0},{"$f":"[1]RelatedPartyTransfers!T210","v":0},{"$f":"[1]RelatedPartyTransfers!U210","v":0},{"$f":"[1]RelatedPartyTransfers!V210","v":0},{"$f":"[1]RelatedPartyTransfers!W210","v":0},{"$f":"[1]RelatedPartyTransfers!W210","v":0},0]
[0,0,{"$f":"IFERROR(INDEX((Settings!$M$17:$M$236),MATCH(RelatedPartyTransfers!G211,Settings!$AD$18:$AD$166,0)),0)","v":0},null,null,{"$f":"[1]RelatedPartyTransfers!F211","v":0},{"$f":"[1]RelatedPartyTransfers!G211","v":0},{"$f":"[1]RelatedPartyTransfers!H211","v":0},{"$f":"[1]RelatedPartyTransfers!I211","v":0},null,{"$f":"[1]RelatedPartyTransfers!M211","v":0},{"$f":"[1]RelatedPartyTransfers!N211","v":0},{"$f":"[1]RelatedPartyTransfers!O211","v":0},{"$f":"[1]RelatedPartyTransfers!P211","v":0},{"$f":"[1]RelatedPartyTransfers!Q211","v":0},{"$f":"[1]RelatedPartyTransfers!R211","v":0},{"$f":"[1]RelatedPartyTransfers!S211","v":0},{"$f":"[1]RelatedPartyTransfers!T211","v":0},{"$f":"[1]RelatedPartyTransfers!U211","v":0},{"$f":"[1]RelatedPartyTransfers!V211","v":0},{"$f":"[1]RelatedPartyTransfers!W211","v":0},{"$f":"[1]RelatedPartyTransfers!W211","v":0},0]
[0,0,{"$f":"IFERROR(INDEX((Settings!$M$17:$M$236),MATCH(RelatedPartyTransfers!G212,Settings!$AD$18:$AD$166,0)),0)","v":0},null,null,{"$f":"[1]RelatedPartyTransfers!F212","v":0},{"$f":"[1]RelatedPartyTransfers!G212","v":0},{"$f":"[1]RelatedPartyTransfers!H212","v":0},{"$f":"[1]RelatedPartyTransfers!I212","v":0},null,{"$f":"[1]RelatedPartyTransfers!M212","v":0},{"$f":"[1]RelatedPartyTransfers!N212","v":0},{"$f":"[1]RelatedPartyTransfers!O212","v":0},{"$f":"[1]RelatedPartyTransfers!P212","v":0},{"$f":"[1]RelatedPartyTransfers!Q212","v":0},{"$f":"[1]RelatedPartyTransfers!R212","v":0},{"$f":"[1]RelatedPartyTransfers!S212","v":0},{"$f":"[1]RelatedPartyTransfers!T212","v":0},{"$f":"[1]RelatedPartyTransfers!U212","v":0},{"$f":"[1]RelatedPartyTransfers!V212","v":0},{"$f":"[1]RelatedPartyTransfers!W212","v":0},{"$f":"[1]RelatedPartyTransfers!W212","v":0},0]
[0,0,{"$f":"IFERROR(INDEX((Settings!$M$17:$M$236),MATCH(RelatedPartyTransfers!G213,Settings!$AD$18:$AD$166,0)),0)","v":0},null,null,{"$f":"[1]RelatedPartyTransfers!F213","v":0},{"$f":"[1]RelatedPartyTransfers!G213","v":0},{"$f":"[1]RelatedPartyTransfers!H213","v":0},{"$f":"[1]RelatedPartyTransfers!I213","v":0},null,{"$f":"[1]RelatedPartyTransfers!M213","v":0},{"$f":"[1]RelatedPartyTransfers!N213","v":0},{"$f":"[1]RelatedPartyTransfers!O213","v":0},{"$f":"[1]RelatedPartyTransfers!P213","v":0},{"$f":"[1]RelatedPartyTransfers!Q213","v":0},{"$f":"[1]RelatedPartyTransfers!R213","v":0},{"$f":"[1]RelatedPartyTransfers!S213","v":0},{"$f":"[1]RelatedPartyTransfers!T213","v":0},{"$f":"[1]RelatedPartyTransfers!U213","v":0},{"$f":"[1]RelatedPartyTransfers!V213","v":0},{"$f":"[1]RelatedPartyTransfers!W213","v":0},{"$f":"[1]RelatedPartyTransfers!W213","v":0},0]
[0,0,{"$f":"IFERROR(INDEX((Settings!$M$17:$M$236),MATCH(RelatedPartyTransfers!G214,Settings!$AD$18:$AD$166,0)),0)","v":0},null,null,{"$f":"[1]RelatedPartyTransfers!F214","v":0},{"$f":"[1]RelatedPartyTransfers!G214","v":0},{"$f":"[1]RelatedPartyTransfers!H214","v":0},{"$f":"[1]RelatedPartyTransfers!I214","v":0},null,{"$f":"[1]RelatedPartyTransfers!M214","v":0},{"$f":"[1]RelatedPartyTransfers!N214","v":0},{"$f":"[1]RelatedPartyTransfers!O214","v":0},{"$f":"[1]RelatedPartyTransfers!P214","v":0},{"$f":"[1]RelatedPartyTransfers!Q214","v":0},{"$f":"[1]RelatedPartyTransfers!R214","v":0},{"$f":"[1]RelatedPartyTransfers!S214","v":0},{"$f":"[1]RelatedPartyTransfers!T214","v":0},{"$f":"[1]RelatedPartyTransfers!U214","v":0},{"$f":"[1]RelatedPartyTransfers!V214","v":0},{"$f":"[1]RelatedPartyTransfers!W214","v":0},{"$f":"[1]RelatedPartyTransfers!W214","v":0},0]
[0,0,{"$f":"IFERROR(INDEX((Settings!$M$17:$M$236),MATCH(RelatedPartyTransfers!G215,Settings!$AD$18:$AD$166,0)),0)","v":0},null,null,{"$f":"[1]RelatedPartyTransfers!F215","v":0},{"$f":"[1]RelatedPartyTransfers!G215","v":0},{"$f":"[1]RelatedPartyTransfers!H215","v":0},{"$f":"[1]RelatedPartyTransfers!I215","v":0},null,{"$f":"[1]RelatedPartyTransfers!M215","v":0},{"$f":"[1]RelatedPartyTransfers!N215","v":0},{"$f":"[1]RelatedPartyTransfers!O215","v":0},{"$f":"[1]RelatedPartyTransfers!P215","v":0},{"$f":"[1]RelatedPartyTransfers!Q215","v":0},{"$f":"[1]RelatedPartyTransfers!R215","v":0},{"$f":"[1]RelatedPartyTransfers!S215","v":0},{"$f":"[1]RelatedPartyTransfers!T215","v":0},{"$f":"[1]RelatedPartyTransfers!U215","v":0},{"$f":"[1]RelatedPartyTransfers!V215","v":0},{"$f":"[1]RelatedPartyTransfers!W215","v":0},{"$f":"[1]RelatedPartyTransfers!W215","v":0},0]
[0,0,{"$f":"IFERROR(INDEX((Settings!$M$17:$M$236),MATCH(RelatedPartyTransfers!G216,Settings!$AD$18:$AD$166,0)),0)","v":0},null,null,{"$f":"[1]RelatedPartyTransfers!F216","v":0},{"$f":"[1]RelatedPartyTransfers!G216","v":0},{"$f":"[1]RelatedPartyTransfers!H216","v":0},{"$f":"[1]RelatedPartyTransfers!I216","v":0},null,{"$f":"[1]RelatedPartyTransfers!M216","v":0},{"$f":"[1]RelatedPartyTransfers!N216","v":0},{"$f":"[1]RelatedPartyTransfers!O216","v":0},{"$f":"[1]RelatedPartyTransfers!P216","v":0},{"$f":"[1]RelatedPartyTransfers!Q216","v":0},{"$f":"[1]RelatedPartyTransfers!R216","v":0},{"$f":"[1]RelatedPartyTransfers!S216","v":0},{"$f":"[1]RelatedPartyTransfers!T216","v":0},{"$f":"[1]RelatedPartyTransfers!U216","v":0},{"$f":"[1]RelatedPartyTransfers!V216","v":0},{"$f":"[1]RelatedPartyTransfers!W216","v":0},{"$f":"[1]RelatedPartyTransfers!W216","v":0},0]
[0,0,{"$f":"IFERROR(INDEX((Settings!$M$17:$M$236),MATCH(RelatedPartyTransfers!G217,Settings!$AD$18:$AD$166,0)),0)","v":0},null,null,{"$f":"[1]RelatedPartyTransfers!F217","v":0},{"$f":"[1]RelatedPartyTransfers!G217","v":0},{"$f":"[1]RelatedPartyTransfers!H217","v":0},{"$f":"[1]RelatedPartyTransfers!I217","v":0},null,{"$f":"[1]RelatedPartyTransfers!M217","v":0},{"$f":"[1]RelatedPartyTransfers!N217","v":0},{"$f":"[1]RelatedPartyTransfers!O217","v":0},{"$f":"[1]RelatedPartyTransfers!P217","v":0},{"$f":"[1]RelatedPartyTransfers!Q217","v":0},{"$f":"[1]RelatedPartyTransfers!R217","v":0},{"$f":"[1]RelatedPartyTransfers!S217","v":0},{"$f":"[1]RelatedPartyTransfers!T217","v":0},{"$f":"[1]RelatedPartyTransfers!U217","v":0},{"$f":"[1]RelatedPartyTransfers!V217","v":0},{"$f":"[1]RelatedPartyTransfers!W217","v":0},{"$f":"[1]RelatedPartyTransfers!W217","v":0},0]
[0,0,{"$f":"IFERROR(INDEX((Settings!$M$17:$M$236),MATCH(RelatedPartyTransfers!G218,Settings!$AD$18:$AD$166,0)),0)","v":0},null,null,{"$f":"[1]RelatedPartyTransfers!F218","v":0},{"$f":"[1]RelatedPartyTransfers!G218","v":0},{"$f":"[1]RelatedPartyTransfers!H218","v":0},{"$f":"[1]RelatedPartyTransfers!I218","v":0},null,{"$f":"[1]RelatedPartyTransfers!M218","v":0},{"$f":"[1]RelatedPartyTransfers!N218","v":0},{"$f":"[1]RelatedPartyTransfers!O218","v":0},{"$f":"[1]RelatedPartyTransfers!P218","v":0},{"$f":"[1]RelatedPartyTransfers!Q218","v":0},{"$f":"[1]RelatedPartyTransfers!R218","v":0},{"$f":"[1]RelatedPartyTransfers!S218","v":0},{"$f":"[1]RelatedPartyTransfers!T218","v":0},{"$f":"[1]RelatedPartyTransfers!U218","v":0},{"$f":"[1]RelatedPartyTransfers!V218","v":0},{"$f":"[1]RelatedPartyTransfers!W218","v":0},{"$f":"[1]RelatedPartyTransfers!W218","v":0},0]
[0,0,{"$f":"IFERROR(INDEX((Settings!$M$17:$M$236),MATCH(RelatedPartyTransfers!G219,Settings!$AD$18:$AD$166,0)),0)","v":0},null,null,{"$f":"[1]RelatedPartyTransfers!F219","v":0},{"$f":"[1]RelatedPartyTransfers!G219","v":0},{"$f":"[1]RelatedPartyTransfers!H219","v":0},{"$f":"[1]RelatedPartyTransfers!I219","v":0},null,{"$f":"[1]RelatedPartyTransfers!M219","v":0},{"$f":"[1]RelatedPartyTransfers!N219","v":0},{"$f":"[1]RelatedPartyTransfers!O219","v":0},{"$f":"[1]RelatedPartyTransfers!P219","v":0},{"$f":"[1]RelatedPartyTransfers!Q219","v":0},{"$f":"[1]RelatedPartyTransfers!R219","v":0},{"$f":"[1]RelatedPartyTransfers!S219","v":0},{"$f":"[1]RelatedPartyTransfers!T219","v":0},{"$f":"[1]RelatedPartyTransfers!U219","v":0},{"$f":"[1]RelatedPartyTransfers!V219","v":0},{"$f":"[1]RelatedPartyTransfers!W219","v":0},{"$f":"[1]RelatedPartyTransfers!W219","v":0},0]
[0,0,{"$f":"IFERROR(INDEX((Settings!$M$17:$M$236),MATCH(RelatedPartyTransfers!G220,Settings!$AD$18:$AD$166,0)),0)","v":0},null,null,{"$f":"[1]RelatedPartyTransfers!F220","v":0},{"$f":"[1]RelatedPartyTransfers!G220","v":0},{"$f":"[1]RelatedPartyTransfers!H220","v":0},{"$f":"[1]RelatedPartyTransfers!I220","v":0},null,{"$f":"[1]RelatedPartyTransfers!M220","v":0},{"$f":"[1]RelatedPartyTransfers!N220","v":0},{"$f":"[1]RelatedPartyTransfers!O220","v":0},{"$f":"[1]RelatedPartyTransfers!P220","v":0},{"$f":"[1]RelatedPartyTransfers!Q220","v":0},{"$f":"[1]RelatedPartyTransfers!R220","v":0},{"$f":"[1]RelatedPartyTransfers!S220","v":0},{"$f":"[1]RelatedPartyTransfers!T220","v":0},{"$f":"[1]RelatedPartyTransfers!U220","v":0},{"$f":"[1]RelatedPartyTransfers!V220","v":0},{"$f":"[1]RelatedPartyTransfers!W220","v":0},{"$f":"[1]RelatedPartyTransfers!W220","v":0},0]
[0,0,{"$f":"IFERROR(INDEX((Settings!$M$17:$M$236),MATCH(RelatedPartyTransfers!G221,Settings!$AD$18:$AD$166,0)),0)","v":0},null,null,{"$f":"[1]RelatedPartyTransfers!F221","v":0},{"$f":"[1]RelatedPartyTransfers!G221","v":0},{"$f":"[1]RelatedPartyTransfers!H221","v":0},{"$f":"[1]RelatedPartyTransfers!I221","v":0},null,{"$f":"[1]RelatedPartyTransfers!M221","v":0},{"$f":"[1]RelatedPartyTransfers!N221","v":0},{"$f":"[1]RelatedPartyTransfers!O221","v":0},{"$f":"[1]RelatedPartyTransfers!P221","v":0},{"$f":"[1]RelatedPartyTransfers!Q221","v":0},{"$f":"[1]RelatedPartyTransfers!R221","v":0},{"$f":"[1]RelatedPartyTransfers!S221","v":0},{"$f":"[1]RelatedPartyTransfers!T221","v":0},{"$f":"[1]RelatedPartyTransfers!U221","v":0},{"$f":"[1]RelatedPartyTransfers!V221","v":0},{"$f":"[1]RelatedPartyTransfers!W221","v":0},{"$f":"[1]RelatedPartyTransfers!W221","v":0},0]
[0,0,{"$f":"IFERROR(INDEX((Settings!$M$17:$M$236),MATCH(RelatedPartyTransfers!G222,Settings!$AD$18:$AD$166,0)),0)","v":0},null,null,{"$f":"[1]RelatedPartyTransfers!F222","v":0},{"$f":"[1]RelatedPartyTransfers!G222","v":0},{"$f":"[1]RelatedPartyTransfers!H222","v":0},{"$f":"[1]RelatedPartyTransfers!I222","v":0},null,{"$f":"[1]RelatedPartyTransfers!M222","v":0},{"$f":"[1]RelatedPartyTransfers!N222","v":0},{"$f":"[1]RelatedPartyTransfers!O222","v":0},{"$f":"[1]RelatedPartyTransfers!P222","v":0},{"$f":"[1]RelatedPartyTransfers!Q222","v":0},{"$f":"[1]RelatedPartyTransfers!R222","v":0},{"$f":"[1]RelatedPartyTransfers!S222","v":0},{"$f":"[1]RelatedPartyTransfers!T222","v":0},{"$f":"[1]RelatedPartyTransfers!U222","v":0},{"$f":"[1]RelatedPartyTransfers!V222","v":0},{"$f":"[1]RelatedPartyTransfers!W222","v":0},{"$f":"[1]RelatedPartyTransfers!W222","v":0},0]
[0,0,{"$f":"IFERROR(INDEX((Settings!$M$17:$M$236),MATCH(RelatedPartyTransfers!G223,Settings!$AD$18:$AD$166,0)),0)","v":0},null,null,{"$f":"[1]RelatedPartyTransfers!F223","v":0},{"$f":"[1]RelatedPartyTransfers!G223","v":0},{"$f":"[1]RelatedPartyTransfers!H223","v":0},{"$f":"[1]RelatedPartyTransfers!I223","v":0},null,{"$f":"[1]RelatedPartyTransfers!M223","v":0},{"$f":"[1]RelatedPartyTransfers!N223","v":0},{"$f":"[1]RelatedPartyTransfers!O223","v":0},{"$f":"[1]RelatedPartyTransfers!P223","v":0},{"$f":"[1]RelatedPartyTransfers!Q223","v":0},{"$f":"[1]RelatedPartyTransfers!R223","v":0},{"$f":"[1]RelatedPartyTransfers!S223","v":0},{"$f":"[1]RelatedPartyTransfers!T223","v":0},{"$f":"[1]RelatedPartyTransfers!U223","v":0},{"$f":"[1]RelatedPartyTransfers!V223","v":0},{"$f":"[1]RelatedPartyTransfers!W223","v":0},{"$f":"[1]RelatedPartyTransfers!W223","v":0},0]
[0,0,{"$f":"IFERROR(INDEX((Settings!$M$17:$M$236),MATCH(RelatedPartyTransfers!G224,Settings!$AD$18:$AD$166,0)),0)","v":0},null,null,{"$f":"[1]RelatedPartyTransfers!F224","v":0},{"$f":"[1]RelatedPartyTransfers!G224","v":0},{"$f":"[1]RelatedPartyTransfers!H224","v":0},{"$f":"[1]RelatedPartyTransfers!I224","v":0},null,{"$f":"[1]RelatedPartyTransfers!M224","v":0},{"$f":"[1]RelatedPartyTransfers!N224","v":0},{"$f":"[1]RelatedPartyTransfers!O224","v":0},{"$f":"[1]RelatedPartyTransfers!P224","v":0},{"$f":"[1]RelatedPartyTransfers!Q224","v":0},{"$f":"[1]RelatedPartyTransfers!R224","v":0},{"$f":"[1]RelatedPartyTransfers!S224","v":0},{"$f":"[1]RelatedPartyTransfers!T224","v":0},{"$f":"[1]RelatedPartyTransfers!U224","v":0},{"$f":"[1]RelatedPartyTransfers!V224","v":0},{"$f":"[1]RelatedPartyTransfers!W224","v":0},{"$f":"[1]RelatedPartyTransfers!W224","v":0},0]
[0,0,{"$f":"IFERROR(INDEX((Settings!$M$17:$M$236),MATCH(RelatedPartyTransfers!G225,Settings!$AD$18:$AD$166,0)),0)","v":0},null,null,{"$f":"[1]RelatedPartyTransfers!F225","v":0},{"$f":"[1]RelatedPartyTransfers!G225","v":0},{"$f":"[1]RelatedPartyTransfers!H225","v":0},{"$f":"[1]RelatedPartyTransfers!I225","v":0},null,{"$f":"[1]RelatedPartyTransfers!M225","v":0},{"$f":"[1]RelatedPartyTransfers!N225","v":0},{"$f":"[1]RelatedPartyTransfers!O225","v":0},{"$f":"[1]RelatedPartyTransfers!P225","v":0},{"$f":"[1]RelatedPartyTransfers!Q225","v":0},{"$f":"[1]RelatedPartyTransfers!R225","v":0},{"$f":"[1]RelatedPartyTransfers!S225","v":0},{"$f":"[1]RelatedPartyTransfers!T225","v":0},{"$f":"[1]RelatedPartyTransfers!U225","v":0},{"$f":"[1]RelatedPartyTransfers!V225","v":0},{"$f":"[1]RelatedPartyTransfers!W225","v":0},{"$f":"[1]RelatedPartyTransfers!W225","v":0},0]
[0,0,{"$f":"IFERROR(INDEX((Settings!$M$17:$M$236),MATCH(RelatedPartyTransfers!G226,Settings!$AD$18:$AD$166,0)),0)","v":0},null,null,{"$f":"[1]RelatedPartyTransfers!F226","v":0},{"$f":"[1]RelatedPartyTransfers!G226","v":0},{"$f":"[1]RelatedPartyTransfers!H226","v":0},{"$f":"[1]RelatedPartyTransfers!I226","v":0},null,{"$f":"[1]RelatedPartyTransfers!M226","v":0},{"$f":"[1]RelatedPartyTransfers!N226","v":0},{"$f":"[1]RelatedPartyTransfers!O226","v":0},{"$f":"[1]RelatedPartyTransfers!P226","v":0},{"$f":"[1]RelatedPartyTransfers!Q226","v":0},{"$f":"[1]RelatedPartyTransfers!R226","v":0},{"$f":"[1]RelatedPartyTransfers!S226","v":0},{"$f":"[1]RelatedPartyTransfers!T226","v":0},{"$f":"[1]RelatedPartyTransfers!U226","v":0},{"$f":"[1]RelatedPartyTransfers!V226","v":0},{"$f":"[1]RelatedPartyTransfers!W226","v":0},{"$f":"[1]RelatedPartyTransfers!W226","v":0},0]
[0,0,{"$f":"IFERROR(INDEX((Settings!$M$17:$M$236),MATCH(RelatedPartyTransfers!G227,Settings!$AD$18:$AD$166,0)),0)","v":0},null,null,{"$f":"[1]RelatedPartyTransfers!F227","v":0},{"$f":"[1]RelatedPartyTransfers!G227","v":0},{"$f":"[1]RelatedPartyTransfers!H227","v":0},{"$f":"[1]RelatedPartyTransfers!I227","v":0},null,{"$f":"[1]RelatedPartyTransfers!M227","v":0},{"$f":"[1]RelatedPartyTransfers!N227","v":0},{"$f":"[1]RelatedPartyTransfers!O227","v":0},{"$f":"[1]RelatedPartyTransfers!P227","v":0},{"$f":"[1]RelatedPartyTransfers!Q227","v":0},{"$f":"[1]RelatedPartyTransfers!R227","v":0},{"$f":"[1]RelatedPartyTransfers!S227","v":0},{"$f":"[1]RelatedPartyTransfers!T227","v":0},{"$f":"[1]RelatedPartyTransfers!U227","v":0},{"$f":"[1]RelatedPartyTransfers!V227","v":0},{"$f":"[1]RelatedPartyTransfers!W227","v":0},{"$f":"[1]RelatedPartyTransfers!W227","v":0},0]
[0,0,{"$f":"IFERROR(INDEX((Settings!$M$17:$M$236),MATCH(RelatedPartyTransfers!G228,Settings!$AD$18:$AD$166,0)),0)","v":0},null,null,{"$f":"[1]RelatedPartyTransfers!F228","v":0},{"$f":"[1]RelatedPartyTransfers!G228","v":0},{"$f":"[1]RelatedPartyTransfers!H228","v":0},{"$f":"[1]RelatedPartyTransfers!I228","v":0},null,{"$f":"[1]RelatedPartyTransfers!M228","v":0},{"$f":"[1]RelatedPartyTransfers!N228","v":0},{"$f":"[1]RelatedPartyTransfers!O228","v":0},{"$f":"[1]RelatedPartyTransfers!P228","v":0},{"$f":"[1]RelatedPartyTransfers!Q228","v":0},{"$f":"[1]RelatedPartyTransfers!R228","v":0},{"$f":"[1]RelatedPartyTransfers!S228","v":0},{"$f":"[1]RelatedPartyTransfers!T228","v":0},{"$f":"[1]RelatedPartyTransfers!U228","v":0},{"$f":"[1]RelatedPartyTransfers!V228","v":0},{"$f":"[1]RelatedPartyTransfers!W228","v":0},{"$f":"[1]RelatedPartyTransfers!W228","v":0},0]
[0,0,{"$f":"IFERROR(INDEX((Settings!$M$17:$M$236),MATCH(RelatedPartyTransfers!G229,Settings!$AD$18:$AD$166,0)),0)","v":0},null,null,{"$f":"[1]RelatedPartyTransfers!F229","v":0},{"$f":"[1]RelatedPartyTransfers!G229","v":0},{"$f":"[1]RelatedPartyTransfers!H229","v":0},{"$f":"[1]RelatedPartyTransfers!I229","v":0},null,{"$f":"[1]RelatedPartyTransfers!M229","v":0},{"$f":"[1]RelatedPartyTransfers!N229","v":0},{"$f":"[1]RelatedPartyTransfers!O229","v":0},{"$f":"[1]RelatedPartyTransfers!P229","v":0},{"$f":"[1]RelatedPartyTransfers!Q229","v":0},{"$f":"[1]RelatedPartyTransfers!R229","v":0},{"$f":"[1]RelatedPartyTransfers!S229","v":0},{"$f":"[1]RelatedPartyTransfers!T229","v":0},{"$f":"[1]RelatedPartyTransfers!U229","v":0},{"$f":"[1]RelatedPartyTransfers!V229","v":0},{"$f":"[1]RelatedPartyTransfers!W229","v":0},{"$f":"[1]RelatedPartyTransfers!W229","v":0},0]
[0,0,{"$f":"IFERROR(INDEX((Settings!$M$17:$M$236),MATCH(RelatedPartyTransfers!G230,Settings!$AD$18:$AD$166,0)),0)","v":0},null,null,{"$f":"[1]RelatedPartyTransfers!F230","v":0},{"$f":"[1]RelatedPartyTransfers!G230","v":0},{"$f":"[1]RelatedPartyTransfers!H230","v":0},{"$f":"[1]RelatedPartyTransfers!I230","v":0},null,{"$f":"[1]RelatedPartyTransfers!M230","v":0},{"$f":"[1]RelatedPartyTransfers!N230","v":0},{"$f":"[1]RelatedPartyTransfers!O230","v":0},{"$f":"[1]RelatedPartyTransfers!P230","v":0},{"$f":"[1]RelatedPartyTransfers!Q230","v":0},{"$f":"[1]RelatedPartyTransfers!R230","v":0},{"$f":"[1]RelatedPartyTransfers!S230","v":0},{"$f":"[1]RelatedPartyTransfers!T230","v":0},{"$f":"[1]RelatedPartyTransfers!U230","v":0},{"$f":"[1]RelatedPartyTransfers!V230","v":0},{"$f":"[1]RelatedPartyTransfers!W230","v":0},{"$f":"[1]RelatedPartyTransfers!W230","v":0},0]
[0,0,{"$f":"IFERROR(INDEX((Settings!$M$17:$M$236),MATCH(RelatedPartyTransfers!G231,Settings!$AD$18:$AD$166,0)),0)","v":0},null,null,{"$f":"[1]RelatedPartyTransfers!F231","v":0},{"$f":"[1]RelatedPartyTransfers!G231","v":0},{"$f":"[1]RelatedPartyTransfers!H231","v":0},{"$f":"[1]RelatedPartyTransfers!I231","v":0},null,{"$f":"[1]RelatedPartyTransfers!M231","v":0},{"$f":"[1]RelatedPartyTransfers!N231","v":0},{"$f":"[1]RelatedPartyTransfers!O231","v":0},{"$f":"[1]RelatedPartyTransfers!P231","v":0},{"$f":"[1]RelatedPartyTransfers!Q231","v":0},{"$f":"[1]RelatedPartyTransfers!R231","v":0},{"$f":"[1]RelatedPartyTransfers!S231","v":0},{"$f":"[1]RelatedPartyTransfers!T231","v":0},{"$f":"[1]RelatedPartyTransfers!U231","v":0},{"$f":"[1]RelatedPartyTransfers!V231","v":0},{"$f":"[1]RelatedPartyTransfers!W231","v":0},{"$f":"[1]RelatedPartyTransfers!W231","v":0},0]
[0,0,{"$f":"IFERROR(INDEX((Settings!$M$17:$M$236),MATCH(RelatedPartyTransfers!G232,Settings!$AD$18:$AD$166,0)),0)","v":0},null,null,{"$f":"[1]RelatedPartyTransfers!F232","v":0},{"$f":"[1]RelatedPartyTransfers!G232","v":0},{"$f":"[1]RelatedPartyTransfers!H232","v":0},{"$f":"[1]RelatedPartyTransfers!I232","v":0},null,{"$f":"[1]RelatedPartyTransfers!M232","v":0},{"$f":"[1]RelatedPartyTransfers!N232","v":0},{"$f":"[1]RelatedPartyTransfers!O232","v":0},{"$f":"[1]RelatedPartyTransfers!P232","v":0},{"$f":"[1]RelatedPartyTransfers!Q232","v":0},{"$f":"[1]RelatedPartyTransfers!R232","v":0},{"$f":"[1]RelatedPartyTransfers!S232","v":0},{"$f":"[1]RelatedPartyTransfers!T232","v":0},{"$f":"[1]RelatedPartyTransfers!U232","v":0},{"$f":"[1]RelatedPartyTransfers!V232","v":0},{"$f":"[1]RelatedPartyTransfers!W232","v":0},{"$f":"[1]RelatedPartyTransfers!W232","v":0},0]
[0,0,{"$f":"IFERROR(INDEX((Settings!$M$17:$M$236),MATCH(RelatedPartyTransfers!G233,Settings!$AD$18:$AD$166,0)),0)","v":0},null,null,{"$f":"[1]RelatedPartyTransfers!F233","v":0},{"$f":"[1]RelatedPartyTransfers!G233","v":0},{"$f":"[1]RelatedPartyTransfers!H233","v":0},{"$f":"[1]RelatedPartyTransfers!I233","v":0},null,{"$f":"[1]RelatedPartyTransfers!M233","v":0},{"$f":"[1]RelatedPartyTransfers!N233","v":0},{"$f":"[1]RelatedPartyTransfers!O233","v":0},{"$f":"[1]RelatedPartyTransfers!P233","v":0},{"$f":"[1]RelatedPartyTransfers!Q233","v":0},{"$f":"[1]RelatedPartyTransfers!R233","v":0},{"$f":"[1]RelatedPartyTransfers!S233","v":0},{"$f":"[1]RelatedPartyTransfers!T233","v":0},{"$f":"[1]RelatedPartyTransfers!U233","v":0},{"$f":"[1]RelatedPartyTransfers!V233","v":0},{"$f":"[1]RelatedPartyTransfers!W233","v":0},{"$f":"[1]RelatedPartyTransfers!W233","v":0},0]
[0,0,{"$f":"IFERROR(INDEX((Settings!$M$17:$M$236),MATCH(RelatedPartyTransfers!G234,Settings!$AD$18:$AD$166,0)),0)","v":0},null,null,{"$f":"[1]RelatedPartyTransfers!F234","v":0},{"$f":"[1]RelatedPartyTransfers!G234","v":0},{"$f":"[1]RelatedPartyTransfers!H234","v":0},{"$f":"[1]RelatedPartyTransfers!I234","v":0},null,{"$f":"[1]RelatedPartyTransfers!M234","v":0},{"$f":"[1]RelatedPartyTransfers!N234","v":0},{"$f":"[1]RelatedPartyTransfers!O234","v":0},{"$f":"[1]RelatedPartyTransfers!P234","v":0},{"$f":"[1]RelatedPartyTransfers!Q234","v":0},{"$f":"[1]RelatedPartyTransfers!R234","v":0},{"$f":"[1]RelatedPartyTransfers!S234","v":0},{"$f":"[1]RelatedPartyTransfers!T234","v":0},{"$f":"[1]RelatedPartyTransfers!U234","v":0},{"$f":"[1]RelatedPartyTransfers!V234","v":0},{"$f":"[1]RelatedPartyTransfers!W234","v":0},{"$f":"[1]RelatedPartyTransfers!W234","v":0},0]
[0,0,{"$f":"IFERROR(INDEX((Settings!$M$17:$M$236),MATCH(RelatedPartyTransfers!G235,Settings!$AD$18:$AD$166,0)),0)","v":0},null,null,{"$f":"[1]RelatedPartyTransfers!F235","v":0},{"$f":"[1]RelatedPartyTransfers!G235","v":0},{"$f":"[1]RelatedPartyTransfers!H235","v":0},{"$f":"[1]RelatedPartyTransfers!I235","v":0},null,{"$f":"[1]RelatedPartyTransfers!M235","v":0},{"$f":"[1]RelatedPartyTransfers!N235","v":0},{"$f":"[1]RelatedPartyTransfers!O235","v":0},{"$f":"[1]RelatedPartyTransfers!P235","v":0},{"$f":"[1]RelatedPartyTransfers!Q235","v":0},{"$f":"[1]RelatedPartyTransfers!R235","v":0},{"$f":"[1]RelatedPartyTransfers!S235","v":0},{"$f":"[1]RelatedPartyTransfers!T235","v":0},{"$f":"[1]RelatedPartyTransfers!U235","v":0},{"$f":"[1]RelatedPartyTransfers!V235","v":0},{"$f":"[1]RelatedPartyTransfers!W235","v":0},{"$f":"[1]RelatedPartyTransfers!W235","v":0},0]
[0,0,{"$f":"IFERROR(INDEX((Settings!$M$17:$M$236),MATCH(RelatedPartyTransfers!G236,Settings!$AD$18:$AD$166,0)),0)","v":0},null,null,{"$f":"[1]RelatedPartyTransfers!F236","v":0},{"$f":"[1]RelatedPartyTransfers!G236","v":0},{"$f":"[1]RelatedPartyTransfers!H236","v":0},{"$f":"[1]RelatedPartyTransfers!I236","v":0},null,{"$f":"[1]RelatedPartyTransfers!M236","v":0},{"$f":"[1]RelatedPartyTransfers!N236","v":0},{"$f":"[1]RelatedPartyTransfers!O236","v":0},{"$f":"[1]RelatedPartyTransfers!P236","v":0},{"$f":"[1]RelatedPartyTransfers!Q236","v":0},{"$f":"[1]RelatedPartyTransfers!R236","v":0},{"$f":"[1]RelatedPartyTransfers!S236","v":0},{"$f":"[1]RelatedPartyTransfers!T236","v":0},{"$f":"[1]RelatedPartyTransfers!U236","v":0},{"$f":"[1]RelatedPartyTransfers!V236","v":0},{"$f":"[1]RelatedPartyTransfers!W236","v":0},{"$f":"[1]RelatedPartyTransfers!W236","v":0},0]
[0,0,{"$f":"IFERROR(INDEX((Settings!$M$17:$M$236),MATCH(RelatedPartyTransfers!G237,Settings!$AD$18:$AD$166,0)),0)","v":0},null,null,{"$f":"[1]RelatedPartyTransfers!F237","v":0},{"$f":"[1]RelatedPartyTransfers!G237","v":0},{"$f":"[1]RelatedPartyTransfers!H237","v":0},{"$f":"[1]RelatedPartyTransfers!I237","v":0},null,{"$f":"[1]RelatedPartyTransfers!M237","v":0},{"$f":"[1]RelatedPartyTransfers!N237","v":0},{"$f":"[1]RelatedPartyTransfers!O237","v":0},{"$f":"[1]RelatedPartyTransfers!P237","v":0},{"$f":"[1]RelatedPartyTransfers!Q237","v":0},{"$f":"[1]RelatedPartyTransfers!R237","v":0},{"$f":"[1]RelatedPartyTransfers!S237","v":0},{"$f":"[1]RelatedPartyTransfers!T237","v":0},{"$f":"[1]RelatedPartyTransfers!U237","v":0},{"$f":"[1]RelatedPartyTransfers!V237","v":0},{"$f":"[1]RelatedPartyTransfers!W237","v":0},{"$f":"[1]RelatedPartyTransfers!W237","v":0},0]
[0,0,{"$f":"IFERROR(INDEX((Settings!$M$17:$M$236),MATCH(RelatedPartyTransfers!G238,Settings!$AD$18:$AD$166,0)),0)","v":0},null,null,{"$f":"[1]RelatedPartyTransfers!F238","v":0},{"$f":"[1]RelatedPartyTransfers!G238","v":0},{"$f":"[1]RelatedPartyTransfers!H238","v":0},{"$f":"[1]RelatedPartyTransfers!I238","v":0},null,{"$f":"[1]RelatedPartyTransfers!M238","v":0},{"$f":"[1]RelatedPartyTransfers!N238","v":0},{"$f":"[1]RelatedPartyTransfers!O238","v":0},{"$f":"[1]RelatedPartyTransfers!P238","v":0},{"$f":"[1]RelatedPartyTransfers!Q238","v":0},{"$f":"[1]RelatedPartyTransfers!R238","v":0},{"$f":"[1]RelatedPartyTransfers!S238","v":0},{"$f":"[1]RelatedPartyTransfers!T238","v":0},{"$f":"[1]RelatedPartyTransfers!U238","v":0},{"$f":"[1]RelatedPartyTransfers!V238","v":0},{"$f":"[1]RelatedPartyTransfers!W238","v":0},{"$f":"[1]RelatedPartyTransfers!W238","v":0},0]
[0,0,{"$f":"IFERROR(INDEX((Settings!$M$17:$M$236),MATCH(RelatedPartyTransfers!G239,Settings!$AD$18:$AD$166,0)),0)","v":0},null,null,{"$f":"[1]RelatedPartyTransfers!F239","v":0},{"$f":"[1]RelatedPartyTransfers!G239","v":0},{"$f":"[1]RelatedPartyTransfers!H239","v":0},{"$f":"[1]RelatedPartyTransfers!I239","v":0},null,{"$f":"[1]RelatedPartyTransfers!M239","v":0},{"$f":"[1]RelatedPartyTransfers!N239","v":0},{"$f":"[1]RelatedPartyTransfers!O239","v":0},{"$f":"[1]RelatedPartyTransfers!P239","v":0},{"$f":"[1]RelatedPartyTransfers!Q239","v":0},{"$f":"[1]RelatedPartyTransfers!R239","v":0},{"$f":"[1]RelatedPartyTransfers!S239","v":0},{"$f":"[1]RelatedPartyTransfers!T239","v":0},{"$f":"[1]RelatedPartyTransfers!U239","v":0},{"$f":"[1]RelatedPartyTransfers!V239","v":0},{"$f":"[1]RelatedPartyTransfers!W239","v":0},{"$f":"[1]RelatedPartyTransfers!W239","v":0},0]
[0,0,{"$f":"IFERROR(INDEX((Settings!$M$17:$M$236),MATCH(RelatedPartyTransfers!G240,Settings!$AD$18:$AD$166,0)),0)","v":0},null,null,{"$f":"[1]RelatedPartyTransfers!F240","v":0},{"$f":"[1]RelatedPartyTransfers!G240","v":0},{"$f":"[1]RelatedPartyTransfers!H240","v":0},{"$f":"[1]RelatedPartyTransfers!I240","v":0},null,{"$f":"[1]RelatedPartyTransfers!M240","v":0},{"$f":"[1]RelatedPartyTransfers!N240","v":0},{"$f":"[1]RelatedPartyTransfers!O240","v":0},{"$f":"[1]RelatedPartyTransfers!P240","v":0},{"$f":"[1]RelatedPartyTransfers!Q240","v":0},{"$f":"[1]RelatedPartyTransfers!R240","v":0},{"$f":"[1]RelatedPartyTransfers!S240","v":0},{"$f":"[1]RelatedPartyTransfers!T240","v":0},{"$f":"[1]RelatedPartyTransfers!U240","v":0},{"$f":"[1]RelatedPartyTransfers!V240","v":0},{"$f":"[1]RelatedPartyTransfers!W240","v":0},{"$f":"[1]RelatedPartyTransfers!W240","v":0},0]
[0,0,{"$f":"IFERROR(INDEX((Settings!$M$17:$M$236),MATCH(RelatedPartyTransfers!G241,Settings!$AD$18:$AD$166,0)),0)","v":0},null,null,{"$f":"[1]RelatedPartyTransfers!F241","v":0},{"$f":"[1]RelatedPartyTransfers!G241","v":0},{"$f":"[1]RelatedPartyTransfers!H241","v":0},{"$f":"[1]RelatedPartyTransfers!I241","v":0},null,{"$f":"[1]RelatedPartyTransfers!M241","v":0},{"$f":"[1]RelatedPartyTransfers!N241","v":0},{"$f":"[1]RelatedPartyTransfers!O241","v":0},{"$f":"[1]RelatedPartyTransfers!P241","v":0},{"$f":"[1]RelatedPartyTransfers!Q241","v":0},{"$f":"[1]RelatedPartyTransfers!R241","v":0},{"$f":"[1]RelatedPartyTransfers!S241","v":0},{"$f":"[1]RelatedPartyTransfers!T241","v":0},{"$f":"[1]RelatedPartyTransfers!U241","v":0},{"$f":"[1]RelatedPartyTransfers!V241","v":0},{"$f":"[1]RelatedPartyTransfers!W241","v":0},{"$f":"[1]RelatedPartyTransfers!W241","v":0},0]
[0,0,{"$f":"IFERROR(INDEX((Settings!$M$17:$M$236),MATCH(RelatedPartyTransfers!G242,Settings!$AD$18:$AD$166,0)),0)","v":0},null,null,{"$f":"[1]RelatedPartyTransfers!F242","v":0},{"$f":"[1]RelatedPartyTransfers!G242","v":0},{"$f":"[1]RelatedPartyTransfers!H242","v":0},{"$f":"[1]RelatedPartyTransfers!I242","v":0},null,{"$f":"[1]RelatedPartyTransfers!M242","v":0},{"$f":"[1]RelatedPartyTransfers!N242","v":0},{"$f":"[1]RelatedPartyTransfers!O242","v":0},{"$f":"[1]RelatedPartyTransfers!P242","v":0},{"$f":"[1]RelatedPartyTransfers!Q242","v":0},{"$f":"[1]RelatedPartyTransfers!R242","v":0},{"$f":"[1]RelatedPartyTransfers!S242","v":0},{"$f":"[1]RelatedPartyTransfers!T242","v":0},{"$f":"[1]RelatedPartyTransfers!U242","v":0},{"$f":"[1]RelatedPartyTransfers!V242","v":0},{"$f":"[1]RelatedPartyTransfers!W242","v":0},{"$f":"[1]RelatedPartyTransfers!W242","v":0},0]
[0,0,{"$f":"IFERROR(INDEX((Settings!$M$17:$M$236),MATCH(RelatedPartyTransfers!G243,Settings!$AD$18:$AD$166,0)),0)","v":0},null,null,{"$f":"[1]RelatedPartyTransfers!F243","v":0},{"$f":"[1]RelatedPartyTransfers!G243","v":0},{"$f":"[1]RelatedPartyTransfers!H243","v":0},{"$f":"[1]RelatedPartyTransfers!I243","v":0},null,{"$f":"[1]RelatedPartyTransfers!M243","v":0},{"$f":"[1]RelatedPartyTransfers!N243","v":0},{"$f":"[1]RelatedPartyTransfers!O243","v":0},{"$f":"[1]RelatedPartyTransfers!P243","v":0},{"$f":"[1]RelatedPartyTransfers!Q243","v":0},{"$f":"[1]RelatedPartyTransfers!R243","v":0},{"$f":"[1]RelatedPartyTransfers!S243","v":0},{"$f":"[1]RelatedPartyTransfers!T243","v":0},{"$f":"[1]RelatedPartyTransfers!U243","v":0},{"$f":"[1]RelatedPartyTransfers!V243","v":0},{"$f":"[1]RelatedPartyTransfers!W243","v":0},{"$f":"[1]RelatedPartyTransfers!W243","v":0},0]
[0,0,{"$f":"IFERROR(INDEX((Settings!$M$17:$M$236),MATCH(RelatedPartyTransfers!G244,Settings!$AD$18:$AD$166,0)),0)","v":0},null,null,{"$f":"[1]RelatedPartyTransfers!F244","v":0},{"$f":"[1]RelatedPartyTransfers!G244","v":0},{"$f":"[1]RelatedPartyTransfers!H244","v":0},{"$f":"[1]RelatedPartyTransfers!I244","v":0},null,{"$f":"[1]RelatedPartyTransfers!M244","v":0},{"$f":"[1]RelatedPartyTransfers!N244","v":0},{"$f":"[1]RelatedPartyTransfers!O244","v":0},{"$f":"[1]RelatedPartyTransfers!P244","v":0},{"$f":"[1]RelatedPartyTransfers!Q244","v":0},{"$f":"[1]RelatedPartyTransfers!R244","v":0},{"$f":"[1]RelatedPartyTransfers!S244","v":0},{"$f":"[1]RelatedPartyTransfers!T244","v":0},{"$f":"[1]RelatedPartyTransfers!U244","v":0},{"$f":"[1]RelatedPartyTransfers!V244","v":0},{"$f":"[1]RelatedPartyTransfers!W244","v":0},{"$f":"[1]RelatedPartyTransfers!W244","v":0},0]
[0,0,{"$f":"IFERROR(INDEX((Settings!$M$17:$M$236),MATCH(RelatedPartyTransfers!G245,Settings!$AD$18:$AD$166,0)),0)","v":0},null,null,{"$f":"[1]RelatedPartyTransfers!F245","v":0},{"$f":"[1]RelatedPartyTransfers!G245","v":0},{"$f":"[1]RelatedPartyTransfers!H245","v":0},{"$f":"[1]RelatedPartyTransfers!I245","v":0},null,{"$f":"[1]RelatedPartyTransfers!M245","v":0},{"$f":"[1]RelatedPartyTransfers!N245","v":0},{"$f":"[1]RelatedPartyTransfers!O245","v":0},{"$f":"[1]RelatedPartyTransfers!P245","v":0},{"$f":"[1]RelatedPartyTransfers!Q245","v":0},{"$f":"[1]RelatedPartyTransfers!R245","v":0},{"$f":"[1]RelatedPartyTransfers!S245","v":0},{"$f":"[1]RelatedPartyTransfers!T245","v":0},{"$f":"[1]RelatedPartyTransfers!U245","v":0},{"$f":"[1]RelatedPartyTransfers!V245","v":0},{"$f":"[1]RelatedPartyTransfers!W245","v":0},{"$f":"[1]RelatedPartyTransfers!W245","v":0},0]
[0,0,{"$f":"IFERROR(INDEX((Settings!$M$17:$M$236),MATCH(RelatedPartyTransfers!G246,Settings!$AD$18:$AD$166,0)),0)","v":0},null,null,{"$f":"[1]RelatedPartyTransfers!F246","v":0},{"$f":"[1]RelatedPartyTransfers!G246","v":0},{"$f":"[1]RelatedPartyTransfers!H246","v":0},{"$f":"[1]RelatedPartyTransfers!I246","v":0},null,{"$f":"[1]RelatedPartyTransfers!M246","v":0},{"$f":"[1]RelatedPartyTransfers!N246","v":0},{"$f":"[1]RelatedPartyTransfers!O246","v":0},{"$f":"[1]RelatedPartyTransfers!P246","v":0},{"$f":"[1]RelatedPartyTransfers!Q246","v":0},{"$f":"[1]RelatedPartyTransfers!R246","v":0},{"$f":"[1]RelatedPartyTransfers!S246","v":0},{"$f":"[1]RelatedPartyTransfers!T246","v":0},{"$f":"[1]RelatedPartyTransfers!U246","v":0},{"$f":"[1]RelatedPartyTransfers!V246","v":0},{"$f":"[1]RelatedPartyTransfers!W246","v":0},{"$f":"[1]RelatedPartyTransfers!W246","v":0},0]
[0,0,{"$f":"IFERROR(INDEX((Settings!$M$17:$M$236),MATCH(RelatedPartyTransfers!G247,Settings!$AD$18:$AD$166,0)),0)","v":0},null,null,{"$f":"[1]RelatedPartyTransfers!F247","v":0},{"$f":"[1]RelatedPartyTransfers!G247","v":0},{"$f":"[1]RelatedPartyTransfers!H247","v":0},{"$f":"[1]RelatedPartyTransfers!I247","v":0},null,{"$f":"[1]RelatedPartyTransfers!M247","v":0},{"$f":"[1]RelatedPartyTransfers!N247","v":0},{"$f":"[1]RelatedPartyTransfers!O247","v":0},{"$f":"[1]RelatedPartyTransfers!P247","v":0},{"$f":"[1]RelatedPartyTransfers!Q247","v":0},{"$f":"[1]RelatedPartyTransfers!R247","v":0},{"$f":"[1]RelatedPartyTransfers!S247","v":0},{"$f":"[1]RelatedPartyTransfers!T247","v":0},{"$f":"[1]RelatedPartyTransfers!U247","v":0},{"$f":"[1]RelatedPartyTransfers!V247","v":0},{"$f":"[1]RelatedPartyTransfers!W247","v":0},{"$f":"[1]RelatedPartyTransfers!W247","v":0},0]
[0,0,{"$f":"IFERROR(INDEX((Settings!$M$17:$M$236),MATCH(RelatedPartyTransfers!G248,Settings!$AD$18:$AD$166,0)),0)","v":0},null,null,{"$f":"[1]RelatedPartyTransfers!F248","v":0},{"$f":"[1]RelatedPartyTransfers!G248","v":0},{"$f":"[1]RelatedPartyTransfers!H248","v":0},{"$f":"[1]RelatedPartyTransfers!I248","v":0},null,{"$f":"[1]RelatedPartyTransfers!M248","v":0},{"$f":"[1]RelatedPartyTransfers!N248","v":0},{"$f":"[1]RelatedPartyTransfers!O248","v":0},{"$f":"[1]RelatedPartyTransfers!P248","v":0},{"$f":"[1]RelatedPartyTransfers!Q248","v":0},{"$f":"[1]RelatedPartyTransfers!R248","v":0},{"$f":"[1]RelatedPartyTransfers!S248","v":0},{"$f":"[1]RelatedPartyTransfers!T248","v":0},{"$f":"[1]RelatedPartyTransfers!U248","v":0},{"$f":"[1]RelatedPartyTransfers!V248","v":0},{"$f":"[1]RelatedPartyTransfers!W248","v":0},{"$f":"[1]RelatedPartyTransfers!W248","v":0},0]
[0,0,{"$f":"IFERROR(INDEX((Settings!$M$17:$M$236),MATCH(RelatedPartyTransfers!G249,Settings!$AD$18:$AD$166,0)),0)","v":0},null,null,{"$f":"[1]RelatedPartyTransfers!F249","v":0},{"$f":"[1]RelatedPartyTransfers!G249","v":0},{"$f":"[1]RelatedPartyTransfers!H249","v":0},{"$f":"[1]RelatedPartyTransfers!I249","v":0},null,{"$f":"[1]RelatedPartyTransfers!M249","v":0},{"$f":"[1]RelatedPartyTransfers!N249","v":0},{"$f":"[1]RelatedPartyTransfers!O249","v":0},{"$f":"[1]RelatedPartyTransfers!P249","v":0},{"$f":"[1]RelatedPartyTransfers!Q249","v":0},{"$f":"[1]RelatedPartyTransfers!R249","v":0},{"$f":"[1]RelatedPartyTransfers!S249","v":0},{"$f":"[1]RelatedPartyTransfers!T249","v":0},{"$f":"[1]RelatedPartyTransfers!U249","v":0},{"$f":"[1]RelatedPartyTransfers!V249","v":0},{"$f":"[1]RelatedPartyTransfers!W249","v":0},{"$f":"[1]RelatedPartyTransfers!W249","v":0},0]
[0,0,{"$f":"IFERROR(INDEX((Settings!$M$17:$M$236),MATCH(RelatedPartyTransfers!G250,Settings!$AD$18:$AD$166,0)),0)","v":0},null,null,{"$f":"[1]RelatedPartyTransfers!F250","v":0},{"$f":"[1]RelatedPartyTransfers!G250","v":0},{"$f":"[1]RelatedPartyTransfers!H250","v":0},{"$f":"[1]RelatedPartyTransfers!I250","v":0},null,{"$f":"[1]RelatedPartyTransfers!M250","v":0},{"$f":"[1]RelatedPartyTransfers!N250","v":0},{"$f":"[1]RelatedPartyTransfers!O250","v":0},{"$f":"[1]RelatedPartyTransfers!P250","v":0},{"$f":"[1]RelatedPartyTransfers!Q250","v":0},{"$f":"[1]RelatedPartyTransfers!R250","v":0},{"$f":"[1]RelatedPartyTransfers!S250","v":0},{"$f":"[1]RelatedPartyTransfers!T250","v":0},{"$f":"[1]RelatedPartyTransfers!U250","v":0},{"$f":"[1]RelatedPartyTransfers!V250","v":0},{"$f":"[1]RelatedPartyTransfers!W250","v":0},{"$f":"[1]RelatedPartyTransfers!W250","v":0},0]
[0,0,{"$f":"IFERROR(INDEX((Settings!$M$17:$M$236),MATCH(RelatedPartyTransfers!G251,Settings!$AD$18:$AD$166,0)),0)","v":0},null,null,{"$f":"[1]RelatedPartyTransfers!F251","v":0},{"$f":"[1]RelatedPartyTransfers!G251","v":0},{"$f":"[1]RelatedPartyTransfers!H251","v":0},{"$f":"[1]RelatedPartyTransfers!I251","v":0},null,{"$f":"[1]RelatedPartyTransfers!M251","v":0},{"$f":"[1]RelatedPartyTransfers!N251","v":0},{"$f":"[1]RelatedPartyTransfers!O251","v":0},{"$f":"[1]RelatedPartyTransfers!P251","v":0},{"$f":"[1]RelatedPartyTransfers!Q251","v":0},{"$f":"[1]RelatedPartyTransfers!R251","v":0},{"$f":"[1]RelatedPartyTransfers!S251","v":0},{"$f":"[1]RelatedPartyTransfers!T251","v":0},{"$f":"[1]RelatedPartyTransfers!U251","v":0},{"$f":"[1]RelatedPartyTransfers!V251","v":0},{"$f":"[1]RelatedPartyTransfers!W251","v":0},{"$f":"[1]RelatedPartyTransfers!W251","v":0},0]
[0,0,{"$f":"IFERROR(INDEX((Settings!$M$17:$M$236),MATCH(RelatedPartyTransfers!G252,Settings!$AD$18:$AD$166,0)),0)","v":0},null,null,{"$f":"[1]RelatedPartyTransfers!F252","v":0},{"$f":"[1]RelatedPartyTransfers!G252","v":0},{"$f":"[1]RelatedPartyTransfers!H252","v":0},{"$f":"[1]RelatedPartyTransfers!I252","v":0},null,{"$f":"[1]RelatedPartyTransfers!M252","v":0},{"$f":"[1]RelatedPartyTransfers!N252","v":0},{"$f":"[1]RelatedPartyTransfers!O252","v":0},{"$f":"[1]RelatedPartyTransfers!P252","v":0},{"$f":"[1]RelatedPartyTransfers!Q252","v":0},{"$f":"[1]RelatedPartyTransfers!R252","v":0},{"$f":"[1]RelatedPartyTransfers!S252","v":0},{"$f":"[1]RelatedPartyTransfers!T252","v":0},{"$f":"[1]RelatedPartyTransfers!U252","v":0},{"$f":"[1]RelatedPartyTransfers!V252","v":0},{"$f":"[1]RelatedPartyTransfers!W252","v":0},{"$f":"[1]RelatedPartyTransfers!W252","v":0},0]
[0,0,{"$f":"IFERROR(INDEX((Settings!$M$17:$M$236),MATCH(RelatedPartyTransfers!G253,Settings!$AD$18:$AD$166,0)),0)","v":0},null,null,{"$f":"[1]RelatedPartyTransfers!F253","v":0},{"$f":"[1]RelatedPartyTransfers!G253","v":0},{"$f":"[1]RelatedPartyTransfers!H253","v":0},{"$f":"[1]RelatedPartyTransfers!I253","v":0},null,{"$f":"[1]RelatedPartyTransfers!M253","v":0},{"$f":"[1]RelatedPartyTransfers!N253","v":0},{"$f":"[1]RelatedPartyTransfers!O253","v":0},{"$f":"[1]RelatedPartyTransfers!P253","v":0},{"$f":"[1]RelatedPartyTransfers!Q253","v":0},{"$f":"[1]RelatedPartyTransfers!R253","v":0},{"$f":"[1]RelatedPartyTransfers!S253","v":0},{"$f":"[1]RelatedPartyTransfers!T253","v":0},{"$f":"[1]RelatedPartyTransfers!U253","v":0},{"$f":"[1]RelatedPartyTransfers!V253","v":0},{"$f":"[1]RelatedPartyTransfers!W253","v":0},{"$f":"[1]RelatedPartyTransfers!W253","v":0},0]
[0,0,{"$f":"IFERROR(INDEX((Settings!$M$17:$M$236),MATCH(RelatedPartyTransfers!G254,Settings!$AD$18:$AD$166,0)),0)","v":0},null,null,{"$f":"[1]RelatedPartyTransfers!F254","v":0},{"$f":"[1]RelatedPartyTransfers!G254","v":0},{"$f":"[1]RelatedPartyTransfers!H254","v":0},{"$f":"[1]RelatedPartyTransfers!I254","v":0},null,{"$f":"[1]RelatedPartyTransfers!M254","v":0},{"$f":"[1]RelatedPartyTransfers!N254","v":0},{"$f":"[1]RelatedPartyTransfers!O254","v":0},{"$f":"[1]RelatedPartyTransfers!P254","v":0},{"$f":"[1]RelatedPartyTransfers!Q254","v":0},{"$f":"[1]RelatedPartyTransfers!R254","v":0},{"$f":"[1]RelatedPartyTransfers!S254","v":0},{"$f":"[1]RelatedPartyTransfers!T254","v":0},{"$f":"[1]RelatedPartyTransfers!U254","v":0},{"$f":"[1]RelatedPartyTransfers!V254","v":0},{"$f":"[1]RelatedPartyTransfers!W254","v":0},{"$f":"[1]RelatedPartyTransfers!W254","v":0},0]
[0,0,{"$f":"IFERROR(INDEX((Settings!$M$17:$M$236),MATCH(RelatedPartyTransfers!G255,Settings!$AD$18:$AD$166,0)),0)","v":0},null,null,{"$f":"[1]RelatedPartyTransfers!F255","v":0},{"$f":"[1]RelatedPartyTransfers!G255","v":0},{"$f":"[1]RelatedPartyTransfers!H255","v":0},{"$f":"[1]RelatedPartyTransfers!I255","v":0},null,{"$f":"[1]RelatedPartyTransfers!M255","v":0},{"$f":"[1]RelatedPartyTransfers!N255","v":0},{"$f":"[1]RelatedPartyTransfers!O255","v":0},{"$f":"[1]RelatedPartyTransfers!P255","v":0},{"$f":"[1]RelatedPartyTransfers!Q255","v":0},{"$f":"[1]RelatedPartyTransfers!R255","v":0},{"$f":"[1]RelatedPartyTransfers!S255","v":0},{"$f":"[1]RelatedPartyTransfers!T255","v":0},{"$f":"[1]RelatedPartyTransfers!U255","v":0},{"$f":"[1]RelatedPartyTransfers!V255","v":0},{"$f":"[1]RelatedPartyTransfers!W255","v":0},{"$f":"[1]RelatedPartyTransfers!W255","v":0},0]
[0,0,{"$f":"IFERROR(INDEX((Settings!$M$17:$M$236),MATCH(RelatedPartyTransfers!G256,Settings!$AD$18:$AD$166,0)),0)","v":0},null,null,{"$f":"[1]RelatedPartyTransfers!F256","v":0},{"$f":"[1]RelatedPartyTransfers!G256","v":0},{"$f":"[1]RelatedPartyTransfers!H256","v":0},{"$f":"[1]RelatedPartyTransfers!I256","v":0},null,{"$f":"[1]RelatedPartyTransfers!M256","v":0},{"$f":"[1]RelatedPartyTransfers!N256","v":0},{"$f":"[1]RelatedPartyTransfers!O256","v":0},{"$f":"[1]RelatedPartyTransfers!P256","v":0},{"$f":"[1]RelatedPartyTransfers!Q256","v":0},{"$f":"[1]RelatedPartyTransfers!R256","v":0},{"$f":"[1]RelatedPartyTransfers!S256","v":0},{"$f":"[1]RelatedPartyTransfers!T256","v":0},{"$f":"[1]RelatedPartyTransfers!U256","v":0},{"$f":"[1]RelatedPartyTransfers!V256","v":0},{"$f":"[1]RelatedPartyTransfers!W256","v":0},{"$f":"[1]RelatedPartyTransfers!W256","v":0},0]
[0,0,{"$f":"IFERROR(INDEX((Settings!$M$17:$M$236),MATCH(RelatedPartyTransfers!G257,Settings!$AD$18:$AD$166,0)),0)","v":0},null,null,{"$f":"[1]RelatedPartyTransfers!F257","v":0},{"$f":"[1]RelatedPartyTransfers!G257","v":0},{"$f":"[1]RelatedPartyTransfers!H257","v":0},{"$f":"[1]RelatedPartyTransfers!I257","v":0},null,{"$f":"[1]RelatedPartyTransfers!M257","v":0},{"$f":"[1]RelatedPartyTransfers!N257","v":0},{"$f":"[1]RelatedPartyTransfers!O257","v":0},{"$f":"[1]RelatedPartyTransfers!P257","v":0},{"$f":"[1]RelatedPartyTransfers!Q257","v":0},{"$f":"[1]RelatedPartyTransfers!R257","v":0},{"$f":"[1]RelatedPartyTransfers!S257","v":0},{"$f":"[1]RelatedPartyTransfers!T257","v":0},{"$f":"[1]RelatedPartyTransfers!U257","v":0},{"$f":"[1]RelatedPartyTransfers!V257","v":0},{"$f":"[1]RelatedPartyTransfers!W257","v":0},{"$f":"[1]RelatedPartyTransfers!W257","v":0},0]
[0,0,{"$f":"IFERROR(INDEX((Settings!$M$17:$M$236),MATCH(RelatedPartyTransfers!G258,Settings!$AD$18:$AD$166,0)),0)","v":0},null,null,{"$f":"[1]RelatedPartyTransfers!F258","v":0},{"$f":"[1]RelatedPartyTransfers!G258","v":0},{"$f":"[1]RelatedPartyTransfers!H258","v":0},{"$f":"[1]RelatedPartyTransfers!I258","v":0},null,{"$f":"[1]RelatedPartyTransfers!M258","v":0},{"$f":"[1]RelatedPartyTransfers!N258","v":0},{"$f":"[1]RelatedPartyTransfers!O258","v":0},{"$f":"[1]RelatedPartyTransfers!P258","v":0},{"$f":"[1]RelatedPartyTransfers!Q258","v":0},{"$f":"[1]RelatedPartyTransfers!R258","v":0},{"$f":"[1]RelatedPartyTransfers!S258","v":0},{"$f":"[1]RelatedPartyTransfers!T258","v":0},{"$f":"[1]RelatedPartyTransfers!U258","v":0},{"$f":"[1]RelatedPartyTransfers!V258","v":0},{"$f":"[1]RelatedPartyTransfers!W258","v":0},{"$f":"[1]RelatedPartyTransfers!W258","v":0},0]
[0,0,{"$f":"IFERROR(INDEX((Settings!$M$17:$M$236),MATCH(RelatedPartyTransfers!G259,Settings!$AD$18:$AD$166,0)),0)","v":0},null,null,{"$f":"[1]RelatedPartyTransfers!F259","v":0},{"$f":"[1]RelatedPartyTransfers!G259","v":0},{"$f":"[1]RelatedPartyTransfers!H259","v":0},{"$f":"[1]RelatedPartyTransfers!I259","v":0},null,{"$f":"[1]RelatedPartyTransfers!M259","v":0},{"$f":"[1]RelatedPartyTransfers!N259","v":0},{"$f":"[1]RelatedPartyTransfers!O259","v":0},{"$f":"[1]RelatedPartyTransfers!P259","v":0},{"$f":"[1]RelatedPartyTransfers!Q259","v":0},{"$f":"[1]RelatedPartyTransfers!R259","v":0},{"$f":"[1]RelatedPartyTransfers!S259","v":0},{"$f":"[1]RelatedPartyTransfers!T259","v":0},{"$f":"[1]RelatedPartyTransfers!U259","v":0},{"$f":"[1]RelatedPartyTransfers!V259","v":0},{"$f":"[1]RelatedPartyTransfers!W259","v":0},{"$f":"[1]RelatedPartyTransfers!W259","v":0},0]
[0,0,{"$f":"IFERROR(INDEX((Settings!$M$17:$M$236),MATCH(RelatedPartyTransfers!G260,Settings!$AD$18:$AD$166,0)),0)","v":0},null,null,{"$f":"[1]RelatedPartyTransfers!F260","v":0},{"$f":"[1]RelatedPartyTransfers!G260","v":0},{"$f":"[1]RelatedPartyTransfers!H260","v":0},{"$f":"[1]RelatedPartyTransfers!I260","v":0},null,{"$f":"[1]RelatedPartyTransfers!M260","v":0},{"$f":"[1]RelatedPartyTransfers!N260","v":0},{"$f":"[1]RelatedPartyTransfers!O260","v":0},{"$f":"[1]RelatedPartyTransfers!P260","v":0},{"$f":"[1]RelatedPartyTransfers!Q260","v":0},{"$f":"[1]RelatedPartyTransfers!R260","v":0},{"$f":"[1]RelatedPartyTransfers!S260","v":0},{"$f":"[1]RelatedPartyTransfers!T260","v":0},{"$f":"[1]RelatedPartyTransfers!U260","v":0},{"$f":"[1]RelatedPartyTransfers!V260","v":0},{"$f":"[1]RelatedPartyTransfers!W260","v":0},{"$f":"[1]RelatedPartyTransfers!W260","v":0},0]
[0,0,{"$f":"IFERROR(INDEX((Settings!$M$17:$M$236),MATCH(RelatedPartyTransfers!G261,Settings!$AD$18:$AD$166,0)),0)","v":0},null,null,{"$f":"[1]RelatedPartyTransfers!F261","v":0},{"$f":"[1]RelatedPartyTransfers!G261","v":0},{"$f":"[1]RelatedPartyTransfers!H261","v":0},{"$f":"[1]RelatedPartyTransfers!I261","v":0},null,{"$f":"[1]RelatedPartyTransfers!M261","v":0},{"$f":"[1]RelatedPartyTransfers!N261","v":0},{"$f":"[1]RelatedPartyTransfers!O261","v":0},{"$f":"[1]RelatedPartyTransfers!P261","v":0},{"$f":"[1]RelatedPartyTransfers!Q261","v":0},{"$f":"[1]RelatedPartyTransfers!R261","v":0},{"$f":"[1]RelatedPartyTransfers!S261","v":0},{"$f":"[1]RelatedPartyTransfers!T261","v":0},{"$f":"[1]RelatedPartyTransfers!U261","v":0},{"$f":"[1]RelatedPartyTransfers!V261","v":0},{"$f":"[1]RelatedPartyTransfers!W261","v":0},{"$f":"[1]RelatedPartyTransfers!W261","v":0},0]
[0,0,{"$f":"IFERROR(INDEX((Settings!$M$17:$M$236),MATCH(RelatedPartyTransfers!G262,Settings!$AD$18:$AD$166,0)),0)","v":0},null,null,{"$f":"[1]RelatedPartyTransfers!F262","v":0},{"$f":"[1]RelatedPartyTransfers!G262","v":0},{"$f":"[1]RelatedPartyTransfers!H262","v":0},{"$f":"[1]RelatedPartyTransfers!I262","v":0},null,{"$f":"[1]RelatedPartyTransfers!M262","v":0},{"$f":"[1]RelatedPartyTransfers!N262","v":0},{"$f":"[1]RelatedPartyTransfers!O262","v":0},{"$f":"[1]RelatedPartyTransfers!P262","v":0},{"$f":"[1]RelatedPartyTransfers!Q262","v":0},{"$f":"[1]RelatedPartyTransfers!R262","v":0},{"$f":"[1]RelatedPartyTransfers!S262","v":0},{"$f":"[1]RelatedPartyTransfers!T262","v":0},{"$f":"[1]RelatedPartyTransfers!U262","v":0},{"$f":"[1]RelatedPartyTransfers!V262","v":0},{"$f":"[1]RelatedPartyTransfers!W262","v":0},{"$f":"[1]RelatedPartyTransfers!W262","v":0},0]
[0,0,{"$f":"IFERROR(INDEX((Settings!$M$17:$M$236),MATCH(RelatedPartyTransfers!G263,Settings!$AD$18:$AD$166,0)),0)","v":0},null,null,{"$f":"[1]RelatedPartyTransfers!F263","v":0},{"$f":"[1]RelatedPartyTransfers!G263","v":0},{"$f":"[1]RelatedPartyTransfers!H263","v":0},{"$f":"[1]RelatedPartyTransfers!I263","v":0},null,{"$f":"[1]RelatedPartyTransfers!M263","v":0},{"$f":"[1]RelatedPartyTransfers!N263","v":0},{"$f":"[1]RelatedPartyTransfers!O263","v":0},{"$f":"[1]RelatedPartyTransfers!P263","v":0},{"$f":"[1]RelatedPartyTransfers!Q263","v":0},{"$f":"[1]RelatedPartyTransfers!R263","v":0},{"$f":"[1]RelatedPartyTransfers!S263","v":0},{"$f":"[1]RelatedPartyTransfers!T263","v":0},{"$f":"[1]RelatedPartyTransfers!U263","v":0},{"$f":"[1]RelatedPartyTransfers!V263","v":0},{"$f":"[1]RelatedPartyTransfers!W263","v":0},{"$f":"[1]RelatedPartyTransfers!W263","v":0},0]
[0,0,{"$f":"IFERROR(INDEX((Settings!$M$17:$M$236),MATCH(RelatedPartyTransfers!G264,Settings!$AD$18:$AD$166,0)),0)","v":0},null,null,{"$f":"[1]RelatedPartyTransfers!F264","v":0},{"$f":"[1]RelatedPartyTransfers!G264","v":0},{"$f":"[1]RelatedPartyTransfers!H264","v":0},{"$f":"[1]RelatedPartyTransfers!I264","v":0},null,{"$f":"[1]RelatedPartyTransfers!M264","v":0},{"$f":"[1]RelatedPartyTransfers!N264","v":0},{"$f":"[1]RelatedPartyTransfers!O264","v":0},{"$f":"[1]RelatedPartyTransfers!P264","v":0},{"$f":"[1]RelatedPartyTransfers!Q264","v":0},{"$f":"[1]RelatedPartyTransfers!R264","v":0},{"$f":"[1]RelatedPartyTransfers!S264","v":0},{"$f":"[1]RelatedPartyTransfers!T264","v":0},{"$f":"[1]RelatedPartyTransfers!U264","v":0},{"$f":"[1]RelatedPartyTransfers!V264","v":0},{"$f":"[1]RelatedPartyTransfers!W264","v":0},{"$f":"[1]RelatedPartyTransfers!W264","v":0},0]
[0,0,{"$f":"IFERROR(INDEX((Settings!$M$17:$M$236),MATCH(RelatedPartyTransfers!G265,Settings!$AD$18:$AD$166,0)),0)","v":0},null,null,{"$f":"[1]RelatedPartyTransfers!F265","v":0},{"$f":"[1]RelatedPartyTransfers!G265","v":0},{"$f":"[1]RelatedPartyTransfers!H265","v":0},{"$f":"[1]RelatedPartyTransfers!I265","v":0},null,{"$f":"[1]RelatedPartyTransfers!M265","v":0},{"$f":"[1]RelatedPartyTransfers!N265","v":0},{"$f":"[1]RelatedPartyTransfers!O265","v":0},{"$f":"[1]RelatedPartyTransfers!P265","v":0},{"$f":"[1]RelatedPartyTransfers!Q265","v":0},{"$f":"[1]RelatedPartyTransfers!R265","v":0},{"$f":"[1]RelatedPartyTransfers!S265","v":0},{"$f":"[1]RelatedPartyTransfers!T265","v":0},{"$f":"[1]RelatedPartyTransfers!U265","v":0},{"$f":"[1]RelatedPartyTransfers!V265","v":0},{"$f":"[1]RelatedPartyTransfers!W265","v":0},{"$f":"[1]RelatedPartyTransfers!W265","v":0},0]
[0,0,{"$f":"IFERROR(INDEX((Settings!$M$17:$M$236),MATCH(RelatedPartyTransfers!G266,Settings!$AD$18:$AD$166,0)),0)","v":0},null,null,{"$f":"[1]RelatedPartyTransfers!F266","v":0},{"$f":"[1]RelatedPartyTransfers!G266","v":0},{"$f":"[1]RelatedPartyTransfers!H266","v":0},{"$f":"[1]RelatedPartyTransfers!I266","v":0},null,{"$f":"[1]RelatedPartyTransfers!M266","v":0},{"$f":"[1]RelatedPartyTransfers!N266","v":0},{"$f":"[1]RelatedPartyTransfers!O266","v":0},{"$f":"[1]RelatedPartyTransfers!P266","v":0},{"$f":"[1]RelatedPartyTransfers!Q266","v":0},{"$f":"[1]RelatedPartyTransfers!R266","v":0},{"$f":"[1]RelatedPartyTransfers!S266","v":0},{"$f":"[1]RelatedPartyTransfers!T266","v":0},{"$f":"[1]RelatedPartyTransfers!U266","v":0},{"$f":"[1]RelatedPartyTransfers!V266","v":0},{"$f":"[1]RelatedPartyTransfers!W266","v":0},{"$f":"[1]RelatedPartyTransfers!W266","v":0},0]
[0,{"$f":"IF($G267=$G$7,1,0)","v":0},{"$f":"IFERROR(INDEX((Settings!$M$17:$M$236),MATCH(RelatedPartyTransfers!G267,Settings!$AD$18:$AD$166,0)),0)","v":0},null,null,{"$f":"[1]RelatedPartyTransfers!F267","v":0},{"$f":"[1]RelatedPartyTransfers!G267","v":0},{"$f":"[1]RelatedPartyTransfers!H267","v":0},{"$f":"[1]RelatedPartyTransfers!I267","v":0},null,{"$f":"[1]RelatedPartyTransfers!M267","v":0},{"$f":"[1]RelatedPartyTransfers!N267","v":0},{"$f":"[1]RelatedPartyTransfers!O267","v":0},{"$f":"[1]RelatedPartyTransfers!P267","v":0},{"$f":"[1]RelatedPartyTransfers!Q267","v":0},{"$f":"[1]RelatedPartyTransfers!R267","v":0},{"$f":"[1]RelatedPartyTransfers!S267","v":0},{"$f":"[1]RelatedPartyTransfers!T267","v":0},{"$f":"[1]RelatedPartyTransfers!U267","v":0},{"$f":"[1]RelatedPartyTransfers!V267","v":0},{"$f":"[1]RelatedPartyTransfers!W267","v":0},{"$f":"[1]RelatedPartyTransfers!W267","v":0},0]
[{"$f":"IF(SUM(K268:W268)>0,1,0)","v":0},0,{"$f":"IFERROR(INDEX((Settings!$M$17:$M$236),MATCH(RelatedPartyTransfers!G268,Settings!$AD$18:$AD$166,0)),0)","v":0},null,null,{"$f":"[1]RelatedPartyTransfers!F268","v":0},{"$f":"[1]RelatedPartyTransfers!G268","v":0},{"$f":"[1]RelatedPartyTransfers!H268","v":0},{"$f":"[1]RelatedPartyTransfers!I268","v":0},null,{"$f":"[1]RelatedPartyTransfers!M268","v":0},{"$f":"[1]RelatedPartyTransfers!N268","v":0},{"$f":"[1]RelatedPartyTransfers!O268","v":0},{"$f":"[1]RelatedPartyTransfers!P268","v":0},{"$f":"[1]RelatedPartyTransfers!Q268","v":0},{"$f":"[1]RelatedPartyTransfers!R268","v":0},{"$f":"[1]RelatedPartyTransfers!S268","v":0},{"$f":"[1]RelatedPartyTransfers!T268","v":0},{"$f":"[1]RelatedPartyTransfers!U268","v":0},{"$f":"[1]RelatedPartyTransfers!V268","v":0},{"$f":"[1]RelatedPartyTransfers!W268","v":0},{"$f":"[1]RelatedPartyTransfers!W268","v":0},0]
[0,0,{"$f":"IFERROR(INDEX((Settings!$M$17:$M$236),MATCH(RelatedPartyTransfers!G269,Settings!$AD$18:$AD$166,0)),0)","v":0},null,null,{"$f":"[1]RelatedPartyTransfers!F269","v":0},{"$f":"[1]RelatedPartyTransfers!G269","v":0},{"$f":"[1]RelatedPartyTransfers!H269","v":0},{"$f":"[1]RelatedPartyTransfers!I269","v":0},null,{"$f":"[1]RelatedPartyTransfers!M269","v":0},{"$f":"[1]RelatedPartyTransfers!N269","v":0},{"$f":"[1]RelatedPartyTransfers!O269","v":0},{"$f":"[1]RelatedPartyTransfers!P269","v":0},{"$f":"[1]RelatedPartyTransfers!Q269","v":0},{"$f":"[1]RelatedPartyTransfers!R269","v":0},{"$f":"[1]RelatedPartyTransfers!S269","v":0},{"$f":"[1]RelatedPartyTransfers!T269","v":0},{"$f":"[1]RelatedPartyTransfers!U269","v":0},{"$f":"[1]RelatedPartyTransfers!V269","v":0},{"$f":"[1]RelatedPartyTransfers!W269","v":0},{"$f":"[1]RelatedPartyTransfers!W269","v":0},0]
[0,0,{"$f":"IFERROR(INDEX((Settings!$M$17:$M$236),MATCH(RelatedPartyTransfers!G270,Settings!$AD$18:$AD$166,0)),0)","v":0},null,null,{"$f":"[1]RelatedPartyTransfers!F270","v":0},{"$f":"[1]RelatedPartyTransfers!G270","v":0},{"$f":"[1]RelatedPartyTransfers!H270","v":0},{"$f":"[1]RelatedPartyTransfers!I270","v":0},null,{"$f":"[1]RelatedPartyTransfers!M270","v":0},{"$f":"[1]RelatedPartyTransfers!N270","v":0},{"$f":"[1]RelatedPartyTransfers!O270","v":0},{"$f":"[1]RelatedPartyTransfers!P270","v":0},{"$f":"[1]RelatedPartyTransfers!Q270","v":0},{"$f":"[1]RelatedPartyTransfers!R270","v":0},{"$f":"[1]RelatedPartyTransfers!S270","v":0},{"$f":"[1]RelatedPartyTransfers!T270","v":0},{"$f":"[1]RelatedPartyTransfers!U270","v":0},{"$f":"[1]RelatedPartyTransfers!V270","v":0},{"$f":"[1]RelatedPartyTransfers!W270","v":0},{"$f":"[1]RelatedPartyTransfers!W270","v":0},0]
[0,0,{"$f":"IFERROR(INDEX((Settings!$M$17:$M$236),MATCH(RelatedPartyTransfers!G271,Settings!$AD$18:$AD$166,0)),0)","v":0},null,null,{"$f":"[1]RelatedPartyTransfers!F271","v":0},{"$f":"[1]RelatedPartyTransfers!G271","v":0},{"$f":"[1]RelatedPartyTransfers!H271","v":0},{"$f":"[1]RelatedPartyTransfers!I271","v":0},null,{"$f":"[1]RelatedPartyTransfers!M271","v":0},{"$f":"[1]RelatedPartyTransfers!N271","v":0},{"$f":"[1]RelatedPartyTransfers!O271","v":0},{"$f":"[1]RelatedPartyTransfers!P271","v":0},{"$f":"[1]RelatedPartyTransfers!Q271","v":0},{"$f":"[1]RelatedPartyTransfers!R271","v":0},{"$f":"[1]RelatedPartyTransfers!S271","v":0},{"$f":"[1]RelatedPartyTransfers!T271","v":0},{"$f":"[1]RelatedPartyTransfers!U271","v":0},{"$f":"[1]RelatedPartyTransfers!V271","v":0},{"$f":"[1]RelatedPartyTransfers!W271","v":0},{"$f":"[1]RelatedPartyTransfers!W271","v":0},0]
[0,0,{"$f":"IFERROR(INDEX((Settings!$M$17:$M$236),MATCH(RelatedPartyTransfers!G272,Settings!$AD$18:$AD$166,0)),0)","v":0},null,null,{"$f":"[1]RelatedPartyTransfers!F272","v":0},{"$f":"[1]RelatedPartyTransfers!G272","v":0},{"$f":"[1]RelatedPartyTransfers!H272","v":0},{"$f":"[1]RelatedPartyTransfers!I272","v":0},null,{"$f":"[1]RelatedPartyTransfers!M272","v":0},{"$f":"[1]RelatedPartyTransfers!N272","v":0},{"$f":"[1]RelatedPartyTransfers!O272","v":0},{"$f":"[1]RelatedPartyTransfers!P272","v":0},{"$f":"[1]RelatedPartyTransfers!Q272","v":0},{"$f":"[1]RelatedPartyTransfers!R272","v":0},{"$f":"[1]RelatedPartyTransfers!S272","v":0},{"$f":"[1]RelatedPartyTransfers!T272","v":0},{"$f":"[1]RelatedPartyTransfers!U272","v":0},{"$f":"[1]RelatedPartyTransfers!V272","v":0},{"$f":"[1]RelatedPartyTransfers!W272","v":0},{"$f":"[1]RelatedPartyTransfers!W272","v":0},0]
[0,0,{"$f":"IFERROR(INDEX((Settings!$M$17:$M$236),MATCH(RelatedPartyTransfers!G273,Settings!$AD$18:$AD$166,0)),0)","v":0},null,null,{"$f":"[1]RelatedPartyTransfers!F273","v":0},{"$f":"[1]RelatedPartyTransfers!G273","v":0},{"$f":"[1]RelatedPartyTransfers!H273","v":0},{"$f":"[1]RelatedPartyTransfers!I273","v":0},null,{"$f":"[1]RelatedPartyTransfers!M273","v":0},{"$f":"[1]RelatedPartyTransfers!N273","v":0},{"$f":"[1]RelatedPartyTransfers!O273","v":0},{"$f":"[1]RelatedPartyTransfers!P273","v":0},{"$f":"[1]RelatedPartyTransfers!Q273","v":0},{"$f":"[1]RelatedPartyTransfers!R273","v":0},{"$f":"[1]RelatedPartyTransfers!S273","v":0},{"$f":"[1]RelatedPartyTransfers!T273","v":0},{"$f":"[1]RelatedPartyTransfers!U273","v":0},{"$f":"[1]RelatedPartyTransfers!V273","v":0},{"$f":"[1]RelatedPartyTransfers!W273","v":0},{"$f":"[1]RelatedPartyTransfers!W273","v":0},0]
[0,0,{"$f":"IFERROR(INDEX((Settings!$M$17:$M$236),MATCH(RelatedPartyTransfers!G274,Settings!$AD$18:$AD$166,0)),0)","v":0},null,null,{"$f":"[1]RelatedPartyTransfers!F274","v":0},{"$f":"[1]RelatedPartyTransfers!G274","v":0},{"$f":"[1]RelatedPartyTransfers!H274","v":0},{"$f":"[1]RelatedPartyTransfers!I274","v":0},null,{"$f":"[1]RelatedPartyTransfers!M274","v":0},{"$f":"[1]RelatedPartyTransfers!N274","v":0},{"$f":"[1]RelatedPartyTransfers!O274","v":0},{"$f":"[1]RelatedPartyTransfers!P274","v":0},{"$f":"[1]RelatedPartyTransfers!Q274","v":0},{"$f":"[1]RelatedPartyTransfers!R274","v":0},{"$f":"[1]RelatedPartyTransfers!S274","v":0},{"$f":"[1]RelatedPartyTransfers!T274","v":0},{"$f":"[1]RelatedPartyTransfers!U274","v":0},{"$f":"[1]RelatedPartyTransfers!V274","v":0},{"$f":"[1]RelatedPartyTransfers!W274","v":0},{"$f":"[1]RelatedPartyTransfers!W274","v":0},0]
[0,0,{"$f":"IFERROR(INDEX((Settings!$M$17:$M$236),MATCH(RelatedPartyTransfers!G275,Settings!$AD$18:$AD$166,0)),0)","v":0},null,null,{"$f":"[1]RelatedPartyTransfers!F275","v":0},{"$f":"[1]RelatedPartyTransfers!G275","v":0},{"$f":"[1]RelatedPartyTransfers!H275","v":0},{"$f":"[1]RelatedPartyTransfers!I275","v":0},null,{"$f":"[1]RelatedPartyTransfers!M275","v":0},{"$f":"[1]RelatedPartyTransfers!N275","v":0},{"$f":"[1]RelatedPartyTransfers!O275","v":0},{"$f":"[1]RelatedPartyTransfers!P275","v":0},{"$f":"[1]RelatedPartyTransfers!Q275","v":0},{"$f":"[1]RelatedPartyTransfers!R275","v":0},{"$f":"[1]RelatedPartyTransfers!S275","v":0},{"$f":"[1]RelatedPartyTransfers!T275","v":0},{"$f":"[1]RelatedPartyTransfers!U275","v":0},{"$f":"[1]RelatedPartyTransfers!V275","v":0},{"$f":"[1]RelatedPartyTransfers!W275","v":0},{"$f":"[1]RelatedPartyTransfers!W275","v":0},0]
[0,0,{"$f":"IFERROR(INDEX((Settings!$M$17:$M$236),MATCH(RelatedPartyTransfers!G276,Settings!$AD$18:$AD$166,0)),0)","v":0},null,null,{"$f":"[1]RelatedPartyTransfers!F276","v":0},{"$f":"[1]RelatedPartyTransfers!G276","v":0},{"$f":"[1]RelatedPartyTransfers!H276","v":0},{"$f":"[1]RelatedPartyTransfers!I276","v":0},null,{"$f":"[1]RelatedPartyTransfers!M276","v":0},{"$f":"[1]RelatedPartyTransfers!N276","v":0},{"$f":"[1]RelatedPartyTransfers!O276","v":0},{"$f":"[1]RelatedPartyTransfers!P276","v":0},{"$f":"[1]RelatedPartyTransfers!Q276","v":0},{"$f":"[1]RelatedPartyTransfers!R276","v":0},{"$f":"[1]RelatedPartyTransfers!S276","v":0},{"$f":"[1]RelatedPartyTransfers!T276","v":0},{"$f":"[1]RelatedPartyTransfers!U276","v":0},{"$f":"[1]RelatedPartyTransfers!V276","v":0},{"$f":"[1]RelatedPartyTransfers!W276","v":0},{"$f":"[1]RelatedPartyTransfers!W276","v":0},0]
[0,0,{"$f":"IFERROR(INDEX((Settings!$M$17:$M$236),MATCH(RelatedPartyTransfers!G277,Settings!$AD$18:$AD$166,0)),0)","v":0},null,null,{"$f":"[1]RelatedPartyTransfers!F277","v":0},{"$f":"[1]RelatedPartyTransfers!G277","v":0},{"$f":"[1]RelatedPartyTransfers!H277","v":0},{"$f":"[1]RelatedPartyTransfers!I277","v":0},null,{"$f":"[1]RelatedPartyTransfers!M277","v":0},{"$f":"[1]RelatedPartyTransfers!N277","v":0},{"$f":"[1]RelatedPartyTransfers!O277","v":0},{"$f":"[1]RelatedPartyTransfers!P277","v":0},{"$f":"[1]RelatedPartyTransfers!Q277","v":0},{"$f":"[1]RelatedPartyTransfers!R277","v":0},{"$f":"[1]RelatedPartyTransfers!S277","v":0},{"$f":"[1]RelatedPartyTransfers!T277","v":0},{"$f":"[1]RelatedPartyTransfers!U277","v":0},{"$f":"[1]RelatedPartyTransfers!V277","v":0},{"$f":"[1]RelatedPartyTransfers!W277","v":0},{"$f":"[1]RelatedPartyTransfers!W277","v":0},0]
[0,0,{"$f":"IFERROR(INDEX((Settings!$M$17:$M$236),MATCH(RelatedPartyTransfers!G278,Settings!$AD$18:$AD$166,0)),0)","v":0},null,null,{"$f":"[1]RelatedPartyTransfers!F278","v":0},{"$f":"[1]RelatedPartyTransfers!G278","v":0},{"$f":"[1]RelatedPartyTransfers!H278","v":0},{"$f":"[1]RelatedPartyTransfers!I278","v":0},null,{"$f":"[1]RelatedPartyTransfers!M278","v":0},{"$f":"[1]RelatedPartyTransfers!N278","v":0},{"$f":"[1]RelatedPartyTransfers!O278","v":0},{"$f":"[1]RelatedPartyTransfers!P278","v":0},{"$f":"[1]RelatedPartyTransfers!Q278","v":0},{"$f":"[1]RelatedPartyTransfers!R278","v":0},{"$f":"[1]RelatedPartyTransfers!S278","v":0},{"$f":"[1]RelatedPartyTransfers!T278","v":0},{"$f":"[1]RelatedPartyTransfers!U278","v":0},{"$f":"[1]RelatedPartyTransfers!V278","v":0},{"$f":"[1]RelatedPartyTransfers!W278","v":0},{"$f":"[1]RelatedPartyTransfers!W278","v":0},0]
[0,0,{"$f":"IFERROR(INDEX((Settings!$M$17:$M$236),MATCH(RelatedPartyTransfers!G279,Settings!$AD$18:$AD$166,0)),0)","v":0},null,null,{"$f":"[1]RelatedPartyTransfers!F279","v":0},{"$f":"[1]RelatedPartyTransfers!G279","v":0},{"$f":"[1]RelatedPartyTransfers!H279","v":0},{"$f":"[1]RelatedPartyTransfers!I279","v":0},null,{"$f":"[1]RelatedPartyTransfers!M279","v":0},{"$f":"[1]RelatedPartyTransfers!N279","v":0},{"$f":"[1]RelatedPartyTransfers!O279","v":0},{"$f":"[1]RelatedPartyTransfers!P279","v":0},{"$f":"[1]RelatedPartyTransfers!Q279","v":0},{"$f":"[1]RelatedPartyTransfers!R279","v":0},{"$f":"[1]RelatedPartyTransfers!S279","v":0},{"$f":"[1]RelatedPartyTransfers!T279","v":0},{"$f":"[1]RelatedPartyTransfers!U279","v":0},{"$f":"[1]RelatedPartyTransfers!V279","v":0},{"$f":"[1]RelatedPartyTransfers!W279","v":0},{"$f":"[1]RelatedPartyTransfers!W279","v":0},0]
[0,0,{"$f":"IFERROR(INDEX((Settings!$M$17:$M$236),MATCH(RelatedPartyTransfers!G280,Settings!$AD$18:$AD$166,0)),0)","v":0},null,null,{"$f":"[1]RelatedPartyTransfers!F280","v":0},{"$f":"[1]RelatedPartyTransfers!G280","v":0},{"$f":"[1]RelatedPartyTransfers!H280","v":0},{"$f":"[1]RelatedPartyTransfers!I280","v":0},null,{"$f":"[1]RelatedPartyTransfers!M280","v":0},{"$f":"[1]RelatedPartyTransfers!N280","v":0},{"$f":"[1]RelatedPartyTransfers!O280","v":0},{"$f":"[1]RelatedPartyTransfers!P280","v":0},{"$f":"[1]RelatedPartyTransfers!Q280","v":0},{"$f":"[1]RelatedPartyTransfers!R280","v":0},{"$f":"[1]RelatedPartyTransfers!S280","v":0},{"$f":"[1]RelatedPartyTransfers!T280","v":0},{"$f":"[1]RelatedPartyTransfers!U280","v":0},{"$f":"[1]RelatedPartyTransfers!V280","v":0},{"$f":"[1]RelatedPartyTransfers!W280","v":0},{"$f":"[1]RelatedPartyTransfers!W280","v":0},0]
[0,0,{"$f":"IFERROR(INDEX((Settings!$M$17:$M$236),MATCH(RelatedPartyTransfers!G281,Settings!$AD$18:$AD$166,0)),0)","v":0},null,null,{"$f":"[1]RelatedPartyTransfers!F281","v":0},{"$f":"[1]RelatedPartyTransfers!G281","v":0},{"$f":"[1]RelatedPartyTransfers!H281","v":0},{"$f":"[1]RelatedPartyTransfers!I281","v":0},null,{"$f":"[1]RelatedPartyTransfers!M281","v":0},{"$f":"[1]RelatedPartyTransfers!N281","v":0},{"$f":"[1]RelatedPartyTransfers!O281","v":0},{"$f":"[1]RelatedPartyTransfers!P281","v":0},{"$f":"[1]RelatedPartyTransfers!Q281","v":0},{"$f":"[1]RelatedPartyTransfers!R281","v":0},{"$f":"[1]RelatedPartyTransfers!S281","v":0},{"$f":"[1]RelatedPartyTransfers!T281","v":0},{"$f":"[1]RelatedPartyTransfers!U281","v":0},{"$f":"[1]RelatedPartyTransfers!V281","v":0},{"$f":"[1]RelatedPartyTransfers!W281","v":0},{"$f":"[1]RelatedPartyTransfers!W281","v":0},0]
[0,0,{"$f":"IFERROR(INDEX((Settings!$M$17:$M$236),MATCH(RelatedPartyTransfers!G282,Settings!$AD$18:$AD$166,0)),0)","v":0},null,null,{"$f":"[1]RelatedPartyTransfers!F282","v":0},{"$f":"[1]RelatedPartyTransfers!G282","v":0},{"$f":"[1]RelatedPartyTransfers!H282","v":0},{"$f":"[1]RelatedPartyTransfers!I282","v":0},null,{"$f":"[1]RelatedPartyTransfers!M282","v":0},{"$f":"[1]RelatedPartyTransfers!N282","v":0},{"$f":"[1]RelatedPartyTransfers!O282","v":0},{"$f":"[1]RelatedPartyTransfers!P282","v":0},{"$f":"[1]RelatedPartyTransfers!Q282","v":0},{"$f":"[1]RelatedPartyTransfers!R282","v":0},{"$f":"[1]RelatedPartyTransfers!S282","v":0},{"$f":"[1]RelatedPartyTransfers!T282","v":0},{"$f":"[1]RelatedPartyTransfers!U282","v":0},{"$f":"[1]RelatedPartyTransfers!V282","v":0},{"$f":"[1]RelatedPartyTransfers!W282","v":0},{"$f":"[1]RelatedPartyTransfers!W282","v":0},0]
[0,0,{"$f":"IFERROR(INDEX((Settings!$M$17:$M$236),MATCH(RelatedPartyTransfers!G283,Settings!$AD$18:$AD$166,0)),0)","v":0},null,null,{"$f":"[1]RelatedPartyTransfers!F283","v":0},{"$f":"[1]RelatedPartyTransfers!G283","v":0},{"$f":"[1]RelatedPartyTransfers!H283","v":0},{"$f":"[1]RelatedPartyTransfers!I283","v":0},null,{"$f":"[1]RelatedPartyTransfers!M283","v":0},{"$f":"[1]RelatedPartyTransfers!N283","v":0},{"$f":"[1]RelatedPartyTransfers!O283","v":0},{"$f":"[1]RelatedPartyTransfers!P283","v":0},{"$f":"[1]RelatedPartyTransfers!Q283","v":0},{"$f":"[1]RelatedPartyTransfers!R283","v":0},{"$f":"[1]RelatedPartyTransfers!S283","v":0},{"$f":"[1]RelatedPartyTransfers!T283","v":0},{"$f":"[1]RelatedPartyTransfers!U283","v":0},{"$f":"[1]RelatedPartyTransfers!V283","v":0},{"$f":"[1]RelatedPartyTransfers!W283","v":0},{"$f":"[1]RelatedPartyTransfers!W283","v":0},0]
[0,0,{"$f":"IFERROR(INDEX((Settings!$M$17:$M$236),MATCH(RelatedPartyTransfers!G284,Settings!$AD$18:$AD$166,0)),0)","v":0},null,null,{"$f":"[1]RelatedPartyTransfers!F284","v":0},{"$f":"[1]RelatedPartyTransfers!G284","v":0},{"$f":"[1]RelatedPartyTransfers!H284","v":0},{"$f":"[1]RelatedPartyTransfers!I284","v":0},null,{"$f":"[1]RelatedPartyTransfers!M284","v":0},{"$f":"[1]RelatedPartyTransfers!N284","v":0},{"$f":"[1]RelatedPartyTransfers!O284","v":0},{"$f":"[1]RelatedPartyTransfers!P284","v":0},{"$f":"[1]RelatedPartyTransfers!Q284","v":0},{"$f":"[1]RelatedPartyTransfers!R284","v":0},{"$f":"[1]RelatedPartyTransfers!S284","v":0},{"$f":"[1]RelatedPartyTransfers!T284","v":0},{"$f":"[1]RelatedPartyTransfers!U284","v":0},{"$f":"[1]RelatedPartyTransfers!V284","v":0},{"$f":"[1]RelatedPartyTransfers!W284","v":0},{"$f":"[1]RelatedPartyTransfers!W284","v":0},0]
[0,0,{"$f":"IFERROR(INDEX((Settings!$M$17:$M$236),MATCH(RelatedPartyTransfers!G285,Settings!$AD$18:$AD$166,0)),0)","v":0},null,null,{"$f":"[1]RelatedPartyTransfers!F285","v":0},{"$f":"[1]RelatedPartyTransfers!G285","v":0},{"$f":"[1]RelatedPartyTransfers!H285","v":0},{"$f":"[1]RelatedPartyTransfers!I285","v":0},null,{"$f":"[1]RelatedPartyTransfers!M285","v":0},{"$f":"[1]RelatedPartyTransfers!N285","v":0},{"$f":"[1]RelatedPartyTransfers!O285","v":0},{"$f":"[1]RelatedPartyTransfers!P285","v":0},{"$f":"[1]RelatedPartyTransfers!Q285","v":0},{"$f":"[1]RelatedPartyTransfers!R285","v":0},{"$f":"[1]RelatedPartyTransfers!S285","v":0},{"$f":"[1]RelatedPartyTransfers!T285","v":0},{"$f":"[1]RelatedPartyTransfers!U285","v":0},{"$f":"[1]RelatedPartyTransfers!V285","v":0},{"$f":"[1]RelatedPartyTransfers!W285","v":0},{"$f":"[1]RelatedPartyTransfers!W285","v":0},0]
[0,0,{"$f":"IFERROR(INDEX((Settings!$M$17:$M$236),MATCH(RelatedPartyTransfers!G286,Settings!$AD$18:$AD$166,0)),0)","v":0},null,null,{"$f":"[1]RelatedPartyTransfers!F286","v":0},{"$f":"[1]RelatedPartyTransfers!G286","v":0},{"$f":"[1]RelatedPartyTransfers!H286","v":0},{"$f":"[1]RelatedPartyTransfers!I286","v":0},null,{"$f":"[1]RelatedPartyTransfers!M286","v":0},{"$f":"[1]RelatedPartyTransfers!N286","v":0},{"$f":"[1]RelatedPartyTransfers!O286","v":0},{"$f":"[1]RelatedPartyTransfers!P286","v":0},{"$f":"[1]RelatedPartyTransfers!Q286","v":0},{"$f":"[1]RelatedPartyTransfers!R286","v":0},{"$f":"[1]RelatedPartyTransfers!S286","v":0},{"$f":"[1]RelatedPartyTransfers!T286","v":0},{"$f":"[1]RelatedPartyTransfers!U286","v":0},{"$f":"[1]RelatedPartyTransfers!V286","v":0},{"$f":"[1]RelatedPartyTransfers!W286","v":0},{"$f":"[1]RelatedPartyTransfers!W286","v":0},0]
[0,0,{"$f":"IFERROR(INDEX((Settings!$M$17:$M$236),MATCH(RelatedPartyTransfers!G287,Settings!$AD$18:$AD$166,0)),0)","v":0},null,null,{"$f":"[1]RelatedPartyTransfers!F287","v":0},{"$f":"[1]RelatedPartyTransfers!G287","v":0},{"$f":"[1]RelatedPartyTransfers!H287","v":0},{"$f":"[1]RelatedPartyTransfers!I287","v":0},null,{"$f":"[1]RelatedPartyTransfers!M287","v":0},{"$f":"[1]RelatedPartyTransfers!N287","v":0},{"$f":"[1]RelatedPartyTransfers!O287","v":0},{"$f":"[1]RelatedPartyTransfers!P287","v":0},{"$f":"[1]RelatedPartyTransfers!Q287","v":0},{"$f":"[1]RelatedPartyTransfers!R287","v":0},{"$f":"[1]RelatedPartyTransfers!S287","v":0},{"$f":"[1]RelatedPartyTransfers!T287","v":0},{"$f":"[1]RelatedPartyTransfers!U287","v":0},{"$f":"[1]RelatedPartyTransfers!V287","v":0},{"$f":"[1]RelatedPartyTransfers!W287","v":0},{"$f":"[1]RelatedPartyTransfers!W287","v":0},0]
[0,0,{"$f":"IFERROR(INDEX((Settings!$M$17:$M$236),MATCH(RelatedPartyTransfers!G288,Settings!$AD$18:$AD$166,0)),0)","v":0},null,null,{"$f":"[1]RelatedPartyTransfers!F288","v":0},{"$f":"[1]RelatedPartyTransfers!G288","v":0},{"$f":"[1]RelatedPartyTransfers!H288","v":0},{"$f":"[1]RelatedPartyTransfers!I288","v":0},null,{"$f":"[1]RelatedPartyTransfers!M288","v":0},{"$f":"[1]RelatedPartyTransfers!N288","v":0},{"$f":"[1]RelatedPartyTransfers!O288","v":0},{"$f":"[1]RelatedPartyTransfers!P288","v":0},{"$f":"[1]RelatedPartyTransfers!Q288","v":0},{"$f":"[1]RelatedPartyTransfers!R288","v":0},{"$f":"[1]RelatedPartyTransfers!S288","v":0},{"$f":"[1]RelatedPartyTransfers!T288","v":0},{"$f":"[1]RelatedPartyTransfers!U288","v":0},{"$f":"[1]RelatedPartyTransfers!V288","v":0},{"$f":"[1]RelatedPartyTransfers!W288","v":0},{"$f":"[1]RelatedPartyTransfers!W288","v":0},0]
[0,0,{"$f":"IFERROR(INDEX((Settings!$M$17:$M$236),MATCH(RelatedPartyTransfers!G289,Settings!$AD$18:$AD$166,0)),0)","v":0},null,null,{"$f":"[1]RelatedPartyTransfers!F289","v":0},{"$f":"[1]RelatedPartyTransfers!G289","v":0},{"$f":"[1]RelatedPartyTransfers!H289","v":0},{"$f":"[1]RelatedPartyTransfers!I289","v":0},null,{"$f":"[1]RelatedPartyTransfers!M289","v":0},{"$f":"[1]RelatedPartyTransfers!N289","v":0},{"$f":"[1]RelatedPartyTransfers!O289","v":0},{"$f":"[1]RelatedPartyTransfers!P289","v":0},{"$f":"[1]RelatedPartyTransfers!Q289","v":0},{"$f":"[1]RelatedPartyTransfers!R289","v":0},{"$f":"[1]RelatedPartyTransfers!S289","v":0},{"$f":"[1]RelatedPartyTransfers!T289","v":0},{"$f":"[1]RelatedPartyTransfers!U289","v":0},{"$f":"[1]RelatedPartyTransfers!V289","v":0},{"$f":"[1]RelatedPartyTransfers!W289","v":0},{"$f":"[1]RelatedPartyTransfers!W289","v":0},0]
[0,0,{"$f":"IFERROR(INDEX((Settings!$M$17:$M$236),MATCH(RelatedPartyTransfers!G290,Settings!$AD$18:$AD$166,0)),0)","v":0},null,null,{"$f":"[1]RelatedPartyTransfers!F290","v":0},{"$f":"[1]RelatedPartyTransfers!G290","v":0},{"$f":"[1]RelatedPartyTransfers!H290","v":0},{"$f":"[1]RelatedPartyTransfers!I290","v":0},null,{"$f":"[1]RelatedPartyTransfers!M290","v":0},{"$f":"[1]RelatedPartyTransfers!N290","v":0},{"$f":"[1]RelatedPartyTransfers!O290","v":0},{"$f":"[1]RelatedPartyTransfers!P290","v":0},{"$f":"[1]RelatedPartyTransfers!Q290","v":0},{"$f":"[1]RelatedPartyTransfers!R290","v":0},{"$f":"[1]RelatedPartyTransfers!S290","v":0},{"$f":"[1]RelatedPartyTransfers!T290","v":0},{"$f":"[1]RelatedPartyTransfers!U290","v":0},{"$f":"[1]RelatedPartyTransfers!V290","v":0},{"$f":"[1]RelatedPartyTransfers!W290","v":0},{"$f":"[1]RelatedPartyTransfers!W290","v":0},0]
[0,0,{"$f":"IFERROR(INDEX((Settings!$M$17:$M$236),MATCH(RelatedPartyTransfers!G291,Settings!$AD$18:$AD$166,0)),0)","v":0},null,null,{"$f":"[1]RelatedPartyTransfers!F291","v":0},{"$f":"[1]RelatedPartyTransfers!G291","v":0},{"$f":"[1]RelatedPartyTransfers!H291","v":0},{"$f":"[1]RelatedPartyTransfers!I291","v":0},null,{"$f":"[1]RelatedPartyTransfers!M291","v":0},{"$f":"[1]RelatedPartyTransfers!N291","v":0},{"$f":"[1]RelatedPartyTransfers!O291","v":0},{"$f":"[1]RelatedPartyTransfers!P291","v":0},{"$f":"[1]RelatedPartyTransfers!Q291","v":0},{"$f":"[1]RelatedPartyTransfers!R291","v":0},{"$f":"[1]RelatedPartyTransfers!S291","v":0},{"$f":"[1]RelatedPartyTransfers!T291","v":0},{"$f":"[1]RelatedPartyTransfers!U291","v":0},{"$f":"[1]RelatedPartyTransfers!V291","v":0},{"$f":"[1]RelatedPartyTransfers!W291","v":0},{"$f":"[1]RelatedPartyTransfers!W291","v":0},0]
[0,0,{"$f":"IFERROR(INDEX((Settings!$M$17:$M$236),MATCH(RelatedPartyTransfers!G292,Settings!$AD$18:$AD$166,0)),0)","v":0},null,null,{"$f":"[1]RelatedPartyTransfers!F292","v":0},{"$f":"[1]RelatedPartyTransfers!G292","v":0},{"$f":"[1]RelatedPartyTransfers!H292","v":0},{"$f":"[1]RelatedPartyTransfers!I292","v":0},null,{"$f":"[1]RelatedPartyTransfers!M292","v":0},{"$f":"[1]RelatedPartyTransfers!N292","v":0},{"$f":"[1]RelatedPartyTransfers!O292","v":0},{"$f":"[1]RelatedPartyTransfers!P292","v":0},{"$f":"[1]RelatedPartyTransfers!Q292","v":0},{"$f":"[1]RelatedPartyTransfers!R292","v":0},{"$f":"[1]RelatedPartyTransfers!S292","v":0},{"$f":"[1]RelatedPartyTransfers!T292","v":0},{"$f":"[1]RelatedPartyTransfers!U292","v":0},{"$f":"[1]RelatedPartyTransfers!V292","v":0},{"$f":"[1]RelatedPartyTransfers!W292","v":0},{"$f":"[1]RelatedPartyTransfers!W292","v":0},0]
[0,0,{"$f":"IFERROR(INDEX((Settings!$M$17:$M$236),MATCH(RelatedPartyTransfers!G293,Settings!$AD$18:$AD$166,0)),0)","v":0},null,null,{"$f":"[1]RelatedPartyTransfers!F293","v":0},{"$f":"[1]RelatedPartyTransfers!G293","v":0},{"$f":"[1]RelatedPartyTransfers!H293","v":0},{"$f":"[1]RelatedPartyTransfers!I293","v":0},null,{"$f":"[1]RelatedPartyTransfers!M293","v":0},{"$f":"[1]RelatedPartyTransfers!N293","v":0},{"$f":"[1]RelatedPartyTransfers!O293","v":0},{"$f":"[1]RelatedPartyTransfers!P293","v":0},{"$f":"[1]RelatedPartyTransfers!Q293","v":0},{"$f":"[1]RelatedPartyTransfers!R293","v":0},{"$f":"[1]RelatedPartyTransfers!S293","v":0},{"$f":"[1]RelatedPartyTransfers!T293","v":0},{"$f":"[1]RelatedPartyTransfers!U293","v":0},{"$f":"[1]RelatedPartyTransfers!V293","v":0},{"$f":"[1]RelatedPartyTransfers!W293","v":0},{"$f":"[1]RelatedPartyTransfers!W293","v":0},0]
[0,0,{"$f":"IFERROR(INDEX((Settings!$M$17:$M$236),MATCH(RelatedPartyTransfers!G294,Settings!$AD$18:$AD$166,0)),0)","v":0},null,null,{"$f":"[1]RelatedPartyTransfers!F294","v":0},{"$f":"[1]RelatedPartyTransfers!G294","v":0},{"$f":"[1]RelatedPartyTransfers!H294","v":0},{"$f":"[1]RelatedPartyTransfers!I294","v":0},null,{"$f":"[1]RelatedPartyTransfers!M294","v":0},{"$f":"[1]RelatedPartyTransfers!N294","v":0},{"$f":"[1]RelatedPartyTransfers!O294","v":0},{"$f":"[1]RelatedPartyTransfers!P294","v":0},{"$f":"[1]RelatedPartyTransfers!Q294","v":0},{"$f":"[1]RelatedPartyTransfers!R294","v":0},{"$f":"[1]RelatedPartyTransfers!S294","v":0},{"$f":"[1]RelatedPartyTransfers!T294","v":0},{"$f":"[1]RelatedPartyTransfers!U294","v":0},{"$f":"[1]RelatedPartyTransfers!V294","v":0},{"$f":"[1]RelatedPartyTransfers!W294","v":0},{"$f":"[1]RelatedPartyTransfers!W294","v":0},0]
[0,0,{"$f":"IFERROR(INDEX((Settings!$M$17:$M$236),MATCH(RelatedPartyTransfers!G295,Settings!$AD$18:$AD$166,0)),0)","v":0},null,null,{"$f":"[1]RelatedPartyTransfers!F295","v":0},{"$f":"[1]RelatedPartyTransfers!G295","v":0},{"$f":"[1]RelatedPartyTransfers!H295","v":0},{"$f":"[1]RelatedPartyTransfers!I295","v":0},null,{"$f":"[1]RelatedPartyTransfers!M295","v":0},{"$f":"[1]RelatedPartyTransfers!N295","v":0},{"$f":"[1]RelatedPartyTransfers!O295","v":0},{"$f":"[1]RelatedPartyTransfers!P295","v":0},{"$f":"[1]RelatedPartyTransfers!Q295","v":0},{"$f":"[1]RelatedPartyTransfers!R295","v":0},{"$f":"[1]RelatedPartyTransfers!S295","v":0},{"$f":"[1]RelatedPartyTransfers!T295","v":0},{"$f":"[1]RelatedPartyTransfers!U295","v":0},{"$f":"[1]RelatedPartyTransfers!V295","v":0},{"$f":"[1]RelatedPartyTransfers!W295","v":0},{"$f":"[1]RelatedPartyTransfers!W295","v":0},0]
[0,0,{"$f":"IFERROR(INDEX((Settings!$M$17:$M$236),MATCH(RelatedPartyTransfers!G296,Settings!$AD$18:$AD$166,0)),0)","v":0},null,null,{"$f":"[1]RelatedPartyTransfers!F296","v":0},{"$f":"[1]RelatedPartyTransfers!G296","v":0},{"$f":"[1]RelatedPartyTransfers!H296","v":0},{"$f":"[1]RelatedPartyTransfers!I296","v":0},null,{"$f":"[1]RelatedPartyTransfers!M296","v":0},{"$f":"[1]RelatedPartyTransfers!N296","v":0},{"$f":"[1]RelatedPartyTransfers!O296","v":0},{"$f":"[1]RelatedPartyTransfers!P296","v":0},{"$f":"[1]RelatedPartyTransfers!Q296","v":0},{"$f":"[1]RelatedPartyTransfers!R296","v":0},{"$f":"[1]RelatedPartyTransfers!S296","v":0},{"$f":"[1]RelatedPartyTransfers!T296","v":0},{"$f":"[1]RelatedPartyTransfers!U296","v":0},{"$f":"[1]RelatedPartyTransfers!V296","v":0},{"$f":"[1]RelatedPartyTransfers!W296","v":0},{"$f":"[1]RelatedPartyTransfers!W296","v":0},0]
[0,0,{"$f":"IFERROR(INDEX((Settings!$M$17:$M$236),MATCH(RelatedPartyTransfers!G297,Settings!$AD$18:$AD$166,0)),0)","v":0},null,null,{"$f":"[1]RelatedPartyTransfers!F297","v":0},{"$f":"[1]RelatedPartyTransfers!G297","v":0},{"$f":"[1]RelatedPartyTransfers!H297","v":0},{"$f":"[1]RelatedPartyTransfers!I297","v":0},null,{"$f":"[1]RelatedPartyTransfers!M297","v":0},{"$f":"[1]RelatedPartyTransfers!N297","v":0},{"$f":"[1]RelatedPartyTransfers!O297","v":0},{"$f":"[1]RelatedPartyTransfers!P297","v":0},{"$f":"[1]RelatedPartyTransfers!Q297","v":0},{"$f":"[1]RelatedPartyTransfers!R297","v":0},{"$f":"[1]RelatedPartyTransfers!S297","v":0},{"$f":"[1]RelatedPartyTransfers!T297","v":0},{"$f":"[1]RelatedPartyTransfers!U297","v":0},{"$f":"[1]RelatedPartyTransfers!V297","v":0},{"$f":"[1]RelatedPartyTransfers!W297","v":0},{"$f":"[1]RelatedPartyTransfers!W297","v":0},0]
[0,0,{"$f":"IFERROR(INDEX((Settings!$M$17:$M$236),MATCH(RelatedPartyTransfers!G298,Settings!$AD$18:$AD$166,0)),0)","v":0},null,null,{"$f":"[1]RelatedPartyTransfers!F298","v":0},{"$f":"[1]RelatedPartyTransfers!G298","v":0},{"$f":"[1]RelatedPartyTransfers!H298","v":0},{"$f":"[1]RelatedPartyTransfers!I298","v":0},null,{"$f":"[1]RelatedPartyTransfers!M298","v":0},{"$f":"[1]RelatedPartyTransfers!N298","v":0},{"$f":"[1]RelatedPartyTransfers!O298","v":0},{"$f":"[1]RelatedPartyTransfers!P298","v":0},{"$f":"[1]RelatedPartyTransfers!Q298","v":0},{"$f":"[1]RelatedPartyTransfers!R298","v":0},{"$f":"[1]RelatedPartyTransfers!S298","v":0},{"$f":"[1]RelatedPartyTransfers!T298","v":0},{"$f":"[1]RelatedPartyTransfers!U298","v":0},{"$f":"[1]RelatedPartyTransfers!V298","v":0},{"$f":"[1]RelatedPartyTransfers!W298","v":0},{"$f":"[1]RelatedPartyTransfers!W298","v":0},0]
[0,0,{"$f":"IFERROR(INDEX((Settings!$M$17:$M$236),MATCH(RelatedPartyTransfers!G299,Settings!$AD$18:$AD$166,0)),0)","v":0},null,null,{"$f":"[1]RelatedPartyTransfers!F299","v":0},{"$f":"[1]RelatedPartyTransfers!G299","v":0},{"$f":"[1]RelatedPartyTransfers!H299","v":0},{"$f":"[1]RelatedPartyTransfers!I299","v":0},null,{"$f":"[1]RelatedPartyTransfers!M299","v":0},{"$f":"[1]RelatedPartyTransfers!N299","v":0},{"$f":"[1]RelatedPartyTransfers!O299","v":0},{"$f":"[1]RelatedPartyTransfers!P299","v":0},{"$f":"[1]RelatedPartyTransfers!Q299","v":0},{"$f":"[1]RelatedPartyTransfers!R299","v":0},{"$f":"[1]RelatedPartyTransfers!S299","v":0},{"$f":"[1]RelatedPartyTransfers!T299","v":0},{"$f":"[1]RelatedPartyTransfers!U299","v":0},{"$f":"[1]RelatedPartyTransfers!V299","v":0},{"$f":"[1]RelatedPartyTransfers!W299","v":0},{"$f":"[1]RelatedPartyTransfers!W299","v":0},0]
[0,0,{"$f":"IFERROR(INDEX((Settings!$M$17:$M$236),MATCH(RelatedPartyTransfers!G300,Settings!$AD$18:$AD$166,0)),0)","v":0},null,null,{"$f":"[1]RelatedPartyTransfers!F300","v":0},{"$f":"[1]RelatedPartyTransfers!G300","v":0},{"$f":"[1]RelatedPartyTransfers!H300","v":0},{"$f":"[1]RelatedPartyTransfers!I300","v":0},null,{"$f":"[1]RelatedPartyTransfers!M300","v":0},{"$f":"[1]RelatedPartyTransfers!N300","v":0},{"$f":"[1]RelatedPartyTransfers!O300","v":0},{"$f":"[1]RelatedPartyTransfers!P300","v":0},{"$f":"[1]RelatedPartyTransfers!Q300","v":0},{"$f":"[1]RelatedPartyTransfers!R300","v":0},{"$f":"[1]RelatedPartyTransfers!S300","v":0},{"$f":"[1]RelatedPartyTransfers!T300","v":0},{"$f":"[1]RelatedPartyTransfers!U300","v":0},{"$f":"[1]RelatedPartyTransfers!V300","v":0},{"$f":"[1]RelatedPartyTransfers!W300","v":0},{"$f":"[1]RelatedPartyTransfers!W300","v":0},0]
[0,0,{"$f":"IFERROR(INDEX((Settings!$M$17:$M$236),MATCH(RelatedPartyTransfers!G301,Settings!$AD$18:$AD$166,0)),0)","v":0},null,null,{"$f":"[1]RelatedPartyTransfers!F301","v":0},{"$f":"[1]RelatedPartyTransfers!G301","v":0},{"$f":"[1]RelatedPartyTransfers!H301","v":0},{"$f":"[1]RelatedPartyTransfers!I301","v":0},null,{"$f":"[1]RelatedPartyTransfers!M301","v":0},{"$f":"[1]RelatedPartyTransfers!N301","v":0},{"$f":"[1]RelatedPartyTransfers!O301","v":0},{"$f":"[1]RelatedPartyTransfers!P301","v":0},{"$f":"[1]RelatedPartyTransfers!Q301","v":0},{"$f":"[1]RelatedPartyTransfers!R301","v":0},{"$f":"[1]RelatedPartyTransfers!S301","v":0},{"$f":"[1]RelatedPartyTransfers!T301","v":0},{"$f":"[1]RelatedPartyTransfers!U301","v":0},{"$f":"[1]RelatedPartyTransfers!V301","v":0},{"$f":"[1]RelatedPartyTransfers!W301","v":0},{"$f":"[1]RelatedPartyTransfers!W301","v":0},0]
[0,0,{"$f":"IFERROR(INDEX((Settings!$M$17:$M$236),MATCH(RelatedPartyTransfers!G302,Settings!$AD$18:$AD$166,0)),0)","v":0},null,null,{"$f":"[1]RelatedPartyTransfers!F302","v":0},{"$f":"[1]RelatedPartyTransfers!G302","v":0},{"$f":"[1]RelatedPartyTransfers!H302","v":0},{"$f":"[1]RelatedPartyTransfers!I302","v":0},null,{"$f":"[1]RelatedPartyTransfers!M302","v":0},{"$f":"[1]RelatedPartyTransfers!N302","v":0},{"$f":"[1]RelatedPartyTransfers!O302","v":0},{"$f":"[1]RelatedPartyTransfers!P302","v":0},{"$f":"[1]RelatedPartyTransfers!Q302","v":0},{"$f":"[1]RelatedPartyTransfers!R302","v":0},{"$f":"[1]RelatedPartyTransfers!S302","v":0},{"$f":"[1]RelatedPartyTransfers!T302","v":0},{"$f":"[1]RelatedPartyTransfers!U302","v":0},{"$f":"[1]RelatedPartyTransfers!V302","v":0},{"$f":"[1]RelatedPartyTransfers!W302","v":0},{"$f":"[1]RelatedPartyTransfers!W302","v":0},0]
[0,0,{"$f":"IFERROR(INDEX((Settings!$M$17:$M$236),MATCH(RelatedPartyTransfers!G303,Settings!$AD$18:$AD$166,0)),0)","v":0},null,null,{"$f":"[1]RelatedPartyTransfers!F303","v":0},{"$f":"[1]RelatedPartyTransfers!G303","v":0},{"$f":"[1]RelatedPartyTransfers!H303","v":0},{"$f":"[1]RelatedPartyTransfers!I303","v":0},null,{"$f":"[1]RelatedPartyTransfers!M303","v":0},{"$f":"[1]RelatedPartyTransfers!N303","v":0},{"$f":"[1]RelatedPartyTransfers!O303","v":0},{"$f":"[1]RelatedPartyTransfers!P303","v":0},{"$f":"[1]RelatedPartyTransfers!Q303","v":0},{"$f":"[1]RelatedPartyTransfers!R303","v":0},{"$f":"[1]RelatedPartyTransfers!S303","v":0},{"$f":"[1]RelatedPartyTransfers!T303","v":0},{"$f":"[1]RelatedPartyTransfers!U303","v":0},{"$f":"[1]RelatedPartyTransfers!V303","v":0},{"$f":"[1]RelatedPartyTransfers!W303","v":0},{"$f":"[1]RelatedPartyTransfers!W303","v":0},0]
[0,0,{"$f":"IFERROR(INDEX((Settings!$M$17:$M$236),MATCH(RelatedPartyTransfers!G304,Settings!$AD$18:$AD$166,0)),0)","v":0},null,null,{"$f":"[1]RelatedPartyTransfers!F304","v":0},{"$f":"[1]RelatedPartyTransfers!G304","v":0},{"$f":"[1]RelatedPartyTransfers!H304","v":0},{"$f":"[1]RelatedPartyTransfers!I304","v":0},null,{"$f":"[1]RelatedPartyTransfers!M304","v":0},{"$f":"[1]RelatedPartyTransfers!N304","v":0},{"$f":"[1]RelatedPartyTransfers!O304","v":0},{"$f":"[1]RelatedPartyTransfers!P304","v":0},{"$f":"[1]RelatedPartyTransfers!Q304","v":0},{"$f":"[1]RelatedPartyTransfers!R304","v":0},{"$f":"[1]RelatedPartyTransfers!S304","v":0},{"$f":"[1]RelatedPartyTransfers!T304","v":0},{"$f":"[1]RelatedPartyTransfers!U304","v":0},{"$f":"[1]RelatedPartyTransfers!V304","v":0},{"$f":"[1]RelatedPartyTransfers!W304","v":0},{"$f":"[1]RelatedPartyTransfers!W304","v":0},0]
[0,0,{"$f":"IFERROR(INDEX((Settings!$M$17:$M$236),MATCH(RelatedPartyTransfers!G305,Settings!$AD$18:$AD$166,0)),0)","v":0},null,null,{"$f":"[1]RelatedPartyTransfers!F305","v":0},{"$f":"[1]RelatedPartyTransfers!G305","v":0},{"$f":"[1]RelatedPartyTransfers!H305","v":0},{"$f":"[1]RelatedPartyTransfers!I305","v":0},null,{"$f":"[1]RelatedPartyTransfers!M305","v":0},{"$f":"[1]RelatedPartyTransfers!N305","v":0},{"$f":"[1]RelatedPartyTransfers!O305","v":0},{"$f":"[1]RelatedPartyTransfers!P305","v":0},{"$f":"[1]RelatedPartyTransfers!Q305","v":0},{"$f":"[1]RelatedPartyTransfers!R305","v":0},{"$f":"[1]RelatedPartyTransfers!S305","v":0},{"$f":"[1]RelatedPartyTransfers!T305","v":0},{"$f":"[1]RelatedPartyTransfers!U305","v":0},{"$f":"[1]RelatedPartyTransfers!V305","v":0},{"$f":"[1]RelatedPartyTransfers!W305","v":0},{"$f":"[1]RelatedPartyTransfers!W305","v":0},0]
[0,0,{"$f":"IFERROR(INDEX((Settings!$M$17:$M$236),MATCH(RelatedPartyTransfers!G306,Settings!$AD$18:$AD$166,0)),0)","v":0},null,null,{"$f":"[1]RelatedPartyTransfers!F306","v":0},{"$f":"[1]RelatedPartyTransfers!G306","v":0},{"$f":"[1]RelatedPartyTransfers!H306","v":0},{"$f":"[1]RelatedPartyTransfers!I306","v":0},null,{"$f":"[1]RelatedPartyTransfers!M306","v":0},{"$f":"[1]RelatedPartyTransfers!N306","v":0},{"$f":"[1]RelatedPartyTransfers!O306","v":0},{"$f":"[1]RelatedPartyTransfers!P306","v":0},{"$f":"[1]RelatedPartyTransfers!Q306","v":0},{"$f":"[1]RelatedPartyTransfers!R306","v":0},{"$f":"[1]RelatedPartyTransfers!S306","v":0},{"$f":"[1]RelatedPartyTransfers!T306","v":0},{"$f":"[1]RelatedPartyTransfers!U306","v":0},{"$f":"[1]RelatedPartyTransfers!V306","v":0},{"$f":"[1]RelatedPartyTransfers!W306","v":0},{"$f":"[1]RelatedPartyTransfers!W306","v":0},0]
[0,0,{"$f":"IFERROR(INDEX((Settings!$M$17:$M$236),MATCH(RelatedPartyTransfers!G307,Settings!$AD$18:$AD$166,0)),0)","v":0},null,null,{"$f":"[1]RelatedPartyTransfers!F307","v":0},{"$f":"[1]RelatedPartyTransfers!G307","v":0},{"$f":"[1]RelatedPartyTransfers!H307","v":0},{"$f":"[1]RelatedPartyTransfers!I307","v":0},null,{"$f":"[1]RelatedPartyTransfers!M307","v":0},{"$f":"[1]RelatedPartyTransfers!N307","v":0},{"$f":"[1]RelatedPartyTransfers!O307","v":0},{"$f":"[1]RelatedPartyTransfers!P307","v":0},{"$f":"[1]RelatedPartyTransfers!Q307","v":0},{"$f":"[1]RelatedPartyTransfers!R307","v":0},{"$f":"[1]RelatedPartyTransfers!S307","v":0},{"$f":"[1]RelatedPartyTransfers!T307","v":0},{"$f":"[1]RelatedPartyTransfers!U307","v":0},{"$f":"[1]RelatedPartyTransfers!V307","v":0},{"$f":"[1]RelatedPartyTransfers!W307","v":0},{"$f":"[1]RelatedPartyTransfers!W307","v":0},0]
[0,0,{"$f":"IFERROR(INDEX((Settings!$M$17:$M$236),MATCH(RelatedPartyTransfers!G308,Settings!$AD$18:$AD$166,0)),0)","v":0},null,null,{"$f":"[1]RelatedPartyTransfers!F308","v":0},{"$f":"[1]RelatedPartyTransfers!G308","v":0},{"$f":"[1]RelatedPartyTransfers!H308","v":0},{"$f":"[1]RelatedPartyTransfers!I308","v":0},null,{"$f":"[1]RelatedPartyTransfers!M308","v":0},{"$f":"[1]RelatedPartyTransfers!N308","v":0},{"$f":"[1]RelatedPartyTransfers!O308","v":0},{"$f":"[1]RelatedPartyTransfers!P308","v":0},{"$f":"[1]RelatedPartyTransfers!Q308","v":0},{"$f":"[1]RelatedPartyTransfers!R308","v":0},{"$f":"[1]RelatedPartyTransfers!S308","v":0},{"$f":"[1]RelatedPartyTransfers!T308","v":0},{"$f":"[1]RelatedPartyTransfers!U308","v":0},{"$f":"[1]RelatedPartyTransfers!V308","v":0},{"$f":"[1]RelatedPartyTransfers!W308","v":0},{"$f":"[1]RelatedPartyTransfers!W308","v":0},0]
[0,0,{"$f":"IFERROR(INDEX((Settings!$M$17:$M$236),MATCH(RelatedPartyTransfers!G309,Settings!$AD$18:$AD$166,0)),0)","v":0},null,null,{"$f":"[1]RelatedPartyTransfers!F309","v":0},{"$f":"[1]RelatedPartyTransfers!G309","v":0},{"$f":"[1]RelatedPartyTransfers!H309","v":0},{"$f":"[1]RelatedPartyTransfers!I309","v":0},null,{"$f":"[1]RelatedPartyTransfers!M309","v":0},{"$f":"[1]RelatedPartyTransfers!N309","v":0},{"$f":"[1]RelatedPartyTransfers!O309","v":0},{"$f":"[1]RelatedPartyTransfers!P309","v":0},{"$f":"[1]RelatedPartyTransfers!Q309","v":0},{"$f":"[1]RelatedPartyTransfers!R309","v":0},{"$f":"[1]RelatedPartyTransfers!S309","v":0},{"$f":"[1]RelatedPartyTransfers!T309","v":0},{"$f":"[1]RelatedPartyTransfers!U309","v":0},{"$f":"[1]RelatedPartyTransfers!V309","v":0},{"$f":"[1]RelatedPartyTransfers!W309","v":0},{"$f":"[1]RelatedPartyTransfers!W309","v":0},0]
[0,0,{"$f":"IFERROR(INDEX((Settings!$M$17:$M$236),MATCH(RelatedPartyTransfers!G310,Settings!$AD$18:$AD$166,0)),0)","v":0},null,null,{"$f":"[1]RelatedPartyTransfers!F310","v":0},{"$f":"[1]RelatedPartyTransfers!G310","v":0},{"$f":"[1]RelatedPartyTransfers!H310","v":0},{"$f":"[1]RelatedPartyTransfers!I310","v":0},null,{"$f":"[1]RelatedPartyTransfers!M310","v":0},{"$f":"[1]RelatedPartyTransfers!N310","v":0},{"$f":"[1]RelatedPartyTransfers!O310","v":0},{"$f":"[1]RelatedPartyTransfers!P310","v":0},{"$f":"[1]RelatedPartyTransfers!Q310","v":0},{"$f":"[1]RelatedPartyTransfers!R310","v":0},{"$f":"[1]RelatedPartyTransfers!S310","v":0},{"$f":"[1]RelatedPartyTransfers!T310","v":0},{"$f":"[1]RelatedPartyTransfers!U310","v":0},{"$f":"[1]RelatedPartyTransfers!V310","v":0},{"$f":"[1]RelatedPartyTransfers!W310","v":0},{"$f":"[1]RelatedPartyTransfers!W310","v":0},0]
[0,0,{"$f":"IFERROR(INDEX((Settings!$M$17:$M$236),MATCH(RelatedPartyTransfers!G311,Settings!$AD$18:$AD$166,0)),0)","v":0},null,null,{"$f":"[1]RelatedPartyTransfers!F311","v":0},{"$f":"[1]RelatedPartyTransfers!G311","v":0},{"$f":"[1]RelatedPartyTransfers!H311","v":0},{"$f":"[1]RelatedPartyTransfers!I311","v":0},null,{"$f":"[1]RelatedPartyTransfers!M311","v":0},{"$f":"[1]RelatedPartyTransfers!N311","v":0},{"$f":"[1]RelatedPartyTransfers!O311","v":0},{"$f":"[1]RelatedPartyTransfers!P311","v":0},{"$f":"[1]RelatedPartyTransfers!Q311","v":0},{"$f":"[1]RelatedPartyTransfers!R311","v":0},{"$f":"[1]RelatedPartyTransfers!S311","v":0},{"$f":"[1]RelatedPartyTransfers!T311","v":0},{"$f":"[1]RelatedPartyTransfers!U311","v":0},{"$f":"[1]RelatedPartyTransfers!V311","v":0},{"$f":"[1]RelatedPartyTransfers!W311","v":0},{"$f":"[1]RelatedPartyTransfers!W311","v":0},0]
[0,0,{"$f":"IFERROR(INDEX((Settings!$M$17:$M$236),MATCH(RelatedPartyTransfers!G312,Settings!$AD$18:$AD$166,0)),0)","v":0},null,null,{"$f":"[1]RelatedPartyTransfers!F312","v":0},{"$f":"[1]RelatedPartyTransfers!G312","v":0},{"$f":"[1]RelatedPartyTransfers!H312","v":0},{"$f":"[1]RelatedPartyTransfers!I312","v":0},null,{"$f":"[1]RelatedPartyTransfers!M312","v":0},{"$f":"[1]RelatedPartyTransfers!N312","v":0},{"$f":"[1]RelatedPartyTransfers!O312","v":0},{"$f":"[1]RelatedPartyTransfers!P312","v":0},{"$f":"[1]RelatedPartyTransfers!Q312","v":0},{"$f":"[1]RelatedPartyTransfers!R312","v":0},{"$f":"[1]RelatedPartyTransfers!S312","v":0},{"$f":"[1]RelatedPartyTransfers!T312","v":0},{"$f":"[1]RelatedPartyTransfers!U312","v":0},{"$f":"[1]RelatedPartyTransfers!V312","v":0},{"$f":"[1]RelatedPartyTransfers!W312","v":0},{"$f":"[1]RelatedPartyTransfers!W312","v":0},0]
[0,0,{"$f":"IFERROR(INDEX((Settings!$M$17:$M$236),MATCH(RelatedPartyTransfers!G313,Settings!$AD$18:$AD$166,0)),0)","v":0},null,null,{"$f":"[1]RelatedPartyTransfers!F313","v":0},{"$f":"[1]RelatedPartyTransfers!G313","v":0},{"$f":"[1]RelatedPartyTransfers!H313","v":0},{"$f":"[1]RelatedPartyTransfers!I313","v":0},null,{"$f":"[1]RelatedPartyTransfers!M313","v":0},{"$f":"[1]RelatedPartyTransfers!N313","v":0},{"$f":"[1]RelatedPartyTransfers!O313","v":0},{"$f":"[1]RelatedPartyTransfers!P313","v":0},{"$f":"[1]RelatedPartyTransfers!Q313","v":0},{"$f":"[1]RelatedPartyTransfers!R313","v":0},{"$f":"[1]RelatedPartyTransfers!S313","v":0},{"$f":"[1]RelatedPartyTransfers!T313","v":0},{"$f":"[1]RelatedPartyTransfers!U313","v":0},{"$f":"[1]RelatedPartyTransfers!V313","v":0},{"$f":"[1]RelatedPartyTransfers!W313","v":0},{"$f":"[1]RelatedPartyTransfers!W313","v":0},0]
[0,0,{"$f":"IFERROR(INDEX((Settings!$M$17:$M$236),MATCH(RelatedPartyTransfers!G314,Settings!$AD$18:$AD$166,0)),0)","v":0},null,null,{"$f":"[1]RelatedPartyTransfers!F314","v":0},{"$f":"[1]RelatedPartyTransfers!G314","v":0},{"$f":"[1]RelatedPartyTransfers!H314","v":0},{"$f":"[1]RelatedPartyTransfers!I314","v":0},null,{"$f":"[1]RelatedPartyTransfers!M314","v":0},{"$f":"[1]RelatedPartyTransfers!N314","v":0},{"$f":"[1]RelatedPartyTransfers!O314","v":0},{"$f":"[1]RelatedPartyTransfers!P314","v":0},{"$f":"[1]RelatedPartyTransfers!Q314","v":0},{"$f":"[1]RelatedPartyTransfers!R314","v":0},{"$f":"[1]RelatedPartyTransfers!S314","v":0},{"$f":"[1]RelatedPartyTransfers!T314","v":0},{"$f":"[1]RelatedPartyTransfers!U314","v":0},{"$f":"[1]RelatedPartyTransfers!V314","v":0},{"$f":"[1]RelatedPartyTransfers!W314","v":0},{"$f":"[1]RelatedPartyTransfers!W314","v":0},0]
[0,0,{"$f":"IFERROR(INDEX((Settings!$M$17:$M$236),MATCH(RelatedPartyTransfers!G315,Settings!$AD$18:$AD$166,0)),0)","v":0},null,null,{"$f":"[1]RelatedPartyTransfers!F315","v":0},{"$f":"[1]RelatedPartyTransfers!G315","v":0},{"$f":"[1]RelatedPartyTransfers!H315","v":0},{"$f":"[1]RelatedPartyTransfers!I315","v":0},null,{"$f":"[1]RelatedPartyTransfers!M315","v":0},{"$f":"[1]RelatedPartyTransfers!N315","v":0},{"$f":"[1]RelatedPartyTransfers!O315","v":0},{"$f":"[1]RelatedPartyTransfers!P315","v":0},{"$f":"[1]RelatedPartyTransfers!Q315","v":0},{"$f":"[1]RelatedPartyTransfers!R315","v":0},{"$f":"[1]RelatedPartyTransfers!S315","v":0},{"$f":"[1]RelatedPartyTransfers!T315","v":0},{"$f":"[1]RelatedPartyTransfers!U315","v":0},{"$f":"[1]RelatedPartyTransfers!V315","v":0},{"$f":"[1]RelatedPartyTransfers!W315","v":0},{"$f":"[1]RelatedPartyTransfers!W315","v":0},0]
[0,0,{"$f":"IFERROR(INDEX((Settings!$M$17:$M$236),MATCH(RelatedPartyTransfers!G316,Settings!$AD$18:$AD$166,0)),0)","v":0},null,null,{"$f":"[1]RelatedPartyTransfers!F316","v":0},{"$f":"[1]RelatedPartyTransfers!G316","v":0},{"$f":"[1]RelatedPartyTransfers!H316","v":0},{"$f":"[1]RelatedPartyTransfers!I316","v":0},null,{"$f":"[1]RelatedPartyTransfers!M316","v":0},{"$f":"[1]RelatedPartyTransfers!N316","v":0},{"$f":"[1]RelatedPartyTransfers!O316","v":0},{"$f":"[1]RelatedPartyTransfers!P316","v":0},{"$f":"[1]RelatedPartyTransfers!Q316","v":0},{"$f":"[1]RelatedPartyTransfers!R316","v":0},{"$f":"[1]RelatedPartyTransfers!S316","v":0},{"$f":"[1]RelatedPartyTransfers!T316","v":0},{"$f":"[1]RelatedPartyTransfers!U316","v":0},{"$f":"[1]RelatedPartyTransfers!V316","v":0},{"$f":"[1]RelatedPartyTransfers!W316","v":0},{"$f":"[1]RelatedPartyTransfers!W316","v":0},0]
[0,0,{"$f":"IFERROR(INDEX((Settings!$M$17:$M$236),MATCH(RelatedPartyTransfers!G317,Settings!$AD$18:$AD$166,0)),0)","v":0},null,null,{"$f":"[1]RelatedPartyTransfers!F317","v":0},{"$f":"[1]RelatedPartyTransfers!G317","v":0},{"$f":"[1]RelatedPartyTransfers!H317","v":0},{"$f":"[1]RelatedPartyTransfers!I317","v":0},null,{"$f":"[1]RelatedPartyTransfers!M317","v":0},{"$f":"[1]RelatedPartyTransfers!N317","v":0},{"$f":"[1]RelatedPartyTransfers!O317","v":0},{"$f":"[1]RelatedPartyTransfers!P317","v":0},{"$f":"[1]RelatedPartyTransfers!Q317","v":0},{"$f":"[1]RelatedPartyTransfers!R317","v":0},{"$f":"[1]RelatedPartyTransfers!S317","v":0},{"$f":"[1]RelatedPartyTransfers!T317","v":0},{"$f":"[1]RelatedPartyTransfers!U317","v":0},{"$f":"[1]RelatedPartyTransfers!V317","v":0},{"$f":"[1]RelatedPartyTransfers!W317","v":0},{"$f":"[1]RelatedPartyTransfers!W317","v":0},0]
[0,0,{"$f":"IFERROR(INDEX((Settings!$M$17:$M$236),MATCH(RelatedPartyTransfers!G318,Settings!$AD$18:$AD$166,0)),0)","v":0},null,null,{"$f":"[1]RelatedPartyTransfers!F318","v":0},{"$f":"[1]RelatedPartyTransfers!G318","v":0},{"$f":"[1]RelatedPartyTransfers!H318","v":0},{"$f":"[1]RelatedPartyTransfers!I318","v":0},null,{"$f":"[1]RelatedPartyTransfers!M318","v":0},{"$f":"[1]RelatedPartyTransfers!N318","v":0},{"$f":"[1]RelatedPartyTransfers!O318","v":0},{"$f":"[1]RelatedPartyTransfers!P318","v":0},{"$f":"[1]RelatedPartyTransfers!Q318","v":0},{"$f":"[1]RelatedPartyTransfers!R318","v":0},{"$f":"[1]RelatedPartyTransfers!S318","v":0},{"$f":"[1]RelatedPartyTransfers!T318","v":0},{"$f":"[1]RelatedPartyTransfers!U318","v":0},{"$f":"[1]RelatedPartyTransfers!V318","v":0},{"$f":"[1]RelatedPartyTransfers!W318","v":0},{"$f":"[1]RelatedPartyTransfers!W318","v":0},0]
[0,0,{"$f":"IFERROR(INDEX((Settings!$M$17:$M$236),MATCH(RelatedPartyTransfers!G319,Settings!$AD$18:$AD$166,0)),0)","v":0},null,null,{"$f":"[1]RelatedPartyTransfers!F319","v":0},{"$f":"[1]RelatedPartyTransfers!G319","v":0},{"$f":"[1]RelatedPartyTransfers!H319","v":0},{"$f":"[1]RelatedPartyTransfers!I319","v":0},null,{"$f":"[1]RelatedPartyTransfers!M319","v":0},{"$f":"[1]RelatedPartyTransfers!N319","v":0},{"$f":"[1]RelatedPartyTransfers!O319","v":0},{"$f":"[1]RelatedPartyTransfers!P319","v":0},{"$f":"[1]RelatedPartyTransfers!Q319","v":0},{"$f":"[1]RelatedPartyTransfers!R319","v":0},{"$f":"[1]RelatedPartyTransfers!S319","v":0},{"$f":"[1]RelatedPartyTransfers!T319","v":0},{"$f":"[1]RelatedPartyTransfers!U319","v":0},{"$f":"[1]RelatedPartyTransfers!V319","v":0},{"$f":"[1]RelatedPartyTransfers!W319","v":0},{"$f":"[1]RelatedPartyTransfers!W319","v":0},0]
[0,0,{"$f":"IFERROR(INDEX((Settings!$M$17:$M$236),MATCH(RelatedPartyTransfers!G320,Settings!$AD$18:$AD$166,0)),0)","v":0},null,null,{"$f":"[1]RelatedPartyTransfers!F320","v":0},{"$f":"[1]RelatedPartyTransfers!G320","v":0},{"$f":"[1]RelatedPartyTransfers!H320","v":0},{"$f":"[1]RelatedPartyTransfers!I320","v":0},null,{"$f":"[1]RelatedPartyTransfers!M320","v":0},{"$f":"[1]RelatedPartyTransfers!N320","v":0},{"$f":"[1]RelatedPartyTransfers!O320","v":0},{"$f":"[1]RelatedPartyTransfers!P320","v":0},{"$f":"[1]RelatedPartyTransfers!Q320","v":0},{"$f":"[1]RelatedPartyTransfers!R320","v":0},{"$f":"[1]RelatedPartyTransfers!S320","v":0},{"$f":"[1]RelatedPartyTransfers!T320","v":0},{"$f":"[1]RelatedPartyTransfers!U320","v":0},{"$f":"[1]RelatedPartyTransfers!V320","v":0},{"$f":"[1]RelatedPartyTransfers!W320","v":0},{"$f":"[1]RelatedPartyTransfers!W320","v":0},0]
[0,0,{"$f":"IFERROR(INDEX((Settings!$M$17:$M$236),MATCH(RelatedPartyTransfers!G321,Settings!$AD$18:$AD$166,0)),0)","v":0},null,null,{"$f":"[1]RelatedPartyTransfers!F321","v":0},{"$f":"[1]RelatedPartyTransfers!G321","v":0},{"$f":"[1]RelatedPartyTransfers!H321","v":0},{"$f":"[1]RelatedPartyTransfers!I321","v":0},null,{"$f":"[1]RelatedPartyTransfers!M321","v":0},{"$f":"[1]RelatedPartyTransfers!N321","v":0},{"$f":"[1]RelatedPartyTransfers!O321","v":0},{"$f":"[1]RelatedPartyTransfers!P321","v":0},{"$f":"[1]RelatedPartyTransfers!Q321","v":0},{"$f":"[1]RelatedPartyTransfers!R321","v":0},{"$f":"[1]RelatedPartyTransfers!S321","v":0},{"$f":"[1]RelatedPartyTransfers!T321","v":0},{"$f":"[1]RelatedPartyTransfers!U321","v":0},{"$f":"[1]RelatedPartyTransfers!V321","v":0},{"$f":"[1]RelatedPartyTransfers!W321","v":0},{"$f":"[1]RelatedPartyTransfers!W321","v":0},0]
[0,0,{"$f":"IFERROR(INDEX((Settings!$M$17:$M$236),MATCH(RelatedPartyTransfers!G322,Settings!$AD$18:$AD$166,0)),0)","v":0},null,null,{"$f":"[1]RelatedPartyTransfers!F322","v":0},{"$f":"[1]RelatedPartyTransfers!G322","v":0},{"$f":"[1]RelatedPartyTransfers!H322","v":0},{"$f":"[1]RelatedPartyTransfers!I322","v":0},null,{"$f":"[1]RelatedPartyTransfers!M322","v":0},{"$f":"[1]RelatedPartyTransfers!N322","v":0},{"$f":"[1]RelatedPartyTransfers!O322","v":0},{"$f":"[1]RelatedPartyTransfers!P322","v":0},{"$f":"[1]RelatedPartyTransfers!Q322","v":0},{"$f":"[1]RelatedPartyTransfers!R322","v":0},{"$f":"[1]RelatedPartyTransfers!S322","v":0},{"$f":"[1]RelatedPartyTransfers!T322","v":0},{"$f":"[1]RelatedPartyTransfers!U322","v":0},{"$f":"[1]RelatedPartyTransfers!V322","v":0},{"$f":"[1]RelatedPartyTransfers!W322","v":0},{"$f":"[1]RelatedPartyTransfers!W322","v":0},0]
[0,0,{"$f":"IFERROR(INDEX((Settings!$M$17:$M$236),MATCH(RelatedPartyTransfers!G323,Settings!$AD$18:$AD$166,0)),0)","v":0},null,null,{"$f":"[1]RelatedPartyTransfers!F323","v":0},{"$f":"[1]RelatedPartyTransfers!G323","v":0},{"$f":"[1]RelatedPartyTransfers!H323","v":0},{"$f":"[1]RelatedPartyTransfers!I323","v":0},null,{"$f":"[1]RelatedPartyTransfers!M323","v":0},{"$f":"[1]RelatedPartyTransfers!N323","v":0},{"$f":"[1]RelatedPartyTransfers!O323","v":0},{"$f":"[1]RelatedPartyTransfers!P323","v":0},{"$f":"[1]RelatedPartyTransfers!Q323","v":0},{"$f":"[1]RelatedPartyTransfers!R323","v":0},{"$f":"[1]RelatedPartyTransfers!S323","v":0},{"$f":"[1]RelatedPartyTransfers!T323","v":0},{"$f":"[1]RelatedPartyTransfers!U323","v":0},{"$f":"[1]RelatedPartyTransfers!V323","v":0},{"$f":"[1]RelatedPartyTransfers!W323","v":0},{"$f":"[1]RelatedPartyTransfers!W323","v":0},0]
[0,0,{"$f":"IFERROR(INDEX((Settings!$M$17:$M$236),MATCH(RelatedPartyTransfers!G324,Settings!$AD$18:$AD$166,0)),0)","v":0},null,null,{"$f":"[1]RelatedPartyTransfers!F324","v":0},{"$f":"[1]RelatedPartyTransfers!G324","v":0},{"$f":"[1]RelatedPartyTransfers!H324","v":0},{"$f":"[1]RelatedPartyTransfers!I324","v":0},null,{"$f":"[1]RelatedPartyTransfers!M324","v":0},{"$f":"[1]RelatedPartyTransfers!N324","v":0},{"$f":"[1]RelatedPartyTransfers!O324","v":0},{"$f":"[1]RelatedPartyTransfers!P324","v":0},{"$f":"[1]RelatedPartyTransfers!Q324","v":0},{"$f":"[1]RelatedPartyTransfers!R324","v":0},{"$f":"[1]RelatedPartyTransfers!S324","v":0},{"$f":"[1]RelatedPartyTransfers!T324","v":0},{"$f":"[1]RelatedPartyTransfers!U324","v":0},{"$f":"[1]RelatedPartyTransfers!V324","v":0},{"$f":"[1]RelatedPartyTransfers!W324","v":0},{"$f":"[1]RelatedPartyTransfers!W324","v":0},0]
[0,0,{"$f":"IFERROR(INDEX((Settings!$M$17:$M$236),MATCH(RelatedPartyTransfers!G325,Settings!$AD$18:$AD$166,0)),0)","v":0},null,null,{"$f":"[1]RelatedPartyTransfers!F325","v":0},{"$f":"[1]RelatedPartyTransfers!G325","v":0},{"$f":"[1]RelatedPartyTransfers!H325","v":0},{"$f":"[1]RelatedPartyTransfers!I325","v":0},null,{"$f":"[1]RelatedPartyTransfers!M325","v":0},{"$f":"[1]RelatedPartyTransfers!N325","v":0},{"$f":"[1]RelatedPartyTransfers!O325","v":0},{"$f":"[1]RelatedPartyTransfers!P325","v":0},{"$f":"[1]RelatedPartyTransfers!Q325","v":0},{"$f":"[1]RelatedPartyTransfers!R325","v":0},{"$f":"[1]RelatedPartyTransfers!S325","v":0},{"$f":"[1]RelatedPartyTransfers!T325","v":0},{"$f":"[1]RelatedPartyTransfers!U325","v":0},{"$f":"[1]RelatedPartyTransfers!V325","v":0},{"$f":"[1]RelatedPartyTransfers!W325","v":0},{"$f":"[1]RelatedPartyTransfers!W325","v":0},0]
[0,0,{"$f":"IFERROR(INDEX((Settings!$M$17:$M$236),MATCH(RelatedPartyTransfers!G326,Settings!$AD$18:$AD$166,0)),0)","v":0},null,null,{"$f":"[1]RelatedPartyTransfers!F326","v":0},{"$f":"[1]RelatedPartyTransfers!G326","v":0},{"$f":"[1]RelatedPartyTransfers!H326","v":0},{"$f":"[1]RelatedPartyTransfers!I326","v":0},null,{"$f":"[1]RelatedPartyTransfers!M326","v":0},{"$f":"[1]RelatedPartyTransfers!N326","v":0},{"$f":"[1]RelatedPartyTransfers!O326","v":0},{"$f":"[1]RelatedPartyTransfers!P326","v":0},{"$f":"[1]RelatedPartyTransfers!Q326","v":0},{"$f":"[1]RelatedPartyTransfers!R326","v":0},{"$f":"[1]RelatedPartyTransfers!S326","v":0},{"$f":"[1]RelatedPartyTransfers!T326","v":0},{"$f":"[1]RelatedPartyTransfers!U326","v":0},{"$f":"[1]RelatedPartyTransfers!V326","v":0},{"$f":"[1]RelatedPartyTransfers!W326","v":0},{"$f":"[1]RelatedPartyTransfers!W326","v":0},0]
[0,0,{"$f":"IFERROR(INDEX((Settings!$M$17:$M$236),MATCH(RelatedPartyTransfers!G327,Settings!$AD$18:$AD$166,0)),0)","v":0},null,null,{"$f":"[1]RelatedPartyTransfers!F327","v":0},{"$f":"[1]RelatedPartyTransfers!G327","v":0},{"$f":"[1]RelatedPartyTransfers!H327","v":0},{"$f":"[1]RelatedPartyTransfers!I327","v":0},null,{"$f":"[1]RelatedPartyTransfers!M327","v":0},{"$f":"[1]RelatedPartyTransfers!N327","v":0},{"$f":"[1]RelatedPartyTransfers!O327","v":0},{"$f":"[1]RelatedPartyTransfers!P327","v":0},{"$f":"[1]RelatedPartyTransfers!Q327","v":0},{"$f":"[1]RelatedPartyTransfers!R327","v":0},{"$f":"[1]RelatedPartyTransfers!S327","v":0},{"$f":"[1]RelatedPartyTransfers!T327","v":0},{"$f":"[1]RelatedPartyTransfers!U327","v":0},{"$f":"[1]RelatedPartyTransfers!V327","v":0},{"$f":"[1]RelatedPartyTransfers!W327","v":0},{"$f":"[1]RelatedPartyTransfers!W327","v":0},0]
[0,0,{"$f":"IFERROR(INDEX((Settings!$M$17:$M$236),MATCH(RelatedPartyTransfers!G328,Settings!$AD$18:$AD$166,0)),0)","v":0},null,null,{"$f":"[1]RelatedPartyTransfers!F328","v":0},{"$f":"[1]RelatedPartyTransfers!G328","v":0},{"$f":"[1]RelatedPartyTransfers!H328","v":0},{"$f":"[1]RelatedPartyTransfers!I328","v":0},null,{"$f":"[1]RelatedPartyTransfers!M328","v":0},{"$f":"[1]RelatedPartyTransfers!N328","v":0},{"$f":"[1]RelatedPartyTransfers!O328","v":0},{"$f":"[1]RelatedPartyTransfers!P328","v":0},{"$f":"[1]RelatedPartyTransfers!Q328","v":0},{"$f":"[1]RelatedPartyTransfers!R328","v":0},{"$f":"[1]RelatedPartyTransfers!S328","v":0},{"$f":"[1]RelatedPartyTransfers!T328","v":0},{"$f":"[1]RelatedPartyTransfers!U328","v":0},{"$f":"[1]RelatedPartyTransfers!V328","v":0},{"$f":"[1]RelatedPartyTransfers!W328","v":0},{"$f":"[1]RelatedPartyTransfers!W328","v":0},0]
[0,0,{"$f":"IFERROR(INDEX((Settings!$M$17:$M$236),MATCH(RelatedPartyTransfers!G329,Settings!$AD$18:$AD$166,0)),0)","v":0},null,null,{"$f":"[1]RelatedPartyTransfers!F329","v":0},{"$f":"[1]RelatedPartyTransfers!G329","v":0},{"$f":"[1]RelatedPartyTransfers!H329","v":0},{"$f":"[1]RelatedPartyTransfers!I329","v":0},null,{"$f":"[1]RelatedPartyTransfers!M329","v":0},{"$f":"[1]RelatedPartyTransfers!N329","v":0},{"$f":"[1]RelatedPartyTransfers!O329","v":0},{"$f":"[1]RelatedPartyTransfers!P329","v":0},{"$f":"[1]RelatedPartyTransfers!Q329","v":0},{"$f":"[1]RelatedPartyTransfers!R329","v":0},{"$f":"[1]RelatedPartyTransfers!S329","v":0},{"$f":"[1]RelatedPartyTransfers!T329","v":0},{"$f":"[1]RelatedPartyTransfers!U329","v":0},{"$f":"[1]RelatedPartyTransfers!V329","v":0},{"$f":"[1]RelatedPartyTransfers!W329","v":0},{"$f":"[1]RelatedPartyTransfers!W329","v":0},0]
[0,0,{"$f":"IFERROR(INDEX((Settings!$M$17:$M$236),MATCH(RelatedPartyTransfers!G330,Settings!$AD$18:$AD$166,0)),0)","v":0},null,null,{"$f":"[1]RelatedPartyTransfers!F330","v":0},{"$f":"[1]RelatedPartyTransfers!G330","v":0},{"$f":"[1]RelatedPartyTransfers!H330","v":0},{"$f":"[1]RelatedPartyTransfers!I330","v":0},null,{"$f":"[1]RelatedPartyTransfers!M330","v":0},{"$f":"[1]RelatedPartyTransfers!N330","v":0},{"$f":"[1]RelatedPartyTransfers!O330","v":0},{"$f":"[1]RelatedPartyTransfers!P330","v":0},{"$f":"[1]RelatedPartyTransfers!Q330","v":0},{"$f":"[1]RelatedPartyTransfers!R330","v":0},{"$f":"[1]RelatedPartyTransfers!S330","v":0},{"$f":"[1]RelatedPartyTransfers!T330","v":0},{"$f":"[1]RelatedPartyTransfers!U330","v":0},{"$f":"[1]RelatedPartyTransfers!V330","v":0},{"$f":"[1]RelatedPartyTransfers!W330","v":0},{"$f":"[1]RelatedPartyTransfers!W330","v":0},0]
[0,{"$f":"IF($G331=$G$7,1,0)","v":0},{"$f":"IFERROR(INDEX((Settings!$M$17:$M$236),MATCH(RelatedPartyTransfers!G331,Settings!$AD$18:$AD$166,0)),0)","v":0},null,null,{"$f":"[1]RelatedPartyTransfers!F331","v":0},{"$f":"[1]RelatedPartyTransfers!G331","v":0},{"$f":"[1]RelatedPartyTransfers!H331","v":0},{"$f":"[1]RelatedPartyTransfers!I331","v":0},null,{"$f":"[1]RelatedPartyTransfers!M331","v":0},{"$f":"[1]RelatedPartyTransfers!N331","v":0},{"$f":"[1]RelatedPartyTransfers!O331","v":0},{"$f":"[1]RelatedPartyTransfers!P331","v":0},{"$f":"[1]RelatedPartyTransfers!Q331","v":0},{"$f":"[1]RelatedPartyTransfers!R331","v":0},{"$f":"[1]RelatedPartyTransfers!S331","v":0},{"$f":"[1]RelatedPartyTransfers!T331","v":0},{"$f":"[1]RelatedPartyTransfers!U331","v":0},{"$f":"[1]RelatedPartyTransfers!V331","v":0},{"$f":"[1]RelatedPartyTransfers!W331","v":0},{"$f":"[1]RelatedPartyTransfers!W331","v":0},0]
[{"$f":"IF(SUM(K332:W332)>0,1,0)","v":0},0,{"$f":"IFERROR(INDEX((Settings!$M$17:$M$236),MATCH(RelatedPartyTransfers!G332,Settings!$AD$18:$AD$166,0)),0)","v":0},null,null,{"$f":"[1]RelatedPartyTransfers!F332","v":0},{"$f":"[1]RelatedPartyTransfers!G332","v":0},{"$f":"[1]RelatedPartyTransfers!H332","v":0},{"$f":"[1]RelatedPartyTransfers!I332","v":0},null,{"$f":"[1]RelatedPartyTransfers!M332","v":0},{"$f":"[1]RelatedPartyTransfers!N332","v":0},{"$f":"[1]RelatedPartyTransfers!O332","v":0},{"$f":"[1]RelatedPartyTransfers!P332","v":0},{"$f":"[1]RelatedPartyTransfers!Q332","v":0},{"$f":"[1]RelatedPartyTransfers!R332","v":0},{"$f":"[1]RelatedPartyTransfers!S332","v":0},{"$f":"[1]RelatedPartyTransfers!T332","v":0},{"$f":"[1]RelatedPartyTransfers!U332","v":0},{"$f":"[1]RelatedPartyTransfers!V332","v":0},{"$f":"[1]RelatedPartyTransfers!W332","v":0},{"$f":"[1]RelatedPartyTransfers!W332","v":0},0]
[0,0,{"$f":"IFERROR(INDEX((Settings!$M$17:$M$236),MATCH(RelatedPartyTransfers!G333,Settings!$AD$18:$AD$166,0)),0)","v":0},null,null,{"$f":"[1]RelatedPartyTransfers!F333","v":0},{"$f":"[1]RelatedPartyTransfers!G333","v":0},{"$f":"[1]RelatedPartyTransfers!H333","v":0},{"$f":"[1]RelatedPartyTransfers!I333","v":0},null,{"$f":"[1]RelatedPartyTransfers!M333","v":0},{"$f":"[1]RelatedPartyTransfers!N333","v":0},{"$f":"[1]RelatedPartyTransfers!O333","v":0},{"$f":"[1]RelatedPartyTransfers!P333","v":0},{"$f":"[1]RelatedPartyTransfers!Q333","v":0},{"$f":"[1]RelatedPartyTransfers!R333","v":0},{"$f":"[1]RelatedPartyTransfers!S333","v":0},{"$f":"[1]RelatedPartyTransfers!T333","v":0},{"$f":"[1]RelatedPartyTransfers!U333","v":0},{"$f":"[1]RelatedPartyTransfers!V333","v":0},{"$f":"[1]RelatedPartyTransfers!W333","v":0},{"$f":"[1]RelatedPartyTransfers!W333","v":0},0]
[0,0,{"$f":"IFERROR(INDEX((Settings!$M$17:$M$236),MATCH(RelatedPartyTransfers!G334,Settings!$AD$18:$AD$166,0)),0)","v":0},null,null,{"$f":"[1]RelatedPartyTransfers!F334","v":0},{"$f":"[1]RelatedPartyTransfers!G334","v":0},{"$f":"[1]RelatedPartyTransfers!H334","v":0},{"$f":"[1]RelatedPartyTransfers!I334","v":0},null,{"$f":"[1]RelatedPartyTransfers!M334","v":0},{"$f":"[1]RelatedPartyTransfers!N334","v":0},{"$f":"[1]RelatedPartyTransfers!O334","v":0},{"$f":"[1]RelatedPartyTransfers!P334","v":0},{"$f":"[1]RelatedPartyTransfers!Q334","v":0},{"$f":"[1]RelatedPartyTransfers!R334","v":0},{"$f":"[1]RelatedPartyTransfers!S334","v":0},{"$f":"[1]RelatedPartyTransfers!T334","v":0},{"$f":"[1]RelatedPartyTransfers!U334","v":0},{"$f":"[1]RelatedPartyTransfers!V334","v":0},{"$f":"[1]RelatedPartyTransfers!W334","v":0},{"$f":"[1]RelatedPartyTransfers!W334","v":0},0]
[0,0,{"$f":"IFERROR(INDEX((Settings!$M$17:$M$236),MATCH(RelatedPartyTransfers!G335,Settings!$AD$18:$AD$166,0)),0)","v":0},null,null,{"$f":"[1]RelatedPartyTransfers!F335","v":0},{"$f":"[1]RelatedPartyTransfers!G335","v":0},{"$f":"[1]RelatedPartyTransfers!H335","v":0},{"$f":"[1]RelatedPartyTransfers!I335","v":0},null,{"$f":"[1]RelatedPartyTransfers!M335","v":0},{"$f":"[1]RelatedPartyTransfers!N335","v":0},{"$f":"[1]RelatedPartyTransfers!O335","v":0},{"$f":"[1]RelatedPartyTransfers!P335","v":0},{"$f":"[1]RelatedPartyTransfers!Q335","v":0},{"$f":"[1]RelatedPartyTransfers!R335","v":0},{"$f":"[1]RelatedPartyTransfers!S335","v":0},{"$f":"[1]RelatedPartyTransfers!T335","v":0},{"$f":"[1]RelatedPartyTransfers!U335","v":0},{"$f":"[1]RelatedPartyTransfers!V335","v":0},{"$f":"[1]RelatedPartyTransfers!W335","v":0},{"$f":"[1]RelatedPartyTransfers!W335","v":0},0]
[0,0,{"$f":"IFERROR(INDEX((Settings!$M$17:$M$236),MATCH(RelatedPartyTransfers!G336,Settings!$AD$18:$AD$166,0)),0)","v":0},null,null,{"$f":"[1]RelatedPartyTransfers!F336","v":0},{"$f":"[1]RelatedPartyTransfers!G336","v":0},{"$f":"[1]RelatedPartyTransfers!H336","v":0},{"$f":"[1]RelatedPartyTransfers!I336","v":0},null,{"$f":"[1]RelatedPartyTransfers!M336","v":0},{"$f":"[1]RelatedPartyTransfers!N336","v":0},{"$f":"[1]RelatedPartyTransfers!O336","v":0},{"$f":"[1]RelatedPartyTransfers!P336","v":0},{"$f":"[1]RelatedPartyTransfers!Q336","v":0},{"$f":"[1]RelatedPartyTransfers!R336","v":0},{"$f":"[1]RelatedPartyTransfers!S336","v":0},{"$f":"[1]RelatedPartyTransfers!T336","v":0},{"$f":"[1]RelatedPartyTransfers!U336","v":0},{"$f":"[1]RelatedPartyTransfers!V336","v":0},{"$f":"[1]RelatedPartyTransfers!W336","v":0},{"$f":"[1]RelatedPartyTransfers!W336","v":0},0]
[0,0,{"$f":"IFERROR(INDEX((Settings!$M$17:$M$236),MATCH(RelatedPartyTransfers!G337,Settings!$AD$18:$AD$166,0)),0)","v":0},null,null,{"$f":"[1]RelatedPartyTransfers!F337","v":0},{"$f":"[1]RelatedPartyTransfers!G337","v":0},{"$f":"[1]RelatedPartyTransfers!H337","v":0},{"$f":"[1]RelatedPartyTransfers!I337","v":0},null,{"$f":"[1]RelatedPartyTransfers!M337","v":0},{"$f":"[1]RelatedPartyTransfers!N337","v":0},{"$f":"[1]RelatedPartyTransfers!O337","v":0},{"$f":"[1]RelatedPartyTransfers!P337","v":0},{"$f":"[1]RelatedPartyTransfers!Q337","v":0},{"$f":"[1]RelatedPartyTransfers!R337","v":0},{"$f":"[1]RelatedPartyTransfers!S337","v":0},{"$f":"[1]RelatedPartyTransfers!T337","v":0},{"$f":"[1]RelatedPartyTransfers!U337","v":0},{"$f":"[1]RelatedPartyTransfers!V337","v":0},{"$f":"[1]RelatedPartyTransfers!W337","v":0},{"$f":"[1]RelatedPartyTransfers!W337","v":0},0]
[0,0,{"$f":"IFERROR(INDEX((Settings!$M$17:$M$236),MATCH(RelatedPartyTransfers!G338,Settings!$AD$18:$AD$166,0)),0)","v":0},null,null,{"$f":"[1]RelatedPartyTransfers!F338","v":0},{"$f":"[1]RelatedPartyTransfers!G338","v":0},{"$f":"[1]RelatedPartyTransfers!H338","v":0},{"$f":"[1]RelatedPartyTransfers!I338","v":0},null,{"$f":"[1]RelatedPartyTransfers!M338","v":0},{"$f":"[1]RelatedPartyTransfers!N338","v":0},{"$f":"[1]RelatedPartyTransfers!O338","v":0},{"$f":"[1]RelatedPartyTransfers!P338","v":0},{"$f":"[1]RelatedPartyTransfers!Q338","v":0},{"$f":"[1]RelatedPartyTransfers!R338","v":0},{"$f":"[1]RelatedPartyTransfers!S338","v":0},{"$f":"[1]RelatedPartyTransfers!T338","v":0},{"$f":"[1]RelatedPartyTransfers!U338","v":0},{"$f":"[1]RelatedPartyTransfers!V338","v":0},{"$f":"[1]RelatedPartyTransfers!W338","v":0},{"$f":"[1]RelatedPartyTransfers!W338","v":0},0]
[0,0,{"$f":"IFERROR(INDEX((Settings!$M$17:$M$236),MATCH(RelatedPartyTransfers!G339,Settings!$AD$18:$AD$166,0)),0)","v":0},null,null,{"$f":"[1]RelatedPartyTransfers!F339","v":0},{"$f":"[1]RelatedPartyTransfers!G339","v":0},{"$f":"[1]RelatedPartyTransfers!H339","v":0},{"$f":"[1]RelatedPartyTransfers!I339","v":0},null,{"$f":"[1]RelatedPartyTransfers!M339","v":0},{"$f":"[1]RelatedPartyTransfers!N339","v":0},{"$f":"[1]RelatedPartyTransfers!O339","v":0},{"$f":"[1]RelatedPartyTransfers!P339","v":0},{"$f":"[1]RelatedPartyTransfers!Q339","v":0},{"$f":"[1]RelatedPartyTransfers!R339","v":0},{"$f":"[1]RelatedPartyTransfers!S339","v":0},{"$f":"[1]RelatedPartyTransfers!T339","v":0},{"$f":"[1]RelatedPartyTransfers!U339","v":0},{"$f":"[1]RelatedPartyTransfers!V339","v":0},{"$f":"[1]RelatedPartyTransfers!W339","v":0},{"$f":"[1]RelatedPartyTransfers!W339","v":0},0]
[0,0,{"$f":"IFERROR(INDEX((Settings!$M$17:$M$236),MATCH(RelatedPartyTransfers!G340,Settings!$AD$18:$AD$166,0)),0)","v":0},null,null,{"$f":"[1]RelatedPartyTransfers!F340","v":0},{"$f":"[1]RelatedPartyTransfers!G340","v":0},{"$f":"[1]RelatedPartyTransfers!H340","v":0},{"$f":"[1]RelatedPartyTransfers!I340","v":0},null,{"$f":"[1]RelatedPartyTransfers!M340","v":0},{"$f":"[1]RelatedPartyTransfers!N340","v":0},{"$f":"[1]RelatedPartyTransfers!O340","v":0},{"$f":"[1]RelatedPartyTransfers!P340","v":0},{"$f":"[1]RelatedPartyTransfers!Q340","v":0},{"$f":"[1]RelatedPartyTransfers!R340","v":0},{"$f":"[1]RelatedPartyTransfers!S340","v":0},{"$f":"[1]RelatedPartyTransfers!T340","v":0},{"$f":"[1]RelatedPartyTransfers!U340","v":0},{"$f":"[1]RelatedPartyTransfers!V340","v":0},{"$f":"[1]RelatedPartyTransfers!W340","v":0},{"$f":"[1]RelatedPartyTransfers!W340","v":0},0]
[0,0,{"$f":"IFERROR(INDEX((Settings!$M$17:$M$236),MATCH(RelatedPartyTransfers!G341,Settings!$AD$18:$AD$166,0)),0)","v":0},null,null,{"$f":"[1]RelatedPartyTransfers!F341","v":0},{"$f":"[1]RelatedPartyTransfers!G341","v":0},{"$f":"[1]RelatedPartyTransfers!H341","v":0},{"$f":"[1]RelatedPartyTransfers!I341","v":0},null,{"$f":"[1]RelatedPartyTransfers!M341","v":0},{"$f":"[1]RelatedPartyTransfers!N341","v":0},{"$f":"[1]RelatedPartyTransfers!O341","v":0},{"$f":"[1]RelatedPartyTransfers!P341","v":0},{"$f":"[1]RelatedPartyTransfers!Q341","v":0},{"$f":"[1]RelatedPartyTransfers!R341","v":0},{"$f":"[1]RelatedPartyTransfers!S341","v":0},{"$f":"[1]RelatedPartyTransfers!T341","v":0},{"$f":"[1]RelatedPartyTransfers!U341","v":0},{"$f":"[1]RelatedPartyTransfers!V341","v":0},{"$f":"[1]RelatedPartyTransfers!W341","v":0},{"$f":"[1]RelatedPartyTransfers!W341","v":0},0]
[0,0,{"$f":"IFERROR(INDEX((Settings!$M$17:$M$236),MATCH(RelatedPartyTransfers!G342,Settings!$AD$18:$AD$166,0)),0)","v":0},null,null,{"$f":"[1]RelatedPartyTransfers!F342","v":0},{"$f":"[1]RelatedPartyTransfers!G342","v":0},{"$f":"[1]RelatedPartyTransfers!H342","v":0},{"$f":"[1]RelatedPartyTransfers!I342","v":0},null,{"$f":"[1]RelatedPartyTransfers!M342","v":0},{"$f":"[1]RelatedPartyTransfers!N342","v":0},{"$f":"[1]RelatedPartyTransfers!O342","v":0},{"$f":"[1]RelatedPartyTransfers!P342","v":0},{"$f":"[1]RelatedPartyTransfers!Q342","v":0},{"$f":"[1]RelatedPartyTransfers!R342","v":0},{"$f":"[1]RelatedPartyTransfers!S342","v":0},{"$f":"[1]RelatedPartyTransfers!T342","v":0},{"$f":"[1]RelatedPartyTransfers!U342","v":0},{"$f":"[1]RelatedPartyTransfers!V342","v":0},{"$f":"[1]RelatedPartyTransfers!W342","v":0},{"$f":"[1]RelatedPartyTransfers!W342","v":0},0]
[0,0,{"$f":"IFERROR(INDEX((Settings!$M$17:$M$236),MATCH(RelatedPartyTransfers!G343,Settings!$AD$18:$AD$166,0)),0)","v":0},null,null,{"$f":"[1]RelatedPartyTransfers!F343","v":0},{"$f":"[1]RelatedPartyTransfers!G343","v":0},{"$f":"[1]RelatedPartyTransfers!H343","v":0},{"$f":"[1]RelatedPartyTransfers!I343","v":0},null,{"$f":"[1]RelatedPartyTransfers!M343","v":0},{"$f":"[1]RelatedPartyTransfers!N343","v":0},{"$f":"[1]RelatedPartyTransfers!O343","v":0},{"$f":"[1]RelatedPartyTransfers!P343","v":0},{"$f":"[1]RelatedPartyTransfers!Q343","v":0},{"$f":"[1]RelatedPartyTransfers!R343","v":0},{"$f":"[1]RelatedPartyTransfers!S343","v":0},{"$f":"[1]RelatedPartyTransfers!T343","v":0},{"$f":"[1]RelatedPartyTransfers!U343","v":0},{"$f":"[1]RelatedPartyTransfers!V343","v":0},{"$f":"[1]RelatedPartyTransfers!W343","v":0},{"$f":"[1]RelatedPartyTransfers!W343","v":0},0]
[0,0,{"$f":"IFERROR(INDEX((Settings!$M$17:$M$236),MATCH(RelatedPartyTransfers!G344,Settings!$AD$18:$AD$166,0)),0)","v":0},null,null,{"$f":"[1]RelatedPartyTransfers!F344","v":0},{"$f":"[1]RelatedPartyTransfers!G344","v":0},{"$f":"[1]RelatedPartyTransfers!H344","v":0},{"$f":"[1]RelatedPartyTransfers!I344","v":0},null,{"$f":"[1]RelatedPartyTransfers!M344","v":0},{"$f":"[1]RelatedPartyTransfers!N344","v":0},{"$f":"[1]RelatedPartyTransfers!O344","v":0},{"$f":"[1]RelatedPartyTransfers!P344","v":0},{"$f":"[1]RelatedPartyTransfers!Q344","v":0},{"$f":"[1]RelatedPartyTransfers!R344","v":0},{"$f":"[1]RelatedPartyTransfers!S344","v":0},{"$f":"[1]RelatedPartyTransfers!T344","v":0},{"$f":"[1]RelatedPartyTransfers!U344","v":0},{"$f":"[1]RelatedPartyTransfers!V344","v":0},{"$f":"[1]RelatedPartyTransfers!W344","v":0},{"$f":"[1]RelatedPartyTransfers!W344","v":0},0]
[0,0,{"$f":"IFERROR(INDEX((Settings!$M$17:$M$236),MATCH(RelatedPartyTransfers!G345,Settings!$AD$18:$AD$166,0)),0)","v":0},null,null,{"$f":"[1]RelatedPartyTransfers!F345","v":0},{"$f":"[1]RelatedPartyTransfers!G345","v":0},{"$f":"[1]RelatedPartyTransfers!H345","v":0},{"$f":"[1]RelatedPartyTransfers!I345","v":0},null,{"$f":"[1]RelatedPartyTransfers!M345","v":0},{"$f":"[1]RelatedPartyTransfers!N345","v":0},{"$f":"[1]RelatedPartyTransfers!O345","v":0},{"$f":"[1]RelatedPartyTransfers!P345","v":0},{"$f":"[1]RelatedPartyTransfers!Q345","v":0},{"$f":"[1]RelatedPartyTransfers!R345","v":0},{"$f":"[1]RelatedPartyTransfers!S345","v":0},{"$f":"[1]RelatedPartyTransfers!T345","v":0},{"$f":"[1]RelatedPartyTransfers!U345","v":0},{"$f":"[1]RelatedPartyTransfers!V345","v":0},{"$f":"[1]RelatedPartyTransfers!W345","v":0},{"$f":"[1]RelatedPartyTransfers!W345","v":0},0]
[0,0,{"$f":"IFERROR(INDEX((Settings!$M$17:$M$236),MATCH(RelatedPartyTransfers!G346,Settings!$AD$18:$AD$166,0)),0)","v":0},null,null,{"$f":"[1]RelatedPartyTransfers!F346","v":0},{"$f":"[1]RelatedPartyTransfers!G346","v":0},{"$f":"[1]RelatedPartyTransfers!H346","v":0},{"$f":"[1]RelatedPartyTransfers!I346","v":0},null,{"$f":"[1]RelatedPartyTransfers!M346","v":0},{"$f":"[1]RelatedPartyTransfers!N346","v":0},{"$f":"[1]RelatedPartyTransfers!O346","v":0},{"$f":"[1]RelatedPartyTransfers!P346","v":0},{"$f":"[1]RelatedPartyTransfers!Q346","v":0},{"$f":"[1]RelatedPartyTransfers!R346","v":0},{"$f":"[1]RelatedPartyTransfers!S346","v":0},{"$f":"[1]RelatedPartyTransfers!T346","v":0},{"$f":"[1]RelatedPartyTransfers!U346","v":0},{"$f":"[1]RelatedPartyTransfers!V346","v":0},{"$f":"[1]RelatedPartyTransfers!W346","v":0},{"$f":"[1]RelatedPartyTransfers!W346","v":0},0]
[0,0,{"$f":"IFERROR(INDEX((Settings!$M$17:$M$236),MATCH(RelatedPartyTransfers!G347,Settings!$AD$18:$AD$166,0)),0)","v":0},null,null,{"$f":"[1]RelatedPartyTransfers!F347","v":0},{"$f":"[1]RelatedPartyTransfers!G347","v":0},{"$f":"[1]RelatedPartyTransfers!H347","v":0},{"$f":"[1]RelatedPartyTransfers!I347","v":0},null,{"$f":"[1]RelatedPartyTransfers!M347","v":0},{"$f":"[1]RelatedPartyTransfers!N347","v":0},{"$f":"[1]RelatedPartyTransfers!O347","v":0},{"$f":"[1]RelatedPartyTransfers!P347","v":0},{"$f":"[1]RelatedPartyTransfers!Q347","v":0},{"$f":"[1]RelatedPartyTransfers!R347","v":0},{"$f":"[1]RelatedPartyTransfers!S347","v":0},{"$f":"[1]RelatedPartyTransfers!T347","v":0},{"$f":"[1]RelatedPartyTransfers!U347","v":0},{"$f":"[1]RelatedPartyTransfers!V347","v":0},{"$f":"[1]RelatedPartyTransfers!W347","v":0},{"$f":"[1]RelatedPartyTransfers!W347","v":0},0]
[0,0,{"$f":"IFERROR(INDEX((Settings!$M$17:$M$236),MATCH(RelatedPartyTransfers!G348,Settings!$AD$18:$AD$166,0)),0)","v":0},null,null,{"$f":"[1]RelatedPartyTransfers!F348","v":0},{"$f":"[1]RelatedPartyTransfers!G348","v":0},{"$f":"[1]RelatedPartyTransfers!H348","v":0},{"$f":"[1]RelatedPartyTransfers!I348","v":0},null,{"$f":"[1]RelatedPartyTransfers!M348","v":0},{"$f":"[1]RelatedPartyTransfers!N348","v":0},{"$f":"[1]RelatedPartyTransfers!O348","v":0},{"$f":"[1]RelatedPartyTransfers!P348","v":0},{"$f":"[1]RelatedPartyTransfers!Q348","v":0},{"$f":"[1]RelatedPartyTransfers!R348","v":0},{"$f":"[1]RelatedPartyTransfers!S348","v":0},{"$f":"[1]RelatedPartyTransfers!T348","v":0},{"$f":"[1]RelatedPartyTransfers!U348","v":0},{"$f":"[1]RelatedPartyTransfers!V348","v":0},{"$f":"[1]RelatedPartyTransfers!W348","v":0},{"$f":"[1]RelatedPartyTransfers!W348","v":0},0]
[0,0,{"$f":"IFERROR(INDEX((Settings!$M$17:$M$236),MATCH(RelatedPartyTransfers!G349,Settings!$AD$18:$AD$166,0)),0)","v":0},null,null,{"$f":"[1]RelatedPartyTransfers!F349","v":0},{"$f":"[1]RelatedPartyTransfers!G349","v":0},{"$f":"[1]RelatedPartyTransfers!H349","v":0},{"$f":"[1]RelatedPartyTransfers!I349","v":0},null,{"$f":"[1]RelatedPartyTransfers!M349","v":0},{"$f":"[1]RelatedPartyTransfers!N349","v":0},{"$f":"[1]RelatedPartyTransfers!O349","v":0},{"$f":"[1]RelatedPartyTransfers!P349","v":0},{"$f":"[1]RelatedPartyTransfers!Q349","v":0},{"$f":"[1]RelatedPartyTransfers!R349","v":0},{"$f":"[1]RelatedPartyTransfers!S349","v":0},{"$f":"[1]RelatedPartyTransfers!T349","v":0},{"$f":"[1]RelatedPartyTransfers!U349","v":0},{"$f":"[1]RelatedPartyTransfers!V349","v":0},{"$f":"[1]RelatedPartyTransfers!W349","v":0},{"$f":"[1]RelatedPartyTransfers!W349","v":0}]
[0,0,{"$f":"IFERROR(INDEX((Settings!$M$17:$M$236),MATCH(RelatedPartyTransfers!G350,Settings!$AD$18:$AD$166,0)),0)","v":0},null,null,{"$f":"[1]RelatedPartyTransfers!F350","v":0},{"$f":"[1]RelatedPartyTransfers!G350","v":0},{"$f":"[1]RelatedPartyTransfers!H350","v":0},{"$f":"[1]RelatedPartyTransfers!I350","v":0},null,{"$f":"[1]RelatedPartyTransfers!M350","v":0},{"$f":"[1]RelatedPartyTransfers!N350","v":0},{"$f":"[1]RelatedPartyTransfers!O350","v":0},{"$f":"[1]RelatedPartyTransfers!P350","v":0},{"$f":"[1]RelatedPartyTransfers!Q350","v":0},{"$f":"[1]RelatedPartyTransfers!R350","v":0},{"$f":"[1]RelatedPartyTransfers!S350","v":0},{"$f":"[1]RelatedPartyTransfers!T350","v":0},{"$f":"[1]RelatedPartyTransfers!U350","v":0},{"$f":"[1]RelatedPartyTransfers!V350","v":0},{"$f":"[1]RelatedPartyTransfers!W350","v":0},{"$f":"[1]RelatedPartyTransfers!W350","v":0},0]
[0,0,{"$f":"IFERROR(INDEX((Settings!$M$17:$M$236),MATCH(RelatedPartyTransfers!G351,Settings!$AD$18:$AD$166,0)),0)","v":0},null,null,{"$f":"[1]RelatedPartyTransfers!F351","v":0},{"$f":"[1]RelatedPartyTransfers!G351","v":0},{"$f":"[1]RelatedPartyTransfers!H351","v":0},{"$f":"[1]RelatedPartyTransfers!I351","v":0},null,{"$f":"[1]RelatedPartyTransfers!M351","v":0},{"$f":"[1]RelatedPartyTransfers!N351","v":0},{"$f":"[1]RelatedPartyTransfers!O351","v":0},{"$f":"[1]RelatedPartyTransfers!P351","v":0},{"$f":"[1]RelatedPartyTransfers!Q351","v":0},{"$f":"[1]RelatedPartyTransfers!R351","v":0},{"$f":"[1]RelatedPartyTransfers!S351","v":0},{"$f":"[1]RelatedPartyTransfers!T351","v":0},{"$f":"[1]RelatedPartyTransfers!U351","v":0},{"$f":"[1]RelatedPartyTransfers!V351","v":0},{"$f":"[1]RelatedPartyTransfers!W351","v":0},{"$f":"[1]RelatedPartyTransfers!W351","v":0},0]
[0,0,{"$f":"IFERROR(INDEX((Settings!$M$17:$M$236),MATCH(RelatedPartyTransfers!G352,Settings!$AD$18:$AD$166,0)),0)","v":0},null,null,{"$f":"[1]RelatedPartyTransfers!F352","v":0},{"$f":"[1]RelatedPartyTransfers!G352","v":0},{"$f":"[1]RelatedPartyTransfers!H352","v":0},{"$f":"[1]RelatedPartyTransfers!I352","v":0},null,{"$f":"[1]RelatedPartyTransfers!M352","v":0},{"$f":"[1]RelatedPartyTransfers!N352","v":0},{"$f":"[1]RelatedPartyTransfers!O352","v":0},{"$f":"[1]RelatedPartyTransfers!P352","v":0},{"$f":"[1]RelatedPartyTransfers!Q352","v":0},{"$f":"[1]RelatedPartyTransfers!R352","v":0},{"$f":"[1]RelatedPartyTransfers!S352","v":0},{"$f":"[1]RelatedPartyTransfers!T352","v":0},{"$f":"[1]RelatedPartyTransfers!U352","v":0},{"$f":"[1]RelatedPartyTransfers!V352","v":0},{"$f":"[1]RelatedPartyTransfers!W352","v":0},{"$f":"[1]RelatedPartyTransfers!W352","v":0},0]
[0,0,{"$f":"IFERROR(INDEX((Settings!$M$17:$M$236),MATCH(RelatedPartyTransfers!G353,Settings!$AD$18:$AD$166,0)),0)","v":0},null,null,{"$f":"[1]RelatedPartyTransfers!F353","v":0},{"$f":"[1]RelatedPartyTransfers!G353","v":0},{"$f":"[1]RelatedPartyTransfers!H353","v":0},{"$f":"[1]RelatedPartyTransfers!I353","v":0},null,{"$f":"[1]RelatedPartyTransfers!M353","v":0},{"$f":"[1]RelatedPartyTransfers!N353","v":0},{"$f":"[1]RelatedPartyTransfers!O353","v":0},{"$f":"[1]RelatedPartyTransfers!P353","v":0},{"$f":"[1]RelatedPartyTransfers!Q353","v":0},{"$f":"[1]RelatedPartyTransfers!R353","v":0},{"$f":"[1]RelatedPartyTransfers!S353","v":0},{"$f":"[1]RelatedPartyTransfers!T353","v":0},{"$f":"[1]RelatedPartyTransfers!U353","v":0},{"$f":"[1]RelatedPartyTransfers!V353","v":0},{"$f":"[1]RelatedPartyTransfers!W353","v":0},{"$f":"[1]RelatedPartyTransfers!W353","v":0},0]
[0,0,{"$f":"IFERROR(INDEX((Settings!$M$17:$M$236),MATCH(RelatedPartyTransfers!G354,Settings!$AD$18:$AD$166,0)),0)","v":0},null,null,{"$f":"[1]RelatedPartyTransfers!F354","v":0},{"$f":"[1]RelatedPartyTransfers!G354","v":0},{"$f":"[1]RelatedPartyTransfers!H354","v":0},{"$f":"[1]RelatedPartyTransfers!I354","v":0},null,{"$f":"[1]RelatedPartyTransfers!M354","v":0},{"$f":"[1]RelatedPartyTransfers!N354","v":0},{"$f":"[1]RelatedPartyTransfers!O354","v":0},{"$f":"[1]RelatedPartyTransfers!P354","v":0},{"$f":"[1]RelatedPartyTransfers!Q354","v":0},{"$f":"[1]RelatedPartyTransfers!R354","v":0},{"$f":"[1]RelatedPartyTransfers!S354","v":0},{"$f":"[1]RelatedPartyTransfers!T354","v":0},{"$f":"[1]RelatedPartyTransfers!U354","v":0},{"$f":"[1]RelatedPartyTransfers!V354","v":0},{"$f":"[1]RelatedPartyTransfers!W354","v":0},{"$f":"[1]RelatedPartyTransfers!W354","v":0},0]
[0,0,{"$f":"IFERROR(INDEX((Settings!$M$17:$M$236),MATCH(RelatedPartyTransfers!G355,Settings!$AD$18:$AD$166,0)),0)","v":0},null,null,{"$f":"[1]RelatedPartyTransfers!F355","v":0},{"$f":"[1]RelatedPartyTransfers!G355","v":0},{"$f":"[1]RelatedPartyTransfers!H355","v":0},{"$f":"[1]RelatedPartyTransfers!I355","v":0},null,{"$f":"[1]RelatedPartyTransfers!M355","v":0},{"$f":"[1]RelatedPartyTransfers!N355","v":0},{"$f":"[1]RelatedPartyTransfers!O355","v":0},{"$f":"[1]RelatedPartyTransfers!P355","v":0},{"$f":"[1]RelatedPartyTransfers!Q355","v":0},{"$f":"[1]RelatedPartyTransfers!R355","v":0},{"$f":"[1]RelatedPartyTransfers!S355","v":0},{"$f":"[1]RelatedPartyTransfers!T355","v":0},{"$f":"[1]RelatedPartyTransfers!U355","v":0},{"$f":"[1]RelatedPartyTransfers!V355","v":0},{"$f":"[1]RelatedPartyTransfers!W355","v":0},{"$f":"[1]RelatedPartyTransfers!W355","v":0},0]
[0,0,{"$f":"IFERROR(INDEX((Settings!$M$17:$M$236),MATCH(RelatedPartyTransfers!G356,Settings!$AD$18:$AD$166,0)),0)","v":0},null,null,{"$f":"[1]RelatedPartyTransfers!F356","v":0},{"$f":"[1]RelatedPartyTransfers!G356","v":0},{"$f":"[1]RelatedPartyTransfers!H356","v":0},{"$f":"[1]RelatedPartyTransfers!I356","v":0},null,{"$f":"[1]RelatedPartyTransfers!M356","v":0},{"$f":"[1]RelatedPartyTransfers!N356","v":0},{"$f":"[1]RelatedPartyTransfers!O356","v":0},{"$f":"[1]RelatedPartyTransfers!P356","v":0},{"$f":"[1]RelatedPartyTransfers!Q356","v":0},{"$f":"[1]RelatedPartyTransfers!R356","v":0},{"$f":"[1]RelatedPartyTransfers!S356","v":0},{"$f":"[1]RelatedPartyTransfers!T356","v":0},{"$f":"[1]RelatedPartyTransfers!U356","v":0},{"$f":"[1]RelatedPartyTransfers!V356","v":0},{"$f":"[1]RelatedPartyTransfers!W356","v":0},{"$f":"[1]RelatedPartyTransfers!W356","v":0},0]
[0,0,{"$f":"IFERROR(INDEX((Settings!$M$17:$M$236),MATCH(RelatedPartyTransfers!G357,Settings!$AD$18:$AD$166,0)),0)","v":0},null,null,{"$f":"[1]RelatedPartyTransfers!F357","v":0},{"$f":"[1]RelatedPartyTransfers!G357","v":0},{"$f":"[1]RelatedPartyTransfers!H357","v":0},{"$f":"[1]RelatedPartyTransfers!I357","v":0},null,{"$f":"[1]RelatedPartyTransfers!M357","v":0},{"$f":"[1]RelatedPartyTransfers!N357","v":0},{"$f":"[1]RelatedPartyTransfers!O357","v":0},{"$f":"[1]RelatedPartyTransfers!P357","v":0},{"$f":"[1]RelatedPartyTransfers!Q357","v":0},{"$f":"[1]RelatedPartyTransfers!R357","v":0},{"$f":"[1]RelatedPartyTransfers!S357","v":0},{"$f":"[1]RelatedPartyTransfers!T357","v":0},{"$f":"[1]RelatedPartyTransfers!U357","v":0},{"$f":"[1]RelatedPartyTransfers!V357","v":0},{"$f":"[1]RelatedPartyTransfers!W357","v":0},{"$f":"[1]RelatedPartyTransfers!W357","v":0},0]
[0,0,{"$f":"IFERROR(INDEX((Settings!$M$17:$M$236),MATCH(RelatedPartyTransfers!G358,Settings!$AD$18:$AD$166,0)),0)","v":0},null,null,{"$f":"[1]RelatedPartyTransfers!F358","v":0},{"$f":"[1]RelatedPartyTransfers!G358","v":0},{"$f":"[1]RelatedPartyTransfers!H358","v":0},{"$f":"[1]RelatedPartyTransfers!I358","v":0},null,{"$f":"[1]RelatedPartyTransfers!M358","v":0},{"$f":"[1]RelatedPartyTransfers!N358","v":0},{"$f":"[1]RelatedPartyTransfers!O358","v":0},{"$f":"[1]RelatedPartyTransfers!P358","v":0},{"$f":"[1]RelatedPartyTransfers!Q358","v":0},{"$f":"[1]RelatedPartyTransfers!R358","v":0},{"$f":"[1]RelatedPartyTransfers!S358","v":0},{"$f":"[1]RelatedPartyTransfers!T358","v":0},{"$f":"[1]RelatedPartyTransfers!U358","v":0},{"$f":"[1]RelatedPartyTransfers!V358","v":0},{"$f":"[1]RelatedPartyTransfers!W358","v":0},{"$f":"[1]RelatedPartyTransfers!W358","v":0},0]
[0,0,{"$f":"IFERROR(INDEX((Settings!$M$17:$M$236),MATCH(RelatedPartyTransfers!G359,Settings!$AD$18:$AD$166,0)),0)","v":0},null,null,{"$f":"[1]RelatedPartyTransfers!F359","v":0},{"$f":"[1]RelatedPartyTransfers!G359","v":0},{"$f":"[1]RelatedPartyTransfers!H359","v":0},{"$f":"[1]RelatedPartyTransfers!I359","v":0},null,{"$f":"[1]RelatedPartyTransfers!M359","v":0},{"$f":"[1]RelatedPartyTransfers!N359","v":0},{"$f":"[1]RelatedPartyTransfers!O359","v":0},{"$f":"[1]RelatedPartyTransfers!P359","v":0},{"$f":"[1]RelatedPartyTransfers!Q359","v":0},{"$f":"[1]RelatedPartyTransfers!R359","v":0},{"$f":"[1]RelatedPartyTransfers!S359","v":0},{"$f":"[1]RelatedPartyTransfers!T359","v":0},{"$f":"[1]RelatedPartyTransfers!U359","v":0},{"$f":"[1]RelatedPartyTransfers!V359","v":0},{"$f":"[1]RelatedPartyTransfers!W359","v":0},{"$f":"[1]RelatedPartyTransfers!W359","v":0},0]
[0,0,{"$f":"IFERROR(INDEX((Settings!$M$17:$M$236),MATCH(RelatedPartyTransfers!G360,Settings!$AD$18:$AD$166,0)),0)","v":0},null,null,{"$f":"[1]RelatedPartyTransfers!F360","v":0},{"$f":"[1]RelatedPartyTransfers!G360","v":0},{"$f":"[1]RelatedPartyTransfers!H360","v":0},{"$f":"[1]RelatedPartyTransfers!I360","v":0},null,{"$f":"[1]RelatedPartyTransfers!M360","v":0},{"$f":"[1]RelatedPartyTransfers!N360","v":0},{"$f":"[1]RelatedPartyTransfers!O360","v":0},{"$f":"[1]RelatedPartyTransfers!P360","v":0},{"$f":"[1]RelatedPartyTransfers!Q360","v":0},{"$f":"[1]RelatedPartyTransfers!R360","v":0},{"$f":"[1]RelatedPartyTransfers!S360","v":0},{"$f":"[1]RelatedPartyTransfers!T360","v":0},{"$f":"[1]RelatedPartyTransfers!U360","v":0},{"$f":"[1]RelatedPartyTransfers!V360","v":0},{"$f":"[1]RelatedPartyTransfers!W360","v":0},{"$f":"[1]RelatedPartyTransfers!W360","v":0},0]
[]
[]
[]
[]
[null,null,null,null,null,"Receipts"]
[null,null,null,null,null,"Total",null,null,null,null,null,{"$f":"SUMIF($H$11:$H$360,$AE$2,L11:L360)","v":0},null,{"$f":"SUMIF($H$11:$H$360,$AE$2,N11:N360)","v":0},null,{"$f":"SUMIF($H$11:$H$360,$AE$2,P11:P360)","v":0},null,{"$f":"SUMIF($H$11:$H$360,$AE$2,R11:R360)","v":0},null,{"$f":"SUMIF($H$11:$H$360,$AE$2,T11:T360)","v":0},null,{"$f":"SUMIF($H$11:$H$360,$AE$2,V11:V360)","v":0},{"$f":"SUMIF($H$11:$H$360,$AE$2,W11:W360)","v":0}]
[null,null,null,null,null,"Check provincial departments",null,null,null,null,null,{"$f":"CashFlow!I43-(SUMIFS(L11:L360, $H$11:$H$360, Settings!$BS$17, RelatedPartyTransfers!$F$11:$F$360, Settings!$BW$19)\n+ SUMIFS(L11:L360, $H$11:$H$360, Settings!$BS$17, RelatedPartyTransfers!$F$11:$F$360, Settings!$BW$20)\n+ SUMIFS(L11:L360, $H$11:$H$360, Settings!$BS$17, RelatedPartyTransfers!$F$11:$F$360, Settings!$BW$21) + SUMIFS(L11:L360, $H$11:$H$360, Settings!$BS$17, RelatedPartyTransfers!$F$11:$F$360, Settings!$BW$22)+ SUMIFS(L11:L360, $H$11:$H$360, Settings!$BS$17, RelatedPartyTransfers!$F$11:$F$360, Settings!$BW$23)+ SUMIFS(L11:L360, $H$11:$H$360, Settings!$BS$17, RelatedPartyTransfers!$F$11:$F$360, Settings!$BW$24)+ SUMIFS(L11:L360, $H$11:$H$360, Settings!$BS$17, RelatedPartyTransfers!$F$11:$F$360, Settings!$BW$25)+ SUMIFS(L11:L360, $H$11:$H$360, Settings!$BS$17, RelatedPartyTransfers!$F$11:$F$360, Settings!$BW$26)+ SUMIFS(L11:L360, $H$11:$H$360, Settings!$BS$17, RelatedPartyTransfers!$F$11:$F$360, Settings!$BW$27))","v":0},null,{"$f":"CashFlow!J43-(SUMIFS(N11:N360, $H$11:$H$360, Settings!$BS$17, RelatedPartyTransfers!$F$11:$F$360, Settings!$BW$19)\n+ SUMIFS(N11:N360, $H$11:$H$360, Settings!$BS$17, RelatedPartyTransfers!$F$11:$F$360, Settings!$BW$20)\n+ SUMIFS(N11:N360, $H$11:$H$360, Settings!$BS$17, RelatedPartyTransfers!$F$11:$F$360, Settings!$BW$21) + SUMIFS(N11:N360, $H$11:$H$360, Settings!$BS$17, RelatedPartyTransfers!$F$11:$F$360, Settings!$BW$22)+ SUMIFS(N11:N360, $H$11:$H$360, Settings!$BS$17, RelatedPartyTransfers!$F$11:$F$360, Settings!$BW$23)+ SUMIFS(N11:N360, $H$11:$H$360, Settings!$BS$17, RelatedPartyTransfers!$F$11:$F$360, Settings!$BW$24)+ SUMIFS(N11:N360, $H$11:$H$360, Settings!$BS$17, RelatedPartyTransfers!$F$11:$F$360, Settings!$BW$25)+ SUMIFS(N11:N360, $H$11:$H$360, Settings!$BS$17, RelatedPartyTransfers!$F$11:$F$360, Settings!$BW$26)+ SUMIFS(N11:N360, $H$11:$H$360, Settings!$BS$17, RelatedPartyTransfers!$F$11:$F$360, Settings!$BW$27))","v":0},null,{"$f":"CashFlow!L43-(SUMIFS(P11:P360, $H$11:$H$360, Settings!$BS$17, RelatedPartyTransfers!$F$11:$F$360, Settings!$BW$19)\n+ SUMIFS(P11:P360, $H$11:$H$360, Settings!$BS$17, RelatedPartyTransfers!$F$11:$F$360, Settings!$BW$20)\n+ SUMIFS(P11:P360, $H$11:$H$360, Settings!$BS$17, RelatedPartyTransfers!$F$11:$F$360, Settings!$BW$21) + SUMIFS(P11:P360, $H$11:$H$360, Settings!$BS$17, RelatedPartyTransfers!$F$11:$F$360, Settings!$BW$22)+ SUMIFS(P11:P360, $H$11:$H$360, Settings!$BS$17, RelatedPartyTransfers!$F$11:$F$360, Settings!$BW$23)+ SUMIFS(P11:P360, $H$11:$H$360, Settings!$BS$17, RelatedPartyTransfers!$F$11:$F$360, Settings!$BW$24)+ SUMIFS(P11:P360, $H$11:$H$360, Settings!$BS$17, RelatedPartyTransfers!$F$11:$F$360, Settings!$BW$25)+ SUMIFS(P11:P360, $H$11:$H$360, Settings!$BS$17, RelatedPartyTransfers!$F$11:$F$360, Settings!$BW$26)+ SUMIFS(P11:P360, $H$11:$H$360, Settings!$BS$17, RelatedPartyTransfers!$F$11:$F$360, Settings!$BW$27))","v":0},null,{"$f":"CashFlow!N43-(SUMIFS(R11:R360, $H$11:$H$360, Settings!$BS$17, RelatedPartyTransfers!$F$11:$F$360, Settings!$BW$19)\n+ SUMIFS(R11:R360, $H$11:$H$360, Settings!$BS$17, RelatedPartyTransfers!$F$11:$F$360, Settings!$BW$20)\n+ SUMIFS(R11:R360, $H$11:$H$360, Settings!$BS$17, RelatedPartyTransfers!$F$11:$F$360, Settings!$BW$21) + SUMIFS(R11:R360, $H$11:$H$360, Settings!$BS$17, RelatedPartyTransfers!$F$11:$F$360, Settings!$BW$22)+ SUMIFS(R11:R360, $H$11:$H$360, Settings!$BS$17, RelatedPartyTransfers!$F$11:$F$360, Settings!$BW$23)+ SUMIFS(R11:R360, $H$11:$H$360, Settings!$BS$17, RelatedPartyTransfers!$F$11:$F$360, Settings!$BW$24)+ SUMIFS(R11:R360, $H$11:$H$360, Settings!$BS$17, RelatedPartyTransfers!$F$11:$F$360, Settings!$BW$25)+ SUMIFS(R11:R360, $H$11:$H$360, Settings!$BS$17, RelatedPartyTransfers!$F$11:$F$360, Settings!$BW$26)+ SUMIFS(R11:R360, $H$11:$H$360, Settings!$BS$17, RelatedPartyTransfers!$F$11:$F$360, Settings!$BW$27))","v":0},null,{"$f":"CashFlow!P43-(SUMIFS(T11:T360, $H$11:$H$360, Settings!$BS$17, RelatedPartyTransfers!$F$11:$F$360, Settings!$BW$19)\n+ SUMIFS(T11:T360, $H$11:$H$360, Settings!$BS$17, RelatedPartyTransfers!$F$11:$F$360, Settings!$BW$20)\n+ SUMIFS(T11:T360, $H$11:$H$360, Settings!$BS$17, RelatedPartyTransfers!$F$11:$F$360, Settings!$BW$21) + SUMIFS(T11:T360, $H$11:$H$360, Settings!$BS$17, RelatedPartyTransfers!$F$11:$F$360, Settings!$BW$22)+ SUMIFS(T11:T360, $H$11:$H$360, Settings!$BS$17, RelatedPartyTransfers!$F$11:$F$360, Settings!$BW$23)+ SUMIFS(T11:T360, $H$11:$H$360, Settings!$BS$17, RelatedPartyTransfers!$F$11:$F$360, Settings!$BW$24)+ SUMIFS(T11:T360, $H$11:$H$360, Settings!$BS$17, RelatedPartyTransfers!$F$11:$F$360, Settings!$BW$25)+ SUMIFS(T11:T360, $H$11:$H$360, Settings!$BS$17, RelatedPartyTransfers!$F$11:$F$360, Settings!$BW$26)+ SUMIFS(T11:T360, $H$11:$H$360, Settings!$BS$17, RelatedPartyTransfers!$F$11:$F$360, Settings!$BW$27))","v":0},null,{"$f":"CashFlow!R43-(SUMIFS(V11:V360, $H$11:$H$360, Settings!$BS$17, RelatedPartyTransfers!$F$11:$F$360, Settings!$BW$19)\n+ SUMIFS(V11:V360, $H$11:$H$360, Settings!$BS$17, RelatedPartyTransfers!$F$11:$F$360, Settings!$BW$20)\n+ SUMIFS(V11:V360, $H$11:$H$360, Settings!$BS$17, RelatedPartyTransfers!$F$11:$F$360, Settings!$BW$21) + SUMIFS(V11:V360, $H$11:$H$360, Settings!$BS$17, RelatedPartyTransfers!$F$11:$F$360, Settings!$BW$22)+ SUMIFS(V11:V360, $H$11:$H$360, Settings!$BS$17, RelatedPartyTransfers!$F$11:$F$360, Settings!$BW$23)+ SUMIFS(V11:V360, $H$11:$H$360, Settings!$BS$17, RelatedPartyTransfers!$F$11:$F$360, Settings!$BW$24)+ SUMIFS(V11:V360, $H$11:$H$360, Settings!$BS$17, RelatedPartyTransfers!$F$11:$F$360, Settings!$BW$25)+ SUMIFS(V11:V360, $H$11:$H$360, Settings!$BS$17, RelatedPartyTransfers!$F$11:$F$360, Settings!$BW$26)+ SUMIFS(V11:V360, $H$11:$H$360, Settings!$BS$17, RelatedPartyTransfers!$F$11:$F$360, Settings!$BW$27))","v":0},{"$f":"CashFlow!S43-(SUMIFS(W11:W360, $H$11:$H$360, Settings!$BS$17, RelatedPartyTransfers!$F$11:$F$360, Settings!$BW$19)\n+ SUMIFS(W11:W360, $H$11:$H$360, Settings!$BS$17, RelatedPartyTransfers!$F$11:$F$360, Settings!$BW$20)\n+ SUMIFS(W11:W360, $H$11:$H$360, Settings!$BS$17, RelatedPartyTransfers!$F$11:$F$360, Settings!$BW$21) + SUMIFS(W11:W360, $H$11:$H$360, Settings!$BS$17, RelatedPartyTransfers!$F$11:$F$360, Settings!$BW$22)+ SUMIFS(W11:W360, $H$11:$H$360, Settings!$BS$17, RelatedPartyTransfers!$F$11:$F$360, Settings!$BW$23)+ SUMIFS(W11:W360, $H$11:$H$360, Settings!$BS$17, RelatedPartyTransfers!$F$11:$F$360, Settings!$BW$24)+ SUMIFS(W11:W360, $H$11:$H$360, Settings!$BS$17, RelatedPartyTransfers!$F$11:$F$360, Settings!$BW$25)+ SUMIFS(W11:W360, $H$11:$H$360, Settings!$BS$17, RelatedPartyTransfers!$F$11:$F$360, Settings!$BW$26)+ SUMIFS(W11:W360, $H$11:$H$360, Settings!$BS$17, RelatedPartyTransfers!$F$11:$F$360, Settings!$BW$27))","v":0}]
[null,null,null,null,null,"Check departmental agencies and accounts",null,null,null,null,null,{"$f":"CashFlow!I42-SUMIFS(RelatedPartyTransfers!L11:L360,$H$11:$H$360,Settings!$BS$17,RelatedPartyTransfers!$F$11:$F$360,Settings!$BW$18)","v":0},null,{"$f":"CashFlow!J42-SUMIFS(RelatedPartyTransfers!N11:N360,$H$11:$H$360,Settings!$BS$17,RelatedPartyTransfers!$F$11:$F$360,Settings!$BW$18)","v":0},null,{"$f":"CashFlow!L42-SUMIFS(RelatedPartyTransfers!P11:P360,$H$11:$H$360,Settings!$BS$17,RelatedPartyTransfers!$F$11:$F$360,Settings!$BW$18)","v":0},null,{"$f":"CashFlow!N42-SUMIFS(RelatedPartyTransfers!R11:R360,$H$11:$H$360,Settings!$BS$17,RelatedPartyTransfers!$F$11:$F$360,Settings!$BW$18)","v":0},null,{"$f":"CashFlow!P42-SUMIFS(RelatedPartyTransfers!T11:T360,$H$11:$H$360,Settings!$BS$17,RelatedPartyTransfers!$F$11:$F$360,Settings!$BW$18)","v":0},null,{"$f":"CashFlow!R42-SUMIFS(RelatedPartyTransfers!V11:V360,$H$11:$H$360,Settings!$BS$17,RelatedPartyTransfers!$F$11:$F$360,Settings!$BW$18)","v":0},{"$f":"CashFlow!S42-SUMIFS(RelatedPartyTransfers!W11:W360,$H$11:$H$360,Settings!$BS$17,RelatedPartyTransfers!$F$11:$F$360,Settings!$BW$18)","v":0}]
[null,null,null,null,null,"Check other national departments",null,null,null,null,null,{"$f":"CashFlow!I35-SUMIFS(RelatedPartyTransfers!L11:L360,$H$11:$H$360,Settings!$BS$17,RelatedPartyTransfers!$F$11:$F$360,Settings!$BW$17)","v":0},null,{"$f":"CashFlow!J35-SUMIFS(RelatedPartyTransfers!N11:N360,$H$11:$H$360,Settings!$BS$17,RelatedPartyTransfers!$F$11:$F$360,Settings!$BW$17)","v":0},null,{"$f":"CashFlow!L35-SUMIFS(RelatedPartyTransfers!P11:P360,$H$11:$H$360,Settings!$BS$17,RelatedPartyTransfers!$F$11:$F$360,Settings!$BW$17)","v":0},null,{"$f":"CashFlow!N35-SUMIFS(RelatedPartyTransfers!R11:R360,$H$11:$H$360,Settings!$BS$17,RelatedPartyTransfers!$F$11:$F$360,Settings!$BW$17)","v":0},null,{"$f":"CashFlow!P35-SUMIFS(RelatedPartyTransfers!T11:T360,$H$11:$H$360,Settings!$BS$17,RelatedPartyTransfers!$F$11:$F$360,Settings!$BW$17)","v":0},null,{"$f":"CashFlow!R35-SUMIFS(RelatedPartyTransfers!V11:V360,$H$11:$H$360,Settings!$BS$17,RelatedPartyTransfers!$F$11:$F$360,Settings!$BW$17)","v":0},{"$f":"CashFlow!S35-SUMIFS(RelatedPartyTransfers!W11:W360,$H$11:$H$360,Settings!$BS$17,RelatedPartyTransfers!$F$11:$F$360,Settings!$BW$17)","v":0}]
[]
[null,null,null,null,null,"Payments"]
[null,null,null,null,null,"Total",null,null,null,null,null,{"$f":"SUMIF($H$11:H360,$AE$3,L11:L360)","v":0},null,{"$f":"SUMIF($H$11:J360,$AE$3,N11:N360)","v":0},null,{"$f":"SUMIF($H$11:L360,$AE$3,P11:P360)","v":0},null,{"$f":"SUMIF($H$11:N360,$AE$3,R11:R360)","v":0},null,{"$f":"SUMIF($H$11:P360,$AE$3,T11:T360)","v":0},null,{"$f":"SUMIF($H$11:R360,$AE$3,V11:V360)","v":0},{"$f":"SUMIF($H$11:S360,$AE$3,W11:W360)","v":0}]
[null,null,null,null,null,"Check provincial departments",null,null,null,null,null,{"$f":"SUM(CashFlow!I126+CashFlow!I137)-(SUMIFS(L11:L360, $H$11:$H$360, Settings!$BS$18, RelatedPartyTransfers!$F$11:$F$360, Settings!$BW$19)\n+ SUMIFS(L11:L360, $H$11:$H$360, Settings!$BS$18, RelatedPartyTransfers!$F$11:$F$360, Settings!$BW$20)\n+ SUMIFS(L11:L360, $H$11:$H$360, Settings!$BS$18, RelatedPartyTransfers!$F$11:$F$360, Settings!$BW$21) + SUMIFS(L11:L360, $H$11:$H$360, Settings!$BS$18, RelatedPartyTransfers!$F$11:$F$360, Settings!$BW$22)+ SUMIFS(L11:L360, $H$11:$H$360, Settings!$BS$18, RelatedPartyTransfers!$F$11:$F$360, Settings!$BW$23)+ SUMIFS(L11:L360, $H$11:$H$360, Settings!$BS$18, RelatedPartyTransfers!$F$11:$F$360, Settings!$BW$24)+ SUMIFS(L11:L360, $H$11:$H$360, Settings!$BS$18, RelatedPartyTransfers!$F$11:$F$360, Settings!$BW$25)+ SUMIFS(L11:L360, $H$11:$H$360, Settings!$BS$18, RelatedPartyTransfers!$F$11:$F$360, Settings!$BW$26)+ SUMIFS(L11:L360, $H$11:$H$360, Settings!$BS$18, RelatedPartyTransfers!$F$11:$F$360, Settings!$BW$27))","v":0},null,{"$f":"SUM(CashFlow!J126+CashFlow!J137)-(SUMIFS(N11:N360, $H$11:$H$360, Settings!$BS$18, RelatedPartyTransfers!$F$11:$F$360, Settings!$BW$19)\n+ SUMIFS(N11:N360, $H$11:$H$360, Settings!$BS$18, RelatedPartyTransfers!$F$11:$F$360, Settings!$BW$20)\n+ SUMIFS(N11:N360, $H$11:$H$360, Settings!$BS$18, RelatedPartyTransfers!$F$11:$F$360, Settings!$BW$21) + SUMIFS(N11:N360, $H$11:$H$360, Settings!$BS$18, RelatedPartyTransfers!$F$11:$F$360, Settings!$BW$22)+ SUMIFS(N11:N360, $H$11:$H$360, Settings!$BS$18, RelatedPartyTransfers!$F$11:$F$360, Settings!$BW$23)+ SUMIFS(N11:N360, $H$11:$H$360, Settings!$BS$18, RelatedPartyTransfers!$F$11:$F$360, Settings!$BW$24)+ SUMIFS(N11:N360, $H$11:$H$360, Settings!$BS$18, RelatedPartyTransfers!$F$11:$F$360, Settings!$BW$25)+ SUMIFS(N11:N360, $H$11:$H$360, Settings!$BS$18, RelatedPartyTransfers!$F$11:$F$360, Settings!$BW$26)+ SUMIFS(N11:N360, $H$11:$H$360, Settings!$BS$18, RelatedPartyTransfers!$F$11:$F$360, Settings!$BW$27))","v":0},null,{"$f":"SUM(CashFlow!L126+CashFlow!L137)-(SUMIFS(P11:P360, $H$11:$H$360, Settings!$BS$18, RelatedPartyTransfers!$F$11:$F$360, Settings!$BW$19)\n+ SUMIFS(P11:P360, $H$11:$H$360, Settings!$BS$18, RelatedPartyTransfers!$F$11:$F$360, Settings!$BW$20)\n+ SUMIFS(P11:P360, $H$11:$H$360, Settings!$BS$18, RelatedPartyTransfers!$F$11:$F$360, Settings!$BW$21) + SUMIFS(P11:P360, $H$11:$H$360, Settings!$BS$18, RelatedPartyTransfers!$F$11:$F$360, Settings!$BW$22)+ SUMIFS(P11:P360, $H$11:$H$360, Settings!$BS$18, RelatedPartyTransfers!$F$11:$F$360, Settings!$BW$23)+ SUMIFS(P11:P360, $H$11:$H$360, Settings!$BS$18, RelatedPartyTransfers!$F$11:$F$360, Settings!$BW$24)+ SUMIFS(P11:P360, $H$11:$H$360, Settings!$BS$18, RelatedPartyTransfers!$F$11:$F$360, Settings!$BW$25)+ SUMIFS(P11:P360, $H$11:$H$360, Settings!$BS$18, RelatedPartyTransfers!$F$11:$F$360, Settings!$BW$26)+ SUMIFS(P11:P360, $H$11:$H$360, Settings!$BS$18, RelatedPartyTransfers!$F$11:$F$360, Settings!$BW$27))","v":0},null,{"$f":"SUM(CashFlow!N126+CashFlow!N137)-(SUMIFS(R11:R360, $H$11:$H$360, Settings!$BS$18, RelatedPartyTransfers!$F$11:$F$360, Settings!$BW$19)\n+ SUMIFS(R11:R360, $H$11:$H$360, Settings!$BS$18, RelatedPartyTransfers!$F$11:$F$360, Settings!$BW$20)\n+ SUMIFS(R11:R360, $H$11:$H$360, Settings!$BS$18, RelatedPartyTransfers!$F$11:$F$360, Settings!$BW$21) + SUMIFS(R11:R360, $H$11:$H$360, Settings!$BS$18, RelatedPartyTransfers!$F$11:$F$360, Settings!$BW$22)+ SUMIFS(R11:R360, $H$11:$H$360, Settings!$BS$18, RelatedPartyTransfers!$F$11:$F$360, Settings!$BW$23)+ SUMIFS(R11:R360, $H$11:$H$360, Settings!$BS$18, RelatedPartyTransfers!$F$11:$F$360, Settings!$BW$24)+ SUMIFS(R11:R360, $H$11:$H$360, Settings!$BS$18, RelatedPartyTransfers!$F$11:$F$360, Settings!$BW$25)+ SUMIFS(R11:R360, $H$11:$H$360, Settings!$BS$18, RelatedPartyTransfers!$F$11:$F$360, Settings!$BW$26)+ SUMIFS(R11:R360, $H$11:$H$360, Settings!$BS$18, RelatedPartyTransfers!$F$11:$F$360, Settings!$BW$27))","v":0},null,{"$f":"SUM(CashFlow!P126+CashFlow!P137)-(SUMIFS(T11:T360, $H$11:$H$360, Settings!$BS$18, RelatedPartyTransfers!$F$11:$F$360, Settings!$BW$19)\n+ SUMIFS(T11:T360, $H$11:$H$360, Settings!$BS$18, RelatedPartyTransfers!$F$11:$F$360, Settings!$BW$20)\n+ SUMIFS(T11:T360, $H$11:$H$360, Settings!$BS$18, RelatedPartyTransfers!$F$11:$F$360, Settings!$BW$21) + SUMIFS(T11:T360, $H$11:$H$360, Settings!$BS$18, RelatedPartyTransfers!$F$11:$F$360, Settings!$BW$22)+ SUMIFS(T11:T360, $H$11:$H$360, Settings!$BS$18, RelatedPartyTransfers!$F$11:$F$360, Settings!$BW$23)+ SUMIFS(T11:T360, $H$11:$H$360, Settings!$BS$18, RelatedPartyTransfers!$F$11:$F$360, Settings!$BW$24)+ SUMIFS(T11:T360, $H$11:$H$360, Settings!$BS$18, RelatedPartyTransfers!$F$11:$F$360, Settings!$BW$25)+ SUMIFS(T11:T360, $H$11:$H$360, Settings!$BS$18, RelatedPartyTransfers!$F$11:$F$360, Settings!$BW$26)+ SUMIFS(T11:T360, $H$11:$H$360, Settings!$BS$18, RelatedPartyTransfers!$F$11:$F$360, Settings!$BW$27))","v":0},null,{"$f":"SUM(CashFlow!R126+CashFlow!R137)-(SUMIFS(V11:V360, $H$11:$H$360, Settings!$BS$18, RelatedPartyTransfers!$F$11:$F$360, Settings!$BW$19)\n+ SUMIFS(V11:V360, $H$11:$H$360, Settings!$BS$18, RelatedPartyTransfers!$F$11:$F$360, Settings!$BW$20)\n+ SUMIFS(V11:V360, $H$11:$H$360, Settings!$BS$18, RelatedPartyTransfers!$F$11:$F$360, Settings!$BW$21) + SUMIFS(V11:V360, $H$11:$H$360, Settings!$BS$18, RelatedPartyTransfers!$F$11:$F$360, Settings!$BW$22)+ SUMIFS(V11:V360, $H$11:$H$360, Settings!$BS$18, RelatedPartyTransfers!$F$11:$F$360, Settings!$BW$23)+ SUMIFS(V11:V360, $H$11:$H$360, Settings!$BS$18, RelatedPartyTransfers!$F$11:$F$360, Settings!$BW$24)+ SUMIFS(V11:V360, $H$11:$H$360, Settings!$BS$18, RelatedPartyTransfers!$F$11:$F$360, Settings!$BW$25)+ SUMIFS(V11:V360, $H$11:$H$360, Settings!$BS$18, RelatedPartyTransfers!$F$11:$F$360, Settings!$BW$26)+ SUMIFS(V11:V360, $H$11:$H$360, Settings!$BS$18, RelatedPartyTransfers!$F$11:$F$360, Settings!$BW$27))","v":0},{"$f":"SUM(CashFlow!S126+CashFlow!S137)-(SUMIFS(W11:W360, $H$11:$H$360, Settings!$BS$18, RelatedPartyTransfers!$F$11:$F$360, Settings!$BW$19)\n+ SUMIFS(W11:W360, $H$11:$H$360, Settings!$BS$18, RelatedPartyTransfers!$F$11:$F$360, Settings!$BW$20)\n+ SUMIFS(W11:W360, $H$11:$H$360, Settings!$BS$18, RelatedPartyTransfers!$F$11:$F$360, Settings!$BW$21) + SUMIFS(W11:W360, $H$11:$H$360, Settings!$BS$18, RelatedPartyTransfers!$F$11:$F$360, Settings!$BW$22)+ SUMIFS(W11:W360, $H$11:$H$360, Settings!$BS$18, RelatedPartyTransfers!$F$11:$F$360, Settings!$BW$23)+ SUMIFS(W11:W360, $H$11:$H$360, Settings!$BS$18, RelatedPartyTransfers!$F$11:$F$360, Settings!$BW$24)+ SUMIFS(W11:W360, $H$11:$H$360, Settings!$BS$18, RelatedPartyTransfers!$F$11:$F$360, Settings!$BW$25)+ SUMIFS(W11:W360, $H$11:$H$360, Settings!$BS$18, RelatedPartyTransfers!$F$11:$F$360, Settings!$BW$26)+ SUMIFS(W11:W360, $H$11:$H$360, Settings!$BS$18, RelatedPartyTransfers!$F$11:$F$360, Settings!$BW$27))","v":0}]
[null,null,null,null,null,"Check departmental agencies and accounts",null,null,null,null,null,{"$f":"SUM(CashFlow!I125+CashFlow!I136)-SUMIFS(RelatedPartyTransfers!L11:L360,$H$11:$H$360,Settings!$BS$18,RelatedPartyTransfers!$F$11:$F$360,Settings!$BW$18)","v":0},null,{"$f":"SUM(CashFlow!J125+CashFlow!J136)-SUMIFS(RelatedPartyTransfers!N11:N360,$H$11:$H$360,Settings!$BS$18,RelatedPartyTransfers!$F$11:$F$360,Settings!$BW$18)","v":0},null,{"$f":"SUM(CashFlow!L125+CashFlow!L136)-SUMIFS(RelatedPartyTransfers!P11:P360,$H$11:$H$360,Settings!$BS$18,RelatedPartyTransfers!$F$11:$F$360,Settings!$BW$18)","v":0},null,{"$f":"SUM(CashFlow!N125+CashFlow!N136)-SUMIFS(RelatedPartyTransfers!R11:R360,$H$11:$H$360,Settings!$BS$18,RelatedPartyTransfers!$F$11:$F$360,Settings!$BW$18)","v":0},null,{"$f":"SUM(CashFlow!P125+CashFlow!P136)-SUMIFS(RelatedPartyTransfers!T11:T360,$H$11:$H$360,Settings!$BS$18,RelatedPartyTransfers!$F$11:$F$360,Settings!$BW$18)","v":0},null,{"$f":"SUM(CashFlow!R125+CashFlow!R136)-SUMIFS(RelatedPartyTransfers!V11:V360,$H$11:$H$360,Settings!$BS$18,RelatedPartyTransfers!$F$11:$F$360,Settings!$BW$18)","v":0},{"$f":"SUM(CashFlow!S125+CashFlow!S136)-SUMIFS(RelatedPartyTransfers!W11:W360,$H$11:$H$360,Settings!$BS$18,RelatedPartyTransfers!$F$11:$F$360,Settings!$BW$18)","v":0}]
[null,null,null,null,null,"Check other national departments",null,null,null,null,null,{"$f":"SUM(CashFlow!I124+CashFlow!I135)-SUMIFS(RelatedPartyTransfers!L11:L360,$H$11:$H$360,Settings!$BS$18,RelatedPartyTransfers!$F$11:$F$360,Settings!$BW$17)","v":0},null,{"$f":"SUM(CashFlow!J124+CashFlow!J135)-SUMIFS(RelatedPartyTransfers!N11:N360,$H$11:$H$360,Settings!$BS$18,RelatedPartyTransfers!$F$11:$F$360,Settings!$BW$17)","v":0},null,{"$f":"SUM(CashFlow!L124+CashFlow!L135)-SUMIFS(RelatedPartyTransfers!P11:P360,$H$11:$H$360,Settings!$BS$18,RelatedPartyTransfers!$F$11:$F$360,Settings!$BW$17)","v":0},null,{"$f":"SUM(CashFlow!N124+CashFlow!N135)-SUMIFS(RelatedPartyTransfers!R11:R360,$H$11:$H$360,Settings!$BS$18,RelatedPartyTransfers!$F$11:$F$360,Settings!$BW$17)","v":0},null,{"$f":"SUM(CashFlow!P124+CashFlow!P135)-SUMIFS(RelatedPartyTransfers!T11:T360,$H$11:$H$360,Settings!$BS$18,RelatedPartyTransfers!$F$11:$F$360,Settings!$BW$17)","v":0},null,{"$f":"SUM(CashFlow!R124+CashFlow!R135)-SUMIFS(RelatedPartyTransfers!V11:V360,$H$11:$H$360,Settings!$BS$18,RelatedPartyTransfers!$F$11:$F$360,Settings!$BW$17)","v":0},{"$f":"SUM(CashFlow!S124+CashFlow!S135)-SUMIFS(RelatedPartyTransfers!W11:W360,$H$11:$H$360,Settings!$BS$18,RelatedPartyTransfers!$F$11:$F$360,Settings!$BW$17)","v":0}]

{"sheet":"Personnel","index":30,"n_rows":1502,"n_cols":53,"rows_kept":1502,"cut":false,"hidden":false,"merged":[[7,18,7,26],[8,10,8,12],[8,18,8,20],[8,21,8,23],[8,24,8,26],[7,10,7,12],[7,13,7,14],[7,15,7,16],[8,13,8,14]]}
[]
[]
[null,null,null,null,null,null,null,null,null,null,null,null,null,null,null,null,null,null,null,"Legend"]
[null,null,null,null,null,null,null,null,null,null,null,null,null,null,null,null,null,null,null,"Red",null,"This colour signifies that the entity has pasted an item that is not included in the drop down list"]
[null,null,null,null,null,null,null,null,null,null,null,null,null,null,null,null,null,null,null,"Orange",null,"This colour signifies that the entity did not select a relevant component of remuneration"]
[null,null,null,null,null,"PE No",{"$f":"Settings!$O$2","v":"PE126"}]
[null,null,null,null,null,"Entity name",{"$f":"Settings!$E$2","v":"South African Revenue Service"},null,null,null,null,null,null,null,null,null,null,null,null,null,null,null,null,null,null,null,{"$f":"IF(Z1500<W1500/2,\"Complete outer year budget\",\"\")","v":"Complete outer year budget"}]
[null,null,null,null,null,null,null,null,null,null,"Preliminary outcomes",null,null,null,null,"Revised Estimate",null,null,"Projections over the MTEF"]
[null,null,null,null,null,"Category","Salary Level","Salary Bands","Occupation","Components of Remuneration",{"$f":"MyYearM1","v":"2024/25"},{"$f":"MyYearM1","v":"2024/25"},{"$f":"MyYearM1","v":"2024/25"},null,null,{"$f":"MyYear0","v":"2025/26"},null,null,{"$f":"MyYearP1","v":"2026/27"},{"$f":"MyYearP1","v":"2026/27"},{"$f":"MyYearP1","v":"2026/27"},{"$f":"MyYearP2","v":"2027/28"},{"$f":"MyYearP1","v":"2026/27"},{"$f":"MyYearP1","v":"2026/27"},{"$f":"MyYearP3","v":"2028/29"},{"$f":"MyYearP1","v":"2026/27"},{"$f":"MyYearP1","v":"2026/27"}]
["ID",null,null,null,null,"R Thousand",null,null,null,null,"Number of posts filled on funded establishment","Expenditure on posts filled on funded establishment     (R thousand)","Unit Cost","Number of posts on approved establishment","Number of funded posts (establishement)","Number of posts filled on funded establishment","Expenditure on posts filled on funded establishment     (R thousand)","Unit Cost","Number of posts filled on funded establishment","Expenditure on posts filled on funded establishment     (R thousand)","Unit Cost","Number of posts filled on funded establishment","Expenditure on posts filled on funded establishment     (R thousand)","Unit Cost","Number of posts filled on funded establishment","Expenditure on posts filled on funded establishment     (R thousand)","Unit Cost"]
[{"$f":"IF(SUM(K11:AA11)>0,1,0)","v":1},{"$f":"IFERROR(INDEX(Settings!$AP$17:$AP$38,MATCH(Personnel!$G11,Settings!$AQ$17:$AQ$38,0)),0)","v":0},null,null,null,null,null,null,null,"Performance bonus",{"$f":"[1]Personnel!P11","v":0},{"$f":"[1]Personnel!Q11","v":281600.86695},{"$f":"ROUND(IF(ISERROR(L11/K11),0,(L11/K11)),0)","v":0},{"$f":"[1]Personnel!S11","v":0},{"$f":"[1]Personnel!S11","v":0},{"$f":"[1]Personnel!S11","v":0},{"$f":"[1]Personnel!T11","v":98811},{"$f":"ROUND(IF(ISERROR(Q11/P11),0,(Q11/P11)),0)","v":0},{"$f":"[1]Personnel!V11","v":0},{"$f":"[1]Personnel!W11","v":0},{"$f":"ROUND(IF(ISERROR(T11/S11),0,(T11/S11)),0)","v":0},{"$f":"[1]Personnel!Y11","v":0},{"$f":"[1]Personnel!Z11","v":0},{"$f":"ROUND(IF(ISERROR(W11/V11),0,(W11/V11)),0)","v":0},0,0,{"$f":"ROUND(IF(ISERROR(Z11/Y11),0,(Z11/Y11)),0)","v":0},null,null,null,null,null,null,null,null,null,null,null,null,null,null,null,null,null,null,null,null,null,null,null,null,null,"Salary Level 202122"]
[{"$f":"IF(SUM(K12:AA12)>0,1,0)","v":1},{"$f":"IFERROR(INDEX(Settings!$AP$17:$AP$38,MATCH(Personnel!$G12,Settings!$AQ$17:$AQ$38,0)),0)","v":1},null,null,null,{"$f":"[1]Personnel!F12","v":"Permanent"},"≤137 682",{"$f":"[1]Personnel!H12","v":"Semi-skilled"},{"$f":"[1]Personnel!I12","v":"Other: Please specify"},{"$f":"[1]Personnel!J12","v":"Guaranteed package"},{"$f":"[1]Personnel!P12","v":643},{"$f":"[1]Personnel!Q12","v":76288.927960854839},{"$f":"ROUND(IF(ISERROR(L12/K12),0,(L12/K12)),0)","v":119},{"$f":"[1]Personnel!S12","v":0},{"$f":"[1]Personnel!S12","v":0},{"$f":"[1]Personnel!S12","v":0},{"$f":"[1]Personnel!T12","v":0},{"$f":"ROUND(IF(ISERROR(Q12/P12),0,(Q12/P12)),0)","v":0},{"$f":"[1]Personnel!V12","v":0},{"$f":"[1]Personnel!W12","v":0},{"$f":"ROUND(IF(ISERROR(T12/S12),0,(T12/S12)),0)","v":0},{"$f":"[1]Personnel!Y12","v":622},{"$f":"[1]Personnel!Z12","v":86635.909007043199},{"$f":"ROUND(IF(ISERROR(W12/V12),0,(W12/V12)),0)","v":139},0,0,{"$f":"ROUND(IF(ISERROR(Z12/Y12),0,(Z12/Y12)),0)","v":0},null,null,null,null,null,null,null,null,null,null,null,null,null,null,null,null,null,null,null,null,null,null,null,null,null,{"$f":"[1]Personnel!G12","v":"≤130 503"}]
[1,{"$f":"IFERROR(INDEX(Settings!$AP$17:$AP$38,MATCH(Personnel!$G13,Settings!$AQ$17:$AQ$38,0)),0)","v":6},null,null,null,{"$f":"[1]Personnel!F13","v":"Permanent"},{"$f":"IFERROR(INDEX((SLevel),MATCH(Personnel!BA13,SLevel202223,0)),0)","v":"268 951 - 317 463"},{"$f":"[1]Personnel!H13","v":"Semi-skilled"},{"$f":"[1]Personnel!I13","v":"Other: Please specify"},{"$f":"[1]Personnel!J13","v":"Guaranteed package"},{"$f":"[1]Personnel!P13","v":23},{"$f":"[1]Personnel!Q13","v":5588.7859843452015},{"$f":"ROUND(IF(ISERROR(L13/K13),0,(L13/K13)),0)","v":243},{"$f":"[1]Personnel!S13","v":622},{"$f":"[1]Personnel!S13","v":622},{"$f":"[1]Personnel!S13","v":622},{"$f":"[1]Personnel!T13","v":79281.981922637831},{"$f":"ROUND(IF(ISERROR(Q13/P13),0,(Q13/P13)),0)","v":127},{"$f":"[1]Personnel!V13","v":622},{"$f":"[1]Personnel!W13","v":82889.312100117852},{"$f":"ROUND(IF(ISERROR(T13/S13),0,(T13/S13)),0)","v":133},{"$f":"[1]Personnel!Y13","v":19},{"$f":"[1]Personnel!Z13","v":6346.7867086560082},{"$f":"ROUND(IF(ISERROR(W13/V13),0,(W13/V13)),0)","v":334},0,0,{"$f":"ROUND(IF(ISERROR(Z13/Y13),0,(Z13/Y13)),0)","v":0},null,null,null,null,null,null,null,null,null,null,null,null,null,null,null,null,null,null,null,null,null,null,null,null,null,{"$f":"[1]Personnel!G13","v":"254 929 - 300 912"}]
[1,{"$f":"IFERROR(INDEX(Settings!$AP$17:$AP$38,MATCH(Personnel!$G14,Settings!$AQ$17:$AQ$38,0)),0)","v":5},null,null,null,{"$f":"[1]Personnel!F14","v":"Permanent"},{"$f":"IFERROR(INDEX((SLevel),MATCH(Personnel!BA14,SLevel202223,0)),0)","v":"227 767 - 268 950"},{"$f":"[1]Personnel!H14","v":"Semi-skilled"},{"$f":"[1]Personnel!I14","v":"Other: Please specify"},{"$f":"[1]Personnel!J14","v":"Guaranteed package"},{"$f":"[1]Personnel!P14","v":45},{"$f":"[1]Personnel!Q14","v":10429.352188713316},232,{"$f":"[1]Personnel!S14","v":19},{"$f":"[1]Personnel!S14","v":19},{"$f":"[1]Personnel!S14","v":19},{"$f":"[1]Personnel!T14","v":5808.0515904969197},306,{"$f":"[1]Personnel!V14","v":19},{"$f":"[1]Personnel!W14","v":6072.31793786453},320,{"$f":"[1]Personnel!Y14","v":45},{"$f":"[1]Personnel!Z14","v":11843.873434522557},263,0,0,0,null,null,null,null,null,null,null,null,null,null,null,null,null,null,null,null,null,null,null,null,null,null,null,null,null,{"$f":"[1]Personnel!G14","v":"215 893 - 254 928"}]
[1,{"$f":"IFERROR(INDEX(Settings!$AP$17:$AP$38,MATCH(Personnel!$G15,Settings!$AQ$17:$AQ$38,0)),0)","v":7},null,null,null,{"$f":"[1]Personnel!F15","v":"Permanent"},{"$f":"IFERROR(INDEX((SLevel),MATCH(Personnel!BA15,SLevel202223,0)),0)","v":"317 464 - 382 959"},{"$f":"[1]Personnel!H15","v":"Semi-skilled"},{"$f":"[1]Personnel!I15","v":"Other: Please specify"},{"$f":"[1]Personnel!J15","v":"Guaranteed package"},{"$f":"[1]Personnel!P15","v":158},{"$f":"[1]Personnel!Q15","v":49942.059466767634},316,{"$f":"[1]Personnel!S15","v":45},{"$f":"[1]Personnel!S15","v":45},{"$f":"[1]Personnel!S15","v":45},{"$f":"[1]Personnel!T15","v":10838.528391887592},241,{"$f":"[1]Personnel!V15","v":45},{"$f":"[1]Personnel!W15","v":11331.681433718479},252,{"$f":"[1]Personnel!Y15","v":148},{"$f":"[1]Personnel!Z15","v":56715.644527176526},383,0,0,0,null,null,null,null,null,null,null,null,null,null,null,null,null,null,null,null,null,null,null,null,null,null,null,null,null,{"$f":"[1]Personnel!G15","v":"300 913 - 362 994"}]
[1,{"$f":"IFERROR(INDEX(Settings!$AP$17:$AP$38,MATCH(Personnel!$G16,Settings!$AQ$17:$AQ$38,0)),0)","v":8},null,null,null,{"$f":"[1]Personnel!F16","v":"Permanent"},{"$f":"IFERROR(INDEX((SLevel),MATCH(Personnel!BA16,SLevel202223,0)),0)","v":"382 960 - 467 790"},{"$f":"[1]Personnel!H16","v":"Semi-skilled"},{"$f":"[1]Personnel!I16","v":"Other: Please specify"},{"$f":"[1]Personnel!J16","v":"Guaranteed package"},{"$f":"[1]Personnel!P16","v":217},{"$f":"[1]Personnel!Q16","v":80393.597072733333},370,{"$f":"[1]Personnel!S16","v":148},{"$f":"[1]Personnel!S16","v":148},{"$f":"[1]Personnel!S16","v":148},{"$f":"[1]Personnel!T16","v":51901.443127569764},351,{"$f":"[1]Personnel!V16","v":148},{"$f":"[1]Personnel!W16","v":54262.958789874188},367,{"$f":"[1]Personnel!Y16","v":213},{"$f":"[1]Personnel!Z16","v":91297.289749779506},429,0,0,0,null,null,null,null,null,null,null,null,null,null,null,null,null,null,null,null,null,null,null,null,null,null,null,null,null,{"$f":"[1]Personnel!G16","v":"362 995 - 443 403"}]
[1,{"$f":"IFERROR(INDEX(Settings!$AP$17:$AP$38,MATCH(Personnel!$G17,Settings!$AQ$17:$AQ$38,0)),0)","v":8},null,null,null,{"$f":"[1]Personnel!F17","v":"Permanent"},{"$f":"IFERROR(INDEX((SLevel),MATCH(Personnel!BA17,SLevel202223,0)),0)","v":"382 960 - 467 790"},{"$f":"[1]Personnel!H17","v":"Semi-skilled"},{"$f":"[1]Personnel!I17","v":"Other: Please specify"},{"$f":"[1]Personnel!J17","v":"Guaranteed package"},{"$f":"[1]Personnel!P17","v":2894},{"$f":"[1]Personnel!Q17","v":1171616.2460860144},405,{"$f":"[1]Personnel!S17","v":213},{"$f":"[1]Personnel!S17","v":213},{"$f":"[1]Personnel!S17","v":213},{"$f":"[1]Personnel!T17","v":83547.690080096043},392,{"$f":"[1]Personnel!V17","v":213},{"$f":"[1]Personnel!W17","v":87349.109978740409},410,{"$f":"[1]Personnel!Y17","v":2897},{"$f":"[1]Personnel!Z17","v":1330521.2328998116},459,0,0,0,null,null,null,null,null,null,null,null,null,null,null,null,null,null,null,null,null,null,null,null,null,null,null,null,null,{"$f":"[1]Personnel!G17","v":"362 995 - 443 403"}]
[1,{"$f":"IFERROR(INDEX(Settings!$AP$17:$AP$38,MATCH(Personnel!$G18,Settings!$AQ$17:$AQ$38,0)),0)","v":9},null,null,null,{"$f":"[1]Personnel!F18","v":"Permanent"},{"$f":"IFERROR(INDEX((SLevel),MATCH(Personnel!BA18,SLevel202223,0)),0)","v":"467 791 - 561 894"},{"$f":"[1]Personnel!H18","v":"Semi-skilled"},{"$f":"[1]Personnel!I18","v":"Other: Please specify"},{"$f":"[1]Personnel!J18","v":"Guaranteed package"},{"$f":"[1]Personnel!P18","v":454},{"$f":"[1]Personnel!Q18","v":193242.72727259769},426,{"$f":"[1]Personnel!S18","v":2897},{"$f":"[1]Personnel!S18","v":2897},{"$f":"[1]Personnel!S18","v":2897},{"$f":"[1]Personnel!T18","v":1217582.4267726326},420,{"$f":"[1]Personnel!V18","v":2897},{"$f":"[1]Personnel!W18","v":1272982.4271907874},439,{"$f":"[1]Personnel!Y18","v":427},{"$f":"[1]Personnel!Z18","v":219452.01989012252},514,0,0,0,null,null,null,null,null,null,null,null,null,null,null,null,null,null,null,null,null,null,null,null,null,null,null,null,null,{"$f":"[1]Personnel!G18","v":"443 404 - 532 602"}]
[1,{"$f":"IFERROR(INDEX(Settings!$AP$17:$AP$38,MATCH(Personnel!$G19,Settings!$AQ$17:$AQ$38,0)),0)","v":9},null,null,null,{"$f":"[1]Personnel!F19","v":"Permanent"},{"$f":"IFERROR(INDEX((SLevel),MATCH(Personnel!BA19,SLevel202223,0)),0)","v":"467 791 - 561 894"},{"$f":"[1]Personnel!H19","v":"Semi-skilled"},{"$f":"[1]Personnel!I19","v":"Other: Please specify"},{"$f":"[1]Personnel!J19","v":"Guaranteed package"},{"$f":"[1]Personnel!P19","v":3084},{"$f":"[1]Personnel!Q19","v":1566629.0027748519},508,{"$f":"[1]Personnel!S19","v":427},{"$f":"[1]Personnel!S19","v":427},{"$f":"[1]Personnel!S19","v":427},{"$f":"[1]Personnel!T19","v":200824.24566470014},470,{"$f":"[1]Personnel!V19","v":427},{"$f":"[1]Personnel!W19","v":209961.74884244398},492,{"$f":"[1]Personnel!Y19","v":3013},{"$f":"[1]Personnel!Z19","v":1779109.1231723744},590,0,0,0,null,null,null,null,null,null,null,null,null,null,null,null,null,null,null,null,null,null,null,null,null,null,null,null,null,{"$f":"[1]Personnel!G19","v":"443 404 - 532 602"}]
[1,{"$f":"IFERROR(INDEX(Settings!$AP$17:$AP$38,MATCH(Personnel!$G20,Settings!$AQ$17:$AQ$38,0)),0)","v":10},null,null,null,{"$f":"[1]Personnel!F20","v":"Permanent"},{"$f":"IFERROR(INDEX((SLevel),MATCH(Personnel!BA20,SLevel202223,0)),0)","v":"561 895 - 896 436"},{"$f":"[1]Personnel!H20","v":"Semi-skilled"},{"$f":"[1]Personnel!I20","v":"Other: Please specify"},{"$f":"[1]Personnel!J20","v":"Guaranteed package"},{"$f":"[1]Personnel!P20","v":593},{"$f":"[1]Personnel!Q20","v":439974.31142396631},742,{"$f":"[1]Personnel!S20","v":3013},{"$f":"[1]Personnel!S20","v":3013},{"$f":"[1]Personnel!S20","v":3013},{"$f":"[1]Personnel!T20","v":1628092.7730588622},540,{"$f":"[1]Personnel!V20","v":3013},{"$f":"[1]Personnel!W20","v":1702170.9942330404},565,{"$f":"[1]Personnel!Y20","v":648},{"$f":"[1]Personnel!Z20","v":499647.52984236472},771,0,0,0,null,null,null,null,null,null,null,null,null,null,null,null,null,null,null,null,null,null,null,null,null,null,null,null,null,{"$f":"[1]Personnel!G20","v":"532 603 - 849 702"}]
[1,{"$f":"IFERROR(INDEX(Settings!$AP$17:$AP$38,MATCH(Personnel!$G21,Settings!$AQ$17:$AQ$38,0)),0)","v":11},null,null,null,{"$f":"[1]Personnel!F21","v":"Permanent"},{"$f":"IFERROR(INDEX((SLevel),MATCH(Personnel!BA21,SLevel202223,0)),0)","v":"896 436 - 1 055 958"},{"$f":"[1]Personnel!H21","v":"Skilled"},{"$f":"[1]Personnel!I21","v":"Other: Please specify"},{"$f":"[1]Personnel!J21","v":"Guaranteed package"},{"$f":"[1]Personnel!P21","v":2304},{"$f":"[1]Personnel!Q21","v":2054674.2800094618},892,{"$f":"[1]Personnel!S21","v":648},{"$f":"[1]Personnel!S21","v":648},{"$f":"[1]Personnel!S21","v":648},{"$f":"[1]Personnel!T21","v":457235.88385772693},706,{"$f":"[1]Personnel!V21","v":648},{"$f":"[1]Personnel!W21","v":478040.11657325347},738,{"$f":"[1]Personnel!Y21","v":2261},{"$f":"[1]Personnel!Z21","v":2333347.4295686916},1032,0,0,0,null,null,null,null,null,null,null,null,null,null,null,null,null,null,null,null,null,null,null,null,null,null,null,null,null,{"$f":"[1]Personnel!G21","v":"849 703 - 1 000 908"}]
[1,{"$f":"IFERROR(INDEX(Settings!$AP$17:$AP$38,MATCH(Personnel!$G22,Settings!$AQ$17:$AQ$38,0)),0)","v":13},null,null,null,{"$f":"[1]Personnel!F22","v":"Permanent"},{"$f":"IFERROR(INDEX((SLevel),MATCH(Personnel!BA22,SLevel202223,0)),0)","v":"1 182 535 - 1 436 022"},{"$f":"[1]Personnel!H22","v":"Professionals"},{"$f":"[1]Personnel!I22","v":"Other: Please specify"},{"$f":"[1]Personnel!J22","v":"Guaranteed package"},{"$f":"[1]Personnel!P22","v":1388},{"$f":"[1]Personnel!Q22","v":1680901.0037384091},1211,{"$f":"[1]Personnel!S22","v":2261},{"$f":"[1]Personnel!S22","v":2261},{"$f":"[1]Personnel!S22","v":2261},{"$f":"[1]Personnel!T22","v":2135285.5975142964},944,{"$f":"[1]Personnel!V22","v":2261},{"$f":"[1]Personnel!W22","v":2232441.0922011971},987,{"$f":"[1]Personnel!Y22","v":1363},{"$f":"[1]Personnel!Z22","v":1908879.7064293758},1400,0,0,0,null,null,null,null,null,null,null,null,null,null,null,null,null,null,null,null,null,null,null,null,null,null,null,null,null,{"$f":"[1]Personnel!G22","v":"1 182 535 - 1 436 022"}]
[1,{"$f":"IFERROR(INDEX(Settings!$AP$17:$AP$38,MATCH(Personnel!$G23,Settings!$AQ$17:$AQ$38,0)),0)","v":14},null,null,null,{"$f":"[1]Personnel!F23","v":"Permanent"},{"$f":"IFERROR(INDEX((SLevel),MATCH(Personnel!BA23,SLevel202223,0)),0)","v":"1 436 023  - 1 741 770"},{"$f":"[1]Personnel!H23","v":"Senior Management"},{"$f":"[1]Personnel!I23","v":"Other: Please specify"},{"$f":"[1]Personnel!J23","v":"Guaranteed package"},{"$f":"[1]Personnel!P23","v":115},{"$f":"[1]Personnel!Q23","v":181539.93309221911},1579,{"$f":"[1]Personnel!S23","v":1363},{"$f":"[1]Personnel!S23","v":1363},{"$f":"[1]Personnel!S23","v":1363},{"$f":"[1]Personnel!T23","v":1746848.0230907553},1282,{"$f":"[1]Personnel!V23","v":1363},{"$f":"[1]Personnel!W23","v":1826329.6081413848},1340,{"$f":"[1]Personnel!Y23","v":111},{"$f":"[1]Personnel!Z23","v":206161.98896637332},1857,0,0,0,null,null,null,null,null,null,null,null,null,null,null,null,null,null,null,null,null,null,null,null,null,null,null,null,null,{"$f":"[1]Personnel!G23","v":"1 436 023  - 1 741 770"}]
[1,{"$f":"IFERROR(INDEX(Settings!$AP$17:$AP$38,MATCH(Personnel!$G24,Settings!$AQ$17:$AQ$38,0)),0)","v":15},null,null,null,{"$f":"[1]Personnel!F24","v":"Permanent"},{"$f":"IFERROR(INDEX((SLevel),MATCH(Personnel!BA24,SLevel202223,0)),0)","v":"1 741 771 - 2 259 984"},{"$f":"[1]Personnel!H24","v":"Senior Management"},{"$f":"[1]Personnel!I24","v":"Other: Please specify"},{"$f":"[1]Personnel!J24","v":"Guaranteed package"},{"$f":"[1]Personnel!P24","v":212},{"$f":"[1]Personnel!Q24","v":371284.9144226131},1751,{"$f":"[1]Personnel!S24","v":111},{"$f":"[1]Personnel!S24","v":111},{"$f":"[1]Personnel!S24","v":111},{"$f":"[1]Personnel!T24","v":188662.31415703485},1700,{"$f":"[1]Personnel!V24","v":111},{"$f":"[1]Personnel!W24","v":197246.44945117994},1777,{"$f":"[1]Personnel!Y24","v":208},{"$f":"[1]Personnel!Z24","v":421641.86758674291},2027,0,0,0,null,null,null,null,null,null,null,null,null,null,null,null,null,null,null,null,null,null,null,null,null,null,null,null,null,{"$f":"[1]Personnel!G24","v":"1 741 771 - 2 259 984"}]
[1,{"$f":"IFERROR(INDEX(Settings!$AP$17:$AP$38,MATCH(Personnel!$G25,Settings!$AQ$17:$AQ$38,0)),0)","v":15},null,null,null,{"$f":"[1]Personnel!F25","v":"Permanent"},{"$f":"IFERROR(INDEX((SLevel),MATCH(Personnel!BA25,SLevel202223,0)),0)","v":"1 741 771 - 2 259 984"},{"$f":"[1]Personnel!H25","v":"Senior Management"},{"$f":"[1]Personnel!I25","v":"Other: Please specify"},{"$f":"[1]Personnel!J25","v":"Guaranteed package"},{"$f":"[1]Personnel!P25","v":22},{"$f":"[1]Personnel!Q25","v":44147.29363372182},2007,{"$f":"[1]Personnel!S25","v":208},{"$f":"[1]Personnel!S25","v":208},{"$f":"[1]Personnel!S25","v":208},{"$f":"[1]Personnel!T25","v":385851.58633381192},1855,{"$f":"[1]Personnel!V25","v":208},{"$f":"[1]Personnel!W25","v":403407.83351200039},1939,{"$f":"[1]Personnel!Y25","v":22},{"$f":"[1]Personnel!Z25","v":50134.941155823843},2279,0,0,0,null,null,null,null,null,null,null,null,null,null,null,null,null,null,null,null,null,null,null,null,null,null,null,null,null,{"$f":"[1]Personnel!G25","v":"1 741 771 - 2 259 984"}]
[1,{"$f":"IFERROR(INDEX(Settings!$AP$17:$AP$38,MATCH(Personnel!$G26,Settings!$AQ$17:$AQ$38,0)),0)","v":16},null,null,null,{"$f":"[1]Personnel!F26","v":"Permanent"},{"$f":"IFERROR(INDEX((SLevel),MATCH(Personnel!BA26,SLevel202223,0)),0)","v":"2 259 984 - 2 545 854"},{"$f":"[1]Personnel!H26","v":"Executive Management"},{"$f":"[1]Personnel!I26","v":"Other: Please specify"},{"$f":"[1]Personnel!J26","v":"Guaranteed package"},{"$f":"[1]Personnel!P26","v":92},{"$f":"[1]Personnel!Q26","v":222575.17347864076},2419,{"$f":"[1]Personnel!S26","v":22},{"$f":"[1]Personnel!S26","v":22},{"$f":"[1]Personnel!S26","v":22},{"$f":"[1]Personnel!T26","v":45879.330452750255},2085,{"$f":"[1]Personnel!V26","v":22},{"$f":"[1]Personnel!W26","v":47966.839988350388},2180,{"$f":"[1]Personnel!Y26","v":92},{"$f":"[1]Personnel!Z26","v":252762.79261148899},2747,0,0,0,null,null,null,null,null,null,null,null,null,null,null,null,null,null,null,null,null,null,null,null,null,null,null,null,null,{"$f":"[1]Personnel!G26","v":"2 259 984 - 2 545 854"}]
[1,{"$f":"IFERROR(INDEX(Settings!$AP$17:$AP$38,MATCH(Personnel!$G27,Settings!$AQ$17:$AQ$38,0)),0)","v":18},null,null,null,{"$f":"[1]Personnel!F27","v":"Permanent"},{"$f":"IFERROR(INDEX((SLevel),MATCH(Personnel!BA27,SLevel202223,0)),0)","v":"2 871 267 - 3 243 836"},{"$f":"[1]Personnel!H27","v":"Executive Board Members"},{"$f":"[1]Personnel!I27","v":"Other: Please specify"},{"$f":"[1]Personnel!J27","v":"Guaranteed package"},{"$f":"[1]Personnel!P27","v":31},{"$f":"[1]Personnel!Q27","v":95507.789013209505},3081,{"$f":"[1]Personnel!S27","v":92},{"$f":"[1]Personnel!S27","v":92},{"$f":"[1]Personnel!S27","v":92},{"$f":"[1]Personnel!T27","v":231307.49575110222},2514,{"$f":"[1]Personnel!V27","v":92},{"$f":"[1]Personnel!W27","v":241831.98680777737},2629,{"$f":"[1]Personnel!Y27","v":32},{"$f":"[1]Personnel!Z27","v":108461.40245486262},3389,0,0,0,null,null,null,null,null,null,null,null,null,null,null,null,null,null,null,null,null,null,null,null,null,null,null,null,null,{"$f":"[1]Personnel!G27","v":"2 871 267 - 3 243 836"}]
[1,{"$f":"IFERROR(INDEX(Settings!$AP$17:$AP$38,MATCH(Personnel!$G28,Settings!$AQ$17:$AQ$38,0)),0)","v":19},null,null,null,{"$f":"[1]Personnel!F28","v":"Permanent"},{"$f":"IFERROR(INDEX((SLevel),MATCH(Personnel!BA28,SLevel202223,0)),0)","v":"3 243 837 - 3 666 610"},{"$f":"[1]Personnel!H28","v":"Executive Board Members"},{"$f":"[1]Personnel!I28","v":"Other: Please specify"},{"$f":"[1]Personnel!J28","v":"Guaranteed package"},{"$f":"[1]Personnel!P28","v":3},{"$f":"[1]Personnel!Q28","v":10315.300362244709},3438,{"$f":"[1]Personnel!S28","v":32},{"$f":"[1]Personnel!S28","v":32},{"$f":"[1]Personnel!S28","v":32},{"$f":"[1]Personnel!T28","v":99254.859183520457},3102,{"$f":"[1]Personnel!V28","v":32},{"$f":"[1]Personnel!W28","v":103770.95527637063},3243,{"$f":"[1]Personnel!Y28","v":3},{"$f":"[1]Personnel!Z28","v":11714.352887778323},3905,0,0,0,null,null,null,null,null,null,null,null,null,null,null,null,null,null,null,null,null,null,null,null,null,null,null,null,null,{"$f":"[1]Personnel!G28","v":"3 243 837 - 3 666 610"}]
[1,{"$f":"IFERROR(INDEX(Settings!$AP$17:$AP$38,MATCH(Personnel!$G29,Settings!$AQ$17:$AQ$38,0)),0)","v":18},null,null,null,{"$f":"[1]Personnel!F29","v":"Permanent"},{"$f":"IFERROR(INDEX((SLevel),MATCH(Personnel!BA29,SLevel202223,0)),0)","v":"2 871 267 - 3 243 836"},{"$f":"[1]Personnel!H29","v":"Executive Board Members"},{"$f":"[1]Personnel!I29","v":"Other: Please specify"},{"$f":"[1]Personnel!J29","v":"Guaranteed package"},{"$f":"[1]Personnel!P29","v":2},{"$f":"[1]Personnel!Q29","v":6433.5508604137676},3217,{"$f":"[1]Personnel!S29","v":3},{"$f":"[1]Personnel!S29","v":3},{"$f":"[1]Personnel!S29","v":3},{"$f":"[1]Personnel!T29","v":10720.001954486772},3573,{"$f":"[1]Personnel!V29","v":3},{"$f":"[1]Personnel!W29","v":11207.76204341592},3736,{"$f":"[1]Personnel!Y29","v":2},{"$f":"[1]Personnel!Z29","v":7306.1260897648353},3653,0,0,0,null,null,null,null,null,null,null,null,null,null,null,null,null,null,null,null,null,null,null,null,null,null,null,null,null,{"$f":"[1]Personnel!G29","v":"2 871 267 - 3 243 836"}]
[1,{"$f":"IFERROR(INDEX(Settings!$AP$17:$AP$38,MATCH(Personnel!$G30,Settings!$AQ$17:$AQ$38,0)),0)","v":22},null,null,null,{"$f":"[1]Personnel!F30","v":"Permanent"},{"$f":"IFERROR(INDEX((SLevel),MATCH(Personnel!BA30,SLevel202223,0)),0)","v":"≥4 691 400"},{"$f":"[1]Personnel!H30","v":"Executive Board Members"},{"$f":"[1]Personnel!I30","v":"Other: Please specify"},{"$f":"[1]Personnel!J30","v":"Guaranteed package"},{"$f":"[1]Personnel!P30","v":3},{"$f":"[1]Personnel!Q30","v":15983.915706173833},5328,{"$f":"[1]Personnel!S30","v":2},{"$f":"[1]Personnel!S30","v":2},{"$f":"[1]Personnel!S30","v":2},{"$f":"[1]Personnel!T30","v":6685.9592426756635},3343,{"$f":"[1]Personnel!V30","v":2},{"$f":"[1]Personnel!W30","v":6990.1703882174061},3495,{"$f":"[1]Personnel!Y30","v":3},{"$f":"[1]Personnel!Z30","v":18151.796121802628},6051,0,0,0,null,null,null,null,null,null,null,null,null,null,null,null,null,null,null,null,null,null,null,null,null,null,null,null,null,{"$f":"[1]Personnel!G30","v":"≥4 691 400"}]
[1,{"$f":"IFERROR(INDEX(Settings!$AP$17:$AP$38,MATCH(Personnel!$G31,Settings!$AQ$17:$AQ$38,0)),0)","v":22},null,null,null,{"$f":"[1]Personnel!F31","v":"Permanent"},{"$f":"IFERROR(INDEX((SLevel),MATCH(Personnel!BA31,SLevel202223,0)),0)","v":"≥4 691 400"},{"$f":"[1]Personnel!H31","v":"Executive Board Members"},{"$f":"[1]Personnel!I31","v":"Other: Please specify"},{"$f":"[1]Personnel!J31","v":"Guaranteed package"},{"$f":"[1]Personnel!P31","v":1},{"$f":"[1]Personnel!Q31","v":8347.8715807599256},8348,{"$f":"[1]Personnel!S31","v":3},{"$f":"[1]Personnel!S31","v":3},{"$f":"[1]Personnel!S31","v":3},{"$f":"[1]Personnel!T31","v":16611.014860768282},5537,{"$f":"[1]Personnel!V31","v":3},{"$f":"[1]Personnel!W31","v":17366.81603693324},5789,{"$f":"[1]Personnel!Y31","v":1},{"$f":"[1]Personnel!Z31","v":9480.0839650584439},9480,0,0,0,null,null,null,null,null,null,null,null,null,null,null,null,null,null,null,null,null,null,null,null,null,null,null,null,null,{"$f":"[1]Personnel!G31","v":"≥4 691 400"}]
[1,{"$f":"IFERROR(INDEX(Settings!$AP$17:$AP$38,MATCH(Personnel!$G32,Settings!$AQ$17:$AQ$38,0)),0)","v":6},null,null,null,{"$f":"[1]Personnel!F32","v":"Temporary/Contract"},{"$f":"IFERROR(INDEX((SLevel),MATCH(Personnel!BA32,SLevel202223,0)),0)","v":"268 951 - 317 463"},{"$f":"[1]Personnel!H32","v":"Semi-skilled"},{"$f":"[1]Personnel!I32","v":"Other: Please specify"},{"$f":"[1]Personnel!J32","v":"Guaranteed package"},{"$f":"[1]Personnel!P32","v":21},{"$f":"[1]Personnel!Q32","v":4684.1453348212754},223,{"$f":"[1]Personnel!S32","v":1},{"$f":"[1]Personnel!S32","v":1},{"$f":"[1]Personnel!S32","v":1},{"$f":"[1]Personnel!T32","v":8675.3847700928472},8675,{"$f":"[1]Personnel!V32","v":1},{"$f":"[1]Personnel!W32","v":9070.114777132072},9070,{"$f":"[1]Personnel!Y32","v":14},{"$f":"[1]Personnel!Z32","v":5319.4506706343109},380,0,0,0,null,null,null,null,null,null,null,null,null,null,null,null,null,null,null,null,null,null,null,null,null,null,null,null,null,{"$f":"[1]Personnel!G32","v":"254 929 - 300 912"}]
[1,{"$f":"IFERROR(INDEX(Settings!$AP$17:$AP$38,MATCH(Personnel!$G33,Settings!$AQ$17:$AQ$38,0)),0)","v":5},null,null,null,{"$f":"[1]Personnel!F33","v":"Temporary/Contract"},{"$f":"IFERROR(INDEX((SLevel),MATCH(Personnel!BA33,SLevel202223,0)),0)","v":"227 767 - 268 950"},{"$f":"[1]Personnel!H33","v":"Semi-skilled"},{"$f":"[1]Personnel!I33","v":"Other: Please specify"},{"$f":"[1]Personnel!J33","v":"Guaranteed package"},{"$f":"[1]Personnel!P33","v":120},{"$f":"[1]Personnel!Q33","v":13927.344378059432},116,{"$f":"[1]Personnel!S33","v":14},{"$f":"[1]Personnel!S33","v":14},{"$f":"[1]Personnel!S33","v":14},{"$f":"[1]Personnel!T33","v":4867.9190504402432},348,{"$f":"[1]Personnel!V33","v":14},{"$f":"[1]Personnel!W33","v":5089.4093672352747},364,{"$f":"[1]Personnel!Y33","v":63},{"$f":"[1]Personnel!Z33","v":15816.294349639347},251,0,0,0,null,null,null,null,null,null,null,null,null,null,null,null,null,null,null,null,null,null,null,null,null,null,null,null,null,{"$f":"[1]Personnel!G33","v":"215 893 - 254 928"}]
[1,{"$f":"IFERROR(INDEX(Settings!$AP$17:$AP$38,MATCH(Personnel!$G34,Settings!$AQ$17:$AQ$38,0)),0)","v":12},null,null,null,{"$f":"[1]Personnel!F34","v":"Temporary/Contract"},{"$f":"IFERROR(INDEX((SLevel),MATCH(Personnel!BA34,SLevel202223,0)),0)","v":"1 055 959 - 1 247 574"},{"$f":"[1]Personnel!H34","v":"Professionals"},{"$f":"[1]Personnel!I34","v":"Other: Please specify"},{"$f":"[1]Personnel!J34","v":"Guaranteed package"},{"$f":"[1]Personnel!P34","v":361},{"$f":"[1]Personnel!Q34","v":179257.10196171975},497,{"$f":"[1]Personnel!S34","v":63},{"$f":"[1]Personnel!S34","v":63},{"$f":"[1]Personnel!S34","v":63},{"$f":"[1]Personnel!T34","v":14473.757788000861},230,{"$f":"[1]Personnel!V34","v":63},{"$f":"[1]Personnel!W34","v":15132.313767354901},240,{"$f":"[1]Personnel!Y34","v":617},{"$f":"[1]Personnel!Z34","v":203569.54003063959},330,0,0,0,null,null,null,null,null,null,null,null,null,null,null,null,null,null,null,null,null,null,null,null,null,null,null,null,null,{"$f":"[1]Personnel!G34","v":"1 000 909 - 1 182 534"}]
[1,{"$f":"IFERROR(INDEX(Settings!$AP$17:$AP$38,MATCH(Personnel!$G35,Settings!$AQ$17:$AQ$38,0)),0)","v":8},null,null,null,{"$f":"[1]Personnel!F35","v":"Temporary/Contract"},{"$f":"IFERROR(INDEX((SLevel),MATCH(Personnel!BA35,SLevel202223,0)),0)","v":"382 960 - 467 790"},{"$f":"[1]Personnel!H35","v":"Professionals"},{"$f":"[1]Personnel!I35","v":"Other: Please specify"},{"$f":"[1]Personnel!J35","v":"Guaranteed package"},{"$f":"[1]Personnel!P35","v":37},{"$f":"[1]Personnel!Q35","v":62127.269336686128},1679,{"$f":"[1]Personnel!S35","v":617},{"$f":"[1]Personnel!S35","v":617},{"$f":"[1]Personnel!S35","v":617},{"$f":"[1]Personnel!T35","v":186289.92040005937},302,{"$f":"[1]Personnel!V35","v":617},{"$f":"[1]Personnel!W35","v":194766.11177826207},316,{"$f":"[1]Personnel!Y35","v":126},{"$f":"[1]Personnel!Z35","v":70553.520635013163},560,0,0,0,null,null,null,null,null,null,null,null,null,null,null,null,null,null,null,null,null,null,null,null,null,null,null,null,null,{"$f":"[1]Personnel!G35","v":"362 995 - 443 403"}]
[1,{"$f":"IFERROR(INDEX(Settings!$AP$17:$AP$38,MATCH(Personnel!$G36,Settings!$AQ$17:$AQ$38,0)),0)","v":11},null,null,null,{"$f":"[1]Personnel!F36","v":"Permanent"},{"$f":"IFERROR(INDEX((SLevel),MATCH(Personnel!BA36,SLevel202223,0)),0)","v":"896 436 - 1 055 958"},{"$f":"[1]Personnel!H36","v":"Professionals"},{"$f":"[1]Personnel!I36","v":"Other: Please specify"},{"$f":"[1]Personnel!J36","v":"Other"},{"$f":"[1]Personnel!P36","v":0},{"$f":"[1]Personnel!Q36","v":97536.158349999998},0,{"$f":"[1]Personnel!S36","v":126},{"$f":"[1]Personnel!S36","v":126},{"$f":"[1]Personnel!S36","v":126},{"$f":"[1]Personnel!T36","v":64564.717005610524},512,{"$f":"[1]Personnel!V36","v":126},{"$f":"[1]Personnel!W36","v":67502.411629365801},536,{"$f":"[1]Personnel!Y36","v":0},{"$f":"[1]Personnel!Z36","v":255460.19459335197},0,0,0,0,null,null,null,null,null,null,null,null,null,null,null,null,null,null,null,null,null,null,null,null,null,null,null,null,null,{"$f":"[1]Personnel!G36","v":"849 703 - 1 000 908"}]
[1,{"$f":"IFERROR(INDEX(Settings!$AP$17:$AP$38,MATCH(Personnel!$G37,Settings!$AQ$17:$AQ$38,0)),0)","v":5},null,null,null,{"$f":"[1]Personnel!F37","v":"Permanent"},{"$f":"IFERROR(INDEX((SLevel),MATCH(Personnel!BA37,SLevel202223,0)),0)","v":"227 767 - 268 950"},{"$f":"[1]Personnel!H37","v":"Professionals"},{"$f":"[1]Personnel!I37","v":"Other: Please specify"},{"$f":"[1]Personnel!J37","v":"Other"},{"$f":"[1]Personnel!P37","v":0},{"$f":"[1]Personnel!Q37","v":718745.63182000013},0,{"$f":"[1]Personnel!S37","v":0},{"$f":"[1]Personnel!S37","v":0},{"$f":"[1]Personnel!S37","v":0},{"$f":"[1]Personnel!T37","v":233775.9338112},0,{"$f":"[1]Personnel!V37","v":0},{"$f":"[1]Personnel!W37","v":244412.73879960965},0,{"$f":"[1]Personnel!Y37","v":0},{"$f":"[1]Personnel!Z37","v":149607.48336557858},0,0,0,0,null,null,null,null,null,null,null,null,null,null,null,null,null,null,null,null,null,null,null,null,null,null,null,null,null,{"$f":"[1]Personnel!G37","v":"215 893 - 254 928"}]
[1,{"$f":"IFERROR(INDEX(Settings!$AP$17:$AP$38,MATCH(Personnel!$G38,Settings!$AQ$17:$AQ$38,0)),0)","v":6},null,null,null,{"$f":"[1]Personnel!F38","v":"Temporary/Contract"},{"$f":"IFERROR(INDEX((SLevel),MATCH(Personnel!BA38,SLevel202223,0)),0)","v":"268 951 - 317 463"},{"$f":"[1]Personnel!H38","v":"Professionals"},{"$f":"[1]Personnel!I38","v":"Other: Please specify"},{"$f":"[1]Personnel!J38","v":"Guaranteed package"},{"$f":"[1]Personnel!P38","v":0},{"$f":"[1]Personnel!Q38","v":0},0,{"$f":"[1]Personnel!S38","v":0},{"$f":"[1]Personnel!S38","v":0},{"$f":"[1]Personnel!S38","v":0},{"$f":"[1]Personnel!T38","v":137903},0,{"$f":"[1]Personnel!V38","v":0},{"$f":"[1]Personnel!W38","v":143679.59960357888},0,{"$f":"[1]Personnel!Y38","v":0},{"$f":"[1]Personnel!Z38","v":0},0,0,0,0,null,null,null,null,null,null,null,null,null,null,null,null,null,null,null,null,null,null,null,null,null,null,null,null,null,{"$f":"[1]Personnel!G38","v":"254 929 - 300 912"}]
[1,{"$f":"IFERROR(INDEX(Settings!$AP$17:$AP$38,MATCH(Personnel!$G39,Settings!$AQ$17:$AQ$38,0)),0)","v":8},null,null,null,{"$f":"[1]Personnel!F39","v":"Temporary/Contract"},{"$f":"IFERROR(INDEX((SLevel),MATCH(Personnel!BA39,SLevel202223,0)),0)","v":"382 960 - 467 790"},{"$f":"[1]Personnel!H39","v":"Semi-skilled"},{"$f":"[1]Personnel!I39","v":"Other: Please specify"},{"$f":"[1]Personnel!J39","v":"Guaranteed package"},{"$f":"[1]Personnel!P39","v":0},{"$f":"[1]Personnel!Q39","v":0},0,{"$f":"[1]Personnel!S39","v":158},{"$f":"[1]Personnel!S39","v":158},{"$f":"[1]Personnel!S39","v":158},{"$f":"[1]Personnel!T39","v":57660},365,{"$f":"[1]Personnel!V39","v":146},{"$f":"[1]Personnel!W39","v":54635},374,{"$f":"[1]Personnel!Y39","v":146},{"$f":"[1]Personnel!Z39","v":57105},391,0,0,0,null,null,null,null,null,null,null,null,null,null,null,null,null,null,null,null,null,null,null,null,null,null,null,null,null,{"$f":"[1]Personnel!G39","v":"362 995 - 443 403"}]
[0,{"$f":"IFERROR(INDEX(Settings!$AP$17:$AP$38,MATCH(Personnel!$G40,Settings!$AQ$17:$AQ$38,0)),0)","v":9},null,null,null,{"$f":"[1]Personnel!F40","v":"Permanent"},{"$f":"IFERROR(INDEX((SLevel),MATCH(Personnel!BA40,SLevel202223,0)),0)","v":"467 791 - 561 894"},{"$f":"[1]Personnel!H40","v":0},{"$f":"[1]Personnel!I40","v":"Other: Please specify"},{"$f":"[1]Personnel!J40","v":"Guaranteed package"},{"$f":"[1]Personnel!P40","v":0},{"$f":"[1]Personnel!Q40","v":0},0,{"$f":"[1]Personnel!S40","v":0},{"$f":"[1]Personnel!S40","v":0},{"$f":"[1]Personnel!S40","v":0},{"$f":"[1]Personnel!T40","v":0},0,{"$f":"[1]Personnel!V40","v":0},{"$f":"[1]Personnel!W40","v":0},0,{"$f":"[1]Personnel!Y40","v":0},{"$f":"[1]Personnel!Z40","v":0},0,0,0,0,null,null,null,null,null,null,null,null,null,null,null,null,null,null,null,null,null,null,null,null,null,null,null,null,null,{"$f":"[1]Personnel!G40","v":"443 404 - 532 602"}]
[0,{"$f":"IFERROR(INDEX(Settings!$AP$17:$AP$38,MATCH(Personnel!$G41,Settings!$AQ$17:$AQ$38,0)),0)","v":9},null,null,null,{"$f":"[1]Personnel!F41","v":"Permanent"},{"$f":"IFERROR(INDEX((SLevel),MATCH(Personnel!BA41,SLevel202223,0)),0)","v":"467 791 - 561 894"},{"$f":"[1]Personnel!H41","v":0},{"$f":"[1]Personnel!I41","v":"Other: Please specify"},{"$f":"[1]Personnel!J41","v":"Guaranteed package"},{"$f":"[1]Personnel!P41","v":0},{"$f":"[1]Personnel!Q41","v":0},0,{"$f":"[1]Personnel!S41","v":0},{"$f":"[1]Personnel!S41","v":0},{"$f":"[1]Personnel!S41","v":0},{"$f":"[1]Personnel!T41","v":0},0,{"$f":"[1]Personnel!V41","v":0},{"$f":"[1]Personnel!W41","v":0},0,{"$f":"[1]Personnel!Y41","v":0},{"$f":"[1]Personnel!Z41","v":0},0,0,0,0,null,null,null,null,null,null,null,null,null,null,null,null,null,null,null,null,null,null,null,null,null,null,null,null,null,{"$f":"[1]Personnel!G41","v":"443 404 - 532 602"}]
[1,{"$f":"IFERROR(INDEX(Settings!$AP$17:$AP$38,MATCH(Personnel!$G42,Settings!$AQ$17:$AQ$38,0)),0)","v":10},null,null,null,{"$f":"[1]Personnel!F42","v":"Temporary/Contract"},{"$f":"IFERROR(INDEX((SLevel),MATCH(Personnel!BA42,SLevel202223,0)),0)","v":"561 895 - 896 436"},{"$f":"[1]Personnel!H42","v":"Semi-skilled"},{"$f":"[1]Personnel!I42","v":"Other: Please specify"},{"$f":"[1]Personnel!J42","v":"Guaranteed package"},{"$f":"[1]Personnel!P42","v":0},{"$f":"[1]Personnel!Q42","v":0},0,{"$f":"[1]Personnel!S42","v":206},{"$f":"[1]Personnel!S42","v":206},{"$f":"[1]Personnel!S42","v":206},{"$f":"[1]Personnel!T42","v":139990},680,{"$f":"[1]Personnel!V42","v":65},{"$f":"[1]Personnel!W42","v":94459},1453,{"$f":"[1]Personnel!Y42","v":65},{"$f":"[1]Personnel!Z42","v":98729},1519,0,0,0,null,null,null,null,null,null,null,null,null,null,null,null,null,null,null,null,null,null,null,null,null,null,null,null,null,{"$f":"[1]Personnel!G42","v":"532 603 - 849 702"}]
[0,{"$f":"IFERROR(INDEX(Settings!$AP$17:$AP$38,MATCH(Personnel!$G43,Settings!$AQ$17:$AQ$38,0)),0)","v":12},null,null,null,{"$f":"[1]Personnel!F43","v":"Permanent"},{"$f":"IFERROR(INDEX((SLevel),MATCH(Personnel!BA43,SLevel202223,0)),0)","v":"1 055 959 - 1 247 574"},{"$f":"[1]Personnel!H43","v":0},{"$f":"[1]Personnel!I43","v":"Other: Please specify"},{"$f":"[1]Personnel!J43","v":"Guaranteed package"},{"$f":"[1]Personnel!P43","v":0},{"$f":"[1]Personnel!Q43","v":0},0,{"$f":"[1]Personnel!S43","v":0},{"$f":"[1]Personnel!S43","v":0},{"$f":"[1]Personnel!S43","v":0},{"$f":"[1]Personnel!T43","v":0},0,{"$f":"[1]Personnel!V43","v":0},{"$f":"[1]Personnel!W43","v":0},0,{"$f":"[1]Personnel!Y43","v":0},{"$f":"[1]Personnel!Z43","v":0},0,0,0,0,null,null,null,null,null,null,null,null,null,null,null,null,null,null,null,null,null,null,null,null,null,null,null,null,null,{"$f":"[1]Personnel!G43","v":"1 000 909 - 1 182 534"}]
[0,{"$f":"IFERROR(INDEX(Settings!$AP$17:$AP$38,MATCH(Personnel!$G44,Settings!$AQ$17:$AQ$38,0)),0)","v":13},null,null,null,{"$f":"[1]Personnel!F44","v":"Permanent"},{"$f":"IFERROR(INDEX((SLevel),MATCH(Personnel!BA44,SLevel202223,0)),0)","v":"1 182 535 - 1 436 022"},{"$f":"[1]Personnel!H44","v":0},{"$f":"[1]Personnel!I44","v":"Other: Please specify"},{"$f":"[1]Personnel!J44","v":"Guaranteed package"},{"$f":"[1]Personnel!P44","v":0},{"$f":"[1]Personnel!Q44","v":0},0,{"$f":"[1]Personnel!S44","v":0},{"$f":"[1]Personnel!S44","v":0},{"$f":"[1]Personnel!S44","v":0},{"$f":"[1]Personnel!T44","v":0},0,{"$f":"[1]Personnel!V44","v":0},{"$f":"[1]Personnel!W44","v":0},0,{"$f":"[1]Personnel!Y44","v":0},{"$f":"[1]Personnel!Z44","v":0},0,0,0,0,null,null,null,null,null,null,null,null,null,null,null,null,null,null,null,null,null,null,null,null,null,null,null,null,null,{"$f":"[1]Personnel!G44","v":"1 182 535 - 1 436 022"}]
[1,{"$f":"IFERROR(INDEX(Settings!$AP$17:$AP$38,MATCH(Personnel!$G45,Settings!$AQ$17:$AQ$38,0)),0)","v":14},null,null,null,{"$f":"[1]Personnel!F45","v":"Temporary/Contract"},{"$f":"IFERROR(INDEX((SLevel),MATCH(Personnel!BA45,SLevel202223,0)),0)","v":"1 436 023  - 1 741 770"},{"$f":"[1]Personnel!H45","v":"Professionals"},{"$f":"[1]Personnel!I45","v":"Other: Please specify"},{"$f":"[1]Personnel!J45","v":"Guaranteed package"},{"$f":"[1]Personnel!P45","v":0},{"$f":"[1]Personnel!Q45","v":0},0,{"$f":"[1]Personnel!S45","v":1},{"$f":"[1]Personnel!S45","v":1},{"$f":"[1]Personnel!S45","v":1},{"$f":"[1]Personnel!T45","v":1409},1409,{"$f":"[1]Personnel!V45","v":1},{"$f":"[1]Personnel!W45","v":1473},1473,{"$f":"[1]Personnel!Y45","v":1},{"$f":"[1]Personnel!Z45","v":1540},1540,0,0,0,null,null,null,null,null,null,null,null,null,null,null,null,null,null,null,null,null,null,null,null,null,null,null,null,null,{"$f":"[1]Personnel!G45","v":"1 436 023  - 1 741 770"}]
[0,{"$f":"IFERROR(INDEX(Settings!$AP$17:$AP$38,MATCH(Personnel!$G46,Settings!$AQ$17:$AQ$38,0)),0)","v":15},null,null,null,{"$f":"[1]Personnel!F46","v":"Permanent"},{"$f":"IFERROR(INDEX((SLevel),MATCH(Personnel!BA46,SLevel202223,0)),0)","v":"1 741 771 - 2 259 984"},{"$f":"[1]Personnel!H46","v":0},{"$f":"[1]Personnel!I46","v":"Other: Please specify"},{"$f":"[1]Personnel!J46","v":"Guaranteed package"},{"$f":"[1]Personnel!P46","v":0},{"$f":"[1]Personnel!Q46","v":0},0,{"$f":"[1]Personnel!S46","v":0},{"$f":"[1]Personnel!S46","v":0},{"$f":"[1]Personnel!S46","v":0},{"$f":"[1]Personnel!T46","v":0},0,{"$f":"[1]Personnel!V46","v":0},{"$f":"[1]Personnel!W46","v":0},0,{"$f":"[1]Personnel!Y46","v":0},{"$f":"[1]Personnel!Z46","v":0},0,0,0,0,null,null,null,null,null,null,null,null,null,null,null,null,null,null,null,null,null,null,null,null,null,null,null,null,null,{"$f":"[1]Personnel!G46","v":"1 741 771 - 2 259 984"}]
[0,{"$f":"IFERROR(INDEX(Settings!$AP$17:$AP$38,MATCH(Personnel!$G47,Settings!$AQ$17:$AQ$38,0)),0)","v":15},null,null,null,{"$f":"[1]Personnel!F47","v":"Permanent"},{"$f":"IFERROR(INDEX((SLevel),MATCH(Personnel!BA47,SLevel202223,0)),0)","v":"1 741 771 - 2 259 984"},{"$f":"[1]Personnel!H47","v":0},{"$f":"[1]Personnel!I47","v":"Other: Please specify"},{"$f":"[1]Personnel!J47","v":"Guaranteed package"},{"$f":"[1]Personnel!P47","v":0},{"$f":"[1]Personnel!Q47","v":0},0,{"$f":"[1]Personnel!S47","v":0},{"$f":"[1]Personnel!S47","v":0},{"$f":"[1]Personnel!S47","v":0},{"$f":"[1]Personnel!T47","v":0},0,{"$f":"[1]Personnel!V47","v":0},{"$f":"[1]Personnel!W47","v":0},0,{"$f":"[1]Personnel!Y47","v":0},{"$f":"[1]Personnel!Z47","v":0},0,0,0,0,null,null,null,null,null,null,null,null,null,null,null,null,null,null,null,null,null,null,null,null,null,null,null,null,null,{"$f":"[1]Personnel!G47","v":"1 741 771 - 2 259 984"}]
[0,{"$f":"IFERROR(INDEX(Settings!$AP$17:$AP$38,MATCH(Personnel!$G48,Settings!$AQ$17:$AQ$38,0)),0)","v":16},null,null,null,{"$f":"[1]Personnel!F48","v":"Permanent"},{"$f":"IFERROR(INDEX((SLevel),MATCH(Personnel!BA48,SLevel202223,0)),0)","v":"2 259 984 - 2 545 854"},{"$f":"[1]Personnel!H48","v":0},{"$f":"[1]Personnel!I48","v":"Other: Please specify"},{"$f":"[1]Personnel!J48","v":"Guaranteed package"},{"$f":"[1]Personnel!P48","v":0},{"$f":"[1]Personnel!Q48","v":0},0,{"$f":"[1]Personnel!S48","v":0},{"$f":"[1]Personnel!S48","v":0},{"$f":"[1]Personnel!S48","v":0},{"$f":"[1]Personnel!T48","v":0},0,{"$f":"[1]Personnel!V48","v":0},{"$f":"[1]Personnel!W48","v":0},0,{"$f":"[1]Personnel!Y48","v":0},{"$f":"[1]Personnel!Z48","v":0},0,0,0,0,null,null,null,null,null,null,null,null,null,null,null,null,null,null,null,null,null,null,null,null,null,null,null,null,null,{"$f":"[1]Personnel!G48","v":"2 259 984 - 2 545 854"}]
[0,{"$f":"IFERROR(INDEX(Settings!$AP$17:$AP$38,MATCH(Personnel!$G49,Settings!$AQ$17:$AQ$38,0)),0)","v":17},null,null,null,{"$f":"[1]Personnel!F49","v":"Permanent"},{"$f":"IFERROR(INDEX((SLevel),MATCH(Personnel!BA49,SLevel202223,0)),0)","v":"2 545 855 - 2 871 266"},{"$f":"[1]Personnel!H49","v":0},{"$f":"[1]Personnel!I49","v":"Other: Please specify"},{"$f":"[1]Personnel!J49","v":"Guaranteed package"},{"$f":"[1]Personnel!P49","v":0},{"$f":"[1]Personnel!Q49","v":0},0,{"$f":"[1]Personnel!S49","v":0},{"$f":"[1]Personnel!S49","v":0},{"$f":"[1]Personnel!S49","v":0},{"$f":"[1]Personnel!T49","v":0},0,{"$f":"[1]Personnel!V49","v":0},{"$f":"[1]Personnel!W49","v":0},0,{"$f":"[1]Personnel!Y49","v":0},{"$f":"[1]Personnel!Z49","v":0},0,0,0,0,null,null,null,null,null,null,null,null,null,null,null,null,null,null,null,null,null,null,null,null,null,null,null,null,null,{"$f":"[1]Personnel!G49","v":"2 545 855 - 2 871 266"}]
[0,{"$f":"IFERROR(INDEX(Settings!$AP$17:$AP$38,MATCH(Personnel!$G50,Settings!$AQ$17:$AQ$38,0)),0)","v":19},null,null,null,{"$f":"[1]Personnel!F50","v":"Permanent"},{"$f":"IFERROR(INDEX((SLevel),MATCH(Personnel!BA50,SLevel202223,0)),0)","v":"3 243 837 - 3 666 610"},{"$f":"[1]Personnel!H50","v":0},{"$f":"[1]Personnel!I50","v":"Other: Please specify"},{"$f":"[1]Personnel!J50","v":"Guaranteed package"},{"$f":"[1]Personnel!P50","v":0},{"$f":"[1]Personnel!Q50","v":0},0,{"$f":"[1]Personnel!S50","v":0},{"$f":"[1]Personnel!S50","v":0},{"$f":"[1]Personnel!S50","v":0},{"$f":"[1]Personnel!T50","v":0},0,{"$f":"[1]Personnel!V50","v":0},{"$f":"[1]Personnel!W50","v":0},0,{"$f":"[1]Personnel!Y50","v":0},{"$f":"[1]Personnel!Z50","v":0},0,0,0,0,null,null,null,null,null,null,null,null,null,null,null,null,null,null,null,null,null,null,null,null,null,null,null,null,null,{"$f":"[1]Personnel!G50","v":"3 243 837 - 3 666 610"}]
[0,{"$f":"IFERROR(INDEX(Settings!$AP$17:$AP$38,MATCH(Personnel!$G51,Settings!$AQ$17:$AQ$38,0)),0)","v":19},null,null,null,{"$f":"[1]Personnel!F51","v":"Permanent"},{"$f":"IFERROR(INDEX((SLevel),MATCH(Personnel!BA51,SLevel202223,0)),0)","v":"3 243 837 - 3 666 610"},{"$f":"[1]Personnel!H51","v":0},{"$f":"[1]Personnel!I51","v":"Other: Please specify"},{"$f":"[1]Personnel!J51","v":"Guaranteed package"},{"$f":"[1]Personnel!P51","v":0},{"$f":"[1]Personnel!Q51","v":0},0,{"$f":"[1]Personnel!S51","v":0},{"$f":"[1]Personnel!S51","v":0},{"$f":"[1]Personnel!S51","v":0},{"$f":"[1]Personnel!T51","v":0},0,{"$f":"[1]Personnel!V51","v":0},{"$f":"[1]Personnel!W51","v":0},0,{"$f":"[1]Personnel!Y51","v":0},{"$f":"[1]Personnel!Z51","v":0},0,0,0,0,null,null,null,null,null,null,null,null,null,null,null,null,null,null,null,null,null,null,null,null,null,null,null,null,null,{"$f":"[1]Personnel!G51","v":"3 243 837 - 3 666 610"}]
[0,{"$f":"IFERROR(INDEX(Settings!$AP$17:$AP$38,MATCH(Personnel!$G52,Settings!$AQ$17:$AQ$38,0)),0)","v":22},null,null,null,{"$f":"[1]Personnel!F52","v":"Permanent"},{"$f":"IFERROR(INDEX((SLevel),MATCH(Personnel!BA52,SLevel202223,0)),0)","v":"≥4 691 400"},{"$f":"[1]Personnel!H52","v":0},{"$f":"[1]Personnel!I52","v":"Other: Please specify"},{"$f":"[1]Personnel!J52","v":"Guaranteed package"},{"$f":"[1]Personnel!P52","v":0},{"$f":"[1]Personnel!Q52","v":0},0,{"$f":"[1]Personnel!S52","v":0},{"$f":"[1]Personnel!S52","v":0},{"$f":"[1]Personnel!S52","v":0},{"$f":"[1]Personnel!T52","v":0},0,{"$f":"[1]Personnel!V52","v":0},{"$f":"[1]Personnel!W52","v":0},0,{"$f":"[1]Personnel!Y52","v":0},{"$f":"[1]Personnel!Z52","v":0},0,0,0,0,null,null,null,null,null,null,null,null,null,null,null,null,null,null,null,null,null,null,null,null,null,null,null,null,null,{"$f":"[1]Personnel!G52","v":"≥4 691 400"}]
[0,{"$f":"IFERROR(INDEX(Settings!$AP$17:$AP$38,MATCH(Personnel!$G53,Settings!$AQ$17:$AQ$38,0)),0)","v":7},null,null,null,{"$f":"[1]Personnel!F53","v":"Temporary/Contract"},{"$f":"IFERROR(INDEX((SLevel),MATCH(Personnel!BA53,SLevel202223,0)),0)","v":"317 464 - 382 959"},{"$f":"[1]Personnel!H53","v":0},{"$f":"[1]Personnel!I53","v":"Other: Please specify"},{"$f":"[1]Personnel!J53","v":"Guaranteed package"},{"$f":"[1]Personnel!P53","v":0},{"$f":"[1]Personnel!Q53","v":0},0,{"$f":"[1]Personnel!S53","v":0},{"$f":"[1]Personnel!S53","v":0},{"$f":"[1]Personnel!S53","v":0},{"$f":"[1]Personnel!T53","v":0},0,{"$f":"[1]Personnel!V53","v":0},{"$f":"[1]Personnel!W53","v":0},0,{"$f":"[1]Personnel!Y53","v":0},{"$f":"[1]Personnel!Z53","v":0},0,0,0,0,null,null,null,null,null,null,null,null,null,null,null,null,null,null,null,null,null,null,null,null,null,null,null,null,null,{"$f":"[1]Personnel!G53","v":"300 913 - 362 994"}]
[1,{"$f":"IFERROR(INDEX(Settings!$AP$17:$AP$38,MATCH(Personnel!$G54,Settings!$AQ$17:$AQ$38,0)),0)","v":6},null,null,null,{"$f":"[1]Personnel!F54","v":"Temporary/Contract"},{"$f":"IFERROR(INDEX((SLevel),MATCH(Personnel!BA54,SLevel202223,0)),0)","v":"268 951 - 317 463"},{"$f":"[1]Personnel!H54","v":"Semi-skilled"},{"$f":"[1]Personnel!I54","v":"Other: Please specify"},{"$f":"[1]Personnel!J54","v":"Guaranteed package"},{"$f":"[1]Personnel!P54","v":0},{"$f":"[1]Personnel!Q54","v":0},0,{"$f":"[1]Personnel!S54","v":2802},{"$f":"[1]Personnel!S54","v":2802},{"$f":"[1]Personnel!S54","v":2802},{"$f":"[1]Personnel!T54","v":697853},249,{"$f":"[1]Personnel!V54","v":1165},{"$f":"[1]Personnel!W54","v":457197},392,{"$f":"[1]Personnel!Y54","v":1165},{"$f":"[1]Personnel!Z54","v":477862},410,0,0,0,null,null,null,null,null,null,null,null,null,null,null,null,null,null,null,null,null,null,null,null,null,null,null,null,null,{"$f":"[1]Personnel!G54","v":"254 929 - 300 912"}]
[0,{"$f":"IFERROR(INDEX(Settings!$AP$17:$AP$38,MATCH(Personnel!$G55,Settings!$AQ$17:$AQ$38,0)),0)","v":5},null,null,null,{"$f":"[1]Personnel!F55","v":"Temporary/Contract"},{"$f":"IFERROR(INDEX((SLevel),MATCH(Personnel!BA55,SLevel202223,0)),0)","v":"227 767 - 268 950"},{"$f":"[1]Personnel!H55","v":0},{"$f":"[1]Personnel!I55","v":"Other: Please specify"},{"$f":"[1]Personnel!J55","v":"Guaranteed package"},{"$f":"[1]Personnel!P55","v":0},{"$f":"[1]Personnel!Q55","v":0},0,{"$f":"[1]Personnel!S55","v":0},{"$f":"[1]Personnel!S55","v":0},{"$f":"[1]Personnel!S55","v":0},{"$f":"[1]Personnel!T55","v":0},0,{"$f":"[1]Personnel!V55","v":0},{"$f":"[1]Personnel!W55","v":0},0,{"$f":"[1]Personnel!Y55","v":0},{"$f":"[1]Personnel!Z55","v":0},0,0,0,0,null,null,null,null,null,null,null,null,null,null,null,null,null,null,null,null,null,null,null,null,null,null,null,null,null,{"$f":"[1]Personnel!G55","v":"215 893 - 254 928"}]
[0,{"$f":"IFERROR(INDEX(Settings!$AP$17:$AP$38,MATCH(Personnel!$G56,Settings!$AQ$17:$AQ$38,0)),0)","v":12},null,null,null,{"$f":"[1]Personnel!F56","v":"Temporary/Contract"},{"$f":"IFERROR(INDEX((SLevel),MATCH(Personnel!BA56,SLevel202223,0)),0)","v":"1 055 959 - 1 247 574"},{"$f":"[1]Personnel!H56","v":0},{"$f":"[1]Personnel!I56","v":"Other: Please specify"},{"$f":"[1]Personnel!J56","v":"Guaranteed package"},{"$f":"[1]Personnel!P56","v":0},{"$f":"[1]Personnel!Q56","v":0},0,{"$f":"[1]Personnel!S56","v":0},{"$f":"[1]Personnel!S56","v":0},{"$f":"[1]Personnel!S56","v":0},{"$f":"[1]Personnel!T56","v":0},0,{"$f":"[1]Personnel!V56","v":0},{"$f":"[1]Personnel!W56","v":0},0,{"$f":"[1]Personnel!Y56","v":0},{"$f":"[1]Personnel!Z56","v":0},0,0,0,0,null,null,null,null,null,null,null,null,null,null,null,null,null,null,null,null,null,null,null,null,null,null,null,null,null,{"$f":"[1]Personnel!G56","v":"1 000 909 - 1 182 534"}]
[0,{"$f":"IFERROR(INDEX(Settings!$AP$17:$AP$38,MATCH(Personnel!$G57,Settings!$AQ$17:$AQ$38,0)),0)","v":8},null,null,null,{"$f":"[1]Personnel!F57","v":"Permanent"},{"$f":"IFERROR(INDEX((SLevel),MATCH(Personnel!BA57,SLevel202223,0)),0)","v":"382 960 - 467 790"},{"$f":"[1]Personnel!H57","v":0},{"$f":"[1]Personnel!I57","v":"Other: Please specify"},{"$f":"[1]Personnel!J57","v":"Guaranteed package"},{"$f":"[1]Personnel!P57","v":0},{"$f":"[1]Personnel!Q57","v":0},0,{"$f":"[1]Personnel!S57","v":0},{"$f":"[1]Personnel!S57","v":0},{"$f":"[1]Personnel!S57","v":0},{"$f":"[1]Personnel!T57","v":0},0,{"$f":"[1]Personnel!V57","v":0},{"$f":"[1]Personnel!W57","v":0},0,{"$f":"[1]Personnel!Y57","v":0},{"$f":"[1]Personnel!Z57","v":0},0,0,0,0,null,null,null,null,null,null,null,null,null,null,null,null,null,null,null,null,null,null,null,null,null,null,null,null,null,{"$f":"[1]Personnel!G57","v":"362 995 - 443 403"}]
[1,{"$f":"IFERROR(INDEX(Settings!$AP$17:$AP$38,MATCH(Personnel!$G58,Settings!$AQ$17:$AQ$38,0)),0)","v":11},null,null,null,{"$f":"[1]Personnel!F58","v":"Temporary/Contract"},{"$f":"IFERROR(INDEX((SLevel),MATCH(Personnel!BA58,SLevel202223,0)),0)","v":"896 436 - 1 055 958"},{"$f":"[1]Personnel!H58","v":"Professionals"},{"$f":"[1]Personnel!I58","v":"Other: Please specify"},{"$f":"[1]Personnel!J58","v":"Guaranteed package"},{"$f":"[1]Personnel!P58","v":0},{"$f":"[1]Personnel!Q58","v":0},0,{"$f":"[1]Personnel!S58","v":18},{"$f":"[1]Personnel!S58","v":18},{"$f":"[1]Personnel!S58","v":18},{"$f":"[1]Personnel!T58","v":16089},894,{"$f":"[1]Personnel!V58","v":15},{"$f":"[1]Personnel!W58","v":16211},1081,{"$f":"[1]Personnel!Y58","v":15},{"$f":"[1]Personnel!Z58","v":16944},1130,0,0,0,null,null,null,null,null,null,null,null,null,null,null,null,null,null,null,null,null,null,null,null,null,null,null,null,null,{"$f":"[1]Personnel!G58","v":"849 703 - 1 000 908"}]
[1,{"$f":"IFERROR(INDEX(Settings!$AP$17:$AP$38,MATCH(Personnel!$G59,Settings!$AQ$17:$AQ$38,0)),0)","v":5},null,null,null,{"$f":"[1]Personnel!F59","v":"Temporary/Contract"},{"$f":"IFERROR(INDEX((SLevel),MATCH(Personnel!BA59,SLevel202223,0)),0)","v":"227 767 - 268 950"},{"$f":"[1]Personnel!H59","v":"Semi-skilled"},{"$f":"[1]Personnel!I59","v":"Other: Please specify"},{"$f":"[1]Personnel!J59","v":"Guaranteed package"},{"$f":"[1]Personnel!P59","v":0},{"$f":"[1]Personnel!Q59","v":0},0,{"$f":"[1]Personnel!S59","v":310},{"$f":"[1]Personnel!S59","v":310},{"$f":"[1]Personnel!S59","v":310},{"$f":"[1]Personnel!T59","v":75108},242,{"$f":"[1]Personnel!V59","v":104},{"$f":"[1]Personnel!W59","v":36409},350,{"$f":"[1]Personnel!Y59","v":104},{"$f":"[1]Personnel!Z59","v":38055},366,0,0,0,null,null,null,null,null,null,null,null,null,null,null,null,null,null,null,null,null,null,null,null,null,null,null,null,null,{"$f":"[1]Personnel!G59","v":"215 893 - 254 928"}]
[0,{"$f":"IFERROR(INDEX(Settings!$AP$17:$AP$38,MATCH(Personnel!$G60,Settings!$AQ$17:$AQ$38,0)),0)","v":0},null,null,null,{"$f":"[1]Personnel!F60","v":0},{"$f":"IFERROR(INDEX((SLevel),MATCH(Personnel!BA60,SLevel202223,0)),0)","v":0},{"$f":"[1]Personnel!H60","v":0},{"$f":"[1]Personnel!I60","v":0},{"$f":"[1]Personnel!J60","v":0},{"$f":"[1]Personnel!P60","v":0},{"$f":"[1]Personnel!Q60","v":0},0,{"$f":"[1]Personnel!S60","v":0},{"$f":"[1]Personnel!S60","v":0},{"$f":"[1]Personnel!S60","v":0},{"$f":"[1]Personnel!T60","v":0},0,{"$f":"[1]Personnel!V60","v":0},{"$f":"[1]Personnel!W60","v":0},0,{"$f":"[1]Personnel!Y60","v":0},{"$f":"[1]Personnel!Z60","v":0},0,0,0,0,null,null,null,null,null,null,null,null,null,null,null,null,null,null,null,null,null,null,null,null,null,null,null,null,null,{"$f":"[1]Personnel!G60","v":0}]
[0,{"$f":"IFERROR(INDEX(Settings!$AP$17:$AP$38,MATCH(Personnel!$G61,Settings!$AQ$17:$AQ$38,0)),0)","v":0},null,null,null,{"$f":"[1]Personnel!F61","v":0},{"$f":"IFERROR(INDEX((SLevel),MATCH(Personnel!BA61,SLevel202223,0)),0)","v":0},{"$f":"[1]Personnel!H61","v":0},{"$f":"[1]Personnel!I61","v":0},{"$f":"[1]Personnel!J61","v":0},{"$f":"[1]Personnel!P61","v":0},{"$f":"[1]Personnel!Q61","v":0},0,{"$f":"[1]Personnel!S61","v":0},{"$f":"[1]Personnel!S61","v":0},{"$f":"[1]Personnel!S61","v":0},{"$f":"[1]Personnel!T61","v":0},0,{"$f":"[1]Personnel!V61","v":0},{"$f":"[1]Personnel!W61","v":0},0,{"$f":"[1]Personnel!Y61","v":0},{"$f":"[1]Personnel!Z61","v":0},0,0,0,0,null,null,null,null,null,null,null,null,null,null,null,null,null,null,null,null,null,null,null,null,null,null,null,null,null,{"$f":"[1]Personnel!G61","v":0}]
[0,{"$f":"IFERROR(INDEX(Settings!$AP$17:$AP$38,MATCH(Personnel!$G62,Settings!$AQ$17:$AQ$38,0)),0)","v":0},null,null,null,{"$f":"[1]Personnel!F62","v":0},{"$f":"IFERROR(INDEX((SLevel),MATCH(Personnel!BA62,SLevel202223,0)),0)","v":0},{"$f":"[1]Personnel!H62","v":0},{"$f":"[1]Personnel!I62","v":0},{"$f":"[1]Personnel!J62","v":0},{"$f":"[1]Personnel!P62","v":0},{"$f":"[1]Personnel!Q62","v":0},0,{"$f":"[1]Personnel!S62","v":0},{"$f":"[1]Personnel!S62","v":0},{"$f":"[1]Personnel!S62","v":0},{"$f":"[1]Personnel!T62","v":0},0,{"$f":"[1]Personnel!V62","v":0},{"$f":"[1]Personnel!W62","v":0},0,{"$f":"[1]Personnel!Y62","v":0},{"$f":"[1]Personnel!Z62","v":0},0,0,0,0,null,null,null,null,null,null,null,null,null,null,null,null,null,null,null,null,null,null,null,null,null,null,null,null,null,{"$f":"[1]Personnel!G62","v":0}]
[0,{"$f":"IFERROR(INDEX(Settings!$AP$17:$AP$38,MATCH(Personnel!$G63,Settings!$AQ$17:$AQ$38,0)),0)","v":0},null,null,null,{"$f":"[1]Personnel!F63","v":0},{"$f":"IFERROR(INDEX((SLevel),MATCH(Personnel!BA63,SLevel202223,0)),0)","v":0},{"$f":"[1]Personnel!H63","v":0},{"$f":"[1]Personnel!I63","v":0},{"$f":"[1]Personnel!J63","v":0},{"$f":"[1]Personnel!P63","v":0},{"$f":"[1]Personnel!Q63","v":0},0,{"$f":"[1]Personnel!S63","v":0},{"$f":"[1]Personnel!S63","v":0},{"$f":"[1]Personnel!S63","v":0},{"$f":"[1]Personnel!T63","v":0},0,{"$f":"[1]Personnel!V63","v":0},{"$f":"[1]Personnel!W63","v":0},0,{"$f":"[1]Personnel!Y63","v":0},{"$f":"[1]Personnel!Z63","v":0},0,0,0,0,null,null,null,null,null,null,null,null,null,null,null,null,null,null,null,null,null,null,null,null,null,null,null,null,null,{"$f":"[1]Personnel!G63","v":0}]
[0,{"$f":"IFERROR(INDEX(Settings!$AP$17:$AP$38,MATCH(Personnel!$G64,Settings!$AQ$17:$AQ$38,0)),0)","v":0},null,null,null,{"$f":"[1]Personnel!F64","v":0},{"$f":"IFERROR(INDEX((SLevel),MATCH(Personnel!BA64,SLevel202223,0)),0)","v":0},{"$f":"[1]Personnel!H64","v":0},{"$f":"[1]Personnel!I64","v":0},{"$f":"[1]Personnel!J64","v":0},{"$f":"[1]Personnel!P64","v":0},{"$f":"[1]Personnel!Q64","v":0},0,{"$f":"[1]Personnel!S64","v":0},{"$f":"[1]Personnel!S64","v":0},{"$f":"[1]Personnel!S64","v":0},{"$f":"[1]Personnel!T64","v":0},0,{"$f":"[1]Personnel!V64","v":0},{"$f":"[1]Personnel!W64","v":0},0,{"$f":"[1]Personnel!Y64","v":0},{"$f":"[1]Personnel!Z64","v":0},0,0,0,0,null,null,null,null,null,null,null,null,null,null,null,null,null,null,null,null,null,null,null,null,null,null,null,null,null,{"$f":"[1]Personnel!G64","v":0}]
[0,{"$f":"IFERROR(INDEX(Settings!$AP$17:$AP$38,MATCH(Personnel!$G65,Settings!$AQ$17:$AQ$38,0)),0)","v":0},null,null,null,{"$f":"[1]Personnel!F65","v":0},{"$f":"IFERROR(INDEX((SLevel),MATCH(Personnel!BA65,SLevel202223,0)),0)","v":0},{"$f":"[1]Personnel!H65","v":0},{"$f":"[1]Personnel!I65","v":0},{"$f":"[1]Personnel!J65","v":0},{"$f":"[1]Personnel!P65","v":0},{"$f":"[1]Personnel!Q65","v":0},0,{"$f":"[1]Personnel!S65","v":0},{"$f":"[1]Personnel!S65","v":0},{"$f":"[1]Personnel!S65","v":0},{"$f":"[1]Personnel!T65","v":0},0,{"$f":"[1]Personnel!V65","v":0},{"$f":"[1]Personnel!W65","v":0},0,{"$f":"[1]Personnel!Y65","v":0},{"$f":"[1]Personnel!Z65","v":0},0,0,0,0,null,null,null,null,null,null,null,null,null,null,null,null,null,null,null,null,null,null,null,null,null,null,null,null,null,{"$f":"[1]Personnel!G65","v":0}]
[0,{"$f":"IFERROR(INDEX(Settings!$AP$17:$AP$38,MATCH(Personnel!$G66,Settings!$AQ$17:$AQ$38,0)),0)","v":0},null,null,null,{"$f":"[1]Personnel!F66","v":0},{"$f":"IFERROR(INDEX((SLevel),MATCH(Personnel!BA66,SLevel202223,0)),0)","v":0},{"$f":"[1]Personnel!H66","v":0},{"$f":"[1]Personnel!I66","v":0},{"$f":"[1]Personnel!J66","v":0},{"$f":"[1]Personnel!P66","v":0},{"$f":"[1]Personnel!Q66","v":0},0,{"$f":"[1]Personnel!S66","v":0},{"$f":"[1]Personnel!S66","v":0},{"$f":"[1]Personnel!S66","v":0},{"$f":"[1]Personnel!T66","v":0},0,{"$f":"[1]Personnel!V66","v":0},{"$f":"[1]Personnel!W66","v":0},0,{"$f":"[1]Personnel!Y66","v":0},{"$f":"[1]Personnel!Z66","v":0},0,0,0,0,null,null,null,null,null,null,null,null,null,null,null,null,null,null,null,null,null,null,null,null,null,null,null,null,null,{"$f":"[1]Personnel!G66","v":0}]
[0,{"$f":"IFERROR(INDEX(Settings!$AP$17:$AP$38,MATCH(Personnel!$G67,Settings!$AQ$17:$AQ$38,0)),0)","v":0},null,null,null,{"$f":"[1]Personnel!F67","v":0},{"$f":"IFERROR(INDEX((SLevel),MATCH(Personnel!BA67,SLevel202223,0)),0)","v":0},{"$f":"[1]Personnel!H67","v":0},{"$f":"[1]Personnel!I67","v":0},{"$f":"[1]Personnel!J67","v":0},{"$f":"[1]Personnel!P67","v":0},{"$f":"[1]Personnel!Q67","v":0},0,{"$f":"[1]Personnel!S67","v":0},{"$f":"[1]Personnel!S67","v":0},{"$f":"[1]Personnel!S67","v":0},{"$f":"[1]Personnel!T67","v":0},0,{"$f":"[1]Personnel!V67","v":0},{"$f":"[1]Personnel!W67","v":0},0,{"$f":"[1]Personnel!Y67","v":0},{"$f":"[1]Personnel!Z67","v":0},0,0,0,0,null,null,null,null,null,null,null,null,null,null,null,null,null,null,null,null,null,null,null,null,null,null,null,null,null,{"$f":"[1]Personnel!G67","v":0}]
[0,{"$f":"IFERROR(INDEX(Settings!$AP$17:$AP$38,MATCH(Personnel!$G68,Settings!$AQ$17:$AQ$38,0)),0)","v":0},null,null,null,{"$f":"[1]Personnel!F68","v":0},{"$f":"IFERROR(INDEX((SLevel),MATCH(Personnel!BA68,SLevel202223,0)),0)","v":0},{"$f":"[1]Personnel!H68","v":0},{"$f":"[1]Personnel!I68","v":0},{"$f":"[1]Personnel!J68","v":0},{"$f":"[1]Personnel!P68","v":0},{"$f":"[1]Personnel!Q68","v":0},0,{"$f":"[1]Personnel!S68","v":0},{"$f":"[1]Personnel!S68","v":0},{"$f":"[1]Personnel!S68","v":0},{"$f":"[1]Personnel!T68","v":0},0,{"$f":"[1]Personnel!V68","v":0},{"$f":"[1]Personnel!W68","v":0},0,{"$f":"[1]Personnel!Y68","v":0},{"$f":"[1]Personnel!Z68","v":0},0,0,0,0,null,null,null,null,null,null,null,null,null,null,null,null,null,null,null,null,null,null,null,null,null,null,null,null,null,{"$f":"[1]Personnel!G68","v":0}]
[0,{"$f":"IFERROR(INDEX(Settings!$AP$17:$AP$38,MATCH(Personnel!$G69,Settings!$AQ$17:$AQ$38,0)),0)","v":0},null,null,null,{"$f":"[1]Personnel!F69","v":0},{"$f":"IFERROR(INDEX((SLevel),MATCH(Personnel!BA69,SLevel202223,0)),0)","v":0},{"$f":"[1]Personnel!H69","v":0},{"$f":"[1]Personnel!I69","v":0},{"$f":"[1]Personnel!J69","v":0},{"$f":"[1]Personnel!P69","v":0},{"$f":"[1]Personnel!Q69","v":0},0,{"$f":"[1]Personnel!S69","v":0},{"$f":"[1]Personnel!S69","v":0},{"$f":"[1]Personnel!S69","v":0},{"$f":"[1]Personnel!T69","v":0},0,{"$f":"[1]Personnel!V69","v":0},{"$f":"[1]Personnel!W69","v":0},0,{"$f":"[1]Personnel!Y69","v":0},{"$f":"[1]Personnel!Z69","v":0},0,0,0,0,null,null,null,null,null,null,null,null,null,null,null,null,null,null,null,null,null,null,null,null,null,null,null,null,null,{"$f":"[1]Personnel!G69","v":0}]
[0,{"$f":"IFERROR(INDEX(Settings!$AP$17:$AP$38,MATCH(Personnel!$G70,Settings!$AQ$17:$AQ$38,0)),0)","v":0},null,null,null,{"$f":"[1]Personnel!F70","v":0},{"$f":"IFERROR(INDEX((SLevel),MATCH(Personnel!BA70,SLevel202223,0)),0)","v":0},{"$f":"[1]Personnel!H70","v":0},{"$f":"[1]Personnel!I70","v":0},{"$f":"[1]Personnel!J70","v":0},{"$f":"[1]Personnel!P70","v":0},{"$f":"[1]Personnel!Q70","v":0},0,{"$f":"[1]Personnel!S70","v":0},{"$f":"[1]Personnel!S70","v":0},{"$f":"[1]Personnel!S70","v":0},{"$f":"[1]Personnel!T70","v":0},0,{"$f":"[1]Personnel!V70","v":0},{"$f":"[1]Personnel!W70","v":0},0,{"$f":"[1]Personnel!Y70","v":0},{"$f":"[1]Personnel!Z70","v":0},0,0,0,0,null,null,null,null,null,null,null,null,null,null,null,null,null,null,null,null,null,null,null,null,null,null,null,null,null,{"$f":"[1]Personnel!G70","v":0}]
[0,{"$f":"IFERROR(INDEX(Settings!$AP$17:$AP$38,MATCH(Personnel!$G71,Settings!$AQ$17:$AQ$38,0)),0)","v":0},null,null,null,{"$f":"[1]Personnel!F71","v":0},{"$f":"IFERROR(INDEX((SLevel),MATCH(Personnel!BA71,SLevel202223,0)),0)","v":0},{"$f":"[1]Personnel!H71","v":0},{"$f":"[1]Personnel!I71","v":0},{"$f":"[1]Personnel!J71","v":0},{"$f":"[1]Personnel!P71","v":0},{"$f":"[1]Personnel!Q71","v":0},0,{"$f":"[1]Personnel!S71","v":0},{"$f":"[1]Personnel!S71","v":0},{"$f":"[1]Personnel!S71","v":0},{"$f":"[1]Personnel!T71","v":0},0,{"$f":"[1]Personnel!V71","v":0},{"$f":"[1]Personnel!W71","v":0},0,{"$f":"[1]Personnel!Y71","v":0},{"$f":"[1]Personnel!Z71","v":0},0,0,0,0,null,null,null,null,null,null,null,null,null,null,null,null,null,null,null,null,null,null,null,null,null,null,null,null,null,{"$f":"[1]Personnel!G71","v":0}]
[0,{"$f":"IFERROR(INDEX(Settings!$AP$17:$AP$38,MATCH(Personnel!$G72,Settings!$AQ$17:$AQ$38,0)),0)","v":0},null,null,null,{"$f":"[1]Personnel!F72","v":0},{"$f":"IFERROR(INDEX((SLevel),MATCH(Personnel!BA72,SLevel202223,0)),0)","v":0},{"$f":"[1]Personnel!H72","v":0},{"$f":"[1]Personnel!I72","v":0},{"$f":"[1]Personnel!J72","v":0},{"$f":"[1]Personnel!P72","v":0},{"$f":"[1]Personnel!Q72","v":0},0,{"$f":"[1]Personnel!S72","v":0},{"$f":"[1]Personnel!S72","v":0},{"$f":"[1]Personnel!S72","v":0},{"$f":"[1]Personnel!T72","v":0},0,{"$f":"[1]Personnel!V72","v":0},{"$f":"[1]Personnel!W72","v":0},0,{"$f":"[1]Personnel!Y72","v":0},{"$f":"[1]Personnel!Z72","v":0},0,0,0,0,null,null,null,null,null,null,null,null,null,null,null,null,null,null,null,null,null,null,null,null,null,null,null,null,null,{"$f":"[1]Personnel!G72","v":0}]
[0,{"$f":"IFERROR(INDEX(Settings!$AP$17:$AP$38,MATCH(Personnel!$G73,Settings!$AQ$17:$AQ$38,0)),0)","v":0},null,null,null,{"$f":"[1]Personnel!F73","v":0},{"$f":"IFERROR(INDEX((SLevel),MATCH(Personnel!BA73,SLevel202223,0)),0)","v":0},{"$f":"[1]Personnel!H73","v":0},{"$f":"[1]Personnel!I73","v":0},{"$f":"[1]Personnel!J73","v":0},{"$f":"[1]Personnel!P73","v":0},{"$f":"[1]Personnel!Q73","v":0},0,{"$f":"[1]Personnel!S73","v":0},{"$f":"[1]Personnel!S73","v":0},{"$f":"[1]Personnel!S73","v":0},{"$f":"[1]Personnel!T73","v":0},0,{"$f":"[1]Personnel!V73","v":0},{"$f":"[1]Personnel!W73","v":0},0,{"$f":"[1]Personnel!Y73","v":0},{"$f":"[1]Personnel!Z73","v":0},0,0,0,0,null,null,null,null,null,null,null,null,null,null,null,null,null,null,null,null,null,null,null,null,null,null,null,null,null,{"$f":"[1]Personnel!G73","v":0}]
[0,{"$f":"IFERROR(INDEX(Settings!$AP$17:$AP$38,MATCH(Personnel!$G74,Settings!$AQ$17:$AQ$38,0)),0)","v":0},null,null,null,{"$f":"[1]Personnel!F74","v":0},{"$f":"IFERROR(INDEX((SLevel),MATCH(Personnel!BA74,SLevel202223,0)),0)","v":0},{"$f":"[1]Personnel!H74","v":0},{"$f":"[1]Personnel!I74","v":0},{"$f":"[1]Personnel!J74","v":0},{"$f":"[1]Personnel!P74","v":0},{"$f":"[1]Personnel!Q74","v":0},0,{"$f":"[1]Personnel!S74","v":0},{"$f":"[1]Personnel!S74","v":0},{"$f":"[1]Personnel!S74","v":0},{"$f":"[1]Personnel!T74","v":0},0,{"$f":"[1]Personnel!V74","v":0},{"$f":"[1]Personnel!W74","v":0},0,{"$f":"[1]Personnel!Y74","v":0},{"$f":"[1]Personnel!Z74","v":0},0,0,0,0,null,null,null,null,null,null,null,null,null,null,null,null,null,null,null,null,null,null,null,null,null,null,null,null,null,{"$f":"[1]Personnel!G74","v":0}]
[0,{"$f":"IFERROR(INDEX(Settings!$AP$17:$AP$38,MATCH(Personnel!$G75,Settings!$AQ$17:$AQ$38,0)),0)","v":0},null,null,null,{"$f":"[1]Personnel!F75","v":0},{"$f":"IFERROR(INDEX((SLevel),MATCH(Personnel!BA75,SLevel202223,0)),0)","v":0},{"$f":"[1]Personnel!H75","v":0},{"$f":"[1]Personnel!I75","v":0},{"$f":"[1]Personnel!J75","v":0},{"$f":"[1]Personnel!P75","v":0},{"$f":"[1]Personnel!Q75","v":0},0,{"$f":"[1]Personnel!S75","v":0},{"$f":"[1]Personnel!S75","v":0},{"$f":"[1]Personnel!S75","v":0},{"$f":"[1]Personnel!T75","v":0},0,{"$f":"[1]Personnel!V75","v":0},{"$f":"[1]Personnel!W75","v":0},0,{"$f":"[1]Personnel!Y75","v":0},{"$f":"[1]Personnel!Z75","v":0},0,0,0,0,null,null,null,null,null,null,null,null,null,null,null,null,null,null,null,null,null,null,null,null,null,null,null,null,null,{"$f":"[1]Personnel!G75","v":0}]
[{"$f":"IF(SUM(K76:AA76)>0,1,0)","v":0},{"$f":"IFERROR(INDEX(Settings!$AP$17:$AP$38,MATCH(Personnel!$G76,Settings!$AQ$17:$AQ$38,0)),0)","v":0},null,null,null,{"$f":"[1]Personnel!F76","v":0},{"$f":"IFERROR(INDEX((SLevel),MATCH(Personnel!BA76,SLevel202223,0)),0)","v":0},{"$f":"[1]Personnel!H76","v":0},{"$f":"[1]Personnel!I76","v":0},{"$f":"[1]Personnel!J76","v":0},{"$f":"[1]Personnel!P76","v":0},{"$f":"[1]Personnel!Q76","v":0},0,{"$f":"[1]Personnel!S76","v":0},{"$f":"[1]Personnel!S76","v":0},{"$f":"[1]Personnel!S76","v":0},{"$f":"[1]Personnel!T76","v":0},0,{"$f":"[1]Personnel!V76","v":0},{"$f":"[1]Personnel!W76","v":0},0,{"$f":"[1]Personnel!Y76","v":0},{"$f":"[1]Personnel!Z76","v":0},0,0,0,0,null,null,null,null,null,null,null,null,null,null,null,null,null,null,null,null,null,null,null,null,null,null,null,null,null,{"$f":"[1]Personnel!G76","v":0}]
[0,{"$f":"IFERROR(INDEX(Settings!$AP$17:$AP$38,MATCH(Personnel!$G77,Settings!$AQ$17:$AQ$38,0)),0)","v":0},null,null,null,{"$f":"[1]Personnel!F77","v":0},{"$f":"IFERROR(INDEX((SLevel),MATCH(Personnel!BA77,SLevel202223,0)),0)","v":0},{"$f":"[1]Personnel!H77","v":0},{"$f":"[1]Personnel!I77","v":0},{"$f":"[1]Personnel!J77","v":0},{"$f":"[1]Personnel!P77","v":0},{"$f":"[1]Personnel!Q77","v":0},{"$f":"ROUND(IF(ISERROR(L77/K77),0,(L77/K77)),0)","v":0},{"$f":"[1]Personnel!S77","v":0},{"$f":"[1]Personnel!S77","v":0},{"$f":"[1]Personnel!S77","v":0},{"$f":"[1]Personnel!T77","v":0},{"$f":"ROUND(IF(ISERROR(Q77/P77),0,(Q77/P77)),0)","v":0},{"$f":"[1]Personnel!V77","v":0},{"$f":"[1]Personnel!W77","v":0},{"$f":"ROUND(IF(ISERROR(T77/S77),0,(T77/S77)),0)","v":0},{"$f":"[1]Personnel!Y77","v":0},{"$f":"[1]Personnel!Z77","v":0},{"$f":"ROUND(IF(ISERROR(W77/V77),0,(W77/V77)),0)","v":0},0,0,{"$f":"ROUND(IF(ISERROR(Z77/Y77),0,(Z77/Y77)),0)","v":0},null,null,null,null,null,null,null,null,null,null,null,null,null,null,null,null,null,null,null,null,null,null,null,null,null,{"$f":"[1]Personnel!G77","v":0}]
[0,{"$f":"IFERROR(INDEX(Settings!$AP$17:$AP$38,MATCH(Personnel!$G78,Settings!$AQ$17:$AQ$38,0)),0)","v":0},null,null,null,{"$f":"[1]Personnel!F78","v":0},{"$f":"IFERROR(INDEX((SLevel),MATCH(Personnel!BA78,SLevel202223,0)),0)","v":0},{"$f":"[1]Personnel!H78","v":0},{"$f":"[1]Personnel!I78","v":0},{"$f":"[1]Personnel!J78","v":0},{"$f":"[1]Personnel!P78","v":0},{"$f":"[1]Personnel!Q78","v":0},0,{"$f":"[1]Personnel!S78","v":0},{"$f":"[1]Personnel!S78","v":0},{"$f":"[1]Personnel!S78","v":0},{"$f":"[1]Personnel!T78","v":0},0,{"$f":"[1]Personnel!V78","v":0},{"$f":"[1]Personnel!W78","v":0},0,{"$f":"[1]Personnel!Y78","v":0},{"$f":"[1]Personnel!Z78","v":0},0,0,0,0,null,null,null,null,null,null,null,null,null,null,null,null,null,null,null,null,null,null,null,null,null,null,null,null,null,{"$f":"[1]Personnel!G78","v":0}]
[0,{"$f":"IFERROR(INDEX(Settings!$AP$17:$AP$38,MATCH(Personnel!$G79,Settings!$AQ$17:$AQ$38,0)),0)","v":0},null,null,null,{"$f":"[1]Personnel!F79","v":0},{"$f":"IFERROR(INDEX((SLevel),MATCH(Personnel!BA79,SLevel202223,0)),0)","v":0},{"$f":"[1]Personnel!H79","v":0},{"$f":"[1]Personnel!I79","v":0},{"$f":"[1]Personnel!J79","v":0},{"$f":"[1]Personnel!P79","v":0},{"$f":"[1]Personnel!Q79","v":0},0,{"$f":"[1]Personnel!S79","v":0},{"$f":"[1]Personnel!S79","v":0},{"$f":"[1]Personnel!S79","v":0},{"$f":"[1]Personnel!T79","v":0},0,{"$f":"[1]Personnel!V79","v":0},{"$f":"[1]Personnel!W79","v":0},0,{"$f":"[1]Personnel!Y79","v":0},{"$f":"[1]Personnel!Z79","v":0},0,0,0,0,null,null,null,null,null,null,null,null,null,null,null,null,null,null,null,null,null,null,null,null,null,null,null,null,null,{"$f":"[1]Personnel!G79","v":0}]
[0,{"$f":"IFERROR(INDEX(Settings!$AP$17:$AP$38,MATCH(Personnel!$G80,Settings!$AQ$17:$AQ$38,0)),0)","v":0},null,null,null,{"$f":"[1]Personnel!F80","v":0},{"$f":"IFERROR(INDEX((SLevel),MATCH(Personnel!BA80,SLevel202223,0)),0)","v":0},{"$f":"[1]Personnel!H80","v":0},{"$f":"[1]Personnel!I80","v":0},{"$f":"[1]Personnel!J80","v":0},{"$f":"[1]Personnel!P80","v":0},{"$f":"[1]Personnel!Q80","v":0},0,{"$f":"[1]Personnel!S80","v":0},{"$f":"[1]Personnel!S80","v":0},{"$f":"[1]Personnel!S80","v":0},{"$f":"[1]Personnel!T80","v":0},0,{"$f":"[1]Personnel!V80","v":0},{"$f":"[1]Personnel!W80","v":0},0,{"$f":"[1]Personnel!Y80","v":0},{"$f":"[1]Personnel!Z80","v":0},0,0,0,0,null,null,null,null,null,null,null,null,null,null,null,null,null,null,null,null,null,null,null,null,null,null,null,null,null,{"$f":"[1]Personnel!G80","v":0}]
[0,{"$f":"IFERROR(INDEX(Settings!$AP$17:$AP$38,MATCH(Personnel!$G81,Settings!$AQ$17:$AQ$38,0)),0)","v":0},null,null,null,{"$f":"[1]Personnel!F81","v":0},{"$f":"IFERROR(INDEX((SLevel),MATCH(Personnel!BA81,SLevel202223,0)),0)","v":0},{"$f":"[1]Personnel!H81","v":0},{"$f":"[1]Personnel!I81","v":0},{"$f":"[1]Personnel!J81","v":0},{"$f":"[1]Personnel!P81","v":0},{"$f":"[1]Personnel!Q81","v":0},0,{"$f":"[1]Personnel!S81","v":0},{"$f":"[1]Personnel!S81","v":0},{"$f":"[1]Personnel!S81","v":0},{"$f":"[1]Personnel!T81","v":0},0,{"$f":"[1]Personnel!V81","v":0},{"$f":"[1]Personnel!W81","v":0},0,{"$f":"[1]Personnel!Y81","v":0},{"$f":"[1]Personnel!Z81","v":0},0,0,0,0,null,null,null,null,null,null,null,null,null,null,null,null,null,null,null,null,null,null,null,null,null,null,null,null,null,{"$f":"[1]Personnel!G81","v":0}]
[0,{"$f":"IFERROR(INDEX(Settings!$AP$17:$AP$38,MATCH(Personnel!$G82,Settings!$AQ$17:$AQ$38,0)),0)","v":0},null,null,null,{"$f":"[1]Personnel!F82","v":0},{"$f":"IFERROR(INDEX((SLevel),MATCH(Personnel!BA82,SLevel202223,0)),0)","v":0},{"$f":"[1]Personnel!H82","v":0},{"$f":"[1]Personnel!I82","v":0},{"$f":"[1]Personnel!J82","v":0},{"$f":"[1]Personnel!P82","v":0},{"$f":"[1]Personnel!Q82","v":0},0,{"$f":"[1]Personnel!S82","v":0},{"$f":"[1]Personnel!S82","v":0},{"$f":"[1]Personnel!S82","v":0},{"$f":"[1]Personnel!T82","v":0},0,{"$f":"[1]Personnel!V82","v":0},{"$f":"[1]Personnel!W82","v":0},0,{"$f":"[1]Personnel!Y82","v":0},{"$f":"[1]Personnel!Z82","v":0},0,0,0,0,null,null,null,null,null,null,null,null,null,null,null,null,null,null,null,null,null,null,null,null,null,null,null,null,null,{"$f":"[1]Personnel!G82","v":0}]
[0,{"$f":"IFERROR(INDEX(Settings!$AP$17:$AP$38,MATCH(Personnel!$G83,Settings!$AQ$17:$AQ$38,0)),0)","v":0},null,null,null,{"$f":"[1]Personnel!F83","v":0},{"$f":"IFERROR(INDEX((SLevel),MATCH(Personnel!BA83,SLevel202223,0)),0)","v":0},{"$f":"[1]Personnel!H83","v":0},{"$f":"[1]Personnel!I83","v":0},{"$f":"[1]Personnel!J83","v":0},{"$f":"[1]Personnel!P83","v":0},{"$f":"[1]Personnel!Q83","v":0},0,{"$f":"[1]Personnel!S83","v":0},{"$f":"[1]Personnel!S83","v":0},{"$f":"[1]Personnel!S83","v":0},{"$f":"[1]Personnel!T83","v":0},0,{"$f":"[1]Personnel!V83","v":0},{"$f":"[1]Personnel!W83","v":0},0,{"$f":"[1]Personnel!Y83","v":0},{"$f":"[1]Personnel!Z83","v":0},0,0,0,0,null,null,null,null,null,null,null,null,null,null,null,null,null,null,null,null,null,null,null,null,null,null,null,null,null,{"$f":"[1]Personnel!G83","v":0}]
[0,{"$f":"IFERROR(INDEX(Settings!$AP$17:$AP$38,MATCH(Personnel!$G84,Settings!$AQ$17:$AQ$38,0)),0)","v":0},null,null,null,{"$f":"[1]Personnel!F84","v":0},{"$f":"IFERROR(INDEX((SLevel),MATCH(Personnel!BA84,SLevel202223,0)),0)","v":0},{"$f":"[1]Personnel!H84","v":0},{"$f":"[1]Personnel!I84","v":0},{"$f":"[1]Personnel!J84","v":0},{"$f":"[1]Personnel!P84","v":0},{"$f":"[1]Personnel!Q84","v":0},0,{"$f":"[1]Personnel!S84","v":0},{"$f":"[1]Personnel!S84","v":0},{"$f":"[1]Personnel!S84","v":0},{"$f":"[1]Personnel!T84","v":0},0,{"$f":"[1]Personnel!V84","v":0},{"$f":"[1]Personnel!W84","v":0},0,{"$f":"[1]Personnel!Y84","v":0},{"$f":"[1]Personnel!Z84","v":0},0,0,0,0,null,null,null,null,null,null,null,null,null,null,null,null,null,null,null,null,null,null,null,null,null,null,null,null,null,{"$f":"[1]Personnel!G84","v":0}]
[0,{"$f":"IFERROR(INDEX(Settings!$AP$17:$AP$38,MATCH(Personnel!$G85,Settings!$AQ$17:$AQ$38,0)),0)","v":0},null,null,null,{"$f":"[1]Personnel!F85","v":0},{"$f":"IFERROR(INDEX((SLevel),MATCH(Personnel!BA85,SLevel202223,0)),0)","v":0},{"$f":"[1]Personnel!H85","v":0},{"$f":"[1]Personnel!I85","v":0},{"$f":"[1]Personnel!J85","v":0},{"$f":"[1]Personnel!P85","v":0},{"$f":"[1]Personnel!Q85","v":0},0,{"$f":"[1]Personnel!S85","v":0},{"$f":"[1]Personnel!S85","v":0},{"$f":"[1]Personnel!S85","v":0},{"$f":"[1]Personnel!T85","v":0},0,{"$f":"[1]Personnel!V85","v":0},{"$f":"[1]Personnel!W85","v":0},0,{"$f":"[1]Personnel!Y85","v":0},{"$f":"[1]Personnel!Z85","v":0},0,0,0,0,null,null,null,null,null,null,null,null,null,null,null,null,null,null,null,null,null,null,null,null,null,null,null,null,null,{"$f":"[1]Personnel!G85","v":0}]
[0,{"$f":"IFERROR(INDEX(Settings!$AP$17:$AP$38,MATCH(Personnel!$G86,Settings!$AQ$17:$AQ$38,0)),0)","v":0},null,null,null,{"$f":"[1]Personnel!F86","v":0},{"$f":"IFERROR(INDEX((SLevel),MATCH(Personnel!BA86,SLevel202223,0)),0)","v":0},{"$f":"[1]Personnel!H86","v":0},{"$f":"[1]Personnel!I86","v":0},{"$f":"[1]Personnel!J86","v":0},{"$f":"[1]Personnel!P86","v":0},{"$f":"[1]Personnel!Q86","v":0},0,{"$f":"[1]Personnel!S86","v":0},{"$f":"[1]Personnel!S86","v":0},{"$f":"[1]Personnel!S86","v":0},{"$f":"[1]Personnel!T86","v":0},0,{"$f":"[1]Personnel!V86","v":0},{"$f":"[1]Personnel!W86","v":0},0,{"$f":"[1]Personnel!Y86","v":0},{"$f":"[1]Personnel!Z86","v":0},0,0,0,0,null,null,null,null,null,null,null,null,null,null,null,null,null,null,null,null,null,null,null,null,null,null,null,null,null,{"$f":"[1]Personnel!G86","v":0}]
[0,{"$f":"IFERROR(INDEX(Settings!$AP$17:$AP$38,MATCH(Personnel!$G87,Settings!$AQ$17:$AQ$38,0)),0)","v":0},null,null,null,{"$f":"[1]Personnel!F87","v":0},{"$f":"IFERROR(INDEX((SLevel),MATCH(Personnel!BA87,SLevel202223,0)),0)","v":0},{"$f":"[1]Personnel!H87","v":0},{"$f":"[1]Personnel!I87","v":0},{"$f":"[1]Personnel!J87","v":0},{"$f":"[1]Personnel!P87","v":0},{"$f":"[1]Personnel!Q87","v":0},0,{"$f":"[1]Personnel!S87","v":0},{"$f":"[1]Personnel!S87","v":0},{"$f":"[1]Personnel!S87","v":0},{"$f":"[1]Personnel!T87","v":0},0,{"$f":"[1]Personnel!V87","v":0},{"$f":"[1]Personnel!W87","v":0},0,{"$f":"[1]Personnel!Y87","v":0},{"$f":"[1]Personnel!Z87","v":0},0,0,0,0,null,null,null,null,null,null,null,null,null,null,null,null,null,null,null,null,null,null,null,null,null,null,null,null,null,{"$f":"[1]Personnel!G87","v":0}]
[0,{"$f":"IFERROR(INDEX(Settings!$AP$17:$AP$38,MATCH(Personnel!$G88,Settings!$AQ$17:$AQ$38,0)),0)","v":0},null,null,null,{"$f":"[1]Personnel!F88","v":0},{"$f":"IFERROR(INDEX((SLevel),MATCH(Personnel!BA88,SLevel202223,0)),0)","v":0},{"$f":"[1]Personnel!H88","v":0},{"$f":"[1]Personnel!I88","v":0},{"$f":"[1]Personnel!J88","v":0},{"$f":"[1]Personnel!P88","v":0},{"$f":"[1]Personnel!Q88","v":0},0,{"$f":"[1]Personnel!S88","v":0},{"$f":"[1]Personnel!S88","v":0},{"$f":"[1]Personnel!S88","v":0},{"$f":"[1]Personnel!T88","v":0},0,{"$f":"[1]Personnel!V88","v":0},{"$f":"[1]Personnel!W88","v":0},0,{"$f":"[1]Personnel!Y88","v":0},{"$f":"[1]Personnel!Z88","v":0},0,0,0,0,null,null,null,null,null,null,null,null,null,null,null,null,null,null,null,null,null,null,null,null,null,null,null,null,null,{"$f":"[1]Personnel!G88","v":0}]
[0,{"$f":"IFERROR(INDEX(Settings!$AP$17:$AP$38,MATCH(Personnel!$G89,Settings!$AQ$17:$AQ$38,0)),0)","v":0},null,null,null,{"$f":"[1]Personnel!F89","v":0},{"$f":"IFERROR(INDEX((SLevel),MATCH(Personnel!BA89,SLevel202223,0)),0)","v":0},{"$f":"[1]Personnel!H89","v":0},{"$f":"[1]Personnel!I89","v":0},{"$f":"[1]Personnel!J89","v":0},{"$f":"[1]Personnel!P89","v":0},{"$f":"[1]Personnel!Q89","v":0},0,{"$f":"[1]Personnel!S89","v":0},{"$f":"[1]Personnel!S89","v":0},{"$f":"[1]Personnel!S89","v":0},{"$f":"[1]Personnel!T89","v":0},0,{"$f":"[1]Personnel!V89","v":0},{"$f":"[1]Personnel!W89","v":0},0,{"$f":"[1]Personnel!Y89","v":0},{"$f":"[1]Personnel!Z89","v":0},0,0,0,0,null,null,null,null,null,null,null,null,null,null,null,null,null,null,null,null,null,null,null,null,null,null,null,null,null,{"$f":"[1]Personnel!G89","v":0}]
[0,{"$f":"IFERROR(INDEX(Settings!$AP$17:$AP$38,MATCH(Personnel!$G90,Settings!$AQ$17:$AQ$38,0)),0)","v":0},null,null,null,{"$f":"[1]Personnel!F90","v":0},{"$f":"IFERROR(INDEX((SLevel),MATCH(Personnel!BA90,SLevel202223,0)),0)","v":0},{"$f":"[1]Personnel!H90","v":0},{"$f":"[1]Personnel!I90","v":0},{"$f":"[1]Personnel!J90","v":0},{"$f":"[1]Personnel!P90","v":0},{"$f":"[1]Personnel!Q90","v":0},0,{"$f":"[1]Personnel!S90","v":0},{"$f":"[1]Personnel!S90","v":0},{"$f":"[1]Personnel!S90","v":0},{"$f":"[1]Personnel!T90","v":0},0,{"$f":"[1]Personnel!V90","v":0},{"$f":"[1]Personnel!W90","v":0},0,{"$f":"[1]Personnel!Y90","v":0},{"$f":"[1]Personnel!Z90","v":0},0,0,0,0,null,null,null,null,null,null,null,null,null,null,null,null,null,null,null,null,null,null,null,null,null,null,null,null,null,{"$f":"[1]Personnel!G90","v":0}]
[0,{"$f":"IFERROR(INDEX(Settings!$AP$17:$AP$38,MATCH(Personnel!$G91,Settings!$AQ$17:$AQ$38,0)),0)","v":0},null,null,null,{"$f":"[1]Personnel!F91","v":0},{"$f":"IFERROR(INDEX((SLevel),MATCH(Personnel!BA91,SLevel202223,0)),0)","v":0},{"$f":"[1]Personnel!H91","v":0},{"$f":"[1]Personnel!I91","v":0},{"$f":"[1]Personnel!J91","v":0},{"$f":"[1]Personnel!P91","v":0},{"$f":"[1]Personnel!Q91","v":0},0,{"$f":"[1]Personnel!S91","v":0},{"$f":"[1]Personnel!S91","v":0},{"$f":"[1]Personnel!S91","v":0},{"$f":"[1]Personnel!T91","v":0},0,{"$f":"[1]Personnel!V91","v":0},{"$f":"[1]Personnel!W91","v":0},0,{"$f":"[1]Personnel!Y91","v":0},{"$f":"[1]Personnel!Z91","v":0},0,0,0,0,null,null,null,null,null,null,null,null,null,null,null,null,null,null,null,null,null,null,null,null,null,null,null,null,null,{"$f":"[1]Personnel!G91","v":0}]
[0,{"$f":"IFERROR(INDEX(Settings!$AP$17:$AP$38,MATCH(Personnel!$G92,Settings!$AQ$17:$AQ$38,0)),0)","v":0},null,null,null,{"$f":"[1]Personnel!F92","v":0},{"$f":"IFERROR(INDEX((SLevel),MATCH(Personnel!BA92,SLevel202223,0)),0)","v":0},{"$f":"[1]Personnel!H92","v":0},{"$f":"[1]Personnel!I92","v":0},{"$f":"[1]Personnel!J92","v":0},{"$f":"[1]Personnel!P92","v":0},{"$f":"[1]Personnel!Q92","v":0},0,{"$f":"[1]Personnel!S92","v":0},{"$f":"[1]Personnel!S92","v":0},{"$f":"[1]Personnel!S92","v":0},{"$f":"[1]Personnel!T92","v":0},0,{"$f":"[1]Personnel!V92","v":0},{"$f":"[1]Personnel!W92","v":0},0,{"$f":"[1]Personnel!Y92","v":0},{"$f":"[1]Personnel!Z92","v":0},0,0,0,0,null,null,null,null,null,null,null,null,null,null,null,null,null,null,null,null,null,null,null,null,null,null,null,null,null,{"$f":"[1]Personnel!G92","v":0}]
[0,{"$f":"IFERROR(INDEX(Settings!$AP$17:$AP$38,MATCH(Personnel!$G93,Settings!$AQ$17:$AQ$38,0)),0)","v":0},null,null,null,{"$f":"[1]Personnel!F93","v":0},{"$f":"IFERROR(INDEX((SLevel),MATCH(Personnel!BA93,SLevel202223,0)),0)","v":0},{"$f":"[1]Personnel!H93","v":0},{"$f":"[1]Personnel!I93","v":0},{"$f":"[1]Personnel!J93","v":0},{"$f":"[1]Personnel!P93","v":0},{"$f":"[1]Personnel!Q93","v":0},0,{"$f":"[1]Personnel!S93","v":0},{"$f":"[1]Personnel!S93","v":0},{"$f":"[1]Personnel!S93","v":0},{"$f":"[1]Personnel!T93","v":0},0,{"$f":"[1]Personnel!V93","v":0},{"$f":"[1]Personnel!W93","v":0},0,{"$f":"[1]Personnel!Y93","v":0},{"$f":"[1]Personnel!Z93","v":0},0,0,0,0,null,null,null,null,null,null,null,null,null,null,null,null,null,null,null,null,null,null,null,null,null,null,null,null,null,{"$f":"[1]Personnel!G93","v":0}]
[0,{"$f":"IFERROR(INDEX(Settings!$AP$17:$AP$38,MATCH(Personnel!$G94,Settings!$AQ$17:$AQ$38,0)),0)","v":0},null,null,null,{"$f":"[1]Personnel!F94","v":0},{"$f":"IFERROR(INDEX((SLevel),MATCH(Personnel!BA94,SLevel202223,0)),0)","v":0},{"$f":"[1]Personnel!H94","v":0},{"$f":"[1]Personnel!I94","v":0},{"$f":"[1]Personnel!J94","v":0},{"$f":"[1]Personnel!P94","v":0},{"$f":"[1]Personnel!Q94","v":0},0,{"$f":"[1]Personnel!S94","v":0},{"$f":"[1]Personnel!S94","v":0},{"$f":"[1]Personnel!S94","v":0},{"$f":"[1]Personnel!T94","v":0},0,{"$f":"[1]Personnel!V94","v":0},{"$f":"[1]Personnel!W94","v":0},0,{"$f":"[1]Personnel!Y94","v":0},{"$f":"[1]Personnel!Z94","v":0},0,0,0,0,null,null,null,null,null,null,null,null,null,null,null,null,null,null,null,null,null,null,null,null,null,null,null,null,null,{"$f":"[1]Personnel!G94","v":0}]
[0,{"$f":"IFERROR(INDEX(Settings!$AP$17:$AP$38,MATCH(Personnel!$G95,Settings!$AQ$17:$AQ$38,0)),0)","v":0},null,null,null,{"$f":"[1]Personnel!F95","v":0},{"$f":"IFERROR(INDEX((SLevel),MATCH(Personnel!BA95,SLevel202223,0)),0)","v":0},{"$f":"[1]Personnel!H95","v":0},{"$f":"[1]Personnel!I95","v":0},{"$f":"[1]Personnel!J95","v":0},{"$f":"[1]Personnel!P95","v":0},{"$f":"[1]Personnel!Q95","v":0},0,{"$f":"[1]Personnel!S95","v":0},{"$f":"[1]Personnel!S95","v":0},{"$f":"[1]Personnel!S95","v":0},{"$f":"[1]Personnel!T95","v":0},0,{"$f":"[1]Personnel!V95","v":0},{"$f":"[1]Personnel!W95","v":0},0,{"$f":"[1]Personnel!Y95","v":0},{"$f":"[1]Personnel!Z95","v":0},0,0,0,0,null,null,null,null,null,null,null,null,null,null,null,null,null,null,null,null,null,null,null,null,null,null,null,null,null,{"$f":"[1]Personnel!G95","v":0}]
[0,{"$f":"IFERROR(INDEX(Settings!$AP$17:$AP$38,MATCH(Personnel!$G96,Settings!$AQ$17:$AQ$38,0)),0)","v":0},null,null,null,{"$f":"[1]Personnel!F96","v":0},{"$f":"IFERROR(INDEX((SLevel),MATCH(Personnel!BA96,SLevel202223,0)),0)","v":0},{"$f":"[1]Personnel!H96","v":0},{"$f":"[1]Personnel!I96","v":0},{"$f":"[1]Personnel!J96","v":0},{"$f":"[1]Personnel!P96","v":0},{"$f":"[1]Personnel!Q96","v":0},0,{"$f":"[1]Personnel!S96","v":0},{"$f":"[1]Personnel!S96","v":0},{"$f":"[1]Personnel!S96","v":0},{"$f":"[1]Personnel!T96","v":0},0,{"$f":"[1]Personnel!V96","v":0},{"$f":"[1]Personnel!W96","v":0},0,{"$f":"[1]Personnel!Y96","v":0},{"$f":"[1]Personnel!Z96","v":0},0,0,0,0,null,null,null,null,null,null,null,null,null,null,null,null,null,null,null,null,null,null,null,null,null,null,null,null,null,{"$f":"[1]Personnel!G96","v":0}]
[0,{"$f":"IFERROR(INDEX(Settings!$AP$17:$AP$38,MATCH(Personnel!$G97,Settings!$AQ$17:$AQ$38,0)),0)","v":0},null,null,null,{"$f":"[1]Personnel!F97","v":0},{"$f":"IFERROR(INDEX((SLevel),MATCH(Personnel!BA97,SLevel202223,0)),0)","v":0},{"$f":"[1]Personnel!H97","v":0},{"$f":"[1]Personnel!I97","v":0},{"$f":"[1]Personnel!J97","v":0},{"$f":"[1]Personnel!P97","v":0},{"$f":"[1]Personnel!Q97","v":0},0,{"$f":"[1]Personnel!S97","v":0},{"$f":"[1]Personnel!S97","v":0},{"$f":"[1]Personnel!S97","v":0},{"$f":"[1]Personnel!T97","v":0},0,{"$f":"[1]Personnel!V97","v":0},{"$f":"[1]Personnel!W97","v":0},0,{"$f":"[1]Personnel!Y97","v":0},{"$f":"[1]Personnel!Z97","v":0},0,0,0,0,null,null,null,null,null,null,null,null,null,null,null,null,null,null,null,null,null,null,null,null,null,null,null,null,null,{"$f":"[1]Personnel!G97","v":0}]
[0,{"$f":"IFERROR(INDEX(Settings!$AP$17:$AP$38,MATCH(Personnel!$G98,Settings!$AQ$17:$AQ$38,0)),0)","v":0},null,null,null,{"$f":"[1]Personnel!F98","v":0},{"$f":"IFERROR(INDEX((SLevel),MATCH(Personnel!BA98,SLevel202223,0)),0)","v":0},{"$f":"[1]Personnel!H98","v":0},{"$f":"[1]Personnel!I98","v":0},{"$f":"[1]Personnel!J98","v":0},{"$f":"[1]Personnel!P98","v":0},{"$f":"[1]Personnel!Q98","v":0},0,{"$f":"[1]Personnel!S98","v":0},{"$f":"[1]Personnel!S98","v":0},{"$f":"[1]Personnel!S98","v":0},{"$f":"[1]Personnel!T98","v":0},0,{"$f":"[1]Personnel!V98","v":0},{"$f":"[1]Personnel!W98","v":0},0,{"$f":"[1]Personnel!Y98","v":0},{"$f":"[1]Personnel!Z98","v":0},0,0,0,0,null,null,null,null,null,null,null,null,null,null,null,null,null,null,null,null,null,null,null,null,null,null,null,null,null,{"$f":"[1]Personnel!G98","v":0}]
[0,{"$f":"IFERROR(INDEX(Settings!$AP$17:$AP$38,MATCH(Personnel!$G99,Settings!$AQ$17:$AQ$38,0)),0)","v":0},null,null,null,{"$f":"[1]Personnel!F99","v":0},{"$f":"IFERROR(INDEX((SLevel),MATCH(Personnel!BA99,SLevel202223,0)),0)","v":0},{"$f":"[1]Personnel!H99","v":0},{"$f":"[1]Personnel!I99","v":0},{"$f":"[1]Personnel!J99","v":0},{"$f":"[1]Personnel!P99","v":0},{"$f":"[1]Personnel!Q99","v":0},0,{"$f":"[1]Personnel!S99","v":0},{"$f":"[1]Personnel!S99","v":0},{"$f":"[1]Personnel!S99","v":0},{"$f":"[1]Personnel!T99","v":0},0,{"$f":"[1]Personnel!V99","v":0},{"$f":"[1]Personnel!W99","v":0},0,{"$f":"[1]Personnel!Y99","v":0},{"$f":"[1]Personnel!Z99","v":0},0,0,0,0,null,null,null,null,null,null,null,null,null,null,null,null,null,null,null,null,null,null,null,null,null,null,null,null,null,{"$f":"[1]Personnel!G99","v":0}]
[0,{"$f":"IFERROR(INDEX(Settings!$AP$17:$AP$38,MATCH(Personnel!$G100,Settings!$AQ$17:$AQ$38,0)),0)","v":0},null,null,null,{"$f":"[1]Personnel!F100","v":0},{"$f":"IFERROR(INDEX((SLevel),MATCH(Personnel!BA100,SLevel202223,0)),0)","v":0},{"$f":"[1]Personnel!H100","v":0},{"$f":"[1]Personnel!I100","v":0},{"$f":"[1]Personnel!J100","v":0},{"$f":"[1]Personnel!P100","v":0},{"$f":"[1]Personnel!Q100","v":0},0,{"$f":"[1]Personnel!S100","v":0},{"$f":"[1]Personnel!S100","v":0},{"$f":"[1]Personnel!S100","v":0},{"$f":"[1]Personnel!T100","v":0},0,{"$f":"[1]Personnel!V100","v":0},{"$f":"[1]Personnel!W100","v":0},0,{"$f":"[1]Personnel!Y100","v":0},{"$f":"[1]Personnel!Z100","v":0},0,0,0,0,null,null,null,null,null,null,null,null,null,null,null,null,null,null,null,null,null,null,null,null,null,null,null,null,null,{"$f":"[1]Personnel!G100","v":0}]
[0,{"$f":"IFERROR(INDEX(Settings!$AP$17:$AP$38,MATCH(Personnel!$G101,Settings!$AQ$17:$AQ$38,0)),0)","v":0},null,null,null,{"$f":"[1]Personnel!F101","v":0},{"$f":"IFERROR(INDEX((SLevel),MATCH(Personnel!BA101,SLevel202223,0)),0)","v":0},{"$f":"[1]Personnel!H101","v":0},{"$f":"[1]Personnel!I101","v":0},{"$f":"[1]Personnel!J101","v":0},{"$f":"[1]Personnel!P101","v":0},{"$f":"[1]Personnel!Q101","v":0},0,{"$f":"[1]Personnel!S101","v":0},{"$f":"[1]Personnel!S101","v":0},{"$f":"[1]Personnel!S101","v":0},{"$f":"[1]Personnel!T101","v":0},0,{"$f":"[1]Personnel!V101","v":0},{"$f":"[1]Personnel!W101","v":0},0,{"$f":"[1]Personnel!Y101","v":0},{"$f":"[1]Personnel!Z101","v":0},0,0,0,0,null,null,null,null,null,null,null,null,null,null,null,null,null,null,null,null,null,null,null,null,null,null,null,null,null,{"$f":"[1]Personnel!G101","v":0}]
[0,{"$f":"IFERROR(INDEX(Settings!$AP$17:$AP$38,MATCH(Personnel!$G102,Settings!$AQ$17:$AQ$38,0)),0)","v":0},null,null,null,{"$f":"[1]Personnel!F102","v":0},{"$f":"IFERROR(INDEX((SLevel),MATCH(Personnel!BA102,SLevel202223,0)),0)","v":0},{"$f":"[1]Personnel!H102","v":0},{"$f":"[1]Personnel!I102","v":0},{"$f":"[1]Personnel!J102","v":0},{"$f":"[1]Personnel!P102","v":0},{"$f":"[1]Personnel!Q102","v":0},0,{"$f":"[1]Personnel!S102","v":0},{"$f":"[1]Personnel!S102","v":0},{"$f":"[1]Personnel!S102","v":0},{"$f":"[1]Personnel!T102","v":0},0,{"$f":"[1]Personnel!V102","v":0},{"$f":"[1]Personnel!W102","v":0},0,{"$f":"[1]Personnel!Y102","v":0},{"$f":"[1]Personnel!Z102","v":0},0,0,0,0,null,null,null,null,null,null,null,null,null,null,null,null,null,null,null,null,null,null,null,null,null,null,null,null,null,{"$f":"[1]Personnel!G102","v":0}]
[0,{"$f":"IFERROR(INDEX(Settings!$AP$17:$AP$38,MATCH(Personnel!$G103,Settings!$AQ$17:$AQ$38,0)),0)","v":0},null,null,null,{"$f":"[1]Personnel!F103","v":0},{"$f":"IFERROR(INDEX((SLevel),MATCH(Personnel!BA103,SLevel202223,0)),0)","v":0},{"$f":"[1]Personnel!H103","v":0},{"$f":"[1]Personnel!I103","v":0},{"$f":"[1]Personnel!J103","v":0},{"$f":"[1]Personnel!P103","v":0},{"$f":"[1]Personnel!Q103","v":0},0,{"$f":"[1]Personnel!S103","v":0},{"$f":"[1]Personnel!S103","v":0},{"$f":"[1]Personnel!S103","v":0},{"$f":"[1]Personnel!T103","v":0},0,{"$f":"[1]Personnel!V103","v":0},{"$f":"[1]Personnel!W103","v":0},0,{"$f":"[1]Personnel!Y103","v":0},{"$f":"[1]Personnel!Z103","v":0},0,0,0,0,null,null,null,null,null,null,null,null,null,null,null,null,null,null,null,null,null,null,null,null,null,null,null,null,null,{"$f":"[1]Personnel!G103","v":0}]
[0,{"$f":"IFERROR(INDEX(Settings!$AP$17:$AP$38,MATCH(Personnel!$G104,Settings!$AQ$17:$AQ$38,0)),0)","v":0},null,null,null,{"$f":"[1]Personnel!F104","v":0},{"$f":"IFERROR(INDEX((SLevel),MATCH(Personnel!BA104,SLevel202223,0)),0)","v":0},{"$f":"[1]Personnel!H104","v":0},{"$f":"[1]Personnel!I104","v":0},{"$f":"[1]Personnel!J104","v":0},{"$f":"[1]Personnel!P104","v":0},{"$f":"[1]Personnel!Q104","v":0},0,{"$f":"[1]Personnel!S104","v":0},{"$f":"[1]Personnel!S104","v":0},{"$f":"[1]Personnel!S104","v":0},{"$f":"[1]Personnel!T104","v":0},0,{"$f":"[1]Personnel!V104","v":0},{"$f":"[1]Personnel!W104","v":0},0,{"$f":"[1]Personnel!Y104","v":0},{"$f":"[1]Personnel!Z104","v":0},0,0,0,0,null,null,null,null,null,null,null,null,null,null,null,null,null,null,null,null,null,null,null,null,null,null,null,null,null,{"$f":"[1]Personnel!G104","v":0}]
[0,{"$f":"IFERROR(INDEX(Settings!$AP$17:$AP$38,MATCH(Personnel!$G105,Settings!$AQ$17:$AQ$38,0)),0)","v":0},null,null,null,{"$f":"[1]Personnel!F105","v":0},{"$f":"IFERROR(INDEX((SLevel),MATCH(Personnel!BA105,SLevel202223,0)),0)","v":0},{"$f":"[1]Personnel!H105","v":0},{"$f":"[1]Personnel!I105","v":0},{"$f":"[1]Personnel!J105","v":0},{"$f":"[1]Personnel!P105","v":0},{"$f":"[1]Personnel!Q105","v":0},0,{"$f":"[1]Personnel!S105","v":0},{"$f":"[1]Personnel!S105","v":0},{"$f":"[1]Personnel!S105","v":0},{"$f":"[1]Personnel!T105","v":0},0,{"$f":"[1]Personnel!V105","v":0},{"$f":"[1]Personnel!W105","v":0},0,{"$f":"[1]Personnel!Y105","v":0},{"$f":"[1]Personnel!Z105","v":0},0,0,0,0,null,null,null,null,null,null,null,null,null,null,null,null,null,null,null,null,null,null,null,null,null,null,null,null,null,{"$f":"[1]Personnel!G105","v":0}]
[0,{"$f":"IFERROR(INDEX(Settings!$AP$17:$AP$38,MATCH(Personnel!$G106,Settings!$AQ$17:$AQ$38,0)),0)","v":0},null,null,null,{"$f":"[1]Personnel!F106","v":0},{"$f":"IFERROR(INDEX((SLevel),MATCH(Personnel!BA106,SLevel202223,0)),0)","v":0},{"$f":"[1]Personnel!H106","v":0},{"$f":"[1]Personnel!I106","v":0},{"$f":"[1]Personnel!J106","v":0},{"$f":"[1]Personnel!P106","v":0},{"$f":"[1]Personnel!Q106","v":0},0,{"$f":"[1]Personnel!S106","v":0},{"$f":"[1]Personnel!S106","v":0},{"$f":"[1]Personnel!S106","v":0},{"$f":"[1]Personnel!T106","v":0},0,{"$f":"[1]Personnel!V106","v":0},{"$f":"[1]Personnel!W106","v":0},0,{"$f":"[1]Personnel!Y106","v":0},{"$f":"[1]Personnel!Z106","v":0},0,0,0,0,null,null,null,null,null,null,null,null,null,null,null,null,null,null,null,null,null,null,null,null,null,null,null,null,null,{"$f":"[1]Personnel!G106","v":0}]
[0,{"$f":"IFERROR(INDEX(Settings!$AP$17:$AP$38,MATCH(Personnel!$G107,Settings!$AQ$17:$AQ$38,0)),0)","v":0},null,null,null,{"$f":"[1]Personnel!F107","v":0},{"$f":"IFERROR(INDEX((SLevel),MATCH(Personnel!BA107,SLevel202223,0)),0)","v":0},{"$f":"[1]Personnel!H107","v":0},{"$f":"[1]Personnel!I107","v":0},{"$f":"[1]Personnel!J107","v":0},{"$f":"[1]Personnel!P107","v":0},{"$f":"[1]Personnel!Q107","v":0},0,{"$f":"[1]Personnel!S107","v":0},{"$f":"[1]Personnel!S107","v":0},{"$f":"[1]Personnel!S107","v":0},{"$f":"[1]Personnel!T107","v":0},0,{"$f":"[1]Personnel!V107","v":0},{"$f":"[1]Personnel!W107","v":0},0,{"$f":"[1]Personnel!Y107","v":0},{"$f":"[1]Personnel!Z107","v":0},0,0,0,0,null,null,null,null,null,null,null,null,null,null,null,null,null,null,null,null,null,null,null,null,null,null,null,null,null,{"$f":"[1]Personnel!G107","v":0}]
[0,{"$f":"IFERROR(INDEX(Settings!$AP$17:$AP$38,MATCH(Personnel!$G108,Settings!$AQ$17:$AQ$38,0)),0)","v":0},null,null,null,{"$f":"[1]Personnel!F108","v":0},{"$f":"IFERROR(INDEX((SLevel),MATCH(Personnel!BA108,SLevel202223,0)),0)","v":0},{"$f":"[1]Personnel!H108","v":0},{"$f":"[1]Personnel!I108","v":0},{"$f":"[1]Personnel!J108","v":0},{"$f":"[1]Personnel!P108","v":0},{"$f":"[1]Personnel!Q108","v":0},0,{"$f":"[1]Personnel!S108","v":0},{"$f":"[1]Personnel!S108","v":0},{"$f":"[1]Personnel!S108","v":0},{"$f":"[1]Personnel!T108","v":0},0,{"$f":"[1]Personnel!V108","v":0},{"$f":"[1]Personnel!W108","v":0},0,{"$f":"[1]Personnel!Y108","v":0},{"$f":"[1]Personnel!Z108","v":0},0,0,0,0,null,null,null,null,null,null,null,null,null,null,null,null,null,null,null,null,null,null,null,null,null,null,null,null,null,{"$f":"[1]Personnel!G108","v":0}]
[0,{"$f":"IFERROR(INDEX(Settings!$AP$17:$AP$38,MATCH(Personnel!$G109,Settings!$AQ$17:$AQ$38,0)),0)","v":0},null,null,null,{"$f":"[1]Personnel!F109","v":0},{"$f":"IFERROR(INDEX((SLevel),MATCH(Personnel!BA109,SLevel202223,0)),0)","v":0},{"$f":"[1]Personnel!H109","v":0},{"$f":"[1]Personnel!I109","v":0},{"$f":"[1]Personnel!J109","v":0},{"$f":"[1]Personnel!P109","v":0},{"$f":"[1]Personnel!Q109","v":0},0,{"$f":"[1]Personnel!S109","v":0},{"$f":"[1]Personnel!S109","v":0},{"$f":"[1]Personnel!S109","v":0},{"$f":"[1]Personnel!T109","v":0},0,{"$f":"[1]Personnel!V109","v":0},{"$f":"[1]Personnel!W109","v":0},0,{"$f":"[1]Personnel!Y109","v":0},{"$f":"[1]Personnel!Z109","v":0},0,0,0,0,null,null,null,null,null,null,null,null,null,null,null,null,null,null,null,null,null,null,null,null,null,null,null,null,null,{"$f":"[1]Personnel!G109","v":0}]
[0,{"$f":"IFERROR(INDEX(Settings!$AP$17:$AP$38,MATCH(Personnel!$G110,Settings!$AQ$17:$AQ$38,0)),0)","v":0},null,null,null,{"$f":"[1]Personnel!F110","v":0},{"$f":"IFERROR(INDEX((SLevel),MATCH(Personnel!BA110,SLevel202223,0)),0)","v":0},{"$f":"[1]Personnel!H110","v":0},{"$f":"[1]Personnel!I110","v":0},{"$f":"[1]Personnel!J110","v":0},{"$f":"[1]Personnel!P110","v":0},{"$f":"[1]Personnel!Q110","v":0},0,{"$f":"[1]Personnel!S110","v":0},{"$f":"[1]Personnel!S110","v":0},{"$f":"[1]Personnel!S110","v":0},{"$f":"[1]Personnel!T110","v":0},0,{"$f":"[1]Personnel!V110","v":0},{"$f":"[1]Personnel!W110","v":0},0,{"$f":"[1]Personnel!Y110","v":0},{"$f":"[1]Personnel!Z110","v":0},0,0,0,0,null,null,null,null,null,null,null,null,null,null,null,null,null,null,null,null,null,null,null,null,null,null,null,null,null,{"$f":"[1]Personnel!G110","v":0}]
[0,{"$f":"IFERROR(INDEX(Settings!$AP$17:$AP$38,MATCH(Personnel!$G111,Settings!$AQ$17:$AQ$38,0)),0)","v":0},null,null,null,{"$f":"[1]Personnel!F111","v":0},{"$f":"IFERROR(INDEX((SLevel),MATCH(Personnel!BA111,SLevel202223,0)),0)","v":0},{"$f":"[1]Personnel!H111","v":0},{"$f":"[1]Personnel!I111","v":0},{"$f":"[1]Personnel!J111","v":0},{"$f":"[1]Personnel!P111","v":0},{"$f":"[1]Personnel!Q111","v":0},0,{"$f":"[1]Personnel!S111","v":0},{"$f":"[1]Personnel!S111","v":0},{"$f":"[1]Personnel!S111","v":0},{"$f":"[1]Personnel!T111","v":0},0,{"$f":"[1]Personnel!V111","v":0},{"$f":"[1]Personnel!W111","v":0},0,{"$f":"[1]Personnel!Y111","v":0},{"$f":"[1]Personnel!Z111","v":0},0,0,0,0,null,null,null,null,null,null,null,null,null,null,null,null,null,null,null,null,null,null,null,null,null,null,null,null,null,{"$f":"[1]Personnel!G111","v":0}]
[0,{"$f":"IFERROR(INDEX(Settings!$AP$17:$AP$38,MATCH(Personnel!$G112,Settings!$AQ$17:$AQ$38,0)),0)","v":0},null,null,null,{"$f":"[1]Personnel!F112","v":0},{"$f":"IFERROR(INDEX((SLevel),MATCH(Personnel!BA112,SLevel202223,0)),0)","v":0},{"$f":"[1]Personnel!H112","v":0},{"$f":"[1]Personnel!I112","v":0},{"$f":"[1]Personnel!J112","v":0},{"$f":"[1]Personnel!P112","v":0},{"$f":"[1]Personnel!Q112","v":0},0,{"$f":"[1]Personnel!S112","v":0},{"$f":"[1]Personnel!S112","v":0},{"$f":"[1]Personnel!S112","v":0},{"$f":"[1]Personnel!T112","v":0},0,{"$f":"[1]Personnel!V112","v":0},{"$f":"[1]Personnel!W112","v":0},0,{"$f":"[1]Personnel!Y112","v":0},{"$f":"[1]Personnel!Z112","v":0},0,0,0,0,null,null,null,null,null,null,null,null,null,null,null,null,null,null,null,null,null,null,null,null,null,null,null,null,null,{"$f":"[1]Personnel!G112","v":0}]
[0,{"$f":"IFERROR(INDEX(Settings!$AP$17:$AP$38,MATCH(Personnel!$G113,Settings!$AQ$17:$AQ$38,0)),0)","v":0},null,null,null,{"$f":"[1]Personnel!F113","v":0},{"$f":"IFERROR(INDEX((SLevel),MATCH(Personnel!BA113,SLevel202223,0)),0)","v":0},{"$f":"[1]Personnel!H113","v":0},{"$f":"[1]Personnel!I113","v":0},{"$f":"[1]Personnel!J113","v":0},{"$f":"[1]Personnel!P113","v":0},{"$f":"[1]Personnel!Q113","v":0},0,{"$f":"[1]Personnel!S113","v":0},{"$f":"[1]Personnel!S113","v":0},{"$f":"[1]Personnel!S113","v":0},{"$f":"[1]Personnel!T113","v":0},0,{"$f":"[1]Personnel!V113","v":0},{"$f":"[1]Personnel!W113","v":0},0,{"$f":"[1]Personnel!Y113","v":0},{"$f":"[1]Personnel!Z113","v":0},0,0,0,0,null,null,null,null,null,null,null,null,null,null,null,null,null,null,null,null,null,null,null,null,null,null,null,null,null,{"$f":"[1]Personnel!G113","v":0}]
[0,{"$f":"IFERROR(INDEX(Settings!$AP$17:$AP$38,MATCH(Personnel!$G114,Settings!$AQ$17:$AQ$38,0)),0)","v":0},null,null,null,{"$f":"[1]Personnel!F114","v":0},{"$f":"IFERROR(INDEX((SLevel),MATCH(Personnel!BA114,SLevel202223,0)),0)","v":0},{"$f":"[1]Personnel!H114","v":0},{"$f":"[1]Personnel!I114","v":0},{"$f":"[1]Personnel!J114","v":0},{"$f":"[1]Personnel!P114","v":0},{"$f":"[1]Personnel!Q114","v":0},0,{"$f":"[1]Personnel!S114","v":0},{"$f":"[1]Personnel!S114","v":0},{"$f":"[1]Personnel!S114","v":0},{"$f":"[1]Personnel!T114","v":0},0,{"$f":"[1]Personnel!V114","v":0},{"$f":"[1]Personnel!W114","v":0},0,{"$f":"[1]Personnel!Y114","v":0},{"$f":"[1]Personnel!Z114","v":0},0,0,0,0,null,null,null,null,null,null,null,null,null,null,null,null,null,null,null,null,null,null,null,null,null,null,null,null,null,{"$f":"[1]Personnel!G114","v":0}]
[0,{"$f":"IFERROR(INDEX(Settings!$AP$17:$AP$38,MATCH(Personnel!$G115,Settings!$AQ$17:$AQ$38,0)),0)","v":0},null,null,null,{"$f":"[1]Personnel!F115","v":0},{"$f":"IFERROR(INDEX((SLevel),MATCH(Personnel!BA115,SLevel202223,0)),0)","v":0},{"$f":"[1]Personnel!H115","v":0},{"$f":"[1]Personnel!I115","v":0},{"$f":"[1]Personnel!J115","v":0},{"$f":"[1]Personnel!P115","v":0},{"$f":"[1]Personnel!Q115","v":0},0,{"$f":"[1]Personnel!S115","v":0},{"$f":"[1]Personnel!S115","v":0},{"$f":"[1]Personnel!S115","v":0},{"$f":"[1]Personnel!T115","v":0},0,{"$f":"[1]Personnel!V115","v":0},{"$f":"[1]Personnel!W115","v":0},0,{"$f":"[1]Personnel!Y115","v":0},{"$f":"[1]Personnel!Z115","v":0},0,0,0,0,null,null,null,null,null,null,null,null,null,null,null,null,null,null,null,null,null,null,null,null,null,null,null,null,null,{"$f":"[1]Personnel!G115","v":0}]
[0,{"$f":"IFERROR(INDEX(Settings!$AP$17:$AP$38,MATCH(Personnel!$G116,Settings!$AQ$17:$AQ$38,0)),0)","v":0},null,null,null,{"$f":"[1]Personnel!F116","v":0},{"$f":"IFERROR(INDEX((SLevel),MATCH(Personnel!BA116,SLevel202223,0)),0)","v":0},{"$f":"[1]Personnel!H116","v":0},{"$f":"[1]Personnel!I116","v":0},{"$f":"[1]Personnel!J116","v":0},{"$f":"[1]Personnel!P116","v":0},{"$f":"[1]Personnel!Q116","v":0},0,{"$f":"[1]Personnel!S116","v":0},{"$f":"[1]Personnel!S116","v":0},{"$f":"[1]Personnel!S116","v":0},{"$f":"[1]Personnel!T116","v":0},0,{"$f":"[1]Personnel!V116","v":0},{"$f":"[1]Personnel!W116","v":0},0,{"$f":"[1]Personnel!Y116","v":0},{"$f":"[1]Personnel!Z116","v":0},0,0,0,0,null,null,null,null,null,null,null,null,null,null,null,null,null,null,null,null,null,null,null,null,null,null,null,null,null,{"$f":"[1]Personnel!G116","v":0}]
[0,{"$f":"IFERROR(INDEX(Settings!$AP$17:$AP$38,MATCH(Personnel!$G117,Settings!$AQ$17:$AQ$38,0)),0)","v":0},null,null,null,{"$f":"[1]Personnel!F117","v":0},{"$f":"IFERROR(INDEX((SLevel),MATCH(Personnel!BA117,SLevel202223,0)),0)","v":0},{"$f":"[1]Personnel!H117","v":0},{"$f":"[1]Personnel!I117","v":0},{"$f":"[1]Personnel!J117","v":0},{"$f":"[1]Personnel!P117","v":0},{"$f":"[1]Personnel!Q117","v":0},0,{"$f":"[1]Personnel!S117","v":0},{"$f":"[1]Personnel!S117","v":0},{"$f":"[1]Personnel!S117","v":0},{"$f":"[1]Personnel!T117","v":0},0,{"$f":"[1]Personnel!V117","v":0},{"$f":"[1]Personnel!W117","v":0},0,{"$f":"[1]Personnel!Y117","v":0},{"$f":"[1]Personnel!Z117","v":0},0,0,0,0,null,null,null,null,null,null,null,null,null,null,null,null,null,null,null,null,null,null,null,null,null,null,null,null,null,{"$f":"[1]Personnel!G117","v":0}]
[0,{"$f":"IFERROR(INDEX(Settings!$AP$17:$AP$38,MATCH(Personnel!$G118,Settings!$AQ$17:$AQ$38,0)),0)","v":0},null,null,null,{"$f":"[1]Personnel!F118","v":0},{"$f":"IFERROR(INDEX((SLevel),MATCH(Personnel!BA118,SLevel202223,0)),0)","v":0},{"$f":"[1]Personnel!H118","v":0},{"$f":"[1]Personnel!I118","v":0},{"$f":"[1]Personnel!J118","v":0},{"$f":"[1]Personnel!P118","v":0},{"$f":"[1]Personnel!Q118","v":0},0,{"$f":"[1]Personnel!S118","v":0},{"$f":"[1]Personnel!S118","v":0},{"$f":"[1]Personnel!S118","v":0},{"$f":"[1]Personnel!T118","v":0},0,{"$f":"[1]Personnel!V118","v":0},{"$f":"[1]Personnel!W118","v":0},0,{"$f":"[1]Personnel!Y118","v":0},{"$f":"[1]Personnel!Z118","v":0},0,0,0,0,null,null,null,null,null,null,null,null,null,null,null,null,null,null,null,null,null,null,null,null,null,null,null,null,null,{"$f":"[1]Personnel!G118","v":0}]
[0,{"$f":"IFERROR(INDEX(Settings!$AP$17:$AP$38,MATCH(Personnel!$G119,Settings!$AQ$17:$AQ$38,0)),0)","v":0},null,null,null,{"$f":"[1]Personnel!F119","v":0},{"$f":"IFERROR(INDEX((SLevel),MATCH(Personnel!BA119,SLevel202223,0)),0)","v":0},{"$f":"[1]Personnel!H119","v":0},{"$f":"[1]Personnel!I119","v":0},{"$f":"[1]Personnel!J119","v":0},{"$f":"[1]Personnel!P119","v":0},{"$f":"[1]Personnel!Q119","v":0},0,{"$f":"[1]Personnel!S119","v":0},{"$f":"[1]Personnel!S119","v":0},{"$f":"[1]Personnel!S119","v":0},{"$f":"[1]Personnel!T119","v":0},0,{"$f":"[1]Personnel!V119","v":0},{"$f":"[1]Personnel!W119","v":0},0,{"$f":"[1]Personnel!Y119","v":0},{"$f":"[1]Personnel!Z119","v":0},0,0,0,0,null,null,null,null,null,null,null,null,null,null,null,null,null,null,null,null,null,null,null,null,null,null,null,null,null,{"$f":"[1]Personnel!G119","v":0}]
[0,{"$f":"IFERROR(INDEX(Settings!$AP$17:$AP$38,MATCH(Personnel!$G120,Settings!$AQ$17:$AQ$38,0)),0)","v":0},null,null,null,{"$f":"[1]Personnel!F120","v":0},{"$f":"IFERROR(INDEX((SLevel),MATCH(Personnel!BA120,SLevel202223,0)),0)","v":0},{"$f":"[1]Personnel!H120","v":0},{"$f":"[1]Personnel!I120","v":0},{"$f":"[1]Personnel!J120","v":0},{"$f":"[1]Personnel!P120","v":0},{"$f":"[1]Personnel!Q120","v":0},0,{"$f":"[1]Personnel!S120","v":0},{"$f":"[1]Personnel!S120","v":0},{"$f":"[1]Personnel!S120","v":0},{"$f":"[1]Personnel!T120","v":0},0,{"$f":"[1]Personnel!V120","v":0},{"$f":"[1]Personnel!W120","v":0},0,{"$f":"[1]Personnel!Y120","v":0},{"$f":"[1]Personnel!Z120","v":0},0,0,0,0,null,null,null,null,null,null,null,null,null,null,null,null,null,null,null,null,null,null,null,null,null,null,null,null,null,{"$f":"[1]Personnel!G120","v":0}]
[0,{"$f":"IFERROR(INDEX(Settings!$AP$17:$AP$38,MATCH(Personnel!$G121,Settings!$AQ$17:$AQ$38,0)),0)","v":0},null,null,null,{"$f":"[1]Personnel!F121","v":0},{"$f":"IFERROR(INDEX((SLevel),MATCH(Personnel!BA121,SLevel202223,0)),0)","v":0},{"$f":"[1]Personnel!H121","v":0},{"$f":"[1]Personnel!I121","v":0},{"$f":"[1]Personnel!J121","v":0},{"$f":"[1]Personnel!P121","v":0},{"$f":"[1]Personnel!Q121","v":0},0,{"$f":"[1]Personnel!S121","v":0},{"$f":"[1]Personnel!S121","v":0},{"$f":"[1]Personnel!S121","v":0},{"$f":"[1]Personnel!T121","v":0},0,{"$f":"[1]Personnel!V121","v":0},{"$f":"[1]Personnel!W121","v":0},0,{"$f":"[1]Personnel!Y121","v":0},{"$f":"[1]Personnel!Z121","v":0},0,0,0,0,null,null,null,null,null,null,null,null,null,null,null,null,null,null,null,null,null,null,null,null,null,null,null,null,null,{"$f":"[1]Personnel!G121","v":0}]
[0,{"$f":"IFERROR(INDEX(Settings!$AP$17:$AP$38,MATCH(Personnel!$G122,Settings!$AQ$17:$AQ$38,0)),0)","v":0},null,null,null,{"$f":"[1]Personnel!F122","v":0},{"$f":"IFERROR(INDEX((SLevel),MATCH(Personnel!BA122,SLevel202223,0)),0)","v":0},{"$f":"[1]Personnel!H122","v":0},{"$f":"[1]Personnel!I122","v":0},{"$f":"[1]Personnel!J122","v":0},{"$f":"[1]Personnel!P122","v":0},{"$f":"[1]Personnel!Q122","v":0},0,{"$f":"[1]Personnel!S122","v":0},{"$f":"[1]Personnel!S122","v":0},{"$f":"[1]Personnel!S122","v":0},{"$f":"[1]Personnel!T122","v":0},0,{"$f":"[1]Personnel!V122","v":0},{"$f":"[1]Personnel!W122","v":0},0,{"$f":"[1]Personnel!Y122","v":0},{"$f":"[1]Personnel!Z122","v":0},0,0,0,0,null,null,null,null,null,null,null,null,null,null,null,null,null,null,null,null,null,null,null,null,null,null,null,null,null,{"$f":"[1]Personnel!G122","v":0}]
[0,{"$f":"IFERROR(INDEX(Settings!$AP$17:$AP$38,MATCH(Personnel!$G123,Settings!$AQ$17:$AQ$38,0)),0)","v":0},null,null,null,{"$f":"[1]Personnel!F123","v":0},{"$f":"IFERROR(INDEX((SLevel),MATCH(Personnel!BA123,SLevel202223,0)),0)","v":0},{"$f":"[1]Personnel!H123","v":0},{"$f":"[1]Personnel!I123","v":0},{"$f":"[1]Personnel!J123","v":0},{"$f":"[1]Personnel!P123","v":0},{"$f":"[1]Personnel!Q123","v":0},0,{"$f":"[1]Personnel!S123","v":0},{"$f":"[1]Personnel!S123","v":0},{"$f":"[1]Personnel!S123","v":0},{"$f":"[1]Personnel!T123","v":0},0,{"$f":"[1]Personnel!V123","v":0},{"$f":"[1]Personnel!W123","v":0},0,{"$f":"[1]Personnel!Y123","v":0},{"$f":"[1]Personnel!Z123","v":0},0,0,0,0,null,null,null,null,null,null,null,null,null,null,null,null,null,null,null,null,null,null,null,null,null,null,null,null,null,{"$f":"[1]Personnel!G123","v":0}]
[0,{"$f":"IFERROR(INDEX(Settings!$AP$17:$AP$38,MATCH(Personnel!$G124,Settings!$AQ$17:$AQ$38,0)),0)","v":0},null,null,null,{"$f":"[1]Personnel!F124","v":0},{"$f":"IFERROR(INDEX((SLevel),MATCH(Personnel!BA124,SLevel202223,0)),0)","v":0},{"$f":"[1]Personnel!H124","v":0},{"$f":"[1]Personnel!I124","v":0},{"$f":"[1]Personnel!J124","v":0},{"$f":"[1]Personnel!P124","v":0},{"$f":"[1]Personnel!Q124","v":0},0,{"$f":"[1]Personnel!S124","v":0},{"$f":"[1]Personnel!S124","v":0},{"$f":"[1]Personnel!S124","v":0},{"$f":"[1]Personnel!T124","v":0},0,{"$f":"[1]Personnel!V124","v":0},{"$f":"[1]Personnel!W124","v":0},0,{"$f":"[1]Personnel!Y124","v":0},{"$f":"[1]Personnel!Z124","v":0},0,0,0,0,null,null,null,null,null,null,null,null,null,null,null,null,null,null,null,null,null,null,null,null,null,null,null,null,null,{"$f":"[1]Personnel!G124","v":0}]
[0,{"$f":"IFERROR(INDEX(Settings!$AP$17:$AP$38,MATCH(Personnel!$G125,Settings!$AQ$17:$AQ$38,0)),0)","v":0},null,null,null,{"$f":"[1]Personnel!F125","v":0},{"$f":"IFERROR(INDEX((SLevel),MATCH(Personnel!BA125,SLevel202223,0)),0)","v":0},{"$f":"[1]Personnel!H125","v":0},{"$f":"[1]Personnel!I125","v":0},{"$f":"[1]Personnel!J125","v":0},{"$f":"[1]Personnel!P125","v":0},{"$f":"[1]Personnel!Q125","v":0},0,{"$f":"[1]Personnel!S125","v":0},{"$f":"[1]Personnel!S125","v":0},{"$f":"[1]Personnel!S125","v":0},{"$f":"[1]Personnel!T125","v":0},0,{"$f":"[1]Personnel!V125","v":0},{"$f":"[1]Personnel!W125","v":0},0,{"$f":"[1]Personnel!Y125","v":0},{"$f":"[1]Personnel!Z125","v":0},0,0,0,0,null,null,null,null,null,null,null,null,null,null,null,null,null,null,null,null,null,null,null,null,null,null,null,null,null,{"$f":"[1]Personnel!G125","v":0}]
[0,{"$f":"IFERROR(INDEX(Settings!$AP$17:$AP$38,MATCH(Personnel!$G126,Settings!$AQ$17:$AQ$38,0)),0)","v":0},null,null,null,{"$f":"[1]Personnel!F126","v":0},{"$f":"IFERROR(INDEX((SLevel),MATCH(Personnel!BA126,SLevel202223,0)),0)","v":0},{"$f":"[1]Personnel!H126","v":0},{"$f":"[1]Personnel!I126","v":0},{"$f":"[1]Personnel!J126","v":0},{"$f":"[1]Personnel!P126","v":0},{"$f":"[1]Personnel!Q126","v":0},0,{"$f":"[1]Personnel!S126","v":0},{"$f":"[1]Personnel!S126","v":0},{"$f":"[1]Personnel!S126","v":0},{"$f":"[1]Personnel!T126","v":0},0,{"$f":"[1]Personnel!V126","v":0},{"$f":"[1]Personnel!W126","v":0},0,{"$f":"[1]Personnel!Y126","v":0},{"$f":"[1]Personnel!Z126","v":0},0,0,0,0,null,null,null,null,null,null,null,null,null,null,null,null,null,null,null,null,null,null,null,null,null,null,null,null,null,{"$f":"[1]Personnel!G126","v":0}]
[0,{"$f":"IFERROR(INDEX(Settings!$AP$17:$AP$38,MATCH(Personnel!$G127,Settings!$AQ$17:$AQ$38,0)),0)","v":0},null,null,null,{"$f":"[1]Personnel!F127","v":0},{"$f":"IFERROR(INDEX((SLevel),MATCH(Personnel!BA127,SLevel202223,0)),0)","v":0},{"$f":"[1]Personnel!H127","v":0},{"$f":"[1]Personnel!I127","v":0},{"$f":"[1]Personnel!J127","v":0},{"$f":"[1]Personnel!P127","v":0},{"$f":"[1]Personnel!Q127","v":0},0,{"$f":"[1]Personnel!S127","v":0},{"$f":"[1]Personnel!S127","v":0},{"$f":"[1]Personnel!S127","v":0},{"$f":"[1]Personnel!T127","v":0},0,{"$f":"[1]Personnel!V127","v":0},{"$f":"[1]Personnel!W127","v":0},0,{"$f":"[1]Personnel!Y127","v":0},{"$f":"[1]Personnel!Z127","v":0},0,0,0,0,null,null,null,null,null,null,null,null,null,null,null,null,null,null,null,null,null,null,null,null,null,null,null,null,null,{"$f":"[1]Personnel!G127","v":0}]
[0,{"$f":"IFERROR(INDEX(Settings!$AP$17:$AP$38,MATCH(Personnel!$G128,Settings!$AQ$17:$AQ$38,0)),0)","v":0},null,null,null,{"$f":"[1]Personnel!F128","v":0},{"$f":"IFERROR(INDEX((SLevel),MATCH(Personnel!BA128,SLevel202223,0)),0)","v":0},{"$f":"[1]Personnel!H128","v":0},{"$f":"[1]Personnel!I128","v":0},{"$f":"[1]Personnel!J128","v":0},{"$f":"[1]Personnel!P128","v":0},{"$f":"[1]Personnel!Q128","v":0},0,{"$f":"[1]Personnel!S128","v":0},{"$f":"[1]Personnel!S128","v":0},{"$f":"[1]Personnel!S128","v":0},{"$f":"[1]Personnel!T128","v":0},0,{"$f":"[1]Personnel!V128","v":0},{"$f":"[1]Personnel!W128","v":0},0,{"$f":"[1]Personnel!Y128","v":0},{"$f":"[1]Personnel!Z128","v":0},0,0,0,0,null,null,null,null,null,null,null,null,null,null,null,null,null,null,null,null,null,null,null,null,null,null,null,null,null,{"$f":"[1]Personnel!G128","v":0}]
[0,{"$f":"IFERROR(INDEX(Settings!$AP$17:$AP$38,MATCH(Personnel!$G129,Settings!$AQ$17:$AQ$38,0)),0)","v":0},null,null,null,{"$f":"[1]Personnel!F129","v":0},{"$f":"IFERROR(INDEX((SLevel),MATCH(Personnel!BA129,SLevel202223,0)),0)","v":0},{"$f":"[1]Personnel!H129","v":0},{"$f":"[1]Personnel!I129","v":0},{"$f":"[1]Personnel!J129","v":0},{"$f":"[1]Personnel!P129","v":0},{"$f":"[1]Personnel!Q129","v":0},0,{"$f":"[1]Personnel!S129","v":0},{"$f":"[1]Personnel!S129","v":0},{"$f":"[1]Personnel!S129","v":0},{"$f":"[1]Personnel!T129","v":0},0,{"$f":"[1]Personnel!V129","v":0},{"$f":"[1]Personnel!W129","v":0},0,{"$f":"[1]Personnel!Y129","v":0},{"$f":"[1]Personnel!Z129","v":0},0,0,0,0,null,null,null,null,null,null,null,null,null,null,null,null,null,null,null,null,null,null,null,null,null,null,null,null,null,{"$f":"[1]Personnel!G129","v":0}]
[0,{"$f":"IFERROR(INDEX(Settings!$AP$17:$AP$38,MATCH(Personnel!$G130,Settings!$AQ$17:$AQ$38,0)),0)","v":0},null,null,null,{"$f":"[1]Personnel!F130","v":0},{"$f":"IFERROR(INDEX((SLevel),MATCH(Personnel!BA130,SLevel202223,0)),0)","v":0},{"$f":"[1]Personnel!H130","v":0},{"$f":"[1]Personnel!I130","v":0},{"$f":"[1]Personnel!J130","v":0},{"$f":"[1]Personnel!P130","v":0},{"$f":"[1]Personnel!Q130","v":0},0,{"$f":"[1]Personnel!S130","v":0},{"$f":"[1]Personnel!S130","v":0},{"$f":"[1]Personnel!S130","v":0},{"$f":"[1]Personnel!T130","v":0},0,{"$f":"[1]Personnel!V130","v":0},{"$f":"[1]Personnel!W130","v":0},0,{"$f":"[1]Personnel!Y130","v":0},{"$f":"[1]Personnel!Z130","v":0},0,0,0,0,null,null,null,null,null,null,null,null,null,null,null,null,null,null,null,null,null,null,null,null,null,null,null,null,null,{"$f":"[1]Personnel!G130","v":0}]
[0,{"$f":"IFERROR(INDEX(Settings!$AP$17:$AP$38,MATCH(Personnel!$G131,Settings!$AQ$17:$AQ$38,0)),0)","v":0},null,null,null,{"$f":"[1]Personnel!F131","v":0},{"$f":"IFERROR(INDEX((SLevel),MATCH(Personnel!BA131,SLevel202223,0)),0)","v":0},{"$f":"[1]Personnel!H131","v":0},{"$f":"[1]Personnel!I131","v":0},{"$f":"[1]Personnel!J131","v":0},{"$f":"[1]Personnel!P131","v":0},{"$f":"[1]Personnel!Q131","v":0},0,{"$f":"[1]Personnel!S131","v":0},{"$f":"[1]Personnel!S131","v":0},{"$f":"[1]Personnel!S131","v":0},{"$f":"[1]Personnel!T131","v":0},0,{"$f":"[1]Personnel!V131","v":0},{"$f":"[1]Personnel!W131","v":0},0,{"$f":"[1]Personnel!Y131","v":0},{"$f":"[1]Personnel!Z131","v":0},0,0,0,0,null,null,null,null,null,null,null,null,null,null,null,null,null,null,null,null,null,null,null,null,null,null,null,null,null,{"$f":"[1]Personnel!G131","v":0}]
[0,{"$f":"IFERROR(INDEX(Settings!$AP$17:$AP$38,MATCH(Personnel!$G132,Settings!$AQ$17:$AQ$38,0)),0)","v":0},null,null,null,{"$f":"[1]Personnel!F132","v":0},{"$f":"IFERROR(INDEX((SLevel),MATCH(Personnel!BA132,SLevel202223,0)),0)","v":0},{"$f":"[1]Personnel!H132","v":0},{"$f":"[1]Personnel!I132","v":0},{"$f":"[1]Personnel!J132","v":0},{"$f":"[1]Personnel!P132","v":0},{"$f":"[1]Personnel!Q132","v":0},0,{"$f":"[1]Personnel!S132","v":0},{"$f":"[1]Personnel!S132","v":0},{"$f":"[1]Personnel!S132","v":0},{"$f":"[1]Personnel!T132","v":0},0,{"$f":"[1]Personnel!V132","v":0},{"$f":"[1]Personnel!W132","v":0},0,{"$f":"[1]Personnel!Y132","v":0},{"$f":"[1]Personnel!Z132","v":0},0,0,0,0,null,null,null,null,null,null,null,null,null,null,null,null,null,null,null,null,null,null,null,null,null,null,null,null,null,{"$f":"[1]Personnel!G132","v":0}]
[0,{"$f":"IFERROR(INDEX(Settings!$AP$17:$AP$38,MATCH(Personnel!$G133,Settings!$AQ$17:$AQ$38,0)),0)","v":0},null,null,null,{"$f":"[1]Personnel!F133","v":0},{"$f":"IFERROR(INDEX((SLevel),MATCH(Personnel!BA133,SLevel202223,0)),0)","v":0},{"$f":"[1]Personnel!H133","v":0},{"$f":"[1]Personnel!I133","v":0},{"$f":"[1]Personnel!J133","v":0},{"$f":"[1]Personnel!P133","v":0},{"$f":"[1]Personnel!Q133","v":0},0,{"$f":"[1]Personnel!S133","v":0},{"$f":"[1]Personnel!S133","v":0},{"$f":"[1]Personnel!S133","v":0},{"$f":"[1]Personnel!T133","v":0},0,{"$f":"[1]Personnel!V133","v":0},{"$f":"[1]Personnel!W133","v":0},0,{"$f":"[1]Personnel!Y133","v":0},{"$f":"[1]Personnel!Z133","v":0},0,0,0,0,null,null,null,null,null,null,null,null,null,null,null,null,null,null,null,null,null,null,null,null,null,null,null,null,null,{"$f":"[1]Personnel!G133","v":0}]
[0,{"$f":"IFERROR(INDEX(Settings!$AP$17:$AP$38,MATCH(Personnel!$G134,Settings!$AQ$17:$AQ$38,0)),0)","v":0},null,null,null,{"$f":"[1]Personnel!F134","v":0},{"$f":"IFERROR(INDEX((SLevel),MATCH(Personnel!BA134,SLevel202223,0)),0)","v":0},{"$f":"[1]Personnel!H134","v":0},{"$f":"[1]Personnel!I134","v":0},{"$f":"[1]Personnel!J134","v":0},{"$f":"[1]Personnel!P134","v":0},{"$f":"[1]Personnel!Q134","v":0},0,{"$f":"[1]Personnel!S134","v":0},{"$f":"[1]Personnel!S134","v":0},{"$f":"[1]Personnel!S134","v":0},{"$f":"[1]Personnel!T134","v":0},0,{"$f":"[1]Personnel!V134","v":0},{"$f":"[1]Personnel!W134","v":0},0,{"$f":"[1]Personnel!Y134","v":0},{"$f":"[1]Personnel!Z134","v":0},0,0,0,0,null,null,null,null,null,null,null,null,null,null,null,null,null,null,null,null,null,null,null,null,null,null,null,null,null,{"$f":"[1]Personnel!G134","v":0}]
[0,{"$f":"IFERROR(INDEX(Settings!$AP$17:$AP$38,MATCH(Personnel!$G135,Settings!$AQ$17:$AQ$38,0)),0)","v":0},null,null,null,{"$f":"[1]Personnel!F135","v":0},{"$f":"IFERROR(INDEX((SLevel),MATCH(Personnel!BA135,SLevel202223,0)),0)","v":0},{"$f":"[1]Personnel!H135","v":0},{"$f":"[1]Personnel!I135","v":0},{"$f":"[1]Personnel!J135","v":0},{"$f":"[1]Personnel!P135","v":0},{"$f":"[1]Personnel!Q135","v":0},0,{"$f":"[1]Personnel!S135","v":0},{"$f":"[1]Personnel!S135","v":0},{"$f":"[1]Personnel!S135","v":0},{"$f":"[1]Personnel!T135","v":0},0,{"$f":"[1]Personnel!V135","v":0},{"$f":"[1]Personnel!W135","v":0},0,{"$f":"[1]Personnel!Y135","v":0},{"$f":"[1]Personnel!Z135","v":0},0,0,0,0,null,null,null,null,null,null,null,null,null,null,null,null,null,null,null,null,null,null,null,null,null,null,null,null,null,{"$f":"[1]Personnel!G135","v":0}]
[0,{"$f":"IFERROR(INDEX(Settings!$AP$17:$AP$38,MATCH(Personnel!$G136,Settings!$AQ$17:$AQ$38,0)),0)","v":0},null,null,null,{"$f":"[1]Personnel!F136","v":0},{"$f":"IFERROR(INDEX((SLevel),MATCH(Personnel!BA136,SLevel202223,0)),0)","v":0},{"$f":"[1]Personnel!H136","v":0},{"$f":"[1]Personnel!I136","v":0},{"$f":"[1]Personnel!J136","v":0},{"$f":"[1]Personnel!P136","v":0},{"$f":"[1]Personnel!Q136","v":0},0,{"$f":"[1]Personnel!S136","v":0},{"$f":"[1]Personnel!S136","v":0},{"$f":"[1]Personnel!S136","v":0},{"$f":"[1]Personnel!T136","v":0},0,{"$f":"[1]Personnel!V136","v":0},{"$f":"[1]Personnel!W136","v":0},0,{"$f":"[1]Personnel!Y136","v":0},{"$f":"[1]Personnel!Z136","v":0},0,0,0,0,null,null,null,null,null,null,null,null,null,null,null,null,null,null,null,null,null,null,null,null,null,null,null,null,null,{"$f":"[1]Personnel!G136","v":0}]
[0,{"$f":"IFERROR(INDEX(Settings!$AP$17:$AP$38,MATCH(Personnel!$G137,Settings!$AQ$17:$AQ$38,0)),0)","v":0},null,null,null,{"$f":"[1]Personnel!F137","v":0},{"$f":"IFERROR(INDEX((SLevel),MATCH(Personnel!BA137,SLevel202223,0)),0)","v":0},{"$f":"[1]Personnel!H137","v":0},{"$f":"[1]Personnel!I137","v":0},{"$f":"[1]Personnel!J137","v":0},{"$f":"[1]Personnel!P137","v":0},{"$f":"[1]Personnel!Q137","v":0},0,{"$f":"[1]Personnel!S137","v":0},{"$f":"[1]Personnel!S137","v":0},{"$f":"[1]Personnel!S137","v":0},{"$f":"[1]Personnel!T137","v":0},0,{"$f":"[1]Personnel!V137","v":0},{"$f":"[1]Personnel!W137","v":0},0,{"$f":"[1]Personnel!Y137","v":0},{"$f":"[1]Personnel!Z137","v":0},0,0,0,0,null,null,null,null,null,null,null,null,null,null,null,null,null,null,null,null,null,null,null,null,null,null,null,null,null,{"$f":"[1]Personnel!G137","v":0}]
[0,{"$f":"IFERROR(INDEX(Settings!$AP$17:$AP$38,MATCH(Personnel!$G138,Settings!$AQ$17:$AQ$38,0)),0)","v":0},null,null,null,{"$f":"[1]Personnel!F138","v":0},{"$f":"IFERROR(INDEX((SLevel),MATCH(Personnel!BA138,SLevel202223,0)),0)","v":0},{"$f":"[1]Personnel!H138","v":0},{"$f":"[1]Personnel!I138","v":0},{"$f":"[1]Personnel!J138","v":0},{"$f":"[1]Personnel!P138","v":0},{"$f":"[1]Personnel!Q138","v":0},0,{"$f":"[1]Personnel!S138","v":0},{"$f":"[1]Personnel!S138","v":0},{"$f":"[1]Personnel!S138","v":0},{"$f":"[1]Personnel!T138","v":0},0,{"$f":"[1]Personnel!V138","v":0},{"$f":"[1]Personnel!W138","v":0},0,{"$f":"[1]Personnel!Y138","v":0},{"$f":"[1]Personnel!Z138","v":0},0,0,0,0,null,null,null,null,null,null,null,null,null,null,null,null,null,null,null,null,null,null,null,null,null,null,null,null,null,{"$f":"[1]Personnel!G138","v":0}]
[0,{"$f":"IFERROR(INDEX(Settings!$AP$17:$AP$38,MATCH(Personnel!$G139,Settings!$AQ$17:$AQ$38,0)),0)","v":0},null,null,null,{"$f":"[1]Personnel!F139","v":0},{"$f":"IFERROR(INDEX((SLevel),MATCH(Personnel!BA139,SLevel202223,0)),0)","v":0},{"$f":"[1]Personnel!H139","v":0},{"$f":"[1]Personnel!I139","v":0},{"$f":"[1]Personnel!J139","v":0},{"$f":"[1]Personnel!P139","v":0},{"$f":"[1]Personnel!Q139","v":0},0,{"$f":"[1]Personnel!S139","v":0},{"$f":"[1]Personnel!S139","v":0},{"$f":"[1]Personnel!S139","v":0},{"$f":"[1]Personnel!T139","v":0},0,{"$f":"[1]Personnel!V139","v":0},{"$f":"[1]Personnel!W139","v":0},0,{"$f":"[1]Personnel!Y139","v":0},{"$f":"[1]Personnel!Z139","v":0},0,0,0,0,null,null,null,null,null,null,null,null,null,null,null,null,null,null,null,null,null,null,null,null,null,null,null,null,null,{"$f":"[1]Personnel!G139","v":0}]
[{"$f":"IF(SUM(K140:AA140)>0,1,0)","v":0},{"$f":"IFERROR(INDEX(Settings!$AP$17:$AP$38,MATCH(Personnel!$G140,Settings!$AQ$17:$AQ$38,0)),0)","v":0},null,null,null,{"$f":"[1]Personnel!F140","v":0},{"$f":"IFERROR(INDEX((SLevel),MATCH(Personnel!BA140,SLevel202223,0)),0)","v":0},{"$f":"[1]Personnel!H140","v":0},{"$f":"[1]Personnel!I140","v":0},{"$f":"[1]Personnel!J140","v":0},{"$f":"[1]Personnel!P140","v":0},{"$f":"[1]Personnel!Q140","v":0},0,{"$f":"[1]Personnel!S140","v":0},{"$f":"[1]Personnel!S140","v":0},{"$f":"[1]Personnel!S140","v":0},{"$f":"[1]Personnel!T140","v":0},0,{"$f":"[1]Personnel!V140","v":0},{"$f":"[1]Personnel!W140","v":0},0,{"$f":"[1]Personnel!Y140","v":0},{"$f":"[1]Personnel!Z140","v":0},0,0,0,0,null,null,null,null,null,null,null,null,null,null,null,null,null,null,null,null,null,null,null,null,null,null,null,null,null,{"$f":"[1]Personnel!G140","v":0}]
[0,{"$f":"IFERROR(INDEX(Settings!$AP$17:$AP$38,MATCH(Personnel!$G141,Settings!$AQ$17:$AQ$38,0)),0)","v":0},null,null,null,{"$f":"[1]Personnel!F141","v":0},{"$f":"IFERROR(INDEX((SLevel),MATCH(Personnel!BA141,SLevel202223,0)),0)","v":0},{"$f":"[1]Personnel!H141","v":0},{"$f":"[1]Personnel!I141","v":0},{"$f":"[1]Personnel!J141","v":0},{"$f":"[1]Personnel!P141","v":0},{"$f":"[1]Personnel!Q141","v":0},{"$f":"ROUND(IF(ISERROR(L141/K141),0,(L141/K141)),0)","v":0},{"$f":"[1]Personnel!S141","v":0},{"$f":"[1]Personnel!S141","v":0},{"$f":"[1]Personnel!S141","v":0},{"$f":"[1]Personnel!T141","v":0},{"$f":"ROUND(IF(ISERROR(Q141/P141),0,(Q141/P141)),0)","v":0},{"$f":"[1]Personnel!V141","v":0},{"$f":"[1]Personnel!W141","v":0},{"$f":"ROUND(IF(ISERROR(T141/S141),0,(T141/S141)),0)","v":0},{"$f":"[1]Personnel!Y141","v":0},{"$f":"[1]Personnel!Z141","v":0},{"$f":"ROUND(IF(ISERROR(W141/V141),0,(W141/V141)),0)","v":0},0,0,{"$f":"ROUND(IF(ISERROR(Z141/Y141),0,(Z141/Y141)),0)","v":0},null,null,null,null,null,null,null,null,null,null,null,null,null,null,null,null,null,null,null,null,null,null,null,null,null,{"$f":"[1]Personnel!G141","v":0}]
[0,{"$f":"IFERROR(INDEX(Settings!$AP$17:$AP$38,MATCH(Personnel!$G142,Settings!$AQ$17:$AQ$38,0)),0)","v":0},null,null,null,{"$f":"[1]Personnel!F142","v":0},{"$f":"IFERROR(INDEX((SLevel),MATCH(Personnel!BA142,SLevel202223,0)),0)","v":0},{"$f":"[1]Personnel!H142","v":0},{"$f":"[1]Personnel!I142","v":0},{"$f":"[1]Personnel!J142","v":0},{"$f":"[1]Personnel!P142","v":0},{"$f":"[1]Personnel!Q142","v":0},0,{"$f":"[1]Personnel!S142","v":0},{"$f":"[1]Personnel!S142","v":0},{"$f":"[1]Personnel!S142","v":0},{"$f":"[1]Personnel!T142","v":0},0,{"$f":"[1]Personnel!V142","v":0},{"$f":"[1]Personnel!W142","v":0},0,{"$f":"[1]Personnel!Y142","v":0},{"$f":"[1]Personnel!Z142","v":0},0,0,0,0,null,null,null,null,null,null,null,null,null,null,null,null,null,null,null,null,null,null,null,null,null,null,null,null,null,{"$f":"[1]Personnel!G142","v":0}]
[0,{"$f":"IFERROR(INDEX(Settings!$AP$17:$AP$38,MATCH(Personnel!$G143,Settings!$AQ$17:$AQ$38,0)),0)","v":0},null,null,null,{"$f":"[1]Personnel!F143","v":0},{"$f":"IFERROR(INDEX((SLevel),MATCH(Personnel!BA143,SLevel202223,0)),0)","v":0},{"$f":"[1]Personnel!H143","v":0},{"$f":"[1]Personnel!I143","v":0},{"$f":"[1]Personnel!J143","v":0},{"$f":"[1]Personnel!P143","v":0},{"$f":"[1]Personnel!Q143","v":0},0,{"$f":"[1]Personnel!S143","v":0},{"$f":"[1]Personnel!S143","v":0},{"$f":"[1]Personnel!S143","v":0},{"$f":"[1]Personnel!T143","v":0},0,{"$f":"[1]Personnel!V143","v":0},{"$f":"[1]Personnel!W143","v":0},0,{"$f":"[1]Personnel!Y143","v":0},{"$f":"[1]Personnel!Z143","v":0},0,0,0,0,null,null,null,null,null,null,null,null,null,null,null,null,null,null,null,null,null,null,null,null,null,null,null,null,null,{"$f":"[1]Personnel!G143","v":0}]
[0,{"$f":"IFERROR(INDEX(Settings!$AP$17:$AP$38,MATCH(Personnel!$G144,Settings!$AQ$17:$AQ$38,0)),0)","v":0},null,null,null,{"$f":"[1]Personnel!F144","v":0},{"$f":"IFERROR(INDEX((SLevel),MATCH(Personnel!BA144,SLevel202223,0)),0)","v":0},{"$f":"[1]Personnel!H144","v":0},{"$f":"[1]Personnel!I144","v":0},{"$f":"[1]Personnel!J144","v":0},{"$f":"[1]Personnel!P144","v":0},{"$f":"[1]Personnel!Q144","v":0},0,{"$f":"[1]Personnel!S144","v":0},{"$f":"[1]Personnel!S144","v":0},{"$f":"[1]Personnel!S144","v":0},{"$f":"[1]Personnel!T144","v":0},0,{"$f":"[1]Personnel!V144","v":0},{"$f":"[1]Personnel!W144","v":0},0,{"$f":"[1]Personnel!Y144","v":0},{"$f":"[1]Personnel!Z144","v":0},0,0,0,0,null,null,null,null,null,null,null,null,null,null,null,null,null,null,null,null,null,null,null,null,null,null,null,null,null,{"$f":"[1]Personnel!G144","v":0}]
[0,{"$f":"IFERROR(INDEX(Settings!$AP$17:$AP$38,MATCH(Personnel!$G145,Settings!$AQ$17:$AQ$38,0)),0)","v":0},null,null,null,{"$f":"[1]Personnel!F145","v":0},{"$f":"IFERROR(INDEX((SLevel),MATCH(Personnel!BA145,SLevel202223,0)),0)","v":0},{"$f":"[1]Personnel!H145","v":0},{"$f":"[1]Personnel!I145","v":0},{"$f":"[1]Personnel!J145","v":0},{"$f":"[1]Personnel!P145","v":0},{"$f":"[1]Personnel!Q145","v":0},0,{"$f":"[1]Personnel!S145","v":0},{"$f":"[1]Personnel!S145","v":0},{"$f":"[1]Personnel!S145","v":0},{"$f":"[1]Personnel!T145","v":0},0,{"$f":"[1]Personnel!V145","v":0},{"$f":"[1]Personnel!W145","v":0},0,{"$f":"[1]Personnel!Y145","v":0},{"$f":"[1]Personnel!Z145","v":0},0,0,0,0,null,null,null,null,null,null,null,null,null,null,null,null,null,null,null,null,null,null,null,null,null,null,null,null,null,{"$f":"[1]Personnel!G145","v":0}]
[0,{"$f":"IFERROR(INDEX(Settings!$AP$17:$AP$38,MATCH(Personnel!$G146,Settings!$AQ$17:$AQ$38,0)),0)","v":0},null,null,null,{"$f":"[1]Personnel!F146","v":0},{"$f":"IFERROR(INDEX((SLevel),MATCH(Personnel!BA146,SLevel202223,0)),0)","v":0},{"$f":"[1]Personnel!H146","v":0},{"$f":"[1]Personnel!I146","v":0},{"$f":"[1]Personnel!J146","v":0},{"$f":"[1]Personnel!P146","v":0},{"$f":"[1]Personnel!Q146","v":0},0,{"$f":"[1]Personnel!S146","v":0},{"$f":"[1]Personnel!S146","v":0},{"$f":"[1]Personnel!S146","v":0},{"$f":"[1]Personnel!T146","v":0},0,{"$f":"[1]Personnel!V146","v":0},{"$f":"[1]Personnel!W146","v":0},0,{"$f":"[1]Personnel!Y146","v":0},{"$f":"[1]Personnel!Z146","v":0},0,0,0,0,null,null,null,null,null,null,null,null,null,null,null,null,null,null,null,null,null,null,null,null,null,null,null,null,null,{"$f":"[1]Personnel!G146","v":0}]
[0,{"$f":"IFERROR(INDEX(Settings!$AP$17:$AP$38,MATCH(Personnel!$G147,Settings!$AQ$17:$AQ$38,0)),0)","v":0},null,null,null,{"$f":"[1]Personnel!F147","v":0},{"$f":"IFERROR(INDEX((SLevel),MATCH(Personnel!BA147,SLevel202223,0)),0)","v":0},{"$f":"[1]Personnel!H147","v":0},{"$f":"[1]Personnel!I147","v":0},{"$f":"[1]Personnel!J147","v":0},{"$f":"[1]Personnel!P147","v":0},{"$f":"[1]Personnel!Q147","v":0},0,{"$f":"[1]Personnel!S147","v":0},{"$f":"[1]Personnel!S147","v":0},{"$f":"[1]Personnel!S147","v":0},{"$f":"[1]Personnel!T147","v":0},0,{"$f":"[1]Personnel!V147","v":0},{"$f":"[1]Personnel!W147","v":0},0,{"$f":"[1]Personnel!Y147","v":0},{"$f":"[1]Personnel!Z147","v":0},0,0,0,0,null,null,null,null,null,null,null,null,null,null,null,null,null,null,null,null,null,null,null,null,null,null,null,null,null,{"$f":"[1]Personnel!G147","v":0}]
[0,{"$f":"IFERROR(INDEX(Settings!$AP$17:$AP$38,MATCH(Personnel!$G148,Settings!$AQ$17:$AQ$38,0)),0)","v":0},null,null,null,{"$f":"[1]Personnel!F148","v":0},{"$f":"IFERROR(INDEX((SLevel),MATCH(Personnel!BA148,SLevel202223,0)),0)","v":0},{"$f":"[1]Personnel!H148","v":0},{"$f":"[1]Personnel!I148","v":0},{"$f":"[1]Personnel!J148","v":0},{"$f":"[1]Personnel!P148","v":0},{"$f":"[1]Personnel!Q148","v":0},0,{"$f":"[1]Personnel!S148","v":0},{"$f":"[1]Personnel!S148","v":0},{"$f":"[1]Personnel!S148","v":0},{"$f":"[1]Personnel!T148","v":0},0,{"$f":"[1]Personnel!V148","v":0},{"$f":"[1]Personnel!W148","v":0},0,{"$f":"[1]Personnel!Y148","v":0},{"$f":"[1]Personnel!Z148","v":0},0,0,0,0,null,null,null,null,null,null,null,null,null,null,null,null,null,null,null,null,null,null,null,null,null,null,null,null,null,{"$f":"[1]Personnel!G148","v":0}]
[0,{"$f":"IFERROR(INDEX(Settings!$AP$17:$AP$38,MATCH(Personnel!$G149,Settings!$AQ$17:$AQ$38,0)),0)","v":0},null,null,null,{"$f":"[1]Personnel!F149","v":0},{"$f":"IFERROR(INDEX((SLevel),MATCH(Personnel!BA149,SLevel202223,0)),0)","v":0},{"$f":"[1]Personnel!H149","v":0},{"$f":"[1]Personnel!I149","v":0},{"$f":"[1]Personnel!J149","v":0},{"$f":"[1]Personnel!P149","v":0},{"$f":"[1]Personnel!Q149","v":0},0,{"$f":"[1]Personnel!S149","v":0},{"$f":"[1]Personnel!S149","v":0},{"$f":"[1]Personnel!S149","v":0},{"$f":"[1]Personnel!T149","v":0},0,{"$f":"[1]Personnel!V149","v":0},{"$f":"[1]Personnel!W149","v":0},0,{"$f":"[1]Personnel!Y149","v":0},{"$f":"[1]Personnel!Z149","v":0},0,0,0,0,null,null,null,null,null,null,null,null,null,null,null,null,null,null,null,null,null,null,null,null,null,null,null,null,null,{"$f":"[1]Personnel!G149","v":0}]
[0,{"$f":"IFERROR(INDEX(Settings!$AP$17:$AP$38,MATCH(Personnel!$G150,Settings!$AQ$17:$AQ$38,0)),0)","v":0},null,null,null,{"$f":"[1]Personnel!F150","v":0},{"$f":"IFERROR(INDEX((SLevel),MATCH(Personnel!BA150,SLevel202223,0)),0)","v":0},{"$f":"[1]Personnel!H150","v":0},{"$f":"[1]Personnel!I150","v":0},{"$f":"[1]Personnel!J150","v":0},{"$f":"[1]Personnel!P150","v":0},{"$f":"[1]Personnel!Q150","v":0},0,{"$f":"[1]Personnel!S150","v":0},{"$f":"[1]Personnel!S150","v":0},{"$f":"[1]Personnel!S150","v":0},{"$f":"[1]Personnel!T150","v":0},0,{"$f":"[1]Personnel!V150","v":0},{"$f":"[1]Personnel!W150","v":0},0,{"$f":"[1]Personnel!Y150","v":0},{"$f":"[1]Personnel!Z150","v":0},0,0,0,0,null,null,null,null,null,null,null,null,null,null,null,null,null,null,null,null,null,null,null,null,null,null,null,null,null,{"$f":"[1]Personnel!G150","v":0}]
[0,{"$f":"IFERROR(INDEX(Settings!$AP$17:$AP$38,MATCH(Personnel!$G151,Settings!$AQ$17:$AQ$38,0)),0)","v":0},null,null,null,{"$f":"[1]Personnel!F151","v":0},{"$f":"IFERROR(INDEX((SLevel),MATCH(Personnel!BA151,SLevel202223,0)),0)","v":0},{"$f":"[1]Personnel!H151","v":0},{"$f":"[1]Personnel!I151","v":0},{"$f":"[1]Personnel!J151","v":0},{"$f":"[1]Personnel!P151","v":0},{"$f":"[1]Personnel!Q151","v":0},0,{"$f":"[1]Personnel!S151","v":0},{"$f":"[1]Personnel!S151","v":0},{"$f":"[1]Personnel!S151","v":0},{"$f":"[1]Personnel!T151","v":0},0,{"$f":"[1]Personnel!V151","v":0},{"$f":"[1]Personnel!W151","v":0},0,{"$f":"[1]Personnel!Y151","v":0},{"$f":"[1]Personnel!Z151","v":0},0,0,0,0,null,null,null,null,null,null,null,null,null,null,null,null,null,null,null,null,null,null,null,null,null,null,null,null,null,{"$f":"[1]Personnel!G151","v":0}]
[0,{"$f":"IFERROR(INDEX(Settings!$AP$17:$AP$38,MATCH(Personnel!$G152,Settings!$AQ$17:$AQ$38,0)),0)","v":0},null,null,null,{"$f":"[1]Personnel!F152","v":0},{"$f":"IFERROR(INDEX((SLevel),MATCH(Personnel!BA152,SLevel202223,0)),0)","v":0},{"$f":"[1]Personnel!H152","v":0},{"$f":"[1]Personnel!I152","v":0},{"$f":"[1]Personnel!J152","v":0},{"$f":"[1]Personnel!P152","v":0},{"$f":"[1]Personnel!Q152","v":0},0,{"$f":"[1]Personnel!S152","v":0},{"$f":"[1]Personnel!S152","v":0},{"$f":"[1]Personnel!S152","v":0},{"$f":"[1]Personnel!T152","v":0},0,{"$f":"[1]Personnel!V152","v":0},{"$f":"[1]Personnel!W152","v":0},0,{"$f":"[1]Personnel!Y152","v":0},{"$f":"[1]Personnel!Z152","v":0},0,0,0,0,null,null,null,null,null,null,null,null,null,null,null,null,null,null,null,null,null,null,null,null,null,null,null,null,null,{"$f":"[1]Personnel!G152","v":0}]
[0,{"$f":"IFERROR(INDEX(Settings!$AP$17:$AP$38,MATCH(Personnel!$G153,Settings!$AQ$17:$AQ$38,0)),0)","v":0},null,null,null,{"$f":"[1]Personnel!F153","v":0},{"$f":"IFERROR(INDEX((SLevel),MATCH(Personnel!BA153,SLevel202223,0)),0)","v":0},{"$f":"[1]Personnel!H153","v":0},{"$f":"[1]Personnel!I153","v":0},{"$f":"[1]Personnel!J153","v":0},{"$f":"[1]Personnel!P153","v":0},{"$f":"[1]Personnel!Q153","v":0},0,{"$f":"[1]Personnel!S153","v":0},{"$f":"[1]Personnel!S153","v":0},{"$f":"[1]Personnel!S153","v":0},{"$f":"[1]Personnel!T153","v":0},0,{"$f":"[1]Personnel!V153","v":0},{"$f":"[1]Personnel!W153","v":0},0,{"$f":"[1]Personnel!Y153","v":0},{"$f":"[1]Personnel!Z153","v":0},0,0,0,0,null,null,null,null,null,null,null,null,null,null,null,null,null,null,null,null,null,null,null,null,null,null,null,null,null,{"$f":"[1]Personnel!G153","v":0}]
[0,{"$f":"IFERROR(INDEX(Settings!$AP$17:$AP$38,MATCH(Personnel!$G154,Settings!$AQ$17:$AQ$38,0)),0)","v":0},null,null,null,{"$f":"[1]Personnel!F154","v":0},{"$f":"IFERROR(INDEX((SLevel),MATCH(Personnel!BA154,SLevel202223,0)),0)","v":0},{"$f":"[1]Personnel!H154","v":0},{"$f":"[1]Personnel!I154","v":0},{"$f":"[1]Personnel!J154","v":0},{"$f":"[1]Personnel!P154","v":0},{"$f":"[1]Personnel!Q154","v":0},0,{"$f":"[1]Personnel!S154","v":0},{"$f":"[1]Personnel!S154","v":0},{"$f":"[1]Personnel!S154","v":0},{"$f":"[1]Personnel!T154","v":0},0,{"$f":"[1]Personnel!V154","v":0},{"$f":"[1]Personnel!W154","v":0},0,{"$f":"[1]Personnel!Y154","v":0},{"$f":"[1]Personnel!Z154","v":0},0,0,0,0,null,null,null,null,null,null,null,null,null,null,null,null,null,null,null,null,null,null,null,null,null,null,null,null,null,{"$f":"[1]Personnel!G154","v":0}]
[0,{"$f":"IFERROR(INDEX(Settings!$AP$17:$AP$38,MATCH(Personnel!$G155,Settings!$AQ$17:$AQ$38,0)),0)","v":0},null,null,null,{"$f":"[1]Personnel!F155","v":0},{"$f":"IFERROR(INDEX((SLevel),MATCH(Personnel!BA155,SLevel202223,0)),0)","v":0},{"$f":"[1]Personnel!H155","v":0},{"$f":"[1]Personnel!I155","v":0},{"$f":"[1]Personnel!J155","v":0},{"$f":"[1]Personnel!P155","v":0},{"$f":"[1]Personnel!Q155","v":0},0,{"$f":"[1]Personnel!S155","v":0},{"$f":"[1]Personnel!S155","v":0},{"$f":"[1]Personnel!S155","v":0},{"$f":"[1]Personnel!T155","v":0},0,{"$f":"[1]Personnel!V155","v":0},{"$f":"[1]Personnel!W155","v":0},0,{"$f":"[1]Personnel!Y155","v":0},{"$f":"[1]Personnel!Z155","v":0},0,0,0,0,null,null,null,null,null,null,null,null,null,null,null,null,null,null,null,null,null,null,null,null,null,null,null,null,null,{"$f":"[1]Personnel!G155","v":0}]
[0,{"$f":"IFERROR(INDEX(Settings!$AP$17:$AP$38,MATCH(Personnel!$G156,Settings!$AQ$17:$AQ$38,0)),0)","v":0},null,null,null,{"$f":"[1]Personnel!F156","v":0},{"$f":"IFERROR(INDEX((SLevel),MATCH(Personnel!BA156,SLevel202223,0)),0)","v":0},{"$f":"[1]Personnel!H156","v":0},{"$f":"[1]Personnel!I156","v":0},{"$f":"[1]Personnel!J156","v":0},{"$f":"[1]Personnel!P156","v":0},{"$f":"[1]Personnel!Q156","v":0},0,{"$f":"[1]Personnel!S156","v":0},{"$f":"[1]Personnel!S156","v":0},{"$f":"[1]Personnel!S156","v":0},{"$f":"[1]Personnel!T156","v":0},0,{"$f":"[1]Personnel!V156","v":0},{"$f":"[1]Personnel!W156","v":0},0,{"$f":"[1]Personnel!Y156","v":0},{"$f":"[1]Personnel!Z156","v":0},0,0,0,0,null,null,null,null,null,null,null,null,null,null,null,null,null,null,null,null,null,null,null,null,null,null,null,null,null,{"$f":"[1]Personnel!G156","v":0}]
[0,{"$f":"IFERROR(INDEX(Settings!$AP$17:$AP$38,MATCH(Personnel!$G157,Settings!$AQ$17:$AQ$38,0)),0)","v":0},null,null,null,{"$f":"[1]Personnel!F157","v":0},{"$f":"IFERROR(INDEX((SLevel),MATCH(Personnel!BA157,SLevel202223,0)),0)","v":0},{"$f":"[1]Personnel!H157","v":0},{"$f":"[1]Personnel!I157","v":0},{"$f":"[1]Personnel!J157","v":0},{"$f":"[1]Personnel!P157","v":0},{"$f":"[1]Personnel!Q157","v":0},0,{"$f":"[1]Personnel!S157","v":0},{"$f":"[1]Personnel!S157","v":0},{"$f":"[1]Personnel!S157","v":0},{"$f":"[1]Personnel!T157","v":0},0,{"$f":"[1]Personnel!V157","v":0},{"$f":"[1]Personnel!W157","v":0},0,{"$f":"[1]Personnel!Y157","v":0},{"$f":"[1]Personnel!Z157","v":0},0,0,0,0,null,null,null,null,null,null,null,null,null,null,null,null,null,null,null,null,null,null,null,null,null,null,null,null,null,{"$f":"[1]Personnel!G157","v":0}]
[0,{"$f":"IFERROR(INDEX(Settings!$AP$17:$AP$38,MATCH(Personnel!$G158,Settings!$AQ$17:$AQ$38,0)),0)","v":0},null,null,null,{"$f":"[1]Personnel!F158","v":0},{"$f":"IFERROR(INDEX((SLevel),MATCH(Personnel!BA158,SLevel202223,0)),0)","v":0},{"$f":"[1]Personnel!H158","v":0},{"$f":"[1]Personnel!I158","v":0},{"$f":"[1]Personnel!J158","v":0},{"$f":"[1]Personnel!P158","v":0},{"$f":"[1]Personnel!Q158","v":0},0,{"$f":"[1]Personnel!S158","v":0},{"$f":"[1]Personnel!S158","v":0},{"$f":"[1]Personnel!S158","v":0},{"$f":"[1]Personnel!T158","v":0},0,{"$f":"[1]Personnel!V158","v":0},{"$f":"[1]Personnel!W158","v":0},0,{"$f":"[1]Personnel!Y158","v":0},{"$f":"[1]Personnel!Z158","v":0},0,0,0,0,null,null,null,null,null,null,null,null,null,null,null,null,null,null,null,null,null,null,null,null,null,null,null,null,null,{"$f":"[1]Personnel!G158","v":0}]
[0,{"$f":"IFERROR(INDEX(Settings!$AP$17:$AP$38,MATCH(Personnel!$G159,Settings!$AQ$17:$AQ$38,0)),0)","v":0},null,null,null,{"$f":"[1]Personnel!F159","v":0},{"$f":"IFERROR(INDEX((SLevel),MATCH(Personnel!BA159,SLevel202223,0)),0)","v":0},{"$f":"[1]Personnel!H159","v":0},{"$f":"[1]Personnel!I159","v":0},{"$f":"[1]Personnel!J159","v":0},{"$f":"[1]Personnel!P159","v":0},{"$f":"[1]Personnel!Q159","v":0},0,{"$f":"[1]Personnel!S159","v":0},{"$f":"[1]Personnel!S159","v":0},{"$f":"[1]Personnel!S159","v":0},{"$f":"[1]Personnel!T159","v":0},0,{"$f":"[1]Personnel!V159","v":0},{"$f":"[1]Personnel!W159","v":0},0,{"$f":"[1]Personnel!Y159","v":0},{"$f":"[1]Personnel!Z159","v":0},0,0,0,0,null,null,null,null,null,null,null,null,null,null,null,null,null,null,null,null,null,null,null,null,null,null,null,null,null,{"$f":"[1]Personnel!G159","v":0}]
[0,{"$f":"IFERROR(INDEX(Settings!$AP$17:$AP$38,MATCH(Personnel!$G160,Settings!$AQ$17:$AQ$38,0)),0)","v":0},null,null,null,{"$f":"[1]Personnel!F160","v":0},{"$f":"IFERROR(INDEX((SLevel),MATCH(Personnel!BA160,SLevel202223,0)),0)","v":0},{"$f":"[1]Personnel!H160","v":0},{"$f":"[1]Personnel!I160","v":0},{"$f":"[1]Personnel!J160","v":0},{"$f":"[1]Personnel!P160","v":0},{"$f":"[1]Personnel!Q160","v":0},0,{"$f":"[1]Personnel!S160","v":0},{"$f":"[1]Personnel!S160","v":0},{"$f":"[1]Personnel!S160","v":0},{"$f":"[1]Personnel!T160","v":0},0,{"$f":"[1]Personnel!V160","v":0},{"$f":"[1]Personnel!W160","v":0},0,{"$f":"[1]Personnel!Y160","v":0},{"$f":"[1]Personnel!Z160","v":0},0,0,0,0,null,null,null,null,null,null,null,null,null,null,null,null,null,null,null,null,null,null,null,null,null,null,null,null,null,{"$f":"[1]Personnel!G160","v":0}]
[0,{"$f":"IFERROR(INDEX(Settings!$AP$17:$AP$38,MATCH(Personnel!$G161,Settings!$AQ$17:$AQ$38,0)),0)","v":0},null,null,null,{"$f":"[1]Personnel!F161","v":0},{"$f":"IFERROR(INDEX((SLevel),MATCH(Personnel!BA161,SLevel202223,0)),0)","v":0},{"$f":"[1]Personnel!H161","v":0},{"$f":"[1]Personnel!I161","v":0},{"$f":"[1]Personnel!J161","v":0},{"$f":"[1]Personnel!P161","v":0},{"$f":"[1]Personnel!Q161","v":0},0,{"$f":"[1]Personnel!S161","v":0},{"$f":"[1]Personnel!S161","v":0},{"$f":"[1]Personnel!S161","v":0},{"$f":"[1]Personnel!T161","v":0},0,{"$f":"[1]Personnel!V161","v":0},{"$f":"[1]Personnel!W161","v":0},0,{"$f":"[1]Personnel!Y161","v":0},{"$f":"[1]Personnel!Z161","v":0},0,0,0,0,null,null,null,null,null,null,null,null,null,null,null,null,null,null,null,null,null,null,null,null,null,null,null,null,null,{"$f":"[1]Personnel!G161","v":0}]
[0,{"$f":"IFERROR(INDEX(Settings!$AP$17:$AP$38,MATCH(Personnel!$G162,Settings!$AQ$17:$AQ$38,0)),0)","v":0},null,null,null,{"$f":"[1]Personnel!F162","v":0},{"$f":"IFERROR(INDEX((SLevel),MATCH(Personnel!BA162,SLevel202223,0)),0)","v":0},{"$f":"[1]Personnel!H162","v":0},{"$f":"[1]Personnel!I162","v":0},{"$f":"[1]Personnel!J162","v":0},{"$f":"[1]Personnel!P162","v":0},{"$f":"[1]Personnel!Q162","v":0},0,{"$f":"[1]Personnel!S162","v":0},{"$f":"[1]Personnel!S162","v":0},{"$f":"[1]Personnel!S162","v":0},{"$f":"[1]Personnel!T162","v":0},0,{"$f":"[1]Personnel!V162","v":0},{"$f":"[1]Personnel!W162","v":0},0,{"$f":"[1]Personnel!Y162","v":0},{"$f":"[1]Personnel!Z162","v":0},0,0,0,0,null,null,null,null,null,null,null,null,null,null,null,null,null,null,null,null,null,null,null,null,null,null,null,null,null,{"$f":"[1]Personnel!G162","v":0}]
[0,{"$f":"IFERROR(INDEX(Settings!$AP$17:$AP$38,MATCH(Personnel!$G163,Settings!$AQ$17:$AQ$38,0)),0)","v":0},null,null,null,{"$f":"[1]Personnel!F163","v":0},{"$f":"IFERROR(INDEX((SLevel),MATCH(Personnel!BA163,SLevel202223,0)),0)","v":0},{"$f":"[1]Personnel!H163","v":0},{"$f":"[1]Personnel!I163","v":0},{"$f":"[1]Personnel!J163","v":0},{"$f":"[1]Personnel!P163","v":0},{"$f":"[1]Personnel!Q163","v":0},0,{"$f":"[1]Personnel!S163","v":0},{"$f":"[1]Personnel!S163","v":0},{"$f":"[1]Personnel!S163","v":0},{"$f":"[1]Personnel!T163","v":0},0,{"$f":"[1]Personnel!V163","v":0},{"$f":"[1]Personnel!W163","v":0},0,{"$f":"[1]Personnel!Y163","v":0},{"$f":"[1]Personnel!Z163","v":0},0,0,0,0,null,null,null,null,null,null,null,null,null,null,null,null,null,null,null,null,null,null,null,null,null,null,null,null,null,{"$f":"[1]Personnel!G163","v":0}]
[0,{"$f":"IFERROR(INDEX(Settings!$AP$17:$AP$38,MATCH(Personnel!$G164,Settings!$AQ$17:$AQ$38,0)),0)","v":0},null,null,null,{"$f":"[1]Personnel!F164","v":0},{"$f":"IFERROR(INDEX((SLevel),MATCH(Personnel!BA164,SLevel202223,0)),0)","v":0},{"$f":"[1]Personnel!H164","v":0},{"$f":"[1]Personnel!I164","v":0},{"$f":"[1]Personnel!J164","v":0},{"$f":"[1]Personnel!P164","v":0},{"$f":"[1]Personnel!Q164","v":0},0,{"$f":"[1]Personnel!S164","v":0},{"$f":"[1]Personnel!S164","v":0},{"$f":"[1]Personnel!S164","v":0},{"$f":"[1]Personnel!T164","v":0},0,{"$f":"[1]Personnel!V164","v":0},{"$f":"[1]Personnel!W164","v":0},0,{"$f":"[1]Personnel!Y164","v":0},{"$f":"[1]Personnel!Z164","v":0},0,0,0,0,null,null,null,null,null,null,null,null,null,null,null,null,null,null,null,null,null,null,null,null,null,null,null,null,null,{"$f":"[1]Personnel!G164","v":0}]
[0,{"$f":"IFERROR(INDEX(Settings!$AP$17:$AP$38,MATCH(Personnel!$G165,Settings!$AQ$17:$AQ$38,0)),0)","v":0},null,null,null,{"$f":"[1]Personnel!F165","v":0},{"$f":"IFERROR(INDEX((SLevel),MATCH(Personnel!BA165,SLevel202223,0)),0)","v":0},{"$f":"[1]Personnel!H165","v":0},{"$f":"[1]Personnel!I165","v":0},{"$f":"[1]Personnel!J165","v":0},{"$f":"[1]Personnel!P165","v":0},{"$f":"[1]Personnel!Q165","v":0},0,{"$f":"[1]Personnel!S165","v":0},{"$f":"[1]Personnel!S165","v":0},{"$f":"[1]Personnel!S165","v":0},{"$f":"[1]Personnel!T165","v":0},0,{"$f":"[1]Personnel!V165","v":0},{"$f":"[1]Personnel!W165","v":0},0,{"$f":"[1]Personnel!Y165","v":0},{"$f":"[1]Personnel!Z165","v":0},0,0,0,0,null,null,null,null,null,null,null,null,null,null,null,null,null,null,null,null,null,null,null,null,null,null,null,null,null,{"$f":"[1]Personnel!G165","v":0}]
[0,{"$f":"IFERROR(INDEX(Settings!$AP$17:$AP$38,MATCH(Personnel!$G166,Settings!$AQ$17:$AQ$38,0)),0)","v":0},null,null,null,{"$f":"[1]Personnel!F166","v":0},{"$f":"IFERROR(INDEX((SLevel),MATCH(Personnel!BA166,SLevel202223,0)),0)","v":0},{"$f":"[1]Personnel!H166","v":0},{"$f":"[1]Personnel!I166","v":0},{"$f":"[1]Personnel!J166","v":0},{"$f":"[1]Personnel!P166","v":0},{"$f":"[1]Personnel!Q166","v":0},0,{"$f":"[1]Personnel!S166","v":0},{"$f":"[1]Personnel!S166","v":0},{"$f":"[1]Personnel!S166","v":0},{"$f":"[1]Personnel!T166","v":0},0,{"$f":"[1]Personnel!V166","v":0},{"$f":"[1]Personnel!W166","v":0},0,{"$f":"[1]Personnel!Y166","v":0},{"$f":"[1]Personnel!Z166","v":0},0,0,0,0,null,null,null,null,null,null,null,null,null,null,null,null,null,null,null,null,null,null,null,null,null,null,null,null,null,{"$f":"[1]Personnel!G166","v":0}]
[0,{"$f":"IFERROR(INDEX(Settings!$AP$17:$AP$38,MATCH(Personnel!$G167,Settings!$AQ$17:$AQ$38,0)),0)","v":0},null,null,null,{"$f":"[1]Personnel!F167","v":0},{"$f":"IFERROR(INDEX((SLevel),MATCH(Personnel!BA167,SLevel202223,0)),0)","v":0},{"$f":"[1]Personnel!H167","v":0},{"$f":"[1]Personnel!I167","v":0},{"$f":"[1]Personnel!J167","v":0},{"$f":"[1]Personnel!P167","v":0},{"$f":"[1]Personnel!Q167","v":0},0,{"$f":"[1]Personnel!S167","v":0},{"$f":"[1]Personnel!S167","v":0},{"$f":"[1]Personnel!S167","v":0},{"$f":"[1]Personnel!T167","v":0},0,{"$f":"[1]Personnel!V167","v":0},{"$f":"[1]Personnel!W167","v":0},0,{"$f":"[1]Personnel!Y167","v":0},{"$f":"[1]Personnel!Z167","v":0},0,0,0,0,null,null,null,null,null,null,null,null,null,null,null,null,null,null,null,null,null,null,null,null,null,null,null,null,null,{"$f":"[1]Personnel!G167","v":0}]
[0,{"$f":"IFERROR(INDEX(Settings!$AP$17:$AP$38,MATCH(Personnel!$G168,Settings!$AQ$17:$AQ$38,0)),0)","v":0},null,null,null,{"$f":"[1]Personnel!F168","v":0},{"$f":"IFERROR(INDEX((SLevel),MATCH(Personnel!BA168,SLevel202223,0)),0)","v":0},{"$f":"[1]Personnel!H168","v":0},{"$f":"[1]Personnel!I168","v":0},{"$f":"[1]Personnel!J168","v":0},{"$f":"[1]Personnel!P168","v":0},{"$f":"[1]Personnel!Q168","v":0},0,{"$f":"[1]Personnel!S168","v":0},{"$f":"[1]Personnel!S168","v":0},{"$f":"[1]Personnel!S168","v":0},{"$f":"[1]Personnel!T168","v":0},0,{"$f":"[1]Personnel!V168","v":0},{"$f":"[1]Personnel!W168","v":0},0,{"$f":"[1]Personnel!Y168","v":0},{"$f":"[1]Personnel!Z168","v":0},0,0,0,0,null,null,null,null,null,null,null,null,null,null,null,null,null,null,null,null,null,null,null,null,null,null,null,null,null,{"$f":"[1]Personnel!G168","v":0}]
[0,{"$f":"IFERROR(INDEX(Settings!$AP$17:$AP$38,MATCH(Personnel!$G169,Settings!$AQ$17:$AQ$38,0)),0)","v":0},null,null,null,{"$f":"[1]Personnel!F169","v":0},{"$f":"IFERROR(INDEX((SLevel),MATCH(Personnel!BA169,SLevel202223,0)),0)","v":0},{"$f":"[1]Personnel!H169","v":0},{"$f":"[1]Personnel!I169","v":0},{"$f":"[1]Personnel!J169","v":0},{"$f":"[1]Personnel!P169","v":0},{"$f":"[1]Personnel!Q169","v":0},0,{"$f":"[1]Personnel!S169","v":0},{"$f":"[1]Personnel!S169","v":0},{"$f":"[1]Personnel!S169","v":0},{"$f":"[1]Personnel!T169","v":0},0,{"$f":"[1]Personnel!V169","v":0},{"$f":"[1]Personnel!W169","v":0},0,{"$f":"[1]Personnel!Y169","v":0},{"$f":"[1]Personnel!Z169","v":0},0,0,0,0,null,null,null,null,null,null,null,null,null,null,null,null,null,null,null,null,null,null,null,null,null,null,null,null,null,{"$f":"[1]Personnel!G169","v":0}]
[0,{"$f":"IFERROR(INDEX(Settings!$AP$17:$AP$38,MATCH(Personnel!$G170,Settings!$AQ$17:$AQ$38,0)),0)","v":0},null,null,null,{"$f":"[1]Personnel!F170","v":0},{"$f":"IFERROR(INDEX((SLevel),MATCH(Personnel!BA170,SLevel202223,0)),0)","v":0},{"$f":"[1]Personnel!H170","v":0},{"$f":"[1]Personnel!I170","v":0},{"$f":"[1]Personnel!J170","v":0},{"$f":"[1]Personnel!P170","v":0},{"$f":"[1]Personnel!Q170","v":0},0,{"$f":"[1]Personnel!S170","v":0},{"$f":"[1]Personnel!S170","v":0},{"$f":"[1]Personnel!S170","v":0},{"$f":"[1]Personnel!T170","v":0},0,{"$f":"[1]Personnel!V170","v":0},{"$f":"[1]Personnel!W170","v":0},0,{"$f":"[1]Personnel!Y170","v":0},{"$f":"[1]Personnel!Z170","v":0},0,0,0,0,null,null,null,null,null,null,null,null,null,null,null,null,null,null,null,null,null,null,null,null,null,null,null,null,null,{"$f":"[1]Personnel!G170","v":0}]
[0,{"$f":"IFERROR(INDEX(Settings!$AP$17:$AP$38,MATCH(Personnel!$G171,Settings!$AQ$17:$AQ$38,0)),0)","v":0},null,null,null,{"$f":"[1]Personnel!F171","v":0},{"$f":"IFERROR(INDEX((SLevel),MATCH(Personnel!BA171,SLevel202223,0)),0)","v":0},{"$f":"[1]Personnel!H171","v":0},{"$f":"[1]Personnel!I171","v":0},{"$f":"[1]Personnel!J171","v":0},{"$f":"[1]Personnel!P171","v":0},{"$f":"[1]Personnel!Q171","v":0},0,{"$f":"[1]Personnel!S171","v":0},{"$f":"[1]Personnel!S171","v":0},{"$f":"[1]Personnel!S171","v":0},{"$f":"[1]Personnel!T171","v":0},0,{"$f":"[1]Personnel!V171","v":0},{"$f":"[1]Personnel!W171","v":0},0,{"$f":"[1]Personnel!Y171","v":0},{"$f":"[1]Personnel!Z171","v":0},0,0,0,0,null,null,null,null,null,null,null,null,null,null,null,null,null,null,null,null,null,null,null,null,null,null,null,null,null,{"$f":"[1]Personnel!G171","v":0}]
[0,{"$f":"IFERROR(INDEX(Settings!$AP$17:$AP$38,MATCH(Personnel!$G172,Settings!$AQ$17:$AQ$38,0)),0)","v":0},null,null,null,{"$f":"[1]Personnel!F172","v":0},{"$f":"IFERROR(INDEX((SLevel),MATCH(Personnel!BA172,SLevel202223,0)),0)","v":0},{"$f":"[1]Personnel!H172","v":0},{"$f":"[1]Personnel!I172","v":0},{"$f":"[1]Personnel!J172","v":0},{"$f":"[1]Personnel!P172","v":0},{"$f":"[1]Personnel!Q172","v":0},0,{"$f":"[1]Personnel!S172","v":0},{"$f":"[1]Personnel!S172","v":0},{"$f":"[1]Personnel!S172","v":0},{"$f":"[1]Personnel!T172","v":0},0,{"$f":"[1]Personnel!V172","v":0},{"$f":"[1]Personnel!W172","v":0},0,{"$f":"[1]Personnel!Y172","v":0},{"$f":"[1]Personnel!Z172","v":0},0,0,0,0,null,null,null,null,null,null,null,null,null,null,null,null,null,null,null,null,null,null,null,null,null,null,null,null,null,{"$f":"[1]Personnel!G172","v":0}]
[0,{"$f":"IFERROR(INDEX(Settings!$AP$17:$AP$38,MATCH(Personnel!$G173,Settings!$AQ$17:$AQ$38,0)),0)","v":0},null,null,null,{"$f":"[1]Personnel!F173","v":0},{"$f":"IFERROR(INDEX((SLevel),MATCH(Personnel!BA173,SLevel202223,0)),0)","v":0},{"$f":"[1]Personnel!H173","v":0},{"$f":"[1]Personnel!I173","v":0},{"$f":"[1]Personnel!J173","v":0},{"$f":"[1]Personnel!P173","v":0},{"$f":"[1]Personnel!Q173","v":0},0,{"$f":"[1]Personnel!S173","v":0},{"$f":"[1]Personnel!S173","v":0},{"$f":"[1]Personnel!S173","v":0},{"$f":"[1]Personnel!T173","v":0},0,{"$f":"[1]Personnel!V173","v":0},{"$f":"[1]Personnel!W173","v":0},0,{"$f":"[1]Personnel!Y173","v":0},{"$f":"[1]Personnel!Z173","v":0},0,0,0,0,null,null,null,null,null,null,null,null,null,null,null,null,null,null,null,null,null,null,null,null,null,null,null,null,null,{"$f":"[1]Personnel!G173","v":0}]
[0,{"$f":"IFERROR(INDEX(Settings!$AP$17:$AP$38,MATCH(Personnel!$G174,Settings!$AQ$17:$AQ$38,0)),0)","v":0},null,null,null,{"$f":"[1]Personnel!F174","v":0},{"$f":"IFERROR(INDEX((SLevel),MATCH(Personnel!BA174,SLevel202223,0)),0)","v":0},{"$f":"[1]Personnel!H174","v":0},{"$f":"[1]Personnel!I174","v":0},{"$f":"[1]Personnel!J174","v":0},{"$f":"[1]Personnel!P174","v":0},{"$f":"[1]Personnel!Q174","v":0},0,{"$f":"[1]Personnel!S174","v":0},{"$f":"[1]Personnel!S174","v":0},{"$f":"[1]Personnel!S174","v":0},{"$f":"[1]Personnel!T174","v":0},0,{"$f":"[1]Personnel!V174","v":0},{"$f":"[1]Personnel!W174","v":0},0,{"$f":"[1]Personnel!Y174","v":0},{"$f":"[1]Personnel!Z174","v":0},0,0,0,0,null,null,null,null,null,null,null,null,null,null,null,null,null,null,null,null,null,null,null,null,null,null,null,null,null,{"$f":"[1]Personnel!G174","v":0}]
[0,{"$f":"IFERROR(INDEX(Settings!$AP$17:$AP$38,MATCH(Personnel!$G175,Settings!$AQ$17:$AQ$38,0)),0)","v":0},null,null,null,{"$f":"[1]Personnel!F175","v":0},{"$f":"IFERROR(INDEX((SLevel),MATCH(Personnel!BA175,SLevel202223,0)),0)","v":0},{"$f":"[1]Personnel!H175","v":0},{"$f":"[1]Personnel!I175","v":0},{"$f":"[1]Personnel!J175","v":0},{"$f":"[1]Personnel!P175","v":0},{"$f":"[1]Personnel!Q175","v":0},0,{"$f":"[1]Personnel!S175","v":0},{"$f":"[1]Personnel!S175","v":0},{"$f":"[1]Personnel!S175","v":0},{"$f":"[1]Personnel!T175","v":0},0,{"$f":"[1]Personnel!V175","v":0},{"$f":"[1]Personnel!W175","v":0},0,{"$f":"[1]Personnel!Y175","v":0},{"$f":"[1]Personnel!Z175","v":0},0,0,0,0,null,null,null,null,null,null,null,null,null,null,null,null,null,null,null,null,null,null,null,null,null,null,null,null,null,{"$f":"[1]Personnel!G175","v":0}]
[0,{"$f":"IFERROR(INDEX(Settings!$AP$17:$AP$38,MATCH(Personnel!$G176,Settings!$AQ$17:$AQ$38,0)),0)","v":0},null,null,null,{"$f":"[1]Personnel!F176","v":0},{"$f":"IFERROR(INDEX((SLevel),MATCH(Personnel!BA176,SLevel202223,0)),0)","v":0},{"$f":"[1]Personnel!H176","v":0},{"$f":"[1]Personnel!I176","v":0},{"$f":"[1]Personnel!J176","v":0},{"$f":"[1]Personnel!P176","v":0},{"$f":"[1]Personnel!Q176","v":0},0,{"$f":"[1]Personnel!S176","v":0},{"$f":"[1]Personnel!S176","v":0},{"$f":"[1]Personnel!S176","v":0},{"$f":"[1]Personnel!T176","v":0},0,{"$f":"[1]Personnel!V176","v":0},{"$f":"[1]Personnel!W176","v":0},0,{"$f":"[1]Personnel!Y176","v":0},{"$f":"[1]Personnel!Z176","v":0},0,0,0,0,null,null,null,null,null,null,null,null,null,null,null,null,null,null,null,null,null,null,null,null,null,null,null,null,null,{"$f":"[1]Personnel!G176","v":0}]
[0,{"$f":"IFERROR(INDEX(Settings!$AP$17:$AP$38,MATCH(Personnel!$G177,Settings!$AQ$17:$AQ$38,0)),0)","v":0},null,null,null,{"$f":"[1]Personnel!F177","v":0},{"$f":"IFERROR(INDEX((SLevel),MATCH(Personnel!BA177,SLevel202223,0)),0)","v":0},{"$f":"[1]Personnel!H177","v":0},{"$f":"[1]Personnel!I177","v":0},{"$f":"[1]Personnel!J177","v":0},{"$f":"[1]Personnel!P177","v":0},{"$f":"[1]Personnel!Q177","v":0},0,{"$f":"[1]Personnel!S177","v":0},{"$f":"[1]Personnel!S177","v":0},{"$f":"[1]Personnel!S177","v":0},{"$f":"[1]Personnel!T177","v":0},0,{"$f":"[1]Personnel!V177","v":0},{"$f":"[1]Personnel!W177","v":0},0,{"$f":"[1]Personnel!Y177","v":0},{"$f":"[1]Personnel!Z177","v":0},0,0,0,0,null,null,null,null,null,null,null,null,null,null,null,null,null,null,null,null,null,null,null,null,null,null,null,null,null,{"$f":"[1]Personnel!G177","v":0}]
[0,{"$f":"IFERROR(INDEX(Settings!$AP$17:$AP$38,MATCH(Personnel!$G178,Settings!$AQ$17:$AQ$38,0)),0)","v":0},null,null,null,{"$f":"[1]Personnel!F178","v":0},{"$f":"IFERROR(INDEX((SLevel),MATCH(Personnel!BA178,SLevel202223,0)),0)","v":0},{"$f":"[1]Personnel!H178","v":0},{"$f":"[1]Personnel!I178","v":0},{"$f":"[1]Personnel!J178","v":0},{"$f":"[1]Personnel!P178","v":0},{"$f":"[1]Personnel!Q178","v":0},0,{"$f":"[1]Personnel!S178","v":0},{"$f":"[1]Personnel!S178","v":0},{"$f":"[1]Personnel!S178","v":0},{"$f":"[1]Personnel!T178","v":0},0,{"$f":"[1]Personnel!V178","v":0},{"$f":"[1]Personnel!W178","v":0},0,{"$f":"[1]Personnel!Y178","v":0},{"$f":"[1]Personnel!Z178","v":0},0,0,0,0,null,null,null,null,null,null,null,null,null,null,null,null,null,null,null,null,null,null,null,null,null,null,null,null,null,{"$f":"[1]Personnel!G178","v":0}]
[0,{"$f":"IFERROR(INDEX(Settings!$AP$17:$AP$38,MATCH(Personnel!$G179,Settings!$AQ$17:$AQ$38,0)),0)","v":0},null,null,null,{"$f":"[1]Personnel!F179","v":0},{"$f":"IFERROR(INDEX((SLevel),MATCH(Personnel!BA179,SLevel202223,0)),0)","v":0},{"$f":"[1]Personnel!H179","v":0},{"$f":"[1]Personnel!I179","v":0},{"$f":"[1]Personnel!J179","v":0},{"$f":"[1]Personnel!P179","v":0},{"$f":"[1]Personnel!Q179","v":0},0,{"$f":"[1]Personnel!S179","v":0},{"$f":"[1]Personnel!S179","v":0},{"$f":"[1]Personnel!S179","v":0},{"$f":"[1]Personnel!T179","v":0},0,{"$f":"[1]Personnel!V179","v":0},{"$f":"[1]Personnel!W179","v":0},0,{"$f":"[1]Personnel!Y179","v":0},{"$f":"[1]Personnel!Z179","v":0},0,0,0,0,null,null,null,null,null,null,null,null,null,null,null,null,null,null,null,null,null,null,null,null,null,null,null,null,null,{"$f":"[1]Personnel!G179","v":0}]
[0,{"$f":"IFERROR(INDEX(Settings!$AP$17:$AP$38,MATCH(Personnel!$G180,Settings!$AQ$17:$AQ$38,0)),0)","v":0},null,null,null,{"$f":"[1]Personnel!F180","v":0},{"$f":"IFERROR(INDEX((SLevel),MATCH(Personnel!BA180,SLevel202223,0)),0)","v":0},{"$f":"[1]Personnel!H180","v":0},{"$f":"[1]Personnel!I180","v":0},{"$f":"[1]Personnel!J180","v":0},{"$f":"[1]Personnel!P180","v":0},{"$f":"[1]Personnel!Q180","v":0},0,{"$f":"[1]Personnel!S180","v":0},{"$f":"[1]Personnel!S180","v":0},{"$f":"[1]Personnel!S180","v":0},{"$f":"[1]Personnel!T180","v":0},0,{"$f":"[1]Personnel!V180","v":0},{"$f":"[1]Personnel!W180","v":0},0,{"$f":"[1]Personnel!Y180","v":0},{"$f":"[1]Personnel!Z180","v":0},0,0,0,0,null,null,null,null,null,null,null,null,null,null,null,null,null,null,null,null,null,null,null,null,null,null,null,null,null,{"$f":"[1]Personnel!G180","v":0}]
[0,{"$f":"IFERROR(INDEX(Settings!$AP$17:$AP$38,MATCH(Personnel!$G181,Settings!$AQ$17:$AQ$38,0)),0)","v":0},null,null,null,{"$f":"[1]Personnel!F181","v":0},{"$f":"IFERROR(INDEX((SLevel),MATCH(Personnel!BA181,SLevel202223,0)),0)","v":0},{"$f":"[1]Personnel!H181","v":0},{"$f":"[1]Personnel!I181","v":0},{"$f":"[1]Personnel!J181","v":0},{"$f":"[1]Personnel!P181","v":0},{"$f":"[1]Personnel!Q181","v":0},0,{"$f":"[1]Personnel!S181","v":0},{"$f":"[1]Personnel!S181","v":0},{"$f":"[1]Personnel!S181","v":0},{"$f":"[1]Personnel!T181","v":0},0,{"$f":"[1]Personnel!V181","v":0},{"$f":"[1]Personnel!W181","v":0},0,{"$f":"[1]Personnel!Y181","v":0},{"$f":"[1]Personnel!Z181","v":0},0,0,0,0,null,null,null,null,null,null,null,null,null,null,null,null,null,null,null,null,null,null,null,null,null,null,null,null,null,{"$f":"[1]Personnel!G181","v":0}]
[0,{"$f":"IFERROR(INDEX(Settings!$AP$17:$AP$38,MATCH(Personnel!$G182,Settings!$AQ$17:$AQ$38,0)),0)","v":0},null,null,null,{"$f":"[1]Personnel!F182","v":0},{"$f":"IFERROR(INDEX((SLevel),MATCH(Personnel!BA182,SLevel202223,0)),0)","v":0},{"$f":"[1]Personnel!H182","v":0},{"$f":"[1]Personnel!I182","v":0},{"$f":"[1]Personnel!J182","v":0},{"$f":"[1]Personnel!P182","v":0},{"$f":"[1]Personnel!Q182","v":0},0,{"$f":"[1]Personnel!S182","v":0},{"$f":"[1]Personnel!S182","v":0},{"$f":"[1]Personnel!S182","v":0},{"$f":"[1]Personnel!T182","v":0},0,{"$f":"[1]Personnel!V182","v":0},{"$f":"[1]Personnel!W182","v":0},0,{"$f":"[1]Personnel!Y182","v":0},{"$f":"[1]Personnel!Z182","v":0},0,0,0,0,null,null,null,null,null,null,null,null,null,null,null,null,null,null,null,null,null,null,null,null,null,null,null,null,null,{"$f":"[1]Personnel!G182","v":0}]
[0,{"$f":"IFERROR(INDEX(Settings!$AP$17:$AP$38,MATCH(Personnel!$G183,Settings!$AQ$17:$AQ$38,0)),0)","v":0},null,null,null,{"$f":"[1]Personnel!F183","v":0},{"$f":"IFERROR(INDEX((SLevel),MATCH(Personnel!BA183,SLevel202223,0)),0)","v":0},{"$f":"[1]Personnel!H183","v":0},{"$f":"[1]Personnel!I183","v":0},{"$f":"[1]Personnel!J183","v":0},{"$f":"[1]Personnel!P183","v":0},{"$f":"[1]Personnel!Q183","v":0},0,{"$f":"[1]Personnel!S183","v":0},{"$f":"[1]Personnel!S183","v":0},{"$f":"[1]Personnel!S183","v":0},{"$f":"[1]Personnel!T183","v":0},0,{"$f":"[1]Personnel!V183","v":0},{"$f":"[1]Personnel!W183","v":0},0,{"$f":"[1]Personnel!Y183","v":0},{"$f":"[1]Personnel!Z183","v":0},0,0,0,0,null,null,null,null,null,null,null,null,null,null,null,null,null,null,null,null,null,null,null,null,null,null,null,null,null,{"$f":"[1]Personnel!G183","v":0}]
[0,{"$f":"IFERROR(INDEX(Settings!$AP$17:$AP$38,MATCH(Personnel!$G184,Settings!$AQ$17:$AQ$38,0)),0)","v":0},null,null,null,{"$f":"[1]Personnel!F184","v":0},{"$f":"IFERROR(INDEX((SLevel),MATCH(Personnel!BA184,SLevel202223,0)),0)","v":0},{"$f":"[1]Personnel!H184","v":0},{"$f":"[1]Personnel!I184","v":0},{"$f":"[1]Personnel!J184","v":0},{"$f":"[1]Personnel!P184","v":0},{"$f":"[1]Personnel!Q184","v":0},0,{"$f":"[1]Personnel!S184","v":0},{"$f":"[1]Personnel!S184","v":0},{"$f":"[1]Personnel!S184","v":0},{"$f":"[1]Personnel!T184","v":0},0,{"$f":"[1]Personnel!V184","v":0},{"$f":"[1]Personnel!W184","v":0},0,{"$f":"[1]Personnel!Y184","v":0},{"$f":"[1]Personnel!Z184","v":0},0,0,0,0,null,null,null,null,null,null,null,null,null,null,null,null,null,null,null,null,null,null,null,null,null,null,null,null,null,{"$f":"[1]Personnel!G184","v":0}]
[0,{"$f":"IFERROR(INDEX(Settings!$AP$17:$AP$38,MATCH(Personnel!$G185,Settings!$AQ$17:$AQ$38,0)),0)","v":0},null,null,null,{"$f":"[1]Personnel!F185","v":0},{"$f":"IFERROR(INDEX((SLevel),MATCH(Personnel!BA185,SLevel202223,0)),0)","v":0},{"$f":"[1]Personnel!H185","v":0},{"$f":"[1]Personnel!I185","v":0},{"$f":"[1]Personnel!J185","v":0},{"$f":"[1]Personnel!P185","v":0},{"$f":"[1]Personnel!Q185","v":0},0,{"$f":"[1]Personnel!S185","v":0},{"$f":"[1]Personnel!S185","v":0},{"$f":"[1]Personnel!S185","v":0},{"$f":"[1]Personnel!T185","v":0},0,{"$f":"[1]Personnel!V185","v":0},{"$f":"[1]Personnel!W185","v":0},0,{"$f":"[1]Personnel!Y185","v":0},{"$f":"[1]Personnel!Z185","v":0},0,0,0,0,null,null,null,null,null,null,null,null,null,null,null,null,null,null,null,null,null,null,null,null,null,null,null,null,null,{"$f":"[1]Personnel!G185","v":0}]
[0,{"$f":"IFERROR(INDEX(Settings!$AP$17:$AP$38,MATCH(Personnel!$G186,Settings!$AQ$17:$AQ$38,0)),0)","v":0},null,null,null,{"$f":"[1]Personnel!F186","v":0},{"$f":"IFERROR(INDEX((SLevel),MATCH(Personnel!BA186,SLevel202223,0)),0)","v":0},{"$f":"[1]Personnel!H186","v":0},{"$f":"[1]Personnel!I186","v":0},{"$f":"[1]Personnel!J186","v":0},{"$f":"[1]Personnel!P186","v":0},{"$f":"[1]Personnel!Q186","v":0},0,{"$f":"[1]Personnel!S186","v":0},{"$f":"[1]Personnel!S186","v":0},{"$f":"[1]Personnel!S186","v":0},{"$f":"[1]Personnel!T186","v":0},0,{"$f":"[1]Personnel!V186","v":0},{"$f":"[1]Personnel!W186","v":0},0,{"$f":"[1]Personnel!Y186","v":0},{"$f":"[1]Personnel!Z186","v":0},0,0,0,0,null,null,null,null,null,null,null,null,null,null,null,null,null,null,null,null,null,null,null,null,null,null,null,null,null,{"$f":"[1]Personnel!G186","v":0}]
[0,{"$f":"IFERROR(INDEX(Settings!$AP$17:$AP$38,MATCH(Personnel!$G187,Settings!$AQ$17:$AQ$38,0)),0)","v":0},null,null,null,{"$f":"[1]Personnel!F187","v":0},{"$f":"IFERROR(INDEX((SLevel),MATCH(Personnel!BA187,SLevel202223,0)),0)","v":0},{"$f":"[1]Personnel!H187","v":0},{"$f":"[1]Personnel!I187","v":0},{"$f":"[1]Personnel!J187","v":0},{"$f":"[1]Personnel!P187","v":0},{"$f":"[1]Personnel!Q187","v":0},0,{"$f":"[1]Personnel!S187","v":0},{"$f":"[1]Personnel!S187","v":0},{"$f":"[1]Personnel!S187","v":0},{"$f":"[1]Personnel!T187","v":0},0,{"$f":"[1]Personnel!V187","v":0},{"$f":"[1]Personnel!W187","v":0},0,{"$f":"[1]Personnel!Y187","v":0},{"$f":"[1]Personnel!Z187","v":0},0,0,0,0,null,null,null,null,null,null,null,null,null,null,null,null,null,null,null,null,null,null,null,null,null,null,null,null,null,{"$f":"[1]Personnel!G187","v":0}]
[0,{"$f":"IFERROR(INDEX(Settings!$AP$17:$AP$38,MATCH(Personnel!$G188,Settings!$AQ$17:$AQ$38,0)),0)","v":0},null,null,null,{"$f":"[1]Personnel!F188","v":0},{"$f":"IFERROR(INDEX((SLevel),MATCH(Personnel!BA188,SLevel202223,0)),0)","v":0},{"$f":"[1]Personnel!H188","v":0},{"$f":"[1]Personnel!I188","v":0},{"$f":"[1]Personnel!J188","v":0},{"$f":"[1]Personnel!P188","v":0},{"$f":"[1]Personnel!Q188","v":0},0,{"$f":"[1]Personnel!S188","v":0},{"$f":"[1]Personnel!S188","v":0},{"$f":"[1]Personnel!S188","v":0},{"$f":"[1]Personnel!T188","v":0},0,{"$f":"[1]Personnel!V188","v":0},{"$f":"[1]Personnel!W188","v":0},0,{"$f":"[1]Personnel!Y188","v":0},{"$f":"[1]Personnel!Z188","v":0},0,0,0,0,null,null,null,null,null,null,null,null,null,null,null,null,null,null,null,null,null,null,null,null,null,null,null,null,null,{"$f":"[1]Personnel!G188","v":0}]
[0,{"$f":"IFERROR(INDEX(Settings!$AP$17:$AP$38,MATCH(Personnel!$G189,Settings!$AQ$17:$AQ$38,0)),0)","v":0},null,null,null,{"$f":"[1]Personnel!F189","v":0},{"$f":"IFERROR(INDEX((SLevel),MATCH(Personnel!BA189,SLevel202223,0)),0)","v":0},{"$f":"[1]Personnel!H189","v":0},{"$f":"[1]Personnel!I189","v":0},{"$f":"[1]Personnel!J189","v":0},{"$f":"[1]Personnel!P189","v":0},{"$f":"[1]Personnel!Q189","v":0},0,{"$f":"[1]Personnel!S189","v":0},{"$f":"[1]Personnel!S189","v":0},{"$f":"[1]Personnel!S189","v":0},{"$f":"[1]Personnel!T189","v":0},0,{"$f":"[1]Personnel!V189","v":0},{"$f":"[1]Personnel!W189","v":0},0,{"$f":"[1]Personnel!Y189","v":0},{"$f":"[1]Personnel!Z189","v":0},0,0,0,0,null,null,null,null,null,null,null,null,null,null,null,null,null,null,null,null,null,null,null,null,null,null,null,null,null,{"$f":"[1]Personnel!G189","v":0}]
[0,{"$f":"IFERROR(INDEX(Settings!$AP$17:$AP$38,MATCH(Personnel!$G190,Settings!$AQ$17:$AQ$38,0)),0)","v":0},null,null,null,{"$f":"[1]Personnel!F190","v":0},{"$f":"IFERROR(INDEX((SLevel),MATCH(Personnel!BA190,SLevel202223,0)),0)","v":0},{"$f":"[1]Personnel!H190","v":0},{"$f":"[1]Personnel!I190","v":0},{"$f":"[1]Personnel!J190","v":0},{"$f":"[1]Personnel!P190","v":0},{"$f":"[1]Personnel!Q190","v":0},0,{"$f":"[1]Personnel!S190","v":0},{"$f":"[1]Personnel!S190","v":0},{"$f":"[1]Personnel!S190","v":0},{"$f":"[1]Personnel!T190","v":0},0,{"$f":"[1]Personnel!V190","v":0},{"$f":"[1]Personnel!W190","v":0},0,{"$f":"[1]Personnel!Y190","v":0},{"$f":"[1]Personnel!Z190","v":0},0,0,0,0,null,null,null,null,null,null,null,null,null,null,null,null,null,null,null,null,null,null,null,null,null,null,null,null,null,{"$f":"[1]Personnel!G190","v":0}]
[0,{"$f":"IFERROR(INDEX(Settings!$AP$17:$AP$38,MATCH(Personnel!$G191,Settings!$AQ$17:$AQ$38,0)),0)","v":0},null,null,null,{"$f":"[1]Personnel!F191","v":0},{"$f":"IFERROR(INDEX((SLevel),MATCH(Personnel!BA191,SLevel202223,0)),0)","v":0},{"$f":"[1]Personnel!H191","v":0},{"$f":"[1]Personnel!I191","v":0},{"$f":"[1]Personnel!J191","v":0},{"$f":"[1]Personnel!P191","v":0},{"$f":"[1]Personnel!Q191","v":0},0,{"$f":"[1]Personnel!S191","v":0},{"$f":"[1]Personnel!S191","v":0},{"$f":"[1]Personnel!S191","v":0},{"$f":"[1]Personnel!T191","v":0},0,{"$f":"[1]Personnel!V191","v":0},{"$f":"[1]Personnel!W191","v":0},0,{"$f":"[1]Personnel!Y191","v":0},{"$f":"[1]Personnel!Z191","v":0},0,0,0,0,null,null,null,null,null,null,null,null,null,null,null,null,null,null,null,null,null,null,null,null,null,null,null,null,null,{"$f":"[1]Personnel!G191","v":0}]
[0,{"$f":"IFERROR(INDEX(Settings!$AP$17:$AP$38,MATCH(Personnel!$G192,Settings!$AQ$17:$AQ$38,0)),0)","v":0},null,null,null,{"$f":"[1]Personnel!F192","v":0},{"$f":"IFERROR(INDEX((SLevel),MATCH(Personnel!BA192,SLevel202223,0)),0)","v":0},{"$f":"[1]Personnel!H192","v":0},{"$f":"[1]Personnel!I192","v":0},{"$f":"[1]Personnel!J192","v":0},{"$f":"[1]Personnel!P192","v":0},{"$f":"[1]Personnel!Q192","v":0},0,{"$f":"[1]Personnel!S192","v":0},{"$f":"[1]Personnel!S192","v":0},{"$f":"[1]Personnel!S192","v":0},{"$f":"[1]Personnel!T192","v":0},0,{"$f":"[1]Personnel!V192","v":0},{"$f":"[1]Personnel!W192","v":0},0,{"$f":"[1]Personnel!Y192","v":0},{"$f":"[1]Personnel!Z192","v":0},0,0,0,0,null,null,null,null,null,null,null,null,null,null,null,null,null,null,null,null,null,null,null,null,null,null,null,null,null,{"$f":"[1]Personnel!G192","v":0}]
[0,{"$f":"IFERROR(INDEX(Settings!$AP$17:$AP$38,MATCH(Personnel!$G193,Settings!$AQ$17:$AQ$38,0)),0)","v":0},null,null,null,{"$f":"[1]Personnel!F193","v":0},{"$f":"IFERROR(INDEX((SLevel),MATCH(Personnel!BA193,SLevel202223,0)),0)","v":0},{"$f":"[1]Personnel!H193","v":0},{"$f":"[1]Personnel!I193","v":0},{"$f":"[1]Personnel!J193","v":0},{"$f":"[1]Personnel!P193","v":0},{"$f":"[1]Personnel!Q193","v":0},0,{"$f":"[1]Personnel!S193","v":0},{"$f":"[1]Personnel!S193","v":0},{"$f":"[1]Personnel!S193","v":0},{"$f":"[1]Personnel!T193","v":0},0,{"$f":"[1]Personnel!V193","v":0},{"$f":"[1]Personnel!W193","v":0},0,{"$f":"[1]Personnel!Y193","v":0},{"$f":"[1]Personnel!Z193","v":0},0,0,0,0,null,null,null,null,null,null,null,null,null,null,null,null,null,null,null,null,null,null,null,null,null,null,null,null,null,{"$f":"[1]Personnel!G193","v":0}]
[0,{"$f":"IFERROR(INDEX(Settings!$AP$17:$AP$38,MATCH(Personnel!$G194,Settings!$AQ$17:$AQ$38,0)),0)","v":0},null,null,null,{"$f":"[1]Personnel!F194","v":0},{"$f":"IFERROR(INDEX((SLevel),MATCH(Personnel!BA194,SLevel202223,0)),0)","v":0},{"$f":"[1]Personnel!H194","v":0},{"$f":"[1]Personnel!I194","v":0},{"$f":"[1]Personnel!J194","v":0},{"$f":"[1]Personnel!P194","v":0},{"$f":"[1]Personnel!Q194","v":0},0,{"$f":"[1]Personnel!S194","v":0},{"$f":"[1]Personnel!S194","v":0},{"$f":"[1]Personnel!S194","v":0},{"$f":"[1]Personnel!T194","v":0},0,{"$f":"[1]Personnel!V194","v":0},{"$f":"[1]Personnel!W194","v":0},0,{"$f":"[1]Personnel!Y194","v":0},{"$f":"[1]Personnel!Z194","v":0},0,0,0,0,null,null,null,null,null,null,null,null,null,null,null,null,null,null,null,null,null,null,null,null,null,null,null,null,null,{"$f":"[1]Personnel!G194","v":0}]
[0,{"$f":"IFERROR(INDEX(Settings!$AP$17:$AP$38,MATCH(Personnel!$G195,Settings!$AQ$17:$AQ$38,0)),0)","v":0},null,null,null,{"$f":"[1]Personnel!F195","v":0},{"$f":"IFERROR(INDEX((SLevel),MATCH(Personnel!BA195,SLevel202223,0)),0)","v":0},{"$f":"[1]Personnel!H195","v":0},{"$f":"[1]Personnel!I195","v":0},{"$f":"[1]Personnel!J195","v":0},{"$f":"[1]Personnel!P195","v":0},{"$f":"[1]Personnel!Q195","v":0},0,{"$f":"[1]Personnel!S195","v":0},{"$f":"[1]Personnel!S195","v":0},{"$f":"[1]Personnel!S195","v":0},{"$f":"[1]Personnel!T195","v":0},0,{"$f":"[1]Personnel!V195","v":0},{"$f":"[1]Personnel!W195","v":0},0,{"$f":"[1]Personnel!Y195","v":0},{"$f":"[1]Personnel!Z195","v":0},0,0,0,0,null,null,null,null,null,null,null,null,null,null,null,null,null,null,null,null,null,null,null,null,null,null,null,null,null,{"$f":"[1]Personnel!G195","v":0}]
[0,{"$f":"IFERROR(INDEX(Settings!$AP$17:$AP$38,MATCH(Personnel!$G196,Settings!$AQ$17:$AQ$38,0)),0)","v":0},null,null,null,{"$f":"[1]Personnel!F196","v":0},{"$f":"IFERROR(INDEX((SLevel),MATCH(Personnel!BA196,SLevel202223,0)),0)","v":0},{"$f":"[1]Personnel!H196","v":0},{"$f":"[1]Personnel!I196","v":0},{"$f":"[1]Personnel!J196","v":0},{"$f":"[1]Personnel!P196","v":0},{"$f":"[1]Personnel!Q196","v":0},0,{"$f":"[1]Personnel!S196","v":0},{"$f":"[1]Personnel!S196","v":0},{"$f":"[1]Personnel!S196","v":0},{"$f":"[1]Personnel!T196","v":0},0,{"$f":"[1]Personnel!V196","v":0},{"$f":"[1]Personnel!W196","v":0},0,{"$f":"[1]Personnel!Y196","v":0},{"$f":"[1]Personnel!Z196","v":0},0,0,0,0,null,null,null,null,null,null,null,null,null,null,null,null,null,null,null,null,null,null,null,null,null,null,null,null,null,{"$f":"[1]Personnel!G196","v":0}]
[0,{"$f":"IFERROR(INDEX(Settings!$AP$17:$AP$38,MATCH(Personnel!$G197,Settings!$AQ$17:$AQ$38,0)),0)","v":0},null,null,null,{"$f":"[1]Personnel!F197","v":0},{"$f":"IFERROR(INDEX((SLevel),MATCH(Personnel!BA197,SLevel202223,0)),0)","v":0},{"$f":"[1]Personnel!H197","v":0},{"$f":"[1]Personnel!I197","v":0},{"$f":"[1]Personnel!J197","v":0},{"$f":"[1]Personnel!P197","v":0},{"$f":"[1]Personnel!Q197","v":0},0,{"$f":"[1]Personnel!S197","v":0},{"$f":"[1]Personnel!S197","v":0},{"$f":"[1]Personnel!S197","v":0},{"$f":"[1]Personnel!T197","v":0},0,{"$f":"[1]Personnel!V197","v":0},{"$f":"[1]Personnel!W197","v":0},0,{"$f":"[1]Personnel!Y197","v":0},{"$f":"[1]Personnel!Z197","v":0},0,0,0,0,null,null,null,null,null,null,null,null,null,null,null,null,null,null,null,null,null,null,null,null,null,null,null,null,null,{"$f":"[1]Personnel!G197","v":0}]
[0,{"$f":"IFERROR(INDEX(Settings!$AP$17:$AP$38,MATCH(Personnel!$G198,Settings!$AQ$17:$AQ$38,0)),0)","v":0},null,null,null,{"$f":"[1]Personnel!F198","v":0},{"$f":"IFERROR(INDEX((SLevel),MATCH(Personnel!BA198,SLevel202223,0)),0)","v":0},{"$f":"[1]Personnel!H198","v":0},{"$f":"[1]Personnel!I198","v":0},{"$f":"[1]Personnel!J198","v":0},{"$f":"[1]Personnel!P198","v":0},{"$f":"[1]Personnel!Q198","v":0},0,{"$f":"[1]Personnel!S198","v":0},{"$f":"[1]Personnel!S198","v":0},{"$f":"[1]Personnel!S198","v":0},{"$f":"[1]Personnel!T198","v":0},0,{"$f":"[1]Personnel!V198","v":0},{"$f":"[1]Personnel!W198","v":0},0,{"$f":"[1]Personnel!Y198","v":0},{"$f":"[1]Personnel!Z198","v":0},0,0,0,0,null,null,null,null,null,null,null,null,null,null,null,null,null,null,null,null,null,null,null,null,null,null,null,null,null,{"$f":"[1]Personnel!G198","v":0}]
[0,{"$f":"IFERROR(INDEX(Settings!$AP$17:$AP$38,MATCH(Personnel!$G199,Settings!$AQ$17:$AQ$38,0)),0)","v":0},null,null,null,{"$f":"[1]Personnel!F199","v":0},{"$f":"IFERROR(INDEX((SLevel),MATCH(Personnel!BA199,SLevel202223,0)),0)","v":0},{"$f":"[1]Personnel!H199","v":0},{"$f":"[1]Personnel!I199","v":0},{"$f":"[1]Personnel!J199","v":0},{"$f":"[1]Personnel!P199","v":0},{"$f":"[1]Personnel!Q199","v":0},0,{"$f":"[1]Personnel!S199","v":0},{"$f":"[1]Personnel!S199","v":0},{"$f":"[1]Personnel!S199","v":0},{"$f":"[1]Personnel!T199","v":0},0,{"$f":"[1]Personnel!V199","v":0},{"$f":"[1]Personnel!W199","v":0},0,{"$f":"[1]Personnel!Y199","v":0},{"$f":"[1]Personnel!Z199","v":0},0,0,0,0,null,null,null,null,null,null,null,null,null,null,null,null,null,null,null,null,null,null,null,null,null,null,null,null,null,{"$f":"[1]Personnel!G199","v":0}]
[0,{"$f":"IFERROR(INDEX(Settings!$AP$17:$AP$38,MATCH(Personnel!$G200,Settings!$AQ$17:$AQ$38,0)),0)","v":0},null,null,null,{"$f":"[1]Personnel!F200","v":0},{"$f":"IFERROR(INDEX((SLevel),MATCH(Personnel!BA200,SLevel202223,0)),0)","v":0},{"$f":"[1]Personnel!H200","v":0},{"$f":"[1]Personnel!I200","v":0},{"$f":"[1]Personnel!J200","v":0},{"$f":"[1]Personnel!P200","v":0},{"$f":"[1]Personnel!Q200","v":0},0,{"$f":"[1]Personnel!S200","v":0},{"$f":"[1]Personnel!S200","v":0},{"$f":"[1]Personnel!S200","v":0},{"$f":"[1]Personnel!T200","v":0},0,{"$f":"[1]Personnel!V200","v":0},{"$f":"[1]Personnel!W200","v":0},0,{"$f":"[1]Personnel!Y200","v":0},{"$f":"[1]Personnel!Z200","v":0},0,0,0,0,null,null,null,null,null,null,null,null,null,null,null,null,null,null,null,null,null,null,null,null,null,null,null,null,null,{"$f":"[1]Personnel!G200","v":0}]
[0,{"$f":"IFERROR(INDEX(Settings!$AP$17:$AP$38,MATCH(Personnel!$G201,Settings!$AQ$17:$AQ$38,0)),0)","v":0},null,null,null,{"$f":"[1]Personnel!F201","v":0},{"$f":"IFERROR(INDEX((SLevel),MATCH(Personnel!BA201,SLevel202223,0)),0)","v":0},{"$f":"[1]Personnel!H201","v":0},{"$f":"[1]Personnel!I201","v":0},{"$f":"[1]Personnel!J201","v":0},{"$f":"[1]Personnel!P201","v":0},{"$f":"[1]Personnel!Q201","v":0},0,{"$f":"[1]Personnel!S201","v":0},{"$f":"[1]Personnel!S201","v":0},{"$f":"[1]Personnel!S201","v":0},{"$f":"[1]Personnel!T201","v":0},0,{"$f":"[1]Personnel!V201","v":0},{"$f":"[1]Personnel!W201","v":0},0,{"$f":"[1]Personnel!Y201","v":0},{"$f":"[1]Personnel!Z201","v":0},0,0,0,0,null,null,null,null,null,null,null,null,null,null,null,null,null,null,null,null,null,null,null,null,null,null,null,null,null,{"$f":"[1]Personnel!G201","v":0}]
[0,{"$f":"IFERROR(INDEX(Settings!$AP$17:$AP$38,MATCH(Personnel!$G202,Settings!$AQ$17:$AQ$38,0)),0)","v":0},null,null,null,{"$f":"[1]Personnel!F202","v":0},{"$f":"IFERROR(INDEX((SLevel),MATCH(Personnel!BA202,SLevel202223,0)),0)","v":0},{"$f":"[1]Personnel!H202","v":0},{"$f":"[1]Personnel!I202","v":0},{"$f":"[1]Personnel!J202","v":0},{"$f":"[1]Personnel!P202","v":0},{"$f":"[1]Personnel!Q202","v":0},0,{"$f":"[1]Personnel!S202","v":0},{"$f":"[1]Personnel!S202","v":0},{"$f":"[1]Personnel!S202","v":0},{"$f":"[1]Personnel!T202","v":0},0,{"$f":"[1]Personnel!V202","v":0},{"$f":"[1]Personnel!W202","v":0},0,{"$f":"[1]Personnel!Y202","v":0},{"$f":"[1]Personnel!Z202","v":0},0,0,0,0,null,null,null,null,null,null,null,null,null,null,null,null,null,null,null,null,null,null,null,null,null,null,null,null,null,{"$f":"[1]Personnel!G202","v":0}]
[0,{"$f":"IFERROR(INDEX(Settings!$AP$17:$AP$38,MATCH(Personnel!$G203,Settings!$AQ$17:$AQ$38,0)),0)","v":0},null,null,null,{"$f":"[1]Personnel!F203","v":0},{"$f":"IFERROR(INDEX((SLevel),MATCH(Personnel!BA203,SLevel202223,0)),0)","v":0},{"$f":"[1]Personnel!H203","v":0},{"$f":"[1]Personnel!I203","v":0},{"$f":"[1]Personnel!J203","v":0},{"$f":"[1]Personnel!P203","v":0},{"$f":"[1]Personnel!Q203","v":0},0,{"$f":"[1]Personnel!S203","v":0},{"$f":"[1]Personnel!S203","v":0},{"$f":"[1]Personnel!S203","v":0},{"$f":"[1]Personnel!T203","v":0},0,{"$f":"[1]Personnel!V203","v":0},{"$f":"[1]Personnel!W203","v":0},0,{"$f":"[1]Personnel!Y203","v":0},{"$f":"[1]Personnel!Z203","v":0},0,0,0,0,null,null,null,null,null,null,null,null,null,null,null,null,null,null,null,null,null,null,null,null,null,null,null,null,null,{"$f":"[1]Personnel!G203","v":0}]
[{"$f":"IF(SUM(K204:AA204)>0,1,0)","v":0},{"$f":"IFERROR(INDEX(Settings!$AP$17:$AP$38,MATCH(Personnel!$G204,Settings!$AQ$17:$AQ$38,0)),0)","v":0},null,null,null,{"$f":"[1]Personnel!F204","v":0},{"$f":"IFERROR(INDEX((SLevel),MATCH(Personnel!BA204,SLevel202223,0)),0)","v":0},{"$f":"[1]Personnel!H204","v":0},{"$f":"[1]Personnel!I204","v":0},{"$f":"[1]Personnel!J204","v":0},{"$f":"[1]Personnel!P204","v":0},{"$f":"[1]Personnel!Q204","v":0},0,{"$f":"[1]Personnel!S204","v":0},{"$f":"[1]Personnel!S204","v":0},{"$f":"[1]Personnel!S204","v":0},{"$f":"[1]Personnel!T204","v":0},0,{"$f":"[1]Personnel!V204","v":0},{"$f":"[1]Personnel!W204","v":0},0,{"$f":"[1]Personnel!Y204","v":0},{"$f":"[1]Personnel!Z204","v":0},0,0,0,0,null,null,null,null,null,null,null,null,null,null,null,null,null,null,null,null,null,null,null,null,null,null,null,null,null,{"$f":"[1]Personnel!G204","v":0}]
[0,{"$f":"IFERROR(INDEX(Settings!$AP$17:$AP$38,MATCH(Personnel!$G205,Settings!$AQ$17:$AQ$38,0)),0)","v":0},null,null,null,{"$f":"[1]Personnel!F205","v":0},{"$f":"IFERROR(INDEX((SLevel),MATCH(Personnel!BA205,SLevel202223,0)),0)","v":0},{"$f":"[1]Personnel!H205","v":0},{"$f":"[1]Personnel!I205","v":0},{"$f":"[1]Personnel!J205","v":0},{"$f":"[1]Personnel!P205","v":0},{"$f":"[1]Personnel!Q205","v":0},{"$f":"ROUND(IF(ISERROR(L205/K205),0,(L205/K205)),0)","v":0},{"$f":"[1]Personnel!S205","v":0},{"$f":"[1]Personnel!S205","v":0},{"$f":"[1]Personnel!S205","v":0},{"$f":"[1]Personnel!T205","v":0},{"$f":"ROUND(IF(ISERROR(Q205/P205),0,(Q205/P205)),0)","v":0},{"$f":"[1]Personnel!V205","v":0},{"$f":"[1]Personnel!W205","v":0},{"$f":"ROUND(IF(ISERROR(T205/S205),0,(T205/S205)),0)","v":0},{"$f":"[1]Personnel!Y205","v":0},{"$f":"[1]Personnel!Z205","v":0},{"$f":"ROUND(IF(ISERROR(W205/V205),0,(W205/V205)),0)","v":0},0,0,{"$f":"ROUND(IF(ISERROR(Z205/Y205),0,(Z205/Y205)),0)","v":0},null,null,null,null,null,null,null,null,null,null,null,null,null,null,null,null,null,null,null,null,null,null,null,null,null,{"$f":"[1]Personnel!G205","v":0}]
[0,{"$f":"IFERROR(INDEX(Settings!$AP$17:$AP$38,MATCH(Personnel!$G206,Settings!$AQ$17:$AQ$38,0)),0)","v":0},null,null,null,{"$f":"[1]Personnel!F206","v":0},{"$f":"IFERROR(INDEX((SLevel),MATCH(Personnel!BA206,SLevel202223,0)),0)","v":0},{"$f":"[1]Personnel!H206","v":0},{"$f":"[1]Personnel!I206","v":0},{"$f":"[1]Personnel!J206","v":0},{"$f":"[1]Personnel!P206","v":0},{"$f":"[1]Personnel!Q206","v":0},0,{"$f":"[1]Personnel!S206","v":0},{"$f":"[1]Personnel!S206","v":0},{"$f":"[1]Personnel!S206","v":0},{"$f":"[1]Personnel!T206","v":0},0,{"$f":"[1]Personnel!V206","v":0},{"$f":"[1]Personnel!W206","v":0},0,{"$f":"[1]Personnel!Y206","v":0},{"$f":"[1]Personnel!Z206","v":0},0,0,0,0,null,null,null,null,null,null,null,null,null,null,null,null,null,null,null,null,null,null,null,null,null,null,null,null,null,{"$f":"[1]Personnel!G206","v":0}]
[0,{"$f":"IFERROR(INDEX(Settings!$AP$17:$AP$38,MATCH(Personnel!$G207,Settings!$AQ$17:$AQ$38,0)),0)","v":0},null,null,null,{"$f":"[1]Personnel!F207","v":0},{"$f":"IFERROR(INDEX((SLevel),MATCH(Personnel!BA207,SLevel202223,0)),0)","v":0},{"$f":"[1]Personnel!H207","v":0},{"$f":"[1]Personnel!I207","v":0},{"$f":"[1]Personnel!J207","v":0},{"$f":"[1]Personnel!P207","v":0},{"$f":"[1]Personnel!Q207","v":0},0,{"$f":"[1]Personnel!S207","v":0},{"$f":"[1]Personnel!S207","v":0},{"$f":"[1]Personnel!S207","v":0},{"$f":"[1]Personnel!T207","v":0},0,{"$f":"[1]Personnel!V207","v":0},{"$f":"[1]Personnel!W207","v":0},0,{"$f":"[1]Personnel!Y207","v":0},{"$f":"[1]Personnel!Z207","v":0},0,0,0,0,null,null,null,null,null,null,null,null,null,null,null,null,null,null,null,null,null,null,null,null,null,null,null,null,null,{"$f":"[1]Personnel!G207","v":0}]
[0,{"$f":"IFERROR(INDEX(Settings!$AP$17:$AP$38,MATCH(Personnel!$G208,Settings!$AQ$17:$AQ$38,0)),0)","v":0},null,null,null,{"$f":"[1]Personnel!F208","v":0},{"$f":"IFERROR(INDEX((SLevel),MATCH(Personnel!BA208,SLevel202223,0)),0)","v":0},{"$f":"[1]Personnel!H208","v":0},{"$f":"[1]Personnel!I208","v":0},{"$f":"[1]Personnel!J208","v":0},{"$f":"[1]Personnel!P208","v":0},{"$f":"[1]Personnel!Q208","v":0},0,{"$f":"[1]Personnel!S208","v":0},{"$f":"[1]Personnel!S208","v":0},{"$f":"[1]Personnel!S208","v":0},{"$f":"[1]Personnel!T208","v":0},0,{"$f":"[1]Personnel!V208","v":0},{"$f":"[1]Personnel!W208","v":0},0,{"$f":"[1]Personnel!Y208","v":0},{"$f":"[1]Personnel!Z208","v":0},0,0,0,0,null,null,null,null,null,null,null,null,null,null,null,null,null,null,null,null,null,null,null,null,null,null,null,null,null,{"$f":"[1]Personnel!G208","v":0}]
[0,{"$f":"IFERROR(INDEX(Settings!$AP$17:$AP$38,MATCH(Personnel!$G209,Settings!$AQ$17:$AQ$38,0)),0)","v":0},null,null,null,{"$f":"[1]Personnel!F209","v":0},{"$f":"IFERROR(INDEX((SLevel),MATCH(Personnel!BA209,SLevel202223,0)),0)","v":0},{"$f":"[1]Personnel!H209","v":0},{"$f":"[1]Personnel!I209","v":0},{"$f":"[1]Personnel!J209","v":0},{"$f":"[1]Personnel!P209","v":0},{"$f":"[1]Personnel!Q209","v":0},0,{"$f":"[1]Personnel!S209","v":0},{"$f":"[1]Personnel!S209","v":0},{"$f":"[1]Personnel!S209","v":0},{"$f":"[1]Personnel!T209","v":0},0,{"$f":"[1]Personnel!V209","v":0},{"$f":"[1]Personnel!W209","v":0},0,{"$f":"[1]Personnel!Y209","v":0},{"$f":"[1]Personnel!Z209","v":0},0,0,0,0,null,null,null,null,null,null,null,null,null,null,null,null,null,null,null,null,null,null,null,null,null,null,null,null,null,{"$f":"[1]Personnel!G209","v":0}]
[0,{"$f":"IFERROR(INDEX(Settings!$AP$17:$AP$38,MATCH(Personnel!$G210,Settings!$AQ$17:$AQ$38,0)),0)","v":0},null,null,null,{"$f":"[1]Personnel!F210","v":0},{"$f":"IFERROR(INDEX((SLevel),MATCH(Personnel!BA210,SLevel202223,0)),0)","v":0},{"$f":"[1]Personnel!H210","v":0},{"$f":"[1]Personnel!I210","v":0},{"$f":"[1]Personnel!J210","v":0},{"$f":"[1]Personnel!P210","v":0},{"$f":"[1]Personnel!Q210","v":0},0,{"$f":"[1]Personnel!S210","v":0},{"$f":"[1]Personnel!S210","v":0},{"$f":"[1]Personnel!S210","v":0},{"$f":"[1]Personnel!T210","v":0},0,{"$f":"[1]Personnel!V210","v":0},{"$f":"[1]Personnel!W210","v":0},0,{"$f":"[1]Personnel!Y210","v":0},{"$f":"[1]Personnel!Z210","v":0},0,0,0,0,null,null,null,null,null,null,null,null,null,null,null,null,null,null,null,null,null,null,null,null,null,null,null,null,null,{"$f":"[1]Personnel!G210","v":0}]
[0,{"$f":"IFERROR(INDEX(Settings!$AP$17:$AP$38,MATCH(Personnel!$G211,Settings!$AQ$17:$AQ$38,0)),0)","v":0},null,null,null,{"$f":"[1]Personnel!F211","v":0},{"$f":"IFERROR(INDEX((SLevel),MATCH(Personnel!BA211,SLevel202223,0)),0)","v":0},{"$f":"[1]Personnel!H211","v":0},{"$f":"[1]Personnel!I211","v":0},{"$f":"[1]Personnel!J211","v":0},{"$f":"[1]Personnel!P211","v":0},{"$f":"[1]Personnel!Q211","v":0},0,{"$f":"[1]Personnel!S211","v":0},{"$f":"[1]Personnel!S211","v":0},{"$f":"[1]Personnel!S211","v":0},{"$f":"[1]Personnel!T211","v":0},0,{"$f":"[1]Personnel!V211","v":0},{"$f":"[1]Personnel!W211","v":0},0,{"$f":"[1]Personnel!Y211","v":0},{"$f":"[1]Personnel!Z211","v":0},0,0,0,0,null,null,null,null,null,null,null,null,null,null,null,null,null,null,null,null,null,null,null,null,null,null,null,null,null,{"$f":"[1]Personnel!G211","v":0}]
[0,{"$f":"IFERROR(INDEX(Settings!$AP$17:$AP$38,MATCH(Personnel!$G212,Settings!$AQ$17:$AQ$38,0)),0)","v":0},null,null,null,{"$f":"[1]Personnel!F212","v":0},{"$f":"IFERROR(INDEX((SLevel),MATCH(Personnel!BA212,SLevel202223,0)),0)","v":0},{"$f":"[1]Personnel!H212","v":0},{"$f":"[1]Personnel!I212","v":0},{"$f":"[1]Personnel!J212","v":0},{"$f":"[1]Personnel!P212","v":0},{"$f":"[1]Personnel!Q212","v":0},0,{"$f":"[1]Personnel!S212","v":0},{"$f":"[1]Personnel!S212","v":0},{"$f":"[1]Personnel!S212","v":0},{"$f":"[1]Personnel!T212","v":0},0,{"$f":"[1]Personnel!V212","v":0},{"$f":"[1]Personnel!W212","v":0},0,{"$f":"[1]Personnel!Y212","v":0},{"$f":"[1]Personnel!Z212","v":0},0,0,0,0,null,null,null,null,null,null,null,null,null,null,null,null,null,null,null,null,null,null,null,null,null,null,null,null,null,{"$f":"[1]Personnel!G212","v":0}]
[0,{"$f":"IFERROR(INDEX(Settings!$AP$17:$AP$38,MATCH(Personnel!$G213,Settings!$AQ$17:$AQ$38,0)),0)","v":0},null,null,null,{"$f":"[1]Personnel!F213","v":0},{"$f":"IFERROR(INDEX((SLevel),MATCH(Personnel!BA213,SLevel202223,0)),0)","v":0},{"$f":"[1]Personnel!H213","v":0},{"$f":"[1]Personnel!I213","v":0},{"$f":"[1]Personnel!J213","v":0},{"$f":"[1]Personnel!P213","v":0},{"$f":"[1]Personnel!Q213","v":0},0,{"$f":"[1]Personnel!S213","v":0},{"$f":"[1]Personnel!S213","v":0},{"$f":"[1]Personnel!S213","v":0},{"$f":"[1]Personnel!T213","v":0},0,{"$f":"[1]Personnel!V213","v":0},{"$f":"[1]Personnel!W213","v":0},0,{"$f":"[1]Personnel!Y213","v":0},{"$f":"[1]Personnel!Z213","v":0},0,0,0,0,null,null,null,null,null,null,null,null,null,null,null,null,null,null,null,null,null,null,null,null,null,null,null,null,null,{"$f":"[1]Personnel!G213","v":0}]
[0,{"$f":"IFERROR(INDEX(Settings!$AP$17:$AP$38,MATCH(Personnel!$G214,Settings!$AQ$17:$AQ$38,0)),0)","v":0},null,null,null,{"$f":"[1]Personnel!F214","v":0},{"$f":"IFERROR(INDEX((SLevel),MATCH(Personnel!BA214,SLevel202223,0)),0)","v":0},{"$f":"[1]Personnel!H214","v":0},{"$f":"[1]Personnel!I214","v":0},{"$f":"[1]Personnel!J214","v":0},{"$f":"[1]Personnel!P214","v":0},{"$f":"[1]Personnel!Q214","v":0},0,{"$f":"[1]Personnel!S214","v":0},{"$f":"[1]Personnel!S214","v":0},{"$f":"[1]Personnel!S214","v":0},{"$f":"[1]Personnel!T214","v":0},0,{"$f":"[1]Personnel!V214","v":0},{"$f":"[1]Personnel!W214","v":0},0,{"$f":"[1]Personnel!Y214","v":0},{"$f":"[1]Personnel!Z214","v":0},0,0,0,0,null,null,null,null,null,null,null,null,null,null,null,null,null,null,null,null,null,null,null,null,null,null,null,null,null,{"$f":"[1]Personnel!G214","v":0}]
[0,{"$f":"IFERROR(INDEX(Settings!$AP$17:$AP$38,MATCH(Personnel!$G215,Settings!$AQ$17:$AQ$38,0)),0)","v":0},null,null,null,{"$f":"[1]Personnel!F215","v":0},{"$f":"IFERROR(INDEX((SLevel),MATCH(Personnel!BA215,SLevel202223,0)),0)","v":0},{"$f":"[1]Personnel!H215","v":0},{"$f":"[1]Personnel!I215","v":0},{"$f":"[1]Personnel!J215","v":0},{"$f":"[1]Personnel!P215","v":0},{"$f":"[1]Personnel!Q215","v":0},0,{"$f":"[1]Personnel!S215","v":0},{"$f":"[1]Personnel!S215","v":0},{"$f":"[1]Personnel!S215","v":0},{"$f":"[1]Personnel!T215","v":0},0,{"$f":"[1]Personnel!V215","v":0},{"$f":"[1]Personnel!W215","v":0},0,{"$f":"[1]Personnel!Y215","v":0},{"$f":"[1]Personnel!Z215","v":0},0,0,0,0,null,null,null,null,null,null,null,null,null,null,null,null,null,null,null,null,null,null,null,null,null,null,null,null,null,{"$f":"[1]Personnel!G215","v":0}]
[0,{"$f":"IFERROR(INDEX(Settings!$AP$17:$AP$38,MATCH(Personnel!$G216,Settings!$AQ$17:$AQ$38,0)),0)","v":0},null,null,null,{"$f":"[1]Personnel!F216","v":0},{"$f":"IFERROR(INDEX((SLevel),MATCH(Personnel!BA216,SLevel202223,0)),0)","v":0},{"$f":"[1]Personnel!H216","v":0},{"$f":"[1]Personnel!I216","v":0},{"$f":"[1]Personnel!J216","v":0},{"$f":"[1]Personnel!P216","v":0},{"$f":"[1]Personnel!Q216","v":0},0,{"$f":"[1]Personnel!S216","v":0},{"$f":"[1]Personnel!S216","v":0},{"$f":"[1]Personnel!S216","v":0},{"$f":"[1]Personnel!T216","v":0},0,{"$f":"[1]Personnel!V216","v":0},{"$f":"[1]Personnel!W216","v":0},0,{"$f":"[1]Personnel!Y216","v":0},{"$f":"[1]Personnel!Z216","v":0},0,0,0,0,null,null,null,null,null,null,null,null,null,null,null,null,null,null,null,null,null,null,null,null,null,null,null,null,null,{"$f":"[1]Personnel!G216","v":0}]
[0,{"$f":"IFERROR(INDEX(Settings!$AP$17:$AP$38,MATCH(Personnel!$G217,Settings!$AQ$17:$AQ$38,0)),0)","v":0},null,null,null,{"$f":"[1]Personnel!F217","v":0},{"$f":"IFERROR(INDEX((SLevel),MATCH(Personnel!BA217,SLevel202223,0)),0)","v":0},{"$f":"[1]Personnel!H217","v":0},{"$f":"[1]Personnel!I217","v":0},{"$f":"[1]Personnel!J217","v":0},{"$f":"[1]Personnel!P217","v":0},{"$f":"[1]Personnel!Q217","v":0},0,{"$f":"[1]Personnel!S217","v":0},{"$f":"[1]Personnel!S217","v":0},{"$f":"[1]Personnel!S217","v":0},{"$f":"[1]Personnel!T217","v":0},0,{"$f":"[1]Personnel!V217","v":0},{"$f":"[1]Personnel!W217","v":0},0,{"$f":"[1]Personnel!Y217","v":0},{"$f":"[1]Personnel!Z217","v":0},0,0,0,0,null,null,null,null,null,null,null,null,null,null,null,null,null,null,null,null,null,null,null,null,null,null,null,null,null,{"$f":"[1]Personnel!G217","v":0}]
[0,{"$f":"IFERROR(INDEX(Settings!$AP$17:$AP$38,MATCH(Personnel!$G218,Settings!$AQ$17:$AQ$38,0)),0)","v":0},null,null,null,{"$f":"[1]Personnel!F218","v":0},{"$f":"IFERROR(INDEX((SLevel),MATCH(Personnel!BA218,SLevel202223,0)),0)","v":0},{"$f":"[1]Personnel!H218","v":0},{"$f":"[1]Personnel!I218","v":0},{"$f":"[1]Personnel!J218","v":0},{"$f":"[1]Personnel!P218","v":0},{"$f":"[1]Personnel!Q218","v":0},0,{"$f":"[1]Personnel!S218","v":0},{"$f":"[1]Personnel!S218","v":0},{"$f":"[1]Personnel!S218","v":0},{"$f":"[1]Personnel!T218","v":0},0,{"$f":"[1]Personnel!V218","v":0},{"$f":"[1]Personnel!W218","v":0},0,{"$f":"[1]Personnel!Y218","v":0},{"$f":"[1]Personnel!Z218","v":0},0,0,0,0,null,null,null,null,null,null,null,null,null,null,null,null,null,null,null,null,null,null,null,null,null,null,null,null,null,{"$f":"[1]Personnel!G218","v":0}]
[0,{"$f":"IFERROR(INDEX(Settings!$AP$17:$AP$38,MATCH(Personnel!$G219,Settings!$AQ$17:$AQ$38,0)),0)","v":0},null,null,null,{"$f":"[1]Personnel!F219","v":0},{"$f":"IFERROR(INDEX((SLevel),MATCH(Personnel!BA219,SLevel202223,0)),0)","v":0},{"$f":"[1]Personnel!H219","v":0},{"$f":"[1]Personnel!I219","v":0},{"$f":"[1]Personnel!J219","v":0},{"$f":"[1]Personnel!P219","v":0},{"$f":"[1]Personnel!Q219","v":0},0,{"$f":"[1]Personnel!S219","v":0},{"$f":"[1]Personnel!S219","v":0},{"$f":"[1]Personnel!S219","v":0},{"$f":"[1]Personnel!T219","v":0},0,{"$f":"[1]Personnel!V219","v":0},{"$f":"[1]Personnel!W219","v":0},0,{"$f":"[1]Personnel!Y219","v":0},{"$f":"[1]Personnel!Z219","v":0},0,0,0,0,null,null,null,null,null,null,null,null,null,null,null,null,null,null,null,null,null,null,null,null,null,null,null,null,null,{"$f":"[1]Personnel!G219","v":0}]
[0,{"$f":"IFERROR(INDEX(Settings!$AP$17:$AP$38,MATCH(Personnel!$G220,Settings!$AQ$17:$AQ$38,0)),0)","v":0},null,null,null,{"$f":"[1]Personnel!F220","v":0},{"$f":"IFERROR(INDEX((SLevel),MATCH(Personnel!BA220,SLevel202223,0)),0)","v":0},{"$f":"[1]Personnel!H220","v":0},{"$f":"[1]Personnel!I220","v":0},{"$f":"[1]Personnel!J220","v":0},{"$f":"[1]Personnel!P220","v":0},{"$f":"[1]Personnel!Q220","v":0},0,{"$f":"[1]Personnel!S220","v":0},{"$f":"[1]Personnel!S220","v":0},{"$f":"[1]Personnel!S220","v":0},{"$f":"[1]Personnel!T220","v":0},0,{"$f":"[1]Personnel!V220","v":0},{"$f":"[1]Personnel!W220","v":0},0,{"$f":"[1]Personnel!Y220","v":0},{"$f":"[1]Personnel!Z220","v":0},0,0,0,0,null,null,null,null,null,null,null,null,null,null,null,null,null,null,null,null,null,null,null,null,null,null,null,null,null,{"$f":"[1]Personnel!G220","v":0}]
[0,{"$f":"IFERROR(INDEX(Settings!$AP$17:$AP$38,MATCH(Personnel!$G221,Settings!$AQ$17:$AQ$38,0)),0)","v":0},null,null,null,{"$f":"[1]Personnel!F221","v":0},{"$f":"IFERROR(INDEX((SLevel),MATCH(Personnel!BA221,SLevel202223,0)),0)","v":0},{"$f":"[1]Personnel!H221","v":0},{"$f":"[1]Personnel!I221","v":0},{"$f":"[1]Personnel!J221","v":0},{"$f":"[1]Personnel!P221","v":0},{"$f":"[1]Personnel!Q221","v":0},0,{"$f":"[1]Personnel!S221","v":0},{"$f":"[1]Personnel!S221","v":0},{"$f":"[1]Personnel!S221","v":0},{"$f":"[1]Personnel!T221","v":0},0,{"$f":"[1]Personnel!V221","v":0},{"$f":"[1]Personnel!W221","v":0},0,{"$f":"[1]Personnel!Y221","v":0},{"$f":"[1]Personnel!Z221","v":0},0,0,0,0,null,null,null,null,null,null,null,null,null,null,null,null,null,null,null,null,null,null,null,null,null,null,null,null,null,{"$f":"[1]Personnel!G221","v":0}]
[0,{"$f":"IFERROR(INDEX(Settings!$AP$17:$AP$38,MATCH(Personnel!$G222,Settings!$AQ$17:$AQ$38,0)),0)","v":0},null,null,null,{"$f":"[1]Personnel!F222","v":0},{"$f":"IFERROR(INDEX((SLevel),MATCH(Personnel!BA222,SLevel202223,0)),0)","v":0},{"$f":"[1]Personnel!H222","v":0},{"$f":"[1]Personnel!I222","v":0},{"$f":"[1]Personnel!J222","v":0},{"$f":"[1]Personnel!P222","v":0},{"$f":"[1]Personnel!Q222","v":0},0,{"$f":"[1]Personnel!S222","v":0},{"$f":"[1]Personnel!S222","v":0},{"$f":"[1]Personnel!S222","v":0},{"$f":"[1]Personnel!T222","v":0},0,{"$f":"[1]Personnel!V222","v":0},{"$f":"[1]Personnel!W222","v":0},0,{"$f":"[1]Personnel!Y222","v":0},{"$f":"[1]Personnel!Z222","v":0},0,0,0,0,null,null,null,null,null,null,null,null,null,null,null,null,null,null,null,null,null,null,null,null,null,null,null,null,null,{"$f":"[1]Personnel!G222","v":0}]
[0,{"$f":"IFERROR(INDEX(Settings!$AP$17:$AP$38,MATCH(Personnel!$G223,Settings!$AQ$17:$AQ$38,0)),0)","v":0},null,null,null,{"$f":"[1]Personnel!F223","v":0},{"$f":"IFERROR(INDEX((SLevel),MATCH(Personnel!BA223,SLevel202223,0)),0)","v":0},{"$f":"[1]Personnel!H223","v":0},{"$f":"[1]Personnel!I223","v":0},{"$f":"[1]Personnel!J223","v":0},{"$f":"[1]Personnel!P223","v":0},{"$f":"[1]Personnel!Q223","v":0},0,{"$f":"[1]Personnel!S223","v":0},{"$f":"[1]Personnel!S223","v":0},{"$f":"[1]Personnel!S223","v":0},{"$f":"[1]Personnel!T223","v":0},0,{"$f":"[1]Personnel!V223","v":0},{"$f":"[1]Personnel!W223","v":0},0,{"$f":"[1]Personnel!Y223","v":0},{"$f":"[1]Personnel!Z223","v":0},0,0,0,0,null,null,null,null,null,null,null,null,null,null,null,null,null,null,null,null,null,null,null,null,null,null,null,null,null,{"$f":"[1]Personnel!G223","v":0}]
[0,{"$f":"IFERROR(INDEX(Settings!$AP$17:$AP$38,MATCH(Personnel!$G224,Settings!$AQ$17:$AQ$38,0)),0)","v":0},null,null,null,{"$f":"[1]Personnel!F224","v":0},{"$f":"IFERROR(INDEX((SLevel),MATCH(Personnel!BA224,SLevel202223,0)),0)","v":0},{"$f":"[1]Personnel!H224","v":0},{"$f":"[1]Personnel!I224","v":0},{"$f":"[1]Personnel!J224","v":0},{"$f":"[1]Personnel!P224","v":0},{"$f":"[1]Personnel!Q224","v":0},0,{"$f":"[1]Personnel!S224","v":0},{"$f":"[1]Personnel!S224","v":0},{"$f":"[1]Personnel!S224","v":0},{"$f":"[1]Personnel!T224","v":0},0,{"$f":"[1]Personnel!V224","v":0},{"$f":"[1]Personnel!W224","v":0},0,{"$f":"[1]Personnel!Y224","v":0},{"$f":"[1]Personnel!Z224","v":0},0,0,0,0,null,null,null,null,null,null,null,null,null,null,null,null,null,null,null,null,null,null,null,null,null,null,null,null,null,{"$f":"[1]Personnel!G224","v":0}]
[0,{"$f":"IFERROR(INDEX(Settings!$AP$17:$AP$38,MATCH(Personnel!$G225,Settings!$AQ$17:$AQ$38,0)),0)","v":0},null,null,null,{"$f":"[1]Personnel!F225","v":0},{"$f":"IFERROR(INDEX((SLevel),MATCH(Personnel!BA225,SLevel202223,0)),0)","v":0},{"$f":"[1]Personnel!H225","v":0},{"$f":"[1]Personnel!I225","v":0},{"$f":"[1]Personnel!J225","v":0},{"$f":"[1]Personnel!P225","v":0},{"$f":"[1]Personnel!Q225","v":0},0,{"$f":"[1]Personnel!S225","v":0},{"$f":"[1]Personnel!S225","v":0},{"$f":"[1]Personnel!S225","v":0},{"$f":"[1]Personnel!T225","v":0},0,{"$f":"[1]Personnel!V225","v":0},{"$f":"[1]Personnel!W225","v":0},0,{"$f":"[1]Personnel!Y225","v":0},{"$f":"[1]Personnel!Z225","v":0},0,0,0,0,null,null,null,null,null,null,null,null,null,null,null,null,null,null,null,null,null,null,null,null,null,null,null,null,null,{"$f":"[1]Personnel!G225","v":0}]
[0,{"$f":"IFERROR(INDEX(Settings!$AP$17:$AP$38,MATCH(Personnel!$G226,Settings!$AQ$17:$AQ$38,0)),0)","v":0},null,null,null,{"$f":"[1]Personnel!F226","v":0},{"$f":"IFERROR(INDEX((SLevel),MATCH(Personnel!BA226,SLevel202223,0)),0)","v":0},{"$f":"[1]Personnel!H226","v":0},{"$f":"[1]Personnel!I226","v":0},{"$f":"[1]Personnel!J226","v":0},{"$f":"[1]Personnel!P226","v":0},{"$f":"[1]Personnel!Q226","v":0},0,{"$f":"[1]Personnel!S226","v":0},{"$f":"[1]Personnel!S226","v":0},{"$f":"[1]Personnel!S226","v":0},{"$f":"[1]Personnel!T226","v":0},0,{"$f":"[1]Personnel!V226","v":0},{"$f":"[1]Personnel!W226","v":0},0,{"$f":"[1]Personnel!Y226","v":0},{"$f":"[1]Personnel!Z226","v":0},0,0,0,0,null,null,null,null,null,null,null,null,null,null,null,null,null,null,null,null,null,null,null,null,null,null,null,null,null,{"$f":"[1]Personnel!G226","v":0}]
[0,{"$f":"IFERROR(INDEX(Settings!$AP$17:$AP$38,MATCH(Personnel!$G227,Settings!$AQ$17:$AQ$38,0)),0)","v":0},null,null,null,{"$f":"[1]Personnel!F227","v":0},{"$f":"IFERROR(INDEX((SLevel),MATCH(Personnel!BA227,SLevel202223,0)),0)","v":0},{"$f":"[1]Personnel!H227","v":0},{"$f":"[1]Personnel!I227","v":0},{"$f":"[1]Personnel!J227","v":0},{"$f":"[1]Personnel!P227","v":0},{"$f":"[1]Personnel!Q227","v":0},0,{"$f":"[1]Personnel!S227","v":0},{"$f":"[1]Personnel!S227","v":0},{"$f":"[1]Personnel!S227","v":0},{"$f":"[1]Personnel!T227","v":0},0,{"$f":"[1]Personnel!V227","v":0},{"$f":"[1]Personnel!W227","v":0},0,{"$f":"[1]Personnel!Y227","v":0},{"$f":"[1]Personnel!Z227","v":0},0,0,0,0,null,null,null,null,null,null,null,null,null,null,null,null,null,null,null,null,null,null,null,null,null,null,null,null,null,{"$f":"[1]Personnel!G227","v":0}]
[0,{"$f":"IFERROR(INDEX(Settings!$AP$17:$AP$38,MATCH(Personnel!$G228,Settings!$AQ$17:$AQ$38,0)),0)","v":0},null,null,null,{"$f":"[1]Personnel!F228","v":0},{"$f":"IFERROR(INDEX((SLevel),MATCH(Personnel!BA228,SLevel202223,0)),0)","v":0},{"$f":"[1]Personnel!H228","v":0},{"$f":"[1]Personnel!I228","v":0},{"$f":"[1]Personnel!J228","v":0},{"$f":"[1]Personnel!P228","v":0},{"$f":"[1]Personnel!Q228","v":0},0,{"$f":"[1]Personnel!S228","v":0},{"$f":"[1]Personnel!S228","v":0},{"$f":"[1]Personnel!S228","v":0},{"$f":"[1]Personnel!T228","v":0},0,{"$f":"[1]Personnel!V228","v":0},{"$f":"[1]Personnel!W228","v":0},0,{"$f":"[1]Personnel!Y228","v":0},{"$f":"[1]Personnel!Z228","v":0},0,0,0,0,null,null,null,null,null,null,null,null,null,null,null,null,null,null,null,null,null,null,null,null,null,null,null,null,null,{"$f":"[1]Personnel!G228","v":0}]
[0,{"$f":"IFERROR(INDEX(Settings!$AP$17:$AP$38,MATCH(Personnel!$G229,Settings!$AQ$17:$AQ$38,0)),0)","v":0},null,null,null,{"$f":"[1]Personnel!F229","v":0},{"$f":"IFERROR(INDEX((SLevel),MATCH(Personnel!BA229,SLevel202223,0)),0)","v":0},{"$f":"[1]Personnel!H229","v":0},{"$f":"[1]Personnel!I229","v":0},{"$f":"[1]Personnel!J229","v":0},{"$f":"[1]Personnel!P229","v":0},{"$f":"[1]Personnel!Q229","v":0},0,{"$f":"[1]Personnel!S229","v":0},{"$f":"[1]Personnel!S229","v":0},{"$f":"[1]Personnel!S229","v":0},{"$f":"[1]Personnel!T229","v":0},0,{"$f":"[1]Personnel!V229","v":0},{"$f":"[1]Personnel!W229","v":0},0,{"$f":"[1]Personnel!Y229","v":0},{"$f":"[1]Personnel!Z229","v":0},0,0,0,0,null,null,null,null,null,null,null,null,null,null,null,null,null,null,null,null,null,null,null,null,null,null,null,null,null,{"$f":"[1]Personnel!G229","v":0}]
[0,{"$f":"IFERROR(INDEX(Settings!$AP$17:$AP$38,MATCH(Personnel!$G230,Settings!$AQ$17:$AQ$38,0)),0)","v":0},null,null,null,{"$f":"[1]Personnel!F230","v":0},{"$f":"IFERROR(INDEX((SLevel),MATCH(Personnel!BA230,SLevel202223,0)),0)","v":0},{"$f":"[1]Personnel!H230","v":0},{"$f":"[1]Personnel!I230","v":0},{"$f":"[1]Personnel!J230","v":0},{"$f":"[1]Personnel!P230","v":0},{"$f":"[1]Personnel!Q230","v":0},0,{"$f":"[1]Personnel!S230","v":0},{"$f":"[1]Personnel!S230","v":0},{"$f":"[1]Personnel!S230","v":0},{"$f":"[1]Personnel!T230","v":0},0,{"$f":"[1]Personnel!V230","v":0},{"$f":"[1]Personnel!W230","v":0},0,{"$f":"[1]Personnel!Y230","v":0},{"$f":"[1]Personnel!Z230","v":0},0,0,0,0,null,null,null,null,null,null,null,null,null,null,null,null,null,null,null,null,null,null,null,null,null,null,null,null,null,{"$f":"[1]Personnel!G230","v":0}]
[0,{"$f":"IFERROR(INDEX(Settings!$AP$17:$AP$38,MATCH(Personnel!$G231,Settings!$AQ$17:$AQ$38,0)),0)","v":0},null,null,null,{"$f":"[1]Personnel!F231","v":0},{"$f":"IFERROR(INDEX((SLevel),MATCH(Personnel!BA231,SLevel202223,0)),0)","v":0},{"$f":"[1]Personnel!H231","v":0},{"$f":"[1]Personnel!I231","v":0},{"$f":"[1]Personnel!J231","v":0},{"$f":"[1]Personnel!P231","v":0},{"$f":"[1]Personnel!Q231","v":0},0,{"$f":"[1]Personnel!S231","v":0},{"$f":"[1]Personnel!S231","v":0},{"$f":"[1]Personnel!S231","v":0},{"$f":"[1]Personnel!T231","v":0},0,{"$f":"[1]Personnel!V231","v":0},{"$f":"[1]Personnel!W231","v":0},0,{"$f":"[1]Personnel!Y231","v":0},{"$f":"[1]Personnel!Z231","v":0},0,0,0,0,null,null,null,null,null,null,null,null,null,null,null,null,null,null,null,null,null,null,null,null,null,null,null,null,null,{"$f":"[1]Personnel!G231","v":0}]
[0,{"$f":"IFERROR(INDEX(Settings!$AP$17:$AP$38,MATCH(Personnel!$G232,Settings!$AQ$17:$AQ$38,0)),0)","v":0},null,null,null,{"$f":"[1]Personnel!F232","v":0},{"$f":"IFERROR(INDEX((SLevel),MATCH(Personnel!BA232,SLevel202223,0)),0)","v":0},{"$f":"[1]Personnel!H232","v":0},{"$f":"[1]Personnel!I232","v":0},{"$f":"[1]Personnel!J232","v":0},{"$f":"[1]Personnel!P232","v":0},{"$f":"[1]Personnel!Q232","v":0},0,{"$f":"[1]Personnel!S232","v":0},{"$f":"[1]Personnel!S232","v":0},{"$f":"[1]Personnel!S232","v":0},{"$f":"[1]Personnel!T232","v":0},0,{"$f":"[1]Personnel!V232","v":0},{"$f":"[1]Personnel!W232","v":0},0,{"$f":"[1]Personnel!Y232","v":0},{"$f":"[1]Personnel!Z232","v":0},0,0,0,0,null,null,null,null,null,null,null,null,null,null,null,null,null,null,null,null,null,null,null,null,null,null,null,null,null,{"$f":"[1]Personnel!G232","v":0}]
[0,{"$f":"IFERROR(INDEX(Settings!$AP$17:$AP$38,MATCH(Personnel!$G233,Settings!$AQ$17:$AQ$38,0)),0)","v":0},null,null,null,{"$f":"[1]Personnel!F233","v":0},{"$f":"IFERROR(INDEX((SLevel),MATCH(Personnel!BA233,SLevel202223,0)),0)","v":0},{"$f":"[1]Personnel!H233","v":0},{"$f":"[1]Personnel!I233","v":0},{"$f":"[1]Personnel!J233","v":0},{"$f":"[1]Personnel!P233","v":0},{"$f":"[1]Personnel!Q233","v":0},0,{"$f":"[1]Personnel!S233","v":0},{"$f":"[1]Personnel!S233","v":0},{"$f":"[1]Personnel!S233","v":0},{"$f":"[1]Personnel!T233","v":0},0,{"$f":"[1]Personnel!V233","v":0},{"$f":"[1]Personnel!W233","v":0},0,{"$f":"[1]Personnel!Y233","v":0},{"$f":"[1]Personnel!Z233","v":0},0,0,0,0,null,null,null,null,null,null,null,null,null,null,null,null,null,null,null,null,null,null,null,null,null,null,null,null,null,{"$f":"[1]Personnel!G233","v":0}]
[0,{"$f":"IFERROR(INDEX(Settings!$AP$17:$AP$38,MATCH(Personnel!$G234,Settings!$AQ$17:$AQ$38,0)),0)","v":0},null,null,null,{"$f":"[1]Personnel!F234","v":0},{"$f":"IFERROR(INDEX((SLevel),MATCH(Personnel!BA234,SLevel202223,0)),0)","v":0},{"$f":"[1]Personnel!H234","v":0},{"$f":"[1]Personnel!I234","v":0},{"$f":"[1]Personnel!J234","v":0},{"$f":"[1]Personnel!P234","v":0},{"$f":"[1]Personnel!Q234","v":0},0,{"$f":"[1]Personnel!S234","v":0},{"$f":"[1]Personnel!S234","v":0},{"$f":"[1]Personnel!S234","v":0},{"$f":"[1]Personnel!T234","v":0},0,{"$f":"[1]Personnel!V234","v":0},{"$f":"[1]Personnel!W234","v":0},0,{"$f":"[1]Personnel!Y234","v":0},{"$f":"[1]Personnel!Z234","v":0},0,0,0,0,null,null,null,null,null,null,null,null,null,null,null,null,null,null,null,null,null,null,null,null,null,null,null,null,null,{"$f":"[1]Personnel!G234","v":0}]
[0,{"$f":"IFERROR(INDEX(Settings!$AP$17:$AP$38,MATCH(Personnel!$G235,Settings!$AQ$17:$AQ$38,0)),0)","v":0},null,null,null,{"$f":"[1]Personnel!F235","v":0},{"$f":"IFERROR(INDEX((SLevel),MATCH(Personnel!BA235,SLevel202223,0)),0)","v":0},{"$f":"[1]Personnel!H235","v":0},{"$f":"[1]Personnel!I235","v":0},{"$f":"[1]Personnel!J235","v":0},{"$f":"[1]Personnel!P235","v":0},{"$f":"[1]Personnel!Q235","v":0},0,{"$f":"[1]Personnel!S235","v":0},{"$f":"[1]Personnel!S235","v":0},{"$f":"[1]Personnel!S235","v":0},{"$f":"[1]Personnel!T235","v":0},0,{"$f":"[1]Personnel!V235","v":0},{"$f":"[1]Personnel!W235","v":0},0,{"$f":"[1]Personnel!Y235","v":0},{"$f":"[1]Personnel!Z235","v":0},0,0,0,0,null,null,null,null,null,null,null,null,null,null,null,null,null,null,null,null,null,null,null,null,null,null,null,null,null,{"$f":"[1]Personnel!G235","v":0}]
[0,{"$f":"IFERROR(INDEX(Settings!$AP$17:$AP$38,MATCH(Personnel!$G236,Settings!$AQ$17:$AQ$38,0)),0)","v":0},null,null,null,{"$f":"[1]Personnel!F236","v":0},{"$f":"IFERROR(INDEX((SLevel),MATCH(Personnel!BA236,SLevel202223,0)),0)","v":0},{"$f":"[1]Personnel!H236","v":0},{"$f":"[1]Personnel!I236","v":0},{"$f":"[1]Personnel!J236","v":0},{"$f":"[1]Personnel!P236","v":0},{"$f":"[1]Personnel!Q236","v":0},0,{"$f":"[1]Personnel!S236","v":0},{"$f":"[1]Personnel!S236","v":0},{"$f":"[1]Personnel!S236","v":0},{"$f":"[1]Personnel!T236","v":0},0,{"$f":"[1]Personnel!V236","v":0},{"$f":"[1]Personnel!W236","v":0},0,{"$f":"[1]Personnel!Y236","v":0},{"$f":"[1]Personnel!Z236","v":0},0,0,0,0,null,null,null,null,null,null,null,null,null,null,null,null,null,null,null,null,null,null,null,null,null,null,null,null,null,{"$f":"[1]Personnel!G236","v":0}]
[0,{"$f":"IFERROR(INDEX(Settings!$AP$17:$AP$38,MATCH(Personnel!$G237,Settings!$AQ$17:$AQ$38,0)),0)","v":0},null,null,null,{"$f":"[1]Personnel!F237","v":0},{"$f":"IFERROR(INDEX((SLevel),MATCH(Personnel!BA237,SLevel202223,0)),0)","v":0},{"$f":"[1]Personnel!H237","v":0},{"$f":"[1]Personnel!I237","v":0},{"$f":"[1]Personnel!J237","v":0},{"$f":"[1]Personnel!P237","v":0},{"$f":"[1]Personnel!Q237","v":0},0,{"$f":"[1]Personnel!S237","v":0},{"$f":"[1]Personnel!S237","v":0},{"$f":"[1]Personnel!S237","v":0},{"$f":"[1]Personnel!T237","v":0},0,{"$f":"[1]Personnel!V237","v":0},{"$f":"[1]Personnel!W237","v":0},0,{"$f":"[1]Personnel!Y237","v":0},{"$f":"[1]Personnel!Z237","v":0},0,0,0,0,null,null,null,null,null,null,null,null,null,null,null,null,null,null,null,null,null,null,null,null,null,null,null,null,null,{"$f":"[1]Personnel!G237","v":0}]
[0,{"$f":"IFERROR(INDEX(Settings!$AP$17:$AP$38,MATCH(Personnel!$G238,Settings!$AQ$17:$AQ$38,0)),0)","v":0},null,null,null,{"$f":"[1]Personnel!F238","v":0},{"$f":"IFERROR(INDEX((SLevel),MATCH(Personnel!BA238,SLevel202223,0)),0)","v":0},{"$f":"[1]Personnel!H238","v":0},{"$f":"[1]Personnel!I238","v":0},{"$f":"[1]Personnel!J238","v":0},{"$f":"[1]Personnel!P238","v":0},{"$f":"[1]Personnel!Q238","v":0},0,{"$f":"[1]Personnel!S238","v":0},{"$f":"[1]Personnel!S238","v":0},{"$f":"[1]Personnel!S238","v":0},{"$f":"[1]Personnel!T238","v":0},0,{"$f":"[1]Personnel!V238","v":0},{"$f":"[1]Personnel!W238","v":0},0,{"$f":"[1]Personnel!Y238","v":0},{"$f":"[1]Personnel!Z238","v":0},0,0,0,0,null,null,null,null,null,null,null,null,null,null,null,null,null,null,null,null,null,null,null,null,null,null,null,null,null,{"$f":"[1]Personnel!G238","v":0}]
[0,{"$f":"IFERROR(INDEX(Settings!$AP$17:$AP$38,MATCH(Personnel!$G239,Settings!$AQ$17:$AQ$38,0)),0)","v":0},null,null,null,{"$f":"[1]Personnel!F239","v":0},{"$f":"IFERROR(INDEX((SLevel),MATCH(Personnel!BA239,SLevel202223,0)),0)","v":0},{"$f":"[1]Personnel!H239","v":0},{"$f":"[1]Personnel!I239","v":0},{"$f":"[1]Personnel!J239","v":0},{"$f":"[1]Personnel!P239","v":0},{"$f":"[1]Personnel!Q239","v":0},0,{"$f":"[1]Personnel!S239","v":0},{"$f":"[1]Personnel!S239","v":0},{"$f":"[1]Personnel!S239","v":0},{"$f":"[1]Personnel!T239","v":0},0,{"$f":"[1]Personnel!V239","v":0},{"$f":"[1]Personnel!W239","v":0},0,{"$f":"[1]Personnel!Y239","v":0},{"$f":"[1]Personnel!Z239","v":0},0,0,0,0,null,null,null,null,null,null,null,null,null,null,null,null,null,null,null,null,null,null,null,null,null,null,null,null,null,{"$f":"[1]Personnel!G239","v":0}]
[0,{"$f":"IFERROR(INDEX(Settings!$AP$17:$AP$38,MATCH(Personnel!$G240,Settings!$AQ$17:$AQ$38,0)),0)","v":0},null,null,null,{"$f":"[1]Personnel!F240","v":0},{"$f":"IFERROR(INDEX((SLevel),MATCH(Personnel!BA240,SLevel202223,0)),0)","v":0},{"$f":"[1]Personnel!H240","v":0},{"$f":"[1]Personnel!I240","v":0},{"$f":"[1]Personnel!J240","v":0},{"$f":"[1]Personnel!P240","v":0},{"$f":"[1]Personnel!Q240","v":0},0,{"$f":"[1]Personnel!S240","v":0},{"$f":"[1]Personnel!S240","v":0},{"$f":"[1]Personnel!S240","v":0},{"$f":"[1]Personnel!T240","v":0},0,{"$f":"[1]Personnel!V240","v":0},{"$f":"[1]Personnel!W240","v":0},0,{"$f":"[1]Personnel!Y240","v":0},{"$f":"[1]Personnel!Z240","v":0},0,0,0,0,null,null,null,null,null,null,null,null,null,null,null,null,null,null,null,null,null,null,null,null,null,null,null,null,null,{"$f":"[1]Personnel!G240","v":0}]
[0,{"$f":"IFERROR(INDEX(Settings!$AP$17:$AP$38,MATCH(Personnel!$G241,Settings!$AQ$17:$AQ$38,0)),0)","v":0},null,null,null,{"$f":"[1]Personnel!F241","v":0},{"$f":"IFERROR(INDEX((SLevel),MATCH(Personnel!BA241,SLevel202223,0)),0)","v":0},{"$f":"[1]Personnel!H241","v":0},{"$f":"[1]Personnel!I241","v":0},{"$f":"[1]Personnel!J241","v":0},{"$f":"[1]Personnel!P241","v":0},{"$f":"[1]Personnel!Q241","v":0},0,{"$f":"[1]Personnel!S241","v":0},{"$f":"[1]Personnel!S241","v":0},{"$f":"[1]Personnel!S241","v":0},{"$f":"[1]Personnel!T241","v":0},0,{"$f":"[1]Personnel!V241","v":0},{"$f":"[1]Personnel!W241","v":0},0,{"$f":"[1]Personnel!Y241","v":0},{"$f":"[1]Personnel!Z241","v":0},0,0,0,0,null,null,null,null,null,null,null,null,null,null,null,null,null,null,null,null,null,null,null,null,null,null,null,null,null,{"$f":"[1]Personnel!G241","v":0}]
[0,{"$f":"IFERROR(INDEX(Settings!$AP$17:$AP$38,MATCH(Personnel!$G242,Settings!$AQ$17:$AQ$38,0)),0)","v":0},null,null,null,{"$f":"[1]Personnel!F242","v":0},{"$f":"IFERROR(INDEX((SLevel),MATCH(Personnel!BA242,SLevel202223,0)),0)","v":0},{"$f":"[1]Personnel!H242","v":0},{"$f":"[1]Personnel!I242","v":0},{"$f":"[1]Personnel!J242","v":0},{"$f":"[1]Personnel!P242","v":0},{"$f":"[1]Personnel!Q242","v":0},0,{"$f":"[1]Personnel!S242","v":0},{"$f":"[1]Personnel!S242","v":0},{"$f":"[1]Personnel!S242","v":0},{"$f":"[1]Personnel!T242","v":0},0,{"$f":"[1]Personnel!V242","v":0},{"$f":"[1]Personnel!W242","v":0},0,{"$f":"[1]Personnel!Y242","v":0},{"$f":"[1]Personnel!Z242","v":0},0,0,0,0,null,null,null,null,null,null,null,null,null,null,null,null,null,null,null,null,null,null,null,null,null,null,null,null,null,{"$f":"[1]Personnel!G242","v":0}]
[0,{"$f":"IFERROR(INDEX(Settings!$AP$17:$AP$38,MATCH(Personnel!$G243,Settings!$AQ$17:$AQ$38,0)),0)","v":0},null,null,null,{"$f":"[1]Personnel!F243","v":0},{"$f":"IFERROR(INDEX((SLevel),MATCH(Personnel!BA243,SLevel202223,0)),0)","v":0},{"$f":"[1]Personnel!H243","v":0},{"$f":"[1]Personnel!I243","v":0},{"$f":"[1]Personnel!J243","v":0},{"$f":"[1]Personnel!P243","v":0},{"$f":"[1]Personnel!Q243","v":0},0,{"$f":"[1]Personnel!S243","v":0},{"$f":"[1]Personnel!S243","v":0},{"$f":"[1]Personnel!S243","v":0},{"$f":"[1]Personnel!T243","v":0},0,{"$f":"[1]Personnel!V243","v":0},{"$f":"[1]Personnel!W243","v":0},0,{"$f":"[1]Personnel!Y243","v":0},{"$f":"[1]Personnel!Z243","v":0},0,0,0,0,null,null,null,null,null,null,null,null,null,null,null,null,null,null,null,null,null,null,null,null,null,null,null,null,null,{"$f":"[1]Personnel!G243","v":0}]
[0,{"$f":"IFERROR(INDEX(Settings!$AP$17:$AP$38,MATCH(Personnel!$G244,Settings!$AQ$17:$AQ$38,0)),0)","v":0},null,null,null,{"$f":"[1]Personnel!F244","v":0},{"$f":"IFERROR(INDEX((SLevel),MATCH(Personnel!BA244,SLevel202223,0)),0)","v":0},{"$f":"[1]Personnel!H244","v":0},{"$f":"[1]Personnel!I244","v":0},{"$f":"[1]Personnel!J244","v":0},{"$f":"[1]Personnel!P244","v":0},{"$f":"[1]Personnel!Q244","v":0},0,{"$f":"[1]Personnel!S244","v":0},{"$f":"[1]Personnel!S244","v":0},{"$f":"[1]Personnel!S244","v":0},{"$f":"[1]Personnel!T244","v":0},0,{"$f":"[1]Personnel!V244","v":0},{"$f":"[1]Personnel!W244","v":0},0,{"$f":"[1]Personnel!Y244","v":0},{"$f":"[1]Personnel!Z244","v":0},0,0,0,0,null,null,null,null,null,null,null,null,null,null,null,null,null,null,null,null,null,null,null,null,null,null,null,null,null,{"$f":"[1]Personnel!G244","v":0}]
[0,{"$f":"IFERROR(INDEX(Settings!$AP$17:$AP$38,MATCH(Personnel!$G245,Settings!$AQ$17:$AQ$38,0)),0)","v":0},null,null,null,{"$f":"[1]Personnel!F245","v":0},{"$f":"IFERROR(INDEX((SLevel),MATCH(Personnel!BA245,SLevel202223,0)),0)","v":0},{"$f":"[1]Personnel!H245","v":0},{"$f":"[1]Personnel!I245","v":0},{"$f":"[1]Personnel!J245","v":0},{"$f":"[1]Personnel!P245","v":0},{"$f":"[1]Personnel!Q245","v":0},0,{"$f":"[1]Personnel!S245","v":0},{"$f":"[1]Personnel!S245","v":0},{"$f":"[1]Personnel!S245","v":0},{"$f":"[1]Personnel!T245","v":0},0,{"$f":"[1]Personnel!V245","v":0},{"$f":"[1]Personnel!W245","v":0},0,{"$f":"[1]Personnel!Y245","v":0},{"$f":"[1]Personnel!Z245","v":0},0,0,0,0,null,null,null,null,null,null,null,null,null,null,null,null,null,null,null,null,null,null,null,null,null,null,null,null,null,{"$f":"[1]Personnel!G245","v":0}]
[0,{"$f":"IFERROR(INDEX(Settings!$AP$17:$AP$38,MATCH(Personnel!$G246,Settings!$AQ$17:$AQ$38,0)),0)","v":0},null,null,null,{"$f":"[1]Personnel!F246","v":0},{"$f":"IFERROR(INDEX((SLevel),MATCH(Personnel!BA246,SLevel202223,0)),0)","v":0},{"$f":"[1]Personnel!H246","v":0},{"$f":"[1]Personnel!I246","v":0},{"$f":"[1]Personnel!J246","v":0},{"$f":"[1]Personnel!P246","v":0},{"$f":"[1]Personnel!Q246","v":0},0,{"$f":"[1]Personnel!S246","v":0},{"$f":"[1]Personnel!S246","v":0},{"$f":"[1]Personnel!S246","v":0},{"$f":"[1]Personnel!T246","v":0},0,{"$f":"[1]Personnel!V246","v":0},{"$f":"[1]Personnel!W246","v":0},0,{"$f":"[1]Personnel!Y246","v":0},{"$f":"[1]Personnel!Z246","v":0},0,0,0,0,null,null,null,null,null,null,null,null,null,null,null,null,null,null,null,null,null,null,null,null,null,null,null,null,null,{"$f":"[1]Personnel!G246","v":0}]
[0,{"$f":"IFERROR(INDEX(Settings!$AP$17:$AP$38,MATCH(Personnel!$G247,Settings!$AQ$17:$AQ$38,0)),0)","v":0},null,null,null,{"$f":"[1]Personnel!F247","v":0},{"$f":"IFERROR(INDEX((SLevel),MATCH(Personnel!BA247,SLevel202223,0)),0)","v":0},{"$f":"[1]Personnel!H247","v":0},{"$f":"[1]Personnel!I247","v":0},{"$f":"[1]Personnel!J247","v":0},{"$f":"[1]Personnel!P247","v":0},{"$f":"[1]Personnel!Q247","v":0},0,{"$f":"[1]Personnel!S247","v":0},{"$f":"[1]Personnel!S247","v":0},{"$f":"[1]Personnel!S247","v":0},{"$f":"[1]Personnel!T247","v":0},0,{"$f":"[1]Personnel!V247","v":0},{"$f":"[1]Personnel!W247","v":0},0,{"$f":"[1]Personnel!Y247","v":0},{"$f":"[1]Personnel!Z247","v":0},0,0,0,0,null,null,null,null,null,null,null,null,null,null,null,null,null,null,null,null,null,null,null,null,null,null,null,null,null,{"$f":"[1]Personnel!G247","v":0}]
[0,{"$f":"IFERROR(INDEX(Settings!$AP$17:$AP$38,MATCH(Personnel!$G248,Settings!$AQ$17:$AQ$38,0)),0)","v":0},null,null,null,{"$f":"[1]Personnel!F248","v":0},{"$f":"IFERROR(INDEX((SLevel),MATCH(Personnel!BA248,SLevel202223,0)),0)","v":0},{"$f":"[1]Personnel!H248","v":0},{"$f":"[1]Personnel!I248","v":0},{"$f":"[1]Personnel!J248","v":0},{"$f":"[1]Personnel!P248","v":0},{"$f":"[1]Personnel!Q248","v":0},0,{"$f":"[1]Personnel!S248","v":0},{"$f":"[1]Personnel!S248","v":0},{"$f":"[1]Personnel!S248","v":0},{"$f":"[1]Personnel!T248","v":0},0,{"$f":"[1]Personnel!V248","v":0},{"$f":"[1]Personnel!W248","v":0},0,{"$f":"[1]Personnel!Y248","v":0},{"$f":"[1]Personnel!Z248","v":0},0,0,0,0,null,null,null,null,null,null,null,null,null,null,null,null,null,null,null,null,null,null,null,null,null,null,null,null,null,{"$f":"[1]Personnel!G248","v":0}]
[0,{"$f":"IFERROR(INDEX(Settings!$AP$17:$AP$38,MATCH(Personnel!$G249,Settings!$AQ$17:$AQ$38,0)),0)","v":0},null,null,null,{"$f":"[1]Personnel!F249","v":0},{"$f":"IFERROR(INDEX((SLevel),MATCH(Personnel!BA249,SLevel202223,0)),0)","v":0},{"$f":"[1]Personnel!H249","v":0},{"$f":"[1]Personnel!I249","v":0},{"$f":"[1]Personnel!J249","v":0},{"$f":"[1]Personnel!P249","v":0},{"$f":"[1]Personnel!Q249","v":0},0,{"$f":"[1]Personnel!S249","v":0},{"$f":"[1]Personnel!S249","v":0},{"$f":"[1]Personnel!S249","v":0},{"$f":"[1]Personnel!T249","v":0},0,{"$f":"[1]Personnel!V249","v":0},{"$f":"[1]Personnel!W249","v":0},0,{"$f":"[1]Personnel!Y249","v":0},{"$f":"[1]Personnel!Z249","v":0},0,0,0,0,null,null,null,null,null,null,null,null,null,null,null,null,null,null,null,null,null,null,null,null,null,null,null,null,null,{"$f":"[1]Personnel!G249","v":0}]
[0,{"$f":"IFERROR(INDEX(Settings!$AP$17:$AP$38,MATCH(Personnel!$G250,Settings!$AQ$17:$AQ$38,0)),0)","v":0},null,null,null,{"$f":"[1]Personnel!F250","v":0},{"$f":"IFERROR(INDEX((SLevel),MATCH(Personnel!BA250,SLevel202223,0)),0)","v":0},{"$f":"[1]Personnel!H250","v":0},{"$f":"[1]Personnel!I250","v":0},{"$f":"[1]Personnel!J250","v":0},{"$f":"[1]Personnel!P250","v":0},{"$f":"[1]Personnel!Q250","v":0},0,{"$f":"[1]Personnel!S250","v":0},{"$f":"[1]Personnel!S250","v":0},{"$f":"[1]Personnel!S250","v":0},{"$f":"[1]Personnel!T250","v":0},0,{"$f":"[1]Personnel!V250","v":0},{"$f":"[1]Personnel!W250","v":0},0,{"$f":"[1]Personnel!Y250","v":0},{"$f":"[1]Personnel!Z250","v":0},0,0,0,0,null,null,null,null,null,null,null,null,null,null,null,null,null,null,null,null,null,null,null,null,null,null,null,null,null,{"$f":"[1]Personnel!G250","v":0}]
[0,{"$f":"IFERROR(INDEX(Settings!$AP$17:$AP$38,MATCH(Personnel!$G251,Settings!$AQ$17:$AQ$38,0)),0)","v":0},null,null,null,{"$f":"[1]Personnel!F251","v":0},{"$f":"IFERROR(INDEX((SLevel),MATCH(Personnel!BA251,SLevel202223,0)),0)","v":0},{"$f":"[1]Personnel!H251","v":0},{"$f":"[1]Personnel!I251","v":0},{"$f":"[1]Personnel!J251","v":0},{"$f":"[1]Personnel!P251","v":0},{"$f":"[1]Personnel!Q251","v":0},0,{"$f":"[1]Personnel!S251","v":0},{"$f":"[1]Personnel!S251","v":0},{"$f":"[1]Personnel!S251","v":0},{"$f":"[1]Personnel!T251","v":0},0,{"$f":"[1]Personnel!V251","v":0},{"$f":"[1]Personnel!W251","v":0},0,{"$f":"[1]Personnel!Y251","v":0},{"$f":"[1]Personnel!Z251","v":0},0,0,0,0,null,null,null,null,null,null,null,null,null,null,null,null,null,null,null,null,null,null,null,null,null,null,null,null,null,{"$f":"[1]Personnel!G251","v":0}]
[0,{"$f":"IFERROR(INDEX(Settings!$AP$17:$AP$38,MATCH(Personnel!$G252,Settings!$AQ$17:$AQ$38,0)),0)","v":0},null,null,null,{"$f":"[1]Personnel!F252","v":0},{"$f":"IFERROR(INDEX((SLevel),MATCH(Personnel!BA252,SLevel202223,0)),0)","v":0},{"$f":"[1]Personnel!H252","v":0},{"$f":"[1]Personnel!I252","v":0},{"$f":"[1]Personnel!J252","v":0},{"$f":"[1]Personnel!P252","v":0},{"$f":"[1]Personnel!Q252","v":0},0,{"$f":"[1]Personnel!S252","v":0},{"$f":"[1]Personnel!S252","v":0},{"$f":"[1]Personnel!S252","v":0},{"$f":"[1]Personnel!T252","v":0},0,{"$f":"[1]Personnel!V252","v":0},{"$f":"[1]Personnel!W252","v":0},0,{"$f":"[1]Personnel!Y252","v":0},{"$f":"[1]Personnel!Z252","v":0},0,0,0,0,null,null,null,null,null,null,null,null,null,null,null,null,null,null,null,null,null,null,null,null,null,null,null,null,null,{"$f":"[1]Personnel!G252","v":0}]
[0,{"$f":"IFERROR(INDEX(Settings!$AP$17:$AP$38,MATCH(Personnel!$G253,Settings!$AQ$17:$AQ$38,0)),0)","v":0},null,null,null,{"$f":"[1]Personnel!F253","v":0},{"$f":"IFERROR(INDEX((SLevel),MATCH(Personnel!BA253,SLevel202223,0)),0)","v":0},{"$f":"[1]Personnel!H253","v":0},{"$f":"[1]Personnel!I253","v":0},{"$f":"[1]Personnel!J253","v":0},{"$f":"[1]Personnel!P253","v":0},{"$f":"[1]Personnel!Q253","v":0},0,{"$f":"[1]Personnel!S253","v":0},{"$f":"[1]Personnel!S253","v":0},{"$f":"[1]Personnel!S253","v":0},{"$f":"[1]Personnel!T253","v":0},0,{"$f":"[1]Personnel!V253","v":0},{"$f":"[1]Personnel!W253","v":0},0,{"$f":"[1]Personnel!Y253","v":0},{"$f":"[1]Personnel!Z253","v":0},0,0,0,0,null,null,null,null,null,null,null,null,null,null,null,null,null,null,null,null,null,null,null,null,null,null,null,null,null,{"$f":"[1]Personnel!G253","v":0}]
[0,{"$f":"IFERROR(INDEX(Settings!$AP$17:$AP$38,MATCH(Personnel!$G254,Settings!$AQ$17:$AQ$38,0)),0)","v":0},null,null,null,{"$f":"[1]Personnel!F254","v":0},{"$f":"IFERROR(INDEX((SLevel),MATCH(Personnel!BA254,SLevel202223,0)),0)","v":0},{"$f":"[1]Personnel!H254","v":0},{"$f":"[1]Personnel!I254","v":0},{"$f":"[1]Personnel!J254","v":0},{"$f":"[1]Personnel!P254","v":0},{"$f":"[1]Personnel!Q254","v":0},0,{"$f":"[1]Personnel!S254","v":0},{"$f":"[1]Personnel!S254","v":0},{"$f":"[1]Personnel!S254","v":0},{"$f":"[1]Personnel!T254","v":0},0,{"$f":"[1]Personnel!V254","v":0},{"$f":"[1]Personnel!W254","v":0},0,{"$f":"[1]Personnel!Y254","v":0},{"$f":"[1]Personnel!Z254","v":0},0,0,0,0,null,null,null,null,null,null,null,null,null,null,null,null,null,null,null,null,null,null,null,null,null,null,null,null,null,{"$f":"[1]Personnel!G254","v":0}]
[0,{"$f":"IFERROR(INDEX(Settings!$AP$17:$AP$38,MATCH(Personnel!$G255,Settings!$AQ$17:$AQ$38,0)),0)","v":0},null,null,null,{"$f":"[1]Personnel!F255","v":0},{"$f":"IFERROR(INDEX((SLevel),MATCH(Personnel!BA255,SLevel202223,0)),0)","v":0},{"$f":"[1]Personnel!H255","v":0},{"$f":"[1]Personnel!I255","v":0},{"$f":"[1]Personnel!J255","v":0},{"$f":"[1]Personnel!P255","v":0},{"$f":"[1]Personnel!Q255","v":0},0,{"$f":"[1]Personnel!S255","v":0},{"$f":"[1]Personnel!S255","v":0},{"$f":"[1]Personnel!S255","v":0},{"$f":"[1]Personnel!T255","v":0},0,{"$f":"[1]Personnel!V255","v":0},{"$f":"[1]Personnel!W255","v":0},0,{"$f":"[1]Personnel!Y255","v":0},{"$f":"[1]Personnel!Z255","v":0},0,0,0,0,null,null,null,null,null,null,null,null,null,null,null,null,null,null,null,null,null,null,null,null,null,null,null,null,null,{"$f":"[1]Personnel!G255","v":0}]
[0,{"$f":"IFERROR(INDEX(Settings!$AP$17:$AP$38,MATCH(Personnel!$G256,Settings!$AQ$17:$AQ$38,0)),0)","v":0},null,null,null,{"$f":"[1]Personnel!F256","v":0},{"$f":"IFERROR(INDEX((SLevel),MATCH(Personnel!BA256,SLevel202223,0)),0)","v":0},{"$f":"[1]Personnel!H256","v":0},{"$f":"[1]Personnel!I256","v":0},{"$f":"[1]Personnel!J256","v":0},{"$f":"[1]Personnel!P256","v":0},{"$f":"[1]Personnel!Q256","v":0},0,{"$f":"[1]Personnel!S256","v":0},{"$f":"[1]Personnel!S256","v":0},{"$f":"[1]Personnel!S256","v":0},{"$f":"[1]Personnel!T256","v":0},0,{"$f":"[1]Personnel!V256","v":0},{"$f":"[1]Personnel!W256","v":0},0,{"$f":"[1]Personnel!Y256","v":0},{"$f":"[1]Personnel!Z256","v":0},0,0,0,0,null,null,null,null,null,null,null,null,null,null,null,null,null,null,null,null,null,null,null,null,null,null,null,null,null,{"$f":"[1]Personnel!G256","v":0}]
[0,{"$f":"IFERROR(INDEX(Settings!$AP$17:$AP$38,MATCH(Personnel!$G257,Settings!$AQ$17:$AQ$38,0)),0)","v":0},null,null,null,{"$f":"[1]Personnel!F257","v":0},{"$f":"IFERROR(INDEX((SLevel),MATCH(Personnel!BA257,SLevel202223,0)),0)","v":0},{"$f":"[1]Personnel!H257","v":0},{"$f":"[1]Personnel!I257","v":0},{"$f":"[1]Personnel!J257","v":0},{"$f":"[1]Personnel!P257","v":0},{"$f":"[1]Personnel!Q257","v":0},0,{"$f":"[1]Personnel!S257","v":0},{"$f":"[1]Personnel!S257","v":0},{"$f":"[1]Personnel!S257","v":0},{"$f":"[1]Personnel!T257","v":0},0,{"$f":"[1]Personnel!V257","v":0},{"$f":"[1]Personnel!W257","v":0},0,{"$f":"[1]Personnel!Y257","v":0},{"$f":"[1]Personnel!Z257","v":0},0,0,0,0,null,null,null,null,null,null,null,null,null,null,null,null,null,null,null,null,null,null,null,null,null,null,null,null,null,{"$f":"[1]Personnel!G257","v":0}]
[0,{"$f":"IFERROR(INDEX(Settings!$AP$17:$AP$38,MATCH(Personnel!$G258,Settings!$AQ$17:$AQ$38,0)),0)","v":0},null,null,null,{"$f":"[1]Personnel!F258","v":0},{"$f":"IFERROR(INDEX((SLevel),MATCH(Personnel!BA258,SLevel202223,0)),0)","v":0},{"$f":"[1]Personnel!H258","v":0},{"$f":"[1]Personnel!I258","v":0},{"$f":"[1]Personnel!J258","v":0},{"$f":"[1]Personnel!P258","v":0},{"$f":"[1]Personnel!Q258","v":0},0,{"$f":"[1]Personnel!S258","v":0},{"$f":"[1]Personnel!S258","v":0},{"$f":"[1]Personnel!S258","v":0},{"$f":"[1]Personnel!T258","v":0},0,{"$f":"[1]Personnel!V258","v":0},{"$f":"[1]Personnel!W258","v":0},0,{"$f":"[1]Personnel!Y258","v":0},{"$f":"[1]Personnel!Z258","v":0},0,0,0,0,null,null,null,null,null,null,null,null,null,null,null,null,null,null,null,null,null,null,null,null,null,null,null,null,null,{"$f":"[1]Personnel!G258","v":0}]
[0,{"$f":"IFERROR(INDEX(Settings!$AP$17:$AP$38,MATCH(Personnel!$G259,Settings!$AQ$17:$AQ$38,0)),0)","v":0},null,null,null,{"$f":"[1]Personnel!F259","v":0},{"$f":"IFERROR(INDEX((SLevel),MATCH(Personnel!BA259,SLevel202223,0)),0)","v":0},{"$f":"[1]Personnel!H259","v":0},{"$f":"[1]Personnel!I259","v":0},{"$f":"[1]Personnel!J259","v":0},{"$f":"[1]Personnel!P259","v":0},{"$f":"[1]Personnel!Q259","v":0},0,{"$f":"[1]Personnel!S259","v":0},{"$f":"[1]Personnel!S259","v":0},{"$f":"[1]Personnel!S259","v":0},{"$f":"[1]Personnel!T259","v":0},0,{"$f":"[1]Personnel!V259","v":0},{"$f":"[1]Personnel!W259","v":0},0,{"$f":"[1]Personnel!Y259","v":0},{"$f":"[1]Personnel!Z259","v":0},0,0,0,0,null,null,null,null,null,null,null,null,null,null,null,null,null,null,null,null,null,null,null,null,null,null,null,null,null,{"$f":"[1]Personnel!G259","v":0}]
[0,{"$f":"IFERROR(INDEX(Settings!$AP$17:$AP$38,MATCH(Personnel!$G260,Settings!$AQ$17:$AQ$38,0)),0)","v":0},null,null,null,{"$f":"[1]Personnel!F260","v":0},{"$f":"IFERROR(INDEX((SLevel),MATCH(Personnel!BA260,SLevel202223,0)),0)","v":0},{"$f":"[1]Personnel!H260","v":0},{"$f":"[1]Personnel!I260","v":0},{"$f":"[1]Personnel!J260","v":0},{"$f":"[1]Personnel!P260","v":0},{"$f":"[1]Personnel!Q260","v":0},0,{"$f":"[1]Personnel!S260","v":0},{"$f":"[1]Personnel!S260","v":0},{"$f":"[1]Personnel!S260","v":0},{"$f":"[1]Personnel!T260","v":0},0,{"$f":"[1]Personnel!V260","v":0},{"$f":"[1]Personnel!W260","v":0},0,{"$f":"[1]Personnel!Y260","v":0},{"$f":"[1]Personnel!Z260","v":0},0,0,0,0,null,null,null,null,null,null,null,null,null,null,null,null,null,null,null,null,null,null,null,null,null,null,null,null,null,{"$f":"[1]Personnel!G260","v":0}]
[0,{"$f":"IFERROR(INDEX(Settings!$AP$17:$AP$38,MATCH(Personnel!$G261,Settings!$AQ$17:$AQ$38,0)),0)","v":0},null,null,null,{"$f":"[1]Personnel!F261","v":0},{"$f":"IFERROR(INDEX((SLevel),MATCH(Personnel!BA261,SLevel202223,0)),0)","v":0},{"$f":"[1]Personnel!H261","v":0},{"$f":"[1]Personnel!I261","v":0},{"$f":"[1]Personnel!J261","v":0},{"$f":"[1]Personnel!P261","v":0},{"$f":"[1]Personnel!Q261","v":0},0,{"$f":"[1]Personnel!S261","v":0},{"$f":"[1]Personnel!S261","v":0},{"$f":"[1]Personnel!S261","v":0},{"$f":"[1]Personnel!T261","v":0},0,{"$f":"[1]Personnel!V261","v":0},{"$f":"[1]Personnel!W261","v":0},0,{"$f":"[1]Personnel!Y261","v":0},{"$f":"[1]Personnel!Z261","v":0},0,0,0,0,null,null,null,null,null,null,null,null,null,null,null,null,null,null,null,null,null,null,null,null,null,null,null,null,null,{"$f":"[1]Personnel!G261","v":0}]
[0,{"$f":"IFERROR(INDEX(Settings!$AP$17:$AP$38,MATCH(Personnel!$G262,Settings!$AQ$17:$AQ$38,0)),0)","v":0},null,null,null,{"$f":"[1]Personnel!F262","v":0},{"$f":"IFERROR(INDEX((SLevel),MATCH(Personnel!BA262,SLevel202223,0)),0)","v":0},{"$f":"[1]Personnel!H262","v":0},{"$f":"[1]Personnel!I262","v":0},{"$f":"[1]Personnel!J262","v":0},{"$f":"[1]Personnel!P262","v":0},{"$f":"[1]Personnel!Q262","v":0},0,{"$f":"[1]Personnel!S262","v":0},{"$f":"[1]Personnel!S262","v":0},{"$f":"[1]Personnel!S262","v":0},{"$f":"[1]Personnel!T262","v":0},0,{"$f":"[1]Personnel!V262","v":0},{"$f":"[1]Personnel!W262","v":0},0,{"$f":"[1]Personnel!Y262","v":0},{"$f":"[1]Personnel!Z262","v":0},0,0,0,0,null,null,null,null,null,null,null,null,null,null,null,null,null,null,null,null,null,null,null,null,null,null,null,null,null,{"$f":"[1]Personnel!G262","v":0}]
[0,{"$f":"IFERROR(INDEX(Settings!$AP$17:$AP$38,MATCH(Personnel!$G263,Settings!$AQ$17:$AQ$38,0)),0)","v":0},null,null,null,{"$f":"[1]Personnel!F263","v":0},{"$f":"IFERROR(INDEX((SLevel),MATCH(Personnel!BA263,SLevel202223,0)),0)","v":0},{"$f":"[1]Personnel!H263","v":0},{"$f":"[1]Personnel!I263","v":0},{"$f":"[1]Personnel!J263","v":0},{"$f":"[1]Personnel!P263","v":0},{"$f":"[1]Personnel!Q263","v":0},0,{"$f":"[1]Personnel!S263","v":0},{"$f":"[1]Personnel!S263","v":0},{"$f":"[1]Personnel!S263","v":0},{"$f":"[1]Personnel!T263","v":0},0,{"$f":"[1]Personnel!V263","v":0},{"$f":"[1]Personnel!W263","v":0},0,{"$f":"[1]Personnel!Y263","v":0},{"$f":"[1]Personnel!Z263","v":0},0,0,0,0,null,null,null,null,null,null,null,null,null,null,null,null,null,null,null,null,null,null,null,null,null,null,null,null,null,{"$f":"[1]Personnel!G263","v":0}]
[0,{"$f":"IFERROR(INDEX(Settings!$AP$17:$AP$38,MATCH(Personnel!$G264,Settings!$AQ$17:$AQ$38,0)),0)","v":0},null,null,null,{"$f":"[1]Personnel!F264","v":0},{"$f":"IFERROR(INDEX((SLevel),MATCH(Personnel!BA264,SLevel202223,0)),0)","v":0},{"$f":"[1]Personnel!H264","v":0},{"$f":"[1]Personnel!I264","v":0},{"$f":"[1]Personnel!J264","v":0},{"$f":"[1]Personnel!P264","v":0},{"$f":"[1]Personnel!Q264","v":0},0,{"$f":"[1]Personnel!S264","v":0},{"$f":"[1]Personnel!S264","v":0},{"$f":"[1]Personnel!S264","v":0},{"$f":"[1]Personnel!T264","v":0},0,{"$f":"[1]Personnel!V264","v":0},{"$f":"[1]Personnel!W264","v":0},0,{"$f":"[1]Personnel!Y264","v":0},{"$f":"[1]Personnel!Z264","v":0},0,0,0,0,null,null,null,null,null,null,null,null,null,null,null,null,null,null,null,null,null,null,null,null,null,null,null,null,null,{"$f":"[1]Personnel!G264","v":0}]
[0,{"$f":"IFERROR(INDEX(Settings!$AP$17:$AP$38,MATCH(Personnel!$G265,Settings!$AQ$17:$AQ$38,0)),0)","v":0},null,null,null,{"$f":"[1]Personnel!F265","v":0},{"$f":"IFERROR(INDEX((SLevel),MATCH(Personnel!BA265,SLevel202223,0)),0)","v":0},{"$f":"[1]Personnel!H265","v":0},{"$f":"[1]Personnel!I265","v":0},{"$f":"[1]Personnel!J265","v":0},{"$f":"[1]Personnel!P265","v":0},{"$f":"[1]Personnel!Q265","v":0},0,{"$f":"[1]Personnel!S265","v":0},{"$f":"[1]Personnel!S265","v":0},{"$f":"[1]Personnel!S265","v":0},{"$f":"[1]Personnel!T265","v":0},0,{"$f":"[1]Personnel!V265","v":0},{"$f":"[1]Personnel!W265","v":0},0,{"$f":"[1]Personnel!Y265","v":0},{"$f":"[1]Personnel!Z265","v":0},0,0,0,0,null,null,null,null,null,null,null,null,null,null,null,null,null,null,null,null,null,null,null,null,null,null,null,null,null,{"$f":"[1]Personnel!G265","v":0}]
[0,{"$f":"IFERROR(INDEX(Settings!$AP$17:$AP$38,MATCH(Personnel!$G266,Settings!$AQ$17:$AQ$38,0)),0)","v":0},null,null,null,{"$f":"[1]Personnel!F266","v":0},{"$f":"IFERROR(INDEX((SLevel),MATCH(Personnel!BA266,SLevel202223,0)),0)","v":0},{"$f":"[1]Personnel!H266","v":0},{"$f":"[1]Personnel!I266","v":0},{"$f":"[1]Personnel!J266","v":0},{"$f":"[1]Personnel!P266","v":0},{"$f":"[1]Personnel!Q266","v":0},0,{"$f":"[1]Personnel!S266","v":0},{"$f":"[1]Personnel!S266","v":0},{"$f":"[1]Personnel!S266","v":0},{"$f":"[1]Personnel!T266","v":0},0,{"$f":"[1]Personnel!V266","v":0},{"$f":"[1]Personnel!W266","v":0},0,{"$f":"[1]Personnel!Y266","v":0},{"$f":"[1]Personnel!Z266","v":0},0,0,0,0,null,null,null,null,null,null,null,null,null,null,null,null,null,null,null,null,null,null,null,null,null,null,null,null,null,{"$f":"[1]Personnel!G266","v":0}]
[0,{"$f":"IFERROR(INDEX(Settings!$AP$17:$AP$38,MATCH(Personnel!$G267,Settings!$AQ$17:$AQ$38,0)),0)","v":0},null,null,null,{"$f":"[1]Personnel!F267","v":0},{"$f":"IFERROR(INDEX((SLevel),MATCH(Personnel!BA267,SLevel202223,0)),0)","v":0},{"$f":"[1]Personnel!H267","v":0},{"$f":"[1]Personnel!I267","v":0},{"$f":"[1]Personnel!J267","v":0},{"$f":"[1]Personnel!P267","v":0},{"$f":"[1]Personnel!Q267","v":0},0,{"$f":"[1]Personnel!S267","v":0},{"$f":"[1]Personnel!S267","v":0},{"$f":"[1]Personnel!S267","v":0},{"$f":"[1]Personnel!T267","v":0},0,{"$f":"[1]Personnel!V267","v":0},{"$f":"[1]Personnel!W267","v":0},0,{"$f":"[1]Personnel!Y267","v":0},{"$f":"[1]Personnel!Z267","v":0},0,0,0,0,null,null,null,null,null,null,null,null,null,null,null,null,null,null,null,null,null,null,null,null,null,null,null,null,null,{"$f":"[1]Personnel!G267","v":0}]
[{"$f":"IF(SUM(K268:AA268)>0,1,0)","v":0},{"$f":"IFERROR(INDEX(Settings!$AP$17:$AP$38,MATCH(Personnel!$G268,Settings!$AQ$17:$AQ$38,0)),0)","v":0},null,null,null,{"$f":"[1]Personnel!F268","v":0},{"$f":"IFERROR(INDEX((SLevel),MATCH(Personnel!BA268,SLevel202223,0)),0)","v":0},{"$f":"[1]Personnel!H268","v":0},{"$f":"[1]Personnel!I268","v":0},{"$f":"[1]Personnel!J268","v":0},{"$f":"[1]Personnel!P268","v":0},{"$f":"[1]Personnel!Q268","v":0},0,{"$f":"[1]Personnel!S268","v":0},{"$f":"[1]Personnel!S268","v":0},{"$f":"[1]Personnel!S268","v":0},{"$f":"[1]Personnel!T268","v":0},0,{"$f":"[1]Personnel!V268","v":0},{"$f":"[1]Personnel!W268","v":0},0,{"$f":"[1]Personnel!Y268","v":0},{"$f":"[1]Personnel!Z268","v":0},0,0,0,0,null,null,null,null,null,null,null,null,null,null,null,null,null,null,null,null,null,null,null,null,null,null,null,null,null,{"$f":"[1]Personnel!G268","v":0}]
[0,{"$f":"IFERROR(INDEX(Settings!$AP$17:$AP$38,MATCH(Personnel!$G269,Settings!$AQ$17:$AQ$38,0)),0)","v":0},null,null,null,{"$f":"[1]Personnel!F269","v":0},{"$f":"IFERROR(INDEX((SLevel),MATCH(Personnel!BA269,SLevel202223,0)),0)","v":0},{"$f":"[1]Personnel!H269","v":0},{"$f":"[1]Personnel!I269","v":0},{"$f":"[1]Personnel!J269","v":0},{"$f":"[1]Personnel!P269","v":0},{"$f":"[1]Personnel!Q269","v":0},{"$f":"ROUND(IF(ISERROR(L269/K269),0,(L269/K269)),0)","v":0},{"$f":"[1]Personnel!S269","v":0},{"$f":"[1]Personnel!S269","v":0},{"$f":"[1]Personnel!S269","v":0},{"$f":"[1]Personnel!T269","v":0},{"$f":"ROUND(IF(ISERROR(Q269/P269),0,(Q269/P269)),0)","v":0},{"$f":"[1]Personnel!V269","v":0},{"$f":"[1]Personnel!W269","v":0},{"$f":"ROUND(IF(ISERROR(T269/S269),0,(T269/S269)),0)","v":0},{"$f":"[1]Personnel!Y269","v":0},{"$f":"[1]Personnel!Z269","v":0},{"$f":"ROUND(IF(ISERROR(W269/V269),0,(W269/V269)),0)","v":0},0,0,{"$f":"ROUND(IF(ISERROR(Z269/Y269),0,(Z269/Y269)),0)","v":0},null,null,null,null,null,null,null,null,null,null,null,null,null,null,null,null,null,null,null,null,null,null,null,null,null,{"$f":"[1]Personnel!G269","v":0}]
[0,{"$f":"IFERROR(INDEX(Settings!$AP$17:$AP$38,MATCH(Personnel!$G270,Settings!$AQ$17:$AQ$38,0)),0)","v":0},null,null,null,{"$f":"[1]Personnel!F270","v":0},{"$f":"IFERROR(INDEX((SLevel),MATCH(Personnel!BA270,SLevel202223,0)),0)","v":0},{"$f":"[1]Personnel!H270","v":0},{"$f":"[1]Personnel!I270","v":0},{"$f":"[1]Personnel!J270","v":0},{"$f":"[1]Personnel!P270","v":0},{"$f":"[1]Personnel!Q270","v":0},0,{"$f":"[1]Personnel!S270","v":0},{"$f":"[1]Personnel!S270","v":0},{"$f":"[1]Personnel!S270","v":0},{"$f":"[1]Personnel!T270","v":0},0,{"$f":"[1]Personnel!V270","v":0},{"$f":"[1]Personnel!W270","v":0},0,{"$f":"[1]Personnel!Y270","v":0},{"$f":"[1]Personnel!Z270","v":0},0,0,0,0,null,null,null,null,null,null,null,null,null,null,null,null,null,null,null,null,null,null,null,null,null,null,null,null,null,{"$f":"[1]Personnel!G270","v":0}]
[0,{"$f":"IFERROR(INDEX(Settings!$AP$17:$AP$38,MATCH(Personnel!$G271,Settings!$AQ$17:$AQ$38,0)),0)","v":0},null,null,null,{"$f":"[1]Personnel!F271","v":0},{"$f":"IFERROR(INDEX((SLevel),MATCH(Personnel!BA271,SLevel202223,0)),0)","v":0},{"$f":"[1]Personnel!H271","v":0},{"$f":"[1]Personnel!I271","v":0},{"$f":"[1]Personnel!J271","v":0},{"$f":"[1]Personnel!P271","v":0},{"$f":"[1]Personnel!Q271","v":0},0,{"$f":"[1]Personnel!S271","v":0},{"$f":"[1]Personnel!S271","v":0},{"$f":"[1]Personnel!S271","v":0},{"$f":"[1]Personnel!T271","v":0},0,{"$f":"[1]Personnel!V271","v":0},{"$f":"[1]Personnel!W271","v":0},0,{"$f":"[1]Personnel!Y271","v":0},{"$f":"[1]Personnel!Z271","v":0},0,0,0,0,null,null,null,null,null,null,null,null,null,null,null,null,null,null,null,null,null,null,null,null,null,null,null,null,null,{"$f":"[1]Personnel!G271","v":0}]
[0,{"$f":"IFERROR(INDEX(Settings!$AP$17:$AP$38,MATCH(Personnel!$G272,Settings!$AQ$17:$AQ$38,0)),0)","v":0},null,null,null,{"$f":"[1]Personnel!F272","v":0},{"$f":"IFERROR(INDEX((SLevel),MATCH(Personnel!BA272,SLevel202223,0)),0)","v":0},{"$f":"[1]Personnel!H272","v":0},{"$f":"[1]Personnel!I272","v":0},{"$f":"[1]Personnel!J272","v":0},{"$f":"[1]Personnel!P272","v":0},{"$f":"[1]Personnel!Q272","v":0},0,{"$f":"[1]Personnel!S272","v":0},{"$f":"[1]Personnel!S272","v":0},{"$f":"[1]Personnel!S272","v":0},{"$f":"[1]Personnel!T272","v":0},0,{"$f":"[1]Personnel!V272","v":0},{"$f":"[1]Personnel!W272","v":0},0,{"$f":"[1]Personnel!Y272","v":0},{"$f":"[1]Personnel!Z272","v":0},0,0,0,0,null,null,null,null,null,null,null,null,null,null,null,null,null,null,null,null,null,null,null,null,null,null,null,null,null,{"$f":"[1]Personnel!G272","v":0}]
[0,{"$f":"IFERROR(INDEX(Settings!$AP$17:$AP$38,MATCH(Personnel!$G273,Settings!$AQ$17:$AQ$38,0)),0)","v":0},null,null,null,{"$f":"[1]Personnel!F273","v":0},{"$f":"IFERROR(INDEX((SLevel),MATCH(Personnel!BA273,SLevel202223,0)),0)","v":0},{"$f":"[1]Personnel!H273","v":0},{"$f":"[1]Personnel!I273","v":0},{"$f":"[1]Personnel!J273","v":0},{"$f":"[1]Personnel!P273","v":0},{"$f":"[1]Personnel!Q273","v":0},0,{"$f":"[1]Personnel!S273","v":0},{"$f":"[1]Personnel!S273","v":0},{"$f":"[1]Personnel!S273","v":0},{"$f":"[1]Personnel!T273","v":0},0,{"$f":"[1]Personnel!V273","v":0},{"$f":"[1]Personnel!W273","v":0},0,{"$f":"[1]Personnel!Y273","v":0},{"$f":"[1]Personnel!Z273","v":0},0,0,0,0,null,null,null,null,null,null,null,null,null,null,null,null,null,null,null,null,null,null,null,null,null,null,null,null,null,{"$f":"[1]Personnel!G273","v":0}]
[0,{"$f":"IFERROR(INDEX(Settings!$AP$17:$AP$38,MATCH(Personnel!$G274,Settings!$AQ$17:$AQ$38,0)),0)","v":0},null,null,null,{"$f":"[1]Personnel!F274","v":0},{"$f":"IFERROR(INDEX((SLevel),MATCH(Personnel!BA274,SLevel202223,0)),0)","v":0},{"$f":"[1]Personnel!H274","v":0},{"$f":"[1]Personnel!I274","v":0},{"$f":"[1]Personnel!J274","v":0},{"$f":"[1]Personnel!P274","v":0},{"$f":"[1]Personnel!Q274","v":0},0,{"$f":"[1]Personnel!S274","v":0},{"$f":"[1]Personnel!S274","v":0},{"$f":"[1]Personnel!S274","v":0},{"$f":"[1]Personnel!T274","v":0},0,{"$f":"[1]Personnel!V274","v":0},{"$f":"[1]Personnel!W274","v":0},0,{"$f":"[1]Personnel!Y274","v":0},{"$f":"[1]Personnel!Z274","v":0},0,0,0,0,null,null,null,null,null,null,null,null,null,null,null,null,null,null,null,null,null,null,null,null,null,null,null,null,null,{"$f":"[1]Personnel!G274","v":0}]
[0,{"$f":"IFERROR(INDEX(Settings!$AP$17:$AP$38,MATCH(Personnel!$G275,Settings!$AQ$17:$AQ$38,0)),0)","v":0},null,null,null,{"$f":"[1]Personnel!F275","v":0},{"$f":"IFERROR(INDEX((SLevel),MATCH(Personnel!BA275,SLevel202223,0)),0)","v":0},{"$f":"[1]Personnel!H275","v":0},{"$f":"[1]Personnel!I275","v":0},{"$f":"[1]Personnel!J275","v":0},{"$f":"[1]Personnel!P275","v":0},{"$f":"[1]Personnel!Q275","v":0},0,{"$f":"[1]Personnel!S275","v":0},{"$f":"[1]Personnel!S275","v":0},{"$f":"[1]Personnel!S275","v":0},{"$f":"[1]Personnel!T275","v":0},0,{"$f":"[1]Personnel!V275","v":0},{"$f":"[1]Personnel!W275","v":0},0,{"$f":"[1]Personnel!Y275","v":0},{"$f":"[1]Personnel!Z275","v":0},0,0,0,0,null,null,null,null,null,null,null,null,null,null,null,null,null,null,null,null,null,null,null,null,null,null,null,null,null,{"$f":"[1]Personnel!G275","v":0}]
[0,{"$f":"IFERROR(INDEX(Settings!$AP$17:$AP$38,MATCH(Personnel!$G276,Settings!$AQ$17:$AQ$38,0)),0)","v":0},null,null,null,{"$f":"[1]Personnel!F276","v":0},{"$f":"IFERROR(INDEX((SLevel),MATCH(Personnel!BA276,SLevel202223,0)),0)","v":0},{"$f":"[1]Personnel!H276","v":0},{"$f":"[1]Personnel!I276","v":0},{"$f":"[1]Personnel!J276","v":0},{"$f":"[1]Personnel!P276","v":0},{"$f":"[1]Personnel!Q276","v":0},0,{"$f":"[1]Personnel!S276","v":0},{"$f":"[1]Personnel!S276","v":0},{"$f":"[1]Personnel!S276","v":0},{"$f":"[1]Personnel!T276","v":0},0,{"$f":"[1]Personnel!V276","v":0},{"$f":"[1]Personnel!W276","v":0},0,{"$f":"[1]Personnel!Y276","v":0},{"$f":"[1]Personnel!Z276","v":0},0,0,0,0,null,null,null,null,null,null,null,null,null,null,null,null,null,null,null,null,null,null,null,null,null,null,null,null,null,{"$f":"[1]Personnel!G276","v":0}]
[0,{"$f":"IFERROR(INDEX(Settings!$AP$17:$AP$38,MATCH(Personnel!$G277,Settings!$AQ$17:$AQ$38,0)),0)","v":0},null,null,null,{"$f":"[1]Personnel!F277","v":0},{"$f":"IFERROR(INDEX((SLevel),MATCH(Personnel!BA277,SLevel202223,0)),0)","v":0},{"$f":"[1]Personnel!H277","v":0},{"$f":"[1]Personnel!I277","v":0},{"$f":"[1]Personnel!J277","v":0},{"$f":"[1]Personnel!P277","v":0},{"$f":"[1]Personnel!Q277","v":0},0,{"$f":"[1]Personnel!S277","v":0},{"$f":"[1]Personnel!S277","v":0},{"$f":"[1]Personnel!S277","v":0},{"$f":"[1]Personnel!T277","v":0},0,{"$f":"[1]Personnel!V277","v":0},{"$f":"[1]Personnel!W277","v":0},0,{"$f":"[1]Personnel!Y277","v":0},{"$f":"[1]Personnel!Z277","v":0},0,0,0,0,null,null,null,null,null,null,null,null,null,null,null,null,null,null,null,null,null,null,null,null,null,null,null,null,null,{"$f":"[1]Personnel!G277","v":0}]
[0,{"$f":"IFERROR(INDEX(Settings!$AP$17:$AP$38,MATCH(Personnel!$G278,Settings!$AQ$17:$AQ$38,0)),0)","v":0},null,null,null,{"$f":"[1]Personnel!F278","v":0},{"$f":"IFERROR(INDEX((SLevel),MATCH(Personnel!BA278,SLevel202223,0)),0)","v":0},{"$f":"[1]Personnel!H278","v":0},{"$f":"[1]Personnel!I278","v":0},{"$f":"[1]Personnel!J278","v":0},{"$f":"[1]Personnel!P278","v":0},{"$f":"[1]Personnel!Q278","v":0},0,{"$f":"[1]Personnel!S278","v":0},{"$f":"[1]Personnel!S278","v":0},{"$f":"[1]Personnel!S278","v":0},{"$f":"[1]Personnel!T278","v":0},0,{"$f":"[1]Personnel!V278","v":0},{"$f":"[1]Personnel!W278","v":0},0,{"$f":"[1]Personnel!Y278","v":0},{"$f":"[1]Personnel!Z278","v":0},0,0,0,0,null,null,null,null,null,null,null,null,null,null,null,null,null,null,null,null,null,null,null,null,null,null,null,null,null,{"$f":"[1]Personnel!G278","v":0}]
[0,{"$f":"IFERROR(INDEX(Settings!$AP$17:$AP$38,MATCH(Personnel!$G279,Settings!$AQ$17:$AQ$38,0)),0)","v":0},null,null,null,{"$f":"[1]Personnel!F279","v":0},{"$f":"IFERROR(INDEX((SLevel),MATCH(Personnel!BA279,SLevel202223,0)),0)","v":0},{"$f":"[1]Personnel!H279","v":0},{"$f":"[1]Personnel!I279","v":0},{"$f":"[1]Personnel!J279","v":0},{"$f":"[1]Personnel!P279","v":0},{"$f":"[1]Personnel!Q279","v":0},0,{"$f":"[1]Personnel!S279","v":0},{"$f":"[1]Personnel!S279","v":0},{"$f":"[1]Personnel!S279","v":0},{"$f":"[1]Personnel!T279","v":0},0,{"$f":"[1]Personnel!V279","v":0},{"$f":"[1]Personnel!W279","v":0},0,{"$f":"[1]Personnel!Y279","v":0},{"$f":"[1]Personnel!Z279","v":0},0,0,0,0,null,null,null,null,null,null,null,null,null,null,null,null,null,null,null,null,null,null,null,null,null,null,null,null,null,{"$f":"[1]Personnel!G279","v":0}]
[0,{"$f":"IFERROR(INDEX(Settings!$AP$17:$AP$38,MATCH(Personnel!$G280,Settings!$AQ$17:$AQ$38,0)),0)","v":0},null,null,null,{"$f":"[1]Personnel!F280","v":0},{"$f":"IFERROR(INDEX((SLevel),MATCH(Personnel!BA280,SLevel202223,0)),0)","v":0},{"$f":"[1]Personnel!H280","v":0},{"$f":"[1]Personnel!I280","v":0},{"$f":"[1]Personnel!J280","v":0},{"$f":"[1]Personnel!P280","v":0},{"$f":"[1]Personnel!Q280","v":0},0,{"$f":"[1]Personnel!S280","v":0},{"$f":"[1]Personnel!S280","v":0},{"$f":"[1]Personnel!S280","v":0},{"$f":"[1]Personnel!T280","v":0},0,{"$f":"[1]Personnel!V280","v":0},{"$f":"[1]Personnel!W280","v":0},0,{"$f":"[1]Personnel!Y280","v":0},{"$f":"[1]Personnel!Z280","v":0},0,0,0,0,null,null,null,null,null,null,null,null,null,null,null,null,null,null,null,null,null,null,null,null,null,null,null,null,null,{"$f":"[1]Personnel!G280","v":0}]
[0,{"$f":"IFERROR(INDEX(Settings!$AP$17:$AP$38,MATCH(Personnel!$G281,Settings!$AQ$17:$AQ$38,0)),0)","v":0},null,null,null,{"$f":"[1]Personnel!F281","v":0},{"$f":"IFERROR(INDEX((SLevel),MATCH(Personnel!BA281,SLevel202223,0)),0)","v":0},{"$f":"[1]Personnel!H281","v":0},{"$f":"[1]Personnel!I281","v":0},{"$f":"[1]Personnel!J281","v":0},{"$f":"[1]Personnel!P281","v":0},{"$f":"[1]Personnel!Q281","v":0},0,{"$f":"[1]Personnel!S281","v":0},{"$f":"[1]Personnel!S281","v":0},{"$f":"[1]Personnel!S281","v":0},{"$f":"[1]Personnel!T281","v":0},0,{"$f":"[1]Personnel!V281","v":0},{"$f":"[1]Personnel!W281","v":0},0,{"$f":"[1]Personnel!Y281","v":0},{"$f":"[1]Personnel!Z281","v":0},0,0,0,0,null,null,null,null,null,null,null,null,null,null,null,null,null,null,null,null,null,null,null,null,null,null,null,null,null,{"$f":"[1]Personnel!G281","v":0}]
[0,{"$f":"IFERROR(INDEX(Settings!$AP$17:$AP$38,MATCH(Personnel!$G282,Settings!$AQ$17:$AQ$38,0)),0)","v":0},null,null,null,{"$f":"[1]Personnel!F282","v":0},{"$f":"IFERROR(INDEX((SLevel),MATCH(Personnel!BA282,SLevel202223,0)),0)","v":0},{"$f":"[1]Personnel!H282","v":0},{"$f":"[1]Personnel!I282","v":0},{"$f":"[1]Personnel!J282","v":0},{"$f":"[1]Personnel!P282","v":0},{"$f":"[1]Personnel!Q282","v":0},0,{"$f":"[1]Personnel!S282","v":0},{"$f":"[1]Personnel!S282","v":0},{"$f":"[1]Personnel!S282","v":0},{"$f":"[1]Personnel!T282","v":0},0,{"$f":"[1]Personnel!V282","v":0},{"$f":"[1]Personnel!W282","v":0},0,{"$f":"[1]Personnel!Y282","v":0},{"$f":"[1]Personnel!Z282","v":0},0,0,0,0,null,null,null,null,null,null,null,null,null,null,null,null,null,null,null,null,null,null,null,null,null,null,null,null,null,{"$f":"[1]Personnel!G282","v":0}]
[0,{"$f":"IFERROR(INDEX(Settings!$AP$17:$AP$38,MATCH(Personnel!$G283,Settings!$AQ$17:$AQ$38,0)),0)","v":0},null,null,null,{"$f":"[1]Personnel!F283","v":0},{"$f":"IFERROR(INDEX((SLevel),MATCH(Personnel!BA283,SLevel202223,0)),0)","v":0},{"$f":"[1]Personnel!H283","v":0},{"$f":"[1]Personnel!I283","v":0},{"$f":"[1]Personnel!J283","v":0},{"$f":"[1]Personnel!P283","v":0},{"$f":"[1]Personnel!Q283","v":0},0,{"$f":"[1]Personnel!S283","v":0},{"$f":"[1]Personnel!S283","v":0},{"$f":"[1]Personnel!S283","v":0},{"$f":"[1]Personnel!T283","v":0},0,{"$f":"[1]Personnel!V283","v":0},{"$f":"[1]Personnel!W283","v":0},0,{"$f":"[1]Personnel!Y283","v":0},{"$f":"[1]Personnel!Z283","v":0},0,0,0,0,null,null,null,null,null,null,null,null,null,null,null,null,null,null,null,null,null,null,null,null,null,null,null,null,null,{"$f":"[1]Personnel!G283","v":0}]
[0,{"$f":"IFERROR(INDEX(Settings!$AP$17:$AP$38,MATCH(Personnel!$G284,Settings!$AQ$17:$AQ$38,0)),0)","v":0},null,null,null,{"$f":"[1]Personnel!F284","v":0},{"$f":"IFERROR(INDEX((SLevel),MATCH(Personnel!BA284,SLevel202223,0)),0)","v":0},{"$f":"[1]Personnel!H284","v":0},{"$f":"[1]Personnel!I284","v":0},{"$f":"[1]Personnel!J284","v":0},{"$f":"[1]Personnel!P284","v":0},{"$f":"[1]Personnel!Q284","v":0},0,{"$f":"[1]Personnel!S284","v":0},{"$f":"[1]Personnel!S284","v":0},{"$f":"[1]Personnel!S284","v":0},{"$f":"[1]Personnel!T284","v":0},0,{"$f":"[1]Personnel!V284","v":0},{"$f":"[1]Personnel!W284","v":0},0,{"$f":"[1]Personnel!Y284","v":0},{"$f":"[1]Personnel!Z284","v":0},0,0,0,0,null,null,null,null,null,null,null,null,null,null,null,null,null,null,null,null,null,null,null,null,null,null,null,null,null,{"$f":"[1]Personnel!G284","v":0}]
[0,{"$f":"IFERROR(INDEX(Settings!$AP$17:$AP$38,MATCH(Personnel!$G285,Settings!$AQ$17:$AQ$38,0)),0)","v":0},null,null,null,{"$f":"[1]Personnel!F285","v":0},{"$f":"IFERROR(INDEX((SLevel),MATCH(Personnel!BA285,SLevel202223,0)),0)","v":0},{"$f":"[1]Personnel!H285","v":0},{"$f":"[1]Personnel!I285","v":0},{"$f":"[1]Personnel!J285","v":0},{"$f":"[1]Personnel!P285","v":0},{"$f":"[1]Personnel!Q285","v":0},0,{"$f":"[1]Personnel!S285","v":0},{"$f":"[1]Personnel!S285","v":0},{"$f":"[1]Personnel!S285","v":0},{"$f":"[1]Personnel!T285","v":0},0,{"$f":"[1]Personnel!V285","v":0},{"$f":"[1]Personnel!W285","v":0},0,{"$f":"[1]Personnel!Y285","v":0},{"$f":"[1]Personnel!Z285","v":0},0,0,0,0,null,null,null,null,null,null,null,null,null,null,null,null,null,null,null,null,null,null,null,null,null,null,null,null,null,{"$f":"[1]Personnel!G285","v":0}]
[0,{"$f":"IFERROR(INDEX(Settings!$AP$17:$AP$38,MATCH(Personnel!$G286,Settings!$AQ$17:$AQ$38,0)),0)","v":0},null,null,null,{"$f":"[1]Personnel!F286","v":0},{"$f":"IFERROR(INDEX((SLevel),MATCH(Personnel!BA286,SLevel202223,0)),0)","v":0},{"$f":"[1]Personnel!H286","v":0},{"$f":"[1]Personnel!I286","v":0},{"$f":"[1]Personnel!J286","v":0},{"$f":"[1]Personnel!P286","v":0},{"$f":"[1]Personnel!Q286","v":0},0,{"$f":"[1]Personnel!S286","v":0},{"$f":"[1]Personnel!S286","v":0},{"$f":"[1]Personnel!S286","v":0},{"$f":"[1]Personnel!T286","v":0},0,{"$f":"[1]Personnel!V286","v":0},{"$f":"[1]Personnel!W286","v":0},0,{"$f":"[1]Personnel!Y286","v":0},{"$f":"[1]Personnel!Z286","v":0},0,0,0,0,null,null,null,null,null,null,null,null,null,null,null,null,null,null,null,null,null,null,null,null,null,null,null,null,null,{"$f":"[1]Personnel!G286","v":0}]
[0,{"$f":"IFERROR(INDEX(Settings!$AP$17:$AP$38,MATCH(Personnel!$G287,Settings!$AQ$17:$AQ$38,0)),0)","v":0},null,null,null,{"$f":"[1]Personnel!F287","v":0},{"$f":"IFERROR(INDEX((SLevel),MATCH(Personnel!BA287,SLevel202223,0)),0)","v":0},{"$f":"[1]Personnel!H287","v":0},{"$f":"[1]Personnel!I287","v":0},{"$f":"[1]Personnel!J287","v":0},{"$f":"[1]Personnel!P287","v":0},{"$f":"[1]Personnel!Q287","v":0},0,{"$f":"[1]Personnel!S287","v":0},{"$f":"[1]Personnel!S287","v":0},{"$f":"[1]Personnel!S287","v":0},{"$f":"[1]Personnel!T287","v":0},0,{"$f":"[1]Personnel!V287","v":0},{"$f":"[1]Personnel!W287","v":0},0,{"$f":"[1]Personnel!Y287","v":0},{"$f":"[1]Personnel!Z287","v":0},0,0,0,0,null,null,null,null,null,null,null,null,null,null,null,null,null,null,null,null,null,null,null,null,null,null,null,null,null,{"$f":"[1]Personnel!G287","v":0}]
[0,{"$f":"IFERROR(INDEX(Settings!$AP$17:$AP$38,MATCH(Personnel!$G288,Settings!$AQ$17:$AQ$38,0)),0)","v":0},null,null,null,{"$f":"[1]Personnel!F288","v":0},{"$f":"IFERROR(INDEX((SLevel),MATCH(Personnel!BA288,SLevel202223,0)),0)","v":0},{"$f":"[1]Personnel!H288","v":0},{"$f":"[1]Personnel!I288","v":0},{"$f":"[1]Personnel!J288","v":0},{"$f":"[1]Personnel!P288","v":0},{"$f":"[1]Personnel!Q288","v":0},0,{"$f":"[1]Personnel!S288","v":0},{"$f":"[1]Personnel!S288","v":0},{"$f":"[1]Personnel!S288","v":0},{"$f":"[1]Personnel!T288","v":0},0,{"$f":"[1]Personnel!V288","v":0},{"$f":"[1]Personnel!W288","v":0},0,{"$f":"[1]Personnel!Y288","v":0},{"$f":"[1]Personnel!Z288","v":0},0,0,0,0,null,null,null,null,null,null,null,null,null,null,null,null,null,null,null,null,null,null,null,null,null,null,null,null,null,{"$f":"[1]Personnel!G288","v":0}]
[0,{"$f":"IFERROR(INDEX(Settings!$AP$17:$AP$38,MATCH(Personnel!$G289,Settings!$AQ$17:$AQ$38,0)),0)","v":0},null,null,null,{"$f":"[1]Personnel!F289","v":0},{"$f":"IFERROR(INDEX((SLevel),MATCH(Personnel!BA289,SLevel202223,0)),0)","v":0},{"$f":"[1]Personnel!H289","v":0},{"$f":"[1]Personnel!I289","v":0},{"$f":"[1]Personnel!J289","v":0},{"$f":"[1]Personnel!P289","v":0},{"$f":"[1]Personnel!Q289","v":0},0,{"$f":"[1]Personnel!S289","v":0},{"$f":"[1]Personnel!S289","v":0},{"$f":"[1]Personnel!S289","v":0},{"$f":"[1]Personnel!T289","v":0},0,{"$f":"[1]Personnel!V289","v":0},{"$f":"[1]Personnel!W289","v":0},0,{"$f":"[1]Personnel!Y289","v":0},{"$f":"[1]Personnel!Z289","v":0},0,0,0,0,null,null,null,null,null,null,null,null,null,null,null,null,null,null,null,null,null,null,null,null,null,null,null,null,null,{"$f":"[1]Personnel!G289","v":0}]
[0,{"$f":"IFERROR(INDEX(Settings!$AP$17:$AP$38,MATCH(Personnel!$G290,Settings!$AQ$17:$AQ$38,0)),0)","v":0},null,null,null,{"$f":"[1]Personnel!F290","v":0},{"$f":"IFERROR(INDEX((SLevel),MATCH(Personnel!BA290,SLevel202223,0)),0)","v":0},{"$f":"[1]Personnel!H290","v":0},{"$f":"[1]Personnel!I290","v":0},{"$f":"[1]Personnel!J290","v":0},{"$f":"[1]Personnel!P290","v":0},{"$f":"[1]Personnel!Q290","v":0},0,{"$f":"[1]Personnel!S290","v":0},{"$f":"[1]Personnel!S290","v":0},{"$f":"[1]Personnel!S290","v":0},{"$f":"[1]Personnel!T290","v":0},0,{"$f":"[1]Personnel!V290","v":0},{"$f":"[1]Personnel!W290","v":0},0,{"$f":"[1]Personnel!Y290","v":0},{"$f":"[1]Personnel!Z290","v":0},0,0,0,0,null,null,null,null,null,null,null,null,null,null,null,null,null,null,null,null,null,null,null,null,null,null,null,null,null,{"$f":"[1]Personnel!G290","v":0}]
[0,{"$f":"IFERROR(INDEX(Settings!$AP$17:$AP$38,MATCH(Personnel!$G291,Settings!$AQ$17:$AQ$38,0)),0)","v":0},null,null,null,{"$f":"[1]Personnel!F291","v":0},{"$f":"IFERROR(INDEX((SLevel),MATCH(Personnel!BA291,SLevel202223,0)),0)","v":0},{"$f":"[1]Personnel!H291","v":0},{"$f":"[1]Personnel!I291","v":0},{"$f":"[1]Personnel!J291","v":0},{"$f":"[1]Personnel!P291","v":0},{"$f":"[1]Personnel!Q291","v":0},0,{"$f":"[1]Personnel!S291","v":0},{"$f":"[1]Personnel!S291","v":0},{"$f":"[1]Personnel!S291","v":0},{"$f":"[1]Personnel!T291","v":0},0,{"$f":"[1]Personnel!V291","v":0},{"$f":"[1]Personnel!W291","v":0},0,{"$f":"[1]Personnel!Y291","v":0},{"$f":"[1]Personnel!Z291","v":0},0,0,0,0,null,null,null,null,null,null,null,null,null,null,null,null,null,null,null,null,null,null,null,null,null,null,null,null,null,{"$f":"[1]Personnel!G291","v":0}]
[0,{"$f":"IFERROR(INDEX(Settings!$AP$17:$AP$38,MATCH(Personnel!$G292,Settings!$AQ$17:$AQ$38,0)),0)","v":0},null,null,null,{"$f":"[1]Personnel!F292","v":0},{"$f":"IFERROR(INDEX((SLevel),MATCH(Personnel!BA292,SLevel202223,0)),0)","v":0},{"$f":"[1]Personnel!H292","v":0},{"$f":"[1]Personnel!I292","v":0},{"$f":"[1]Personnel!J292","v":0},{"$f":"[1]Personnel!P292","v":0},{"$f":"[1]Personnel!Q292","v":0},0,{"$f":"[1]Personnel!S292","v":0},{"$f":"[1]Personnel!S292","v":0},{"$f":"[1]Personnel!S292","v":0},{"$f":"[1]Personnel!T292","v":0},0,{"$f":"[1]Personnel!V292","v":0},{"$f":"[1]Personnel!W292","v":0},0,{"$f":"[1]Personnel!Y292","v":0},{"$f":"[1]Personnel!Z292","v":0},0,0,0,0,null,null,null,null,null,null,null,null,null,null,null,null,null,null,null,null,null,null,null,null,null,null,null,null,null,{"$f":"[1]Personnel!G292","v":0}]
[0,{"$f":"IFERROR(INDEX(Settings!$AP$17:$AP$38,MATCH(Personnel!$G293,Settings!$AQ$17:$AQ$38,0)),0)","v":0},null,null,null,{"$f":"[1]Personnel!F293","v":0},{"$f":"IFERROR(INDEX((SLevel),MATCH(Personnel!BA293,SLevel202223,0)),0)","v":0},{"$f":"[1]Personnel!H293","v":0},{"$f":"[1]Personnel!I293","v":0},{"$f":"[1]Personnel!J293","v":0},{"$f":"[1]Personnel!P293","v":0},{"$f":"[1]Personnel!Q293","v":0},0,{"$f":"[1]Personnel!S293","v":0},{"$f":"[1]Personnel!S293","v":0},{"$f":"[1]Personnel!S293","v":0},{"$f":"[1]Personnel!T293","v":0},0,{"$f":"[1]Personnel!V293","v":0},{"$f":"[1]Personnel!W293","v":0},0,{"$f":"[1]Personnel!Y293","v":0},{"$f":"[1]Personnel!Z293","v":0},0,0,0,0,null,null,null,null,null,null,null,null,null,null,null,null,null,null,null,null,null,null,null,null,null,null,null,null,null,{"$f":"[1]Personnel!G293","v":0}]
[0,{"$f":"IFERROR(INDEX(Settings!$AP$17:$AP$38,MATCH(Personnel!$G294,Settings!$AQ$17:$AQ$38,0)),0)","v":0},null,null,null,{"$f":"[1]Personnel!F294","v":0},{"$f":"IFERROR(INDEX((SLevel),MATCH(Personnel!BA294,SLevel202223,0)),0)","v":0},{"$f":"[1]Personnel!H294","v":0},{"$f":"[1]Personnel!I294","v":0},{"$f":"[1]Personnel!J294","v":0},{"$f":"[1]Personnel!P294","v":0},{"$f":"[1]Personnel!Q294","v":0},0,{"$f":"[1]Personnel!S294","v":0},{"$f":"[1]Personnel!S294","v":0},{"$f":"[1]Personnel!S294","v":0},{"$f":"[1]Personnel!T294","v":0},0,{"$f":"[1]Personnel!V294","v":0},{"$f":"[1]Personnel!W294","v":0},0,{"$f":"[1]Personnel!Y294","v":0},{"$f":"[1]Personnel!Z294","v":0},0,0,0,0,null,null,null,null,null,null,null,null,null,null,null,null,null,null,null,null,null,null,null,null,null,null,null,null,null,{"$f":"[1]Personnel!G294","v":0}]
[0,{"$f":"IFERROR(INDEX(Settings!$AP$17:$AP$38,MATCH(Personnel!$G295,Settings!$AQ$17:$AQ$38,0)),0)","v":0},null,null,null,{"$f":"[1]Personnel!F295","v":0},{"$f":"IFERROR(INDEX((SLevel),MATCH(Personnel!BA295,SLevel202223,0)),0)","v":0},{"$f":"[1]Personnel!H295","v":0},{"$f":"[1]Personnel!I295","v":0},{"$f":"[1]Personnel!J295","v":0},{"$f":"[1]Personnel!P295","v":0},{"$f":"[1]Personnel!Q295","v":0},0,{"$f":"[1]Personnel!S295","v":0},{"$f":"[1]Personnel!S295","v":0},{"$f":"[1]Personnel!S295","v":0},{"$f":"[1]Personnel!T295","v":0},0,{"$f":"[1]Personnel!V295","v":0},{"$f":"[1]Personnel!W295","v":0},0,{"$f":"[1]Personnel!Y295","v":0},{"$f":"[1]Personnel!Z295","v":0},0,0,0,0,null,null,null,null,null,null,null,null,null,null,null,null,null,null,null,null,null,null,null,null,null,null,null,null,null,{"$f":"[1]Personnel!G295","v":0}]
[0,{"$f":"IFERROR(INDEX(Settings!$AP$17:$AP$38,MATCH(Personnel!$G296,Settings!$AQ$17:$AQ$38,0)),0)","v":0},null,null,null,{"$f":"[1]Personnel!F296","v":0},{"$f":"IFERROR(INDEX((SLevel),MATCH(Personnel!BA296,SLevel202223,0)),0)","v":0},{"$f":"[1]Personnel!H296","v":0},{"$f":"[1]Personnel!I296","v":0},{"$f":"[1]Personnel!J296","v":0},{"$f":"[1]Personnel!P296","v":0},{"$f":"[1]Personnel!Q296","v":0},0,{"$f":"[1]Personnel!S296","v":0},{"$f":"[1]Personnel!S296","v":0},{"$f":"[1]Personnel!S296","v":0},{"$f":"[1]Personnel!T296","v":0},0,{"$f":"[1]Personnel!V296","v":0},{"$f":"[1]Personnel!W296","v":0},0,{"$f":"[1]Personnel!Y296","v":0},{"$f":"[1]Personnel!Z296","v":0},0,0,0,0,null,null,null,null,null,null,null,null,null,null,null,null,null,null,null,null,null,null,null,null,null,null,null,null,null,{"$f":"[1]Personnel!G296","v":0}]
[0,{"$f":"IFERROR(INDEX(Settings!$AP$17:$AP$38,MATCH(Personnel!$G297,Settings!$AQ$17:$AQ$38,0)),0)","v":0},null,null,null,{"$f":"[1]Personnel!F297","v":0},{"$f":"IFERROR(INDEX((SLevel),MATCH(Personnel!BA297,SLevel202223,0)),0)","v":0},{"$f":"[1]Personnel!H297","v":0},{"$f":"[1]Personnel!I297","v":0},{"$f":"[1]Personnel!J297","v":0},{"$f":"[1]Personnel!P297","v":0},{"$f":"[1]Personnel!Q297","v":0},0,{"$f":"[1]Personnel!S297","v":0},{"$f":"[1]Personnel!S297","v":0},{"$f":"[1]Personnel!S297","v":0},{"$f":"[1]Personnel!T297","v":0},0,{"$f":"[1]Personnel!V297","v":0},{"$f":"[1]Personnel!W297","v":0},0,{"$f":"[1]Personnel!Y297","v":0},{"$f":"[1]Personnel!Z297","v":0},0,0,0,0,null,null,null,null,null,null,null,null,null,null,null,null,null,null,null,null,null,null,null,null,null,null,null,null,null,{"$f":"[1]Personnel!G297","v":0}]
[0,{"$f":"IFERROR(INDEX(Settings!$AP$17:$AP$38,MATCH(Personnel!$G298,Settings!$AQ$17:$AQ$38,0)),0)","v":0},null,null,null,{"$f":"[1]Personnel!F298","v":0},{"$f":"IFERROR(INDEX((SLevel),MATCH(Personnel!BA298,SLevel202223,0)),0)","v":0},{"$f":"[1]Personnel!H298","v":0},{"$f":"[1]Personnel!I298","v":0},{"$f":"[1]Personnel!J298","v":0},{"$f":"[1]Personnel!P298","v":0},{"$f":"[1]Personnel!Q298","v":0},0,{"$f":"[1]Personnel!S298","v":0},{"$f":"[1]Personnel!S298","v":0},{"$f":"[1]Personnel!S298","v":0},{"$f":"[1]Personnel!T298","v":0},0,{"$f":"[1]Personnel!V298","v":0},{"$f":"[1]Personnel!W298","v":0},0,{"$f":"[1]Personnel!Y298","v":0},{"$f":"[1]Personnel!Z298","v":0},0,0,0,0,null,null,null,null,null,null,null,null,null,null,null,null,null,null,null,null,null,null,null,null,null,null,null,null,null,{"$f":"[1]Personnel!G298","v":0}]
[0,{"$f":"IFERROR(INDEX(Settings!$AP$17:$AP$38,MATCH(Personnel!$G299,Settings!$AQ$17:$AQ$38,0)),0)","v":0},null,null,null,{"$f":"[1]Personnel!F299","v":0},{"$f":"IFERROR(INDEX((SLevel),MATCH(Personnel!BA299,SLevel202223,0)),0)","v":0},{"$f":"[1]Personnel!H299","v":0},{"$f":"[1]Personnel!I299","v":0},{"$f":"[1]Personnel!J299","v":0},{"$f":"[1]Personnel!P299","v":0},{"$f":"[1]Personnel!Q299","v":0},0,{"$f":"[1]Personnel!S299","v":0},{"$f":"[1]Personnel!S299","v":0},{"$f":"[1]Personnel!S299","v":0},{"$f":"[1]Personnel!T299","v":0},0,{"$f":"[1]Personnel!V299","v":0},{"$f":"[1]Personnel!W299","v":0},0,{"$f":"[1]Personnel!Y299","v":0},{"$f":"[1]Personnel!Z299","v":0},0,0,0,0,null,null,null,null,null,null,null,null,null,null,null,null,null,null,null,null,null,null,null,null,null,null,null,null,null,{"$f":"[1]Personnel!G299","v":0}]
[0,{"$f":"IFERROR(INDEX(Settings!$AP$17:$AP$38,MATCH(Personnel!$G300,Settings!$AQ$17:$AQ$38,0)),0)","v":0},null,null,null,{"$f":"[1]Personnel!F300","v":0},{"$f":"IFERROR(INDEX((SLevel),MATCH(Personnel!BA300,SLevel202223,0)),0)","v":0},{"$f":"[1]Personnel!H300","v":0},{"$f":"[1]Personnel!I300","v":0},{"$f":"[1]Personnel!J300","v":0},{"$f":"[1]Personnel!P300","v":0},{"$f":"[1]Personnel!Q300","v":0},0,{"$f":"[1]Personnel!S300","v":0},{"$f":"[1]Personnel!S300","v":0},{"$f":"[1]Personnel!S300","v":0},{"$f":"[1]Personnel!T300","v":0},0,{"$f":"[1]Personnel!V300","v":0},{"$f":"[1]Personnel!W300","v":0},0,{"$f":"[1]Personnel!Y300","v":0},{"$f":"[1]Personnel!Z300","v":0},0,0,0,0,null,null,null,null,null,null,null,null,null,null,null,null,null,null,null,null,null,null,null,null,null,null,null,null,null,{"$f":"[1]Personnel!G300","v":0}]
[0,{"$f":"IFERROR(INDEX(Settings!$AP$17:$AP$38,MATCH(Personnel!$G301,Settings!$AQ$17:$AQ$38,0)),0)","v":0},null,null,null,{"$f":"[1]Personnel!F301","v":0},{"$f":"IFERROR(INDEX((SLevel),MATCH(Personnel!BA301,SLevel202223,0)),0)","v":0},{"$f":"[1]Personnel!H301","v":0},{"$f":"[1]Personnel!I301","v":0},{"$f":"[1]Personnel!J301","v":0},{"$f":"[1]Personnel!P301","v":0},{"$f":"[1]Personnel!Q301","v":0},0,{"$f":"[1]Personnel!S301","v":0},{"$f":"[1]Personnel!S301","v":0},{"$f":"[1]Personnel!S301","v":0},{"$f":"[1]Personnel!T301","v":0},0,{"$f":"[1]Personnel!V301","v":0},{"$f":"[1]Personnel!W301","v":0},0,{"$f":"[1]Personnel!Y301","v":0},{"$f":"[1]Personnel!Z301","v":0},0,0,0,0,null,null,null,null,null,null,null,null,null,null,null,null,null,null,null,null,null,null,null,null,null,null,null,null,null,{"$f":"[1]Personnel!G301","v":0}]
[0,{"$f":"IFERROR(INDEX(Settings!$AP$17:$AP$38,MATCH(Personnel!$G302,Settings!$AQ$17:$AQ$38,0)),0)","v":0},null,null,null,{"$f":"[1]Personnel!F302","v":0},{"$f":"IFERROR(INDEX((SLevel),MATCH(Personnel!BA302,SLevel202223,0)),0)","v":0},{"$f":"[1]Personnel!H302","v":0},{"$f":"[1]Personnel!I302","v":0},{"$f":"[1]Personnel!J302","v":0},{"$f":"[1]Personnel!P302","v":0},{"$f":"[1]Personnel!Q302","v":0},0,{"$f":"[1]Personnel!S302","v":0},{"$f":"[1]Personnel!S302","v":0},{"$f":"[1]Personnel!S302","v":0},{"$f":"[1]Personnel!T302","v":0},0,{"$f":"[1]Personnel!V302","v":0},{"$f":"[1]Personnel!W302","v":0},0,{"$f":"[1]Personnel!Y302","v":0},{"$f":"[1]Personnel!Z302","v":0},0,0,0,0,null,null,null,null,null,null,null,null,null,null,null,null,null,null,null,null,null,null,null,null,null,null,null,null,null,{"$f":"[1]Personnel!G302","v":0}]
[0,{"$f":"IFERROR(INDEX(Settings!$AP$17:$AP$38,MATCH(Personnel!$G303,Settings!$AQ$17:$AQ$38,0)),0)","v":0},null,null,null,{"$f":"[1]Personnel!F303","v":0},{"$f":"IFERROR(INDEX((SLevel),MATCH(Personnel!BA303,SLevel202223,0)),0)","v":0},{"$f":"[1]Personnel!H303","v":0},{"$f":"[1]Personnel!I303","v":0},{"$f":"[1]Personnel!J303","v":0},{"$f":"[1]Personnel!P303","v":0},{"$f":"[1]Personnel!Q303","v":0},0,{"$f":"[1]Personnel!S303","v":0},{"$f":"[1]Personnel!S303","v":0},{"$f":"[1]Personnel!S303","v":0},{"$f":"[1]Personnel!T303","v":0},0,{"$f":"[1]Personnel!V303","v":0},{"$f":"[1]Personnel!W303","v":0},0,{"$f":"[1]Personnel!Y303","v":0},{"$f":"[1]Personnel!Z303","v":0},0,0,0,0,null,null,null,null,null,null,null,null,null,null,null,null,null,null,null,null,null,null,null,null,null,null,null,null,null,{"$f":"[1]Personnel!G303","v":0}]
[0,{"$f":"IFERROR(INDEX(Settings!$AP$17:$AP$38,MATCH(Personnel!$G304,Settings!$AQ$17:$AQ$38,0)),0)","v":0},null,null,null,{"$f":"[1]Personnel!F304","v":0},{"$f":"IFERROR(INDEX((SLevel),MATCH(Personnel!BA304,SLevel202223,0)),0)","v":0},{"$f":"[1]Personnel!H304","v":0},{"$f":"[1]Personnel!I304","v":0},{"$f":"[1]Personnel!J304","v":0},{"$f":"[1]Personnel!P304","v":0},{"$f":"[1]Personnel!Q304","v":0},0,{"$f":"[1]Personnel!S304","v":0},{"$f":"[1]Personnel!S304","v":0},{"$f":"[1]Personnel!S304","v":0},{"$f":"[1]Personnel!T304","v":0},0,{"$f":"[1]Personnel!V304","v":0},{"$f":"[1]Personnel!W304","v":0},0,{"$f":"[1]Personnel!Y304","v":0},{"$f":"[1]Personnel!Z304","v":0},0,0,0,0,null,null,null,null,null,null,null,null,null,null,null,null,null,null,null,null,null,null,null,null,null,null,null,null,null,{"$f":"[1]Personnel!G304","v":0}]
[0,{"$f":"IFERROR(INDEX(Settings!$AP$17:$AP$38,MATCH(Personnel!$G305,Settings!$AQ$17:$AQ$38,0)),0)","v":0},null,null,null,{"$f":"[1]Personnel!F305","v":0},{"$f":"IFERROR(INDEX((SLevel),MATCH(Personnel!BA305,SLevel202223,0)),0)","v":0},{"$f":"[1]Personnel!H305","v":0},{"$f":"[1]Personnel!I305","v":0},{"$f":"[1]Personnel!J305","v":0},{"$f":"[1]Personnel!P305","v":0},{"$f":"[1]Personnel!Q305","v":0},0,{"$f":"[1]Personnel!S305","v":0},{"$f":"[1]Personnel!S305","v":0},{"$f":"[1]Personnel!S305","v":0},{"$f":"[1]Personnel!T305","v":0},0,{"$f":"[1]Personnel!V305","v":0},{"$f":"[1]Personnel!W305","v":0},0,{"$f":"[1]Personnel!Y305","v":0},{"$f":"[1]Personnel!Z305","v":0},0,0,0,0,null,null,null,null,null,null,null,null,null,null,null,null,null,null,null,null,null,null,null,null,null,null,null,null,null,{"$f":"[1]Personnel!G305","v":0}]
[0,{"$f":"IFERROR(INDEX(Settings!$AP$17:$AP$38,MATCH(Personnel!$G306,Settings!$AQ$17:$AQ$38,0)),0)","v":0},null,null,null,{"$f":"[1]Personnel!F306","v":0},{"$f":"IFERROR(INDEX((SLevel),MATCH(Personnel!BA306,SLevel202223,0)),0)","v":0},{"$f":"[1]Personnel!H306","v":0},{"$f":"[1]Personnel!I306","v":0},{"$f":"[1]Personnel!J306","v":0},{"$f":"[1]Personnel!P306","v":0},{"$f":"[1]Personnel!Q306","v":0},0,{"$f":"[1]Personnel!S306","v":0},{"$f":"[1]Personnel!S306","v":0},{"$f":"[1]Personnel!S306","v":0},{"$f":"[1]Personnel!T306","v":0},0,{"$f":"[1]Personnel!V306","v":0},{"$f":"[1]Personnel!W306","v":0},0,{"$f":"[1]Personnel!Y306","v":0},{"$f":"[1]Personnel!Z306","v":0},0,0,0,0,null,null,null,null,null,null,null,null,null,null,null,null,null,null,null,null,null,null,null,null,null,null,null,null,null,{"$f":"[1]Personnel!G306","v":0}]
[0,{"$f":"IFERROR(INDEX(Settings!$AP$17:$AP$38,MATCH(Personnel!$G307,Settings!$AQ$17:$AQ$38,0)),0)","v":0},null,null,null,{"$f":"[1]Personnel!F307","v":0},{"$f":"IFERROR(INDEX((SLevel),MATCH(Personnel!BA307,SLevel202223,0)),0)","v":0},{"$f":"[1]Personnel!H307","v":0},{"$f":"[1]Personnel!I307","v":0},{"$f":"[1]Personnel!J307","v":0},{"$f":"[1]Personnel!P307","v":0},{"$f":"[1]Personnel!Q307","v":0},0,{"$f":"[1]Personnel!S307","v":0},{"$f":"[1]Personnel!S307","v":0},{"$f":"[1]Personnel!S307","v":0},{"$f":"[1]Personnel!T307","v":0},0,{"$f":"[1]Personnel!V307","v":0},{"$f":"[1]Personnel!W307","v":0},0,{"$f":"[1]Personnel!Y307","v":0},{"$f":"[1]Personnel!Z307","v":0},0,0,0,0,null,null,null,null,null,null,null,null,null,null,null,null,null,null,null,null,null,null,null,null,null,null,null,null,null,{"$f":"[1]Personnel!G307","v":0}]
[0,{"$f":"IFERROR(INDEX(Settings!$AP$17:$AP$38,MATCH(Personnel!$G308,Settings!$AQ$17:$AQ$38,0)),0)","v":0},null,null,null,{"$f":"[1]Personnel!F308","v":0},{"$f":"IFERROR(INDEX((SLevel),MATCH(Personnel!BA308,SLevel202223,0)),0)","v":0},{"$f":"[1]Personnel!H308","v":0},{"$f":"[1]Personnel!I308","v":0},{"$f":"[1]Personnel!J308","v":0},{"$f":"[1]Personnel!P308","v":0},{"$f":"[1]Personnel!Q308","v":0},0,{"$f":"[1]Personnel!S308","v":0},{"$f":"[1]Personnel!S308","v":0},{"$f":"[1]Personnel!S308","v":0},{"$f":"[1]Personnel!T308","v":0},0,{"$f":"[1]Personnel!V308","v":0},{"$f":"[1]Personnel!W308","v":0},0,{"$f":"[1]Personnel!Y308","v":0},{"$f":"[1]Personnel!Z308","v":0},0,0,0,0,null,null,null,null,null,null,null,null,null,null,null,null,null,null,null,null,null,null,null,null,null,null,null,null,null,{"$f":"[1]Personnel!G308","v":0}]
[0,{"$f":"IFERROR(INDEX(Settings!$AP$17:$AP$38,MATCH(Personnel!$G309,Settings!$AQ$17:$AQ$38,0)),0)","v":0},null,null,null,{"$f":"[1]Personnel!F309","v":0},{"$f":"IFERROR(INDEX((SLevel),MATCH(Personnel!BA309,SLevel202223,0)),0)","v":0},{"$f":"[1]Personnel!H309","v":0},{"$f":"[1]Personnel!I309","v":0},{"$f":"[1]Personnel!J309","v":0},{"$f":"[1]Personnel!P309","v":0},{"$f":"[1]Personnel!Q309","v":0},0,{"$f":"[1]Personnel!S309","v":0},{"$f":"[1]Personnel!S309","v":0},{"$f":"[1]Personnel!S309","v":0},{"$f":"[1]Personnel!T309","v":0},0,{"$f":"[1]Personnel!V309","v":0},{"$f":"[1]Personnel!W309","v":0},0,{"$f":"[1]Personnel!Y309","v":0},{"$f":"[1]Personnel!Z309","v":0},0,0,0,0,null,null,null,null,null,null,null,null,null,null,null,null,null,null,null,null,null,null,null,null,null,null,null,null,null,{"$f":"[1]Personnel!G309","v":0}]
[0,{"$f":"IFERROR(INDEX(Settings!$AP$17:$AP$38,MATCH(Personnel!$G310,Settings!$AQ$17:$AQ$38,0)),0)","v":0},null,null,null,{"$f":"[1]Personnel!F310","v":0},{"$f":"IFERROR(INDEX((SLevel),MATCH(Personnel!BA310,SLevel202223,0)),0)","v":0},{"$f":"[1]Personnel!H310","v":0},{"$f":"[1]Personnel!I310","v":0},{"$f":"[1]Personnel!J310","v":0},{"$f":"[1]Personnel!P310","v":0},{"$f":"[1]Personnel!Q310","v":0},0,{"$f":"[1]Personnel!S310","v":0},{"$f":"[1]Personnel!S310","v":0},{"$f":"[1]Personnel!S310","v":0},{"$f":"[1]Personnel!T310","v":0},0,{"$f":"[1]Personnel!V310","v":0},{"$f":"[1]Personnel!W310","v":0},0,{"$f":"[1]Personnel!Y310","v":0},{"$f":"[1]Personnel!Z310","v":0},0,0,0,0,null,null,null,null,null,null,null,null,null,null,null,null,null,null,null,null,null,null,null,null,null,null,null,null,null,{"$f":"[1]Personnel!G310","v":0}]
[0,{"$f":"IFERROR(INDEX(Settings!$AP$17:$AP$38,MATCH(Personnel!$G311,Settings!$AQ$17:$AQ$38,0)),0)","v":0},null,null,null,{"$f":"[1]Personnel!F311","v":0},{"$f":"IFERROR(INDEX((SLevel),MATCH(Personnel!BA311,SLevel202223,0)),0)","v":0},{"$f":"[1]Personnel!H311","v":0},{"$f":"[1]Personnel!I311","v":0},{"$f":"[1]Personnel!J311","v":0},{"$f":"[1]Personnel!P311","v":0},{"$f":"[1]Personnel!Q311","v":0},0,{"$f":"[1]Personnel!S311","v":0},{"$f":"[1]Personnel!S311","v":0},{"$f":"[1]Personnel!S311","v":0},{"$f":"[1]Personnel!T311","v":0},0,{"$f":"[1]Personnel!V311","v":0},{"$f":"[1]Personnel!W311","v":0},0,{"$f":"[1]Personnel!Y311","v":0},{"$f":"[1]Personnel!Z311","v":0},0,0,0,0,null,null,null,null,null,null,null,null,null,null,null,null,null,null,null,null,null,null,null,null,null,null,null,null,null,{"$f":"[1]Personnel!G311","v":0}]
[0,{"$f":"IFERROR(INDEX(Settings!$AP$17:$AP$38,MATCH(Personnel!$G312,Settings!$AQ$17:$AQ$38,0)),0)","v":0},null,null,null,{"$f":"[1]Personnel!F312","v":0},{"$f":"IFERROR(INDEX((SLevel),MATCH(Personnel!BA312,SLevel202223,0)),0)","v":0},{"$f":"[1]Personnel!H312","v":0},{"$f":"[1]Personnel!I312","v":0},{"$f":"[1]Personnel!J312","v":0},{"$f":"[1]Personnel!P312","v":0},{"$f":"[1]Personnel!Q312","v":0},0,{"$f":"[1]Personnel!S312","v":0},{"$f":"[1]Personnel!S312","v":0},{"$f":"[1]Personnel!S312","v":0},{"$f":"[1]Personnel!T312","v":0},0,{"$f":"[1]Personnel!V312","v":0},{"$f":"[1]Personnel!W312","v":0},0,{"$f":"[1]Personnel!Y312","v":0},{"$f":"[1]Personnel!Z312","v":0},0,0,0,0,null,null,null,null,null,null,null,null,null,null,null,null,null,null,null,null,null,null,null,null,null,null,null,null,null,{"$f":"[1]Personnel!G312","v":0}]
[0,{"$f":"IFERROR(INDEX(Settings!$AP$17:$AP$38,MATCH(Personnel!$G313,Settings!$AQ$17:$AQ$38,0)),0)","v":0},null,null,null,{"$f":"[1]Personnel!F313","v":0},{"$f":"IFERROR(INDEX((SLevel),MATCH(Personnel!BA313,SLevel202223,0)),0)","v":0},{"$f":"[1]Personnel!H313","v":0},{"$f":"[1]Personnel!I313","v":0},{"$f":"[1]Personnel!J313","v":0},{"$f":"[1]Personnel!P313","v":0},{"$f":"[1]Personnel!Q313","v":0},0,{"$f":"[1]Personnel!S313","v":0},{"$f":"[1]Personnel!S313","v":0},{"$f":"[1]Personnel!S313","v":0},{"$f":"[1]Personnel!T313","v":0},0,{"$f":"[1]Personnel!V313","v":0},{"$f":"[1]Personnel!W313","v":0},0,{"$f":"[1]Personnel!Y313","v":0},{"$f":"[1]Personnel!Z313","v":0},0,0,0,0,null,null,null,null,null,null,null,null,null,null,null,null,null,null,null,null,null,null,null,null,null,null,null,null,null,{"$f":"[1]Personnel!G313","v":0}]
[0,{"$f":"IFERROR(INDEX(Settings!$AP$17:$AP$38,MATCH(Personnel!$G314,Settings!$AQ$17:$AQ$38,0)),0)","v":0},null,null,null,{"$f":"[1]Personnel!F314","v":0},{"$f":"IFERROR(INDEX((SLevel),MATCH(Personnel!BA314,SLevel202223,0)),0)","v":0},{"$f":"[1]Personnel!H314","v":0},{"$f":"[1]Personnel!I314","v":0},{"$f":"[1]Personnel!J314","v":0},{"$f":"[1]Personnel!P314","v":0},{"$f":"[1]Personnel!Q314","v":0},0,{"$f":"[1]Personnel!S314","v":0},{"$f":"[1]Personnel!S314","v":0},{"$f":"[1]Personnel!S314","v":0},{"$f":"[1]Personnel!T314","v":0},0,{"$f":"[1]Personnel!V314","v":0},{"$f":"[1]Personnel!W314","v":0},0,{"$f":"[1]Personnel!Y314","v":0},{"$f":"[1]Personnel!Z314","v":0},0,0,0,0,null,null,null,null,null,null,null,null,null,null,null,null,null,null,null,null,null,null,null,null,null,null,null,null,null,{"$f":"[1]Personnel!G314","v":0}]
[0,{"$f":"IFERROR(INDEX(Settings!$AP$17:$AP$38,MATCH(Personnel!$G315,Settings!$AQ$17:$AQ$38,0)),0)","v":0},null,null,null,{"$f":"[1]Personnel!F315","v":0},{"$f":"IFERROR(INDEX((SLevel),MATCH(Personnel!BA315,SLevel202223,0)),0)","v":0},{"$f":"[1]Personnel!H315","v":0},{"$f":"[1]Personnel!I315","v":0},{"$f":"[1]Personnel!J315","v":0},{"$f":"[1]Personnel!P315","v":0},{"$f":"[1]Personnel!Q315","v":0},0,{"$f":"[1]Personnel!S315","v":0},{"$f":"[1]Personnel!S315","v":0},{"$f":"[1]Personnel!S315","v":0},{"$f":"[1]Personnel!T315","v":0},0,{"$f":"[1]Personnel!V315","v":0},{"$f":"[1]Personnel!W315","v":0},0,{"$f":"[1]Personnel!Y315","v":0},{"$f":"[1]Personnel!Z315","v":0},0,0,0,0,null,null,null,null,null,null,null,null,null,null,null,null,null,null,null,null,null,null,null,null,null,null,null,null,null,{"$f":"[1]Personnel!G315","v":0}]
[0,{"$f":"IFERROR(INDEX(Settings!$AP$17:$AP$38,MATCH(Personnel!$G316,Settings!$AQ$17:$AQ$38,0)),0)","v":0},null,null,null,{"$f":"[1]Personnel!F316","v":0},{"$f":"IFERROR(INDEX((SLevel),MATCH(Personnel!BA316,SLevel202223,0)),0)","v":0},{"$f":"[1]Personnel!H316","v":0},{"$f":"[1]Personnel!I316","v":0},{"$f":"[1]Personnel!J316","v":0},{"$f":"[1]Personnel!P316","v":0},{"$f":"[1]Personnel!Q316","v":0},0,{"$f":"[1]Personnel!S316","v":0},{"$f":"[1]Personnel!S316","v":0},{"$f":"[1]Personnel!S316","v":0},{"$f":"[1]Personnel!T316","v":0},0,{"$f":"[1]Personnel!V316","v":0},{"$f":"[1]Personnel!W316","v":0},0,{"$f":"[1]Personnel!Y316","v":0},{"$f":"[1]Personnel!Z316","v":0},0,0,0,0,null,null,null,null,null,null,null,null,null,null,null,null,null,null,null,null,null,null,null,null,null,null,null,null,null,{"$f":"[1]Personnel!G316","v":0}]
[0,{"$f":"IFERROR(INDEX(Settings!$AP$17:$AP$38,MATCH(Personnel!$G317,Settings!$AQ$17:$AQ$38,0)),0)","v":0},null,null,null,{"$f":"[1]Personnel!F317","v":0},{"$f":"IFERROR(INDEX((SLevel),MATCH(Personnel!BA317,SLevel202223,0)),0)","v":0},{"$f":"[1]Personnel!H317","v":0},{"$f":"[1]Personnel!I317","v":0},{"$f":"[1]Personnel!J317","v":0},{"$f":"[1]Personnel!P317","v":0},{"$f":"[1]Personnel!Q317","v":0},0,{"$f":"[1]Personnel!S317","v":0},{"$f":"[1]Personnel!S317","v":0},{"$f":"[1]Personnel!S317","v":0},{"$f":"[1]Personnel!T317","v":0},0,{"$f":"[1]Personnel!V317","v":0},{"$f":"[1]Personnel!W317","v":0},0,{"$f":"[1]Personnel!Y317","v":0},{"$f":"[1]Personnel!Z317","v":0},0,0,0,0,null,null,null,null,null,null,null,null,null,null,null,null,null,null,null,null,null,null,null,null,null,null,null,null,null,{"$f":"[1]Personnel!G317","v":0}]
[0,{"$f":"IFERROR(INDEX(Settings!$AP$17:$AP$38,MATCH(Personnel!$G318,Settings!$AQ$17:$AQ$38,0)),0)","v":0},null,null,null,{"$f":"[1]Personnel!F318","v":0},{"$f":"IFERROR(INDEX((SLevel),MATCH(Personnel!BA318,SLevel202223,0)),0)","v":0},{"$f":"[1]Personnel!H318","v":0},{"$f":"[1]Personnel!I318","v":0},{"$f":"[1]Personnel!J318","v":0},{"$f":"[1]Personnel!P318","v":0},{"$f":"[1]Personnel!Q318","v":0},0,{"$f":"[1]Personnel!S318","v":0},{"$f":"[1]Personnel!S318","v":0},{"$f":"[1]Personnel!S318","v":0},{"$f":"[1]Personnel!T318","v":0},0,{"$f":"[1]Personnel!V318","v":0},{"$f":"[1]Personnel!W318","v":0},0,{"$f":"[1]Personnel!Y318","v":0},{"$f":"[1]Personnel!Z318","v":0},0,0,0,0,null,null,null,null,null,null,null,null,null,null,null,null,null,null,null,null,null,null,null,null,null,null,null,null,null,{"$f":"[1]Personnel!G318","v":0}]
[0,{"$f":"IFERROR(INDEX(Settings!$AP$17:$AP$38,MATCH(Personnel!$G319,Settings!$AQ$17:$AQ$38,0)),0)","v":0},null,null,null,{"$f":"[1]Personnel!F319","v":0},{"$f":"IFERROR(INDEX((SLevel),MATCH(Personnel!BA319,SLevel202223,0)),0)","v":0},{"$f":"[1]Personnel!H319","v":0},{"$f":"[1]Personnel!I319","v":0},{"$f":"[1]Personnel!J319","v":0},{"$f":"[1]Personnel!P319","v":0},{"$f":"[1]Personnel!Q319","v":0},0,{"$f":"[1]Personnel!S319","v":0},{"$f":"[1]Personnel!S319","v":0},{"$f":"[1]Personnel!S319","v":0},{"$f":"[1]Personnel!T319","v":0},0,{"$f":"[1]Personnel!V319","v":0},{"$f":"[1]Personnel!W319","v":0},0,{"$f":"[1]Personnel!Y319","v":0},{"$f":"[1]Personnel!Z319","v":0},0,0,0,0,null,null,null,null,null,null,null,null,null,null,null,null,null,null,null,null,null,null,null,null,null,null,null,null,null,{"$f":"[1]Personnel!G319","v":0}]
[0,{"$f":"IFERROR(INDEX(Settings!$AP$17:$AP$38,MATCH(Personnel!$G320,Settings!$AQ$17:$AQ$38,0)),0)","v":0},null,null,null,{"$f":"[1]Personnel!F320","v":0},{"$f":"IFERROR(INDEX((SLevel),MATCH(Personnel!BA320,SLevel202223,0)),0)","v":0},{"$f":"[1]Personnel!H320","v":0},{"$f":"[1]Personnel!I320","v":0},{"$f":"[1]Personnel!J320","v":0},{"$f":"[1]Personnel!P320","v":0},{"$f":"[1]Personnel!Q320","v":0},0,{"$f":"[1]Personnel!S320","v":0},{"$f":"[1]Personnel!S320","v":0},{"$f":"[1]Personnel!S320","v":0},{"$f":"[1]Personnel!T320","v":0},0,{"$f":"[1]Personnel!V320","v":0},{"$f":"[1]Personnel!W320","v":0},0,{"$f":"[1]Personnel!Y320","v":0},{"$f":"[1]Personnel!Z320","v":0},0,0,0,0,null,null,null,null,null,null,null,null,null,null,null,null,null,null,null,null,null,null,null,null,null,null,null,null,null,{"$f":"[1]Personnel!G320","v":0}]
[0,{"$f":"IFERROR(INDEX(Settings!$AP$17:$AP$38,MATCH(Personnel!$G321,Settings!$AQ$17:$AQ$38,0)),0)","v":0},null,null,null,{"$f":"[1]Personnel!F321","v":0},{"$f":"IFERROR(INDEX((SLevel),MATCH(Personnel!BA321,SLevel202223,0)),0)","v":0},{"$f":"[1]Personnel!H321","v":0},{"$f":"[1]Personnel!I321","v":0},{"$f":"[1]Personnel!J321","v":0},{"$f":"[1]Personnel!P321","v":0},{"$f":"[1]Personnel!Q321","v":0},0,{"$f":"[1]Personnel!S321","v":0},{"$f":"[1]Personnel!S321","v":0},{"$f":"[1]Personnel!S321","v":0},{"$f":"[1]Personnel!T321","v":0},0,{"$f":"[1]Personnel!V321","v":0},{"$f":"[1]Personnel!W321","v":0},0,{"$f":"[1]Personnel!Y321","v":0},{"$f":"[1]Personnel!Z321","v":0},0,0,0,0,null,null,null,null,null,null,null,null,null,null,null,null,null,null,null,null,null,null,null,null,null,null,null,null,null,{"$f":"[1]Personnel!G321","v":0}]
[0,{"$f":"IFERROR(INDEX(Settings!$AP$17:$AP$38,MATCH(Personnel!$G322,Settings!$AQ$17:$AQ$38,0)),0)","v":0},null,null,null,{"$f":"[1]Personnel!F322","v":0},{"$f":"IFERROR(INDEX((SLevel),MATCH(Personnel!BA322,SLevel202223,0)),0)","v":0},{"$f":"[1]Personnel!H322","v":0},{"$f":"[1]Personnel!I322","v":0},{"$f":"[1]Personnel!J322","v":0},{"$f":"[1]Personnel!P322","v":0},{"$f":"[1]Personnel!Q322","v":0},0,{"$f":"[1]Personnel!S322","v":0},{"$f":"[1]Personnel!S322","v":0},{"$f":"[1]Personnel!S322","v":0},{"$f":"[1]Personnel!T322","v":0},0,{"$f":"[1]Personnel!V322","v":0},{"$f":"[1]Personnel!W322","v":0},0,{"$f":"[1]Personnel!Y322","v":0},{"$f":"[1]Personnel!Z322","v":0},0,0,0,0,null,null,null,null,null,null,null,null,null,null,null,null,null,null,null,null,null,null,null,null,null,null,null,null,null,{"$f":"[1]Personnel!G322","v":0}]
[0,{"$f":"IFERROR(INDEX(Settings!$AP$17:$AP$38,MATCH(Personnel!$G323,Settings!$AQ$17:$AQ$38,0)),0)","v":0},null,null,null,{"$f":"[1]Personnel!F323","v":0},{"$f":"IFERROR(INDEX((SLevel),MATCH(Personnel!BA323,SLevel202223,0)),0)","v":0},{"$f":"[1]Personnel!H323","v":0},{"$f":"[1]Personnel!I323","v":0},{"$f":"[1]Personnel!J323","v":0},{"$f":"[1]Personnel!P323","v":0},{"$f":"[1]Personnel!Q323","v":0},0,{"$f":"[1]Personnel!S323","v":0},{"$f":"[1]Personnel!S323","v":0},{"$f":"[1]Personnel!S323","v":0},{"$f":"[1]Personnel!T323","v":0},0,{"$f":"[1]Personnel!V323","v":0},{"$f":"[1]Personnel!W323","v":0},0,{"$f":"[1]Personnel!Y323","v":0},{"$f":"[1]Personnel!Z323","v":0},0,0,0,0,null,null,null,null,null,null,null,null,null,null,null,null,null,null,null,null,null,null,null,null,null,null,null,null,null,{"$f":"[1]Personnel!G323","v":0}]
[0,{"$f":"IFERROR(INDEX(Settings!$AP$17:$AP$38,MATCH(Personnel!$G324,Settings!$AQ$17:$AQ$38,0)),0)","v":0},null,null,null,{"$f":"[1]Personnel!F324","v":0},{"$f":"IFERROR(INDEX((SLevel),MATCH(Personnel!BA324,SLevel202223,0)),0)","v":0},{"$f":"[1]Personnel!H324","v":0},{"$f":"[1]Personnel!I324","v":0},{"$f":"[1]Personnel!J324","v":0},{"$f":"[1]Personnel!P324","v":0},{"$f":"[1]Personnel!Q324","v":0},0,{"$f":"[1]Personnel!S324","v":0},{"$f":"[1]Personnel!S324","v":0},{"$f":"[1]Personnel!S324","v":0},{"$f":"[1]Personnel!T324","v":0},0,{"$f":"[1]Personnel!V324","v":0},{"$f":"[1]Personnel!W324","v":0},0,{"$f":"[1]Personnel!Y324","v":0},{"$f":"[1]Personnel!Z324","v":0},0,0,0,0,null,null,null,null,null,null,null,null,null,null,null,null,null,null,null,null,null,null,null,null,null,null,null,null,null,{"$f":"[1]Personnel!G324","v":0}]
[0,{"$f":"IFERROR(INDEX(Settings!$AP$17:$AP$38,MATCH(Personnel!$G325,Settings!$AQ$17:$AQ$38,0)),0)","v":0},null,null,null,{"$f":"[1]Personnel!F325","v":0},{"$f":"IFERROR(INDEX((SLevel),MATCH(Personnel!BA325,SLevel202223,0)),0)","v":0},{"$f":"[1]Personnel!H325","v":0},{"$f":"[1]Personnel!I325","v":0},{"$f":"[1]Personnel!J325","v":0},{"$f":"[1]Personnel!P325","v":0},{"$f":"[1]Personnel!Q325","v":0},0,{"$f":"[1]Personnel!S325","v":0},{"$f":"[1]Personnel!S325","v":0},{"$f":"[1]Personnel!S325","v":0},{"$f":"[1]Personnel!T325","v":0},0,{"$f":"[1]Personnel!V325","v":0},{"$f":"[1]Personnel!W325","v":0},0,{"$f":"[1]Personnel!Y325","v":0},{"$f":"[1]Personnel!Z325","v":0},0,0,0,0,null,null,null,null,null,null,null,null,null,null,null,null,null,null,null,null,null,null,null,null,null,null,null,null,null,{"$f":"[1]Personnel!G325","v":0}]
[0,{"$f":"IFERROR(INDEX(Settings!$AP$17:$AP$38,MATCH(Personnel!$G326,Settings!$AQ$17:$AQ$38,0)),0)","v":0},null,null,null,{"$f":"[1]Personnel!F326","v":0},{"$f":"IFERROR(INDEX((SLevel),MATCH(Personnel!BA326,SLevel202223,0)),0)","v":0},{"$f":"[1]Personnel!H326","v":0},{"$f":"[1]Personnel!I326","v":0},{"$f":"[1]Personnel!J326","v":0},{"$f":"[1]Personnel!P326","v":0},{"$f":"[1]Personnel!Q326","v":0},0,{"$f":"[1]Personnel!S326","v":0},{"$f":"[1]Personnel!S326","v":0},{"$f":"[1]Personnel!S326","v":0},{"$f":"[1]Personnel!T326","v":0},0,{"$f":"[1]Personnel!V326","v":0},{"$f":"[1]Personnel!W326","v":0},0,{"$f":"[1]Personnel!Y326","v":0},{"$f":"[1]Personnel!Z326","v":0},0,0,0,0,null,null,null,null,null,null,null,null,null,null,null,null,null,null,null,null,null,null,null,null,null,null,null,null,null,{"$f":"[1]Personnel!G326","v":0}]
[0,{"$f":"IFERROR(INDEX(Settings!$AP$17:$AP$38,MATCH(Personnel!$G327,Settings!$AQ$17:$AQ$38,0)),0)","v":0},null,null,null,{"$f":"[1]Personnel!F327","v":0},{"$f":"IFERROR(INDEX((SLevel),MATCH(Personnel!BA327,SLevel202223,0)),0)","v":0},{"$f":"[1]Personnel!H327","v":0},{"$f":"[1]Personnel!I327","v":0},{"$f":"[1]Personnel!J327","v":0},{"$f":"[1]Personnel!P327","v":0},{"$f":"[1]Personnel!Q327","v":0},0,{"$f":"[1]Personnel!S327","v":0},{"$f":"[1]Personnel!S327","v":0},{"$f":"[1]Personnel!S327","v":0},{"$f":"[1]Personnel!T327","v":0},0,{"$f":"[1]Personnel!V327","v":0},{"$f":"[1]Personnel!W327","v":0},0,{"$f":"[1]Personnel!Y327","v":0},{"$f":"[1]Personnel!Z327","v":0},0,0,0,0,null,null,null,null,null,null,null,null,null,null,null,null,null,null,null,null,null,null,null,null,null,null,null,null,null,{"$f":"[1]Personnel!G327","v":0}]
[0,{"$f":"IFERROR(INDEX(Settings!$AP$17:$AP$38,MATCH(Personnel!$G328,Settings!$AQ$17:$AQ$38,0)),0)","v":0},null,null,null,{"$f":"[1]Personnel!F328","v":0},{"$f":"IFERROR(INDEX((SLevel),MATCH(Personnel!BA328,SLevel202223,0)),0)","v":0},{"$f":"[1]Personnel!H328","v":0},{"$f":"[1]Personnel!I328","v":0},{"$f":"[1]Personnel!J328","v":0},{"$f":"[1]Personnel!P328","v":0},{"$f":"[1]Personnel!Q328","v":0},0,{"$f":"[1]Personnel!S328","v":0},{"$f":"[1]Personnel!S328","v":0},{"$f":"[1]Personnel!S328","v":0},{"$f":"[1]Personnel!T328","v":0},0,{"$f":"[1]Personnel!V328","v":0},{"$f":"[1]Personnel!W328","v":0},0,{"$f":"[1]Personnel!Y328","v":0},{"$f":"[1]Personnel!Z328","v":0},0,0,0,0,null,null,null,null,null,null,null,null,null,null,null,null,null,null,null,null,null,null,null,null,null,null,null,null,null,{"$f":"[1]Personnel!G328","v":0}]
[0,{"$f":"IFERROR(INDEX(Settings!$AP$17:$AP$38,MATCH(Personnel!$G329,Settings!$AQ$17:$AQ$38,0)),0)","v":0},null,null,null,{"$f":"[1]Personnel!F329","v":0},{"$f":"IFERROR(INDEX((SLevel),MATCH(Personnel!BA329,SLevel202223,0)),0)","v":0},{"$f":"[1]Personnel!H329","v":0},{"$f":"[1]Personnel!I329","v":0},{"$f":"[1]Personnel!J329","v":0},{"$f":"[1]Personnel!P329","v":0},{"$f":"[1]Personnel!Q329","v":0},0,{"$f":"[1]Personnel!S329","v":0},{"$f":"[1]Personnel!S329","v":0},{"$f":"[1]Personnel!S329","v":0},{"$f":"[1]Personnel!T329","v":0},0,{"$f":"[1]Personnel!V329","v":0},{"$f":"[1]Personnel!W329","v":0},0,{"$f":"[1]Personnel!Y329","v":0},{"$f":"[1]Personnel!Z329","v":0},0,0,0,0,null,null,null,null,null,null,null,null,null,null,null,null,null,null,null,null,null,null,null,null,null,null,null,null,null,{"$f":"[1]Personnel!G329","v":0}]
[0,{"$f":"IFERROR(INDEX(Settings!$AP$17:$AP$38,MATCH(Personnel!$G330,Settings!$AQ$17:$AQ$38,0)),0)","v":0},null,null,null,{"$f":"[1]Personnel!F330","v":0},{"$f":"IFERROR(INDEX((SLevel),MATCH(Personnel!BA330,SLevel202223,0)),0)","v":0},{"$f":"[1]Personnel!H330","v":0},{"$f":"[1]Personnel!I330","v":0},{"$f":"[1]Personnel!J330","v":0},{"$f":"[1]Personnel!P330","v":0},{"$f":"[1]Personnel!Q330","v":0},0,{"$f":"[1]Personnel!S330","v":0},{"$f":"[1]Personnel!S330","v":0},{"$f":"[1]Personnel!S330","v":0},{"$f":"[1]Personnel!T330","v":0},0,{"$f":"[1]Personnel!V330","v":0},{"$f":"[1]Personnel!W330","v":0},0,{"$f":"[1]Personnel!Y330","v":0},{"$f":"[1]Personnel!Z330","v":0},0,0,0,0,null,null,null,null,null,null,null,null,null,null,null,null,null,null,null,null,null,null,null,null,null,null,null,null,null,{"$f":"[1]Personnel!G330","v":0}]
[0,{"$f":"IFERROR(INDEX(Settings!$AP$17:$AP$38,MATCH(Personnel!$G331,Settings!$AQ$17:$AQ$38,0)),0)","v":0},null,null,null,{"$f":"[1]Personnel!F331","v":0},{"$f":"IFERROR(INDEX((SLevel),MATCH(Personnel!BA331,SLevel202223,0)),0)","v":0},{"$f":"[1]Personnel!H331","v":0},{"$f":"[1]Personnel!I331","v":0},{"$f":"[1]Personnel!J331","v":0},{"$f":"[1]Personnel!P331","v":0},{"$f":"[1]Personnel!Q331","v":0},0,{"$f":"[1]Personnel!S331","v":0},{"$f":"[1]Personnel!S331","v":0},{"$f":"[1]Personnel!S331","v":0},{"$f":"[1]Personnel!T331","v":0},0,{"$f":"[1]Personnel!V331","v":0},{"$f":"[1]Personnel!W331","v":0},0,{"$f":"[1]Personnel!Y331","v":0},{"$f":"[1]Personnel!Z331","v":0},0,0,0,0,null,null,null,null,null,null,null,null,null,null,null,null,null,null,null,null,null,null,null,null,null,null,null,null,null,{"$f":"[1]Personnel!G331","v":0}]
[{"$f":"IF(SUM(K332:AA332)>0,1,0)","v":0},{"$f":"IFERROR(INDEX(Settings!$AP$17:$AP$38,MATCH(Personnel!$G332,Settings!$AQ$17:$AQ$38,0)),0)","v":0},null,null,null,{"$f":"[1]Personnel!F332","v":0},{"$f":"IFERROR(INDEX((SLevel),MATCH(Personnel!BA332,SLevel202223,0)),0)","v":0},{"$f":"[1]Personnel!H332","v":0},{"$f":"[1]Personnel!I332","v":0},{"$f":"[1]Personnel!J332","v":0},{"$f":"[1]Personnel!P332","v":0},{"$f":"[1]Personnel!Q332","v":0},0,{"$f":"[1]Personnel!S332","v":0},{"$f":"[1]Personnel!S332","v":0},{"$f":"[1]Personnel!S332","v":0},{"$f":"[1]Personnel!T332","v":0},0,{"$f":"[1]Personnel!V332","v":0},{"$f":"[1]Personnel!W332","v":0},0,{"$f":"[1]Personnel!Y332","v":0},{"$f":"[1]Personnel!Z332","v":0},0,0,0,0,null,null,null,null,null,null,null,null,null,null,null,null,null,null,null,null,null,null,null,null,null,null,null,null,null,{"$f":"[1]Personnel!G332","v":0}]
[0,{"$f":"IFERROR(INDEX(Settings!$AP$17:$AP$38,MATCH(Personnel!$G333,Settings!$AQ$17:$AQ$38,0)),0)","v":0},null,null,null,{"$f":"[1]Personnel!F333","v":0},{"$f":"IFERROR(INDEX((SLevel),MATCH(Personnel!BA333,SLevel202223,0)),0)","v":0},{"$f":"[1]Personnel!H333","v":0},{"$f":"[1]Personnel!I333","v":0},{"$f":"[1]Personnel!J333","v":0},{"$f":"[1]Personnel!P333","v":0},{"$f":"[1]Personnel!Q333","v":0},{"$f":"ROUND(IF(ISERROR(L333/K333),0,(L333/K333)),0)","v":0},{"$f":"[1]Personnel!S333","v":0},{"$f":"[1]Personnel!S333","v":0},{"$f":"[1]Personnel!S333","v":0},{"$f":"[1]Personnel!T333","v":0},{"$f":"ROUND(IF(ISERROR(Q333/P333),0,(Q333/P333)),0)","v":0},{"$f":"[1]Personnel!V333","v":0},{"$f":"[1]Personnel!W333","v":0},{"$f":"ROUND(IF(ISERROR(T333/S333),0,(T333/S333)),0)","v":0},{"$f":"[1]Personnel!Y333","v":0},{"$f":"[1]Personnel!Z333","v":0},{"$f":"ROUND(IF(ISERROR(W333/V333),0,(W333/V333)),0)","v":0},0,0,{"$f":"ROUND(IF(ISERROR(Z333/Y333),0,(Z333/Y333)),0)","v":0},null,null,null,null,null,null,null,null,null,null,null,null,null,null,null,null,null,null,null,null,null,null,null,null,null,{"$f":"[1]Personnel!G333","v":0}]
[0,{"$f":"IFERROR(INDEX(Settings!$AP$17:$AP$38,MATCH(Personnel!$G334,Settings!$AQ$17:$AQ$38,0)),0)","v":0},null,null,null,{"$f":"[1]Personnel!F334","v":0},{"$f":"IFERROR(INDEX((SLevel),MATCH(Personnel!BA334,SLevel202223,0)),0)","v":0},{"$f":"[1]Personnel!H334","v":0},{"$f":"[1]Personnel!I334","v":0},{"$f":"[1]Personnel!J334","v":0},{"$f":"[1]Personnel!P334","v":0},{"$f":"[1]Personnel!Q334","v":0},0,{"$f":"[1]Personnel!S334","v":0},{"$f":"[1]Personnel!S334","v":0},{"$f":"[1]Personnel!S334","v":0},{"$f":"[1]Personnel!T334","v":0},0,{"$f":"[1]Personnel!V334","v":0},{"$f":"[1]Personnel!W334","v":0},0,{"$f":"[1]Personnel!Y334","v":0},{"$f":"[1]Personnel!Z334","v":0},0,0,0,0,null,null,null,null,null,null,null,null,null,null,null,null,null,null,null,null,null,null,null,null,null,null,null,null,null,{"$f":"[1]Personnel!G334","v":0}]
[0,{"$f":"IFERROR(INDEX(Settings!$AP$17:$AP$38,MATCH(Personnel!$G335,Settings!$AQ$17:$AQ$38,0)),0)","v":0},null,null,null,{"$f":"[1]Personnel!F335","v":0},{"$f":"IFERROR(INDEX((SLevel),MATCH(Personnel!BA335,SLevel202223,0)),0)","v":0},{"$f":"[1]Personnel!H335","v":0},{"$f":"[1]Personnel!I335","v":0},{"$f":"[1]Personnel!J335","v":0},{"$f":"[1]Personnel!P335","v":0},{"$f":"[1]Personnel!Q335","v":0},0,{"$f":"[1]Personnel!S335","v":0},{"$f":"[1]Personnel!S335","v":0},{"$f":"[1]Personnel!S335","v":0},{"$f":"[1]Personnel!T335","v":0},0,{"$f":"[1]Personnel!V335","v":0},{"$f":"[1]Personnel!W335","v":0},0,{"$f":"[1]Personnel!Y335","v":0},{"$f":"[1]Personnel!Z335","v":0},0,0,0,0,null,null,null,null,null,null,null,null,null,null,null,null,null,null,null,null,null,null,null,null,null,null,null,null,null,{"$f":"[1]Personnel!G335","v":0}]
[0,{"$f":"IFERROR(INDEX(Settings!$AP$17:$AP$38,MATCH(Personnel!$G336,Settings!$AQ$17:$AQ$38,0)),0)","v":0},null,null,null,{"$f":"[1]Personnel!F336","v":0},{"$f":"IFERROR(INDEX((SLevel),MATCH(Personnel!BA336,SLevel202223,0)),0)","v":0},{"$f":"[1]Personnel!H336","v":0},{"$f":"[1]Personnel!I336","v":0},{"$f":"[1]Personnel!J336","v":0},{"$f":"[1]Personnel!P336","v":0},{"$f":"[1]Personnel!Q336","v":0},0,{"$f":"[1]Personnel!S336","v":0},{"$f":"[1]Personnel!S336","v":0},{"$f":"[1]Personnel!S336","v":0},{"$f":"[1]Personnel!T336","v":0},0,{"$f":"[1]Personnel!V336","v":0},{"$f":"[1]Personnel!W336","v":0},0,{"$f":"[1]Personnel!Y336","v":0},{"$f":"[1]Personnel!Z336","v":0},0,0,0,0,null,null,null,null,null,null,null,null,null,null,null,null,null,null,null,null,null,null,null,null,null,null,null,null,null,{"$f":"[1]Personnel!G336","v":0}]
[0,{"$f":"IFERROR(INDEX(Settings!$AP$17:$AP$38,MATCH(Personnel!$G337,Settings!$AQ$17:$AQ$38,0)),0)","v":0},null,null,null,{"$f":"[1]Personnel!F337","v":0},{"$f":"IFERROR(INDEX((SLevel),MATCH(Personnel!BA337,SLevel202223,0)),0)","v":0},{"$f":"[1]Personnel!H337","v":0},{"$f":"[1]Personnel!I337","v":0},{"$f":"[1]Personnel!J337","v":0},{"$f":"[1]Personnel!P337","v":0},{"$f":"[1]Personnel!Q337","v":0},0,{"$f":"[1]Personnel!S337","v":0},{"$f":"[1]Personnel!S337","v":0},{"$f":"[1]Personnel!S337","v":0},{"$f":"[1]Personnel!T337","v":0},0,{"$f":"[1]Personnel!V337","v":0},{"$f":"[1]Personnel!W337","v":0},0,{"$f":"[1]Personnel!Y337","v":0},{"$f":"[1]Personnel!Z337","v":0},0,0,0,0,null,null,null,null,null,null,null,null,null,null,null,null,null,null,null,null,null,null,null,null,null,null,null,null,null,{"$f":"[1]Personnel!G337","v":0}]
[0,{"$f":"IFERROR(INDEX(Settings!$AP$17:$AP$38,MATCH(Personnel!$G338,Settings!$AQ$17:$AQ$38,0)),0)","v":0},null,null,null,{"$f":"[1]Personnel!F338","v":0},{"$f":"IFERROR(INDEX((SLevel),MATCH(Personnel!BA338,SLevel202223,0)),0)","v":0},{"$f":"[1]Personnel!H338","v":0},{"$f":"[1]Personnel!I338","v":0},{"$f":"[1]Personnel!J338","v":0},{"$f":"[1]Personnel!P338","v":0},{"$f":"[1]Personnel!Q338","v":0},0,{"$f":"[1]Personnel!S338","v":0},{"$f":"[1]Personnel!S338","v":0},{"$f":"[1]Personnel!S338","v":0},{"$f":"[1]Personnel!T338","v":0},0,{"$f":"[1]Personnel!V338","v":0},{"$f":"[1]Personnel!W338","v":0},0,{"$f":"[1]Personnel!Y338","v":0},{"$f":"[1]Personnel!Z338","v":0},0,0,0,0,null,null,null,null,null,null,null,null,null,null,null,null,null,null,null,null,null,null,null,null,null,null,null,null,null,{"$f":"[1]Personnel!G338","v":0}]
[0,{"$f":"IFERROR(INDEX(Settings!$AP$17:$AP$38,MATCH(Personnel!$G339,Settings!$AQ$17:$AQ$38,0)),0)","v":0},null,null,null,{"$f":"[1]Personnel!F339","v":0},{"$f":"IFERROR(INDEX((SLevel),MATCH(Personnel!BA339,SLevel202223,0)),0)","v":0},{"$f":"[1]Personnel!H339","v":0},{"$f":"[1]Personnel!I339","v":0},{"$f":"[1]Personnel!J339","v":0},{"$f":"[1]Personnel!P339","v":0},{"$f":"[1]Personnel!Q339","v":0},0,{"$f":"[1]Personnel!S339","v":0},{"$f":"[1]Personnel!S339","v":0},{"$f":"[1]Personnel!S339","v":0},{"$f":"[1]Personnel!T339","v":0},0,{"$f":"[1]Personnel!V339","v":0},{"$f":"[1]Personnel!W339","v":0},0,{"$f":"[1]Personnel!Y339","v":0},{"$f":"[1]Personnel!Z339","v":0},0,0,0,0,null,null,null,null,null,null,null,null,null,null,null,null,null,null,null,null,null,null,null,null,null,null,null,null,null,{"$f":"[1]Personnel!G339","v":0}]
[0,{"$f":"IFERROR(INDEX(Settings!$AP$17:$AP$38,MATCH(Personnel!$G340,Settings!$AQ$17:$AQ$38,0)),0)","v":0},null,null,null,{"$f":"[1]Personnel!F340","v":0},{"$f":"IFERROR(INDEX((SLevel),MATCH(Personnel!BA340,SLevel202223,0)),0)","v":0},{"$f":"[1]Personnel!H340","v":0},{"$f":"[1]Personnel!I340","v":0},{"$f":"[1]Personnel!J340","v":0},{"$f":"[1]Personnel!P340","v":0},{"$f":"[1]Personnel!Q340","v":0},0,{"$f":"[1]Personnel!S340","v":0},{"$f":"[1]Personnel!S340","v":0},{"$f":"[1]Personnel!S340","v":0},{"$f":"[1]Personnel!T340","v":0},0,{"$f":"[1]Personnel!V340","v":0},{"$f":"[1]Personnel!W340","v":0},0,{"$f":"[1]Personnel!Y340","v":0},{"$f":"[1]Personnel!Z340","v":0},0,0,0,0,null,null,null,null,null,null,null,null,null,null,null,null,null,null,null,null,null,null,null,null,null,null,null,null,null,{"$f":"[1]Personnel!G340","v":0}]
[0,{"$f":"IFERROR(INDEX(Settings!$AP$17:$AP$38,MATCH(Personnel!$G341,Settings!$AQ$17:$AQ$38,0)),0)","v":0},null,null,null,{"$f":"[1]Personnel!F341","v":0},{"$f":"IFERROR(INDEX((SLevel),MATCH(Personnel!BA341,SLevel202223,0)),0)","v":0},{"$f":"[1]Personnel!H341","v":0},{"$f":"[1]Personnel!I341","v":0},{"$f":"[1]Personnel!J341","v":0},{"$f":"[1]Personnel!P341","v":0},{"$f":"[1]Personnel!Q341","v":0},0,{"$f":"[1]Personnel!S341","v":0},{"$f":"[1]Personnel!S341","v":0},{"$f":"[1]Personnel!S341","v":0},{"$f":"[1]Personnel!T341","v":0},0,{"$f":"[1]Personnel!V341","v":0},{"$f":"[1]Personnel!W341","v":0},0,{"$f":"[1]Personnel!Y341","v":0},{"$f":"[1]Personnel!Z341","v":0},0,0,0,0,null,null,null,null,null,null,null,null,null,null,null,null,null,null,null,null,null,null,null,null,null,null,null,null,null,{"$f":"[1]Personnel!G341","v":0}]
[0,{"$f":"IFERROR(INDEX(Settings!$AP$17:$AP$38,MATCH(Personnel!$G342,Settings!$AQ$17:$AQ$38,0)),0)","v":0},null,null,null,{"$f":"[1]Personnel!F342","v":0},{"$f":"IFERROR(INDEX((SLevel),MATCH(Personnel!BA342,SLevel202223,0)),0)","v":0},{"$f":"[1]Personnel!H342","v":0},{"$f":"[1]Personnel!I342","v":0},{"$f":"[1]Personnel!J342","v":0},{"$f":"[1]Personnel!P342","v":0},{"$f":"[1]Personnel!Q342","v":0},0,{"$f":"[1]Personnel!S342","v":0},{"$f":"[1]Personnel!S342","v":0},{"$f":"[1]Personnel!S342","v":0},{"$f":"[1]Personnel!T342","v":0},0,{"$f":"[1]Personnel!V342","v":0},{"$f":"[1]Personnel!W342","v":0},0,{"$f":"[1]Personnel!Y342","v":0},{"$f":"[1]Personnel!Z342","v":0},0,0,0,0,null,null,null,null,null,null,null,null,null,null,null,null,null,null,null,null,null,null,null,null,null,null,null,null,null,{"$f":"[1]Personnel!G342","v":0}]
[0,{"$f":"IFERROR(INDEX(Settings!$AP$17:$AP$38,MATCH(Personnel!$G343,Settings!$AQ$17:$AQ$38,0)),0)","v":0},null,null,null,{"$f":"[1]Personnel!F343","v":0},{"$f":"IFERROR(INDEX((SLevel),MATCH(Personnel!BA343,SLevel202223,0)),0)","v":0},{"$f":"[1]Personnel!H343","v":0},{"$f":"[1]Personnel!I343","v":0},{"$f":"[1]Personnel!J343","v":0},{"$f":"[1]Personnel!P343","v":0},{"$f":"[1]Personnel!Q343","v":0},0,{"$f":"[1]Personnel!S343","v":0},{"$f":"[1]Personnel!S343","v":0},{"$f":"[1]Personnel!S343","v":0},{"$f":"[1]Personnel!T343","v":0},0,{"$f":"[1]Personnel!V343","v":0},{"$f":"[1]Personnel!W343","v":0},0,{"$f":"[1]Personnel!Y343","v":0},{"$f":"[1]Personnel!Z343","v":0},0,0,0,0,null,null,null,null,null,null,null,null,null,null,null,null,null,null,null,null,null,null,null,null,null,null,null,null,null,{"$f":"[1]Personnel!G343","v":0}]
[0,{"$f":"IFERROR(INDEX(Settings!$AP$17:$AP$38,MATCH(Personnel!$G344,Settings!$AQ$17:$AQ$38,0)),0)","v":0},null,null,null,{"$f":"[1]Personnel!F344","v":0},{"$f":"IFERROR(INDEX((SLevel),MATCH(Personnel!BA344,SLevel202223,0)),0)","v":0},{"$f":"[1]Personnel!H344","v":0},{"$f":"[1]Personnel!I344","v":0},{"$f":"[1]Personnel!J344","v":0},{"$f":"[1]Personnel!P344","v":0},{"$f":"[1]Personnel!Q344","v":0},0,{"$f":"[1]Personnel!S344","v":0},{"$f":"[1]Personnel!S344","v":0},{"$f":"[1]Personnel!S344","v":0},{"$f":"[1]Personnel!T344","v":0},0,{"$f":"[1]Personnel!V344","v":0},{"$f":"[1]Personnel!W344","v":0},0,{"$f":"[1]Personnel!Y344","v":0},{"$f":"[1]Personnel!Z344","v":0},0,0,0,0,null,null,null,null,null,null,null,null,null,null,null,null,null,null,null,null,null,null,null,null,null,null,null,null,null,{"$f":"[1]Personnel!G344","v":0}]
[0,{"$f":"IFERROR(INDEX(Settings!$AP$17:$AP$38,MATCH(Personnel!$G345,Settings!$AQ$17:$AQ$38,0)),0)","v":0},null,null,null,{"$f":"[1]Personnel!F345","v":0},{"$f":"IFERROR(INDEX((SLevel),MATCH(Personnel!BA345,SLevel202223,0)),0)","v":0},{"$f":"[1]Personnel!H345","v":0},{"$f":"[1]Personnel!I345","v":0},{"$f":"[1]Personnel!J345","v":0},{"$f":"[1]Personnel!P345","v":0},{"$f":"[1]Personnel!Q345","v":0},0,{"$f":"[1]Personnel!S345","v":0},{"$f":"[1]Personnel!S345","v":0},{"$f":"[1]Personnel!S345","v":0},{"$f":"[1]Personnel!T345","v":0},0,{"$f":"[1]Personnel!V345","v":0},{"$f":"[1]Personnel!W345","v":0},0,{"$f":"[1]Personnel!Y345","v":0},{"$f":"[1]Personnel!Z345","v":0},0,0,0,0,null,null,null,null,null,null,null,null,null,null,null,null,null,null,null,null,null,null,null,null,null,null,null,null,null,{"$f":"[1]Personnel!G345","v":0}]
[0,{"$f":"IFERROR(INDEX(Settings!$AP$17:$AP$38,MATCH(Personnel!$G346,Settings!$AQ$17:$AQ$38,0)),0)","v":0},null,null,null,{"$f":"[1]Personnel!F346","v":0},{"$f":"IFERROR(INDEX((SLevel),MATCH(Personnel!BA346,SLevel202223,0)),0)","v":0},{"$f":"[1]Personnel!H346","v":0},{"$f":"[1]Personnel!I346","v":0},{"$f":"[1]Personnel!J346","v":0},{"$f":"[1]Personnel!P346","v":0},{"$f":"[1]Personnel!Q346","v":0},0,{"$f":"[1]Personnel!S346","v":0},{"$f":"[1]Personnel!S346","v":0},{"$f":"[1]Personnel!S346","v":0},{"$f":"[1]Personnel!T346","v":0},0,{"$f":"[1]Personnel!V346","v":0},{"$f":"[1]Personnel!W346","v":0},0,{"$f":"[1]Personnel!Y346","v":0},{"$f":"[1]Personnel!Z346","v":0},0,0,0,0,null,null,null,null,null,null,null,null,null,null,null,null,null,null,null,null,null,null,null,null,null,null,null,null,null,{"$f":"[1]Personnel!G346","v":0}]
[0,{"$f":"IFERROR(INDEX(Settings!$AP$17:$AP$38,MATCH(Personnel!$G347,Settings!$AQ$17:$AQ$38,0)),0)","v":0},null,null,null,{"$f":"[1]Personnel!F347","v":0},{"$f":"IFERROR(INDEX((SLevel),MATCH(Personnel!BA347,SLevel202223,0)),0)","v":0},{"$f":"[1]Personnel!H347","v":0},{"$f":"[1]Personnel!I347","v":0},{"$f":"[1]Personnel!J347","v":0},{"$f":"[1]Personnel!P347","v":0},{"$f":"[1]Personnel!Q347","v":0},0,{"$f":"[1]Personnel!S347","v":0},{"$f":"[1]Personnel!S347","v":0},{"$f":"[1]Personnel!S347","v":0},{"$f":"[1]Personnel!T347","v":0},0,{"$f":"[1]Personnel!V347","v":0},{"$f":"[1]Personnel!W347","v":0},0,{"$f":"[1]Personnel!Y347","v":0},{"$f":"[1]Personnel!Z347","v":0},0,0,0,0,null,null,null,null,null,null,null,null,null,null,null,null,null,null,null,null,null,null,null,null,null,null,null,null,null,{"$f":"[1]Personnel!G347","v":0}]
[0,{"$f":"IFERROR(INDEX(Settings!$AP$17:$AP$38,MATCH(Personnel!$G348,Settings!$AQ$17:$AQ$38,0)),0)","v":0},null,null,null,{"$f":"[1]Personnel!F348","v":0},{"$f":"IFERROR(INDEX((SLevel),MATCH(Personnel!BA348,SLevel202223,0)),0)","v":0},{"$f":"[1]Personnel!H348","v":0},{"$f":"[1]Personnel!I348","v":0},{"$f":"[1]Personnel!J348","v":0},{"$f":"[1]Personnel!P348","v":0},{"$f":"[1]Personnel!Q348","v":0},0,{"$f":"[1]Personnel!S348","v":0},{"$f":"[1]Personnel!S348","v":0},{"$f":"[1]Personnel!S348","v":0},{"$f":"[1]Personnel!T348","v":0},0,{"$f":"[1]Personnel!V348","v":0},{"$f":"[1]Personnel!W348","v":0},0,{"$f":"[1]Personnel!Y348","v":0},{"$f":"[1]Personnel!Z348","v":0},0,0,0,0,null,null,null,null,null,null,null,null,null,null,null,null,null,null,null,null,null,null,null,null,null,null,null,null,null,{"$f":"[1]Personnel!G348","v":0}]
[0,{"$f":"IFERROR(INDEX(Settings!$AP$17:$AP$38,MATCH(Personnel!$G349,Settings!$AQ$17:$AQ$38,0)),0)","v":0},null,null,null,{"$f":"[1]Personnel!F349","v":0},{"$f":"IFERROR(INDEX((SLevel),MATCH(Personnel!BA349,SLevel202223,0)),0)","v":0},{"$f":"[1]Personnel!H349","v":0},{"$f":"[1]Personnel!I349","v":0},{"$f":"[1]Personnel!J349","v":0},{"$f":"[1]Personnel!P349","v":0},{"$f":"[1]Personnel!Q349","v":0},0,{"$f":"[1]Personnel!S349","v":0},{"$f":"[1]Personnel!S349","v":0},{"$f":"[1]Personnel!S349","v":0},{"$f":"[1]Personnel!T349","v":0},0,{"$f":"[1]Personnel!V349","v":0},{"$f":"[1]Personnel!W349","v":0},0,{"$f":"[1]Personnel!Y349","v":0},{"$f":"[1]Personnel!Z349","v":0},0,0,0,0,null,null,null,null,null,null,null,null,null,null,null,null,null,null,null,null,null,null,null,null,null,null,null,null,null,{"$f":"[1]Personnel!G349","v":0}]
[0,{"$f":"IFERROR(INDEX(Settings!$AP$17:$AP$38,MATCH(Personnel!$G350,Settings!$AQ$17:$AQ$38,0)),0)","v":0},null,null,null,{"$f":"[1]Personnel!F350","v":0},{"$f":"IFERROR(INDEX((SLevel),MATCH(Personnel!BA350,SLevel202223,0)),0)","v":0},{"$f":"[1]Personnel!H350","v":0},{"$f":"[1]Personnel!I350","v":0},{"$f":"[1]Personnel!J350","v":0},{"$f":"[1]Personnel!P350","v":0},{"$f":"[1]Personnel!Q350","v":0},0,{"$f":"[1]Personnel!S350","v":0},{"$f":"[1]Personnel!S350","v":0},{"$f":"[1]Personnel!S350","v":0},{"$f":"[1]Personnel!T350","v":0},0,{"$f":"[1]Personnel!V350","v":0},{"$f":"[1]Personnel!W350","v":0},0,{"$f":"[1]Personnel!Y350","v":0},{"$f":"[1]Personnel!Z350","v":0},0,0,0,0,null,null,null,null,null,null,null,null,null,null,null,null,null,null,null,null,null,null,null,null,null,null,null,null,null,{"$f":"[1]Personnel!G350","v":0}]
[0,{"$f":"IFERROR(INDEX(Settings!$AP$17:$AP$38,MATCH(Personnel!$G351,Settings!$AQ$17:$AQ$38,0)),0)","v":0},null,null,null,{"$f":"[1]Personnel!F351","v":0},{"$f":"IFERROR(INDEX((SLevel),MATCH(Personnel!BA351,SLevel202223,0)),0)","v":0},{"$f":"[1]Personnel!H351","v":0},{"$f":"[1]Personnel!I351","v":0},{"$f":"[1]Personnel!J351","v":0},{"$f":"[1]Personnel!P351","v":0},{"$f":"[1]Personnel!Q351","v":0},0,{"$f":"[1]Personnel!S351","v":0},{"$f":"[1]Personnel!S351","v":0},{"$f":"[1]Personnel!S351","v":0},{"$f":"[1]Personnel!T351","v":0},0,{"$f":"[1]Personnel!V351","v":0},{"$f":"[1]Personnel!W351","v":0},0,{"$f":"[1]Personnel!Y351","v":0},{"$f":"[1]Personnel!Z351","v":0},0,0,0,0,null,null,null,null,null,null,null,null,null,null,null,null,null,null,null,null,null,null,null,null,null,null,null,null,null,{"$f":"[1]Personnel!G351","v":0}]
[0,{"$f":"IFERROR(INDEX(Settings!$AP$17:$AP$38,MATCH(Personnel!$G352,Settings!$AQ$17:$AQ$38,0)),0)","v":0},null,null,null,{"$f":"[1]Personnel!F352","v":0},{"$f":"IFERROR(INDEX((SLevel),MATCH(Personnel!BA352,SLevel202223,0)),0)","v":0},{"$f":"[1]Personnel!H352","v":0},{"$f":"[1]Personnel!I352","v":0},{"$f":"[1]Personnel!J352","v":0},{"$f":"[1]Personnel!P352","v":0},{"$f":"[1]Personnel!Q352","v":0},0,{"$f":"[1]Personnel!S352","v":0},{"$f":"[1]Personnel!S352","v":0},{"$f":"[1]Personnel!S352","v":0},{"$f":"[1]Personnel!T352","v":0},0,{"$f":"[1]Personnel!V352","v":0},{"$f":"[1]Personnel!W352","v":0},0,{"$f":"[1]Personnel!Y352","v":0},{"$f":"[1]Personnel!Z352","v":0},0,0,0,0,null,null,null,null,null,null,null,null,null,null,null,null,null,null,null,null,null,null,null,null,null,null,null,null,null,{"$f":"[1]Personnel!G352","v":0}]
[0,{"$f":"IFERROR(INDEX(Settings!$AP$17:$AP$38,MATCH(Personnel!$G353,Settings!$AQ$17:$AQ$38,0)),0)","v":0},null,null,null,{"$f":"[1]Personnel!F353","v":0},{"$f":"IFERROR(INDEX((SLevel),MATCH(Personnel!BA353,SLevel202223,0)),0)","v":0},{"$f":"[1]Personnel!H353","v":0},{"$f":"[1]Personnel!I353","v":0},{"$f":"[1]Personnel!J353","v":0},{"$f":"[1]Personnel!P353","v":0},{"$f":"[1]Personnel!Q353","v":0},0,{"$f":"[1]Personnel!S353","v":0},{"$f":"[1]Personnel!S353","v":0},{"$f":"[1]Personnel!S353","v":0},{"$f":"[1]Personnel!T353","v":0},0,{"$f":"[1]Personnel!V353","v":0},{"$f":"[1]Personnel!W353","v":0},0,{"$f":"[1]Personnel!Y353","v":0},{"$f":"[1]Personnel!Z353","v":0},0,0,0,0,null,null,null,null,null,null,null,null,null,null,null,null,null,null,null,null,null,null,null,null,null,null,null,null,null,{"$f":"[1]Personnel!G353","v":0}]
[0,{"$f":"IFERROR(INDEX(Settings!$AP$17:$AP$38,MATCH(Personnel!$G354,Settings!$AQ$17:$AQ$38,0)),0)","v":0},null,null,null,{"$f":"[1]Personnel!F354","v":0},{"$f":"IFERROR(INDEX((SLevel),MATCH(Personnel!BA354,SLevel202223,0)),0)","v":0},{"$f":"[1]Personnel!H354","v":0},{"$f":"[1]Personnel!I354","v":0},{"$f":"[1]Personnel!J354","v":0},{"$f":"[1]Personnel!P354","v":0},{"$f":"[1]Personnel!Q354","v":0},0,{"$f":"[1]Personnel!S354","v":0},{"$f":"[1]Personnel!S354","v":0},{"$f":"[1]Personnel!S354","v":0},{"$f":"[1]Personnel!T354","v":0},0,{"$f":"[1]Personnel!V354","v":0},{"$f":"[1]Personnel!W354","v":0},0,{"$f":"[1]Personnel!Y354","v":0},{"$f":"[1]Personnel!Z354","v":0},0,0,0,0,null,null,null,null,null,null,null,null,null,null,null,null,null,null,null,null,null,null,null,null,null,null,null,null,null,{"$f":"[1]Personnel!G354","v":0}]
[0,{"$f":"IFERROR(INDEX(Settings!$AP$17:$AP$38,MATCH(Personnel!$G355,Settings!$AQ$17:$AQ$38,0)),0)","v":0},null,null,null,{"$f":"[1]Personnel!F355","v":0},{"$f":"IFERROR(INDEX((SLevel),MATCH(Personnel!BA355,SLevel202223,0)),0)","v":0},{"$f":"[1]Personnel!H355","v":0},{"$f":"[1]Personnel!I355","v":0},{"$f":"[1]Personnel!J355","v":0},{"$f":"[1]Personnel!P355","v":0},{"$f":"[1]Personnel!Q355","v":0},0,{"$f":"[1]Personnel!S355","v":0},{"$f":"[1]Personnel!S355","v":0},{"$f":"[1]Personnel!S355","v":0},{"$f":"[1]Personnel!T355","v":0},0,{"$f":"[1]Personnel!V355","v":0},{"$f":"[1]Personnel!W355","v":0},0,{"$f":"[1]Personnel!Y355","v":0},{"$f":"[1]Personnel!Z355","v":0},0,0,0,0,null,null,null,null,null,null,null,null,null,null,null,null,null,null,null,null,null,null,null,null,null,null,null,null,null,{"$f":"[1]Personnel!G355","v":0}]
[0,{"$f":"IFERROR(INDEX(Settings!$AP$17:$AP$38,MATCH(Personnel!$G356,Settings!$AQ$17:$AQ$38,0)),0)","v":0},null,null,null,{"$f":"[1]Personnel!F356","v":0},{"$f":"IFERROR(INDEX((SLevel),MATCH(Personnel!BA356,SLevel202223,0)),0)","v":0},{"$f":"[1]Personnel!H356","v":0},{"$f":"[1]Personnel!I356","v":0},{"$f":"[1]Personnel!J356","v":0},{"$f":"[1]Personnel!P356","v":0},{"$f":"[1]Personnel!Q356","v":0},0,{"$f":"[1]Personnel!S356","v":0},{"$f":"[1]Personnel!S356","v":0},{"$f":"[1]Personnel!S356","v":0},{"$f":"[1]Personnel!T356","v":0},0,{"$f":"[1]Personnel!V356","v":0},{"$f":"[1]Personnel!W356","v":0},0,{"$f":"[1]Personnel!Y356","v":0},{"$f":"[1]Personnel!Z356","v":0},0,0,0,0,null,null,null,null,null,null,null,null,null,null,null,null,null,null,null,null,null,null,null,null,null,null,null,null,null,{"$f":"[1]Personnel!G356","v":0}]
[0,{"$f":"IFERROR(INDEX(Settings!$AP$17:$AP$38,MATCH(Personnel!$G357,Settings!$AQ$17:$AQ$38,0)),0)","v":0},null,null,null,{"$f":"[1]Personnel!F357","v":0},{"$f":"IFERROR(INDEX((SLevel),MATCH(Personnel!BA357,SLevel202223,0)),0)","v":0},{"$f":"[1]Personnel!H357","v":0},{"$f":"[1]Personnel!I357","v":0},{"$f":"[1]Personnel!J357","v":0},{"$f":"[1]Personnel!P357","v":0},{"$f":"[1]Personnel!Q357","v":0},0,{"$f":"[1]Personnel!S357","v":0},{"$f":"[1]Personnel!S357","v":0},{"$f":"[1]Personnel!S357","v":0},{"$f":"[1]Personnel!T357","v":0},0,{"$f":"[1]Personnel!V357","v":0},{"$f":"[1]Personnel!W357","v":0},0,{"$f":"[1]Personnel!Y357","v":0},{"$f":"[1]Personnel!Z357","v":0},0,0,0,0,null,null,null,null,null,null,null,null,null,null,null,null,null,null,null,null,null,null,null,null,null,null,null,null,null,{"$f":"[1]Personnel!G357","v":0}]
[0,{"$f":"IFERROR(INDEX(Settings!$AP$17:$AP$38,MATCH(Personnel!$G358,Settings!$AQ$17:$AQ$38,0)),0)","v":0},null,null,null,{"$f":"[1]Personnel!F358","v":0},{"$f":"IFERROR(INDEX((SLevel),MATCH(Personnel!BA358,SLevel202223,0)),0)","v":0},{"$f":"[1]Personnel!H358","v":0},{"$f":"[1]Personnel!I358","v":0},{"$f":"[1]Personnel!J358","v":0},{"$f":"[1]Personnel!P358","v":0},{"$f":"[1]Personnel!Q358","v":0},0,{"$f":"[1]Personnel!S358","v":0},{"$f":"[1]Personnel!S358","v":0},{"$f":"[1]Personnel!S358","v":0},{"$f":"[1]Personnel!T358","v":0},0,{"$f":"[1]Personnel!V358","v":0},{"$f":"[1]Personnel!W358","v":0},0,{"$f":"[1]Personnel!Y358","v":0},{"$f":"[1]Personnel!Z358","v":0},0,0,0,0,null,null,null,null,null,null,null,null,null,null,null,null,null,null,null,null,null,null,null,null,null,null,null,null,null,{"$f":"[1]Personnel!G358","v":0}]
[0,{"$f":"IFERROR(INDEX(Settings!$AP$17:$AP$38,MATCH(Personnel!$G359,Settings!$AQ$17:$AQ$38,0)),0)","v":0},null,null,null,{"$f":"[1]Personnel!F359","v":0},{"$f":"IFERROR(INDEX((SLevel),MATCH(Personnel!BA359,SLevel202223,0)),0)","v":0},{"$f":"[1]Personnel!H359","v":0},{"$f":"[1]Personnel!I359","v":0},{"$f":"[1]Personnel!J359","v":0},{"$f":"[1]Personnel!P359","v":0},{"$f":"[1]Personnel!Q359","v":0},0,{"$f":"[1]Personnel!S359","v":0},{"$f":"[1]Personnel!S359","v":0},{"$f":"[1]Personnel!S359","v":0},{"$f":"[1]Personnel!T359","v":0},0,{"$f":"[1]Personnel!V359","v":0},{"$f":"[1]Personnel!W359","v":0},0,{"$f":"[1]Personnel!Y359","v":0},{"$f":"[1]Personnel!Z359","v":0},0,0,0,0,null,null,null,null,null,null,null,null,null,null,null,null,null,null,null,null,null,null,null,null,null,null,null,null,null,{"$f":"[1]Personnel!G359","v":0}]
[0,{"$f":"IFERROR(INDEX(Settings!$AP$17:$AP$38,MATCH(Personnel!$G360,Settings!$AQ$17:$AQ$38,0)),0)","v":0},null,null,null,{"$f":"[1]Personnel!F360","v":0},{"$f":"IFERROR(INDEX((SLevel),MATCH(Personnel!BA360,SLevel202223,0)),0)","v":0},{"$f":"[1]Personnel!H360","v":0},{"$f":"[1]Personnel!I360","v":0},{"$f":"[1]Personnel!J360","v":0},{"$f":"[1]Personnel!P360","v":0},{"$f":"[1]Personnel!Q360","v":0},0,{"$f":"[1]Personnel!S360","v":0},{"$f":"[1]Personnel!S360","v":0},{"$f":"[1]Personnel!S360","v":0},{"$f":"[1]Personnel!T360","v":0},0,{"$f":"[1]Personnel!V360","v":0},{"$f":"[1]Personnel!W360","v":0},0,{"$f":"[1]Personnel!Y360","v":0},{"$f":"[1]Personnel!Z360","v":0},0,0,0,0,null,null,null,null,null,null,null,null,null,null,null,null,null,null,null,null,null,null,null,null,null,null,null,null,null,{"$f":"[1]Personnel!G360","v":0}]
[0,{"$f":"IFERROR(INDEX(Settings!$AP$17:$AP$38,MATCH(Personnel!$G361,Settings!$AQ$17:$AQ$38,0)),0)","v":0},null,null,null,{"$f":"[1]Personnel!F361","v":0},{"$f":"IFERROR(INDEX((SLevel),MATCH(Personnel!BA361,SLevel202223,0)),0)","v":0},{"$f":"[1]Personnel!H361","v":0},{"$f":"[1]Personnel!I361","v":0},{"$f":"[1]Personnel!J361","v":0},{"$f":"[1]Personnel!P361","v":0},{"$f":"[1]Personnel!Q361","v":0},0,{"$f":"[1]Personnel!S361","v":0},{"$f":"[1]Personnel!S361","v":0},{"$f":"[1]Personnel!S361","v":0},{"$f":"[1]Personnel!T361","v":0},0,{"$f":"[1]Personnel!V361","v":0},{"$f":"[1]Personnel!W361","v":0},0,{"$f":"[1]Personnel!Y361","v":0},{"$f":"[1]Personnel!Z361","v":0},0,0,0,0,null,null,null,null,null,null,null,null,null,null,null,null,null,null,null,null,null,null,null,null,null,null,null,null,null,{"$f":"[1]Personnel!G361","v":0}]
[0,{"$f":"IFERROR(INDEX(Settings!$AP$17:$AP$38,MATCH(Personnel!$G362,Settings!$AQ$17:$AQ$38,0)),0)","v":0},null,null,null,{"$f":"[1]Personnel!F362","v":0},{"$f":"IFERROR(INDEX((SLevel),MATCH(Personnel!BA362,SLevel202223,0)),0)","v":0},{"$f":"[1]Personnel!H362","v":0},{"$f":"[1]Personnel!I362","v":0},{"$f":"[1]Personnel!J362","v":0},{"$f":"[1]Personnel!P362","v":0},{"$f":"[1]Personnel!Q362","v":0},0,{"$f":"[1]Personnel!S362","v":0},{"$f":"[1]Personnel!S362","v":0},{"$f":"[1]Personnel!S362","v":0},{"$f":"[1]Personnel!T362","v":0},0,{"$f":"[1]Personnel!V362","v":0},{"$f":"[1]Personnel!W362","v":0},0,{"$f":"[1]Personnel!Y362","v":0},{"$f":"[1]Personnel!Z362","v":0},0,0,0,0,null,null,null,null,null,null,null,null,null,null,null,null,null,null,null,null,null,null,null,null,null,null,null,null,null,{"$f":"[1]Personnel!G362","v":0}]
[0,{"$f":"IFERROR(INDEX(Settings!$AP$17:$AP$38,MATCH(Personnel!$G363,Settings!$AQ$17:$AQ$38,0)),0)","v":0},null,null,null,{"$f":"[1]Personnel!F363","v":0},{"$f":"IFERROR(INDEX((SLevel),MATCH(Personnel!BA363,SLevel202223,0)),0)","v":0},{"$f":"[1]Personnel!H363","v":0},{"$f":"[1]Personnel!I363","v":0},{"$f":"[1]Personnel!J363","v":0},{"$f":"[1]Personnel!P363","v":0},{"$f":"[1]Personnel!Q363","v":0},0,{"$f":"[1]Personnel!S363","v":0},{"$f":"[1]Personnel!S363","v":0},{"$f":"[1]Personnel!S363","v":0},{"$f":"[1]Personnel!T363","v":0},0,{"$f":"[1]Personnel!V363","v":0},{"$f":"[1]Personnel!W363","v":0},0,{"$f":"[1]Personnel!Y363","v":0},{"$f":"[1]Personnel!Z363","v":0},0,0,0,0,null,null,null,null,null,null,null,null,null,null,null,null,null,null,null,null,null,null,null,null,null,null,null,null,null,{"$f":"[1]Personnel!G363","v":0}]
[0,{"$f":"IFERROR(INDEX(Settings!$AP$17:$AP$38,MATCH(Personnel!$G364,Settings!$AQ$17:$AQ$38,0)),0)","v":0},null,null,null,{"$f":"[1]Personnel!F364","v":0},{"$f":"IFERROR(INDEX((SLevel),MATCH(Personnel!BA364,SLevel202223,0)),0)","v":0},{"$f":"[1]Personnel!H364","v":0},{"$f":"[1]Personnel!I364","v":0},{"$f":"[1]Personnel!J364","v":0},{"$f":"[1]Personnel!P364","v":0},{"$f":"[1]Personnel!Q364","v":0},0,{"$f":"[1]Personnel!S364","v":0},{"$f":"[1]Personnel!S364","v":0},{"$f":"[1]Personnel!S364","v":0},{"$f":"[1]Personnel!T364","v":0},0,{"$f":"[1]Personnel!V364","v":0},{"$f":"[1]Personnel!W364","v":0},0,{"$f":"[1]Personnel!Y364","v":0},{"$f":"[1]Personnel!Z364","v":0},0,0,0,0,null,null,null,null,null,null,null,null,null,null,null,null,null,null,null,null,null,null,null,null,null,null,null,null,null,{"$f":"[1]Personnel!G364","v":0}]
[0,{"$f":"IFERROR(INDEX(Settings!$AP$17:$AP$38,MATCH(Personnel!$G365,Settings!$AQ$17:$AQ$38,0)),0)","v":0},null,null,null,{"$f":"[1]Personnel!F365","v":0},{"$f":"IFERROR(INDEX((SLevel),MATCH(Personnel!BA365,SLevel202223,0)),0)","v":0},{"$f":"[1]Personnel!H365","v":0},{"$f":"[1]Personnel!I365","v":0},{"$f":"[1]Personnel!J365","v":0},{"$f":"[1]Personnel!P365","v":0},{"$f":"[1]Personnel!Q365","v":0},0,{"$f":"[1]Personnel!S365","v":0},{"$f":"[1]Personnel!S365","v":0},{"$f":"[1]Personnel!S365","v":0},{"$f":"[1]Personnel!T365","v":0},0,{"$f":"[1]Personnel!V365","v":0},{"$f":"[1]Personnel!W365","v":0},0,{"$f":"[1]Personnel!Y365","v":0},{"$f":"[1]Personnel!Z365","v":0},0,0,0,0,null,null,null,null,null,null,null,null,null,null,null,null,null,null,null,null,null,null,null,null,null,null,null,null,null,{"$f":"[1]Personnel!G365","v":0}]
[0,{"$f":"IFERROR(INDEX(Settings!$AP$17:$AP$38,MATCH(Personnel!$G366,Settings!$AQ$17:$AQ$38,0)),0)","v":0},null,null,null,{"$f":"[1]Personnel!F366","v":0},{"$f":"IFERROR(INDEX((SLevel),MATCH(Personnel!BA366,SLevel202223,0)),0)","v":0},{"$f":"[1]Personnel!H366","v":0},{"$f":"[1]Personnel!I366","v":0},{"$f":"[1]Personnel!J366","v":0},{"$f":"[1]Personnel!P366","v":0},{"$f":"[1]Personnel!Q366","v":0},0,{"$f":"[1]Personnel!S366","v":0},{"$f":"[1]Personnel!S366","v":0},{"$f":"[1]Personnel!S366","v":0},{"$f":"[1]Personnel!T366","v":0},0,{"$f":"[1]Personnel!V366","v":0},{"$f":"[1]Personnel!W366","v":0},0,{"$f":"[1]Personnel!Y366","v":0},{"$f":"[1]Personnel!Z366","v":0},0,0,0,0,null,null,null,null,null,null,null,null,null,null,null,null,null,null,null,null,null,null,null,null,null,null,null,null,null,{"$f":"[1]Personnel!G366","v":0}]
[0,{"$f":"IFERROR(INDEX(Settings!$AP$17:$AP$38,MATCH(Personnel!$G367,Settings!$AQ$17:$AQ$38,0)),0)","v":0},null,null,null,{"$f":"[1]Personnel!F367","v":0},{"$f":"IFERROR(INDEX((SLevel),MATCH(Personnel!BA367,SLevel202223,0)),0)","v":0},{"$f":"[1]Personnel!H367","v":0},{"$f":"[1]Personnel!I367","v":0},{"$f":"[1]Personnel!J367","v":0},{"$f":"[1]Personnel!P367","v":0},{"$f":"[1]Personnel!Q367","v":0},0,{"$f":"[1]Personnel!S367","v":0},{"$f":"[1]Personnel!S367","v":0},{"$f":"[1]Personnel!S367","v":0},{"$f":"[1]Personnel!T367","v":0},0,{"$f":"[1]Personnel!V367","v":0},{"$f":"[1]Personnel!W367","v":0},0,{"$f":"[1]Personnel!Y367","v":0},{"$f":"[1]Personnel!Z367","v":0},0,0,0,0,null,null,null,null,null,null,null,null,null,null,null,null,null,null,null,null,null,null,null,null,null,null,null,null,null,{"$f":"[1]Personnel!G367","v":0}]
[0,{"$f":"IFERROR(INDEX(Settings!$AP$17:$AP$38,MATCH(Personnel!$G368,Settings!$AQ$17:$AQ$38,0)),0)","v":0},null,null,null,{"$f":"[1]Personnel!F368","v":0},{"$f":"IFERROR(INDEX((SLevel),MATCH(Personnel!BA368,SLevel202223,0)),0)","v":0},{"$f":"[1]Personnel!H368","v":0},{"$f":"[1]Personnel!I368","v":0},{"$f":"[1]Personnel!J368","v":0},{"$f":"[1]Personnel!P368","v":0},{"$f":"[1]Personnel!Q368","v":0},0,{"$f":"[1]Personnel!S368","v":0},{"$f":"[1]Personnel!S368","v":0},{"$f":"[1]Personnel!S368","v":0},{"$f":"[1]Personnel!T368","v":0},0,{"$f":"[1]Personnel!V368","v":0},{"$f":"[1]Personnel!W368","v":0},0,{"$f":"[1]Personnel!Y368","v":0},{"$f":"[1]Personnel!Z368","v":0},0,0,0,0,null,null,null,null,null,null,null,null,null,null,null,null,null,null,null,null,null,null,null,null,null,null,null,null,null,{"$f":"[1]Personnel!G368","v":0}]
[0,{"$f":"IFERROR(INDEX(Settings!$AP$17:$AP$38,MATCH(Personnel!$G369,Settings!$AQ$17:$AQ$38,0)),0)","v":0},null,null,null,{"$f":"[1]Personnel!F369","v":0},{"$f":"IFERROR(INDEX((SLevel),MATCH(Personnel!BA369,SLevel202223,0)),0)","v":0},{"$f":"[1]Personnel!H369","v":0},{"$f":"[1]Personnel!I369","v":0},{"$f":"[1]Personnel!J369","v":0},{"$f":"[1]Personnel!P369","v":0},{"$f":"[1]Personnel!Q369","v":0},0,{"$f":"[1]Personnel!S369","v":0},{"$f":"[1]Personnel!S369","v":0},{"$f":"[1]Personnel!S369","v":0},{"$f":"[1]Personnel!T369","v":0},0,{"$f":"[1]Personnel!V369","v":0},{"$f":"[1]Personnel!W369","v":0},0,{"$f":"[1]Personnel!Y369","v":0},{"$f":"[1]Personnel!Z369","v":0},0,0,0,0,null,null,null,null,null,null,null,null,null,null,null,null,null,null,null,null,null,null,null,null,null,null,null,null,null,{"$f":"[1]Personnel!G369","v":0}]
[0,{"$f":"IFERROR(INDEX(Settings!$AP$17:$AP$38,MATCH(Personnel!$G370,Settings!$AQ$17:$AQ$38,0)),0)","v":0},null,null,null,{"$f":"[1]Personnel!F370","v":0},{"$f":"IFERROR(INDEX((SLevel),MATCH(Personnel!BA370,SLevel202223,0)),0)","v":0},{"$f":"[1]Personnel!H370","v":0},{"$f":"[1]Personnel!I370","v":0},{"$f":"[1]Personnel!J370","v":0},{"$f":"[1]Personnel!P370","v":0},{"$f":"[1]Personnel!Q370","v":0},0,{"$f":"[1]Personnel!S370","v":0},{"$f":"[1]Personnel!S370","v":0},{"$f":"[1]Personnel!S370","v":0},{"$f":"[1]Personnel!T370","v":0},0,{"$f":"[1]Personnel!V370","v":0},{"$f":"[1]Personnel!W370","v":0},0,{"$f":"[1]Personnel!Y370","v":0},{"$f":"[1]Personnel!Z370","v":0},0,0,0,0,null,null,null,null,null,null,null,null,null,null,null,null,null,null,null,null,null,null,null,null,null,null,null,null,null,{"$f":"[1]Personnel!G370","v":0}]
[0,{"$f":"IFERROR(INDEX(Settings!$AP$17:$AP$38,MATCH(Personnel!$G371,Settings!$AQ$17:$AQ$38,0)),0)","v":0},null,null,null,{"$f":"[1]Personnel!F371","v":0},{"$f":"IFERROR(INDEX((SLevel),MATCH(Personnel!BA371,SLevel202223,0)),0)","v":0},{"$f":"[1]Personnel!H371","v":0},{"$f":"[1]Personnel!I371","v":0},{"$f":"[1]Personnel!J371","v":0},{"$f":"[1]Personnel!P371","v":0},{"$f":"[1]Personnel!Q371","v":0},0,{"$f":"[1]Personnel!S371","v":0},{"$f":"[1]Personnel!S371","v":0},{"$f":"[1]Personnel!S371","v":0},{"$f":"[1]Personnel!T371","v":0},0,{"$f":"[1]Personnel!V371","v":0},{"$f":"[1]Personnel!W371","v":0},0,{"$f":"[1]Personnel!Y371","v":0},{"$f":"[1]Personnel!Z371","v":0},0,0,0,0,null,null,null,null,null,null,null,null,null,null,null,null,null,null,null,null,null,null,null,null,null,null,null,null,null,{"$f":"[1]Personnel!G371","v":0}]
[0,{"$f":"IFERROR(INDEX(Settings!$AP$17:$AP$38,MATCH(Personnel!$G372,Settings!$AQ$17:$AQ$38,0)),0)","v":0},null,null,null,{"$f":"[1]Personnel!F372","v":0},{"$f":"IFERROR(INDEX((SLevel),MATCH(Personnel!BA372,SLevel202223,0)),0)","v":0},{"$f":"[1]Personnel!H372","v":0},{"$f":"[1]Personnel!I372","v":0},{"$f":"[1]Personnel!J372","v":0},{"$f":"[1]Personnel!P372","v":0},{"$f":"[1]Personnel!Q372","v":0},0,{"$f":"[1]Personnel!S372","v":0},{"$f":"[1]Personnel!S372","v":0},{"$f":"[1]Personnel!S372","v":0},{"$f":"[1]Personnel!T372","v":0},0,{"$f":"[1]Personnel!V372","v":0},{"$f":"[1]Personnel!W372","v":0},0,{"$f":"[1]Personnel!Y372","v":0},{"$f":"[1]Personnel!Z372","v":0},0,0,0,0,null,null,null,null,null,null,null,null,null,null,null,null,null,null,null,null,null,null,null,null,null,null,null,null,null,{"$f":"[1]Personnel!G372","v":0}]
[0,{"$f":"IFERROR(INDEX(Settings!$AP$17:$AP$38,MATCH(Personnel!$G373,Settings!$AQ$17:$AQ$38,0)),0)","v":0},null,null,null,{"$f":"[1]Personnel!F373","v":0},{"$f":"IFERROR(INDEX((SLevel),MATCH(Personnel!BA373,SLevel202223,0)),0)","v":0},{"$f":"[1]Personnel!H373","v":0},{"$f":"[1]Personnel!I373","v":0},{"$f":"[1]Personnel!J373","v":0},{"$f":"[1]Personnel!P373","v":0},{"$f":"[1]Personnel!Q373","v":0},0,{"$f":"[1]Personnel!S373","v":0},{"$f":"[1]Personnel!S373","v":0},{"$f":"[1]Personnel!S373","v":0},{"$f":"[1]Personnel!T373","v":0},0,{"$f":"[1]Personnel!V373","v":0},{"$f":"[1]Personnel!W373","v":0},0,{"$f":"[1]Personnel!Y373","v":0},{"$f":"[1]Personnel!Z373","v":0},0,0,0,0,null,null,null,null,null,null,null,null,null,null,null,null,null,null,null,null,null,null,null,null,null,null,null,null,null,{"$f":"[1]Personnel!G373","v":0}]
[0,{"$f":"IFERROR(INDEX(Settings!$AP$17:$AP$38,MATCH(Personnel!$G374,Settings!$AQ$17:$AQ$38,0)),0)","v":0},null,null,null,{"$f":"[1]Personnel!F374","v":0},{"$f":"IFERROR(INDEX((SLevel),MATCH(Personnel!BA374,SLevel202223,0)),0)","v":0},{"$f":"[1]Personnel!H374","v":0},{"$f":"[1]Personnel!I374","v":0},{"$f":"[1]Personnel!J374","v":0},{"$f":"[1]Personnel!P374","v":0},{"$f":"[1]Personnel!Q374","v":0},0,{"$f":"[1]Personnel!S374","v":0},{"$f":"[1]Personnel!S374","v":0},{"$f":"[1]Personnel!S374","v":0},{"$f":"[1]Personnel!T374","v":0},0,{"$f":"[1]Personnel!V374","v":0},{"$f":"[1]Personnel!W374","v":0},0,{"$f":"[1]Personnel!Y374","v":0},{"$f":"[1]Personnel!Z374","v":0},0,0,0,0,null,null,null,null,null,null,null,null,null,null,null,null,null,null,null,null,null,null,null,null,null,null,null,null,null,{"$f":"[1]Personnel!G374","v":0}]
[0,{"$f":"IFERROR(INDEX(Settings!$AP$17:$AP$38,MATCH(Personnel!$G375,Settings!$AQ$17:$AQ$38,0)),0)","v":0},null,null,null,{"$f":"[1]Personnel!F375","v":0},{"$f":"IFERROR(INDEX((SLevel),MATCH(Personnel!BA375,SLevel202223,0)),0)","v":0},{"$f":"[1]Personnel!H375","v":0},{"$f":"[1]Personnel!I375","v":0},{"$f":"[1]Personnel!J375","v":0},{"$f":"[1]Personnel!P375","v":0},{"$f":"[1]Personnel!Q375","v":0},0,{"$f":"[1]Personnel!S375","v":0},{"$f":"[1]Personnel!S375","v":0},{"$f":"[1]Personnel!S375","v":0},{"$f":"[1]Personnel!T375","v":0},0,{"$f":"[1]Personnel!V375","v":0},{"$f":"[1]Personnel!W375","v":0},0,{"$f":"[1]Personnel!Y375","v":0},{"$f":"[1]Personnel!Z375","v":0},0,0,0,0,null,null,null,null,null,null,null,null,null,null,null,null,null,null,null,null,null,null,null,null,null,null,null,null,null,{"$f":"[1]Personnel!G375","v":0}]
[0,{"$f":"IFERROR(INDEX(Settings!$AP$17:$AP$38,MATCH(Personnel!$G376,Settings!$AQ$17:$AQ$38,0)),0)","v":0},null,null,null,{"$f":"[1]Personnel!F376","v":0},{"$f":"IFERROR(INDEX((SLevel),MATCH(Personnel!BA376,SLevel202223,0)),0)","v":0},{"$f":"[1]Personnel!H376","v":0},{"$f":"[1]Personnel!I376","v":0},{"$f":"[1]Personnel!J376","v":0},{"$f":"[1]Personnel!P376","v":0},{"$f":"[1]Personnel!Q376","v":0},0,{"$f":"[1]Personnel!S376","v":0},{"$f":"[1]Personnel!S376","v":0},{"$f":"[1]Personnel!S376","v":0},{"$f":"[1]Personnel!T376","v":0},0,{"$f":"[1]Personnel!V376","v":0},{"$f":"[1]Personnel!W376","v":0},0,{"$f":"[1]Personnel!Y376","v":0},{"$f":"[1]Personnel!Z376","v":0},0,0,0,0,null,null,null,null,null,null,null,null,null,null,null,null,null,null,null,null,null,null,null,null,null,null,null,null,null,{"$f":"[1]Personnel!G376","v":0}]
[0,{"$f":"IFERROR(INDEX(Settings!$AP$17:$AP$38,MATCH(Personnel!$G377,Settings!$AQ$17:$AQ$38,0)),0)","v":0},null,null,null,{"$f":"[1]Personnel!F377","v":0},{"$f":"IFERROR(INDEX((SLevel),MATCH(Personnel!BA377,SLevel202223,0)),0)","v":0},{"$f":"[1]Personnel!H377","v":0},{"$f":"[1]Personnel!I377","v":0},{"$f":"[1]Personnel!J377","v":0},{"$f":"[1]Personnel!P377","v":0},{"$f":"[1]Personnel!Q377","v":0},0,{"$f":"[1]Personnel!S377","v":0},{"$f":"[1]Personnel!S377","v":0},{"$f":"[1]Personnel!S377","v":0},{"$f":"[1]Personnel!T377","v":0},0,{"$f":"[1]Personnel!V377","v":0},{"$f":"[1]Personnel!W377","v":0},0,{"$f":"[1]Personnel!Y377","v":0},{"$f":"[1]Personnel!Z377","v":0},0,0,0,0,null,null,null,null,null,null,null,null,null,null,null,null,null,null,null,null,null,null,null,null,null,null,null,null,null,{"$f":"[1]Personnel!G377","v":0}]
[0,{"$f":"IFERROR(INDEX(Settings!$AP$17:$AP$38,MATCH(Personnel!$G378,Settings!$AQ$17:$AQ$38,0)),0)","v":0},null,null,null,{"$f":"[1]Personnel!F378","v":0},{"$f":"IFERROR(INDEX((SLevel),MATCH(Personnel!BA378,SLevel202223,0)),0)","v":0},{"$f":"[1]Personnel!H378","v":0},{"$f":"[1]Personnel!I378","v":0},{"$f":"[1]Personnel!J378","v":0},{"$f":"[1]Personnel!P378","v":0},{"$f":"[1]Personnel!Q378","v":0},0,{"$f":"[1]Personnel!S378","v":0},{"$f":"[1]Personnel!S378","v":0},{"$f":"[1]Personnel!S378","v":0},{"$f":"[1]Personnel!T378","v":0},0,{"$f":"[1]Personnel!V378","v":0},{"$f":"[1]Personnel!W378","v":0},0,{"$f":"[1]Personnel!Y378","v":0},{"$f":"[1]Personnel!Z378","v":0},0,0,0,0,null,null,null,null,null,null,null,null,null,null,null,null,null,null,null,null,null,null,null,null,null,null,null,null,null,{"$f":"[1]Personnel!G378","v":0}]
[0,{"$f":"IFERROR(INDEX(Settings!$AP$17:$AP$38,MATCH(Personnel!$G379,Settings!$AQ$17:$AQ$38,0)),0)","v":0},null,null,null,{"$f":"[1]Personnel!F379","v":0},{"$f":"IFERROR(INDEX((SLevel),MATCH(Personnel!BA379,SLevel202223,0)),0)","v":0},{"$f":"[1]Personnel!H379","v":0},{"$f":"[1]Personnel!I379","v":0},{"$f":"[1]Personnel!J379","v":0},{"$f":"[1]Personnel!P379","v":0},{"$f":"[1]Personnel!Q379","v":0},0,{"$f":"[1]Personnel!S379","v":0},{"$f":"[1]Personnel!S379","v":0},{"$f":"[1]Personnel!S379","v":0},{"$f":"[1]Personnel!T379","v":0},0,{"$f":"[1]Personnel!V379","v":0},{"$f":"[1]Personnel!W379","v":0},0,{"$f":"[1]Personnel!Y379","v":0},{"$f":"[1]Personnel!Z379","v":0},0,0,0,0,null,null,null,null,null,null,null,null,null,null,null,null,null,null,null,null,null,null,null,null,null,null,null,null,null,{"$f":"[1]Personnel!G379","v":0}]
[0,{"$f":"IFERROR(INDEX(Settings!$AP$17:$AP$38,MATCH(Personnel!$G380,Settings!$AQ$17:$AQ$38,0)),0)","v":0},null,null,null,{"$f":"[1]Personnel!F380","v":0},{"$f":"IFERROR(INDEX((SLevel),MATCH(Personnel!BA380,SLevel202223,0)),0)","v":0},{"$f":"[1]Personnel!H380","v":0},{"$f":"[1]Personnel!I380","v":0},{"$f":"[1]Personnel!J380","v":0},{"$f":"[1]Personnel!P380","v":0},{"$f":"[1]Personnel!Q380","v":0},0,{"$f":"[1]Personnel!S380","v":0},{"$f":"[1]Personnel!S380","v":0},{"$f":"[1]Personnel!S380","v":0},{"$f":"[1]Personnel!T380","v":0},0,{"$f":"[1]Personnel!V380","v":0},{"$f":"[1]Personnel!W380","v":0},0,{"$f":"[1]Personnel!Y380","v":0},{"$f":"[1]Personnel!Z380","v":0},0,0,0,0,null,null,null,null,null,null,null,null,null,null,null,null,null,null,null,null,null,null,null,null,null,null,null,null,null,{"$f":"[1]Personnel!G380","v":0}]
[0,{"$f":"IFERROR(INDEX(Settings!$AP$17:$AP$38,MATCH(Personnel!$G381,Settings!$AQ$17:$AQ$38,0)),0)","v":0},null,null,null,{"$f":"[1]Personnel!F381","v":0},{"$f":"IFERROR(INDEX((SLevel),MATCH(Personnel!BA381,SLevel202223,0)),0)","v":0},{"$f":"[1]Personnel!H381","v":0},{"$f":"[1]Personnel!I381","v":0},{"$f":"[1]Personnel!J381","v":0},{"$f":"[1]Personnel!P381","v":0},{"$f":"[1]Personnel!Q381","v":0},0,{"$f":"[1]Personnel!S381","v":0},{"$f":"[1]Personnel!S381","v":0},{"$f":"[1]Personnel!S381","v":0},{"$f":"[1]Personnel!T381","v":0},0,{"$f":"[1]Personnel!V381","v":0},{"$f":"[1]Personnel!W381","v":0},0,{"$f":"[1]Personnel!Y381","v":0},{"$f":"[1]Personnel!Z381","v":0},0,0,0,0,null,null,null,null,null,null,null,null,null,null,null,null,null,null,null,null,null,null,null,null,null,null,null,null,null,{"$f":"[1]Personnel!G381","v":0}]
[0,{"$f":"IFERROR(INDEX(Settings!$AP$17:$AP$38,MATCH(Personnel!$G382,Settings!$AQ$17:$AQ$38,0)),0)","v":0},null,null,null,{"$f":"[1]Personnel!F382","v":0},{"$f":"IFERROR(INDEX((SLevel),MATCH(Personnel!BA382,SLevel202223,0)),0)","v":0},{"$f":"[1]Personnel!H382","v":0},{"$f":"[1]Personnel!I382","v":0},{"$f":"[1]Personnel!J382","v":0},{"$f":"[1]Personnel!P382","v":0},{"$f":"[1]Personnel!Q382","v":0},0,{"$f":"[1]Personnel!S382","v":0},{"$f":"[1]Personnel!S382","v":0},{"$f":"[1]Personnel!S382","v":0},{"$f":"[1]Personnel!T382","v":0},0,{"$f":"[1]Personnel!V382","v":0},{"$f":"[1]Personnel!W382","v":0},0,{"$f":"[1]Personnel!Y382","v":0},{"$f":"[1]Personnel!Z382","v":0},0,0,0,0,null,null,null,null,null,null,null,null,null,null,null,null,null,null,null,null,null,null,null,null,null,null,null,null,null,{"$f":"[1]Personnel!G382","v":0}]
[0,{"$f":"IFERROR(INDEX(Settings!$AP$17:$AP$38,MATCH(Personnel!$G383,Settings!$AQ$17:$AQ$38,0)),0)","v":0},null,null,null,{"$f":"[1]Personnel!F383","v":0},{"$f":"IFERROR(INDEX((SLevel),MATCH(Personnel!BA383,SLevel202223,0)),0)","v":0},{"$f":"[1]Personnel!H383","v":0},{"$f":"[1]Personnel!I383","v":0},{"$f":"[1]Personnel!J383","v":0},{"$f":"[1]Personnel!P383","v":0},{"$f":"[1]Personnel!Q383","v":0},0,{"$f":"[1]Personnel!S383","v":0},{"$f":"[1]Personnel!S383","v":0},{"$f":"[1]Personnel!S383","v":0},{"$f":"[1]Personnel!T383","v":0},0,{"$f":"[1]Personnel!V383","v":0},{"$f":"[1]Personnel!W383","v":0},0,{"$f":"[1]Personnel!Y383","v":0},{"$f":"[1]Personnel!Z383","v":0},0,0,0,0,null,null,null,null,null,null,null,null,null,null,null,null,null,null,null,null,null,null,null,null,null,null,null,null,null,{"$f":"[1]Personnel!G383","v":0}]
[0,{"$f":"IFERROR(INDEX(Settings!$AP$17:$AP$38,MATCH(Personnel!$G384,Settings!$AQ$17:$AQ$38,0)),0)","v":0},null,null,null,{"$f":"[1]Personnel!F384","v":0},{"$f":"IFERROR(INDEX((SLevel),MATCH(Personnel!BA384,SLevel202223,0)),0)","v":0},{"$f":"[1]Personnel!H384","v":0},{"$f":"[1]Personnel!I384","v":0},{"$f":"[1]Personnel!J384","v":0},{"$f":"[1]Personnel!P384","v":0},{"$f":"[1]Personnel!Q384","v":0},0,{"$f":"[1]Personnel!S384","v":0},{"$f":"[1]Personnel!S384","v":0},{"$f":"[1]Personnel!S384","v":0},{"$f":"[1]Personnel!T384","v":0},0,{"$f":"[1]Personnel!V384","v":0},{"$f":"[1]Personnel!W384","v":0},0,{"$f":"[1]Personnel!Y384","v":0},{"$f":"[1]Personnel!Z384","v":0},0,0,0,0,null,null,null,null,null,null,null,null,null,null,null,null,null,null,null,null,null,null,null,null,null,null,null,null,null,{"$f":"[1]Personnel!G384","v":0}]
[0,{"$f":"IFERROR(INDEX(Settings!$AP$17:$AP$38,MATCH(Personnel!$G385,Settings!$AQ$17:$AQ$38,0)),0)","v":0},null,null,null,{"$f":"[1]Personnel!F385","v":0},{"$f":"IFERROR(INDEX((SLevel),MATCH(Personnel!BA385,SLevel202223,0)),0)","v":0},{"$f":"[1]Personnel!H385","v":0},{"$f":"[1]Personnel!I385","v":0},{"$f":"[1]Personnel!J385","v":0},{"$f":"[1]Personnel!P385","v":0},{"$f":"[1]Personnel!Q385","v":0},0,{"$f":"[1]Personnel!S385","v":0},{"$f":"[1]Personnel!S385","v":0},{"$f":"[1]Personnel!S385","v":0},{"$f":"[1]Personnel!T385","v":0},0,{"$f":"[1]Personnel!V385","v":0},{"$f":"[1]Personnel!W385","v":0},0,{"$f":"[1]Personnel!Y385","v":0},{"$f":"[1]Personnel!Z385","v":0},0,0,0,0,null,null,null,null,null,null,null,null,null,null,null,null,null,null,null,null,null,null,null,null,null,null,null,null,null,{"$f":"[1]Personnel!G385","v":0}]
[0,{"$f":"IFERROR(INDEX(Settings!$AP$17:$AP$38,MATCH(Personnel!$G386,Settings!$AQ$17:$AQ$38,0)),0)","v":0},null,null,null,{"$f":"[1]Personnel!F386","v":0},{"$f":"IFERROR(INDEX((SLevel),MATCH(Personnel!BA386,SLevel202223,0)),0)","v":0},{"$f":"[1]Personnel!H386","v":0},{"$f":"[1]Personnel!I386","v":0},{"$f":"[1]Personnel!J386","v":0},{"$f":"[1]Personnel!P386","v":0},{"$f":"[1]Personnel!Q386","v":0},0,{"$f":"[1]Personnel!S386","v":0},{"$f":"[1]Personnel!S386","v":0},{"$f":"[1]Personnel!S386","v":0},{"$f":"[1]Personnel!T386","v":0},0,{"$f":"[1]Personnel!V386","v":0},{"$f":"[1]Personnel!W386","v":0},0,{"$f":"[1]Personnel!Y386","v":0},{"$f":"[1]Personnel!Z386","v":0},0,0,0,0,null,null,null,null,null,null,null,null,null,null,null,null,null,null,null,null,null,null,null,null,null,null,null,null,null,{"$f":"[1]Personnel!G386","v":0}]
[0,{"$f":"IFERROR(INDEX(Settings!$AP$17:$AP$38,MATCH(Personnel!$G387,Settings!$AQ$17:$AQ$38,0)),0)","v":0},null,null,null,{"$f":"[1]Personnel!F387","v":0},{"$f":"IFERROR(INDEX((SLevel),MATCH(Personnel!BA387,SLevel202223,0)),0)","v":0},{"$f":"[1]Personnel!H387","v":0},{"$f":"[1]Personnel!I387","v":0},{"$f":"[1]Personnel!J387","v":0},{"$f":"[1]Personnel!P387","v":0},{"$f":"[1]Personnel!Q387","v":0},0,{"$f":"[1]Personnel!S387","v":0},{"$f":"[1]Personnel!S387","v":0},{"$f":"[1]Personnel!S387","v":0},{"$f":"[1]Personnel!T387","v":0},0,{"$f":"[1]Personnel!V387","v":0},{"$f":"[1]Personnel!W387","v":0},0,{"$f":"[1]Personnel!Y387","v":0},{"$f":"[1]Personnel!Z387","v":0},0,0,0,0,null,null,null,null,null,null,null,null,null,null,null,null,null,null,null,null,null,null,null,null,null,null,null,null,null,{"$f":"[1]Personnel!G387","v":0}]
[0,{"$f":"IFERROR(INDEX(Settings!$AP$17:$AP$38,MATCH(Personnel!$G388,Settings!$AQ$17:$AQ$38,0)),0)","v":0},null,null,null,{"$f":"[1]Personnel!F388","v":0},{"$f":"IFERROR(INDEX((SLevel),MATCH(Personnel!BA388,SLevel202223,0)),0)","v":0},{"$f":"[1]Personnel!H388","v":0},{"$f":"[1]Personnel!I388","v":0},{"$f":"[1]Personnel!J388","v":0},{"$f":"[1]Personnel!P388","v":0},{"$f":"[1]Personnel!Q388","v":0},0,{"$f":"[1]Personnel!S388","v":0},{"$f":"[1]Personnel!S388","v":0},{"$f":"[1]Personnel!S388","v":0},{"$f":"[1]Personnel!T388","v":0},0,{"$f":"[1]Personnel!V388","v":0},{"$f":"[1]Personnel!W388","v":0},0,{"$f":"[1]Personnel!Y388","v":0},{"$f":"[1]Personnel!Z388","v":0},0,0,0,0,null,null,null,null,null,null,null,null,null,null,null,null,null,null,null,null,null,null,null,null,null,null,null,null,null,{"$f":"[1]Personnel!G388","v":0}]
[0,{"$f":"IFERROR(INDEX(Settings!$AP$17:$AP$38,MATCH(Personnel!$G389,Settings!$AQ$17:$AQ$38,0)),0)","v":0},null,null,null,{"$f":"[1]Personnel!F389","v":0},{"$f":"IFERROR(INDEX((SLevel),MATCH(Personnel!BA389,SLevel202223,0)),0)","v":0},{"$f":"[1]Personnel!H389","v":0},{"$f":"[1]Personnel!I389","v":0},{"$f":"[1]Personnel!J389","v":0},{"$f":"[1]Personnel!P389","v":0},{"$f":"[1]Personnel!Q389","v":0},0,{"$f":"[1]Personnel!S389","v":0},{"$f":"[1]Personnel!S389","v":0},{"$f":"[1]Personnel!S389","v":0},{"$f":"[1]Personnel!T389","v":0},0,{"$f":"[1]Personnel!V389","v":0},{"$f":"[1]Personnel!W389","v":0},0,{"$f":"[1]Personnel!Y389","v":0},{"$f":"[1]Personnel!Z389","v":0},0,0,0,0,null,null,null,null,null,null,null,null,null,null,null,null,null,null,null,null,null,null,null,null,null,null,null,null,null,{"$f":"[1]Personnel!G389","v":0}]
[0,{"$f":"IFERROR(INDEX(Settings!$AP$17:$AP$38,MATCH(Personnel!$G390,Settings!$AQ$17:$AQ$38,0)),0)","v":0},null,null,null,{"$f":"[1]Personnel!F390","v":0},{"$f":"IFERROR(INDEX((SLevel),MATCH(Personnel!BA390,SLevel202223,0)),0)","v":0},{"$f":"[1]Personnel!H390","v":0},{"$f":"[1]Personnel!I390","v":0},{"$f":"[1]Personnel!J390","v":0},{"$f":"[1]Personnel!P390","v":0},{"$f":"[1]Personnel!Q390","v":0},0,{"$f":"[1]Personnel!S390","v":0},{"$f":"[1]Personnel!S390","v":0},{"$f":"[1]Personnel!S390","v":0},{"$f":"[1]Personnel!T390","v":0},0,{"$f":"[1]Personnel!V390","v":0},{"$f":"[1]Personnel!W390","v":0},0,{"$f":"[1]Personnel!Y390","v":0},{"$f":"[1]Personnel!Z390","v":0},0,0,0,0,null,null,null,null,null,null,null,null,null,null,null,null,null,null,null,null,null,null,null,null,null,null,null,null,null,{"$f":"[1]Personnel!G390","v":0}]
[0,{"$f":"IFERROR(INDEX(Settings!$AP$17:$AP$38,MATCH(Personnel!$G391,Settings!$AQ$17:$AQ$38,0)),0)","v":0},null,null,null,{"$f":"[1]Personnel!F391","v":0},{"$f":"IFERROR(INDEX((SLevel),MATCH(Personnel!BA391,SLevel202223,0)),0)","v":0},{"$f":"[1]Personnel!H391","v":0},{"$f":"[1]Personnel!I391","v":0},{"$f":"[1]Personnel!J391","v":0},{"$f":"[1]Personnel!P391","v":0},{"$f":"[1]Personnel!Q391","v":0},0,{"$f":"[1]Personnel!S391","v":0},{"$f":"[1]Personnel!S391","v":0},{"$f":"[1]Personnel!S391","v":0},{"$f":"[1]Personnel!T391","v":0},0,{"$f":"[1]Personnel!V391","v":0},{"$f":"[1]Personnel!W391","v":0},0,{"$f":"[1]Personnel!Y391","v":0},{"$f":"[1]Personnel!Z391","v":0},0,0,0,0,null,null,null,null,null,null,null,null,null,null,null,null,null,null,null,null,null,null,null,null,null,null,null,null,null,{"$f":"[1]Personnel!G391","v":0}]
[0,{"$f":"IFERROR(INDEX(Settings!$AP$17:$AP$38,MATCH(Personnel!$G392,Settings!$AQ$17:$AQ$38,0)),0)","v":0},null,null,null,{"$f":"[1]Personnel!F392","v":0},{"$f":"IFERROR(INDEX((SLevel),MATCH(Personnel!BA392,SLevel202223,0)),0)","v":0},{"$f":"[1]Personnel!H392","v":0},{"$f":"[1]Personnel!I392","v":0},{"$f":"[1]Personnel!J392","v":0},{"$f":"[1]Personnel!P392","v":0},{"$f":"[1]Personnel!Q392","v":0},0,{"$f":"[1]Personnel!S392","v":0},{"$f":"[1]Personnel!S392","v":0},{"$f":"[1]Personnel!S392","v":0},{"$f":"[1]Personnel!T392","v":0},0,{"$f":"[1]Personnel!V392","v":0},{"$f":"[1]Personnel!W392","v":0},0,{"$f":"[1]Personnel!Y392","v":0},{"$f":"[1]Personnel!Z392","v":0},0,0,0,0,null,null,null,null,null,null,null,null,null,null,null,null,null,null,null,null,null,null,null,null,null,null,null,null,null,{"$f":"[1]Personnel!G392","v":0}]
[0,{"$f":"IFERROR(INDEX(Settings!$AP$17:$AP$38,MATCH(Personnel!$G393,Settings!$AQ$17:$AQ$38,0)),0)","v":0},null,null,null,{"$f":"[1]Personnel!F393","v":0},{"$f":"IFERROR(INDEX((SLevel),MATCH(Personnel!BA393,SLevel202223,0)),0)","v":0},{"$f":"[1]Personnel!H393","v":0},{"$f":"[1]Personnel!I393","v":0},{"$f":"[1]Personnel!J393","v":0},{"$f":"[1]Personnel!P393","v":0},{"$f":"[1]Personnel!Q393","v":0},0,{"$f":"[1]Personnel!S393","v":0},{"$f":"[1]Personnel!S393","v":0},{"$f":"[1]Personnel!S393","v":0},{"$f":"[1]Personnel!T393","v":0},0,{"$f":"[1]Personnel!V393","v":0},{"$f":"[1]Personnel!W393","v":0},0,{"$f":"[1]Personnel!Y393","v":0},{"$f":"[1]Personnel!Z393","v":0},0,0,0,0,null,null,null,null,null,null,null,null,null,null,null,null,null,null,null,null,null,null,null,null,null,null,null,null,null,{"$f":"[1]Personnel!G393","v":0}]
[0,{"$f":"IFERROR(INDEX(Settings!$AP$17:$AP$38,MATCH(Personnel!$G394,Settings!$AQ$17:$AQ$38,0)),0)","v":0},null,null,null,{"$f":"[1]Personnel!F394","v":0},{"$f":"IFERROR(INDEX((SLevel),MATCH(Personnel!BA394,SLevel202223,0)),0)","v":0},{"$f":"[1]Personnel!H394","v":0},{"$f":"[1]Personnel!I394","v":0},{"$f":"[1]Personnel!J394","v":0},{"$f":"[1]Personnel!P394","v":0},{"$f":"[1]Personnel!Q394","v":0},0,{"$f":"[1]Personnel!S394","v":0},{"$f":"[1]Personnel!S394","v":0},{"$f":"[1]Personnel!S394","v":0},{"$f":"[1]Personnel!T394","v":0},0,{"$f":"[1]Personnel!V394","v":0},{"$f":"[1]Personnel!W394","v":0},0,{"$f":"[1]Personnel!Y394","v":0},{"$f":"[1]Personnel!Z394","v":0},0,0,0,0,null,null,null,null,null,null,null,null,null,null,null,null,null,null,null,null,null,null,null,null,null,null,null,null,null,{"$f":"[1]Personnel!G394","v":0}]
[0,{"$f":"IFERROR(INDEX(Settings!$AP$17:$AP$38,MATCH(Personnel!$G395,Settings!$AQ$17:$AQ$38,0)),0)","v":0},null,null,null,{"$f":"[1]Personnel!F395","v":0},{"$f":"IFERROR(INDEX((SLevel),MATCH(Personnel!BA395,SLevel202223,0)),0)","v":0},{"$f":"[1]Personnel!H395","v":0},{"$f":"[1]Personnel!I395","v":0},{"$f":"[1]Personnel!J395","v":0},{"$f":"[1]Personnel!P395","v":0},{"$f":"[1]Personnel!Q395","v":0},0,{"$f":"[1]Personnel!S395","v":0},{"$f":"[1]Personnel!S395","v":0},{"$f":"[1]Personnel!S395","v":0},{"$f":"[1]Personnel!T395","v":0},0,{"$f":"[1]Personnel!V395","v":0},{"$f":"[1]Personnel!W395","v":0},0,{"$f":"[1]Personnel!Y395","v":0},{"$f":"[1]Personnel!Z395","v":0},0,0,0,0,null,null,null,null,null,null,null,null,null,null,null,null,null,null,null,null,null,null,null,null,null,null,null,null,null,{"$f":"[1]Personnel!G395","v":0}]
[{"$f":"IF(SUM(K396:AA396)>0,1,0)","v":0},{"$f":"IFERROR(INDEX(Settings!$AP$17:$AP$38,MATCH(Personnel!$G396,Settings!$AQ$17:$AQ$38,0)),0)","v":0},null,null,null,{"$f":"[1]Personnel!F396","v":0},{"$f":"IFERROR(INDEX((SLevel),MATCH(Personnel!BA396,SLevel202223,0)),0)","v":0},{"$f":"[1]Personnel!H396","v":0},{"$f":"[1]Personnel!I396","v":0},{"$f":"[1]Personnel!J396","v":0},{"$f":"[1]Personnel!P396","v":0},{"$f":"[1]Personnel!Q396","v":0},0,{"$f":"[1]Personnel!S396","v":0},{"$f":"[1]Personnel!S396","v":0},{"$f":"[1]Personnel!S396","v":0},{"$f":"[1]Personnel!T396","v":0},0,{"$f":"[1]Personnel!V396","v":0},{"$f":"[1]Personnel!W396","v":0},0,{"$f":"[1]Personnel!Y396","v":0},{"$f":"[1]Personnel!Z396","v":0},0,0,0,0,null,null,null,null,null,null,null,null,null,null,null,null,null,null,null,null,null,null,null,null,null,null,null,null,null,{"$f":"[1]Personnel!G396","v":0}]
[0,{"$f":"IFERROR(INDEX(Settings!$AP$17:$AP$38,MATCH(Personnel!$G397,Settings!$AQ$17:$AQ$38,0)),0)","v":0},null,null,null,{"$f":"[1]Personnel!F397","v":0},{"$f":"IFERROR(INDEX((SLevel),MATCH(Personnel!BA397,SLevel202223,0)),0)","v":0},{"$f":"[1]Personnel!H397","v":0},{"$f":"[1]Personnel!I397","v":0},{"$f":"[1]Personnel!J397","v":0},{"$f":"[1]Personnel!P397","v":0},{"$f":"[1]Personnel!Q397","v":0},{"$f":"ROUND(IF(ISERROR(L397/K397),0,(L397/K397)),0)","v":0},{"$f":"[1]Personnel!S397","v":0},{"$f":"[1]Personnel!S397","v":0},{"$f":"[1]Personnel!S397","v":0},{"$f":"[1]Personnel!T397","v":0},{"$f":"ROUND(IF(ISERROR(Q397/P397),0,(Q397/P397)),0)","v":0},{"$f":"[1]Personnel!V397","v":0},{"$f":"[1]Personnel!W397","v":0},{"$f":"ROUND(IF(ISERROR(T397/S397),0,(T397/S397)),0)","v":0},{"$f":"[1]Personnel!Y397","v":0},{"$f":"[1]Personnel!Z397","v":0},{"$f":"ROUND(IF(ISERROR(W397/V397),0,(W397/V397)),0)","v":0},0,0,{"$f":"ROUND(IF(ISERROR(Z397/Y397),0,(Z397/Y397)),0)","v":0},null,null,null,null,null,null,null,null,null,null,null,null,null,null,null,null,null,null,null,null,null,null,null,null,null,{"$f":"[1]Personnel!G397","v":0}]
[0,{"$f":"IFERROR(INDEX(Settings!$AP$17:$AP$38,MATCH(Personnel!$G398,Settings!$AQ$17:$AQ$38,0)),0)","v":0},null,null,null,{"$f":"[1]Personnel!F398","v":0},{"$f":"IFERROR(INDEX((SLevel),MATCH(Personnel!BA398,SLevel202223,0)),0)","v":0},{"$f":"[1]Personnel!H398","v":0},{"$f":"[1]Personnel!I398","v":0},{"$f":"[1]Personnel!J398","v":0},{"$f":"[1]Personnel!P398","v":0},{"$f":"[1]Personnel!Q398","v":0},0,{"$f":"[1]Personnel!S398","v":0},{"$f":"[1]Personnel!S398","v":0},{"$f":"[1]Personnel!S398","v":0},{"$f":"[1]Personnel!T398","v":0},0,{"$f":"[1]Personnel!V398","v":0},{"$f":"[1]Personnel!W398","v":0},0,{"$f":"[1]Personnel!Y398","v":0},{"$f":"[1]Personnel!Z398","v":0},0,0,0,0,null,null,null,null,null,null,null,null,null,null,null,null,null,null,null,null,null,null,null,null,null,null,null,null,null,{"$f":"[1]Personnel!G398","v":0}]
[0,{"$f":"IFERROR(INDEX(Settings!$AP$17:$AP$38,MATCH(Personnel!$G399,Settings!$AQ$17:$AQ$38,0)),0)","v":0},null,null,null,{"$f":"[1]Personnel!F399","v":0},{"$f":"IFERROR(INDEX((SLevel),MATCH(Personnel!BA399,SLevel202223,0)),0)","v":0},{"$f":"[1]Personnel!H399","v":0},{"$f":"[1]Personnel!I399","v":0},{"$f":"[1]Personnel!J399","v":0},{"$f":"[1]Personnel!P399","v":0},{"$f":"[1]Personnel!Q399","v":0},0,{"$f":"[1]Personnel!S399","v":0},{"$f":"[1]Personnel!S399","v":0},{"$f":"[1]Personnel!S399","v":0},{"$f":"[1]Personnel!T399","v":0},0,{"$f":"[1]Personnel!V399","v":0},{"$f":"[1]Personnel!W399","v":0},0,{"$f":"[1]Personnel!Y399","v":0},{"$f":"[1]Personnel!Z399","v":0},0,0,0,0,null,null,null,null,null,null,null,null,null,null,null,null,null,null,null,null,null,null,null,null,null,null,null,null,null,{"$f":"[1]Personnel!G399","v":0}]
[0,{"$f":"IFERROR(INDEX(Settings!$AP$17:$AP$38,MATCH(Personnel!$G400,Settings!$AQ$17:$AQ$38,0)),0)","v":0},null,null,null,{"$f":"[1]Personnel!F400","v":0},{"$f":"IFERROR(INDEX((SLevel),MATCH(Personnel!BA400,SLevel202223,0)),0)","v":0},{"$f":"[1]Personnel!H400","v":0},{"$f":"[1]Personnel!I400","v":0},{"$f":"[1]Personnel!J400","v":0},{"$f":"[1]Personnel!P400","v":0},{"$f":"[1]Personnel!Q400","v":0},0,{"$f":"[1]Personnel!S400","v":0},{"$f":"[1]Personnel!S400","v":0},{"$f":"[1]Personnel!S400","v":0},{"$f":"[1]Personnel!T400","v":0},0,{"$f":"[1]Personnel!V400","v":0},{"$f":"[1]Personnel!W400","v":0},0,{"$f":"[1]Personnel!Y400","v":0},{"$f":"[1]Personnel!Z400","v":0},0,0,0,0,null,null,null,null,null,null,null,null,null,null,null,null,null,null,null,null,null,null,null,null,null,null,null,null,null,{"$f":"[1]Personnel!G400","v":0}]
[0,{"$f":"IFERROR(INDEX(Settings!$AP$17:$AP$38,MATCH(Personnel!$G401,Settings!$AQ$17:$AQ$38,0)),0)","v":0},null,null,null,{"$f":"[1]Personnel!F401","v":0},{"$f":"IFERROR(INDEX((SLevel),MATCH(Personnel!BA401,SLevel202223,0)),0)","v":0},{"$f":"[1]Personnel!H401","v":0},{"$f":"[1]Personnel!I401","v":0},{"$f":"[1]Personnel!J401","v":0},{"$f":"[1]Personnel!P401","v":0},{"$f":"[1]Personnel!Q401","v":0},0,{"$f":"[1]Personnel!S401","v":0},{"$f":"[1]Personnel!S401","v":0},{"$f":"[1]Personnel!S401","v":0},{"$f":"[1]Personnel!T401","v":0},0,{"$f":"[1]Personnel!V401","v":0},{"$f":"[1]Personnel!W401","v":0},0,{"$f":"[1]Personnel!Y401","v":0},{"$f":"[1]Personnel!Z401","v":0},0,0,0,0,null,null,null,null,null,null,null,null,null,null,null,null,null,null,null,null,null,null,null,null,null,null,null,null,null,{"$f":"[1]Personnel!G401","v":0}]
[0,{"$f":"IFERROR(INDEX(Settings!$AP$17:$AP$38,MATCH(Personnel!$G402,Settings!$AQ$17:$AQ$38,0)),0)","v":0},null,null,null,{"$f":"[1]Personnel!F402","v":0},{"$f":"IFERROR(INDEX((SLevel),MATCH(Personnel!BA402,SLevel202223,0)),0)","v":0},{"$f":"[1]Personnel!H402","v":0},{"$f":"[1]Personnel!I402","v":0},{"$f":"[1]Personnel!J402","v":0},{"$f":"[1]Personnel!P402","v":0},{"$f":"[1]Personnel!Q402","v":0},0,{"$f":"[1]Personnel!S402","v":0},{"$f":"[1]Personnel!S402","v":0},{"$f":"[1]Personnel!S402","v":0},{"$f":"[1]Personnel!T402","v":0},0,{"$f":"[1]Personnel!V402","v":0},{"$f":"[1]Personnel!W402","v":0},0,{"$f":"[1]Personnel!Y402","v":0},{"$f":"[1]Personnel!Z402","v":0},0,0,0,0,null,null,null,null,null,null,null,null,null,null,null,null,null,null,null,null,null,null,null,null,null,null,null,null,null,{"$f":"[1]Personnel!G402","v":0}]
[0,{"$f":"IFERROR(INDEX(Settings!$AP$17:$AP$38,MATCH(Personnel!$G403,Settings!$AQ$17:$AQ$38,0)),0)","v":0},null,null,null,{"$f":"[1]Personnel!F403","v":0},{"$f":"IFERROR(INDEX((SLevel),MATCH(Personnel!BA403,SLevel202223,0)),0)","v":0},{"$f":"[1]Personnel!H403","v":0},{"$f":"[1]Personnel!I403","v":0},{"$f":"[1]Personnel!J403","v":0},{"$f":"[1]Personnel!P403","v":0},{"$f":"[1]Personnel!Q403","v":0},0,{"$f":"[1]Personnel!S403","v":0},{"$f":"[1]Personnel!S403","v":0},{"$f":"[1]Personnel!S403","v":0},{"$f":"[1]Personnel!T403","v":0},0,{"$f":"[1]Personnel!V403","v":0},{"$f":"[1]Personnel!W403","v":0},0,{"$f":"[1]Personnel!Y403","v":0},{"$f":"[1]Personnel!Z403","v":0},0,0,0,0,null,null,null,null,null,null,null,null,null,null,null,null,null,null,null,null,null,null,null,null,null,null,null,null,null,{"$f":"[1]Personnel!G403","v":0}]
[0,{"$f":"IFERROR(INDEX(Settings!$AP$17:$AP$38,MATCH(Personnel!$G404,Settings!$AQ$17:$AQ$38,0)),0)","v":0},null,null,null,{"$f":"[1]Personnel!F404","v":0},{"$f":"IFERROR(INDEX((SLevel),MATCH(Personnel!BA404,SLevel202223,0)),0)","v":0},{"$f":"[1]Personnel!H404","v":0},{"$f":"[1]Personnel!I404","v":0},{"$f":"[1]Personnel!J404","v":0},{"$f":"[1]Personnel!P404","v":0},{"$f":"[1]Personnel!Q404","v":0},0,{"$f":"[1]Personnel!S404","v":0},{"$f":"[1]Personnel!S404","v":0},{"$f":"[1]Personnel!S404","v":0},{"$f":"[1]Personnel!T404","v":0},0,{"$f":"[1]Personnel!V404","v":0},{"$f":"[1]Personnel!W404","v":0},0,{"$f":"[1]Personnel!Y404","v":0},{"$f":"[1]Personnel!Z404","v":0},0,0,0,0,null,null,null,null,null,null,null,null,null,null,null,null,null,null,null,null,null,null,null,null,null,null,null,null,null,{"$f":"[1]Personnel!G404","v":0}]
[0,{"$f":"IFERROR(INDEX(Settings!$AP$17:$AP$38,MATCH(Personnel!$G405,Settings!$AQ$17:$AQ$38,0)),0)","v":0},null,null,null,{"$f":"[1]Personnel!F405","v":0},{"$f":"IFERROR(INDEX((SLevel),MATCH(Personnel!BA405,SLevel202223,0)),0)","v":0},{"$f":"[1]Personnel!H405","v":0},{"$f":"[1]Personnel!I405","v":0},{"$f":"[1]Personnel!J405","v":0},{"$f":"[1]Personnel!P405","v":0},{"$f":"[1]Personnel!Q405","v":0},0,{"$f":"[1]Personnel!S405","v":0},{"$f":"[1]Personnel!S405","v":0},{"$f":"[1]Personnel!S405","v":0},{"$f":"[1]Personnel!T405","v":0},0,{"$f":"[1]Personnel!V405","v":0},{"$f":"[1]Personnel!W405","v":0},0,{"$f":"[1]Personnel!Y405","v":0},{"$f":"[1]Personnel!Z405","v":0},0,0,0,0,null,null,null,null,null,null,null,null,null,null,null,null,null,null,null,null,null,null,null,null,null,null,null,null,null,{"$f":"[1]Personnel!G405","v":0}]
[0,{"$f":"IFERROR(INDEX(Settings!$AP$17:$AP$38,MATCH(Personnel!$G406,Settings!$AQ$17:$AQ$38,0)),0)","v":0},null,null,null,{"$f":"[1]Personnel!F406","v":0},{"$f":"IFERROR(INDEX((SLevel),MATCH(Personnel!BA406,SLevel202223,0)),0)","v":0},{"$f":"[1]Personnel!H406","v":0},{"$f":"[1]Personnel!I406","v":0},{"$f":"[1]Personnel!J406","v":0},{"$f":"[1]Personnel!P406","v":0},{"$f":"[1]Personnel!Q406","v":0},0,{"$f":"[1]Personnel!S406","v":0},{"$f":"[1]Personnel!S406","v":0},{"$f":"[1]Personnel!S406","v":0},{"$f":"[1]Personnel!T406","v":0},0,{"$f":"[1]Personnel!V406","v":0},{"$f":"[1]Personnel!W406","v":0},0,{"$f":"[1]Personnel!Y406","v":0},{"$f":"[1]Personnel!Z406","v":0},0,0,0,0,null,null,null,null,null,null,null,null,null,null,null,null,null,null,null,null,null,null,null,null,null,null,null,null,null,{"$f":"[1]Personnel!G406","v":0}]
[0,{"$f":"IFERROR(INDEX(Settings!$AP$17:$AP$38,MATCH(Personnel!$G407,Settings!$AQ$17:$AQ$38,0)),0)","v":0},null,null,null,{"$f":"[1]Personnel!F407","v":0},{"$f":"IFERROR(INDEX((SLevel),MATCH(Personnel!BA407,SLevel202223,0)),0)","v":0},{"$f":"[1]Personnel!H407","v":0},{"$f":"[1]Personnel!I407","v":0},{"$f":"[1]Personnel!J407","v":0},{"$f":"[1]Personnel!P407","v":0},{"$f":"[1]Personnel!Q407","v":0},0,{"$f":"[1]Personnel!S407","v":0},{"$f":"[1]Personnel!S407","v":0},{"$f":"[1]Personnel!S407","v":0},{"$f":"[1]Personnel!T407","v":0},0,{"$f":"[1]Personnel!V407","v":0},{"$f":"[1]Personnel!W407","v":0},0,{"$f":"[1]Personnel!Y407","v":0},{"$f":"[1]Personnel!Z407","v":0},0,0,0,0,null,null,null,null,null,null,null,null,null,null,null,null,null,null,null,null,null,null,null,null,null,null,null,null,null,{"$f":"[1]Personnel!G407","v":0}]
[0,{"$f":"IFERROR(INDEX(Settings!$AP$17:$AP$38,MATCH(Personnel!$G408,Settings!$AQ$17:$AQ$38,0)),0)","v":0},null,null,null,{"$f":"[1]Personnel!F408","v":0},{"$f":"IFERROR(INDEX((SLevel),MATCH(Personnel!BA408,SLevel202223,0)),0)","v":0},{"$f":"[1]Personnel!H408","v":0},{"$f":"[1]Personnel!I408","v":0},{"$f":"[1]Personnel!J408","v":0},{"$f":"[1]Personnel!P408","v":0},{"$f":"[1]Personnel!Q408","v":0},0,{"$f":"[1]Personnel!S408","v":0},{"$f":"[1]Personnel!S408","v":0},{"$f":"[1]Personnel!S408","v":0},{"$f":"[1]Personnel!T408","v":0},0,{"$f":"[1]Personnel!V408","v":0},{"$f":"[1]Personnel!W408","v":0},0,{"$f":"[1]Personnel!Y408","v":0},{"$f":"[1]Personnel!Z408","v":0},0,0,0,0,null,null,null,null,null,null,null,null,null,null,null,null,null,null,null,null,null,null,null,null,null,null,null,null,null,{"$f":"[1]Personnel!G408","v":0}]
[0,{"$f":"IFERROR(INDEX(Settings!$AP$17:$AP$38,MATCH(Personnel!$G409,Settings!$AQ$17:$AQ$38,0)),0)","v":0},null,null,null,{"$f":"[1]Personnel!F409","v":0},{"$f":"IFERROR(INDEX((SLevel),MATCH(Personnel!BA409,SLevel202223,0)),0)","v":0},{"$f":"[1]Personnel!H409","v":0},{"$f":"[1]Personnel!I409","v":0},{"$f":"[1]Personnel!J409","v":0},{"$f":"[1]Personnel!P409","v":0},{"$f":"[1]Personnel!Q409","v":0},0,{"$f":"[1]Personnel!S409","v":0},{"$f":"[1]Personnel!S409","v":0},{"$f":"[1]Personnel!S409","v":0},{"$f":"[1]Personnel!T409","v":0},0,{"$f":"[1]Personnel!V409","v":0},{"$f":"[1]Personnel!W409","v":0},0,{"$f":"[1]Personnel!Y409","v":0},{"$f":"[1]Personnel!Z409","v":0},0,0,0,0,null,null,null,null,null,null,null,null,null,null,null,null,null,null,null,null,null,null,null,null,null,null,null,null,null,{"$f":"[1]Personnel!G409","v":0}]
[0,{"$f":"IFERROR(INDEX(Settings!$AP$17:$AP$38,MATCH(Personnel!$G410,Settings!$AQ$17:$AQ$38,0)),0)","v":0},null,null,null,{"$f":"[1]Personnel!F410","v":0},{"$f":"IFERROR(INDEX((SLevel),MATCH(Personnel!BA410,SLevel202223,0)),0)","v":0},{"$f":"[1]Personnel!H410","v":0},{"$f":"[1]Personnel!I410","v":0},{"$f":"[1]Personnel!J410","v":0},{"$f":"[1]Personnel!P410","v":0},{"$f":"[1]Personnel!Q410","v":0},0,{"$f":"[1]Personnel!S410","v":0},{"$f":"[1]Personnel!S410","v":0},{"$f":"[1]Personnel!S410","v":0},{"$f":"[1]Personnel!T410","v":0},0,{"$f":"[1]Personnel!V410","v":0},{"$f":"[1]Personnel!W410","v":0},0,{"$f":"[1]Personnel!Y410","v":0},{"$f":"[1]Personnel!Z410","v":0},0,0,0,0,null,null,null,null,null,null,null,null,null,null,null,null,null,null,null,null,null,null,null,null,null,null,null,null,null,{"$f":"[1]Personnel!G410","v":0}]
[0,{"$f":"IFERROR(INDEX(Settings!$AP$17:$AP$38,MATCH(Personnel!$G411,Settings!$AQ$17:$AQ$38,0)),0)","v":0},null,null,null,{"$f":"[1]Personnel!F411","v":0},{"$f":"IFERROR(INDEX((SLevel),MATCH(Personnel!BA411,SLevel202223,0)),0)","v":0},{"$f":"[1]Personnel!H411","v":0},{"$f":"[1]Personnel!I411","v":0},{"$f":"[1]Personnel!J411","v":0},{"$f":"[1]Personnel!P411","v":0},{"$f":"[1]Personnel!Q411","v":0},0,{"$f":"[1]Personnel!S411","v":0},{"$f":"[1]Personnel!S411","v":0},{"$f":"[1]Personnel!S411","v":0},{"$f":"[1]Personnel!T411","v":0},0,{"$f":"[1]Personnel!V411","v":0},{"$f":"[1]Personnel!W411","v":0},0,{"$f":"[1]Personnel!Y411","v":0},{"$f":"[1]Personnel!Z411","v":0},0,0,0,0,null,null,null,null,null,null,null,null,null,null,null,null,null,null,null,null,null,null,null,null,null,null,null,null,null,{"$f":"[1]Personnel!G411","v":0}]
[0,{"$f":"IFERROR(INDEX(Settings!$AP$17:$AP$38,MATCH(Personnel!$G412,Settings!$AQ$17:$AQ$38,0)),0)","v":0},null,null,null,{"$f":"[1]Personnel!F412","v":0},{"$f":"IFERROR(INDEX((SLevel),MATCH(Personnel!BA412,SLevel202223,0)),0)","v":0},{"$f":"[1]Personnel!H412","v":0},{"$f":"[1]Personnel!I412","v":0},{"$f":"[1]Personnel!J412","v":0},{"$f":"[1]Personnel!P412","v":0},{"$f":"[1]Personnel!Q412","v":0},0,{"$f":"[1]Personnel!S412","v":0},{"$f":"[1]Personnel!S412","v":0},{"$f":"[1]Personnel!S412","v":0},{"$f":"[1]Personnel!T412","v":0},0,{"$f":"[1]Personnel!V412","v":0},{"$f":"[1]Personnel!W412","v":0},0,{"$f":"[1]Personnel!Y412","v":0},{"$f":"[1]Personnel!Z412","v":0},0,0,0,0,null,null,null,null,null,null,null,null,null,null,null,null,null,null,null,null,null,null,null,null,null,null,null,null,null,{"$f":"[1]Personnel!G412","v":0}]
[0,{"$f":"IFERROR(INDEX(Settings!$AP$17:$AP$38,MATCH(Personnel!$G413,Settings!$AQ$17:$AQ$38,0)),0)","v":0},null,null,null,{"$f":"[1]Personnel!F413","v":0},{"$f":"IFERROR(INDEX((SLevel),MATCH(Personnel!BA413,SLevel202223,0)),0)","v":0},{"$f":"[1]Personnel!H413","v":0},{"$f":"[1]Personnel!I413","v":0},{"$f":"[1]Personnel!J413","v":0},{"$f":"[1]Personnel!P413","v":0},{"$f":"[1]Personnel!Q413","v":0},0,{"$f":"[1]Personnel!S413","v":0},{"$f":"[1]Personnel!S413","v":0},{"$f":"[1]Personnel!S413","v":0},{"$f":"[1]Personnel!T413","v":0},0,{"$f":"[1]Personnel!V413","v":0},{"$f":"[1]Personnel!W413","v":0},0,{"$f":"[1]Personnel!Y413","v":0},{"$f":"[1]Personnel!Z413","v":0},0,0,0,0,null,null,null,null,null,null,null,null,null,null,null,null,null,null,null,null,null,null,null,null,null,null,null,null,null,{"$f":"[1]Personnel!G413","v":0}]
[0,{"$f":"IFERROR(INDEX(Settings!$AP$17:$AP$38,MATCH(Personnel!$G414,Settings!$AQ$17:$AQ$38,0)),0)","v":0},null,null,null,{"$f":"[1]Personnel!F414","v":0},{"$f":"IFERROR(INDEX((SLevel),MATCH(Personnel!BA414,SLevel202223,0)),0)","v":0},{"$f":"[1]Personnel!H414","v":0},{"$f":"[1]Personnel!I414","v":0},{"$f":"[1]Personnel!J414","v":0},{"$f":"[1]Personnel!P414","v":0},{"$f":"[1]Personnel!Q414","v":0},0,{"$f":"[1]Personnel!S414","v":0},{"$f":"[1]Personnel!S414","v":0},{"$f":"[1]Personnel!S414","v":0},{"$f":"[1]Personnel!T414","v":0},0,{"$f":"[1]Personnel!V414","v":0},{"$f":"[1]Personnel!W414","v":0},0,{"$f":"[1]Personnel!Y414","v":0},{"$f":"[1]Personnel!Z414","v":0},0,0,0,0,null,null,null,null,null,null,null,null,null,null,null,null,null,null,null,null,null,null,null,null,null,null,null,null,null,{"$f":"[1]Personnel!G414","v":0}]
[0,{"$f":"IFERROR(INDEX(Settings!$AP$17:$AP$38,MATCH(Personnel!$G415,Settings!$AQ$17:$AQ$38,0)),0)","v":0},null,null,null,{"$f":"[1]Personnel!F415","v":0},{"$f":"IFERROR(INDEX((SLevel),MATCH(Personnel!BA415,SLevel202223,0)),0)","v":0},{"$f":"[1]Personnel!H415","v":0},{"$f":"[1]Personnel!I415","v":0},{"$f":"[1]Personnel!J415","v":0},{"$f":"[1]Personnel!P415","v":0},{"$f":"[1]Personnel!Q415","v":0},0,{"$f":"[1]Personnel!S415","v":0},{"$f":"[1]Personnel!S415","v":0},{"$f":"[1]Personnel!S415","v":0},{"$f":"[1]Personnel!T415","v":0},0,{"$f":"[1]Personnel!V415","v":0},{"$f":"[1]Personnel!W415","v":0},0,{"$f":"[1]Personnel!Y415","v":0},{"$f":"[1]Personnel!Z415","v":0},0,0,0,0,null,null,null,null,null,null,null,null,null,null,null,null,null,null,null,null,null,null,null,null,null,null,null,null,null,{"$f":"[1]Personnel!G415","v":0}]
[0,{"$f":"IFERROR(INDEX(Settings!$AP$17:$AP$38,MATCH(Personnel!$G416,Settings!$AQ$17:$AQ$38,0)),0)","v":0},null,null,null,{"$f":"[1]Personnel!F416","v":0},{"$f":"IFERROR(INDEX((SLevel),MATCH(Personnel!BA416,SLevel202223,0)),0)","v":0},{"$f":"[1]Personnel!H416","v":0},{"$f":"[1]Personnel!I416","v":0},{"$f":"[1]Personnel!J416","v":0},{"$f":"[1]Personnel!P416","v":0},{"$f":"[1]Personnel!Q416","v":0},0,{"$f":"[1]Personnel!S416","v":0},{"$f":"[1]Personnel!S416","v":0},{"$f":"[1]Personnel!S416","v":0},{"$f":"[1]Personnel!T416","v":0},0,{"$f":"[1]Personnel!V416","v":0},{"$f":"[1]Personnel!W416","v":0},0,{"$f":"[1]Personnel!Y416","v":0},{"$f":"[1]Personnel!Z416","v":0},0,0,0,0,null,null,null,null,null,null,null,null,null,null,null,null,null,null,null,null,null,null,null,null,null,null,null,null,null,{"$f":"[1]Personnel!G416","v":0}]
[0,{"$f":"IFERROR(INDEX(Settings!$AP$17:$AP$38,MATCH(Personnel!$G417,Settings!$AQ$17:$AQ$38,0)),0)","v":0},null,null,null,{"$f":"[1]Personnel!F417","v":0},{"$f":"IFERROR(INDEX((SLevel),MATCH(Personnel!BA417,SLevel202223,0)),0)","v":0},{"$f":"[1]Personnel!H417","v":0},{"$f":"[1]Personnel!I417","v":0},{"$f":"[1]Personnel!J417","v":0},{"$f":"[1]Personnel!P417","v":0},{"$f":"[1]Personnel!Q417","v":0},0,{"$f":"[1]Personnel!S417","v":0},{"$f":"[1]Personnel!S417","v":0},{"$f":"[1]Personnel!S417","v":0},{"$f":"[1]Personnel!T417","v":0},0,{"$f":"[1]Personnel!V417","v":0},{"$f":"[1]Personnel!W417","v":0},0,{"$f":"[1]Personnel!Y417","v":0},{"$f":"[1]Personnel!Z417","v":0},0,0,0,0,null,null,null,null,null,null,null,null,null,null,null,null,null,null,null,null,null,null,null,null,null,null,null,null,null,{"$f":"[1]Personnel!G417","v":0}]
[0,{"$f":"IFERROR(INDEX(Settings!$AP$17:$AP$38,MATCH(Personnel!$G418,Settings!$AQ$17:$AQ$38,0)),0)","v":0},null,null,null,{"$f":"[1]Personnel!F418","v":0},{"$f":"IFERROR(INDEX((SLevel),MATCH(Personnel!BA418,SLevel202223,0)),0)","v":0},{"$f":"[1]Personnel!H418","v":0},{"$f":"[1]Personnel!I418","v":0},{"$f":"[1]Personnel!J418","v":0},{"$f":"[1]Personnel!P418","v":0},{"$f":"[1]Personnel!Q418","v":0},0,{"$f":"[1]Personnel!S418","v":0},{"$f":"[1]Personnel!S418","v":0},{"$f":"[1]Personnel!S418","v":0},{"$f":"[1]Personnel!T418","v":0},0,{"$f":"[1]Personnel!V418","v":0},{"$f":"[1]Personnel!W418","v":0},0,{"$f":"[1]Personnel!Y418","v":0},{"$f":"[1]Personnel!Z418","v":0},0,0,0,0,null,null,null,null,null,null,null,null,null,null,null,null,null,null,null,null,null,null,null,null,null,null,null,null,null,{"$f":"[1]Personnel!G418","v":0}]
[0,{"$f":"IFERROR(INDEX(Settings!$AP$17:$AP$38,MATCH(Personnel!$G419,Settings!$AQ$17:$AQ$38,0)),0)","v":0},null,null,null,{"$f":"[1]Personnel!F419","v":0},{"$f":"IFERROR(INDEX((SLevel),MATCH(Personnel!BA419,SLevel202223,0)),0)","v":0},{"$f":"[1]Personnel!H419","v":0},{"$f":"[1]Personnel!I419","v":0},{"$f":"[1]Personnel!J419","v":0},{"$f":"[1]Personnel!P419","v":0},{"$f":"[1]Personnel!Q419","v":0},0,{"$f":"[1]Personnel!S419","v":0},{"$f":"[1]Personnel!S419","v":0},{"$f":"[1]Personnel!S419","v":0},{"$f":"[1]Personnel!T419","v":0},0,{"$f":"[1]Personnel!V419","v":0},{"$f":"[1]Personnel!W419","v":0},0,{"$f":"[1]Personnel!Y419","v":0},{"$f":"[1]Personnel!Z419","v":0},0,0,0,0,null,null,null,null,null,null,null,null,null,null,null,null,null,null,null,null,null,null,null,null,null,null,null,null,null,{"$f":"[1]Personnel!G419","v":0}]
[0,{"$f":"IFERROR(INDEX(Settings!$AP$17:$AP$38,MATCH(Personnel!$G420,Settings!$AQ$17:$AQ$38,0)),0)","v":0},null,null,null,{"$f":"[1]Personnel!F420","v":0},{"$f":"IFERROR(INDEX((SLevel),MATCH(Personnel!BA420,SLevel202223,0)),0)","v":0},{"$f":"[1]Personnel!H420","v":0},{"$f":"[1]Personnel!I420","v":0},{"$f":"[1]Personnel!J420","v":0},{"$f":"[1]Personnel!P420","v":0},{"$f":"[1]Personnel!Q420","v":0},0,{"$f":"[1]Personnel!S420","v":0},{"$f":"[1]Personnel!S420","v":0},{"$f":"[1]Personnel!S420","v":0},{"$f":"[1]Personnel!T420","v":0},0,{"$f":"[1]Personnel!V420","v":0},{"$f":"[1]Personnel!W420","v":0},0,{"$f":"[1]Personnel!Y420","v":0},{"$f":"[1]Personnel!Z420","v":0},0,0,0,0,null,null,null,null,null,null,null,null,null,null,null,null,null,null,null,null,null,null,null,null,null,null,null,null,null,{"$f":"[1]Personnel!G420","v":0}]
[0,{"$f":"IFERROR(INDEX(Settings!$AP$17:$AP$38,MATCH(Personnel!$G421,Settings!$AQ$17:$AQ$38,0)),0)","v":0},null,null,null,{"$f":"[1]Personnel!F421","v":0},{"$f":"IFERROR(INDEX((SLevel),MATCH(Personnel!BA421,SLevel202223,0)),0)","v":0},{"$f":"[1]Personnel!H421","v":0},{"$f":"[1]Personnel!I421","v":0},{"$f":"[1]Personnel!J421","v":0},{"$f":"[1]Personnel!P421","v":0},{"$f":"[1]Personnel!Q421","v":0},0,{"$f":"[1]Personnel!S421","v":0},{"$f":"[1]Personnel!S421","v":0},{"$f":"[1]Personnel!S421","v":0},{"$f":"[1]Personnel!T421","v":0},0,{"$f":"[1]Personnel!V421","v":0},{"$f":"[1]Personnel!W421","v":0},0,{"$f":"[1]Personnel!Y421","v":0},{"$f":"[1]Personnel!Z421","v":0},0,0,0,0,null,null,null,null,null,null,null,null,null,null,null,null,null,null,null,null,null,null,null,null,null,null,null,null,null,{"$f":"[1]Personnel!G421","v":0}]
[0,{"$f":"IFERROR(INDEX(Settings!$AP$17:$AP$38,MATCH(Personnel!$G422,Settings!$AQ$17:$AQ$38,0)),0)","v":0},null,null,null,{"$f":"[1]Personnel!F422","v":0},{"$f":"IFERROR(INDEX((SLevel),MATCH(Personnel!BA422,SLevel202223,0)),0)","v":0},{"$f":"[1]Personnel!H422","v":0},{"$f":"[1]Personnel!I422","v":0},{"$f":"[1]Personnel!J422","v":0},{"$f":"[1]Personnel!P422","v":0},{"$f":"[1]Personnel!Q422","v":0},0,{"$f":"[1]Personnel!S422","v":0},{"$f":"[1]Personnel!S422","v":0},{"$f":"[1]Personnel!S422","v":0},{"$f":"[1]Personnel!T422","v":0},0,{"$f":"[1]Personnel!V422","v":0},{"$f":"[1]Personnel!W422","v":0},0,{"$f":"[1]Personnel!Y422","v":0},{"$f":"[1]Personnel!Z422","v":0},0,0,0,0,null,null,null,null,null,null,null,null,null,null,null,null,null,null,null,null,null,null,null,null,null,null,null,null,null,{"$f":"[1]Personnel!G422","v":0}]
[0,{"$f":"IFERROR(INDEX(Settings!$AP$17:$AP$38,MATCH(Personnel!$G423,Settings!$AQ$17:$AQ$38,0)),0)","v":0},null,null,null,{"$f":"[1]Personnel!F423","v":0},{"$f":"IFERROR(INDEX((SLevel),MATCH(Personnel!BA423,SLevel202223,0)),0)","v":0},{"$f":"[1]Personnel!H423","v":0},{"$f":"[1]Personnel!I423","v":0},{"$f":"[1]Personnel!J423","v":0},{"$f":"[1]Personnel!P423","v":0},{"$f":"[1]Personnel!Q423","v":0},0,{"$f":"[1]Personnel!S423","v":0},{"$f":"[1]Personnel!S423","v":0},{"$f":"[1]Personnel!S423","v":0},{"$f":"[1]Personnel!T423","v":0},0,{"$f":"[1]Personnel!V423","v":0},{"$f":"[1]Personnel!W423","v":0},0,{"$f":"[1]Personnel!Y423","v":0},{"$f":"[1]Personnel!Z423","v":0},0,0,0,0,null,null,null,null,null,null,null,null,null,null,null,null,null,null,null,null,null,null,null,null,null,null,null,null,null,{"$f":"[1]Personnel!G423","v":0}]
[0,{"$f":"IFERROR(INDEX(Settings!$AP$17:$AP$38,MATCH(Personnel!$G424,Settings!$AQ$17:$AQ$38,0)),0)","v":0},null,null,null,{"$f":"[1]Personnel!F424","v":0},{"$f":"IFERROR(INDEX((SLevel),MATCH(Personnel!BA424,SLevel202223,0)),0)","v":0},{"$f":"[1]Personnel!H424","v":0},{"$f":"[1]Personnel!I424","v":0},{"$f":"[1]Personnel!J424","v":0},{"$f":"[1]Personnel!P424","v":0},{"$f":"[1]Personnel!Q424","v":0},0,{"$f":"[1]Personnel!S424","v":0},{"$f":"[1]Personnel!S424","v":0},{"$f":"[1]Personnel!S424","v":0},{"$f":"[1]Personnel!T424","v":0},0,{"$f":"[1]Personnel!V424","v":0},{"$f":"[1]Personnel!W424","v":0},0,{"$f":"[1]Personnel!Y424","v":0},{"$f":"[1]Personnel!Z424","v":0},0,0,0,0,null,null,null,null,null,null,null,null,null,null,null,null,null,null,null,null,null,null,null,null,null,null,null,null,null,{"$f":"[1]Personnel!G424","v":0}]
[0,{"$f":"IFERROR(INDEX(Settings!$AP$17:$AP$38,MATCH(Personnel!$G425,Settings!$AQ$17:$AQ$38,0)),0)","v":0},null,null,null,{"$f":"[1]Personnel!F425","v":0},{"$f":"IFERROR(INDEX((SLevel),MATCH(Personnel!BA425,SLevel202223,0)),0)","v":0},{"$f":"[1]Personnel!H425","v":0},{"$f":"[1]Personnel!I425","v":0},{"$f":"[1]Personnel!J425","v":0},{"$f":"[1]Personnel!P425","v":0},{"$f":"[1]Personnel!Q425","v":0},0,{"$f":"[1]Personnel!S425","v":0},{"$f":"[1]Personnel!S425","v":0},{"$f":"[1]Personnel!S425","v":0},{"$f":"[1]Personnel!T425","v":0},0,{"$f":"[1]Personnel!V425","v":0},{"$f":"[1]Personnel!W425","v":0},0,{"$f":"[1]Personnel!Y425","v":0},{"$f":"[1]Personnel!Z425","v":0},0,0,0,0,null,null,null,null,null,null,null,null,null,null,null,null,null,null,null,null,null,null,null,null,null,null,null,null,null,{"$f":"[1]Personnel!G425","v":0}]
[0,{"$f":"IFERROR(INDEX(Settings!$AP$17:$AP$38,MATCH(Personnel!$G426,Settings!$AQ$17:$AQ$38,0)),0)","v":0},null,null,null,{"$f":"[1]Personnel!F426","v":0},{"$f":"IFERROR(INDEX((SLevel),MATCH(Personnel!BA426,SLevel202223,0)),0)","v":0},{"$f":"[1]Personnel!H426","v":0},{"$f":"[1]Personnel!I426","v":0},{"$f":"[1]Personnel!J426","v":0},{"$f":"[1]Personnel!P426","v":0},{"$f":"[1]Personnel!Q426","v":0},0,{"$f":"[1]Personnel!S426","v":0},{"$f":"[1]Personnel!S426","v":0},{"$f":"[1]Personnel!S426","v":0},{"$f":"[1]Personnel!T426","v":0},0,{"$f":"[1]Personnel!V426","v":0},{"$f":"[1]Personnel!W426","v":0},0,{"$f":"[1]Personnel!Y426","v":0},{"$f":"[1]Personnel!Z426","v":0},0,0,0,0,null,null,null,null,null,null,null,null,null,null,null,null,null,null,null,null,null,null,null,null,null,null,null,null,null,{"$f":"[1]Personnel!G426","v":0}]
[0,{"$f":"IFERROR(INDEX(Settings!$AP$17:$AP$38,MATCH(Personnel!$G427,Settings!$AQ$17:$AQ$38,0)),0)","v":0},null,null,null,{"$f":"[1]Personnel!F427","v":0},{"$f":"IFERROR(INDEX((SLevel),MATCH(Personnel!BA427,SLevel202223,0)),0)","v":0},{"$f":"[1]Personnel!H427","v":0},{"$f":"[1]Personnel!I427","v":0},{"$f":"[1]Personnel!J427","v":0},{"$f":"[1]Personnel!P427","v":0},{"$f":"[1]Personnel!Q427","v":0},0,{"$f":"[1]Personnel!S427","v":0},{"$f":"[1]Personnel!S427","v":0},{"$f":"[1]Personnel!S427","v":0},{"$f":"[1]Personnel!T427","v":0},0,{"$f":"[1]Personnel!V427","v":0},{"$f":"[1]Personnel!W427","v":0},0,{"$f":"[1]Personnel!Y427","v":0},{"$f":"[1]Personnel!Z427","v":0},0,0,0,0,null,null,null,null,null,null,null,null,null,null,null,null,null,null,null,null,null,null,null,null,null,null,null,null,null,{"$f":"[1]Personnel!G427","v":0}]
[0,{"$f":"IFERROR(INDEX(Settings!$AP$17:$AP$38,MATCH(Personnel!$G428,Settings!$AQ$17:$AQ$38,0)),0)","v":0},null,null,null,{"$f":"[1]Personnel!F428","v":0},{"$f":"IFERROR(INDEX((SLevel),MATCH(Personnel!BA428,SLevel202223,0)),0)","v":0},{"$f":"[1]Personnel!H428","v":0},{"$f":"[1]Personnel!I428","v":0},{"$f":"[1]Personnel!J428","v":0},{"$f":"[1]Personnel!P428","v":0},{"$f":"[1]Personnel!Q428","v":0},0,{"$f":"[1]Personnel!S428","v":0},{"$f":"[1]Personnel!S428","v":0},{"$f":"[1]Personnel!S428","v":0},{"$f":"[1]Personnel!T428","v":0},0,{"$f":"[1]Personnel!V428","v":0},{"$f":"[1]Personnel!W428","v":0},0,{"$f":"[1]Personnel!Y428","v":0},{"$f":"[1]Personnel!Z428","v":0},0,0,0,0,null,null,null,null,null,null,null,null,null,null,null,null,null,null,null,null,null,null,null,null,null,null,null,null,null,{"$f":"[1]Personnel!G428","v":0}]
[0,{"$f":"IFERROR(INDEX(Settings!$AP$17:$AP$38,MATCH(Personnel!$G429,Settings!$AQ$17:$AQ$38,0)),0)","v":0},null,null,null,{"$f":"[1]Personnel!F429","v":0},{"$f":"IFERROR(INDEX((SLevel),MATCH(Personnel!BA429,SLevel202223,0)),0)","v":0},{"$f":"[1]Personnel!H429","v":0},{"$f":"[1]Personnel!I429","v":0},{"$f":"[1]Personnel!J429","v":0},{"$f":"[1]Personnel!P429","v":0},{"$f":"[1]Personnel!Q429","v":0},0,{"$f":"[1]Personnel!S429","v":0},{"$f":"[1]Personnel!S429","v":0},{"$f":"[1]Personnel!S429","v":0},{"$f":"[1]Personnel!T429","v":0},0,{"$f":"[1]Personnel!V429","v":0},{"$f":"[1]Personnel!W429","v":0},0,{"$f":"[1]Personnel!Y429","v":0},{"$f":"[1]Personnel!Z429","v":0},0,0,0,0,null,null,null,null,null,null,null,null,null,null,null,null,null,null,null,null,null,null,null,null,null,null,null,null,null,{"$f":"[1]Personnel!G429","v":0}]
[0,{"$f":"IFERROR(INDEX(Settings!$AP$17:$AP$38,MATCH(Personnel!$G430,Settings!$AQ$17:$AQ$38,0)),0)","v":0},null,null,null,{"$f":"[1]Personnel!F430","v":0},{"$f":"IFERROR(INDEX((SLevel),MATCH(Personnel!BA430,SLevel202223,0)),0)","v":0},{"$f":"[1]Personnel!H430","v":0},{"$f":"[1]Personnel!I430","v":0},{"$f":"[1]Personnel!J430","v":0},{"$f":"[1]Personnel!P430","v":0},{"$f":"[1]Personnel!Q430","v":0},0,{"$f":"[1]Personnel!S430","v":0},{"$f":"[1]Personnel!S430","v":0},{"$f":"[1]Personnel!S430","v":0},{"$f":"[1]Personnel!T430","v":0},0,{"$f":"[1]Personnel!V430","v":0},{"$f":"[1]Personnel!W430","v":0},0,{"$f":"[1]Personnel!Y430","v":0},{"$f":"[1]Personnel!Z430","v":0},0,0,0,0,null,null,null,null,null,null,null,null,null,null,null,null,null,null,null,null,null,null,null,null,null,null,null,null,null,{"$f":"[1]Personnel!G430","v":0}]
[0,{"$f":"IFERROR(INDEX(Settings!$AP$17:$AP$38,MATCH(Personnel!$G431,Settings!$AQ$17:$AQ$38,0)),0)","v":0},null,null,null,{"$f":"[1]Personnel!F431","v":0},{"$f":"IFERROR(INDEX((SLevel),MATCH(Personnel!BA431,SLevel202223,0)),0)","v":0},{"$f":"[1]Personnel!H431","v":0},{"$f":"[1]Personnel!I431","v":0},{"$f":"[1]Personnel!J431","v":0},{"$f":"[1]Personnel!P431","v":0},{"$f":"[1]Personnel!Q431","v":0},0,{"$f":"[1]Personnel!S431","v":0},{"$f":"[1]Personnel!S431","v":0},{"$f":"[1]Personnel!S431","v":0},{"$f":"[1]Personnel!T431","v":0},0,{"$f":"[1]Personnel!V431","v":0},{"$f":"[1]Personnel!W431","v":0},0,{"$f":"[1]Personnel!Y431","v":0},{"$f":"[1]Personnel!Z431","v":0},0,0,0,0,null,null,null,null,null,null,null,null,null,null,null,null,null,null,null,null,null,null,null,null,null,null,null,null,null,{"$f":"[1]Personnel!G431","v":0}]
[0,{"$f":"IFERROR(INDEX(Settings!$AP$17:$AP$38,MATCH(Personnel!$G432,Settings!$AQ$17:$AQ$38,0)),0)","v":0},null,null,null,{"$f":"[1]Personnel!F432","v":0},{"$f":"IFERROR(INDEX((SLevel),MATCH(Personnel!BA432,SLevel202223,0)),0)","v":0},{"$f":"[1]Personnel!H432","v":0},{"$f":"[1]Personnel!I432","v":0},{"$f":"[1]Personnel!J432","v":0},{"$f":"[1]Personnel!P432","v":0},{"$f":"[1]Personnel!Q432","v":0},0,{"$f":"[1]Personnel!S432","v":0},{"$f":"[1]Personnel!S432","v":0},{"$f":"[1]Personnel!S432","v":0},{"$f":"[1]Personnel!T432","v":0},0,{"$f":"[1]Personnel!V432","v":0},{"$f":"[1]Personnel!W432","v":0},0,{"$f":"[1]Personnel!Y432","v":0},{"$f":"[1]Personnel!Z432","v":0},0,0,0,0,null,null,null,null,null,null,null,null,null,null,null,null,null,null,null,null,null,null,null,null,null,null,null,null,null,{"$f":"[1]Personnel!G432","v":0}]
[0,{"$f":"IFERROR(INDEX(Settings!$AP$17:$AP$38,MATCH(Personnel!$G433,Settings!$AQ$17:$AQ$38,0)),0)","v":0},null,null,null,{"$f":"[1]Personnel!F433","v":0},{"$f":"IFERROR(INDEX((SLevel),MATCH(Personnel!BA433,SLevel202223,0)),0)","v":0},{"$f":"[1]Personnel!H433","v":0},{"$f":"[1]Personnel!I433","v":0},{"$f":"[1]Personnel!J433","v":0},{"$f":"[1]Personnel!P433","v":0},{"$f":"[1]Personnel!Q433","v":0},0,{"$f":"[1]Personnel!S433","v":0},{"$f":"[1]Personnel!S433","v":0},{"$f":"[1]Personnel!S433","v":0},{"$f":"[1]Personnel!T433","v":0},0,{"$f":"[1]Personnel!V433","v":0},{"$f":"[1]Personnel!W433","v":0},0,{"$f":"[1]Personnel!Y433","v":0},{"$f":"[1]Personnel!Z433","v":0},0,0,0,0,null,null,null,null,null,null,null,null,null,null,null,null,null,null,null,null,null,null,null,null,null,null,null,null,null,{"$f":"[1]Personnel!G433","v":0}]
[0,{"$f":"IFERROR(INDEX(Settings!$AP$17:$AP$38,MATCH(Personnel!$G434,Settings!$AQ$17:$AQ$38,0)),0)","v":0},null,null,null,{"$f":"[1]Personnel!F434","v":0},{"$f":"IFERROR(INDEX((SLevel),MATCH(Personnel!BA434,SLevel202223,0)),0)","v":0},{"$f":"[1]Personnel!H434","v":0},{"$f":"[1]Personnel!I434","v":0},{"$f":"[1]Personnel!J434","v":0},{"$f":"[1]Personnel!P434","v":0},{"$f":"[1]Personnel!Q434","v":0},0,{"$f":"[1]Personnel!S434","v":0},{"$f":"[1]Personnel!S434","v":0},{"$f":"[1]Personnel!S434","v":0},{"$f":"[1]Personnel!T434","v":0},0,{"$f":"[1]Personnel!V434","v":0},{"$f":"[1]Personnel!W434","v":0},0,{"$f":"[1]Personnel!Y434","v":0},{"$f":"[1]Personnel!Z434","v":0},0,0,0,0,null,null,null,null,null,null,null,null,null,null,null,null,null,null,null,null,null,null,null,null,null,null,null,null,null,{"$f":"[1]Personnel!G434","v":0}]
[0,{"$f":"IFERROR(INDEX(Settings!$AP$17:$AP$38,MATCH(Personnel!$G435,Settings!$AQ$17:$AQ$38,0)),0)","v":0},null,null,null,{"$f":"[1]Personnel!F435","v":0},{"$f":"IFERROR(INDEX((SLevel),MATCH(Personnel!BA435,SLevel202223,0)),0)","v":0},{"$f":"[1]Personnel!H435","v":0},{"$f":"[1]Personnel!I435","v":0},{"$f":"[1]Personnel!J435","v":0},{"$f":"[1]Personnel!P435","v":0},{"$f":"[1]Personnel!Q435","v":0},0,{"$f":"[1]Personnel!S435","v":0},{"$f":"[1]Personnel!S435","v":0},{"$f":"[1]Personnel!S435","v":0},{"$f":"[1]Personnel!T435","v":0},0,{"$f":"[1]Personnel!V435","v":0},{"$f":"[1]Personnel!W435","v":0},0,{"$f":"[1]Personnel!Y435","v":0},{"$f":"[1]Personnel!Z435","v":0},0,0,0,0,null,null,null,null,null,null,null,null,null,null,null,null,null,null,null,null,null,null,null,null,null,null,null,null,null,{"$f":"[1]Personnel!G435","v":0}]
[0,{"$f":"IFERROR(INDEX(Settings!$AP$17:$AP$38,MATCH(Personnel!$G436,Settings!$AQ$17:$AQ$38,0)),0)","v":0},null,null,null,{"$f":"[1]Personnel!F436","v":0},{"$f":"IFERROR(INDEX((SLevel),MATCH(Personnel!BA436,SLevel202223,0)),0)","v":0},{"$f":"[1]Personnel!H436","v":0},{"$f":"[1]Personnel!I436","v":0},{"$f":"[1]Personnel!J436","v":0},{"$f":"[1]Personnel!P436","v":0},{"$f":"[1]Personnel!Q436","v":0},0,{"$f":"[1]Personnel!S436","v":0},{"$f":"[1]Personnel!S436","v":0},{"$f":"[1]Personnel!S436","v":0},{"$f":"[1]Personnel!T436","v":0},0,{"$f":"[1]Personnel!V436","v":0},{"$f":"[1]Personnel!W436","v":0},0,{"$f":"[1]Personnel!Y436","v":0},{"$f":"[1]Personnel!Z436","v":0},0,0,0,0,null,null,null,null,null,null,null,null,null,null,null,null,null,null,null,null,null,null,null,null,null,null,null,null,null,{"$f":"[1]Personnel!G436","v":0}]
[0,{"$f":"IFERROR(INDEX(Settings!$AP$17:$AP$38,MATCH(Personnel!$G437,Settings!$AQ$17:$AQ$38,0)),0)","v":0},null,null,null,{"$f":"[1]Personnel!F437","v":0},{"$f":"IFERROR(INDEX((SLevel),MATCH(Personnel!BA437,SLevel202223,0)),0)","v":0},{"$f":"[1]Personnel!H437","v":0},{"$f":"[1]Personnel!I437","v":0},{"$f":"[1]Personnel!J437","v":0},{"$f":"[1]Personnel!P437","v":0},{"$f":"[1]Personnel!Q437","v":0},0,{"$f":"[1]Personnel!S437","v":0},{"$f":"[1]Personnel!S437","v":0},{"$f":"[1]Personnel!S437","v":0},{"$f":"[1]Personnel!T437","v":0},0,{"$f":"[1]Personnel!V437","v":0},{"$f":"[1]Personnel!W437","v":0},0,{"$f":"[1]Personnel!Y437","v":0},{"$f":"[1]Personnel!Z437","v":0},0,0,0,0,null,null,null,null,null,null,null,null,null,null,null,null,null,null,null,null,null,null,null,null,null,null,null,null,null,{"$f":"[1]Personnel!G437","v":0}]
[0,{"$f":"IFERROR(INDEX(Settings!$AP$17:$AP$38,MATCH(Personnel!$G438,Settings!$AQ$17:$AQ$38,0)),0)","v":0},null,null,null,{"$f":"[1]Personnel!F438","v":0},{"$f":"IFERROR(INDEX((SLevel),MATCH(Personnel!BA438,SLevel202223,0)),0)","v":0},{"$f":"[1]Personnel!H438","v":0},{"$f":"[1]Personnel!I438","v":0},{"$f":"[1]Personnel!J438","v":0},{"$f":"[1]Personnel!P438","v":0},{"$f":"[1]Personnel!Q438","v":0},0,{"$f":"[1]Personnel!S438","v":0},{"$f":"[1]Personnel!S438","v":0},{"$f":"[1]Personnel!S438","v":0},{"$f":"[1]Personnel!T438","v":0},0,{"$f":"[1]Personnel!V438","v":0},{"$f":"[1]Personnel!W438","v":0},0,{"$f":"[1]Personnel!Y438","v":0},{"$f":"[1]Personnel!Z438","v":0},0,0,0,0,null,null,null,null,null,null,null,null,null,null,null,null,null,null,null,null,null,null,null,null,null,null,null,null,null,{"$f":"[1]Personnel!G438","v":0}]
[0,{"$f":"IFERROR(INDEX(Settings!$AP$17:$AP$38,MATCH(Personnel!$G439,Settings!$AQ$17:$AQ$38,0)),0)","v":0},null,null,null,{"$f":"[1]Personnel!F439","v":0},{"$f":"IFERROR(INDEX((SLevel),MATCH(Personnel!BA439,SLevel202223,0)),0)","v":0},{"$f":"[1]Personnel!H439","v":0},{"$f":"[1]Personnel!I439","v":0},{"$f":"[1]Personnel!J439","v":0},{"$f":"[1]Personnel!P439","v":0},{"$f":"[1]Personnel!Q439","v":0},0,{"$f":"[1]Personnel!S439","v":0},{"$f":"[1]Personnel!S439","v":0},{"$f":"[1]Personnel!S439","v":0},{"$f":"[1]Personnel!T439","v":0},0,{"$f":"[1]Personnel!V439","v":0},{"$f":"[1]Personnel!W439","v":0},0,{"$f":"[1]Personnel!Y439","v":0},{"$f":"[1]Personnel!Z439","v":0},0,0,0,0,null,null,null,null,null,null,null,null,null,null,null,null,null,null,null,null,null,null,null,null,null,null,null,null,null,{"$f":"[1]Personnel!G439","v":0}]
[0,{"$f":"IFERROR(INDEX(Settings!$AP$17:$AP$38,MATCH(Personnel!$G440,Settings!$AQ$17:$AQ$38,0)),0)","v":0},null,null,null,{"$f":"[1]Personnel!F440","v":0},{"$f":"IFERROR(INDEX((SLevel),MATCH(Personnel!BA440,SLevel202223,0)),0)","v":0},{"$f":"[1]Personnel!H440","v":0},{"$f":"[1]Personnel!I440","v":0},{"$f":"[1]Personnel!J440","v":0},{"$f":"[1]Personnel!P440","v":0},{"$f":"[1]Personnel!Q440","v":0},0,{"$f":"[1]Personnel!S440","v":0},{"$f":"[1]Personnel!S440","v":0},{"$f":"[1]Personnel!S440","v":0},{"$f":"[1]Personnel!T440","v":0},0,{"$f":"[1]Personnel!V440","v":0},{"$f":"[1]Personnel!W440","v":0},0,{"$f":"[1]Personnel!Y440","v":0},{"$f":"[1]Personnel!Z440","v":0},0,0,0,0,null,null,null,null,null,null,null,null,null,null,null,null,null,null,null,null,null,null,null,null,null,null,null,null,null,{"$f":"[1]Personnel!G440","v":0}]
[0,{"$f":"IFERROR(INDEX(Settings!$AP$17:$AP$38,MATCH(Personnel!$G441,Settings!$AQ$17:$AQ$38,0)),0)","v":0},null,null,null,{"$f":"[1]Personnel!F441","v":0},{"$f":"IFERROR(INDEX((SLevel),MATCH(Personnel!BA441,SLevel202223,0)),0)","v":0},{"$f":"[1]Personnel!H441","v":0},{"$f":"[1]Personnel!I441","v":0},{"$f":"[1]Personnel!J441","v":0},{"$f":"[1]Personnel!P441","v":0},{"$f":"[1]Personnel!Q441","v":0},0,{"$f":"[1]Personnel!S441","v":0},{"$f":"[1]Personnel!S441","v":0},{"$f":"[1]Personnel!S441","v":0},{"$f":"[1]Personnel!T441","v":0},0,{"$f":"[1]Personnel!V441","v":0},{"$f":"[1]Personnel!W441","v":0},0,{"$f":"[1]Personnel!Y441","v":0},{"$f":"[1]Personnel!Z441","v":0},0,0,0,0,null,null,null,null,null,null,null,null,null,null,null,null,null,null,null,null,null,null,null,null,null,null,null,null,null,{"$f":"[1]Personnel!G441","v":0}]
[0,{"$f":"IFERROR(INDEX(Settings!$AP$17:$AP$38,MATCH(Personnel!$G442,Settings!$AQ$17:$AQ$38,0)),0)","v":0},null,null,null,{"$f":"[1]Personnel!F442","v":0},{"$f":"IFERROR(INDEX((SLevel),MATCH(Personnel!BA442,SLevel202223,0)),0)","v":0},{"$f":"[1]Personnel!H442","v":0},{"$f":"[1]Personnel!I442","v":0},{"$f":"[1]Personnel!J442","v":0},{"$f":"[1]Personnel!P442","v":0},{"$f":"[1]Personnel!Q442","v":0},0,{"$f":"[1]Personnel!S442","v":0},{"$f":"[1]Personnel!S442","v":0},{"$f":"[1]Personnel!S442","v":0},{"$f":"[1]Personnel!T442","v":0},0,{"$f":"[1]Personnel!V442","v":0},{"$f":"[1]Personnel!W442","v":0},0,{"$f":"[1]Personnel!Y442","v":0},{"$f":"[1]Personnel!Z442","v":0},0,0,0,0,null,null,null,null,null,null,null,null,null,null,null,null,null,null,null,null,null,null,null,null,null,null,null,null,null,{"$f":"[1]Personnel!G442","v":0}]
[0,{"$f":"IFERROR(INDEX(Settings!$AP$17:$AP$38,MATCH(Personnel!$G443,Settings!$AQ$17:$AQ$38,0)),0)","v":0},null,null,null,{"$f":"[1]Personnel!F443","v":0},{"$f":"IFERROR(INDEX((SLevel),MATCH(Personnel!BA443,SLevel202223,0)),0)","v":0},{"$f":"[1]Personnel!H443","v":0},{"$f":"[1]Personnel!I443","v":0},{"$f":"[1]Personnel!J443","v":0},{"$f":"[1]Personnel!P443","v":0},{"$f":"[1]Personnel!Q443","v":0},0,{"$f":"[1]Personnel!S443","v":0},{"$f":"[1]Personnel!S443","v":0},{"$f":"[1]Personnel!S443","v":0},{"$f":"[1]Personnel!T443","v":0},0,{"$f":"[1]Personnel!V443","v":0},{"$f":"[1]Personnel!W443","v":0},0,{"$f":"[1]Personnel!Y443","v":0},{"$f":"[1]Personnel!Z443","v":0},0,0,0,0,null,null,null,null,null,null,null,null,null,null,null,null,null,null,null,null,null,null,null,null,null,null,null,null,null,{"$f":"[1]Personnel!G443","v":0}]
[0,{"$f":"IFERROR(INDEX(Settings!$AP$17:$AP$38,MATCH(Personnel!$G444,Settings!$AQ$17:$AQ$38,0)),0)","v":0},null,null,null,{"$f":"[1]Personnel!F444","v":0},{"$f":"IFERROR(INDEX((SLevel),MATCH(Personnel!BA444,SLevel202223,0)),0)","v":0},{"$f":"[1]Personnel!H444","v":0},{"$f":"[1]Personnel!I444","v":0},{"$f":"[1]Personnel!J444","v":0},{"$f":"[1]Personnel!P444","v":0},{"$f":"[1]Personnel!Q444","v":0},0,{"$f":"[1]Personnel!S444","v":0},{"$f":"[1]Personnel!S444","v":0},{"$f":"[1]Personnel!S444","v":0},{"$f":"[1]Personnel!T444","v":0},0,{"$f":"[1]Personnel!V444","v":0},{"$f":"[1]Personnel!W444","v":0},0,{"$f":"[1]Personnel!Y444","v":0},{"$f":"[1]Personnel!Z444","v":0},0,0,0,0,null,null,null,null,null,null,null,null,null,null,null,null,null,null,null,null,null,null,null,null,null,null,null,null,null,{"$f":"[1]Personnel!G444","v":0}]
[0,{"$f":"IFERROR(INDEX(Settings!$AP$17:$AP$38,MATCH(Personnel!$G445,Settings!$AQ$17:$AQ$38,0)),0)","v":0},null,null,null,{"$f":"[1]Personnel!F445","v":0},{"$f":"IFERROR(INDEX((SLevel),MATCH(Personnel!BA445,SLevel202223,0)),0)","v":0},{"$f":"[1]Personnel!H445","v":0},{"$f":"[1]Personnel!I445","v":0},{"$f":"[1]Personnel!J445","v":0},{"$f":"[1]Personnel!P445","v":0},{"$f":"[1]Personnel!Q445","v":0},0,{"$f":"[1]Personnel!S445","v":0},{"$f":"[1]Personnel!S445","v":0},{"$f":"[1]Personnel!S445","v":0},{"$f":"[1]Personnel!T445","v":0},0,{"$f":"[1]Personnel!V445","v":0},{"$f":"[1]Personnel!W445","v":0},0,{"$f":"[1]Personnel!Y445","v":0},{"$f":"[1]Personnel!Z445","v":0},0,0,0,0,null,null,null,null,null,null,null,null,null,null,null,null,null,null,null,null,null,null,null,null,null,null,null,null,null,{"$f":"[1]Personnel!G445","v":0}]
[0,{"$f":"IFERROR(INDEX(Settings!$AP$17:$AP$38,MATCH(Personnel!$G446,Settings!$AQ$17:$AQ$38,0)),0)","v":0},null,null,null,{"$f":"[1]Personnel!F446","v":0},{"$f":"IFERROR(INDEX((SLevel),MATCH(Personnel!BA446,SLevel202223,0)),0)","v":0},{"$f":"[1]Personnel!H446","v":0},{"$f":"[1]Personnel!I446","v":0},{"$f":"[1]Personnel!J446","v":0},{"$f":"[1]Personnel!P446","v":0},{"$f":"[1]Personnel!Q446","v":0},0,{"$f":"[1]Personnel!S446","v":0},{"$f":"[1]Personnel!S446","v":0},{"$f":"[1]Personnel!S446","v":0},{"$f":"[1]Personnel!T446","v":0},0,{"$f":"[1]Personnel!V446","v":0},{"$f":"[1]Personnel!W446","v":0},0,{"$f":"[1]Personnel!Y446","v":0},{"$f":"[1]Personnel!Z446","v":0},0,0,0,0,null,null,null,null,null,null,null,null,null,null,null,null,null,null,null,null,null,null,null,null,null,null,null,null,null,{"$f":"[1]Personnel!G446","v":0}]
[0,{"$f":"IFERROR(INDEX(Settings!$AP$17:$AP$38,MATCH(Personnel!$G447,Settings!$AQ$17:$AQ$38,0)),0)","v":0},null,null,null,{"$f":"[1]Personnel!F447","v":0},{"$f":"IFERROR(INDEX((SLevel),MATCH(Personnel!BA447,SLevel202223,0)),0)","v":0},{"$f":"[1]Personnel!H447","v":0},{"$f":"[1]Personnel!I447","v":0},{"$f":"[1]Personnel!J447","v":0},{"$f":"[1]Personnel!P447","v":0},{"$f":"[1]Personnel!Q447","v":0},0,{"$f":"[1]Personnel!S447","v":0},{"$f":"[1]Personnel!S447","v":0},{"$f":"[1]Personnel!S447","v":0},{"$f":"[1]Personnel!T447","v":0},0,{"$f":"[1]Personnel!V447","v":0},{"$f":"[1]Personnel!W447","v":0},0,{"$f":"[1]Personnel!Y447","v":0},{"$f":"[1]Personnel!Z447","v":0},0,0,0,0,null,null,null,null,null,null,null,null,null,null,null,null,null,null,null,null,null,null,null,null,null,null,null,null,null,{"$f":"[1]Personnel!G447","v":0}]
[0,{"$f":"IFERROR(INDEX(Settings!$AP$17:$AP$38,MATCH(Personnel!$G448,Settings!$AQ$17:$AQ$38,0)),0)","v":0},null,null,null,{"$f":"[1]Personnel!F448","v":0},{"$f":"IFERROR(INDEX((SLevel),MATCH(Personnel!BA448,SLevel202223,0)),0)","v":0},{"$f":"[1]Personnel!H448","v":0},{"$f":"[1]Personnel!I448","v":0},{"$f":"[1]Personnel!J448","v":0},{"$f":"[1]Personnel!P448","v":0},{"$f":"[1]Personnel!Q448","v":0},0,{"$f":"[1]Personnel!S448","v":0},{"$f":"[1]Personnel!S448","v":0},{"$f":"[1]Personnel!S448","v":0},{"$f":"[1]Personnel!T448","v":0},0,{"$f":"[1]Personnel!V448","v":0},{"$f":"[1]Personnel!W448","v":0},0,{"$f":"[1]Personnel!Y448","v":0},{"$f":"[1]Personnel!Z448","v":0},0,0,0,0,null,null,null,null,null,null,null,null,null,null,null,null,null,null,null,null,null,null,null,null,null,null,null,null,null,{"$f":"[1]Personnel!G448","v":0}]
[0,{"$f":"IFERROR(INDEX(Settings!$AP$17:$AP$38,MATCH(Personnel!$G449,Settings!$AQ$17:$AQ$38,0)),0)","v":0},null,null,null,{"$f":"[1]Personnel!F449","v":0},{"$f":"IFERROR(INDEX((SLevel),MATCH(Personnel!BA449,SLevel202223,0)),0)","v":0},{"$f":"[1]Personnel!H449","v":0},{"$f":"[1]Personnel!I449","v":0},{"$f":"[1]Personnel!J449","v":0},{"$f":"[1]Personnel!P449","v":0},{"$f":"[1]Personnel!Q449","v":0},0,{"$f":"[1]Personnel!S449","v":0},{"$f":"[1]Personnel!S449","v":0},{"$f":"[1]Personnel!S449","v":0},{"$f":"[1]Personnel!T449","v":0},0,{"$f":"[1]Personnel!V449","v":0},{"$f":"[1]Personnel!W449","v":0},0,{"$f":"[1]Personnel!Y449","v":0},{"$f":"[1]Personnel!Z449","v":0},0,0,0,0,null,null,null,null,null,null,null,null,null,null,null,null,null,null,null,null,null,null,null,null,null,null,null,null,null,{"$f":"[1]Personnel!G449","v":0}]
[0,{"$f":"IFERROR(INDEX(Settings!$AP$17:$AP$38,MATCH(Personnel!$G450,Settings!$AQ$17:$AQ$38,0)),0)","v":0},null,null,null,{"$f":"[1]Personnel!F450","v":0},{"$f":"IFERROR(INDEX((SLevel),MATCH(Personnel!BA450,SLevel202223,0)),0)","v":0},{"$f":"[1]Personnel!H450","v":0},{"$f":"[1]Personnel!I450","v":0},{"$f":"[1]Personnel!J450","v":0},{"$f":"[1]Personnel!P450","v":0},{"$f":"[1]Personnel!Q450","v":0},0,{"$f":"[1]Personnel!S450","v":0},{"$f":"[1]Personnel!S450","v":0},{"$f":"[1]Personnel!S450","v":0},{"$f":"[1]Personnel!T450","v":0},0,{"$f":"[1]Personnel!V450","v":0},{"$f":"[1]Personnel!W450","v":0},0,{"$f":"[1]Personnel!Y450","v":0},{"$f":"[1]Personnel!Z450","v":0},0,0,0,0,null,null,null,null,null,null,null,null,null,null,null,null,null,null,null,null,null,null,null,null,null,null,null,null,null,{"$f":"[1]Personnel!G450","v":0}]
[0,{"$f":"IFERROR(INDEX(Settings!$AP$17:$AP$38,MATCH(Personnel!$G451,Settings!$AQ$17:$AQ$38,0)),0)","v":0},null,null,null,{"$f":"[1]Personnel!F451","v":0},{"$f":"IFERROR(INDEX((SLevel),MATCH(Personnel!BA451,SLevel202223,0)),0)","v":0},{"$f":"[1]Personnel!H451","v":0},{"$f":"[1]Personnel!I451","v":0},{"$f":"[1]Personnel!J451","v":0},{"$f":"[1]Personnel!P451","v":0},{"$f":"[1]Personnel!Q451","v":0},0,{"$f":"[1]Personnel!S451","v":0},{"$f":"[1]Personnel!S451","v":0},{"$f":"[1]Personnel!S451","v":0},{"$f":"[1]Personnel!T451","v":0},0,{"$f":"[1]Personnel!V451","v":0},{"$f":"[1]Personnel!W451","v":0},0,{"$f":"[1]Personnel!Y451","v":0},{"$f":"[1]Personnel!Z451","v":0},0,0,0,0,null,null,null,null,null,null,null,null,null,null,null,null,null,null,null,null,null,null,null,null,null,null,null,null,null,{"$f":"[1]Personnel!G451","v":0}]
[0,{"$f":"IFERROR(INDEX(Settings!$AP$17:$AP$38,MATCH(Personnel!$G452,Settings!$AQ$17:$AQ$38,0)),0)","v":0},null,null,null,{"$f":"[1]Personnel!F452","v":0},{"$f":"IFERROR(INDEX((SLevel),MATCH(Personnel!BA452,SLevel202223,0)),0)","v":0},{"$f":"[1]Personnel!H452","v":0},{"$f":"[1]Personnel!I452","v":0},{"$f":"[1]Personnel!J452","v":0},{"$f":"[1]Personnel!P452","v":0},{"$f":"[1]Personnel!Q452","v":0},0,{"$f":"[1]Personnel!S452","v":0},{"$f":"[1]Personnel!S452","v":0},{"$f":"[1]Personnel!S452","v":0},{"$f":"[1]Personnel!T452","v":0},0,{"$f":"[1]Personnel!V452","v":0},{"$f":"[1]Personnel!W452","v":0},0,{"$f":"[1]Personnel!Y452","v":0},{"$f":"[1]Personnel!Z452","v":0},0,0,0,0,null,null,null,null,null,null,null,null,null,null,null,null,null,null,null,null,null,null,null,null,null,null,null,null,null,{"$f":"[1]Personnel!G452","v":0}]
[0,{"$f":"IFERROR(INDEX(Settings!$AP$17:$AP$38,MATCH(Personnel!$G453,Settings!$AQ$17:$AQ$38,0)),0)","v":0},null,null,null,{"$f":"[1]Personnel!F453","v":0},{"$f":"IFERROR(INDEX((SLevel),MATCH(Personnel!BA453,SLevel202223,0)),0)","v":0},{"$f":"[1]Personnel!H453","v":0},{"$f":"[1]Personnel!I453","v":0},{"$f":"[1]Personnel!J453","v":0},{"$f":"[1]Personnel!P453","v":0},{"$f":"[1]Personnel!Q453","v":0},0,{"$f":"[1]Personnel!S453","v":0},{"$f":"[1]Personnel!S453","v":0},{"$f":"[1]Personnel!S453","v":0},{"$f":"[1]Personnel!T453","v":0},0,{"$f":"[1]Personnel!V453","v":0},{"$f":"[1]Personnel!W453","v":0},0,{"$f":"[1]Personnel!Y453","v":0},{"$f":"[1]Personnel!Z453","v":0},0,0,0,0,null,null,null,null,null,null,null,null,null,null,null,null,null,null,null,null,null,null,null,null,null,null,null,null,null,{"$f":"[1]Personnel!G453","v":0}]
[0,{"$f":"IFERROR(INDEX(Settings!$AP$17:$AP$38,MATCH(Personnel!$G454,Settings!$AQ$17:$AQ$38,0)),0)","v":0},null,null,null,{"$f":"[1]Personnel!F454","v":0},{"$f":"IFERROR(INDEX((SLevel),MATCH(Personnel!BA454,SLevel202223,0)),0)","v":0},{"$f":"[1]Personnel!H454","v":0},{"$f":"[1]Personnel!I454","v":0},{"$f":"[1]Personnel!J454","v":0},{"$f":"[1]Personnel!P454","v":0},{"$f":"[1]Personnel!Q454","v":0},0,{"$f":"[1]Personnel!S454","v":0},{"$f":"[1]Personnel!S454","v":0},{"$f":"[1]Personnel!S454","v":0},{"$f":"[1]Personnel!T454","v":0},0,{"$f":"[1]Personnel!V454","v":0},{"$f":"[1]Personnel!W454","v":0},0,{"$f":"[1]Personnel!Y454","v":0},{"$f":"[1]Personnel!Z454","v":0},0,0,0,0,null,null,null,null,null,null,null,null,null,null,null,null,null,null,null,null,null,null,null,null,null,null,null,null,null,{"$f":"[1]Personnel!G454","v":0}]
[0,{"$f":"IFERROR(INDEX(Settings!$AP$17:$AP$38,MATCH(Personnel!$G455,Settings!$AQ$17:$AQ$38,0)),0)","v":0},null,null,null,{"$f":"[1]Personnel!F455","v":0},{"$f":"IFERROR(INDEX((SLevel),MATCH(Personnel!BA455,SLevel202223,0)),0)","v":0},{"$f":"[1]Personnel!H455","v":0},{"$f":"[1]Personnel!I455","v":0},{"$f":"[1]Personnel!J455","v":0},{"$f":"[1]Personnel!P455","v":0},{"$f":"[1]Personnel!Q455","v":0},0,{"$f":"[1]Personnel!S455","v":0},{"$f":"[1]Personnel!S455","v":0},{"$f":"[1]Personnel!S455","v":0},{"$f":"[1]Personnel!T455","v":0},0,{"$f":"[1]Personnel!V455","v":0},{"$f":"[1]Personnel!W455","v":0},0,{"$f":"[1]Personnel!Y455","v":0},{"$f":"[1]Personnel!Z455","v":0},0,0,0,0,null,null,null,null,null,null,null,null,null,null,null,null,null,null,null,null,null,null,null,null,null,null,null,null,null,{"$f":"[1]Personnel!G455","v":0}]
[0,{"$f":"IFERROR(INDEX(Settings!$AP$17:$AP$38,MATCH(Personnel!$G456,Settings!$AQ$17:$AQ$38,0)),0)","v":0},null,null,null,{"$f":"[1]Personnel!F456","v":0},{"$f":"IFERROR(INDEX((SLevel),MATCH(Personnel!BA456,SLevel202223,0)),0)","v":0},{"$f":"[1]Personnel!H456","v":0},{"$f":"[1]Personnel!I456","v":0},{"$f":"[1]Personnel!J456","v":0},{"$f":"[1]Personnel!P456","v":0},{"$f":"[1]Personnel!Q456","v":0},0,{"$f":"[1]Personnel!S456","v":0},{"$f":"[1]Personnel!S456","v":0},{"$f":"[1]Personnel!S456","v":0},{"$f":"[1]Personnel!T456","v":0},0,{"$f":"[1]Personnel!V456","v":0},{"$f":"[1]Personnel!W456","v":0},0,{"$f":"[1]Personnel!Y456","v":0},{"$f":"[1]Personnel!Z456","v":0},0,0,0,0,null,null,null,null,null,null,null,null,null,null,null,null,null,null,null,null,null,null,null,null,null,null,null,null,null,{"$f":"[1]Personnel!G456","v":0}]
[0,{"$f":"IFERROR(INDEX(Settings!$AP$17:$AP$38,MATCH(Personnel!$G457,Settings!$AQ$17:$AQ$38,0)),0)","v":0},null,null,null,{"$f":"[1]Personnel!F457","v":0},{"$f":"IFERROR(INDEX((SLevel),MATCH(Personnel!BA457,SLevel202223,0)),0)","v":0},{"$f":"[1]Personnel!H457","v":0},{"$f":"[1]Personnel!I457","v":0},{"$f":"[1]Personnel!J457","v":0},{"$f":"[1]Personnel!P457","v":0},{"$f":"[1]Personnel!Q457","v":0},0,{"$f":"[1]Personnel!S457","v":0},{"$f":"[1]Personnel!S457","v":0},{"$f":"[1]Personnel!S457","v":0},{"$f":"[1]Personnel!T457","v":0},0,{"$f":"[1]Personnel!V457","v":0},{"$f":"[1]Personnel!W457","v":0},0,{"$f":"[1]Personnel!Y457","v":0},{"$f":"[1]Personnel!Z457","v":0},0,0,0,0,null,null,null,null,null,null,null,null,null,null,null,null,null,null,null,null,null,null,null,null,null,null,null,null,null,{"$f":"[1]Personnel!G457","v":0}]
[0,{"$f":"IFERROR(INDEX(Settings!$AP$17:$AP$38,MATCH(Personnel!$G458,Settings!$AQ$17:$AQ$38,0)),0)","v":0},null,null,null,{"$f":"[1]Personnel!F458","v":0},{"$f":"IFERROR(INDEX((SLevel),MATCH(Personnel!BA458,SLevel202223,0)),0)","v":0},{"$f":"[1]Personnel!H458","v":0},{"$f":"[1]Personnel!I458","v":0},{"$f":"[1]Personnel!J458","v":0},{"$f":"[1]Personnel!P458","v":0},{"$f":"[1]Personnel!Q458","v":0},0,{"$f":"[1]Personnel!S458","v":0},{"$f":"[1]Personnel!S458","v":0},{"$f":"[1]Personnel!S458","v":0},{"$f":"[1]Personnel!T458","v":0},0,{"$f":"[1]Personnel!V458","v":0},{"$f":"[1]Personnel!W458","v":0},0,{"$f":"[1]Personnel!Y458","v":0},{"$f":"[1]Personnel!Z458","v":0},0,0,0,0,null,null,null,null,null,null,null,null,null,null,null,null,null,null,null,null,null,null,null,null,null,null,null,null,null,{"$f":"[1]Personnel!G458","v":0}]
[0,{"$f":"IFERROR(INDEX(Settings!$AP$17:$AP$38,MATCH(Personnel!$G459,Settings!$AQ$17:$AQ$38,0)),0)","v":0},null,null,null,{"$f":"[1]Personnel!F459","v":0},{"$f":"IFERROR(INDEX((SLevel),MATCH(Personnel!BA459,SLevel202223,0)),0)","v":0},{"$f":"[1]Personnel!H459","v":0},{"$f":"[1]Personnel!I459","v":0},{"$f":"[1]Personnel!J459","v":0},{"$f":"[1]Personnel!P459","v":0},{"$f":"[1]Personnel!Q459","v":0},0,{"$f":"[1]Personnel!S459","v":0},{"$f":"[1]Personnel!S459","v":0},{"$f":"[1]Personnel!S459","v":0},{"$f":"[1]Personnel!T459","v":0},0,{"$f":"[1]Personnel!V459","v":0},{"$f":"[1]Personnel!W459","v":0},0,{"$f":"[1]Personnel!Y459","v":0},{"$f":"[1]Personnel!Z459","v":0},0,0,0,0,null,null,null,null,null,null,null,null,null,null,null,null,null,null,null,null,null,null,null,null,null,null,null,null,null,{"$f":"[1]Personnel!G459","v":0}]
[{"$f":"IF(SUM(K460:AA460)>0,1,0)","v":0},{"$f":"IFERROR(INDEX(Settings!$AP$17:$AP$38,MATCH(Personnel!$G460,Settings!$AQ$17:$AQ$38,0)),0)","v":0},null,null,null,{"$f":"[1]Personnel!F460","v":0},{"$f":"IFERROR(INDEX((SLevel),MATCH(Personnel!BA460,SLevel202223,0)),0)","v":0},{"$f":"[1]Personnel!H460","v":0},{"$f":"[1]Personnel!I460","v":0},{"$f":"[1]Personnel!J460","v":0},{"$f":"[1]Personnel!P460","v":0},{"$f":"[1]Personnel!Q460","v":0},0,{"$f":"[1]Personnel!S460","v":0},{"$f":"[1]Personnel!S460","v":0},{"$f":"[1]Personnel!S460","v":0},{"$f":"[1]Personnel!T460","v":0},0,{"$f":"[1]Personnel!V460","v":0},{"$f":"[1]Personnel!W460","v":0},0,{"$f":"[1]Personnel!Y460","v":0},{"$f":"[1]Personnel!Z460","v":0},0,0,0,0,null,null,null,null,null,null,null,null,null,null,null,null,null,null,null,null,null,null,null,null,null,null,null,null,null,{"$f":"[1]Personnel!G460","v":0}]
[0,{"$f":"IFERROR(INDEX(Settings!$AP$17:$AP$38,MATCH(Personnel!$G461,Settings!$AQ$17:$AQ$38,0)),0)","v":0},null,null,null,{"$f":"[1]Personnel!F461","v":0},{"$f":"IFERROR(INDEX((SLevel),MATCH(Personnel!BA461,SLevel202223,0)),0)","v":0},{"$f":"[1]Personnel!H461","v":0},{"$f":"[1]Personnel!I461","v":0},{"$f":"[1]Personnel!J461","v":0},{"$f":"[1]Personnel!P461","v":0},{"$f":"[1]Personnel!Q461","v":0},{"$f":"ROUND(IF(ISERROR(L461/K461),0,(L461/K461)),0)","v":0},{"$f":"[1]Personnel!S461","v":0},{"$f":"[1]Personnel!S461","v":0},{"$f":"[1]Personnel!S461","v":0},{"$f":"[1]Personnel!T461","v":0},{"$f":"ROUND(IF(ISERROR(Q461/P461),0,(Q461/P461)),0)","v":0},{"$f":"[1]Personnel!V461","v":0},{"$f":"[1]Personnel!W461","v":0},{"$f":"ROUND(IF(ISERROR(T461/S461),0,(T461/S461)),0)","v":0},{"$f":"[1]Personnel!Y461","v":0},{"$f":"[1]Personnel!Z461","v":0},{"$f":"ROUND(IF(ISERROR(W461/V461),0,(W461/V461)),0)","v":0},0,0,{"$f":"ROUND(IF(ISERROR(Z461/Y461),0,(Z461/Y461)),0)","v":0},null,null,null,null,null,null,null,null,null,null,null,null,null,null,null,null,null,null,null,null,null,null,null,null,null,{"$f":"[1]Personnel!G461","v":0}]
[0,{"$f":"IFERROR(INDEX(Settings!$AP$17:$AP$38,MATCH(Personnel!$G462,Settings!$AQ$17:$AQ$38,0)),0)","v":0},null,null,null,{"$f":"[1]Personnel!F462","v":0},{"$f":"IFERROR(INDEX((SLevel),MATCH(Personnel!BA462,SLevel202223,0)),0)","v":0},{"$f":"[1]Personnel!H462","v":0},{"$f":"[1]Personnel!I462","v":0},{"$f":"[1]Personnel!J462","v":0},{"$f":"[1]Personnel!P462","v":0},{"$f":"[1]Personnel!Q462","v":0},0,{"$f":"[1]Personnel!S462","v":0},{"$f":"[1]Personnel!S462","v":0},{"$f":"[1]Personnel!S462","v":0},{"$f":"[1]Personnel!T462","v":0},0,{"$f":"[1]Personnel!V462","v":0},{"$f":"[1]Personnel!W462","v":0},0,{"$f":"[1]Personnel!Y462","v":0},{"$f":"[1]Personnel!Z462","v":0},0,0,0,0,null,null,null,null,null,null,null,null,null,null,null,null,null,null,null,null,null,null,null,null,null,null,null,null,null,{"$f":"[1]Personnel!G462","v":0}]
[0,{"$f":"IFERROR(INDEX(Settings!$AP$17:$AP$38,MATCH(Personnel!$G463,Settings!$AQ$17:$AQ$38,0)),0)","v":0},null,null,null,{"$f":"[1]Personnel!F463","v":0},{"$f":"IFERROR(INDEX((SLevel),MATCH(Personnel!BA463,SLevel202223,0)),0)","v":0},{"$f":"[1]Personnel!H463","v":0},{"$f":"[1]Personnel!I463","v":0},{"$f":"[1]Personnel!J463","v":0},{"$f":"[1]Personnel!P463","v":0},{"$f":"[1]Personnel!Q463","v":0},0,{"$f":"[1]Personnel!S463","v":0},{"$f":"[1]Personnel!S463","v":0},{"$f":"[1]Personnel!S463","v":0},{"$f":"[1]Personnel!T463","v":0},0,{"$f":"[1]Personnel!V463","v":0},{"$f":"[1]Personnel!W463","v":0},0,{"$f":"[1]Personnel!Y463","v":0},{"$f":"[1]Personnel!Z463","v":0},0,0,0,0,null,null,null,null,null,null,null,null,null,null,null,null,null,null,null,null,null,null,null,null,null,null,null,null,null,{"$f":"[1]Personnel!G463","v":0}]
[0,{"$f":"IFERROR(INDEX(Settings!$AP$17:$AP$38,MATCH(Personnel!$G464,Settings!$AQ$17:$AQ$38,0)),0)","v":0},null,null,null,{"$f":"[1]Personnel!F464","v":0},{"$f":"IFERROR(INDEX((SLevel),MATCH(Personnel!BA464,SLevel202223,0)),0)","v":0},{"$f":"[1]Personnel!H464","v":0},{"$f":"[1]Personnel!I464","v":0},{"$f":"[1]Personnel!J464","v":0},{"$f":"[1]Personnel!P464","v":0},{"$f":"[1]Personnel!Q464","v":0},0,{"$f":"[1]Personnel!S464","v":0},{"$f":"[1]Personnel!S464","v":0},{"$f":"[1]Personnel!S464","v":0},{"$f":"[1]Personnel!T464","v":0},0,{"$f":"[1]Personnel!V464","v":0},{"$f":"[1]Personnel!W464","v":0},0,{"$f":"[1]Personnel!Y464","v":0},{"$f":"[1]Personnel!Z464","v":0},0,0,0,0,null,null,null,null,null,null,null,null,null,null,null,null,null,null,null,null,null,null,null,null,null,null,null,null,null,{"$f":"[1]Personnel!G464","v":0}]
[0,{"$f":"IFERROR(INDEX(Settings!$AP$17:$AP$38,MATCH(Personnel!$G465,Settings!$AQ$17:$AQ$38,0)),0)","v":0},null,null,null,{"$f":"[1]Personnel!F465","v":0},{"$f":"IFERROR(INDEX((SLevel),MATCH(Personnel!BA465,SLevel202223,0)),0)","v":0},{"$f":"[1]Personnel!H465","v":0},{"$f":"[1]Personnel!I465","v":0},{"$f":"[1]Personnel!J465","v":0},{"$f":"[1]Personnel!P465","v":0},{"$f":"[1]Personnel!Q465","v":0},0,{"$f":"[1]Personnel!S465","v":0},{"$f":"[1]Personnel!S465","v":0},{"$f":"[1]Personnel!S465","v":0},{"$f":"[1]Personnel!T465","v":0},0,{"$f":"[1]Personnel!V465","v":0},{"$f":"[1]Personnel!W465","v":0},0,{"$f":"[1]Personnel!Y465","v":0},{"$f":"[1]Personnel!Z465","v":0},0,0,0,0,null,null,null,null,null,null,null,null,null,null,null,null,null,null,null,null,null,null,null,null,null,null,null,null,null,{"$f":"[1]Personnel!G465","v":0}]
[0,{"$f":"IFERROR(INDEX(Settings!$AP$17:$AP$38,MATCH(Personnel!$G466,Settings!$AQ$17:$AQ$38,0)),0)","v":0},null,null,null,{"$f":"[1]Personnel!F466","v":0},{"$f":"IFERROR(INDEX((SLevel),MATCH(Personnel!BA466,SLevel202223,0)),0)","v":0},{"$f":"[1]Personnel!H466","v":0},{"$f":"[1]Personnel!I466","v":0},{"$f":"[1]Personnel!J466","v":0},{"$f":"[1]Personnel!P466","v":0},{"$f":"[1]Personnel!Q466","v":0},0,{"$f":"[1]Personnel!S466","v":0},{"$f":"[1]Personnel!S466","v":0},{"$f":"[1]Personnel!S466","v":0},{"$f":"[1]Personnel!T466","v":0},0,{"$f":"[1]Personnel!V466","v":0},{"$f":"[1]Personnel!W466","v":0},0,{"$f":"[1]Personnel!Y466","v":0},{"$f":"[1]Personnel!Z466","v":0},0,0,0,0,null,null,null,null,null,null,null,null,null,null,null,null,null,null,null,null,null,null,null,null,null,null,null,null,null,{"$f":"[1]Personnel!G466","v":0}]
[0,{"$f":"IFERROR(INDEX(Settings!$AP$17:$AP$38,MATCH(Personnel!$G467,Settings!$AQ$17:$AQ$38,0)),0)","v":0},null,null,null,{"$f":"[1]Personnel!F467","v":0},{"$f":"IFERROR(INDEX((SLevel),MATCH(Personnel!BA467,SLevel202223,0)),0)","v":0},{"$f":"[1]Personnel!H467","v":0},{"$f":"[1]Personnel!I467","v":0},{"$f":"[1]Personnel!J467","v":0},{"$f":"[1]Personnel!P467","v":0},{"$f":"[1]Personnel!Q467","v":0},0,{"$f":"[1]Personnel!S467","v":0},{"$f":"[1]Personnel!S467","v":0},{"$f":"[1]Personnel!S467","v":0},{"$f":"[1]Personnel!T467","v":0},0,{"$f":"[1]Personnel!V467","v":0},{"$f":"[1]Personnel!W467","v":0},0,{"$f":"[1]Personnel!Y467","v":0},{"$f":"[1]Personnel!Z467","v":0},0,0,0,0,null,null,null,null,null,null,null,null,null,null,null,null,null,null,null,null,null,null,null,null,null,null,null,null,null,{"$f":"[1]Personnel!G467","v":0}]
[0,{"$f":"IFERROR(INDEX(Settings!$AP$17:$AP$38,MATCH(Personnel!$G468,Settings!$AQ$17:$AQ$38,0)),0)","v":0},null,null,null,{"$f":"[1]Personnel!F468","v":0},{"$f":"IFERROR(INDEX((SLevel),MATCH(Personnel!BA468,SLevel202223,0)),0)","v":0},{"$f":"[1]Personnel!H468","v":0},{"$f":"[1]Personnel!I468","v":0},{"$f":"[1]Personnel!J468","v":0},{"$f":"[1]Personnel!P468","v":0},{"$f":"[1]Personnel!Q468","v":0},0,{"$f":"[1]Personnel!S468","v":0},{"$f":"[1]Personnel!S468","v":0},{"$f":"[1]Personnel!S468","v":0},{"$f":"[1]Personnel!T468","v":0},0,{"$f":"[1]Personnel!V468","v":0},{"$f":"[1]Personnel!W468","v":0},0,{"$f":"[1]Personnel!Y468","v":0},{"$f":"[1]Personnel!Z468","v":0},0,0,0,0,null,null,null,null,null,null,null,null,null,null,null,null,null,null,null,null,null,null,null,null,null,null,null,null,null,{"$f":"[1]Personnel!G468","v":0}]
[0,{"$f":"IFERROR(INDEX(Settings!$AP$17:$AP$38,MATCH(Personnel!$G469,Settings!$AQ$17:$AQ$38,0)),0)","v":0},null,null,null,{"$f":"[1]Personnel!F469","v":0},{"$f":"IFERROR(INDEX((SLevel),MATCH(Personnel!BA469,SLevel202223,0)),0)","v":0},{"$f":"[1]Personnel!H469","v":0},{"$f":"[1]Personnel!I469","v":0},{"$f":"[1]Personnel!J469","v":0},{"$f":"[1]Personnel!P469","v":0},{"$f":"[1]Personnel!Q469","v":0},0,{"$f":"[1]Personnel!S469","v":0},{"$f":"[1]Personnel!S469","v":0},{"$f":"[1]Personnel!S469","v":0},{"$f":"[1]Personnel!T469","v":0},0,{"$f":"[1]Personnel!V469","v":0},{"$f":"[1]Personnel!W469","v":0},0,{"$f":"[1]Personnel!Y469","v":0},{"$f":"[1]Personnel!Z469","v":0},0,0,0,0,null,null,null,null,null,null,null,null,null,null,null,null,null,null,null,null,null,null,null,null,null,null,null,null,null,{"$f":"[1]Personnel!G469","v":0}]
[0,{"$f":"IFERROR(INDEX(Settings!$AP$17:$AP$38,MATCH(Personnel!$G470,Settings!$AQ$17:$AQ$38,0)),0)","v":0},null,null,null,{"$f":"[1]Personnel!F470","v":0},{"$f":"IFERROR(INDEX((SLevel),MATCH(Personnel!BA470,SLevel202223,0)),0)","v":0},{"$f":"[1]Personnel!H470","v":0},{"$f":"[1]Personnel!I470","v":0},{"$f":"[1]Personnel!J470","v":0},{"$f":"[1]Personnel!P470","v":0},{"$f":"[1]Personnel!Q470","v":0},0,{"$f":"[1]Personnel!S470","v":0},{"$f":"[1]Personnel!S470","v":0},{"$f":"[1]Personnel!S470","v":0},{"$f":"[1]Personnel!T470","v":0},0,{"$f":"[1]Personnel!V470","v":0},{"$f":"[1]Personnel!W470","v":0},0,{"$f":"[1]Personnel!Y470","v":0},{"$f":"[1]Personnel!Z470","v":0},0,0,0,0,null,null,null,null,null,null,null,null,null,null,null,null,null,null,null,null,null,null,null,null,null,null,null,null,null,{"$f":"[1]Personnel!G470","v":0}]
[0,{"$f":"IFERROR(INDEX(Settings!$AP$17:$AP$38,MATCH(Personnel!$G471,Settings!$AQ$17:$AQ$38,0)),0)","v":0},null,null,null,{"$f":"[1]Personnel!F471","v":0},{"$f":"IFERROR(INDEX((SLevel),MATCH(Personnel!BA471,SLevel202223,0)),0)","v":0},{"$f":"[1]Personnel!H471","v":0},{"$f":"[1]Personnel!I471","v":0},{"$f":"[1]Personnel!J471","v":0},{"$f":"[1]Personnel!P471","v":0},{"$f":"[1]Personnel!Q471","v":0},0,{"$f":"[1]Personnel!S471","v":0},{"$f":"[1]Personnel!S471","v":0},{"$f":"[1]Personnel!S471","v":0},{"$f":"[1]Personnel!T471","v":0},0,{"$f":"[1]Personnel!V471","v":0},{"$f":"[1]Personnel!W471","v":0},0,{"$f":"[1]Personnel!Y471","v":0},{"$f":"[1]Personnel!Z471","v":0},0,0,0,0,null,null,null,null,null,null,null,null,null,null,null,null,null,null,null,null,null,null,null,null,null,null,null,null,null,{"$f":"[1]Personnel!G471","v":0}]
[0,{"$f":"IFERROR(INDEX(Settings!$AP$17:$AP$38,MATCH(Personnel!$G472,Settings!$AQ$17:$AQ$38,0)),0)","v":0},null,null,null,{"$f":"[1]Personnel!F472","v":0},{"$f":"IFERROR(INDEX((SLevel),MATCH(Personnel!BA472,SLevel202223,0)),0)","v":0},{"$f":"[1]Personnel!H472","v":0},{"$f":"[1]Personnel!I472","v":0},{"$f":"[1]Personnel!J472","v":0},{"$f":"[1]Personnel!P472","v":0},{"$f":"[1]Personnel!Q472","v":0},0,{"$f":"[1]Personnel!S472","v":0},{"$f":"[1]Personnel!S472","v":0},{"$f":"[1]Personnel!S472","v":0},{"$f":"[1]Personnel!T472","v":0},0,{"$f":"[1]Personnel!V472","v":0},{"$f":"[1]Personnel!W472","v":0},0,{"$f":"[1]Personnel!Y472","v":0},{"$f":"[1]Personnel!Z472","v":0},0,0,0,0,null,null,null,null,null,null,null,null,null,null,null,null,null,null,null,null,null,null,null,null,null,null,null,null,null,{"$f":"[1]Personnel!G472","v":0}]
[0,{"$f":"IFERROR(INDEX(Settings!$AP$17:$AP$38,MATCH(Personnel!$G473,Settings!$AQ$17:$AQ$38,0)),0)","v":0},null,null,null,{"$f":"[1]Personnel!F473","v":0},{"$f":"IFERROR(INDEX((SLevel),MATCH(Personnel!BA473,SLevel202223,0)),0)","v":0},{"$f":"[1]Personnel!H473","v":0},{"$f":"[1]Personnel!I473","v":0},{"$f":"[1]Personnel!J473","v":0},{"$f":"[1]Personnel!P473","v":0},{"$f":"[1]Personnel!Q473","v":0},0,{"$f":"[1]Personnel!S473","v":0},{"$f":"[1]Personnel!S473","v":0},{"$f":"[1]Personnel!S473","v":0},{"$f":"[1]Personnel!T473","v":0},0,{"$f":"[1]Personnel!V473","v":0},{"$f":"[1]Personnel!W473","v":0},0,{"$f":"[1]Personnel!Y473","v":0},{"$f":"[1]Personnel!Z473","v":0},0,0,0,0,null,null,null,null,null,null,null,null,null,null,null,null,null,null,null,null,null,null,null,null,null,null,null,null,null,{"$f":"[1]Personnel!G473","v":0}]
[0,{"$f":"IFERROR(INDEX(Settings!$AP$17:$AP$38,MATCH(Personnel!$G474,Settings!$AQ$17:$AQ$38,0)),0)","v":0},null,null,null,{"$f":"[1]Personnel!F474","v":0},{"$f":"IFERROR(INDEX((SLevel),MATCH(Personnel!BA474,SLevel202223,0)),0)","v":0},{"$f":"[1]Personnel!H474","v":0},{"$f":"[1]Personnel!I474","v":0},{"$f":"[1]Personnel!J474","v":0},{"$f":"[1]Personnel!P474","v":0},{"$f":"[1]Personnel!Q474","v":0},0,{"$f":"[1]Personnel!S474","v":0},{"$f":"[1]Personnel!S474","v":0},{"$f":"[1]Personnel!S474","v":0},{"$f":"[1]Personnel!T474","v":0},0,{"$f":"[1]Personnel!V474","v":0},{"$f":"[1]Personnel!W474","v":0},0,{"$f":"[1]Personnel!Y474","v":0},{"$f":"[1]Personnel!Z474","v":0},0,0,0,0,null,null,null,null,null,null,null,null,null,null,null,null,null,null,null,null,null,null,null,null,null,null,null,null,null,{"$f":"[1]Personnel!G474","v":0}]
[0,{"$f":"IFERROR(INDEX(Settings!$AP$17:$AP$38,MATCH(Personnel!$G475,Settings!$AQ$17:$AQ$38,0)),0)","v":0},null,null,null,{"$f":"[1]Personnel!F475","v":0},{"$f":"IFERROR(INDEX((SLevel),MATCH(Personnel!BA475,SLevel202223,0)),0)","v":0},{"$f":"[1]Personnel!H475","v":0},{"$f":"[1]Personnel!I475","v":0},{"$f":"[1]Personnel!J475","v":0},{"$f":"[1]Personnel!P475","v":0},{"$f":"[1]Personnel!Q475","v":0},0,{"$f":"[1]Personnel!S475","v":0},{"$f":"[1]Personnel!S475","v":0},{"$f":"[1]Personnel!S475","v":0},{"$f":"[1]Personnel!T475","v":0},0,{"$f":"[1]Personnel!V475","v":0},{"$f":"[1]Personnel!W475","v":0},0,{"$f":"[1]Personnel!Y475","v":0},{"$f":"[1]Personnel!Z475","v":0},0,0,0,0,null,null,null,null,null,null,null,null,null,null,null,null,null,null,null,null,null,null,null,null,null,null,null,null,null,{"$f":"[1]Personnel!G475","v":0}]
[0,{"$f":"IFERROR(INDEX(Settings!$AP$17:$AP$38,MATCH(Personnel!$G476,Settings!$AQ$17:$AQ$38,0)),0)","v":0},null,null,null,{"$f":"[1]Personnel!F476","v":0},{"$f":"IFERROR(INDEX((SLevel),MATCH(Personnel!BA476,SLevel202223,0)),0)","v":0},{"$f":"[1]Personnel!H476","v":0},{"$f":"[1]Personnel!I476","v":0},{"$f":"[1]Personnel!J476","v":0},{"$f":"[1]Personnel!P476","v":0},{"$f":"[1]Personnel!Q476","v":0},0,{"$f":"[1]Personnel!S476","v":0},{"$f":"[1]Personnel!S476","v":0},{"$f":"[1]Personnel!S476","v":0},{"$f":"[1]Personnel!T476","v":0},0,{"$f":"[1]Personnel!V476","v":0},{"$f":"[1]Personnel!W476","v":0},0,{"$f":"[1]Personnel!Y476","v":0},{"$f":"[1]Personnel!Z476","v":0},0,0,0,0,null,null,null,null,null,null,null,null,null,null,null,null,null,null,null,null,null,null,null,null,null,null,null,null,null,{"$f":"[1]Personnel!G476","v":0}]
[0,{"$f":"IFERROR(INDEX(Settings!$AP$17:$AP$38,MATCH(Personnel!$G477,Settings!$AQ$17:$AQ$38,0)),0)","v":0},null,null,null,{"$f":"[1]Personnel!F477","v":0},{"$f":"IFERROR(INDEX((SLevel),MATCH(Personnel!BA477,SLevel202223,0)),0)","v":0},{"$f":"[1]Personnel!H477","v":0},{"$f":"[1]Personnel!I477","v":0},{"$f":"[1]Personnel!J477","v":0},{"$f":"[1]Personnel!P477","v":0},{"$f":"[1]Personnel!Q477","v":0},0,{"$f":"[1]Personnel!S477","v":0},{"$f":"[1]Personnel!S477","v":0},{"$f":"[1]Personnel!S477","v":0},{"$f":"[1]Personnel!T477","v":0},0,{"$f":"[1]Personnel!V477","v":0},{"$f":"[1]Personnel!W477","v":0},0,{"$f":"[1]Personnel!Y477","v":0},{"$f":"[1]Personnel!Z477","v":0},0,0,0,0,null,null,null,null,null,null,null,null,null,null,null,null,null,null,null,null,null,null,null,null,null,null,null,null,null,{"$f":"[1]Personnel!G477","v":0}]
[0,{"$f":"IFERROR(INDEX(Settings!$AP$17:$AP$38,MATCH(Personnel!$G478,Settings!$AQ$17:$AQ$38,0)),0)","v":0},null,null,null,{"$f":"[1]Personnel!F478","v":0},{"$f":"IFERROR(INDEX((SLevel),MATCH(Personnel!BA478,SLevel202223,0)),0)","v":0},{"$f":"[1]Personnel!H478","v":0},{"$f":"[1]Personnel!I478","v":0},{"$f":"[1]Personnel!J478","v":0},{"$f":"[1]Personnel!P478","v":0},{"$f":"[1]Personnel!Q478","v":0},0,{"$f":"[1]Personnel!S478","v":0},{"$f":"[1]Personnel!S478","v":0},{"$f":"[1]Personnel!S478","v":0},{"$f":"[1]Personnel!T478","v":0},0,{"$f":"[1]Personnel!V478","v":0},{"$f":"[1]Personnel!W478","v":0},0,{"$f":"[1]Personnel!Y478","v":0},{"$f":"[1]Personnel!Z478","v":0},0,0,0,0,null,null,null,null,null,null,null,null,null,null,null,null,null,null,null,null,null,null,null,null,null,null,null,null,null,{"$f":"[1]Personnel!G478","v":0}]
[0,{"$f":"IFERROR(INDEX(Settings!$AP$17:$AP$38,MATCH(Personnel!$G479,Settings!$AQ$17:$AQ$38,0)),0)","v":0},null,null,null,{"$f":"[1]Personnel!F479","v":0},{"$f":"IFERROR(INDEX((SLevel),MATCH(Personnel!BA479,SLevel202223,0)),0)","v":0},{"$f":"[1]Personnel!H479","v":0},{"$f":"[1]Personnel!I479","v":0},{"$f":"[1]Personnel!J479","v":0},{"$f":"[1]Personnel!P479","v":0},{"$f":"[1]Personnel!Q479","v":0},0,{"$f":"[1]Personnel!S479","v":0},{"$f":"[1]Personnel!S479","v":0},{"$f":"[1]Personnel!S479","v":0},{"$f":"[1]Personnel!T479","v":0},0,{"$f":"[1]Personnel!V479","v":0},{"$f":"[1]Personnel!W479","v":0},0,{"$f":"[1]Personnel!Y479","v":0},{"$f":"[1]Personnel!Z479","v":0},0,0,0,0,null,null,null,null,null,null,null,null,null,null,null,null,null,null,null,null,null,null,null,null,null,null,null,null,null,{"$f":"[1]Personnel!G479","v":0}]
[0,{"$f":"IFERROR(INDEX(Settings!$AP$17:$AP$38,MATCH(Personnel!$G480,Settings!$AQ$17:$AQ$38,0)),0)","v":0},null,null,null,{"$f":"[1]Personnel!F480","v":0},{"$f":"IFERROR(INDEX((SLevel),MATCH(Personnel!BA480,SLevel202223,0)),0)","v":0},{"$f":"[1]Personnel!H480","v":0},{"$f":"[1]Personnel!I480","v":0},{"$f":"[1]Personnel!J480","v":0},{"$f":"[1]Personnel!P480","v":0},{"$f":"[1]Personnel!Q480","v":0},0,{"$f":"[1]Personnel!S480","v":0},{"$f":"[1]Personnel!S480","v":0},{"$f":"[1]Personnel!S480","v":0},{"$f":"[1]Personnel!T480","v":0},0,{"$f":"[1]Personnel!V480","v":0},{"$f":"[1]Personnel!W480","v":0},0,{"$f":"[1]Personnel!Y480","v":0},{"$f":"[1]Personnel!Z480","v":0},0,0,0,0,null,null,null,null,null,null,null,null,null,null,null,null,null,null,null,null,null,null,null,null,null,null,null,null,null,{"$f":"[1]Personnel!G480","v":0}]
[0,{"$f":"IFERROR(INDEX(Settings!$AP$17:$AP$38,MATCH(Personnel!$G481,Settings!$AQ$17:$AQ$38,0)),0)","v":0},null,null,null,{"$f":"[1]Personnel!F481","v":0},{"$f":"IFERROR(INDEX((SLevel),MATCH(Personnel!BA481,SLevel202223,0)),0)","v":0},{"$f":"[1]Personnel!H481","v":0},{"$f":"[1]Personnel!I481","v":0},{"$f":"[1]Personnel!J481","v":0},{"$f":"[1]Personnel!P481","v":0},{"$f":"[1]Personnel!Q481","v":0},0,{"$f":"[1]Personnel!S481","v":0},{"$f":"[1]Personnel!S481","v":0},{"$f":"[1]Personnel!S481","v":0},{"$f":"[1]Personnel!T481","v":0},0,{"$f":"[1]Personnel!V481","v":0},{"$f":"[1]Personnel!W481","v":0},0,{"$f":"[1]Personnel!Y481","v":0},{"$f":"[1]Personnel!Z481","v":0},0,0,0,0,null,null,null,null,null,null,null,null,null,null,null,null,null,null,null,null,null,null,null,null,null,null,null,null,null,{"$f":"[1]Personnel!G481","v":0}]
[0,{"$f":"IFERROR(INDEX(Settings!$AP$17:$AP$38,MATCH(Personnel!$G482,Settings!$AQ$17:$AQ$38,0)),0)","v":0},null,null,null,{"$f":"[1]Personnel!F482","v":0},{"$f":"IFERROR(INDEX((SLevel),MATCH(Personnel!BA482,SLevel202223,0)),0)","v":0},{"$f":"[1]Personnel!H482","v":0},{"$f":"[1]Personnel!I482","v":0},{"$f":"[1]Personnel!J482","v":0},{"$f":"[1]Personnel!P482","v":0},{"$f":"[1]Personnel!Q482","v":0},0,{"$f":"[1]Personnel!S482","v":0},{"$f":"[1]Personnel!S482","v":0},{"$f":"[1]Personnel!S482","v":0},{"$f":"[1]Personnel!T482","v":0},0,{"$f":"[1]Personnel!V482","v":0},{"$f":"[1]Personnel!W482","v":0},0,{"$f":"[1]Personnel!Y482","v":0},{"$f":"[1]Personnel!Z482","v":0},0,0,0,0,null,null,null,null,null,null,null,null,null,null,null,null,null,null,null,null,null,null,null,null,null,null,null,null,null,{"$f":"[1]Personnel!G482","v":0}]
[0,{"$f":"IFERROR(INDEX(Settings!$AP$17:$AP$38,MATCH(Personnel!$G483,Settings!$AQ$17:$AQ$38,0)),0)","v":0},null,null,null,{"$f":"[1]Personnel!F483","v":0},{"$f":"IFERROR(INDEX((SLevel),MATCH(Personnel!BA483,SLevel202223,0)),0)","v":0},{"$f":"[1]Personnel!H483","v":0},{"$f":"[1]Personnel!I483","v":0},{"$f":"[1]Personnel!J483","v":0},{"$f":"[1]Personnel!P483","v":0},{"$f":"[1]Personnel!Q483","v":0},0,{"$f":"[1]Personnel!S483","v":0},{"$f":"[1]Personnel!S483","v":0},{"$f":"[1]Personnel!S483","v":0},{"$f":"[1]Personnel!T483","v":0},0,{"$f":"[1]Personnel!V483","v":0},{"$f":"[1]Personnel!W483","v":0},0,{"$f":"[1]Personnel!Y483","v":0},{"$f":"[1]Personnel!Z483","v":0},0,0,0,0,null,null,null,null,null,null,null,null,null,null,null,null,null,null,null,null,null,null,null,null,null,null,null,null,null,{"$f":"[1]Personnel!G483","v":0}]
[0,{"$f":"IFERROR(INDEX(Settings!$AP$17:$AP$38,MATCH(Personnel!$G484,Settings!$AQ$17:$AQ$38,0)),0)","v":0},null,null,null,{"$f":"[1]Personnel!F484","v":0},{"$f":"IFERROR(INDEX((SLevel),MATCH(Personnel!BA484,SLevel202223,0)),0)","v":0},{"$f":"[1]Personnel!H484","v":0},{"$f":"[1]Personnel!I484","v":0},{"$f":"[1]Personnel!J484","v":0},{"$f":"[1]Personnel!P484","v":0},{"$f":"[1]Personnel!Q484","v":0},0,{"$f":"[1]Personnel!S484","v":0},{"$f":"[1]Personnel!S484","v":0},{"$f":"[1]Personnel!S484","v":0},{"$f":"[1]Personnel!T484","v":0},0,{"$f":"[1]Personnel!V484","v":0},{"$f":"[1]Personnel!W484","v":0},0,{"$f":"[1]Personnel!Y484","v":0},{"$f":"[1]Personnel!Z484","v":0},0,0,0,0,null,null,null,null,null,null,null,null,null,null,null,null,null,null,null,null,null,null,null,null,null,null,null,null,null,{"$f":"[1]Personnel!G484","v":0}]
[0,{"$f":"IFERROR(INDEX(Settings!$AP$17:$AP$38,MATCH(Personnel!$G485,Settings!$AQ$17:$AQ$38,0)),0)","v":0},null,null,null,{"$f":"[1]Personnel!F485","v":0},{"$f":"IFERROR(INDEX((SLevel),MATCH(Personnel!BA485,SLevel202223,0)),0)","v":0},{"$f":"[1]Personnel!H485","v":0},{"$f":"[1]Personnel!I485","v":0},{"$f":"[1]Personnel!J485","v":0},{"$f":"[1]Personnel!P485","v":0},{"$f":"[1]Personnel!Q485","v":0},0,{"$f":"[1]Personnel!S485","v":0},{"$f":"[1]Personnel!S485","v":0},{"$f":"[1]Personnel!S485","v":0},{"$f":"[1]Personnel!T485","v":0},0,{"$f":"[1]Personnel!V485","v":0},{"$f":"[1]Personnel!W485","v":0},0,{"$f":"[1]Personnel!Y485","v":0},{"$f":"[1]Personnel!Z485","v":0},0,0,0,0,null,null,null,null,null,null,null,null,null,null,null,null,null,null,null,null,null,null,null,null,null,null,null,null,null,{"$f":"[1]Personnel!G485","v":0}]
[0,{"$f":"IFERROR(INDEX(Settings!$AP$17:$AP$38,MATCH(Personnel!$G486,Settings!$AQ$17:$AQ$38,0)),0)","v":0},null,null,null,{"$f":"[1]Personnel!F486","v":0},{"$f":"IFERROR(INDEX((SLevel),MATCH(Personnel!BA486,SLevel202223,0)),0)","v":0},{"$f":"[1]Personnel!H486","v":0},{"$f":"[1]Personnel!I486","v":0},{"$f":"[1]Personnel!J486","v":0},{"$f":"[1]Personnel!P486","v":0},{"$f":"[1]Personnel!Q486","v":0},0,{"$f":"[1]Personnel!S486","v":0},{"$f":"[1]Personnel!S486","v":0},{"$f":"[1]Personnel!S486","v":0},{"$f":"[1]Personnel!T486","v":0},0,{"$f":"[1]Personnel!V486","v":0},{"$f":"[1]Personnel!W486","v":0},0,{"$f":"[1]Personnel!Y486","v":0},{"$f":"[1]Personnel!Z486","v":0},0,0,0,0,null,null,null,null,null,null,null,null,null,null,null,null,null,null,null,null,null,null,null,null,null,null,null,null,null,{"$f":"[1]Personnel!G486","v":0}]
[0,{"$f":"IFERROR(INDEX(Settings!$AP$17:$AP$38,MATCH(Personnel!$G487,Settings!$AQ$17:$AQ$38,0)),0)","v":0},null,null,null,{"$f":"[1]Personnel!F487","v":0},{"$f":"IFERROR(INDEX((SLevel),MATCH(Personnel!BA487,SLevel202223,0)),0)","v":0},{"$f":"[1]Personnel!H487","v":0},{"$f":"[1]Personnel!I487","v":0},{"$f":"[1]Personnel!J487","v":0},{"$f":"[1]Personnel!P487","v":0},{"$f":"[1]Personnel!Q487","v":0},0,{"$f":"[1]Personnel!S487","v":0},{"$f":"[1]Personnel!S487","v":0},{"$f":"[1]Personnel!S487","v":0},{"$f":"[1]Personnel!T487","v":0},0,{"$f":"[1]Personnel!V487","v":0},{"$f":"[1]Personnel!W487","v":0},0,{"$f":"[1]Personnel!Y487","v":0},{"$f":"[1]Personnel!Z487","v":0},0,0,0,0,null,null,null,null,null,null,null,null,null,null,null,null,null,null,null,null,null,null,null,null,null,null,null,null,null,{"$f":"[1]Personnel!G487","v":0}]
[0,{"$f":"IFERROR(INDEX(Settings!$AP$17:$AP$38,MATCH(Personnel!$G488,Settings!$AQ$17:$AQ$38,0)),0)","v":0},null,null,null,{"$f":"[1]Personnel!F488","v":0},{"$f":"IFERROR(INDEX((SLevel),MATCH(Personnel!BA488,SLevel202223,0)),0)","v":0},{"$f":"[1]Personnel!H488","v":0},{"$f":"[1]Personnel!I488","v":0},{"$f":"[1]Personnel!J488","v":0},{"$f":"[1]Personnel!P488","v":0},{"$f":"[1]Personnel!Q488","v":0},0,{"$f":"[1]Personnel!S488","v":0},{"$f":"[1]Personnel!S488","v":0},{"$f":"[1]Personnel!S488","v":0},{"$f":"[1]Personnel!T488","v":0},0,{"$f":"[1]Personnel!V488","v":0},{"$f":"[1]Personnel!W488","v":0},0,{"$f":"[1]Personnel!Y488","v":0},{"$f":"[1]Personnel!Z488","v":0},0,0,0,0,null,null,null,null,null,null,null,null,null,null,null,null,null,null,null,null,null,null,null,null,null,null,null,null,null,{"$f":"[1]Personnel!G488","v":0}]
[0,{"$f":"IFERROR(INDEX(Settings!$AP$17:$AP$38,MATCH(Personnel!$G489,Settings!$AQ$17:$AQ$38,0)),0)","v":0},null,null,null,{"$f":"[1]Personnel!F489","v":0},{"$f":"IFERROR(INDEX((SLevel),MATCH(Personnel!BA489,SLevel202223,0)),0)","v":0},{"$f":"[1]Personnel!H489","v":0},{"$f":"[1]Personnel!I489","v":0},{"$f":"[1]Personnel!J489","v":0},{"$f":"[1]Personnel!P489","v":0},{"$f":"[1]Personnel!Q489","v":0},0,{"$f":"[1]Personnel!S489","v":0},{"$f":"[1]Personnel!S489","v":0},{"$f":"[1]Personnel!S489","v":0},{"$f":"[1]Personnel!T489","v":0},0,{"$f":"[1]Personnel!V489","v":0},{"$f":"[1]Personnel!W489","v":0},0,{"$f":"[1]Personnel!Y489","v":0},{"$f":"[1]Personnel!Z489","v":0},0,0,0,0,null,null,null,null,null,null,null,null,null,null,null,null,null,null,null,null,null,null,null,null,null,null,null,null,null,{"$f":"[1]Personnel!G489","v":0}]
[0,{"$f":"IFERROR(INDEX(Settings!$AP$17:$AP$38,MATCH(Personnel!$G490,Settings!$AQ$17:$AQ$38,0)),0)","v":0},null,null,null,{"$f":"[1]Personnel!F490","v":0},{"$f":"IFERROR(INDEX((SLevel),MATCH(Personnel!BA490,SLevel202223,0)),0)","v":0},{"$f":"[1]Personnel!H490","v":0},{"$f":"[1]Personnel!I490","v":0},{"$f":"[1]Personnel!J490","v":0},{"$f":"[1]Personnel!P490","v":0},{"$f":"[1]Personnel!Q490","v":0},0,{"$f":"[1]Personnel!S490","v":0},{"$f":"[1]Personnel!S490","v":0},{"$f":"[1]Personnel!S490","v":0},{"$f":"[1]Personnel!T490","v":0},0,{"$f":"[1]Personnel!V490","v":0},{"$f":"[1]Personnel!W490","v":0},0,{"$f":"[1]Personnel!Y490","v":0},{"$f":"[1]Personnel!Z490","v":0},0,0,0,0,null,null,null,null,null,null,null,null,null,null,null,null,null,null,null,null,null,null,null,null,null,null,null,null,null,{"$f":"[1]Personnel!G490","v":0}]
[0,{"$f":"IFERROR(INDEX(Settings!$AP$17:$AP$38,MATCH(Personnel!$G491,Settings!$AQ$17:$AQ$38,0)),0)","v":0},null,null,null,{"$f":"[1]Personnel!F491","v":0},{"$f":"IFERROR(INDEX((SLevel),MATCH(Personnel!BA491,SLevel202223,0)),0)","v":0},{"$f":"[1]Personnel!H491","v":0},{"$f":"[1]Personnel!I491","v":0},{"$f":"[1]Personnel!J491","v":0},{"$f":"[1]Personnel!P491","v":0},{"$f":"[1]Personnel!Q491","v":0},0,{"$f":"[1]Personnel!S491","v":0},{"$f":"[1]Personnel!S491","v":0},{"$f":"[1]Personnel!S491","v":0},{"$f":"[1]Personnel!T491","v":0},0,{"$f":"[1]Personnel!V491","v":0},{"$f":"[1]Personnel!W491","v":0},0,{"$f":"[1]Personnel!Y491","v":0},{"$f":"[1]Personnel!Z491","v":0},0,0,0,0,null,null,null,null,null,null,null,null,null,null,null,null,null,null,null,null,null,null,null,null,null,null,null,null,null,{"$f":"[1]Personnel!G491","v":0}]
[0,{"$f":"IFERROR(INDEX(Settings!$AP$17:$AP$38,MATCH(Personnel!$G492,Settings!$AQ$17:$AQ$38,0)),0)","v":0},null,null,null,{"$f":"[1]Personnel!F492","v":0},{"$f":"IFERROR(INDEX((SLevel),MATCH(Personnel!BA492,SLevel202223,0)),0)","v":0},{"$f":"[1]Personnel!H492","v":0},{"$f":"[1]Personnel!I492","v":0},{"$f":"[1]Personnel!J492","v":0},{"$f":"[1]Personnel!P492","v":0},{"$f":"[1]Personnel!Q492","v":0},0,{"$f":"[1]Personnel!S492","v":0},{"$f":"[1]Personnel!S492","v":0},{"$f":"[1]Personnel!S492","v":0},{"$f":"[1]Personnel!T492","v":0},0,{"$f":"[1]Personnel!V492","v":0},{"$f":"[1]Personnel!W492","v":0},0,{"$f":"[1]Personnel!Y492","v":0},{"$f":"[1]Personnel!Z492","v":0},0,0,0,0,null,null,null,null,null,null,null,null,null,null,null,null,null,null,null,null,null,null,null,null,null,null,null,null,null,{"$f":"[1]Personnel!G492","v":0}]
[0,{"$f":"IFERROR(INDEX(Settings!$AP$17:$AP$38,MATCH(Personnel!$G493,Settings!$AQ$17:$AQ$38,0)),0)","v":0},null,null,null,{"$f":"[1]Personnel!F493","v":0},{"$f":"IFERROR(INDEX((SLevel),MATCH(Personnel!BA493,SLevel202223,0)),0)","v":0},{"$f":"[1]Personnel!H493","v":0},{"$f":"[1]Personnel!I493","v":0},{"$f":"[1]Personnel!J493","v":0},{"$f":"[1]Personnel!P493","v":0},{"$f":"[1]Personnel!Q493","v":0},0,{"$f":"[1]Personnel!S493","v":0},{"$f":"[1]Personnel!S493","v":0},{"$f":"[1]Personnel!S493","v":0},{"$f":"[1]Personnel!T493","v":0},0,{"$f":"[1]Personnel!V493","v":0},{"$f":"[1]Personnel!W493","v":0},0,{"$f":"[1]Personnel!Y493","v":0},{"$f":"[1]Personnel!Z493","v":0},0,0,0,0,null,null,null,null,null,null,null,null,null,null,null,null,null,null,null,null,null,null,null,null,null,null,null,null,null,{"$f":"[1]Personnel!G493","v":0}]
[0,{"$f":"IFERROR(INDEX(Settings!$AP$17:$AP$38,MATCH(Personnel!$G494,Settings!$AQ$17:$AQ$38,0)),0)","v":0},null,null,null,{"$f":"[1]Personnel!F494","v":0},{"$f":"IFERROR(INDEX((SLevel),MATCH(Personnel!BA494,SLevel202223,0)),0)","v":0},{"$f":"[1]Personnel!H494","v":0},{"$f":"[1]Personnel!I494","v":0},{"$f":"[1]Personnel!J494","v":0},{"$f":"[1]Personnel!P494","v":0},{"$f":"[1]Personnel!Q494","v":0},0,{"$f":"[1]Personnel!S494","v":0},{"$f":"[1]Personnel!S494","v":0},{"$f":"[1]Personnel!S494","v":0},{"$f":"[1]Personnel!T494","v":0},0,{"$f":"[1]Personnel!V494","v":0},{"$f":"[1]Personnel!W494","v":0},0,{"$f":"[1]Personnel!Y494","v":0},{"$f":"[1]Personnel!Z494","v":0},0,0,0,0,null,null,null,null,null,null,null,null,null,null,null,null,null,null,null,null,null,null,null,null,null,null,null,null,null,{"$f":"[1]Personnel!G494","v":0}]
[0,{"$f":"IFERROR(INDEX(Settings!$AP$17:$AP$38,MATCH(Personnel!$G495,Settings!$AQ$17:$AQ$38,0)),0)","v":0},null,null,null,{"$f":"[1]Personnel!F495","v":0},{"$f":"IFERROR(INDEX((SLevel),MATCH(Personnel!BA495,SLevel202223,0)),0)","v":0},{"$f":"[1]Personnel!H495","v":0},{"$f":"[1]Personnel!I495","v":0},{"$f":"[1]Personnel!J495","v":0},{"$f":"[1]Personnel!P495","v":0},{"$f":"[1]Personnel!Q495","v":0},0,{"$f":"[1]Personnel!S495","v":0},{"$f":"[1]Personnel!S495","v":0},{"$f":"[1]Personnel!S495","v":0},{"$f":"[1]Personnel!T495","v":0},0,{"$f":"[1]Personnel!V495","v":0},{"$f":"[1]Personnel!W495","v":0},0,{"$f":"[1]Personnel!Y495","v":0},{"$f":"[1]Personnel!Z495","v":0},0,0,0,0,null,null,null,null,null,null,null,null,null,null,null,null,null,null,null,null,null,null,null,null,null,null,null,null,null,{"$f":"[1]Personnel!G495","v":0}]
[0,{"$f":"IFERROR(INDEX(Settings!$AP$17:$AP$38,MATCH(Personnel!$G496,Settings!$AQ$17:$AQ$38,0)),0)","v":0},null,null,null,{"$f":"[1]Personnel!F496","v":0},{"$f":"IFERROR(INDEX((SLevel),MATCH(Personnel!BA496,SLevel202223,0)),0)","v":0},{"$f":"[1]Personnel!H496","v":0},{"$f":"[1]Personnel!I496","v":0},{"$f":"[1]Personnel!J496","v":0},{"$f":"[1]Personnel!P496","v":0},{"$f":"[1]Personnel!Q496","v":0},0,{"$f":"[1]Personnel!S496","v":0},{"$f":"[1]Personnel!S496","v":0},{"$f":"[1]Personnel!S496","v":0},{"$f":"[1]Personnel!T496","v":0},0,{"$f":"[1]Personnel!V496","v":0},{"$f":"[1]Personnel!W496","v":0},0,{"$f":"[1]Personnel!Y496","v":0},{"$f":"[1]Personnel!Z496","v":0},0,0,0,0,null,null,null,null,null,null,null,null,null,null,null,null,null,null,null,null,null,null,null,null,null,null,null,null,null,{"$f":"[1]Personnel!G496","v":0}]
[0,{"$f":"IFERROR(INDEX(Settings!$AP$17:$AP$38,MATCH(Personnel!$G497,Settings!$AQ$17:$AQ$38,0)),0)","v":0},null,null,null,{"$f":"[1]Personnel!F497","v":0},{"$f":"IFERROR(INDEX((SLevel),MATCH(Personnel!BA497,SLevel202223,0)),0)","v":0},{"$f":"[1]Personnel!H497","v":0},{"$f":"[1]Personnel!I497","v":0},{"$f":"[1]Personnel!J497","v":0},{"$f":"[1]Personnel!P497","v":0},{"$f":"[1]Personnel!Q497","v":0},0,{"$f":"[1]Personnel!S497","v":0},{"$f":"[1]Personnel!S497","v":0},{"$f":"[1]Personnel!S497","v":0},{"$f":"[1]Personnel!T497","v":0},0,{"$f":"[1]Personnel!V497","v":0},{"$f":"[1]Personnel!W497","v":0},0,{"$f":"[1]Personnel!Y497","v":0},{"$f":"[1]Personnel!Z497","v":0},0,0,0,0,null,null,null,null,null,null,null,null,null,null,null,null,null,null,null,null,null,null,null,null,null,null,null,null,null,{"$f":"[1]Personnel!G497","v":0}]
[0,{"$f":"IFERROR(INDEX(Settings!$AP$17:$AP$38,MATCH(Personnel!$G498,Settings!$AQ$17:$AQ$38,0)),0)","v":0},null,null,null,{"$f":"[1]Personnel!F498","v":0},{"$f":"IFERROR(INDEX((SLevel),MATCH(Personnel!BA498,SLevel202223,0)),0)","v":0},{"$f":"[1]Personnel!H498","v":0},{"$f":"[1]Personnel!I498","v":0},{"$f":"[1]Personnel!J498","v":0},{"$f":"[1]Personnel!P498","v":0},{"$f":"[1]Personnel!Q498","v":0},0,{"$f":"[1]Personnel!S498","v":0},{"$f":"[1]Personnel!S498","v":0},{"$f":"[1]Personnel!S498","v":0},{"$f":"[1]Personnel!T498","v":0},0,{"$f":"[1]Personnel!V498","v":0},{"$f":"[1]Personnel!W498","v":0},0,{"$f":"[1]Personnel!Y498","v":0},{"$f":"[1]Personnel!Z498","v":0},0,0,0,0,null,null,null,null,null,null,null,null,null,null,null,null,null,null,null,null,null,null,null,null,null,null,null,null,null,{"$f":"[1]Personnel!G498","v":0}]
[0,{"$f":"IFERROR(INDEX(Settings!$AP$17:$AP$38,MATCH(Personnel!$G499,Settings!$AQ$17:$AQ$38,0)),0)","v":0},null,null,null,{"$f":"[1]Personnel!F499","v":0},{"$f":"IFERROR(INDEX((SLevel),MATCH(Personnel!BA499,SLevel202223,0)),0)","v":0},{"$f":"[1]Personnel!H499","v":0},{"$f":"[1]Personnel!I499","v":0},{"$f":"[1]Personnel!J499","v":0},{"$f":"[1]Personnel!P499","v":0},{"$f":"[1]Personnel!Q499","v":0},0,{"$f":"[1]Personnel!S499","v":0},{"$f":"[1]Personnel!S499","v":0},{"$f":"[1]Personnel!S499","v":0},{"$f":"[1]Personnel!T499","v":0},0,{"$f":"[1]Personnel!V499","v":0},{"$f":"[1]Personnel!W499","v":0},0,{"$f":"[1]Personnel!Y499","v":0},{"$f":"[1]Personnel!Z499","v":0},0,0,0,0,null,null,null,null,null,null,null,null,null,null,null,null,null,null,null,null,null,null,null,null,null,null,null,null,null,{"$f":"[1]Personnel!G499","v":0}]
[0,{"$f":"IFERROR(INDEX(Settings!$AP$17:$AP$38,MATCH(Personnel!$G500,Settings!$AQ$17:$AQ$38,0)),0)","v":0},null,null,null,{"$f":"[1]Personnel!F500","v":0},{"$f":"IFERROR(INDEX((SLevel),MATCH(Personnel!BA500,SLevel202223,0)),0)","v":0},{"$f":"[1]Personnel!H500","v":0},{"$f":"[1]Personnel!I500","v":0},{"$f":"[1]Personnel!J500","v":0},{"$f":"[1]Personnel!P500","v":0},{"$f":"[1]Personnel!Q500","v":0},0,{"$f":"[1]Personnel!S500","v":0},{"$f":"[1]Personnel!S500","v":0},{"$f":"[1]Personnel!S500","v":0},{"$f":"[1]Personnel!T500","v":0},0,{"$f":"[1]Personnel!V500","v":0},{"$f":"[1]Personnel!W500","v":0},0,{"$f":"[1]Personnel!Y500","v":0},{"$f":"[1]Personnel!Z500","v":0},0,0,0,0,null,null,null,null,null,null,null,null,null,null,null,null,null,null,null,null,null,null,null,null,null,null,null,null,null,{"$f":"[1]Personnel!G500","v":0}]
[0,{"$f":"IFERROR(INDEX(Settings!$AP$17:$AP$38,MATCH(Personnel!$G501,Settings!$AQ$17:$AQ$38,0)),0)","v":0},null,null,null,{"$f":"[1]Personnel!F501","v":0},{"$f":"IFERROR(INDEX((SLevel),MATCH(Personnel!BA501,SLevel202223,0)),0)","v":0},{"$f":"[1]Personnel!H501","v":0},{"$f":"[1]Personnel!I501","v":0},{"$f":"[1]Personnel!J501","v":0},{"$f":"[1]Personnel!P501","v":0},{"$f":"[1]Personnel!Q501","v":0},0,{"$f":"[1]Personnel!S501","v":0},{"$f":"[1]Personnel!S501","v":0},{"$f":"[1]Personnel!S501","v":0},{"$f":"[1]Personnel!T501","v":0},0,{"$f":"[1]Personnel!V501","v":0},{"$f":"[1]Personnel!W501","v":0},0,{"$f":"[1]Personnel!Y501","v":0},{"$f":"[1]Personnel!Z501","v":0},0,0,0,0,null,null,null,null,null,null,null,null,null,null,null,null,null,null,null,null,null,null,null,null,null,null,null,null,null,{"$f":"[1]Personnel!G501","v":0}]
[0,{"$f":"IFERROR(INDEX(Settings!$AP$17:$AP$38,MATCH(Personnel!$G502,Settings!$AQ$17:$AQ$38,0)),0)","v":0},null,null,null,{"$f":"[1]Personnel!F502","v":0},{"$f":"IFERROR(INDEX((SLevel),MATCH(Personnel!BA502,SLevel202223,0)),0)","v":0},{"$f":"[1]Personnel!H502","v":0},{"$f":"[1]Personnel!I502","v":0},{"$f":"[1]Personnel!J502","v":0},{"$f":"[1]Personnel!P502","v":0},{"$f":"[1]Personnel!Q502","v":0},0,{"$f":"[1]Personnel!S502","v":0},{"$f":"[1]Personnel!S502","v":0},{"$f":"[1]Personnel!S502","v":0},{"$f":"[1]Personnel!T502","v":0},0,{"$f":"[1]Personnel!V502","v":0},{"$f":"[1]Personnel!W502","v":0},0,{"$f":"[1]Personnel!Y502","v":0},{"$f":"[1]Personnel!Z502","v":0},0,0,0,0,null,null,null,null,null,null,null,null,null,null,null,null,null,null,null,null,null,null,null,null,null,null,null,null,null,{"$f":"[1]Personnel!G502","v":0}]
[0,{"$f":"IFERROR(INDEX(Settings!$AP$17:$AP$38,MATCH(Personnel!$G503,Settings!$AQ$17:$AQ$38,0)),0)","v":0},null,null,null,{"$f":"[1]Personnel!F503","v":0},{"$f":"IFERROR(INDEX((SLevel),MATCH(Personnel!BA503,SLevel202223,0)),0)","v":0},{"$f":"[1]Personnel!H503","v":0},{"$f":"[1]Personnel!I503","v":0},{"$f":"[1]Personnel!J503","v":0},{"$f":"[1]Personnel!P503","v":0},{"$f":"[1]Personnel!Q503","v":0},0,{"$f":"[1]Personnel!S503","v":0},{"$f":"[1]Personnel!S503","v":0},{"$f":"[1]Personnel!S503","v":0},{"$f":"[1]Personnel!T503","v":0},0,{"$f":"[1]Personnel!V503","v":0},{"$f":"[1]Personnel!W503","v":0},0,{"$f":"[1]Personnel!Y503","v":0},{"$f":"[1]Personnel!Z503","v":0},0,0,0,0,null,null,null,null,null,null,null,null,null,null,null,null,null,null,null,null,null,null,null,null,null,null,null,null,null,{"$f":"[1]Personnel!G503","v":0}]
[0,{"$f":"IFERROR(INDEX(Settings!$AP$17:$AP$38,MATCH(Personnel!$G504,Settings!$AQ$17:$AQ$38,0)),0)","v":0},null,null,null,{"$f":"[1]Personnel!F504","v":0},{"$f":"IFERROR(INDEX((SLevel),MATCH(Personnel!BA504,SLevel202223,0)),0)","v":0},{"$f":"[1]Personnel!H504","v":0},{"$f":"[1]Personnel!I504","v":0},{"$f":"[1]Personnel!J504","v":0},{"$f":"[1]Personnel!P504","v":0},{"$f":"[1]Personnel!Q504","v":0},0,{"$f":"[1]Personnel!S504","v":0},{"$f":"[1]Personnel!S504","v":0},{"$f":"[1]Personnel!S504","v":0},{"$f":"[1]Personnel!T504","v":0},0,{"$f":"[1]Personnel!V504","v":0},{"$f":"[1]Personnel!W504","v":0},0,{"$f":"[1]Personnel!Y504","v":0},{"$f":"[1]Personnel!Z504","v":0},0,0,0,0,null,null,null,null,null,null,null,null,null,null,null,null,null,null,null,null,null,null,null,null,null,null,null,null,null,{"$f":"[1]Personnel!G504","v":0}]
[0,{"$f":"IFERROR(INDEX(Settings!$AP$17:$AP$38,MATCH(Personnel!$G505,Settings!$AQ$17:$AQ$38,0)),0)","v":0},null,null,null,{"$f":"[1]Personnel!F505","v":0},{"$f":"IFERROR(INDEX((SLevel),MATCH(Personnel!BA505,SLevel202223,0)),0)","v":0},{"$f":"[1]Personnel!H505","v":0},{"$f":"[1]Personnel!I505","v":0},{"$f":"[1]Personnel!J505","v":0},{"$f":"[1]Personnel!P505","v":0},{"$f":"[1]Personnel!Q505","v":0},0,{"$f":"[1]Personnel!S505","v":0},{"$f":"[1]Personnel!S505","v":0},{"$f":"[1]Personnel!S505","v":0},{"$f":"[1]Personnel!T505","v":0},0,{"$f":"[1]Personnel!V505","v":0},{"$f":"[1]Personnel!W505","v":0},0,{"$f":"[1]Personnel!Y505","v":0},{"$f":"[1]Personnel!Z505","v":0},0,0,0,0,null,null,null,null,null,null,null,null,null,null,null,null,null,null,null,null,null,null,null,null,null,null,null,null,null,{"$f":"[1]Personnel!G505","v":0}]
[0,{"$f":"IFERROR(INDEX(Settings!$AP$17:$AP$38,MATCH(Personnel!$G506,Settings!$AQ$17:$AQ$38,0)),0)","v":0},null,null,null,{"$f":"[1]Personnel!F506","v":0},{"$f":"IFERROR(INDEX((SLevel),MATCH(Personnel!BA506,SLevel202223,0)),0)","v":0},{"$f":"[1]Personnel!H506","v":0},{"$f":"[1]Personnel!I506","v":0},{"$f":"[1]Personnel!J506","v":0},{"$f":"[1]Personnel!P506","v":0},{"$f":"[1]Personnel!Q506","v":0},0,{"$f":"[1]Personnel!S506","v":0},{"$f":"[1]Personnel!S506","v":0},{"$f":"[1]Personnel!S506","v":0},{"$f":"[1]Personnel!T506","v":0},0,{"$f":"[1]Personnel!V506","v":0},{"$f":"[1]Personnel!W506","v":0},0,{"$f":"[1]Personnel!Y506","v":0},{"$f":"[1]Personnel!Z506","v":0},0,0,0,0,null,null,null,null,null,null,null,null,null,null,null,null,null,null,null,null,null,null,null,null,null,null,null,null,null,{"$f":"[1]Personnel!G506","v":0}]
[0,{"$f":"IFERROR(INDEX(Settings!$AP$17:$AP$38,MATCH(Personnel!$G507,Settings!$AQ$17:$AQ$38,0)),0)","v":0},null,null,null,{"$f":"[1]Personnel!F507","v":0},{"$f":"IFERROR(INDEX((SLevel),MATCH(Personnel!BA507,SLevel202223,0)),0)","v":0},{"$f":"[1]Personnel!H507","v":0},{"$f":"[1]Personnel!I507","v":0},{"$f":"[1]Personnel!J507","v":0},{"$f":"[1]Personnel!P507","v":0},{"$f":"[1]Personnel!Q507","v":0},0,{"$f":"[1]Personnel!S507","v":0},{"$f":"[1]Personnel!S507","v":0},{"$f":"[1]Personnel!S507","v":0},{"$f":"[1]Personnel!T507","v":0},0,{"$f":"[1]Personnel!V507","v":0},{"$f":"[1]Personnel!W507","v":0},0,{"$f":"[1]Personnel!Y507","v":0},{"$f":"[1]Personnel!Z507","v":0},0,0,0,0,null,null,null,null,null,null,null,null,null,null,null,null,null,null,null,null,null,null,null,null,null,null,null,null,null,{"$f":"[1]Personnel!G507","v":0}]
[0,{"$f":"IFERROR(INDEX(Settings!$AP$17:$AP$38,MATCH(Personnel!$G508,Settings!$AQ$17:$AQ$38,0)),0)","v":0},null,null,null,{"$f":"[1]Personnel!F508","v":0},{"$f":"IFERROR(INDEX((SLevel),MATCH(Personnel!BA508,SLevel202223,0)),0)","v":0},{"$f":"[1]Personnel!H508","v":0},{"$f":"[1]Personnel!I508","v":0},{"$f":"[1]Personnel!J508","v":0},{"$f":"[1]Personnel!P508","v":0},{"$f":"[1]Personnel!Q508","v":0},0,{"$f":"[1]Personnel!S508","v":0},{"$f":"[1]Personnel!S508","v":0},{"$f":"[1]Personnel!S508","v":0},{"$f":"[1]Personnel!T508","v":0},0,{"$f":"[1]Personnel!V508","v":0},{"$f":"[1]Personnel!W508","v":0},0,{"$f":"[1]Personnel!Y508","v":0},{"$f":"[1]Personnel!Z508","v":0},0,0,0,0,null,null,null,null,null,null,null,null,null,null,null,null,null,null,null,null,null,null,null,null,null,null,null,null,null,{"$f":"[1]Personnel!G508","v":0}]
[0,{"$f":"IFERROR(INDEX(Settings!$AP$17:$AP$38,MATCH(Personnel!$G509,Settings!$AQ$17:$AQ$38,0)),0)","v":0},null,null,null,{"$f":"[1]Personnel!F509","v":0},{"$f":"IFERROR(INDEX((SLevel),MATCH(Personnel!BA509,SLevel202223,0)),0)","v":0},{"$f":"[1]Personnel!H509","v":0},{"$f":"[1]Personnel!I509","v":0},{"$f":"[1]Personnel!J509","v":0},{"$f":"[1]Personnel!P509","v":0},{"$f":"[1]Personnel!Q509","v":0},0,{"$f":"[1]Personnel!S509","v":0},{"$f":"[1]Personnel!S509","v":0},{"$f":"[1]Personnel!S509","v":0},{"$f":"[1]Personnel!T509","v":0},0,{"$f":"[1]Personnel!V509","v":0},{"$f":"[1]Personnel!W509","v":0},0,{"$f":"[1]Personnel!Y509","v":0},{"$f":"[1]Personnel!Z509","v":0},0,0,0,0,null,null,null,null,null,null,null,null,null,null,null,null,null,null,null,null,null,null,null,null,null,null,null,null,null,{"$f":"[1]Personnel!G509","v":0}]
[0,{"$f":"IFERROR(INDEX(Settings!$AP$17:$AP$38,MATCH(Personnel!$G510,Settings!$AQ$17:$AQ$38,0)),0)","v":0},null,null,null,{"$f":"[1]Personnel!F510","v":0},{"$f":"IFERROR(INDEX((SLevel),MATCH(Personnel!BA510,SLevel202223,0)),0)","v":0},{"$f":"[1]Personnel!H510","v":0},{"$f":"[1]Personnel!I510","v":0},{"$f":"[1]Personnel!J510","v":0},{"$f":"[1]Personnel!P510","v":0},{"$f":"[1]Personnel!Q510","v":0},0,{"$f":"[1]Personnel!S510","v":0},{"$f":"[1]Personnel!S510","v":0},{"$f":"[1]Personnel!S510","v":0},{"$f":"[1]Personnel!T510","v":0},0,{"$f":"[1]Personnel!V510","v":0},{"$f":"[1]Personnel!W510","v":0},0,{"$f":"[1]Personnel!Y510","v":0},{"$f":"[1]Personnel!Z510","v":0},0,0,0,0,null,null,null,null,null,null,null,null,null,null,null,null,null,null,null,null,null,null,null,null,null,null,null,null,null,{"$f":"[1]Personnel!G510","v":0}]
[0,{"$f":"IFERROR(INDEX(Settings!$AP$17:$AP$38,MATCH(Personnel!$G511,Settings!$AQ$17:$AQ$38,0)),0)","v":0},null,null,null,{"$f":"[1]Personnel!F511","v":0},{"$f":"IFERROR(INDEX((SLevel),MATCH(Personnel!BA511,SLevel202223,0)),0)","v":0},{"$f":"[1]Personnel!H511","v":0},{"$f":"[1]Personnel!I511","v":0},{"$f":"[1]Personnel!J511","v":0},{"$f":"[1]Personnel!P511","v":0},{"$f":"[1]Personnel!Q511","v":0},0,{"$f":"[1]Personnel!S511","v":0},{"$f":"[1]Personnel!S511","v":0},{"$f":"[1]Personnel!S511","v":0},{"$f":"[1]Personnel!T511","v":0},0,{"$f":"[1]Personnel!V511","v":0},{"$f":"[1]Personnel!W511","v":0},0,{"$f":"[1]Personnel!Y511","v":0},{"$f":"[1]Personnel!Z511","v":0},0,0,0,0,null,null,null,null,null,null,null,null,null,null,null,null,null,null,null,null,null,null,null,null,null,null,null,null,null,{"$f":"[1]Personnel!G511","v":0}]
[0,{"$f":"IFERROR(INDEX(Settings!$AP$17:$AP$38,MATCH(Personnel!$G512,Settings!$AQ$17:$AQ$38,0)),0)","v":0},null,null,null,{"$f":"[1]Personnel!F512","v":0},{"$f":"IFERROR(INDEX((SLevel),MATCH(Personnel!BA512,SLevel202223,0)),0)","v":0},{"$f":"[1]Personnel!H512","v":0},{"$f":"[1]Personnel!I512","v":0},{"$f":"[1]Personnel!J512","v":0},{"$f":"[1]Personnel!P512","v":0},{"$f":"[1]Personnel!Q512","v":0},0,{"$f":"[1]Personnel!S512","v":0},{"$f":"[1]Personnel!S512","v":0},{"$f":"[1]Personnel!S512","v":0},{"$f":"[1]Personnel!T512","v":0},0,{"$f":"[1]Personnel!V512","v":0},{"$f":"[1]Personnel!W512","v":0},0,{"$f":"[1]Personnel!Y512","v":0},{"$f":"[1]Personnel!Z512","v":0},0,0,0,0,null,null,null,null,null,null,null,null,null,null,null,null,null,null,null,null,null,null,null,null,null,null,null,null,null,{"$f":"[1]Personnel!G512","v":0}]
[0,{"$f":"IFERROR(INDEX(Settings!$AP$17:$AP$38,MATCH(Personnel!$G513,Settings!$AQ$17:$AQ$38,0)),0)","v":0},null,null,null,{"$f":"[1]Personnel!F513","v":0},{"$f":"IFERROR(INDEX((SLevel),MATCH(Personnel!BA513,SLevel202223,0)),0)","v":0},{"$f":"[1]Personnel!H513","v":0},{"$f":"[1]Personnel!I513","v":0},{"$f":"[1]Personnel!J513","v":0},{"$f":"[1]Personnel!P513","v":0},{"$f":"[1]Personnel!Q513","v":0},0,{"$f":"[1]Personnel!S513","v":0},{"$f":"[1]Personnel!S513","v":0},{"$f":"[1]Personnel!S513","v":0},{"$f":"[1]Personnel!T513","v":0},0,{"$f":"[1]Personnel!V513","v":0},{"$f":"[1]Personnel!W513","v":0},0,{"$f":"[1]Personnel!Y513","v":0},{"$f":"[1]Personnel!Z513","v":0},0,0,0,0,null,null,null,null,null,null,null,null,null,null,null,null,null,null,null,null,null,null,null,null,null,null,null,null,null,{"$f":"[1]Personnel!G513","v":0}]
[0,{"$f":"IFERROR(INDEX(Settings!$AP$17:$AP$38,MATCH(Personnel!$G514,Settings!$AQ$17:$AQ$38,0)),0)","v":0},null,null,null,{"$f":"[1]Personnel!F514","v":0},{"$f":"IFERROR(INDEX((SLevel),MATCH(Personnel!BA514,SLevel202223,0)),0)","v":0},{"$f":"[1]Personnel!H514","v":0},{"$f":"[1]Personnel!I514","v":0},{"$f":"[1]Personnel!J514","v":0},{"$f":"[1]Personnel!P514","v":0},{"$f":"[1]Personnel!Q514","v":0},0,{"$f":"[1]Personnel!S514","v":0},{"$f":"[1]Personnel!S514","v":0},{"$f":"[1]Personnel!S514","v":0},{"$f":"[1]Personnel!T514","v":0},0,{"$f":"[1]Personnel!V514","v":0},{"$f":"[1]Personnel!W514","v":0},0,{"$f":"[1]Personnel!Y514","v":0},{"$f":"[1]Personnel!Z514","v":0},0,0,0,0,null,null,null,null,null,null,null,null,null,null,null,null,null,null,null,null,null,null,null,null,null,null,null,null,null,{"$f":"[1]Personnel!G514","v":0}]
[0,{"$f":"IFERROR(INDEX(Settings!$AP$17:$AP$38,MATCH(Personnel!$G515,Settings!$AQ$17:$AQ$38,0)),0)","v":0},null,null,null,{"$f":"[1]Personnel!F515","v":0},{"$f":"IFERROR(INDEX((SLevel),MATCH(Personnel!BA515,SLevel202223,0)),0)","v":0},{"$f":"[1]Personnel!H515","v":0},{"$f":"[1]Personnel!I515","v":0},{"$f":"[1]Personnel!J515","v":0},{"$f":"[1]Personnel!P515","v":0},{"$f":"[1]Personnel!Q515","v":0},0,{"$f":"[1]Personnel!S515","v":0},{"$f":"[1]Personnel!S515","v":0},{"$f":"[1]Personnel!S515","v":0},{"$f":"[1]Personnel!T515","v":0},0,{"$f":"[1]Personnel!V515","v":0},{"$f":"[1]Personnel!W515","v":0},0,{"$f":"[1]Personnel!Y515","v":0},{"$f":"[1]Personnel!Z515","v":0},0,0,0,0,null,null,null,null,null,null,null,null,null,null,null,null,null,null,null,null,null,null,null,null,null,null,null,null,null,{"$f":"[1]Personnel!G515","v":0}]
[0,{"$f":"IFERROR(INDEX(Settings!$AP$17:$AP$38,MATCH(Personnel!$G516,Settings!$AQ$17:$AQ$38,0)),0)","v":0},null,null,null,{"$f":"[1]Personnel!F516","v":0},{"$f":"IFERROR(INDEX((SLevel),MATCH(Personnel!BA516,SLevel202223,0)),0)","v":0},{"$f":"[1]Personnel!H516","v":0},{"$f":"[1]Personnel!I516","v":0},{"$f":"[1]Personnel!J516","v":0},{"$f":"[1]Personnel!P516","v":0},{"$f":"[1]Personnel!Q516","v":0},0,{"$f":"[1]Personnel!S516","v":0},{"$f":"[1]Personnel!S516","v":0},{"$f":"[1]Personnel!S516","v":0},{"$f":"[1]Personnel!T516","v":0},0,{"$f":"[1]Personnel!V516","v":0},{"$f":"[1]Personnel!W516","v":0},0,{"$f":"[1]Personnel!Y516","v":0},{"$f":"[1]Personnel!Z516","v":0},0,0,0,0,null,null,null,null,null,null,null,null,null,null,null,null,null,null,null,null,null,null,null,null,null,null,null,null,null,{"$f":"[1]Personnel!G516","v":0}]
[0,{"$f":"IFERROR(INDEX(Settings!$AP$17:$AP$38,MATCH(Personnel!$G517,Settings!$AQ$17:$AQ$38,0)),0)","v":0},null,null,null,{"$f":"[1]Personnel!F517","v":0},{"$f":"IFERROR(INDEX((SLevel),MATCH(Personnel!BA517,SLevel202223,0)),0)","v":0},{"$f":"[1]Personnel!H517","v":0},{"$f":"[1]Personnel!I517","v":0},{"$f":"[1]Personnel!J517","v":0},{"$f":"[1]Personnel!P517","v":0},{"$f":"[1]Personnel!Q517","v":0},0,{"$f":"[1]Personnel!S517","v":0},{"$f":"[1]Personnel!S517","v":0},{"$f":"[1]Personnel!S517","v":0},{"$f":"[1]Personnel!T517","v":0},0,{"$f":"[1]Personnel!V517","v":0},{"$f":"[1]Personnel!W517","v":0},0,{"$f":"[1]Personnel!Y517","v":0},{"$f":"[1]Personnel!Z517","v":0},0,0,0,0,null,null,null,null,null,null,null,null,null,null,null,null,null,null,null,null,null,null,null,null,null,null,null,null,null,{"$f":"[1]Personnel!G517","v":0}]
[0,{"$f":"IFERROR(INDEX(Settings!$AP$17:$AP$38,MATCH(Personnel!$G518,Settings!$AQ$17:$AQ$38,0)),0)","v":0},null,null,null,{"$f":"[1]Personnel!F518","v":0},{"$f":"IFERROR(INDEX((SLevel),MATCH(Personnel!BA518,SLevel202223,0)),0)","v":0},{"$f":"[1]Personnel!H518","v":0},{"$f":"[1]Personnel!I518","v":0},{"$f":"[1]Personnel!J518","v":0},{"$f":"[1]Personnel!P518","v":0},{"$f":"[1]Personnel!Q518","v":0},0,{"$f":"[1]Personnel!S518","v":0},{"$f":"[1]Personnel!S518","v":0},{"$f":"[1]Personnel!S518","v":0},{"$f":"[1]Personnel!T518","v":0},0,{"$f":"[1]Personnel!V518","v":0},{"$f":"[1]Personnel!W518","v":0},0,{"$f":"[1]Personnel!Y518","v":0},{"$f":"[1]Personnel!Z518","v":0},0,0,0,0,null,null,null,null,null,null,null,null,null,null,null,null,null,null,null,null,null,null,null,null,null,null,null,null,null,{"$f":"[1]Personnel!G518","v":0}]
[0,{"$f":"IFERROR(INDEX(Settings!$AP$17:$AP$38,MATCH(Personnel!$G519,Settings!$AQ$17:$AQ$38,0)),0)","v":0},null,null,null,{"$f":"[1]Personnel!F519","v":0},{"$f":"IFERROR(INDEX((SLevel),MATCH(Personnel!BA519,SLevel202223,0)),0)","v":0},{"$f":"[1]Personnel!H519","v":0},{"$f":"[1]Personnel!I519","v":0},{"$f":"[1]Personnel!J519","v":0},{"$f":"[1]Personnel!P519","v":0},{"$f":"[1]Personnel!Q519","v":0},0,{"$f":"[1]Personnel!S519","v":0},{"$f":"[1]Personnel!S519","v":0},{"$f":"[1]Personnel!S519","v":0},{"$f":"[1]Personnel!T519","v":0},0,{"$f":"[1]Personnel!V519","v":0},{"$f":"[1]Personnel!W519","v":0},0,{"$f":"[1]Personnel!Y519","v":0},{"$f":"[1]Personnel!Z519","v":0},0,0,0,0,null,null,null,null,null,null,null,null,null,null,null,null,null,null,null,null,null,null,null,null,null,null,null,null,null,{"$f":"[1]Personnel!G519","v":0}]
[0,{"$f":"IFERROR(INDEX(Settings!$AP$17:$AP$38,MATCH(Personnel!$G520,Settings!$AQ$17:$AQ$38,0)),0)","v":0},null,null,null,{"$f":"[1]Personnel!F520","v":0},{"$f":"IFERROR(INDEX((SLevel),MATCH(Personnel!BA520,SLevel202223,0)),0)","v":0},{"$f":"[1]Personnel!H520","v":0},{"$f":"[1]Personnel!I520","v":0},{"$f":"[1]Personnel!J520","v":0},{"$f":"[1]Personnel!P520","v":0},{"$f":"[1]Personnel!Q520","v":0},0,{"$f":"[1]Personnel!S520","v":0},{"$f":"[1]Personnel!S520","v":0},{"$f":"[1]Personnel!S520","v":0},{"$f":"[1]Personnel!T520","v":0},0,{"$f":"[1]Personnel!V520","v":0},{"$f":"[1]Personnel!W520","v":0},0,{"$f":"[1]Personnel!Y520","v":0},{"$f":"[1]Personnel!Z520","v":0},0,0,0,0,null,null,null,null,null,null,null,null,null,null,null,null,null,null,null,null,null,null,null,null,null,null,null,null,null,{"$f":"[1]Personnel!G520","v":0}]
[0,{"$f":"IFERROR(INDEX(Settings!$AP$17:$AP$38,MATCH(Personnel!$G521,Settings!$AQ$17:$AQ$38,0)),0)","v":0},null,null,null,{"$f":"[1]Personnel!F521","v":0},{"$f":"IFERROR(INDEX((SLevel),MATCH(Personnel!BA521,SLevel202223,0)),0)","v":0},{"$f":"[1]Personnel!H521","v":0},{"$f":"[1]Personnel!I521","v":0},{"$f":"[1]Personnel!J521","v":0},{"$f":"[1]Personnel!P521","v":0},{"$f":"[1]Personnel!Q521","v":0},0,{"$f":"[1]Personnel!S521","v":0},{"$f":"[1]Personnel!S521","v":0},{"$f":"[1]Personnel!S521","v":0},{"$f":"[1]Personnel!T521","v":0},0,{"$f":"[1]Personnel!V521","v":0},{"$f":"[1]Personnel!W521","v":0},0,{"$f":"[1]Personnel!Y521","v":0},{"$f":"[1]Personnel!Z521","v":0},0,0,0,0,null,null,null,null,null,null,null,null,null,null,null,null,null,null,null,null,null,null,null,null,null,null,null,null,null,{"$f":"[1]Personnel!G521","v":0}]
[0,{"$f":"IFERROR(INDEX(Settings!$AP$17:$AP$38,MATCH(Personnel!$G522,Settings!$AQ$17:$AQ$38,0)),0)","v":0},null,null,null,{"$f":"[1]Personnel!F522","v":0},{"$f":"IFERROR(INDEX((SLevel),MATCH(Personnel!BA522,SLevel202223,0)),0)","v":0},{"$f":"[1]Personnel!H522","v":0},{"$f":"[1]Personnel!I522","v":0},{"$f":"[1]Personnel!J522","v":0},{"$f":"[1]Personnel!P522","v":0},{"$f":"[1]Personnel!Q522","v":0},0,{"$f":"[1]Personnel!S522","v":0},{"$f":"[1]Personnel!S522","v":0},{"$f":"[1]Personnel!S522","v":0},{"$f":"[1]Personnel!T522","v":0},0,{"$f":"[1]Personnel!V522","v":0},{"$f":"[1]Personnel!W522","v":0},0,{"$f":"[1]Personnel!Y522","v":0},{"$f":"[1]Personnel!Z522","v":0},0,0,0,0,null,null,null,null,null,null,null,null,null,null,null,null,null,null,null,null,null,null,null,null,null,null,null,null,null,{"$f":"[1]Personnel!G522","v":0}]
[0,{"$f":"IFERROR(INDEX(Settings!$AP$17:$AP$38,MATCH(Personnel!$G523,Settings!$AQ$17:$AQ$38,0)),0)","v":0},null,null,null,{"$f":"[1]Personnel!F523","v":0},{"$f":"IFERROR(INDEX((SLevel),MATCH(Personnel!BA523,SLevel202223,0)),0)","v":0},{"$f":"[1]Personnel!H523","v":0},{"$f":"[1]Personnel!I523","v":0},{"$f":"[1]Personnel!J523","v":0},{"$f":"[1]Personnel!P523","v":0},{"$f":"[1]Personnel!Q523","v":0},0,{"$f":"[1]Personnel!S523","v":0},{"$f":"[1]Personnel!S523","v":0},{"$f":"[1]Personnel!S523","v":0},{"$f":"[1]Personnel!T523","v":0},0,{"$f":"[1]Personnel!V523","v":0},{"$f":"[1]Personnel!W523","v":0},0,{"$f":"[1]Personnel!Y523","v":0},{"$f":"[1]Personnel!Z523","v":0},0,0,0,0,null,null,null,null,null,null,null,null,null,null,null,null,null,null,null,null,null,null,null,null,null,null,null,null,null,{"$f":"[1]Personnel!G523","v":0}]
[{"$f":"IF(SUM(K524:AA524)>0,1,0)","v":0},{"$f":"IFERROR(INDEX(Settings!$AP$17:$AP$38,MATCH(Personnel!$G524,Settings!$AQ$17:$AQ$38,0)),0)","v":0},null,null,null,{"$f":"[1]Personnel!F524","v":0},{"$f":"IFERROR(INDEX((SLevel),MATCH(Personnel!BA524,SLevel202223,0)),0)","v":0},{"$f":"[1]Personnel!H524","v":0},{"$f":"[1]Personnel!I524","v":0},{"$f":"[1]Personnel!J524","v":0},{"$f":"[1]Personnel!P524","v":0},{"$f":"[1]Personnel!Q524","v":0},0,{"$f":"[1]Personnel!S524","v":0},{"$f":"[1]Personnel!S524","v":0},{"$f":"[1]Personnel!S524","v":0},{"$f":"[1]Personnel!T524","v":0},0,{"$f":"[1]Personnel!V524","v":0},{"$f":"[1]Personnel!W524","v":0},0,{"$f":"[1]Personnel!Y524","v":0},{"$f":"[1]Personnel!Z524","v":0},0,0,0,0,null,null,null,null,null,null,null,null,null,null,null,null,null,null,null,null,null,null,null,null,null,null,null,null,null,{"$f":"[1]Personnel!G524","v":0}]
[0,{"$f":"IFERROR(INDEX(Settings!$AP$17:$AP$38,MATCH(Personnel!$G525,Settings!$AQ$17:$AQ$38,0)),0)","v":0},null,null,null,{"$f":"[1]Personnel!F525","v":0},{"$f":"IFERROR(INDEX((SLevel),MATCH(Personnel!BA525,SLevel202223,0)),0)","v":0},{"$f":"[1]Personnel!H525","v":0},{"$f":"[1]Personnel!I525","v":0},{"$f":"[1]Personnel!J525","v":0},{"$f":"[1]Personnel!P525","v":0},{"$f":"[1]Personnel!Q525","v":0},{"$f":"ROUND(IF(ISERROR(L525/K525),0,(L525/K525)),0)","v":0},{"$f":"[1]Personnel!S525","v":0},{"$f":"[1]Personnel!S525","v":0},{"$f":"[1]Personnel!S525","v":0},{"$f":"[1]Personnel!T525","v":0},{"$f":"ROUND(IF(ISERROR(Q525/P525),0,(Q525/P525)),0)","v":0},{"$f":"[1]Personnel!V525","v":0},{"$f":"[1]Personnel!W525","v":0},{"$f":"ROUND(IF(ISERROR(T525/S525),0,(T525/S525)),0)","v":0},{"$f":"[1]Personnel!Y525","v":0},{"$f":"[1]Personnel!Z525","v":0},{"$f":"ROUND(IF(ISERROR(W525/V525),0,(W525/V525)),0)","v":0},0,0,{"$f":"ROUND(IF(ISERROR(Z525/Y525),0,(Z525/Y525)),0)","v":0},null,null,null,null,null,null,null,null,null,null,null,null,null,null,null,null,null,null,null,null,null,null,null,null,null,{"$f":"[1]Personnel!G525","v":0}]
[0,{"$f":"IFERROR(INDEX(Settings!$AP$17:$AP$38,MATCH(Personnel!$G526,Settings!$AQ$17:$AQ$38,0)),0)","v":0},null,null,null,{"$f":"[1]Personnel!F526","v":0},{"$f":"IFERROR(INDEX((SLevel),MATCH(Personnel!BA526,SLevel202223,0)),0)","v":0},{"$f":"[1]Personnel!H526","v":0},{"$f":"[1]Personnel!I526","v":0},{"$f":"[1]Personnel!J526","v":0},{"$f":"[1]Personnel!P526","v":0},{"$f":"[1]Personnel!Q526","v":0},0,{"$f":"[1]Personnel!S526","v":0},{"$f":"[1]Personnel!S526","v":0},{"$f":"[1]Personnel!S526","v":0},{"$f":"[1]Personnel!T526","v":0},0,{"$f":"[1]Personnel!V526","v":0},{"$f":"[1]Personnel!W526","v":0},0,{"$f":"[1]Personnel!Y526","v":0},{"$f":"[1]Personnel!Z526","v":0},0,0,0,0,null,null,null,null,null,null,null,null,null,null,null,null,null,null,null,null,null,null,null,null,null,null,null,null,null,{"$f":"[1]Personnel!G526","v":0}]
[0,{"$f":"IFERROR(INDEX(Settings!$AP$17:$AP$38,MATCH(Personnel!$G527,Settings!$AQ$17:$AQ$38,0)),0)","v":0},null,null,null,{"$f":"[1]Personnel!F527","v":0},{"$f":"IFERROR(INDEX((SLevel),MATCH(Personnel!BA527,SLevel202223,0)),0)","v":0},{"$f":"[1]Personnel!H527","v":0},{"$f":"[1]Personnel!I527","v":0},{"$f":"[1]Personnel!J527","v":0},{"$f":"[1]Personnel!P527","v":0},{"$f":"[1]Personnel!Q527","v":0},0,{"$f":"[1]Personnel!S527","v":0},{"$f":"[1]Personnel!S527","v":0},{"$f":"[1]Personnel!S527","v":0},{"$f":"[1]Personnel!T527","v":0},0,{"$f":"[1]Personnel!V527","v":0},{"$f":"[1]Personnel!W527","v":0},0,{"$f":"[1]Personnel!Y527","v":0},{"$f":"[1]Personnel!Z527","v":0},0,0,0,0,null,null,null,null,null,null,null,null,null,null,null,null,null,null,null,null,null,null,null,null,null,null,null,null,null,{"$f":"[1]Personnel!G527","v":0}]
[0,{"$f":"IFERROR(INDEX(Settings!$AP$17:$AP$38,MATCH(Personnel!$G528,Settings!$AQ$17:$AQ$38,0)),0)","v":0},null,null,null,{"$f":"[1]Personnel!F528","v":0},{"$f":"IFERROR(INDEX((SLevel),MATCH(Personnel!BA528,SLevel202223,0)),0)","v":0},{"$f":"[1]Personnel!H528","v":0},{"$f":"[1]Personnel!I528","v":0},{"$f":"[1]Personnel!J528","v":0},{"$f":"[1]Personnel!P528","v":0},{"$f":"[1]Personnel!Q528","v":0},0,{"$f":"[1]Personnel!S528","v":0},{"$f":"[1]Personnel!S528","v":0},{"$f":"[1]Personnel!S528","v":0},{"$f":"[1]Personnel!T528","v":0},0,{"$f":"[1]Personnel!V528","v":0},{"$f":"[1]Personnel!W528","v":0},0,{"$f":"[1]Personnel!Y528","v":0},{"$f":"[1]Personnel!Z528","v":0},0,0,0,0,null,null,null,null,null,null,null,null,null,null,null,null,null,null,null,null,null,null,null,null,null,null,null,null,null,{"$f":"[1]Personnel!G528","v":0}]
[0,{"$f":"IFERROR(INDEX(Settings!$AP$17:$AP$38,MATCH(Personnel!$G529,Settings!$AQ$17:$AQ$38,0)),0)","v":0},null,null,null,{"$f":"[1]Personnel!F529","v":0},{"$f":"IFERROR(INDEX((SLevel),MATCH(Personnel!BA529,SLevel202223,0)),0)","v":0},{"$f":"[1]Personnel!H529","v":0},{"$f":"[1]Personnel!I529","v":0},{"$f":"[1]Personnel!J529","v":0},{"$f":"[1]Personnel!P529","v":0},{"$f":"[1]Personnel!Q529","v":0},0,{"$f":"[1]Personnel!S529","v":0},{"$f":"[1]Personnel!S529","v":0},{"$f":"[1]Personnel!S529","v":0},{"$f":"[1]Personnel!T529","v":0},0,{"$f":"[1]Personnel!V529","v":0},{"$f":"[1]Personnel!W529","v":0},0,{"$f":"[1]Personnel!Y529","v":0},{"$f":"[1]Personnel!Z529","v":0},0,0,0,0,null,null,null,null,null,null,null,null,null,null,null,null,null,null,null,null,null,null,null,null,null,null,null,null,null,{"$f":"[1]Personnel!G529","v":0}]
[0,{"$f":"IFERROR(INDEX(Settings!$AP$17:$AP$38,MATCH(Personnel!$G530,Settings!$AQ$17:$AQ$38,0)),0)","v":0},null,null,null,{"$f":"[1]Personnel!F530","v":0},{"$f":"IFERROR(INDEX((SLevel),MATCH(Personnel!BA530,SLevel202223,0)),0)","v":0},{"$f":"[1]Personnel!H530","v":0},{"$f":"[1]Personnel!I530","v":0},{"$f":"[1]Personnel!J530","v":0},{"$f":"[1]Personnel!P530","v":0},{"$f":"[1]Personnel!Q530","v":0},0,{"$f":"[1]Personnel!S530","v":0},{"$f":"[1]Personnel!S530","v":0},{"$f":"[1]Personnel!S530","v":0},{"$f":"[1]Personnel!T530","v":0},0,{"$f":"[1]Personnel!V530","v":0},{"$f":"[1]Personnel!W530","v":0},0,{"$f":"[1]Personnel!Y530","v":0},{"$f":"[1]Personnel!Z530","v":0},0,0,0,0,null,null,null,null,null,null,null,null,null,null,null,null,null,null,null,null,null,null,null,null,null,null,null,null,null,{"$f":"[1]Personnel!G530","v":0}]
[0,{"$f":"IFERROR(INDEX(Settings!$AP$17:$AP$38,MATCH(Personnel!$G531,Settings!$AQ$17:$AQ$38,0)),0)","v":0},null,null,null,{"$f":"[1]Personnel!F531","v":0},{"$f":"IFERROR(INDEX((SLevel),MATCH(Personnel!BA531,SLevel202223,0)),0)","v":0},{"$f":"[1]Personnel!H531","v":0},{"$f":"[1]Personnel!I531","v":0},{"$f":"[1]Personnel!J531","v":0},{"$f":"[1]Personnel!P531","v":0},{"$f":"[1]Personnel!Q531","v":0},0,{"$f":"[1]Personnel!S531","v":0},{"$f":"[1]Personnel!S531","v":0},{"$f":"[1]Personnel!S531","v":0},{"$f":"[1]Personnel!T531","v":0},0,{"$f":"[1]Personnel!V531","v":0},{"$f":"[1]Personnel!W531","v":0},0,{"$f":"[1]Personnel!Y531","v":0},{"$f":"[1]Personnel!Z531","v":0},0,0,0,0,null,null,null,null,null,null,null,null,null,null,null,null,null,null,null,null,null,null,null,null,null,null,null,null,null,{"$f":"[1]Personnel!G531","v":0}]
[0,{"$f":"IFERROR(INDEX(Settings!$AP$17:$AP$38,MATCH(Personnel!$G532,Settings!$AQ$17:$AQ$38,0)),0)","v":0},null,null,null,{"$f":"[1]Personnel!F532","v":0},{"$f":"IFERROR(INDEX((SLevel),MATCH(Personnel!BA532,SLevel202223,0)),0)","v":0},{"$f":"[1]Personnel!H532","v":0},{"$f":"[1]Personnel!I532","v":0},{"$f":"[1]Personnel!J532","v":0},{"$f":"[1]Personnel!P532","v":0},{"$f":"[1]Personnel!Q532","v":0},0,{"$f":"[1]Personnel!S532","v":0},{"$f":"[1]Personnel!S532","v":0},{"$f":"[1]Personnel!S532","v":0},{"$f":"[1]Personnel!T532","v":0},0,{"$f":"[1]Personnel!V532","v":0},{"$f":"[1]Personnel!W532","v":0},0,{"$f":"[1]Personnel!Y532","v":0},{"$f":"[1]Personnel!Z532","v":0},0,0,0,0,null,null,null,null,null,null,null,null,null,null,null,null,null,null,null,null,null,null,null,null,null,null,null,null,null,{"$f":"[1]Personnel!G532","v":0}]
[0,{"$f":"IFERROR(INDEX(Settings!$AP$17:$AP$38,MATCH(Personnel!$G533,Settings!$AQ$17:$AQ$38,0)),0)","v":0},null,null,null,{"$f":"[1]Personnel!F533","v":0},{"$f":"IFERROR(INDEX((SLevel),MATCH(Personnel!BA533,SLevel202223,0)),0)","v":0},{"$f":"[1]Personnel!H533","v":0},{"$f":"[1]Personnel!I533","v":0},{"$f":"[1]Personnel!J533","v":0},{"$f":"[1]Personnel!P533","v":0},{"$f":"[1]Personnel!Q533","v":0},0,{"$f":"[1]Personnel!S533","v":0},{"$f":"[1]Personnel!S533","v":0},{"$f":"[1]Personnel!S533","v":0},{"$f":"[1]Personnel!T533","v":0},0,{"$f":"[1]Personnel!V533","v":0},{"$f":"[1]Personnel!W533","v":0},0,{"$f":"[1]Personnel!Y533","v":0},{"$f":"[1]Personnel!Z533","v":0},0,0,0,0,null,null,null,null,null,null,null,null,null,null,null,null,null,null,null,null,null,null,null,null,null,null,null,null,null,{"$f":"[1]Personnel!G533","v":0}]
[0,{"$f":"IFERROR(INDEX(Settings!$AP$17:$AP$38,MATCH(Personnel!$G534,Settings!$AQ$17:$AQ$38,0)),0)","v":0},null,null,null,{"$f":"[1]Personnel!F534","v":0},{"$f":"IFERROR(INDEX((SLevel),MATCH(Personnel!BA534,SLevel202223,0)),0)","v":0},{"$f":"[1]Personnel!H534","v":0},{"$f":"[1]Personnel!I534","v":0},{"$f":"[1]Personnel!J534","v":0},{"$f":"[1]Personnel!P534","v":0},{"$f":"[1]Personnel!Q534","v":0},0,{"$f":"[1]Personnel!S534","v":0},{"$f":"[1]Personnel!S534","v":0},{"$f":"[1]Personnel!S534","v":0},{"$f":"[1]Personnel!T534","v":0},0,{"$f":"[1]Personnel!V534","v":0},{"$f":"[1]Personnel!W534","v":0},0,{"$f":"[1]Personnel!Y534","v":0},{"$f":"[1]Personnel!Z534","v":0},0,0,0,0,null,null,null,null,null,null,null,null,null,null,null,null,null,null,null,null,null,null,null,null,null,null,null,null,null,{"$f":"[1]Personnel!G534","v":0}]
[0,{"$f":"IFERROR(INDEX(Settings!$AP$17:$AP$38,MATCH(Personnel!$G535,Settings!$AQ$17:$AQ$38,0)),0)","v":0},null,null,null,{"$f":"[1]Personnel!F535","v":0},{"$f":"IFERROR(INDEX((SLevel),MATCH(Personnel!BA535,SLevel202223,0)),0)","v":0},{"$f":"[1]Personnel!H535","v":0},{"$f":"[1]Personnel!I535","v":0},{"$f":"[1]Personnel!J535","v":0},{"$f":"[1]Personnel!P535","v":0},{"$f":"[1]Personnel!Q535","v":0},0,{"$f":"[1]Personnel!S535","v":0},{"$f":"[1]Personnel!S535","v":0},{"$f":"[1]Personnel!S535","v":0},{"$f":"[1]Personnel!T535","v":0},0,{"$f":"[1]Personnel!V535","v":0},{"$f":"[1]Personnel!W535","v":0},0,{"$f":"[1]Personnel!Y535","v":0},{"$f":"[1]Personnel!Z535","v":0},0,0,0,0,null,null,null,null,null,null,null,null,null,null,null,null,null,null,null,null,null,null,null,null,null,null,null,null,null,{"$f":"[1]Personnel!G535","v":0}]
[0,{"$f":"IFERROR(INDEX(Settings!$AP$17:$AP$38,MATCH(Personnel!$G536,Settings!$AQ$17:$AQ$38,0)),0)","v":0},null,null,null,{"$f":"[1]Personnel!F536","v":0},{"$f":"IFERROR(INDEX((SLevel),MATCH(Personnel!BA536,SLevel202223,0)),0)","v":0},{"$f":"[1]Personnel!H536","v":0},{"$f":"[1]Personnel!I536","v":0},{"$f":"[1]Personnel!J536","v":0},{"$f":"[1]Personnel!P536","v":0},{"$f":"[1]Personnel!Q536","v":0},0,{"$f":"[1]Personnel!S536","v":0},{"$f":"[1]Personnel!S536","v":0},{"$f":"[1]Personnel!S536","v":0},{"$f":"[1]Personnel!T536","v":0},0,{"$f":"[1]Personnel!V536","v":0},{"$f":"[1]Personnel!W536","v":0},0,{"$f":"[1]Personnel!Y536","v":0},{"$f":"[1]Personnel!Z536","v":0},0,0,0,0,null,null,null,null,null,null,null,null,null,null,null,null,null,null,null,null,null,null,null,null,null,null,null,null,null,{"$f":"[1]Personnel!G536","v":0}]
[0,{"$f":"IFERROR(INDEX(Settings!$AP$17:$AP$38,MATCH(Personnel!$G537,Settings!$AQ$17:$AQ$38,0)),0)","v":0},null,null,null,{"$f":"[1]Personnel!F537","v":0},{"$f":"IFERROR(INDEX((SLevel),MATCH(Personnel!BA537,SLevel202223,0)),0)","v":0},{"$f":"[1]Personnel!H537","v":0},{"$f":"[1]Personnel!I537","v":0},{"$f":"[1]Personnel!J537","v":0},{"$f":"[1]Personnel!P537","v":0},{"$f":"[1]Personnel!Q537","v":0},0,{"$f":"[1]Personnel!S537","v":0},{"$f":"[1]Personnel!S537","v":0},{"$f":"[1]Personnel!S537","v":0},{"$f":"[1]Personnel!T537","v":0},0,{"$f":"[1]Personnel!V537","v":0},{"$f":"[1]Personnel!W537","v":0},0,{"$f":"[1]Personnel!Y537","v":0},{"$f":"[1]Personnel!Z537","v":0},0,0,0,0,null,null,null,null,null,null,null,null,null,null,null,null,null,null,null,null,null,null,null,null,null,null,null,null,null,{"$f":"[1]Personnel!G537","v":0}]
[0,{"$f":"IFERROR(INDEX(Settings!$AP$17:$AP$38,MATCH(Personnel!$G538,Settings!$AQ$17:$AQ$38,0)),0)","v":0},null,null,null,{"$f":"[1]Personnel!F538","v":0},{"$f":"IFERROR(INDEX((SLevel),MATCH(Personnel!BA538,SLevel202223,0)),0)","v":0},{"$f":"[1]Personnel!H538","v":0},{"$f":"[1]Personnel!I538","v":0},{"$f":"[1]Personnel!J538","v":0},{"$f":"[1]Personnel!P538","v":0},{"$f":"[1]Personnel!Q538","v":0},0,{"$f":"[1]Personnel!S538","v":0},{"$f":"[1]Personnel!S538","v":0},{"$f":"[1]Personnel!S538","v":0},{"$f":"[1]Personnel!T538","v":0},0,{"$f":"[1]Personnel!V538","v":0},{"$f":"[1]Personnel!W538","v":0},0,{"$f":"[1]Personnel!Y538","v":0},{"$f":"[1]Personnel!Z538","v":0},0,0,0,0,null,null,null,null,null,null,null,null,null,null,null,null,null,null,null,null,null,null,null,null,null,null,null,null,null,{"$f":"[1]Personnel!G538","v":0}]
[0,{"$f":"IFERROR(INDEX(Settings!$AP$17:$AP$38,MATCH(Personnel!$G539,Settings!$AQ$17:$AQ$38,0)),0)","v":0},null,null,null,{"$f":"[1]Personnel!F539","v":0},{"$f":"IFERROR(INDEX((SLevel),MATCH(Personnel!BA539,SLevel202223,0)),0)","v":0},{"$f":"[1]Personnel!H539","v":0},{"$f":"[1]Personnel!I539","v":0},{"$f":"[1]Personnel!J539","v":0},{"$f":"[1]Personnel!P539","v":0},{"$f":"[1]Personnel!Q539","v":0},0,{"$f":"[1]Personnel!S539","v":0},{"$f":"[1]Personnel!S539","v":0},{"$f":"[1]Personnel!S539","v":0},{"$f":"[1]Personnel!T539","v":0},0,{"$f":"[1]Personnel!V539","v":0},{"$f":"[1]Personnel!W539","v":0},0,{"$f":"[1]Personnel!Y539","v":0},{"$f":"[1]Personnel!Z539","v":0},0,0,0,0,null,null,null,null,null,null,null,null,null,null,null,null,null,null,null,null,null,null,null,null,null,null,null,null,null,{"$f":"[1]Personnel!G539","v":0}]
[0,{"$f":"IFERROR(INDEX(Settings!$AP$17:$AP$38,MATCH(Personnel!$G540,Settings!$AQ$17:$AQ$38,0)),0)","v":0},null,null,null,{"$f":"[1]Personnel!F540","v":0},{"$f":"IFERROR(INDEX((SLevel),MATCH(Personnel!BA540,SLevel202223,0)),0)","v":0},{"$f":"[1]Personnel!H540","v":0},{"$f":"[1]Personnel!I540","v":0},{"$f":"[1]Personnel!J540","v":0},{"$f":"[1]Personnel!P540","v":0},{"$f":"[1]Personnel!Q540","v":0},0,{"$f":"[1]Personnel!S540","v":0},{"$f":"[1]Personnel!S540","v":0},{"$f":"[1]Personnel!S540","v":0},{"$f":"[1]Personnel!T540","v":0},0,{"$f":"[1]Personnel!V540","v":0},{"$f":"[1]Personnel!W540","v":0},0,{"$f":"[1]Personnel!Y540","v":0},{"$f":"[1]Personnel!Z540","v":0},0,0,0,0,null,null,null,null,null,null,null,null,null,null,null,null,null,null,null,null,null,null,null,null,null,null,null,null,null,{"$f":"[1]Personnel!G540","v":0}]
[0,{"$f":"IFERROR(INDEX(Settings!$AP$17:$AP$38,MATCH(Personnel!$G541,Settings!$AQ$17:$AQ$38,0)),0)","v":0},null,null,null,{"$f":"[1]Personnel!F541","v":0},{"$f":"IFERROR(INDEX((SLevel),MATCH(Personnel!BA541,SLevel202223,0)),0)","v":0},{"$f":"[1]Personnel!H541","v":0},{"$f":"[1]Personnel!I541","v":0},{"$f":"[1]Personnel!J541","v":0},{"$f":"[1]Personnel!P541","v":0},{"$f":"[1]Personnel!Q541","v":0},0,{"$f":"[1]Personnel!S541","v":0},{"$f":"[1]Personnel!S541","v":0},{"$f":"[1]Personnel!S541","v":0},{"$f":"[1]Personnel!T541","v":0},0,{"$f":"[1]Personnel!V541","v":0},{"$f":"[1]Personnel!W541","v":0},0,{"$f":"[1]Personnel!Y541","v":0},{"$f":"[1]Personnel!Z541","v":0},0,0,0,0,null,null,null,null,null,null,null,null,null,null,null,null,null,null,null,null,null,null,null,null,null,null,null,null,null,{"$f":"[1]Personnel!G541","v":0}]
[0,{"$f":"IFERROR(INDEX(Settings!$AP$17:$AP$38,MATCH(Personnel!$G542,Settings!$AQ$17:$AQ$38,0)),0)","v":0},null,null,null,{"$f":"[1]Personnel!F542","v":0},{"$f":"IFERROR(INDEX((SLevel),MATCH(Personnel!BA542,SLevel202223,0)),0)","v":0},{"$f":"[1]Personnel!H542","v":0},{"$f":"[1]Personnel!I542","v":0},{"$f":"[1]Personnel!J542","v":0},{"$f":"[1]Personnel!P542","v":0},{"$f":"[1]Personnel!Q542","v":0},0,{"$f":"[1]Personnel!S542","v":0},{"$f":"[1]Personnel!S542","v":0},{"$f":"[1]Personnel!S542","v":0},{"$f":"[1]Personnel!T542","v":0},0,{"$f":"[1]Personnel!V542","v":0},{"$f":"[1]Personnel!W542","v":0},0,{"$f":"[1]Personnel!Y542","v":0},{"$f":"[1]Personnel!Z542","v":0},0,0,0,0,null,null,null,null,null,null,null,null,null,null,null,null,null,null,null,null,null,null,null,null,null,null,null,null,null,{"$f":"[1]Personnel!G542","v":0}]
[0,{"$f":"IFERROR(INDEX(Settings!$AP$17:$AP$38,MATCH(Personnel!$G543,Settings!$AQ$17:$AQ$38,0)),0)","v":0},null,null,null,{"$f":"[1]Personnel!F543","v":0},{"$f":"IFERROR(INDEX((SLevel),MATCH(Personnel!BA543,SLevel202223,0)),0)","v":0},{"$f":"[1]Personnel!H543","v":0},{"$f":"[1]Personnel!I543","v":0},{"$f":"[1]Personnel!J543","v":0},{"$f":"[1]Personnel!P543","v":0},{"$f":"[1]Personnel!Q543","v":0},0,{"$f":"[1]Personnel!S543","v":0},{"$f":"[1]Personnel!S543","v":0},{"$f":"[1]Personnel!S543","v":0},{"$f":"[1]Personnel!T543","v":0},0,{"$f":"[1]Personnel!V543","v":0},{"$f":"[1]Personnel!W543","v":0},0,{"$f":"[1]Personnel!Y543","v":0},{"$f":"[1]Personnel!Z543","v":0},0,0,0,0,null,null,null,null,null,null,null,null,null,null,null,null,null,null,null,null,null,null,null,null,null,null,null,null,null,{"$f":"[1]Personnel!G543","v":0}]
[0,{"$f":"IFERROR(INDEX(Settings!$AP$17:$AP$38,MATCH(Personnel!$G544,Settings!$AQ$17:$AQ$38,0)),0)","v":0},null,null,null,{"$f":"[1]Personnel!F544","v":0},{"$f":"IFERROR(INDEX((SLevel),MATCH(Personnel!BA544,SLevel202223,0)),0)","v":0},{"$f":"[1]Personnel!H544","v":0},{"$f":"[1]Personnel!I544","v":0},{"$f":"[1]Personnel!J544","v":0},{"$f":"[1]Personnel!P544","v":0},{"$f":"[1]Personnel!Q544","v":0},0,{"$f":"[1]Personnel!S544","v":0},{"$f":"[1]Personnel!S544","v":0},{"$f":"[1]Personnel!S544","v":0},{"$f":"[1]Personnel!T544","v":0},0,{"$f":"[1]Personnel!V544","v":0},{"$f":"[1]Personnel!W544","v":0},0,{"$f":"[1]Personnel!Y544","v":0},{"$f":"[1]Personnel!Z544","v":0},0,0,0,0,null,null,null,null,null,null,null,null,null,null,null,null,null,null,null,null,null,null,null,null,null,null,null,null,null,{"$f":"[1]Personnel!G544","v":0}]
[0,{"$f":"IFERROR(INDEX(Settings!$AP$17:$AP$38,MATCH(Personnel!$G545,Settings!$AQ$17:$AQ$38,0)),0)","v":0},null,null,null,{"$f":"[1]Personnel!F545","v":0},{"$f":"IFERROR(INDEX((SLevel),MATCH(Personnel!BA545,SLevel202223,0)),0)","v":0},{"$f":"[1]Personnel!H545","v":0},{"$f":"[1]Personnel!I545","v":0},{"$f":"[1]Personnel!J545","v":0},{"$f":"[1]Personnel!P545","v":0},{"$f":"[1]Personnel!Q545","v":0},0,{"$f":"[1]Personnel!S545","v":0},{"$f":"[1]Personnel!S545","v":0},{"$f":"[1]Personnel!S545","v":0},{"$f":"[1]Personnel!T545","v":0},0,{"$f":"[1]Personnel!V545","v":0},{"$f":"[1]Personnel!W545","v":0},0,{"$f":"[1]Personnel!Y545","v":0},{"$f":"[1]Personnel!Z545","v":0},0,0,0,0,null,null,null,null,null,null,null,null,null,null,null,null,null,null,null,null,null,null,null,null,null,null,null,null,null,{"$f":"[1]Personnel!G545","v":0}]
[0,{"$f":"IFERROR(INDEX(Settings!$AP$17:$AP$38,MATCH(Personnel!$G546,Settings!$AQ$17:$AQ$38,0)),0)","v":0},null,null,null,{"$f":"[1]Personnel!F546","v":0},{"$f":"IFERROR(INDEX((SLevel),MATCH(Personnel!BA546,SLevel202223,0)),0)","v":0},{"$f":"[1]Personnel!H546","v":0},{"$f":"[1]Personnel!I546","v":0},{"$f":"[1]Personnel!J546","v":0},{"$f":"[1]Personnel!P546","v":0},{"$f":"[1]Personnel!Q546","v":0},0,{"$f":"[1]Personnel!S546","v":0},{"$f":"[1]Personnel!S546","v":0},{"$f":"[1]Personnel!S546","v":0},{"$f":"[1]Personnel!T546","v":0},0,{"$f":"[1]Personnel!V546","v":0},{"$f":"[1]Personnel!W546","v":0},0,{"$f":"[1]Personnel!Y546","v":0},{"$f":"[1]Personnel!Z546","v":0},0,0,0,0,null,null,null,null,null,null,null,null,null,null,null,null,null,null,null,null,null,null,null,null,null,null,null,null,null,{"$f":"[1]Personnel!G546","v":0}]
[0,{"$f":"IFERROR(INDEX(Settings!$AP$17:$AP$38,MATCH(Personnel!$G547,Settings!$AQ$17:$AQ$38,0)),0)","v":0},null,null,null,{"$f":"[1]Personnel!F547","v":0},{"$f":"IFERROR(INDEX((SLevel),MATCH(Personnel!BA547,SLevel202223,0)),0)","v":0},{"$f":"[1]Personnel!H547","v":0},{"$f":"[1]Personnel!I547","v":0},{"$f":"[1]Personnel!J547","v":0},{"$f":"[1]Personnel!P547","v":0},{"$f":"[1]Personnel!Q547","v":0},0,{"$f":"[1]Personnel!S547","v":0},{"$f":"[1]Personnel!S547","v":0},{"$f":"[1]Personnel!S547","v":0},{"$f":"[1]Personnel!T547","v":0},0,{"$f":"[1]Personnel!V547","v":0},{"$f":"[1]Personnel!W547","v":0},0,{"$f":"[1]Personnel!Y547","v":0},{"$f":"[1]Personnel!Z547","v":0},0,0,0,0,null,null,null,null,null,null,null,null,null,null,null,null,null,null,null,null,null,null,null,null,null,null,null,null,null,{"$f":"[1]Personnel!G547","v":0}]
[0,{"$f":"IFERROR(INDEX(Settings!$AP$17:$AP$38,MATCH(Personnel!$G548,Settings!$AQ$17:$AQ$38,0)),0)","v":0},null,null,null,{"$f":"[1]Personnel!F548","v":0},{"$f":"IFERROR(INDEX((SLevel),MATCH(Personnel!BA548,SLevel202223,0)),0)","v":0},{"$f":"[1]Personnel!H548","v":0},{"$f":"[1]Personnel!I548","v":0},{"$f":"[1]Personnel!J548","v":0},{"$f":"[1]Personnel!P548","v":0},{"$f":"[1]Personnel!Q548","v":0},0,{"$f":"[1]Personnel!S548","v":0},{"$f":"[1]Personnel!S548","v":0},{"$f":"[1]Personnel!S548","v":0},{"$f":"[1]Personnel!T548","v":0},0,{"$f":"[1]Personnel!V548","v":0},{"$f":"[1]Personnel!W548","v":0},0,{"$f":"[1]Personnel!Y548","v":0},{"$f":"[1]Personnel!Z548","v":0},0,0,0,0,null,null,null,null,null,null,null,null,null,null,null,null,null,null,null,null,null,null,null,null,null,null,null,null,null,{"$f":"[1]Personnel!G548","v":0}]
[0,{"$f":"IFERROR(INDEX(Settings!$AP$17:$AP$38,MATCH(Personnel!$G549,Settings!$AQ$17:$AQ$38,0)),0)","v":0},null,null,null,{"$f":"[1]Personnel!F549","v":0},{"$f":"IFERROR(INDEX((SLevel),MATCH(Personnel!BA549,SLevel202223,0)),0)","v":0},{"$f":"[1]Personnel!H549","v":0},{"$f":"[1]Personnel!I549","v":0},{"$f":"[1]Personnel!J549","v":0},{"$f":"[1]Personnel!P549","v":0},{"$f":"[1]Personnel!Q549","v":0},0,{"$f":"[1]Personnel!S549","v":0},{"$f":"[1]Personnel!S549","v":0},{"$f":"[1]Personnel!S549","v":0},{"$f":"[1]Personnel!T549","v":0},0,{"$f":"[1]Personnel!V549","v":0},{"$f":"[1]Personnel!W549","v":0},0,{"$f":"[1]Personnel!Y549","v":0},{"$f":"[1]Personnel!Z549","v":0},0,0,0,0,null,null,null,null,null,null,null,null,null,null,null,null,null,null,null,null,null,null,null,null,null,null,null,null,null,{"$f":"[1]Personnel!G549","v":0}]
[0,{"$f":"IFERROR(INDEX(Settings!$AP$17:$AP$38,MATCH(Personnel!$G550,Settings!$AQ$17:$AQ$38,0)),0)","v":0},null,null,null,{"$f":"[1]Personnel!F550","v":0},{"$f":"IFERROR(INDEX((SLevel),MATCH(Personnel!BA550,SLevel202223,0)),0)","v":0},{"$f":"[1]Personnel!H550","v":0},{"$f":"[1]Personnel!I550","v":0},{"$f":"[1]Personnel!J550","v":0},{"$f":"[1]Personnel!P550","v":0},{"$f":"[1]Personnel!Q550","v":0},0,{"$f":"[1]Personnel!S550","v":0},{"$f":"[1]Personnel!S550","v":0},{"$f":"[1]Personnel!S550","v":0},{"$f":"[1]Personnel!T550","v":0},0,{"$f":"[1]Personnel!V550","v":0},{"$f":"[1]Personnel!W550","v":0},0,{"$f":"[1]Personnel!Y550","v":0},{"$f":"[1]Personnel!Z550","v":0},0,0,0,0,null,null,null,null,null,null,null,null,null,null,null,null,null,null,null,null,null,null,null,null,null,null,null,null,null,{"$f":"[1]Personnel!G550","v":0}]
[0,{"$f":"IFERROR(INDEX(Settings!$AP$17:$AP$38,MATCH(Personnel!$G551,Settings!$AQ$17:$AQ$38,0)),0)","v":0},null,null,null,{"$f":"[1]Personnel!F551","v":0},{"$f":"IFERROR(INDEX((SLevel),MATCH(Personnel!BA551,SLevel202223,0)),0)","v":0},{"$f":"[1]Personnel!H551","v":0},{"$f":"[1]Personnel!I551","v":0},{"$f":"[1]Personnel!J551","v":0},{"$f":"[1]Personnel!P551","v":0},{"$f":"[1]Personnel!Q551","v":0},0,{"$f":"[1]Personnel!S551","v":0},{"$f":"[1]Personnel!S551","v":0},{"$f":"[1]Personnel!S551","v":0},{"$f":"[1]Personnel!T551","v":0},0,{"$f":"[1]Personnel!V551","v":0},{"$f":"[1]Personnel!W551","v":0},0,{"$f":"[1]Personnel!Y551","v":0},{"$f":"[1]Personnel!Z551","v":0},0,0,0,0,null,null,null,null,null,null,null,null,null,null,null,null,null,null,null,null,null,null,null,null,null,null,null,null,null,{"$f":"[1]Personnel!G551","v":0}]
[0,{"$f":"IFERROR(INDEX(Settings!$AP$17:$AP$38,MATCH(Personnel!$G552,Settings!$AQ$17:$AQ$38,0)),0)","v":0},null,null,null,{"$f":"[1]Personnel!F552","v":0},{"$f":"IFERROR(INDEX((SLevel),MATCH(Personnel!BA552,SLevel202223,0)),0)","v":0},{"$f":"[1]Personnel!H552","v":0},{"$f":"[1]Personnel!I552","v":0},{"$f":"[1]Personnel!J552","v":0},{"$f":"[1]Personnel!P552","v":0},{"$f":"[1]Personnel!Q552","v":0},0,{"$f":"[1]Personnel!S552","v":0},{"$f":"[1]Personnel!S552","v":0},{"$f":"[1]Personnel!S552","v":0},{"$f":"[1]Personnel!T552","v":0},0,{"$f":"[1]Personnel!V552","v":0},{"$f":"[1]Personnel!W552","v":0},0,{"$f":"[1]Personnel!Y552","v":0},{"$f":"[1]Personnel!Z552","v":0},0,0,0,0,null,null,null,null,null,null,null,null,null,null,null,null,null,null,null,null,null,null,null,null,null,null,null,null,null,{"$f":"[1]Personnel!G552","v":0}]
[0,{"$f":"IFERROR(INDEX(Settings!$AP$17:$AP$38,MATCH(Personnel!$G553,Settings!$AQ$17:$AQ$38,0)),0)","v":0},null,null,null,{"$f":"[1]Personnel!F553","v":0},{"$f":"IFERROR(INDEX((SLevel),MATCH(Personnel!BA553,SLevel202223,0)),0)","v":0},{"$f":"[1]Personnel!H553","v":0},{"$f":"[1]Personnel!I553","v":0},{"$f":"[1]Personnel!J553","v":0},{"$f":"[1]Personnel!P553","v":0},{"$f":"[1]Personnel!Q553","v":0},0,{"$f":"[1]Personnel!S553","v":0},{"$f":"[1]Personnel!S553","v":0},{"$f":"[1]Personnel!S553","v":0},{"$f":"[1]Personnel!T553","v":0},0,{"$f":"[1]Personnel!V553","v":0},{"$f":"[1]Personnel!W553","v":0},0,{"$f":"[1]Personnel!Y553","v":0},{"$f":"[1]Personnel!Z553","v":0},0,0,0,0,null,null,null,null,null,null,null,null,null,null,null,null,null,null,null,null,null,null,null,null,null,null,null,null,null,{"$f":"[1]Personnel!G553","v":0}]
[0,{"$f":"IFERROR(INDEX(Settings!$AP$17:$AP$38,MATCH(Personnel!$G554,Settings!$AQ$17:$AQ$38,0)),0)","v":0},null,null,null,{"$f":"[1]Personnel!F554","v":0},{"$f":"IFERROR(INDEX((SLevel),MATCH(Personnel!BA554,SLevel202223,0)),0)","v":0},{"$f":"[1]Personnel!H554","v":0},{"$f":"[1]Personnel!I554","v":0},{"$f":"[1]Personnel!J554","v":0},{"$f":"[1]Personnel!P554","v":0},{"$f":"[1]Personnel!Q554","v":0},0,{"$f":"[1]Personnel!S554","v":0},{"$f":"[1]Personnel!S554","v":0},{"$f":"[1]Personnel!S554","v":0},{"$f":"[1]Personnel!T554","v":0},0,{"$f":"[1]Personnel!V554","v":0},{"$f":"[1]Personnel!W554","v":0},0,{"$f":"[1]Personnel!Y554","v":0},{"$f":"[1]Personnel!Z554","v":0},0,0,0,0,null,null,null,null,null,null,null,null,null,null,null,null,null,null,null,null,null,null,null,null,null,null,null,null,null,{"$f":"[1]Personnel!G554","v":0}]
[0,{"$f":"IFERROR(INDEX(Settings!$AP$17:$AP$38,MATCH(Personnel!$G555,Settings!$AQ$17:$AQ$38,0)),0)","v":0},null,null,null,{"$f":"[1]Personnel!F555","v":0},{"$f":"IFERROR(INDEX((SLevel),MATCH(Personnel!BA555,SLevel202223,0)),0)","v":0},{"$f":"[1]Personnel!H555","v":0},{"$f":"[1]Personnel!I555","v":0},{"$f":"[1]Personnel!J555","v":0},{"$f":"[1]Personnel!P555","v":0},{"$f":"[1]Personnel!Q555","v":0},0,{"$f":"[1]Personnel!S555","v":0},{"$f":"[1]Personnel!S555","v":0},{"$f":"[1]Personnel!S555","v":0},{"$f":"[1]Personnel!T555","v":0},0,{"$f":"[1]Personnel!V555","v":0},{"$f":"[1]Personnel!W555","v":0},0,{"$f":"[1]Personnel!Y555","v":0},{"$f":"[1]Personnel!Z555","v":0},0,0,0,0,null,null,null,null,null,null,null,null,null,null,null,null,null,null,null,null,null,null,null,null,null,null,null,null,null,{"$f":"[1]Personnel!G555","v":0}]
[0,{"$f":"IFERROR(INDEX(Settings!$AP$17:$AP$38,MATCH(Personnel!$G556,Settings!$AQ$17:$AQ$38,0)),0)","v":0},null,null,null,{"$f":"[1]Personnel!F556","v":0},{"$f":"IFERROR(INDEX((SLevel),MATCH(Personnel!BA556,SLevel202223,0)),0)","v":0},{"$f":"[1]Personnel!H556","v":0},{"$f":"[1]Personnel!I556","v":0},{"$f":"[1]Personnel!J556","v":0},{"$f":"[1]Personnel!P556","v":0},{"$f":"[1]Personnel!Q556","v":0},0,{"$f":"[1]Personnel!S556","v":0},{"$f":"[1]Personnel!S556","v":0},{"$f":"[1]Personnel!S556","v":0},{"$f":"[1]Personnel!T556","v":0},0,{"$f":"[1]Personnel!V556","v":0},{"$f":"[1]Personnel!W556","v":0},0,{"$f":"[1]Personnel!Y556","v":0},{"$f":"[1]Personnel!Z556","v":0},0,0,0,0,null,null,null,null,null,null,null,null,null,null,null,null,null,null,null,null,null,null,null,null,null,null,null,null,null,{"$f":"[1]Personnel!G556","v":0}]
[0,{"$f":"IFERROR(INDEX(Settings!$AP$17:$AP$38,MATCH(Personnel!$G557,Settings!$AQ$17:$AQ$38,0)),0)","v":0},null,null,null,{"$f":"[1]Personnel!F557","v":0},{"$f":"IFERROR(INDEX((SLevel),MATCH(Personnel!BA557,SLevel202223,0)),0)","v":0},{"$f":"[1]Personnel!H557","v":0},{"$f":"[1]Personnel!I557","v":0},{"$f":"[1]Personnel!J557","v":0},{"$f":"[1]Personnel!P557","v":0},{"$f":"[1]Personnel!Q557","v":0},0,{"$f":"[1]Personnel!S557","v":0},{"$f":"[1]Personnel!S557","v":0},{"$f":"[1]Personnel!S557","v":0},{"$f":"[1]Personnel!T557","v":0},0,{"$f":"[1]Personnel!V557","v":0},{"$f":"[1]Personnel!W557","v":0},0,{"$f":"[1]Personnel!Y557","v":0},{"$f":"[1]Personnel!Z557","v":0},0,0,0,0,null,null,null,null,null,null,null,null,null,null,null,null,null,null,null,null,null,null,null,null,null,null,null,null,null,{"$f":"[1]Personnel!G557","v":0}]
[0,{"$f":"IFERROR(INDEX(Settings!$AP$17:$AP$38,MATCH(Personnel!$G558,Settings!$AQ$17:$AQ$38,0)),0)","v":0},null,null,null,{"$f":"[1]Personnel!F558","v":0},{"$f":"IFERROR(INDEX((SLevel),MATCH(Personnel!BA558,SLevel202223,0)),0)","v":0},{"$f":"[1]Personnel!H558","v":0},{"$f":"[1]Personnel!I558","v":0},{"$f":"[1]Personnel!J558","v":0},{"$f":"[1]Personnel!P558","v":0},{"$f":"[1]Personnel!Q558","v":0},0,{"$f":"[1]Personnel!S558","v":0},{"$f":"[1]Personnel!S558","v":0},{"$f":"[1]Personnel!S558","v":0},{"$f":"[1]Personnel!T558","v":0},0,{"$f":"[1]Personnel!V558","v":0},{"$f":"[1]Personnel!W558","v":0},0,{"$f":"[1]Personnel!Y558","v":0},{"$f":"[1]Personnel!Z558","v":0},0,0,0,0,null,null,null,null,null,null,null,null,null,null,null,null,null,null,null,null,null,null,null,null,null,null,null,null,null,{"$f":"[1]Personnel!G558","v":0}]
[0,{"$f":"IFERROR(INDEX(Settings!$AP$17:$AP$38,MATCH(Personnel!$G559,Settings!$AQ$17:$AQ$38,0)),0)","v":0},null,null,null,{"$f":"[1]Personnel!F559","v":0},{"$f":"IFERROR(INDEX((SLevel),MATCH(Personnel!BA559,SLevel202223,0)),0)","v":0},{"$f":"[1]Personnel!H559","v":0},{"$f":"[1]Personnel!I559","v":0},{"$f":"[1]Personnel!J559","v":0},{"$f":"[1]Personnel!P559","v":0},{"$f":"[1]Personnel!Q559","v":0},0,{"$f":"[1]Personnel!S559","v":0},{"$f":"[1]Personnel!S559","v":0},{"$f":"[1]Personnel!S559","v":0},{"$f":"[1]Personnel!T559","v":0},0,{"$f":"[1]Personnel!V559","v":0},{"$f":"[1]Personnel!W559","v":0},0,{"$f":"[1]Personnel!Y559","v":0},{"$f":"[1]Personnel!Z559","v":0},0,0,0,0,null,null,null,null,null,null,null,null,null,null,null,null,null,null,null,null,null,null,null,null,null,null,null,null,null,{"$f":"[1]Personnel!G559","v":0}]
[0,{"$f":"IFERROR(INDEX(Settings!$AP$17:$AP$38,MATCH(Personnel!$G560,Settings!$AQ$17:$AQ$38,0)),0)","v":0},null,null,null,{"$f":"[1]Personnel!F560","v":0},{"$f":"IFERROR(INDEX((SLevel),MATCH(Personnel!BA560,SLevel202223,0)),0)","v":0},{"$f":"[1]Personnel!H560","v":0},{"$f":"[1]Personnel!I560","v":0},{"$f":"[1]Personnel!J560","v":0},{"$f":"[1]Personnel!P560","v":0},{"$f":"[1]Personnel!Q560","v":0},0,{"$f":"[1]Personnel!S560","v":0},{"$f":"[1]Personnel!S560","v":0},{"$f":"[1]Personnel!S560","v":0},{"$f":"[1]Personnel!T560","v":0},0,{"$f":"[1]Personnel!V560","v":0},{"$f":"[1]Personnel!W560","v":0},0,{"$f":"[1]Personnel!Y560","v":0},{"$f":"[1]Personnel!Z560","v":0},0,0,0,0,null,null,null,null,null,null,null,null,null,null,null,null,null,null,null,null,null,null,null,null,null,null,null,null,null,{"$f":"[1]Personnel!G560","v":0}]
[0,{"$f":"IFERROR(INDEX(Settings!$AP$17:$AP$38,MATCH(Personnel!$G561,Settings!$AQ$17:$AQ$38,0)),0)","v":0},null,null,null,{"$f":"[1]Personnel!F561","v":0},{"$f":"IFERROR(INDEX((SLevel),MATCH(Personnel!BA561,SLevel202223,0)),0)","v":0},{"$f":"[1]Personnel!H561","v":0},{"$f":"[1]Personnel!I561","v":0},{"$f":"[1]Personnel!J561","v":0},{"$f":"[1]Personnel!P561","v":0},{"$f":"[1]Personnel!Q561","v":0},0,{"$f":"[1]Personnel!S561","v":0},{"$f":"[1]Personnel!S561","v":0},{"$f":"[1]Personnel!S561","v":0},{"$f":"[1]Personnel!T561","v":0},0,{"$f":"[1]Personnel!V561","v":0},{"$f":"[1]Personnel!W561","v":0},0,{"$f":"[1]Personnel!Y561","v":0},{"$f":"[1]Personnel!Z561","v":0},0,0,0,0,null,null,null,null,null,null,null,null,null,null,null,null,null,null,null,null,null,null,null,null,null,null,null,null,null,{"$f":"[1]Personnel!G561","v":0}]
[0,{"$f":"IFERROR(INDEX(Settings!$AP$17:$AP$38,MATCH(Personnel!$G562,Settings!$AQ$17:$AQ$38,0)),0)","v":0},null,null,null,{"$f":"[1]Personnel!F562","v":0},{"$f":"IFERROR(INDEX((SLevel),MATCH(Personnel!BA562,SLevel202223,0)),0)","v":0},{"$f":"[1]Personnel!H562","v":0},{"$f":"[1]Personnel!I562","v":0},{"$f":"[1]Personnel!J562","v":0},{"$f":"[1]Personnel!P562","v":0},{"$f":"[1]Personnel!Q562","v":0},0,{"$f":"[1]Personnel!S562","v":0},{"$f":"[1]Personnel!S562","v":0},{"$f":"[1]Personnel!S562","v":0},{"$f":"[1]Personnel!T562","v":0},0,{"$f":"[1]Personnel!V562","v":0},{"$f":"[1]Personnel!W562","v":0},0,{"$f":"[1]Personnel!Y562","v":0},{"$f":"[1]Personnel!Z562","v":0},0,0,0,0,null,null,null,null,null,null,null,null,null,null,null,null,null,null,null,null,null,null,null,null,null,null,null,null,null,{"$f":"[1]Personnel!G562","v":0}]
[0,{"$f":"IFERROR(INDEX(Settings!$AP$17:$AP$38,MATCH(Personnel!$G563,Settings!$AQ$17:$AQ$38,0)),0)","v":0},null,null,null,{"$f":"[1]Personnel!F563","v":0},{"$f":"IFERROR(INDEX((SLevel),MATCH(Personnel!BA563,SLevel202223,0)),0)","v":0},{"$f":"[1]Personnel!H563","v":0},{"$f":"[1]Personnel!I563","v":0},{"$f":"[1]Personnel!J563","v":0},{"$f":"[1]Personnel!P563","v":0},{"$f":"[1]Personnel!Q563","v":0},0,{"$f":"[1]Personnel!S563","v":0},{"$f":"[1]Personnel!S563","v":0},{"$f":"[1]Personnel!S563","v":0},{"$f":"[1]Personnel!T563","v":0},0,{"$f":"[1]Personnel!V563","v":0},{"$f":"[1]Personnel!W563","v":0},0,{"$f":"[1]Personnel!Y563","v":0},{"$f":"[1]Personnel!Z563","v":0},0,0,0,0,null,null,null,null,null,null,null,null,null,null,null,null,null,null,null,null,null,null,null,null,null,null,null,null,null,{"$f":"[1]Personnel!G563","v":0}]
[0,{"$f":"IFERROR(INDEX(Settings!$AP$17:$AP$38,MATCH(Personnel!$G564,Settings!$AQ$17:$AQ$38,0)),0)","v":0},null,null,null,{"$f":"[1]Personnel!F564","v":0},{"$f":"IFERROR(INDEX((SLevel),MATCH(Personnel!BA564,SLevel202223,0)),0)","v":0},{"$f":"[1]Personnel!H564","v":0},{"$f":"[1]Personnel!I564","v":0},{"$f":"[1]Personnel!J564","v":0},{"$f":"[1]Personnel!P564","v":0},{"$f":"[1]Personnel!Q564","v":0},0,{"$f":"[1]Personnel!S564","v":0},{"$f":"[1]Personnel!S564","v":0},{"$f":"[1]Personnel!S564","v":0},{"$f":"[1]Personnel!T564","v":0},0,{"$f":"[1]Personnel!V564","v":0},{"$f":"[1]Personnel!W564","v":0},0,{"$f":"[1]Personnel!Y564","v":0},{"$f":"[1]Personnel!Z564","v":0},0,0,0,0,null,null,null,null,null,null,null,null,null,null,null,null,null,null,null,null,null,null,null,null,null,null,null,null,null,{"$f":"[1]Personnel!G564","v":0}]
[0,{"$f":"IFERROR(INDEX(Settings!$AP$17:$AP$38,MATCH(Personnel!$G565,Settings!$AQ$17:$AQ$38,0)),0)","v":0},null,null,null,{"$f":"[1]Personnel!F565","v":0},{"$f":"IFERROR(INDEX((SLevel),MATCH(Personnel!BA565,SLevel202223,0)),0)","v":0},{"$f":"[1]Personnel!H565","v":0},{"$f":"[1]Personnel!I565","v":0},{"$f":"[1]Personnel!J565","v":0},{"$f":"[1]Personnel!P565","v":0},{"$f":"[1]Personnel!Q565","v":0},0,{"$f":"[1]Personnel!S565","v":0},{"$f":"[1]Personnel!S565","v":0},{"$f":"[1]Personnel!S565","v":0},{"$f":"[1]Personnel!T565","v":0},0,{"$f":"[1]Personnel!V565","v":0},{"$f":"[1]Personnel!W565","v":0},0,{"$f":"[1]Personnel!Y565","v":0},{"$f":"[1]Personnel!Z565","v":0},0,0,0,0,null,null,null,null,null,null,null,null,null,null,null,null,null,null,null,null,null,null,null,null,null,null,null,null,null,{"$f":"[1]Personnel!G565","v":0}]
[0,{"$f":"IFERROR(INDEX(Settings!$AP$17:$AP$38,MATCH(Personnel!$G566,Settings!$AQ$17:$AQ$38,0)),0)","v":0},null,null,null,{"$f":"[1]Personnel!F566","v":0},{"$f":"IFERROR(INDEX((SLevel),MATCH(Personnel!BA566,SLevel202223,0)),0)","v":0},{"$f":"[1]Personnel!H566","v":0},{"$f":"[1]Personnel!I566","v":0},{"$f":"[1]Personnel!J566","v":0},{"$f":"[1]Personnel!P566","v":0},{"$f":"[1]Personnel!Q566","v":0},0,{"$f":"[1]Personnel!S566","v":0},{"$f":"[1]Personnel!S566","v":0},{"$f":"[1]Personnel!S566","v":0},{"$f":"[1]Personnel!T566","v":0},0,{"$f":"[1]Personnel!V566","v":0},{"$f":"[1]Personnel!W566","v":0},0,{"$f":"[1]Personnel!Y566","v":0},{"$f":"[1]Personnel!Z566","v":0},0,0,0,0,null,null,null,null,null,null,null,null,null,null,null,null,null,null,null,null,null,null,null,null,null,null,null,null,null,{"$f":"[1]Personnel!G566","v":0}]
[0,{"$f":"IFERROR(INDEX(Settings!$AP$17:$AP$38,MATCH(Personnel!$G567,Settings!$AQ$17:$AQ$38,0)),0)","v":0},null,null,null,{"$f":"[1]Personnel!F567","v":0},{"$f":"IFERROR(INDEX((SLevel),MATCH(Personnel!BA567,SLevel202223,0)),0)","v":0},{"$f":"[1]Personnel!H567","v":0},{"$f":"[1]Personnel!I567","v":0},{"$f":"[1]Personnel!J567","v":0},{"$f":"[1]Personnel!P567","v":0},{"$f":"[1]Personnel!Q567","v":0},0,{"$f":"[1]Personnel!S567","v":0},{"$f":"[1]Personnel!S567","v":0},{"$f":"[1]Personnel!S567","v":0},{"$f":"[1]Personnel!T567","v":0},0,{"$f":"[1]Personnel!V567","v":0},{"$f":"[1]Personnel!W567","v":0},0,{"$f":"[1]Personnel!Y567","v":0},{"$f":"[1]Personnel!Z567","v":0},0,0,0,0,null,null,null,null,null,null,null,null,null,null,null,null,null,null,null,null,null,null,null,null,null,null,null,null,null,{"$f":"[1]Personnel!G567","v":0}]
[0,{"$f":"IFERROR(INDEX(Settings!$AP$17:$AP$38,MATCH(Personnel!$G568,Settings!$AQ$17:$AQ$38,0)),0)","v":0},null,null,null,{"$f":"[1]Personnel!F568","v":0},{"$f":"IFERROR(INDEX((SLevel),MATCH(Personnel!BA568,SLevel202223,0)),0)","v":0},{"$f":"[1]Personnel!H568","v":0},{"$f":"[1]Personnel!I568","v":0},{"$f":"[1]Personnel!J568","v":0},{"$f":"[1]Personnel!P568","v":0},{"$f":"[1]Personnel!Q568","v":0},0,{"$f":"[1]Personnel!S568","v":0},{"$f":"[1]Personnel!S568","v":0},{"$f":"[1]Personnel!S568","v":0},{"$f":"[1]Personnel!T568","v":0},0,{"$f":"[1]Personnel!V568","v":0},{"$f":"[1]Personnel!W568","v":0},0,{"$f":"[1]Personnel!Y568","v":0},{"$f":"[1]Personnel!Z568","v":0},0,0,0,0,null,null,null,null,null,null,null,null,null,null,null,null,null,null,null,null,null,null,null,null,null,null,null,null,null,{"$f":"[1]Personnel!G568","v":0}]
[0,{"$f":"IFERROR(INDEX(Settings!$AP$17:$AP$38,MATCH(Personnel!$G569,Settings!$AQ$17:$AQ$38,0)),0)","v":0},null,null,null,{"$f":"[1]Personnel!F569","v":0},{"$f":"IFERROR(INDEX((SLevel),MATCH(Personnel!BA569,SLevel202223,0)),0)","v":0},{"$f":"[1]Personnel!H569","v":0},{"$f":"[1]Personnel!I569","v":0},{"$f":"[1]Personnel!J569","v":0},{"$f":"[1]Personnel!P569","v":0},{"$f":"[1]Personnel!Q569","v":0},0,{"$f":"[1]Personnel!S569","v":0},{"$f":"[1]Personnel!S569","v":0},{"$f":"[1]Personnel!S569","v":0},{"$f":"[1]Personnel!T569","v":0},0,{"$f":"[1]Personnel!V569","v":0},{"$f":"[1]Personnel!W569","v":0},0,{"$f":"[1]Personnel!Y569","v":0},{"$f":"[1]Personnel!Z569","v":0},0,0,0,0,null,null,null,null,null,null,null,null,null,null,null,null,null,null,null,null,null,null,null,null,null,null,null,null,null,{"$f":"[1]Personnel!G569","v":0}]
[0,{"$f":"IFERROR(INDEX(Settings!$AP$17:$AP$38,MATCH(Personnel!$G570,Settings!$AQ$17:$AQ$38,0)),0)","v":0},null,null,null,{"$f":"[1]Personnel!F570","v":0},{"$f":"IFERROR(INDEX((SLevel),MATCH(Personnel!BA570,SLevel202223,0)),0)","v":0},{"$f":"[1]Personnel!H570","v":0},{"$f":"[1]Personnel!I570","v":0},{"$f":"[1]Personnel!J570","v":0},{"$f":"[1]Personnel!P570","v":0},{"$f":"[1]Personnel!Q570","v":0},0,{"$f":"[1]Personnel!S570","v":0},{"$f":"[1]Personnel!S570","v":0},{"$f":"[1]Personnel!S570","v":0},{"$f":"[1]Personnel!T570","v":0},0,{"$f":"[1]Personnel!V570","v":0},{"$f":"[1]Personnel!W570","v":0},0,{"$f":"[1]Personnel!Y570","v":0},{"$f":"[1]Personnel!Z570","v":0},0,0,0,0,null,null,null,null,null,null,null,null,null,null,null,null,null,null,null,null,null,null,null,null,null,null,null,null,null,{"$f":"[1]Personnel!G570","v":0}]
[0,{"$f":"IFERROR(INDEX(Settings!$AP$17:$AP$38,MATCH(Personnel!$G571,Settings!$AQ$17:$AQ$38,0)),0)","v":0},null,null,null,{"$f":"[1]Personnel!F571","v":0},{"$f":"IFERROR(INDEX((SLevel),MATCH(Personnel!BA571,SLevel202223,0)),0)","v":0},{"$f":"[1]Personnel!H571","v":0},{"$f":"[1]Personnel!I571","v":0},{"$f":"[1]Personnel!J571","v":0},{"$f":"[1]Personnel!P571","v":0},{"$f":"[1]Personnel!Q571","v":0},0,{"$f":"[1]Personnel!S571","v":0},{"$f":"[1]Personnel!S571","v":0},{"$f":"[1]Personnel!S571","v":0},{"$f":"[1]Personnel!T571","v":0},0,{"$f":"[1]Personnel!V571","v":0},{"$f":"[1]Personnel!W571","v":0},0,{"$f":"[1]Personnel!Y571","v":0},{"$f":"[1]Personnel!Z571","v":0},0,0,0,0,null,null,null,null,null,null,null,null,null,null,null,null,null,null,null,null,null,null,null,null,null,null,null,null,null,{"$f":"[1]Personnel!G571","v":0}]
[0,{"$f":"IFERROR(INDEX(Settings!$AP$17:$AP$38,MATCH(Personnel!$G572,Settings!$AQ$17:$AQ$38,0)),0)","v":0},null,null,null,{"$f":"[1]Personnel!F572","v":0},{"$f":"IFERROR(INDEX((SLevel),MATCH(Personnel!BA572,SLevel202223,0)),0)","v":0},{"$f":"[1]Personnel!H572","v":0},{"$f":"[1]Personnel!I572","v":0},{"$f":"[1]Personnel!J572","v":0},{"$f":"[1]Personnel!P572","v":0},{"$f":"[1]Personnel!Q572","v":0},0,{"$f":"[1]Personnel!S572","v":0},{"$f":"[1]Personnel!S572","v":0},{"$f":"[1]Personnel!S572","v":0},{"$f":"[1]Personnel!T572","v":0},0,{"$f":"[1]Personnel!V572","v":0},{"$f":"[1]Personnel!W572","v":0},0,{"$f":"[1]Personnel!Y572","v":0},{"$f":"[1]Personnel!Z572","v":0},0,0,0,0,null,null,null,null,null,null,null,null,null,null,null,null,null,null,null,null,null,null,null,null,null,null,null,null,null,{"$f":"[1]Personnel!G572","v":0}]
[0,{"$f":"IFERROR(INDEX(Settings!$AP$17:$AP$38,MATCH(Personnel!$G573,Settings!$AQ$17:$AQ$38,0)),0)","v":0},null,null,null,{"$f":"[1]Personnel!F573","v":0},{"$f":"IFERROR(INDEX((SLevel),MATCH(Personnel!BA573,SLevel202223,0)),0)","v":0},{"$f":"[1]Personnel!H573","v":0},{"$f":"[1]Personnel!I573","v":0},{"$f":"[1]Personnel!J573","v":0},{"$f":"[1]Personnel!P573","v":0},{"$f":"[1]Personnel!Q573","v":0},0,{"$f":"[1]Personnel!S573","v":0},{"$f":"[1]Personnel!S573","v":0},{"$f":"[1]Personnel!S573","v":0},{"$f":"[1]Personnel!T573","v":0},0,{"$f":"[1]Personnel!V573","v":0},{"$f":"[1]Personnel!W573","v":0},0,{"$f":"[1]Personnel!Y573","v":0},{"$f":"[1]Personnel!Z573","v":0},0,0,0,0,null,null,null,null,null,null,null,null,null,null,null,null,null,null,null,null,null,null,null,null,null,null,null,null,null,{"$f":"[1]Personnel!G573","v":0}]
[0,{"$f":"IFERROR(INDEX(Settings!$AP$17:$AP$38,MATCH(Personnel!$G574,Settings!$AQ$17:$AQ$38,0)),0)","v":0},null,null,null,{"$f":"[1]Personnel!F574","v":0},{"$f":"IFERROR(INDEX((SLevel),MATCH(Personnel!BA574,SLevel202223,0)),0)","v":0},{"$f":"[1]Personnel!H574","v":0},{"$f":"[1]Personnel!I574","v":0},{"$f":"[1]Personnel!J574","v":0},{"$f":"[1]Personnel!P574","v":0},{"$f":"[1]Personnel!Q574","v":0},0,{"$f":"[1]Personnel!S574","v":0},{"$f":"[1]Personnel!S574","v":0},{"$f":"[1]Personnel!S574","v":0},{"$f":"[1]Personnel!T574","v":0},0,{"$f":"[1]Personnel!V574","v":0},{"$f":"[1]Personnel!W574","v":0},0,{"$f":"[1]Personnel!Y574","v":0},{"$f":"[1]Personnel!Z574","v":0},0,0,0,0,null,null,null,null,null,null,null,null,null,null,null,null,null,null,null,null,null,null,null,null,null,null,null,null,null,{"$f":"[1]Personnel!G574","v":0}]
[0,{"$f":"IFERROR(INDEX(Settings!$AP$17:$AP$38,MATCH(Personnel!$G575,Settings!$AQ$17:$AQ$38,0)),0)","v":0},null,null,null,{"$f":"[1]Personnel!F575","v":0},{"$f":"IFERROR(INDEX((SLevel),MATCH(Personnel!BA575,SLevel202223,0)),0)","v":0},{"$f":"[1]Personnel!H575","v":0},{"$f":"[1]Personnel!I575","v":0},{"$f":"[1]Personnel!J575","v":0},{"$f":"[1]Personnel!P575","v":0},{"$f":"[1]Personnel!Q575","v":0},0,{"$f":"[1]Personnel!S575","v":0},{"$f":"[1]Personnel!S575","v":0},{"$f":"[1]Personnel!S575","v":0},{"$f":"[1]Personnel!T575","v":0},0,{"$f":"[1]Personnel!V575","v":0},{"$f":"[1]Personnel!W575","v":0},0,{"$f":"[1]Personnel!Y575","v":0},{"$f":"[1]Personnel!Z575","v":0},0,0,0,0,null,null,null,null,null,null,null,null,null,null,null,null,null,null,null,null,null,null,null,null,null,null,null,null,null,{"$f":"[1]Personnel!G575","v":0}]
[0,{"$f":"IFERROR(INDEX(Settings!$AP$17:$AP$38,MATCH(Personnel!$G576,Settings!$AQ$17:$AQ$38,0)),0)","v":0},null,null,null,{"$f":"[1]Personnel!F576","v":0},{"$f":"IFERROR(INDEX((SLevel),MATCH(Personnel!BA576,SLevel202223,0)),0)","v":0},{"$f":"[1]Personnel!H576","v":0},{"$f":"[1]Personnel!I576","v":0},{"$f":"[1]Personnel!J576","v":0},{"$f":"[1]Personnel!P576","v":0},{"$f":"[1]Personnel!Q576","v":0},0,{"$f":"[1]Personnel!S576","v":0},{"$f":"[1]Personnel!S576","v":0},{"$f":"[1]Personnel!S576","v":0},{"$f":"[1]Personnel!T576","v":0},0,{"$f":"[1]Personnel!V576","v":0},{"$f":"[1]Personnel!W576","v":0},0,{"$f":"[1]Personnel!Y576","v":0},{"$f":"[1]Personnel!Z576","v":0},0,0,0,0,null,null,null,null,null,null,null,null,null,null,null,null,null,null,null,null,null,null,null,null,null,null,null,null,null,{"$f":"[1]Personnel!G576","v":0}]
[0,{"$f":"IFERROR(INDEX(Settings!$AP$17:$AP$38,MATCH(Personnel!$G577,Settings!$AQ$17:$AQ$38,0)),0)","v":0},null,null,null,{"$f":"[1]Personnel!F577","v":0},{"$f":"IFERROR(INDEX((SLevel),MATCH(Personnel!BA577,SLevel202223,0)),0)","v":0},{"$f":"[1]Personnel!H577","v":0},{"$f":"[1]Personnel!I577","v":0},{"$f":"[1]Personnel!J577","v":0},{"$f":"[1]Personnel!P577","v":0},{"$f":"[1]Personnel!Q577","v":0},0,{"$f":"[1]Personnel!S577","v":0},{"$f":"[1]Personnel!S577","v":0},{"$f":"[1]Personnel!S577","v":0},{"$f":"[1]Personnel!T577","v":0},0,{"$f":"[1]Personnel!V577","v":0},{"$f":"[1]Personnel!W577","v":0},0,{"$f":"[1]Personnel!Y577","v":0},{"$f":"[1]Personnel!Z577","v":0},0,0,0,0,null,null,null,null,null,null,null,null,null,null,null,null,null,null,null,null,null,null,null,null,null,null,null,null,null,{"$f":"[1]Personnel!G577","v":0}]
[0,{"$f":"IFERROR(INDEX(Settings!$AP$17:$AP$38,MATCH(Personnel!$G578,Settings!$AQ$17:$AQ$38,0)),0)","v":0},null,null,null,{"$f":"[1]Personnel!F578","v":0},{"$f":"IFERROR(INDEX((SLevel),MATCH(Personnel!BA578,SLevel202223,0)),0)","v":0},{"$f":"[1]Personnel!H578","v":0},{"$f":"[1]Personnel!I578","v":0},{"$f":"[1]Personnel!J578","v":0},{"$f":"[1]Personnel!P578","v":0},{"$f":"[1]Personnel!Q578","v":0},0,{"$f":"[1]Personnel!S578","v":0},{"$f":"[1]Personnel!S578","v":0},{"$f":"[1]Personnel!S578","v":0},{"$f":"[1]Personnel!T578","v":0},0,{"$f":"[1]Personnel!V578","v":0},{"$f":"[1]Personnel!W578","v":0},0,{"$f":"[1]Personnel!Y578","v":0},{"$f":"[1]Personnel!Z578","v":0},0,0,0,0,null,null,null,null,null,null,null,null,null,null,null,null,null,null,null,null,null,null,null,null,null,null,null,null,null,{"$f":"[1]Personnel!G578","v":0}]
[0,{"$f":"IFERROR(INDEX(Settings!$AP$17:$AP$38,MATCH(Personnel!$G579,Settings!$AQ$17:$AQ$38,0)),0)","v":0},null,null,null,{"$f":"[1]Personnel!F579","v":0},{"$f":"IFERROR(INDEX((SLevel),MATCH(Personnel!BA579,SLevel202223,0)),0)","v":0},{"$f":"[1]Personnel!H579","v":0},{"$f":"[1]Personnel!I579","v":0},{"$f":"[1]Personnel!J579","v":0},{"$f":"[1]Personnel!P579","v":0},{"$f":"[1]Personnel!Q579","v":0},0,{"$f":"[1]Personnel!S579","v":0},{"$f":"[1]Personnel!S579","v":0},{"$f":"[1]Personnel!S579","v":0},{"$f":"[1]Personnel!T579","v":0},0,{"$f":"[1]Personnel!V579","v":0},{"$f":"[1]Personnel!W579","v":0},0,{"$f":"[1]Personnel!Y579","v":0},{"$f":"[1]Personnel!Z579","v":0},0,0,0,0,null,null,null,null,null,null,null,null,null,null,null,null,null,null,null,null,null,null,null,null,null,null,null,null,null,{"$f":"[1]Personnel!G579","v":0}]
[0,{"$f":"IFERROR(INDEX(Settings!$AP$17:$AP$38,MATCH(Personnel!$G580,Settings!$AQ$17:$AQ$38,0)),0)","v":0},null,null,null,{"$f":"[1]Personnel!F580","v":0},{"$f":"IFERROR(INDEX((SLevel),MATCH(Personnel!BA580,SLevel202223,0)),0)","v":0},{"$f":"[1]Personnel!H580","v":0},{"$f":"[1]Personnel!I580","v":0},{"$f":"[1]Personnel!J580","v":0},{"$f":"[1]Personnel!P580","v":0},{"$f":"[1]Personnel!Q580","v":0},0,{"$f":"[1]Personnel!S580","v":0},{"$f":"[1]Personnel!S580","v":0},{"$f":"[1]Personnel!S580","v":0},{"$f":"[1]Personnel!T580","v":0},0,{"$f":"[1]Personnel!V580","v":0},{"$f":"[1]Personnel!W580","v":0},0,{"$f":"[1]Personnel!Y580","v":0},{"$f":"[1]Personnel!Z580","v":0},0,0,0,0,null,null,null,null,null,null,null,null,null,null,null,null,null,null,null,null,null,null,null,null,null,null,null,null,null,{"$f":"[1]Personnel!G580","v":0}]
[0,{"$f":"IFERROR(INDEX(Settings!$AP$17:$AP$38,MATCH(Personnel!$G581,Settings!$AQ$17:$AQ$38,0)),0)","v":0},null,null,null,{"$f":"[1]Personnel!F581","v":0},{"$f":"IFERROR(INDEX((SLevel),MATCH(Personnel!BA581,SLevel202223,0)),0)","v":0},{"$f":"[1]Personnel!H581","v":0},{"$f":"[1]Personnel!I581","v":0},{"$f":"[1]Personnel!J581","v":0},{"$f":"[1]Personnel!P581","v":0},{"$f":"[1]Personnel!Q581","v":0},0,{"$f":"[1]Personnel!S581","v":0},{"$f":"[1]Personnel!S581","v":0},{"$f":"[1]Personnel!S581","v":0},{"$f":"[1]Personnel!T581","v":0},0,{"$f":"[1]Personnel!V581","v":0},{"$f":"[1]Personnel!W581","v":0},0,{"$f":"[1]Personnel!Y581","v":0},{"$f":"[1]Personnel!Z581","v":0},0,0,0,0,null,null,null,null,null,null,null,null,null,null,null,null,null,null,null,null,null,null,null,null,null,null,null,null,null,{"$f":"[1]Personnel!G581","v":0}]
[0,{"$f":"IFERROR(INDEX(Settings!$AP$17:$AP$38,MATCH(Personnel!$G582,Settings!$AQ$17:$AQ$38,0)),0)","v":0},null,null,null,{"$f":"[1]Personnel!F582","v":0},{"$f":"IFERROR(INDEX((SLevel),MATCH(Personnel!BA582,SLevel202223,0)),0)","v":0},{"$f":"[1]Personnel!H582","v":0},{"$f":"[1]Personnel!I582","v":0},{"$f":"[1]Personnel!J582","v":0},{"$f":"[1]Personnel!P582","v":0},{"$f":"[1]Personnel!Q582","v":0},0,{"$f":"[1]Personnel!S582","v":0},{"$f":"[1]Personnel!S582","v":0},{"$f":"[1]Personnel!S582","v":0},{"$f":"[1]Personnel!T582","v":0},0,{"$f":"[1]Personnel!V582","v":0},{"$f":"[1]Personnel!W582","v":0},0,{"$f":"[1]Personnel!Y582","v":0},{"$f":"[1]Personnel!Z582","v":0},0,0,0,0,null,null,null,null,null,null,null,null,null,null,null,null,null,null,null,null,null,null,null,null,null,null,null,null,null,{"$f":"[1]Personnel!G582","v":0}]
[0,{"$f":"IFERROR(INDEX(Settings!$AP$17:$AP$38,MATCH(Personnel!$G583,Settings!$AQ$17:$AQ$38,0)),0)","v":0},null,null,null,{"$f":"[1]Personnel!F583","v":0},{"$f":"IFERROR(INDEX((SLevel),MATCH(Personnel!BA583,SLevel202223,0)),0)","v":0},{"$f":"[1]Personnel!H583","v":0},{"$f":"[1]Personnel!I583","v":0},{"$f":"[1]Personnel!J583","v":0},{"$f":"[1]Personnel!P583","v":0},{"$f":"[1]Personnel!Q583","v":0},0,{"$f":"[1]Personnel!S583","v":0},{"$f":"[1]Personnel!S583","v":0},{"$f":"[1]Personnel!S583","v":0},{"$f":"[1]Personnel!T583","v":0},0,{"$f":"[1]Personnel!V583","v":0},{"$f":"[1]Personnel!W583","v":0},0,{"$f":"[1]Personnel!Y583","v":0},{"$f":"[1]Personnel!Z583","v":0},0,0,0,0,null,null,null,null,null,null,null,null,null,null,null,null,null,null,null,null,null,null,null,null,null,null,null,null,null,{"$f":"[1]Personnel!G583","v":0}]
[0,{"$f":"IFERROR(INDEX(Settings!$AP$17:$AP$38,MATCH(Personnel!$G584,Settings!$AQ$17:$AQ$38,0)),0)","v":0},null,null,null,{"$f":"[1]Personnel!F584","v":0},{"$f":"IFERROR(INDEX((SLevel),MATCH(Personnel!BA584,SLevel202223,0)),0)","v":0},{"$f":"[1]Personnel!H584","v":0},{"$f":"[1]Personnel!I584","v":0},{"$f":"[1]Personnel!J584","v":0},{"$f":"[1]Personnel!P584","v":0},{"$f":"[1]Personnel!Q584","v":0},0,{"$f":"[1]Personnel!S584","v":0},{"$f":"[1]Personnel!S584","v":0},{"$f":"[1]Personnel!S584","v":0},{"$f":"[1]Personnel!T584","v":0},0,{"$f":"[1]Personnel!V584","v":0},{"$f":"[1]Personnel!W584","v":0},0,{"$f":"[1]Personnel!Y584","v":0},{"$f":"[1]Personnel!Z584","v":0},0,0,0,0,null,null,null,null,null,null,null,null,null,null,null,null,null,null,null,null,null,null,null,null,null,null,null,null,null,{"$f":"[1]Personnel!G584","v":0}]
[0,{"$f":"IFERROR(INDEX(Settings!$AP$17:$AP$38,MATCH(Personnel!$G585,Settings!$AQ$17:$AQ$38,0)),0)","v":0},null,null,null,{"$f":"[1]Personnel!F585","v":0},{"$f":"IFERROR(INDEX((SLevel),MATCH(Personnel!BA585,SLevel202223,0)),0)","v":0},{"$f":"[1]Personnel!H585","v":0},{"$f":"[1]Personnel!I585","v":0},{"$f":"[1]Personnel!J585","v":0},{"$f":"[1]Personnel!P585","v":0},{"$f":"[1]Personnel!Q585","v":0},0,{"$f":"[1]Personnel!S585","v":0},{"$f":"[1]Personnel!S585","v":0},{"$f":"[1]Personnel!S585","v":0},{"$f":"[1]Personnel!T585","v":0},0,{"$f":"[1]Personnel!V585","v":0},{"$f":"[1]Personnel!W585","v":0},0,{"$f":"[1]Personnel!Y585","v":0},{"$f":"[1]Personnel!Z585","v":0},0,0,0,0,null,null,null,null,null,null,null,null,null,null,null,null,null,null,null,null,null,null,null,null,null,null,null,null,null,{"$f":"[1]Personnel!G585","v":0}]
[0,{"$f":"IFERROR(INDEX(Settings!$AP$17:$AP$38,MATCH(Personnel!$G586,Settings!$AQ$17:$AQ$38,0)),0)","v":0},null,null,null,{"$f":"[1]Personnel!F586","v":0},{"$f":"IFERROR(INDEX((SLevel),MATCH(Personnel!BA586,SLevel202223,0)),0)","v":0},{"$f":"[1]Personnel!H586","v":0},{"$f":"[1]Personnel!I586","v":0},{"$f":"[1]Personnel!J586","v":0},{"$f":"[1]Personnel!P586","v":0},{"$f":"[1]Personnel!Q586","v":0},0,{"$f":"[1]Personnel!S586","v":0},{"$f":"[1]Personnel!S586","v":0},{"$f":"[1]Personnel!S586","v":0},{"$f":"[1]Personnel!T586","v":0},0,{"$f":"[1]Personnel!V586","v":0},{"$f":"[1]Personnel!W586","v":0},0,{"$f":"[1]Personnel!Y586","v":0},{"$f":"[1]Personnel!Z586","v":0},0,0,0,0,null,null,null,null,null,null,null,null,null,null,null,null,null,null,null,null,null,null,null,null,null,null,null,null,null,{"$f":"[1]Personnel!G586","v":0}]
[0,{"$f":"IFERROR(INDEX(Settings!$AP$17:$AP$38,MATCH(Personnel!$G587,Settings!$AQ$17:$AQ$38,0)),0)","v":0},null,null,null,{"$f":"[1]Personnel!F587","v":0},{"$f":"IFERROR(INDEX((SLevel),MATCH(Personnel!BA587,SLevel202223,0)),0)","v":0},{"$f":"[1]Personnel!H587","v":0},{"$f":"[1]Personnel!I587","v":0},{"$f":"[1]Personnel!J587","v":0},{"$f":"[1]Personnel!P587","v":0},{"$f":"[1]Personnel!Q587","v":0},0,{"$f":"[1]Personnel!S587","v":0},{"$f":"[1]Personnel!S587","v":0},{"$f":"[1]Personnel!S587","v":0},{"$f":"[1]Personnel!T587","v":0},0,{"$f":"[1]Personnel!V587","v":0},{"$f":"[1]Personnel!W587","v":0},0,{"$f":"[1]Personnel!Y587","v":0},{"$f":"[1]Personnel!Z587","v":0},0,0,0,0,null,null,null,null,null,null,null,null,null,null,null,null,null,null,null,null,null,null,null,null,null,null,null,null,null,{"$f":"[1]Personnel!G587","v":0}]
[{"$f":"IF(SUM(K588:AA588)>0,1,0)","v":0},{"$f":"IFERROR(INDEX(Settings!$AP$17:$AP$38,MATCH(Personnel!$G588,Settings!$AQ$17:$AQ$38,0)),0)","v":0},null,null,null,{"$f":"[1]Personnel!F588","v":0},{"$f":"IFERROR(INDEX((SLevel),MATCH(Personnel!BA588,SLevel202223,0)),0)","v":0},{"$f":"[1]Personnel!H588","v":0},{"$f":"[1]Personnel!I588","v":0},{"$f":"[1]Personnel!J588","v":0},{"$f":"[1]Personnel!P588","v":0},{"$f":"[1]Personnel!Q588","v":0},0,{"$f":"[1]Personnel!S588","v":0},{"$f":"[1]Personnel!S588","v":0},{"$f":"[1]Personnel!S588","v":0},{"$f":"[1]Personnel!T588","v":0},0,{"$f":"[1]Personnel!V588","v":0},{"$f":"[1]Personnel!W588","v":0},0,{"$f":"[1]Personnel!Y588","v":0},{"$f":"[1]Personnel!Z588","v":0},0,0,0,0,null,null,null,null,null,null,null,null,null,null,null,null,null,null,null,null,null,null,null,null,null,null,null,null,null,{"$f":"[1]Personnel!G588","v":0}]
[0,{"$f":"IFERROR(INDEX(Settings!$AP$17:$AP$38,MATCH(Personnel!$G589,Settings!$AQ$17:$AQ$38,0)),0)","v":0},null,null,null,{"$f":"[1]Personnel!F589","v":0},{"$f":"IFERROR(INDEX((SLevel),MATCH(Personnel!BA589,SLevel202223,0)),0)","v":0},{"$f":"[1]Personnel!H589","v":0},{"$f":"[1]Personnel!I589","v":0},{"$f":"[1]Personnel!J589","v":0},{"$f":"[1]Personnel!P589","v":0},{"$f":"[1]Personnel!Q589","v":0},{"$f":"ROUND(IF(ISERROR(L589/K589),0,(L589/K589)),0)","v":0},{"$f":"[1]Personnel!S589","v":0},{"$f":"[1]Personnel!S589","v":0},{"$f":"[1]Personnel!S589","v":0},{"$f":"[1]Personnel!T589","v":0},{"$f":"ROUND(IF(ISERROR(Q589/P589),0,(Q589/P589)),0)","v":0},{"$f":"[1]Personnel!V589","v":0},{"$f":"[1]Personnel!W589","v":0},{"$f":"ROUND(IF(ISERROR(T589/S589),0,(T589/S589)),0)","v":0},{"$f":"[1]Personnel!Y589","v":0},{"$f":"[1]Personnel!Z589","v":0},{"$f":"ROUND(IF(ISERROR(W589/V589),0,(W589/V589)),0)","v":0},0,0,{"$f":"ROUND(IF(ISERROR(Z589/Y589),0,(Z589/Y589)),0)","v":0},null,null,null,null,null,null,null,null,null,null,null,null,null,null,null,null,null,null,null,null,null,null,null,null,null,{"$f":"[1]Personnel!G589","v":0}]
[0,{"$f":"IFERROR(INDEX(Settings!$AP$17:$AP$38,MATCH(Personnel!$G590,Settings!$AQ$17:$AQ$38,0)),0)","v":0},null,null,null,{"$f":"[1]Personnel!F590","v":0},{"$f":"IFERROR(INDEX((SLevel),MATCH(Personnel!BA590,SLevel202223,0)),0)","v":0},{"$f":"[1]Personnel!H590","v":0},{"$f":"[1]Personnel!I590","v":0},{"$f":"[1]Personnel!J590","v":0},{"$f":"[1]Personnel!P590","v":0},{"$f":"[1]Personnel!Q590","v":0},0,{"$f":"[1]Personnel!S590","v":0},{"$f":"[1]Personnel!S590","v":0},{"$f":"[1]Personnel!S590","v":0},{"$f":"[1]Personnel!T590","v":0},0,{"$f":"[1]Personnel!V590","v":0},{"$f":"[1]Personnel!W590","v":0},0,{"$f":"[1]Personnel!Y590","v":0},{"$f":"[1]Personnel!Z590","v":0},0,0,0,0,null,null,null,null,null,null,null,null,null,null,null,null,null,null,null,null,null,null,null,null,null,null,null,null,null,{"$f":"[1]Personnel!G590","v":0}]
[0,{"$f":"IFERROR(INDEX(Settings!$AP$17:$AP$38,MATCH(Personnel!$G591,Settings!$AQ$17:$AQ$38,0)),0)","v":0},null,null,null,{"$f":"[1]Personnel!F591","v":0},{"$f":"IFERROR(INDEX((SLevel),MATCH(Personnel!BA591,SLevel202223,0)),0)","v":0},{"$f":"[1]Personnel!H591","v":0},{"$f":"[1]Personnel!I591","v":0},{"$f":"[1]Personnel!J591","v":0},{"$f":"[1]Personnel!P591","v":0},{"$f":"[1]Personnel!Q591","v":0},0,{"$f":"[1]Personnel!S591","v":0},{"$f":"[1]Personnel!S591","v":0},{"$f":"[1]Personnel!S591","v":0},{"$f":"[1]Personnel!T591","v":0},0,{"$f":"[1]Personnel!V591","v":0},{"$f":"[1]Personnel!W591","v":0},0,{"$f":"[1]Personnel!Y591","v":0},{"$f":"[1]Personnel!Z591","v":0},0,0,0,0,null,null,null,null,null,null,null,null,null,null,null,null,null,null,null,null,null,null,null,null,null,null,null,null,null,{"$f":"[1]Personnel!G591","v":0}]
[0,{"$f":"IFERROR(INDEX(Settings!$AP$17:$AP$38,MATCH(Personnel!$G592,Settings!$AQ$17:$AQ$38,0)),0)","v":0},null,null,null,{"$f":"[1]Personnel!F592","v":0},{"$f":"IFERROR(INDEX((SLevel),MATCH(Personnel!BA592,SLevel202223,0)),0)","v":0},{"$f":"[1]Personnel!H592","v":0},{"$f":"[1]Personnel!I592","v":0},{"$f":"[1]Personnel!J592","v":0},{"$f":"[1]Personnel!P592","v":0},{"$f":"[1]Personnel!Q592","v":0},0,{"$f":"[1]Personnel!S592","v":0},{"$f":"[1]Personnel!S592","v":0},{"$f":"[1]Personnel!S592","v":0},{"$f":"[1]Personnel!T592","v":0},0,{"$f":"[1]Personnel!V592","v":0},{"$f":"[1]Personnel!W592","v":0},0,{"$f":"[1]Personnel!Y592","v":0},{"$f":"[1]Personnel!Z592","v":0},0,0,0,0,null,null,null,null,null,null,null,null,null,null,null,null,null,null,null,null,null,null,null,null,null,null,null,null,null,{"$f":"[1]Personnel!G592","v":0}]
[0,{"$f":"IFERROR(INDEX(Settings!$AP$17:$AP$38,MATCH(Personnel!$G593,Settings!$AQ$17:$AQ$38,0)),0)","v":0},null,null,null,{"$f":"[1]Personnel!F593","v":0},{"$f":"IFERROR(INDEX((SLevel),MATCH(Personnel!BA593,SLevel202223,0)),0)","v":0},{"$f":"[1]Personnel!H593","v":0},{"$f":"[1]Personnel!I593","v":0},{"$f":"[1]Personnel!J593","v":0},{"$f":"[1]Personnel!P593","v":0},{"$f":"[1]Personnel!Q593","v":0},0,{"$f":"[1]Personnel!S593","v":0},{"$f":"[1]Personnel!S593","v":0},{"$f":"[1]Personnel!S593","v":0},{"$f":"[1]Personnel!T593","v":0},0,{"$f":"[1]Personnel!V593","v":0},{"$f":"[1]Personnel!W593","v":0},0,{"$f":"[1]Personnel!Y593","v":0},{"$f":"[1]Personnel!Z593","v":0},0,0,0,0,null,null,null,null,null,null,null,null,null,null,null,null,null,null,null,null,null,null,null,null,null,null,null,null,null,{"$f":"[1]Personnel!G593","v":0}]
[0,{"$f":"IFERROR(INDEX(Settings!$AP$17:$AP$38,MATCH(Personnel!$G594,Settings!$AQ$17:$AQ$38,0)),0)","v":0},null,null,null,{"$f":"[1]Personnel!F594","v":0},{"$f":"IFERROR(INDEX((SLevel),MATCH(Personnel!BA594,SLevel202223,0)),0)","v":0},{"$f":"[1]Personnel!H594","v":0},{"$f":"[1]Personnel!I594","v":0},{"$f":"[1]Personnel!J594","v":0},{"$f":"[1]Personnel!P594","v":0},{"$f":"[1]Personnel!Q594","v":0},0,{"$f":"[1]Personnel!S594","v":0},{"$f":"[1]Personnel!S594","v":0},{"$f":"[1]Personnel!S594","v":0},{"$f":"[1]Personnel!T594","v":0},0,{"$f":"[1]Personnel!V594","v":0},{"$f":"[1]Personnel!W594","v":0},0,{"$f":"[1]Personnel!Y594","v":0},{"$f":"[1]Personnel!Z594","v":0},0,0,0,0,null,null,null,null,null,null,null,null,null,null,null,null,null,null,null,null,null,null,null,null,null,null,null,null,null,{"$f":"[1]Personnel!G594","v":0}]
[0,{"$f":"IFERROR(INDEX(Settings!$AP$17:$AP$38,MATCH(Personnel!$G595,Settings!$AQ$17:$AQ$38,0)),0)","v":0},null,null,null,{"$f":"[1]Personnel!F595","v":0},{"$f":"IFERROR(INDEX((SLevel),MATCH(Personnel!BA595,SLevel202223,0)),0)","v":0},{"$f":"[1]Personnel!H595","v":0},{"$f":"[1]Personnel!I595","v":0},{"$f":"[1]Personnel!J595","v":0},{"$f":"[1]Personnel!P595","v":0},{"$f":"[1]Personnel!Q595","v":0},0,{"$f":"[1]Personnel!S595","v":0},{"$f":"[1]Personnel!S595","v":0},{"$f":"[1]Personnel!S595","v":0},{"$f":"[1]Personnel!T595","v":0},0,{"$f":"[1]Personnel!V595","v":0},{"$f":"[1]Personnel!W595","v":0},0,{"$f":"[1]Personnel!Y595","v":0},{"$f":"[1]Personnel!Z595","v":0},0,0,0,0,null,null,null,null,null,null,null,null,null,null,null,null,null,null,null,null,null,null,null,null,null,null,null,null,null,{"$f":"[1]Personnel!G595","v":0}]
[0,{"$f":"IFERROR(INDEX(Settings!$AP$17:$AP$38,MATCH(Personnel!$G596,Settings!$AQ$17:$AQ$38,0)),0)","v":0},null,null,null,{"$f":"[1]Personnel!F596","v":0},{"$f":"IFERROR(INDEX((SLevel),MATCH(Personnel!BA596,SLevel202223,0)),0)","v":0},{"$f":"[1]Personnel!H596","v":0},{"$f":"[1]Personnel!I596","v":0},{"$f":"[1]Personnel!J596","v":0},{"$f":"[1]Personnel!P596","v":0},{"$f":"[1]Personnel!Q596","v":0},0,{"$f":"[1]Personnel!S596","v":0},{"$f":"[1]Personnel!S596","v":0},{"$f":"[1]Personnel!S596","v":0},{"$f":"[1]Personnel!T596","v":0},0,{"$f":"[1]Personnel!V596","v":0},{"$f":"[1]Personnel!W596","v":0},0,{"$f":"[1]Personnel!Y596","v":0},{"$f":"[1]Personnel!Z596","v":0},0,0,0,0,null,null,null,null,null,null,null,null,null,null,null,null,null,null,null,null,null,null,null,null,null,null,null,null,null,{"$f":"[1]Personnel!G596","v":0}]
[0,{"$f":"IFERROR(INDEX(Settings!$AP$17:$AP$38,MATCH(Personnel!$G597,Settings!$AQ$17:$AQ$38,0)),0)","v":0},null,null,null,{"$f":"[1]Personnel!F597","v":0},{"$f":"IFERROR(INDEX((SLevel),MATCH(Personnel!BA597,SLevel202223,0)),0)","v":0},{"$f":"[1]Personnel!H597","v":0},{"$f":"[1]Personnel!I597","v":0},{"$f":"[1]Personnel!J597","v":0},{"$f":"[1]Personnel!P597","v":0},{"$f":"[1]Personnel!Q597","v":0},0,{"$f":"[1]Personnel!S597","v":0},{"$f":"[1]Personnel!S597","v":0},{"$f":"[1]Personnel!S597","v":0},{"$f":"[1]Personnel!T597","v":0},0,{"$f":"[1]Personnel!V597","v":0},{"$f":"[1]Personnel!W597","v":0},0,{"$f":"[1]Personnel!Y597","v":0},{"$f":"[1]Personnel!Z597","v":0},0,0,0,0,null,null,null,null,null,null,null,null,null,null,null,null,null,null,null,null,null,null,null,null,null,null,null,null,null,{"$f":"[1]Personnel!G597","v":0}]
[0,{"$f":"IFERROR(INDEX(Settings!$AP$17:$AP$38,MATCH(Personnel!$G598,Settings!$AQ$17:$AQ$38,0)),0)","v":0},null,null,null,{"$f":"[1]Personnel!F598","v":0},{"$f":"IFERROR(INDEX((SLevel),MATCH(Personnel!BA598,SLevel202223,0)),0)","v":0},{"$f":"[1]Personnel!H598","v":0},{"$f":"[1]Personnel!I598","v":0},{"$f":"[1]Personnel!J598","v":0},{"$f":"[1]Personnel!P598","v":0},{"$f":"[1]Personnel!Q598","v":0},0,{"$f":"[1]Personnel!S598","v":0},{"$f":"[1]Personnel!S598","v":0},{"$f":"[1]Personnel!S598","v":0},{"$f":"[1]Personnel!T598","v":0},0,{"$f":"[1]Personnel!V598","v":0},{"$f":"[1]Personnel!W598","v":0},0,{"$f":"[1]Personnel!Y598","v":0},{"$f":"[1]Personnel!Z598","v":0},0,0,0,0,null,null,null,null,null,null,null,null,null,null,null,null,null,null,null,null,null,null,null,null,null,null,null,null,null,{"$f":"[1]Personnel!G598","v":0}]
[0,{"$f":"IFERROR(INDEX(Settings!$AP$17:$AP$38,MATCH(Personnel!$G599,Settings!$AQ$17:$AQ$38,0)),0)","v":0},null,null,null,{"$f":"[1]Personnel!F599","v":0},{"$f":"IFERROR(INDEX((SLevel),MATCH(Personnel!BA599,SLevel202223,0)),0)","v":0},{"$f":"[1]Personnel!H599","v":0},{"$f":"[1]Personnel!I599","v":0},{"$f":"[1]Personnel!J599","v":0},{"$f":"[1]Personnel!P599","v":0},{"$f":"[1]Personnel!Q599","v":0},0,{"$f":"[1]Personnel!S599","v":0},{"$f":"[1]Personnel!S599","v":0},{"$f":"[1]Personnel!S599","v":0},{"$f":"[1]Personnel!T599","v":0},0,{"$f":"[1]Personnel!V599","v":0},{"$f":"[1]Personnel!W599","v":0},0,{"$f":"[1]Personnel!Y599","v":0},{"$f":"[1]Personnel!Z599","v":0},0,0,0,0,null,null,null,null,null,null,null,null,null,null,null,null,null,null,null,null,null,null,null,null,null,null,null,null,null,{"$f":"[1]Personnel!G599","v":0}]
[0,{"$f":"IFERROR(INDEX(Settings!$AP$17:$AP$38,MATCH(Personnel!$G600,Settings!$AQ$17:$AQ$38,0)),0)","v":0},null,null,null,{"$f":"[1]Personnel!F600","v":0},{"$f":"IFERROR(INDEX((SLevel),MATCH(Personnel!BA600,SLevel202223,0)),0)","v":0},{"$f":"[1]Personnel!H600","v":0},{"$f":"[1]Personnel!I600","v":0},{"$f":"[1]Personnel!J600","v":0},{"$f":"[1]Personnel!P600","v":0},{"$f":"[1]Personnel!Q600","v":0},0,{"$f":"[1]Personnel!S600","v":0},{"$f":"[1]Personnel!S600","v":0},{"$f":"[1]Personnel!S600","v":0},{"$f":"[1]Personnel!T600","v":0},0,{"$f":"[1]Personnel!V600","v":0},{"$f":"[1]Personnel!W600","v":0},0,{"$f":"[1]Personnel!Y600","v":0},{"$f":"[1]Personnel!Z600","v":0},0,0,0,0,null,null,null,null,null,null,null,null,null,null,null,null,null,null,null,null,null,null,null,null,null,null,null,null,null,{"$f":"[1]Personnel!G600","v":0}]
[0,{"$f":"IFERROR(INDEX(Settings!$AP$17:$AP$38,MATCH(Personnel!$G601,Settings!$AQ$17:$AQ$38,0)),0)","v":0},null,null,null,{"$f":"[1]Personnel!F601","v":0},{"$f":"IFERROR(INDEX((SLevel),MATCH(Personnel!BA601,SLevel202223,0)),0)","v":0},{"$f":"[1]Personnel!H601","v":0},{"$f":"[1]Personnel!I601","v":0},{"$f":"[1]Personnel!J601","v":0},{"$f":"[1]Personnel!P601","v":0},{"$f":"[1]Personnel!Q601","v":0},0,{"$f":"[1]Personnel!S601","v":0},{"$f":"[1]Personnel!S601","v":0},{"$f":"[1]Personnel!S601","v":0},{"$f":"[1]Personnel!T601","v":0},0,{"$f":"[1]Personnel!V601","v":0},{"$f":"[1]Personnel!W601","v":0},0,{"$f":"[1]Personnel!Y601","v":0},{"$f":"[1]Personnel!Z601","v":0},0,0,0,0,null,null,null,null,null,null,null,null,null,null,null,null,null,null,null,null,null,null,null,null,null,null,null,null,null,{"$f":"[1]Personnel!G601","v":0}]
[0,{"$f":"IFERROR(INDEX(Settings!$AP$17:$AP$38,MATCH(Personnel!$G602,Settings!$AQ$17:$AQ$38,0)),0)","v":0},null,null,null,{"$f":"[1]Personnel!F602","v":0},{"$f":"IFERROR(INDEX((SLevel),MATCH(Personnel!BA602,SLevel202223,0)),0)","v":0},{"$f":"[1]Personnel!H602","v":0},{"$f":"[1]Personnel!I602","v":0},{"$f":"[1]Personnel!J602","v":0},{"$f":"[1]Personnel!P602","v":0},{"$f":"[1]Personnel!Q602","v":0},0,{"$f":"[1]Personnel!S602","v":0},{"$f":"[1]Personnel!S602","v":0},{"$f":"[1]Personnel!S602","v":0},{"$f":"[1]Personnel!T602","v":0},0,{"$f":"[1]Personnel!V602","v":0},{"$f":"[1]Personnel!W602","v":0},0,{"$f":"[1]Personnel!Y602","v":0},{"$f":"[1]Personnel!Z602","v":0},0,0,0,0,null,null,null,null,null,null,null,null,null,null,null,null,null,null,null,null,null,null,null,null,null,null,null,null,null,{"$f":"[1]Personnel!G602","v":0}]
[0,{"$f":"IFERROR(INDEX(Settings!$AP$17:$AP$38,MATCH(Personnel!$G603,Settings!$AQ$17:$AQ$38,0)),0)","v":0},null,null,null,{"$f":"[1]Personnel!F603","v":0},{"$f":"IFERROR(INDEX((SLevel),MATCH(Personnel!BA603,SLevel202223,0)),0)","v":0},{"$f":"[1]Personnel!H603","v":0},{"$f":"[1]Personnel!I603","v":0},{"$f":"[1]Personnel!J603","v":0},{"$f":"[1]Personnel!P603","v":0},{"$f":"[1]Personnel!Q603","v":0},0,{"$f":"[1]Personnel!S603","v":0},{"$f":"[1]Personnel!S603","v":0},{"$f":"[1]Personnel!S603","v":0},{"$f":"[1]Personnel!T603","v":0},0,{"$f":"[1]Personnel!V603","v":0},{"$f":"[1]Personnel!W603","v":0},0,{"$f":"[1]Personnel!Y603","v":0},{"$f":"[1]Personnel!Z603","v":0},0,0,0,0,null,null,null,null,null,null,null,null,null,null,null,null,null,null,null,null,null,null,null,null,null,null,null,null,null,{"$f":"[1]Personnel!G603","v":0}]
[0,{"$f":"IFERROR(INDEX(Settings!$AP$17:$AP$38,MATCH(Personnel!$G604,Settings!$AQ$17:$AQ$38,0)),0)","v":0},null,null,null,{"$f":"[1]Personnel!F604","v":0},{"$f":"IFERROR(INDEX((SLevel),MATCH(Personnel!BA604,SLevel202223,0)),0)","v":0},{"$f":"[1]Personnel!H604","v":0},{"$f":"[1]Personnel!I604","v":0},{"$f":"[1]Personnel!J604","v":0},{"$f":"[1]Personnel!P604","v":0},{"$f":"[1]Personnel!Q604","v":0},0,{"$f":"[1]Personnel!S604","v":0},{"$f":"[1]Personnel!S604","v":0},{"$f":"[1]Personnel!S604","v":0},{"$f":"[1]Personnel!T604","v":0},0,{"$f":"[1]Personnel!V604","v":0},{"$f":"[1]Personnel!W604","v":0},0,{"$f":"[1]Personnel!Y604","v":0},{"$f":"[1]Personnel!Z604","v":0},0,0,0,0,null,null,null,null,null,null,null,null,null,null,null,null,null,null,null,null,null,null,null,null,null,null,null,null,null,{"$f":"[1]Personnel!G604","v":0}]
[0,{"$f":"IFERROR(INDEX(Settings!$AP$17:$AP$38,MATCH(Personnel!$G605,Settings!$AQ$17:$AQ$38,0)),0)","v":0},null,null,null,{"$f":"[1]Personnel!F605","v":0},{"$f":"IFERROR(INDEX((SLevel),MATCH(Personnel!BA605,SLevel202223,0)),0)","v":0},{"$f":"[1]Personnel!H605","v":0},{"$f":"[1]Personnel!I605","v":0},{"$f":"[1]Personnel!J605","v":0},{"$f":"[1]Personnel!P605","v":0},{"$f":"[1]Personnel!Q605","v":0},0,{"$f":"[1]Personnel!S605","v":0},{"$f":"[1]Personnel!S605","v":0},{"$f":"[1]Personnel!S605","v":0},{"$f":"[1]Personnel!T605","v":0},0,{"$f":"[1]Personnel!V605","v":0},{"$f":"[1]Personnel!W605","v":0},0,{"$f":"[1]Personnel!Y605","v":0},{"$f":"[1]Personnel!Z605","v":0},0,0,0,0,null,null,null,null,null,null,null,null,null,null,null,null,null,null,null,null,null,null,null,null,null,null,null,null,null,{"$f":"[1]Personnel!G605","v":0}]
[0,{"$f":"IFERROR(INDEX(Settings!$AP$17:$AP$38,MATCH(Personnel!$G606,Settings!$AQ$17:$AQ$38,0)),0)","v":0},null,null,null,{"$f":"[1]Personnel!F606","v":0},{"$f":"IFERROR(INDEX((SLevel),MATCH(Personnel!BA606,SLevel202223,0)),0)","v":0},{"$f":"[1]Personnel!H606","v":0},{"$f":"[1]Personnel!I606","v":0},{"$f":"[1]Personnel!J606","v":0},{"$f":"[1]Personnel!P606","v":0},{"$f":"[1]Personnel!Q606","v":0},0,{"$f":"[1]Personnel!S606","v":0},{"$f":"[1]Personnel!S606","v":0},{"$f":"[1]Personnel!S606","v":0},{"$f":"[1]Personnel!T606","v":0},0,{"$f":"[1]Personnel!V606","v":0},{"$f":"[1]Personnel!W606","v":0},0,{"$f":"[1]Personnel!Y606","v":0},{"$f":"[1]Personnel!Z606","v":0},0,0,0,0,null,null,null,null,null,null,null,null,null,null,null,null,null,null,null,null,null,null,null,null,null,null,null,null,null,{"$f":"[1]Personnel!G606","v":0}]
[0,{"$f":"IFERROR(INDEX(Settings!$AP$17:$AP$38,MATCH(Personnel!$G607,Settings!$AQ$17:$AQ$38,0)),0)","v":0},null,null,null,{"$f":"[1]Personnel!F607","v":0},{"$f":"IFERROR(INDEX((SLevel),MATCH(Personnel!BA607,SLevel202223,0)),0)","v":0},{"$f":"[1]Personnel!H607","v":0},{"$f":"[1]Personnel!I607","v":0},{"$f":"[1]Personnel!J607","v":0},{"$f":"[1]Personnel!P607","v":0},{"$f":"[1]Personnel!Q607","v":0},0,{"$f":"[1]Personnel!S607","v":0},{"$f":"[1]Personnel!S607","v":0},{"$f":"[1]Personnel!S607","v":0},{"$f":"[1]Personnel!T607","v":0},0,{"$f":"[1]Personnel!V607","v":0},{"$f":"[1]Personnel!W607","v":0},0,{"$f":"[1]Personnel!Y607","v":0},{"$f":"[1]Personnel!Z607","v":0},0,0,0,0,null,null,null,null,null,null,null,null,null,null,null,null,null,null,null,null,null,null,null,null,null,null,null,null,null,{"$f":"[1]Personnel!G607","v":0}]
[0,{"$f":"IFERROR(INDEX(Settings!$AP$17:$AP$38,MATCH(Personnel!$G608,Settings!$AQ$17:$AQ$38,0)),0)","v":0},null,null,null,{"$f":"[1]Personnel!F608","v":0},{"$f":"IFERROR(INDEX((SLevel),MATCH(Personnel!BA608,SLevel202223,0)),0)","v":0},{"$f":"[1]Personnel!H608","v":0},{"$f":"[1]Personnel!I608","v":0},{"$f":"[1]Personnel!J608","v":0},{"$f":"[1]Personnel!P608","v":0},{"$f":"[1]Personnel!Q608","v":0},0,{"$f":"[1]Personnel!S608","v":0},{"$f":"[1]Personnel!S608","v":0},{"$f":"[1]Personnel!S608","v":0},{"$f":"[1]Personnel!T608","v":0},0,{"$f":"[1]Personnel!V608","v":0},{"$f":"[1]Personnel!W608","v":0},0,{"$f":"[1]Personnel!Y608","v":0},{"$f":"[1]Personnel!Z608","v":0},0,0,0,0,null,null,null,null,null,null,null,null,null,null,null,null,null,null,null,null,null,null,null,null,null,null,null,null,null,{"$f":"[1]Personnel!G608","v":0}]
[0,{"$f":"IFERROR(INDEX(Settings!$AP$17:$AP$38,MATCH(Personnel!$G609,Settings!$AQ$17:$AQ$38,0)),0)","v":0},null,null,null,{"$f":"[1]Personnel!F609","v":0},{"$f":"IFERROR(INDEX((SLevel),MATCH(Personnel!BA609,SLevel202223,0)),0)","v":0},{"$f":"[1]Personnel!H609","v":0},{"$f":"[1]Personnel!I609","v":0},{"$f":"[1]Personnel!J609","v":0},{"$f":"[1]Personnel!P609","v":0},{"$f":"[1]Personnel!Q609","v":0},0,{"$f":"[1]Personnel!S609","v":0},{"$f":"[1]Personnel!S609","v":0},{"$f":"[1]Personnel!S609","v":0},{"$f":"[1]Personnel!T609","v":0},0,{"$f":"[1]Personnel!V609","v":0},{"$f":"[1]Personnel!W609","v":0},0,{"$f":"[1]Personnel!Y609","v":0},{"$f":"[1]Personnel!Z609","v":0},0,0,0,0,null,null,null,null,null,null,null,null,null,null,null,null,null,null,null,null,null,null,null,null,null,null,null,null,null,{"$f":"[1]Personnel!G609","v":0}]
[0,{"$f":"IFERROR(INDEX(Settings!$AP$17:$AP$38,MATCH(Personnel!$G610,Settings!$AQ$17:$AQ$38,0)),0)","v":0},null,null,null,{"$f":"[1]Personnel!F610","v":0},{"$f":"IFERROR(INDEX((SLevel),MATCH(Personnel!BA610,SLevel202223,0)),0)","v":0},{"$f":"[1]Personnel!H610","v":0},{"$f":"[1]Personnel!I610","v":0},{"$f":"[1]Personnel!J610","v":0},{"$f":"[1]Personnel!P610","v":0},{"$f":"[1]Personnel!Q610","v":0},0,{"$f":"[1]Personnel!S610","v":0},{"$f":"[1]Personnel!S610","v":0},{"$f":"[1]Personnel!S610","v":0},{"$f":"[1]Personnel!T610","v":0},0,{"$f":"[1]Personnel!V610","v":0},{"$f":"[1]Personnel!W610","v":0},0,{"$f":"[1]Personnel!Y610","v":0},{"$f":"[1]Personnel!Z610","v":0},0,0,0,0,null,null,null,null,null,null,null,null,null,null,null,null,null,null,null,null,null,null,null,null,null,null,null,null,null,{"$f":"[1]Personnel!G610","v":0}]
[0,{"$f":"IFERROR(INDEX(Settings!$AP$17:$AP$38,MATCH(Personnel!$G611,Settings!$AQ$17:$AQ$38,0)),0)","v":0},null,null,null,{"$f":"[1]Personnel!F611","v":0},{"$f":"IFERROR(INDEX((SLevel),MATCH(Personnel!BA611,SLevel202223,0)),0)","v":0},{"$f":"[1]Personnel!H611","v":0},{"$f":"[1]Personnel!I611","v":0},{"$f":"[1]Personnel!J611","v":0},{"$f":"[1]Personnel!P611","v":0},{"$f":"[1]Personnel!Q611","v":0},0,{"$f":"[1]Personnel!S611","v":0},{"$f":"[1]Personnel!S611","v":0},{"$f":"[1]Personnel!S611","v":0},{"$f":"[1]Personnel!T611","v":0},0,{"$f":"[1]Personnel!V611","v":0},{"$f":"[1]Personnel!W611","v":0},0,{"$f":"[1]Personnel!Y611","v":0},{"$f":"[1]Personnel!Z611","v":0},0,0,0,0,null,null,null,null,null,null,null,null,null,null,null,null,null,null,null,null,null,null,null,null,null,null,null,null,null,{"$f":"[1]Personnel!G611","v":0}]
[0,{"$f":"IFERROR(INDEX(Settings!$AP$17:$AP$38,MATCH(Personnel!$G612,Settings!$AQ$17:$AQ$38,0)),0)","v":0},null,null,null,{"$f":"[1]Personnel!F612","v":0},{"$f":"IFERROR(INDEX((SLevel),MATCH(Personnel!BA612,SLevel202223,0)),0)","v":0},{"$f":"[1]Personnel!H612","v":0},{"$f":"[1]Personnel!I612","v":0},{"$f":"[1]Personnel!J612","v":0},{"$f":"[1]Personnel!P612","v":0},{"$f":"[1]Personnel!Q612","v":0},0,{"$f":"[1]Personnel!S612","v":0},{"$f":"[1]Personnel!S612","v":0},{"$f":"[1]Personnel!S612","v":0},{"$f":"[1]Personnel!T612","v":0},0,{"$f":"[1]Personnel!V612","v":0},{"$f":"[1]Personnel!W612","v":0},0,{"$f":"[1]Personnel!Y612","v":0},{"$f":"[1]Personnel!Z612","v":0},0,0,0,0,null,null,null,null,null,null,null,null,null,null,null,null,null,null,null,null,null,null,null,null,null,null,null,null,null,{"$f":"[1]Personnel!G612","v":0}]
[0,{"$f":"IFERROR(INDEX(Settings!$AP$17:$AP$38,MATCH(Personnel!$G613,Settings!$AQ$17:$AQ$38,0)),0)","v":0},null,null,null,{"$f":"[1]Personnel!F613","v":0},{"$f":"IFERROR(INDEX((SLevel),MATCH(Personnel!BA613,SLevel202223,0)),0)","v":0},{"$f":"[1]Personnel!H613","v":0},{"$f":"[1]Personnel!I613","v":0},{"$f":"[1]Personnel!J613","v":0},{"$f":"[1]Personnel!P613","v":0},{"$f":"[1]Personnel!Q613","v":0},0,{"$f":"[1]Personnel!S613","v":0},{"$f":"[1]Personnel!S613","v":0},{"$f":"[1]Personnel!S613","v":0},{"$f":"[1]Personnel!T613","v":0},0,{"$f":"[1]Personnel!V613","v":0},{"$f":"[1]Personnel!W613","v":0},0,{"$f":"[1]Personnel!Y613","v":0},{"$f":"[1]Personnel!Z613","v":0},0,0,0,0,null,null,null,null,null,null,null,null,null,null,null,null,null,null,null,null,null,null,null,null,null,null,null,null,null,{"$f":"[1]Personnel!G613","v":0}]
[0,{"$f":"IFERROR(INDEX(Settings!$AP$17:$AP$38,MATCH(Personnel!$G614,Settings!$AQ$17:$AQ$38,0)),0)","v":0},null,null,null,{"$f":"[1]Personnel!F614","v":0},{"$f":"IFERROR(INDEX((SLevel),MATCH(Personnel!BA614,SLevel202223,0)),0)","v":0},{"$f":"[1]Personnel!H614","v":0},{"$f":"[1]Personnel!I614","v":0},{"$f":"[1]Personnel!J614","v":0},{"$f":"[1]Personnel!P614","v":0},{"$f":"[1]Personnel!Q614","v":0},0,{"$f":"[1]Personnel!S614","v":0},{"$f":"[1]Personnel!S614","v":0},{"$f":"[1]Personnel!S614","v":0},{"$f":"[1]Personnel!T614","v":0},0,{"$f":"[1]Personnel!V614","v":0},{"$f":"[1]Personnel!W614","v":0},0,{"$f":"[1]Personnel!Y614","v":0},{"$f":"[1]Personnel!Z614","v":0},0,0,0,0,null,null,null,null,null,null,null,null,null,null,null,null,null,null,null,null,null,null,null,null,null,null,null,null,null,{"$f":"[1]Personnel!G614","v":0}]
[0,{"$f":"IFERROR(INDEX(Settings!$AP$17:$AP$38,MATCH(Personnel!$G615,Settings!$AQ$17:$AQ$38,0)),0)","v":0},null,null,null,{"$f":"[1]Personnel!F615","v":0},{"$f":"IFERROR(INDEX((SLevel),MATCH(Personnel!BA615,SLevel202223,0)),0)","v":0},{"$f":"[1]Personnel!H615","v":0},{"$f":"[1]Personnel!I615","v":0},{"$f":"[1]Personnel!J615","v":0},{"$f":"[1]Personnel!P615","v":0},{"$f":"[1]Personnel!Q615","v":0},0,{"$f":"[1]Personnel!S615","v":0},{"$f":"[1]Personnel!S615","v":0},{"$f":"[1]Personnel!S615","v":0},{"$f":"[1]Personnel!T615","v":0},0,{"$f":"[1]Personnel!V615","v":0},{"$f":"[1]Personnel!W615","v":0},0,{"$f":"[1]Personnel!Y615","v":0},{"$f":"[1]Personnel!Z615","v":0},0,0,0,0,null,null,null,null,null,null,null,null,null,null,null,null,null,null,null,null,null,null,null,null,null,null,null,null,null,{"$f":"[1]Personnel!G615","v":0}]
[0,{"$f":"IFERROR(INDEX(Settings!$AP$17:$AP$38,MATCH(Personnel!$G616,Settings!$AQ$17:$AQ$38,0)),0)","v":0},null,null,null,{"$f":"[1]Personnel!F616","v":0},{"$f":"IFERROR(INDEX((SLevel),MATCH(Personnel!BA616,SLevel202223,0)),0)","v":0},{"$f":"[1]Personnel!H616","v":0},{"$f":"[1]Personnel!I616","v":0},{"$f":"[1]Personnel!J616","v":0},{"$f":"[1]Personnel!P616","v":0},{"$f":"[1]Personnel!Q616","v":0},0,{"$f":"[1]Personnel!S616","v":0},{"$f":"[1]Personnel!S616","v":0},{"$f":"[1]Personnel!S616","v":0},{"$f":"[1]Personnel!T616","v":0},0,{"$f":"[1]Personnel!V616","v":0},{"$f":"[1]Personnel!W616","v":0},0,{"$f":"[1]Personnel!Y616","v":0},{"$f":"[1]Personnel!Z616","v":0},0,0,0,0,null,null,null,null,null,null,null,null,null,null,null,null,null,null,null,null,null,null,null,null,null,null,null,null,null,{"$f":"[1]Personnel!G616","v":0}]
[0,{"$f":"IFERROR(INDEX(Settings!$AP$17:$AP$38,MATCH(Personnel!$G617,Settings!$AQ$17:$AQ$38,0)),0)","v":0},null,null,null,{"$f":"[1]Personnel!F617","v":0},{"$f":"IFERROR(INDEX((SLevel),MATCH(Personnel!BA617,SLevel202223,0)),0)","v":0},{"$f":"[1]Personnel!H617","v":0},{"$f":"[1]Personnel!I617","v":0},{"$f":"[1]Personnel!J617","v":0},{"$f":"[1]Personnel!P617","v":0},{"$f":"[1]Personnel!Q617","v":0},0,{"$f":"[1]Personnel!S617","v":0},{"$f":"[1]Personnel!S617","v":0},{"$f":"[1]Personnel!S617","v":0},{"$f":"[1]Personnel!T617","v":0},0,{"$f":"[1]Personnel!V617","v":0},{"$f":"[1]Personnel!W617","v":0},0,{"$f":"[1]Personnel!Y617","v":0},{"$f":"[1]Personnel!Z617","v":0},0,0,0,0,null,null,null,null,null,null,null,null,null,null,null,null,null,null,null,null,null,null,null,null,null,null,null,null,null,{"$f":"[1]Personnel!G617","v":0}]
[0,{"$f":"IFERROR(INDEX(Settings!$AP$17:$AP$38,MATCH(Personnel!$G618,Settings!$AQ$17:$AQ$38,0)),0)","v":0},null,null,null,{"$f":"[1]Personnel!F618","v":0},{"$f":"IFERROR(INDEX((SLevel),MATCH(Personnel!BA618,SLevel202223,0)),0)","v":0},{"$f":"[1]Personnel!H618","v":0},{"$f":"[1]Personnel!I618","v":0},{"$f":"[1]Personnel!J618","v":0},{"$f":"[1]Personnel!P618","v":0},{"$f":"[1]Personnel!Q618","v":0},0,{"$f":"[1]Personnel!S618","v":0},{"$f":"[1]Personnel!S618","v":0},{"$f":"[1]Personnel!S618","v":0},{"$f":"[1]Personnel!T618","v":0},0,{"$f":"[1]Personnel!V618","v":0},{"$f":"[1]Personnel!W618","v":0},0,{"$f":"[1]Personnel!Y618","v":0},{"$f":"[1]Personnel!Z618","v":0},0,0,0,0,null,null,null,null,null,null,null,null,null,null,null,null,null,null,null,null,null,null,null,null,null,null,null,null,null,{"$f":"[1]Personnel!G618","v":0}]
[0,{"$f":"IFERROR(INDEX(Settings!$AP$17:$AP$38,MATCH(Personnel!$G619,Settings!$AQ$17:$AQ$38,0)),0)","v":0},null,null,null,{"$f":"[1]Personnel!F619","v":0},{"$f":"IFERROR(INDEX((SLevel),MATCH(Personnel!BA619,SLevel202223,0)),0)","v":0},{"$f":"[1]Personnel!H619","v":0},{"$f":"[1]Personnel!I619","v":0},{"$f":"[1]Personnel!J619","v":0},{"$f":"[1]Personnel!P619","v":0},{"$f":"[1]Personnel!Q619","v":0},0,{"$f":"[1]Personnel!S619","v":0},{"$f":"[1]Personnel!S619","v":0},{"$f":"[1]Personnel!S619","v":0},{"$f":"[1]Personnel!T619","v":0},0,{"$f":"[1]Personnel!V619","v":0},{"$f":"[1]Personnel!W619","v":0},0,{"$f":"[1]Personnel!Y619","v":0},{"$f":"[1]Personnel!Z619","v":0},0,0,0,0,null,null,null,null,null,null,null,null,null,null,null,null,null,null,null,null,null,null,null,null,null,null,null,null,null,{"$f":"[1]Personnel!G619","v":0}]
[0,{"$f":"IFERROR(INDEX(Settings!$AP$17:$AP$38,MATCH(Personnel!$G620,Settings!$AQ$17:$AQ$38,0)),0)","v":0},null,null,null,{"$f":"[1]Personnel!F620","v":0},{"$f":"IFERROR(INDEX((SLevel),MATCH(Personnel!BA620,SLevel202223,0)),0)","v":0},{"$f":"[1]Personnel!H620","v":0},{"$f":"[1]Personnel!I620","v":0},{"$f":"[1]Personnel!J620","v":0},{"$f":"[1]Personnel!P620","v":0},{"$f":"[1]Personnel!Q620","v":0},0,{"$f":"[1]Personnel!S620","v":0},{"$f":"[1]Personnel!S620","v":0},{"$f":"[1]Personnel!S620","v":0},{"$f":"[1]Personnel!T620","v":0},0,{"$f":"[1]Personnel!V620","v":0},{"$f":"[1]Personnel!W620","v":0},0,{"$f":"[1]Personnel!Y620","v":0},{"$f":"[1]Personnel!Z620","v":0},0,0,0,0,null,null,null,null,null,null,null,null,null,null,null,null,null,null,null,null,null,null,null,null,null,null,null,null,null,{"$f":"[1]Personnel!G620","v":0}]
[0,{"$f":"IFERROR(INDEX(Settings!$AP$17:$AP$38,MATCH(Personnel!$G621,Settings!$AQ$17:$AQ$38,0)),0)","v":0},null,null,null,{"$f":"[1]Personnel!F621","v":0},{"$f":"IFERROR(INDEX((SLevel),MATCH(Personnel!BA621,SLevel202223,0)),0)","v":0},{"$f":"[1]Personnel!H621","v":0},{"$f":"[1]Personnel!I621","v":0},{"$f":"[1]Personnel!J621","v":0},{"$f":"[1]Personnel!P621","v":0},{"$f":"[1]Personnel!Q621","v":0},0,{"$f":"[1]Personnel!S621","v":0},{"$f":"[1]Personnel!S621","v":0},{"$f":"[1]Personnel!S621","v":0},{"$f":"[1]Personnel!T621","v":0},0,{"$f":"[1]Personnel!V621","v":0},{"$f":"[1]Personnel!W621","v":0},0,{"$f":"[1]Personnel!Y621","v":0},{"$f":"[1]Personnel!Z621","v":0},0,0,0,0,null,null,null,null,null,null,null,null,null,null,null,null,null,null,null,null,null,null,null,null,null,null,null,null,null,{"$f":"[1]Personnel!G621","v":0}]
[0,{"$f":"IFERROR(INDEX(Settings!$AP$17:$AP$38,MATCH(Personnel!$G622,Settings!$AQ$17:$AQ$38,0)),0)","v":0},null,null,null,{"$f":"[1]Personnel!F622","v":0},{"$f":"IFERROR(INDEX((SLevel),MATCH(Personnel!BA622,SLevel202223,0)),0)","v":0},{"$f":"[1]Personnel!H622","v":0},{"$f":"[1]Personnel!I622","v":0},{"$f":"[1]Personnel!J622","v":0},{"$f":"[1]Personnel!P622","v":0},{"$f":"[1]Personnel!Q622","v":0},0,{"$f":"[1]Personnel!S622","v":0},{"$f":"[1]Personnel!S622","v":0},{"$f":"[1]Personnel!S622","v":0},{"$f":"[1]Personnel!T622","v":0},0,{"$f":"[1]Personnel!V622","v":0},{"$f":"[1]Personnel!W622","v":0},0,{"$f":"[1]Personnel!Y622","v":0},{"$f":"[1]Personnel!Z622","v":0},0,0,0,0,null,null,null,null,null,null,null,null,null,null,null,null,null,null,null,null,null,null,null,null,null,null,null,null,null,{"$f":"[1]Personnel!G622","v":0}]
[0,{"$f":"IFERROR(INDEX(Settings!$AP$17:$AP$38,MATCH(Personnel!$G623,Settings!$AQ$17:$AQ$38,0)),0)","v":0},null,null,null,{"$f":"[1]Personnel!F623","v":0},{"$f":"IFERROR(INDEX((SLevel),MATCH(Personnel!BA623,SLevel202223,0)),0)","v":0},{"$f":"[1]Personnel!H623","v":0},{"$f":"[1]Personnel!I623","v":0},{"$f":"[1]Personnel!J623","v":0},{"$f":"[1]Personnel!P623","v":0},{"$f":"[1]Personnel!Q623","v":0},0,{"$f":"[1]Personnel!S623","v":0},{"$f":"[1]Personnel!S623","v":0},{"$f":"[1]Personnel!S623","v":0},{"$f":"[1]Personnel!T623","v":0},0,{"$f":"[1]Personnel!V623","v":0},{"$f":"[1]Personnel!W623","v":0},0,{"$f":"[1]Personnel!Y623","v":0},{"$f":"[1]Personnel!Z623","v":0},0,0,0,0,null,null,null,null,null,null,null,null,null,null,null,null,null,null,null,null,null,null,null,null,null,null,null,null,null,{"$f":"[1]Personnel!G623","v":0}]
[0,{"$f":"IFERROR(INDEX(Settings!$AP$17:$AP$38,MATCH(Personnel!$G624,Settings!$AQ$17:$AQ$38,0)),0)","v":0},null,null,null,{"$f":"[1]Personnel!F624","v":0},{"$f":"IFERROR(INDEX((SLevel),MATCH(Personnel!BA624,SLevel202223,0)),0)","v":0},{"$f":"[1]Personnel!H624","v":0},{"$f":"[1]Personnel!I624","v":0},{"$f":"[1]Personnel!J624","v":0},{"$f":"[1]Personnel!P624","v":0},{"$f":"[1]Personnel!Q624","v":0},0,{"$f":"[1]Personnel!S624","v":0},{"$f":"[1]Personnel!S624","v":0},{"$f":"[1]Personnel!S624","v":0},{"$f":"[1]Personnel!T624","v":0},0,{"$f":"[1]Personnel!V624","v":0},{"$f":"[1]Personnel!W624","v":0},0,{"$f":"[1]Personnel!Y624","v":0},{"$f":"[1]Personnel!Z624","v":0},0,0,0,0,null,null,null,null,null,null,null,null,null,null,null,null,null,null,null,null,null,null,null,null,null,null,null,null,null,{"$f":"[1]Personnel!G624","v":0}]
[0,{"$f":"IFERROR(INDEX(Settings!$AP$17:$AP$38,MATCH(Personnel!$G625,Settings!$AQ$17:$AQ$38,0)),0)","v":0},null,null,null,{"$f":"[1]Personnel!F625","v":0},{"$f":"IFERROR(INDEX((SLevel),MATCH(Personnel!BA625,SLevel202223,0)),0)","v":0},{"$f":"[1]Personnel!H625","v":0},{"$f":"[1]Personnel!I625","v":0},{"$f":"[1]Personnel!J625","v":0},{"$f":"[1]Personnel!P625","v":0},{"$f":"[1]Personnel!Q625","v":0},0,{"$f":"[1]Personnel!S625","v":0},{"$f":"[1]Personnel!S625","v":0},{"$f":"[1]Personnel!S625","v":0},{"$f":"[1]Personnel!T625","v":0},0,{"$f":"[1]Personnel!V625","v":0},{"$f":"[1]Personnel!W625","v":0},0,{"$f":"[1]Personnel!Y625","v":0},{"$f":"[1]Personnel!Z625","v":0},0,0,0,0,null,null,null,null,null,null,null,null,null,null,null,null,null,null,null,null,null,null,null,null,null,null,null,null,null,{"$f":"[1]Personnel!G625","v":0}]
[0,{"$f":"IFERROR(INDEX(Settings!$AP$17:$AP$38,MATCH(Personnel!$G626,Settings!$AQ$17:$AQ$38,0)),0)","v":0},null,null,null,{"$f":"[1]Personnel!F626","v":0},{"$f":"IFERROR(INDEX((SLevel),MATCH(Personnel!BA626,SLevel202223,0)),0)","v":0},{"$f":"[1]Personnel!H626","v":0},{"$f":"[1]Personnel!I626","v":0},{"$f":"[1]Personnel!J626","v":0},{"$f":"[1]Personnel!P626","v":0},{"$f":"[1]Personnel!Q626","v":0},0,{"$f":"[1]Personnel!S626","v":0},{"$f":"[1]Personnel!S626","v":0},{"$f":"[1]Personnel!S626","v":0},{"$f":"[1]Personnel!T626","v":0},0,{"$f":"[1]Personnel!V626","v":0},{"$f":"[1]Personnel!W626","v":0},0,{"$f":"[1]Personnel!Y626","v":0},{"$f":"[1]Personnel!Z626","v":0},0,0,0,0,null,null,null,null,null,null,null,null,null,null,null,null,null,null,null,null,null,null,null,null,null,null,null,null,null,{"$f":"[1]Personnel!G626","v":0}]
[0,{"$f":"IFERROR(INDEX(Settings!$AP$17:$AP$38,MATCH(Personnel!$G627,Settings!$AQ$17:$AQ$38,0)),0)","v":0},null,null,null,{"$f":"[1]Personnel!F627","v":0},{"$f":"IFERROR(INDEX((SLevel),MATCH(Personnel!BA627,SLevel202223,0)),0)","v":0},{"$f":"[1]Personnel!H627","v":0},{"$f":"[1]Personnel!I627","v":0},{"$f":"[1]Personnel!J627","v":0},{"$f":"[1]Personnel!P627","v":0},{"$f":"[1]Personnel!Q627","v":0},0,{"$f":"[1]Personnel!S627","v":0},{"$f":"[1]Personnel!S627","v":0},{"$f":"[1]Personnel!S627","v":0},{"$f":"[1]Personnel!T627","v":0},0,{"$f":"[1]Personnel!V627","v":0},{"$f":"[1]Personnel!W627","v":0},0,{"$f":"[1]Personnel!Y627","v":0},{"$f":"[1]Personnel!Z627","v":0},0,0,0,0,null,null,null,null,null,null,null,null,null,null,null,null,null,null,null,null,null,null,null,null,null,null,null,null,null,{"$f":"[1]Personnel!G627","v":0}]
[0,{"$f":"IFERROR(INDEX(Settings!$AP$17:$AP$38,MATCH(Personnel!$G628,Settings!$AQ$17:$AQ$38,0)),0)","v":0},null,null,null,{"$f":"[1]Personnel!F628","v":0},{"$f":"IFERROR(INDEX((SLevel),MATCH(Personnel!BA628,SLevel202223,0)),0)","v":0},{"$f":"[1]Personnel!H628","v":0},{"$f":"[1]Personnel!I628","v":0},{"$f":"[1]Personnel!J628","v":0},{"$f":"[1]Personnel!P628","v":0},{"$f":"[1]Personnel!Q628","v":0},0,{"$f":"[1]Personnel!S628","v":0},{"$f":"[1]Personnel!S628","v":0},{"$f":"[1]Personnel!S628","v":0},{"$f":"[1]Personnel!T628","v":0},0,{"$f":"[1]Personnel!V628","v":0},{"$f":"[1]Personnel!W628","v":0},0,{"$f":"[1]Personnel!Y628","v":0},{"$f":"[1]Personnel!Z628","v":0},0,0,0,0,null,null,null,null,null,null,null,null,null,null,null,null,null,null,null,null,null,null,null,null,null,null,null,null,null,{"$f":"[1]Personnel!G628","v":0}]
[0,{"$f":"IFERROR(INDEX(Settings!$AP$17:$AP$38,MATCH(Personnel!$G629,Settings!$AQ$17:$AQ$38,0)),0)","v":0},null,null,null,{"$f":"[1]Personnel!F629","v":0},{"$f":"IFERROR(INDEX((SLevel),MATCH(Personnel!BA629,SLevel202223,0)),0)","v":0},{"$f":"[1]Personnel!H629","v":0},{"$f":"[1]Personnel!I629","v":0},{"$f":"[1]Personnel!J629","v":0},{"$f":"[1]Personnel!P629","v":0},{"$f":"[1]Personnel!Q629","v":0},0,{"$f":"[1]Personnel!S629","v":0},{"$f":"[1]Personnel!S629","v":0},{"$f":"[1]Personnel!S629","v":0},{"$f":"[1]Personnel!T629","v":0},0,{"$f":"[1]Personnel!V629","v":0},{"$f":"[1]Personnel!W629","v":0},0,{"$f":"[1]Personnel!Y629","v":0},{"$f":"[1]Personnel!Z629","v":0},0,0,0,0,null,null,null,null,null,null,null,null,null,null,null,null,null,null,null,null,null,null,null,null,null,null,null,null,null,{"$f":"[1]Personnel!G629","v":0}]
[0,{"$f":"IFERROR(INDEX(Settings!$AP$17:$AP$38,MATCH(Personnel!$G630,Settings!$AQ$17:$AQ$38,0)),0)","v":0},null,null,null,{"$f":"[1]Personnel!F630","v":0},{"$f":"IFERROR(INDEX((SLevel),MATCH(Personnel!BA630,SLevel202223,0)),0)","v":0},{"$f":"[1]Personnel!H630","v":0},{"$f":"[1]Personnel!I630","v":0},{"$f":"[1]Personnel!J630","v":0},{"$f":"[1]Personnel!P630","v":0},{"$f":"[1]Personnel!Q630","v":0},0,{"$f":"[1]Personnel!S630","v":0},{"$f":"[1]Personnel!S630","v":0},{"$f":"[1]Personnel!S630","v":0},{"$f":"[1]Personnel!T630","v":0},0,{"$f":"[1]Personnel!V630","v":0},{"$f":"[1]Personnel!W630","v":0},0,{"$f":"[1]Personnel!Y630","v":0},{"$f":"[1]Personnel!Z630","v":0},0,0,0,0,null,null,null,null,null,null,null,null,null,null,null,null,null,null,null,null,null,null,null,null,null,null,null,null,null,{"$f":"[1]Personnel!G630","v":0}]
[0,{"$f":"IFERROR(INDEX(Settings!$AP$17:$AP$38,MATCH(Personnel!$G631,Settings!$AQ$17:$AQ$38,0)),0)","v":0},null,null,null,{"$f":"[1]Personnel!F631","v":0},{"$f":"IFERROR(INDEX((SLevel),MATCH(Personnel!BA631,SLevel202223,0)),0)","v":0},{"$f":"[1]Personnel!H631","v":0},{"$f":"[1]Personnel!I631","v":0},{"$f":"[1]Personnel!J631","v":0},{"$f":"[1]Personnel!P631","v":0},{"$f":"[1]Personnel!Q631","v":0},0,{"$f":"[1]Personnel!S631","v":0},{"$f":"[1]Personnel!S631","v":0},{"$f":"[1]Personnel!S631","v":0},{"$f":"[1]Personnel!T631","v":0},0,{"$f":"[1]Personnel!V631","v":0},{"$f":"[1]Personnel!W631","v":0},0,{"$f":"[1]Personnel!Y631","v":0},{"$f":"[1]Personnel!Z631","v":0},0,0,0,0,null,null,null,null,null,null,null,null,null,null,null,null,null,null,null,null,null,null,null,null,null,null,null,null,null,{"$f":"[1]Personnel!G631","v":0}]
[0,{"$f":"IFERROR(INDEX(Settings!$AP$17:$AP$38,MATCH(Personnel!$G632,Settings!$AQ$17:$AQ$38,0)),0)","v":0},null,null,null,{"$f":"[1]Personnel!F632","v":0},{"$f":"IFERROR(INDEX((SLevel),MATCH(Personnel!BA632,SLevel202223,0)),0)","v":0},{"$f":"[1]Personnel!H632","v":0},{"$f":"[1]Personnel!I632","v":0},{"$f":"[1]Personnel!J632","v":0},{"$f":"[1]Personnel!P632","v":0},{"$f":"[1]Personnel!Q632","v":0},0,{"$f":"[1]Personnel!S632","v":0},{"$f":"[1]Personnel!S632","v":0},{"$f":"[1]Personnel!S632","v":0},{"$f":"[1]Personnel!T632","v":0},0,{"$f":"[1]Personnel!V632","v":0},{"$f":"[1]Personnel!W632","v":0},0,{"$f":"[1]Personnel!Y632","v":0},{"$f":"[1]Personnel!Z632","v":0},0,0,0,0,null,null,null,null,null,null,null,null,null,null,null,null,null,null,null,null,null,null,null,null,null,null,null,null,null,{"$f":"[1]Personnel!G632","v":0}]
[0,{"$f":"IFERROR(INDEX(Settings!$AP$17:$AP$38,MATCH(Personnel!$G633,Settings!$AQ$17:$AQ$38,0)),0)","v":0},null,null,null,{"$f":"[1]Personnel!F633","v":0},{"$f":"IFERROR(INDEX((SLevel),MATCH(Personnel!BA633,SLevel202223,0)),0)","v":0},{"$f":"[1]Personnel!H633","v":0},{"$f":"[1]Personnel!I633","v":0},{"$f":"[1]Personnel!J633","v":0},{"$f":"[1]Personnel!P633","v":0},{"$f":"[1]Personnel!Q633","v":0},0,{"$f":"[1]Personnel!S633","v":0},{"$f":"[1]Personnel!S633","v":0},{"$f":"[1]Personnel!S633","v":0},{"$f":"[1]Personnel!T633","v":0},0,{"$f":"[1]Personnel!V633","v":0},{"$f":"[1]Personnel!W633","v":0},0,{"$f":"[1]Personnel!Y633","v":0},{"$f":"[1]Personnel!Z633","v":0},0,0,0,0,null,null,null,null,null,null,null,null,null,null,null,null,null,null,null,null,null,null,null,null,null,null,null,null,null,{"$f":"[1]Personnel!G633","v":0}]
[0,{"$f":"IFERROR(INDEX(Settings!$AP$17:$AP$38,MATCH(Personnel!$G634,Settings!$AQ$17:$AQ$38,0)),0)","v":0},null,null,null,{"$f":"[1]Personnel!F634","v":0},{"$f":"IFERROR(INDEX((SLevel),MATCH(Personnel!BA634,SLevel202223,0)),0)","v":0},{"$f":"[1]Personnel!H634","v":0},{"$f":"[1]Personnel!I634","v":0},{"$f":"[1]Personnel!J634","v":0},{"$f":"[1]Personnel!P634","v":0},{"$f":"[1]Personnel!Q634","v":0},0,{"$f":"[1]Personnel!S634","v":0},{"$f":"[1]Personnel!S634","v":0},{"$f":"[1]Personnel!S634","v":0},{"$f":"[1]Personnel!T634","v":0},0,{"$f":"[1]Personnel!V634","v":0},{"$f":"[1]Personnel!W634","v":0},0,{"$f":"[1]Personnel!Y634","v":0},{"$f":"[1]Personnel!Z634","v":0},0,0,0,0,null,null,null,null,null,null,null,null,null,null,null,null,null,null,null,null,null,null,null,null,null,null,null,null,null,{"$f":"[1]Personnel!G634","v":0}]
[0,{"$f":"IFERROR(INDEX(Settings!$AP$17:$AP$38,MATCH(Personnel!$G635,Settings!$AQ$17:$AQ$38,0)),0)","v":0},null,null,null,{"$f":"[1]Personnel!F635","v":0},{"$f":"IFERROR(INDEX((SLevel),MATCH(Personnel!BA635,SLevel202223,0)),0)","v":0},{"$f":"[1]Personnel!H635","v":0},{"$f":"[1]Personnel!I635","v":0},{"$f":"[1]Personnel!J635","v":0},{"$f":"[1]Personnel!P635","v":0},{"$f":"[1]Personnel!Q635","v":0},0,{"$f":"[1]Personnel!S635","v":0},{"$f":"[1]Personnel!S635","v":0},{"$f":"[1]Personnel!S635","v":0},{"$f":"[1]Personnel!T635","v":0},0,{"$f":"[1]Personnel!V635","v":0},{"$f":"[1]Personnel!W635","v":0},0,{"$f":"[1]Personnel!Y635","v":0},{"$f":"[1]Personnel!Z635","v":0},0,0,0,0,null,null,null,null,null,null,null,null,null,null,null,null,null,null,null,null,null,null,null,null,null,null,null,null,null,{"$f":"[1]Personnel!G635","v":0}]
[0,{"$f":"IFERROR(INDEX(Settings!$AP$17:$AP$38,MATCH(Personnel!$G636,Settings!$AQ$17:$AQ$38,0)),0)","v":0},null,null,null,{"$f":"[1]Personnel!F636","v":0},{"$f":"IFERROR(INDEX((SLevel),MATCH(Personnel!BA636,SLevel202223,0)),0)","v":0},{"$f":"[1]Personnel!H636","v":0},{"$f":"[1]Personnel!I636","v":0},{"$f":"[1]Personnel!J636","v":0},{"$f":"[1]Personnel!P636","v":0},{"$f":"[1]Personnel!Q636","v":0},0,{"$f":"[1]Personnel!S636","v":0},{"$f":"[1]Personnel!S636","v":0},{"$f":"[1]Personnel!S636","v":0},{"$f":"[1]Personnel!T636","v":0},0,{"$f":"[1]Personnel!V636","v":0},{"$f":"[1]Personnel!W636","v":0},0,{"$f":"[1]Personnel!Y636","v":0},{"$f":"[1]Personnel!Z636","v":0},0,0,0,0,null,null,null,null,null,null,null,null,null,null,null,null,null,null,null,null,null,null,null,null,null,null,null,null,null,{"$f":"[1]Personnel!G636","v":0}]
[0,{"$f":"IFERROR(INDEX(Settings!$AP$17:$AP$38,MATCH(Personnel!$G637,Settings!$AQ$17:$AQ$38,0)),0)","v":0},null,null,null,{"$f":"[1]Personnel!F637","v":0},{"$f":"IFERROR(INDEX((SLevel),MATCH(Personnel!BA637,SLevel202223,0)),0)","v":0},{"$f":"[1]Personnel!H637","v":0},{"$f":"[1]Personnel!I637","v":0},{"$f":"[1]Personnel!J637","v":0},{"$f":"[1]Personnel!P637","v":0},{"$f":"[1]Personnel!Q637","v":0},0,{"$f":"[1]Personnel!S637","v":0},{"$f":"[1]Personnel!S637","v":0},{"$f":"[1]Personnel!S637","v":0},{"$f":"[1]Personnel!T637","v":0},0,{"$f":"[1]Personnel!V637","v":0},{"$f":"[1]Personnel!W637","v":0},0,{"$f":"[1]Personnel!Y637","v":0},{"$f":"[1]Personnel!Z637","v":0},0,0,0,0,null,null,null,null,null,null,null,null,null,null,null,null,null,null,null,null,null,null,null,null,null,null,null,null,null,{"$f":"[1]Personnel!G637","v":0}]
[0,{"$f":"IFERROR(INDEX(Settings!$AP$17:$AP$38,MATCH(Personnel!$G638,Settings!$AQ$17:$AQ$38,0)),0)","v":0},null,null,null,{"$f":"[1]Personnel!F638","v":0},{"$f":"IFERROR(INDEX((SLevel),MATCH(Personnel!BA638,SLevel202223,0)),0)","v":0},{"$f":"[1]Personnel!H638","v":0},{"$f":"[1]Personnel!I638","v":0},{"$f":"[1]Personnel!J638","v":0},{"$f":"[1]Personnel!P638","v":0},{"$f":"[1]Personnel!Q638","v":0},0,{"$f":"[1]Personnel!S638","v":0},{"$f":"[1]Personnel!S638","v":0},{"$f":"[1]Personnel!S638","v":0},{"$f":"[1]Personnel!T638","v":0},0,{"$f":"[1]Personnel!V638","v":0},{"$f":"[1]Personnel!W638","v":0},0,{"$f":"[1]Personnel!Y638","v":0},{"$f":"[1]Personnel!Z638","v":0},0,0,0,0,null,null,null,null,null,null,null,null,null,null,null,null,null,null,null,null,null,null,null,null,null,null,null,null,null,{"$f":"[1]Personnel!G638","v":0}]
[0,{"$f":"IFERROR(INDEX(Settings!$AP$17:$AP$38,MATCH(Personnel!$G639,Settings!$AQ$17:$AQ$38,0)),0)","v":0},null,null,null,{"$f":"[1]Personnel!F639","v":0},{"$f":"IFERROR(INDEX((SLevel),MATCH(Personnel!BA639,SLevel202223,0)),0)","v":0},{"$f":"[1]Personnel!H639","v":0},{"$f":"[1]Personnel!I639","v":0},{"$f":"[1]Personnel!J639","v":0},{"$f":"[1]Personnel!P639","v":0},{"$f":"[1]Personnel!Q639","v":0},0,{"$f":"[1]Personnel!S639","v":0},{"$f":"[1]Personnel!S639","v":0},{"$f":"[1]Personnel!S639","v":0},{"$f":"[1]Personnel!T639","v":0},0,{"$f":"[1]Personnel!V639","v":0},{"$f":"[1]Personnel!W639","v":0},0,{"$f":"[1]Personnel!Y639","v":0},{"$f":"[1]Personnel!Z639","v":0},0,0,0,0,null,null,null,null,null,null,null,null,null,null,null,null,null,null,null,null,null,null,null,null,null,null,null,null,null,{"$f":"[1]Personnel!G639","v":0}]
[0,{"$f":"IFERROR(INDEX(Settings!$AP$17:$AP$38,MATCH(Personnel!$G640,Settings!$AQ$17:$AQ$38,0)),0)","v":0},null,null,null,{"$f":"[1]Personnel!F640","v":0},{"$f":"IFERROR(INDEX((SLevel),MATCH(Personnel!BA640,SLevel202223,0)),0)","v":0},{"$f":"[1]Personnel!H640","v":0},{"$f":"[1]Personnel!I640","v":0},{"$f":"[1]Personnel!J640","v":0},{"$f":"[1]Personnel!P640","v":0},{"$f":"[1]Personnel!Q640","v":0},0,{"$f":"[1]Personnel!S640","v":0},{"$f":"[1]Personnel!S640","v":0},{"$f":"[1]Personnel!S640","v":0},{"$f":"[1]Personnel!T640","v":0},0,{"$f":"[1]Personnel!V640","v":0},{"$f":"[1]Personnel!W640","v":0},0,{"$f":"[1]Personnel!Y640","v":0},{"$f":"[1]Personnel!Z640","v":0},0,0,0,0,null,null,null,null,null,null,null,null,null,null,null,null,null,null,null,null,null,null,null,null,null,null,null,null,null,{"$f":"[1]Personnel!G640","v":0}]
[0,{"$f":"IFERROR(INDEX(Settings!$AP$17:$AP$38,MATCH(Personnel!$G641,Settings!$AQ$17:$AQ$38,0)),0)","v":0},null,null,null,{"$f":"[1]Personnel!F641","v":0},{"$f":"IFERROR(INDEX((SLevel),MATCH(Personnel!BA641,SLevel202223,0)),0)","v":0},{"$f":"[1]Personnel!H641","v":0},{"$f":"[1]Personnel!I641","v":0},{"$f":"[1]Personnel!J641","v":0},{"$f":"[1]Personnel!P641","v":0},{"$f":"[1]Personnel!Q641","v":0},0,{"$f":"[1]Personnel!S641","v":0},{"$f":"[1]Personnel!S641","v":0},{"$f":"[1]Personnel!S641","v":0},{"$f":"[1]Personnel!T641","v":0},0,{"$f":"[1]Personnel!V641","v":0},{"$f":"[1]Personnel!W641","v":0},0,{"$f":"[1]Personnel!Y641","v":0},{"$f":"[1]Personnel!Z641","v":0},0,0,0,0,null,null,null,null,null,null,null,null,null,null,null,null,null,null,null,null,null,null,null,null,null,null,null,null,null,{"$f":"[1]Personnel!G641","v":0}]
[0,{"$f":"IFERROR(INDEX(Settings!$AP$17:$AP$38,MATCH(Personnel!$G642,Settings!$AQ$17:$AQ$38,0)),0)","v":0},null,null,null,{"$f":"[1]Personnel!F642","v":0},{"$f":"IFERROR(INDEX((SLevel),MATCH(Personnel!BA642,SLevel202223,0)),0)","v":0},{"$f":"[1]Personnel!H642","v":0},{"$f":"[1]Personnel!I642","v":0},{"$f":"[1]Personnel!J642","v":0},{"$f":"[1]Personnel!P642","v":0},{"$f":"[1]Personnel!Q642","v":0},0,{"$f":"[1]Personnel!S642","v":0},{"$f":"[1]Personnel!S642","v":0},{"$f":"[1]Personnel!S642","v":0},{"$f":"[1]Personnel!T642","v":0},0,{"$f":"[1]Personnel!V642","v":0},{"$f":"[1]Personnel!W642","v":0},0,{"$f":"[1]Personnel!Y642","v":0},{"$f":"[1]Personnel!Z642","v":0},0,0,0,0,null,null,null,null,null,null,null,null,null,null,null,null,null,null,null,null,null,null,null,null,null,null,null,null,null,{"$f":"[1]Personnel!G642","v":0}]
[0,{"$f":"IFERROR(INDEX(Settings!$AP$17:$AP$38,MATCH(Personnel!$G643,Settings!$AQ$17:$AQ$38,0)),0)","v":0},null,null,null,{"$f":"[1]Personnel!F643","v":0},{"$f":"IFERROR(INDEX((SLevel),MATCH(Personnel!BA643,SLevel202223,0)),0)","v":0},{"$f":"[1]Personnel!H643","v":0},{"$f":"[1]Personnel!I643","v":0},{"$f":"[1]Personnel!J643","v":0},{"$f":"[1]Personnel!P643","v":0},{"$f":"[1]Personnel!Q643","v":0},0,{"$f":"[1]Personnel!S643","v":0},{"$f":"[1]Personnel!S643","v":0},{"$f":"[1]Personnel!S643","v":0},{"$f":"[1]Personnel!T643","v":0},0,{"$f":"[1]Personnel!V643","v":0},{"$f":"[1]Personnel!W643","v":0},0,{"$f":"[1]Personnel!Y643","v":0},{"$f":"[1]Personnel!Z643","v":0},0,0,0,0,null,null,null,null,null,null,null,null,null,null,null,null,null,null,null,null,null,null,null,null,null,null,null,null,null,{"$f":"[1]Personnel!G643","v":0}]
[0,{"$f":"IFERROR(INDEX(Settings!$AP$17:$AP$38,MATCH(Personnel!$G644,Settings!$AQ$17:$AQ$38,0)),0)","v":0},null,null,null,{"$f":"[1]Personnel!F644","v":0},{"$f":"IFERROR(INDEX((SLevel),MATCH(Personnel!BA644,SLevel202223,0)),0)","v":0},{"$f":"[1]Personnel!H644","v":0},{"$f":"[1]Personnel!I644","v":0},{"$f":"[1]Personnel!J644","v":0},{"$f":"[1]Personnel!P644","v":0},{"$f":"[1]Personnel!Q644","v":0},0,{"$f":"[1]Personnel!S644","v":0},{"$f":"[1]Personnel!S644","v":0},{"$f":"[1]Personnel!S644","v":0},{"$f":"[1]Personnel!T644","v":0},0,{"$f":"[1]Personnel!V644","v":0},{"$f":"[1]Personnel!W644","v":0},0,{"$f":"[1]Personnel!Y644","v":0},{"$f":"[1]Personnel!Z644","v":0},0,0,0,0,null,null,null,null,null,null,null,null,null,null,null,null,null,null,null,null,null,null,null,null,null,null,null,null,null,{"$f":"[1]Personnel!G644","v":0}]
[0,{"$f":"IFERROR(INDEX(Settings!$AP$17:$AP$38,MATCH(Personnel!$G645,Settings!$AQ$17:$AQ$38,0)),0)","v":0},null,null,null,{"$f":"[1]Personnel!F645","v":0},{"$f":"IFERROR(INDEX((SLevel),MATCH(Personnel!BA645,SLevel202223,0)),0)","v":0},{"$f":"[1]Personnel!H645","v":0},{"$f":"[1]Personnel!I645","v":0},{"$f":"[1]Personnel!J645","v":0},{"$f":"[1]Personnel!P645","v":0},{"$f":"[1]Personnel!Q645","v":0},0,{"$f":"[1]Personnel!S645","v":0},{"$f":"[1]Personnel!S645","v":0},{"$f":"[1]Personnel!S645","v":0},{"$f":"[1]Personnel!T645","v":0},0,{"$f":"[1]Personnel!V645","v":0},{"$f":"[1]Personnel!W645","v":0},0,{"$f":"[1]Personnel!Y645","v":0},{"$f":"[1]Personnel!Z645","v":0},0,0,0,0,null,null,null,null,null,null,null,null,null,null,null,null,null,null,null,null,null,null,null,null,null,null,null,null,null,{"$f":"[1]Personnel!G645","v":0}]
[0,{"$f":"IFERROR(INDEX(Settings!$AP$17:$AP$38,MATCH(Personnel!$G646,Settings!$AQ$17:$AQ$38,0)),0)","v":0},null,null,null,{"$f":"[1]Personnel!F646","v":0},{"$f":"IFERROR(INDEX((SLevel),MATCH(Personnel!BA646,SLevel202223,0)),0)","v":0},{"$f":"[1]Personnel!H646","v":0},{"$f":"[1]Personnel!I646","v":0},{"$f":"[1]Personnel!J646","v":0},{"$f":"[1]Personnel!P646","v":0},{"$f":"[1]Personnel!Q646","v":0},0,{"$f":"[1]Personnel!S646","v":0},{"$f":"[1]Personnel!S646","v":0},{"$f":"[1]Personnel!S646","v":0},{"$f":"[1]Personnel!T646","v":0},0,{"$f":"[1]Personnel!V646","v":0},{"$f":"[1]Personnel!W646","v":0},0,{"$f":"[1]Personnel!Y646","v":0},{"$f":"[1]Personnel!Z646","v":0},0,0,0,0,null,null,null,null,null,null,null,null,null,null,null,null,null,null,null,null,null,null,null,null,null,null,null,null,null,{"$f":"[1]Personnel!G646","v":0}]
[0,{"$f":"IFERROR(INDEX(Settings!$AP$17:$AP$38,MATCH(Personnel!$G647,Settings!$AQ$17:$AQ$38,0)),0)","v":0},null,null,null,{"$f":"[1]Personnel!F647","v":0},{"$f":"IFERROR(INDEX((SLevel),MATCH(Personnel!BA647,SLevel202223,0)),0)","v":0},{"$f":"[1]Personnel!H647","v":0},{"$f":"[1]Personnel!I647","v":0},{"$f":"[1]Personnel!J647","v":0},{"$f":"[1]Personnel!P647","v":0},{"$f":"[1]Personnel!Q647","v":0},0,{"$f":"[1]Personnel!S647","v":0},{"$f":"[1]Personnel!S647","v":0},{"$f":"[1]Personnel!S647","v":0},{"$f":"[1]Personnel!T647","v":0},0,{"$f":"[1]Personnel!V647","v":0},{"$f":"[1]Personnel!W647","v":0},0,{"$f":"[1]Personnel!Y647","v":0},{"$f":"[1]Personnel!Z647","v":0},0,0,0,0,null,null,null,null,null,null,null,null,null,null,null,null,null,null,null,null,null,null,null,null,null,null,null,null,null,{"$f":"[1]Personnel!G647","v":0}]
[0,{"$f":"IFERROR(INDEX(Settings!$AP$17:$AP$38,MATCH(Personnel!$G648,Settings!$AQ$17:$AQ$38,0)),0)","v":0},null,null,null,{"$f":"[1]Personnel!F648","v":0},{"$f":"IFERROR(INDEX((SLevel),MATCH(Personnel!BA648,SLevel202223,0)),0)","v":0},{"$f":"[1]Personnel!H648","v":0},{"$f":"[1]Personnel!I648","v":0},{"$f":"[1]Personnel!J648","v":0},{"$f":"[1]Personnel!P648","v":0},{"$f":"[1]Personnel!Q648","v":0},0,{"$f":"[1]Personnel!S648","v":0},{"$f":"[1]Personnel!S648","v":0},{"$f":"[1]Personnel!S648","v":0},{"$f":"[1]Personnel!T648","v":0},0,{"$f":"[1]Personnel!V648","v":0},{"$f":"[1]Personnel!W648","v":0},0,{"$f":"[1]Personnel!Y648","v":0},{"$f":"[1]Personnel!Z648","v":0},0,0,0,0,null,null,null,null,null,null,null,null,null,null,null,null,null,null,null,null,null,null,null,null,null,null,null,null,null,{"$f":"[1]Personnel!G648","v":0}]
[0,{"$f":"IFERROR(INDEX(Settings!$AP$17:$AP$38,MATCH(Personnel!$G649,Settings!$AQ$17:$AQ$38,0)),0)","v":0},null,null,null,{"$f":"[1]Personnel!F649","v":0},{"$f":"IFERROR(INDEX((SLevel),MATCH(Personnel!BA649,SLevel202223,0)),0)","v":0},{"$f":"[1]Personnel!H649","v":0},{"$f":"[1]Personnel!I649","v":0},{"$f":"[1]Personnel!J649","v":0},{"$f":"[1]Personnel!P649","v":0},{"$f":"[1]Personnel!Q649","v":0},0,{"$f":"[1]Personnel!S649","v":0},{"$f":"[1]Personnel!S649","v":0},{"$f":"[1]Personnel!S649","v":0},{"$f":"[1]Personnel!T649","v":0},0,{"$f":"[1]Personnel!V649","v":0},{"$f":"[1]Personnel!W649","v":0},0,{"$f":"[1]Personnel!Y649","v":0},{"$f":"[1]Personnel!Z649","v":0},0,0,0,0,null,null,null,null,null,null,null,null,null,null,null,null,null,null,null,null,null,null,null,null,null,null,null,null,null,{"$f":"[1]Personnel!G649","v":0}]
[0,{"$f":"IFERROR(INDEX(Settings!$AP$17:$AP$38,MATCH(Personnel!$G650,Settings!$AQ$17:$AQ$38,0)),0)","v":0},null,null,null,{"$f":"[1]Personnel!F650","v":0},{"$f":"IFERROR(INDEX((SLevel),MATCH(Personnel!BA650,SLevel202223,0)),0)","v":0},{"$f":"[1]Personnel!H650","v":0},{"$f":"[1]Personnel!I650","v":0},{"$f":"[1]Personnel!J650","v":0},{"$f":"[1]Personnel!P650","v":0},{"$f":"[1]Personnel!Q650","v":0},0,{"$f":"[1]Personnel!S650","v":0},{"$f":"[1]Personnel!S650","v":0},{"$f":"[1]Personnel!S650","v":0},{"$f":"[1]Personnel!T650","v":0},0,{"$f":"[1]Personnel!V650","v":0},{"$f":"[1]Personnel!W650","v":0},0,{"$f":"[1]Personnel!Y650","v":0},{"$f":"[1]Personnel!Z650","v":0},0,0,0,0,null,null,null,null,null,null,null,null,null,null,null,null,null,null,null,null,null,null,null,null,null,null,null,null,null,{"$f":"[1]Personnel!G650","v":0}]
[0,{"$f":"IFERROR(INDEX(Settings!$AP$17:$AP$38,MATCH(Personnel!$G651,Settings!$AQ$17:$AQ$38,0)),0)","v":0},null,null,null,{"$f":"[1]Personnel!F651","v":0},{"$f":"IFERROR(INDEX((SLevel),MATCH(Personnel!BA651,SLevel202223,0)),0)","v":0},{"$f":"[1]Personnel!H651","v":0},{"$f":"[1]Personnel!I651","v":0},{"$f":"[1]Personnel!J651","v":0},{"$f":"[1]Personnel!P651","v":0},{"$f":"[1]Personnel!Q651","v":0},0,{"$f":"[1]Personnel!S651","v":0},{"$f":"[1]Personnel!S651","v":0},{"$f":"[1]Personnel!S651","v":0},{"$f":"[1]Personnel!T651","v":0},0,{"$f":"[1]Personnel!V651","v":0},{"$f":"[1]Personnel!W651","v":0},0,{"$f":"[1]Personnel!Y651","v":0},{"$f":"[1]Personnel!Z651","v":0},0,0,0,0,null,null,null,null,null,null,null,null,null,null,null,null,null,null,null,null,null,null,null,null,null,null,null,null,null,{"$f":"[1]Personnel!G651","v":0}]
[{"$f":"IF(SUM(K652:AA652)>0,1,0)","v":0},{"$f":"IFERROR(INDEX(Settings!$AP$17:$AP$38,MATCH(Personnel!$G652,Settings!$AQ$17:$AQ$38,0)),0)","v":0},null,null,null,{"$f":"[1]Personnel!F652","v":0},{"$f":"IFERROR(INDEX((SLevel),MATCH(Personnel!BA652,SLevel202223,0)),0)","v":0},{"$f":"[1]Personnel!H652","v":0},{"$f":"[1]Personnel!I652","v":0},{"$f":"[1]Personnel!J652","v":0},{"$f":"[1]Personnel!P652","v":0},{"$f":"[1]Personnel!Q652","v":0},0,{"$f":"[1]Personnel!S652","v":0},{"$f":"[1]Personnel!S652","v":0},{"$f":"[1]Personnel!S652","v":0},{"$f":"[1]Personnel!T652","v":0},0,{"$f":"[1]Personnel!V652","v":0},{"$f":"[1]Personnel!W652","v":0},0,{"$f":"[1]Personnel!Y652","v":0},{"$f":"[1]Personnel!Z652","v":0},0,0,0,0,null,null,null,null,null,null,null,null,null,null,null,null,null,null,null,null,null,null,null,null,null,null,null,null,null,{"$f":"[1]Personnel!G652","v":0}]
[0,{"$f":"IFERROR(INDEX(Settings!$AP$17:$AP$38,MATCH(Personnel!$G653,Settings!$AQ$17:$AQ$38,0)),0)","v":0},null,null,null,{"$f":"[1]Personnel!F653","v":0},{"$f":"IFERROR(INDEX((SLevel),MATCH(Personnel!BA653,SLevel202223,0)),0)","v":0},{"$f":"[1]Personnel!H653","v":0},{"$f":"[1]Personnel!I653","v":0},{"$f":"[1]Personnel!J653","v":0},{"$f":"[1]Personnel!P653","v":0},{"$f":"[1]Personnel!Q653","v":0},{"$f":"ROUND(IF(ISERROR(L653/K653),0,(L653/K653)),0)","v":0},{"$f":"[1]Personnel!S653","v":0},{"$f":"[1]Personnel!S653","v":0},{"$f":"[1]Personnel!S653","v":0},{"$f":"[1]Personnel!T653","v":0},{"$f":"ROUND(IF(ISERROR(Q653/P653),0,(Q653/P653)),0)","v":0},{"$f":"[1]Personnel!V653","v":0},{"$f":"[1]Personnel!W653","v":0},{"$f":"ROUND(IF(ISERROR(T653/S653),0,(T653/S653)),0)","v":0},{"$f":"[1]Personnel!Y653","v":0},{"$f":"[1]Personnel!Z653","v":0},{"$f":"ROUND(IF(ISERROR(W653/V653),0,(W653/V653)),0)","v":0},0,0,{"$f":"ROUND(IF(ISERROR(Z653/Y653),0,(Z653/Y653)),0)","v":0},null,null,null,null,null,null,null,null,null,null,null,null,null,null,null,null,null,null,null,null,null,null,null,null,null,{"$f":"[1]Personnel!G653","v":0}]
[0,{"$f":"IFERROR(INDEX(Settings!$AP$17:$AP$38,MATCH(Personnel!$G654,Settings!$AQ$17:$AQ$38,0)),0)","v":0},null,null,null,{"$f":"[1]Personnel!F654","v":0},{"$f":"IFERROR(INDEX((SLevel),MATCH(Personnel!BA654,SLevel202223,0)),0)","v":0},{"$f":"[1]Personnel!H654","v":0},{"$f":"[1]Personnel!I654","v":0},{"$f":"[1]Personnel!J654","v":0},{"$f":"[1]Personnel!P654","v":0},{"$f":"[1]Personnel!Q654","v":0},0,{"$f":"[1]Personnel!S654","v":0},{"$f":"[1]Personnel!S654","v":0},{"$f":"[1]Personnel!S654","v":0},{"$f":"[1]Personnel!T654","v":0},0,{"$f":"[1]Personnel!V654","v":0},{"$f":"[1]Personnel!W654","v":0},0,{"$f":"[1]Personnel!Y654","v":0},{"$f":"[1]Personnel!Z654","v":0},0,0,0,0,null,null,null,null,null,null,null,null,null,null,null,null,null,null,null,null,null,null,null,null,null,null,null,null,null,{"$f":"[1]Personnel!G654","v":0}]
[0,{"$f":"IFERROR(INDEX(Settings!$AP$17:$AP$38,MATCH(Personnel!$G655,Settings!$AQ$17:$AQ$38,0)),0)","v":0},null,null,null,{"$f":"[1]Personnel!F655","v":0},{"$f":"IFERROR(INDEX((SLevel),MATCH(Personnel!BA655,SLevel202223,0)),0)","v":0},{"$f":"[1]Personnel!H655","v":0},{"$f":"[1]Personnel!I655","v":0},{"$f":"[1]Personnel!J655","v":0},{"$f":"[1]Personnel!P655","v":0},{"$f":"[1]Personnel!Q655","v":0},0,{"$f":"[1]Personnel!S655","v":0},{"$f":"[1]Personnel!S655","v":0},{"$f":"[1]Personnel!S655","v":0},{"$f":"[1]Personnel!T655","v":0},0,{"$f":"[1]Personnel!V655","v":0},{"$f":"[1]Personnel!W655","v":0},0,{"$f":"[1]Personnel!Y655","v":0},{"$f":"[1]Personnel!Z655","v":0},0,0,0,0,null,null,null,null,null,null,null,null,null,null,null,null,null,null,null,null,null,null,null,null,null,null,null,null,null,{"$f":"[1]Personnel!G655","v":0}]
[0,{"$f":"IFERROR(INDEX(Settings!$AP$17:$AP$38,MATCH(Personnel!$G656,Settings!$AQ$17:$AQ$38,0)),0)","v":0},null,null,null,{"$f":"[1]Personnel!F656","v":0},{"$f":"IFERROR(INDEX((SLevel),MATCH(Personnel!BA656,SLevel202223,0)),0)","v":0},{"$f":"[1]Personnel!H656","v":0},{"$f":"[1]Personnel!I656","v":0},{"$f":"[1]Personnel!J656","v":0},{"$f":"[1]Personnel!P656","v":0},{"$f":"[1]Personnel!Q656","v":0},0,{"$f":"[1]Personnel!S656","v":0},{"$f":"[1]Personnel!S656","v":0},{"$f":"[1]Personnel!S656","v":0},{"$f":"[1]Personnel!T656","v":0},0,{"$f":"[1]Personnel!V656","v":0},{"$f":"[1]Personnel!W656","v":0},0,{"$f":"[1]Personnel!Y656","v":0},{"$f":"[1]Personnel!Z656","v":0},0,0,0,0,null,null,null,null,null,null,null,null,null,null,null,null,null,null,null,null,null,null,null,null,null,null,null,null,null,{"$f":"[1]Personnel!G656","v":0}]
[0,{"$f":"IFERROR(INDEX(Settings!$AP$17:$AP$38,MATCH(Personnel!$G657,Settings!$AQ$17:$AQ$38,0)),0)","v":0},null,null,null,{"$f":"[1]Personnel!F657","v":0},{"$f":"IFERROR(INDEX((SLevel),MATCH(Personnel!BA657,SLevel202223,0)),0)","v":0},{"$f":"[1]Personnel!H657","v":0},{"$f":"[1]Personnel!I657","v":0},{"$f":"[1]Personnel!J657","v":0},{"$f":"[1]Personnel!P657","v":0},{"$f":"[1]Personnel!Q657","v":0},0,{"$f":"[1]Personnel!S657","v":0},{"$f":"[1]Personnel!S657","v":0},{"$f":"[1]Personnel!S657","v":0},{"$f":"[1]Personnel!T657","v":0},0,{"$f":"[1]Personnel!V657","v":0},{"$f":"[1]Personnel!W657","v":0},0,{"$f":"[1]Personnel!Y657","v":0},{"$f":"[1]Personnel!Z657","v":0},0,0,0,0,null,null,null,null,null,null,null,null,null,null,null,null,null,null,null,null,null,null,null,null,null,null,null,null,null,{"$f":"[1]Personnel!G657","v":0}]
[0,{"$f":"IFERROR(INDEX(Settings!$AP$17:$AP$38,MATCH(Personnel!$G658,Settings!$AQ$17:$AQ$38,0)),0)","v":0},null,null,null,{"$f":"[1]Personnel!F658","v":0},{"$f":"IFERROR(INDEX((SLevel),MATCH(Personnel!BA658,SLevel202223,0)),0)","v":0},{"$f":"[1]Personnel!H658","v":0},{"$f":"[1]Personnel!I658","v":0},{"$f":"[1]Personnel!J658","v":0},{"$f":"[1]Personnel!P658","v":0},{"$f":"[1]Personnel!Q658","v":0},0,{"$f":"[1]Personnel!S658","v":0},{"$f":"[1]Personnel!S658","v":0},{"$f":"[1]Personnel!S658","v":0},{"$f":"[1]Personnel!T658","v":0},0,{"$f":"[1]Personnel!V658","v":0},{"$f":"[1]Personnel!W658","v":0},0,{"$f":"[1]Personnel!Y658","v":0},{"$f":"[1]Personnel!Z658","v":0},0,0,0,0,null,null,null,null,null,null,null,null,null,null,null,null,null,null,null,null,null,null,null,null,null,null,null,null,null,{"$f":"[1]Personnel!G658","v":0}]
[0,{"$f":"IFERROR(INDEX(Settings!$AP$17:$AP$38,MATCH(Personnel!$G659,Settings!$AQ$17:$AQ$38,0)),0)","v":0},null,null,null,{"$f":"[1]Personnel!F659","v":0},{"$f":"IFERROR(INDEX((SLevel),MATCH(Personnel!BA659,SLevel202223,0)),0)","v":0},{"$f":"[1]Personnel!H659","v":0},{"$f":"[1]Personnel!I659","v":0},{"$f":"[1]Personnel!J659","v":0},{"$f":"[1]Personnel!P659","v":0},{"$f":"[1]Personnel!Q659","v":0},0,{"$f":"[1]Personnel!S659","v":0},{"$f":"[1]Personnel!S659","v":0},{"$f":"[1]Personnel!S659","v":0},{"$f":"[1]Personnel!T659","v":0},0,{"$f":"[1]Personnel!V659","v":0},{"$f":"[1]Personnel!W659","v":0},0,{"$f":"[1]Personnel!Y659","v":0},{"$f":"[1]Personnel!Z659","v":0},0,0,0,0,null,null,null,null,null,null,null,null,null,null,null,null,null,null,null,null,null,null,null,null,null,null,null,null,null,{"$f":"[1]Personnel!G659","v":0}]
[0,{"$f":"IFERROR(INDEX(Settings!$AP$17:$AP$38,MATCH(Personnel!$G660,Settings!$AQ$17:$AQ$38,0)),0)","v":0},null,null,null,{"$f":"[1]Personnel!F660","v":0},{"$f":"IFERROR(INDEX((SLevel),MATCH(Personnel!BA660,SLevel202223,0)),0)","v":0},{"$f":"[1]Personnel!H660","v":0},{"$f":"[1]Personnel!I660","v":0},{"$f":"[1]Personnel!J660","v":0},{"$f":"[1]Personnel!P660","v":0},{"$f":"[1]Personnel!Q660","v":0},0,{"$f":"[1]Personnel!S660","v":0},{"$f":"[1]Personnel!S660","v":0},{"$f":"[1]Personnel!S660","v":0},{"$f":"[1]Personnel!T660","v":0},0,{"$f":"[1]Personnel!V660","v":0},{"$f":"[1]Personnel!W660","v":0},0,{"$f":"[1]Personnel!Y660","v":0},{"$f":"[1]Personnel!Z660","v":0},0,0,0,0,null,null,null,null,null,null,null,null,null,null,null,null,null,null,null,null,null,null,null,null,null,null,null,null,null,{"$f":"[1]Personnel!G660","v":0}]
[0,{"$f":"IFERROR(INDEX(Settings!$AP$17:$AP$38,MATCH(Personnel!$G661,Settings!$AQ$17:$AQ$38,0)),0)","v":0},null,null,null,{"$f":"[1]Personnel!F661","v":0},{"$f":"IFERROR(INDEX((SLevel),MATCH(Personnel!BA661,SLevel202223,0)),0)","v":0},{"$f":"[1]Personnel!H661","v":0},{"$f":"[1]Personnel!I661","v":0},{"$f":"[1]Personnel!J661","v":0},{"$f":"[1]Personnel!P661","v":0},{"$f":"[1]Personnel!Q661","v":0},0,{"$f":"[1]Personnel!S661","v":0},{"$f":"[1]Personnel!S661","v":0},{"$f":"[1]Personnel!S661","v":0},{"$f":"[1]Personnel!T661","v":0},0,{"$f":"[1]Personnel!V661","v":0},{"$f":"[1]Personnel!W661","v":0},0,{"$f":"[1]Personnel!Y661","v":0},{"$f":"[1]Personnel!Z661","v":0},0,0,0,0,null,null,null,null,null,null,null,null,null,null,null,null,null,null,null,null,null,null,null,null,null,null,null,null,null,{"$f":"[1]Personnel!G661","v":0}]
[0,{"$f":"IFERROR(INDEX(Settings!$AP$17:$AP$38,MATCH(Personnel!$G662,Settings!$AQ$17:$AQ$38,0)),0)","v":0},null,null,null,{"$f":"[1]Personnel!F662","v":0},{"$f":"IFERROR(INDEX((SLevel),MATCH(Personnel!BA662,SLevel202223,0)),0)","v":0},{"$f":"[1]Personnel!H662","v":0},{"$f":"[1]Personnel!I662","v":0},{"$f":"[1]Personnel!J662","v":0},{"$f":"[1]Personnel!P662","v":0},{"$f":"[1]Personnel!Q662","v":0},0,{"$f":"[1]Personnel!S662","v":0},{"$f":"[1]Personnel!S662","v":0},{"$f":"[1]Personnel!S662","v":0},{"$f":"[1]Personnel!T662","v":0},0,{"$f":"[1]Personnel!V662","v":0},{"$f":"[1]Personnel!W662","v":0},0,{"$f":"[1]Personnel!Y662","v":0},{"$f":"[1]Personnel!Z662","v":0},0,0,0,0,null,null,null,null,null,null,null,null,null,null,null,null,null,null,null,null,null,null,null,null,null,null,null,null,null,{"$f":"[1]Personnel!G662","v":0}]
[0,{"$f":"IFERROR(INDEX(Settings!$AP$17:$AP$38,MATCH(Personnel!$G663,Settings!$AQ$17:$AQ$38,0)),0)","v":0},null,null,null,{"$f":"[1]Personnel!F663","v":0},{"$f":"IFERROR(INDEX((SLevel),MATCH(Personnel!BA663,SLevel202223,0)),0)","v":0},{"$f":"[1]Personnel!H663","v":0},{"$f":"[1]Personnel!I663","v":0},{"$f":"[1]Personnel!J663","v":0},{"$f":"[1]Personnel!P663","v":0},{"$f":"[1]Personnel!Q663","v":0},0,{"$f":"[1]Personnel!S663","v":0},{"$f":"[1]Personnel!S663","v":0},{"$f":"[1]Personnel!S663","v":0},{"$f":"[1]Personnel!T663","v":0},0,{"$f":"[1]Personnel!V663","v":0},{"$f":"[1]Personnel!W663","v":0},0,{"$f":"[1]Personnel!Y663","v":0},{"$f":"[1]Personnel!Z663","v":0},0,0,0,0,null,null,null,null,null,null,null,null,null,null,null,null,null,null,null,null,null,null,null,null,null,null,null,null,null,{"$f":"[1]Personnel!G663","v":0}]
[0,{"$f":"IFERROR(INDEX(Settings!$AP$17:$AP$38,MATCH(Personnel!$G664,Settings!$AQ$17:$AQ$38,0)),0)","v":0},null,null,null,{"$f":"[1]Personnel!F664","v":0},{"$f":"IFERROR(INDEX((SLevel),MATCH(Personnel!BA664,SLevel202223,0)),0)","v":0},{"$f":"[1]Personnel!H664","v":0},{"$f":"[1]Personnel!I664","v":0},{"$f":"[1]Personnel!J664","v":0},{"$f":"[1]Personnel!P664","v":0},{"$f":"[1]Personnel!Q664","v":0},0,{"$f":"[1]Personnel!S664","v":0},{"$f":"[1]Personnel!S664","v":0},{"$f":"[1]Personnel!S664","v":0},{"$f":"[1]Personnel!T664","v":0},0,{"$f":"[1]Personnel!V664","v":0},{"$f":"[1]Personnel!W664","v":0},0,{"$f":"[1]Personnel!Y664","v":0},{"$f":"[1]Personnel!Z664","v":0},0,0,0,0,null,null,null,null,null,null,null,null,null,null,null,null,null,null,null,null,null,null,null,null,null,null,null,null,null,{"$f":"[1]Personnel!G664","v":0}]
[0,{"$f":"IFERROR(INDEX(Settings!$AP$17:$AP$38,MATCH(Personnel!$G665,Settings!$AQ$17:$AQ$38,0)),0)","v":0},null,null,null,{"$f":"[1]Personnel!F665","v":0},{"$f":"IFERROR(INDEX((SLevel),MATCH(Personnel!BA665,SLevel202223,0)),0)","v":0},{"$f":"[1]Personnel!H665","v":0},{"$f":"[1]Personnel!I665","v":0},{"$f":"[1]Personnel!J665","v":0},{"$f":"[1]Personnel!P665","v":0},{"$f":"[1]Personnel!Q665","v":0},0,{"$f":"[1]Personnel!S665","v":0},{"$f":"[1]Personnel!S665","v":0},{"$f":"[1]Personnel!S665","v":0},{"$f":"[1]Personnel!T665","v":0},0,{"$f":"[1]Personnel!V665","v":0},{"$f":"[1]Personnel!W665","v":0},0,{"$f":"[1]Personnel!Y665","v":0},{"$f":"[1]Personnel!Z665","v":0},0,0,0,0,null,null,null,null,null,null,null,null,null,null,null,null,null,null,null,null,null,null,null,null,null,null,null,null,null,{"$f":"[1]Personnel!G665","v":0}]
[0,{"$f":"IFERROR(INDEX(Settings!$AP$17:$AP$38,MATCH(Personnel!$G666,Settings!$AQ$17:$AQ$38,0)),0)","v":0},null,null,null,{"$f":"[1]Personnel!F666","v":0},{"$f":"IFERROR(INDEX((SLevel),MATCH(Personnel!BA666,SLevel202223,0)),0)","v":0},{"$f":"[1]Personnel!H666","v":0},{"$f":"[1]Personnel!I666","v":0},{"$f":"[1]Personnel!J666","v":0},{"$f":"[1]Personnel!P666","v":0},{"$f":"[1]Personnel!Q666","v":0},0,{"$f":"[1]Personnel!S666","v":0},{"$f":"[1]Personnel!S666","v":0},{"$f":"[1]Personnel!S666","v":0},{"$f":"[1]Personnel!T666","v":0},0,{"$f":"[1]Personnel!V666","v":0},{"$f":"[1]Personnel!W666","v":0},0,{"$f":"[1]Personnel!Y666","v":0},{"$f":"[1]Personnel!Z666","v":0},0,0,0,0,null,null,null,null,null,null,null,null,null,null,null,null,null,null,null,null,null,null,null,null,null,null,null,null,null,{"$f":"[1]Personnel!G666","v":0}]
[0,{"$f":"IFERROR(INDEX(Settings!$AP$17:$AP$38,MATCH(Personnel!$G667,Settings!$AQ$17:$AQ$38,0)),0)","v":0},null,null,null,{"$f":"[1]Personnel!F667","v":0},{"$f":"IFERROR(INDEX((SLevel),MATCH(Personnel!BA667,SLevel202223,0)),0)","v":0},{"$f":"[1]Personnel!H667","v":0},{"$f":"[1]Personnel!I667","v":0},{"$f":"[1]Personnel!J667","v":0},{"$f":"[1]Personnel!P667","v":0},{"$f":"[1]Personnel!Q667","v":0},0,{"$f":"[1]Personnel!S667","v":0},{"$f":"[1]Personnel!S667","v":0},{"$f":"[1]Personnel!S667","v":0},{"$f":"[1]Personnel!T667","v":0},0,{"$f":"[1]Personnel!V667","v":0},{"$f":"[1]Personnel!W667","v":0},0,{"$f":"[1]Personnel!Y667","v":0},{"$f":"[1]Personnel!Z667","v":0},0,0,0,0,null,null,null,null,null,null,null,null,null,null,null,null,null,null,null,null,null,null,null,null,null,null,null,null,null,{"$f":"[1]Personnel!G667","v":0}]
[0,{"$f":"IFERROR(INDEX(Settings!$AP$17:$AP$38,MATCH(Personnel!$G668,Settings!$AQ$17:$AQ$38,0)),0)","v":0},null,null,null,{"$f":"[1]Personnel!F668","v":0},{"$f":"IFERROR(INDEX((SLevel),MATCH(Personnel!BA668,SLevel202223,0)),0)","v":0},{"$f":"[1]Personnel!H668","v":0},{"$f":"[1]Personnel!I668","v":0},{"$f":"[1]Personnel!J668","v":0},{"$f":"[1]Personnel!P668","v":0},{"$f":"[1]Personnel!Q668","v":0},0,{"$f":"[1]Personnel!S668","v":0},{"$f":"[1]Personnel!S668","v":0},{"$f":"[1]Personnel!S668","v":0},{"$f":"[1]Personnel!T668","v":0},0,{"$f":"[1]Personnel!V668","v":0},{"$f":"[1]Personnel!W668","v":0},0,{"$f":"[1]Personnel!Y668","v":0},{"$f":"[1]Personnel!Z668","v":0},0,0,0,0,null,null,null,null,null,null,null,null,null,null,null,null,null,null,null,null,null,null,null,null,null,null,null,null,null,{"$f":"[1]Personnel!G668","v":0}]
[0,{"$f":"IFERROR(INDEX(Settings!$AP$17:$AP$38,MATCH(Personnel!$G669,Settings!$AQ$17:$AQ$38,0)),0)","v":0},null,null,null,{"$f":"[1]Personnel!F669","v":0},{"$f":"IFERROR(INDEX((SLevel),MATCH(Personnel!BA669,SLevel202223,0)),0)","v":0},{"$f":"[1]Personnel!H669","v":0},{"$f":"[1]Personnel!I669","v":0},{"$f":"[1]Personnel!J669","v":0},{"$f":"[1]Personnel!P669","v":0},{"$f":"[1]Personnel!Q669","v":0},0,{"$f":"[1]Personnel!S669","v":0},{"$f":"[1]Personnel!S669","v":0},{"$f":"[1]Personnel!S669","v":0},{"$f":"[1]Personnel!T669","v":0},0,{"$f":"[1]Personnel!V669","v":0},{"$f":"[1]Personnel!W669","v":0},0,{"$f":"[1]Personnel!Y669","v":0},{"$f":"[1]Personnel!Z669","v":0},0,0,0,0,null,null,null,null,null,null,null,null,null,null,null,null,null,null,null,null,null,null,null,null,null,null,null,null,null,{"$f":"[1]Personnel!G669","v":0}]
[0,{"$f":"IFERROR(INDEX(Settings!$AP$17:$AP$38,MATCH(Personnel!$G670,Settings!$AQ$17:$AQ$38,0)),0)","v":0},null,null,null,{"$f":"[1]Personnel!F670","v":0},{"$f":"IFERROR(INDEX((SLevel),MATCH(Personnel!BA670,SLevel202223,0)),0)","v":0},{"$f":"[1]Personnel!H670","v":0},{"$f":"[1]Personnel!I670","v":0},{"$f":"[1]Personnel!J670","v":0},{"$f":"[1]Personnel!P670","v":0},{"$f":"[1]Personnel!Q670","v":0},0,{"$f":"[1]Personnel!S670","v":0},{"$f":"[1]Personnel!S670","v":0},{"$f":"[1]Personnel!S670","v":0},{"$f":"[1]Personnel!T670","v":0},0,{"$f":"[1]Personnel!V670","v":0},{"$f":"[1]Personnel!W670","v":0},0,{"$f":"[1]Personnel!Y670","v":0},{"$f":"[1]Personnel!Z670","v":0},0,0,0,0,null,null,null,null,null,null,null,null,null,null,null,null,null,null,null,null,null,null,null,null,null,null,null,null,null,{"$f":"[1]Personnel!G670","v":0}]
[0,{"$f":"IFERROR(INDEX(Settings!$AP$17:$AP$38,MATCH(Personnel!$G671,Settings!$AQ$17:$AQ$38,0)),0)","v":0},null,null,null,{"$f":"[1]Personnel!F671","v":0},{"$f":"IFERROR(INDEX((SLevel),MATCH(Personnel!BA671,SLevel202223,0)),0)","v":0},{"$f":"[1]Personnel!H671","v":0},{"$f":"[1]Personnel!I671","v":0},{"$f":"[1]Personnel!J671","v":0},{"$f":"[1]Personnel!P671","v":0},{"$f":"[1]Personnel!Q671","v":0},0,{"$f":"[1]Personnel!S671","v":0},{"$f":"[1]Personnel!S671","v":0},{"$f":"[1]Personnel!S671","v":0},{"$f":"[1]Personnel!T671","v":0},0,{"$f":"[1]Personnel!V671","v":0},{"$f":"[1]Personnel!W671","v":0},0,{"$f":"[1]Personnel!Y671","v":0},{"$f":"[1]Personnel!Z671","v":0},0,0,0,0,null,null,null,null,null,null,null,null,null,null,null,null,null,null,null,null,null,null,null,null,null,null,null,null,null,{"$f":"[1]Personnel!G671","v":0}]
[0,{"$f":"IFERROR(INDEX(Settings!$AP$17:$AP$38,MATCH(Personnel!$G672,Settings!$AQ$17:$AQ$38,0)),0)","v":0},null,null,null,{"$f":"[1]Personnel!F672","v":0},{"$f":"IFERROR(INDEX((SLevel),MATCH(Personnel!BA672,SLevel202223,0)),0)","v":0},{"$f":"[1]Personnel!H672","v":0},{"$f":"[1]Personnel!I672","v":0},{"$f":"[1]Personnel!J672","v":0},{"$f":"[1]Personnel!P672","v":0},{"$f":"[1]Personnel!Q672","v":0},0,{"$f":"[1]Personnel!S672","v":0},{"$f":"[1]Personnel!S672","v":0},{"$f":"[1]Personnel!S672","v":0},{"$f":"[1]Personnel!T672","v":0},0,{"$f":"[1]Personnel!V672","v":0},{"$f":"[1]Personnel!W672","v":0},0,{"$f":"[1]Personnel!Y672","v":0},{"$f":"[1]Personnel!Z672","v":0},0,0,0,0,null,null,null,null,null,null,null,null,null,null,null,null,null,null,null,null,null,null,null,null,null,null,null,null,null,{"$f":"[1]Personnel!G672","v":0}]
[0,{"$f":"IFERROR(INDEX(Settings!$AP$17:$AP$38,MATCH(Personnel!$G673,Settings!$AQ$17:$AQ$38,0)),0)","v":0},null,null,null,{"$f":"[1]Personnel!F673","v":0},{"$f":"IFERROR(INDEX((SLevel),MATCH(Personnel!BA673,SLevel202223,0)),0)","v":0},{"$f":"[1]Personnel!H673","v":0},{"$f":"[1]Personnel!I673","v":0},{"$f":"[1]Personnel!J673","v":0},{"$f":"[1]Personnel!P673","v":0},{"$f":"[1]Personnel!Q673","v":0},0,{"$f":"[1]Personnel!S673","v":0},{"$f":"[1]Personnel!S673","v":0},{"$f":"[1]Personnel!S673","v":0},{"$f":"[1]Personnel!T673","v":0},0,{"$f":"[1]Personnel!V673","v":0},{"$f":"[1]Personnel!W673","v":0},0,{"$f":"[1]Personnel!Y673","v":0},{"$f":"[1]Personnel!Z673","v":0},0,0,0,0,null,null,null,null,null,null,null,null,null,null,null,null,null,null,null,null,null,null,null,null,null,null,null,null,null,{"$f":"[1]Personnel!G673","v":0}]
[0,{"$f":"IFERROR(INDEX(Settings!$AP$17:$AP$38,MATCH(Personnel!$G674,Settings!$AQ$17:$AQ$38,0)),0)","v":0},null,null,null,{"$f":"[1]Personnel!F674","v":0},{"$f":"IFERROR(INDEX((SLevel),MATCH(Personnel!BA674,SLevel202223,0)),0)","v":0},{"$f":"[1]Personnel!H674","v":0},{"$f":"[1]Personnel!I674","v":0},{"$f":"[1]Personnel!J674","v":0},{"$f":"[1]Personnel!P674","v":0},{"$f":"[1]Personnel!Q674","v":0},0,{"$f":"[1]Personnel!S674","v":0},{"$f":"[1]Personnel!S674","v":0},{"$f":"[1]Personnel!S674","v":0},{"$f":"[1]Personnel!T674","v":0},0,{"$f":"[1]Personnel!V674","v":0},{"$f":"[1]Personnel!W674","v":0},0,{"$f":"[1]Personnel!Y674","v":0},{"$f":"[1]Personnel!Z674","v":0},0,0,0,0,null,null,null,null,null,null,null,null,null,null,null,null,null,null,null,null,null,null,null,null,null,null,null,null,null,{"$f":"[1]Personnel!G674","v":0}]
[0,{"$f":"IFERROR(INDEX(Settings!$AP$17:$AP$38,MATCH(Personnel!$G675,Settings!$AQ$17:$AQ$38,0)),0)","v":0},null,null,null,{"$f":"[1]Personnel!F675","v":0},{"$f":"IFERROR(INDEX((SLevel),MATCH(Personnel!BA675,SLevel202223,0)),0)","v":0},{"$f":"[1]Personnel!H675","v":0},{"$f":"[1]Personnel!I675","v":0},{"$f":"[1]Personnel!J675","v":0},{"$f":"[1]Personnel!P675","v":0},{"$f":"[1]Personnel!Q675","v":0},0,{"$f":"[1]Personnel!S675","v":0},{"$f":"[1]Personnel!S675","v":0},{"$f":"[1]Personnel!S675","v":0},{"$f":"[1]Personnel!T675","v":0},0,{"$f":"[1]Personnel!V675","v":0},{"$f":"[1]Personnel!W675","v":0},0,{"$f":"[1]Personnel!Y675","v":0},{"$f":"[1]Personnel!Z675","v":0},0,0,0,0,null,null,null,null,null,null,null,null,null,null,null,null,null,null,null,null,null,null,null,null,null,null,null,null,null,{"$f":"[1]Personnel!G675","v":0}]
[0,{"$f":"IFERROR(INDEX(Settings!$AP$17:$AP$38,MATCH(Personnel!$G676,Settings!$AQ$17:$AQ$38,0)),0)","v":0},null,null,null,{"$f":"[1]Personnel!F676","v":0},{"$f":"IFERROR(INDEX((SLevel),MATCH(Personnel!BA676,SLevel202223,0)),0)","v":0},{"$f":"[1]Personnel!H676","v":0},{"$f":"[1]Personnel!I676","v":0},{"$f":"[1]Personnel!J676","v":0},{"$f":"[1]Personnel!P676","v":0},{"$f":"[1]Personnel!Q676","v":0},0,{"$f":"[1]Personnel!S676","v":0},{"$f":"[1]Personnel!S676","v":0},{"$f":"[1]Personnel!S676","v":0},{"$f":"[1]Personnel!T676","v":0},0,{"$f":"[1]Personnel!V676","v":0},{"$f":"[1]Personnel!W676","v":0},0,{"$f":"[1]Personnel!Y676","v":0},{"$f":"[1]Personnel!Z676","v":0},0,0,0,0,null,null,null,null,null,null,null,null,null,null,null,null,null,null,null,null,null,null,null,null,null,null,null,null,null,{"$f":"[1]Personnel!G676","v":0}]
[0,{"$f":"IFERROR(INDEX(Settings!$AP$17:$AP$38,MATCH(Personnel!$G677,Settings!$AQ$17:$AQ$38,0)),0)","v":0},null,null,null,{"$f":"[1]Personnel!F677","v":0},{"$f":"IFERROR(INDEX((SLevel),MATCH(Personnel!BA677,SLevel202223,0)),0)","v":0},{"$f":"[1]Personnel!H677","v":0},{"$f":"[1]Personnel!I677","v":0},{"$f":"[1]Personnel!J677","v":0},{"$f":"[1]Personnel!P677","v":0},{"$f":"[1]Personnel!Q677","v":0},0,{"$f":"[1]Personnel!S677","v":0},{"$f":"[1]Personnel!S677","v":0},{"$f":"[1]Personnel!S677","v":0},{"$f":"[1]Personnel!T677","v":0},0,{"$f":"[1]Personnel!V677","v":0},{"$f":"[1]Personnel!W677","v":0},0,{"$f":"[1]Personnel!Y677","v":0},{"$f":"[1]Personnel!Z677","v":0},0,0,0,0,null,null,null,null,null,null,null,null,null,null,null,null,null,null,null,null,null,null,null,null,null,null,null,null,null,{"$f":"[1]Personnel!G677","v":0}]
[0,{"$f":"IFERROR(INDEX(Settings!$AP$17:$AP$38,MATCH(Personnel!$G678,Settings!$AQ$17:$AQ$38,0)),0)","v":0},null,null,null,{"$f":"[1]Personnel!F678","v":0},{"$f":"IFERROR(INDEX((SLevel),MATCH(Personnel!BA678,SLevel202223,0)),0)","v":0},{"$f":"[1]Personnel!H678","v":0},{"$f":"[1]Personnel!I678","v":0},{"$f":"[1]Personnel!J678","v":0},{"$f":"[1]Personnel!P678","v":0},{"$f":"[1]Personnel!Q678","v":0},0,{"$f":"[1]Personnel!S678","v":0},{"$f":"[1]Personnel!S678","v":0},{"$f":"[1]Personnel!S678","v":0},{"$f":"[1]Personnel!T678","v":0},0,{"$f":"[1]Personnel!V678","v":0},{"$f":"[1]Personnel!W678","v":0},0,{"$f":"[1]Personnel!Y678","v":0},{"$f":"[1]Personnel!Z678","v":0},0,0,0,0,null,null,null,null,null,null,null,null,null,null,null,null,null,null,null,null,null,null,null,null,null,null,null,null,null,{"$f":"[1]Personnel!G678","v":0}]
[0,{"$f":"IFERROR(INDEX(Settings!$AP$17:$AP$38,MATCH(Personnel!$G679,Settings!$AQ$17:$AQ$38,0)),0)","v":0},null,null,null,{"$f":"[1]Personnel!F679","v":0},{"$f":"IFERROR(INDEX((SLevel),MATCH(Personnel!BA679,SLevel202223,0)),0)","v":0},{"$f":"[1]Personnel!H679","v":0},{"$f":"[1]Personnel!I679","v":0},{"$f":"[1]Personnel!J679","v":0},{"$f":"[1]Personnel!P679","v":0},{"$f":"[1]Personnel!Q679","v":0},0,{"$f":"[1]Personnel!S679","v":0},{"$f":"[1]Personnel!S679","v":0},{"$f":"[1]Personnel!S679","v":0},{"$f":"[1]Personnel!T679","v":0},0,{"$f":"[1]Personnel!V679","v":0},{"$f":"[1]Personnel!W679","v":0},0,{"$f":"[1]Personnel!Y679","v":0},{"$f":"[1]Personnel!Z679","v":0},0,0,0,0,null,null,null,null,null,null,null,null,null,null,null,null,null,null,null,null,null,null,null,null,null,null,null,null,null,{"$f":"[1]Personnel!G679","v":0}]
[0,{"$f":"IFERROR(INDEX(Settings!$AP$17:$AP$38,MATCH(Personnel!$G680,Settings!$AQ$17:$AQ$38,0)),0)","v":0},null,null,null,{"$f":"[1]Personnel!F680","v":0},{"$f":"IFERROR(INDEX((SLevel),MATCH(Personnel!BA680,SLevel202223,0)),0)","v":0},{"$f":"[1]Personnel!H680","v":0},{"$f":"[1]Personnel!I680","v":0},{"$f":"[1]Personnel!J680","v":0},{"$f":"[1]Personnel!P680","v":0},{"$f":"[1]Personnel!Q680","v":0},0,{"$f":"[1]Personnel!S680","v":0},{"$f":"[1]Personnel!S680","v":0},{"$f":"[1]Personnel!S680","v":0},{"$f":"[1]Personnel!T680","v":0},0,{"$f":"[1]Personnel!V680","v":0},{"$f":"[1]Personnel!W680","v":0},0,{"$f":"[1]Personnel!Y680","v":0},{"$f":"[1]Personnel!Z680","v":0},0,0,0,0,null,null,null,null,null,null,null,null,null,null,null,null,null,null,null,null,null,null,null,null,null,null,null,null,null,{"$f":"[1]Personnel!G680","v":0}]
[0,{"$f":"IFERROR(INDEX(Settings!$AP$17:$AP$38,MATCH(Personnel!$G681,Settings!$AQ$17:$AQ$38,0)),0)","v":0},null,null,null,{"$f":"[1]Personnel!F681","v":0},{"$f":"IFERROR(INDEX((SLevel),MATCH(Personnel!BA681,SLevel202223,0)),0)","v":0},{"$f":"[1]Personnel!H681","v":0},{"$f":"[1]Personnel!I681","v":0},{"$f":"[1]Personnel!J681","v":0},{"$f":"[1]Personnel!P681","v":0},{"$f":"[1]Personnel!Q681","v":0},0,{"$f":"[1]Personnel!S681","v":0},{"$f":"[1]Personnel!S681","v":0},{"$f":"[1]Personnel!S681","v":0},{"$f":"[1]Personnel!T681","v":0},0,{"$f":"[1]Personnel!V681","v":0},{"$f":"[1]Personnel!W681","v":0},0,{"$f":"[1]Personnel!Y681","v":0},{"$f":"[1]Personnel!Z681","v":0},0,0,0,0,null,null,null,null,null,null,null,null,null,null,null,null,null,null,null,null,null,null,null,null,null,null,null,null,null,{"$f":"[1]Personnel!G681","v":0}]
[0,{"$f":"IFERROR(INDEX(Settings!$AP$17:$AP$38,MATCH(Personnel!$G682,Settings!$AQ$17:$AQ$38,0)),0)","v":0},null,null,null,{"$f":"[1]Personnel!F682","v":0},{"$f":"IFERROR(INDEX((SLevel),MATCH(Personnel!BA682,SLevel202223,0)),0)","v":0},{"$f":"[1]Personnel!H682","v":0},{"$f":"[1]Personnel!I682","v":0},{"$f":"[1]Personnel!J682","v":0},{"$f":"[1]Personnel!P682","v":0},{"$f":"[1]Personnel!Q682","v":0},0,{"$f":"[1]Personnel!S682","v":0},{"$f":"[1]Personnel!S682","v":0},{"$f":"[1]Personnel!S682","v":0},{"$f":"[1]Personnel!T682","v":0},0,{"$f":"[1]Personnel!V682","v":0},{"$f":"[1]Personnel!W682","v":0},0,{"$f":"[1]Personnel!Y682","v":0},{"$f":"[1]Personnel!Z682","v":0},0,0,0,0,null,null,null,null,null,null,null,null,null,null,null,null,null,null,null,null,null,null,null,null,null,null,null,null,null,{"$f":"[1]Personnel!G682","v":0}]
[0,{"$f":"IFERROR(INDEX(Settings!$AP$17:$AP$38,MATCH(Personnel!$G683,Settings!$AQ$17:$AQ$38,0)),0)","v":0},null,null,null,{"$f":"[1]Personnel!F683","v":0},{"$f":"IFERROR(INDEX((SLevel),MATCH(Personnel!BA683,SLevel202223,0)),0)","v":0},{"$f":"[1]Personnel!H683","v":0},{"$f":"[1]Personnel!I683","v":0},{"$f":"[1]Personnel!J683","v":0},{"$f":"[1]Personnel!P683","v":0},{"$f":"[1]Personnel!Q683","v":0},0,{"$f":"[1]Personnel!S683","v":0},{"$f":"[1]Personnel!S683","v":0},{"$f":"[1]Personnel!S683","v":0},{"$f":"[1]Personnel!T683","v":0},0,{"$f":"[1]Personnel!V683","v":0},{"$f":"[1]Personnel!W683","v":0},0,{"$f":"[1]Personnel!Y683","v":0},{"$f":"[1]Personnel!Z683","v":0},0,0,0,0,null,null,null,null,null,null,null,null,null,null,null,null,null,null,null,null,null,null,null,null,null,null,null,null,null,{"$f":"[1]Personnel!G683","v":0}]
[0,{"$f":"IFERROR(INDEX(Settings!$AP$17:$AP$38,MATCH(Personnel!$G684,Settings!$AQ$17:$AQ$38,0)),0)","v":0},null,null,null,{"$f":"[1]Personnel!F684","v":0},{"$f":"IFERROR(INDEX((SLevel),MATCH(Personnel!BA684,SLevel202223,0)),0)","v":0},{"$f":"[1]Personnel!H684","v":0},{"$f":"[1]Personnel!I684","v":0},{"$f":"[1]Personnel!J684","v":0},{"$f":"[1]Personnel!P684","v":0},{"$f":"[1]Personnel!Q684","v":0},0,{"$f":"[1]Personnel!S684","v":0},{"$f":"[1]Personnel!S684","v":0},{"$f":"[1]Personnel!S684","v":0},{"$f":"[1]Personnel!T684","v":0},0,{"$f":"[1]Personnel!V684","v":0},{"$f":"[1]Personnel!W684","v":0},0,{"$f":"[1]Personnel!Y684","v":0},{"$f":"[1]Personnel!Z684","v":0},0,0,0,0,null,null,null,null,null,null,null,null,null,null,null,null,null,null,null,null,null,null,null,null,null,null,null,null,null,{"$f":"[1]Personnel!G684","v":0}]
[0,{"$f":"IFERROR(INDEX(Settings!$AP$17:$AP$38,MATCH(Personnel!$G685,Settings!$AQ$17:$AQ$38,0)),0)","v":0},null,null,null,{"$f":"[1]Personnel!F685","v":0},{"$f":"IFERROR(INDEX((SLevel),MATCH(Personnel!BA685,SLevel202223,0)),0)","v":0},{"$f":"[1]Personnel!H685","v":0},{"$f":"[1]Personnel!I685","v":0},{"$f":"[1]Personnel!J685","v":0},{"$f":"[1]Personnel!P685","v":0},{"$f":"[1]Personnel!Q685","v":0},0,{"$f":"[1]Personnel!S685","v":0},{"$f":"[1]Personnel!S685","v":0},{"$f":"[1]Personnel!S685","v":0},{"$f":"[1]Personnel!T685","v":0},0,{"$f":"[1]Personnel!V685","v":0},{"$f":"[1]Personnel!W685","v":0},0,{"$f":"[1]Personnel!Y685","v":0},{"$f":"[1]Personnel!Z685","v":0},0,0,0,0,null,null,null,null,null,null,null,null,null,null,null,null,null,null,null,null,null,null,null,null,null,null,null,null,null,{"$f":"[1]Personnel!G685","v":0}]
[0,{"$f":"IFERROR(INDEX(Settings!$AP$17:$AP$38,MATCH(Personnel!$G686,Settings!$AQ$17:$AQ$38,0)),0)","v":0},null,null,null,{"$f":"[1]Personnel!F686","v":0},{"$f":"IFERROR(INDEX((SLevel),MATCH(Personnel!BA686,SLevel202223,0)),0)","v":0},{"$f":"[1]Personnel!H686","v":0},{"$f":"[1]Personnel!I686","v":0},{"$f":"[1]Personnel!J686","v":0},{"$f":"[1]Personnel!P686","v":0},{"$f":"[1]Personnel!Q686","v":0},0,{"$f":"[1]Personnel!S686","v":0},{"$f":"[1]Personnel!S686","v":0},{"$f":"[1]Personnel!S686","v":0},{"$f":"[1]Personnel!T686","v":0},0,{"$f":"[1]Personnel!V686","v":0},{"$f":"[1]Personnel!W686","v":0},0,{"$f":"[1]Personnel!Y686","v":0},{"$f":"[1]Personnel!Z686","v":0},0,0,0,0,null,null,null,null,null,null,null,null,null,null,null,null,null,null,null,null,null,null,null,null,null,null,null,null,null,{"$f":"[1]Personnel!G686","v":0}]
[0,{"$f":"IFERROR(INDEX(Settings!$AP$17:$AP$38,MATCH(Personnel!$G687,Settings!$AQ$17:$AQ$38,0)),0)","v":0},null,null,null,{"$f":"[1]Personnel!F687","v":0},{"$f":"IFERROR(INDEX((SLevel),MATCH(Personnel!BA687,SLevel202223,0)),0)","v":0},{"$f":"[1]Personnel!H687","v":0},{"$f":"[1]Personnel!I687","v":0},{"$f":"[1]Personnel!J687","v":0},{"$f":"[1]Personnel!P687","v":0},{"$f":"[1]Personnel!Q687","v":0},0,{"$f":"[1]Personnel!S687","v":0},{"$f":"[1]Personnel!S687","v":0},{"$f":"[1]Personnel!S687","v":0},{"$f":"[1]Personnel!T687","v":0},0,{"$f":"[1]Personnel!V687","v":0},{"$f":"[1]Personnel!W687","v":0},0,{"$f":"[1]Personnel!Y687","v":0},{"$f":"[1]Personnel!Z687","v":0},0,0,0,0,null,null,null,null,null,null,null,null,null,null,null,null,null,null,null,null,null,null,null,null,null,null,null,null,null,{"$f":"[1]Personnel!G687","v":0}]
[0,{"$f":"IFERROR(INDEX(Settings!$AP$17:$AP$38,MATCH(Personnel!$G688,Settings!$AQ$17:$AQ$38,0)),0)","v":0},null,null,null,{"$f":"[1]Personnel!F688","v":0},{"$f":"IFERROR(INDEX((SLevel),MATCH(Personnel!BA688,SLevel202223,0)),0)","v":0},{"$f":"[1]Personnel!H688","v":0},{"$f":"[1]Personnel!I688","v":0},{"$f":"[1]Personnel!J688","v":0},{"$f":"[1]Personnel!P688","v":0},{"$f":"[1]Personnel!Q688","v":0},0,{"$f":"[1]Personnel!S688","v":0},{"$f":"[1]Personnel!S688","v":0},{"$f":"[1]Personnel!S688","v":0},{"$f":"[1]Personnel!T688","v":0},0,{"$f":"[1]Personnel!V688","v":0},{"$f":"[1]Personnel!W688","v":0},0,{"$f":"[1]Personnel!Y688","v":0},{"$f":"[1]Personnel!Z688","v":0},0,0,0,0,null,null,null,null,null,null,null,null,null,null,null,null,null,null,null,null,null,null,null,null,null,null,null,null,null,{"$f":"[1]Personnel!G688","v":0}]
[0,{"$f":"IFERROR(INDEX(Settings!$AP$17:$AP$38,MATCH(Personnel!$G689,Settings!$AQ$17:$AQ$38,0)),0)","v":0},null,null,null,{"$f":"[1]Personnel!F689","v":0},{"$f":"IFERROR(INDEX((SLevel),MATCH(Personnel!BA689,SLevel202223,0)),0)","v":0},{"$f":"[1]Personnel!H689","v":0},{"$f":"[1]Personnel!I689","v":0},{"$f":"[1]Personnel!J689","v":0},{"$f":"[1]Personnel!P689","v":0},{"$f":"[1]Personnel!Q689","v":0},0,{"$f":"[1]Personnel!S689","v":0},{"$f":"[1]Personnel!S689","v":0},{"$f":"[1]Personnel!S689","v":0},{"$f":"[1]Personnel!T689","v":0},0,{"$f":"[1]Personnel!V689","v":0},{"$f":"[1]Personnel!W689","v":0},0,{"$f":"[1]Personnel!Y689","v":0},{"$f":"[1]Personnel!Z689","v":0},0,0,0,0,null,null,null,null,null,null,null,null,null,null,null,null,null,null,null,null,null,null,null,null,null,null,null,null,null,{"$f":"[1]Personnel!G689","v":0}]
[0,{"$f":"IFERROR(INDEX(Settings!$AP$17:$AP$38,MATCH(Personnel!$G690,Settings!$AQ$17:$AQ$38,0)),0)","v":0},null,null,null,{"$f":"[1]Personnel!F690","v":0},{"$f":"IFERROR(INDEX((SLevel),MATCH(Personnel!BA690,SLevel202223,0)),0)","v":0},{"$f":"[1]Personnel!H690","v":0},{"$f":"[1]Personnel!I690","v":0},{"$f":"[1]Personnel!J690","v":0},{"$f":"[1]Personnel!P690","v":0},{"$f":"[1]Personnel!Q690","v":0},0,{"$f":"[1]Personnel!S690","v":0},{"$f":"[1]Personnel!S690","v":0},{"$f":"[1]Personnel!S690","v":0},{"$f":"[1]Personnel!T690","v":0},0,{"$f":"[1]Personnel!V690","v":0},{"$f":"[1]Personnel!W690","v":0},0,{"$f":"[1]Personnel!Y690","v":0},{"$f":"[1]Personnel!Z690","v":0},0,0,0,0,null,null,null,null,null,null,null,null,null,null,null,null,null,null,null,null,null,null,null,null,null,null,null,null,null,{"$f":"[1]Personnel!G690","v":0}]
[0,{"$f":"IFERROR(INDEX(Settings!$AP$17:$AP$38,MATCH(Personnel!$G691,Settings!$AQ$17:$AQ$38,0)),0)","v":0},null,null,null,{"$f":"[1]Personnel!F691","v":0},{"$f":"IFERROR(INDEX((SLevel),MATCH(Personnel!BA691,SLevel202223,0)),0)","v":0},{"$f":"[1]Personnel!H691","v":0},{"$f":"[1]Personnel!I691","v":0},{"$f":"[1]Personnel!J691","v":0},{"$f":"[1]Personnel!P691","v":0},{"$f":"[1]Personnel!Q691","v":0},0,{"$f":"[1]Personnel!S691","v":0},{"$f":"[1]Personnel!S691","v":0},{"$f":"[1]Personnel!S691","v":0},{"$f":"[1]Personnel!T691","v":0},0,{"$f":"[1]Personnel!V691","v":0},{"$f":"[1]Personnel!W691","v":0},0,{"$f":"[1]Personnel!Y691","v":0},{"$f":"[1]Personnel!Z691","v":0},0,0,0,0,null,null,null,null,null,null,null,null,null,null,null,null,null,null,null,null,null,null,null,null,null,null,null,null,null,{"$f":"[1]Personnel!G691","v":0}]
[0,{"$f":"IFERROR(INDEX(Settings!$AP$17:$AP$38,MATCH(Personnel!$G692,Settings!$AQ$17:$AQ$38,0)),0)","v":0},null,null,null,{"$f":"[1]Personnel!F692","v":0},{"$f":"IFERROR(INDEX((SLevel),MATCH(Personnel!BA692,SLevel202223,0)),0)","v":0},{"$f":"[1]Personnel!H692","v":0},{"$f":"[1]Personnel!I692","v":0},{"$f":"[1]Personnel!J692","v":0},{"$f":"[1]Personnel!P692","v":0},{"$f":"[1]Personnel!Q692","v":0},0,{"$f":"[1]Personnel!S692","v":0},{"$f":"[1]Personnel!S692","v":0},{"$f":"[1]Personnel!S692","v":0},{"$f":"[1]Personnel!T692","v":0},0,{"$f":"[1]Personnel!V692","v":0},{"$f":"[1]Personnel!W692","v":0},0,{"$f":"[1]Personnel!Y692","v":0},{"$f":"[1]Personnel!Z692","v":0},0,0,0,0,null,null,null,null,null,null,null,null,null,null,null,null,null,null,null,null,null,null,null,null,null,null,null,null,null,{"$f":"[1]Personnel!G692","v":0}]
[0,{"$f":"IFERROR(INDEX(Settings!$AP$17:$AP$38,MATCH(Personnel!$G693,Settings!$AQ$17:$AQ$38,0)),0)","v":0},null,null,null,{"$f":"[1]Personnel!F693","v":0},{"$f":"IFERROR(INDEX((SLevel),MATCH(Personnel!BA693,SLevel202223,0)),0)","v":0},{"$f":"[1]Personnel!H693","v":0},{"$f":"[1]Personnel!I693","v":0},{"$f":"[1]Personnel!J693","v":0},{"$f":"[1]Personnel!P693","v":0},{"$f":"[1]Personnel!Q693","v":0},0,{"$f":"[1]Personnel!S693","v":0},{"$f":"[1]Personnel!S693","v":0},{"$f":"[1]Personnel!S693","v":0},{"$f":"[1]Personnel!T693","v":0},0,{"$f":"[1]Personnel!V693","v":0},{"$f":"[1]Personnel!W693","v":0},0,{"$f":"[1]Personnel!Y693","v":0},{"$f":"[1]Personnel!Z693","v":0},0,0,0,0,null,null,null,null,null,null,null,null,null,null,null,null,null,null,null,null,null,null,null,null,null,null,null,null,null,{"$f":"[1]Personnel!G693","v":0}]
[0,{"$f":"IFERROR(INDEX(Settings!$AP$17:$AP$38,MATCH(Personnel!$G694,Settings!$AQ$17:$AQ$38,0)),0)","v":0},null,null,null,{"$f":"[1]Personnel!F694","v":0},{"$f":"IFERROR(INDEX((SLevel),MATCH(Personnel!BA694,SLevel202223,0)),0)","v":0},{"$f":"[1]Personnel!H694","v":0},{"$f":"[1]Personnel!I694","v":0},{"$f":"[1]Personnel!J694","v":0},{"$f":"[1]Personnel!P694","v":0},{"$f":"[1]Personnel!Q694","v":0},0,{"$f":"[1]Personnel!S694","v":0},{"$f":"[1]Personnel!S694","v":0},{"$f":"[1]Personnel!S694","v":0},{"$f":"[1]Personnel!T694","v":0},0,{"$f":"[1]Personnel!V694","v":0},{"$f":"[1]Personnel!W694","v":0},0,{"$f":"[1]Personnel!Y694","v":0},{"$f":"[1]Personnel!Z694","v":0},0,0,0,0,null,null,null,null,null,null,null,null,null,null,null,null,null,null,null,null,null,null,null,null,null,null,null,null,null,{"$f":"[1]Personnel!G694","v":0}]
[0,{"$f":"IFERROR(INDEX(Settings!$AP$17:$AP$38,MATCH(Personnel!$G695,Settings!$AQ$17:$AQ$38,0)),0)","v":0},null,null,null,{"$f":"[1]Personnel!F695","v":0},{"$f":"IFERROR(INDEX((SLevel),MATCH(Personnel!BA695,SLevel202223,0)),0)","v":0},{"$f":"[1]Personnel!H695","v":0},{"$f":"[1]Personnel!I695","v":0},{"$f":"[1]Personnel!J695","v":0},{"$f":"[1]Personnel!P695","v":0},{"$f":"[1]Personnel!Q695","v":0},0,{"$f":"[1]Personnel!S695","v":0},{"$f":"[1]Personnel!S695","v":0},{"$f":"[1]Personnel!S695","v":0},{"$f":"[1]Personnel!T695","v":0},0,{"$f":"[1]Personnel!V695","v":0},{"$f":"[1]Personnel!W695","v":0},0,{"$f":"[1]Personnel!Y695","v":0},{"$f":"[1]Personnel!Z695","v":0},0,0,0,0,null,null,null,null,null,null,null,null,null,null,null,null,null,null,null,null,null,null,null,null,null,null,null,null,null,{"$f":"[1]Personnel!G695","v":0}]
[0,{"$f":"IFERROR(INDEX(Settings!$AP$17:$AP$38,MATCH(Personnel!$G696,Settings!$AQ$17:$AQ$38,0)),0)","v":0},null,null,null,{"$f":"[1]Personnel!F696","v":0},{"$f":"IFERROR(INDEX((SLevel),MATCH(Personnel!BA696,SLevel202223,0)),0)","v":0},{"$f":"[1]Personnel!H696","v":0},{"$f":"[1]Personnel!I696","v":0},{"$f":"[1]Personnel!J696","v":0},{"$f":"[1]Personnel!P696","v":0},{"$f":"[1]Personnel!Q696","v":0},0,{"$f":"[1]Personnel!S696","v":0},{"$f":"[1]Personnel!S696","v":0},{"$f":"[1]Personnel!S696","v":0},{"$f":"[1]Personnel!T696","v":0},0,{"$f":"[1]Personnel!V696","v":0},{"$f":"[1]Personnel!W696","v":0},0,{"$f":"[1]Personnel!Y696","v":0},{"$f":"[1]Personnel!Z696","v":0},0,0,0,0,null,null,null,null,null,null,null,null,null,null,null,null,null,null,null,null,null,null,null,null,null,null,null,null,null,{"$f":"[1]Personnel!G696","v":0}]
[0,{"$f":"IFERROR(INDEX(Settings!$AP$17:$AP$38,MATCH(Personnel!$G697,Settings!$AQ$17:$AQ$38,0)),0)","v":0},null,null,null,{"$f":"[1]Personnel!F697","v":0},{"$f":"IFERROR(INDEX((SLevel),MATCH(Personnel!BA697,SLevel202223,0)),0)","v":0},{"$f":"[1]Personnel!H697","v":0},{"$f":"[1]Personnel!I697","v":0},{"$f":"[1]Personnel!J697","v":0},{"$f":"[1]Personnel!P697","v":0},{"$f":"[1]Personnel!Q697","v":0},0,{"$f":"[1]Personnel!S697","v":0},{"$f":"[1]Personnel!S697","v":0},{"$f":"[1]Personnel!S697","v":0},{"$f":"[1]Personnel!T697","v":0},0,{"$f":"[1]Personnel!V697","v":0},{"$f":"[1]Personnel!W697","v":0},0,{"$f":"[1]Personnel!Y697","v":0},{"$f":"[1]Personnel!Z697","v":0},0,0,0,0,null,null,null,null,null,null,null,null,null,null,null,null,null,null,null,null,null,null,null,null,null,null,null,null,null,{"$f":"[1]Personnel!G697","v":0}]
[0,{"$f":"IFERROR(INDEX(Settings!$AP$17:$AP$38,MATCH(Personnel!$G698,Settings!$AQ$17:$AQ$38,0)),0)","v":0},null,null,null,{"$f":"[1]Personnel!F698","v":0},{"$f":"IFERROR(INDEX((SLevel),MATCH(Personnel!BA698,SLevel202223,0)),0)","v":0},{"$f":"[1]Personnel!H698","v":0},{"$f":"[1]Personnel!I698","v":0},{"$f":"[1]Personnel!J698","v":0},{"$f":"[1]Personnel!P698","v":0},{"$f":"[1]Personnel!Q698","v":0},0,{"$f":"[1]Personnel!S698","v":0},{"$f":"[1]Personnel!S698","v":0},{"$f":"[1]Personnel!S698","v":0},{"$f":"[1]Personnel!T698","v":0},0,{"$f":"[1]Personnel!V698","v":0},{"$f":"[1]Personnel!W698","v":0},0,{"$f":"[1]Personnel!Y698","v":0},{"$f":"[1]Personnel!Z698","v":0},0,0,0,0,null,null,null,null,null,null,null,null,null,null,null,null,null,null,null,null,null,null,null,null,null,null,null,null,null,{"$f":"[1]Personnel!G698","v":0}]
[0,{"$f":"IFERROR(INDEX(Settings!$AP$17:$AP$38,MATCH(Personnel!$G699,Settings!$AQ$17:$AQ$38,0)),0)","v":0},null,null,null,{"$f":"[1]Personnel!F699","v":0},{"$f":"IFERROR(INDEX((SLevel),MATCH(Personnel!BA699,SLevel202223,0)),0)","v":0},{"$f":"[1]Personnel!H699","v":0},{"$f":"[1]Personnel!I699","v":0},{"$f":"[1]Personnel!J699","v":0},{"$f":"[1]Personnel!P699","v":0},{"$f":"[1]Personnel!Q699","v":0},0,{"$f":"[1]Personnel!S699","v":0},{"$f":"[1]Personnel!S699","v":0},{"$f":"[1]Personnel!S699","v":0},{"$f":"[1]Personnel!T699","v":0},0,{"$f":"[1]Personnel!V699","v":0},{"$f":"[1]Personnel!W699","v":0},0,{"$f":"[1]Personnel!Y699","v":0},{"$f":"[1]Personnel!Z699","v":0},0,0,0,0,null,null,null,null,null,null,null,null,null,null,null,null,null,null,null,null,null,null,null,null,null,null,null,null,null,{"$f":"[1]Personnel!G699","v":0}]
[0,{"$f":"IFERROR(INDEX(Settings!$AP$17:$AP$38,MATCH(Personnel!$G700,Settings!$AQ$17:$AQ$38,0)),0)","v":0},null,null,null,{"$f":"[1]Personnel!F700","v":0},{"$f":"IFERROR(INDEX((SLevel),MATCH(Personnel!BA700,SLevel202223,0)),0)","v":0},{"$f":"[1]Personnel!H700","v":0},{"$f":"[1]Personnel!I700","v":0},{"$f":"[1]Personnel!J700","v":0},{"$f":"[1]Personnel!P700","v":0},{"$f":"[1]Personnel!Q700","v":0},0,{"$f":"[1]Personnel!S700","v":0},{"$f":"[1]Personnel!S700","v":0},{"$f":"[1]Personnel!S700","v":0},{"$f":"[1]Personnel!T700","v":0},0,{"$f":"[1]Personnel!V700","v":0},{"$f":"[1]Personnel!W700","v":0},0,{"$f":"[1]Personnel!Y700","v":0},{"$f":"[1]Personnel!Z700","v":0},0,0,0,0,null,null,null,null,null,null,null,null,null,null,null,null,null,null,null,null,null,null,null,null,null,null,null,null,null,{"$f":"[1]Personnel!G700","v":0}]
[0,{"$f":"IFERROR(INDEX(Settings!$AP$17:$AP$38,MATCH(Personnel!$G701,Settings!$AQ$17:$AQ$38,0)),0)","v":0},null,null,null,{"$f":"[1]Personnel!F701","v":0},{"$f":"IFERROR(INDEX((SLevel),MATCH(Personnel!BA701,SLevel202223,0)),0)","v":0},{"$f":"[1]Personnel!H701","v":0},{"$f":"[1]Personnel!I701","v":0},{"$f":"[1]Personnel!J701","v":0},{"$f":"[1]Personnel!P701","v":0},{"$f":"[1]Personnel!Q701","v":0},0,{"$f":"[1]Personnel!S701","v":0},{"$f":"[1]Personnel!S701","v":0},{"$f":"[1]Personnel!S701","v":0},{"$f":"[1]Personnel!T701","v":0},0,{"$f":"[1]Personnel!V701","v":0},{"$f":"[1]Personnel!W701","v":0},0,{"$f":"[1]Personnel!Y701","v":0},{"$f":"[1]Personnel!Z701","v":0},0,0,0,0,null,null,null,null,null,null,null,null,null,null,null,null,null,null,null,null,null,null,null,null,null,null,null,null,null,{"$f":"[1]Personnel!G701","v":0}]
[0,{"$f":"IFERROR(INDEX(Settings!$AP$17:$AP$38,MATCH(Personnel!$G702,Settings!$AQ$17:$AQ$38,0)),0)","v":0},null,null,null,{"$f":"[1]Personnel!F702","v":0},{"$f":"IFERROR(INDEX((SLevel),MATCH(Personnel!BA702,SLevel202223,0)),0)","v":0},{"$f":"[1]Personnel!H702","v":0},{"$f":"[1]Personnel!I702","v":0},{"$f":"[1]Personnel!J702","v":0},{"$f":"[1]Personnel!P702","v":0},{"$f":"[1]Personnel!Q702","v":0},0,{"$f":"[1]Personnel!S702","v":0},{"$f":"[1]Personnel!S702","v":0},{"$f":"[1]Personnel!S702","v":0},{"$f":"[1]Personnel!T702","v":0},0,{"$f":"[1]Personnel!V702","v":0},{"$f":"[1]Personnel!W702","v":0},0,{"$f":"[1]Personnel!Y702","v":0},{"$f":"[1]Personnel!Z702","v":0},0,0,0,0,null,null,null,null,null,null,null,null,null,null,null,null,null,null,null,null,null,null,null,null,null,null,null,null,null,{"$f":"[1]Personnel!G702","v":0}]
[0,{"$f":"IFERROR(INDEX(Settings!$AP$17:$AP$38,MATCH(Personnel!$G703,Settings!$AQ$17:$AQ$38,0)),0)","v":0},null,null,null,{"$f":"[1]Personnel!F703","v":0},{"$f":"IFERROR(INDEX((SLevel),MATCH(Personnel!BA703,SLevel202223,0)),0)","v":0},{"$f":"[1]Personnel!H703","v":0},{"$f":"[1]Personnel!I703","v":0},{"$f":"[1]Personnel!J703","v":0},{"$f":"[1]Personnel!P703","v":0},{"$f":"[1]Personnel!Q703","v":0},0,{"$f":"[1]Personnel!S703","v":0},{"$f":"[1]Personnel!S703","v":0},{"$f":"[1]Personnel!S703","v":0},{"$f":"[1]Personnel!T703","v":0},0,{"$f":"[1]Personnel!V703","v":0},{"$f":"[1]Personnel!W703","v":0},0,{"$f":"[1]Personnel!Y703","v":0},{"$f":"[1]Personnel!Z703","v":0},0,0,0,0,null,null,null,null,null,null,null,null,null,null,null,null,null,null,null,null,null,null,null,null,null,null,null,null,null,{"$f":"[1]Personnel!G703","v":0}]
[0,{"$f":"IFERROR(INDEX(Settings!$AP$17:$AP$38,MATCH(Personnel!$G704,Settings!$AQ$17:$AQ$38,0)),0)","v":0},null,null,null,{"$f":"[1]Personnel!F704","v":0},{"$f":"IFERROR(INDEX((SLevel),MATCH(Personnel!BA704,SLevel202223,0)),0)","v":0},{"$f":"[1]Personnel!H704","v":0},{"$f":"[1]Personnel!I704","v":0},{"$f":"[1]Personnel!J704","v":0},{"$f":"[1]Personnel!P704","v":0},{"$f":"[1]Personnel!Q704","v":0},0,{"$f":"[1]Personnel!S704","v":0},{"$f":"[1]Personnel!S704","v":0},{"$f":"[1]Personnel!S704","v":0},{"$f":"[1]Personnel!T704","v":0},0,{"$f":"[1]Personnel!V704","v":0},{"$f":"[1]Personnel!W704","v":0},0,{"$f":"[1]Personnel!Y704","v":0},{"$f":"[1]Personnel!Z704","v":0},0,0,0,0,null,null,null,null,null,null,null,null,null,null,null,null,null,null,null,null,null,null,null,null,null,null,null,null,null,{"$f":"[1]Personnel!G704","v":0}]
[0,{"$f":"IFERROR(INDEX(Settings!$AP$17:$AP$38,MATCH(Personnel!$G705,Settings!$AQ$17:$AQ$38,0)),0)","v":0},null,null,null,{"$f":"[1]Personnel!F705","v":0},{"$f":"IFERROR(INDEX((SLevel),MATCH(Personnel!BA705,SLevel202223,0)),0)","v":0},{"$f":"[1]Personnel!H705","v":0},{"$f":"[1]Personnel!I705","v":0},{"$f":"[1]Personnel!J705","v":0},{"$f":"[1]Personnel!P705","v":0},{"$f":"[1]Personnel!Q705","v":0},0,{"$f":"[1]Personnel!S705","v":0},{"$f":"[1]Personnel!S705","v":0},{"$f":"[1]Personnel!S705","v":0},{"$f":"[1]Personnel!T705","v":0},0,{"$f":"[1]Personnel!V705","v":0},{"$f":"[1]Personnel!W705","v":0},0,{"$f":"[1]Personnel!Y705","v":0},{"$f":"[1]Personnel!Z705","v":0},0,0,0,0,null,null,null,null,null,null,null,null,null,null,null,null,null,null,null,null,null,null,null,null,null,null,null,null,null,{"$f":"[1]Personnel!G705","v":0}]
[0,{"$f":"IFERROR(INDEX(Settings!$AP$17:$AP$38,MATCH(Personnel!$G706,Settings!$AQ$17:$AQ$38,0)),0)","v":0},null,null,null,{"$f":"[1]Personnel!F706","v":0},{"$f":"IFERROR(INDEX((SLevel),MATCH(Personnel!BA706,SLevel202223,0)),0)","v":0},{"$f":"[1]Personnel!H706","v":0},{"$f":"[1]Personnel!I706","v":0},{"$f":"[1]Personnel!J706","v":0},{"$f":"[1]Personnel!P706","v":0},{"$f":"[1]Personnel!Q706","v":0},0,{"$f":"[1]Personnel!S706","v":0},{"$f":"[1]Personnel!S706","v":0},{"$f":"[1]Personnel!S706","v":0},{"$f":"[1]Personnel!T706","v":0},0,{"$f":"[1]Personnel!V706","v":0},{"$f":"[1]Personnel!W706","v":0},0,{"$f":"[1]Personnel!Y706","v":0},{"$f":"[1]Personnel!Z706","v":0},0,0,0,0,null,null,null,null,null,null,null,null,null,null,null,null,null,null,null,null,null,null,null,null,null,null,null,null,null,{"$f":"[1]Personnel!G706","v":0}]
[0,{"$f":"IFERROR(INDEX(Settings!$AP$17:$AP$38,MATCH(Personnel!$G707,Settings!$AQ$17:$AQ$38,0)),0)","v":0},null,null,null,{"$f":"[1]Personnel!F707","v":0},{"$f":"IFERROR(INDEX((SLevel),MATCH(Personnel!BA707,SLevel202223,0)),0)","v":0},{"$f":"[1]Personnel!H707","v":0},{"$f":"[1]Personnel!I707","v":0},{"$f":"[1]Personnel!J707","v":0},{"$f":"[1]Personnel!P707","v":0},{"$f":"[1]Personnel!Q707","v":0},0,{"$f":"[1]Personnel!S707","v":0},{"$f":"[1]Personnel!S707","v":0},{"$f":"[1]Personnel!S707","v":0},{"$f":"[1]Personnel!T707","v":0},0,{"$f":"[1]Personnel!V707","v":0},{"$f":"[1]Personnel!W707","v":0},0,{"$f":"[1]Personnel!Y707","v":0},{"$f":"[1]Personnel!Z707","v":0},0,0,0,0,null,null,null,null,null,null,null,null,null,null,null,null,null,null,null,null,null,null,null,null,null,null,null,null,null,{"$f":"[1]Personnel!G707","v":0}]
[0,{"$f":"IFERROR(INDEX(Settings!$AP$17:$AP$38,MATCH(Personnel!$G708,Settings!$AQ$17:$AQ$38,0)),0)","v":0},null,null,null,{"$f":"[1]Personnel!F708","v":0},{"$f":"IFERROR(INDEX((SLevel),MATCH(Personnel!BA708,SLevel202223,0)),0)","v":0},{"$f":"[1]Personnel!H708","v":0},{"$f":"[1]Personnel!I708","v":0},{"$f":"[1]Personnel!J708","v":0},{"$f":"[1]Personnel!P708","v":0},{"$f":"[1]Personnel!Q708","v":0},0,{"$f":"[1]Personnel!S708","v":0},{"$f":"[1]Personnel!S708","v":0},{"$f":"[1]Personnel!S708","v":0},{"$f":"[1]Personnel!T708","v":0},0,{"$f":"[1]Personnel!V708","v":0},{"$f":"[1]Personnel!W708","v":0},0,{"$f":"[1]Personnel!Y708","v":0},{"$f":"[1]Personnel!Z708","v":0},0,0,0,0,null,null,null,null,null,null,null,null,null,null,null,null,null,null,null,null,null,null,null,null,null,null,null,null,null,{"$f":"[1]Personnel!G708","v":0}]
[0,{"$f":"IFERROR(INDEX(Settings!$AP$17:$AP$38,MATCH(Personnel!$G709,Settings!$AQ$17:$AQ$38,0)),0)","v":0},null,null,null,{"$f":"[1]Personnel!F709","v":0},{"$f":"IFERROR(INDEX((SLevel),MATCH(Personnel!BA709,SLevel202223,0)),0)","v":0},{"$f":"[1]Personnel!H709","v":0},{"$f":"[1]Personnel!I709","v":0},{"$f":"[1]Personnel!J709","v":0},{"$f":"[1]Personnel!P709","v":0},{"$f":"[1]Personnel!Q709","v":0},0,{"$f":"[1]Personnel!S709","v":0},{"$f":"[1]Personnel!S709","v":0},{"$f":"[1]Personnel!S709","v":0},{"$f":"[1]Personnel!T709","v":0},0,{"$f":"[1]Personnel!V709","v":0},{"$f":"[1]Personnel!W709","v":0},0,{"$f":"[1]Personnel!Y709","v":0},{"$f":"[1]Personnel!Z709","v":0},0,0,0,0,null,null,null,null,null,null,null,null,null,null,null,null,null,null,null,null,null,null,null,null,null,null,null,null,null,{"$f":"[1]Personnel!G709","v":0}]
[0,{"$f":"IFERROR(INDEX(Settings!$AP$17:$AP$38,MATCH(Personnel!$G710,Settings!$AQ$17:$AQ$38,0)),0)","v":0},null,null,null,{"$f":"[1]Personnel!F710","v":0},{"$f":"IFERROR(INDEX((SLevel),MATCH(Personnel!BA710,SLevel202223,0)),0)","v":0},{"$f":"[1]Personnel!H710","v":0},{"$f":"[1]Personnel!I710","v":0},{"$f":"[1]Personnel!J710","v":0},{"$f":"[1]Personnel!P710","v":0},{"$f":"[1]Personnel!Q710","v":0},0,{"$f":"[1]Personnel!S710","v":0},{"$f":"[1]Personnel!S710","v":0},{"$f":"[1]Personnel!S710","v":0},{"$f":"[1]Personnel!T710","v":0},0,{"$f":"[1]Personnel!V710","v":0},{"$f":"[1]Personnel!W710","v":0},0,{"$f":"[1]Personnel!Y710","v":0},{"$f":"[1]Personnel!Z710","v":0},0,0,0,0,null,null,null,null,null,null,null,null,null,null,null,null,null,null,null,null,null,null,null,null,null,null,null,null,null,{"$f":"[1]Personnel!G710","v":0}]
[0,{"$f":"IFERROR(INDEX(Settings!$AP$17:$AP$38,MATCH(Personnel!$G711,Settings!$AQ$17:$AQ$38,0)),0)","v":0},null,null,null,{"$f":"[1]Personnel!F711","v":0},{"$f":"IFERROR(INDEX((SLevel),MATCH(Personnel!BA711,SLevel202223,0)),0)","v":0},{"$f":"[1]Personnel!H711","v":0},{"$f":"[1]Personnel!I711","v":0},{"$f":"[1]Personnel!J711","v":0},{"$f":"[1]Personnel!P711","v":0},{"$f":"[1]Personnel!Q711","v":0},0,{"$f":"[1]Personnel!S711","v":0},{"$f":"[1]Personnel!S711","v":0},{"$f":"[1]Personnel!S711","v":0},{"$f":"[1]Personnel!T711","v":0},0,{"$f":"[1]Personnel!V711","v":0},{"$f":"[1]Personnel!W711","v":0},0,{"$f":"[1]Personnel!Y711","v":0},{"$f":"[1]Personnel!Z711","v":0},0,0,0,0,null,null,null,null,null,null,null,null,null,null,null,null,null,null,null,null,null,null,null,null,null,null,null,null,null,{"$f":"[1]Personnel!G711","v":0}]
[0,{"$f":"IFERROR(INDEX(Settings!$AP$17:$AP$38,MATCH(Personnel!$G712,Settings!$AQ$17:$AQ$38,0)),0)","v":0},null,null,null,{"$f":"[1]Personnel!F712","v":0},{"$f":"IFERROR(INDEX((SLevel),MATCH(Personnel!BA712,SLevel202223,0)),0)","v":0},{"$f":"[1]Personnel!H712","v":0},{"$f":"[1]Personnel!I712","v":0},{"$f":"[1]Personnel!J712","v":0},{"$f":"[1]Personnel!P712","v":0},{"$f":"[1]Personnel!Q712","v":0},0,{"$f":"[1]Personnel!S712","v":0},{"$f":"[1]Personnel!S712","v":0},{"$f":"[1]Personnel!S712","v":0},{"$f":"[1]Personnel!T712","v":0},0,{"$f":"[1]Personnel!V712","v":0},{"$f":"[1]Personnel!W712","v":0},0,{"$f":"[1]Personnel!Y712","v":0},{"$f":"[1]Personnel!Z712","v":0},0,0,0,0,null,null,null,null,null,null,null,null,null,null,null,null,null,null,null,null,null,null,null,null,null,null,null,null,null,{"$f":"[1]Personnel!G712","v":0}]
[0,{"$f":"IFERROR(INDEX(Settings!$AP$17:$AP$38,MATCH(Personnel!$G713,Settings!$AQ$17:$AQ$38,0)),0)","v":0},null,null,null,{"$f":"[1]Personnel!F713","v":0},{"$f":"IFERROR(INDEX((SLevel),MATCH(Personnel!BA713,SLevel202223,0)),0)","v":0},{"$f":"[1]Personnel!H713","v":0},{"$f":"[1]Personnel!I713","v":0},{"$f":"[1]Personnel!J713","v":0},{"$f":"[1]Personnel!P713","v":0},{"$f":"[1]Personnel!Q713","v":0},0,{"$f":"[1]Personnel!S713","v":0},{"$f":"[1]Personnel!S713","v":0},{"$f":"[1]Personnel!S713","v":0},{"$f":"[1]Personnel!T713","v":0},0,{"$f":"[1]Personnel!V713","v":0},{"$f":"[1]Personnel!W713","v":0},0,{"$f":"[1]Personnel!Y713","v":0},{"$f":"[1]Personnel!Z713","v":0},0,0,0,0,null,null,null,null,null,null,null,null,null,null,null,null,null,null,null,null,null,null,null,null,null,null,null,null,null,{"$f":"[1]Personnel!G713","v":0}]
[0,{"$f":"IFERROR(INDEX(Settings!$AP$17:$AP$38,MATCH(Personnel!$G714,Settings!$AQ$17:$AQ$38,0)),0)","v":0},null,null,null,{"$f":"[1]Personnel!F714","v":0},{"$f":"IFERROR(INDEX((SLevel),MATCH(Personnel!BA714,SLevel202223,0)),0)","v":0},{"$f":"[1]Personnel!H714","v":0},{"$f":"[1]Personnel!I714","v":0},{"$f":"[1]Personnel!J714","v":0},{"$f":"[1]Personnel!P714","v":0},{"$f":"[1]Personnel!Q714","v":0},0,{"$f":"[1]Personnel!S714","v":0},{"$f":"[1]Personnel!S714","v":0},{"$f":"[1]Personnel!S714","v":0},{"$f":"[1]Personnel!T714","v":0},0,{"$f":"[1]Personnel!V714","v":0},{"$f":"[1]Personnel!W714","v":0},0,{"$f":"[1]Personnel!Y714","v":0},{"$f":"[1]Personnel!Z714","v":0},0,0,0,0,null,null,null,null,null,null,null,null,null,null,null,null,null,null,null,null,null,null,null,null,null,null,null,null,null,{"$f":"[1]Personnel!G714","v":0}]
[0,{"$f":"IFERROR(INDEX(Settings!$AP$17:$AP$38,MATCH(Personnel!$G715,Settings!$AQ$17:$AQ$38,0)),0)","v":0},null,null,null,{"$f":"[1]Personnel!F715","v":0},{"$f":"IFERROR(INDEX((SLevel),MATCH(Personnel!BA715,SLevel202223,0)),0)","v":0},{"$f":"[1]Personnel!H715","v":0},{"$f":"[1]Personnel!I715","v":0},{"$f":"[1]Personnel!J715","v":0},{"$f":"[1]Personnel!P715","v":0},{"$f":"[1]Personnel!Q715","v":0},0,{"$f":"[1]Personnel!S715","v":0},{"$f":"[1]Personnel!S715","v":0},{"$f":"[1]Personnel!S715","v":0},{"$f":"[1]Personnel!T715","v":0},0,{"$f":"[1]Personnel!V715","v":0},{"$f":"[1]Personnel!W715","v":0},0,{"$f":"[1]Personnel!Y715","v":0},{"$f":"[1]Personnel!Z715","v":0},0,0,0,0,null,null,null,null,null,null,null,null,null,null,null,null,null,null,null,null,null,null,null,null,null,null,null,null,null,{"$f":"[1]Personnel!G715","v":0}]
[{"$f":"IF(SUM(K716:AA716)>0,1,0)","v":0},{"$f":"IFERROR(INDEX(Settings!$AP$17:$AP$38,MATCH(Personnel!$G716,Settings!$AQ$17:$AQ$38,0)),0)","v":0},null,null,null,{"$f":"[1]Personnel!F716","v":0},{"$f":"IFERROR(INDEX((SLevel),MATCH(Personnel!BA716,SLevel202223,0)),0)","v":0},{"$f":"[1]Personnel!H716","v":0},{"$f":"[1]Personnel!I716","v":0},{"$f":"[1]Personnel!J716","v":0},{"$f":"[1]Personnel!P716","v":0},{"$f":"[1]Personnel!Q716","v":0},0,{"$f":"[1]Personnel!S716","v":0},{"$f":"[1]Personnel!S716","v":0},{"$f":"[1]Personnel!S716","v":0},{"$f":"[1]Personnel!T716","v":0},0,{"$f":"[1]Personnel!V716","v":0},{"$f":"[1]Personnel!W716","v":0},0,{"$f":"[1]Personnel!Y716","v":0},{"$f":"[1]Personnel!Z716","v":0},0,0,0,0,null,null,null,null,null,null,null,null,null,null,null,null,null,null,null,null,null,null,null,null,null,null,null,null,null,{"$f":"[1]Personnel!G716","v":0}]
[0,{"$f":"IFERROR(INDEX(Settings!$AP$17:$AP$38,MATCH(Personnel!$G717,Settings!$AQ$17:$AQ$38,0)),0)","v":0},null,null,null,{"$f":"[1]Personnel!F717","v":0},{"$f":"IFERROR(INDEX((SLevel),MATCH(Personnel!BA717,SLevel202223,0)),0)","v":0},{"$f":"[1]Personnel!H717","v":0},{"$f":"[1]Personnel!I717","v":0},{"$f":"[1]Personnel!J717","v":0},{"$f":"[1]Personnel!P717","v":0},{"$f":"[1]Personnel!Q717","v":0},{"$f":"ROUND(IF(ISERROR(L717/K717),0,(L717/K717)),0)","v":0},{"$f":"[1]Personnel!S717","v":0},{"$f":"[1]Personnel!S717","v":0},{"$f":"[1]Personnel!S717","v":0},{"$f":"[1]Personnel!T717","v":0},{"$f":"ROUND(IF(ISERROR(Q717/P717),0,(Q717/P717)),0)","v":0},{"$f":"[1]Personnel!V717","v":0},{"$f":"[1]Personnel!W717","v":0},{"$f":"ROUND(IF(ISERROR(T717/S717),0,(T717/S717)),0)","v":0},{"$f":"[1]Personnel!Y717","v":0},{"$f":"[1]Personnel!Z717","v":0},{"$f":"ROUND(IF(ISERROR(W717/V717),0,(W717/V717)),0)","v":0},0,0,{"$f":"ROUND(IF(ISERROR(Z717/Y717),0,(Z717/Y717)),0)","v":0},null,null,null,null,null,null,null,null,null,null,null,null,null,null,null,null,null,null,null,null,null,null,null,null,null,{"$f":"[1]Personnel!G717","v":0}]
[0,{"$f":"IFERROR(INDEX(Settings!$AP$17:$AP$38,MATCH(Personnel!$G718,Settings!$AQ$17:$AQ$38,0)),0)","v":0},null,null,null,{"$f":"[1]Personnel!F718","v":0},{"$f":"IFERROR(INDEX((SLevel),MATCH(Personnel!BA718,SLevel202223,0)),0)","v":0},{"$f":"[1]Personnel!H718","v":0},{"$f":"[1]Personnel!I718","v":0},{"$f":"[1]Personnel!J718","v":0},{"$f":"[1]Personnel!P718","v":0},{"$f":"[1]Personnel!Q718","v":0},0,{"$f":"[1]Personnel!S718","v":0},{"$f":"[1]Personnel!S718","v":0},{"$f":"[1]Personnel!S718","v":0},{"$f":"[1]Personnel!T718","v":0},0,{"$f":"[1]Personnel!V718","v":0},{"$f":"[1]Personnel!W718","v":0},0,{"$f":"[1]Personnel!Y718","v":0},{"$f":"[1]Personnel!Z718","v":0},0,0,0,0,null,null,null,null,null,null,null,null,null,null,null,null,null,null,null,null,null,null,null,null,null,null,null,null,null,{"$f":"[1]Personnel!G718","v":0}]
[0,{"$f":"IFERROR(INDEX(Settings!$AP$17:$AP$38,MATCH(Personnel!$G719,Settings!$AQ$17:$AQ$38,0)),0)","v":0},null,null,null,{"$f":"[1]Personnel!F719","v":0},{"$f":"IFERROR(INDEX((SLevel),MATCH(Personnel!BA719,SLevel202223,0)),0)","v":0},{"$f":"[1]Personnel!H719","v":0},{"$f":"[1]Personnel!I719","v":0},{"$f":"[1]Personnel!J719","v":0},{"$f":"[1]Personnel!P719","v":0},{"$f":"[1]Personnel!Q719","v":0},0,{"$f":"[1]Personnel!S719","v":0},{"$f":"[1]Personnel!S719","v":0},{"$f":"[1]Personnel!S719","v":0},{"$f":"[1]Personnel!T719","v":0},0,{"$f":"[1]Personnel!V719","v":0},{"$f":"[1]Personnel!W719","v":0},0,{"$f":"[1]Personnel!Y719","v":0},{"$f":"[1]Personnel!Z719","v":0},0,0,0,0,null,null,null,null,null,null,null,null,null,null,null,null,null,null,null,null,null,null,null,null,null,null,null,null,null,{"$f":"[1]Personnel!G719","v":0}]
[0,{"$f":"IFERROR(INDEX(Settings!$AP$17:$AP$38,MATCH(Personnel!$G720,Settings!$AQ$17:$AQ$38,0)),0)","v":0},null,null,null,{"$f":"[1]Personnel!F720","v":0},{"$f":"IFERROR(INDEX((SLevel),MATCH(Personnel!BA720,SLevel202223,0)),0)","v":0},{"$f":"[1]Personnel!H720","v":0},{"$f":"[1]Personnel!I720","v":0},{"$f":"[1]Personnel!J720","v":0},{"$f":"[1]Personnel!P720","v":0},{"$f":"[1]Personnel!Q720","v":0},0,{"$f":"[1]Personnel!S720","v":0},{"$f":"[1]Personnel!S720","v":0},{"$f":"[1]Personnel!S720","v":0},{"$f":"[1]Personnel!T720","v":0},0,{"$f":"[1]Personnel!V720","v":0},{"$f":"[1]Personnel!W720","v":0},0,{"$f":"[1]Personnel!Y720","v":0},{"$f":"[1]Personnel!Z720","v":0},0,0,0,0,null,null,null,null,null,null,null,null,null,null,null,null,null,null,null,null,null,null,null,null,null,null,null,null,null,{"$f":"[1]Personnel!G720","v":0}]
[0,{"$f":"IFERROR(INDEX(Settings!$AP$17:$AP$38,MATCH(Personnel!$G721,Settings!$AQ$17:$AQ$38,0)),0)","v":0},null,null,null,{"$f":"[1]Personnel!F721","v":0},{"$f":"IFERROR(INDEX((SLevel),MATCH(Personnel!BA721,SLevel202223,0)),0)","v":0},{"$f":"[1]Personnel!H721","v":0},{"$f":"[1]Personnel!I721","v":0},{"$f":"[1]Personnel!J721","v":0},{"$f":"[1]Personnel!P721","v":0},{"$f":"[1]Personnel!Q721","v":0},0,{"$f":"[1]Personnel!S721","v":0},{"$f":"[1]Personnel!S721","v":0},{"$f":"[1]Personnel!S721","v":0},{"$f":"[1]Personnel!T721","v":0},0,{"$f":"[1]Personnel!V721","v":0},{"$f":"[1]Personnel!W721","v":0},0,{"$f":"[1]Personnel!Y721","v":0},{"$f":"[1]Personnel!Z721","v":0},0,0,0,0,null,null,null,null,null,null,null,null,null,null,null,null,null,null,null,null,null,null,null,null,null,null,null,null,null,{"$f":"[1]Personnel!G721","v":0}]
[0,{"$f":"IFERROR(INDEX(Settings!$AP$17:$AP$38,MATCH(Personnel!$G722,Settings!$AQ$17:$AQ$38,0)),0)","v":0},null,null,null,{"$f":"[1]Personnel!F722","v":0},{"$f":"IFERROR(INDEX((SLevel),MATCH(Personnel!BA722,SLevel202223,0)),0)","v":0},{"$f":"[1]Personnel!H722","v":0},{"$f":"[1]Personnel!I722","v":0},{"$f":"[1]Personnel!J722","v":0},{"$f":"[1]Personnel!P722","v":0},{"$f":"[1]Personnel!Q722","v":0},0,{"$f":"[1]Personnel!S722","v":0},{"$f":"[1]Personnel!S722","v":0},{"$f":"[1]Personnel!S722","v":0},{"$f":"[1]Personnel!T722","v":0},0,{"$f":"[1]Personnel!V722","v":0},{"$f":"[1]Personnel!W722","v":0},0,{"$f":"[1]Personnel!Y722","v":0},{"$f":"[1]Personnel!Z722","v":0},0,0,0,0,null,null,null,null,null,null,null,null,null,null,null,null,null,null,null,null,null,null,null,null,null,null,null,null,null,{"$f":"[1]Personnel!G722","v":0}]
[0,{"$f":"IFERROR(INDEX(Settings!$AP$17:$AP$38,MATCH(Personnel!$G723,Settings!$AQ$17:$AQ$38,0)),0)","v":0},null,null,null,{"$f":"[1]Personnel!F723","v":0},{"$f":"IFERROR(INDEX((SLevel),MATCH(Personnel!BA723,SLevel202223,0)),0)","v":0},{"$f":"[1]Personnel!H723","v":0},{"$f":"[1]Personnel!I723","v":0},{"$f":"[1]Personnel!J723","v":0},{"$f":"[1]Personnel!P723","v":0},{"$f":"[1]Personnel!Q723","v":0},0,{"$f":"[1]Personnel!S723","v":0},{"$f":"[1]Personnel!S723","v":0},{"$f":"[1]Personnel!S723","v":0},{"$f":"[1]Personnel!T723","v":0},0,{"$f":"[1]Personnel!V723","v":0},{"$f":"[1]Personnel!W723","v":0},0,{"$f":"[1]Personnel!Y723","v":0},{"$f":"[1]Personnel!Z723","v":0},0,0,0,0,null,null,null,null,null,null,null,null,null,null,null,null,null,null,null,null,null,null,null,null,null,null,null,null,null,{"$f":"[1]Personnel!G723","v":0}]
[0,{"$f":"IFERROR(INDEX(Settings!$AP$17:$AP$38,MATCH(Personnel!$G724,Settings!$AQ$17:$AQ$38,0)),0)","v":0},null,null,null,{"$f":"[1]Personnel!F724","v":0},{"$f":"IFERROR(INDEX((SLevel),MATCH(Personnel!BA724,SLevel202223,0)),0)","v":0},{"$f":"[1]Personnel!H724","v":0},{"$f":"[1]Personnel!I724","v":0},{"$f":"[1]Personnel!J724","v":0},{"$f":"[1]Personnel!P724","v":0},{"$f":"[1]Personnel!Q724","v":0},0,{"$f":"[1]Personnel!S724","v":0},{"$f":"[1]Personnel!S724","v":0},{"$f":"[1]Personnel!S724","v":0},{"$f":"[1]Personnel!T724","v":0},0,{"$f":"[1]Personnel!V724","v":0},{"$f":"[1]Personnel!W724","v":0},0,{"$f":"[1]Personnel!Y724","v":0},{"$f":"[1]Personnel!Z724","v":0},0,0,0,0,null,null,null,null,null,null,null,null,null,null,null,null,null,null,null,null,null,null,null,null,null,null,null,null,null,{"$f":"[1]Personnel!G724","v":0}]
[0,{"$f":"IFERROR(INDEX(Settings!$AP$17:$AP$38,MATCH(Personnel!$G725,Settings!$AQ$17:$AQ$38,0)),0)","v":0},null,null,null,{"$f":"[1]Personnel!F725","v":0},{"$f":"IFERROR(INDEX((SLevel),MATCH(Personnel!BA725,SLevel202223,0)),0)","v":0},{"$f":"[1]Personnel!H725","v":0},{"$f":"[1]Personnel!I725","v":0},{"$f":"[1]Personnel!J725","v":0},{"$f":"[1]Personnel!P725","v":0},{"$f":"[1]Personnel!Q725","v":0},0,{"$f":"[1]Personnel!S725","v":0},{"$f":"[1]Personnel!S725","v":0},{"$f":"[1]Personnel!S725","v":0},{"$f":"[1]Personnel!T725","v":0},0,{"$f":"[1]Personnel!V725","v":0},{"$f":"[1]Personnel!W725","v":0},0,{"$f":"[1]Personnel!Y725","v":0},{"$f":"[1]Personnel!Z725","v":0},0,0,0,0,null,null,null,null,null,null,null,null,null,null,null,null,null,null,null,null,null,null,null,null,null,null,null,null,null,{"$f":"[1]Personnel!G725","v":0}]
[0,{"$f":"IFERROR(INDEX(Settings!$AP$17:$AP$38,MATCH(Personnel!$G726,Settings!$AQ$17:$AQ$38,0)),0)","v":0},null,null,null,{"$f":"[1]Personnel!F726","v":0},{"$f":"IFERROR(INDEX((SLevel),MATCH(Personnel!BA726,SLevel202223,0)),0)","v":0},{"$f":"[1]Personnel!H726","v":0},{"$f":"[1]Personnel!I726","v":0},{"$f":"[1]Personnel!J726","v":0},{"$f":"[1]Personnel!P726","v":0},{"$f":"[1]Personnel!Q726","v":0},0,{"$f":"[1]Personnel!S726","v":0},{"$f":"[1]Personnel!S726","v":0},{"$f":"[1]Personnel!S726","v":0},{"$f":"[1]Personnel!T726","v":0},0,{"$f":"[1]Personnel!V726","v":0},{"$f":"[1]Personnel!W726","v":0},0,{"$f":"[1]Personnel!Y726","v":0},{"$f":"[1]Personnel!Z726","v":0},0,0,0,0,null,null,null,null,null,null,null,null,null,null,null,null,null,null,null,null,null,null,null,null,null,null,null,null,null,{"$f":"[1]Personnel!G726","v":0}]
[0,{"$f":"IFERROR(INDEX(Settings!$AP$17:$AP$38,MATCH(Personnel!$G727,Settings!$AQ$17:$AQ$38,0)),0)","v":0},null,null,null,{"$f":"[1]Personnel!F727","v":0},{"$f":"IFERROR(INDEX((SLevel),MATCH(Personnel!BA727,SLevel202223,0)),0)","v":0},{"$f":"[1]Personnel!H727","v":0},{"$f":"[1]Personnel!I727","v":0},{"$f":"[1]Personnel!J727","v":0},{"$f":"[1]Personnel!P727","v":0},{"$f":"[1]Personnel!Q727","v":0},0,{"$f":"[1]Personnel!S727","v":0},{"$f":"[1]Personnel!S727","v":0},{"$f":"[1]Personnel!S727","v":0},{"$f":"[1]Personnel!T727","v":0},0,{"$f":"[1]Personnel!V727","v":0},{"$f":"[1]Personnel!W727","v":0},0,{"$f":"[1]Personnel!Y727","v":0},{"$f":"[1]Personnel!Z727","v":0},0,0,0,0,null,null,null,null,null,null,null,null,null,null,null,null,null,null,null,null,null,null,null,null,null,null,null,null,null,{"$f":"[1]Personnel!G727","v":0}]
[0,{"$f":"IFERROR(INDEX(Settings!$AP$17:$AP$38,MATCH(Personnel!$G728,Settings!$AQ$17:$AQ$38,0)),0)","v":0},null,null,null,{"$f":"[1]Personnel!F728","v":0},{"$f":"IFERROR(INDEX((SLevel),MATCH(Personnel!BA728,SLevel202223,0)),0)","v":0},{"$f":"[1]Personnel!H728","v":0},{"$f":"[1]Personnel!I728","v":0},{"$f":"[1]Personnel!J728","v":0},{"$f":"[1]Personnel!P728","v":0},{"$f":"[1]Personnel!Q728","v":0},0,{"$f":"[1]Personnel!S728","v":0},{"$f":"[1]Personnel!S728","v":0},{"$f":"[1]Personnel!S728","v":0},{"$f":"[1]Personnel!T728","v":0},0,{"$f":"[1]Personnel!V728","v":0},{"$f":"[1]Personnel!W728","v":0},0,{"$f":"[1]Personnel!Y728","v":0},{"$f":"[1]Personnel!Z728","v":0},0,0,0,0,null,null,null,null,null,null,null,null,null,null,null,null,null,null,null,null,null,null,null,null,null,null,null,null,null,{"$f":"[1]Personnel!G728","v":0}]
[0,{"$f":"IFERROR(INDEX(Settings!$AP$17:$AP$38,MATCH(Personnel!$G729,Settings!$AQ$17:$AQ$38,0)),0)","v":0},null,null,null,{"$f":"[1]Personnel!F729","v":0},{"$f":"IFERROR(INDEX((SLevel),MATCH(Personnel!BA729,SLevel202223,0)),0)","v":0},{"$f":"[1]Personnel!H729","v":0},{"$f":"[1]Personnel!I729","v":0},{"$f":"[1]Personnel!J729","v":0},{"$f":"[1]Personnel!P729","v":0},{"$f":"[1]Personnel!Q729","v":0},0,{"$f":"[1]Personnel!S729","v":0},{"$f":"[1]Personnel!S729","v":0},{"$f":"[1]Personnel!S729","v":0},{"$f":"[1]Personnel!T729","v":0},0,{"$f":"[1]Personnel!V729","v":0},{"$f":"[1]Personnel!W729","v":0},0,{"$f":"[1]Personnel!Y729","v":0},{"$f":"[1]Personnel!Z729","v":0},0,0,0,0,null,null,null,null,null,null,null,null,null,null,null,null,null,null,null,null,null,null,null,null,null,null,null,null,null,{"$f":"[1]Personnel!G729","v":0}]
[0,{"$f":"IFERROR(INDEX(Settings!$AP$17:$AP$38,MATCH(Personnel!$G730,Settings!$AQ$17:$AQ$38,0)),0)","v":0},null,null,null,{"$f":"[1]Personnel!F730","v":0},{"$f":"IFERROR(INDEX((SLevel),MATCH(Personnel!BA730,SLevel202223,0)),0)","v":0},{"$f":"[1]Personnel!H730","v":0},{"$f":"[1]Personnel!I730","v":0},{"$f":"[1]Personnel!J730","v":0},{"$f":"[1]Personnel!P730","v":0},{"$f":"[1]Personnel!Q730","v":0},0,{"$f":"[1]Personnel!S730","v":0},{"$f":"[1]Personnel!S730","v":0},{"$f":"[1]Personnel!S730","v":0},{"$f":"[1]Personnel!T730","v":0},0,{"$f":"[1]Personnel!V730","v":0},{"$f":"[1]Personnel!W730","v":0},0,{"$f":"[1]Personnel!Y730","v":0},{"$f":"[1]Personnel!Z730","v":0},0,0,0,0,null,null,null,null,null,null,null,null,null,null,null,null,null,null,null,null,null,null,null,null,null,null,null,null,null,{"$f":"[1]Personnel!G730","v":0}]
[0,{"$f":"IFERROR(INDEX(Settings!$AP$17:$AP$38,MATCH(Personnel!$G731,Settings!$AQ$17:$AQ$38,0)),0)","v":0},null,null,null,{"$f":"[1]Personnel!F731","v":0},{"$f":"IFERROR(INDEX((SLevel),MATCH(Personnel!BA731,SLevel202223,0)),0)","v":0},{"$f":"[1]Personnel!H731","v":0},{"$f":"[1]Personnel!I731","v":0},{"$f":"[1]Personnel!J731","v":0},{"$f":"[1]Personnel!P731","v":0},{"$f":"[1]Personnel!Q731","v":0},0,{"$f":"[1]Personnel!S731","v":0},{"$f":"[1]Personnel!S731","v":0},{"$f":"[1]Personnel!S731","v":0},{"$f":"[1]Personnel!T731","v":0},0,{"$f":"[1]Personnel!V731","v":0},{"$f":"[1]Personnel!W731","v":0},0,{"$f":"[1]Personnel!Y731","v":0},{"$f":"[1]Personnel!Z731","v":0},0,0,0,0,null,null,null,null,null,null,null,null,null,null,null,null,null,null,null,null,null,null,null,null,null,null,null,null,null,{"$f":"[1]Personnel!G731","v":0}]
[0,{"$f":"IFERROR(INDEX(Settings!$AP$17:$AP$38,MATCH(Personnel!$G732,Settings!$AQ$17:$AQ$38,0)),0)","v":0},null,null,null,{"$f":"[1]Personnel!F732","v":0},{"$f":"IFERROR(INDEX((SLevel),MATCH(Personnel!BA732,SLevel202223,0)),0)","v":0},{"$f":"[1]Personnel!H732","v":0},{"$f":"[1]Personnel!I732","v":0},{"$f":"[1]Personnel!J732","v":0},{"$f":"[1]Personnel!P732","v":0},{"$f":"[1]Personnel!Q732","v":0},0,{"$f":"[1]Personnel!S732","v":0},{"$f":"[1]Personnel!S732","v":0},{"$f":"[1]Personnel!S732","v":0},{"$f":"[1]Personnel!T732","v":0},0,{"$f":"[1]Personnel!V732","v":0},{"$f":"[1]Personnel!W732","v":0},0,{"$f":"[1]Personnel!Y732","v":0},{"$f":"[1]Personnel!Z732","v":0},0,0,0,0,null,null,null,null,null,null,null,null,null,null,null,null,null,null,null,null,null,null,null,null,null,null,null,null,null,{"$f":"[1]Personnel!G732","v":0}]
[0,{"$f":"IFERROR(INDEX(Settings!$AP$17:$AP$38,MATCH(Personnel!$G733,Settings!$AQ$17:$AQ$38,0)),0)","v":0},null,null,null,{"$f":"[1]Personnel!F733","v":0},{"$f":"IFERROR(INDEX((SLevel),MATCH(Personnel!BA733,SLevel202223,0)),0)","v":0},{"$f":"[1]Personnel!H733","v":0},{"$f":"[1]Personnel!I733","v":0},{"$f":"[1]Personnel!J733","v":0},{"$f":"[1]Personnel!P733","v":0},{"$f":"[1]Personnel!Q733","v":0},0,{"$f":"[1]Personnel!S733","v":0},{"$f":"[1]Personnel!S733","v":0},{"$f":"[1]Personnel!S733","v":0},{"$f":"[1]Personnel!T733","v":0},0,{"$f":"[1]Personnel!V733","v":0},{"$f":"[1]Personnel!W733","v":0},0,{"$f":"[1]Personnel!Y733","v":0},{"$f":"[1]Personnel!Z733","v":0},0,0,0,0,null,null,null,null,null,null,null,null,null,null,null,null,null,null,null,null,null,null,null,null,null,null,null,null,null,{"$f":"[1]Personnel!G733","v":0}]
[0,{"$f":"IFERROR(INDEX(Settings!$AP$17:$AP$38,MATCH(Personnel!$G734,Settings!$AQ$17:$AQ$38,0)),0)","v":0},null,null,null,{"$f":"[1]Personnel!F734","v":0},{"$f":"IFERROR(INDEX((SLevel),MATCH(Personnel!BA734,SLevel202223,0)),0)","v":0},{"$f":"[1]Personnel!H734","v":0},{"$f":"[1]Personnel!I734","v":0},{"$f":"[1]Personnel!J734","v":0},{"$f":"[1]Personnel!P734","v":0},{"$f":"[1]Personnel!Q734","v":0},0,{"$f":"[1]Personnel!S734","v":0},{"$f":"[1]Personnel!S734","v":0},{"$f":"[1]Personnel!S734","v":0},{"$f":"[1]Personnel!T734","v":0},0,{"$f":"[1]Personnel!V734","v":0},{"$f":"[1]Personnel!W734","v":0},0,{"$f":"[1]Personnel!Y734","v":0},{"$f":"[1]Personnel!Z734","v":0},0,0,0,0,null,null,null,null,null,null,null,null,null,null,null,null,null,null,null,null,null,null,null,null,null,null,null,null,null,{"$f":"[1]Personnel!G734","v":0}]
[0,{"$f":"IFERROR(INDEX(Settings!$AP$17:$AP$38,MATCH(Personnel!$G735,Settings!$AQ$17:$AQ$38,0)),0)","v":0},null,null,null,{"$f":"[1]Personnel!F735","v":0},{"$f":"IFERROR(INDEX((SLevel),MATCH(Personnel!BA735,SLevel202223,0)),0)","v":0},{"$f":"[1]Personnel!H735","v":0},{"$f":"[1]Personnel!I735","v":0},{"$f":"[1]Personnel!J735","v":0},{"$f":"[1]Personnel!P735","v":0},{"$f":"[1]Personnel!Q735","v":0},0,{"$f":"[1]Personnel!S735","v":0},{"$f":"[1]Personnel!S735","v":0},{"$f":"[1]Personnel!S735","v":0},{"$f":"[1]Personnel!T735","v":0},0,{"$f":"[1]Personnel!V735","v":0},{"$f":"[1]Personnel!W735","v":0},0,{"$f":"[1]Personnel!Y735","v":0},{"$f":"[1]Personnel!Z735","v":0},0,0,0,0,null,null,null,null,null,null,null,null,null,null,null,null,null,null,null,null,null,null,null,null,null,null,null,null,null,{"$f":"[1]Personnel!G735","v":0}]
[0,{"$f":"IFERROR(INDEX(Settings!$AP$17:$AP$38,MATCH(Personnel!$G736,Settings!$AQ$17:$AQ$38,0)),0)","v":0},null,null,null,{"$f":"[1]Personnel!F736","v":0},{"$f":"IFERROR(INDEX((SLevel),MATCH(Personnel!BA736,SLevel202223,0)),0)","v":0},{"$f":"[1]Personnel!H736","v":0},{"$f":"[1]Personnel!I736","v":0},{"$f":"[1]Personnel!J736","v":0},{"$f":"[1]Personnel!P736","v":0},{"$f":"[1]Personnel!Q736","v":0},0,{"$f":"[1]Personnel!S736","v":0},{"$f":"[1]Personnel!S736","v":0},{"$f":"[1]Personnel!S736","v":0},{"$f":"[1]Personnel!T736","v":0},0,{"$f":"[1]Personnel!V736","v":0},{"$f":"[1]Personnel!W736","v":0},0,{"$f":"[1]Personnel!Y736","v":0},{"$f":"[1]Personnel!Z736","v":0},0,0,0,0,null,null,null,null,null,null,null,null,null,null,null,null,null,null,null,null,null,null,null,null,null,null,null,null,null,{"$f":"[1]Personnel!G736","v":0}]
[0,{"$f":"IFERROR(INDEX(Settings!$AP$17:$AP$38,MATCH(Personnel!$G737,Settings!$AQ$17:$AQ$38,0)),0)","v":0},null,null,null,{"$f":"[1]Personnel!F737","v":0},{"$f":"IFERROR(INDEX((SLevel),MATCH(Personnel!BA737,SLevel202223,0)),0)","v":0},{"$f":"[1]Personnel!H737","v":0},{"$f":"[1]Personnel!I737","v":0},{"$f":"[1]Personnel!J737","v":0},{"$f":"[1]Personnel!P737","v":0},{"$f":"[1]Personnel!Q737","v":0},0,{"$f":"[1]Personnel!S737","v":0},{"$f":"[1]Personnel!S737","v":0},{"$f":"[1]Personnel!S737","v":0},{"$f":"[1]Personnel!T737","v":0},0,{"$f":"[1]Personnel!V737","v":0},{"$f":"[1]Personnel!W737","v":0},0,{"$f":"[1]Personnel!Y737","v":0},{"$f":"[1]Personnel!Z737","v":0},0,0,0,0,null,null,null,null,null,null,null,null,null,null,null,null,null,null,null,null,null,null,null,null,null,null,null,null,null,{"$f":"[1]Personnel!G737","v":0}]
[0,{"$f":"IFERROR(INDEX(Settings!$AP$17:$AP$38,MATCH(Personnel!$G738,Settings!$AQ$17:$AQ$38,0)),0)","v":0},null,null,null,{"$f":"[1]Personnel!F738","v":0},{"$f":"IFERROR(INDEX((SLevel),MATCH(Personnel!BA738,SLevel202223,0)),0)","v":0},{"$f":"[1]Personnel!H738","v":0},{"$f":"[1]Personnel!I738","v":0},{"$f":"[1]Personnel!J738","v":0},{"$f":"[1]Personnel!P738","v":0},{"$f":"[1]Personnel!Q738","v":0},0,{"$f":"[1]Personnel!S738","v":0},{"$f":"[1]Personnel!S738","v":0},{"$f":"[1]Personnel!S738","v":0},{"$f":"[1]Personnel!T738","v":0},0,{"$f":"[1]Personnel!V738","v":0},{"$f":"[1]Personnel!W738","v":0},0,{"$f":"[1]Personnel!Y738","v":0},{"$f":"[1]Personnel!Z738","v":0},0,0,0,0,null,null,null,null,null,null,null,null,null,null,null,null,null,null,null,null,null,null,null,null,null,null,null,null,null,{"$f":"[1]Personnel!G738","v":0}]
[0,{"$f":"IFERROR(INDEX(Settings!$AP$17:$AP$38,MATCH(Personnel!$G739,Settings!$AQ$17:$AQ$38,0)),0)","v":0},null,null,null,{"$f":"[1]Personnel!F739","v":0},{"$f":"IFERROR(INDEX((SLevel),MATCH(Personnel!BA739,SLevel202223,0)),0)","v":0},{"$f":"[1]Personnel!H739","v":0},{"$f":"[1]Personnel!I739","v":0},{"$f":"[1]Personnel!J739","v":0},{"$f":"[1]Personnel!P739","v":0},{"$f":"[1]Personnel!Q739","v":0},0,{"$f":"[1]Personnel!S739","v":0},{"$f":"[1]Personnel!S739","v":0},{"$f":"[1]Personnel!S739","v":0},{"$f":"[1]Personnel!T739","v":0},0,{"$f":"[1]Personnel!V739","v":0},{"$f":"[1]Personnel!W739","v":0},0,{"$f":"[1]Personnel!Y739","v":0},{"$f":"[1]Personnel!Z739","v":0},0,0,0,0,null,null,null,null,null,null,null,null,null,null,null,null,null,null,null,null,null,null,null,null,null,null,null,null,null,{"$f":"[1]Personnel!G739","v":0}]
[0,{"$f":"IFERROR(INDEX(Settings!$AP$17:$AP$38,MATCH(Personnel!$G740,Settings!$AQ$17:$AQ$38,0)),0)","v":0},null,null,null,{"$f":"[1]Personnel!F740","v":0},{"$f":"IFERROR(INDEX((SLevel),MATCH(Personnel!BA740,SLevel202223,0)),0)","v":0},{"$f":"[1]Personnel!H740","v":0},{"$f":"[1]Personnel!I740","v":0},{"$f":"[1]Personnel!J740","v":0},{"$f":"[1]Personnel!P740","v":0},{"$f":"[1]Personnel!Q740","v":0},0,{"$f":"[1]Personnel!S740","v":0},{"$f":"[1]Personnel!S740","v":0},{"$f":"[1]Personnel!S740","v":0},{"$f":"[1]Personnel!T740","v":0},0,{"$f":"[1]Personnel!V740","v":0},{"$f":"[1]Personnel!W740","v":0},0,{"$f":"[1]Personnel!Y740","v":0},{"$f":"[1]Personnel!Z740","v":0},0,0,0,0,null,null,null,null,null,null,null,null,null,null,null,null,null,null,null,null,null,null,null,null,null,null,null,null,null,{"$f":"[1]Personnel!G740","v":0}]
[0,{"$f":"IFERROR(INDEX(Settings!$AP$17:$AP$38,MATCH(Personnel!$G741,Settings!$AQ$17:$AQ$38,0)),0)","v":0},null,null,null,{"$f":"[1]Personnel!F741","v":0},{"$f":"IFERROR(INDEX((SLevel),MATCH(Personnel!BA741,SLevel202223,0)),0)","v":0},{"$f":"[1]Personnel!H741","v":0},{"$f":"[1]Personnel!I741","v":0},{"$f":"[1]Personnel!J741","v":0},{"$f":"[1]Personnel!P741","v":0},{"$f":"[1]Personnel!Q741","v":0},0,{"$f":"[1]Personnel!S741","v":0},{"$f":"[1]Personnel!S741","v":0},{"$f":"[1]Personnel!S741","v":0},{"$f":"[1]Personnel!T741","v":0},0,{"$f":"[1]Personnel!V741","v":0},{"$f":"[1]Personnel!W741","v":0},0,{"$f":"[1]Personnel!Y741","v":0},{"$f":"[1]Personnel!Z741","v":0},0,0,0,0,null,null,null,null,null,null,null,null,null,null,null,null,null,null,null,null,null,null,null,null,null,null,null,null,null,{"$f":"[1]Personnel!G741","v":0}]
[0,{"$f":"IFERROR(INDEX(Settings!$AP$17:$AP$38,MATCH(Personnel!$G742,Settings!$AQ$17:$AQ$38,0)),0)","v":0},null,null,null,{"$f":"[1]Personnel!F742","v":0},{"$f":"IFERROR(INDEX((SLevel),MATCH(Personnel!BA742,SLevel202223,0)),0)","v":0},{"$f":"[1]Personnel!H742","v":0},{"$f":"[1]Personnel!I742","v":0},{"$f":"[1]Personnel!J742","v":0},{"$f":"[1]Personnel!P742","v":0},{"$f":"[1]Personnel!Q742","v":0},0,{"$f":"[1]Personnel!S742","v":0},{"$f":"[1]Personnel!S742","v":0},{"$f":"[1]Personnel!S742","v":0},{"$f":"[1]Personnel!T742","v":0},0,{"$f":"[1]Personnel!V742","v":0},{"$f":"[1]Personnel!W742","v":0},0,{"$f":"[1]Personnel!Y742","v":0},{"$f":"[1]Personnel!Z742","v":0},0,0,0,0,null,null,null,null,null,null,null,null,null,null,null,null,null,null,null,null,null,null,null,null,null,null,null,null,null,{"$f":"[1]Personnel!G742","v":0}]
[0,{"$f":"IFERROR(INDEX(Settings!$AP$17:$AP$38,MATCH(Personnel!$G743,Settings!$AQ$17:$AQ$38,0)),0)","v":0},null,null,null,{"$f":"[1]Personnel!F743","v":0},{"$f":"IFERROR(INDEX((SLevel),MATCH(Personnel!BA743,SLevel202223,0)),0)","v":0},{"$f":"[1]Personnel!H743","v":0},{"$f":"[1]Personnel!I743","v":0},{"$f":"[1]Personnel!J743","v":0},{"$f":"[1]Personnel!P743","v":0},{"$f":"[1]Personnel!Q743","v":0},0,{"$f":"[1]Personnel!S743","v":0},{"$f":"[1]Personnel!S743","v":0},{"$f":"[1]Personnel!S743","v":0},{"$f":"[1]Personnel!T743","v":0},0,{"$f":"[1]Personnel!V743","v":0},{"$f":"[1]Personnel!W743","v":0},0,{"$f":"[1]Personnel!Y743","v":0},{"$f":"[1]Personnel!Z743","v":0},0,0,0,0,null,null,null,null,null,null,null,null,null,null,null,null,null,null,null,null,null,null,null,null,null,null,null,null,null,{"$f":"[1]Personnel!G743","v":0}]
[0,{"$f":"IFERROR(INDEX(Settings!$AP$17:$AP$38,MATCH(Personnel!$G744,Settings!$AQ$17:$AQ$38,0)),0)","v":0},null,null,null,{"$f":"[1]Personnel!F744","v":0},{"$f":"IFERROR(INDEX((SLevel),MATCH(Personnel!BA744,SLevel202223,0)),0)","v":0},{"$f":"[1]Personnel!H744","v":0},{"$f":"[1]Personnel!I744","v":0},{"$f":"[1]Personnel!J744","v":0},{"$f":"[1]Personnel!P744","v":0},{"$f":"[1]Personnel!Q744","v":0},0,{"$f":"[1]Personnel!S744","v":0},{"$f":"[1]Personnel!S744","v":0},{"$f":"[1]Personnel!S744","v":0},{"$f":"[1]Personnel!T744","v":0},0,{"$f":"[1]Personnel!V744","v":0},{"$f":"[1]Personnel!W744","v":0},0,{"$f":"[1]Personnel!Y744","v":0},{"$f":"[1]Personnel!Z744","v":0},0,0,0,0,null,null,null,null,null,null,null,null,null,null,null,null,null,null,null,null,null,null,null,null,null,null,null,null,null,{"$f":"[1]Personnel!G744","v":0}]
[0,{"$f":"IFERROR(INDEX(Settings!$AP$17:$AP$38,MATCH(Personnel!$G745,Settings!$AQ$17:$AQ$38,0)),0)","v":0},null,null,null,{"$f":"[1]Personnel!F745","v":0},{"$f":"IFERROR(INDEX((SLevel),MATCH(Personnel!BA745,SLevel202223,0)),0)","v":0},{"$f":"[1]Personnel!H745","v":0},{"$f":"[1]Personnel!I745","v":0},{"$f":"[1]Personnel!J745","v":0},{"$f":"[1]Personnel!P745","v":0},{"$f":"[1]Personnel!Q745","v":0},0,{"$f":"[1]Personnel!S745","v":0},{"$f":"[1]Personnel!S745","v":0},{"$f":"[1]Personnel!S745","v":0},{"$f":"[1]Personnel!T745","v":0},0,{"$f":"[1]Personnel!V745","v":0},{"$f":"[1]Personnel!W745","v":0},0,{"$f":"[1]Personnel!Y745","v":0},{"$f":"[1]Personnel!Z745","v":0},0,0,0,0,null,null,null,null,null,null,null,null,null,null,null,null,null,null,null,null,null,null,null,null,null,null,null,null,null,{"$f":"[1]Personnel!G745","v":0}]
[0,{"$f":"IFERROR(INDEX(Settings!$AP$17:$AP$38,MATCH(Personnel!$G746,Settings!$AQ$17:$AQ$38,0)),0)","v":0},null,null,null,{"$f":"[1]Personnel!F746","v":0},{"$f":"IFERROR(INDEX((SLevel),MATCH(Personnel!BA746,SLevel202223,0)),0)","v":0},{"$f":"[1]Personnel!H746","v":0},{"$f":"[1]Personnel!I746","v":0},{"$f":"[1]Personnel!J746","v":0},{"$f":"[1]Personnel!P746","v":0},{"$f":"[1]Personnel!Q746","v":0},0,{"$f":"[1]Personnel!S746","v":0},{"$f":"[1]Personnel!S746","v":0},{"$f":"[1]Personnel!S746","v":0},{"$f":"[1]Personnel!T746","v":0},0,{"$f":"[1]Personnel!V746","v":0},{"$f":"[1]Personnel!W746","v":0},0,{"$f":"[1]Personnel!Y746","v":0},{"$f":"[1]Personnel!Z746","v":0},0,0,0,0,null,null,null,null,null,null,null,null,null,null,null,null,null,null,null,null,null,null,null,null,null,null,null,null,null,{"$f":"[1]Personnel!G746","v":0}]
[0,{"$f":"IFERROR(INDEX(Settings!$AP$17:$AP$38,MATCH(Personnel!$G747,Settings!$AQ$17:$AQ$38,0)),0)","v":0},null,null,null,{"$f":"[1]Personnel!F747","v":0},{"$f":"IFERROR(INDEX((SLevel),MATCH(Personnel!BA747,SLevel202223,0)),0)","v":0},{"$f":"[1]Personnel!H747","v":0},{"$f":"[1]Personnel!I747","v":0},{"$f":"[1]Personnel!J747","v":0},{"$f":"[1]Personnel!P747","v":0},{"$f":"[1]Personnel!Q747","v":0},0,{"$f":"[1]Personnel!S747","v":0},{"$f":"[1]Personnel!S747","v":0},{"$f":"[1]Personnel!S747","v":0},{"$f":"[1]Personnel!T747","v":0},0,{"$f":"[1]Personnel!V747","v":0},{"$f":"[1]Personnel!W747","v":0},0,{"$f":"[1]Personnel!Y747","v":0},{"$f":"[1]Personnel!Z747","v":0},0,0,0,0,null,null,null,null,null,null,null,null,null,null,null,null,null,null,null,null,null,null,null,null,null,null,null,null,null,{"$f":"[1]Personnel!G747","v":0}]
[0,{"$f":"IFERROR(INDEX(Settings!$AP$17:$AP$38,MATCH(Personnel!$G748,Settings!$AQ$17:$AQ$38,0)),0)","v":0},null,null,null,{"$f":"[1]Personnel!F748","v":0},{"$f":"IFERROR(INDEX((SLevel),MATCH(Personnel!BA748,SLevel202223,0)),0)","v":0},{"$f":"[1]Personnel!H748","v":0},{"$f":"[1]Personnel!I748","v":0},{"$f":"[1]Personnel!J748","v":0},{"$f":"[1]Personnel!P748","v":0},{"$f":"[1]Personnel!Q748","v":0},0,{"$f":"[1]Personnel!S748","v":0},{"$f":"[1]Personnel!S748","v":0},{"$f":"[1]Personnel!S748","v":0},{"$f":"[1]Personnel!T748","v":0},0,{"$f":"[1]Personnel!V748","v":0},{"$f":"[1]Personnel!W748","v":0},0,{"$f":"[1]Personnel!Y748","v":0},{"$f":"[1]Personnel!Z748","v":0},0,0,0,0,null,null,null,null,null,null,null,null,null,null,null,null,null,null,null,null,null,null,null,null,null,null,null,null,null,{"$f":"[1]Personnel!G748","v":0}]
[0,{"$f":"IFERROR(INDEX(Settings!$AP$17:$AP$38,MATCH(Personnel!$G749,Settings!$AQ$17:$AQ$38,0)),0)","v":0},null,null,null,{"$f":"[1]Personnel!F749","v":0},{"$f":"IFERROR(INDEX((SLevel),MATCH(Personnel!BA749,SLevel202223,0)),0)","v":0},{"$f":"[1]Personnel!H749","v":0},{"$f":"[1]Personnel!I749","v":0},{"$f":"[1]Personnel!J749","v":0},{"$f":"[1]Personnel!P749","v":0},{"$f":"[1]Personnel!Q749","v":0},0,{"$f":"[1]Personnel!S749","v":0},{"$f":"[1]Personnel!S749","v":0},{"$f":"[1]Personnel!S749","v":0},{"$f":"[1]Personnel!T749","v":0},0,{"$f":"[1]Personnel!V749","v":0},{"$f":"[1]Personnel!W749","v":0},0,{"$f":"[1]Personnel!Y749","v":0},{"$f":"[1]Personnel!Z749","v":0},0,0,0,0,null,null,null,null,null,null,null,null,null,null,null,null,null,null,null,null,null,null,null,null,null,null,null,null,null,{"$f":"[1]Personnel!G749","v":0}]
[0,{"$f":"IFERROR(INDEX(Settings!$AP$17:$AP$38,MATCH(Personnel!$G750,Settings!$AQ$17:$AQ$38,0)),0)","v":0},null,null,null,{"$f":"[1]Personnel!F750","v":0},{"$f":"IFERROR(INDEX((SLevel),MATCH(Personnel!BA750,SLevel202223,0)),0)","v":0},{"$f":"[1]Personnel!H750","v":0},{"$f":"[1]Personnel!I750","v":0},{"$f":"[1]Personnel!J750","v":0},{"$f":"[1]Personnel!P750","v":0},{"$f":"[1]Personnel!Q750","v":0},0,{"$f":"[1]Personnel!S750","v":0},{"$f":"[1]Personnel!S750","v":0},{"$f":"[1]Personnel!S750","v":0},{"$f":"[1]Personnel!T750","v":0},0,{"$f":"[1]Personnel!V750","v":0},{"$f":"[1]Personnel!W750","v":0},0,{"$f":"[1]Personnel!Y750","v":0},{"$f":"[1]Personnel!Z750","v":0},0,0,0,0,null,null,null,null,null,null,null,null,null,null,null,null,null,null,null,null,null,null,null,null,null,null,null,null,null,{"$f":"[1]Personnel!G750","v":0}]
[0,{"$f":"IFERROR(INDEX(Settings!$AP$17:$AP$38,MATCH(Personnel!$G751,Settings!$AQ$17:$AQ$38,0)),0)","v":0},null,null,null,{"$f":"[1]Personnel!F751","v":0},{"$f":"IFERROR(INDEX((SLevel),MATCH(Personnel!BA751,SLevel202223,0)),0)","v":0},{"$f":"[1]Personnel!H751","v":0},{"$f":"[1]Personnel!I751","v":0},{"$f":"[1]Personnel!J751","v":0},{"$f":"[1]Personnel!P751","v":0},{"$f":"[1]Personnel!Q751","v":0},0,{"$f":"[1]Personnel!S751","v":0},{"$f":"[1]Personnel!S751","v":0},{"$f":"[1]Personnel!S751","v":0},{"$f":"[1]Personnel!T751","v":0},0,{"$f":"[1]Personnel!V751","v":0},{"$f":"[1]Personnel!W751","v":0},0,{"$f":"[1]Personnel!Y751","v":0},{"$f":"[1]Personnel!Z751","v":0},0,0,0,0,null,null,null,null,null,null,null,null,null,null,null,null,null,null,null,null,null,null,null,null,null,null,null,null,null,{"$f":"[1]Personnel!G751","v":0}]
[0,{"$f":"IFERROR(INDEX(Settings!$AP$17:$AP$38,MATCH(Personnel!$G752,Settings!$AQ$17:$AQ$38,0)),0)","v":0},null,null,null,{"$f":"[1]Personnel!F752","v":0},{"$f":"IFERROR(INDEX((SLevel),MATCH(Personnel!BA752,SLevel202223,0)),0)","v":0},{"$f":"[1]Personnel!H752","v":0},{"$f":"[1]Personnel!I752","v":0},{"$f":"[1]Personnel!J752","v":0},{"$f":"[1]Personnel!P752","v":0},{"$f":"[1]Personnel!Q752","v":0},0,{"$f":"[1]Personnel!S752","v":0},{"$f":"[1]Personnel!S752","v":0},{"$f":"[1]Personnel!S752","v":0},{"$f":"[1]Personnel!T752","v":0},0,{"$f":"[1]Personnel!V752","v":0},{"$f":"[1]Personnel!W752","v":0},0,{"$f":"[1]Personnel!Y752","v":0},{"$f":"[1]Personnel!Z752","v":0},0,0,0,0,null,null,null,null,null,null,null,null,null,null,null,null,null,null,null,null,null,null,null,null,null,null,null,null,null,{"$f":"[1]Personnel!G752","v":0}]
[0,{"$f":"IFERROR(INDEX(Settings!$AP$17:$AP$38,MATCH(Personnel!$G753,Settings!$AQ$17:$AQ$38,0)),0)","v":0},null,null,null,{"$f":"[1]Personnel!F753","v":0},{"$f":"IFERROR(INDEX((SLevel),MATCH(Personnel!BA753,SLevel202223,0)),0)","v":0},{"$f":"[1]Personnel!H753","v":0},{"$f":"[1]Personnel!I753","v":0},{"$f":"[1]Personnel!J753","v":0},{"$f":"[1]Personnel!P753","v":0},{"$f":"[1]Personnel!Q753","v":0},0,{"$f":"[1]Personnel!S753","v":0},{"$f":"[1]Personnel!S753","v":0},{"$f":"[1]Personnel!S753","v":0},{"$f":"[1]Personnel!T753","v":0},0,{"$f":"[1]Personnel!V753","v":0},{"$f":"[1]Personnel!W753","v":0},0,{"$f":"[1]Personnel!Y753","v":0},{"$f":"[1]Personnel!Z753","v":0},0,0,0,0,null,null,null,null,null,null,null,null,null,null,null,null,null,null,null,null,null,null,null,null,null,null,null,null,null,{"$f":"[1]Personnel!G753","v":0}]
[0,{"$f":"IFERROR(INDEX(Settings!$AP$17:$AP$38,MATCH(Personnel!$G754,Settings!$AQ$17:$AQ$38,0)),0)","v":0},null,null,null,{"$f":"[1]Personnel!F754","v":0},{"$f":"IFERROR(INDEX((SLevel),MATCH(Personnel!BA754,SLevel202223,0)),0)","v":0},{"$f":"[1]Personnel!H754","v":0},{"$f":"[1]Personnel!I754","v":0},{"$f":"[1]Personnel!J754","v":0},{"$f":"[1]Personnel!P754","v":0},{"$f":"[1]Personnel!Q754","v":0},0,{"$f":"[1]Personnel!S754","v":0},{"$f":"[1]Personnel!S754","v":0},{"$f":"[1]Personnel!S754","v":0},{"$f":"[1]Personnel!T754","v":0},0,{"$f":"[1]Personnel!V754","v":0},{"$f":"[1]Personnel!W754","v":0},0,{"$f":"[1]Personnel!Y754","v":0},{"$f":"[1]Personnel!Z754","v":0},0,0,0,0,null,null,null,null,null,null,null,null,null,null,null,null,null,null,null,null,null,null,null,null,null,null,null,null,null,{"$f":"[1]Personnel!G754","v":0}]
[0,{"$f":"IFERROR(INDEX(Settings!$AP$17:$AP$38,MATCH(Personnel!$G755,Settings!$AQ$17:$AQ$38,0)),0)","v":0},null,null,null,{"$f":"[1]Personnel!F755","v":0},{"$f":"IFERROR(INDEX((SLevel),MATCH(Personnel!BA755,SLevel202223,0)),0)","v":0},{"$f":"[1]Personnel!H755","v":0},{"$f":"[1]Personnel!I755","v":0},{"$f":"[1]Personnel!J755","v":0},{"$f":"[1]Personnel!P755","v":0},{"$f":"[1]Personnel!Q755","v":0},0,{"$f":"[1]Personnel!S755","v":0},{"$f":"[1]Personnel!S755","v":0},{"$f":"[1]Personnel!S755","v":0},{"$f":"[1]Personnel!T755","v":0},0,{"$f":"[1]Personnel!V755","v":0},{"$f":"[1]Personnel!W755","v":0},0,{"$f":"[1]Personnel!Y755","v":0},{"$f":"[1]Personnel!Z755","v":0},0,0,0,0,null,null,null,null,null,null,null,null,null,null,null,null,null,null,null,null,null,null,null,null,null,null,null,null,null,{"$f":"[1]Personnel!G755","v":0}]
[0,{"$f":"IFERROR(INDEX(Settings!$AP$17:$AP$38,MATCH(Personnel!$G756,Settings!$AQ$17:$AQ$38,0)),0)","v":0},null,null,null,{"$f":"[1]Personnel!F756","v":0},{"$f":"IFERROR(INDEX((SLevel),MATCH(Personnel!BA756,SLevel202223,0)),0)","v":0},{"$f":"[1]Personnel!H756","v":0},{"$f":"[1]Personnel!I756","v":0},{"$f":"[1]Personnel!J756","v":0},{"$f":"[1]Personnel!P756","v":0},{"$f":"[1]Personnel!Q756","v":0},0,{"$f":"[1]Personnel!S756","v":0},{"$f":"[1]Personnel!S756","v":0},{"$f":"[1]Personnel!S756","v":0},{"$f":"[1]Personnel!T756","v":0},0,{"$f":"[1]Personnel!V756","v":0},{"$f":"[1]Personnel!W756","v":0},0,{"$f":"[1]Personnel!Y756","v":0},{"$f":"[1]Personnel!Z756","v":0},0,0,0,0,null,null,null,null,null,null,null,null,null,null,null,null,null,null,null,null,null,null,null,null,null,null,null,null,null,{"$f":"[1]Personnel!G756","v":0}]
[0,{"$f":"IFERROR(INDEX(Settings!$AP$17:$AP$38,MATCH(Personnel!$G757,Settings!$AQ$17:$AQ$38,0)),0)","v":0},null,null,null,{"$f":"[1]Personnel!F757","v":0},{"$f":"IFERROR(INDEX((SLevel),MATCH(Personnel!BA757,SLevel202223,0)),0)","v":0},{"$f":"[1]Personnel!H757","v":0},{"$f":"[1]Personnel!I757","v":0},{"$f":"[1]Personnel!J757","v":0},{"$f":"[1]Personnel!P757","v":0},{"$f":"[1]Personnel!Q757","v":0},0,{"$f":"[1]Personnel!S757","v":0},{"$f":"[1]Personnel!S757","v":0},{"$f":"[1]Personnel!S757","v":0},{"$f":"[1]Personnel!T757","v":0},0,{"$f":"[1]Personnel!V757","v":0},{"$f":"[1]Personnel!W757","v":0},0,{"$f":"[1]Personnel!Y757","v":0},{"$f":"[1]Personnel!Z757","v":0},0,0,0,0,null,null,null,null,null,null,null,null,null,null,null,null,null,null,null,null,null,null,null,null,null,null,null,null,null,{"$f":"[1]Personnel!G757","v":0}]
[0,{"$f":"IFERROR(INDEX(Settings!$AP$17:$AP$38,MATCH(Personnel!$G758,Settings!$AQ$17:$AQ$38,0)),0)","v":0},null,null,null,{"$f":"[1]Personnel!F758","v":0},{"$f":"IFERROR(INDEX((SLevel),MATCH(Personnel!BA758,SLevel202223,0)),0)","v":0},{"$f":"[1]Personnel!H758","v":0},{"$f":"[1]Personnel!I758","v":0},{"$f":"[1]Personnel!J758","v":0},{"$f":"[1]Personnel!P758","v":0},{"$f":"[1]Personnel!Q758","v":0},0,{"$f":"[1]Personnel!S758","v":0},{"$f":"[1]Personnel!S758","v":0},{"$f":"[1]Personnel!S758","v":0},{"$f":"[1]Personnel!T758","v":0},0,{"$f":"[1]Personnel!V758","v":0},{"$f":"[1]Personnel!W758","v":0},0,{"$f":"[1]Personnel!Y758","v":0},{"$f":"[1]Personnel!Z758","v":0},0,0,0,0,null,null,null,null,null,null,null,null,null,null,null,null,null,null,null,null,null,null,null,null,null,null,null,null,null,{"$f":"[1]Personnel!G758","v":0}]
[0,{"$f":"IFERROR(INDEX(Settings!$AP$17:$AP$38,MATCH(Personnel!$G759,Settings!$AQ$17:$AQ$38,0)),0)","v":0},null,null,null,{"$f":"[1]Personnel!F759","v":0},{"$f":"IFERROR(INDEX((SLevel),MATCH(Personnel!BA759,SLevel202223,0)),0)","v":0},{"$f":"[1]Personnel!H759","v":0},{"$f":"[1]Personnel!I759","v":0},{"$f":"[1]Personnel!J759","v":0},{"$f":"[1]Personnel!P759","v":0},{"$f":"[1]Personnel!Q759","v":0},0,{"$f":"[1]Personnel!S759","v":0},{"$f":"[1]Personnel!S759","v":0},{"$f":"[1]Personnel!S759","v":0},{"$f":"[1]Personnel!T759","v":0},0,{"$f":"[1]Personnel!V759","v":0},{"$f":"[1]Personnel!W759","v":0},0,{"$f":"[1]Personnel!Y759","v":0},{"$f":"[1]Personnel!Z759","v":0},0,0,0,0,null,null,null,null,null,null,null,null,null,null,null,null,null,null,null,null,null,null,null,null,null,null,null,null,null,{"$f":"[1]Personnel!G759","v":0}]
[0,{"$f":"IFERROR(INDEX(Settings!$AP$17:$AP$38,MATCH(Personnel!$G760,Settings!$AQ$17:$AQ$38,0)),0)","v":0},null,null,null,{"$f":"[1]Personnel!F760","v":0},{"$f":"IFERROR(INDEX((SLevel),MATCH(Personnel!BA760,SLevel202223,0)),0)","v":0},{"$f":"[1]Personnel!H760","v":0},{"$f":"[1]Personnel!I760","v":0},{"$f":"[1]Personnel!J760","v":0},{"$f":"[1]Personnel!P760","v":0},{"$f":"[1]Personnel!Q760","v":0},0,{"$f":"[1]Personnel!S760","v":0},{"$f":"[1]Personnel!S760","v":0},{"$f":"[1]Personnel!S760","v":0},{"$f":"[1]Personnel!T760","v":0},0,{"$f":"[1]Personnel!V760","v":0},{"$f":"[1]Personnel!W760","v":0},0,{"$f":"[1]Personnel!Y760","v":0},{"$f":"[1]Personnel!Z760","v":0},0,0,0,0,null,null,null,null,null,null,null,null,null,null,null,null,null,null,null,null,null,null,null,null,null,null,null,null,null,{"$f":"[1]Personnel!G760","v":0}]
[0,{"$f":"IFERROR(INDEX(Settings!$AP$17:$AP$38,MATCH(Personnel!$G761,Settings!$AQ$17:$AQ$38,0)),0)","v":0},null,null,null,{"$f":"[1]Personnel!F761","v":0},{"$f":"IFERROR(INDEX((SLevel),MATCH(Personnel!BA761,SLevel202223,0)),0)","v":0},{"$f":"[1]Personnel!H761","v":0},{"$f":"[1]Personnel!I761","v":0},{"$f":"[1]Personnel!J761","v":0},{"$f":"[1]Personnel!P761","v":0},{"$f":"[1]Personnel!Q761","v":0},0,{"$f":"[1]Personnel!S761","v":0},{"$f":"[1]Personnel!S761","v":0},{"$f":"[1]Personnel!S761","v":0},{"$f":"[1]Personnel!T761","v":0},0,{"$f":"[1]Personnel!V761","v":0},{"$f":"[1]Personnel!W761","v":0},0,{"$f":"[1]Personnel!Y761","v":0},{"$f":"[1]Personnel!Z761","v":0},0,0,0,0,null,null,null,null,null,null,null,null,null,null,null,null,null,null,null,null,null,null,null,null,null,null,null,null,null,{"$f":"[1]Personnel!G761","v":0}]
[0,{"$f":"IFERROR(INDEX(Settings!$AP$17:$AP$38,MATCH(Personnel!$G762,Settings!$AQ$17:$AQ$38,0)),0)","v":0},null,null,null,{"$f":"[1]Personnel!F762","v":0},{"$f":"IFERROR(INDEX((SLevel),MATCH(Personnel!BA762,SLevel202223,0)),0)","v":0},{"$f":"[1]Personnel!H762","v":0},{"$f":"[1]Personnel!I762","v":0},{"$f":"[1]Personnel!J762","v":0},{"$f":"[1]Personnel!P762","v":0},{"$f":"[1]Personnel!Q762","v":0},0,{"$f":"[1]Personnel!S762","v":0},{"$f":"[1]Personnel!S762","v":0},{"$f":"[1]Personnel!S762","v":0},{"$f":"[1]Personnel!T762","v":0},0,{"$f":"[1]Personnel!V762","v":0},{"$f":"[1]Personnel!W762","v":0},0,{"$f":"[1]Personnel!Y762","v":0},{"$f":"[1]Personnel!Z762","v":0},0,0,0,0,null,null,null,null,null,null,null,null,null,null,null,null,null,null,null,null,null,null,null,null,null,null,null,null,null,{"$f":"[1]Personnel!G762","v":0}]
[0,{"$f":"IFERROR(INDEX(Settings!$AP$17:$AP$38,MATCH(Personnel!$G763,Settings!$AQ$17:$AQ$38,0)),0)","v":0},null,null,null,{"$f":"[1]Personnel!F763","v":0},{"$f":"IFERROR(INDEX((SLevel),MATCH(Personnel!BA763,SLevel202223,0)),0)","v":0},{"$f":"[1]Personnel!H763","v":0},{"$f":"[1]Personnel!I763","v":0},{"$f":"[1]Personnel!J763","v":0},{"$f":"[1]Personnel!P763","v":0},{"$f":"[1]Personnel!Q763","v":0},0,{"$f":"[1]Personnel!S763","v":0},{"$f":"[1]Personnel!S763","v":0},{"$f":"[1]Personnel!S763","v":0},{"$f":"[1]Personnel!T763","v":0},0,{"$f":"[1]Personnel!V763","v":0},{"$f":"[1]Personnel!W763","v":0},0,{"$f":"[1]Personnel!Y763","v":0},{"$f":"[1]Personnel!Z763","v":0},0,0,0,0,null,null,null,null,null,null,null,null,null,null,null,null,null,null,null,null,null,null,null,null,null,null,null,null,null,{"$f":"[1]Personnel!G763","v":0}]
[0,{"$f":"IFERROR(INDEX(Settings!$AP$17:$AP$38,MATCH(Personnel!$G764,Settings!$AQ$17:$AQ$38,0)),0)","v":0},null,null,null,{"$f":"[1]Personnel!F764","v":0},{"$f":"IFERROR(INDEX((SLevel),MATCH(Personnel!BA764,SLevel202223,0)),0)","v":0},{"$f":"[1]Personnel!H764","v":0},{"$f":"[1]Personnel!I764","v":0},{"$f":"[1]Personnel!J764","v":0},{"$f":"[1]Personnel!P764","v":0},{"$f":"[1]Personnel!Q764","v":0},0,{"$f":"[1]Personnel!S764","v":0},{"$f":"[1]Personnel!S764","v":0},{"$f":"[1]Personnel!S764","v":0},{"$f":"[1]Personnel!T764","v":0},0,{"$f":"[1]Personnel!V764","v":0},{"$f":"[1]Personnel!W764","v":0},0,{"$f":"[1]Personnel!Y764","v":0},{"$f":"[1]Personnel!Z764","v":0},0,0,0,0,null,null,null,null,null,null,null,null,null,null,null,null,null,null,null,null,null,null,null,null,null,null,null,null,null,{"$f":"[1]Personnel!G764","v":0}]
[0,{"$f":"IFERROR(INDEX(Settings!$AP$17:$AP$38,MATCH(Personnel!$G765,Settings!$AQ$17:$AQ$38,0)),0)","v":0},null,null,null,{"$f":"[1]Personnel!F765","v":0},{"$f":"IFERROR(INDEX((SLevel),MATCH(Personnel!BA765,SLevel202223,0)),0)","v":0},{"$f":"[1]Personnel!H765","v":0},{"$f":"[1]Personnel!I765","v":0},{"$f":"[1]Personnel!J765","v":0},{"$f":"[1]Personnel!P765","v":0},{"$f":"[1]Personnel!Q765","v":0},0,{"$f":"[1]Personnel!S765","v":0},{"$f":"[1]Personnel!S765","v":0},{"$f":"[1]Personnel!S765","v":0},{"$f":"[1]Personnel!T765","v":0},0,{"$f":"[1]Personnel!V765","v":0},{"$f":"[1]Personnel!W765","v":0},0,{"$f":"[1]Personnel!Y765","v":0},{"$f":"[1]Personnel!Z765","v":0},0,0,0,0,null,null,null,null,null,null,null,null,null,null,null,null,null,null,null,null,null,null,null,null,null,null,null,null,null,{"$f":"[1]Personnel!G765","v":0}]
[0,{"$f":"IFERROR(INDEX(Settings!$AP$17:$AP$38,MATCH(Personnel!$G766,Settings!$AQ$17:$AQ$38,0)),0)","v":0},null,null,null,{"$f":"[1]Personnel!F766","v":0},{"$f":"IFERROR(INDEX((SLevel),MATCH(Personnel!BA766,SLevel202223,0)),0)","v":0},{"$f":"[1]Personnel!H766","v":0},{"$f":"[1]Personnel!I766","v":0},{"$f":"[1]Personnel!J766","v":0},{"$f":"[1]Personnel!P766","v":0},{"$f":"[1]Personnel!Q766","v":0},0,{"$f":"[1]Personnel!S766","v":0},{"$f":"[1]Personnel!S766","v":0},{"$f":"[1]Personnel!S766","v":0},{"$f":"[1]Personnel!T766","v":0},0,{"$f":"[1]Personnel!V766","v":0},{"$f":"[1]Personnel!W766","v":0},0,{"$f":"[1]Personnel!Y766","v":0},{"$f":"[1]Personnel!Z766","v":0},0,0,0,0,null,null,null,null,null,null,null,null,null,null,null,null,null,null,null,null,null,null,null,null,null,null,null,null,null,{"$f":"[1]Personnel!G766","v":0}]
[0,{"$f":"IFERROR(INDEX(Settings!$AP$17:$AP$38,MATCH(Personnel!$G767,Settings!$AQ$17:$AQ$38,0)),0)","v":0},null,null,null,{"$f":"[1]Personnel!F767","v":0},{"$f":"IFERROR(INDEX((SLevel),MATCH(Personnel!BA767,SLevel202223,0)),0)","v":0},{"$f":"[1]Personnel!H767","v":0},{"$f":"[1]Personnel!I767","v":0},{"$f":"[1]Personnel!J767","v":0},{"$f":"[1]Personnel!P767","v":0},{"$f":"[1]Personnel!Q767","v":0},0,{"$f":"[1]Personnel!S767","v":0},{"$f":"[1]Personnel!S767","v":0},{"$f":"[1]Personnel!S767","v":0},{"$f":"[1]Personnel!T767","v":0},0,{"$f":"[1]Personnel!V767","v":0},{"$f":"[1]Personnel!W767","v":0},0,{"$f":"[1]Personnel!Y767","v":0},{"$f":"[1]Personnel!Z767","v":0},0,0,0,0,null,null,null,null,null,null,null,null,null,null,null,null,null,null,null,null,null,null,null,null,null,null,null,null,null,{"$f":"[1]Personnel!G767","v":0}]
[0,{"$f":"IFERROR(INDEX(Settings!$AP$17:$AP$38,MATCH(Personnel!$G768,Settings!$AQ$17:$AQ$38,0)),0)","v":0},null,null,null,{"$f":"[1]Personnel!F768","v":0},{"$f":"IFERROR(INDEX((SLevel),MATCH(Personnel!BA768,SLevel202223,0)),0)","v":0},{"$f":"[1]Personnel!H768","v":0},{"$f":"[1]Personnel!I768","v":0},{"$f":"[1]Personnel!J768","v":0},{"$f":"[1]Personnel!P768","v":0},{"$f":"[1]Personnel!Q768","v":0},0,{"$f":"[1]Personnel!S768","v":0},{"$f":"[1]Personnel!S768","v":0},{"$f":"[1]Personnel!S768","v":0},{"$f":"[1]Personnel!T768","v":0},0,{"$f":"[1]Personnel!V768","v":0},{"$f":"[1]Personnel!W768","v":0},0,{"$f":"[1]Personnel!Y768","v":0},{"$f":"[1]Personnel!Z768","v":0},0,0,0,0,null,null,null,null,null,null,null,null,null,null,null,null,null,null,null,null,null,null,null,null,null,null,null,null,null,{"$f":"[1]Personnel!G768","v":0}]
[0,{"$f":"IFERROR(INDEX(Settings!$AP$17:$AP$38,MATCH(Personnel!$G769,Settings!$AQ$17:$AQ$38,0)),0)","v":0},null,null,null,{"$f":"[1]Personnel!F769","v":0},{"$f":"IFERROR(INDEX((SLevel),MATCH(Personnel!BA769,SLevel202223,0)),0)","v":0},{"$f":"[1]Personnel!H769","v":0},{"$f":"[1]Personnel!I769","v":0},{"$f":"[1]Personnel!J769","v":0},{"$f":"[1]Personnel!P769","v":0},{"$f":"[1]Personnel!Q769","v":0},0,{"$f":"[1]Personnel!S769","v":0},{"$f":"[1]Personnel!S769","v":0},{"$f":"[1]Personnel!S769","v":0},{"$f":"[1]Personnel!T769","v":0},0,{"$f":"[1]Personnel!V769","v":0},{"$f":"[1]Personnel!W769","v":0},0,{"$f":"[1]Personnel!Y769","v":0},{"$f":"[1]Personnel!Z769","v":0},0,0,0,0,null,null,null,null,null,null,null,null,null,null,null,null,null,null,null,null,null,null,null,null,null,null,null,null,null,{"$f":"[1]Personnel!G769","v":0}]
[0,{"$f":"IFERROR(INDEX(Settings!$AP$17:$AP$38,MATCH(Personnel!$G770,Settings!$AQ$17:$AQ$38,0)),0)","v":0},null,null,null,{"$f":"[1]Personnel!F770","v":0},{"$f":"IFERROR(INDEX((SLevel),MATCH(Personnel!BA770,SLevel202223,0)),0)","v":0},{"$f":"[1]Personnel!H770","v":0},{"$f":"[1]Personnel!I770","v":0},{"$f":"[1]Personnel!J770","v":0},{"$f":"[1]Personnel!P770","v":0},{"$f":"[1]Personnel!Q770","v":0},0,{"$f":"[1]Personnel!S770","v":0},{"$f":"[1]Personnel!S770","v":0},{"$f":"[1]Personnel!S770","v":0},{"$f":"[1]Personnel!T770","v":0},0,{"$f":"[1]Personnel!V770","v":0},{"$f":"[1]Personnel!W770","v":0},0,{"$f":"[1]Personnel!Y770","v":0},{"$f":"[1]Personnel!Z770","v":0},0,0,0,0,null,null,null,null,null,null,null,null,null,null,null,null,null,null,null,null,null,null,null,null,null,null,null,null,null,{"$f":"[1]Personnel!G770","v":0}]
[0,{"$f":"IFERROR(INDEX(Settings!$AP$17:$AP$38,MATCH(Personnel!$G771,Settings!$AQ$17:$AQ$38,0)),0)","v":0},null,null,null,{"$f":"[1]Personnel!F771","v":0},{"$f":"IFERROR(INDEX((SLevel),MATCH(Personnel!BA771,SLevel202223,0)),0)","v":0},{"$f":"[1]Personnel!H771","v":0},{"$f":"[1]Personnel!I771","v":0},{"$f":"[1]Personnel!J771","v":0},{"$f":"[1]Personnel!P771","v":0},{"$f":"[1]Personnel!Q771","v":0},0,{"$f":"[1]Personnel!S771","v":0},{"$f":"[1]Personnel!S771","v":0},{"$f":"[1]Personnel!S771","v":0},{"$f":"[1]Personnel!T771","v":0},0,{"$f":"[1]Personnel!V771","v":0},{"$f":"[1]Personnel!W771","v":0},0,{"$f":"[1]Personnel!Y771","v":0},{"$f":"[1]Personnel!Z771","v":0},0,0,0,0,null,null,null,null,null,null,null,null,null,null,null,null,null,null,null,null,null,null,null,null,null,null,null,null,null,{"$f":"[1]Personnel!G771","v":0}]
[0,{"$f":"IFERROR(INDEX(Settings!$AP$17:$AP$38,MATCH(Personnel!$G772,Settings!$AQ$17:$AQ$38,0)),0)","v":0},null,null,null,{"$f":"[1]Personnel!F772","v":0},{"$f":"IFERROR(INDEX((SLevel),MATCH(Personnel!BA772,SLevel202223,0)),0)","v":0},{"$f":"[1]Personnel!H772","v":0},{"$f":"[1]Personnel!I772","v":0},{"$f":"[1]Personnel!J772","v":0},{"$f":"[1]Personnel!P772","v":0},{"$f":"[1]Personnel!Q772","v":0},0,{"$f":"[1]Personnel!S772","v":0},{"$f":"[1]Personnel!S772","v":0},{"$f":"[1]Personnel!S772","v":0},{"$f":"[1]Personnel!T772","v":0},0,{"$f":"[1]Personnel!V772","v":0},{"$f":"[1]Personnel!W772","v":0},0,{"$f":"[1]Personnel!Y772","v":0},{"$f":"[1]Personnel!Z772","v":0},0,0,0,0,null,null,null,null,null,null,null,null,null,null,null,null,null,null,null,null,null,null,null,null,null,null,null,null,null,{"$f":"[1]Personnel!G772","v":0}]
[0,{"$f":"IFERROR(INDEX(Settings!$AP$17:$AP$38,MATCH(Personnel!$G773,Settings!$AQ$17:$AQ$38,0)),0)","v":0},null,null,null,{"$f":"[1]Personnel!F773","v":0},{"$f":"IFERROR(INDEX((SLevel),MATCH(Personnel!BA773,SLevel202223,0)),0)","v":0},{"$f":"[1]Personnel!H773","v":0},{"$f":"[1]Personnel!I773","v":0},{"$f":"[1]Personnel!J773","v":0},{"$f":"[1]Personnel!P773","v":0},{"$f":"[1]Personnel!Q773","v":0},0,{"$f":"[1]Personnel!S773","v":0},{"$f":"[1]Personnel!S773","v":0},{"$f":"[1]Personnel!S773","v":0},{"$f":"[1]Personnel!T773","v":0},0,{"$f":"[1]Personnel!V773","v":0},{"$f":"[1]Personnel!W773","v":0},0,{"$f":"[1]Personnel!Y773","v":0},{"$f":"[1]Personnel!Z773","v":0},0,0,0,0,null,null,null,null,null,null,null,null,null,null,null,null,null,null,null,null,null,null,null,null,null,null,null,null,null,{"$f":"[1]Personnel!G773","v":0}]
[0,{"$f":"IFERROR(INDEX(Settings!$AP$17:$AP$38,MATCH(Personnel!$G774,Settings!$AQ$17:$AQ$38,0)),0)","v":0},null,null,null,{"$f":"[1]Personnel!F774","v":0},{"$f":"IFERROR(INDEX((SLevel),MATCH(Personnel!BA774,SLevel202223,0)),0)","v":0},{"$f":"[1]Personnel!H774","v":0},{"$f":"[1]Personnel!I774","v":0},{"$f":"[1]Personnel!J774","v":0},{"$f":"[1]Personnel!P774","v":0},{"$f":"[1]Personnel!Q774","v":0},0,{"$f":"[1]Personnel!S774","v":0},{"$f":"[1]Personnel!S774","v":0},{"$f":"[1]Personnel!S774","v":0},{"$f":"[1]Personnel!T774","v":0},0,{"$f":"[1]Personnel!V774","v":0},{"$f":"[1]Personnel!W774","v":0},0,{"$f":"[1]Personnel!Y774","v":0},{"$f":"[1]Personnel!Z774","v":0},0,0,0,0,null,null,null,null,null,null,null,null,null,null,null,null,null,null,null,null,null,null,null,null,null,null,null,null,null,{"$f":"[1]Personnel!G774","v":0}]
[0,{"$f":"IFERROR(INDEX(Settings!$AP$17:$AP$38,MATCH(Personnel!$G775,Settings!$AQ$17:$AQ$38,0)),0)","v":0},null,null,null,{"$f":"[1]Personnel!F775","v":0},{"$f":"IFERROR(INDEX((SLevel),MATCH(Personnel!BA775,SLevel202223,0)),0)","v":0},{"$f":"[1]Personnel!H775","v":0},{"$f":"[1]Personnel!I775","v":0},{"$f":"[1]Personnel!J775","v":0},{"$f":"[1]Personnel!P775","v":0},{"$f":"[1]Personnel!Q775","v":0},0,{"$f":"[1]Personnel!S775","v":0},{"$f":"[1]Personnel!S775","v":0},{"$f":"[1]Personnel!S775","v":0},{"$f":"[1]Personnel!T775","v":0},0,{"$f":"[1]Personnel!V775","v":0},{"$f":"[1]Personnel!W775","v":0},0,{"$f":"[1]Personnel!Y775","v":0},{"$f":"[1]Personnel!Z775","v":0},0,0,0,0,null,null,null,null,null,null,null,null,null,null,null,null,null,null,null,null,null,null,null,null,null,null,null,null,null,{"$f":"[1]Personnel!G775","v":0}]
[0,{"$f":"IFERROR(INDEX(Settings!$AP$17:$AP$38,MATCH(Personnel!$G776,Settings!$AQ$17:$AQ$38,0)),0)","v":0},null,null,null,{"$f":"[1]Personnel!F776","v":0},{"$f":"IFERROR(INDEX((SLevel),MATCH(Personnel!BA776,SLevel202223,0)),0)","v":0},{"$f":"[1]Personnel!H776","v":0},{"$f":"[1]Personnel!I776","v":0},{"$f":"[1]Personnel!J776","v":0},{"$f":"[1]Personnel!P776","v":0},{"$f":"[1]Personnel!Q776","v":0},0,{"$f":"[1]Personnel!S776","v":0},{"$f":"[1]Personnel!S776","v":0},{"$f":"[1]Personnel!S776","v":0},{"$f":"[1]Personnel!T776","v":0},0,{"$f":"[1]Personnel!V776","v":0},{"$f":"[1]Personnel!W776","v":0},0,{"$f":"[1]Personnel!Y776","v":0},{"$f":"[1]Personnel!Z776","v":0},0,0,0,0,null,null,null,null,null,null,null,null,null,null,null,null,null,null,null,null,null,null,null,null,null,null,null,null,null,{"$f":"[1]Personnel!G776","v":0}]
[0,{"$f":"IFERROR(INDEX(Settings!$AP$17:$AP$38,MATCH(Personnel!$G777,Settings!$AQ$17:$AQ$38,0)),0)","v":0},null,null,null,{"$f":"[1]Personnel!F777","v":0},{"$f":"IFERROR(INDEX((SLevel),MATCH(Personnel!BA777,SLevel202223,0)),0)","v":0},{"$f":"[1]Personnel!H777","v":0},{"$f":"[1]Personnel!I777","v":0},{"$f":"[1]Personnel!J777","v":0},{"$f":"[1]Personnel!P777","v":0},{"$f":"[1]Personnel!Q777","v":0},0,{"$f":"[1]Personnel!S777","v":0},{"$f":"[1]Personnel!S777","v":0},{"$f":"[1]Personnel!S777","v":0},{"$f":"[1]Personnel!T777","v":0},0,{"$f":"[1]Personnel!V777","v":0},{"$f":"[1]Personnel!W777","v":0},0,{"$f":"[1]Personnel!Y777","v":0},{"$f":"[1]Personnel!Z777","v":0},0,0,0,0,null,null,null,null,null,null,null,null,null,null,null,null,null,null,null,null,null,null,null,null,null,null,null,null,null,{"$f":"[1]Personnel!G777","v":0}]
[0,{"$f":"IFERROR(INDEX(Settings!$AP$17:$AP$38,MATCH(Personnel!$G778,Settings!$AQ$17:$AQ$38,0)),0)","v":0},null,null,null,{"$f":"[1]Personnel!F778","v":0},{"$f":"IFERROR(INDEX((SLevel),MATCH(Personnel!BA778,SLevel202223,0)),0)","v":0},{"$f":"[1]Personnel!H778","v":0},{"$f":"[1]Personnel!I778","v":0},{"$f":"[1]Personnel!J778","v":0},{"$f":"[1]Personnel!P778","v":0},{"$f":"[1]Personnel!Q778","v":0},0,{"$f":"[1]Personnel!S778","v":0},{"$f":"[1]Personnel!S778","v":0},{"$f":"[1]Personnel!S778","v":0},{"$f":"[1]Personnel!T778","v":0},0,{"$f":"[1]Personnel!V778","v":0},{"$f":"[1]Personnel!W778","v":0},0,{"$f":"[1]Personnel!Y778","v":0},{"$f":"[1]Personnel!Z778","v":0},0,0,0,0,null,null,null,null,null,null,null,null,null,null,null,null,null,null,null,null,null,null,null,null,null,null,null,null,null,{"$f":"[1]Personnel!G778","v":0}]
[0,{"$f":"IFERROR(INDEX(Settings!$AP$17:$AP$38,MATCH(Personnel!$G779,Settings!$AQ$17:$AQ$38,0)),0)","v":0},null,null,null,{"$f":"[1]Personnel!F779","v":0},{"$f":"IFERROR(INDEX((SLevel),MATCH(Personnel!BA779,SLevel202223,0)),0)","v":0},{"$f":"[1]Personnel!H779","v":0},{"$f":"[1]Personnel!I779","v":0},{"$f":"[1]Personnel!J779","v":0},{"$f":"[1]Personnel!P779","v":0},{"$f":"[1]Personnel!Q779","v":0},0,{"$f":"[1]Personnel!S779","v":0},{"$f":"[1]Personnel!S779","v":0},{"$f":"[1]Personnel!S779","v":0},{"$f":"[1]Personnel!T779","v":0},0,{"$f":"[1]Personnel!V779","v":0},{"$f":"[1]Personnel!W779","v":0},0,{"$f":"[1]Personnel!Y779","v":0},{"$f":"[1]Personnel!Z779","v":0},0,0,0,0,null,null,null,null,null,null,null,null,null,null,null,null,null,null,null,null,null,null,null,null,null,null,null,null,null,{"$f":"[1]Personnel!G779","v":0}]
[{"$f":"IF(SUM(K780:AA780)>0,1,0)","v":0},{"$f":"IFERROR(INDEX(Settings!$AP$17:$AP$38,MATCH(Personnel!$G780,Settings!$AQ$17:$AQ$38,0)),0)","v":0},null,null,null,{"$f":"[1]Personnel!F780","v":0},{"$f":"IFERROR(INDEX((SLevel),MATCH(Personnel!BA780,SLevel202223,0)),0)","v":0},{"$f":"[1]Personnel!H780","v":0},{"$f":"[1]Personnel!I780","v":0},{"$f":"[1]Personnel!J780","v":0},{"$f":"[1]Personnel!P780","v":0},{"$f":"[1]Personnel!Q780","v":0},0,{"$f":"[1]Personnel!S780","v":0},{"$f":"[1]Personnel!S780","v":0},{"$f":"[1]Personnel!S780","v":0},{"$f":"[1]Personnel!T780","v":0},0,{"$f":"[1]Personnel!V780","v":0},{"$f":"[1]Personnel!W780","v":0},0,{"$f":"[1]Personnel!Y780","v":0},{"$f":"[1]Personnel!Z780","v":0},0,0,0,0,null,null,null,null,null,null,null,null,null,null,null,null,null,null,null,null,null,null,null,null,null,null,null,null,null,{"$f":"[1]Personnel!G780","v":0}]
[0,{"$f":"IFERROR(INDEX(Settings!$AP$17:$AP$38,MATCH(Personnel!$G781,Settings!$AQ$17:$AQ$38,0)),0)","v":0},null,null,null,{"$f":"[1]Personnel!F781","v":0},{"$f":"IFERROR(INDEX((SLevel),MATCH(Personnel!BA781,SLevel202223,0)),0)","v":0},{"$f":"[1]Personnel!H781","v":0},{"$f":"[1]Personnel!I781","v":0},{"$f":"[1]Personnel!J781","v":0},{"$f":"[1]Personnel!P781","v":0},{"$f":"[1]Personnel!Q781","v":0},{"$f":"ROUND(IF(ISERROR(L781/K781),0,(L781/K781)),0)","v":0},{"$f":"[1]Personnel!S781","v":0},{"$f":"[1]Personnel!S781","v":0},{"$f":"[1]Personnel!S781","v":0},{"$f":"[1]Personnel!T781","v":0},{"$f":"ROUND(IF(ISERROR(Q781/P781),0,(Q781/P781)),0)","v":0},{"$f":"[1]Personnel!V781","v":0},{"$f":"[1]Personnel!W781","v":0},{"$f":"ROUND(IF(ISERROR(T781/S781),0,(T781/S781)),0)","v":0},{"$f":"[1]Personnel!Y781","v":0},{"$f":"[1]Personnel!Z781","v":0},{"$f":"ROUND(IF(ISERROR(W781/V781),0,(W781/V781)),0)","v":0},0,0,{"$f":"ROUND(IF(ISERROR(Z781/Y781),0,(Z781/Y781)),0)","v":0},null,null,null,null,null,null,null,null,null,null,null,null,null,null,null,null,null,null,null,null,null,null,null,null,null,{"$f":"[1]Personnel!G781","v":0}]
[0,{"$f":"IFERROR(INDEX(Settings!$AP$17:$AP$38,MATCH(Personnel!$G782,Settings!$AQ$17:$AQ$38,0)),0)","v":0},null,null,null,{"$f":"[1]Personnel!F782","v":0},{"$f":"IFERROR(INDEX((SLevel),MATCH(Personnel!BA782,SLevel202223,0)),0)","v":0},{"$f":"[1]Personnel!H782","v":0},{"$f":"[1]Personnel!I782","v":0},{"$f":"[1]Personnel!J782","v":0},{"$f":"[1]Personnel!P782","v":0},{"$f":"[1]Personnel!Q782","v":0},0,{"$f":"[1]Personnel!S782","v":0},{"$f":"[1]Personnel!S782","v":0},{"$f":"[1]Personnel!S782","v":0},{"$f":"[1]Personnel!T782","v":0},0,{"$f":"[1]Personnel!V782","v":0},{"$f":"[1]Personnel!W782","v":0},0,{"$f":"[1]Personnel!Y782","v":0},{"$f":"[1]Personnel!Z782","v":0},0,0,0,0,null,null,null,null,null,null,null,null,null,null,null,null,null,null,null,null,null,null,null,null,null,null,null,null,null,{"$f":"[1]Personnel!G782","v":0}]
[0,{"$f":"IFERROR(INDEX(Settings!$AP$17:$AP$38,MATCH(Personnel!$G783,Settings!$AQ$17:$AQ$38,0)),0)","v":0},null,null,null,{"$f":"[1]Personnel!F783","v":0},{"$f":"IFERROR(INDEX((SLevel),MATCH(Personnel!BA783,SLevel202223,0)),0)","v":0},{"$f":"[1]Personnel!H783","v":0},{"$f":"[1]Personnel!I783","v":0},{"$f":"[1]Personnel!J783","v":0},{"$f":"[1]Personnel!P783","v":0},{"$f":"[1]Personnel!Q783","v":0},0,{"$f":"[1]Personnel!S783","v":0},{"$f":"[1]Personnel!S783","v":0},{"$f":"[1]Personnel!S783","v":0},{"$f":"[1]Personnel!T783","v":0},0,{"$f":"[1]Personnel!V783","v":0},{"$f":"[1]Personnel!W783","v":0},0,{"$f":"[1]Personnel!Y783","v":0},{"$f":"[1]Personnel!Z783","v":0},0,0,0,0,null,null,null,null,null,null,null,null,null,null,null,null,null,null,null,null,null,null,null,null,null,null,null,null,null,{"$f":"[1]Personnel!G783","v":0}]
[0,{"$f":"IFERROR(INDEX(Settings!$AP$17:$AP$38,MATCH(Personnel!$G784,Settings!$AQ$17:$AQ$38,0)),0)","v":0},null,null,null,{"$f":"[1]Personnel!F784","v":0},{"$f":"IFERROR(INDEX((SLevel),MATCH(Personnel!BA784,SLevel202223,0)),0)","v":0},{"$f":"[1]Personnel!H784","v":0},{"$f":"[1]Personnel!I784","v":0},{"$f":"[1]Personnel!J784","v":0},{"$f":"[1]Personnel!P784","v":0},{"$f":"[1]Personnel!Q784","v":0},0,{"$f":"[1]Personnel!S784","v":0},{"$f":"[1]Personnel!S784","v":0},{"$f":"[1]Personnel!S784","v":0},{"$f":"[1]Personnel!T784","v":0},0,{"$f":"[1]Personnel!V784","v":0},{"$f":"[1]Personnel!W784","v":0},0,{"$f":"[1]Personnel!Y784","v":0},{"$f":"[1]Personnel!Z784","v":0},0,0,0,0,null,null,null,null,null,null,null,null,null,null,null,null,null,null,null,null,null,null,null,null,null,null,null,null,null,{"$f":"[1]Personnel!G784","v":0}]
[0,{"$f":"IFERROR(INDEX(Settings!$AP$17:$AP$38,MATCH(Personnel!$G785,Settings!$AQ$17:$AQ$38,0)),0)","v":0},null,null,null,{"$f":"[1]Personnel!F785","v":0},{"$f":"IFERROR(INDEX((SLevel),MATCH(Personnel!BA785,SLevel202223,0)),0)","v":0},{"$f":"[1]Personnel!H785","v":0},{"$f":"[1]Personnel!I785","v":0},{"$f":"[1]Personnel!J785","v":0},{"$f":"[1]Personnel!P785","v":0},{"$f":"[1]Personnel!Q785","v":0},0,{"$f":"[1]Personnel!S785","v":0},{"$f":"[1]Personnel!S785","v":0},{"$f":"[1]Personnel!S785","v":0},{"$f":"[1]Personnel!T785","v":0},0,{"$f":"[1]Personnel!V785","v":0},{"$f":"[1]Personnel!W785","v":0},0,{"$f":"[1]Personnel!Y785","v":0},{"$f":"[1]Personnel!Z785","v":0},0,0,0,0,null,null,null,null,null,null,null,null,null,null,null,null,null,null,null,null,null,null,null,null,null,null,null,null,null,{"$f":"[1]Personnel!G785","v":0}]
[0,{"$f":"IFERROR(INDEX(Settings!$AP$17:$AP$38,MATCH(Personnel!$G786,Settings!$AQ$17:$AQ$38,0)),0)","v":0},null,null,null,{"$f":"[1]Personnel!F786","v":0},{"$f":"IFERROR(INDEX((SLevel),MATCH(Personnel!BA786,SLevel202223,0)),0)","v":0},{"$f":"[1]Personnel!H786","v":0},{"$f":"[1]Personnel!I786","v":0},{"$f":"[1]Personnel!J786","v":0},{"$f":"[1]Personnel!P786","v":0},{"$f":"[1]Personnel!Q786","v":0},0,{"$f":"[1]Personnel!S786","v":0},{"$f":"[1]Personnel!S786","v":0},{"$f":"[1]Personnel!S786","v":0},{"$f":"[1]Personnel!T786","v":0},0,{"$f":"[1]Personnel!V786","v":0},{"$f":"[1]Personnel!W786","v":0},0,{"$f":"[1]Personnel!Y786","v":0},{"$f":"[1]Personnel!Z786","v":0},0,0,0,0,null,null,null,null,null,null,null,null,null,null,null,null,null,null,null,null,null,null,null,null,null,null,null,null,null,{"$f":"[1]Personnel!G786","v":0}]
[0,{"$f":"IFERROR(INDEX(Settings!$AP$17:$AP$38,MATCH(Personnel!$G787,Settings!$AQ$17:$AQ$38,0)),0)","v":0},null,null,null,{"$f":"[1]Personnel!F787","v":0},{"$f":"IFERROR(INDEX((SLevel),MATCH(Personnel!BA787,SLevel202223,0)),0)","v":0},{"$f":"[1]Personnel!H787","v":0},{"$f":"[1]Personnel!I787","v":0},{"$f":"[1]Personnel!J787","v":0},{"$f":"[1]Personnel!P787","v":0},{"$f":"[1]Personnel!Q787","v":0},0,{"$f":"[1]Personnel!S787","v":0},{"$f":"[1]Personnel!S787","v":0},{"$f":"[1]Personnel!S787","v":0},{"$f":"[1]Personnel!T787","v":0},0,{"$f":"[1]Personnel!V787","v":0},{"$f":"[1]Personnel!W787","v":0},0,{"$f":"[1]Personnel!Y787","v":0},{"$f":"[1]Personnel!Z787","v":0},0,0,0,0,null,null,null,null,null,null,null,null,null,null,null,null,null,null,null,null,null,null,null,null,null,null,null,null,null,{"$f":"[1]Personnel!G787","v":0}]
[0,{"$f":"IFERROR(INDEX(Settings!$AP$17:$AP$38,MATCH(Personnel!$G788,Settings!$AQ$17:$AQ$38,0)),0)","v":0},null,null,null,{"$f":"[1]Personnel!F788","v":0},{"$f":"IFERROR(INDEX((SLevel),MATCH(Personnel!BA788,SLevel202223,0)),0)","v":0},{"$f":"[1]Personnel!H788","v":0},{"$f":"[1]Personnel!I788","v":0},{"$f":"[1]Personnel!J788","v":0},{"$f":"[1]Personnel!P788","v":0},{"$f":"[1]Personnel!Q788","v":0},0,{"$f":"[1]Personnel!S788","v":0},{"$f":"[1]Personnel!S788","v":0},{"$f":"[1]Personnel!S788","v":0},{"$f":"[1]Personnel!T788","v":0},0,{"$f":"[1]Personnel!V788","v":0},{"$f":"[1]Personnel!W788","v":0},0,{"$f":"[1]Personnel!Y788","v":0},{"$f":"[1]Personnel!Z788","v":0},0,0,0,0,null,null,null,null,null,null,null,null,null,null,null,null,null,null,null,null,null,null,null,null,null,null,null,null,null,{"$f":"[1]Personnel!G788","v":0}]
[0,{"$f":"IFERROR(INDEX(Settings!$AP$17:$AP$38,MATCH(Personnel!$G789,Settings!$AQ$17:$AQ$38,0)),0)","v":0},null,null,null,{"$f":"[1]Personnel!F789","v":0},{"$f":"IFERROR(INDEX((SLevel),MATCH(Personnel!BA789,SLevel202223,0)),0)","v":0},{"$f":"[1]Personnel!H789","v":0},{"$f":"[1]Personnel!I789","v":0},{"$f":"[1]Personnel!J789","v":0},{"$f":"[1]Personnel!P789","v":0},{"$f":"[1]Personnel!Q789","v":0},0,{"$f":"[1]Personnel!S789","v":0},{"$f":"[1]Personnel!S789","v":0},{"$f":"[1]Personnel!S789","v":0},{"$f":"[1]Personnel!T789","v":0},0,{"$f":"[1]Personnel!V789","v":0},{"$f":"[1]Personnel!W789","v":0},0,{"$f":"[1]Personnel!Y789","v":0},{"$f":"[1]Personnel!Z789","v":0},0,0,0,0,null,null,null,null,null,null,null,null,null,null,null,null,null,null,null,null,null,null,null,null,null,null,null,null,null,{"$f":"[1]Personnel!G789","v":0}]
[0,{"$f":"IFERROR(INDEX(Settings!$AP$17:$AP$38,MATCH(Personnel!$G790,Settings!$AQ$17:$AQ$38,0)),0)","v":0},null,null,null,{"$f":"[1]Personnel!F790","v":0},{"$f":"IFERROR(INDEX((SLevel),MATCH(Personnel!BA790,SLevel202223,0)),0)","v":0},{"$f":"[1]Personnel!H790","v":0},{"$f":"[1]Personnel!I790","v":0},{"$f":"[1]Personnel!J790","v":0},{"$f":"[1]Personnel!P790","v":0},{"$f":"[1]Personnel!Q790","v":0},0,{"$f":"[1]Personnel!S790","v":0},{"$f":"[1]Personnel!S790","v":0},{"$f":"[1]Personnel!S790","v":0},{"$f":"[1]Personnel!T790","v":0},0,{"$f":"[1]Personnel!V790","v":0},{"$f":"[1]Personnel!W790","v":0},0,{"$f":"[1]Personnel!Y790","v":0},{"$f":"[1]Personnel!Z790","v":0},0,0,0,0,null,null,null,null,null,null,null,null,null,null,null,null,null,null,null,null,null,null,null,null,null,null,null,null,null,{"$f":"[1]Personnel!G790","v":0}]
[0,{"$f":"IFERROR(INDEX(Settings!$AP$17:$AP$38,MATCH(Personnel!$G791,Settings!$AQ$17:$AQ$38,0)),0)","v":0},null,null,null,{"$f":"[1]Personnel!F791","v":0},{"$f":"IFERROR(INDEX((SLevel),MATCH(Personnel!BA791,SLevel202223,0)),0)","v":0},{"$f":"[1]Personnel!H791","v":0},{"$f":"[1]Personnel!I791","v":0},{"$f":"[1]Personnel!J791","v":0},{"$f":"[1]Personnel!P791","v":0},{"$f":"[1]Personnel!Q791","v":0},0,{"$f":"[1]Personnel!S791","v":0},{"$f":"[1]Personnel!S791","v":0},{"$f":"[1]Personnel!S791","v":0},{"$f":"[1]Personnel!T791","v":0},0,{"$f":"[1]Personnel!V791","v":0},{"$f":"[1]Personnel!W791","v":0},0,{"$f":"[1]Personnel!Y791","v":0},{"$f":"[1]Personnel!Z791","v":0},0,0,0,0,null,null,null,null,null,null,null,null,null,null,null,null,null,null,null,null,null,null,null,null,null,null,null,null,null,{"$f":"[1]Personnel!G791","v":0}]
[0,{"$f":"IFERROR(INDEX(Settings!$AP$17:$AP$38,MATCH(Personnel!$G792,Settings!$AQ$17:$AQ$38,0)),0)","v":0},null,null,null,{"$f":"[1]Personnel!F792","v":0},{"$f":"IFERROR(INDEX((SLevel),MATCH(Personnel!BA792,SLevel202223,0)),0)","v":0},{"$f":"[1]Personnel!H792","v":0},{"$f":"[1]Personnel!I792","v":0},{"$f":"[1]Personnel!J792","v":0},{"$f":"[1]Personnel!P792","v":0},{"$f":"[1]Personnel!Q792","v":0},0,{"$f":"[1]Personnel!S792","v":0},{"$f":"[1]Personnel!S792","v":0},{"$f":"[1]Personnel!S792","v":0},{"$f":"[1]Personnel!T792","v":0},0,{"$f":"[1]Personnel!V792","v":0},{"$f":"[1]Personnel!W792","v":0},0,{"$f":"[1]Personnel!Y792","v":0},{"$f":"[1]Personnel!Z792","v":0},0,0,0,0,null,null,null,null,null,null,null,null,null,null,null,null,null,null,null,null,null,null,null,null,null,null,null,null,null,{"$f":"[1]Personnel!G792","v":0}]
[0,{"$f":"IFERROR(INDEX(Settings!$AP$17:$AP$38,MATCH(Personnel!$G793,Settings!$AQ$17:$AQ$38,0)),0)","v":0},null,null,null,{"$f":"[1]Personnel!F793","v":0},{"$f":"IFERROR(INDEX((SLevel),MATCH(Personnel!BA793,SLevel202223,0)),0)","v":0},{"$f":"[1]Personnel!H793","v":0},{"$f":"[1]Personnel!I793","v":0},{"$f":"[1]Personnel!J793","v":0},{"$f":"[1]Personnel!P793","v":0},{"$f":"[1]Personnel!Q793","v":0},0,{"$f":"[1]Personnel!S793","v":0},{"$f":"[1]Personnel!S793","v":0},{"$f":"[1]Personnel!S793","v":0},{"$f":"[1]Personnel!T793","v":0},0,{"$f":"[1]Personnel!V793","v":0},{"$f":"[1]Personnel!W793","v":0},0,{"$f":"[1]Personnel!Y793","v":0},{"$f":"[1]Personnel!Z793","v":0},0,0,0,0,null,null,null,null,null,null,null,null,null,null,null,null,null,null,null,null,null,null,null,null,null,null,null,null,null,{"$f":"[1]Personnel!G793","v":0}]
[0,{"$f":"IFERROR(INDEX(Settings!$AP$17:$AP$38,MATCH(Personnel!$G794,Settings!$AQ$17:$AQ$38,0)),0)","v":0},null,null,null,{"$f":"[1]Personnel!F794","v":0},{"$f":"IFERROR(INDEX((SLevel),MATCH(Personnel!BA794,SLevel202223,0)),0)","v":0},{"$f":"[1]Personnel!H794","v":0},{"$f":"[1]Personnel!I794","v":0},{"$f":"[1]Personnel!J794","v":0},{"$f":"[1]Personnel!P794","v":0},{"$f":"[1]Personnel!Q794","v":0},0,{"$f":"[1]Personnel!S794","v":0},{"$f":"[1]Personnel!S794","v":0},{"$f":"[1]Personnel!S794","v":0},{"$f":"[1]Personnel!T794","v":0},0,{"$f":"[1]Personnel!V794","v":0},{"$f":"[1]Personnel!W794","v":0},0,{"$f":"[1]Personnel!Y794","v":0},{"$f":"[1]Personnel!Z794","v":0},0,0,0,0,null,null,null,null,null,null,null,null,null,null,null,null,null,null,null,null,null,null,null,null,null,null,null,null,null,{"$f":"[1]Personnel!G794","v":0}]
[0,{"$f":"IFERROR(INDEX(Settings!$AP$17:$AP$38,MATCH(Personnel!$G795,Settings!$AQ$17:$AQ$38,0)),0)","v":0},null,null,null,{"$f":"[1]Personnel!F795","v":0},{"$f":"IFERROR(INDEX((SLevel),MATCH(Personnel!BA795,SLevel202223,0)),0)","v":0},{"$f":"[1]Personnel!H795","v":0},{"$f":"[1]Personnel!I795","v":0},{"$f":"[1]Personnel!J795","v":0},{"$f":"[1]Personnel!P795","v":0},{"$f":"[1]Personnel!Q795","v":0},0,{"$f":"[1]Personnel!S795","v":0},{"$f":"[1]Personnel!S795","v":0},{"$f":"[1]Personnel!S795","v":0},{"$f":"[1]Personnel!T795","v":0},0,{"$f":"[1]Personnel!V795","v":0},{"$f":"[1]Personnel!W795","v":0},0,{"$f":"[1]Personnel!Y795","v":0},{"$f":"[1]Personnel!Z795","v":0},0,0,0,0,null,null,null,null,null,null,null,null,null,null,null,null,null,null,null,null,null,null,null,null,null,null,null,null,null,{"$f":"[1]Personnel!G795","v":0}]
[0,{"$f":"IFERROR(INDEX(Settings!$AP$17:$AP$38,MATCH(Personnel!$G796,Settings!$AQ$17:$AQ$38,0)),0)","v":0},null,null,null,{"$f":"[1]Personnel!F796","v":0},{"$f":"IFERROR(INDEX((SLevel),MATCH(Personnel!BA796,SLevel202223,0)),0)","v":0},{"$f":"[1]Personnel!H796","v":0},{"$f":"[1]Personnel!I796","v":0},{"$f":"[1]Personnel!J796","v":0},{"$f":"[1]Personnel!P796","v":0},{"$f":"[1]Personnel!Q796","v":0},0,{"$f":"[1]Personnel!S796","v":0},{"$f":"[1]Personnel!S796","v":0},{"$f":"[1]Personnel!S796","v":0},{"$f":"[1]Personnel!T796","v":0},0,{"$f":"[1]Personnel!V796","v":0},{"$f":"[1]Personnel!W796","v":0},0,{"$f":"[1]Personnel!Y796","v":0},{"$f":"[1]Personnel!Z796","v":0},0,0,0,0,null,null,null,null,null,null,null,null,null,null,null,null,null,null,null,null,null,null,null,null,null,null,null,null,null,{"$f":"[1]Personnel!G796","v":0}]
[0,{"$f":"IFERROR(INDEX(Settings!$AP$17:$AP$38,MATCH(Personnel!$G797,Settings!$AQ$17:$AQ$38,0)),0)","v":0},null,null,null,{"$f":"[1]Personnel!F797","v":0},{"$f":"IFERROR(INDEX((SLevel),MATCH(Personnel!BA797,SLevel202223,0)),0)","v":0},{"$f":"[1]Personnel!H797","v":0},{"$f":"[1]Personnel!I797","v":0},{"$f":"[1]Personnel!J797","v":0},{"$f":"[1]Personnel!P797","v":0},{"$f":"[1]Personnel!Q797","v":0},0,{"$f":"[1]Personnel!S797","v":0},{"$f":"[1]Personnel!S797","v":0},{"$f":"[1]Personnel!S797","v":0},{"$f":"[1]Personnel!T797","v":0},0,{"$f":"[1]Personnel!V797","v":0},{"$f":"[1]Personnel!W797","v":0},0,{"$f":"[1]Personnel!Y797","v":0},{"$f":"[1]Personnel!Z797","v":0},0,0,0,0,null,null,null,null,null,null,null,null,null,null,null,null,null,null,null,null,null,null,null,null,null,null,null,null,null,{"$f":"[1]Personnel!G797","v":0}]
[0,{"$f":"IFERROR(INDEX(Settings!$AP$17:$AP$38,MATCH(Personnel!$G798,Settings!$AQ$17:$AQ$38,0)),0)","v":0},null,null,null,{"$f":"[1]Personnel!F798","v":0},{"$f":"IFERROR(INDEX((SLevel),MATCH(Personnel!BA798,SLevel202223,0)),0)","v":0},{"$f":"[1]Personnel!H798","v":0},{"$f":"[1]Personnel!I798","v":0},{"$f":"[1]Personnel!J798","v":0},{"$f":"[1]Personnel!P798","v":0},{"$f":"[1]Personnel!Q798","v":0},0,{"$f":"[1]Personnel!S798","v":0},{"$f":"[1]Personnel!S798","v":0},{"$f":"[1]Personnel!S798","v":0},{"$f":"[1]Personnel!T798","v":0},0,{"$f":"[1]Personnel!V798","v":0},{"$f":"[1]Personnel!W798","v":0},0,{"$f":"[1]Personnel!Y798","v":0},{"$f":"[1]Personnel!Z798","v":0},0,0,0,0,null,null,null,null,null,null,null,null,null,null,null,null,null,null,null,null,null,null,null,null,null,null,null,null,null,{"$f":"[1]Personnel!G798","v":0}]
[0,{"$f":"IFERROR(INDEX(Settings!$AP$17:$AP$38,MATCH(Personnel!$G799,Settings!$AQ$17:$AQ$38,0)),0)","v":0},null,null,null,{"$f":"[1]Personnel!F799","v":0},{"$f":"IFERROR(INDEX((SLevel),MATCH(Personnel!BA799,SLevel202223,0)),0)","v":0},{"$f":"[1]Personnel!H799","v":0},{"$f":"[1]Personnel!I799","v":0},{"$f":"[1]Personnel!J799","v":0},{"$f":"[1]Personnel!P799","v":0},{"$f":"[1]Personnel!Q799","v":0},0,{"$f":"[1]Personnel!S799","v":0},{"$f":"[1]Personnel!S799","v":0},{"$f":"[1]Personnel!S799","v":0},{"$f":"[1]Personnel!T799","v":0},0,{"$f":"[1]Personnel!V799","v":0},{"$f":"[1]Personnel!W799","v":0},0,{"$f":"[1]Personnel!Y799","v":0},{"$f":"[1]Personnel!Z799","v":0},0,0,0,0,null,null,null,null,null,null,null,null,null,null,null,null,null,null,null,null,null,null,null,null,null,null,null,null,null,{"$f":"[1]Personnel!G799","v":0}]
[0,{"$f":"IFERROR(INDEX(Settings!$AP$17:$AP$38,MATCH(Personnel!$G800,Settings!$AQ$17:$AQ$38,0)),0)","v":0},null,null,null,{"$f":"[1]Personnel!F800","v":0},{"$f":"IFERROR(INDEX((SLevel),MATCH(Personnel!BA800,SLevel202223,0)),0)","v":0},{"$f":"[1]Personnel!H800","v":0},{"$f":"[1]Personnel!I800","v":0},{"$f":"[1]Personnel!J800","v":0},{"$f":"[1]Personnel!P800","v":0},{"$f":"[1]Personnel!Q800","v":0},0,{"$f":"[1]Personnel!S800","v":0},{"$f":"[1]Personnel!S800","v":0},{"$f":"[1]Personnel!S800","v":0},{"$f":"[1]Personnel!T800","v":0},0,{"$f":"[1]Personnel!V800","v":0},{"$f":"[1]Personnel!W800","v":0},0,{"$f":"[1]Personnel!Y800","v":0},{"$f":"[1]Personnel!Z800","v":0},0,0,0,0,null,null,null,null,null,null,null,null,null,null,null,null,null,null,null,null,null,null,null,null,null,null,null,null,null,{"$f":"[1]Personnel!G800","v":0}]
[0,{"$f":"IFERROR(INDEX(Settings!$AP$17:$AP$38,MATCH(Personnel!$G801,Settings!$AQ$17:$AQ$38,0)),0)","v":0},null,null,null,{"$f":"[1]Personnel!F801","v":0},{"$f":"IFERROR(INDEX((SLevel),MATCH(Personnel!BA801,SLevel202223,0)),0)","v":0},{"$f":"[1]Personnel!H801","v":0},{"$f":"[1]Personnel!I801","v":0},{"$f":"[1]Personnel!J801","v":0},{"$f":"[1]Personnel!P801","v":0},{"$f":"[1]Personnel!Q801","v":0},0,{"$f":"[1]Personnel!S801","v":0},{"$f":"[1]Personnel!S801","v":0},{"$f":"[1]Personnel!S801","v":0},{"$f":"[1]Personnel!T801","v":0},0,{"$f":"[1]Personnel!V801","v":0},{"$f":"[1]Personnel!W801","v":0},0,{"$f":"[1]Personnel!Y801","v":0},{"$f":"[1]Personnel!Z801","v":0},0,0,0,0,null,null,null,null,null,null,null,null,null,null,null,null,null,null,null,null,null,null,null,null,null,null,null,null,null,{"$f":"[1]Personnel!G801","v":0}]
[0,{"$f":"IFERROR(INDEX(Settings!$AP$17:$AP$38,MATCH(Personnel!$G802,Settings!$AQ$17:$AQ$38,0)),0)","v":0},null,null,null,{"$f":"[1]Personnel!F802","v":0},{"$f":"IFERROR(INDEX((SLevel),MATCH(Personnel!BA802,SLevel202223,0)),0)","v":0},{"$f":"[1]Personnel!H802","v":0},{"$f":"[1]Personnel!I802","v":0},{"$f":"[1]Personnel!J802","v":0},{"$f":"[1]Personnel!P802","v":0},{"$f":"[1]Personnel!Q802","v":0},0,{"$f":"[1]Personnel!S802","v":0},{"$f":"[1]Personnel!S802","v":0},{"$f":"[1]Personnel!S802","v":0},{"$f":"[1]Personnel!T802","v":0},0,{"$f":"[1]Personnel!V802","v":0},{"$f":"[1]Personnel!W802","v":0},0,{"$f":"[1]Personnel!Y802","v":0},{"$f":"[1]Personnel!Z802","v":0},0,0,0,0,null,null,null,null,null,null,null,null,null,null,null,null,null,null,null,null,null,null,null,null,null,null,null,null,null,{"$f":"[1]Personnel!G802","v":0}]
[0,{"$f":"IFERROR(INDEX(Settings!$AP$17:$AP$38,MATCH(Personnel!$G803,Settings!$AQ$17:$AQ$38,0)),0)","v":0},null,null,null,{"$f":"[1]Personnel!F803","v":0},{"$f":"IFERROR(INDEX((SLevel),MATCH(Personnel!BA803,SLevel202223,0)),0)","v":0},{"$f":"[1]Personnel!H803","v":0},{"$f":"[1]Personnel!I803","v":0},{"$f":"[1]Personnel!J803","v":0},{"$f":"[1]Personnel!P803","v":0},{"$f":"[1]Personnel!Q803","v":0},0,{"$f":"[1]Personnel!S803","v":0},{"$f":"[1]Personnel!S803","v":0},{"$f":"[1]Personnel!S803","v":0},{"$f":"[1]Personnel!T803","v":0},0,{"$f":"[1]Personnel!V803","v":0},{"$f":"[1]Personnel!W803","v":0},0,{"$f":"[1]Personnel!Y803","v":0},{"$f":"[1]Personnel!Z803","v":0},0,0,0,0,null,null,null,null,null,null,null,null,null,null,null,null,null,null,null,null,null,null,null,null,null,null,null,null,null,{"$f":"[1]Personnel!G803","v":0}]
[0,{"$f":"IFERROR(INDEX(Settings!$AP$17:$AP$38,MATCH(Personnel!$G804,Settings!$AQ$17:$AQ$38,0)),0)","v":0},null,null,null,{"$f":"[1]Personnel!F804","v":0},{"$f":"IFERROR(INDEX((SLevel),MATCH(Personnel!BA804,SLevel202223,0)),0)","v":0},{"$f":"[1]Personnel!H804","v":0},{"$f":"[1]Personnel!I804","v":0},{"$f":"[1]Personnel!J804","v":0},{"$f":"[1]Personnel!P804","v":0},{"$f":"[1]Personnel!Q804","v":0},0,{"$f":"[1]Personnel!S804","v":0},{"$f":"[1]Personnel!S804","v":0},{"$f":"[1]Personnel!S804","v":0},{"$f":"[1]Personnel!T804","v":0},0,{"$f":"[1]Personnel!V804","v":0},{"$f":"[1]Personnel!W804","v":0},0,{"$f":"[1]Personnel!Y804","v":0},{"$f":"[1]Personnel!Z804","v":0},0,0,0,0,null,null,null,null,null,null,null,null,null,null,null,null,null,null,null,null,null,null,null,null,null,null,null,null,null,{"$f":"[1]Personnel!G804","v":0}]
[0,{"$f":"IFERROR(INDEX(Settings!$AP$17:$AP$38,MATCH(Personnel!$G805,Settings!$AQ$17:$AQ$38,0)),0)","v":0},null,null,null,{"$f":"[1]Personnel!F805","v":0},{"$f":"IFERROR(INDEX((SLevel),MATCH(Personnel!BA805,SLevel202223,0)),0)","v":0},{"$f":"[1]Personnel!H805","v":0},{"$f":"[1]Personnel!I805","v":0},{"$f":"[1]Personnel!J805","v":0},{"$f":"[1]Personnel!P805","v":0},{"$f":"[1]Personnel!Q805","v":0},0,{"$f":"[1]Personnel!S805","v":0},{"$f":"[1]Personnel!S805","v":0},{"$f":"[1]Personnel!S805","v":0},{"$f":"[1]Personnel!T805","v":0},0,{"$f":"[1]Personnel!V805","v":0},{"$f":"[1]Personnel!W805","v":0},0,{"$f":"[1]Personnel!Y805","v":0},{"$f":"[1]Personnel!Z805","v":0},0,0,0,0,null,null,null,null,null,null,null,null,null,null,null,null,null,null,null,null,null,null,null,null,null,null,null,null,null,{"$f":"[1]Personnel!G805","v":0}]
[0,{"$f":"IFERROR(INDEX(Settings!$AP$17:$AP$38,MATCH(Personnel!$G806,Settings!$AQ$17:$AQ$38,0)),0)","v":0},null,null,null,{"$f":"[1]Personnel!F806","v":0},{"$f":"IFERROR(INDEX((SLevel),MATCH(Personnel!BA806,SLevel202223,0)),0)","v":0},{"$f":"[1]Personnel!H806","v":0},{"$f":"[1]Personnel!I806","v":0},{"$f":"[1]Personnel!J806","v":0},{"$f":"[1]Personnel!P806","v":0},{"$f":"[1]Personnel!Q806","v":0},0,{"$f":"[1]Personnel!S806","v":0},{"$f":"[1]Personnel!S806","v":0},{"$f":"[1]Personnel!S806","v":0},{"$f":"[1]Personnel!T806","v":0},0,{"$f":"[1]Personnel!V806","v":0},{"$f":"[1]Personnel!W806","v":0},0,{"$f":"[1]Personnel!Y806","v":0},{"$f":"[1]Personnel!Z806","v":0},0,0,0,0,null,null,null,null,null,null,null,null,null,null,null,null,null,null,null,null,null,null,null,null,null,null,null,null,null,{"$f":"[1]Personnel!G806","v":0}]
[0,{"$f":"IFERROR(INDEX(Settings!$AP$17:$AP$38,MATCH(Personnel!$G807,Settings!$AQ$17:$AQ$38,0)),0)","v":0},null,null,null,{"$f":"[1]Personnel!F807","v":0},{"$f":"IFERROR(INDEX((SLevel),MATCH(Personnel!BA807,SLevel202223,0)),0)","v":0},{"$f":"[1]Personnel!H807","v":0},{"$f":"[1]Personnel!I807","v":0},{"$f":"[1]Personnel!J807","v":0},{"$f":"[1]Personnel!P807","v":0},{"$f":"[1]Personnel!Q807","v":0},0,{"$f":"[1]Personnel!S807","v":0},{"$f":"[1]Personnel!S807","v":0},{"$f":"[1]Personnel!S807","v":0},{"$f":"[1]Personnel!T807","v":0},0,{"$f":"[1]Personnel!V807","v":0},{"$f":"[1]Personnel!W807","v":0},0,{"$f":"[1]Personnel!Y807","v":0},{"$f":"[1]Personnel!Z807","v":0},0,0,0,0,null,null,null,null,null,null,null,null,null,null,null,null,null,null,null,null,null,null,null,null,null,null,null,null,null,{"$f":"[1]Personnel!G807","v":0}]
[0,{"$f":"IFERROR(INDEX(Settings!$AP$17:$AP$38,MATCH(Personnel!$G808,Settings!$AQ$17:$AQ$38,0)),0)","v":0},null,null,null,{"$f":"[1]Personnel!F808","v":0},{"$f":"IFERROR(INDEX((SLevel),MATCH(Personnel!BA808,SLevel202223,0)),0)","v":0},{"$f":"[1]Personnel!H808","v":0},{"$f":"[1]Personnel!I808","v":0},{"$f":"[1]Personnel!J808","v":0},{"$f":"[1]Personnel!P808","v":0},{"$f":"[1]Personnel!Q808","v":0},0,{"$f":"[1]Personnel!S808","v":0},{"$f":"[1]Personnel!S808","v":0},{"$f":"[1]Personnel!S808","v":0},{"$f":"[1]Personnel!T808","v":0},0,{"$f":"[1]Personnel!V808","v":0},{"$f":"[1]Personnel!W808","v":0},0,{"$f":"[1]Personnel!Y808","v":0},{"$f":"[1]Personnel!Z808","v":0},0,0,0,0,null,null,null,null,null,null,null,null,null,null,null,null,null,null,null,null,null,null,null,null,null,null,null,null,null,{"$f":"[1]Personnel!G808","v":0}]
[0,{"$f":"IFERROR(INDEX(Settings!$AP$17:$AP$38,MATCH(Personnel!$G809,Settings!$AQ$17:$AQ$38,0)),0)","v":0},null,null,null,{"$f":"[1]Personnel!F809","v":0},{"$f":"IFERROR(INDEX((SLevel),MATCH(Personnel!BA809,SLevel202223,0)),0)","v":0},{"$f":"[1]Personnel!H809","v":0},{"$f":"[1]Personnel!I809","v":0},{"$f":"[1]Personnel!J809","v":0},{"$f":"[1]Personnel!P809","v":0},{"$f":"[1]Personnel!Q809","v":0},0,{"$f":"[1]Personnel!S809","v":0},{"$f":"[1]Personnel!S809","v":0},{"$f":"[1]Personnel!S809","v":0},{"$f":"[1]Personnel!T809","v":0},0,{"$f":"[1]Personnel!V809","v":0},{"$f":"[1]Personnel!W809","v":0},0,{"$f":"[1]Personnel!Y809","v":0},{"$f":"[1]Personnel!Z809","v":0},0,0,0,0,null,null,null,null,null,null,null,null,null,null,null,null,null,null,null,null,null,null,null,null,null,null,null,null,null,{"$f":"[1]Personnel!G809","v":0}]
[0,{"$f":"IFERROR(INDEX(Settings!$AP$17:$AP$38,MATCH(Personnel!$G810,Settings!$AQ$17:$AQ$38,0)),0)","v":0},null,null,null,{"$f":"[1]Personnel!F810","v":0},{"$f":"IFERROR(INDEX((SLevel),MATCH(Personnel!BA810,SLevel202223,0)),0)","v":0},{"$f":"[1]Personnel!H810","v":0},{"$f":"[1]Personnel!I810","v":0},{"$f":"[1]Personnel!J810","v":0},{"$f":"[1]Personnel!P810","v":0},{"$f":"[1]Personnel!Q810","v":0},0,{"$f":"[1]Personnel!S810","v":0},{"$f":"[1]Personnel!S810","v":0},{"$f":"[1]Personnel!S810","v":0},{"$f":"[1]Personnel!T810","v":0},0,{"$f":"[1]Personnel!V810","v":0},{"$f":"[1]Personnel!W810","v":0},0,{"$f":"[1]Personnel!Y810","v":0},{"$f":"[1]Personnel!Z810","v":0},0,0,0,0,null,null,null,null,null,null,null,null,null,null,null,null,null,null,null,null,null,null,null,null,null,null,null,null,null,{"$f":"[1]Personnel!G810","v":0}]
[0,{"$f":"IFERROR(INDEX(Settings!$AP$17:$AP$38,MATCH(Personnel!$G811,Settings!$AQ$17:$AQ$38,0)),0)","v":0},null,null,null,{"$f":"[1]Personnel!F811","v":0},{"$f":"IFERROR(INDEX((SLevel),MATCH(Personnel!BA811,SLevel202223,0)),0)","v":0},{"$f":"[1]Personnel!H811","v":0},{"$f":"[1]Personnel!I811","v":0},{"$f":"[1]Personnel!J811","v":0},{"$f":"[1]Personnel!P811","v":0},{"$f":"[1]Personnel!Q811","v":0},0,{"$f":"[1]Personnel!S811","v":0},{"$f":"[1]Personnel!S811","v":0},{"$f":"[1]Personnel!S811","v":0},{"$f":"[1]Personnel!T811","v":0},0,{"$f":"[1]Personnel!V811","v":0},{"$f":"[1]Personnel!W811","v":0},0,{"$f":"[1]Personnel!Y811","v":0},{"$f":"[1]Personnel!Z811","v":0},0,0,0,0,null,null,null,null,null,null,null,null,null,null,null,null,null,null,null,null,null,null,null,null,null,null,null,null,null,{"$f":"[1]Personnel!G811","v":0}]
[0,{"$f":"IFERROR(INDEX(Settings!$AP$17:$AP$38,MATCH(Personnel!$G812,Settings!$AQ$17:$AQ$38,0)),0)","v":0},null,null,null,{"$f":"[1]Personnel!F812","v":0},{"$f":"IFERROR(INDEX((SLevel),MATCH(Personnel!BA812,SLevel202223,0)),0)","v":0},{"$f":"[1]Personnel!H812","v":0},{"$f":"[1]Personnel!I812","v":0},{"$f":"[1]Personnel!J812","v":0},{"$f":"[1]Personnel!P812","v":0},{"$f":"[1]Personnel!Q812","v":0},0,{"$f":"[1]Personnel!S812","v":0},{"$f":"[1]Personnel!S812","v":0},{"$f":"[1]Personnel!S812","v":0},{"$f":"[1]Personnel!T812","v":0},0,{"$f":"[1]Personnel!V812","v":0},{"$f":"[1]Personnel!W812","v":0},0,{"$f":"[1]Personnel!Y812","v":0},{"$f":"[1]Personnel!Z812","v":0},0,0,0,0,null,null,null,null,null,null,null,null,null,null,null,null,null,null,null,null,null,null,null,null,null,null,null,null,null,{"$f":"[1]Personnel!G812","v":0}]
[0,{"$f":"IFERROR(INDEX(Settings!$AP$17:$AP$38,MATCH(Personnel!$G813,Settings!$AQ$17:$AQ$38,0)),0)","v":0},null,null,null,{"$f":"[1]Personnel!F813","v":0},{"$f":"IFERROR(INDEX((SLevel),MATCH(Personnel!BA813,SLevel202223,0)),0)","v":0},{"$f":"[1]Personnel!H813","v":0},{"$f":"[1]Personnel!I813","v":0},{"$f":"[1]Personnel!J813","v":0},{"$f":"[1]Personnel!P813","v":0},{"$f":"[1]Personnel!Q813","v":0},0,{"$f":"[1]Personnel!S813","v":0},{"$f":"[1]Personnel!S813","v":0},{"$f":"[1]Personnel!S813","v":0},{"$f":"[1]Personnel!T813","v":0},0,{"$f":"[1]Personnel!V813","v":0},{"$f":"[1]Personnel!W813","v":0},0,{"$f":"[1]Personnel!Y813","v":0},{"$f":"[1]Personnel!Z813","v":0},0,0,0,0,null,null,null,null,null,null,null,null,null,null,null,null,null,null,null,null,null,null,null,null,null,null,null,null,null,{"$f":"[1]Personnel!G813","v":0}]
[0,{"$f":"IFERROR(INDEX(Settings!$AP$17:$AP$38,MATCH(Personnel!$G814,Settings!$AQ$17:$AQ$38,0)),0)","v":0},null,null,null,{"$f":"[1]Personnel!F814","v":0},{"$f":"IFERROR(INDEX((SLevel),MATCH(Personnel!BA814,SLevel202223,0)),0)","v":0},{"$f":"[1]Personnel!H814","v":0},{"$f":"[1]Personnel!I814","v":0},{"$f":"[1]Personnel!J814","v":0},{"$f":"[1]Personnel!P814","v":0},{"$f":"[1]Personnel!Q814","v":0},0,{"$f":"[1]Personnel!S814","v":0},{"$f":"[1]Personnel!S814","v":0},{"$f":"[1]Personnel!S814","v":0},{"$f":"[1]Personnel!T814","v":0},0,{"$f":"[1]Personnel!V814","v":0},{"$f":"[1]Personnel!W814","v":0},0,{"$f":"[1]Personnel!Y814","v":0},{"$f":"[1]Personnel!Z814","v":0},0,0,0,0,null,null,null,null,null,null,null,null,null,null,null,null,null,null,null,null,null,null,null,null,null,null,null,null,null,{"$f":"[1]Personnel!G814","v":0}]
[0,{"$f":"IFERROR(INDEX(Settings!$AP$17:$AP$38,MATCH(Personnel!$G815,Settings!$AQ$17:$AQ$38,0)),0)","v":0},null,null,null,{"$f":"[1]Personnel!F815","v":0},{"$f":"IFERROR(INDEX((SLevel),MATCH(Personnel!BA815,SLevel202223,0)),0)","v":0},{"$f":"[1]Personnel!H815","v":0},{"$f":"[1]Personnel!I815","v":0},{"$f":"[1]Personnel!J815","v":0},{"$f":"[1]Personnel!P815","v":0},{"$f":"[1]Personnel!Q815","v":0},0,{"$f":"[1]Personnel!S815","v":0},{"$f":"[1]Personnel!S815","v":0},{"$f":"[1]Personnel!S815","v":0},{"$f":"[1]Personnel!T815","v":0},0,{"$f":"[1]Personnel!V815","v":0},{"$f":"[1]Personnel!W815","v":0},0,{"$f":"[1]Personnel!Y815","v":0},{"$f":"[1]Personnel!Z815","v":0},0,0,0,0,null,null,null,null,null,null,null,null,null,null,null,null,null,null,null,null,null,null,null,null,null,null,null,null,null,{"$f":"[1]Personnel!G815","v":0}]
[0,{"$f":"IFERROR(INDEX(Settings!$AP$17:$AP$38,MATCH(Personnel!$G816,Settings!$AQ$17:$AQ$38,0)),0)","v":0},null,null,null,{"$f":"[1]Personnel!F816","v":0},{"$f":"IFERROR(INDEX((SLevel),MATCH(Personnel!BA816,SLevel202223,0)),0)","v":0},{"$f":"[1]Personnel!H816","v":0},{"$f":"[1]Personnel!I816","v":0},{"$f":"[1]Personnel!J816","v":0},{"$f":"[1]Personnel!P816","v":0},{"$f":"[1]Personnel!Q816","v":0},0,{"$f":"[1]Personnel!S816","v":0},{"$f":"[1]Personnel!S816","v":0},{"$f":"[1]Personnel!S816","v":0},{"$f":"[1]Personnel!T816","v":0},0,{"$f":"[1]Personnel!V816","v":0},{"$f":"[1]Personnel!W816","v":0},0,{"$f":"[1]Personnel!Y816","v":0},{"$f":"[1]Personnel!Z816","v":0},0,0,0,0,null,null,null,null,null,null,null,null,null,null,null,null,null,null,null,null,null,null,null,null,null,null,null,null,null,{"$f":"[1]Personnel!G816","v":0}]
[0,{"$f":"IFERROR(INDEX(Settings!$AP$17:$AP$38,MATCH(Personnel!$G817,Settings!$AQ$17:$AQ$38,0)),0)","v":0},null,null,null,{"$f":"[1]Personnel!F817","v":0},{"$f":"IFERROR(INDEX((SLevel),MATCH(Personnel!BA817,SLevel202223,0)),0)","v":0},{"$f":"[1]Personnel!H817","v":0},{"$f":"[1]Personnel!I817","v":0},{"$f":"[1]Personnel!J817","v":0},{"$f":"[1]Personnel!P817","v":0},{"$f":"[1]Personnel!Q817","v":0},0,{"$f":"[1]Personnel!S817","v":0},{"$f":"[1]Personnel!S817","v":0},{"$f":"[1]Personnel!S817","v":0},{"$f":"[1]Personnel!T817","v":0},0,{"$f":"[1]Personnel!V817","v":0},{"$f":"[1]Personnel!W817","v":0},0,{"$f":"[1]Personnel!Y817","v":0},{"$f":"[1]Personnel!Z817","v":0},0,0,0,0,null,null,null,null,null,null,null,null,null,null,null,null,null,null,null,null,null,null,null,null,null,null,null,null,null,{"$f":"[1]Personnel!G817","v":0}]
[0,{"$f":"IFERROR(INDEX(Settings!$AP$17:$AP$38,MATCH(Personnel!$G818,Settings!$AQ$17:$AQ$38,0)),0)","v":0},null,null,null,{"$f":"[1]Personnel!F818","v":0},{"$f":"IFERROR(INDEX((SLevel),MATCH(Personnel!BA818,SLevel202223,0)),0)","v":0},{"$f":"[1]Personnel!H818","v":0},{"$f":"[1]Personnel!I818","v":0},{"$f":"[1]Personnel!J818","v":0},{"$f":"[1]Personnel!P818","v":0},{"$f":"[1]Personnel!Q818","v":0},0,{"$f":"[1]Personnel!S818","v":0},{"$f":"[1]Personnel!S818","v":0},{"$f":"[1]Personnel!S818","v":0},{"$f":"[1]Personnel!T818","v":0},0,{"$f":"[1]Personnel!V818","v":0},{"$f":"[1]Personnel!W818","v":0},0,{"$f":"[1]Personnel!Y818","v":0},{"$f":"[1]Personnel!Z818","v":0},0,0,0,0,null,null,null,null,null,null,null,null,null,null,null,null,null,null,null,null,null,null,null,null,null,null,null,null,null,{"$f":"[1]Personnel!G818","v":0}]
[0,{"$f":"IFERROR(INDEX(Settings!$AP$17:$AP$38,MATCH(Personnel!$G819,Settings!$AQ$17:$AQ$38,0)),0)","v":0},null,null,null,{"$f":"[1]Personnel!F819","v":0},{"$f":"IFERROR(INDEX((SLevel),MATCH(Personnel!BA819,SLevel202223,0)),0)","v":0},{"$f":"[1]Personnel!H819","v":0},{"$f":"[1]Personnel!I819","v":0},{"$f":"[1]Personnel!J819","v":0},{"$f":"[1]Personnel!P819","v":0},{"$f":"[1]Personnel!Q819","v":0},0,{"$f":"[1]Personnel!S819","v":0},{"$f":"[1]Personnel!S819","v":0},{"$f":"[1]Personnel!S819","v":0},{"$f":"[1]Personnel!T819","v":0},0,{"$f":"[1]Personnel!V819","v":0},{"$f":"[1]Personnel!W819","v":0},0,{"$f":"[1]Personnel!Y819","v":0},{"$f":"[1]Personnel!Z819","v":0},0,0,0,0,null,null,null,null,null,null,null,null,null,null,null,null,null,null,null,null,null,null,null,null,null,null,null,null,null,{"$f":"[1]Personnel!G819","v":0}]
[0,{"$f":"IFERROR(INDEX(Settings!$AP$17:$AP$38,MATCH(Personnel!$G820,Settings!$AQ$17:$AQ$38,0)),0)","v":0},null,null,null,{"$f":"[1]Personnel!F820","v":0},{"$f":"IFERROR(INDEX((SLevel),MATCH(Personnel!BA820,SLevel202223,0)),0)","v":0},{"$f":"[1]Personnel!H820","v":0},{"$f":"[1]Personnel!I820","v":0},{"$f":"[1]Personnel!J820","v":0},{"$f":"[1]Personnel!P820","v":0},{"$f":"[1]Personnel!Q820","v":0},0,{"$f":"[1]Personnel!S820","v":0},{"$f":"[1]Personnel!S820","v":0},{"$f":"[1]Personnel!S820","v":0},{"$f":"[1]Personnel!T820","v":0},0,{"$f":"[1]Personnel!V820","v":0},{"$f":"[1]Personnel!W820","v":0},0,{"$f":"[1]Personnel!Y820","v":0},{"$f":"[1]Personnel!Z820","v":0},0,0,0,0,null,null,null,null,null,null,null,null,null,null,null,null,null,null,null,null,null,null,null,null,null,null,null,null,null,{"$f":"[1]Personnel!G820","v":0}]
[0,{"$f":"IFERROR(INDEX(Settings!$AP$17:$AP$38,MATCH(Personnel!$G821,Settings!$AQ$17:$AQ$38,0)),0)","v":0},null,null,null,{"$f":"[1]Personnel!F821","v":0},{"$f":"IFERROR(INDEX((SLevel),MATCH(Personnel!BA821,SLevel202223,0)),0)","v":0},{"$f":"[1]Personnel!H821","v":0},{"$f":"[1]Personnel!I821","v":0},{"$f":"[1]Personnel!J821","v":0},{"$f":"[1]Personnel!P821","v":0},{"$f":"[1]Personnel!Q821","v":0},0,{"$f":"[1]Personnel!S821","v":0},{"$f":"[1]Personnel!S821","v":0},{"$f":"[1]Personnel!S821","v":0},{"$f":"[1]Personnel!T821","v":0},0,{"$f":"[1]Personnel!V821","v":0},{"$f":"[1]Personnel!W821","v":0},0,{"$f":"[1]Personnel!Y821","v":0},{"$f":"[1]Personnel!Z821","v":0},0,0,0,0,null,null,null,null,null,null,null,null,null,null,null,null,null,null,null,null,null,null,null,null,null,null,null,null,null,{"$f":"[1]Personnel!G821","v":0}]
[0,{"$f":"IFERROR(INDEX(Settings!$AP$17:$AP$38,MATCH(Personnel!$G822,Settings!$AQ$17:$AQ$38,0)),0)","v":0},null,null,null,{"$f":"[1]Personnel!F822","v":0},{"$f":"IFERROR(INDEX((SLevel),MATCH(Personnel!BA822,SLevel202223,0)),0)","v":0},{"$f":"[1]Personnel!H822","v":0},{"$f":"[1]Personnel!I822","v":0},{"$f":"[1]Personnel!J822","v":0},{"$f":"[1]Personnel!P822","v":0},{"$f":"[1]Personnel!Q822","v":0},0,{"$f":"[1]Personnel!S822","v":0},{"$f":"[1]Personnel!S822","v":0},{"$f":"[1]Personnel!S822","v":0},{"$f":"[1]Personnel!T822","v":0},0,{"$f":"[1]Personnel!V822","v":0},{"$f":"[1]Personnel!W822","v":0},0,{"$f":"[1]Personnel!Y822","v":0},{"$f":"[1]Personnel!Z822","v":0},0,0,0,0,null,null,null,null,null,null,null,null,null,null,null,null,null,null,null,null,null,null,null,null,null,null,null,null,null,{"$f":"[1]Personnel!G822","v":0}]
[0,{"$f":"IFERROR(INDEX(Settings!$AP$17:$AP$38,MATCH(Personnel!$G823,Settings!$AQ$17:$AQ$38,0)),0)","v":0},null,null,null,{"$f":"[1]Personnel!F823","v":0},{"$f":"IFERROR(INDEX((SLevel),MATCH(Personnel!BA823,SLevel202223,0)),0)","v":0},{"$f":"[1]Personnel!H823","v":0},{"$f":"[1]Personnel!I823","v":0},{"$f":"[1]Personnel!J823","v":0},{"$f":"[1]Personnel!P823","v":0},{"$f":"[1]Personnel!Q823","v":0},0,{"$f":"[1]Personnel!S823","v":0},{"$f":"[1]Personnel!S823","v":0},{"$f":"[1]Personnel!S823","v":0},{"$f":"[1]Personnel!T823","v":0},0,{"$f":"[1]Personnel!V823","v":0},{"$f":"[1]Personnel!W823","v":0},0,{"$f":"[1]Personnel!Y823","v":0},{"$f":"[1]Personnel!Z823","v":0},0,0,0,0,null,null,null,null,null,null,null,null,null,null,null,null,null,null,null,null,null,null,null,null,null,null,null,null,null,{"$f":"[1]Personnel!G823","v":0}]
[0,{"$f":"IFERROR(INDEX(Settings!$AP$17:$AP$38,MATCH(Personnel!$G824,Settings!$AQ$17:$AQ$38,0)),0)","v":0},null,null,null,{"$f":"[1]Personnel!F824","v":0},{"$f":"IFERROR(INDEX((SLevel),MATCH(Personnel!BA824,SLevel202223,0)),0)","v":0},{"$f":"[1]Personnel!H824","v":0},{"$f":"[1]Personnel!I824","v":0},{"$f":"[1]Personnel!J824","v":0},{"$f":"[1]Personnel!P824","v":0},{"$f":"[1]Personnel!Q824","v":0},0,{"$f":"[1]Personnel!S824","v":0},{"$f":"[1]Personnel!S824","v":0},{"$f":"[1]Personnel!S824","v":0},{"$f":"[1]Personnel!T824","v":0},0,{"$f":"[1]Personnel!V824","v":0},{"$f":"[1]Personnel!W824","v":0},0,{"$f":"[1]Personnel!Y824","v":0},{"$f":"[1]Personnel!Z824","v":0},0,0,0,0,null,null,null,null,null,null,null,null,null,null,null,null,null,null,null,null,null,null,null,null,null,null,null,null,null,{"$f":"[1]Personnel!G824","v":0}]
[0,{"$f":"IFERROR(INDEX(Settings!$AP$17:$AP$38,MATCH(Personnel!$G825,Settings!$AQ$17:$AQ$38,0)),0)","v":0},null,null,null,{"$f":"[1]Personnel!F825","v":0},{"$f":"IFERROR(INDEX((SLevel),MATCH(Personnel!BA825,SLevel202223,0)),0)","v":0},{"$f":"[1]Personnel!H825","v":0},{"$f":"[1]Personnel!I825","v":0},{"$f":"[1]Personnel!J825","v":0},{"$f":"[1]Personnel!P825","v":0},{"$f":"[1]Personnel!Q825","v":0},0,{"$f":"[1]Personnel!S825","v":0},{"$f":"[1]Personnel!S825","v":0},{"$f":"[1]Personnel!S825","v":0},{"$f":"[1]Personnel!T825","v":0},0,{"$f":"[1]Personnel!V825","v":0},{"$f":"[1]Personnel!W825","v":0},0,{"$f":"[1]Personnel!Y825","v":0},{"$f":"[1]Personnel!Z825","v":0},0,0,0,0,null,null,null,null,null,null,null,null,null,null,null,null,null,null,null,null,null,null,null,null,null,null,null,null,null,{"$f":"[1]Personnel!G825","v":0}]
[0,{"$f":"IFERROR(INDEX(Settings!$AP$17:$AP$38,MATCH(Personnel!$G826,Settings!$AQ$17:$AQ$38,0)),0)","v":0},null,null,null,{"$f":"[1]Personnel!F826","v":0},{"$f":"IFERROR(INDEX((SLevel),MATCH(Personnel!BA826,SLevel202223,0)),0)","v":0},{"$f":"[1]Personnel!H826","v":0},{"$f":"[1]Personnel!I826","v":0},{"$f":"[1]Personnel!J826","v":0},{"$f":"[1]Personnel!P826","v":0},{"$f":"[1]Personnel!Q826","v":0},0,{"$f":"[1]Personnel!S826","v":0},{"$f":"[1]Personnel!S826","v":0},{"$f":"[1]Personnel!S826","v":0},{"$f":"[1]Personnel!T826","v":0},0,{"$f":"[1]Personnel!V826","v":0},{"$f":"[1]Personnel!W826","v":0},0,{"$f":"[1]Personnel!Y826","v":0},{"$f":"[1]Personnel!Z826","v":0},0,0,0,0,null,null,null,null,null,null,null,null,null,null,null,null,null,null,null,null,null,null,null,null,null,null,null,null,null,{"$f":"[1]Personnel!G826","v":0}]
[0,{"$f":"IFERROR(INDEX(Settings!$AP$17:$AP$38,MATCH(Personnel!$G827,Settings!$AQ$17:$AQ$38,0)),0)","v":0},null,null,null,{"$f":"[1]Personnel!F827","v":0},{"$f":"IFERROR(INDEX((SLevel),MATCH(Personnel!BA827,SLevel202223,0)),0)","v":0},{"$f":"[1]Personnel!H827","v":0},{"$f":"[1]Personnel!I827","v":0},{"$f":"[1]Personnel!J827","v":0},{"$f":"[1]Personnel!P827","v":0},{"$f":"[1]Personnel!Q827","v":0},0,{"$f":"[1]Personnel!S827","v":0},{"$f":"[1]Personnel!S827","v":0},{"$f":"[1]Personnel!S827","v":0},{"$f":"[1]Personnel!T827","v":0},0,{"$f":"[1]Personnel!V827","v":0},{"$f":"[1]Personnel!W827","v":0},0,{"$f":"[1]Personnel!Y827","v":0},{"$f":"[1]Personnel!Z827","v":0},0,0,0,0,null,null,null,null,null,null,null,null,null,null,null,null,null,null,null,null,null,null,null,null,null,null,null,null,null,{"$f":"[1]Personnel!G827","v":0}]
[0,{"$f":"IFERROR(INDEX(Settings!$AP$17:$AP$38,MATCH(Personnel!$G828,Settings!$AQ$17:$AQ$38,0)),0)","v":0},null,null,null,{"$f":"[1]Personnel!F828","v":0},{"$f":"IFERROR(INDEX((SLevel),MATCH(Personnel!BA828,SLevel202223,0)),0)","v":0},{"$f":"[1]Personnel!H828","v":0},{"$f":"[1]Personnel!I828","v":0},{"$f":"[1]Personnel!J828","v":0},{"$f":"[1]Personnel!P828","v":0},{"$f":"[1]Personnel!Q828","v":0},0,{"$f":"[1]Personnel!S828","v":0},{"$f":"[1]Personnel!S828","v":0},{"$f":"[1]Personnel!S828","v":0},{"$f":"[1]Personnel!T828","v":0},0,{"$f":"[1]Personnel!V828","v":0},{"$f":"[1]Personnel!W828","v":0},0,{"$f":"[1]Personnel!Y828","v":0},{"$f":"[1]Personnel!Z828","v":0},0,0,0,0,null,null,null,null,null,null,null,null,null,null,null,null,null,null,null,null,null,null,null,null,null,null,null,null,null,{"$f":"[1]Personnel!G828","v":0}]
[0,{"$f":"IFERROR(INDEX(Settings!$AP$17:$AP$38,MATCH(Personnel!$G829,Settings!$AQ$17:$AQ$38,0)),0)","v":0},null,null,null,{"$f":"[1]Personnel!F829","v":0},{"$f":"IFERROR(INDEX((SLevel),MATCH(Personnel!BA829,SLevel202223,0)),0)","v":0},{"$f":"[1]Personnel!H829","v":0},{"$f":"[1]Personnel!I829","v":0},{"$f":"[1]Personnel!J829","v":0},{"$f":"[1]Personnel!P829","v":0},{"$f":"[1]Personnel!Q829","v":0},0,{"$f":"[1]Personnel!S829","v":0},{"$f":"[1]Personnel!S829","v":0},{"$f":"[1]Personnel!S829","v":0},{"$f":"[1]Personnel!T829","v":0},0,{"$f":"[1]Personnel!V829","v":0},{"$f":"[1]Personnel!W829","v":0},0,{"$f":"[1]Personnel!Y829","v":0},{"$f":"[1]Personnel!Z829","v":0},0,0,0,0,null,null,null,null,null,null,null,null,null,null,null,null,null,null,null,null,null,null,null,null,null,null,null,null,null,{"$f":"[1]Personnel!G829","v":0}]
[0,{"$f":"IFERROR(INDEX(Settings!$AP$17:$AP$38,MATCH(Personnel!$G830,Settings!$AQ$17:$AQ$38,0)),0)","v":0},null,null,null,{"$f":"[1]Personnel!F830","v":0},{"$f":"IFERROR(INDEX((SLevel),MATCH(Personnel!BA830,SLevel202223,0)),0)","v":0},{"$f":"[1]Personnel!H830","v":0},{"$f":"[1]Personnel!I830","v":0},{"$f":"[1]Personnel!J830","v":0},{"$f":"[1]Personnel!P830","v":0},{"$f":"[1]Personnel!Q830","v":0},0,{"$f":"[1]Personnel!S830","v":0},{"$f":"[1]Personnel!S830","v":0},{"$f":"[1]Personnel!S830","v":0},{"$f":"[1]Personnel!T830","v":0},0,{"$f":"[1]Personnel!V830","v":0},{"$f":"[1]Personnel!W830","v":0},0,{"$f":"[1]Personnel!Y830","v":0},{"$f":"[1]Personnel!Z830","v":0},0,0,0,0,null,null,null,null,null,null,null,null,null,null,null,null,null,null,null,null,null,null,null,null,null,null,null,null,null,{"$f":"[1]Personnel!G830","v":0}]
[0,{"$f":"IFERROR(INDEX(Settings!$AP$17:$AP$38,MATCH(Personnel!$G831,Settings!$AQ$17:$AQ$38,0)),0)","v":0},null,null,null,{"$f":"[1]Personnel!F831","v":0},{"$f":"IFERROR(INDEX((SLevel),MATCH(Personnel!BA831,SLevel202223,0)),0)","v":0},{"$f":"[1]Personnel!H831","v":0},{"$f":"[1]Personnel!I831","v":0},{"$f":"[1]Personnel!J831","v":0},{"$f":"[1]Personnel!P831","v":0},{"$f":"[1]Personnel!Q831","v":0},0,{"$f":"[1]Personnel!S831","v":0},{"$f":"[1]Personnel!S831","v":0},{"$f":"[1]Personnel!S831","v":0},{"$f":"[1]Personnel!T831","v":0},0,{"$f":"[1]Personnel!V831","v":0},{"$f":"[1]Personnel!W831","v":0},0,{"$f":"[1]Personnel!Y831","v":0},{"$f":"[1]Personnel!Z831","v":0},0,0,0,0,null,null,null,null,null,null,null,null,null,null,null,null,null,null,null,null,null,null,null,null,null,null,null,null,null,{"$f":"[1]Personnel!G831","v":0}]
[0,{"$f":"IFERROR(INDEX(Settings!$AP$17:$AP$38,MATCH(Personnel!$G832,Settings!$AQ$17:$AQ$38,0)),0)","v":0},null,null,null,{"$f":"[1]Personnel!F832","v":0},{"$f":"IFERROR(INDEX((SLevel),MATCH(Personnel!BA832,SLevel202223,0)),0)","v":0},{"$f":"[1]Personnel!H832","v":0},{"$f":"[1]Personnel!I832","v":0},{"$f":"[1]Personnel!J832","v":0},{"$f":"[1]Personnel!P832","v":0},{"$f":"[1]Personnel!Q832","v":0},0,{"$f":"[1]Personnel!S832","v":0},{"$f":"[1]Personnel!S832","v":0},{"$f":"[1]Personnel!S832","v":0},{"$f":"[1]Personnel!T832","v":0},0,{"$f":"[1]Personnel!V832","v":0},{"$f":"[1]Personnel!W832","v":0},0,{"$f":"[1]Personnel!Y832","v":0},{"$f":"[1]Personnel!Z832","v":0},0,0,0,0,null,null,null,null,null,null,null,null,null,null,null,null,null,null,null,null,null,null,null,null,null,null,null,null,null,{"$f":"[1]Personnel!G832","v":0}]
[0,{"$f":"IFERROR(INDEX(Settings!$AP$17:$AP$38,MATCH(Personnel!$G833,Settings!$AQ$17:$AQ$38,0)),0)","v":0},null,null,null,{"$f":"[1]Personnel!F833","v":0},{"$f":"IFERROR(INDEX((SLevel),MATCH(Personnel!BA833,SLevel202223,0)),0)","v":0},{"$f":"[1]Personnel!H833","v":0},{"$f":"[1]Personnel!I833","v":0},{"$f":"[1]Personnel!J833","v":0},{"$f":"[1]Personnel!P833","v":0},{"$f":"[1]Personnel!Q833","v":0},0,{"$f":"[1]Personnel!S833","v":0},{"$f":"[1]Personnel!S833","v":0},{"$f":"[1]Personnel!S833","v":0},{"$f":"[1]Personnel!T833","v":0},0,{"$f":"[1]Personnel!V833","v":0},{"$f":"[1]Personnel!W833","v":0},0,{"$f":"[1]Personnel!Y833","v":0},{"$f":"[1]Personnel!Z833","v":0},0,0,0,0,null,null,null,null,null,null,null,null,null,null,null,null,null,null,null,null,null,null,null,null,null,null,null,null,null,{"$f":"[1]Personnel!G833","v":0}]
[0,{"$f":"IFERROR(INDEX(Settings!$AP$17:$AP$38,MATCH(Personnel!$G834,Settings!$AQ$17:$AQ$38,0)),0)","v":0},null,null,null,{"$f":"[1]Personnel!F834","v":0},{"$f":"IFERROR(INDEX((SLevel),MATCH(Personnel!BA834,SLevel202223,0)),0)","v":0},{"$f":"[1]Personnel!H834","v":0},{"$f":"[1]Personnel!I834","v":0},{"$f":"[1]Personnel!J834","v":0},{"$f":"[1]Personnel!P834","v":0},{"$f":"[1]Personnel!Q834","v":0},0,{"$f":"[1]Personnel!S834","v":0},{"$f":"[1]Personnel!S834","v":0},{"$f":"[1]Personnel!S834","v":0},{"$f":"[1]Personnel!T834","v":0},0,{"$f":"[1]Personnel!V834","v":0},{"$f":"[1]Personnel!W834","v":0},0,{"$f":"[1]Personnel!Y834","v":0},{"$f":"[1]Personnel!Z834","v":0},0,0,0,0,null,null,null,null,null,null,null,null,null,null,null,null,null,null,null,null,null,null,null,null,null,null,null,null,null,{"$f":"[1]Personnel!G834","v":0}]
[0,{"$f":"IFERROR(INDEX(Settings!$AP$17:$AP$38,MATCH(Personnel!$G835,Settings!$AQ$17:$AQ$38,0)),0)","v":0},null,null,null,{"$f":"[1]Personnel!F835","v":0},{"$f":"IFERROR(INDEX((SLevel),MATCH(Personnel!BA835,SLevel202223,0)),0)","v":0},{"$f":"[1]Personnel!H835","v":0},{"$f":"[1]Personnel!I835","v":0},{"$f":"[1]Personnel!J835","v":0},{"$f":"[1]Personnel!P835","v":0},{"$f":"[1]Personnel!Q835","v":0},0,{"$f":"[1]Personnel!S835","v":0},{"$f":"[1]Personnel!S835","v":0},{"$f":"[1]Personnel!S835","v":0},{"$f":"[1]Personnel!T835","v":0},0,{"$f":"[1]Personnel!V835","v":0},{"$f":"[1]Personnel!W835","v":0},0,{"$f":"[1]Personnel!Y835","v":0},{"$f":"[1]Personnel!Z835","v":0},0,0,0,0,null,null,null,null,null,null,null,null,null,null,null,null,null,null,null,null,null,null,null,null,null,null,null,null,null,{"$f":"[1]Personnel!G835","v":0}]
[0,{"$f":"IFERROR(INDEX(Settings!$AP$17:$AP$38,MATCH(Personnel!$G836,Settings!$AQ$17:$AQ$38,0)),0)","v":0},null,null,null,{"$f":"[1]Personnel!F836","v":0},{"$f":"IFERROR(INDEX((SLevel),MATCH(Personnel!BA836,SLevel202223,0)),0)","v":0},{"$f":"[1]Personnel!H836","v":0},{"$f":"[1]Personnel!I836","v":0},{"$f":"[1]Personnel!J836","v":0},{"$f":"[1]Personnel!P836","v":0},{"$f":"[1]Personnel!Q836","v":0},0,{"$f":"[1]Personnel!S836","v":0},{"$f":"[1]Personnel!S836","v":0},{"$f":"[1]Personnel!S836","v":0},{"$f":"[1]Personnel!T836","v":0},0,{"$f":"[1]Personnel!V836","v":0},{"$f":"[1]Personnel!W836","v":0},0,{"$f":"[1]Personnel!Y836","v":0},{"$f":"[1]Personnel!Z836","v":0},0,0,0,0,null,null,null,null,null,null,null,null,null,null,null,null,null,null,null,null,null,null,null,null,null,null,null,null,null,{"$f":"[1]Personnel!G836","v":0}]
[0,{"$f":"IFERROR(INDEX(Settings!$AP$17:$AP$38,MATCH(Personnel!$G837,Settings!$AQ$17:$AQ$38,0)),0)","v":0},null,null,null,{"$f":"[1]Personnel!F837","v":0},{"$f":"IFERROR(INDEX((SLevel),MATCH(Personnel!BA837,SLevel202223,0)),0)","v":0},{"$f":"[1]Personnel!H837","v":0},{"$f":"[1]Personnel!I837","v":0},{"$f":"[1]Personnel!J837","v":0},{"$f":"[1]Personnel!P837","v":0},{"$f":"[1]Personnel!Q837","v":0},0,{"$f":"[1]Personnel!S837","v":0},{"$f":"[1]Personnel!S837","v":0},{"$f":"[1]Personnel!S837","v":0},{"$f":"[1]Personnel!T837","v":0},0,{"$f":"[1]Personnel!V837","v":0},{"$f":"[1]Personnel!W837","v":0},0,{"$f":"[1]Personnel!Y837","v":0},{"$f":"[1]Personnel!Z837","v":0},0,0,0,0,null,null,null,null,null,null,null,null,null,null,null,null,null,null,null,null,null,null,null,null,null,null,null,null,null,{"$f":"[1]Personnel!G837","v":0}]
[0,{"$f":"IFERROR(INDEX(Settings!$AP$17:$AP$38,MATCH(Personnel!$G838,Settings!$AQ$17:$AQ$38,0)),0)","v":0},null,null,null,{"$f":"[1]Personnel!F838","v":0},{"$f":"IFERROR(INDEX((SLevel),MATCH(Personnel!BA838,SLevel202223,0)),0)","v":0},{"$f":"[1]Personnel!H838","v":0},{"$f":"[1]Personnel!I838","v":0},{"$f":"[1]Personnel!J838","v":0},{"$f":"[1]Personnel!P838","v":0},{"$f":"[1]Personnel!Q838","v":0},0,{"$f":"[1]Personnel!S838","v":0},{"$f":"[1]Personnel!S838","v":0},{"$f":"[1]Personnel!S838","v":0},{"$f":"[1]Personnel!T838","v":0},0,{"$f":"[1]Personnel!V838","v":0},{"$f":"[1]Personnel!W838","v":0},0,{"$f":"[1]Personnel!Y838","v":0},{"$f":"[1]Personnel!Z838","v":0},0,0,0,0,null,null,null,null,null,null,null,null,null,null,null,null,null,null,null,null,null,null,null,null,null,null,null,null,null,{"$f":"[1]Personnel!G838","v":0}]
[0,{"$f":"IFERROR(INDEX(Settings!$AP$17:$AP$38,MATCH(Personnel!$G839,Settings!$AQ$17:$AQ$38,0)),0)","v":0},null,null,null,{"$f":"[1]Personnel!F839","v":0},{"$f":"IFERROR(INDEX((SLevel),MATCH(Personnel!BA839,SLevel202223,0)),0)","v":0},{"$f":"[1]Personnel!H839","v":0},{"$f":"[1]Personnel!I839","v":0},{"$f":"[1]Personnel!J839","v":0},{"$f":"[1]Personnel!P839","v":0},{"$f":"[1]Personnel!Q839","v":0},0,{"$f":"[1]Personnel!S839","v":0},{"$f":"[1]Personnel!S839","v":0},{"$f":"[1]Personnel!S839","v":0},{"$f":"[1]Personnel!T839","v":0},0,{"$f":"[1]Personnel!V839","v":0},{"$f":"[1]Personnel!W839","v":0},0,{"$f":"[1]Personnel!Y839","v":0},{"$f":"[1]Personnel!Z839","v":0},0,0,0,0,null,null,null,null,null,null,null,null,null,null,null,null,null,null,null,null,null,null,null,null,null,null,null,null,null,{"$f":"[1]Personnel!G839","v":0}]
[0,{"$f":"IFERROR(INDEX(Settings!$AP$17:$AP$38,MATCH(Personnel!$G840,Settings!$AQ$17:$AQ$38,0)),0)","v":0},null,null,null,{"$f":"[1]Personnel!F840","v":0},{"$f":"IFERROR(INDEX((SLevel),MATCH(Personnel!BA840,SLevel202223,0)),0)","v":0},{"$f":"[1]Personnel!H840","v":0},{"$f":"[1]Personnel!I840","v":0},{"$f":"[1]Personnel!J840","v":0},{"$f":"[1]Personnel!P840","v":0},{"$f":"[1]Personnel!Q840","v":0},0,{"$f":"[1]Personnel!S840","v":0},{"$f":"[1]Personnel!S840","v":0},{"$f":"[1]Personnel!S840","v":0},{"$f":"[1]Personnel!T840","v":0},0,{"$f":"[1]Personnel!V840","v":0},{"$f":"[1]Personnel!W840","v":0},0,{"$f":"[1]Personnel!Y840","v":0},{"$f":"[1]Personnel!Z840","v":0},0,0,0,0,null,null,null,null,null,null,null,null,null,null,null,null,null,null,null,null,null,null,null,null,null,null,null,null,null,{"$f":"[1]Personnel!G840","v":0}]
[0,{"$f":"IFERROR(INDEX(Settings!$AP$17:$AP$38,MATCH(Personnel!$G841,Settings!$AQ$17:$AQ$38,0)),0)","v":0},null,null,null,{"$f":"[1]Personnel!F841","v":0},{"$f":"IFERROR(INDEX((SLevel),MATCH(Personnel!BA841,SLevel202223,0)),0)","v":0},{"$f":"[1]Personnel!H841","v":0},{"$f":"[1]Personnel!I841","v":0},{"$f":"[1]Personnel!J841","v":0},{"$f":"[1]Personnel!P841","v":0},{"$f":"[1]Personnel!Q841","v":0},0,{"$f":"[1]Personnel!S841","v":0},{"$f":"[1]Personnel!S841","v":0},{"$f":"[1]Personnel!S841","v":0},{"$f":"[1]Personnel!T841","v":0},0,{"$f":"[1]Personnel!V841","v":0},{"$f":"[1]Personnel!W841","v":0},0,{"$f":"[1]Personnel!Y841","v":0},{"$f":"[1]Personnel!Z841","v":0},0,0,0,0,null,null,null,null,null,null,null,null,null,null,null,null,null,null,null,null,null,null,null,null,null,null,null,null,null,{"$f":"[1]Personnel!G841","v":0}]
[0,{"$f":"IFERROR(INDEX(Settings!$AP$17:$AP$38,MATCH(Personnel!$G842,Settings!$AQ$17:$AQ$38,0)),0)","v":0},null,null,null,{"$f":"[1]Personnel!F842","v":0},{"$f":"IFERROR(INDEX((SLevel),MATCH(Personnel!BA842,SLevel202223,0)),0)","v":0},{"$f":"[1]Personnel!H842","v":0},{"$f":"[1]Personnel!I842","v":0},{"$f":"[1]Personnel!J842","v":0},{"$f":"[1]Personnel!P842","v":0},{"$f":"[1]Personnel!Q842","v":0},0,{"$f":"[1]Personnel!S842","v":0},{"$f":"[1]Personnel!S842","v":0},{"$f":"[1]Personnel!S842","v":0},{"$f":"[1]Personnel!T842","v":0},0,{"$f":"[1]Personnel!V842","v":0},{"$f":"[1]Personnel!W842","v":0},0,{"$f":"[1]Personnel!Y842","v":0},{"$f":"[1]Personnel!Z842","v":0},0,0,0,0,null,null,null,null,null,null,null,null,null,null,null,null,null,null,null,null,null,null,null,null,null,null,null,null,null,{"$f":"[1]Personnel!G842","v":0}]
[0,{"$f":"IFERROR(INDEX(Settings!$AP$17:$AP$38,MATCH(Personnel!$G843,Settings!$AQ$17:$AQ$38,0)),0)","v":0},null,null,null,{"$f":"[1]Personnel!F843","v":0},{"$f":"IFERROR(INDEX((SLevel),MATCH(Personnel!BA843,SLevel202223,0)),0)","v":0},{"$f":"[1]Personnel!H843","v":0},{"$f":"[1]Personnel!I843","v":0},{"$f":"[1]Personnel!J843","v":0},{"$f":"[1]Personnel!P843","v":0},{"$f":"[1]Personnel!Q843","v":0},0,{"$f":"[1]Personnel!S843","v":0},{"$f":"[1]Personnel!S843","v":0},{"$f":"[1]Personnel!S843","v":0},{"$f":"[1]Personnel!T843","v":0},0,{"$f":"[1]Personnel!V843","v":0},{"$f":"[1]Personnel!W843","v":0},0,{"$f":"[1]Personnel!Y843","v":0},{"$f":"[1]Personnel!Z843","v":0},0,0,0,0,null,null,null,null,null,null,null,null,null,null,null,null,null,null,null,null,null,null,null,null,null,null,null,null,null,{"$f":"[1]Personnel!G843","v":0}]
[{"$f":"IF(SUM(K844:AA844)>0,1,0)","v":0},{"$f":"IFERROR(INDEX(Settings!$AP$17:$AP$38,MATCH(Personnel!$G844,Settings!$AQ$17:$AQ$38,0)),0)","v":0},null,null,null,{"$f":"[1]Personnel!F844","v":0},{"$f":"IFERROR(INDEX((SLevel),MATCH(Personnel!BA844,SLevel202223,0)),0)","v":0},{"$f":"[1]Personnel!H844","v":0},{"$f":"[1]Personnel!I844","v":0},{"$f":"[1]Personnel!J844","v":0},{"$f":"[1]Personnel!P844","v":0},{"$f":"[1]Personnel!Q844","v":0},0,{"$f":"[1]Personnel!S844","v":0},{"$f":"[1]Personnel!S844","v":0},{"$f":"[1]Personnel!S844","v":0},{"$f":"[1]Personnel!T844","v":0},0,{"$f":"[1]Personnel!V844","v":0},{"$f":"[1]Personnel!W844","v":0},0,{"$f":"[1]Personnel!Y844","v":0},{"$f":"[1]Personnel!Z844","v":0},0,0,0,0,null,null,null,null,null,null,null,null,null,null,null,null,null,null,null,null,null,null,null,null,null,null,null,null,null,{"$f":"[1]Personnel!G844","v":0}]
[0,{"$f":"IFERROR(INDEX(Settings!$AP$17:$AP$38,MATCH(Personnel!$G845,Settings!$AQ$17:$AQ$38,0)),0)","v":0},null,null,null,{"$f":"[1]Personnel!F845","v":0},{"$f":"IFERROR(INDEX((SLevel),MATCH(Personnel!BA845,SLevel202223,0)),0)","v":0},{"$f":"[1]Personnel!H845","v":0},{"$f":"[1]Personnel!I845","v":0},{"$f":"[1]Personnel!J845","v":0},{"$f":"[1]Personnel!P845","v":0},{"$f":"[1]Personnel!Q845","v":0},{"$f":"ROUND(IF(ISERROR(L845/K845),0,(L845/K845)),0)","v":0},{"$f":"[1]Personnel!S845","v":0},{"$f":"[1]Personnel!S845","v":0},{"$f":"[1]Personnel!S845","v":0},{"$f":"[1]Personnel!T845","v":0},{"$f":"ROUND(IF(ISERROR(Q845/P845),0,(Q845/P845)),0)","v":0},{"$f":"[1]Personnel!V845","v":0},{"$f":"[1]Personnel!W845","v":0},{"$f":"ROUND(IF(ISERROR(T845/S845),0,(T845/S845)),0)","v":0},{"$f":"[1]Personnel!Y845","v":0},{"$f":"[1]Personnel!Z845","v":0},{"$f":"ROUND(IF(ISERROR(W845/V845),0,(W845/V845)),0)","v":0},0,0,{"$f":"ROUND(IF(ISERROR(Z845/Y845),0,(Z845/Y845)),0)","v":0},null,null,null,null,null,null,null,null,null,null,null,null,null,null,null,null,null,null,null,null,null,null,null,null,null,{"$f":"[1]Personnel!G845","v":0}]
[0,{"$f":"IFERROR(INDEX(Settings!$AP$17:$AP$38,MATCH(Personnel!$G846,Settings!$AQ$17:$AQ$38,0)),0)","v":0},null,null,null,{"$f":"[1]Personnel!F846","v":0},{"$f":"IFERROR(INDEX((SLevel),MATCH(Personnel!BA846,SLevel202223,0)),0)","v":0},{"$f":"[1]Personnel!H846","v":0},{"$f":"[1]Personnel!I846","v":0},{"$f":"[1]Personnel!J846","v":0},{"$f":"[1]Personnel!P846","v":0},{"$f":"[1]Personnel!Q846","v":0},0,{"$f":"[1]Personnel!S846","v":0},{"$f":"[1]Personnel!S846","v":0},{"$f":"[1]Personnel!S846","v":0},{"$f":"[1]Personnel!T846","v":0},0,{"$f":"[1]Personnel!V846","v":0},{"$f":"[1]Personnel!W846","v":0},0,{"$f":"[1]Personnel!Y846","v":0},{"$f":"[1]Personnel!Z846","v":0},0,0,0,0,null,null,null,null,null,null,null,null,null,null,null,null,null,null,null,null,null,null,null,null,null,null,null,null,null,{"$f":"[1]Personnel!G846","v":0}]
[0,{"$f":"IFERROR(INDEX(Settings!$AP$17:$AP$38,MATCH(Personnel!$G847,Settings!$AQ$17:$AQ$38,0)),0)","v":0},null,null,null,{"$f":"[1]Personnel!F847","v":0},{"$f":"IFERROR(INDEX((SLevel),MATCH(Personnel!BA847,SLevel202223,0)),0)","v":0},{"$f":"[1]Personnel!H847","v":0},{"$f":"[1]Personnel!I847","v":0},{"$f":"[1]Personnel!J847","v":0},{"$f":"[1]Personnel!P847","v":0},{"$f":"[1]Personnel!Q847","v":0},0,{"$f":"[1]Personnel!S847","v":0},{"$f":"[1]Personnel!S847","v":0},{"$f":"[1]Personnel!S847","v":0},{"$f":"[1]Personnel!T847","v":0},0,{"$f":"[1]Personnel!V847","v":0},{"$f":"[1]Personnel!W847","v":0},0,{"$f":"[1]Personnel!Y847","v":0},{"$f":"[1]Personnel!Z847","v":0},0,0,0,0,null,null,null,null,null,null,null,null,null,null,null,null,null,null,null,null,null,null,null,null,null,null,null,null,null,{"$f":"[1]Personnel!G847","v":0}]
[0,{"$f":"IFERROR(INDEX(Settings!$AP$17:$AP$38,MATCH(Personnel!$G848,Settings!$AQ$17:$AQ$38,0)),0)","v":0},null,null,null,{"$f":"[1]Personnel!F848","v":0},{"$f":"IFERROR(INDEX((SLevel),MATCH(Personnel!BA848,SLevel202223,0)),0)","v":0},{"$f":"[1]Personnel!H848","v":0},{"$f":"[1]Personnel!I848","v":0},{"$f":"[1]Personnel!J848","v":0},{"$f":"[1]Personnel!P848","v":0},{"$f":"[1]Personnel!Q848","v":0},0,{"$f":"[1]Personnel!S848","v":0},{"$f":"[1]Personnel!S848","v":0},{"$f":"[1]Personnel!S848","v":0},{"$f":"[1]Personnel!T848","v":0},0,{"$f":"[1]Personnel!V848","v":0},{"$f":"[1]Personnel!W848","v":0},0,{"$f":"[1]Personnel!Y848","v":0},{"$f":"[1]Personnel!Z848","v":0},0,0,0,0,null,null,null,null,null,null,null,null,null,null,null,null,null,null,null,null,null,null,null,null,null,null,null,null,null,{"$f":"[1]Personnel!G848","v":0}]
[0,{"$f":"IFERROR(INDEX(Settings!$AP$17:$AP$38,MATCH(Personnel!$G849,Settings!$AQ$17:$AQ$38,0)),0)","v":0},null,null,null,{"$f":"[1]Personnel!F849","v":0},{"$f":"IFERROR(INDEX((SLevel),MATCH(Personnel!BA849,SLevel202223,0)),0)","v":0},{"$f":"[1]Personnel!H849","v":0},{"$f":"[1]Personnel!I849","v":0},{"$f":"[1]Personnel!J849","v":0},{"$f":"[1]Personnel!P849","v":0},{"$f":"[1]Personnel!Q849","v":0},0,{"$f":"[1]Personnel!S849","v":0},{"$f":"[1]Personnel!S849","v":0},{"$f":"[1]Personnel!S849","v":0},{"$f":"[1]Personnel!T849","v":0},0,{"$f":"[1]Personnel!V849","v":0},{"$f":"[1]Personnel!W849","v":0},0,{"$f":"[1]Personnel!Y849","v":0},{"$f":"[1]Personnel!Z849","v":0},0,0,0,0,null,null,null,null,null,null,null,null,null,null,null,null,null,null,null,null,null,null,null,null,null,null,null,null,null,{"$f":"[1]Personnel!G849","v":0}]
[0,{"$f":"IFERROR(INDEX(Settings!$AP$17:$AP$38,MATCH(Personnel!$G850,Settings!$AQ$17:$AQ$38,0)),0)","v":0},null,null,null,{"$f":"[1]Personnel!F850","v":0},{"$f":"IFERROR(INDEX((SLevel),MATCH(Personnel!BA850,SLevel202223,0)),0)","v":0},{"$f":"[1]Personnel!H850","v":0},{"$f":"[1]Personnel!I850","v":0},{"$f":"[1]Personnel!J850","v":0},{"$f":"[1]Personnel!P850","v":0},{"$f":"[1]Personnel!Q850","v":0},0,{"$f":"[1]Personnel!S850","v":0},{"$f":"[1]Personnel!S850","v":0},{"$f":"[1]Personnel!S850","v":0},{"$f":"[1]Personnel!T850","v":0},0,{"$f":"[1]Personnel!V850","v":0},{"$f":"[1]Personnel!W850","v":0},0,{"$f":"[1]Personnel!Y850","v":0},{"$f":"[1]Personnel!Z850","v":0},0,0,0,0,null,null,null,null,null,null,null,null,null,null,null,null,null,null,null,null,null,null,null,null,null,null,null,null,null,{"$f":"[1]Personnel!G850","v":0}]
[0,{"$f":"IFERROR(INDEX(Settings!$AP$17:$AP$38,MATCH(Personnel!$G851,Settings!$AQ$17:$AQ$38,0)),0)","v":0},null,null,null,{"$f":"[1]Personnel!F851","v":0},{"$f":"IFERROR(INDEX((SLevel),MATCH(Personnel!BA851,SLevel202223,0)),0)","v":0},{"$f":"[1]Personnel!H851","v":0},{"$f":"[1]Personnel!I851","v":0},{"$f":"[1]Personnel!J851","v":0},{"$f":"[1]Personnel!P851","v":0},{"$f":"[1]Personnel!Q851","v":0},0,{"$f":"[1]Personnel!S851","v":0},{"$f":"[1]Personnel!S851","v":0},{"$f":"[1]Personnel!S851","v":0},{"$f":"[1]Personnel!T851","v":0},0,{"$f":"[1]Personnel!V851","v":0},{"$f":"[1]Personnel!W851","v":0},0,{"$f":"[1]Personnel!Y851","v":0},{"$f":"[1]Personnel!Z851","v":0},0,0,0,0,null,null,null,null,null,null,null,null,null,null,null,null,null,null,null,null,null,null,null,null,null,null,null,null,null,{"$f":"[1]Personnel!G851","v":0}]
[0,{"$f":"IFERROR(INDEX(Settings!$AP$17:$AP$38,MATCH(Personnel!$G852,Settings!$AQ$17:$AQ$38,0)),0)","v":0},null,null,null,{"$f":"[1]Personnel!F852","v":0},{"$f":"IFERROR(INDEX((SLevel),MATCH(Personnel!BA852,SLevel202223,0)),0)","v":0},{"$f":"[1]Personnel!H852","v":0},{"$f":"[1]Personnel!I852","v":0},{"$f":"[1]Personnel!J852","v":0},{"$f":"[1]Personnel!P852","v":0},{"$f":"[1]Personnel!Q852","v":0},0,{"$f":"[1]Personnel!S852","v":0},{"$f":"[1]Personnel!S852","v":0},{"$f":"[1]Personnel!S852","v":0},{"$f":"[1]Personnel!T852","v":0},0,{"$f":"[1]Personnel!V852","v":0},{"$f":"[1]Personnel!W852","v":0},0,{"$f":"[1]Personnel!Y852","v":0},{"$f":"[1]Personnel!Z852","v":0},0,0,0,0,null,null,null,null,null,null,null,null,null,null,null,null,null,null,null,null,null,null,null,null,null,null,null,null,null,{"$f":"[1]Personnel!G852","v":0}]
[0,{"$f":"IFERROR(INDEX(Settings!$AP$17:$AP$38,MATCH(Personnel!$G853,Settings!$AQ$17:$AQ$38,0)),0)","v":0},null,null,null,{"$f":"[1]Personnel!F853","v":0},{"$f":"IFERROR(INDEX((SLevel),MATCH(Personnel!BA853,SLevel202223,0)),0)","v":0},{"$f":"[1]Personnel!H853","v":0},{"$f":"[1]Personnel!I853","v":0},{"$f":"[1]Personnel!J853","v":0},{"$f":"[1]Personnel!P853","v":0},{"$f":"[1]Personnel!Q853","v":0},0,{"$f":"[1]Personnel!S853","v":0},{"$f":"[1]Personnel!S853","v":0},{"$f":"[1]Personnel!S853","v":0},{"$f":"[1]Personnel!T853","v":0},0,{"$f":"[1]Personnel!V853","v":0},{"$f":"[1]Personnel!W853","v":0},0,{"$f":"[1]Personnel!Y853","v":0},{"$f":"[1]Personnel!Z853","v":0},0,0,0,0,null,null,null,null,null,null,null,null,null,null,null,null,null,null,null,null,null,null,null,null,null,null,null,null,null,{"$f":"[1]Personnel!G853","v":0}]
[0,{"$f":"IFERROR(INDEX(Settings!$AP$17:$AP$38,MATCH(Personnel!$G854,Settings!$AQ$17:$AQ$38,0)),0)","v":0},null,null,null,{"$f":"[1]Personnel!F854","v":0},{"$f":"IFERROR(INDEX((SLevel),MATCH(Personnel!BA854,SLevel202223,0)),0)","v":0},{"$f":"[1]Personnel!H854","v":0},{"$f":"[1]Personnel!I854","v":0},{"$f":"[1]Personnel!J854","v":0},{"$f":"[1]Personnel!P854","v":0},{"$f":"[1]Personnel!Q854","v":0},0,{"$f":"[1]Personnel!S854","v":0},{"$f":"[1]Personnel!S854","v":0},{"$f":"[1]Personnel!S854","v":0},{"$f":"[1]Personnel!T854","v":0},0,{"$f":"[1]Personnel!V854","v":0},{"$f":"[1]Personnel!W854","v":0},0,{"$f":"[1]Personnel!Y854","v":0},{"$f":"[1]Personnel!Z854","v":0},0,0,0,0,null,null,null,null,null,null,null,null,null,null,null,null,null,null,null,null,null,null,null,null,null,null,null,null,null,{"$f":"[1]Personnel!G854","v":0}]
[0,{"$f":"IFERROR(INDEX(Settings!$AP$17:$AP$38,MATCH(Personnel!$G855,Settings!$AQ$17:$AQ$38,0)),0)","v":0},null,null,null,{"$f":"[1]Personnel!F855","v":0},{"$f":"IFERROR(INDEX((SLevel),MATCH(Personnel!BA855,SLevel202223,0)),0)","v":0},{"$f":"[1]Personnel!H855","v":0},{"$f":"[1]Personnel!I855","v":0},{"$f":"[1]Personnel!J855","v":0},{"$f":"[1]Personnel!P855","v":0},{"$f":"[1]Personnel!Q855","v":0},0,{"$f":"[1]Personnel!S855","v":0},{"$f":"[1]Personnel!S855","v":0},{"$f":"[1]Personnel!S855","v":0},{"$f":"[1]Personnel!T855","v":0},0,{"$f":"[1]Personnel!V855","v":0},{"$f":"[1]Personnel!W855","v":0},0,{"$f":"[1]Personnel!Y855","v":0},{"$f":"[1]Personnel!Z855","v":0},0,0,0,0,null,null,null,null,null,null,null,null,null,null,null,null,null,null,null,null,null,null,null,null,null,null,null,null,null,{"$f":"[1]Personnel!G855","v":0}]
[0,{"$f":"IFERROR(INDEX(Settings!$AP$17:$AP$38,MATCH(Personnel!$G856,Settings!$AQ$17:$AQ$38,0)),0)","v":0},null,null,null,{"$f":"[1]Personnel!F856","v":0},{"$f":"IFERROR(INDEX((SLevel),MATCH(Personnel!BA856,SLevel202223,0)),0)","v":0},{"$f":"[1]Personnel!H856","v":0},{"$f":"[1]Personnel!I856","v":0},{"$f":"[1]Personnel!J856","v":0},{"$f":"[1]Personnel!P856","v":0},{"$f":"[1]Personnel!Q856","v":0},0,{"$f":"[1]Personnel!S856","v":0},{"$f":"[1]Personnel!S856","v":0},{"$f":"[1]Personnel!S856","v":0},{"$f":"[1]Personnel!T856","v":0},0,{"$f":"[1]Personnel!V856","v":0},{"$f":"[1]Personnel!W856","v":0},0,{"$f":"[1]Personnel!Y856","v":0},{"$f":"[1]Personnel!Z856","v":0},0,0,0,0,null,null,null,null,null,null,null,null,null,null,null,null,null,null,null,null,null,null,null,null,null,null,null,null,null,{"$f":"[1]Personnel!G856","v":0}]
[0,{"$f":"IFERROR(INDEX(Settings!$AP$17:$AP$38,MATCH(Personnel!$G857,Settings!$AQ$17:$AQ$38,0)),0)","v":0},null,null,null,{"$f":"[1]Personnel!F857","v":0},{"$f":"IFERROR(INDEX((SLevel),MATCH(Personnel!BA857,SLevel202223,0)),0)","v":0},{"$f":"[1]Personnel!H857","v":0},{"$f":"[1]Personnel!I857","v":0},{"$f":"[1]Personnel!J857","v":0},{"$f":"[1]Personnel!P857","v":0},{"$f":"[1]Personnel!Q857","v":0},0,{"$f":"[1]Personnel!S857","v":0},{"$f":"[1]Personnel!S857","v":0},{"$f":"[1]Personnel!S857","v":0},{"$f":"[1]Personnel!T857","v":0},0,{"$f":"[1]Personnel!V857","v":0},{"$f":"[1]Personnel!W857","v":0},0,{"$f":"[1]Personnel!Y857","v":0},{"$f":"[1]Personnel!Z857","v":0},0,0,0,0,null,null,null,null,null,null,null,null,null,null,null,null,null,null,null,null,null,null,null,null,null,null,null,null,null,{"$f":"[1]Personnel!G857","v":0}]
[0,{"$f":"IFERROR(INDEX(Settings!$AP$17:$AP$38,MATCH(Personnel!$G858,Settings!$AQ$17:$AQ$38,0)),0)","v":0},null,null,null,{"$f":"[1]Personnel!F858","v":0},{"$f":"IFERROR(INDEX((SLevel),MATCH(Personnel!BA858,SLevel202223,0)),0)","v":0},{"$f":"[1]Personnel!H858","v":0},{"$f":"[1]Personnel!I858","v":0},{"$f":"[1]Personnel!J858","v":0},{"$f":"[1]Personnel!P858","v":0},{"$f":"[1]Personnel!Q858","v":0},0,{"$f":"[1]Personnel!S858","v":0},{"$f":"[1]Personnel!S858","v":0},{"$f":"[1]Personnel!S858","v":0},{"$f":"[1]Personnel!T858","v":0},0,{"$f":"[1]Personnel!V858","v":0},{"$f":"[1]Personnel!W858","v":0},0,{"$f":"[1]Personnel!Y858","v":0},{"$f":"[1]Personnel!Z858","v":0},0,0,0,0,null,null,null,null,null,null,null,null,null,null,null,null,null,null,null,null,null,null,null,null,null,null,null,null,null,{"$f":"[1]Personnel!G858","v":0}]
[0,{"$f":"IFERROR(INDEX(Settings!$AP$17:$AP$38,MATCH(Personnel!$G859,Settings!$AQ$17:$AQ$38,0)),0)","v":0},null,null,null,{"$f":"[1]Personnel!F859","v":0},{"$f":"IFERROR(INDEX((SLevel),MATCH(Personnel!BA859,SLevel202223,0)),0)","v":0},{"$f":"[1]Personnel!H859","v":0},{"$f":"[1]Personnel!I859","v":0},{"$f":"[1]Personnel!J859","v":0},{"$f":"[1]Personnel!P859","v":0},{"$f":"[1]Personnel!Q859","v":0},0,{"$f":"[1]Personnel!S859","v":0},{"$f":"[1]Personnel!S859","v":0},{"$f":"[1]Personnel!S859","v":0},{"$f":"[1]Personnel!T859","v":0},0,{"$f":"[1]Personnel!V859","v":0},{"$f":"[1]Personnel!W859","v":0},0,{"$f":"[1]Personnel!Y859","v":0},{"$f":"[1]Personnel!Z859","v":0},0,0,0,0,null,null,null,null,null,null,null,null,null,null,null,null,null,null,null,null,null,null,null,null,null,null,null,null,null,{"$f":"[1]Personnel!G859","v":0}]
[0,{"$f":"IFERROR(INDEX(Settings!$AP$17:$AP$38,MATCH(Personnel!$G860,Settings!$AQ$17:$AQ$38,0)),0)","v":0},null,null,null,{"$f":"[1]Personnel!F860","v":0},{"$f":"IFERROR(INDEX((SLevel),MATCH(Personnel!BA860,SLevel202223,0)),0)","v":0},{"$f":"[1]Personnel!H860","v":0},{"$f":"[1]Personnel!I860","v":0},{"$f":"[1]Personnel!J860","v":0},{"$f":"[1]Personnel!P860","v":0},{"$f":"[1]Personnel!Q860","v":0},0,{"$f":"[1]Personnel!S860","v":0},{"$f":"[1]Personnel!S860","v":0},{"$f":"[1]Personnel!S860","v":0},{"$f":"[1]Personnel!T860","v":0},0,{"$f":"[1]Personnel!V860","v":0},{"$f":"[1]Personnel!W860","v":0},0,{"$f":"[1]Personnel!Y860","v":0},{"$f":"[1]Personnel!Z860","v":0},0,0,0,0,null,null,null,null,null,null,null,null,null,null,null,null,null,null,null,null,null,null,null,null,null,null,null,null,null,{"$f":"[1]Personnel!G860","v":0}]
[0,{"$f":"IFERROR(INDEX(Settings!$AP$17:$AP$38,MATCH(Personnel!$G861,Settings!$AQ$17:$AQ$38,0)),0)","v":0},null,null,null,{"$f":"[1]Personnel!F861","v":0},{"$f":"IFERROR(INDEX((SLevel),MATCH(Personnel!BA861,SLevel202223,0)),0)","v":0},{"$f":"[1]Personnel!H861","v":0},{"$f":"[1]Personnel!I861","v":0},{"$f":"[1]Personnel!J861","v":0},{"$f":"[1]Personnel!P861","v":0},{"$f":"[1]Personnel!Q861","v":0},0,{"$f":"[1]Personnel!S861","v":0},{"$f":"[1]Personnel!S861","v":0},{"$f":"[1]Personnel!S861","v":0},{"$f":"[1]Personnel!T861","v":0},0,{"$f":"[1]Personnel!V861","v":0},{"$f":"[1]Personnel!W861","v":0},0,{"$f":"[1]Personnel!Y861","v":0},{"$f":"[1]Personnel!Z861","v":0},0,0,0,0,null,null,null,null,null,null,null,null,null,null,null,null,null,null,null,null,null,null,null,null,null,null,null,null,null,{"$f":"[1]Personnel!G861","v":0}]
[0,{"$f":"IFERROR(INDEX(Settings!$AP$17:$AP$38,MATCH(Personnel!$G862,Settings!$AQ$17:$AQ$38,0)),0)","v":0},null,null,null,{"$f":"[1]Personnel!F862","v":0},{"$f":"IFERROR(INDEX((SLevel),MATCH(Personnel!BA862,SLevel202223,0)),0)","v":0},{"$f":"[1]Personnel!H862","v":0},{"$f":"[1]Personnel!I862","v":0},{"$f":"[1]Personnel!J862","v":0},{"$f":"[1]Personnel!P862","v":0},{"$f":"[1]Personnel!Q862","v":0},0,{"$f":"[1]Personnel!S862","v":0},{"$f":"[1]Personnel!S862","v":0},{"$f":"[1]Personnel!S862","v":0},{"$f":"[1]Personnel!T862","v":0},0,{"$f":"[1]Personnel!V862","v":0},{"$f":"[1]Personnel!W862","v":0},0,{"$f":"[1]Personnel!Y862","v":0},{"$f":"[1]Personnel!Z862","v":0},0,0,0,0,null,null,null,null,null,null,null,null,null,null,null,null,null,null,null,null,null,null,null,null,null,null,null,null,null,{"$f":"[1]Personnel!G862","v":0}]
[0,{"$f":"IFERROR(INDEX(Settings!$AP$17:$AP$38,MATCH(Personnel!$G863,Settings!$AQ$17:$AQ$38,0)),0)","v":0},null,null,null,{"$f":"[1]Personnel!F863","v":0},{"$f":"IFERROR(INDEX((SLevel),MATCH(Personnel!BA863,SLevel202223,0)),0)","v":0},{"$f":"[1]Personnel!H863","v":0},{"$f":"[1]Personnel!I863","v":0},{"$f":"[1]Personnel!J863","v":0},{"$f":"[1]Personnel!P863","v":0},{"$f":"[1]Personnel!Q863","v":0},0,{"$f":"[1]Personnel!S863","v":0},{"$f":"[1]Personnel!S863","v":0},{"$f":"[1]Personnel!S863","v":0},{"$f":"[1]Personnel!T863","v":0},0,{"$f":"[1]Personnel!V863","v":0},{"$f":"[1]Personnel!W863","v":0},0,{"$f":"[1]Personnel!Y863","v":0},{"$f":"[1]Personnel!Z863","v":0},0,0,0,0,null,null,null,null,null,null,null,null,null,null,null,null,null,null,null,null,null,null,null,null,null,null,null,null,null,{"$f":"[1]Personnel!G863","v":0}]
[0,{"$f":"IFERROR(INDEX(Settings!$AP$17:$AP$38,MATCH(Personnel!$G864,Settings!$AQ$17:$AQ$38,0)),0)","v":0},null,null,null,{"$f":"[1]Personnel!F864","v":0},{"$f":"IFERROR(INDEX((SLevel),MATCH(Personnel!BA864,SLevel202223,0)),0)","v":0},{"$f":"[1]Personnel!H864","v":0},{"$f":"[1]Personnel!I864","v":0},{"$f":"[1]Personnel!J864","v":0},{"$f":"[1]Personnel!P864","v":0},{"$f":"[1]Personnel!Q864","v":0},0,{"$f":"[1]Personnel!S864","v":0},{"$f":"[1]Personnel!S864","v":0},{"$f":"[1]Personnel!S864","v":0},{"$f":"[1]Personnel!T864","v":0},0,{"$f":"[1]Personnel!V864","v":0},{"$f":"[1]Personnel!W864","v":0},0,{"$f":"[1]Personnel!Y864","v":0},{"$f":"[1]Personnel!Z864","v":0},0,0,0,0,null,null,null,null,null,null,null,null,null,null,null,null,null,null,null,null,null,null,null,null,null,null,null,null,null,{"$f":"[1]Personnel!G864","v":0}]
[0,{"$f":"IFERROR(INDEX(Settings!$AP$17:$AP$38,MATCH(Personnel!$G865,Settings!$AQ$17:$AQ$38,0)),0)","v":0},null,null,null,{"$f":"[1]Personnel!F865","v":0},{"$f":"IFERROR(INDEX((SLevel),MATCH(Personnel!BA865,SLevel202223,0)),0)","v":0},{"$f":"[1]Personnel!H865","v":0},{"$f":"[1]Personnel!I865","v":0},{"$f":"[1]Personnel!J865","v":0},{"$f":"[1]Personnel!P865","v":0},{"$f":"[1]Personnel!Q865","v":0},0,{"$f":"[1]Personnel!S865","v":0},{"$f":"[1]Personnel!S865","v":0},{"$f":"[1]Personnel!S865","v":0},{"$f":"[1]Personnel!T865","v":0},0,{"$f":"[1]Personnel!V865","v":0},{"$f":"[1]Personnel!W865","v":0},0,{"$f":"[1]Personnel!Y865","v":0},{"$f":"[1]Personnel!Z865","v":0},0,0,0,0,null,null,null,null,null,null,null,null,null,null,null,null,null,null,null,null,null,null,null,null,null,null,null,null,null,{"$f":"[1]Personnel!G865","v":0}]
[0,{"$f":"IFERROR(INDEX(Settings!$AP$17:$AP$38,MATCH(Personnel!$G866,Settings!$AQ$17:$AQ$38,0)),0)","v":0},null,null,null,{"$f":"[1]Personnel!F866","v":0},{"$f":"IFERROR(INDEX((SLevel),MATCH(Personnel!BA866,SLevel202223,0)),0)","v":0},{"$f":"[1]Personnel!H866","v":0},{"$f":"[1]Personnel!I866","v":0},{"$f":"[1]Personnel!J866","v":0},{"$f":"[1]Personnel!P866","v":0},{"$f":"[1]Personnel!Q866","v":0},0,{"$f":"[1]Personnel!S866","v":0},{"$f":"[1]Personnel!S866","v":0},{"$f":"[1]Personnel!S866","v":0},{"$f":"[1]Personnel!T866","v":0},0,{"$f":"[1]Personnel!V866","v":0},{"$f":"[1]Personnel!W866","v":0},0,{"$f":"[1]Personnel!Y866","v":0},{"$f":"[1]Personnel!Z866","v":0},0,0,0,0,null,null,null,null,null,null,null,null,null,null,null,null,null,null,null,null,null,null,null,null,null,null,null,null,null,{"$f":"[1]Personnel!G866","v":0}]
[0,{"$f":"IFERROR(INDEX(Settings!$AP$17:$AP$38,MATCH(Personnel!$G867,Settings!$AQ$17:$AQ$38,0)),0)","v":0},null,null,null,{"$f":"[1]Personnel!F867","v":0},{"$f":"IFERROR(INDEX((SLevel),MATCH(Personnel!BA867,SLevel202223,0)),0)","v":0},{"$f":"[1]Personnel!H867","v":0},{"$f":"[1]Personnel!I867","v":0},{"$f":"[1]Personnel!J867","v":0},{"$f":"[1]Personnel!P867","v":0},{"$f":"[1]Personnel!Q867","v":0},0,{"$f":"[1]Personnel!S867","v":0},{"$f":"[1]Personnel!S867","v":0},{"$f":"[1]Personnel!S867","v":0},{"$f":"[1]Personnel!T867","v":0},0,{"$f":"[1]Personnel!V867","v":0},{"$f":"[1]Personnel!W867","v":0},0,{"$f":"[1]Personnel!Y867","v":0},{"$f":"[1]Personnel!Z867","v":0},0,0,0,0,null,null,null,null,null,null,null,null,null,null,null,null,null,null,null,null,null,null,null,null,null,null,null,null,null,{"$f":"[1]Personnel!G867","v":0}]
[0,{"$f":"IFERROR(INDEX(Settings!$AP$17:$AP$38,MATCH(Personnel!$G868,Settings!$AQ$17:$AQ$38,0)),0)","v":0},null,null,null,{"$f":"[1]Personnel!F868","v":0},{"$f":"IFERROR(INDEX((SLevel),MATCH(Personnel!BA868,SLevel202223,0)),0)","v":0},{"$f":"[1]Personnel!H868","v":0},{"$f":"[1]Personnel!I868","v":0},{"$f":"[1]Personnel!J868","v":0},{"$f":"[1]Personnel!P868","v":0},{"$f":"[1]Personnel!Q868","v":0},0,{"$f":"[1]Personnel!S868","v":0},{"$f":"[1]Personnel!S868","v":0},{"$f":"[1]Personnel!S868","v":0},{"$f":"[1]Personnel!T868","v":0},0,{"$f":"[1]Personnel!V868","v":0},{"$f":"[1]Personnel!W868","v":0},0,{"$f":"[1]Personnel!Y868","v":0},{"$f":"[1]Personnel!Z868","v":0},0,0,0,0,null,null,null,null,null,null,null,null,null,null,null,null,null,null,null,null,null,null,null,null,null,null,null,null,null,{"$f":"[1]Personnel!G868","v":0}]
[0,{"$f":"IFERROR(INDEX(Settings!$AP$17:$AP$38,MATCH(Personnel!$G869,Settings!$AQ$17:$AQ$38,0)),0)","v":0},null,null,null,{"$f":"[1]Personnel!F869","v":0},{"$f":"IFERROR(INDEX((SLevel),MATCH(Personnel!BA869,SLevel202223,0)),0)","v":0},{"$f":"[1]Personnel!H869","v":0},{"$f":"[1]Personnel!I869","v":0},{"$f":"[1]Personnel!J869","v":0},{"$f":"[1]Personnel!P869","v":0},{"$f":"[1]Personnel!Q869","v":0},0,{"$f":"[1]Personnel!S869","v":0},{"$f":"[1]Personnel!S869","v":0},{"$f":"[1]Personnel!S869","v":0},{"$f":"[1]Personnel!T869","v":0},0,{"$f":"[1]Personnel!V869","v":0},{"$f":"[1]Personnel!W869","v":0},0,{"$f":"[1]Personnel!Y869","v":0},{"$f":"[1]Personnel!Z869","v":0},0,0,0,0,null,null,null,null,null,null,null,null,null,null,null,null,null,null,null,null,null,null,null,null,null,null,null,null,null,{"$f":"[1]Personnel!G869","v":0}]
[0,{"$f":"IFERROR(INDEX(Settings!$AP$17:$AP$38,MATCH(Personnel!$G870,Settings!$AQ$17:$AQ$38,0)),0)","v":0},null,null,null,{"$f":"[1]Personnel!F870","v":0},{"$f":"IFERROR(INDEX((SLevel),MATCH(Personnel!BA870,SLevel202223,0)),0)","v":0},{"$f":"[1]Personnel!H870","v":0},{"$f":"[1]Personnel!I870","v":0},{"$f":"[1]Personnel!J870","v":0},{"$f":"[1]Personnel!P870","v":0},{"$f":"[1]Personnel!Q870","v":0},0,{"$f":"[1]Personnel!S870","v":0},{"$f":"[1]Personnel!S870","v":0},{"$f":"[1]Personnel!S870","v":0},{"$f":"[1]Personnel!T870","v":0},0,{"$f":"[1]Personnel!V870","v":0},{"$f":"[1]Personnel!W870","v":0},0,{"$f":"[1]Personnel!Y870","v":0},{"$f":"[1]Personnel!Z870","v":0},0,0,0,0,null,null,null,null,null,null,null,null,null,null,null,null,null,null,null,null,null,null,null,null,null,null,null,null,null,{"$f":"[1]Personnel!G870","v":0}]
[0,{"$f":"IFERROR(INDEX(Settings!$AP$17:$AP$38,MATCH(Personnel!$G871,Settings!$AQ$17:$AQ$38,0)),0)","v":0},null,null,null,{"$f":"[1]Personnel!F871","v":0},{"$f":"IFERROR(INDEX((SLevel),MATCH(Personnel!BA871,SLevel202223,0)),0)","v":0},{"$f":"[1]Personnel!H871","v":0},{"$f":"[1]Personnel!I871","v":0},{"$f":"[1]Personnel!J871","v":0},{"$f":"[1]Personnel!P871","v":0},{"$f":"[1]Personnel!Q871","v":0},0,{"$f":"[1]Personnel!S871","v":0},{"$f":"[1]Personnel!S871","v":0},{"$f":"[1]Personnel!S871","v":0},{"$f":"[1]Personnel!T871","v":0},0,{"$f":"[1]Personnel!V871","v":0},{"$f":"[1]Personnel!W871","v":0},0,{"$f":"[1]Personnel!Y871","v":0},{"$f":"[1]Personnel!Z871","v":0},0,0,0,0,null,null,null,null,null,null,null,null,null,null,null,null,null,null,null,null,null,null,null,null,null,null,null,null,null,{"$f":"[1]Personnel!G871","v":0}]
[0,{"$f":"IFERROR(INDEX(Settings!$AP$17:$AP$38,MATCH(Personnel!$G872,Settings!$AQ$17:$AQ$38,0)),0)","v":0},null,null,null,{"$f":"[1]Personnel!F872","v":0},{"$f":"IFERROR(INDEX((SLevel),MATCH(Personnel!BA872,SLevel202223,0)),0)","v":0},{"$f":"[1]Personnel!H872","v":0},{"$f":"[1]Personnel!I872","v":0},{"$f":"[1]Personnel!J872","v":0},{"$f":"[1]Personnel!P872","v":0},{"$f":"[1]Personnel!Q872","v":0},0,{"$f":"[1]Personnel!S872","v":0},{"$f":"[1]Personnel!S872","v":0},{"$f":"[1]Personnel!S872","v":0},{"$f":"[1]Personnel!T872","v":0},0,{"$f":"[1]Personnel!V872","v":0},{"$f":"[1]Personnel!W872","v":0},0,{"$f":"[1]Personnel!Y872","v":0},{"$f":"[1]Personnel!Z872","v":0},0,0,0,0,null,null,null,null,null,null,null,null,null,null,null,null,null,null,null,null,null,null,null,null,null,null,null,null,null,{"$f":"[1]Personnel!G872","v":0}]
[0,{"$f":"IFERROR(INDEX(Settings!$AP$17:$AP$38,MATCH(Personnel!$G873,Settings!$AQ$17:$AQ$38,0)),0)","v":0},null,null,null,{"$f":"[1]Personnel!F873","v":0},{"$f":"IFERROR(INDEX((SLevel),MATCH(Personnel!BA873,SLevel202223,0)),0)","v":0},{"$f":"[1]Personnel!H873","v":0},{"$f":"[1]Personnel!I873","v":0},{"$f":"[1]Personnel!J873","v":0},{"$f":"[1]Personnel!P873","v":0},{"$f":"[1]Personnel!Q873","v":0},0,{"$f":"[1]Personnel!S873","v":0},{"$f":"[1]Personnel!S873","v":0},{"$f":"[1]Personnel!S873","v":0},{"$f":"[1]Personnel!T873","v":0},0,{"$f":"[1]Personnel!V873","v":0},{"$f":"[1]Personnel!W873","v":0},0,{"$f":"[1]Personnel!Y873","v":0},{"$f":"[1]Personnel!Z873","v":0},0,0,0,0,null,null,null,null,null,null,null,null,null,null,null,null,null,null,null,null,null,null,null,null,null,null,null,null,null,{"$f":"[1]Personnel!G873","v":0}]
[0,{"$f":"IFERROR(INDEX(Settings!$AP$17:$AP$38,MATCH(Personnel!$G874,Settings!$AQ$17:$AQ$38,0)),0)","v":0},null,null,null,{"$f":"[1]Personnel!F874","v":0},{"$f":"IFERROR(INDEX((SLevel),MATCH(Personnel!BA874,SLevel202223,0)),0)","v":0},{"$f":"[1]Personnel!H874","v":0},{"$f":"[1]Personnel!I874","v":0},{"$f":"[1]Personnel!J874","v":0},{"$f":"[1]Personnel!P874","v":0},{"$f":"[1]Personnel!Q874","v":0},0,{"$f":"[1]Personnel!S874","v":0},{"$f":"[1]Personnel!S874","v":0},{"$f":"[1]Personnel!S874","v":0},{"$f":"[1]Personnel!T874","v":0},0,{"$f":"[1]Personnel!V874","v":0},{"$f":"[1]Personnel!W874","v":0},0,{"$f":"[1]Personnel!Y874","v":0},{"$f":"[1]Personnel!Z874","v":0},0,0,0,0,null,null,null,null,null,null,null,null,null,null,null,null,null,null,null,null,null,null,null,null,null,null,null,null,null,{"$f":"[1]Personnel!G874","v":0}]
[0,{"$f":"IFERROR(INDEX(Settings!$AP$17:$AP$38,MATCH(Personnel!$G875,Settings!$AQ$17:$AQ$38,0)),0)","v":0},null,null,null,{"$f":"[1]Personnel!F875","v":0},{"$f":"IFERROR(INDEX((SLevel),MATCH(Personnel!BA875,SLevel202223,0)),0)","v":0},{"$f":"[1]Personnel!H875","v":0},{"$f":"[1]Personnel!I875","v":0},{"$f":"[1]Personnel!J875","v":0},{"$f":"[1]Personnel!P875","v":0},{"$f":"[1]Personnel!Q875","v":0},0,{"$f":"[1]Personnel!S875","v":0},{"$f":"[1]Personnel!S875","v":0},{"$f":"[1]Personnel!S875","v":0},{"$f":"[1]Personnel!T875","v":0},0,{"$f":"[1]Personnel!V875","v":0},{"$f":"[1]Personnel!W875","v":0},0,{"$f":"[1]Personnel!Y875","v":0},{"$f":"[1]Personnel!Z875","v":0},0,0,0,0,null,null,null,null,null,null,null,null,null,null,null,null,null,null,null,null,null,null,null,null,null,null,null,null,null,{"$f":"[1]Personnel!G875","v":0}]
[0,{"$f":"IFERROR(INDEX(Settings!$AP$17:$AP$38,MATCH(Personnel!$G876,Settings!$AQ$17:$AQ$38,0)),0)","v":0},null,null,null,{"$f":"[1]Personnel!F876","v":0},{"$f":"IFERROR(INDEX((SLevel),MATCH(Personnel!BA876,SLevel202223,0)),0)","v":0},{"$f":"[1]Personnel!H876","v":0},{"$f":"[1]Personnel!I876","v":0},{"$f":"[1]Personnel!J876","v":0},{"$f":"[1]Personnel!P876","v":0},{"$f":"[1]Personnel!Q876","v":0},0,{"$f":"[1]Personnel!S876","v":0},{"$f":"[1]Personnel!S876","v":0},{"$f":"[1]Personnel!S876","v":0},{"$f":"[1]Personnel!T876","v":0},0,{"$f":"[1]Personnel!V876","v":0},{"$f":"[1]Personnel!W876","v":0},0,{"$f":"[1]Personnel!Y876","v":0},{"$f":"[1]Personnel!Z876","v":0},0,0,0,0,null,null,null,null,null,null,null,null,null,null,null,null,null,null,null,null,null,null,null,null,null,null,null,null,null,{"$f":"[1]Personnel!G876","v":0}]
[0,{"$f":"IFERROR(INDEX(Settings!$AP$17:$AP$38,MATCH(Personnel!$G877,Settings!$AQ$17:$AQ$38,0)),0)","v":0},null,null,null,{"$f":"[1]Personnel!F877","v":0},{"$f":"IFERROR(INDEX((SLevel),MATCH(Personnel!BA877,SLevel202223,0)),0)","v":0},{"$f":"[1]Personnel!H877","v":0},{"$f":"[1]Personnel!I877","v":0},{"$f":"[1]Personnel!J877","v":0},{"$f":"[1]Personnel!P877","v":0},{"$f":"[1]Personnel!Q877","v":0},0,{"$f":"[1]Personnel!S877","v":0},{"$f":"[1]Personnel!S877","v":0},{"$f":"[1]Personnel!S877","v":0},{"$f":"[1]Personnel!T877","v":0},0,{"$f":"[1]Personnel!V877","v":0},{"$f":"[1]Personnel!W877","v":0},0,{"$f":"[1]Personnel!Y877","v":0},{"$f":"[1]Personnel!Z877","v":0},0,0,0,0,null,null,null,null,null,null,null,null,null,null,null,null,null,null,null,null,null,null,null,null,null,null,null,null,null,{"$f":"[1]Personnel!G877","v":0}]
[0,{"$f":"IFERROR(INDEX(Settings!$AP$17:$AP$38,MATCH(Personnel!$G878,Settings!$AQ$17:$AQ$38,0)),0)","v":0},null,null,null,{"$f":"[1]Personnel!F878","v":0},{"$f":"IFERROR(INDEX((SLevel),MATCH(Personnel!BA878,SLevel202223,0)),0)","v":0},{"$f":"[1]Personnel!H878","v":0},{"$f":"[1]Personnel!I878","v":0},{"$f":"[1]Personnel!J878","v":0},{"$f":"[1]Personnel!P878","v":0},{"$f":"[1]Personnel!Q878","v":0},0,{"$f":"[1]Personnel!S878","v":0},{"$f":"[1]Personnel!S878","v":0},{"$f":"[1]Personnel!S878","v":0},{"$f":"[1]Personnel!T878","v":0},0,{"$f":"[1]Personnel!V878","v":0},{"$f":"[1]Personnel!W878","v":0},0,{"$f":"[1]Personnel!Y878","v":0},{"$f":"[1]Personnel!Z878","v":0},0,0,0,0,null,null,null,null,null,null,null,null,null,null,null,null,null,null,null,null,null,null,null,null,null,null,null,null,null,{"$f":"[1]Personnel!G878","v":0}]
[0,{"$f":"IFERROR(INDEX(Settings!$AP$17:$AP$38,MATCH(Personnel!$G879,Settings!$AQ$17:$AQ$38,0)),0)","v":0},null,null,null,{"$f":"[1]Personnel!F879","v":0},{"$f":"IFERROR(INDEX((SLevel),MATCH(Personnel!BA879,SLevel202223,0)),0)","v":0},{"$f":"[1]Personnel!H879","v":0},{"$f":"[1]Personnel!I879","v":0},{"$f":"[1]Personnel!J879","v":0},{"$f":"[1]Personnel!P879","v":0},{"$f":"[1]Personnel!Q879","v":0},0,{"$f":"[1]Personnel!S879","v":0},{"$f":"[1]Personnel!S879","v":0},{"$f":"[1]Personnel!S879","v":0},{"$f":"[1]Personnel!T879","v":0},0,{"$f":"[1]Personnel!V879","v":0},{"$f":"[1]Personnel!W879","v":0},0,{"$f":"[1]Personnel!Y879","v":0},{"$f":"[1]Personnel!Z879","v":0},0,0,0,0,null,null,null,null,null,null,null,null,null,null,null,null,null,null,null,null,null,null,null,null,null,null,null,null,null,{"$f":"[1]Personnel!G879","v":0}]
[0,{"$f":"IFERROR(INDEX(Settings!$AP$17:$AP$38,MATCH(Personnel!$G880,Settings!$AQ$17:$AQ$38,0)),0)","v":0},null,null,null,{"$f":"[1]Personnel!F880","v":0},{"$f":"IFERROR(INDEX((SLevel),MATCH(Personnel!BA880,SLevel202223,0)),0)","v":0},{"$f":"[1]Personnel!H880","v":0},{"$f":"[1]Personnel!I880","v":0},{"$f":"[1]Personnel!J880","v":0},{"$f":"[1]Personnel!P880","v":0},{"$f":"[1]Personnel!Q880","v":0},0,{"$f":"[1]Personnel!S880","v":0},{"$f":"[1]Personnel!S880","v":0},{"$f":"[1]Personnel!S880","v":0},{"$f":"[1]Personnel!T880","v":0},0,{"$f":"[1]Personnel!V880","v":0},{"$f":"[1]Personnel!W880","v":0},0,{"$f":"[1]Personnel!Y880","v":0},{"$f":"[1]Personnel!Z880","v":0},0,0,0,0,null,null,null,null,null,null,null,null,null,null,null,null,null,null,null,null,null,null,null,null,null,null,null,null,null,{"$f":"[1]Personnel!G880","v":0}]
[0,{"$f":"IFERROR(INDEX(Settings!$AP$17:$AP$38,MATCH(Personnel!$G881,Settings!$AQ$17:$AQ$38,0)),0)","v":0},null,null,null,{"$f":"[1]Personnel!F881","v":0},{"$f":"IFERROR(INDEX((SLevel),MATCH(Personnel!BA881,SLevel202223,0)),0)","v":0},{"$f":"[1]Personnel!H881","v":0},{"$f":"[1]Personnel!I881","v":0},{"$f":"[1]Personnel!J881","v":0},{"$f":"[1]Personnel!P881","v":0},{"$f":"[1]Personnel!Q881","v":0},0,{"$f":"[1]Personnel!S881","v":0},{"$f":"[1]Personnel!S881","v":0},{"$f":"[1]Personnel!S881","v":0},{"$f":"[1]Personnel!T881","v":0},0,{"$f":"[1]Personnel!V881","v":0},{"$f":"[1]Personnel!W881","v":0},0,{"$f":"[1]Personnel!Y881","v":0},{"$f":"[1]Personnel!Z881","v":0},0,0,0,0,null,null,null,null,null,null,null,null,null,null,null,null,null,null,null,null,null,null,null,null,null,null,null,null,null,{"$f":"[1]Personnel!G881","v":0}]
[0,{"$f":"IFERROR(INDEX(Settings!$AP$17:$AP$38,MATCH(Personnel!$G882,Settings!$AQ$17:$AQ$38,0)),0)","v":0},null,null,null,{"$f":"[1]Personnel!F882","v":0},{"$f":"IFERROR(INDEX((SLevel),MATCH(Personnel!BA882,SLevel202223,0)),0)","v":0},{"$f":"[1]Personnel!H882","v":0},{"$f":"[1]Personnel!I882","v":0},{"$f":"[1]Personnel!J882","v":0},{"$f":"[1]Personnel!P882","v":0},{"$f":"[1]Personnel!Q882","v":0},0,{"$f":"[1]Personnel!S882","v":0},{"$f":"[1]Personnel!S882","v":0},{"$f":"[1]Personnel!S882","v":0},{"$f":"[1]Personnel!T882","v":0},0,{"$f":"[1]Personnel!V882","v":0},{"$f":"[1]Personnel!W882","v":0},0,{"$f":"[1]Personnel!Y882","v":0},{"$f":"[1]Personnel!Z882","v":0},0,0,0,0,null,null,null,null,null,null,null,null,null,null,null,null,null,null,null,null,null,null,null,null,null,null,null,null,null,{"$f":"[1]Personnel!G882","v":0}]
[0,{"$f":"IFERROR(INDEX(Settings!$AP$17:$AP$38,MATCH(Personnel!$G883,Settings!$AQ$17:$AQ$38,0)),0)","v":0},null,null,null,{"$f":"[1]Personnel!F883","v":0},{"$f":"IFERROR(INDEX((SLevel),MATCH(Personnel!BA883,SLevel202223,0)),0)","v":0},{"$f":"[1]Personnel!H883","v":0},{"$f":"[1]Personnel!I883","v":0},{"$f":"[1]Personnel!J883","v":0},{"$f":"[1]Personnel!P883","v":0},{"$f":"[1]Personnel!Q883","v":0},0,{"$f":"[1]Personnel!S883","v":0},{"$f":"[1]Personnel!S883","v":0},{"$f":"[1]Personnel!S883","v":0},{"$f":"[1]Personnel!T883","v":0},0,{"$f":"[1]Personnel!V883","v":0},{"$f":"[1]Personnel!W883","v":0},0,{"$f":"[1]Personnel!Y883","v":0},{"$f":"[1]Personnel!Z883","v":0},0,0,0,0,null,null,null,null,null,null,null,null,null,null,null,null,null,null,null,null,null,null,null,null,null,null,null,null,null,{"$f":"[1]Personnel!G883","v":0}]
[0,{"$f":"IFERROR(INDEX(Settings!$AP$17:$AP$38,MATCH(Personnel!$G884,Settings!$AQ$17:$AQ$38,0)),0)","v":0},null,null,null,{"$f":"[1]Personnel!F884","v":0},{"$f":"IFERROR(INDEX((SLevel),MATCH(Personnel!BA884,SLevel202223,0)),0)","v":0},{"$f":"[1]Personnel!H884","v":0},{"$f":"[1]Personnel!I884","v":0},{"$f":"[1]Personnel!J884","v":0},{"$f":"[1]Personnel!P884","v":0},{"$f":"[1]Personnel!Q884","v":0},0,{"$f":"[1]Personnel!S884","v":0},{"$f":"[1]Personnel!S884","v":0},{"$f":"[1]Personnel!S884","v":0},{"$f":"[1]Personnel!T884","v":0},0,{"$f":"[1]Personnel!V884","v":0},{"$f":"[1]Personnel!W884","v":0},0,{"$f":"[1]Personnel!Y884","v":0},{"$f":"[1]Personnel!Z884","v":0},0,0,0,0,null,null,null,null,null,null,null,null,null,null,null,null,null,null,null,null,null,null,null,null,null,null,null,null,null,{"$f":"[1]Personnel!G884","v":0}]
[0,{"$f":"IFERROR(INDEX(Settings!$AP$17:$AP$38,MATCH(Personnel!$G885,Settings!$AQ$17:$AQ$38,0)),0)","v":0},null,null,null,{"$f":"[1]Personnel!F885","v":0},{"$f":"IFERROR(INDEX((SLevel),MATCH(Personnel!BA885,SLevel202223,0)),0)","v":0},{"$f":"[1]Personnel!H885","v":0},{"$f":"[1]Personnel!I885","v":0},{"$f":"[1]Personnel!J885","v":0},{"$f":"[1]Personnel!P885","v":0},{"$f":"[1]Personnel!Q885","v":0},0,{"$f":"[1]Personnel!S885","v":0},{"$f":"[1]Personnel!S885","v":0},{"$f":"[1]Personnel!S885","v":0},{"$f":"[1]Personnel!T885","v":0},0,{"$f":"[1]Personnel!V885","v":0},{"$f":"[1]Personnel!W885","v":0},0,{"$f":"[1]Personnel!Y885","v":0},{"$f":"[1]Personnel!Z885","v":0},0,0,0,0,null,null,null,null,null,null,null,null,null,null,null,null,null,null,null,null,null,null,null,null,null,null,null,null,null,{"$f":"[1]Personnel!G885","v":0}]
[0,{"$f":"IFERROR(INDEX(Settings!$AP$17:$AP$38,MATCH(Personnel!$G886,Settings!$AQ$17:$AQ$38,0)),0)","v":0},null,null,null,{"$f":"[1]Personnel!F886","v":0},{"$f":"IFERROR(INDEX((SLevel),MATCH(Personnel!BA886,SLevel202223,0)),0)","v":0},{"$f":"[1]Personnel!H886","v":0},{"$f":"[1]Personnel!I886","v":0},{"$f":"[1]Personnel!J886","v":0},{"$f":"[1]Personnel!P886","v":0},{"$f":"[1]Personnel!Q886","v":0},0,{"$f":"[1]Personnel!S886","v":0},{"$f":"[1]Personnel!S886","v":0},{"$f":"[1]Personnel!S886","v":0},{"$f":"[1]Personnel!T886","v":0},0,{"$f":"[1]Personnel!V886","v":0},{"$f":"[1]Personnel!W886","v":0},0,{"$f":"[1]Personnel!Y886","v":0},{"$f":"[1]Personnel!Z886","v":0},0,0,0,0,null,null,null,null,null,null,null,null,null,null,null,null,null,null,null,null,null,null,null,null,null,null,null,null,null,{"$f":"[1]Personnel!G886","v":0}]
[0,{"$f":"IFERROR(INDEX(Settings!$AP$17:$AP$38,MATCH(Personnel!$G887,Settings!$AQ$17:$AQ$38,0)),0)","v":0},null,null,null,{"$f":"[1]Personnel!F887","v":0},{"$f":"IFERROR(INDEX((SLevel),MATCH(Personnel!BA887,SLevel202223,0)),0)","v":0},{"$f":"[1]Personnel!H887","v":0},{"$f":"[1]Personnel!I887","v":0},{"$f":"[1]Personnel!J887","v":0},{"$f":"[1]Personnel!P887","v":0},{"$f":"[1]Personnel!Q887","v":0},0,{"$f":"[1]Personnel!S887","v":0},{"$f":"[1]Personnel!S887","v":0},{"$f":"[1]Personnel!S887","v":0},{"$f":"[1]Personnel!T887","v":0},0,{"$f":"[1]Personnel!V887","v":0},{"$f":"[1]Personnel!W887","v":0},0,{"$f":"[1]Personnel!Y887","v":0},{"$f":"[1]Personnel!Z887","v":0},0,0,0,0,null,null,null,null,null,null,null,null,null,null,null,null,null,null,null,null,null,null,null,null,null,null,null,null,null,{"$f":"[1]Personnel!G887","v":0}]
[0,{"$f":"IFERROR(INDEX(Settings!$AP$17:$AP$38,MATCH(Personnel!$G888,Settings!$AQ$17:$AQ$38,0)),0)","v":0},null,null,null,{"$f":"[1]Personnel!F888","v":0},{"$f":"IFERROR(INDEX((SLevel),MATCH(Personnel!BA888,SLevel202223,0)),0)","v":0},{"$f":"[1]Personnel!H888","v":0},{"$f":"[1]Personnel!I888","v":0},{"$f":"[1]Personnel!J888","v":0},{"$f":"[1]Personnel!P888","v":0},{"$f":"[1]Personnel!Q888","v":0},0,{"$f":"[1]Personnel!S888","v":0},{"$f":"[1]Personnel!S888","v":0},{"$f":"[1]Personnel!S888","v":0},{"$f":"[1]Personnel!T888","v":0},0,{"$f":"[1]Personnel!V888","v":0},{"$f":"[1]Personnel!W888","v":0},0,{"$f":"[1]Personnel!Y888","v":0},{"$f":"[1]Personnel!Z888","v":0},0,0,0,0,null,null,null,null,null,null,null,null,null,null,null,null,null,null,null,null,null,null,null,null,null,null,null,null,null,{"$f":"[1]Personnel!G888","v":0}]
[0,{"$f":"IFERROR(INDEX(Settings!$AP$17:$AP$38,MATCH(Personnel!$G889,Settings!$AQ$17:$AQ$38,0)),0)","v":0},null,null,null,{"$f":"[1]Personnel!F889","v":0},{"$f":"IFERROR(INDEX((SLevel),MATCH(Personnel!BA889,SLevel202223,0)),0)","v":0},{"$f":"[1]Personnel!H889","v":0},{"$f":"[1]Personnel!I889","v":0},{"$f":"[1]Personnel!J889","v":0},{"$f":"[1]Personnel!P889","v":0},{"$f":"[1]Personnel!Q889","v":0},0,{"$f":"[1]Personnel!S889","v":0},{"$f":"[1]Personnel!S889","v":0},{"$f":"[1]Personnel!S889","v":0},{"$f":"[1]Personnel!T889","v":0},0,{"$f":"[1]Personnel!V889","v":0},{"$f":"[1]Personnel!W889","v":0},0,{"$f":"[1]Personnel!Y889","v":0},{"$f":"[1]Personnel!Z889","v":0},0,0,0,0,null,null,null,null,null,null,null,null,null,null,null,null,null,null,null,null,null,null,null,null,null,null,null,null,null,{"$f":"[1]Personnel!G889","v":0}]
[0,{"$f":"IFERROR(INDEX(Settings!$AP$17:$AP$38,MATCH(Personnel!$G890,Settings!$AQ$17:$AQ$38,0)),0)","v":0},null,null,null,{"$f":"[1]Personnel!F890","v":0},{"$f":"IFERROR(INDEX((SLevel),MATCH(Personnel!BA890,SLevel202223,0)),0)","v":0},{"$f":"[1]Personnel!H890","v":0},{"$f":"[1]Personnel!I890","v":0},{"$f":"[1]Personnel!J890","v":0},{"$f":"[1]Personnel!P890","v":0},{"$f":"[1]Personnel!Q890","v":0},0,{"$f":"[1]Personnel!S890","v":0},{"$f":"[1]Personnel!S890","v":0},{"$f":"[1]Personnel!S890","v":0},{"$f":"[1]Personnel!T890","v":0},0,{"$f":"[1]Personnel!V890","v":0},{"$f":"[1]Personnel!W890","v":0},0,{"$f":"[1]Personnel!Y890","v":0},{"$f":"[1]Personnel!Z890","v":0},0,0,0,0,null,null,null,null,null,null,null,null,null,null,null,null,null,null,null,null,null,null,null,null,null,null,null,null,null,{"$f":"[1]Personnel!G890","v":0}]
[0,{"$f":"IFERROR(INDEX(Settings!$AP$17:$AP$38,MATCH(Personnel!$G891,Settings!$AQ$17:$AQ$38,0)),0)","v":0},null,null,null,{"$f":"[1]Personnel!F891","v":0},{"$f":"IFERROR(INDEX((SLevel),MATCH(Personnel!BA891,SLevel202223,0)),0)","v":0},{"$f":"[1]Personnel!H891","v":0},{"$f":"[1]Personnel!I891","v":0},{"$f":"[1]Personnel!J891","v":0},{"$f":"[1]Personnel!P891","v":0},{"$f":"[1]Personnel!Q891","v":0},0,{"$f":"[1]Personnel!S891","v":0},{"$f":"[1]Personnel!S891","v":0},{"$f":"[1]Personnel!S891","v":0},{"$f":"[1]Personnel!T891","v":0},0,{"$f":"[1]Personnel!V891","v":0},{"$f":"[1]Personnel!W891","v":0},0,{"$f":"[1]Personnel!Y891","v":0},{"$f":"[1]Personnel!Z891","v":0},0,0,0,0,null,null,null,null,null,null,null,null,null,null,null,null,null,null,null,null,null,null,null,null,null,null,null,null,null,{"$f":"[1]Personnel!G891","v":0}]
[0,{"$f":"IFERROR(INDEX(Settings!$AP$17:$AP$38,MATCH(Personnel!$G892,Settings!$AQ$17:$AQ$38,0)),0)","v":0},null,null,null,{"$f":"[1]Personnel!F892","v":0},{"$f":"IFERROR(INDEX((SLevel),MATCH(Personnel!BA892,SLevel202223,0)),0)","v":0},{"$f":"[1]Personnel!H892","v":0},{"$f":"[1]Personnel!I892","v":0},{"$f":"[1]Personnel!J892","v":0},{"$f":"[1]Personnel!P892","v":0},{"$f":"[1]Personnel!Q892","v":0},0,{"$f":"[1]Personnel!S892","v":0},{"$f":"[1]Personnel!S892","v":0},{"$f":"[1]Personnel!S892","v":0},{"$f":"[1]Personnel!T892","v":0},0,{"$f":"[1]Personnel!V892","v":0},{"$f":"[1]Personnel!W892","v":0},0,{"$f":"[1]Personnel!Y892","v":0},{"$f":"[1]Personnel!Z892","v":0},0,0,0,0,null,null,null,null,null,null,null,null,null,null,null,null,null,null,null,null,null,null,null,null,null,null,null,null,null,{"$f":"[1]Personnel!G892","v":0}]
[0,{"$f":"IFERROR(INDEX(Settings!$AP$17:$AP$38,MATCH(Personnel!$G893,Settings!$AQ$17:$AQ$38,0)),0)","v":0},null,null,null,{"$f":"[1]Personnel!F893","v":0},{"$f":"IFERROR(INDEX((SLevel),MATCH(Personnel!BA893,SLevel202223,0)),0)","v":0},{"$f":"[1]Personnel!H893","v":0},{"$f":"[1]Personnel!I893","v":0},{"$f":"[1]Personnel!J893","v":0},{"$f":"[1]Personnel!P893","v":0},{"$f":"[1]Personnel!Q893","v":0},0,{"$f":"[1]Personnel!S893","v":0},{"$f":"[1]Personnel!S893","v":0},{"$f":"[1]Personnel!S893","v":0},{"$f":"[1]Personnel!T893","v":0},0,{"$f":"[1]Personnel!V893","v":0},{"$f":"[1]Personnel!W893","v":0},0,{"$f":"[1]Personnel!Y893","v":0},{"$f":"[1]Personnel!Z893","v":0},0,0,0,0,null,null,null,null,null,null,null,null,null,null,null,null,null,null,null,null,null,null,null,null,null,null,null,null,null,{"$f":"[1]Personnel!G893","v":0}]
[0,{"$f":"IFERROR(INDEX(Settings!$AP$17:$AP$38,MATCH(Personnel!$G894,Settings!$AQ$17:$AQ$38,0)),0)","v":0},null,null,null,{"$f":"[1]Personnel!F894","v":0},{"$f":"IFERROR(INDEX((SLevel),MATCH(Personnel!BA894,SLevel202223,0)),0)","v":0},{"$f":"[1]Personnel!H894","v":0},{"$f":"[1]Personnel!I894","v":0},{"$f":"[1]Personnel!J894","v":0},{"$f":"[1]Personnel!P894","v":0},{"$f":"[1]Personnel!Q894","v":0},0,{"$f":"[1]Personnel!S894","v":0},{"$f":"[1]Personnel!S894","v":0},{"$f":"[1]Personnel!S894","v":0},{"$f":"[1]Personnel!T894","v":0},0,{"$f":"[1]Personnel!V894","v":0},{"$f":"[1]Personnel!W894","v":0},0,{"$f":"[1]Personnel!Y894","v":0},{"$f":"[1]Personnel!Z894","v":0},0,0,0,0,null,null,null,null,null,null,null,null,null,null,null,null,null,null,null,null,null,null,null,null,null,null,null,null,null,{"$f":"[1]Personnel!G894","v":0}]
[0,{"$f":"IFERROR(INDEX(Settings!$AP$17:$AP$38,MATCH(Personnel!$G895,Settings!$AQ$17:$AQ$38,0)),0)","v":0},null,null,null,{"$f":"[1]Personnel!F895","v":0},{"$f":"IFERROR(INDEX((SLevel),MATCH(Personnel!BA895,SLevel202223,0)),0)","v":0},{"$f":"[1]Personnel!H895","v":0},{"$f":"[1]Personnel!I895","v":0},{"$f":"[1]Personnel!J895","v":0},{"$f":"[1]Personnel!P895","v":0},{"$f":"[1]Personnel!Q895","v":0},0,{"$f":"[1]Personnel!S895","v":0},{"$f":"[1]Personnel!S895","v":0},{"$f":"[1]Personnel!S895","v":0},{"$f":"[1]Personnel!T895","v":0},0,{"$f":"[1]Personnel!V895","v":0},{"$f":"[1]Personnel!W895","v":0},0,{"$f":"[1]Personnel!Y895","v":0},{"$f":"[1]Personnel!Z895","v":0},0,0,0,0,null,null,null,null,null,null,null,null,null,null,null,null,null,null,null,null,null,null,null,null,null,null,null,null,null,{"$f":"[1]Personnel!G895","v":0}]
[0,{"$f":"IFERROR(INDEX(Settings!$AP$17:$AP$38,MATCH(Personnel!$G896,Settings!$AQ$17:$AQ$38,0)),0)","v":0},null,null,null,{"$f":"[1]Personnel!F896","v":0},{"$f":"IFERROR(INDEX((SLevel),MATCH(Personnel!BA896,SLevel202223,0)),0)","v":0},{"$f":"[1]Personnel!H896","v":0},{"$f":"[1]Personnel!I896","v":0},{"$f":"[1]Personnel!J896","v":0},{"$f":"[1]Personnel!P896","v":0},{"$f":"[1]Personnel!Q896","v":0},0,{"$f":"[1]Personnel!S896","v":0},{"$f":"[1]Personnel!S896","v":0},{"$f":"[1]Personnel!S896","v":0},{"$f":"[1]Personnel!T896","v":0},0,{"$f":"[1]Personnel!V896","v":0},{"$f":"[1]Personnel!W896","v":0},0,{"$f":"[1]Personnel!Y896","v":0},{"$f":"[1]Personnel!Z896","v":0},0,0,0,0,null,null,null,null,null,null,null,null,null,null,null,null,null,null,null,null,null,null,null,null,null,null,null,null,null,{"$f":"[1]Personnel!G896","v":0}]
[0,{"$f":"IFERROR(INDEX(Settings!$AP$17:$AP$38,MATCH(Personnel!$G897,Settings!$AQ$17:$AQ$38,0)),0)","v":0},null,null,null,{"$f":"[1]Personnel!F897","v":0},{"$f":"IFERROR(INDEX((SLevel),MATCH(Personnel!BA897,SLevel202223,0)),0)","v":0},{"$f":"[1]Personnel!H897","v":0},{"$f":"[1]Personnel!I897","v":0},{"$f":"[1]Personnel!J897","v":0},{"$f":"[1]Personnel!P897","v":0},{"$f":"[1]Personnel!Q897","v":0},0,{"$f":"[1]Personnel!S897","v":0},{"$f":"[1]Personnel!S897","v":0},{"$f":"[1]Personnel!S897","v":0},{"$f":"[1]Personnel!T897","v":0},0,{"$f":"[1]Personnel!V897","v":0},{"$f":"[1]Personnel!W897","v":0},0,{"$f":"[1]Personnel!Y897","v":0},{"$f":"[1]Personnel!Z897","v":0},0,0,0,0,null,null,null,null,null,null,null,null,null,null,null,null,null,null,null,null,null,null,null,null,null,null,null,null,null,{"$f":"[1]Personnel!G897","v":0}]
[0,{"$f":"IFERROR(INDEX(Settings!$AP$17:$AP$38,MATCH(Personnel!$G898,Settings!$AQ$17:$AQ$38,0)),0)","v":0},null,null,null,{"$f":"[1]Personnel!F898","v":0},{"$f":"IFERROR(INDEX((SLevel),MATCH(Personnel!BA898,SLevel202223,0)),0)","v":0},{"$f":"[1]Personnel!H898","v":0},{"$f":"[1]Personnel!I898","v":0},{"$f":"[1]Personnel!J898","v":0},{"$f":"[1]Personnel!P898","v":0},{"$f":"[1]Personnel!Q898","v":0},0,{"$f":"[1]Personnel!S898","v":0},{"$f":"[1]Personnel!S898","v":0},{"$f":"[1]Personnel!S898","v":0},{"$f":"[1]Personnel!T898","v":0},0,{"$f":"[1]Personnel!V898","v":0},{"$f":"[1]Personnel!W898","v":0},0,{"$f":"[1]Personnel!Y898","v":0},{"$f":"[1]Personnel!Z898","v":0},0,0,0,0,null,null,null,null,null,null,null,null,null,null,null,null,null,null,null,null,null,null,null,null,null,null,null,null,null,{"$f":"[1]Personnel!G898","v":0}]
[0,{"$f":"IFERROR(INDEX(Settings!$AP$17:$AP$38,MATCH(Personnel!$G899,Settings!$AQ$17:$AQ$38,0)),0)","v":0},null,null,null,{"$f":"[1]Personnel!F899","v":0},{"$f":"IFERROR(INDEX((SLevel),MATCH(Personnel!BA899,SLevel202223,0)),0)","v":0},{"$f":"[1]Personnel!H899","v":0},{"$f":"[1]Personnel!I899","v":0},{"$f":"[1]Personnel!J899","v":0},{"$f":"[1]Personnel!P899","v":0},{"$f":"[1]Personnel!Q899","v":0},0,{"$f":"[1]Personnel!S899","v":0},{"$f":"[1]Personnel!S899","v":0},{"$f":"[1]Personnel!S899","v":0},{"$f":"[1]Personnel!T899","v":0},0,{"$f":"[1]Personnel!V899","v":0},{"$f":"[1]Personnel!W899","v":0},0,{"$f":"[1]Personnel!Y899","v":0},{"$f":"[1]Personnel!Z899","v":0},0,0,0,0,null,null,null,null,null,null,null,null,null,null,null,null,null,null,null,null,null,null,null,null,null,null,null,null,null,{"$f":"[1]Personnel!G899","v":0}]
[0,{"$f":"IFERROR(INDEX(Settings!$AP$17:$AP$38,MATCH(Personnel!$G900,Settings!$AQ$17:$AQ$38,0)),0)","v":0},null,null,null,{"$f":"[1]Personnel!F900","v":0},{"$f":"IFERROR(INDEX((SLevel),MATCH(Personnel!BA900,SLevel202223,0)),0)","v":0},{"$f":"[1]Personnel!H900","v":0},{"$f":"[1]Personnel!I900","v":0},{"$f":"[1]Personnel!J900","v":0},{"$f":"[1]Personnel!P900","v":0},{"$f":"[1]Personnel!Q900","v":0},0,{"$f":"[1]Personnel!S900","v":0},{"$f":"[1]Personnel!S900","v":0},{"$f":"[1]Personnel!S900","v":0},{"$f":"[1]Personnel!T900","v":0},0,{"$f":"[1]Personnel!V900","v":0},{"$f":"[1]Personnel!W900","v":0},0,{"$f":"[1]Personnel!Y900","v":0},{"$f":"[1]Personnel!Z900","v":0},0,0,0,0,null,null,null,null,null,null,null,null,null,null,null,null,null,null,null,null,null,null,null,null,null,null,null,null,null,{"$f":"[1]Personnel!G900","v":0}]
[0,{"$f":"IFERROR(INDEX(Settings!$AP$17:$AP$38,MATCH(Personnel!$G901,Settings!$AQ$17:$AQ$38,0)),0)","v":0},null,null,null,{"$f":"[1]Personnel!F901","v":0},{"$f":"IFERROR(INDEX((SLevel),MATCH(Personnel!BA901,SLevel202223,0)),0)","v":0},{"$f":"[1]Personnel!H901","v":0},{"$f":"[1]Personnel!I901","v":0},{"$f":"[1]Personnel!J901","v":0},{"$f":"[1]Personnel!P901","v":0},{"$f":"[1]Personnel!Q901","v":0},0,{"$f":"[1]Personnel!S901","v":0},{"$f":"[1]Personnel!S901","v":0},{"$f":"[1]Personnel!S901","v":0},{"$f":"[1]Personnel!T901","v":0},0,{"$f":"[1]Personnel!V901","v":0},{"$f":"[1]Personnel!W901","v":0},0,{"$f":"[1]Personnel!Y901","v":0},{"$f":"[1]Personnel!Z901","v":0},0,0,0,0,null,null,null,null,null,null,null,null,null,null,null,null,null,null,null,null,null,null,null,null,null,null,null,null,null,{"$f":"[1]Personnel!G901","v":0}]
[0,{"$f":"IFERROR(INDEX(Settings!$AP$17:$AP$38,MATCH(Personnel!$G902,Settings!$AQ$17:$AQ$38,0)),0)","v":0},null,null,null,{"$f":"[1]Personnel!F902","v":0},{"$f":"IFERROR(INDEX((SLevel),MATCH(Personnel!BA902,SLevel202223,0)),0)","v":0},{"$f":"[1]Personnel!H902","v":0},{"$f":"[1]Personnel!I902","v":0},{"$f":"[1]Personnel!J902","v":0},{"$f":"[1]Personnel!P902","v":0},{"$f":"[1]Personnel!Q902","v":0},0,{"$f":"[1]Personnel!S902","v":0},{"$f":"[1]Personnel!S902","v":0},{"$f":"[1]Personnel!S902","v":0},{"$f":"[1]Personnel!T902","v":0},0,{"$f":"[1]Personnel!V902","v":0},{"$f":"[1]Personnel!W902","v":0},0,{"$f":"[1]Personnel!Y902","v":0},{"$f":"[1]Personnel!Z902","v":0},0,0,0,0,null,null,null,null,null,null,null,null,null,null,null,null,null,null,null,null,null,null,null,null,null,null,null,null,null,{"$f":"[1]Personnel!G902","v":0}]
[0,{"$f":"IFERROR(INDEX(Settings!$AP$17:$AP$38,MATCH(Personnel!$G903,Settings!$AQ$17:$AQ$38,0)),0)","v":0},null,null,null,{"$f":"[1]Personnel!F903","v":0},{"$f":"IFERROR(INDEX((SLevel),MATCH(Personnel!BA903,SLevel202223,0)),0)","v":0},{"$f":"[1]Personnel!H903","v":0},{"$f":"[1]Personnel!I903","v":0},{"$f":"[1]Personnel!J903","v":0},{"$f":"[1]Personnel!P903","v":0},{"$f":"[1]Personnel!Q903","v":0},0,{"$f":"[1]Personnel!S903","v":0},{"$f":"[1]Personnel!S903","v":0},{"$f":"[1]Personnel!S903","v":0},{"$f":"[1]Personnel!T903","v":0},0,{"$f":"[1]Personnel!V903","v":0},{"$f":"[1]Personnel!W903","v":0},0,{"$f":"[1]Personnel!Y903","v":0},{"$f":"[1]Personnel!Z903","v":0},0,0,0,0,null,null,null,null,null,null,null,null,null,null,null,null,null,null,null,null,null,null,null,null,null,null,null,null,null,{"$f":"[1]Personnel!G903","v":0}]
[0,{"$f":"IFERROR(INDEX(Settings!$AP$17:$AP$38,MATCH(Personnel!$G904,Settings!$AQ$17:$AQ$38,0)),0)","v":0},null,null,null,{"$f":"[1]Personnel!F904","v":0},{"$f":"IFERROR(INDEX((SLevel),MATCH(Personnel!BA904,SLevel202223,0)),0)","v":0},{"$f":"[1]Personnel!H904","v":0},{"$f":"[1]Personnel!I904","v":0},{"$f":"[1]Personnel!J904","v":0},{"$f":"[1]Personnel!P904","v":0},{"$f":"[1]Personnel!Q904","v":0},0,{"$f":"[1]Personnel!S904","v":0},{"$f":"[1]Personnel!S904","v":0},{"$f":"[1]Personnel!S904","v":0},{"$f":"[1]Personnel!T904","v":0},0,{"$f":"[1]Personnel!V904","v":0},{"$f":"[1]Personnel!W904","v":0},0,{"$f":"[1]Personnel!Y904","v":0},{"$f":"[1]Personnel!Z904","v":0},0,0,0,0,null,null,null,null,null,null,null,null,null,null,null,null,null,null,null,null,null,null,null,null,null,null,null,null,null,{"$f":"[1]Personnel!G904","v":0}]
[0,{"$f":"IFERROR(INDEX(Settings!$AP$17:$AP$38,MATCH(Personnel!$G905,Settings!$AQ$17:$AQ$38,0)),0)","v":0},null,null,null,{"$f":"[1]Personnel!F905","v":0},{"$f":"IFERROR(INDEX((SLevel),MATCH(Personnel!BA905,SLevel202223,0)),0)","v":0},{"$f":"[1]Personnel!H905","v":0},{"$f":"[1]Personnel!I905","v":0},{"$f":"[1]Personnel!J905","v":0},{"$f":"[1]Personnel!P905","v":0},{"$f":"[1]Personnel!Q905","v":0},0,{"$f":"[1]Personnel!S905","v":0},{"$f":"[1]Personnel!S905","v":0},{"$f":"[1]Personnel!S905","v":0},{"$f":"[1]Personnel!T905","v":0},0,{"$f":"[1]Personnel!V905","v":0},{"$f":"[1]Personnel!W905","v":0},0,{"$f":"[1]Personnel!Y905","v":0},{"$f":"[1]Personnel!Z905","v":0},0,0,0,0,null,null,null,null,null,null,null,null,null,null,null,null,null,null,null,null,null,null,null,null,null,null,null,null,null,{"$f":"[1]Personnel!G905","v":0}]
[0,{"$f":"IFERROR(INDEX(Settings!$AP$17:$AP$38,MATCH(Personnel!$G906,Settings!$AQ$17:$AQ$38,0)),0)","v":0},null,null,null,{"$f":"[1]Personnel!F906","v":0},{"$f":"IFERROR(INDEX((SLevel),MATCH(Personnel!BA906,SLevel202223,0)),0)","v":0},{"$f":"[1]Personnel!H906","v":0},{"$f":"[1]Personnel!I906","v":0},{"$f":"[1]Personnel!J906","v":0},{"$f":"[1]Personnel!P906","v":0},{"$f":"[1]Personnel!Q906","v":0},0,{"$f":"[1]Personnel!S906","v":0},{"$f":"[1]Personnel!S906","v":0},{"$f":"[1]Personnel!S906","v":0},{"$f":"[1]Personnel!T906","v":0},0,{"$f":"[1]Personnel!V906","v":0},{"$f":"[1]Personnel!W906","v":0},0,{"$f":"[1]Personnel!Y906","v":0},{"$f":"[1]Personnel!Z906","v":0},0,0,0,0,null,null,null,null,null,null,null,null,null,null,null,null,null,null,null,null,null,null,null,null,null,null,null,null,null,{"$f":"[1]Personnel!G906","v":0}]
[0,{"$f":"IFERROR(INDEX(Settings!$AP$17:$AP$38,MATCH(Personnel!$G907,Settings!$AQ$17:$AQ$38,0)),0)","v":0},null,null,null,{"$f":"[1]Personnel!F907","v":0},{"$f":"IFERROR(INDEX((SLevel),MATCH(Personnel!BA907,SLevel202223,0)),0)","v":0},{"$f":"[1]Personnel!H907","v":0},{"$f":"[1]Personnel!I907","v":0},{"$f":"[1]Personnel!J907","v":0},{"$f":"[1]Personnel!P907","v":0},{"$f":"[1]Personnel!Q907","v":0},0,{"$f":"[1]Personnel!S907","v":0},{"$f":"[1]Personnel!S907","v":0},{"$f":"[1]Personnel!S907","v":0},{"$f":"[1]Personnel!T907","v":0},0,{"$f":"[1]Personnel!V907","v":0},{"$f":"[1]Personnel!W907","v":0},0,{"$f":"[1]Personnel!Y907","v":0},{"$f":"[1]Personnel!Z907","v":0},0,0,0,0,null,null,null,null,null,null,null,null,null,null,null,null,null,null,null,null,null,null,null,null,null,null,null,null,null,{"$f":"[1]Personnel!G907","v":0}]
[{"$f":"IF(SUM(K908:AA908)>0,1,0)","v":0},{"$f":"IFERROR(INDEX(Settings!$AP$17:$AP$38,MATCH(Personnel!$G908,Settings!$AQ$17:$AQ$38,0)),0)","v":0},null,null,null,{"$f":"[1]Personnel!F908","v":0},{"$f":"IFERROR(INDEX((SLevel),MATCH(Personnel!BA908,SLevel202223,0)),0)","v":0},{"$f":"[1]Personnel!H908","v":0},{"$f":"[1]Personnel!I908","v":0},{"$f":"[1]Personnel!J908","v":0},{"$f":"[1]Personnel!P908","v":0},{"$f":"[1]Personnel!Q908","v":0},0,{"$f":"[1]Personnel!S908","v":0},{"$f":"[1]Personnel!S908","v":0},{"$f":"[1]Personnel!S908","v":0},{"$f":"[1]Personnel!T908","v":0},0,{"$f":"[1]Personnel!V908","v":0},{"$f":"[1]Personnel!W908","v":0},0,{"$f":"[1]Personnel!Y908","v":0},{"$f":"[1]Personnel!Z908","v":0},0,0,0,0,null,null,null,null,null,null,null,null,null,null,null,null,null,null,null,null,null,null,null,null,null,null,null,null,null,{"$f":"[1]Personnel!G908","v":0}]
[0,{"$f":"IFERROR(INDEX(Settings!$AP$17:$AP$38,MATCH(Personnel!$G909,Settings!$AQ$17:$AQ$38,0)),0)","v":0},null,null,null,{"$f":"[1]Personnel!F909","v":0},{"$f":"IFERROR(INDEX((SLevel),MATCH(Personnel!BA909,SLevel202223,0)),0)","v":0},{"$f":"[1]Personnel!H909","v":0},{"$f":"[1]Personnel!I909","v":0},{"$f":"[1]Personnel!J909","v":0},{"$f":"[1]Personnel!P909","v":0},{"$f":"[1]Personnel!Q909","v":0},{"$f":"ROUND(IF(ISERROR(L909/K909),0,(L909/K909)),0)","v":0},{"$f":"[1]Personnel!S909","v":0},{"$f":"[1]Personnel!S909","v":0},{"$f":"[1]Personnel!S909","v":0},{"$f":"[1]Personnel!T909","v":0},{"$f":"ROUND(IF(ISERROR(Q909/P909),0,(Q909/P909)),0)","v":0},{"$f":"[1]Personnel!V909","v":0},{"$f":"[1]Personnel!W909","v":0},{"$f":"ROUND(IF(ISERROR(T909/S909),0,(T909/S909)),0)","v":0},{"$f":"[1]Personnel!Y909","v":0},{"$f":"[1]Personnel!Z909","v":0},{"$f":"ROUND(IF(ISERROR(W909/V909),0,(W909/V909)),0)","v":0},0,0,{"$f":"ROUND(IF(ISERROR(Z909/Y909),0,(Z909/Y909)),0)","v":0},null,null,null,null,null,null,null,null,null,null,null,null,null,null,null,null,null,null,null,null,null,null,null,null,null,{"$f":"[1]Personnel!G909","v":0}]
[0,{"$f":"IFERROR(INDEX(Settings!$AP$17:$AP$38,MATCH(Personnel!$G910,Settings!$AQ$17:$AQ$38,0)),0)","v":0},null,null,null,{"$f":"[1]Personnel!F910","v":0},{"$f":"IFERROR(INDEX((SLevel),MATCH(Personnel!BA910,SLevel202223,0)),0)","v":0},{"$f":"[1]Personnel!H910","v":0},{"$f":"[1]Personnel!I910","v":0},{"$f":"[1]Personnel!J910","v":0},{"$f":"[1]Personnel!P910","v":0},{"$f":"[1]Personnel!Q910","v":0},0,{"$f":"[1]Personnel!S910","v":0},{"$f":"[1]Personnel!S910","v":0},{"$f":"[1]Personnel!S910","v":0},{"$f":"[1]Personnel!T910","v":0},0,{"$f":"[1]Personnel!V910","v":0},{"$f":"[1]Personnel!W910","v":0},0,{"$f":"[1]Personnel!Y910","v":0},{"$f":"[1]Personnel!Z910","v":0},0,0,0,0,null,null,null,null,null,null,null,null,null,null,null,null,null,null,null,null,null,null,null,null,null,null,null,null,null,{"$f":"[1]Personnel!G910","v":0}]
[0,{"$f":"IFERROR(INDEX(Settings!$AP$17:$AP$38,MATCH(Personnel!$G911,Settings!$AQ$17:$AQ$38,0)),0)","v":0},null,null,null,{"$f":"[1]Personnel!F911","v":0},{"$f":"IFERROR(INDEX((SLevel),MATCH(Personnel!BA911,SLevel202223,0)),0)","v":0},{"$f":"[1]Personnel!H911","v":0},{"$f":"[1]Personnel!I911","v":0},{"$f":"[1]Personnel!J911","v":0},{"$f":"[1]Personnel!P911","v":0},{"$f":"[1]Personnel!Q911","v":0},0,{"$f":"[1]Personnel!S911","v":0},{"$f":"[1]Personnel!S911","v":0},{"$f":"[1]Personnel!S911","v":0},{"$f":"[1]Personnel!T911","v":0},0,{"$f":"[1]Personnel!V911","v":0},{"$f":"[1]Personnel!W911","v":0},0,{"$f":"[1]Personnel!Y911","v":0},{"$f":"[1]Personnel!Z911","v":0},0,0,0,0,null,null,null,null,null,null,null,null,null,null,null,null,null,null,null,null,null,null,null,null,null,null,null,null,null,{"$f":"[1]Personnel!G911","v":0}]
[0,{"$f":"IFERROR(INDEX(Settings!$AP$17:$AP$38,MATCH(Personnel!$G912,Settings!$AQ$17:$AQ$38,0)),0)","v":0},null,null,null,{"$f":"[1]Personnel!F912","v":0},{"$f":"IFERROR(INDEX((SLevel),MATCH(Personnel!BA912,SLevel202223,0)),0)","v":0},{"$f":"[1]Personnel!H912","v":0},{"$f":"[1]Personnel!I912","v":0},{"$f":"[1]Personnel!J912","v":0},{"$f":"[1]Personnel!P912","v":0},{"$f":"[1]Personnel!Q912","v":0},0,{"$f":"[1]Personnel!S912","v":0},{"$f":"[1]Personnel!S912","v":0},{"$f":"[1]Personnel!S912","v":0},{"$f":"[1]Personnel!T912","v":0},0,{"$f":"[1]Personnel!V912","v":0},{"$f":"[1]Personnel!W912","v":0},0,{"$f":"[1]Personnel!Y912","v":0},{"$f":"[1]Personnel!Z912","v":0},0,0,0,0,null,null,null,null,null,null,null,null,null,null,null,null,null,null,null,null,null,null,null,null,null,null,null,null,null,{"$f":"[1]Personnel!G912","v":0}]
[0,{"$f":"IFERROR(INDEX(Settings!$AP$17:$AP$38,MATCH(Personnel!$G913,Settings!$AQ$17:$AQ$38,0)),0)","v":0},null,null,null,{"$f":"[1]Personnel!F913","v":0},{"$f":"IFERROR(INDEX((SLevel),MATCH(Personnel!BA913,SLevel202223,0)),0)","v":0},{"$f":"[1]Personnel!H913","v":0},{"$f":"[1]Personnel!I913","v":0},{"$f":"[1]Personnel!J913","v":0},{"$f":"[1]Personnel!P913","v":0},{"$f":"[1]Personnel!Q913","v":0},0,{"$f":"[1]Personnel!S913","v":0},{"$f":"[1]Personnel!S913","v":0},{"$f":"[1]Personnel!S913","v":0},{"$f":"[1]Personnel!T913","v":0},0,{"$f":"[1]Personnel!V913","v":0},{"$f":"[1]Personnel!W913","v":0},0,{"$f":"[1]Personnel!Y913","v":0},{"$f":"[1]Personnel!Z913","v":0},0,0,0,0,null,null,null,null,null,null,null,null,null,null,null,null,null,null,null,null,null,null,null,null,null,null,null,null,null,{"$f":"[1]Personnel!G913","v":0}]
[0,{"$f":"IFERROR(INDEX(Settings!$AP$17:$AP$38,MATCH(Personnel!$G914,Settings!$AQ$17:$AQ$38,0)),0)","v":0},null,null,null,{"$f":"[1]Personnel!F914","v":0},{"$f":"IFERROR(INDEX((SLevel),MATCH(Personnel!BA914,SLevel202223,0)),0)","v":0},{"$f":"[1]Personnel!H914","v":0},{"$f":"[1]Personnel!I914","v":0},{"$f":"[1]Personnel!J914","v":0},{"$f":"[1]Personnel!P914","v":0},{"$f":"[1]Personnel!Q914","v":0},0,{"$f":"[1]Personnel!S914","v":0},{"$f":"[1]Personnel!S914","v":0},{"$f":"[1]Personnel!S914","v":0},{"$f":"[1]Personnel!T914","v":0},0,{"$f":"[1]Personnel!V914","v":0},{"$f":"[1]Personnel!W914","v":0},0,{"$f":"[1]Personnel!Y914","v":0},{"$f":"[1]Personnel!Z914","v":0},0,0,0,0,null,null,null,null,null,null,null,null,null,null,null,null,null,null,null,null,null,null,null,null,null,null,null,null,null,{"$f":"[1]Personnel!G914","v":0}]
[0,{"$f":"IFERROR(INDEX(Settings!$AP$17:$AP$38,MATCH(Personnel!$G915,Settings!$AQ$17:$AQ$38,0)),0)","v":0},null,null,null,{"$f":"[1]Personnel!F915","v":0},{"$f":"IFERROR(INDEX((SLevel),MATCH(Personnel!BA915,SLevel202223,0)),0)","v":0},{"$f":"[1]Personnel!H915","v":0},{"$f":"[1]Personnel!I915","v":0},{"$f":"[1]Personnel!J915","v":0},{"$f":"[1]Personnel!P915","v":0},{"$f":"[1]Personnel!Q915","v":0},0,{"$f":"[1]Personnel!S915","v":0},{"$f":"[1]Personnel!S915","v":0},{"$f":"[1]Personnel!S915","v":0},{"$f":"[1]Personnel!T915","v":0},0,{"$f":"[1]Personnel!V915","v":0},{"$f":"[1]Personnel!W915","v":0},0,{"$f":"[1]Personnel!Y915","v":0},{"$f":"[1]Personnel!Z915","v":0},0,0,0,0,null,null,null,null,null,null,null,null,null,null,null,null,null,null,null,null,null,null,null,null,null,null,null,null,null,{"$f":"[1]Personnel!G915","v":0}]
[0,{"$f":"IFERROR(INDEX(Settings!$AP$17:$AP$38,MATCH(Personnel!$G916,Settings!$AQ$17:$AQ$38,0)),0)","v":0},null,null,null,{"$f":"[1]Personnel!F916","v":0},{"$f":"IFERROR(INDEX((SLevel),MATCH(Personnel!BA916,SLevel202223,0)),0)","v":0},{"$f":"[1]Personnel!H916","v":0},{"$f":"[1]Personnel!I916","v":0},{"$f":"[1]Personnel!J916","v":0},{"$f":"[1]Personnel!P916","v":0},{"$f":"[1]Personnel!Q916","v":0},0,{"$f":"[1]Personnel!S916","v":0},{"$f":"[1]Personnel!S916","v":0},{"$f":"[1]Personnel!S916","v":0},{"$f":"[1]Personnel!T916","v":0},0,{"$f":"[1]Personnel!V916","v":0},{"$f":"[1]Personnel!W916","v":0},0,{"$f":"[1]Personnel!Y916","v":0},{"$f":"[1]Personnel!Z916","v":0},0,0,0,0,null,null,null,null,null,null,null,null,null,null,null,null,null,null,null,null,null,null,null,null,null,null,null,null,null,{"$f":"[1]Personnel!G916","v":0}]
[0,{"$f":"IFERROR(INDEX(Settings!$AP$17:$AP$38,MATCH(Personnel!$G917,Settings!$AQ$17:$AQ$38,0)),0)","v":0},null,null,null,{"$f":"[1]Personnel!F917","v":0},{"$f":"IFERROR(INDEX((SLevel),MATCH(Personnel!BA917,SLevel202223,0)),0)","v":0},{"$f":"[1]Personnel!H917","v":0},{"$f":"[1]Personnel!I917","v":0},{"$f":"[1]Personnel!J917","v":0},{"$f":"[1]Personnel!P917","v":0},{"$f":"[1]Personnel!Q917","v":0},0,{"$f":"[1]Personnel!S917","v":0},{"$f":"[1]Personnel!S917","v":0},{"$f":"[1]Personnel!S917","v":0},{"$f":"[1]Personnel!T917","v":0},0,{"$f":"[1]Personnel!V917","v":0},{"$f":"[1]Personnel!W917","v":0},0,{"$f":"[1]Personnel!Y917","v":0},{"$f":"[1]Personnel!Z917","v":0},0,0,0,0,null,null,null,null,null,null,null,null,null,null,null,null,null,null,null,null,null,null,null,null,null,null,null,null,null,{"$f":"[1]Personnel!G917","v":0}]
[0,{"$f":"IFERROR(INDEX(Settings!$AP$17:$AP$38,MATCH(Personnel!$G918,Settings!$AQ$17:$AQ$38,0)),0)","v":0},null,null,null,{"$f":"[1]Personnel!F918","v":0},{"$f":"IFERROR(INDEX((SLevel),MATCH(Personnel!BA918,SLevel202223,0)),0)","v":0},{"$f":"[1]Personnel!H918","v":0},{"$f":"[1]Personnel!I918","v":0},{"$f":"[1]Personnel!J918","v":0},{"$f":"[1]Personnel!P918","v":0},{"$f":"[1]Personnel!Q918","v":0},0,{"$f":"[1]Personnel!S918","v":0},{"$f":"[1]Personnel!S918","v":0},{"$f":"[1]Personnel!S918","v":0},{"$f":"[1]Personnel!T918","v":0},0,{"$f":"[1]Personnel!V918","v":0},{"$f":"[1]Personnel!W918","v":0},0,{"$f":"[1]Personnel!Y918","v":0},{"$f":"[1]Personnel!Z918","v":0},0,0,0,0,null,null,null,null,null,null,null,null,null,null,null,null,null,null,null,null,null,null,null,null,null,null,null,null,null,{"$f":"[1]Personnel!G918","v":0}]
[0,{"$f":"IFERROR(INDEX(Settings!$AP$17:$AP$38,MATCH(Personnel!$G919,Settings!$AQ$17:$AQ$38,0)),0)","v":0},null,null,null,{"$f":"[1]Personnel!F919","v":0},{"$f":"IFERROR(INDEX((SLevel),MATCH(Personnel!BA919,SLevel202223,0)),0)","v":0},{"$f":"[1]Personnel!H919","v":0},{"$f":"[1]Personnel!I919","v":0},{"$f":"[1]Personnel!J919","v":0},{"$f":"[1]Personnel!P919","v":0},{"$f":"[1]Personnel!Q919","v":0},0,{"$f":"[1]Personnel!S919","v":0},{"$f":"[1]Personnel!S919","v":0},{"$f":"[1]Personnel!S919","v":0},{"$f":"[1]Personnel!T919","v":0},0,{"$f":"[1]Personnel!V919","v":0},{"$f":"[1]Personnel!W919","v":0},0,{"$f":"[1]Personnel!Y919","v":0},{"$f":"[1]Personnel!Z919","v":0},0,0,0,0,null,null,null,null,null,null,null,null,null,null,null,null,null,null,null,null,null,null,null,null,null,null,null,null,null,{"$f":"[1]Personnel!G919","v":0}]
[0,{"$f":"IFERROR(INDEX(Settings!$AP$17:$AP$38,MATCH(Personnel!$G920,Settings!$AQ$17:$AQ$38,0)),0)","v":0},null,null,null,{"$f":"[1]Personnel!F920","v":0},{"$f":"IFERROR(INDEX((SLevel),MATCH(Personnel!BA920,SLevel202223,0)),0)","v":0},{"$f":"[1]Personnel!H920","v":0},{"$f":"[1]Personnel!I920","v":0},{"$f":"[1]Personnel!J920","v":0},{"$f":"[1]Personnel!P920","v":0},{"$f":"[1]Personnel!Q920","v":0},0,{"$f":"[1]Personnel!S920","v":0},{"$f":"[1]Personnel!S920","v":0},{"$f":"[1]Personnel!S920","v":0},{"$f":"[1]Personnel!T920","v":0},0,{"$f":"[1]Personnel!V920","v":0},{"$f":"[1]Personnel!W920","v":0},0,{"$f":"[1]Personnel!Y920","v":0},{"$f":"[1]Personnel!Z920","v":0},0,0,0,0,null,null,null,null,null,null,null,null,null,null,null,null,null,null,null,null,null,null,null,null,null,null,null,null,null,{"$f":"[1]Personnel!G920","v":0}]
[0,{"$f":"IFERROR(INDEX(Settings!$AP$17:$AP$38,MATCH(Personnel!$G921,Settings!$AQ$17:$AQ$38,0)),0)","v":0},null,null,null,{"$f":"[1]Personnel!F921","v":0},{"$f":"IFERROR(INDEX((SLevel),MATCH(Personnel!BA921,SLevel202223,0)),0)","v":0},{"$f":"[1]Personnel!H921","v":0},{"$f":"[1]Personnel!I921","v":0},{"$f":"[1]Personnel!J921","v":0},{"$f":"[1]Personnel!P921","v":0},{"$f":"[1]Personnel!Q921","v":0},0,{"$f":"[1]Personnel!S921","v":0},{"$f":"[1]Personnel!S921","v":0},{"$f":"[1]Personnel!S921","v":0},{"$f":"[1]Personnel!T921","v":0},0,{"$f":"[1]Personnel!V921","v":0},{"$f":"[1]Personnel!W921","v":0},0,{"$f":"[1]Personnel!Y921","v":0},{"$f":"[1]Personnel!Z921","v":0},0,0,0,0,null,null,null,null,null,null,null,null,null,null,null,null,null,null,null,null,null,null,null,null,null,null,null,null,null,{"$f":"[1]Personnel!G921","v":0}]
[0,{"$f":"IFERROR(INDEX(Settings!$AP$17:$AP$38,MATCH(Personnel!$G922,Settings!$AQ$17:$AQ$38,0)),0)","v":0},null,null,null,{"$f":"[1]Personnel!F922","v":0},{"$f":"IFERROR(INDEX((SLevel),MATCH(Personnel!BA922,SLevel202223,0)),0)","v":0},{"$f":"[1]Personnel!H922","v":0},{"$f":"[1]Personnel!I922","v":0},{"$f":"[1]Personnel!J922","v":0},{"$f":"[1]Personnel!P922","v":0},{"$f":"[1]Personnel!Q922","v":0},0,{"$f":"[1]Personnel!S922","v":0},{"$f":"[1]Personnel!S922","v":0},{"$f":"[1]Personnel!S922","v":0},{"$f":"[1]Personnel!T922","v":0},0,{"$f":"[1]Personnel!V922","v":0},{"$f":"[1]Personnel!W922","v":0},0,{"$f":"[1]Personnel!Y922","v":0},{"$f":"[1]Personnel!Z922","v":0},0,0,0,0,null,null,null,null,null,null,null,null,null,null,null,null,null,null,null,null,null,null,null,null,null,null,null,null,null,{"$f":"[1]Personnel!G922","v":0}]
[0,{"$f":"IFERROR(INDEX(Settings!$AP$17:$AP$38,MATCH(Personnel!$G923,Settings!$AQ$17:$AQ$38,0)),0)","v":0},null,null,null,{"$f":"[1]Personnel!F923","v":0},{"$f":"IFERROR(INDEX((SLevel),MATCH(Personnel!BA923,SLevel202223,0)),0)","v":0},{"$f":"[1]Personnel!H923","v":0},{"$f":"[1]Personnel!I923","v":0},{"$f":"[1]Personnel!J923","v":0},{"$f":"[1]Personnel!P923","v":0},{"$f":"[1]Personnel!Q923","v":0},0,{"$f":"[1]Personnel!S923","v":0},{"$f":"[1]Personnel!S923","v":0},{"$f":"[1]Personnel!S923","v":0},{"$f":"[1]Personnel!T923","v":0},0,{"$f":"[1]Personnel!V923","v":0},{"$f":"[1]Personnel!W923","v":0},0,{"$f":"[1]Personnel!Y923","v":0},{"$f":"[1]Personnel!Z923","v":0},0,0,0,0,null,null,null,null,null,null,null,null,null,null,null,null,null,null,null,null,null,null,null,null,null,null,null,null,null,{"$f":"[1]Personnel!G923","v":0}]
[0,{"$f":"IFERROR(INDEX(Settings!$AP$17:$AP$38,MATCH(Personnel!$G924,Settings!$AQ$17:$AQ$38,0)),0)","v":0},null,null,null,{"$f":"[1]Personnel!F924","v":0},{"$f":"IFERROR(INDEX((SLevel),MATCH(Personnel!BA924,SLevel202223,0)),0)","v":0},{"$f":"[1]Personnel!H924","v":0},{"$f":"[1]Personnel!I924","v":0},{"$f":"[1]Personnel!J924","v":0},{"$f":"[1]Personnel!P924","v":0},{"$f":"[1]Personnel!Q924","v":0},0,{"$f":"[1]Personnel!S924","v":0},{"$f":"[1]Personnel!S924","v":0},{"$f":"[1]Personnel!S924","v":0},{"$f":"[1]Personnel!T924","v":0},0,{"$f":"[1]Personnel!V924","v":0},{"$f":"[1]Personnel!W924","v":0},0,{"$f":"[1]Personnel!Y924","v":0},{"$f":"[1]Personnel!Z924","v":0},0,0,0,0,null,null,null,null,null,null,null,null,null,null,null,null,null,null,null,null,null,null,null,null,null,null,null,null,null,{"$f":"[1]Personnel!G924","v":0}]
[0,{"$f":"IFERROR(INDEX(Settings!$AP$17:$AP$38,MATCH(Personnel!$G925,Settings!$AQ$17:$AQ$38,0)),0)","v":0},null,null,null,{"$f":"[1]Personnel!F925","v":0},{"$f":"IFERROR(INDEX((SLevel),MATCH(Personnel!BA925,SLevel202223,0)),0)","v":0},{"$f":"[1]Personnel!H925","v":0},{"$f":"[1]Personnel!I925","v":0},{"$f":"[1]Personnel!J925","v":0},{"$f":"[1]Personnel!P925","v":0},{"$f":"[1]Personnel!Q925","v":0},0,{"$f":"[1]Personnel!S925","v":0},{"$f":"[1]Personnel!S925","v":0},{"$f":"[1]Personnel!S925","v":0},{"$f":"[1]Personnel!T925","v":0},0,{"$f":"[1]Personnel!V925","v":0},{"$f":"[1]Personnel!W925","v":0},0,{"$f":"[1]Personnel!Y925","v":0},{"$f":"[1]Personnel!Z925","v":0},0,0,0,0,null,null,null,null,null,null,null,null,null,null,null,null,null,null,null,null,null,null,null,null,null,null,null,null,null,{"$f":"[1]Personnel!G925","v":0}]
[0,{"$f":"IFERROR(INDEX(Settings!$AP$17:$AP$38,MATCH(Personnel!$G926,Settings!$AQ$17:$AQ$38,0)),0)","v":0},null,null,null,{"$f":"[1]Personnel!F926","v":0},{"$f":"IFERROR(INDEX((SLevel),MATCH(Personnel!BA926,SLevel202223,0)),0)","v":0},{"$f":"[1]Personnel!H926","v":0},{"$f":"[1]Personnel!I926","v":0},{"$f":"[1]Personnel!J926","v":0},{"$f":"[1]Personnel!P926","v":0},{"$f":"[1]Personnel!Q926","v":0},0,{"$f":"[1]Personnel!S926","v":0},{"$f":"[1]Personnel!S926","v":0},{"$f":"[1]Personnel!S926","v":0},{"$f":"[1]Personnel!T926","v":0},0,{"$f":"[1]Personnel!V926","v":0},{"$f":"[1]Personnel!W926","v":0},0,{"$f":"[1]Personnel!Y926","v":0},{"$f":"[1]Personnel!Z926","v":0},0,0,0,0,null,null,null,null,null,null,null,null,null,null,null,null,null,null,null,null,null,null,null,null,null,null,null,null,null,{"$f":"[1]Personnel!G926","v":0}]
[0,{"$f":"IFERROR(INDEX(Settings!$AP$17:$AP$38,MATCH(Personnel!$G927,Settings!$AQ$17:$AQ$38,0)),0)","v":0},null,null,null,{"$f":"[1]Personnel!F927","v":0},{"$f":"IFERROR(INDEX((SLevel),MATCH(Personnel!BA927,SLevel202223,0)),0)","v":0},{"$f":"[1]Personnel!H927","v":0},{"$f":"[1]Personnel!I927","v":0},{"$f":"[1]Personnel!J927","v":0},{"$f":"[1]Personnel!P927","v":0},{"$f":"[1]Personnel!Q927","v":0},0,{"$f":"[1]Personnel!S927","v":0},{"$f":"[1]Personnel!S927","v":0},{"$f":"[1]Personnel!S927","v":0},{"$f":"[1]Personnel!T927","v":0},0,{"$f":"[1]Personnel!V927","v":0},{"$f":"[1]Personnel!W927","v":0},0,{"$f":"[1]Personnel!Y927","v":0},{"$f":"[1]Personnel!Z927","v":0},0,0,0,0,null,null,null,null,null,null,null,null,null,null,null,null,null,null,null,null,null,null,null,null,null,null,null,null,null,{"$f":"[1]Personnel!G927","v":0}]
[0,{"$f":"IFERROR(INDEX(Settings!$AP$17:$AP$38,MATCH(Personnel!$G928,Settings!$AQ$17:$AQ$38,0)),0)","v":0},null,null,null,{"$f":"[1]Personnel!F928","v":0},{"$f":"IFERROR(INDEX((SLevel),MATCH(Personnel!BA928,SLevel202223,0)),0)","v":0},{"$f":"[1]Personnel!H928","v":0},{"$f":"[1]Personnel!I928","v":0},{"$f":"[1]Personnel!J928","v":0},{"$f":"[1]Personnel!P928","v":0},{"$f":"[1]Personnel!Q928","v":0},0,{"$f":"[1]Personnel!S928","v":0},{"$f":"[1]Personnel!S928","v":0},{"$f":"[1]Personnel!S928","v":0},{"$f":"[1]Personnel!T928","v":0},0,{"$f":"[1]Personnel!V928","v":0},{"$f":"[1]Personnel!W928","v":0},0,{"$f":"[1]Personnel!Y928","v":0},{"$f":"[1]Personnel!Z928","v":0},0,0,0,0,null,null,null,null,null,null,null,null,null,null,null,null,null,null,null,null,null,null,null,null,null,null,null,null,null,{"$f":"[1]Personnel!G928","v":0}]
[0,{"$f":"IFERROR(INDEX(Settings!$AP$17:$AP$38,MATCH(Personnel!$G929,Settings!$AQ$17:$AQ$38,0)),0)","v":0},null,null,null,{"$f":"[1]Personnel!F929","v":0},{"$f":"IFERROR(INDEX((SLevel),MATCH(Personnel!BA929,SLevel202223,0)),0)","v":0},{"$f":"[1]Personnel!H929","v":0},{"$f":"[1]Personnel!I929","v":0},{"$f":"[1]Personnel!J929","v":0},{"$f":"[1]Personnel!P929","v":0},{"$f":"[1]Personnel!Q929","v":0},0,{"$f":"[1]Personnel!S929","v":0},{"$f":"[1]Personnel!S929","v":0},{"$f":"[1]Personnel!S929","v":0},{"$f":"[1]Personnel!T929","v":0},0,{"$f":"[1]Personnel!V929","v":0},{"$f":"[1]Personnel!W929","v":0},0,{"$f":"[1]Personnel!Y929","v":0},{"$f":"[1]Personnel!Z929","v":0},0,0,0,0,null,null,null,null,null,null,null,null,null,null,null,null,null,null,null,null,null,null,null,null,null,null,null,null,null,{"$f":"[1]Personnel!G929","v":0}]
[0,{"$f":"IFERROR(INDEX(Settings!$AP$17:$AP$38,MATCH(Personnel!$G930,Settings!$AQ$17:$AQ$38,0)),0)","v":0},null,null,null,{"$f":"[1]Personnel!F930","v":0},{"$f":"IFERROR(INDEX((SLevel),MATCH(Personnel!BA930,SLevel202223,0)),0)","v":0},{"$f":"[1]Personnel!H930","v":0},{"$f":"[1]Personnel!I930","v":0},{"$f":"[1]Personnel!J930","v":0},{"$f":"[1]Personnel!P930","v":0},{"$f":"[1]Personnel!Q930","v":0},0,{"$f":"[1]Personnel!S930","v":0},{"$f":"[1]Personnel!S930","v":0},{"$f":"[1]Personnel!S930","v":0},{"$f":"[1]Personnel!T930","v":0},0,{"$f":"[1]Personnel!V930","v":0},{"$f":"[1]Personnel!W930","v":0},0,{"$f":"[1]Personnel!Y930","v":0},{"$f":"[1]Personnel!Z930","v":0},0,0,0,0,null,null,null,null,null,null,null,null,null,null,null,null,null,null,null,null,null,null,null,null,null,null,null,null,null,{"$f":"[1]Personnel!G930","v":0}]
[0,{"$f":"IFERROR(INDEX(Settings!$AP$17:$AP$38,MATCH(Personnel!$G931,Settings!$AQ$17:$AQ$38,0)),0)","v":0},null,null,null,{"$f":"[1]Personnel!F931","v":0},{"$f":"IFERROR(INDEX((SLevel),MATCH(Personnel!BA931,SLevel202223,0)),0)","v":0},{"$f":"[1]Personnel!H931","v":0},{"$f":"[1]Personnel!I931","v":0},{"$f":"[1]Personnel!J931","v":0},{"$f":"[1]Personnel!P931","v":0},{"$f":"[1]Personnel!Q931","v":0},0,{"$f":"[1]Personnel!S931","v":0},{"$f":"[1]Personnel!S931","v":0},{"$f":"[1]Personnel!S931","v":0},{"$f":"[1]Personnel!T931","v":0},0,{"$f":"[1]Personnel!V931","v":0},{"$f":"[1]Personnel!W931","v":0},0,{"$f":"[1]Personnel!Y931","v":0},{"$f":"[1]Personnel!Z931","v":0},0,0,0,0,null,null,null,null,null,null,null,null,null,null,null,null,null,null,null,null,null,null,null,null,null,null,null,null,null,{"$f":"[1]Personnel!G931","v":0}]
[0,{"$f":"IFERROR(INDEX(Settings!$AP$17:$AP$38,MATCH(Personnel!$G932,Settings!$AQ$17:$AQ$38,0)),0)","v":0},null,null,null,{"$f":"[1]Personnel!F932","v":0},{"$f":"IFERROR(INDEX((SLevel),MATCH(Personnel!BA932,SLevel202223,0)),0)","v":0},{"$f":"[1]Personnel!H932","v":0},{"$f":"[1]Personnel!I932","v":0},{"$f":"[1]Personnel!J932","v":0},{"$f":"[1]Personnel!P932","v":0},{"$f":"[1]Personnel!Q932","v":0},0,{"$f":"[1]Personnel!S932","v":0},{"$f":"[1]Personnel!S932","v":0},{"$f":"[1]Personnel!S932","v":0},{"$f":"[1]Personnel!T932","v":0},0,{"$f":"[1]Personnel!V932","v":0},{"$f":"[1]Personnel!W932","v":0},0,{"$f":"[1]Personnel!Y932","v":0},{"$f":"[1]Personnel!Z932","v":0},0,0,0,0,null,null,null,null,null,null,null,null,null,null,null,null,null,null,null,null,null,null,null,null,null,null,null,null,null,{"$f":"[1]Personnel!G932","v":0}]
[0,{"$f":"IFERROR(INDEX(Settings!$AP$17:$AP$38,MATCH(Personnel!$G933,Settings!$AQ$17:$AQ$38,0)),0)","v":0},null,null,null,{"$f":"[1]Personnel!F933","v":0},{"$f":"IFERROR(INDEX((SLevel),MATCH(Personnel!BA933,SLevel202223,0)),0)","v":0},{"$f":"[1]Personnel!H933","v":0},{"$f":"[1]Personnel!I933","v":0},{"$f":"[1]Personnel!J933","v":0},{"$f":"[1]Personnel!P933","v":0},{"$f":"[1]Personnel!Q933","v":0},0,{"$f":"[1]Personnel!S933","v":0},{"$f":"[1]Personnel!S933","v":0},{"$f":"[1]Personnel!S933","v":0},{"$f":"[1]Personnel!T933","v":0},0,{"$f":"[1]Personnel!V933","v":0},{"$f":"[1]Personnel!W933","v":0},0,{"$f":"[1]Personnel!Y933","v":0},{"$f":"[1]Personnel!Z933","v":0},0,0,0,0,null,null,null,null,null,null,null,null,null,null,null,null,null,null,null,null,null,null,null,null,null,null,null,null,null,{"$f":"[1]Personnel!G933","v":0}]
[0,{"$f":"IFERROR(INDEX(Settings!$AP$17:$AP$38,MATCH(Personnel!$G934,Settings!$AQ$17:$AQ$38,0)),0)","v":0},null,null,null,{"$f":"[1]Personnel!F934","v":0},{"$f":"IFERROR(INDEX((SLevel),MATCH(Personnel!BA934,SLevel202223,0)),0)","v":0},{"$f":"[1]Personnel!H934","v":0},{"$f":"[1]Personnel!I934","v":0},{"$f":"[1]Personnel!J934","v":0},{"$f":"[1]Personnel!P934","v":0},{"$f":"[1]Personnel!Q934","v":0},0,{"$f":"[1]Personnel!S934","v":0},{"$f":"[1]Personnel!S934","v":0},{"$f":"[1]Personnel!S934","v":0},{"$f":"[1]Personnel!T934","v":0},0,{"$f":"[1]Personnel!V934","v":0},{"$f":"[1]Personnel!W934","v":0},0,{"$f":"[1]Personnel!Y934","v":0},{"$f":"[1]Personnel!Z934","v":0},0,0,0,0,null,null,null,null,null,null,null,null,null,null,null,null,null,null,null,null,null,null,null,null,null,null,null,null,null,{"$f":"[1]Personnel!G934","v":0}]
[0,{"$f":"IFERROR(INDEX(Settings!$AP$17:$AP$38,MATCH(Personnel!$G935,Settings!$AQ$17:$AQ$38,0)),0)","v":0},null,null,null,{"$f":"[1]Personnel!F935","v":0},{"$f":"IFERROR(INDEX((SLevel),MATCH(Personnel!BA935,SLevel202223,0)),0)","v":0},{"$f":"[1]Personnel!H935","v":0},{"$f":"[1]Personnel!I935","v":0},{"$f":"[1]Personnel!J935","v":0},{"$f":"[1]Personnel!P935","v":0},{"$f":"[1]Personnel!Q935","v":0},0,{"$f":"[1]Personnel!S935","v":0},{"$f":"[1]Personnel!S935","v":0},{"$f":"[1]Personnel!S935","v":0},{"$f":"[1]Personnel!T935","v":0},0,{"$f":"[1]Personnel!V935","v":0},{"$f":"[1]Personnel!W935","v":0},0,{"$f":"[1]Personnel!Y935","v":0},{"$f":"[1]Personnel!Z935","v":0},0,0,0,0,null,null,null,null,null,null,null,null,null,null,null,null,null,null,null,null,null,null,null,null,null,null,null,null,null,{"$f":"[1]Personnel!G935","v":0}]
[0,{"$f":"IFERROR(INDEX(Settings!$AP$17:$AP$38,MATCH(Personnel!$G936,Settings!$AQ$17:$AQ$38,0)),0)","v":0},null,null,null,{"$f":"[1]Personnel!F936","v":0},{"$f":"IFERROR(INDEX((SLevel),MATCH(Personnel!BA936,SLevel202223,0)),0)","v":0},{"$f":"[1]Personnel!H936","v":0},{"$f":"[1]Personnel!I936","v":0},{"$f":"[1]Personnel!J936","v":0},{"$f":"[1]Personnel!P936","v":0},{"$f":"[1]Personnel!Q936","v":0},0,{"$f":"[1]Personnel!S936","v":0},{"$f":"[1]Personnel!S936","v":0},{"$f":"[1]Personnel!S936","v":0},{"$f":"[1]Personnel!T936","v":0},0,{"$f":"[1]Personnel!V936","v":0},{"$f":"[1]Personnel!W936","v":0},0,{"$f":"[1]Personnel!Y936","v":0},{"$f":"[1]Personnel!Z936","v":0},0,0,0,0,null,null,null,null,null,null,null,null,null,null,null,null,null,null,null,null,null,null,null,null,null,null,null,null,null,{"$f":"[1]Personnel!G936","v":0}]
[0,{"$f":"IFERROR(INDEX(Settings!$AP$17:$AP$38,MATCH(Personnel!$G937,Settings!$AQ$17:$AQ$38,0)),0)","v":0},null,null,null,{"$f":"[1]Personnel!F937","v":0},{"$f":"IFERROR(INDEX((SLevel),MATCH(Personnel!BA937,SLevel202223,0)),0)","v":0},{"$f":"[1]Personnel!H937","v":0},{"$f":"[1]Personnel!I937","v":0},{"$f":"[1]Personnel!J937","v":0},{"$f":"[1]Personnel!P937","v":0},{"$f":"[1]Personnel!Q937","v":0},0,{"$f":"[1]Personnel!S937","v":0},{"$f":"[1]Personnel!S937","v":0},{"$f":"[1]Personnel!S937","v":0},{"$f":"[1]Personnel!T937","v":0},0,{"$f":"[1]Personnel!V937","v":0},{"$f":"[1]Personnel!W937","v":0},0,{"$f":"[1]Personnel!Y937","v":0},{"$f":"[1]Personnel!Z937","v":0},0,0,0,0,null,null,null,null,null,null,null,null,null,null,null,null,null,null,null,null,null,null,null,null,null,null,null,null,null,{"$f":"[1]Personnel!G937","v":0}]
[0,{"$f":"IFERROR(INDEX(Settings!$AP$17:$AP$38,MATCH(Personnel!$G938,Settings!$AQ$17:$AQ$38,0)),0)","v":0},null,null,null,{"$f":"[1]Personnel!F938","v":0},{"$f":"IFERROR(INDEX((SLevel),MATCH(Personnel!BA938,SLevel202223,0)),0)","v":0},{"$f":"[1]Personnel!H938","v":0},{"$f":"[1]Personnel!I938","v":0},{"$f":"[1]Personnel!J938","v":0},{"$f":"[1]Personnel!P938","v":0},{"$f":"[1]Personnel!Q938","v":0},0,{"$f":"[1]Personnel!S938","v":0},{"$f":"[1]Personnel!S938","v":0},{"$f":"[1]Personnel!S938","v":0},{"$f":"[1]Personnel!T938","v":0},0,{"$f":"[1]Personnel!V938","v":0},{"$f":"[1]Personnel!W938","v":0},0,{"$f":"[1]Personnel!Y938","v":0},{"$f":"[1]Personnel!Z938","v":0},0,0,0,0,null,null,null,null,null,null,null,null,null,null,null,null,null,null,null,null,null,null,null,null,null,null,null,null,null,{"$f":"[1]Personnel!G938","v":0}]
[0,{"$f":"IFERROR(INDEX(Settings!$AP$17:$AP$38,MATCH(Personnel!$G939,Settings!$AQ$17:$AQ$38,0)),0)","v":0},null,null,null,{"$f":"[1]Personnel!F939","v":0},{"$f":"IFERROR(INDEX((SLevel),MATCH(Personnel!BA939,SLevel202223,0)),0)","v":0},{"$f":"[1]Personnel!H939","v":0},{"$f":"[1]Personnel!I939","v":0},{"$f":"[1]Personnel!J939","v":0},{"$f":"[1]Personnel!P939","v":0},{"$f":"[1]Personnel!Q939","v":0},0,{"$f":"[1]Personnel!S939","v":0},{"$f":"[1]Personnel!S939","v":0},{"$f":"[1]Personnel!S939","v":0},{"$f":"[1]Personnel!T939","v":0},0,{"$f":"[1]Personnel!V939","v":0},{"$f":"[1]Personnel!W939","v":0},0,{"$f":"[1]Personnel!Y939","v":0},{"$f":"[1]Personnel!Z939","v":0},0,0,0,0,null,null,null,null,null,null,null,null,null,null,null,null,null,null,null,null,null,null,null,null,null,null,null,null,null,{"$f":"[1]Personnel!G939","v":0}]
[0,{"$f":"IFERROR(INDEX(Settings!$AP$17:$AP$38,MATCH(Personnel!$G940,Settings!$AQ$17:$AQ$38,0)),0)","v":0},null,null,null,{"$f":"[1]Personnel!F940","v":0},{"$f":"IFERROR(INDEX((SLevel),MATCH(Personnel!BA940,SLevel202223,0)),0)","v":0},{"$f":"[1]Personnel!H940","v":0},{"$f":"[1]Personnel!I940","v":0},{"$f":"[1]Personnel!J940","v":0},{"$f":"[1]Personnel!P940","v":0},{"$f":"[1]Personnel!Q940","v":0},0,{"$f":"[1]Personnel!S940","v":0},{"$f":"[1]Personnel!S940","v":0},{"$f":"[1]Personnel!S940","v":0},{"$f":"[1]Personnel!T940","v":0},0,{"$f":"[1]Personnel!V940","v":0},{"$f":"[1]Personnel!W940","v":0},0,{"$f":"[1]Personnel!Y940","v":0},{"$f":"[1]Personnel!Z940","v":0},0,0,0,0,null,null,null,null,null,null,null,null,null,null,null,null,null,null,null,null,null,null,null,null,null,null,null,null,null,{"$f":"[1]Personnel!G940","v":0}]
[0,{"$f":"IFERROR(INDEX(Settings!$AP$17:$AP$38,MATCH(Personnel!$G941,Settings!$AQ$17:$AQ$38,0)),0)","v":0},null,null,null,{"$f":"[1]Personnel!F941","v":0},{"$f":"IFERROR(INDEX((SLevel),MATCH(Personnel!BA941,SLevel202223,0)),0)","v":0},{"$f":"[1]Personnel!H941","v":0},{"$f":"[1]Personnel!I941","v":0},{"$f":"[1]Personnel!J941","v":0},{"$f":"[1]Personnel!P941","v":0},{"$f":"[1]Personnel!Q941","v":0},0,{"$f":"[1]Personnel!S941","v":0},{"$f":"[1]Personnel!S941","v":0},{"$f":"[1]Personnel!S941","v":0},{"$f":"[1]Personnel!T941","v":0},0,{"$f":"[1]Personnel!V941","v":0},{"$f":"[1]Personnel!W941","v":0},0,{"$f":"[1]Personnel!Y941","v":0},{"$f":"[1]Personnel!Z941","v":0},0,0,0,0,null,null,null,null,null,null,null,null,null,null,null,null,null,null,null,null,null,null,null,null,null,null,null,null,null,{"$f":"[1]Personnel!G941","v":0}]
[0,{"$f":"IFERROR(INDEX(Settings!$AP$17:$AP$38,MATCH(Personnel!$G942,Settings!$AQ$17:$AQ$38,0)),0)","v":0},null,null,null,{"$f":"[1]Personnel!F942","v":0},{"$f":"IFERROR(INDEX((SLevel),MATCH(Personnel!BA942,SLevel202223,0)),0)","v":0},{"$f":"[1]Personnel!H942","v":0},{"$f":"[1]Personnel!I942","v":0},{"$f":"[1]Personnel!J942","v":0},{"$f":"[1]Personnel!P942","v":0},{"$f":"[1]Personnel!Q942","v":0},0,{"$f":"[1]Personnel!S942","v":0},{"$f":"[1]Personnel!S942","v":0},{"$f":"[1]Personnel!S942","v":0},{"$f":"[1]Personnel!T942","v":0},0,{"$f":"[1]Personnel!V942","v":0},{"$f":"[1]Personnel!W942","v":0},0,{"$f":"[1]Personnel!Y942","v":0},{"$f":"[1]Personnel!Z942","v":0},0,0,0,0,null,null,null,null,null,null,null,null,null,null,null,null,null,null,null,null,null,null,null,null,null,null,null,null,null,{"$f":"[1]Personnel!G942","v":0}]
[0,{"$f":"IFERROR(INDEX(Settings!$AP$17:$AP$38,MATCH(Personnel!$G943,Settings!$AQ$17:$AQ$38,0)),0)","v":0},null,null,null,{"$f":"[1]Personnel!F943","v":0},{"$f":"IFERROR(INDEX((SLevel),MATCH(Personnel!BA943,SLevel202223,0)),0)","v":0},{"$f":"[1]Personnel!H943","v":0},{"$f":"[1]Personnel!I943","v":0},{"$f":"[1]Personnel!J943","v":0},{"$f":"[1]Personnel!P943","v":0},{"$f":"[1]Personnel!Q943","v":0},0,{"$f":"[1]Personnel!S943","v":0},{"$f":"[1]Personnel!S943","v":0},{"$f":"[1]Personnel!S943","v":0},{"$f":"[1]Personnel!T943","v":0},0,{"$f":"[1]Personnel!V943","v":0},{"$f":"[1]Personnel!W943","v":0},0,{"$f":"[1]Personnel!Y943","v":0},{"$f":"[1]Personnel!Z943","v":0},0,0,0,0,null,null,null,null,null,null,null,null,null,null,null,null,null,null,null,null,null,null,null,null,null,null,null,null,null,{"$f":"[1]Personnel!G943","v":0}]
[0,{"$f":"IFERROR(INDEX(Settings!$AP$17:$AP$38,MATCH(Personnel!$G944,Settings!$AQ$17:$AQ$38,0)),0)","v":0},null,null,null,{"$f":"[1]Personnel!F944","v":0},{"$f":"IFERROR(INDEX((SLevel),MATCH(Personnel!BA944,SLevel202223,0)),0)","v":0},{"$f":"[1]Personnel!H944","v":0},{"$f":"[1]Personnel!I944","v":0},{"$f":"[1]Personnel!J944","v":0},{"$f":"[1]Personnel!P944","v":0},{"$f":"[1]Personnel!Q944","v":0},0,{"$f":"[1]Personnel!S944","v":0},{"$f":"[1]Personnel!S944","v":0},{"$f":"[1]Personnel!S944","v":0},{"$f":"[1]Personnel!T944","v":0},0,{"$f":"[1]Personnel!V944","v":0},{"$f":"[1]Personnel!W944","v":0},0,{"$f":"[1]Personnel!Y944","v":0},{"$f":"[1]Personnel!Z944","v":0},0,0,0,0,null,null,null,null,null,null,null,null,null,null,null,null,null,null,null,null,null,null,null,null,null,null,null,null,null,{"$f":"[1]Personnel!G944","v":0}]
[0,{"$f":"IFERROR(INDEX(Settings!$AP$17:$AP$38,MATCH(Personnel!$G945,Settings!$AQ$17:$AQ$38,0)),0)","v":0},null,null,null,{"$f":"[1]Personnel!F945","v":0},{"$f":"IFERROR(INDEX((SLevel),MATCH(Personnel!BA945,SLevel202223,0)),0)","v":0},{"$f":"[1]Personnel!H945","v":0},{"$f":"[1]Personnel!I945","v":0},{"$f":"[1]Personnel!J945","v":0},{"$f":"[1]Personnel!P945","v":0},{"$f":"[1]Personnel!Q945","v":0},0,{"$f":"[1]Personnel!S945","v":0},{"$f":"[1]Personnel!S945","v":0},{"$f":"[1]Personnel!S945","v":0},{"$f":"[1]Personnel!T945","v":0},0,{"$f":"[1]Personnel!V945","v":0},{"$f":"[1]Personnel!W945","v":0},0,{"$f":"[1]Personnel!Y945","v":0},{"$f":"[1]Personnel!Z945","v":0},0,0,0,0,null,null,null,null,null,null,null,null,null,null,null,null,null,null,null,null,null,null,null,null,null,null,null,null,null,{"$f":"[1]Personnel!G945","v":0}]
[0,{"$f":"IFERROR(INDEX(Settings!$AP$17:$AP$38,MATCH(Personnel!$G946,Settings!$AQ$17:$AQ$38,0)),0)","v":0},null,null,null,{"$f":"[1]Personnel!F946","v":0},{"$f":"IFERROR(INDEX((SLevel),MATCH(Personnel!BA946,SLevel202223,0)),0)","v":0},{"$f":"[1]Personnel!H946","v":0},{"$f":"[1]Personnel!I946","v":0},{"$f":"[1]Personnel!J946","v":0},{"$f":"[1]Personnel!P946","v":0},{"$f":"[1]Personnel!Q946","v":0},0,{"$f":"[1]Personnel!S946","v":0},{"$f":"[1]Personnel!S946","v":0},{"$f":"[1]Personnel!S946","v":0},{"$f":"[1]Personnel!T946","v":0},0,{"$f":"[1]Personnel!V946","v":0},{"$f":"[1]Personnel!W946","v":0},0,{"$f":"[1]Personnel!Y946","v":0},{"$f":"[1]Personnel!Z946","v":0},0,0,0,0,null,null,null,null,null,null,null,null,null,null,null,null,null,null,null,null,null,null,null,null,null,null,null,null,null,{"$f":"[1]Personnel!G946","v":0}]
[0,{"$f":"IFERROR(INDEX(Settings!$AP$17:$AP$38,MATCH(Personnel!$G947,Settings!$AQ$17:$AQ$38,0)),0)","v":0},null,null,null,{"$f":"[1]Personnel!F947","v":0},{"$f":"IFERROR(INDEX((SLevel),MATCH(Personnel!BA947,SLevel202223,0)),0)","v":0},{"$f":"[1]Personnel!H947","v":0},{"$f":"[1]Personnel!I947","v":0},{"$f":"[1]Personnel!J947","v":0},{"$f":"[1]Personnel!P947","v":0},{"$f":"[1]Personnel!Q947","v":0},0,{"$f":"[1]Personnel!S947","v":0},{"$f":"[1]Personnel!S947","v":0},{"$f":"[1]Personnel!S947","v":0},{"$f":"[1]Personnel!T947","v":0},0,{"$f":"[1]Personnel!V947","v":0},{"$f":"[1]Personnel!W947","v":0},0,{"$f":"[1]Personnel!Y947","v":0},{"$f":"[1]Personnel!Z947","v":0},0,0,0,0,null,null,null,null,null,null,null,null,null,null,null,null,null,null,null,null,null,null,null,null,null,null,null,null,null,{"$f":"[1]Personnel!G947","v":0}]
[0,{"$f":"IFERROR(INDEX(Settings!$AP$17:$AP$38,MATCH(Personnel!$G948,Settings!$AQ$17:$AQ$38,0)),0)","v":0},null,null,null,{"$f":"[1]Personnel!F948","v":0},{"$f":"IFERROR(INDEX((SLevel),MATCH(Personnel!BA948,SLevel202223,0)),0)","v":0},{"$f":"[1]Personnel!H948","v":0},{"$f":"[1]Personnel!I948","v":0},{"$f":"[1]Personnel!J948","v":0},{"$f":"[1]Personnel!P948","v":0},{"$f":"[1]Personnel!Q948","v":0},0,{"$f":"[1]Personnel!S948","v":0},{"$f":"[1]Personnel!S948","v":0},{"$f":"[1]Personnel!S948","v":0},{"$f":"[1]Personnel!T948","v":0},0,{"$f":"[1]Personnel!V948","v":0},{"$f":"[1]Personnel!W948","v":0},0,{"$f":"[1]Personnel!Y948","v":0},{"$f":"[1]Personnel!Z948","v":0},0,0,0,0,null,null,null,null,null,null,null,null,null,null,null,null,null,null,null,null,null,null,null,null,null,null,null,null,null,{"$f":"[1]Personnel!G948","v":0}]
[0,{"$f":"IFERROR(INDEX(Settings!$AP$17:$AP$38,MATCH(Personnel!$G949,Settings!$AQ$17:$AQ$38,0)),0)","v":0},null,null,null,{"$f":"[1]Personnel!F949","v":0},{"$f":"IFERROR(INDEX((SLevel),MATCH(Personnel!BA949,SLevel202223,0)),0)","v":0},{"$f":"[1]Personnel!H949","v":0},{"$f":"[1]Personnel!I949","v":0},{"$f":"[1]Personnel!J949","v":0},{"$f":"[1]Personnel!P949","v":0},{"$f":"[1]Personnel!Q949","v":0},0,{"$f":"[1]Personnel!S949","v":0},{"$f":"[1]Personnel!S949","v":0},{"$f":"[1]Personnel!S949","v":0},{"$f":"[1]Personnel!T949","v":0},0,{"$f":"[1]Personnel!V949","v":0},{"$f":"[1]Personnel!W949","v":0},0,{"$f":"[1]Personnel!Y949","v":0},{"$f":"[1]Personnel!Z949","v":0},0,0,0,0,null,null,null,null,null,null,null,null,null,null,null,null,null,null,null,null,null,null,null,null,null,null,null,null,null,{"$f":"[1]Personnel!G949","v":0}]
[0,{"$f":"IFERROR(INDEX(Settings!$AP$17:$AP$38,MATCH(Personnel!$G950,Settings!$AQ$17:$AQ$38,0)),0)","v":0},null,null,null,{"$f":"[1]Personnel!F950","v":0},{"$f":"IFERROR(INDEX((SLevel),MATCH(Personnel!BA950,SLevel202223,0)),0)","v":0},{"$f":"[1]Personnel!H950","v":0},{"$f":"[1]Personnel!I950","v":0},{"$f":"[1]Personnel!J950","v":0},{"$f":"[1]Personnel!P950","v":0},{"$f":"[1]Personnel!Q950","v":0},0,{"$f":"[1]Personnel!S950","v":0},{"$f":"[1]Personnel!S950","v":0},{"$f":"[1]Personnel!S950","v":0},{"$f":"[1]Personnel!T950","v":0},0,{"$f":"[1]Personnel!V950","v":0},{"$f":"[1]Personnel!W950","v":0},0,{"$f":"[1]Personnel!Y950","v":0},{"$f":"[1]Personnel!Z950","v":0},0,0,0,0,null,null,null,null,null,null,null,null,null,null,null,null,null,null,null,null,null,null,null,null,null,null,null,null,null,{"$f":"[1]Personnel!G950","v":0}]
[0,{"$f":"IFERROR(INDEX(Settings!$AP$17:$AP$38,MATCH(Personnel!$G951,Settings!$AQ$17:$AQ$38,0)),0)","v":0},null,null,null,{"$f":"[1]Personnel!F951","v":0},{"$f":"IFERROR(INDEX((SLevel),MATCH(Personnel!BA951,SLevel202223,0)),0)","v":0},{"$f":"[1]Personnel!H951","v":0},{"$f":"[1]Personnel!I951","v":0},{"$f":"[1]Personnel!J951","v":0},{"$f":"[1]Personnel!P951","v":0},{"$f":"[1]Personnel!Q951","v":0},0,{"$f":"[1]Personnel!S951","v":0},{"$f":"[1]Personnel!S951","v":0},{"$f":"[1]Personnel!S951","v":0},{"$f":"[1]Personnel!T951","v":0},0,{"$f":"[1]Personnel!V951","v":0},{"$f":"[1]Personnel!W951","v":0},0,{"$f":"[1]Personnel!Y951","v":0},{"$f":"[1]Personnel!Z951","v":0},0,0,0,0,null,null,null,null,null,null,null,null,null,null,null,null,null,null,null,null,null,null,null,null,null,null,null,null,null,{"$f":"[1]Personnel!G951","v":0}]
[0,{"$f":"IFERROR(INDEX(Settings!$AP$17:$AP$38,MATCH(Personnel!$G952,Settings!$AQ$17:$AQ$38,0)),0)","v":0},null,null,null,{"$f":"[1]Personnel!F952","v":0},{"$f":"IFERROR(INDEX((SLevel),MATCH(Personnel!BA952,SLevel202223,0)),0)","v":0},{"$f":"[1]Personnel!H952","v":0},{"$f":"[1]Personnel!I952","v":0},{"$f":"[1]Personnel!J952","v":0},{"$f":"[1]Personnel!P952","v":0},{"$f":"[1]Personnel!Q952","v":0},0,{"$f":"[1]Personnel!S952","v":0},{"$f":"[1]Personnel!S952","v":0},{"$f":"[1]Personnel!S952","v":0},{"$f":"[1]Personnel!T952","v":0},0,{"$f":"[1]Personnel!V952","v":0},{"$f":"[1]Personnel!W952","v":0},0,{"$f":"[1]Personnel!Y952","v":0},{"$f":"[1]Personnel!Z952","v":0},0,0,0,0,null,null,null,null,null,null,null,null,null,null,null,null,null,null,null,null,null,null,null,null,null,null,null,null,null,{"$f":"[1]Personnel!G952","v":0}]
[0,{"$f":"IFERROR(INDEX(Settings!$AP$17:$AP$38,MATCH(Personnel!$G953,Settings!$AQ$17:$AQ$38,0)),0)","v":0},null,null,null,{"$f":"[1]Personnel!F953","v":0},{"$f":"IFERROR(INDEX((SLevel),MATCH(Personnel!BA953,SLevel202223,0)),0)","v":0},{"$f":"[1]Personnel!H953","v":0},{"$f":"[1]Personnel!I953","v":0},{"$f":"[1]Personnel!J953","v":0},{"$f":"[1]Personnel!P953","v":0},{"$f":"[1]Personnel!Q953","v":0},0,{"$f":"[1]Personnel!S953","v":0},{"$f":"[1]Personnel!S953","v":0},{"$f":"[1]Personnel!S953","v":0},{"$f":"[1]Personnel!T953","v":0},0,{"$f":"[1]Personnel!V953","v":0},{"$f":"[1]Personnel!W953","v":0},0,{"$f":"[1]Personnel!Y953","v":0},{"$f":"[1]Personnel!Z953","v":0},0,0,0,0,null,null,null,null,null,null,null,null,null,null,null,null,null,null,null,null,null,null,null,null,null,null,null,null,null,{"$f":"[1]Personnel!G953","v":0}]
[0,{"$f":"IFERROR(INDEX(Settings!$AP$17:$AP$38,MATCH(Personnel!$G954,Settings!$AQ$17:$AQ$38,0)),0)","v":0},null,null,null,{"$f":"[1]Personnel!F954","v":0},{"$f":"IFERROR(INDEX((SLevel),MATCH(Personnel!BA954,SLevel202223,0)),0)","v":0},{"$f":"[1]Personnel!H954","v":0},{"$f":"[1]Personnel!I954","v":0},{"$f":"[1]Personnel!J954","v":0},{"$f":"[1]Personnel!P954","v":0},{"$f":"[1]Personnel!Q954","v":0},0,{"$f":"[1]Personnel!S954","v":0},{"$f":"[1]Personnel!S954","v":0},{"$f":"[1]Personnel!S954","v":0},{"$f":"[1]Personnel!T954","v":0},0,{"$f":"[1]Personnel!V954","v":0},{"$f":"[1]Personnel!W954","v":0},0,{"$f":"[1]Personnel!Y954","v":0},{"$f":"[1]Personnel!Z954","v":0},0,0,0,0,null,null,null,null,null,null,null,null,null,null,null,null,null,null,null,null,null,null,null,null,null,null,null,null,null,{"$f":"[1]Personnel!G954","v":0}]
[0,{"$f":"IFERROR(INDEX(Settings!$AP$17:$AP$38,MATCH(Personnel!$G955,Settings!$AQ$17:$AQ$38,0)),0)","v":0},null,null,null,{"$f":"[1]Personnel!F955","v":0},{"$f":"IFERROR(INDEX((SLevel),MATCH(Personnel!BA955,SLevel202223,0)),0)","v":0},{"$f":"[1]Personnel!H955","v":0},{"$f":"[1]Personnel!I955","v":0},{"$f":"[1]Personnel!J955","v":0},{"$f":"[1]Personnel!P955","v":0},{"$f":"[1]Personnel!Q955","v":0},0,{"$f":"[1]Personnel!S955","v":0},{"$f":"[1]Personnel!S955","v":0},{"$f":"[1]Personnel!S955","v":0},{"$f":"[1]Personnel!T955","v":0},0,{"$f":"[1]Personnel!V955","v":0},{"$f":"[1]Personnel!W955","v":0},0,{"$f":"[1]Personnel!Y955","v":0},{"$f":"[1]Personnel!Z955","v":0},0,0,0,0,null,null,null,null,null,null,null,null,null,null,null,null,null,null,null,null,null,null,null,null,null,null,null,null,null,{"$f":"[1]Personnel!G955","v":0}]
[0,{"$f":"IFERROR(INDEX(Settings!$AP$17:$AP$38,MATCH(Personnel!$G956,Settings!$AQ$17:$AQ$38,0)),0)","v":0},null,null,null,{"$f":"[1]Personnel!F956","v":0},{"$f":"IFERROR(INDEX((SLevel),MATCH(Personnel!BA956,SLevel202223,0)),0)","v":0},{"$f":"[1]Personnel!H956","v":0},{"$f":"[1]Personnel!I956","v":0},{"$f":"[1]Personnel!J956","v":0},{"$f":"[1]Personnel!P956","v":0},{"$f":"[1]Personnel!Q956","v":0},0,{"$f":"[1]Personnel!S956","v":0},{"$f":"[1]Personnel!S956","v":0},{"$f":"[1]Personnel!S956","v":0},{"$f":"[1]Personnel!T956","v":0},0,{"$f":"[1]Personnel!V956","v":0},{"$f":"[1]Personnel!W956","v":0},0,{"$f":"[1]Personnel!Y956","v":0},{"$f":"[1]Personnel!Z956","v":0},0,0,0,0,null,null,null,null,null,null,null,null,null,null,null,null,null,null,null,null,null,null,null,null,null,null,null,null,null,{"$f":"[1]Personnel!G956","v":0}]
[0,{"$f":"IFERROR(INDEX(Settings!$AP$17:$AP$38,MATCH(Personnel!$G957,Settings!$AQ$17:$AQ$38,0)),0)","v":0},null,null,null,{"$f":"[1]Personnel!F957","v":0},{"$f":"IFERROR(INDEX((SLevel),MATCH(Personnel!BA957,SLevel202223,0)),0)","v":0},{"$f":"[1]Personnel!H957","v":0},{"$f":"[1]Personnel!I957","v":0},{"$f":"[1]Personnel!J957","v":0},{"$f":"[1]Personnel!P957","v":0},{"$f":"[1]Personnel!Q957","v":0},0,{"$f":"[1]Personnel!S957","v":0},{"$f":"[1]Personnel!S957","v":0},{"$f":"[1]Personnel!S957","v":0},{"$f":"[1]Personnel!T957","v":0},0,{"$f":"[1]Personnel!V957","v":0},{"$f":"[1]Personnel!W957","v":0},0,{"$f":"[1]Personnel!Y957","v":0},{"$f":"[1]Personnel!Z957","v":0},0,0,0,0,null,null,null,null,null,null,null,null,null,null,null,null,null,null,null,null,null,null,null,null,null,null,null,null,null,{"$f":"[1]Personnel!G957","v":0}]
[0,{"$f":"IFERROR(INDEX(Settings!$AP$17:$AP$38,MATCH(Personnel!$G958,Settings!$AQ$17:$AQ$38,0)),0)","v":0},null,null,null,{"$f":"[1]Personnel!F958","v":0},{"$f":"IFERROR(INDEX((SLevel),MATCH(Personnel!BA958,SLevel202223,0)),0)","v":0},{"$f":"[1]Personnel!H958","v":0},{"$f":"[1]Personnel!I958","v":0},{"$f":"[1]Personnel!J958","v":0},{"$f":"[1]Personnel!P958","v":0},{"$f":"[1]Personnel!Q958","v":0},0,{"$f":"[1]Personnel!S958","v":0},{"$f":"[1]Personnel!S958","v":0},{"$f":"[1]Personnel!S958","v":0},{"$f":"[1]Personnel!T958","v":0},0,{"$f":"[1]Personnel!V958","v":0},{"$f":"[1]Personnel!W958","v":0},0,{"$f":"[1]Personnel!Y958","v":0},{"$f":"[1]Personnel!Z958","v":0},0,0,0,0,null,null,null,null,null,null,null,null,null,null,null,null,null,null,null,null,null,null,null,null,null,null,null,null,null,{"$f":"[1]Personnel!G958","v":0}]
[0,{"$f":"IFERROR(INDEX(Settings!$AP$17:$AP$38,MATCH(Personnel!$G959,Settings!$AQ$17:$AQ$38,0)),0)","v":0},null,null,null,{"$f":"[1]Personnel!F959","v":0},{"$f":"IFERROR(INDEX((SLevel),MATCH(Personnel!BA959,SLevel202223,0)),0)","v":0},{"$f":"[1]Personnel!H959","v":0},{"$f":"[1]Personnel!I959","v":0},{"$f":"[1]Personnel!J959","v":0},{"$f":"[1]Personnel!P959","v":0},{"$f":"[1]Personnel!Q959","v":0},0,{"$f":"[1]Personnel!S959","v":0},{"$f":"[1]Personnel!S959","v":0},{"$f":"[1]Personnel!S959","v":0},{"$f":"[1]Personnel!T959","v":0},0,{"$f":"[1]Personnel!V959","v":0},{"$f":"[1]Personnel!W959","v":0},0,{"$f":"[1]Personnel!Y959","v":0},{"$f":"[1]Personnel!Z959","v":0},0,0,0,0,null,null,null,null,null,null,null,null,null,null,null,null,null,null,null,null,null,null,null,null,null,null,null,null,null,{"$f":"[1]Personnel!G959","v":0}]
[0,{"$f":"IFERROR(INDEX(Settings!$AP$17:$AP$38,MATCH(Personnel!$G960,Settings!$AQ$17:$AQ$38,0)),0)","v":0},null,null,null,{"$f":"[1]Personnel!F960","v":0},{"$f":"IFERROR(INDEX((SLevel),MATCH(Personnel!BA960,SLevel202223,0)),0)","v":0},{"$f":"[1]Personnel!H960","v":0},{"$f":"[1]Personnel!I960","v":0},{"$f":"[1]Personnel!J960","v":0},{"$f":"[1]Personnel!P960","v":0},{"$f":"[1]Personnel!Q960","v":0},0,{"$f":"[1]Personnel!S960","v":0},{"$f":"[1]Personnel!S960","v":0},{"$f":"[1]Personnel!S960","v":0},{"$f":"[1]Personnel!T960","v":0},0,{"$f":"[1]Personnel!V960","v":0},{"$f":"[1]Personnel!W960","v":0},0,{"$f":"[1]Personnel!Y960","v":0},{"$f":"[1]Personnel!Z960","v":0},0,0,0,0,null,null,null,null,null,null,null,null,null,null,null,null,null,null,null,null,null,null,null,null,null,null,null,null,null,{"$f":"[1]Personnel!G960","v":0}]
[0,{"$f":"IFERROR(INDEX(Settings!$AP$17:$AP$38,MATCH(Personnel!$G961,Settings!$AQ$17:$AQ$38,0)),0)","v":0},null,null,null,{"$f":"[1]Personnel!F961","v":0},{"$f":"IFERROR(INDEX((SLevel),MATCH(Personnel!BA961,SLevel202223,0)),0)","v":0},{"$f":"[1]Personnel!H961","v":0},{"$f":"[1]Personnel!I961","v":0},{"$f":"[1]Personnel!J961","v":0},{"$f":"[1]Personnel!P961","v":0},{"$f":"[1]Personnel!Q961","v":0},0,{"$f":"[1]Personnel!S961","v":0},{"$f":"[1]Personnel!S961","v":0},{"$f":"[1]Personnel!S961","v":0},{"$f":"[1]Personnel!T961","v":0},0,{"$f":"[1]Personnel!V961","v":0},{"$f":"[1]Personnel!W961","v":0},0,{"$f":"[1]Personnel!Y961","v":0},{"$f":"[1]Personnel!Z961","v":0},0,0,0,0,null,null,null,null,null,null,null,null,null,null,null,null,null,null,null,null,null,null,null,null,null,null,null,null,null,{"$f":"[1]Personnel!G961","v":0}]
[0,{"$f":"IFERROR(INDEX(Settings!$AP$17:$AP$38,MATCH(Personnel!$G962,Settings!$AQ$17:$AQ$38,0)),0)","v":0},null,null,null,{"$f":"[1]Personnel!F962","v":0},{"$f":"IFERROR(INDEX((SLevel),MATCH(Personnel!BA962,SLevel202223,0)),0)","v":0},{"$f":"[1]Personnel!H962","v":0},{"$f":"[1]Personnel!I962","v":0},{"$f":"[1]Personnel!J962","v":0},{"$f":"[1]Personnel!P962","v":0},{"$f":"[1]Personnel!Q962","v":0},0,{"$f":"[1]Personnel!S962","v":0},{"$f":"[1]Personnel!S962","v":0},{"$f":"[1]Personnel!S962","v":0},{"$f":"[1]Personnel!T962","v":0},0,{"$f":"[1]Personnel!V962","v":0},{"$f":"[1]Personnel!W962","v":0},0,{"$f":"[1]Personnel!Y962","v":0},{"$f":"[1]Personnel!Z962","v":0},0,0,0,0,null,null,null,null,null,null,null,null,null,null,null,null,null,null,null,null,null,null,null,null,null,null,null,null,null,{"$f":"[1]Personnel!G962","v":0}]
[0,{"$f":"IFERROR(INDEX(Settings!$AP$17:$AP$38,MATCH(Personnel!$G963,Settings!$AQ$17:$AQ$38,0)),0)","v":0},null,null,null,{"$f":"[1]Personnel!F963","v":0},{"$f":"IFERROR(INDEX((SLevel),MATCH(Personnel!BA963,SLevel202223,0)),0)","v":0},{"$f":"[1]Personnel!H963","v":0},{"$f":"[1]Personnel!I963","v":0},{"$f":"[1]Personnel!J963","v":0},{"$f":"[1]Personnel!P963","v":0},{"$f":"[1]Personnel!Q963","v":0},0,{"$f":"[1]Personnel!S963","v":0},{"$f":"[1]Personnel!S963","v":0},{"$f":"[1]Personnel!S963","v":0},{"$f":"[1]Personnel!T963","v":0},0,{"$f":"[1]Personnel!V963","v":0},{"$f":"[1]Personnel!W963","v":0},0,{"$f":"[1]Personnel!Y963","v":0},{"$f":"[1]Personnel!Z963","v":0},0,0,0,0,null,null,null,null,null,null,null,null,null,null,null,null,null,null,null,null,null,null,null,null,null,null,null,null,null,{"$f":"[1]Personnel!G963","v":0}]
[0,{"$f":"IFERROR(INDEX(Settings!$AP$17:$AP$38,MATCH(Personnel!$G964,Settings!$AQ$17:$AQ$38,0)),0)","v":0},null,null,null,{"$f":"[1]Personnel!F964","v":0},{"$f":"IFERROR(INDEX((SLevel),MATCH(Personnel!BA964,SLevel202223,0)),0)","v":0},{"$f":"[1]Personnel!H964","v":0},{"$f":"[1]Personnel!I964","v":0},{"$f":"[1]Personnel!J964","v":0},{"$f":"[1]Personnel!P964","v":0},{"$f":"[1]Personnel!Q964","v":0},0,{"$f":"[1]Personnel!S964","v":0},{"$f":"[1]Personnel!S964","v":0},{"$f":"[1]Personnel!S964","v":0},{"$f":"[1]Personnel!T964","v":0},0,{"$f":"[1]Personnel!V964","v":0},{"$f":"[1]Personnel!W964","v":0},0,{"$f":"[1]Personnel!Y964","v":0},{"$f":"[1]Personnel!Z964","v":0},0,0,0,0,null,null,null,null,null,null,null,null,null,null,null,null,null,null,null,null,null,null,null,null,null,null,null,null,null,{"$f":"[1]Personnel!G964","v":0}]
[0,{"$f":"IFERROR(INDEX(Settings!$AP$17:$AP$38,MATCH(Personnel!$G965,Settings!$AQ$17:$AQ$38,0)),0)","v":0},null,null,null,{"$f":"[1]Personnel!F965","v":0},{"$f":"IFERROR(INDEX((SLevel),MATCH(Personnel!BA965,SLevel202223,0)),0)","v":0},{"$f":"[1]Personnel!H965","v":0},{"$f":"[1]Personnel!I965","v":0},{"$f":"[1]Personnel!J965","v":0},{"$f":"[1]Personnel!P965","v":0},{"$f":"[1]Personnel!Q965","v":0},0,{"$f":"[1]Personnel!S965","v":0},{"$f":"[1]Personnel!S965","v":0},{"$f":"[1]Personnel!S965","v":0},{"$f":"[1]Personnel!T965","v":0},0,{"$f":"[1]Personnel!V965","v":0},{"$f":"[1]Personnel!W965","v":0},0,{"$f":"[1]Personnel!Y965","v":0},{"$f":"[1]Personnel!Z965","v":0},0,0,0,0,null,null,null,null,null,null,null,null,null,null,null,null,null,null,null,null,null,null,null,null,null,null,null,null,null,{"$f":"[1]Personnel!G965","v":0}]
[0,{"$f":"IFERROR(INDEX(Settings!$AP$17:$AP$38,MATCH(Personnel!$G966,Settings!$AQ$17:$AQ$38,0)),0)","v":0},null,null,null,{"$f":"[1]Personnel!F966","v":0},{"$f":"IFERROR(INDEX((SLevel),MATCH(Personnel!BA966,SLevel202223,0)),0)","v":0},{"$f":"[1]Personnel!H966","v":0},{"$f":"[1]Personnel!I966","v":0},{"$f":"[1]Personnel!J966","v":0},{"$f":"[1]Personnel!P966","v":0},{"$f":"[1]Personnel!Q966","v":0},0,{"$f":"[1]Personnel!S966","v":0},{"$f":"[1]Personnel!S966","v":0},{"$f":"[1]Personnel!S966","v":0},{"$f":"[1]Personnel!T966","v":0},0,{"$f":"[1]Personnel!V966","v":0},{"$f":"[1]Personnel!W966","v":0},0,{"$f":"[1]Personnel!Y966","v":0},{"$f":"[1]Personnel!Z966","v":0},0,0,0,0,null,null,null,null,null,null,null,null,null,null,null,null,null,null,null,null,null,null,null,null,null,null,null,null,null,{"$f":"[1]Personnel!G966","v":0}]
[0,{"$f":"IFERROR(INDEX(Settings!$AP$17:$AP$38,MATCH(Personnel!$G967,Settings!$AQ$17:$AQ$38,0)),0)","v":0},null,null,null,{"$f":"[1]Personnel!F967","v":0},{"$f":"IFERROR(INDEX((SLevel),MATCH(Personnel!BA967,SLevel202223,0)),0)","v":0},{"$f":"[1]Personnel!H967","v":0},{"$f":"[1]Personnel!I967","v":0},{"$f":"[1]Personnel!J967","v":0},{"$f":"[1]Personnel!P967","v":0},{"$f":"[1]Personnel!Q967","v":0},0,{"$f":"[1]Personnel!S967","v":0},{"$f":"[1]Personnel!S967","v":0},{"$f":"[1]Personnel!S967","v":0},{"$f":"[1]Personnel!T967","v":0},0,{"$f":"[1]Personnel!V967","v":0},{"$f":"[1]Personnel!W967","v":0},0,{"$f":"[1]Personnel!Y967","v":0},{"$f":"[1]Personnel!Z967","v":0},0,0,0,0,null,null,null,null,null,null,null,null,null,null,null,null,null,null,null,null,null,null,null,null,null,null,null,null,null,{"$f":"[1]Personnel!G967","v":0}]
[0,{"$f":"IFERROR(INDEX(Settings!$AP$17:$AP$38,MATCH(Personnel!$G968,Settings!$AQ$17:$AQ$38,0)),0)","v":0},null,null,null,{"$f":"[1]Personnel!F968","v":0},{"$f":"IFERROR(INDEX((SLevel),MATCH(Personnel!BA968,SLevel202223,0)),0)","v":0},{"$f":"[1]Personnel!H968","v":0},{"$f":"[1]Personnel!I968","v":0},{"$f":"[1]Personnel!J968","v":0},{"$f":"[1]Personnel!P968","v":0},{"$f":"[1]Personnel!Q968","v":0},0,{"$f":"[1]Personnel!S968","v":0},{"$f":"[1]Personnel!S968","v":0},{"$f":"[1]Personnel!S968","v":0},{"$f":"[1]Personnel!T968","v":0},0,{"$f":"[1]Personnel!V968","v":0},{"$f":"[1]Personnel!W968","v":0},0,{"$f":"[1]Personnel!Y968","v":0},{"$f":"[1]Personnel!Z968","v":0},0,0,0,0,null,null,null,null,null,null,null,null,null,null,null,null,null,null,null,null,null,null,null,null,null,null,null,null,null,{"$f":"[1]Personnel!G968","v":0}]
[0,{"$f":"IFERROR(INDEX(Settings!$AP$17:$AP$38,MATCH(Personnel!$G969,Settings!$AQ$17:$AQ$38,0)),0)","v":0},null,null,null,{"$f":"[1]Personnel!F969","v":0},{"$f":"IFERROR(INDEX((SLevel),MATCH(Personnel!BA969,SLevel202223,0)),0)","v":0},{"$f":"[1]Personnel!H969","v":0},{"$f":"[1]Personnel!I969","v":0},{"$f":"[1]Personnel!J969","v":0},{"$f":"[1]Personnel!P969","v":0},{"$f":"[1]Personnel!Q969","v":0},0,{"$f":"[1]Personnel!S969","v":0},{"$f":"[1]Personnel!S969","v":0},{"$f":"[1]Personnel!S969","v":0},{"$f":"[1]Personnel!T969","v":0},0,{"$f":"[1]Personnel!V969","v":0},{"$f":"[1]Personnel!W969","v":0},0,{"$f":"[1]Personnel!Y969","v":0},{"$f":"[1]Personnel!Z969","v":0},0,0,0,0,null,null,null,null,null,null,null,null,null,null,null,null,null,null,null,null,null,null,null,null,null,null,null,null,null,{"$f":"[1]Personnel!G969","v":0}]
[0,{"$f":"IFERROR(INDEX(Settings!$AP$17:$AP$38,MATCH(Personnel!$G970,Settings!$AQ$17:$AQ$38,0)),0)","v":0},null,null,null,{"$f":"[1]Personnel!F970","v":0},{"$f":"IFERROR(INDEX((SLevel),MATCH(Personnel!BA970,SLevel202223,0)),0)","v":0},{"$f":"[1]Personnel!H970","v":0},{"$f":"[1]Personnel!I970","v":0},{"$f":"[1]Personnel!J970","v":0},{"$f":"[1]Personnel!P970","v":0},{"$f":"[1]Personnel!Q970","v":0},0,{"$f":"[1]Personnel!S970","v":0},{"$f":"[1]Personnel!S970","v":0},{"$f":"[1]Personnel!S970","v":0},{"$f":"[1]Personnel!T970","v":0},0,{"$f":"[1]Personnel!V970","v":0},{"$f":"[1]Personnel!W970","v":0},0,{"$f":"[1]Personnel!Y970","v":0},{"$f":"[1]Personnel!Z970","v":0},0,0,0,0,null,null,null,null,null,null,null,null,null,null,null,null,null,null,null,null,null,null,null,null,null,null,null,null,null,{"$f":"[1]Personnel!G970","v":0}]
[0,{"$f":"IFERROR(INDEX(Settings!$AP$17:$AP$38,MATCH(Personnel!$G971,Settings!$AQ$17:$AQ$38,0)),0)","v":0},null,null,null,{"$f":"[1]Personnel!F971","v":0},{"$f":"IFERROR(INDEX((SLevel),MATCH(Personnel!BA971,SLevel202223,0)),0)","v":0},{"$f":"[1]Personnel!H971","v":0},{"$f":"[1]Personnel!I971","v":0},{"$f":"[1]Personnel!J971","v":0},{"$f":"[1]Personnel!P971","v":0},{"$f":"[1]Personnel!Q971","v":0},0,{"$f":"[1]Personnel!S971","v":0},{"$f":"[1]Personnel!S971","v":0},{"$f":"[1]Personnel!S971","v":0},{"$f":"[1]Personnel!T971","v":0},0,{"$f":"[1]Personnel!V971","v":0},{"$f":"[1]Personnel!W971","v":0},0,{"$f":"[1]Personnel!Y971","v":0},{"$f":"[1]Personnel!Z971","v":0},0,0,0,0,null,null,null,null,null,null,null,null,null,null,null,null,null,null,null,null,null,null,null,null,null,null,null,null,null,{"$f":"[1]Personnel!G971","v":0}]
[{"$f":"IF(SUM(K972:AA972)>0,1,0)","v":0},{"$f":"IFERROR(INDEX(Settings!$AP$17:$AP$38,MATCH(Personnel!$G972,Settings!$AQ$17:$AQ$38,0)),0)","v":0},null,null,null,{"$f":"[1]Personnel!F972","v":0},{"$f":"IFERROR(INDEX((SLevel),MATCH(Personnel!BA972,SLevel202223,0)),0)","v":0},{"$f":"[1]Personnel!H972","v":0},{"$f":"[1]Personnel!I972","v":0},{"$f":"[1]Personnel!J972","v":0},{"$f":"[1]Personnel!P972","v":0},{"$f":"[1]Personnel!Q972","v":0},0,{"$f":"[1]Personnel!S972","v":0},{"$f":"[1]Personnel!S972","v":0},{"$f":"[1]Personnel!S972","v":0},{"$f":"[1]Personnel!T972","v":0},0,{"$f":"[1]Personnel!V972","v":0},{"$f":"[1]Personnel!W972","v":0},0,{"$f":"[1]Personnel!Y972","v":0},{"$f":"[1]Personnel!Z972","v":0},0,0,0,0,null,null,null,null,null,null,null,null,null,null,null,null,null,null,null,null,null,null,null,null,null,null,null,null,null,{"$f":"[1]Personnel!G972","v":0}]
[0,{"$f":"IFERROR(INDEX(Settings!$AP$17:$AP$38,MATCH(Personnel!$G973,Settings!$AQ$17:$AQ$38,0)),0)","v":0},null,null,null,{"$f":"[1]Personnel!F973","v":0},{"$f":"IFERROR(INDEX((SLevel),MATCH(Personnel!BA973,SLevel202223,0)),0)","v":0},{"$f":"[1]Personnel!H973","v":0},{"$f":"[1]Personnel!I973","v":0},{"$f":"[1]Personnel!J973","v":0},{"$f":"[1]Personnel!P973","v":0},{"$f":"[1]Personnel!Q973","v":0},{"$f":"ROUND(IF(ISERROR(L973/K973),0,(L973/K973)),0)","v":0},{"$f":"[1]Personnel!S973","v":0},{"$f":"[1]Personnel!S973","v":0},{"$f":"[1]Personnel!S973","v":0},{"$f":"[1]Personnel!T973","v":0},{"$f":"ROUND(IF(ISERROR(Q973/P973),0,(Q973/P973)),0)","v":0},{"$f":"[1]Personnel!V973","v":0},{"$f":"[1]Personnel!W973","v":0},{"$f":"ROUND(IF(ISERROR(T973/S973),0,(T973/S973)),0)","v":0},{"$f":"[1]Personnel!Y973","v":0},{"$f":"[1]Personnel!Z973","v":0},{"$f":"ROUND(IF(ISERROR(W973/V973),0,(W973/V973)),0)","v":0},0,0,{"$f":"ROUND(IF(ISERROR(Z973/Y973),0,(Z973/Y973)),0)","v":0},null,null,null,null,null,null,null,null,null,null,null,null,null,null,null,null,null,null,null,null,null,null,null,null,null,{"$f":"[1]Personnel!G973","v":0}]
[0,{"$f":"IFERROR(INDEX(Settings!$AP$17:$AP$38,MATCH(Personnel!$G974,Settings!$AQ$17:$AQ$38,0)),0)","v":0},null,null,null,{"$f":"[1]Personnel!F974","v":0},{"$f":"IFERROR(INDEX((SLevel),MATCH(Personnel!BA974,SLevel202223,0)),0)","v":0},{"$f":"[1]Personnel!H974","v":0},{"$f":"[1]Personnel!I974","v":0},{"$f":"[1]Personnel!J974","v":0},{"$f":"[1]Personnel!P974","v":0},{"$f":"[1]Personnel!Q974","v":0},0,{"$f":"[1]Personnel!S974","v":0},{"$f":"[1]Personnel!S974","v":0},{"$f":"[1]Personnel!S974","v":0},{"$f":"[1]Personnel!T974","v":0},0,{"$f":"[1]Personnel!V974","v":0},{"$f":"[1]Personnel!W974","v":0},0,{"$f":"[1]Personnel!Y974","v":0},{"$f":"[1]Personnel!Z974","v":0},0,0,0,0,null,null,null,null,null,null,null,null,null,null,null,null,null,null,null,null,null,null,null,null,null,null,null,null,null,{"$f":"[1]Personnel!G974","v":0}]
[0,{"$f":"IFERROR(INDEX(Settings!$AP$17:$AP$38,MATCH(Personnel!$G975,Settings!$AQ$17:$AQ$38,0)),0)","v":0},null,null,null,{"$f":"[1]Personnel!F975","v":0},{"$f":"IFERROR(INDEX((SLevel),MATCH(Personnel!BA975,SLevel202223,0)),0)","v":0},{"$f":"[1]Personnel!H975","v":0},{"$f":"[1]Personnel!I975","v":0},{"$f":"[1]Personnel!J975","v":0},{"$f":"[1]Personnel!P975","v":0},{"$f":"[1]Personnel!Q975","v":0},0,{"$f":"[1]Personnel!S975","v":0},{"$f":"[1]Personnel!S975","v":0},{"$f":"[1]Personnel!S975","v":0},{"$f":"[1]Personnel!T975","v":0},0,{"$f":"[1]Personnel!V975","v":0},{"$f":"[1]Personnel!W975","v":0},0,{"$f":"[1]Personnel!Y975","v":0},{"$f":"[1]Personnel!Z975","v":0},0,0,0,0,null,null,null,null,null,null,null,null,null,null,null,null,null,null,null,null,null,null,null,null,null,null,null,null,null,{"$f":"[1]Personnel!G975","v":0}]
[0,{"$f":"IFERROR(INDEX(Settings!$AP$17:$AP$38,MATCH(Personnel!$G976,Settings!$AQ$17:$AQ$38,0)),0)","v":0},null,null,null,{"$f":"[1]Personnel!F976","v":0},{"$f":"IFERROR(INDEX((SLevel),MATCH(Personnel!BA976,SLevel202223,0)),0)","v":0},{"$f":"[1]Personnel!H976","v":0},{"$f":"[1]Personnel!I976","v":0},{"$f":"[1]Personnel!J976","v":0},{"$f":"[1]Personnel!P976","v":0},{"$f":"[1]Personnel!Q976","v":0},0,{"$f":"[1]Personnel!S976","v":0},{"$f":"[1]Personnel!S976","v":0},{"$f":"[1]Personnel!S976","v":0},{"$f":"[1]Personnel!T976","v":0},0,{"$f":"[1]Personnel!V976","v":0},{"$f":"[1]Personnel!W976","v":0},0,{"$f":"[1]Personnel!Y976","v":0},{"$f":"[1]Personnel!Z976","v":0},0,0,0,0,null,null,null,null,null,null,null,null,null,null,null,null,null,null,null,null,null,null,null,null,null,null,null,null,null,{"$f":"[1]Personnel!G976","v":0}]
[0,{"$f":"IFERROR(INDEX(Settings!$AP$17:$AP$38,MATCH(Personnel!$G977,Settings!$AQ$17:$AQ$38,0)),0)","v":0},null,null,null,{"$f":"[1]Personnel!F977","v":0},{"$f":"IFERROR(INDEX((SLevel),MATCH(Personnel!BA977,SLevel202223,0)),0)","v":0},{"$f":"[1]Personnel!H977","v":0},{"$f":"[1]Personnel!I977","v":0},{"$f":"[1]Personnel!J977","v":0},{"$f":"[1]Personnel!P977","v":0},{"$f":"[1]Personnel!Q977","v":0},0,{"$f":"[1]Personnel!S977","v":0},{"$f":"[1]Personnel!S977","v":0},{"$f":"[1]Personnel!S977","v":0},{"$f":"[1]Personnel!T977","v":0},0,{"$f":"[1]Personnel!V977","v":0},{"$f":"[1]Personnel!W977","v":0},0,{"$f":"[1]Personnel!Y977","v":0},{"$f":"[1]Personnel!Z977","v":0},0,0,0,0,null,null,null,null,null,null,null,null,null,null,null,null,null,null,null,null,null,null,null,null,null,null,null,null,null,{"$f":"[1]Personnel!G977","v":0}]
[0,{"$f":"IFERROR(INDEX(Settings!$AP$17:$AP$38,MATCH(Personnel!$G978,Settings!$AQ$17:$AQ$38,0)),0)","v":0},null,null,null,{"$f":"[1]Personnel!F978","v":0},{"$f":"IFERROR(INDEX((SLevel),MATCH(Personnel!BA978,SLevel202223,0)),0)","v":0},{"$f":"[1]Personnel!H978","v":0},{"$f":"[1]Personnel!I978","v":0},{"$f":"[1]Personnel!J978","v":0},{"$f":"[1]Personnel!P978","v":0},{"$f":"[1]Personnel!Q978","v":0},0,{"$f":"[1]Personnel!S978","v":0},{"$f":"[1]Personnel!S978","v":0},{"$f":"[1]Personnel!S978","v":0},{"$f":"[1]Personnel!T978","v":0},0,{"$f":"[1]Personnel!V978","v":0},{"$f":"[1]Personnel!W978","v":0},0,{"$f":"[1]Personnel!Y978","v":0},{"$f":"[1]Personnel!Z978","v":0},0,0,0,0,null,null,null,null,null,null,null,null,null,null,null,null,null,null,null,null,null,null,null,null,null,null,null,null,null,{"$f":"[1]Personnel!G978","v":0}]
[0,{"$f":"IFERROR(INDEX(Settings!$AP$17:$AP$38,MATCH(Personnel!$G979,Settings!$AQ$17:$AQ$38,0)),0)","v":0},null,null,null,{"$f":"[1]Personnel!F979","v":0},{"$f":"IFERROR(INDEX((SLevel),MATCH(Personnel!BA979,SLevel202223,0)),0)","v":0},{"$f":"[1]Personnel!H979","v":0},{"$f":"[1]Personnel!I979","v":0},{"$f":"[1]Personnel!J979","v":0},{"$f":"[1]Personnel!P979","v":0},{"$f":"[1]Personnel!Q979","v":0},0,{"$f":"[1]Personnel!S979","v":0},{"$f":"[1]Personnel!S979","v":0},{"$f":"[1]Personnel!S979","v":0},{"$f":"[1]Personnel!T979","v":0},0,{"$f":"[1]Personnel!V979","v":0},{"$f":"[1]Personnel!W979","v":0},0,{"$f":"[1]Personnel!Y979","v":0},{"$f":"[1]Personnel!Z979","v":0},0,0,0,0,null,null,null,null,null,null,null,null,null,null,null,null,null,null,null,null,null,null,null,null,null,null,null,null,null,{"$f":"[1]Personnel!G979","v":0}]
[0,{"$f":"IFERROR(INDEX(Settings!$AP$17:$AP$38,MATCH(Personnel!$G980,Settings!$AQ$17:$AQ$38,0)),0)","v":0},null,null,null,{"$f":"[1]Personnel!F980","v":0},{"$f":"IFERROR(INDEX((SLevel),MATCH(Personnel!BA980,SLevel202223,0)),0)","v":0},{"$f":"[1]Personnel!H980","v":0},{"$f":"[1]Personnel!I980","v":0},{"$f":"[1]Personnel!J980","v":0},{"$f":"[1]Personnel!P980","v":0},{"$f":"[1]Personnel!Q980","v":0},0,{"$f":"[1]Personnel!S980","v":0},{"$f":"[1]Personnel!S980","v":0},{"$f":"[1]Personnel!S980","v":0},{"$f":"[1]Personnel!T980","v":0},0,{"$f":"[1]Personnel!V980","v":0},{"$f":"[1]Personnel!W980","v":0},0,{"$f":"[1]Personnel!Y980","v":0},{"$f":"[1]Personnel!Z980","v":0},0,0,0,0,null,null,null,null,null,null,null,null,null,null,null,null,null,null,null,null,null,null,null,null,null,null,null,null,null,{"$f":"[1]Personnel!G980","v":0}]
[0,{"$f":"IFERROR(INDEX(Settings!$AP$17:$AP$38,MATCH(Personnel!$G981,Settings!$AQ$17:$AQ$38,0)),0)","v":0},null,null,null,{"$f":"[1]Personnel!F981","v":0},{"$f":"IFERROR(INDEX((SLevel),MATCH(Personnel!BA981,SLevel202223,0)),0)","v":0},{"$f":"[1]Personnel!H981","v":0},{"$f":"[1]Personnel!I981","v":0},{"$f":"[1]Personnel!J981","v":0},{"$f":"[1]Personnel!P981","v":0},{"$f":"[1]Personnel!Q981","v":0},0,{"$f":"[1]Personnel!S981","v":0},{"$f":"[1]Personnel!S981","v":0},{"$f":"[1]Personnel!S981","v":0},{"$f":"[1]Personnel!T981","v":0},0,{"$f":"[1]Personnel!V981","v":0},{"$f":"[1]Personnel!W981","v":0},0,{"$f":"[1]Personnel!Y981","v":0},{"$f":"[1]Personnel!Z981","v":0},0,0,0,0,null,null,null,null,null,null,null,null,null,null,null,null,null,null,null,null,null,null,null,null,null,null,null,null,null,{"$f":"[1]Personnel!G981","v":0}]
[0,{"$f":"IFERROR(INDEX(Settings!$AP$17:$AP$38,MATCH(Personnel!$G982,Settings!$AQ$17:$AQ$38,0)),0)","v":0},null,null,null,{"$f":"[1]Personnel!F982","v":0},{"$f":"IFERROR(INDEX((SLevel),MATCH(Personnel!BA982,SLevel202223,0)),0)","v":0},{"$f":"[1]Personnel!H982","v":0},{"$f":"[1]Personnel!I982","v":0},{"$f":"[1]Personnel!J982","v":0},{"$f":"[1]Personnel!P982","v":0},{"$f":"[1]Personnel!Q982","v":0},0,{"$f":"[1]Personnel!S982","v":0},{"$f":"[1]Personnel!S982","v":0},{"$f":"[1]Personnel!S982","v":0},{"$f":"[1]Personnel!T982","v":0},0,{"$f":"[1]Personnel!V982","v":0},{"$f":"[1]Personnel!W982","v":0},0,{"$f":"[1]Personnel!Y982","v":0},{"$f":"[1]Personnel!Z982","v":0},0,0,0,0,null,null,null,null,null,null,null,null,null,null,null,null,null,null,null,null,null,null,null,null,null,null,null,null,null,{"$f":"[1]Personnel!G982","v":0}]
[0,{"$f":"IFERROR(INDEX(Settings!$AP$17:$AP$38,MATCH(Personnel!$G983,Settings!$AQ$17:$AQ$38,0)),0)","v":0},null,null,null,{"$f":"[1]Personnel!F983","v":0},{"$f":"IFERROR(INDEX((SLevel),MATCH(Personnel!BA983,SLevel202223,0)),0)","v":0},{"$f":"[1]Personnel!H983","v":0},{"$f":"[1]Personnel!I983","v":0},{"$f":"[1]Personnel!J983","v":0},{"$f":"[1]Personnel!P983","v":0},{"$f":"[1]Personnel!Q983","v":0},0,{"$f":"[1]Personnel!S983","v":0},{"$f":"[1]Personnel!S983","v":0},{"$f":"[1]Personnel!S983","v":0},{"$f":"[1]Personnel!T983","v":0},0,{"$f":"[1]Personnel!V983","v":0},{"$f":"[1]Personnel!W983","v":0},0,{"$f":"[1]Personnel!Y983","v":0},{"$f":"[1]Personnel!Z983","v":0},0,0,0,0,null,null,null,null,null,null,null,null,null,null,null,null,null,null,null,null,null,null,null,null,null,null,null,null,null,{"$f":"[1]Personnel!G983","v":0}]
[0,{"$f":"IFERROR(INDEX(Settings!$AP$17:$AP$38,MATCH(Personnel!$G984,Settings!$AQ$17:$AQ$38,0)),0)","v":0},null,null,null,{"$f":"[1]Personnel!F984","v":0},{"$f":"IFERROR(INDEX((SLevel),MATCH(Personnel!BA984,SLevel202223,0)),0)","v":0},{"$f":"[1]Personnel!H984","v":0},{"$f":"[1]Personnel!I984","v":0},{"$f":"[1]Personnel!J984","v":0},{"$f":"[1]Personnel!P984","v":0},{"$f":"[1]Personnel!Q984","v":0},0,{"$f":"[1]Personnel!S984","v":0},{"$f":"[1]Personnel!S984","v":0},{"$f":"[1]Personnel!S984","v":0},{"$f":"[1]Personnel!T984","v":0},0,{"$f":"[1]Personnel!V984","v":0},{"$f":"[1]Personnel!W984","v":0},0,{"$f":"[1]Personnel!Y984","v":0},{"$f":"[1]Personnel!Z984","v":0},0,0,0,0,null,null,null,null,null,null,null,null,null,null,null,null,null,null,null,null,null,null,null,null,null,null,null,null,null,{"$f":"[1]Personnel!G984","v":0}]
[0,{"$f":"IFERROR(INDEX(Settings!$AP$17:$AP$38,MATCH(Personnel!$G985,Settings!$AQ$17:$AQ$38,0)),0)","v":0},null,null,null,{"$f":"[1]Personnel!F985","v":0},{"$f":"IFERROR(INDEX((SLevel),MATCH(Personnel!BA985,SLevel202223,0)),0)","v":0},{"$f":"[1]Personnel!H985","v":0},{"$f":"[1]Personnel!I985","v":0},{"$f":"[1]Personnel!J985","v":0},{"$f":"[1]Personnel!P985","v":0},{"$f":"[1]Personnel!Q985","v":0},0,{"$f":"[1]Personnel!S985","v":0},{"$f":"[1]Personnel!S985","v":0},{"$f":"[1]Personnel!S985","v":0},{"$f":"[1]Personnel!T985","v":0},0,{"$f":"[1]Personnel!V985","v":0},{"$f":"[1]Personnel!W985","v":0},0,{"$f":"[1]Personnel!Y985","v":0},{"$f":"[1]Personnel!Z985","v":0},0,0,0,0,null,null,null,null,null,null,null,null,null,null,null,null,null,null,null,null,null,null,null,null,null,null,null,null,null,{"$f":"[1]Personnel!G985","v":0}]
[0,{"$f":"IFERROR(INDEX(Settings!$AP$17:$AP$38,MATCH(Personnel!$G986,Settings!$AQ$17:$AQ$38,0)),0)","v":0},null,null,null,{"$f":"[1]Personnel!F986","v":0},{"$f":"IFERROR(INDEX((SLevel),MATCH(Personnel!BA986,SLevel202223,0)),0)","v":0},{"$f":"[1]Personnel!H986","v":0},{"$f":"[1]Personnel!I986","v":0},{"$f":"[1]Personnel!J986","v":0},{"$f":"[1]Personnel!P986","v":0},{"$f":"[1]Personnel!Q986","v":0},0,{"$f":"[1]Personnel!S986","v":0},{"$f":"[1]Personnel!S986","v":0},{"$f":"[1]Personnel!S986","v":0},{"$f":"[1]Personnel!T986","v":0},0,{"$f":"[1]Personnel!V986","v":0},{"$f":"[1]Personnel!W986","v":0},0,{"$f":"[1]Personnel!Y986","v":0},{"$f":"[1]Personnel!Z986","v":0},0,0,0,0,null,null,null,null,null,null,null,null,null,null,null,null,null,null,null,null,null,null,null,null,null,null,null,null,null,{"$f":"[1]Personnel!G986","v":0}]
[0,{"$f":"IFERROR(INDEX(Settings!$AP$17:$AP$38,MATCH(Personnel!$G987,Settings!$AQ$17:$AQ$38,0)),0)","v":0},null,null,null,{"$f":"[1]Personnel!F987","v":0},{"$f":"IFERROR(INDEX((SLevel),MATCH(Personnel!BA987,SLevel202223,0)),0)","v":0},{"$f":"[1]Personnel!H987","v":0},{"$f":"[1]Personnel!I987","v":0},{"$f":"[1]Personnel!J987","v":0},{"$f":"[1]Personnel!P987","v":0},{"$f":"[1]Personnel!Q987","v":0},0,{"$f":"[1]Personnel!S987","v":0},{"$f":"[1]Personnel!S987","v":0},{"$f":"[1]Personnel!S987","v":0},{"$f":"[1]Personnel!T987","v":0},0,{"$f":"[1]Personnel!V987","v":0},{"$f":"[1]Personnel!W987","v":0},0,{"$f":"[1]Personnel!Y987","v":0},{"$f":"[1]Personnel!Z987","v":0},0,0,0,0,null,null,null,null,null,null,null,null,null,null,null,null,null,null,null,null,null,null,null,null,null,null,null,null,null,{"$f":"[1]Personnel!G987","v":0}]
[0,{"$f":"IFERROR(INDEX(Settings!$AP$17:$AP$38,MATCH(Personnel!$G988,Settings!$AQ$17:$AQ$38,0)),0)","v":0},null,null,null,{"$f":"[1]Personnel!F988","v":0},{"$f":"IFERROR(INDEX((SLevel),MATCH(Personnel!BA988,SLevel202223,0)),0)","v":0},{"$f":"[1]Personnel!H988","v":0},{"$f":"[1]Personnel!I988","v":0},{"$f":"[1]Personnel!J988","v":0},{"$f":"[1]Personnel!P988","v":0},{"$f":"[1]Personnel!Q988","v":0},0,{"$f":"[1]Personnel!S988","v":0},{"$f":"[1]Personnel!S988","v":0},{"$f":"[1]Personnel!S988","v":0},{"$f":"[1]Personnel!T988","v":0},0,{"$f":"[1]Personnel!V988","v":0},{"$f":"[1]Personnel!W988","v":0},0,{"$f":"[1]Personnel!Y988","v":0},{"$f":"[1]Personnel!Z988","v":0},0,0,0,0,null,null,null,null,null,null,null,null,null,null,null,null,null,null,null,null,null,null,null,null,null,null,null,null,null,{"$f":"[1]Personnel!G988","v":0}]
[0,{"$f":"IFERROR(INDEX(Settings!$AP$17:$AP$38,MATCH(Personnel!$G989,Settings!$AQ$17:$AQ$38,0)),0)","v":0},null,null,null,{"$f":"[1]Personnel!F989","v":0},{"$f":"IFERROR(INDEX((SLevel),MATCH(Personnel!BA989,SLevel202223,0)),0)","v":0},{"$f":"[1]Personnel!H989","v":0},{"$f":"[1]Personnel!I989","v":0},{"$f":"[1]Personnel!J989","v":0},{"$f":"[1]Personnel!P989","v":0},{"$f":"[1]Personnel!Q989","v":0},0,{"$f":"[1]Personnel!S989","v":0},{"$f":"[1]Personnel!S989","v":0},{"$f":"[1]Personnel!S989","v":0},{"$f":"[1]Personnel!T989","v":0},0,{"$f":"[1]Personnel!V989","v":0},{"$f":"[1]Personnel!W989","v":0},0,{"$f":"[1]Personnel!Y989","v":0},{"$f":"[1]Personnel!Z989","v":0},0,0,0,0,null,null,null,null,null,null,null,null,null,null,null,null,null,null,null,null,null,null,null,null,null,null,null,null,null,{"$f":"[1]Personnel!G989","v":0}]
[0,{"$f":"IFERROR(INDEX(Settings!$AP$17:$AP$38,MATCH(Personnel!$G990,Settings!$AQ$17:$AQ$38,0)),0)","v":0},null,null,null,{"$f":"[1]Personnel!F990","v":0},{"$f":"IFERROR(INDEX((SLevel),MATCH(Personnel!BA990,SLevel202223,0)),0)","v":0},{"$f":"[1]Personnel!H990","v":0},{"$f":"[1]Personnel!I990","v":0},{"$f":"[1]Personnel!J990","v":0},{"$f":"[1]Personnel!P990","v":0},{"$f":"[1]Personnel!Q990","v":0},0,{"$f":"[1]Personnel!S990","v":0},{"$f":"[1]Personnel!S990","v":0},{"$f":"[1]Personnel!S990","v":0},{"$f":"[1]Personnel!T990","v":0},0,{"$f":"[1]Personnel!V990","v":0},{"$f":"[1]Personnel!W990","v":0},0,{"$f":"[1]Personnel!Y990","v":0},{"$f":"[1]Personnel!Z990","v":0},0,0,0,0,null,null,null,null,null,null,null,null,null,null,null,null,null,null,null,null,null,null,null,null,null,null,null,null,null,{"$f":"[1]Personnel!G990","v":0}]
[0,{"$f":"IFERROR(INDEX(Settings!$AP$17:$AP$38,MATCH(Personnel!$G991,Settings!$AQ$17:$AQ$38,0)),0)","v":0},null,null,null,{"$f":"[1]Personnel!F991","v":0},{"$f":"IFERROR(INDEX((SLevel),MATCH(Personnel!BA991,SLevel202223,0)),0)","v":0},{"$f":"[1]Personnel!H991","v":0},{"$f":"[1]Personnel!I991","v":0},{"$f":"[1]Personnel!J991","v":0},{"$f":"[1]Personnel!P991","v":0},{"$f":"[1]Personnel!Q991","v":0},0,{"$f":"[1]Personnel!S991","v":0},{"$f":"[1]Personnel!S991","v":0},{"$f":"[1]Personnel!S991","v":0},{"$f":"[1]Personnel!T991","v":0},0,{"$f":"[1]Personnel!V991","v":0},{"$f":"[1]Personnel!W991","v":0},0,{"$f":"[1]Personnel!Y991","v":0},{"$f":"[1]Personnel!Z991","v":0},0,0,0,0,null,null,null,null,null,null,null,null,null,null,null,null,null,null,null,null,null,null,null,null,null,null,null,null,null,{"$f":"[1]Personnel!G991","v":0}]
[0,{"$f":"IFERROR(INDEX(Settings!$AP$17:$AP$38,MATCH(Personnel!$G992,Settings!$AQ$17:$AQ$38,0)),0)","v":0},null,null,null,{"$f":"[1]Personnel!F992","v":0},{"$f":"IFERROR(INDEX((SLevel),MATCH(Personnel!BA992,SLevel202223,0)),0)","v":0},{"$f":"[1]Personnel!H992","v":0},{"$f":"[1]Personnel!I992","v":0},{"$f":"[1]Personnel!J992","v":0},{"$f":"[1]Personnel!P992","v":0},{"$f":"[1]Personnel!Q992","v":0},0,{"$f":"[1]Personnel!S992","v":0},{"$f":"[1]Personnel!S992","v":0},{"$f":"[1]Personnel!S992","v":0},{"$f":"[1]Personnel!T992","v":0},0,{"$f":"[1]Personnel!V992","v":0},{"$f":"[1]Personnel!W992","v":0},0,{"$f":"[1]Personnel!Y992","v":0},{"$f":"[1]Personnel!Z992","v":0},0,0,0,0,null,null,null,null,null,null,null,null,null,null,null,null,null,null,null,null,null,null,null,null,null,null,null,null,null,{"$f":"[1]Personnel!G992","v":0}]
[0,{"$f":"IFERROR(INDEX(Settings!$AP$17:$AP$38,MATCH(Personnel!$G993,Settings!$AQ$17:$AQ$38,0)),0)","v":0},null,null,null,{"$f":"[1]Personnel!F993","v":0},{"$f":"IFERROR(INDEX((SLevel),MATCH(Personnel!BA993,SLevel202223,0)),0)","v":0},{"$f":"[1]Personnel!H993","v":0},{"$f":"[1]Personnel!I993","v":0},{"$f":"[1]Personnel!J993","v":0},{"$f":"[1]Personnel!P993","v":0},{"$f":"[1]Personnel!Q993","v":0},0,{"$f":"[1]Personnel!S993","v":0},{"$f":"[1]Personnel!S993","v":0},{"$f":"[1]Personnel!S993","v":0},{"$f":"[1]Personnel!T993","v":0},0,{"$f":"[1]Personnel!V993","v":0},{"$f":"[1]Personnel!W993","v":0},0,{"$f":"[1]Personnel!Y993","v":0},{"$f":"[1]Personnel!Z993","v":0},0,0,0,0,null,null,null,null,null,null,null,null,null,null,null,null,null,null,null,null,null,null,null,null,null,null,null,null,null,{"$f":"[1]Personnel!G993","v":0}]
[0,{"$f":"IFERROR(INDEX(Settings!$AP$17:$AP$38,MATCH(Personnel!$G994,Settings!$AQ$17:$AQ$38,0)),0)","v":0},null,null,null,{"$f":"[1]Personnel!F994","v":0},{"$f":"IFERROR(INDEX((SLevel),MATCH(Personnel!BA994,SLevel202223,0)),0)","v":0},{"$f":"[1]Personnel!H994","v":0},{"$f":"[1]Personnel!I994","v":0},{"$f":"[1]Personnel!J994","v":0},{"$f":"[1]Personnel!P994","v":0},{"$f":"[1]Personnel!Q994","v":0},0,{"$f":"[1]Personnel!S994","v":0},{"$f":"[1]Personnel!S994","v":0},{"$f":"[1]Personnel!S994","v":0},{"$f":"[1]Personnel!T994","v":0},0,{"$f":"[1]Personnel!V994","v":0},{"$f":"[1]Personnel!W994","v":0},0,{"$f":"[1]Personnel!Y994","v":0},{"$f":"[1]Personnel!Z994","v":0},0,0,0,0,null,null,null,null,null,null,null,null,null,null,null,null,null,null,null,null,null,null,null,null,null,null,null,null,null,{"$f":"[1]Personnel!G994","v":0}]
[0,{"$f":"IFERROR(INDEX(Settings!$AP$17:$AP$38,MATCH(Personnel!$G995,Settings!$AQ$17:$AQ$38,0)),0)","v":0},null,null,null,{"$f":"[1]Personnel!F995","v":0},{"$f":"IFERROR(INDEX((SLevel),MATCH(Personnel!BA995,SLevel202223,0)),0)","v":0},{"$f":"[1]Personnel!H995","v":0},{"$f":"[1]Personnel!I995","v":0},{"$f":"[1]Personnel!J995","v":0},{"$f":"[1]Personnel!P995","v":0},{"$f":"[1]Personnel!Q995","v":0},0,{"$f":"[1]Personnel!S995","v":0},{"$f":"[1]Personnel!S995","v":0},{"$f":"[1]Personnel!S995","v":0},{"$f":"[1]Personnel!T995","v":0},0,{"$f":"[1]Personnel!V995","v":0},{"$f":"[1]Personnel!W995","v":0},0,{"$f":"[1]Personnel!Y995","v":0},{"$f":"[1]Personnel!Z995","v":0},0,0,0,0,null,null,null,null,null,null,null,null,null,null,null,null,null,null,null,null,null,null,null,null,null,null,null,null,null,{"$f":"[1]Personnel!G995","v":0}]
[0,{"$f":"IFERROR(INDEX(Settings!$AP$17:$AP$38,MATCH(Personnel!$G996,Settings!$AQ$17:$AQ$38,0)),0)","v":0},null,null,null,{"$f":"[1]Personnel!F996","v":0},{"$f":"IFERROR(INDEX((SLevel),MATCH(Personnel!BA996,SLevel202223,0)),0)","v":0},{"$f":"[1]Personnel!H996","v":0},{"$f":"[1]Personnel!I996","v":0},{"$f":"[1]Personnel!J996","v":0},{"$f":"[1]Personnel!P996","v":0},{"$f":"[1]Personnel!Q996","v":0},0,{"$f":"[1]Personnel!S996","v":0},{"$f":"[1]Personnel!S996","v":0},{"$f":"[1]Personnel!S996","v":0},{"$f":"[1]Personnel!T996","v":0},0,{"$f":"[1]Personnel!V996","v":0},{"$f":"[1]Personnel!W996","v":0},0,{"$f":"[1]Personnel!Y996","v":0},{"$f":"[1]Personnel!Z996","v":0},0,0,0,0,null,null,null,null,null,null,null,null,null,null,null,null,null,null,null,null,null,null,null,null,null,null,null,null,null,{"$f":"[1]Personnel!G996","v":0}]
[0,{"$f":"IFERROR(INDEX(Settings!$AP$17:$AP$38,MATCH(Personnel!$G997,Settings!$AQ$17:$AQ$38,0)),0)","v":0},null,null,null,{"$f":"[1]Personnel!F997","v":0},{"$f":"IFERROR(INDEX((SLevel),MATCH(Personnel!BA997,SLevel202223,0)),0)","v":0},{"$f":"[1]Personnel!H997","v":0},{"$f":"[1]Personnel!I997","v":0},{"$f":"[1]Personnel!J997","v":0},{"$f":"[1]Personnel!P997","v":0},{"$f":"[1]Personnel!Q997","v":0},0,{"$f":"[1]Personnel!S997","v":0},{"$f":"[1]Personnel!S997","v":0},{"$f":"[1]Personnel!S997","v":0},{"$f":"[1]Personnel!T997","v":0},0,{"$f":"[1]Personnel!V997","v":0},{"$f":"[1]Personnel!W997","v":0},0,{"$f":"[1]Personnel!Y997","v":0},{"$f":"[1]Personnel!Z997","v":0},0,0,0,0,null,null,null,null,null,null,null,null,null,null,null,null,null,null,null,null,null,null,null,null,null,null,null,null,null,{"$f":"[1]Personnel!G997","v":0}]
[0,{"$f":"IFERROR(INDEX(Settings!$AP$17:$AP$38,MATCH(Personnel!$G998,Settings!$AQ$17:$AQ$38,0)),0)","v":0},null,null,null,{"$f":"[1]Personnel!F998","v":0},{"$f":"IFERROR(INDEX((SLevel),MATCH(Personnel!BA998,SLevel202223,0)),0)","v":0},{"$f":"[1]Personnel!H998","v":0},{"$f":"[1]Personnel!I998","v":0},{"$f":"[1]Personnel!J998","v":0},{"$f":"[1]Personnel!P998","v":0},{"$f":"[1]Personnel!Q998","v":0},0,{"$f":"[1]Personnel!S998","v":0},{"$f":"[1]Personnel!S998","v":0},{"$f":"[1]Personnel!S998","v":0},{"$f":"[1]Personnel!T998","v":0},0,{"$f":"[1]Personnel!V998","v":0},{"$f":"[1]Personnel!W998","v":0},0,{"$f":"[1]Personnel!Y998","v":0},{"$f":"[1]Personnel!Z998","v":0},0,0,0,0,null,null,null,null,null,null,null,null,null,null,null,null,null,null,null,null,null,null,null,null,null,null,null,null,null,{"$f":"[1]Personnel!G998","v":0}]
[0,{"$f":"IFERROR(INDEX(Settings!$AP$17:$AP$38,MATCH(Personnel!$G999,Settings!$AQ$17:$AQ$38,0)),0)","v":0},null,null,null,{"$f":"[1]Personnel!F999","v":0},{"$f":"IFERROR(INDEX((SLevel),MATCH(Personnel!BA999,SLevel202223,0)),0)","v":0},{"$f":"[1]Personnel!H999","v":0},{"$f":"[1]Personnel!I999","v":0},{"$f":"[1]Personnel!J999","v":0},{"$f":"[1]Personnel!P999","v":0},{"$f":"[1]Personnel!Q999","v":0},0,{"$f":"[1]Personnel!S999","v":0},{"$f":"[1]Personnel!S999","v":0},{"$f":"[1]Personnel!S999","v":0},{"$f":"[1]Personnel!T999","v":0},0,{"$f":"[1]Personnel!V999","v":0},{"$f":"[1]Personnel!W999","v":0},0,{"$f":"[1]Personnel!Y999","v":0},{"$f":"[1]Personnel!Z999","v":0},0,0,0,0,null,null,null,null,null,null,null,null,null,null,null,null,null,null,null,null,null,null,null,null,null,null,null,null,null,{"$f":"[1]Personnel!G999","v":0}]
[0,{"$f":"IFERROR(INDEX(Settings!$AP$17:$AP$38,MATCH(Personnel!$G1000,Settings!$AQ$17:$AQ$38,0)),0)","v":0},null,null,null,{"$f":"[1]Personnel!F1000","v":0},{"$f":"IFERROR(INDEX((SLevel),MATCH(Personnel!BA1000,SLevel202223,0)),0)","v":0},{"$f":"[1]Personnel!H1000","v":0},{"$f":"[1]Personnel!I1000","v":0},{"$f":"[1]Personnel!J1000","v":0},{"$f":"[1]Personnel!P1000","v":0},{"$f":"[1]Personnel!Q1000","v":0},0,{"$f":"[1]Personnel!S1000","v":0},{"$f":"[1]Personnel!S1000","v":0},{"$f":"[1]Personnel!S1000","v":0},{"$f":"[1]Personnel!T1000","v":0},0,{"$f":"[1]Personnel!V1000","v":0},{"$f":"[1]Personnel!W1000","v":0},0,{"$f":"[1]Personnel!Y1000","v":0},{"$f":"[1]Personnel!Z1000","v":0},0,0,0,0,null,null,null,null,null,null,null,null,null,null,null,null,null,null,null,null,null,null,null,null,null,null,null,null,null,{"$f":"[1]Personnel!G1000","v":0}]
[0,{"$f":"IFERROR(INDEX(Settings!$AP$17:$AP$38,MATCH(Personnel!$G1001,Settings!$AQ$17:$AQ$38,0)),0)","v":0},null,null,null,{"$f":"[1]Personnel!F1001","v":0},{"$f":"IFERROR(INDEX((SLevel),MATCH(Personnel!BA1001,SLevel202223,0)),0)","v":0},{"$f":"[1]Personnel!H1001","v":0},{"$f":"[1]Personnel!I1001","v":0},{"$f":"[1]Personnel!J1001","v":0},{"$f":"[1]Personnel!P1001","v":0},{"$f":"[1]Personnel!Q1001","v":0},0,{"$f":"[1]Personnel!S1001","v":0},{"$f":"[1]Personnel!S1001","v":0},{"$f":"[1]Personnel!S1001","v":0},{"$f":"[1]Personnel!T1001","v":0},0,{"$f":"[1]Personnel!V1001","v":0},{"$f":"[1]Personnel!W1001","v":0},0,{"$f":"[1]Personnel!Y1001","v":0},{"$f":"[1]Personnel!Z1001","v":0},0,0,0,0,null,null,null,null,null,null,null,null,null,null,null,null,null,null,null,null,null,null,null,null,null,null,null,null,null,{"$f":"[1]Personnel!G1001","v":0}]
[0,{"$f":"IFERROR(INDEX(Settings!$AP$17:$AP$38,MATCH(Personnel!$G1002,Settings!$AQ$17:$AQ$38,0)),0)","v":0},null,null,null,{"$f":"[1]Personnel!F1002","v":0},{"$f":"IFERROR(INDEX((SLevel),MATCH(Personnel!BA1002,SLevel202223,0)),0)","v":0},{"$f":"[1]Personnel!H1002","v":0},{"$f":"[1]Personnel!I1002","v":0},{"$f":"[1]Personnel!J1002","v":0},{"$f":"[1]Personnel!P1002","v":0},{"$f":"[1]Personnel!Q1002","v":0},0,{"$f":"[1]Personnel!S1002","v":0},{"$f":"[1]Personnel!S1002","v":0},{"$f":"[1]Personnel!S1002","v":0},{"$f":"[1]Personnel!T1002","v":0},0,{"$f":"[1]Personnel!V1002","v":0},{"$f":"[1]Personnel!W1002","v":0},0,{"$f":"[1]Personnel!Y1002","v":0},{"$f":"[1]Personnel!Z1002","v":0},0,0,0,0,null,null,null,null,null,null,null,null,null,null,null,null,null,null,null,null,null,null,null,null,null,null,null,null,null,{"$f":"[1]Personnel!G1002","v":0}]
[0,{"$f":"IFERROR(INDEX(Settings!$AP$17:$AP$38,MATCH(Personnel!$G1003,Settings!$AQ$17:$AQ$38,0)),0)","v":0},null,null,null,{"$f":"[1]Personnel!F1003","v":0},{"$f":"IFERROR(INDEX((SLevel),MATCH(Personnel!BA1003,SLevel202223,0)),0)","v":0},{"$f":"[1]Personnel!H1003","v":0},{"$f":"[1]Personnel!I1003","v":0},{"$f":"[1]Personnel!J1003","v":0},{"$f":"[1]Personnel!P1003","v":0},{"$f":"[1]Personnel!Q1003","v":0},0,{"$f":"[1]Personnel!S1003","v":0},{"$f":"[1]Personnel!S1003","v":0},{"$f":"[1]Personnel!S1003","v":0},{"$f":"[1]Personnel!T1003","v":0},0,{"$f":"[1]Personnel!V1003","v":0},{"$f":"[1]Personnel!W1003","v":0},0,{"$f":"[1]Personnel!Y1003","v":0},{"$f":"[1]Personnel!Z1003","v":0},0,0,0,0,null,null,null,null,null,null,null,null,null,null,null,null,null,null,null,null,null,null,null,null,null,null,null,null,null,{"$f":"[1]Personnel!G1003","v":0}]
[0,{"$f":"IFERROR(INDEX(Settings!$AP$17:$AP$38,MATCH(Personnel!$G1004,Settings!$AQ$17:$AQ$38,0)),0)","v":0},null,null,null,{"$f":"[1]Personnel!F1004","v":0},{"$f":"IFERROR(INDEX((SLevel),MATCH(Personnel!BA1004,SLevel202223,0)),0)","v":0},{"$f":"[1]Personnel!H1004","v":0},{"$f":"[1]Personnel!I1004","v":0},{"$f":"[1]Personnel!J1004","v":0},{"$f":"[1]Personnel!P1004","v":0},{"$f":"[1]Personnel!Q1004","v":0},0,{"$f":"[1]Personnel!S1004","v":0},{"$f":"[1]Personnel!S1004","v":0},{"$f":"[1]Personnel!S1004","v":0},{"$f":"[1]Personnel!T1004","v":0},0,{"$f":"[1]Personnel!V1004","v":0},{"$f":"[1]Personnel!W1004","v":0},0,{"$f":"[1]Personnel!Y1004","v":0},{"$f":"[1]Personnel!Z1004","v":0},0,0,0,0,null,null,null,null,null,null,null,null,null,null,null,null,null,null,null,null,null,null,null,null,null,null,null,null,null,{"$f":"[1]Personnel!G1004","v":0}]
[0,{"$f":"IFERROR(INDEX(Settings!$AP$17:$AP$38,MATCH(Personnel!$G1005,Settings!$AQ$17:$AQ$38,0)),0)","v":0},null,null,null,{"$f":"[1]Personnel!F1005","v":0},{"$f":"IFERROR(INDEX((SLevel),MATCH(Personnel!BA1005,SLevel202223,0)),0)","v":0},{"$f":"[1]Personnel!H1005","v":0},{"$f":"[1]Personnel!I1005","v":0},{"$f":"[1]Personnel!J1005","v":0},{"$f":"[1]Personnel!P1005","v":0},{"$f":"[1]Personnel!Q1005","v":0},0,{"$f":"[1]Personnel!S1005","v":0},{"$f":"[1]Personnel!S1005","v":0},{"$f":"[1]Personnel!S1005","v":0},{"$f":"[1]Personnel!T1005","v":0},0,{"$f":"[1]Personnel!V1005","v":0},{"$f":"[1]Personnel!W1005","v":0},0,{"$f":"[1]Personnel!Y1005","v":0},{"$f":"[1]Personnel!Z1005","v":0},0,0,0,0,null,null,null,null,null,null,null,null,null,null,null,null,null,null,null,null,null,null,null,null,null,null,null,null,null,{"$f":"[1]Personnel!G1005","v":0}]
[0,{"$f":"IFERROR(INDEX(Settings!$AP$17:$AP$38,MATCH(Personnel!$G1006,Settings!$AQ$17:$AQ$38,0)),0)","v":0},null,null,null,{"$f":"[1]Personnel!F1006","v":0},{"$f":"IFERROR(INDEX((SLevel),MATCH(Personnel!BA1006,SLevel202223,0)),0)","v":0},{"$f":"[1]Personnel!H1006","v":0},{"$f":"[1]Personnel!I1006","v":0},{"$f":"[1]Personnel!J1006","v":0},{"$f":"[1]Personnel!P1006","v":0},{"$f":"[1]Personnel!Q1006","v":0},0,{"$f":"[1]Personnel!S1006","v":0},{"$f":"[1]Personnel!S1006","v":0},{"$f":"[1]Personnel!S1006","v":0},{"$f":"[1]Personnel!T1006","v":0},0,{"$f":"[1]Personnel!V1006","v":0},{"$f":"[1]Personnel!W1006","v":0},0,{"$f":"[1]Personnel!Y1006","v":0},{"$f":"[1]Personnel!Z1006","v":0},0,0,0,0,null,null,null,null,null,null,null,null,null,null,null,null,null,null,null,null,null,null,null,null,null,null,null,null,null,{"$f":"[1]Personnel!G1006","v":0}]
[0,{"$f":"IFERROR(INDEX(Settings!$AP$17:$AP$38,MATCH(Personnel!$G1007,Settings!$AQ$17:$AQ$38,0)),0)","v":0},null,null,null,{"$f":"[1]Personnel!F1007","v":0},{"$f":"IFERROR(INDEX((SLevel),MATCH(Personnel!BA1007,SLevel202223,0)),0)","v":0},{"$f":"[1]Personnel!H1007","v":0},{"$f":"[1]Personnel!I1007","v":0},{"$f":"[1]Personnel!J1007","v":0},{"$f":"[1]Personnel!P1007","v":0},{"$f":"[1]Personnel!Q1007","v":0},0,{"$f":"[1]Personnel!S1007","v":0},{"$f":"[1]Personnel!S1007","v":0},{"$f":"[1]Personnel!S1007","v":0},{"$f":"[1]Personnel!T1007","v":0},0,{"$f":"[1]Personnel!V1007","v":0},{"$f":"[1]Personnel!W1007","v":0},0,{"$f":"[1]Personnel!Y1007","v":0},{"$f":"[1]Personnel!Z1007","v":0},0,0,0,0,null,null,null,null,null,null,null,null,null,null,null,null,null,null,null,null,null,null,null,null,null,null,null,null,null,{"$f":"[1]Personnel!G1007","v":0}]
[0,{"$f":"IFERROR(INDEX(Settings!$AP$17:$AP$38,MATCH(Personnel!$G1008,Settings!$AQ$17:$AQ$38,0)),0)","v":0},null,null,null,{"$f":"[1]Personnel!F1008","v":0},{"$f":"IFERROR(INDEX((SLevel),MATCH(Personnel!BA1008,SLevel202223,0)),0)","v":0},{"$f":"[1]Personnel!H1008","v":0},{"$f":"[1]Personnel!I1008","v":0},{"$f":"[1]Personnel!J1008","v":0},{"$f":"[1]Personnel!P1008","v":0},{"$f":"[1]Personnel!Q1008","v":0},0,{"$f":"[1]Personnel!S1008","v":0},{"$f":"[1]Personnel!S1008","v":0},{"$f":"[1]Personnel!S1008","v":0},{"$f":"[1]Personnel!T1008","v":0},0,{"$f":"[1]Personnel!V1008","v":0},{"$f":"[1]Personnel!W1008","v":0},0,{"$f":"[1]Personnel!Y1008","v":0},{"$f":"[1]Personnel!Z1008","v":0},0,0,0,0,null,null,null,null,null,null,null,null,null,null,null,null,null,null,null,null,null,null,null,null,null,null,null,null,null,{"$f":"[1]Personnel!G1008","v":0}]
[0,{"$f":"IFERROR(INDEX(Settings!$AP$17:$AP$38,MATCH(Personnel!$G1009,Settings!$AQ$17:$AQ$38,0)),0)","v":0},null,null,null,{"$f":"[1]Personnel!F1009","v":0},{"$f":"IFERROR(INDEX((SLevel),MATCH(Personnel!BA1009,SLevel202223,0)),0)","v":0},{"$f":"[1]Personnel!H1009","v":0},{"$f":"[1]Personnel!I1009","v":0},{"$f":"[1]Personnel!J1009","v":0},{"$f":"[1]Personnel!P1009","v":0},{"$f":"[1]Personnel!Q1009","v":0},0,{"$f":"[1]Personnel!S1009","v":0},{"$f":"[1]Personnel!S1009","v":0},{"$f":"[1]Personnel!S1009","v":0},{"$f":"[1]Personnel!T1009","v":0},0,{"$f":"[1]Personnel!V1009","v":0},{"$f":"[1]Personnel!W1009","v":0},0,{"$f":"[1]Personnel!Y1009","v":0},{"$f":"[1]Personnel!Z1009","v":0},0,0,0,0,null,null,null,null,null,null,null,null,null,null,null,null,null,null,null,null,null,null,null,null,null,null,null,null,null,{"$f":"[1]Personnel!G1009","v":0}]
[0,{"$f":"IFERROR(INDEX(Settings!$AP$17:$AP$38,MATCH(Personnel!$G1010,Settings!$AQ$17:$AQ$38,0)),0)","v":0},null,null,null,{"$f":"[1]Personnel!F1010","v":0},{"$f":"IFERROR(INDEX((SLevel),MATCH(Personnel!BA1010,SLevel202223,0)),0)","v":0},{"$f":"[1]Personnel!H1010","v":0},{"$f":"[1]Personnel!I1010","v":0},{"$f":"[1]Personnel!J1010","v":0},{"$f":"[1]Personnel!P1010","v":0},{"$f":"[1]Personnel!Q1010","v":0},0,{"$f":"[1]Personnel!S1010","v":0},{"$f":"[1]Personnel!S1010","v":0},{"$f":"[1]Personnel!S1010","v":0},{"$f":"[1]Personnel!T1010","v":0},0,{"$f":"[1]Personnel!V1010","v":0},{"$f":"[1]Personnel!W1010","v":0},0,{"$f":"[1]Personnel!Y1010","v":0},{"$f":"[1]Personnel!Z1010","v":0},0,0,0,0,null,null,null,null,null,null,null,null,null,null,null,null,null,null,null,null,null,null,null,null,null,null,null,null,null,{"$f":"[1]Personnel!G1010","v":0}]
[0,{"$f":"IFERROR(INDEX(Settings!$AP$17:$AP$38,MATCH(Personnel!$G1011,Settings!$AQ$17:$AQ$38,0)),0)","v":0},null,null,null,{"$f":"[1]Personnel!F1011","v":0},{"$f":"IFERROR(INDEX((SLevel),MATCH(Personnel!BA1011,SLevel202223,0)),0)","v":0},{"$f":"[1]Personnel!H1011","v":0},{"$f":"[1]Personnel!I1011","v":0},{"$f":"[1]Personnel!J1011","v":0},{"$f":"[1]Personnel!P1011","v":0},{"$f":"[1]Personnel!Q1011","v":0},0,{"$f":"[1]Personnel!S1011","v":0},{"$f":"[1]Personnel!S1011","v":0},{"$f":"[1]Personnel!S1011","v":0},{"$f":"[1]Personnel!T1011","v":0},0,{"$f":"[1]Personnel!V1011","v":0},{"$f":"[1]Personnel!W1011","v":0},0,{"$f":"[1]Personnel!Y1011","v":0},{"$f":"[1]Personnel!Z1011","v":0},0,0,0,0,null,null,null,null,null,null,null,null,null,null,null,null,null,null,null,null,null,null,null,null,null,null,null,null,null,{"$f":"[1]Personnel!G1011","v":0}]
[0,{"$f":"IFERROR(INDEX(Settings!$AP$17:$AP$38,MATCH(Personnel!$G1012,Settings!$AQ$17:$AQ$38,0)),0)","v":0},null,null,null,{"$f":"[1]Personnel!F1012","v":0},{"$f":"IFERROR(INDEX((SLevel),MATCH(Personnel!BA1012,SLevel202223,0)),0)","v":0},{"$f":"[1]Personnel!H1012","v":0},{"$f":"[1]Personnel!I1012","v":0},{"$f":"[1]Personnel!J1012","v":0},{"$f":"[1]Personnel!P1012","v":0},{"$f":"[1]Personnel!Q1012","v":0},0,{"$f":"[1]Personnel!S1012","v":0},{"$f":"[1]Personnel!S1012","v":0},{"$f":"[1]Personnel!S1012","v":0},{"$f":"[1]Personnel!T1012","v":0},0,{"$f":"[1]Personnel!V1012","v":0},{"$f":"[1]Personnel!W1012","v":0},0,{"$f":"[1]Personnel!Y1012","v":0},{"$f":"[1]Personnel!Z1012","v":0},0,0,0,0,null,null,null,null,null,null,null,null,null,null,null,null,null,null,null,null,null,null,null,null,null,null,null,null,null,{"$f":"[1]Personnel!G1012","v":0}]
[0,{"$f":"IFERROR(INDEX(Settings!$AP$17:$AP$38,MATCH(Personnel!$G1013,Settings!$AQ$17:$AQ$38,0)),0)","v":0},null,null,null,{"$f":"[1]Personnel!F1013","v":0},{"$f":"IFERROR(INDEX((SLevel),MATCH(Personnel!BA1013,SLevel202223,0)),0)","v":0},{"$f":"[1]Personnel!H1013","v":0},{"$f":"[1]Personnel!I1013","v":0},{"$f":"[1]Personnel!J1013","v":0},{"$f":"[1]Personnel!P1013","v":0},{"$f":"[1]Personnel!Q1013","v":0},0,{"$f":"[1]Personnel!S1013","v":0},{"$f":"[1]Personnel!S1013","v":0},{"$f":"[1]Personnel!S1013","v":0},{"$f":"[1]Personnel!T1013","v":0},0,{"$f":"[1]Personnel!V1013","v":0},{"$f":"[1]Personnel!W1013","v":0},0,{"$f":"[1]Personnel!Y1013","v":0},{"$f":"[1]Personnel!Z1013","v":0},0,0,0,0,null,null,null,null,null,null,null,null,null,null,null,null,null,null,null,null,null,null,null,null,null,null,null,null,null,{"$f":"[1]Personnel!G1013","v":0}]
[0,{"$f":"IFERROR(INDEX(Settings!$AP$17:$AP$38,MATCH(Personnel!$G1014,Settings!$AQ$17:$AQ$38,0)),0)","v":0},null,null,null,{"$f":"[1]Personnel!F1014","v":0},{"$f":"IFERROR(INDEX((SLevel),MATCH(Personnel!BA1014,SLevel202223,0)),0)","v":0},{"$f":"[1]Personnel!H1014","v":0},{"$f":"[1]Personnel!I1014","v":0},{"$f":"[1]Personnel!J1014","v":0},{"$f":"[1]Personnel!P1014","v":0},{"$f":"[1]Personnel!Q1014","v":0},0,{"$f":"[1]Personnel!S1014","v":0},{"$f":"[1]Personnel!S1014","v":0},{"$f":"[1]Personnel!S1014","v":0},{"$f":"[1]Personnel!T1014","v":0},0,{"$f":"[1]Personnel!V1014","v":0},{"$f":"[1]Personnel!W1014","v":0},0,{"$f":"[1]Personnel!Y1014","v":0},{"$f":"[1]Personnel!Z1014","v":0},0,0,0,0,null,null,null,null,null,null,null,null,null,null,null,null,null,null,null,null,null,null,null,null,null,null,null,null,null,{"$f":"[1]Personnel!G1014","v":0}]
[0,{"$f":"IFERROR(INDEX(Settings!$AP$17:$AP$38,MATCH(Personnel!$G1015,Settings!$AQ$17:$AQ$38,0)),0)","v":0},null,null,null,{"$f":"[1]Personnel!F1015","v":0},{"$f":"IFERROR(INDEX((SLevel),MATCH(Personnel!BA1015,SLevel202223,0)),0)","v":0},{"$f":"[1]Personnel!H1015","v":0},{"$f":"[1]Personnel!I1015","v":0},{"$f":"[1]Personnel!J1015","v":0},{"$f":"[1]Personnel!P1015","v":0},{"$f":"[1]Personnel!Q1015","v":0},0,{"$f":"[1]Personnel!S1015","v":0},{"$f":"[1]Personnel!S1015","v":0},{"$f":"[1]Personnel!S1015","v":0},{"$f":"[1]Personnel!T1015","v":0},0,{"$f":"[1]Personnel!V1015","v":0},{"$f":"[1]Personnel!W1015","v":0},0,{"$f":"[1]Personnel!Y1015","v":0},{"$f":"[1]Personnel!Z1015","v":0},0,0,0,0,null,null,null,null,null,null,null,null,null,null,null,null,null,null,null,null,null,null,null,null,null,null,null,null,null,{"$f":"[1]Personnel!G1015","v":0}]
[0,{"$f":"IFERROR(INDEX(Settings!$AP$17:$AP$38,MATCH(Personnel!$G1016,Settings!$AQ$17:$AQ$38,0)),0)","v":0},null,null,null,{"$f":"[1]Personnel!F1016","v":0},{"$f":"IFERROR(INDEX((SLevel),MATCH(Personnel!BA1016,SLevel202223,0)),0)","v":0},{"$f":"[1]Personnel!H1016","v":0},{"$f":"[1]Personnel!I1016","v":0},{"$f":"[1]Personnel!J1016","v":0},{"$f":"[1]Personnel!P1016","v":0},{"$f":"[1]Personnel!Q1016","v":0},0,{"$f":"[1]Personnel!S1016","v":0},{"$f":"[1]Personnel!S1016","v":0},{"$f":"[1]Personnel!S1016","v":0},{"$f":"[1]Personnel!T1016","v":0},0,{"$f":"[1]Personnel!V1016","v":0},{"$f":"[1]Personnel!W1016","v":0},0,{"$f":"[1]Personnel!Y1016","v":0},{"$f":"[1]Personnel!Z1016","v":0},0,0,0,0,null,null,null,null,null,null,null,null,null,null,null,null,null,null,null,null,null,null,null,null,null,null,null,null,null,{"$f":"[1]Personnel!G1016","v":0}]
[0,{"$f":"IFERROR(INDEX(Settings!$AP$17:$AP$38,MATCH(Personnel!$G1017,Settings!$AQ$17:$AQ$38,0)),0)","v":0},null,null,null,{"$f":"[1]Personnel!F1017","v":0},{"$f":"IFERROR(INDEX((SLevel),MATCH(Personnel!BA1017,SLevel202223,0)),0)","v":0},{"$f":"[1]Personnel!H1017","v":0},{"$f":"[1]Personnel!I1017","v":0},{"$f":"[1]Personnel!J1017","v":0},{"$f":"[1]Personnel!P1017","v":0},{"$f":"[1]Personnel!Q1017","v":0},0,{"$f":"[1]Personnel!S1017","v":0},{"$f":"[1]Personnel!S1017","v":0},{"$f":"[1]Personnel!S1017","v":0},{"$f":"[1]Personnel!T1017","v":0},0,{"$f":"[1]Personnel!V1017","v":0},{"$f":"[1]Personnel!W1017","v":0},0,{"$f":"[1]Personnel!Y1017","v":0},{"$f":"[1]Personnel!Z1017","v":0},0,0,0,0,null,null,null,null,null,null,null,null,null,null,null,null,null,null,null,null,null,null,null,null,null,null,null,null,null,{"$f":"[1]Personnel!G1017","v":0}]
[0,{"$f":"IFERROR(INDEX(Settings!$AP$17:$AP$38,MATCH(Personnel!$G1018,Settings!$AQ$17:$AQ$38,0)),0)","v":0},null,null,null,{"$f":"[1]Personnel!F1018","v":0},{"$f":"IFERROR(INDEX((SLevel),MATCH(Personnel!BA1018,SLevel202223,0)),0)","v":0},{"$f":"[1]Personnel!H1018","v":0},{"$f":"[1]Personnel!I1018","v":0},{"$f":"[1]Personnel!J1018","v":0},{"$f":"[1]Personnel!P1018","v":0},{"$f":"[1]Personnel!Q1018","v":0},0,{"$f":"[1]Personnel!S1018","v":0},{"$f":"[1]Personnel!S1018","v":0},{"$f":"[1]Personnel!S1018","v":0},{"$f":"[1]Personnel!T1018","v":0},0,{"$f":"[1]Personnel!V1018","v":0},{"$f":"[1]Personnel!W1018","v":0},0,{"$f":"[1]Personnel!Y1018","v":0},{"$f":"[1]Personnel!Z1018","v":0},0,0,0,0,null,null,null,null,null,null,null,null,null,null,null,null,null,null,null,null,null,null,null,null,null,null,null,null,null,{"$f":"[1]Personnel!G1018","v":0}]
[0,{"$f":"IFERROR(INDEX(Settings!$AP$17:$AP$38,MATCH(Personnel!$G1019,Settings!$AQ$17:$AQ$38,0)),0)","v":0},null,null,null,{"$f":"[1]Personnel!F1019","v":0},{"$f":"IFERROR(INDEX((SLevel),MATCH(Personnel!BA1019,SLevel202223,0)),0)","v":0},{"$f":"[1]Personnel!H1019","v":0},{"$f":"[1]Personnel!I1019","v":0},{"$f":"[1]Personnel!J1019","v":0},{"$f":"[1]Personnel!P1019","v":0},{"$f":"[1]Personnel!Q1019","v":0},0,{"$f":"[1]Personnel!S1019","v":0},{"$f":"[1]Personnel!S1019","v":0},{"$f":"[1]Personnel!S1019","v":0},{"$f":"[1]Personnel!T1019","v":0},0,{"$f":"[1]Personnel!V1019","v":0},{"$f":"[1]Personnel!W1019","v":0},0,{"$f":"[1]Personnel!Y1019","v":0},{"$f":"[1]Personnel!Z1019","v":0},0,0,0,0,null,null,null,null,null,null,null,null,null,null,null,null,null,null,null,null,null,null,null,null,null,null,null,null,null,{"$f":"[1]Personnel!G1019","v":0}]
[0,{"$f":"IFERROR(INDEX(Settings!$AP$17:$AP$38,MATCH(Personnel!$G1020,Settings!$AQ$17:$AQ$38,0)),0)","v":0},null,null,null,{"$f":"[1]Personnel!F1020","v":0},{"$f":"IFERROR(INDEX((SLevel),MATCH(Personnel!BA1020,SLevel202223,0)),0)","v":0},{"$f":"[1]Personnel!H1020","v":0},{"$f":"[1]Personnel!I1020","v":0},{"$f":"[1]Personnel!J1020","v":0},{"$f":"[1]Personnel!P1020","v":0},{"$f":"[1]Personnel!Q1020","v":0},0,{"$f":"[1]Personnel!S1020","v":0},{"$f":"[1]Personnel!S1020","v":0},{"$f":"[1]Personnel!S1020","v":0},{"$f":"[1]Personnel!T1020","v":0},0,{"$f":"[1]Personnel!V1020","v":0},{"$f":"[1]Personnel!W1020","v":0},0,{"$f":"[1]Personnel!Y1020","v":0},{"$f":"[1]Personnel!Z1020","v":0},0,0,0,0,null,null,null,null,null,null,null,null,null,null,null,null,null,null,null,null,null,null,null,null,null,null,null,null,null,{"$f":"[1]Personnel!G1020","v":0}]
[0,{"$f":"IFERROR(INDEX(Settings!$AP$17:$AP$38,MATCH(Personnel!$G1021,Settings!$AQ$17:$AQ$38,0)),0)","v":0},null,null,null,{"$f":"[1]Personnel!F1021","v":0},{"$f":"IFERROR(INDEX((SLevel),MATCH(Personnel!BA1021,SLevel202223,0)),0)","v":0},{"$f":"[1]Personnel!H1021","v":0},{"$f":"[1]Personnel!I1021","v":0},{"$f":"[1]Personnel!J1021","v":0},{"$f":"[1]Personnel!P1021","v":0},{"$f":"[1]Personnel!Q1021","v":0},0,{"$f":"[1]Personnel!S1021","v":0},{"$f":"[1]Personnel!S1021","v":0},{"$f":"[1]Personnel!S1021","v":0},{"$f":"[1]Personnel!T1021","v":0},0,{"$f":"[1]Personnel!V1021","v":0},{"$f":"[1]Personnel!W1021","v":0},0,{"$f":"[1]Personnel!Y1021","v":0},{"$f":"[1]Personnel!Z1021","v":0},0,0,0,0,null,null,null,null,null,null,null,null,null,null,null,null,null,null,null,null,null,null,null,null,null,null,null,null,null,{"$f":"[1]Personnel!G1021","v":0}]
[0,{"$f":"IFERROR(INDEX(Settings!$AP$17:$AP$38,MATCH(Personnel!$G1022,Settings!$AQ$17:$AQ$38,0)),0)","v":0},null,null,null,{"$f":"[1]Personnel!F1022","v":0},{"$f":"IFERROR(INDEX((SLevel),MATCH(Personnel!BA1022,SLevel202223,0)),0)","v":0},{"$f":"[1]Personnel!H1022","v":0},{"$f":"[1]Personnel!I1022","v":0},{"$f":"[1]Personnel!J1022","v":0},{"$f":"[1]Personnel!P1022","v":0},{"$f":"[1]Personnel!Q1022","v":0},0,{"$f":"[1]Personnel!S1022","v":0},{"$f":"[1]Personnel!S1022","v":0},{"$f":"[1]Personnel!S1022","v":0},{"$f":"[1]Personnel!T1022","v":0},0,{"$f":"[1]Personnel!V1022","v":0},{"$f":"[1]Personnel!W1022","v":0},0,{"$f":"[1]Personnel!Y1022","v":0},{"$f":"[1]Personnel!Z1022","v":0},0,0,0,0,null,null,null,null,null,null,null,null,null,null,null,null,null,null,null,null,null,null,null,null,null,null,null,null,null,{"$f":"[1]Personnel!G1022","v":0}]
[0,{"$f":"IFERROR(INDEX(Settings!$AP$17:$AP$38,MATCH(Personnel!$G1023,Settings!$AQ$17:$AQ$38,0)),0)","v":0},null,null,null,{"$f":"[1]Personnel!F1023","v":0},{"$f":"IFERROR(INDEX((SLevel),MATCH(Personnel!BA1023,SLevel202223,0)),0)","v":0},{"$f":"[1]Personnel!H1023","v":0},{"$f":"[1]Personnel!I1023","v":0},{"$f":"[1]Personnel!J1023","v":0},{"$f":"[1]Personnel!P1023","v":0},{"$f":"[1]Personnel!Q1023","v":0},0,{"$f":"[1]Personnel!S1023","v":0},{"$f":"[1]Personnel!S1023","v":0},{"$f":"[1]Personnel!S1023","v":0},{"$f":"[1]Personnel!T1023","v":0},0,{"$f":"[1]Personnel!V1023","v":0},{"$f":"[1]Personnel!W1023","v":0},0,{"$f":"[1]Personnel!Y1023","v":0},{"$f":"[1]Personnel!Z1023","v":0},0,0,0,0,null,null,null,null,null,null,null,null,null,null,null,null,null,null,null,null,null,null,null,null,null,null,null,null,null,{"$f":"[1]Personnel!G1023","v":0}]
[0,{"$f":"IFERROR(INDEX(Settings!$AP$17:$AP$38,MATCH(Personnel!$G1024,Settings!$AQ$17:$AQ$38,0)),0)","v":0},null,null,null,{"$f":"[1]Personnel!F1024","v":0},{"$f":"IFERROR(INDEX((SLevel),MATCH(Personnel!BA1024,SLevel202223,0)),0)","v":0},{"$f":"[1]Personnel!H1024","v":0},{"$f":"[1]Personnel!I1024","v":0},{"$f":"[1]Personnel!J1024","v":0},{"$f":"[1]Personnel!P1024","v":0},{"$f":"[1]Personnel!Q1024","v":0},0,{"$f":"[1]Personnel!S1024","v":0},{"$f":"[1]Personnel!S1024","v":0},{"$f":"[1]Personnel!S1024","v":0},{"$f":"[1]Personnel!T1024","v":0},0,{"$f":"[1]Personnel!V1024","v":0},{"$f":"[1]Personnel!W1024","v":0},0,{"$f":"[1]Personnel!Y1024","v":0},{"$f":"[1]Personnel!Z1024","v":0},0,0,0,0,null,null,null,null,null,null,null,null,null,null,null,null,null,null,null,null,null,null,null,null,null,null,null,null,null,{"$f":"[1]Personnel!G1024","v":0}]
[0,{"$f":"IFERROR(INDEX(Settings!$AP$17:$AP$38,MATCH(Personnel!$G1025,Settings!$AQ$17:$AQ$38,0)),0)","v":0},null,null,null,{"$f":"[1]Personnel!F1025","v":0},{"$f":"IFERROR(INDEX((SLevel),MATCH(Personnel!BA1025,SLevel202223,0)),0)","v":0},{"$f":"[1]Personnel!H1025","v":0},{"$f":"[1]Personnel!I1025","v":0},{"$f":"[1]Personnel!J1025","v":0},{"$f":"[1]Personnel!P1025","v":0},{"$f":"[1]Personnel!Q1025","v":0},0,{"$f":"[1]Personnel!S1025","v":0},{"$f":"[1]Personnel!S1025","v":0},{"$f":"[1]Personnel!S1025","v":0},{"$f":"[1]Personnel!T1025","v":0},0,{"$f":"[1]Personnel!V1025","v":0},{"$f":"[1]Personnel!W1025","v":0},0,{"$f":"[1]Personnel!Y1025","v":0},{"$f":"[1]Personnel!Z1025","v":0},0,0,0,0,null,null,null,null,null,null,null,null,null,null,null,null,null,null,null,null,null,null,null,null,null,null,null,null,null,{"$f":"[1]Personnel!G1025","v":0}]
[0,{"$f":"IFERROR(INDEX(Settings!$AP$17:$AP$38,MATCH(Personnel!$G1026,Settings!$AQ$17:$AQ$38,0)),0)","v":0},null,null,null,{"$f":"[1]Personnel!F1026","v":0},{"$f":"IFERROR(INDEX((SLevel),MATCH(Personnel!BA1026,SLevel202223,0)),0)","v":0},{"$f":"[1]Personnel!H1026","v":0},{"$f":"[1]Personnel!I1026","v":0},{"$f":"[1]Personnel!J1026","v":0},{"$f":"[1]Personnel!P1026","v":0},{"$f":"[1]Personnel!Q1026","v":0},0,{"$f":"[1]Personnel!S1026","v":0},{"$f":"[1]Personnel!S1026","v":0},{"$f":"[1]Personnel!S1026","v":0},{"$f":"[1]Personnel!T1026","v":0},0,{"$f":"[1]Personnel!V1026","v":0},{"$f":"[1]Personnel!W1026","v":0},0,{"$f":"[1]Personnel!Y1026","v":0},{"$f":"[1]Personnel!Z1026","v":0},0,0,0,0,null,null,null,null,null,null,null,null,null,null,null,null,null,null,null,null,null,null,null,null,null,null,null,null,null,{"$f":"[1]Personnel!G1026","v":0}]
[0,{"$f":"IFERROR(INDEX(Settings!$AP$17:$AP$38,MATCH(Personnel!$G1027,Settings!$AQ$17:$AQ$38,0)),0)","v":0},null,null,null,{"$f":"[1]Personnel!F1027","v":0},{"$f":"IFERROR(INDEX((SLevel),MATCH(Personnel!BA1027,SLevel202223,0)),0)","v":0},{"$f":"[1]Personnel!H1027","v":0},{"$f":"[1]Personnel!I1027","v":0},{"$f":"[1]Personnel!J1027","v":0},{"$f":"[1]Personnel!P1027","v":0},{"$f":"[1]Personnel!Q1027","v":0},0,{"$f":"[1]Personnel!S1027","v":0},{"$f":"[1]Personnel!S1027","v":0},{"$f":"[1]Personnel!S1027","v":0},{"$f":"[1]Personnel!T1027","v":0},0,{"$f":"[1]Personnel!V1027","v":0},{"$f":"[1]Personnel!W1027","v":0},0,{"$f":"[1]Personnel!Y1027","v":0},{"$f":"[1]Personnel!Z1027","v":0},0,0,0,0,null,null,null,null,null,null,null,null,null,null,null,null,null,null,null,null,null,null,null,null,null,null,null,null,null,{"$f":"[1]Personnel!G1027","v":0}]
[0,{"$f":"IFERROR(INDEX(Settings!$AP$17:$AP$38,MATCH(Personnel!$G1028,Settings!$AQ$17:$AQ$38,0)),0)","v":0},null,null,null,{"$f":"[1]Personnel!F1028","v":0},{"$f":"IFERROR(INDEX((SLevel),MATCH(Personnel!BA1028,SLevel202223,0)),0)","v":0},{"$f":"[1]Personnel!H1028","v":0},{"$f":"[1]Personnel!I1028","v":0},{"$f":"[1]Personnel!J1028","v":0},{"$f":"[1]Personnel!P1028","v":0},{"$f":"[1]Personnel!Q1028","v":0},0,{"$f":"[1]Personnel!S1028","v":0},{"$f":"[1]Personnel!S1028","v":0},{"$f":"[1]Personnel!S1028","v":0},{"$f":"[1]Personnel!T1028","v":0},0,{"$f":"[1]Personnel!V1028","v":0},{"$f":"[1]Personnel!W1028","v":0},0,{"$f":"[1]Personnel!Y1028","v":0},{"$f":"[1]Personnel!Z1028","v":0},0,0,0,0,null,null,null,null,null,null,null,null,null,null,null,null,null,null,null,null,null,null,null,null,null,null,null,null,null,{"$f":"[1]Personnel!G1028","v":0}]
[0,{"$f":"IFERROR(INDEX(Settings!$AP$17:$AP$38,MATCH(Personnel!$G1029,Settings!$AQ$17:$AQ$38,0)),0)","v":0},null,null,null,{"$f":"[1]Personnel!F1029","v":0},{"$f":"IFERROR(INDEX((SLevel),MATCH(Personnel!BA1029,SLevel202223,0)),0)","v":0},{"$f":"[1]Personnel!H1029","v":0},{"$f":"[1]Personnel!I1029","v":0},{"$f":"[1]Personnel!J1029","v":0},{"$f":"[1]Personnel!P1029","v":0},{"$f":"[1]Personnel!Q1029","v":0},0,{"$f":"[1]Personnel!S1029","v":0},{"$f":"[1]Personnel!S1029","v":0},{"$f":"[1]Personnel!S1029","v":0},{"$f":"[1]Personnel!T1029","v":0},0,{"$f":"[1]Personnel!V1029","v":0},{"$f":"[1]Personnel!W1029","v":0},0,{"$f":"[1]Personnel!Y1029","v":0},{"$f":"[1]Personnel!Z1029","v":0},0,0,0,0,null,null,null,null,null,null,null,null,null,null,null,null,null,null,null,null,null,null,null,null,null,null,null,null,null,{"$f":"[1]Personnel!G1029","v":0}]
[0,{"$f":"IFERROR(INDEX(Settings!$AP$17:$AP$38,MATCH(Personnel!$G1030,Settings!$AQ$17:$AQ$38,0)),0)","v":0},null,null,null,{"$f":"[1]Personnel!F1030","v":0},{"$f":"IFERROR(INDEX((SLevel),MATCH(Personnel!BA1030,SLevel202223,0)),0)","v":0},{"$f":"[1]Personnel!H1030","v":0},{"$f":"[1]Personnel!I1030","v":0},{"$f":"[1]Personnel!J1030","v":0},{"$f":"[1]Personnel!P1030","v":0},{"$f":"[1]Personnel!Q1030","v":0},0,{"$f":"[1]Personnel!S1030","v":0},{"$f":"[1]Personnel!S1030","v":0},{"$f":"[1]Personnel!S1030","v":0},{"$f":"[1]Personnel!T1030","v":0},0,{"$f":"[1]Personnel!V1030","v":0},{"$f":"[1]Personnel!W1030","v":0},0,{"$f":"[1]Personnel!Y1030","v":0},{"$f":"[1]Personnel!Z1030","v":0},0,0,0,0,null,null,null,null,null,null,null,null,null,null,null,null,null,null,null,null,null,null,null,null,null,null,null,null,null,{"$f":"[1]Personnel!G1030","v":0}]
[0,{"$f":"IFERROR(INDEX(Settings!$AP$17:$AP$38,MATCH(Personnel!$G1031,Settings!$AQ$17:$AQ$38,0)),0)","v":0},null,null,null,{"$f":"[1]Personnel!F1031","v":0},{"$f":"IFERROR(INDEX((SLevel),MATCH(Personnel!BA1031,SLevel202223,0)),0)","v":0},{"$f":"[1]Personnel!H1031","v":0},{"$f":"[1]Personnel!I1031","v":0},{"$f":"[1]Personnel!J1031","v":0},{"$f":"[1]Personnel!P1031","v":0},{"$f":"[1]Personnel!Q1031","v":0},0,{"$f":"[1]Personnel!S1031","v":0},{"$f":"[1]Personnel!S1031","v":0},{"$f":"[1]Personnel!S1031","v":0},{"$f":"[1]Personnel!T1031","v":0},0,{"$f":"[1]Personnel!V1031","v":0},{"$f":"[1]Personnel!W1031","v":0},0,{"$f":"[1]Personnel!Y1031","v":0},{"$f":"[1]Personnel!Z1031","v":0},0,0,0,0,null,null,null,null,null,null,null,null,null,null,null,null,null,null,null,null,null,null,null,null,null,null,null,null,null,{"$f":"[1]Personnel!G1031","v":0}]
[0,{"$f":"IFERROR(INDEX(Settings!$AP$17:$AP$38,MATCH(Personnel!$G1032,Settings!$AQ$17:$AQ$38,0)),0)","v":0},null,null,null,{"$f":"[1]Personnel!F1032","v":0},{"$f":"IFERROR(INDEX((SLevel),MATCH(Personnel!BA1032,SLevel202223,0)),0)","v":0},{"$f":"[1]Personnel!H1032","v":0},{"$f":"[1]Personnel!I1032","v":0},{"$f":"[1]Personnel!J1032","v":0},{"$f":"[1]Personnel!P1032","v":0},{"$f":"[1]Personnel!Q1032","v":0},0,{"$f":"[1]Personnel!S1032","v":0},{"$f":"[1]Personnel!S1032","v":0},{"$f":"[1]Personnel!S1032","v":0},{"$f":"[1]Personnel!T1032","v":0},0,{"$f":"[1]Personnel!V1032","v":0},{"$f":"[1]Personnel!W1032","v":0},0,{"$f":"[1]Personnel!Y1032","v":0},{"$f":"[1]Personnel!Z1032","v":0},0,0,0,0,null,null,null,null,null,null,null,null,null,null,null,null,null,null,null,null,null,null,null,null,null,null,null,null,null,{"$f":"[1]Personnel!G1032","v":0}]
[0,{"$f":"IFERROR(INDEX(Settings!$AP$17:$AP$38,MATCH(Personnel!$G1033,Settings!$AQ$17:$AQ$38,0)),0)","v":0},null,null,null,{"$f":"[1]Personnel!F1033","v":0},{"$f":"IFERROR(INDEX((SLevel),MATCH(Personnel!BA1033,SLevel202223,0)),0)","v":0},{"$f":"[1]Personnel!H1033","v":0},{"$f":"[1]Personnel!I1033","v":0},{"$f":"[1]Personnel!J1033","v":0},{"$f":"[1]Personnel!P1033","v":0},{"$f":"[1]Personnel!Q1033","v":0},0,{"$f":"[1]Personnel!S1033","v":0},{"$f":"[1]Personnel!S1033","v":0},{"$f":"[1]Personnel!S1033","v":0},{"$f":"[1]Personnel!T1033","v":0},0,{"$f":"[1]Personnel!V1033","v":0},{"$f":"[1]Personnel!W1033","v":0},0,{"$f":"[1]Personnel!Y1033","v":0},{"$f":"[1]Personnel!Z1033","v":0},0,0,0,0,null,null,null,null,null,null,null,null,null,null,null,null,null,null,null,null,null,null,null,null,null,null,null,null,null,{"$f":"[1]Personnel!G1033","v":0}]
[0,{"$f":"IFERROR(INDEX(Settings!$AP$17:$AP$38,MATCH(Personnel!$G1034,Settings!$AQ$17:$AQ$38,0)),0)","v":0},null,null,null,{"$f":"[1]Personnel!F1034","v":0},{"$f":"IFERROR(INDEX((SLevel),MATCH(Personnel!BA1034,SLevel202223,0)),0)","v":0},{"$f":"[1]Personnel!H1034","v":0},{"$f":"[1]Personnel!I1034","v":0},{"$f":"[1]Personnel!J1034","v":0},{"$f":"[1]Personnel!P1034","v":0},{"$f":"[1]Personnel!Q1034","v":0},0,{"$f":"[1]Personnel!S1034","v":0},{"$f":"[1]Personnel!S1034","v":0},{"$f":"[1]Personnel!S1034","v":0},{"$f":"[1]Personnel!T1034","v":0},0,{"$f":"[1]Personnel!V1034","v":0},{"$f":"[1]Personnel!W1034","v":0},0,{"$f":"[1]Personnel!Y1034","v":0},{"$f":"[1]Personnel!Z1034","v":0},0,0,0,0,null,null,null,null,null,null,null,null,null,null,null,null,null,null,null,null,null,null,null,null,null,null,null,null,null,{"$f":"[1]Personnel!G1034","v":0}]
[0,{"$f":"IFERROR(INDEX(Settings!$AP$17:$AP$38,MATCH(Personnel!$G1035,Settings!$AQ$17:$AQ$38,0)),0)","v":0},null,null,null,{"$f":"[1]Personnel!F1035","v":0},{"$f":"IFERROR(INDEX((SLevel),MATCH(Personnel!BA1035,SLevel202223,0)),0)","v":0},{"$f":"[1]Personnel!H1035","v":0},{"$f":"[1]Personnel!I1035","v":0},{"$f":"[1]Personnel!J1035","v":0},{"$f":"[1]Personnel!P1035","v":0},{"$f":"[1]Personnel!Q1035","v":0},0,{"$f":"[1]Personnel!S1035","v":0},{"$f":"[1]Personnel!S1035","v":0},{"$f":"[1]Personnel!S1035","v":0},{"$f":"[1]Personnel!T1035","v":0},0,{"$f":"[1]Personnel!V1035","v":0},{"$f":"[1]Personnel!W1035","v":0},0,{"$f":"[1]Personnel!Y1035","v":0},{"$f":"[1]Personnel!Z1035","v":0},0,0,0,0,null,null,null,null,null,null,null,null,null,null,null,null,null,null,null,null,null,null,null,null,null,null,null,null,null,{"$f":"[1]Personnel!G1035","v":0}]
[{"$f":"IF(SUM(K1036:AA1036)>0,1,0)","v":0},{"$f":"IFERROR(INDEX(Settings!$AP$17:$AP$38,MATCH(Personnel!$G1036,Settings!$AQ$17:$AQ$38,0)),0)","v":0},null,null,null,{"$f":"[1]Personnel!F1036","v":0},{"$f":"IFERROR(INDEX((SLevel),MATCH(Personnel!BA1036,SLevel202223,0)),0)","v":0},{"$f":"[1]Personnel!H1036","v":0},{"$f":"[1]Personnel!I1036","v":0},{"$f":"[1]Personnel!J1036","v":0},{"$f":"[1]Personnel!P1036","v":0},{"$f":"[1]Personnel!Q1036","v":0},0,{"$f":"[1]Personnel!S1036","v":0},{"$f":"[1]Personnel!S1036","v":0},{"$f":"[1]Personnel!S1036","v":0},{"$f":"[1]Personnel!T1036","v":0},0,{"$f":"[1]Personnel!V1036","v":0},{"$f":"[1]Personnel!W1036","v":0},0,{"$f":"[1]Personnel!Y1036","v":0},{"$f":"[1]Personnel!Z1036","v":0},0,0,0,0,null,null,null,null,null,null,null,null,null,null,null,null,null,null,null,null,null,null,null,null,null,null,null,null,null,{"$f":"[1]Personnel!G1036","v":0}]
[0,{"$f":"IFERROR(INDEX(Settings!$AP$17:$AP$38,MATCH(Personnel!$G1037,Settings!$AQ$17:$AQ$38,0)),0)","v":0},null,null,null,{"$f":"[1]Personnel!F1037","v":0},{"$f":"IFERROR(INDEX((SLevel),MATCH(Personnel!BA1037,SLevel202223,0)),0)","v":0},{"$f":"[1]Personnel!H1037","v":0},{"$f":"[1]Personnel!I1037","v":0},{"$f":"[1]Personnel!J1037","v":0},{"$f":"[1]Personnel!P1037","v":0},{"$f":"[1]Personnel!Q1037","v":0},{"$f":"ROUND(IF(ISERROR(L1037/K1037),0,(L1037/K1037)),0)","v":0},{"$f":"[1]Personnel!S1037","v":0},{"$f":"[1]Personnel!S1037","v":0},{"$f":"[1]Personnel!S1037","v":0},{"$f":"[1]Personnel!T1037","v":0},{"$f":"ROUND(IF(ISERROR(Q1037/P1037),0,(Q1037/P1037)),0)","v":0},{"$f":"[1]Personnel!V1037","v":0},{"$f":"[1]Personnel!W1037","v":0},{"$f":"ROUND(IF(ISERROR(T1037/S1037),0,(T1037/S1037)),0)","v":0},{"$f":"[1]Personnel!Y1037","v":0},{"$f":"[1]Personnel!Z1037","v":0},{"$f":"ROUND(IF(ISERROR(W1037/V1037),0,(W1037/V1037)),0)","v":0},0,0,{"$f":"ROUND(IF(ISERROR(Z1037/Y1037),0,(Z1037/Y1037)),0)","v":0},null,null,null,null,null,null,null,null,null,null,null,null,null,null,null,null,null,null,null,null,null,null,null,null,null,{"$f":"[1]Personnel!G1037","v":0}]
[0,{"$f":"IFERROR(INDEX(Settings!$AP$17:$AP$38,MATCH(Personnel!$G1038,Settings!$AQ$17:$AQ$38,0)),0)","v":0},null,null,null,{"$f":"[1]Personnel!F1038","v":0},{"$f":"IFERROR(INDEX((SLevel),MATCH(Personnel!BA1038,SLevel202223,0)),0)","v":0},{"$f":"[1]Personnel!H1038","v":0},{"$f":"[1]Personnel!I1038","v":0},{"$f":"[1]Personnel!J1038","v":0},{"$f":"[1]Personnel!P1038","v":0},{"$f":"[1]Personnel!Q1038","v":0},0,{"$f":"[1]Personnel!S1038","v":0},{"$f":"[1]Personnel!S1038","v":0},{"$f":"[1]Personnel!S1038","v":0},{"$f":"[1]Personnel!T1038","v":0},0,{"$f":"[1]Personnel!V1038","v":0},{"$f":"[1]Personnel!W1038","v":0},0,{"$f":"[1]Personnel!Y1038","v":0},{"$f":"[1]Personnel!Z1038","v":0},0,0,0,0,null,null,null,null,null,null,null,null,null,null,null,null,null,null,null,null,null,null,null,null,null,null,null,null,null,{"$f":"[1]Personnel!G1038","v":0}]
[0,{"$f":"IFERROR(INDEX(Settings!$AP$17:$AP$38,MATCH(Personnel!$G1039,Settings!$AQ$17:$AQ$38,0)),0)","v":0},null,null,null,{"$f":"[1]Personnel!F1039","v":0},{"$f":"IFERROR(INDEX((SLevel),MATCH(Personnel!BA1039,SLevel202223,0)),0)","v":0},{"$f":"[1]Personnel!H1039","v":0},{"$f":"[1]Personnel!I1039","v":0},{"$f":"[1]Personnel!J1039","v":0},{"$f":"[1]Personnel!P1039","v":0},{"$f":"[1]Personnel!Q1039","v":0},0,{"$f":"[1]Personnel!S1039","v":0},{"$f":"[1]Personnel!S1039","v":0},{"$f":"[1]Personnel!S1039","v":0},{"$f":"[1]Personnel!T1039","v":0},0,{"$f":"[1]Personnel!V1039","v":0},{"$f":"[1]Personnel!W1039","v":0},0,{"$f":"[1]Personnel!Y1039","v":0},{"$f":"[1]Personnel!Z1039","v":0},0,0,0,0,null,null,null,null,null,null,null,null,null,null,null,null,null,null,null,null,null,null,null,null,null,null,null,null,null,{"$f":"[1]Personnel!G1039","v":0}]
[0,{"$f":"IFERROR(INDEX(Settings!$AP$17:$AP$38,MATCH(Personnel!$G1040,Settings!$AQ$17:$AQ$38,0)),0)","v":0},null,null,null,{"$f":"[1]Personnel!F1040","v":0},{"$f":"IFERROR(INDEX((SLevel),MATCH(Personnel!BA1040,SLevel202223,0)),0)","v":0},{"$f":"[1]Personnel!H1040","v":0},{"$f":"[1]Personnel!I1040","v":0},{"$f":"[1]Personnel!J1040","v":0},{"$f":"[1]Personnel!P1040","v":0},{"$f":"[1]Personnel!Q1040","v":0},0,{"$f":"[1]Personnel!S1040","v":0},{"$f":"[1]Personnel!S1040","v":0},{"$f":"[1]Personnel!S1040","v":0},{"$f":"[1]Personnel!T1040","v":0},0,{"$f":"[1]Personnel!V1040","v":0},{"$f":"[1]Personnel!W1040","v":0},0,{"$f":"[1]Personnel!Y1040","v":0},{"$f":"[1]Personnel!Z1040","v":0},0,0,0,0,null,null,null,null,null,null,null,null,null,null,null,null,null,null,null,null,null,null,null,null,null,null,null,null,null,{"$f":"[1]Personnel!G1040","v":0}]
[0,{"$f":"IFERROR(INDEX(Settings!$AP$17:$AP$38,MATCH(Personnel!$G1041,Settings!$AQ$17:$AQ$38,0)),0)","v":0},null,null,null,{"$f":"[1]Personnel!F1041","v":0},{"$f":"IFERROR(INDEX((SLevel),MATCH(Personnel!BA1041,SLevel202223,0)),0)","v":0},{"$f":"[1]Personnel!H1041","v":0},{"$f":"[1]Personnel!I1041","v":0},{"$f":"[1]Personnel!J1041","v":0},{"$f":"[1]Personnel!P1041","v":0},{"$f":"[1]Personnel!Q1041","v":0},0,{"$f":"[1]Personnel!S1041","v":0},{"$f":"[1]Personnel!S1041","v":0},{"$f":"[1]Personnel!S1041","v":0},{"$f":"[1]Personnel!T1041","v":0},0,{"$f":"[1]Personnel!V1041","v":0},{"$f":"[1]Personnel!W1041","v":0},0,{"$f":"[1]Personnel!Y1041","v":0},{"$f":"[1]Personnel!Z1041","v":0},0,0,0,0,null,null,null,null,null,null,null,null,null,null,null,null,null,null,null,null,null,null,null,null,null,null,null,null,null,{"$f":"[1]Personnel!G1041","v":0}]
[0,{"$f":"IFERROR(INDEX(Settings!$AP$17:$AP$38,MATCH(Personnel!$G1042,Settings!$AQ$17:$AQ$38,0)),0)","v":0},null,null,null,{"$f":"[1]Personnel!F1042","v":0},{"$f":"IFERROR(INDEX((SLevel),MATCH(Personnel!BA1042,SLevel202223,0)),0)","v":0},{"$f":"[1]Personnel!H1042","v":0},{"$f":"[1]Personnel!I1042","v":0},{"$f":"[1]Personnel!J1042","v":0},{"$f":"[1]Personnel!P1042","v":0},{"$f":"[1]Personnel!Q1042","v":0},0,{"$f":"[1]Personnel!S1042","v":0},{"$f":"[1]Personnel!S1042","v":0},{"$f":"[1]Personnel!S1042","v":0},{"$f":"[1]Personnel!T1042","v":0},0,{"$f":"[1]Personnel!V1042","v":0},{"$f":"[1]Personnel!W1042","v":0},0,{"$f":"[1]Personnel!Y1042","v":0},{"$f":"[1]Personnel!Z1042","v":0},0,0,0,0,null,null,null,null,null,null,null,null,null,null,null,null,null,null,null,null,null,null,null,null,null,null,null,null,null,{"$f":"[1]Personnel!G1042","v":0}]
[0,{"$f":"IFERROR(INDEX(Settings!$AP$17:$AP$38,MATCH(Personnel!$G1043,Settings!$AQ$17:$AQ$38,0)),0)","v":0},null,null,null,{"$f":"[1]Personnel!F1043","v":0},{"$f":"IFERROR(INDEX((SLevel),MATCH(Personnel!BA1043,SLevel202223,0)),0)","v":0},{"$f":"[1]Personnel!H1043","v":0},{"$f":"[1]Personnel!I1043","v":0},{"$f":"[1]Personnel!J1043","v":0},{"$f":"[1]Personnel!P1043","v":0},{"$f":"[1]Personnel!Q1043","v":0},0,{"$f":"[1]Personnel!S1043","v":0},{"$f":"[1]Personnel!S1043","v":0},{"$f":"[1]Personnel!S1043","v":0},{"$f":"[1]Personnel!T1043","v":0},0,{"$f":"[1]Personnel!V1043","v":0},{"$f":"[1]Personnel!W1043","v":0},0,{"$f":"[1]Personnel!Y1043","v":0},{"$f":"[1]Personnel!Z1043","v":0},0,0,0,0,null,null,null,null,null,null,null,null,null,null,null,null,null,null,null,null,null,null,null,null,null,null,null,null,null,{"$f":"[1]Personnel!G1043","v":0}]
[0,{"$f":"IFERROR(INDEX(Settings!$AP$17:$AP$38,MATCH(Personnel!$G1044,Settings!$AQ$17:$AQ$38,0)),0)","v":0},null,null,null,{"$f":"[1]Personnel!F1044","v":0},{"$f":"IFERROR(INDEX((SLevel),MATCH(Personnel!BA1044,SLevel202223,0)),0)","v":0},{"$f":"[1]Personnel!H1044","v":0},{"$f":"[1]Personnel!I1044","v":0},{"$f":"[1]Personnel!J1044","v":0},{"$f":"[1]Personnel!P1044","v":0},{"$f":"[1]Personnel!Q1044","v":0},0,{"$f":"[1]Personnel!S1044","v":0},{"$f":"[1]Personnel!S1044","v":0},{"$f":"[1]Personnel!S1044","v":0},{"$f":"[1]Personnel!T1044","v":0},0,{"$f":"[1]Personnel!V1044","v":0},{"$f":"[1]Personnel!W1044","v":0},0,{"$f":"[1]Personnel!Y1044","v":0},{"$f":"[1]Personnel!Z1044","v":0},0,0,0,0,null,null,null,null,null,null,null,null,null,null,null,null,null,null,null,null,null,null,null,null,null,null,null,null,null,{"$f":"[1]Personnel!G1044","v":0}]
[0,{"$f":"IFERROR(INDEX(Settings!$AP$17:$AP$38,MATCH(Personnel!$G1045,Settings!$AQ$17:$AQ$38,0)),0)","v":0},null,null,null,{"$f":"[1]Personnel!F1045","v":0},{"$f":"IFERROR(INDEX((SLevel),MATCH(Personnel!BA1045,SLevel202223,0)),0)","v":0},{"$f":"[1]Personnel!H1045","v":0},{"$f":"[1]Personnel!I1045","v":0},{"$f":"[1]Personnel!J1045","v":0},{"$f":"[1]Personnel!P1045","v":0},{"$f":"[1]Personnel!Q1045","v":0},0,{"$f":"[1]Personnel!S1045","v":0},{"$f":"[1]Personnel!S1045","v":0},{"$f":"[1]Personnel!S1045","v":0},{"$f":"[1]Personnel!T1045","v":0},0,{"$f":"[1]Personnel!V1045","v":0},{"$f":"[1]Personnel!W1045","v":0},0,{"$f":"[1]Personnel!Y1045","v":0},{"$f":"[1]Personnel!Z1045","v":0},0,0,0,0,null,null,null,null,null,null,null,null,null,null,null,null,null,null,null,null,null,null,null,null,null,null,null,null,null,{"$f":"[1]Personnel!G1045","v":0}]
[0,{"$f":"IFERROR(INDEX(Settings!$AP$17:$AP$38,MATCH(Personnel!$G1046,Settings!$AQ$17:$AQ$38,0)),0)","v":0},null,null,null,{"$f":"[1]Personnel!F1046","v":0},{"$f":"IFERROR(INDEX((SLevel),MATCH(Personnel!BA1046,SLevel202223,0)),0)","v":0},{"$f":"[1]Personnel!H1046","v":0},{"$f":"[1]Personnel!I1046","v":0},{"$f":"[1]Personnel!J1046","v":0},{"$f":"[1]Personnel!P1046","v":0},{"$f":"[1]Personnel!Q1046","v":0},0,{"$f":"[1]Personnel!S1046","v":0},{"$f":"[1]Personnel!S1046","v":0},{"$f":"[1]Personnel!S1046","v":0},{"$f":"[1]Personnel!T1046","v":0},0,{"$f":"[1]Personnel!V1046","v":0},{"$f":"[1]Personnel!W1046","v":0},0,{"$f":"[1]Personnel!Y1046","v":0},{"$f":"[1]Personnel!Z1046","v":0},0,0,0,0,null,null,null,null,null,null,null,null,null,null,null,null,null,null,null,null,null,null,null,null,null,null,null,null,null,{"$f":"[1]Personnel!G1046","v":0}]
[0,{"$f":"IFERROR(INDEX(Settings!$AP$17:$AP$38,MATCH(Personnel!$G1047,Settings!$AQ$17:$AQ$38,0)),0)","v":0},null,null,null,{"$f":"[1]Personnel!F1047","v":0},{"$f":"IFERROR(INDEX((SLevel),MATCH(Personnel!BA1047,SLevel202223,0)),0)","v":0},{"$f":"[1]Personnel!H1047","v":0},{"$f":"[1]Personnel!I1047","v":0},{"$f":"[1]Personnel!J1047","v":0},{"$f":"[1]Personnel!P1047","v":0},{"$f":"[1]Personnel!Q1047","v":0},0,{"$f":"[1]Personnel!S1047","v":0},{"$f":"[1]Personnel!S1047","v":0},{"$f":"[1]Personnel!S1047","v":0},{"$f":"[1]Personnel!T1047","v":0},0,{"$f":"[1]Personnel!V1047","v":0},{"$f":"[1]Personnel!W1047","v":0},0,{"$f":"[1]Personnel!Y1047","v":0},{"$f":"[1]Personnel!Z1047","v":0},0,0,0,0,null,null,null,null,null,null,null,null,null,null,null,null,null,null,null,null,null,null,null,null,null,null,null,null,null,{"$f":"[1]Personnel!G1047","v":0}]
[0,{"$f":"IFERROR(INDEX(Settings!$AP$17:$AP$38,MATCH(Personnel!$G1048,Settings!$AQ$17:$AQ$38,0)),0)","v":0},null,null,null,{"$f":"[1]Personnel!F1048","v":0},{"$f":"IFERROR(INDEX((SLevel),MATCH(Personnel!BA1048,SLevel202223,0)),0)","v":0},{"$f":"[1]Personnel!H1048","v":0},{"$f":"[1]Personnel!I1048","v":0},{"$f":"[1]Personnel!J1048","v":0},{"$f":"[1]Personnel!P1048","v":0},{"$f":"[1]Personnel!Q1048","v":0},0,{"$f":"[1]Personnel!S1048","v":0},{"$f":"[1]Personnel!S1048","v":0},{"$f":"[1]Personnel!S1048","v":0},{"$f":"[1]Personnel!T1048","v":0},0,{"$f":"[1]Personnel!V1048","v":0},{"$f":"[1]Personnel!W1048","v":0},0,{"$f":"[1]Personnel!Y1048","v":0},{"$f":"[1]Personnel!Z1048","v":0},0,0,0,0,null,null,null,null,null,null,null,null,null,null,null,null,null,null,null,null,null,null,null,null,null,null,null,null,null,{"$f":"[1]Personnel!G1048","v":0}]
[0,{"$f":"IFERROR(INDEX(Settings!$AP$17:$AP$38,MATCH(Personnel!$G1049,Settings!$AQ$17:$AQ$38,0)),0)","v":0},null,null,null,{"$f":"[1]Personnel!F1049","v":0},{"$f":"IFERROR(INDEX((SLevel),MATCH(Personnel!BA1049,SLevel202223,0)),0)","v":0},{"$f":"[1]Personnel!H1049","v":0},{"$f":"[1]Personnel!I1049","v":0},{"$f":"[1]Personnel!J1049","v":0},{"$f":"[1]Personnel!P1049","v":0},{"$f":"[1]Personnel!Q1049","v":0},0,{"$f":"[1]Personnel!S1049","v":0},{"$f":"[1]Personnel!S1049","v":0},{"$f":"[1]Personnel!S1049","v":0},{"$f":"[1]Personnel!T1049","v":0},0,{"$f":"[1]Personnel!V1049","v":0},{"$f":"[1]Personnel!W1049","v":0},0,{"$f":"[1]Personnel!Y1049","v":0},{"$f":"[1]Personnel!Z1049","v":0},0,0,0,0,null,null,null,null,null,null,null,null,null,null,null,null,null,null,null,null,null,null,null,null,null,null,null,null,null,{"$f":"[1]Personnel!G1049","v":0}]
[0,{"$f":"IFERROR(INDEX(Settings!$AP$17:$AP$38,MATCH(Personnel!$G1050,Settings!$AQ$17:$AQ$38,0)),0)","v":0},null,null,null,{"$f":"[1]Personnel!F1050","v":0},{"$f":"IFERROR(INDEX((SLevel),MATCH(Personnel!BA1050,SLevel202223,0)),0)","v":0},{"$f":"[1]Personnel!H1050","v":0},{"$f":"[1]Personnel!I1050","v":0},{"$f":"[1]Personnel!J1050","v":0},{"$f":"[1]Personnel!P1050","v":0},{"$f":"[1]Personnel!Q1050","v":0},0,{"$f":"[1]Personnel!S1050","v":0},{"$f":"[1]Personnel!S1050","v":0},{"$f":"[1]Personnel!S1050","v":0},{"$f":"[1]Personnel!T1050","v":0},0,{"$f":"[1]Personnel!V1050","v":0},{"$f":"[1]Personnel!W1050","v":0},0,{"$f":"[1]Personnel!Y1050","v":0},{"$f":"[1]Personnel!Z1050","v":0},0,0,0,0,null,null,null,null,null,null,null,null,null,null,null,null,null,null,null,null,null,null,null,null,null,null,null,null,null,{"$f":"[1]Personnel!G1050","v":0}]
[0,{"$f":"IFERROR(INDEX(Settings!$AP$17:$AP$38,MATCH(Personnel!$G1051,Settings!$AQ$17:$AQ$38,0)),0)","v":0},null,null,null,{"$f":"[1]Personnel!F1051","v":0},{"$f":"IFERROR(INDEX((SLevel),MATCH(Personnel!BA1051,SLevel202223,0)),0)","v":0},{"$f":"[1]Personnel!H1051","v":0},{"$f":"[1]Personnel!I1051","v":0},{"$f":"[1]Personnel!J1051","v":0},{"$f":"[1]Personnel!P1051","v":0},{"$f":"[1]Personnel!Q1051","v":0},0,{"$f":"[1]Personnel!S1051","v":0},{"$f":"[1]Personnel!S1051","v":0},{"$f":"[1]Personnel!S1051","v":0},{"$f":"[1]Personnel!T1051","v":0},0,{"$f":"[1]Personnel!V1051","v":0},{"$f":"[1]Personnel!W1051","v":0},0,{"$f":"[1]Personnel!Y1051","v":0},{"$f":"[1]Personnel!Z1051","v":0},0,0,0,0,null,null,null,null,null,null,null,null,null,null,null,null,null,null,null,null,null,null,null,null,null,null,null,null,null,{"$f":"[1]Personnel!G1051","v":0}]
[0,{"$f":"IFERROR(INDEX(Settings!$AP$17:$AP$38,MATCH(Personnel!$G1052,Settings!$AQ$17:$AQ$38,0)),0)","v":0},null,null,null,{"$f":"[1]Personnel!F1052","v":0},{"$f":"IFERROR(INDEX((SLevel),MATCH(Personnel!BA1052,SLevel202223,0)),0)","v":0},{"$f":"[1]Personnel!H1052","v":0},{"$f":"[1]Personnel!I1052","v":0},{"$f":"[1]Personnel!J1052","v":0},{"$f":"[1]Personnel!P1052","v":0},{"$f":"[1]Personnel!Q1052","v":0},0,{"$f":"[1]Personnel!S1052","v":0},{"$f":"[1]Personnel!S1052","v":0},{"$f":"[1]Personnel!S1052","v":0},{"$f":"[1]Personnel!T1052","v":0},0,{"$f":"[1]Personnel!V1052","v":0},{"$f":"[1]Personnel!W1052","v":0},0,{"$f":"[1]Personnel!Y1052","v":0},{"$f":"[1]Personnel!Z1052","v":0},0,0,0,0,null,null,null,null,null,null,null,null,null,null,null,null,null,null,null,null,null,null,null,null,null,null,null,null,null,{"$f":"[1]Personnel!G1052","v":0}]
[0,{"$f":"IFERROR(INDEX(Settings!$AP$17:$AP$38,MATCH(Personnel!$G1053,Settings!$AQ$17:$AQ$38,0)),0)","v":0},null,null,null,{"$f":"[1]Personnel!F1053","v":0},{"$f":"IFERROR(INDEX((SLevel),MATCH(Personnel!BA1053,SLevel202223,0)),0)","v":0},{"$f":"[1]Personnel!H1053","v":0},{"$f":"[1]Personnel!I1053","v":0},{"$f":"[1]Personnel!J1053","v":0},{"$f":"[1]Personnel!P1053","v":0},{"$f":"[1]Personnel!Q1053","v":0},0,{"$f":"[1]Personnel!S1053","v":0},{"$f":"[1]Personnel!S1053","v":0},{"$f":"[1]Personnel!S1053","v":0},{"$f":"[1]Personnel!T1053","v":0},0,{"$f":"[1]Personnel!V1053","v":0},{"$f":"[1]Personnel!W1053","v":0},0,{"$f":"[1]Personnel!Y1053","v":0},{"$f":"[1]Personnel!Z1053","v":0},0,0,0,0,null,null,null,null,null,null,null,null,null,null,null,null,null,null,null,null,null,null,null,null,null,null,null,null,null,{"$f":"[1]Personnel!G1053","v":0}]
[0,{"$f":"IFERROR(INDEX(Settings!$AP$17:$AP$38,MATCH(Personnel!$G1054,Settings!$AQ$17:$AQ$38,0)),0)","v":0},null,null,null,{"$f":"[1]Personnel!F1054","v":0},{"$f":"IFERROR(INDEX((SLevel),MATCH(Personnel!BA1054,SLevel202223,0)),0)","v":0},{"$f":"[1]Personnel!H1054","v":0},{"$f":"[1]Personnel!I1054","v":0},{"$f":"[1]Personnel!J1054","v":0},{"$f":"[1]Personnel!P1054","v":0},{"$f":"[1]Personnel!Q1054","v":0},0,{"$f":"[1]Personnel!S1054","v":0},{"$f":"[1]Personnel!S1054","v":0},{"$f":"[1]Personnel!S1054","v":0},{"$f":"[1]Personnel!T1054","v":0},0,{"$f":"[1]Personnel!V1054","v":0},{"$f":"[1]Personnel!W1054","v":0},0,{"$f":"[1]Personnel!Y1054","v":0},{"$f":"[1]Personnel!Z1054","v":0},0,0,0,0,null,null,null,null,null,null,null,null,null,null,null,null,null,null,null,null,null,null,null,null,null,null,null,null,null,{"$f":"[1]Personnel!G1054","v":0}]
[0,{"$f":"IFERROR(INDEX(Settings!$AP$17:$AP$38,MATCH(Personnel!$G1055,Settings!$AQ$17:$AQ$38,0)),0)","v":0},null,null,null,{"$f":"[1]Personnel!F1055","v":0},{"$f":"IFERROR(INDEX((SLevel),MATCH(Personnel!BA1055,SLevel202223,0)),0)","v":0},{"$f":"[1]Personnel!H1055","v":0},{"$f":"[1]Personnel!I1055","v":0},{"$f":"[1]Personnel!J1055","v":0},{"$f":"[1]Personnel!P1055","v":0},{"$f":"[1]Personnel!Q1055","v":0},0,{"$f":"[1]Personnel!S1055","v":0},{"$f":"[1]Personnel!S1055","v":0},{"$f":"[1]Personnel!S1055","v":0},{"$f":"[1]Personnel!T1055","v":0},0,{"$f":"[1]Personnel!V1055","v":0},{"$f":"[1]Personnel!W1055","v":0},0,{"$f":"[1]Personnel!Y1055","v":0},{"$f":"[1]Personnel!Z1055","v":0},0,0,0,0,null,null,null,null,null,null,null,null,null,null,null,null,null,null,null,null,null,null,null,null,null,null,null,null,null,{"$f":"[1]Personnel!G1055","v":0}]
[0,{"$f":"IFERROR(INDEX(Settings!$AP$17:$AP$38,MATCH(Personnel!$G1056,Settings!$AQ$17:$AQ$38,0)),0)","v":0},null,null,null,{"$f":"[1]Personnel!F1056","v":0},{"$f":"IFERROR(INDEX((SLevel),MATCH(Personnel!BA1056,SLevel202223,0)),0)","v":0},{"$f":"[1]Personnel!H1056","v":0},{"$f":"[1]Personnel!I1056","v":0},{"$f":"[1]Personnel!J1056","v":0},{"$f":"[1]Personnel!P1056","v":0},{"$f":"[1]Personnel!Q1056","v":0},0,{"$f":"[1]Personnel!S1056","v":0},{"$f":"[1]Personnel!S1056","v":0},{"$f":"[1]Personnel!S1056","v":0},{"$f":"[1]Personnel!T1056","v":0},0,{"$f":"[1]Personnel!V1056","v":0},{"$f":"[1]Personnel!W1056","v":0},0,{"$f":"[1]Personnel!Y1056","v":0},{"$f":"[1]Personnel!Z1056","v":0},0,0,0,0,null,null,null,null,null,null,null,null,null,null,null,null,null,null,null,null,null,null,null,null,null,null,null,null,null,{"$f":"[1]Personnel!G1056","v":0}]
[0,{"$f":"IFERROR(INDEX(Settings!$AP$17:$AP$38,MATCH(Personnel!$G1057,Settings!$AQ$17:$AQ$38,0)),0)","v":0},null,null,null,{"$f":"[1]Personnel!F1057","v":0},{"$f":"IFERROR(INDEX((SLevel),MATCH(Personnel!BA1057,SLevel202223,0)),0)","v":0},{"$f":"[1]Personnel!H1057","v":0},{"$f":"[1]Personnel!I1057","v":0},{"$f":"[1]Personnel!J1057","v":0},{"$f":"[1]Personnel!P1057","v":0},{"$f":"[1]Personnel!Q1057","v":0},0,{"$f":"[1]Personnel!S1057","v":0},{"$f":"[1]Personnel!S1057","v":0},{"$f":"[1]Personnel!S1057","v":0},{"$f":"[1]Personnel!T1057","v":0},0,{"$f":"[1]Personnel!V1057","v":0},{"$f":"[1]Personnel!W1057","v":0},0,{"$f":"[1]Personnel!Y1057","v":0},{"$f":"[1]Personnel!Z1057","v":0},0,0,0,0,null,null,null,null,null,null,null,null,null,null,null,null,null,null,null,null,null,null,null,null,null,null,null,null,null,{"$f":"[1]Personnel!G1057","v":0}]
[0,{"$f":"IFERROR(INDEX(Settings!$AP$17:$AP$38,MATCH(Personnel!$G1058,Settings!$AQ$17:$AQ$38,0)),0)","v":0},null,null,null,{"$f":"[1]Personnel!F1058","v":0},{"$f":"IFERROR(INDEX((SLevel),MATCH(Personnel!BA1058,SLevel202223,0)),0)","v":0},{"$f":"[1]Personnel!H1058","v":0},{"$f":"[1]Personnel!I1058","v":0},{"$f":"[1]Personnel!J1058","v":0},{"$f":"[1]Personnel!P1058","v":0},{"$f":"[1]Personnel!Q1058","v":0},0,{"$f":"[1]Personnel!S1058","v":0},{"$f":"[1]Personnel!S1058","v":0},{"$f":"[1]Personnel!S1058","v":0},{"$f":"[1]Personnel!T1058","v":0},0,{"$f":"[1]Personnel!V1058","v":0},{"$f":"[1]Personnel!W1058","v":0},0,{"$f":"[1]Personnel!Y1058","v":0},{"$f":"[1]Personnel!Z1058","v":0},0,0,0,0,null,null,null,null,null,null,null,null,null,null,null,null,null,null,null,null,null,null,null,null,null,null,null,null,null,{"$f":"[1]Personnel!G1058","v":0}]
[0,{"$f":"IFERROR(INDEX(Settings!$AP$17:$AP$38,MATCH(Personnel!$G1059,Settings!$AQ$17:$AQ$38,0)),0)","v":0},null,null,null,{"$f":"[1]Personnel!F1059","v":0},{"$f":"IFERROR(INDEX((SLevel),MATCH(Personnel!BA1059,SLevel202223,0)),0)","v":0},{"$f":"[1]Personnel!H1059","v":0},{"$f":"[1]Personnel!I1059","v":0},{"$f":"[1]Personnel!J1059","v":0},{"$f":"[1]Personnel!P1059","v":0},{"$f":"[1]Personnel!Q1059","v":0},0,{"$f":"[1]Personnel!S1059","v":0},{"$f":"[1]Personnel!S1059","v":0},{"$f":"[1]Personnel!S1059","v":0},{"$f":"[1]Personnel!T1059","v":0},0,{"$f":"[1]Personnel!V1059","v":0},{"$f":"[1]Personnel!W1059","v":0},0,{"$f":"[1]Personnel!Y1059","v":0},{"$f":"[1]Personnel!Z1059","v":0},0,0,0,0,null,null,null,null,null,null,null,null,null,null,null,null,null,null,null,null,null,null,null,null,null,null,null,null,null,{"$f":"[1]Personnel!G1059","v":0}]
[0,{"$f":"IFERROR(INDEX(Settings!$AP$17:$AP$38,MATCH(Personnel!$G1060,Settings!$AQ$17:$AQ$38,0)),0)","v":0},null,null,null,{"$f":"[1]Personnel!F1060","v":0},{"$f":"IFERROR(INDEX((SLevel),MATCH(Personnel!BA1060,SLevel202223,0)),0)","v":0},{"$f":"[1]Personnel!H1060","v":0},{"$f":"[1]Personnel!I1060","v":0},{"$f":"[1]Personnel!J1060","v":0},{"$f":"[1]Personnel!P1060","v":0},{"$f":"[1]Personnel!Q1060","v":0},0,{"$f":"[1]Personnel!S1060","v":0},{"$f":"[1]Personnel!S1060","v":0},{"$f":"[1]Personnel!S1060","v":0},{"$f":"[1]Personnel!T1060","v":0},0,{"$f":"[1]Personnel!V1060","v":0},{"$f":"[1]Personnel!W1060","v":0},0,{"$f":"[1]Personnel!Y1060","v":0},{"$f":"[1]Personnel!Z1060","v":0},0,0,0,0,null,null,null,null,null,null,null,null,null,null,null,null,null,null,null,null,null,null,null,null,null,null,null,null,null,{"$f":"[1]Personnel!G1060","v":0}]
[0,{"$f":"IFERROR(INDEX(Settings!$AP$17:$AP$38,MATCH(Personnel!$G1061,Settings!$AQ$17:$AQ$38,0)),0)","v":0},null,null,null,{"$f":"[1]Personnel!F1061","v":0},{"$f":"IFERROR(INDEX((SLevel),MATCH(Personnel!BA1061,SLevel202223,0)),0)","v":0},{"$f":"[1]Personnel!H1061","v":0},{"$f":"[1]Personnel!I1061","v":0},{"$f":"[1]Personnel!J1061","v":0},{"$f":"[1]Personnel!P1061","v":0},{"$f":"[1]Personnel!Q1061","v":0},0,{"$f":"[1]Personnel!S1061","v":0},{"$f":"[1]Personnel!S1061","v":0},{"$f":"[1]Personnel!S1061","v":0},{"$f":"[1]Personnel!T1061","v":0},0,{"$f":"[1]Personnel!V1061","v":0},{"$f":"[1]Personnel!W1061","v":0},0,{"$f":"[1]Personnel!Y1061","v":0},{"$f":"[1]Personnel!Z1061","v":0},0,0,0,0,null,null,null,null,null,null,null,null,null,null,null,null,null,null,null,null,null,null,null,null,null,null,null,null,null,{"$f":"[1]Personnel!G1061","v":0}]
[0,{"$f":"IFERROR(INDEX(Settings!$AP$17:$AP$38,MATCH(Personnel!$G1062,Settings!$AQ$17:$AQ$38,0)),0)","v":0},null,null,null,{"$f":"[1]Personnel!F1062","v":0},{"$f":"IFERROR(INDEX((SLevel),MATCH(Personnel!BA1062,SLevel202223,0)),0)","v":0},{"$f":"[1]Personnel!H1062","v":0},{"$f":"[1]Personnel!I1062","v":0},{"$f":"[1]Personnel!J1062","v":0},{"$f":"[1]Personnel!P1062","v":0},{"$f":"[1]Personnel!Q1062","v":0},0,{"$f":"[1]Personnel!S1062","v":0},{"$f":"[1]Personnel!S1062","v":0},{"$f":"[1]Personnel!S1062","v":0},{"$f":"[1]Personnel!T1062","v":0},0,{"$f":"[1]Personnel!V1062","v":0},{"$f":"[1]Personnel!W1062","v":0},0,{"$f":"[1]Personnel!Y1062","v":0},{"$f":"[1]Personnel!Z1062","v":0},0,0,0,0,null,null,null,null,null,null,null,null,null,null,null,null,null,null,null,null,null,null,null,null,null,null,null,null,null,{"$f":"[1]Personnel!G1062","v":0}]
[0,{"$f":"IFERROR(INDEX(Settings!$AP$17:$AP$38,MATCH(Personnel!$G1063,Settings!$AQ$17:$AQ$38,0)),0)","v":0},null,null,null,{"$f":"[1]Personnel!F1063","v":0},{"$f":"IFERROR(INDEX((SLevel),MATCH(Personnel!BA1063,SLevel202223,0)),0)","v":0},{"$f":"[1]Personnel!H1063","v":0},{"$f":"[1]Personnel!I1063","v":0},{"$f":"[1]Personnel!J1063","v":0},{"$f":"[1]Personnel!P1063","v":0},{"$f":"[1]Personnel!Q1063","v":0},0,{"$f":"[1]Personnel!S1063","v":0},{"$f":"[1]Personnel!S1063","v":0},{"$f":"[1]Personnel!S1063","v":0},{"$f":"[1]Personnel!T1063","v":0},0,{"$f":"[1]Personnel!V1063","v":0},{"$f":"[1]Personnel!W1063","v":0},0,{"$f":"[1]Personnel!Y1063","v":0},{"$f":"[1]Personnel!Z1063","v":0},0,0,0,0,null,null,null,null,null,null,null,null,null,null,null,null,null,null,null,null,null,null,null,null,null,null,null,null,null,{"$f":"[1]Personnel!G1063","v":0}]
[0,{"$f":"IFERROR(INDEX(Settings!$AP$17:$AP$38,MATCH(Personnel!$G1064,Settings!$AQ$17:$AQ$38,0)),0)","v":0},null,null,null,{"$f":"[1]Personnel!F1064","v":0},{"$f":"IFERROR(INDEX((SLevel),MATCH(Personnel!BA1064,SLevel202223,0)),0)","v":0},{"$f":"[1]Personnel!H1064","v":0},{"$f":"[1]Personnel!I1064","v":0},{"$f":"[1]Personnel!J1064","v":0},{"$f":"[1]Personnel!P1064","v":0},{"$f":"[1]Personnel!Q1064","v":0},0,{"$f":"[1]Personnel!S1064","v":0},{"$f":"[1]Personnel!S1064","v":0},{"$f":"[1]Personnel!S1064","v":0},{"$f":"[1]Personnel!T1064","v":0},0,{"$f":"[1]Personnel!V1064","v":0},{"$f":"[1]Personnel!W1064","v":0},0,{"$f":"[1]Personnel!Y1064","v":0},{"$f":"[1]Personnel!Z1064","v":0},0,0,0,0,null,null,null,null,null,null,null,null,null,null,null,null,null,null,null,null,null,null,null,null,null,null,null,null,null,{"$f":"[1]Personnel!G1064","v":0}]
[0,{"$f":"IFERROR(INDEX(Settings!$AP$17:$AP$38,MATCH(Personnel!$G1065,Settings!$AQ$17:$AQ$38,0)),0)","v":0},null,null,null,{"$f":"[1]Personnel!F1065","v":0},{"$f":"IFERROR(INDEX((SLevel),MATCH(Personnel!BA1065,SLevel202223,0)),0)","v":0},{"$f":"[1]Personnel!H1065","v":0},{"$f":"[1]Personnel!I1065","v":0},{"$f":"[1]Personnel!J1065","v":0},{"$f":"[1]Personnel!P1065","v":0},{"$f":"[1]Personnel!Q1065","v":0},0,{"$f":"[1]Personnel!S1065","v":0},{"$f":"[1]Personnel!S1065","v":0},{"$f":"[1]Personnel!S1065","v":0},{"$f":"[1]Personnel!T1065","v":0},0,{"$f":"[1]Personnel!V1065","v":0},{"$f":"[1]Personnel!W1065","v":0},0,{"$f":"[1]Personnel!Y1065","v":0},{"$f":"[1]Personnel!Z1065","v":0},0,0,0,0,null,null,null,null,null,null,null,null,null,null,null,null,null,null,null,null,null,null,null,null,null,null,null,null,null,{"$f":"[1]Personnel!G1065","v":0}]
[0,{"$f":"IFERROR(INDEX(Settings!$AP$17:$AP$38,MATCH(Personnel!$G1066,Settings!$AQ$17:$AQ$38,0)),0)","v":0},null,null,null,{"$f":"[1]Personnel!F1066","v":0},{"$f":"IFERROR(INDEX((SLevel),MATCH(Personnel!BA1066,SLevel202223,0)),0)","v":0},{"$f":"[1]Personnel!H1066","v":0},{"$f":"[1]Personnel!I1066","v":0},{"$f":"[1]Personnel!J1066","v":0},{"$f":"[1]Personnel!P1066","v":0},{"$f":"[1]Personnel!Q1066","v":0},0,{"$f":"[1]Personnel!S1066","v":0},{"$f":"[1]Personnel!S1066","v":0},{"$f":"[1]Personnel!S1066","v":0},{"$f":"[1]Personnel!T1066","v":0},0,{"$f":"[1]Personnel!V1066","v":0},{"$f":"[1]Personnel!W1066","v":0},0,{"$f":"[1]Personnel!Y1066","v":0},{"$f":"[1]Personnel!Z1066","v":0},0,0,0,0,null,null,null,null,null,null,null,null,null,null,null,null,null,null,null,null,null,null,null,null,null,null,null,null,null,{"$f":"[1]Personnel!G1066","v":0}]
[0,{"$f":"IFERROR(INDEX(Settings!$AP$17:$AP$38,MATCH(Personnel!$G1067,Settings!$AQ$17:$AQ$38,0)),0)","v":0},null,null,null,{"$f":"[1]Personnel!F1067","v":0},{"$f":"IFERROR(INDEX((SLevel),MATCH(Personnel!BA1067,SLevel202223,0)),0)","v":0},{"$f":"[1]Personnel!H1067","v":0},{"$f":"[1]Personnel!I1067","v":0},{"$f":"[1]Personnel!J1067","v":0},{"$f":"[1]Personnel!P1067","v":0},{"$f":"[1]Personnel!Q1067","v":0},0,{"$f":"[1]Personnel!S1067","v":0},{"$f":"[1]Personnel!S1067","v":0},{"$f":"[1]Personnel!S1067","v":0},{"$f":"[1]Personnel!T1067","v":0},0,{"$f":"[1]Personnel!V1067","v":0},{"$f":"[1]Personnel!W1067","v":0},0,{"$f":"[1]Personnel!Y1067","v":0},{"$f":"[1]Personnel!Z1067","v":0},0,0,0,0,null,null,null,null,null,null,null,null,null,null,null,null,null,null,null,null,null,null,null,null,null,null,null,null,null,{"$f":"[1]Personnel!G1067","v":0}]
[0,{"$f":"IFERROR(INDEX(Settings!$AP$17:$AP$38,MATCH(Personnel!$G1068,Settings!$AQ$17:$AQ$38,0)),0)","v":0},null,null,null,{"$f":"[1]Personnel!F1068","v":0},{"$f":"IFERROR(INDEX((SLevel),MATCH(Personnel!BA1068,SLevel202223,0)),0)","v":0},{"$f":"[1]Personnel!H1068","v":0},{"$f":"[1]Personnel!I1068","v":0},{"$f":"[1]Personnel!J1068","v":0},{"$f":"[1]Personnel!P1068","v":0},{"$f":"[1]Personnel!Q1068","v":0},0,{"$f":"[1]Personnel!S1068","v":0},{"$f":"[1]Personnel!S1068","v":0},{"$f":"[1]Personnel!S1068","v":0},{"$f":"[1]Personnel!T1068","v":0},0,{"$f":"[1]Personnel!V1068","v":0},{"$f":"[1]Personnel!W1068","v":0},0,{"$f":"[1]Personnel!Y1068","v":0},{"$f":"[1]Personnel!Z1068","v":0},0,0,0,0,null,null,null,null,null,null,null,null,null,null,null,null,null,null,null,null,null,null,null,null,null,null,null,null,null,{"$f":"[1]Personnel!G1068","v":0}]
[0,{"$f":"IFERROR(INDEX(Settings!$AP$17:$AP$38,MATCH(Personnel!$G1069,Settings!$AQ$17:$AQ$38,0)),0)","v":0},null,null,null,{"$f":"[1]Personnel!F1069","v":0},{"$f":"IFERROR(INDEX((SLevel),MATCH(Personnel!BA1069,SLevel202223,0)),0)","v":0},{"$f":"[1]Personnel!H1069","v":0},{"$f":"[1]Personnel!I1069","v":0},{"$f":"[1]Personnel!J1069","v":0},{"$f":"[1]Personnel!P1069","v":0},{"$f":"[1]Personnel!Q1069","v":0},0,{"$f":"[1]Personnel!S1069","v":0},{"$f":"[1]Personnel!S1069","v":0},{"$f":"[1]Personnel!S1069","v":0},{"$f":"[1]Personnel!T1069","v":0},0,{"$f":"[1]Personnel!V1069","v":0},{"$f":"[1]Personnel!W1069","v":0},0,{"$f":"[1]Personnel!Y1069","v":0},{"$f":"[1]Personnel!Z1069","v":0},0,0,0,0,null,null,null,null,null,null,null,null,null,null,null,null,null,null,null,null,null,null,null,null,null,null,null,null,null,{"$f":"[1]Personnel!G1069","v":0}]
[0,{"$f":"IFERROR(INDEX(Settings!$AP$17:$AP$38,MATCH(Personnel!$G1070,Settings!$AQ$17:$AQ$38,0)),0)","v":0},null,null,null,{"$f":"[1]Personnel!F1070","v":0},{"$f":"IFERROR(INDEX((SLevel),MATCH(Personnel!BA1070,SLevel202223,0)),0)","v":0},{"$f":"[1]Personnel!H1070","v":0},{"$f":"[1]Personnel!I1070","v":0},{"$f":"[1]Personnel!J1070","v":0},{"$f":"[1]Personnel!P1070","v":0},{"$f":"[1]Personnel!Q1070","v":0},0,{"$f":"[1]Personnel!S1070","v":0},{"$f":"[1]Personnel!S1070","v":0},{"$f":"[1]Personnel!S1070","v":0},{"$f":"[1]Personnel!T1070","v":0},0,{"$f":"[1]Personnel!V1070","v":0},{"$f":"[1]Personnel!W1070","v":0},0,{"$f":"[1]Personnel!Y1070","v":0},{"$f":"[1]Personnel!Z1070","v":0},0,0,0,0,null,null,null,null,null,null,null,null,null,null,null,null,null,null,null,null,null,null,null,null,null,null,null,null,null,{"$f":"[1]Personnel!G1070","v":0}]
[0,{"$f":"IFERROR(INDEX(Settings!$AP$17:$AP$38,MATCH(Personnel!$G1071,Settings!$AQ$17:$AQ$38,0)),0)","v":0},null,null,null,{"$f":"[1]Personnel!F1071","v":0},{"$f":"IFERROR(INDEX((SLevel),MATCH(Personnel!BA1071,SLevel202223,0)),0)","v":0},{"$f":"[1]Personnel!H1071","v":0},{"$f":"[1]Personnel!I1071","v":0},{"$f":"[1]Personnel!J1071","v":0},{"$f":"[1]Personnel!P1071","v":0},{"$f":"[1]Personnel!Q1071","v":0},0,{"$f":"[1]Personnel!S1071","v":0},{"$f":"[1]Personnel!S1071","v":0},{"$f":"[1]Personnel!S1071","v":0},{"$f":"[1]Personnel!T1071","v":0},0,{"$f":"[1]Personnel!V1071","v":0},{"$f":"[1]Personnel!W1071","v":0},0,{"$f":"[1]Personnel!Y1071","v":0},{"$f":"[1]Personnel!Z1071","v":0},0,0,0,0,null,null,null,null,null,null,null,null,null,null,null,null,null,null,null,null,null,null,null,null,null,null,null,null,null,{"$f":"[1]Personnel!G1071","v":0}]
[0,{"$f":"IFERROR(INDEX(Settings!$AP$17:$AP$38,MATCH(Personnel!$G1072,Settings!$AQ$17:$AQ$38,0)),0)","v":0},null,null,null,{"$f":"[1]Personnel!F1072","v":0},{"$f":"IFERROR(INDEX((SLevel),MATCH(Personnel!BA1072,SLevel202223,0)),0)","v":0},{"$f":"[1]Personnel!H1072","v":0},{"$f":"[1]Personnel!I1072","v":0},{"$f":"[1]Personnel!J1072","v":0},{"$f":"[1]Personnel!P1072","v":0},{"$f":"[1]Personnel!Q1072","v":0},0,{"$f":"[1]Personnel!S1072","v":0},{"$f":"[1]Personnel!S1072","v":0},{"$f":"[1]Personnel!S1072","v":0},{"$f":"[1]Personnel!T1072","v":0},0,{"$f":"[1]Personnel!V1072","v":0},{"$f":"[1]Personnel!W1072","v":0},0,{"$f":"[1]Personnel!Y1072","v":0},{"$f":"[1]Personnel!Z1072","v":0},0,0,0,0,null,null,null,null,null,null,null,null,null,null,null,null,null,null,null,null,null,null,null,null,null,null,null,null,null,{"$f":"[1]Personnel!G1072","v":0}]
[0,{"$f":"IFERROR(INDEX(Settings!$AP$17:$AP$38,MATCH(Personnel!$G1073,Settings!$AQ$17:$AQ$38,0)),0)","v":0},null,null,null,{"$f":"[1]Personnel!F1073","v":0},{"$f":"IFERROR(INDEX((SLevel),MATCH(Personnel!BA1073,SLevel202223,0)),0)","v":0},{"$f":"[1]Personnel!H1073","v":0},{"$f":"[1]Personnel!I1073","v":0},{"$f":"[1]Personnel!J1073","v":0},{"$f":"[1]Personnel!P1073","v":0},{"$f":"[1]Personnel!Q1073","v":0},0,{"$f":"[1]Personnel!S1073","v":0},{"$f":"[1]Personnel!S1073","v":0},{"$f":"[1]Personnel!S1073","v":0},{"$f":"[1]Personnel!T1073","v":0},0,{"$f":"[1]Personnel!V1073","v":0},{"$f":"[1]Personnel!W1073","v":0},0,{"$f":"[1]Personnel!Y1073","v":0},{"$f":"[1]Personnel!Z1073","v":0},0,0,0,0,null,null,null,null,null,null,null,null,null,null,null,null,null,null,null,null,null,null,null,null,null,null,null,null,null,{"$f":"[1]Personnel!G1073","v":0}]
[0,{"$f":"IFERROR(INDEX(Settings!$AP$17:$AP$38,MATCH(Personnel!$G1074,Settings!$AQ$17:$AQ$38,0)),0)","v":0},null,null,null,{"$f":"[1]Personnel!F1074","v":0},{"$f":"IFERROR(INDEX((SLevel),MATCH(Personnel!BA1074,SLevel202223,0)),0)","v":0},{"$f":"[1]Personnel!H1074","v":0},{"$f":"[1]Personnel!I1074","v":0},{"$f":"[1]Personnel!J1074","v":0},{"$f":"[1]Personnel!P1074","v":0},{"$f":"[1]Personnel!Q1074","v":0},0,{"$f":"[1]Personnel!S1074","v":0},{"$f":"[1]Personnel!S1074","v":0},{"$f":"[1]Personnel!S1074","v":0},{"$f":"[1]Personnel!T1074","v":0},0,{"$f":"[1]Personnel!V1074","v":0},{"$f":"[1]Personnel!W1074","v":0},0,{"$f":"[1]Personnel!Y1074","v":0},{"$f":"[1]Personnel!Z1074","v":0},0,0,0,0,null,null,null,null,null,null,null,null,null,null,null,null,null,null,null,null,null,null,null,null,null,null,null,null,null,{"$f":"[1]Personnel!G1074","v":0}]
[0,{"$f":"IFERROR(INDEX(Settings!$AP$17:$AP$38,MATCH(Personnel!$G1075,Settings!$AQ$17:$AQ$38,0)),0)","v":0},null,null,null,{"$f":"[1]Personnel!F1075","v":0},{"$f":"IFERROR(INDEX((SLevel),MATCH(Personnel!BA1075,SLevel202223,0)),0)","v":0},{"$f":"[1]Personnel!H1075","v":0},{"$f":"[1]Personnel!I1075","v":0},{"$f":"[1]Personnel!J1075","v":0},{"$f":"[1]Personnel!P1075","v":0},{"$f":"[1]Personnel!Q1075","v":0},0,{"$f":"[1]Personnel!S1075","v":0},{"$f":"[1]Personnel!S1075","v":0},{"$f":"[1]Personnel!S1075","v":0},{"$f":"[1]Personnel!T1075","v":0},0,{"$f":"[1]Personnel!V1075","v":0},{"$f":"[1]Personnel!W1075","v":0},0,{"$f":"[1]Personnel!Y1075","v":0},{"$f":"[1]Personnel!Z1075","v":0},0,0,0,0,null,null,null,null,null,null,null,null,null,null,null,null,null,null,null,null,null,null,null,null,null,null,null,null,null,{"$f":"[1]Personnel!G1075","v":0}]
[0,{"$f":"IFERROR(INDEX(Settings!$AP$17:$AP$38,MATCH(Personnel!$G1076,Settings!$AQ$17:$AQ$38,0)),0)","v":0},null,null,null,{"$f":"[1]Personnel!F1076","v":0},{"$f":"IFERROR(INDEX((SLevel),MATCH(Personnel!BA1076,SLevel202223,0)),0)","v":0},{"$f":"[1]Personnel!H1076","v":0},{"$f":"[1]Personnel!I1076","v":0},{"$f":"[1]Personnel!J1076","v":0},{"$f":"[1]Personnel!P1076","v":0},{"$f":"[1]Personnel!Q1076","v":0},0,{"$f":"[1]Personnel!S1076","v":0},{"$f":"[1]Personnel!S1076","v":0},{"$f":"[1]Personnel!S1076","v":0},{"$f":"[1]Personnel!T1076","v":0},0,{"$f":"[1]Personnel!V1076","v":0},{"$f":"[1]Personnel!W1076","v":0},0,{"$f":"[1]Personnel!Y1076","v":0},{"$f":"[1]Personnel!Z1076","v":0},0,0,0,0,null,null,null,null,null,null,null,null,null,null,null,null,null,null,null,null,null,null,null,null,null,null,null,null,null,{"$f":"[1]Personnel!G1076","v":0}]
[0,{"$f":"IFERROR(INDEX(Settings!$AP$17:$AP$38,MATCH(Personnel!$G1077,Settings!$AQ$17:$AQ$38,0)),0)","v":0},null,null,null,{"$f":"[1]Personnel!F1077","v":0},{"$f":"IFERROR(INDEX((SLevel),MATCH(Personnel!BA1077,SLevel202223,0)),0)","v":0},{"$f":"[1]Personnel!H1077","v":0},{"$f":"[1]Personnel!I1077","v":0},{"$f":"[1]Personnel!J1077","v":0},{"$f":"[1]Personnel!P1077","v":0},{"$f":"[1]Personnel!Q1077","v":0},0,{"$f":"[1]Personnel!S1077","v":0},{"$f":"[1]Personnel!S1077","v":0},{"$f":"[1]Personnel!S1077","v":0},{"$f":"[1]Personnel!T1077","v":0},0,{"$f":"[1]Personnel!V1077","v":0},{"$f":"[1]Personnel!W1077","v":0},0,{"$f":"[1]Personnel!Y1077","v":0},{"$f":"[1]Personnel!Z1077","v":0},0,0,0,0,null,null,null,null,null,null,null,null,null,null,null,null,null,null,null,null,null,null,null,null,null,null,null,null,null,{"$f":"[1]Personnel!G1077","v":0}]
[0,{"$f":"IFERROR(INDEX(Settings!$AP$17:$AP$38,MATCH(Personnel!$G1078,Settings!$AQ$17:$AQ$38,0)),0)","v":0},null,null,null,{"$f":"[1]Personnel!F1078","v":0},{"$f":"IFERROR(INDEX((SLevel),MATCH(Personnel!BA1078,SLevel202223,0)),0)","v":0},{"$f":"[1]Personnel!H1078","v":0},{"$f":"[1]Personnel!I1078","v":0},{"$f":"[1]Personnel!J1078","v":0},{"$f":"[1]Personnel!P1078","v":0},{"$f":"[1]Personnel!Q1078","v":0},0,{"$f":"[1]Personnel!S1078","v":0},{"$f":"[1]Personnel!S1078","v":0},{"$f":"[1]Personnel!S1078","v":0},{"$f":"[1]Personnel!T1078","v":0},0,{"$f":"[1]Personnel!V1078","v":0},{"$f":"[1]Personnel!W1078","v":0},0,{"$f":"[1]Personnel!Y1078","v":0},{"$f":"[1]Personnel!Z1078","v":0},0,0,0,0,null,null,null,null,null,null,null,null,null,null,null,null,null,null,null,null,null,null,null,null,null,null,null,null,null,{"$f":"[1]Personnel!G1078","v":0}]
[0,{"$f":"IFERROR(INDEX(Settings!$AP$17:$AP$38,MATCH(Personnel!$G1079,Settings!$AQ$17:$AQ$38,0)),0)","v":0},null,null,null,{"$f":"[1]Personnel!F1079","v":0},{"$f":"IFERROR(INDEX((SLevel),MATCH(Personnel!BA1079,SLevel202223,0)),0)","v":0},{"$f":"[1]Personnel!H1079","v":0},{"$f":"[1]Personnel!I1079","v":0},{"$f":"[1]Personnel!J1079","v":0},{"$f":"[1]Personnel!P1079","v":0},{"$f":"[1]Personnel!Q1079","v":0},0,{"$f":"[1]Personnel!S1079","v":0},{"$f":"[1]Personnel!S1079","v":0},{"$f":"[1]Personnel!S1079","v":0},{"$f":"[1]Personnel!T1079","v":0},0,{"$f":"[1]Personnel!V1079","v":0},{"$f":"[1]Personnel!W1079","v":0},0,{"$f":"[1]Personnel!Y1079","v":0},{"$f":"[1]Personnel!Z1079","v":0},0,0,0,0,null,null,null,null,null,null,null,null,null,null,null,null,null,null,null,null,null,null,null,null,null,null,null,null,null,{"$f":"[1]Personnel!G1079","v":0}]
[0,{"$f":"IFERROR(INDEX(Settings!$AP$17:$AP$38,MATCH(Personnel!$G1080,Settings!$AQ$17:$AQ$38,0)),0)","v":0},null,null,null,{"$f":"[1]Personnel!F1080","v":0},{"$f":"IFERROR(INDEX((SLevel),MATCH(Personnel!BA1080,SLevel202223,0)),0)","v":0},{"$f":"[1]Personnel!H1080","v":0},{"$f":"[1]Personnel!I1080","v":0},{"$f":"[1]Personnel!J1080","v":0},{"$f":"[1]Personnel!P1080","v":0},{"$f":"[1]Personnel!Q1080","v":0},0,{"$f":"[1]Personnel!S1080","v":0},{"$f":"[1]Personnel!S1080","v":0},{"$f":"[1]Personnel!S1080","v":0},{"$f":"[1]Personnel!T1080","v":0},0,{"$f":"[1]Personnel!V1080","v":0},{"$f":"[1]Personnel!W1080","v":0},0,{"$f":"[1]Personnel!Y1080","v":0},{"$f":"[1]Personnel!Z1080","v":0},0,0,0,0,null,null,null,null,null,null,null,null,null,null,null,null,null,null,null,null,null,null,null,null,null,null,null,null,null,{"$f":"[1]Personnel!G1080","v":0}]
[0,{"$f":"IFERROR(INDEX(Settings!$AP$17:$AP$38,MATCH(Personnel!$G1081,Settings!$AQ$17:$AQ$38,0)),0)","v":0},null,null,null,{"$f":"[1]Personnel!F1081","v":0},{"$f":"IFERROR(INDEX((SLevel),MATCH(Personnel!BA1081,SLevel202223,0)),0)","v":0},{"$f":"[1]Personnel!H1081","v":0},{"$f":"[1]Personnel!I1081","v":0},{"$f":"[1]Personnel!J1081","v":0},{"$f":"[1]Personnel!P1081","v":0},{"$f":"[1]Personnel!Q1081","v":0},0,{"$f":"[1]Personnel!S1081","v":0},{"$f":"[1]Personnel!S1081","v":0},{"$f":"[1]Personnel!S1081","v":0},{"$f":"[1]Personnel!T1081","v":0},0,{"$f":"[1]Personnel!V1081","v":0},{"$f":"[1]Personnel!W1081","v":0},0,{"$f":"[1]Personnel!Y1081","v":0},{"$f":"[1]Personnel!Z1081","v":0},0,0,0,0,null,null,null,null,null,null,null,null,null,null,null,null,null,null,null,null,null,null,null,null,null,null,null,null,null,{"$f":"[1]Personnel!G1081","v":0}]
[0,{"$f":"IFERROR(INDEX(Settings!$AP$17:$AP$38,MATCH(Personnel!$G1082,Settings!$AQ$17:$AQ$38,0)),0)","v":0},null,null,null,{"$f":"[1]Personnel!F1082","v":0},{"$f":"IFERROR(INDEX((SLevel),MATCH(Personnel!BA1082,SLevel202223,0)),0)","v":0},{"$f":"[1]Personnel!H1082","v":0},{"$f":"[1]Personnel!I1082","v":0},{"$f":"[1]Personnel!J1082","v":0},{"$f":"[1]Personnel!P1082","v":0},{"$f":"[1]Personnel!Q1082","v":0},0,{"$f":"[1]Personnel!S1082","v":0},{"$f":"[1]Personnel!S1082","v":0},{"$f":"[1]Personnel!S1082","v":0},{"$f":"[1]Personnel!T1082","v":0},0,{"$f":"[1]Personnel!V1082","v":0},{"$f":"[1]Personnel!W1082","v":0},0,{"$f":"[1]Personnel!Y1082","v":0},{"$f":"[1]Personnel!Z1082","v":0},0,0,0,0,null,null,null,null,null,null,null,null,null,null,null,null,null,null,null,null,null,null,null,null,null,null,null,null,null,{"$f":"[1]Personnel!G1082","v":0}]
[0,{"$f":"IFERROR(INDEX(Settings!$AP$17:$AP$38,MATCH(Personnel!$G1083,Settings!$AQ$17:$AQ$38,0)),0)","v":0},null,null,null,{"$f":"[1]Personnel!F1083","v":0},{"$f":"IFERROR(INDEX((SLevel),MATCH(Personnel!BA1083,SLevel202223,0)),0)","v":0},{"$f":"[1]Personnel!H1083","v":0},{"$f":"[1]Personnel!I1083","v":0},{"$f":"[1]Personnel!J1083","v":0},{"$f":"[1]Personnel!P1083","v":0},{"$f":"[1]Personnel!Q1083","v":0},0,{"$f":"[1]Personnel!S1083","v":0},{"$f":"[1]Personnel!S1083","v":0},{"$f":"[1]Personnel!S1083","v":0},{"$f":"[1]Personnel!T1083","v":0},0,{"$f":"[1]Personnel!V1083","v":0},{"$f":"[1]Personnel!W1083","v":0},0,{"$f":"[1]Personnel!Y1083","v":0},{"$f":"[1]Personnel!Z1083","v":0},0,0,0,0,null,null,null,null,null,null,null,null,null,null,null,null,null,null,null,null,null,null,null,null,null,null,null,null,null,{"$f":"[1]Personnel!G1083","v":0}]
[0,{"$f":"IFERROR(INDEX(Settings!$AP$17:$AP$38,MATCH(Personnel!$G1084,Settings!$AQ$17:$AQ$38,0)),0)","v":0},null,null,null,{"$f":"[1]Personnel!F1084","v":0},{"$f":"IFERROR(INDEX((SLevel),MATCH(Personnel!BA1084,SLevel202223,0)),0)","v":0},{"$f":"[1]Personnel!H1084","v":0},{"$f":"[1]Personnel!I1084","v":0},{"$f":"[1]Personnel!J1084","v":0},{"$f":"[1]Personnel!P1084","v":0},{"$f":"[1]Personnel!Q1084","v":0},0,{"$f":"[1]Personnel!S1084","v":0},{"$f":"[1]Personnel!S1084","v":0},{"$f":"[1]Personnel!S1084","v":0},{"$f":"[1]Personnel!T1084","v":0},0,{"$f":"[1]Personnel!V1084","v":0},{"$f":"[1]Personnel!W1084","v":0},0,{"$f":"[1]Personnel!Y1084","v":0},{"$f":"[1]Personnel!Z1084","v":0},0,0,0,0,null,null,null,null,null,null,null,null,null,null,null,null,null,null,null,null,null,null,null,null,null,null,null,null,null,{"$f":"[1]Personnel!G1084","v":0}]
[0,{"$f":"IFERROR(INDEX(Settings!$AP$17:$AP$38,MATCH(Personnel!$G1085,Settings!$AQ$17:$AQ$38,0)),0)","v":0},null,null,null,{"$f":"[1]Personnel!F1085","v":0},{"$f":"IFERROR(INDEX((SLevel),MATCH(Personnel!BA1085,SLevel202223,0)),0)","v":0},{"$f":"[1]Personnel!H1085","v":0},{"$f":"[1]Personnel!I1085","v":0},{"$f":"[1]Personnel!J1085","v":0},{"$f":"[1]Personnel!P1085","v":0},{"$f":"[1]Personnel!Q1085","v":0},0,{"$f":"[1]Personnel!S1085","v":0},{"$f":"[1]Personnel!S1085","v":0},{"$f":"[1]Personnel!S1085","v":0},{"$f":"[1]Personnel!T1085","v":0},0,{"$f":"[1]Personnel!V1085","v":0},{"$f":"[1]Personnel!W1085","v":0},0,{"$f":"[1]Personnel!Y1085","v":0},{"$f":"[1]Personnel!Z1085","v":0},0,0,0,0,null,null,null,null,null,null,null,null,null,null,null,null,null,null,null,null,null,null,null,null,null,null,null,null,null,{"$f":"[1]Personnel!G1085","v":0}]
[0,{"$f":"IFERROR(INDEX(Settings!$AP$17:$AP$38,MATCH(Personnel!$G1086,Settings!$AQ$17:$AQ$38,0)),0)","v":0},null,null,null,{"$f":"[1]Personnel!F1086","v":0},{"$f":"IFERROR(INDEX((SLevel),MATCH(Personnel!BA1086,SLevel202223,0)),0)","v":0},{"$f":"[1]Personnel!H1086","v":0},{"$f":"[1]Personnel!I1086","v":0},{"$f":"[1]Personnel!J1086","v":0},{"$f":"[1]Personnel!P1086","v":0},{"$f":"[1]Personnel!Q1086","v":0},0,{"$f":"[1]Personnel!S1086","v":0},{"$f":"[1]Personnel!S1086","v":0},{"$f":"[1]Personnel!S1086","v":0},{"$f":"[1]Personnel!T1086","v":0},0,{"$f":"[1]Personnel!V1086","v":0},{"$f":"[1]Personnel!W1086","v":0},0,{"$f":"[1]Personnel!Y1086","v":0},{"$f":"[1]Personnel!Z1086","v":0},0,0,0,0,null,null,null,null,null,null,null,null,null,null,null,null,null,null,null,null,null,null,null,null,null,null,null,null,null,{"$f":"[1]Personnel!G1086","v":0}]
[0,{"$f":"IFERROR(INDEX(Settings!$AP$17:$AP$38,MATCH(Personnel!$G1087,Settings!$AQ$17:$AQ$38,0)),0)","v":0},null,null,null,{"$f":"[1]Personnel!F1087","v":0},{"$f":"IFERROR(INDEX((SLevel),MATCH(Personnel!BA1087,SLevel202223,0)),0)","v":0},{"$f":"[1]Personnel!H1087","v":0},{"$f":"[1]Personnel!I1087","v":0},{"$f":"[1]Personnel!J1087","v":0},{"$f":"[1]Personnel!P1087","v":0},{"$f":"[1]Personnel!Q1087","v":0},0,{"$f":"[1]Personnel!S1087","v":0},{"$f":"[1]Personnel!S1087","v":0},{"$f":"[1]Personnel!S1087","v":0},{"$f":"[1]Personnel!T1087","v":0},0,{"$f":"[1]Personnel!V1087","v":0},{"$f":"[1]Personnel!W1087","v":0},0,{"$f":"[1]Personnel!Y1087","v":0},{"$f":"[1]Personnel!Z1087","v":0},0,0,0,0,null,null,null,null,null,null,null,null,null,null,null,null,null,null,null,null,null,null,null,null,null,null,null,null,null,{"$f":"[1]Personnel!G1087","v":0}]
[0,{"$f":"IFERROR(INDEX(Settings!$AP$17:$AP$38,MATCH(Personnel!$G1088,Settings!$AQ$17:$AQ$38,0)),0)","v":0},null,null,null,{"$f":"[1]Personnel!F1088","v":0},{"$f":"IFERROR(INDEX((SLevel),MATCH(Personnel!BA1088,SLevel202223,0)),0)","v":0},{"$f":"[1]Personnel!H1088","v":0},{"$f":"[1]Personnel!I1088","v":0},{"$f":"[1]Personnel!J1088","v":0},{"$f":"[1]Personnel!P1088","v":0},{"$f":"[1]Personnel!Q1088","v":0},0,{"$f":"[1]Personnel!S1088","v":0},{"$f":"[1]Personnel!S1088","v":0},{"$f":"[1]Personnel!S1088","v":0},{"$f":"[1]Personnel!T1088","v":0},0,{"$f":"[1]Personnel!V1088","v":0},{"$f":"[1]Personnel!W1088","v":0},0,{"$f":"[1]Personnel!Y1088","v":0},{"$f":"[1]Personnel!Z1088","v":0},0,0,0,0,null,null,null,null,null,null,null,null,null,null,null,null,null,null,null,null,null,null,null,null,null,null,null,null,null,{"$f":"[1]Personnel!G1088","v":0}]
[0,{"$f":"IFERROR(INDEX(Settings!$AP$17:$AP$38,MATCH(Personnel!$G1089,Settings!$AQ$17:$AQ$38,0)),0)","v":0},null,null,null,{"$f":"[1]Personnel!F1089","v":0},{"$f":"IFERROR(INDEX((SLevel),MATCH(Personnel!BA1089,SLevel202223,0)),0)","v":0},{"$f":"[1]Personnel!H1089","v":0},{"$f":"[1]Personnel!I1089","v":0},{"$f":"[1]Personnel!J1089","v":0},{"$f":"[1]Personnel!P1089","v":0},{"$f":"[1]Personnel!Q1089","v":0},0,{"$f":"[1]Personnel!S1089","v":0},{"$f":"[1]Personnel!S1089","v":0},{"$f":"[1]Personnel!S1089","v":0},{"$f":"[1]Personnel!T1089","v":0},0,{"$f":"[1]Personnel!V1089","v":0},{"$f":"[1]Personnel!W1089","v":0},0,{"$f":"[1]Personnel!Y1089","v":0},{"$f":"[1]Personnel!Z1089","v":0},0,0,0,0,null,null,null,null,null,null,null,null,null,null,null,null,null,null,null,null,null,null,null,null,null,null,null,null,null,{"$f":"[1]Personnel!G1089","v":0}]
[0,{"$f":"IFERROR(INDEX(Settings!$AP$17:$AP$38,MATCH(Personnel!$G1090,Settings!$AQ$17:$AQ$38,0)),0)","v":0},null,null,null,{"$f":"[1]Personnel!F1090","v":0},{"$f":"IFERROR(INDEX((SLevel),MATCH(Personnel!BA1090,SLevel202223,0)),0)","v":0},{"$f":"[1]Personnel!H1090","v":0},{"$f":"[1]Personnel!I1090","v":0},{"$f":"[1]Personnel!J1090","v":0},{"$f":"[1]Personnel!P1090","v":0},{"$f":"[1]Personnel!Q1090","v":0},0,{"$f":"[1]Personnel!S1090","v":0},{"$f":"[1]Personnel!S1090","v":0},{"$f":"[1]Personnel!S1090","v":0},{"$f":"[1]Personnel!T1090","v":0},0,{"$f":"[1]Personnel!V1090","v":0},{"$f":"[1]Personnel!W1090","v":0},0,{"$f":"[1]Personnel!Y1090","v":0},{"$f":"[1]Personnel!Z1090","v":0},0,0,0,0,null,null,null,null,null,null,null,null,null,null,null,null,null,null,null,null,null,null,null,null,null,null,null,null,null,{"$f":"[1]Personnel!G1090","v":0}]
[0,{"$f":"IFERROR(INDEX(Settings!$AP$17:$AP$38,MATCH(Personnel!$G1091,Settings!$AQ$17:$AQ$38,0)),0)","v":0},null,null,null,{"$f":"[1]Personnel!F1091","v":0},{"$f":"IFERROR(INDEX((SLevel),MATCH(Personnel!BA1091,SLevel202223,0)),0)","v":0},{"$f":"[1]Personnel!H1091","v":0},{"$f":"[1]Personnel!I1091","v":0},{"$f":"[1]Personnel!J1091","v":0},{"$f":"[1]Personnel!P1091","v":0},{"$f":"[1]Personnel!Q1091","v":0},0,{"$f":"[1]Personnel!S1091","v":0},{"$f":"[1]Personnel!S1091","v":0},{"$f":"[1]Personnel!S1091","v":0},{"$f":"[1]Personnel!T1091","v":0},0,{"$f":"[1]Personnel!V1091","v":0},{"$f":"[1]Personnel!W1091","v":0},0,{"$f":"[1]Personnel!Y1091","v":0},{"$f":"[1]Personnel!Z1091","v":0},0,0,0,0,null,null,null,null,null,null,null,null,null,null,null,null,null,null,null,null,null,null,null,null,null,null,null,null,null,{"$f":"[1]Personnel!G1091","v":0}]
[0,{"$f":"IFERROR(INDEX(Settings!$AP$17:$AP$38,MATCH(Personnel!$G1092,Settings!$AQ$17:$AQ$38,0)),0)","v":0},null,null,null,{"$f":"[1]Personnel!F1092","v":0},{"$f":"IFERROR(INDEX((SLevel),MATCH(Personnel!BA1092,SLevel202223,0)),0)","v":0},{"$f":"[1]Personnel!H1092","v":0},{"$f":"[1]Personnel!I1092","v":0},{"$f":"[1]Personnel!J1092","v":0},{"$f":"[1]Personnel!P1092","v":0},{"$f":"[1]Personnel!Q1092","v":0},0,{"$f":"[1]Personnel!S1092","v":0},{"$f":"[1]Personnel!S1092","v":0},{"$f":"[1]Personnel!S1092","v":0},{"$f":"[1]Personnel!T1092","v":0},0,{"$f":"[1]Personnel!V1092","v":0},{"$f":"[1]Personnel!W1092","v":0},0,{"$f":"[1]Personnel!Y1092","v":0},{"$f":"[1]Personnel!Z1092","v":0},0,0,0,0,null,null,null,null,null,null,null,null,null,null,null,null,null,null,null,null,null,null,null,null,null,null,null,null,null,{"$f":"[1]Personnel!G1092","v":0}]
[0,{"$f":"IFERROR(INDEX(Settings!$AP$17:$AP$38,MATCH(Personnel!$G1093,Settings!$AQ$17:$AQ$38,0)),0)","v":0},null,null,null,{"$f":"[1]Personnel!F1093","v":0},{"$f":"IFERROR(INDEX((SLevel),MATCH(Personnel!BA1093,SLevel202223,0)),0)","v":0},{"$f":"[1]Personnel!H1093","v":0},{"$f":"[1]Personnel!I1093","v":0},{"$f":"[1]Personnel!J1093","v":0},{"$f":"[1]Personnel!P1093","v":0},{"$f":"[1]Personnel!Q1093","v":0},0,{"$f":"[1]Personnel!S1093","v":0},{"$f":"[1]Personnel!S1093","v":0},{"$f":"[1]Personnel!S1093","v":0},{"$f":"[1]Personnel!T1093","v":0},0,{"$f":"[1]Personnel!V1093","v":0},{"$f":"[1]Personnel!W1093","v":0},0,{"$f":"[1]Personnel!Y1093","v":0},{"$f":"[1]Personnel!Z1093","v":0},0,0,0,0,null,null,null,null,null,null,null,null,null,null,null,null,null,null,null,null,null,null,null,null,null,null,null,null,null,{"$f":"[1]Personnel!G1093","v":0}]
[0,{"$f":"IFERROR(INDEX(Settings!$AP$17:$AP$38,MATCH(Personnel!$G1094,Settings!$AQ$17:$AQ$38,0)),0)","v":0},null,null,null,{"$f":"[1]Personnel!F1094","v":0},{"$f":"IFERROR(INDEX((SLevel),MATCH(Personnel!BA1094,SLevel202223,0)),0)","v":0},{"$f":"[1]Personnel!H1094","v":0},{"$f":"[1]Personnel!I1094","v":0},{"$f":"[1]Personnel!J1094","v":0},{"$f":"[1]Personnel!P1094","v":0},{"$f":"[1]Personnel!Q1094","v":0},0,{"$f":"[1]Personnel!S1094","v":0},{"$f":"[1]Personnel!S1094","v":0},{"$f":"[1]Personnel!S1094","v":0},{"$f":"[1]Personnel!T1094","v":0},0,{"$f":"[1]Personnel!V1094","v":0},{"$f":"[1]Personnel!W1094","v":0},0,{"$f":"[1]Personnel!Y1094","v":0},{"$f":"[1]Personnel!Z1094","v":0},0,0,0,0,null,null,null,null,null,null,null,null,null,null,null,null,null,null,null,null,null,null,null,null,null,null,null,null,null,{"$f":"[1]Personnel!G1094","v":0}]
[0,{"$f":"IFERROR(INDEX(Settings!$AP$17:$AP$38,MATCH(Personnel!$G1095,Settings!$AQ$17:$AQ$38,0)),0)","v":0},null,null,null,{"$f":"[1]Personnel!F1095","v":0},{"$f":"IFERROR(INDEX((SLevel),MATCH(Personnel!BA1095,SLevel202223,0)),0)","v":0},{"$f":"[1]Personnel!H1095","v":0},{"$f":"[1]Personnel!I1095","v":0},{"$f":"[1]Personnel!J1095","v":0},{"$f":"[1]Personnel!P1095","v":0},{"$f":"[1]Personnel!Q1095","v":0},0,{"$f":"[1]Personnel!S1095","v":0},{"$f":"[1]Personnel!S1095","v":0},{"$f":"[1]Personnel!S1095","v":0},{"$f":"[1]Personnel!T1095","v":0},0,{"$f":"[1]Personnel!V1095","v":0},{"$f":"[1]Personnel!W1095","v":0},0,{"$f":"[1]Personnel!Y1095","v":0},{"$f":"[1]Personnel!Z1095","v":0},0,0,0,0,null,null,null,null,null,null,null,null,null,null,null,null,null,null,null,null,null,null,null,null,null,null,null,null,null,{"$f":"[1]Personnel!G1095","v":0}]
[0,{"$f":"IFERROR(INDEX(Settings!$AP$17:$AP$38,MATCH(Personnel!$G1096,Settings!$AQ$17:$AQ$38,0)),0)","v":0},null,null,null,{"$f":"[1]Personnel!F1096","v":0},{"$f":"IFERROR(INDEX((SLevel),MATCH(Personnel!BA1096,SLevel202223,0)),0)","v":0},{"$f":"[1]Personnel!H1096","v":0},{"$f":"[1]Personnel!I1096","v":0},{"$f":"[1]Personnel!J1096","v":0},{"$f":"[1]Personnel!P1096","v":0},{"$f":"[1]Personnel!Q1096","v":0},0,{"$f":"[1]Personnel!S1096","v":0},{"$f":"[1]Personnel!S1096","v":0},{"$f":"[1]Personnel!S1096","v":0},{"$f":"[1]Personnel!T1096","v":0},0,{"$f":"[1]Personnel!V1096","v":0},{"$f":"[1]Personnel!W1096","v":0},0,{"$f":"[1]Personnel!Y1096","v":0},{"$f":"[1]Personnel!Z1096","v":0},0,0,0,0,null,null,null,null,null,null,null,null,null,null,null,null,null,null,null,null,null,null,null,null,null,null,null,null,null,{"$f":"[1]Personnel!G1096","v":0}]
[0,{"$f":"IFERROR(INDEX(Settings!$AP$17:$AP$38,MATCH(Personnel!$G1097,Settings!$AQ$17:$AQ$38,0)),0)","v":0},null,null,null,{"$f":"[1]Personnel!F1097","v":0},{"$f":"IFERROR(INDEX((SLevel),MATCH(Personnel!BA1097,SLevel202223,0)),0)","v":0},{"$f":"[1]Personnel!H1097","v":0},{"$f":"[1]Personnel!I1097","v":0},{"$f":"[1]Personnel!J1097","v":0},{"$f":"[1]Personnel!P1097","v":0},{"$f":"[1]Personnel!Q1097","v":0},0,{"$f":"[1]Personnel!S1097","v":0},{"$f":"[1]Personnel!S1097","v":0},{"$f":"[1]Personnel!S1097","v":0},{"$f":"[1]Personnel!T1097","v":0},0,{"$f":"[1]Personnel!V1097","v":0},{"$f":"[1]Personnel!W1097","v":0},0,{"$f":"[1]Personnel!Y1097","v":0},{"$f":"[1]Personnel!Z1097","v":0},0,0,0,0,null,null,null,null,null,null,null,null,null,null,null,null,null,null,null,null,null,null,null,null,null,null,null,null,null,{"$f":"[1]Personnel!G1097","v":0}]
[0,{"$f":"IFERROR(INDEX(Settings!$AP$17:$AP$38,MATCH(Personnel!$G1098,Settings!$AQ$17:$AQ$38,0)),0)","v":0},null,null,null,{"$f":"[1]Personnel!F1098","v":0},{"$f":"IFERROR(INDEX((SLevel),MATCH(Personnel!BA1098,SLevel202223,0)),0)","v":0},{"$f":"[1]Personnel!H1098","v":0},{"$f":"[1]Personnel!I1098","v":0},{"$f":"[1]Personnel!J1098","v":0},{"$f":"[1]Personnel!P1098","v":0},{"$f":"[1]Personnel!Q1098","v":0},0,{"$f":"[1]Personnel!S1098","v":0},{"$f":"[1]Personnel!S1098","v":0},{"$f":"[1]Personnel!S1098","v":0},{"$f":"[1]Personnel!T1098","v":0},0,{"$f":"[1]Personnel!V1098","v":0},{"$f":"[1]Personnel!W1098","v":0},0,{"$f":"[1]Personnel!Y1098","v":0},{"$f":"[1]Personnel!Z1098","v":0},0,0,0,0,null,null,null,null,null,null,null,null,null,null,null,null,null,null,null,null,null,null,null,null,null,null,null,null,null,{"$f":"[1]Personnel!G1098","v":0}]
[0,{"$f":"IFERROR(INDEX(Settings!$AP$17:$AP$38,MATCH(Personnel!$G1099,Settings!$AQ$17:$AQ$38,0)),0)","v":0},null,null,null,{"$f":"[1]Personnel!F1099","v":0},{"$f":"IFERROR(INDEX((SLevel),MATCH(Personnel!BA1099,SLevel202223,0)),0)","v":0},{"$f":"[1]Personnel!H1099","v":0},{"$f":"[1]Personnel!I1099","v":0},{"$f":"[1]Personnel!J1099","v":0},{"$f":"[1]Personnel!P1099","v":0},{"$f":"[1]Personnel!Q1099","v":0},0,{"$f":"[1]Personnel!S1099","v":0},{"$f":"[1]Personnel!S1099","v":0},{"$f":"[1]Personnel!S1099","v":0},{"$f":"[1]Personnel!T1099","v":0},0,{"$f":"[1]Personnel!V1099","v":0},{"$f":"[1]Personnel!W1099","v":0},0,{"$f":"[1]Personnel!Y1099","v":0},{"$f":"[1]Personnel!Z1099","v":0},0,0,0,0,null,null,null,null,null,null,null,null,null,null,null,null,null,null,null,null,null,null,null,null,null,null,null,null,null,{"$f":"[1]Personnel!G1099","v":0}]
[{"$f":"IF(SUM(K1100:AA1100)>0,1,0)","v":0},{"$f":"IFERROR(INDEX(Settings!$AP$17:$AP$38,MATCH(Personnel!$G1100,Settings!$AQ$17:$AQ$38,0)),0)","v":0},null,null,null,{"$f":"[1]Personnel!F1100","v":0},{"$f":"IFERROR(INDEX((SLevel),MATCH(Personnel!BA1100,SLevel202223,0)),0)","v":0},{"$f":"[1]Personnel!H1100","v":0},{"$f":"[1]Personnel!I1100","v":0},{"$f":"[1]Personnel!J1100","v":0},{"$f":"[1]Personnel!P1100","v":0},{"$f":"[1]Personnel!Q1100","v":0},0,{"$f":"[1]Personnel!S1100","v":0},{"$f":"[1]Personnel!S1100","v":0},{"$f":"[1]Personnel!S1100","v":0},{"$f":"[1]Personnel!T1100","v":0},0,{"$f":"[1]Personnel!V1100","v":0},{"$f":"[1]Personnel!W1100","v":0},0,{"$f":"[1]Personnel!Y1100","v":0},{"$f":"[1]Personnel!Z1100","v":0},0,0,0,0,null,null,null,null,null,null,null,null,null,null,null,null,null,null,null,null,null,null,null,null,null,null,null,null,null,{"$f":"[1]Personnel!G1100","v":0}]
[0,{"$f":"IFERROR(INDEX(Settings!$AP$17:$AP$38,MATCH(Personnel!$G1101,Settings!$AQ$17:$AQ$38,0)),0)","v":0},null,null,null,{"$f":"[1]Personnel!F1101","v":0},{"$f":"IFERROR(INDEX((SLevel),MATCH(Personnel!BA1101,SLevel202223,0)),0)","v":0},{"$f":"[1]Personnel!H1101","v":0},{"$f":"[1]Personnel!I1101","v":0},{"$f":"[1]Personnel!J1101","v":0},{"$f":"[1]Personnel!P1101","v":0},{"$f":"[1]Personnel!Q1101","v":0},{"$f":"ROUND(IF(ISERROR(L1101/K1101),0,(L1101/K1101)),0)","v":0},{"$f":"[1]Personnel!S1101","v":0},{"$f":"[1]Personnel!S1101","v":0},{"$f":"[1]Personnel!S1101","v":0},{"$f":"[1]Personnel!T1101","v":0},{"$f":"ROUND(IF(ISERROR(Q1101/P1101),0,(Q1101/P1101)),0)","v":0},{"$f":"[1]Personnel!V1101","v":0},{"$f":"[1]Personnel!W1101","v":0},{"$f":"ROUND(IF(ISERROR(T1101/S1101),0,(T1101/S1101)),0)","v":0},{"$f":"[1]Personnel!Y1101","v":0},{"$f":"[1]Personnel!Z1101","v":0},{"$f":"ROUND(IF(ISERROR(W1101/V1101),0,(W1101/V1101)),0)","v":0},0,0,{"$f":"ROUND(IF(ISERROR(Z1101/Y1101),0,(Z1101/Y1101)),0)","v":0},null,null,null,null,null,null,null,null,null,null,null,null,null,null,null,null,null,null,null,null,null,null,null,null,null,{"$f":"[1]Personnel!G1101","v":0}]
[0,{"$f":"IFERROR(INDEX(Settings!$AP$17:$AP$38,MATCH(Personnel!$G1102,Settings!$AQ$17:$AQ$38,0)),0)","v":0},null,null,null,{"$f":"[1]Personnel!F1102","v":0},{"$f":"IFERROR(INDEX((SLevel),MATCH(Personnel!BA1102,SLevel202223,0)),0)","v":0},{"$f":"[1]Personnel!H1102","v":0},{"$f":"[1]Personnel!I1102","v":0},{"$f":"[1]Personnel!J1102","v":0},{"$f":"[1]Personnel!P1102","v":0},{"$f":"[1]Personnel!Q1102","v":0},0,{"$f":"[1]Personnel!S1102","v":0},{"$f":"[1]Personnel!S1102","v":0},{"$f":"[1]Personnel!S1102","v":0},{"$f":"[1]Personnel!T1102","v":0},0,{"$f":"[1]Personnel!V1102","v":0},{"$f":"[1]Personnel!W1102","v":0},0,{"$f":"[1]Personnel!Y1102","v":0},{"$f":"[1]Personnel!Z1102","v":0},0,0,0,0,null,null,null,null,null,null,null,null,null,null,null,null,null,null,null,null,null,null,null,null,null,null,null,null,null,{"$f":"[1]Personnel!G1102","v":0}]
[0,{"$f":"IFERROR(INDEX(Settings!$AP$17:$AP$38,MATCH(Personnel!$G1103,Settings!$AQ$17:$AQ$38,0)),0)","v":0},null,null,null,{"$f":"[1]Personnel!F1103","v":0},{"$f":"IFERROR(INDEX((SLevel),MATCH(Personnel!BA1103,SLevel202223,0)),0)","v":0},{"$f":"[1]Personnel!H1103","v":0},{"$f":"[1]Personnel!I1103","v":0},{"$f":"[1]Personnel!J1103","v":0},{"$f":"[1]Personnel!P1103","v":0},{"$f":"[1]Personnel!Q1103","v":0},0,{"$f":"[1]Personnel!S1103","v":0},{"$f":"[1]Personnel!S1103","v":0},{"$f":"[1]Personnel!S1103","v":0},{"$f":"[1]Personnel!T1103","v":0},0,{"$f":"[1]Personnel!V1103","v":0},{"$f":"[1]Personnel!W1103","v":0},0,{"$f":"[1]Personnel!Y1103","v":0},{"$f":"[1]Personnel!Z1103","v":0},0,0,0,0,null,null,null,null,null,null,null,null,null,null,null,null,null,null,null,null,null,null,null,null,null,null,null,null,null,{"$f":"[1]Personnel!G1103","v":0}]
[0,{"$f":"IFERROR(INDEX(Settings!$AP$17:$AP$38,MATCH(Personnel!$G1104,Settings!$AQ$17:$AQ$38,0)),0)","v":0},null,null,null,{"$f":"[1]Personnel!F1104","v":0},{"$f":"IFERROR(INDEX((SLevel),MATCH(Personnel!BA1104,SLevel202223,0)),0)","v":0},{"$f":"[1]Personnel!H1104","v":0},{"$f":"[1]Personnel!I1104","v":0},{"$f":"[1]Personnel!J1104","v":0},{"$f":"[1]Personnel!P1104","v":0},{"$f":"[1]Personnel!Q1104","v":0},0,{"$f":"[1]Personnel!S1104","v":0},{"$f":"[1]Personnel!S1104","v":0},{"$f":"[1]Personnel!S1104","v":0},{"$f":"[1]Personnel!T1104","v":0},0,{"$f":"[1]Personnel!V1104","v":0},{"$f":"[1]Personnel!W1104","v":0},0,{"$f":"[1]Personnel!Y1104","v":0},{"$f":"[1]Personnel!Z1104","v":0},0,0,0,0,null,null,null,null,null,null,null,null,null,null,null,null,null,null,null,null,null,null,null,null,null,null,null,null,null,{"$f":"[1]Personnel!G1104","v":0}]
[0,{"$f":"IFERROR(INDEX(Settings!$AP$17:$AP$38,MATCH(Personnel!$G1105,Settings!$AQ$17:$AQ$38,0)),0)","v":0},null,null,null,{"$f":"[1]Personnel!F1105","v":0},{"$f":"IFERROR(INDEX((SLevel),MATCH(Personnel!BA1105,SLevel202223,0)),0)","v":0},{"$f":"[1]Personnel!H1105","v":0},{"$f":"[1]Personnel!I1105","v":0},{"$f":"[1]Personnel!J1105","v":0},{"$f":"[1]Personnel!P1105","v":0},{"$f":"[1]Personnel!Q1105","v":0},0,{"$f":"[1]Personnel!S1105","v":0},{"$f":"[1]Personnel!S1105","v":0},{"$f":"[1]Personnel!S1105","v":0},{"$f":"[1]Personnel!T1105","v":0},0,{"$f":"[1]Personnel!V1105","v":0},{"$f":"[1]Personnel!W1105","v":0},0,{"$f":"[1]Personnel!Y1105","v":0},{"$f":"[1]Personnel!Z1105","v":0},0,0,0,0,null,null,null,null,null,null,null,null,null,null,null,null,null,null,null,null,null,null,null,null,null,null,null,null,null,{"$f":"[1]Personnel!G1105","v":0}]
[0,{"$f":"IFERROR(INDEX(Settings!$AP$17:$AP$38,MATCH(Personnel!$G1106,Settings!$AQ$17:$AQ$38,0)),0)","v":0},null,null,null,{"$f":"[1]Personnel!F1106","v":0},{"$f":"IFERROR(INDEX((SLevel),MATCH(Personnel!BA1106,SLevel202223,0)),0)","v":0},{"$f":"[1]Personnel!H1106","v":0},{"$f":"[1]Personnel!I1106","v":0},{"$f":"[1]Personnel!J1106","v":0},{"$f":"[1]Personnel!P1106","v":0},{"$f":"[1]Personnel!Q1106","v":0},0,{"$f":"[1]Personnel!S1106","v":0},{"$f":"[1]Personnel!S1106","v":0},{"$f":"[1]Personnel!S1106","v":0},{"$f":"[1]Personnel!T1106","v":0},0,{"$f":"[1]Personnel!V1106","v":0},{"$f":"[1]Personnel!W1106","v":0},0,{"$f":"[1]Personnel!Y1106","v":0},{"$f":"[1]Personnel!Z1106","v":0},0,0,0,0,null,null,null,null,null,null,null,null,null,null,null,null,null,null,null,null,null,null,null,null,null,null,null,null,null,{"$f":"[1]Personnel!G1106","v":0}]
[0,{"$f":"IFERROR(INDEX(Settings!$AP$17:$AP$38,MATCH(Personnel!$G1107,Settings!$AQ$17:$AQ$38,0)),0)","v":0},null,null,null,{"$f":"[1]Personnel!F1107","v":0},{"$f":"IFERROR(INDEX((SLevel),MATCH(Personnel!BA1107,SLevel202223,0)),0)","v":0},{"$f":"[1]Personnel!H1107","v":0},{"$f":"[1]Personnel!I1107","v":0},{"$f":"[1]Personnel!J1107","v":0},{"$f":"[1]Personnel!P1107","v":0},{"$f":"[1]Personnel!Q1107","v":0},0,{"$f":"[1]Personnel!S1107","v":0},{"$f":"[1]Personnel!S1107","v":0},{"$f":"[1]Personnel!S1107","v":0},{"$f":"[1]Personnel!T1107","v":0},0,{"$f":"[1]Personnel!V1107","v":0},{"$f":"[1]Personnel!W1107","v":0},0,{"$f":"[1]Personnel!Y1107","v":0},{"$f":"[1]Personnel!Z1107","v":0},0,0,0,0,null,null,null,null,null,null,null,null,null,null,null,null,null,null,null,null,null,null,null,null,null,null,null,null,null,{"$f":"[1]Personnel!G1107","v":0}]
[0,{"$f":"IFERROR(INDEX(Settings!$AP$17:$AP$38,MATCH(Personnel!$G1108,Settings!$AQ$17:$AQ$38,0)),0)","v":0},null,null,null,{"$f":"[1]Personnel!F1108","v":0},{"$f":"IFERROR(INDEX((SLevel),MATCH(Personnel!BA1108,SLevel202223,0)),0)","v":0},{"$f":"[1]Personnel!H1108","v":0},{"$f":"[1]Personnel!I1108","v":0},{"$f":"[1]Personnel!J1108","v":0},{"$f":"[1]Personnel!P1108","v":0},{"$f":"[1]Personnel!Q1108","v":0},0,{"$f":"[1]Personnel!S1108","v":0},{"$f":"[1]Personnel!S1108","v":0},{"$f":"[1]Personnel!S1108","v":0},{"$f":"[1]Personnel!T1108","v":0},0,{"$f":"[1]Personnel!V1108","v":0},{"$f":"[1]Personnel!W1108","v":0},0,{"$f":"[1]Personnel!Y1108","v":0},{"$f":"[1]Personnel!Z1108","v":0},0,0,0,0,null,null,null,null,null,null,null,null,null,null,null,null,null,null,null,null,null,null,null,null,null,null,null,null,null,{"$f":"[1]Personnel!G1108","v":0}]
[0,{"$f":"IFERROR(INDEX(Settings!$AP$17:$AP$38,MATCH(Personnel!$G1109,Settings!$AQ$17:$AQ$38,0)),0)","v":0},null,null,null,{"$f":"[1]Personnel!F1109","v":0},{"$f":"IFERROR(INDEX((SLevel),MATCH(Personnel!BA1109,SLevel202223,0)),0)","v":0},{"$f":"[1]Personnel!H1109","v":0},{"$f":"[1]Personnel!I1109","v":0},{"$f":"[1]Personnel!J1109","v":0},{"$f":"[1]Personnel!P1109","v":0},{"$f":"[1]Personnel!Q1109","v":0},0,{"$f":"[1]Personnel!S1109","v":0},{"$f":"[1]Personnel!S1109","v":0},{"$f":"[1]Personnel!S1109","v":0},{"$f":"[1]Personnel!T1109","v":0},0,{"$f":"[1]Personnel!V1109","v":0},{"$f":"[1]Personnel!W1109","v":0},0,{"$f":"[1]Personnel!Y1109","v":0},{"$f":"[1]Personnel!Z1109","v":0},0,0,0,0,null,null,null,null,null,null,null,null,null,null,null,null,null,null,null,null,null,null,null,null,null,null,null,null,null,{"$f":"[1]Personnel!G1109","v":0}]
[0,{"$f":"IFERROR(INDEX(Settings!$AP$17:$AP$38,MATCH(Personnel!$G1110,Settings!$AQ$17:$AQ$38,0)),0)","v":0},null,null,null,{"$f":"[1]Personnel!F1110","v":0},{"$f":"IFERROR(INDEX((SLevel),MATCH(Personnel!BA1110,SLevel202223,0)),0)","v":0},{"$f":"[1]Personnel!H1110","v":0},{"$f":"[1]Personnel!I1110","v":0},{"$f":"[1]Personnel!J1110","v":0},{"$f":"[1]Personnel!P1110","v":0},{"$f":"[1]Personnel!Q1110","v":0},0,{"$f":"[1]Personnel!S1110","v":0},{"$f":"[1]Personnel!S1110","v":0},{"$f":"[1]Personnel!S1110","v":0},{"$f":"[1]Personnel!T1110","v":0},0,{"$f":"[1]Personnel!V1110","v":0},{"$f":"[1]Personnel!W1110","v":0},0,{"$f":"[1]Personnel!Y1110","v":0},{"$f":"[1]Personnel!Z1110","v":0},0,0,0,0,null,null,null,null,null,null,null,null,null,null,null,null,null,null,null,null,null,null,null,null,null,null,null,null,null,{"$f":"[1]Personnel!G1110","v":0}]
[0,{"$f":"IFERROR(INDEX(Settings!$AP$17:$AP$38,MATCH(Personnel!$G1111,Settings!$AQ$17:$AQ$38,0)),0)","v":0},null,null,null,{"$f":"[1]Personnel!F1111","v":0},{"$f":"IFERROR(INDEX((SLevel),MATCH(Personnel!BA1111,SLevel202223,0)),0)","v":0},{"$f":"[1]Personnel!H1111","v":0},{"$f":"[1]Personnel!I1111","v":0},{"$f":"[1]Personnel!J1111","v":0},{"$f":"[1]Personnel!P1111","v":0},{"$f":"[1]Personnel!Q1111","v":0},0,{"$f":"[1]Personnel!S1111","v":0},{"$f":"[1]Personnel!S1111","v":0},{"$f":"[1]Personnel!S1111","v":0},{"$f":"[1]Personnel!T1111","v":0},0,{"$f":"[1]Personnel!V1111","v":0},{"$f":"[1]Personnel!W1111","v":0},0,{"$f":"[1]Personnel!Y1111","v":0},{"$f":"[1]Personnel!Z1111","v":0},0,0,0,0,null,null,null,null,null,null,null,null,null,null,null,null,null,null,null,null,null,null,null,null,null,null,null,null,null,{"$f":"[1]Personnel!G1111","v":0}]
[0,{"$f":"IFERROR(INDEX(Settings!$AP$17:$AP$38,MATCH(Personnel!$G1112,Settings!$AQ$17:$AQ$38,0)),0)","v":0},null,null,null,{"$f":"[1]Personnel!F1112","v":0},{"$f":"IFERROR(INDEX((SLevel),MATCH(Personnel!BA1112,SLevel202223,0)),0)","v":0},{"$f":"[1]Personnel!H1112","v":0},{"$f":"[1]Personnel!I1112","v":0},{"$f":"[1]Personnel!J1112","v":0},{"$f":"[1]Personnel!P1112","v":0},{"$f":"[1]Personnel!Q1112","v":0},0,{"$f":"[1]Personnel!S1112","v":0},{"$f":"[1]Personnel!S1112","v":0},{"$f":"[1]Personnel!S1112","v":0},{"$f":"[1]Personnel!T1112","v":0},0,{"$f":"[1]Personnel!V1112","v":0},{"$f":"[1]Personnel!W1112","v":0},0,{"$f":"[1]Personnel!Y1112","v":0},{"$f":"[1]Personnel!Z1112","v":0},0,0,0,0,null,null,null,null,null,null,null,null,null,null,null,null,null,null,null,null,null,null,null,null,null,null,null,null,null,{"$f":"[1]Personnel!G1112","v":0}]
[0,{"$f":"IFERROR(INDEX(Settings!$AP$17:$AP$38,MATCH(Personnel!$G1113,Settings!$AQ$17:$AQ$38,0)),0)","v":0},null,null,null,{"$f":"[1]Personnel!F1113","v":0},{"$f":"IFERROR(INDEX((SLevel),MATCH(Personnel!BA1113,SLevel202223,0)),0)","v":0},{"$f":"[1]Personnel!H1113","v":0},{"$f":"[1]Personnel!I1113","v":0},{"$f":"[1]Personnel!J1113","v":0},{"$f":"[1]Personnel!P1113","v":0},{"$f":"[1]Personnel!Q1113","v":0},0,{"$f":"[1]Personnel!S1113","v":0},{"$f":"[1]Personnel!S1113","v":0},{"$f":"[1]Personnel!S1113","v":0},{"$f":"[1]Personnel!T1113","v":0},0,{"$f":"[1]Personnel!V1113","v":0},{"$f":"[1]Personnel!W1113","v":0},0,{"$f":"[1]Personnel!Y1113","v":0},{"$f":"[1]Personnel!Z1113","v":0},0,0,0,0,null,null,null,null,null,null,null,null,null,null,null,null,null,null,null,null,null,null,null,null,null,null,null,null,null,{"$f":"[1]Personnel!G1113","v":0}]
[0,{"$f":"IFERROR(INDEX(Settings!$AP$17:$AP$38,MATCH(Personnel!$G1114,Settings!$AQ$17:$AQ$38,0)),0)","v":0},null,null,null,{"$f":"[1]Personnel!F1114","v":0},{"$f":"IFERROR(INDEX((SLevel),MATCH(Personnel!BA1114,SLevel202223,0)),0)","v":0},{"$f":"[1]Personnel!H1114","v":0},{"$f":"[1]Personnel!I1114","v":0},{"$f":"[1]Personnel!J1114","v":0},{"$f":"[1]Personnel!P1114","v":0},{"$f":"[1]Personnel!Q1114","v":0},0,{"$f":"[1]Personnel!S1114","v":0},{"$f":"[1]Personnel!S1114","v":0},{"$f":"[1]Personnel!S1114","v":0},{"$f":"[1]Personnel!T1114","v":0},0,{"$f":"[1]Personnel!V1114","v":0},{"$f":"[1]Personnel!W1114","v":0},0,{"$f":"[1]Personnel!Y1114","v":0},{"$f":"[1]Personnel!Z1114","v":0},0,0,0,0,null,null,null,null,null,null,null,null,null,null,null,null,null,null,null,null,null,null,null,null,null,null,null,null,null,{"$f":"[1]Personnel!G1114","v":0}]
[0,{"$f":"IFERROR(INDEX(Settings!$AP$17:$AP$38,MATCH(Personnel!$G1115,Settings!$AQ$17:$AQ$38,0)),0)","v":0},null,null,null,{"$f":"[1]Personnel!F1115","v":0},{"$f":"IFERROR(INDEX((SLevel),MATCH(Personnel!BA1115,SLevel202223,0)),0)","v":0},{"$f":"[1]Personnel!H1115","v":0},{"$f":"[1]Personnel!I1115","v":0},{"$f":"[1]Personnel!J1115","v":0},{"$f":"[1]Personnel!P1115","v":0},{"$f":"[1]Personnel!Q1115","v":0},0,{"$f":"[1]Personnel!S1115","v":0},{"$f":"[1]Personnel!S1115","v":0},{"$f":"[1]Personnel!S1115","v":0},{"$f":"[1]Personnel!T1115","v":0},0,{"$f":"[1]Personnel!V1115","v":0},{"$f":"[1]Personnel!W1115","v":0},0,{"$f":"[1]Personnel!Y1115","v":0},{"$f":"[1]Personnel!Z1115","v":0},0,0,0,0,null,null,null,null,null,null,null,null,null,null,null,null,null,null,null,null,null,null,null,null,null,null,null,null,null,{"$f":"[1]Personnel!G1115","v":0}]
[0,{"$f":"IFERROR(INDEX(Settings!$AP$17:$AP$38,MATCH(Personnel!$G1116,Settings!$AQ$17:$AQ$38,0)),0)","v":0},null,null,null,{"$f":"[1]Personnel!F1116","v":0},{"$f":"IFERROR(INDEX((SLevel),MATCH(Personnel!BA1116,SLevel202223,0)),0)","v":0},{"$f":"[1]Personnel!H1116","v":0},{"$f":"[1]Personnel!I1116","v":0},{"$f":"[1]Personnel!J1116","v":0},{"$f":"[1]Personnel!P1116","v":0},{"$f":"[1]Personnel!Q1116","v":0},0,{"$f":"[1]Personnel!S1116","v":0},{"$f":"[1]Personnel!S1116","v":0},{"$f":"[1]Personnel!S1116","v":0},{"$f":"[1]Personnel!T1116","v":0},0,{"$f":"[1]Personnel!V1116","v":0},{"$f":"[1]Personnel!W1116","v":0},0,{"$f":"[1]Personnel!Y1116","v":0},{"$f":"[1]Personnel!Z1116","v":0},0,0,0,0,null,null,null,null,null,null,null,null,null,null,null,null,null,null,null,null,null,null,null,null,null,null,null,null,null,{"$f":"[1]Personnel!G1116","v":0}]
[0,{"$f":"IFERROR(INDEX(Settings!$AP$17:$AP$38,MATCH(Personnel!$G1117,Settings!$AQ$17:$AQ$38,0)),0)","v":0},null,null,null,{"$f":"[1]Personnel!F1117","v":0},{"$f":"IFERROR(INDEX((SLevel),MATCH(Personnel!BA1117,SLevel202223,0)),0)","v":0},{"$f":"[1]Personnel!H1117","v":0},{"$f":"[1]Personnel!I1117","v":0},{"$f":"[1]Personnel!J1117","v":0},{"$f":"[1]Personnel!P1117","v":0},{"$f":"[1]Personnel!Q1117","v":0},0,{"$f":"[1]Personnel!S1117","v":0},{"$f":"[1]Personnel!S1117","v":0},{"$f":"[1]Personnel!S1117","v":0},{"$f":"[1]Personnel!T1117","v":0},0,{"$f":"[1]Personnel!V1117","v":0},{"$f":"[1]Personnel!W1117","v":0},0,{"$f":"[1]Personnel!Y1117","v":0},{"$f":"[1]Personnel!Z1117","v":0},0,0,0,0,null,null,null,null,null,null,null,null,null,null,null,null,null,null,null,null,null,null,null,null,null,null,null,null,null,{"$f":"[1]Personnel!G1117","v":0}]
[0,{"$f":"IFERROR(INDEX(Settings!$AP$17:$AP$38,MATCH(Personnel!$G1118,Settings!$AQ$17:$AQ$38,0)),0)","v":0},null,null,null,{"$f":"[1]Personnel!F1118","v":0},{"$f":"IFERROR(INDEX((SLevel),MATCH(Personnel!BA1118,SLevel202223,0)),0)","v":0},{"$f":"[1]Personnel!H1118","v":0},{"$f":"[1]Personnel!I1118","v":0},{"$f":"[1]Personnel!J1118","v":0},{"$f":"[1]Personnel!P1118","v":0},{"$f":"[1]Personnel!Q1118","v":0},0,{"$f":"[1]Personnel!S1118","v":0},{"$f":"[1]Personnel!S1118","v":0},{"$f":"[1]Personnel!S1118","v":0},{"$f":"[1]Personnel!T1118","v":0},0,{"$f":"[1]Personnel!V1118","v":0},{"$f":"[1]Personnel!W1118","v":0},0,{"$f":"[1]Personnel!Y1118","v":0},{"$f":"[1]Personnel!Z1118","v":0},0,0,0,0,null,null,null,null,null,null,null,null,null,null,null,null,null,null,null,null,null,null,null,null,null,null,null,null,null,{"$f":"[1]Personnel!G1118","v":0}]
[0,{"$f":"IFERROR(INDEX(Settings!$AP$17:$AP$38,MATCH(Personnel!$G1119,Settings!$AQ$17:$AQ$38,0)),0)","v":0},null,null,null,{"$f":"[1]Personnel!F1119","v":0},{"$f":"IFERROR(INDEX((SLevel),MATCH(Personnel!BA1119,SLevel202223,0)),0)","v":0},{"$f":"[1]Personnel!H1119","v":0},{"$f":"[1]Personnel!I1119","v":0},{"$f":"[1]Personnel!J1119","v":0},{"$f":"[1]Personnel!P1119","v":0},{"$f":"[1]Personnel!Q1119","v":0},0,{"$f":"[1]Personnel!S1119","v":0},{"$f":"[1]Personnel!S1119","v":0},{"$f":"[1]Personnel!S1119","v":0},{"$f":"[1]Personnel!T1119","v":0},0,{"$f":"[1]Personnel!V1119","v":0},{"$f":"[1]Personnel!W1119","v":0},0,{"$f":"[1]Personnel!Y1119","v":0},{"$f":"[1]Personnel!Z1119","v":0},0,0,0,0,null,null,null,null,null,null,null,null,null,null,null,null,null,null,null,null,null,null,null,null,null,null,null,null,null,{"$f":"[1]Personnel!G1119","v":0}]
[0,{"$f":"IFERROR(INDEX(Settings!$AP$17:$AP$38,MATCH(Personnel!$G1120,Settings!$AQ$17:$AQ$38,0)),0)","v":0},null,null,null,{"$f":"[1]Personnel!F1120","v":0},{"$f":"IFERROR(INDEX((SLevel),MATCH(Personnel!BA1120,SLevel202223,0)),0)","v":0},{"$f":"[1]Personnel!H1120","v":0},{"$f":"[1]Personnel!I1120","v":0},{"$f":"[1]Personnel!J1120","v":0},{"$f":"[1]Personnel!P1120","v":0},{"$f":"[1]Personnel!Q1120","v":0},0,{"$f":"[1]Personnel!S1120","v":0},{"$f":"[1]Personnel!S1120","v":0},{"$f":"[1]Personnel!S1120","v":0},{"$f":"[1]Personnel!T1120","v":0},0,{"$f":"[1]Personnel!V1120","v":0},{"$f":"[1]Personnel!W1120","v":0},0,{"$f":"[1]Personnel!Y1120","v":0},{"$f":"[1]Personnel!Z1120","v":0},0,0,0,0,null,null,null,null,null,null,null,null,null,null,null,null,null,null,null,null,null,null,null,null,null,null,null,null,null,{"$f":"[1]Personnel!G1120","v":0}]
[0,{"$f":"IFERROR(INDEX(Settings!$AP$17:$AP$38,MATCH(Personnel!$G1121,Settings!$AQ$17:$AQ$38,0)),0)","v":0},null,null,null,{"$f":"[1]Personnel!F1121","v":0},{"$f":"IFERROR(INDEX((SLevel),MATCH(Personnel!BA1121,SLevel202223,0)),0)","v":0},{"$f":"[1]Personnel!H1121","v":0},{"$f":"[1]Personnel!I1121","v":0},{"$f":"[1]Personnel!J1121","v":0},{"$f":"[1]Personnel!P1121","v":0},{"$f":"[1]Personnel!Q1121","v":0},0,{"$f":"[1]Personnel!S1121","v":0},{"$f":"[1]Personnel!S1121","v":0},{"$f":"[1]Personnel!S1121","v":0},{"$f":"[1]Personnel!T1121","v":0},0,{"$f":"[1]Personnel!V1121","v":0},{"$f":"[1]Personnel!W1121","v":0},0,{"$f":"[1]Personnel!Y1121","v":0},{"$f":"[1]Personnel!Z1121","v":0},0,0,0,0,null,null,null,null,null,null,null,null,null,null,null,null,null,null,null,null,null,null,null,null,null,null,null,null,null,{"$f":"[1]Personnel!G1121","v":0}]
[0,{"$f":"IFERROR(INDEX(Settings!$AP$17:$AP$38,MATCH(Personnel!$G1122,Settings!$AQ$17:$AQ$38,0)),0)","v":0},null,null,null,{"$f":"[1]Personnel!F1122","v":0},{"$f":"IFERROR(INDEX((SLevel),MATCH(Personnel!BA1122,SLevel202223,0)),0)","v":0},{"$f":"[1]Personnel!H1122","v":0},{"$f":"[1]Personnel!I1122","v":0},{"$f":"[1]Personnel!J1122","v":0},{"$f":"[1]Personnel!P1122","v":0},{"$f":"[1]Personnel!Q1122","v":0},0,{"$f":"[1]Personnel!S1122","v":0},{"$f":"[1]Personnel!S1122","v":0},{"$f":"[1]Personnel!S1122","v":0},{"$f":"[1]Personnel!T1122","v":0},0,{"$f":"[1]Personnel!V1122","v":0},{"$f":"[1]Personnel!W1122","v":0},0,{"$f":"[1]Personnel!Y1122","v":0},{"$f":"[1]Personnel!Z1122","v":0},0,0,0,0,null,null,null,null,null,null,null,null,null,null,null,null,null,null,null,null,null,null,null,null,null,null,null,null,null,{"$f":"[1]Personnel!G1122","v":0}]
[0,{"$f":"IFERROR(INDEX(Settings!$AP$17:$AP$38,MATCH(Personnel!$G1123,Settings!$AQ$17:$AQ$38,0)),0)","v":0},null,null,null,{"$f":"[1]Personnel!F1123","v":0},{"$f":"IFERROR(INDEX((SLevel),MATCH(Personnel!BA1123,SLevel202223,0)),0)","v":0},{"$f":"[1]Personnel!H1123","v":0},{"$f":"[1]Personnel!I1123","v":0},{"$f":"[1]Personnel!J1123","v":0},{"$f":"[1]Personnel!P1123","v":0},{"$f":"[1]Personnel!Q1123","v":0},0,{"$f":"[1]Personnel!S1123","v":0},{"$f":"[1]Personnel!S1123","v":0},{"$f":"[1]Personnel!S1123","v":0},{"$f":"[1]Personnel!T1123","v":0},0,{"$f":"[1]Personnel!V1123","v":0},{"$f":"[1]Personnel!W1123","v":0},0,{"$f":"[1]Personnel!Y1123","v":0},{"$f":"[1]Personnel!Z1123","v":0},0,0,0,0,null,null,null,null,null,null,null,null,null,null,null,null,null,null,null,null,null,null,null,null,null,null,null,null,null,{"$f":"[1]Personnel!G1123","v":0}]
[0,{"$f":"IFERROR(INDEX(Settings!$AP$17:$AP$38,MATCH(Personnel!$G1124,Settings!$AQ$17:$AQ$38,0)),0)","v":0},null,null,null,{"$f":"[1]Personnel!F1124","v":0},{"$f":"IFERROR(INDEX((SLevel),MATCH(Personnel!BA1124,SLevel202223,0)),0)","v":0},{"$f":"[1]Personnel!H1124","v":0},{"$f":"[1]Personnel!I1124","v":0},{"$f":"[1]Personnel!J1124","v":0},{"$f":"[1]Personnel!P1124","v":0},{"$f":"[1]Personnel!Q1124","v":0},0,{"$f":"[1]Personnel!S1124","v":0},{"$f":"[1]Personnel!S1124","v":0},{"$f":"[1]Personnel!S1124","v":0},{"$f":"[1]Personnel!T1124","v":0},0,{"$f":"[1]Personnel!V1124","v":0},{"$f":"[1]Personnel!W1124","v":0},0,{"$f":"[1]Personnel!Y1124","v":0},{"$f":"[1]Personnel!Z1124","v":0},0,0,0,0,null,null,null,null,null,null,null,null,null,null,null,null,null,null,null,null,null,null,null,null,null,null,null,null,null,{"$f":"[1]Personnel!G1124","v":0}]
[0,{"$f":"IFERROR(INDEX(Settings!$AP$17:$AP$38,MATCH(Personnel!$G1125,Settings!$AQ$17:$AQ$38,0)),0)","v":0},null,null,null,{"$f":"[1]Personnel!F1125","v":0},{"$f":"IFERROR(INDEX((SLevel),MATCH(Personnel!BA1125,SLevel202223,0)),0)","v":0},{"$f":"[1]Personnel!H1125","v":0},{"$f":"[1]Personnel!I1125","v":0},{"$f":"[1]Personnel!J1125","v":0},{"$f":"[1]Personnel!P1125","v":0},{"$f":"[1]Personnel!Q1125","v":0},0,{"$f":"[1]Personnel!S1125","v":0},{"$f":"[1]Personnel!S1125","v":0},{"$f":"[1]Personnel!S1125","v":0},{"$f":"[1]Personnel!T1125","v":0},0,{"$f":"[1]Personnel!V1125","v":0},{"$f":"[1]Personnel!W1125","v":0},0,{"$f":"[1]Personnel!Y1125","v":0},{"$f":"[1]Personnel!Z1125","v":0},0,0,0,0,null,null,null,null,null,null,null,null,null,null,null,null,null,null,null,null,null,null,null,null,null,null,null,null,null,{"$f":"[1]Personnel!G1125","v":0}]
[0,{"$f":"IFERROR(INDEX(Settings!$AP$17:$AP$38,MATCH(Personnel!$G1126,Settings!$AQ$17:$AQ$38,0)),0)","v":0},null,null,null,{"$f":"[1]Personnel!F1126","v":0},{"$f":"IFERROR(INDEX((SLevel),MATCH(Personnel!BA1126,SLevel202223,0)),0)","v":0},{"$f":"[1]Personnel!H1126","v":0},{"$f":"[1]Personnel!I1126","v":0},{"$f":"[1]Personnel!J1126","v":0},{"$f":"[1]Personnel!P1126","v":0},{"$f":"[1]Personnel!Q1126","v":0},0,{"$f":"[1]Personnel!S1126","v":0},{"$f":"[1]Personnel!S1126","v":0},{"$f":"[1]Personnel!S1126","v":0},{"$f":"[1]Personnel!T1126","v":0},0,{"$f":"[1]Personnel!V1126","v":0},{"$f":"[1]Personnel!W1126","v":0},0,{"$f":"[1]Personnel!Y1126","v":0},{"$f":"[1]Personnel!Z1126","v":0},0,0,0,0,null,null,null,null,null,null,null,null,null,null,null,null,null,null,null,null,null,null,null,null,null,null,null,null,null,{"$f":"[1]Personnel!G1126","v":0}]
[0,{"$f":"IFERROR(INDEX(Settings!$AP$17:$AP$38,MATCH(Personnel!$G1127,Settings!$AQ$17:$AQ$38,0)),0)","v":0},null,null,null,{"$f":"[1]Personnel!F1127","v":0},{"$f":"IFERROR(INDEX((SLevel),MATCH(Personnel!BA1127,SLevel202223,0)),0)","v":0},{"$f":"[1]Personnel!H1127","v":0},{"$f":"[1]Personnel!I1127","v":0},{"$f":"[1]Personnel!J1127","v":0},{"$f":"[1]Personnel!P1127","v":0},{"$f":"[1]Personnel!Q1127","v":0},0,{"$f":"[1]Personnel!S1127","v":0},{"$f":"[1]Personnel!S1127","v":0},{"$f":"[1]Personnel!S1127","v":0},{"$f":"[1]Personnel!T1127","v":0},0,{"$f":"[1]Personnel!V1127","v":0},{"$f":"[1]Personnel!W1127","v":0},0,{"$f":"[1]Personnel!Y1127","v":0},{"$f":"[1]Personnel!Z1127","v":0},0,0,0,0,null,null,null,null,null,null,null,null,null,null,null,null,null,null,null,null,null,null,null,null,null,null,null,null,null,{"$f":"[1]Personnel!G1127","v":0}]
[0,{"$f":"IFERROR(INDEX(Settings!$AP$17:$AP$38,MATCH(Personnel!$G1128,Settings!$AQ$17:$AQ$38,0)),0)","v":0},null,null,null,{"$f":"[1]Personnel!F1128","v":0},{"$f":"IFERROR(INDEX((SLevel),MATCH(Personnel!BA1128,SLevel202223,0)),0)","v":0},{"$f":"[1]Personnel!H1128","v":0},{"$f":"[1]Personnel!I1128","v":0},{"$f":"[1]Personnel!J1128","v":0},{"$f":"[1]Personnel!P1128","v":0},{"$f":"[1]Personnel!Q1128","v":0},0,{"$f":"[1]Personnel!S1128","v":0},{"$f":"[1]Personnel!S1128","v":0},{"$f":"[1]Personnel!S1128","v":0},{"$f":"[1]Personnel!T1128","v":0},0,{"$f":"[1]Personnel!V1128","v":0},{"$f":"[1]Personnel!W1128","v":0},0,{"$f":"[1]Personnel!Y1128","v":0},{"$f":"[1]Personnel!Z1128","v":0},0,0,0,0,null,null,null,null,null,null,null,null,null,null,null,null,null,null,null,null,null,null,null,null,null,null,null,null,null,{"$f":"[1]Personnel!G1128","v":0}]
[0,{"$f":"IFERROR(INDEX(Settings!$AP$17:$AP$38,MATCH(Personnel!$G1129,Settings!$AQ$17:$AQ$38,0)),0)","v":0},null,null,null,{"$f":"[1]Personnel!F1129","v":0},{"$f":"IFERROR(INDEX((SLevel),MATCH(Personnel!BA1129,SLevel202223,0)),0)","v":0},{"$f":"[1]Personnel!H1129","v":0},{"$f":"[1]Personnel!I1129","v":0},{"$f":"[1]Personnel!J1129","v":0},{"$f":"[1]Personnel!P1129","v":0},{"$f":"[1]Personnel!Q1129","v":0},0,{"$f":"[1]Personnel!S1129","v":0},{"$f":"[1]Personnel!S1129","v":0},{"$f":"[1]Personnel!S1129","v":0},{"$f":"[1]Personnel!T1129","v":0},0,{"$f":"[1]Personnel!V1129","v":0},{"$f":"[1]Personnel!W1129","v":0},0,{"$f":"[1]Personnel!Y1129","v":0},{"$f":"[1]Personnel!Z1129","v":0},0,0,0,0,null,null,null,null,null,null,null,null,null,null,null,null,null,null,null,null,null,null,null,null,null,null,null,null,null,{"$f":"[1]Personnel!G1129","v":0}]
[0,{"$f":"IFERROR(INDEX(Settings!$AP$17:$AP$38,MATCH(Personnel!$G1130,Settings!$AQ$17:$AQ$38,0)),0)","v":0},null,null,null,{"$f":"[1]Personnel!F1130","v":0},{"$f":"IFERROR(INDEX((SLevel),MATCH(Personnel!BA1130,SLevel202223,0)),0)","v":0},{"$f":"[1]Personnel!H1130","v":0},{"$f":"[1]Personnel!I1130","v":0},{"$f":"[1]Personnel!J1130","v":0},{"$f":"[1]Personnel!P1130","v":0},{"$f":"[1]Personnel!Q1130","v":0},0,{"$f":"[1]Personnel!S1130","v":0},{"$f":"[1]Personnel!S1130","v":0},{"$f":"[1]Personnel!S1130","v":0},{"$f":"[1]Personnel!T1130","v":0},0,{"$f":"[1]Personnel!V1130","v":0},{"$f":"[1]Personnel!W1130","v":0},0,{"$f":"[1]Personnel!Y1130","v":0},{"$f":"[1]Personnel!Z1130","v":0},0,0,0,0,null,null,null,null,null,null,null,null,null,null,null,null,null,null,null,null,null,null,null,null,null,null,null,null,null,{"$f":"[1]Personnel!G1130","v":0}]
[0,{"$f":"IFERROR(INDEX(Settings!$AP$17:$AP$38,MATCH(Personnel!$G1131,Settings!$AQ$17:$AQ$38,0)),0)","v":0},null,null,null,{"$f":"[1]Personnel!F1131","v":0},{"$f":"IFERROR(INDEX((SLevel),MATCH(Personnel!BA1131,SLevel202223,0)),0)","v":0},{"$f":"[1]Personnel!H1131","v":0},{"$f":"[1]Personnel!I1131","v":0},{"$f":"[1]Personnel!J1131","v":0},{"$f":"[1]Personnel!P1131","v":0},{"$f":"[1]Personnel!Q1131","v":0},0,{"$f":"[1]Personnel!S1131","v":0},{"$f":"[1]Personnel!S1131","v":0},{"$f":"[1]Personnel!S1131","v":0},{"$f":"[1]Personnel!T1131","v":0},0,{"$f":"[1]Personnel!V1131","v":0},{"$f":"[1]Personnel!W1131","v":0},0,{"$f":"[1]Personnel!Y1131","v":0},{"$f":"[1]Personnel!Z1131","v":0},0,0,0,0,null,null,null,null,null,null,null,null,null,null,null,null,null,null,null,null,null,null,null,null,null,null,null,null,null,{"$f":"[1]Personnel!G1131","v":0}]
[0,{"$f":"IFERROR(INDEX(Settings!$AP$17:$AP$38,MATCH(Personnel!$G1132,Settings!$AQ$17:$AQ$38,0)),0)","v":0},null,null,null,{"$f":"[1]Personnel!F1132","v":0},{"$f":"IFERROR(INDEX((SLevel),MATCH(Personnel!BA1132,SLevel202223,0)),0)","v":0},{"$f":"[1]Personnel!H1132","v":0},{"$f":"[1]Personnel!I1132","v":0},{"$f":"[1]Personnel!J1132","v":0},{"$f":"[1]Personnel!P1132","v":0},{"$f":"[1]Personnel!Q1132","v":0},0,{"$f":"[1]Personnel!S1132","v":0},{"$f":"[1]Personnel!S1132","v":0},{"$f":"[1]Personnel!S1132","v":0},{"$f":"[1]Personnel!T1132","v":0},0,{"$f":"[1]Personnel!V1132","v":0},{"$f":"[1]Personnel!W1132","v":0},0,{"$f":"[1]Personnel!Y1132","v":0},{"$f":"[1]Personnel!Z1132","v":0},0,0,0,0,null,null,null,null,null,null,null,null,null,null,null,null,null,null,null,null,null,null,null,null,null,null,null,null,null,{"$f":"[1]Personnel!G1132","v":0}]
[0,{"$f":"IFERROR(INDEX(Settings!$AP$17:$AP$38,MATCH(Personnel!$G1133,Settings!$AQ$17:$AQ$38,0)),0)","v":0},null,null,null,{"$f":"[1]Personnel!F1133","v":0},{"$f":"IFERROR(INDEX((SLevel),MATCH(Personnel!BA1133,SLevel202223,0)),0)","v":0},{"$f":"[1]Personnel!H1133","v":0},{"$f":"[1]Personnel!I1133","v":0},{"$f":"[1]Personnel!J1133","v":0},{"$f":"[1]Personnel!P1133","v":0},{"$f":"[1]Personnel!Q1133","v":0},0,{"$f":"[1]Personnel!S1133","v":0},{"$f":"[1]Personnel!S1133","v":0},{"$f":"[1]Personnel!S1133","v":0},{"$f":"[1]Personnel!T1133","v":0},0,{"$f":"[1]Personnel!V1133","v":0},{"$f":"[1]Personnel!W1133","v":0},0,{"$f":"[1]Personnel!Y1133","v":0},{"$f":"[1]Personnel!Z1133","v":0},0,0,0,0,null,null,null,null,null,null,null,null,null,null,null,null,null,null,null,null,null,null,null,null,null,null,null,null,null,{"$f":"[1]Personnel!G1133","v":0}]
[0,{"$f":"IFERROR(INDEX(Settings!$AP$17:$AP$38,MATCH(Personnel!$G1134,Settings!$AQ$17:$AQ$38,0)),0)","v":0},null,null,null,{"$f":"[1]Personnel!F1134","v":0},{"$f":"IFERROR(INDEX((SLevel),MATCH(Personnel!BA1134,SLevel202223,0)),0)","v":0},{"$f":"[1]Personnel!H1134","v":0},{"$f":"[1]Personnel!I1134","v":0},{"$f":"[1]Personnel!J1134","v":0},{"$f":"[1]Personnel!P1134","v":0},{"$f":"[1]Personnel!Q1134","v":0},0,{"$f":"[1]Personnel!S1134","v":0},{"$f":"[1]Personnel!S1134","v":0},{"$f":"[1]Personnel!S1134","v":0},{"$f":"[1]Personnel!T1134","v":0},0,{"$f":"[1]Personnel!V1134","v":0},{"$f":"[1]Personnel!W1134","v":0},0,{"$f":"[1]Personnel!Y1134","v":0},{"$f":"[1]Personnel!Z1134","v":0},0,0,0,0,null,null,null,null,null,null,null,null,null,null,null,null,null,null,null,null,null,null,null,null,null,null,null,null,null,{"$f":"[1]Personnel!G1134","v":0}]
[0,{"$f":"IFERROR(INDEX(Settings!$AP$17:$AP$38,MATCH(Personnel!$G1135,Settings!$AQ$17:$AQ$38,0)),0)","v":0},null,null,null,{"$f":"[1]Personnel!F1135","v":0},{"$f":"IFERROR(INDEX((SLevel),MATCH(Personnel!BA1135,SLevel202223,0)),0)","v":0},{"$f":"[1]Personnel!H1135","v":0},{"$f":"[1]Personnel!I1135","v":0},{"$f":"[1]Personnel!J1135","v":0},{"$f":"[1]Personnel!P1135","v":0},{"$f":"[1]Personnel!Q1135","v":0},0,{"$f":"[1]Personnel!S1135","v":0},{"$f":"[1]Personnel!S1135","v":0},{"$f":"[1]Personnel!S1135","v":0},{"$f":"[1]Personnel!T1135","v":0},0,{"$f":"[1]Personnel!V1135","v":0},{"$f":"[1]Personnel!W1135","v":0},0,{"$f":"[1]Personnel!Y1135","v":0},{"$f":"[1]Personnel!Z1135","v":0},0,0,0,0,null,null,null,null,null,null,null,null,null,null,null,null,null,null,null,null,null,null,null,null,null,null,null,null,null,{"$f":"[1]Personnel!G1135","v":0}]
[0,{"$f":"IFERROR(INDEX(Settings!$AP$17:$AP$38,MATCH(Personnel!$G1136,Settings!$AQ$17:$AQ$38,0)),0)","v":0},null,null,null,{"$f":"[1]Personnel!F1136","v":0},{"$f":"IFERROR(INDEX((SLevel),MATCH(Personnel!BA1136,SLevel202223,0)),0)","v":0},{"$f":"[1]Personnel!H1136","v":0},{"$f":"[1]Personnel!I1136","v":0},{"$f":"[1]Personnel!J1136","v":0},{"$f":"[1]Personnel!P1136","v":0},{"$f":"[1]Personnel!Q1136","v":0},0,{"$f":"[1]Personnel!S1136","v":0},{"$f":"[1]Personnel!S1136","v":0},{"$f":"[1]Personnel!S1136","v":0},{"$f":"[1]Personnel!T1136","v":0},0,{"$f":"[1]Personnel!V1136","v":0},{"$f":"[1]Personnel!W1136","v":0},0,{"$f":"[1]Personnel!Y1136","v":0},{"$f":"[1]Personnel!Z1136","v":0},0,0,0,0,null,null,null,null,null,null,null,null,null,null,null,null,null,null,null,null,null,null,null,null,null,null,null,null,null,{"$f":"[1]Personnel!G1136","v":0}]
[0,{"$f":"IFERROR(INDEX(Settings!$AP$17:$AP$38,MATCH(Personnel!$G1137,Settings!$AQ$17:$AQ$38,0)),0)","v":0},null,null,null,{"$f":"[1]Personnel!F1137","v":0},{"$f":"IFERROR(INDEX((SLevel),MATCH(Personnel!BA1137,SLevel202223,0)),0)","v":0},{"$f":"[1]Personnel!H1137","v":0},{"$f":"[1]Personnel!I1137","v":0},{"$f":"[1]Personnel!J1137","v":0},{"$f":"[1]Personnel!P1137","v":0},{"$f":"[1]Personnel!Q1137","v":0},0,{"$f":"[1]Personnel!S1137","v":0},{"$f":"[1]Personnel!S1137","v":0},{"$f":"[1]Personnel!S1137","v":0},{"$f":"[1]Personnel!T1137","v":0},0,{"$f":"[1]Personnel!V1137","v":0},{"$f":"[1]Personnel!W1137","v":0},0,{"$f":"[1]Personnel!Y1137","v":0},{"$f":"[1]Personnel!Z1137","v":0},0,0,0,0,null,null,null,null,null,null,null,null,null,null,null,null,null,null,null,null,null,null,null,null,null,null,null,null,null,{"$f":"[1]Personnel!G1137","v":0}]
[0,{"$f":"IFERROR(INDEX(Settings!$AP$17:$AP$38,MATCH(Personnel!$G1138,Settings!$AQ$17:$AQ$38,0)),0)","v":0},null,null,null,{"$f":"[1]Personnel!F1138","v":0},{"$f":"IFERROR(INDEX((SLevel),MATCH(Personnel!BA1138,SLevel202223,0)),0)","v":0},{"$f":"[1]Personnel!H1138","v":0},{"$f":"[1]Personnel!I1138","v":0},{"$f":"[1]Personnel!J1138","v":0},{"$f":"[1]Personnel!P1138","v":0},{"$f":"[1]Personnel!Q1138","v":0},0,{"$f":"[1]Personnel!S1138","v":0},{"$f":"[1]Personnel!S1138","v":0},{"$f":"[1]Personnel!S1138","v":0},{"$f":"[1]Personnel!T1138","v":0},0,{"$f":"[1]Personnel!V1138","v":0},{"$f":"[1]Personnel!W1138","v":0},0,{"$f":"[1]Personnel!Y1138","v":0},{"$f":"[1]Personnel!Z1138","v":0},0,0,0,0,null,null,null,null,null,null,null,null,null,null,null,null,null,null,null,null,null,null,null,null,null,null,null,null,null,{"$f":"[1]Personnel!G1138","v":0}]
[0,{"$f":"IFERROR(INDEX(Settings!$AP$17:$AP$38,MATCH(Personnel!$G1139,Settings!$AQ$17:$AQ$38,0)),0)","v":0},null,null,null,{"$f":"[1]Personnel!F1139","v":0},{"$f":"IFERROR(INDEX((SLevel),MATCH(Personnel!BA1139,SLevel202223,0)),0)","v":0},{"$f":"[1]Personnel!H1139","v":0},{"$f":"[1]Personnel!I1139","v":0},{"$f":"[1]Personnel!J1139","v":0},{"$f":"[1]Personnel!P1139","v":0},{"$f":"[1]Personnel!Q1139","v":0},0,{"$f":"[1]Personnel!S1139","v":0},{"$f":"[1]Personnel!S1139","v":0},{"$f":"[1]Personnel!S1139","v":0},{"$f":"[1]Personnel!T1139","v":0},0,{"$f":"[1]Personnel!V1139","v":0},{"$f":"[1]Personnel!W1139","v":0},0,{"$f":"[1]Personnel!Y1139","v":0},{"$f":"[1]Personnel!Z1139","v":0},0,0,0,0,null,null,null,null,null,null,null,null,null,null,null,null,null,null,null,null,null,null,null,null,null,null,null,null,null,{"$f":"[1]Personnel!G1139","v":0}]
[0,{"$f":"IFERROR(INDEX(Settings!$AP$17:$AP$38,MATCH(Personnel!$G1140,Settings!$AQ$17:$AQ$38,0)),0)","v":0},null,null,null,{"$f":"[1]Personnel!F1140","v":0},{"$f":"IFERROR(INDEX((SLevel),MATCH(Personnel!BA1140,SLevel202223,0)),0)","v":0},{"$f":"[1]Personnel!H1140","v":0},{"$f":"[1]Personnel!I1140","v":0},{"$f":"[1]Personnel!J1140","v":0},{"$f":"[1]Personnel!P1140","v":0},{"$f":"[1]Personnel!Q1140","v":0},0,{"$f":"[1]Personnel!S1140","v":0},{"$f":"[1]Personnel!S1140","v":0},{"$f":"[1]Personnel!S1140","v":0},{"$f":"[1]Personnel!T1140","v":0},0,{"$f":"[1]Personnel!V1140","v":0},{"$f":"[1]Personnel!W1140","v":0},0,{"$f":"[1]Personnel!Y1140","v":0},{"$f":"[1]Personnel!Z1140","v":0},0,0,0,0,null,null,null,null,null,null,null,null,null,null,null,null,null,null,null,null,null,null,null,null,null,null,null,null,null,{"$f":"[1]Personnel!G1140","v":0}]
[0,{"$f":"IFERROR(INDEX(Settings!$AP$17:$AP$38,MATCH(Personnel!$G1141,Settings!$AQ$17:$AQ$38,0)),0)","v":0},null,null,null,{"$f":"[1]Personnel!F1141","v":0},{"$f":"IFERROR(INDEX((SLevel),MATCH(Personnel!BA1141,SLevel202223,0)),0)","v":0},{"$f":"[1]Personnel!H1141","v":0},{"$f":"[1]Personnel!I1141","v":0},{"$f":"[1]Personnel!J1141","v":0},{"$f":"[1]Personnel!P1141","v":0},{"$f":"[1]Personnel!Q1141","v":0},0,{"$f":"[1]Personnel!S1141","v":0},{"$f":"[1]Personnel!S1141","v":0},{"$f":"[1]Personnel!S1141","v":0},{"$f":"[1]Personnel!T1141","v":0},0,{"$f":"[1]Personnel!V1141","v":0},{"$f":"[1]Personnel!W1141","v":0},0,{"$f":"[1]Personnel!Y1141","v":0},{"$f":"[1]Personnel!Z1141","v":0},0,0,0,0,null,null,null,null,null,null,null,null,null,null,null,null,null,null,null,null,null,null,null,null,null,null,null,null,null,{"$f":"[1]Personnel!G1141","v":0}]
[0,{"$f":"IFERROR(INDEX(Settings!$AP$17:$AP$38,MATCH(Personnel!$G1142,Settings!$AQ$17:$AQ$38,0)),0)","v":0},null,null,null,{"$f":"[1]Personnel!F1142","v":0},{"$f":"IFERROR(INDEX((SLevel),MATCH(Personnel!BA1142,SLevel202223,0)),0)","v":0},{"$f":"[1]Personnel!H1142","v":0},{"$f":"[1]Personnel!I1142","v":0},{"$f":"[1]Personnel!J1142","v":0},{"$f":"[1]Personnel!P1142","v":0},{"$f":"[1]Personnel!Q1142","v":0},0,{"$f":"[1]Personnel!S1142","v":0},{"$f":"[1]Personnel!S1142","v":0},{"$f":"[1]Personnel!S1142","v":0},{"$f":"[1]Personnel!T1142","v":0},0,{"$f":"[1]Personnel!V1142","v":0},{"$f":"[1]Personnel!W1142","v":0},0,{"$f":"[1]Personnel!Y1142","v":0},{"$f":"[1]Personnel!Z1142","v":0},0,0,0,0,null,null,null,null,null,null,null,null,null,null,null,null,null,null,null,null,null,null,null,null,null,null,null,null,null,{"$f":"[1]Personnel!G1142","v":0}]
[0,{"$f":"IFERROR(INDEX(Settings!$AP$17:$AP$38,MATCH(Personnel!$G1143,Settings!$AQ$17:$AQ$38,0)),0)","v":0},null,null,null,{"$f":"[1]Personnel!F1143","v":0},{"$f":"IFERROR(INDEX((SLevel),MATCH(Personnel!BA1143,SLevel202223,0)),0)","v":0},{"$f":"[1]Personnel!H1143","v":0},{"$f":"[1]Personnel!I1143","v":0},{"$f":"[1]Personnel!J1143","v":0},{"$f":"[1]Personnel!P1143","v":0},{"$f":"[1]Personnel!Q1143","v":0},0,{"$f":"[1]Personnel!S1143","v":0},{"$f":"[1]Personnel!S1143","v":0},{"$f":"[1]Personnel!S1143","v":0},{"$f":"[1]Personnel!T1143","v":0},0,{"$f":"[1]Personnel!V1143","v":0},{"$f":"[1]Personnel!W1143","v":0},0,{"$f":"[1]Personnel!Y1143","v":0},{"$f":"[1]Personnel!Z1143","v":0},0,0,0,0,null,null,null,null,null,null,null,null,null,null,null,null,null,null,null,null,null,null,null,null,null,null,null,null,null,{"$f":"[1]Personnel!G1143","v":0}]
[0,{"$f":"IFERROR(INDEX(Settings!$AP$17:$AP$38,MATCH(Personnel!$G1144,Settings!$AQ$17:$AQ$38,0)),0)","v":0},null,null,null,{"$f":"[1]Personnel!F1144","v":0},{"$f":"IFERROR(INDEX((SLevel),MATCH(Personnel!BA1144,SLevel202223,0)),0)","v":0},{"$f":"[1]Personnel!H1144","v":0},{"$f":"[1]Personnel!I1144","v":0},{"$f":"[1]Personnel!J1144","v":0},{"$f":"[1]Personnel!P1144","v":0},{"$f":"[1]Personnel!Q1144","v":0},0,{"$f":"[1]Personnel!S1144","v":0},{"$f":"[1]Personnel!S1144","v":0},{"$f":"[1]Personnel!S1144","v":0},{"$f":"[1]Personnel!T1144","v":0},0,{"$f":"[1]Personnel!V1144","v":0},{"$f":"[1]Personnel!W1144","v":0},0,{"$f":"[1]Personnel!Y1144","v":0},{"$f":"[1]Personnel!Z1144","v":0},0,0,0,0,null,null,null,null,null,null,null,null,null,null,null,null,null,null,null,null,null,null,null,null,null,null,null,null,null,{"$f":"[1]Personnel!G1144","v":0}]
[0,{"$f":"IFERROR(INDEX(Settings!$AP$17:$AP$38,MATCH(Personnel!$G1145,Settings!$AQ$17:$AQ$38,0)),0)","v":0},null,null,null,{"$f":"[1]Personnel!F1145","v":0},{"$f":"IFERROR(INDEX((SLevel),MATCH(Personnel!BA1145,SLevel202223,0)),0)","v":0},{"$f":"[1]Personnel!H1145","v":0},{"$f":"[1]Personnel!I1145","v":0},{"$f":"[1]Personnel!J1145","v":0},{"$f":"[1]Personnel!P1145","v":0},{"$f":"[1]Personnel!Q1145","v":0},0,{"$f":"[1]Personnel!S1145","v":0},{"$f":"[1]Personnel!S1145","v":0},{"$f":"[1]Personnel!S1145","v":0},{"$f":"[1]Personnel!T1145","v":0},0,{"$f":"[1]Personnel!V1145","v":0},{"$f":"[1]Personnel!W1145","v":0},0,{"$f":"[1]Personnel!Y1145","v":0},{"$f":"[1]Personnel!Z1145","v":0},0,0,0,0,null,null,null,null,null,null,null,null,null,null,null,null,null,null,null,null,null,null,null,null,null,null,null,null,null,{"$f":"[1]Personnel!G1145","v":0}]
[0,{"$f":"IFERROR(INDEX(Settings!$AP$17:$AP$38,MATCH(Personnel!$G1146,Settings!$AQ$17:$AQ$38,0)),0)","v":0},null,null,null,{"$f":"[1]Personnel!F1146","v":0},{"$f":"IFERROR(INDEX((SLevel),MATCH(Personnel!BA1146,SLevel202223,0)),0)","v":0},{"$f":"[1]Personnel!H1146","v":0},{"$f":"[1]Personnel!I1146","v":0},{"$f":"[1]Personnel!J1146","v":0},{"$f":"[1]Personnel!P1146","v":0},{"$f":"[1]Personnel!Q1146","v":0},0,{"$f":"[1]Personnel!S1146","v":0},{"$f":"[1]Personnel!S1146","v":0},{"$f":"[1]Personnel!S1146","v":0},{"$f":"[1]Personnel!T1146","v":0},0,{"$f":"[1]Personnel!V1146","v":0},{"$f":"[1]Personnel!W1146","v":0},0,{"$f":"[1]Personnel!Y1146","v":0},{"$f":"[1]Personnel!Z1146","v":0},0,0,0,0,null,null,null,null,null,null,null,null,null,null,null,null,null,null,null,null,null,null,null,null,null,null,null,null,null,{"$f":"[1]Personnel!G1146","v":0}]
[0,{"$f":"IFERROR(INDEX(Settings!$AP$17:$AP$38,MATCH(Personnel!$G1147,Settings!$AQ$17:$AQ$38,0)),0)","v":0},null,null,null,{"$f":"[1]Personnel!F1147","v":0},{"$f":"IFERROR(INDEX((SLevel),MATCH(Personnel!BA1147,SLevel202223,0)),0)","v":0},{"$f":"[1]Personnel!H1147","v":0},{"$f":"[1]Personnel!I1147","v":0},{"$f":"[1]Personnel!J1147","v":0},{"$f":"[1]Personnel!P1147","v":0},{"$f":"[1]Personnel!Q1147","v":0},0,{"$f":"[1]Personnel!S1147","v":0},{"$f":"[1]Personnel!S1147","v":0},{"$f":"[1]Personnel!S1147","v":0},{"$f":"[1]Personnel!T1147","v":0},0,{"$f":"[1]Personnel!V1147","v":0},{"$f":"[1]Personnel!W1147","v":0},0,{"$f":"[1]Personnel!Y1147","v":0},{"$f":"[1]Personnel!Z1147","v":0},0,0,0,0,null,null,null,null,null,null,null,null,null,null,null,null,null,null,null,null,null,null,null,null,null,null,null,null,null,{"$f":"[1]Personnel!G1147","v":0}]
[0,{"$f":"IFERROR(INDEX(Settings!$AP$17:$AP$38,MATCH(Personnel!$G1148,Settings!$AQ$17:$AQ$38,0)),0)","v":0},null,null,null,{"$f":"[1]Personnel!F1148","v":0},{"$f":"IFERROR(INDEX((SLevel),MATCH(Personnel!BA1148,SLevel202223,0)),0)","v":0},{"$f":"[1]Personnel!H1148","v":0},{"$f":"[1]Personnel!I1148","v":0},{"$f":"[1]Personnel!J1148","v":0},{"$f":"[1]Personnel!P1148","v":0},{"$f":"[1]Personnel!Q1148","v":0},0,{"$f":"[1]Personnel!S1148","v":0},{"$f":"[1]Personnel!S1148","v":0},{"$f":"[1]Personnel!S1148","v":0},{"$f":"[1]Personnel!T1148","v":0},0,{"$f":"[1]Personnel!V1148","v":0},{"$f":"[1]Personnel!W1148","v":0},0,{"$f":"[1]Personnel!Y1148","v":0},{"$f":"[1]Personnel!Z1148","v":0},0,0,0,0,null,null,null,null,null,null,null,null,null,null,null,null,null,null,null,null,null,null,null,null,null,null,null,null,null,{"$f":"[1]Personnel!G1148","v":0}]
[0,{"$f":"IFERROR(INDEX(Settings!$AP$17:$AP$38,MATCH(Personnel!$G1149,Settings!$AQ$17:$AQ$38,0)),0)","v":0},null,null,null,{"$f":"[1]Personnel!F1149","v":0},{"$f":"IFERROR(INDEX((SLevel),MATCH(Personnel!BA1149,SLevel202223,0)),0)","v":0},{"$f":"[1]Personnel!H1149","v":0},{"$f":"[1]Personnel!I1149","v":0},{"$f":"[1]Personnel!J1149","v":0},{"$f":"[1]Personnel!P1149","v":0},{"$f":"[1]Personnel!Q1149","v":0},0,{"$f":"[1]Personnel!S1149","v":0},{"$f":"[1]Personnel!S1149","v":0},{"$f":"[1]Personnel!S1149","v":0},{"$f":"[1]Personnel!T1149","v":0},0,{"$f":"[1]Personnel!V1149","v":0},{"$f":"[1]Personnel!W1149","v":0},0,{"$f":"[1]Personnel!Y1149","v":0},{"$f":"[1]Personnel!Z1149","v":0},0,0,0,0,null,null,null,null,null,null,null,null,null,null,null,null,null,null,null,null,null,null,null,null,null,null,null,null,null,{"$f":"[1]Personnel!G1149","v":0}]
[0,{"$f":"IFERROR(INDEX(Settings!$AP$17:$AP$38,MATCH(Personnel!$G1150,Settings!$AQ$17:$AQ$38,0)),0)","v":0},null,null,null,{"$f":"[1]Personnel!F1150","v":0},{"$f":"IFERROR(INDEX((SLevel),MATCH(Personnel!BA1150,SLevel202223,0)),0)","v":0},{"$f":"[1]Personnel!H1150","v":0},{"$f":"[1]Personnel!I1150","v":0},{"$f":"[1]Personnel!J1150","v":0},{"$f":"[1]Personnel!P1150","v":0},{"$f":"[1]Personnel!Q1150","v":0},0,{"$f":"[1]Personnel!S1150","v":0},{"$f":"[1]Personnel!S1150","v":0},{"$f":"[1]Personnel!S1150","v":0},{"$f":"[1]Personnel!T1150","v":0},0,{"$f":"[1]Personnel!V1150","v":0},{"$f":"[1]Personnel!W1150","v":0},0,{"$f":"[1]Personnel!Y1150","v":0},{"$f":"[1]Personnel!Z1150","v":0},0,0,0,0,null,null,null,null,null,null,null,null,null,null,null,null,null,null,null,null,null,null,null,null,null,null,null,null,null,{"$f":"[1]Personnel!G1150","v":0}]
[0,{"$f":"IFERROR(INDEX(Settings!$AP$17:$AP$38,MATCH(Personnel!$G1151,Settings!$AQ$17:$AQ$38,0)),0)","v":0},null,null,null,{"$f":"[1]Personnel!F1151","v":0},{"$f":"IFERROR(INDEX((SLevel),MATCH(Personnel!BA1151,SLevel202223,0)),0)","v":0},{"$f":"[1]Personnel!H1151","v":0},{"$f":"[1]Personnel!I1151","v":0},{"$f":"[1]Personnel!J1151","v":0},{"$f":"[1]Personnel!P1151","v":0},{"$f":"[1]Personnel!Q1151","v":0},0,{"$f":"[1]Personnel!S1151","v":0},{"$f":"[1]Personnel!S1151","v":0},{"$f":"[1]Personnel!S1151","v":0},{"$f":"[1]Personnel!T1151","v":0},0,{"$f":"[1]Personnel!V1151","v":0},{"$f":"[1]Personnel!W1151","v":0},0,{"$f":"[1]Personnel!Y1151","v":0},{"$f":"[1]Personnel!Z1151","v":0},0,0,0,0,null,null,null,null,null,null,null,null,null,null,null,null,null,null,null,null,null,null,null,null,null,null,null,null,null,{"$f":"[1]Personnel!G1151","v":0}]
[0,{"$f":"IFERROR(INDEX(Settings!$AP$17:$AP$38,MATCH(Personnel!$G1152,Settings!$AQ$17:$AQ$38,0)),0)","v":0},null,null,null,{"$f":"[1]Personnel!F1152","v":0},{"$f":"IFERROR(INDEX((SLevel),MATCH(Personnel!BA1152,SLevel202223,0)),0)","v":0},{"$f":"[1]Personnel!H1152","v":0},{"$f":"[1]Personnel!I1152","v":0},{"$f":"[1]Personnel!J1152","v":0},{"$f":"[1]Personnel!P1152","v":0},{"$f":"[1]Personnel!Q1152","v":0},0,{"$f":"[1]Personnel!S1152","v":0},{"$f":"[1]Personnel!S1152","v":0},{"$f":"[1]Personnel!S1152","v":0},{"$f":"[1]Personnel!T1152","v":0},0,{"$f":"[1]Personnel!V1152","v":0},{"$f":"[1]Personnel!W1152","v":0},0,{"$f":"[1]Personnel!Y1152","v":0},{"$f":"[1]Personnel!Z1152","v":0},0,0,0,0,null,null,null,null,null,null,null,null,null,null,null,null,null,null,null,null,null,null,null,null,null,null,null,null,null,{"$f":"[1]Personnel!G1152","v":0}]
[0,{"$f":"IFERROR(INDEX(Settings!$AP$17:$AP$38,MATCH(Personnel!$G1153,Settings!$AQ$17:$AQ$38,0)),0)","v":0},null,null,null,{"$f":"[1]Personnel!F1153","v":0},{"$f":"IFERROR(INDEX((SLevel),MATCH(Personnel!BA1153,SLevel202223,0)),0)","v":0},{"$f":"[1]Personnel!H1153","v":0},{"$f":"[1]Personnel!I1153","v":0},{"$f":"[1]Personnel!J1153","v":0},{"$f":"[1]Personnel!P1153","v":0},{"$f":"[1]Personnel!Q1153","v":0},0,{"$f":"[1]Personnel!S1153","v":0},{"$f":"[1]Personnel!S1153","v":0},{"$f":"[1]Personnel!S1153","v":0},{"$f":"[1]Personnel!T1153","v":0},0,{"$f":"[1]Personnel!V1153","v":0},{"$f":"[1]Personnel!W1153","v":0},0,{"$f":"[1]Personnel!Y1153","v":0},{"$f":"[1]Personnel!Z1153","v":0},0,0,0,0,null,null,null,null,null,null,null,null,null,null,null,null,null,null,null,null,null,null,null,null,null,null,null,null,null,{"$f":"[1]Personnel!G1153","v":0}]
[0,{"$f":"IFERROR(INDEX(Settings!$AP$17:$AP$38,MATCH(Personnel!$G1154,Settings!$AQ$17:$AQ$38,0)),0)","v":0},null,null,null,{"$f":"[1]Personnel!F1154","v":0},{"$f":"IFERROR(INDEX((SLevel),MATCH(Personnel!BA1154,SLevel202223,0)),0)","v":0},{"$f":"[1]Personnel!H1154","v":0},{"$f":"[1]Personnel!I1154","v":0},{"$f":"[1]Personnel!J1154","v":0},{"$f":"[1]Personnel!P1154","v":0},{"$f":"[1]Personnel!Q1154","v":0},0,{"$f":"[1]Personnel!S1154","v":0},{"$f":"[1]Personnel!S1154","v":0},{"$f":"[1]Personnel!S1154","v":0},{"$f":"[1]Personnel!T1154","v":0},0,{"$f":"[1]Personnel!V1154","v":0},{"$f":"[1]Personnel!W1154","v":0},0,{"$f":"[1]Personnel!Y1154","v":0},{"$f":"[1]Personnel!Z1154","v":0},0,0,0,0,null,null,null,null,null,null,null,null,null,null,null,null,null,null,null,null,null,null,null,null,null,null,null,null,null,{"$f":"[1]Personnel!G1154","v":0}]
[0,{"$f":"IFERROR(INDEX(Settings!$AP$17:$AP$38,MATCH(Personnel!$G1155,Settings!$AQ$17:$AQ$38,0)),0)","v":0},null,null,null,{"$f":"[1]Personnel!F1155","v":0},{"$f":"IFERROR(INDEX((SLevel),MATCH(Personnel!BA1155,SLevel202223,0)),0)","v":0},{"$f":"[1]Personnel!H1155","v":0},{"$f":"[1]Personnel!I1155","v":0},{"$f":"[1]Personnel!J1155","v":0},{"$f":"[1]Personnel!P1155","v":0},{"$f":"[1]Personnel!Q1155","v":0},0,{"$f":"[1]Personnel!S1155","v":0},{"$f":"[1]Personnel!S1155","v":0},{"$f":"[1]Personnel!S1155","v":0},{"$f":"[1]Personnel!T1155","v":0},0,{"$f":"[1]Personnel!V1155","v":0},{"$f":"[1]Personnel!W1155","v":0},0,{"$f":"[1]Personnel!Y1155","v":0},{"$f":"[1]Personnel!Z1155","v":0},0,0,0,0,null,null,null,null,null,null,null,null,null,null,null,null,null,null,null,null,null,null,null,null,null,null,null,null,null,{"$f":"[1]Personnel!G1155","v":0}]
[0,{"$f":"IFERROR(INDEX(Settings!$AP$17:$AP$38,MATCH(Personnel!$G1156,Settings!$AQ$17:$AQ$38,0)),0)","v":0},null,null,null,{"$f":"[1]Personnel!F1156","v":0},{"$f":"IFERROR(INDEX((SLevel),MATCH(Personnel!BA1156,SLevel202223,0)),0)","v":0},{"$f":"[1]Personnel!H1156","v":0},{"$f":"[1]Personnel!I1156","v":0},{"$f":"[1]Personnel!J1156","v":0},{"$f":"[1]Personnel!P1156","v":0},{"$f":"[1]Personnel!Q1156","v":0},0,{"$f":"[1]Personnel!S1156","v":0},{"$f":"[1]Personnel!S1156","v":0},{"$f":"[1]Personnel!S1156","v":0},{"$f":"[1]Personnel!T1156","v":0},0,{"$f":"[1]Personnel!V1156","v":0},{"$f":"[1]Personnel!W1156","v":0},0,{"$f":"[1]Personnel!Y1156","v":0},{"$f":"[1]Personnel!Z1156","v":0},0,0,0,0,null,null,null,null,null,null,null,null,null,null,null,null,null,null,null,null,null,null,null,null,null,null,null,null,null,{"$f":"[1]Personnel!G1156","v":0}]
[0,{"$f":"IFERROR(INDEX(Settings!$AP$17:$AP$38,MATCH(Personnel!$G1157,Settings!$AQ$17:$AQ$38,0)),0)","v":0},null,null,null,{"$f":"[1]Personnel!F1157","v":0},{"$f":"IFERROR(INDEX((SLevel),MATCH(Personnel!BA1157,SLevel202223,0)),0)","v":0},{"$f":"[1]Personnel!H1157","v":0},{"$f":"[1]Personnel!I1157","v":0},{"$f":"[1]Personnel!J1157","v":0},{"$f":"[1]Personnel!P1157","v":0},{"$f":"[1]Personnel!Q1157","v":0},0,{"$f":"[1]Personnel!S1157","v":0},{"$f":"[1]Personnel!S1157","v":0},{"$f":"[1]Personnel!S1157","v":0},{"$f":"[1]Personnel!T1157","v":0},0,{"$f":"[1]Personnel!V1157","v":0},{"$f":"[1]Personnel!W1157","v":0},0,{"$f":"[1]Personnel!Y1157","v":0},{"$f":"[1]Personnel!Z1157","v":0},0,0,0,0,null,null,null,null,null,null,null,null,null,null,null,null,null,null,null,null,null,null,null,null,null,null,null,null,null,{"$f":"[1]Personnel!G1157","v":0}]
[0,{"$f":"IFERROR(INDEX(Settings!$AP$17:$AP$38,MATCH(Personnel!$G1158,Settings!$AQ$17:$AQ$38,0)),0)","v":0},null,null,null,{"$f":"[1]Personnel!F1158","v":0},{"$f":"IFERROR(INDEX((SLevel),MATCH(Personnel!BA1158,SLevel202223,0)),0)","v":0},{"$f":"[1]Personnel!H1158","v":0},{"$f":"[1]Personnel!I1158","v":0},{"$f":"[1]Personnel!J1158","v":0},{"$f":"[1]Personnel!P1158","v":0},{"$f":"[1]Personnel!Q1158","v":0},0,{"$f":"[1]Personnel!S1158","v":0},{"$f":"[1]Personnel!S1158","v":0},{"$f":"[1]Personnel!S1158","v":0},{"$f":"[1]Personnel!T1158","v":0},0,{"$f":"[1]Personnel!V1158","v":0},{"$f":"[1]Personnel!W1158","v":0},0,{"$f":"[1]Personnel!Y1158","v":0},{"$f":"[1]Personnel!Z1158","v":0},0,0,0,0,null,null,null,null,null,null,null,null,null,null,null,null,null,null,null,null,null,null,null,null,null,null,null,null,null,{"$f":"[1]Personnel!G1158","v":0}]
[0,{"$f":"IFERROR(INDEX(Settings!$AP$17:$AP$38,MATCH(Personnel!$G1159,Settings!$AQ$17:$AQ$38,0)),0)","v":0},null,null,null,{"$f":"[1]Personnel!F1159","v":0},{"$f":"IFERROR(INDEX((SLevel),MATCH(Personnel!BA1159,SLevel202223,0)),0)","v":0},{"$f":"[1]Personnel!H1159","v":0},{"$f":"[1]Personnel!I1159","v":0},{"$f":"[1]Personnel!J1159","v":0},{"$f":"[1]Personnel!P1159","v":0},{"$f":"[1]Personnel!Q1159","v":0},0,{"$f":"[1]Personnel!S1159","v":0},{"$f":"[1]Personnel!S1159","v":0},{"$f":"[1]Personnel!S1159","v":0},{"$f":"[1]Personnel!T1159","v":0},0,{"$f":"[1]Personnel!V1159","v":0},{"$f":"[1]Personnel!W1159","v":0},0,{"$f":"[1]Personnel!Y1159","v":0},{"$f":"[1]Personnel!Z1159","v":0},0,0,0,0,null,null,null,null,null,null,null,null,null,null,null,null,null,null,null,null,null,null,null,null,null,null,null,null,null,{"$f":"[1]Personnel!G1159","v":0}]
[0,{"$f":"IFERROR(INDEX(Settings!$AP$17:$AP$38,MATCH(Personnel!$G1160,Settings!$AQ$17:$AQ$38,0)),0)","v":0},null,null,null,{"$f":"[1]Personnel!F1160","v":0},{"$f":"IFERROR(INDEX((SLevel),MATCH(Personnel!BA1160,SLevel202223,0)),0)","v":0},{"$f":"[1]Personnel!H1160","v":0},{"$f":"[1]Personnel!I1160","v":0},{"$f":"[1]Personnel!J1160","v":0},{"$f":"[1]Personnel!P1160","v":0},{"$f":"[1]Personnel!Q1160","v":0},0,{"$f":"[1]Personnel!S1160","v":0},{"$f":"[1]Personnel!S1160","v":0},{"$f":"[1]Personnel!S1160","v":0},{"$f":"[1]Personnel!T1160","v":0},0,{"$f":"[1]Personnel!V1160","v":0},{"$f":"[1]Personnel!W1160","v":0},0,{"$f":"[1]Personnel!Y1160","v":0},{"$f":"[1]Personnel!Z1160","v":0},0,0,0,0,null,null,null,null,null,null,null,null,null,null,null,null,null,null,null,null,null,null,null,null,null,null,null,null,null,{"$f":"[1]Personnel!G1160","v":0}]
[0,{"$f":"IFERROR(INDEX(Settings!$AP$17:$AP$38,MATCH(Personnel!$G1161,Settings!$AQ$17:$AQ$38,0)),0)","v":0},null,null,null,{"$f":"[1]Personnel!F1161","v":0},{"$f":"IFERROR(INDEX((SLevel),MATCH(Personnel!BA1161,SLevel202223,0)),0)","v":0},{"$f":"[1]Personnel!H1161","v":0},{"$f":"[1]Personnel!I1161","v":0},{"$f":"[1]Personnel!J1161","v":0},{"$f":"[1]Personnel!P1161","v":0},{"$f":"[1]Personnel!Q1161","v":0},0,{"$f":"[1]Personnel!S1161","v":0},{"$f":"[1]Personnel!S1161","v":0},{"$f":"[1]Personnel!S1161","v":0},{"$f":"[1]Personnel!T1161","v":0},0,{"$f":"[1]Personnel!V1161","v":0},{"$f":"[1]Personnel!W1161","v":0},0,{"$f":"[1]Personnel!Y1161","v":0},{"$f":"[1]Personnel!Z1161","v":0},0,0,0,0,null,null,null,null,null,null,null,null,null,null,null,null,null,null,null,null,null,null,null,null,null,null,null,null,null,{"$f":"[1]Personnel!G1161","v":0}]
[0,{"$f":"IFERROR(INDEX(Settings!$AP$17:$AP$38,MATCH(Personnel!$G1162,Settings!$AQ$17:$AQ$38,0)),0)","v":0},null,null,null,{"$f":"[1]Personnel!F1162","v":0},{"$f":"IFERROR(INDEX((SLevel),MATCH(Personnel!BA1162,SLevel202223,0)),0)","v":0},{"$f":"[1]Personnel!H1162","v":0},{"$f":"[1]Personnel!I1162","v":0},{"$f":"[1]Personnel!J1162","v":0},{"$f":"[1]Personnel!P1162","v":0},{"$f":"[1]Personnel!Q1162","v":0},0,{"$f":"[1]Personnel!S1162","v":0},{"$f":"[1]Personnel!S1162","v":0},{"$f":"[1]Personnel!S1162","v":0},{"$f":"[1]Personnel!T1162","v":0},0,{"$f":"[1]Personnel!V1162","v":0},{"$f":"[1]Personnel!W1162","v":0},0,{"$f":"[1]Personnel!Y1162","v":0},{"$f":"[1]Personnel!Z1162","v":0},0,0,0,0,null,null,null,null,null,null,null,null,null,null,null,null,null,null,null,null,null,null,null,null,null,null,null,null,null,{"$f":"[1]Personnel!G1162","v":0}]
[0,{"$f":"IFERROR(INDEX(Settings!$AP$17:$AP$38,MATCH(Personnel!$G1163,Settings!$AQ$17:$AQ$38,0)),0)","v":0},null,null,null,{"$f":"[1]Personnel!F1163","v":0},{"$f":"IFERROR(INDEX((SLevel),MATCH(Personnel!BA1163,SLevel202223,0)),0)","v":0},{"$f":"[1]Personnel!H1163","v":0},{"$f":"[1]Personnel!I1163","v":0},{"$f":"[1]Personnel!J1163","v":0},{"$f":"[1]Personnel!P1163","v":0},{"$f":"[1]Personnel!Q1163","v":0},0,{"$f":"[1]Personnel!S1163","v":0},{"$f":"[1]Personnel!S1163","v":0},{"$f":"[1]Personnel!S1163","v":0},{"$f":"[1]Personnel!T1163","v":0},0,{"$f":"[1]Personnel!V1163","v":0},{"$f":"[1]Personnel!W1163","v":0},0,{"$f":"[1]Personnel!Y1163","v":0},{"$f":"[1]Personnel!Z1163","v":0},0,0,0,0,null,null,null,null,null,null,null,null,null,null,null,null,null,null,null,null,null,null,null,null,null,null,null,null,null,{"$f":"[1]Personnel!G1163","v":0}]
[{"$f":"IF(SUM(K1164:AA1164)>0,1,0)","v":0},{"$f":"IFERROR(INDEX(Settings!$AP$17:$AP$38,MATCH(Personnel!$G1164,Settings!$AQ$17:$AQ$38,0)),0)","v":0},null,null,null,{"$f":"[1]Personnel!F1164","v":0},{"$f":"IFERROR(INDEX((SLevel),MATCH(Personnel!BA1164,SLevel202223,0)),0)","v":0},{"$f":"[1]Personnel!H1164","v":0},{"$f":"[1]Personnel!I1164","v":0},{"$f":"[1]Personnel!J1164","v":0},{"$f":"[1]Personnel!P1164","v":0},{"$f":"[1]Personnel!Q1164","v":0},0,{"$f":"[1]Personnel!S1164","v":0},{"$f":"[1]Personnel!S1164","v":0},{"$f":"[1]Personnel!S1164","v":0},{"$f":"[1]Personnel!T1164","v":0},0,{"$f":"[1]Personnel!V1164","v":0},{"$f":"[1]Personnel!W1164","v":0},0,{"$f":"[1]Personnel!Y1164","v":0},{"$f":"[1]Personnel!Z1164","v":0},0,0,0,0,null,null,null,null,null,null,null,null,null,null,null,null,null,null,null,null,null,null,null,null,null,null,null,null,null,{"$f":"[1]Personnel!G1164","v":0}]
[0,{"$f":"IFERROR(INDEX(Settings!$AP$17:$AP$38,MATCH(Personnel!$G1165,Settings!$AQ$17:$AQ$38,0)),0)","v":0},null,null,null,{"$f":"[1]Personnel!F1165","v":0},{"$f":"IFERROR(INDEX((SLevel),MATCH(Personnel!BA1165,SLevel202223,0)),0)","v":0},{"$f":"[1]Personnel!H1165","v":0},{"$f":"[1]Personnel!I1165","v":0},{"$f":"[1]Personnel!J1165","v":0},{"$f":"[1]Personnel!P1165","v":0},{"$f":"[1]Personnel!Q1165","v":0},{"$f":"ROUND(IF(ISERROR(L1165/K1165),0,(L1165/K1165)),0)","v":0},{"$f":"[1]Personnel!S1165","v":0},{"$f":"[1]Personnel!S1165","v":0},{"$f":"[1]Personnel!S1165","v":0},{"$f":"[1]Personnel!T1165","v":0},{"$f":"ROUND(IF(ISERROR(Q1165/P1165),0,(Q1165/P1165)),0)","v":0},{"$f":"[1]Personnel!V1165","v":0},{"$f":"[1]Personnel!W1165","v":0},{"$f":"ROUND(IF(ISERROR(T1165/S1165),0,(T1165/S1165)),0)","v":0},{"$f":"[1]Personnel!Y1165","v":0},{"$f":"[1]Personnel!Z1165","v":0},{"$f":"ROUND(IF(ISERROR(W1165/V1165),0,(W1165/V1165)),0)","v":0},0,0,{"$f":"ROUND(IF(ISERROR(Z1165/Y1165),0,(Z1165/Y1165)),0)","v":0},null,null,null,null,null,null,null,null,null,null,null,null,null,null,null,null,null,null,null,null,null,null,null,null,null,{"$f":"[1]Personnel!G1165","v":0}]
[0,{"$f":"IFERROR(INDEX(Settings!$AP$17:$AP$38,MATCH(Personnel!$G1166,Settings!$AQ$17:$AQ$38,0)),0)","v":0},null,null,null,{"$f":"[1]Personnel!F1166","v":0},{"$f":"IFERROR(INDEX((SLevel),MATCH(Personnel!BA1166,SLevel202223,0)),0)","v":0},{"$f":"[1]Personnel!H1166","v":0},{"$f":"[1]Personnel!I1166","v":0},{"$f":"[1]Personnel!J1166","v":0},{"$f":"[1]Personnel!P1166","v":0},{"$f":"[1]Personnel!Q1166","v":0},0,{"$f":"[1]Personnel!S1166","v":0},{"$f":"[1]Personnel!S1166","v":0},{"$f":"[1]Personnel!S1166","v":0},{"$f":"[1]Personnel!T1166","v":0},0,{"$f":"[1]Personnel!V1166","v":0},{"$f":"[1]Personnel!W1166","v":0},0,{"$f":"[1]Personnel!Y1166","v":0},{"$f":"[1]Personnel!Z1166","v":0},0,0,0,0,null,null,null,null,null,null,null,null,null,null,null,null,null,null,null,null,null,null,null,null,null,null,null,null,null,{"$f":"[1]Personnel!G1166","v":0}]
[0,{"$f":"IFERROR(INDEX(Settings!$AP$17:$AP$38,MATCH(Personnel!$G1167,Settings!$AQ$17:$AQ$38,0)),0)","v":0},null,null,null,{"$f":"[1]Personnel!F1167","v":0},{"$f":"IFERROR(INDEX((SLevel),MATCH(Personnel!BA1167,SLevel202223,0)),0)","v":0},{"$f":"[1]Personnel!H1167","v":0},{"$f":"[1]Personnel!I1167","v":0},{"$f":"[1]Personnel!J1167","v":0},{"$f":"[1]Personnel!P1167","v":0},{"$f":"[1]Personnel!Q1167","v":0},0,{"$f":"[1]Personnel!S1167","v":0},{"$f":"[1]Personnel!S1167","v":0},{"$f":"[1]Personnel!S1167","v":0},{"$f":"[1]Personnel!T1167","v":0},0,{"$f":"[1]Personnel!V1167","v":0},{"$f":"[1]Personnel!W1167","v":0},0,{"$f":"[1]Personnel!Y1167","v":0},{"$f":"[1]Personnel!Z1167","v":0},0,0,0,0,null,null,null,null,null,null,null,null,null,null,null,null,null,null,null,null,null,null,null,null,null,null,null,null,null,{"$f":"[1]Personnel!G1167","v":0}]
[0,{"$f":"IFERROR(INDEX(Settings!$AP$17:$AP$38,MATCH(Personnel!$G1168,Settings!$AQ$17:$AQ$38,0)),0)","v":0},null,null,null,{"$f":"[1]Personnel!F1168","v":0},{"$f":"IFERROR(INDEX((SLevel),MATCH(Personnel!BA1168,SLevel202223,0)),0)","v":0},{"$f":"[1]Personnel!H1168","v":0},{"$f":"[1]Personnel!I1168","v":0},{"$f":"[1]Personnel!J1168","v":0},{"$f":"[1]Personnel!P1168","v":0},{"$f":"[1]Personnel!Q1168","v":0},0,{"$f":"[1]Personnel!S1168","v":0},{"$f":"[1]Personnel!S1168","v":0},{"$f":"[1]Personnel!S1168","v":0},{"$f":"[1]Personnel!T1168","v":0},0,{"$f":"[1]Personnel!V1168","v":0},{"$f":"[1]Personnel!W1168","v":0},0,{"$f":"[1]Personnel!Y1168","v":0},{"$f":"[1]Personnel!Z1168","v":0},0,0,0,0,null,null,null,null,null,null,null,null,null,null,null,null,null,null,null,null,null,null,null,null,null,null,null,null,null,{"$f":"[1]Personnel!G1168","v":0}]
[0,{"$f":"IFERROR(INDEX(Settings!$AP$17:$AP$38,MATCH(Personnel!$G1169,Settings!$AQ$17:$AQ$38,0)),0)","v":0},null,null,null,{"$f":"[1]Personnel!F1169","v":0},{"$f":"IFERROR(INDEX((SLevel),MATCH(Personnel!BA1169,SLevel202223,0)),0)","v":0},{"$f":"[1]Personnel!H1169","v":0},{"$f":"[1]Personnel!I1169","v":0},{"$f":"[1]Personnel!J1169","v":0},{"$f":"[1]Personnel!P1169","v":0},{"$f":"[1]Personnel!Q1169","v":0},0,{"$f":"[1]Personnel!S1169","v":0},{"$f":"[1]Personnel!S1169","v":0},{"$f":"[1]Personnel!S1169","v":0},{"$f":"[1]Personnel!T1169","v":0},0,{"$f":"[1]Personnel!V1169","v":0},{"$f":"[1]Personnel!W1169","v":0},0,{"$f":"[1]Personnel!Y1169","v":0},{"$f":"[1]Personnel!Z1169","v":0},0,0,0,0,null,null,null,null,null,null,null,null,null,null,null,null,null,null,null,null,null,null,null,null,null,null,null,null,null,{"$f":"[1]Personnel!G1169","v":0}]
[0,{"$f":"IFERROR(INDEX(Settings!$AP$17:$AP$38,MATCH(Personnel!$G1170,Settings!$AQ$17:$AQ$38,0)),0)","v":0},null,null,null,{"$f":"[1]Personnel!F1170","v":0},{"$f":"IFERROR(INDEX((SLevel),MATCH(Personnel!BA1170,SLevel202223,0)),0)","v":0},{"$f":"[1]Personnel!H1170","v":0},{"$f":"[1]Personnel!I1170","v":0},{"$f":"[1]Personnel!J1170","v":0},{"$f":"[1]Personnel!P1170","v":0},{"$f":"[1]Personnel!Q1170","v":0},0,{"$f":"[1]Personnel!S1170","v":0},{"$f":"[1]Personnel!S1170","v":0},{"$f":"[1]Personnel!S1170","v":0},{"$f":"[1]Personnel!T1170","v":0},0,{"$f":"[1]Personnel!V1170","v":0},{"$f":"[1]Personnel!W1170","v":0},0,{"$f":"[1]Personnel!Y1170","v":0},{"$f":"[1]Personnel!Z1170","v":0},0,0,0,0,null,null,null,null,null,null,null,null,null,null,null,null,null,null,null,null,null,null,null,null,null,null,null,null,null,{"$f":"[1]Personnel!G1170","v":0}]
[0,{"$f":"IFERROR(INDEX(Settings!$AP$17:$AP$38,MATCH(Personnel!$G1171,Settings!$AQ$17:$AQ$38,0)),0)","v":0},null,null,null,{"$f":"[1]Personnel!F1171","v":0},{"$f":"IFERROR(INDEX((SLevel),MATCH(Personnel!BA1171,SLevel202223,0)),0)","v":0},{"$f":"[1]Personnel!H1171","v":0},{"$f":"[1]Personnel!I1171","v":0},{"$f":"[1]Personnel!J1171","v":0},{"$f":"[1]Personnel!P1171","v":0},{"$f":"[1]Personnel!Q1171","v":0},0,{"$f":"[1]Personnel!S1171","v":0},{"$f":"[1]Personnel!S1171","v":0},{"$f":"[1]Personnel!S1171","v":0},{"$f":"[1]Personnel!T1171","v":0},0,{"$f":"[1]Personnel!V1171","v":0},{"$f":"[1]Personnel!W1171","v":0},0,{"$f":"[1]Personnel!Y1171","v":0},{"$f":"[1]Personnel!Z1171","v":0},0,0,0,0,null,null,null,null,null,null,null,null,null,null,null,null,null,null,null,null,null,null,null,null,null,null,null,null,null,{"$f":"[1]Personnel!G1171","v":0}]
[0,{"$f":"IFERROR(INDEX(Settings!$AP$17:$AP$38,MATCH(Personnel!$G1172,Settings!$AQ$17:$AQ$38,0)),0)","v":0},null,null,null,{"$f":"[1]Personnel!F1172","v":0},{"$f":"IFERROR(INDEX((SLevel),MATCH(Personnel!BA1172,SLevel202223,0)),0)","v":0},{"$f":"[1]Personnel!H1172","v":0},{"$f":"[1]Personnel!I1172","v":0},{"$f":"[1]Personnel!J1172","v":0},{"$f":"[1]Personnel!P1172","v":0},{"$f":"[1]Personnel!Q1172","v":0},0,{"$f":"[1]Personnel!S1172","v":0},{"$f":"[1]Personnel!S1172","v":0},{"$f":"[1]Personnel!S1172","v":0},{"$f":"[1]Personnel!T1172","v":0},0,{"$f":"[1]Personnel!V1172","v":0},{"$f":"[1]Personnel!W1172","v":0},0,{"$f":"[1]Personnel!Y1172","v":0},{"$f":"[1]Personnel!Z1172","v":0},0,0,0,0,null,null,null,null,null,null,null,null,null,null,null,null,null,null,null,null,null,null,null,null,null,null,null,null,null,{"$f":"[1]Personnel!G1172","v":0}]
[0,{"$f":"IFERROR(INDEX(Settings!$AP$17:$AP$38,MATCH(Personnel!$G1173,Settings!$AQ$17:$AQ$38,0)),0)","v":0},null,null,null,{"$f":"[1]Personnel!F1173","v":0},{"$f":"IFERROR(INDEX((SLevel),MATCH(Personnel!BA1173,SLevel202223,0)),0)","v":0},{"$f":"[1]Personnel!H1173","v":0},{"$f":"[1]Personnel!I1173","v":0},{"$f":"[1]Personnel!J1173","v":0},{"$f":"[1]Personnel!P1173","v":0},{"$f":"[1]Personnel!Q1173","v":0},0,{"$f":"[1]Personnel!S1173","v":0},{"$f":"[1]Personnel!S1173","v":0},{"$f":"[1]Personnel!S1173","v":0},{"$f":"[1]Personnel!T1173","v":0},0,{"$f":"[1]Personnel!V1173","v":0},{"$f":"[1]Personnel!W1173","v":0},0,{"$f":"[1]Personnel!Y1173","v":0},{"$f":"[1]Personnel!Z1173","v":0},0,0,0,0,null,null,null,null,null,null,null,null,null,null,null,null,null,null,null,null,null,null,null,null,null,null,null,null,null,{"$f":"[1]Personnel!G1173","v":0}]
[0,{"$f":"IFERROR(INDEX(Settings!$AP$17:$AP$38,MATCH(Personnel!$G1174,Settings!$AQ$17:$AQ$38,0)),0)","v":0},null,null,null,{"$f":"[1]Personnel!F1174","v":0},{"$f":"IFERROR(INDEX((SLevel),MATCH(Personnel!BA1174,SLevel202223,0)),0)","v":0},{"$f":"[1]Personnel!H1174","v":0},{"$f":"[1]Personnel!I1174","v":0},{"$f":"[1]Personnel!J1174","v":0},{"$f":"[1]Personnel!P1174","v":0},{"$f":"[1]Personnel!Q1174","v":0},0,{"$f":"[1]Personnel!S1174","v":0},{"$f":"[1]Personnel!S1174","v":0},{"$f":"[1]Personnel!S1174","v":0},{"$f":"[1]Personnel!T1174","v":0},0,{"$f":"[1]Personnel!V1174","v":0},{"$f":"[1]Personnel!W1174","v":0},0,{"$f":"[1]Personnel!Y1174","v":0},{"$f":"[1]Personnel!Z1174","v":0},0,0,0,0,null,null,null,null,null,null,null,null,null,null,null,null,null,null,null,null,null,null,null,null,null,null,null,null,null,{"$f":"[1]Personnel!G1174","v":0}]
[0,{"$f":"IFERROR(INDEX(Settings!$AP$17:$AP$38,MATCH(Personnel!$G1175,Settings!$AQ$17:$AQ$38,0)),0)","v":0},null,null,null,{"$f":"[1]Personnel!F1175","v":0},{"$f":"IFERROR(INDEX((SLevel),MATCH(Personnel!BA1175,SLevel202223,0)),0)","v":0},{"$f":"[1]Personnel!H1175","v":0},{"$f":"[1]Personnel!I1175","v":0},{"$f":"[1]Personnel!J1175","v":0},{"$f":"[1]Personnel!P1175","v":0},{"$f":"[1]Personnel!Q1175","v":0},0,{"$f":"[1]Personnel!S1175","v":0},{"$f":"[1]Personnel!S1175","v":0},{"$f":"[1]Personnel!S1175","v":0},{"$f":"[1]Personnel!T1175","v":0},0,{"$f":"[1]Personnel!V1175","v":0},{"$f":"[1]Personnel!W1175","v":0},0,{"$f":"[1]Personnel!Y1175","v":0},{"$f":"[1]Personnel!Z1175","v":0},0,0,0,0,null,null,null,null,null,null,null,null,null,null,null,null,null,null,null,null,null,null,null,null,null,null,null,null,null,{"$f":"[1]Personnel!G1175","v":0}]
[0,{"$f":"IFERROR(INDEX(Settings!$AP$17:$AP$38,MATCH(Personnel!$G1176,Settings!$AQ$17:$AQ$38,0)),0)","v":0},null,null,null,{"$f":"[1]Personnel!F1176","v":0},{"$f":"IFERROR(INDEX((SLevel),MATCH(Personnel!BA1176,SLevel202223,0)),0)","v":0},{"$f":"[1]Personnel!H1176","v":0},{"$f":"[1]Personnel!I1176","v":0},{"$f":"[1]Personnel!J1176","v":0},{"$f":"[1]Personnel!P1176","v":0},{"$f":"[1]Personnel!Q1176","v":0},0,{"$f":"[1]Personnel!S1176","v":0},{"$f":"[1]Personnel!S1176","v":0},{"$f":"[1]Personnel!S1176","v":0},{"$f":"[1]Personnel!T1176","v":0},0,{"$f":"[1]Personnel!V1176","v":0},{"$f":"[1]Personnel!W1176","v":0},0,{"$f":"[1]Personnel!Y1176","v":0},{"$f":"[1]Personnel!Z1176","v":0},0,0,0,0,null,null,null,null,null,null,null,null,null,null,null,null,null,null,null,null,null,null,null,null,null,null,null,null,null,{"$f":"[1]Personnel!G1176","v":0}]
[0,{"$f":"IFERROR(INDEX(Settings!$AP$17:$AP$38,MATCH(Personnel!$G1177,Settings!$AQ$17:$AQ$38,0)),0)","v":0},null,null,null,{"$f":"[1]Personnel!F1177","v":0},{"$f":"IFERROR(INDEX((SLevel),MATCH(Personnel!BA1177,SLevel202223,0)),0)","v":0},{"$f":"[1]Personnel!H1177","v":0},{"$f":"[1]Personnel!I1177","v":0},{"$f":"[1]Personnel!J1177","v":0},{"$f":"[1]Personnel!P1177","v":0},{"$f":"[1]Personnel!Q1177","v":0},0,{"$f":"[1]Personnel!S1177","v":0},{"$f":"[1]Personnel!S1177","v":0},{"$f":"[1]Personnel!S1177","v":0},{"$f":"[1]Personnel!T1177","v":0},0,{"$f":"[1]Personnel!V1177","v":0},{"$f":"[1]Personnel!W1177","v":0},0,{"$f":"[1]Personnel!Y1177","v":0},{"$f":"[1]Personnel!Z1177","v":0},0,0,0,0,null,null,null,null,null,null,null,null,null,null,null,null,null,null,null,null,null,null,null,null,null,null,null,null,null,{"$f":"[1]Personnel!G1177","v":0}]
[0,{"$f":"IFERROR(INDEX(Settings!$AP$17:$AP$38,MATCH(Personnel!$G1178,Settings!$AQ$17:$AQ$38,0)),0)","v":0},null,null,null,{"$f":"[1]Personnel!F1178","v":0},{"$f":"IFERROR(INDEX((SLevel),MATCH(Personnel!BA1178,SLevel202223,0)),0)","v":0},{"$f":"[1]Personnel!H1178","v":0},{"$f":"[1]Personnel!I1178","v":0},{"$f":"[1]Personnel!J1178","v":0},{"$f":"[1]Personnel!P1178","v":0},{"$f":"[1]Personnel!Q1178","v":0},0,{"$f":"[1]Personnel!S1178","v":0},{"$f":"[1]Personnel!S1178","v":0},{"$f":"[1]Personnel!S1178","v":0},{"$f":"[1]Personnel!T1178","v":0},0,{"$f":"[1]Personnel!V1178","v":0},{"$f":"[1]Personnel!W1178","v":0},0,{"$f":"[1]Personnel!Y1178","v":0},{"$f":"[1]Personnel!Z1178","v":0},0,0,0,0,null,null,null,null,null,null,null,null,null,null,null,null,null,null,null,null,null,null,null,null,null,null,null,null,null,{"$f":"[1]Personnel!G1178","v":0}]
[0,{"$f":"IFERROR(INDEX(Settings!$AP$17:$AP$38,MATCH(Personnel!$G1179,Settings!$AQ$17:$AQ$38,0)),0)","v":0},null,null,null,{"$f":"[1]Personnel!F1179","v":0},{"$f":"IFERROR(INDEX((SLevel),MATCH(Personnel!BA1179,SLevel202223,0)),0)","v":0},{"$f":"[1]Personnel!H1179","v":0},{"$f":"[1]Personnel!I1179","v":0},{"$f":"[1]Personnel!J1179","v":0},{"$f":"[1]Personnel!P1179","v":0},{"$f":"[1]Personnel!Q1179","v":0},0,{"$f":"[1]Personnel!S1179","v":0},{"$f":"[1]Personnel!S1179","v":0},{"$f":"[1]Personnel!S1179","v":0},{"$f":"[1]Personnel!T1179","v":0},0,{"$f":"[1]Personnel!V1179","v":0},{"$f":"[1]Personnel!W1179","v":0},0,{"$f":"[1]Personnel!Y1179","v":0},{"$f":"[1]Personnel!Z1179","v":0},0,0,0,0,null,null,null,null,null,null,null,null,null,null,null,null,null,null,null,null,null,null,null,null,null,null,null,null,null,{"$f":"[1]Personnel!G1179","v":0}]
[0,{"$f":"IFERROR(INDEX(Settings!$AP$17:$AP$38,MATCH(Personnel!$G1180,Settings!$AQ$17:$AQ$38,0)),0)","v":0},null,null,null,{"$f":"[1]Personnel!F1180","v":0},{"$f":"IFERROR(INDEX((SLevel),MATCH(Personnel!BA1180,SLevel202223,0)),0)","v":0},{"$f":"[1]Personnel!H1180","v":0},{"$f":"[1]Personnel!I1180","v":0},{"$f":"[1]Personnel!J1180","v":0},{"$f":"[1]Personnel!P1180","v":0},{"$f":"[1]Personnel!Q1180","v":0},0,{"$f":"[1]Personnel!S1180","v":0},{"$f":"[1]Personnel!S1180","v":0},{"$f":"[1]Personnel!S1180","v":0},{"$f":"[1]Personnel!T1180","v":0},0,{"$f":"[1]Personnel!V1180","v":0},{"$f":"[1]Personnel!W1180","v":0},0,{"$f":"[1]Personnel!Y1180","v":0},{"$f":"[1]Personnel!Z1180","v":0},0,0,0,0,null,null,null,null,null,null,null,null,null,null,null,null,null,null,null,null,null,null,null,null,null,null,null,null,null,{"$f":"[1]Personnel!G1180","v":0}]
[0,{"$f":"IFERROR(INDEX(Settings!$AP$17:$AP$38,MATCH(Personnel!$G1181,Settings!$AQ$17:$AQ$38,0)),0)","v":0},null,null,null,{"$f":"[1]Personnel!F1181","v":0},{"$f":"IFERROR(INDEX((SLevel),MATCH(Personnel!BA1181,SLevel202223,0)),0)","v":0},{"$f":"[1]Personnel!H1181","v":0},{"$f":"[1]Personnel!I1181","v":0},{"$f":"[1]Personnel!J1181","v":0},{"$f":"[1]Personnel!P1181","v":0},{"$f":"[1]Personnel!Q1181","v":0},0,{"$f":"[1]Personnel!S1181","v":0},{"$f":"[1]Personnel!S1181","v":0},{"$f":"[1]Personnel!S1181","v":0},{"$f":"[1]Personnel!T1181","v":0},0,{"$f":"[1]Personnel!V1181","v":0},{"$f":"[1]Personnel!W1181","v":0},0,{"$f":"[1]Personnel!Y1181","v":0},{"$f":"[1]Personnel!Z1181","v":0},0,0,0,0,null,null,null,null,null,null,null,null,null,null,null,null,null,null,null,null,null,null,null,null,null,null,null,null,null,{"$f":"[1]Personnel!G1181","v":0}]
[0,{"$f":"IFERROR(INDEX(Settings!$AP$17:$AP$38,MATCH(Personnel!$G1182,Settings!$AQ$17:$AQ$38,0)),0)","v":0},null,null,null,{"$f":"[1]Personnel!F1182","v":0},{"$f":"IFERROR(INDEX((SLevel),MATCH(Personnel!BA1182,SLevel202223,0)),0)","v":0},{"$f":"[1]Personnel!H1182","v":0},{"$f":"[1]Personnel!I1182","v":0},{"$f":"[1]Personnel!J1182","v":0},{"$f":"[1]Personnel!P1182","v":0},{"$f":"[1]Personnel!Q1182","v":0},0,{"$f":"[1]Personnel!S1182","v":0},{"$f":"[1]Personnel!S1182","v":0},{"$f":"[1]Personnel!S1182","v":0},{"$f":"[1]Personnel!T1182","v":0},0,{"$f":"[1]Personnel!V1182","v":0},{"$f":"[1]Personnel!W1182","v":0},0,{"$f":"[1]Personnel!Y1182","v":0},{"$f":"[1]Personnel!Z1182","v":0},0,0,0,0,null,null,null,null,null,null,null,null,null,null,null,null,null,null,null,null,null,null,null,null,null,null,null,null,null,{"$f":"[1]Personnel!G1182","v":0}]
[0,{"$f":"IFERROR(INDEX(Settings!$AP$17:$AP$38,MATCH(Personnel!$G1183,Settings!$AQ$17:$AQ$38,0)),0)","v":0},null,null,null,{"$f":"[1]Personnel!F1183","v":0},{"$f":"IFERROR(INDEX((SLevel),MATCH(Personnel!BA1183,SLevel202223,0)),0)","v":0},{"$f":"[1]Personnel!H1183","v":0},{"$f":"[1]Personnel!I1183","v":0},{"$f":"[1]Personnel!J1183","v":0},{"$f":"[1]Personnel!P1183","v":0},{"$f":"[1]Personnel!Q1183","v":0},0,{"$f":"[1]Personnel!S1183","v":0},{"$f":"[1]Personnel!S1183","v":0},{"$f":"[1]Personnel!S1183","v":0},{"$f":"[1]Personnel!T1183","v":0},0,{"$f":"[1]Personnel!V1183","v":0},{"$f":"[1]Personnel!W1183","v":0},0,{"$f":"[1]Personnel!Y1183","v":0},{"$f":"[1]Personnel!Z1183","v":0},0,0,0,0,null,null,null,null,null,null,null,null,null,null,null,null,null,null,null,null,null,null,null,null,null,null,null,null,null,{"$f":"[1]Personnel!G1183","v":0}]
[0,{"$f":"IFERROR(INDEX(Settings!$AP$17:$AP$38,MATCH(Personnel!$G1184,Settings!$AQ$17:$AQ$38,0)),0)","v":0},null,null,null,{"$f":"[1]Personnel!F1184","v":0},{"$f":"IFERROR(INDEX((SLevel),MATCH(Personnel!BA1184,SLevel202223,0)),0)","v":0},{"$f":"[1]Personnel!H1184","v":0},{"$f":"[1]Personnel!I1184","v":0},{"$f":"[1]Personnel!J1184","v":0},{"$f":"[1]Personnel!P1184","v":0},{"$f":"[1]Personnel!Q1184","v":0},0,{"$f":"[1]Personnel!S1184","v":0},{"$f":"[1]Personnel!S1184","v":0},{"$f":"[1]Personnel!S1184","v":0},{"$f":"[1]Personnel!T1184","v":0},0,{"$f":"[1]Personnel!V1184","v":0},{"$f":"[1]Personnel!W1184","v":0},0,{"$f":"[1]Personnel!Y1184","v":0},{"$f":"[1]Personnel!Z1184","v":0},0,0,0,0,null,null,null,null,null,null,null,null,null,null,null,null,null,null,null,null,null,null,null,null,null,null,null,null,null,{"$f":"[1]Personnel!G1184","v":0}]
[0,{"$f":"IFERROR(INDEX(Settings!$AP$17:$AP$38,MATCH(Personnel!$G1185,Settings!$AQ$17:$AQ$38,0)),0)","v":0},null,null,null,{"$f":"[1]Personnel!F1185","v":0},{"$f":"IFERROR(INDEX((SLevel),MATCH(Personnel!BA1185,SLevel202223,0)),0)","v":0},{"$f":"[1]Personnel!H1185","v":0},{"$f":"[1]Personnel!I1185","v":0},{"$f":"[1]Personnel!J1185","v":0},{"$f":"[1]Personnel!P1185","v":0},{"$f":"[1]Personnel!Q1185","v":0},0,{"$f":"[1]Personnel!S1185","v":0},{"$f":"[1]Personnel!S1185","v":0},{"$f":"[1]Personnel!S1185","v":0},{"$f":"[1]Personnel!T1185","v":0},0,{"$f":"[1]Personnel!V1185","v":0},{"$f":"[1]Personnel!W1185","v":0},0,{"$f":"[1]Personnel!Y1185","v":0},{"$f":"[1]Personnel!Z1185","v":0},0,0,0,0,null,null,null,null,null,null,null,null,null,null,null,null,null,null,null,null,null,null,null,null,null,null,null,null,null,{"$f":"[1]Personnel!G1185","v":0}]
[0,{"$f":"IFERROR(INDEX(Settings!$AP$17:$AP$38,MATCH(Personnel!$G1186,Settings!$AQ$17:$AQ$38,0)),0)","v":0},null,null,null,{"$f":"[1]Personnel!F1186","v":0},{"$f":"IFERROR(INDEX((SLevel),MATCH(Personnel!BA1186,SLevel202223,0)),0)","v":0},{"$f":"[1]Personnel!H1186","v":0},{"$f":"[1]Personnel!I1186","v":0},{"$f":"[1]Personnel!J1186","v":0},{"$f":"[1]Personnel!P1186","v":0},{"$f":"[1]Personnel!Q1186","v":0},0,{"$f":"[1]Personnel!S1186","v":0},{"$f":"[1]Personnel!S1186","v":0},{"$f":"[1]Personnel!S1186","v":0},{"$f":"[1]Personnel!T1186","v":0},0,{"$f":"[1]Personnel!V1186","v":0},{"$f":"[1]Personnel!W1186","v":0},0,{"$f":"[1]Personnel!Y1186","v":0},{"$f":"[1]Personnel!Z1186","v":0},0,0,0,0,null,null,null,null,null,null,null,null,null,null,null,null,null,null,null,null,null,null,null,null,null,null,null,null,null,{"$f":"[1]Personnel!G1186","v":0}]
[0,{"$f":"IFERROR(INDEX(Settings!$AP$17:$AP$38,MATCH(Personnel!$G1187,Settings!$AQ$17:$AQ$38,0)),0)","v":0},null,null,null,{"$f":"[1]Personnel!F1187","v":0},{"$f":"IFERROR(INDEX((SLevel),MATCH(Personnel!BA1187,SLevel202223,0)),0)","v":0},{"$f":"[1]Personnel!H1187","v":0},{"$f":"[1]Personnel!I1187","v":0},{"$f":"[1]Personnel!J1187","v":0},{"$f":"[1]Personnel!P1187","v":0},{"$f":"[1]Personnel!Q1187","v":0},0,{"$f":"[1]Personnel!S1187","v":0},{"$f":"[1]Personnel!S1187","v":0},{"$f":"[1]Personnel!S1187","v":0},{"$f":"[1]Personnel!T1187","v":0},0,{"$f":"[1]Personnel!V1187","v":0},{"$f":"[1]Personnel!W1187","v":0},0,{"$f":"[1]Personnel!Y1187","v":0},{"$f":"[1]Personnel!Z1187","v":0},0,0,0,0,null,null,null,null,null,null,null,null,null,null,null,null,null,null,null,null,null,null,null,null,null,null,null,null,null,{"$f":"[1]Personnel!G1187","v":0}]
[0,{"$f":"IFERROR(INDEX(Settings!$AP$17:$AP$38,MATCH(Personnel!$G1188,Settings!$AQ$17:$AQ$38,0)),0)","v":0},null,null,null,{"$f":"[1]Personnel!F1188","v":0},{"$f":"IFERROR(INDEX((SLevel),MATCH(Personnel!BA1188,SLevel202223,0)),0)","v":0},{"$f":"[1]Personnel!H1188","v":0},{"$f":"[1]Personnel!I1188","v":0},{"$f":"[1]Personnel!J1188","v":0},{"$f":"[1]Personnel!P1188","v":0},{"$f":"[1]Personnel!Q1188","v":0},0,{"$f":"[1]Personnel!S1188","v":0},{"$f":"[1]Personnel!S1188","v":0},{"$f":"[1]Personnel!S1188","v":0},{"$f":"[1]Personnel!T1188","v":0},0,{"$f":"[1]Personnel!V1188","v":0},{"$f":"[1]Personnel!W1188","v":0},0,{"$f":"[1]Personnel!Y1188","v":0},{"$f":"[1]Personnel!Z1188","v":0},0,0,0,0,null,null,null,null,null,null,null,null,null,null,null,null,null,null,null,null,null,null,null,null,null,null,null,null,null,{"$f":"[1]Personnel!G1188","v":0}]
[0,{"$f":"IFERROR(INDEX(Settings!$AP$17:$AP$38,MATCH(Personnel!$G1189,Settings!$AQ$17:$AQ$38,0)),0)","v":0},null,null,null,{"$f":"[1]Personnel!F1189","v":0},{"$f":"IFERROR(INDEX((SLevel),MATCH(Personnel!BA1189,SLevel202223,0)),0)","v":0},{"$f":"[1]Personnel!H1189","v":0},{"$f":"[1]Personnel!I1189","v":0},{"$f":"[1]Personnel!J1189","v":0},{"$f":"[1]Personnel!P1189","v":0},{"$f":"[1]Personnel!Q1189","v":0},0,{"$f":"[1]Personnel!S1189","v":0},{"$f":"[1]Personnel!S1189","v":0},{"$f":"[1]Personnel!S1189","v":0},{"$f":"[1]Personnel!T1189","v":0},0,{"$f":"[1]Personnel!V1189","v":0},{"$f":"[1]Personnel!W1189","v":0},0,{"$f":"[1]Personnel!Y1189","v":0},{"$f":"[1]Personnel!Z1189","v":0},0,0,0,0,null,null,null,null,null,null,null,null,null,null,null,null,null,null,null,null,null,null,null,null,null,null,null,null,null,{"$f":"[1]Personnel!G1189","v":0}]
[0,{"$f":"IFERROR(INDEX(Settings!$AP$17:$AP$38,MATCH(Personnel!$G1190,Settings!$AQ$17:$AQ$38,0)),0)","v":0},null,null,null,{"$f":"[1]Personnel!F1190","v":0},{"$f":"IFERROR(INDEX((SLevel),MATCH(Personnel!BA1190,SLevel202223,0)),0)","v":0},{"$f":"[1]Personnel!H1190","v":0},{"$f":"[1]Personnel!I1190","v":0},{"$f":"[1]Personnel!J1190","v":0},{"$f":"[1]Personnel!P1190","v":0},{"$f":"[1]Personnel!Q1190","v":0},0,{"$f":"[1]Personnel!S1190","v":0},{"$f":"[1]Personnel!S1190","v":0},{"$f":"[1]Personnel!S1190","v":0},{"$f":"[1]Personnel!T1190","v":0},0,{"$f":"[1]Personnel!V1190","v":0},{"$f":"[1]Personnel!W1190","v":0},0,{"$f":"[1]Personnel!Y1190","v":0},{"$f":"[1]Personnel!Z1190","v":0},0,0,0,0,null,null,null,null,null,null,null,null,null,null,null,null,null,null,null,null,null,null,null,null,null,null,null,null,null,{"$f":"[1]Personnel!G1190","v":0}]
[0,{"$f":"IFERROR(INDEX(Settings!$AP$17:$AP$38,MATCH(Personnel!$G1191,Settings!$AQ$17:$AQ$38,0)),0)","v":0},null,null,null,{"$f":"[1]Personnel!F1191","v":0},{"$f":"IFERROR(INDEX((SLevel),MATCH(Personnel!BA1191,SLevel202223,0)),0)","v":0},{"$f":"[1]Personnel!H1191","v":0},{"$f":"[1]Personnel!I1191","v":0},{"$f":"[1]Personnel!J1191","v":0},{"$f":"[1]Personnel!P1191","v":0},{"$f":"[1]Personnel!Q1191","v":0},0,{"$f":"[1]Personnel!S1191","v":0},{"$f":"[1]Personnel!S1191","v":0},{"$f":"[1]Personnel!S1191","v":0},{"$f":"[1]Personnel!T1191","v":0},0,{"$f":"[1]Personnel!V1191","v":0},{"$f":"[1]Personnel!W1191","v":0},0,{"$f":"[1]Personnel!Y1191","v":0},{"$f":"[1]Personnel!Z1191","v":0},0,0,0,0,null,null,null,null,null,null,null,null,null,null,null,null,null,null,null,null,null,null,null,null,null,null,null,null,null,{"$f":"[1]Personnel!G1191","v":0}]
[0,{"$f":"IFERROR(INDEX(Settings!$AP$17:$AP$38,MATCH(Personnel!$G1192,Settings!$AQ$17:$AQ$38,0)),0)","v":0},null,null,null,{"$f":"[1]Personnel!F1192","v":0},{"$f":"IFERROR(INDEX((SLevel),MATCH(Personnel!BA1192,SLevel202223,0)),0)","v":0},{"$f":"[1]Personnel!H1192","v":0},{"$f":"[1]Personnel!I1192","v":0},{"$f":"[1]Personnel!J1192","v":0},{"$f":"[1]Personnel!P1192","v":0},{"$f":"[1]Personnel!Q1192","v":0},0,{"$f":"[1]Personnel!S1192","v":0},{"$f":"[1]Personnel!S1192","v":0},{"$f":"[1]Personnel!S1192","v":0},{"$f":"[1]Personnel!T1192","v":0},0,{"$f":"[1]Personnel!V1192","v":0},{"$f":"[1]Personnel!W1192","v":0},0,{"$f":"[1]Personnel!Y1192","v":0},{"$f":"[1]Personnel!Z1192","v":0},0,0,0,0,null,null,null,null,null,null,null,null,null,null,null,null,null,null,null,null,null,null,null,null,null,null,null,null,null,{"$f":"[1]Personnel!G1192","v":0}]
[0,{"$f":"IFERROR(INDEX(Settings!$AP$17:$AP$38,MATCH(Personnel!$G1193,Settings!$AQ$17:$AQ$38,0)),0)","v":0},null,null,null,{"$f":"[1]Personnel!F1193","v":0},{"$f":"IFERROR(INDEX((SLevel),MATCH(Personnel!BA1193,SLevel202223,0)),0)","v":0},{"$f":"[1]Personnel!H1193","v":0},{"$f":"[1]Personnel!I1193","v":0},{"$f":"[1]Personnel!J1193","v":0},{"$f":"[1]Personnel!P1193","v":0},{"$f":"[1]Personnel!Q1193","v":0},0,{"$f":"[1]Personnel!S1193","v":0},{"$f":"[1]Personnel!S1193","v":0},{"$f":"[1]Personnel!S1193","v":0},{"$f":"[1]Personnel!T1193","v":0},0,{"$f":"[1]Personnel!V1193","v":0},{"$f":"[1]Personnel!W1193","v":0},0,{"$f":"[1]Personnel!Y1193","v":0},{"$f":"[1]Personnel!Z1193","v":0},0,0,0,0,null,null,null,null,null,null,null,null,null,null,null,null,null,null,null,null,null,null,null,null,null,null,null,null,null,{"$f":"[1]Personnel!G1193","v":0}]
[0,{"$f":"IFERROR(INDEX(Settings!$AP$17:$AP$38,MATCH(Personnel!$G1194,Settings!$AQ$17:$AQ$38,0)),0)","v":0},null,null,null,{"$f":"[1]Personnel!F1194","v":0},{"$f":"IFERROR(INDEX((SLevel),MATCH(Personnel!BA1194,SLevel202223,0)),0)","v":0},{"$f":"[1]Personnel!H1194","v":0},{"$f":"[1]Personnel!I1194","v":0},{"$f":"[1]Personnel!J1194","v":0},{"$f":"[1]Personnel!P1194","v":0},{"$f":"[1]Personnel!Q1194","v":0},0,{"$f":"[1]Personnel!S1194","v":0},{"$f":"[1]Personnel!S1194","v":0},{"$f":"[1]Personnel!S1194","v":0},{"$f":"[1]Personnel!T1194","v":0},0,{"$f":"[1]Personnel!V1194","v":0},{"$f":"[1]Personnel!W1194","v":0},0,{"$f":"[1]Personnel!Y1194","v":0},{"$f":"[1]Personnel!Z1194","v":0},0,0,0,0,null,null,null,null,null,null,null,null,null,null,null,null,null,null,null,null,null,null,null,null,null,null,null,null,null,{"$f":"[1]Personnel!G1194","v":0}]
[0,{"$f":"IFERROR(INDEX(Settings!$AP$17:$AP$38,MATCH(Personnel!$G1195,Settings!$AQ$17:$AQ$38,0)),0)","v":0},null,null,null,{"$f":"[1]Personnel!F1195","v":0},{"$f":"IFERROR(INDEX((SLevel),MATCH(Personnel!BA1195,SLevel202223,0)),0)","v":0},{"$f":"[1]Personnel!H1195","v":0},{"$f":"[1]Personnel!I1195","v":0},{"$f":"[1]Personnel!J1195","v":0},{"$f":"[1]Personnel!P1195","v":0},{"$f":"[1]Personnel!Q1195","v":0},0,{"$f":"[1]Personnel!S1195","v":0},{"$f":"[1]Personnel!S1195","v":0},{"$f":"[1]Personnel!S1195","v":0},{"$f":"[1]Personnel!T1195","v":0},0,{"$f":"[1]Personnel!V1195","v":0},{"$f":"[1]Personnel!W1195","v":0},0,{"$f":"[1]Personnel!Y1195","v":0},{"$f":"[1]Personnel!Z1195","v":0},0,0,0,0,null,null,null,null,null,null,null,null,null,null,null,null,null,null,null,null,null,null,null,null,null,null,null,null,null,{"$f":"[1]Personnel!G1195","v":0}]
[0,{"$f":"IFERROR(INDEX(Settings!$AP$17:$AP$38,MATCH(Personnel!$G1196,Settings!$AQ$17:$AQ$38,0)),0)","v":0},null,null,null,{"$f":"[1]Personnel!F1196","v":0},{"$f":"IFERROR(INDEX((SLevel),MATCH(Personnel!BA1196,SLevel202223,0)),0)","v":0},{"$f":"[1]Personnel!H1196","v":0},{"$f":"[1]Personnel!I1196","v":0},{"$f":"[1]Personnel!J1196","v":0},{"$f":"[1]Personnel!P1196","v":0},{"$f":"[1]Personnel!Q1196","v":0},0,{"$f":"[1]Personnel!S1196","v":0},{"$f":"[1]Personnel!S1196","v":0},{"$f":"[1]Personnel!S1196","v":0},{"$f":"[1]Personnel!T1196","v":0},0,{"$f":"[1]Personnel!V1196","v":0},{"$f":"[1]Personnel!W1196","v":0},0,{"$f":"[1]Personnel!Y1196","v":0},{"$f":"[1]Personnel!Z1196","v":0},0,0,0,0,null,null,null,null,null,null,null,null,null,null,null,null,null,null,null,null,null,null,null,null,null,null,null,null,null,{"$f":"[1]Personnel!G1196","v":0}]
[0,{"$f":"IFERROR(INDEX(Settings!$AP$17:$AP$38,MATCH(Personnel!$G1197,Settings!$AQ$17:$AQ$38,0)),0)","v":0},null,null,null,{"$f":"[1]Personnel!F1197","v":0},{"$f":"IFERROR(INDEX((SLevel),MATCH(Personnel!BA1197,SLevel202223,0)),0)","v":0},{"$f":"[1]Personnel!H1197","v":0},{"$f":"[1]Personnel!I1197","v":0},{"$f":"[1]Personnel!J1197","v":0},{"$f":"[1]Personnel!P1197","v":0},{"$f":"[1]Personnel!Q1197","v":0},0,{"$f":"[1]Personnel!S1197","v":0},{"$f":"[1]Personnel!S1197","v":0},{"$f":"[1]Personnel!S1197","v":0},{"$f":"[1]Personnel!T1197","v":0},0,{"$f":"[1]Personnel!V1197","v":0},{"$f":"[1]Personnel!W1197","v":0},0,{"$f":"[1]Personnel!Y1197","v":0},{"$f":"[1]Personnel!Z1197","v":0},0,0,0,0,null,null,null,null,null,null,null,null,null,null,null,null,null,null,null,null,null,null,null,null,null,null,null,null,null,{"$f":"[1]Personnel!G1197","v":0}]
[0,{"$f":"IFERROR(INDEX(Settings!$AP$17:$AP$38,MATCH(Personnel!$G1198,Settings!$AQ$17:$AQ$38,0)),0)","v":0},null,null,null,{"$f":"[1]Personnel!F1198","v":0},{"$f":"IFERROR(INDEX((SLevel),MATCH(Personnel!BA1198,SLevel202223,0)),0)","v":0},{"$f":"[1]Personnel!H1198","v":0},{"$f":"[1]Personnel!I1198","v":0},{"$f":"[1]Personnel!J1198","v":0},{"$f":"[1]Personnel!P1198","v":0},{"$f":"[1]Personnel!Q1198","v":0},0,{"$f":"[1]Personnel!S1198","v":0},{"$f":"[1]Personnel!S1198","v":0},{"$f":"[1]Personnel!S1198","v":0},{"$f":"[1]Personnel!T1198","v":0},0,{"$f":"[1]Personnel!V1198","v":0},{"$f":"[1]Personnel!W1198","v":0},0,{"$f":"[1]Personnel!Y1198","v":0},{"$f":"[1]Personnel!Z1198","v":0},0,0,0,0,null,null,null,null,null,null,null,null,null,null,null,null,null,null,null,null,null,null,null,null,null,null,null,null,null,{"$f":"[1]Personnel!G1198","v":0}]
[0,{"$f":"IFERROR(INDEX(Settings!$AP$17:$AP$38,MATCH(Personnel!$G1199,Settings!$AQ$17:$AQ$38,0)),0)","v":0},null,null,null,{"$f":"[1]Personnel!F1199","v":0},{"$f":"IFERROR(INDEX((SLevel),MATCH(Personnel!BA1199,SLevel202223,0)),0)","v":0},{"$f":"[1]Personnel!H1199","v":0},{"$f":"[1]Personnel!I1199","v":0},{"$f":"[1]Personnel!J1199","v":0},{"$f":"[1]Personnel!P1199","v":0},{"$f":"[1]Personnel!Q1199","v":0},0,{"$f":"[1]Personnel!S1199","v":0},{"$f":"[1]Personnel!S1199","v":0},{"$f":"[1]Personnel!S1199","v":0},{"$f":"[1]Personnel!T1199","v":0},0,{"$f":"[1]Personnel!V1199","v":0},{"$f":"[1]Personnel!W1199","v":0},0,{"$f":"[1]Personnel!Y1199","v":0},{"$f":"[1]Personnel!Z1199","v":0},0,0,0,0,null,null,null,null,null,null,null,null,null,null,null,null,null,null,null,null,null,null,null,null,null,null,null,null,null,{"$f":"[1]Personnel!G1199","v":0}]
[0,{"$f":"IFERROR(INDEX(Settings!$AP$17:$AP$38,MATCH(Personnel!$G1200,Settings!$AQ$17:$AQ$38,0)),0)","v":0},null,null,null,{"$f":"[1]Personnel!F1200","v":0},{"$f":"IFERROR(INDEX((SLevel),MATCH(Personnel!BA1200,SLevel202223,0)),0)","v":0},{"$f":"[1]Personnel!H1200","v":0},{"$f":"[1]Personnel!I1200","v":0},{"$f":"[1]Personnel!J1200","v":0},{"$f":"[1]Personnel!P1200","v":0},{"$f":"[1]Personnel!Q1200","v":0},0,{"$f":"[1]Personnel!S1200","v":0},{"$f":"[1]Personnel!S1200","v":0},{"$f":"[1]Personnel!S1200","v":0},{"$f":"[1]Personnel!T1200","v":0},0,{"$f":"[1]Personnel!V1200","v":0},{"$f":"[1]Personnel!W1200","v":0},0,{"$f":"[1]Personnel!Y1200","v":0},{"$f":"[1]Personnel!Z1200","v":0},0,0,0,0,null,null,null,null,null,null,null,null,null,null,null,null,null,null,null,null,null,null,null,null,null,null,null,null,null,{"$f":"[1]Personnel!G1200","v":0}]
[0,{"$f":"IFERROR(INDEX(Settings!$AP$17:$AP$38,MATCH(Personnel!$G1201,Settings!$AQ$17:$AQ$38,0)),0)","v":0},null,null,null,{"$f":"[1]Personnel!F1201","v":0},{"$f":"IFERROR(INDEX((SLevel),MATCH(Personnel!BA1201,SLevel202223,0)),0)","v":0},{"$f":"[1]Personnel!H1201","v":0},{"$f":"[1]Personnel!I1201","v":0},{"$f":"[1]Personnel!J1201","v":0},{"$f":"[1]Personnel!P1201","v":0},{"$f":"[1]Personnel!Q1201","v":0},0,{"$f":"[1]Personnel!S1201","v":0},{"$f":"[1]Personnel!S1201","v":0},{"$f":"[1]Personnel!S1201","v":0},{"$f":"[1]Personnel!T1201","v":0},0,{"$f":"[1]Personnel!V1201","v":0},{"$f":"[1]Personnel!W1201","v":0},0,{"$f":"[1]Personnel!Y1201","v":0},{"$f":"[1]Personnel!Z1201","v":0},0,0,0,0,null,null,null,null,null,null,null,null,null,null,null,null,null,null,null,null,null,null,null,null,null,null,null,null,null,{"$f":"[1]Personnel!G1201","v":0}]
[0,{"$f":"IFERROR(INDEX(Settings!$AP$17:$AP$38,MATCH(Personnel!$G1202,Settings!$AQ$17:$AQ$38,0)),0)","v":0},null,null,null,{"$f":"[1]Personnel!F1202","v":0},{"$f":"IFERROR(INDEX((SLevel),MATCH(Personnel!BA1202,SLevel202223,0)),0)","v":0},{"$f":"[1]Personnel!H1202","v":0},{"$f":"[1]Personnel!I1202","v":0},{"$f":"[1]Personnel!J1202","v":0},{"$f":"[1]Personnel!P1202","v":0},{"$f":"[1]Personnel!Q1202","v":0},0,{"$f":"[1]Personnel!S1202","v":0},{"$f":"[1]Personnel!S1202","v":0},{"$f":"[1]Personnel!S1202","v":0},{"$f":"[1]Personnel!T1202","v":0},0,{"$f":"[1]Personnel!V1202","v":0},{"$f":"[1]Personnel!W1202","v":0},0,{"$f":"[1]Personnel!Y1202","v":0},{"$f":"[1]Personnel!Z1202","v":0},0,0,0,0,null,null,null,null,null,null,null,null,null,null,null,null,null,null,null,null,null,null,null,null,null,null,null,null,null,{"$f":"[1]Personnel!G1202","v":0}]
[0,{"$f":"IFERROR(INDEX(Settings!$AP$17:$AP$38,MATCH(Personnel!$G1203,Settings!$AQ$17:$AQ$38,0)),0)","v":0},null,null,null,{"$f":"[1]Personnel!F1203","v":0},{"$f":"IFERROR(INDEX((SLevel),MATCH(Personnel!BA1203,SLevel202223,0)),0)","v":0},{"$f":"[1]Personnel!H1203","v":0},{"$f":"[1]Personnel!I1203","v":0},{"$f":"[1]Personnel!J1203","v":0},{"$f":"[1]Personnel!P1203","v":0},{"$f":"[1]Personnel!Q1203","v":0},0,{"$f":"[1]Personnel!S1203","v":0},{"$f":"[1]Personnel!S1203","v":0},{"$f":"[1]Personnel!S1203","v":0},{"$f":"[1]Personnel!T1203","v":0},0,{"$f":"[1]Personnel!V1203","v":0},{"$f":"[1]Personnel!W1203","v":0},0,{"$f":"[1]Personnel!Y1203","v":0},{"$f":"[1]Personnel!Z1203","v":0},0,0,0,0,null,null,null,null,null,null,null,null,null,null,null,null,null,null,null,null,null,null,null,null,null,null,null,null,null,{"$f":"[1]Personnel!G1203","v":0}]
[0,{"$f":"IFERROR(INDEX(Settings!$AP$17:$AP$38,MATCH(Personnel!$G1204,Settings!$AQ$17:$AQ$38,0)),0)","v":0},null,null,null,{"$f":"[1]Personnel!F1204","v":0},{"$f":"IFERROR(INDEX((SLevel),MATCH(Personnel!BA1204,SLevel202223,0)),0)","v":0},{"$f":"[1]Personnel!H1204","v":0},{"$f":"[1]Personnel!I1204","v":0},{"$f":"[1]Personnel!J1204","v":0},{"$f":"[1]Personnel!P1204","v":0},{"$f":"[1]Personnel!Q1204","v":0},0,{"$f":"[1]Personnel!S1204","v":0},{"$f":"[1]Personnel!S1204","v":0},{"$f":"[1]Personnel!S1204","v":0},{"$f":"[1]Personnel!T1204","v":0},0,{"$f":"[1]Personnel!V1204","v":0},{"$f":"[1]Personnel!W1204","v":0},0,{"$f":"[1]Personnel!Y1204","v":0},{"$f":"[1]Personnel!Z1204","v":0},0,0,0,0,null,null,null,null,null,null,null,null,null,null,null,null,null,null,null,null,null,null,null,null,null,null,null,null,null,{"$f":"[1]Personnel!G1204","v":0}]
[0,{"$f":"IFERROR(INDEX(Settings!$AP$17:$AP$38,MATCH(Personnel!$G1205,Settings!$AQ$17:$AQ$38,0)),0)","v":0},null,null,null,{"$f":"[1]Personnel!F1205","v":0},{"$f":"IFERROR(INDEX((SLevel),MATCH(Personnel!BA1205,SLevel202223,0)),0)","v":0},{"$f":"[1]Personnel!H1205","v":0},{"$f":"[1]Personnel!I1205","v":0},{"$f":"[1]Personnel!J1205","v":0},{"$f":"[1]Personnel!P1205","v":0},{"$f":"[1]Personnel!Q1205","v":0},0,{"$f":"[1]Personnel!S1205","v":0},{"$f":"[1]Personnel!S1205","v":0},{"$f":"[1]Personnel!S1205","v":0},{"$f":"[1]Personnel!T1205","v":0},0,{"$f":"[1]Personnel!V1205","v":0},{"$f":"[1]Personnel!W1205","v":0},0,{"$f":"[1]Personnel!Y1205","v":0},{"$f":"[1]Personnel!Z1205","v":0},0,0,0,0,null,null,null,null,null,null,null,null,null,null,null,null,null,null,null,null,null,null,null,null,null,null,null,null,null,{"$f":"[1]Personnel!G1205","v":0}]
[0,{"$f":"IFERROR(INDEX(Settings!$AP$17:$AP$38,MATCH(Personnel!$G1206,Settings!$AQ$17:$AQ$38,0)),0)","v":0},null,null,null,{"$f":"[1]Personnel!F1206","v":0},{"$f":"IFERROR(INDEX((SLevel),MATCH(Personnel!BA1206,SLevel202223,0)),0)","v":0},{"$f":"[1]Personnel!H1206","v":0},{"$f":"[1]Personnel!I1206","v":0},{"$f":"[1]Personnel!J1206","v":0},{"$f":"[1]Personnel!P1206","v":0},{"$f":"[1]Personnel!Q1206","v":0},0,{"$f":"[1]Personnel!S1206","v":0},{"$f":"[1]Personnel!S1206","v":0},{"$f":"[1]Personnel!S1206","v":0},{"$f":"[1]Personnel!T1206","v":0},0,{"$f":"[1]Personnel!V1206","v":0},{"$f":"[1]Personnel!W1206","v":0},0,{"$f":"[1]Personnel!Y1206","v":0},{"$f":"[1]Personnel!Z1206","v":0},0,0,0,0,null,null,null,null,null,null,null,null,null,null,null,null,null,null,null,null,null,null,null,null,null,null,null,null,null,{"$f":"[1]Personnel!G1206","v":0}]
[0,{"$f":"IFERROR(INDEX(Settings!$AP$17:$AP$38,MATCH(Personnel!$G1207,Settings!$AQ$17:$AQ$38,0)),0)","v":0},null,null,null,{"$f":"[1]Personnel!F1207","v":0},{"$f":"IFERROR(INDEX((SLevel),MATCH(Personnel!BA1207,SLevel202223,0)),0)","v":0},{"$f":"[1]Personnel!H1207","v":0},{"$f":"[1]Personnel!I1207","v":0},{"$f":"[1]Personnel!J1207","v":0},{"$f":"[1]Personnel!P1207","v":0},{"$f":"[1]Personnel!Q1207","v":0},0,{"$f":"[1]Personnel!S1207","v":0},{"$f":"[1]Personnel!S1207","v":0},{"$f":"[1]Personnel!S1207","v":0},{"$f":"[1]Personnel!T1207","v":0},0,{"$f":"[1]Personnel!V1207","v":0},{"$f":"[1]Personnel!W1207","v":0},0,{"$f":"[1]Personnel!Y1207","v":0},{"$f":"[1]Personnel!Z1207","v":0},0,0,0,0,null,null,null,null,null,null,null,null,null,null,null,null,null,null,null,null,null,null,null,null,null,null,null,null,null,{"$f":"[1]Personnel!G1207","v":0}]
[0,{"$f":"IFERROR(INDEX(Settings!$AP$17:$AP$38,MATCH(Personnel!$G1208,Settings!$AQ$17:$AQ$38,0)),0)","v":0},null,null,null,{"$f":"[1]Personnel!F1208","v":0},{"$f":"IFERROR(INDEX((SLevel),MATCH(Personnel!BA1208,SLevel202223,0)),0)","v":0},{"$f":"[1]Personnel!H1208","v":0},{"$f":"[1]Personnel!I1208","v":0},{"$f":"[1]Personnel!J1208","v":0},{"$f":"[1]Personnel!P1208","v":0},{"$f":"[1]Personnel!Q1208","v":0},0,{"$f":"[1]Personnel!S1208","v":0},{"$f":"[1]Personnel!S1208","v":0},{"$f":"[1]Personnel!S1208","v":0},{"$f":"[1]Personnel!T1208","v":0},0,{"$f":"[1]Personnel!V1208","v":0},{"$f":"[1]Personnel!W1208","v":0},0,{"$f":"[1]Personnel!Y1208","v":0},{"$f":"[1]Personnel!Z1208","v":0},0,0,0,0,null,null,null,null,null,null,null,null,null,null,null,null,null,null,null,null,null,null,null,null,null,null,null,null,null,{"$f":"[1]Personnel!G1208","v":0}]
[0,{"$f":"IFERROR(INDEX(Settings!$AP$17:$AP$38,MATCH(Personnel!$G1209,Settings!$AQ$17:$AQ$38,0)),0)","v":0},null,null,null,{"$f":"[1]Personnel!F1209","v":0},{"$f":"IFERROR(INDEX((SLevel),MATCH(Personnel!BA1209,SLevel202223,0)),0)","v":0},{"$f":"[1]Personnel!H1209","v":0},{"$f":"[1]Personnel!I1209","v":0},{"$f":"[1]Personnel!J1209","v":0},{"$f":"[1]Personnel!P1209","v":0},{"$f":"[1]Personnel!Q1209","v":0},0,{"$f":"[1]Personnel!S1209","v":0},{"$f":"[1]Personnel!S1209","v":0},{"$f":"[1]Personnel!S1209","v":0},{"$f":"[1]Personnel!T1209","v":0},0,{"$f":"[1]Personnel!V1209","v":0},{"$f":"[1]Personnel!W1209","v":0},0,{"$f":"[1]Personnel!Y1209","v":0},{"$f":"[1]Personnel!Z1209","v":0},0,0,0,0,null,null,null,null,null,null,null,null,null,null,null,null,null,null,null,null,null,null,null,null,null,null,null,null,null,{"$f":"[1]Personnel!G1209","v":0}]
[0,{"$f":"IFERROR(INDEX(Settings!$AP$17:$AP$38,MATCH(Personnel!$G1210,Settings!$AQ$17:$AQ$38,0)),0)","v":0},null,null,null,{"$f":"[1]Personnel!F1210","v":0},{"$f":"IFERROR(INDEX((SLevel),MATCH(Personnel!BA1210,SLevel202223,0)),0)","v":0},{"$f":"[1]Personnel!H1210","v":0},{"$f":"[1]Personnel!I1210","v":0},{"$f":"[1]Personnel!J1210","v":0},{"$f":"[1]Personnel!P1210","v":0},{"$f":"[1]Personnel!Q1210","v":0},0,{"$f":"[1]Personnel!S1210","v":0},{"$f":"[1]Personnel!S1210","v":0},{"$f":"[1]Personnel!S1210","v":0},{"$f":"[1]Personnel!T1210","v":0},0,{"$f":"[1]Personnel!V1210","v":0},{"$f":"[1]Personnel!W1210","v":0},0,{"$f":"[1]Personnel!Y1210","v":0},{"$f":"[1]Personnel!Z1210","v":0},0,0,0,0,null,null,null,null,null,null,null,null,null,null,null,null,null,null,null,null,null,null,null,null,null,null,null,null,null,{"$f":"[1]Personnel!G1210","v":0}]
[0,{"$f":"IFERROR(INDEX(Settings!$AP$17:$AP$38,MATCH(Personnel!$G1211,Settings!$AQ$17:$AQ$38,0)),0)","v":0},null,null,null,{"$f":"[1]Personnel!F1211","v":0},{"$f":"IFERROR(INDEX((SLevel),MATCH(Personnel!BA1211,SLevel202223,0)),0)","v":0},{"$f":"[1]Personnel!H1211","v":0},{"$f":"[1]Personnel!I1211","v":0},{"$f":"[1]Personnel!J1211","v":0},{"$f":"[1]Personnel!P1211","v":0},{"$f":"[1]Personnel!Q1211","v":0},0,{"$f":"[1]Personnel!S1211","v":0},{"$f":"[1]Personnel!S1211","v":0},{"$f":"[1]Personnel!S1211","v":0},{"$f":"[1]Personnel!T1211","v":0},0,{"$f":"[1]Personnel!V1211","v":0},{"$f":"[1]Personnel!W1211","v":0},0,{"$f":"[1]Personnel!Y1211","v":0},{"$f":"[1]Personnel!Z1211","v":0},0,0,0,0,null,null,null,null,null,null,null,null,null,null,null,null,null,null,null,null,null,null,null,null,null,null,null,null,null,{"$f":"[1]Personnel!G1211","v":0}]
[0,{"$f":"IFERROR(INDEX(Settings!$AP$17:$AP$38,MATCH(Personnel!$G1212,Settings!$AQ$17:$AQ$38,0)),0)","v":0},null,null,null,{"$f":"[1]Personnel!F1212","v":0},{"$f":"IFERROR(INDEX((SLevel),MATCH(Personnel!BA1212,SLevel202223,0)),0)","v":0},{"$f":"[1]Personnel!H1212","v":0},{"$f":"[1]Personnel!I1212","v":0},{"$f":"[1]Personnel!J1212","v":0},{"$f":"[1]Personnel!P1212","v":0},{"$f":"[1]Personnel!Q1212","v":0},0,{"$f":"[1]Personnel!S1212","v":0},{"$f":"[1]Personnel!S1212","v":0},{"$f":"[1]Personnel!S1212","v":0},{"$f":"[1]Personnel!T1212","v":0},0,{"$f":"[1]Personnel!V1212","v":0},{"$f":"[1]Personnel!W1212","v":0},0,{"$f":"[1]Personnel!Y1212","v":0},{"$f":"[1]Personnel!Z1212","v":0},0,0,0,0,null,null,null,null,null,null,null,null,null,null,null,null,null,null,null,null,null,null,null,null,null,null,null,null,null,{"$f":"[1]Personnel!G1212","v":0}]
[0,{"$f":"IFERROR(INDEX(Settings!$AP$17:$AP$38,MATCH(Personnel!$G1213,Settings!$AQ$17:$AQ$38,0)),0)","v":0},null,null,null,{"$f":"[1]Personnel!F1213","v":0},{"$f":"IFERROR(INDEX((SLevel),MATCH(Personnel!BA1213,SLevel202223,0)),0)","v":0},{"$f":"[1]Personnel!H1213","v":0},{"$f":"[1]Personnel!I1213","v":0},{"$f":"[1]Personnel!J1213","v":0},{"$f":"[1]Personnel!P1213","v":0},{"$f":"[1]Personnel!Q1213","v":0},0,{"$f":"[1]Personnel!S1213","v":0},{"$f":"[1]Personnel!S1213","v":0},{"$f":"[1]Personnel!S1213","v":0},{"$f":"[1]Personnel!T1213","v":0},0,{"$f":"[1]Personnel!V1213","v":0},{"$f":"[1]Personnel!W1213","v":0},0,{"$f":"[1]Personnel!Y1213","v":0},{"$f":"[1]Personnel!Z1213","v":0},0,0,0,0,null,null,null,null,null,null,null,null,null,null,null,null,null,null,null,null,null,null,null,null,null,null,null,null,null,{"$f":"[1]Personnel!G1213","v":0}]
[0,{"$f":"IFERROR(INDEX(Settings!$AP$17:$AP$38,MATCH(Personnel!$G1214,Settings!$AQ$17:$AQ$38,0)),0)","v":0},null,null,null,{"$f":"[1]Personnel!F1214","v":0},{"$f":"IFERROR(INDEX((SLevel),MATCH(Personnel!BA1214,SLevel202223,0)),0)","v":0},{"$f":"[1]Personnel!H1214","v":0},{"$f":"[1]Personnel!I1214","v":0},{"$f":"[1]Personnel!J1214","v":0},{"$f":"[1]Personnel!P1214","v":0},{"$f":"[1]Personnel!Q1214","v":0},0,{"$f":"[1]Personnel!S1214","v":0},{"$f":"[1]Personnel!S1214","v":0},{"$f":"[1]Personnel!S1214","v":0},{"$f":"[1]Personnel!T1214","v":0},0,{"$f":"[1]Personnel!V1214","v":0},{"$f":"[1]Personnel!W1214","v":0},0,{"$f":"[1]Personnel!Y1214","v":0},{"$f":"[1]Personnel!Z1214","v":0},0,0,0,0,null,null,null,null,null,null,null,null,null,null,null,null,null,null,null,null,null,null,null,null,null,null,null,null,null,{"$f":"[1]Personnel!G1214","v":0}]
[0,{"$f":"IFERROR(INDEX(Settings!$AP$17:$AP$38,MATCH(Personnel!$G1215,Settings!$AQ$17:$AQ$38,0)),0)","v":0},null,null,null,{"$f":"[1]Personnel!F1215","v":0},{"$f":"IFERROR(INDEX((SLevel),MATCH(Personnel!BA1215,SLevel202223,0)),0)","v":0},{"$f":"[1]Personnel!H1215","v":0},{"$f":"[1]Personnel!I1215","v":0},{"$f":"[1]Personnel!J1215","v":0},{"$f":"[1]Personnel!P1215","v":0},{"$f":"[1]Personnel!Q1215","v":0},0,{"$f":"[1]Personnel!S1215","v":0},{"$f":"[1]Personnel!S1215","v":0},{"$f":"[1]Personnel!S1215","v":0},{"$f":"[1]Personnel!T1215","v":0},0,{"$f":"[1]Personnel!V1215","v":0},{"$f":"[1]Personnel!W1215","v":0},0,{"$f":"[1]Personnel!Y1215","v":0},{"$f":"[1]Personnel!Z1215","v":0},0,0,0,0,null,null,null,null,null,null,null,null,null,null,null,null,null,null,null,null,null,null,null,null,null,null,null,null,null,{"$f":"[1]Personnel!G1215","v":0}]
[0,{"$f":"IFERROR(INDEX(Settings!$AP$17:$AP$38,MATCH(Personnel!$G1216,Settings!$AQ$17:$AQ$38,0)),0)","v":0},null,null,null,{"$f":"[1]Personnel!F1216","v":0},{"$f":"IFERROR(INDEX((SLevel),MATCH(Personnel!BA1216,SLevel202223,0)),0)","v":0},{"$f":"[1]Personnel!H1216","v":0},{"$f":"[1]Personnel!I1216","v":0},{"$f":"[1]Personnel!J1216","v":0},{"$f":"[1]Personnel!P1216","v":0},{"$f":"[1]Personnel!Q1216","v":0},0,{"$f":"[1]Personnel!S1216","v":0},{"$f":"[1]Personnel!S1216","v":0},{"$f":"[1]Personnel!S1216","v":0},{"$f":"[1]Personnel!T1216","v":0},0,{"$f":"[1]Personnel!V1216","v":0},{"$f":"[1]Personnel!W1216","v":0},0,{"$f":"[1]Personnel!Y1216","v":0},{"$f":"[1]Personnel!Z1216","v":0},0,0,0,0,null,null,null,null,null,null,null,null,null,null,null,null,null,null,null,null,null,null,null,null,null,null,null,null,null,{"$f":"[1]Personnel!G1216","v":0}]
[0,{"$f":"IFERROR(INDEX(Settings!$AP$17:$AP$38,MATCH(Personnel!$G1217,Settings!$AQ$17:$AQ$38,0)),0)","v":0},null,null,null,{"$f":"[1]Personnel!F1217","v":0},{"$f":"IFERROR(INDEX((SLevel),MATCH(Personnel!BA1217,SLevel202223,0)),0)","v":0},{"$f":"[1]Personnel!H1217","v":0},{"$f":"[1]Personnel!I1217","v":0},{"$f":"[1]Personnel!J1217","v":0},{"$f":"[1]Personnel!P1217","v":0},{"$f":"[1]Personnel!Q1217","v":0},0,{"$f":"[1]Personnel!S1217","v":0},{"$f":"[1]Personnel!S1217","v":0},{"$f":"[1]Personnel!S1217","v":0},{"$f":"[1]Personnel!T1217","v":0},0,{"$f":"[1]Personnel!V1217","v":0},{"$f":"[1]Personnel!W1217","v":0},0,{"$f":"[1]Personnel!Y1217","v":0},{"$f":"[1]Personnel!Z1217","v":0},0,0,0,0,null,null,null,null,null,null,null,null,null,null,null,null,null,null,null,null,null,null,null,null,null,null,null,null,null,{"$f":"[1]Personnel!G1217","v":0}]
[0,{"$f":"IFERROR(INDEX(Settings!$AP$17:$AP$38,MATCH(Personnel!$G1218,Settings!$AQ$17:$AQ$38,0)),0)","v":0},null,null,null,{"$f":"[1]Personnel!F1218","v":0},{"$f":"IFERROR(INDEX((SLevel),MATCH(Personnel!BA1218,SLevel202223,0)),0)","v":0},{"$f":"[1]Personnel!H1218","v":0},{"$f":"[1]Personnel!I1218","v":0},{"$f":"[1]Personnel!J1218","v":0},{"$f":"[1]Personnel!P1218","v":0},{"$f":"[1]Personnel!Q1218","v":0},0,{"$f":"[1]Personnel!S1218","v":0},{"$f":"[1]Personnel!S1218","v":0},{"$f":"[1]Personnel!S1218","v":0},{"$f":"[1]Personnel!T1218","v":0},0,{"$f":"[1]Personnel!V1218","v":0},{"$f":"[1]Personnel!W1218","v":0},0,{"$f":"[1]Personnel!Y1218","v":0},{"$f":"[1]Personnel!Z1218","v":0},0,0,0,0,null,null,null,null,null,null,null,null,null,null,null,null,null,null,null,null,null,null,null,null,null,null,null,null,null,{"$f":"[1]Personnel!G1218","v":0}]
[0,{"$f":"IFERROR(INDEX(Settings!$AP$17:$AP$38,MATCH(Personnel!$G1219,Settings!$AQ$17:$AQ$38,0)),0)","v":0},null,null,null,{"$f":"[1]Personnel!F1219","v":0},{"$f":"IFERROR(INDEX((SLevel),MATCH(Personnel!BA1219,SLevel202223,0)),0)","v":0},{"$f":"[1]Personnel!H1219","v":0},{"$f":"[1]Personnel!I1219","v":0},{"$f":"[1]Personnel!J1219","v":0},{"$f":"[1]Personnel!P1219","v":0},{"$f":"[1]Personnel!Q1219","v":0},0,{"$f":"[1]Personnel!S1219","v":0},{"$f":"[1]Personnel!S1219","v":0},{"$f":"[1]Personnel!S1219","v":0},{"$f":"[1]Personnel!T1219","v":0},0,{"$f":"[1]Personnel!V1219","v":0},{"$f":"[1]Personnel!W1219","v":0},0,{"$f":"[1]Personnel!Y1219","v":0},{"$f":"[1]Personnel!Z1219","v":0},0,0,0,0,null,null,null,null,null,null,null,null,null,null,null,null,null,null,null,null,null,null,null,null,null,null,null,null,null,{"$f":"[1]Personnel!G1219","v":0}]
[0,{"$f":"IFERROR(INDEX(Settings!$AP$17:$AP$38,MATCH(Personnel!$G1220,Settings!$AQ$17:$AQ$38,0)),0)","v":0},null,null,null,{"$f":"[1]Personnel!F1220","v":0},{"$f":"IFERROR(INDEX((SLevel),MATCH(Personnel!BA1220,SLevel202223,0)),0)","v":0},{"$f":"[1]Personnel!H1220","v":0},{"$f":"[1]Personnel!I1220","v":0},{"$f":"[1]Personnel!J1220","v":0},{"$f":"[1]Personnel!P1220","v":0},{"$f":"[1]Personnel!Q1220","v":0},0,{"$f":"[1]Personnel!S1220","v":0},{"$f":"[1]Personnel!S1220","v":0},{"$f":"[1]Personnel!S1220","v":0},{"$f":"[1]Personnel!T1220","v":0},0,{"$f":"[1]Personnel!V1220","v":0},{"$f":"[1]Personnel!W1220","v":0},0,{"$f":"[1]Personnel!Y1220","v":0},{"$f":"[1]Personnel!Z1220","v":0},0,0,0,0,null,null,null,null,null,null,null,null,null,null,null,null,null,null,null,null,null,null,null,null,null,null,null,null,null,{"$f":"[1]Personnel!G1220","v":0}]
[0,{"$f":"IFERROR(INDEX(Settings!$AP$17:$AP$38,MATCH(Personnel!$G1221,Settings!$AQ$17:$AQ$38,0)),0)","v":0},null,null,null,{"$f":"[1]Personnel!F1221","v":0},{"$f":"IFERROR(INDEX((SLevel),MATCH(Personnel!BA1221,SLevel202223,0)),0)","v":0},{"$f":"[1]Personnel!H1221","v":0},{"$f":"[1]Personnel!I1221","v":0},{"$f":"[1]Personnel!J1221","v":0},{"$f":"[1]Personnel!P1221","v":0},{"$f":"[1]Personnel!Q1221","v":0},0,{"$f":"[1]Personnel!S1221","v":0},{"$f":"[1]Personnel!S1221","v":0},{"$f":"[1]Personnel!S1221","v":0},{"$f":"[1]Personnel!T1221","v":0},0,{"$f":"[1]Personnel!V1221","v":0},{"$f":"[1]Personnel!W1221","v":0},0,{"$f":"[1]Personnel!Y1221","v":0},{"$f":"[1]Personnel!Z1221","v":0},0,0,0,0,null,null,null,null,null,null,null,null,null,null,null,null,null,null,null,null,null,null,null,null,null,null,null,null,null,{"$f":"[1]Personnel!G1221","v":0}]
[0,{"$f":"IFERROR(INDEX(Settings!$AP$17:$AP$38,MATCH(Personnel!$G1222,Settings!$AQ$17:$AQ$38,0)),0)","v":0},null,null,null,{"$f":"[1]Personnel!F1222","v":0},{"$f":"IFERROR(INDEX((SLevel),MATCH(Personnel!BA1222,SLevel202223,0)),0)","v":0},{"$f":"[1]Personnel!H1222","v":0},{"$f":"[1]Personnel!I1222","v":0},{"$f":"[1]Personnel!J1222","v":0},{"$f":"[1]Personnel!P1222","v":0},{"$f":"[1]Personnel!Q1222","v":0},0,{"$f":"[1]Personnel!S1222","v":0},{"$f":"[1]Personnel!S1222","v":0},{"$f":"[1]Personnel!S1222","v":0},{"$f":"[1]Personnel!T1222","v":0},0,{"$f":"[1]Personnel!V1222","v":0},{"$f":"[1]Personnel!W1222","v":0},0,{"$f":"[1]Personnel!Y1222","v":0},{"$f":"[1]Personnel!Z1222","v":0},0,0,0,0,null,null,null,null,null,null,null,null,null,null,null,null,null,null,null,null,null,null,null,null,null,null,null,null,null,{"$f":"[1]Personnel!G1222","v":0}]
[0,{"$f":"IFERROR(INDEX(Settings!$AP$17:$AP$38,MATCH(Personnel!$G1223,Settings!$AQ$17:$AQ$38,0)),0)","v":0},null,null,null,{"$f":"[1]Personnel!F1223","v":0},{"$f":"IFERROR(INDEX((SLevel),MATCH(Personnel!BA1223,SLevel202223,0)),0)","v":0},{"$f":"[1]Personnel!H1223","v":0},{"$f":"[1]Personnel!I1223","v":0},{"$f":"[1]Personnel!J1223","v":0},{"$f":"[1]Personnel!P1223","v":0},{"$f":"[1]Personnel!Q1223","v":0},0,{"$f":"[1]Personnel!S1223","v":0},{"$f":"[1]Personnel!S1223","v":0},{"$f":"[1]Personnel!S1223","v":0},{"$f":"[1]Personnel!T1223","v":0},0,{"$f":"[1]Personnel!V1223","v":0},{"$f":"[1]Personnel!W1223","v":0},0,{"$f":"[1]Personnel!Y1223","v":0},{"$f":"[1]Personnel!Z1223","v":0},0,0,0,0,null,null,null,null,null,null,null,null,null,null,null,null,null,null,null,null,null,null,null,null,null,null,null,null,null,{"$f":"[1]Personnel!G1223","v":0}]
[0,{"$f":"IFERROR(INDEX(Settings!$AP$17:$AP$38,MATCH(Personnel!$G1224,Settings!$AQ$17:$AQ$38,0)),0)","v":0},null,null,null,{"$f":"[1]Personnel!F1224","v":0},{"$f":"IFERROR(INDEX((SLevel),MATCH(Personnel!BA1224,SLevel202223,0)),0)","v":0},{"$f":"[1]Personnel!H1224","v":0},{"$f":"[1]Personnel!I1224","v":0},{"$f":"[1]Personnel!J1224","v":0},{"$f":"[1]Personnel!P1224","v":0},{"$f":"[1]Personnel!Q1224","v":0},0,{"$f":"[1]Personnel!S1224","v":0},{"$f":"[1]Personnel!S1224","v":0},{"$f":"[1]Personnel!S1224","v":0},{"$f":"[1]Personnel!T1224","v":0},0,{"$f":"[1]Personnel!V1224","v":0},{"$f":"[1]Personnel!W1224","v":0},0,{"$f":"[1]Personnel!Y1224","v":0},{"$f":"[1]Personnel!Z1224","v":0},0,0,0,0,null,null,null,null,null,null,null,null,null,null,null,null,null,null,null,null,null,null,null,null,null,null,null,null,null,{"$f":"[1]Personnel!G1224","v":0}]
[0,{"$f":"IFERROR(INDEX(Settings!$AP$17:$AP$38,MATCH(Personnel!$G1225,Settings!$AQ$17:$AQ$38,0)),0)","v":0},null,null,null,{"$f":"[1]Personnel!F1225","v":0},{"$f":"IFERROR(INDEX((SLevel),MATCH(Personnel!BA1225,SLevel202223,0)),0)","v":0},{"$f":"[1]Personnel!H1225","v":0},{"$f":"[1]Personnel!I1225","v":0},{"$f":"[1]Personnel!J1225","v":0},{"$f":"[1]Personnel!P1225","v":0},{"$f":"[1]Personnel!Q1225","v":0},0,{"$f":"[1]Personnel!S1225","v":0},{"$f":"[1]Personnel!S1225","v":0},{"$f":"[1]Personnel!S1225","v":0},{"$f":"[1]Personnel!T1225","v":0},0,{"$f":"[1]Personnel!V1225","v":0},{"$f":"[1]Personnel!W1225","v":0},0,{"$f":"[1]Personnel!Y1225","v":0},{"$f":"[1]Personnel!Z1225","v":0},0,0,0,0,null,null,null,null,null,null,null,null,null,null,null,null,null,null,null,null,null,null,null,null,null,null,null,null,null,{"$f":"[1]Personnel!G1225","v":0}]
[0,{"$f":"IFERROR(INDEX(Settings!$AP$17:$AP$38,MATCH(Personnel!$G1226,Settings!$AQ$17:$AQ$38,0)),0)","v":0},null,null,null,{"$f":"[1]Personnel!F1226","v":0},{"$f":"IFERROR(INDEX((SLevel),MATCH(Personnel!BA1226,SLevel202223,0)),0)","v":0},{"$f":"[1]Personnel!H1226","v":0},{"$f":"[1]Personnel!I1226","v":0},{"$f":"[1]Personnel!J1226","v":0},{"$f":"[1]Personnel!P1226","v":0},{"$f":"[1]Personnel!Q1226","v":0},0,{"$f":"[1]Personnel!S1226","v":0},{"$f":"[1]Personnel!S1226","v":0},{"$f":"[1]Personnel!S1226","v":0},{"$f":"[1]Personnel!T1226","v":0},0,{"$f":"[1]Personnel!V1226","v":0},{"$f":"[1]Personnel!W1226","v":0},0,{"$f":"[1]Personnel!Y1226","v":0},{"$f":"[1]Personnel!Z1226","v":0},0,0,0,0,null,null,null,null,null,null,null,null,null,null,null,null,null,null,null,null,null,null,null,null,null,null,null,null,null,{"$f":"[1]Personnel!G1226","v":0}]
[0,{"$f":"IFERROR(INDEX(Settings!$AP$17:$AP$38,MATCH(Personnel!$G1227,Settings!$AQ$17:$AQ$38,0)),0)","v":0},null,null,null,{"$f":"[1]Personnel!F1227","v":0},{"$f":"IFERROR(INDEX((SLevel),MATCH(Personnel!BA1227,SLevel202223,0)),0)","v":0},{"$f":"[1]Personnel!H1227","v":0},{"$f":"[1]Personnel!I1227","v":0},{"$f":"[1]Personnel!J1227","v":0},{"$f":"[1]Personnel!P1227","v":0},{"$f":"[1]Personnel!Q1227","v":0},0,{"$f":"[1]Personnel!S1227","v":0},{"$f":"[1]Personnel!S1227","v":0},{"$f":"[1]Personnel!S1227","v":0},{"$f":"[1]Personnel!T1227","v":0},0,{"$f":"[1]Personnel!V1227","v":0},{"$f":"[1]Personnel!W1227","v":0},0,{"$f":"[1]Personnel!Y1227","v":0},{"$f":"[1]Personnel!Z1227","v":0},0,0,0,0,null,null,null,null,null,null,null,null,null,null,null,null,null,null,null,null,null,null,null,null,null,null,null,null,null,{"$f":"[1]Personnel!G1227","v":0}]
[{"$f":"IF(SUM(K1228:AA1228)>0,1,0)","v":0},{"$f":"IFERROR(INDEX(Settings!$AP$17:$AP$38,MATCH(Personnel!$G1228,Settings!$AQ$17:$AQ$38,0)),0)","v":0},null,null,null,{"$f":"[1]Personnel!F1228","v":0},{"$f":"IFERROR(INDEX((SLevel),MATCH(Personnel!BA1228,SLevel202223,0)),0)","v":0},{"$f":"[1]Personnel!H1228","v":0},{"$f":"[1]Personnel!I1228","v":0},{"$f":"[1]Personnel!J1228","v":0},{"$f":"[1]Personnel!P1228","v":0},{"$f":"[1]Personnel!Q1228","v":0},0,{"$f":"[1]Personnel!S1228","v":0},{"$f":"[1]Personnel!S1228","v":0},{"$f":"[1]Personnel!S1228","v":0},{"$f":"[1]Personnel!T1228","v":0},0,{"$f":"[1]Personnel!V1228","v":0},{"$f":"[1]Personnel!W1228","v":0},0,{"$f":"[1]Personnel!Y1228","v":0},{"$f":"[1]Personnel!Z1228","v":0},0,0,0,0,null,null,null,null,null,null,null,null,null,null,null,null,null,null,null,null,null,null,null,null,null,null,null,null,null,{"$f":"[1]Personnel!G1228","v":0}]
[0,{"$f":"IFERROR(INDEX(Settings!$AP$17:$AP$38,MATCH(Personnel!$G1229,Settings!$AQ$17:$AQ$38,0)),0)","v":0},null,null,null,{"$f":"[1]Personnel!F1229","v":0},{"$f":"IFERROR(INDEX((SLevel),MATCH(Personnel!BA1229,SLevel202223,0)),0)","v":0},{"$f":"[1]Personnel!H1229","v":0},{"$f":"[1]Personnel!I1229","v":0},{"$f":"[1]Personnel!J1229","v":0},{"$f":"[1]Personnel!P1229","v":0},{"$f":"[1]Personnel!Q1229","v":0},{"$f":"ROUND(IF(ISERROR(L1229/K1229),0,(L1229/K1229)),0)","v":0},{"$f":"[1]Personnel!S1229","v":0},{"$f":"[1]Personnel!S1229","v":0},{"$f":"[1]Personnel!S1229","v":0},{"$f":"[1]Personnel!T1229","v":0},{"$f":"ROUND(IF(ISERROR(Q1229/P1229),0,(Q1229/P1229)),0)","v":0},{"$f":"[1]Personnel!V1229","v":0},{"$f":"[1]Personnel!W1229","v":0},{"$f":"ROUND(IF(ISERROR(T1229/S1229),0,(T1229/S1229)),0)","v":0},{"$f":"[1]Personnel!Y1229","v":0},{"$f":"[1]Personnel!Z1229","v":0},{"$f":"ROUND(IF(ISERROR(W1229/V1229),0,(W1229/V1229)),0)","v":0},0,0,{"$f":"ROUND(IF(ISERROR(Z1229/Y1229),0,(Z1229/Y1229)),0)","v":0},null,null,null,null,null,null,null,null,null,null,null,null,null,null,null,null,null,null,null,null,null,null,null,null,null,{"$f":"[1]Personnel!G1229","v":0}]
[0,{"$f":"IFERROR(INDEX(Settings!$AP$17:$AP$38,MATCH(Personnel!$G1230,Settings!$AQ$17:$AQ$38,0)),0)","v":0},null,null,null,{"$f":"[1]Personnel!F1230","v":0},{"$f":"IFERROR(INDEX((SLevel),MATCH(Personnel!BA1230,SLevel202223,0)),0)","v":0},{"$f":"[1]Personnel!H1230","v":0},{"$f":"[1]Personnel!I1230","v":0},{"$f":"[1]Personnel!J1230","v":0},{"$f":"[1]Personnel!P1230","v":0},{"$f":"[1]Personnel!Q1230","v":0},0,{"$f":"[1]Personnel!S1230","v":0},{"$f":"[1]Personnel!S1230","v":0},{"$f":"[1]Personnel!S1230","v":0},{"$f":"[1]Personnel!T1230","v":0},0,{"$f":"[1]Personnel!V1230","v":0},{"$f":"[1]Personnel!W1230","v":0},0,{"$f":"[1]Personnel!Y1230","v":0},{"$f":"[1]Personnel!Z1230","v":0},0,0,0,0,null,null,null,null,null,null,null,null,null,null,null,null,null,null,null,null,null,null,null,null,null,null,null,null,null,{"$f":"[1]Personnel!G1230","v":0}]
[0,{"$f":"IFERROR(INDEX(Settings!$AP$17:$AP$38,MATCH(Personnel!$G1231,Settings!$AQ$17:$AQ$38,0)),0)","v":0},null,null,null,{"$f":"[1]Personnel!F1231","v":0},{"$f":"IFERROR(INDEX((SLevel),MATCH(Personnel!BA1231,SLevel202223,0)),0)","v":0},{"$f":"[1]Personnel!H1231","v":0},{"$f":"[1]Personnel!I1231","v":0},{"$f":"[1]Personnel!J1231","v":0},{"$f":"[1]Personnel!P1231","v":0},{"$f":"[1]Personnel!Q1231","v":0},0,{"$f":"[1]Personnel!S1231","v":0},{"$f":"[1]Personnel!S1231","v":0},{"$f":"[1]Personnel!S1231","v":0},{"$f":"[1]Personnel!T1231","v":0},0,{"$f":"[1]Personnel!V1231","v":0},{"$f":"[1]Personnel!W1231","v":0},0,{"$f":"[1]Personnel!Y1231","v":0},{"$f":"[1]Personnel!Z1231","v":0},0,0,0,0,null,null,null,null,null,null,null,null,null,null,null,null,null,null,null,null,null,null,null,null,null,null,null,null,null,{"$f":"[1]Personnel!G1231","v":0}]
[0,{"$f":"IFERROR(INDEX(Settings!$AP$17:$AP$38,MATCH(Personnel!$G1232,Settings!$AQ$17:$AQ$38,0)),0)","v":0},null,null,null,{"$f":"[1]Personnel!F1232","v":0},{"$f":"IFERROR(INDEX((SLevel),MATCH(Personnel!BA1232,SLevel202223,0)),0)","v":0},{"$f":"[1]Personnel!H1232","v":0},{"$f":"[1]Personnel!I1232","v":0},{"$f":"[1]Personnel!J1232","v":0},{"$f":"[1]Personnel!P1232","v":0},{"$f":"[1]Personnel!Q1232","v":0},0,{"$f":"[1]Personnel!S1232","v":0},{"$f":"[1]Personnel!S1232","v":0},{"$f":"[1]Personnel!S1232","v":0},{"$f":"[1]Personnel!T1232","v":0},0,{"$f":"[1]Personnel!V1232","v":0},{"$f":"[1]Personnel!W1232","v":0},0,{"$f":"[1]Personnel!Y1232","v":0},{"$f":"[1]Personnel!Z1232","v":0},0,0,0,0,null,null,null,null,null,null,null,null,null,null,null,null,null,null,null,null,null,null,null,null,null,null,null,null,null,{"$f":"[1]Personnel!G1232","v":0}]
[0,{"$f":"IFERROR(INDEX(Settings!$AP$17:$AP$38,MATCH(Personnel!$G1233,Settings!$AQ$17:$AQ$38,0)),0)","v":0},null,null,null,{"$f":"[1]Personnel!F1233","v":0},{"$f":"IFERROR(INDEX((SLevel),MATCH(Personnel!BA1233,SLevel202223,0)),0)","v":0},{"$f":"[1]Personnel!H1233","v":0},{"$f":"[1]Personnel!I1233","v":0},{"$f":"[1]Personnel!J1233","v":0},{"$f":"[1]Personnel!P1233","v":0},{"$f":"[1]Personnel!Q1233","v":0},0,{"$f":"[1]Personnel!S1233","v":0},{"$f":"[1]Personnel!S1233","v":0},{"$f":"[1]Personnel!S1233","v":0},{"$f":"[1]Personnel!T1233","v":0},0,{"$f":"[1]Personnel!V1233","v":0},{"$f":"[1]Personnel!W1233","v":0},0,{"$f":"[1]Personnel!Y1233","v":0},{"$f":"[1]Personnel!Z1233","v":0},0,0,0,0,null,null,null,null,null,null,null,null,null,null,null,null,null,null,null,null,null,null,null,null,null,null,null,null,null,{"$f":"[1]Personnel!G1233","v":0}]
[0,{"$f":"IFERROR(INDEX(Settings!$AP$17:$AP$38,MATCH(Personnel!$G1234,Settings!$AQ$17:$AQ$38,0)),0)","v":0},null,null,null,{"$f":"[1]Personnel!F1234","v":0},{"$f":"IFERROR(INDEX((SLevel),MATCH(Personnel!BA1234,SLevel202223,0)),0)","v":0},{"$f":"[1]Personnel!H1234","v":0},{"$f":"[1]Personnel!I1234","v":0},{"$f":"[1]Personnel!J1234","v":0},{"$f":"[1]Personnel!P1234","v":0},{"$f":"[1]Personnel!Q1234","v":0},0,{"$f":"[1]Personnel!S1234","v":0},{"$f":"[1]Personnel!S1234","v":0},{"$f":"[1]Personnel!S1234","v":0},{"$f":"[1]Personnel!T1234","v":0},0,{"$f":"[1]Personnel!V1234","v":0},{"$f":"[1]Personnel!W1234","v":0},0,{"$f":"[1]Personnel!Y1234","v":0},{"$f":"[1]Personnel!Z1234","v":0},0,0,0,0,null,null,null,null,null,null,null,null,null,null,null,null,null,null,null,null,null,null,null,null,null,null,null,null,null,{"$f":"[1]Personnel!G1234","v":0}]
[0,{"$f":"IFERROR(INDEX(Settings!$AP$17:$AP$38,MATCH(Personnel!$G1235,Settings!$AQ$17:$AQ$38,0)),0)","v":0},null,null,null,{"$f":"[1]Personnel!F1235","v":0},{"$f":"IFERROR(INDEX((SLevel),MATCH(Personnel!BA1235,SLevel202223,0)),0)","v":0},{"$f":"[1]Personnel!H1235","v":0},{"$f":"[1]Personnel!I1235","v":0},{"$f":"[1]Personnel!J1235","v":0},{"$f":"[1]Personnel!P1235","v":0},{"$f":"[1]Personnel!Q1235","v":0},0,{"$f":"[1]Personnel!S1235","v":0},{"$f":"[1]Personnel!S1235","v":0},{"$f":"[1]Personnel!S1235","v":0},{"$f":"[1]Personnel!T1235","v":0},0,{"$f":"[1]Personnel!V1235","v":0},{"$f":"[1]Personnel!W1235","v":0},0,{"$f":"[1]Personnel!Y1235","v":0},{"$f":"[1]Personnel!Z1235","v":0},0,0,0,0,null,null,null,null,null,null,null,null,null,null,null,null,null,null,null,null,null,null,null,null,null,null,null,null,null,{"$f":"[1]Personnel!G1235","v":0}]
[0,{"$f":"IFERROR(INDEX(Settings!$AP$17:$AP$38,MATCH(Personnel!$G1236,Settings!$AQ$17:$AQ$38,0)),0)","v":0},null,null,null,{"$f":"[1]Personnel!F1236","v":0},{"$f":"IFERROR(INDEX((SLevel),MATCH(Personnel!BA1236,SLevel202223,0)),0)","v":0},{"$f":"[1]Personnel!H1236","v":0},{"$f":"[1]Personnel!I1236","v":0},{"$f":"[1]Personnel!J1236","v":0},{"$f":"[1]Personnel!P1236","v":0},{"$f":"[1]Personnel!Q1236","v":0},0,{"$f":"[1]Personnel!S1236","v":0},{"$f":"[1]Personnel!S1236","v":0},{"$f":"[1]Personnel!S1236","v":0},{"$f":"[1]Personnel!T1236","v":0},0,{"$f":"[1]Personnel!V1236","v":0},{"$f":"[1]Personnel!W1236","v":0},0,{"$f":"[1]Personnel!Y1236","v":0},{"$f":"[1]Personnel!Z1236","v":0},0,0,0,0,null,null,null,null,null,null,null,null,null,null,null,null,null,null,null,null,null,null,null,null,null,null,null,null,null,{"$f":"[1]Personnel!G1236","v":0}]
[0,{"$f":"IFERROR(INDEX(Settings!$AP$17:$AP$38,MATCH(Personnel!$G1237,Settings!$AQ$17:$AQ$38,0)),0)","v":0},null,null,null,{"$f":"[1]Personnel!F1237","v":0},{"$f":"IFERROR(INDEX((SLevel),MATCH(Personnel!BA1237,SLevel202223,0)),0)","v":0},{"$f":"[1]Personnel!H1237","v":0},{"$f":"[1]Personnel!I1237","v":0},{"$f":"[1]Personnel!J1237","v":0},{"$f":"[1]Personnel!P1237","v":0},{"$f":"[1]Personnel!Q1237","v":0},0,{"$f":"[1]Personnel!S1237","v":0},{"$f":"[1]Personnel!S1237","v":0},{"$f":"[1]Personnel!S1237","v":0},{"$f":"[1]Personnel!T1237","v":0},0,{"$f":"[1]Personnel!V1237","v":0},{"$f":"[1]Personnel!W1237","v":0},0,{"$f":"[1]Personnel!Y1237","v":0},{"$f":"[1]Personnel!Z1237","v":0},0,0,0,0,null,null,null,null,null,null,null,null,null,null,null,null,null,null,null,null,null,null,null,null,null,null,null,null,null,{"$f":"[1]Personnel!G1237","v":0}]
[0,{"$f":"IFERROR(INDEX(Settings!$AP$17:$AP$38,MATCH(Personnel!$G1238,Settings!$AQ$17:$AQ$38,0)),0)","v":0},null,null,null,{"$f":"[1]Personnel!F1238","v":0},{"$f":"IFERROR(INDEX((SLevel),MATCH(Personnel!BA1238,SLevel202223,0)),0)","v":0},{"$f":"[1]Personnel!H1238","v":0},{"$f":"[1]Personnel!I1238","v":0},{"$f":"[1]Personnel!J1238","v":0},{"$f":"[1]Personnel!P1238","v":0},{"$f":"[1]Personnel!Q1238","v":0},0,{"$f":"[1]Personnel!S1238","v":0},{"$f":"[1]Personnel!S1238","v":0},{"$f":"[1]Personnel!S1238","v":0},{"$f":"[1]Personnel!T1238","v":0},0,{"$f":"[1]Personnel!V1238","v":0},{"$f":"[1]Personnel!W1238","v":0},0,{"$f":"[1]Personnel!Y1238","v":0},{"$f":"[1]Personnel!Z1238","v":0},0,0,0,0,null,null,null,null,null,null,null,null,null,null,null,null,null,null,null,null,null,null,null,null,null,null,null,null,null,{"$f":"[1]Personnel!G1238","v":0}]
[0,{"$f":"IFERROR(INDEX(Settings!$AP$17:$AP$38,MATCH(Personnel!$G1239,Settings!$AQ$17:$AQ$38,0)),0)","v":0},null,null,null,{"$f":"[1]Personnel!F1239","v":0},{"$f":"IFERROR(INDEX((SLevel),MATCH(Personnel!BA1239,SLevel202223,0)),0)","v":0},{"$f":"[1]Personnel!H1239","v":0},{"$f":"[1]Personnel!I1239","v":0},{"$f":"[1]Personnel!J1239","v":0},{"$f":"[1]Personnel!P1239","v":0},{"$f":"[1]Personnel!Q1239","v":0},0,{"$f":"[1]Personnel!S1239","v":0},{"$f":"[1]Personnel!S1239","v":0},{"$f":"[1]Personnel!S1239","v":0},{"$f":"[1]Personnel!T1239","v":0},0,{"$f":"[1]Personnel!V1239","v":0},{"$f":"[1]Personnel!W1239","v":0},0,{"$f":"[1]Personnel!Y1239","v":0},{"$f":"[1]Personnel!Z1239","v":0},0,0,0,0,null,null,null,null,null,null,null,null,null,null,null,null,null,null,null,null,null,null,null,null,null,null,null,null,null,{"$f":"[1]Personnel!G1239","v":0}]
[0,{"$f":"IFERROR(INDEX(Settings!$AP$17:$AP$38,MATCH(Personnel!$G1240,Settings!$AQ$17:$AQ$38,0)),0)","v":0},null,null,null,{"$f":"[1]Personnel!F1240","v":0},{"$f":"IFERROR(INDEX((SLevel),MATCH(Personnel!BA1240,SLevel202223,0)),0)","v":0},{"$f":"[1]Personnel!H1240","v":0},{"$f":"[1]Personnel!I1240","v":0},{"$f":"[1]Personnel!J1240","v":0},{"$f":"[1]Personnel!P1240","v":0},{"$f":"[1]Personnel!Q1240","v":0},0,{"$f":"[1]Personnel!S1240","v":0},{"$f":"[1]Personnel!S1240","v":0},{"$f":"[1]Personnel!S1240","v":0},{"$f":"[1]Personnel!T1240","v":0},0,{"$f":"[1]Personnel!V1240","v":0},{"$f":"[1]Personnel!W1240","v":0},0,{"$f":"[1]Personnel!Y1240","v":0},{"$f":"[1]Personnel!Z1240","v":0},0,0,0,0,null,null,null,null,null,null,null,null,null,null,null,null,null,null,null,null,null,null,null,null,null,null,null,null,null,{"$f":"[1]Personnel!G1240","v":0}]
[0,{"$f":"IFERROR(INDEX(Settings!$AP$17:$AP$38,MATCH(Personnel!$G1241,Settings!$AQ$17:$AQ$38,0)),0)","v":0},null,null,null,{"$f":"[1]Personnel!F1241","v":0},{"$f":"IFERROR(INDEX((SLevel),MATCH(Personnel!BA1241,SLevel202223,0)),0)","v":0},{"$f":"[1]Personnel!H1241","v":0},{"$f":"[1]Personnel!I1241","v":0},{"$f":"[1]Personnel!J1241","v":0},{"$f":"[1]Personnel!P1241","v":0},{"$f":"[1]Personnel!Q1241","v":0},0,{"$f":"[1]Personnel!S1241","v":0},{"$f":"[1]Personnel!S1241","v":0},{"$f":"[1]Personnel!S1241","v":0},{"$f":"[1]Personnel!T1241","v":0},0,{"$f":"[1]Personnel!V1241","v":0},{"$f":"[1]Personnel!W1241","v":0},0,{"$f":"[1]Personnel!Y1241","v":0},{"$f":"[1]Personnel!Z1241","v":0},0,0,0,0,null,null,null,null,null,null,null,null,null,null,null,null,null,null,null,null,null,null,null,null,null,null,null,null,null,{"$f":"[1]Personnel!G1241","v":0}]
[0,{"$f":"IFERROR(INDEX(Settings!$AP$17:$AP$38,MATCH(Personnel!$G1242,Settings!$AQ$17:$AQ$38,0)),0)","v":0},null,null,null,{"$f":"[1]Personnel!F1242","v":0},{"$f":"IFERROR(INDEX((SLevel),MATCH(Personnel!BA1242,SLevel202223,0)),0)","v":0},{"$f":"[1]Personnel!H1242","v":0},{"$f":"[1]Personnel!I1242","v":0},{"$f":"[1]Personnel!J1242","v":0},{"$f":"[1]Personnel!P1242","v":0},{"$f":"[1]Personnel!Q1242","v":0},0,{"$f":"[1]Personnel!S1242","v":0},{"$f":"[1]Personnel!S1242","v":0},{"$f":"[1]Personnel!S1242","v":0},{"$f":"[1]Personnel!T1242","v":0},0,{"$f":"[1]Personnel!V1242","v":0},{"$f":"[1]Personnel!W1242","v":0},0,{"$f":"[1]Personnel!Y1242","v":0},{"$f":"[1]Personnel!Z1242","v":0},0,0,0,0,null,null,null,null,null,null,null,null,null,null,null,null,null,null,null,null,null,null,null,null,null,null,null,null,null,{"$f":"[1]Personnel!G1242","v":0}]
[0,{"$f":"IFERROR(INDEX(Settings!$AP$17:$AP$38,MATCH(Personnel!$G1243,Settings!$AQ$17:$AQ$38,0)),0)","v":0},null,null,null,{"$f":"[1]Personnel!F1243","v":0},{"$f":"IFERROR(INDEX((SLevel),MATCH(Personnel!BA1243,SLevel202223,0)),0)","v":0},{"$f":"[1]Personnel!H1243","v":0},{"$f":"[1]Personnel!I1243","v":0},{"$f":"[1]Personnel!J1243","v":0},{"$f":"[1]Personnel!P1243","v":0},{"$f":"[1]Personnel!Q1243","v":0},0,{"$f":"[1]Personnel!S1243","v":0},{"$f":"[1]Personnel!S1243","v":0},{"$f":"[1]Personnel!S1243","v":0},{"$f":"[1]Personnel!T1243","v":0},0,{"$f":"[1]Personnel!V1243","v":0},{"$f":"[1]Personnel!W1243","v":0},0,{"$f":"[1]Personnel!Y1243","v":0},{"$f":"[1]Personnel!Z1243","v":0},0,0,0,0,null,null,null,null,null,null,null,null,null,null,null,null,null,null,null,null,null,null,null,null,null,null,null,null,null,{"$f":"[1]Personnel!G1243","v":0}]
[0,{"$f":"IFERROR(INDEX(Settings!$AP$17:$AP$38,MATCH(Personnel!$G1244,Settings!$AQ$17:$AQ$38,0)),0)","v":0},null,null,null,{"$f":"[1]Personnel!F1244","v":0},{"$f":"IFERROR(INDEX((SLevel),MATCH(Personnel!BA1244,SLevel202223,0)),0)","v":0},{"$f":"[1]Personnel!H1244","v":0},{"$f":"[1]Personnel!I1244","v":0},{"$f":"[1]Personnel!J1244","v":0},{"$f":"[1]Personnel!P1244","v":0},{"$f":"[1]Personnel!Q1244","v":0},0,{"$f":"[1]Personnel!S1244","v":0},{"$f":"[1]Personnel!S1244","v":0},{"$f":"[1]Personnel!S1244","v":0},{"$f":"[1]Personnel!T1244","v":0},0,{"$f":"[1]Personnel!V1244","v":0},{"$f":"[1]Personnel!W1244","v":0},0,{"$f":"[1]Personnel!Y1244","v":0},{"$f":"[1]Personnel!Z1244","v":0},0,0,0,0,null,null,null,null,null,null,null,null,null,null,null,null,null,null,null,null,null,null,null,null,null,null,null,null,null,{"$f":"[1]Personnel!G1244","v":0}]
[0,{"$f":"IFERROR(INDEX(Settings!$AP$17:$AP$38,MATCH(Personnel!$G1245,Settings!$AQ$17:$AQ$38,0)),0)","v":0},null,null,null,{"$f":"[1]Personnel!F1245","v":0},{"$f":"IFERROR(INDEX((SLevel),MATCH(Personnel!BA1245,SLevel202223,0)),0)","v":0},{"$f":"[1]Personnel!H1245","v":0},{"$f":"[1]Personnel!I1245","v":0},{"$f":"[1]Personnel!J1245","v":0},{"$f":"[1]Personnel!P1245","v":0},{"$f":"[1]Personnel!Q1245","v":0},0,{"$f":"[1]Personnel!S1245","v":0},{"$f":"[1]Personnel!S1245","v":0},{"$f":"[1]Personnel!S1245","v":0},{"$f":"[1]Personnel!T1245","v":0},0,{"$f":"[1]Personnel!V1245","v":0},{"$f":"[1]Personnel!W1245","v":0},0,{"$f":"[1]Personnel!Y1245","v":0},{"$f":"[1]Personnel!Z1245","v":0},0,0,0,0,null,null,null,null,null,null,null,null,null,null,null,null,null,null,null,null,null,null,null,null,null,null,null,null,null,{"$f":"[1]Personnel!G1245","v":0}]
[0,{"$f":"IFERROR(INDEX(Settings!$AP$17:$AP$38,MATCH(Personnel!$G1246,Settings!$AQ$17:$AQ$38,0)),0)","v":0},null,null,null,{"$f":"[1]Personnel!F1246","v":0},{"$f":"IFERROR(INDEX((SLevel),MATCH(Personnel!BA1246,SLevel202223,0)),0)","v":0},{"$f":"[1]Personnel!H1246","v":0},{"$f":"[1]Personnel!I1246","v":0},{"$f":"[1]Personnel!J1246","v":0},{"$f":"[1]Personnel!P1246","v":0},{"$f":"[1]Personnel!Q1246","v":0},0,{"$f":"[1]Personnel!S1246","v":0},{"$f":"[1]Personnel!S1246","v":0},{"$f":"[1]Personnel!S1246","v":0},{"$f":"[1]Personnel!T1246","v":0},0,{"$f":"[1]Personnel!V1246","v":0},{"$f":"[1]Personnel!W1246","v":0},0,{"$f":"[1]Personnel!Y1246","v":0},{"$f":"[1]Personnel!Z1246","v":0},0,0,0,0,null,null,null,null,null,null,null,null,null,null,null,null,null,null,null,null,null,null,null,null,null,null,null,null,null,{"$f":"[1]Personnel!G1246","v":0}]
[0,{"$f":"IFERROR(INDEX(Settings!$AP$17:$AP$38,MATCH(Personnel!$G1247,Settings!$AQ$17:$AQ$38,0)),0)","v":0},null,null,null,{"$f":"[1]Personnel!F1247","v":0},{"$f":"IFERROR(INDEX((SLevel),MATCH(Personnel!BA1247,SLevel202223,0)),0)","v":0},{"$f":"[1]Personnel!H1247","v":0},{"$f":"[1]Personnel!I1247","v":0},{"$f":"[1]Personnel!J1247","v":0},{"$f":"[1]Personnel!P1247","v":0},{"$f":"[1]Personnel!Q1247","v":0},0,{"$f":"[1]Personnel!S1247","v":0},{"$f":"[1]Personnel!S1247","v":0},{"$f":"[1]Personnel!S1247","v":0},{"$f":"[1]Personnel!T1247","v":0},0,{"$f":"[1]Personnel!V1247","v":0},{"$f":"[1]Personnel!W1247","v":0},0,{"$f":"[1]Personnel!Y1247","v":0},{"$f":"[1]Personnel!Z1247","v":0},0,0,0,0,null,null,null,null,null,null,null,null,null,null,null,null,null,null,null,null,null,null,null,null,null,null,null,null,null,{"$f":"[1]Personnel!G1247","v":0}]
[0,{"$f":"IFERROR(INDEX(Settings!$AP$17:$AP$38,MATCH(Personnel!$G1248,Settings!$AQ$17:$AQ$38,0)),0)","v":0},null,null,null,{"$f":"[1]Personnel!F1248","v":0},{"$f":"IFERROR(INDEX((SLevel),MATCH(Personnel!BA1248,SLevel202223,0)),0)","v":0},{"$f":"[1]Personnel!H1248","v":0},{"$f":"[1]Personnel!I1248","v":0},{"$f":"[1]Personnel!J1248","v":0},{"$f":"[1]Personnel!P1248","v":0},{"$f":"[1]Personnel!Q1248","v":0},0,{"$f":"[1]Personnel!S1248","v":0},{"$f":"[1]Personnel!S1248","v":0},{"$f":"[1]Personnel!S1248","v":0},{"$f":"[1]Personnel!T1248","v":0},0,{"$f":"[1]Personnel!V1248","v":0},{"$f":"[1]Personnel!W1248","v":0},0,{"$f":"[1]Personnel!Y1248","v":0},{"$f":"[1]Personnel!Z1248","v":0},0,0,0,0,null,null,null,null,null,null,null,null,null,null,null,null,null,null,null,null,null,null,null,null,null,null,null,null,null,{"$f":"[1]Personnel!G1248","v":0}]
[0,{"$f":"IFERROR(INDEX(Settings!$AP$17:$AP$38,MATCH(Personnel!$G1249,Settings!$AQ$17:$AQ$38,0)),0)","v":0},null,null,null,{"$f":"[1]Personnel!F1249","v":0},{"$f":"IFERROR(INDEX((SLevel),MATCH(Personnel!BA1249,SLevel202223,0)),0)","v":0},{"$f":"[1]Personnel!H1249","v":0},{"$f":"[1]Personnel!I1249","v":0},{"$f":"[1]Personnel!J1249","v":0},{"$f":"[1]Personnel!P1249","v":0},{"$f":"[1]Personnel!Q1249","v":0},0,{"$f":"[1]Personnel!S1249","v":0},{"$f":"[1]Personnel!S1249","v":0},{"$f":"[1]Personnel!S1249","v":0},{"$f":"[1]Personnel!T1249","v":0},0,{"$f":"[1]Personnel!V1249","v":0},{"$f":"[1]Personnel!W1249","v":0},0,{"$f":"[1]Personnel!Y1249","v":0},{"$f":"[1]Personnel!Z1249","v":0},0,0,0,0,null,null,null,null,null,null,null,null,null,null,null,null,null,null,null,null,null,null,null,null,null,null,null,null,null,{"$f":"[1]Personnel!G1249","v":0}]
[0,{"$f":"IFERROR(INDEX(Settings!$AP$17:$AP$38,MATCH(Personnel!$G1250,Settings!$AQ$17:$AQ$38,0)),0)","v":0},null,null,null,{"$f":"[1]Personnel!F1250","v":0},{"$f":"IFERROR(INDEX((SLevel),MATCH(Personnel!BA1250,SLevel202223,0)),0)","v":0},{"$f":"[1]Personnel!H1250","v":0},{"$f":"[1]Personnel!I1250","v":0},{"$f":"[1]Personnel!J1250","v":0},{"$f":"[1]Personnel!P1250","v":0},{"$f":"[1]Personnel!Q1250","v":0},0,{"$f":"[1]Personnel!S1250","v":0},{"$f":"[1]Personnel!S1250","v":0},{"$f":"[1]Personnel!S1250","v":0},{"$f":"[1]Personnel!T1250","v":0},0,{"$f":"[1]Personnel!V1250","v":0},{"$f":"[1]Personnel!W1250","v":0},0,{"$f":"[1]Personnel!Y1250","v":0},{"$f":"[1]Personnel!Z1250","v":0},0,0,0,0,null,null,null,null,null,null,null,null,null,null,null,null,null,null,null,null,null,null,null,null,null,null,null,null,null,{"$f":"[1]Personnel!G1250","v":0}]
[0,{"$f":"IFERROR(INDEX(Settings!$AP$17:$AP$38,MATCH(Personnel!$G1251,Settings!$AQ$17:$AQ$38,0)),0)","v":0},null,null,null,{"$f":"[1]Personnel!F1251","v":0},{"$f":"IFERROR(INDEX((SLevel),MATCH(Personnel!BA1251,SLevel202223,0)),0)","v":0},{"$f":"[1]Personnel!H1251","v":0},{"$f":"[1]Personnel!I1251","v":0},{"$f":"[1]Personnel!J1251","v":0},{"$f":"[1]Personnel!P1251","v":0},{"$f":"[1]Personnel!Q1251","v":0},0,{"$f":"[1]Personnel!S1251","v":0},{"$f":"[1]Personnel!S1251","v":0},{"$f":"[1]Personnel!S1251","v":0},{"$f":"[1]Personnel!T1251","v":0},0,{"$f":"[1]Personnel!V1251","v":0},{"$f":"[1]Personnel!W1251","v":0},0,{"$f":"[1]Personnel!Y1251","v":0},{"$f":"[1]Personnel!Z1251","v":0},0,0,0,0,null,null,null,null,null,null,null,null,null,null,null,null,null,null,null,null,null,null,null,null,null,null,null,null,null,{"$f":"[1]Personnel!G1251","v":0}]
[0,{"$f":"IFERROR(INDEX(Settings!$AP$17:$AP$38,MATCH(Personnel!$G1252,Settings!$AQ$17:$AQ$38,0)),0)","v":0},null,null,null,{"$f":"[1]Personnel!F1252","v":0},{"$f":"IFERROR(INDEX((SLevel),MATCH(Personnel!BA1252,SLevel202223,0)),0)","v":0},{"$f":"[1]Personnel!H1252","v":0},{"$f":"[1]Personnel!I1252","v":0},{"$f":"[1]Personnel!J1252","v":0},{"$f":"[1]Personnel!P1252","v":0},{"$f":"[1]Personnel!Q1252","v":0},0,{"$f":"[1]Personnel!S1252","v":0},{"$f":"[1]Personnel!S1252","v":0},{"$f":"[1]Personnel!S1252","v":0},{"$f":"[1]Personnel!T1252","v":0},0,{"$f":"[1]Personnel!V1252","v":0},{"$f":"[1]Personnel!W1252","v":0},0,{"$f":"[1]Personnel!Y1252","v":0},{"$f":"[1]Personnel!Z1252","v":0},0,0,0,0,null,null,null,null,null,null,null,null,null,null,null,null,null,null,null,null,null,null,null,null,null,null,null,null,null,{"$f":"[1]Personnel!G1252","v":0}]
[0,{"$f":"IFERROR(INDEX(Settings!$AP$17:$AP$38,MATCH(Personnel!$G1253,Settings!$AQ$17:$AQ$38,0)),0)","v":0},null,null,null,{"$f":"[1]Personnel!F1253","v":0},{"$f":"IFERROR(INDEX((SLevel),MATCH(Personnel!BA1253,SLevel202223,0)),0)","v":0},{"$f":"[1]Personnel!H1253","v":0},{"$f":"[1]Personnel!I1253","v":0},{"$f":"[1]Personnel!J1253","v":0},{"$f":"[1]Personnel!P1253","v":0},{"$f":"[1]Personnel!Q1253","v":0},0,{"$f":"[1]Personnel!S1253","v":0},{"$f":"[1]Personnel!S1253","v":0},{"$f":"[1]Personnel!S1253","v":0},{"$f":"[1]Personnel!T1253","v":0},0,{"$f":"[1]Personnel!V1253","v":0},{"$f":"[1]Personnel!W1253","v":0},0,{"$f":"[1]Personnel!Y1253","v":0},{"$f":"[1]Personnel!Z1253","v":0},0,0,0,0,null,null,null,null,null,null,null,null,null,null,null,null,null,null,null,null,null,null,null,null,null,null,null,null,null,{"$f":"[1]Personnel!G1253","v":0}]
[0,{"$f":"IFERROR(INDEX(Settings!$AP$17:$AP$38,MATCH(Personnel!$G1254,Settings!$AQ$17:$AQ$38,0)),0)","v":0},null,null,null,{"$f":"[1]Personnel!F1254","v":0},{"$f":"IFERROR(INDEX((SLevel),MATCH(Personnel!BA1254,SLevel202223,0)),0)","v":0},{"$f":"[1]Personnel!H1254","v":0},{"$f":"[1]Personnel!I1254","v":0},{"$f":"[1]Personnel!J1254","v":0},{"$f":"[1]Personnel!P1254","v":0},{"$f":"[1]Personnel!Q1254","v":0},0,{"$f":"[1]Personnel!S1254","v":0},{"$f":"[1]Personnel!S1254","v":0},{"$f":"[1]Personnel!S1254","v":0},{"$f":"[1]Personnel!T1254","v":0},0,{"$f":"[1]Personnel!V1254","v":0},{"$f":"[1]Personnel!W1254","v":0},0,{"$f":"[1]Personnel!Y1254","v":0},{"$f":"[1]Personnel!Z1254","v":0},0,0,0,0,null,null,null,null,null,null,null,null,null,null,null,null,null,null,null,null,null,null,null,null,null,null,null,null,null,{"$f":"[1]Personnel!G1254","v":0}]
[0,{"$f":"IFERROR(INDEX(Settings!$AP$17:$AP$38,MATCH(Personnel!$G1255,Settings!$AQ$17:$AQ$38,0)),0)","v":0},null,null,null,{"$f":"[1]Personnel!F1255","v":0},{"$f":"IFERROR(INDEX((SLevel),MATCH(Personnel!BA1255,SLevel202223,0)),0)","v":0},{"$f":"[1]Personnel!H1255","v":0},{"$f":"[1]Personnel!I1255","v":0},{"$f":"[1]Personnel!J1255","v":0},{"$f":"[1]Personnel!P1255","v":0},{"$f":"[1]Personnel!Q1255","v":0},0,{"$f":"[1]Personnel!S1255","v":0},{"$f":"[1]Personnel!S1255","v":0},{"$f":"[1]Personnel!S1255","v":0},{"$f":"[1]Personnel!T1255","v":0},0,{"$f":"[1]Personnel!V1255","v":0},{"$f":"[1]Personnel!W1255","v":0},0,{"$f":"[1]Personnel!Y1255","v":0},{"$f":"[1]Personnel!Z1255","v":0},0,0,0,0,null,null,null,null,null,null,null,null,null,null,null,null,null,null,null,null,null,null,null,null,null,null,null,null,null,{"$f":"[1]Personnel!G1255","v":0}]
[0,{"$f":"IFERROR(INDEX(Settings!$AP$17:$AP$38,MATCH(Personnel!$G1256,Settings!$AQ$17:$AQ$38,0)),0)","v":0},null,null,null,{"$f":"[1]Personnel!F1256","v":0},{"$f":"IFERROR(INDEX((SLevel),MATCH(Personnel!BA1256,SLevel202223,0)),0)","v":0},{"$f":"[1]Personnel!H1256","v":0},{"$f":"[1]Personnel!I1256","v":0},{"$f":"[1]Personnel!J1256","v":0},{"$f":"[1]Personnel!P1256","v":0},{"$f":"[1]Personnel!Q1256","v":0},0,{"$f":"[1]Personnel!S1256","v":0},{"$f":"[1]Personnel!S1256","v":0},{"$f":"[1]Personnel!S1256","v":0},{"$f":"[1]Personnel!T1256","v":0},0,{"$f":"[1]Personnel!V1256","v":0},{"$f":"[1]Personnel!W1256","v":0},0,{"$f":"[1]Personnel!Y1256","v":0},{"$f":"[1]Personnel!Z1256","v":0},0,0,0,0,null,null,null,null,null,null,null,null,null,null,null,null,null,null,null,null,null,null,null,null,null,null,null,null,null,{"$f":"[1]Personnel!G1256","v":0}]
[0,{"$f":"IFERROR(INDEX(Settings!$AP$17:$AP$38,MATCH(Personnel!$G1257,Settings!$AQ$17:$AQ$38,0)),0)","v":0},null,null,null,{"$f":"[1]Personnel!F1257","v":0},{"$f":"IFERROR(INDEX((SLevel),MATCH(Personnel!BA1257,SLevel202223,0)),0)","v":0},{"$f":"[1]Personnel!H1257","v":0},{"$f":"[1]Personnel!I1257","v":0},{"$f":"[1]Personnel!J1257","v":0},{"$f":"[1]Personnel!P1257","v":0},{"$f":"[1]Personnel!Q1257","v":0},0,{"$f":"[1]Personnel!S1257","v":0},{"$f":"[1]Personnel!S1257","v":0},{"$f":"[1]Personnel!S1257","v":0},{"$f":"[1]Personnel!T1257","v":0},0,{"$f":"[1]Personnel!V1257","v":0},{"$f":"[1]Personnel!W1257","v":0},0,{"$f":"[1]Personnel!Y1257","v":0},{"$f":"[1]Personnel!Z1257","v":0},0,0,0,0,null,null,null,null,null,null,null,null,null,null,null,null,null,null,null,null,null,null,null,null,null,null,null,null,null,{"$f":"[1]Personnel!G1257","v":0}]
[0,{"$f":"IFERROR(INDEX(Settings!$AP$17:$AP$38,MATCH(Personnel!$G1258,Settings!$AQ$17:$AQ$38,0)),0)","v":0},null,null,null,{"$f":"[1]Personnel!F1258","v":0},{"$f":"IFERROR(INDEX((SLevel),MATCH(Personnel!BA1258,SLevel202223,0)),0)","v":0},{"$f":"[1]Personnel!H1258","v":0},{"$f":"[1]Personnel!I1258","v":0},{"$f":"[1]Personnel!J1258","v":0},{"$f":"[1]Personnel!P1258","v":0},{"$f":"[1]Personnel!Q1258","v":0},0,{"$f":"[1]Personnel!S1258","v":0},{"$f":"[1]Personnel!S1258","v":0},{"$f":"[1]Personnel!S1258","v":0},{"$f":"[1]Personnel!T1258","v":0},0,{"$f":"[1]Personnel!V1258","v":0},{"$f":"[1]Personnel!W1258","v":0},0,{"$f":"[1]Personnel!Y1258","v":0},{"$f":"[1]Personnel!Z1258","v":0},0,0,0,0,null,null,null,null,null,null,null,null,null,null,null,null,null,null,null,null,null,null,null,null,null,null,null,null,null,{"$f":"[1]Personnel!G1258","v":0}]
[0,{"$f":"IFERROR(INDEX(Settings!$AP$17:$AP$38,MATCH(Personnel!$G1259,Settings!$AQ$17:$AQ$38,0)),0)","v":0},null,null,null,{"$f":"[1]Personnel!F1259","v":0},{"$f":"IFERROR(INDEX((SLevel),MATCH(Personnel!BA1259,SLevel202223,0)),0)","v":0},{"$f":"[1]Personnel!H1259","v":0},{"$f":"[1]Personnel!I1259","v":0},{"$f":"[1]Personnel!J1259","v":0},{"$f":"[1]Personnel!P1259","v":0},{"$f":"[1]Personnel!Q1259","v":0},0,{"$f":"[1]Personnel!S1259","v":0},{"$f":"[1]Personnel!S1259","v":0},{"$f":"[1]Personnel!S1259","v":0},{"$f":"[1]Personnel!T1259","v":0},0,{"$f":"[1]Personnel!V1259","v":0},{"$f":"[1]Personnel!W1259","v":0},0,{"$f":"[1]Personnel!Y1259","v":0},{"$f":"[1]Personnel!Z1259","v":0},0,0,0,0,null,null,null,null,null,null,null,null,null,null,null,null,null,null,null,null,null,null,null,null,null,null,null,null,null,{"$f":"[1]Personnel!G1259","v":0}]
[0,{"$f":"IFERROR(INDEX(Settings!$AP$17:$AP$38,MATCH(Personnel!$G1260,Settings!$AQ$17:$AQ$38,0)),0)","v":0},null,null,null,{"$f":"[1]Personnel!F1260","v":0},{"$f":"IFERROR(INDEX((SLevel),MATCH(Personnel!BA1260,SLevel202223,0)),0)","v":0},{"$f":"[1]Personnel!H1260","v":0},{"$f":"[1]Personnel!I1260","v":0},{"$f":"[1]Personnel!J1260","v":0},{"$f":"[1]Personnel!P1260","v":0},{"$f":"[1]Personnel!Q1260","v":0},0,{"$f":"[1]Personnel!S1260","v":0},{"$f":"[1]Personnel!S1260","v":0},{"$f":"[1]Personnel!S1260","v":0},{"$f":"[1]Personnel!T1260","v":0},0,{"$f":"[1]Personnel!V1260","v":0},{"$f":"[1]Personnel!W1260","v":0},0,{"$f":"[1]Personnel!Y1260","v":0},{"$f":"[1]Personnel!Z1260","v":0},0,0,0,0,null,null,null,null,null,null,null,null,null,null,null,null,null,null,null,null,null,null,null,null,null,null,null,null,null,{"$f":"[1]Personnel!G1260","v":0}]
[0,{"$f":"IFERROR(INDEX(Settings!$AP$17:$AP$38,MATCH(Personnel!$G1261,Settings!$AQ$17:$AQ$38,0)),0)","v":0},null,null,null,{"$f":"[1]Personnel!F1261","v":0},{"$f":"IFERROR(INDEX((SLevel),MATCH(Personnel!BA1261,SLevel202223,0)),0)","v":0},{"$f":"[1]Personnel!H1261","v":0},{"$f":"[1]Personnel!I1261","v":0},{"$f":"[1]Personnel!J1261","v":0},{"$f":"[1]Personnel!P1261","v":0},{"$f":"[1]Personnel!Q1261","v":0},0,{"$f":"[1]Personnel!S1261","v":0},{"$f":"[1]Personnel!S1261","v":0},{"$f":"[1]Personnel!S1261","v":0},{"$f":"[1]Personnel!T1261","v":0},0,{"$f":"[1]Personnel!V1261","v":0},{"$f":"[1]Personnel!W1261","v":0},0,{"$f":"[1]Personnel!Y1261","v":0},{"$f":"[1]Personnel!Z1261","v":0},0,0,0,0,null,null,null,null,null,null,null,null,null,null,null,null,null,null,null,null,null,null,null,null,null,null,null,null,null,{"$f":"[1]Personnel!G1261","v":0}]
[0,{"$f":"IFERROR(INDEX(Settings!$AP$17:$AP$38,MATCH(Personnel!$G1262,Settings!$AQ$17:$AQ$38,0)),0)","v":0},null,null,null,{"$f":"[1]Personnel!F1262","v":0},{"$f":"IFERROR(INDEX((SLevel),MATCH(Personnel!BA1262,SLevel202223,0)),0)","v":0},{"$f":"[1]Personnel!H1262","v":0},{"$f":"[1]Personnel!I1262","v":0},{"$f":"[1]Personnel!J1262","v":0},{"$f":"[1]Personnel!P1262","v":0},{"$f":"[1]Personnel!Q1262","v":0},0,{"$f":"[1]Personnel!S1262","v":0},{"$f":"[1]Personnel!S1262","v":0},{"$f":"[1]Personnel!S1262","v":0},{"$f":"[1]Personnel!T1262","v":0},0,{"$f":"[1]Personnel!V1262","v":0},{"$f":"[1]Personnel!W1262","v":0},0,{"$f":"[1]Personnel!Y1262","v":0},{"$f":"[1]Personnel!Z1262","v":0},0,0,0,0,null,null,null,null,null,null,null,null,null,null,null,null,null,null,null,null,null,null,null,null,null,null,null,null,null,{"$f":"[1]Personnel!G1262","v":0}]
[0,{"$f":"IFERROR(INDEX(Settings!$AP$17:$AP$38,MATCH(Personnel!$G1263,Settings!$AQ$17:$AQ$38,0)),0)","v":0},null,null,null,{"$f":"[1]Personnel!F1263","v":0},{"$f":"IFERROR(INDEX((SLevel),MATCH(Personnel!BA1263,SLevel202223,0)),0)","v":0},{"$f":"[1]Personnel!H1263","v":0},{"$f":"[1]Personnel!I1263","v":0},{"$f":"[1]Personnel!J1263","v":0},{"$f":"[1]Personnel!P1263","v":0},{"$f":"[1]Personnel!Q1263","v":0},0,{"$f":"[1]Personnel!S1263","v":0},{"$f":"[1]Personnel!S1263","v":0},{"$f":"[1]Personnel!S1263","v":0},{"$f":"[1]Personnel!T1263","v":0},0,{"$f":"[1]Personnel!V1263","v":0},{"$f":"[1]Personnel!W1263","v":0},0,{"$f":"[1]Personnel!Y1263","v":0},{"$f":"[1]Personnel!Z1263","v":0},0,0,0,0,null,null,null,null,null,null,null,null,null,null,null,null,null,null,null,null,null,null,null,null,null,null,null,null,null,{"$f":"[1]Personnel!G1263","v":0}]
[0,{"$f":"IFERROR(INDEX(Settings!$AP$17:$AP$38,MATCH(Personnel!$G1264,Settings!$AQ$17:$AQ$38,0)),0)","v":0},null,null,null,{"$f":"[1]Personnel!F1264","v":0},{"$f":"IFERROR(INDEX((SLevel),MATCH(Personnel!BA1264,SLevel202223,0)),0)","v":0},{"$f":"[1]Personnel!H1264","v":0},{"$f":"[1]Personnel!I1264","v":0},{"$f":"[1]Personnel!J1264","v":0},{"$f":"[1]Personnel!P1264","v":0},{"$f":"[1]Personnel!Q1264","v":0},0,{"$f":"[1]Personnel!S1264","v":0},{"$f":"[1]Personnel!S1264","v":0},{"$f":"[1]Personnel!S1264","v":0},{"$f":"[1]Personnel!T1264","v":0},0,{"$f":"[1]Personnel!V1264","v":0},{"$f":"[1]Personnel!W1264","v":0},0,{"$f":"[1]Personnel!Y1264","v":0},{"$f":"[1]Personnel!Z1264","v":0},0,0,0,0,null,null,null,null,null,null,null,null,null,null,null,null,null,null,null,null,null,null,null,null,null,null,null,null,null,{"$f":"[1]Personnel!G1264","v":0}]
[0,{"$f":"IFERROR(INDEX(Settings!$AP$17:$AP$38,MATCH(Personnel!$G1265,Settings!$AQ$17:$AQ$38,0)),0)","v":0},null,null,null,{"$f":"[1]Personnel!F1265","v":0},{"$f":"IFERROR(INDEX((SLevel),MATCH(Personnel!BA1265,SLevel202223,0)),0)","v":0},{"$f":"[1]Personnel!H1265","v":0},{"$f":"[1]Personnel!I1265","v":0},{"$f":"[1]Personnel!J1265","v":0},{"$f":"[1]Personnel!P1265","v":0},{"$f":"[1]Personnel!Q1265","v":0},0,{"$f":"[1]Personnel!S1265","v":0},{"$f":"[1]Personnel!S1265","v":0},{"$f":"[1]Personnel!S1265","v":0},{"$f":"[1]Personnel!T1265","v":0},0,{"$f":"[1]Personnel!V1265","v":0},{"$f":"[1]Personnel!W1265","v":0},0,{"$f":"[1]Personnel!Y1265","v":0},{"$f":"[1]Personnel!Z1265","v":0},0,0,0,0,null,null,null,null,null,null,null,null,null,null,null,null,null,null,null,null,null,null,null,null,null,null,null,null,null,{"$f":"[1]Personnel!G1265","v":0}]
[0,{"$f":"IFERROR(INDEX(Settings!$AP$17:$AP$38,MATCH(Personnel!$G1266,Settings!$AQ$17:$AQ$38,0)),0)","v":0},null,null,null,{"$f":"[1]Personnel!F1266","v":0},{"$f":"IFERROR(INDEX((SLevel),MATCH(Personnel!BA1266,SLevel202223,0)),0)","v":0},{"$f":"[1]Personnel!H1266","v":0},{"$f":"[1]Personnel!I1266","v":0},{"$f":"[1]Personnel!J1266","v":0},{"$f":"[1]Personnel!P1266","v":0},{"$f":"[1]Personnel!Q1266","v":0},0,{"$f":"[1]Personnel!S1266","v":0},{"$f":"[1]Personnel!S1266","v":0},{"$f":"[1]Personnel!S1266","v":0},{"$f":"[1]Personnel!T1266","v":0},0,{"$f":"[1]Personnel!V1266","v":0},{"$f":"[1]Personnel!W1266","v":0},0,{"$f":"[1]Personnel!Y1266","v":0},{"$f":"[1]Personnel!Z1266","v":0},0,0,0,0,null,null,null,null,null,null,null,null,null,null,null,null,null,null,null,null,null,null,null,null,null,null,null,null,null,{"$f":"[1]Personnel!G1266","v":0}]
[0,{"$f":"IFERROR(INDEX(Settings!$AP$17:$AP$38,MATCH(Personnel!$G1267,Settings!$AQ$17:$AQ$38,0)),0)","v":0},null,null,null,{"$f":"[1]Personnel!F1267","v":0},{"$f":"IFERROR(INDEX((SLevel),MATCH(Personnel!BA1267,SLevel202223,0)),0)","v":0},{"$f":"[1]Personnel!H1267","v":0},{"$f":"[1]Personnel!I1267","v":0},{"$f":"[1]Personnel!J1267","v":0},{"$f":"[1]Personnel!P1267","v":0},{"$f":"[1]Personnel!Q1267","v":0},0,{"$f":"[1]Personnel!S1267","v":0},{"$f":"[1]Personnel!S1267","v":0},{"$f":"[1]Personnel!S1267","v":0},{"$f":"[1]Personnel!T1267","v":0},0,{"$f":"[1]Personnel!V1267","v":0},{"$f":"[1]Personnel!W1267","v":0},0,{"$f":"[1]Personnel!Y1267","v":0},{"$f":"[1]Personnel!Z1267","v":0},0,0,0,0,null,null,null,null,null,null,null,null,null,null,null,null,null,null,null,null,null,null,null,null,null,null,null,null,null,{"$f":"[1]Personnel!G1267","v":0}]
[0,{"$f":"IFERROR(INDEX(Settings!$AP$17:$AP$38,MATCH(Personnel!$G1268,Settings!$AQ$17:$AQ$38,0)),0)","v":0},null,null,null,{"$f":"[1]Personnel!F1268","v":0},{"$f":"IFERROR(INDEX((SLevel),MATCH(Personnel!BA1268,SLevel202223,0)),0)","v":0},{"$f":"[1]Personnel!H1268","v":0},{"$f":"[1]Personnel!I1268","v":0},{"$f":"[1]Personnel!J1268","v":0},{"$f":"[1]Personnel!P1268","v":0},{"$f":"[1]Personnel!Q1268","v":0},0,{"$f":"[1]Personnel!S1268","v":0},{"$f":"[1]Personnel!S1268","v":0},{"$f":"[1]Personnel!S1268","v":0},{"$f":"[1]Personnel!T1268","v":0},0,{"$f":"[1]Personnel!V1268","v":0},{"$f":"[1]Personnel!W1268","v":0},0,{"$f":"[1]Personnel!Y1268","v":0},{"$f":"[1]Personnel!Z1268","v":0},0,0,0,0,null,null,null,null,null,null,null,null,null,null,null,null,null,null,null,null,null,null,null,null,null,null,null,null,null,{"$f":"[1]Personnel!G1268","v":0}]
[0,{"$f":"IFERROR(INDEX(Settings!$AP$17:$AP$38,MATCH(Personnel!$G1269,Settings!$AQ$17:$AQ$38,0)),0)","v":0},null,null,null,{"$f":"[1]Personnel!F1269","v":0},{"$f":"IFERROR(INDEX((SLevel),MATCH(Personnel!BA1269,SLevel202223,0)),0)","v":0},{"$f":"[1]Personnel!H1269","v":0},{"$f":"[1]Personnel!I1269","v":0},{"$f":"[1]Personnel!J1269","v":0},{"$f":"[1]Personnel!P1269","v":0},{"$f":"[1]Personnel!Q1269","v":0},0,{"$f":"[1]Personnel!S1269","v":0},{"$f":"[1]Personnel!S1269","v":0},{"$f":"[1]Personnel!S1269","v":0},{"$f":"[1]Personnel!T1269","v":0},0,{"$f":"[1]Personnel!V1269","v":0},{"$f":"[1]Personnel!W1269","v":0},0,{"$f":"[1]Personnel!Y1269","v":0},{"$f":"[1]Personnel!Z1269","v":0},0,0,0,0,null,null,null,null,null,null,null,null,null,null,null,null,null,null,null,null,null,null,null,null,null,null,null,null,null,{"$f":"[1]Personnel!G1269","v":0}]
[0,{"$f":"IFERROR(INDEX(Settings!$AP$17:$AP$38,MATCH(Personnel!$G1270,Settings!$AQ$17:$AQ$38,0)),0)","v":0},null,null,null,{"$f":"[1]Personnel!F1270","v":0},{"$f":"IFERROR(INDEX((SLevel),MATCH(Personnel!BA1270,SLevel202223,0)),0)","v":0},{"$f":"[1]Personnel!H1270","v":0},{"$f":"[1]Personnel!I1270","v":0},{"$f":"[1]Personnel!J1270","v":0},{"$f":"[1]Personnel!P1270","v":0},{"$f":"[1]Personnel!Q1270","v":0},0,{"$f":"[1]Personnel!S1270","v":0},{"$f":"[1]Personnel!S1270","v":0},{"$f":"[1]Personnel!S1270","v":0},{"$f":"[1]Personnel!T1270","v":0},0,{"$f":"[1]Personnel!V1270","v":0},{"$f":"[1]Personnel!W1270","v":0},0,{"$f":"[1]Personnel!Y1270","v":0},{"$f":"[1]Personnel!Z1270","v":0},0,0,0,0,null,null,null,null,null,null,null,null,null,null,null,null,null,null,null,null,null,null,null,null,null,null,null,null,null,{"$f":"[1]Personnel!G1270","v":0}]
[0,{"$f":"IFERROR(INDEX(Settings!$AP$17:$AP$38,MATCH(Personnel!$G1271,Settings!$AQ$17:$AQ$38,0)),0)","v":0},null,null,null,{"$f":"[1]Personnel!F1271","v":0},{"$f":"IFERROR(INDEX((SLevel),MATCH(Personnel!BA1271,SLevel202223,0)),0)","v":0},{"$f":"[1]Personnel!H1271","v":0},{"$f":"[1]Personnel!I1271","v":0},{"$f":"[1]Personnel!J1271","v":0},{"$f":"[1]Personnel!P1271","v":0},{"$f":"[1]Personnel!Q1271","v":0},0,{"$f":"[1]Personnel!S1271","v":0},{"$f":"[1]Personnel!S1271","v":0},{"$f":"[1]Personnel!S1271","v":0},{"$f":"[1]Personnel!T1271","v":0},0,{"$f":"[1]Personnel!V1271","v":0},{"$f":"[1]Personnel!W1271","v":0},0,{"$f":"[1]Personnel!Y1271","v":0},{"$f":"[1]Personnel!Z1271","v":0},0,0,0,0,null,null,null,null,null,null,null,null,null,null,null,null,null,null,null,null,null,null,null,null,null,null,null,null,null,{"$f":"[1]Personnel!G1271","v":0}]
[0,{"$f":"IFERROR(INDEX(Settings!$AP$17:$AP$38,MATCH(Personnel!$G1272,Settings!$AQ$17:$AQ$38,0)),0)","v":0},null,null,null,{"$f":"[1]Personnel!F1272","v":0},{"$f":"IFERROR(INDEX((SLevel),MATCH(Personnel!BA1272,SLevel202223,0)),0)","v":0},{"$f":"[1]Personnel!H1272","v":0},{"$f":"[1]Personnel!I1272","v":0},{"$f":"[1]Personnel!J1272","v":0},{"$f":"[1]Personnel!P1272","v":0},{"$f":"[1]Personnel!Q1272","v":0},0,{"$f":"[1]Personnel!S1272","v":0},{"$f":"[1]Personnel!S1272","v":0},{"$f":"[1]Personnel!S1272","v":0},{"$f":"[1]Personnel!T1272","v":0},0,{"$f":"[1]Personnel!V1272","v":0},{"$f":"[1]Personnel!W1272","v":0},0,{"$f":"[1]Personnel!Y1272","v":0},{"$f":"[1]Personnel!Z1272","v":0},0,0,0,0,null,null,null,null,null,null,null,null,null,null,null,null,null,null,null,null,null,null,null,null,null,null,null,null,null,{"$f":"[1]Personnel!G1272","v":0}]
[0,{"$f":"IFERROR(INDEX(Settings!$AP$17:$AP$38,MATCH(Personnel!$G1273,Settings!$AQ$17:$AQ$38,0)),0)","v":0},null,null,null,{"$f":"[1]Personnel!F1273","v":0},{"$f":"IFERROR(INDEX((SLevel),MATCH(Personnel!BA1273,SLevel202223,0)),0)","v":0},{"$f":"[1]Personnel!H1273","v":0},{"$f":"[1]Personnel!I1273","v":0},{"$f":"[1]Personnel!J1273","v":0},{"$f":"[1]Personnel!P1273","v":0},{"$f":"[1]Personnel!Q1273","v":0},0,{"$f":"[1]Personnel!S1273","v":0},{"$f":"[1]Personnel!S1273","v":0},{"$f":"[1]Personnel!S1273","v":0},{"$f":"[1]Personnel!T1273","v":0},0,{"$f":"[1]Personnel!V1273","v":0},{"$f":"[1]Personnel!W1273","v":0},0,{"$f":"[1]Personnel!Y1273","v":0},{"$f":"[1]Personnel!Z1273","v":0},0,0,0,0,null,null,null,null,null,null,null,null,null,null,null,null,null,null,null,null,null,null,null,null,null,null,null,null,null,{"$f":"[1]Personnel!G1273","v":0}]
[0,{"$f":"IFERROR(INDEX(Settings!$AP$17:$AP$38,MATCH(Personnel!$G1274,Settings!$AQ$17:$AQ$38,0)),0)","v":0},null,null,null,{"$f":"[1]Personnel!F1274","v":0},{"$f":"IFERROR(INDEX((SLevel),MATCH(Personnel!BA1274,SLevel202223,0)),0)","v":0},{"$f":"[1]Personnel!H1274","v":0},{"$f":"[1]Personnel!I1274","v":0},{"$f":"[1]Personnel!J1274","v":0},{"$f":"[1]Personnel!P1274","v":0},{"$f":"[1]Personnel!Q1274","v":0},0,{"$f":"[1]Personnel!S1274","v":0},{"$f":"[1]Personnel!S1274","v":0},{"$f":"[1]Personnel!S1274","v":0},{"$f":"[1]Personnel!T1274","v":0},0,{"$f":"[1]Personnel!V1274","v":0},{"$f":"[1]Personnel!W1274","v":0},0,{"$f":"[1]Personnel!Y1274","v":0},{"$f":"[1]Personnel!Z1274","v":0},0,0,0,0,null,null,null,null,null,null,null,null,null,null,null,null,null,null,null,null,null,null,null,null,null,null,null,null,null,{"$f":"[1]Personnel!G1274","v":0}]
[0,{"$f":"IFERROR(INDEX(Settings!$AP$17:$AP$38,MATCH(Personnel!$G1275,Settings!$AQ$17:$AQ$38,0)),0)","v":0},null,null,null,{"$f":"[1]Personnel!F1275","v":0},{"$f":"IFERROR(INDEX((SLevel),MATCH(Personnel!BA1275,SLevel202223,0)),0)","v":0},{"$f":"[1]Personnel!H1275","v":0},{"$f":"[1]Personnel!I1275","v":0},{"$f":"[1]Personnel!J1275","v":0},{"$f":"[1]Personnel!P1275","v":0},{"$f":"[1]Personnel!Q1275","v":0},0,{"$f":"[1]Personnel!S1275","v":0},{"$f":"[1]Personnel!S1275","v":0},{"$f":"[1]Personnel!S1275","v":0},{"$f":"[1]Personnel!T1275","v":0},0,{"$f":"[1]Personnel!V1275","v":0},{"$f":"[1]Personnel!W1275","v":0},0,{"$f":"[1]Personnel!Y1275","v":0},{"$f":"[1]Personnel!Z1275","v":0},0,0,0,0,null,null,null,null,null,null,null,null,null,null,null,null,null,null,null,null,null,null,null,null,null,null,null,null,null,{"$f":"[1]Personnel!G1275","v":0}]
[0,{"$f":"IFERROR(INDEX(Settings!$AP$17:$AP$38,MATCH(Personnel!$G1276,Settings!$AQ$17:$AQ$38,0)),0)","v":0},null,null,null,{"$f":"[1]Personnel!F1276","v":0},{"$f":"IFERROR(INDEX((SLevel),MATCH(Personnel!BA1276,SLevel202223,0)),0)","v":0},{"$f":"[1]Personnel!H1276","v":0},{"$f":"[1]Personnel!I1276","v":0},{"$f":"[1]Personnel!J1276","v":0},{"$f":"[1]Personnel!P1276","v":0},{"$f":"[1]Personnel!Q1276","v":0},0,{"$f":"[1]Personnel!S1276","v":0},{"$f":"[1]Personnel!S1276","v":0},{"$f":"[1]Personnel!S1276","v":0},{"$f":"[1]Personnel!T1276","v":0},0,{"$f":"[1]Personnel!V1276","v":0},{"$f":"[1]Personnel!W1276","v":0},0,{"$f":"[1]Personnel!Y1276","v":0},{"$f":"[1]Personnel!Z1276","v":0},0,0,0,0,null,null,null,null,null,null,null,null,null,null,null,null,null,null,null,null,null,null,null,null,null,null,null,null,null,{"$f":"[1]Personnel!G1276","v":0}]
[0,{"$f":"IFERROR(INDEX(Settings!$AP$17:$AP$38,MATCH(Personnel!$G1277,Settings!$AQ$17:$AQ$38,0)),0)","v":0},null,null,null,{"$f":"[1]Personnel!F1277","v":0},{"$f":"IFERROR(INDEX((SLevel),MATCH(Personnel!BA1277,SLevel202223,0)),0)","v":0},{"$f":"[1]Personnel!H1277","v":0},{"$f":"[1]Personnel!I1277","v":0},{"$f":"[1]Personnel!J1277","v":0},{"$f":"[1]Personnel!P1277","v":0},{"$f":"[1]Personnel!Q1277","v":0},0,{"$f":"[1]Personnel!S1277","v":0},{"$f":"[1]Personnel!S1277","v":0},{"$f":"[1]Personnel!S1277","v":0},{"$f":"[1]Personnel!T1277","v":0},0,{"$f":"[1]Personnel!V1277","v":0},{"$f":"[1]Personnel!W1277","v":0},0,{"$f":"[1]Personnel!Y1277","v":0},{"$f":"[1]Personnel!Z1277","v":0},0,0,0,0,null,null,null,null,null,null,null,null,null,null,null,null,null,null,null,null,null,null,null,null,null,null,null,null,null,{"$f":"[1]Personnel!G1277","v":0}]
[0,{"$f":"IFERROR(INDEX(Settings!$AP$17:$AP$38,MATCH(Personnel!$G1278,Settings!$AQ$17:$AQ$38,0)),0)","v":0},null,null,null,{"$f":"[1]Personnel!F1278","v":0},{"$f":"IFERROR(INDEX((SLevel),MATCH(Personnel!BA1278,SLevel202223,0)),0)","v":0},{"$f":"[1]Personnel!H1278","v":0},{"$f":"[1]Personnel!I1278","v":0},{"$f":"[1]Personnel!J1278","v":0},{"$f":"[1]Personnel!P1278","v":0},{"$f":"[1]Personnel!Q1278","v":0},0,{"$f":"[1]Personnel!S1278","v":0},{"$f":"[1]Personnel!S1278","v":0},{"$f":"[1]Personnel!S1278","v":0},{"$f":"[1]Personnel!T1278","v":0},0,{"$f":"[1]Personnel!V1278","v":0},{"$f":"[1]Personnel!W1278","v":0},0,{"$f":"[1]Personnel!Y1278","v":0},{"$f":"[1]Personnel!Z1278","v":0},0,0,0,0,null,null,null,null,null,null,null,null,null,null,null,null,null,null,null,null,null,null,null,null,null,null,null,null,null,{"$f":"[1]Personnel!G1278","v":0}]
[0,{"$f":"IFERROR(INDEX(Settings!$AP$17:$AP$38,MATCH(Personnel!$G1279,Settings!$AQ$17:$AQ$38,0)),0)","v":0},null,null,null,{"$f":"[1]Personnel!F1279","v":0},{"$f":"IFERROR(INDEX((SLevel),MATCH(Personnel!BA1279,SLevel202223,0)),0)","v":0},{"$f":"[1]Personnel!H1279","v":0},{"$f":"[1]Personnel!I1279","v":0},{"$f":"[1]Personnel!J1279","v":0},{"$f":"[1]Personnel!P1279","v":0},{"$f":"[1]Personnel!Q1279","v":0},0,{"$f":"[1]Personnel!S1279","v":0},{"$f":"[1]Personnel!S1279","v":0},{"$f":"[1]Personnel!S1279","v":0},{"$f":"[1]Personnel!T1279","v":0},0,{"$f":"[1]Personnel!V1279","v":0},{"$f":"[1]Personnel!W1279","v":0},0,{"$f":"[1]Personnel!Y1279","v":0},{"$f":"[1]Personnel!Z1279","v":0},0,0,0,0,null,null,null,null,null,null,null,null,null,null,null,null,null,null,null,null,null,null,null,null,null,null,null,null,null,{"$f":"[1]Personnel!G1279","v":0}]
[0,{"$f":"IFERROR(INDEX(Settings!$AP$17:$AP$38,MATCH(Personnel!$G1280,Settings!$AQ$17:$AQ$38,0)),0)","v":0},null,null,null,{"$f":"[1]Personnel!F1280","v":0},{"$f":"IFERROR(INDEX((SLevel),MATCH(Personnel!BA1280,SLevel202223,0)),0)","v":0},{"$f":"[1]Personnel!H1280","v":0},{"$f":"[1]Personnel!I1280","v":0},{"$f":"[1]Personnel!J1280","v":0},{"$f":"[1]Personnel!P1280","v":0},{"$f":"[1]Personnel!Q1280","v":0},0,{"$f":"[1]Personnel!S1280","v":0},{"$f":"[1]Personnel!S1280","v":0},{"$f":"[1]Personnel!S1280","v":0},{"$f":"[1]Personnel!T1280","v":0},0,{"$f":"[1]Personnel!V1280","v":0},{"$f":"[1]Personnel!W1280","v":0},0,{"$f":"[1]Personnel!Y1280","v":0},{"$f":"[1]Personnel!Z1280","v":0},0,0,0,0,null,null,null,null,null,null,null,null,null,null,null,null,null,null,null,null,null,null,null,null,null,null,null,null,null,{"$f":"[1]Personnel!G1280","v":0}]
[0,{"$f":"IFERROR(INDEX(Settings!$AP$17:$AP$38,MATCH(Personnel!$G1281,Settings!$AQ$17:$AQ$38,0)),0)","v":0},null,null,null,{"$f":"[1]Personnel!F1281","v":0},{"$f":"IFERROR(INDEX((SLevel),MATCH(Personnel!BA1281,SLevel202223,0)),0)","v":0},{"$f":"[1]Personnel!H1281","v":0},{"$f":"[1]Personnel!I1281","v":0},{"$f":"[1]Personnel!J1281","v":0},{"$f":"[1]Personnel!P1281","v":0},{"$f":"[1]Personnel!Q1281","v":0},0,{"$f":"[1]Personnel!S1281","v":0},{"$f":"[1]Personnel!S1281","v":0},{"$f":"[1]Personnel!S1281","v":0},{"$f":"[1]Personnel!T1281","v":0},0,{"$f":"[1]Personnel!V1281","v":0},{"$f":"[1]Personnel!W1281","v":0},0,{"$f":"[1]Personnel!Y1281","v":0},{"$f":"[1]Personnel!Z1281","v":0},0,0,0,0,null,null,null,null,null,null,null,null,null,null,null,null,null,null,null,null,null,null,null,null,null,null,null,null,null,{"$f":"[1]Personnel!G1281","v":0}]
[0,{"$f":"IFERROR(INDEX(Settings!$AP$17:$AP$38,MATCH(Personnel!$G1282,Settings!$AQ$17:$AQ$38,0)),0)","v":0},null,null,null,{"$f":"[1]Personnel!F1282","v":0},{"$f":"IFERROR(INDEX((SLevel),MATCH(Personnel!BA1282,SLevel202223,0)),0)","v":0},{"$f":"[1]Personnel!H1282","v":0},{"$f":"[1]Personnel!I1282","v":0},{"$f":"[1]Personnel!J1282","v":0},{"$f":"[1]Personnel!P1282","v":0},{"$f":"[1]Personnel!Q1282","v":0},0,{"$f":"[1]Personnel!S1282","v":0},{"$f":"[1]Personnel!S1282","v":0},{"$f":"[1]Personnel!S1282","v":0},{"$f":"[1]Personnel!T1282","v":0},0,{"$f":"[1]Personnel!V1282","v":0},{"$f":"[1]Personnel!W1282","v":0},0,{"$f":"[1]Personnel!Y1282","v":0},{"$f":"[1]Personnel!Z1282","v":0},0,0,0,0,null,null,null,null,null,null,null,null,null,null,null,null,null,null,null,null,null,null,null,null,null,null,null,null,null,{"$f":"[1]Personnel!G1282","v":0}]
[0,{"$f":"IFERROR(INDEX(Settings!$AP$17:$AP$38,MATCH(Personnel!$G1283,Settings!$AQ$17:$AQ$38,0)),0)","v":0},null,null,null,{"$f":"[1]Personnel!F1283","v":0},{"$f":"IFERROR(INDEX((SLevel),MATCH(Personnel!BA1283,SLevel202223,0)),0)","v":0},{"$f":"[1]Personnel!H1283","v":0},{"$f":"[1]Personnel!I1283","v":0},{"$f":"[1]Personnel!J1283","v":0},{"$f":"[1]Personnel!P1283","v":0},{"$f":"[1]Personnel!Q1283","v":0},0,{"$f":"[1]Personnel!S1283","v":0},{"$f":"[1]Personnel!S1283","v":0},{"$f":"[1]Personnel!S1283","v":0},{"$f":"[1]Personnel!T1283","v":0},0,{"$f":"[1]Personnel!V1283","v":0},{"$f":"[1]Personnel!W1283","v":0},0,{"$f":"[1]Personnel!Y1283","v":0},{"$f":"[1]Personnel!Z1283","v":0},0,0,0,0,null,null,null,null,null,null,null,null,null,null,null,null,null,null,null,null,null,null,null,null,null,null,null,null,null,{"$f":"[1]Personnel!G1283","v":0}]
[0,{"$f":"IFERROR(INDEX(Settings!$AP$17:$AP$38,MATCH(Personnel!$G1284,Settings!$AQ$17:$AQ$38,0)),0)","v":0},null,null,null,{"$f":"[1]Personnel!F1284","v":0},{"$f":"IFERROR(INDEX((SLevel),MATCH(Personnel!BA1284,SLevel202223,0)),0)","v":0},{"$f":"[1]Personnel!H1284","v":0},{"$f":"[1]Personnel!I1284","v":0},{"$f":"[1]Personnel!J1284","v":0},{"$f":"[1]Personnel!P1284","v":0},{"$f":"[1]Personnel!Q1284","v":0},0,{"$f":"[1]Personnel!S1284","v":0},{"$f":"[1]Personnel!S1284","v":0},{"$f":"[1]Personnel!S1284","v":0},{"$f":"[1]Personnel!T1284","v":0},0,{"$f":"[1]Personnel!V1284","v":0},{"$f":"[1]Personnel!W1284","v":0},0,{"$f":"[1]Personnel!Y1284","v":0},{"$f":"[1]Personnel!Z1284","v":0},0,0,0,0,null,null,null,null,null,null,null,null,null,null,null,null,null,null,null,null,null,null,null,null,null,null,null,null,null,{"$f":"[1]Personnel!G1284","v":0}]
[0,{"$f":"IFERROR(INDEX(Settings!$AP$17:$AP$38,MATCH(Personnel!$G1285,Settings!$AQ$17:$AQ$38,0)),0)","v":0},null,null,null,{"$f":"[1]Personnel!F1285","v":0},{"$f":"IFERROR(INDEX((SLevel),MATCH(Personnel!BA1285,SLevel202223,0)),0)","v":0},{"$f":"[1]Personnel!H1285","v":0},{"$f":"[1]Personnel!I1285","v":0},{"$f":"[1]Personnel!J1285","v":0},{"$f":"[1]Personnel!P1285","v":0},{"$f":"[1]Personnel!Q1285","v":0},0,{"$f":"[1]Personnel!S1285","v":0},{"$f":"[1]Personnel!S1285","v":0},{"$f":"[1]Personnel!S1285","v":0},{"$f":"[1]Personnel!T1285","v":0},0,{"$f":"[1]Personnel!V1285","v":0},{"$f":"[1]Personnel!W1285","v":0},0,{"$f":"[1]Personnel!Y1285","v":0},{"$f":"[1]Personnel!Z1285","v":0},0,0,0,0,null,null,null,null,null,null,null,null,null,null,null,null,null,null,null,null,null,null,null,null,null,null,null,null,null,{"$f":"[1]Personnel!G1285","v":0}]
[0,{"$f":"IFERROR(INDEX(Settings!$AP$17:$AP$38,MATCH(Personnel!$G1286,Settings!$AQ$17:$AQ$38,0)),0)","v":0},null,null,null,{"$f":"[1]Personnel!F1286","v":0},{"$f":"IFERROR(INDEX((SLevel),MATCH(Personnel!BA1286,SLevel202223,0)),0)","v":0},{"$f":"[1]Personnel!H1286","v":0},{"$f":"[1]Personnel!I1286","v":0},{"$f":"[1]Personnel!J1286","v":0},{"$f":"[1]Personnel!P1286","v":0},{"$f":"[1]Personnel!Q1286","v":0},0,{"$f":"[1]Personnel!S1286","v":0},{"$f":"[1]Personnel!S1286","v":0},{"$f":"[1]Personnel!S1286","v":0},{"$f":"[1]Personnel!T1286","v":0},0,{"$f":"[1]Personnel!V1286","v":0},{"$f":"[1]Personnel!W1286","v":0},0,{"$f":"[1]Personnel!Y1286","v":0},{"$f":"[1]Personnel!Z1286","v":0},0,0,0,0,null,null,null,null,null,null,null,null,null,null,null,null,null,null,null,null,null,null,null,null,null,null,null,null,null,{"$f":"[1]Personnel!G1286","v":0}]
[0,{"$f":"IFERROR(INDEX(Settings!$AP$17:$AP$38,MATCH(Personnel!$G1287,Settings!$AQ$17:$AQ$38,0)),0)","v":0},null,null,null,{"$f":"[1]Personnel!F1287","v":0},{"$f":"IFERROR(INDEX((SLevel),MATCH(Personnel!BA1287,SLevel202223,0)),0)","v":0},{"$f":"[1]Personnel!H1287","v":0},{"$f":"[1]Personnel!I1287","v":0},{"$f":"[1]Personnel!J1287","v":0},{"$f":"[1]Personnel!P1287","v":0},{"$f":"[1]Personnel!Q1287","v":0},0,{"$f":"[1]Personnel!S1287","v":0},{"$f":"[1]Personnel!S1287","v":0},{"$f":"[1]Personnel!S1287","v":0},{"$f":"[1]Personnel!T1287","v":0},0,{"$f":"[1]Personnel!V1287","v":0},{"$f":"[1]Personnel!W1287","v":0},0,{"$f":"[1]Personnel!Y1287","v":0},{"$f":"[1]Personnel!Z1287","v":0},0,0,0,0,null,null,null,null,null,null,null,null,null,null,null,null,null,null,null,null,null,null,null,null,null,null,null,null,null,{"$f":"[1]Personnel!G1287","v":0}]
[0,{"$f":"IFERROR(INDEX(Settings!$AP$17:$AP$38,MATCH(Personnel!$G1288,Settings!$AQ$17:$AQ$38,0)),0)","v":0},null,null,null,{"$f":"[1]Personnel!F1288","v":0},{"$f":"IFERROR(INDEX((SLevel),MATCH(Personnel!BA1288,SLevel202223,0)),0)","v":0},{"$f":"[1]Personnel!H1288","v":0},{"$f":"[1]Personnel!I1288","v":0},{"$f":"[1]Personnel!J1288","v":0},{"$f":"[1]Personnel!P1288","v":0},{"$f":"[1]Personnel!Q1288","v":0},0,{"$f":"[1]Personnel!S1288","v":0},{"$f":"[1]Personnel!S1288","v":0},{"$f":"[1]Personnel!S1288","v":0},{"$f":"[1]Personnel!T1288","v":0},0,{"$f":"[1]Personnel!V1288","v":0},{"$f":"[1]Personnel!W1288","v":0},0,{"$f":"[1]Personnel!Y1288","v":0},{"$f":"[1]Personnel!Z1288","v":0},0,0,0,0,null,null,null,null,null,null,null,null,null,null,null,null,null,null,null,null,null,null,null,null,null,null,null,null,null,{"$f":"[1]Personnel!G1288","v":0}]
[0,{"$f":"IFERROR(INDEX(Settings!$AP$17:$AP$38,MATCH(Personnel!$G1289,Settings!$AQ$17:$AQ$38,0)),0)","v":0},null,null,null,{"$f":"[1]Personnel!F1289","v":0},{"$f":"IFERROR(INDEX((SLevel),MATCH(Personnel!BA1289,SLevel202223,0)),0)","v":0},{"$f":"[1]Personnel!H1289","v":0},{"$f":"[1]Personnel!I1289","v":0},{"$f":"[1]Personnel!J1289","v":0},{"$f":"[1]Personnel!P1289","v":0},{"$f":"[1]Personnel!Q1289","v":0},0,{"$f":"[1]Personnel!S1289","v":0},{"$f":"[1]Personnel!S1289","v":0},{"$f":"[1]Personnel!S1289","v":0},{"$f":"[1]Personnel!T1289","v":0},0,{"$f":"[1]Personnel!V1289","v":0},{"$f":"[1]Personnel!W1289","v":0},0,{"$f":"[1]Personnel!Y1289","v":0},{"$f":"[1]Personnel!Z1289","v":0},0,0,0,0,null,null,null,null,null,null,null,null,null,null,null,null,null,null,null,null,null,null,null,null,null,null,null,null,null,{"$f":"[1]Personnel!G1289","v":0}]
[0,{"$f":"IFERROR(INDEX(Settings!$AP$17:$AP$38,MATCH(Personnel!$G1290,Settings!$AQ$17:$AQ$38,0)),0)","v":0},null,null,null,{"$f":"[1]Personnel!F1290","v":0},{"$f":"IFERROR(INDEX((SLevel),MATCH(Personnel!BA1290,SLevel202223,0)),0)","v":0},{"$f":"[1]Personnel!H1290","v":0},{"$f":"[1]Personnel!I1290","v":0},{"$f":"[1]Personnel!J1290","v":0},{"$f":"[1]Personnel!P1290","v":0},{"$f":"[1]Personnel!Q1290","v":0},0,{"$f":"[1]Personnel!S1290","v":0},{"$f":"[1]Personnel!S1290","v":0},{"$f":"[1]Personnel!S1290","v":0},{"$f":"[1]Personnel!T1290","v":0},0,{"$f":"[1]Personnel!V1290","v":0},{"$f":"[1]Personnel!W1290","v":0},0,{"$f":"[1]Personnel!Y1290","v":0},{"$f":"[1]Personnel!Z1290","v":0},0,0,0,0,null,null,null,null,null,null,null,null,null,null,null,null,null,null,null,null,null,null,null,null,null,null,null,null,null,{"$f":"[1]Personnel!G1290","v":0}]
[0,{"$f":"IFERROR(INDEX(Settings!$AP$17:$AP$38,MATCH(Personnel!$G1291,Settings!$AQ$17:$AQ$38,0)),0)","v":0},null,null,null,{"$f":"[1]Personnel!F1291","v":0},{"$f":"IFERROR(INDEX((SLevel),MATCH(Personnel!BA1291,SLevel202223,0)),0)","v":0},{"$f":"[1]Personnel!H1291","v":0},{"$f":"[1]Personnel!I1291","v":0},{"$f":"[1]Personnel!J1291","v":0},{"$f":"[1]Personnel!P1291","v":0},{"$f":"[1]Personnel!Q1291","v":0},0,{"$f":"[1]Personnel!S1291","v":0},{"$f":"[1]Personnel!S1291","v":0},{"$f":"[1]Personnel!S1291","v":0},{"$f":"[1]Personnel!T1291","v":0},0,{"$f":"[1]Personnel!V1291","v":0},{"$f":"[1]Personnel!W1291","v":0},0,{"$f":"[1]Personnel!Y1291","v":0},{"$f":"[1]Personnel!Z1291","v":0},0,0,0,0,null,null,null,null,null,null,null,null,null,null,null,null,null,null,null,null,null,null,null,null,null,null,null,null,null,{"$f":"[1]Personnel!G1291","v":0}]
[{"$f":"IF(SUM(K1292:AA1292)>0,1,0)","v":0},{"$f":"IFERROR(INDEX(Settings!$AP$17:$AP$38,MATCH(Personnel!$G1292,Settings!$AQ$17:$AQ$38,0)),0)","v":0},null,null,null,{"$f":"[1]Personnel!F1292","v":0},{"$f":"IFERROR(INDEX((SLevel),MATCH(Personnel!BA1292,SLevel202223,0)),0)","v":0},{"$f":"[1]Personnel!H1292","v":0},{"$f":"[1]Personnel!I1292","v":0},{"$f":"[1]Personnel!J1292","v":0},{"$f":"[1]Personnel!P1292","v":0},{"$f":"[1]Personnel!Q1292","v":0},0,{"$f":"[1]Personnel!S1292","v":0},{"$f":"[1]Personnel!S1292","v":0},{"$f":"[1]Personnel!S1292","v":0},{"$f":"[1]Personnel!T1292","v":0},0,{"$f":"[1]Personnel!V1292","v":0},{"$f":"[1]Personnel!W1292","v":0},0,{"$f":"[1]Personnel!Y1292","v":0},{"$f":"[1]Personnel!Z1292","v":0},0,0,0,0,null,null,null,null,null,null,null,null,null,null,null,null,null,null,null,null,null,null,null,null,null,null,null,null,null,{"$f":"[1]Personnel!G1292","v":0}]
[0,{"$f":"IFERROR(INDEX(Settings!$AP$17:$AP$38,MATCH(Personnel!$G1293,Settings!$AQ$17:$AQ$38,0)),0)","v":0},null,null,null,{"$f":"[1]Personnel!F1293","v":0},{"$f":"IFERROR(INDEX((SLevel),MATCH(Personnel!BA1293,SLevel202223,0)),0)","v":0},{"$f":"[1]Personnel!H1293","v":0},{"$f":"[1]Personnel!I1293","v":0},{"$f":"[1]Personnel!J1293","v":0},{"$f":"[1]Personnel!P1293","v":0},{"$f":"[1]Personnel!Q1293","v":0},{"$f":"ROUND(IF(ISERROR(L1293/K1293),0,(L1293/K1293)),0)","v":0},{"$f":"[1]Personnel!S1293","v":0},{"$f":"[1]Personnel!S1293","v":0},{"$f":"[1]Personnel!S1293","v":0},{"$f":"[1]Personnel!T1293","v":0},{"$f":"ROUND(IF(ISERROR(Q1293/P1293),0,(Q1293/P1293)),0)","v":0},{"$f":"[1]Personnel!V1293","v":0},{"$f":"[1]Personnel!W1293","v":0},{"$f":"ROUND(IF(ISERROR(T1293/S1293),0,(T1293/S1293)),0)","v":0},{"$f":"[1]Personnel!Y1293","v":0},{"$f":"[1]Personnel!Z1293","v":0},{"$f":"ROUND(IF(ISERROR(W1293/V1293),0,(W1293/V1293)),0)","v":0},0,0,{"$f":"ROUND(IF(ISERROR(Z1293/Y1293),0,(Z1293/Y1293)),0)","v":0},null,null,null,null,null,null,null,null,null,null,null,null,null,null,null,null,null,null,null,null,null,null,null,null,null,{"$f":"[1]Personnel!G1293","v":0}]
[0,{"$f":"IFERROR(INDEX(Settings!$AP$17:$AP$38,MATCH(Personnel!$G1294,Settings!$AQ$17:$AQ$38,0)),0)","v":0},null,null,null,{"$f":"[1]Personnel!F1294","v":0},{"$f":"IFERROR(INDEX((SLevel),MATCH(Personnel!BA1294,SLevel202223,0)),0)","v":0},{"$f":"[1]Personnel!H1294","v":0},{"$f":"[1]Personnel!I1294","v":0},{"$f":"[1]Personnel!J1294","v":0},{"$f":"[1]Personnel!P1294","v":0},{"$f":"[1]Personnel!Q1294","v":0},0,{"$f":"[1]Personnel!S1294","v":0},{"$f":"[1]Personnel!S1294","v":0},{"$f":"[1]Personnel!S1294","v":0},{"$f":"[1]Personnel!T1294","v":0},0,{"$f":"[1]Personnel!V1294","v":0},{"$f":"[1]Personnel!W1294","v":0},0,{"$f":"[1]Personnel!Y1294","v":0},{"$f":"[1]Personnel!Z1294","v":0},0,0,0,0,null,null,null,null,null,null,null,null,null,null,null,null,null,null,null,null,null,null,null,null,null,null,null,null,null,{"$f":"[1]Personnel!G1294","v":0}]
[0,{"$f":"IFERROR(INDEX(Settings!$AP$17:$AP$38,MATCH(Personnel!$G1295,Settings!$AQ$17:$AQ$38,0)),0)","v":0},null,null,null,{"$f":"[1]Personnel!F1295","v":0},{"$f":"IFERROR(INDEX((SLevel),MATCH(Personnel!BA1295,SLevel202223,0)),0)","v":0},{"$f":"[1]Personnel!H1295","v":0},{"$f":"[1]Personnel!I1295","v":0},{"$f":"[1]Personnel!J1295","v":0},{"$f":"[1]Personnel!P1295","v":0},{"$f":"[1]Personnel!Q1295","v":0},0,{"$f":"[1]Personnel!S1295","v":0},{"$f":"[1]Personnel!S1295","v":0},{"$f":"[1]Personnel!S1295","v":0},{"$f":"[1]Personnel!T1295","v":0},0,{"$f":"[1]Personnel!V1295","v":0},{"$f":"[1]Personnel!W1295","v":0},0,{"$f":"[1]Personnel!Y1295","v":0},{"$f":"[1]Personnel!Z1295","v":0},0,0,0,0,null,null,null,null,null,null,null,null,null,null,null,null,null,null,null,null,null,null,null,null,null,null,null,null,null,{"$f":"[1]Personnel!G1295","v":0}]
[0,{"$f":"IFERROR(INDEX(Settings!$AP$17:$AP$38,MATCH(Personnel!$G1296,Settings!$AQ$17:$AQ$38,0)),0)","v":0},null,null,null,{"$f":"[1]Personnel!F1296","v":0},{"$f":"IFERROR(INDEX((SLevel),MATCH(Personnel!BA1296,SLevel202223,0)),0)","v":0},{"$f":"[1]Personnel!H1296","v":0},{"$f":"[1]Personnel!I1296","v":0},{"$f":"[1]Personnel!J1296","v":0},{"$f":"[1]Personnel!P1296","v":0},{"$f":"[1]Personnel!Q1296","v":0},0,{"$f":"[1]Personnel!S1296","v":0},{"$f":"[1]Personnel!S1296","v":0},{"$f":"[1]Personnel!S1296","v":0},{"$f":"[1]Personnel!T1296","v":0},0,{"$f":"[1]Personnel!V1296","v":0},{"$f":"[1]Personnel!W1296","v":0},0,{"$f":"[1]Personnel!Y1296","v":0},{"$f":"[1]Personnel!Z1296","v":0},0,0,0,0,null,null,null,null,null,null,null,null,null,null,null,null,null,null,null,null,null,null,null,null,null,null,null,null,null,{"$f":"[1]Personnel!G1296","v":0}]
[0,{"$f":"IFERROR(INDEX(Settings!$AP$17:$AP$38,MATCH(Personnel!$G1297,Settings!$AQ$17:$AQ$38,0)),0)","v":0},null,null,null,{"$f":"[1]Personnel!F1297","v":0},{"$f":"IFERROR(INDEX((SLevel),MATCH(Personnel!BA1297,SLevel202223,0)),0)","v":0},{"$f":"[1]Personnel!H1297","v":0},{"$f":"[1]Personnel!I1297","v":0},{"$f":"[1]Personnel!J1297","v":0},{"$f":"[1]Personnel!P1297","v":0},{"$f":"[1]Personnel!Q1297","v":0},0,{"$f":"[1]Personnel!S1297","v":0},{"$f":"[1]Personnel!S1297","v":0},{"$f":"[1]Personnel!S1297","v":0},{"$f":"[1]Personnel!T1297","v":0},0,{"$f":"[1]Personnel!V1297","v":0},{"$f":"[1]Personnel!W1297","v":0},0,{"$f":"[1]Personnel!Y1297","v":0},{"$f":"[1]Personnel!Z1297","v":0},0,0,0,0,null,null,null,null,null,null,null,null,null,null,null,null,null,null,null,null,null,null,null,null,null,null,null,null,null,{"$f":"[1]Personnel!G1297","v":0}]
[0,{"$f":"IFERROR(INDEX(Settings!$AP$17:$AP$38,MATCH(Personnel!$G1298,Settings!$AQ$17:$AQ$38,0)),0)","v":0},null,null,null,{"$f":"[1]Personnel!F1298","v":0},{"$f":"IFERROR(INDEX((SLevel),MATCH(Personnel!BA1298,SLevel202223,0)),0)","v":0},{"$f":"[1]Personnel!H1298","v":0},{"$f":"[1]Personnel!I1298","v":0},{"$f":"[1]Personnel!J1298","v":0},{"$f":"[1]Personnel!P1298","v":0},{"$f":"[1]Personnel!Q1298","v":0},0,{"$f":"[1]Personnel!S1298","v":0},{"$f":"[1]Personnel!S1298","v":0},{"$f":"[1]Personnel!S1298","v":0},{"$f":"[1]Personnel!T1298","v":0},0,{"$f":"[1]Personnel!V1298","v":0},{"$f":"[1]Personnel!W1298","v":0},0,{"$f":"[1]Personnel!Y1298","v":0},{"$f":"[1]Personnel!Z1298","v":0},0,0,0,0,null,null,null,null,null,null,null,null,null,null,null,null,null,null,null,null,null,null,null,null,null,null,null,null,null,{"$f":"[1]Personnel!G1298","v":0}]
[0,{"$f":"IFERROR(INDEX(Settings!$AP$17:$AP$38,MATCH(Personnel!$G1299,Settings!$AQ$17:$AQ$38,0)),0)","v":0},null,null,null,{"$f":"[1]Personnel!F1299","v":0},{"$f":"IFERROR(INDEX((SLevel),MATCH(Personnel!BA1299,SLevel202223,0)),0)","v":0},{"$f":"[1]Personnel!H1299","v":0},{"$f":"[1]Personnel!I1299","v":0},{"$f":"[1]Personnel!J1299","v":0},{"$f":"[1]Personnel!P1299","v":0},{"$f":"[1]Personnel!Q1299","v":0},0,{"$f":"[1]Personnel!S1299","v":0},{"$f":"[1]Personnel!S1299","v":0},{"$f":"[1]Personnel!S1299","v":0},{"$f":"[1]Personnel!T1299","v":0},0,{"$f":"[1]Personnel!V1299","v":0},{"$f":"[1]Personnel!W1299","v":0},0,{"$f":"[1]Personnel!Y1299","v":0},{"$f":"[1]Personnel!Z1299","v":0},0,0,0,0,null,null,null,null,null,null,null,null,null,null,null,null,null,null,null,null,null,null,null,null,null,null,null,null,null,{"$f":"[1]Personnel!G1299","v":0}]
[0,{"$f":"IFERROR(INDEX(Settings!$AP$17:$AP$38,MATCH(Personnel!$G1300,Settings!$AQ$17:$AQ$38,0)),0)","v":0},null,null,null,{"$f":"[1]Personnel!F1300","v":0},{"$f":"IFERROR(INDEX((SLevel),MATCH(Personnel!BA1300,SLevel202223,0)),0)","v":0},{"$f":"[1]Personnel!H1300","v":0},{"$f":"[1]Personnel!I1300","v":0},{"$f":"[1]Personnel!J1300","v":0},{"$f":"[1]Personnel!P1300","v":0},{"$f":"[1]Personnel!Q1300","v":0},0,{"$f":"[1]Personnel!S1300","v":0},{"$f":"[1]Personnel!S1300","v":0},{"$f":"[1]Personnel!S1300","v":0},{"$f":"[1]Personnel!T1300","v":0},0,{"$f":"[1]Personnel!V1300","v":0},{"$f":"[1]Personnel!W1300","v":0},0,{"$f":"[1]Personnel!Y1300","v":0},{"$f":"[1]Personnel!Z1300","v":0},0,0,0,0,null,null,null,null,null,null,null,null,null,null,null,null,null,null,null,null,null,null,null,null,null,null,null,null,null,{"$f":"[1]Personnel!G1300","v":0}]
[0,{"$f":"IFERROR(INDEX(Settings!$AP$17:$AP$38,MATCH(Personnel!$G1301,Settings!$AQ$17:$AQ$38,0)),0)","v":0},null,null,null,{"$f":"[1]Personnel!F1301","v":0},{"$f":"IFERROR(INDEX((SLevel),MATCH(Personnel!BA1301,SLevel202223,0)),0)","v":0},{"$f":"[1]Personnel!H1301","v":0},{"$f":"[1]Personnel!I1301","v":0},{"$f":"[1]Personnel!J1301","v":0},{"$f":"[1]Personnel!P1301","v":0},{"$f":"[1]Personnel!Q1301","v":0},0,{"$f":"[1]Personnel!S1301","v":0},{"$f":"[1]Personnel!S1301","v":0},{"$f":"[1]Personnel!S1301","v":0},{"$f":"[1]Personnel!T1301","v":0},0,{"$f":"[1]Personnel!V1301","v":0},{"$f":"[1]Personnel!W1301","v":0},0,{"$f":"[1]Personnel!Y1301","v":0},{"$f":"[1]Personnel!Z1301","v":0},0,0,0,0,null,null,null,null,null,null,null,null,null,null,null,null,null,null,null,null,null,null,null,null,null,null,null,null,null,{"$f":"[1]Personnel!G1301","v":0}]
[0,{"$f":"IFERROR(INDEX(Settings!$AP$17:$AP$38,MATCH(Personnel!$G1302,Settings!$AQ$17:$AQ$38,0)),0)","v":0},null,null,null,{"$f":"[1]Personnel!F1302","v":0},{"$f":"IFERROR(INDEX((SLevel),MATCH(Personnel!BA1302,SLevel202223,0)),0)","v":0},{"$f":"[1]Personnel!H1302","v":0},{"$f":"[1]Personnel!I1302","v":0},{"$f":"[1]Personnel!J1302","v":0},{"$f":"[1]Personnel!P1302","v":0},{"$f":"[1]Personnel!Q1302","v":0},0,{"$f":"[1]Personnel!S1302","v":0},{"$f":"[1]Personnel!S1302","v":0},{"$f":"[1]Personnel!S1302","v":0},{"$f":"[1]Personnel!T1302","v":0},0,{"$f":"[1]Personnel!V1302","v":0},{"$f":"[1]Personnel!W1302","v":0},0,{"$f":"[1]Personnel!Y1302","v":0},{"$f":"[1]Personnel!Z1302","v":0},0,0,0,0,null,null,null,null,null,null,null,null,null,null,null,null,null,null,null,null,null,null,null,null,null,null,null,null,null,{"$f":"[1]Personnel!G1302","v":0}]
[0,{"$f":"IFERROR(INDEX(Settings!$AP$17:$AP$38,MATCH(Personnel!$G1303,Settings!$AQ$17:$AQ$38,0)),0)","v":0},null,null,null,{"$f":"[1]Personnel!F1303","v":0},{"$f":"IFERROR(INDEX((SLevel),MATCH(Personnel!BA1303,SLevel202223,0)),0)","v":0},{"$f":"[1]Personnel!H1303","v":0},{"$f":"[1]Personnel!I1303","v":0},{"$f":"[1]Personnel!J1303","v":0},{"$f":"[1]Personnel!P1303","v":0},{"$f":"[1]Personnel!Q1303","v":0},0,{"$f":"[1]Personnel!S1303","v":0},{"$f":"[1]Personnel!S1303","v":0},{"$f":"[1]Personnel!S1303","v":0},{"$f":"[1]Personnel!T1303","v":0},0,{"$f":"[1]Personnel!V1303","v":0},{"$f":"[1]Personnel!W1303","v":0},0,{"$f":"[1]Personnel!Y1303","v":0},{"$f":"[1]Personnel!Z1303","v":0},0,0,0,0,null,null,null,null,null,null,null,null,null,null,null,null,null,null,null,null,null,null,null,null,null,null,null,null,null,{"$f":"[1]Personnel!G1303","v":0}]
[0,{"$f":"IFERROR(INDEX(Settings!$AP$17:$AP$38,MATCH(Personnel!$G1304,Settings!$AQ$17:$AQ$38,0)),0)","v":0},null,null,null,{"$f":"[1]Personnel!F1304","v":0},{"$f":"IFERROR(INDEX((SLevel),MATCH(Personnel!BA1304,SLevel202223,0)),0)","v":0},{"$f":"[1]Personnel!H1304","v":0},{"$f":"[1]Personnel!I1304","v":0},{"$f":"[1]Personnel!J1304","v":0},{"$f":"[1]Personnel!P1304","v":0},{"$f":"[1]Personnel!Q1304","v":0},0,{"$f":"[1]Personnel!S1304","v":0},{"$f":"[1]Personnel!S1304","v":0},{"$f":"[1]Personnel!S1304","v":0},{"$f":"[1]Personnel!T1304","v":0},0,{"$f":"[1]Personnel!V1304","v":0},{"$f":"[1]Personnel!W1304","v":0},0,{"$f":"[1]Personnel!Y1304","v":0},{"$f":"[1]Personnel!Z1304","v":0},0,0,0,0,null,null,null,null,null,null,null,null,null,null,null,null,null,null,null,null,null,null,null,null,null,null,null,null,null,{"$f":"[1]Personnel!G1304","v":0}]
[0,{"$f":"IFERROR(INDEX(Settings!$AP$17:$AP$38,MATCH(Personnel!$G1305,Settings!$AQ$17:$AQ$38,0)),0)","v":0},null,null,null,{"$f":"[1]Personnel!F1305","v":0},{"$f":"IFERROR(INDEX((SLevel),MATCH(Personnel!BA1305,SLevel202223,0)),0)","v":0},{"$f":"[1]Personnel!H1305","v":0},{"$f":"[1]Personnel!I1305","v":0},{"$f":"[1]Personnel!J1305","v":0},{"$f":"[1]Personnel!P1305","v":0},{"$f":"[1]Personnel!Q1305","v":0},0,{"$f":"[1]Personnel!S1305","v":0},{"$f":"[1]Personnel!S1305","v":0},{"$f":"[1]Personnel!S1305","v":0},{"$f":"[1]Personnel!T1305","v":0},0,{"$f":"[1]Personnel!V1305","v":0},{"$f":"[1]Personnel!W1305","v":0},0,{"$f":"[1]Personnel!Y1305","v":0},{"$f":"[1]Personnel!Z1305","v":0},0,0,0,0,null,null,null,null,null,null,null,null,null,null,null,null,null,null,null,null,null,null,null,null,null,null,null,null,null,{"$f":"[1]Personnel!G1305","v":0}]
[0,{"$f":"IFERROR(INDEX(Settings!$AP$17:$AP$38,MATCH(Personnel!$G1306,Settings!$AQ$17:$AQ$38,0)),0)","v":0},null,null,null,{"$f":"[1]Personnel!F1306","v":0},{"$f":"IFERROR(INDEX((SLevel),MATCH(Personnel!BA1306,SLevel202223,0)),0)","v":0},{"$f":"[1]Personnel!H1306","v":0},{"$f":"[1]Personnel!I1306","v":0},{"$f":"[1]Personnel!J1306","v":0},{"$f":"[1]Personnel!P1306","v":0},{"$f":"[1]Personnel!Q1306","v":0},0,{"$f":"[1]Personnel!S1306","v":0},{"$f":"[1]Personnel!S1306","v":0},{"$f":"[1]Personnel!S1306","v":0},{"$f":"[1]Personnel!T1306","v":0},0,{"$f":"[1]Personnel!V1306","v":0},{"$f":"[1]Personnel!W1306","v":0},0,{"$f":"[1]Personnel!Y1306","v":0},{"$f":"[1]Personnel!Z1306","v":0},0,0,0,0,null,null,null,null,null,null,null,null,null,null,null,null,null,null,null,null,null,null,null,null,null,null,null,null,null,{"$f":"[1]Personnel!G1306","v":0}]
[0,{"$f":"IFERROR(INDEX(Settings!$AP$17:$AP$38,MATCH(Personnel!$G1307,Settings!$AQ$17:$AQ$38,0)),0)","v":0},null,null,null,{"$f":"[1]Personnel!F1307","v":0},{"$f":"IFERROR(INDEX((SLevel),MATCH(Personnel!BA1307,SLevel202223,0)),0)","v":0},{"$f":"[1]Personnel!H1307","v":0},{"$f":"[1]Personnel!I1307","v":0},{"$f":"[1]Personnel!J1307","v":0},{"$f":"[1]Personnel!P1307","v":0},{"$f":"[1]Personnel!Q1307","v":0},0,{"$f":"[1]Personnel!S1307","v":0},{"$f":"[1]Personnel!S1307","v":0},{"$f":"[1]Personnel!S1307","v":0},{"$f":"[1]Personnel!T1307","v":0},0,{"$f":"[1]Personnel!V1307","v":0},{"$f":"[1]Personnel!W1307","v":0},0,{"$f":"[1]Personnel!Y1307","v":0},{"$f":"[1]Personnel!Z1307","v":0},0,0,0,0,null,null,null,null,null,null,null,null,null,null,null,null,null,null,null,null,null,null,null,null,null,null,null,null,null,{"$f":"[1]Personnel!G1307","v":0}]
[0,{"$f":"IFERROR(INDEX(Settings!$AP$17:$AP$38,MATCH(Personnel!$G1308,Settings!$AQ$17:$AQ$38,0)),0)","v":0},null,null,null,{"$f":"[1]Personnel!F1308","v":0},{"$f":"IFERROR(INDEX((SLevel),MATCH(Personnel!BA1308,SLevel202223,0)),0)","v":0},{"$f":"[1]Personnel!H1308","v":0},{"$f":"[1]Personnel!I1308","v":0},{"$f":"[1]Personnel!J1308","v":0},{"$f":"[1]Personnel!P1308","v":0},{"$f":"[1]Personnel!Q1308","v":0},0,{"$f":"[1]Personnel!S1308","v":0},{"$f":"[1]Personnel!S1308","v":0},{"$f":"[1]Personnel!S1308","v":0},{"$f":"[1]Personnel!T1308","v":0},0,{"$f":"[1]Personnel!V1308","v":0},{"$f":"[1]Personnel!W1308","v":0},0,{"$f":"[1]Personnel!Y1308","v":0},{"$f":"[1]Personnel!Z1308","v":0},0,0,0,0,null,null,null,null,null,null,null,null,null,null,null,null,null,null,null,null,null,null,null,null,null,null,null,null,null,{"$f":"[1]Personnel!G1308","v":0}]
[0,{"$f":"IFERROR(INDEX(Settings!$AP$17:$AP$38,MATCH(Personnel!$G1309,Settings!$AQ$17:$AQ$38,0)),0)","v":0},null,null,null,{"$f":"[1]Personnel!F1309","v":0},{"$f":"IFERROR(INDEX((SLevel),MATCH(Personnel!BA1309,SLevel202223,0)),0)","v":0},{"$f":"[1]Personnel!H1309","v":0},{"$f":"[1]Personnel!I1309","v":0},{"$f":"[1]Personnel!J1309","v":0},{"$f":"[1]Personnel!P1309","v":0},{"$f":"[1]Personnel!Q1309","v":0},0,{"$f":"[1]Personnel!S1309","v":0},{"$f":"[1]Personnel!S1309","v":0},{"$f":"[1]Personnel!S1309","v":0},{"$f":"[1]Personnel!T1309","v":0},0,{"$f":"[1]Personnel!V1309","v":0},{"$f":"[1]Personnel!W1309","v":0},0,{"$f":"[1]Personnel!Y1309","v":0},{"$f":"[1]Personnel!Z1309","v":0},0,0,0,0,null,null,null,null,null,null,null,null,null,null,null,null,null,null,null,null,null,null,null,null,null,null,null,null,null,{"$f":"[1]Personnel!G1309","v":0}]
[0,{"$f":"IFERROR(INDEX(Settings!$AP$17:$AP$38,MATCH(Personnel!$G1310,Settings!$AQ$17:$AQ$38,0)),0)","v":0},null,null,null,{"$f":"[1]Personnel!F1310","v":0},{"$f":"IFERROR(INDEX((SLevel),MATCH(Personnel!BA1310,SLevel202223,0)),0)","v":0},{"$f":"[1]Personnel!H1310","v":0},{"$f":"[1]Personnel!I1310","v":0},{"$f":"[1]Personnel!J1310","v":0},{"$f":"[1]Personnel!P1310","v":0},{"$f":"[1]Personnel!Q1310","v":0},0,{"$f":"[1]Personnel!S1310","v":0},{"$f":"[1]Personnel!S1310","v":0},{"$f":"[1]Personnel!S1310","v":0},{"$f":"[1]Personnel!T1310","v":0},0,{"$f":"[1]Personnel!V1310","v":0},{"$f":"[1]Personnel!W1310","v":0},0,{"$f":"[1]Personnel!Y1310","v":0},{"$f":"[1]Personnel!Z1310","v":0},0,0,0,0,null,null,null,null,null,null,null,null,null,null,null,null,null,null,null,null,null,null,null,null,null,null,null,null,null,{"$f":"[1]Personnel!G1310","v":0}]
[0,{"$f":"IFERROR(INDEX(Settings!$AP$17:$AP$38,MATCH(Personnel!$G1311,Settings!$AQ$17:$AQ$38,0)),0)","v":0},null,null,null,{"$f":"[1]Personnel!F1311","v":0},{"$f":"IFERROR(INDEX((SLevel),MATCH(Personnel!BA1311,SLevel202223,0)),0)","v":0},{"$f":"[1]Personnel!H1311","v":0},{"$f":"[1]Personnel!I1311","v":0},{"$f":"[1]Personnel!J1311","v":0},{"$f":"[1]Personnel!P1311","v":0},{"$f":"[1]Personnel!Q1311","v":0},0,{"$f":"[1]Personnel!S1311","v":0},{"$f":"[1]Personnel!S1311","v":0},{"$f":"[1]Personnel!S1311","v":0},{"$f":"[1]Personnel!T1311","v":0},0,{"$f":"[1]Personnel!V1311","v":0},{"$f":"[1]Personnel!W1311","v":0},0,{"$f":"[1]Personnel!Y1311","v":0},{"$f":"[1]Personnel!Z1311","v":0},0,0,0,0,null,null,null,null,null,null,null,null,null,null,null,null,null,null,null,null,null,null,null,null,null,null,null,null,null,{"$f":"[1]Personnel!G1311","v":0}]
[0,{"$f":"IFERROR(INDEX(Settings!$AP$17:$AP$38,MATCH(Personnel!$G1312,Settings!$AQ$17:$AQ$38,0)),0)","v":0},null,null,null,{"$f":"[1]Personnel!F1312","v":0},{"$f":"IFERROR(INDEX((SLevel),MATCH(Personnel!BA1312,SLevel202223,0)),0)","v":0},{"$f":"[1]Personnel!H1312","v":0},{"$f":"[1]Personnel!I1312","v":0},{"$f":"[1]Personnel!J1312","v":0},{"$f":"[1]Personnel!P1312","v":0},{"$f":"[1]Personnel!Q1312","v":0},0,{"$f":"[1]Personnel!S1312","v":0},{"$f":"[1]Personnel!S1312","v":0},{"$f":"[1]Personnel!S1312","v":0},{"$f":"[1]Personnel!T1312","v":0},0,{"$f":"[1]Personnel!V1312","v":0},{"$f":"[1]Personnel!W1312","v":0},0,{"$f":"[1]Personnel!Y1312","v":0},{"$f":"[1]Personnel!Z1312","v":0},0,0,0,0,null,null,null,null,null,null,null,null,null,null,null,null,null,null,null,null,null,null,null,null,null,null,null,null,null,{"$f":"[1]Personnel!G1312","v":0}]
[0,{"$f":"IFERROR(INDEX(Settings!$AP$17:$AP$38,MATCH(Personnel!$G1313,Settings!$AQ$17:$AQ$38,0)),0)","v":0},null,null,null,{"$f":"[1]Personnel!F1313","v":0},{"$f":"IFERROR(INDEX((SLevel),MATCH(Personnel!BA1313,SLevel202223,0)),0)","v":0},{"$f":"[1]Personnel!H1313","v":0},{"$f":"[1]Personnel!I1313","v":0},{"$f":"[1]Personnel!J1313","v":0},{"$f":"[1]Personnel!P1313","v":0},{"$f":"[1]Personnel!Q1313","v":0},0,{"$f":"[1]Personnel!S1313","v":0},{"$f":"[1]Personnel!S1313","v":0},{"$f":"[1]Personnel!S1313","v":0},{"$f":"[1]Personnel!T1313","v":0},0,{"$f":"[1]Personnel!V1313","v":0},{"$f":"[1]Personnel!W1313","v":0},0,{"$f":"[1]Personnel!Y1313","v":0},{"$f":"[1]Personnel!Z1313","v":0},0,0,0,0,null,null,null,null,null,null,null,null,null,null,null,null,null,null,null,null,null,null,null,null,null,null,null,null,null,{"$f":"[1]Personnel!G1313","v":0}]
[0,{"$f":"IFERROR(INDEX(Settings!$AP$17:$AP$38,MATCH(Personnel!$G1314,Settings!$AQ$17:$AQ$38,0)),0)","v":0},null,null,null,{"$f":"[1]Personnel!F1314","v":0},{"$f":"IFERROR(INDEX((SLevel),MATCH(Personnel!BA1314,SLevel202223,0)),0)","v":0},{"$f":"[1]Personnel!H1314","v":0},{"$f":"[1]Personnel!I1314","v":0},{"$f":"[1]Personnel!J1314","v":0},{"$f":"[1]Personnel!P1314","v":0},{"$f":"[1]Personnel!Q1314","v":0},0,{"$f":"[1]Personnel!S1314","v":0},{"$f":"[1]Personnel!S1314","v":0},{"$f":"[1]Personnel!S1314","v":0},{"$f":"[1]Personnel!T1314","v":0},0,{"$f":"[1]Personnel!V1314","v":0},{"$f":"[1]Personnel!W1314","v":0},0,{"$f":"[1]Personnel!Y1314","v":0},{"$f":"[1]Personnel!Z1314","v":0},0,0,0,0,null,null,null,null,null,null,null,null,null,null,null,null,null,null,null,null,null,null,null,null,null,null,null,null,null,{"$f":"[1]Personnel!G1314","v":0}]
[0,{"$f":"IFERROR(INDEX(Settings!$AP$17:$AP$38,MATCH(Personnel!$G1315,Settings!$AQ$17:$AQ$38,0)),0)","v":0},null,null,null,{"$f":"[1]Personnel!F1315","v":0},{"$f":"IFERROR(INDEX((SLevel),MATCH(Personnel!BA1315,SLevel202223,0)),0)","v":0},{"$f":"[1]Personnel!H1315","v":0},{"$f":"[1]Personnel!I1315","v":0},{"$f":"[1]Personnel!J1315","v":0},{"$f":"[1]Personnel!P1315","v":0},{"$f":"[1]Personnel!Q1315","v":0},0,{"$f":"[1]Personnel!S1315","v":0},{"$f":"[1]Personnel!S1315","v":0},{"$f":"[1]Personnel!S1315","v":0},{"$f":"[1]Personnel!T1315","v":0},0,{"$f":"[1]Personnel!V1315","v":0},{"$f":"[1]Personnel!W1315","v":0},0,{"$f":"[1]Personnel!Y1315","v":0},{"$f":"[1]Personnel!Z1315","v":0},0,0,0,0,null,null,null,null,null,null,null,null,null,null,null,null,null,null,null,null,null,null,null,null,null,null,null,null,null,{"$f":"[1]Personnel!G1315","v":0}]
[0,{"$f":"IFERROR(INDEX(Settings!$AP$17:$AP$38,MATCH(Personnel!$G1316,Settings!$AQ$17:$AQ$38,0)),0)","v":0},null,null,null,{"$f":"[1]Personnel!F1316","v":0},{"$f":"IFERROR(INDEX((SLevel),MATCH(Personnel!BA1316,SLevel202223,0)),0)","v":0},{"$f":"[1]Personnel!H1316","v":0},{"$f":"[1]Personnel!I1316","v":0},{"$f":"[1]Personnel!J1316","v":0},{"$f":"[1]Personnel!P1316","v":0},{"$f":"[1]Personnel!Q1316","v":0},0,{"$f":"[1]Personnel!S1316","v":0},{"$f":"[1]Personnel!S1316","v":0},{"$f":"[1]Personnel!S1316","v":0},{"$f":"[1]Personnel!T1316","v":0},0,{"$f":"[1]Personnel!V1316","v":0},{"$f":"[1]Personnel!W1316","v":0},0,{"$f":"[1]Personnel!Y1316","v":0},{"$f":"[1]Personnel!Z1316","v":0},0,0,0,0,null,null,null,null,null,null,null,null,null,null,null,null,null,null,null,null,null,null,null,null,null,null,null,null,null,{"$f":"[1]Personnel!G1316","v":0}]
[0,{"$f":"IFERROR(INDEX(Settings!$AP$17:$AP$38,MATCH(Personnel!$G1317,Settings!$AQ$17:$AQ$38,0)),0)","v":0},null,null,null,{"$f":"[1]Personnel!F1317","v":0},{"$f":"IFERROR(INDEX((SLevel),MATCH(Personnel!BA1317,SLevel202223,0)),0)","v":0},{"$f":"[1]Personnel!H1317","v":0},{"$f":"[1]Personnel!I1317","v":0},{"$f":"[1]Personnel!J1317","v":0},{"$f":"[1]Personnel!P1317","v":0},{"$f":"[1]Personnel!Q1317","v":0},0,{"$f":"[1]Personnel!S1317","v":0},{"$f":"[1]Personnel!S1317","v":0},{"$f":"[1]Personnel!S1317","v":0},{"$f":"[1]Personnel!T1317","v":0},0,{"$f":"[1]Personnel!V1317","v":0},{"$f":"[1]Personnel!W1317","v":0},0,{"$f":"[1]Personnel!Y1317","v":0},{"$f":"[1]Personnel!Z1317","v":0},0,0,0,0,null,null,null,null,null,null,null,null,null,null,null,null,null,null,null,null,null,null,null,null,null,null,null,null,null,{"$f":"[1]Personnel!G1317","v":0}]
[0,{"$f":"IFERROR(INDEX(Settings!$AP$17:$AP$38,MATCH(Personnel!$G1318,Settings!$AQ$17:$AQ$38,0)),0)","v":0},null,null,null,{"$f":"[1]Personnel!F1318","v":0},{"$f":"IFERROR(INDEX((SLevel),MATCH(Personnel!BA1318,SLevel202223,0)),0)","v":0},{"$f":"[1]Personnel!H1318","v":0},{"$f":"[1]Personnel!I1318","v":0},{"$f":"[1]Personnel!J1318","v":0},{"$f":"[1]Personnel!P1318","v":0},{"$f":"[1]Personnel!Q1318","v":0},0,{"$f":"[1]Personnel!S1318","v":0},{"$f":"[1]Personnel!S1318","v":0},{"$f":"[1]Personnel!S1318","v":0},{"$f":"[1]Personnel!T1318","v":0},0,{"$f":"[1]Personnel!V1318","v":0},{"$f":"[1]Personnel!W1318","v":0},0,{"$f":"[1]Personnel!Y1318","v":0},{"$f":"[1]Personnel!Z1318","v":0},0,0,0,0,null,null,null,null,null,null,null,null,null,null,null,null,null,null,null,null,null,null,null,null,null,null,null,null,null,{"$f":"[1]Personnel!G1318","v":0}]
[0,{"$f":"IFERROR(INDEX(Settings!$AP$17:$AP$38,MATCH(Personnel!$G1319,Settings!$AQ$17:$AQ$38,0)),0)","v":0},null,null,null,{"$f":"[1]Personnel!F1319","v":0},{"$f":"IFERROR(INDEX((SLevel),MATCH(Personnel!BA1319,SLevel202223,0)),0)","v":0},{"$f":"[1]Personnel!H1319","v":0},{"$f":"[1]Personnel!I1319","v":0},{"$f":"[1]Personnel!J1319","v":0},{"$f":"[1]Personnel!P1319","v":0},{"$f":"[1]Personnel!Q1319","v":0},0,{"$f":"[1]Personnel!S1319","v":0},{"$f":"[1]Personnel!S1319","v":0},{"$f":"[1]Personnel!S1319","v":0},{"$f":"[1]Personnel!T1319","v":0},0,{"$f":"[1]Personnel!V1319","v":0},{"$f":"[1]Personnel!W1319","v":0},0,{"$f":"[1]Personnel!Y1319","v":0},{"$f":"[1]Personnel!Z1319","v":0},0,0,0,0,null,null,null,null,null,null,null,null,null,null,null,null,null,null,null,null,null,null,null,null,null,null,null,null,null,{"$f":"[1]Personnel!G1319","v":0}]
[0,{"$f":"IFERROR(INDEX(Settings!$AP$17:$AP$38,MATCH(Personnel!$G1320,Settings!$AQ$17:$AQ$38,0)),0)","v":0},null,null,null,{"$f":"[1]Personnel!F1320","v":0},{"$f":"IFERROR(INDEX((SLevel),MATCH(Personnel!BA1320,SLevel202223,0)),0)","v":0},{"$f":"[1]Personnel!H1320","v":0},{"$f":"[1]Personnel!I1320","v":0},{"$f":"[1]Personnel!J1320","v":0},{"$f":"[1]Personnel!P1320","v":0},{"$f":"[1]Personnel!Q1320","v":0},0,{"$f":"[1]Personnel!S1320","v":0},{"$f":"[1]Personnel!S1320","v":0},{"$f":"[1]Personnel!S1320","v":0},{"$f":"[1]Personnel!T1320","v":0},0,{"$f":"[1]Personnel!V1320","v":0},{"$f":"[1]Personnel!W1320","v":0},0,{"$f":"[1]Personnel!Y1320","v":0},{"$f":"[1]Personnel!Z1320","v":0},0,0,0,0,null,null,null,null,null,null,null,null,null,null,null,null,null,null,null,null,null,null,null,null,null,null,null,null,null,{"$f":"[1]Personnel!G1320","v":0}]
[0,{"$f":"IFERROR(INDEX(Settings!$AP$17:$AP$38,MATCH(Personnel!$G1321,Settings!$AQ$17:$AQ$38,0)),0)","v":0},null,null,null,{"$f":"[1]Personnel!F1321","v":0},{"$f":"IFERROR(INDEX((SLevel),MATCH(Personnel!BA1321,SLevel202223,0)),0)","v":0},{"$f":"[1]Personnel!H1321","v":0},{"$f":"[1]Personnel!I1321","v":0},{"$f":"[1]Personnel!J1321","v":0},{"$f":"[1]Personnel!P1321","v":0},{"$f":"[1]Personnel!Q1321","v":0},0,{"$f":"[1]Personnel!S1321","v":0},{"$f":"[1]Personnel!S1321","v":0},{"$f":"[1]Personnel!S1321","v":0},{"$f":"[1]Personnel!T1321","v":0},0,{"$f":"[1]Personnel!V1321","v":0},{"$f":"[1]Personnel!W1321","v":0},0,{"$f":"[1]Personnel!Y1321","v":0},{"$f":"[1]Personnel!Z1321","v":0},0,0,0,0,null,null,null,null,null,null,null,null,null,null,null,null,null,null,null,null,null,null,null,null,null,null,null,null,null,{"$f":"[1]Personnel!G1321","v":0}]
[0,{"$f":"IFERROR(INDEX(Settings!$AP$17:$AP$38,MATCH(Personnel!$G1322,Settings!$AQ$17:$AQ$38,0)),0)","v":0},null,null,null,{"$f":"[1]Personnel!F1322","v":0},{"$f":"IFERROR(INDEX((SLevel),MATCH(Personnel!BA1322,SLevel202223,0)),0)","v":0},{"$f":"[1]Personnel!H1322","v":0},{"$f":"[1]Personnel!I1322","v":0},{"$f":"[1]Personnel!J1322","v":0},{"$f":"[1]Personnel!P1322","v":0},{"$f":"[1]Personnel!Q1322","v":0},0,{"$f":"[1]Personnel!S1322","v":0},{"$f":"[1]Personnel!S1322","v":0},{"$f":"[1]Personnel!S1322","v":0},{"$f":"[1]Personnel!T1322","v":0},0,{"$f":"[1]Personnel!V1322","v":0},{"$f":"[1]Personnel!W1322","v":0},0,{"$f":"[1]Personnel!Y1322","v":0},{"$f":"[1]Personnel!Z1322","v":0},0,0,0,0,null,null,null,null,null,null,null,null,null,null,null,null,null,null,null,null,null,null,null,null,null,null,null,null,null,{"$f":"[1]Personnel!G1322","v":0}]
[0,{"$f":"IFERROR(INDEX(Settings!$AP$17:$AP$38,MATCH(Personnel!$G1323,Settings!$AQ$17:$AQ$38,0)),0)","v":0},null,null,null,{"$f":"[1]Personnel!F1323","v":0},{"$f":"IFERROR(INDEX((SLevel),MATCH(Personnel!BA1323,SLevel202223,0)),0)","v":0},{"$f":"[1]Personnel!H1323","v":0},{"$f":"[1]Personnel!I1323","v":0},{"$f":"[1]Personnel!J1323","v":0},{"$f":"[1]Personnel!P1323","v":0},{"$f":"[1]Personnel!Q1323","v":0},0,{"$f":"[1]Personnel!S1323","v":0},{"$f":"[1]Personnel!S1323","v":0},{"$f":"[1]Personnel!S1323","v":0},{"$f":"[1]Personnel!T1323","v":0},0,{"$f":"[1]Personnel!V1323","v":0},{"$f":"[1]Personnel!W1323","v":0},0,{"$f":"[1]Personnel!Y1323","v":0},{"$f":"[1]Personnel!Z1323","v":0},0,0,0,0,null,null,null,null,null,null,null,null,null,null,null,null,null,null,null,null,null,null,null,null,null,null,null,null,null,{"$f":"[1]Personnel!G1323","v":0}]
[0,{"$f":"IFERROR(INDEX(Settings!$AP$17:$AP$38,MATCH(Personnel!$G1324,Settings!$AQ$17:$AQ$38,0)),0)","v":0},null,null,null,{"$f":"[1]Personnel!F1324","v":0},{"$f":"IFERROR(INDEX((SLevel),MATCH(Personnel!BA1324,SLevel202223,0)),0)","v":0},{"$f":"[1]Personnel!H1324","v":0},{"$f":"[1]Personnel!I1324","v":0},{"$f":"[1]Personnel!J1324","v":0},{"$f":"[1]Personnel!P1324","v":0},{"$f":"[1]Personnel!Q1324","v":0},0,{"$f":"[1]Personnel!S1324","v":0},{"$f":"[1]Personnel!S1324","v":0},{"$f":"[1]Personnel!S1324","v":0},{"$f":"[1]Personnel!T1324","v":0},0,{"$f":"[1]Personnel!V1324","v":0},{"$f":"[1]Personnel!W1324","v":0},0,{"$f":"[1]Personnel!Y1324","v":0},{"$f":"[1]Personnel!Z1324","v":0},0,0,0,0,null,null,null,null,null,null,null,null,null,null,null,null,null,null,null,null,null,null,null,null,null,null,null,null,null,{"$f":"[1]Personnel!G1324","v":0}]
[0,{"$f":"IFERROR(INDEX(Settings!$AP$17:$AP$38,MATCH(Personnel!$G1325,Settings!$AQ$17:$AQ$38,0)),0)","v":0},null,null,null,{"$f":"[1]Personnel!F1325","v":0},{"$f":"IFERROR(INDEX((SLevel),MATCH(Personnel!BA1325,SLevel202223,0)),0)","v":0},{"$f":"[1]Personnel!H1325","v":0},{"$f":"[1]Personnel!I1325","v":0},{"$f":"[1]Personnel!J1325","v":0},{"$f":"[1]Personnel!P1325","v":0},{"$f":"[1]Personnel!Q1325","v":0},0,{"$f":"[1]Personnel!S1325","v":0},{"$f":"[1]Personnel!S1325","v":0},{"$f":"[1]Personnel!S1325","v":0},{"$f":"[1]Personnel!T1325","v":0},0,{"$f":"[1]Personnel!V1325","v":0},{"$f":"[1]Personnel!W1325","v":0},0,{"$f":"[1]Personnel!Y1325","v":0},{"$f":"[1]Personnel!Z1325","v":0},0,0,0,0,null,null,null,null,null,null,null,null,null,null,null,null,null,null,null,null,null,null,null,null,null,null,null,null,null,{"$f":"[1]Personnel!G1325","v":0}]
[0,{"$f":"IFERROR(INDEX(Settings!$AP$17:$AP$38,MATCH(Personnel!$G1326,Settings!$AQ$17:$AQ$38,0)),0)","v":0},null,null,null,{"$f":"[1]Personnel!F1326","v":0},{"$f":"IFERROR(INDEX((SLevel),MATCH(Personnel!BA1326,SLevel202223,0)),0)","v":0},{"$f":"[1]Personnel!H1326","v":0},{"$f":"[1]Personnel!I1326","v":0},{"$f":"[1]Personnel!J1326","v":0},{"$f":"[1]Personnel!P1326","v":0},{"$f":"[1]Personnel!Q1326","v":0},0,{"$f":"[1]Personnel!S1326","v":0},{"$f":"[1]Personnel!S1326","v":0},{"$f":"[1]Personnel!S1326","v":0},{"$f":"[1]Personnel!T1326","v":0},0,{"$f":"[1]Personnel!V1326","v":0},{"$f":"[1]Personnel!W1326","v":0},0,{"$f":"[1]Personnel!Y1326","v":0},{"$f":"[1]Personnel!Z1326","v":0},0,0,0,0,null,null,null,null,null,null,null,null,null,null,null,null,null,null,null,null,null,null,null,null,null,null,null,null,null,{"$f":"[1]Personnel!G1326","v":0}]
[0,{"$f":"IFERROR(INDEX(Settings!$AP$17:$AP$38,MATCH(Personnel!$G1327,Settings!$AQ$17:$AQ$38,0)),0)","v":0},null,null,null,{"$f":"[1]Personnel!F1327","v":0},{"$f":"IFERROR(INDEX((SLevel),MATCH(Personnel!BA1327,SLevel202223,0)),0)","v":0},{"$f":"[1]Personnel!H1327","v":0},{"$f":"[1]Personnel!I1327","v":0},{"$f":"[1]Personnel!J1327","v":0},{"$f":"[1]Personnel!P1327","v":0},{"$f":"[1]Personnel!Q1327","v":0},0,{"$f":"[1]Personnel!S1327","v":0},{"$f":"[1]Personnel!S1327","v":0},{"$f":"[1]Personnel!S1327","v":0},{"$f":"[1]Personnel!T1327","v":0},0,{"$f":"[1]Personnel!V1327","v":0},{"$f":"[1]Personnel!W1327","v":0},0,{"$f":"[1]Personnel!Y1327","v":0},{"$f":"[1]Personnel!Z1327","v":0},0,0,0,0,null,null,null,null,null,null,null,null,null,null,null,null,null,null,null,null,null,null,null,null,null,null,null,null,null,{"$f":"[1]Personnel!G1327","v":0}]
[0,{"$f":"IFERROR(INDEX(Settings!$AP$17:$AP$38,MATCH(Personnel!$G1328,Settings!$AQ$17:$AQ$38,0)),0)","v":0},null,null,null,{"$f":"[1]Personnel!F1328","v":0},{"$f":"IFERROR(INDEX((SLevel),MATCH(Personnel!BA1328,SLevel202223,0)),0)","v":0},{"$f":"[1]Personnel!H1328","v":0},{"$f":"[1]Personnel!I1328","v":0},{"$f":"[1]Personnel!J1328","v":0},{"$f":"[1]Personnel!P1328","v":0},{"$f":"[1]Personnel!Q1328","v":0},0,{"$f":"[1]Personnel!S1328","v":0},{"$f":"[1]Personnel!S1328","v":0},{"$f":"[1]Personnel!S1328","v":0},{"$f":"[1]Personnel!T1328","v":0},0,{"$f":"[1]Personnel!V1328","v":0},{"$f":"[1]Personnel!W1328","v":0},0,{"$f":"[1]Personnel!Y1328","v":0},{"$f":"[1]Personnel!Z1328","v":0},0,0,0,0,null,null,null,null,null,null,null,null,null,null,null,null,null,null,null,null,null,null,null,null,null,null,null,null,null,{"$f":"[1]Personnel!G1328","v":0}]
[0,{"$f":"IFERROR(INDEX(Settings!$AP$17:$AP$38,MATCH(Personnel!$G1329,Settings!$AQ$17:$AQ$38,0)),0)","v":0},null,null,null,{"$f":"[1]Personnel!F1329","v":0},{"$f":"IFERROR(INDEX((SLevel),MATCH(Personnel!BA1329,SLevel202223,0)),0)","v":0},{"$f":"[1]Personnel!H1329","v":0},{"$f":"[1]Personnel!I1329","v":0},{"$f":"[1]Personnel!J1329","v":0},{"$f":"[1]Personnel!P1329","v":0},{"$f":"[1]Personnel!Q1329","v":0},0,{"$f":"[1]Personnel!S1329","v":0},{"$f":"[1]Personnel!S1329","v":0},{"$f":"[1]Personnel!S1329","v":0},{"$f":"[1]Personnel!T1329","v":0},0,{"$f":"[1]Personnel!V1329","v":0},{"$f":"[1]Personnel!W1329","v":0},0,{"$f":"[1]Personnel!Y1329","v":0},{"$f":"[1]Personnel!Z1329","v":0},0,0,0,0,null,null,null,null,null,null,null,null,null,null,null,null,null,null,null,null,null,null,null,null,null,null,null,null,null,{"$f":"[1]Personnel!G1329","v":0}]
[0,{"$f":"IFERROR(INDEX(Settings!$AP$17:$AP$38,MATCH(Personnel!$G1330,Settings!$AQ$17:$AQ$38,0)),0)","v":0},null,null,null,{"$f":"[1]Personnel!F1330","v":0},{"$f":"IFERROR(INDEX((SLevel),MATCH(Personnel!BA1330,SLevel202223,0)),0)","v":0},{"$f":"[1]Personnel!H1330","v":0},{"$f":"[1]Personnel!I1330","v":0},{"$f":"[1]Personnel!J1330","v":0},{"$f":"[1]Personnel!P1330","v":0},{"$f":"[1]Personnel!Q1330","v":0},0,{"$f":"[1]Personnel!S1330","v":0},{"$f":"[1]Personnel!S1330","v":0},{"$f":"[1]Personnel!S1330","v":0},{"$f":"[1]Personnel!T1330","v":0},0,{"$f":"[1]Personnel!V1330","v":0},{"$f":"[1]Personnel!W1330","v":0},0,{"$f":"[1]Personnel!Y1330","v":0},{"$f":"[1]Personnel!Z1330","v":0},0,0,0,0,null,null,null,null,null,null,null,null,null,null,null,null,null,null,null,null,null,null,null,null,null,null,null,null,null,{"$f":"[1]Personnel!G1330","v":0}]
[0,{"$f":"IFERROR(INDEX(Settings!$AP$17:$AP$38,MATCH(Personnel!$G1331,Settings!$AQ$17:$AQ$38,0)),0)","v":0},null,null,null,{"$f":"[1]Personnel!F1331","v":0},{"$f":"IFERROR(INDEX((SLevel),MATCH(Personnel!BA1331,SLevel202223,0)),0)","v":0},{"$f":"[1]Personnel!H1331","v":0},{"$f":"[1]Personnel!I1331","v":0},{"$f":"[1]Personnel!J1331","v":0},{"$f":"[1]Personnel!P1331","v":0},{"$f":"[1]Personnel!Q1331","v":0},0,{"$f":"[1]Personnel!S1331","v":0},{"$f":"[1]Personnel!S1331","v":0},{"$f":"[1]Personnel!S1331","v":0},{"$f":"[1]Personnel!T1331","v":0},0,{"$f":"[1]Personnel!V1331","v":0},{"$f":"[1]Personnel!W1331","v":0},0,{"$f":"[1]Personnel!Y1331","v":0},{"$f":"[1]Personnel!Z1331","v":0},0,0,0,0,null,null,null,null,null,null,null,null,null,null,null,null,null,null,null,null,null,null,null,null,null,null,null,null,null,{"$f":"[1]Personnel!G1331","v":0}]
[0,{"$f":"IFERROR(INDEX(Settings!$AP$17:$AP$38,MATCH(Personnel!$G1332,Settings!$AQ$17:$AQ$38,0)),0)","v":0},null,null,null,{"$f":"[1]Personnel!F1332","v":0},{"$f":"IFERROR(INDEX((SLevel),MATCH(Personnel!BA1332,SLevel202223,0)),0)","v":0},{"$f":"[1]Personnel!H1332","v":0},{"$f":"[1]Personnel!I1332","v":0},{"$f":"[1]Personnel!J1332","v":0},{"$f":"[1]Personnel!P1332","v":0},{"$f":"[1]Personnel!Q1332","v":0},0,{"$f":"[1]Personnel!S1332","v":0},{"$f":"[1]Personnel!S1332","v":0},{"$f":"[1]Personnel!S1332","v":0},{"$f":"[1]Personnel!T1332","v":0},0,{"$f":"[1]Personnel!V1332","v":0},{"$f":"[1]Personnel!W1332","v":0},0,{"$f":"[1]Personnel!Y1332","v":0},{"$f":"[1]Personnel!Z1332","v":0},0,0,0,0,null,null,null,null,null,null,null,null,null,null,null,null,null,null,null,null,null,null,null,null,null,null,null,null,null,{"$f":"[1]Personnel!G1332","v":0}]
[0,{"$f":"IFERROR(INDEX(Settings!$AP$17:$AP$38,MATCH(Personnel!$G1333,Settings!$AQ$17:$AQ$38,0)),0)","v":0},null,null,null,{"$f":"[1]Personnel!F1333","v":0},{"$f":"IFERROR(INDEX((SLevel),MATCH(Personnel!BA1333,SLevel202223,0)),0)","v":0},{"$f":"[1]Personnel!H1333","v":0},{"$f":"[1]Personnel!I1333","v":0},{"$f":"[1]Personnel!J1333","v":0},{"$f":"[1]Personnel!P1333","v":0},{"$f":"[1]Personnel!Q1333","v":0},0,{"$f":"[1]Personnel!S1333","v":0},{"$f":"[1]Personnel!S1333","v":0},{"$f":"[1]Personnel!S1333","v":0},{"$f":"[1]Personnel!T1333","v":0},0,{"$f":"[1]Personnel!V1333","v":0},{"$f":"[1]Personnel!W1333","v":0},0,{"$f":"[1]Personnel!Y1333","v":0},{"$f":"[1]Personnel!Z1333","v":0},0,0,0,0,null,null,null,null,null,null,null,null,null,null,null,null,null,null,null,null,null,null,null,null,null,null,null,null,null,{"$f":"[1]Personnel!G1333","v":0}]
[0,{"$f":"IFERROR(INDEX(Settings!$AP$17:$AP$38,MATCH(Personnel!$G1334,Settings!$AQ$17:$AQ$38,0)),0)","v":0},null,null,null,{"$f":"[1]Personnel!F1334","v":0},{"$f":"IFERROR(INDEX((SLevel),MATCH(Personnel!BA1334,SLevel202223,0)),0)","v":0},{"$f":"[1]Personnel!H1334","v":0},{"$f":"[1]Personnel!I1334","v":0},{"$f":"[1]Personnel!J1334","v":0},{"$f":"[1]Personnel!P1334","v":0},{"$f":"[1]Personnel!Q1334","v":0},0,{"$f":"[1]Personnel!S1334","v":0},{"$f":"[1]Personnel!S1334","v":0},{"$f":"[1]Personnel!S1334","v":0},{"$f":"[1]Personnel!T1334","v":0},0,{"$f":"[1]Personnel!V1334","v":0},{"$f":"[1]Personnel!W1334","v":0},0,{"$f":"[1]Personnel!Y1334","v":0},{"$f":"[1]Personnel!Z1334","v":0},0,0,0,0,null,null,null,null,null,null,null,null,null,null,null,null,null,null,null,null,null,null,null,null,null,null,null,null,null,{"$f":"[1]Personnel!G1334","v":0}]
[0,{"$f":"IFERROR(INDEX(Settings!$AP$17:$AP$38,MATCH(Personnel!$G1335,Settings!$AQ$17:$AQ$38,0)),0)","v":0},null,null,null,{"$f":"[1]Personnel!F1335","v":0},{"$f":"IFERROR(INDEX((SLevel),MATCH(Personnel!BA1335,SLevel202223,0)),0)","v":0},{"$f":"[1]Personnel!H1335","v":0},{"$f":"[1]Personnel!I1335","v":0},{"$f":"[1]Personnel!J1335","v":0},{"$f":"[1]Personnel!P1335","v":0},{"$f":"[1]Personnel!Q1335","v":0},0,{"$f":"[1]Personnel!S1335","v":0},{"$f":"[1]Personnel!S1335","v":0},{"$f":"[1]Personnel!S1335","v":0},{"$f":"[1]Personnel!T1335","v":0},0,{"$f":"[1]Personnel!V1335","v":0},{"$f":"[1]Personnel!W1335","v":0},0,{"$f":"[1]Personnel!Y1335","v":0},{"$f":"[1]Personnel!Z1335","v":0},0,0,0,0,null,null,null,null,null,null,null,null,null,null,null,null,null,null,null,null,null,null,null,null,null,null,null,null,null,{"$f":"[1]Personnel!G1335","v":0}]
[0,{"$f":"IFERROR(INDEX(Settings!$AP$17:$AP$38,MATCH(Personnel!$G1336,Settings!$AQ$17:$AQ$38,0)),0)","v":0},null,null,null,{"$f":"[1]Personnel!F1336","v":0},{"$f":"IFERROR(INDEX((SLevel),MATCH(Personnel!BA1336,SLevel202223,0)),0)","v":0},{"$f":"[1]Personnel!H1336","v":0},{"$f":"[1]Personnel!I1336","v":0},{"$f":"[1]Personnel!J1336","v":0},{"$f":"[1]Personnel!P1336","v":0},{"$f":"[1]Personnel!Q1336","v":0},0,{"$f":"[1]Personnel!S1336","v":0},{"$f":"[1]Personnel!S1336","v":0},{"$f":"[1]Personnel!S1336","v":0},{"$f":"[1]Personnel!T1336","v":0},0,{"$f":"[1]Personnel!V1336","v":0},{"$f":"[1]Personnel!W1336","v":0},0,{"$f":"[1]Personnel!Y1336","v":0},{"$f":"[1]Personnel!Z1336","v":0},0,0,0,0,null,null,null,null,null,null,null,null,null,null,null,null,null,null,null,null,null,null,null,null,null,null,null,null,null,{"$f":"[1]Personnel!G1336","v":0}]
[0,{"$f":"IFERROR(INDEX(Settings!$AP$17:$AP$38,MATCH(Personnel!$G1337,Settings!$AQ$17:$AQ$38,0)),0)","v":0},null,null,null,{"$f":"[1]Personnel!F1337","v":0},{"$f":"IFERROR(INDEX((SLevel),MATCH(Personnel!BA1337,SLevel202223,0)),0)","v":0},{"$f":"[1]Personnel!H1337","v":0},{"$f":"[1]Personnel!I1337","v":0},{"$f":"[1]Personnel!J1337","v":0},{"$f":"[1]Personnel!P1337","v":0},{"$f":"[1]Personnel!Q1337","v":0},0,{"$f":"[1]Personnel!S1337","v":0},{"$f":"[1]Personnel!S1337","v":0},{"$f":"[1]Personnel!S1337","v":0},{"$f":"[1]Personnel!T1337","v":0},0,{"$f":"[1]Personnel!V1337","v":0},{"$f":"[1]Personnel!W1337","v":0},0,{"$f":"[1]Personnel!Y1337","v":0},{"$f":"[1]Personnel!Z1337","v":0},0,0,0,0,null,null,null,null,null,null,null,null,null,null,null,null,null,null,null,null,null,null,null,null,null,null,null,null,null,{"$f":"[1]Personnel!G1337","v":0}]
[0,{"$f":"IFERROR(INDEX(Settings!$AP$17:$AP$38,MATCH(Personnel!$G1338,Settings!$AQ$17:$AQ$38,0)),0)","v":0},null,null,null,{"$f":"[1]Personnel!F1338","v":0},{"$f":"IFERROR(INDEX((SLevel),MATCH(Personnel!BA1338,SLevel202223,0)),0)","v":0},{"$f":"[1]Personnel!H1338","v":0},{"$f":"[1]Personnel!I1338","v":0},{"$f":"[1]Personnel!J1338","v":0},{"$f":"[1]Personnel!P1338","v":0},{"$f":"[1]Personnel!Q1338","v":0},0,{"$f":"[1]Personnel!S1338","v":0},{"$f":"[1]Personnel!S1338","v":0},{"$f":"[1]Personnel!S1338","v":0},{"$f":"[1]Personnel!T1338","v":0},0,{"$f":"[1]Personnel!V1338","v":0},{"$f":"[1]Personnel!W1338","v":0},0,{"$f":"[1]Personnel!Y1338","v":0},{"$f":"[1]Personnel!Z1338","v":0},0,0,0,0,null,null,null,null,null,null,null,null,null,null,null,null,null,null,null,null,null,null,null,null,null,null,null,null,null,{"$f":"[1]Personnel!G1338","v":0}]
[0,{"$f":"IFERROR(INDEX(Settings!$AP$17:$AP$38,MATCH(Personnel!$G1339,Settings!$AQ$17:$AQ$38,0)),0)","v":0},null,null,null,{"$f":"[1]Personnel!F1339","v":0},{"$f":"IFERROR(INDEX((SLevel),MATCH(Personnel!BA1339,SLevel202223,0)),0)","v":0},{"$f":"[1]Personnel!H1339","v":0},{"$f":"[1]Personnel!I1339","v":0},{"$f":"[1]Personnel!J1339","v":0},{"$f":"[1]Personnel!P1339","v":0},{"$f":"[1]Personnel!Q1339","v":0},0,{"$f":"[1]Personnel!S1339","v":0},{"$f":"[1]Personnel!S1339","v":0},{"$f":"[1]Personnel!S1339","v":0},{"$f":"[1]Personnel!T1339","v":0},0,{"$f":"[1]Personnel!V1339","v":0},{"$f":"[1]Personnel!W1339","v":0},0,{"$f":"[1]Personnel!Y1339","v":0},{"$f":"[1]Personnel!Z1339","v":0},0,0,0,0,null,null,null,null,null,null,null,null,null,null,null,null,null,null,null,null,null,null,null,null,null,null,null,null,null,{"$f":"[1]Personnel!G1339","v":0}]
[0,{"$f":"IFERROR(INDEX(Settings!$AP$17:$AP$38,MATCH(Personnel!$G1340,Settings!$AQ$17:$AQ$38,0)),0)","v":0},null,null,null,{"$f":"[1]Personnel!F1340","v":0},{"$f":"IFERROR(INDEX((SLevel),MATCH(Personnel!BA1340,SLevel202223,0)),0)","v":0},{"$f":"[1]Personnel!H1340","v":0},{"$f":"[1]Personnel!I1340","v":0},{"$f":"[1]Personnel!J1340","v":0},{"$f":"[1]Personnel!P1340","v":0},{"$f":"[1]Personnel!Q1340","v":0},0,{"$f":"[1]Personnel!S1340","v":0},{"$f":"[1]Personnel!S1340","v":0},{"$f":"[1]Personnel!S1340","v":0},{"$f":"[1]Personnel!T1340","v":0},0,{"$f":"[1]Personnel!V1340","v":0},{"$f":"[1]Personnel!W1340","v":0},0,{"$f":"[1]Personnel!Y1340","v":0},{"$f":"[1]Personnel!Z1340","v":0},0,0,0,0,null,null,null,null,null,null,null,null,null,null,null,null,null,null,null,null,null,null,null,null,null,null,null,null,null,{"$f":"[1]Personnel!G1340","v":0}]
[0,{"$f":"IFERROR(INDEX(Settings!$AP$17:$AP$38,MATCH(Personnel!$G1341,Settings!$AQ$17:$AQ$38,0)),0)","v":0},null,null,null,{"$f":"[1]Personnel!F1341","v":0},{"$f":"IFERROR(INDEX((SLevel),MATCH(Personnel!BA1341,SLevel202223,0)),0)","v":0},{"$f":"[1]Personnel!H1341","v":0},{"$f":"[1]Personnel!I1341","v":0},{"$f":"[1]Personnel!J1341","v":0},{"$f":"[1]Personnel!P1341","v":0},{"$f":"[1]Personnel!Q1341","v":0},0,{"$f":"[1]Personnel!S1341","v":0},{"$f":"[1]Personnel!S1341","v":0},{"$f":"[1]Personnel!S1341","v":0},{"$f":"[1]Personnel!T1341","v":0},0,{"$f":"[1]Personnel!V1341","v":0},{"$f":"[1]Personnel!W1341","v":0},0,{"$f":"[1]Personnel!Y1341","v":0},{"$f":"[1]Personnel!Z1341","v":0},0,0,0,0,null,null,null,null,null,null,null,null,null,null,null,null,null,null,null,null,null,null,null,null,null,null,null,null,null,{"$f":"[1]Personnel!G1341","v":0}]
[0,{"$f":"IFERROR(INDEX(Settings!$AP$17:$AP$38,MATCH(Personnel!$G1342,Settings!$AQ$17:$AQ$38,0)),0)","v":0},null,null,null,{"$f":"[1]Personnel!F1342","v":0},{"$f":"IFERROR(INDEX((SLevel),MATCH(Personnel!BA1342,SLevel202223,0)),0)","v":0},{"$f":"[1]Personnel!H1342","v":0},{"$f":"[1]Personnel!I1342","v":0},{"$f":"[1]Personnel!J1342","v":0},{"$f":"[1]Personnel!P1342","v":0},{"$f":"[1]Personnel!Q1342","v":0},0,{"$f":"[1]Personnel!S1342","v":0},{"$f":"[1]Personnel!S1342","v":0},{"$f":"[1]Personnel!S1342","v":0},{"$f":"[1]Personnel!T1342","v":0},0,{"$f":"[1]Personnel!V1342","v":0},{"$f":"[1]Personnel!W1342","v":0},0,{"$f":"[1]Personnel!Y1342","v":0},{"$f":"[1]Personnel!Z1342","v":0},0,0,0,0,null,null,null,null,null,null,null,null,null,null,null,null,null,null,null,null,null,null,null,null,null,null,null,null,null,{"$f":"[1]Personnel!G1342","v":0}]
[0,{"$f":"IFERROR(INDEX(Settings!$AP$17:$AP$38,MATCH(Personnel!$G1343,Settings!$AQ$17:$AQ$38,0)),0)","v":0},null,null,null,{"$f":"[1]Personnel!F1343","v":0},{"$f":"IFERROR(INDEX((SLevel),MATCH(Personnel!BA1343,SLevel202223,0)),0)","v":0},{"$f":"[1]Personnel!H1343","v":0},{"$f":"[1]Personnel!I1343","v":0},{"$f":"[1]Personnel!J1343","v":0},{"$f":"[1]Personnel!P1343","v":0},{"$f":"[1]Personnel!Q1343","v":0},0,{"$f":"[1]Personnel!S1343","v":0},{"$f":"[1]Personnel!S1343","v":0},{"$f":"[1]Personnel!S1343","v":0},{"$f":"[1]Personnel!T1343","v":0},0,{"$f":"[1]Personnel!V1343","v":0},{"$f":"[1]Personnel!W1343","v":0},0,{"$f":"[1]Personnel!Y1343","v":0},{"$f":"[1]Personnel!Z1343","v":0},0,0,0,0,null,null,null,null,null,null,null,null,null,null,null,null,null,null,null,null,null,null,null,null,null,null,null,null,null,{"$f":"[1]Personnel!G1343","v":0}]
[0,{"$f":"IFERROR(INDEX(Settings!$AP$17:$AP$38,MATCH(Personnel!$G1344,Settings!$AQ$17:$AQ$38,0)),0)","v":0},null,null,null,{"$f":"[1]Personnel!F1344","v":0},{"$f":"IFERROR(INDEX((SLevel),MATCH(Personnel!BA1344,SLevel202223,0)),0)","v":0},{"$f":"[1]Personnel!H1344","v":0},{"$f":"[1]Personnel!I1344","v":0},{"$f":"[1]Personnel!J1344","v":0},{"$f":"[1]Personnel!P1344","v":0},{"$f":"[1]Personnel!Q1344","v":0},0,{"$f":"[1]Personnel!S1344","v":0},{"$f":"[1]Personnel!S1344","v":0},{"$f":"[1]Personnel!S1344","v":0},{"$f":"[1]Personnel!T1344","v":0},0,{"$f":"[1]Personnel!V1344","v":0},{"$f":"[1]Personnel!W1344","v":0},0,{"$f":"[1]Personnel!Y1344","v":0},{"$f":"[1]Personnel!Z1344","v":0},0,0,0,0,null,null,null,null,null,null,null,null,null,null,null,null,null,null,null,null,null,null,null,null,null,null,null,null,null,{"$f":"[1]Personnel!G1344","v":0}]
[0,{"$f":"IFERROR(INDEX(Settings!$AP$17:$AP$38,MATCH(Personnel!$G1345,Settings!$AQ$17:$AQ$38,0)),0)","v":0},null,null,null,{"$f":"[1]Personnel!F1345","v":0},{"$f":"IFERROR(INDEX((SLevel),MATCH(Personnel!BA1345,SLevel202223,0)),0)","v":0},{"$f":"[1]Personnel!H1345","v":0},{"$f":"[1]Personnel!I1345","v":0},{"$f":"[1]Personnel!J1345","v":0},{"$f":"[1]Personnel!P1345","v":0},{"$f":"[1]Personnel!Q1345","v":0},0,{"$f":"[1]Personnel!S1345","v":0},{"$f":"[1]Personnel!S1345","v":0},{"$f":"[1]Personnel!S1345","v":0},{"$f":"[1]Personnel!T1345","v":0},0,{"$f":"[1]Personnel!V1345","v":0},{"$f":"[1]Personnel!W1345","v":0},0,{"$f":"[1]Personnel!Y1345","v":0},{"$f":"[1]Personnel!Z1345","v":0},0,0,0,0,null,null,null,null,null,null,null,null,null,null,null,null,null,null,null,null,null,null,null,null,null,null,null,null,null,{"$f":"[1]Personnel!G1345","v":0}]
[0,{"$f":"IFERROR(INDEX(Settings!$AP$17:$AP$38,MATCH(Personnel!$G1346,Settings!$AQ$17:$AQ$38,0)),0)","v":0},null,null,null,{"$f":"[1]Personnel!F1346","v":0},{"$f":"IFERROR(INDEX((SLevel),MATCH(Personnel!BA1346,SLevel202223,0)),0)","v":0},{"$f":"[1]Personnel!H1346","v":0},{"$f":"[1]Personnel!I1346","v":0},{"$f":"[1]Personnel!J1346","v":0},{"$f":"[1]Personnel!P1346","v":0},{"$f":"[1]Personnel!Q1346","v":0},0,{"$f":"[1]Personnel!S1346","v":0},{"$f":"[1]Personnel!S1346","v":0},{"$f":"[1]Personnel!S1346","v":0},{"$f":"[1]Personnel!T1346","v":0},0,{"$f":"[1]Personnel!V1346","v":0},{"$f":"[1]Personnel!W1346","v":0},0,{"$f":"[1]Personnel!Y1346","v":0},{"$f":"[1]Personnel!Z1346","v":0},0,0,0,0,null,null,null,null,null,null,null,null,null,null,null,null,null,null,null,null,null,null,null,null,null,null,null,null,null,{"$f":"[1]Personnel!G1346","v":0}]
[0,{"$f":"IFERROR(INDEX(Settings!$AP$17:$AP$38,MATCH(Personnel!$G1347,Settings!$AQ$17:$AQ$38,0)),0)","v":0},null,null,null,{"$f":"[1]Personnel!F1347","v":0},{"$f":"IFERROR(INDEX((SLevel),MATCH(Personnel!BA1347,SLevel202223,0)),0)","v":0},{"$f":"[1]Personnel!H1347","v":0},{"$f":"[1]Personnel!I1347","v":0},{"$f":"[1]Personnel!J1347","v":0},{"$f":"[1]Personnel!P1347","v":0},{"$f":"[1]Personnel!Q1347","v":0},0,{"$f":"[1]Personnel!S1347","v":0},{"$f":"[1]Personnel!S1347","v":0},{"$f":"[1]Personnel!S1347","v":0},{"$f":"[1]Personnel!T1347","v":0},0,{"$f":"[1]Personnel!V1347","v":0},{"$f":"[1]Personnel!W1347","v":0},0,{"$f":"[1]Personnel!Y1347","v":0},{"$f":"[1]Personnel!Z1347","v":0},0,0,0,0,null,null,null,null,null,null,null,null,null,null,null,null,null,null,null,null,null,null,null,null,null,null,null,null,null,{"$f":"[1]Personnel!G1347","v":0}]
[0,{"$f":"IFERROR(INDEX(Settings!$AP$17:$AP$38,MATCH(Personnel!$G1348,Settings!$AQ$17:$AQ$38,0)),0)","v":0},null,null,null,{"$f":"[1]Personnel!F1348","v":0},{"$f":"IFERROR(INDEX((SLevel),MATCH(Personnel!BA1348,SLevel202223,0)),0)","v":0},{"$f":"[1]Personnel!H1348","v":0},{"$f":"[1]Personnel!I1348","v":0},{"$f":"[1]Personnel!J1348","v":0},{"$f":"[1]Personnel!P1348","v":0},{"$f":"[1]Personnel!Q1348","v":0},0,{"$f":"[1]Personnel!S1348","v":0},{"$f":"[1]Personnel!S1348","v":0},{"$f":"[1]Personnel!S1348","v":0},{"$f":"[1]Personnel!T1348","v":0},0,{"$f":"[1]Personnel!V1348","v":0},{"$f":"[1]Personnel!W1348","v":0},0,{"$f":"[1]Personnel!Y1348","v":0},{"$f":"[1]Personnel!Z1348","v":0},0,0,0,0,null,null,null,null,null,null,null,null,null,null,null,null,null,null,null,null,null,null,null,null,null,null,null,null,null,{"$f":"[1]Personnel!G1348","v":0}]
[0,{"$f":"IFERROR(INDEX(Settings!$AP$17:$AP$38,MATCH(Personnel!$G1349,Settings!$AQ$17:$AQ$38,0)),0)","v":0},null,null,null,{"$f":"[1]Personnel!F1349","v":0},{"$f":"IFERROR(INDEX((SLevel),MATCH(Personnel!BA1349,SLevel202223,0)),0)","v":0},{"$f":"[1]Personnel!H1349","v":0},{"$f":"[1]Personnel!I1349","v":0},{"$f":"[1]Personnel!J1349","v":0},{"$f":"[1]Personnel!P1349","v":0},{"$f":"[1]Personnel!Q1349","v":0},0,{"$f":"[1]Personnel!S1349","v":0},{"$f":"[1]Personnel!S1349","v":0},{"$f":"[1]Personnel!S1349","v":0},{"$f":"[1]Personnel!T1349","v":0},0,{"$f":"[1]Personnel!V1349","v":0},{"$f":"[1]Personnel!W1349","v":0},0,{"$f":"[1]Personnel!Y1349","v":0},{"$f":"[1]Personnel!Z1349","v":0},0,0,0,0,null,null,null,null,null,null,null,null,null,null,null,null,null,null,null,null,null,null,null,null,null,null,null,null,null,{"$f":"[1]Personnel!G1349","v":0}]
[0,{"$f":"IFERROR(INDEX(Settings!$AP$17:$AP$38,MATCH(Personnel!$G1350,Settings!$AQ$17:$AQ$38,0)),0)","v":0},null,null,null,{"$f":"[1]Personnel!F1350","v":0},{"$f":"IFERROR(INDEX((SLevel),MATCH(Personnel!BA1350,SLevel202223,0)),0)","v":0},{"$f":"[1]Personnel!H1350","v":0},{"$f":"[1]Personnel!I1350","v":0},{"$f":"[1]Personnel!J1350","v":0},{"$f":"[1]Personnel!P1350","v":0},{"$f":"[1]Personnel!Q1350","v":0},0,{"$f":"[1]Personnel!S1350","v":0},{"$f":"[1]Personnel!S1350","v":0},{"$f":"[1]Personnel!S1350","v":0},{"$f":"[1]Personnel!T1350","v":0},0,{"$f":"[1]Personnel!V1350","v":0},{"$f":"[1]Personnel!W1350","v":0},0,{"$f":"[1]Personnel!Y1350","v":0},{"$f":"[1]Personnel!Z1350","v":0},0,0,0,0,null,null,null,null,null,null,null,null,null,null,null,null,null,null,null,null,null,null,null,null,null,null,null,null,null,{"$f":"[1]Personnel!G1350","v":0}]
[0,{"$f":"IFERROR(INDEX(Settings!$AP$17:$AP$38,MATCH(Personnel!$G1351,Settings!$AQ$17:$AQ$38,0)),0)","v":0},null,null,null,{"$f":"[1]Personnel!F1351","v":0},{"$f":"IFERROR(INDEX((SLevel),MATCH(Personnel!BA1351,SLevel202223,0)),0)","v":0},{"$f":"[1]Personnel!H1351","v":0},{"$f":"[1]Personnel!I1351","v":0},{"$f":"[1]Personnel!J1351","v":0},{"$f":"[1]Personnel!P1351","v":0},{"$f":"[1]Personnel!Q1351","v":0},0,{"$f":"[1]Personnel!S1351","v":0},{"$f":"[1]Personnel!S1351","v":0},{"$f":"[1]Personnel!S1351","v":0},{"$f":"[1]Personnel!T1351","v":0},0,{"$f":"[1]Personnel!V1351","v":0},{"$f":"[1]Personnel!W1351","v":0},0,{"$f":"[1]Personnel!Y1351","v":0},{"$f":"[1]Personnel!Z1351","v":0},0,0,0,0,null,null,null,null,null,null,null,null,null,null,null,null,null,null,null,null,null,null,null,null,null,null,null,null,null,{"$f":"[1]Personnel!G1351","v":0}]
[0,{"$f":"IFERROR(INDEX(Settings!$AP$17:$AP$38,MATCH(Personnel!$G1352,Settings!$AQ$17:$AQ$38,0)),0)","v":0},null,null,null,{"$f":"[1]Personnel!F1352","v":0},{"$f":"IFERROR(INDEX((SLevel),MATCH(Personnel!BA1352,SLevel202223,0)),0)","v":0},{"$f":"[1]Personnel!H1352","v":0},{"$f":"[1]Personnel!I1352","v":0},{"$f":"[1]Personnel!J1352","v":0},{"$f":"[1]Personnel!P1352","v":0},{"$f":"[1]Personnel!Q1352","v":0},0,{"$f":"[1]Personnel!S1352","v":0},{"$f":"[1]Personnel!S1352","v":0},{"$f":"[1]Personnel!S1352","v":0},{"$f":"[1]Personnel!T1352","v":0},0,{"$f":"[1]Personnel!V1352","v":0},{"$f":"[1]Personnel!W1352","v":0},0,{"$f":"[1]Personnel!Y1352","v":0},{"$f":"[1]Personnel!Z1352","v":0},0,0,0,0,null,null,null,null,null,null,null,null,null,null,null,null,null,null,null,null,null,null,null,null,null,null,null,null,null,{"$f":"[1]Personnel!G1352","v":0}]
[0,{"$f":"IFERROR(INDEX(Settings!$AP$17:$AP$38,MATCH(Personnel!$G1353,Settings!$AQ$17:$AQ$38,0)),0)","v":0},null,null,null,{"$f":"[1]Personnel!F1353","v":0},{"$f":"IFERROR(INDEX((SLevel),MATCH(Personnel!BA1353,SLevel202223,0)),0)","v":0},{"$f":"[1]Personnel!H1353","v":0},{"$f":"[1]Personnel!I1353","v":0},{"$f":"[1]Personnel!J1353","v":0},{"$f":"[1]Personnel!P1353","v":0},{"$f":"[1]Personnel!Q1353","v":0},0,{"$f":"[1]Personnel!S1353","v":0},{"$f":"[1]Personnel!S1353","v":0},{"$f":"[1]Personnel!S1353","v":0},{"$f":"[1]Personnel!T1353","v":0},0,{"$f":"[1]Personnel!V1353","v":0},{"$f":"[1]Personnel!W1353","v":0},0,{"$f":"[1]Personnel!Y1353","v":0},{"$f":"[1]Personnel!Z1353","v":0},0,0,0,0,null,null,null,null,null,null,null,null,null,null,null,null,null,null,null,null,null,null,null,null,null,null,null,null,null,{"$f":"[1]Personnel!G1353","v":0}]
[0,{"$f":"IFERROR(INDEX(Settings!$AP$17:$AP$38,MATCH(Personnel!$G1354,Settings!$AQ$17:$AQ$38,0)),0)","v":0},null,null,null,{"$f":"[1]Personnel!F1354","v":0},{"$f":"IFERROR(INDEX((SLevel),MATCH(Personnel!BA1354,SLevel202223,0)),0)","v":0},{"$f":"[1]Personnel!H1354","v":0},{"$f":"[1]Personnel!I1354","v":0},{"$f":"[1]Personnel!J1354","v":0},{"$f":"[1]Personnel!P1354","v":0},{"$f":"[1]Personnel!Q1354","v":0},0,{"$f":"[1]Personnel!S1354","v":0},{"$f":"[1]Personnel!S1354","v":0},{"$f":"[1]Personnel!S1354","v":0},{"$f":"[1]Personnel!T1354","v":0},0,{"$f":"[1]Personnel!V1354","v":0},{"$f":"[1]Personnel!W1354","v":0},0,{"$f":"[1]Personnel!Y1354","v":0},{"$f":"[1]Personnel!Z1354","v":0},0,0,0,0,null,null,null,null,null,null,null,null,null,null,null,null,null,null,null,null,null,null,null,null,null,null,null,null,null,{"$f":"[1]Personnel!G1354","v":0}]
[0,{"$f":"IFERROR(INDEX(Settings!$AP$17:$AP$38,MATCH(Personnel!$G1355,Settings!$AQ$17:$AQ$38,0)),0)","v":0},null,null,null,{"$f":"[1]Personnel!F1355","v":0},{"$f":"IFERROR(INDEX((SLevel),MATCH(Personnel!BA1355,SLevel202223,0)),0)","v":0},{"$f":"[1]Personnel!H1355","v":0},{"$f":"[1]Personnel!I1355","v":0},{"$f":"[1]Personnel!J1355","v":0},{"$f":"[1]Personnel!P1355","v":0},{"$f":"[1]Personnel!Q1355","v":0},0,{"$f":"[1]Personnel!S1355","v":0},{"$f":"[1]Personnel!S1355","v":0},{"$f":"[1]Personnel!S1355","v":0},{"$f":"[1]Personnel!T1355","v":0},0,{"$f":"[1]Personnel!V1355","v":0},{"$f":"[1]Personnel!W1355","v":0},0,{"$f":"[1]Personnel!Y1355","v":0},{"$f":"[1]Personnel!Z1355","v":0},0,0,0,0,null,null,null,null,null,null,null,null,null,null,null,null,null,null,null,null,null,null,null,null,null,null,null,null,null,{"$f":"[1]Personnel!G1355","v":0}]
[{"$f":"IF(SUM(K1356:AA1356)>0,1,0)","v":0},{"$f":"IFERROR(INDEX(Settings!$AP$17:$AP$38,MATCH(Personnel!$G1356,Settings!$AQ$17:$AQ$38,0)),0)","v":0},null,null,null,{"$f":"[1]Personnel!F1356","v":0},{"$f":"IFERROR(INDEX((SLevel),MATCH(Personnel!BA1356,SLevel202223,0)),0)","v":0},{"$f":"[1]Personnel!H1356","v":0},{"$f":"[1]Personnel!I1356","v":0},{"$f":"[1]Personnel!J1356","v":0},{"$f":"[1]Personnel!P1356","v":0},{"$f":"[1]Personnel!Q1356","v":0},0,{"$f":"[1]Personnel!S1356","v":0},{"$f":"[1]Personnel!S1356","v":0},{"$f":"[1]Personnel!S1356","v":0},{"$f":"[1]Personnel!T1356","v":0},0,{"$f":"[1]Personnel!V1356","v":0},{"$f":"[1]Personnel!W1356","v":0},0,{"$f":"[1]Personnel!Y1356","v":0},{"$f":"[1]Personnel!Z1356","v":0},0,0,0,0,null,null,null,null,null,null,null,null,null,null,null,null,null,null,null,null,null,null,null,null,null,null,null,null,null,{"$f":"[1]Personnel!G1356","v":0}]
[0,{"$f":"IFERROR(INDEX(Settings!$AP$17:$AP$38,MATCH(Personnel!$G1357,Settings!$AQ$17:$AQ$38,0)),0)","v":0},null,null,null,{"$f":"[1]Personnel!F1357","v":0},{"$f":"IFERROR(INDEX((SLevel),MATCH(Personnel!BA1357,SLevel202223,0)),0)","v":0},{"$f":"[1]Personnel!H1357","v":0},{"$f":"[1]Personnel!I1357","v":0},{"$f":"[1]Personnel!J1357","v":0},{"$f":"[1]Personnel!P1357","v":0},{"$f":"[1]Personnel!Q1357","v":0},{"$f":"ROUND(IF(ISERROR(L1357/K1357),0,(L1357/K1357)),0)","v":0},{"$f":"[1]Personnel!S1357","v":0},{"$f":"[1]Personnel!S1357","v":0},{"$f":"[1]Personnel!S1357","v":0},{"$f":"[1]Personnel!T1357","v":0},{"$f":"ROUND(IF(ISERROR(Q1357/P1357),0,(Q1357/P1357)),0)","v":0},{"$f":"[1]Personnel!V1357","v":0},{"$f":"[1]Personnel!W1357","v":0},{"$f":"ROUND(IF(ISERROR(T1357/S1357),0,(T1357/S1357)),0)","v":0},{"$f":"[1]Personnel!Y1357","v":0},{"$f":"[1]Personnel!Z1357","v":0},{"$f":"ROUND(IF(ISERROR(W1357/V1357),0,(W1357/V1357)),0)","v":0},0,0,{"$f":"ROUND(IF(ISERROR(Z1357/Y1357),0,(Z1357/Y1357)),0)","v":0},null,null,null,null,null,null,null,null,null,null,null,null,null,null,null,null,null,null,null,null,null,null,null,null,null,{"$f":"[1]Personnel!G1357","v":0}]
[0,{"$f":"IFERROR(INDEX(Settings!$AP$17:$AP$38,MATCH(Personnel!$G1358,Settings!$AQ$17:$AQ$38,0)),0)","v":0},null,null,null,{"$f":"[1]Personnel!F1358","v":0},{"$f":"IFERROR(INDEX((SLevel),MATCH(Personnel!BA1358,SLevel202223,0)),0)","v":0},{"$f":"[1]Personnel!H1358","v":0},{"$f":"[1]Personnel!I1358","v":0},{"$f":"[1]Personnel!J1358","v":0},{"$f":"[1]Personnel!P1358","v":0},{"$f":"[1]Personnel!Q1358","v":0},0,{"$f":"[1]Personnel!S1358","v":0},{"$f":"[1]Personnel!S1358","v":0},{"$f":"[1]Personnel!S1358","v":0},{"$f":"[1]Personnel!T1358","v":0},0,{"$f":"[1]Personnel!V1358","v":0},{"$f":"[1]Personnel!W1358","v":0},0,{"$f":"[1]Personnel!Y1358","v":0},{"$f":"[1]Personnel!Z1358","v":0},0,0,0,0,null,null,null,null,null,null,null,null,null,null,null,null,null,null,null,null,null,null,null,null,null,null,null,null,null,{"$f":"[1]Personnel!G1358","v":0}]
[0,{"$f":"IFERROR(INDEX(Settings!$AP$17:$AP$38,MATCH(Personnel!$G1359,Settings!$AQ$17:$AQ$38,0)),0)","v":0},null,null,null,{"$f":"[1]Personnel!F1359","v":0},{"$f":"IFERROR(INDEX((SLevel),MATCH(Personnel!BA1359,SLevel202223,0)),0)","v":0},{"$f":"[1]Personnel!H1359","v":0},{"$f":"[1]Personnel!I1359","v":0},{"$f":"[1]Personnel!J1359","v":0},{"$f":"[1]Personnel!P1359","v":0},{"$f":"[1]Personnel!Q1359","v":0},0,{"$f":"[1]Personnel!S1359","v":0},{"$f":"[1]Personnel!S1359","v":0},{"$f":"[1]Personnel!S1359","v":0},{"$f":"[1]Personnel!T1359","v":0},0,{"$f":"[1]Personnel!V1359","v":0},{"$f":"[1]Personnel!W1359","v":0},0,{"$f":"[1]Personnel!Y1359","v":0},{"$f":"[1]Personnel!Z1359","v":0},0,0,0,0,null,null,null,null,null,null,null,null,null,null,null,null,null,null,null,null,null,null,null,null,null,null,null,null,null,{"$f":"[1]Personnel!G1359","v":0}]
[0,{"$f":"IFERROR(INDEX(Settings!$AP$17:$AP$38,MATCH(Personnel!$G1360,Settings!$AQ$17:$AQ$38,0)),0)","v":0},null,null,null,{"$f":"[1]Personnel!F1360","v":0},{"$f":"IFERROR(INDEX((SLevel),MATCH(Personnel!BA1360,SLevel202223,0)),0)","v":0},{"$f":"[1]Personnel!H1360","v":0},{"$f":"[1]Personnel!I1360","v":0},{"$f":"[1]Personnel!J1360","v":0},{"$f":"[1]Personnel!P1360","v":0},{"$f":"[1]Personnel!Q1360","v":0},0,{"$f":"[1]Personnel!S1360","v":0},{"$f":"[1]Personnel!S1360","v":0},{"$f":"[1]Personnel!S1360","v":0},{"$f":"[1]Personnel!T1360","v":0},0,{"$f":"[1]Personnel!V1360","v":0},{"$f":"[1]Personnel!W1360","v":0},0,{"$f":"[1]Personnel!Y1360","v":0},{"$f":"[1]Personnel!Z1360","v":0},0,0,0,0,null,null,null,null,null,null,null,null,null,null,null,null,null,null,null,null,null,null,null,null,null,null,null,null,null,{"$f":"[1]Personnel!G1360","v":0}]
[0,{"$f":"IFERROR(INDEX(Settings!$AP$17:$AP$38,MATCH(Personnel!$G1361,Settings!$AQ$17:$AQ$38,0)),0)","v":0},null,null,null,{"$f":"[1]Personnel!F1361","v":0},{"$f":"IFERROR(INDEX((SLevel),MATCH(Personnel!BA1361,SLevel202223,0)),0)","v":0},{"$f":"[1]Personnel!H1361","v":0},{"$f":"[1]Personnel!I1361","v":0},{"$f":"[1]Personnel!J1361","v":0},{"$f":"[1]Personnel!P1361","v":0},{"$f":"[1]Personnel!Q1361","v":0},0,{"$f":"[1]Personnel!S1361","v":0},{"$f":"[1]Personnel!S1361","v":0},{"$f":"[1]Personnel!S1361","v":0},{"$f":"[1]Personnel!T1361","v":0},0,{"$f":"[1]Personnel!V1361","v":0},{"$f":"[1]Personnel!W1361","v":0},0,{"$f":"[1]Personnel!Y1361","v":0},{"$f":"[1]Personnel!Z1361","v":0},0,0,0,0,null,null,null,null,null,null,null,null,null,null,null,null,null,null,null,null,null,null,null,null,null,null,null,null,null,{"$f":"[1]Personnel!G1361","v":0}]
[0,{"$f":"IFERROR(INDEX(Settings!$AP$17:$AP$38,MATCH(Personnel!$G1362,Settings!$AQ$17:$AQ$38,0)),0)","v":0},null,null,null,{"$f":"[1]Personnel!F1362","v":0},{"$f":"IFERROR(INDEX((SLevel),MATCH(Personnel!BA1362,SLevel202223,0)),0)","v":0},{"$f":"[1]Personnel!H1362","v":0},{"$f":"[1]Personnel!I1362","v":0},{"$f":"[1]Personnel!J1362","v":0},{"$f":"[1]Personnel!P1362","v":0},{"$f":"[1]Personnel!Q1362","v":0},0,{"$f":"[1]Personnel!S1362","v":0},{"$f":"[1]Personnel!S1362","v":0},{"$f":"[1]Personnel!S1362","v":0},{"$f":"[1]Personnel!T1362","v":0},0,{"$f":"[1]Personnel!V1362","v":0},{"$f":"[1]Personnel!W1362","v":0},0,{"$f":"[1]Personnel!Y1362","v":0},{"$f":"[1]Personnel!Z1362","v":0},0,0,0,0,null,null,null,null,null,null,null,null,null,null,null,null,null,null,null,null,null,null,null,null,null,null,null,null,null,{"$f":"[1]Personnel!G1362","v":0}]
[0,{"$f":"IFERROR(INDEX(Settings!$AP$17:$AP$38,MATCH(Personnel!$G1363,Settings!$AQ$17:$AQ$38,0)),0)","v":0},null,null,null,{"$f":"[1]Personnel!F1363","v":0},{"$f":"IFERROR(INDEX((SLevel),MATCH(Personnel!BA1363,SLevel202223,0)),0)","v":0},{"$f":"[1]Personnel!H1363","v":0},{"$f":"[1]Personnel!I1363","v":0},{"$f":"[1]Personnel!J1363","v":0},{"$f":"[1]Personnel!P1363","v":0},{"$f":"[1]Personnel!Q1363","v":0},0,{"$f":"[1]Personnel!S1363","v":0},{"$f":"[1]Personnel!S1363","v":0},{"$f":"[1]Personnel!S1363","v":0},{"$f":"[1]Personnel!T1363","v":0},0,{"$f":"[1]Personnel!V1363","v":0},{"$f":"[1]Personnel!W1363","v":0},0,{"$f":"[1]Personnel!Y1363","v":0},{"$f":"[1]Personnel!Z1363","v":0},0,0,0,0,null,null,null,null,null,null,null,null,null,null,null,null,null,null,null,null,null,null,null,null,null,null,null,null,null,{"$f":"[1]Personnel!G1363","v":0}]
[0,{"$f":"IFERROR(INDEX(Settings!$AP$17:$AP$38,MATCH(Personnel!$G1364,Settings!$AQ$17:$AQ$38,0)),0)","v":0},null,null,null,{"$f":"[1]Personnel!F1364","v":0},{"$f":"IFERROR(INDEX((SLevel),MATCH(Personnel!BA1364,SLevel202223,0)),0)","v":0},{"$f":"[1]Personnel!H1364","v":0},{"$f":"[1]Personnel!I1364","v":0},{"$f":"[1]Personnel!J1364","v":0},{"$f":"[1]Personnel!P1364","v":0},{"$f":"[1]Personnel!Q1364","v":0},0,{"$f":"[1]Personnel!S1364","v":0},{"$f":"[1]Personnel!S1364","v":0},{"$f":"[1]Personnel!S1364","v":0},{"$f":"[1]Personnel!T1364","v":0},0,{"$f":"[1]Personnel!V1364","v":0},{"$f":"[1]Personnel!W1364","v":0},0,{"$f":"[1]Personnel!Y1364","v":0},{"$f":"[1]Personnel!Z1364","v":0},0,0,0,0,null,null,null,null,null,null,null,null,null,null,null,null,null,null,null,null,null,null,null,null,null,null,null,null,null,{"$f":"[1]Personnel!G1364","v":0}]
[0,{"$f":"IFERROR(INDEX(Settings!$AP$17:$AP$38,MATCH(Personnel!$G1365,Settings!$AQ$17:$AQ$38,0)),0)","v":0},null,null,null,{"$f":"[1]Personnel!F1365","v":0},{"$f":"IFERROR(INDEX((SLevel),MATCH(Personnel!BA1365,SLevel202223,0)),0)","v":0},{"$f":"[1]Personnel!H1365","v":0},{"$f":"[1]Personnel!I1365","v":0},{"$f":"[1]Personnel!J1365","v":0},{"$f":"[1]Personnel!P1365","v":0},{"$f":"[1]Personnel!Q1365","v":0},0,{"$f":"[1]Personnel!S1365","v":0},{"$f":"[1]Personnel!S1365","v":0},{"$f":"[1]Personnel!S1365","v":0},{"$f":"[1]Personnel!T1365","v":0},0,{"$f":"[1]Personnel!V1365","v":0},{"$f":"[1]Personnel!W1365","v":0},0,{"$f":"[1]Personnel!Y1365","v":0},{"$f":"[1]Personnel!Z1365","v":0},0,0,0,0,null,null,null,null,null,null,null,null,null,null,null,null,null,null,null,null,null,null,null,null,null,null,null,null,null,{"$f":"[1]Personnel!G1365","v":0}]
[0,{"$f":"IFERROR(INDEX(Settings!$AP$17:$AP$38,MATCH(Personnel!$G1366,Settings!$AQ$17:$AQ$38,0)),0)","v":0},null,null,null,{"$f":"[1]Personnel!F1366","v":0},{"$f":"IFERROR(INDEX((SLevel),MATCH(Personnel!BA1366,SLevel202223,0)),0)","v":0},{"$f":"[1]Personnel!H1366","v":0},{"$f":"[1]Personnel!I1366","v":0},{"$f":"[1]Personnel!J1366","v":0},{"$f":"[1]Personnel!P1366","v":0},{"$f":"[1]Personnel!Q1366","v":0},0,{"$f":"[1]Personnel!S1366","v":0},{"$f":"[1]Personnel!S1366","v":0},{"$f":"[1]Personnel!S1366","v":0},{"$f":"[1]Personnel!T1366","v":0},0,{"$f":"[1]Personnel!V1366","v":0},{"$f":"[1]Personnel!W1366","v":0},0,{"$f":"[1]Personnel!Y1366","v":0},{"$f":"[1]Personnel!Z1366","v":0},0,0,0,0,null,null,null,null,null,null,null,null,null,null,null,null,null,null,null,null,null,null,null,null,null,null,null,null,null,{"$f":"[1]Personnel!G1366","v":0}]
[0,{"$f":"IFERROR(INDEX(Settings!$AP$17:$AP$38,MATCH(Personnel!$G1367,Settings!$AQ$17:$AQ$38,0)),0)","v":0},null,null,null,{"$f":"[1]Personnel!F1367","v":0},{"$f":"IFERROR(INDEX((SLevel),MATCH(Personnel!BA1367,SLevel202223,0)),0)","v":0},{"$f":"[1]Personnel!H1367","v":0},{"$f":"[1]Personnel!I1367","v":0},{"$f":"[1]Personnel!J1367","v":0},{"$f":"[1]Personnel!P1367","v":0},{"$f":"[1]Personnel!Q1367","v":0},0,{"$f":"[1]Personnel!S1367","v":0},{"$f":"[1]Personnel!S1367","v":0},{"$f":"[1]Personnel!S1367","v":0},{"$f":"[1]Personnel!T1367","v":0},0,{"$f":"[1]Personnel!V1367","v":0},{"$f":"[1]Personnel!W1367","v":0},0,{"$f":"[1]Personnel!Y1367","v":0},{"$f":"[1]Personnel!Z1367","v":0},0,0,0,0,null,null,null,null,null,null,null,null,null,null,null,null,null,null,null,null,null,null,null,null,null,null,null,null,null,{"$f":"[1]Personnel!G1367","v":0}]
[0,{"$f":"IFERROR(INDEX(Settings!$AP$17:$AP$38,MATCH(Personnel!$G1368,Settings!$AQ$17:$AQ$38,0)),0)","v":0},null,null,null,{"$f":"[1]Personnel!F1368","v":0},{"$f":"IFERROR(INDEX((SLevel),MATCH(Personnel!BA1368,SLevel202223,0)),0)","v":0},{"$f":"[1]Personnel!H1368","v":0},{"$f":"[1]Personnel!I1368","v":0},{"$f":"[1]Personnel!J1368","v":0},{"$f":"[1]Personnel!P1368","v":0},{"$f":"[1]Personnel!Q1368","v":0},0,{"$f":"[1]Personnel!S1368","v":0},{"$f":"[1]Personnel!S1368","v":0},{"$f":"[1]Personnel!S1368","v":0},{"$f":"[1]Personnel!T1368","v":0},0,{"$f":"[1]Personnel!V1368","v":0},{"$f":"[1]Personnel!W1368","v":0},0,{"$f":"[1]Personnel!Y1368","v":0},{"$f":"[1]Personnel!Z1368","v":0},0,0,0,0,null,null,null,null,null,null,null,null,null,null,null,null,null,null,null,null,null,null,null,null,null,null,null,null,null,{"$f":"[1]Personnel!G1368","v":0}]
[0,{"$f":"IFERROR(INDEX(Settings!$AP$17:$AP$38,MATCH(Personnel!$G1369,Settings!$AQ$17:$AQ$38,0)),0)","v":0},null,null,null,{"$f":"[1]Personnel!F1369","v":0},{"$f":"IFERROR(INDEX((SLevel),MATCH(Personnel!BA1369,SLevel202223,0)),0)","v":0},{"$f":"[1]Personnel!H1369","v":0},{"$f":"[1]Personnel!I1369","v":0},{"$f":"[1]Personnel!J1369","v":0},{"$f":"[1]Personnel!P1369","v":0},{"$f":"[1]Personnel!Q1369","v":0},0,{"$f":"[1]Personnel!S1369","v":0},{"$f":"[1]Personnel!S1369","v":0},{"$f":"[1]Personnel!S1369","v":0},{"$f":"[1]Personnel!T1369","v":0},0,{"$f":"[1]Personnel!V1369","v":0},{"$f":"[1]Personnel!W1369","v":0},0,{"$f":"[1]Personnel!Y1369","v":0},{"$f":"[1]Personnel!Z1369","v":0},0,0,0,0,null,null,null,null,null,null,null,null,null,null,null,null,null,null,null,null,null,null,null,null,null,null,null,null,null,{"$f":"[1]Personnel!G1369","v":0}]
[0,{"$f":"IFERROR(INDEX(Settings!$AP$17:$AP$38,MATCH(Personnel!$G1370,Settings!$AQ$17:$AQ$38,0)),0)","v":0},null,null,null,{"$f":"[1]Personnel!F1370","v":0},{"$f":"IFERROR(INDEX((SLevel),MATCH(Personnel!BA1370,SLevel202223,0)),0)","v":0},{"$f":"[1]Personnel!H1370","v":0},{"$f":"[1]Personnel!I1370","v":0},{"$f":"[1]Personnel!J1370","v":0},{"$f":"[1]Personnel!P1370","v":0},{"$f":"[1]Personnel!Q1370","v":0},0,{"$f":"[1]Personnel!S1370","v":0},{"$f":"[1]Personnel!S1370","v":0},{"$f":"[1]Personnel!S1370","v":0},{"$f":"[1]Personnel!T1370","v":0},0,{"$f":"[1]Personnel!V1370","v":0},{"$f":"[1]Personnel!W1370","v":0},0,{"$f":"[1]Personnel!Y1370","v":0},{"$f":"[1]Personnel!Z1370","v":0},0,0,0,0,null,null,null,null,null,null,null,null,null,null,null,null,null,null,null,null,null,null,null,null,null,null,null,null,null,{"$f":"[1]Personnel!G1370","v":0}]
[0,{"$f":"IFERROR(INDEX(Settings!$AP$17:$AP$38,MATCH(Personnel!$G1371,Settings!$AQ$17:$AQ$38,0)),0)","v":0},null,null,null,{"$f":"[1]Personnel!F1371","v":0},{"$f":"IFERROR(INDEX((SLevel),MATCH(Personnel!BA1371,SLevel202223,0)),0)","v":0},{"$f":"[1]Personnel!H1371","v":0},{"$f":"[1]Personnel!I1371","v":0},{"$f":"[1]Personnel!J1371","v":0},{"$f":"[1]Personnel!P1371","v":0},{"$f":"[1]Personnel!Q1371","v":0},0,{"$f":"[1]Personnel!S1371","v":0},{"$f":"[1]Personnel!S1371","v":0},{"$f":"[1]Personnel!S1371","v":0},{"$f":"[1]Personnel!T1371","v":0},0,{"$f":"[1]Personnel!V1371","v":0},{"$f":"[1]Personnel!W1371","v":0},0,{"$f":"[1]Personnel!Y1371","v":0},{"$f":"[1]Personnel!Z1371","v":0},0,0,0,0,null,null,null,null,null,null,null,null,null,null,null,null,null,null,null,null,null,null,null,null,null,null,null,null,null,{"$f":"[1]Personnel!G1371","v":0}]
[0,{"$f":"IFERROR(INDEX(Settings!$AP$17:$AP$38,MATCH(Personnel!$G1372,Settings!$AQ$17:$AQ$38,0)),0)","v":0},null,null,null,{"$f":"[1]Personnel!F1372","v":0},{"$f":"IFERROR(INDEX((SLevel),MATCH(Personnel!BA1372,SLevel202223,0)),0)","v":0},{"$f":"[1]Personnel!H1372","v":0},{"$f":"[1]Personnel!I1372","v":0},{"$f":"[1]Personnel!J1372","v":0},{"$f":"[1]Personnel!P1372","v":0},{"$f":"[1]Personnel!Q1372","v":0},0,{"$f":"[1]Personnel!S1372","v":0},{"$f":"[1]Personnel!S1372","v":0},{"$f":"[1]Personnel!S1372","v":0},{"$f":"[1]Personnel!T1372","v":0},0,{"$f":"[1]Personnel!V1372","v":0},{"$f":"[1]Personnel!W1372","v":0},0,{"$f":"[1]Personnel!Y1372","v":0},{"$f":"[1]Personnel!Z1372","v":0},0,0,0,0,null,null,null,null,null,null,null,null,null,null,null,null,null,null,null,null,null,null,null,null,null,null,null,null,null,{"$f":"[1]Personnel!G1372","v":0}]
[0,{"$f":"IFERROR(INDEX(Settings!$AP$17:$AP$38,MATCH(Personnel!$G1373,Settings!$AQ$17:$AQ$38,0)),0)","v":0},null,null,null,{"$f":"[1]Personnel!F1373","v":0},{"$f":"IFERROR(INDEX((SLevel),MATCH(Personnel!BA1373,SLevel202223,0)),0)","v":0},{"$f":"[1]Personnel!H1373","v":0},{"$f":"[1]Personnel!I1373","v":0},{"$f":"[1]Personnel!J1373","v":0},{"$f":"[1]Personnel!P1373","v":0},{"$f":"[1]Personnel!Q1373","v":0},0,{"$f":"[1]Personnel!S1373","v":0},{"$f":"[1]Personnel!S1373","v":0},{"$f":"[1]Personnel!S1373","v":0},{"$f":"[1]Personnel!T1373","v":0},0,{"$f":"[1]Personnel!V1373","v":0},{"$f":"[1]Personnel!W1373","v":0},0,{"$f":"[1]Personnel!Y1373","v":0},{"$f":"[1]Personnel!Z1373","v":0},0,0,0,0,null,null,null,null,null,null,null,null,null,null,null,null,null,null,null,null,null,null,null,null,null,null,null,null,null,{"$f":"[1]Personnel!G1373","v":0}]
[0,{"$f":"IFERROR(INDEX(Settings!$AP$17:$AP$38,MATCH(Personnel!$G1374,Settings!$AQ$17:$AQ$38,0)),0)","v":0},null,null,null,{"$f":"[1]Personnel!F1374","v":0},{"$f":"IFERROR(INDEX((SLevel),MATCH(Personnel!BA1374,SLevel202223,0)),0)","v":0},{"$f":"[1]Personnel!H1374","v":0},{"$f":"[1]Personnel!I1374","v":0},{"$f":"[1]Personnel!J1374","v":0},{"$f":"[1]Personnel!P1374","v":0},{"$f":"[1]Personnel!Q1374","v":0},0,{"$f":"[1]Personnel!S1374","v":0},{"$f":"[1]Personnel!S1374","v":0},{"$f":"[1]Personnel!S1374","v":0},{"$f":"[1]Personnel!T1374","v":0},0,{"$f":"[1]Personnel!V1374","v":0},{"$f":"[1]Personnel!W1374","v":0},0,{"$f":"[1]Personnel!Y1374","v":0},{"$f":"[1]Personnel!Z1374","v":0},0,0,0,0,null,null,null,null,null,null,null,null,null,null,null,null,null,null,null,null,null,null,null,null,null,null,null,null,null,{"$f":"[1]Personnel!G1374","v":0}]
[0,{"$f":"IFERROR(INDEX(Settings!$AP$17:$AP$38,MATCH(Personnel!$G1375,Settings!$AQ$17:$AQ$38,0)),0)","v":0},null,null,null,{"$f":"[1]Personnel!F1375","v":0},{"$f":"IFERROR(INDEX((SLevel),MATCH(Personnel!BA1375,SLevel202223,0)),0)","v":0},{"$f":"[1]Personnel!H1375","v":0},{"$f":"[1]Personnel!I1375","v":0},{"$f":"[1]Personnel!J1375","v":0},{"$f":"[1]Personnel!P1375","v":0},{"$f":"[1]Personnel!Q1375","v":0},0,{"$f":"[1]Personnel!S1375","v":0},{"$f":"[1]Personnel!S1375","v":0},{"$f":"[1]Personnel!S1375","v":0},{"$f":"[1]Personnel!T1375","v":0},0,{"$f":"[1]Personnel!V1375","v":0},{"$f":"[1]Personnel!W1375","v":0},0,{"$f":"[1]Personnel!Y1375","v":0},{"$f":"[1]Personnel!Z1375","v":0},0,0,0,0,null,null,null,null,null,null,null,null,null,null,null,null,null,null,null,null,null,null,null,null,null,null,null,null,null,{"$f":"[1]Personnel!G1375","v":0}]
[0,{"$f":"IFERROR(INDEX(Settings!$AP$17:$AP$38,MATCH(Personnel!$G1376,Settings!$AQ$17:$AQ$38,0)),0)","v":0},null,null,null,{"$f":"[1]Personnel!F1376","v":0},{"$f":"IFERROR(INDEX((SLevel),MATCH(Personnel!BA1376,SLevel202223,0)),0)","v":0},{"$f":"[1]Personnel!H1376","v":0},{"$f":"[1]Personnel!I1376","v":0},{"$f":"[1]Personnel!J1376","v":0},{"$f":"[1]Personnel!P1376","v":0},{"$f":"[1]Personnel!Q1376","v":0},0,{"$f":"[1]Personnel!S1376","v":0},{"$f":"[1]Personnel!S1376","v":0},{"$f":"[1]Personnel!S1376","v":0},{"$f":"[1]Personnel!T1376","v":0},0,{"$f":"[1]Personnel!V1376","v":0},{"$f":"[1]Personnel!W1376","v":0},0,{"$f":"[1]Personnel!Y1376","v":0},{"$f":"[1]Personnel!Z1376","v":0},0,0,0,0,null,null,null,null,null,null,null,null,null,null,null,null,null,null,null,null,null,null,null,null,null,null,null,null,null,{"$f":"[1]Personnel!G1376","v":0}]
[0,{"$f":"IFERROR(INDEX(Settings!$AP$17:$AP$38,MATCH(Personnel!$G1377,Settings!$AQ$17:$AQ$38,0)),0)","v":0},null,null,null,{"$f":"[1]Personnel!F1377","v":0},{"$f":"IFERROR(INDEX((SLevel),MATCH(Personnel!BA1377,SLevel202223,0)),0)","v":0},{"$f":"[1]Personnel!H1377","v":0},{"$f":"[1]Personnel!I1377","v":0},{"$f":"[1]Personnel!J1377","v":0},{"$f":"[1]Personnel!P1377","v":0},{"$f":"[1]Personnel!Q1377","v":0},0,{"$f":"[1]Personnel!S1377","v":0},{"$f":"[1]Personnel!S1377","v":0},{"$f":"[1]Personnel!S1377","v":0},{"$f":"[1]Personnel!T1377","v":0},0,{"$f":"[1]Personnel!V1377","v":0},{"$f":"[1]Personnel!W1377","v":0},0,{"$f":"[1]Personnel!Y1377","v":0},{"$f":"[1]Personnel!Z1377","v":0},0,0,0,0,null,null,null,null,null,null,null,null,null,null,null,null,null,null,null,null,null,null,null,null,null,null,null,null,null,{"$f":"[1]Personnel!G1377","v":0}]
[0,{"$f":"IFERROR(INDEX(Settings!$AP$17:$AP$38,MATCH(Personnel!$G1378,Settings!$AQ$17:$AQ$38,0)),0)","v":0},null,null,null,{"$f":"[1]Personnel!F1378","v":0},{"$f":"IFERROR(INDEX((SLevel),MATCH(Personnel!BA1378,SLevel202223,0)),0)","v":0},{"$f":"[1]Personnel!H1378","v":0},{"$f":"[1]Personnel!I1378","v":0},{"$f":"[1]Personnel!J1378","v":0},{"$f":"[1]Personnel!P1378","v":0},{"$f":"[1]Personnel!Q1378","v":0},0,{"$f":"[1]Personnel!S1378","v":0},{"$f":"[1]Personnel!S1378","v":0},{"$f":"[1]Personnel!S1378","v":0},{"$f":"[1]Personnel!T1378","v":0},0,{"$f":"[1]Personnel!V1378","v":0},{"$f":"[1]Personnel!W1378","v":0},0,{"$f":"[1]Personnel!Y1378","v":0},{"$f":"[1]Personnel!Z1378","v":0},0,0,0,0,null,null,null,null,null,null,null,null,null,null,null,null,null,null,null,null,null,null,null,null,null,null,null,null,null,{"$f":"[1]Personnel!G1378","v":0}]
[0,{"$f":"IFERROR(INDEX(Settings!$AP$17:$AP$38,MATCH(Personnel!$G1379,Settings!$AQ$17:$AQ$38,0)),0)","v":0},null,null,null,{"$f":"[1]Personnel!F1379","v":0},{"$f":"IFERROR(INDEX((SLevel),MATCH(Personnel!BA1379,SLevel202223,0)),0)","v":0},{"$f":"[1]Personnel!H1379","v":0},{"$f":"[1]Personnel!I1379","v":0},{"$f":"[1]Personnel!J1379","v":0},{"$f":"[1]Personnel!P1379","v":0},{"$f":"[1]Personnel!Q1379","v":0},0,{"$f":"[1]Personnel!S1379","v":0},{"$f":"[1]Personnel!S1379","v":0},{"$f":"[1]Personnel!S1379","v":0},{"$f":"[1]Personnel!T1379","v":0},0,{"$f":"[1]Personnel!V1379","v":0},{"$f":"[1]Personnel!W1379","v":0},0,{"$f":"[1]Personnel!Y1379","v":0},{"$f":"[1]Personnel!Z1379","v":0},0,0,0,0,null,null,null,null,null,null,null,null,null,null,null,null,null,null,null,null,null,null,null,null,null,null,null,null,null,{"$f":"[1]Personnel!G1379","v":0}]
[0,{"$f":"IFERROR(INDEX(Settings!$AP$17:$AP$38,MATCH(Personnel!$G1380,Settings!$AQ$17:$AQ$38,0)),0)","v":0},null,null,null,{"$f":"[1]Personnel!F1380","v":0},{"$f":"IFERROR(INDEX((SLevel),MATCH(Personnel!BA1380,SLevel202223,0)),0)","v":0},{"$f":"[1]Personnel!H1380","v":0},{"$f":"[1]Personnel!I1380","v":0},{"$f":"[1]Personnel!J1380","v":0},{"$f":"[1]Personnel!P1380","v":0},{"$f":"[1]Personnel!Q1380","v":0},0,{"$f":"[1]Personnel!S1380","v":0},{"$f":"[1]Personnel!S1380","v":0},{"$f":"[1]Personnel!S1380","v":0},{"$f":"[1]Personnel!T1380","v":0},0,{"$f":"[1]Personnel!V1380","v":0},{"$f":"[1]Personnel!W1380","v":0},0,{"$f":"[1]Personnel!Y1380","v":0},{"$f":"[1]Personnel!Z1380","v":0},0,0,0,0,null,null,null,null,null,null,null,null,null,null,null,null,null,null,null,null,null,null,null,null,null,null,null,null,null,{"$f":"[1]Personnel!G1380","v":0}]
[0,{"$f":"IFERROR(INDEX(Settings!$AP$17:$AP$38,MATCH(Personnel!$G1381,Settings!$AQ$17:$AQ$38,0)),0)","v":0},null,null,null,{"$f":"[1]Personnel!F1381","v":0},{"$f":"IFERROR(INDEX((SLevel),MATCH(Personnel!BA1381,SLevel202223,0)),0)","v":0},{"$f":"[1]Personnel!H1381","v":0},{"$f":"[1]Personnel!I1381","v":0},{"$f":"[1]Personnel!J1381","v":0},{"$f":"[1]Personnel!P1381","v":0},{"$f":"[1]Personnel!Q1381","v":0},0,{"$f":"[1]Personnel!S1381","v":0},{"$f":"[1]Personnel!S1381","v":0},{"$f":"[1]Personnel!S1381","v":0},{"$f":"[1]Personnel!T1381","v":0},0,{"$f":"[1]Personnel!V1381","v":0},{"$f":"[1]Personnel!W1381","v":0},0,{"$f":"[1]Personnel!Y1381","v":0},{"$f":"[1]Personnel!Z1381","v":0},0,0,0,0,null,null,null,null,null,null,null,null,null,null,null,null,null,null,null,null,null,null,null,null,null,null,null,null,null,{"$f":"[1]Personnel!G1381","v":0}]
[0,{"$f":"IFERROR(INDEX(Settings!$AP$17:$AP$38,MATCH(Personnel!$G1382,Settings!$AQ$17:$AQ$38,0)),0)","v":0},null,null,null,{"$f":"[1]Personnel!F1382","v":0},{"$f":"IFERROR(INDEX((SLevel),MATCH(Personnel!BA1382,SLevel202223,0)),0)","v":0},{"$f":"[1]Personnel!H1382","v":0},{"$f":"[1]Personnel!I1382","v":0},{"$f":"[1]Personnel!J1382","v":0},{"$f":"[1]Personnel!P1382","v":0},{"$f":"[1]Personnel!Q1382","v":0},0,{"$f":"[1]Personnel!S1382","v":0},{"$f":"[1]Personnel!S1382","v":0},{"$f":"[1]Personnel!S1382","v":0},{"$f":"[1]Personnel!T1382","v":0},0,{"$f":"[1]Personnel!V1382","v":0},{"$f":"[1]Personnel!W1382","v":0},0,{"$f":"[1]Personnel!Y1382","v":0},{"$f":"[1]Personnel!Z1382","v":0},0,0,0,0,null,null,null,null,null,null,null,null,null,null,null,null,null,null,null,null,null,null,null,null,null,null,null,null,null,{"$f":"[1]Personnel!G1382","v":0}]
[0,{"$f":"IFERROR(INDEX(Settings!$AP$17:$AP$38,MATCH(Personnel!$G1383,Settings!$AQ$17:$AQ$38,0)),0)","v":0},null,null,null,{"$f":"[1]Personnel!F1383","v":0},{"$f":"IFERROR(INDEX((SLevel),MATCH(Personnel!BA1383,SLevel202223,0)),0)","v":0},{"$f":"[1]Personnel!H1383","v":0},{"$f":"[1]Personnel!I1383","v":0},{"$f":"[1]Personnel!J1383","v":0},{"$f":"[1]Personnel!P1383","v":0},{"$f":"[1]Personnel!Q1383","v":0},0,{"$f":"[1]Personnel!S1383","v":0},{"$f":"[1]Personnel!S1383","v":0},{"$f":"[1]Personnel!S1383","v":0},{"$f":"[1]Personnel!T1383","v":0},0,{"$f":"[1]Personnel!V1383","v":0},{"$f":"[1]Personnel!W1383","v":0},0,{"$f":"[1]Personnel!Y1383","v":0},{"$f":"[1]Personnel!Z1383","v":0},0,0,0,0,null,null,null,null,null,null,null,null,null,null,null,null,null,null,null,null,null,null,null,null,null,null,null,null,null,{"$f":"[1]Personnel!G1383","v":0}]
[0,{"$f":"IFERROR(INDEX(Settings!$AP$17:$AP$38,MATCH(Personnel!$G1384,Settings!$AQ$17:$AQ$38,0)),0)","v":0},null,null,null,{"$f":"[1]Personnel!F1384","v":0},{"$f":"IFERROR(INDEX((SLevel),MATCH(Personnel!BA1384,SLevel202223,0)),0)","v":0},{"$f":"[1]Personnel!H1384","v":0},{"$f":"[1]Personnel!I1384","v":0},{"$f":"[1]Personnel!J1384","v":0},{"$f":"[1]Personnel!P1384","v":0},{"$f":"[1]Personnel!Q1384","v":0},0,{"$f":"[1]Personnel!S1384","v":0},{"$f":"[1]Personnel!S1384","v":0},{"$f":"[1]Personnel!S1384","v":0},{"$f":"[1]Personnel!T1384","v":0},0,{"$f":"[1]Personnel!V1384","v":0},{"$f":"[1]Personnel!W1384","v":0},0,{"$f":"[1]Personnel!Y1384","v":0},{"$f":"[1]Personnel!Z1384","v":0},0,0,0,0,null,null,null,null,null,null,null,null,null,null,null,null,null,null,null,null,null,null,null,null,null,null,null,null,null,{"$f":"[1]Personnel!G1384","v":0}]
[0,{"$f":"IFERROR(INDEX(Settings!$AP$17:$AP$38,MATCH(Personnel!$G1385,Settings!$AQ$17:$AQ$38,0)),0)","v":0},null,null,null,{"$f":"[1]Personnel!F1385","v":0},{"$f":"IFERROR(INDEX((SLevel),MATCH(Personnel!BA1385,SLevel202223,0)),0)","v":0},{"$f":"[1]Personnel!H1385","v":0},{"$f":"[1]Personnel!I1385","v":0},{"$f":"[1]Personnel!J1385","v":0},{"$f":"[1]Personnel!P1385","v":0},{"$f":"[1]Personnel!Q1385","v":0},0,{"$f":"[1]Personnel!S1385","v":0},{"$f":"[1]Personnel!S1385","v":0},{"$f":"[1]Personnel!S1385","v":0},{"$f":"[1]Personnel!T1385","v":0},0,{"$f":"[1]Personnel!V1385","v":0},{"$f":"[1]Personnel!W1385","v":0},0,{"$f":"[1]Personnel!Y1385","v":0},{"$f":"[1]Personnel!Z1385","v":0},0,0,0,0,null,null,null,null,null,null,null,null,null,null,null,null,null,null,null,null,null,null,null,null,null,null,null,null,null,{"$f":"[1]Personnel!G1385","v":0}]
[0,{"$f":"IFERROR(INDEX(Settings!$AP$17:$AP$38,MATCH(Personnel!$G1386,Settings!$AQ$17:$AQ$38,0)),0)","v":0},null,null,null,{"$f":"[1]Personnel!F1386","v":0},{"$f":"IFERROR(INDEX((SLevel),MATCH(Personnel!BA1386,SLevel202223,0)),0)","v":0},{"$f":"[1]Personnel!H1386","v":0},{"$f":"[1]Personnel!I1386","v":0},{"$f":"[1]Personnel!J1386","v":0},{"$f":"[1]Personnel!P1386","v":0},{"$f":"[1]Personnel!Q1386","v":0},0,{"$f":"[1]Personnel!S1386","v":0},{"$f":"[1]Personnel!S1386","v":0},{"$f":"[1]Personnel!S1386","v":0},{"$f":"[1]Personnel!T1386","v":0},0,{"$f":"[1]Personnel!V1386","v":0},{"$f":"[1]Personnel!W1386","v":0},0,{"$f":"[1]Personnel!Y1386","v":0},{"$f":"[1]Personnel!Z1386","v":0},0,0,0,0,null,null,null,null,null,null,null,null,null,null,null,null,null,null,null,null,null,null,null,null,null,null,null,null,null,{"$f":"[1]Personnel!G1386","v":0}]
[0,{"$f":"IFERROR(INDEX(Settings!$AP$17:$AP$38,MATCH(Personnel!$G1387,Settings!$AQ$17:$AQ$38,0)),0)","v":0},null,null,null,{"$f":"[1]Personnel!F1387","v":0},{"$f":"IFERROR(INDEX((SLevel),MATCH(Personnel!BA1387,SLevel202223,0)),0)","v":0},{"$f":"[1]Personnel!H1387","v":0},{"$f":"[1]Personnel!I1387","v":0},{"$f":"[1]Personnel!J1387","v":0},{"$f":"[1]Personnel!P1387","v":0},{"$f":"[1]Personnel!Q1387","v":0},0,{"$f":"[1]Personnel!S1387","v":0},{"$f":"[1]Personnel!S1387","v":0},{"$f":"[1]Personnel!S1387","v":0},{"$f":"[1]Personnel!T1387","v":0},0,{"$f":"[1]Personnel!V1387","v":0},{"$f":"[1]Personnel!W1387","v":0},0,{"$f":"[1]Personnel!Y1387","v":0},{"$f":"[1]Personnel!Z1387","v":0},0,0,0,0,null,null,null,null,null,null,null,null,null,null,null,null,null,null,null,null,null,null,null,null,null,null,null,null,null,{"$f":"[1]Personnel!G1387","v":0}]
[0,{"$f":"IFERROR(INDEX(Settings!$AP$17:$AP$38,MATCH(Personnel!$G1388,Settings!$AQ$17:$AQ$38,0)),0)","v":0},null,null,null,{"$f":"[1]Personnel!F1388","v":0},{"$f":"IFERROR(INDEX((SLevel),MATCH(Personnel!BA1388,SLevel202223,0)),0)","v":0},{"$f":"[1]Personnel!H1388","v":0},{"$f":"[1]Personnel!I1388","v":0},{"$f":"[1]Personnel!J1388","v":0},{"$f":"[1]Personnel!P1388","v":0},{"$f":"[1]Personnel!Q1388","v":0},0,{"$f":"[1]Personnel!S1388","v":0},{"$f":"[1]Personnel!S1388","v":0},{"$f":"[1]Personnel!S1388","v":0},{"$f":"[1]Personnel!T1388","v":0},0,{"$f":"[1]Personnel!V1388","v":0},{"$f":"[1]Personnel!W1388","v":0},0,{"$f":"[1]Personnel!Y1388","v":0},{"$f":"[1]Personnel!Z1388","v":0},0,0,0,0,null,null,null,null,null,null,null,null,null,null,null,null,null,null,null,null,null,null,null,null,null,null,null,null,null,{"$f":"[1]Personnel!G1388","v":0}]
[0,{"$f":"IFERROR(INDEX(Settings!$AP$17:$AP$38,MATCH(Personnel!$G1389,Settings!$AQ$17:$AQ$38,0)),0)","v":0},null,null,null,{"$f":"[1]Personnel!F1389","v":0},{"$f":"IFERROR(INDEX((SLevel),MATCH(Personnel!BA1389,SLevel202223,0)),0)","v":0},{"$f":"[1]Personnel!H1389","v":0},{"$f":"[1]Personnel!I1389","v":0},{"$f":"[1]Personnel!J1389","v":0},{"$f":"[1]Personnel!P1389","v":0},{"$f":"[1]Personnel!Q1389","v":0},0,{"$f":"[1]Personnel!S1389","v":0},{"$f":"[1]Personnel!S1389","v":0},{"$f":"[1]Personnel!S1389","v":0},{"$f":"[1]Personnel!T1389","v":0},0,{"$f":"[1]Personnel!V1389","v":0},{"$f":"[1]Personnel!W1389","v":0},0,{"$f":"[1]Personnel!Y1389","v":0},{"$f":"[1]Personnel!Z1389","v":0},0,0,0,0,null,null,null,null,null,null,null,null,null,null,null,null,null,null,null,null,null,null,null,null,null,null,null,null,null,{"$f":"[1]Personnel!G1389","v":0}]
[0,{"$f":"IFERROR(INDEX(Settings!$AP$17:$AP$38,MATCH(Personnel!$G1390,Settings!$AQ$17:$AQ$38,0)),0)","v":0},null,null,null,{"$f":"[1]Personnel!F1390","v":0},{"$f":"IFERROR(INDEX((SLevel),MATCH(Personnel!BA1390,SLevel202223,0)),0)","v":0},{"$f":"[1]Personnel!H1390","v":0},{"$f":"[1]Personnel!I1390","v":0},{"$f":"[1]Personnel!J1390","v":0},{"$f":"[1]Personnel!P1390","v":0},{"$f":"[1]Personnel!Q1390","v":0},0,{"$f":"[1]Personnel!S1390","v":0},{"$f":"[1]Personnel!S1390","v":0},{"$f":"[1]Personnel!S1390","v":0},{"$f":"[1]Personnel!T1390","v":0},0,{"$f":"[1]Personnel!V1390","v":0},{"$f":"[1]Personnel!W1390","v":0},0,{"$f":"[1]Personnel!Y1390","v":0},{"$f":"[1]Personnel!Z1390","v":0},0,0,0,0,null,null,null,null,null,null,null,null,null,null,null,null,null,null,null,null,null,null,null,null,null,null,null,null,null,{"$f":"[1]Personnel!G1390","v":0}]
[0,{"$f":"IFERROR(INDEX(Settings!$AP$17:$AP$38,MATCH(Personnel!$G1391,Settings!$AQ$17:$AQ$38,0)),0)","v":0},null,null,null,{"$f":"[1]Personnel!F1391","v":0},{"$f":"IFERROR(INDEX((SLevel),MATCH(Personnel!BA1391,SLevel202223,0)),0)","v":0},{"$f":"[1]Personnel!H1391","v":0},{"$f":"[1]Personnel!I1391","v":0},{"$f":"[1]Personnel!J1391","v":0},{"$f":"[1]Personnel!P1391","v":0},{"$f":"[1]Personnel!Q1391","v":0},0,{"$f":"[1]Personnel!S1391","v":0},{"$f":"[1]Personnel!S1391","v":0},{"$f":"[1]Personnel!S1391","v":0},{"$f":"[1]Personnel!T1391","v":0},0,{"$f":"[1]Personnel!V1391","v":0},{"$f":"[1]Personnel!W1391","v":0},0,{"$f":"[1]Personnel!Y1391","v":0},{"$f":"[1]Personnel!Z1391","v":0},0,0,0,0,null,null,null,null,null,null,null,null,null,null,null,null,null,null,null,null,null,null,null,null,null,null,null,null,null,{"$f":"[1]Personnel!G1391","v":0}]
[0,{"$f":"IFERROR(INDEX(Settings!$AP$17:$AP$38,MATCH(Personnel!$G1392,Settings!$AQ$17:$AQ$38,0)),0)","v":0},null,null,null,{"$f":"[1]Personnel!F1392","v":0},{"$f":"IFERROR(INDEX((SLevel),MATCH(Personnel!BA1392,SLevel202223,0)),0)","v":0},{"$f":"[1]Personnel!H1392","v":0},{"$f":"[1]Personnel!I1392","v":0},{"$f":"[1]Personnel!J1392","v":0},{"$f":"[1]Personnel!P1392","v":0},{"$f":"[1]Personnel!Q1392","v":0},0,{"$f":"[1]Personnel!S1392","v":0},{"$f":"[1]Personnel!S1392","v":0},{"$f":"[1]Personnel!S1392","v":0},{"$f":"[1]Personnel!T1392","v":0},0,{"$f":"[1]Personnel!V1392","v":0},{"$f":"[1]Personnel!W1392","v":0},0,{"$f":"[1]Personnel!Y1392","v":0},{"$f":"[1]Personnel!Z1392","v":0},0,0,0,0,null,null,null,null,null,null,null,null,null,null,null,null,null,null,null,null,null,null,null,null,null,null,null,null,null,{"$f":"[1]Personnel!G1392","v":0}]
[0,{"$f":"IFERROR(INDEX(Settings!$AP$17:$AP$38,MATCH(Personnel!$G1393,Settings!$AQ$17:$AQ$38,0)),0)","v":0},null,null,null,{"$f":"[1]Personnel!F1393","v":0},{"$f":"IFERROR(INDEX((SLevel),MATCH(Personnel!BA1393,SLevel202223,0)),0)","v":0},{"$f":"[1]Personnel!H1393","v":0},{"$f":"[1]Personnel!I1393","v":0},{"$f":"[1]Personnel!J1393","v":0},{"$f":"[1]Personnel!P1393","v":0},{"$f":"[1]Personnel!Q1393","v":0},0,{"$f":"[1]Personnel!S1393","v":0},{"$f":"[1]Personnel!S1393","v":0},{"$f":"[1]Personnel!S1393","v":0},{"$f":"[1]Personnel!T1393","v":0},0,{"$f":"[1]Personnel!V1393","v":0},{"$f":"[1]Personnel!W1393","v":0},0,{"$f":"[1]Personnel!Y1393","v":0},{"$f":"[1]Personnel!Z1393","v":0},0,0,0,0,null,null,null,null,null,null,null,null,null,null,null,null,null,null,null,null,null,null,null,null,null,null,null,null,null,{"$f":"[1]Personnel!G1393","v":0}]
[0,{"$f":"IFERROR(INDEX(Settings!$AP$17:$AP$38,MATCH(Personnel!$G1394,Settings!$AQ$17:$AQ$38,0)),0)","v":0},null,null,null,{"$f":"[1]Personnel!F1394","v":0},{"$f":"IFERROR(INDEX((SLevel),MATCH(Personnel!BA1394,SLevel202223,0)),0)","v":0},{"$f":"[1]Personnel!H1394","v":0},{"$f":"[1]Personnel!I1394","v":0},{"$f":"[1]Personnel!J1394","v":0},{"$f":"[1]Personnel!P1394","v":0},{"$f":"[1]Personnel!Q1394","v":0},0,{"$f":"[1]Personnel!S1394","v":0},{"$f":"[1]Personnel!S1394","v":0},{"$f":"[1]Personnel!S1394","v":0},{"$f":"[1]Personnel!T1394","v":0},0,{"$f":"[1]Personnel!V1394","v":0},{"$f":"[1]Personnel!W1394","v":0},0,{"$f":"[1]Personnel!Y1394","v":0},{"$f":"[1]Personnel!Z1394","v":0},0,0,0,0,null,null,null,null,null,null,null,null,null,null,null,null,null,null,null,null,null,null,null,null,null,null,null,null,null,{"$f":"[1]Personnel!G1394","v":0}]
[0,{"$f":"IFERROR(INDEX(Settings!$AP$17:$AP$38,MATCH(Personnel!$G1395,Settings!$AQ$17:$AQ$38,0)),0)","v":0},null,null,null,{"$f":"[1]Personnel!F1395","v":0},{"$f":"IFERROR(INDEX((SLevel),MATCH(Personnel!BA1395,SLevel202223,0)),0)","v":0},{"$f":"[1]Personnel!H1395","v":0},{"$f":"[1]Personnel!I1395","v":0},{"$f":"[1]Personnel!J1395","v":0},{"$f":"[1]Personnel!P1395","v":0},{"$f":"[1]Personnel!Q1395","v":0},0,{"$f":"[1]Personnel!S1395","v":0},{"$f":"[1]Personnel!S1395","v":0},{"$f":"[1]Personnel!S1395","v":0},{"$f":"[1]Personnel!T1395","v":0},0,{"$f":"[1]Personnel!V1395","v":0},{"$f":"[1]Personnel!W1395","v":0},0,{"$f":"[1]Personnel!Y1395","v":0},{"$f":"[1]Personnel!Z1395","v":0},0,0,0,0,null,null,null,null,null,null,null,null,null,null,null,null,null,null,null,null,null,null,null,null,null,null,null,null,null,{"$f":"[1]Personnel!G1395","v":0}]
[0,{"$f":"IFERROR(INDEX(Settings!$AP$17:$AP$38,MATCH(Personnel!$G1396,Settings!$AQ$17:$AQ$38,0)),0)","v":0},null,null,null,{"$f":"[1]Personnel!F1396","v":0},{"$f":"IFERROR(INDEX((SLevel),MATCH(Personnel!BA1396,SLevel202223,0)),0)","v":0},{"$f":"[1]Personnel!H1396","v":0},{"$f":"[1]Personnel!I1396","v":0},{"$f":"[1]Personnel!J1396","v":0},{"$f":"[1]Personnel!P1396","v":0},{"$f":"[1]Personnel!Q1396","v":0},0,{"$f":"[1]Personnel!S1396","v":0},{"$f":"[1]Personnel!S1396","v":0},{"$f":"[1]Personnel!S1396","v":0},{"$f":"[1]Personnel!T1396","v":0},0,{"$f":"[1]Personnel!V1396","v":0},{"$f":"[1]Personnel!W1396","v":0},0,{"$f":"[1]Personnel!Y1396","v":0},{"$f":"[1]Personnel!Z1396","v":0},0,0,0,0,null,null,null,null,null,null,null,null,null,null,null,null,null,null,null,null,null,null,null,null,null,null,null,null,null,{"$f":"[1]Personnel!G1396","v":0}]
[0,{"$f":"IFERROR(INDEX(Settings!$AP$17:$AP$38,MATCH(Personnel!$G1397,Settings!$AQ$17:$AQ$38,0)),0)","v":0},null,null,null,{"$f":"[1]Personnel!F1397","v":0},{"$f":"IFERROR(INDEX((SLevel),MATCH(Personnel!BA1397,SLevel202223,0)),0)","v":0},{"$f":"[1]Personnel!H1397","v":0},{"$f":"[1]Personnel!I1397","v":0},{"$f":"[1]Personnel!J1397","v":0},{"$f":"[1]Personnel!P1397","v":0},{"$f":"[1]Personnel!Q1397","v":0},0,{"$f":"[1]Personnel!S1397","v":0},{"$f":"[1]Personnel!S1397","v":0},{"$f":"[1]Personnel!S1397","v":0},{"$f":"[1]Personnel!T1397","v":0},0,{"$f":"[1]Personnel!V1397","v":0},{"$f":"[1]Personnel!W1397","v":0},0,{"$f":"[1]Personnel!Y1397","v":0},{"$f":"[1]Personnel!Z1397","v":0},0,0,0,0,null,null,null,null,null,null,null,null,null,null,null,null,null,null,null,null,null,null,null,null,null,null,null,null,null,{"$f":"[1]Personnel!G1397","v":0}]
[0,{"$f":"IFERROR(INDEX(Settings!$AP$17:$AP$38,MATCH(Personnel!$G1398,Settings!$AQ$17:$AQ$38,0)),0)","v":0},null,null,null,{"$f":"[1]Personnel!F1398","v":0},{"$f":"IFERROR(INDEX((SLevel),MATCH(Personnel!BA1398,SLevel202223,0)),0)","v":0},{"$f":"[1]Personnel!H1398","v":0},{"$f":"[1]Personnel!I1398","v":0},{"$f":"[1]Personnel!J1398","v":0},{"$f":"[1]Personnel!P1398","v":0},{"$f":"[1]Personnel!Q1398","v":0},0,{"$f":"[1]Personnel!S1398","v":0},{"$f":"[1]Personnel!S1398","v":0},{"$f":"[1]Personnel!S1398","v":0},{"$f":"[1]Personnel!T1398","v":0},0,{"$f":"[1]Personnel!V1398","v":0},{"$f":"[1]Personnel!W1398","v":0},0,{"$f":"[1]Personnel!Y1398","v":0},{"$f":"[1]Personnel!Z1398","v":0},0,0,0,0,null,null,null,null,null,null,null,null,null,null,null,null,null,null,null,null,null,null,null,null,null,null,null,null,null,{"$f":"[1]Personnel!G1398","v":0}]
[0,{"$f":"IFERROR(INDEX(Settings!$AP$17:$AP$38,MATCH(Personnel!$G1399,Settings!$AQ$17:$AQ$38,0)),0)","v":0},null,null,null,{"$f":"[1]Personnel!F1399","v":0},{"$f":"IFERROR(INDEX((SLevel),MATCH(Personnel!BA1399,SLevel202223,0)),0)","v":0},{"$f":"[1]Personnel!H1399","v":0},{"$f":"[1]Personnel!I1399","v":0},{"$f":"[1]Personnel!J1399","v":0},{"$f":"[1]Personnel!P1399","v":0},{"$f":"[1]Personnel!Q1399","v":0},0,{"$f":"[1]Personnel!S1399","v":0},{"$f":"[1]Personnel!S1399","v":0},{"$f":"[1]Personnel!S1399","v":0},{"$f":"[1]Personnel!T1399","v":0},0,{"$f":"[1]Personnel!V1399","v":0},{"$f":"[1]Personnel!W1399","v":0},0,{"$f":"[1]Personnel!Y1399","v":0},{"$f":"[1]Personnel!Z1399","v":0},0,0,0,0,null,null,null,null,null,null,null,null,null,null,null,null,null,null,null,null,null,null,null,null,null,null,null,null,null,{"$f":"[1]Personnel!G1399","v":0}]
[0,{"$f":"IFERROR(INDEX(Settings!$AP$17:$AP$38,MATCH(Personnel!$G1400,Settings!$AQ$17:$AQ$38,0)),0)","v":0},null,null,null,{"$f":"[1]Personnel!F1400","v":0},{"$f":"IFERROR(INDEX((SLevel),MATCH(Personnel!BA1400,SLevel202223,0)),0)","v":0},{"$f":"[1]Personnel!H1400","v":0},{"$f":"[1]Personnel!I1400","v":0},{"$f":"[1]Personnel!J1400","v":0},{"$f":"[1]Personnel!P1400","v":0},{"$f":"[1]Personnel!Q1400","v":0},0,{"$f":"[1]Personnel!S1400","v":0},{"$f":"[1]Personnel!S1400","v":0},{"$f":"[1]Personnel!S1400","v":0},{"$f":"[1]Personnel!T1400","v":0},0,{"$f":"[1]Personnel!V1400","v":0},{"$f":"[1]Personnel!W1400","v":0},0,{"$f":"[1]Personnel!Y1400","v":0},{"$f":"[1]Personnel!Z1400","v":0},0,0,0,0,null,null,null,null,null,null,null,null,null,null,null,null,null,null,null,null,null,null,null,null,null,null,null,null,null,{"$f":"[1]Personnel!G1400","v":0}]
[0,{"$f":"IFERROR(INDEX(Settings!$AP$17:$AP$38,MATCH(Personnel!$G1401,Settings!$AQ$17:$AQ$38,0)),0)","v":0},null,null,null,{"$f":"[1]Personnel!F1401","v":0},{"$f":"IFERROR(INDEX((SLevel),MATCH(Personnel!BA1401,SLevel202223,0)),0)","v":0},{"$f":"[1]Personnel!H1401","v":0},{"$f":"[1]Personnel!I1401","v":0},{"$f":"[1]Personnel!J1401","v":0},{"$f":"[1]Personnel!P1401","v":0},{"$f":"[1]Personnel!Q1401","v":0},0,{"$f":"[1]Personnel!S1401","v":0},{"$f":"[1]Personnel!S1401","v":0},{"$f":"[1]Personnel!S1401","v":0},{"$f":"[1]Personnel!T1401","v":0},0,{"$f":"[1]Personnel!V1401","v":0},{"$f":"[1]Personnel!W1401","v":0},0,{"$f":"[1]Personnel!Y1401","v":0},{"$f":"[1]Personnel!Z1401","v":0},0,0,0,0,null,null,null,null,null,null,null,null,null,null,null,null,null,null,null,null,null,null,null,null,null,null,null,null,null,{"$f":"[1]Personnel!G1401","v":0}]
[0,{"$f":"IFERROR(INDEX(Settings!$AP$17:$AP$38,MATCH(Personnel!$G1402,Settings!$AQ$17:$AQ$38,0)),0)","v":0},null,null,null,{"$f":"[1]Personnel!F1402","v":0},{"$f":"IFERROR(INDEX((SLevel),MATCH(Personnel!BA1402,SLevel202223,0)),0)","v":0},{"$f":"[1]Personnel!H1402","v":0},{"$f":"[1]Personnel!I1402","v":0},{"$f":"[1]Personnel!J1402","v":0},{"$f":"[1]Personnel!P1402","v":0},{"$f":"[1]Personnel!Q1402","v":0},0,{"$f":"[1]Personnel!S1402","v":0},{"$f":"[1]Personnel!S1402","v":0},{"$f":"[1]Personnel!S1402","v":0},{"$f":"[1]Personnel!T1402","v":0},0,{"$f":"[1]Personnel!V1402","v":0},{"$f":"[1]Personnel!W1402","v":0},0,{"$f":"[1]Personnel!Y1402","v":0},{"$f":"[1]Personnel!Z1402","v":0},0,0,0,0,null,null,null,null,null,null,null,null,null,null,null,null,null,null,null,null,null,null,null,null,null,null,null,null,null,{"$f":"[1]Personnel!G1402","v":0}]
[0,{"$f":"IFERROR(INDEX(Settings!$AP$17:$AP$38,MATCH(Personnel!$G1403,Settings!$AQ$17:$AQ$38,0)),0)","v":0},null,null,null,{"$f":"[1]Personnel!F1403","v":0},{"$f":"IFERROR(INDEX((SLevel),MATCH(Personnel!BA1403,SLevel202223,0)),0)","v":0},{"$f":"[1]Personnel!H1403","v":0},{"$f":"[1]Personnel!I1403","v":0},{"$f":"[1]Personnel!J1403","v":0},{"$f":"[1]Personnel!P1403","v":0},{"$f":"[1]Personnel!Q1403","v":0},0,{"$f":"[1]Personnel!S1403","v":0},{"$f":"[1]Personnel!S1403","v":0},{"$f":"[1]Personnel!S1403","v":0},{"$f":"[1]Personnel!T1403","v":0},0,{"$f":"[1]Personnel!V1403","v":0},{"$f":"[1]Personnel!W1403","v":0},0,{"$f":"[1]Personnel!Y1403","v":0},{"$f":"[1]Personnel!Z1403","v":0},0,0,0,0,null,null,null,null,null,null,null,null,null,null,null,null,null,null,null,null,null,null,null,null,null,null,null,null,null,{"$f":"[1]Personnel!G1403","v":0}]
[0,{"$f":"IFERROR(INDEX(Settings!$AP$17:$AP$38,MATCH(Personnel!$G1404,Settings!$AQ$17:$AQ$38,0)),0)","v":0},null,null,null,{"$f":"[1]Personnel!F1404","v":0},{"$f":"IFERROR(INDEX((SLevel),MATCH(Personnel!BA1404,SLevel202223,0)),0)","v":0},{"$f":"[1]Personnel!H1404","v":0},{"$f":"[1]Personnel!I1404","v":0},{"$f":"[1]Personnel!J1404","v":0},{"$f":"[1]Personnel!P1404","v":0},{"$f":"[1]Personnel!Q1404","v":0},0,{"$f":"[1]Personnel!S1404","v":0},{"$f":"[1]Personnel!S1404","v":0},{"$f":"[1]Personnel!S1404","v":0},{"$f":"[1]Personnel!T1404","v":0},0,{"$f":"[1]Personnel!V1404","v":0},{"$f":"[1]Personnel!W1404","v":0},0,{"$f":"[1]Personnel!Y1404","v":0},{"$f":"[1]Personnel!Z1404","v":0},0,0,0,0,null,null,null,null,null,null,null,null,null,null,null,null,null,null,null,null,null,null,null,null,null,null,null,null,null,{"$f":"[1]Personnel!G1404","v":0}]
[0,{"$f":"IFERROR(INDEX(Settings!$AP$17:$AP$38,MATCH(Personnel!$G1405,Settings!$AQ$17:$AQ$38,0)),0)","v":0},null,null,null,{"$f":"[1]Personnel!F1405","v":0},{"$f":"IFERROR(INDEX((SLevel),MATCH(Personnel!BA1405,SLevel202223,0)),0)","v":0},{"$f":"[1]Personnel!H1405","v":0},{"$f":"[1]Personnel!I1405","v":0},{"$f":"[1]Personnel!J1405","v":0},{"$f":"[1]Personnel!P1405","v":0},{"$f":"[1]Personnel!Q1405","v":0},0,{"$f":"[1]Personnel!S1405","v":0},{"$f":"[1]Personnel!S1405","v":0},{"$f":"[1]Personnel!S1405","v":0},{"$f":"[1]Personnel!T1405","v":0},0,{"$f":"[1]Personnel!V1405","v":0},{"$f":"[1]Personnel!W1405","v":0},0,{"$f":"[1]Personnel!Y1405","v":0},{"$f":"[1]Personnel!Z1405","v":0},0,0,0,0,null,null,null,null,null,null,null,null,null,null,null,null,null,null,null,null,null,null,null,null,null,null,null,null,null,{"$f":"[1]Personnel!G1405","v":0}]
[0,{"$f":"IFERROR(INDEX(Settings!$AP$17:$AP$38,MATCH(Personnel!$G1406,Settings!$AQ$17:$AQ$38,0)),0)","v":0},null,null,null,{"$f":"[1]Personnel!F1406","v":0},{"$f":"IFERROR(INDEX((SLevel),MATCH(Personnel!BA1406,SLevel202223,0)),0)","v":0},{"$f":"[1]Personnel!H1406","v":0},{"$f":"[1]Personnel!I1406","v":0},{"$f":"[1]Personnel!J1406","v":0},{"$f":"[1]Personnel!P1406","v":0},{"$f":"[1]Personnel!Q1406","v":0},0,{"$f":"[1]Personnel!S1406","v":0},{"$f":"[1]Personnel!S1406","v":0},{"$f":"[1]Personnel!S1406","v":0},{"$f":"[1]Personnel!T1406","v":0},0,{"$f":"[1]Personnel!V1406","v":0},{"$f":"[1]Personnel!W1406","v":0},0,{"$f":"[1]Personnel!Y1406","v":0},{"$f":"[1]Personnel!Z1406","v":0},0,0,0,0,null,null,null,null,null,null,null,null,null,null,null,null,null,null,null,null,null,null,null,null,null,null,null,null,null,{"$f":"[1]Personnel!G1406","v":0}]
[0,{"$f":"IFERROR(INDEX(Settings!$AP$17:$AP$38,MATCH(Personnel!$G1407,Settings!$AQ$17:$AQ$38,0)),0)","v":0},null,null,null,{"$f":"[1]Personnel!F1407","v":0},{"$f":"IFERROR(INDEX((SLevel),MATCH(Personnel!BA1407,SLevel202223,0)),0)","v":0},{"$f":"[1]Personnel!H1407","v":0},{"$f":"[1]Personnel!I1407","v":0},{"$f":"[1]Personnel!J1407","v":0},{"$f":"[1]Personnel!P1407","v":0},{"$f":"[1]Personnel!Q1407","v":0},0,{"$f":"[1]Personnel!S1407","v":0},{"$f":"[1]Personnel!S1407","v":0},{"$f":"[1]Personnel!S1407","v":0},{"$f":"[1]Personnel!T1407","v":0},0,{"$f":"[1]Personnel!V1407","v":0},{"$f":"[1]Personnel!W1407","v":0},0,{"$f":"[1]Personnel!Y1407","v":0},{"$f":"[1]Personnel!Z1407","v":0},0,0,0,0,null,null,null,null,null,null,null,null,null,null,null,null,null,null,null,null,null,null,null,null,null,null,null,null,null,{"$f":"[1]Personnel!G1407","v":0}]
[0,{"$f":"IFERROR(INDEX(Settings!$AP$17:$AP$38,MATCH(Personnel!$G1408,Settings!$AQ$17:$AQ$38,0)),0)","v":0},null,null,null,{"$f":"[1]Personnel!F1408","v":0},{"$f":"IFERROR(INDEX((SLevel),MATCH(Personnel!BA1408,SLevel202223,0)),0)","v":0},{"$f":"[1]Personnel!H1408","v":0},{"$f":"[1]Personnel!I1408","v":0},{"$f":"[1]Personnel!J1408","v":0},{"$f":"[1]Personnel!P1408","v":0},{"$f":"[1]Personnel!Q1408","v":0},0,{"$f":"[1]Personnel!S1408","v":0},{"$f":"[1]Personnel!S1408","v":0},{"$f":"[1]Personnel!S1408","v":0},{"$f":"[1]Personnel!T1408","v":0},0,{"$f":"[1]Personnel!V1408","v":0},{"$f":"[1]Personnel!W1408","v":0},0,{"$f":"[1]Personnel!Y1408","v":0},{"$f":"[1]Personnel!Z1408","v":0},0,0,0,0,null,null,null,null,null,null,null,null,null,null,null,null,null,null,null,null,null,null,null,null,null,null,null,null,null,{"$f":"[1]Personnel!G1408","v":0}]
[0,{"$f":"IFERROR(INDEX(Settings!$AP$17:$AP$38,MATCH(Personnel!$G1409,Settings!$AQ$17:$AQ$38,0)),0)","v":0},null,null,null,{"$f":"[1]Personnel!F1409","v":0},{"$f":"IFERROR(INDEX((SLevel),MATCH(Personnel!BA1409,SLevel202223,0)),0)","v":0},{"$f":"[1]Personnel!H1409","v":0},{"$f":"[1]Personnel!I1409","v":0},{"$f":"[1]Personnel!J1409","v":0},{"$f":"[1]Personnel!P1409","v":0},{"$f":"[1]Personnel!Q1409","v":0},0,{"$f":"[1]Personnel!S1409","v":0},{"$f":"[1]Personnel!S1409","v":0},{"$f":"[1]Personnel!S1409","v":0},{"$f":"[1]Personnel!T1409","v":0},0,{"$f":"[1]Personnel!V1409","v":0},{"$f":"[1]Personnel!W1409","v":0},0,{"$f":"[1]Personnel!Y1409","v":0},{"$f":"[1]Personnel!Z1409","v":0},0,0,0,0,null,null,null,null,null,null,null,null,null,null,null,null,null,null,null,null,null,null,null,null,null,null,null,null,null,{"$f":"[1]Personnel!G1409","v":0}]
[0,{"$f":"IFERROR(INDEX(Settings!$AP$17:$AP$38,MATCH(Personnel!$G1410,Settings!$AQ$17:$AQ$38,0)),0)","v":0},null,null,null,{"$f":"[1]Personnel!F1410","v":0},{"$f":"IFERROR(INDEX((SLevel),MATCH(Personnel!BA1410,SLevel202223,0)),0)","v":0},{"$f":"[1]Personnel!H1410","v":0},{"$f":"[1]Personnel!I1410","v":0},{"$f":"[1]Personnel!J1410","v":0},{"$f":"[1]Personnel!P1410","v":0},{"$f":"[1]Personnel!Q1410","v":0},0,{"$f":"[1]Personnel!S1410","v":0},{"$f":"[1]Personnel!S1410","v":0},{"$f":"[1]Personnel!S1410","v":0},{"$f":"[1]Personnel!T1410","v":0},0,{"$f":"[1]Personnel!V1410","v":0},{"$f":"[1]Personnel!W1410","v":0},0,{"$f":"[1]Personnel!Y1410","v":0},{"$f":"[1]Personnel!Z1410","v":0},0,0,0,0,null,null,null,null,null,null,null,null,null,null,null,null,null,null,null,null,null,null,null,null,null,null,null,null,null,{"$f":"[1]Personnel!G1410","v":0}]
[0,{"$f":"IFERROR(INDEX(Settings!$AP$17:$AP$38,MATCH(Personnel!$G1411,Settings!$AQ$17:$AQ$38,0)),0)","v":0},null,null,null,{"$f":"[1]Personnel!F1411","v":0},{"$f":"IFERROR(INDEX((SLevel),MATCH(Personnel!BA1411,SLevel202223,0)),0)","v":0},{"$f":"[1]Personnel!H1411","v":0},{"$f":"[1]Personnel!I1411","v":0},{"$f":"[1]Personnel!J1411","v":0},{"$f":"[1]Personnel!P1411","v":0},{"$f":"[1]Personnel!Q1411","v":0},0,{"$f":"[1]Personnel!S1411","v":0},{"$f":"[1]Personnel!S1411","v":0},{"$f":"[1]Personnel!S1411","v":0},{"$f":"[1]Personnel!T1411","v":0},0,{"$f":"[1]Personnel!V1411","v":0},{"$f":"[1]Personnel!W1411","v":0},0,{"$f":"[1]Personnel!Y1411","v":0},{"$f":"[1]Personnel!Z1411","v":0},0,0,0,0,null,null,null,null,null,null,null,null,null,null,null,null,null,null,null,null,null,null,null,null,null,null,null,null,null,{"$f":"[1]Personnel!G1411","v":0}]
[0,{"$f":"IFERROR(INDEX(Settings!$AP$17:$AP$38,MATCH(Personnel!$G1412,Settings!$AQ$17:$AQ$38,0)),0)","v":0},null,null,null,{"$f":"[1]Personnel!F1412","v":0},{"$f":"IFERROR(INDEX((SLevel),MATCH(Personnel!BA1412,SLevel202223,0)),0)","v":0},{"$f":"[1]Personnel!H1412","v":0},{"$f":"[1]Personnel!I1412","v":0},{"$f":"[1]Personnel!J1412","v":0},{"$f":"[1]Personnel!P1412","v":0},{"$f":"[1]Personnel!Q1412","v":0},0,{"$f":"[1]Personnel!S1412","v":0},{"$f":"[1]Personnel!S1412","v":0},{"$f":"[1]Personnel!S1412","v":0},{"$f":"[1]Personnel!T1412","v":0},0,{"$f":"[1]Personnel!V1412","v":0},{"$f":"[1]Personnel!W1412","v":0},0,{"$f":"[1]Personnel!Y1412","v":0},{"$f":"[1]Personnel!Z1412","v":0},0,0,0,0,null,null,null,null,null,null,null,null,null,null,null,null,null,null,null,null,null,null,null,null,null,null,null,null,null,{"$f":"[1]Personnel!G1412","v":0}]
[0,{"$f":"IFERROR(INDEX(Settings!$AP$17:$AP$38,MATCH(Personnel!$G1413,Settings!$AQ$17:$AQ$38,0)),0)","v":0},null,null,null,{"$f":"[1]Personnel!F1413","v":0},{"$f":"IFERROR(INDEX((SLevel),MATCH(Personnel!BA1413,SLevel202223,0)),0)","v":0},{"$f":"[1]Personnel!H1413","v":0},{"$f":"[1]Personnel!I1413","v":0},{"$f":"[1]Personnel!J1413","v":0},{"$f":"[1]Personnel!P1413","v":0},{"$f":"[1]Personnel!Q1413","v":0},0,{"$f":"[1]Personnel!S1413","v":0},{"$f":"[1]Personnel!S1413","v":0},{"$f":"[1]Personnel!S1413","v":0},{"$f":"[1]Personnel!T1413","v":0},0,{"$f":"[1]Personnel!V1413","v":0},{"$f":"[1]Personnel!W1413","v":0},0,{"$f":"[1]Personnel!Y1413","v":0},{"$f":"[1]Personnel!Z1413","v":0},0,0,0,0,null,null,null,null,null,null,null,null,null,null,null,null,null,null,null,null,null,null,null,null,null,null,null,null,null,{"$f":"[1]Personnel!G1413","v":0}]
[0,{"$f":"IFERROR(INDEX(Settings!$AP$17:$AP$38,MATCH(Personnel!$G1414,Settings!$AQ$17:$AQ$38,0)),0)","v":0},null,null,null,{"$f":"[1]Personnel!F1414","v":0},{"$f":"IFERROR(INDEX((SLevel),MATCH(Personnel!BA1414,SLevel202223,0)),0)","v":0},{"$f":"[1]Personnel!H1414","v":0},{"$f":"[1]Personnel!I1414","v":0},{"$f":"[1]Personnel!J1414","v":0},{"$f":"[1]Personnel!P1414","v":0},{"$f":"[1]Personnel!Q1414","v":0},0,{"$f":"[1]Personnel!S1414","v":0},{"$f":"[1]Personnel!S1414","v":0},{"$f":"[1]Personnel!S1414","v":0},{"$f":"[1]Personnel!T1414","v":0},0,{"$f":"[1]Personnel!V1414","v":0},{"$f":"[1]Personnel!W1414","v":0},0,{"$f":"[1]Personnel!Y1414","v":0},{"$f":"[1]Personnel!Z1414","v":0},0,0,0,0,null,null,null,null,null,null,null,null,null,null,null,null,null,null,null,null,null,null,null,null,null,null,null,null,null,{"$f":"[1]Personnel!G1414","v":0}]
[0,{"$f":"IFERROR(INDEX(Settings!$AP$17:$AP$38,MATCH(Personnel!$G1415,Settings!$AQ$17:$AQ$38,0)),0)","v":0},null,null,null,{"$f":"[1]Personnel!F1415","v":0},{"$f":"IFERROR(INDEX((SLevel),MATCH(Personnel!BA1415,SLevel202223,0)),0)","v":0},{"$f":"[1]Personnel!H1415","v":0},{"$f":"[1]Personnel!I1415","v":0},{"$f":"[1]Personnel!J1415","v":0},{"$f":"[1]Personnel!P1415","v":0},{"$f":"[1]Personnel!Q1415","v":0},0,{"$f":"[1]Personnel!S1415","v":0},{"$f":"[1]Personnel!S1415","v":0},{"$f":"[1]Personnel!S1415","v":0},{"$f":"[1]Personnel!T1415","v":0},0,{"$f":"[1]Personnel!V1415","v":0},{"$f":"[1]Personnel!W1415","v":0},0,{"$f":"[1]Personnel!Y1415","v":0},{"$f":"[1]Personnel!Z1415","v":0},0,0,0,0,null,null,null,null,null,null,null,null,null,null,null,null,null,null,null,null,null,null,null,null,null,null,null,null,null,{"$f":"[1]Personnel!G1415","v":0}]
[0,{"$f":"IFERROR(INDEX(Settings!$AP$17:$AP$38,MATCH(Personnel!$G1416,Settings!$AQ$17:$AQ$38,0)),0)","v":0},null,null,null,{"$f":"[1]Personnel!F1416","v":0},{"$f":"IFERROR(INDEX((SLevel),MATCH(Personnel!BA1416,SLevel202223,0)),0)","v":0},{"$f":"[1]Personnel!H1416","v":0},{"$f":"[1]Personnel!I1416","v":0},{"$f":"[1]Personnel!J1416","v":0},{"$f":"[1]Personnel!P1416","v":0},{"$f":"[1]Personnel!Q1416","v":0},0,{"$f":"[1]Personnel!S1416","v":0},{"$f":"[1]Personnel!S1416","v":0},{"$f":"[1]Personnel!S1416","v":0},{"$f":"[1]Personnel!T1416","v":0},0,{"$f":"[1]Personnel!V1416","v":0},{"$f":"[1]Personnel!W1416","v":0},0,{"$f":"[1]Personnel!Y1416","v":0},{"$f":"[1]Personnel!Z1416","v":0},0,0,0,0,null,null,null,null,null,null,null,null,null,null,null,null,null,null,null,null,null,null,null,null,null,null,null,null,null,{"$f":"[1]Personnel!G1416","v":0}]
[0,{"$f":"IFERROR(INDEX(Settings!$AP$17:$AP$38,MATCH(Personnel!$G1417,Settings!$AQ$17:$AQ$38,0)),0)","v":0},null,null,null,{"$f":"[1]Personnel!F1417","v":0},{"$f":"IFERROR(INDEX((SLevel),MATCH(Personnel!BA1417,SLevel202223,0)),0)","v":0},{"$f":"[1]Personnel!H1417","v":0},{"$f":"[1]Personnel!I1417","v":0},{"$f":"[1]Personnel!J1417","v":0},{"$f":"[1]Personnel!P1417","v":0},{"$f":"[1]Personnel!Q1417","v":0},0,{"$f":"[1]Personnel!S1417","v":0},{"$f":"[1]Personnel!S1417","v":0},{"$f":"[1]Personnel!S1417","v":0},{"$f":"[1]Personnel!T1417","v":0},0,{"$f":"[1]Personnel!V1417","v":0},{"$f":"[1]Personnel!W1417","v":0},0,{"$f":"[1]Personnel!Y1417","v":0},{"$f":"[1]Personnel!Z1417","v":0},0,0,0,0,null,null,null,null,null,null,null,null,null,null,null,null,null,null,null,null,null,null,null,null,null,null,null,null,null,{"$f":"[1]Personnel!G1417","v":0}]
[0,{"$f":"IFERROR(INDEX(Settings!$AP$17:$AP$38,MATCH(Personnel!$G1418,Settings!$AQ$17:$AQ$38,0)),0)","v":0},null,null,null,{"$f":"[1]Personnel!F1418","v":0},{"$f":"IFERROR(INDEX((SLevel),MATCH(Personnel!BA1418,SLevel202223,0)),0)","v":0},{"$f":"[1]Personnel!H1418","v":0},{"$f":"[1]Personnel!I1418","v":0},{"$f":"[1]Personnel!J1418","v":0},{"$f":"[1]Personnel!P1418","v":0},{"$f":"[1]Personnel!Q1418","v":0},0,{"$f":"[1]Personnel!S1418","v":0},{"$f":"[1]Personnel!S1418","v":0},{"$f":"[1]Personnel!S1418","v":0},{"$f":"[1]Personnel!T1418","v":0},0,{"$f":"[1]Personnel!V1418","v":0},{"$f":"[1]Personnel!W1418","v":0},0,{"$f":"[1]Personnel!Y1418","v":0},{"$f":"[1]Personnel!Z1418","v":0},0,0,0,0,null,null,null,null,null,null,null,null,null,null,null,null,null,null,null,null,null,null,null,null,null,null,null,null,null,{"$f":"[1]Personnel!G1418","v":0}]
[0,{"$f":"IFERROR(INDEX(Settings!$AP$17:$AP$38,MATCH(Personnel!$G1419,Settings!$AQ$17:$AQ$38,0)),0)","v":0},null,null,null,{"$f":"[1]Personnel!F1419","v":0},{"$f":"IFERROR(INDEX((SLevel),MATCH(Personnel!BA1419,SLevel202223,0)),0)","v":0},{"$f":"[1]Personnel!H1419","v":0},{"$f":"[1]Personnel!I1419","v":0},{"$f":"[1]Personnel!J1419","v":0},{"$f":"[1]Personnel!P1419","v":0},{"$f":"[1]Personnel!Q1419","v":0},0,{"$f":"[1]Personnel!S1419","v":0},{"$f":"[1]Personnel!S1419","v":0},{"$f":"[1]Personnel!S1419","v":0},{"$f":"[1]Personnel!T1419","v":0},0,{"$f":"[1]Personnel!V1419","v":0},{"$f":"[1]Personnel!W1419","v":0},0,{"$f":"[1]Personnel!Y1419","v":0},{"$f":"[1]Personnel!Z1419","v":0},0,0,0,0,null,null,null,null,null,null,null,null,null,null,null,null,null,null,null,null,null,null,null,null,null,null,null,null,null,{"$f":"[1]Personnel!G1419","v":0}]
[{"$f":"IF(SUM(K1420:AA1420)>0,1,0)","v":0},{"$f":"IFERROR(INDEX(Settings!$AP$17:$AP$38,MATCH(Personnel!$G1420,Settings!$AQ$17:$AQ$38,0)),0)","v":0},null,null,null,{"$f":"[1]Personnel!F1420","v":0},{"$f":"IFERROR(INDEX((SLevel),MATCH(Personnel!BA1420,SLevel202223,0)),0)","v":0},{"$f":"[1]Personnel!H1420","v":0},{"$f":"[1]Personnel!I1420","v":0},{"$f":"[1]Personnel!J1420","v":0},{"$f":"[1]Personnel!P1420","v":0},{"$f":"[1]Personnel!Q1420","v":0},0,{"$f":"[1]Personnel!S1420","v":0},{"$f":"[1]Personnel!S1420","v":0},{"$f":"[1]Personnel!S1420","v":0},{"$f":"[1]Personnel!T1420","v":0},0,{"$f":"[1]Personnel!V1420","v":0},{"$f":"[1]Personnel!W1420","v":0},0,{"$f":"[1]Personnel!Y1420","v":0},{"$f":"[1]Personnel!Z1420","v":0},0,0,0,0,null,null,null,null,null,null,null,null,null,null,null,null,null,null,null,null,null,null,null,null,null,null,null,null,null,{"$f":"[1]Personnel!G1420","v":0}]
[0,{"$f":"IFERROR(INDEX(Settings!$AP$17:$AP$38,MATCH(Personnel!$G1421,Settings!$AQ$17:$AQ$38,0)),0)","v":0},null,null,null,{"$f":"[1]Personnel!F1421","v":0},{"$f":"IFERROR(INDEX((SLevel),MATCH(Personnel!BA1421,SLevel202223,0)),0)","v":0},{"$f":"[1]Personnel!H1421","v":0},{"$f":"[1]Personnel!I1421","v":0},{"$f":"[1]Personnel!J1421","v":0},{"$f":"[1]Personnel!P1421","v":0},{"$f":"[1]Personnel!Q1421","v":0},{"$f":"ROUND(IF(ISERROR(L1421/K1421),0,(L1421/K1421)),0)","v":0},{"$f":"[1]Personnel!S1421","v":0},{"$f":"[1]Personnel!S1421","v":0},{"$f":"[1]Personnel!S1421","v":0},{"$f":"[1]Personnel!T1421","v":0},{"$f":"ROUND(IF(ISERROR(Q1421/P1421),0,(Q1421/P1421)),0)","v":0},{"$f":"[1]Personnel!V1421","v":0},{"$f":"[1]Personnel!W1421","v":0},{"$f":"ROUND(IF(ISERROR(T1421/S1421),0,(T1421/S1421)),0)","v":0},{"$f":"[1]Personnel!Y1421","v":0},{"$f":"[1]Personnel!Z1421","v":0},{"$f":"ROUND(IF(ISERROR(W1421/V1421),0,(W1421/V1421)),0)","v":0},0,0,{"$f":"ROUND(IF(ISERROR(Z1421/Y1421),0,(Z1421/Y1421)),0)","v":0},null,null,null,null,null,null,null,null,null,null,null,null,null,null,null,null,null,null,null,null,null,null,null,null,null,{"$f":"[1]Personnel!G1421","v":0}]
[0,{"$f":"IFERROR(INDEX(Settings!$AP$17:$AP$38,MATCH(Personnel!$G1422,Settings!$AQ$17:$AQ$38,0)),0)","v":0},null,null,null,{"$f":"[1]Personnel!F1422","v":0},{"$f":"IFERROR(INDEX((SLevel),MATCH(Personnel!BA1422,SLevel202223,0)),0)","v":0},{"$f":"[1]Personnel!H1422","v":0},{"$f":"[1]Personnel!I1422","v":0},{"$f":"[1]Personnel!J1422","v":0},{"$f":"[1]Personnel!P1422","v":0},{"$f":"[1]Personnel!Q1422","v":0},0,{"$f":"[1]Personnel!S1422","v":0},{"$f":"[1]Personnel!S1422","v":0},{"$f":"[1]Personnel!S1422","v":0},{"$f":"[1]Personnel!T1422","v":0},0,{"$f":"[1]Personnel!V1422","v":0},{"$f":"[1]Personnel!W1422","v":0},0,{"$f":"[1]Personnel!Y1422","v":0},{"$f":"[1]Personnel!Z1422","v":0},0,0,0,0,null,null,null,null,null,null,null,null,null,null,null,null,null,null,null,null,null,null,null,null,null,null,null,null,null,{"$f":"[1]Personnel!G1422","v":0}]
[0,{"$f":"IFERROR(INDEX(Settings!$AP$17:$AP$38,MATCH(Personnel!$G1423,Settings!$AQ$17:$AQ$38,0)),0)","v":0},null,null,null,{"$f":"[1]Personnel!F1423","v":0},{"$f":"IFERROR(INDEX((SLevel),MATCH(Personnel!BA1423,SLevel202223,0)),0)","v":0},{"$f":"[1]Personnel!H1423","v":0},{"$f":"[1]Personnel!I1423","v":0},{"$f":"[1]Personnel!J1423","v":0},{"$f":"[1]Personnel!P1423","v":0},{"$f":"[1]Personnel!Q1423","v":0},0,{"$f":"[1]Personnel!S1423","v":0},{"$f":"[1]Personnel!S1423","v":0},{"$f":"[1]Personnel!S1423","v":0},{"$f":"[1]Personnel!T1423","v":0},0,{"$f":"[1]Personnel!V1423","v":0},{"$f":"[1]Personnel!W1423","v":0},0,{"$f":"[1]Personnel!Y1423","v":0},{"$f":"[1]Personnel!Z1423","v":0},0,0,0,0,null,null,null,null,null,null,null,null,null,null,null,null,null,null,null,null,null,null,null,null,null,null,null,null,null,{"$f":"[1]Personnel!G1423","v":0}]
[0,{"$f":"IFERROR(INDEX(Settings!$AP$17:$AP$38,MATCH(Personnel!$G1424,Settings!$AQ$17:$AQ$38,0)),0)","v":0},null,null,null,{"$f":"[1]Personnel!F1424","v":0},{"$f":"IFERROR(INDEX((SLevel),MATCH(Personnel!BA1424,SLevel202223,0)),0)","v":0},{"$f":"[1]Personnel!H1424","v":0},{"$f":"[1]Personnel!I1424","v":0},{"$f":"[1]Personnel!J1424","v":0},{"$f":"[1]Personnel!P1424","v":0},{"$f":"[1]Personnel!Q1424","v":0},0,{"$f":"[1]Personnel!S1424","v":0},{"$f":"[1]Personnel!S1424","v":0},{"$f":"[1]Personnel!S1424","v":0},{"$f":"[1]Personnel!T1424","v":0},0,{"$f":"[1]Personnel!V1424","v":0},{"$f":"[1]Personnel!W1424","v":0},0,{"$f":"[1]Personnel!Y1424","v":0},{"$f":"[1]Personnel!Z1424","v":0},0,0,0,0,null,null,null,null,null,null,null,null,null,null,null,null,null,null,null,null,null,null,null,null,null,null,null,null,null,{"$f":"[1]Personnel!G1424","v":0}]
[0,{"$f":"IFERROR(INDEX(Settings!$AP$17:$AP$38,MATCH(Personnel!$G1425,Settings!$AQ$17:$AQ$38,0)),0)","v":0},null,null,null,{"$f":"[1]Personnel!F1425","v":0},{"$f":"IFERROR(INDEX((SLevel),MATCH(Personnel!BA1425,SLevel202223,0)),0)","v":0},{"$f":"[1]Personnel!H1425","v":0},{"$f":"[1]Personnel!I1425","v":0},{"$f":"[1]Personnel!J1425","v":0},{"$f":"[1]Personnel!P1425","v":0},{"$f":"[1]Personnel!Q1425","v":0},0,{"$f":"[1]Personnel!S1425","v":0},{"$f":"[1]Personnel!S1425","v":0},{"$f":"[1]Personnel!S1425","v":0},{"$f":"[1]Personnel!T1425","v":0},0,{"$f":"[1]Personnel!V1425","v":0},{"$f":"[1]Personnel!W1425","v":0},0,{"$f":"[1]Personnel!Y1425","v":0},{"$f":"[1]Personnel!Z1425","v":0},0,0,0,0,null,null,null,null,null,null,null,null,null,null,null,null,null,null,null,null,null,null,null,null,null,null,null,null,null,{"$f":"[1]Personnel!G1425","v":0}]
[0,{"$f":"IFERROR(INDEX(Settings!$AP$17:$AP$38,MATCH(Personnel!$G1426,Settings!$AQ$17:$AQ$38,0)),0)","v":0},null,null,null,{"$f":"[1]Personnel!F1426","v":0},{"$f":"IFERROR(INDEX((SLevel),MATCH(Personnel!BA1426,SLevel202223,0)),0)","v":0},{"$f":"[1]Personnel!H1426","v":0},{"$f":"[1]Personnel!I1426","v":0},{"$f":"[1]Personnel!J1426","v":0},{"$f":"[1]Personnel!P1426","v":0},{"$f":"[1]Personnel!Q1426","v":0},0,{"$f":"[1]Personnel!S1426","v":0},{"$f":"[1]Personnel!S1426","v":0},{"$f":"[1]Personnel!S1426","v":0},{"$f":"[1]Personnel!T1426","v":0},0,{"$f":"[1]Personnel!V1426","v":0},{"$f":"[1]Personnel!W1426","v":0},0,{"$f":"[1]Personnel!Y1426","v":0},{"$f":"[1]Personnel!Z1426","v":0},0,0,0,0,null,null,null,null,null,null,null,null,null,null,null,null,null,null,null,null,null,null,null,null,null,null,null,null,null,{"$f":"[1]Personnel!G1426","v":0}]
[0,{"$f":"IFERROR(INDEX(Settings!$AP$17:$AP$38,MATCH(Personnel!$G1427,Settings!$AQ$17:$AQ$38,0)),0)","v":0},null,null,null,{"$f":"[1]Personnel!F1427","v":0},{"$f":"IFERROR(INDEX((SLevel),MATCH(Personnel!BA1427,SLevel202223,0)),0)","v":0},{"$f":"[1]Personnel!H1427","v":0},{"$f":"[1]Personnel!I1427","v":0},{"$f":"[1]Personnel!J1427","v":0},{"$f":"[1]Personnel!P1427","v":0},{"$f":"[1]Personnel!Q1427","v":0},0,{"$f":"[1]Personnel!S1427","v":0},{"$f":"[1]Personnel!S1427","v":0},{"$f":"[1]Personnel!S1427","v":0},{"$f":"[1]Personnel!T1427","v":0},0,{"$f":"[1]Personnel!V1427","v":0},{"$f":"[1]Personnel!W1427","v":0},0,{"$f":"[1]Personnel!Y1427","v":0},{"$f":"[1]Personnel!Z1427","v":0},0,0,0,0,null,null,null,null,null,null,null,null,null,null,null,null,null,null,null,null,null,null,null,null,null,null,null,null,null,{"$f":"[1]Personnel!G1427","v":0}]
[0,{"$f":"IFERROR(INDEX(Settings!$AP$17:$AP$38,MATCH(Personnel!$G1428,Settings!$AQ$17:$AQ$38,0)),0)","v":0},null,null,null,{"$f":"[1]Personnel!F1428","v":0},{"$f":"IFERROR(INDEX((SLevel),MATCH(Personnel!BA1428,SLevel202223,0)),0)","v":0},{"$f":"[1]Personnel!H1428","v":0},{"$f":"[1]Personnel!I1428","v":0},{"$f":"[1]Personnel!J1428","v":0},{"$f":"[1]Personnel!P1428","v":0},{"$f":"[1]Personnel!Q1428","v":0},0,{"$f":"[1]Personnel!S1428","v":0},{"$f":"[1]Personnel!S1428","v":0},{"$f":"[1]Personnel!S1428","v":0},{"$f":"[1]Personnel!T1428","v":0},0,{"$f":"[1]Personnel!V1428","v":0},{"$f":"[1]Personnel!W1428","v":0},0,{"$f":"[1]Personnel!Y1428","v":0},{"$f":"[1]Personnel!Z1428","v":0},0,0,0,0,null,null,null,null,null,null,null,null,null,null,null,null,null,null,null,null,null,null,null,null,null,null,null,null,null,{"$f":"[1]Personnel!G1428","v":0}]
[0,{"$f":"IFERROR(INDEX(Settings!$AP$17:$AP$38,MATCH(Personnel!$G1429,Settings!$AQ$17:$AQ$38,0)),0)","v":0},null,null,null,{"$f":"[1]Personnel!F1429","v":0},{"$f":"IFERROR(INDEX((SLevel),MATCH(Personnel!BA1429,SLevel202223,0)),0)","v":0},{"$f":"[1]Personnel!H1429","v":0},{"$f":"[1]Personnel!I1429","v":0},{"$f":"[1]Personnel!J1429","v":0},{"$f":"[1]Personnel!P1429","v":0},{"$f":"[1]Personnel!Q1429","v":0},0,{"$f":"[1]Personnel!S1429","v":0},{"$f":"[1]Personnel!S1429","v":0},{"$f":"[1]Personnel!S1429","v":0},{"$f":"[1]Personnel!T1429","v":0},0,{"$f":"[1]Personnel!V1429","v":0},{"$f":"[1]Personnel!W1429","v":0},0,{"$f":"[1]Personnel!Y1429","v":0},{"$f":"[1]Personnel!Z1429","v":0},0,0,0,0,null,null,null,null,null,null,null,null,null,null,null,null,null,null,null,null,null,null,null,null,null,null,null,null,null,{"$f":"[1]Personnel!G1429","v":0}]
[0,{"$f":"IFERROR(INDEX(Settings!$AP$17:$AP$38,MATCH(Personnel!$G1430,Settings!$AQ$17:$AQ$38,0)),0)","v":0},null,null,null,{"$f":"[1]Personnel!F1430","v":0},{"$f":"IFERROR(INDEX((SLevel),MATCH(Personnel!BA1430,SLevel202223,0)),0)","v":0},{"$f":"[1]Personnel!H1430","v":0},{"$f":"[1]Personnel!I1430","v":0},{"$f":"[1]Personnel!J1430","v":0},{"$f":"[1]Personnel!P1430","v":0},{"$f":"[1]Personnel!Q1430","v":0},0,{"$f":"[1]Personnel!S1430","v":0},{"$f":"[1]Personnel!S1430","v":0},{"$f":"[1]Personnel!S1430","v":0},{"$f":"[1]Personnel!T1430","v":0},0,{"$f":"[1]Personnel!V1430","v":0},{"$f":"[1]Personnel!W1430","v":0},0,{"$f":"[1]Personnel!Y1430","v":0},{"$f":"[1]Personnel!Z1430","v":0},0,0,0,0,null,null,null,null,null,null,null,null,null,null,null,null,null,null,null,null,null,null,null,null,null,null,null,null,null,{"$f":"[1]Personnel!G1430","v":0}]
[0,{"$f":"IFERROR(INDEX(Settings!$AP$17:$AP$38,MATCH(Personnel!$G1431,Settings!$AQ$17:$AQ$38,0)),0)","v":0},null,null,null,{"$f":"[1]Personnel!F1431","v":0},{"$f":"IFERROR(INDEX((SLevel),MATCH(Personnel!BA1431,SLevel202223,0)),0)","v":0},{"$f":"[1]Personnel!H1431","v":0},{"$f":"[1]Personnel!I1431","v":0},{"$f":"[1]Personnel!J1431","v":0},{"$f":"[1]Personnel!P1431","v":0},{"$f":"[1]Personnel!Q1431","v":0},0,{"$f":"[1]Personnel!S1431","v":0},{"$f":"[1]Personnel!S1431","v":0},{"$f":"[1]Personnel!S1431","v":0},{"$f":"[1]Personnel!T1431","v":0},0,{"$f":"[1]Personnel!V1431","v":0},{"$f":"[1]Personnel!W1431","v":0},0,{"$f":"[1]Personnel!Y1431","v":0},{"$f":"[1]Personnel!Z1431","v":0},0,0,0,0,null,null,null,null,null,null,null,null,null,null,null,null,null,null,null,null,null,null,null,null,null,null,null,null,null,{"$f":"[1]Personnel!G1431","v":0}]
[0,{"$f":"IFERROR(INDEX(Settings!$AP$17:$AP$38,MATCH(Personnel!$G1432,Settings!$AQ$17:$AQ$38,0)),0)","v":0},null,null,null,{"$f":"[1]Personnel!F1432","v":0},{"$f":"IFERROR(INDEX((SLevel),MATCH(Personnel!BA1432,SLevel202223,0)),0)","v":0},{"$f":"[1]Personnel!H1432","v":0},{"$f":"[1]Personnel!I1432","v":0},{"$f":"[1]Personnel!J1432","v":0},{"$f":"[1]Personnel!P1432","v":0},{"$f":"[1]Personnel!Q1432","v":0},0,{"$f":"[1]Personnel!S1432","v":0},{"$f":"[1]Personnel!S1432","v":0},{"$f":"[1]Personnel!S1432","v":0},{"$f":"[1]Personnel!T1432","v":0},0,{"$f":"[1]Personnel!V1432","v":0},{"$f":"[1]Personnel!W1432","v":0},0,{"$f":"[1]Personnel!Y1432","v":0},{"$f":"[1]Personnel!Z1432","v":0},0,0,0,0,null,null,null,null,null,null,null,null,null,null,null,null,null,null,null,null,null,null,null,null,null,null,null,null,null,{"$f":"[1]Personnel!G1432","v":0}]
[0,{"$f":"IFERROR(INDEX(Settings!$AP$17:$AP$38,MATCH(Personnel!$G1433,Settings!$AQ$17:$AQ$38,0)),0)","v":0},null,null,null,{"$f":"[1]Personnel!F1433","v":0},{"$f":"IFERROR(INDEX((SLevel),MATCH(Personnel!BA1433,SLevel202223,0)),0)","v":0},{"$f":"[1]Personnel!H1433","v":0},{"$f":"[1]Personnel!I1433","v":0},{"$f":"[1]Personnel!J1433","v":0},{"$f":"[1]Personnel!P1433","v":0},{"$f":"[1]Personnel!Q1433","v":0},0,{"$f":"[1]Personnel!S1433","v":0},{"$f":"[1]Personnel!S1433","v":0},{"$f":"[1]Personnel!S1433","v":0},{"$f":"[1]Personnel!T1433","v":0},0,{"$f":"[1]Personnel!V1433","v":0},{"$f":"[1]Personnel!W1433","v":0},0,{"$f":"[1]Personnel!Y1433","v":0},{"$f":"[1]Personnel!Z1433","v":0},0,0,0,0,null,null,null,null,null,null,null,null,null,null,null,null,null,null,null,null,null,null,null,null,null,null,null,null,null,{"$f":"[1]Personnel!G1433","v":0}]
[0,{"$f":"IFERROR(INDEX(Settings!$AP$17:$AP$38,MATCH(Personnel!$G1434,Settings!$AQ$17:$AQ$38,0)),0)","v":0},null,null,null,{"$f":"[1]Personnel!F1434","v":0},{"$f":"IFERROR(INDEX((SLevel),MATCH(Personnel!BA1434,SLevel202223,0)),0)","v":0},{"$f":"[1]Personnel!H1434","v":0},{"$f":"[1]Personnel!I1434","v":0},{"$f":"[1]Personnel!J1434","v":0},{"$f":"[1]Personnel!P1434","v":0},{"$f":"[1]Personnel!Q1434","v":0},0,{"$f":"[1]Personnel!S1434","v":0},{"$f":"[1]Personnel!S1434","v":0},{"$f":"[1]Personnel!S1434","v":0},{"$f":"[1]Personnel!T1434","v":0},0,{"$f":"[1]Personnel!V1434","v":0},{"$f":"[1]Personnel!W1434","v":0},0,{"$f":"[1]Personnel!Y1434","v":0},{"$f":"[1]Personnel!Z1434","v":0},0,0,0,0,null,null,null,null,null,null,null,null,null,null,null,null,null,null,null,null,null,null,null,null,null,null,null,null,null,{"$f":"[1]Personnel!G1434","v":0}]
[0,{"$f":"IFERROR(INDEX(Settings!$AP$17:$AP$38,MATCH(Personnel!$G1435,Settings!$AQ$17:$AQ$38,0)),0)","v":0},null,null,null,{"$f":"[1]Personnel!F1435","v":0},{"$f":"IFERROR(INDEX((SLevel),MATCH(Personnel!BA1435,SLevel202223,0)),0)","v":0},{"$f":"[1]Personnel!H1435","v":0},{"$f":"[1]Personnel!I1435","v":0},{"$f":"[1]Personnel!J1435","v":0},{"$f":"[1]Personnel!P1435","v":0},{"$f":"[1]Personnel!Q1435","v":0},0,{"$f":"[1]Personnel!S1435","v":0},{"$f":"[1]Personnel!S1435","v":0},{"$f":"[1]Personnel!S1435","v":0},{"$f":"[1]Personnel!T1435","v":0},0,{"$f":"[1]Personnel!V1435","v":0},{"$f":"[1]Personnel!W1435","v":0},0,{"$f":"[1]Personnel!Y1435","v":0},{"$f":"[1]Personnel!Z1435","v":0},0,0,0,0,null,null,null,null,null,null,null,null,null,null,null,null,null,null,null,null,null,null,null,null,null,null,null,null,null,{"$f":"[1]Personnel!G1435","v":0}]
[0,{"$f":"IFERROR(INDEX(Settings!$AP$17:$AP$38,MATCH(Personnel!$G1436,Settings!$AQ$17:$AQ$38,0)),0)","v":0},null,null,null,{"$f":"[1]Personnel!F1436","v":0},{"$f":"IFERROR(INDEX((SLevel),MATCH(Personnel!BA1436,SLevel202223,0)),0)","v":0},{"$f":"[1]Personnel!H1436","v":0},{"$f":"[1]Personnel!I1436","v":0},{"$f":"[1]Personnel!J1436","v":0},{"$f":"[1]Personnel!P1436","v":0},{"$f":"[1]Personnel!Q1436","v":0},0,{"$f":"[1]Personnel!S1436","v":0},{"$f":"[1]Personnel!S1436","v":0},{"$f":"[1]Personnel!S1436","v":0},{"$f":"[1]Personnel!T1436","v":0},0,{"$f":"[1]Personnel!V1436","v":0},{"$f":"[1]Personnel!W1436","v":0},0,{"$f":"[1]Personnel!Y1436","v":0},{"$f":"[1]Personnel!Z1436","v":0},0,0,0,0,null,null,null,null,null,null,null,null,null,null,null,null,null,null,null,null,null,null,null,null,null,null,null,null,null,{"$f":"[1]Personnel!G1436","v":0}]
[0,{"$f":"IFERROR(INDEX(Settings!$AP$17:$AP$38,MATCH(Personnel!$G1437,Settings!$AQ$17:$AQ$38,0)),0)","v":0},null,null,null,{"$f":"[1]Personnel!F1437","v":0},{"$f":"IFERROR(INDEX((SLevel),MATCH(Personnel!BA1437,SLevel202223,0)),0)","v":0},{"$f":"[1]Personnel!H1437","v":0},{"$f":"[1]Personnel!I1437","v":0},{"$f":"[1]Personnel!J1437","v":0},{"$f":"[1]Personnel!P1437","v":0},{"$f":"[1]Personnel!Q1437","v":0},0,{"$f":"[1]Personnel!S1437","v":0},{"$f":"[1]Personnel!S1437","v":0},{"$f":"[1]Personnel!S1437","v":0},{"$f":"[1]Personnel!T1437","v":0},0,{"$f":"[1]Personnel!V1437","v":0},{"$f":"[1]Personnel!W1437","v":0},0,{"$f":"[1]Personnel!Y1437","v":0},{"$f":"[1]Personnel!Z1437","v":0},0,0,0,0,null,null,null,null,null,null,null,null,null,null,null,null,null,null,null,null,null,null,null,null,null,null,null,null,null,{"$f":"[1]Personnel!G1437","v":0}]
[0,{"$f":"IFERROR(INDEX(Settings!$AP$17:$AP$38,MATCH(Personnel!$G1438,Settings!$AQ$17:$AQ$38,0)),0)","v":0},null,null,null,{"$f":"[1]Personnel!F1438","v":0},{"$f":"IFERROR(INDEX((SLevel),MATCH(Personnel!BA1438,SLevel202223,0)),0)","v":0},{"$f":"[1]Personnel!H1438","v":0},{"$f":"[1]Personnel!I1438","v":0},{"$f":"[1]Personnel!J1438","v":0},{"$f":"[1]Personnel!P1438","v":0},{"$f":"[1]Personnel!Q1438","v":0},0,{"$f":"[1]Personnel!S1438","v":0},{"$f":"[1]Personnel!S1438","v":0},{"$f":"[1]Personnel!S1438","v":0},{"$f":"[1]Personnel!T1438","v":0},0,{"$f":"[1]Personnel!V1438","v":0},{"$f":"[1]Personnel!W1438","v":0},0,{"$f":"[1]Personnel!Y1438","v":0},{"$f":"[1]Personnel!Z1438","v":0},0,0,0,0,null,null,null,null,null,null,null,null,null,null,null,null,null,null,null,null,null,null,null,null,null,null,null,null,null,{"$f":"[1]Personnel!G1438","v":0}]
[0,{"$f":"IFERROR(INDEX(Settings!$AP$17:$AP$38,MATCH(Personnel!$G1439,Settings!$AQ$17:$AQ$38,0)),0)","v":0},null,null,null,{"$f":"[1]Personnel!F1439","v":0},{"$f":"IFERROR(INDEX((SLevel),MATCH(Personnel!BA1439,SLevel202223,0)),0)","v":0},{"$f":"[1]Personnel!H1439","v":0},{"$f":"[1]Personnel!I1439","v":0},{"$f":"[1]Personnel!J1439","v":0},{"$f":"[1]Personnel!P1439","v":0},{"$f":"[1]Personnel!Q1439","v":0},0,{"$f":"[1]Personnel!S1439","v":0},{"$f":"[1]Personnel!S1439","v":0},{"$f":"[1]Personnel!S1439","v":0},{"$f":"[1]Personnel!T1439","v":0},0,{"$f":"[1]Personnel!V1439","v":0},{"$f":"[1]Personnel!W1439","v":0},0,{"$f":"[1]Personnel!Y1439","v":0},{"$f":"[1]Personnel!Z1439","v":0},0,0,0,0,null,null,null,null,null,null,null,null,null,null,null,null,null,null,null,null,null,null,null,null,null,null,null,null,null,{"$f":"[1]Personnel!G1439","v":0}]
[0,{"$f":"IFERROR(INDEX(Settings!$AP$17:$AP$38,MATCH(Personnel!$G1440,Settings!$AQ$17:$AQ$38,0)),0)","v":0},null,null,null,{"$f":"[1]Personnel!F1440","v":0},{"$f":"IFERROR(INDEX((SLevel),MATCH(Personnel!BA1440,SLevel202223,0)),0)","v":0},{"$f":"[1]Personnel!H1440","v":0},{"$f":"[1]Personnel!I1440","v":0},{"$f":"[1]Personnel!J1440","v":0},{"$f":"[1]Personnel!P1440","v":0},{"$f":"[1]Personnel!Q1440","v":0},0,{"$f":"[1]Personnel!S1440","v":0},{"$f":"[1]Personnel!S1440","v":0},{"$f":"[1]Personnel!S1440","v":0},{"$f":"[1]Personnel!T1440","v":0},0,{"$f":"[1]Personnel!V1440","v":0},{"$f":"[1]Personnel!W1440","v":0},0,{"$f":"[1]Personnel!Y1440","v":0},{"$f":"[1]Personnel!Z1440","v":0},0,0,0,0,null,null,null,null,null,null,null,null,null,null,null,null,null,null,null,null,null,null,null,null,null,null,null,null,null,{"$f":"[1]Personnel!G1440","v":0}]
[0,{"$f":"IFERROR(INDEX(Settings!$AP$17:$AP$38,MATCH(Personnel!$G1441,Settings!$AQ$17:$AQ$38,0)),0)","v":0},null,null,null,{"$f":"[1]Personnel!F1441","v":0},{"$f":"IFERROR(INDEX((SLevel),MATCH(Personnel!BA1441,SLevel202223,0)),0)","v":0},{"$f":"[1]Personnel!H1441","v":0},{"$f":"[1]Personnel!I1441","v":0},{"$f":"[1]Personnel!J1441","v":0},{"$f":"[1]Personnel!P1441","v":0},{"$f":"[1]Personnel!Q1441","v":0},0,{"$f":"[1]Personnel!S1441","v":0},{"$f":"[1]Personnel!S1441","v":0},{"$f":"[1]Personnel!S1441","v":0},{"$f":"[1]Personnel!T1441","v":0},0,{"$f":"[1]Personnel!V1441","v":0},{"$f":"[1]Personnel!W1441","v":0},0,{"$f":"[1]Personnel!Y1441","v":0},{"$f":"[1]Personnel!Z1441","v":0},0,0,0,0,null,null,null,null,null,null,null,null,null,null,null,null,null,null,null,null,null,null,null,null,null,null,null,null,null,{"$f":"[1]Personnel!G1441","v":0}]
[0,{"$f":"IFERROR(INDEX(Settings!$AP$17:$AP$38,MATCH(Personnel!$G1442,Settings!$AQ$17:$AQ$38,0)),0)","v":0},null,null,null,{"$f":"[1]Personnel!F1442","v":0},{"$f":"IFERROR(INDEX((SLevel),MATCH(Personnel!BA1442,SLevel202223,0)),0)","v":0},{"$f":"[1]Personnel!H1442","v":0},{"$f":"[1]Personnel!I1442","v":0},{"$f":"[1]Personnel!J1442","v":0},{"$f":"[1]Personnel!P1442","v":0},{"$f":"[1]Personnel!Q1442","v":0},0,{"$f":"[1]Personnel!S1442","v":0},{"$f":"[1]Personnel!S1442","v":0},{"$f":"[1]Personnel!S1442","v":0},{"$f":"[1]Personnel!T1442","v":0},0,{"$f":"[1]Personnel!V1442","v":0},{"$f":"[1]Personnel!W1442","v":0},0,{"$f":"[1]Personnel!Y1442","v":0},{"$f":"[1]Personnel!Z1442","v":0},0,0,0,0,null,null,null,null,null,null,null,null,null,null,null,null,null,null,null,null,null,null,null,null,null,null,null,null,null,{"$f":"[1]Personnel!G1442","v":0}]
[0,{"$f":"IFERROR(INDEX(Settings!$AP$17:$AP$38,MATCH(Personnel!$G1443,Settings!$AQ$17:$AQ$38,0)),0)","v":0},null,null,null,{"$f":"[1]Personnel!F1443","v":0},{"$f":"IFERROR(INDEX((SLevel),MATCH(Personnel!BA1443,SLevel202223,0)),0)","v":0},{"$f":"[1]Personnel!H1443","v":0},{"$f":"[1]Personnel!I1443","v":0},{"$f":"[1]Personnel!J1443","v":0},{"$f":"[1]Personnel!P1443","v":0},{"$f":"[1]Personnel!Q1443","v":0},0,{"$f":"[1]Personnel!S1443","v":0},{"$f":"[1]Personnel!S1443","v":0},{"$f":"[1]Personnel!S1443","v":0},{"$f":"[1]Personnel!T1443","v":0},0,{"$f":"[1]Personnel!V1443","v":0},{"$f":"[1]Personnel!W1443","v":0},0,{"$f":"[1]Personnel!Y1443","v":0},{"$f":"[1]Personnel!Z1443","v":0},0,0,0,0,null,null,null,null,null,null,null,null,null,null,null,null,null,null,null,null,null,null,null,null,null,null,null,null,null,{"$f":"[1]Personnel!G1443","v":0}]
[0,{"$f":"IFERROR(INDEX(Settings!$AP$17:$AP$38,MATCH(Personnel!$G1444,Settings!$AQ$17:$AQ$38,0)),0)","v":0},null,null,null,{"$f":"[1]Personnel!F1444","v":0},{"$f":"IFERROR(INDEX((SLevel),MATCH(Personnel!BA1444,SLevel202223,0)),0)","v":0},{"$f":"[1]Personnel!H1444","v":0},{"$f":"[1]Personnel!I1444","v":0},{"$f":"[1]Personnel!J1444","v":0},{"$f":"[1]Personnel!P1444","v":0},{"$f":"[1]Personnel!Q1444","v":0},0,{"$f":"[1]Personnel!S1444","v":0},{"$f":"[1]Personnel!S1444","v":0},{"$f":"[1]Personnel!S1444","v":0},{"$f":"[1]Personnel!T1444","v":0},0,{"$f":"[1]Personnel!V1444","v":0},{"$f":"[1]Personnel!W1444","v":0},0,{"$f":"[1]Personnel!Y1444","v":0},{"$f":"[1]Personnel!Z1444","v":0},0,0,0,0,null,null,null,null,null,null,null,null,null,null,null,null,null,null,null,null,null,null,null,null,null,null,null,null,null,{"$f":"[1]Personnel!G1444","v":0}]
[0,{"$f":"IFERROR(INDEX(Settings!$AP$17:$AP$38,MATCH(Personnel!$G1445,Settings!$AQ$17:$AQ$38,0)),0)","v":0},null,null,null,{"$f":"[1]Personnel!F1445","v":0},{"$f":"IFERROR(INDEX((SLevel),MATCH(Personnel!BA1445,SLevel202223,0)),0)","v":0},{"$f":"[1]Personnel!H1445","v":0},{"$f":"[1]Personnel!I1445","v":0},{"$f":"[1]Personnel!J1445","v":0},{"$f":"[1]Personnel!P1445","v":0},{"$f":"[1]Personnel!Q1445","v":0},0,{"$f":"[1]Personnel!S1445","v":0},{"$f":"[1]Personnel!S1445","v":0},{"$f":"[1]Personnel!S1445","v":0},{"$f":"[1]Personnel!T1445","v":0},0,{"$f":"[1]Personnel!V1445","v":0},{"$f":"[1]Personnel!W1445","v":0},0,{"$f":"[1]Personnel!Y1445","v":0},{"$f":"[1]Personnel!Z1445","v":0},0,0,0,0,null,null,null,null,null,null,null,null,null,null,null,null,null,null,null,null,null,null,null,null,null,null,null,null,null,{"$f":"[1]Personnel!G1445","v":0}]
[0,{"$f":"IFERROR(INDEX(Settings!$AP$17:$AP$38,MATCH(Personnel!$G1446,Settings!$AQ$17:$AQ$38,0)),0)","v":0},null,null,null,{"$f":"[1]Personnel!F1446","v":0},{"$f":"IFERROR(INDEX((SLevel),MATCH(Personnel!BA1446,SLevel202223,0)),0)","v":0},{"$f":"[1]Personnel!H1446","v":0},{"$f":"[1]Personnel!I1446","v":0},{"$f":"[1]Personnel!J1446","v":0},{"$f":"[1]Personnel!P1446","v":0},{"$f":"[1]Personnel!Q1446","v":0},0,{"$f":"[1]Personnel!S1446","v":0},{"$f":"[1]Personnel!S1446","v":0},{"$f":"[1]Personnel!S1446","v":0},{"$f":"[1]Personnel!T1446","v":0},0,{"$f":"[1]Personnel!V1446","v":0},{"$f":"[1]Personnel!W1446","v":0},0,{"$f":"[1]Personnel!Y1446","v":0},{"$f":"[1]Personnel!Z1446","v":0},0,0,0,0,null,null,null,null,null,null,null,null,null,null,null,null,null,null,null,null,null,null,null,null,null,null,null,null,null,{"$f":"[1]Personnel!G1446","v":0}]
[0,{"$f":"IFERROR(INDEX(Settings!$AP$17:$AP$38,MATCH(Personnel!$G1447,Settings!$AQ$17:$AQ$38,0)),0)","v":0},null,null,null,{"$f":"[1]Personnel!F1447","v":0},{"$f":"IFERROR(INDEX((SLevel),MATCH(Personnel!BA1447,SLevel202223,0)),0)","v":0},{"$f":"[1]Personnel!H1447","v":0},{"$f":"[1]Personnel!I1447","v":0},{"$f":"[1]Personnel!J1447","v":0},{"$f":"[1]Personnel!P1447","v":0},{"$f":"[1]Personnel!Q1447","v":0},0,{"$f":"[1]Personnel!S1447","v":0},{"$f":"[1]Personnel!S1447","v":0},{"$f":"[1]Personnel!S1447","v":0},{"$f":"[1]Personnel!T1447","v":0},0,{"$f":"[1]Personnel!V1447","v":0},{"$f":"[1]Personnel!W1447","v":0},0,{"$f":"[1]Personnel!Y1447","v":0},{"$f":"[1]Personnel!Z1447","v":0},0,0,0,0,null,null,null,null,null,null,null,null,null,null,null,null,null,null,null,null,null,null,null,null,null,null,null,null,null,{"$f":"[1]Personnel!G1447","v":0}]
[0,{"$f":"IFERROR(INDEX(Settings!$AP$17:$AP$38,MATCH(Personnel!$G1448,Settings!$AQ$17:$AQ$38,0)),0)","v":0},null,null,null,{"$f":"[1]Personnel!F1448","v":0},{"$f":"IFERROR(INDEX((SLevel),MATCH(Personnel!BA1448,SLevel202223,0)),0)","v":0},{"$f":"[1]Personnel!H1448","v":0},{"$f":"[1]Personnel!I1448","v":0},{"$f":"[1]Personnel!J1448","v":0},{"$f":"[1]Personnel!P1448","v":0},{"$f":"[1]Personnel!Q1448","v":0},0,{"$f":"[1]Personnel!S1448","v":0},{"$f":"[1]Personnel!S1448","v":0},{"$f":"[1]Personnel!S1448","v":0},{"$f":"[1]Personnel!T1448","v":0},0,{"$f":"[1]Personnel!V1448","v":0},{"$f":"[1]Personnel!W1448","v":0},0,{"$f":"[1]Personnel!Y1448","v":0},{"$f":"[1]Personnel!Z1448","v":0},0,0,0,0,null,null,null,null,null,null,null,null,null,null,null,null,null,null,null,null,null,null,null,null,null,null,null,null,null,{"$f":"[1]Personnel!G1448","v":0}]
[0,{"$f":"IFERROR(INDEX(Settings!$AP$17:$AP$38,MATCH(Personnel!$G1449,Settings!$AQ$17:$AQ$38,0)),0)","v":0},null,null,null,{"$f":"[1]Personnel!F1449","v":0},{"$f":"IFERROR(INDEX((SLevel),MATCH(Personnel!BA1449,SLevel202223,0)),0)","v":0},{"$f":"[1]Personnel!H1449","v":0},{"$f":"[1]Personnel!I1449","v":0},{"$f":"[1]Personnel!J1449","v":0},{"$f":"[1]Personnel!P1449","v":0},{"$f":"[1]Personnel!Q1449","v":0},0,{"$f":"[1]Personnel!S1449","v":0},{"$f":"[1]Personnel!S1449","v":0},{"$f":"[1]Personnel!S1449","v":0},{"$f":"[1]Personnel!T1449","v":0},0,{"$f":"[1]Personnel!V1449","v":0},{"$f":"[1]Personnel!W1449","v":0},0,{"$f":"[1]Personnel!Y1449","v":0},{"$f":"[1]Personnel!Z1449","v":0},0,0,0,0,null,null,null,null,null,null,null,null,null,null,null,null,null,null,null,null,null,null,null,null,null,null,null,null,null,{"$f":"[1]Personnel!G1449","v":0}]
[0,{"$f":"IFERROR(INDEX(Settings!$AP$17:$AP$38,MATCH(Personnel!$G1450,Settings!$AQ$17:$AQ$38,0)),0)","v":0},null,null,null,{"$f":"[1]Personnel!F1450","v":0},{"$f":"IFERROR(INDEX((SLevel),MATCH(Personnel!BA1450,SLevel202223,0)),0)","v":0},{"$f":"[1]Personnel!H1450","v":0},{"$f":"[1]Personnel!I1450","v":0},{"$f":"[1]Personnel!J1450","v":0},{"$f":"[1]Personnel!P1450","v":0},{"$f":"[1]Personnel!Q1450","v":0},0,{"$f":"[1]Personnel!S1450","v":0},{"$f":"[1]Personnel!S1450","v":0},{"$f":"[1]Personnel!S1450","v":0},{"$f":"[1]Personnel!T1450","v":0},0,{"$f":"[1]Personnel!V1450","v":0},{"$f":"[1]Personnel!W1450","v":0},0,{"$f":"[1]Personnel!Y1450","v":0},{"$f":"[1]Personnel!Z1450","v":0},0,0,0,0,null,null,null,null,null,null,null,null,null,null,null,null,null,null,null,null,null,null,null,null,null,null,null,null,null,{"$f":"[1]Personnel!G1450","v":0}]
[0,{"$f":"IFERROR(INDEX(Settings!$AP$17:$AP$38,MATCH(Personnel!$G1451,Settings!$AQ$17:$AQ$38,0)),0)","v":0},null,null,null,{"$f":"[1]Personnel!F1451","v":0},{"$f":"IFERROR(INDEX((SLevel),MATCH(Personnel!BA1451,SLevel202223,0)),0)","v":0},{"$f":"[1]Personnel!H1451","v":0},{"$f":"[1]Personnel!I1451","v":0},{"$f":"[1]Personnel!J1451","v":0},{"$f":"[1]Personnel!P1451","v":0},{"$f":"[1]Personnel!Q1451","v":0},0,{"$f":"[1]Personnel!S1451","v":0},{"$f":"[1]Personnel!S1451","v":0},{"$f":"[1]Personnel!S1451","v":0},{"$f":"[1]Personnel!T1451","v":0},0,{"$f":"[1]Personnel!V1451","v":0},{"$f":"[1]Personnel!W1451","v":0},0,{"$f":"[1]Personnel!Y1451","v":0},{"$f":"[1]Personnel!Z1451","v":0},0,0,0,0,null,null,null,null,null,null,null,null,null,null,null,null,null,null,null,null,null,null,null,null,null,null,null,null,null,{"$f":"[1]Personnel!G1451","v":0}]
[0,{"$f":"IFERROR(INDEX(Settings!$AP$17:$AP$38,MATCH(Personnel!$G1452,Settings!$AQ$17:$AQ$38,0)),0)","v":0},null,null,null,{"$f":"[1]Personnel!F1452","v":0},{"$f":"IFERROR(INDEX((SLevel),MATCH(Personnel!BA1452,SLevel202223,0)),0)","v":0},{"$f":"[1]Personnel!H1452","v":0},{"$f":"[1]Personnel!I1452","v":0},{"$f":"[1]Personnel!J1452","v":0},{"$f":"[1]Personnel!P1452","v":0},{"$f":"[1]Personnel!Q1452","v":0},0,{"$f":"[1]Personnel!S1452","v":0},{"$f":"[1]Personnel!S1452","v":0},{"$f":"[1]Personnel!S1452","v":0},{"$f":"[1]Personnel!T1452","v":0},0,{"$f":"[1]Personnel!V1452","v":0},{"$f":"[1]Personnel!W1452","v":0},0,{"$f":"[1]Personnel!Y1452","v":0},{"$f":"[1]Personnel!Z1452","v":0},0,0,0,0,null,null,null,null,null,null,null,null,null,null,null,null,null,null,null,null,null,null,null,null,null,null,null,null,null,{"$f":"[1]Personnel!G1452","v":0}]
[0,{"$f":"IFERROR(INDEX(Settings!$AP$17:$AP$38,MATCH(Personnel!$G1453,Settings!$AQ$17:$AQ$38,0)),0)","v":0},null,null,null,{"$f":"[1]Personnel!F1453","v":0},{"$f":"IFERROR(INDEX((SLevel),MATCH(Personnel!BA1453,SLevel202223,0)),0)","v":0},{"$f":"[1]Personnel!H1453","v":0},{"$f":"[1]Personnel!I1453","v":0},{"$f":"[1]Personnel!J1453","v":0},{"$f":"[1]Personnel!P1453","v":0},{"$f":"[1]Personnel!Q1453","v":0},0,{"$f":"[1]Personnel!S1453","v":0},{"$f":"[1]Personnel!S1453","v":0},{"$f":"[1]Personnel!S1453","v":0},{"$f":"[1]Personnel!T1453","v":0},0,{"$f":"[1]Personnel!V1453","v":0},{"$f":"[1]Personnel!W1453","v":0},0,{"$f":"[1]Personnel!Y1453","v":0},{"$f":"[1]Personnel!Z1453","v":0},0,0,0,0,null,null,null,null,null,null,null,null,null,null,null,null,null,null,null,null,null,null,null,null,null,null,null,null,null,{"$f":"[1]Personnel!G1453","v":0}]
[0,{"$f":"IFERROR(INDEX(Settings!$AP$17:$AP$38,MATCH(Personnel!$G1454,Settings!$AQ$17:$AQ$38,0)),0)","v":0},null,null,null,{"$f":"[1]Personnel!F1454","v":0},{"$f":"IFERROR(INDEX((SLevel),MATCH(Personnel!BA1454,SLevel202223,0)),0)","v":0},{"$f":"[1]Personnel!H1454","v":0},{"$f":"[1]Personnel!I1454","v":0},{"$f":"[1]Personnel!J1454","v":0},{"$f":"[1]Personnel!P1454","v":0},{"$f":"[1]Personnel!Q1454","v":0},0,{"$f":"[1]Personnel!S1454","v":0},{"$f":"[1]Personnel!S1454","v":0},{"$f":"[1]Personnel!S1454","v":0},{"$f":"[1]Personnel!T1454","v":0},0,{"$f":"[1]Personnel!V1454","v":0},{"$f":"[1]Personnel!W1454","v":0},0,{"$f":"[1]Personnel!Y1454","v":0},{"$f":"[1]Personnel!Z1454","v":0},0,0,0,0,null,null,null,null,null,null,null,null,null,null,null,null,null,null,null,null,null,null,null,null,null,null,null,null,null,{"$f":"[1]Personnel!G1454","v":0}]
[0,{"$f":"IFERROR(INDEX(Settings!$AP$17:$AP$38,MATCH(Personnel!$G1455,Settings!$AQ$17:$AQ$38,0)),0)","v":0},null,null,null,{"$f":"[1]Personnel!F1455","v":0},{"$f":"IFERROR(INDEX((SLevel),MATCH(Personnel!BA1455,SLevel202223,0)),0)","v":0},{"$f":"[1]Personnel!H1455","v":0},{"$f":"[1]Personnel!I1455","v":0},{"$f":"[1]Personnel!J1455","v":0},{"$f":"[1]Personnel!P1455","v":0},{"$f":"[1]Personnel!Q1455","v":0},0,{"$f":"[1]Personnel!S1455","v":0},{"$f":"[1]Personnel!S1455","v":0},{"$f":"[1]Personnel!S1455","v":0},{"$f":"[1]Personnel!T1455","v":0},0,{"$f":"[1]Personnel!V1455","v":0},{"$f":"[1]Personnel!W1455","v":0},0,{"$f":"[1]Personnel!Y1455","v":0},{"$f":"[1]Personnel!Z1455","v":0},0,0,0,0,null,null,null,null,null,null,null,null,null,null,null,null,null,null,null,null,null,null,null,null,null,null,null,null,null,{"$f":"[1]Personnel!G1455","v":0}]
[0,{"$f":"IFERROR(INDEX(Settings!$AP$17:$AP$38,MATCH(Personnel!$G1456,Settings!$AQ$17:$AQ$38,0)),0)","v":0},null,null,null,{"$f":"[1]Personnel!F1456","v":0},{"$f":"IFERROR(INDEX((SLevel),MATCH(Personnel!BA1456,SLevel202223,0)),0)","v":0},{"$f":"[1]Personnel!H1456","v":0},{"$f":"[1]Personnel!I1456","v":0},{"$f":"[1]Personnel!J1456","v":0},{"$f":"[1]Personnel!P1456","v":0},{"$f":"[1]Personnel!Q1456","v":0},0,{"$f":"[1]Personnel!S1456","v":0},{"$f":"[1]Personnel!S1456","v":0},{"$f":"[1]Personnel!S1456","v":0},{"$f":"[1]Personnel!T1456","v":0},0,{"$f":"[1]Personnel!V1456","v":0},{"$f":"[1]Personnel!W1456","v":0},0,{"$f":"[1]Personnel!Y1456","v":0},{"$f":"[1]Personnel!Z1456","v":0},0,0,0,0,null,null,null,null,null,null,null,null,null,null,null,null,null,null,null,null,null,null,null,null,null,null,null,null,null,{"$f":"[1]Personnel!G1456","v":0}]
[0,{"$f":"IFERROR(INDEX(Settings!$AP$17:$AP$38,MATCH(Personnel!$G1457,Settings!$AQ$17:$AQ$38,0)),0)","v":0},null,null,null,{"$f":"[1]Personnel!F1457","v":0},{"$f":"IFERROR(INDEX((SLevel),MATCH(Personnel!BA1457,SLevel202223,0)),0)","v":0},{"$f":"[1]Personnel!H1457","v":0},{"$f":"[1]Personnel!I1457","v":0},{"$f":"[1]Personnel!J1457","v":0},{"$f":"[1]Personnel!P1457","v":0},{"$f":"[1]Personnel!Q1457","v":0},0,{"$f":"[1]Personnel!S1457","v":0},{"$f":"[1]Personnel!S1457","v":0},{"$f":"[1]Personnel!S1457","v":0},{"$f":"[1]Personnel!T1457","v":0},0,{"$f":"[1]Personnel!V1457","v":0},{"$f":"[1]Personnel!W1457","v":0},0,{"$f":"[1]Personnel!Y1457","v":0},{"$f":"[1]Personnel!Z1457","v":0},0,0,0,0,null,null,null,null,null,null,null,null,null,null,null,null,null,null,null,null,null,null,null,null,null,null,null,null,null,{"$f":"[1]Personnel!G1457","v":0}]
[0,{"$f":"IFERROR(INDEX(Settings!$AP$17:$AP$38,MATCH(Personnel!$G1458,Settings!$AQ$17:$AQ$38,0)),0)","v":0},null,null,null,{"$f":"[1]Personnel!F1458","v":0},{"$f":"IFERROR(INDEX((SLevel),MATCH(Personnel!BA1458,SLevel202223,0)),0)","v":0},{"$f":"[1]Personnel!H1458","v":0},{"$f":"[1]Personnel!I1458","v":0},{"$f":"[1]Personnel!J1458","v":0},{"$f":"[1]Personnel!P1458","v":0},{"$f":"[1]Personnel!Q1458","v":0},0,{"$f":"[1]Personnel!S1458","v":0},{"$f":"[1]Personnel!S1458","v":0},{"$f":"[1]Personnel!S1458","v":0},{"$f":"[1]Personnel!T1458","v":0},0,{"$f":"[1]Personnel!V1458","v":0},{"$f":"[1]Personnel!W1458","v":0},0,{"$f":"[1]Personnel!Y1458","v":0},{"$f":"[1]Personnel!Z1458","v":0},0,0,0,0,null,null,null,null,null,null,null,null,null,null,null,null,null,null,null,null,null,null,null,null,null,null,null,null,null,{"$f":"[1]Personnel!G1458","v":0}]
[0,{"$f":"IFERROR(INDEX(Settings!$AP$17:$AP$38,MATCH(Personnel!$G1459,Settings!$AQ$17:$AQ$38,0)),0)","v":0},null,null,null,{"$f":"[1]Personnel!F1459","v":0},{"$f":"IFERROR(INDEX((SLevel),MATCH(Personnel!BA1459,SLevel202223,0)),0)","v":0},{"$f":"[1]Personnel!H1459","v":0},{"$f":"[1]Personnel!I1459","v":0},{"$f":"[1]Personnel!J1459","v":0},{"$f":"[1]Personnel!P1459","v":0},{"$f":"[1]Personnel!Q1459","v":0},0,{"$f":"[1]Personnel!S1459","v":0},{"$f":"[1]Personnel!S1459","v":0},{"$f":"[1]Personnel!S1459","v":0},{"$f":"[1]Personnel!T1459","v":0},0,{"$f":"[1]Personnel!V1459","v":0},{"$f":"[1]Personnel!W1459","v":0},0,{"$f":"[1]Personnel!Y1459","v":0},{"$f":"[1]Personnel!Z1459","v":0},0,0,0,0,null,null,null,null,null,null,null,null,null,null,null,null,null,null,null,null,null,null,null,null,null,null,null,null,null,{"$f":"[1]Personnel!G1459","v":0}]
[0,{"$f":"IFERROR(INDEX(Settings!$AP$17:$AP$38,MATCH(Personnel!$G1460,Settings!$AQ$17:$AQ$38,0)),0)","v":0},null,null,null,{"$f":"[1]Personnel!F1460","v":0},{"$f":"IFERROR(INDEX((SLevel),MATCH(Personnel!BA1460,SLevel202223,0)),0)","v":0},{"$f":"[1]Personnel!H1460","v":0},{"$f":"[1]Personnel!I1460","v":0},{"$f":"[1]Personnel!J1460","v":0},{"$f":"[1]Personnel!P1460","v":0},{"$f":"[1]Personnel!Q1460","v":0},0,{"$f":"[1]Personnel!S1460","v":0},{"$f":"[1]Personnel!S1460","v":0},{"$f":"[1]Personnel!S1460","v":0},{"$f":"[1]Personnel!T1460","v":0},0,{"$f":"[1]Personnel!V1460","v":0},{"$f":"[1]Personnel!W1460","v":0},0,{"$f":"[1]Personnel!Y1460","v":0},{"$f":"[1]Personnel!Z1460","v":0},0,0,0,0,null,null,null,null,null,null,null,null,null,null,null,null,null,null,null,null,null,null,null,null,null,null,null,null,null,{"$f":"[1]Personnel!G1460","v":0}]
[0,{"$f":"IFERROR(INDEX(Settings!$AP$17:$AP$38,MATCH(Personnel!$G1461,Settings!$AQ$17:$AQ$38,0)),0)","v":0},null,null,null,{"$f":"[1]Personnel!F1461","v":0},{"$f":"IFERROR(INDEX((SLevel),MATCH(Personnel!BA1461,SLevel202223,0)),0)","v":0},{"$f":"[1]Personnel!H1461","v":0},{"$f":"[1]Personnel!I1461","v":0},{"$f":"[1]Personnel!J1461","v":0},{"$f":"[1]Personnel!P1461","v":0},{"$f":"[1]Personnel!Q1461","v":0},0,{"$f":"[1]Personnel!S1461","v":0},{"$f":"[1]Personnel!S1461","v":0},{"$f":"[1]Personnel!S1461","v":0},{"$f":"[1]Personnel!T1461","v":0},0,{"$f":"[1]Personnel!V1461","v":0},{"$f":"[1]Personnel!W1461","v":0},0,{"$f":"[1]Personnel!Y1461","v":0},{"$f":"[1]Personnel!Z1461","v":0},0,0,0,0,null,null,null,null,null,null,null,null,null,null,null,null,null,null,null,null,null,null,null,null,null,null,null,null,null,{"$f":"[1]Personnel!G1461","v":0}]
[0,{"$f":"IFERROR(INDEX(Settings!$AP$17:$AP$38,MATCH(Personnel!$G1462,Settings!$AQ$17:$AQ$38,0)),0)","v":0},null,null,null,{"$f":"[1]Personnel!F1462","v":0},{"$f":"IFERROR(INDEX((SLevel),MATCH(Personnel!BA1462,SLevel202223,0)),0)","v":0},{"$f":"[1]Personnel!H1462","v":0},{"$f":"[1]Personnel!I1462","v":0},{"$f":"[1]Personnel!J1462","v":0},{"$f":"[1]Personnel!P1462","v":0},{"$f":"[1]Personnel!Q1462","v":0},0,{"$f":"[1]Personnel!S1462","v":0},{"$f":"[1]Personnel!S1462","v":0},{"$f":"[1]Personnel!S1462","v":0},{"$f":"[1]Personnel!T1462","v":0},0,{"$f":"[1]Personnel!V1462","v":0},{"$f":"[1]Personnel!W1462","v":0},0,{"$f":"[1]Personnel!Y1462","v":0},{"$f":"[1]Personnel!Z1462","v":0},0,0,0,0,null,null,null,null,null,null,null,null,null,null,null,null,null,null,null,null,null,null,null,null,null,null,null,null,null,{"$f":"[1]Personnel!G1462","v":0}]
[0,{"$f":"IFERROR(INDEX(Settings!$AP$17:$AP$38,MATCH(Personnel!$G1463,Settings!$AQ$17:$AQ$38,0)),0)","v":0},null,null,null,{"$f":"[1]Personnel!F1463","v":0},{"$f":"IFERROR(INDEX((SLevel),MATCH(Personnel!BA1463,SLevel202223,0)),0)","v":0},{"$f":"[1]Personnel!H1463","v":0},{"$f":"[1]Personnel!I1463","v":0},{"$f":"[1]Personnel!J1463","v":0},{"$f":"[1]Personnel!P1463","v":0},{"$f":"[1]Personnel!Q1463","v":0},0,{"$f":"[1]Personnel!S1463","v":0},{"$f":"[1]Personnel!S1463","v":0},{"$f":"[1]Personnel!S1463","v":0},{"$f":"[1]Personnel!T1463","v":0},0,{"$f":"[1]Personnel!V1463","v":0},{"$f":"[1]Personnel!W1463","v":0},0,{"$f":"[1]Personnel!Y1463","v":0},{"$f":"[1]Personnel!Z1463","v":0},0,0,0,0,null,null,null,null,null,null,null,null,null,null,null,null,null,null,null,null,null,null,null,null,null,null,null,null,null,{"$f":"[1]Personnel!G1463","v":0}]
[0,{"$f":"IFERROR(INDEX(Settings!$AP$17:$AP$38,MATCH(Personnel!$G1464,Settings!$AQ$17:$AQ$38,0)),0)","v":0},null,null,null,{"$f":"[1]Personnel!F1464","v":0},{"$f":"IFERROR(INDEX((SLevel),MATCH(Personnel!BA1464,SLevel202223,0)),0)","v":0},{"$f":"[1]Personnel!H1464","v":0},{"$f":"[1]Personnel!I1464","v":0},{"$f":"[1]Personnel!J1464","v":0},{"$f":"[1]Personnel!P1464","v":0},{"$f":"[1]Personnel!Q1464","v":0},0,{"$f":"[1]Personnel!S1464","v":0},{"$f":"[1]Personnel!S1464","v":0},{"$f":"[1]Personnel!S1464","v":0},{"$f":"[1]Personnel!T1464","v":0},0,{"$f":"[1]Personnel!V1464","v":0},{"$f":"[1]Personnel!W1464","v":0},0,{"$f":"[1]Personnel!Y1464","v":0},{"$f":"[1]Personnel!Z1464","v":0},0,0,0,0,null,null,null,null,null,null,null,null,null,null,null,null,null,null,null,null,null,null,null,null,null,null,null,null,null,{"$f":"[1]Personnel!G1464","v":0}]
[0,{"$f":"IFERROR(INDEX(Settings!$AP$17:$AP$38,MATCH(Personnel!$G1465,Settings!$AQ$17:$AQ$38,0)),0)","v":0},null,null,null,{"$f":"[1]Personnel!F1465","v":0},{"$f":"IFERROR(INDEX((SLevel),MATCH(Personnel!BA1465,SLevel202223,0)),0)","v":0},{"$f":"[1]Personnel!H1465","v":0},{"$f":"[1]Personnel!I1465","v":0},{"$f":"[1]Personnel!J1465","v":0},{"$f":"[1]Personnel!P1465","v":0},{"$f":"[1]Personnel!Q1465","v":0},0,{"$f":"[1]Personnel!S1465","v":0},{"$f":"[1]Personnel!S1465","v":0},{"$f":"[1]Personnel!S1465","v":0},{"$f":"[1]Personnel!T1465","v":0},0,{"$f":"[1]Personnel!V1465","v":0},{"$f":"[1]Personnel!W1465","v":0},0,{"$f":"[1]Personnel!Y1465","v":0},{"$f":"[1]Personnel!Z1465","v":0},0,0,0,0,null,null,null,null,null,null,null,null,null,null,null,null,null,null,null,null,null,null,null,null,null,null,null,null,null,{"$f":"[1]Personnel!G1465","v":0}]
[0,{"$f":"IFERROR(INDEX(Settings!$AP$17:$AP$38,MATCH(Personnel!$G1466,Settings!$AQ$17:$AQ$38,0)),0)","v":0},null,null,null,{"$f":"[1]Personnel!F1466","v":0},{"$f":"IFERROR(INDEX((SLevel),MATCH(Personnel!BA1466,SLevel202223,0)),0)","v":0},{"$f":"[1]Personnel!H1466","v":0},{"$f":"[1]Personnel!I1466","v":0},{"$f":"[1]Personnel!J1466","v":0},{"$f":"[1]Personnel!P1466","v":0},{"$f":"[1]Personnel!Q1466","v":0},0,{"$f":"[1]Personnel!S1466","v":0},{"$f":"[1]Personnel!S1466","v":0},{"$f":"[1]Personnel!S1466","v":0},{"$f":"[1]Personnel!T1466","v":0},0,{"$f":"[1]Personnel!V1466","v":0},{"$f":"[1]Personnel!W1466","v":0},0,{"$f":"[1]Personnel!Y1466","v":0},{"$f":"[1]Personnel!Z1466","v":0},0,0,0,0,null,null,null,null,null,null,null,null,null,null,null,null,null,null,null,null,null,null,null,null,null,null,null,null,null,{"$f":"[1]Personnel!G1466","v":0}]
[0,{"$f":"IFERROR(INDEX(Settings!$AP$17:$AP$38,MATCH(Personnel!$G1467,Settings!$AQ$17:$AQ$38,0)),0)","v":0},null,null,null,{"$f":"[1]Personnel!F1467","v":0},{"$f":"IFERROR(INDEX((SLevel),MATCH(Personnel!BA1467,SLevel202223,0)),0)","v":0},{"$f":"[1]Personnel!H1467","v":0},{"$f":"[1]Personnel!I1467","v":0},{"$f":"[1]Personnel!J1467","v":0},{"$f":"[1]Personnel!P1467","v":0},{"$f":"[1]Personnel!Q1467","v":0},0,{"$f":"[1]Personnel!S1467","v":0},{"$f":"[1]Personnel!S1467","v":0},{"$f":"[1]Personnel!S1467","v":0},{"$f":"[1]Personnel!T1467","v":0},0,{"$f":"[1]Personnel!V1467","v":0},{"$f":"[1]Personnel!W1467","v":0},0,{"$f":"[1]Personnel!Y1467","v":0},{"$f":"[1]Personnel!Z1467","v":0},0,0,0,0,null,null,null,null,null,null,null,null,null,null,null,null,null,null,null,null,null,null,null,null,null,null,null,null,null,{"$f":"[1]Personnel!G1467","v":0}]
[0,{"$f":"IFERROR(INDEX(Settings!$AP$17:$AP$38,MATCH(Personnel!$G1468,Settings!$AQ$17:$AQ$38,0)),0)","v":0},null,null,null,{"$f":"[1]Personnel!F1468","v":0},{"$f":"IFERROR(INDEX((SLevel),MATCH(Personnel!BA1468,SLevel202223,0)),0)","v":0},{"$f":"[1]Personnel!H1468","v":0},{"$f":"[1]Personnel!I1468","v":0},{"$f":"[1]Personnel!J1468","v":0},{"$f":"[1]Personnel!P1468","v":0},{"$f":"[1]Personnel!Q1468","v":0},0,{"$f":"[1]Personnel!S1468","v":0},{"$f":"[1]Personnel!S1468","v":0},{"$f":"[1]Personnel!S1468","v":0},{"$f":"[1]Personnel!T1468","v":0},0,{"$f":"[1]Personnel!V1468","v":0},{"$f":"[1]Personnel!W1468","v":0},0,{"$f":"[1]Personnel!Y1468","v":0},{"$f":"[1]Personnel!Z1468","v":0},0,0,0,0,null,null,null,null,null,null,null,null,null,null,null,null,null,null,null,null,null,null,null,null,null,null,null,null,null,{"$f":"[1]Personnel!G1468","v":0}]
[0,{"$f":"IFERROR(INDEX(Settings!$AP$17:$AP$38,MATCH(Personnel!$G1469,Settings!$AQ$17:$AQ$38,0)),0)","v":0},null,null,null,{"$f":"[1]Personnel!F1469","v":0},{"$f":"IFERROR(INDEX((SLevel),MATCH(Personnel!BA1469,SLevel202223,0)),0)","v":0},{"$f":"[1]Personnel!H1469","v":0},{"$f":"[1]Personnel!I1469","v":0},{"$f":"[1]Personnel!J1469","v":0},{"$f":"[1]Personnel!P1469","v":0},{"$f":"[1]Personnel!Q1469","v":0},0,{"$f":"[1]Personnel!S1469","v":0},{"$f":"[1]Personnel!S1469","v":0},{"$f":"[1]Personnel!S1469","v":0},{"$f":"[1]Personnel!T1469","v":0},0,{"$f":"[1]Personnel!V1469","v":0},{"$f":"[1]Personnel!W1469","v":0},0,{"$f":"[1]Personnel!Y1469","v":0},{"$f":"[1]Personnel!Z1469","v":0},0,0,0,0,null,null,null,null,null,null,null,null,null,null,null,null,null,null,null,null,null,null,null,null,null,null,null,null,null,{"$f":"[1]Personnel!G1469","v":0}]
[0,{"$f":"IFERROR(INDEX(Settings!$AP$17:$AP$38,MATCH(Personnel!$G1470,Settings!$AQ$17:$AQ$38,0)),0)","v":0},null,null,null,{"$f":"[1]Personnel!F1470","v":0},{"$f":"IFERROR(INDEX((SLevel),MATCH(Personnel!BA1470,SLevel202223,0)),0)","v":0},{"$f":"[1]Personnel!H1470","v":0},{"$f":"[1]Personnel!I1470","v":0},{"$f":"[1]Personnel!J1470","v":0},{"$f":"[1]Personnel!P1470","v":0},{"$f":"[1]Personnel!Q1470","v":0},0,{"$f":"[1]Personnel!S1470","v":0},{"$f":"[1]Personnel!S1470","v":0},{"$f":"[1]Personnel!S1470","v":0},{"$f":"[1]Personnel!T1470","v":0},0,{"$f":"[1]Personnel!V1470","v":0},{"$f":"[1]Personnel!W1470","v":0},0,{"$f":"[1]Personnel!Y1470","v":0},{"$f":"[1]Personnel!Z1470","v":0},0,0,0,0,null,null,null,null,null,null,null,null,null,null,null,null,null,null,null,null,null,null,null,null,null,null,null,null,null,{"$f":"[1]Personnel!G1470","v":0}]
[0,{"$f":"IFERROR(INDEX(Settings!$AP$17:$AP$38,MATCH(Personnel!$G1471,Settings!$AQ$17:$AQ$38,0)),0)","v":0},null,null,null,{"$f":"[1]Personnel!F1471","v":0},{"$f":"IFERROR(INDEX((SLevel),MATCH(Personnel!BA1471,SLevel202223,0)),0)","v":0},{"$f":"[1]Personnel!H1471","v":0},{"$f":"[1]Personnel!I1471","v":0},{"$f":"[1]Personnel!J1471","v":0},{"$f":"[1]Personnel!P1471","v":0},{"$f":"[1]Personnel!Q1471","v":0},0,{"$f":"[1]Personnel!S1471","v":0},{"$f":"[1]Personnel!S1471","v":0},{"$f":"[1]Personnel!S1471","v":0},{"$f":"[1]Personnel!T1471","v":0},0,{"$f":"[1]Personnel!V1471","v":0},{"$f":"[1]Personnel!W1471","v":0},0,{"$f":"[1]Personnel!Y1471","v":0},{"$f":"[1]Personnel!Z1471","v":0},0,0,0,0,null,null,null,null,null,null,null,null,null,null,null,null,null,null,null,null,null,null,null,null,null,null,null,null,null,{"$f":"[1]Personnel!G1471","v":0}]
[0,{"$f":"IFERROR(INDEX(Settings!$AP$17:$AP$38,MATCH(Personnel!$G1472,Settings!$AQ$17:$AQ$38,0)),0)","v":0},null,null,null,{"$f":"[1]Personnel!F1472","v":0},{"$f":"IFERROR(INDEX((SLevel),MATCH(Personnel!BA1472,SLevel202223,0)),0)","v":0},{"$f":"[1]Personnel!H1472","v":0},{"$f":"[1]Personnel!I1472","v":0},{"$f":"[1]Personnel!J1472","v":0},{"$f":"[1]Personnel!P1472","v":0},{"$f":"[1]Personnel!Q1472","v":0},0,{"$f":"[1]Personnel!S1472","v":0},{"$f":"[1]Personnel!S1472","v":0},{"$f":"[1]Personnel!S1472","v":0},{"$f":"[1]Personnel!T1472","v":0},0,{"$f":"[1]Personnel!V1472","v":0},{"$f":"[1]Personnel!W1472","v":0},0,{"$f":"[1]Personnel!Y1472","v":0},{"$f":"[1]Personnel!Z1472","v":0},0,0,0,0,null,null,null,null,null,null,null,null,null,null,null,null,null,null,null,null,null,null,null,null,null,null,null,null,null,{"$f":"[1]Personnel!G1472","v":0}]
[0,{"$f":"IFERROR(INDEX(Settings!$AP$17:$AP$38,MATCH(Personnel!$G1473,Settings!$AQ$17:$AQ$38,0)),0)","v":0},null,null,null,{"$f":"[1]Personnel!F1473","v":0},{"$f":"IFERROR(INDEX((SLevel),MATCH(Personnel!BA1473,SLevel202223,0)),0)","v":0},{"$f":"[1]Personnel!H1473","v":0},{"$f":"[1]Personnel!I1473","v":0},{"$f":"[1]Personnel!J1473","v":0},{"$f":"[1]Personnel!P1473","v":0},{"$f":"[1]Personnel!Q1473","v":0},0,{"$f":"[1]Personnel!S1473","v":0},{"$f":"[1]Personnel!S1473","v":0},{"$f":"[1]Personnel!S1473","v":0},{"$f":"[1]Personnel!T1473","v":0},0,{"$f":"[1]Personnel!V1473","v":0},{"$f":"[1]Personnel!W1473","v":0},0,{"$f":"[1]Personnel!Y1473","v":0},{"$f":"[1]Personnel!Z1473","v":0},0,0,0,0,null,null,null,null,null,null,null,null,null,null,null,null,null,null,null,null,null,null,null,null,null,null,null,null,null,{"$f":"[1]Personnel!G1473","v":0}]
[0,{"$f":"IFERROR(INDEX(Settings!$AP$17:$AP$38,MATCH(Personnel!$G1474,Settings!$AQ$17:$AQ$38,0)),0)","v":0},null,null,null,{"$f":"[1]Personnel!F1474","v":0},{"$f":"IFERROR(INDEX((SLevel),MATCH(Personnel!BA1474,SLevel202223,0)),0)","v":0},{"$f":"[1]Personnel!H1474","v":0},{"$f":"[1]Personnel!I1474","v":0},{"$f":"[1]Personnel!J1474","v":0},{"$f":"[1]Personnel!P1474","v":0},{"$f":"[1]Personnel!Q1474","v":0},0,{"$f":"[1]Personnel!S1474","v":0},{"$f":"[1]Personnel!S1474","v":0},{"$f":"[1]Personnel!S1474","v":0},{"$f":"[1]Personnel!T1474","v":0},0,{"$f":"[1]Personnel!V1474","v":0},{"$f":"[1]Personnel!W1474","v":0},0,{"$f":"[1]Personnel!Y1474","v":0},{"$f":"[1]Personnel!Z1474","v":0},0,0,0,0,null,null,null,null,null,null,null,null,null,null,null,null,null,null,null,null,null,null,null,null,null,null,null,null,null,{"$f":"[1]Personnel!G1474","v":0}]
[0,{"$f":"IFERROR(INDEX(Settings!$AP$17:$AP$38,MATCH(Personnel!$G1475,Settings!$AQ$17:$AQ$38,0)),0)","v":0},null,null,null,{"$f":"[1]Personnel!F1475","v":0},{"$f":"IFERROR(INDEX((SLevel),MATCH(Personnel!BA1475,SLevel202223,0)),0)","v":0},{"$f":"[1]Personnel!H1475","v":0},{"$f":"[1]Personnel!I1475","v":0},{"$f":"[1]Personnel!J1475","v":0},{"$f":"[1]Personnel!P1475","v":0},{"$f":"[1]Personnel!Q1475","v":0},0,{"$f":"[1]Personnel!S1475","v":0},{"$f":"[1]Personnel!S1475","v":0},{"$f":"[1]Personnel!S1475","v":0},{"$f":"[1]Personnel!T1475","v":0},0,{"$f":"[1]Personnel!V1475","v":0},{"$f":"[1]Personnel!W1475","v":0},0,{"$f":"[1]Personnel!Y1475","v":0},{"$f":"[1]Personnel!Z1475","v":0},0,0,0,0,null,null,null,null,null,null,null,null,null,null,null,null,null,null,null,null,null,null,null,null,null,null,null,null,null,{"$f":"[1]Personnel!G1475","v":0}]
[0,{"$f":"IFERROR(INDEX(Settings!$AP$17:$AP$38,MATCH(Personnel!$G1476,Settings!$AQ$17:$AQ$38,0)),0)","v":0},null,null,null,{"$f":"[1]Personnel!F1476","v":0},{"$f":"IFERROR(INDEX((SLevel),MATCH(Personnel!BA1476,SLevel202223,0)),0)","v":0},{"$f":"[1]Personnel!H1476","v":0},{"$f":"[1]Personnel!I1476","v":0},{"$f":"[1]Personnel!J1476","v":0},{"$f":"[1]Personnel!P1476","v":0},{"$f":"[1]Personnel!Q1476","v":0},0,{"$f":"[1]Personnel!S1476","v":0},{"$f":"[1]Personnel!S1476","v":0},{"$f":"[1]Personnel!S1476","v":0},{"$f":"[1]Personnel!T1476","v":0},0,{"$f":"[1]Personnel!V1476","v":0},{"$f":"[1]Personnel!W1476","v":0},0,{"$f":"[1]Personnel!Y1476","v":0},{"$f":"[1]Personnel!Z1476","v":0},0,0,0,0,null,null,null,null,null,null,null,null,null,null,null,null,null,null,null,null,null,null,null,null,null,null,null,null,null,{"$f":"[1]Personnel!G1476","v":0}]
[0,{"$f":"IFERROR(INDEX(Settings!$AP$17:$AP$38,MATCH(Personnel!$G1477,Settings!$AQ$17:$AQ$38,0)),0)","v":0},null,null,null,{"$f":"[1]Personnel!F1477","v":0},{"$f":"IFERROR(INDEX((SLevel),MATCH(Personnel!BA1477,SLevel202223,0)),0)","v":0},{"$f":"[1]Personnel!H1477","v":0},{"$f":"[1]Personnel!I1477","v":0},{"$f":"[1]Personnel!J1477","v":0},{"$f":"[1]Personnel!P1477","v":0},{"$f":"[1]Personnel!Q1477","v":0},0,{"$f":"[1]Personnel!S1477","v":0},{"$f":"[1]Personnel!S1477","v":0},{"$f":"[1]Personnel!S1477","v":0},{"$f":"[1]Personnel!T1477","v":0},0,{"$f":"[1]Personnel!V1477","v":0},{"$f":"[1]Personnel!W1477","v":0},0,{"$f":"[1]Personnel!Y1477","v":0},{"$f":"[1]Personnel!Z1477","v":0},0,0,0,0,null,null,null,null,null,null,null,null,null,null,null,null,null,null,null,null,null,null,null,null,null,null,null,null,null,{"$f":"[1]Personnel!G1477","v":0}]
[0,{"$f":"IFERROR(INDEX(Settings!$AP$17:$AP$38,MATCH(Personnel!$G1478,Settings!$AQ$17:$AQ$38,0)),0)","v":0},null,null,null,{"$f":"[1]Personnel!F1478","v":0},{"$f":"IFERROR(INDEX((SLevel),MATCH(Personnel!BA1478,SLevel202223,0)),0)","v":0},{"$f":"[1]Personnel!H1478","v":0},{"$f":"[1]Personnel!I1478","v":0},{"$f":"[1]Personnel!J1478","v":0},{"$f":"[1]Personnel!P1478","v":0},{"$f":"[1]Personnel!Q1478","v":0},0,{"$f":"[1]Personnel!S1478","v":0},{"$f":"[1]Personnel!S1478","v":0},{"$f":"[1]Personnel!S1478","v":0},{"$f":"[1]Personnel!T1478","v":0},0,{"$f":"[1]Personnel!V1478","v":0},{"$f":"[1]Personnel!W1478","v":0},0,{"$f":"[1]Personnel!Y1478","v":0},{"$f":"[1]Personnel!Z1478","v":0},0,0,0,0,null,null,null,null,null,null,null,null,null,null,null,null,null,null,null,null,null,null,null,null,null,null,null,null,null,{"$f":"[1]Personnel!G1478","v":0}]
[0,{"$f":"IFERROR(INDEX(Settings!$AP$17:$AP$38,MATCH(Personnel!$G1479,Settings!$AQ$17:$AQ$38,0)),0)","v":0},null,null,null,{"$f":"[1]Personnel!F1479","v":0},{"$f":"IFERROR(INDEX((SLevel),MATCH(Personnel!BA1479,SLevel202223,0)),0)","v":0},{"$f":"[1]Personnel!H1479","v":0},{"$f":"[1]Personnel!I1479","v":0},{"$f":"[1]Personnel!J1479","v":0},{"$f":"[1]Personnel!P1479","v":0},{"$f":"[1]Personnel!Q1479","v":0},0,{"$f":"[1]Personnel!S1479","v":0},{"$f":"[1]Personnel!S1479","v":0},{"$f":"[1]Personnel!S1479","v":0},{"$f":"[1]Personnel!T1479","v":0},0,{"$f":"[1]Personnel!V1479","v":0},{"$f":"[1]Personnel!W1479","v":0},0,{"$f":"[1]Personnel!Y1479","v":0},{"$f":"[1]Personnel!Z1479","v":0},0,0,0,0,null,null,null,null,null,null,null,null,null,null,null,null,null,null,null,null,null,null,null,null,null,null,null,null,null,{"$f":"[1]Personnel!G1479","v":0}]
[0,{"$f":"IFERROR(INDEX(Settings!$AP$17:$AP$38,MATCH(Personnel!$G1480,Settings!$AQ$17:$AQ$38,0)),0)","v":0},null,null,null,{"$f":"[1]Personnel!F1480","v":0},{"$f":"IFERROR(INDEX((SLevel),MATCH(Personnel!BA1480,SLevel202223,0)),0)","v":0},{"$f":"[1]Personnel!H1480","v":0},{"$f":"[1]Personnel!I1480","v":0},{"$f":"[1]Personnel!J1480","v":0},{"$f":"[1]Personnel!P1480","v":0},{"$f":"[1]Personnel!Q1480","v":0},0,{"$f":"[1]Personnel!S1480","v":0},{"$f":"[1]Personnel!S1480","v":0},{"$f":"[1]Personnel!S1480","v":0},{"$f":"[1]Personnel!T1480","v":0},0,{"$f":"[1]Personnel!V1480","v":0},{"$f":"[1]Personnel!W1480","v":0},0,{"$f":"[1]Personnel!Y1480","v":0},{"$f":"[1]Personnel!Z1480","v":0},0,0,0,0,null,null,null,null,null,null,null,null,null,null,null,null,null,null,null,null,null,null,null,null,null,null,null,null,null,{"$f":"[1]Personnel!G1480","v":0}]
[0,{"$f":"IFERROR(INDEX(Settings!$AP$17:$AP$38,MATCH(Personnel!$G1481,Settings!$AQ$17:$AQ$38,0)),0)","v":0},null,null,null,{"$f":"[1]Personnel!F1481","v":0},{"$f":"IFERROR(INDEX((SLevel),MATCH(Personnel!BA1481,SLevel202223,0)),0)","v":0},{"$f":"[1]Personnel!H1481","v":0},{"$f":"[1]Personnel!I1481","v":0},{"$f":"[1]Personnel!J1481","v":0},{"$f":"[1]Personnel!P1481","v":0},{"$f":"[1]Personnel!Q1481","v":0},0,{"$f":"[1]Personnel!S1481","v":0},{"$f":"[1]Personnel!S1481","v":0},{"$f":"[1]Personnel!S1481","v":0},{"$f":"[1]Personnel!T1481","v":0},0,{"$f":"[1]Personnel!V1481","v":0},{"$f":"[1]Personnel!W1481","v":0},0,{"$f":"[1]Personnel!Y1481","v":0},{"$f":"[1]Personnel!Z1481","v":0},0,0,0,0,null,null,null,null,null,null,null,null,null,null,null,null,null,null,null,null,null,null,null,null,null,null,null,null,null,{"$f":"[1]Personnel!G1481","v":0}]
[0,{"$f":"IFERROR(INDEX(Settings!$AP$17:$AP$38,MATCH(Personnel!$G1482,Settings!$AQ$17:$AQ$38,0)),0)","v":0},null,null,null,{"$f":"[1]Personnel!F1482","v":0},{"$f":"IFERROR(INDEX((SLevel),MATCH(Personnel!BA1482,SLevel202223,0)),0)","v":0},{"$f":"[1]Personnel!H1482","v":0},{"$f":"[1]Personnel!I1482","v":0},{"$f":"[1]Personnel!J1482","v":0},{"$f":"[1]Personnel!P1482","v":0},{"$f":"[1]Personnel!Q1482","v":0},0,{"$f":"[1]Personnel!S1482","v":0},{"$f":"[1]Personnel!S1482","v":0},{"$f":"[1]Personnel!S1482","v":0},{"$f":"[1]Personnel!T1482","v":0},0,{"$f":"[1]Personnel!V1482","v":0},{"$f":"[1]Personnel!W1482","v":0},0,{"$f":"[1]Personnel!Y1482","v":0},{"$f":"[1]Personnel!Z1482","v":0},0,0,0,0,null,null,null,null,null,null,null,null,null,null,null,null,null,null,null,null,null,null,null,null,null,null,null,null,null,{"$f":"[1]Personnel!G1482","v":0}]
[0,{"$f":"IFERROR(INDEX(Settings!$AP$17:$AP$38,MATCH(Personnel!$G1483,Settings!$AQ$17:$AQ$38,0)),0)","v":0},null,null,null,{"$f":"[1]Personnel!F1483","v":0},{"$f":"IFERROR(INDEX((SLevel),MATCH(Personnel!BA1483,SLevel202223,0)),0)","v":0},{"$f":"[1]Personnel!H1483","v":0},{"$f":"[1]Personnel!I1483","v":0},{"$f":"[1]Personnel!J1483","v":0},{"$f":"[1]Personnel!P1483","v":0},{"$f":"[1]Personnel!Q1483","v":0},0,{"$f":"[1]Personnel!S1483","v":0},{"$f":"[1]Personnel!S1483","v":0},{"$f":"[1]Personnel!S1483","v":0},{"$f":"[1]Personnel!T1483","v":0},0,{"$f":"[1]Personnel!V1483","v":0},{"$f":"[1]Personnel!W1483","v":0},0,{"$f":"[1]Personnel!Y1483","v":0},{"$f":"[1]Personnel!Z1483","v":0},0,0,0,0,null,null,null,null,null,null,null,null,null,null,null,null,null,null,null,null,null,null,null,null,null,null,null,null,null,{"$f":"[1]Personnel!G1483","v":0}]
[{"$f":"IF(SUM(K1484:AA1484)>0,1,0)","v":0},{"$f":"IFERROR(INDEX(Settings!$AP$17:$AP$38,MATCH(Personnel!$G1484,Settings!$AQ$17:$AQ$38,0)),0)","v":0},null,null,null,{"$f":"[1]Personnel!F1484","v":0},{"$f":"IFERROR(INDEX((SLevel),MATCH(Personnel!BA1484,SLevel202223,0)),0)","v":0},{"$f":"[1]Personnel!H1484","v":0},{"$f":"[1]Personnel!I1484","v":0},{"$f":"[1]Personnel!J1484","v":0},{"$f":"[1]Personnel!P1484","v":0},{"$f":"[1]Personnel!Q1484","v":0},0,{"$f":"[1]Personnel!S1484","v":0},{"$f":"[1]Personnel!S1484","v":0},{"$f":"[1]Personnel!S1484","v":0},{"$f":"[1]Personnel!T1484","v":0},0,{"$f":"[1]Personnel!V1484","v":0},{"$f":"[1]Personnel!W1484","v":0},0,{"$f":"[1]Personnel!Y1484","v":0},{"$f":"[1]Personnel!Z1484","v":0},0,0,0,0,null,null,null,null,null,null,null,null,null,null,null,null,null,null,null,null,null,null,null,null,null,null,null,null,null,{"$f":"[1]Personnel!G1484","v":0}]
[0,{"$f":"IFERROR(INDEX(Settings!$AP$17:$AP$38,MATCH(Personnel!$G1485,Settings!$AQ$17:$AQ$38,0)),0)","v":0},null,null,null,{"$f":"[1]Personnel!F1485","v":0},{"$f":"IFERROR(INDEX((SLevel),MATCH(Personnel!BA1485,SLevel202223,0)),0)","v":0},{"$f":"[1]Personnel!H1485","v":0},{"$f":"[1]Personnel!I1485","v":0},{"$f":"[1]Personnel!J1485","v":0},{"$f":"[1]Personnel!P1485","v":0},{"$f":"[1]Personnel!Q1485","v":0},{"$f":"ROUND(IF(ISERROR(L1485/K1485),0,(L1485/K1485)),0)","v":0},{"$f":"[1]Personnel!S1485","v":0},{"$f":"[1]Personnel!S1485","v":0},{"$f":"[1]Personnel!S1485","v":0},{"$f":"[1]Personnel!T1485","v":0},{"$f":"ROUND(IF(ISERROR(Q1485/P1485),0,(Q1485/P1485)),0)","v":0},{"$f":"[1]Personnel!V1485","v":0},{"$f":"[1]Personnel!W1485","v":0},{"$f":"ROUND(IF(ISERROR(T1485/S1485),0,(T1485/S1485)),0)","v":0},{"$f":"[1]Personnel!Y1485","v":0},{"$f":"[1]Personnel!Z1485","v":0},{"$f":"ROUND(IF(ISERROR(W1485/V1485),0,(W1485/V1485)),0)","v":0},0,0,{"$f":"ROUND(IF(ISERROR(Z1485/Y1485),0,(Z1485/Y1485)),0)","v":0},null,null,null,null,null,null,null,null,null,null,null,null,null,null,null,null,null,null,null,null,null,null,null,null,null,{"$f":"[1]Personnel!G1485","v":0}]
[0,{"$f":"IFERROR(INDEX(Settings!$AP$17:$AP$38,MATCH(Personnel!$G1486,Settings!$AQ$17:$AQ$38,0)),0)","v":0},null,null,null,{"$f":"[1]Personnel!F1486","v":0},{"$f":"IFERROR(INDEX((SLevel),MATCH(Personnel!BA1486,SLevel202223,0)),0)","v":0},{"$f":"[1]Personnel!H1486","v":0},{"$f":"[1]Personnel!I1486","v":0},{"$f":"[1]Personnel!J1486","v":0},{"$f":"[1]Personnel!P1486","v":0},{"$f":"[1]Personnel!Q1486","v":0},0,{"$f":"[1]Personnel!S1486","v":0},{"$f":"[1]Personnel!S1486","v":0},{"$f":"[1]Personnel!S1486","v":0},{"$f":"[1]Personnel!T1486","v":0},0,{"$f":"[1]Personnel!V1486","v":0},{"$f":"[1]Personnel!W1486","v":0},0,{"$f":"[1]Personnel!Y1486","v":0},{"$f":"[1]Personnel!Z1486","v":0},0,0,0,0,null,null,null,null,null,null,null,null,null,null,null,null,null,null,null,null,null,null,null,null,null,null,null,null,null,{"$f":"[1]Personnel!G1486","v":0}]
[0,{"$f":"IFERROR(INDEX(Settings!$AP$17:$AP$38,MATCH(Personnel!$G1487,Settings!$AQ$17:$AQ$38,0)),0)","v":0},null,null,null,{"$f":"[1]Personnel!F1487","v":0},{"$f":"IFERROR(INDEX((SLevel),MATCH(Personnel!BA1487,SLevel202223,0)),0)","v":0},{"$f":"[1]Personnel!H1487","v":0},{"$f":"[1]Personnel!I1487","v":0},{"$f":"[1]Personnel!J1487","v":0},{"$f":"[1]Personnel!P1487","v":0},{"$f":"[1]Personnel!Q1487","v":0},0,{"$f":"[1]Personnel!S1487","v":0},{"$f":"[1]Personnel!S1487","v":0},{"$f":"[1]Personnel!S1487","v":0},{"$f":"[1]Personnel!T1487","v":0},0,{"$f":"[1]Personnel!V1487","v":0},{"$f":"[1]Personnel!W1487","v":0},0,{"$f":"[1]Personnel!Y1487","v":0},{"$f":"[1]Personnel!Z1487","v":0},0,0,0,0,null,null,null,null,null,null,null,null,null,null,null,null,null,null,null,null,null,null,null,null,null,null,null,null,null,{"$f":"[1]Personnel!G1487","v":0}]
[0,{"$f":"IFERROR(INDEX(Settings!$AP$17:$AP$38,MATCH(Personnel!$G1488,Settings!$AQ$17:$AQ$38,0)),0)","v":0},null,null,null,{"$f":"[1]Personnel!F1488","v":0},{"$f":"IFERROR(INDEX((SLevel),MATCH(Personnel!BA1488,SLevel202223,0)),0)","v":0},{"$f":"[1]Personnel!H1488","v":0},{"$f":"[1]Personnel!I1488","v":0},{"$f":"[1]Personnel!J1488","v":0},{"$f":"[1]Personnel!P1488","v":0},{"$f":"[1]Personnel!Q1488","v":0},0,{"$f":"[1]Personnel!S1488","v":0},{"$f":"[1]Personnel!S1488","v":0},{"$f":"[1]Personnel!S1488","v":0},{"$f":"[1]Personnel!T1488","v":0},0,{"$f":"[1]Personnel!V1488","v":0},{"$f":"[1]Personnel!W1488","v":0},0,{"$f":"[1]Personnel!Y1488","v":0},{"$f":"[1]Personnel!Z1488","v":0},0,0,0,0,null,null,null,null,null,null,null,null,null,null,null,null,null,null,null,null,null,null,null,null,null,null,null,null,null,{"$f":"[1]Personnel!G1488","v":0}]
[0,{"$f":"IFERROR(INDEX(Settings!$AP$17:$AP$38,MATCH(Personnel!$G1489,Settings!$AQ$17:$AQ$38,0)),0)","v":0},null,null,null,{"$f":"[1]Personnel!F1489","v":0},{"$f":"IFERROR(INDEX((SLevel),MATCH(Personnel!BA1489,SLevel202223,0)),0)","v":0},{"$f":"[1]Personnel!H1489","v":0},{"$f":"[1]Personnel!I1489","v":0},{"$f":"[1]Personnel!J1489","v":0},{"$f":"[1]Personnel!P1489","v":0},{"$f":"[1]Personnel!Q1489","v":0},0,{"$f":"[1]Personnel!S1489","v":0},{"$f":"[1]Personnel!S1489","v":0},{"$f":"[1]Personnel!S1489","v":0},{"$f":"[1]Personnel!T1489","v":0},0,{"$f":"[1]Personnel!V1489","v":0},{"$f":"[1]Personnel!W1489","v":0},0,{"$f":"[1]Personnel!Y1489","v":0},{"$f":"[1]Personnel!Z1489","v":0},0,0,0,0,null,null,null,null,null,null,null,null,null,null,null,null,null,null,null,null,null,null,null,null,null,null,null,null,null,{"$f":"[1]Personnel!G1489","v":0}]
[0,{"$f":"IFERROR(INDEX(Settings!$AP$17:$AP$38,MATCH(Personnel!$G1490,Settings!$AQ$17:$AQ$38,0)),0)","v":0},null,null,null,{"$f":"[1]Personnel!F1490","v":0},{"$f":"IFERROR(INDEX((SLevel),MATCH(Personnel!BA1490,SLevel202223,0)),0)","v":0},{"$f":"[1]Personnel!H1490","v":0},{"$f":"[1]Personnel!I1490","v":0},{"$f":"[1]Personnel!J1490","v":0},{"$f":"[1]Personnel!P1490","v":0},{"$f":"[1]Personnel!Q1490","v":0},0,{"$f":"[1]Personnel!S1490","v":0},{"$f":"[1]Personnel!S1490","v":0},{"$f":"[1]Personnel!S1490","v":0},{"$f":"[1]Personnel!T1490","v":0},0,{"$f":"[1]Personnel!V1490","v":0},{"$f":"[1]Personnel!W1490","v":0},0,{"$f":"[1]Personnel!Y1490","v":0},{"$f":"[1]Personnel!Z1490","v":0},0,0,0,0,null,null,null,null,null,null,null,null,null,null,null,null,null,null,null,null,null,null,null,null,null,null,null,null,null,{"$f":"[1]Personnel!G1490","v":0}]
[0,{"$f":"IFERROR(INDEX(Settings!$AP$17:$AP$38,MATCH(Personnel!$G1491,Settings!$AQ$17:$AQ$38,0)),0)","v":0},null,null,null,{"$f":"[1]Personnel!F1491","v":0},{"$f":"IFERROR(INDEX((SLevel),MATCH(Personnel!BA1491,SLevel202223,0)),0)","v":0},{"$f":"[1]Personnel!H1491","v":0},{"$f":"[1]Personnel!I1491","v":0},{"$f":"[1]Personnel!J1491","v":0},{"$f":"[1]Personnel!P1491","v":0},{"$f":"[1]Personnel!Q1491","v":0},0,{"$f":"[1]Personnel!S1491","v":0},{"$f":"[1]Personnel!S1491","v":0},{"$f":"[1]Personnel!S1491","v":0},{"$f":"[1]Personnel!T1491","v":0},0,{"$f":"[1]Personnel!V1491","v":0},{"$f":"[1]Personnel!W1491","v":0},0,{"$f":"[1]Personnel!Y1491","v":0},{"$f":"[1]Personnel!Z1491","v":0},0,0,0,0,null,null,null,null,null,null,null,null,null,null,null,null,null,null,null,null,null,null,null,null,null,null,null,null,null,{"$f":"[1]Personnel!G1491","v":0}]
[0,{"$f":"IFERROR(INDEX(Settings!$AP$17:$AP$38,MATCH(Personnel!$G1492,Settings!$AQ$17:$AQ$38,0)),0)","v":0},null,null,null,{"$f":"[1]Personnel!F1492","v":0},{"$f":"IFERROR(INDEX((SLevel),MATCH(Personnel!BA1492,SLevel202223,0)),0)","v":0},{"$f":"[1]Personnel!H1492","v":0},{"$f":"[1]Personnel!I1492","v":0},{"$f":"[1]Personnel!J1492","v":0},{"$f":"[1]Personnel!P1492","v":0},{"$f":"[1]Personnel!Q1492","v":0},0,{"$f":"[1]Personnel!S1492","v":0},{"$f":"[1]Personnel!S1492","v":0},{"$f":"[1]Personnel!S1492","v":0},{"$f":"[1]Personnel!T1492","v":0},0,{"$f":"[1]Personnel!V1492","v":0},{"$f":"[1]Personnel!W1492","v":0},0,{"$f":"[1]Personnel!Y1492","v":0},{"$f":"[1]Personnel!Z1492","v":0},0,0,0,0,null,null,null,null,null,null,null,null,null,null,null,null,null,null,null,null,null,null,null,null,null,null,null,null,null,{"$f":"[1]Personnel!G1492","v":0}]
[0,{"$f":"IFERROR(INDEX(Settings!$AP$17:$AP$38,MATCH(Personnel!$G1493,Settings!$AQ$17:$AQ$38,0)),0)","v":0},null,null,null,{"$f":"[1]Personnel!F1493","v":0},{"$f":"IFERROR(INDEX((SLevel),MATCH(Personnel!BA1493,SLevel202223,0)),0)","v":0},{"$f":"[1]Personnel!H1493","v":0},{"$f":"[1]Personnel!I1493","v":0},{"$f":"[1]Personnel!J1493","v":0},{"$f":"[1]Personnel!P1493","v":0},{"$f":"[1]Personnel!Q1493","v":0},0,{"$f":"[1]Personnel!S1493","v":0},{"$f":"[1]Personnel!S1493","v":0},{"$f":"[1]Personnel!S1493","v":0},{"$f":"[1]Personnel!T1493","v":0},0,{"$f":"[1]Personnel!V1493","v":0},{"$f":"[1]Personnel!W1493","v":0},0,{"$f":"[1]Personnel!Y1493","v":0},{"$f":"[1]Personnel!Z1493","v":0},0,0,0,0,null,null,null,null,null,null,null,null,null,null,null,null,null,null,null,null,null,null,null,null,null,null,null,null,null,{"$f":"[1]Personnel!G1493","v":0}]
[0,{"$f":"IFERROR(INDEX(Settings!$AP$17:$AP$38,MATCH(Personnel!$G1494,Settings!$AQ$17:$AQ$38,0)),0)","v":0},null,null,null,{"$f":"[1]Personnel!F1494","v":0},{"$f":"IFERROR(INDEX((SLevel),MATCH(Personnel!BA1494,SLevel202223,0)),0)","v":0},{"$f":"[1]Personnel!H1494","v":0},{"$f":"[1]Personnel!I1494","v":0},{"$f":"[1]Personnel!J1494","v":0},{"$f":"[1]Personnel!P1494","v":0},{"$f":"[1]Personnel!Q1494","v":0},0,{"$f":"[1]Personnel!S1494","v":0},{"$f":"[1]Personnel!S1494","v":0},{"$f":"[1]Personnel!S1494","v":0},{"$f":"[1]Personnel!T1494","v":0},0,{"$f":"[1]Personnel!V1494","v":0},{"$f":"[1]Personnel!W1494","v":0},0,{"$f":"[1]Personnel!Y1494","v":0},{"$f":"[1]Personnel!Z1494","v":0},0,0,0,0,null,null,null,null,null,null,null,null,null,null,null,null,null,null,null,null,null,null,null,null,null,null,null,null,null,{"$f":"[1]Personnel!G1494","v":0}]
[0,{"$f":"IFERROR(INDEX(Settings!$AP$17:$AP$38,MATCH(Personnel!$G1495,Settings!$AQ$17:$AQ$38,0)),0)","v":0},null,null,null,{"$f":"[1]Personnel!F1495","v":0},{"$f":"IFERROR(INDEX((SLevel),MATCH(Personnel!BA1495,SLevel202223,0)),0)","v":0},{"$f":"[1]Personnel!H1495","v":0},{"$f":"[1]Personnel!I1495","v":0},{"$f":"[1]Personnel!J1495","v":0},{"$f":"[1]Personnel!P1495","v":0},{"$f":"[1]Personnel!Q1495","v":0},0,{"$f":"[1]Personnel!S1495","v":0},{"$f":"[1]Personnel!S1495","v":0},{"$f":"[1]Personnel!S1495","v":0},{"$f":"[1]Personnel!T1495","v":0},0,{"$f":"[1]Personnel!V1495","v":0},{"$f":"[1]Personnel!W1495","v":0},0,{"$f":"[1]Personnel!Y1495","v":0},{"$f":"[1]Personnel!Z1495","v":0},0,0,0,0,null,null,null,null,null,null,null,null,null,null,null,null,null,null,null,null,null,null,null,null,null,null,null,null,null,{"$f":"[1]Personnel!G1495","v":0}]
[0,{"$f":"IFERROR(INDEX(Settings!$AP$17:$AP$38,MATCH(Personnel!$G1496,Settings!$AQ$17:$AQ$38,0)),0)","v":0},null,null,null,{"$f":"[1]Personnel!F1496","v":0},{"$f":"IFERROR(INDEX((SLevel),MATCH(Personnel!BA1496,SLevel202223,0)),0)","v":0},{"$f":"[1]Personnel!H1496","v":0},{"$f":"[1]Personnel!I1496","v":0},{"$f":"[1]Personnel!J1496","v":0},{"$f":"[1]Personnel!P1496","v":0},{"$f":"[1]Personnel!Q1496","v":0},0,{"$f":"[1]Personnel!S1496","v":0},{"$f":"[1]Personnel!S1496","v":0},{"$f":"[1]Personnel!S1496","v":0},{"$f":"[1]Personnel!T1496","v":0},0,{"$f":"[1]Personnel!V1496","v":0},{"$f":"[1]Personnel!W1496","v":0},0,{"$f":"[1]Personnel!Y1496","v":0},{"$f":"[1]Personnel!Z1496","v":0},0,0,0,0,null,null,null,null,null,null,null,null,null,null,null,null,null,null,null,null,null,null,null,null,null,null,null,null,null,{"$f":"[1]Personnel!G1496","v":0}]
[0,{"$f":"IFERROR(INDEX(Settings!$AP$17:$AP$38,MATCH(Personnel!$G1497,Settings!$AQ$17:$AQ$38,0)),0)","v":0},null,null,null,{"$f":"[1]Personnel!F1497","v":0},{"$f":"IFERROR(INDEX((SLevel),MATCH(Personnel!BA1497,SLevel202223,0)),0)","v":0},{"$f":"[1]Personnel!H1497","v":0},{"$f":"[1]Personnel!I1497","v":0},{"$f":"[1]Personnel!J1497","v":0},{"$f":"[1]Personnel!P1497","v":0},{"$f":"[1]Personnel!Q1497","v":0},0,{"$f":"[1]Personnel!S1497","v":0},{"$f":"[1]Personnel!S1497","v":0},{"$f":"[1]Personnel!S1497","v":0},{"$f":"[1]Personnel!T1497","v":0},0,{"$f":"[1]Personnel!V1497","v":0},{"$f":"[1]Personnel!W1497","v":0},0,{"$f":"[1]Personnel!Y1497","v":0},{"$f":"[1]Personnel!Z1497","v":0},0,0,0,0,null,null,null,null,null,null,null,null,null,null,null,null,null,null,null,null,null,null,null,null,null,null,null,null,null,{"$f":"[1]Personnel!G1497","v":0}]
[0,{"$f":"IFERROR(INDEX(Settings!$AP$17:$AP$38,MATCH(Personnel!$G1498,Settings!$AQ$17:$AQ$38,0)),0)","v":0},null,null,null,{"$f":"[1]Personnel!F1498","v":0},{"$f":"IFERROR(INDEX((SLevel),MATCH(Personnel!BA1498,SLevel202223,0)),0)","v":0},{"$f":"[1]Personnel!H1498","v":0},{"$f":"[1]Personnel!I1498","v":0},{"$f":"[1]Personnel!J1498","v":0},{"$f":"[1]Personnel!P1498","v":0},{"$f":"[1]Personnel!Q1498","v":0},0,{"$f":"[1]Personnel!S1498","v":0},{"$f":"[1]Personnel!S1498","v":0},{"$f":"[1]Personnel!S1498","v":0},{"$f":"[1]Personnel!T1498","v":0},0,{"$f":"[1]Personnel!V1498","v":0},{"$f":"[1]Personnel!W1498","v":0},0,{"$f":"[1]Personnel!Y1498","v":0},{"$f":"[1]Personnel!Z1498","v":0},0,0,0,0,null,null,null,null,null,null,null,null,null,null,null,null,null,null,null,null,null,null,null,null,null,null,null,null,null,{"$f":"[1]Personnel!G1498","v":0}]
[0,{"$f":"IFERROR(INDEX(Settings!$AP$17:$AP$38,MATCH(Personnel!$G1499,Settings!$AQ$17:$AQ$38,0)),0)","v":0},null,null,null,{"$f":"[1]Personnel!F1499","v":0},{"$f":"IFERROR(INDEX((SLevel),MATCH(Personnel!BA1499,SLevel202223,0)),0)","v":0},{"$f":"[1]Personnel!H1499","v":0},{"$f":"[1]Personnel!I1499","v":0},{"$f":"[1]Personnel!J1499","v":0},{"$f":"[1]Personnel!P1499","v":0},{"$f":"[1]Personnel!Q1499","v":0},0,{"$f":"[1]Personnel!S1499","v":0},{"$f":"[1]Personnel!S1499","v":0},{"$f":"[1]Personnel!S1499","v":0},{"$f":"[1]Personnel!T1499","v":0},0,{"$f":"[1]Personnel!V1499","v":0},{"$f":"[1]Personnel!W1499","v":0},0,{"$f":"[1]Personnel!Y1499","v":0},{"$f":"[1]Personnel!Z1499","v":0},0,0,0,0,null,null,null,null,null,null,null,null,null,null,null,null,null,null,null,null,null,null,null,null,null,null,null,null,null,{"$f":"[1]Personnel!G1499","v":0}]
[1,1,null,null,null,"TOTAL",null,null,null,null,{"$f":"SUMIF($J$11:$J$1499,\"Guaranteed package\",K$11:K$1499)","v":12823},{"$f":"SUM(L11:L1499)","v":9643694.5542599969},{"$f":"IFERROR(L1500/K1500,0)","v":752.06227515090052},{"$f":"SUMIF($J$11:$J$1499,\"Guaranteed package\",N$11:N$1499)","v":16319},{"$f":"SUMIF($J$11:$J$1499,\"Guaranteed package\",O$11:O$1499)","v":16319},{"$f":"SUMIF($J$11:$J$1499,\"Guaranteed package\",P$11:P$1499)","v":16319},{"$f":"SUM(Q11:Q1499)","v":10339689.839833217},{"$f":"IFERROR(Q1500/P1500,0)","v":633.59824988254286},{"$f":"SUMIF($J$11:$J$1499,\"Guaranteed package\",S$11:S$1499)","v":14320},{"$f":"SUM(T11:T1499)","v":10333656.880649207},{"$f":"IFERROR(T1500/S1500,0)","v":721.62408384421838},{"$f":"SUMIF($J$11:$J$1499,\"Guaranteed package\",V$11:V$1499)","v":14446},{"$f":"SUM(W11:W1499)","v":10800173.380714467},{"$f":"IFERROR(W1500/V1500,0)","v":747.62379764048637},{"$f":"SUMIF($J$11:$J$1499,\"Guaranteed package\",Y$11:Y$1499)","v":0},{"$f":"SUM(Z11:Z1499)","v":0},{"$f":"IFERROR(Z1500/Y1500,0)","v":0},{"$f":"IF(Z1500<W1500/2,\"Complete outer year budget\",\"\")","v":"Complete outer year budget"}]
[]
[null,null,null,null,null,"Check",null,null,null,null,null,{"$f":"ROUND(IF(L1500-ENESummary!I48>0,IF(L1500-ENESummary!I48<1,0,L1500-ENESummary!I48),L1500-ENESummary!I48),0)","v":0},null,null,null,null,{"$f":"ROUND(IF(Q1500-ENESummary!J48>0,IF(Q1500-ENESummary!J48<1,0,Q1500-ENESummary!J48),Q1500-ENESummary!J48),0)","v":-1},null,null,{"$f":"ROUND(IF(T1500-ENESummary!M48>0,IF(T1500-ENESummary!M48<1,0,T1500-ENESummary!M48),T1500-ENESummary!M48),0)","v":-1},null,null,{"$f":"ROUND(IF(W1500-ENESummary!N48>0,IF(W1500-ENESummary!N48<1,0,W1500-ENESummary!N48),W1500-ENESummary!N48),0)","v":0},null,null,{"$f":"ROUND(IF(Z1500-ENESummary!O48>0,IF(Z1500-ENESummary!O48<1,0,Z1500-ENESummary!O48),Z1500-ENESummary!O48),0)","v":0}]

{"sheet":"Infrastructure","index":31,"n_rows":1820,"n_cols":34,"rows_kept":1820,"cut":false,"hidden":false,"merged":[[7,18,7,20],[8,28,8,33],[7,21,7,23],[7,24,7,26]]}
[null,null,null,null,null,null,null,null,"Type of project list"]
[null,null,null,null,null,null,null,null,"Mega projects"]
[null,null,null,null,null,null,null,null,"Large projects"]
["Existing",null,null,null,null,null,null,null,"Small projects"]
[]
[null,null,null,null,null,"PE No",{"$f":"Settings!$O$2","v":"PE126"}]
[null,null,null,null,null,"Entity name",{"$f":"Settings!$E$2","v":"South African Revenue Service"}]
[null,null,null,null,null,null,"Activity/Project name","GPS Coordinates1","Type of infrastructure2","Project description3","Nature of Investment","Current project stage4","SCOA item","SIP Category","Total Project Cost",{"$f":"MyYearM3","v":"2022/23"},{"$f":"MyYearM2","v":"2023/24"},{"$f":"MyYearM1","v":"2024/25"},{"$f":"MyYear0","v":"2025/26"},null,null,{"$f":"MyYearP1","v":"2026/27"},null,null,{"$f":"MyYearP2","v":"2027/28"},null,null,{"$f":"MyYearP3","v":"2028/29"},{"$f":"MyYearP4","v":"2029/30"},{"$f":"MyYearP5","v":"2030/31"},{"$f":"MyYearP6","v":"2031/32"},{"$f":"MyYearP7","v":"2032/33"},{"$f":"MyYearP8","v":"2033/34"},{"$f":"MyYearP9","v":"2034/35"}]
[null,null,null,null,null,"R Thousand ",null,null,null,null,null,null,null,null,null,{"$f":"Hist_year3RestatedAudited","v":"Audited\noutcome"},{"$f":"Hist_year2RestatedAudited","v":"Audited\noutcome"},{"$f":"Hist_year1Audited","v":"Audited\noutcome"},{"$f":"Cur_YearBudgEst","v":"Budget\nestimate"},{"$f":"Cur_YearApprovedBudg","v":"Approved budget"},{"$f":"Cur_YearChangeFrRevBudg","v":"Changes from \nbudget estimate"},{"$f":"MTEF1BudgEst","v":"Budget\nestimate"},{"$f":"MTEF1RevBudgEst","v":"Revised\nbudget\nestimate"},{"$f":"MTEF1_ChangeFrBudgEst","v":"Changes from budget estimate"},{"$f":"MTEF2BudgEst","v":"Budget\nestimate"},{"$f":"MTEF2RevBudgEst","v":"Revised\nbudget\nestimate"},{"$f":"MTEF2_ChangeFrBudgEst","v":"Changes from budget estimate"},{"$f":"MTEF3PlanBudgetEst","v":"Planning\nbudget \nestimate"},"Long term planning"]
["ID",null,null,null,null,1,"Mega projects (over R400 million per year for a minimum of three years, or at least R1 billion total project cost over the MTEF)",null,null,null,null,null,null,null,{"$f":"SUM(O11:O610)","v":298152},{"$f":"SUM(P11:P610)","v":0},0,0,201285,{"$f":"SUM(T11:T610)","v":201285},{"$f":"SUM(U11:U610)","v":0},58884,58884,0,37983,37983,0,0,0,0,0,{"$f":"SUM(AF11:AF610)","v":0},0,0]
[{"$f":"IF(SUM(O11:AH11),1,0)","v":1},null,null,null,null,null,{"$f":"[1]Infrastructure!G11","v":"Beit Bridge"},{"$f":"[1]Infrastructure!H11","v":0},{"$f":"[1]Infrastructure!I11","v":0},{"$f":"[1]Infrastructure!J11","v":0},{"$f":"[1]Infrastructure!K11","v":"Upgrading and additions"},{"$f":"[1]Infrastructure!L11","v":"Design"},{"$f":"[1]Infrastructure!M11","v":"Other fixed structures"},{"$f":"[1]Infrastructure!N11","v":"Not related to SIPs"},{"$f":"[1]Infrastructure!O11","v":298152},{"$f":"[1]Infrastructure!Q11","v":0},{"$f":"[1]Infrastructure!R11","v":0},{"$f":"[1]Infrastructure!T11","v":0},{"$f":"[1]Infrastructure!W11","v":201285},{"$f":"[1]Infrastructure!W11","v":201285},{"$f":"SUM(T11-S11)","v":0},{"$f":"[1]Infrastructure!Z11","v":58884},{"$f":"[1]Infrastructure!Z11","v":58884},{"$f":"SUM(W11-V11)","v":0},{"$f":"[1]Infrastructure!AB11","v":37983},{"$f":"[1]Infrastructure!AB11","v":37983},{"$f":"SUM(Z11-Y11)","v":0},{"$f":"[1]Infrastructure!AC11","v":0},{"$f":"[1]Infrastructure!AD11","v":0},{"$f":"[1]Infrastructure!AE11","v":0},{"$f":"[1]Infrastructure!AF11","v":0},{"$f":"[1]Infrastructure!AG11","v":0},{"$f":"[1]Infrastructure!AH11","v":0},0]
[{"$f":"IF(SUM(O12:AH12),1,0)","v":0},null,null,null,null,null,{"$f":"[1]Infrastructure!G12","v":0},{"$f":"[1]Infrastructure!H12","v":0},{"$f":"[1]Infrastructure!I12","v":0},{"$f":"[1]Infrastructure!J12","v":0},{"$f":"[1]Infrastructure!K12","v":0},{"$f":"[1]Infrastructure!L12","v":0},{"$f":"[1]Infrastructure!M12","v":0},{"$f":"[1]Infrastructure!N12","v":0},{"$f":"[1]Infrastructure!O12","v":0},{"$f":"[1]Infrastructure!Q12","v":0},{"$f":"[1]Infrastructure!R12","v":0},{"$f":"[1]Infrastructure!T12","v":0},{"$f":"[1]Infrastructure!W12","v":0},{"$f":"[1]Infrastructure!W12","v":0},{"$f":"SUM(T12-S12)","v":0},{"$f":"[1]Infrastructure!Z12","v":0},{"$f":"[1]Infrastructure!Z12","v":0},{"$f":"SUM(W12-V12)","v":0},{"$f":"[1]Infrastructure!AB12","v":0},{"$f":"[1]Infrastructure!AB12","v":0},{"$f":"SUM(Z12-Y12)","v":0},{"$f":"[1]Infrastructure!AC12","v":0},{"$f":"[1]Infrastructure!AD12","v":0},{"$f":"[1]Infrastructure!AE12","v":0},{"$f":"[1]Infrastructure!AF12","v":0},{"$f":"[1]Infrastructure!AG12","v":0},{"$f":"[1]Infrastructure!AH12","v":0},0]
[0,null,null,null,null,null,{"$f":"[1]Infrastructure!G13","v":0},{"$f":"[1]Infrastructure!H13","v":0},{"$f":"[1]Infrastructure!I13","v":0},{"$f":"[1]Infrastructure!J13","v":0},{"$f":"[1]Infrastructure!K13","v":0},{"$f":"[1]Infrastructure!L13","v":0},{"$f":"[1]Infrastructure!M13","v":0},{"$f":"[1]Infrastructure!N13","v":0},{"$f":"[1]Infrastructure!O13","v":0},{"$f":"[1]Infrastructure!Q13","v":0},{"$f":"[1]Infrastructure!R13","v":0},{"$f":"[1]Infrastructure!T13","v":0},{"$f":"[1]Infrastructure!W13","v":0},{"$f":"[1]Infrastructure!W13","v":0},0,{"$f":"[1]Infrastructure!Z13","v":0},{"$f":"[1]Infrastructure!Z13","v":0},0,{"$f":"[1]Infrastructure!AB13","v":0},{"$f":"[1]Infrastructure!AB13","v":0},0,{"$f":"[1]Infrastructure!AC13","v":0},{"$f":"[1]Infrastructure!AD13","v":0},{"$f":"[1]Infrastructure!AE13","v":0},{"$f":"[1]Infrastructure!AF13","v":0},{"$f":"[1]Infrastructure!AG13","v":0},{"$f":"[1]Infrastructure!AH13","v":0},0]
[0,null,null,null,null,null,{"$f":"[1]Infrastructure!G14","v":0},{"$f":"[1]Infrastructure!H14","v":0},{"$f":"[1]Infrastructure!I14","v":0},{"$f":"[1]Infrastructure!J14","v":0},{"$f":"[1]Infrastructure!K14","v":0},{"$f":"[1]Infrastructure!L14","v":0},{"$f":"[1]Infrastructure!M14","v":0},{"$f":"[1]Infrastructure!N14","v":0},{"$f":"[1]Infrastructure!O14","v":0},{"$f":"[1]Infrastructure!Q14","v":0},{"$f":"[1]Infrastructure!R14","v":0},{"$f":"[1]Infrastructure!T14","v":0},{"$f":"[1]Infrastructure!W14","v":0},{"$f":"[1]Infrastructure!W14","v":0},0,{"$f":"[1]Infrastructure!Z14","v":0},{"$f":"[1]Infrastructure!Z14","v":0},0,{"$f":"[1]Infrastructure!AB14","v":0},{"$f":"[1]Infrastructure!AB14","v":0},0,{"$f":"[1]Infrastructure!AC14","v":0},{"$f":"[1]Infrastructure!AD14","v":0},{"$f":"[1]Infrastructure!AE14","v":0},{"$f":"[1]Infrastructure!AF14","v":0},{"$f":"[1]Infrastructure!AG14","v":0},{"$f":"[1]Infrastructure!AH14","v":0},0]
[0,null,null,null,null,null,{"$f":"[1]Infrastructure!G15","v":0},{"$f":"[1]Infrastructure!H15","v":0},{"$f":"[1]Infrastructure!I15","v":0},{"$f":"[1]Infrastructure!J15","v":0},{"$f":"[1]Infrastructure!K15","v":0},{"$f":"[1]Infrastructure!L15","v":0},{"$f":"[1]Infrastructure!M15","v":0},{"$f":"[1]Infrastructure!N15","v":0},{"$f":"[1]Infrastructure!O15","v":0},{"$f":"[1]Infrastructure!Q15","v":0},{"$f":"[1]Infrastructure!R15","v":0},{"$f":"[1]Infrastructure!T15","v":0},{"$f":"[1]Infrastructure!W15","v":0},{"$f":"[1]Infrastructure!W15","v":0},0,{"$f":"[1]Infrastructure!Z15","v":0},{"$f":"[1]Infrastructure!Z15","v":0},0,{"$f":"[1]Infrastructure!AB15","v":0},{"$f":"[1]Infrastructure!AB15","v":0},0,{"$f":"[1]Infrastructure!AC15","v":0},{"$f":"[1]Infrastructure!AD15","v":0},{"$f":"[1]Infrastructure!AE15","v":0},{"$f":"[1]Infrastructure!AF15","v":0},{"$f":"[1]Infrastructure!AG15","v":0},{"$f":"[1]Infrastructure!AH15","v":0},0]
[0,null,null,null,null,null,{"$f":"[1]Infrastructure!G16","v":0},{"$f":"[1]Infrastructure!H16","v":0},{"$f":"[1]Infrastructure!I16","v":0},{"$f":"[1]Infrastructure!J16","v":0},{"$f":"[1]Infrastructure!K16","v":0},{"$f":"[1]Infrastructure!L16","v":0},{"$f":"[1]Infrastructure!M16","v":0},{"$f":"[1]Infrastructure!N16","v":0},{"$f":"[1]Infrastructure!O16","v":0},{"$f":"[1]Infrastructure!Q16","v":0},{"$f":"[1]Infrastructure!R16","v":0},{"$f":"[1]Infrastructure!T16","v":0},{"$f":"[1]Infrastructure!W16","v":0},{"$f":"[1]Infrastructure!W16","v":0},0,{"$f":"[1]Infrastructure!Z16","v":0},{"$f":"[1]Infrastructure!Z16","v":0},0,{"$f":"[1]Infrastructure!AB16","v":0},{"$f":"[1]Infrastructure!AB16","v":0},0,{"$f":"[1]Infrastructure!AC16","v":0},{"$f":"[1]Infrastructure!AD16","v":0},{"$f":"[1]Infrastructure!AE16","v":0},{"$f":"[1]Infrastructure!AF16","v":0},{"$f":"[1]Infrastructure!AG16","v":0},{"$f":"[1]Infrastructure!AH16","v":0},0]
[0,null,null,null,null,null,{"$f":"[1]Infrastructure!G17","v":0},{"$f":"[1]Infrastructure!H17","v":0},{"$f":"[1]Infrastructure!I17","v":0},{"$f":"[1]Infrastructure!J17","v":0},{"$f":"[1]Infrastructure!K17","v":0},{"$f":"[1]Infrastructure!L17","v":0},{"$f":"[1]Infrastructure!M17","v":0},{"$f":"[1]Infrastructure!N17","v":0},{"$f":"[1]Infrastructure!O17","v":0},{"$f":"[1]Infrastructure!Q17","v":0},{"$f":"[1]Infrastructure!R17","v":0},{"$f":"[1]Infrastructure!T17","v":0},{"$f":"[1]Infrastructure!W17","v":0},{"$f":"[1]Infrastructure!W17","v":0},0,{"$f":"[1]Infrastructure!Z17","v":0},{"$f":"[1]Infrastructure!Z17","v":0},0,{"$f":"[1]Infrastructure!AB17","v":0},{"$f":"[1]Infrastructure!AB17","v":0},0,{"$f":"[1]Infrastructure!AC17","v":0},{"$f":"[1]Infrastructure!AD17","v":0},{"$f":"[1]Infrastructure!AE17","v":0},{"$f":"[1]Infrastructure!AF17","v":0},{"$f":"[1]Infrastructure!AG17","v":0},{"$f":"[1]Infrastructure!AH17","v":0},0]
[0,null,null,null,null,null,{"$f":"[1]Infrastructure!G18","v":0},{"$f":"[1]Infrastructure!H18","v":0},{"$f":"[1]Infrastructure!I18","v":0},{"$f":"[1]Infrastructure!J18","v":0},{"$f":"[1]Infrastructure!K18","v":0},{"$f":"[1]Infrastructure!L18","v":0},{"$f":"[1]Infrastructure!M18","v":0},{"$f":"[1]Infrastructure!N18","v":0},{"$f":"[1]Infrastructure!O18","v":0},{"$f":"[1]Infrastructure!Q18","v":0},{"$f":"[1]Infrastructure!R18","v":0},{"$f":"[1]Infrastructure!T18","v":0},{"$f":"[1]Infrastructure!W18","v":0},{"$f":"[1]Infrastructure!W18","v":0},0,{"$f":"[1]Infrastructure!Z18","v":0},{"$f":"[1]Infrastructure!Z18","v":0},0,{"$f":"[1]Infrastructure!AB18","v":0},{"$f":"[1]Infrastructure!AB18","v":0},0,{"$f":"[1]Infrastructure!AC18","v":0},{"$f":"[1]Infrastructure!AD18","v":0},{"$f":"[1]Infrastructure!AE18","v":0},{"$f":"[1]Infrastructure!AF18","v":0},{"$f":"[1]Infrastructure!AG18","v":0},{"$f":"[1]Infrastructure!AH18","v":0},0]
[0,null,null,null,null,null,{"$f":"[1]Infrastructure!G19","v":0},{"$f":"[1]Infrastructure!H19","v":0},{"$f":"[1]Infrastructure!I19","v":0},{"$f":"[1]Infrastructure!J19","v":0},{"$f":"[1]Infrastructure!K19","v":0},{"$f":"[1]Infrastructure!L19","v":0},{"$f":"[1]Infrastructure!M19","v":0},{"$f":"[1]Infrastructure!N19","v":0},{"$f":"[1]Infrastructure!O19","v":0},{"$f":"[1]Infrastructure!Q19","v":0},{"$f":"[1]Infrastructure!R19","v":0},{"$f":"[1]Infrastructure!T19","v":0},{"$f":"[1]Infrastructure!W19","v":0},{"$f":"[1]Infrastructure!W19","v":0},0,{"$f":"[1]Infrastructure!Z19","v":0},{"$f":"[1]Infrastructure!Z19","v":0},0,{"$f":"[1]Infrastructure!AB19","v":0},{"$f":"[1]Infrastructure!AB19","v":0},0,{"$f":"[1]Infrastructure!AC19","v":0},{"$f":"[1]Infrastructure!AD19","v":0},{"$f":"[1]Infrastructure!AE19","v":0},{"$f":"[1]Infrastructure!AF19","v":0},{"$f":"[1]Infrastructure!AG19","v":0},{"$f":"[1]Infrastructure!AH19","v":0},0]
[0,null,null,null,null,null,{"$f":"[1]Infrastructure!G20","v":0},{"$f":"[1]Infrastructure!H20","v":0},{"$f":"[1]Infrastructure!I20","v":0},{"$f":"[1]Infrastructure!J20","v":0},{"$f":"[1]Infrastructure!K20","v":0},{"$f":"[1]Infrastructure!L20","v":0},{"$f":"[1]Infrastructure!M20","v":0},{"$f":"[1]Infrastructure!N20","v":0},{"$f":"[1]Infrastructure!O20","v":0},{"$f":"[1]Infrastructure!Q20","v":0},{"$f":"[1]Infrastructure!R20","v":0},{"$f":"[1]Infrastructure!T20","v":0},{"$f":"[1]Infrastructure!W20","v":0},{"$f":"[1]Infrastructure!W20","v":0},0,{"$f":"[1]Infrastructure!Z20","v":0},{"$f":"[1]Infrastructure!Z20","v":0},0,{"$f":"[1]Infrastructure!AB20","v":0},{"$f":"[1]Infrastructure!AB20","v":0},0,{"$f":"[1]Infrastructure!AC20","v":0},{"$f":"[1]Infrastructure!AD20","v":0},{"$f":"[1]Infrastructure!AE20","v":0},{"$f":"[1]Infrastructure!AF20","v":0},{"$f":"[1]Infrastructure!AG20","v":0},{"$f":"[1]Infrastructure!AH20","v":0},0]
[0,null,null,null,null,null,{"$f":"[1]Infrastructure!G21","v":0},{"$f":"[1]Infrastructure!H21","v":0},{"$f":"[1]Infrastructure!I21","v":0},{"$f":"[1]Infrastructure!J21","v":0},{"$f":"[1]Infrastructure!K21","v":0},{"$f":"[1]Infrastructure!L21","v":0},{"$f":"[1]Infrastructure!M21","v":0},{"$f":"[1]Infrastructure!N21","v":0},{"$f":"[1]Infrastructure!O21","v":0},{"$f":"[1]Infrastructure!Q21","v":0},{"$f":"[1]Infrastructure!R21","v":0},{"$f":"[1]Infrastructure!T21","v":0},{"$f":"[1]Infrastructure!W21","v":0},{"$f":"[1]Infrastructure!W21","v":0},0,{"$f":"[1]Infrastructure!Z21","v":0},{"$f":"[1]Infrastructure!Z21","v":0},0,{"$f":"[1]Infrastructure!AB21","v":0},{"$f":"[1]Infrastructure!AB21","v":0},0,{"$f":"[1]Infrastructure!AC21","v":0},{"$f":"[1]Infrastructure!AD21","v":0},{"$f":"[1]Infrastructure!AE21","v":0},{"$f":"[1]Infrastructure!AF21","v":0},{"$f":"[1]Infrastructure!AG21","v":0},{"$f":"[1]Infrastructure!AH21","v":0},0]
[0,null,null,null,null,null,{"$f":"[1]Infrastructure!G22","v":0},{"$f":"[1]Infrastructure!H22","v":0},{"$f":"[1]Infrastructure!I22","v":0},{"$f":"[1]Infrastructure!J22","v":0},{"$f":"[1]Infrastructure!K22","v":0},{"$f":"[1]Infrastructure!L22","v":0},{"$f":"[1]Infrastructure!M22","v":0},{"$f":"[1]Infrastructure!N22","v":0},{"$f":"[1]Infrastructure!O22","v":0},{"$f":"[1]Infrastructure!Q22","v":0},{"$f":"[1]Infrastructure!R22","v":0},{"$f":"[1]Infrastructure!T22","v":0},{"$f":"[1]Infrastructure!W22","v":0},{"$f":"[1]Infrastructure!W22","v":0},0,{"$f":"[1]Infrastructure!Z22","v":0},{"$f":"[1]Infrastructure!Z22","v":0},0,{"$f":"[1]Infrastructure!AB22","v":0},{"$f":"[1]Infrastructure!AB22","v":0},0,{"$f":"[1]Infrastructure!AC22","v":0},{"$f":"[1]Infrastructure!AD22","v":0},{"$f":"[1]Infrastructure!AE22","v":0},{"$f":"[1]Infrastructure!AF22","v":0},{"$f":"[1]Infrastructure!AG22","v":0},{"$f":"[1]Infrastructure!AH22","v":0},0]
[0,null,null,null,null,null,{"$f":"[1]Infrastructure!G23","v":0},{"$f":"[1]Infrastructure!H23","v":0},{"$f":"[1]Infrastructure!I23","v":0},{"$f":"[1]Infrastructure!J23","v":0},{"$f":"[1]Infrastructure!K23","v":0},{"$f":"[1]Infrastructure!L23","v":0},{"$f":"[1]Infrastructure!M23","v":0},{"$f":"[1]Infrastructure!N23","v":0},{"$f":"[1]Infrastructure!O23","v":0},{"$f":"[1]Infrastructure!Q23","v":0},{"$f":"[1]Infrastructure!R23","v":0},{"$f":"[1]Infrastructure!T23","v":0},{"$f":"[1]Infrastructure!W23","v":0},{"$f":"[1]Infrastructure!W23","v":0},0,{"$f":"[1]Infrastructure!Z23","v":0},{"$f":"[1]Infrastructure!Z23","v":0},0,{"$f":"[1]Infrastructure!AB23","v":0},{"$f":"[1]Infrastructure!AB23","v":0},0,{"$f":"[1]Infrastructure!AC23","v":0},{"$f":"[1]Infrastructure!AD23","v":0},{"$f":"[1]Infrastructure!AE23","v":0},{"$f":"[1]Infrastructure!AF23","v":0},{"$f":"[1]Infrastructure!AG23","v":0},{"$f":"[1]Infrastructure!AH23","v":0},0]
[0,null,null,null,null,null,{"$f":"[1]Infrastructure!G24","v":0},{"$f":"[1]Infrastructure!H24","v":0},{"$f":"[1]Infrastructure!I24","v":0},{"$f":"[1]Infrastructure!J24","v":0},{"$f":"[1]Infrastructure!K24","v":0},{"$f":"[1]Infrastructure!L24","v":0},{"$f":"[1]Infrastructure!M24","v":0},{"$f":"[1]Infrastructure!N24","v":0},{"$f":"[1]Infrastructure!O24","v":0},{"$f":"[1]Infrastructure!Q24","v":0},{"$f":"[1]Infrastructure!R24","v":0},{"$f":"[1]Infrastructure!T24","v":0},{"$f":"[1]Infrastructure!W24","v":0},{"$f":"[1]Infrastructure!W24","v":0},0,{"$f":"[1]Infrastructure!Z24","v":0},{"$f":"[1]Infrastructure!Z24","v":0},0,{"$f":"[1]Infrastructure!AB24","v":0},{"$f":"[1]Infrastructure!AB24","v":0},0,{"$f":"[1]Infrastructure!AC24","v":0},{"$f":"[1]Infrastructure!AD24","v":0},{"$f":"[1]Infrastructure!AE24","v":0},{"$f":"[1]Infrastructure!AF24","v":0},{"$f":"[1]Infrastructure!AG24","v":0},{"$f":"[1]Infrastructure!AH24","v":0},0]
[0,null,null,null,null,null,{"$f":"[1]Infrastructure!G25","v":0},{"$f":"[1]Infrastructure!H25","v":0},{"$f":"[1]Infrastructure!I25","v":0},{"$f":"[1]Infrastructure!J25","v":0},{"$f":"[1]Infrastructure!K25","v":0},{"$f":"[1]Infrastructure!L25","v":0},{"$f":"[1]Infrastructure!M25","v":0},{"$f":"[1]Infrastructure!N25","v":0},{"$f":"[1]Infrastructure!O25","v":0},{"$f":"[1]Infrastructure!Q25","v":0},{"$f":"[1]Infrastructure!R25","v":0},{"$f":"[1]Infrastructure!T25","v":0},{"$f":"[1]Infrastructure!W25","v":0},{"$f":"[1]Infrastructure!W25","v":0},0,{"$f":"[1]Infrastructure!Z25","v":0},{"$f":"[1]Infrastructure!Z25","v":0},0,{"$f":"[1]Infrastructure!AB25","v":0},{"$f":"[1]Infrastructure!AB25","v":0},0,{"$f":"[1]Infrastructure!AC25","v":0},{"$f":"[1]Infrastructure!AD25","v":0},{"$f":"[1]Infrastructure!AE25","v":0},{"$f":"[1]Infrastructure!AF25","v":0},{"$f":"[1]Infrastructure!AG25","v":0},{"$f":"[1]Infrastructure!AH25","v":0},0]
[0,null,null,null,null,null,{"$f":"[1]Infrastructure!G26","v":0},{"$f":"[1]Infrastructure!H26","v":0},{"$f":"[1]Infrastructure!I26","v":0},{"$f":"[1]Infrastructure!J26","v":0},{"$f":"[1]Infrastructure!K26","v":0},{"$f":"[1]Infrastructure!L26","v":0},{"$f":"[1]Infrastructure!M26","v":0},{"$f":"[1]Infrastructure!N26","v":0},{"$f":"[1]Infrastructure!O26","v":0},{"$f":"[1]Infrastructure!Q26","v":0},{"$f":"[1]Infrastructure!R26","v":0},{"$f":"[1]Infrastructure!T26","v":0},{"$f":"[1]Infrastructure!W26","v":0},{"$f":"[1]Infrastructure!W26","v":0},0,{"$f":"[1]Infrastructure!Z26","v":0},{"$f":"[1]Infrastructure!Z26","v":0},0,{"$f":"[1]Infrastructure!AB26","v":0},{"$f":"[1]Infrastructure!AB26","v":0},0,{"$f":"[1]Infrastructure!AC26","v":0},{"$f":"[1]Infrastructure!AD26","v":0},{"$f":"[1]Infrastructure!AE26","v":0},{"$f":"[1]Infrastructure!AF26","v":0},{"$f":"[1]Infrastructure!AG26","v":0},{"$f":"[1]Infrastructure!AH26","v":0},0]
[0,null,null,null,null,null,{"$f":"[1]Infrastructure!G27","v":0},{"$f":"[1]Infrastructure!H27","v":0},{"$f":"[1]Infrastructure!I27","v":0},{"$f":"[1]Infrastructure!J27","v":0},{"$f":"[1]Infrastructure!K27","v":0},{"$f":"[1]Infrastructure!L27","v":0},{"$f":"[1]Infrastructure!M27","v":0},{"$f":"[1]Infrastructure!N27","v":0},{"$f":"[1]Infrastructure!O27","v":0},{"$f":"[1]Infrastructure!Q27","v":0},{"$f":"[1]Infrastructure!R27","v":0},{"$f":"[1]Infrastructure!T27","v":0},{"$f":"[1]Infrastructure!W27","v":0},{"$f":"[1]Infrastructure!W27","v":0},0,{"$f":"[1]Infrastructure!Z27","v":0},{"$f":"[1]Infrastructure!Z27","v":0},0,{"$f":"[1]Infrastructure!AB27","v":0},{"$f":"[1]Infrastructure!AB27","v":0},0,{"$f":"[1]Infrastructure!AC27","v":0},{"$f":"[1]Infrastructure!AD27","v":0},{"$f":"[1]Infrastructure!AE27","v":0},{"$f":"[1]Infrastructure!AF27","v":0},{"$f":"[1]Infrastructure!AG27","v":0},{"$f":"[1]Infrastructure!AH27","v":0},0]
[0,null,null,null,null,null,{"$f":"[1]Infrastructure!G28","v":0},{"$f":"[1]Infrastructure!H28","v":0},{"$f":"[1]Infrastructure!I28","v":0},{"$f":"[1]Infrastructure!J28","v":0},{"$f":"[1]Infrastructure!K28","v":0},{"$f":"[1]Infrastructure!L28","v":0},{"$f":"[1]Infrastructure!M28","v":0},{"$f":"[1]Infrastructure!N28","v":0},{"$f":"[1]Infrastructure!O28","v":0},{"$f":"[1]Infrastructure!Q28","v":0},{"$f":"[1]Infrastructure!R28","v":0},{"$f":"[1]Infrastructure!T28","v":0},{"$f":"[1]Infrastructure!W28","v":0},{"$f":"[1]Infrastructure!W28","v":0},0,{"$f":"[1]Infrastructure!Z28","v":0},{"$f":"[1]Infrastructure!Z28","v":0},0,{"$f":"[1]Infrastructure!AB28","v":0},{"$f":"[1]Infrastructure!AB28","v":0},0,{"$f":"[1]Infrastructure!AC28","v":0},{"$f":"[1]Infrastructure!AD28","v":0},{"$f":"[1]Infrastructure!AE28","v":0},{"$f":"[1]Infrastructure!AF28","v":0},{"$f":"[1]Infrastructure!AG28","v":0},{"$f":"[1]Infrastructure!AH28","v":0},0]
[0,null,null,null,null,null,{"$f":"[1]Infrastructure!G29","v":0},{"$f":"[1]Infrastructure!H29","v":0},{"$f":"[1]Infrastructure!I29","v":0},{"$f":"[1]Infrastructure!J29","v":0},{"$f":"[1]Infrastructure!K29","v":0},{"$f":"[1]Infrastructure!L29","v":0},{"$f":"[1]Infrastructure!M29","v":0},{"$f":"[1]Infrastructure!N29","v":0},{"$f":"[1]Infrastructure!O29","v":0},{"$f":"[1]Infrastructure!Q29","v":0},{"$f":"[1]Infrastructure!R29","v":0},{"$f":"[1]Infrastructure!T29","v":0},{"$f":"[1]Infrastructure!W29","v":0},{"$f":"[1]Infrastructure!W29","v":0},0,{"$f":"[1]Infrastructure!Z29","v":0},{"$f":"[1]Infrastructure!Z29","v":0},0,{"$f":"[1]Infrastructure!AB29","v":0},{"$f":"[1]Infrastructure!AB29","v":0},0,{"$f":"[1]Infrastructure!AC29","v":0},{"$f":"[1]Infrastructure!AD29","v":0},{"$f":"[1]Infrastructure!AE29","v":0},{"$f":"[1]Infrastructure!AF29","v":0},{"$f":"[1]Infrastructure!AG29","v":0},{"$f":"[1]Infrastructure!AH29","v":0},0]
[0,null,null,null,null,null,{"$f":"[1]Infrastructure!G30","v":0},{"$f":"[1]Infrastructure!H30","v":0},{"$f":"[1]Infrastructure!I30","v":0},{"$f":"[1]Infrastructure!J30","v":0},{"$f":"[1]Infrastructure!K30","v":0},{"$f":"[1]Infrastructure!L30","v":0},{"$f":"[1]Infrastructure!M30","v":0},{"$f":"[1]Infrastructure!N30","v":0},{"$f":"[1]Infrastructure!O30","v":0},{"$f":"[1]Infrastructure!Q30","v":0},{"$f":"[1]Infrastructure!R30","v":0},{"$f":"[1]Infrastructure!T30","v":0},{"$f":"[1]Infrastructure!W30","v":0},{"$f":"[1]Infrastructure!W30","v":0},0,{"$f":"[1]Infrastructure!Z30","v":0},{"$f":"[1]Infrastructure!Z30","v":0},0,{"$f":"[1]Infrastructure!AB30","v":0},{"$f":"[1]Infrastructure!AB30","v":0},0,{"$f":"[1]Infrastructure!AC30","v":0},{"$f":"[1]Infrastructure!AD30","v":0},{"$f":"[1]Infrastructure!AE30","v":0},{"$f":"[1]Infrastructure!AF30","v":0},{"$f":"[1]Infrastructure!AG30","v":0},{"$f":"[1]Infrastructure!AH30","v":0},0]
[0,null,null,null,null,null,{"$f":"[1]Infrastructure!G31","v":0},{"$f":"[1]Infrastructure!H31","v":0},{"$f":"[1]Infrastructure!I31","v":0},{"$f":"[1]Infrastructure!J31","v":0},{"$f":"[1]Infrastructure!K31","v":0},{"$f":"[1]Infrastructure!L31","v":0},{"$f":"[1]Infrastructure!M31","v":0},{"$f":"[1]Infrastructure!N31","v":0},{"$f":"[1]Infrastructure!O31","v":0},{"$f":"[1]Infrastructure!Q31","v":0},{"$f":"[1]Infrastructure!R31","v":0},{"$f":"[1]Infrastructure!T31","v":0},{"$f":"[1]Infrastructure!W31","v":0},{"$f":"[1]Infrastructure!W31","v":0},0,{"$f":"[1]Infrastructure!Z31","v":0},{"$f":"[1]Infrastructure!Z31","v":0},0,{"$f":"[1]Infrastructure!AB31","v":0},{"$f":"[1]Infrastructure!AB31","v":0},0,{"$f":"[1]Infrastructure!AC31","v":0},{"$f":"[1]Infrastructure!AD31","v":0},{"$f":"[1]Infrastructure!AE31","v":0},{"$f":"[1]Infrastructure!AF31","v":0},{"$f":"[1]Infrastructure!AG31","v":0},{"$f":"[1]Infrastructure!AH31","v":0},0]
[0,null,null,null,null,null,{"$f":"[1]Infrastructure!G32","v":0},{"$f":"[1]Infrastructure!H32","v":0},{"$f":"[1]Infrastructure!I32","v":0},{"$f":"[1]Infrastructure!J32","v":0},{"$f":"[1]Infrastructure!K32","v":0},{"$f":"[1]Infrastructure!L32","v":0},{"$f":"[1]Infrastructure!M32","v":0},{"$f":"[1]Infrastructure!N32","v":0},{"$f":"[1]Infrastructure!O32","v":0},{"$f":"[1]Infrastructure!Q32","v":0},{"$f":"[1]Infrastructure!R32","v":0},{"$f":"[1]Infrastructure!T32","v":0},{"$f":"[1]Infrastructure!W32","v":0},{"$f":"[1]Infrastructure!W32","v":0},0,{"$f":"[1]Infrastructure!Z32","v":0},{"$f":"[1]Infrastructure!Z32","v":0},0,{"$f":"[1]Infrastructure!AB32","v":0},{"$f":"[1]Infrastructure!AB32","v":0},0,{"$f":"[1]Infrastructure!AC32","v":0},{"$f":"[1]Infrastructure!AD32","v":0},{"$f":"[1]Infrastructure!AE32","v":0},{"$f":"[1]Infrastructure!AF32","v":0},{"$f":"[1]Infrastructure!AG32","v":0},{"$f":"[1]Infrastructure!AH32","v":0},0]
[0,null,null,null,null,null,{"$f":"[1]Infrastructure!G33","v":0},{"$f":"[1]Infrastructure!H33","v":0},{"$f":"[1]Infrastructure!I33","v":0},{"$f":"[1]Infrastructure!J33","v":0},{"$f":"[1]Infrastructure!K33","v":0},{"$f":"[1]Infrastructure!L33","v":0},{"$f":"[1]Infrastructure!M33","v":0},{"$f":"[1]Infrastructure!N33","v":0},{"$f":"[1]Infrastructure!O33","v":0},{"$f":"[1]Infrastructure!Q33","v":0},{"$f":"[1]Infrastructure!R33","v":0},{"$f":"[1]Infrastructure!T33","v":0},{"$f":"[1]Infrastructure!W33","v":0},{"$f":"[1]Infrastructure!W33","v":0},0,{"$f":"[1]Infrastructure!Z33","v":0},{"$f":"[1]Infrastructure!Z33","v":0},0,{"$f":"[1]Infrastructure!AB33","v":0},{"$f":"[1]Infrastructure!AB33","v":0},0,{"$f":"[1]Infrastructure!AC33","v":0},{"$f":"[1]Infrastructure!AD33","v":0},{"$f":"[1]Infrastructure!AE33","v":0},{"$f":"[1]Infrastructure!AF33","v":0},{"$f":"[1]Infrastructure!AG33","v":0},{"$f":"[1]Infrastructure!AH33","v":0},0]
[0,null,null,null,null,null,{"$f":"[1]Infrastructure!G34","v":0},{"$f":"[1]Infrastructure!H34","v":0},{"$f":"[1]Infrastructure!I34","v":0},{"$f":"[1]Infrastructure!J34","v":0},{"$f":"[1]Infrastructure!K34","v":0},{"$f":"[1]Infrastructure!L34","v":0},{"$f":"[1]Infrastructure!M34","v":0},{"$f":"[1]Infrastructure!N34","v":0},{"$f":"[1]Infrastructure!O34","v":0},{"$f":"[1]Infrastructure!Q34","v":0},{"$f":"[1]Infrastructure!R34","v":0},{"$f":"[1]Infrastructure!T34","v":0},{"$f":"[1]Infrastructure!W34","v":0},{"$f":"[1]Infrastructure!W34","v":0},0,{"$f":"[1]Infrastructure!Z34","v":0},{"$f":"[1]Infrastructure!Z34","v":0},0,{"$f":"[1]Infrastructure!AB34","v":0},{"$f":"[1]Infrastructure!AB34","v":0},0,{"$f":"[1]Infrastructure!AC34","v":0},{"$f":"[1]Infrastructure!AD34","v":0},{"$f":"[1]Infrastructure!AE34","v":0},{"$f":"[1]Infrastructure!AF34","v":0},{"$f":"[1]Infrastructure!AG34","v":0},{"$f":"[1]Infrastructure!AH34","v":0},0]
[0,null,null,null,null,null,{"$f":"[1]Infrastructure!G35","v":0},{"$f":"[1]Infrastructure!H35","v":0},{"$f":"[1]Infrastructure!I35","v":0},{"$f":"[1]Infrastructure!J35","v":0},{"$f":"[1]Infrastructure!K35","v":0},{"$f":"[1]Infrastructure!L35","v":0},{"$f":"[1]Infrastructure!M35","v":0},{"$f":"[1]Infrastructure!N35","v":0},{"$f":"[1]Infrastructure!O35","v":0},{"$f":"[1]Infrastructure!Q35","v":0},{"$f":"[1]Infrastructure!R35","v":0},{"$f":"[1]Infrastructure!T35","v":0},{"$f":"[1]Infrastructure!W35","v":0},{"$f":"[1]Infrastructure!W35","v":0},0,{"$f":"[1]Infrastructure!Z35","v":0},{"$f":"[1]Infrastructure!Z35","v":0},0,{"$f":"[1]Infrastructure!AB35","v":0},{"$f":"[1]Infrastructure!AB35","v":0},0,{"$f":"[1]Infrastructure!AC35","v":0},{"$f":"[1]Infrastructure!AD35","v":0},{"$f":"[1]Infrastructure!AE35","v":0},{"$f":"[1]Infrastructure!AF35","v":0},{"$f":"[1]Infrastructure!AG35","v":0},{"$f":"[1]Infrastructure!AH35","v":0},0]
[0,null,null,null,null,null,{"$f":"[1]Infrastructure!G36","v":0},{"$f":"[1]Infrastructure!H36","v":0},{"$f":"[1]Infrastructure!I36","v":0},{"$f":"[1]Infrastructure!J36","v":0},{"$f":"[1]Infrastructure!K36","v":0},{"$f":"[1]Infrastructure!L36","v":0},{"$f":"[1]Infrastructure!M36","v":0},{"$f":"[1]Infrastructure!N36","v":0},{"$f":"[1]Infrastructure!O36","v":0},{"$f":"[1]Infrastructure!Q36","v":0},{"$f":"[1]Infrastructure!R36","v":0},{"$f":"[1]Infrastructure!T36","v":0},{"$f":"[1]Infrastructure!W36","v":0},{"$f":"[1]Infrastructure!W36","v":0},0,{"$f":"[1]Infrastructure!Z36","v":0},{"$f":"[1]Infrastructure!Z36","v":0},0,{"$f":"[1]Infrastructure!AB36","v":0},{"$f":"[1]Infrastructure!AB36","v":0},0,{"$f":"[1]Infrastructure!AC36","v":0},{"$f":"[1]Infrastructure!AD36","v":0},{"$f":"[1]Infrastructure!AE36","v":0},{"$f":"[1]Infrastructure!AF36","v":0},{"$f":"[1]Infrastructure!AG36","v":0},{"$f":"[1]Infrastructure!AH36","v":0},0]
[0,null,null,null,null,null,{"$f":"[1]Infrastructure!G37","v":0},{"$f":"[1]Infrastructure!H37","v":0},{"$f":"[1]Infrastructure!I37","v":0},{"$f":"[1]Infrastructure!J37","v":0},{"$f":"[1]Infrastructure!K37","v":0},{"$f":"[1]Infrastructure!L37","v":0},{"$f":"[1]Infrastructure!M37","v":0},{"$f":"[1]Infrastructure!N37","v":0},{"$f":"[1]Infrastructure!O37","v":0},{"$f":"[1]Infrastructure!Q37","v":0},{"$f":"[1]Infrastructure!R37","v":0},{"$f":"[1]Infrastructure!T37","v":0},{"$f":"[1]Infrastructure!W37","v":0},{"$f":"[1]Infrastructure!W37","v":0},0,{"$f":"[1]Infrastructure!Z37","v":0},{"$f":"[1]Infrastructure!Z37","v":0},0,{"$f":"[1]Infrastructure!AB37","v":0},{"$f":"[1]Infrastructure!AB37","v":0},0,{"$f":"[1]Infrastructure!AC37","v":0},{"$f":"[1]Infrastructure!AD37","v":0},{"$f":"[1]Infrastructure!AE37","v":0},{"$f":"[1]Infrastructure!AF37","v":0},{"$f":"[1]Infrastructure!AG37","v":0},{"$f":"[1]Infrastructure!AH37","v":0},0]
[0,null,null,null,null,null,{"$f":"[1]Infrastructure!G38","v":0},{"$f":"[1]Infrastructure!H38","v":0},{"$f":"[1]Infrastructure!I38","v":0},{"$f":"[1]Infrastructure!J38","v":0},{"$f":"[1]Infrastructure!K38","v":0},{"$f":"[1]Infrastructure!L38","v":0},{"$f":"[1]Infrastructure!M38","v":0},{"$f":"[1]Infrastructure!N38","v":0},{"$f":"[1]Infrastructure!O38","v":0},{"$f":"[1]Infrastructure!Q38","v":0},{"$f":"[1]Infrastructure!R38","v":0},{"$f":"[1]Infrastructure!T38","v":0},{"$f":"[1]Infrastructure!W38","v":0},{"$f":"[1]Infrastructure!W38","v":0},0,{"$f":"[1]Infrastructure!Z38","v":0},{"$f":"[1]Infrastructure!Z38","v":0},0,{"$f":"[1]Infrastructure!AB38","v":0},{"$f":"[1]Infrastructure!AB38","v":0},0,{"$f":"[1]Infrastructure!AC38","v":0},{"$f":"[1]Infrastructure!AD38","v":0},{"$f":"[1]Infrastructure!AE38","v":0},{"$f":"[1]Infrastructure!AF38","v":0},{"$f":"[1]Infrastructure!AG38","v":0},{"$f":"[1]Infrastructure!AH38","v":0},0]
[0,null,null,null,null,null,{"$f":"[1]Infrastructure!G39","v":0},{"$f":"[1]Infrastructure!H39","v":0},{"$f":"[1]Infrastructure!I39","v":0},{"$f":"[1]Infrastructure!J39","v":0},{"$f":"[1]Infrastructure!K39","v":0},{"$f":"[1]Infrastructure!L39","v":0},{"$f":"[1]Infrastructure!M39","v":0},{"$f":"[1]Infrastructure!N39","v":0},{"$f":"[1]Infrastructure!O39","v":0},{"$f":"[1]Infrastructure!Q39","v":0},{"$f":"[1]Infrastructure!R39","v":0},{"$f":"[1]Infrastructure!T39","v":0},{"$f":"[1]Infrastructure!W39","v":0},{"$f":"[1]Infrastructure!W39","v":0},0,{"$f":"[1]Infrastructure!Z39","v":0},{"$f":"[1]Infrastructure!Z39","v":0},0,{"$f":"[1]Infrastructure!AB39","v":0},{"$f":"[1]Infrastructure!AB39","v":0},0,{"$f":"[1]Infrastructure!AC39","v":0},{"$f":"[1]Infrastructure!AD39","v":0},{"$f":"[1]Infrastructure!AE39","v":0},{"$f":"[1]Infrastructure!AF39","v":0},{"$f":"[1]Infrastructure!AG39","v":0},{"$f":"[1]Infrastructure!AH39","v":0},0]
[0,null,null,null,null,null,{"$f":"[1]Infrastructure!G40","v":0},{"$f":"[1]Infrastructure!H40","v":0},{"$f":"[1]Infrastructure!I40","v":0},{"$f":"[1]Infrastructure!J40","v":0},{"$f":"[1]Infrastructure!K40","v":0},{"$f":"[1]Infrastructure!L40","v":0},{"$f":"[1]Infrastructure!M40","v":0},{"$f":"[1]Infrastructure!N40","v":0},{"$f":"[1]Infrastructure!O40","v":0},{"$f":"[1]Infrastructure!Q40","v":0},{"$f":"[1]Infrastructure!R40","v":0},{"$f":"[1]Infrastructure!T40","v":0},{"$f":"[1]Infrastructure!W40","v":0},{"$f":"[1]Infrastructure!W40","v":0},0,{"$f":"[1]Infrastructure!Z40","v":0},{"$f":"[1]Infrastructure!Z40","v":0},0,{"$f":"[1]Infrastructure!AB40","v":0},{"$f":"[1]Infrastructure!AB40","v":0},0,{"$f":"[1]Infrastructure!AC40","v":0},{"$f":"[1]Infrastructure!AD40","v":0},{"$f":"[1]Infrastructure!AE40","v":0},{"$f":"[1]Infrastructure!AF40","v":0},{"$f":"[1]Infrastructure!AG40","v":0},{"$f":"[1]Infrastructure!AH40","v":0},0]
[0,null,null,null,null,null,{"$f":"[1]Infrastructure!G41","v":0},{"$f":"[1]Infrastructure!H41","v":0},{"$f":"[1]Infrastructure!I41","v":0},{"$f":"[1]Infrastructure!J41","v":0},{"$f":"[1]Infrastructure!K41","v":0},{"$f":"[1]Infrastructure!L41","v":0},{"$f":"[1]Infrastructure!M41","v":0},{"$f":"[1]Infrastructure!N41","v":0},{"$f":"[1]Infrastructure!O41","v":0},{"$f":"[1]Infrastructure!Q41","v":0},{"$f":"[1]Infrastructure!R41","v":0},{"$f":"[1]Infrastructure!T41","v":0},{"$f":"[1]Infrastructure!W41","v":0},{"$f":"[1]Infrastructure!W41","v":0},0,{"$f":"[1]Infrastructure!Z41","v":0},{"$f":"[1]Infrastructure!Z41","v":0},0,{"$f":"[1]Infrastructure!AB41","v":0},{"$f":"[1]Infrastructure!AB41","v":0},0,{"$f":"[1]Infrastructure!AC41","v":0},{"$f":"[1]Infrastructure!AD41","v":0},{"$f":"[1]Infrastructure!AE41","v":0},{"$f":"[1]Infrastructure!AF41","v":0},{"$f":"[1]Infrastructure!AG41","v":0},{"$f":"[1]Infrastructure!AH41","v":0},0]
[0,null,null,null,null,null,{"$f":"[1]Infrastructure!G42","v":0},{"$f":"[1]Infrastructure!H42","v":0},{"$f":"[1]Infrastructure!I42","v":0},{"$f":"[1]Infrastructure!J42","v":0},{"$f":"[1]Infrastructure!K42","v":0},{"$f":"[1]Infrastructure!L42","v":0},{"$f":"[1]Infrastructure!M42","v":0},{"$f":"[1]Infrastructure!N42","v":0},{"$f":"[1]Infrastructure!O42","v":0},{"$f":"[1]Infrastructure!Q42","v":0},{"$f":"[1]Infrastructure!R42","v":0},{"$f":"[1]Infrastructure!T42","v":0},{"$f":"[1]Infrastructure!W42","v":0},{"$f":"[1]Infrastructure!W42","v":0},0,{"$f":"[1]Infrastructure!Z42","v":0},{"$f":"[1]Infrastructure!Z42","v":0},0,{"$f":"[1]Infrastructure!AB42","v":0},{"$f":"[1]Infrastructure!AB42","v":0},0,{"$f":"[1]Infrastructure!AC42","v":0},{"$f":"[1]Infrastructure!AD42","v":0},{"$f":"[1]Infrastructure!AE42","v":0},{"$f":"[1]Infrastructure!AF42","v":0},{"$f":"[1]Infrastructure!AG42","v":0},{"$f":"[1]Infrastructure!AH42","v":0},0]
[0,null,null,null,null,null,{"$f":"[1]Infrastructure!G43","v":0},{"$f":"[1]Infrastructure!H43","v":0},{"$f":"[1]Infrastructure!I43","v":0},{"$f":"[1]Infrastructure!J43","v":0},{"$f":"[1]Infrastructure!K43","v":0},{"$f":"[1]Infrastructure!L43","v":0},{"$f":"[1]Infrastructure!M43","v":0},{"$f":"[1]Infrastructure!N43","v":0},{"$f":"[1]Infrastructure!O43","v":0},{"$f":"[1]Infrastructure!Q43","v":0},{"$f":"[1]Infrastructure!R43","v":0},{"$f":"[1]Infrastructure!T43","v":0},{"$f":"[1]Infrastructure!W43","v":0},{"$f":"[1]Infrastructure!W43","v":0},0,{"$f":"[1]Infrastructure!Z43","v":0},{"$f":"[1]Infrastructure!Z43","v":0},0,{"$f":"[1]Infrastructure!AB43","v":0},{"$f":"[1]Infrastructure!AB43","v":0},0,{"$f":"[1]Infrastructure!AC43","v":0},{"$f":"[1]Infrastructure!AD43","v":0},{"$f":"[1]Infrastructure!AE43","v":0},{"$f":"[1]Infrastructure!AF43","v":0},{"$f":"[1]Infrastructure!AG43","v":0},{"$f":"[1]Infrastructure!AH43","v":0},0]
[0,null,null,null,null,null,{"$f":"[1]Infrastructure!G44","v":0},{"$f":"[1]Infrastructure!H44","v":0},{"$f":"[1]Infrastructure!I44","v":0},{"$f":"[1]Infrastructure!J44","v":0},{"$f":"[1]Infrastructure!K44","v":0},{"$f":"[1]Infrastructure!L44","v":0},{"$f":"[1]Infrastructure!M44","v":0},{"$f":"[1]Infrastructure!N44","v":0},{"$f":"[1]Infrastructure!O44","v":0},{"$f":"[1]Infrastructure!Q44","v":0},{"$f":"[1]Infrastructure!R44","v":0},{"$f":"[1]Infrastructure!T44","v":0},{"$f":"[1]Infrastructure!W44","v":0},{"$f":"[1]Infrastructure!W44","v":0},0,{"$f":"[1]Infrastructure!Z44","v":0},{"$f":"[1]Infrastructure!Z44","v":0},0,{"$f":"[1]Infrastructure!AB44","v":0},{"$f":"[1]Infrastructure!AB44","v":0},0,{"$f":"[1]Infrastructure!AC44","v":0},{"$f":"[1]Infrastructure!AD44","v":0},{"$f":"[1]Infrastructure!AE44","v":0},{"$f":"[1]Infrastructure!AF44","v":0},{"$f":"[1]Infrastructure!AG44","v":0},{"$f":"[1]Infrastructure!AH44","v":0},0]
[0,null,null,null,null,null,{"$f":"[1]Infrastructure!G45","v":0},{"$f":"[1]Infrastructure!H45","v":0},{"$f":"[1]Infrastructure!I45","v":0},{"$f":"[1]Infrastructure!J45","v":0},{"$f":"[1]Infrastructure!K45","v":0},{"$f":"[1]Infrastructure!L45","v":0},{"$f":"[1]Infrastructure!M45","v":0},{"$f":"[1]Infrastructure!N45","v":0},{"$f":"[1]Infrastructure!O45","v":0},{"$f":"[1]Infrastructure!Q45","v":0},{"$f":"[1]Infrastructure!R45","v":0},{"$f":"[1]Infrastructure!T45","v":0},{"$f":"[1]Infrastructure!W45","v":0},{"$f":"[1]Infrastructure!W45","v":0},0,{"$f":"[1]Infrastructure!Z45","v":0},{"$f":"[1]Infrastructure!Z45","v":0},0,{"$f":"[1]Infrastructure!AB45","v":0},{"$f":"[1]Infrastructure!AB45","v":0},0,{"$f":"[1]Infrastructure!AC45","v":0},{"$f":"[1]Infrastructure!AD45","v":0},{"$f":"[1]Infrastructure!AE45","v":0},{"$f":"[1]Infrastructure!AF45","v":0},{"$f":"[1]Infrastructure!AG45","v":0},{"$f":"[1]Infrastructure!AH45","v":0},0]
[0,null,null,null,null,null,{"$f":"[1]Infrastructure!G46","v":0},{"$f":"[1]Infrastructure!H46","v":0},{"$f":"[1]Infrastructure!I46","v":0},{"$f":"[1]Infrastructure!J46","v":0},{"$f":"[1]Infrastructure!K46","v":0},{"$f":"[1]Infrastructure!L46","v":0},{"$f":"[1]Infrastructure!M46","v":0},{"$f":"[1]Infrastructure!N46","v":0},{"$f":"[1]Infrastructure!O46","v":0},{"$f":"[1]Infrastructure!Q46","v":0},{"$f":"[1]Infrastructure!R46","v":0},{"$f":"[1]Infrastructure!T46","v":0},{"$f":"[1]Infrastructure!W46","v":0},{"$f":"[1]Infrastructure!W46","v":0},0,{"$f":"[1]Infrastructure!Z46","v":0},{"$f":"[1]Infrastructure!Z46","v":0},0,{"$f":"[1]Infrastructure!AB46","v":0},{"$f":"[1]Infrastructure!AB46","v":0},0,{"$f":"[1]Infrastructure!AC46","v":0},{"$f":"[1]Infrastructure!AD46","v":0},{"$f":"[1]Infrastructure!AE46","v":0},{"$f":"[1]Infrastructure!AF46","v":0},{"$f":"[1]Infrastructure!AG46","v":0},{"$f":"[1]Infrastructure!AH46","v":0},0]
[0,null,null,null,null,null,{"$f":"[1]Infrastructure!G47","v":0},{"$f":"[1]Infrastructure!H47","v":0},{"$f":"[1]Infrastructure!I47","v":0},{"$f":"[1]Infrastructure!J47","v":0},{"$f":"[1]Infrastructure!K47","v":0},{"$f":"[1]Infrastructure!L47","v":0},{"$f":"[1]Infrastructure!M47","v":0},{"$f":"[1]Infrastructure!N47","v":0},{"$f":"[1]Infrastructure!O47","v":0},{"$f":"[1]Infrastructure!Q47","v":0},{"$f":"[1]Infrastructure!R47","v":0},{"$f":"[1]Infrastructure!T47","v":0},{"$f":"[1]Infrastructure!W47","v":0},{"$f":"[1]Infrastructure!W47","v":0},0,{"$f":"[1]Infrastructure!Z47","v":0},{"$f":"[1]Infrastructure!Z47","v":0},0,{"$f":"[1]Infrastructure!AB47","v":0},{"$f":"[1]Infrastructure!AB47","v":0},0,{"$f":"[1]Infrastructure!AC47","v":0},{"$f":"[1]Infrastructure!AD47","v":0},{"$f":"[1]Infrastructure!AE47","v":0},{"$f":"[1]Infrastructure!AF47","v":0},{"$f":"[1]Infrastructure!AG47","v":0},{"$f":"[1]Infrastructure!AH47","v":0},0]
[0,null,null,null,null,null,{"$f":"[1]Infrastructure!G48","v":0},{"$f":"[1]Infrastructure!H48","v":0},{"$f":"[1]Infrastructure!I48","v":0},{"$f":"[1]Infrastructure!J48","v":0},{"$f":"[1]Infrastructure!K48","v":0},{"$f":"[1]Infrastructure!L48","v":0},{"$f":"[1]Infrastructure!M48","v":0},{"$f":"[1]Infrastructure!N48","v":0},{"$f":"[1]Infrastructure!O48","v":0},{"$f":"[1]Infrastructure!Q48","v":0},{"$f":"[1]Infrastructure!R48","v":0},{"$f":"[1]Infrastructure!T48","v":0},{"$f":"[1]Infrastructure!W48","v":0},{"$f":"[1]Infrastructure!W48","v":0},0,{"$f":"[1]Infrastructure!Z48","v":0},{"$f":"[1]Infrastructure!Z48","v":0},0,{"$f":"[1]Infrastructure!AB48","v":0},{"$f":"[1]Infrastructure!AB48","v":0},0,{"$f":"[1]Infrastructure!AC48","v":0},{"$f":"[1]Infrastructure!AD48","v":0},{"$f":"[1]Infrastructure!AE48","v":0},{"$f":"[1]Infrastructure!AF48","v":0},{"$f":"[1]Infrastructure!AG48","v":0},{"$f":"[1]Infrastructure!AH48","v":0},0]
[0,null,null,null,null,null,{"$f":"[1]Infrastructure!G49","v":0},{"$f":"[1]Infrastructure!H49","v":0},{"$f":"[1]Infrastructure!I49","v":0},{"$f":"[1]Infrastructure!J49","v":0},{"$f":"[1]Infrastructure!K49","v":0},{"$f":"[1]Infrastructure!L49","v":0},{"$f":"[1]Infrastructure!M49","v":0},{"$f":"[1]Infrastructure!N49","v":0},{"$f":"[1]Infrastructure!O49","v":0},{"$f":"[1]Infrastructure!Q49","v":0},{"$f":"[1]Infrastructure!R49","v":0},{"$f":"[1]Infrastructure!T49","v":0},{"$f":"[1]Infrastructure!W49","v":0},{"$f":"[1]Infrastructure!W49","v":0},0,{"$f":"[1]Infrastructure!Z49","v":0},{"$f":"[1]Infrastructure!Z49","v":0},0,{"$f":"[1]Infrastructure!AB49","v":0},{"$f":"[1]Infrastructure!AB49","v":0},0,{"$f":"[1]Infrastructure!AC49","v":0},{"$f":"[1]Infrastructure!AD49","v":0},{"$f":"[1]Infrastructure!AE49","v":0},{"$f":"[1]Infrastructure!AF49","v":0},{"$f":"[1]Infrastructure!AG49","v":0},{"$f":"[1]Infrastructure!AH49","v":0},0]
[0,null,null,null,null,null,{"$f":"[1]Infrastructure!G50","v":0},{"$f":"[1]Infrastructure!H50","v":0},{"$f":"[1]Infrastructure!I50","v":0},{"$f":"[1]Infrastructure!J50","v":0},{"$f":"[1]Infrastructure!K50","v":0},{"$f":"[1]Infrastructure!L50","v":0},{"$f":"[1]Infrastructure!M50","v":0},{"$f":"[1]Infrastructure!N50","v":0},{"$f":"[1]Infrastructure!O50","v":0},{"$f":"[1]Infrastructure!Q50","v":0},{"$f":"[1]Infrastructure!R50","v":0},{"$f":"[1]Infrastructure!T50","v":0},{"$f":"[1]Infrastructure!W50","v":0},{"$f":"[1]Infrastructure!W50","v":0},0,{"$f":"[1]Infrastructure!Z50","v":0},{"$f":"[1]Infrastructure!Z50","v":0},0,{"$f":"[1]Infrastructure!AB50","v":0},{"$f":"[1]Infrastructure!AB50","v":0},0,{"$f":"[1]Infrastructure!AC50","v":0},{"$f":"[1]Infrastructure!AD50","v":0},{"$f":"[1]Infrastructure!AE50","v":0},{"$f":"[1]Infrastructure!AF50","v":0},{"$f":"[1]Infrastructure!AG50","v":0},{"$f":"[1]Infrastructure!AH50","v":0},0]
[0,null,null,null,null,null,{"$f":"[1]Infrastructure!G51","v":0},{"$f":"[1]Infrastructure!H51","v":0},{"$f":"[1]Infrastructure!I51","v":0},{"$f":"[1]Infrastructure!J51","v":0},{"$f":"[1]Infrastructure!K51","v":0},{"$f":"[1]Infrastructure!L51","v":0},{"$f":"[1]Infrastructure!M51","v":0},{"$f":"[1]Infrastructure!N51","v":0},{"$f":"[1]Infrastructure!O51","v":0},{"$f":"[1]Infrastructure!Q51","v":0},{"$f":"[1]Infrastructure!R51","v":0},{"$f":"[1]Infrastructure!T51","v":0},{"$f":"[1]Infrastructure!W51","v":0},{"$f":"[1]Infrastructure!W51","v":0},0,{"$f":"[1]Infrastructure!Z51","v":0},{"$f":"[1]Infrastructure!Z51","v":0},0,{"$f":"[1]Infrastructure!AB51","v":0},{"$f":"[1]Infrastructure!AB51","v":0},0,{"$f":"[1]Infrastructure!AC51","v":0},{"$f":"[1]Infrastructure!AD51","v":0},{"$f":"[1]Infrastructure!AE51","v":0},{"$f":"[1]Infrastructure!AF51","v":0},{"$f":"[1]Infrastructure!AG51","v":0},{"$f":"[1]Infrastructure!AH51","v":0},0]
[0,null,null,null,null,null,{"$f":"[1]Infrastructure!G52","v":0},{"$f":"[1]Infrastructure!H52","v":0},{"$f":"[1]Infrastructure!I52","v":0},{"$f":"[1]Infrastructure!J52","v":0},{"$f":"[1]Infrastructure!K52","v":0},{"$f":"[1]Infrastructure!L52","v":0},{"$f":"[1]Infrastructure!M52","v":0},{"$f":"[1]Infrastructure!N52","v":0},{"$f":"[1]Infrastructure!O52","v":0},{"$f":"[1]Infrastructure!Q52","v":0},{"$f":"[1]Infrastructure!R52","v":0},{"$f":"[1]Infrastructure!T52","v":0},{"$f":"[1]Infrastructure!W52","v":0},{"$f":"[1]Infrastructure!W52","v":0},0,{"$f":"[1]Infrastructure!Z52","v":0},{"$f":"[1]Infrastructure!Z52","v":0},0,{"$f":"[1]Infrastructure!AB52","v":0},{"$f":"[1]Infrastructure!AB52","v":0},0,{"$f":"[1]Infrastructure!AC52","v":0},{"$f":"[1]Infrastructure!AD52","v":0},{"$f":"[1]Infrastructure!AE52","v":0},{"$f":"[1]Infrastructure!AF52","v":0},{"$f":"[1]Infrastructure!AG52","v":0},{"$f":"[1]Infrastructure!AH52","v":0},0]
[0,null,null,null,null,null,{"$f":"[1]Infrastructure!G53","v":0},{"$f":"[1]Infrastructure!H53","v":0},{"$f":"[1]Infrastructure!I53","v":0},{"$f":"[1]Infrastructure!J53","v":0},{"$f":"[1]Infrastructure!K53","v":0},{"$f":"[1]Infrastructure!L53","v":0},{"$f":"[1]Infrastructure!M53","v":0},{"$f":"[1]Infrastructure!N53","v":0},{"$f":"[1]Infrastructure!O53","v":0},{"$f":"[1]Infrastructure!Q53","v":0},{"$f":"[1]Infrastructure!R53","v":0},{"$f":"[1]Infrastructure!T53","v":0},{"$f":"[1]Infrastructure!W53","v":0},{"$f":"[1]Infrastructure!W53","v":0},0,{"$f":"[1]Infrastructure!Z53","v":0},{"$f":"[1]Infrastructure!Z53","v":0},0,{"$f":"[1]Infrastructure!AB53","v":0},{"$f":"[1]Infrastructure!AB53","v":0},0,{"$f":"[1]Infrastructure!AC53","v":0},{"$f":"[1]Infrastructure!AD53","v":0},{"$f":"[1]Infrastructure!AE53","v":0},{"$f":"[1]Infrastructure!AF53","v":0},{"$f":"[1]Infrastructure!AG53","v":0},{"$f":"[1]Infrastructure!AH53","v":0},0]
[0,null,null,null,null,null,{"$f":"[1]Infrastructure!G54","v":0},{"$f":"[1]Infrastructure!H54","v":0},{"$f":"[1]Infrastructure!I54","v":0},{"$f":"[1]Infrastructure!J54","v":0},{"$f":"[1]Infrastructure!K54","v":0},{"$f":"[1]Infrastructure!L54","v":0},{"$f":"[1]Infrastructure!M54","v":0},{"$f":"[1]Infrastructure!N54","v":0},{"$f":"[1]Infrastructure!O54","v":0},{"$f":"[1]Infrastructure!Q54","v":0},{"$f":"[1]Infrastructure!R54","v":0},{"$f":"[1]Infrastructure!T54","v":0},{"$f":"[1]Infrastructure!W54","v":0},{"$f":"[1]Infrastructure!W54","v":0},0,{"$f":"[1]Infrastructure!Z54","v":0},{"$f":"[1]Infrastructure!Z54","v":0},0,{"$f":"[1]Infrastructure!AB54","v":0},{"$f":"[1]Infrastructure!AB54","v":0},0,{"$f":"[1]Infrastructure!AC54","v":0},{"$f":"[1]Infrastructure!AD54","v":0},{"$f":"[1]Infrastructure!AE54","v":0},{"$f":"[1]Infrastructure!AF54","v":0},{"$f":"[1]Infrastructure!AG54","v":0},{"$f":"[1]Infrastructure!AH54","v":0},0]
[0,null,null,null,null,null,{"$f":"[1]Infrastructure!G55","v":0},{"$f":"[1]Infrastructure!H55","v":0},{"$f":"[1]Infrastructure!I55","v":0},{"$f":"[1]Infrastructure!J55","v":0},{"$f":"[1]Infrastructure!K55","v":0},{"$f":"[1]Infrastructure!L55","v":0},{"$f":"[1]Infrastructure!M55","v":0},{"$f":"[1]Infrastructure!N55","v":0},{"$f":"[1]Infrastructure!O55","v":0},{"$f":"[1]Infrastructure!Q55","v":0},{"$f":"[1]Infrastructure!R55","v":0},{"$f":"[1]Infrastructure!T55","v":0},{"$f":"[1]Infrastructure!W55","v":0},{"$f":"[1]Infrastructure!W55","v":0},0,{"$f":"[1]Infrastructure!Z55","v":0},{"$f":"[1]Infrastructure!Z55","v":0},0,{"$f":"[1]Infrastructure!AB55","v":0},{"$f":"[1]Infrastructure!AB55","v":0},0,{"$f":"[1]Infrastructure!AC55","v":0},{"$f":"[1]Infrastructure!AD55","v":0},{"$f":"[1]Infrastructure!AE55","v":0},{"$f":"[1]Infrastructure!AF55","v":0},{"$f":"[1]Infrastructure!AG55","v":0},{"$f":"[1]Infrastructure!AH55","v":0},0]
[0,null,null,null,null,null,{"$f":"[1]Infrastructure!G56","v":0},{"$f":"[1]Infrastructure!H56","v":0},{"$f":"[1]Infrastructure!I56","v":0},{"$f":"[1]Infrastructure!J56","v":0},{"$f":"[1]Infrastructure!K56","v":0},{"$f":"[1]Infrastructure!L56","v":0},{"$f":"[1]Infrastructure!M56","v":0},{"$f":"[1]Infrastructure!N56","v":0},{"$f":"[1]Infrastructure!O56","v":0},{"$f":"[1]Infrastructure!Q56","v":0},{"$f":"[1]Infrastructure!R56","v":0},{"$f":"[1]Infrastructure!T56","v":0},{"$f":"[1]Infrastructure!W56","v":0},{"$f":"[1]Infrastructure!W56","v":0},0,{"$f":"[1]Infrastructure!Z56","v":0},{"$f":"[1]Infrastructure!Z56","v":0},0,{"$f":"[1]Infrastructure!AB56","v":0},{"$f":"[1]Infrastructure!AB56","v":0},0,{"$f":"[1]Infrastructure!AC56","v":0},{"$f":"[1]Infrastructure!AD56","v":0},{"$f":"[1]Infrastructure!AE56","v":0},{"$f":"[1]Infrastructure!AF56","v":0},{"$f":"[1]Infrastructure!AG56","v":0},{"$f":"[1]Infrastructure!AH56","v":0},0]
[0,null,null,null,null,null,{"$f":"[1]Infrastructure!G57","v":0},{"$f":"[1]Infrastructure!H57","v":0},{"$f":"[1]Infrastructure!I57","v":0},{"$f":"[1]Infrastructure!J57","v":0},{"$f":"[1]Infrastructure!K57","v":0},{"$f":"[1]Infrastructure!L57","v":0},{"$f":"[1]Infrastructure!M57","v":0},{"$f":"[1]Infrastructure!N57","v":0},{"$f":"[1]Infrastructure!O57","v":0},{"$f":"[1]Infrastructure!Q57","v":0},{"$f":"[1]Infrastructure!R57","v":0},{"$f":"[1]Infrastructure!T57","v":0},{"$f":"[1]Infrastructure!W57","v":0},{"$f":"[1]Infrastructure!W57","v":0},0,{"$f":"[1]Infrastructure!Z57","v":0},{"$f":"[1]Infrastructure!Z57","v":0},0,{"$f":"[1]Infrastructure!AB57","v":0},{"$f":"[1]Infrastructure!AB57","v":0},0,{"$f":"[1]Infrastructure!AC57","v":0},{"$f":"[1]Infrastructure!AD57","v":0},{"$f":"[1]Infrastructure!AE57","v":0},{"$f":"[1]Infrastructure!AF57","v":0},{"$f":"[1]Infrastructure!AG57","v":0},{"$f":"[1]Infrastructure!AH57","v":0},0]
[0,null,null,null,null,null,{"$f":"[1]Infrastructure!G58","v":0},{"$f":"[1]Infrastructure!H58","v":0},{"$f":"[1]Infrastructure!I58","v":0},{"$f":"[1]Infrastructure!J58","v":0},{"$f":"[1]Infrastructure!K58","v":0},{"$f":"[1]Infrastructure!L58","v":0},{"$f":"[1]Infrastructure!M58","v":0},{"$f":"[1]Infrastructure!N58","v":0},{"$f":"[1]Infrastructure!O58","v":0},{"$f":"[1]Infrastructure!Q58","v":0},{"$f":"[1]Infrastructure!R58","v":0},{"$f":"[1]Infrastructure!T58","v":0},{"$f":"[1]Infrastructure!W58","v":0},{"$f":"[1]Infrastructure!W58","v":0},0,{"$f":"[1]Infrastructure!Z58","v":0},{"$f":"[1]Infrastructure!Z58","v":0},0,{"$f":"[1]Infrastructure!AB58","v":0},{"$f":"[1]Infrastructure!AB58","v":0},0,{"$f":"[1]Infrastructure!AC58","v":0},{"$f":"[1]Infrastructure!AD58","v":0},{"$f":"[1]Infrastructure!AE58","v":0},{"$f":"[1]Infrastructure!AF58","v":0},{"$f":"[1]Infrastructure!AG58","v":0},{"$f":"[1]Infrastructure!AH58","v":0},0]
[0,null,null,null,null,null,{"$f":"[1]Infrastructure!G59","v":0},{"$f":"[1]Infrastructure!H59","v":0},{"$f":"[1]Infrastructure!I59","v":0},{"$f":"[1]Infrastructure!J59","v":0},{"$f":"[1]Infrastructure!K59","v":0},{"$f":"[1]Infrastructure!L59","v":0},{"$f":"[1]Infrastructure!M59","v":0},{"$f":"[1]Infrastructure!N59","v":0},{"$f":"[1]Infrastructure!O59","v":0},{"$f":"[1]Infrastructure!Q59","v":0},{"$f":"[1]Infrastructure!R59","v":0},{"$f":"[1]Infrastructure!T59","v":0},{"$f":"[1]Infrastructure!W59","v":0},{"$f":"[1]Infrastructure!W59","v":0},0,{"$f":"[1]Infrastructure!Z59","v":0},{"$f":"[1]Infrastructure!Z59","v":0},0,{"$f":"[1]Infrastructure!AB59","v":0},{"$f":"[1]Infrastructure!AB59","v":0},0,{"$f":"[1]Infrastructure!AC59","v":0},{"$f":"[1]Infrastructure!AD59","v":0},{"$f":"[1]Infrastructure!AE59","v":0},{"$f":"[1]Infrastructure!AF59","v":0},{"$f":"[1]Infrastructure!AG59","v":0},{"$f":"[1]Infrastructure!AH59","v":0},0]
[0,null,null,null,null,null,{"$f":"[1]Infrastructure!G60","v":0},{"$f":"[1]Infrastructure!H60","v":0},{"$f":"[1]Infrastructure!I60","v":0},{"$f":"[1]Infrastructure!J60","v":0},{"$f":"[1]Infrastructure!K60","v":0},{"$f":"[1]Infrastructure!L60","v":0},{"$f":"[1]Infrastructure!M60","v":0},{"$f":"[1]Infrastructure!N60","v":0},{"$f":"[1]Infrastructure!O60","v":0},{"$f":"[1]Infrastructure!Q60","v":0},{"$f":"[1]Infrastructure!R60","v":0},{"$f":"[1]Infrastructure!T60","v":0},{"$f":"[1]Infrastructure!W60","v":0},{"$f":"[1]Infrastructure!W60","v":0},0,{"$f":"[1]Infrastructure!Z60","v":0},{"$f":"[1]Infrastructure!Z60","v":0},0,{"$f":"[1]Infrastructure!AB60","v":0},{"$f":"[1]Infrastructure!AB60","v":0},0,{"$f":"[1]Infrastructure!AC60","v":0},{"$f":"[1]Infrastructure!AD60","v":0},{"$f":"[1]Infrastructure!AE60","v":0},{"$f":"[1]Infrastructure!AF60","v":0},{"$f":"[1]Infrastructure!AG60","v":0},{"$f":"[1]Infrastructure!AH60","v":0},0]
[0,null,null,null,null,null,{"$f":"[1]Infrastructure!G61","v":0},{"$f":"[1]Infrastructure!H61","v":0},{"$f":"[1]Infrastructure!I61","v":0},{"$f":"[1]Infrastructure!J61","v":0},{"$f":"[1]Infrastructure!K61","v":0},{"$f":"[1]Infrastructure!L61","v":0},{"$f":"[1]Infrastructure!M61","v":0},{"$f":"[1]Infrastructure!N61","v":0},{"$f":"[1]Infrastructure!O61","v":0},{"$f":"[1]Infrastructure!Q61","v":0},{"$f":"[1]Infrastructure!R61","v":0},{"$f":"[1]Infrastructure!T61","v":0},{"$f":"[1]Infrastructure!W61","v":0},{"$f":"[1]Infrastructure!W61","v":0},0,{"$f":"[1]Infrastructure!Z61","v":0},{"$f":"[1]Infrastructure!Z61","v":0},0,{"$f":"[1]Infrastructure!AB61","v":0},{"$f":"[1]Infrastructure!AB61","v":0},0,{"$f":"[1]Infrastructure!AC61","v":0},{"$f":"[1]Infrastructure!AD61","v":0},{"$f":"[1]Infrastructure!AE61","v":0},{"$f":"[1]Infrastructure!AF61","v":0},{"$f":"[1]Infrastructure!AG61","v":0},{"$f":"[1]Infrastructure!AH61","v":0},0]
[0,null,null,null,null,null,{"$f":"[1]Infrastructure!G62","v":0},{"$f":"[1]Infrastructure!H62","v":0},{"$f":"[1]Infrastructure!I62","v":0},{"$f":"[1]Infrastructure!J62","v":0},{"$f":"[1]Infrastructure!K62","v":0},{"$f":"[1]Infrastructure!L62","v":0},{"$f":"[1]Infrastructure!M62","v":0},{"$f":"[1]Infrastructure!N62","v":0},{"$f":"[1]Infrastructure!O62","v":0},{"$f":"[1]Infrastructure!Q62","v":0},{"$f":"[1]Infrastructure!R62","v":0},{"$f":"[1]Infrastructure!T62","v":0},{"$f":"[1]Infrastructure!W62","v":0},{"$f":"[1]Infrastructure!W62","v":0},0,{"$f":"[1]Infrastructure!Z62","v":0},{"$f":"[1]Infrastructure!Z62","v":0},0,{"$f":"[1]Infrastructure!AB62","v":0},{"$f":"[1]Infrastructure!AB62","v":0},0,{"$f":"[1]Infrastructure!AC62","v":0},{"$f":"[1]Infrastructure!AD62","v":0},{"$f":"[1]Infrastructure!AE62","v":0},{"$f":"[1]Infrastructure!AF62","v":0},{"$f":"[1]Infrastructure!AG62","v":0},{"$f":"[1]Infrastructure!AH62","v":0},0]
[0,null,null,null,null,null,{"$f":"[1]Infrastructure!G63","v":0},{"$f":"[1]Infrastructure!H63","v":0},{"$f":"[1]Infrastructure!I63","v":0},{"$f":"[1]Infrastructure!J63","v":0},{"$f":"[1]Infrastructure!K63","v":0},{"$f":"[1]Infrastructure!L63","v":0},{"$f":"[1]Infrastructure!M63","v":0},{"$f":"[1]Infrastructure!N63","v":0},{"$f":"[1]Infrastructure!O63","v":0},{"$f":"[1]Infrastructure!Q63","v":0},{"$f":"[1]Infrastructure!R63","v":0},{"$f":"[1]Infrastructure!T63","v":0},{"$f":"[1]Infrastructure!W63","v":0},{"$f":"[1]Infrastructure!W63","v":0},0,{"$f":"[1]Infrastructure!Z63","v":0},{"$f":"[1]Infrastructure!Z63","v":0},0,{"$f":"[1]Infrastructure!AB63","v":0},{"$f":"[1]Infrastructure!AB63","v":0},0,{"$f":"[1]Infrastructure!AC63","v":0},{"$f":"[1]Infrastructure!AD63","v":0},{"$f":"[1]Infrastructure!AE63","v":0},{"$f":"[1]Infrastructure!AF63","v":0},{"$f":"[1]Infrastructure!AG63","v":0},{"$f":"[1]Infrastructure!AH63","v":0},0]
[0,null,null,null,null,null,{"$f":"[1]Infrastructure!G64","v":0},{"$f":"[1]Infrastructure!H64","v":0},{"$f":"[1]Infrastructure!I64","v":0},{"$f":"[1]Infrastructure!J64","v":0},{"$f":"[1]Infrastructure!K64","v":0},{"$f":"[1]Infrastructure!L64","v":0},{"$f":"[1]Infrastructure!M64","v":0},{"$f":"[1]Infrastructure!N64","v":0},{"$f":"[1]Infrastructure!O64","v":0},{"$f":"[1]Infrastructure!Q64","v":0},{"$f":"[1]Infrastructure!R64","v":0},{"$f":"[1]Infrastructure!T64","v":0},{"$f":"[1]Infrastructure!W64","v":0},{"$f":"[1]Infrastructure!W64","v":0},0,{"$f":"[1]Infrastructure!Z64","v":0},{"$f":"[1]Infrastructure!Z64","v":0},0,{"$f":"[1]Infrastructure!AB64","v":0},{"$f":"[1]Infrastructure!AB64","v":0},0,{"$f":"[1]Infrastructure!AC64","v":0},{"$f":"[1]Infrastructure!AD64","v":0},{"$f":"[1]Infrastructure!AE64","v":0},{"$f":"[1]Infrastructure!AF64","v":0},{"$f":"[1]Infrastructure!AG64","v":0},{"$f":"[1]Infrastructure!AH64","v":0},0]
[0,null,null,null,null,null,{"$f":"[1]Infrastructure!G65","v":0},{"$f":"[1]Infrastructure!H65","v":0},{"$f":"[1]Infrastructure!I65","v":0},{"$f":"[1]Infrastructure!J65","v":0},{"$f":"[1]Infrastructure!K65","v":0},{"$f":"[1]Infrastructure!L65","v":0},{"$f":"[1]Infrastructure!M65","v":0},{"$f":"[1]Infrastructure!N65","v":0},{"$f":"[1]Infrastructure!O65","v":0},{"$f":"[1]Infrastructure!Q65","v":0},{"$f":"[1]Infrastructure!R65","v":0},{"$f":"[1]Infrastructure!T65","v":0},{"$f":"[1]Infrastructure!W65","v":0},{"$f":"[1]Infrastructure!W65","v":0},0,{"$f":"[1]Infrastructure!Z65","v":0},{"$f":"[1]Infrastructure!Z65","v":0},0,{"$f":"[1]Infrastructure!AB65","v":0},{"$f":"[1]Infrastructure!AB65","v":0},0,{"$f":"[1]Infrastructure!AC65","v":0},{"$f":"[1]Infrastructure!AD65","v":0},{"$f":"[1]Infrastructure!AE65","v":0},{"$f":"[1]Infrastructure!AF65","v":0},{"$f":"[1]Infrastructure!AG65","v":0},{"$f":"[1]Infrastructure!AH65","v":0},0]
[0,null,null,null,null,null,{"$f":"[1]Infrastructure!G66","v":0},{"$f":"[1]Infrastructure!H66","v":0},{"$f":"[1]Infrastructure!I66","v":0},{"$f":"[1]Infrastructure!J66","v":0},{"$f":"[1]Infrastructure!K66","v":0},{"$f":"[1]Infrastructure!L66","v":0},{"$f":"[1]Infrastructure!M66","v":0},{"$f":"[1]Infrastructure!N66","v":0},{"$f":"[1]Infrastructure!O66","v":0},{"$f":"[1]Infrastructure!Q66","v":0},{"$f":"[1]Infrastructure!R66","v":0},{"$f":"[1]Infrastructure!T66","v":0},{"$f":"[1]Infrastructure!W66","v":0},{"$f":"[1]Infrastructure!W66","v":0},0,{"$f":"[1]Infrastructure!Z66","v":0},{"$f":"[1]Infrastructure!Z66","v":0},0,{"$f":"[1]Infrastructure!AB66","v":0},{"$f":"[1]Infrastructure!AB66","v":0},0,{"$f":"[1]Infrastructure!AC66","v":0},{"$f":"[1]Infrastructure!AD66","v":0},{"$f":"[1]Infrastructure!AE66","v":0},{"$f":"[1]Infrastructure!AF66","v":0},{"$f":"[1]Infrastructure!AG66","v":0},{"$f":"[1]Infrastructure!AH66","v":0},0]
[0,null,null,null,null,null,{"$f":"[1]Infrastructure!G67","v":0},{"$f":"[1]Infrastructure!H67","v":0},{"$f":"[1]Infrastructure!I67","v":0},{"$f":"[1]Infrastructure!J67","v":0},{"$f":"[1]Infrastructure!K67","v":0},{"$f":"[1]Infrastructure!L67","v":0},{"$f":"[1]Infrastructure!M67","v":0},{"$f":"[1]Infrastructure!N67","v":0},{"$f":"[1]Infrastructure!O67","v":0},{"$f":"[1]Infrastructure!Q67","v":0},{"$f":"[1]Infrastructure!R67","v":0},{"$f":"[1]Infrastructure!T67","v":0},{"$f":"[1]Infrastructure!W67","v":0},{"$f":"[1]Infrastructure!W67","v":0},0,{"$f":"[1]Infrastructure!Z67","v":0},{"$f":"[1]Infrastructure!Z67","v":0},0,{"$f":"[1]Infrastructure!AB67","v":0},{"$f":"[1]Infrastructure!AB67","v":0},0,{"$f":"[1]Infrastructure!AC67","v":0},{"$f":"[1]Infrastructure!AD67","v":0},{"$f":"[1]Infrastructure!AE67","v":0},{"$f":"[1]Infrastructure!AF67","v":0},{"$f":"[1]Infrastructure!AG67","v":0},{"$f":"[1]Infrastructure!AH67","v":0},0]
[0,null,null,null,null,null,{"$f":"[1]Infrastructure!G68","v":0},{"$f":"[1]Infrastructure!H68","v":0},{"$f":"[1]Infrastructure!I68","v":0},{"$f":"[1]Infrastructure!J68","v":0},{"$f":"[1]Infrastructure!K68","v":0},{"$f":"[1]Infrastructure!L68","v":0},{"$f":"[1]Infrastructure!M68","v":0},{"$f":"[1]Infrastructure!N68","v":0},{"$f":"[1]Infrastructure!O68","v":0},{"$f":"[1]Infrastructure!Q68","v":0},{"$f":"[1]Infrastructure!R68","v":0},{"$f":"[1]Infrastructure!T68","v":0},{"$f":"[1]Infrastructure!W68","v":0},{"$f":"[1]Infrastructure!W68","v":0},0,{"$f":"[1]Infrastructure!Z68","v":0},{"$f":"[1]Infrastructure!Z68","v":0},0,{"$f":"[1]Infrastructure!AB68","v":0},{"$f":"[1]Infrastructure!AB68","v":0},0,{"$f":"[1]Infrastructure!AC68","v":0},{"$f":"[1]Infrastructure!AD68","v":0},{"$f":"[1]Infrastructure!AE68","v":0},{"$f":"[1]Infrastructure!AF68","v":0},{"$f":"[1]Infrastructure!AG68","v":0},{"$f":"[1]Infrastructure!AH68","v":0},0]
[0,null,null,null,null,null,{"$f":"[1]Infrastructure!G69","v":0},{"$f":"[1]Infrastructure!H69","v":0},{"$f":"[1]Infrastructure!I69","v":0},{"$f":"[1]Infrastructure!J69","v":0},{"$f":"[1]Infrastructure!K69","v":0},{"$f":"[1]Infrastructure!L69","v":0},{"$f":"[1]Infrastructure!M69","v":0},{"$f":"[1]Infrastructure!N69","v":0},{"$f":"[1]Infrastructure!O69","v":0},{"$f":"[1]Infrastructure!Q69","v":0},{"$f":"[1]Infrastructure!R69","v":0},{"$f":"[1]Infrastructure!T69","v":0},{"$f":"[1]Infrastructure!W69","v":0},{"$f":"[1]Infrastructure!W69","v":0},0,{"$f":"[1]Infrastructure!Z69","v":0},{"$f":"[1]Infrastructure!Z69","v":0},0,{"$f":"[1]Infrastructure!AB69","v":0},{"$f":"[1]Infrastructure!AB69","v":0},0,{"$f":"[1]Infrastructure!AC69","v":0},{"$f":"[1]Infrastructure!AD69","v":0},{"$f":"[1]Infrastructure!AE69","v":0},{"$f":"[1]Infrastructure!AF69","v":0},{"$f":"[1]Infrastructure!AG69","v":0},{"$f":"[1]Infrastructure!AH69","v":0},0]
[0,null,null,null,null,null,{"$f":"[1]Infrastructure!G70","v":0},{"$f":"[1]Infrastructure!H70","v":0},{"$f":"[1]Infrastructure!I70","v":0},{"$f":"[1]Infrastructure!J70","v":0},{"$f":"[1]Infrastructure!K70","v":0},{"$f":"[1]Infrastructure!L70","v":0},{"$f":"[1]Infrastructure!M70","v":0},{"$f":"[1]Infrastructure!N70","v":0},{"$f":"[1]Infrastructure!O70","v":0},{"$f":"[1]Infrastructure!Q70","v":0},{"$f":"[1]Infrastructure!R70","v":0},{"$f":"[1]Infrastructure!T70","v":0},{"$f":"[1]Infrastructure!W70","v":0},{"$f":"[1]Infrastructure!W70","v":0},0,{"$f":"[1]Infrastructure!Z70","v":0},{"$f":"[1]Infrastructure!Z70","v":0},0,{"$f":"[1]Infrastructure!AB70","v":0},{"$f":"[1]Infrastructure!AB70","v":0},0,{"$f":"[1]Infrastructure!AC70","v":0},{"$f":"[1]Infrastructure!AD70","v":0},{"$f":"[1]Infrastructure!AE70","v":0},{"$f":"[1]Infrastructure!AF70","v":0},{"$f":"[1]Infrastructure!AG70","v":0},{"$f":"[1]Infrastructure!AH70","v":0},0]
[0,null,null,null,null,null,{"$f":"[1]Infrastructure!G71","v":0},{"$f":"[1]Infrastructure!H71","v":0},{"$f":"[1]Infrastructure!I71","v":0},{"$f":"[1]Infrastructure!J71","v":0},{"$f":"[1]Infrastructure!K71","v":0},{"$f":"[1]Infrastructure!L71","v":0},{"$f":"[1]Infrastructure!M71","v":0},{"$f":"[1]Infrastructure!N71","v":0},{"$f":"[1]Infrastructure!O71","v":0},{"$f":"[1]Infrastructure!Q71","v":0},{"$f":"[1]Infrastructure!R71","v":0},{"$f":"[1]Infrastructure!T71","v":0},{"$f":"[1]Infrastructure!W71","v":0},{"$f":"[1]Infrastructure!W71","v":0},0,{"$f":"[1]Infrastructure!Z71","v":0},{"$f":"[1]Infrastructure!Z71","v":0},0,{"$f":"[1]Infrastructure!AB71","v":0},{"$f":"[1]Infrastructure!AB71","v":0},0,{"$f":"[1]Infrastructure!AC71","v":0},{"$f":"[1]Infrastructure!AD71","v":0},{"$f":"[1]Infrastructure!AE71","v":0},{"$f":"[1]Infrastructure!AF71","v":0},{"$f":"[1]Infrastructure!AG71","v":0},{"$f":"[1]Infrastructure!AH71","v":0},0]
[0,null,null,null,null,null,{"$f":"[1]Infrastructure!G72","v":0},{"$f":"[1]Infrastructure!H72","v":0},{"$f":"[1]Infrastructure!I72","v":0},{"$f":"[1]Infrastructure!J72","v":0},{"$f":"[1]Infrastructure!K72","v":0},{"$f":"[1]Infrastructure!L72","v":0},{"$f":"[1]Infrastructure!M72","v":0},{"$f":"[1]Infrastructure!N72","v":0},{"$f":"[1]Infrastructure!O72","v":0},{"$f":"[1]Infrastructure!Q72","v":0},{"$f":"[1]Infrastructure!R72","v":0},{"$f":"[1]Infrastructure!T72","v":0},{"$f":"[1]Infrastructure!W72","v":0},{"$f":"[1]Infrastructure!W72","v":0},0,{"$f":"[1]Infrastructure!Z72","v":0},{"$f":"[1]Infrastructure!Z72","v":0},0,{"$f":"[1]Infrastructure!AB72","v":0},{"$f":"[1]Infrastructure!AB72","v":0},0,{"$f":"[1]Infrastructure!AC72","v":0},{"$f":"[1]Infrastructure!AD72","v":0},{"$f":"[1]Infrastructure!AE72","v":0},{"$f":"[1]Infrastructure!AF72","v":0},{"$f":"[1]Infrastructure!AG72","v":0},{"$f":"[1]Infrastructure!AH72","v":0},0]
[0,null,null,null,null,null,{"$f":"[1]Infrastructure!G73","v":0},{"$f":"[1]Infrastructure!H73","v":0},{"$f":"[1]Infrastructure!I73","v":0},{"$f":"[1]Infrastructure!J73","v":0},{"$f":"[1]Infrastructure!K73","v":0},{"$f":"[1]Infrastructure!L73","v":0},{"$f":"[1]Infrastructure!M73","v":0},{"$f":"[1]Infrastructure!N73","v":0},{"$f":"[1]Infrastructure!O73","v":0},{"$f":"[1]Infrastructure!Q73","v":0},{"$f":"[1]Infrastructure!R73","v":0},{"$f":"[1]Infrastructure!T73","v":0},{"$f":"[1]Infrastructure!W73","v":0},{"$f":"[1]Infrastructure!W73","v":0},0,{"$f":"[1]Infrastructure!Z73","v":0},{"$f":"[1]Infrastructure!Z73","v":0},0,{"$f":"[1]Infrastructure!AB73","v":0},{"$f":"[1]Infrastructure!AB73","v":0},0,{"$f":"[1]Infrastructure!AC73","v":0},{"$f":"[1]Infrastructure!AD73","v":0},{"$f":"[1]Infrastructure!AE73","v":0},{"$f":"[1]Infrastructure!AF73","v":0},{"$f":"[1]Infrastructure!AG73","v":0},{"$f":"[1]Infrastructure!AH73","v":0},0]
[0,null,null,null,null,null,{"$f":"[1]Infrastructure!G74","v":0},{"$f":"[1]Infrastructure!H74","v":0},{"$f":"[1]Infrastructure!I74","v":0},{"$f":"[1]Infrastructure!J74","v":0},{"$f":"[1]Infrastructure!K74","v":0},{"$f":"[1]Infrastructure!L74","v":0},{"$f":"[1]Infrastructure!M74","v":0},{"$f":"[1]Infrastructure!N74","v":0},{"$f":"[1]Infrastructure!O74","v":0},{"$f":"[1]Infrastructure!Q74","v":0},{"$f":"[1]Infrastructure!R74","v":0},{"$f":"[1]Infrastructure!T74","v":0},{"$f":"[1]Infrastructure!W74","v":0},{"$f":"[1]Infrastructure!W74","v":0},0,{"$f":"[1]Infrastructure!Z74","v":0},{"$f":"[1]Infrastructure!Z74","v":0},0,{"$f":"[1]Infrastructure!AB74","v":0},{"$f":"[1]Infrastructure!AB74","v":0},0,{"$f":"[1]Infrastructure!AC74","v":0},{"$f":"[1]Infrastructure!AD74","v":0},{"$f":"[1]Infrastructure!AE74","v":0},{"$f":"[1]Infrastructure!AF74","v":0},{"$f":"[1]Infrastructure!AG74","v":0},{"$f":"[1]Infrastructure!AH74","v":0},0]
[0,null,null,null,null,null,{"$f":"[1]Infrastructure!G75","v":0},{"$f":"[1]Infrastructure!H75","v":0},{"$f":"[1]Infrastructure!I75","v":0},{"$f":"[1]Infrastructure!J75","v":0},{"$f":"[1]Infrastructure!K75","v":0},{"$f":"[1]Infrastructure!L75","v":0},{"$f":"[1]Infrastructure!M75","v":0},{"$f":"[1]Infrastructure!N75","v":0},{"$f":"[1]Infrastructure!O75","v":0},{"$f":"[1]Infrastructure!Q75","v":0},{"$f":"[1]Infrastructure!R75","v":0},{"$f":"[1]Infrastructure!T75","v":0},{"$f":"[1]Infrastructure!W75","v":0},{"$f":"[1]Infrastructure!W75","v":0},0,{"$f":"[1]Infrastructure!Z75","v":0},{"$f":"[1]Infrastructure!Z75","v":0},0,{"$f":"[1]Infrastructure!AB75","v":0},{"$f":"[1]Infrastructure!AB75","v":0},0,{"$f":"[1]Infrastructure!AC75","v":0},{"$f":"[1]Infrastructure!AD75","v":0},{"$f":"[1]Infrastructure!AE75","v":0},{"$f":"[1]Infrastructure!AF75","v":0},{"$f":"[1]Infrastructure!AG75","v":0},{"$f":"[1]Infrastructure!AH75","v":0},0]
[{"$f":"IF(SUM(O76:AH76),1,0)","v":0},null,null,null,null,null,{"$f":"[1]Infrastructure!G76","v":0},{"$f":"[1]Infrastructure!H76","v":0},{"$f":"[1]Infrastructure!I76","v":0},{"$f":"[1]Infrastructure!J76","v":0},{"$f":"[1]Infrastructure!K76","v":0},{"$f":"[1]Infrastructure!L76","v":0},{"$f":"[1]Infrastructure!M76","v":0},{"$f":"[1]Infrastructure!N76","v":0},{"$f":"[1]Infrastructure!O76","v":0},{"$f":"[1]Infrastructure!Q76","v":0},{"$f":"[1]Infrastructure!R76","v":0},{"$f":"[1]Infrastructure!T76","v":0},{"$f":"[1]Infrastructure!W76","v":0},{"$f":"[1]Infrastructure!W76","v":0},{"$f":"SUM(T76-S76)","v":0},{"$f":"[1]Infrastructure!Z76","v":0},{"$f":"[1]Infrastructure!Z76","v":0},{"$f":"SUM(W76-V76)","v":0},{"$f":"[1]Infrastructure!AB76","v":0},{"$f":"[1]Infrastructure!AB76","v":0},{"$f":"SUM(Z76-Y76)","v":0},{"$f":"[1]Infrastructure!AC76","v":0},{"$f":"[1]Infrastructure!AD76","v":0},{"$f":"[1]Infrastructure!AE76","v":0},{"$f":"[1]Infrastructure!AF76","v":0},{"$f":"[1]Infrastructure!AG76","v":0},{"$f":"[1]Infrastructure!AH76","v":0},0]
[0,null,null,null,null,null,{"$f":"[1]Infrastructure!G77","v":0},{"$f":"[1]Infrastructure!H77","v":0},{"$f":"[1]Infrastructure!I77","v":0},{"$f":"[1]Infrastructure!J77","v":0},{"$f":"[1]Infrastructure!K77","v":0},{"$f":"[1]Infrastructure!L77","v":0},{"$f":"[1]Infrastructure!M77","v":0},{"$f":"[1]Infrastructure!N77","v":0},{"$f":"[1]Infrastructure!O77","v":0},{"$f":"[1]Infrastructure!Q77","v":0},{"$f":"[1]Infrastructure!R77","v":0},{"$f":"[1]Infrastructure!T77","v":0},{"$f":"[1]Infrastructure!W77","v":0},{"$f":"[1]Infrastructure!W77","v":0},0,{"$f":"[1]Infrastructure!Z77","v":0},{"$f":"[1]Infrastructure!Z77","v":0},0,{"$f":"[1]Infrastructure!AB77","v":0},{"$f":"[1]Infrastructure!AB77","v":0},0,{"$f":"[1]Infrastructure!AC77","v":0},{"$f":"[1]Infrastructure!AD77","v":0},{"$f":"[1]Infrastructure!AE77","v":0},{"$f":"[1]Infrastructure!AF77","v":0},{"$f":"[1]Infrastructure!AG77","v":0},{"$f":"[1]Infrastructure!AH77","v":0},0]
[0,null,null,null,null,null,{"$f":"[1]Infrastructure!G78","v":0},{"$f":"[1]Infrastructure!H78","v":0},{"$f":"[1]Infrastructure!I78","v":0},{"$f":"[1]Infrastructure!J78","v":0},{"$f":"[1]Infrastructure!K78","v":0},{"$f":"[1]Infrastructure!L78","v":0},{"$f":"[1]Infrastructure!M78","v":0},{"$f":"[1]Infrastructure!N78","v":0},{"$f":"[1]Infrastructure!O78","v":0},{"$f":"[1]Infrastructure!Q78","v":0},{"$f":"[1]Infrastructure!R78","v":0},{"$f":"[1]Infrastructure!T78","v":0},{"$f":"[1]Infrastructure!W78","v":0},{"$f":"[1]Infrastructure!W78","v":0},0,{"$f":"[1]Infrastructure!Z78","v":0},{"$f":"[1]Infrastructure!Z78","v":0},0,{"$f":"[1]Infrastructure!AB78","v":0},{"$f":"[1]Infrastructure!AB78","v":0},0,{"$f":"[1]Infrastructure!AC78","v":0},{"$f":"[1]Infrastructure!AD78","v":0},{"$f":"[1]Infrastructure!AE78","v":0},{"$f":"[1]Infrastructure!AF78","v":0},{"$f":"[1]Infrastructure!AG78","v":0},{"$f":"[1]Infrastructure!AH78","v":0},0]
[0,null,null,null,null,null,{"$f":"[1]Infrastructure!G79","v":0},{"$f":"[1]Infrastructure!H79","v":0},{"$f":"[1]Infrastructure!I79","v":0},{"$f":"[1]Infrastructure!J79","v":0},{"$f":"[1]Infrastructure!K79","v":0},{"$f":"[1]Infrastructure!L79","v":0},{"$f":"[1]Infrastructure!M79","v":0},{"$f":"[1]Infrastructure!N79","v":0},{"$f":"[1]Infrastructure!O79","v":0},{"$f":"[1]Infrastructure!Q79","v":0},{"$f":"[1]Infrastructure!R79","v":0},{"$f":"[1]Infrastructure!T79","v":0},{"$f":"[1]Infrastructure!W79","v":0},{"$f":"[1]Infrastructure!W79","v":0},0,{"$f":"[1]Infrastructure!Z79","v":0},{"$f":"[1]Infrastructure!Z79","v":0},0,{"$f":"[1]Infrastructure!AB79","v":0},{"$f":"[1]Infrastructure!AB79","v":0},0,{"$f":"[1]Infrastructure!AC79","v":0},{"$f":"[1]Infrastructure!AD79","v":0},{"$f":"[1]Infrastructure!AE79","v":0},{"$f":"[1]Infrastructure!AF79","v":0},{"$f":"[1]Infrastructure!AG79","v":0},{"$f":"[1]Infrastructure!AH79","v":0},0]
[0,null,null,null,null,null,{"$f":"[1]Infrastructure!G80","v":0},{"$f":"[1]Infrastructure!H80","v":0},{"$f":"[1]Infrastructure!I80","v":0},{"$f":"[1]Infrastructure!J80","v":0},{"$f":"[1]Infrastructure!K80","v":0},{"$f":"[1]Infrastructure!L80","v":0},{"$f":"[1]Infrastructure!M80","v":0},{"$f":"[1]Infrastructure!N80","v":0},{"$f":"[1]Infrastructure!O80","v":0},{"$f":"[1]Infrastructure!Q80","v":0},{"$f":"[1]Infrastructure!R80","v":0},{"$f":"[1]Infrastructure!T80","v":0},{"$f":"[1]Infrastructure!W80","v":0},{"$f":"[1]Infrastructure!W80","v":0},0,{"$f":"[1]Infrastructure!Z80","v":0},{"$f":"[1]Infrastructure!Z80","v":0},0,{"$f":"[1]Infrastructure!AB80","v":0},{"$f":"[1]Infrastructure!AB80","v":0},0,{"$f":"[1]Infrastructure!AC80","v":0},{"$f":"[1]Infrastructure!AD80","v":0},{"$f":"[1]Infrastructure!AE80","v":0},{"$f":"[1]Infrastructure!AF80","v":0},{"$f":"[1]Infrastructure!AG80","v":0},{"$f":"[1]Infrastructure!AH80","v":0},0]
[0,null,null,null,null,null,{"$f":"[1]Infrastructure!G81","v":0},{"$f":"[1]Infrastructure!H81","v":0},{"$f":"[1]Infrastructure!I81","v":0},{"$f":"[1]Infrastructure!J81","v":0},{"$f":"[1]Infrastructure!K81","v":0},{"$f":"[1]Infrastructure!L81","v":0},{"$f":"[1]Infrastructure!M81","v":0},{"$f":"[1]Infrastructure!N81","v":0},{"$f":"[1]Infrastructure!O81","v":0},{"$f":"[1]Infrastructure!Q81","v":0},{"$f":"[1]Infrastructure!R81","v":0},{"$f":"[1]Infrastructure!T81","v":0},{"$f":"[1]Infrastructure!W81","v":0},{"$f":"[1]Infrastructure!W81","v":0},0,{"$f":"[1]Infrastructure!Z81","v":0},{"$f":"[1]Infrastructure!Z81","v":0},0,{"$f":"[1]Infrastructure!AB81","v":0},{"$f":"[1]Infrastructure!AB81","v":0},0,{"$f":"[1]Infrastructure!AC81","v":0},{"$f":"[1]Infrastructure!AD81","v":0},{"$f":"[1]Infrastructure!AE81","v":0},{"$f":"[1]Infrastructure!AF81","v":0},{"$f":"[1]Infrastructure!AG81","v":0},{"$f":"[1]Infrastructure!AH81","v":0},0]
[0,null,null,null,null,null,{"$f":"[1]Infrastructure!G82","v":0},{"$f":"[1]Infrastructure!H82","v":0},{"$f":"[1]Infrastructure!I82","v":0},{"$f":"[1]Infrastructure!J82","v":0},{"$f":"[1]Infrastructure!K82","v":0},{"$f":"[1]Infrastructure!L82","v":0},{"$f":"[1]Infrastructure!M82","v":0},{"$f":"[1]Infrastructure!N82","v":0},{"$f":"[1]Infrastructure!O82","v":0},{"$f":"[1]Infrastructure!Q82","v":0},{"$f":"[1]Infrastructure!R82","v":0},{"$f":"[1]Infrastructure!T82","v":0},{"$f":"[1]Infrastructure!W82","v":0},{"$f":"[1]Infrastructure!W82","v":0},0,{"$f":"[1]Infrastructure!Z82","v":0},{"$f":"[1]Infrastructure!Z82","v":0},0,{"$f":"[1]Infrastructure!AB82","v":0},{"$f":"[1]Infrastructure!AB82","v":0},0,{"$f":"[1]Infrastructure!AC82","v":0},{"$f":"[1]Infrastructure!AD82","v":0},{"$f":"[1]Infrastructure!AE82","v":0},{"$f":"[1]Infrastructure!AF82","v":0},{"$f":"[1]Infrastructure!AG82","v":0},{"$f":"[1]Infrastructure!AH82","v":0},0]
[0,null,null,null,null,null,{"$f":"[1]Infrastructure!G83","v":0},{"$f":"[1]Infrastructure!H83","v":0},{"$f":"[1]Infrastructure!I83","v":0},{"$f":"[1]Infrastructure!J83","v":0},{"$f":"[1]Infrastructure!K83","v":0},{"$f":"[1]Infrastructure!L83","v":0},{"$f":"[1]Infrastructure!M83","v":0},{"$f":"[1]Infrastructure!N83","v":0},{"$f":"[1]Infrastructure!O83","v":0},{"$f":"[1]Infrastructure!Q83","v":0},{"$f":"[1]Infrastructure!R83","v":0},{"$f":"[1]Infrastructure!T83","v":0},{"$f":"[1]Infrastructure!W83","v":0},{"$f":"[1]Infrastructure!W83","v":0},0,{"$f":"[1]Infrastructure!Z83","v":0},{"$f":"[1]Infrastructure!Z83","v":0},0,{"$f":"[1]Infrastructure!AB83","v":0},{"$f":"[1]Infrastructure!AB83","v":0},0,{"$f":"[1]Infrastructure!AC83","v":0},{"$f":"[1]Infrastructure!AD83","v":0},{"$f":"[1]Infrastructure!AE83","v":0},{"$f":"[1]Infrastructure!AF83","v":0},{"$f":"[1]Infrastructure!AG83","v":0},{"$f":"[1]Infrastructure!AH83","v":0},0]
[0,null,null,null,null,null,{"$f":"[1]Infrastructure!G84","v":0},{"$f":"[1]Infrastructure!H84","v":0},{"$f":"[1]Infrastructure!I84","v":0},{"$f":"[1]Infrastructure!J84","v":0},{"$f":"[1]Infrastructure!K84","v":0},{"$f":"[1]Infrastructure!L84","v":0},{"$f":"[1]Infrastructure!M84","v":0},{"$f":"[1]Infrastructure!N84","v":0},{"$f":"[1]Infrastructure!O84","v":0},{"$f":"[1]Infrastructure!Q84","v":0},{"$f":"[1]Infrastructure!R84","v":0},{"$f":"[1]Infrastructure!T84","v":0},{"$f":"[1]Infrastructure!W84","v":0},{"$f":"[1]Infrastructure!W84","v":0},0,{"$f":"[1]Infrastructure!Z84","v":0},{"$f":"[1]Infrastructure!Z84","v":0},0,{"$f":"[1]Infrastructure!AB84","v":0},{"$f":"[1]Infrastructure!AB84","v":0},0,{"$f":"[1]Infrastructure!AC84","v":0},{"$f":"[1]Infrastructure!AD84","v":0},{"$f":"[1]Infrastructure!AE84","v":0},{"$f":"[1]Infrastructure!AF84","v":0},{"$f":"[1]Infrastructure!AG84","v":0},{"$f":"[1]Infrastructure!AH84","v":0},0]
[0,null,null,null,null,null,{"$f":"[1]Infrastructure!G85","v":0},{"$f":"[1]Infrastructure!H85","v":0},{"$f":"[1]Infrastructure!I85","v":0},{"$f":"[1]Infrastructure!J85","v":0},{"$f":"[1]Infrastructure!K85","v":0},{"$f":"[1]Infrastructure!L85","v":0},{"$f":"[1]Infrastructure!M85","v":0},{"$f":"[1]Infrastructure!N85","v":0},{"$f":"[1]Infrastructure!O85","v":0},{"$f":"[1]Infrastructure!Q85","v":0},{"$f":"[1]Infrastructure!R85","v":0},{"$f":"[1]Infrastructure!T85","v":0},{"$f":"[1]Infrastructure!W85","v":0},{"$f":"[1]Infrastructure!W85","v":0},0,{"$f":"[1]Infrastructure!Z85","v":0},{"$f":"[1]Infrastructure!Z85","v":0},0,{"$f":"[1]Infrastructure!AB85","v":0},{"$f":"[1]Infrastructure!AB85","v":0},0,{"$f":"[1]Infrastructure!AC85","v":0},{"$f":"[1]Infrastructure!AD85","v":0},{"$f":"[1]Infrastructure!AE85","v":0},{"$f":"[1]Infrastructure!AF85","v":0},{"$f":"[1]Infrastructure!AG85","v":0},{"$f":"[1]Infrastructure!AH85","v":0},0]
[0,null,null,null,null,null,{"$f":"[1]Infrastructure!G86","v":0},{"$f":"[1]Infrastructure!H86","v":0},{"$f":"[1]Infrastructure!I86","v":0},{"$f":"[1]Infrastructure!J86","v":0},{"$f":"[1]Infrastructure!K86","v":0},{"$f":"[1]Infrastructure!L86","v":0},{"$f":"[1]Infrastructure!M86","v":0},{"$f":"[1]Infrastructure!N86","v":0},{"$f":"[1]Infrastructure!O86","v":0},{"$f":"[1]Infrastructure!Q86","v":0},{"$f":"[1]Infrastructure!R86","v":0},{"$f":"[1]Infrastructure!T86","v":0},{"$f":"[1]Infrastructure!W86","v":0},{"$f":"[1]Infrastructure!W86","v":0},0,{"$f":"[1]Infrastructure!Z86","v":0},{"$f":"[1]Infrastructure!Z86","v":0},0,{"$f":"[1]Infrastructure!AB86","v":0},{"$f":"[1]Infrastructure!AB86","v":0},0,{"$f":"[1]Infrastructure!AC86","v":0},{"$f":"[1]Infrastructure!AD86","v":0},{"$f":"[1]Infrastructure!AE86","v":0},{"$f":"[1]Infrastructure!AF86","v":0},{"$f":"[1]Infrastructure!AG86","v":0},{"$f":"[1]Infrastructure!AH86","v":0},0]
[0,null,null,null,null,null,{"$f":"[1]Infrastructure!G87","v":0},{"$f":"[1]Infrastructure!H87","v":0},{"$f":"[1]Infrastructure!I87","v":0},{"$f":"[1]Infrastructure!J87","v":0},{"$f":"[1]Infrastructure!K87","v":0},{"$f":"[1]Infrastructure!L87","v":0},{"$f":"[1]Infrastructure!M87","v":0},{"$f":"[1]Infrastructure!N87","v":0},{"$f":"[1]Infrastructure!O87","v":0},{"$f":"[1]Infrastructure!Q87","v":0},{"$f":"[1]Infrastructure!R87","v":0},{"$f":"[1]Infrastructure!T87","v":0},{"$f":"[1]Infrastructure!W87","v":0},{"$f":"[1]Infrastructure!W87","v":0},0,{"$f":"[1]Infrastructure!Z87","v":0},{"$f":"[1]Infrastructure!Z87","v":0},0,{"$f":"[1]Infrastructure!AB87","v":0},{"$f":"[1]Infrastructure!AB87","v":0},0,{"$f":"[1]Infrastructure!AC87","v":0},{"$f":"[1]Infrastructure!AD87","v":0},{"$f":"[1]Infrastructure!AE87","v":0},{"$f":"[1]Infrastructure!AF87","v":0},{"$f":"[1]Infrastructure!AG87","v":0},{"$f":"[1]Infrastructure!AH87","v":0},0]
[0,null,null,null,null,null,{"$f":"[1]Infrastructure!G88","v":0},{"$f":"[1]Infrastructure!H88","v":0},{"$f":"[1]Infrastructure!I88","v":0},{"$f":"[1]Infrastructure!J88","v":0},{"$f":"[1]Infrastructure!K88","v":0},{"$f":"[1]Infrastructure!L88","v":0},{"$f":"[1]Infrastructure!M88","v":0},{"$f":"[1]Infrastructure!N88","v":0},{"$f":"[1]Infrastructure!O88","v":0},{"$f":"[1]Infrastructure!Q88","v":0},{"$f":"[1]Infrastructure!R88","v":0},{"$f":"[1]Infrastructure!T88","v":0},{"$f":"[1]Infrastructure!W88","v":0},{"$f":"[1]Infrastructure!W88","v":0},0,{"$f":"[1]Infrastructure!Z88","v":0},{"$f":"[1]Infrastructure!Z88","v":0},0,{"$f":"[1]Infrastructure!AB88","v":0},{"$f":"[1]Infrastructure!AB88","v":0},0,{"$f":"[1]Infrastructure!AC88","v":0},{"$f":"[1]Infrastructure!AD88","v":0},{"$f":"[1]Infrastructure!AE88","v":0},{"$f":"[1]Infrastructure!AF88","v":0},{"$f":"[1]Infrastructure!AG88","v":0},{"$f":"[1]Infrastructure!AH88","v":0},0]
[0,null,null,null,null,null,{"$f":"[1]Infrastructure!G89","v":0},{"$f":"[1]Infrastructure!H89","v":0},{"$f":"[1]Infrastructure!I89","v":0},{"$f":"[1]Infrastructure!J89","v":0},{"$f":"[1]Infrastructure!K89","v":0},{"$f":"[1]Infrastructure!L89","v":0},{"$f":"[1]Infrastructure!M89","v":0},{"$f":"[1]Infrastructure!N89","v":0},{"$f":"[1]Infrastructure!O89","v":0},{"$f":"[1]Infrastructure!Q89","v":0},{"$f":"[1]Infrastructure!R89","v":0},{"$f":"[1]Infrastructure!T89","v":0},{"$f":"[1]Infrastructure!W89","v":0},{"$f":"[1]Infrastructure!W89","v":0},0,{"$f":"[1]Infrastructure!Z89","v":0},{"$f":"[1]Infrastructure!Z89","v":0},0,{"$f":"[1]Infrastructure!AB89","v":0},{"$f":"[1]Infrastructure!AB89","v":0},0,{"$f":"[1]Infrastructure!AC89","v":0},{"$f":"[1]Infrastructure!AD89","v":0},{"$f":"[1]Infrastructure!AE89","v":0},{"$f":"[1]Infrastructure!AF89","v":0},{"$f":"[1]Infrastructure!AG89","v":0},{"$f":"[1]Infrastructure!AH89","v":0},0]
[0,null,null,null,null,null,{"$f":"[1]Infrastructure!G90","v":0},{"$f":"[1]Infrastructure!H90","v":0},{"$f":"[1]Infrastructure!I90","v":0},{"$f":"[1]Infrastructure!J90","v":0},{"$f":"[1]Infrastructure!K90","v":0},{"$f":"[1]Infrastructure!L90","v":0},{"$f":"[1]Infrastructure!M90","v":0},{"$f":"[1]Infrastructure!N90","v":0},{"$f":"[1]Infrastructure!O90","v":0},{"$f":"[1]Infrastructure!Q90","v":0},{"$f":"[1]Infrastructure!R90","v":0},{"$f":"[1]Infrastructure!T90","v":0},{"$f":"[1]Infrastructure!W90","v":0},{"$f":"[1]Infrastructure!W90","v":0},0,{"$f":"[1]Infrastructure!Z90","v":0},{"$f":"[1]Infrastructure!Z90","v":0},0,{"$f":"[1]Infrastructure!AB90","v":0},{"$f":"[1]Infrastructure!AB90","v":0},0,{"$f":"[1]Infrastructure!AC90","v":0},{"$f":"[1]Infrastructure!AD90","v":0},{"$f":"[1]Infrastructure!AE90","v":0},{"$f":"[1]Infrastructure!AF90","v":0},{"$f":"[1]Infrastructure!AG90","v":0},{"$f":"[1]Infrastructure!AH90","v":0},0]
[0,null,null,null,null,null,{"$f":"[1]Infrastructure!G91","v":0},{"$f":"[1]Infrastructure!H91","v":0},{"$f":"[1]Infrastructure!I91","v":0},{"$f":"[1]Infrastructure!J91","v":0},{"$f":"[1]Infrastructure!K91","v":0},{"$f":"[1]Infrastructure!L91","v":0},{"$f":"[1]Infrastructure!M91","v":0},{"$f":"[1]Infrastructure!N91","v":0},{"$f":"[1]Infrastructure!O91","v":0},{"$f":"[1]Infrastructure!Q91","v":0},{"$f":"[1]Infrastructure!R91","v":0},{"$f":"[1]Infrastructure!T91","v":0},{"$f":"[1]Infrastructure!W91","v":0},{"$f":"[1]Infrastructure!W91","v":0},0,{"$f":"[1]Infrastructure!Z91","v":0},{"$f":"[1]Infrastructure!Z91","v":0},0,{"$f":"[1]Infrastructure!AB91","v":0},{"$f":"[1]Infrastructure!AB91","v":0},0,{"$f":"[1]Infrastructure!AC91","v":0},{"$f":"[1]Infrastructure!AD91","v":0},{"$f":"[1]Infrastructure!AE91","v":0},{"$f":"[1]Infrastructure!AF91","v":0},{"$f":"[1]Infrastructure!AG91","v":0},{"$f":"[1]Infrastructure!AH91","v":0},0]
[0,null,null,null,null,null,{"$f":"[1]Infrastructure!G92","v":0},{"$f":"[1]Infrastructure!H92","v":0},{"$f":"[1]Infrastructure!I92","v":0},{"$f":"[1]Infrastructure!J92","v":0},{"$f":"[1]Infrastructure!K92","v":0},{"$f":"[1]Infrastructure!L92","v":0},{"$f":"[1]Infrastructure!M92","v":0},{"$f":"[1]Infrastructure!N92","v":0},{"$f":"[1]Infrastructure!O92","v":0},{"$f":"[1]Infrastructure!Q92","v":0},{"$f":"[1]Infrastructure!R92","v":0},{"$f":"[1]Infrastructure!T92","v":0},{"$f":"[1]Infrastructure!W92","v":0},{"$f":"[1]Infrastructure!W92","v":0},0,{"$f":"[1]Infrastructure!Z92","v":0},{"$f":"[1]Infrastructure!Z92","v":0},0,{"$f":"[1]Infrastructure!AB92","v":0},{"$f":"[1]Infrastructure!AB92","v":0},0,{"$f":"[1]Infrastructure!AC92","v":0},{"$f":"[1]Infrastructure!AD92","v":0},{"$f":"[1]Infrastructure!AE92","v":0},{"$f":"[1]Infrastructure!AF92","v":0},{"$f":"[1]Infrastructure!AG92","v":0},{"$f":"[1]Infrastructure!AH92","v":0},0]
[0,null,null,null,null,null,{"$f":"[1]Infrastructure!G93","v":0},{"$f":"[1]Infrastructure!H93","v":0},{"$f":"[1]Infrastructure!I93","v":0},{"$f":"[1]Infrastructure!J93","v":0},{"$f":"[1]Infrastructure!K93","v":0},{"$f":"[1]Infrastructure!L93","v":0},{"$f":"[1]Infrastructure!M93","v":0},{"$f":"[1]Infrastructure!N93","v":0},{"$f":"[1]Infrastructure!O93","v":0},{"$f":"[1]Infrastructure!Q93","v":0},{"$f":"[1]Infrastructure!R93","v":0},{"$f":"[1]Infrastructure!T93","v":0},{"$f":"[1]Infrastructure!W93","v":0},{"$f":"[1]Infrastructure!W93","v":0},0,{"$f":"[1]Infrastructure!Z93","v":0},{"$f":"[1]Infrastructure!Z93","v":0},0,{"$f":"[1]Infrastructure!AB93","v":0},{"$f":"[1]Infrastructure!AB93","v":0},0,{"$f":"[1]Infrastructure!AC93","v":0},{"$f":"[1]Infrastructure!AD93","v":0},{"$f":"[1]Infrastructure!AE93","v":0},{"$f":"[1]Infrastructure!AF93","v":0},{"$f":"[1]Infrastructure!AG93","v":0},{"$f":"[1]Infrastructure!AH93","v":0},0]
[0,null,null,null,null,null,{"$f":"[1]Infrastructure!G94","v":0},{"$f":"[1]Infrastructure!H94","v":0},{"$f":"[1]Infrastructure!I94","v":0},{"$f":"[1]Infrastructure!J94","v":0},{"$f":"[1]Infrastructure!K94","v":0},{"$f":"[1]Infrastructure!L94","v":0},{"$f":"[1]Infrastructure!M94","v":0},{"$f":"[1]Infrastructure!N94","v":0},{"$f":"[1]Infrastructure!O94","v":0},{"$f":"[1]Infrastructure!Q94","v":0},{"$f":"[1]Infrastructure!R94","v":0},{"$f":"[1]Infrastructure!T94","v":0},{"$f":"[1]Infrastructure!W94","v":0},{"$f":"[1]Infrastructure!W94","v":0},0,{"$f":"[1]Infrastructure!Z94","v":0},{"$f":"[1]Infrastructure!Z94","v":0},0,{"$f":"[1]Infrastructure!AB94","v":0},{"$f":"[1]Infrastructure!AB94","v":0},0,{"$f":"[1]Infrastructure!AC94","v":0},{"$f":"[1]Infrastructure!AD94","v":0},{"$f":"[1]Infrastructure!AE94","v":0},{"$f":"[1]Infrastructure!AF94","v":0},{"$f":"[1]Infrastructure!AG94","v":0},{"$f":"[1]Infrastructure!AH94","v":0},0]
[0,null,null,null,null,null,{"$f":"[1]Infrastructure!G95","v":0},{"$f":"[1]Infrastructure!H95","v":0},{"$f":"[1]Infrastructure!I95","v":0},{"$f":"[1]Infrastructure!J95","v":0},{"$f":"[1]Infrastructure!K95","v":0},{"$f":"[1]Infrastructure!L95","v":0},{"$f":"[1]Infrastructure!M95","v":0},{"$f":"[1]Infrastructure!N95","v":0},{"$f":"[1]Infrastructure!O95","v":0},{"$f":"[1]Infrastructure!Q95","v":0},{"$f":"[1]Infrastructure!R95","v":0},{"$f":"[1]Infrastructure!T95","v":0},{"$f":"[1]Infrastructure!W95","v":0},{"$f":"[1]Infrastructure!W95","v":0},0,{"$f":"[1]Infrastructure!Z95","v":0},{"$f":"[1]Infrastructure!Z95","v":0},0,{"$f":"[1]Infrastructure!AB95","v":0},{"$f":"[1]Infrastructure!AB95","v":0},0,{"$f":"[1]Infrastructure!AC95","v":0},{"$f":"[1]Infrastructure!AD95","v":0},{"$f":"[1]Infrastructure!AE95","v":0},{"$f":"[1]Infrastructure!AF95","v":0},{"$f":"[1]Infrastructure!AG95","v":0},{"$f":"[1]Infrastructure!AH95","v":0},0]
[0,null,null,null,null,null,{"$f":"[1]Infrastructure!G96","v":0},{"$f":"[1]Infrastructure!H96","v":0},{"$f":"[1]Infrastructure!I96","v":0},{"$f":"[1]Infrastructure!J96","v":0},{"$f":"[1]Infrastructure!K96","v":0},{"$f":"[1]Infrastructure!L96","v":0},{"$f":"[1]Infrastructure!M96","v":0},{"$f":"[1]Infrastructure!N96","v":0},{"$f":"[1]Infrastructure!O96","v":0},{"$f":"[1]Infrastructure!Q96","v":0},{"$f":"[1]Infrastructure!R96","v":0},{"$f":"[1]Infrastructure!T96","v":0},{"$f":"[1]Infrastructure!W96","v":0},{"$f":"[1]Infrastructure!W96","v":0},0,{"$f":"[1]Infrastructure!Z96","v":0},{"$f":"[1]Infrastructure!Z96","v":0},0,{"$f":"[1]Infrastructure!AB96","v":0},{"$f":"[1]Infrastructure!AB96","v":0},0,{"$f":"[1]Infrastructure!AC96","v":0},{"$f":"[1]Infrastructure!AD96","v":0},{"$f":"[1]Infrastructure!AE96","v":0},{"$f":"[1]Infrastructure!AF96","v":0},{"$f":"[1]Infrastructure!AG96","v":0},{"$f":"[1]Infrastructure!AH96","v":0},0]
[0,null,null,null,null,null,{"$f":"[1]Infrastructure!G97","v":0},{"$f":"[1]Infrastructure!H97","v":0},{"$f":"[1]Infrastructure!I97","v":0},{"$f":"[1]Infrastructure!J97","v":0},{"$f":"[1]Infrastructure!K97","v":0},{"$f":"[1]Infrastructure!L97","v":0},{"$f":"[1]Infrastructure!M97","v":0},{"$f":"[1]Infrastructure!N97","v":0},{"$f":"[1]Infrastructure!O97","v":0},{"$f":"[1]Infrastructure!Q97","v":0},{"$f":"[1]Infrastructure!R97","v":0},{"$f":"[1]Infrastructure!T97","v":0},{"$f":"[1]Infrastructure!W97","v":0},{"$f":"[1]Infrastructure!W97","v":0},0,{"$f":"[1]Infrastructure!Z97","v":0},{"$f":"[1]Infrastructure!Z97","v":0},0,{"$f":"[1]Infrastructure!AB97","v":0},{"$f":"[1]Infrastructure!AB97","v":0},0,{"$f":"[1]Infrastructure!AC97","v":0},{"$f":"[1]Infrastructure!AD97","v":0},{"$f":"[1]Infrastructure!AE97","v":0},{"$f":"[1]Infrastructure!AF97","v":0},{"$f":"[1]Infrastructure!AG97","v":0},{"$f":"[1]Infrastructure!AH97","v":0},0]
[0,null,null,null,null,null,{"$f":"[1]Infrastructure!G98","v":0},{"$f":"[1]Infrastructure!H98","v":0},{"$f":"[1]Infrastructure!I98","v":0},{"$f":"[1]Infrastructure!J98","v":0},{"$f":"[1]Infrastructure!K98","v":0},{"$f":"[1]Infrastructure!L98","v":0},{"$f":"[1]Infrastructure!M98","v":0},{"$f":"[1]Infrastructure!N98","v":0},{"$f":"[1]Infrastructure!O98","v":0},{"$f":"[1]Infrastructure!Q98","v":0},{"$f":"[1]Infrastructure!R98","v":0},{"$f":"[1]Infrastructure!T98","v":0},{"$f":"[1]Infrastructure!W98","v":0},{"$f":"[1]Infrastructure!W98","v":0},0,{"$f":"[1]Infrastructure!Z98","v":0},{"$f":"[1]Infrastructure!Z98","v":0},0,{"$f":"[1]Infrastructure!AB98","v":0},{"$f":"[1]Infrastructure!AB98","v":0},0,{"$f":"[1]Infrastructure!AC98","v":0},{"$f":"[1]Infrastructure!AD98","v":0},{"$f":"[1]Infrastructure!AE98","v":0},{"$f":"[1]Infrastructure!AF98","v":0},{"$f":"[1]Infrastructure!AG98","v":0},{"$f":"[1]Infrastructure!AH98","v":0},0]
[0,null,null,null,null,null,{"$f":"[1]Infrastructure!G99","v":0},{"$f":"[1]Infrastructure!H99","v":0},{"$f":"[1]Infrastructure!I99","v":0},{"$f":"[1]Infrastructure!J99","v":0},{"$f":"[1]Infrastructure!K99","v":0},{"$f":"[1]Infrastructure!L99","v":0},{"$f":"[1]Infrastructure!M99","v":0},{"$f":"[1]Infrastructure!N99","v":0},{"$f":"[1]Infrastructure!O99","v":0},{"$f":"[1]Infrastructure!Q99","v":0},{"$f":"[1]Infrastructure!R99","v":0},{"$f":"[1]Infrastructure!T99","v":0},{"$f":"[1]Infrastructure!W99","v":0},{"$f":"[1]Infrastructure!W99","v":0},0,{"$f":"[1]Infrastructure!Z99","v":0},{"$f":"[1]Infrastructure!Z99","v":0},0,{"$f":"[1]Infrastructure!AB99","v":0},{"$f":"[1]Infrastructure!AB99","v":0},0,{"$f":"[1]Infrastructure!AC99","v":0},{"$f":"[1]Infrastructure!AD99","v":0},{"$f":"[1]Infrastructure!AE99","v":0},{"$f":"[1]Infrastructure!AF99","v":0},{"$f":"[1]Infrastructure!AG99","v":0},{"$f":"[1]Infrastructure!AH99","v":0},0]
[0,null,null,null,null,null,{"$f":"[1]Infrastructure!G100","v":0},{"$f":"[1]Infrastructure!H100","v":0},{"$f":"[1]Infrastructure!I100","v":0},{"$f":"[1]Infrastructure!J100","v":0},{"$f":"[1]Infrastructure!K100","v":0},{"$f":"[1]Infrastructure!L100","v":0},{"$f":"[1]Infrastructure!M100","v":0},{"$f":"[1]Infrastructure!N100","v":0},{"$f":"[1]Infrastructure!O100","v":0},{"$f":"[1]Infrastructure!Q100","v":0},{"$f":"[1]Infrastructure!R100","v":0},{"$f":"[1]Infrastructure!T100","v":0},{"$f":"[1]Infrastructure!W100","v":0},{"$f":"[1]Infrastructure!W100","v":0},0,{"$f":"[1]Infrastructure!Z100","v":0},{"$f":"[1]Infrastructure!Z100","v":0},0,{"$f":"[1]Infrastructure!AB100","v":0},{"$f":"[1]Infrastructure!AB100","v":0},0,{"$f":"[1]Infrastructure!AC100","v":0},{"$f":"[1]Infrastructure!AD100","v":0},{"$f":"[1]Infrastructure!AE100","v":0},{"$f":"[1]Infrastructure!AF100","v":0},{"$f":"[1]Infrastructure!AG100","v":0},{"$f":"[1]Infrastructure!AH100","v":0},0]
[0,null,null,null,null,null,{"$f":"[1]Infrastructure!G101","v":0},{"$f":"[1]Infrastructure!H101","v":0},{"$f":"[1]Infrastructure!I101","v":0},{"$f":"[1]Infrastructure!J101","v":0},{"$f":"[1]Infrastructure!K101","v":0},{"$f":"[1]Infrastructure!L101","v":0},{"$f":"[1]Infrastructure!M101","v":0},{"$f":"[1]Infrastructure!N101","v":0},{"$f":"[1]Infrastructure!O101","v":0},{"$f":"[1]Infrastructure!Q101","v":0},{"$f":"[1]Infrastructure!R101","v":0},{"$f":"[1]Infrastructure!T101","v":0},{"$f":"[1]Infrastructure!W101","v":0},{"$f":"[1]Infrastructure!W101","v":0},0,{"$f":"[1]Infrastructure!Z101","v":0},{"$f":"[1]Infrastructure!Z101","v":0},0,{"$f":"[1]Infrastructure!AB101","v":0},{"$f":"[1]Infrastructure!AB101","v":0},0,{"$f":"[1]Infrastructure!AC101","v":0},{"$f":"[1]Infrastructure!AD101","v":0},{"$f":"[1]Infrastructure!AE101","v":0},{"$f":"[1]Infrastructure!AF101","v":0},{"$f":"[1]Infrastructure!AG101","v":0},{"$f":"[1]Infrastructure!AH101","v":0},0]
[0,null,null,null,null,null,{"$f":"[1]Infrastructure!G102","v":0},{"$f":"[1]Infrastructure!H102","v":0},{"$f":"[1]Infrastructure!I102","v":0},{"$f":"[1]Infrastructure!J102","v":0},{"$f":"[1]Infrastructure!K102","v":0},{"$f":"[1]Infrastructure!L102","v":0},{"$f":"[1]Infrastructure!M102","v":0},{"$f":"[1]Infrastructure!N102","v":0},{"$f":"[1]Infrastructure!O102","v":0},{"$f":"[1]Infrastructure!Q102","v":0},{"$f":"[1]Infrastructure!R102","v":0},{"$f":"[1]Infrastructure!T102","v":0},{"$f":"[1]Infrastructure!W102","v":0},{"$f":"[1]Infrastructure!W102","v":0},0,{"$f":"[1]Infrastructure!Z102","v":0},{"$f":"[1]Infrastructure!Z102","v":0},0,{"$f":"[1]Infrastructure!AB102","v":0},{"$f":"[1]Infrastructure!AB102","v":0},0,{"$f":"[1]Infrastructure!AC102","v":0},{"$f":"[1]Infrastructure!AD102","v":0},{"$f":"[1]Infrastructure!AE102","v":0},{"$f":"[1]Infrastructure!AF102","v":0},{"$f":"[1]Infrastructure!AG102","v":0},{"$f":"[1]Infrastructure!AH102","v":0},0]
[0,null,null,null,null,null,{"$f":"[1]Infrastructure!G103","v":0},{"$f":"[1]Infrastructure!H103","v":0},{"$f":"[1]Infrastructure!I103","v":0},{"$f":"[1]Infrastructure!J103","v":0},{"$f":"[1]Infrastructure!K103","v":0},{"$f":"[1]Infrastructure!L103","v":0},{"$f":"[1]Infrastructure!M103","v":0},{"$f":"[1]Infrastructure!N103","v":0},{"$f":"[1]Infrastructure!O103","v":0},{"$f":"[1]Infrastructure!Q103","v":0},{"$f":"[1]Infrastructure!R103","v":0},{"$f":"[1]Infrastructure!T103","v":0},{"$f":"[1]Infrastructure!W103","v":0},{"$f":"[1]Infrastructure!W103","v":0},0,{"$f":"[1]Infrastructure!Z103","v":0},{"$f":"[1]Infrastructure!Z103","v":0},0,{"$f":"[1]Infrastructure!AB103","v":0},{"$f":"[1]Infrastructure!AB103","v":0},0,{"$f":"[1]Infrastructure!AC103","v":0},{"$f":"[1]Infrastructure!AD103","v":0},{"$f":"[1]Infrastructure!AE103","v":0},{"$f":"[1]Infrastructure!AF103","v":0},{"$f":"[1]Infrastructure!AG103","v":0},{"$f":"[1]Infrastructure!AH103","v":0},0]
[0,null,null,null,null,null,{"$f":"[1]Infrastructure!G104","v":0},{"$f":"[1]Infrastructure!H104","v":0},{"$f":"[1]Infrastructure!I104","v":0},{"$f":"[1]Infrastructure!J104","v":0},{"$f":"[1]Infrastructure!K104","v":0},{"$f":"[1]Infrastructure!L104","v":0},{"$f":"[1]Infrastructure!M104","v":0},{"$f":"[1]Infrastructure!N104","v":0},{"$f":"[1]Infrastructure!O104","v":0},{"$f":"[1]Infrastructure!Q104","v":0},{"$f":"[1]Infrastructure!R104","v":0},{"$f":"[1]Infrastructure!T104","v":0},{"$f":"[1]Infrastructure!W104","v":0},{"$f":"[1]Infrastructure!W104","v":0},0,{"$f":"[1]Infrastructure!Z104","v":0},{"$f":"[1]Infrastructure!Z104","v":0},0,{"$f":"[1]Infrastructure!AB104","v":0},{"$f":"[1]Infrastructure!AB104","v":0},0,{"$f":"[1]Infrastructure!AC104","v":0},{"$f":"[1]Infrastructure!AD104","v":0},{"$f":"[1]Infrastructure!AE104","v":0},{"$f":"[1]Infrastructure!AF104","v":0},{"$f":"[1]Infrastructure!AG104","v":0},{"$f":"[1]Infrastructure!AH104","v":0},0]
[0,null,null,null,null,null,{"$f":"[1]Infrastructure!G105","v":0},{"$f":"[1]Infrastructure!H105","v":0},{"$f":"[1]Infrastructure!I105","v":0},{"$f":"[1]Infrastructure!J105","v":0},{"$f":"[1]Infrastructure!K105","v":0},{"$f":"[1]Infrastructure!L105","v":0},{"$f":"[1]Infrastructure!M105","v":0},{"$f":"[1]Infrastructure!N105","v":0},{"$f":"[1]Infrastructure!O105","v":0},{"$f":"[1]Infrastructure!Q105","v":0},{"$f":"[1]Infrastructure!R105","v":0},{"$f":"[1]Infrastructure!T105","v":0},{"$f":"[1]Infrastructure!W105","v":0},{"$f":"[1]Infrastructure!W105","v":0},0,{"$f":"[1]Infrastructure!Z105","v":0},{"$f":"[1]Infrastructure!Z105","v":0},0,{"$f":"[1]Infrastructure!AB105","v":0},{"$f":"[1]Infrastructure!AB105","v":0},0,{"$f":"[1]Infrastructure!AC105","v":0},{"$f":"[1]Infrastructure!AD105","v":0},{"$f":"[1]Infrastructure!AE105","v":0},{"$f":"[1]Infrastructure!AF105","v":0},{"$f":"[1]Infrastructure!AG105","v":0},{"$f":"[1]Infrastructure!AH105","v":0},0]
[0,null,null,null,null,null,{"$f":"[1]Infrastructure!G106","v":0},{"$f":"[1]Infrastructure!H106","v":0},{"$f":"[1]Infrastructure!I106","v":0},{"$f":"[1]Infrastructure!J106","v":0},{"$f":"[1]Infrastructure!K106","v":0},{"$f":"[1]Infrastructure!L106","v":0},{"$f":"[1]Infrastructure!M106","v":0},{"$f":"[1]Infrastructure!N106","v":0},{"$f":"[1]Infrastructure!O106","v":0},{"$f":"[1]Infrastructure!Q106","v":0},{"$f":"[1]Infrastructure!R106","v":0},{"$f":"[1]Infrastructure!T106","v":0},{"$f":"[1]Infrastructure!W106","v":0},{"$f":"[1]Infrastructure!W106","v":0},0,{"$f":"[1]Infrastructure!Z106","v":0},{"$f":"[1]Infrastructure!Z106","v":0},0,{"$f":"[1]Infrastructure!AB106","v":0},{"$f":"[1]Infrastructure!AB106","v":0},0,{"$f":"[1]Infrastructure!AC106","v":0},{"$f":"[1]Infrastructure!AD106","v":0},{"$f":"[1]Infrastructure!AE106","v":0},{"$f":"[1]Infrastructure!AF106","v":0},{"$f":"[1]Infrastructure!AG106","v":0},{"$f":"[1]Infrastructure!AH106","v":0},0]
[0,null,null,null,null,null,{"$f":"[1]Infrastructure!G107","v":0},{"$f":"[1]Infrastructure!H107","v":0},{"$f":"[1]Infrastructure!I107","v":0},{"$f":"[1]Infrastructure!J107","v":0},{"$f":"[1]Infrastructure!K107","v":0},{"$f":"[1]Infrastructure!L107","v":0},{"$f":"[1]Infrastructure!M107","v":0},{"$f":"[1]Infrastructure!N107","v":0},{"$f":"[1]Infrastructure!O107","v":0},{"$f":"[1]Infrastructure!Q107","v":0},{"$f":"[1]Infrastructure!R107","v":0},{"$f":"[1]Infrastructure!T107","v":0},{"$f":"[1]Infrastructure!W107","v":0},{"$f":"[1]Infrastructure!W107","v":0},0,{"$f":"[1]Infrastructure!Z107","v":0},{"$f":"[1]Infrastructure!Z107","v":0},0,{"$f":"[1]Infrastructure!AB107","v":0},{"$f":"[1]Infrastructure!AB107","v":0},0,{"$f":"[1]Infrastructure!AC107","v":0},{"$f":"[1]Infrastructure!AD107","v":0},{"$f":"[1]Infrastructure!AE107","v":0},{"$f":"[1]Infrastructure!AF107","v":0},{"$f":"[1]Infrastructure!AG107","v":0},{"$f":"[1]Infrastructure!AH107","v":0},0]
[0,null,null,null,null,null,{"$f":"[1]Infrastructure!G108","v":0},{"$f":"[1]Infrastructure!H108","v":0},{"$f":"[1]Infrastructure!I108","v":0},{"$f":"[1]Infrastructure!J108","v":0},{"$f":"[1]Infrastructure!K108","v":0},{"$f":"[1]Infrastructure!L108","v":0},{"$f":"[1]Infrastructure!M108","v":0},{"$f":"[1]Infrastructure!N108","v":0},{"$f":"[1]Infrastructure!O108","v":0},{"$f":"[1]Infrastructure!Q108","v":0},{"$f":"[1]Infrastructure!R108","v":0},{"$f":"[1]Infrastructure!T108","v":0},{"$f":"[1]Infrastructure!W108","v":0},{"$f":"[1]Infrastructure!W108","v":0},0,{"$f":"[1]Infrastructure!Z108","v":0},{"$f":"[1]Infrastructure!Z108","v":0},0,{"$f":"[1]Infrastructure!AB108","v":0},{"$f":"[1]Infrastructure!AB108","v":0},0,{"$f":"[1]Infrastructure!AC108","v":0},{"$f":"[1]Infrastructure!AD108","v":0},{"$f":"[1]Infrastructure!AE108","v":0},{"$f":"[1]Infrastructure!AF108","v":0},{"$f":"[1]Infrastructure!AG108","v":0},{"$f":"[1]Infrastructure!AH108","v":0},0]
[0,null,null,null,null,null,{"$f":"[1]Infrastructure!G109","v":0},{"$f":"[1]Infrastructure!H109","v":0},{"$f":"[1]Infrastructure!I109","v":0},{"$f":"[1]Infrastructure!J109","v":0},{"$f":"[1]Infrastructure!K109","v":0},{"$f":"[1]Infrastructure!L109","v":0},{"$f":"[1]Infrastructure!M109","v":0},{"$f":"[1]Infrastructure!N109","v":0},{"$f":"[1]Infrastructure!O109","v":0},{"$f":"[1]Infrastructure!Q109","v":0},{"$f":"[1]Infrastructure!R109","v":0},{"$f":"[1]Infrastructure!T109","v":0},{"$f":"[1]Infrastructure!W109","v":0},{"$f":"[1]Infrastructure!W109","v":0},0,{"$f":"[1]Infrastructure!Z109","v":0},{"$f":"[1]Infrastructure!Z109","v":0},0,{"$f":"[1]Infrastructure!AB109","v":0},{"$f":"[1]Infrastructure!AB109","v":0},0,{"$f":"[1]Infrastructure!AC109","v":0},{"$f":"[1]Infrastructure!AD109","v":0},{"$f":"[1]Infrastructure!AE109","v":0},{"$f":"[1]Infrastructure!AF109","v":0},{"$f":"[1]Infrastructure!AG109","v":0},{"$f":"[1]Infrastructure!AH109","v":0},0]
[0,null,null,null,null,null,{"$f":"[1]Infrastructure!G110","v":0},{"$f":"[1]Infrastructure!H110","v":0},{"$f":"[1]Infrastructure!I110","v":0},{"$f":"[1]Infrastructure!J110","v":0},{"$f":"[1]Infrastructure!K110","v":0},{"$f":"[1]Infrastructure!L110","v":0},{"$f":"[1]Infrastructure!M110","v":0},{"$f":"[1]Infrastructure!N110","v":0},{"$f":"[1]Infrastructure!O110","v":0},{"$f":"[1]Infrastructure!Q110","v":0},{"$f":"[1]Infrastructure!R110","v":0},{"$f":"[1]Infrastructure!T110","v":0},{"$f":"[1]Infrastructure!W110","v":0},{"$f":"[1]Infrastructure!W110","v":0},0,{"$f":"[1]Infrastructure!Z110","v":0},{"$f":"[1]Infrastructure!Z110","v":0},0,{"$f":"[1]Infrastructure!AB110","v":0},{"$f":"[1]Infrastructure!AB110","v":0},0,{"$f":"[1]Infrastructure!AC110","v":0},{"$f":"[1]Infrastructure!AD110","v":0},{"$f":"[1]Infrastructure!AE110","v":0},{"$f":"[1]Infrastructure!AF110","v":0},{"$f":"[1]Infrastructure!AG110","v":0},{"$f":"[1]Infrastructure!AH110","v":0},0]
[0,null,null,null,null,null,{"$f":"[1]Infrastructure!G111","v":0},{"$f":"[1]Infrastructure!H111","v":0},{"$f":"[1]Infrastructure!I111","v":0},{"$f":"[1]Infrastructure!J111","v":0},{"$f":"[1]Infrastructure!K111","v":0},{"$f":"[1]Infrastructure!L111","v":0},{"$f":"[1]Infrastructure!M111","v":0},{"$f":"[1]Infrastructure!N111","v":0},{"$f":"[1]Infrastructure!O111","v":0},{"$f":"[1]Infrastructure!Q111","v":0},{"$f":"[1]Infrastructure!R111","v":0},{"$f":"[1]Infrastructure!T111","v":0},{"$f":"[1]Infrastructure!W111","v":0},{"$f":"[1]Infrastructure!W111","v":0},0,{"$f":"[1]Infrastructure!Z111","v":0},{"$f":"[1]Infrastructure!Z111","v":0},0,{"$f":"[1]Infrastructure!AB111","v":0},{"$f":"[1]Infrastructure!AB111","v":0},0,{"$f":"[1]Infrastructure!AC111","v":0},{"$f":"[1]Infrastructure!AD111","v":0},{"$f":"[1]Infrastructure!AE111","v":0},{"$f":"[1]Infrastructure!AF111","v":0},{"$f":"[1]Infrastructure!AG111","v":0},{"$f":"[1]Infrastructure!AH111","v":0},0]
[0,null,null,null,null,null,{"$f":"[1]Infrastructure!G112","v":0},{"$f":"[1]Infrastructure!H112","v":0},{"$f":"[1]Infrastructure!I112","v":0},{"$f":"[1]Infrastructure!J112","v":0},{"$f":"[1]Infrastructure!K112","v":0},{"$f":"[1]Infrastructure!L112","v":0},{"$f":"[1]Infrastructure!M112","v":0},{"$f":"[1]Infrastructure!N112","v":0},{"$f":"[1]Infrastructure!O112","v":0},{"$f":"[1]Infrastructure!Q112","v":0},{"$f":"[1]Infrastructure!R112","v":0},{"$f":"[1]Infrastructure!T112","v":0},{"$f":"[1]Infrastructure!W112","v":0},{"$f":"[1]Infrastructure!W112","v":0},0,{"$f":"[1]Infrastructure!Z112","v":0},{"$f":"[1]Infrastructure!Z112","v":0},0,{"$f":"[1]Infrastructure!AB112","v":0},{"$f":"[1]Infrastructure!AB112","v":0},0,{"$f":"[1]Infrastructure!AC112","v":0},{"$f":"[1]Infrastructure!AD112","v":0},{"$f":"[1]Infrastructure!AE112","v":0},{"$f":"[1]Infrastructure!AF112","v":0},{"$f":"[1]Infrastructure!AG112","v":0},{"$f":"[1]Infrastructure!AH112","v":0},0]
[0,null,null,null,null,null,{"$f":"[1]Infrastructure!G113","v":0},{"$f":"[1]Infrastructure!H113","v":0},{"$f":"[1]Infrastructure!I113","v":0},{"$f":"[1]Infrastructure!J113","v":0},{"$f":"[1]Infrastructure!K113","v":0},{"$f":"[1]Infrastructure!L113","v":0},{"$f":"[1]Infrastructure!M113","v":0},{"$f":"[1]Infrastructure!N113","v":0},{"$f":"[1]Infrastructure!O113","v":0},{"$f":"[1]Infrastructure!Q113","v":0},{"$f":"[1]Infrastructure!R113","v":0},{"$f":"[1]Infrastructure!T113","v":0},{"$f":"[1]Infrastructure!W113","v":0},{"$f":"[1]Infrastructure!W113","v":0},0,{"$f":"[1]Infrastructure!Z113","v":0},{"$f":"[1]Infrastructure!Z113","v":0},0,{"$f":"[1]Infrastructure!AB113","v":0},{"$f":"[1]Infrastructure!AB113","v":0},0,{"$f":"[1]Infrastructure!AC113","v":0},{"$f":"[1]Infrastructure!AD113","v":0},{"$f":"[1]Infrastructure!AE113","v":0},{"$f":"[1]Infrastructure!AF113","v":0},{"$f":"[1]Infrastructure!AG113","v":0},{"$f":"[1]Infrastructure!AH113","v":0},0]
[0,null,null,null,null,null,{"$f":"[1]Infrastructure!G114","v":0},{"$f":"[1]Infrastructure!H114","v":0},{"$f":"[1]Infrastructure!I114","v":0},{"$f":"[1]Infrastructure!J114","v":0},{"$f":"[1]Infrastructure!K114","v":0},{"$f":"[1]Infrastructure!L114","v":0},{"$f":"[1]Infrastructure!M114","v":0},{"$f":"[1]Infrastructure!N114","v":0},{"$f":"[1]Infrastructure!O114","v":0},{"$f":"[1]Infrastructure!Q114","v":0},{"$f":"[1]Infrastructure!R114","v":0},{"$f":"[1]Infrastructure!T114","v":0},{"$f":"[1]Infrastructure!W114","v":0},{"$f":"[1]Infrastructure!W114","v":0},0,{"$f":"[1]Infrastructure!Z114","v":0},{"$f":"[1]Infrastructure!Z114","v":0},0,{"$f":"[1]Infrastructure!AB114","v":0},{"$f":"[1]Infrastructure!AB114","v":0},0,{"$f":"[1]Infrastructure!AC114","v":0},{"$f":"[1]Infrastructure!AD114","v":0},{"$f":"[1]Infrastructure!AE114","v":0},{"$f":"[1]Infrastructure!AF114","v":0},{"$f":"[1]Infrastructure!AG114","v":0},{"$f":"[1]Infrastructure!AH114","v":0},0]
[0,null,null,null,null,null,{"$f":"[1]Infrastructure!G115","v":0},{"$f":"[1]Infrastructure!H115","v":0},{"$f":"[1]Infrastructure!I115","v":0},{"$f":"[1]Infrastructure!J115","v":0},{"$f":"[1]Infrastructure!K115","v":0},{"$f":"[1]Infrastructure!L115","v":0},{"$f":"[1]Infrastructure!M115","v":0},{"$f":"[1]Infrastructure!N115","v":0},{"$f":"[1]Infrastructure!O115","v":0},{"$f":"[1]Infrastructure!Q115","v":0},{"$f":"[1]Infrastructure!R115","v":0},{"$f":"[1]Infrastructure!T115","v":0},{"$f":"[1]Infrastructure!W115","v":0},{"$f":"[1]Infrastructure!W115","v":0},0,{"$f":"[1]Infrastructure!Z115","v":0},{"$f":"[1]Infrastructure!Z115","v":0},0,{"$f":"[1]Infrastructure!AB115","v":0},{"$f":"[1]Infrastructure!AB115","v":0},0,{"$f":"[1]Infrastructure!AC115","v":0},{"$f":"[1]Infrastructure!AD115","v":0},{"$f":"[1]Infrastructure!AE115","v":0},{"$f":"[1]Infrastructure!AF115","v":0},{"$f":"[1]Infrastructure!AG115","v":0},{"$f":"[1]Infrastructure!AH115","v":0},0]
[0,null,null,null,null,null,{"$f":"[1]Infrastructure!G116","v":0},{"$f":"[1]Infrastructure!H116","v":0},{"$f":"[1]Infrastructure!I116","v":0},{"$f":"[1]Infrastructure!J116","v":0},{"$f":"[1]Infrastructure!K116","v":0},{"$f":"[1]Infrastructure!L116","v":0},{"$f":"[1]Infrastructure!M116","v":0},{"$f":"[1]Infrastructure!N116","v":0},{"$f":"[1]Infrastructure!O116","v":0},{"$f":"[1]Infrastructure!Q116","v":0},{"$f":"[1]Infrastructure!R116","v":0},{"$f":"[1]Infrastructure!T116","v":0},{"$f":"[1]Infrastructure!W116","v":0},{"$f":"[1]Infrastructure!W116","v":0},0,{"$f":"[1]Infrastructure!Z116","v":0},{"$f":"[1]Infrastructure!Z116","v":0},0,{"$f":"[1]Infrastructure!AB116","v":0},{"$f":"[1]Infrastructure!AB116","v":0},0,{"$f":"[1]Infrastructure!AC116","v":0},{"$f":"[1]Infrastructure!AD116","v":0},{"$f":"[1]Infrastructure!AE116","v":0},{"$f":"[1]Infrastructure!AF116","v":0},{"$f":"[1]Infrastructure!AG116","v":0},{"$f":"[1]Infrastructure!AH116","v":0},0]
[0,null,null,null,null,null,{"$f":"[1]Infrastructure!G117","v":0},{"$f":"[1]Infrastructure!H117","v":0},{"$f":"[1]Infrastructure!I117","v":0},{"$f":"[1]Infrastructure!J117","v":0},{"$f":"[1]Infrastructure!K117","v":0},{"$f":"[1]Infrastructure!L117","v":0},{"$f":"[1]Infrastructure!M117","v":0},{"$f":"[1]Infrastructure!N117","v":0},{"$f":"[1]Infrastructure!O117","v":0},{"$f":"[1]Infrastructure!Q117","v":0},{"$f":"[1]Infrastructure!R117","v":0},{"$f":"[1]Infrastructure!T117","v":0},{"$f":"[1]Infrastructure!W117","v":0},{"$f":"[1]Infrastructure!W117","v":0},0,{"$f":"[1]Infrastructure!Z117","v":0},{"$f":"[1]Infrastructure!Z117","v":0},0,{"$f":"[1]Infrastructure!AB117","v":0},{"$f":"[1]Infrastructure!AB117","v":0},0,{"$f":"[1]Infrastructure!AC117","v":0},{"$f":"[1]Infrastructure!AD117","v":0},{"$f":"[1]Infrastructure!AE117","v":0},{"$f":"[1]Infrastructure!AF117","v":0},{"$f":"[1]Infrastructure!AG117","v":0},{"$f":"[1]Infrastructure!AH117","v":0},0]
[0,null,null,null,null,null,{"$f":"[1]Infrastructure!G118","v":0},{"$f":"[1]Infrastructure!H118","v":0},{"$f":"[1]Infrastructure!I118","v":0},{"$f":"[1]Infrastructure!J118","v":0},{"$f":"[1]Infrastructure!K118","v":0},{"$f":"[1]Infrastructure!L118","v":0},{"$f":"[1]Infrastructure!M118","v":0},{"$f":"[1]Infrastructure!N118","v":0},{"$f":"[1]Infrastructure!O118","v":0},{"$f":"[1]Infrastructure!Q118","v":0},{"$f":"[1]Infrastructure!R118","v":0},{"$f":"[1]Infrastructure!T118","v":0},{"$f":"[1]Infrastructure!W118","v":0},{"$f":"[1]Infrastructure!W118","v":0},0,{"$f":"[1]Infrastructure!Z118","v":0},{"$f":"[1]Infrastructure!Z118","v":0},0,{"$f":"[1]Infrastructure!AB118","v":0},{"$f":"[1]Infrastructure!AB118","v":0},0,{"$f":"[1]Infrastructure!AC118","v":0},{"$f":"[1]Infrastructure!AD118","v":0},{"$f":"[1]Infrastructure!AE118","v":0},{"$f":"[1]Infrastructure!AF118","v":0},{"$f":"[1]Infrastructure!AG118","v":0},{"$f":"[1]Infrastructure!AH118","v":0},0]
[0,null,null,null,null,null,{"$f":"[1]Infrastructure!G119","v":0},{"$f":"[1]Infrastructure!H119","v":0},{"$f":"[1]Infrastructure!I119","v":0},{"$f":"[1]Infrastructure!J119","v":0},{"$f":"[1]Infrastructure!K119","v":0},{"$f":"[1]Infrastructure!L119","v":0},{"$f":"[1]Infrastructure!M119","v":0},{"$f":"[1]Infrastructure!N119","v":0},{"$f":"[1]Infrastructure!O119","v":0},{"$f":"[1]Infrastructure!Q119","v":0},{"$f":"[1]Infrastructure!R119","v":0},{"$f":"[1]Infrastructure!T119","v":0},{"$f":"[1]Infrastructure!W119","v":0},{"$f":"[1]Infrastructure!W119","v":0},0,{"$f":"[1]Infrastructure!Z119","v":0},{"$f":"[1]Infrastructure!Z119","v":0},0,{"$f":"[1]Infrastructure!AB119","v":0},{"$f":"[1]Infrastructure!AB119","v":0},0,{"$f":"[1]Infrastructure!AC119","v":0},{"$f":"[1]Infrastructure!AD119","v":0},{"$f":"[1]Infrastructure!AE119","v":0},{"$f":"[1]Infrastructure!AF119","v":0},{"$f":"[1]Infrastructure!AG119","v":0},{"$f":"[1]Infrastructure!AH119","v":0},0]
[0,null,null,null,null,null,{"$f":"[1]Infrastructure!G120","v":0},{"$f":"[1]Infrastructure!H120","v":0},{"$f":"[1]Infrastructure!I120","v":0},{"$f":"[1]Infrastructure!J120","v":0},{"$f":"[1]Infrastructure!K120","v":0},{"$f":"[1]Infrastructure!L120","v":0},{"$f":"[1]Infrastructure!M120","v":0},{"$f":"[1]Infrastructure!N120","v":0},{"$f":"[1]Infrastructure!O120","v":0},{"$f":"[1]Infrastructure!Q120","v":0},{"$f":"[1]Infrastructure!R120","v":0},{"$f":"[1]Infrastructure!T120","v":0},{"$f":"[1]Infrastructure!W120","v":0},{"$f":"[1]Infrastructure!W120","v":0},0,{"$f":"[1]Infrastructure!Z120","v":0},{"$f":"[1]Infrastructure!Z120","v":0},0,{"$f":"[1]Infrastructure!AB120","v":0},{"$f":"[1]Infrastructure!AB120","v":0},0,{"$f":"[1]Infrastructure!AC120","v":0},{"$f":"[1]Infrastructure!AD120","v":0},{"$f":"[1]Infrastructure!AE120","v":0},{"$f":"[1]Infrastructure!AF120","v":0},{"$f":"[1]Infrastructure!AG120","v":0},{"$f":"[1]Infrastructure!AH120","v":0},0]
[0,null,null,null,null,null,{"$f":"[1]Infrastructure!G121","v":0},{"$f":"[1]Infrastructure!H121","v":0},{"$f":"[1]Infrastructure!I121","v":0},{"$f":"[1]Infrastructure!J121","v":0},{"$f":"[1]Infrastructure!K121","v":0},{"$f":"[1]Infrastructure!L121","v":0},{"$f":"[1]Infrastructure!M121","v":0},{"$f":"[1]Infrastructure!N121","v":0},{"$f":"[1]Infrastructure!O121","v":0},{"$f":"[1]Infrastructure!Q121","v":0},{"$f":"[1]Infrastructure!R121","v":0},{"$f":"[1]Infrastructure!T121","v":0},{"$f":"[1]Infrastructure!W121","v":0},{"$f":"[1]Infrastructure!W121","v":0},0,{"$f":"[1]Infrastructure!Z121","v":0},{"$f":"[1]Infrastructure!Z121","v":0},0,{"$f":"[1]Infrastructure!AB121","v":0},{"$f":"[1]Infrastructure!AB121","v":0},0,{"$f":"[1]Infrastructure!AC121","v":0},{"$f":"[1]Infrastructure!AD121","v":0},{"$f":"[1]Infrastructure!AE121","v":0},{"$f":"[1]Infrastructure!AF121","v":0},{"$f":"[1]Infrastructure!AG121","v":0},{"$f":"[1]Infrastructure!AH121","v":0},0]
[0,null,null,null,null,null,{"$f":"[1]Infrastructure!G122","v":0},{"$f":"[1]Infrastructure!H122","v":0},{"$f":"[1]Infrastructure!I122","v":0},{"$f":"[1]Infrastructure!J122","v":0},{"$f":"[1]Infrastructure!K122","v":0},{"$f":"[1]Infrastructure!L122","v":0},{"$f":"[1]Infrastructure!M122","v":0},{"$f":"[1]Infrastructure!N122","v":0},{"$f":"[1]Infrastructure!O122","v":0},{"$f":"[1]Infrastructure!Q122","v":0},{"$f":"[1]Infrastructure!R122","v":0},{"$f":"[1]Infrastructure!T122","v":0},{"$f":"[1]Infrastructure!W122","v":0},{"$f":"[1]Infrastructure!W122","v":0},0,{"$f":"[1]Infrastructure!Z122","v":0},{"$f":"[1]Infrastructure!Z122","v":0},0,{"$f":"[1]Infrastructure!AB122","v":0},{"$f":"[1]Infrastructure!AB122","v":0},0,{"$f":"[1]Infrastructure!AC122","v":0},{"$f":"[1]Infrastructure!AD122","v":0},{"$f":"[1]Infrastructure!AE122","v":0},{"$f":"[1]Infrastructure!AF122","v":0},{"$f":"[1]Infrastructure!AG122","v":0},{"$f":"[1]Infrastructure!AH122","v":0},0]
[0,null,null,null,null,null,{"$f":"[1]Infrastructure!G123","v":0},{"$f":"[1]Infrastructure!H123","v":0},{"$f":"[1]Infrastructure!I123","v":0},{"$f":"[1]Infrastructure!J123","v":0},{"$f":"[1]Infrastructure!K123","v":0},{"$f":"[1]Infrastructure!L123","v":0},{"$f":"[1]Infrastructure!M123","v":0},{"$f":"[1]Infrastructure!N123","v":0},{"$f":"[1]Infrastructure!O123","v":0},{"$f":"[1]Infrastructure!Q123","v":0},{"$f":"[1]Infrastructure!R123","v":0},{"$f":"[1]Infrastructure!T123","v":0},{"$f":"[1]Infrastructure!W123","v":0},{"$f":"[1]Infrastructure!W123","v":0},0,{"$f":"[1]Infrastructure!Z123","v":0},{"$f":"[1]Infrastructure!Z123","v":0},0,{"$f":"[1]Infrastructure!AB123","v":0},{"$f":"[1]Infrastructure!AB123","v":0},0,{"$f":"[1]Infrastructure!AC123","v":0},{"$f":"[1]Infrastructure!AD123","v":0},{"$f":"[1]Infrastructure!AE123","v":0},{"$f":"[1]Infrastructure!AF123","v":0},{"$f":"[1]Infrastructure!AG123","v":0},{"$f":"[1]Infrastructure!AH123","v":0},0]
[0,null,null,null,null,null,{"$f":"[1]Infrastructure!G124","v":0},{"$f":"[1]Infrastructure!H124","v":0},{"$f":"[1]Infrastructure!I124","v":0},{"$f":"[1]Infrastructure!J124","v":0},{"$f":"[1]Infrastructure!K124","v":0},{"$f":"[1]Infrastructure!L124","v":0},{"$f":"[1]Infrastructure!M124","v":0},{"$f":"[1]Infrastructure!N124","v":0},{"$f":"[1]Infrastructure!O124","v":0},{"$f":"[1]Infrastructure!Q124","v":0},{"$f":"[1]Infrastructure!R124","v":0},{"$f":"[1]Infrastructure!T124","v":0},{"$f":"[1]Infrastructure!W124","v":0},{"$f":"[1]Infrastructure!W124","v":0},0,{"$f":"[1]Infrastructure!Z124","v":0},{"$f":"[1]Infrastructure!Z124","v":0},0,{"$f":"[1]Infrastructure!AB124","v":0},{"$f":"[1]Infrastructure!AB124","v":0},0,{"$f":"[1]Infrastructure!AC124","v":0},{"$f":"[1]Infrastructure!AD124","v":0},{"$f":"[1]Infrastructure!AE124","v":0},{"$f":"[1]Infrastructure!AF124","v":0},{"$f":"[1]Infrastructure!AG124","v":0},{"$f":"[1]Infrastructure!AH124","v":0},0]
[0,null,null,null,null,null,{"$f":"[1]Infrastructure!G125","v":0},{"$f":"[1]Infrastructure!H125","v":0},{"$f":"[1]Infrastructure!I125","v":0},{"$f":"[1]Infrastructure!J125","v":0},{"$f":"[1]Infrastructure!K125","v":0},{"$f":"[1]Infrastructure!L125","v":0},{"$f":"[1]Infrastructure!M125","v":0},{"$f":"[1]Infrastructure!N125","v":0},{"$f":"[1]Infrastructure!O125","v":0},{"$f":"[1]Infrastructure!Q125","v":0},{"$f":"[1]Infrastructure!R125","v":0},{"$f":"[1]Infrastructure!T125","v":0},{"$f":"[1]Infrastructure!W125","v":0},{"$f":"[1]Infrastructure!W125","v":0},0,{"$f":"[1]Infrastructure!Z125","v":0},{"$f":"[1]Infrastructure!Z125","v":0},0,{"$f":"[1]Infrastructure!AB125","v":0},{"$f":"[1]Infrastructure!AB125","v":0},0,{"$f":"[1]Infrastructure!AC125","v":0},{"$f":"[1]Infrastructure!AD125","v":0},{"$f":"[1]Infrastructure!AE125","v":0},{"$f":"[1]Infrastructure!AF125","v":0},{"$f":"[1]Infrastructure!AG125","v":0},{"$f":"[1]Infrastructure!AH125","v":0},0]
[0,null,null,null,null,null,{"$f":"[1]Infrastructure!G126","v":0},{"$f":"[1]Infrastructure!H126","v":0},{"$f":"[1]Infrastructure!I126","v":0},{"$f":"[1]Infrastructure!J126","v":0},{"$f":"[1]Infrastructure!K126","v":0},{"$f":"[1]Infrastructure!L126","v":0},{"$f":"[1]Infrastructure!M126","v":0},{"$f":"[1]Infrastructure!N126","v":0},{"$f":"[1]Infrastructure!O126","v":0},{"$f":"[1]Infrastructure!Q126","v":0},{"$f":"[1]Infrastructure!R126","v":0},{"$f":"[1]Infrastructure!T126","v":0},{"$f":"[1]Infrastructure!W126","v":0},{"$f":"[1]Infrastructure!W126","v":0},0,{"$f":"[1]Infrastructure!Z126","v":0},{"$f":"[1]Infrastructure!Z126","v":0},0,{"$f":"[1]Infrastructure!AB126","v":0},{"$f":"[1]Infrastructure!AB126","v":0},0,{"$f":"[1]Infrastructure!AC126","v":0},{"$f":"[1]Infrastructure!AD126","v":0},{"$f":"[1]Infrastructure!AE126","v":0},{"$f":"[1]Infrastructure!AF126","v":0},{"$f":"[1]Infrastructure!AG126","v":0},{"$f":"[1]Infrastructure!AH126","v":0},0]
[0,null,null,null,null,null,{"$f":"[1]Infrastructure!G127","v":0},{"$f":"[1]Infrastructure!H127","v":0},{"$f":"[1]Infrastructure!I127","v":0},{"$f":"[1]Infrastructure!J127","v":0},{"$f":"[1]Infrastructure!K127","v":0},{"$f":"[1]Infrastructure!L127","v":0},{"$f":"[1]Infrastructure!M127","v":0},{"$f":"[1]Infrastructure!N127","v":0},{"$f":"[1]Infrastructure!O127","v":0},{"$f":"[1]Infrastructure!Q127","v":0},{"$f":"[1]Infrastructure!R127","v":0},{"$f":"[1]Infrastructure!T127","v":0},{"$f":"[1]Infrastructure!W127","v":0},{"$f":"[1]Infrastructure!W127","v":0},0,{"$f":"[1]Infrastructure!Z127","v":0},{"$f":"[1]Infrastructure!Z127","v":0},0,{"$f":"[1]Infrastructure!AB127","v":0},{"$f":"[1]Infrastructure!AB127","v":0},0,{"$f":"[1]Infrastructure!AC127","v":0},{"$f":"[1]Infrastructure!AD127","v":0},{"$f":"[1]Infrastructure!AE127","v":0},{"$f":"[1]Infrastructure!AF127","v":0},{"$f":"[1]Infrastructure!AG127","v":0},{"$f":"[1]Infrastructure!AH127","v":0},0]
[0,null,null,null,null,null,{"$f":"[1]Infrastructure!G128","v":0},{"$f":"[1]Infrastructure!H128","v":0},{"$f":"[1]Infrastructure!I128","v":0},{"$f":"[1]Infrastructure!J128","v":0},{"$f":"[1]Infrastructure!K128","v":0},{"$f":"[1]Infrastructure!L128","v":0},{"$f":"[1]Infrastructure!M128","v":0},{"$f":"[1]Infrastructure!N128","v":0},{"$f":"[1]Infrastructure!O128","v":0},{"$f":"[1]Infrastructure!Q128","v":0},{"$f":"[1]Infrastructure!R128","v":0},{"$f":"[1]Infrastructure!T128","v":0},{"$f":"[1]Infrastructure!W128","v":0},{"$f":"[1]Infrastructure!W128","v":0},0,{"$f":"[1]Infrastructure!Z128","v":0},{"$f":"[1]Infrastructure!Z128","v":0},0,{"$f":"[1]Infrastructure!AB128","v":0},{"$f":"[1]Infrastructure!AB128","v":0},0,{"$f":"[1]Infrastructure!AC128","v":0},{"$f":"[1]Infrastructure!AD128","v":0},{"$f":"[1]Infrastructure!AE128","v":0},{"$f":"[1]Infrastructure!AF128","v":0},{"$f":"[1]Infrastructure!AG128","v":0},{"$f":"[1]Infrastructure!AH128","v":0},0]
[0,null,null,null,null,null,{"$f":"[1]Infrastructure!G129","v":0},{"$f":"[1]Infrastructure!H129","v":0},{"$f":"[1]Infrastructure!I129","v":0},{"$f":"[1]Infrastructure!J129","v":0},{"$f":"[1]Infrastructure!K129","v":0},{"$f":"[1]Infrastructure!L129","v":0},{"$f":"[1]Infrastructure!M129","v":0},{"$f":"[1]Infrastructure!N129","v":0},{"$f":"[1]Infrastructure!O129","v":0},{"$f":"[1]Infrastructure!Q129","v":0},{"$f":"[1]Infrastructure!R129","v":0},{"$f":"[1]Infrastructure!T129","v":0},{"$f":"[1]Infrastructure!W129","v":0},{"$f":"[1]Infrastructure!W129","v":0},0,{"$f":"[1]Infrastructure!Z129","v":0},{"$f":"[1]Infrastructure!Z129","v":0},0,{"$f":"[1]Infrastructure!AB129","v":0},{"$f":"[1]Infrastructure!AB129","v":0},0,{"$f":"[1]Infrastructure!AC129","v":0},{"$f":"[1]Infrastructure!AD129","v":0},{"$f":"[1]Infrastructure!AE129","v":0},{"$f":"[1]Infrastructure!AF129","v":0},{"$f":"[1]Infrastructure!AG129","v":0},{"$f":"[1]Infrastructure!AH129","v":0},0]
[0,null,null,null,null,null,{"$f":"[1]Infrastructure!G130","v":0},{"$f":"[1]Infrastructure!H130","v":0},{"$f":"[1]Infrastructure!I130","v":0},{"$f":"[1]Infrastructure!J130","v":0},{"$f":"[1]Infrastructure!K130","v":0},{"$f":"[1]Infrastructure!L130","v":0},{"$f":"[1]Infrastructure!M130","v":0},{"$f":"[1]Infrastructure!N130","v":0},{"$f":"[1]Infrastructure!O130","v":0},{"$f":"[1]Infrastructure!Q130","v":0},{"$f":"[1]Infrastructure!R130","v":0},{"$f":"[1]Infrastructure!T130","v":0},{"$f":"[1]Infrastructure!W130","v":0},{"$f":"[1]Infrastructure!W130","v":0},0,{"$f":"[1]Infrastructure!Z130","v":0},{"$f":"[1]Infrastructure!Z130","v":0},0,{"$f":"[1]Infrastructure!AB130","v":0},{"$f":"[1]Infrastructure!AB130","v":0},0,{"$f":"[1]Infrastructure!AC130","v":0},{"$f":"[1]Infrastructure!AD130","v":0},{"$f":"[1]Infrastructure!AE130","v":0},{"$f":"[1]Infrastructure!AF130","v":0},{"$f":"[1]Infrastructure!AG130","v":0},{"$f":"[1]Infrastructure!AH130","v":0},0]
[0,null,null,null,null,null,{"$f":"[1]Infrastructure!G131","v":0},{"$f":"[1]Infrastructure!H131","v":0},{"$f":"[1]Infrastructure!I131","v":0},{"$f":"[1]Infrastructure!J131","v":0},{"$f":"[1]Infrastructure!K131","v":0},{"$f":"[1]Infrastructure!L131","v":0},{"$f":"[1]Infrastructure!M131","v":0},{"$f":"[1]Infrastructure!N131","v":0},{"$f":"[1]Infrastructure!O131","v":0},{"$f":"[1]Infrastructure!Q131","v":0},{"$f":"[1]Infrastructure!R131","v":0},{"$f":"[1]Infrastructure!T131","v":0},{"$f":"[1]Infrastructure!W131","v":0},{"$f":"[1]Infrastructure!W131","v":0},0,{"$f":"[1]Infrastructure!Z131","v":0},{"$f":"[1]Infrastructure!Z131","v":0},0,{"$f":"[1]Infrastructure!AB131","v":0},{"$f":"[1]Infrastructure!AB131","v":0},0,{"$f":"[1]Infrastructure!AC131","v":0},{"$f":"[1]Infrastructure!AD131","v":0},{"$f":"[1]Infrastructure!AE131","v":0},{"$f":"[1]Infrastructure!AF131","v":0},{"$f":"[1]Infrastructure!AG131","v":0},{"$f":"[1]Infrastructure!AH131","v":0},0]
[0,null,null,null,null,null,{"$f":"[1]Infrastructure!G132","v":0},{"$f":"[1]Infrastructure!H132","v":0},{"$f":"[1]Infrastructure!I132","v":0},{"$f":"[1]Infrastructure!J132","v":0},{"$f":"[1]Infrastructure!K132","v":0},{"$f":"[1]Infrastructure!L132","v":0},{"$f":"[1]Infrastructure!M132","v":0},{"$f":"[1]Infrastructure!N132","v":0},{"$f":"[1]Infrastructure!O132","v":0},{"$f":"[1]Infrastructure!Q132","v":0},{"$f":"[1]Infrastructure!R132","v":0},{"$f":"[1]Infrastructure!T132","v":0},{"$f":"[1]Infrastructure!W132","v":0},{"$f":"[1]Infrastructure!W132","v":0},0,{"$f":"[1]Infrastructure!Z132","v":0},{"$f":"[1]Infrastructure!Z132","v":0},0,{"$f":"[1]Infrastructure!AB132","v":0},{"$f":"[1]Infrastructure!AB132","v":0},0,{"$f":"[1]Infrastructure!AC132","v":0},{"$f":"[1]Infrastructure!AD132","v":0},{"$f":"[1]Infrastructure!AE132","v":0},{"$f":"[1]Infrastructure!AF132","v":0},{"$f":"[1]Infrastructure!AG132","v":0},{"$f":"[1]Infrastructure!AH132","v":0},0]
[0,null,null,null,null,null,{"$f":"[1]Infrastructure!G133","v":0},{"$f":"[1]Infrastructure!H133","v":0},{"$f":"[1]Infrastructure!I133","v":0},{"$f":"[1]Infrastructure!J133","v":0},{"$f":"[1]Infrastructure!K133","v":0},{"$f":"[1]Infrastructure!L133","v":0},{"$f":"[1]Infrastructure!M133","v":0},{"$f":"[1]Infrastructure!N133","v":0},{"$f":"[1]Infrastructure!O133","v":0},{"$f":"[1]Infrastructure!Q133","v":0},{"$f":"[1]Infrastructure!R133","v":0},{"$f":"[1]Infrastructure!T133","v":0},{"$f":"[1]Infrastructure!W133","v":0},{"$f":"[1]Infrastructure!W133","v":0},0,{"$f":"[1]Infrastructure!Z133","v":0},{"$f":"[1]Infrastructure!Z133","v":0},0,{"$f":"[1]Infrastructure!AB133","v":0},{"$f":"[1]Infrastructure!AB133","v":0},0,{"$f":"[1]Infrastructure!AC133","v":0},{"$f":"[1]Infrastructure!AD133","v":0},{"$f":"[1]Infrastructure!AE133","v":0},{"$f":"[1]Infrastructure!AF133","v":0},{"$f":"[1]Infrastructure!AG133","v":0},{"$f":"[1]Infrastructure!AH133","v":0},0]
[0,null,null,null,null,null,{"$f":"[1]Infrastructure!G134","v":0},{"$f":"[1]Infrastructure!H134","v":0},{"$f":"[1]Infrastructure!I134","v":0},{"$f":"[1]Infrastructure!J134","v":0},{"$f":"[1]Infrastructure!K134","v":0},{"$f":"[1]Infrastructure!L134","v":0},{"$f":"[1]Infrastructure!M134","v":0},{"$f":"[1]Infrastructure!N134","v":0},{"$f":"[1]Infrastructure!O134","v":0},{"$f":"[1]Infrastructure!Q134","v":0},{"$f":"[1]Infrastructure!R134","v":0},{"$f":"[1]Infrastructure!T134","v":0},{"$f":"[1]Infrastructure!W134","v":0},{"$f":"[1]Infrastructure!W134","v":0},0,{"$f":"[1]Infrastructure!Z134","v":0},{"$f":"[1]Infrastructure!Z134","v":0},0,{"$f":"[1]Infrastructure!AB134","v":0},{"$f":"[1]Infrastructure!AB134","v":0},0,{"$f":"[1]Infrastructure!AC134","v":0},{"$f":"[1]Infrastructure!AD134","v":0},{"$f":"[1]Infrastructure!AE134","v":0},{"$f":"[1]Infrastructure!AF134","v":0},{"$f":"[1]Infrastructure!AG134","v":0},{"$f":"[1]Infrastructure!AH134","v":0},0]
[0,null,null,null,null,null,{"$f":"[1]Infrastructure!G135","v":0},{"$f":"[1]Infrastructure!H135","v":0},{"$f":"[1]Infrastructure!I135","v":0},{"$f":"[1]Infrastructure!J135","v":0},{"$f":"[1]Infrastructure!K135","v":0},{"$f":"[1]Infrastructure!L135","v":0},{"$f":"[1]Infrastructure!M135","v":0},{"$f":"[1]Infrastructure!N135","v":0},{"$f":"[1]Infrastructure!O135","v":0},{"$f":"[1]Infrastructure!Q135","v":0},{"$f":"[1]Infrastructure!R135","v":0},{"$f":"[1]Infrastructure!T135","v":0},{"$f":"[1]Infrastructure!W135","v":0},{"$f":"[1]Infrastructure!W135","v":0},0,{"$f":"[1]Infrastructure!Z135","v":0},{"$f":"[1]Infrastructure!Z135","v":0},0,{"$f":"[1]Infrastructure!AB135","v":0},{"$f":"[1]Infrastructure!AB135","v":0},0,{"$f":"[1]Infrastructure!AC135","v":0},{"$f":"[1]Infrastructure!AD135","v":0},{"$f":"[1]Infrastructure!AE135","v":0},{"$f":"[1]Infrastructure!AF135","v":0},{"$f":"[1]Infrastructure!AG135","v":0},{"$f":"[1]Infrastructure!AH135","v":0},0]
[0,null,null,null,null,null,{"$f":"[1]Infrastructure!G136","v":0},{"$f":"[1]Infrastructure!H136","v":0},{"$f":"[1]Infrastructure!I136","v":0},{"$f":"[1]Infrastructure!J136","v":0},{"$f":"[1]Infrastructure!K136","v":0},{"$f":"[1]Infrastructure!L136","v":0},{"$f":"[1]Infrastructure!M136","v":0},{"$f":"[1]Infrastructure!N136","v":0},{"$f":"[1]Infrastructure!O136","v":0},{"$f":"[1]Infrastructure!Q136","v":0},{"$f":"[1]Infrastructure!R136","v":0},{"$f":"[1]Infrastructure!T136","v":0},{"$f":"[1]Infrastructure!W136","v":0},{"$f":"[1]Infrastructure!W136","v":0},0,{"$f":"[1]Infrastructure!Z136","v":0},{"$f":"[1]Infrastructure!Z136","v":0},0,{"$f":"[1]Infrastructure!AB136","v":0},{"$f":"[1]Infrastructure!AB136","v":0},0,{"$f":"[1]Infrastructure!AC136","v":0},{"$f":"[1]Infrastructure!AD136","v":0},{"$f":"[1]Infrastructure!AE136","v":0},{"$f":"[1]Infrastructure!AF136","v":0},{"$f":"[1]Infrastructure!AG136","v":0},{"$f":"[1]Infrastructure!AH136","v":0},0]
[0,null,null,null,null,null,{"$f":"[1]Infrastructure!G137","v":0},{"$f":"[1]Infrastructure!H137","v":0},{"$f":"[1]Infrastructure!I137","v":0},{"$f":"[1]Infrastructure!J137","v":0},{"$f":"[1]Infrastructure!K137","v":0},{"$f":"[1]Infrastructure!L137","v":0},{"$f":"[1]Infrastructure!M137","v":0},{"$f":"[1]Infrastructure!N137","v":0},{"$f":"[1]Infrastructure!O137","v":0},{"$f":"[1]Infrastructure!Q137","v":0},{"$f":"[1]Infrastructure!R137","v":0},{"$f":"[1]Infrastructure!T137","v":0},{"$f":"[1]Infrastructure!W137","v":0},{"$f":"[1]Infrastructure!W137","v":0},0,{"$f":"[1]Infrastructure!Z137","v":0},{"$f":"[1]Infrastructure!Z137","v":0},0,{"$f":"[1]Infrastructure!AB137","v":0},{"$f":"[1]Infrastructure!AB137","v":0},0,{"$f":"[1]Infrastructure!AC137","v":0},{"$f":"[1]Infrastructure!AD137","v":0},{"$f":"[1]Infrastructure!AE137","v":0},{"$f":"[1]Infrastructure!AF137","v":0},{"$f":"[1]Infrastructure!AG137","v":0},{"$f":"[1]Infrastructure!AH137","v":0},0]
[0,null,null,null,null,null,{"$f":"[1]Infrastructure!G138","v":0},{"$f":"[1]Infrastructure!H138","v":0},{"$f":"[1]Infrastructure!I138","v":0},{"$f":"[1]Infrastructure!J138","v":0},{"$f":"[1]Infrastructure!K138","v":0},{"$f":"[1]Infrastructure!L138","v":0},{"$f":"[1]Infrastructure!M138","v":0},{"$f":"[1]Infrastructure!N138","v":0},{"$f":"[1]Infrastructure!O138","v":0},{"$f":"[1]Infrastructure!Q138","v":0},{"$f":"[1]Infrastructure!R138","v":0},{"$f":"[1]Infrastructure!T138","v":0},{"$f":"[1]Infrastructure!W138","v":0},{"$f":"[1]Infrastructure!W138","v":0},0,{"$f":"[1]Infrastructure!Z138","v":0},{"$f":"[1]Infrastructure!Z138","v":0},0,{"$f":"[1]Infrastructure!AB138","v":0},{"$f":"[1]Infrastructure!AB138","v":0},0,{"$f":"[1]Infrastructure!AC138","v":0},{"$f":"[1]Infrastructure!AD138","v":0},{"$f":"[1]Infrastructure!AE138","v":0},{"$f":"[1]Infrastructure!AF138","v":0},{"$f":"[1]Infrastructure!AG138","v":0},{"$f":"[1]Infrastructure!AH138","v":0},0]
[0,null,null,null,null,null,{"$f":"[1]Infrastructure!G139","v":0},{"$f":"[1]Infrastructure!H139","v":0},{"$f":"[1]Infrastructure!I139","v":0},{"$f":"[1]Infrastructure!J139","v":0},{"$f":"[1]Infrastructure!K139","v":0},{"$f":"[1]Infrastructure!L139","v":0},{"$f":"[1]Infrastructure!M139","v":0},{"$f":"[1]Infrastructure!N139","v":0},{"$f":"[1]Infrastructure!O139","v":0},{"$f":"[1]Infrastructure!Q139","v":0},{"$f":"[1]Infrastructure!R139","v":0},{"$f":"[1]Infrastructure!T139","v":0},{"$f":"[1]Infrastructure!W139","v":0},{"$f":"[1]Infrastructure!W139","v":0},0,{"$f":"[1]Infrastructure!Z139","v":0},{"$f":"[1]Infrastructure!Z139","v":0},0,{"$f":"[1]Infrastructure!AB139","v":0},{"$f":"[1]Infrastructure!AB139","v":0},0,{"$f":"[1]Infrastructure!AC139","v":0},{"$f":"[1]Infrastructure!AD139","v":0},{"$f":"[1]Infrastructure!AE139","v":0},{"$f":"[1]Infrastructure!AF139","v":0},{"$f":"[1]Infrastructure!AG139","v":0},{"$f":"[1]Infrastructure!AH139","v":0},0]
[{"$f":"IF(SUM(O140:AH140),1,0)","v":0},null,null,null,null,null,{"$f":"[1]Infrastructure!G140","v":0},{"$f":"[1]Infrastructure!H140","v":0},{"$f":"[1]Infrastructure!I140","v":0},{"$f":"[1]Infrastructure!J140","v":0},{"$f":"[1]Infrastructure!K140","v":0},{"$f":"[1]Infrastructure!L140","v":0},{"$f":"[1]Infrastructure!M140","v":0},{"$f":"[1]Infrastructure!N140","v":0},{"$f":"[1]Infrastructure!O140","v":0},{"$f":"[1]Infrastructure!Q140","v":0},{"$f":"[1]Infrastructure!R140","v":0},{"$f":"[1]Infrastructure!T140","v":0},{"$f":"[1]Infrastructure!W140","v":0},{"$f":"[1]Infrastructure!W140","v":0},{"$f":"SUM(T140-S140)","v":0},{"$f":"[1]Infrastructure!Z140","v":0},{"$f":"[1]Infrastructure!Z140","v":0},{"$f":"SUM(W140-V140)","v":0},{"$f":"[1]Infrastructure!AB140","v":0},{"$f":"[1]Infrastructure!AB140","v":0},{"$f":"SUM(Z140-Y140)","v":0},{"$f":"[1]Infrastructure!AC140","v":0},{"$f":"[1]Infrastructure!AD140","v":0},{"$f":"[1]Infrastructure!AE140","v":0},{"$f":"[1]Infrastructure!AF140","v":0},{"$f":"[1]Infrastructure!AG140","v":0},{"$f":"[1]Infrastructure!AH140","v":0},0]
[0,null,null,null,null,null,{"$f":"[1]Infrastructure!G141","v":0},{"$f":"[1]Infrastructure!H141","v":0},{"$f":"[1]Infrastructure!I141","v":0},{"$f":"[1]Infrastructure!J141","v":0},{"$f":"[1]Infrastructure!K141","v":0},{"$f":"[1]Infrastructure!L141","v":0},{"$f":"[1]Infrastructure!M141","v":0},{"$f":"[1]Infrastructure!N141","v":0},{"$f":"[1]Infrastructure!O141","v":0},{"$f":"[1]Infrastructure!Q141","v":0},{"$f":"[1]Infrastructure!R141","v":0},{"$f":"[1]Infrastructure!T141","v":0},{"$f":"[1]Infrastructure!W141","v":0},{"$f":"[1]Infrastructure!W141","v":0},0,{"$f":"[1]Infrastructure!Z141","v":0},{"$f":"[1]Infrastructure!Z141","v":0},0,{"$f":"[1]Infrastructure!AB141","v":0},{"$f":"[1]Infrastructure!AB141","v":0},0,{"$f":"[1]Infrastructure!AC141","v":0},{"$f":"[1]Infrastructure!AD141","v":0},{"$f":"[1]Infrastructure!AE141","v":0},{"$f":"[1]Infrastructure!AF141","v":0},{"$f":"[1]Infrastructure!AG141","v":0},{"$f":"[1]Infrastructure!AH141","v":0},0]
[0,null,null,null,null,null,{"$f":"[1]Infrastructure!G142","v":0},{"$f":"[1]Infrastructure!H142","v":0},{"$f":"[1]Infrastructure!I142","v":0},{"$f":"[1]Infrastructure!J142","v":0},{"$f":"[1]Infrastructure!K142","v":0},{"$f":"[1]Infrastructure!L142","v":0},{"$f":"[1]Infrastructure!M142","v":0},{"$f":"[1]Infrastructure!N142","v":0},{"$f":"[1]Infrastructure!O142","v":0},{"$f":"[1]Infrastructure!Q142","v":0},{"$f":"[1]Infrastructure!R142","v":0},{"$f":"[1]Infrastructure!T142","v":0},{"$f":"[1]Infrastructure!W142","v":0},{"$f":"[1]Infrastructure!W142","v":0},0,{"$f":"[1]Infrastructure!Z142","v":0},{"$f":"[1]Infrastructure!Z142","v":0},0,{"$f":"[1]Infrastructure!AB142","v":0},{"$f":"[1]Infrastructure!AB142","v":0},0,{"$f":"[1]Infrastructure!AC142","v":0},{"$f":"[1]Infrastructure!AD142","v":0},{"$f":"[1]Infrastructure!AE142","v":0},{"$f":"[1]Infrastructure!AF142","v":0},{"$f":"[1]Infrastructure!AG142","v":0},{"$f":"[1]Infrastructure!AH142","v":0},0]
[0,null,null,null,null,null,{"$f":"[1]Infrastructure!G143","v":0},{"$f":"[1]Infrastructure!H143","v":0},{"$f":"[1]Infrastructure!I143","v":0},{"$f":"[1]Infrastructure!J143","v":0},{"$f":"[1]Infrastructure!K143","v":0},{"$f":"[1]Infrastructure!L143","v":0},{"$f":"[1]Infrastructure!M143","v":0},{"$f":"[1]Infrastructure!N143","v":0},{"$f":"[1]Infrastructure!O143","v":0},{"$f":"[1]Infrastructure!Q143","v":0},{"$f":"[1]Infrastructure!R143","v":0},{"$f":"[1]Infrastructure!T143","v":0},{"$f":"[1]Infrastructure!W143","v":0},{"$f":"[1]Infrastructure!W143","v":0},0,{"$f":"[1]Infrastructure!Z143","v":0},{"$f":"[1]Infrastructure!Z143","v":0},0,{"$f":"[1]Infrastructure!AB143","v":0},{"$f":"[1]Infrastructure!AB143","v":0},0,{"$f":"[1]Infrastructure!AC143","v":0},{"$f":"[1]Infrastructure!AD143","v":0},{"$f":"[1]Infrastructure!AE143","v":0},{"$f":"[1]Infrastructure!AF143","v":0},{"$f":"[1]Infrastructure!AG143","v":0},{"$f":"[1]Infrastructure!AH143","v":0},0]
[0,null,null,null,null,null,{"$f":"[1]Infrastructure!G144","v":0},{"$f":"[1]Infrastructure!H144","v":0},{"$f":"[1]Infrastructure!I144","v":0},{"$f":"[1]Infrastructure!J144","v":0},{"$f":"[1]Infrastructure!K144","v":0},{"$f":"[1]Infrastructure!L144","v":0},{"$f":"[1]Infrastructure!M144","v":0},{"$f":"[1]Infrastructure!N144","v":0},{"$f":"[1]Infrastructure!O144","v":0},{"$f":"[1]Infrastructure!Q144","v":0},{"$f":"[1]Infrastructure!R144","v":0},{"$f":"[1]Infrastructure!T144","v":0},{"$f":"[1]Infrastructure!W144","v":0},{"$f":"[1]Infrastructure!W144","v":0},0,{"$f":"[1]Infrastructure!Z144","v":0},{"$f":"[1]Infrastructure!Z144","v":0},0,{"$f":"[1]Infrastructure!AB144","v":0},{"$f":"[1]Infrastructure!AB144","v":0},0,{"$f":"[1]Infrastructure!AC144","v":0},{"$f":"[1]Infrastructure!AD144","v":0},{"$f":"[1]Infrastructure!AE144","v":0},{"$f":"[1]Infrastructure!AF144","v":0},{"$f":"[1]Infrastructure!AG144","v":0},{"$f":"[1]Infrastructure!AH144","v":0},0]
[0,null,null,null,null,null,{"$f":"[1]Infrastructure!G145","v":0},{"$f":"[1]Infrastructure!H145","v":0},{"$f":"[1]Infrastructure!I145","v":0},{"$f":"[1]Infrastructure!J145","v":0},{"$f":"[1]Infrastructure!K145","v":0},{"$f":"[1]Infrastructure!L145","v":0},{"$f":"[1]Infrastructure!M145","v":0},{"$f":"[1]Infrastructure!N145","v":0},{"$f":"[1]Infrastructure!O145","v":0},{"$f":"[1]Infrastructure!Q145","v":0},{"$f":"[1]Infrastructure!R145","v":0},{"$f":"[1]Infrastructure!T145","v":0},{"$f":"[1]Infrastructure!W145","v":0},{"$f":"[1]Infrastructure!W145","v":0},0,{"$f":"[1]Infrastructure!Z145","v":0},{"$f":"[1]Infrastructure!Z145","v":0},0,{"$f":"[1]Infrastructure!AB145","v":0},{"$f":"[1]Infrastructure!AB145","v":0},0,{"$f":"[1]Infrastructure!AC145","v":0},{"$f":"[1]Infrastructure!AD145","v":0},{"$f":"[1]Infrastructure!AE145","v":0},{"$f":"[1]Infrastructure!AF145","v":0},{"$f":"[1]Infrastructure!AG145","v":0},{"$f":"[1]Infrastructure!AH145","v":0},0]
[0,null,null,null,null,null,{"$f":"[1]Infrastructure!G146","v":0},{"$f":"[1]Infrastructure!H146","v":0},{"$f":"[1]Infrastructure!I146","v":0},{"$f":"[1]Infrastructure!J146","v":0},{"$f":"[1]Infrastructure!K146","v":0},{"$f":"[1]Infrastructure!L146","v":0},{"$f":"[1]Infrastructure!M146","v":0},{"$f":"[1]Infrastructure!N146","v":0},{"$f":"[1]Infrastructure!O146","v":0},{"$f":"[1]Infrastructure!Q146","v":0},{"$f":"[1]Infrastructure!R146","v":0},{"$f":"[1]Infrastructure!T146","v":0},{"$f":"[1]Infrastructure!W146","v":0},{"$f":"[1]Infrastructure!W146","v":0},0,{"$f":"[1]Infrastructure!Z146","v":0},{"$f":"[1]Infrastructure!Z146","v":0},0,{"$f":"[1]Infrastructure!AB146","v":0},{"$f":"[1]Infrastructure!AB146","v":0},0,{"$f":"[1]Infrastructure!AC146","v":0},{"$f":"[1]Infrastructure!AD146","v":0},{"$f":"[1]Infrastructure!AE146","v":0},{"$f":"[1]Infrastructure!AF146","v":0},{"$f":"[1]Infrastructure!AG146","v":0},{"$f":"[1]Infrastructure!AH146","v":0},0]
[0,null,null,null,null,null,{"$f":"[1]Infrastructure!G147","v":0},{"$f":"[1]Infrastructure!H147","v":0},{"$f":"[1]Infrastructure!I147","v":0},{"$f":"[1]Infrastructure!J147","v":0},{"$f":"[1]Infrastructure!K147","v":0},{"$f":"[1]Infrastructure!L147","v":0},{"$f":"[1]Infrastructure!M147","v":0},{"$f":"[1]Infrastructure!N147","v":0},{"$f":"[1]Infrastructure!O147","v":0},{"$f":"[1]Infrastructure!Q147","v":0},{"$f":"[1]Infrastructure!R147","v":0},{"$f":"[1]Infrastructure!T147","v":0},{"$f":"[1]Infrastructure!W147","v":0},{"$f":"[1]Infrastructure!W147","v":0},0,{"$f":"[1]Infrastructure!Z147","v":0},{"$f":"[1]Infrastructure!Z147","v":0},0,{"$f":"[1]Infrastructure!AB147","v":0},{"$f":"[1]Infrastructure!AB147","v":0},0,{"$f":"[1]Infrastructure!AC147","v":0},{"$f":"[1]Infrastructure!AD147","v":0},{"$f":"[1]Infrastructure!AE147","v":0},{"$f":"[1]Infrastructure!AF147","v":0},{"$f":"[1]Infrastructure!AG147","v":0},{"$f":"[1]Infrastructure!AH147","v":0},0]
[0,null,null,null,null,null,{"$f":"[1]Infrastructure!G148","v":0},{"$f":"[1]Infrastructure!H148","v":0},{"$f":"[1]Infrastructure!I148","v":0},{"$f":"[1]Infrastructure!J148","v":0},{"$f":"[1]Infrastructure!K148","v":0},{"$f":"[1]Infrastructure!L148","v":0},{"$f":"[1]Infrastructure!M148","v":0},{"$f":"[1]Infrastructure!N148","v":0},{"$f":"[1]Infrastructure!O148","v":0},{"$f":"[1]Infrastructure!Q148","v":0},{"$f":"[1]Infrastructure!R148","v":0},{"$f":"[1]Infrastructure!T148","v":0},{"$f":"[1]Infrastructure!W148","v":0},{"$f":"[1]Infrastructure!W148","v":0},0,{"$f":"[1]Infrastructure!Z148","v":0},{"$f":"[1]Infrastructure!Z148","v":0},0,{"$f":"[1]Infrastructure!AB148","v":0},{"$f":"[1]Infrastructure!AB148","v":0},0,{"$f":"[1]Infrastructure!AC148","v":0},{"$f":"[1]Infrastructure!AD148","v":0},{"$f":"[1]Infrastructure!AE148","v":0},{"$f":"[1]Infrastructure!AF148","v":0},{"$f":"[1]Infrastructure!AG148","v":0},{"$f":"[1]Infrastructure!AH148","v":0},0]
[0,null,null,null,null,null,{"$f":"[1]Infrastructure!G149","v":0},{"$f":"[1]Infrastructure!H149","v":0},{"$f":"[1]Infrastructure!I149","v":0},{"$f":"[1]Infrastructure!J149","v":0},{"$f":"[1]Infrastructure!K149","v":0},{"$f":"[1]Infrastructure!L149","v":0},{"$f":"[1]Infrastructure!M149","v":0},{"$f":"[1]Infrastructure!N149","v":0},{"$f":"[1]Infrastructure!O149","v":0},{"$f":"[1]Infrastructure!Q149","v":0},{"$f":"[1]Infrastructure!R149","v":0},{"$f":"[1]Infrastructure!T149","v":0},{"$f":"[1]Infrastructure!W149","v":0},{"$f":"[1]Infrastructure!W149","v":0},0,{"$f":"[1]Infrastructure!Z149","v":0},{"$f":"[1]Infrastructure!Z149","v":0},0,{"$f":"[1]Infrastructure!AB149","v":0},{"$f":"[1]Infrastructure!AB149","v":0},0,{"$f":"[1]Infrastructure!AC149","v":0},{"$f":"[1]Infrastructure!AD149","v":0},{"$f":"[1]Infrastructure!AE149","v":0},{"$f":"[1]Infrastructure!AF149","v":0},{"$f":"[1]Infrastructure!AG149","v":0},{"$f":"[1]Infrastructure!AH149","v":0},0]
[0,null,null,null,null,null,{"$f":"[1]Infrastructure!G150","v":0},{"$f":"[1]Infrastructure!H150","v":0},{"$f":"[1]Infrastructure!I150","v":0},{"$f":"[1]Infrastructure!J150","v":0},{"$f":"[1]Infrastructure!K150","v":0},{"$f":"[1]Infrastructure!L150","v":0},{"$f":"[1]Infrastructure!M150","v":0},{"$f":"[1]Infrastructure!N150","v":0},{"$f":"[1]Infrastructure!O150","v":0},{"$f":"[1]Infrastructure!Q150","v":0},{"$f":"[1]Infrastructure!R150","v":0},{"$f":"[1]Infrastructure!T150","v":0},{"$f":"[1]Infrastructure!W150","v":0},{"$f":"[1]Infrastructure!W150","v":0},0,{"$f":"[1]Infrastructure!Z150","v":0},{"$f":"[1]Infrastructure!Z150","v":0},0,{"$f":"[1]Infrastructure!AB150","v":0},{"$f":"[1]Infrastructure!AB150","v":0},0,{"$f":"[1]Infrastructure!AC150","v":0},{"$f":"[1]Infrastructure!AD150","v":0},{"$f":"[1]Infrastructure!AE150","v":0},{"$f":"[1]Infrastructure!AF150","v":0},{"$f":"[1]Infrastructure!AG150","v":0},{"$f":"[1]Infrastructure!AH150","v":0},0]
[0,null,null,null,null,null,{"$f":"[1]Infrastructure!G151","v":0},{"$f":"[1]Infrastructure!H151","v":0},{"$f":"[1]Infrastructure!I151","v":0},{"$f":"[1]Infrastructure!J151","v":0},{"$f":"[1]Infrastructure!K151","v":0},{"$f":"[1]Infrastructure!L151","v":0},{"$f":"[1]Infrastructure!M151","v":0},{"$f":"[1]Infrastructure!N151","v":0},{"$f":"[1]Infrastructure!O151","v":0},{"$f":"[1]Infrastructure!Q151","v":0},{"$f":"[1]Infrastructure!R151","v":0},{"$f":"[1]Infrastructure!T151","v":0},{"$f":"[1]Infrastructure!W151","v":0},{"$f":"[1]Infrastructure!W151","v":0},0,{"$f":"[1]Infrastructure!Z151","v":0},{"$f":"[1]Infrastructure!Z151","v":0},0,{"$f":"[1]Infrastructure!AB151","v":0},{"$f":"[1]Infrastructure!AB151","v":0},0,{"$f":"[1]Infrastructure!AC151","v":0},{"$f":"[1]Infrastructure!AD151","v":0},{"$f":"[1]Infrastructure!AE151","v":0},{"$f":"[1]Infrastructure!AF151","v":0},{"$f":"[1]Infrastructure!AG151","v":0},{"$f":"[1]Infrastructure!AH151","v":0},0]
[0,null,null,null,null,null,{"$f":"[1]Infrastructure!G152","v":0},{"$f":"[1]Infrastructure!H152","v":0},{"$f":"[1]Infrastructure!I152","v":0},{"$f":"[1]Infrastructure!J152","v":0},{"$f":"[1]Infrastructure!K152","v":0},{"$f":"[1]Infrastructure!L152","v":0},{"$f":"[1]Infrastructure!M152","v":0},{"$f":"[1]Infrastructure!N152","v":0},{"$f":"[1]Infrastructure!O152","v":0},{"$f":"[1]Infrastructure!Q152","v":0},{"$f":"[1]Infrastructure!R152","v":0},{"$f":"[1]Infrastructure!T152","v":0},{"$f":"[1]Infrastructure!W152","v":0},{"$f":"[1]Infrastructure!W152","v":0},0,{"$f":"[1]Infrastructure!Z152","v":0},{"$f":"[1]Infrastructure!Z152","v":0},0,{"$f":"[1]Infrastructure!AB152","v":0},{"$f":"[1]Infrastructure!AB152","v":0},0,{"$f":"[1]Infrastructure!AC152","v":0},{"$f":"[1]Infrastructure!AD152","v":0},{"$f":"[1]Infrastructure!AE152","v":0},{"$f":"[1]Infrastructure!AF152","v":0},{"$f":"[1]Infrastructure!AG152","v":0},{"$f":"[1]Infrastructure!AH152","v":0},0]
[0,null,null,null,null,null,{"$f":"[1]Infrastructure!G153","v":0},{"$f":"[1]Infrastructure!H153","v":0},{"$f":"[1]Infrastructure!I153","v":0},{"$f":"[1]Infrastructure!J153","v":0},{"$f":"[1]Infrastructure!K153","v":0},{"$f":"[1]Infrastructure!L153","v":0},{"$f":"[1]Infrastructure!M153","v":0},{"$f":"[1]Infrastructure!N153","v":0},{"$f":"[1]Infrastructure!O153","v":0},{"$f":"[1]Infrastructure!Q153","v":0},{"$f":"[1]Infrastructure!R153","v":0},{"$f":"[1]Infrastructure!T153","v":0},{"$f":"[1]Infrastructure!W153","v":0},{"$f":"[1]Infrastructure!W153","v":0},0,{"$f":"[1]Infrastructure!Z153","v":0},{"$f":"[1]Infrastructure!Z153","v":0},0,{"$f":"[1]Infrastructure!AB153","v":0},{"$f":"[1]Infrastructure!AB153","v":0},0,{"$f":"[1]Infrastructure!AC153","v":0},{"$f":"[1]Infrastructure!AD153","v":0},{"$f":"[1]Infrastructure!AE153","v":0},{"$f":"[1]Infrastructure!AF153","v":0},{"$f":"[1]Infrastructure!AG153","v":0},{"$f":"[1]Infrastructure!AH153","v":0},0]
[0,null,null,null,null,null,{"$f":"[1]Infrastructure!G154","v":0},{"$f":"[1]Infrastructure!H154","v":0},{"$f":"[1]Infrastructure!I154","v":0},{"$f":"[1]Infrastructure!J154","v":0},{"$f":"[1]Infrastructure!K154","v":0},{"$f":"[1]Infrastructure!L154","v":0},{"$f":"[1]Infrastructure!M154","v":0},{"$f":"[1]Infrastructure!N154","v":0},{"$f":"[1]Infrastructure!O154","v":0},{"$f":"[1]Infrastructure!Q154","v":0},{"$f":"[1]Infrastructure!R154","v":0},{"$f":"[1]Infrastructure!T154","v":0},{"$f":"[1]Infrastructure!W154","v":0},{"$f":"[1]Infrastructure!W154","v":0},0,{"$f":"[1]Infrastructure!Z154","v":0},{"$f":"[1]Infrastructure!Z154","v":0},0,{"$f":"[1]Infrastructure!AB154","v":0},{"$f":"[1]Infrastructure!AB154","v":0},0,{"$f":"[1]Infrastructure!AC154","v":0},{"$f":"[1]Infrastructure!AD154","v":0},{"$f":"[1]Infrastructure!AE154","v":0},{"$f":"[1]Infrastructure!AF154","v":0},{"$f":"[1]Infrastructure!AG154","v":0},{"$f":"[1]Infrastructure!AH154","v":0},0]
[0,null,null,null,null,null,{"$f":"[1]Infrastructure!G155","v":0},{"$f":"[1]Infrastructure!H155","v":0},{"$f":"[1]Infrastructure!I155","v":0},{"$f":"[1]Infrastructure!J155","v":0},{"$f":"[1]Infrastructure!K155","v":0},{"$f":"[1]Infrastructure!L155","v":0},{"$f":"[1]Infrastructure!M155","v":0},{"$f":"[1]Infrastructure!N155","v":0},{"$f":"[1]Infrastructure!O155","v":0},{"$f":"[1]Infrastructure!Q155","v":0},{"$f":"[1]Infrastructure!R155","v":0},{"$f":"[1]Infrastructure!T155","v":0},{"$f":"[1]Infrastructure!W155","v":0},{"$f":"[1]Infrastructure!W155","v":0},0,{"$f":"[1]Infrastructure!Z155","v":0},{"$f":"[1]Infrastructure!Z155","v":0},0,{"$f":"[1]Infrastructure!AB155","v":0},{"$f":"[1]Infrastructure!AB155","v":0},0,{"$f":"[1]Infrastructure!AC155","v":0},{"$f":"[1]Infrastructure!AD155","v":0},{"$f":"[1]Infrastructure!AE155","v":0},{"$f":"[1]Infrastructure!AF155","v":0},{"$f":"[1]Infrastructure!AG155","v":0},{"$f":"[1]Infrastructure!AH155","v":0},0]
[0,null,null,null,null,null,{"$f":"[1]Infrastructure!G156","v":0},{"$f":"[1]Infrastructure!H156","v":0},{"$f":"[1]Infrastructure!I156","v":0},{"$f":"[1]Infrastructure!J156","v":0},{"$f":"[1]Infrastructure!K156","v":0},{"$f":"[1]Infrastructure!L156","v":0},{"$f":"[1]Infrastructure!M156","v":0},{"$f":"[1]Infrastructure!N156","v":0},{"$f":"[1]Infrastructure!O156","v":0},{"$f":"[1]Infrastructure!Q156","v":0},{"$f":"[1]Infrastructure!R156","v":0},{"$f":"[1]Infrastructure!T156","v":0},{"$f":"[1]Infrastructure!W156","v":0},{"$f":"[1]Infrastructure!W156","v":0},0,{"$f":"[1]Infrastructure!Z156","v":0},{"$f":"[1]Infrastructure!Z156","v":0},0,{"$f":"[1]Infrastructure!AB156","v":0},{"$f":"[1]Infrastructure!AB156","v":0},0,{"$f":"[1]Infrastructure!AC156","v":0},{"$f":"[1]Infrastructure!AD156","v":0},{"$f":"[1]Infrastructure!AE156","v":0},{"$f":"[1]Infrastructure!AF156","v":0},{"$f":"[1]Infrastructure!AG156","v":0},{"$f":"[1]Infrastructure!AH156","v":0},0]
[0,null,null,null,null,null,{"$f":"[1]Infrastructure!G157","v":0},{"$f":"[1]Infrastructure!H157","v":0},{"$f":"[1]Infrastructure!I157","v":0},{"$f":"[1]Infrastructure!J157","v":0},{"$f":"[1]Infrastructure!K157","v":0},{"$f":"[1]Infrastructure!L157","v":0},{"$f":"[1]Infrastructure!M157","v":0},{"$f":"[1]Infrastructure!N157","v":0},{"$f":"[1]Infrastructure!O157","v":0},{"$f":"[1]Infrastructure!Q157","v":0},{"$f":"[1]Infrastructure!R157","v":0},{"$f":"[1]Infrastructure!T157","v":0},{"$f":"[1]Infrastructure!W157","v":0},{"$f":"[1]Infrastructure!W157","v":0},0,{"$f":"[1]Infrastructure!Z157","v":0},{"$f":"[1]Infrastructure!Z157","v":0},0,{"$f":"[1]Infrastructure!AB157","v":0},{"$f":"[1]Infrastructure!AB157","v":0},0,{"$f":"[1]Infrastructure!AC157","v":0},{"$f":"[1]Infrastructure!AD157","v":0},{"$f":"[1]Infrastructure!AE157","v":0},{"$f":"[1]Infrastructure!AF157","v":0},{"$f":"[1]Infrastructure!AG157","v":0},{"$f":"[1]Infrastructure!AH157","v":0},0]
[0,null,null,null,null,null,{"$f":"[1]Infrastructure!G158","v":0},{"$f":"[1]Infrastructure!H158","v":0},{"$f":"[1]Infrastructure!I158","v":0},{"$f":"[1]Infrastructure!J158","v":0},{"$f":"[1]Infrastructure!K158","v":0},{"$f":"[1]Infrastructure!L158","v":0},{"$f":"[1]Infrastructure!M158","v":0},{"$f":"[1]Infrastructure!N158","v":0},{"$f":"[1]Infrastructure!O158","v":0},{"$f":"[1]Infrastructure!Q158","v":0},{"$f":"[1]Infrastructure!R158","v":0},{"$f":"[1]Infrastructure!T158","v":0},{"$f":"[1]Infrastructure!W158","v":0},{"$f":"[1]Infrastructure!W158","v":0},0,{"$f":"[1]Infrastructure!Z158","v":0},{"$f":"[1]Infrastructure!Z158","v":0},0,{"$f":"[1]Infrastructure!AB158","v":0},{"$f":"[1]Infrastructure!AB158","v":0},0,{"$f":"[1]Infrastructure!AC158","v":0},{"$f":"[1]Infrastructure!AD158","v":0},{"$f":"[1]Infrastructure!AE158","v":0},{"$f":"[1]Infrastructure!AF158","v":0},{"$f":"[1]Infrastructure!AG158","v":0},{"$f":"[1]Infrastructure!AH158","v":0},0]
[0,null,null,null,null,null,{"$f":"[1]Infrastructure!G159","v":0},{"$f":"[1]Infrastructure!H159","v":0},{"$f":"[1]Infrastructure!I159","v":0},{"$f":"[1]Infrastructure!J159","v":0},{"$f":"[1]Infrastructure!K159","v":0},{"$f":"[1]Infrastructure!L159","v":0},{"$f":"[1]Infrastructure!M159","v":0},{"$f":"[1]Infrastructure!N159","v":0},{"$f":"[1]Infrastructure!O159","v":0},{"$f":"[1]Infrastructure!Q159","v":0},{"$f":"[1]Infrastructure!R159","v":0},{"$f":"[1]Infrastructure!T159","v":0},{"$f":"[1]Infrastructure!W159","v":0},{"$f":"[1]Infrastructure!W159","v":0},0,{"$f":"[1]Infrastructure!Z159","v":0},{"$f":"[1]Infrastructure!Z159","v":0},0,{"$f":"[1]Infrastructure!AB159","v":0},{"$f":"[1]Infrastructure!AB159","v":0},0,{"$f":"[1]Infrastructure!AC159","v":0},{"$f":"[1]Infrastructure!AD159","v":0},{"$f":"[1]Infrastructure!AE159","v":0},{"$f":"[1]Infrastructure!AF159","v":0},{"$f":"[1]Infrastructure!AG159","v":0},{"$f":"[1]Infrastructure!AH159","v":0},0]
[0,null,null,null,null,null,{"$f":"[1]Infrastructure!G160","v":0},{"$f":"[1]Infrastructure!H160","v":0},{"$f":"[1]Infrastructure!I160","v":0},{"$f":"[1]Infrastructure!J160","v":0},{"$f":"[1]Infrastructure!K160","v":0},{"$f":"[1]Infrastructure!L160","v":0},{"$f":"[1]Infrastructure!M160","v":0},{"$f":"[1]Infrastructure!N160","v":0},{"$f":"[1]Infrastructure!O160","v":0},{"$f":"[1]Infrastructure!Q160","v":0},{"$f":"[1]Infrastructure!R160","v":0},{"$f":"[1]Infrastructure!T160","v":0},{"$f":"[1]Infrastructure!W160","v":0},{"$f":"[1]Infrastructure!W160","v":0},0,{"$f":"[1]Infrastructure!Z160","v":0},{"$f":"[1]Infrastructure!Z160","v":0},0,{"$f":"[1]Infrastructure!AB160","v":0},{"$f":"[1]Infrastructure!AB160","v":0},0,{"$f":"[1]Infrastructure!AC160","v":0},{"$f":"[1]Infrastructure!AD160","v":0},{"$f":"[1]Infrastructure!AE160","v":0},{"$f":"[1]Infrastructure!AF160","v":0},{"$f":"[1]Infrastructure!AG160","v":0},{"$f":"[1]Infrastructure!AH160","v":0},0]
[0,null,null,null,null,null,{"$f":"[1]Infrastructure!G161","v":0},{"$f":"[1]Infrastructure!H161","v":0},{"$f":"[1]Infrastructure!I161","v":0},{"$f":"[1]Infrastructure!J161","v":0},{"$f":"[1]Infrastructure!K161","v":0},{"$f":"[1]Infrastructure!L161","v":0},{"$f":"[1]Infrastructure!M161","v":0},{"$f":"[1]Infrastructure!N161","v":0},{"$f":"[1]Infrastructure!O161","v":0},{"$f":"[1]Infrastructure!Q161","v":0},{"$f":"[1]Infrastructure!R161","v":0},{"$f":"[1]Infrastructure!T161","v":0},{"$f":"[1]Infrastructure!W161","v":0},{"$f":"[1]Infrastructure!W161","v":0},0,{"$f":"[1]Infrastructure!Z161","v":0},{"$f":"[1]Infrastructure!Z161","v":0},0,{"$f":"[1]Infrastructure!AB161","v":0},{"$f":"[1]Infrastructure!AB161","v":0},0,{"$f":"[1]Infrastructure!AC161","v":0},{"$f":"[1]Infrastructure!AD161","v":0},{"$f":"[1]Infrastructure!AE161","v":0},{"$f":"[1]Infrastructure!AF161","v":0},{"$f":"[1]Infrastructure!AG161","v":0},{"$f":"[1]Infrastructure!AH161","v":0},0]
[0,null,null,null,null,null,{"$f":"[1]Infrastructure!G162","v":0},{"$f":"[1]Infrastructure!H162","v":0},{"$f":"[1]Infrastructure!I162","v":0},{"$f":"[1]Infrastructure!J162","v":0},{"$f":"[1]Infrastructure!K162","v":0},{"$f":"[1]Infrastructure!L162","v":0},{"$f":"[1]Infrastructure!M162","v":0},{"$f":"[1]Infrastructure!N162","v":0},{"$f":"[1]Infrastructure!O162","v":0},{"$f":"[1]Infrastructure!Q162","v":0},{"$f":"[1]Infrastructure!R162","v":0},{"$f":"[1]Infrastructure!T162","v":0},{"$f":"[1]Infrastructure!W162","v":0},{"$f":"[1]Infrastructure!W162","v":0},0,{"$f":"[1]Infrastructure!Z162","v":0},{"$f":"[1]Infrastructure!Z162","v":0},0,{"$f":"[1]Infrastructure!AB162","v":0},{"$f":"[1]Infrastructure!AB162","v":0},0,{"$f":"[1]Infrastructure!AC162","v":0},{"$f":"[1]Infrastructure!AD162","v":0},{"$f":"[1]Infrastructure!AE162","v":0},{"$f":"[1]Infrastructure!AF162","v":0},{"$f":"[1]Infrastructure!AG162","v":0},{"$f":"[1]Infrastructure!AH162","v":0},0]
[0,null,null,null,null,null,{"$f":"[1]Infrastructure!G163","v":0},{"$f":"[1]Infrastructure!H163","v":0},{"$f":"[1]Infrastructure!I163","v":0},{"$f":"[1]Infrastructure!J163","v":0},{"$f":"[1]Infrastructure!K163","v":0},{"$f":"[1]Infrastructure!L163","v":0},{"$f":"[1]Infrastructure!M163","v":0},{"$f":"[1]Infrastructure!N163","v":0},{"$f":"[1]Infrastructure!O163","v":0},{"$f":"[1]Infrastructure!Q163","v":0},{"$f":"[1]Infrastructure!R163","v":0},{"$f":"[1]Infrastructure!T163","v":0},{"$f":"[1]Infrastructure!W163","v":0},{"$f":"[1]Infrastructure!W163","v":0},0,{"$f":"[1]Infrastructure!Z163","v":0},{"$f":"[1]Infrastructure!Z163","v":0},0,{"$f":"[1]Infrastructure!AB163","v":0},{"$f":"[1]Infrastructure!AB163","v":0},0,{"$f":"[1]Infrastructure!AC163","v":0},{"$f":"[1]Infrastructure!AD163","v":0},{"$f":"[1]Infrastructure!AE163","v":0},{"$f":"[1]Infrastructure!AF163","v":0},{"$f":"[1]Infrastructure!AG163","v":0},{"$f":"[1]Infrastructure!AH163","v":0},0]
[0,null,null,null,null,null,{"$f":"[1]Infrastructure!G164","v":0},{"$f":"[1]Infrastructure!H164","v":0},{"$f":"[1]Infrastructure!I164","v":0},{"$f":"[1]Infrastructure!J164","v":0},{"$f":"[1]Infrastructure!K164","v":0},{"$f":"[1]Infrastructure!L164","v":0},{"$f":"[1]Infrastructure!M164","v":0},{"$f":"[1]Infrastructure!N164","v":0},{"$f":"[1]Infrastructure!O164","v":0},{"$f":"[1]Infrastructure!Q164","v":0},{"$f":"[1]Infrastructure!R164","v":0},{"$f":"[1]Infrastructure!T164","v":0},{"$f":"[1]Infrastructure!W164","v":0},{"$f":"[1]Infrastructure!W164","v":0},0,{"$f":"[1]Infrastructure!Z164","v":0},{"$f":"[1]Infrastructure!Z164","v":0},0,{"$f":"[1]Infrastructure!AB164","v":0},{"$f":"[1]Infrastructure!AB164","v":0},0,{"$f":"[1]Infrastructure!AC164","v":0},{"$f":"[1]Infrastructure!AD164","v":0},{"$f":"[1]Infrastructure!AE164","v":0},{"$f":"[1]Infrastructure!AF164","v":0},{"$f":"[1]Infrastructure!AG164","v":0},{"$f":"[1]Infrastructure!AH164","v":0},0]
[0,null,null,null,null,null,{"$f":"[1]Infrastructure!G165","v":0},{"$f":"[1]Infrastructure!H165","v":0},{"$f":"[1]Infrastructure!I165","v":0},{"$f":"[1]Infrastructure!J165","v":0},{"$f":"[1]Infrastructure!K165","v":0},{"$f":"[1]Infrastructure!L165","v":0},{"$f":"[1]Infrastructure!M165","v":0},{"$f":"[1]Infrastructure!N165","v":0},{"$f":"[1]Infrastructure!O165","v":0},{"$f":"[1]Infrastructure!Q165","v":0},{"$f":"[1]Infrastructure!R165","v":0},{"$f":"[1]Infrastructure!T165","v":0},{"$f":"[1]Infrastructure!W165","v":0},{"$f":"[1]Infrastructure!W165","v":0},0,{"$f":"[1]Infrastructure!Z165","v":0},{"$f":"[1]Infrastructure!Z165","v":0},0,{"$f":"[1]Infrastructure!AB165","v":0},{"$f":"[1]Infrastructure!AB165","v":0},0,{"$f":"[1]Infrastructure!AC165","v":0},{"$f":"[1]Infrastructure!AD165","v":0},{"$f":"[1]Infrastructure!AE165","v":0},{"$f":"[1]Infrastructure!AF165","v":0},{"$f":"[1]Infrastructure!AG165","v":0},{"$f":"[1]Infrastructure!AH165","v":0},0]
[0,null,null,null,null,null,{"$f":"[1]Infrastructure!G166","v":0},{"$f":"[1]Infrastructure!H166","v":0},{"$f":"[1]Infrastructure!I166","v":0},{"$f":"[1]Infrastructure!J166","v":0},{"$f":"[1]Infrastructure!K166","v":0},{"$f":"[1]Infrastructure!L166","v":0},{"$f":"[1]Infrastructure!M166","v":0},{"$f":"[1]Infrastructure!N166","v":0},{"$f":"[1]Infrastructure!O166","v":0},{"$f":"[1]Infrastructure!Q166","v":0},{"$f":"[1]Infrastructure!R166","v":0},{"$f":"[1]Infrastructure!T166","v":0},{"$f":"[1]Infrastructure!W166","v":0},{"$f":"[1]Infrastructure!W166","v":0},0,{"$f":"[1]Infrastructure!Z166","v":0},{"$f":"[1]Infrastructure!Z166","v":0},0,{"$f":"[1]Infrastructure!AB166","v":0},{"$f":"[1]Infrastructure!AB166","v":0},0,{"$f":"[1]Infrastructure!AC166","v":0},{"$f":"[1]Infrastructure!AD166","v":0},{"$f":"[1]Infrastructure!AE166","v":0},{"$f":"[1]Infrastructure!AF166","v":0},{"$f":"[1]Infrastructure!AG166","v":0},{"$f":"[1]Infrastructure!AH166","v":0},0]
[0,null,null,null,null,null,{"$f":"[1]Infrastructure!G167","v":0},{"$f":"[1]Infrastructure!H167","v":0},{"$f":"[1]Infrastructure!I167","v":0},{"$f":"[1]Infrastructure!J167","v":0},{"$f":"[1]Infrastructure!K167","v":0},{"$f":"[1]Infrastructure!L167","v":0},{"$f":"[1]Infrastructure!M167","v":0},{"$f":"[1]Infrastructure!N167","v":0},{"$f":"[1]Infrastructure!O167","v":0},{"$f":"[1]Infrastructure!Q167","v":0},{"$f":"[1]Infrastructure!R167","v":0},{"$f":"[1]Infrastructure!T167","v":0},{"$f":"[1]Infrastructure!W167","v":0},{"$f":"[1]Infrastructure!W167","v":0},0,{"$f":"[1]Infrastructure!Z167","v":0},{"$f":"[1]Infrastructure!Z167","v":0},0,{"$f":"[1]Infrastructure!AB167","v":0},{"$f":"[1]Infrastructure!AB167","v":0},0,{"$f":"[1]Infrastructure!AC167","v":0},{"$f":"[1]Infrastructure!AD167","v":0},{"$f":"[1]Infrastructure!AE167","v":0},{"$f":"[1]Infrastructure!AF167","v":0},{"$f":"[1]Infrastructure!AG167","v":0},{"$f":"[1]Infrastructure!AH167","v":0},0]
[0,null,null,null,null,null,{"$f":"[1]Infrastructure!G168","v":0},{"$f":"[1]Infrastructure!H168","v":0},{"$f":"[1]Infrastructure!I168","v":0},{"$f":"[1]Infrastructure!J168","v":0},{"$f":"[1]Infrastructure!K168","v":0},{"$f":"[1]Infrastructure!L168","v":0},{"$f":"[1]Infrastructure!M168","v":0},{"$f":"[1]Infrastructure!N168","v":0},{"$f":"[1]Infrastructure!O168","v":0},{"$f":"[1]Infrastructure!Q168","v":0},{"$f":"[1]Infrastructure!R168","v":0},{"$f":"[1]Infrastructure!T168","v":0},{"$f":"[1]Infrastructure!W168","v":0},{"$f":"[1]Infrastructure!W168","v":0},0,{"$f":"[1]Infrastructure!Z168","v":0},{"$f":"[1]Infrastructure!Z168","v":0},0,{"$f":"[1]Infrastructure!AB168","v":0},{"$f":"[1]Infrastructure!AB168","v":0},0,{"$f":"[1]Infrastructure!AC168","v":0},{"$f":"[1]Infrastructure!AD168","v":0},{"$f":"[1]Infrastructure!AE168","v":0},{"$f":"[1]Infrastructure!AF168","v":0},{"$f":"[1]Infrastructure!AG168","v":0},{"$f":"[1]Infrastructure!AH168","v":0},0]
[0,null,null,null,null,null,{"$f":"[1]Infrastructure!G169","v":0},{"$f":"[1]Infrastructure!H169","v":0},{"$f":"[1]Infrastructure!I169","v":0},{"$f":"[1]Infrastructure!J169","v":0},{"$f":"[1]Infrastructure!K169","v":0},{"$f":"[1]Infrastructure!L169","v":0},{"$f":"[1]Infrastructure!M169","v":0},{"$f":"[1]Infrastructure!N169","v":0},{"$f":"[1]Infrastructure!O169","v":0},{"$f":"[1]Infrastructure!Q169","v":0},{"$f":"[1]Infrastructure!R169","v":0},{"$f":"[1]Infrastructure!T169","v":0},{"$f":"[1]Infrastructure!W169","v":0},{"$f":"[1]Infrastructure!W169","v":0},0,{"$f":"[1]Infrastructure!Z169","v":0},{"$f":"[1]Infrastructure!Z169","v":0},0,{"$f":"[1]Infrastructure!AB169","v":0},{"$f":"[1]Infrastructure!AB169","v":0},0,{"$f":"[1]Infrastructure!AC169","v":0},{"$f":"[1]Infrastructure!AD169","v":0},{"$f":"[1]Infrastructure!AE169","v":0},{"$f":"[1]Infrastructure!AF169","v":0},{"$f":"[1]Infrastructure!AG169","v":0},{"$f":"[1]Infrastructure!AH169","v":0},0]
[0,null,null,null,null,null,{"$f":"[1]Infrastructure!G170","v":0},{"$f":"[1]Infrastructure!H170","v":0},{"$f":"[1]Infrastructure!I170","v":0},{"$f":"[1]Infrastructure!J170","v":0},{"$f":"[1]Infrastructure!K170","v":0},{"$f":"[1]Infrastructure!L170","v":0},{"$f":"[1]Infrastructure!M170","v":0},{"$f":"[1]Infrastructure!N170","v":0},{"$f":"[1]Infrastructure!O170","v":0},{"$f":"[1]Infrastructure!Q170","v":0},{"$f":"[1]Infrastructure!R170","v":0},{"$f":"[1]Infrastructure!T170","v":0},{"$f":"[1]Infrastructure!W170","v":0},{"$f":"[1]Infrastructure!W170","v":0},0,{"$f":"[1]Infrastructure!Z170","v":0},{"$f":"[1]Infrastructure!Z170","v":0},0,{"$f":"[1]Infrastructure!AB170","v":0},{"$f":"[1]Infrastructure!AB170","v":0},0,{"$f":"[1]Infrastructure!AC170","v":0},{"$f":"[1]Infrastructure!AD170","v":0},{"$f":"[1]Infrastructure!AE170","v":0},{"$f":"[1]Infrastructure!AF170","v":0},{"$f":"[1]Infrastructure!AG170","v":0},{"$f":"[1]Infrastructure!AH170","v":0},0]
[0,null,null,null,null,null,{"$f":"[1]Infrastructure!G171","v":0},{"$f":"[1]Infrastructure!H171","v":0},{"$f":"[1]Infrastructure!I171","v":0},{"$f":"[1]Infrastructure!J171","v":0},{"$f":"[1]Infrastructure!K171","v":0},{"$f":"[1]Infrastructure!L171","v":0},{"$f":"[1]Infrastructure!M171","v":0},{"$f":"[1]Infrastructure!N171","v":0},{"$f":"[1]Infrastructure!O171","v":0},{"$f":"[1]Infrastructure!Q171","v":0},{"$f":"[1]Infrastructure!R171","v":0},{"$f":"[1]Infrastructure!T171","v":0},{"$f":"[1]Infrastructure!W171","v":0},{"$f":"[1]Infrastructure!W171","v":0},0,{"$f":"[1]Infrastructure!Z171","v":0},{"$f":"[1]Infrastructure!Z171","v":0},0,{"$f":"[1]Infrastructure!AB171","v":0},{"$f":"[1]Infrastructure!AB171","v":0},0,{"$f":"[1]Infrastructure!AC171","v":0},{"$f":"[1]Infrastructure!AD171","v":0},{"$f":"[1]Infrastructure!AE171","v":0},{"$f":"[1]Infrastructure!AF171","v":0},{"$f":"[1]Infrastructure!AG171","v":0},{"$f":"[1]Infrastructure!AH171","v":0},0]
[0,null,null,null,null,null,{"$f":"[1]Infrastructure!G172","v":0},{"$f":"[1]Infrastructure!H172","v":0},{"$f":"[1]Infrastructure!I172","v":0},{"$f":"[1]Infrastructure!J172","v":0},{"$f":"[1]Infrastructure!K172","v":0},{"$f":"[1]Infrastructure!L172","v":0},{"$f":"[1]Infrastructure!M172","v":0},{"$f":"[1]Infrastructure!N172","v":0},{"$f":"[1]Infrastructure!O172","v":0},{"$f":"[1]Infrastructure!Q172","v":0},{"$f":"[1]Infrastructure!R172","v":0},{"$f":"[1]Infrastructure!T172","v":0},{"$f":"[1]Infrastructure!W172","v":0},{"$f":"[1]Infrastructure!W172","v":0},0,{"$f":"[1]Infrastructure!Z172","v":0},{"$f":"[1]Infrastructure!Z172","v":0},0,{"$f":"[1]Infrastructure!AB172","v":0},{"$f":"[1]Infrastructure!AB172","v":0},0,{"$f":"[1]Infrastructure!AC172","v":0},{"$f":"[1]Infrastructure!AD172","v":0},{"$f":"[1]Infrastructure!AE172","v":0},{"$f":"[1]Infrastructure!AF172","v":0},{"$f":"[1]Infrastructure!AG172","v":0},{"$f":"[1]Infrastructure!AH172","v":0},0]
[0,null,null,null,null,null,{"$f":"[1]Infrastructure!G173","v":0},{"$f":"[1]Infrastructure!H173","v":0},{"$f":"[1]Infrastructure!I173","v":0},{"$f":"[1]Infrastructure!J173","v":0},{"$f":"[1]Infrastructure!K173","v":0},{"$f":"[1]Infrastructure!L173","v":0},{"$f":"[1]Infrastructure!M173","v":0},{"$f":"[1]Infrastructure!N173","v":0},{"$f":"[1]Infrastructure!O173","v":0},{"$f":"[1]Infrastructure!Q173","v":0},{"$f":"[1]Infrastructure!R173","v":0},{"$f":"[1]Infrastructure!T173","v":0},{"$f":"[1]Infrastructure!W173","v":0},{"$f":"[1]Infrastructure!W173","v":0},0,{"$f":"[1]Infrastructure!Z173","v":0},{"$f":"[1]Infrastructure!Z173","v":0},0,{"$f":"[1]Infrastructure!AB173","v":0},{"$f":"[1]Infrastructure!AB173","v":0},0,{"$f":"[1]Infrastructure!AC173","v":0},{"$f":"[1]Infrastructure!AD173","v":0},{"$f":"[1]Infrastructure!AE173","v":0},{"$f":"[1]Infrastructure!AF173","v":0},{"$f":"[1]Infrastructure!AG173","v":0},{"$f":"[1]Infrastructure!AH173","v":0},0]
[0,null,null,null,null,null,{"$f":"[1]Infrastructure!G174","v":0},{"$f":"[1]Infrastructure!H174","v":0},{"$f":"[1]Infrastructure!I174","v":0},{"$f":"[1]Infrastructure!J174","v":0},{"$f":"[1]Infrastructure!K174","v":0},{"$f":"[1]Infrastructure!L174","v":0},{"$f":"[1]Infrastructure!M174","v":0},{"$f":"[1]Infrastructure!N174","v":0},{"$f":"[1]Infrastructure!O174","v":0},{"$f":"[1]Infrastructure!Q174","v":0},{"$f":"[1]Infrastructure!R174","v":0},{"$f":"[1]Infrastructure!T174","v":0},{"$f":"[1]Infrastructure!W174","v":0},{"$f":"[1]Infrastructure!W174","v":0},0,{"$f":"[1]Infrastructure!Z174","v":0},{"$f":"[1]Infrastructure!Z174","v":0},0,{"$f":"[1]Infrastructure!AB174","v":0},{"$f":"[1]Infrastructure!AB174","v":0},0,{"$f":"[1]Infrastructure!AC174","v":0},{"$f":"[1]Infrastructure!AD174","v":0},{"$f":"[1]Infrastructure!AE174","v":0},{"$f":"[1]Infrastructure!AF174","v":0},{"$f":"[1]Infrastructure!AG174","v":0},{"$f":"[1]Infrastructure!AH174","v":0},0]
[0,null,null,null,null,null,{"$f":"[1]Infrastructure!G175","v":0},{"$f":"[1]Infrastructure!H175","v":0},{"$f":"[1]Infrastructure!I175","v":0},{"$f":"[1]Infrastructure!J175","v":0},{"$f":"[1]Infrastructure!K175","v":0},{"$f":"[1]Infrastructure!L175","v":0},{"$f":"[1]Infrastructure!M175","v":0},{"$f":"[1]Infrastructure!N175","v":0},{"$f":"[1]Infrastructure!O175","v":0},{"$f":"[1]Infrastructure!Q175","v":0},{"$f":"[1]Infrastructure!R175","v":0},{"$f":"[1]Infrastructure!T175","v":0},{"$f":"[1]Infrastructure!W175","v":0},{"$f":"[1]Infrastructure!W175","v":0},0,{"$f":"[1]Infrastructure!Z175","v":0},{"$f":"[1]Infrastructure!Z175","v":0},0,{"$f":"[1]Infrastructure!AB175","v":0},{"$f":"[1]Infrastructure!AB175","v":0},0,{"$f":"[1]Infrastructure!AC175","v":0},{"$f":"[1]Infrastructure!AD175","v":0},{"$f":"[1]Infrastructure!AE175","v":0},{"$f":"[1]Infrastructure!AF175","v":0},{"$f":"[1]Infrastructure!AG175","v":0},{"$f":"[1]Infrastructure!AH175","v":0},0]
[0,null,null,null,null,null,{"$f":"[1]Infrastructure!G176","v":0},{"$f":"[1]Infrastructure!H176","v":0},{"$f":"[1]Infrastructure!I176","v":0},{"$f":"[1]Infrastructure!J176","v":0},{"$f":"[1]Infrastructure!K176","v":0},{"$f":"[1]Infrastructure!L176","v":0},{"$f":"[1]Infrastructure!M176","v":0},{"$f":"[1]Infrastructure!N176","v":0},{"$f":"[1]Infrastructure!O176","v":0},{"$f":"[1]Infrastructure!Q176","v":0},{"$f":"[1]Infrastructure!R176","v":0},{"$f":"[1]Infrastructure!T176","v":0},{"$f":"[1]Infrastructure!W176","v":0},{"$f":"[1]Infrastructure!W176","v":0},0,{"$f":"[1]Infrastructure!Z176","v":0},{"$f":"[1]Infrastructure!Z176","v":0},0,{"$f":"[1]Infrastructure!AB176","v":0},{"$f":"[1]Infrastructure!AB176","v":0},0,{"$f":"[1]Infrastructure!AC176","v":0},{"$f":"[1]Infrastructure!AD176","v":0},{"$f":"[1]Infrastructure!AE176","v":0},{"$f":"[1]Infrastructure!AF176","v":0},{"$f":"[1]Infrastructure!AG176","v":0},{"$f":"[1]Infrastructure!AH176","v":0},0]
[0,null,null,null,null,null,{"$f":"[1]Infrastructure!G177","v":0},{"$f":"[1]Infrastructure!H177","v":0},{"$f":"[1]Infrastructure!I177","v":0},{"$f":"[1]Infrastructure!J177","v":0},{"$f":"[1]Infrastructure!K177","v":0},{"$f":"[1]Infrastructure!L177","v":0},{"$f":"[1]Infrastructure!M177","v":0},{"$f":"[1]Infrastructure!N177","v":0},{"$f":"[1]Infrastructure!O177","v":0},{"$f":"[1]Infrastructure!Q177","v":0},{"$f":"[1]Infrastructure!R177","v":0},{"$f":"[1]Infrastructure!T177","v":0},{"$f":"[1]Infrastructure!W177","v":0},{"$f":"[1]Infrastructure!W177","v":0},0,{"$f":"[1]Infrastructure!Z177","v":0},{"$f":"[1]Infrastructure!Z177","v":0},0,{"$f":"[1]Infrastructure!AB177","v":0},{"$f":"[1]Infrastructure!AB177","v":0},0,{"$f":"[1]Infrastructure!AC177","v":0},{"$f":"[1]Infrastructure!AD177","v":0},{"$f":"[1]Infrastructure!AE177","v":0},{"$f":"[1]Infrastructure!AF177","v":0},{"$f":"[1]Infrastructure!AG177","v":0},{"$f":"[1]Infrastructure!AH177","v":0},0]
[0,null,null,null,null,null,{"$f":"[1]Infrastructure!G178","v":0},{"$f":"[1]Infrastructure!H178","v":0},{"$f":"[1]Infrastructure!I178","v":0},{"$f":"[1]Infrastructure!J178","v":0},{"$f":"[1]Infrastructure!K178","v":0},{"$f":"[1]Infrastructure!L178","v":0},{"$f":"[1]Infrastructure!M178","v":0},{"$f":"[1]Infrastructure!N178","v":0},{"$f":"[1]Infrastructure!O178","v":0},{"$f":"[1]Infrastructure!Q178","v":0},{"$f":"[1]Infrastructure!R178","v":0},{"$f":"[1]Infrastructure!T178","v":0},{"$f":"[1]Infrastructure!W178","v":0},{"$f":"[1]Infrastructure!W178","v":0},0,{"$f":"[1]Infrastructure!Z178","v":0},{"$f":"[1]Infrastructure!Z178","v":0},0,{"$f":"[1]Infrastructure!AB178","v":0},{"$f":"[1]Infrastructure!AB178","v":0},0,{"$f":"[1]Infrastructure!AC178","v":0},{"$f":"[1]Infrastructure!AD178","v":0},{"$f":"[1]Infrastructure!AE178","v":0},{"$f":"[1]Infrastructure!AF178","v":0},{"$f":"[1]Infrastructure!AG178","v":0},{"$f":"[1]Infrastructure!AH178","v":0},0]
[0,null,null,null,null,null,{"$f":"[1]Infrastructure!G179","v":0},{"$f":"[1]Infrastructure!H179","v":0},{"$f":"[1]Infrastructure!I179","v":0},{"$f":"[1]Infrastructure!J179","v":0},{"$f":"[1]Infrastructure!K179","v":0},{"$f":"[1]Infrastructure!L179","v":0},{"$f":"[1]Infrastructure!M179","v":0},{"$f":"[1]Infrastructure!N179","v":0},{"$f":"[1]Infrastructure!O179","v":0},{"$f":"[1]Infrastructure!Q179","v":0},{"$f":"[1]Infrastructure!R179","v":0},{"$f":"[1]Infrastructure!T179","v":0},{"$f":"[1]Infrastructure!W179","v":0},{"$f":"[1]Infrastructure!W179","v":0},0,{"$f":"[1]Infrastructure!Z179","v":0},{"$f":"[1]Infrastructure!Z179","v":0},0,{"$f":"[1]Infrastructure!AB179","v":0},{"$f":"[1]Infrastructure!AB179","v":0},0,{"$f":"[1]Infrastructure!AC179","v":0},{"$f":"[1]Infrastructure!AD179","v":0},{"$f":"[1]Infrastructure!AE179","v":0},{"$f":"[1]Infrastructure!AF179","v":0},{"$f":"[1]Infrastructure!AG179","v":0},{"$f":"[1]Infrastructure!AH179","v":0},0]
[0,null,null,null,null,null,{"$f":"[1]Infrastructure!G180","v":0},{"$f":"[1]Infrastructure!H180","v":0},{"$f":"[1]Infrastructure!I180","v":0},{"$f":"[1]Infrastructure!J180","v":0},{"$f":"[1]Infrastructure!K180","v":0},{"$f":"[1]Infrastructure!L180","v":0},{"$f":"[1]Infrastructure!M180","v":0},{"$f":"[1]Infrastructure!N180","v":0},{"$f":"[1]Infrastructure!O180","v":0},{"$f":"[1]Infrastructure!Q180","v":0},{"$f":"[1]Infrastructure!R180","v":0},{"$f":"[1]Infrastructure!T180","v":0},{"$f":"[1]Infrastructure!W180","v":0},{"$f":"[1]Infrastructure!W180","v":0},0,{"$f":"[1]Infrastructure!Z180","v":0},{"$f":"[1]Infrastructure!Z180","v":0},0,{"$f":"[1]Infrastructure!AB180","v":0},{"$f":"[1]Infrastructure!AB180","v":0},0,{"$f":"[1]Infrastructure!AC180","v":0},{"$f":"[1]Infrastructure!AD180","v":0},{"$f":"[1]Infrastructure!AE180","v":0},{"$f":"[1]Infrastructure!AF180","v":0},{"$f":"[1]Infrastructure!AG180","v":0},{"$f":"[1]Infrastructure!AH180","v":0},0]
[0,null,null,null,null,null,{"$f":"[1]Infrastructure!G181","v":0},{"$f":"[1]Infrastructure!H181","v":0},{"$f":"[1]Infrastructure!I181","v":0},{"$f":"[1]Infrastructure!J181","v":0},{"$f":"[1]Infrastructure!K181","v":0},{"$f":"[1]Infrastructure!L181","v":0},{"$f":"[1]Infrastructure!M181","v":0},{"$f":"[1]Infrastructure!N181","v":0},{"$f":"[1]Infrastructure!O181","v":0},{"$f":"[1]Infrastructure!Q181","v":0},{"$f":"[1]Infrastructure!R181","v":0},{"$f":"[1]Infrastructure!T181","v":0},{"$f":"[1]Infrastructure!W181","v":0},{"$f":"[1]Infrastructure!W181","v":0},0,{"$f":"[1]Infrastructure!Z181","v":0},{"$f":"[1]Infrastructure!Z181","v":0},0,{"$f":"[1]Infrastructure!AB181","v":0},{"$f":"[1]Infrastructure!AB181","v":0},0,{"$f":"[1]Infrastructure!AC181","v":0},{"$f":"[1]Infrastructure!AD181","v":0},{"$f":"[1]Infrastructure!AE181","v":0},{"$f":"[1]Infrastructure!AF181","v":0},{"$f":"[1]Infrastructure!AG181","v":0},{"$f":"[1]Infrastructure!AH181","v":0},0]
[0,null,null,null,null,null,{"$f":"[1]Infrastructure!G182","v":0},{"$f":"[1]Infrastructure!H182","v":0},{"$f":"[1]Infrastructure!I182","v":0},{"$f":"[1]Infrastructure!J182","v":0},{"$f":"[1]Infrastructure!K182","v":0},{"$f":"[1]Infrastructure!L182","v":0},{"$f":"[1]Infrastructure!M182","v":0},{"$f":"[1]Infrastructure!N182","v":0},{"$f":"[1]Infrastructure!O182","v":0},{"$f":"[1]Infrastructure!Q182","v":0},{"$f":"[1]Infrastructure!R182","v":0},{"$f":"[1]Infrastructure!T182","v":0},{"$f":"[1]Infrastructure!W182","v":0},{"$f":"[1]Infrastructure!W182","v":0},0,{"$f":"[1]Infrastructure!Z182","v":0},{"$f":"[1]Infrastructure!Z182","v":0},0,{"$f":"[1]Infrastructure!AB182","v":0},{"$f":"[1]Infrastructure!AB182","v":0},0,{"$f":"[1]Infrastructure!AC182","v":0},{"$f":"[1]Infrastructure!AD182","v":0},{"$f":"[1]Infrastructure!AE182","v":0},{"$f":"[1]Infrastructure!AF182","v":0},{"$f":"[1]Infrastructure!AG182","v":0},{"$f":"[1]Infrastructure!AH182","v":0},0]
[0,null,null,null,null,null,{"$f":"[1]Infrastructure!G183","v":0},{"$f":"[1]Infrastructure!H183","v":0},{"$f":"[1]Infrastructure!I183","v":0},{"$f":"[1]Infrastructure!J183","v":0},{"$f":"[1]Infrastructure!K183","v":0},{"$f":"[1]Infrastructure!L183","v":0},{"$f":"[1]Infrastructure!M183","v":0},{"$f":"[1]Infrastructure!N183","v":0},{"$f":"[1]Infrastructure!O183","v":0},{"$f":"[1]Infrastructure!Q183","v":0},{"$f":"[1]Infrastructure!R183","v":0},{"$f":"[1]Infrastructure!T183","v":0},{"$f":"[1]Infrastructure!W183","v":0},{"$f":"[1]Infrastructure!W183","v":0},0,{"$f":"[1]Infrastructure!Z183","v":0},{"$f":"[1]Infrastructure!Z183","v":0},0,{"$f":"[1]Infrastructure!AB183","v":0},{"$f":"[1]Infrastructure!AB183","v":0},0,{"$f":"[1]Infrastructure!AC183","v":0},{"$f":"[1]Infrastructure!AD183","v":0},{"$f":"[1]Infrastructure!AE183","v":0},{"$f":"[1]Infrastructure!AF183","v":0},{"$f":"[1]Infrastructure!AG183","v":0},{"$f":"[1]Infrastructure!AH183","v":0},0]
[0,null,null,null,null,null,{"$f":"[1]Infrastructure!G184","v":0},{"$f":"[1]Infrastructure!H184","v":0},{"$f":"[1]Infrastructure!I184","v":0},{"$f":"[1]Infrastructure!J184","v":0},{"$f":"[1]Infrastructure!K184","v":0},{"$f":"[1]Infrastructure!L184","v":0},{"$f":"[1]Infrastructure!M184","v":0},{"$f":"[1]Infrastructure!N184","v":0},{"$f":"[1]Infrastructure!O184","v":0},{"$f":"[1]Infrastructure!Q184","v":0},{"$f":"[1]Infrastructure!R184","v":0},{"$f":"[1]Infrastructure!T184","v":0},{"$f":"[1]Infrastructure!W184","v":0},{"$f":"[1]Infrastructure!W184","v":0},0,{"$f":"[1]Infrastructure!Z184","v":0},{"$f":"[1]Infrastructure!Z184","v":0},0,{"$f":"[1]Infrastructure!AB184","v":0},{"$f":"[1]Infrastructure!AB184","v":0},0,{"$f":"[1]Infrastructure!AC184","v":0},{"$f":"[1]Infrastructure!AD184","v":0},{"$f":"[1]Infrastructure!AE184","v":0},{"$f":"[1]Infrastructure!AF184","v":0},{"$f":"[1]Infrastructure!AG184","v":0},{"$f":"[1]Infrastructure!AH184","v":0},0]
[0,null,null,null,null,null,{"$f":"[1]Infrastructure!G185","v":0},{"$f":"[1]Infrastructure!H185","v":0},{"$f":"[1]Infrastructure!I185","v":0},{"$f":"[1]Infrastructure!J185","v":0},{"$f":"[1]Infrastructure!K185","v":0},{"$f":"[1]Infrastructure!L185","v":0},{"$f":"[1]Infrastructure!M185","v":0},{"$f":"[1]Infrastructure!N185","v":0},{"$f":"[1]Infrastructure!O185","v":0},{"$f":"[1]Infrastructure!Q185","v":0},{"$f":"[1]Infrastructure!R185","v":0},{"$f":"[1]Infrastructure!T185","v":0},{"$f":"[1]Infrastructure!W185","v":0},{"$f":"[1]Infrastructure!W185","v":0},0,{"$f":"[1]Infrastructure!Z185","v":0},{"$f":"[1]Infrastructure!Z185","v":0},0,{"$f":"[1]Infrastructure!AB185","v":0},{"$f":"[1]Infrastructure!AB185","v":0},0,{"$f":"[1]Infrastructure!AC185","v":0},{"$f":"[1]Infrastructure!AD185","v":0},{"$f":"[1]Infrastructure!AE185","v":0},{"$f":"[1]Infrastructure!AF185","v":0},{"$f":"[1]Infrastructure!AG185","v":0},{"$f":"[1]Infrastructure!AH185","v":0},0]
[0,null,null,null,null,null,{"$f":"[1]Infrastructure!G186","v":0},{"$f":"[1]Infrastructure!H186","v":0},{"$f":"[1]Infrastructure!I186","v":0},{"$f":"[1]Infrastructure!J186","v":0},{"$f":"[1]Infrastructure!K186","v":0},{"$f":"[1]Infrastructure!L186","v":0},{"$f":"[1]Infrastructure!M186","v":0},{"$f":"[1]Infrastructure!N186","v":0},{"$f":"[1]Infrastructure!O186","v":0},{"$f":"[1]Infrastructure!Q186","v":0},{"$f":"[1]Infrastructure!R186","v":0},{"$f":"[1]Infrastructure!T186","v":0},{"$f":"[1]Infrastructure!W186","v":0},{"$f":"[1]Infrastructure!W186","v":0},0,{"$f":"[1]Infrastructure!Z186","v":0},{"$f":"[1]Infrastructure!Z186","v":0},0,{"$f":"[1]Infrastructure!AB186","v":0},{"$f":"[1]Infrastructure!AB186","v":0},0,{"$f":"[1]Infrastructure!AC186","v":0},{"$f":"[1]Infrastructure!AD186","v":0},{"$f":"[1]Infrastructure!AE186","v":0},{"$f":"[1]Infrastructure!AF186","v":0},{"$f":"[1]Infrastructure!AG186","v":0},{"$f":"[1]Infrastructure!AH186","v":0},0]
[0,null,null,null,null,null,{"$f":"[1]Infrastructure!G187","v":0},{"$f":"[1]Infrastructure!H187","v":0},{"$f":"[1]Infrastructure!I187","v":0},{"$f":"[1]Infrastructure!J187","v":0},{"$f":"[1]Infrastructure!K187","v":0},{"$f":"[1]Infrastructure!L187","v":0},{"$f":"[1]Infrastructure!M187","v":0},{"$f":"[1]Infrastructure!N187","v":0},{"$f":"[1]Infrastructure!O187","v":0},{"$f":"[1]Infrastructure!Q187","v":0},{"$f":"[1]Infrastructure!R187","v":0},{"$f":"[1]Infrastructure!T187","v":0},{"$f":"[1]Infrastructure!W187","v":0},{"$f":"[1]Infrastructure!W187","v":0},0,{"$f":"[1]Infrastructure!Z187","v":0},{"$f":"[1]Infrastructure!Z187","v":0},0,{"$f":"[1]Infrastructure!AB187","v":0},{"$f":"[1]Infrastructure!AB187","v":0},0,{"$f":"[1]Infrastructure!AC187","v":0},{"$f":"[1]Infrastructure!AD187","v":0},{"$f":"[1]Infrastructure!AE187","v":0},{"$f":"[1]Infrastructure!AF187","v":0},{"$f":"[1]Infrastructure!AG187","v":0},{"$f":"[1]Infrastructure!AH187","v":0},0]
[0,null,null,null,null,null,{"$f":"[1]Infrastructure!G188","v":0},{"$f":"[1]Infrastructure!H188","v":0},{"$f":"[1]Infrastructure!I188","v":0},{"$f":"[1]Infrastructure!J188","v":0},{"$f":"[1]Infrastructure!K188","v":0},{"$f":"[1]Infrastructure!L188","v":0},{"$f":"[1]Infrastructure!M188","v":0},{"$f":"[1]Infrastructure!N188","v":0},{"$f":"[1]Infrastructure!O188","v":0},{"$f":"[1]Infrastructure!Q188","v":0},{"$f":"[1]Infrastructure!R188","v":0},{"$f":"[1]Infrastructure!T188","v":0},{"$f":"[1]Infrastructure!W188","v":0},{"$f":"[1]Infrastructure!W188","v":0},0,{"$f":"[1]Infrastructure!Z188","v":0},{"$f":"[1]Infrastructure!Z188","v":0},0,{"$f":"[1]Infrastructure!AB188","v":0},{"$f":"[1]Infrastructure!AB188","v":0},0,{"$f":"[1]Infrastructure!AC188","v":0},{"$f":"[1]Infrastructure!AD188","v":0},{"$f":"[1]Infrastructure!AE188","v":0},{"$f":"[1]Infrastructure!AF188","v":0},{"$f":"[1]Infrastructure!AG188","v":0},{"$f":"[1]Infrastructure!AH188","v":0},0]
[0,null,null,null,null,null,{"$f":"[1]Infrastructure!G189","v":0},{"$f":"[1]Infrastructure!H189","v":0},{"$f":"[1]Infrastructure!I189","v":0},{"$f":"[1]Infrastructure!J189","v":0},{"$f":"[1]Infrastructure!K189","v":0},{"$f":"[1]Infrastructure!L189","v":0},{"$f":"[1]Infrastructure!M189","v":0},{"$f":"[1]Infrastructure!N189","v":0},{"$f":"[1]Infrastructure!O189","v":0},{"$f":"[1]Infrastructure!Q189","v":0},{"$f":"[1]Infrastructure!R189","v":0},{"$f":"[1]Infrastructure!T189","v":0},{"$f":"[1]Infrastructure!W189","v":0},{"$f":"[1]Infrastructure!W189","v":0},0,{"$f":"[1]Infrastructure!Z189","v":0},{"$f":"[1]Infrastructure!Z189","v":0},0,{"$f":"[1]Infrastructure!AB189","v":0},{"$f":"[1]Infrastructure!AB189","v":0},0,{"$f":"[1]Infrastructure!AC189","v":0},{"$f":"[1]Infrastructure!AD189","v":0},{"$f":"[1]Infrastructure!AE189","v":0},{"$f":"[1]Infrastructure!AF189","v":0},{"$f":"[1]Infrastructure!AG189","v":0},{"$f":"[1]Infrastructure!AH189","v":0},0]
[0,null,null,null,null,null,{"$f":"[1]Infrastructure!G190","v":0},{"$f":"[1]Infrastructure!H190","v":0},{"$f":"[1]Infrastructure!I190","v":0},{"$f":"[1]Infrastructure!J190","v":0},{"$f":"[1]Infrastructure!K190","v":0},{"$f":"[1]Infrastructure!L190","v":0},{"$f":"[1]Infrastructure!M190","v":0},{"$f":"[1]Infrastructure!N190","v":0},{"$f":"[1]Infrastructure!O190","v":0},{"$f":"[1]Infrastructure!Q190","v":0},{"$f":"[1]Infrastructure!R190","v":0},{"$f":"[1]Infrastructure!T190","v":0},{"$f":"[1]Infrastructure!W190","v":0},{"$f":"[1]Infrastructure!W190","v":0},0,{"$f":"[1]Infrastructure!Z190","v":0},{"$f":"[1]Infrastructure!Z190","v":0},0,{"$f":"[1]Infrastructure!AB190","v":0},{"$f":"[1]Infrastructure!AB190","v":0},0,{"$f":"[1]Infrastructure!AC190","v":0},{"$f":"[1]Infrastructure!AD190","v":0},{"$f":"[1]Infrastructure!AE190","v":0},{"$f":"[1]Infrastructure!AF190","v":0},{"$f":"[1]Infrastructure!AG190","v":0},{"$f":"[1]Infrastructure!AH190","v":0},0]
[0,null,null,null,null,null,{"$f":"[1]Infrastructure!G191","v":0},{"$f":"[1]Infrastructure!H191","v":0},{"$f":"[1]Infrastructure!I191","v":0},{"$f":"[1]Infrastructure!J191","v":0},{"$f":"[1]Infrastructure!K191","v":0},{"$f":"[1]Infrastructure!L191","v":0},{"$f":"[1]Infrastructure!M191","v":0},{"$f":"[1]Infrastructure!N191","v":0},{"$f":"[1]Infrastructure!O191","v":0},{"$f":"[1]Infrastructure!Q191","v":0},{"$f":"[1]Infrastructure!R191","v":0},{"$f":"[1]Infrastructure!T191","v":0},{"$f":"[1]Infrastructure!W191","v":0},{"$f":"[1]Infrastructure!W191","v":0},0,{"$f":"[1]Infrastructure!Z191","v":0},{"$f":"[1]Infrastructure!Z191","v":0},0,{"$f":"[1]Infrastructure!AB191","v":0},{"$f":"[1]Infrastructure!AB191","v":0},0,{"$f":"[1]Infrastructure!AC191","v":0},{"$f":"[1]Infrastructure!AD191","v":0},{"$f":"[1]Infrastructure!AE191","v":0},{"$f":"[1]Infrastructure!AF191","v":0},{"$f":"[1]Infrastructure!AG191","v":0},{"$f":"[1]Infrastructure!AH191","v":0},0]
[0,null,null,null,null,null,{"$f":"[1]Infrastructure!G192","v":0},{"$f":"[1]Infrastructure!H192","v":0},{"$f":"[1]Infrastructure!I192","v":0},{"$f":"[1]Infrastructure!J192","v":0},{"$f":"[1]Infrastructure!K192","v":0},{"$f":"[1]Infrastructure!L192","v":0},{"$f":"[1]Infrastructure!M192","v":0},{"$f":"[1]Infrastructure!N192","v":0},{"$f":"[1]Infrastructure!O192","v":0},{"$f":"[1]Infrastructure!Q192","v":0},{"$f":"[1]Infrastructure!R192","v":0},{"$f":"[1]Infrastructure!T192","v":0},{"$f":"[1]Infrastructure!W192","v":0},{"$f":"[1]Infrastructure!W192","v":0},0,{"$f":"[1]Infrastructure!Z192","v":0},{"$f":"[1]Infrastructure!Z192","v":0},0,{"$f":"[1]Infrastructure!AB192","v":0},{"$f":"[1]Infrastructure!AB192","v":0},0,{"$f":"[1]Infrastructure!AC192","v":0},{"$f":"[1]Infrastructure!AD192","v":0},{"$f":"[1]Infrastructure!AE192","v":0},{"$f":"[1]Infrastructure!AF192","v":0},{"$f":"[1]Infrastructure!AG192","v":0},{"$f":"[1]Infrastructure!AH192","v":0},0]
[0,null,null,null,null,null,{"$f":"[1]Infrastructure!G193","v":0},{"$f":"[1]Infrastructure!H193","v":0},{"$f":"[1]Infrastructure!I193","v":0},{"$f":"[1]Infrastructure!J193","v":0},{"$f":"[1]Infrastructure!K193","v":0},{"$f":"[1]Infrastructure!L193","v":0},{"$f":"[1]Infrastructure!M193","v":0},{"$f":"[1]Infrastructure!N193","v":0},{"$f":"[1]Infrastructure!O193","v":0},{"$f":"[1]Infrastructure!Q193","v":0},{"$f":"[1]Infrastructure!R193","v":0},{"$f":"[1]Infrastructure!T193","v":0},{"$f":"[1]Infrastructure!W193","v":0},{"$f":"[1]Infrastructure!W193","v":0},0,{"$f":"[1]Infrastructure!Z193","v":0},{"$f":"[1]Infrastructure!Z193","v":0},0,{"$f":"[1]Infrastructure!AB193","v":0},{"$f":"[1]Infrastructure!AB193","v":0},0,{"$f":"[1]Infrastructure!AC193","v":0},{"$f":"[1]Infrastructure!AD193","v":0},{"$f":"[1]Infrastructure!AE193","v":0},{"$f":"[1]Infrastructure!AF193","v":0},{"$f":"[1]Infrastructure!AG193","v":0},{"$f":"[1]Infrastructure!AH193","v":0},0]
[0,null,null,null,null,null,{"$f":"[1]Infrastructure!G194","v":0},{"$f":"[1]Infrastructure!H194","v":0},{"$f":"[1]Infrastructure!I194","v":0},{"$f":"[1]Infrastructure!J194","v":0},{"$f":"[1]Infrastructure!K194","v":0},{"$f":"[1]Infrastructure!L194","v":0},{"$f":"[1]Infrastructure!M194","v":0},{"$f":"[1]Infrastructure!N194","v":0},{"$f":"[1]Infrastructure!O194","v":0},{"$f":"[1]Infrastructure!Q194","v":0},{"$f":"[1]Infrastructure!R194","v":0},{"$f":"[1]Infrastructure!T194","v":0},{"$f":"[1]Infrastructure!W194","v":0},{"$f":"[1]Infrastructure!W194","v":0},0,{"$f":"[1]Infrastructure!Z194","v":0},{"$f":"[1]Infrastructure!Z194","v":0},0,{"$f":"[1]Infrastructure!AB194","v":0},{"$f":"[1]Infrastructure!AB194","v":0},0,{"$f":"[1]Infrastructure!AC194","v":0},{"$f":"[1]Infrastructure!AD194","v":0},{"$f":"[1]Infrastructure!AE194","v":0},{"$f":"[1]Infrastructure!AF194","v":0},{"$f":"[1]Infrastructure!AG194","v":0},{"$f":"[1]Infrastructure!AH194","v":0},0]
[0,null,null,null,null,null,{"$f":"[1]Infrastructure!G195","v":0},{"$f":"[1]Infrastructure!H195","v":0},{"$f":"[1]Infrastructure!I195","v":0},{"$f":"[1]Infrastructure!J195","v":0},{"$f":"[1]Infrastructure!K195","v":0},{"$f":"[1]Infrastructure!L195","v":0},{"$f":"[1]Infrastructure!M195","v":0},{"$f":"[1]Infrastructure!N195","v":0},{"$f":"[1]Infrastructure!O195","v":0},{"$f":"[1]Infrastructure!Q195","v":0},{"$f":"[1]Infrastructure!R195","v":0},{"$f":"[1]Infrastructure!T195","v":0},{"$f":"[1]Infrastructure!W195","v":0},{"$f":"[1]Infrastructure!W195","v":0},0,{"$f":"[1]Infrastructure!Z195","v":0},{"$f":"[1]Infrastructure!Z195","v":0},0,{"$f":"[1]Infrastructure!AB195","v":0},{"$f":"[1]Infrastructure!AB195","v":0},0,{"$f":"[1]Infrastructure!AC195","v":0},{"$f":"[1]Infrastructure!AD195","v":0},{"$f":"[1]Infrastructure!AE195","v":0},{"$f":"[1]Infrastructure!AF195","v":0},{"$f":"[1]Infrastructure!AG195","v":0},{"$f":"[1]Infrastructure!AH195","v":0},0]
[0,null,null,null,null,null,{"$f":"[1]Infrastructure!G196","v":0},{"$f":"[1]Infrastructure!H196","v":0},{"$f":"[1]Infrastructure!I196","v":0},{"$f":"[1]Infrastructure!J196","v":0},{"$f":"[1]Infrastructure!K196","v":0},{"$f":"[1]Infrastructure!L196","v":0},{"$f":"[1]Infrastructure!M196","v":0},{"$f":"[1]Infrastructure!N196","v":0},{"$f":"[1]Infrastructure!O196","v":0},{"$f":"[1]Infrastructure!Q196","v":0},{"$f":"[1]Infrastructure!R196","v":0},{"$f":"[1]Infrastructure!T196","v":0},{"$f":"[1]Infrastructure!W196","v":0},{"$f":"[1]Infrastructure!W196","v":0},0,{"$f":"[1]Infrastructure!Z196","v":0},{"$f":"[1]Infrastructure!Z196","v":0},0,{"$f":"[1]Infrastructure!AB196","v":0},{"$f":"[1]Infrastructure!AB196","v":0},0,{"$f":"[1]Infrastructure!AC196","v":0},{"$f":"[1]Infrastructure!AD196","v":0},{"$f":"[1]Infrastructure!AE196","v":0},{"$f":"[1]Infrastructure!AF196","v":0},{"$f":"[1]Infrastructure!AG196","v":0},{"$f":"[1]Infrastructure!AH196","v":0},0]
[0,null,null,null,null,null,{"$f":"[1]Infrastructure!G197","v":0},{"$f":"[1]Infrastructure!H197","v":0},{"$f":"[1]Infrastructure!I197","v":0},{"$f":"[1]Infrastructure!J197","v":0},{"$f":"[1]Infrastructure!K197","v":0},{"$f":"[1]Infrastructure!L197","v":0},{"$f":"[1]Infrastructure!M197","v":0},{"$f":"[1]Infrastructure!N197","v":0},{"$f":"[1]Infrastructure!O197","v":0},{"$f":"[1]Infrastructure!Q197","v":0},{"$f":"[1]Infrastructure!R197","v":0},{"$f":"[1]Infrastructure!T197","v":0},{"$f":"[1]Infrastructure!W197","v":0},{"$f":"[1]Infrastructure!W197","v":0},0,{"$f":"[1]Infrastructure!Z197","v":0},{"$f":"[1]Infrastructure!Z197","v":0},0,{"$f":"[1]Infrastructure!AB197","v":0},{"$f":"[1]Infrastructure!AB197","v":0},0,{"$f":"[1]Infrastructure!AC197","v":0},{"$f":"[1]Infrastructure!AD197","v":0},{"$f":"[1]Infrastructure!AE197","v":0},{"$f":"[1]Infrastructure!AF197","v":0},{"$f":"[1]Infrastructure!AG197","v":0},{"$f":"[1]Infrastructure!AH197","v":0},0]
[0,null,null,null,null,null,{"$f":"[1]Infrastructure!G198","v":0},{"$f":"[1]Infrastructure!H198","v":0},{"$f":"[1]Infrastructure!I198","v":0},{"$f":"[1]Infrastructure!J198","v":0},{"$f":"[1]Infrastructure!K198","v":0},{"$f":"[1]Infrastructure!L198","v":0},{"$f":"[1]Infrastructure!M198","v":0},{"$f":"[1]Infrastructure!N198","v":0},{"$f":"[1]Infrastructure!O198","v":0},{"$f":"[1]Infrastructure!Q198","v":0},{"$f":"[1]Infrastructure!R198","v":0},{"$f":"[1]Infrastructure!T198","v":0},{"$f":"[1]Infrastructure!W198","v":0},{"$f":"[1]Infrastructure!W198","v":0},0,{"$f":"[1]Infrastructure!Z198","v":0},{"$f":"[1]Infrastructure!Z198","v":0},0,{"$f":"[1]Infrastructure!AB198","v":0},{"$f":"[1]Infrastructure!AB198","v":0},0,{"$f":"[1]Infrastructure!AC198","v":0},{"$f":"[1]Infrastructure!AD198","v":0},{"$f":"[1]Infrastructure!AE198","v":0},{"$f":"[1]Infrastructure!AF198","v":0},{"$f":"[1]Infrastructure!AG198","v":0},{"$f":"[1]Infrastructure!AH198","v":0},0]
[0,null,null,null,null,null,{"$f":"[1]Infrastructure!G199","v":0},{"$f":"[1]Infrastructure!H199","v":0},{"$f":"[1]Infrastructure!I199","v":0},{"$f":"[1]Infrastructure!J199","v":0},{"$f":"[1]Infrastructure!K199","v":0},{"$f":"[1]Infrastructure!L199","v":0},{"$f":"[1]Infrastructure!M199","v":0},{"$f":"[1]Infrastructure!N199","v":0},{"$f":"[1]Infrastructure!O199","v":0},{"$f":"[1]Infrastructure!Q199","v":0},{"$f":"[1]Infrastructure!R199","v":0},{"$f":"[1]Infrastructure!T199","v":0},{"$f":"[1]Infrastructure!W199","v":0},{"$f":"[1]Infrastructure!W199","v":0},0,{"$f":"[1]Infrastructure!Z199","v":0},{"$f":"[1]Infrastructure!Z199","v":0},0,{"$f":"[1]Infrastructure!AB199","v":0},{"$f":"[1]Infrastructure!AB199","v":0},0,{"$f":"[1]Infrastructure!AC199","v":0},{"$f":"[1]Infrastructure!AD199","v":0},{"$f":"[1]Infrastructure!AE199","v":0},{"$f":"[1]Infrastructure!AF199","v":0},{"$f":"[1]Infrastructure!AG199","v":0},{"$f":"[1]Infrastructure!AH199","v":0},0]
[0,null,null,null,null,null,{"$f":"[1]Infrastructure!G200","v":0},{"$f":"[1]Infrastructure!H200","v":0},{"$f":"[1]Infrastructure!I200","v":0},{"$f":"[1]Infrastructure!J200","v":0},{"$f":"[1]Infrastructure!K200","v":0},{"$f":"[1]Infrastructure!L200","v":0},{"$f":"[1]Infrastructure!M200","v":0},{"$f":"[1]Infrastructure!N200","v":0},{"$f":"[1]Infrastructure!O200","v":0},{"$f":"[1]Infrastructure!Q200","v":0},{"$f":"[1]Infrastructure!R200","v":0},{"$f":"[1]Infrastructure!T200","v":0},{"$f":"[1]Infrastructure!W200","v":0},{"$f":"[1]Infrastructure!W200","v":0},0,{"$f":"[1]Infrastructure!Z200","v":0},{"$f":"[1]Infrastructure!Z200","v":0},0,{"$f":"[1]Infrastructure!AB200","v":0},{"$f":"[1]Infrastructure!AB200","v":0},0,{"$f":"[1]Infrastructure!AC200","v":0},{"$f":"[1]Infrastructure!AD200","v":0},{"$f":"[1]Infrastructure!AE200","v":0},{"$f":"[1]Infrastructure!AF200","v":0},{"$f":"[1]Infrastructure!AG200","v":0},{"$f":"[1]Infrastructure!AH200","v":0},0]
[0,null,null,null,null,null,{"$f":"[1]Infrastructure!G201","v":0},{"$f":"[1]Infrastructure!H201","v":0},{"$f":"[1]Infrastructure!I201","v":0},{"$f":"[1]Infrastructure!J201","v":0},{"$f":"[1]Infrastructure!K201","v":0},{"$f":"[1]Infrastructure!L201","v":0},{"$f":"[1]Infrastructure!M201","v":0},{"$f":"[1]Infrastructure!N201","v":0},{"$f":"[1]Infrastructure!O201","v":0},{"$f":"[1]Infrastructure!Q201","v":0},{"$f":"[1]Infrastructure!R201","v":0},{"$f":"[1]Infrastructure!T201","v":0},{"$f":"[1]Infrastructure!W201","v":0},{"$f":"[1]Infrastructure!W201","v":0},0,{"$f":"[1]Infrastructure!Z201","v":0},{"$f":"[1]Infrastructure!Z201","v":0},0,{"$f":"[1]Infrastructure!AB201","v":0},{"$f":"[1]Infrastructure!AB201","v":0},0,{"$f":"[1]Infrastructure!AC201","v":0},{"$f":"[1]Infrastructure!AD201","v":0},{"$f":"[1]Infrastructure!AE201","v":0},{"$f":"[1]Infrastructure!AF201","v":0},{"$f":"[1]Infrastructure!AG201","v":0},{"$f":"[1]Infrastructure!AH201","v":0},0]
[0,null,null,null,null,null,{"$f":"[1]Infrastructure!G202","v":0},{"$f":"[1]Infrastructure!H202","v":0},{"$f":"[1]Infrastructure!I202","v":0},{"$f":"[1]Infrastructure!J202","v":0},{"$f":"[1]Infrastructure!K202","v":0},{"$f":"[1]Infrastructure!L202","v":0},{"$f":"[1]Infrastructure!M202","v":0},{"$f":"[1]Infrastructure!N202","v":0},{"$f":"[1]Infrastructure!O202","v":0},{"$f":"[1]Infrastructure!Q202","v":0},{"$f":"[1]Infrastructure!R202","v":0},{"$f":"[1]Infrastructure!T202","v":0},{"$f":"[1]Infrastructure!W202","v":0},{"$f":"[1]Infrastructure!W202","v":0},0,{"$f":"[1]Infrastructure!Z202","v":0},{"$f":"[1]Infrastructure!Z202","v":0},0,{"$f":"[1]Infrastructure!AB202","v":0},{"$f":"[1]Infrastructure!AB202","v":0},0,{"$f":"[1]Infrastructure!AC202","v":0},{"$f":"[1]Infrastructure!AD202","v":0},{"$f":"[1]Infrastructure!AE202","v":0},{"$f":"[1]Infrastructure!AF202","v":0},{"$f":"[1]Infrastructure!AG202","v":0},{"$f":"[1]Infrastructure!AH202","v":0},0]
[0,null,null,null,null,null,{"$f":"[1]Infrastructure!G203","v":0},{"$f":"[1]Infrastructure!H203","v":0},{"$f":"[1]Infrastructure!I203","v":0},{"$f":"[1]Infrastructure!J203","v":0},{"$f":"[1]Infrastructure!K203","v":0},{"$f":"[1]Infrastructure!L203","v":0},{"$f":"[1]Infrastructure!M203","v":0},{"$f":"[1]Infrastructure!N203","v":0},{"$f":"[1]Infrastructure!O203","v":0},{"$f":"[1]Infrastructure!Q203","v":0},{"$f":"[1]Infrastructure!R203","v":0},{"$f":"[1]Infrastructure!T203","v":0},{"$f":"[1]Infrastructure!W203","v":0},{"$f":"[1]Infrastructure!W203","v":0},0,{"$f":"[1]Infrastructure!Z203","v":0},{"$f":"[1]Infrastructure!Z203","v":0},0,{"$f":"[1]Infrastructure!AB203","v":0},{"$f":"[1]Infrastructure!AB203","v":0},0,{"$f":"[1]Infrastructure!AC203","v":0},{"$f":"[1]Infrastructure!AD203","v":0},{"$f":"[1]Infrastructure!AE203","v":0},{"$f":"[1]Infrastructure!AF203","v":0},{"$f":"[1]Infrastructure!AG203","v":0},{"$f":"[1]Infrastructure!AH203","v":0},0]
[{"$f":"IF(SUM(O204:AH204),1,0)","v":0},null,null,null,null,null,{"$f":"[1]Infrastructure!G204","v":0},{"$f":"[1]Infrastructure!H204","v":0},{"$f":"[1]Infrastructure!I204","v":0},{"$f":"[1]Infrastructure!J204","v":0},{"$f":"[1]Infrastructure!K204","v":0},{"$f":"[1]Infrastructure!L204","v":0},{"$f":"[1]Infrastructure!M204","v":0},{"$f":"[1]Infrastructure!N204","v":0},{"$f":"[1]Infrastructure!O204","v":0},{"$f":"[1]Infrastructure!Q204","v":0},{"$f":"[1]Infrastructure!R204","v":0},{"$f":"[1]Infrastructure!T204","v":0},{"$f":"[1]Infrastructure!W204","v":0},{"$f":"[1]Infrastructure!W204","v":0},{"$f":"SUM(T204-S204)","v":0},{"$f":"[1]Infrastructure!Z204","v":0},{"$f":"[1]Infrastructure!Z204","v":0},{"$f":"SUM(W204-V204)","v":0},{"$f":"[1]Infrastructure!AB204","v":0},{"$f":"[1]Infrastructure!AB204","v":0},{"$f":"SUM(Z204-Y204)","v":0},{"$f":"[1]Infrastructure!AC204","v":0},{"$f":"[1]Infrastructure!AD204","v":0},{"$f":"[1]Infrastructure!AE204","v":0},{"$f":"[1]Infrastructure!AF204","v":0},{"$f":"[1]Infrastructure!AG204","v":0},{"$f":"[1]Infrastructure!AH204","v":0},0]
[0,null,null,null,null,null,{"$f":"[1]Infrastructure!G205","v":0},{"$f":"[1]Infrastructure!H205","v":0},{"$f":"[1]Infrastructure!I205","v":0},{"$f":"[1]Infrastructure!J205","v":0},{"$f":"[1]Infrastructure!K205","v":0},{"$f":"[1]Infrastructure!L205","v":0},{"$f":"[1]Infrastructure!M205","v":0},{"$f":"[1]Infrastructure!N205","v":0},{"$f":"[1]Infrastructure!O205","v":0},{"$f":"[1]Infrastructure!Q205","v":0},{"$f":"[1]Infrastructure!R205","v":0},{"$f":"[1]Infrastructure!T205","v":0},{"$f":"[1]Infrastructure!W205","v":0},{"$f":"[1]Infrastructure!W205","v":0},0,{"$f":"[1]Infrastructure!Z205","v":0},{"$f":"[1]Infrastructure!Z205","v":0},0,{"$f":"[1]Infrastructure!AB205","v":0},{"$f":"[1]Infrastructure!AB205","v":0},0,{"$f":"[1]Infrastructure!AC205","v":0},{"$f":"[1]Infrastructure!AD205","v":0},{"$f":"[1]Infrastructure!AE205","v":0},{"$f":"[1]Infrastructure!AF205","v":0},{"$f":"[1]Infrastructure!AG205","v":0},{"$f":"[1]Infrastructure!AH205","v":0},0]
[0,null,null,null,null,null,{"$f":"[1]Infrastructure!G206","v":0},{"$f":"[1]Infrastructure!H206","v":0},{"$f":"[1]Infrastructure!I206","v":0},{"$f":"[1]Infrastructure!J206","v":0},{"$f":"[1]Infrastructure!K206","v":0},{"$f":"[1]Infrastructure!L206","v":0},{"$f":"[1]Infrastructure!M206","v":0},{"$f":"[1]Infrastructure!N206","v":0},{"$f":"[1]Infrastructure!O206","v":0},{"$f":"[1]Infrastructure!Q206","v":0},{"$f":"[1]Infrastructure!R206","v":0},{"$f":"[1]Infrastructure!T206","v":0},{"$f":"[1]Infrastructure!W206","v":0},{"$f":"[1]Infrastructure!W206","v":0},0,{"$f":"[1]Infrastructure!Z206","v":0},{"$f":"[1]Infrastructure!Z206","v":0},0,{"$f":"[1]Infrastructure!AB206","v":0},{"$f":"[1]Infrastructure!AB206","v":0},0,{"$f":"[1]Infrastructure!AC206","v":0},{"$f":"[1]Infrastructure!AD206","v":0},{"$f":"[1]Infrastructure!AE206","v":0},{"$f":"[1]Infrastructure!AF206","v":0},{"$f":"[1]Infrastructure!AG206","v":0},{"$f":"[1]Infrastructure!AH206","v":0},0]
[0,null,null,null,null,null,{"$f":"[1]Infrastructure!G207","v":0},{"$f":"[1]Infrastructure!H207","v":0},{"$f":"[1]Infrastructure!I207","v":0},{"$f":"[1]Infrastructure!J207","v":0},{"$f":"[1]Infrastructure!K207","v":0},{"$f":"[1]Infrastructure!L207","v":0},{"$f":"[1]Infrastructure!M207","v":0},{"$f":"[1]Infrastructure!N207","v":0},{"$f":"[1]Infrastructure!O207","v":0},{"$f":"[1]Infrastructure!Q207","v":0},{"$f":"[1]Infrastructure!R207","v":0},{"$f":"[1]Infrastructure!T207","v":0},{"$f":"[1]Infrastructure!W207","v":0},{"$f":"[1]Infrastructure!W207","v":0},0,{"$f":"[1]Infrastructure!Z207","v":0},{"$f":"[1]Infrastructure!Z207","v":0},0,{"$f":"[1]Infrastructure!AB207","v":0},{"$f":"[1]Infrastructure!AB207","v":0},0,{"$f":"[1]Infrastructure!AC207","v":0},{"$f":"[1]Infrastructure!AD207","v":0},{"$f":"[1]Infrastructure!AE207","v":0},{"$f":"[1]Infrastructure!AF207","v":0},{"$f":"[1]Infrastructure!AG207","v":0},{"$f":"[1]Infrastructure!AH207","v":0},0]
[0,null,null,null,null,null,{"$f":"[1]Infrastructure!G208","v":0},{"$f":"[1]Infrastructure!H208","v":0},{"$f":"[1]Infrastructure!I208","v":0},{"$f":"[1]Infrastructure!J208","v":0},{"$f":"[1]Infrastructure!K208","v":0},{"$f":"[1]Infrastructure!L208","v":0},{"$f":"[1]Infrastructure!M208","v":0},{"$f":"[1]Infrastructure!N208","v":0},{"$f":"[1]Infrastructure!O208","v":0},{"$f":"[1]Infrastructure!Q208","v":0},{"$f":"[1]Infrastructure!R208","v":0},{"$f":"[1]Infrastructure!T208","v":0},{"$f":"[1]Infrastructure!W208","v":0},{"$f":"[1]Infrastructure!W208","v":0},0,{"$f":"[1]Infrastructure!Z208","v":0},{"$f":"[1]Infrastructure!Z208","v":0},0,{"$f":"[1]Infrastructure!AB208","v":0},{"$f":"[1]Infrastructure!AB208","v":0},0,{"$f":"[1]Infrastructure!AC208","v":0},{"$f":"[1]Infrastructure!AD208","v":0},{"$f":"[1]Infrastructure!AE208","v":0},{"$f":"[1]Infrastructure!AF208","v":0},{"$f":"[1]Infrastructure!AG208","v":0},{"$f":"[1]Infrastructure!AH208","v":0},0]
[0,null,null,null,null,null,{"$f":"[1]Infrastructure!G209","v":0},{"$f":"[1]Infrastructure!H209","v":0},{"$f":"[1]Infrastructure!I209","v":0},{"$f":"[1]Infrastructure!J209","v":0},{"$f":"[1]Infrastructure!K209","v":0},{"$f":"[1]Infrastructure!L209","v":0},{"$f":"[1]Infrastructure!M209","v":0},{"$f":"[1]Infrastructure!N209","v":0},{"$f":"[1]Infrastructure!O209","v":0},{"$f":"[1]Infrastructure!Q209","v":0},{"$f":"[1]Infrastructure!R209","v":0},{"$f":"[1]Infrastructure!T209","v":0},{"$f":"[1]Infrastructure!W209","v":0},{"$f":"[1]Infrastructure!W209","v":0},0,{"$f":"[1]Infrastructure!Z209","v":0},{"$f":"[1]Infrastructure!Z209","v":0},0,{"$f":"[1]Infrastructure!AB209","v":0},{"$f":"[1]Infrastructure!AB209","v":0},0,{"$f":"[1]Infrastructure!AC209","v":0},{"$f":"[1]Infrastructure!AD209","v":0},{"$f":"[1]Infrastructure!AE209","v":0},{"$f":"[1]Infrastructure!AF209","v":0},{"$f":"[1]Infrastructure!AG209","v":0},{"$f":"[1]Infrastructure!AH209","v":0},0]
[0,null,null,null,null,null,{"$f":"[1]Infrastructure!G210","v":0},{"$f":"[1]Infrastructure!H210","v":0},{"$f":"[1]Infrastructure!I210","v":0},{"$f":"[1]Infrastructure!J210","v":0},{"$f":"[1]Infrastructure!K210","v":0},{"$f":"[1]Infrastructure!L210","v":0},{"$f":"[1]Infrastructure!M210","v":0},{"$f":"[1]Infrastructure!N210","v":0},{"$f":"[1]Infrastructure!O210","v":0},{"$f":"[1]Infrastructure!Q210","v":0},{"$f":"[1]Infrastructure!R210","v":0},{"$f":"[1]Infrastructure!T210","v":0},{"$f":"[1]Infrastructure!W210","v":0},{"$f":"[1]Infrastructure!W210","v":0},0,{"$f":"[1]Infrastructure!Z210","v":0},{"$f":"[1]Infrastructure!Z210","v":0},0,{"$f":"[1]Infrastructure!AB210","v":0},{"$f":"[1]Infrastructure!AB210","v":0},0,{"$f":"[1]Infrastructure!AC210","v":0},{"$f":"[1]Infrastructure!AD210","v":0},{"$f":"[1]Infrastructure!AE210","v":0},{"$f":"[1]Infrastructure!AF210","v":0},{"$f":"[1]Infrastructure!AG210","v":0},{"$f":"[1]Infrastructure!AH210","v":0},0]
[0,null,null,null,null,null,{"$f":"[1]Infrastructure!G211","v":0},{"$f":"[1]Infrastructure!H211","v":0},{"$f":"[1]Infrastructure!I211","v":0},{"$f":"[1]Infrastructure!J211","v":0},{"$f":"[1]Infrastructure!K211","v":0},{"$f":"[1]Infrastructure!L211","v":0},{"$f":"[1]Infrastructure!M211","v":0},{"$f":"[1]Infrastructure!N211","v":0},{"$f":"[1]Infrastructure!O211","v":0},{"$f":"[1]Infrastructure!Q211","v":0},{"$f":"[1]Infrastructure!R211","v":0},{"$f":"[1]Infrastructure!T211","v":0},{"$f":"[1]Infrastructure!W211","v":0},{"$f":"[1]Infrastructure!W211","v":0},0,{"$f":"[1]Infrastructure!Z211","v":0},{"$f":"[1]Infrastructure!Z211","v":0},0,{"$f":"[1]Infrastructure!AB211","v":0},{"$f":"[1]Infrastructure!AB211","v":0},0,{"$f":"[1]Infrastructure!AC211","v":0},{"$f":"[1]Infrastructure!AD211","v":0},{"$f":"[1]Infrastructure!AE211","v":0},{"$f":"[1]Infrastructure!AF211","v":0},{"$f":"[1]Infrastructure!AG211","v":0},{"$f":"[1]Infrastructure!AH211","v":0},0]
[0,null,null,null,null,null,{"$f":"[1]Infrastructure!G212","v":0},{"$f":"[1]Infrastructure!H212","v":0},{"$f":"[1]Infrastructure!I212","v":0},{"$f":"[1]Infrastructure!J212","v":0},{"$f":"[1]Infrastructure!K212","v":0},{"$f":"[1]Infrastructure!L212","v":0},{"$f":"[1]Infrastructure!M212","v":0},{"$f":"[1]Infrastructure!N212","v":0},{"$f":"[1]Infrastructure!O212","v":0},{"$f":"[1]Infrastructure!Q212","v":0},{"$f":"[1]Infrastructure!R212","v":0},{"$f":"[1]Infrastructure!T212","v":0},{"$f":"[1]Infrastructure!W212","v":0},{"$f":"[1]Infrastructure!W212","v":0},0,{"$f":"[1]Infrastructure!Z212","v":0},{"$f":"[1]Infrastructure!Z212","v":0},0,{"$f":"[1]Infrastructure!AB212","v":0},{"$f":"[1]Infrastructure!AB212","v":0},0,{"$f":"[1]Infrastructure!AC212","v":0},{"$f":"[1]Infrastructure!AD212","v":0},{"$f":"[1]Infrastructure!AE212","v":0},{"$f":"[1]Infrastructure!AF212","v":0},{"$f":"[1]Infrastructure!AG212","v":0},{"$f":"[1]Infrastructure!AH212","v":0},0]
[0,null,null,null,null,null,{"$f":"[1]Infrastructure!G213","v":0},{"$f":"[1]Infrastructure!H213","v":0},{"$f":"[1]Infrastructure!I213","v":0},{"$f":"[1]Infrastructure!J213","v":0},{"$f":"[1]Infrastructure!K213","v":0},{"$f":"[1]Infrastructure!L213","v":0},{"$f":"[1]Infrastructure!M213","v":0},{"$f":"[1]Infrastructure!N213","v":0},{"$f":"[1]Infrastructure!O213","v":0},{"$f":"[1]Infrastructure!Q213","v":0},{"$f":"[1]Infrastructure!R213","v":0},{"$f":"[1]Infrastructure!T213","v":0},{"$f":"[1]Infrastructure!W213","v":0},{"$f":"[1]Infrastructure!W213","v":0},0,{"$f":"[1]Infrastructure!Z213","v":0},{"$f":"[1]Infrastructure!Z213","v":0},0,{"$f":"[1]Infrastructure!AB213","v":0},{"$f":"[1]Infrastructure!AB213","v":0},0,{"$f":"[1]Infrastructure!AC213","v":0},{"$f":"[1]Infrastructure!AD213","v":0},{"$f":"[1]Infrastructure!AE213","v":0},{"$f":"[1]Infrastructure!AF213","v":0},{"$f":"[1]Infrastructure!AG213","v":0},{"$f":"[1]Infrastructure!AH213","v":0},0]
[0,null,null,null,null,null,{"$f":"[1]Infrastructure!G214","v":0},{"$f":"[1]Infrastructure!H214","v":0},{"$f":"[1]Infrastructure!I214","v":0},{"$f":"[1]Infrastructure!J214","v":0},{"$f":"[1]Infrastructure!K214","v":0},{"$f":"[1]Infrastructure!L214","v":0},{"$f":"[1]Infrastructure!M214","v":0},{"$f":"[1]Infrastructure!N214","v":0},{"$f":"[1]Infrastructure!O214","v":0},{"$f":"[1]Infrastructure!Q214","v":0},{"$f":"[1]Infrastructure!R214","v":0},{"$f":"[1]Infrastructure!T214","v":0},{"$f":"[1]Infrastructure!W214","v":0},{"$f":"[1]Infrastructure!W214","v":0},0,{"$f":"[1]Infrastructure!Z214","v":0},{"$f":"[1]Infrastructure!Z214","v":0},0,{"$f":"[1]Infrastructure!AB214","v":0},{"$f":"[1]Infrastructure!AB214","v":0},0,{"$f":"[1]Infrastructure!AC214","v":0},{"$f":"[1]Infrastructure!AD214","v":0},{"$f":"[1]Infrastructure!AE214","v":0},{"$f":"[1]Infrastructure!AF214","v":0},{"$f":"[1]Infrastructure!AG214","v":0},{"$f":"[1]Infrastructure!AH214","v":0},0]
[0,null,null,null,null,null,{"$f":"[1]Infrastructure!G215","v":0},{"$f":"[1]Infrastructure!H215","v":0},{"$f":"[1]Infrastructure!I215","v":0},{"$f":"[1]Infrastructure!J215","v":0},{"$f":"[1]Infrastructure!K215","v":0},{"$f":"[1]Infrastructure!L215","v":0},{"$f":"[1]Infrastructure!M215","v":0},{"$f":"[1]Infrastructure!N215","v":0},{"$f":"[1]Infrastructure!O215","v":0},{"$f":"[1]Infrastructure!Q215","v":0},{"$f":"[1]Infrastructure!R215","v":0},{"$f":"[1]Infrastructure!T215","v":0},{"$f":"[1]Infrastructure!W215","v":0},{"$f":"[1]Infrastructure!W215","v":0},0,{"$f":"[1]Infrastructure!Z215","v":0},{"$f":"[1]Infrastructure!Z215","v":0},0,{"$f":"[1]Infrastructure!AB215","v":0},{"$f":"[1]Infrastructure!AB215","v":0},0,{"$f":"[1]Infrastructure!AC215","v":0},{"$f":"[1]Infrastructure!AD215","v":0},{"$f":"[1]Infrastructure!AE215","v":0},{"$f":"[1]Infrastructure!AF215","v":0},{"$f":"[1]Infrastructure!AG215","v":0},{"$f":"[1]Infrastructure!AH215","v":0},0]
[0,null,null,null,null,null,{"$f":"[1]Infrastructure!G216","v":0},{"$f":"[1]Infrastructure!H216","v":0},{"$f":"[1]Infrastructure!I216","v":0},{"$f":"[1]Infrastructure!J216","v":0},{"$f":"[1]Infrastructure!K216","v":0},{"$f":"[1]Infrastructure!L216","v":0},{"$f":"[1]Infrastructure!M216","v":0},{"$f":"[1]Infrastructure!N216","v":0},{"$f":"[1]Infrastructure!O216","v":0},{"$f":"[1]Infrastructure!Q216","v":0},{"$f":"[1]Infrastructure!R216","v":0},{"$f":"[1]Infrastructure!T216","v":0},{"$f":"[1]Infrastructure!W216","v":0},{"$f":"[1]Infrastructure!W216","v":0},0,{"$f":"[1]Infrastructure!Z216","v":0},{"$f":"[1]Infrastructure!Z216","v":0},0,{"$f":"[1]Infrastructure!AB216","v":0},{"$f":"[1]Infrastructure!AB216","v":0},0,{"$f":"[1]Infrastructure!AC216","v":0},{"$f":"[1]Infrastructure!AD216","v":0},{"$f":"[1]Infrastructure!AE216","v":0},{"$f":"[1]Infrastructure!AF216","v":0},{"$f":"[1]Infrastructure!AG216","v":0},{"$f":"[1]Infrastructure!AH216","v":0},0]
[0,null,null,null,null,null,{"$f":"[1]Infrastructure!G217","v":0},{"$f":"[1]Infrastructure!H217","v":0},{"$f":"[1]Infrastructure!I217","v":0},{"$f":"[1]Infrastructure!J217","v":0},{"$f":"[1]Infrastructure!K217","v":0},{"$f":"[1]Infrastructure!L217","v":0},{"$f":"[1]Infrastructure!M217","v":0},{"$f":"[1]Infrastructure!N217","v":0},{"$f":"[1]Infrastructure!O217","v":0},{"$f":"[1]Infrastructure!Q217","v":0},{"$f":"[1]Infrastructure!R217","v":0},{"$f":"[1]Infrastructure!T217","v":0},{"$f":"[1]Infrastructure!W217","v":0},{"$f":"[1]Infrastructure!W217","v":0},0,{"$f":"[1]Infrastructure!Z217","v":0},{"$f":"[1]Infrastructure!Z217","v":0},0,{"$f":"[1]Infrastructure!AB217","v":0},{"$f":"[1]Infrastructure!AB217","v":0},0,{"$f":"[1]Infrastructure!AC217","v":0},{"$f":"[1]Infrastructure!AD217","v":0},{"$f":"[1]Infrastructure!AE217","v":0},{"$f":"[1]Infrastructure!AF217","v":0},{"$f":"[1]Infrastructure!AG217","v":0},{"$f":"[1]Infrastructure!AH217","v":0},0]
[0,null,null,null,null,null,{"$f":"[1]Infrastructure!G218","v":0},{"$f":"[1]Infrastructure!H218","v":0},{"$f":"[1]Infrastructure!I218","v":0},{"$f":"[1]Infrastructure!J218","v":0},{"$f":"[1]Infrastructure!K218","v":0},{"$f":"[1]Infrastructure!L218","v":0},{"$f":"[1]Infrastructure!M218","v":0},{"$f":"[1]Infrastructure!N218","v":0},{"$f":"[1]Infrastructure!O218","v":0},{"$f":"[1]Infrastructure!Q218","v":0},{"$f":"[1]Infrastructure!R218","v":0},{"$f":"[1]Infrastructure!T218","v":0},{"$f":"[1]Infrastructure!W218","v":0},{"$f":"[1]Infrastructure!W218","v":0},0,{"$f":"[1]Infrastructure!Z218","v":0},{"$f":"[1]Infrastructure!Z218","v":0},0,{"$f":"[1]Infrastructure!AB218","v":0},{"$f":"[1]Infrastructure!AB218","v":0},0,{"$f":"[1]Infrastructure!AC218","v":0},{"$f":"[1]Infrastructure!AD218","v":0},{"$f":"[1]Infrastructure!AE218","v":0},{"$f":"[1]Infrastructure!AF218","v":0},{"$f":"[1]Infrastructure!AG218","v":0},{"$f":"[1]Infrastructure!AH218","v":0},0]
[0,null,null,null,null,null,{"$f":"[1]Infrastructure!G219","v":0},{"$f":"[1]Infrastructure!H219","v":0},{"$f":"[1]Infrastructure!I219","v":0},{"$f":"[1]Infrastructure!J219","v":0},{"$f":"[1]Infrastructure!K219","v":0},{"$f":"[1]Infrastructure!L219","v":0},{"$f":"[1]Infrastructure!M219","v":0},{"$f":"[1]Infrastructure!N219","v":0},{"$f":"[1]Infrastructure!O219","v":0},{"$f":"[1]Infrastructure!Q219","v":0},{"$f":"[1]Infrastructure!R219","v":0},{"$f":"[1]Infrastructure!T219","v":0},{"$f":"[1]Infrastructure!W219","v":0},{"$f":"[1]Infrastructure!W219","v":0},0,{"$f":"[1]Infrastructure!Z219","v":0},{"$f":"[1]Infrastructure!Z219","v":0},0,{"$f":"[1]Infrastructure!AB219","v":0},{"$f":"[1]Infrastructure!AB219","v":0},0,{"$f":"[1]Infrastructure!AC219","v":0},{"$f":"[1]Infrastructure!AD219","v":0},{"$f":"[1]Infrastructure!AE219","v":0},{"$f":"[1]Infrastructure!AF219","v":0},{"$f":"[1]Infrastructure!AG219","v":0},{"$f":"[1]Infrastructure!AH219","v":0},0]
[0,null,null,null,null,null,{"$f":"[1]Infrastructure!G220","v":0},{"$f":"[1]Infrastructure!H220","v":0},{"$f":"[1]Infrastructure!I220","v":0},{"$f":"[1]Infrastructure!J220","v":0},{"$f":"[1]Infrastructure!K220","v":0},{"$f":"[1]Infrastructure!L220","v":0},{"$f":"[1]Infrastructure!M220","v":0},{"$f":"[1]Infrastructure!N220","v":0},{"$f":"[1]Infrastructure!O220","v":0},{"$f":"[1]Infrastructure!Q220","v":0},{"$f":"[1]Infrastructure!R220","v":0},{"$f":"[1]Infrastructure!T220","v":0},{"$f":"[1]Infrastructure!W220","v":0},{"$f":"[1]Infrastructure!W220","v":0},0,{"$f":"[1]Infrastructure!Z220","v":0},{"$f":"[1]Infrastructure!Z220","v":0},0,{"$f":"[1]Infrastructure!AB220","v":0},{"$f":"[1]Infrastructure!AB220","v":0},0,{"$f":"[1]Infrastructure!AC220","v":0},{"$f":"[1]Infrastructure!AD220","v":0},{"$f":"[1]Infrastructure!AE220","v":0},{"$f":"[1]Infrastructure!AF220","v":0},{"$f":"[1]Infrastructure!AG220","v":0},{"$f":"[1]Infrastructure!AH220","v":0},0]
[0,null,null,null,null,null,{"$f":"[1]Infrastructure!G221","v":0},{"$f":"[1]Infrastructure!H221","v":0},{"$f":"[1]Infrastructure!I221","v":0},{"$f":"[1]Infrastructure!J221","v":0},{"$f":"[1]Infrastructure!K221","v":0},{"$f":"[1]Infrastructure!L221","v":0},{"$f":"[1]Infrastructure!M221","v":0},{"$f":"[1]Infrastructure!N221","v":0},{"$f":"[1]Infrastructure!O221","v":0},{"$f":"[1]Infrastructure!Q221","v":0},{"$f":"[1]Infrastructure!R221","v":0},{"$f":"[1]Infrastructure!T221","v":0},{"$f":"[1]Infrastructure!W221","v":0},{"$f":"[1]Infrastructure!W221","v":0},0,{"$f":"[1]Infrastructure!Z221","v":0},{"$f":"[1]Infrastructure!Z221","v":0},0,{"$f":"[1]Infrastructure!AB221","v":0},{"$f":"[1]Infrastructure!AB221","v":0},0,{"$f":"[1]Infrastructure!AC221","v":0},{"$f":"[1]Infrastructure!AD221","v":0},{"$f":"[1]Infrastructure!AE221","v":0},{"$f":"[1]Infrastructure!AF221","v":0},{"$f":"[1]Infrastructure!AG221","v":0},{"$f":"[1]Infrastructure!AH221","v":0},0]
[0,null,null,null,null,null,{"$f":"[1]Infrastructure!G222","v":0},{"$f":"[1]Infrastructure!H222","v":0},{"$f":"[1]Infrastructure!I222","v":0},{"$f":"[1]Infrastructure!J222","v":0},{"$f":"[1]Infrastructure!K222","v":0},{"$f":"[1]Infrastructure!L222","v":0},{"$f":"[1]Infrastructure!M222","v":0},{"$f":"[1]Infrastructure!N222","v":0},{"$f":"[1]Infrastructure!O222","v":0},{"$f":"[1]Infrastructure!Q222","v":0},{"$f":"[1]Infrastructure!R222","v":0},{"$f":"[1]Infrastructure!T222","v":0},{"$f":"[1]Infrastructure!W222","v":0},{"$f":"[1]Infrastructure!W222","v":0},0,{"$f":"[1]Infrastructure!Z222","v":0},{"$f":"[1]Infrastructure!Z222","v":0},0,{"$f":"[1]Infrastructure!AB222","v":0},{"$f":"[1]Infrastructure!AB222","v":0},0,{"$f":"[1]Infrastructure!AC222","v":0},{"$f":"[1]Infrastructure!AD222","v":0},{"$f":"[1]Infrastructure!AE222","v":0},{"$f":"[1]Infrastructure!AF222","v":0},{"$f":"[1]Infrastructure!AG222","v":0},{"$f":"[1]Infrastructure!AH222","v":0},0]
[0,null,null,null,null,null,{"$f":"[1]Infrastructure!G223","v":0},{"$f":"[1]Infrastructure!H223","v":0},{"$f":"[1]Infrastructure!I223","v":0},{"$f":"[1]Infrastructure!J223","v":0},{"$f":"[1]Infrastructure!K223","v":0},{"$f":"[1]Infrastructure!L223","v":0},{"$f":"[1]Infrastructure!M223","v":0},{"$f":"[1]Infrastructure!N223","v":0},{"$f":"[1]Infrastructure!O223","v":0},{"$f":"[1]Infrastructure!Q223","v":0},{"$f":"[1]Infrastructure!R223","v":0},{"$f":"[1]Infrastructure!T223","v":0},{"$f":"[1]Infrastructure!W223","v":0},{"$f":"[1]Infrastructure!W223","v":0},0,{"$f":"[1]Infrastructure!Z223","v":0},{"$f":"[1]Infrastructure!Z223","v":0},0,{"$f":"[1]Infrastructure!AB223","v":0},{"$f":"[1]Infrastructure!AB223","v":0},0,{"$f":"[1]Infrastructure!AC223","v":0},{"$f":"[1]Infrastructure!AD223","v":0},{"$f":"[1]Infrastructure!AE223","v":0},{"$f":"[1]Infrastructure!AF223","v":0},{"$f":"[1]Infrastructure!AG223","v":0},{"$f":"[1]Infrastructure!AH223","v":0},0]
[0,null,null,null,null,null,{"$f":"[1]Infrastructure!G224","v":0},{"$f":"[1]Infrastructure!H224","v":0},{"$f":"[1]Infrastructure!I224","v":0},{"$f":"[1]Infrastructure!J224","v":0},{"$f":"[1]Infrastructure!K224","v":0},{"$f":"[1]Infrastructure!L224","v":0},{"$f":"[1]Infrastructure!M224","v":0},{"$f":"[1]Infrastructure!N224","v":0},{"$f":"[1]Infrastructure!O224","v":0},{"$f":"[1]Infrastructure!Q224","v":0},{"$f":"[1]Infrastructure!R224","v":0},{"$f":"[1]Infrastructure!T224","v":0},{"$f":"[1]Infrastructure!W224","v":0},{"$f":"[1]Infrastructure!W224","v":0},0,{"$f":"[1]Infrastructure!Z224","v":0},{"$f":"[1]Infrastructure!Z224","v":0},0,{"$f":"[1]Infrastructure!AB224","v":0},{"$f":"[1]Infrastructure!AB224","v":0},0,{"$f":"[1]Infrastructure!AC224","v":0},{"$f":"[1]Infrastructure!AD224","v":0},{"$f":"[1]Infrastructure!AE224","v":0},{"$f":"[1]Infrastructure!AF224","v":0},{"$f":"[1]Infrastructure!AG224","v":0},{"$f":"[1]Infrastructure!AH224","v":0},0]
[0,null,null,null,null,null,{"$f":"[1]Infrastructure!G225","v":0},{"$f":"[1]Infrastructure!H225","v":0},{"$f":"[1]Infrastructure!I225","v":0},{"$f":"[1]Infrastructure!J225","v":0},{"$f":"[1]Infrastructure!K225","v":0},{"$f":"[1]Infrastructure!L225","v":0},{"$f":"[1]Infrastructure!M225","v":0},{"$f":"[1]Infrastructure!N225","v":0},{"$f":"[1]Infrastructure!O225","v":0},{"$f":"[1]Infrastructure!Q225","v":0},{"$f":"[1]Infrastructure!R225","v":0},{"$f":"[1]Infrastructure!T225","v":0},{"$f":"[1]Infrastructure!W225","v":0},{"$f":"[1]Infrastructure!W225","v":0},0,{"$f":"[1]Infrastructure!Z225","v":0},{"$f":"[1]Infrastructure!Z225","v":0},0,{"$f":"[1]Infrastructure!AB225","v":0},{"$f":"[1]Infrastructure!AB225","v":0},0,{"$f":"[1]Infrastructure!AC225","v":0},{"$f":"[1]Infrastructure!AD225","v":0},{"$f":"[1]Infrastructure!AE225","v":0},{"$f":"[1]Infrastructure!AF225","v":0},{"$f":"[1]Infrastructure!AG225","v":0},{"$f":"[1]Infrastructure!AH225","v":0},0]
[0,null,null,null,null,null,{"$f":"[1]Infrastructure!G226","v":0},{"$f":"[1]Infrastructure!H226","v":0},{"$f":"[1]Infrastructure!I226","v":0},{"$f":"[1]Infrastructure!J226","v":0},{"$f":"[1]Infrastructure!K226","v":0},{"$f":"[1]Infrastructure!L226","v":0},{"$f":"[1]Infrastructure!M226","v":0},{"$f":"[1]Infrastructure!N226","v":0},{"$f":"[1]Infrastructure!O226","v":0},{"$f":"[1]Infrastructure!Q226","v":0},{"$f":"[1]Infrastructure!R226","v":0},{"$f":"[1]Infrastructure!T226","v":0},{"$f":"[1]Infrastructure!W226","v":0},{"$f":"[1]Infrastructure!W226","v":0},0,{"$f":"[1]Infrastructure!Z226","v":0},{"$f":"[1]Infrastructure!Z226","v":0},0,{"$f":"[1]Infrastructure!AB226","v":0},{"$f":"[1]Infrastructure!AB226","v":0},0,{"$f":"[1]Infrastructure!AC226","v":0},{"$f":"[1]Infrastructure!AD226","v":0},{"$f":"[1]Infrastructure!AE226","v":0},{"$f":"[1]Infrastructure!AF226","v":0},{"$f":"[1]Infrastructure!AG226","v":0},{"$f":"[1]Infrastructure!AH226","v":0},0]
[0,null,null,null,null,null,{"$f":"[1]Infrastructure!G227","v":0},{"$f":"[1]Infrastructure!H227","v":0},{"$f":"[1]Infrastructure!I227","v":0},{"$f":"[1]Infrastructure!J227","v":0},{"$f":"[1]Infrastructure!K227","v":0},{"$f":"[1]Infrastructure!L227","v":0},{"$f":"[1]Infrastructure!M227","v":0},{"$f":"[1]Infrastructure!N227","v":0},{"$f":"[1]Infrastructure!O227","v":0},{"$f":"[1]Infrastructure!Q227","v":0},{"$f":"[1]Infrastructure!R227","v":0},{"$f":"[1]Infrastructure!T227","v":0},{"$f":"[1]Infrastructure!W227","v":0},{"$f":"[1]Infrastructure!W227","v":0},0,{"$f":"[1]Infrastructure!Z227","v":0},{"$f":"[1]Infrastructure!Z227","v":0},0,{"$f":"[1]Infrastructure!AB227","v":0},{"$f":"[1]Infrastructure!AB227","v":0},0,{"$f":"[1]Infrastructure!AC227","v":0},{"$f":"[1]Infrastructure!AD227","v":0},{"$f":"[1]Infrastructure!AE227","v":0},{"$f":"[1]Infrastructure!AF227","v":0},{"$f":"[1]Infrastructure!AG227","v":0},{"$f":"[1]Infrastructure!AH227","v":0},0]
[0,null,null,null,null,null,{"$f":"[1]Infrastructure!G228","v":0},{"$f":"[1]Infrastructure!H228","v":0},{"$f":"[1]Infrastructure!I228","v":0},{"$f":"[1]Infrastructure!J228","v":0},{"$f":"[1]Infrastructure!K228","v":0},{"$f":"[1]Infrastructure!L228","v":0},{"$f":"[1]Infrastructure!M228","v":0},{"$f":"[1]Infrastructure!N228","v":0},{"$f":"[1]Infrastructure!O228","v":0},{"$f":"[1]Infrastructure!Q228","v":0},{"$f":"[1]Infrastructure!R228","v":0},{"$f":"[1]Infrastructure!T228","v":0},{"$f":"[1]Infrastructure!W228","v":0},{"$f":"[1]Infrastructure!W228","v":0},0,{"$f":"[1]Infrastructure!Z228","v":0},{"$f":"[1]Infrastructure!Z228","v":0},0,{"$f":"[1]Infrastructure!AB228","v":0},{"$f":"[1]Infrastructure!AB228","v":0},0,{"$f":"[1]Infrastructure!AC228","v":0},{"$f":"[1]Infrastructure!AD228","v":0},{"$f":"[1]Infrastructure!AE228","v":0},{"$f":"[1]Infrastructure!AF228","v":0},{"$f":"[1]Infrastructure!AG228","v":0},{"$f":"[1]Infrastructure!AH228","v":0},0]
[0,null,null,null,null,null,{"$f":"[1]Infrastructure!G229","v":0},{"$f":"[1]Infrastructure!H229","v":0},{"$f":"[1]Infrastructure!I229","v":0},{"$f":"[1]Infrastructure!J229","v":0},{"$f":"[1]Infrastructure!K229","v":0},{"$f":"[1]Infrastructure!L229","v":0},{"$f":"[1]Infrastructure!M229","v":0},{"$f":"[1]Infrastructure!N229","v":0},{"$f":"[1]Infrastructure!O229","v":0},{"$f":"[1]Infrastructure!Q229","v":0},{"$f":"[1]Infrastructure!R229","v":0},{"$f":"[1]Infrastructure!T229","v":0},{"$f":"[1]Infrastructure!W229","v":0},{"$f":"[1]Infrastructure!W229","v":0},0,{"$f":"[1]Infrastructure!Z229","v":0},{"$f":"[1]Infrastructure!Z229","v":0},0,{"$f":"[1]Infrastructure!AB229","v":0},{"$f":"[1]Infrastructure!AB229","v":0},0,{"$f":"[1]Infrastructure!AC229","v":0},{"$f":"[1]Infrastructure!AD229","v":0},{"$f":"[1]Infrastructure!AE229","v":0},{"$f":"[1]Infrastructure!AF229","v":0},{"$f":"[1]Infrastructure!AG229","v":0},{"$f":"[1]Infrastructure!AH229","v":0},0]
[0,null,null,null,null,null,{"$f":"[1]Infrastructure!G230","v":0},{"$f":"[1]Infrastructure!H230","v":0},{"$f":"[1]Infrastructure!I230","v":0},{"$f":"[1]Infrastructure!J230","v":0},{"$f":"[1]Infrastructure!K230","v":0},{"$f":"[1]Infrastructure!L230","v":0},{"$f":"[1]Infrastructure!M230","v":0},{"$f":"[1]Infrastructure!N230","v":0},{"$f":"[1]Infrastructure!O230","v":0},{"$f":"[1]Infrastructure!Q230","v":0},{"$f":"[1]Infrastructure!R230","v":0},{"$f":"[1]Infrastructure!T230","v":0},{"$f":"[1]Infrastructure!W230","v":0},{"$f":"[1]Infrastructure!W230","v":0},0,{"$f":"[1]Infrastructure!Z230","v":0},{"$f":"[1]Infrastructure!Z230","v":0},0,{"$f":"[1]Infrastructure!AB230","v":0},{"$f":"[1]Infrastructure!AB230","v":0},0,{"$f":"[1]Infrastructure!AC230","v":0},{"$f":"[1]Infrastructure!AD230","v":0},{"$f":"[1]Infrastructure!AE230","v":0},{"$f":"[1]Infrastructure!AF230","v":0},{"$f":"[1]Infrastructure!AG230","v":0},{"$f":"[1]Infrastructure!AH230","v":0},0]
[0,null,null,null,null,null,{"$f":"[1]Infrastructure!G231","v":0},{"$f":"[1]Infrastructure!H231","v":0},{"$f":"[1]Infrastructure!I231","v":0},{"$f":"[1]Infrastructure!J231","v":0},{"$f":"[1]Infrastructure!K231","v":0},{"$f":"[1]Infrastructure!L231","v":0},{"$f":"[1]Infrastructure!M231","v":0},{"$f":"[1]Infrastructure!N231","v":0},{"$f":"[1]Infrastructure!O231","v":0},{"$f":"[1]Infrastructure!Q231","v":0},{"$f":"[1]Infrastructure!R231","v":0},{"$f":"[1]Infrastructure!T231","v":0},{"$f":"[1]Infrastructure!W231","v":0},{"$f":"[1]Infrastructure!W231","v":0},0,{"$f":"[1]Infrastructure!Z231","v":0},{"$f":"[1]Infrastructure!Z231","v":0},0,{"$f":"[1]Infrastructure!AB231","v":0},{"$f":"[1]Infrastructure!AB231","v":0},0,{"$f":"[1]Infrastructure!AC231","v":0},{"$f":"[1]Infrastructure!AD231","v":0},{"$f":"[1]Infrastructure!AE231","v":0},{"$f":"[1]Infrastructure!AF231","v":0},{"$f":"[1]Infrastructure!AG231","v":0},{"$f":"[1]Infrastructure!AH231","v":0},0]
[0,null,null,null,null,null,{"$f":"[1]Infrastructure!G232","v":0},{"$f":"[1]Infrastructure!H232","v":0},{"$f":"[1]Infrastructure!I232","v":0},{"$f":"[1]Infrastructure!J232","v":0},{"$f":"[1]Infrastructure!K232","v":0},{"$f":"[1]Infrastructure!L232","v":0},{"$f":"[1]Infrastructure!M232","v":0},{"$f":"[1]Infrastructure!N232","v":0},{"$f":"[1]Infrastructure!O232","v":0},{"$f":"[1]Infrastructure!Q232","v":0},{"$f":"[1]Infrastructure!R232","v":0},{"$f":"[1]Infrastructure!T232","v":0},{"$f":"[1]Infrastructure!W232","v":0},{"$f":"[1]Infrastructure!W232","v":0},0,{"$f":"[1]Infrastructure!Z232","v":0},{"$f":"[1]Infrastructure!Z232","v":0},0,{"$f":"[1]Infrastructure!AB232","v":0},{"$f":"[1]Infrastructure!AB232","v":0},0,{"$f":"[1]Infrastructure!AC232","v":0},{"$f":"[1]Infrastructure!AD232","v":0},{"$f":"[1]Infrastructure!AE232","v":0},{"$f":"[1]Infrastructure!AF232","v":0},{"$f":"[1]Infrastructure!AG232","v":0},{"$f":"[1]Infrastructure!AH232","v":0},0]
[0,null,null,null,null,null,{"$f":"[1]Infrastructure!G233","v":0},{"$f":"[1]Infrastructure!H233","v":0},{"$f":"[1]Infrastructure!I233","v":0},{"$f":"[1]Infrastructure!J233","v":0},{"$f":"[1]Infrastructure!K233","v":0},{"$f":"[1]Infrastructure!L233","v":0},{"$f":"[1]Infrastructure!M233","v":0},{"$f":"[1]Infrastructure!N233","v":0},{"$f":"[1]Infrastructure!O233","v":0},{"$f":"[1]Infrastructure!Q233","v":0},{"$f":"[1]Infrastructure!R233","v":0},{"$f":"[1]Infrastructure!T233","v":0},{"$f":"[1]Infrastructure!W233","v":0},{"$f":"[1]Infrastructure!W233","v":0},0,{"$f":"[1]Infrastructure!Z233","v":0},{"$f":"[1]Infrastructure!Z233","v":0},0,{"$f":"[1]Infrastructure!AB233","v":0},{"$f":"[1]Infrastructure!AB233","v":0},0,{"$f":"[1]Infrastructure!AC233","v":0},{"$f":"[1]Infrastructure!AD233","v":0},{"$f":"[1]Infrastructure!AE233","v":0},{"$f":"[1]Infrastructure!AF233","v":0},{"$f":"[1]Infrastructure!AG233","v":0},{"$f":"[1]Infrastructure!AH233","v":0},0]
[0,null,null,null,null,null,{"$f":"[1]Infrastructure!G234","v":0},{"$f":"[1]Infrastructure!H234","v":0},{"$f":"[1]Infrastructure!I234","v":0},{"$f":"[1]Infrastructure!J234","v":0},{"$f":"[1]Infrastructure!K234","v":0},{"$f":"[1]Infrastructure!L234","v":0},{"$f":"[1]Infrastructure!M234","v":0},{"$f":"[1]Infrastructure!N234","v":0},{"$f":"[1]Infrastructure!O234","v":0},{"$f":"[1]Infrastructure!Q234","v":0},{"$f":"[1]Infrastructure!R234","v":0},{"$f":"[1]Infrastructure!T234","v":0},{"$f":"[1]Infrastructure!W234","v":0},{"$f":"[1]Infrastructure!W234","v":0},0,{"$f":"[1]Infrastructure!Z234","v":0},{"$f":"[1]Infrastructure!Z234","v":0},0,{"$f":"[1]Infrastructure!AB234","v":0},{"$f":"[1]Infrastructure!AB234","v":0},0,{"$f":"[1]Infrastructure!AC234","v":0},{"$f":"[1]Infrastructure!AD234","v":0},{"$f":"[1]Infrastructure!AE234","v":0},{"$f":"[1]Infrastructure!AF234","v":0},{"$f":"[1]Infrastructure!AG234","v":0},{"$f":"[1]Infrastructure!AH234","v":0},0]
[0,null,null,null,null,null,{"$f":"[1]Infrastructure!G235","v":0},{"$f":"[1]Infrastructure!H235","v":0},{"$f":"[1]Infrastructure!I235","v":0},{"$f":"[1]Infrastructure!J235","v":0},{"$f":"[1]Infrastructure!K235","v":0},{"$f":"[1]Infrastructure!L235","v":0},{"$f":"[1]Infrastructure!M235","v":0},{"$f":"[1]Infrastructure!N235","v":0},{"$f":"[1]Infrastructure!O235","v":0},{"$f":"[1]Infrastructure!Q235","v":0},{"$f":"[1]Infrastructure!R235","v":0},{"$f":"[1]Infrastructure!T235","v":0},{"$f":"[1]Infrastructure!W235","v":0},{"$f":"[1]Infrastructure!W235","v":0},0,{"$f":"[1]Infrastructure!Z235","v":0},{"$f":"[1]Infrastructure!Z235","v":0},0,{"$f":"[1]Infrastructure!AB235","v":0},{"$f":"[1]Infrastructure!AB235","v":0},0,{"$f":"[1]Infrastructure!AC235","v":0},{"$f":"[1]Infrastructure!AD235","v":0},{"$f":"[1]Infrastructure!AE235","v":0},{"$f":"[1]Infrastructure!AF235","v":0},{"$f":"[1]Infrastructure!AG235","v":0},{"$f":"[1]Infrastructure!AH235","v":0},0]
[0,null,null,null,null,null,{"$f":"[1]Infrastructure!G236","v":0},{"$f":"[1]Infrastructure!H236","v":0},{"$f":"[1]Infrastructure!I236","v":0},{"$f":"[1]Infrastructure!J236","v":0},{"$f":"[1]Infrastructure!K236","v":0},{"$f":"[1]Infrastructure!L236","v":0},{"$f":"[1]Infrastructure!M236","v":0},{"$f":"[1]Infrastructure!N236","v":0},{"$f":"[1]Infrastructure!O236","v":0},{"$f":"[1]Infrastructure!Q236","v":0},{"$f":"[1]Infrastructure!R236","v":0},{"$f":"[1]Infrastructure!T236","v":0},{"$f":"[1]Infrastructure!W236","v":0},{"$f":"[1]Infrastructure!W236","v":0},0,{"$f":"[1]Infrastructure!Z236","v":0},{"$f":"[1]Infrastructure!Z236","v":0},0,{"$f":"[1]Infrastructure!AB236","v":0},{"$f":"[1]Infrastructure!AB236","v":0},0,{"$f":"[1]Infrastructure!AC236","v":0},{"$f":"[1]Infrastructure!AD236","v":0},{"$f":"[1]Infrastructure!AE236","v":0},{"$f":"[1]Infrastructure!AF236","v":0},{"$f":"[1]Infrastructure!AG236","v":0},{"$f":"[1]Infrastructure!AH236","v":0},0]
[0,null,null,null,null,null,{"$f":"[1]Infrastructure!G237","v":0},{"$f":"[1]Infrastructure!H237","v":0},{"$f":"[1]Infrastructure!I237","v":0},{"$f":"[1]Infrastructure!J237","v":0},{"$f":"[1]Infrastructure!K237","v":0},{"$f":"[1]Infrastructure!L237","v":0},{"$f":"[1]Infrastructure!M237","v":0},{"$f":"[1]Infrastructure!N237","v":0},{"$f":"[1]Infrastructure!O237","v":0},{"$f":"[1]Infrastructure!Q237","v":0},{"$f":"[1]Infrastructure!R237","v":0},{"$f":"[1]Infrastructure!T237","v":0},{"$f":"[1]Infrastructure!W237","v":0},{"$f":"[1]Infrastructure!W237","v":0},0,{"$f":"[1]Infrastructure!Z237","v":0},{"$f":"[1]Infrastructure!Z237","v":0},0,{"$f":"[1]Infrastructure!AB237","v":0},{"$f":"[1]Infrastructure!AB237","v":0},0,{"$f":"[1]Infrastructure!AC237","v":0},{"$f":"[1]Infrastructure!AD237","v":0},{"$f":"[1]Infrastructure!AE237","v":0},{"$f":"[1]Infrastructure!AF237","v":0},{"$f":"[1]Infrastructure!AG237","v":0},{"$f":"[1]Infrastructure!AH237","v":0},0]
[0,null,null,null,null,null,{"$f":"[1]Infrastructure!G238","v":0},{"$f":"[1]Infrastructure!H238","v":0},{"$f":"[1]Infrastructure!I238","v":0},{"$f":"[1]Infrastructure!J238","v":0},{"$f":"[1]Infrastructure!K238","v":0},{"$f":"[1]Infrastructure!L238","v":0},{"$f":"[1]Infrastructure!M238","v":0},{"$f":"[1]Infrastructure!N238","v":0},{"$f":"[1]Infrastructure!O238","v":0},{"$f":"[1]Infrastructure!Q238","v":0},{"$f":"[1]Infrastructure!R238","v":0},{"$f":"[1]Infrastructure!T238","v":0},{"$f":"[1]Infrastructure!W238","v":0},{"$f":"[1]Infrastructure!W238","v":0},0,{"$f":"[1]Infrastructure!Z238","v":0},{"$f":"[1]Infrastructure!Z238","v":0},0,{"$f":"[1]Infrastructure!AB238","v":0},{"$f":"[1]Infrastructure!AB238","v":0},0,{"$f":"[1]Infrastructure!AC238","v":0},{"$f":"[1]Infrastructure!AD238","v":0},{"$f":"[1]Infrastructure!AE238","v":0},{"$f":"[1]Infrastructure!AF238","v":0},{"$f":"[1]Infrastructure!AG238","v":0},{"$f":"[1]Infrastructure!AH238","v":0},0]
[0,null,null,null,null,null,{"$f":"[1]Infrastructure!G239","v":0},{"$f":"[1]Infrastructure!H239","v":0},{"$f":"[1]Infrastructure!I239","v":0},{"$f":"[1]Infrastructure!J239","v":0},{"$f":"[1]Infrastructure!K239","v":0},{"$f":"[1]Infrastructure!L239","v":0},{"$f":"[1]Infrastructure!M239","v":0},{"$f":"[1]Infrastructure!N239","v":0},{"$f":"[1]Infrastructure!O239","v":0},{"$f":"[1]Infrastructure!Q239","v":0},{"$f":"[1]Infrastructure!R239","v":0},{"$f":"[1]Infrastructure!T239","v":0},{"$f":"[1]Infrastructure!W239","v":0},{"$f":"[1]Infrastructure!W239","v":0},0,{"$f":"[1]Infrastructure!Z239","v":0},{"$f":"[1]Infrastructure!Z239","v":0},0,{"$f":"[1]Infrastructure!AB239","v":0},{"$f":"[1]Infrastructure!AB239","v":0},0,{"$f":"[1]Infrastructure!AC239","v":0},{"$f":"[1]Infrastructure!AD239","v":0},{"$f":"[1]Infrastructure!AE239","v":0},{"$f":"[1]Infrastructure!AF239","v":0},{"$f":"[1]Infrastructure!AG239","v":0},{"$f":"[1]Infrastructure!AH239","v":0},0]
[0,null,null,null,null,null,{"$f":"[1]Infrastructure!G240","v":0},{"$f":"[1]Infrastructure!H240","v":0},{"$f":"[1]Infrastructure!I240","v":0},{"$f":"[1]Infrastructure!J240","v":0},{"$f":"[1]Infrastructure!K240","v":0},{"$f":"[1]Infrastructure!L240","v":0},{"$f":"[1]Infrastructure!M240","v":0},{"$f":"[1]Infrastructure!N240","v":0},{"$f":"[1]Infrastructure!O240","v":0},{"$f":"[1]Infrastructure!Q240","v":0},{"$f":"[1]Infrastructure!R240","v":0},{"$f":"[1]Infrastructure!T240","v":0},{"$f":"[1]Infrastructure!W240","v":0},{"$f":"[1]Infrastructure!W240","v":0},0,{"$f":"[1]Infrastructure!Z240","v":0},{"$f":"[1]Infrastructure!Z240","v":0},0,{"$f":"[1]Infrastructure!AB240","v":0},{"$f":"[1]Infrastructure!AB240","v":0},0,{"$f":"[1]Infrastructure!AC240","v":0},{"$f":"[1]Infrastructure!AD240","v":0},{"$f":"[1]Infrastructure!AE240","v":0},{"$f":"[1]Infrastructure!AF240","v":0},{"$f":"[1]Infrastructure!AG240","v":0},{"$f":"[1]Infrastructure!AH240","v":0},0]
[0,null,null,null,null,null,{"$f":"[1]Infrastructure!G241","v":0},{"$f":"[1]Infrastructure!H241","v":0},{"$f":"[1]Infrastructure!I241","v":0},{"$f":"[1]Infrastructure!J241","v":0},{"$f":"[1]Infrastructure!K241","v":0},{"$f":"[1]Infrastructure!L241","v":0},{"$f":"[1]Infrastructure!M241","v":0},{"$f":"[1]Infrastructure!N241","v":0},{"$f":"[1]Infrastructure!O241","v":0},{"$f":"[1]Infrastructure!Q241","v":0},{"$f":"[1]Infrastructure!R241","v":0},{"$f":"[1]Infrastructure!T241","v":0},{"$f":"[1]Infrastructure!W241","v":0},{"$f":"[1]Infrastructure!W241","v":0},0,{"$f":"[1]Infrastructure!Z241","v":0},{"$f":"[1]Infrastructure!Z241","v":0},0,{"$f":"[1]Infrastructure!AB241","v":0},{"$f":"[1]Infrastructure!AB241","v":0},0,{"$f":"[1]Infrastructure!AC241","v":0},{"$f":"[1]Infrastructure!AD241","v":0},{"$f":"[1]Infrastructure!AE241","v":0},{"$f":"[1]Infrastructure!AF241","v":0},{"$f":"[1]Infrastructure!AG241","v":0},{"$f":"[1]Infrastructure!AH241","v":0},0]
[0,null,null,null,null,null,{"$f":"[1]Infrastructure!G242","v":0},{"$f":"[1]Infrastructure!H242","v":0},{"$f":"[1]Infrastructure!I242","v":0},{"$f":"[1]Infrastructure!J242","v":0},{"$f":"[1]Infrastructure!K242","v":0},{"$f":"[1]Infrastructure!L242","v":0},{"$f":"[1]Infrastructure!M242","v":0},{"$f":"[1]Infrastructure!N242","v":0},{"$f":"[1]Infrastructure!O242","v":0},{"$f":"[1]Infrastructure!Q242","v":0},{"$f":"[1]Infrastructure!R242","v":0},{"$f":"[1]Infrastructure!T242","v":0},{"$f":"[1]Infrastructure!W242","v":0},{"$f":"[1]Infrastructure!W242","v":0},0,{"$f":"[1]Infrastructure!Z242","v":0},{"$f":"[1]Infrastructure!Z242","v":0},0,{"$f":"[1]Infrastructure!AB242","v":0},{"$f":"[1]Infrastructure!AB242","v":0},0,{"$f":"[1]Infrastructure!AC242","v":0},{"$f":"[1]Infrastructure!AD242","v":0},{"$f":"[1]Infrastructure!AE242","v":0},{"$f":"[1]Infrastructure!AF242","v":0},{"$f":"[1]Infrastructure!AG242","v":0},{"$f":"[1]Infrastructure!AH242","v":0},0]
[0,null,null,null,null,null,{"$f":"[1]Infrastructure!G243","v":0},{"$f":"[1]Infrastructure!H243","v":0},{"$f":"[1]Infrastructure!I243","v":0},{"$f":"[1]Infrastructure!J243","v":0},{"$f":"[1]Infrastructure!K243","v":0},{"$f":"[1]Infrastructure!L243","v":0},{"$f":"[1]Infrastructure!M243","v":0},{"$f":"[1]Infrastructure!N243","v":0},{"$f":"[1]Infrastructure!O243","v":0},{"$f":"[1]Infrastructure!Q243","v":0},{"$f":"[1]Infrastructure!R243","v":0},{"$f":"[1]Infrastructure!T243","v":0},{"$f":"[1]Infrastructure!W243","v":0},{"$f":"[1]Infrastructure!W243","v":0},0,{"$f":"[1]Infrastructure!Z243","v":0},{"$f":"[1]Infrastructure!Z243","v":0},0,{"$f":"[1]Infrastructure!AB243","v":0},{"$f":"[1]Infrastructure!AB243","v":0},0,{"$f":"[1]Infrastructure!AC243","v":0},{"$f":"[1]Infrastructure!AD243","v":0},{"$f":"[1]Infrastructure!AE243","v":0},{"$f":"[1]Infrastructure!AF243","v":0},{"$f":"[1]Infrastructure!AG243","v":0},{"$f":"[1]Infrastructure!AH243","v":0},0]
[0,null,null,null,null,null,{"$f":"[1]Infrastructure!G244","v":0},{"$f":"[1]Infrastructure!H244","v":0},{"$f":"[1]Infrastructure!I244","v":0},{"$f":"[1]Infrastructure!J244","v":0},{"$f":"[1]Infrastructure!K244","v":0},{"$f":"[1]Infrastructure!L244","v":0},{"$f":"[1]Infrastructure!M244","v":0},{"$f":"[1]Infrastructure!N244","v":0},{"$f":"[1]Infrastructure!O244","v":0},{"$f":"[1]Infrastructure!Q244","v":0},{"$f":"[1]Infrastructure!R244","v":0},{"$f":"[1]Infrastructure!T244","v":0},{"$f":"[1]Infrastructure!W244","v":0},{"$f":"[1]Infrastructure!W244","v":0},0,{"$f":"[1]Infrastructure!Z244","v":0},{"$f":"[1]Infrastructure!Z244","v":0},0,{"$f":"[1]Infrastructure!AB244","v":0},{"$f":"[1]Infrastructure!AB244","v":0},0,{"$f":"[1]Infrastructure!AC244","v":0},{"$f":"[1]Infrastructure!AD244","v":0},{"$f":"[1]Infrastructure!AE244","v":0},{"$f":"[1]Infrastructure!AF244","v":0},{"$f":"[1]Infrastructure!AG244","v":0},{"$f":"[1]Infrastructure!AH244","v":0},0]
[0,null,null,null,null,null,{"$f":"[1]Infrastructure!G245","v":0},{"$f":"[1]Infrastructure!H245","v":0},{"$f":"[1]Infrastructure!I245","v":0},{"$f":"[1]Infrastructure!J245","v":0},{"$f":"[1]Infrastructure!K245","v":0},{"$f":"[1]Infrastructure!L245","v":0},{"$f":"[1]Infrastructure!M245","v":0},{"$f":"[1]Infrastructure!N245","v":0},{"$f":"[1]Infrastructure!O245","v":0},{"$f":"[1]Infrastructure!Q245","v":0},{"$f":"[1]Infrastructure!R245","v":0},{"$f":"[1]Infrastructure!T245","v":0},{"$f":"[1]Infrastructure!W245","v":0},{"$f":"[1]Infrastructure!W245","v":0},0,{"$f":"[1]Infrastructure!Z245","v":0},{"$f":"[1]Infrastructure!Z245","v":0},0,{"$f":"[1]Infrastructure!AB245","v":0},{"$f":"[1]Infrastructure!AB245","v":0},0,{"$f":"[1]Infrastructure!AC245","v":0},{"$f":"[1]Infrastructure!AD245","v":0},{"$f":"[1]Infrastructure!AE245","v":0},{"$f":"[1]Infrastructure!AF245","v":0},{"$f":"[1]Infrastructure!AG245","v":0},{"$f":"[1]Infrastructure!AH245","v":0},0]
[0,null,null,null,null,null,{"$f":"[1]Infrastructure!G246","v":0},{"$f":"[1]Infrastructure!H246","v":0},{"$f":"[1]Infrastructure!I246","v":0},{"$f":"[1]Infrastructure!J246","v":0},{"$f":"[1]Infrastructure!K246","v":0},{"$f":"[1]Infrastructure!L246","v":0},{"$f":"[1]Infrastructure!M246","v":0},{"$f":"[1]Infrastructure!N246","v":0},{"$f":"[1]Infrastructure!O246","v":0},{"$f":"[1]Infrastructure!Q246","v":0},{"$f":"[1]Infrastructure!R246","v":0},{"$f":"[1]Infrastructure!T246","v":0},{"$f":"[1]Infrastructure!W246","v":0},{"$f":"[1]Infrastructure!W246","v":0},0,{"$f":"[1]Infrastructure!Z246","v":0},{"$f":"[1]Infrastructure!Z246","v":0},0,{"$f":"[1]Infrastructure!AB246","v":0},{"$f":"[1]Infrastructure!AB246","v":0},0,{"$f":"[1]Infrastructure!AC246","v":0},{"$f":"[1]Infrastructure!AD246","v":0},{"$f":"[1]Infrastructure!AE246","v":0},{"$f":"[1]Infrastructure!AF246","v":0},{"$f":"[1]Infrastructure!AG246","v":0},{"$f":"[1]Infrastructure!AH246","v":0},0]
[0,null,null,null,null,null,{"$f":"[1]Infrastructure!G247","v":0},{"$f":"[1]Infrastructure!H247","v":0},{"$f":"[1]Infrastructure!I247","v":0},{"$f":"[1]Infrastructure!J247","v":0},{"$f":"[1]Infrastructure!K247","v":0},{"$f":"[1]Infrastructure!L247","v":0},{"$f":"[1]Infrastructure!M247","v":0},{"$f":"[1]Infrastructure!N247","v":0},{"$f":"[1]Infrastructure!O247","v":0},{"$f":"[1]Infrastructure!Q247","v":0},{"$f":"[1]Infrastructure!R247","v":0},{"$f":"[1]Infrastructure!T247","v":0},{"$f":"[1]Infrastructure!W247","v":0},{"$f":"[1]Infrastructure!W247","v":0},0,{"$f":"[1]Infrastructure!Z247","v":0},{"$f":"[1]Infrastructure!Z247","v":0},0,{"$f":"[1]Infrastructure!AB247","v":0},{"$f":"[1]Infrastructure!AB247","v":0},0,{"$f":"[1]Infrastructure!AC247","v":0},{"$f":"[1]Infrastructure!AD247","v":0},{"$f":"[1]Infrastructure!AE247","v":0},{"$f":"[1]Infrastructure!AF247","v":0},{"$f":"[1]Infrastructure!AG247","v":0},{"$f":"[1]Infrastructure!AH247","v":0},0]
[0,null,null,null,null,null,{"$f":"[1]Infrastructure!G248","v":0},{"$f":"[1]Infrastructure!H248","v":0},{"$f":"[1]Infrastructure!I248","v":0},{"$f":"[1]Infrastructure!J248","v":0},{"$f":"[1]Infrastructure!K248","v":0},{"$f":"[1]Infrastructure!L248","v":0},{"$f":"[1]Infrastructure!M248","v":0},{"$f":"[1]Infrastructure!N248","v":0},{"$f":"[1]Infrastructure!O248","v":0},{"$f":"[1]Infrastructure!Q248","v":0},{"$f":"[1]Infrastructure!R248","v":0},{"$f":"[1]Infrastructure!T248","v":0},{"$f":"[1]Infrastructure!W248","v":0},{"$f":"[1]Infrastructure!W248","v":0},0,{"$f":"[1]Infrastructure!Z248","v":0},{"$f":"[1]Infrastructure!Z248","v":0},0,{"$f":"[1]Infrastructure!AB248","v":0},{"$f":"[1]Infrastructure!AB248","v":0},0,{"$f":"[1]Infrastructure!AC248","v":0},{"$f":"[1]Infrastructure!AD248","v":0},{"$f":"[1]Infrastructure!AE248","v":0},{"$f":"[1]Infrastructure!AF248","v":0},{"$f":"[1]Infrastructure!AG248","v":0},{"$f":"[1]Infrastructure!AH248","v":0},0]
[0,null,null,null,null,null,{"$f":"[1]Infrastructure!G249","v":0},{"$f":"[1]Infrastructure!H249","v":0},{"$f":"[1]Infrastructure!I249","v":0},{"$f":"[1]Infrastructure!J249","v":0},{"$f":"[1]Infrastructure!K249","v":0},{"$f":"[1]Infrastructure!L249","v":0},{"$f":"[1]Infrastructure!M249","v":0},{"$f":"[1]Infrastructure!N249","v":0},{"$f":"[1]Infrastructure!O249","v":0},{"$f":"[1]Infrastructure!Q249","v":0},{"$f":"[1]Infrastructure!R249","v":0},{"$f":"[1]Infrastructure!T249","v":0},{"$f":"[1]Infrastructure!W249","v":0},{"$f":"[1]Infrastructure!W249","v":0},0,{"$f":"[1]Infrastructure!Z249","v":0},{"$f":"[1]Infrastructure!Z249","v":0},0,{"$f":"[1]Infrastructure!AB249","v":0},{"$f":"[1]Infrastructure!AB249","v":0},0,{"$f":"[1]Infrastructure!AC249","v":0},{"$f":"[1]Infrastructure!AD249","v":0},{"$f":"[1]Infrastructure!AE249","v":0},{"$f":"[1]Infrastructure!AF249","v":0},{"$f":"[1]Infrastructure!AG249","v":0},{"$f":"[1]Infrastructure!AH249","v":0},0]
[0,null,null,null,null,null,{"$f":"[1]Infrastructure!G250","v":0},{"$f":"[1]Infrastructure!H250","v":0},{"$f":"[1]Infrastructure!I250","v":0},{"$f":"[1]Infrastructure!J250","v":0},{"$f":"[1]Infrastructure!K250","v":0},{"$f":"[1]Infrastructure!L250","v":0},{"$f":"[1]Infrastructure!M250","v":0},{"$f":"[1]Infrastructure!N250","v":0},{"$f":"[1]Infrastructure!O250","v":0},{"$f":"[1]Infrastructure!Q250","v":0},{"$f":"[1]Infrastructure!R250","v":0},{"$f":"[1]Infrastructure!T250","v":0},{"$f":"[1]Infrastructure!W250","v":0},{"$f":"[1]Infrastructure!W250","v":0},0,{"$f":"[1]Infrastructure!Z250","v":0},{"$f":"[1]Infrastructure!Z250","v":0},0,{"$f":"[1]Infrastructure!AB250","v":0},{"$f":"[1]Infrastructure!AB250","v":0},0,{"$f":"[1]Infrastructure!AC250","v":0},{"$f":"[1]Infrastructure!AD250","v":0},{"$f":"[1]Infrastructure!AE250","v":0},{"$f":"[1]Infrastructure!AF250","v":0},{"$f":"[1]Infrastructure!AG250","v":0},{"$f":"[1]Infrastructure!AH250","v":0},0]
[0,null,null,null,null,null,{"$f":"[1]Infrastructure!G251","v":0},{"$f":"[1]Infrastructure!H251","v":0},{"$f":"[1]Infrastructure!I251","v":0},{"$f":"[1]Infrastructure!J251","v":0},{"$f":"[1]Infrastructure!K251","v":0},{"$f":"[1]Infrastructure!L251","v":0},{"$f":"[1]Infrastructure!M251","v":0},{"$f":"[1]Infrastructure!N251","v":0},{"$f":"[1]Infrastructure!O251","v":0},{"$f":"[1]Infrastructure!Q251","v":0},{"$f":"[1]Infrastructure!R251","v":0},{"$f":"[1]Infrastructure!T251","v":0},{"$f":"[1]Infrastructure!W251","v":0},{"$f":"[1]Infrastructure!W251","v":0},0,{"$f":"[1]Infrastructure!Z251","v":0},{"$f":"[1]Infrastructure!Z251","v":0},0,{"$f":"[1]Infrastructure!AB251","v":0},{"$f":"[1]Infrastructure!AB251","v":0},0,{"$f":"[1]Infrastructure!AC251","v":0},{"$f":"[1]Infrastructure!AD251","v":0},{"$f":"[1]Infrastructure!AE251","v":0},{"$f":"[1]Infrastructure!AF251","v":0},{"$f":"[1]Infrastructure!AG251","v":0},{"$f":"[1]Infrastructure!AH251","v":0},0]
[0,null,null,null,null,null,{"$f":"[1]Infrastructure!G252","v":0},{"$f":"[1]Infrastructure!H252","v":0},{"$f":"[1]Infrastructure!I252","v":0},{"$f":"[1]Infrastructure!J252","v":0},{"$f":"[1]Infrastructure!K252","v":0},{"$f":"[1]Infrastructure!L252","v":0},{"$f":"[1]Infrastructure!M252","v":0},{"$f":"[1]Infrastructure!N252","v":0},{"$f":"[1]Infrastructure!O252","v":0},{"$f":"[1]Infrastructure!Q252","v":0},{"$f":"[1]Infrastructure!R252","v":0},{"$f":"[1]Infrastructure!T252","v":0},{"$f":"[1]Infrastructure!W252","v":0},{"$f":"[1]Infrastructure!W252","v":0},0,{"$f":"[1]Infrastructure!Z252","v":0},{"$f":"[1]Infrastructure!Z252","v":0},0,{"$f":"[1]Infrastructure!AB252","v":0},{"$f":"[1]Infrastructure!AB252","v":0},0,{"$f":"[1]Infrastructure!AC252","v":0},{"$f":"[1]Infrastructure!AD252","v":0},{"$f":"[1]Infrastructure!AE252","v":0},{"$f":"[1]Infrastructure!AF252","v":0},{"$f":"[1]Infrastructure!AG252","v":0},{"$f":"[1]Infrastructure!AH252","v":0},0]
[0,null,null,null,null,null,{"$f":"[1]Infrastructure!G253","v":0},{"$f":"[1]Infrastructure!H253","v":0},{"$f":"[1]Infrastructure!I253","v":0},{"$f":"[1]Infrastructure!J253","v":0},{"$f":"[1]Infrastructure!K253","v":0},{"$f":"[1]Infrastructure!L253","v":0},{"$f":"[1]Infrastructure!M253","v":0},{"$f":"[1]Infrastructure!N253","v":0},{"$f":"[1]Infrastructure!O253","v":0},{"$f":"[1]Infrastructure!Q253","v":0},{"$f":"[1]Infrastructure!R253","v":0},{"$f":"[1]Infrastructure!T253","v":0},{"$f":"[1]Infrastructure!W253","v":0},{"$f":"[1]Infrastructure!W253","v":0},0,{"$f":"[1]Infrastructure!Z253","v":0},{"$f":"[1]Infrastructure!Z253","v":0},0,{"$f":"[1]Infrastructure!AB253","v":0},{"$f":"[1]Infrastructure!AB253","v":0},0,{"$f":"[1]Infrastructure!AC253","v":0},{"$f":"[1]Infrastructure!AD253","v":0},{"$f":"[1]Infrastructure!AE253","v":0},{"$f":"[1]Infrastructure!AF253","v":0},{"$f":"[1]Infrastructure!AG253","v":0},{"$f":"[1]Infrastructure!AH253","v":0},0]
[0,null,null,null,null,null,{"$f":"[1]Infrastructure!G254","v":0},{"$f":"[1]Infrastructure!H254","v":0},{"$f":"[1]Infrastructure!I254","v":0},{"$f":"[1]Infrastructure!J254","v":0},{"$f":"[1]Infrastructure!K254","v":0},{"$f":"[1]Infrastructure!L254","v":0},{"$f":"[1]Infrastructure!M254","v":0},{"$f":"[1]Infrastructure!N254","v":0},{"$f":"[1]Infrastructure!O254","v":0},{"$f":"[1]Infrastructure!Q254","v":0},{"$f":"[1]Infrastructure!R254","v":0},{"$f":"[1]Infrastructure!T254","v":0},{"$f":"[1]Infrastructure!W254","v":0},{"$f":"[1]Infrastructure!W254","v":0},0,{"$f":"[1]Infrastructure!Z254","v":0},{"$f":"[1]Infrastructure!Z254","v":0},0,{"$f":"[1]Infrastructure!AB254","v":0},{"$f":"[1]Infrastructure!AB254","v":0},0,{"$f":"[1]Infrastructure!AC254","v":0},{"$f":"[1]Infrastructure!AD254","v":0},{"$f":"[1]Infrastructure!AE254","v":0},{"$f":"[1]Infrastructure!AF254","v":0},{"$f":"[1]Infrastructure!AG254","v":0},{"$f":"[1]Infrastructure!AH254","v":0},0]
[0,null,null,null,null,null,{"$f":"[1]Infrastructure!G255","v":0},{"$f":"[1]Infrastructure!H255","v":0},{"$f":"[1]Infrastructure!I255","v":0},{"$f":"[1]Infrastructure!J255","v":0},{"$f":"[1]Infrastructure!K255","v":0},{"$f":"[1]Infrastructure!L255","v":0},{"$f":"[1]Infrastructure!M255","v":0},{"$f":"[1]Infrastructure!N255","v":0},{"$f":"[1]Infrastructure!O255","v":0},{"$f":"[1]Infrastructure!Q255","v":0},{"$f":"[1]Infrastructure!R255","v":0},{"$f":"[1]Infrastructure!T255","v":0},{"$f":"[1]Infrastructure!W255","v":0},{"$f":"[1]Infrastructure!W255","v":0},0,{"$f":"[1]Infrastructure!Z255","v":0},{"$f":"[1]Infrastructure!Z255","v":0},0,{"$f":"[1]Infrastructure!AB255","v":0},{"$f":"[1]Infrastructure!AB255","v":0},0,{"$f":"[1]Infrastructure!AC255","v":0},{"$f":"[1]Infrastructure!AD255","v":0},{"$f":"[1]Infrastructure!AE255","v":0},{"$f":"[1]Infrastructure!AF255","v":0},{"$f":"[1]Infrastructure!AG255","v":0},{"$f":"[1]Infrastructure!AH255","v":0},0]
[0,null,null,null,null,null,{"$f":"[1]Infrastructure!G256","v":0},{"$f":"[1]Infrastructure!H256","v":0},{"$f":"[1]Infrastructure!I256","v":0},{"$f":"[1]Infrastructure!J256","v":0},{"$f":"[1]Infrastructure!K256","v":0},{"$f":"[1]Infrastructure!L256","v":0},{"$f":"[1]Infrastructure!M256","v":0},{"$f":"[1]Infrastructure!N256","v":0},{"$f":"[1]Infrastructure!O256","v":0},{"$f":"[1]Infrastructure!Q256","v":0},{"$f":"[1]Infrastructure!R256","v":0},{"$f":"[1]Infrastructure!T256","v":0},{"$f":"[1]Infrastructure!W256","v":0},{"$f":"[1]Infrastructure!W256","v":0},0,{"$f":"[1]Infrastructure!Z256","v":0},{"$f":"[1]Infrastructure!Z256","v":0},0,{"$f":"[1]Infrastructure!AB256","v":0},{"$f":"[1]Infrastructure!AB256","v":0},0,{"$f":"[1]Infrastructure!AC256","v":0},{"$f":"[1]Infrastructure!AD256","v":0},{"$f":"[1]Infrastructure!AE256","v":0},{"$f":"[1]Infrastructure!AF256","v":0},{"$f":"[1]Infrastructure!AG256","v":0},{"$f":"[1]Infrastructure!AH256","v":0},0]
[0,null,null,null,null,null,{"$f":"[1]Infrastructure!G257","v":0},{"$f":"[1]Infrastructure!H257","v":0},{"$f":"[1]Infrastructure!I257","v":0},{"$f":"[1]Infrastructure!J257","v":0},{"$f":"[1]Infrastructure!K257","v":0},{"$f":"[1]Infrastructure!L257","v":0},{"$f":"[1]Infrastructure!M257","v":0},{"$f":"[1]Infrastructure!N257","v":0},{"$f":"[1]Infrastructure!O257","v":0},{"$f":"[1]Infrastructure!Q257","v":0},{"$f":"[1]Infrastructure!R257","v":0},{"$f":"[1]Infrastructure!T257","v":0},{"$f":"[1]Infrastructure!W257","v":0},{"$f":"[1]Infrastructure!W257","v":0},0,{"$f":"[1]Infrastructure!Z257","v":0},{"$f":"[1]Infrastructure!Z257","v":0},0,{"$f":"[1]Infrastructure!AB257","v":0},{"$f":"[1]Infrastructure!AB257","v":0},0,{"$f":"[1]Infrastructure!AC257","v":0},{"$f":"[1]Infrastructure!AD257","v":0},{"$f":"[1]Infrastructure!AE257","v":0},{"$f":"[1]Infrastructure!AF257","v":0},{"$f":"[1]Infrastructure!AG257","v":0},{"$f":"[1]Infrastructure!AH257","v":0},0]
[0,null,null,null,null,null,{"$f":"[1]Infrastructure!G258","v":0},{"$f":"[1]Infrastructure!H258","v":0},{"$f":"[1]Infrastructure!I258","v":0},{"$f":"[1]Infrastructure!J258","v":0},{"$f":"[1]Infrastructure!K258","v":0},{"$f":"[1]Infrastructure!L258","v":0},{"$f":"[1]Infrastructure!M258","v":0},{"$f":"[1]Infrastructure!N258","v":0},{"$f":"[1]Infrastructure!O258","v":0},{"$f":"[1]Infrastructure!Q258","v":0},{"$f":"[1]Infrastructure!R258","v":0},{"$f":"[1]Infrastructure!T258","v":0},{"$f":"[1]Infrastructure!W258","v":0},{"$f":"[1]Infrastructure!W258","v":0},0,{"$f":"[1]Infrastructure!Z258","v":0},{"$f":"[1]Infrastructure!Z258","v":0},0,{"$f":"[1]Infrastructure!AB258","v":0},{"$f":"[1]Infrastructure!AB258","v":0},0,{"$f":"[1]Infrastructure!AC258","v":0},{"$f":"[1]Infrastructure!AD258","v":0},{"$f":"[1]Infrastructure!AE258","v":0},{"$f":"[1]Infrastructure!AF258","v":0},{"$f":"[1]Infrastructure!AG258","v":0},{"$f":"[1]Infrastructure!AH258","v":0},0]
[0,null,null,null,null,null,{"$f":"[1]Infrastructure!G259","v":0},{"$f":"[1]Infrastructure!H259","v":0},{"$f":"[1]Infrastructure!I259","v":0},{"$f":"[1]Infrastructure!J259","v":0},{"$f":"[1]Infrastructure!K259","v":0},{"$f":"[1]Infrastructure!L259","v":0},{"$f":"[1]Infrastructure!M259","v":0},{"$f":"[1]Infrastructure!N259","v":0},{"$f":"[1]Infrastructure!O259","v":0},{"$f":"[1]Infrastructure!Q259","v":0},{"$f":"[1]Infrastructure!R259","v":0},{"$f":"[1]Infrastructure!T259","v":0},{"$f":"[1]Infrastructure!W259","v":0},{"$f":"[1]Infrastructure!W259","v":0},0,{"$f":"[1]Infrastructure!Z259","v":0},{"$f":"[1]Infrastructure!Z259","v":0},0,{"$f":"[1]Infrastructure!AB259","v":0},{"$f":"[1]Infrastructure!AB259","v":0},0,{"$f":"[1]Infrastructure!AC259","v":0},{"$f":"[1]Infrastructure!AD259","v":0},{"$f":"[1]Infrastructure!AE259","v":0},{"$f":"[1]Infrastructure!AF259","v":0},{"$f":"[1]Infrastructure!AG259","v":0},{"$f":"[1]Infrastructure!AH259","v":0},0]
[0,null,null,null,null,null,{"$f":"[1]Infrastructure!G260","v":0},{"$f":"[1]Infrastructure!H260","v":0},{"$f":"[1]Infrastructure!I260","v":0},{"$f":"[1]Infrastructure!J260","v":0},{"$f":"[1]Infrastructure!K260","v":0},{"$f":"[1]Infrastructure!L260","v":0},{"$f":"[1]Infrastructure!M260","v":0},{"$f":"[1]Infrastructure!N260","v":0},{"$f":"[1]Infrastructure!O260","v":0},{"$f":"[1]Infrastructure!Q260","v":0},{"$f":"[1]Infrastructure!R260","v":0},{"$f":"[1]Infrastructure!T260","v":0},{"$f":"[1]Infrastructure!W260","v":0},{"$f":"[1]Infrastructure!W260","v":0},0,{"$f":"[1]Infrastructure!Z260","v":0},{"$f":"[1]Infrastructure!Z260","v":0},0,{"$f":"[1]Infrastructure!AB260","v":0},{"$f":"[1]Infrastructure!AB260","v":0},0,{"$f":"[1]Infrastructure!AC260","v":0},{"$f":"[1]Infrastructure!AD260","v":0},{"$f":"[1]Infrastructure!AE260","v":0},{"$f":"[1]Infrastructure!AF260","v":0},{"$f":"[1]Infrastructure!AG260","v":0},{"$f":"[1]Infrastructure!AH260","v":0},0]
[0,null,null,null,null,null,{"$f":"[1]Infrastructure!G261","v":0},{"$f":"[1]Infrastructure!H261","v":0},{"$f":"[1]Infrastructure!I261","v":0},{"$f":"[1]Infrastructure!J261","v":0},{"$f":"[1]Infrastructure!K261","v":0},{"$f":"[1]Infrastructure!L261","v":0},{"$f":"[1]Infrastructure!M261","v":0},{"$f":"[1]Infrastructure!N261","v":0},{"$f":"[1]Infrastructure!O261","v":0},{"$f":"[1]Infrastructure!Q261","v":0},{"$f":"[1]Infrastructure!R261","v":0},{"$f":"[1]Infrastructure!T261","v":0},{"$f":"[1]Infrastructure!W261","v":0},{"$f":"[1]Infrastructure!W261","v":0},0,{"$f":"[1]Infrastructure!Z261","v":0},{"$f":"[1]Infrastructure!Z261","v":0},0,{"$f":"[1]Infrastructure!AB261","v":0},{"$f":"[1]Infrastructure!AB261","v":0},0,{"$f":"[1]Infrastructure!AC261","v":0},{"$f":"[1]Infrastructure!AD261","v":0},{"$f":"[1]Infrastructure!AE261","v":0},{"$f":"[1]Infrastructure!AF261","v":0},{"$f":"[1]Infrastructure!AG261","v":0},{"$f":"[1]Infrastructure!AH261","v":0},0]
[0,null,null,null,null,null,{"$f":"[1]Infrastructure!G262","v":0},{"$f":"[1]Infrastructure!H262","v":0},{"$f":"[1]Infrastructure!I262","v":0},{"$f":"[1]Infrastructure!J262","v":0},{"$f":"[1]Infrastructure!K262","v":0},{"$f":"[1]Infrastructure!L262","v":0},{"$f":"[1]Infrastructure!M262","v":0},{"$f":"[1]Infrastructure!N262","v":0},{"$f":"[1]Infrastructure!O262","v":0},{"$f":"[1]Infrastructure!Q262","v":0},{"$f":"[1]Infrastructure!R262","v":0},{"$f":"[1]Infrastructure!T262","v":0},{"$f":"[1]Infrastructure!W262","v":0},{"$f":"[1]Infrastructure!W262","v":0},0,{"$f":"[1]Infrastructure!Z262","v":0},{"$f":"[1]Infrastructure!Z262","v":0},0,{"$f":"[1]Infrastructure!AB262","v":0},{"$f":"[1]Infrastructure!AB262","v":0},0,{"$f":"[1]Infrastructure!AC262","v":0},{"$f":"[1]Infrastructure!AD262","v":0},{"$f":"[1]Infrastructure!AE262","v":0},{"$f":"[1]Infrastructure!AF262","v":0},{"$f":"[1]Infrastructure!AG262","v":0},{"$f":"[1]Infrastructure!AH262","v":0},0]
[0,null,null,null,null,null,{"$f":"[1]Infrastructure!G263","v":0},{"$f":"[1]Infrastructure!H263","v":0},{"$f":"[1]Infrastructure!I263","v":0},{"$f":"[1]Infrastructure!J263","v":0},{"$f":"[1]Infrastructure!K263","v":0},{"$f":"[1]Infrastructure!L263","v":0},{"$f":"[1]Infrastructure!M263","v":0},{"$f":"[1]Infrastructure!N263","v":0},{"$f":"[1]Infrastructure!O263","v":0},{"$f":"[1]Infrastructure!Q263","v":0},{"$f":"[1]Infrastructure!R263","v":0},{"$f":"[1]Infrastructure!T263","v":0},{"$f":"[1]Infrastructure!W263","v":0},{"$f":"[1]Infrastructure!W263","v":0},0,{"$f":"[1]Infrastructure!Z263","v":0},{"$f":"[1]Infrastructure!Z263","v":0},0,{"$f":"[1]Infrastructure!AB263","v":0},{"$f":"[1]Infrastructure!AB263","v":0},0,{"$f":"[1]Infrastructure!AC263","v":0},{"$f":"[1]Infrastructure!AD263","v":0},{"$f":"[1]Infrastructure!AE263","v":0},{"$f":"[1]Infrastructure!AF263","v":0},{"$f":"[1]Infrastructure!AG263","v":0},{"$f":"[1]Infrastructure!AH263","v":0},0]
[0,null,null,null,null,null,{"$f":"[1]Infrastructure!G264","v":0},{"$f":"[1]Infrastructure!H264","v":0},{"$f":"[1]Infrastructure!I264","v":0},{"$f":"[1]Infrastructure!J264","v":0},{"$f":"[1]Infrastructure!K264","v":0},{"$f":"[1]Infrastructure!L264","v":0},{"$f":"[1]Infrastructure!M264","v":0},{"$f":"[1]Infrastructure!N264","v":0},{"$f":"[1]Infrastructure!O264","v":0},{"$f":"[1]Infrastructure!Q264","v":0},{"$f":"[1]Infrastructure!R264","v":0},{"$f":"[1]Infrastructure!T264","v":0},{"$f":"[1]Infrastructure!W264","v":0},{"$f":"[1]Infrastructure!W264","v":0},0,{"$f":"[1]Infrastructure!Z264","v":0},{"$f":"[1]Infrastructure!Z264","v":0},0,{"$f":"[1]Infrastructure!AB264","v":0},{"$f":"[1]Infrastructure!AB264","v":0},0,{"$f":"[1]Infrastructure!AC264","v":0},{"$f":"[1]Infrastructure!AD264","v":0},{"$f":"[1]Infrastructure!AE264","v":0},{"$f":"[1]Infrastructure!AF264","v":0},{"$f":"[1]Infrastructure!AG264","v":0},{"$f":"[1]Infrastructure!AH264","v":0},0]
[0,null,null,null,null,null,{"$f":"[1]Infrastructure!G265","v":0},{"$f":"[1]Infrastructure!H265","v":0},{"$f":"[1]Infrastructure!I265","v":0},{"$f":"[1]Infrastructure!J265","v":0},{"$f":"[1]Infrastructure!K265","v":0},{"$f":"[1]Infrastructure!L265","v":0},{"$f":"[1]Infrastructure!M265","v":0},{"$f":"[1]Infrastructure!N265","v":0},{"$f":"[1]Infrastructure!O265","v":0},{"$f":"[1]Infrastructure!Q265","v":0},{"$f":"[1]Infrastructure!R265","v":0},{"$f":"[1]Infrastructure!T265","v":0},{"$f":"[1]Infrastructure!W265","v":0},{"$f":"[1]Infrastructure!W265","v":0},0,{"$f":"[1]Infrastructure!Z265","v":0},{"$f":"[1]Infrastructure!Z265","v":0},0,{"$f":"[1]Infrastructure!AB265","v":0},{"$f":"[1]Infrastructure!AB265","v":0},0,{"$f":"[1]Infrastructure!AC265","v":0},{"$f":"[1]Infrastructure!AD265","v":0},{"$f":"[1]Infrastructure!AE265","v":0},{"$f":"[1]Infrastructure!AF265","v":0},{"$f":"[1]Infrastructure!AG265","v":0},{"$f":"[1]Infrastructure!AH265","v":0},0]
[0,null,null,null,null,null,{"$f":"[1]Infrastructure!G266","v":0},{"$f":"[1]Infrastructure!H266","v":0},{"$f":"[1]Infrastructure!I266","v":0},{"$f":"[1]Infrastructure!J266","v":0},{"$f":"[1]Infrastructure!K266","v":0},{"$f":"[1]Infrastructure!L266","v":0},{"$f":"[1]Infrastructure!M266","v":0},{"$f":"[1]Infrastructure!N266","v":0},{"$f":"[1]Infrastructure!O266","v":0},{"$f":"[1]Infrastructure!Q266","v":0},{"$f":"[1]Infrastructure!R266","v":0},{"$f":"[1]Infrastructure!T266","v":0},{"$f":"[1]Infrastructure!W266","v":0},{"$f":"[1]Infrastructure!W266","v":0},0,{"$f":"[1]Infrastructure!Z266","v":0},{"$f":"[1]Infrastructure!Z266","v":0},0,{"$f":"[1]Infrastructure!AB266","v":0},{"$f":"[1]Infrastructure!AB266","v":0},0,{"$f":"[1]Infrastructure!AC266","v":0},{"$f":"[1]Infrastructure!AD266","v":0},{"$f":"[1]Infrastructure!AE266","v":0},{"$f":"[1]Infrastructure!AF266","v":0},{"$f":"[1]Infrastructure!AG266","v":0},{"$f":"[1]Infrastructure!AH266","v":0},0]
[0,null,null,null,null,null,{"$f":"[1]Infrastructure!G267","v":0},{"$f":"[1]Infrastructure!H267","v":0},{"$f":"[1]Infrastructure!I267","v":0},{"$f":"[1]Infrastructure!J267","v":0},{"$f":"[1]Infrastructure!K267","v":0},{"$f":"[1]Infrastructure!L267","v":0},{"$f":"[1]Infrastructure!M267","v":0},{"$f":"[1]Infrastructure!N267","v":0},{"$f":"[1]Infrastructure!O267","v":0},{"$f":"[1]Infrastructure!Q267","v":0},{"$f":"[1]Infrastructure!R267","v":0},{"$f":"[1]Infrastructure!T267","v":0},{"$f":"[1]Infrastructure!W267","v":0},{"$f":"[1]Infrastructure!W267","v":0},0,{"$f":"[1]Infrastructure!Z267","v":0},{"$f":"[1]Infrastructure!Z267","v":0},0,{"$f":"[1]Infrastructure!AB267","v":0},{"$f":"[1]Infrastructure!AB267","v":0},0,{"$f":"[1]Infrastructure!AC267","v":0},{"$f":"[1]Infrastructure!AD267","v":0},{"$f":"[1]Infrastructure!AE267","v":0},{"$f":"[1]Infrastructure!AF267","v":0},{"$f":"[1]Infrastructure!AG267","v":0},{"$f":"[1]Infrastructure!AH267","v":0},0]
[{"$f":"IF(SUM(O268:AH268),1,0)","v":0},null,null,null,null,null,{"$f":"[1]Infrastructure!G268","v":0},{"$f":"[1]Infrastructure!H268","v":0},{"$f":"[1]Infrastructure!I268","v":0},{"$f":"[1]Infrastructure!J268","v":0},{"$f":"[1]Infrastructure!K268","v":0},{"$f":"[1]Infrastructure!L268","v":0},{"$f":"[1]Infrastructure!M268","v":0},{"$f":"[1]Infrastructure!N268","v":0},{"$f":"[1]Infrastructure!O268","v":0},{"$f":"[1]Infrastructure!Q268","v":0},{"$f":"[1]Infrastructure!R268","v":0},{"$f":"[1]Infrastructure!T268","v":0},{"$f":"[1]Infrastructure!W268","v":0},{"$f":"[1]Infrastructure!W268","v":0},{"$f":"SUM(T268-S268)","v":0},{"$f":"[1]Infrastructure!Z268","v":0},{"$f":"[1]Infrastructure!Z268","v":0},{"$f":"SUM(W268-V268)","v":0},{"$f":"[1]Infrastructure!AB268","v":0},{"$f":"[1]Infrastructure!AB268","v":0},{"$f":"SUM(Z268-Y268)","v":0},{"$f":"[1]Infrastructure!AC268","v":0},{"$f":"[1]Infrastructure!AD268","v":0},{"$f":"[1]Infrastructure!AE268","v":0},{"$f":"[1]Infrastructure!AF268","v":0},{"$f":"[1]Infrastructure!AG268","v":0},{"$f":"[1]Infrastructure!AH268","v":0},0]
[0,null,null,null,null,null,{"$f":"[1]Infrastructure!G269","v":0},{"$f":"[1]Infrastructure!H269","v":0},{"$f":"[1]Infrastructure!I269","v":0},{"$f":"[1]Infrastructure!J269","v":0},{"$f":"[1]Infrastructure!K269","v":0},{"$f":"[1]Infrastructure!L269","v":0},{"$f":"[1]Infrastructure!M269","v":0},{"$f":"[1]Infrastructure!N269","v":0},{"$f":"[1]Infrastructure!O269","v":0},{"$f":"[1]Infrastructure!Q269","v":0},{"$f":"[1]Infrastructure!R269","v":0},{"$f":"[1]Infrastructure!T269","v":0},{"$f":"[1]Infrastructure!W269","v":0},{"$f":"[1]Infrastructure!W269","v":0},0,{"$f":"[1]Infrastructure!Z269","v":0},{"$f":"[1]Infrastructure!Z269","v":0},0,{"$f":"[1]Infrastructure!AB269","v":0},{"$f":"[1]Infrastructure!AB269","v":0},0,{"$f":"[1]Infrastructure!AC269","v":0},{"$f":"[1]Infrastructure!AD269","v":0},{"$f":"[1]Infrastructure!AE269","v":0},{"$f":"[1]Infrastructure!AF269","v":0},{"$f":"[1]Infrastructure!AG269","v":0},{"$f":"[1]Infrastructure!AH269","v":0},0]
[0,null,null,null,null,null,{"$f":"[1]Infrastructure!G270","v":0},{"$f":"[1]Infrastructure!H270","v":0},{"$f":"[1]Infrastructure!I270","v":0},{"$f":"[1]Infrastructure!J270","v":0},{"$f":"[1]Infrastructure!K270","v":0},{"$f":"[1]Infrastructure!L270","v":0},{"$f":"[1]Infrastructure!M270","v":0},{"$f":"[1]Infrastructure!N270","v":0},{"$f":"[1]Infrastructure!O270","v":0},{"$f":"[1]Infrastructure!Q270","v":0},{"$f":"[1]Infrastructure!R270","v":0},{"$f":"[1]Infrastructure!T270","v":0},{"$f":"[1]Infrastructure!W270","v":0},{"$f":"[1]Infrastructure!W270","v":0},0,{"$f":"[1]Infrastructure!Z270","v":0},{"$f":"[1]Infrastructure!Z270","v":0},0,{"$f":"[1]Infrastructure!AB270","v":0},{"$f":"[1]Infrastructure!AB270","v":0},0,{"$f":"[1]Infrastructure!AC270","v":0},{"$f":"[1]Infrastructure!AD270","v":0},{"$f":"[1]Infrastructure!AE270","v":0},{"$f":"[1]Infrastructure!AF270","v":0},{"$f":"[1]Infrastructure!AG270","v":0},{"$f":"[1]Infrastructure!AH270","v":0},0]
[0,null,null,null,null,null,{"$f":"[1]Infrastructure!G271","v":0},{"$f":"[1]Infrastructure!H271","v":0},{"$f":"[1]Infrastructure!I271","v":0},{"$f":"[1]Infrastructure!J271","v":0},{"$f":"[1]Infrastructure!K271","v":0},{"$f":"[1]Infrastructure!L271","v":0},{"$f":"[1]Infrastructure!M271","v":0},{"$f":"[1]Infrastructure!N271","v":0},{"$f":"[1]Infrastructure!O271","v":0},{"$f":"[1]Infrastructure!Q271","v":0},{"$f":"[1]Infrastructure!R271","v":0},{"$f":"[1]Infrastructure!T271","v":0},{"$f":"[1]Infrastructure!W271","v":0},{"$f":"[1]Infrastructure!W271","v":0},0,{"$f":"[1]Infrastructure!Z271","v":0},{"$f":"[1]Infrastructure!Z271","v":0},0,{"$f":"[1]Infrastructure!AB271","v":0},{"$f":"[1]Infrastructure!AB271","v":0},0,{"$f":"[1]Infrastructure!AC271","v":0},{"$f":"[1]Infrastructure!AD271","v":0},{"$f":"[1]Infrastructure!AE271","v":0},{"$f":"[1]Infrastructure!AF271","v":0},{"$f":"[1]Infrastructure!AG271","v":0},{"$f":"[1]Infrastructure!AH271","v":0},0]
[0,null,null,null,null,null,{"$f":"[1]Infrastructure!G272","v":0},{"$f":"[1]Infrastructure!H272","v":0},{"$f":"[1]Infrastructure!I272","v":0},{"$f":"[1]Infrastructure!J272","v":0},{"$f":"[1]Infrastructure!K272","v":0},{"$f":"[1]Infrastructure!L272","v":0},{"$f":"[1]Infrastructure!M272","v":0},{"$f":"[1]Infrastructure!N272","v":0},{"$f":"[1]Infrastructure!O272","v":0},{"$f":"[1]Infrastructure!Q272","v":0},{"$f":"[1]Infrastructure!R272","v":0},{"$f":"[1]Infrastructure!T272","v":0},{"$f":"[1]Infrastructure!W272","v":0},{"$f":"[1]Infrastructure!W272","v":0},0,{"$f":"[1]Infrastructure!Z272","v":0},{"$f":"[1]Infrastructure!Z272","v":0},0,{"$f":"[1]Infrastructure!AB272","v":0},{"$f":"[1]Infrastructure!AB272","v":0},0,{"$f":"[1]Infrastructure!AC272","v":0},{"$f":"[1]Infrastructure!AD272","v":0},{"$f":"[1]Infrastructure!AE272","v":0},{"$f":"[1]Infrastructure!AF272","v":0},{"$f":"[1]Infrastructure!AG272","v":0},{"$f":"[1]Infrastructure!AH272","v":0},0]
[0,null,null,null,null,null,{"$f":"[1]Infrastructure!G273","v":0},{"$f":"[1]Infrastructure!H273","v":0},{"$f":"[1]Infrastructure!I273","v":0},{"$f":"[1]Infrastructure!J273","v":0},{"$f":"[1]Infrastructure!K273","v":0},{"$f":"[1]Infrastructure!L273","v":0},{"$f":"[1]Infrastructure!M273","v":0},{"$f":"[1]Infrastructure!N273","v":0},{"$f":"[1]Infrastructure!O273","v":0},{"$f":"[1]Infrastructure!Q273","v":0},{"$f":"[1]Infrastructure!R273","v":0},{"$f":"[1]Infrastructure!T273","v":0},{"$f":"[1]Infrastructure!W273","v":0},{"$f":"[1]Infrastructure!W273","v":0},0,{"$f":"[1]Infrastructure!Z273","v":0},{"$f":"[1]Infrastructure!Z273","v":0},0,{"$f":"[1]Infrastructure!AB273","v":0},{"$f":"[1]Infrastructure!AB273","v":0},0,{"$f":"[1]Infrastructure!AC273","v":0},{"$f":"[1]Infrastructure!AD273","v":0},{"$f":"[1]Infrastructure!AE273","v":0},{"$f":"[1]Infrastructure!AF273","v":0},{"$f":"[1]Infrastructure!AG273","v":0},{"$f":"[1]Infrastructure!AH273","v":0},0]
[0,null,null,null,null,null,{"$f":"[1]Infrastructure!G274","v":0},{"$f":"[1]Infrastructure!H274","v":0},{"$f":"[1]Infrastructure!I274","v":0},{"$f":"[1]Infrastructure!J274","v":0},{"$f":"[1]Infrastructure!K274","v":0},{"$f":"[1]Infrastructure!L274","v":0},{"$f":"[1]Infrastructure!M274","v":0},{"$f":"[1]Infrastructure!N274","v":0},{"$f":"[1]Infrastructure!O274","v":0},{"$f":"[1]Infrastructure!Q274","v":0},{"$f":"[1]Infrastructure!R274","v":0},{"$f":"[1]Infrastructure!T274","v":0},{"$f":"[1]Infrastructure!W274","v":0},{"$f":"[1]Infrastructure!W274","v":0},0,{"$f":"[1]Infrastructure!Z274","v":0},{"$f":"[1]Infrastructure!Z274","v":0},0,{"$f":"[1]Infrastructure!AB274","v":0},{"$f":"[1]Infrastructure!AB274","v":0},0,{"$f":"[1]Infrastructure!AC274","v":0},{"$f":"[1]Infrastructure!AD274","v":0},{"$f":"[1]Infrastructure!AE274","v":0},{"$f":"[1]Infrastructure!AF274","v":0},{"$f":"[1]Infrastructure!AG274","v":0},{"$f":"[1]Infrastructure!AH274","v":0},0]
[0,null,null,null,null,null,{"$f":"[1]Infrastructure!G275","v":0},{"$f":"[1]Infrastructure!H275","v":0},{"$f":"[1]Infrastructure!I275","v":0},{"$f":"[1]Infrastructure!J275","v":0},{"$f":"[1]Infrastructure!K275","v":0},{"$f":"[1]Infrastructure!L275","v":0},{"$f":"[1]Infrastructure!M275","v":0},{"$f":"[1]Infrastructure!N275","v":0},{"$f":"[1]Infrastructure!O275","v":0},{"$f":"[1]Infrastructure!Q275","v":0},{"$f":"[1]Infrastructure!R275","v":0},{"$f":"[1]Infrastructure!T275","v":0},{"$f":"[1]Infrastructure!W275","v":0},{"$f":"[1]Infrastructure!W275","v":0},0,{"$f":"[1]Infrastructure!Z275","v":0},{"$f":"[1]Infrastructure!Z275","v":0},0,{"$f":"[1]Infrastructure!AB275","v":0},{"$f":"[1]Infrastructure!AB275","v":0},0,{"$f":"[1]Infrastructure!AC275","v":0},{"$f":"[1]Infrastructure!AD275","v":0},{"$f":"[1]Infrastructure!AE275","v":0},{"$f":"[1]Infrastructure!AF275","v":0},{"$f":"[1]Infrastructure!AG275","v":0},{"$f":"[1]Infrastructure!AH275","v":0},0]
[0,null,null,null,null,null,{"$f":"[1]Infrastructure!G276","v":0},{"$f":"[1]Infrastructure!H276","v":0},{"$f":"[1]Infrastructure!I276","v":0},{"$f":"[1]Infrastructure!J276","v":0},{"$f":"[1]Infrastructure!K276","v":0},{"$f":"[1]Infrastructure!L276","v":0},{"$f":"[1]Infrastructure!M276","v":0},{"$f":"[1]Infrastructure!N276","v":0},{"$f":"[1]Infrastructure!O276","v":0},{"$f":"[1]Infrastructure!Q276","v":0},{"$f":"[1]Infrastructure!R276","v":0},{"$f":"[1]Infrastructure!T276","v":0},{"$f":"[1]Infrastructure!W276","v":0},{"$f":"[1]Infrastructure!W276","v":0},0,{"$f":"[1]Infrastructure!Z276","v":0},{"$f":"[1]Infrastructure!Z276","v":0},0,{"$f":"[1]Infrastructure!AB276","v":0},{"$f":"[1]Infrastructure!AB276","v":0},0,{"$f":"[1]Infrastructure!AC276","v":0},{"$f":"[1]Infrastructure!AD276","v":0},{"$f":"[1]Infrastructure!AE276","v":0},{"$f":"[1]Infrastructure!AF276","v":0},{"$f":"[1]Infrastructure!AG276","v":0},{"$f":"[1]Infrastructure!AH276","v":0},0]
[0,null,null,null,null,null,{"$f":"[1]Infrastructure!G277","v":0},{"$f":"[1]Infrastructure!H277","v":0},{"$f":"[1]Infrastructure!I277","v":0},{"$f":"[1]Infrastructure!J277","v":0},{"$f":"[1]Infrastructure!K277","v":0},{"$f":"[1]Infrastructure!L277","v":0},{"$f":"[1]Infrastructure!M277","v":0},{"$f":"[1]Infrastructure!N277","v":0},{"$f":"[1]Infrastructure!O277","v":0},{"$f":"[1]Infrastructure!Q277","v":0},{"$f":"[1]Infrastructure!R277","v":0},{"$f":"[1]Infrastructure!T277","v":0},{"$f":"[1]Infrastructure!W277","v":0},{"$f":"[1]Infrastructure!W277","v":0},0,{"$f":"[1]Infrastructure!Z277","v":0},{"$f":"[1]Infrastructure!Z277","v":0},0,{"$f":"[1]Infrastructure!AB277","v":0},{"$f":"[1]Infrastructure!AB277","v":0},0,{"$f":"[1]Infrastructure!AC277","v":0},{"$f":"[1]Infrastructure!AD277","v":0},{"$f":"[1]Infrastructure!AE277","v":0},{"$f":"[1]Infrastructure!AF277","v":0},{"$f":"[1]Infrastructure!AG277","v":0},{"$f":"[1]Infrastructure!AH277","v":0},0]
[0,null,null,null,null,null,{"$f":"[1]Infrastructure!G278","v":0},{"$f":"[1]Infrastructure!H278","v":0},{"$f":"[1]Infrastructure!I278","v":0},{"$f":"[1]Infrastructure!J278","v":0},{"$f":"[1]Infrastructure!K278","v":0},{"$f":"[1]Infrastructure!L278","v":0},{"$f":"[1]Infrastructure!M278","v":0},{"$f":"[1]Infrastructure!N278","v":0},{"$f":"[1]Infrastructure!O278","v":0},{"$f":"[1]Infrastructure!Q278","v":0},{"$f":"[1]Infrastructure!R278","v":0},{"$f":"[1]Infrastructure!T278","v":0},{"$f":"[1]Infrastructure!W278","v":0},{"$f":"[1]Infrastructure!W278","v":0},0,{"$f":"[1]Infrastructure!Z278","v":0},{"$f":"[1]Infrastructure!Z278","v":0},0,{"$f":"[1]Infrastructure!AB278","v":0},{"$f":"[1]Infrastructure!AB278","v":0},0,{"$f":"[1]Infrastructure!AC278","v":0},{"$f":"[1]Infrastructure!AD278","v":0},{"$f":"[1]Infrastructure!AE278","v":0},{"$f":"[1]Infrastructure!AF278","v":0},{"$f":"[1]Infrastructure!AG278","v":0},{"$f":"[1]Infrastructure!AH278","v":0},0]
[0,null,null,null,null,null,{"$f":"[1]Infrastructure!G279","v":0},{"$f":"[1]Infrastructure!H279","v":0},{"$f":"[1]Infrastructure!I279","v":0},{"$f":"[1]Infrastructure!J279","v":0},{"$f":"[1]Infrastructure!K279","v":0},{"$f":"[1]Infrastructure!L279","v":0},{"$f":"[1]Infrastructure!M279","v":0},{"$f":"[1]Infrastructure!N279","v":0},{"$f":"[1]Infrastructure!O279","v":0},{"$f":"[1]Infrastructure!Q279","v":0},{"$f":"[1]Infrastructure!R279","v":0},{"$f":"[1]Infrastructure!T279","v":0},{"$f":"[1]Infrastructure!W279","v":0},{"$f":"[1]Infrastructure!W279","v":0},0,{"$f":"[1]Infrastructure!Z279","v":0},{"$f":"[1]Infrastructure!Z279","v":0},0,{"$f":"[1]Infrastructure!AB279","v":0},{"$f":"[1]Infrastructure!AB279","v":0},0,{"$f":"[1]Infrastructure!AC279","v":0},{"$f":"[1]Infrastructure!AD279","v":0},{"$f":"[1]Infrastructure!AE279","v":0},{"$f":"[1]Infrastructure!AF279","v":0},{"$f":"[1]Infrastructure!AG279","v":0},{"$f":"[1]Infrastructure!AH279","v":0},0]
[0,null,null,null,null,null,{"$f":"[1]Infrastructure!G280","v":0},{"$f":"[1]Infrastructure!H280","v":0},{"$f":"[1]Infrastructure!I280","v":0},{"$f":"[1]Infrastructure!J280","v":0},{"$f":"[1]Infrastructure!K280","v":0},{"$f":"[1]Infrastructure!L280","v":0},{"$f":"[1]Infrastructure!M280","v":0},{"$f":"[1]Infrastructure!N280","v":0},{"$f":"[1]Infrastructure!O280","v":0},{"$f":"[1]Infrastructure!Q280","v":0},{"$f":"[1]Infrastructure!R280","v":0},{"$f":"[1]Infrastructure!T280","v":0},{"$f":"[1]Infrastructure!W280","v":0},{"$f":"[1]Infrastructure!W280","v":0},0,{"$f":"[1]Infrastructure!Z280","v":0},{"$f":"[1]Infrastructure!Z280","v":0},0,{"$f":"[1]Infrastructure!AB280","v":0},{"$f":"[1]Infrastructure!AB280","v":0},0,{"$f":"[1]Infrastructure!AC280","v":0},{"$f":"[1]Infrastructure!AD280","v":0},{"$f":"[1]Infrastructure!AE280","v":0},{"$f":"[1]Infrastructure!AF280","v":0},{"$f":"[1]Infrastructure!AG280","v":0},{"$f":"[1]Infrastructure!AH280","v":0},0]
[0,null,null,null,null,null,{"$f":"[1]Infrastructure!G281","v":0},{"$f":"[1]Infrastructure!H281","v":0},{"$f":"[1]Infrastructure!I281","v":0},{"$f":"[1]Infrastructure!J281","v":0},{"$f":"[1]Infrastructure!K281","v":0},{"$f":"[1]Infrastructure!L281","v":0},{"$f":"[1]Infrastructure!M281","v":0},{"$f":"[1]Infrastructure!N281","v":0},{"$f":"[1]Infrastructure!O281","v":0},{"$f":"[1]Infrastructure!Q281","v":0},{"$f":"[1]Infrastructure!R281","v":0},{"$f":"[1]Infrastructure!T281","v":0},{"$f":"[1]Infrastructure!W281","v":0},{"$f":"[1]Infrastructure!W281","v":0},0,{"$f":"[1]Infrastructure!Z281","v":0},{"$f":"[1]Infrastructure!Z281","v":0},0,{"$f":"[1]Infrastructure!AB281","v":0},{"$f":"[1]Infrastructure!AB281","v":0},0,{"$f":"[1]Infrastructure!AC281","v":0},{"$f":"[1]Infrastructure!AD281","v":0},{"$f":"[1]Infrastructure!AE281","v":0},{"$f":"[1]Infrastructure!AF281","v":0},{"$f":"[1]Infrastructure!AG281","v":0},{"$f":"[1]Infrastructure!AH281","v":0},0]
[0,null,null,null,null,null,{"$f":"[1]Infrastructure!G282","v":0},{"$f":"[1]Infrastructure!H282","v":0},{"$f":"[1]Infrastructure!I282","v":0},{"$f":"[1]Infrastructure!J282","v":0},{"$f":"[1]Infrastructure!K282","v":0},{"$f":"[1]Infrastructure!L282","v":0},{"$f":"[1]Infrastructure!M282","v":0},{"$f":"[1]Infrastructure!N282","v":0},{"$f":"[1]Infrastructure!O282","v":0},{"$f":"[1]Infrastructure!Q282","v":0},{"$f":"[1]Infrastructure!R282","v":0},{"$f":"[1]Infrastructure!T282","v":0},{"$f":"[1]Infrastructure!W282","v":0},{"$f":"[1]Infrastructure!W282","v":0},0,{"$f":"[1]Infrastructure!Z282","v":0},{"$f":"[1]Infrastructure!Z282","v":0},0,{"$f":"[1]Infrastructure!AB282","v":0},{"$f":"[1]Infrastructure!AB282","v":0},0,{"$f":"[1]Infrastructure!AC282","v":0},{"$f":"[1]Infrastructure!AD282","v":0},{"$f":"[1]Infrastructure!AE282","v":0},{"$f":"[1]Infrastructure!AF282","v":0},{"$f":"[1]Infrastructure!AG282","v":0},{"$f":"[1]Infrastructure!AH282","v":0},0]
[0,null,null,null,null,null,{"$f":"[1]Infrastructure!G283","v":0},{"$f":"[1]Infrastructure!H283","v":0},{"$f":"[1]Infrastructure!I283","v":0},{"$f":"[1]Infrastructure!J283","v":0},{"$f":"[1]Infrastructure!K283","v":0},{"$f":"[1]Infrastructure!L283","v":0},{"$f":"[1]Infrastructure!M283","v":0},{"$f":"[1]Infrastructure!N283","v":0},{"$f":"[1]Infrastructure!O283","v":0},{"$f":"[1]Infrastructure!Q283","v":0},{"$f":"[1]Infrastructure!R283","v":0},{"$f":"[1]Infrastructure!T283","v":0},{"$f":"[1]Infrastructure!W283","v":0},{"$f":"[1]Infrastructure!W283","v":0},0,{"$f":"[1]Infrastructure!Z283","v":0},{"$f":"[1]Infrastructure!Z283","v":0},0,{"$f":"[1]Infrastructure!AB283","v":0},{"$f":"[1]Infrastructure!AB283","v":0},0,{"$f":"[1]Infrastructure!AC283","v":0},{"$f":"[1]Infrastructure!AD283","v":0},{"$f":"[1]Infrastructure!AE283","v":0},{"$f":"[1]Infrastructure!AF283","v":0},{"$f":"[1]Infrastructure!AG283","v":0},{"$f":"[1]Infrastructure!AH283","v":0},0]
[0,null,null,null,null,null,{"$f":"[1]Infrastructure!G284","v":0},{"$f":"[1]Infrastructure!H284","v":0},{"$f":"[1]Infrastructure!I284","v":0},{"$f":"[1]Infrastructure!J284","v":0},{"$f":"[1]Infrastructure!K284","v":0},{"$f":"[1]Infrastructure!L284","v":0},{"$f":"[1]Infrastructure!M284","v":0},{"$f":"[1]Infrastructure!N284","v":0},{"$f":"[1]Infrastructure!O284","v":0},{"$f":"[1]Infrastructure!Q284","v":0},{"$f":"[1]Infrastructure!R284","v":0},{"$f":"[1]Infrastructure!T284","v":0},{"$f":"[1]Infrastructure!W284","v":0},{"$f":"[1]Infrastructure!W284","v":0},0,{"$f":"[1]Infrastructure!Z284","v":0},{"$f":"[1]Infrastructure!Z284","v":0},0,{"$f":"[1]Infrastructure!AB284","v":0},{"$f":"[1]Infrastructure!AB284","v":0},0,{"$f":"[1]Infrastructure!AC284","v":0},{"$f":"[1]Infrastructure!AD284","v":0},{"$f":"[1]Infrastructure!AE284","v":0},{"$f":"[1]Infrastructure!AF284","v":0},{"$f":"[1]Infrastructure!AG284","v":0},{"$f":"[1]Infrastructure!AH284","v":0},0]
[0,null,null,null,null,null,{"$f":"[1]Infrastructure!G285","v":0},{"$f":"[1]Infrastructure!H285","v":0},{"$f":"[1]Infrastructure!I285","v":0},{"$f":"[1]Infrastructure!J285","v":0},{"$f":"[1]Infrastructure!K285","v":0},{"$f":"[1]Infrastructure!L285","v":0},{"$f":"[1]Infrastructure!M285","v":0},{"$f":"[1]Infrastructure!N285","v":0},{"$f":"[1]Infrastructure!O285","v":0},{"$f":"[1]Infrastructure!Q285","v":0},{"$f":"[1]Infrastructure!R285","v":0},{"$f":"[1]Infrastructure!T285","v":0},{"$f":"[1]Infrastructure!W285","v":0},{"$f":"[1]Infrastructure!W285","v":0},0,{"$f":"[1]Infrastructure!Z285","v":0},{"$f":"[1]Infrastructure!Z285","v":0},0,{"$f":"[1]Infrastructure!AB285","v":0},{"$f":"[1]Infrastructure!AB285","v":0},0,{"$f":"[1]Infrastructure!AC285","v":0},{"$f":"[1]Infrastructure!AD285","v":0},{"$f":"[1]Infrastructure!AE285","v":0},{"$f":"[1]Infrastructure!AF285","v":0},{"$f":"[1]Infrastructure!AG285","v":0},{"$f":"[1]Infrastructure!AH285","v":0},0]
[0,null,null,null,null,null,{"$f":"[1]Infrastructure!G286","v":0},{"$f":"[1]Infrastructure!H286","v":0},{"$f":"[1]Infrastructure!I286","v":0},{"$f":"[1]Infrastructure!J286","v":0},{"$f":"[1]Infrastructure!K286","v":0},{"$f":"[1]Infrastructure!L286","v":0},{"$f":"[1]Infrastructure!M286","v":0},{"$f":"[1]Infrastructure!N286","v":0},{"$f":"[1]Infrastructure!O286","v":0},{"$f":"[1]Infrastructure!Q286","v":0},{"$f":"[1]Infrastructure!R286","v":0},{"$f":"[1]Infrastructure!T286","v":0},{"$f":"[1]Infrastructure!W286","v":0},{"$f":"[1]Infrastructure!W286","v":0},0,{"$f":"[1]Infrastructure!Z286","v":0},{"$f":"[1]Infrastructure!Z286","v":0},0,{"$f":"[1]Infrastructure!AB286","v":0},{"$f":"[1]Infrastructure!AB286","v":0},0,{"$f":"[1]Infrastructure!AC286","v":0},{"$f":"[1]Infrastructure!AD286","v":0},{"$f":"[1]Infrastructure!AE286","v":0},{"$f":"[1]Infrastructure!AF286","v":0},{"$f":"[1]Infrastructure!AG286","v":0},{"$f":"[1]Infrastructure!AH286","v":0},0]
[0,null,null,null,null,null,{"$f":"[1]Infrastructure!G287","v":0},{"$f":"[1]Infrastructure!H287","v":0},{"$f":"[1]Infrastructure!I287","v":0},{"$f":"[1]Infrastructure!J287","v":0},{"$f":"[1]Infrastructure!K287","v":0},{"$f":"[1]Infrastructure!L287","v":0},{"$f":"[1]Infrastructure!M287","v":0},{"$f":"[1]Infrastructure!N287","v":0},{"$f":"[1]Infrastructure!O287","v":0},{"$f":"[1]Infrastructure!Q287","v":0},{"$f":"[1]Infrastructure!R287","v":0},{"$f":"[1]Infrastructure!T287","v":0},{"$f":"[1]Infrastructure!W287","v":0},{"$f":"[1]Infrastructure!W287","v":0},0,{"$f":"[1]Infrastructure!Z287","v":0},{"$f":"[1]Infrastructure!Z287","v":0},0,{"$f":"[1]Infrastructure!AB287","v":0},{"$f":"[1]Infrastructure!AB287","v":0},0,{"$f":"[1]Infrastructure!AC287","v":0},{"$f":"[1]Infrastructure!AD287","v":0},{"$f":"[1]Infrastructure!AE287","v":0},{"$f":"[1]Infrastructure!AF287","v":0},{"$f":"[1]Infrastructure!AG287","v":0},{"$f":"[1]Infrastructure!AH287","v":0},0]
[0,null,null,null,null,null,{"$f":"[1]Infrastructure!G288","v":0},{"$f":"[1]Infrastructure!H288","v":0},{"$f":"[1]Infrastructure!I288","v":0},{"$f":"[1]Infrastructure!J288","v":0},{"$f":"[1]Infrastructure!K288","v":0},{"$f":"[1]Infrastructure!L288","v":0},{"$f":"[1]Infrastructure!M288","v":0},{"$f":"[1]Infrastructure!N288","v":0},{"$f":"[1]Infrastructure!O288","v":0},{"$f":"[1]Infrastructure!Q288","v":0},{"$f":"[1]Infrastructure!R288","v":0},{"$f":"[1]Infrastructure!T288","v":0},{"$f":"[1]Infrastructure!W288","v":0},{"$f":"[1]Infrastructure!W288","v":0},0,{"$f":"[1]Infrastructure!Z288","v":0},{"$f":"[1]Infrastructure!Z288","v":0},0,{"$f":"[1]Infrastructure!AB288","v":0},{"$f":"[1]Infrastructure!AB288","v":0},0,{"$f":"[1]Infrastructure!AC288","v":0},{"$f":"[1]Infrastructure!AD288","v":0},{"$f":"[1]Infrastructure!AE288","v":0},{"$f":"[1]Infrastructure!AF288","v":0},{"$f":"[1]Infrastructure!AG288","v":0},{"$f":"[1]Infrastructure!AH288","v":0},0]
[0,null,null,null,null,null,{"$f":"[1]Infrastructure!G289","v":0},{"$f":"[1]Infrastructure!H289","v":0},{"$f":"[1]Infrastructure!I289","v":0},{"$f":"[1]Infrastructure!J289","v":0},{"$f":"[1]Infrastructure!K289","v":0},{"$f":"[1]Infrastructure!L289","v":0},{"$f":"[1]Infrastructure!M289","v":0},{"$f":"[1]Infrastructure!N289","v":0},{"$f":"[1]Infrastructure!O289","v":0},{"$f":"[1]Infrastructure!Q289","v":0},{"$f":"[1]Infrastructure!R289","v":0},{"$f":"[1]Infrastructure!T289","v":0},{"$f":"[1]Infrastructure!W289","v":0},{"$f":"[1]Infrastructure!W289","v":0},0,{"$f":"[1]Infrastructure!Z289","v":0},{"$f":"[1]Infrastructure!Z289","v":0},0,{"$f":"[1]Infrastructure!AB289","v":0},{"$f":"[1]Infrastructure!AB289","v":0},0,{"$f":"[1]Infrastructure!AC289","v":0},{"$f":"[1]Infrastructure!AD289","v":0},{"$f":"[1]Infrastructure!AE289","v":0},{"$f":"[1]Infrastructure!AF289","v":0},{"$f":"[1]Infrastructure!AG289","v":0},{"$f":"[1]Infrastructure!AH289","v":0},0]
[0,null,null,null,null,null,{"$f":"[1]Infrastructure!G290","v":0},{"$f":"[1]Infrastructure!H290","v":0},{"$f":"[1]Infrastructure!I290","v":0},{"$f":"[1]Infrastructure!J290","v":0},{"$f":"[1]Infrastructure!K290","v":0},{"$f":"[1]Infrastructure!L290","v":0},{"$f":"[1]Infrastructure!M290","v":0},{"$f":"[1]Infrastructure!N290","v":0},{"$f":"[1]Infrastructure!O290","v":0},{"$f":"[1]Infrastructure!Q290","v":0},{"$f":"[1]Infrastructure!R290","v":0},{"$f":"[1]Infrastructure!T290","v":0},{"$f":"[1]Infrastructure!W290","v":0},{"$f":"[1]Infrastructure!W290","v":0},0,{"$f":"[1]Infrastructure!Z290","v":0},{"$f":"[1]Infrastructure!Z290","v":0},0,{"$f":"[1]Infrastructure!AB290","v":0},{"$f":"[1]Infrastructure!AB290","v":0},0,{"$f":"[1]Infrastructure!AC290","v":0},{"$f":"[1]Infrastructure!AD290","v":0},{"$f":"[1]Infrastructure!AE290","v":0},{"$f":"[1]Infrastructure!AF290","v":0},{"$f":"[1]Infrastructure!AG290","v":0},{"$f":"[1]Infrastructure!AH290","v":0},0]
[0,null,null,null,null,null,{"$f":"[1]Infrastructure!G291","v":0},{"$f":"[1]Infrastructure!H291","v":0},{"$f":"[1]Infrastructure!I291","v":0},{"$f":"[1]Infrastructure!J291","v":0},{"$f":"[1]Infrastructure!K291","v":0},{"$f":"[1]Infrastructure!L291","v":0},{"$f":"[1]Infrastructure!M291","v":0},{"$f":"[1]Infrastructure!N291","v":0},{"$f":"[1]Infrastructure!O291","v":0},{"$f":"[1]Infrastructure!Q291","v":0},{"$f":"[1]Infrastructure!R291","v":0},{"$f":"[1]Infrastructure!T291","v":0},{"$f":"[1]Infrastructure!W291","v":0},{"$f":"[1]Infrastructure!W291","v":0},0,{"$f":"[1]Infrastructure!Z291","v":0},{"$f":"[1]Infrastructure!Z291","v":0},0,{"$f":"[1]Infrastructure!AB291","v":0},{"$f":"[1]Infrastructure!AB291","v":0},0,{"$f":"[1]Infrastructure!AC291","v":0},{"$f":"[1]Infrastructure!AD291","v":0},{"$f":"[1]Infrastructure!AE291","v":0},{"$f":"[1]Infrastructure!AF291","v":0},{"$f":"[1]Infrastructure!AG291","v":0},{"$f":"[1]Infrastructure!AH291","v":0},0]
[0,null,null,null,null,null,{"$f":"[1]Infrastructure!G292","v":0},{"$f":"[1]Infrastructure!H292","v":0},{"$f":"[1]Infrastructure!I292","v":0},{"$f":"[1]Infrastructure!J292","v":0},{"$f":"[1]Infrastructure!K292","v":0},{"$f":"[1]Infrastructure!L292","v":0},{"$f":"[1]Infrastructure!M292","v":0},{"$f":"[1]Infrastructure!N292","v":0},{"$f":"[1]Infrastructure!O292","v":0},{"$f":"[1]Infrastructure!Q292","v":0},{"$f":"[1]Infrastructure!R292","v":0},{"$f":"[1]Infrastructure!T292","v":0},{"$f":"[1]Infrastructure!W292","v":0},{"$f":"[1]Infrastructure!W292","v":0},0,{"$f":"[1]Infrastructure!Z292","v":0},{"$f":"[1]Infrastructure!Z292","v":0},0,{"$f":"[1]Infrastructure!AB292","v":0},{"$f":"[1]Infrastructure!AB292","v":0},0,{"$f":"[1]Infrastructure!AC292","v":0},{"$f":"[1]Infrastructure!AD292","v":0},{"$f":"[1]Infrastructure!AE292","v":0},{"$f":"[1]Infrastructure!AF292","v":0},{"$f":"[1]Infrastructure!AG292","v":0},{"$f":"[1]Infrastructure!AH292","v":0},0]
[0,null,null,null,null,null,{"$f":"[1]Infrastructure!G293","v":0},{"$f":"[1]Infrastructure!H293","v":0},{"$f":"[1]Infrastructure!I293","v":0},{"$f":"[1]Infrastructure!J293","v":0},{"$f":"[1]Infrastructure!K293","v":0},{"$f":"[1]Infrastructure!L293","v":0},{"$f":"[1]Infrastructure!M293","v":0},{"$f":"[1]Infrastructure!N293","v":0},{"$f":"[1]Infrastructure!O293","v":0},{"$f":"[1]Infrastructure!Q293","v":0},{"$f":"[1]Infrastructure!R293","v":0},{"$f":"[1]Infrastructure!T293","v":0},{"$f":"[1]Infrastructure!W293","v":0},{"$f":"[1]Infrastructure!W293","v":0},0,{"$f":"[1]Infrastructure!Z293","v":0},{"$f":"[1]Infrastructure!Z293","v":0},0,{"$f":"[1]Infrastructure!AB293","v":0},{"$f":"[1]Infrastructure!AB293","v":0},0,{"$f":"[1]Infrastructure!AC293","v":0},{"$f":"[1]Infrastructure!AD293","v":0},{"$f":"[1]Infrastructure!AE293","v":0},{"$f":"[1]Infrastructure!AF293","v":0},{"$f":"[1]Infrastructure!AG293","v":0},{"$f":"[1]Infrastructure!AH293","v":0},0]
[0,null,null,null,null,null,{"$f":"[1]Infrastructure!G294","v":0},{"$f":"[1]Infrastructure!H294","v":0},{"$f":"[1]Infrastructure!I294","v":0},{"$f":"[1]Infrastructure!J294","v":0},{"$f":"[1]Infrastructure!K294","v":0},{"$f":"[1]Infrastructure!L294","v":0},{"$f":"[1]Infrastructure!M294","v":0},{"$f":"[1]Infrastructure!N294","v":0},{"$f":"[1]Infrastructure!O294","v":0},{"$f":"[1]Infrastructure!Q294","v":0},{"$f":"[1]Infrastructure!R294","v":0},{"$f":"[1]Infrastructure!T294","v":0},{"$f":"[1]Infrastructure!W294","v":0},{"$f":"[1]Infrastructure!W294","v":0},0,{"$f":"[1]Infrastructure!Z294","v":0},{"$f":"[1]Infrastructure!Z294","v":0},0,{"$f":"[1]Infrastructure!AB294","v":0},{"$f":"[1]Infrastructure!AB294","v":0},0,{"$f":"[1]Infrastructure!AC294","v":0},{"$f":"[1]Infrastructure!AD294","v":0},{"$f":"[1]Infrastructure!AE294","v":0},{"$f":"[1]Infrastructure!AF294","v":0},{"$f":"[1]Infrastructure!AG294","v":0},{"$f":"[1]Infrastructure!AH294","v":0},0]
[0,null,null,null,null,null,{"$f":"[1]Infrastructure!G295","v":0},{"$f":"[1]Infrastructure!H295","v":0},{"$f":"[1]Infrastructure!I295","v":0},{"$f":"[1]Infrastructure!J295","v":0},{"$f":"[1]Infrastructure!K295","v":0},{"$f":"[1]Infrastructure!L295","v":0},{"$f":"[1]Infrastructure!M295","v":0},{"$f":"[1]Infrastructure!N295","v":0},{"$f":"[1]Infrastructure!O295","v":0},{"$f":"[1]Infrastructure!Q295","v":0},{"$f":"[1]Infrastructure!R295","v":0},{"$f":"[1]Infrastructure!T295","v":0},{"$f":"[1]Infrastructure!W295","v":0},{"$f":"[1]Infrastructure!W295","v":0},0,{"$f":"[1]Infrastructure!Z295","v":0},{"$f":"[1]Infrastructure!Z295","v":0},0,{"$f":"[1]Infrastructure!AB295","v":0},{"$f":"[1]Infrastructure!AB295","v":0},0,{"$f":"[1]Infrastructure!AC295","v":0},{"$f":"[1]Infrastructure!AD295","v":0},{"$f":"[1]Infrastructure!AE295","v":0},{"$f":"[1]Infrastructure!AF295","v":0},{"$f":"[1]Infrastructure!AG295","v":0},{"$f":"[1]Infrastructure!AH295","v":0},0]
[0,null,null,null,null,null,{"$f":"[1]Infrastructure!G296","v":0},{"$f":"[1]Infrastructure!H296","v":0},{"$f":"[1]Infrastructure!I296","v":0},{"$f":"[1]Infrastructure!J296","v":0},{"$f":"[1]Infrastructure!K296","v":0},{"$f":"[1]Infrastructure!L296","v":0},{"$f":"[1]Infrastructure!M296","v":0},{"$f":"[1]Infrastructure!N296","v":0},{"$f":"[1]Infrastructure!O296","v":0},{"$f":"[1]Infrastructure!Q296","v":0},{"$f":"[1]Infrastructure!R296","v":0},{"$f":"[1]Infrastructure!T296","v":0},{"$f":"[1]Infrastructure!W296","v":0},{"$f":"[1]Infrastructure!W296","v":0},0,{"$f":"[1]Infrastructure!Z296","v":0},{"$f":"[1]Infrastructure!Z296","v":0},0,{"$f":"[1]Infrastructure!AB296","v":0},{"$f":"[1]Infrastructure!AB296","v":0},0,{"$f":"[1]Infrastructure!AC296","v":0},{"$f":"[1]Infrastructure!AD296","v":0},{"$f":"[1]Infrastructure!AE296","v":0},{"$f":"[1]Infrastructure!AF296","v":0},{"$f":"[1]Infrastructure!AG296","v":0},{"$f":"[1]Infrastructure!AH296","v":0},0]
[0,null,null,null,null,null,{"$f":"[1]Infrastructure!G297","v":0},{"$f":"[1]Infrastructure!H297","v":0},{"$f":"[1]Infrastructure!I297","v":0},{"$f":"[1]Infrastructure!J297","v":0},{"$f":"[1]Infrastructure!K297","v":0},{"$f":"[1]Infrastructure!L297","v":0},{"$f":"[1]Infrastructure!M297","v":0},{"$f":"[1]Infrastructure!N297","v":0},{"$f":"[1]Infrastructure!O297","v":0},{"$f":"[1]Infrastructure!Q297","v":0},{"$f":"[1]Infrastructure!R297","v":0},{"$f":"[1]Infrastructure!T297","v":0},{"$f":"[1]Infrastructure!W297","v":0},{"$f":"[1]Infrastructure!W297","v":0},0,{"$f":"[1]Infrastructure!Z297","v":0},{"$f":"[1]Infrastructure!Z297","v":0},0,{"$f":"[1]Infrastructure!AB297","v":0},{"$f":"[1]Infrastructure!AB297","v":0},0,{"$f":"[1]Infrastructure!AC297","v":0},{"$f":"[1]Infrastructure!AD297","v":0},{"$f":"[1]Infrastructure!AE297","v":0},{"$f":"[1]Infrastructure!AF297","v":0},{"$f":"[1]Infrastructure!AG297","v":0},{"$f":"[1]Infrastructure!AH297","v":0},0]
[0,null,null,null,null,null,{"$f":"[1]Infrastructure!G298","v":0},{"$f":"[1]Infrastructure!H298","v":0},{"$f":"[1]Infrastructure!I298","v":0},{"$f":"[1]Infrastructure!J298","v":0},{"$f":"[1]Infrastructure!K298","v":0},{"$f":"[1]Infrastructure!L298","v":0},{"$f":"[1]Infrastructure!M298","v":0},{"$f":"[1]Infrastructure!N298","v":0},{"$f":"[1]Infrastructure!O298","v":0},{"$f":"[1]Infrastructure!Q298","v":0},{"$f":"[1]Infrastructure!R298","v":0},{"$f":"[1]Infrastructure!T298","v":0},{"$f":"[1]Infrastructure!W298","v":0},{"$f":"[1]Infrastructure!W298","v":0},0,{"$f":"[1]Infrastructure!Z298","v":0},{"$f":"[1]Infrastructure!Z298","v":0},0,{"$f":"[1]Infrastructure!AB298","v":0},{"$f":"[1]Infrastructure!AB298","v":0},0,{"$f":"[1]Infrastructure!AC298","v":0},{"$f":"[1]Infrastructure!AD298","v":0},{"$f":"[1]Infrastructure!AE298","v":0},{"$f":"[1]Infrastructure!AF298","v":0},{"$f":"[1]Infrastructure!AG298","v":0},{"$f":"[1]Infrastructure!AH298","v":0},0]
[0,null,null,null,null,null,{"$f":"[1]Infrastructure!G299","v":0},{"$f":"[1]Infrastructure!H299","v":0},{"$f":"[1]Infrastructure!I299","v":0},{"$f":"[1]Infrastructure!J299","v":0},{"$f":"[1]Infrastructure!K299","v":0},{"$f":"[1]Infrastructure!L299","v":0},{"$f":"[1]Infrastructure!M299","v":0},{"$f":"[1]Infrastructure!N299","v":0},{"$f":"[1]Infrastructure!O299","v":0},{"$f":"[1]Infrastructure!Q299","v":0},{"$f":"[1]Infrastructure!R299","v":0},{"$f":"[1]Infrastructure!T299","v":0},{"$f":"[1]Infrastructure!W299","v":0},{"$f":"[1]Infrastructure!W299","v":0},0,{"$f":"[1]Infrastructure!Z299","v":0},{"$f":"[1]Infrastructure!Z299","v":0},0,{"$f":"[1]Infrastructure!AB299","v":0},{"$f":"[1]Infrastructure!AB299","v":0},0,{"$f":"[1]Infrastructure!AC299","v":0},{"$f":"[1]Infrastructure!AD299","v":0},{"$f":"[1]Infrastructure!AE299","v":0},{"$f":"[1]Infrastructure!AF299","v":0},{"$f":"[1]Infrastructure!AG299","v":0},{"$f":"[1]Infrastructure!AH299","v":0},0]
[0,null,null,null,null,null,{"$f":"[1]Infrastructure!G300","v":0},{"$f":"[1]Infrastructure!H300","v":0},{"$f":"[1]Infrastructure!I300","v":0},{"$f":"[1]Infrastructure!J300","v":0},{"$f":"[1]Infrastructure!K300","v":0},{"$f":"[1]Infrastructure!L300","v":0},{"$f":"[1]Infrastructure!M300","v":0},{"$f":"[1]Infrastructure!N300","v":0},{"$f":"[1]Infrastructure!O300","v":0},{"$f":"[1]Infrastructure!Q300","v":0},{"$f":"[1]Infrastructure!R300","v":0},{"$f":"[1]Infrastructure!T300","v":0},{"$f":"[1]Infrastructure!W300","v":0},{"$f":"[1]Infrastructure!W300","v":0},0,{"$f":"[1]Infrastructure!Z300","v":0},{"$f":"[1]Infrastructure!Z300","v":0},0,{"$f":"[1]Infrastructure!AB300","v":0},{"$f":"[1]Infrastructure!AB300","v":0},0,{"$f":"[1]Infrastructure!AC300","v":0},{"$f":"[1]Infrastructure!AD300","v":0},{"$f":"[1]Infrastructure!AE300","v":0},{"$f":"[1]Infrastructure!AF300","v":0},{"$f":"[1]Infrastructure!AG300","v":0},{"$f":"[1]Infrastructure!AH300","v":0},0]
[0,null,null,null,null,null,{"$f":"[1]Infrastructure!G301","v":0},{"$f":"[1]Infrastructure!H301","v":0},{"$f":"[1]Infrastructure!I301","v":0},{"$f":"[1]Infrastructure!J301","v":0},{"$f":"[1]Infrastructure!K301","v":0},{"$f":"[1]Infrastructure!L301","v":0},{"$f":"[1]Infrastructure!M301","v":0},{"$f":"[1]Infrastructure!N301","v":0},{"$f":"[1]Infrastructure!O301","v":0},{"$f":"[1]Infrastructure!Q301","v":0},{"$f":"[1]Infrastructure!R301","v":0},{"$f":"[1]Infrastructure!T301","v":0},{"$f":"[1]Infrastructure!W301","v":0},{"$f":"[1]Infrastructure!W301","v":0},0,{"$f":"[1]Infrastructure!Z301","v":0},{"$f":"[1]Infrastructure!Z301","v":0},0,{"$f":"[1]Infrastructure!AB301","v":0},{"$f":"[1]Infrastructure!AB301","v":0},0,{"$f":"[1]Infrastructure!AC301","v":0},{"$f":"[1]Infrastructure!AD301","v":0},{"$f":"[1]Infrastructure!AE301","v":0},{"$f":"[1]Infrastructure!AF301","v":0},{"$f":"[1]Infrastructure!AG301","v":0},{"$f":"[1]Infrastructure!AH301","v":0},0]
[0,null,null,null,null,null,{"$f":"[1]Infrastructure!G302","v":0},{"$f":"[1]Infrastructure!H302","v":0},{"$f":"[1]Infrastructure!I302","v":0},{"$f":"[1]Infrastructure!J302","v":0},{"$f":"[1]Infrastructure!K302","v":0},{"$f":"[1]Infrastructure!L302","v":0},{"$f":"[1]Infrastructure!M302","v":0},{"$f":"[1]Infrastructure!N302","v":0},{"$f":"[1]Infrastructure!O302","v":0},{"$f":"[1]Infrastructure!Q302","v":0},{"$f":"[1]Infrastructure!R302","v":0},{"$f":"[1]Infrastructure!T302","v":0},{"$f":"[1]Infrastructure!W302","v":0},{"$f":"[1]Infrastructure!W302","v":0},0,{"$f":"[1]Infrastructure!Z302","v":0},{"$f":"[1]Infrastructure!Z302","v":0},0,{"$f":"[1]Infrastructure!AB302","v":0},{"$f":"[1]Infrastructure!AB302","v":0},0,{"$f":"[1]Infrastructure!AC302","v":0},{"$f":"[1]Infrastructure!AD302","v":0},{"$f":"[1]Infrastructure!AE302","v":0},{"$f":"[1]Infrastructure!AF302","v":0},{"$f":"[1]Infrastructure!AG302","v":0},{"$f":"[1]Infrastructure!AH302","v":0},0]
[0,null,null,null,null,null,{"$f":"[1]Infrastructure!G303","v":0},{"$f":"[1]Infrastructure!H303","v":0},{"$f":"[1]Infrastructure!I303","v":0},{"$f":"[1]Infrastructure!J303","v":0},{"$f":"[1]Infrastructure!K303","v":0},{"$f":"[1]Infrastructure!L303","v":0},{"$f":"[1]Infrastructure!M303","v":0},{"$f":"[1]Infrastructure!N303","v":0},{"$f":"[1]Infrastructure!O303","v":0},{"$f":"[1]Infrastructure!Q303","v":0},{"$f":"[1]Infrastructure!R303","v":0},{"$f":"[1]Infrastructure!T303","v":0},{"$f":"[1]Infrastructure!W303","v":0},{"$f":"[1]Infrastructure!W303","v":0},0,{"$f":"[1]Infrastructure!Z303","v":0},{"$f":"[1]Infrastructure!Z303","v":0},0,{"$f":"[1]Infrastructure!AB303","v":0},{"$f":"[1]Infrastructure!AB303","v":0},0,{"$f":"[1]Infrastructure!AC303","v":0},{"$f":"[1]Infrastructure!AD303","v":0},{"$f":"[1]Infrastructure!AE303","v":0},{"$f":"[1]Infrastructure!AF303","v":0},{"$f":"[1]Infrastructure!AG303","v":0},{"$f":"[1]Infrastructure!AH303","v":0},0]
[0,null,null,null,null,null,{"$f":"[1]Infrastructure!G304","v":0},{"$f":"[1]Infrastructure!H304","v":0},{"$f":"[1]Infrastructure!I304","v":0},{"$f":"[1]Infrastructure!J304","v":0},{"$f":"[1]Infrastructure!K304","v":0},{"$f":"[1]Infrastructure!L304","v":0},{"$f":"[1]Infrastructure!M304","v":0},{"$f":"[1]Infrastructure!N304","v":0},{"$f":"[1]Infrastructure!O304","v":0},{"$f":"[1]Infrastructure!Q304","v":0},{"$f":"[1]Infrastructure!R304","v":0},{"$f":"[1]Infrastructure!T304","v":0},{"$f":"[1]Infrastructure!W304","v":0},{"$f":"[1]Infrastructure!W304","v":0},0,{"$f":"[1]Infrastructure!Z304","v":0},{"$f":"[1]Infrastructure!Z304","v":0},0,{"$f":"[1]Infrastructure!AB304","v":0},{"$f":"[1]Infrastructure!AB304","v":0},0,{"$f":"[1]Infrastructure!AC304","v":0},{"$f":"[1]Infrastructure!AD304","v":0},{"$f":"[1]Infrastructure!AE304","v":0},{"$f":"[1]Infrastructure!AF304","v":0},{"$f":"[1]Infrastructure!AG304","v":0},{"$f":"[1]Infrastructure!AH304","v":0},0]
[0,null,null,null,null,null,{"$f":"[1]Infrastructure!G305","v":0},{"$f":"[1]Infrastructure!H305","v":0},{"$f":"[1]Infrastructure!I305","v":0},{"$f":"[1]Infrastructure!J305","v":0},{"$f":"[1]Infrastructure!K305","v":0},{"$f":"[1]Infrastructure!L305","v":0},{"$f":"[1]Infrastructure!M305","v":0},{"$f":"[1]Infrastructure!N305","v":0},{"$f":"[1]Infrastructure!O305","v":0},{"$f":"[1]Infrastructure!Q305","v":0},{"$f":"[1]Infrastructure!R305","v":0},{"$f":"[1]Infrastructure!T305","v":0},{"$f":"[1]Infrastructure!W305","v":0},{"$f":"[1]Infrastructure!W305","v":0},0,{"$f":"[1]Infrastructure!Z305","v":0},{"$f":"[1]Infrastructure!Z305","v":0},0,{"$f":"[1]Infrastructure!AB305","v":0},{"$f":"[1]Infrastructure!AB305","v":0},0,{"$f":"[1]Infrastructure!AC305","v":0},{"$f":"[1]Infrastructure!AD305","v":0},{"$f":"[1]Infrastructure!AE305","v":0},{"$f":"[1]Infrastructure!AF305","v":0},{"$f":"[1]Infrastructure!AG305","v":0},{"$f":"[1]Infrastructure!AH305","v":0},0]
[0,null,null,null,null,null,{"$f":"[1]Infrastructure!G306","v":0},{"$f":"[1]Infrastructure!H306","v":0},{"$f":"[1]Infrastructure!I306","v":0},{"$f":"[1]Infrastructure!J306","v":0},{"$f":"[1]Infrastructure!K306","v":0},{"$f":"[1]Infrastructure!L306","v":0},{"$f":"[1]Infrastructure!M306","v":0},{"$f":"[1]Infrastructure!N306","v":0},{"$f":"[1]Infrastructure!O306","v":0},{"$f":"[1]Infrastructure!Q306","v":0},{"$f":"[1]Infrastructure!R306","v":0},{"$f":"[1]Infrastructure!T306","v":0},{"$f":"[1]Infrastructure!W306","v":0},{"$f":"[1]Infrastructure!W306","v":0},0,{"$f":"[1]Infrastructure!Z306","v":0},{"$f":"[1]Infrastructure!Z306","v":0},0,{"$f":"[1]Infrastructure!AB306","v":0},{"$f":"[1]Infrastructure!AB306","v":0},0,{"$f":"[1]Infrastructure!AC306","v":0},{"$f":"[1]Infrastructure!AD306","v":0},{"$f":"[1]Infrastructure!AE306","v":0},{"$f":"[1]Infrastructure!AF306","v":0},{"$f":"[1]Infrastructure!AG306","v":0},{"$f":"[1]Infrastructure!AH306","v":0},0]
[0,null,null,null,null,null,{"$f":"[1]Infrastructure!G307","v":0},{"$f":"[1]Infrastructure!H307","v":0},{"$f":"[1]Infrastructure!I307","v":0},{"$f":"[1]Infrastructure!J307","v":0},{"$f":"[1]Infrastructure!K307","v":0},{"$f":"[1]Infrastructure!L307","v":0},{"$f":"[1]Infrastructure!M307","v":0},{"$f":"[1]Infrastructure!N307","v":0},{"$f":"[1]Infrastructure!O307","v":0},{"$f":"[1]Infrastructure!Q307","v":0},{"$f":"[1]Infrastructure!R307","v":0},{"$f":"[1]Infrastructure!T307","v":0},{"$f":"[1]Infrastructure!W307","v":0},{"$f":"[1]Infrastructure!W307","v":0},0,{"$f":"[1]Infrastructure!Z307","v":0},{"$f":"[1]Infrastructure!Z307","v":0},0,{"$f":"[1]Infrastructure!AB307","v":0},{"$f":"[1]Infrastructure!AB307","v":0},0,{"$f":"[1]Infrastructure!AC307","v":0},{"$f":"[1]Infrastructure!AD307","v":0},{"$f":"[1]Infrastructure!AE307","v":0},{"$f":"[1]Infrastructure!AF307","v":0},{"$f":"[1]Infrastructure!AG307","v":0},{"$f":"[1]Infrastructure!AH307","v":0},0]
[0,null,null,null,null,null,{"$f":"[1]Infrastructure!G308","v":0},{"$f":"[1]Infrastructure!H308","v":0},{"$f":"[1]Infrastructure!I308","v":0},{"$f":"[1]Infrastructure!J308","v":0},{"$f":"[1]Infrastructure!K308","v":0},{"$f":"[1]Infrastructure!L308","v":0},{"$f":"[1]Infrastructure!M308","v":0},{"$f":"[1]Infrastructure!N308","v":0},{"$f":"[1]Infrastructure!O308","v":0},{"$f":"[1]Infrastructure!Q308","v":0},{"$f":"[1]Infrastructure!R308","v":0},{"$f":"[1]Infrastructure!T308","v":0},{"$f":"[1]Infrastructure!W308","v":0},{"$f":"[1]Infrastructure!W308","v":0},0,{"$f":"[1]Infrastructure!Z308","v":0},{"$f":"[1]Infrastructure!Z308","v":0},0,{"$f":"[1]Infrastructure!AB308","v":0},{"$f":"[1]Infrastructure!AB308","v":0},0,{"$f":"[1]Infrastructure!AC308","v":0},{"$f":"[1]Infrastructure!AD308","v":0},{"$f":"[1]Infrastructure!AE308","v":0},{"$f":"[1]Infrastructure!AF308","v":0},{"$f":"[1]Infrastructure!AG308","v":0},{"$f":"[1]Infrastructure!AH308","v":0},0]
[0,null,null,null,null,null,{"$f":"[1]Infrastructure!G309","v":0},{"$f":"[1]Infrastructure!H309","v":0},{"$f":"[1]Infrastructure!I309","v":0},{"$f":"[1]Infrastructure!J309","v":0},{"$f":"[1]Infrastructure!K309","v":0},{"$f":"[1]Infrastructure!L309","v":0},{"$f":"[1]Infrastructure!M309","v":0},{"$f":"[1]Infrastructure!N309","v":0},{"$f":"[1]Infrastructure!O309","v":0},{"$f":"[1]Infrastructure!Q309","v":0},{"$f":"[1]Infrastructure!R309","v":0},{"$f":"[1]Infrastructure!T309","v":0},{"$f":"[1]Infrastructure!W309","v":0},{"$f":"[1]Infrastructure!W309","v":0},0,{"$f":"[1]Infrastructure!Z309","v":0},{"$f":"[1]Infrastructure!Z309","v":0},0,{"$f":"[1]Infrastructure!AB309","v":0},{"$f":"[1]Infrastructure!AB309","v":0},0,{"$f":"[1]Infrastructure!AC309","v":0},{"$f":"[1]Infrastructure!AD309","v":0},{"$f":"[1]Infrastructure!AE309","v":0},{"$f":"[1]Infrastructure!AF309","v":0},{"$f":"[1]Infrastructure!AG309","v":0},{"$f":"[1]Infrastructure!AH309","v":0},0]
[0,null,null,null,null,null,{"$f":"[1]Infrastructure!G310","v":0},{"$f":"[1]Infrastructure!H310","v":0},{"$f":"[1]Infrastructure!I310","v":0},{"$f":"[1]Infrastructure!J310","v":0},{"$f":"[1]Infrastructure!K310","v":0},{"$f":"[1]Infrastructure!L310","v":0},{"$f":"[1]Infrastructure!M310","v":0},{"$f":"[1]Infrastructure!N310","v":0},{"$f":"[1]Infrastructure!O310","v":0},{"$f":"[1]Infrastructure!Q310","v":0},{"$f":"[1]Infrastructure!R310","v":0},{"$f":"[1]Infrastructure!T310","v":0},{"$f":"[1]Infrastructure!W310","v":0},{"$f":"[1]Infrastructure!W310","v":0},0,{"$f":"[1]Infrastructure!Z310","v":0},{"$f":"[1]Infrastructure!Z310","v":0},0,{"$f":"[1]Infrastructure!AB310","v":0},{"$f":"[1]Infrastructure!AB310","v":0},0,{"$f":"[1]Infrastructure!AC310","v":0},{"$f":"[1]Infrastructure!AD310","v":0},{"$f":"[1]Infrastructure!AE310","v":0},{"$f":"[1]Infrastructure!AF310","v":0},{"$f":"[1]Infrastructure!AG310","v":0},{"$f":"[1]Infrastructure!AH310","v":0},0]
[0,null,null,null,null,null,{"$f":"[1]Infrastructure!G311","v":0},{"$f":"[1]Infrastructure!H311","v":0},{"$f":"[1]Infrastructure!I311","v":0},{"$f":"[1]Infrastructure!J311","v":0},{"$f":"[1]Infrastructure!K311","v":0},{"$f":"[1]Infrastructure!L311","v":0},{"$f":"[1]Infrastructure!M311","v":0},{"$f":"[1]Infrastructure!N311","v":0},{"$f":"[1]Infrastructure!O311","v":0},{"$f":"[1]Infrastructure!Q311","v":0},{"$f":"[1]Infrastructure!R311","v":0},{"$f":"[1]Infrastructure!T311","v":0},{"$f":"[1]Infrastructure!W311","v":0},{"$f":"[1]Infrastructure!W311","v":0},0,{"$f":"[1]Infrastructure!Z311","v":0},{"$f":"[1]Infrastructure!Z311","v":0},0,{"$f":"[1]Infrastructure!AB311","v":0},{"$f":"[1]Infrastructure!AB311","v":0},0,{"$f":"[1]Infrastructure!AC311","v":0},{"$f":"[1]Infrastructure!AD311","v":0},{"$f":"[1]Infrastructure!AE311","v":0},{"$f":"[1]Infrastructure!AF311","v":0},{"$f":"[1]Infrastructure!AG311","v":0},{"$f":"[1]Infrastructure!AH311","v":0},0]
[0,null,null,null,null,null,{"$f":"[1]Infrastructure!G312","v":0},{"$f":"[1]Infrastructure!H312","v":0},{"$f":"[1]Infrastructure!I312","v":0},{"$f":"[1]Infrastructure!J312","v":0},{"$f":"[1]Infrastructure!K312","v":0},{"$f":"[1]Infrastructure!L312","v":0},{"$f":"[1]Infrastructure!M312","v":0},{"$f":"[1]Infrastructure!N312","v":0},{"$f":"[1]Infrastructure!O312","v":0},{"$f":"[1]Infrastructure!Q312","v":0},{"$f":"[1]Infrastructure!R312","v":0},{"$f":"[1]Infrastructure!T312","v":0},{"$f":"[1]Infrastructure!W312","v":0},{"$f":"[1]Infrastructure!W312","v":0},0,{"$f":"[1]Infrastructure!Z312","v":0},{"$f":"[1]Infrastructure!Z312","v":0},0,{"$f":"[1]Infrastructure!AB312","v":0},{"$f":"[1]Infrastructure!AB312","v":0},0,{"$f":"[1]Infrastructure!AC312","v":0},{"$f":"[1]Infrastructure!AD312","v":0},{"$f":"[1]Infrastructure!AE312","v":0},{"$f":"[1]Infrastructure!AF312","v":0},{"$f":"[1]Infrastructure!AG312","v":0},{"$f":"[1]Infrastructure!AH312","v":0},0]
[0,null,null,null,null,null,{"$f":"[1]Infrastructure!G313","v":0},{"$f":"[1]Infrastructure!H313","v":0},{"$f":"[1]Infrastructure!I313","v":0},{"$f":"[1]Infrastructure!J313","v":0},{"$f":"[1]Infrastructure!K313","v":0},{"$f":"[1]Infrastructure!L313","v":0},{"$f":"[1]Infrastructure!M313","v":0},{"$f":"[1]Infrastructure!N313","v":0},{"$f":"[1]Infrastructure!O313","v":0},{"$f":"[1]Infrastructure!Q313","v":0},{"$f":"[1]Infrastructure!R313","v":0},{"$f":"[1]Infrastructure!T313","v":0},{"$f":"[1]Infrastructure!W313","v":0},{"$f":"[1]Infrastructure!W313","v":0},0,{"$f":"[1]Infrastructure!Z313","v":0},{"$f":"[1]Infrastructure!Z313","v":0},0,{"$f":"[1]Infrastructure!AB313","v":0},{"$f":"[1]Infrastructure!AB313","v":0},0,{"$f":"[1]Infrastructure!AC313","v":0},{"$f":"[1]Infrastructure!AD313","v":0},{"$f":"[1]Infrastructure!AE313","v":0},{"$f":"[1]Infrastructure!AF313","v":0},{"$f":"[1]Infrastructure!AG313","v":0},{"$f":"[1]Infrastructure!AH313","v":0},0]
[0,null,null,null,null,null,{"$f":"[1]Infrastructure!G314","v":0},{"$f":"[1]Infrastructure!H314","v":0},{"$f":"[1]Infrastructure!I314","v":0},{"$f":"[1]Infrastructure!J314","v":0},{"$f":"[1]Infrastructure!K314","v":0},{"$f":"[1]Infrastructure!L314","v":0},{"$f":"[1]Infrastructure!M314","v":0},{"$f":"[1]Infrastructure!N314","v":0},{"$f":"[1]Infrastructure!O314","v":0},{"$f":"[1]Infrastructure!Q314","v":0},{"$f":"[1]Infrastructure!R314","v":0},{"$f":"[1]Infrastructure!T314","v":0},{"$f":"[1]Infrastructure!W314","v":0},{"$f":"[1]Infrastructure!W314","v":0},0,{"$f":"[1]Infrastructure!Z314","v":0},{"$f":"[1]Infrastructure!Z314","v":0},0,{"$f":"[1]Infrastructure!AB314","v":0},{"$f":"[1]Infrastructure!AB314","v":0},0,{"$f":"[1]Infrastructure!AC314","v":0},{"$f":"[1]Infrastructure!AD314","v":0},{"$f":"[1]Infrastructure!AE314","v":0},{"$f":"[1]Infrastructure!AF314","v":0},{"$f":"[1]Infrastructure!AG314","v":0},{"$f":"[1]Infrastructure!AH314","v":0},0]
[0,null,null,null,null,null,{"$f":"[1]Infrastructure!G315","v":0},{"$f":"[1]Infrastructure!H315","v":0},{"$f":"[1]Infrastructure!I315","v":0},{"$f":"[1]Infrastructure!J315","v":0},{"$f":"[1]Infrastructure!K315","v":0},{"$f":"[1]Infrastructure!L315","v":0},{"$f":"[1]Infrastructure!M315","v":0},{"$f":"[1]Infrastructure!N315","v":0},{"$f":"[1]Infrastructure!O315","v":0},{"$f":"[1]Infrastructure!Q315","v":0},{"$f":"[1]Infrastructure!R315","v":0},{"$f":"[1]Infrastructure!T315","v":0},{"$f":"[1]Infrastructure!W315","v":0},{"$f":"[1]Infrastructure!W315","v":0},0,{"$f":"[1]Infrastructure!Z315","v":0},{"$f":"[1]Infrastructure!Z315","v":0},0,{"$f":"[1]Infrastructure!AB315","v":0},{"$f":"[1]Infrastructure!AB315","v":0},0,{"$f":"[1]Infrastructure!AC315","v":0},{"$f":"[1]Infrastructure!AD315","v":0},{"$f":"[1]Infrastructure!AE315","v":0},{"$f":"[1]Infrastructure!AF315","v":0},{"$f":"[1]Infrastructure!AG315","v":0},{"$f":"[1]Infrastructure!AH315","v":0},0]
[0,null,null,null,null,null,{"$f":"[1]Infrastructure!G316","v":0},{"$f":"[1]Infrastructure!H316","v":0},{"$f":"[1]Infrastructure!I316","v":0},{"$f":"[1]Infrastructure!J316","v":0},{"$f":"[1]Infrastructure!K316","v":0},{"$f":"[1]Infrastructure!L316","v":0},{"$f":"[1]Infrastructure!M316","v":0},{"$f":"[1]Infrastructure!N316","v":0},{"$f":"[1]Infrastructure!O316","v":0},{"$f":"[1]Infrastructure!Q316","v":0},{"$f":"[1]Infrastructure!R316","v":0},{"$f":"[1]Infrastructure!T316","v":0},{"$f":"[1]Infrastructure!W316","v":0},{"$f":"[1]Infrastructure!W316","v":0},0,{"$f":"[1]Infrastructure!Z316","v":0},{"$f":"[1]Infrastructure!Z316","v":0},0,{"$f":"[1]Infrastructure!AB316","v":0},{"$f":"[1]Infrastructure!AB316","v":0},0,{"$f":"[1]Infrastructure!AC316","v":0},{"$f":"[1]Infrastructure!AD316","v":0},{"$f":"[1]Infrastructure!AE316","v":0},{"$f":"[1]Infrastructure!AF316","v":0},{"$f":"[1]Infrastructure!AG316","v":0},{"$f":"[1]Infrastructure!AH316","v":0},0]
[0,null,null,null,null,null,{"$f":"[1]Infrastructure!G317","v":0},{"$f":"[1]Infrastructure!H317","v":0},{"$f":"[1]Infrastructure!I317","v":0},{"$f":"[1]Infrastructure!J317","v":0},{"$f":"[1]Infrastructure!K317","v":0},{"$f":"[1]Infrastructure!L317","v":0},{"$f":"[1]Infrastructure!M317","v":0},{"$f":"[1]Infrastructure!N317","v":0},{"$f":"[1]Infrastructure!O317","v":0},{"$f":"[1]Infrastructure!Q317","v":0},{"$f":"[1]Infrastructure!R317","v":0},{"$f":"[1]Infrastructure!T317","v":0},{"$f":"[1]Infrastructure!W317","v":0},{"$f":"[1]Infrastructure!W317","v":0},0,{"$f":"[1]Infrastructure!Z317","v":0},{"$f":"[1]Infrastructure!Z317","v":0},0,{"$f":"[1]Infrastructure!AB317","v":0},{"$f":"[1]Infrastructure!AB317","v":0},0,{"$f":"[1]Infrastructure!AC317","v":0},{"$f":"[1]Infrastructure!AD317","v":0},{"$f":"[1]Infrastructure!AE317","v":0},{"$f":"[1]Infrastructure!AF317","v":0},{"$f":"[1]Infrastructure!AG317","v":0},{"$f":"[1]Infrastructure!AH317","v":0},0]
[0,null,null,null,null,null,{"$f":"[1]Infrastructure!G318","v":0},{"$f":"[1]Infrastructure!H318","v":0},{"$f":"[1]Infrastructure!I318","v":0},{"$f":"[1]Infrastructure!J318","v":0},{"$f":"[1]Infrastructure!K318","v":0},{"$f":"[1]Infrastructure!L318","v":0},{"$f":"[1]Infrastructure!M318","v":0},{"$f":"[1]Infrastructure!N318","v":0},{"$f":"[1]Infrastructure!O318","v":0},{"$f":"[1]Infrastructure!Q318","v":0},{"$f":"[1]Infrastructure!R318","v":0},{"$f":"[1]Infrastructure!T318","v":0},{"$f":"[1]Infrastructure!W318","v":0},{"$f":"[1]Infrastructure!W318","v":0},0,{"$f":"[1]Infrastructure!Z318","v":0},{"$f":"[1]Infrastructure!Z318","v":0},0,{"$f":"[1]Infrastructure!AB318","v":0},{"$f":"[1]Infrastructure!AB318","v":0},0,{"$f":"[1]Infrastructure!AC318","v":0},{"$f":"[1]Infrastructure!AD318","v":0},{"$f":"[1]Infrastructure!AE318","v":0},{"$f":"[1]Infrastructure!AF318","v":0},{"$f":"[1]Infrastructure!AG318","v":0},{"$f":"[1]Infrastructure!AH318","v":0},0]
[0,null,null,null,null,null,{"$f":"[1]Infrastructure!G319","v":0},{"$f":"[1]Infrastructure!H319","v":0},{"$f":"[1]Infrastructure!I319","v":0},{"$f":"[1]Infrastructure!J319","v":0},{"$f":"[1]Infrastructure!K319","v":0},{"$f":"[1]Infrastructure!L319","v":0},{"$f":"[1]Infrastructure!M319","v":0},{"$f":"[1]Infrastructure!N319","v":0},{"$f":"[1]Infrastructure!O319","v":0},{"$f":"[1]Infrastructure!Q319","v":0},{"$f":"[1]Infrastructure!R319","v":0},{"$f":"[1]Infrastructure!T319","v":0},{"$f":"[1]Infrastructure!W319","v":0},{"$f":"[1]Infrastructure!W319","v":0},0,{"$f":"[1]Infrastructure!Z319","v":0},{"$f":"[1]Infrastructure!Z319","v":0},0,{"$f":"[1]Infrastructure!AB319","v":0},{"$f":"[1]Infrastructure!AB319","v":0},0,{"$f":"[1]Infrastructure!AC319","v":0},{"$f":"[1]Infrastructure!AD319","v":0},{"$f":"[1]Infrastructure!AE319","v":0},{"$f":"[1]Infrastructure!AF319","v":0},{"$f":"[1]Infrastructure!AG319","v":0},{"$f":"[1]Infrastructure!AH319","v":0},0]
[0,null,null,null,null,null,{"$f":"[1]Infrastructure!G320","v":0},{"$f":"[1]Infrastructure!H320","v":0},{"$f":"[1]Infrastructure!I320","v":0},{"$f":"[1]Infrastructure!J320","v":0},{"$f":"[1]Infrastructure!K320","v":0},{"$f":"[1]Infrastructure!L320","v":0},{"$f":"[1]Infrastructure!M320","v":0},{"$f":"[1]Infrastructure!N320","v":0},{"$f":"[1]Infrastructure!O320","v":0},{"$f":"[1]Infrastructure!Q320","v":0},{"$f":"[1]Infrastructure!R320","v":0},{"$f":"[1]Infrastructure!T320","v":0},{"$f":"[1]Infrastructure!W320","v":0},{"$f":"[1]Infrastructure!W320","v":0},0,{"$f":"[1]Infrastructure!Z320","v":0},{"$f":"[1]Infrastructure!Z320","v":0},0,{"$f":"[1]Infrastructure!AB320","v":0},{"$f":"[1]Infrastructure!AB320","v":0},0,{"$f":"[1]Infrastructure!AC320","v":0},{"$f":"[1]Infrastructure!AD320","v":0},{"$f":"[1]Infrastructure!AE320","v":0},{"$f":"[1]Infrastructure!AF320","v":0},{"$f":"[1]Infrastructure!AG320","v":0},{"$f":"[1]Infrastructure!AH320","v":0},0]
[0,null,null,null,null,null,{"$f":"[1]Infrastructure!G321","v":0},{"$f":"[1]Infrastructure!H321","v":0},{"$f":"[1]Infrastructure!I321","v":0},{"$f":"[1]Infrastructure!J321","v":0},{"$f":"[1]Infrastructure!K321","v":0},{"$f":"[1]Infrastructure!L321","v":0},{"$f":"[1]Infrastructure!M321","v":0},{"$f":"[1]Infrastructure!N321","v":0},{"$f":"[1]Infrastructure!O321","v":0},{"$f":"[1]Infrastructure!Q321","v":0},{"$f":"[1]Infrastructure!R321","v":0},{"$f":"[1]Infrastructure!T321","v":0},{"$f":"[1]Infrastructure!W321","v":0},{"$f":"[1]Infrastructure!W321","v":0},0,{"$f":"[1]Infrastructure!Z321","v":0},{"$f":"[1]Infrastructure!Z321","v":0},0,{"$f":"[1]Infrastructure!AB321","v":0},{"$f":"[1]Infrastructure!AB321","v":0},0,{"$f":"[1]Infrastructure!AC321","v":0},{"$f":"[1]Infrastructure!AD321","v":0},{"$f":"[1]Infrastructure!AE321","v":0},{"$f":"[1]Infrastructure!AF321","v":0},{"$f":"[1]Infrastructure!AG321","v":0},{"$f":"[1]Infrastructure!AH321","v":0},0]
[0,null,null,null,null,null,{"$f":"[1]Infrastructure!G322","v":0},{"$f":"[1]Infrastructure!H322","v":0},{"$f":"[1]Infrastructure!I322","v":0},{"$f":"[1]Infrastructure!J322","v":0},{"$f":"[1]Infrastructure!K322","v":0},{"$f":"[1]Infrastructure!L322","v":0},{"$f":"[1]Infrastructure!M322","v":0},{"$f":"[1]Infrastructure!N322","v":0},{"$f":"[1]Infrastructure!O322","v":0},{"$f":"[1]Infrastructure!Q322","v":0},{"$f":"[1]Infrastructure!R322","v":0},{"$f":"[1]Infrastructure!T322","v":0},{"$f":"[1]Infrastructure!W322","v":0},{"$f":"[1]Infrastructure!W322","v":0},0,{"$f":"[1]Infrastructure!Z322","v":0},{"$f":"[1]Infrastructure!Z322","v":0},0,{"$f":"[1]Infrastructure!AB322","v":0},{"$f":"[1]Infrastructure!AB322","v":0},0,{"$f":"[1]Infrastructure!AC322","v":0},{"$f":"[1]Infrastructure!AD322","v":0},{"$f":"[1]Infrastructure!AE322","v":0},{"$f":"[1]Infrastructure!AF322","v":0},{"$f":"[1]Infrastructure!AG322","v":0},{"$f":"[1]Infrastructure!AH322","v":0},0]
[0,null,null,null,null,null,{"$f":"[1]Infrastructure!G323","v":0},{"$f":"[1]Infrastructure!H323","v":0},{"$f":"[1]Infrastructure!I323","v":0},{"$f":"[1]Infrastructure!J323","v":0},{"$f":"[1]Infrastructure!K323","v":0},{"$f":"[1]Infrastructure!L323","v":0},{"$f":"[1]Infrastructure!M323","v":0},{"$f":"[1]Infrastructure!N323","v":0},{"$f":"[1]Infrastructure!O323","v":0},{"$f":"[1]Infrastructure!Q323","v":0},{"$f":"[1]Infrastructure!R323","v":0},{"$f":"[1]Infrastructure!T323","v":0},{"$f":"[1]Infrastructure!W323","v":0},{"$f":"[1]Infrastructure!W323","v":0},0,{"$f":"[1]Infrastructure!Z323","v":0},{"$f":"[1]Infrastructure!Z323","v":0},0,{"$f":"[1]Infrastructure!AB323","v":0},{"$f":"[1]Infrastructure!AB323","v":0},0,{"$f":"[1]Infrastructure!AC323","v":0},{"$f":"[1]Infrastructure!AD323","v":0},{"$f":"[1]Infrastructure!AE323","v":0},{"$f":"[1]Infrastructure!AF323","v":0},{"$f":"[1]Infrastructure!AG323","v":0},{"$f":"[1]Infrastructure!AH323","v":0},0]
[0,null,null,null,null,null,{"$f":"[1]Infrastructure!G324","v":0},{"$f":"[1]Infrastructure!H324","v":0},{"$f":"[1]Infrastructure!I324","v":0},{"$f":"[1]Infrastructure!J324","v":0},{"$f":"[1]Infrastructure!K324","v":0},{"$f":"[1]Infrastructure!L324","v":0},{"$f":"[1]Infrastructure!M324","v":0},{"$f":"[1]Infrastructure!N324","v":0},{"$f":"[1]Infrastructure!O324","v":0},{"$f":"[1]Infrastructure!Q324","v":0},{"$f":"[1]Infrastructure!R324","v":0},{"$f":"[1]Infrastructure!T324","v":0},{"$f":"[1]Infrastructure!W324","v":0},{"$f":"[1]Infrastructure!W324","v":0},0,{"$f":"[1]Infrastructure!Z324","v":0},{"$f":"[1]Infrastructure!Z324","v":0},0,{"$f":"[1]Infrastructure!AB324","v":0},{"$f":"[1]Infrastructure!AB324","v":0},0,{"$f":"[1]Infrastructure!AC324","v":0},{"$f":"[1]Infrastructure!AD324","v":0},{"$f":"[1]Infrastructure!AE324","v":0},{"$f":"[1]Infrastructure!AF324","v":0},{"$f":"[1]Infrastructure!AG324","v":0},{"$f":"[1]Infrastructure!AH324","v":0},0]
[0,null,null,null,null,null,{"$f":"[1]Infrastructure!G325","v":0},{"$f":"[1]Infrastructure!H325","v":0},{"$f":"[1]Infrastructure!I325","v":0},{"$f":"[1]Infrastructure!J325","v":0},{"$f":"[1]Infrastructure!K325","v":0},{"$f":"[1]Infrastructure!L325","v":0},{"$f":"[1]Infrastructure!M325","v":0},{"$f":"[1]Infrastructure!N325","v":0},{"$f":"[1]Infrastructure!O325","v":0},{"$f":"[1]Infrastructure!Q325","v":0},{"$f":"[1]Infrastructure!R325","v":0},{"$f":"[1]Infrastructure!T325","v":0},{"$f":"[1]Infrastructure!W325","v":0},{"$f":"[1]Infrastructure!W325","v":0},0,{"$f":"[1]Infrastructure!Z325","v":0},{"$f":"[1]Infrastructure!Z325","v":0},0,{"$f":"[1]Infrastructure!AB325","v":0},{"$f":"[1]Infrastructure!AB325","v":0},0,{"$f":"[1]Infrastructure!AC325","v":0},{"$f":"[1]Infrastructure!AD325","v":0},{"$f":"[1]Infrastructure!AE325","v":0},{"$f":"[1]Infrastructure!AF325","v":0},{"$f":"[1]Infrastructure!AG325","v":0},{"$f":"[1]Infrastructure!AH325","v":0},0]
[0,null,null,null,null,null,{"$f":"[1]Infrastructure!G326","v":0},{"$f":"[1]Infrastructure!H326","v":0},{"$f":"[1]Infrastructure!I326","v":0},{"$f":"[1]Infrastructure!J326","v":0},{"$f":"[1]Infrastructure!K326","v":0},{"$f":"[1]Infrastructure!L326","v":0},{"$f":"[1]Infrastructure!M326","v":0},{"$f":"[1]Infrastructure!N326","v":0},{"$f":"[1]Infrastructure!O326","v":0},{"$f":"[1]Infrastructure!Q326","v":0},{"$f":"[1]Infrastructure!R326","v":0},{"$f":"[1]Infrastructure!T326","v":0},{"$f":"[1]Infrastructure!W326","v":0},{"$f":"[1]Infrastructure!W326","v":0},0,{"$f":"[1]Infrastructure!Z326","v":0},{"$f":"[1]Infrastructure!Z326","v":0},0,{"$f":"[1]Infrastructure!AB326","v":0},{"$f":"[1]Infrastructure!AB326","v":0},0,{"$f":"[1]Infrastructure!AC326","v":0},{"$f":"[1]Infrastructure!AD326","v":0},{"$f":"[1]Infrastructure!AE326","v":0},{"$f":"[1]Infrastructure!AF326","v":0},{"$f":"[1]Infrastructure!AG326","v":0},{"$f":"[1]Infrastructure!AH326","v":0},0]
[0,null,null,null,null,null,{"$f":"[1]Infrastructure!G327","v":0},{"$f":"[1]Infrastructure!H327","v":0},{"$f":"[1]Infrastructure!I327","v":0},{"$f":"[1]Infrastructure!J327","v":0},{"$f":"[1]Infrastructure!K327","v":0},{"$f":"[1]Infrastructure!L327","v":0},{"$f":"[1]Infrastructure!M327","v":0},{"$f":"[1]Infrastructure!N327","v":0},{"$f":"[1]Infrastructure!O327","v":0},{"$f":"[1]Infrastructure!Q327","v":0},{"$f":"[1]Infrastructure!R327","v":0},{"$f":"[1]Infrastructure!T327","v":0},{"$f":"[1]Infrastructure!W327","v":0},{"$f":"[1]Infrastructure!W327","v":0},0,{"$f":"[1]Infrastructure!Z327","v":0},{"$f":"[1]Infrastructure!Z327","v":0},0,{"$f":"[1]Infrastructure!AB327","v":0},{"$f":"[1]Infrastructure!AB327","v":0},0,{"$f":"[1]Infrastructure!AC327","v":0},{"$f":"[1]Infrastructure!AD327","v":0},{"$f":"[1]Infrastructure!AE327","v":0},{"$f":"[1]Infrastructure!AF327","v":0},{"$f":"[1]Infrastructure!AG327","v":0},{"$f":"[1]Infrastructure!AH327","v":0},0]
[0,null,null,null,null,null,{"$f":"[1]Infrastructure!G328","v":0},{"$f":"[1]Infrastructure!H328","v":0},{"$f":"[1]Infrastructure!I328","v":0},{"$f":"[1]Infrastructure!J328","v":0},{"$f":"[1]Infrastructure!K328","v":0},{"$f":"[1]Infrastructure!L328","v":0},{"$f":"[1]Infrastructure!M328","v":0},{"$f":"[1]Infrastructure!N328","v":0},{"$f":"[1]Infrastructure!O328","v":0},{"$f":"[1]Infrastructure!Q328","v":0},{"$f":"[1]Infrastructure!R328","v":0},{"$f":"[1]Infrastructure!T328","v":0},{"$f":"[1]Infrastructure!W328","v":0},{"$f":"[1]Infrastructure!W328","v":0},0,{"$f":"[1]Infrastructure!Z328","v":0},{"$f":"[1]Infrastructure!Z328","v":0},0,{"$f":"[1]Infrastructure!AB328","v":0},{"$f":"[1]Infrastructure!AB328","v":0},0,{"$f":"[1]Infrastructure!AC328","v":0},{"$f":"[1]Infrastructure!AD328","v":0},{"$f":"[1]Infrastructure!AE328","v":0},{"$f":"[1]Infrastructure!AF328","v":0},{"$f":"[1]Infrastructure!AG328","v":0},{"$f":"[1]Infrastructure!AH328","v":0},0]
[0,null,null,null,null,null,{"$f":"[1]Infrastructure!G329","v":0},{"$f":"[1]Infrastructure!H329","v":0},{"$f":"[1]Infrastructure!I329","v":0},{"$f":"[1]Infrastructure!J329","v":0},{"$f":"[1]Infrastructure!K329","v":0},{"$f":"[1]Infrastructure!L329","v":0},{"$f":"[1]Infrastructure!M329","v":0},{"$f":"[1]Infrastructure!N329","v":0},{"$f":"[1]Infrastructure!O329","v":0},{"$f":"[1]Infrastructure!Q329","v":0},{"$f":"[1]Infrastructure!R329","v":0},{"$f":"[1]Infrastructure!T329","v":0},{"$f":"[1]Infrastructure!W329","v":0},{"$f":"[1]Infrastructure!W329","v":0},0,{"$f":"[1]Infrastructure!Z329","v":0},{"$f":"[1]Infrastructure!Z329","v":0},0,{"$f":"[1]Infrastructure!AB329","v":0},{"$f":"[1]Infrastructure!AB329","v":0},0,{"$f":"[1]Infrastructure!AC329","v":0},{"$f":"[1]Infrastructure!AD329","v":0},{"$f":"[1]Infrastructure!AE329","v":0},{"$f":"[1]Infrastructure!AF329","v":0},{"$f":"[1]Infrastructure!AG329","v":0},{"$f":"[1]Infrastructure!AH329","v":0},0]
[0,null,null,null,null,null,{"$f":"[1]Infrastructure!G330","v":0},{"$f":"[1]Infrastructure!H330","v":0},{"$f":"[1]Infrastructure!I330","v":0},{"$f":"[1]Infrastructure!J330","v":0},{"$f":"[1]Infrastructure!K330","v":0},{"$f":"[1]Infrastructure!L330","v":0},{"$f":"[1]Infrastructure!M330","v":0},{"$f":"[1]Infrastructure!N330","v":0},{"$f":"[1]Infrastructure!O330","v":0},{"$f":"[1]Infrastructure!Q330","v":0},{"$f":"[1]Infrastructure!R330","v":0},{"$f":"[1]Infrastructure!T330","v":0},{"$f":"[1]Infrastructure!W330","v":0},{"$f":"[1]Infrastructure!W330","v":0},0,{"$f":"[1]Infrastructure!Z330","v":0},{"$f":"[1]Infrastructure!Z330","v":0},0,{"$f":"[1]Infrastructure!AB330","v":0},{"$f":"[1]Infrastructure!AB330","v":0},0,{"$f":"[1]Infrastructure!AC330","v":0},{"$f":"[1]Infrastructure!AD330","v":0},{"$f":"[1]Infrastructure!AE330","v":0},{"$f":"[1]Infrastructure!AF330","v":0},{"$f":"[1]Infrastructure!AG330","v":0},{"$f":"[1]Infrastructure!AH330","v":0},0]
[0,null,null,null,null,null,{"$f":"[1]Infrastructure!G331","v":0},{"$f":"[1]Infrastructure!H331","v":0},{"$f":"[1]Infrastructure!I331","v":0},{"$f":"[1]Infrastructure!J331","v":0},{"$f":"[1]Infrastructure!K331","v":0},{"$f":"[1]Infrastructure!L331","v":0},{"$f":"[1]Infrastructure!M331","v":0},{"$f":"[1]Infrastructure!N331","v":0},{"$f":"[1]Infrastructure!O331","v":0},{"$f":"[1]Infrastructure!Q331","v":0},{"$f":"[1]Infrastructure!R331","v":0},{"$f":"[1]Infrastructure!T331","v":0},{"$f":"[1]Infrastructure!W331","v":0},{"$f":"[1]Infrastructure!W331","v":0},0,{"$f":"[1]Infrastructure!Z331","v":0},{"$f":"[1]Infrastructure!Z331","v":0},0,{"$f":"[1]Infrastructure!AB331","v":0},{"$f":"[1]Infrastructure!AB331","v":0},0,{"$f":"[1]Infrastructure!AC331","v":0},{"$f":"[1]Infrastructure!AD331","v":0},{"$f":"[1]Infrastructure!AE331","v":0},{"$f":"[1]Infrastructure!AF331","v":0},{"$f":"[1]Infrastructure!AG331","v":0},{"$f":"[1]Infrastructure!AH331","v":0},0]
[{"$f":"IF(SUM(O332:AH332),1,0)","v":0},null,null,null,null,null,{"$f":"[1]Infrastructure!G332","v":0},{"$f":"[1]Infrastructure!H332","v":0},{"$f":"[1]Infrastructure!I332","v":0},{"$f":"[1]Infrastructure!J332","v":0},{"$f":"[1]Infrastructure!K332","v":0},{"$f":"[1]Infrastructure!L332","v":0},{"$f":"[1]Infrastructure!M332","v":0},{"$f":"[1]Infrastructure!N332","v":0},{"$f":"[1]Infrastructure!O332","v":0},{"$f":"[1]Infrastructure!Q332","v":0},{"$f":"[1]Infrastructure!R332","v":0},{"$f":"[1]Infrastructure!T332","v":0},{"$f":"[1]Infrastructure!W332","v":0},{"$f":"[1]Infrastructure!W332","v":0},{"$f":"SUM(T332-S332)","v":0},{"$f":"[1]Infrastructure!Z332","v":0},{"$f":"[1]Infrastructure!Z332","v":0},{"$f":"SUM(W332-V332)","v":0},{"$f":"[1]Infrastructure!AB332","v":0},{"$f":"[1]Infrastructure!AB332","v":0},{"$f":"SUM(Z332-Y332)","v":0},{"$f":"[1]Infrastructure!AC332","v":0},{"$f":"[1]Infrastructure!AD332","v":0},{"$f":"[1]Infrastructure!AE332","v":0},{"$f":"[1]Infrastructure!AF332","v":0},{"$f":"[1]Infrastructure!AG332","v":0},{"$f":"[1]Infrastructure!AH332","v":0},0]
[0,null,null,null,null,null,{"$f":"[1]Infrastructure!G333","v":0},{"$f":"[1]Infrastructure!H333","v":0},{"$f":"[1]Infrastructure!I333","v":0},{"$f":"[1]Infrastructure!J333","v":0},{"$f":"[1]Infrastructure!K333","v":0},{"$f":"[1]Infrastructure!L333","v":0},{"$f":"[1]Infrastructure!M333","v":0},{"$f":"[1]Infrastructure!N333","v":0},{"$f":"[1]Infrastructure!O333","v":0},{"$f":"[1]Infrastructure!Q333","v":0},{"$f":"[1]Infrastructure!R333","v":0},{"$f":"[1]Infrastructure!T333","v":0},{"$f":"[1]Infrastructure!W333","v":0},{"$f":"[1]Infrastructure!W333","v":0},0,{"$f":"[1]Infrastructure!Z333","v":0},{"$f":"[1]Infrastructure!Z333","v":0},0,{"$f":"[1]Infrastructure!AB333","v":0},{"$f":"[1]Infrastructure!AB333","v":0},0,{"$f":"[1]Infrastructure!AC333","v":0},{"$f":"[1]Infrastructure!AD333","v":0},{"$f":"[1]Infrastructure!AE333","v":0},{"$f":"[1]Infrastructure!AF333","v":0},{"$f":"[1]Infrastructure!AG333","v":0},{"$f":"[1]Infrastructure!AH333","v":0},0]
[0,null,null,null,null,null,{"$f":"[1]Infrastructure!G334","v":0},{"$f":"[1]Infrastructure!H334","v":0},{"$f":"[1]Infrastructure!I334","v":0},{"$f":"[1]Infrastructure!J334","v":0},{"$f":"[1]Infrastructure!K334","v":0},{"$f":"[1]Infrastructure!L334","v":0},{"$f":"[1]Infrastructure!M334","v":0},{"$f":"[1]Infrastructure!N334","v":0},{"$f":"[1]Infrastructure!O334","v":0},{"$f":"[1]Infrastructure!Q334","v":0},{"$f":"[1]Infrastructure!R334","v":0},{"$f":"[1]Infrastructure!T334","v":0},{"$f":"[1]Infrastructure!W334","v":0},{"$f":"[1]Infrastructure!W334","v":0},0,{"$f":"[1]Infrastructure!Z334","v":0},{"$f":"[1]Infrastructure!Z334","v":0},0,{"$f":"[1]Infrastructure!AB334","v":0},{"$f":"[1]Infrastructure!AB334","v":0},0,{"$f":"[1]Infrastructure!AC334","v":0},{"$f":"[1]Infrastructure!AD334","v":0},{"$f":"[1]Infrastructure!AE334","v":0},{"$f":"[1]Infrastructure!AF334","v":0},{"$f":"[1]Infrastructure!AG334","v":0},{"$f":"[1]Infrastructure!AH334","v":0},0]
[0,null,null,null,null,null,{"$f":"[1]Infrastructure!G335","v":0},{"$f":"[1]Infrastructure!H335","v":0},{"$f":"[1]Infrastructure!I335","v":0},{"$f":"[1]Infrastructure!J335","v":0},{"$f":"[1]Infrastructure!K335","v":0},{"$f":"[1]Infrastructure!L335","v":0},{"$f":"[1]Infrastructure!M335","v":0},{"$f":"[1]Infrastructure!N335","v":0},{"$f":"[1]Infrastructure!O335","v":0},{"$f":"[1]Infrastructure!Q335","v":0},{"$f":"[1]Infrastructure!R335","v":0},{"$f":"[1]Infrastructure!T335","v":0},{"$f":"[1]Infrastructure!W335","v":0},{"$f":"[1]Infrastructure!W335","v":0},0,{"$f":"[1]Infrastructure!Z335","v":0},{"$f":"[1]Infrastructure!Z335","v":0},0,{"$f":"[1]Infrastructure!AB335","v":0},{"$f":"[1]Infrastructure!AB335","v":0},0,{"$f":"[1]Infrastructure!AC335","v":0},{"$f":"[1]Infrastructure!AD335","v":0},{"$f":"[1]Infrastructure!AE335","v":0},{"$f":"[1]Infrastructure!AF335","v":0},{"$f":"[1]Infrastructure!AG335","v":0},{"$f":"[1]Infrastructure!AH335","v":0},0]
[0,null,null,null,null,null,{"$f":"[1]Infrastructure!G336","v":0},{"$f":"[1]Infrastructure!H336","v":0},{"$f":"[1]Infrastructure!I336","v":0},{"$f":"[1]Infrastructure!J336","v":0},{"$f":"[1]Infrastructure!K336","v":0},{"$f":"[1]Infrastructure!L336","v":0},{"$f":"[1]Infrastructure!M336","v":0},{"$f":"[1]Infrastructure!N336","v":0},{"$f":"[1]Infrastructure!O336","v":0},{"$f":"[1]Infrastructure!Q336","v":0},{"$f":"[1]Infrastructure!R336","v":0},{"$f":"[1]Infrastructure!T336","v":0},{"$f":"[1]Infrastructure!W336","v":0},{"$f":"[1]Infrastructure!W336","v":0},0,{"$f":"[1]Infrastructure!Z336","v":0},{"$f":"[1]Infrastructure!Z336","v":0},0,{"$f":"[1]Infrastructure!AB336","v":0},{"$f":"[1]Infrastructure!AB336","v":0},0,{"$f":"[1]Infrastructure!AC336","v":0},{"$f":"[1]Infrastructure!AD336","v":0},{"$f":"[1]Infrastructure!AE336","v":0},{"$f":"[1]Infrastructure!AF336","v":0},{"$f":"[1]Infrastructure!AG336","v":0},{"$f":"[1]Infrastructure!AH336","v":0},0]
[0,null,null,null,null,null,{"$f":"[1]Infrastructure!G337","v":0},{"$f":"[1]Infrastructure!H337","v":0},{"$f":"[1]Infrastructure!I337","v":0},{"$f":"[1]Infrastructure!J337","v":0},{"$f":"[1]Infrastructure!K337","v":0},{"$f":"[1]Infrastructure!L337","v":0},{"$f":"[1]Infrastructure!M337","v":0},{"$f":"[1]Infrastructure!N337","v":0},{"$f":"[1]Infrastructure!O337","v":0},{"$f":"[1]Infrastructure!Q337","v":0},{"$f":"[1]Infrastructure!R337","v":0},{"$f":"[1]Infrastructure!T337","v":0},{"$f":"[1]Infrastructure!W337","v":0},{"$f":"[1]Infrastructure!W337","v":0},0,{"$f":"[1]Infrastructure!Z337","v":0},{"$f":"[1]Infrastructure!Z337","v":0},0,{"$f":"[1]Infrastructure!AB337","v":0},{"$f":"[1]Infrastructure!AB337","v":0},0,{"$f":"[1]Infrastructure!AC337","v":0},{"$f":"[1]Infrastructure!AD337","v":0},{"$f":"[1]Infrastructure!AE337","v":0},{"$f":"[1]Infrastructure!AF337","v":0},{"$f":"[1]Infrastructure!AG337","v":0},{"$f":"[1]Infrastructure!AH337","v":0},0]
[0,null,null,null,null,null,{"$f":"[1]Infrastructure!G338","v":0},{"$f":"[1]Infrastructure!H338","v":0},{"$f":"[1]Infrastructure!I338","v":0},{"$f":"[1]Infrastructure!J338","v":0},{"$f":"[1]Infrastructure!K338","v":0},{"$f":"[1]Infrastructure!L338","v":0},{"$f":"[1]Infrastructure!M338","v":0},{"$f":"[1]Infrastructure!N338","v":0},{"$f":"[1]Infrastructure!O338","v":0},{"$f":"[1]Infrastructure!Q338","v":0},{"$f":"[1]Infrastructure!R338","v":0},{"$f":"[1]Infrastructure!T338","v":0},{"$f":"[1]Infrastructure!W338","v":0},{"$f":"[1]Infrastructure!W338","v":0},0,{"$f":"[1]Infrastructure!Z338","v":0},{"$f":"[1]Infrastructure!Z338","v":0},0,{"$f":"[1]Infrastructure!AB338","v":0},{"$f":"[1]Infrastructure!AB338","v":0},0,{"$f":"[1]Infrastructure!AC338","v":0},{"$f":"[1]Infrastructure!AD338","v":0},{"$f":"[1]Infrastructure!AE338","v":0},{"$f":"[1]Infrastructure!AF338","v":0},{"$f":"[1]Infrastructure!AG338","v":0},{"$f":"[1]Infrastructure!AH338","v":0},0]
[0,null,null,null,null,null,{"$f":"[1]Infrastructure!G339","v":0},{"$f":"[1]Infrastructure!H339","v":0},{"$f":"[1]Infrastructure!I339","v":0},{"$f":"[1]Infrastructure!J339","v":0},{"$f":"[1]Infrastructure!K339","v":0},{"$f":"[1]Infrastructure!L339","v":0},{"$f":"[1]Infrastructure!M339","v":0},{"$f":"[1]Infrastructure!N339","v":0},{"$f":"[1]Infrastructure!O339","v":0},{"$f":"[1]Infrastructure!Q339","v":0},{"$f":"[1]Infrastructure!R339","v":0},{"$f":"[1]Infrastructure!T339","v":0},{"$f":"[1]Infrastructure!W339","v":0},{"$f":"[1]Infrastructure!W339","v":0},0,{"$f":"[1]Infrastructure!Z339","v":0},{"$f":"[1]Infrastructure!Z339","v":0},0,{"$f":"[1]Infrastructure!AB339","v":0},{"$f":"[1]Infrastructure!AB339","v":0},0,{"$f":"[1]Infrastructure!AC339","v":0},{"$f":"[1]Infrastructure!AD339","v":0},{"$f":"[1]Infrastructure!AE339","v":0},{"$f":"[1]Infrastructure!AF339","v":0},{"$f":"[1]Infrastructure!AG339","v":0},{"$f":"[1]Infrastructure!AH339","v":0},0]
[0,null,null,null,null,null,{"$f":"[1]Infrastructure!G340","v":0},{"$f":"[1]Infrastructure!H340","v":0},{"$f":"[1]Infrastructure!I340","v":0},{"$f":"[1]Infrastructure!J340","v":0},{"$f":"[1]Infrastructure!K340","v":0},{"$f":"[1]Infrastructure!L340","v":0},{"$f":"[1]Infrastructure!M340","v":0},{"$f":"[1]Infrastructure!N340","v":0},{"$f":"[1]Infrastructure!O340","v":0},{"$f":"[1]Infrastructure!Q340","v":0},{"$f":"[1]Infrastructure!R340","v":0},{"$f":"[1]Infrastructure!T340","v":0},{"$f":"[1]Infrastructure!W340","v":0},{"$f":"[1]Infrastructure!W340","v":0},0,{"$f":"[1]Infrastructure!Z340","v":0},{"$f":"[1]Infrastructure!Z340","v":0},0,{"$f":"[1]Infrastructure!AB340","v":0},{"$f":"[1]Infrastructure!AB340","v":0},0,{"$f":"[1]Infrastructure!AC340","v":0},{"$f":"[1]Infrastructure!AD340","v":0},{"$f":"[1]Infrastructure!AE340","v":0},{"$f":"[1]Infrastructure!AF340","v":0},{"$f":"[1]Infrastructure!AG340","v":0},{"$f":"[1]Infrastructure!AH340","v":0},0]
[0,null,null,null,null,null,{"$f":"[1]Infrastructure!G341","v":0},{"$f":"[1]Infrastructure!H341","v":0},{"$f":"[1]Infrastructure!I341","v":0},{"$f":"[1]Infrastructure!J341","v":0},{"$f":"[1]Infrastructure!K341","v":0},{"$f":"[1]Infrastructure!L341","v":0},{"$f":"[1]Infrastructure!M341","v":0},{"$f":"[1]Infrastructure!N341","v":0},{"$f":"[1]Infrastructure!O341","v":0},{"$f":"[1]Infrastructure!Q341","v":0},{"$f":"[1]Infrastructure!R341","v":0},{"$f":"[1]Infrastructure!T341","v":0},{"$f":"[1]Infrastructure!W341","v":0},{"$f":"[1]Infrastructure!W341","v":0},0,{"$f":"[1]Infrastructure!Z341","v":0},{"$f":"[1]Infrastructure!Z341","v":0},0,{"$f":"[1]Infrastructure!AB341","v":0},{"$f":"[1]Infrastructure!AB341","v":0},0,{"$f":"[1]Infrastructure!AC341","v":0},{"$f":"[1]Infrastructure!AD341","v":0},{"$f":"[1]Infrastructure!AE341","v":0},{"$f":"[1]Infrastructure!AF341","v":0},{"$f":"[1]Infrastructure!AG341","v":0},{"$f":"[1]Infrastructure!AH341","v":0},0]
[0,null,null,null,null,null,{"$f":"[1]Infrastructure!G342","v":0},{"$f":"[1]Infrastructure!H342","v":0},{"$f":"[1]Infrastructure!I342","v":0},{"$f":"[1]Infrastructure!J342","v":0},{"$f":"[1]Infrastructure!K342","v":0},{"$f":"[1]Infrastructure!L342","v":0},{"$f":"[1]Infrastructure!M342","v":0},{"$f":"[1]Infrastructure!N342","v":0},{"$f":"[1]Infrastructure!O342","v":0},{"$f":"[1]Infrastructure!Q342","v":0},{"$f":"[1]Infrastructure!R342","v":0},{"$f":"[1]Infrastructure!T342","v":0},{"$f":"[1]Infrastructure!W342","v":0},{"$f":"[1]Infrastructure!W342","v":0},0,{"$f":"[1]Infrastructure!Z342","v":0},{"$f":"[1]Infrastructure!Z342","v":0},0,{"$f":"[1]Infrastructure!AB342","v":0},{"$f":"[1]Infrastructure!AB342","v":0},0,{"$f":"[1]Infrastructure!AC342","v":0},{"$f":"[1]Infrastructure!AD342","v":0},{"$f":"[1]Infrastructure!AE342","v":0},{"$f":"[1]Infrastructure!AF342","v":0},{"$f":"[1]Infrastructure!AG342","v":0},{"$f":"[1]Infrastructure!AH342","v":0},0]
[0,null,null,null,null,null,{"$f":"[1]Infrastructure!G343","v":0},{"$f":"[1]Infrastructure!H343","v":0},{"$f":"[1]Infrastructure!I343","v":0},{"$f":"[1]Infrastructure!J343","v":0},{"$f":"[1]Infrastructure!K343","v":0},{"$f":"[1]Infrastructure!L343","v":0},{"$f":"[1]Infrastructure!M343","v":0},{"$f":"[1]Infrastructure!N343","v":0},{"$f":"[1]Infrastructure!O343","v":0},{"$f":"[1]Infrastructure!Q343","v":0},{"$f":"[1]Infrastructure!R343","v":0},{"$f":"[1]Infrastructure!T343","v":0},{"$f":"[1]Infrastructure!W343","v":0},{"$f":"[1]Infrastructure!W343","v":0},0,{"$f":"[1]Infrastructure!Z343","v":0},{"$f":"[1]Infrastructure!Z343","v":0},0,{"$f":"[1]Infrastructure!AB343","v":0},{"$f":"[1]Infrastructure!AB343","v":0},0,{"$f":"[1]Infrastructure!AC343","v":0},{"$f":"[1]Infrastructure!AD343","v":0},{"$f":"[1]Infrastructure!AE343","v":0},{"$f":"[1]Infrastructure!AF343","v":0},{"$f":"[1]Infrastructure!AG343","v":0},{"$f":"[1]Infrastructure!AH343","v":0},0]
[0,null,null,null,null,null,{"$f":"[1]Infrastructure!G344","v":0},{"$f":"[1]Infrastructure!H344","v":0},{"$f":"[1]Infrastructure!I344","v":0},{"$f":"[1]Infrastructure!J344","v":0},{"$f":"[1]Infrastructure!K344","v":0},{"$f":"[1]Infrastructure!L344","v":0},{"$f":"[1]Infrastructure!M344","v":0},{"$f":"[1]Infrastructure!N344","v":0},{"$f":"[1]Infrastructure!O344","v":0},{"$f":"[1]Infrastructure!Q344","v":0},{"$f":"[1]Infrastructure!R344","v":0},{"$f":"[1]Infrastructure!T344","v":0},{"$f":"[1]Infrastructure!W344","v":0},{"$f":"[1]Infrastructure!W344","v":0},0,{"$f":"[1]Infrastructure!Z344","v":0},{"$f":"[1]Infrastructure!Z344","v":0},0,{"$f":"[1]Infrastructure!AB344","v":0},{"$f":"[1]Infrastructure!AB344","v":0},0,{"$f":"[1]Infrastructure!AC344","v":0},{"$f":"[1]Infrastructure!AD344","v":0},{"$f":"[1]Infrastructure!AE344","v":0},{"$f":"[1]Infrastructure!AF344","v":0},{"$f":"[1]Infrastructure!AG344","v":0},{"$f":"[1]Infrastructure!AH344","v":0},0]
[0,null,null,null,null,null,{"$f":"[1]Infrastructure!G345","v":0},{"$f":"[1]Infrastructure!H345","v":0},{"$f":"[1]Infrastructure!I345","v":0},{"$f":"[1]Infrastructure!J345","v":0},{"$f":"[1]Infrastructure!K345","v":0},{"$f":"[1]Infrastructure!L345","v":0},{"$f":"[1]Infrastructure!M345","v":0},{"$f":"[1]Infrastructure!N345","v":0},{"$f":"[1]Infrastructure!O345","v":0},{"$f":"[1]Infrastructure!Q345","v":0},{"$f":"[1]Infrastructure!R345","v":0},{"$f":"[1]Infrastructure!T345","v":0},{"$f":"[1]Infrastructure!W345","v":0},{"$f":"[1]Infrastructure!W345","v":0},0,{"$f":"[1]Infrastructure!Z345","v":0},{"$f":"[1]Infrastructure!Z345","v":0},0,{"$f":"[1]Infrastructure!AB345","v":0},{"$f":"[1]Infrastructure!AB345","v":0},0,{"$f":"[1]Infrastructure!AC345","v":0},{"$f":"[1]Infrastructure!AD345","v":0},{"$f":"[1]Infrastructure!AE345","v":0},{"$f":"[1]Infrastructure!AF345","v":0},{"$f":"[1]Infrastructure!AG345","v":0},{"$f":"[1]Infrastructure!AH345","v":0},0]
[0,null,null,null,null,null,{"$f":"[1]Infrastructure!G346","v":0},{"$f":"[1]Infrastructure!H346","v":0},{"$f":"[1]Infrastructure!I346","v":0},{"$f":"[1]Infrastructure!J346","v":0},{"$f":"[1]Infrastructure!K346","v":0},{"$f":"[1]Infrastructure!L346","v":0},{"$f":"[1]Infrastructure!M346","v":0},{"$f":"[1]Infrastructure!N346","v":0},{"$f":"[1]Infrastructure!O346","v":0},{"$f":"[1]Infrastructure!Q346","v":0},{"$f":"[1]Infrastructure!R346","v":0},{"$f":"[1]Infrastructure!T346","v":0},{"$f":"[1]Infrastructure!W346","v":0},{"$f":"[1]Infrastructure!W346","v":0},0,{"$f":"[1]Infrastructure!Z346","v":0},{"$f":"[1]Infrastructure!Z346","v":0},0,{"$f":"[1]Infrastructure!AB346","v":0},{"$f":"[1]Infrastructure!AB346","v":0},0,{"$f":"[1]Infrastructure!AC346","v":0},{"$f":"[1]Infrastructure!AD346","v":0},{"$f":"[1]Infrastructure!AE346","v":0},{"$f":"[1]Infrastructure!AF346","v":0},{"$f":"[1]Infrastructure!AG346","v":0},{"$f":"[1]Infrastructure!AH346","v":0},0]
[0,null,null,null,null,null,{"$f":"[1]Infrastructure!G347","v":0},{"$f":"[1]Infrastructure!H347","v":0},{"$f":"[1]Infrastructure!I347","v":0},{"$f":"[1]Infrastructure!J347","v":0},{"$f":"[1]Infrastructure!K347","v":0},{"$f":"[1]Infrastructure!L347","v":0},{"$f":"[1]Infrastructure!M347","v":0},{"$f":"[1]Infrastructure!N347","v":0},{"$f":"[1]Infrastructure!O347","v":0},{"$f":"[1]Infrastructure!Q347","v":0},{"$f":"[1]Infrastructure!R347","v":0},{"$f":"[1]Infrastructure!T347","v":0},{"$f":"[1]Infrastructure!W347","v":0},{"$f":"[1]Infrastructure!W347","v":0},0,{"$f":"[1]Infrastructure!Z347","v":0},{"$f":"[1]Infrastructure!Z347","v":0},0,{"$f":"[1]Infrastructure!AB347","v":0},{"$f":"[1]Infrastructure!AB347","v":0},0,{"$f":"[1]Infrastructure!AC347","v":0},{"$f":"[1]Infrastructure!AD347","v":0},{"$f":"[1]Infrastructure!AE347","v":0},{"$f":"[1]Infrastructure!AF347","v":0},{"$f":"[1]Infrastructure!AG347","v":0},{"$f":"[1]Infrastructure!AH347","v":0},0]
[0,null,null,null,null,null,{"$f":"[1]Infrastructure!G348","v":0},{"$f":"[1]Infrastructure!H348","v":0},{"$f":"[1]Infrastructure!I348","v":0},{"$f":"[1]Infrastructure!J348","v":0},{"$f":"[1]Infrastructure!K348","v":0},{"$f":"[1]Infrastructure!L348","v":0},{"$f":"[1]Infrastructure!M348","v":0},{"$f":"[1]Infrastructure!N348","v":0},{"$f":"[1]Infrastructure!O348","v":0},{"$f":"[1]Infrastructure!Q348","v":0},{"$f":"[1]Infrastructure!R348","v":0},{"$f":"[1]Infrastructure!T348","v":0},{"$f":"[1]Infrastructure!W348","v":0},{"$f":"[1]Infrastructure!W348","v":0},0,{"$f":"[1]Infrastructure!Z348","v":0},{"$f":"[1]Infrastructure!Z348","v":0},0,{"$f":"[1]Infrastructure!AB348","v":0},{"$f":"[1]Infrastructure!AB348","v":0},0,{"$f":"[1]Infrastructure!AC348","v":0},{"$f":"[1]Infrastructure!AD348","v":0},{"$f":"[1]Infrastructure!AE348","v":0},{"$f":"[1]Infrastructure!AF348","v":0},{"$f":"[1]Infrastructure!AG348","v":0},{"$f":"[1]Infrastructure!AH348","v":0},0]
[0,null,null,null,null,null,{"$f":"[1]Infrastructure!G349","v":0},{"$f":"[1]Infrastructure!H349","v":0},{"$f":"[1]Infrastructure!I349","v":0},{"$f":"[1]Infrastructure!J349","v":0},{"$f":"[1]Infrastructure!K349","v":0},{"$f":"[1]Infrastructure!L349","v":0},{"$f":"[1]Infrastructure!M349","v":0},{"$f":"[1]Infrastructure!N349","v":0},{"$f":"[1]Infrastructure!O349","v":0},{"$f":"[1]Infrastructure!Q349","v":0},{"$f":"[1]Infrastructure!R349","v":0},{"$f":"[1]Infrastructure!T349","v":0},{"$f":"[1]Infrastructure!W349","v":0},{"$f":"[1]Infrastructure!W349","v":0},0,{"$f":"[1]Infrastructure!Z349","v":0},{"$f":"[1]Infrastructure!Z349","v":0},0,{"$f":"[1]Infrastructure!AB349","v":0},{"$f":"[1]Infrastructure!AB349","v":0},0,{"$f":"[1]Infrastructure!AC349","v":0},{"$f":"[1]Infrastructure!AD349","v":0},{"$f":"[1]Infrastructure!AE349","v":0},{"$f":"[1]Infrastructure!AF349","v":0},{"$f":"[1]Infrastructure!AG349","v":0},{"$f":"[1]Infrastructure!AH349","v":0},0]
[0,null,null,null,null,null,{"$f":"[1]Infrastructure!G350","v":0},{"$f":"[1]Infrastructure!H350","v":0},{"$f":"[1]Infrastructure!I350","v":0},{"$f":"[1]Infrastructure!J350","v":0},{"$f":"[1]Infrastructure!K350","v":0},{"$f":"[1]Infrastructure!L350","v":0},{"$f":"[1]Infrastructure!M350","v":0},{"$f":"[1]Infrastructure!N350","v":0},{"$f":"[1]Infrastructure!O350","v":0},{"$f":"[1]Infrastructure!Q350","v":0},{"$f":"[1]Infrastructure!R350","v":0},{"$f":"[1]Infrastructure!T350","v":0},{"$f":"[1]Infrastructure!W350","v":0},{"$f":"[1]Infrastructure!W350","v":0},0,{"$f":"[1]Infrastructure!Z350","v":0},{"$f":"[1]Infrastructure!Z350","v":0},0,{"$f":"[1]Infrastructure!AB350","v":0},{"$f":"[1]Infrastructure!AB350","v":0},0,{"$f":"[1]Infrastructure!AC350","v":0},{"$f":"[1]Infrastructure!AD350","v":0},{"$f":"[1]Infrastructure!AE350","v":0},{"$f":"[1]Infrastructure!AF350","v":0},{"$f":"[1]Infrastructure!AG350","v":0},{"$f":"[1]Infrastructure!AH350","v":0},0]
[0,null,null,null,null,null,{"$f":"[1]Infrastructure!G351","v":0},{"$f":"[1]Infrastructure!H351","v":0},{"$f":"[1]Infrastructure!I351","v":0},{"$f":"[1]Infrastructure!J351","v":0},{"$f":"[1]Infrastructure!K351","v":0},{"$f":"[1]Infrastructure!L351","v":0},{"$f":"[1]Infrastructure!M351","v":0},{"$f":"[1]Infrastructure!N351","v":0},{"$f":"[1]Infrastructure!O351","v":0},{"$f":"[1]Infrastructure!Q351","v":0},{"$f":"[1]Infrastructure!R351","v":0},{"$f":"[1]Infrastructure!T351","v":0},{"$f":"[1]Infrastructure!W351","v":0},{"$f":"[1]Infrastructure!W351","v":0},0,{"$f":"[1]Infrastructure!Z351","v":0},{"$f":"[1]Infrastructure!Z351","v":0},0,{"$f":"[1]Infrastructure!AB351","v":0},{"$f":"[1]Infrastructure!AB351","v":0},0,{"$f":"[1]Infrastructure!AC351","v":0},{"$f":"[1]Infrastructure!AD351","v":0},{"$f":"[1]Infrastructure!AE351","v":0},{"$f":"[1]Infrastructure!AF351","v":0},{"$f":"[1]Infrastructure!AG351","v":0},{"$f":"[1]Infrastructure!AH351","v":0},0]
[0,null,null,null,null,null,{"$f":"[1]Infrastructure!G352","v":0},{"$f":"[1]Infrastructure!H352","v":0},{"$f":"[1]Infrastructure!I352","v":0},{"$f":"[1]Infrastructure!J352","v":0},{"$f":"[1]Infrastructure!K352","v":0},{"$f":"[1]Infrastructure!L352","v":0},{"$f":"[1]Infrastructure!M352","v":0},{"$f":"[1]Infrastructure!N352","v":0},{"$f":"[1]Infrastructure!O352","v":0},{"$f":"[1]Infrastructure!Q352","v":0},{"$f":"[1]Infrastructure!R352","v":0},{"$f":"[1]Infrastructure!T352","v":0},{"$f":"[1]Infrastructure!W352","v":0},{"$f":"[1]Infrastructure!W352","v":0},0,{"$f":"[1]Infrastructure!Z352","v":0},{"$f":"[1]Infrastructure!Z352","v":0},0,{"$f":"[1]Infrastructure!AB352","v":0},{"$f":"[1]Infrastructure!AB352","v":0},0,{"$f":"[1]Infrastructure!AC352","v":0},{"$f":"[1]Infrastructure!AD352","v":0},{"$f":"[1]Infrastructure!AE352","v":0},{"$f":"[1]Infrastructure!AF352","v":0},{"$f":"[1]Infrastructure!AG352","v":0},{"$f":"[1]Infrastructure!AH352","v":0},0]
[0,null,null,null,null,null,{"$f":"[1]Infrastructure!G353","v":0},{"$f":"[1]Infrastructure!H353","v":0},{"$f":"[1]Infrastructure!I353","v":0},{"$f":"[1]Infrastructure!J353","v":0},{"$f":"[1]Infrastructure!K353","v":0},{"$f":"[1]Infrastructure!L353","v":0},{"$f":"[1]Infrastructure!M353","v":0},{"$f":"[1]Infrastructure!N353","v":0},{"$f":"[1]Infrastructure!O353","v":0},{"$f":"[1]Infrastructure!Q353","v":0},{"$f":"[1]Infrastructure!R353","v":0},{"$f":"[1]Infrastructure!T353","v":0},{"$f":"[1]Infrastructure!W353","v":0},{"$f":"[1]Infrastructure!W353","v":0},0,{"$f":"[1]Infrastructure!Z353","v":0},{"$f":"[1]Infrastructure!Z353","v":0},0,{"$f":"[1]Infrastructure!AB353","v":0},{"$f":"[1]Infrastructure!AB353","v":0},0,{"$f":"[1]Infrastructure!AC353","v":0},{"$f":"[1]Infrastructure!AD353","v":0},{"$f":"[1]Infrastructure!AE353","v":0},{"$f":"[1]Infrastructure!AF353","v":0},{"$f":"[1]Infrastructure!AG353","v":0},{"$f":"[1]Infrastructure!AH353","v":0},0]
[0,null,null,null,null,null,{"$f":"[1]Infrastructure!G354","v":0},{"$f":"[1]Infrastructure!H354","v":0},{"$f":"[1]Infrastructure!I354","v":0},{"$f":"[1]Infrastructure!J354","v":0},{"$f":"[1]Infrastructure!K354","v":0},{"$f":"[1]Infrastructure!L354","v":0},{"$f":"[1]Infrastructure!M354","v":0},{"$f":"[1]Infrastructure!N354","v":0},{"$f":"[1]Infrastructure!O354","v":0},{"$f":"[1]Infrastructure!Q354","v":0},{"$f":"[1]Infrastructure!R354","v":0},{"$f":"[1]Infrastructure!T354","v":0},{"$f":"[1]Infrastructure!W354","v":0},{"$f":"[1]Infrastructure!W354","v":0},0,{"$f":"[1]Infrastructure!Z354","v":0},{"$f":"[1]Infrastructure!Z354","v":0},0,{"$f":"[1]Infrastructure!AB354","v":0},{"$f":"[1]Infrastructure!AB354","v":0},0,{"$f":"[1]Infrastructure!AC354","v":0},{"$f":"[1]Infrastructure!AD354","v":0},{"$f":"[1]Infrastructure!AE354","v":0},{"$f":"[1]Infrastructure!AF354","v":0},{"$f":"[1]Infrastructure!AG354","v":0},{"$f":"[1]Infrastructure!AH354","v":0},0]
[0,null,null,null,null,null,{"$f":"[1]Infrastructure!G355","v":0},{"$f":"[1]Infrastructure!H355","v":0},{"$f":"[1]Infrastructure!I355","v":0},{"$f":"[1]Infrastructure!J355","v":0},{"$f":"[1]Infrastructure!K355","v":0},{"$f":"[1]Infrastructure!L355","v":0},{"$f":"[1]Infrastructure!M355","v":0},{"$f":"[1]Infrastructure!N355","v":0},{"$f":"[1]Infrastructure!O355","v":0},{"$f":"[1]Infrastructure!Q355","v":0},{"$f":"[1]Infrastructure!R355","v":0},{"$f":"[1]Infrastructure!T355","v":0},{"$f":"[1]Infrastructure!W355","v":0},{"$f":"[1]Infrastructure!W355","v":0},0,{"$f":"[1]Infrastructure!Z355","v":0},{"$f":"[1]Infrastructure!Z355","v":0},0,{"$f":"[1]Infrastructure!AB355","v":0},{"$f":"[1]Infrastructure!AB355","v":0},0,{"$f":"[1]Infrastructure!AC355","v":0},{"$f":"[1]Infrastructure!AD355","v":0},{"$f":"[1]Infrastructure!AE355","v":0},{"$f":"[1]Infrastructure!AF355","v":0},{"$f":"[1]Infrastructure!AG355","v":0},{"$f":"[1]Infrastructure!AH355","v":0},0]
[0,null,null,null,null,null,{"$f":"[1]Infrastructure!G356","v":0},{"$f":"[1]Infrastructure!H356","v":0},{"$f":"[1]Infrastructure!I356","v":0},{"$f":"[1]Infrastructure!J356","v":0},{"$f":"[1]Infrastructure!K356","v":0},{"$f":"[1]Infrastructure!L356","v":0},{"$f":"[1]Infrastructure!M356","v":0},{"$f":"[1]Infrastructure!N356","v":0},{"$f":"[1]Infrastructure!O356","v":0},{"$f":"[1]Infrastructure!Q356","v":0},{"$f":"[1]Infrastructure!R356","v":0},{"$f":"[1]Infrastructure!T356","v":0},{"$f":"[1]Infrastructure!W356","v":0},{"$f":"[1]Infrastructure!W356","v":0},0,{"$f":"[1]Infrastructure!Z356","v":0},{"$f":"[1]Infrastructure!Z356","v":0},0,{"$f":"[1]Infrastructure!AB356","v":0},{"$f":"[1]Infrastructure!AB356","v":0},0,{"$f":"[1]Infrastructure!AC356","v":0},{"$f":"[1]Infrastructure!AD356","v":0},{"$f":"[1]Infrastructure!AE356","v":0},{"$f":"[1]Infrastructure!AF356","v":0},{"$f":"[1]Infrastructure!AG356","v":0},{"$f":"[1]Infrastructure!AH356","v":0},0]
[0,null,null,null,null,null,{"$f":"[1]Infrastructure!G357","v":0},{"$f":"[1]Infrastructure!H357","v":0},{"$f":"[1]Infrastructure!I357","v":0},{"$f":"[1]Infrastructure!J357","v":0},{"$f":"[1]Infrastructure!K357","v":0},{"$f":"[1]Infrastructure!L357","v":0},{"$f":"[1]Infrastructure!M357","v":0},{"$f":"[1]Infrastructure!N357","v":0},{"$f":"[1]Infrastructure!O357","v":0},{"$f":"[1]Infrastructure!Q357","v":0},{"$f":"[1]Infrastructure!R357","v":0},{"$f":"[1]Infrastructure!T357","v":0},{"$f":"[1]Infrastructure!W357","v":0},{"$f":"[1]Infrastructure!W357","v":0},0,{"$f":"[1]Infrastructure!Z357","v":0},{"$f":"[1]Infrastructure!Z357","v":0},0,{"$f":"[1]Infrastructure!AB357","v":0},{"$f":"[1]Infrastructure!AB357","v":0},0,{"$f":"[1]Infrastructure!AC357","v":0},{"$f":"[1]Infrastructure!AD357","v":0},{"$f":"[1]Infrastructure!AE357","v":0},{"$f":"[1]Infrastructure!AF357","v":0},{"$f":"[1]Infrastructure!AG357","v":0},{"$f":"[1]Infrastructure!AH357","v":0},0]
[0,null,null,null,null,null,{"$f":"[1]Infrastructure!G358","v":0},{"$f":"[1]Infrastructure!H358","v":0},{"$f":"[1]Infrastructure!I358","v":0},{"$f":"[1]Infrastructure!J358","v":0},{"$f":"[1]Infrastructure!K358","v":0},{"$f":"[1]Infrastructure!L358","v":0},{"$f":"[1]Infrastructure!M358","v":0},{"$f":"[1]Infrastructure!N358","v":0},{"$f":"[1]Infrastructure!O358","v":0},{"$f":"[1]Infrastructure!Q358","v":0},{"$f":"[1]Infrastructure!R358","v":0},{"$f":"[1]Infrastructure!T358","v":0},{"$f":"[1]Infrastructure!W358","v":0},{"$f":"[1]Infrastructure!W358","v":0},0,{"$f":"[1]Infrastructure!Z358","v":0},{"$f":"[1]Infrastructure!Z358","v":0},0,{"$f":"[1]Infrastructure!AB358","v":0},{"$f":"[1]Infrastructure!AB358","v":0},0,{"$f":"[1]Infrastructure!AC358","v":0},{"$f":"[1]Infrastructure!AD358","v":0},{"$f":"[1]Infrastructure!AE358","v":0},{"$f":"[1]Infrastructure!AF358","v":0},{"$f":"[1]Infrastructure!AG358","v":0},{"$f":"[1]Infrastructure!AH358","v":0},0]
[0,null,null,null,null,null,{"$f":"[1]Infrastructure!G359","v":0},{"$f":"[1]Infrastructure!H359","v":0},{"$f":"[1]Infrastructure!I359","v":0},{"$f":"[1]Infrastructure!J359","v":0},{"$f":"[1]Infrastructure!K359","v":0},{"$f":"[1]Infrastructure!L359","v":0},{"$f":"[1]Infrastructure!M359","v":0},{"$f":"[1]Infrastructure!N359","v":0},{"$f":"[1]Infrastructure!O359","v":0},{"$f":"[1]Infrastructure!Q359","v":0},{"$f":"[1]Infrastructure!R359","v":0},{"$f":"[1]Infrastructure!T359","v":0},{"$f":"[1]Infrastructure!W359","v":0},{"$f":"[1]Infrastructure!W359","v":0},0,{"$f":"[1]Infrastructure!Z359","v":0},{"$f":"[1]Infrastructure!Z359","v":0},0,{"$f":"[1]Infrastructure!AB359","v":0},{"$f":"[1]Infrastructure!AB359","v":0},0,{"$f":"[1]Infrastructure!AC359","v":0},{"$f":"[1]Infrastructure!AD359","v":0},{"$f":"[1]Infrastructure!AE359","v":0},{"$f":"[1]Infrastructure!AF359","v":0},{"$f":"[1]Infrastructure!AG359","v":0},{"$f":"[1]Infrastructure!AH359","v":0},0]
[0,null,null,null,null,null,{"$f":"[1]Infrastructure!G360","v":0},{"$f":"[1]Infrastructure!H360","v":0},{"$f":"[1]Infrastructure!I360","v":0},{"$f":"[1]Infrastructure!J360","v":0},{"$f":"[1]Infrastructure!K360","v":0},{"$f":"[1]Infrastructure!L360","v":0},{"$f":"[1]Infrastructure!M360","v":0},{"$f":"[1]Infrastructure!N360","v":0},{"$f":"[1]Infrastructure!O360","v":0},{"$f":"[1]Infrastructure!Q360","v":0},{"$f":"[1]Infrastructure!R360","v":0},{"$f":"[1]Infrastructure!T360","v":0},{"$f":"[1]Infrastructure!W360","v":0},{"$f":"[1]Infrastructure!W360","v":0},0,{"$f":"[1]Infrastructure!Z360","v":0},{"$f":"[1]Infrastructure!Z360","v":0},0,{"$f":"[1]Infrastructure!AB360","v":0},{"$f":"[1]Infrastructure!AB360","v":0},0,{"$f":"[1]Infrastructure!AC360","v":0},{"$f":"[1]Infrastructure!AD360","v":0},{"$f":"[1]Infrastructure!AE360","v":0},{"$f":"[1]Infrastructure!AF360","v":0},{"$f":"[1]Infrastructure!AG360","v":0},{"$f":"[1]Infrastructure!AH360","v":0},0]
[0,null,null,null,null,null,{"$f":"[1]Infrastructure!G361","v":0},{"$f":"[1]Infrastructure!H361","v":0},{"$f":"[1]Infrastructure!I361","v":0},{"$f":"[1]Infrastructure!J361","v":0},{"$f":"[1]Infrastructure!K361","v":0},{"$f":"[1]Infrastructure!L361","v":0},{"$f":"[1]Infrastructure!M361","v":0},{"$f":"[1]Infrastructure!N361","v":0},{"$f":"[1]Infrastructure!O361","v":0},{"$f":"[1]Infrastructure!Q361","v":0},{"$f":"[1]Infrastructure!R361","v":0},{"$f":"[1]Infrastructure!T361","v":0},{"$f":"[1]Infrastructure!W361","v":0},{"$f":"[1]Infrastructure!W361","v":0},0,{"$f":"[1]Infrastructure!Z361","v":0},{"$f":"[1]Infrastructure!Z361","v":0},0,{"$f":"[1]Infrastructure!AB361","v":0},{"$f":"[1]Infrastructure!AB361","v":0},0,{"$f":"[1]Infrastructure!AC361","v":0},{"$f":"[1]Infrastructure!AD361","v":0},{"$f":"[1]Infrastructure!AE361","v":0},{"$f":"[1]Infrastructure!AF361","v":0},{"$f":"[1]Infrastructure!AG361","v":0},{"$f":"[1]Infrastructure!AH361","v":0},0]
[0,null,null,null,null,null,{"$f":"[1]Infrastructure!G362","v":0},{"$f":"[1]Infrastructure!H362","v":0},{"$f":"[1]Infrastructure!I362","v":0},{"$f":"[1]Infrastructure!J362","v":0},{"$f":"[1]Infrastructure!K362","v":0},{"$f":"[1]Infrastructure!L362","v":0},{"$f":"[1]Infrastructure!M362","v":0},{"$f":"[1]Infrastructure!N362","v":0},{"$f":"[1]Infrastructure!O362","v":0},{"$f":"[1]Infrastructure!Q362","v":0},{"$f":"[1]Infrastructure!R362","v":0},{"$f":"[1]Infrastructure!T362","v":0},{"$f":"[1]Infrastructure!W362","v":0},{"$f":"[1]Infrastructure!W362","v":0},0,{"$f":"[1]Infrastructure!Z362","v":0},{"$f":"[1]Infrastructure!Z362","v":0},0,{"$f":"[1]Infrastructure!AB362","v":0},{"$f":"[1]Infrastructure!AB362","v":0},0,{"$f":"[1]Infrastructure!AC362","v":0},{"$f":"[1]Infrastructure!AD362","v":0},{"$f":"[1]Infrastructure!AE362","v":0},{"$f":"[1]Infrastructure!AF362","v":0},{"$f":"[1]Infrastructure!AG362","v":0},{"$f":"[1]Infrastructure!AH362","v":0},0]
[0,null,null,null,null,null,{"$f":"[1]Infrastructure!G363","v":0},{"$f":"[1]Infrastructure!H363","v":0},{"$f":"[1]Infrastructure!I363","v":0},{"$f":"[1]Infrastructure!J363","v":0},{"$f":"[1]Infrastructure!K363","v":0},{"$f":"[1]Infrastructure!L363","v":0},{"$f":"[1]Infrastructure!M363","v":0},{"$f":"[1]Infrastructure!N363","v":0},{"$f":"[1]Infrastructure!O363","v":0},{"$f":"[1]Infrastructure!Q363","v":0},{"$f":"[1]Infrastructure!R363","v":0},{"$f":"[1]Infrastructure!T363","v":0},{"$f":"[1]Infrastructure!W363","v":0},{"$f":"[1]Infrastructure!W363","v":0},0,{"$f":"[1]Infrastructure!Z363","v":0},{"$f":"[1]Infrastructure!Z363","v":0},0,{"$f":"[1]Infrastructure!AB363","v":0},{"$f":"[1]Infrastructure!AB363","v":0},0,{"$f":"[1]Infrastructure!AC363","v":0},{"$f":"[1]Infrastructure!AD363","v":0},{"$f":"[1]Infrastructure!AE363","v":0},{"$f":"[1]Infrastructure!AF363","v":0},{"$f":"[1]Infrastructure!AG363","v":0},{"$f":"[1]Infrastructure!AH363","v":0},0]
[0,null,null,null,null,null,{"$f":"[1]Infrastructure!G364","v":0},{"$f":"[1]Infrastructure!H364","v":0},{"$f":"[1]Infrastructure!I364","v":0},{"$f":"[1]Infrastructure!J364","v":0},{"$f":"[1]Infrastructure!K364","v":0},{"$f":"[1]Infrastructure!L364","v":0},{"$f":"[1]Infrastructure!M364","v":0},{"$f":"[1]Infrastructure!N364","v":0},{"$f":"[1]Infrastructure!O364","v":0},{"$f":"[1]Infrastructure!Q364","v":0},{"$f":"[1]Infrastructure!R364","v":0},{"$f":"[1]Infrastructure!T364","v":0},{"$f":"[1]Infrastructure!W364","v":0},{"$f":"[1]Infrastructure!W364","v":0},0,{"$f":"[1]Infrastructure!Z364","v":0},{"$f":"[1]Infrastructure!Z364","v":0},0,{"$f":"[1]Infrastructure!AB364","v":0},{"$f":"[1]Infrastructure!AB364","v":0},0,{"$f":"[1]Infrastructure!AC364","v":0},{"$f":"[1]Infrastructure!AD364","v":0},{"$f":"[1]Infrastructure!AE364","v":0},{"$f":"[1]Infrastructure!AF364","v":0},{"$f":"[1]Infrastructure!AG364","v":0},{"$f":"[1]Infrastructure!AH364","v":0},0]
[0,null,null,null,null,null,{"$f":"[1]Infrastructure!G365","v":0},{"$f":"[1]Infrastructure!H365","v":0},{"$f":"[1]Infrastructure!I365","v":0},{"$f":"[1]Infrastructure!J365","v":0},{"$f":"[1]Infrastructure!K365","v":0},{"$f":"[1]Infrastructure!L365","v":0},{"$f":"[1]Infrastructure!M365","v":0},{"$f":"[1]Infrastructure!N365","v":0},{"$f":"[1]Infrastructure!O365","v":0},{"$f":"[1]Infrastructure!Q365","v":0},{"$f":"[1]Infrastructure!R365","v":0},{"$f":"[1]Infrastructure!T365","v":0},{"$f":"[1]Infrastructure!W365","v":0},{"$f":"[1]Infrastructure!W365","v":0},0,{"$f":"[1]Infrastructure!Z365","v":0},{"$f":"[1]Infrastructure!Z365","v":0},0,{"$f":"[1]Infrastructure!AB365","v":0},{"$f":"[1]Infrastructure!AB365","v":0},0,{"$f":"[1]Infrastructure!AC365","v":0},{"$f":"[1]Infrastructure!AD365","v":0},{"$f":"[1]Infrastructure!AE365","v":0},{"$f":"[1]Infrastructure!AF365","v":0},{"$f":"[1]Infrastructure!AG365","v":0},{"$f":"[1]Infrastructure!AH365","v":0},0]
[0,null,null,null,null,null,{"$f":"[1]Infrastructure!G366","v":0},{"$f":"[1]Infrastructure!H366","v":0},{"$f":"[1]Infrastructure!I366","v":0},{"$f":"[1]Infrastructure!J366","v":0},{"$f":"[1]Infrastructure!K366","v":0},{"$f":"[1]Infrastructure!L366","v":0},{"$f":"[1]Infrastructure!M366","v":0},{"$f":"[1]Infrastructure!N366","v":0},{"$f":"[1]Infrastructure!O366","v":0},{"$f":"[1]Infrastructure!Q366","v":0},{"$f":"[1]Infrastructure!R366","v":0},{"$f":"[1]Infrastructure!T366","v":0},{"$f":"[1]Infrastructure!W366","v":0},{"$f":"[1]Infrastructure!W366","v":0},0,{"$f":"[1]Infrastructure!Z366","v":0},{"$f":"[1]Infrastructure!Z366","v":0},0,{"$f":"[1]Infrastructure!AB366","v":0},{"$f":"[1]Infrastructure!AB366","v":0},0,{"$f":"[1]Infrastructure!AC366","v":0},{"$f":"[1]Infrastructure!AD366","v":0},{"$f":"[1]Infrastructure!AE366","v":0},{"$f":"[1]Infrastructure!AF366","v":0},{"$f":"[1]Infrastructure!AG366","v":0},{"$f":"[1]Infrastructure!AH366","v":0},0]
[0,null,null,null,null,null,{"$f":"[1]Infrastructure!G367","v":0},{"$f":"[1]Infrastructure!H367","v":0},{"$f":"[1]Infrastructure!I367","v":0},{"$f":"[1]Infrastructure!J367","v":0},{"$f":"[1]Infrastructure!K367","v":0},{"$f":"[1]Infrastructure!L367","v":0},{"$f":"[1]Infrastructure!M367","v":0},{"$f":"[1]Infrastructure!N367","v":0},{"$f":"[1]Infrastructure!O367","v":0},{"$f":"[1]Infrastructure!Q367","v":0},{"$f":"[1]Infrastructure!R367","v":0},{"$f":"[1]Infrastructure!T367","v":0},{"$f":"[1]Infrastructure!W367","v":0},{"$f":"[1]Infrastructure!W367","v":0},0,{"$f":"[1]Infrastructure!Z367","v":0},{"$f":"[1]Infrastructure!Z367","v":0},0,{"$f":"[1]Infrastructure!AB367","v":0},{"$f":"[1]Infrastructure!AB367","v":0},0,{"$f":"[1]Infrastructure!AC367","v":0},{"$f":"[1]Infrastructure!AD367","v":0},{"$f":"[1]Infrastructure!AE367","v":0},{"$f":"[1]Infrastructure!AF367","v":0},{"$f":"[1]Infrastructure!AG367","v":0},{"$f":"[1]Infrastructure!AH367","v":0},0]
[0,null,null,null,null,null,{"$f":"[1]Infrastructure!G368","v":0},{"$f":"[1]Infrastructure!H368","v":0},{"$f":"[1]Infrastructure!I368","v":0},{"$f":"[1]Infrastructure!J368","v":0},{"$f":"[1]Infrastructure!K368","v":0},{"$f":"[1]Infrastructure!L368","v":0},{"$f":"[1]Infrastructure!M368","v":0},{"$f":"[1]Infrastructure!N368","v":0},{"$f":"[1]Infrastructure!O368","v":0},{"$f":"[1]Infrastructure!Q368","v":0},{"$f":"[1]Infrastructure!R368","v":0},{"$f":"[1]Infrastructure!T368","v":0},{"$f":"[1]Infrastructure!W368","v":0},{"$f":"[1]Infrastructure!W368","v":0},0,{"$f":"[1]Infrastructure!Z368","v":0},{"$f":"[1]Infrastructure!Z368","v":0},0,{"$f":"[1]Infrastructure!AB368","v":0},{"$f":"[1]Infrastructure!AB368","v":0},0,{"$f":"[1]Infrastructure!AC368","v":0},{"$f":"[1]Infrastructure!AD368","v":0},{"$f":"[1]Infrastructure!AE368","v":0},{"$f":"[1]Infrastructure!AF368","v":0},{"$f":"[1]Infrastructure!AG368","v":0},{"$f":"[1]Infrastructure!AH368","v":0},0]
[0,null,null,null,null,null,{"$f":"[1]Infrastructure!G369","v":0},{"$f":"[1]Infrastructure!H369","v":0},{"$f":"[1]Infrastructure!I369","v":0},{"$f":"[1]Infrastructure!J369","v":0},{"$f":"[1]Infrastructure!K369","v":0},{"$f":"[1]Infrastructure!L369","v":0},{"$f":"[1]Infrastructure!M369","v":0},{"$f":"[1]Infrastructure!N369","v":0},{"$f":"[1]Infrastructure!O369","v":0},{"$f":"[1]Infrastructure!Q369","v":0},{"$f":"[1]Infrastructure!R369","v":0},{"$f":"[1]Infrastructure!T369","v":0},{"$f":"[1]Infrastructure!W369","v":0},{"$f":"[1]Infrastructure!W369","v":0},0,{"$f":"[1]Infrastructure!Z369","v":0},{"$f":"[1]Infrastructure!Z369","v":0},0,{"$f":"[1]Infrastructure!AB369","v":0},{"$f":"[1]Infrastructure!AB369","v":0},0,{"$f":"[1]Infrastructure!AC369","v":0},{"$f":"[1]Infrastructure!AD369","v":0},{"$f":"[1]Infrastructure!AE369","v":0},{"$f":"[1]Infrastructure!AF369","v":0},{"$f":"[1]Infrastructure!AG369","v":0},{"$f":"[1]Infrastructure!AH369","v":0},0]
[0,null,null,null,null,null,{"$f":"[1]Infrastructure!G370","v":0},{"$f":"[1]Infrastructure!H370","v":0},{"$f":"[1]Infrastructure!I370","v":0},{"$f":"[1]Infrastructure!J370","v":0},{"$f":"[1]Infrastructure!K370","v":0},{"$f":"[1]Infrastructure!L370","v":0},{"$f":"[1]Infrastructure!M370","v":0},{"$f":"[1]Infrastructure!N370","v":0},{"$f":"[1]Infrastructure!O370","v":0},{"$f":"[1]Infrastructure!Q370","v":0},{"$f":"[1]Infrastructure!R370","v":0},{"$f":"[1]Infrastructure!T370","v":0},{"$f":"[1]Infrastructure!W370","v":0},{"$f":"[1]Infrastructure!W370","v":0},0,{"$f":"[1]Infrastructure!Z370","v":0},{"$f":"[1]Infrastructure!Z370","v":0},0,{"$f":"[1]Infrastructure!AB370","v":0},{"$f":"[1]Infrastructure!AB370","v":0},0,{"$f":"[1]Infrastructure!AC370","v":0},{"$f":"[1]Infrastructure!AD370","v":0},{"$f":"[1]Infrastructure!AE370","v":0},{"$f":"[1]Infrastructure!AF370","v":0},{"$f":"[1]Infrastructure!AG370","v":0},{"$f":"[1]Infrastructure!AH370","v":0},0]
[0,null,null,null,null,null,{"$f":"[1]Infrastructure!G371","v":0},{"$f":"[1]Infrastructure!H371","v":0},{"$f":"[1]Infrastructure!I371","v":0},{"$f":"[1]Infrastructure!J371","v":0},{"$f":"[1]Infrastructure!K371","v":0},{"$f":"[1]Infrastructure!L371","v":0},{"$f":"[1]Infrastructure!M371","v":0},{"$f":"[1]Infrastructure!N371","v":0},{"$f":"[1]Infrastructure!O371","v":0},{"$f":"[1]Infrastructure!Q371","v":0},{"$f":"[1]Infrastructure!R371","v":0},{"$f":"[1]Infrastructure!T371","v":0},{"$f":"[1]Infrastructure!W371","v":0},{"$f":"[1]Infrastructure!W371","v":0},0,{"$f":"[1]Infrastructure!Z371","v":0},{"$f":"[1]Infrastructure!Z371","v":0},0,{"$f":"[1]Infrastructure!AB371","v":0},{"$f":"[1]Infrastructure!AB371","v":0},0,{"$f":"[1]Infrastructure!AC371","v":0},{"$f":"[1]Infrastructure!AD371","v":0},{"$f":"[1]Infrastructure!AE371","v":0},{"$f":"[1]Infrastructure!AF371","v":0},{"$f":"[1]Infrastructure!AG371","v":0},{"$f":"[1]Infrastructure!AH371","v":0},0]
[0,null,null,null,null,null,{"$f":"[1]Infrastructure!G372","v":0},{"$f":"[1]Infrastructure!H372","v":0},{"$f":"[1]Infrastructure!I372","v":0},{"$f":"[1]Infrastructure!J372","v":0},{"$f":"[1]Infrastructure!K372","v":0},{"$f":"[1]Infrastructure!L372","v":0},{"$f":"[1]Infrastructure!M372","v":0},{"$f":"[1]Infrastructure!N372","v":0},{"$f":"[1]Infrastructure!O372","v":0},{"$f":"[1]Infrastructure!Q372","v":0},{"$f":"[1]Infrastructure!R372","v":0},{"$f":"[1]Infrastructure!T372","v":0},{"$f":"[1]Infrastructure!W372","v":0},{"$f":"[1]Infrastructure!W372","v":0},0,{"$f":"[1]Infrastructure!Z372","v":0},{"$f":"[1]Infrastructure!Z372","v":0},0,{"$f":"[1]Infrastructure!AB372","v":0},{"$f":"[1]Infrastructure!AB372","v":0},0,{"$f":"[1]Infrastructure!AC372","v":0},{"$f":"[1]Infrastructure!AD372","v":0},{"$f":"[1]Infrastructure!AE372","v":0},{"$f":"[1]Infrastructure!AF372","v":0},{"$f":"[1]Infrastructure!AG372","v":0},{"$f":"[1]Infrastructure!AH372","v":0},0]
[0,null,null,null,null,null,{"$f":"[1]Infrastructure!G373","v":0},{"$f":"[1]Infrastructure!H373","v":0},{"$f":"[1]Infrastructure!I373","v":0},{"$f":"[1]Infrastructure!J373","v":0},{"$f":"[1]Infrastructure!K373","v":0},{"$f":"[1]Infrastructure!L373","v":0},{"$f":"[1]Infrastructure!M373","v":0},{"$f":"[1]Infrastructure!N373","v":0},{"$f":"[1]Infrastructure!O373","v":0},{"$f":"[1]Infrastructure!Q373","v":0},{"$f":"[1]Infrastructure!R373","v":0},{"$f":"[1]Infrastructure!T373","v":0},{"$f":"[1]Infrastructure!W373","v":0},{"$f":"[1]Infrastructure!W373","v":0},0,{"$f":"[1]Infrastructure!Z373","v":0},{"$f":"[1]Infrastructure!Z373","v":0},0,{"$f":"[1]Infrastructure!AB373","v":0},{"$f":"[1]Infrastructure!AB373","v":0},0,{"$f":"[1]Infrastructure!AC373","v":0},{"$f":"[1]Infrastructure!AD373","v":0},{"$f":"[1]Infrastructure!AE373","v":0},{"$f":"[1]Infrastructure!AF373","v":0},{"$f":"[1]Infrastructure!AG373","v":0},{"$f":"[1]Infrastructure!AH373","v":0},0]
[0,null,null,null,null,null,{"$f":"[1]Infrastructure!G374","v":0},{"$f":"[1]Infrastructure!H374","v":0},{"$f":"[1]Infrastructure!I374","v":0},{"$f":"[1]Infrastructure!J374","v":0},{"$f":"[1]Infrastructure!K374","v":0},{"$f":"[1]Infrastructure!L374","v":0},{"$f":"[1]Infrastructure!M374","v":0},{"$f":"[1]Infrastructure!N374","v":0},{"$f":"[1]Infrastructure!O374","v":0},{"$f":"[1]Infrastructure!Q374","v":0},{"$f":"[1]Infrastructure!R374","v":0},{"$f":"[1]Infrastructure!T374","v":0},{"$f":"[1]Infrastructure!W374","v":0},{"$f":"[1]Infrastructure!W374","v":0},0,{"$f":"[1]Infrastructure!Z374","v":0},{"$f":"[1]Infrastructure!Z374","v":0},0,{"$f":"[1]Infrastructure!AB374","v":0},{"$f":"[1]Infrastructure!AB374","v":0},0,{"$f":"[1]Infrastructure!AC374","v":0},{"$f":"[1]Infrastructure!AD374","v":0},{"$f":"[1]Infrastructure!AE374","v":0},{"$f":"[1]Infrastructure!AF374","v":0},{"$f":"[1]Infrastructure!AG374","v":0},{"$f":"[1]Infrastructure!AH374","v":0},0]
[0,null,null,null,null,null,{"$f":"[1]Infrastructure!G375","v":0},{"$f":"[1]Infrastructure!H375","v":0},{"$f":"[1]Infrastructure!I375","v":0},{"$f":"[1]Infrastructure!J375","v":0},{"$f":"[1]Infrastructure!K375","v":0},{"$f":"[1]Infrastructure!L375","v":0},{"$f":"[1]Infrastructure!M375","v":0},{"$f":"[1]Infrastructure!N375","v":0},{"$f":"[1]Infrastructure!O375","v":0},{"$f":"[1]Infrastructure!Q375","v":0},{"$f":"[1]Infrastructure!R375","v":0},{"$f":"[1]Infrastructure!T375","v":0},{"$f":"[1]Infrastructure!W375","v":0},{"$f":"[1]Infrastructure!W375","v":0},0,{"$f":"[1]Infrastructure!Z375","v":0},{"$f":"[1]Infrastructure!Z375","v":0},0,{"$f":"[1]Infrastructure!AB375","v":0},{"$f":"[1]Infrastructure!AB375","v":0},0,{"$f":"[1]Infrastructure!AC375","v":0},{"$f":"[1]Infrastructure!AD375","v":0},{"$f":"[1]Infrastructure!AE375","v":0},{"$f":"[1]Infrastructure!AF375","v":0},{"$f":"[1]Infrastructure!AG375","v":0},{"$f":"[1]Infrastructure!AH375","v":0},0]
[0,null,null,null,null,null,{"$f":"[1]Infrastructure!G376","v":0},{"$f":"[1]Infrastructure!H376","v":0},{"$f":"[1]Infrastructure!I376","v":0},{"$f":"[1]Infrastructure!J376","v":0},{"$f":"[1]Infrastructure!K376","v":0},{"$f":"[1]Infrastructure!L376","v":0},{"$f":"[1]Infrastructure!M376","v":0},{"$f":"[1]Infrastructure!N376","v":0},{"$f":"[1]Infrastructure!O376","v":0},{"$f":"[1]Infrastructure!Q376","v":0},{"$f":"[1]Infrastructure!R376","v":0},{"$f":"[1]Infrastructure!T376","v":0},{"$f":"[1]Infrastructure!W376","v":0},{"$f":"[1]Infrastructure!W376","v":0},0,{"$f":"[1]Infrastructure!Z376","v":0},{"$f":"[1]Infrastructure!Z376","v":0},0,{"$f":"[1]Infrastructure!AB376","v":0},{"$f":"[1]Infrastructure!AB376","v":0},0,{"$f":"[1]Infrastructure!AC376","v":0},{"$f":"[1]Infrastructure!AD376","v":0},{"$f":"[1]Infrastructure!AE376","v":0},{"$f":"[1]Infrastructure!AF376","v":0},{"$f":"[1]Infrastructure!AG376","v":0},{"$f":"[1]Infrastructure!AH376","v":0},0]
[0,null,null,null,null,null,{"$f":"[1]Infrastructure!G377","v":0},{"$f":"[1]Infrastructure!H377","v":0},{"$f":"[1]Infrastructure!I377","v":0},{"$f":"[1]Infrastructure!J377","v":0},{"$f":"[1]Infrastructure!K377","v":0},{"$f":"[1]Infrastructure!L377","v":0},{"$f":"[1]Infrastructure!M377","v":0},{"$f":"[1]Infrastructure!N377","v":0},{"$f":"[1]Infrastructure!O377","v":0},{"$f":"[1]Infrastructure!Q377","v":0},{"$f":"[1]Infrastructure!R377","v":0},{"$f":"[1]Infrastructure!T377","v":0},{"$f":"[1]Infrastructure!W377","v":0},{"$f":"[1]Infrastructure!W377","v":0},0,{"$f":"[1]Infrastructure!Z377","v":0},{"$f":"[1]Infrastructure!Z377","v":0},0,{"$f":"[1]Infrastructure!AB377","v":0},{"$f":"[1]Infrastructure!AB377","v":0},0,{"$f":"[1]Infrastructure!AC377","v":0},{"$f":"[1]Infrastructure!AD377","v":0},{"$f":"[1]Infrastructure!AE377","v":0},{"$f":"[1]Infrastructure!AF377","v":0},{"$f":"[1]Infrastructure!AG377","v":0},{"$f":"[1]Infrastructure!AH377","v":0},0]
[0,null,null,null,null,null,{"$f":"[1]Infrastructure!G378","v":0},{"$f":"[1]Infrastructure!H378","v":0},{"$f":"[1]Infrastructure!I378","v":0},{"$f":"[1]Infrastructure!J378","v":0},{"$f":"[1]Infrastructure!K378","v":0},{"$f":"[1]Infrastructure!L378","v":0},{"$f":"[1]Infrastructure!M378","v":0},{"$f":"[1]Infrastructure!N378","v":0},{"$f":"[1]Infrastructure!O378","v":0},{"$f":"[1]Infrastructure!Q378","v":0},{"$f":"[1]Infrastructure!R378","v":0},{"$f":"[1]Infrastructure!T378","v":0},{"$f":"[1]Infrastructure!W378","v":0},{"$f":"[1]Infrastructure!W378","v":0},0,{"$f":"[1]Infrastructure!Z378","v":0},{"$f":"[1]Infrastructure!Z378","v":0},0,{"$f":"[1]Infrastructure!AB378","v":0},{"$f":"[1]Infrastructure!AB378","v":0},0,{"$f":"[1]Infrastructure!AC378","v":0},{"$f":"[1]Infrastructure!AD378","v":0},{"$f":"[1]Infrastructure!AE378","v":0},{"$f":"[1]Infrastructure!AF378","v":0},{"$f":"[1]Infrastructure!AG378","v":0},{"$f":"[1]Infrastructure!AH378","v":0},0]
[0,null,null,null,null,null,{"$f":"[1]Infrastructure!G379","v":0},{"$f":"[1]Infrastructure!H379","v":0},{"$f":"[1]Infrastructure!I379","v":0},{"$f":"[1]Infrastructure!J379","v":0},{"$f":"[1]Infrastructure!K379","v":0},{"$f":"[1]Infrastructure!L379","v":0},{"$f":"[1]Infrastructure!M379","v":0},{"$f":"[1]Infrastructure!N379","v":0},{"$f":"[1]Infrastructure!O379","v":0},{"$f":"[1]Infrastructure!Q379","v":0},{"$f":"[1]Infrastructure!R379","v":0},{"$f":"[1]Infrastructure!T379","v":0},{"$f":"[1]Infrastructure!W379","v":0},{"$f":"[1]Infrastructure!W379","v":0},0,{"$f":"[1]Infrastructure!Z379","v":0},{"$f":"[1]Infrastructure!Z379","v":0},0,{"$f":"[1]Infrastructure!AB379","v":0},{"$f":"[1]Infrastructure!AB379","v":0},0,{"$f":"[1]Infrastructure!AC379","v":0},{"$f":"[1]Infrastructure!AD379","v":0},{"$f":"[1]Infrastructure!AE379","v":0},{"$f":"[1]Infrastructure!AF379","v":0},{"$f":"[1]Infrastructure!AG379","v":0},{"$f":"[1]Infrastructure!AH379","v":0},0]
[0,null,null,null,null,null,{"$f":"[1]Infrastructure!G380","v":0},{"$f":"[1]Infrastructure!H380","v":0},{"$f":"[1]Infrastructure!I380","v":0},{"$f":"[1]Infrastructure!J380","v":0},{"$f":"[1]Infrastructure!K380","v":0},{"$f":"[1]Infrastructure!L380","v":0},{"$f":"[1]Infrastructure!M380","v":0},{"$f":"[1]Infrastructure!N380","v":0},{"$f":"[1]Infrastructure!O380","v":0},{"$f":"[1]Infrastructure!Q380","v":0},{"$f":"[1]Infrastructure!R380","v":0},{"$f":"[1]Infrastructure!T380","v":0},{"$f":"[1]Infrastructure!W380","v":0},{"$f":"[1]Infrastructure!W380","v":0},0,{"$f":"[1]Infrastructure!Z380","v":0},{"$f":"[1]Infrastructure!Z380","v":0},0,{"$f":"[1]Infrastructure!AB380","v":0},{"$f":"[1]Infrastructure!AB380","v":0},0,{"$f":"[1]Infrastructure!AC380","v":0},{"$f":"[1]Infrastructure!AD380","v":0},{"$f":"[1]Infrastructure!AE380","v":0},{"$f":"[1]Infrastructure!AF380","v":0},{"$f":"[1]Infrastructure!AG380","v":0},{"$f":"[1]Infrastructure!AH380","v":0},0]
[0,null,null,null,null,null,{"$f":"[1]Infrastructure!G381","v":0},{"$f":"[1]Infrastructure!H381","v":0},{"$f":"[1]Infrastructure!I381","v":0},{"$f":"[1]Infrastructure!J381","v":0},{"$f":"[1]Infrastructure!K381","v":0},{"$f":"[1]Infrastructure!L381","v":0},{"$f":"[1]Infrastructure!M381","v":0},{"$f":"[1]Infrastructure!N381","v":0},{"$f":"[1]Infrastructure!O381","v":0},{"$f":"[1]Infrastructure!Q381","v":0},{"$f":"[1]Infrastructure!R381","v":0},{"$f":"[1]Infrastructure!T381","v":0},{"$f":"[1]Infrastructure!W381","v":0},{"$f":"[1]Infrastructure!W381","v":0},0,{"$f":"[1]Infrastructure!Z381","v":0},{"$f":"[1]Infrastructure!Z381","v":0},0,{"$f":"[1]Infrastructure!AB381","v":0},{"$f":"[1]Infrastructure!AB381","v":0},0,{"$f":"[1]Infrastructure!AC381","v":0},{"$f":"[1]Infrastructure!AD381","v":0},{"$f":"[1]Infrastructure!AE381","v":0},{"$f":"[1]Infrastructure!AF381","v":0},{"$f":"[1]Infrastructure!AG381","v":0},{"$f":"[1]Infrastructure!AH381","v":0},0]
[0,null,null,null,null,null,{"$f":"[1]Infrastructure!G382","v":0},{"$f":"[1]Infrastructure!H382","v":0},{"$f":"[1]Infrastructure!I382","v":0},{"$f":"[1]Infrastructure!J382","v":0},{"$f":"[1]Infrastructure!K382","v":0},{"$f":"[1]Infrastructure!L382","v":0},{"$f":"[1]Infrastructure!M382","v":0},{"$f":"[1]Infrastructure!N382","v":0},{"$f":"[1]Infrastructure!O382","v":0},{"$f":"[1]Infrastructure!Q382","v":0},{"$f":"[1]Infrastructure!R382","v":0},{"$f":"[1]Infrastructure!T382","v":0},{"$f":"[1]Infrastructure!W382","v":0},{"$f":"[1]Infrastructure!W382","v":0},0,{"$f":"[1]Infrastructure!Z382","v":0},{"$f":"[1]Infrastructure!Z382","v":0},0,{"$f":"[1]Infrastructure!AB382","v":0},{"$f":"[1]Infrastructure!AB382","v":0},0,{"$f":"[1]Infrastructure!AC382","v":0},{"$f":"[1]Infrastructure!AD382","v":0},{"$f":"[1]Infrastructure!AE382","v":0},{"$f":"[1]Infrastructure!AF382","v":0},{"$f":"[1]Infrastructure!AG382","v":0},{"$f":"[1]Infrastructure!AH382","v":0},0]
[0,null,null,null,null,null,{"$f":"[1]Infrastructure!G383","v":0},{"$f":"[1]Infrastructure!H383","v":0},{"$f":"[1]Infrastructure!I383","v":0},{"$f":"[1]Infrastructure!J383","v":0},{"$f":"[1]Infrastructure!K383","v":0},{"$f":"[1]Infrastructure!L383","v":0},{"$f":"[1]Infrastructure!M383","v":0},{"$f":"[1]Infrastructure!N383","v":0},{"$f":"[1]Infrastructure!O383","v":0},{"$f":"[1]Infrastructure!Q383","v":0},{"$f":"[1]Infrastructure!R383","v":0},{"$f":"[1]Infrastructure!T383","v":0},{"$f":"[1]Infrastructure!W383","v":0},{"$f":"[1]Infrastructure!W383","v":0},0,{"$f":"[1]Infrastructure!Z383","v":0},{"$f":"[1]Infrastructure!Z383","v":0},0,{"$f":"[1]Infrastructure!AB383","v":0},{"$f":"[1]Infrastructure!AB383","v":0},0,{"$f":"[1]Infrastructure!AC383","v":0},{"$f":"[1]Infrastructure!AD383","v":0},{"$f":"[1]Infrastructure!AE383","v":0},{"$f":"[1]Infrastructure!AF383","v":0},{"$f":"[1]Infrastructure!AG383","v":0},{"$f":"[1]Infrastructure!AH383","v":0},0]
[0,null,null,null,null,null,{"$f":"[1]Infrastructure!G384","v":0},{"$f":"[1]Infrastructure!H384","v":0},{"$f":"[1]Infrastructure!I384","v":0},{"$f":"[1]Infrastructure!J384","v":0},{"$f":"[1]Infrastructure!K384","v":0},{"$f":"[1]Infrastructure!L384","v":0},{"$f":"[1]Infrastructure!M384","v":0},{"$f":"[1]Infrastructure!N384","v":0},{"$f":"[1]Infrastructure!O384","v":0},{"$f":"[1]Infrastructure!Q384","v":0},{"$f":"[1]Infrastructure!R384","v":0},{"$f":"[1]Infrastructure!T384","v":0},{"$f":"[1]Infrastructure!W384","v":0},{"$f":"[1]Infrastructure!W384","v":0},0,{"$f":"[1]Infrastructure!Z384","v":0},{"$f":"[1]Infrastructure!Z384","v":0},0,{"$f":"[1]Infrastructure!AB384","v":0},{"$f":"[1]Infrastructure!AB384","v":0},0,{"$f":"[1]Infrastructure!AC384","v":0},{"$f":"[1]Infrastructure!AD384","v":0},{"$f":"[1]Infrastructure!AE384","v":0},{"$f":"[1]Infrastructure!AF384","v":0},{"$f":"[1]Infrastructure!AG384","v":0},{"$f":"[1]Infrastructure!AH384","v":0},0]
[0,null,null,null,null,null,{"$f":"[1]Infrastructure!G385","v":0},{"$f":"[1]Infrastructure!H385","v":0},{"$f":"[1]Infrastructure!I385","v":0},{"$f":"[1]Infrastructure!J385","v":0},{"$f":"[1]Infrastructure!K385","v":0},{"$f":"[1]Infrastructure!L385","v":0},{"$f":"[1]Infrastructure!M385","v":0},{"$f":"[1]Infrastructure!N385","v":0},{"$f":"[1]Infrastructure!O385","v":0},{"$f":"[1]Infrastructure!Q385","v":0},{"$f":"[1]Infrastructure!R385","v":0},{"$f":"[1]Infrastructure!T385","v":0},{"$f":"[1]Infrastructure!W385","v":0},{"$f":"[1]Infrastructure!W385","v":0},0,{"$f":"[1]Infrastructure!Z385","v":0},{"$f":"[1]Infrastructure!Z385","v":0},0,{"$f":"[1]Infrastructure!AB385","v":0},{"$f":"[1]Infrastructure!AB385","v":0},0,{"$f":"[1]Infrastructure!AC385","v":0},{"$f":"[1]Infrastructure!AD385","v":0},{"$f":"[1]Infrastructure!AE385","v":0},{"$f":"[1]Infrastructure!AF385","v":0},{"$f":"[1]Infrastructure!AG385","v":0},{"$f":"[1]Infrastructure!AH385","v":0},0]
[0,null,null,null,null,null,{"$f":"[1]Infrastructure!G386","v":0},{"$f":"[1]Infrastructure!H386","v":0},{"$f":"[1]Infrastructure!I386","v":0},{"$f":"[1]Infrastructure!J386","v":0},{"$f":"[1]Infrastructure!K386","v":0},{"$f":"[1]Infrastructure!L386","v":0},{"$f":"[1]Infrastructure!M386","v":0},{"$f":"[1]Infrastructure!N386","v":0},{"$f":"[1]Infrastructure!O386","v":0},{"$f":"[1]Infrastructure!Q386","v":0},{"$f":"[1]Infrastructure!R386","v":0},{"$f":"[1]Infrastructure!T386","v":0},{"$f":"[1]Infrastructure!W386","v":0},{"$f":"[1]Infrastructure!W386","v":0},0,{"$f":"[1]Infrastructure!Z386","v":0},{"$f":"[1]Infrastructure!Z386","v":0},0,{"$f":"[1]Infrastructure!AB386","v":0},{"$f":"[1]Infrastructure!AB386","v":0},0,{"$f":"[1]Infrastructure!AC386","v":0},{"$f":"[1]Infrastructure!AD386","v":0},{"$f":"[1]Infrastructure!AE386","v":0},{"$f":"[1]Infrastructure!AF386","v":0},{"$f":"[1]Infrastructure!AG386","v":0},{"$f":"[1]Infrastructure!AH386","v":0},0]
[0,null,null,null,null,null,{"$f":"[1]Infrastructure!G387","v":0},{"$f":"[1]Infrastructure!H387","v":0},{"$f":"[1]Infrastructure!I387","v":0},{"$f":"[1]Infrastructure!J387","v":0},{"$f":"[1]Infrastructure!K387","v":0},{"$f":"[1]Infrastructure!L387","v":0},{"$f":"[1]Infrastructure!M387","v":0},{"$f":"[1]Infrastructure!N387","v":0},{"$f":"[1]Infrastructure!O387","v":0},{"$f":"[1]Infrastructure!Q387","v":0},{"$f":"[1]Infrastructure!R387","v":0},{"$f":"[1]Infrastructure!T387","v":0},{"$f":"[1]Infrastructure!W387","v":0},{"$f":"[1]Infrastructure!W387","v":0},0,{"$f":"[1]Infrastructure!Z387","v":0},{"$f":"[1]Infrastructure!Z387","v":0},0,{"$f":"[1]Infrastructure!AB387","v":0},{"$f":"[1]Infrastructure!AB387","v":0},0,{"$f":"[1]Infrastructure!AC387","v":0},{"$f":"[1]Infrastructure!AD387","v":0},{"$f":"[1]Infrastructure!AE387","v":0},{"$f":"[1]Infrastructure!AF387","v":0},{"$f":"[1]Infrastructure!AG387","v":0},{"$f":"[1]Infrastructure!AH387","v":0},0]
[0,null,null,null,null,null,{"$f":"[1]Infrastructure!G388","v":0},{"$f":"[1]Infrastructure!H388","v":0},{"$f":"[1]Infrastructure!I388","v":0},{"$f":"[1]Infrastructure!J388","v":0},{"$f":"[1]Infrastructure!K388","v":0},{"$f":"[1]Infrastructure!L388","v":0},{"$f":"[1]Infrastructure!M388","v":0},{"$f":"[1]Infrastructure!N388","v":0},{"$f":"[1]Infrastructure!O388","v":0},{"$f":"[1]Infrastructure!Q388","v":0},{"$f":"[1]Infrastructure!R388","v":0},{"$f":"[1]Infrastructure!T388","v":0},{"$f":"[1]Infrastructure!W388","v":0},{"$f":"[1]Infrastructure!W388","v":0},0,{"$f":"[1]Infrastructure!Z388","v":0},{"$f":"[1]Infrastructure!Z388","v":0},0,{"$f":"[1]Infrastructure!AB388","v":0},{"$f":"[1]Infrastructure!AB388","v":0},0,{"$f":"[1]Infrastructure!AC388","v":0},{"$f":"[1]Infrastructure!AD388","v":0},{"$f":"[1]Infrastructure!AE388","v":0},{"$f":"[1]Infrastructure!AF388","v":0},{"$f":"[1]Infrastructure!AG388","v":0},{"$f":"[1]Infrastructure!AH388","v":0},0]
[0,null,null,null,null,null,{"$f":"[1]Infrastructure!G389","v":0},{"$f":"[1]Infrastructure!H389","v":0},{"$f":"[1]Infrastructure!I389","v":0},{"$f":"[1]Infrastructure!J389","v":0},{"$f":"[1]Infrastructure!K389","v":0},{"$f":"[1]Infrastructure!L389","v":0},{"$f":"[1]Infrastructure!M389","v":0},{"$f":"[1]Infrastructure!N389","v":0},{"$f":"[1]Infrastructure!O389","v":0},{"$f":"[1]Infrastructure!Q389","v":0},{"$f":"[1]Infrastructure!R389","v":0},{"$f":"[1]Infrastructure!T389","v":0},{"$f":"[1]Infrastructure!W389","v":0},{"$f":"[1]Infrastructure!W389","v":0},0,{"$f":"[1]Infrastructure!Z389","v":0},{"$f":"[1]Infrastructure!Z389","v":0},0,{"$f":"[1]Infrastructure!AB389","v":0},{"$f":"[1]Infrastructure!AB389","v":0},0,{"$f":"[1]Infrastructure!AC389","v":0},{"$f":"[1]Infrastructure!AD389","v":0},{"$f":"[1]Infrastructure!AE389","v":0},{"$f":"[1]Infrastructure!AF389","v":0},{"$f":"[1]Infrastructure!AG389","v":0},{"$f":"[1]Infrastructure!AH389","v":0},0]
[0,null,null,null,null,null,{"$f":"[1]Infrastructure!G390","v":0},{"$f":"[1]Infrastructure!H390","v":0},{"$f":"[1]Infrastructure!I390","v":0},{"$f":"[1]Infrastructure!J390","v":0},{"$f":"[1]Infrastructure!K390","v":0},{"$f":"[1]Infrastructure!L390","v":0},{"$f":"[1]Infrastructure!M390","v":0},{"$f":"[1]Infrastructure!N390","v":0},{"$f":"[1]Infrastructure!O390","v":0},{"$f":"[1]Infrastructure!Q390","v":0},{"$f":"[1]Infrastructure!R390","v":0},{"$f":"[1]Infrastructure!T390","v":0},{"$f":"[1]Infrastructure!W390","v":0},{"$f":"[1]Infrastructure!W390","v":0},0,{"$f":"[1]Infrastructure!Z390","v":0},{"$f":"[1]Infrastructure!Z390","v":0},0,{"$f":"[1]Infrastructure!AB390","v":0},{"$f":"[1]Infrastructure!AB390","v":0},0,{"$f":"[1]Infrastructure!AC390","v":0},{"$f":"[1]Infrastructure!AD390","v":0},{"$f":"[1]Infrastructure!AE390","v":0},{"$f":"[1]Infrastructure!AF390","v":0},{"$f":"[1]Infrastructure!AG390","v":0},{"$f":"[1]Infrastructure!AH390","v":0},0]
[0,null,null,null,null,null,{"$f":"[1]Infrastructure!G391","v":0},{"$f":"[1]Infrastructure!H391","v":0},{"$f":"[1]Infrastructure!I391","v":0},{"$f":"[1]Infrastructure!J391","v":0},{"$f":"[1]Infrastructure!K391","v":0},{"$f":"[1]Infrastructure!L391","v":0},{"$f":"[1]Infrastructure!M391","v":0},{"$f":"[1]Infrastructure!N391","v":0},{"$f":"[1]Infrastructure!O391","v":0},{"$f":"[1]Infrastructure!Q391","v":0},{"$f":"[1]Infrastructure!R391","v":0},{"$f":"[1]Infrastructure!T391","v":0},{"$f":"[1]Infrastructure!W391","v":0},{"$f":"[1]Infrastructure!W391","v":0},0,{"$f":"[1]Infrastructure!Z391","v":0},{"$f":"[1]Infrastructure!Z391","v":0},0,{"$f":"[1]Infrastructure!AB391","v":0},{"$f":"[1]Infrastructure!AB391","v":0},0,{"$f":"[1]Infrastructure!AC391","v":0},{"$f":"[1]Infrastructure!AD391","v":0},{"$f":"[1]Infrastructure!AE391","v":0},{"$f":"[1]Infrastructure!AF391","v":0},{"$f":"[1]Infrastructure!AG391","v":0},{"$f":"[1]Infrastructure!AH391","v":0},0]
[0,null,null,null,null,null,{"$f":"[1]Infrastructure!G392","v":0},{"$f":"[1]Infrastructure!H392","v":0},{"$f":"[1]Infrastructure!I392","v":0},{"$f":"[1]Infrastructure!J392","v":0},{"$f":"[1]Infrastructure!K392","v":0},{"$f":"[1]Infrastructure!L392","v":0},{"$f":"[1]Infrastructure!M392","v":0},{"$f":"[1]Infrastructure!N392","v":0},{"$f":"[1]Infrastructure!O392","v":0},{"$f":"[1]Infrastructure!Q392","v":0},{"$f":"[1]Infrastructure!R392","v":0},{"$f":"[1]Infrastructure!T392","v":0},{"$f":"[1]Infrastructure!W392","v":0},{"$f":"[1]Infrastructure!W392","v":0},0,{"$f":"[1]Infrastructure!Z392","v":0},{"$f":"[1]Infrastructure!Z392","v":0},0,{"$f":"[1]Infrastructure!AB392","v":0},{"$f":"[1]Infrastructure!AB392","v":0},0,{"$f":"[1]Infrastructure!AC392","v":0},{"$f":"[1]Infrastructure!AD392","v":0},{"$f":"[1]Infrastructure!AE392","v":0},{"$f":"[1]Infrastructure!AF392","v":0},{"$f":"[1]Infrastructure!AG392","v":0},{"$f":"[1]Infrastructure!AH392","v":0},0]
[0,null,null,null,null,null,{"$f":"[1]Infrastructure!G393","v":0},{"$f":"[1]Infrastructure!H393","v":0},{"$f":"[1]Infrastructure!I393","v":0},{"$f":"[1]Infrastructure!J393","v":0},{"$f":"[1]Infrastructure!K393","v":0},{"$f":"[1]Infrastructure!L393","v":0},{"$f":"[1]Infrastructure!M393","v":0},{"$f":"[1]Infrastructure!N393","v":0},{"$f":"[1]Infrastructure!O393","v":0},{"$f":"[1]Infrastructure!Q393","v":0},{"$f":"[1]Infrastructure!R393","v":0},{"$f":"[1]Infrastructure!T393","v":0},{"$f":"[1]Infrastructure!W393","v":0},{"$f":"[1]Infrastructure!W393","v":0},0,{"$f":"[1]Infrastructure!Z393","v":0},{"$f":"[1]Infrastructure!Z393","v":0},0,{"$f":"[1]Infrastructure!AB393","v":0},{"$f":"[1]Infrastructure!AB393","v":0},0,{"$f":"[1]Infrastructure!AC393","v":0},{"$f":"[1]Infrastructure!AD393","v":0},{"$f":"[1]Infrastructure!AE393","v":0},{"$f":"[1]Infrastructure!AF393","v":0},{"$f":"[1]Infrastructure!AG393","v":0},{"$f":"[1]Infrastructure!AH393","v":0},0]
[0,null,null,null,null,null,{"$f":"[1]Infrastructure!G394","v":0},{"$f":"[1]Infrastructure!H394","v":0},{"$f":"[1]Infrastructure!I394","v":0},{"$f":"[1]Infrastructure!J394","v":0},{"$f":"[1]Infrastructure!K394","v":0},{"$f":"[1]Infrastructure!L394","v":0},{"$f":"[1]Infrastructure!M394","v":0},{"$f":"[1]Infrastructure!N394","v":0},{"$f":"[1]Infrastructure!O394","v":0},{"$f":"[1]Infrastructure!Q394","v":0},{"$f":"[1]Infrastructure!R394","v":0},{"$f":"[1]Infrastructure!T394","v":0},{"$f":"[1]Infrastructure!W394","v":0},{"$f":"[1]Infrastructure!W394","v":0},0,{"$f":"[1]Infrastructure!Z394","v":0},{"$f":"[1]Infrastructure!Z394","v":0},0,{"$f":"[1]Infrastructure!AB394","v":0},{"$f":"[1]Infrastructure!AB394","v":0},0,{"$f":"[1]Infrastructure!AC394","v":0},{"$f":"[1]Infrastructure!AD394","v":0},{"$f":"[1]Infrastructure!AE394","v":0},{"$f":"[1]Infrastructure!AF394","v":0},{"$f":"[1]Infrastructure!AG394","v":0},{"$f":"[1]Infrastructure!AH394","v":0},0]
[0,null,null,null,null,null,{"$f":"[1]Infrastructure!G395","v":0},{"$f":"[1]Infrastructure!H395","v":0},{"$f":"[1]Infrastructure!I395","v":0},{"$f":"[1]Infrastructure!J395","v":0},{"$f":"[1]Infrastructure!K395","v":0},{"$f":"[1]Infrastructure!L395","v":0},{"$f":"[1]Infrastructure!M395","v":0},{"$f":"[1]Infrastructure!N395","v":0},{"$f":"[1]Infrastructure!O395","v":0},{"$f":"[1]Infrastructure!Q395","v":0},{"$f":"[1]Infrastructure!R395","v":0},{"$f":"[1]Infrastructure!T395","v":0},{"$f":"[1]Infrastructure!W395","v":0},{"$f":"[1]Infrastructure!W395","v":0},0,{"$f":"[1]Infrastructure!Z395","v":0},{"$f":"[1]Infrastructure!Z395","v":0},0,{"$f":"[1]Infrastructure!AB395","v":0},{"$f":"[1]Infrastructure!AB395","v":0},0,{"$f":"[1]Infrastructure!AC395","v":0},{"$f":"[1]Infrastructure!AD395","v":0},{"$f":"[1]Infrastructure!AE395","v":0},{"$f":"[1]Infrastructure!AF395","v":0},{"$f":"[1]Infrastructure!AG395","v":0},{"$f":"[1]Infrastructure!AH395","v":0},0]
[{"$f":"IF(SUM(O396:AH396),1,0)","v":0},null,null,null,null,null,{"$f":"[1]Infrastructure!G396","v":0},{"$f":"[1]Infrastructure!H396","v":0},{"$f":"[1]Infrastructure!I396","v":0},{"$f":"[1]Infrastructure!J396","v":0},{"$f":"[1]Infrastructure!K396","v":0},{"$f":"[1]Infrastructure!L396","v":0},{"$f":"[1]Infrastructure!M396","v":0},{"$f":"[1]Infrastructure!N396","v":0},{"$f":"[1]Infrastructure!O396","v":0},{"$f":"[1]Infrastructure!Q396","v":0},{"$f":"[1]Infrastructure!R396","v":0},{"$f":"[1]Infrastructure!T396","v":0},{"$f":"[1]Infrastructure!W396","v":0},{"$f":"[1]Infrastructure!W396","v":0},{"$f":"SUM(T396-S396)","v":0},{"$f":"[1]Infrastructure!Z396","v":0},{"$f":"[1]Infrastructure!Z396","v":0},{"$f":"SUM(W396-V396)","v":0},{"$f":"[1]Infrastructure!AB396","v":0},{"$f":"[1]Infrastructure!AB396","v":0},{"$f":"SUM(Z396-Y396)","v":0},{"$f":"[1]Infrastructure!AC396","v":0},{"$f":"[1]Infrastructure!AD396","v":0},{"$f":"[1]Infrastructure!AE396","v":0},{"$f":"[1]Infrastructure!AF396","v":0},{"$f":"[1]Infrastructure!AG396","v":0},{"$f":"[1]Infrastructure!AH396","v":0},0]
[0,null,null,null,null,null,{"$f":"[1]Infrastructure!G397","v":0},{"$f":"[1]Infrastructure!H397","v":0},{"$f":"[1]Infrastructure!I397","v":0},{"$f":"[1]Infrastructure!J397","v":0},{"$f":"[1]Infrastructure!K397","v":0},{"$f":"[1]Infrastructure!L397","v":0},{"$f":"[1]Infrastructure!M397","v":0},{"$f":"[1]Infrastructure!N397","v":0},{"$f":"[1]Infrastructure!O397","v":0},{"$f":"[1]Infrastructure!Q397","v":0},{"$f":"[1]Infrastructure!R397","v":0},{"$f":"[1]Infrastructure!T397","v":0},{"$f":"[1]Infrastructure!W397","v":0},{"$f":"[1]Infrastructure!W397","v":0},0,{"$f":"[1]Infrastructure!Z397","v":0},{"$f":"[1]Infrastructure!Z397","v":0},0,{"$f":"[1]Infrastructure!AB397","v":0},{"$f":"[1]Infrastructure!AB397","v":0},0,{"$f":"[1]Infrastructure!AC397","v":0},{"$f":"[1]Infrastructure!AD397","v":0},{"$f":"[1]Infrastructure!AE397","v":0},{"$f":"[1]Infrastructure!AF397","v":0},{"$f":"[1]Infrastructure!AG397","v":0},{"$f":"[1]Infrastructure!AH397","v":0},0]
[0,null,null,null,null,null,{"$f":"[1]Infrastructure!G398","v":0},{"$f":"[1]Infrastructure!H398","v":0},{"$f":"[1]Infrastructure!I398","v":0},{"$f":"[1]Infrastructure!J398","v":0},{"$f":"[1]Infrastructure!K398","v":0},{"$f":"[1]Infrastructure!L398","v":0},{"$f":"[1]Infrastructure!M398","v":0},{"$f":"[1]Infrastructure!N398","v":0},{"$f":"[1]Infrastructure!O398","v":0},{"$f":"[1]Infrastructure!Q398","v":0},{"$f":"[1]Infrastructure!R398","v":0},{"$f":"[1]Infrastructure!T398","v":0},{"$f":"[1]Infrastructure!W398","v":0},{"$f":"[1]Infrastructure!W398","v":0},0,{"$f":"[1]Infrastructure!Z398","v":0},{"$f":"[1]Infrastructure!Z398","v":0},0,{"$f":"[1]Infrastructure!AB398","v":0},{"$f":"[1]Infrastructure!AB398","v":0},0,{"$f":"[1]Infrastructure!AC398","v":0},{"$f":"[1]Infrastructure!AD398","v":0},{"$f":"[1]Infrastructure!AE398","v":0},{"$f":"[1]Infrastructure!AF398","v":0},{"$f":"[1]Infrastructure!AG398","v":0},{"$f":"[1]Infrastructure!AH398","v":0},0]
[0,null,null,null,null,null,{"$f":"[1]Infrastructure!G399","v":0},{"$f":"[1]Infrastructure!H399","v":0},{"$f":"[1]Infrastructure!I399","v":0},{"$f":"[1]Infrastructure!J399","v":0},{"$f":"[1]Infrastructure!K399","v":0},{"$f":"[1]Infrastructure!L399","v":0},{"$f":"[1]Infrastructure!M399","v":0},{"$f":"[1]Infrastructure!N399","v":0},{"$f":"[1]Infrastructure!O399","v":0},{"$f":"[1]Infrastructure!Q399","v":0},{"$f":"[1]Infrastructure!R399","v":0},{"$f":"[1]Infrastructure!T399","v":0},{"$f":"[1]Infrastructure!W399","v":0},{"$f":"[1]Infrastructure!W399","v":0},0,{"$f":"[1]Infrastructure!Z399","v":0},{"$f":"[1]Infrastructure!Z399","v":0},0,{"$f":"[1]Infrastructure!AB399","v":0},{"$f":"[1]Infrastructure!AB399","v":0},0,{"$f":"[1]Infrastructure!AC399","v":0},{"$f":"[1]Infrastructure!AD399","v":0},{"$f":"[1]Infrastructure!AE399","v":0},{"$f":"[1]Infrastructure!AF399","v":0},{"$f":"[1]Infrastructure!AG399","v":0},{"$f":"[1]Infrastructure!AH399","v":0},0]
[0,null,null,null,null,null,{"$f":"[1]Infrastructure!G400","v":0},{"$f":"[1]Infrastructure!H400","v":0},{"$f":"[1]Infrastructure!I400","v":0},{"$f":"[1]Infrastructure!J400","v":0},{"$f":"[1]Infrastructure!K400","v":0},{"$f":"[1]Infrastructure!L400","v":0},{"$f":"[1]Infrastructure!M400","v":0},{"$f":"[1]Infrastructure!N400","v":0},{"$f":"[1]Infrastructure!O400","v":0},{"$f":"[1]Infrastructure!Q400","v":0},{"$f":"[1]Infrastructure!R400","v":0},{"$f":"[1]Infrastructure!T400","v":0},{"$f":"[1]Infrastructure!W400","v":0},{"$f":"[1]Infrastructure!W400","v":0},0,{"$f":"[1]Infrastructure!Z400","v":0},{"$f":"[1]Infrastructure!Z400","v":0},0,{"$f":"[1]Infrastructure!AB400","v":0},{"$f":"[1]Infrastructure!AB400","v":0},0,{"$f":"[1]Infrastructure!AC400","v":0},{"$f":"[1]Infrastructure!AD400","v":0},{"$f":"[1]Infrastructure!AE400","v":0},{"$f":"[1]Infrastructure!AF400","v":0},{"$f":"[1]Infrastructure!AG400","v":0},{"$f":"[1]Infrastructure!AH400","v":0},0]
[0,null,null,null,null,null,{"$f":"[1]Infrastructure!G401","v":0},{"$f":"[1]Infrastructure!H401","v":0},{"$f":"[1]Infrastructure!I401","v":0},{"$f":"[1]Infrastructure!J401","v":0},{"$f":"[1]Infrastructure!K401","v":0},{"$f":"[1]Infrastructure!L401","v":0},{"$f":"[1]Infrastructure!M401","v":0},{"$f":"[1]Infrastructure!N401","v":0},{"$f":"[1]Infrastructure!O401","v":0},{"$f":"[1]Infrastructure!Q401","v":0},{"$f":"[1]Infrastructure!R401","v":0},{"$f":"[1]Infrastructure!T401","v":0},{"$f":"[1]Infrastructure!W401","v":0},{"$f":"[1]Infrastructure!W401","v":0},0,{"$f":"[1]Infrastructure!Z401","v":0},{"$f":"[1]Infrastructure!Z401","v":0},0,{"$f":"[1]Infrastructure!AB401","v":0},{"$f":"[1]Infrastructure!AB401","v":0},0,{"$f":"[1]Infrastructure!AC401","v":0},{"$f":"[1]Infrastructure!AD401","v":0},{"$f":"[1]Infrastructure!AE401","v":0},{"$f":"[1]Infrastructure!AF401","v":0},{"$f":"[1]Infrastructure!AG401","v":0},{"$f":"[1]Infrastructure!AH401","v":0},0]
[0,null,null,null,null,null,{"$f":"[1]Infrastructure!G402","v":0},{"$f":"[1]Infrastructure!H402","v":0},{"$f":"[1]Infrastructure!I402","v":0},{"$f":"[1]Infrastructure!J402","v":0},{"$f":"[1]Infrastructure!K402","v":0},{"$f":"[1]Infrastructure!L402","v":0},{"$f":"[1]Infrastructure!M402","v":0},{"$f":"[1]Infrastructure!N402","v":0},{"$f":"[1]Infrastructure!O402","v":0},{"$f":"[1]Infrastructure!Q402","v":0},{"$f":"[1]Infrastructure!R402","v":0},{"$f":"[1]Infrastructure!T402","v":0},{"$f":"[1]Infrastructure!W402","v":0},{"$f":"[1]Infrastructure!W402","v":0},0,{"$f":"[1]Infrastructure!Z402","v":0},{"$f":"[1]Infrastructure!Z402","v":0},0,{"$f":"[1]Infrastructure!AB402","v":0},{"$f":"[1]Infrastructure!AB402","v":0},0,{"$f":"[1]Infrastructure!AC402","v":0},{"$f":"[1]Infrastructure!AD402","v":0},{"$f":"[1]Infrastructure!AE402","v":0},{"$f":"[1]Infrastructure!AF402","v":0},{"$f":"[1]Infrastructure!AG402","v":0},{"$f":"[1]Infrastructure!AH402","v":0},0]
[0,null,null,null,null,null,{"$f":"[1]Infrastructure!G403","v":0},{"$f":"[1]Infrastructure!H403","v":0},{"$f":"[1]Infrastructure!I403","v":0},{"$f":"[1]Infrastructure!J403","v":0},{"$f":"[1]Infrastructure!K403","v":0},{"$f":"[1]Infrastructure!L403","v":0},{"$f":"[1]Infrastructure!M403","v":0},{"$f":"[1]Infrastructure!N403","v":0},{"$f":"[1]Infrastructure!O403","v":0},{"$f":"[1]Infrastructure!Q403","v":0},{"$f":"[1]Infrastructure!R403","v":0},{"$f":"[1]Infrastructure!T403","v":0},{"$f":"[1]Infrastructure!W403","v":0},{"$f":"[1]Infrastructure!W403","v":0},0,{"$f":"[1]Infrastructure!Z403","v":0},{"$f":"[1]Infrastructure!Z403","v":0},0,{"$f":"[1]Infrastructure!AB403","v":0},{"$f":"[1]Infrastructure!AB403","v":0},0,{"$f":"[1]Infrastructure!AC403","v":0},{"$f":"[1]Infrastructure!AD403","v":0},{"$f":"[1]Infrastructure!AE403","v":0},{"$f":"[1]Infrastructure!AF403","v":0},{"$f":"[1]Infrastructure!AG403","v":0},{"$f":"[1]Infrastructure!AH403","v":0},0]
[0,null,null,null,null,null,{"$f":"[1]Infrastructure!G404","v":0},{"$f":"[1]Infrastructure!H404","v":0},{"$f":"[1]Infrastructure!I404","v":0},{"$f":"[1]Infrastructure!J404","v":0},{"$f":"[1]Infrastructure!K404","v":0},{"$f":"[1]Infrastructure!L404","v":0},{"$f":"[1]Infrastructure!M404","v":0},{"$f":"[1]Infrastructure!N404","v":0},{"$f":"[1]Infrastructure!O404","v":0},{"$f":"[1]Infrastructure!Q404","v":0},{"$f":"[1]Infrastructure!R404","v":0},{"$f":"[1]Infrastructure!T404","v":0},{"$f":"[1]Infrastructure!W404","v":0},{"$f":"[1]Infrastructure!W404","v":0},0,{"$f":"[1]Infrastructure!Z404","v":0},{"$f":"[1]Infrastructure!Z404","v":0},0,{"$f":"[1]Infrastructure!AB404","v":0},{"$f":"[1]Infrastructure!AB404","v":0},0,{"$f":"[1]Infrastructure!AC404","v":0},{"$f":"[1]Infrastructure!AD404","v":0},{"$f":"[1]Infrastructure!AE404","v":0},{"$f":"[1]Infrastructure!AF404","v":0},{"$f":"[1]Infrastructure!AG404","v":0},{"$f":"[1]Infrastructure!AH404","v":0},0]
[0,null,null,null,null,null,{"$f":"[1]Infrastructure!G405","v":0},{"$f":"[1]Infrastructure!H405","v":0},{"$f":"[1]Infrastructure!I405","v":0},{"$f":"[1]Infrastructure!J405","v":0},{"$f":"[1]Infrastructure!K405","v":0},{"$f":"[1]Infrastructure!L405","v":0},{"$f":"[1]Infrastructure!M405","v":0},{"$f":"[1]Infrastructure!N405","v":0},{"$f":"[1]Infrastructure!O405","v":0},{"$f":"[1]Infrastructure!Q405","v":0},{"$f":"[1]Infrastructure!R405","v":0},{"$f":"[1]Infrastructure!T405","v":0},{"$f":"[1]Infrastructure!W405","v":0},{"$f":"[1]Infrastructure!W405","v":0},0,{"$f":"[1]Infrastructure!Z405","v":0},{"$f":"[1]Infrastructure!Z405","v":0},0,{"$f":"[1]Infrastructure!AB405","v":0},{"$f":"[1]Infrastructure!AB405","v":0},0,{"$f":"[1]Infrastructure!AC405","v":0},{"$f":"[1]Infrastructure!AD405","v":0},{"$f":"[1]Infrastructure!AE405","v":0},{"$f":"[1]Infrastructure!AF405","v":0},{"$f":"[1]Infrastructure!AG405","v":0},{"$f":"[1]Infrastructure!AH405","v":0},0]
[0,null,null,null,null,null,{"$f":"[1]Infrastructure!G406","v":0},{"$f":"[1]Infrastructure!H406","v":0},{"$f":"[1]Infrastructure!I406","v":0},{"$f":"[1]Infrastructure!J406","v":0},{"$f":"[1]Infrastructure!K406","v":0},{"$f":"[1]Infrastructure!L406","v":0},{"$f":"[1]Infrastructure!M406","v":0},{"$f":"[1]Infrastructure!N406","v":0},{"$f":"[1]Infrastructure!O406","v":0},{"$f":"[1]Infrastructure!Q406","v":0},{"$f":"[1]Infrastructure!R406","v":0},{"$f":"[1]Infrastructure!T406","v":0},{"$f":"[1]Infrastructure!W406","v":0},{"$f":"[1]Infrastructure!W406","v":0},0,{"$f":"[1]Infrastructure!Z406","v":0},{"$f":"[1]Infrastructure!Z406","v":0},0,{"$f":"[1]Infrastructure!AB406","v":0},{"$f":"[1]Infrastructure!AB406","v":0},0,{"$f":"[1]Infrastructure!AC406","v":0},{"$f":"[1]Infrastructure!AD406","v":0},{"$f":"[1]Infrastructure!AE406","v":0},{"$f":"[1]Infrastructure!AF406","v":0},{"$f":"[1]Infrastructure!AG406","v":0},{"$f":"[1]Infrastructure!AH406","v":0},0]
[0,null,null,null,null,null,{"$f":"[1]Infrastructure!G407","v":0},{"$f":"[1]Infrastructure!H407","v":0},{"$f":"[1]Infrastructure!I407","v":0},{"$f":"[1]Infrastructure!J407","v":0},{"$f":"[1]Infrastructure!K407","v":0},{"$f":"[1]Infrastructure!L407","v":0},{"$f":"[1]Infrastructure!M407","v":0},{"$f":"[1]Infrastructure!N407","v":0},{"$f":"[1]Infrastructure!O407","v":0},{"$f":"[1]Infrastructure!Q407","v":0},{"$f":"[1]Infrastructure!R407","v":0},{"$f":"[1]Infrastructure!T407","v":0},{"$f":"[1]Infrastructure!W407","v":0},{"$f":"[1]Infrastructure!W407","v":0},0,{"$f":"[1]Infrastructure!Z407","v":0},{"$f":"[1]Infrastructure!Z407","v":0},0,{"$f":"[1]Infrastructure!AB407","v":0},{"$f":"[1]Infrastructure!AB407","v":0},0,{"$f":"[1]Infrastructure!AC407","v":0},{"$f":"[1]Infrastructure!AD407","v":0},{"$f":"[1]Infrastructure!AE407","v":0},{"$f":"[1]Infrastructure!AF407","v":0},{"$f":"[1]Infrastructure!AG407","v":0},{"$f":"[1]Infrastructure!AH407","v":0},0]
[0,null,null,null,null,null,{"$f":"[1]Infrastructure!G408","v":0},{"$f":"[1]Infrastructure!H408","v":0},{"$f":"[1]Infrastructure!I408","v":0},{"$f":"[1]Infrastructure!J408","v":0},{"$f":"[1]Infrastructure!K408","v":0},{"$f":"[1]Infrastructure!L408","v":0},{"$f":"[1]Infrastructure!M408","v":0},{"$f":"[1]Infrastructure!N408","v":0},{"$f":"[1]Infrastructure!O408","v":0},{"$f":"[1]Infrastructure!Q408","v":0},{"$f":"[1]Infrastructure!R408","v":0},{"$f":"[1]Infrastructure!T408","v":0},{"$f":"[1]Infrastructure!W408","v":0},{"$f":"[1]Infrastructure!W408","v":0},0,{"$f":"[1]Infrastructure!Z408","v":0},{"$f":"[1]Infrastructure!Z408","v":0},0,{"$f":"[1]Infrastructure!AB408","v":0},{"$f":"[1]Infrastructure!AB408","v":0},0,{"$f":"[1]Infrastructure!AC408","v":0},{"$f":"[1]Infrastructure!AD408","v":0},{"$f":"[1]Infrastructure!AE408","v":0},{"$f":"[1]Infrastructure!AF408","v":0},{"$f":"[1]Infrastructure!AG408","v":0},{"$f":"[1]Infrastructure!AH408","v":0},0]
[0,null,null,null,null,null,{"$f":"[1]Infrastructure!G409","v":0},{"$f":"[1]Infrastructure!H409","v":0},{"$f":"[1]Infrastructure!I409","v":0},{"$f":"[1]Infrastructure!J409","v":0},{"$f":"[1]Infrastructure!K409","v":0},{"$f":"[1]Infrastructure!L409","v":0},{"$f":"[1]Infrastructure!M409","v":0},{"$f":"[1]Infrastructure!N409","v":0},{"$f":"[1]Infrastructure!O409","v":0},{"$f":"[1]Infrastructure!Q409","v":0},{"$f":"[1]Infrastructure!R409","v":0},{"$f":"[1]Infrastructure!T409","v":0},{"$f":"[1]Infrastructure!W409","v":0},{"$f":"[1]Infrastructure!W409","v":0},0,{"$f":"[1]Infrastructure!Z409","v":0},{"$f":"[1]Infrastructure!Z409","v":0},0,{"$f":"[1]Infrastructure!AB409","v":0},{"$f":"[1]Infrastructure!AB409","v":0},0,{"$f":"[1]Infrastructure!AC409","v":0},{"$f":"[1]Infrastructure!AD409","v":0},{"$f":"[1]Infrastructure!AE409","v":0},{"$f":"[1]Infrastructure!AF409","v":0},{"$f":"[1]Infrastructure!AG409","v":0},{"$f":"[1]Infrastructure!AH409","v":0},0]
[0,null,null,null,null,null,{"$f":"[1]Infrastructure!G410","v":0},{"$f":"[1]Infrastructure!H410","v":0},{"$f":"[1]Infrastructure!I410","v":0},{"$f":"[1]Infrastructure!J410","v":0},{"$f":"[1]Infrastructure!K410","v":0},{"$f":"[1]Infrastructure!L410","v":0},{"$f":"[1]Infrastructure!M410","v":0},{"$f":"[1]Infrastructure!N410","v":0},{"$f":"[1]Infrastructure!O410","v":0},{"$f":"[1]Infrastructure!Q410","v":0},{"$f":"[1]Infrastructure!R410","v":0},{"$f":"[1]Infrastructure!T410","v":0},{"$f":"[1]Infrastructure!W410","v":0},{"$f":"[1]Infrastructure!W410","v":0},0,{"$f":"[1]Infrastructure!Z410","v":0},{"$f":"[1]Infrastructure!Z410","v":0},0,{"$f":"[1]Infrastructure!AB410","v":0},{"$f":"[1]Infrastructure!AB410","v":0},0,{"$f":"[1]Infrastructure!AC410","v":0},{"$f":"[1]Infrastructure!AD410","v":0},{"$f":"[1]Infrastructure!AE410","v":0},{"$f":"[1]Infrastructure!AF410","v":0},{"$f":"[1]Infrastructure!AG410","v":0},{"$f":"[1]Infrastructure!AH410","v":0},0]
[0,null,null,null,null,null,{"$f":"[1]Infrastructure!G411","v":0},{"$f":"[1]Infrastructure!H411","v":0},{"$f":"[1]Infrastructure!I411","v":0},{"$f":"[1]Infrastructure!J411","v":0},{"$f":"[1]Infrastructure!K411","v":0},{"$f":"[1]Infrastructure!L411","v":0},{"$f":"[1]Infrastructure!M411","v":0},{"$f":"[1]Infrastructure!N411","v":0},{"$f":"[1]Infrastructure!O411","v":0},{"$f":"[1]Infrastructure!Q411","v":0},{"$f":"[1]Infrastructure!R411","v":0},{"$f":"[1]Infrastructure!T411","v":0},{"$f":"[1]Infrastructure!W411","v":0},{"$f":"[1]Infrastructure!W411","v":0},0,{"$f":"[1]Infrastructure!Z411","v":0},{"$f":"[1]Infrastructure!Z411","v":0},0,{"$f":"[1]Infrastructure!AB411","v":0},{"$f":"[1]Infrastructure!AB411","v":0},0,{"$f":"[1]Infrastructure!AC411","v":0},{"$f":"[1]Infrastructure!AD411","v":0},{"$f":"[1]Infrastructure!AE411","v":0},{"$f":"[1]Infrastructure!AF411","v":0},{"$f":"[1]Infrastructure!AG411","v":0},{"$f":"[1]Infrastructure!AH411","v":0},0]
[0,null,null,null,null,null,{"$f":"[1]Infrastructure!G412","v":0},{"$f":"[1]Infrastructure!H412","v":0},{"$f":"[1]Infrastructure!I412","v":0},{"$f":"[1]Infrastructure!J412","v":0},{"$f":"[1]Infrastructure!K412","v":0},{"$f":"[1]Infrastructure!L412","v":0},{"$f":"[1]Infrastructure!M412","v":0},{"$f":"[1]Infrastructure!N412","v":0},{"$f":"[1]Infrastructure!O412","v":0},{"$f":"[1]Infrastructure!Q412","v":0},{"$f":"[1]Infrastructure!R412","v":0},{"$f":"[1]Infrastructure!T412","v":0},{"$f":"[1]Infrastructure!W412","v":0},{"$f":"[1]Infrastructure!W412","v":0},0,{"$f":"[1]Infrastructure!Z412","v":0},{"$f":"[1]Infrastructure!Z412","v":0},0,{"$f":"[1]Infrastructure!AB412","v":0},{"$f":"[1]Infrastructure!AB412","v":0},0,{"$f":"[1]Infrastructure!AC412","v":0},{"$f":"[1]Infrastructure!AD412","v":0},{"$f":"[1]Infrastructure!AE412","v":0},{"$f":"[1]Infrastructure!AF412","v":0},{"$f":"[1]Infrastructure!AG412","v":0},{"$f":"[1]Infrastructure!AH412","v":0},0]
[0,null,null,null,null,null,{"$f":"[1]Infrastructure!G413","v":0},{"$f":"[1]Infrastructure!H413","v":0},{"$f":"[1]Infrastructure!I413","v":0},{"$f":"[1]Infrastructure!J413","v":0},{"$f":"[1]Infrastructure!K413","v":0},{"$f":"[1]Infrastructure!L413","v":0},{"$f":"[1]Infrastructure!M413","v":0},{"$f":"[1]Infrastructure!N413","v":0},{"$f":"[1]Infrastructure!O413","v":0},{"$f":"[1]Infrastructure!Q413","v":0},{"$f":"[1]Infrastructure!R413","v":0},{"$f":"[1]Infrastructure!T413","v":0},{"$f":"[1]Infrastructure!W413","v":0},{"$f":"[1]Infrastructure!W413","v":0},0,{"$f":"[1]Infrastructure!Z413","v":0},{"$f":"[1]Infrastructure!Z413","v":0},0,{"$f":"[1]Infrastructure!AB413","v":0},{"$f":"[1]Infrastructure!AB413","v":0},0,{"$f":"[1]Infrastructure!AC413","v":0},{"$f":"[1]Infrastructure!AD413","v":0},{"$f":"[1]Infrastructure!AE413","v":0},{"$f":"[1]Infrastructure!AF413","v":0},{"$f":"[1]Infrastructure!AG413","v":0},{"$f":"[1]Infrastructure!AH413","v":0},0]
[0,null,null,null,null,null,{"$f":"[1]Infrastructure!G414","v":0},{"$f":"[1]Infrastructure!H414","v":0},{"$f":"[1]Infrastructure!I414","v":0},{"$f":"[1]Infrastructure!J414","v":0},{"$f":"[1]Infrastructure!K414","v":0},{"$f":"[1]Infrastructure!L414","v":0},{"$f":"[1]Infrastructure!M414","v":0},{"$f":"[1]Infrastructure!N414","v":0},{"$f":"[1]Infrastructure!O414","v":0},{"$f":"[1]Infrastructure!Q414","v":0},{"$f":"[1]Infrastructure!R414","v":0},{"$f":"[1]Infrastructure!T414","v":0},{"$f":"[1]Infrastructure!W414","v":0},{"$f":"[1]Infrastructure!W414","v":0},0,{"$f":"[1]Infrastructure!Z414","v":0},{"$f":"[1]Infrastructure!Z414","v":0},0,{"$f":"[1]Infrastructure!AB414","v":0},{"$f":"[1]Infrastructure!AB414","v":0},0,{"$f":"[1]Infrastructure!AC414","v":0},{"$f":"[1]Infrastructure!AD414","v":0},{"$f":"[1]Infrastructure!AE414","v":0},{"$f":"[1]Infrastructure!AF414","v":0},{"$f":"[1]Infrastructure!AG414","v":0},{"$f":"[1]Infrastructure!AH414","v":0},0]
[0,null,null,null,null,null,{"$f":"[1]Infrastructure!G415","v":0},{"$f":"[1]Infrastructure!H415","v":0},{"$f":"[1]Infrastructure!I415","v":0},{"$f":"[1]Infrastructure!J415","v":0},{"$f":"[1]Infrastructure!K415","v":0},{"$f":"[1]Infrastructure!L415","v":0},{"$f":"[1]Infrastructure!M415","v":0},{"$f":"[1]Infrastructure!N415","v":0},{"$f":"[1]Infrastructure!O415","v":0},{"$f":"[1]Infrastructure!Q415","v":0},{"$f":"[1]Infrastructure!R415","v":0},{"$f":"[1]Infrastructure!T415","v":0},{"$f":"[1]Infrastructure!W415","v":0},{"$f":"[1]Infrastructure!W415","v":0},0,{"$f":"[1]Infrastructure!Z415","v":0},{"$f":"[1]Infrastructure!Z415","v":0},0,{"$f":"[1]Infrastructure!AB415","v":0},{"$f":"[1]Infrastructure!AB415","v":0},0,{"$f":"[1]Infrastructure!AC415","v":0},{"$f":"[1]Infrastructure!AD415","v":0},{"$f":"[1]Infrastructure!AE415","v":0},{"$f":"[1]Infrastructure!AF415","v":0},{"$f":"[1]Infrastructure!AG415","v":0},{"$f":"[1]Infrastructure!AH415","v":0},0]
[0,null,null,null,null,null,{"$f":"[1]Infrastructure!G416","v":0},{"$f":"[1]Infrastructure!H416","v":0},{"$f":"[1]Infrastructure!I416","v":0},{"$f":"[1]Infrastructure!J416","v":0},{"$f":"[1]Infrastructure!K416","v":0},{"$f":"[1]Infrastructure!L416","v":0},{"$f":"[1]Infrastructure!M416","v":0},{"$f":"[1]Infrastructure!N416","v":0},{"$f":"[1]Infrastructure!O416","v":0},{"$f":"[1]Infrastructure!Q416","v":0},{"$f":"[1]Infrastructure!R416","v":0},{"$f":"[1]Infrastructure!T416","v":0},{"$f":"[1]Infrastructure!W416","v":0},{"$f":"[1]Infrastructure!W416","v":0},0,{"$f":"[1]Infrastructure!Z416","v":0},{"$f":"[1]Infrastructure!Z416","v":0},0,{"$f":"[1]Infrastructure!AB416","v":0},{"$f":"[1]Infrastructure!AB416","v":0},0,{"$f":"[1]Infrastructure!AC416","v":0},{"$f":"[1]Infrastructure!AD416","v":0},{"$f":"[1]Infrastructure!AE416","v":0},{"$f":"[1]Infrastructure!AF416","v":0},{"$f":"[1]Infrastructure!AG416","v":0},{"$f":"[1]Infrastructure!AH416","v":0},0]
[0,null,null,null,null,null,{"$f":"[1]Infrastructure!G417","v":0},{"$f":"[1]Infrastructure!H417","v":0},{"$f":"[1]Infrastructure!I417","v":0},{"$f":"[1]Infrastructure!J417","v":0},{"$f":"[1]Infrastructure!K417","v":0},{"$f":"[1]Infrastructure!L417","v":0},{"$f":"[1]Infrastructure!M417","v":0},{"$f":"[1]Infrastructure!N417","v":0},{"$f":"[1]Infrastructure!O417","v":0},{"$f":"[1]Infrastructure!Q417","v":0},{"$f":"[1]Infrastructure!R417","v":0},{"$f":"[1]Infrastructure!T417","v":0},{"$f":"[1]Infrastructure!W417","v":0},{"$f":"[1]Infrastructure!W417","v":0},0,{"$f":"[1]Infrastructure!Z417","v":0},{"$f":"[1]Infrastructure!Z417","v":0},0,{"$f":"[1]Infrastructure!AB417","v":0},{"$f":"[1]Infrastructure!AB417","v":0},0,{"$f":"[1]Infrastructure!AC417","v":0},{"$f":"[1]Infrastructure!AD417","v":0},{"$f":"[1]Infrastructure!AE417","v":0},{"$f":"[1]Infrastructure!AF417","v":0},{"$f":"[1]Infrastructure!AG417","v":0},{"$f":"[1]Infrastructure!AH417","v":0},0]
[0,null,null,null,null,null,{"$f":"[1]Infrastructure!G418","v":0},{"$f":"[1]Infrastructure!H418","v":0},{"$f":"[1]Infrastructure!I418","v":0},{"$f":"[1]Infrastructure!J418","v":0},{"$f":"[1]Infrastructure!K418","v":0},{"$f":"[1]Infrastructure!L418","v":0},{"$f":"[1]Infrastructure!M418","v":0},{"$f":"[1]Infrastructure!N418","v":0},{"$f":"[1]Infrastructure!O418","v":0},{"$f":"[1]Infrastructure!Q418","v":0},{"$f":"[1]Infrastructure!R418","v":0},{"$f":"[1]Infrastructure!T418","v":0},{"$f":"[1]Infrastructure!W418","v":0},{"$f":"[1]Infrastructure!W418","v":0},0,{"$f":"[1]Infrastructure!Z418","v":0},{"$f":"[1]Infrastructure!Z418","v":0},0,{"$f":"[1]Infrastructure!AB418","v":0},{"$f":"[1]Infrastructure!AB418","v":0},0,{"$f":"[1]Infrastructure!AC418","v":0},{"$f":"[1]Infrastructure!AD418","v":0},{"$f":"[1]Infrastructure!AE418","v":0},{"$f":"[1]Infrastructure!AF418","v":0},{"$f":"[1]Infrastructure!AG418","v":0},{"$f":"[1]Infrastructure!AH418","v":0},0]
[0,null,null,null,null,null,{"$f":"[1]Infrastructure!G419","v":0},{"$f":"[1]Infrastructure!H419","v":0},{"$f":"[1]Infrastructure!I419","v":0},{"$f":"[1]Infrastructure!J419","v":0},{"$f":"[1]Infrastructure!K419","v":0},{"$f":"[1]Infrastructure!L419","v":0},{"$f":"[1]Infrastructure!M419","v":0},{"$f":"[1]Infrastructure!N419","v":0},{"$f":"[1]Infrastructure!O419","v":0},{"$f":"[1]Infrastructure!Q419","v":0},{"$f":"[1]Infrastructure!R419","v":0},{"$f":"[1]Infrastructure!T419","v":0},{"$f":"[1]Infrastructure!W419","v":0},{"$f":"[1]Infrastructure!W419","v":0},0,{"$f":"[1]Infrastructure!Z419","v":0},{"$f":"[1]Infrastructure!Z419","v":0},0,{"$f":"[1]Infrastructure!AB419","v":0},{"$f":"[1]Infrastructure!AB419","v":0},0,{"$f":"[1]Infrastructure!AC419","v":0},{"$f":"[1]Infrastructure!AD419","v":0},{"$f":"[1]Infrastructure!AE419","v":0},{"$f":"[1]Infrastructure!AF419","v":0},{"$f":"[1]Infrastructure!AG419","v":0},{"$f":"[1]Infrastructure!AH419","v":0},0]
[0,null,null,null,null,null,{"$f":"[1]Infrastructure!G420","v":0},{"$f":"[1]Infrastructure!H420","v":0},{"$f":"[1]Infrastructure!I420","v":0},{"$f":"[1]Infrastructure!J420","v":0},{"$f":"[1]Infrastructure!K420","v":0},{"$f":"[1]Infrastructure!L420","v":0},{"$f":"[1]Infrastructure!M420","v":0},{"$f":"[1]Infrastructure!N420","v":0},{"$f":"[1]Infrastructure!O420","v":0},{"$f":"[1]Infrastructure!Q420","v":0},{"$f":"[1]Infrastructure!R420","v":0},{"$f":"[1]Infrastructure!T420","v":0},{"$f":"[1]Infrastructure!W420","v":0},{"$f":"[1]Infrastructure!W420","v":0},0,{"$f":"[1]Infrastructure!Z420","v":0},{"$f":"[1]Infrastructure!Z420","v":0},0,{"$f":"[1]Infrastructure!AB420","v":0},{"$f":"[1]Infrastructure!AB420","v":0},0,{"$f":"[1]Infrastructure!AC420","v":0},{"$f":"[1]Infrastructure!AD420","v":0},{"$f":"[1]Infrastructure!AE420","v":0},{"$f":"[1]Infrastructure!AF420","v":0},{"$f":"[1]Infrastructure!AG420","v":0},{"$f":"[1]Infrastructure!AH420","v":0},0]
[0,null,null,null,null,null,{"$f":"[1]Infrastructure!G421","v":0},{"$f":"[1]Infrastructure!H421","v":0},{"$f":"[1]Infrastructure!I421","v":0},{"$f":"[1]Infrastructure!J421","v":0},{"$f":"[1]Infrastructure!K421","v":0},{"$f":"[1]Infrastructure!L421","v":0},{"$f":"[1]Infrastructure!M421","v":0},{"$f":"[1]Infrastructure!N421","v":0},{"$f":"[1]Infrastructure!O421","v":0},{"$f":"[1]Infrastructure!Q421","v":0},{"$f":"[1]Infrastructure!R421","v":0},{"$f":"[1]Infrastructure!T421","v":0},{"$f":"[1]Infrastructure!W421","v":0},{"$f":"[1]Infrastructure!W421","v":0},0,{"$f":"[1]Infrastructure!Z421","v":0},{"$f":"[1]Infrastructure!Z421","v":0},0,{"$f":"[1]Infrastructure!AB421","v":0},{"$f":"[1]Infrastructure!AB421","v":0},0,{"$f":"[1]Infrastructure!AC421","v":0},{"$f":"[1]Infrastructure!AD421","v":0},{"$f":"[1]Infrastructure!AE421","v":0},{"$f":"[1]Infrastructure!AF421","v":0},{"$f":"[1]Infrastructure!AG421","v":0},{"$f":"[1]Infrastructure!AH421","v":0},0]
[0,null,null,null,null,null,{"$f":"[1]Infrastructure!G422","v":0},{"$f":"[1]Infrastructure!H422","v":0},{"$f":"[1]Infrastructure!I422","v":0},{"$f":"[1]Infrastructure!J422","v":0},{"$f":"[1]Infrastructure!K422","v":0},{"$f":"[1]Infrastructure!L422","v":0},{"$f":"[1]Infrastructure!M422","v":0},{"$f":"[1]Infrastructure!N422","v":0},{"$f":"[1]Infrastructure!O422","v":0},{"$f":"[1]Infrastructure!Q422","v":0},{"$f":"[1]Infrastructure!R422","v":0},{"$f":"[1]Infrastructure!T422","v":0},{"$f":"[1]Infrastructure!W422","v":0},{"$f":"[1]Infrastructure!W422","v":0},0,{"$f":"[1]Infrastructure!Z422","v":0},{"$f":"[1]Infrastructure!Z422","v":0},0,{"$f":"[1]Infrastructure!AB422","v":0},{"$f":"[1]Infrastructure!AB422","v":0},0,{"$f":"[1]Infrastructure!AC422","v":0},{"$f":"[1]Infrastructure!AD422","v":0},{"$f":"[1]Infrastructure!AE422","v":0},{"$f":"[1]Infrastructure!AF422","v":0},{"$f":"[1]Infrastructure!AG422","v":0},{"$f":"[1]Infrastructure!AH422","v":0},0]
[0,null,null,null,null,null,{"$f":"[1]Infrastructure!G423","v":0},{"$f":"[1]Infrastructure!H423","v":0},{"$f":"[1]Infrastructure!I423","v":0},{"$f":"[1]Infrastructure!J423","v":0},{"$f":"[1]Infrastructure!K423","v":0},{"$f":"[1]Infrastructure!L423","v":0},{"$f":"[1]Infrastructure!M423","v":0},{"$f":"[1]Infrastructure!N423","v":0},{"$f":"[1]Infrastructure!O423","v":0},{"$f":"[1]Infrastructure!Q423","v":0},{"$f":"[1]Infrastructure!R423","v":0},{"$f":"[1]Infrastructure!T423","v":0},{"$f":"[1]Infrastructure!W423","v":0},{"$f":"[1]Infrastructure!W423","v":0},0,{"$f":"[1]Infrastructure!Z423","v":0},{"$f":"[1]Infrastructure!Z423","v":0},0,{"$f":"[1]Infrastructure!AB423","v":0},{"$f":"[1]Infrastructure!AB423","v":0},0,{"$f":"[1]Infrastructure!AC423","v":0},{"$f":"[1]Infrastructure!AD423","v":0},{"$f":"[1]Infrastructure!AE423","v":0},{"$f":"[1]Infrastructure!AF423","v":0},{"$f":"[1]Infrastructure!AG423","v":0},{"$f":"[1]Infrastructure!AH423","v":0},0]
[0,null,null,null,null,null,{"$f":"[1]Infrastructure!G424","v":0},{"$f":"[1]Infrastructure!H424","v":0},{"$f":"[1]Infrastructure!I424","v":0},{"$f":"[1]Infrastructure!J424","v":0},{"$f":"[1]Infrastructure!K424","v":0},{"$f":"[1]Infrastructure!L424","v":0},{"$f":"[1]Infrastructure!M424","v":0},{"$f":"[1]Infrastructure!N424","v":0},{"$f":"[1]Infrastructure!O424","v":0},{"$f":"[1]Infrastructure!Q424","v":0},{"$f":"[1]Infrastructure!R424","v":0},{"$f":"[1]Infrastructure!T424","v":0},{"$f":"[1]Infrastructure!W424","v":0},{"$f":"[1]Infrastructure!W424","v":0},0,{"$f":"[1]Infrastructure!Z424","v":0},{"$f":"[1]Infrastructure!Z424","v":0},0,{"$f":"[1]Infrastructure!AB424","v":0},{"$f":"[1]Infrastructure!AB424","v":0},0,{"$f":"[1]Infrastructure!AC424","v":0},{"$f":"[1]Infrastructure!AD424","v":0},{"$f":"[1]Infrastructure!AE424","v":0},{"$f":"[1]Infrastructure!AF424","v":0},{"$f":"[1]Infrastructure!AG424","v":0},{"$f":"[1]Infrastructure!AH424","v":0},0]
[0,null,null,null,null,null,{"$f":"[1]Infrastructure!G425","v":0},{"$f":"[1]Infrastructure!H425","v":0},{"$f":"[1]Infrastructure!I425","v":0},{"$f":"[1]Infrastructure!J425","v":0},{"$f":"[1]Infrastructure!K425","v":0},{"$f":"[1]Infrastructure!L425","v":0},{"$f":"[1]Infrastructure!M425","v":0},{"$f":"[1]Infrastructure!N425","v":0},{"$f":"[1]Infrastructure!O425","v":0},{"$f":"[1]Infrastructure!Q425","v":0},{"$f":"[1]Infrastructure!R425","v":0},{"$f":"[1]Infrastructure!T425","v":0},{"$f":"[1]Infrastructure!W425","v":0},{"$f":"[1]Infrastructure!W425","v":0},0,{"$f":"[1]Infrastructure!Z425","v":0},{"$f":"[1]Infrastructure!Z425","v":0},0,{"$f":"[1]Infrastructure!AB425","v":0},{"$f":"[1]Infrastructure!AB425","v":0},0,{"$f":"[1]Infrastructure!AC425","v":0},{"$f":"[1]Infrastructure!AD425","v":0},{"$f":"[1]Infrastructure!AE425","v":0},{"$f":"[1]Infrastructure!AF425","v":0},{"$f":"[1]Infrastructure!AG425","v":0},{"$f":"[1]Infrastructure!AH425","v":0},0]
[0,null,null,null,null,null,{"$f":"[1]Infrastructure!G426","v":0},{"$f":"[1]Infrastructure!H426","v":0},{"$f":"[1]Infrastructure!I426","v":0},{"$f":"[1]Infrastructure!J426","v":0},{"$f":"[1]Infrastructure!K426","v":0},{"$f":"[1]Infrastructure!L426","v":0},{"$f":"[1]Infrastructure!M426","v":0},{"$f":"[1]Infrastructure!N426","v":0},{"$f":"[1]Infrastructure!O426","v":0},{"$f":"[1]Infrastructure!Q426","v":0},{"$f":"[1]Infrastructure!R426","v":0},{"$f":"[1]Infrastructure!T426","v":0},{"$f":"[1]Infrastructure!W426","v":0},{"$f":"[1]Infrastructure!W426","v":0},0,{"$f":"[1]Infrastructure!Z426","v":0},{"$f":"[1]Infrastructure!Z426","v":0},0,{"$f":"[1]Infrastructure!AB426","v":0},{"$f":"[1]Infrastructure!AB426","v":0},0,{"$f":"[1]Infrastructure!AC426","v":0},{"$f":"[1]Infrastructure!AD426","v":0},{"$f":"[1]Infrastructure!AE426","v":0},{"$f":"[1]Infrastructure!AF426","v":0},{"$f":"[1]Infrastructure!AG426","v":0},{"$f":"[1]Infrastructure!AH426","v":0},0]
[0,null,null,null,null,null,{"$f":"[1]Infrastructure!G427","v":0},{"$f":"[1]Infrastructure!H427","v":0},{"$f":"[1]Infrastructure!I427","v":0},{"$f":"[1]Infrastructure!J427","v":0},{"$f":"[1]Infrastructure!K427","v":0},{"$f":"[1]Infrastructure!L427","v":0},{"$f":"[1]Infrastructure!M427","v":0},{"$f":"[1]Infrastructure!N427","v":0},{"$f":"[1]Infrastructure!O427","v":0},{"$f":"[1]Infrastructure!Q427","v":0},{"$f":"[1]Infrastructure!R427","v":0},{"$f":"[1]Infrastructure!T427","v":0},{"$f":"[1]Infrastructure!W427","v":0},{"$f":"[1]Infrastructure!W427","v":0},0,{"$f":"[1]Infrastructure!Z427","v":0},{"$f":"[1]Infrastructure!Z427","v":0},0,{"$f":"[1]Infrastructure!AB427","v":0},{"$f":"[1]Infrastructure!AB427","v":0},0,{"$f":"[1]Infrastructure!AC427","v":0},{"$f":"[1]Infrastructure!AD427","v":0},{"$f":"[1]Infrastructure!AE427","v":0},{"$f":"[1]Infrastructure!AF427","v":0},{"$f":"[1]Infrastructure!AG427","v":0},{"$f":"[1]Infrastructure!AH427","v":0},0]
[0,null,null,null,null,null,{"$f":"[1]Infrastructure!G428","v":0},{"$f":"[1]Infrastructure!H428","v":0},{"$f":"[1]Infrastructure!I428","v":0},{"$f":"[1]Infrastructure!J428","v":0},{"$f":"[1]Infrastructure!K428","v":0},{"$f":"[1]Infrastructure!L428","v":0},{"$f":"[1]Infrastructure!M428","v":0},{"$f":"[1]Infrastructure!N428","v":0},{"$f":"[1]Infrastructure!O428","v":0},{"$f":"[1]Infrastructure!Q428","v":0},{"$f":"[1]Infrastructure!R428","v":0},{"$f":"[1]Infrastructure!T428","v":0},{"$f":"[1]Infrastructure!W428","v":0},{"$f":"[1]Infrastructure!W428","v":0},0,{"$f":"[1]Infrastructure!Z428","v":0},{"$f":"[1]Infrastructure!Z428","v":0},0,{"$f":"[1]Infrastructure!AB428","v":0},{"$f":"[1]Infrastructure!AB428","v":0},0,{"$f":"[1]Infrastructure!AC428","v":0},{"$f":"[1]Infrastructure!AD428","v":0},{"$f":"[1]Infrastructure!AE428","v":0},{"$f":"[1]Infrastructure!AF428","v":0},{"$f":"[1]Infrastructure!AG428","v":0},{"$f":"[1]Infrastructure!AH428","v":0},0]
[0,null,null,null,null,null,{"$f":"[1]Infrastructure!G429","v":0},{"$f":"[1]Infrastructure!H429","v":0},{"$f":"[1]Infrastructure!I429","v":0},{"$f":"[1]Infrastructure!J429","v":0},{"$f":"[1]Infrastructure!K429","v":0},{"$f":"[1]Infrastructure!L429","v":0},{"$f":"[1]Infrastructure!M429","v":0},{"$f":"[1]Infrastructure!N429","v":0},{"$f":"[1]Infrastructure!O429","v":0},{"$f":"[1]Infrastructure!Q429","v":0},{"$f":"[1]Infrastructure!R429","v":0},{"$f":"[1]Infrastructure!T429","v":0},{"$f":"[1]Infrastructure!W429","v":0},{"$f":"[1]Infrastructure!W429","v":0},0,{"$f":"[1]Infrastructure!Z429","v":0},{"$f":"[1]Infrastructure!Z429","v":0},0,{"$f":"[1]Infrastructure!AB429","v":0},{"$f":"[1]Infrastructure!AB429","v":0},0,{"$f":"[1]Infrastructure!AC429","v":0},{"$f":"[1]Infrastructure!AD429","v":0},{"$f":"[1]Infrastructure!AE429","v":0},{"$f":"[1]Infrastructure!AF429","v":0},{"$f":"[1]Infrastructure!AG429","v":0},{"$f":"[1]Infrastructure!AH429","v":0},0]
[0,null,null,null,null,null,{"$f":"[1]Infrastructure!G430","v":0},{"$f":"[1]Infrastructure!H430","v":0},{"$f":"[1]Infrastructure!I430","v":0},{"$f":"[1]Infrastructure!J430","v":0},{"$f":"[1]Infrastructure!K430","v":0},{"$f":"[1]Infrastructure!L430","v":0},{"$f":"[1]Infrastructure!M430","v":0},{"$f":"[1]Infrastructure!N430","v":0},{"$f":"[1]Infrastructure!O430","v":0},{"$f":"[1]Infrastructure!Q430","v":0},{"$f":"[1]Infrastructure!R430","v":0},{"$f":"[1]Infrastructure!T430","v":0},{"$f":"[1]Infrastructure!W430","v":0},{"$f":"[1]Infrastructure!W430","v":0},0,{"$f":"[1]Infrastructure!Z430","v":0},{"$f":"[1]Infrastructure!Z430","v":0},0,{"$f":"[1]Infrastructure!AB430","v":0},{"$f":"[1]Infrastructure!AB430","v":0},0,{"$f":"[1]Infrastructure!AC430","v":0},{"$f":"[1]Infrastructure!AD430","v":0},{"$f":"[1]Infrastructure!AE430","v":0},{"$f":"[1]Infrastructure!AF430","v":0},{"$f":"[1]Infrastructure!AG430","v":0},{"$f":"[1]Infrastructure!AH430","v":0},0]
[0,null,null,null,null,null,{"$f":"[1]Infrastructure!G431","v":0},{"$f":"[1]Infrastructure!H431","v":0},{"$f":"[1]Infrastructure!I431","v":0},{"$f":"[1]Infrastructure!J431","v":0},{"$f":"[1]Infrastructure!K431","v":0},{"$f":"[1]Infrastructure!L431","v":0},{"$f":"[1]Infrastructure!M431","v":0},{"$f":"[1]Infrastructure!N431","v":0},{"$f":"[1]Infrastructure!O431","v":0},{"$f":"[1]Infrastructure!Q431","v":0},{"$f":"[1]Infrastructure!R431","v":0},{"$f":"[1]Infrastructure!T431","v":0},{"$f":"[1]Infrastructure!W431","v":0},{"$f":"[1]Infrastructure!W431","v":0},0,{"$f":"[1]Infrastructure!Z431","v":0},{"$f":"[1]Infrastructure!Z431","v":0},0,{"$f":"[1]Infrastructure!AB431","v":0},{"$f":"[1]Infrastructure!AB431","v":0},0,{"$f":"[1]Infrastructure!AC431","v":0},{"$f":"[1]Infrastructure!AD431","v":0},{"$f":"[1]Infrastructure!AE431","v":0},{"$f":"[1]Infrastructure!AF431","v":0},{"$f":"[1]Infrastructure!AG431","v":0},{"$f":"[1]Infrastructure!AH431","v":0},0]
[0,null,null,null,null,null,{"$f":"[1]Infrastructure!G432","v":0},{"$f":"[1]Infrastructure!H432","v":0},{"$f":"[1]Infrastructure!I432","v":0},{"$f":"[1]Infrastructure!J432","v":0},{"$f":"[1]Infrastructure!K432","v":0},{"$f":"[1]Infrastructure!L432","v":0},{"$f":"[1]Infrastructure!M432","v":0},{"$f":"[1]Infrastructure!N432","v":0},{"$f":"[1]Infrastructure!O432","v":0},{"$f":"[1]Infrastructure!Q432","v":0},{"$f":"[1]Infrastructure!R432","v":0},{"$f":"[1]Infrastructure!T432","v":0},{"$f":"[1]Infrastructure!W432","v":0},{"$f":"[1]Infrastructure!W432","v":0},0,{"$f":"[1]Infrastructure!Z432","v":0},{"$f":"[1]Infrastructure!Z432","v":0},0,{"$f":"[1]Infrastructure!AB432","v":0},{"$f":"[1]Infrastructure!AB432","v":0},0,{"$f":"[1]Infrastructure!AC432","v":0},{"$f":"[1]Infrastructure!AD432","v":0},{"$f":"[1]Infrastructure!AE432","v":0},{"$f":"[1]Infrastructure!AF432","v":0},{"$f":"[1]Infrastructure!AG432","v":0},{"$f":"[1]Infrastructure!AH432","v":0},0]
[0,null,null,null,null,null,{"$f":"[1]Infrastructure!G433","v":0},{"$f":"[1]Infrastructure!H433","v":0},{"$f":"[1]Infrastructure!I433","v":0},{"$f":"[1]Infrastructure!J433","v":0},{"$f":"[1]Infrastructure!K433","v":0},{"$f":"[1]Infrastructure!L433","v":0},{"$f":"[1]Infrastructure!M433","v":0},{"$f":"[1]Infrastructure!N433","v":0},{"$f":"[1]Infrastructure!O433","v":0},{"$f":"[1]Infrastructure!Q433","v":0},{"$f":"[1]Infrastructure!R433","v":0},{"$f":"[1]Infrastructure!T433","v":0},{"$f":"[1]Infrastructure!W433","v":0},{"$f":"[1]Infrastructure!W433","v":0},0,{"$f":"[1]Infrastructure!Z433","v":0},{"$f":"[1]Infrastructure!Z433","v":0},0,{"$f":"[1]Infrastructure!AB433","v":0},{"$f":"[1]Infrastructure!AB433","v":0},0,{"$f":"[1]Infrastructure!AC433","v":0},{"$f":"[1]Infrastructure!AD433","v":0},{"$f":"[1]Infrastructure!AE433","v":0},{"$f":"[1]Infrastructure!AF433","v":0},{"$f":"[1]Infrastructure!AG433","v":0},{"$f":"[1]Infrastructure!AH433","v":0},0]
[0,null,null,null,null,null,{"$f":"[1]Infrastructure!G434","v":0},{"$f":"[1]Infrastructure!H434","v":0},{"$f":"[1]Infrastructure!I434","v":0},{"$f":"[1]Infrastructure!J434","v":0},{"$f":"[1]Infrastructure!K434","v":0},{"$f":"[1]Infrastructure!L434","v":0},{"$f":"[1]Infrastructure!M434","v":0},{"$f":"[1]Infrastructure!N434","v":0},{"$f":"[1]Infrastructure!O434","v":0},{"$f":"[1]Infrastructure!Q434","v":0},{"$f":"[1]Infrastructure!R434","v":0},{"$f":"[1]Infrastructure!T434","v":0},{"$f":"[1]Infrastructure!W434","v":0},{"$f":"[1]Infrastructure!W434","v":0},0,{"$f":"[1]Infrastructure!Z434","v":0},{"$f":"[1]Infrastructure!Z434","v":0},0,{"$f":"[1]Infrastructure!AB434","v":0},{"$f":"[1]Infrastructure!AB434","v":0},0,{"$f":"[1]Infrastructure!AC434","v":0},{"$f":"[1]Infrastructure!AD434","v":0},{"$f":"[1]Infrastructure!AE434","v":0},{"$f":"[1]Infrastructure!AF434","v":0},{"$f":"[1]Infrastructure!AG434","v":0},{"$f":"[1]Infrastructure!AH434","v":0},0]
[0,null,null,null,null,null,{"$f":"[1]Infrastructure!G435","v":0},{"$f":"[1]Infrastructure!H435","v":0},{"$f":"[1]Infrastructure!I435","v":0},{"$f":"[1]Infrastructure!J435","v":0},{"$f":"[1]Infrastructure!K435","v":0},{"$f":"[1]Infrastructure!L435","v":0},{"$f":"[1]Infrastructure!M435","v":0},{"$f":"[1]Infrastructure!N435","v":0},{"$f":"[1]Infrastructure!O435","v":0},{"$f":"[1]Infrastructure!Q435","v":0},{"$f":"[1]Infrastructure!R435","v":0},{"$f":"[1]Infrastructure!T435","v":0},{"$f":"[1]Infrastructure!W435","v":0},{"$f":"[1]Infrastructure!W435","v":0},0,{"$f":"[1]Infrastructure!Z435","v":0},{"$f":"[1]Infrastructure!Z435","v":0},0,{"$f":"[1]Infrastructure!AB435","v":0},{"$f":"[1]Infrastructure!AB435","v":0},0,{"$f":"[1]Infrastructure!AC435","v":0},{"$f":"[1]Infrastructure!AD435","v":0},{"$f":"[1]Infrastructure!AE435","v":0},{"$f":"[1]Infrastructure!AF435","v":0},{"$f":"[1]Infrastructure!AG435","v":0},{"$f":"[1]Infrastructure!AH435","v":0},0]
[0,null,null,null,null,null,{"$f":"[1]Infrastructure!G436","v":0},{"$f":"[1]Infrastructure!H436","v":0},{"$f":"[1]Infrastructure!I436","v":0},{"$f":"[1]Infrastructure!J436","v":0},{"$f":"[1]Infrastructure!K436","v":0},{"$f":"[1]Infrastructure!L436","v":0},{"$f":"[1]Infrastructure!M436","v":0},{"$f":"[1]Infrastructure!N436","v":0},{"$f":"[1]Infrastructure!O436","v":0},{"$f":"[1]Infrastructure!Q436","v":0},{"$f":"[1]Infrastructure!R436","v":0},{"$f":"[1]Infrastructure!T436","v":0},{"$f":"[1]Infrastructure!W436","v":0},{"$f":"[1]Infrastructure!W436","v":0},0,{"$f":"[1]Infrastructure!Z436","v":0},{"$f":"[1]Infrastructure!Z436","v":0},0,{"$f":"[1]Infrastructure!AB436","v":0},{"$f":"[1]Infrastructure!AB436","v":0},0,{"$f":"[1]Infrastructure!AC436","v":0},{"$f":"[1]Infrastructure!AD436","v":0},{"$f":"[1]Infrastructure!AE436","v":0},{"$f":"[1]Infrastructure!AF436","v":0},{"$f":"[1]Infrastructure!AG436","v":0},{"$f":"[1]Infrastructure!AH436","v":0},0]
[0,null,null,null,null,null,{"$f":"[1]Infrastructure!G437","v":0},{"$f":"[1]Infrastructure!H437","v":0},{"$f":"[1]Infrastructure!I437","v":0},{"$f":"[1]Infrastructure!J437","v":0},{"$f":"[1]Infrastructure!K437","v":0},{"$f":"[1]Infrastructure!L437","v":0},{"$f":"[1]Infrastructure!M437","v":0},{"$f":"[1]Infrastructure!N437","v":0},{"$f":"[1]Infrastructure!O437","v":0},{"$f":"[1]Infrastructure!Q437","v":0},{"$f":"[1]Infrastructure!R437","v":0},{"$f":"[1]Infrastructure!T437","v":0},{"$f":"[1]Infrastructure!W437","v":0},{"$f":"[1]Infrastructure!W437","v":0},0,{"$f":"[1]Infrastructure!Z437","v":0},{"$f":"[1]Infrastructure!Z437","v":0},0,{"$f":"[1]Infrastructure!AB437","v":0},{"$f":"[1]Infrastructure!AB437","v":0},0,{"$f":"[1]Infrastructure!AC437","v":0},{"$f":"[1]Infrastructure!AD437","v":0},{"$f":"[1]Infrastructure!AE437","v":0},{"$f":"[1]Infrastructure!AF437","v":0},{"$f":"[1]Infrastructure!AG437","v":0},{"$f":"[1]Infrastructure!AH437","v":0},0]
[0,null,null,null,null,null,{"$f":"[1]Infrastructure!G438","v":0},{"$f":"[1]Infrastructure!H438","v":0},{"$f":"[1]Infrastructure!I438","v":0},{"$f":"[1]Infrastructure!J438","v":0},{"$f":"[1]Infrastructure!K438","v":0},{"$f":"[1]Infrastructure!L438","v":0},{"$f":"[1]Infrastructure!M438","v":0},{"$f":"[1]Infrastructure!N438","v":0},{"$f":"[1]Infrastructure!O438","v":0},{"$f":"[1]Infrastructure!Q438","v":0},{"$f":"[1]Infrastructure!R438","v":0},{"$f":"[1]Infrastructure!T438","v":0},{"$f":"[1]Infrastructure!W438","v":0},{"$f":"[1]Infrastructure!W438","v":0},0,{"$f":"[1]Infrastructure!Z438","v":0},{"$f":"[1]Infrastructure!Z438","v":0},0,{"$f":"[1]Infrastructure!AB438","v":0},{"$f":"[1]Infrastructure!AB438","v":0},0,{"$f":"[1]Infrastructure!AC438","v":0},{"$f":"[1]Infrastructure!AD438","v":0},{"$f":"[1]Infrastructure!AE438","v":0},{"$f":"[1]Infrastructure!AF438","v":0},{"$f":"[1]Infrastructure!AG438","v":0},{"$f":"[1]Infrastructure!AH438","v":0},0]
[0,null,null,null,null,null,{"$f":"[1]Infrastructure!G439","v":0},{"$f":"[1]Infrastructure!H439","v":0},{"$f":"[1]Infrastructure!I439","v":0},{"$f":"[1]Infrastructure!J439","v":0},{"$f":"[1]Infrastructure!K439","v":0},{"$f":"[1]Infrastructure!L439","v":0},{"$f":"[1]Infrastructure!M439","v":0},{"$f":"[1]Infrastructure!N439","v":0},{"$f":"[1]Infrastructure!O439","v":0},{"$f":"[1]Infrastructure!Q439","v":0},{"$f":"[1]Infrastructure!R439","v":0},{"$f":"[1]Infrastructure!T439","v":0},{"$f":"[1]Infrastructure!W439","v":0},{"$f":"[1]Infrastructure!W439","v":0},0,{"$f":"[1]Infrastructure!Z439","v":0},{"$f":"[1]Infrastructure!Z439","v":0},0,{"$f":"[1]Infrastructure!AB439","v":0},{"$f":"[1]Infrastructure!AB439","v":0},0,{"$f":"[1]Infrastructure!AC439","v":0},{"$f":"[1]Infrastructure!AD439","v":0},{"$f":"[1]Infrastructure!AE439","v":0},{"$f":"[1]Infrastructure!AF439","v":0},{"$f":"[1]Infrastructure!AG439","v":0},{"$f":"[1]Infrastructure!AH439","v":0},0]
[0,null,null,null,null,null,{"$f":"[1]Infrastructure!G440","v":0},{"$f":"[1]Infrastructure!H440","v":0},{"$f":"[1]Infrastructure!I440","v":0},{"$f":"[1]Infrastructure!J440","v":0},{"$f":"[1]Infrastructure!K440","v":0},{"$f":"[1]Infrastructure!L440","v":0},{"$f":"[1]Infrastructure!M440","v":0},{"$f":"[1]Infrastructure!N440","v":0},{"$f":"[1]Infrastructure!O440","v":0},{"$f":"[1]Infrastructure!Q440","v":0},{"$f":"[1]Infrastructure!R440","v":0},{"$f":"[1]Infrastructure!T440","v":0},{"$f":"[1]Infrastructure!W440","v":0},{"$f":"[1]Infrastructure!W440","v":0},0,{"$f":"[1]Infrastructure!Z440","v":0},{"$f":"[1]Infrastructure!Z440","v":0},0,{"$f":"[1]Infrastructure!AB440","v":0},{"$f":"[1]Infrastructure!AB440","v":0},0,{"$f":"[1]Infrastructure!AC440","v":0},{"$f":"[1]Infrastructure!AD440","v":0},{"$f":"[1]Infrastructure!AE440","v":0},{"$f":"[1]Infrastructure!AF440","v":0},{"$f":"[1]Infrastructure!AG440","v":0},{"$f":"[1]Infrastructure!AH440","v":0},0]
[0,null,null,null,null,null,{"$f":"[1]Infrastructure!G441","v":0},{"$f":"[1]Infrastructure!H441","v":0},{"$f":"[1]Infrastructure!I441","v":0},{"$f":"[1]Infrastructure!J441","v":0},{"$f":"[1]Infrastructure!K441","v":0},{"$f":"[1]Infrastructure!L441","v":0},{"$f":"[1]Infrastructure!M441","v":0},{"$f":"[1]Infrastructure!N441","v":0},{"$f":"[1]Infrastructure!O441","v":0},{"$f":"[1]Infrastructure!Q441","v":0},{"$f":"[1]Infrastructure!R441","v":0},{"$f":"[1]Infrastructure!T441","v":0},{"$f":"[1]Infrastructure!W441","v":0},{"$f":"[1]Infrastructure!W441","v":0},0,{"$f":"[1]Infrastructure!Z441","v":0},{"$f":"[1]Infrastructure!Z441","v":0},0,{"$f":"[1]Infrastructure!AB441","v":0},{"$f":"[1]Infrastructure!AB441","v":0},0,{"$f":"[1]Infrastructure!AC441","v":0},{"$f":"[1]Infrastructure!AD441","v":0},{"$f":"[1]Infrastructure!AE441","v":0},{"$f":"[1]Infrastructure!AF441","v":0},{"$f":"[1]Infrastructure!AG441","v":0},{"$f":"[1]Infrastructure!AH441","v":0},0]
[0,null,null,null,null,null,{"$f":"[1]Infrastructure!G442","v":0},{"$f":"[1]Infrastructure!H442","v":0},{"$f":"[1]Infrastructure!I442","v":0},{"$f":"[1]Infrastructure!J442","v":0},{"$f":"[1]Infrastructure!K442","v":0},{"$f":"[1]Infrastructure!L442","v":0},{"$f":"[1]Infrastructure!M442","v":0},{"$f":"[1]Infrastructure!N442","v":0},{"$f":"[1]Infrastructure!O442","v":0},{"$f":"[1]Infrastructure!Q442","v":0},{"$f":"[1]Infrastructure!R442","v":0},{"$f":"[1]Infrastructure!T442","v":0},{"$f":"[1]Infrastructure!W442","v":0},{"$f":"[1]Infrastructure!W442","v":0},0,{"$f":"[1]Infrastructure!Z442","v":0},{"$f":"[1]Infrastructure!Z442","v":0},0,{"$f":"[1]Infrastructure!AB442","v":0},{"$f":"[1]Infrastructure!AB442","v":0},0,{"$f":"[1]Infrastructure!AC442","v":0},{"$f":"[1]Infrastructure!AD442","v":0},{"$f":"[1]Infrastructure!AE442","v":0},{"$f":"[1]Infrastructure!AF442","v":0},{"$f":"[1]Infrastructure!AG442","v":0},{"$f":"[1]Infrastructure!AH442","v":0},0]
[0,null,null,null,null,null,{"$f":"[1]Infrastructure!G443","v":0},{"$f":"[1]Infrastructure!H443","v":0},{"$f":"[1]Infrastructure!I443","v":0},{"$f":"[1]Infrastructure!J443","v":0},{"$f":"[1]Infrastructure!K443","v":0},{"$f":"[1]Infrastructure!L443","v":0},{"$f":"[1]Infrastructure!M443","v":0},{"$f":"[1]Infrastructure!N443","v":0},{"$f":"[1]Infrastructure!O443","v":0},{"$f":"[1]Infrastructure!Q443","v":0},{"$f":"[1]Infrastructure!R443","v":0},{"$f":"[1]Infrastructure!T443","v":0},{"$f":"[1]Infrastructure!W443","v":0},{"$f":"[1]Infrastructure!W443","v":0},0,{"$f":"[1]Infrastructure!Z443","v":0},{"$f":"[1]Infrastructure!Z443","v":0},0,{"$f":"[1]Infrastructure!AB443","v":0},{"$f":"[1]Infrastructure!AB443","v":0},0,{"$f":"[1]Infrastructure!AC443","v":0},{"$f":"[1]Infrastructure!AD443","v":0},{"$f":"[1]Infrastructure!AE443","v":0},{"$f":"[1]Infrastructure!AF443","v":0},{"$f":"[1]Infrastructure!AG443","v":0},{"$f":"[1]Infrastructure!AH443","v":0},0]
[0,null,null,null,null,null,{"$f":"[1]Infrastructure!G444","v":0},{"$f":"[1]Infrastructure!H444","v":0},{"$f":"[1]Infrastructure!I444","v":0},{"$f":"[1]Infrastructure!J444","v":0},{"$f":"[1]Infrastructure!K444","v":0},{"$f":"[1]Infrastructure!L444","v":0},{"$f":"[1]Infrastructure!M444","v":0},{"$f":"[1]Infrastructure!N444","v":0},{"$f":"[1]Infrastructure!O444","v":0},{"$f":"[1]Infrastructure!Q444","v":0},{"$f":"[1]Infrastructure!R444","v":0},{"$f":"[1]Infrastructure!T444","v":0},{"$f":"[1]Infrastructure!W444","v":0},{"$f":"[1]Infrastructure!W444","v":0},0,{"$f":"[1]Infrastructure!Z444","v":0},{"$f":"[1]Infrastructure!Z444","v":0},0,{"$f":"[1]Infrastructure!AB444","v":0},{"$f":"[1]Infrastructure!AB444","v":0},0,{"$f":"[1]Infrastructure!AC444","v":0},{"$f":"[1]Infrastructure!AD444","v":0},{"$f":"[1]Infrastructure!AE444","v":0},{"$f":"[1]Infrastructure!AF444","v":0},{"$f":"[1]Infrastructure!AG444","v":0},{"$f":"[1]Infrastructure!AH444","v":0},0]
[0,null,null,null,null,null,{"$f":"[1]Infrastructure!G445","v":0},{"$f":"[1]Infrastructure!H445","v":0},{"$f":"[1]Infrastructure!I445","v":0},{"$f":"[1]Infrastructure!J445","v":0},{"$f":"[1]Infrastructure!K445","v":0},{"$f":"[1]Infrastructure!L445","v":0},{"$f":"[1]Infrastructure!M445","v":0},{"$f":"[1]Infrastructure!N445","v":0},{"$f":"[1]Infrastructure!O445","v":0},{"$f":"[1]Infrastructure!Q445","v":0},{"$f":"[1]Infrastructure!R445","v":0},{"$f":"[1]Infrastructure!T445","v":0},{"$f":"[1]Infrastructure!W445","v":0},{"$f":"[1]Infrastructure!W445","v":0},0,{"$f":"[1]Infrastructure!Z445","v":0},{"$f":"[1]Infrastructure!Z445","v":0},0,{"$f":"[1]Infrastructure!AB445","v":0},{"$f":"[1]Infrastructure!AB445","v":0},0,{"$f":"[1]Infrastructure!AC445","v":0},{"$f":"[1]Infrastructure!AD445","v":0},{"$f":"[1]Infrastructure!AE445","v":0},{"$f":"[1]Infrastructure!AF445","v":0},{"$f":"[1]Infrastructure!AG445","v":0},{"$f":"[1]Infrastructure!AH445","v":0},0]
[0,null,null,null,null,null,{"$f":"[1]Infrastructure!G446","v":0},{"$f":"[1]Infrastructure!H446","v":0},{"$f":"[1]Infrastructure!I446","v":0},{"$f":"[1]Infrastructure!J446","v":0},{"$f":"[1]Infrastructure!K446","v":0},{"$f":"[1]Infrastructure!L446","v":0},{"$f":"[1]Infrastructure!M446","v":0},{"$f":"[1]Infrastructure!N446","v":0},{"$f":"[1]Infrastructure!O446","v":0},{"$f":"[1]Infrastructure!Q446","v":0},{"$f":"[1]Infrastructure!R446","v":0},{"$f":"[1]Infrastructure!T446","v":0},{"$f":"[1]Infrastructure!W446","v":0},{"$f":"[1]Infrastructure!W446","v":0},0,{"$f":"[1]Infrastructure!Z446","v":0},{"$f":"[1]Infrastructure!Z446","v":0},0,{"$f":"[1]Infrastructure!AB446","v":0},{"$f":"[1]Infrastructure!AB446","v":0},0,{"$f":"[1]Infrastructure!AC446","v":0},{"$f":"[1]Infrastructure!AD446","v":0},{"$f":"[1]Infrastructure!AE446","v":0},{"$f":"[1]Infrastructure!AF446","v":0},{"$f":"[1]Infrastructure!AG446","v":0},{"$f":"[1]Infrastructure!AH446","v":0},0]
[0,null,null,null,null,null,{"$f":"[1]Infrastructure!G447","v":0},{"$f":"[1]Infrastructure!H447","v":0},{"$f":"[1]Infrastructure!I447","v":0},{"$f":"[1]Infrastructure!J447","v":0},{"$f":"[1]Infrastructure!K447","v":0},{"$f":"[1]Infrastructure!L447","v":0},{"$f":"[1]Infrastructure!M447","v":0},{"$f":"[1]Infrastructure!N447","v":0},{"$f":"[1]Infrastructure!O447","v":0},{"$f":"[1]Infrastructure!Q447","v":0},{"$f":"[1]Infrastructure!R447","v":0},{"$f":"[1]Infrastructure!T447","v":0},{"$f":"[1]Infrastructure!W447","v":0},{"$f":"[1]Infrastructure!W447","v":0},0,{"$f":"[1]Infrastructure!Z447","v":0},{"$f":"[1]Infrastructure!Z447","v":0},0,{"$f":"[1]Infrastructure!AB447","v":0},{"$f":"[1]Infrastructure!AB447","v":0},0,{"$f":"[1]Infrastructure!AC447","v":0},{"$f":"[1]Infrastructure!AD447","v":0},{"$f":"[1]Infrastructure!AE447","v":0},{"$f":"[1]Infrastructure!AF447","v":0},{"$f":"[1]Infrastructure!AG447","v":0},{"$f":"[1]Infrastructure!AH447","v":0},0]
[0,null,null,null,null,null,{"$f":"[1]Infrastructure!G448","v":0},{"$f":"[1]Infrastructure!H448","v":0},{"$f":"[1]Infrastructure!I448","v":0},{"$f":"[1]Infrastructure!J448","v":0},{"$f":"[1]Infrastructure!K448","v":0},{"$f":"[1]Infrastructure!L448","v":0},{"$f":"[1]Infrastructure!M448","v":0},{"$f":"[1]Infrastructure!N448","v":0},{"$f":"[1]Infrastructure!O448","v":0},{"$f":"[1]Infrastructure!Q448","v":0},{"$f":"[1]Infrastructure!R448","v":0},{"$f":"[1]Infrastructure!T448","v":0},{"$f":"[1]Infrastructure!W448","v":0},{"$f":"[1]Infrastructure!W448","v":0},0,{"$f":"[1]Infrastructure!Z448","v":0},{"$f":"[1]Infrastructure!Z448","v":0},0,{"$f":"[1]Infrastructure!AB448","v":0},{"$f":"[1]Infrastructure!AB448","v":0},0,{"$f":"[1]Infrastructure!AC448","v":0},{"$f":"[1]Infrastructure!AD448","v":0},{"$f":"[1]Infrastructure!AE448","v":0},{"$f":"[1]Infrastructure!AF448","v":0},{"$f":"[1]Infrastructure!AG448","v":0},{"$f":"[1]Infrastructure!AH448","v":0},0]
[0,null,null,null,null,null,{"$f":"[1]Infrastructure!G449","v":0},{"$f":"[1]Infrastructure!H449","v":0},{"$f":"[1]Infrastructure!I449","v":0},{"$f":"[1]Infrastructure!J449","v":0},{"$f":"[1]Infrastructure!K449","v":0},{"$f":"[1]Infrastructure!L449","v":0},{"$f":"[1]Infrastructure!M449","v":0},{"$f":"[1]Infrastructure!N449","v":0},{"$f":"[1]Infrastructure!O449","v":0},{"$f":"[1]Infrastructure!Q449","v":0},{"$f":"[1]Infrastructure!R449","v":0},{"$f":"[1]Infrastructure!T449","v":0},{"$f":"[1]Infrastructure!W449","v":0},{"$f":"[1]Infrastructure!W449","v":0},0,{"$f":"[1]Infrastructure!Z449","v":0},{"$f":"[1]Infrastructure!Z449","v":0},0,{"$f":"[1]Infrastructure!AB449","v":0},{"$f":"[1]Infrastructure!AB449","v":0},0,{"$f":"[1]Infrastructure!AC449","v":0},{"$f":"[1]Infrastructure!AD449","v":0},{"$f":"[1]Infrastructure!AE449","v":0},{"$f":"[1]Infrastructure!AF449","v":0},{"$f":"[1]Infrastructure!AG449","v":0},{"$f":"[1]Infrastructure!AH449","v":0},0]
[0,null,null,null,null,null,{"$f":"[1]Infrastructure!G450","v":0},{"$f":"[1]Infrastructure!H450","v":0},{"$f":"[1]Infrastructure!I450","v":0},{"$f":"[1]Infrastructure!J450","v":0},{"$f":"[1]Infrastructure!K450","v":0},{"$f":"[1]Infrastructure!L450","v":0},{"$f":"[1]Infrastructure!M450","v":0},{"$f":"[1]Infrastructure!N450","v":0},{"$f":"[1]Infrastructure!O450","v":0},{"$f":"[1]Infrastructure!Q450","v":0},{"$f":"[1]Infrastructure!R450","v":0},{"$f":"[1]Infrastructure!T450","v":0},{"$f":"[1]Infrastructure!W450","v":0},{"$f":"[1]Infrastructure!W450","v":0},0,{"$f":"[1]Infrastructure!Z450","v":0},{"$f":"[1]Infrastructure!Z450","v":0},0,{"$f":"[1]Infrastructure!AB450","v":0},{"$f":"[1]Infrastructure!AB450","v":0},0,{"$f":"[1]Infrastructure!AC450","v":0},{"$f":"[1]Infrastructure!AD450","v":0},{"$f":"[1]Infrastructure!AE450","v":0},{"$f":"[1]Infrastructure!AF450","v":0},{"$f":"[1]Infrastructure!AG450","v":0},{"$f":"[1]Infrastructure!AH450","v":0},0]
[0,null,null,null,null,null,{"$f":"[1]Infrastructure!G451","v":0},{"$f":"[1]Infrastructure!H451","v":0},{"$f":"[1]Infrastructure!I451","v":0},{"$f":"[1]Infrastructure!J451","v":0},{"$f":"[1]Infrastructure!K451","v":0},{"$f":"[1]Infrastructure!L451","v":0},{"$f":"[1]Infrastructure!M451","v":0},{"$f":"[1]Infrastructure!N451","v":0},{"$f":"[1]Infrastructure!O451","v":0},{"$f":"[1]Infrastructure!Q451","v":0},{"$f":"[1]Infrastructure!R451","v":0},{"$f":"[1]Infrastructure!T451","v":0},{"$f":"[1]Infrastructure!W451","v":0},{"$f":"[1]Infrastructure!W451","v":0},0,{"$f":"[1]Infrastructure!Z451","v":0},{"$f":"[1]Infrastructure!Z451","v":0},0,{"$f":"[1]Infrastructure!AB451","v":0},{"$f":"[1]Infrastructure!AB451","v":0},0,{"$f":"[1]Infrastructure!AC451","v":0},{"$f":"[1]Infrastructure!AD451","v":0},{"$f":"[1]Infrastructure!AE451","v":0},{"$f":"[1]Infrastructure!AF451","v":0},{"$f":"[1]Infrastructure!AG451","v":0},{"$f":"[1]Infrastructure!AH451","v":0},0]
[0,null,null,null,null,null,{"$f":"[1]Infrastructure!G452","v":0},{"$f":"[1]Infrastructure!H452","v":0},{"$f":"[1]Infrastructure!I452","v":0},{"$f":"[1]Infrastructure!J452","v":0},{"$f":"[1]Infrastructure!K452","v":0},{"$f":"[1]Infrastructure!L452","v":0},{"$f":"[1]Infrastructure!M452","v":0},{"$f":"[1]Infrastructure!N452","v":0},{"$f":"[1]Infrastructure!O452","v":0},{"$f":"[1]Infrastructure!Q452","v":0},{"$f":"[1]Infrastructure!R452","v":0},{"$f":"[1]Infrastructure!T452","v":0},{"$f":"[1]Infrastructure!W452","v":0},{"$f":"[1]Infrastructure!W452","v":0},0,{"$f":"[1]Infrastructure!Z452","v":0},{"$f":"[1]Infrastructure!Z452","v":0},0,{"$f":"[1]Infrastructure!AB452","v":0},{"$f":"[1]Infrastructure!AB452","v":0},0,{"$f":"[1]Infrastructure!AC452","v":0},{"$f":"[1]Infrastructure!AD452","v":0},{"$f":"[1]Infrastructure!AE452","v":0},{"$f":"[1]Infrastructure!AF452","v":0},{"$f":"[1]Infrastructure!AG452","v":0},{"$f":"[1]Infrastructure!AH452","v":0},0]
[0,null,null,null,null,null,{"$f":"[1]Infrastructure!G453","v":0},{"$f":"[1]Infrastructure!H453","v":0},{"$f":"[1]Infrastructure!I453","v":0},{"$f":"[1]Infrastructure!J453","v":0},{"$f":"[1]Infrastructure!K453","v":0},{"$f":"[1]Infrastructure!L453","v":0},{"$f":"[1]Infrastructure!M453","v":0},{"$f":"[1]Infrastructure!N453","v":0},{"$f":"[1]Infrastructure!O453","v":0},{"$f":"[1]Infrastructure!Q453","v":0},{"$f":"[1]Infrastructure!R453","v":0},{"$f":"[1]Infrastructure!T453","v":0},{"$f":"[1]Infrastructure!W453","v":0},{"$f":"[1]Infrastructure!W453","v":0},0,{"$f":"[1]Infrastructure!Z453","v":0},{"$f":"[1]Infrastructure!Z453","v":0},0,{"$f":"[1]Infrastructure!AB453","v":0},{"$f":"[1]Infrastructure!AB453","v":0},0,{"$f":"[1]Infrastructure!AC453","v":0},{"$f":"[1]Infrastructure!AD453","v":0},{"$f":"[1]Infrastructure!AE453","v":0},{"$f":"[1]Infrastructure!AF453","v":0},{"$f":"[1]Infrastructure!AG453","v":0},{"$f":"[1]Infrastructure!AH453","v":0},0]
[0,null,null,null,null,null,{"$f":"[1]Infrastructure!G454","v":0},{"$f":"[1]Infrastructure!H454","v":0},{"$f":"[1]Infrastructure!I454","v":0},{"$f":"[1]Infrastructure!J454","v":0},{"$f":"[1]Infrastructure!K454","v":0},{"$f":"[1]Infrastructure!L454","v":0},{"$f":"[1]Infrastructure!M454","v":0},{"$f":"[1]Infrastructure!N454","v":0},{"$f":"[1]Infrastructure!O454","v":0},{"$f":"[1]Infrastructure!Q454","v":0},{"$f":"[1]Infrastructure!R454","v":0},{"$f":"[1]Infrastructure!T454","v":0},{"$f":"[1]Infrastructure!W454","v":0},{"$f":"[1]Infrastructure!W454","v":0},0,{"$f":"[1]Infrastructure!Z454","v":0},{"$f":"[1]Infrastructure!Z454","v":0},0,{"$f":"[1]Infrastructure!AB454","v":0},{"$f":"[1]Infrastructure!AB454","v":0},0,{"$f":"[1]Infrastructure!AC454","v":0},{"$f":"[1]Infrastructure!AD454","v":0},{"$f":"[1]Infrastructure!AE454","v":0},{"$f":"[1]Infrastructure!AF454","v":0},{"$f":"[1]Infrastructure!AG454","v":0},{"$f":"[1]Infrastructure!AH454","v":0},0]
[0,null,null,null,null,null,{"$f":"[1]Infrastructure!G455","v":0},{"$f":"[1]Infrastructure!H455","v":0},{"$f":"[1]Infrastructure!I455","v":0},{"$f":"[1]Infrastructure!J455","v":0},{"$f":"[1]Infrastructure!K455","v":0},{"$f":"[1]Infrastructure!L455","v":0},{"$f":"[1]Infrastructure!M455","v":0},{"$f":"[1]Infrastructure!N455","v":0},{"$f":"[1]Infrastructure!O455","v":0},{"$f":"[1]Infrastructure!Q455","v":0},{"$f":"[1]Infrastructure!R455","v":0},{"$f":"[1]Infrastructure!T455","v":0},{"$f":"[1]Infrastructure!W455","v":0},{"$f":"[1]Infrastructure!W455","v":0},0,{"$f":"[1]Infrastructure!Z455","v":0},{"$f":"[1]Infrastructure!Z455","v":0},0,{"$f":"[1]Infrastructure!AB455","v":0},{"$f":"[1]Infrastructure!AB455","v":0},0,{"$f":"[1]Infrastructure!AC455","v":0},{"$f":"[1]Infrastructure!AD455","v":0},{"$f":"[1]Infrastructure!AE455","v":0},{"$f":"[1]Infrastructure!AF455","v":0},{"$f":"[1]Infrastructure!AG455","v":0},{"$f":"[1]Infrastructure!AH455","v":0},0]
[0,null,null,null,null,null,{"$f":"[1]Infrastructure!G456","v":0},{"$f":"[1]Infrastructure!H456","v":0},{"$f":"[1]Infrastructure!I456","v":0},{"$f":"[1]Infrastructure!J456","v":0},{"$f":"[1]Infrastructure!K456","v":0},{"$f":"[1]Infrastructure!L456","v":0},{"$f":"[1]Infrastructure!M456","v":0},{"$f":"[1]Infrastructure!N456","v":0},{"$f":"[1]Infrastructure!O456","v":0},{"$f":"[1]Infrastructure!Q456","v":0},{"$f":"[1]Infrastructure!R456","v":0},{"$f":"[1]Infrastructure!T456","v":0},{"$f":"[1]Infrastructure!W456","v":0},{"$f":"[1]Infrastructure!W456","v":0},0,{"$f":"[1]Infrastructure!Z456","v":0},{"$f":"[1]Infrastructure!Z456","v":0},0,{"$f":"[1]Infrastructure!AB456","v":0},{"$f":"[1]Infrastructure!AB456","v":0},0,{"$f":"[1]Infrastructure!AC456","v":0},{"$f":"[1]Infrastructure!AD456","v":0},{"$f":"[1]Infrastructure!AE456","v":0},{"$f":"[1]Infrastructure!AF456","v":0},{"$f":"[1]Infrastructure!AG456","v":0},{"$f":"[1]Infrastructure!AH456","v":0},0]
[0,null,null,null,null,null,{"$f":"[1]Infrastructure!G457","v":0},{"$f":"[1]Infrastructure!H457","v":0},{"$f":"[1]Infrastructure!I457","v":0},{"$f":"[1]Infrastructure!J457","v":0},{"$f":"[1]Infrastructure!K457","v":0},{"$f":"[1]Infrastructure!L457","v":0},{"$f":"[1]Infrastructure!M457","v":0},{"$f":"[1]Infrastructure!N457","v":0},{"$f":"[1]Infrastructure!O457","v":0},{"$f":"[1]Infrastructure!Q457","v":0},{"$f":"[1]Infrastructure!R457","v":0},{"$f":"[1]Infrastructure!T457","v":0},{"$f":"[1]Infrastructure!W457","v":0},{"$f":"[1]Infrastructure!W457","v":0},0,{"$f":"[1]Infrastructure!Z457","v":0},{"$f":"[1]Infrastructure!Z457","v":0},0,{"$f":"[1]Infrastructure!AB457","v":0},{"$f":"[1]Infrastructure!AB457","v":0},0,{"$f":"[1]Infrastructure!AC457","v":0},{"$f":"[1]Infrastructure!AD457","v":0},{"$f":"[1]Infrastructure!AE457","v":0},{"$f":"[1]Infrastructure!AF457","v":0},{"$f":"[1]Infrastructure!AG457","v":0},{"$f":"[1]Infrastructure!AH457","v":0},0]
[0,null,null,null,null,null,{"$f":"[1]Infrastructure!G458","v":0},{"$f":"[1]Infrastructure!H458","v":0},{"$f":"[1]Infrastructure!I458","v":0},{"$f":"[1]Infrastructure!J458","v":0},{"$f":"[1]Infrastructure!K458","v":0},{"$f":"[1]Infrastructure!L458","v":0},{"$f":"[1]Infrastructure!M458","v":0},{"$f":"[1]Infrastructure!N458","v":0},{"$f":"[1]Infrastructure!O458","v":0},{"$f":"[1]Infrastructure!Q458","v":0},{"$f":"[1]Infrastructure!R458","v":0},{"$f":"[1]Infrastructure!T458","v":0},{"$f":"[1]Infrastructure!W458","v":0},{"$f":"[1]Infrastructure!W458","v":0},0,{"$f":"[1]Infrastructure!Z458","v":0},{"$f":"[1]Infrastructure!Z458","v":0},0,{"$f":"[1]Infrastructure!AB458","v":0},{"$f":"[1]Infrastructure!AB458","v":0},0,{"$f":"[1]Infrastructure!AC458","v":0},{"$f":"[1]Infrastructure!AD458","v":0},{"$f":"[1]Infrastructure!AE458","v":0},{"$f":"[1]Infrastructure!AF458","v":0},{"$f":"[1]Infrastructure!AG458","v":0},{"$f":"[1]Infrastructure!AH458","v":0},0]
[0,null,null,null,null,null,{"$f":"[1]Infrastructure!G459","v":0},{"$f":"[1]Infrastructure!H459","v":0},{"$f":"[1]Infrastructure!I459","v":0},{"$f":"[1]Infrastructure!J459","v":0},{"$f":"[1]Infrastructure!K459","v":0},{"$f":"[1]Infrastructure!L459","v":0},{"$f":"[1]Infrastructure!M459","v":0},{"$f":"[1]Infrastructure!N459","v":0},{"$f":"[1]Infrastructure!O459","v":0},{"$f":"[1]Infrastructure!Q459","v":0},{"$f":"[1]Infrastructure!R459","v":0},{"$f":"[1]Infrastructure!T459","v":0},{"$f":"[1]Infrastructure!W459","v":0},{"$f":"[1]Infrastructure!W459","v":0},0,{"$f":"[1]Infrastructure!Z459","v":0},{"$f":"[1]Infrastructure!Z459","v":0},0,{"$f":"[1]Infrastructure!AB459","v":0},{"$f":"[1]Infrastructure!AB459","v":0},0,{"$f":"[1]Infrastructure!AC459","v":0},{"$f":"[1]Infrastructure!AD459","v":0},{"$f":"[1]Infrastructure!AE459","v":0},{"$f":"[1]Infrastructure!AF459","v":0},{"$f":"[1]Infrastructure!AG459","v":0},{"$f":"[1]Infrastructure!AH459","v":0},0]
[{"$f":"IF(SUM(O460:AH460),1,0)","v":0},null,null,null,null,null,{"$f":"[1]Infrastructure!G460","v":0},{"$f":"[1]Infrastructure!H460","v":0},{"$f":"[1]Infrastructure!I460","v":0},{"$f":"[1]Infrastructure!J460","v":0},{"$f":"[1]Infrastructure!K460","v":0},{"$f":"[1]Infrastructure!L460","v":0},{"$f":"[1]Infrastructure!M460","v":0},{"$f":"[1]Infrastructure!N460","v":0},{"$f":"[1]Infrastructure!O460","v":0},{"$f":"[1]Infrastructure!Q460","v":0},{"$f":"[1]Infrastructure!R460","v":0},{"$f":"[1]Infrastructure!T460","v":0},{"$f":"[1]Infrastructure!W460","v":0},{"$f":"[1]Infrastructure!W460","v":0},{"$f":"SUM(T460-S460)","v":0},{"$f":"[1]Infrastructure!Z460","v":0},{"$f":"[1]Infrastructure!Z460","v":0},{"$f":"SUM(W460-V460)","v":0},{"$f":"[1]Infrastructure!AB460","v":0},{"$f":"[1]Infrastructure!AB460","v":0},{"$f":"SUM(Z460-Y460)","v":0},{"$f":"[1]Infrastructure!AC460","v":0},{"$f":"[1]Infrastructure!AD460","v":0},{"$f":"[1]Infrastructure!AE460","v":0},{"$f":"[1]Infrastructure!AF460","v":0},{"$f":"[1]Infrastructure!AG460","v":0},{"$f":"[1]Infrastructure!AH460","v":0},0]
[0,null,null,null,null,null,{"$f":"[1]Infrastructure!G461","v":0},{"$f":"[1]Infrastructure!H461","v":0},{"$f":"[1]Infrastructure!I461","v":0},{"$f":"[1]Infrastructure!J461","v":0},{"$f":"[1]Infrastructure!K461","v":0},{"$f":"[1]Infrastructure!L461","v":0},{"$f":"[1]Infrastructure!M461","v":0},{"$f":"[1]Infrastructure!N461","v":0},{"$f":"[1]Infrastructure!O461","v":0},{"$f":"[1]Infrastructure!Q461","v":0},{"$f":"[1]Infrastructure!R461","v":0},{"$f":"[1]Infrastructure!T461","v":0},{"$f":"[1]Infrastructure!W461","v":0},{"$f":"[1]Infrastructure!W461","v":0},0,{"$f":"[1]Infrastructure!Z461","v":0},{"$f":"[1]Infrastructure!Z461","v":0},0,{"$f":"[1]Infrastructure!AB461","v":0},{"$f":"[1]Infrastructure!AB461","v":0},0,{"$f":"[1]Infrastructure!AC461","v":0},{"$f":"[1]Infrastructure!AD461","v":0},{"$f":"[1]Infrastructure!AE461","v":0},{"$f":"[1]Infrastructure!AF461","v":0},{"$f":"[1]Infrastructure!AG461","v":0},{"$f":"[1]Infrastructure!AH461","v":0},0]
[0,null,null,null,null,null,{"$f":"[1]Infrastructure!G462","v":0},{"$f":"[1]Infrastructure!H462","v":0},{"$f":"[1]Infrastructure!I462","v":0},{"$f":"[1]Infrastructure!J462","v":0},{"$f":"[1]Infrastructure!K462","v":0},{"$f":"[1]Infrastructure!L462","v":0},{"$f":"[1]Infrastructure!M462","v":0},{"$f":"[1]Infrastructure!N462","v":0},{"$f":"[1]Infrastructure!O462","v":0},{"$f":"[1]Infrastructure!Q462","v":0},{"$f":"[1]Infrastructure!R462","v":0},{"$f":"[1]Infrastructure!T462","v":0},{"$f":"[1]Infrastructure!W462","v":0},{"$f":"[1]Infrastructure!W462","v":0},0,{"$f":"[1]Infrastructure!Z462","v":0},{"$f":"[1]Infrastructure!Z462","v":0},0,{"$f":"[1]Infrastructure!AB462","v":0},{"$f":"[1]Infrastructure!AB462","v":0},0,{"$f":"[1]Infrastructure!AC462","v":0},{"$f":"[1]Infrastructure!AD462","v":0},{"$f":"[1]Infrastructure!AE462","v":0},{"$f":"[1]Infrastructure!AF462","v":0},{"$f":"[1]Infrastructure!AG462","v":0},{"$f":"[1]Infrastructure!AH462","v":0},0]
[0,null,null,null,null,null,{"$f":"[1]Infrastructure!G463","v":0},{"$f":"[1]Infrastructure!H463","v":0},{"$f":"[1]Infrastructure!I463","v":0},{"$f":"[1]Infrastructure!J463","v":0},{"$f":"[1]Infrastructure!K463","v":0},{"$f":"[1]Infrastructure!L463","v":0},{"$f":"[1]Infrastructure!M463","v":0},{"$f":"[1]Infrastructure!N463","v":0},{"$f":"[1]Infrastructure!O463","v":0},{"$f":"[1]Infrastructure!Q463","v":0},{"$f":"[1]Infrastructure!R463","v":0},{"$f":"[1]Infrastructure!T463","v":0},{"$f":"[1]Infrastructure!W463","v":0},{"$f":"[1]Infrastructure!W463","v":0},0,{"$f":"[1]Infrastructure!Z463","v":0},{"$f":"[1]Infrastructure!Z463","v":0},0,{"$f":"[1]Infrastructure!AB463","v":0},{"$f":"[1]Infrastructure!AB463","v":0},0,{"$f":"[1]Infrastructure!AC463","v":0},{"$f":"[1]Infrastructure!AD463","v":0},{"$f":"[1]Infrastructure!AE463","v":0},{"$f":"[1]Infrastructure!AF463","v":0},{"$f":"[1]Infrastructure!AG463","v":0},{"$f":"[1]Infrastructure!AH463","v":0},0]
[0,null,null,null,null,null,{"$f":"[1]Infrastructure!G464","v":0},{"$f":"[1]Infrastructure!H464","v":0},{"$f":"[1]Infrastructure!I464","v":0},{"$f":"[1]Infrastructure!J464","v":0},{"$f":"[1]Infrastructure!K464","v":0},{"$f":"[1]Infrastructure!L464","v":0},{"$f":"[1]Infrastructure!M464","v":0},{"$f":"[1]Infrastructure!N464","v":0},{"$f":"[1]Infrastructure!O464","v":0},{"$f":"[1]Infrastructure!Q464","v":0},{"$f":"[1]Infrastructure!R464","v":0},{"$f":"[1]Infrastructure!T464","v":0},{"$f":"[1]Infrastructure!W464","v":0},{"$f":"[1]Infrastructure!W464","v":0},0,{"$f":"[1]Infrastructure!Z464","v":0},{"$f":"[1]Infrastructure!Z464","v":0},0,{"$f":"[1]Infrastructure!AB464","v":0},{"$f":"[1]Infrastructure!AB464","v":0},0,{"$f":"[1]Infrastructure!AC464","v":0},{"$f":"[1]Infrastructure!AD464","v":0},{"$f":"[1]Infrastructure!AE464","v":0},{"$f":"[1]Infrastructure!AF464","v":0},{"$f":"[1]Infrastructure!AG464","v":0},{"$f":"[1]Infrastructure!AH464","v":0},0]
[0,null,null,null,null,null,{"$f":"[1]Infrastructure!G465","v":0},{"$f":"[1]Infrastructure!H465","v":0},{"$f":"[1]Infrastructure!I465","v":0},{"$f":"[1]Infrastructure!J465","v":0},{"$f":"[1]Infrastructure!K465","v":0},{"$f":"[1]Infrastructure!L465","v":0},{"$f":"[1]Infrastructure!M465","v":0},{"$f":"[1]Infrastructure!N465","v":0},{"$f":"[1]Infrastructure!O465","v":0},{"$f":"[1]Infrastructure!Q465","v":0},{"$f":"[1]Infrastructure!R465","v":0},{"$f":"[1]Infrastructure!T465","v":0},{"$f":"[1]Infrastructure!W465","v":0},{"$f":"[1]Infrastructure!W465","v":0},0,{"$f":"[1]Infrastructure!Z465","v":0},{"$f":"[1]Infrastructure!Z465","v":0},0,{"$f":"[1]Infrastructure!AB465","v":0},{"$f":"[1]Infrastructure!AB465","v":0},0,{"$f":"[1]Infrastructure!AC465","v":0},{"$f":"[1]Infrastructure!AD465","v":0},{"$f":"[1]Infrastructure!AE465","v":0},{"$f":"[1]Infrastructure!AF465","v":0},{"$f":"[1]Infrastructure!AG465","v":0},{"$f":"[1]Infrastructure!AH465","v":0},0]
[0,null,null,null,null,null,{"$f":"[1]Infrastructure!G466","v":0},{"$f":"[1]Infrastructure!H466","v":0},{"$f":"[1]Infrastructure!I466","v":0},{"$f":"[1]Infrastructure!J466","v":0},{"$f":"[1]Infrastructure!K466","v":0},{"$f":"[1]Infrastructure!L466","v":0},{"$f":"[1]Infrastructure!M466","v":0},{"$f":"[1]Infrastructure!N466","v":0},{"$f":"[1]Infrastructure!O466","v":0},{"$f":"[1]Infrastructure!Q466","v":0},{"$f":"[1]Infrastructure!R466","v":0},{"$f":"[1]Infrastructure!T466","v":0},{"$f":"[1]Infrastructure!W466","v":0},{"$f":"[1]Infrastructure!W466","v":0},0,{"$f":"[1]Infrastructure!Z466","v":0},{"$f":"[1]Infrastructure!Z466","v":0},0,{"$f":"[1]Infrastructure!AB466","v":0},{"$f":"[1]Infrastructure!AB466","v":0},0,{"$f":"[1]Infrastructure!AC466","v":0},{"$f":"[1]Infrastructure!AD466","v":0},{"$f":"[1]Infrastructure!AE466","v":0},{"$f":"[1]Infrastructure!AF466","v":0},{"$f":"[1]Infrastructure!AG466","v":0},{"$f":"[1]Infrastructure!AH466","v":0},0]
[0,null,null,null,null,null,{"$f":"[1]Infrastructure!G467","v":0},{"$f":"[1]Infrastructure!H467","v":0},{"$f":"[1]Infrastructure!I467","v":0},{"$f":"[1]Infrastructure!J467","v":0},{"$f":"[1]Infrastructure!K467","v":0},{"$f":"[1]Infrastructure!L467","v":0},{"$f":"[1]Infrastructure!M467","v":0},{"$f":"[1]Infrastructure!N467","v":0},{"$f":"[1]Infrastructure!O467","v":0},{"$f":"[1]Infrastructure!Q467","v":0},{"$f":"[1]Infrastructure!R467","v":0},{"$f":"[1]Infrastructure!T467","v":0},{"$f":"[1]Infrastructure!W467","v":0},{"$f":"[1]Infrastructure!W467","v":0},0,{"$f":"[1]Infrastructure!Z467","v":0},{"$f":"[1]Infrastructure!Z467","v":0},0,{"$f":"[1]Infrastructure!AB467","v":0},{"$f":"[1]Infrastructure!AB467","v":0},0,{"$f":"[1]Infrastructure!AC467","v":0},{"$f":"[1]Infrastructure!AD467","v":0},{"$f":"[1]Infrastructure!AE467","v":0},{"$f":"[1]Infrastructure!AF467","v":0},{"$f":"[1]Infrastructure!AG467","v":0},{"$f":"[1]Infrastructure!AH467","v":0},0]
[0,null,null,null,null,null,{"$f":"[1]Infrastructure!G468","v":0},{"$f":"[1]Infrastructure!H468","v":0},{"$f":"[1]Infrastructure!I468","v":0},{"$f":"[1]Infrastructure!J468","v":0},{"$f":"[1]Infrastructure!K468","v":0},{"$f":"[1]Infrastructure!L468","v":0},{"$f":"[1]Infrastructure!M468","v":0},{"$f":"[1]Infrastructure!N468","v":0},{"$f":"[1]Infrastructure!O468","v":0},{"$f":"[1]Infrastructure!Q468","v":0},{"$f":"[1]Infrastructure!R468","v":0},{"$f":"[1]Infrastructure!T468","v":0},{"$f":"[1]Infrastructure!W468","v":0},{"$f":"[1]Infrastructure!W468","v":0},0,{"$f":"[1]Infrastructure!Z468","v":0},{"$f":"[1]Infrastructure!Z468","v":0},0,{"$f":"[1]Infrastructure!AB468","v":0},{"$f":"[1]Infrastructure!AB468","v":0},0,{"$f":"[1]Infrastructure!AC468","v":0},{"$f":"[1]Infrastructure!AD468","v":0},{"$f":"[1]Infrastructure!AE468","v":0},{"$f":"[1]Infrastructure!AF468","v":0},{"$f":"[1]Infrastructure!AG468","v":0},{"$f":"[1]Infrastructure!AH468","v":0},0]
[0,null,null,null,null,null,{"$f":"[1]Infrastructure!G469","v":0},{"$f":"[1]Infrastructure!H469","v":0},{"$f":"[1]Infrastructure!I469","v":0},{"$f":"[1]Infrastructure!J469","v":0},{"$f":"[1]Infrastructure!K469","v":0},{"$f":"[1]Infrastructure!L469","v":0},{"$f":"[1]Infrastructure!M469","v":0},{"$f":"[1]Infrastructure!N469","v":0},{"$f":"[1]Infrastructure!O469","v":0},{"$f":"[1]Infrastructure!Q469","v":0},{"$f":"[1]Infrastructure!R469","v":0},{"$f":"[1]Infrastructure!T469","v":0},{"$f":"[1]Infrastructure!W469","v":0},{"$f":"[1]Infrastructure!W469","v":0},0,{"$f":"[1]Infrastructure!Z469","v":0},{"$f":"[1]Infrastructure!Z469","v":0},0,{"$f":"[1]Infrastructure!AB469","v":0},{"$f":"[1]Infrastructure!AB469","v":0},0,{"$f":"[1]Infrastructure!AC469","v":0},{"$f":"[1]Infrastructure!AD469","v":0},{"$f":"[1]Infrastructure!AE469","v":0},{"$f":"[1]Infrastructure!AF469","v":0},{"$f":"[1]Infrastructure!AG469","v":0},{"$f":"[1]Infrastructure!AH469","v":0},0]
[0,null,null,null,null,null,{"$f":"[1]Infrastructure!G470","v":0},{"$f":"[1]Infrastructure!H470","v":0},{"$f":"[1]Infrastructure!I470","v":0},{"$f":"[1]Infrastructure!J470","v":0},{"$f":"[1]Infrastructure!K470","v":0},{"$f":"[1]Infrastructure!L470","v":0},{"$f":"[1]Infrastructure!M470","v":0},{"$f":"[1]Infrastructure!N470","v":0},{"$f":"[1]Infrastructure!O470","v":0},{"$f":"[1]Infrastructure!Q470","v":0},{"$f":"[1]Infrastructure!R470","v":0},{"$f":"[1]Infrastructure!T470","v":0},{"$f":"[1]Infrastructure!W470","v":0},{"$f":"[1]Infrastructure!W470","v":0},0,{"$f":"[1]Infrastructure!Z470","v":0},{"$f":"[1]Infrastructure!Z470","v":0},0,{"$f":"[1]Infrastructure!AB470","v":0},{"$f":"[1]Infrastructure!AB470","v":0},0,{"$f":"[1]Infrastructure!AC470","v":0},{"$f":"[1]Infrastructure!AD470","v":0},{"$f":"[1]Infrastructure!AE470","v":0},{"$f":"[1]Infrastructure!AF470","v":0},{"$f":"[1]Infrastructure!AG470","v":0},{"$f":"[1]Infrastructure!AH470","v":0},0]
[0,null,null,null,null,null,{"$f":"[1]Infrastructure!G471","v":0},{"$f":"[1]Infrastructure!H471","v":0},{"$f":"[1]Infrastructure!I471","v":0},{"$f":"[1]Infrastructure!J471","v":0},{"$f":"[1]Infrastructure!K471","v":0},{"$f":"[1]Infrastructure!L471","v":0},{"$f":"[1]Infrastructure!M471","v":0},{"$f":"[1]Infrastructure!N471","v":0},{"$f":"[1]Infrastructure!O471","v":0},{"$f":"[1]Infrastructure!Q471","v":0},{"$f":"[1]Infrastructure!R471","v":0},{"$f":"[1]Infrastructure!T471","v":0},{"$f":"[1]Infrastructure!W471","v":0},{"$f":"[1]Infrastructure!W471","v":0},0,{"$f":"[1]Infrastructure!Z471","v":0},{"$f":"[1]Infrastructure!Z471","v":0},0,{"$f":"[1]Infrastructure!AB471","v":0},{"$f":"[1]Infrastructure!AB471","v":0},0,{"$f":"[1]Infrastructure!AC471","v":0},{"$f":"[1]Infrastructure!AD471","v":0},{"$f":"[1]Infrastructure!AE471","v":0},{"$f":"[1]Infrastructure!AF471","v":0},{"$f":"[1]Infrastructure!AG471","v":0},{"$f":"[1]Infrastructure!AH471","v":0},0]
[0,null,null,null,null,null,{"$f":"[1]Infrastructure!G472","v":0},{"$f":"[1]Infrastructure!H472","v":0},{"$f":"[1]Infrastructure!I472","v":0},{"$f":"[1]Infrastructure!J472","v":0},{"$f":"[1]Infrastructure!K472","v":0},{"$f":"[1]Infrastructure!L472","v":0},{"$f":"[1]Infrastructure!M472","v":0},{"$f":"[1]Infrastructure!N472","v":0},{"$f":"[1]Infrastructure!O472","v":0},{"$f":"[1]Infrastructure!Q472","v":0},{"$f":"[1]Infrastructure!R472","v":0},{"$f":"[1]Infrastructure!T472","v":0},{"$f":"[1]Infrastructure!W472","v":0},{"$f":"[1]Infrastructure!W472","v":0},0,{"$f":"[1]Infrastructure!Z472","v":0},{"$f":"[1]Infrastructure!Z472","v":0},0,{"$f":"[1]Infrastructure!AB472","v":0},{"$f":"[1]Infrastructure!AB472","v":0},0,{"$f":"[1]Infrastructure!AC472","v":0},{"$f":"[1]Infrastructure!AD472","v":0},{"$f":"[1]Infrastructure!AE472","v":0},{"$f":"[1]Infrastructure!AF472","v":0},{"$f":"[1]Infrastructure!AG472","v":0},{"$f":"[1]Infrastructure!AH472","v":0},0]
[0,null,null,null,null,null,{"$f":"[1]Infrastructure!G473","v":0},{"$f":"[1]Infrastructure!H473","v":0},{"$f":"[1]Infrastructure!I473","v":0},{"$f":"[1]Infrastructure!J473","v":0},{"$f":"[1]Infrastructure!K473","v":0},{"$f":"[1]Infrastructure!L473","v":0},{"$f":"[1]Infrastructure!M473","v":0},{"$f":"[1]Infrastructure!N473","v":0},{"$f":"[1]Infrastructure!O473","v":0},{"$f":"[1]Infrastructure!Q473","v":0},{"$f":"[1]Infrastructure!R473","v":0},{"$f":"[1]Infrastructure!T473","v":0},{"$f":"[1]Infrastructure!W473","v":0},{"$f":"[1]Infrastructure!W473","v":0},0,{"$f":"[1]Infrastructure!Z473","v":0},{"$f":"[1]Infrastructure!Z473","v":0},0,{"$f":"[1]Infrastructure!AB473","v":0},{"$f":"[1]Infrastructure!AB473","v":0},0,{"$f":"[1]Infrastructure!AC473","v":0},{"$f":"[1]Infrastructure!AD473","v":0},{"$f":"[1]Infrastructure!AE473","v":0},{"$f":"[1]Infrastructure!AF473","v":0},{"$f":"[1]Infrastructure!AG473","v":0},{"$f":"[1]Infrastructure!AH473","v":0},0]
[0,null,null,null,null,null,{"$f":"[1]Infrastructure!G474","v":0},{"$f":"[1]Infrastructure!H474","v":0},{"$f":"[1]Infrastructure!I474","v":0},{"$f":"[1]Infrastructure!J474","v":0},{"$f":"[1]Infrastructure!K474","v":0},{"$f":"[1]Infrastructure!L474","v":0},{"$f":"[1]Infrastructure!M474","v":0},{"$f":"[1]Infrastructure!N474","v":0},{"$f":"[1]Infrastructure!O474","v":0},{"$f":"[1]Infrastructure!Q474","v":0},{"$f":"[1]Infrastructure!R474","v":0},{"$f":"[1]Infrastructure!T474","v":0},{"$f":"[1]Infrastructure!W474","v":0},{"$f":"[1]Infrastructure!W474","v":0},0,{"$f":"[1]Infrastructure!Z474","v":0},{"$f":"[1]Infrastructure!Z474","v":0},0,{"$f":"[1]Infrastructure!AB474","v":0},{"$f":"[1]Infrastructure!AB474","v":0},0,{"$f":"[1]Infrastructure!AC474","v":0},{"$f":"[1]Infrastructure!AD474","v":0},{"$f":"[1]Infrastructure!AE474","v":0},{"$f":"[1]Infrastructure!AF474","v":0},{"$f":"[1]Infrastructure!AG474","v":0},{"$f":"[1]Infrastructure!AH474","v":0},0]
[0,null,null,null,null,null,{"$f":"[1]Infrastructure!G475","v":0},{"$f":"[1]Infrastructure!H475","v":0},{"$f":"[1]Infrastructure!I475","v":0},{"$f":"[1]Infrastructure!J475","v":0},{"$f":"[1]Infrastructure!K475","v":0},{"$f":"[1]Infrastructure!L475","v":0},{"$f":"[1]Infrastructure!M475","v":0},{"$f":"[1]Infrastructure!N475","v":0},{"$f":"[1]Infrastructure!O475","v":0},{"$f":"[1]Infrastructure!Q475","v":0},{"$f":"[1]Infrastructure!R475","v":0},{"$f":"[1]Infrastructure!T475","v":0},{"$f":"[1]Infrastructure!W475","v":0},{"$f":"[1]Infrastructure!W475","v":0},0,{"$f":"[1]Infrastructure!Z475","v":0},{"$f":"[1]Infrastructure!Z475","v":0},0,{"$f":"[1]Infrastructure!AB475","v":0},{"$f":"[1]Infrastructure!AB475","v":0},0,{"$f":"[1]Infrastructure!AC475","v":0},{"$f":"[1]Infrastructure!AD475","v":0},{"$f":"[1]Infrastructure!AE475","v":0},{"$f":"[1]Infrastructure!AF475","v":0},{"$f":"[1]Infrastructure!AG475","v":0},{"$f":"[1]Infrastructure!AH475","v":0},0]
[0,null,null,null,null,null,{"$f":"[1]Infrastructure!G476","v":0},{"$f":"[1]Infrastructure!H476","v":0},{"$f":"[1]Infrastructure!I476","v":0},{"$f":"[1]Infrastructure!J476","v":0},{"$f":"[1]Infrastructure!K476","v":0},{"$f":"[1]Infrastructure!L476","v":0},{"$f":"[1]Infrastructure!M476","v":0},{"$f":"[1]Infrastructure!N476","v":0},{"$f":"[1]Infrastructure!O476","v":0},{"$f":"[1]Infrastructure!Q476","v":0},{"$f":"[1]Infrastructure!R476","v":0},{"$f":"[1]Infrastructure!T476","v":0},{"$f":"[1]Infrastructure!W476","v":0},{"$f":"[1]Infrastructure!W476","v":0},0,{"$f":"[1]Infrastructure!Z476","v":0},{"$f":"[1]Infrastructure!Z476","v":0},0,{"$f":"[1]Infrastructure!AB476","v":0},{"$f":"[1]Infrastructure!AB476","v":0},0,{"$f":"[1]Infrastructure!AC476","v":0},{"$f":"[1]Infrastructure!AD476","v":0},{"$f":"[1]Infrastructure!AE476","v":0},{"$f":"[1]Infrastructure!AF476","v":0},{"$f":"[1]Infrastructure!AG476","v":0},{"$f":"[1]Infrastructure!AH476","v":0},0]
[0,null,null,null,null,null,{"$f":"[1]Infrastructure!G477","v":0},{"$f":"[1]Infrastructure!H477","v":0},{"$f":"[1]Infrastructure!I477","v":0},{"$f":"[1]Infrastructure!J477","v":0},{"$f":"[1]Infrastructure!K477","v":0},{"$f":"[1]Infrastructure!L477","v":0},{"$f":"[1]Infrastructure!M477","v":0},{"$f":"[1]Infrastructure!N477","v":0},{"$f":"[1]Infrastructure!O477","v":0},{"$f":"[1]Infrastructure!Q477","v":0},{"$f":"[1]Infrastructure!R477","v":0},{"$f":"[1]Infrastructure!T477","v":0},{"$f":"[1]Infrastructure!W477","v":0},{"$f":"[1]Infrastructure!W477","v":0},0,{"$f":"[1]Infrastructure!Z477","v":0},{"$f":"[1]Infrastructure!Z477","v":0},0,{"$f":"[1]Infrastructure!AB477","v":0},{"$f":"[1]Infrastructure!AB477","v":0},0,{"$f":"[1]Infrastructure!AC477","v":0},{"$f":"[1]Infrastructure!AD477","v":0},{"$f":"[1]Infrastructure!AE477","v":0},{"$f":"[1]Infrastructure!AF477","v":0},{"$f":"[1]Infrastructure!AG477","v":0},{"$f":"[1]Infrastructure!AH477","v":0},0]
[0,null,null,null,null,null,{"$f":"[1]Infrastructure!G478","v":0},{"$f":"[1]Infrastructure!H478","v":0},{"$f":"[1]Infrastructure!I478","v":0},{"$f":"[1]Infrastructure!J478","v":0},{"$f":"[1]Infrastructure!K478","v":0},{"$f":"[1]Infrastructure!L478","v":0},{"$f":"[1]Infrastructure!M478","v":0},{"$f":"[1]Infrastructure!N478","v":0},{"$f":"[1]Infrastructure!O478","v":0},{"$f":"[1]Infrastructure!Q478","v":0},{"$f":"[1]Infrastructure!R478","v":0},{"$f":"[1]Infrastructure!T478","v":0},{"$f":"[1]Infrastructure!W478","v":0},{"$f":"[1]Infrastructure!W478","v":0},0,{"$f":"[1]Infrastructure!Z478","v":0},{"$f":"[1]Infrastructure!Z478","v":0},0,{"$f":"[1]Infrastructure!AB478","v":0},{"$f":"[1]Infrastructure!AB478","v":0},0,{"$f":"[1]Infrastructure!AC478","v":0},{"$f":"[1]Infrastructure!AD478","v":0},{"$f":"[1]Infrastructure!AE478","v":0},{"$f":"[1]Infrastructure!AF478","v":0},{"$f":"[1]Infrastructure!AG478","v":0},{"$f":"[1]Infrastructure!AH478","v":0},0]
[0,null,null,null,null,null,{"$f":"[1]Infrastructure!G479","v":0},{"$f":"[1]Infrastructure!H479","v":0},{"$f":"[1]Infrastructure!I479","v":0},{"$f":"[1]Infrastructure!J479","v":0},{"$f":"[1]Infrastructure!K479","v":0},{"$f":"[1]Infrastructure!L479","v":0},{"$f":"[1]Infrastructure!M479","v":0},{"$f":"[1]Infrastructure!N479","v":0},{"$f":"[1]Infrastructure!O479","v":0},{"$f":"[1]Infrastructure!Q479","v":0},{"$f":"[1]Infrastructure!R479","v":0},{"$f":"[1]Infrastructure!T479","v":0},{"$f":"[1]Infrastructure!W479","v":0},{"$f":"[1]Infrastructure!W479","v":0},0,{"$f":"[1]Infrastructure!Z479","v":0},{"$f":"[1]Infrastructure!Z479","v":0},0,{"$f":"[1]Infrastructure!AB479","v":0},{"$f":"[1]Infrastructure!AB479","v":0},0,{"$f":"[1]Infrastructure!AC479","v":0},{"$f":"[1]Infrastructure!AD479","v":0},{"$f":"[1]Infrastructure!AE479","v":0},{"$f":"[1]Infrastructure!AF479","v":0},{"$f":"[1]Infrastructure!AG479","v":0},{"$f":"[1]Infrastructure!AH479","v":0},0]
[0,null,null,null,null,null,{"$f":"[1]Infrastructure!G480","v":0},{"$f":"[1]Infrastructure!H480","v":0},{"$f":"[1]Infrastructure!I480","v":0},{"$f":"[1]Infrastructure!J480","v":0},{"$f":"[1]Infrastructure!K480","v":0},{"$f":"[1]Infrastructure!L480","v":0},{"$f":"[1]Infrastructure!M480","v":0},{"$f":"[1]Infrastructure!N480","v":0},{"$f":"[1]Infrastructure!O480","v":0},{"$f":"[1]Infrastructure!Q480","v":0},{"$f":"[1]Infrastructure!R480","v":0},{"$f":"[1]Infrastructure!T480","v":0},{"$f":"[1]Infrastructure!W480","v":0},{"$f":"[1]Infrastructure!W480","v":0},0,{"$f":"[1]Infrastructure!Z480","v":0},{"$f":"[1]Infrastructure!Z480","v":0},0,{"$f":"[1]Infrastructure!AB480","v":0},{"$f":"[1]Infrastructure!AB480","v":0},0,{"$f":"[1]Infrastructure!AC480","v":0},{"$f":"[1]Infrastructure!AD480","v":0},{"$f":"[1]Infrastructure!AE480","v":0},{"$f":"[1]Infrastructure!AF480","v":0},{"$f":"[1]Infrastructure!AG480","v":0},{"$f":"[1]Infrastructure!AH480","v":0},0]
[0,null,null,null,null,null,{"$f":"[1]Infrastructure!G481","v":0},{"$f":"[1]Infrastructure!H481","v":0},{"$f":"[1]Infrastructure!I481","v":0},{"$f":"[1]Infrastructure!J481","v":0},{"$f":"[1]Infrastructure!K481","v":0},{"$f":"[1]Infrastructure!L481","v":0},{"$f":"[1]Infrastructure!M481","v":0},{"$f":"[1]Infrastructure!N481","v":0},{"$f":"[1]Infrastructure!O481","v":0},{"$f":"[1]Infrastructure!Q481","v":0},{"$f":"[1]Infrastructure!R481","v":0},{"$f":"[1]Infrastructure!T481","v":0},{"$f":"[1]Infrastructure!W481","v":0},{"$f":"[1]Infrastructure!W481","v":0},0,{"$f":"[1]Infrastructure!Z481","v":0},{"$f":"[1]Infrastructure!Z481","v":0},0,{"$f":"[1]Infrastructure!AB481","v":0},{"$f":"[1]Infrastructure!AB481","v":0},0,{"$f":"[1]Infrastructure!AC481","v":0},{"$f":"[1]Infrastructure!AD481","v":0},{"$f":"[1]Infrastructure!AE481","v":0},{"$f":"[1]Infrastructure!AF481","v":0},{"$f":"[1]Infrastructure!AG481","v":0},{"$f":"[1]Infrastructure!AH481","v":0},0]
[0,null,null,null,null,null,{"$f":"[1]Infrastructure!G482","v":0},{"$f":"[1]Infrastructure!H482","v":0},{"$f":"[1]Infrastructure!I482","v":0},{"$f":"[1]Infrastructure!J482","v":0},{"$f":"[1]Infrastructure!K482","v":0},{"$f":"[1]Infrastructure!L482","v":0},{"$f":"[1]Infrastructure!M482","v":0},{"$f":"[1]Infrastructure!N482","v":0},{"$f":"[1]Infrastructure!O482","v":0},{"$f":"[1]Infrastructure!Q482","v":0},{"$f":"[1]Infrastructure!R482","v":0},{"$f":"[1]Infrastructure!T482","v":0},{"$f":"[1]Infrastructure!W482","v":0},{"$f":"[1]Infrastructure!W482","v":0},0,{"$f":"[1]Infrastructure!Z482","v":0},{"$f":"[1]Infrastructure!Z482","v":0},0,{"$f":"[1]Infrastructure!AB482","v":0},{"$f":"[1]Infrastructure!AB482","v":0},0,{"$f":"[1]Infrastructure!AC482","v":0},{"$f":"[1]Infrastructure!AD482","v":0},{"$f":"[1]Infrastructure!AE482","v":0},{"$f":"[1]Infrastructure!AF482","v":0},{"$f":"[1]Infrastructure!AG482","v":0},{"$f":"[1]Infrastructure!AH482","v":0},0]
[0,null,null,null,null,null,{"$f":"[1]Infrastructure!G483","v":0},{"$f":"[1]Infrastructure!H483","v":0},{"$f":"[1]Infrastructure!I483","v":0},{"$f":"[1]Infrastructure!J483","v":0},{"$f":"[1]Infrastructure!K483","v":0},{"$f":"[1]Infrastructure!L483","v":0},{"$f":"[1]Infrastructure!M483","v":0},{"$f":"[1]Infrastructure!N483","v":0},{"$f":"[1]Infrastructure!O483","v":0},{"$f":"[1]Infrastructure!Q483","v":0},{"$f":"[1]Infrastructure!R483","v":0},{"$f":"[1]Infrastructure!T483","v":0},{"$f":"[1]Infrastructure!W483","v":0},{"$f":"[1]Infrastructure!W483","v":0},0,{"$f":"[1]Infrastructure!Z483","v":0},{"$f":"[1]Infrastructure!Z483","v":0},0,{"$f":"[1]Infrastructure!AB483","v":0},{"$f":"[1]Infrastructure!AB483","v":0},0,{"$f":"[1]Infrastructure!AC483","v":0},{"$f":"[1]Infrastructure!AD483","v":0},{"$f":"[1]Infrastructure!AE483","v":0},{"$f":"[1]Infrastructure!AF483","v":0},{"$f":"[1]Infrastructure!AG483","v":0},{"$f":"[1]Infrastructure!AH483","v":0},0]
[0,null,null,null,null,null,{"$f":"[1]Infrastructure!G484","v":0},{"$f":"[1]Infrastructure!H484","v":0},{"$f":"[1]Infrastructure!I484","v":0},{"$f":"[1]Infrastructure!J484","v":0},{"$f":"[1]Infrastructure!K484","v":0},{"$f":"[1]Infrastructure!L484","v":0},{"$f":"[1]Infrastructure!M484","v":0},{"$f":"[1]Infrastructure!N484","v":0},{"$f":"[1]Infrastructure!O484","v":0},{"$f":"[1]Infrastructure!Q484","v":0},{"$f":"[1]Infrastructure!R484","v":0},{"$f":"[1]Infrastructure!T484","v":0},{"$f":"[1]Infrastructure!W484","v":0},{"$f":"[1]Infrastructure!W484","v":0},0,{"$f":"[1]Infrastructure!Z484","v":0},{"$f":"[1]Infrastructure!Z484","v":0},0,{"$f":"[1]Infrastructure!AB484","v":0},{"$f":"[1]Infrastructure!AB484","v":0},0,{"$f":"[1]Infrastructure!AC484","v":0},{"$f":"[1]Infrastructure!AD484","v":0},{"$f":"[1]Infrastructure!AE484","v":0},{"$f":"[1]Infrastructure!AF484","v":0},{"$f":"[1]Infrastructure!AG484","v":0},{"$f":"[1]Infrastructure!AH484","v":0},0]
[0,null,null,null,null,null,{"$f":"[1]Infrastructure!G485","v":0},{"$f":"[1]Infrastructure!H485","v":0},{"$f":"[1]Infrastructure!I485","v":0},{"$f":"[1]Infrastructure!J485","v":0},{"$f":"[1]Infrastructure!K485","v":0},{"$f":"[1]Infrastructure!L485","v":0},{"$f":"[1]Infrastructure!M485","v":0},{"$f":"[1]Infrastructure!N485","v":0},{"$f":"[1]Infrastructure!O485","v":0},{"$f":"[1]Infrastructure!Q485","v":0},{"$f":"[1]Infrastructure!R485","v":0},{"$f":"[1]Infrastructure!T485","v":0},{"$f":"[1]Infrastructure!W485","v":0},{"$f":"[1]Infrastructure!W485","v":0},0,{"$f":"[1]Infrastructure!Z485","v":0},{"$f":"[1]Infrastructure!Z485","v":0},0,{"$f":"[1]Infrastructure!AB485","v":0},{"$f":"[1]Infrastructure!AB485","v":0},0,{"$f":"[1]Infrastructure!AC485","v":0},{"$f":"[1]Infrastructure!AD485","v":0},{"$f":"[1]Infrastructure!AE485","v":0},{"$f":"[1]Infrastructure!AF485","v":0},{"$f":"[1]Infrastructure!AG485","v":0},{"$f":"[1]Infrastructure!AH485","v":0},0]
[0,null,null,null,null,null,{"$f":"[1]Infrastructure!G486","v":0},{"$f":"[1]Infrastructure!H486","v":0},{"$f":"[1]Infrastructure!I486","v":0},{"$f":"[1]Infrastructure!J486","v":0},{"$f":"[1]Infrastructure!K486","v":0},{"$f":"[1]Infrastructure!L486","v":0},{"$f":"[1]Infrastructure!M486","v":0},{"$f":"[1]Infrastructure!N486","v":0},{"$f":"[1]Infrastructure!O486","v":0},{"$f":"[1]Infrastructure!Q486","v":0},{"$f":"[1]Infrastructure!R486","v":0},{"$f":"[1]Infrastructure!T486","v":0},{"$f":"[1]Infrastructure!W486","v":0},{"$f":"[1]Infrastructure!W486","v":0},0,{"$f":"[1]Infrastructure!Z486","v":0},{"$f":"[1]Infrastructure!Z486","v":0},0,{"$f":"[1]Infrastructure!AB486","v":0},{"$f":"[1]Infrastructure!AB486","v":0},0,{"$f":"[1]Infrastructure!AC486","v":0},{"$f":"[1]Infrastructure!AD486","v":0},{"$f":"[1]Infrastructure!AE486","v":0},{"$f":"[1]Infrastructure!AF486","v":0},{"$f":"[1]Infrastructure!AG486","v":0},{"$f":"[1]Infrastructure!AH486","v":0},0]
[0,null,null,null,null,null,{"$f":"[1]Infrastructure!G487","v":0},{"$f":"[1]Infrastructure!H487","v":0},{"$f":"[1]Infrastructure!I487","v":0},{"$f":"[1]Infrastructure!J487","v":0},{"$f":"[1]Infrastructure!K487","v":0},{"$f":"[1]Infrastructure!L487","v":0},{"$f":"[1]Infrastructure!M487","v":0},{"$f":"[1]Infrastructure!N487","v":0},{"$f":"[1]Infrastructure!O487","v":0},{"$f":"[1]Infrastructure!Q487","v":0},{"$f":"[1]Infrastructure!R487","v":0},{"$f":"[1]Infrastructure!T487","v":0},{"$f":"[1]Infrastructure!W487","v":0},{"$f":"[1]Infrastructure!W487","v":0},0,{"$f":"[1]Infrastructure!Z487","v":0},{"$f":"[1]Infrastructure!Z487","v":0},0,{"$f":"[1]Infrastructure!AB487","v":0},{"$f":"[1]Infrastructure!AB487","v":0},0,{"$f":"[1]Infrastructure!AC487","v":0},{"$f":"[1]Infrastructure!AD487","v":0},{"$f":"[1]Infrastructure!AE487","v":0},{"$f":"[1]Infrastructure!AF487","v":0},{"$f":"[1]Infrastructure!AG487","v":0},{"$f":"[1]Infrastructure!AH487","v":0},0]
[0,null,null,null,null,null,{"$f":"[1]Infrastructure!G488","v":0},{"$f":"[1]Infrastructure!H488","v":0},{"$f":"[1]Infrastructure!I488","v":0},{"$f":"[1]Infrastructure!J488","v":0},{"$f":"[1]Infrastructure!K488","v":0},{"$f":"[1]Infrastructure!L488","v":0},{"$f":"[1]Infrastructure!M488","v":0},{"$f":"[1]Infrastructure!N488","v":0},{"$f":"[1]Infrastructure!O488","v":0},{"$f":"[1]Infrastructure!Q488","v":0},{"$f":"[1]Infrastructure!R488","v":0},{"$f":"[1]Infrastructure!T488","v":0},{"$f":"[1]Infrastructure!W488","v":0},{"$f":"[1]Infrastructure!W488","v":0},0,{"$f":"[1]Infrastructure!Z488","v":0},{"$f":"[1]Infrastructure!Z488","v":0},0,{"$f":"[1]Infrastructure!AB488","v":0},{"$f":"[1]Infrastructure!AB488","v":0},0,{"$f":"[1]Infrastructure!AC488","v":0},{"$f":"[1]Infrastructure!AD488","v":0},{"$f":"[1]Infrastructure!AE488","v":0},{"$f":"[1]Infrastructure!AF488","v":0},{"$f":"[1]Infrastructure!AG488","v":0},{"$f":"[1]Infrastructure!AH488","v":0},0]
[0,null,null,null,null,null,{"$f":"[1]Infrastructure!G489","v":0},{"$f":"[1]Infrastructure!H489","v":0},{"$f":"[1]Infrastructure!I489","v":0},{"$f":"[1]Infrastructure!J489","v":0},{"$f":"[1]Infrastructure!K489","v":0},{"$f":"[1]Infrastructure!L489","v":0},{"$f":"[1]Infrastructure!M489","v":0},{"$f":"[1]Infrastructure!N489","v":0},{"$f":"[1]Infrastructure!O489","v":0},{"$f":"[1]Infrastructure!Q489","v":0},{"$f":"[1]Infrastructure!R489","v":0},{"$f":"[1]Infrastructure!T489","v":0},{"$f":"[1]Infrastructure!W489","v":0},{"$f":"[1]Infrastructure!W489","v":0},0,{"$f":"[1]Infrastructure!Z489","v":0},{"$f":"[1]Infrastructure!Z489","v":0},0,{"$f":"[1]Infrastructure!AB489","v":0},{"$f":"[1]Infrastructure!AB489","v":0},0,{"$f":"[1]Infrastructure!AC489","v":0},{"$f":"[1]Infrastructure!AD489","v":0},{"$f":"[1]Infrastructure!AE489","v":0},{"$f":"[1]Infrastructure!AF489","v":0},{"$f":"[1]Infrastructure!AG489","v":0},{"$f":"[1]Infrastructure!AH489","v":0},0]
[0,null,null,null,null,null,{"$f":"[1]Infrastructure!G490","v":0},{"$f":"[1]Infrastructure!H490","v":0},{"$f":"[1]Infrastructure!I490","v":0},{"$f":"[1]Infrastructure!J490","v":0},{"$f":"[1]Infrastructure!K490","v":0},{"$f":"[1]Infrastructure!L490","v":0},{"$f":"[1]Infrastructure!M490","v":0},{"$f":"[1]Infrastructure!N490","v":0},{"$f":"[1]Infrastructure!O490","v":0},{"$f":"[1]Infrastructure!Q490","v":0},{"$f":"[1]Infrastructure!R490","v":0},{"$f":"[1]Infrastructure!T490","v":0},{"$f":"[1]Infrastructure!W490","v":0},{"$f":"[1]Infrastructure!W490","v":0},0,{"$f":"[1]Infrastructure!Z490","v":0},{"$f":"[1]Infrastructure!Z490","v":0},0,{"$f":"[1]Infrastructure!AB490","v":0},{"$f":"[1]Infrastructure!AB490","v":0},0,{"$f":"[1]Infrastructure!AC490","v":0},{"$f":"[1]Infrastructure!AD490","v":0},{"$f":"[1]Infrastructure!AE490","v":0},{"$f":"[1]Infrastructure!AF490","v":0},{"$f":"[1]Infrastructure!AG490","v":0},{"$f":"[1]Infrastructure!AH490","v":0},0]
[0,null,null,null,null,null,{"$f":"[1]Infrastructure!G491","v":0},{"$f":"[1]Infrastructure!H491","v":0},{"$f":"[1]Infrastructure!I491","v":0},{"$f":"[1]Infrastructure!J491","v":0},{"$f":"[1]Infrastructure!K491","v":0},{"$f":"[1]Infrastructure!L491","v":0},{"$f":"[1]Infrastructure!M491","v":0},{"$f":"[1]Infrastructure!N491","v":0},{"$f":"[1]Infrastructure!O491","v":0},{"$f":"[1]Infrastructure!Q491","v":0},{"$f":"[1]Infrastructure!R491","v":0},{"$f":"[1]Infrastructure!T491","v":0},{"$f":"[1]Infrastructure!W491","v":0},{"$f":"[1]Infrastructure!W491","v":0},0,{"$f":"[1]Infrastructure!Z491","v":0},{"$f":"[1]Infrastructure!Z491","v":0},0,{"$f":"[1]Infrastructure!AB491","v":0},{"$f":"[1]Infrastructure!AB491","v":0},0,{"$f":"[1]Infrastructure!AC491","v":0},{"$f":"[1]Infrastructure!AD491","v":0},{"$f":"[1]Infrastructure!AE491","v":0},{"$f":"[1]Infrastructure!AF491","v":0},{"$f":"[1]Infrastructure!AG491","v":0},{"$f":"[1]Infrastructure!AH491","v":0},0]
[0,null,null,null,null,null,{"$f":"[1]Infrastructure!G492","v":0},{"$f":"[1]Infrastructure!H492","v":0},{"$f":"[1]Infrastructure!I492","v":0},{"$f":"[1]Infrastructure!J492","v":0},{"$f":"[1]Infrastructure!K492","v":0},{"$f":"[1]Infrastructure!L492","v":0},{"$f":"[1]Infrastructure!M492","v":0},{"$f":"[1]Infrastructure!N492","v":0},{"$f":"[1]Infrastructure!O492","v":0},{"$f":"[1]Infrastructure!Q492","v":0},{"$f":"[1]Infrastructure!R492","v":0},{"$f":"[1]Infrastructure!T492","v":0},{"$f":"[1]Infrastructure!W492","v":0},{"$f":"[1]Infrastructure!W492","v":0},0,{"$f":"[1]Infrastructure!Z492","v":0},{"$f":"[1]Infrastructure!Z492","v":0},0,{"$f":"[1]Infrastructure!AB492","v":0},{"$f":"[1]Infrastructure!AB492","v":0},0,{"$f":"[1]Infrastructure!AC492","v":0},{"$f":"[1]Infrastructure!AD492","v":0},{"$f":"[1]Infrastructure!AE492","v":0},{"$f":"[1]Infrastructure!AF492","v":0},{"$f":"[1]Infrastructure!AG492","v":0},{"$f":"[1]Infrastructure!AH492","v":0},0]
[0,null,null,null,null,null,{"$f":"[1]Infrastructure!G493","v":0},{"$f":"[1]Infrastructure!H493","v":0},{"$f":"[1]Infrastructure!I493","v":0},{"$f":"[1]Infrastructure!J493","v":0},{"$f":"[1]Infrastructure!K493","v":0},{"$f":"[1]Infrastructure!L493","v":0},{"$f":"[1]Infrastructure!M493","v":0},{"$f":"[1]Infrastructure!N493","v":0},{"$f":"[1]Infrastructure!O493","v":0},{"$f":"[1]Infrastructure!Q493","v":0},{"$f":"[1]Infrastructure!R493","v":0},{"$f":"[1]Infrastructure!T493","v":0},{"$f":"[1]Infrastructure!W493","v":0},{"$f":"[1]Infrastructure!W493","v":0},0,{"$f":"[1]Infrastructure!Z493","v":0},{"$f":"[1]Infrastructure!Z493","v":0},0,{"$f":"[1]Infrastructure!AB493","v":0},{"$f":"[1]Infrastructure!AB493","v":0},0,{"$f":"[1]Infrastructure!AC493","v":0},{"$f":"[1]Infrastructure!AD493","v":0},{"$f":"[1]Infrastructure!AE493","v":0},{"$f":"[1]Infrastructure!AF493","v":0},{"$f":"[1]Infrastructure!AG493","v":0},{"$f":"[1]Infrastructure!AH493","v":0},0]
[0,null,null,null,null,null,{"$f":"[1]Infrastructure!G494","v":0},{"$f":"[1]Infrastructure!H494","v":0},{"$f":"[1]Infrastructure!I494","v":0},{"$f":"[1]Infrastructure!J494","v":0},{"$f":"[1]Infrastructure!K494","v":0},{"$f":"[1]Infrastructure!L494","v":0},{"$f":"[1]Infrastructure!M494","v":0},{"$f":"[1]Infrastructure!N494","v":0},{"$f":"[1]Infrastructure!O494","v":0},{"$f":"[1]Infrastructure!Q494","v":0},{"$f":"[1]Infrastructure!R494","v":0},{"$f":"[1]Infrastructure!T494","v":0},{"$f":"[1]Infrastructure!W494","v":0},{"$f":"[1]Infrastructure!W494","v":0},0,{"$f":"[1]Infrastructure!Z494","v":0},{"$f":"[1]Infrastructure!Z494","v":0},0,{"$f":"[1]Infrastructure!AB494","v":0},{"$f":"[1]Infrastructure!AB494","v":0},0,{"$f":"[1]Infrastructure!AC494","v":0},{"$f":"[1]Infrastructure!AD494","v":0},{"$f":"[1]Infrastructure!AE494","v":0},{"$f":"[1]Infrastructure!AF494","v":0},{"$f":"[1]Infrastructure!AG494","v":0},{"$f":"[1]Infrastructure!AH494","v":0},0]
[0,null,null,null,null,null,{"$f":"[1]Infrastructure!G495","v":0},{"$f":"[1]Infrastructure!H495","v":0},{"$f":"[1]Infrastructure!I495","v":0},{"$f":"[1]Infrastructure!J495","v":0},{"$f":"[1]Infrastructure!K495","v":0},{"$f":"[1]Infrastructure!L495","v":0},{"$f":"[1]Infrastructure!M495","v":0},{"$f":"[1]Infrastructure!N495","v":0},{"$f":"[1]Infrastructure!O495","v":0},{"$f":"[1]Infrastructure!Q495","v":0},{"$f":"[1]Infrastructure!R495","v":0},{"$f":"[1]Infrastructure!T495","v":0},{"$f":"[1]Infrastructure!W495","v":0},{"$f":"[1]Infrastructure!W495","v":0},0,{"$f":"[1]Infrastructure!Z495","v":0},{"$f":"[1]Infrastructure!Z495","v":0},0,{"$f":"[1]Infrastructure!AB495","v":0},{"$f":"[1]Infrastructure!AB495","v":0},0,{"$f":"[1]Infrastructure!AC495","v":0},{"$f":"[1]Infrastructure!AD495","v":0},{"$f":"[1]Infrastructure!AE495","v":0},{"$f":"[1]Infrastructure!AF495","v":0},{"$f":"[1]Infrastructure!AG495","v":0},{"$f":"[1]Infrastructure!AH495","v":0},0]
[0,null,null,null,null,null,{"$f":"[1]Infrastructure!G496","v":0},{"$f":"[1]Infrastructure!H496","v":0},{"$f":"[1]Infrastructure!I496","v":0},{"$f":"[1]Infrastructure!J496","v":0},{"$f":"[1]Infrastructure!K496","v":0},{"$f":"[1]Infrastructure!L496","v":0},{"$f":"[1]Infrastructure!M496","v":0},{"$f":"[1]Infrastructure!N496","v":0},{"$f":"[1]Infrastructure!O496","v":0},{"$f":"[1]Infrastructure!Q496","v":0},{"$f":"[1]Infrastructure!R496","v":0},{"$f":"[1]Infrastructure!T496","v":0},{"$f":"[1]Infrastructure!W496","v":0},{"$f":"[1]Infrastructure!W496","v":0},0,{"$f":"[1]Infrastructure!Z496","v":0},{"$f":"[1]Infrastructure!Z496","v":0},0,{"$f":"[1]Infrastructure!AB496","v":0},{"$f":"[1]Infrastructure!AB496","v":0},0,{"$f":"[1]Infrastructure!AC496","v":0},{"$f":"[1]Infrastructure!AD496","v":0},{"$f":"[1]Infrastructure!AE496","v":0},{"$f":"[1]Infrastructure!AF496","v":0},{"$f":"[1]Infrastructure!AG496","v":0},{"$f":"[1]Infrastructure!AH496","v":0},0]
[0,null,null,null,null,null,{"$f":"[1]Infrastructure!G497","v":0},{"$f":"[1]Infrastructure!H497","v":0},{"$f":"[1]Infrastructure!I497","v":0},{"$f":"[1]Infrastructure!J497","v":0},{"$f":"[1]Infrastructure!K497","v":0},{"$f":"[1]Infrastructure!L497","v":0},{"$f":"[1]Infrastructure!M497","v":0},{"$f":"[1]Infrastructure!N497","v":0},{"$f":"[1]Infrastructure!O497","v":0},{"$f":"[1]Infrastructure!Q497","v":0},{"$f":"[1]Infrastructure!R497","v":0},{"$f":"[1]Infrastructure!T497","v":0},{"$f":"[1]Infrastructure!W497","v":0},{"$f":"[1]Infrastructure!W497","v":0},0,{"$f":"[1]Infrastructure!Z497","v":0},{"$f":"[1]Infrastructure!Z497","v":0},0,{"$f":"[1]Infrastructure!AB497","v":0},{"$f":"[1]Infrastructure!AB497","v":0},0,{"$f":"[1]Infrastructure!AC497","v":0},{"$f":"[1]Infrastructure!AD497","v":0},{"$f":"[1]Infrastructure!AE497","v":0},{"$f":"[1]Infrastructure!AF497","v":0},{"$f":"[1]Infrastructure!AG497","v":0},{"$f":"[1]Infrastructure!AH497","v":0},0]
[0,null,null,null,null,null,{"$f":"[1]Infrastructure!G498","v":0},{"$f":"[1]Infrastructure!H498","v":0},{"$f":"[1]Infrastructure!I498","v":0},{"$f":"[1]Infrastructure!J498","v":0},{"$f":"[1]Infrastructure!K498","v":0},{"$f":"[1]Infrastructure!L498","v":0},{"$f":"[1]Infrastructure!M498","v":0},{"$f":"[1]Infrastructure!N498","v":0},{"$f":"[1]Infrastructure!O498","v":0},{"$f":"[1]Infrastructure!Q498","v":0},{"$f":"[1]Infrastructure!R498","v":0},{"$f":"[1]Infrastructure!T498","v":0},{"$f":"[1]Infrastructure!W498","v":0},{"$f":"[1]Infrastructure!W498","v":0},0,{"$f":"[1]Infrastructure!Z498","v":0},{"$f":"[1]Infrastructure!Z498","v":0},0,{"$f":"[1]Infrastructure!AB498","v":0},{"$f":"[1]Infrastructure!AB498","v":0},0,{"$f":"[1]Infrastructure!AC498","v":0},{"$f":"[1]Infrastructure!AD498","v":0},{"$f":"[1]Infrastructure!AE498","v":0},{"$f":"[1]Infrastructure!AF498","v":0},{"$f":"[1]Infrastructure!AG498","v":0},{"$f":"[1]Infrastructure!AH498","v":0},0]
[0,null,null,null,null,null,{"$f":"[1]Infrastructure!G499","v":0},{"$f":"[1]Infrastructure!H499","v":0},{"$f":"[1]Infrastructure!I499","v":0},{"$f":"[1]Infrastructure!J499","v":0},{"$f":"[1]Infrastructure!K499","v":0},{"$f":"[1]Infrastructure!L499","v":0},{"$f":"[1]Infrastructure!M499","v":0},{"$f":"[1]Infrastructure!N499","v":0},{"$f":"[1]Infrastructure!O499","v":0},{"$f":"[1]Infrastructure!Q499","v":0},{"$f":"[1]Infrastructure!R499","v":0},{"$f":"[1]Infrastructure!T499","v":0},{"$f":"[1]Infrastructure!W499","v":0},{"$f":"[1]Infrastructure!W499","v":0},0,{"$f":"[1]Infrastructure!Z499","v":0},{"$f":"[1]Infrastructure!Z499","v":0},0,{"$f":"[1]Infrastructure!AB499","v":0},{"$f":"[1]Infrastructure!AB499","v":0},0,{"$f":"[1]Infrastructure!AC499","v":0},{"$f":"[1]Infrastructure!AD499","v":0},{"$f":"[1]Infrastructure!AE499","v":0},{"$f":"[1]Infrastructure!AF499","v":0},{"$f":"[1]Infrastructure!AG499","v":0},{"$f":"[1]Infrastructure!AH499","v":0},0]
[0,null,null,null,null,null,{"$f":"[1]Infrastructure!G500","v":0},{"$f":"[1]Infrastructure!H500","v":0},{"$f":"[1]Infrastructure!I500","v":0},{"$f":"[1]Infrastructure!J500","v":0},{"$f":"[1]Infrastructure!K500","v":0},{"$f":"[1]Infrastructure!L500","v":0},{"$f":"[1]Infrastructure!M500","v":0},{"$f":"[1]Infrastructure!N500","v":0},{"$f":"[1]Infrastructure!O500","v":0},{"$f":"[1]Infrastructure!Q500","v":0},{"$f":"[1]Infrastructure!R500","v":0},{"$f":"[1]Infrastructure!T500","v":0},{"$f":"[1]Infrastructure!W500","v":0},{"$f":"[1]Infrastructure!W500","v":0},0,{"$f":"[1]Infrastructure!Z500","v":0},{"$f":"[1]Infrastructure!Z500","v":0},0,{"$f":"[1]Infrastructure!AB500","v":0},{"$f":"[1]Infrastructure!AB500","v":0},0,{"$f":"[1]Infrastructure!AC500","v":0},{"$f":"[1]Infrastructure!AD500","v":0},{"$f":"[1]Infrastructure!AE500","v":0},{"$f":"[1]Infrastructure!AF500","v":0},{"$f":"[1]Infrastructure!AG500","v":0},{"$f":"[1]Infrastructure!AH500","v":0},0]
[0,null,null,null,null,null,{"$f":"[1]Infrastructure!G501","v":0},{"$f":"[1]Infrastructure!H501","v":0},{"$f":"[1]Infrastructure!I501","v":0},{"$f":"[1]Infrastructure!J501","v":0},{"$f":"[1]Infrastructure!K501","v":0},{"$f":"[1]Infrastructure!L501","v":0},{"$f":"[1]Infrastructure!M501","v":0},{"$f":"[1]Infrastructure!N501","v":0},{"$f":"[1]Infrastructure!O501","v":0},{"$f":"[1]Infrastructure!Q501","v":0},{"$f":"[1]Infrastructure!R501","v":0},{"$f":"[1]Infrastructure!T501","v":0},{"$f":"[1]Infrastructure!W501","v":0},{"$f":"[1]Infrastructure!W501","v":0},0,{"$f":"[1]Infrastructure!Z501","v":0},{"$f":"[1]Infrastructure!Z501","v":0},0,{"$f":"[1]Infrastructure!AB501","v":0},{"$f":"[1]Infrastructure!AB501","v":0},0,{"$f":"[1]Infrastructure!AC501","v":0},{"$f":"[1]Infrastructure!AD501","v":0},{"$f":"[1]Infrastructure!AE501","v":0},{"$f":"[1]Infrastructure!AF501","v":0},{"$f":"[1]Infrastructure!AG501","v":0},{"$f":"[1]Infrastructure!AH501","v":0},0]
[0,null,null,null,null,null,{"$f":"[1]Infrastructure!G502","v":0},{"$f":"[1]Infrastructure!H502","v":0},{"$f":"[1]Infrastructure!I502","v":0},{"$f":"[1]Infrastructure!J502","v":0},{"$f":"[1]Infrastructure!K502","v":0},{"$f":"[1]Infrastructure!L502","v":0},{"$f":"[1]Infrastructure!M502","v":0},{"$f":"[1]Infrastructure!N502","v":0},{"$f":"[1]Infrastructure!O502","v":0},{"$f":"[1]Infrastructure!Q502","v":0},{"$f":"[1]Infrastructure!R502","v":0},{"$f":"[1]Infrastructure!T502","v":0},{"$f":"[1]Infrastructure!W502","v":0},{"$f":"[1]Infrastructure!W502","v":0},0,{"$f":"[1]Infrastructure!Z502","v":0},{"$f":"[1]Infrastructure!Z502","v":0},0,{"$f":"[1]Infrastructure!AB502","v":0},{"$f":"[1]Infrastructure!AB502","v":0},0,{"$f":"[1]Infrastructure!AC502","v":0},{"$f":"[1]Infrastructure!AD502","v":0},{"$f":"[1]Infrastructure!AE502","v":0},{"$f":"[1]Infrastructure!AF502","v":0},{"$f":"[1]Infrastructure!AG502","v":0},{"$f":"[1]Infrastructure!AH502","v":0},0]
[0,null,null,null,null,null,{"$f":"[1]Infrastructure!G503","v":0},{"$f":"[1]Infrastructure!H503","v":0},{"$f":"[1]Infrastructure!I503","v":0},{"$f":"[1]Infrastructure!J503","v":0},{"$f":"[1]Infrastructure!K503","v":0},{"$f":"[1]Infrastructure!L503","v":0},{"$f":"[1]Infrastructure!M503","v":0},{"$f":"[1]Infrastructure!N503","v":0},{"$f":"[1]Infrastructure!O503","v":0},{"$f":"[1]Infrastructure!Q503","v":0},{"$f":"[1]Infrastructure!R503","v":0},{"$f":"[1]Infrastructure!T503","v":0},{"$f":"[1]Infrastructure!W503","v":0},{"$f":"[1]Infrastructure!W503","v":0},0,{"$f":"[1]Infrastructure!Z503","v":0},{"$f":"[1]Infrastructure!Z503","v":0},0,{"$f":"[1]Infrastructure!AB503","v":0},{"$f":"[1]Infrastructure!AB503","v":0},0,{"$f":"[1]Infrastructure!AC503","v":0},{"$f":"[1]Infrastructure!AD503","v":0},{"$f":"[1]Infrastructure!AE503","v":0},{"$f":"[1]Infrastructure!AF503","v":0},{"$f":"[1]Infrastructure!AG503","v":0},{"$f":"[1]Infrastructure!AH503","v":0},0]
[0,null,null,null,null,null,{"$f":"[1]Infrastructure!G504","v":0},{"$f":"[1]Infrastructure!H504","v":0},{"$f":"[1]Infrastructure!I504","v":0},{"$f":"[1]Infrastructure!J504","v":0},{"$f":"[1]Infrastructure!K504","v":0},{"$f":"[1]Infrastructure!L504","v":0},{"$f":"[1]Infrastructure!M504","v":0},{"$f":"[1]Infrastructure!N504","v":0},{"$f":"[1]Infrastructure!O504","v":0},{"$f":"[1]Infrastructure!Q504","v":0},{"$f":"[1]Infrastructure!R504","v":0},{"$f":"[1]Infrastructure!T504","v":0},{"$f":"[1]Infrastructure!W504","v":0},{"$f":"[1]Infrastructure!W504","v":0},0,{"$f":"[1]Infrastructure!Z504","v":0},{"$f":"[1]Infrastructure!Z504","v":0},0,{"$f":"[1]Infrastructure!AB504","v":0},{"$f":"[1]Infrastructure!AB504","v":0},0,{"$f":"[1]Infrastructure!AC504","v":0},{"$f":"[1]Infrastructure!AD504","v":0},{"$f":"[1]Infrastructure!AE504","v":0},{"$f":"[1]Infrastructure!AF504","v":0},{"$f":"[1]Infrastructure!AG504","v":0},{"$f":"[1]Infrastructure!AH504","v":0},0]
[0,null,null,null,null,null,{"$f":"[1]Infrastructure!G505","v":0},{"$f":"[1]Infrastructure!H505","v":0},{"$f":"[1]Infrastructure!I505","v":0},{"$f":"[1]Infrastructure!J505","v":0},{"$f":"[1]Infrastructure!K505","v":0},{"$f":"[1]Infrastructure!L505","v":0},{"$f":"[1]Infrastructure!M505","v":0},{"$f":"[1]Infrastructure!N505","v":0},{"$f":"[1]Infrastructure!O505","v":0},{"$f":"[1]Infrastructure!Q505","v":0},{"$f":"[1]Infrastructure!R505","v":0},{"$f":"[1]Infrastructure!T505","v":0},{"$f":"[1]Infrastructure!W505","v":0},{"$f":"[1]Infrastructure!W505","v":0},0,{"$f":"[1]Infrastructure!Z505","v":0},{"$f":"[1]Infrastructure!Z505","v":0},0,{"$f":"[1]Infrastructure!AB505","v":0},{"$f":"[1]Infrastructure!AB505","v":0},0,{"$f":"[1]Infrastructure!AC505","v":0},{"$f":"[1]Infrastructure!AD505","v":0},{"$f":"[1]Infrastructure!AE505","v":0},{"$f":"[1]Infrastructure!AF505","v":0},{"$f":"[1]Infrastructure!AG505","v":0},{"$f":"[1]Infrastructure!AH505","v":0},0]
[0,null,null,null,null,null,{"$f":"[1]Infrastructure!G506","v":0},{"$f":"[1]Infrastructure!H506","v":0},{"$f":"[1]Infrastructure!I506","v":0},{"$f":"[1]Infrastructure!J506","v":0},{"$f":"[1]Infrastructure!K506","v":0},{"$f":"[1]Infrastructure!L506","v":0},{"$f":"[1]Infrastructure!M506","v":0},{"$f":"[1]Infrastructure!N506","v":0},{"$f":"[1]Infrastructure!O506","v":0},{"$f":"[1]Infrastructure!Q506","v":0},{"$f":"[1]Infrastructure!R506","v":0},{"$f":"[1]Infrastructure!T506","v":0},{"$f":"[1]Infrastructure!W506","v":0},{"$f":"[1]Infrastructure!W506","v":0},0,{"$f":"[1]Infrastructure!Z506","v":0},{"$f":"[1]Infrastructure!Z506","v":0},0,{"$f":"[1]Infrastructure!AB506","v":0},{"$f":"[1]Infrastructure!AB506","v":0},0,{"$f":"[1]Infrastructure!AC506","v":0},{"$f":"[1]Infrastructure!AD506","v":0},{"$f":"[1]Infrastructure!AE506","v":0},{"$f":"[1]Infrastructure!AF506","v":0},{"$f":"[1]Infrastructure!AG506","v":0},{"$f":"[1]Infrastructure!AH506","v":0},0]
[0,null,null,null,null,null,{"$f":"[1]Infrastructure!G507","v":0},{"$f":"[1]Infrastructure!H507","v":0},{"$f":"[1]Infrastructure!I507","v":0},{"$f":"[1]Infrastructure!J507","v":0},{"$f":"[1]Infrastructure!K507","v":0},{"$f":"[1]Infrastructure!L507","v":0},{"$f":"[1]Infrastructure!M507","v":0},{"$f":"[1]Infrastructure!N507","v":0},{"$f":"[1]Infrastructure!O507","v":0},{"$f":"[1]Infrastructure!Q507","v":0},{"$f":"[1]Infrastructure!R507","v":0},{"$f":"[1]Infrastructure!T507","v":0},{"$f":"[1]Infrastructure!W507","v":0},{"$f":"[1]Infrastructure!W507","v":0},0,{"$f":"[1]Infrastructure!Z507","v":0},{"$f":"[1]Infrastructure!Z507","v":0},0,{"$f":"[1]Infrastructure!AB507","v":0},{"$f":"[1]Infrastructure!AB507","v":0},0,{"$f":"[1]Infrastructure!AC507","v":0},{"$f":"[1]Infrastructure!AD507","v":0},{"$f":"[1]Infrastructure!AE507","v":0},{"$f":"[1]Infrastructure!AF507","v":0},{"$f":"[1]Infrastructure!AG507","v":0},{"$f":"[1]Infrastructure!AH507","v":0},0]
[0,null,null,null,null,null,{"$f":"[1]Infrastructure!G508","v":0},{"$f":"[1]Infrastructure!H508","v":0},{"$f":"[1]Infrastructure!I508","v":0},{"$f":"[1]Infrastructure!J508","v":0},{"$f":"[1]Infrastructure!K508","v":0},{"$f":"[1]Infrastructure!L508","v":0},{"$f":"[1]Infrastructure!M508","v":0},{"$f":"[1]Infrastructure!N508","v":0},{"$f":"[1]Infrastructure!O508","v":0},{"$f":"[1]Infrastructure!Q508","v":0},{"$f":"[1]Infrastructure!R508","v":0},{"$f":"[1]Infrastructure!T508","v":0},{"$f":"[1]Infrastructure!W508","v":0},{"$f":"[1]Infrastructure!W508","v":0},0,{"$f":"[1]Infrastructure!Z508","v":0},{"$f":"[1]Infrastructure!Z508","v":0},0,{"$f":"[1]Infrastructure!AB508","v":0},{"$f":"[1]Infrastructure!AB508","v":0},0,{"$f":"[1]Infrastructure!AC508","v":0},{"$f":"[1]Infrastructure!AD508","v":0},{"$f":"[1]Infrastructure!AE508","v":0},{"$f":"[1]Infrastructure!AF508","v":0},{"$f":"[1]Infrastructure!AG508","v":0},{"$f":"[1]Infrastructure!AH508","v":0},0]
[0,null,null,null,null,null,{"$f":"[1]Infrastructure!G509","v":0},{"$f":"[1]Infrastructure!H509","v":0},{"$f":"[1]Infrastructure!I509","v":0},{"$f":"[1]Infrastructure!J509","v":0},{"$f":"[1]Infrastructure!K509","v":0},{"$f":"[1]Infrastructure!L509","v":0},{"$f":"[1]Infrastructure!M509","v":0},{"$f":"[1]Infrastructure!N509","v":0},{"$f":"[1]Infrastructure!O509","v":0},{"$f":"[1]Infrastructure!Q509","v":0},{"$f":"[1]Infrastructure!R509","v":0},{"$f":"[1]Infrastructure!T509","v":0},{"$f":"[1]Infrastructure!W509","v":0},{"$f":"[1]Infrastructure!W509","v":0},0,{"$f":"[1]Infrastructure!Z509","v":0},{"$f":"[1]Infrastructure!Z509","v":0},0,{"$f":"[1]Infrastructure!AB509","v":0},{"$f":"[1]Infrastructure!AB509","v":0},0,{"$f":"[1]Infrastructure!AC509","v":0},{"$f":"[1]Infrastructure!AD509","v":0},{"$f":"[1]Infrastructure!AE509","v":0},{"$f":"[1]Infrastructure!AF509","v":0},{"$f":"[1]Infrastructure!AG509","v":0},{"$f":"[1]Infrastructure!AH509","v":0},0]
[0,null,null,null,null,null,{"$f":"[1]Infrastructure!G510","v":0},{"$f":"[1]Infrastructure!H510","v":0},{"$f":"[1]Infrastructure!I510","v":0},{"$f":"[1]Infrastructure!J510","v":0},{"$f":"[1]Infrastructure!K510","v":0},{"$f":"[1]Infrastructure!L510","v":0},{"$f":"[1]Infrastructure!M510","v":0},{"$f":"[1]Infrastructure!N510","v":0},{"$f":"[1]Infrastructure!O510","v":0},{"$f":"[1]Infrastructure!Q510","v":0},{"$f":"[1]Infrastructure!R510","v":0},{"$f":"[1]Infrastructure!T510","v":0},{"$f":"[1]Infrastructure!W510","v":0},{"$f":"[1]Infrastructure!W510","v":0},0,{"$f":"[1]Infrastructure!Z510","v":0},{"$f":"[1]Infrastructure!Z510","v":0},0,{"$f":"[1]Infrastructure!AB510","v":0},{"$f":"[1]Infrastructure!AB510","v":0},0,{"$f":"[1]Infrastructure!AC510","v":0},{"$f":"[1]Infrastructure!AD510","v":0},{"$f":"[1]Infrastructure!AE510","v":0},{"$f":"[1]Infrastructure!AF510","v":0},{"$f":"[1]Infrastructure!AG510","v":0},{"$f":"[1]Infrastructure!AH510","v":0},0]
[0,null,null,null,null,null,{"$f":"[1]Infrastructure!G511","v":0},{"$f":"[1]Infrastructure!H511","v":0},{"$f":"[1]Infrastructure!I511","v":0},{"$f":"[1]Infrastructure!J511","v":0},{"$f":"[1]Infrastructure!K511","v":0},{"$f":"[1]Infrastructure!L511","v":0},{"$f":"[1]Infrastructure!M511","v":0},{"$f":"[1]Infrastructure!N511","v":0},{"$f":"[1]Infrastructure!O511","v":0},{"$f":"[1]Infrastructure!Q511","v":0},{"$f":"[1]Infrastructure!R511","v":0},{"$f":"[1]Infrastructure!T511","v":0},{"$f":"[1]Infrastructure!W511","v":0},{"$f":"[1]Infrastructure!W511","v":0},0,{"$f":"[1]Infrastructure!Z511","v":0},{"$f":"[1]Infrastructure!Z511","v":0},0,{"$f":"[1]Infrastructure!AB511","v":0},{"$f":"[1]Infrastructure!AB511","v":0},0,{"$f":"[1]Infrastructure!AC511","v":0},{"$f":"[1]Infrastructure!AD511","v":0},{"$f":"[1]Infrastructure!AE511","v":0},{"$f":"[1]Infrastructure!AF511","v":0},{"$f":"[1]Infrastructure!AG511","v":0},{"$f":"[1]Infrastructure!AH511","v":0},0]
[0,null,null,null,null,null,{"$f":"[1]Infrastructure!G512","v":0},{"$f":"[1]Infrastructure!H512","v":0},{"$f":"[1]Infrastructure!I512","v":0},{"$f":"[1]Infrastructure!J512","v":0},{"$f":"[1]Infrastructure!K512","v":0},{"$f":"[1]Infrastructure!L512","v":0},{"$f":"[1]Infrastructure!M512","v":0},{"$f":"[1]Infrastructure!N512","v":0},{"$f":"[1]Infrastructure!O512","v":0},{"$f":"[1]Infrastructure!Q512","v":0},{"$f":"[1]Infrastructure!R512","v":0},{"$f":"[1]Infrastructure!T512","v":0},{"$f":"[1]Infrastructure!W512","v":0},{"$f":"[1]Infrastructure!W512","v":0},0,{"$f":"[1]Infrastructure!Z512","v":0},{"$f":"[1]Infrastructure!Z512","v":0},0,{"$f":"[1]Infrastructure!AB512","v":0},{"$f":"[1]Infrastructure!AB512","v":0},0,{"$f":"[1]Infrastructure!AC512","v":0},{"$f":"[1]Infrastructure!AD512","v":0},{"$f":"[1]Infrastructure!AE512","v":0},{"$f":"[1]Infrastructure!AF512","v":0},{"$f":"[1]Infrastructure!AG512","v":0},{"$f":"[1]Infrastructure!AH512","v":0},0]
[0,null,null,null,null,null,{"$f":"[1]Infrastructure!G513","v":0},{"$f":"[1]Infrastructure!H513","v":0},{"$f":"[1]Infrastructure!I513","v":0},{"$f":"[1]Infrastructure!J513","v":0},{"$f":"[1]Infrastructure!K513","v":0},{"$f":"[1]Infrastructure!L513","v":0},{"$f":"[1]Infrastructure!M513","v":0},{"$f":"[1]Infrastructure!N513","v":0},{"$f":"[1]Infrastructure!O513","v":0},{"$f":"[1]Infrastructure!Q513","v":0},{"$f":"[1]Infrastructure!R513","v":0},{"$f":"[1]Infrastructure!T513","v":0},{"$f":"[1]Infrastructure!W513","v":0},{"$f":"[1]Infrastructure!W513","v":0},0,{"$f":"[1]Infrastructure!Z513","v":0},{"$f":"[1]Infrastructure!Z513","v":0},0,{"$f":"[1]Infrastructure!AB513","v":0},{"$f":"[1]Infrastructure!AB513","v":0},0,{"$f":"[1]Infrastructure!AC513","v":0},{"$f":"[1]Infrastructure!AD513","v":0},{"$f":"[1]Infrastructure!AE513","v":0},{"$f":"[1]Infrastructure!AF513","v":0},{"$f":"[1]Infrastructure!AG513","v":0},{"$f":"[1]Infrastructure!AH513","v":0},0]
[0,null,null,null,null,null,{"$f":"[1]Infrastructure!G514","v":0},{"$f":"[1]Infrastructure!H514","v":0},{"$f":"[1]Infrastructure!I514","v":0},{"$f":"[1]Infrastructure!J514","v":0},{"$f":"[1]Infrastructure!K514","v":0},{"$f":"[1]Infrastructure!L514","v":0},{"$f":"[1]Infrastructure!M514","v":0},{"$f":"[1]Infrastructure!N514","v":0},{"$f":"[1]Infrastructure!O514","v":0},{"$f":"[1]Infrastructure!Q514","v":0},{"$f":"[1]Infrastructure!R514","v":0},{"$f":"[1]Infrastructure!T514","v":0},{"$f":"[1]Infrastructure!W514","v":0},{"$f":"[1]Infrastructure!W514","v":0},0,{"$f":"[1]Infrastructure!Z514","v":0},{"$f":"[1]Infrastructure!Z514","v":0},0,{"$f":"[1]Infrastructure!AB514","v":0},{"$f":"[1]Infrastructure!AB514","v":0},0,{"$f":"[1]Infrastructure!AC514","v":0},{"$f":"[1]Infrastructure!AD514","v":0},{"$f":"[1]Infrastructure!AE514","v":0},{"$f":"[1]Infrastructure!AF514","v":0},{"$f":"[1]Infrastructure!AG514","v":0},{"$f":"[1]Infrastructure!AH514","v":0},0]
[0,null,null,null,null,null,{"$f":"[1]Infrastructure!G515","v":0},{"$f":"[1]Infrastructure!H515","v":0},{"$f":"[1]Infrastructure!I515","v":0},{"$f":"[1]Infrastructure!J515","v":0},{"$f":"[1]Infrastructure!K515","v":0},{"$f":"[1]Infrastructure!L515","v":0},{"$f":"[1]Infrastructure!M515","v":0},{"$f":"[1]Infrastructure!N515","v":0},{"$f":"[1]Infrastructure!O515","v":0},{"$f":"[1]Infrastructure!Q515","v":0},{"$f":"[1]Infrastructure!R515","v":0},{"$f":"[1]Infrastructure!T515","v":0},{"$f":"[1]Infrastructure!W515","v":0},{"$f":"[1]Infrastructure!W515","v":0},0,{"$f":"[1]Infrastructure!Z515","v":0},{"$f":"[1]Infrastructure!Z515","v":0},0,{"$f":"[1]Infrastructure!AB515","v":0},{"$f":"[1]Infrastructure!AB515","v":0},0,{"$f":"[1]Infrastructure!AC515","v":0},{"$f":"[1]Infrastructure!AD515","v":0},{"$f":"[1]Infrastructure!AE515","v":0},{"$f":"[1]Infrastructure!AF515","v":0},{"$f":"[1]Infrastructure!AG515","v":0},{"$f":"[1]Infrastructure!AH515","v":0},0]
[0,null,null,null,null,null,{"$f":"[1]Infrastructure!G516","v":0},{"$f":"[1]Infrastructure!H516","v":0},{"$f":"[1]Infrastructure!I516","v":0},{"$f":"[1]Infrastructure!J516","v":0},{"$f":"[1]Infrastructure!K516","v":0},{"$f":"[1]Infrastructure!L516","v":0},{"$f":"[1]Infrastructure!M516","v":0},{"$f":"[1]Infrastructure!N516","v":0},{"$f":"[1]Infrastructure!O516","v":0},{"$f":"[1]Infrastructure!Q516","v":0},{"$f":"[1]Infrastructure!R516","v":0},{"$f":"[1]Infrastructure!T516","v":0},{"$f":"[1]Infrastructure!W516","v":0},{"$f":"[1]Infrastructure!W516","v":0},0,{"$f":"[1]Infrastructure!Z516","v":0},{"$f":"[1]Infrastructure!Z516","v":0},0,{"$f":"[1]Infrastructure!AB516","v":0},{"$f":"[1]Infrastructure!AB516","v":0},0,{"$f":"[1]Infrastructure!AC516","v":0},{"$f":"[1]Infrastructure!AD516","v":0},{"$f":"[1]Infrastructure!AE516","v":0},{"$f":"[1]Infrastructure!AF516","v":0},{"$f":"[1]Infrastructure!AG516","v":0},{"$f":"[1]Infrastructure!AH516","v":0},0]
[0,null,null,null,null,null,{"$f":"[1]Infrastructure!G517","v":0},{"$f":"[1]Infrastructure!H517","v":0},{"$f":"[1]Infrastructure!I517","v":0},{"$f":"[1]Infrastructure!J517","v":0},{"$f":"[1]Infrastructure!K517","v":0},{"$f":"[1]Infrastructure!L517","v":0},{"$f":"[1]Infrastructure!M517","v":0},{"$f":"[1]Infrastructure!N517","v":0},{"$f":"[1]Infrastructure!O517","v":0},{"$f":"[1]Infrastructure!Q517","v":0},{"$f":"[1]Infrastructure!R517","v":0},{"$f":"[1]Infrastructure!T517","v":0},{"$f":"[1]Infrastructure!W517","v":0},{"$f":"[1]Infrastructure!W517","v":0},0,{"$f":"[1]Infrastructure!Z517","v":0},{"$f":"[1]Infrastructure!Z517","v":0},0,{"$f":"[1]Infrastructure!AB517","v":0},{"$f":"[1]Infrastructure!AB517","v":0},0,{"$f":"[1]Infrastructure!AC517","v":0},{"$f":"[1]Infrastructure!AD517","v":0},{"$f":"[1]Infrastructure!AE517","v":0},{"$f":"[1]Infrastructure!AF517","v":0},{"$f":"[1]Infrastructure!AG517","v":0},{"$f":"[1]Infrastructure!AH517","v":0},0]
[0,null,null,null,null,null,{"$f":"[1]Infrastructure!G518","v":0},{"$f":"[1]Infrastructure!H518","v":0},{"$f":"[1]Infrastructure!I518","v":0},{"$f":"[1]Infrastructure!J518","v":0},{"$f":"[1]Infrastructure!K518","v":0},{"$f":"[1]Infrastructure!L518","v":0},{"$f":"[1]Infrastructure!M518","v":0},{"$f":"[1]Infrastructure!N518","v":0},{"$f":"[1]Infrastructure!O518","v":0},{"$f":"[1]Infrastructure!Q518","v":0},{"$f":"[1]Infrastructure!R518","v":0},{"$f":"[1]Infrastructure!T518","v":0},{"$f":"[1]Infrastructure!W518","v":0},{"$f":"[1]Infrastructure!W518","v":0},0,{"$f":"[1]Infrastructure!Z518","v":0},{"$f":"[1]Infrastructure!Z518","v":0},0,{"$f":"[1]Infrastructure!AB518","v":0},{"$f":"[1]Infrastructure!AB518","v":0},0,{"$f":"[1]Infrastructure!AC518","v":0},{"$f":"[1]Infrastructure!AD518","v":0},{"$f":"[1]Infrastructure!AE518","v":0},{"$f":"[1]Infrastructure!AF518","v":0},{"$f":"[1]Infrastructure!AG518","v":0},{"$f":"[1]Infrastructure!AH518","v":0},0]
[0,null,null,null,null,null,{"$f":"[1]Infrastructure!G519","v":0},{"$f":"[1]Infrastructure!H519","v":0},{"$f":"[1]Infrastructure!I519","v":0},{"$f":"[1]Infrastructure!J519","v":0},{"$f":"[1]Infrastructure!K519","v":0},{"$f":"[1]Infrastructure!L519","v":0},{"$f":"[1]Infrastructure!M519","v":0},{"$f":"[1]Infrastructure!N519","v":0},{"$f":"[1]Infrastructure!O519","v":0},{"$f":"[1]Infrastructure!Q519","v":0},{"$f":"[1]Infrastructure!R519","v":0},{"$f":"[1]Infrastructure!T519","v":0},{"$f":"[1]Infrastructure!W519","v":0},{"$f":"[1]Infrastructure!W519","v":0},0,{"$f":"[1]Infrastructure!Z519","v":0},{"$f":"[1]Infrastructure!Z519","v":0},0,{"$f":"[1]Infrastructure!AB519","v":0},{"$f":"[1]Infrastructure!AB519","v":0},0,{"$f":"[1]Infrastructure!AC519","v":0},{"$f":"[1]Infrastructure!AD519","v":0},{"$f":"[1]Infrastructure!AE519","v":0},{"$f":"[1]Infrastructure!AF519","v":0},{"$f":"[1]Infrastructure!AG519","v":0},{"$f":"[1]Infrastructure!AH519","v":0},0]
[0,null,null,null,null,null,{"$f":"[1]Infrastructure!G520","v":0},{"$f":"[1]Infrastructure!H520","v":0},{"$f":"[1]Infrastructure!I520","v":0},{"$f":"[1]Infrastructure!J520","v":0},{"$f":"[1]Infrastructure!K520","v":0},{"$f":"[1]Infrastructure!L520","v":0},{"$f":"[1]Infrastructure!M520","v":0},{"$f":"[1]Infrastructure!N520","v":0},{"$f":"[1]Infrastructure!O520","v":0},{"$f":"[1]Infrastructure!Q520","v":0},{"$f":"[1]Infrastructure!R520","v":0},{"$f":"[1]Infrastructure!T520","v":0},{"$f":"[1]Infrastructure!W520","v":0},{"$f":"[1]Infrastructure!W520","v":0},0,{"$f":"[1]Infrastructure!Z520","v":0},{"$f":"[1]Infrastructure!Z520","v":0},0,{"$f":"[1]Infrastructure!AB520","v":0},{"$f":"[1]Infrastructure!AB520","v":0},0,{"$f":"[1]Infrastructure!AC520","v":0},{"$f":"[1]Infrastructure!AD520","v":0},{"$f":"[1]Infrastructure!AE520","v":0},{"$f":"[1]Infrastructure!AF520","v":0},{"$f":"[1]Infrastructure!AG520","v":0},{"$f":"[1]Infrastructure!AH520","v":0},0]
[0,null,null,null,null,null,{"$f":"[1]Infrastructure!G521","v":0},{"$f":"[1]Infrastructure!H521","v":0},{"$f":"[1]Infrastructure!I521","v":0},{"$f":"[1]Infrastructure!J521","v":0},{"$f":"[1]Infrastructure!K521","v":0},{"$f":"[1]Infrastructure!L521","v":0},{"$f":"[1]Infrastructure!M521","v":0},{"$f":"[1]Infrastructure!N521","v":0},{"$f":"[1]Infrastructure!O521","v":0},{"$f":"[1]Infrastructure!Q521","v":0},{"$f":"[1]Infrastructure!R521","v":0},{"$f":"[1]Infrastructure!T521","v":0},{"$f":"[1]Infrastructure!W521","v":0},{"$f":"[1]Infrastructure!W521","v":0},0,{"$f":"[1]Infrastructure!Z521","v":0},{"$f":"[1]Infrastructure!Z521","v":0},0,{"$f":"[1]Infrastructure!AB521","v":0},{"$f":"[1]Infrastructure!AB521","v":0},0,{"$f":"[1]Infrastructure!AC521","v":0},{"$f":"[1]Infrastructure!AD521","v":0},{"$f":"[1]Infrastructure!AE521","v":0},{"$f":"[1]Infrastructure!AF521","v":0},{"$f":"[1]Infrastructure!AG521","v":0},{"$f":"[1]Infrastructure!AH521","v":0},0]
[0,null,null,null,null,null,{"$f":"[1]Infrastructure!G522","v":0},{"$f":"[1]Infrastructure!H522","v":0},{"$f":"[1]Infrastructure!I522","v":0},{"$f":"[1]Infrastructure!J522","v":0},{"$f":"[1]Infrastructure!K522","v":0},{"$f":"[1]Infrastructure!L522","v":0},{"$f":"[1]Infrastructure!M522","v":0},{"$f":"[1]Infrastructure!N522","v":0},{"$f":"[1]Infrastructure!O522","v":0},{"$f":"[1]Infrastructure!Q522","v":0},{"$f":"[1]Infrastructure!R522","v":0},{"$f":"[1]Infrastructure!T522","v":0},{"$f":"[1]Infrastructure!W522","v":0},{"$f":"[1]Infrastructure!W522","v":0},0,{"$f":"[1]Infrastructure!Z522","v":0},{"$f":"[1]Infrastructure!Z522","v":0},0,{"$f":"[1]Infrastructure!AB522","v":0},{"$f":"[1]Infrastructure!AB522","v":0},0,{"$f":"[1]Infrastructure!AC522","v":0},{"$f":"[1]Infrastructure!AD522","v":0},{"$f":"[1]Infrastructure!AE522","v":0},{"$f":"[1]Infrastructure!AF522","v":0},{"$f":"[1]Infrastructure!AG522","v":0},{"$f":"[1]Infrastructure!AH522","v":0},0]
[0,null,null,null,null,null,{"$f":"[1]Infrastructure!G523","v":0},{"$f":"[1]Infrastructure!H523","v":0},{"$f":"[1]Infrastructure!I523","v":0},{"$f":"[1]Infrastructure!J523","v":0},{"$f":"[1]Infrastructure!K523","v":0},{"$f":"[1]Infrastructure!L523","v":0},{"$f":"[1]Infrastructure!M523","v":0},{"$f":"[1]Infrastructure!N523","v":0},{"$f":"[1]Infrastructure!O523","v":0},{"$f":"[1]Infrastructure!Q523","v":0},{"$f":"[1]Infrastructure!R523","v":0},{"$f":"[1]Infrastructure!T523","v":0},{"$f":"[1]Infrastructure!W523","v":0},{"$f":"[1]Infrastructure!W523","v":0},0,{"$f":"[1]Infrastructure!Z523","v":0},{"$f":"[1]Infrastructure!Z523","v":0},0,{"$f":"[1]Infrastructure!AB523","v":0},{"$f":"[1]Infrastructure!AB523","v":0},0,{"$f":"[1]Infrastructure!AC523","v":0},{"$f":"[1]Infrastructure!AD523","v":0},{"$f":"[1]Infrastructure!AE523","v":0},{"$f":"[1]Infrastructure!AF523","v":0},{"$f":"[1]Infrastructure!AG523","v":0},{"$f":"[1]Infrastructure!AH523","v":0},0]
[{"$f":"IF(SUM(O524:AH524),1,0)","v":0},null,null,null,null,null,{"$f":"[1]Infrastructure!G524","v":0},{"$f":"[1]Infrastructure!H524","v":0},{"$f":"[1]Infrastructure!I524","v":0},{"$f":"[1]Infrastructure!J524","v":0},{"$f":"[1]Infrastructure!K524","v":0},{"$f":"[1]Infrastructure!L524","v":0},{"$f":"[1]Infrastructure!M524","v":0},{"$f":"[1]Infrastructure!N524","v":0},{"$f":"[1]Infrastructure!O524","v":0},{"$f":"[1]Infrastructure!Q524","v":0},{"$f":"[1]Infrastructure!R524","v":0},{"$f":"[1]Infrastructure!T524","v":0},{"$f":"[1]Infrastructure!W524","v":0},{"$f":"[1]Infrastructure!W524","v":0},{"$f":"SUM(T524-S524)","v":0},{"$f":"[1]Infrastructure!Z524","v":0},{"$f":"[1]Infrastructure!Z524","v":0},{"$f":"SUM(W524-V524)","v":0},{"$f":"[1]Infrastructure!AB524","v":0},{"$f":"[1]Infrastructure!AB524","v":0},{"$f":"SUM(Z524-Y524)","v":0},{"$f":"[1]Infrastructure!AC524","v":0},{"$f":"[1]Infrastructure!AD524","v":0},{"$f":"[1]Infrastructure!AE524","v":0},{"$f":"[1]Infrastructure!AF524","v":0},{"$f":"[1]Infrastructure!AG524","v":0},{"$f":"[1]Infrastructure!AH524","v":0},0]
[0,null,null,null,null,null,{"$f":"[1]Infrastructure!G525","v":0},{"$f":"[1]Infrastructure!H525","v":0},{"$f":"[1]Infrastructure!I525","v":0},{"$f":"[1]Infrastructure!J525","v":0},{"$f":"[1]Infrastructure!K525","v":0},{"$f":"[1]Infrastructure!L525","v":0},{"$f":"[1]Infrastructure!M525","v":0},{"$f":"[1]Infrastructure!N525","v":0},{"$f":"[1]Infrastructure!O525","v":0},{"$f":"[1]Infrastructure!Q525","v":0},{"$f":"[1]Infrastructure!R525","v":0},{"$f":"[1]Infrastructure!T525","v":0},{"$f":"[1]Infrastructure!W525","v":0},{"$f":"[1]Infrastructure!W525","v":0},0,{"$f":"[1]Infrastructure!Z525","v":0},{"$f":"[1]Infrastructure!Z525","v":0},0,{"$f":"[1]Infrastructure!AB525","v":0},{"$f":"[1]Infrastructure!AB525","v":0},0,{"$f":"[1]Infrastructure!AC525","v":0},{"$f":"[1]Infrastructure!AD525","v":0},{"$f":"[1]Infrastructure!AE525","v":0},{"$f":"[1]Infrastructure!AF525","v":0},{"$f":"[1]Infrastructure!AG525","v":0},{"$f":"[1]Infrastructure!AH525","v":0},0]
[0,null,null,null,null,null,{"$f":"[1]Infrastructure!G526","v":0},{"$f":"[1]Infrastructure!H526","v":0},{"$f":"[1]Infrastructure!I526","v":0},{"$f":"[1]Infrastructure!J526","v":0},{"$f":"[1]Infrastructure!K526","v":0},{"$f":"[1]Infrastructure!L526","v":0},{"$f":"[1]Infrastructure!M526","v":0},{"$f":"[1]Infrastructure!N526","v":0},{"$f":"[1]Infrastructure!O526","v":0},{"$f":"[1]Infrastructure!Q526","v":0},{"$f":"[1]Infrastructure!R526","v":0},{"$f":"[1]Infrastructure!T526","v":0},{"$f":"[1]Infrastructure!W526","v":0},{"$f":"[1]Infrastructure!W526","v":0},0,{"$f":"[1]Infrastructure!Z526","v":0},{"$f":"[1]Infrastructure!Z526","v":0},0,{"$f":"[1]Infrastructure!AB526","v":0},{"$f":"[1]Infrastructure!AB526","v":0},0,{"$f":"[1]Infrastructure!AC526","v":0},{"$f":"[1]Infrastructure!AD526","v":0},{"$f":"[1]Infrastructure!AE526","v":0},{"$f":"[1]Infrastructure!AF526","v":0},{"$f":"[1]Infrastructure!AG526","v":0},{"$f":"[1]Infrastructure!AH526","v":0},0]
[0,null,null,null,null,null,{"$f":"[1]Infrastructure!G527","v":0},{"$f":"[1]Infrastructure!H527","v":0},{"$f":"[1]Infrastructure!I527","v":0},{"$f":"[1]Infrastructure!J527","v":0},{"$f":"[1]Infrastructure!K527","v":0},{"$f":"[1]Infrastructure!L527","v":0},{"$f":"[1]Infrastructure!M527","v":0},{"$f":"[1]Infrastructure!N527","v":0},{"$f":"[1]Infrastructure!O527","v":0},{"$f":"[1]Infrastructure!Q527","v":0},{"$f":"[1]Infrastructure!R527","v":0},{"$f":"[1]Infrastructure!T527","v":0},{"$f":"[1]Infrastructure!W527","v":0},{"$f":"[1]Infrastructure!W527","v":0},0,{"$f":"[1]Infrastructure!Z527","v":0},{"$f":"[1]Infrastructure!Z527","v":0},0,{"$f":"[1]Infrastructure!AB527","v":0},{"$f":"[1]Infrastructure!AB527","v":0},0,{"$f":"[1]Infrastructure!AC527","v":0},{"$f":"[1]Infrastructure!AD527","v":0},{"$f":"[1]Infrastructure!AE527","v":0},{"$f":"[1]Infrastructure!AF527","v":0},{"$f":"[1]Infrastructure!AG527","v":0},{"$f":"[1]Infrastructure!AH527","v":0},0]
[0,null,null,null,null,null,{"$f":"[1]Infrastructure!G528","v":0},{"$f":"[1]Infrastructure!H528","v":0},{"$f":"[1]Infrastructure!I528","v":0},{"$f":"[1]Infrastructure!J528","v":0},{"$f":"[1]Infrastructure!K528","v":0},{"$f":"[1]Infrastructure!L528","v":0},{"$f":"[1]Infrastructure!M528","v":0},{"$f":"[1]Infrastructure!N528","v":0},{"$f":"[1]Infrastructure!O528","v":0},{"$f":"[1]Infrastructure!Q528","v":0},{"$f":"[1]Infrastructure!R528","v":0},{"$f":"[1]Infrastructure!T528","v":0},{"$f":"[1]Infrastructure!W528","v":0},{"$f":"[1]Infrastructure!W528","v":0},0,{"$f":"[1]Infrastructure!Z528","v":0},{"$f":"[1]Infrastructure!Z528","v":0},0,{"$f":"[1]Infrastructure!AB528","v":0},{"$f":"[1]Infrastructure!AB528","v":0},0,{"$f":"[1]Infrastructure!AC528","v":0},{"$f":"[1]Infrastructure!AD528","v":0},{"$f":"[1]Infrastructure!AE528","v":0},{"$f":"[1]Infrastructure!AF528","v":0},{"$f":"[1]Infrastructure!AG528","v":0},{"$f":"[1]Infrastructure!AH528","v":0},0]
[0,null,null,null,null,null,{"$f":"[1]Infrastructure!G529","v":0},{"$f":"[1]Infrastructure!H529","v":0},{"$f":"[1]Infrastructure!I529","v":0},{"$f":"[1]Infrastructure!J529","v":0},{"$f":"[1]Infrastructure!K529","v":0},{"$f":"[1]Infrastructure!L529","v":0},{"$f":"[1]Infrastructure!M529","v":0},{"$f":"[1]Infrastructure!N529","v":0},{"$f":"[1]Infrastructure!O529","v":0},{"$f":"[1]Infrastructure!Q529","v":0},{"$f":"[1]Infrastructure!R529","v":0},{"$f":"[1]Infrastructure!T529","v":0},{"$f":"[1]Infrastructure!W529","v":0},{"$f":"[1]Infrastructure!W529","v":0},0,{"$f":"[1]Infrastructure!Z529","v":0},{"$f":"[1]Infrastructure!Z529","v":0},0,{"$f":"[1]Infrastructure!AB529","v":0},{"$f":"[1]Infrastructure!AB529","v":0},0,{"$f":"[1]Infrastructure!AC529","v":0},{"$f":"[1]Infrastructure!AD529","v":0},{"$f":"[1]Infrastructure!AE529","v":0},{"$f":"[1]Infrastructure!AF529","v":0},{"$f":"[1]Infrastructure!AG529","v":0},{"$f":"[1]Infrastructure!AH529","v":0},0]
[0,null,null,null,null,null,{"$f":"[1]Infrastructure!G530","v":0},{"$f":"[1]Infrastructure!H530","v":0},{"$f":"[1]Infrastructure!I530","v":0},{"$f":"[1]Infrastructure!J530","v":0},{"$f":"[1]Infrastructure!K530","v":0},{"$f":"[1]Infrastructure!L530","v":0},{"$f":"[1]Infrastructure!M530","v":0},{"$f":"[1]Infrastructure!N530","v":0},{"$f":"[1]Infrastructure!O530","v":0},{"$f":"[1]Infrastructure!Q530","v":0},{"$f":"[1]Infrastructure!R530","v":0},{"$f":"[1]Infrastructure!T530","v":0},{"$f":"[1]Infrastructure!W530","v":0},{"$f":"[1]Infrastructure!W530","v":0},0,{"$f":"[1]Infrastructure!Z530","v":0},{"$f":"[1]Infrastructure!Z530","v":0},0,{"$f":"[1]Infrastructure!AB530","v":0},{"$f":"[1]Infrastructure!AB530","v":0},0,{"$f":"[1]Infrastructure!AC530","v":0},{"$f":"[1]Infrastructure!AD530","v":0},{"$f":"[1]Infrastructure!AE530","v":0},{"$f":"[1]Infrastructure!AF530","v":0},{"$f":"[1]Infrastructure!AG530","v":0},{"$f":"[1]Infrastructure!AH530","v":0},0]
[0,null,null,null,null,null,{"$f":"[1]Infrastructure!G531","v":0},{"$f":"[1]Infrastructure!H531","v":0},{"$f":"[1]Infrastructure!I531","v":0},{"$f":"[1]Infrastructure!J531","v":0},{"$f":"[1]Infrastructure!K531","v":0},{"$f":"[1]Infrastructure!L531","v":0},{"$f":"[1]Infrastructure!M531","v":0},{"$f":"[1]Infrastructure!N531","v":0},{"$f":"[1]Infrastructure!O531","v":0},{"$f":"[1]Infrastructure!Q531","v":0},{"$f":"[1]Infrastructure!R531","v":0},{"$f":"[1]Infrastructure!T531","v":0},{"$f":"[1]Infrastructure!W531","v":0},{"$f":"[1]Infrastructure!W531","v":0},0,{"$f":"[1]Infrastructure!Z531","v":0},{"$f":"[1]Infrastructure!Z531","v":0},0,{"$f":"[1]Infrastructure!AB531","v":0},{"$f":"[1]Infrastructure!AB531","v":0},0,{"$f":"[1]Infrastructure!AC531","v":0},{"$f":"[1]Infrastructure!AD531","v":0},{"$f":"[1]Infrastructure!AE531","v":0},{"$f":"[1]Infrastructure!AF531","v":0},{"$f":"[1]Infrastructure!AG531","v":0},{"$f":"[1]Infrastructure!AH531","v":0},0]
[0,null,null,null,null,null,{"$f":"[1]Infrastructure!G532","v":0},{"$f":"[1]Infrastructure!H532","v":0},{"$f":"[1]Infrastructure!I532","v":0},{"$f":"[1]Infrastructure!J532","v":0},{"$f":"[1]Infrastructure!K532","v":0},{"$f":"[1]Infrastructure!L532","v":0},{"$f":"[1]Infrastructure!M532","v":0},{"$f":"[1]Infrastructure!N532","v":0},{"$f":"[1]Infrastructure!O532","v":0},{"$f":"[1]Infrastructure!Q532","v":0},{"$f":"[1]Infrastructure!R532","v":0},{"$f":"[1]Infrastructure!T532","v":0},{"$f":"[1]Infrastructure!W532","v":0},{"$f":"[1]Infrastructure!W532","v":0},0,{"$f":"[1]Infrastructure!Z532","v":0},{"$f":"[1]Infrastructure!Z532","v":0},0,{"$f":"[1]Infrastructure!AB532","v":0},{"$f":"[1]Infrastructure!AB532","v":0},0,{"$f":"[1]Infrastructure!AC532","v":0},{"$f":"[1]Infrastructure!AD532","v":0},{"$f":"[1]Infrastructure!AE532","v":0},{"$f":"[1]Infrastructure!AF532","v":0},{"$f":"[1]Infrastructure!AG532","v":0},{"$f":"[1]Infrastructure!AH532","v":0},0]
[0,null,null,null,null,null,{"$f":"[1]Infrastructure!G533","v":0},{"$f":"[1]Infrastructure!H533","v":0},{"$f":"[1]Infrastructure!I533","v":0},{"$f":"[1]Infrastructure!J533","v":0},{"$f":"[1]Infrastructure!K533","v":0},{"$f":"[1]Infrastructure!L533","v":0},{"$f":"[1]Infrastructure!M533","v":0},{"$f":"[1]Infrastructure!N533","v":0},{"$f":"[1]Infrastructure!O533","v":0},{"$f":"[1]Infrastructure!Q533","v":0},{"$f":"[1]Infrastructure!R533","v":0},{"$f":"[1]Infrastructure!T533","v":0},{"$f":"[1]Infrastructure!W533","v":0},{"$f":"[1]Infrastructure!W533","v":0},0,{"$f":"[1]Infrastructure!Z533","v":0},{"$f":"[1]Infrastructure!Z533","v":0},0,{"$f":"[1]Infrastructure!AB533","v":0},{"$f":"[1]Infrastructure!AB533","v":0},0,{"$f":"[1]Infrastructure!AC533","v":0},{"$f":"[1]Infrastructure!AD533","v":0},{"$f":"[1]Infrastructure!AE533","v":0},{"$f":"[1]Infrastructure!AF533","v":0},{"$f":"[1]Infrastructure!AG533","v":0},{"$f":"[1]Infrastructure!AH533","v":0},0]
[0,null,null,null,null,null,{"$f":"[1]Infrastructure!G534","v":0},{"$f":"[1]Infrastructure!H534","v":0},{"$f":"[1]Infrastructure!I534","v":0},{"$f":"[1]Infrastructure!J534","v":0},{"$f":"[1]Infrastructure!K534","v":0},{"$f":"[1]Infrastructure!L534","v":0},{"$f":"[1]Infrastructure!M534","v":0},{"$f":"[1]Infrastructure!N534","v":0},{"$f":"[1]Infrastructure!O534","v":0},{"$f":"[1]Infrastructure!Q534","v":0},{"$f":"[1]Infrastructure!R534","v":0},{"$f":"[1]Infrastructure!T534","v":0},{"$f":"[1]Infrastructure!W534","v":0},{"$f":"[1]Infrastructure!W534","v":0},0,{"$f":"[1]Infrastructure!Z534","v":0},{"$f":"[1]Infrastructure!Z534","v":0},0,{"$f":"[1]Infrastructure!AB534","v":0},{"$f":"[1]Infrastructure!AB534","v":0},0,{"$f":"[1]Infrastructure!AC534","v":0},{"$f":"[1]Infrastructure!AD534","v":0},{"$f":"[1]Infrastructure!AE534","v":0},{"$f":"[1]Infrastructure!AF534","v":0},{"$f":"[1]Infrastructure!AG534","v":0},{"$f":"[1]Infrastructure!AH534","v":0},0]
[0,null,null,null,null,null,{"$f":"[1]Infrastructure!G535","v":0},{"$f":"[1]Infrastructure!H535","v":0},{"$f":"[1]Infrastructure!I535","v":0},{"$f":"[1]Infrastructure!J535","v":0},{"$f":"[1]Infrastructure!K535","v":0},{"$f":"[1]Infrastructure!L535","v":0},{"$f":"[1]Infrastructure!M535","v":0},{"$f":"[1]Infrastructure!N535","v":0},{"$f":"[1]Infrastructure!O535","v":0},{"$f":"[1]Infrastructure!Q535","v":0},{"$f":"[1]Infrastructure!R535","v":0},{"$f":"[1]Infrastructure!T535","v":0},{"$f":"[1]Infrastructure!W535","v":0},{"$f":"[1]Infrastructure!W535","v":0},0,{"$f":"[1]Infrastructure!Z535","v":0},{"$f":"[1]Infrastructure!Z535","v":0},0,{"$f":"[1]Infrastructure!AB535","v":0},{"$f":"[1]Infrastructure!AB535","v":0},0,{"$f":"[1]Infrastructure!AC535","v":0},{"$f":"[1]Infrastructure!AD535","v":0},{"$f":"[1]Infrastructure!AE535","v":0},{"$f":"[1]Infrastructure!AF535","v":0},{"$f":"[1]Infrastructure!AG535","v":0},{"$f":"[1]Infrastructure!AH535","v":0},0]
[0,null,null,null,null,null,{"$f":"[1]Infrastructure!G536","v":0},{"$f":"[1]Infrastructure!H536","v":0},{"$f":"[1]Infrastructure!I536","v":0},{"$f":"[1]Infrastructure!J536","v":0},{"$f":"[1]Infrastructure!K536","v":0},{"$f":"[1]Infrastructure!L536","v":0},{"$f":"[1]Infrastructure!M536","v":0},{"$f":"[1]Infrastructure!N536","v":0},{"$f":"[1]Infrastructure!O536","v":0},{"$f":"[1]Infrastructure!Q536","v":0},{"$f":"[1]Infrastructure!R536","v":0},{"$f":"[1]Infrastructure!T536","v":0},{"$f":"[1]Infrastructure!W536","v":0},{"$f":"[1]Infrastructure!W536","v":0},0,{"$f":"[1]Infrastructure!Z536","v":0},{"$f":"[1]Infrastructure!Z536","v":0},0,{"$f":"[1]Infrastructure!AB536","v":0},{"$f":"[1]Infrastructure!AB536","v":0},0,{"$f":"[1]Infrastructure!AC536","v":0},{"$f":"[1]Infrastructure!AD536","v":0},{"$f":"[1]Infrastructure!AE536","v":0},{"$f":"[1]Infrastructure!AF536","v":0},{"$f":"[1]Infrastructure!AG536","v":0},{"$f":"[1]Infrastructure!AH536","v":0},0]
[0,null,null,null,null,null,{"$f":"[1]Infrastructure!G537","v":0},{"$f":"[1]Infrastructure!H537","v":0},{"$f":"[1]Infrastructure!I537","v":0},{"$f":"[1]Infrastructure!J537","v":0},{"$f":"[1]Infrastructure!K537","v":0},{"$f":"[1]Infrastructure!L537","v":0},{"$f":"[1]Infrastructure!M537","v":0},{"$f":"[1]Infrastructure!N537","v":0},{"$f":"[1]Infrastructure!O537","v":0},{"$f":"[1]Infrastructure!Q537","v":0},{"$f":"[1]Infrastructure!R537","v":0},{"$f":"[1]Infrastructure!T537","v":0},{"$f":"[1]Infrastructure!W537","v":0},{"$f":"[1]Infrastructure!W537","v":0},0,{"$f":"[1]Infrastructure!Z537","v":0},{"$f":"[1]Infrastructure!Z537","v":0},0,{"$f":"[1]Infrastructure!AB537","v":0},{"$f":"[1]Infrastructure!AB537","v":0},0,{"$f":"[1]Infrastructure!AC537","v":0},{"$f":"[1]Infrastructure!AD537","v":0},{"$f":"[1]Infrastructure!AE537","v":0},{"$f":"[1]Infrastructure!AF537","v":0},{"$f":"[1]Infrastructure!AG537","v":0},{"$f":"[1]Infrastructure!AH537","v":0},0]
[0,null,null,null,null,null,{"$f":"[1]Infrastructure!G538","v":0},{"$f":"[1]Infrastructure!H538","v":0},{"$f":"[1]Infrastructure!I538","v":0},{"$f":"[1]Infrastructure!J538","v":0},{"$f":"[1]Infrastructure!K538","v":0},{"$f":"[1]Infrastructure!L538","v":0},{"$f":"[1]Infrastructure!M538","v":0},{"$f":"[1]Infrastructure!N538","v":0},{"$f":"[1]Infrastructure!O538","v":0},{"$f":"[1]Infrastructure!Q538","v":0},{"$f":"[1]Infrastructure!R538","v":0},{"$f":"[1]Infrastructure!T538","v":0},{"$f":"[1]Infrastructure!W538","v":0},{"$f":"[1]Infrastructure!W538","v":0},0,{"$f":"[1]Infrastructure!Z538","v":0},{"$f":"[1]Infrastructure!Z538","v":0},0,{"$f":"[1]Infrastructure!AB538","v":0},{"$f":"[1]Infrastructure!AB538","v":0},0,{"$f":"[1]Infrastructure!AC538","v":0},{"$f":"[1]Infrastructure!AD538","v":0},{"$f":"[1]Infrastructure!AE538","v":0},{"$f":"[1]Infrastructure!AF538","v":0},{"$f":"[1]Infrastructure!AG538","v":0},{"$f":"[1]Infrastructure!AH538","v":0},0]
[0,null,null,null,null,null,{"$f":"[1]Infrastructure!G539","v":0},{"$f":"[1]Infrastructure!H539","v":0},{"$f":"[1]Infrastructure!I539","v":0},{"$f":"[1]Infrastructure!J539","v":0},{"$f":"[1]Infrastructure!K539","v":0},{"$f":"[1]Infrastructure!L539","v":0},{"$f":"[1]Infrastructure!M539","v":0},{"$f":"[1]Infrastructure!N539","v":0},{"$f":"[1]Infrastructure!O539","v":0},{"$f":"[1]Infrastructure!Q539","v":0},{"$f":"[1]Infrastructure!R539","v":0},{"$f":"[1]Infrastructure!T539","v":0},{"$f":"[1]Infrastructure!W539","v":0},{"$f":"[1]Infrastructure!W539","v":0},0,{"$f":"[1]Infrastructure!Z539","v":0},{"$f":"[1]Infrastructure!Z539","v":0},0,{"$f":"[1]Infrastructure!AB539","v":0},{"$f":"[1]Infrastructure!AB539","v":0},0,{"$f":"[1]Infrastructure!AC539","v":0},{"$f":"[1]Infrastructure!AD539","v":0},{"$f":"[1]Infrastructure!AE539","v":0},{"$f":"[1]Infrastructure!AF539","v":0},{"$f":"[1]Infrastructure!AG539","v":0},{"$f":"[1]Infrastructure!AH539","v":0},0]
[0,null,null,null,null,null,{"$f":"[1]Infrastructure!G540","v":0},{"$f":"[1]Infrastructure!H540","v":0},{"$f":"[1]Infrastructure!I540","v":0},{"$f":"[1]Infrastructure!J540","v":0},{"$f":"[1]Infrastructure!K540","v":0},{"$f":"[1]Infrastructure!L540","v":0},{"$f":"[1]Infrastructure!M540","v":0},{"$f":"[1]Infrastructure!N540","v":0},{"$f":"[1]Infrastructure!O540","v":0},{"$f":"[1]Infrastructure!Q540","v":0},{"$f":"[1]Infrastructure!R540","v":0},{"$f":"[1]Infrastructure!T540","v":0},{"$f":"[1]Infrastructure!W540","v":0},{"$f":"[1]Infrastructure!W540","v":0},0,{"$f":"[1]Infrastructure!Z540","v":0},{"$f":"[1]Infrastructure!Z540","v":0},0,{"$f":"[1]Infrastructure!AB540","v":0},{"$f":"[1]Infrastructure!AB540","v":0},0,{"$f":"[1]Infrastructure!AC540","v":0},{"$f":"[1]Infrastructure!AD540","v":0},{"$f":"[1]Infrastructure!AE540","v":0},{"$f":"[1]Infrastructure!AF540","v":0},{"$f":"[1]Infrastructure!AG540","v":0},{"$f":"[1]Infrastructure!AH540","v":0},0]
[0,null,null,null,null,null,{"$f":"[1]Infrastructure!G541","v":0},{"$f":"[1]Infrastructure!H541","v":0},{"$f":"[1]Infrastructure!I541","v":0},{"$f":"[1]Infrastructure!J541","v":0},{"$f":"[1]Infrastructure!K541","v":0},{"$f":"[1]Infrastructure!L541","v":0},{"$f":"[1]Infrastructure!M541","v":0},{"$f":"[1]Infrastructure!N541","v":0},{"$f":"[1]Infrastructure!O541","v":0},{"$f":"[1]Infrastructure!Q541","v":0},{"$f":"[1]Infrastructure!R541","v":0},{"$f":"[1]Infrastructure!T541","v":0},{"$f":"[1]Infrastructure!W541","v":0},{"$f":"[1]Infrastructure!W541","v":0},0,{"$f":"[1]Infrastructure!Z541","v":0},{"$f":"[1]Infrastructure!Z541","v":0},0,{"$f":"[1]Infrastructure!AB541","v":0},{"$f":"[1]Infrastructure!AB541","v":0},0,{"$f":"[1]Infrastructure!AC541","v":0},{"$f":"[1]Infrastructure!AD541","v":0},{"$f":"[1]Infrastructure!AE541","v":0},{"$f":"[1]Infrastructure!AF541","v":0},{"$f":"[1]Infrastructure!AG541","v":0},{"$f":"[1]Infrastructure!AH541","v":0},0]
[0,null,null,null,null,null,{"$f":"[1]Infrastructure!G542","v":0},{"$f":"[1]Infrastructure!H542","v":0},{"$f":"[1]Infrastructure!I542","v":0},{"$f":"[1]Infrastructure!J542","v":0},{"$f":"[1]Infrastructure!K542","v":0},{"$f":"[1]Infrastructure!L542","v":0},{"$f":"[1]Infrastructure!M542","v":0},{"$f":"[1]Infrastructure!N542","v":0},{"$f":"[1]Infrastructure!O542","v":0},{"$f":"[1]Infrastructure!Q542","v":0},{"$f":"[1]Infrastructure!R542","v":0},{"$f":"[1]Infrastructure!T542","v":0},{"$f":"[1]Infrastructure!W542","v":0},{"$f":"[1]Infrastructure!W542","v":0},0,{"$f":"[1]Infrastructure!Z542","v":0},{"$f":"[1]Infrastructure!Z542","v":0},0,{"$f":"[1]Infrastructure!AB542","v":0},{"$f":"[1]Infrastructure!AB542","v":0},0,{"$f":"[1]Infrastructure!AC542","v":0},{"$f":"[1]Infrastructure!AD542","v":0},{"$f":"[1]Infrastructure!AE542","v":0},{"$f":"[1]Infrastructure!AF542","v":0},{"$f":"[1]Infrastructure!AG542","v":0},{"$f":"[1]Infrastructure!AH542","v":0},0]
[0,null,null,null,null,null,{"$f":"[1]Infrastructure!G543","v":0},{"$f":"[1]Infrastructure!H543","v":0},{"$f":"[1]Infrastructure!I543","v":0},{"$f":"[1]Infrastructure!J543","v":0},{"$f":"[1]Infrastructure!K543","v":0},{"$f":"[1]Infrastructure!L543","v":0},{"$f":"[1]Infrastructure!M543","v":0},{"$f":"[1]Infrastructure!N543","v":0},{"$f":"[1]Infrastructure!O543","v":0},{"$f":"[1]Infrastructure!Q543","v":0},{"$f":"[1]Infrastructure!R543","v":0},{"$f":"[1]Infrastructure!T543","v":0},{"$f":"[1]Infrastructure!W543","v":0},{"$f":"[1]Infrastructure!W543","v":0},0,{"$f":"[1]Infrastructure!Z543","v":0},{"$f":"[1]Infrastructure!Z543","v":0},0,{"$f":"[1]Infrastructure!AB543","v":0},{"$f":"[1]Infrastructure!AB543","v":0},0,{"$f":"[1]Infrastructure!AC543","v":0},{"$f":"[1]Infrastructure!AD543","v":0},{"$f":"[1]Infrastructure!AE543","v":0},{"$f":"[1]Infrastructure!AF543","v":0},{"$f":"[1]Infrastructure!AG543","v":0},{"$f":"[1]Infrastructure!AH543","v":0},0]
[0,null,null,null,null,null,{"$f":"[1]Infrastructure!G544","v":0},{"$f":"[1]Infrastructure!H544","v":0},{"$f":"[1]Infrastructure!I544","v":0},{"$f":"[1]Infrastructure!J544","v":0},{"$f":"[1]Infrastructure!K544","v":0},{"$f":"[1]Infrastructure!L544","v":0},{"$f":"[1]Infrastructure!M544","v":0},{"$f":"[1]Infrastructure!N544","v":0},{"$f":"[1]Infrastructure!O544","v":0},{"$f":"[1]Infrastructure!Q544","v":0},{"$f":"[1]Infrastructure!R544","v":0},{"$f":"[1]Infrastructure!T544","v":0},{"$f":"[1]Infrastructure!W544","v":0},{"$f":"[1]Infrastructure!W544","v":0},0,{"$f":"[1]Infrastructure!Z544","v":0},{"$f":"[1]Infrastructure!Z544","v":0},0,{"$f":"[1]Infrastructure!AB544","v":0},{"$f":"[1]Infrastructure!AB544","v":0},0,{"$f":"[1]Infrastructure!AC544","v":0},{"$f":"[1]Infrastructure!AD544","v":0},{"$f":"[1]Infrastructure!AE544","v":0},{"$f":"[1]Infrastructure!AF544","v":0},{"$f":"[1]Infrastructure!AG544","v":0},{"$f":"[1]Infrastructure!AH544","v":0},0]
[0,null,null,null,null,null,{"$f":"[1]Infrastructure!G545","v":0},{"$f":"[1]Infrastructure!H545","v":0},{"$f":"[1]Infrastructure!I545","v":0},{"$f":"[1]Infrastructure!J545","v":0},{"$f":"[1]Infrastructure!K545","v":0},{"$f":"[1]Infrastructure!L545","v":0},{"$f":"[1]Infrastructure!M545","v":0},{"$f":"[1]Infrastructure!N545","v":0},{"$f":"[1]Infrastructure!O545","v":0},{"$f":"[1]Infrastructure!Q545","v":0},{"$f":"[1]Infrastructure!R545","v":0},{"$f":"[1]Infrastructure!T545","v":0},{"$f":"[1]Infrastructure!W545","v":0},{"$f":"[1]Infrastructure!W545","v":0},0,{"$f":"[1]Infrastructure!Z545","v":0},{"$f":"[1]Infrastructure!Z545","v":0},0,{"$f":"[1]Infrastructure!AB545","v":0},{"$f":"[1]Infrastructure!AB545","v":0},0,{"$f":"[1]Infrastructure!AC545","v":0},{"$f":"[1]Infrastructure!AD545","v":0},{"$f":"[1]Infrastructure!AE545","v":0},{"$f":"[1]Infrastructure!AF545","v":0},{"$f":"[1]Infrastructure!AG545","v":0},{"$f":"[1]Infrastructure!AH545","v":0},0]
[0,null,null,null,null,null,{"$f":"[1]Infrastructure!G546","v":0},{"$f":"[1]Infrastructure!H546","v":0},{"$f":"[1]Infrastructure!I546","v":0},{"$f":"[1]Infrastructure!J546","v":0},{"$f":"[1]Infrastructure!K546","v":0},{"$f":"[1]Infrastructure!L546","v":0},{"$f":"[1]Infrastructure!M546","v":0},{"$f":"[1]Infrastructure!N546","v":0},{"$f":"[1]Infrastructure!O546","v":0},{"$f":"[1]Infrastructure!Q546","v":0},{"$f":"[1]Infrastructure!R546","v":0},{"$f":"[1]Infrastructure!T546","v":0},{"$f":"[1]Infrastructure!W546","v":0},{"$f":"[1]Infrastructure!W546","v":0},0,{"$f":"[1]Infrastructure!Z546","v":0},{"$f":"[1]Infrastructure!Z546","v":0},0,{"$f":"[1]Infrastructure!AB546","v":0},{"$f":"[1]Infrastructure!AB546","v":0},0,{"$f":"[1]Infrastructure!AC546","v":0},{"$f":"[1]Infrastructure!AD546","v":0},{"$f":"[1]Infrastructure!AE546","v":0},{"$f":"[1]Infrastructure!AF546","v":0},{"$f":"[1]Infrastructure!AG546","v":0},{"$f":"[1]Infrastructure!AH546","v":0},0]
[0,null,null,null,null,null,{"$f":"[1]Infrastructure!G547","v":0},{"$f":"[1]Infrastructure!H547","v":0},{"$f":"[1]Infrastructure!I547","v":0},{"$f":"[1]Infrastructure!J547","v":0},{"$f":"[1]Infrastructure!K547","v":0},{"$f":"[1]Infrastructure!L547","v":0},{"$f":"[1]Infrastructure!M547","v":0},{"$f":"[1]Infrastructure!N547","v":0},{"$f":"[1]Infrastructure!O547","v":0},{"$f":"[1]Infrastructure!Q547","v":0},{"$f":"[1]Infrastructure!R547","v":0},{"$f":"[1]Infrastructure!T547","v":0},{"$f":"[1]Infrastructure!W547","v":0},{"$f":"[1]Infrastructure!W547","v":0},0,{"$f":"[1]Infrastructure!Z547","v":0},{"$f":"[1]Infrastructure!Z547","v":0},0,{"$f":"[1]Infrastructure!AB547","v":0},{"$f":"[1]Infrastructure!AB547","v":0},0,{"$f":"[1]Infrastructure!AC547","v":0},{"$f":"[1]Infrastructure!AD547","v":0},{"$f":"[1]Infrastructure!AE547","v":0},{"$f":"[1]Infrastructure!AF547","v":0},{"$f":"[1]Infrastructure!AG547","v":0},{"$f":"[1]Infrastructure!AH547","v":0},0]
[0,null,null,null,null,null,{"$f":"[1]Infrastructure!G548","v":0},{"$f":"[1]Infrastructure!H548","v":0},{"$f":"[1]Infrastructure!I548","v":0},{"$f":"[1]Infrastructure!J548","v":0},{"$f":"[1]Infrastructure!K548","v":0},{"$f":"[1]Infrastructure!L548","v":0},{"$f":"[1]Infrastructure!M548","v":0},{"$f":"[1]Infrastructure!N548","v":0},{"$f":"[1]Infrastructure!O548","v":0},{"$f":"[1]Infrastructure!Q548","v":0},{"$f":"[1]Infrastructure!R548","v":0},{"$f":"[1]Infrastructure!T548","v":0},{"$f":"[1]Infrastructure!W548","v":0},{"$f":"[1]Infrastructure!W548","v":0},0,{"$f":"[1]Infrastructure!Z548","v":0},{"$f":"[1]Infrastructure!Z548","v":0},0,{"$f":"[1]Infrastructure!AB548","v":0},{"$f":"[1]Infrastructure!AB548","v":0},0,{"$f":"[1]Infrastructure!AC548","v":0},{"$f":"[1]Infrastructure!AD548","v":0},{"$f":"[1]Infrastructure!AE548","v":0},{"$f":"[1]Infrastructure!AF548","v":0},{"$f":"[1]Infrastructure!AG548","v":0},{"$f":"[1]Infrastructure!AH548","v":0},0]
[0,null,null,null,null,null,{"$f":"[1]Infrastructure!G549","v":0},{"$f":"[1]Infrastructure!H549","v":0},{"$f":"[1]Infrastructure!I549","v":0},{"$f":"[1]Infrastructure!J549","v":0},{"$f":"[1]Infrastructure!K549","v":0},{"$f":"[1]Infrastructure!L549","v":0},{"$f":"[1]Infrastructure!M549","v":0},{"$f":"[1]Infrastructure!N549","v":0},{"$f":"[1]Infrastructure!O549","v":0},{"$f":"[1]Infrastructure!Q549","v":0},{"$f":"[1]Infrastructure!R549","v":0},{"$f":"[1]Infrastructure!T549","v":0},{"$f":"[1]Infrastructure!W549","v":0},{"$f":"[1]Infrastructure!W549","v":0},0,{"$f":"[1]Infrastructure!Z549","v":0},{"$f":"[1]Infrastructure!Z549","v":0},0,{"$f":"[1]Infrastructure!AB549","v":0},{"$f":"[1]Infrastructure!AB549","v":0},0,{"$f":"[1]Infrastructure!AC549","v":0},{"$f":"[1]Infrastructure!AD549","v":0},{"$f":"[1]Infrastructure!AE549","v":0},{"$f":"[1]Infrastructure!AF549","v":0},{"$f":"[1]Infrastructure!AG549","v":0},{"$f":"[1]Infrastructure!AH549","v":0},0]
[0,null,null,null,null,null,{"$f":"[1]Infrastructure!G550","v":0},{"$f":"[1]Infrastructure!H550","v":0},{"$f":"[1]Infrastructure!I550","v":0},{"$f":"[1]Infrastructure!J550","v":0},{"$f":"[1]Infrastructure!K550","v":0},{"$f":"[1]Infrastructure!L550","v":0},{"$f":"[1]Infrastructure!M550","v":0},{"$f":"[1]Infrastructure!N550","v":0},{"$f":"[1]Infrastructure!O550","v":0},{"$f":"[1]Infrastructure!Q550","v":0},{"$f":"[1]Infrastructure!R550","v":0},{"$f":"[1]Infrastructure!T550","v":0},{"$f":"[1]Infrastructure!W550","v":0},{"$f":"[1]Infrastructure!W550","v":0},0,{"$f":"[1]Infrastructure!Z550","v":0},{"$f":"[1]Infrastructure!Z550","v":0},0,{"$f":"[1]Infrastructure!AB550","v":0},{"$f":"[1]Infrastructure!AB550","v":0},0,{"$f":"[1]Infrastructure!AC550","v":0},{"$f":"[1]Infrastructure!AD550","v":0},{"$f":"[1]Infrastructure!AE550","v":0},{"$f":"[1]Infrastructure!AF550","v":0},{"$f":"[1]Infrastructure!AG550","v":0},{"$f":"[1]Infrastructure!AH550","v":0},0]
[0,null,null,null,null,null,{"$f":"[1]Infrastructure!G551","v":0},{"$f":"[1]Infrastructure!H551","v":0},{"$f":"[1]Infrastructure!I551","v":0},{"$f":"[1]Infrastructure!J551","v":0},{"$f":"[1]Infrastructure!K551","v":0},{"$f":"[1]Infrastructure!L551","v":0},{"$f":"[1]Infrastructure!M551","v":0},{"$f":"[1]Infrastructure!N551","v":0},{"$f":"[1]Infrastructure!O551","v":0},{"$f":"[1]Infrastructure!Q551","v":0},{"$f":"[1]Infrastructure!R551","v":0},{"$f":"[1]Infrastructure!T551","v":0},{"$f":"[1]Infrastructure!W551","v":0},{"$f":"[1]Infrastructure!W551","v":0},0,{"$f":"[1]Infrastructure!Z551","v":0},{"$f":"[1]Infrastructure!Z551","v":0},0,{"$f":"[1]Infrastructure!AB551","v":0},{"$f":"[1]Infrastructure!AB551","v":0},0,{"$f":"[1]Infrastructure!AC551","v":0},{"$f":"[1]Infrastructure!AD551","v":0},{"$f":"[1]Infrastructure!AE551","v":0},{"$f":"[1]Infrastructure!AF551","v":0},{"$f":"[1]Infrastructure!AG551","v":0},{"$f":"[1]Infrastructure!AH551","v":0},0]
[0,null,null,null,null,null,{"$f":"[1]Infrastructure!G552","v":0},{"$f":"[1]Infrastructure!H552","v":0},{"$f":"[1]Infrastructure!I552","v":0},{"$f":"[1]Infrastructure!J552","v":0},{"$f":"[1]Infrastructure!K552","v":0},{"$f":"[1]Infrastructure!L552","v":0},{"$f":"[1]Infrastructure!M552","v":0},{"$f":"[1]Infrastructure!N552","v":0},{"$f":"[1]Infrastructure!O552","v":0},{"$f":"[1]Infrastructure!Q552","v":0},{"$f":"[1]Infrastructure!R552","v":0},{"$f":"[1]Infrastructure!T552","v":0},{"$f":"[1]Infrastructure!W552","v":0},{"$f":"[1]Infrastructure!W552","v":0},0,{"$f":"[1]Infrastructure!Z552","v":0},{"$f":"[1]Infrastructure!Z552","v":0},0,{"$f":"[1]Infrastructure!AB552","v":0},{"$f":"[1]Infrastructure!AB552","v":0},0,{"$f":"[1]Infrastructure!AC552","v":0},{"$f":"[1]Infrastructure!AD552","v":0},{"$f":"[1]Infrastructure!AE552","v":0},{"$f":"[1]Infrastructure!AF552","v":0},{"$f":"[1]Infrastructure!AG552","v":0},{"$f":"[1]Infrastructure!AH552","v":0},0]
[0,null,null,null,null,null,{"$f":"[1]Infrastructure!G553","v":0},{"$f":"[1]Infrastructure!H553","v":0},{"$f":"[1]Infrastructure!I553","v":0},{"$f":"[1]Infrastructure!J553","v":0},{"$f":"[1]Infrastructure!K553","v":0},{"$f":"[1]Infrastructure!L553","v":0},{"$f":"[1]Infrastructure!M553","v":0},{"$f":"[1]Infrastructure!N553","v":0},{"$f":"[1]Infrastructure!O553","v":0},{"$f":"[1]Infrastructure!Q553","v":0},{"$f":"[1]Infrastructure!R553","v":0},{"$f":"[1]Infrastructure!T553","v":0},{"$f":"[1]Infrastructure!W553","v":0},{"$f":"[1]Infrastructure!W553","v":0},0,{"$f":"[1]Infrastructure!Z553","v":0},{"$f":"[1]Infrastructure!Z553","v":0},0,{"$f":"[1]Infrastructure!AB553","v":0},{"$f":"[1]Infrastructure!AB553","v":0},0,{"$f":"[1]Infrastructure!AC553","v":0},{"$f":"[1]Infrastructure!AD553","v":0},{"$f":"[1]Infrastructure!AE553","v":0},{"$f":"[1]Infrastructure!AF553","v":0},{"$f":"[1]Infrastructure!AG553","v":0},{"$f":"[1]Infrastructure!AH553","v":0},0]
[0,null,null,null,null,null,{"$f":"[1]Infrastructure!G554","v":0},{"$f":"[1]Infrastructure!H554","v":0},{"$f":"[1]Infrastructure!I554","v":0},{"$f":"[1]Infrastructure!J554","v":0},{"$f":"[1]Infrastructure!K554","v":0},{"$f":"[1]Infrastructure!L554","v":0},{"$f":"[1]Infrastructure!M554","v":0},{"$f":"[1]Infrastructure!N554","v":0},{"$f":"[1]Infrastructure!O554","v":0},{"$f":"[1]Infrastructure!Q554","v":0},{"$f":"[1]Infrastructure!R554","v":0},{"$f":"[1]Infrastructure!T554","v":0},{"$f":"[1]Infrastructure!W554","v":0},{"$f":"[1]Infrastructure!W554","v":0},0,{"$f":"[1]Infrastructure!Z554","v":0},{"$f":"[1]Infrastructure!Z554","v":0},0,{"$f":"[1]Infrastructure!AB554","v":0},{"$f":"[1]Infrastructure!AB554","v":0},0,{"$f":"[1]Infrastructure!AC554","v":0},{"$f":"[1]Infrastructure!AD554","v":0},{"$f":"[1]Infrastructure!AE554","v":0},{"$f":"[1]Infrastructure!AF554","v":0},{"$f":"[1]Infrastructure!AG554","v":0},{"$f":"[1]Infrastructure!AH554","v":0},0]
[0,null,null,null,null,null,{"$f":"[1]Infrastructure!G555","v":0},{"$f":"[1]Infrastructure!H555","v":0},{"$f":"[1]Infrastructure!I555","v":0},{"$f":"[1]Infrastructure!J555","v":0},{"$f":"[1]Infrastructure!K555","v":0},{"$f":"[1]Infrastructure!L555","v":0},{"$f":"[1]Infrastructure!M555","v":0},{"$f":"[1]Infrastructure!N555","v":0},{"$f":"[1]Infrastructure!O555","v":0},{"$f":"[1]Infrastructure!Q555","v":0},{"$f":"[1]Infrastructure!R555","v":0},{"$f":"[1]Infrastructure!T555","v":0},{"$f":"[1]Infrastructure!W555","v":0},{"$f":"[1]Infrastructure!W555","v":0},0,{"$f":"[1]Infrastructure!Z555","v":0},{"$f":"[1]Infrastructure!Z555","v":0},0,{"$f":"[1]Infrastructure!AB555","v":0},{"$f":"[1]Infrastructure!AB555","v":0},0,{"$f":"[1]Infrastructure!AC555","v":0},{"$f":"[1]Infrastructure!AD555","v":0},{"$f":"[1]Infrastructure!AE555","v":0},{"$f":"[1]Infrastructure!AF555","v":0},{"$f":"[1]Infrastructure!AG555","v":0},{"$f":"[1]Infrastructure!AH555","v":0},0]
[0,null,null,null,null,null,{"$f":"[1]Infrastructure!G556","v":0},{"$f":"[1]Infrastructure!H556","v":0},{"$f":"[1]Infrastructure!I556","v":0},{"$f":"[1]Infrastructure!J556","v":0},{"$f":"[1]Infrastructure!K556","v":0},{"$f":"[1]Infrastructure!L556","v":0},{"$f":"[1]Infrastructure!M556","v":0},{"$f":"[1]Infrastructure!N556","v":0},{"$f":"[1]Infrastructure!O556","v":0},{"$f":"[1]Infrastructure!Q556","v":0},{"$f":"[1]Infrastructure!R556","v":0},{"$f":"[1]Infrastructure!T556","v":0},{"$f":"[1]Infrastructure!W556","v":0},{"$f":"[1]Infrastructure!W556","v":0},0,{"$f":"[1]Infrastructure!Z556","v":0},{"$f":"[1]Infrastructure!Z556","v":0},0,{"$f":"[1]Infrastructure!AB556","v":0},{"$f":"[1]Infrastructure!AB556","v":0},0,{"$f":"[1]Infrastructure!AC556","v":0},{"$f":"[1]Infrastructure!AD556","v":0},{"$f":"[1]Infrastructure!AE556","v":0},{"$f":"[1]Infrastructure!AF556","v":0},{"$f":"[1]Infrastructure!AG556","v":0},{"$f":"[1]Infrastructure!AH556","v":0},0]
[0,null,null,null,null,null,{"$f":"[1]Infrastructure!G557","v":0},{"$f":"[1]Infrastructure!H557","v":0},{"$f":"[1]Infrastructure!I557","v":0},{"$f":"[1]Infrastructure!J557","v":0},{"$f":"[1]Infrastructure!K557","v":0},{"$f":"[1]Infrastructure!L557","v":0},{"$f":"[1]Infrastructure!M557","v":0},{"$f":"[1]Infrastructure!N557","v":0},{"$f":"[1]Infrastructure!O557","v":0},{"$f":"[1]Infrastructure!Q557","v":0},{"$f":"[1]Infrastructure!R557","v":0},{"$f":"[1]Infrastructure!T557","v":0},{"$f":"[1]Infrastructure!W557","v":0},{"$f":"[1]Infrastructure!W557","v":0},0,{"$f":"[1]Infrastructure!Z557","v":0},{"$f":"[1]Infrastructure!Z557","v":0},0,{"$f":"[1]Infrastructure!AB557","v":0},{"$f":"[1]Infrastructure!AB557","v":0},0,{"$f":"[1]Infrastructure!AC557","v":0},{"$f":"[1]Infrastructure!AD557","v":0},{"$f":"[1]Infrastructure!AE557","v":0},{"$f":"[1]Infrastructure!AF557","v":0},{"$f":"[1]Infrastructure!AG557","v":0},{"$f":"[1]Infrastructure!AH557","v":0},0]
[0,null,null,null,null,null,{"$f":"[1]Infrastructure!G558","v":0},{"$f":"[1]Infrastructure!H558","v":0},{"$f":"[1]Infrastructure!I558","v":0},{"$f":"[1]Infrastructure!J558","v":0},{"$f":"[1]Infrastructure!K558","v":0},{"$f":"[1]Infrastructure!L558","v":0},{"$f":"[1]Infrastructure!M558","v":0},{"$f":"[1]Infrastructure!N558","v":0},{"$f":"[1]Infrastructure!O558","v":0},{"$f":"[1]Infrastructure!Q558","v":0},{"$f":"[1]Infrastructure!R558","v":0},{"$f":"[1]Infrastructure!T558","v":0},{"$f":"[1]Infrastructure!W558","v":0},{"$f":"[1]Infrastructure!W558","v":0},0,{"$f":"[1]Infrastructure!Z558","v":0},{"$f":"[1]Infrastructure!Z558","v":0},0,{"$f":"[1]Infrastructure!AB558","v":0},{"$f":"[1]Infrastructure!AB558","v":0},0,{"$f":"[1]Infrastructure!AC558","v":0},{"$f":"[1]Infrastructure!AD558","v":0},{"$f":"[1]Infrastructure!AE558","v":0},{"$f":"[1]Infrastructure!AF558","v":0},{"$f":"[1]Infrastructure!AG558","v":0},{"$f":"[1]Infrastructure!AH558","v":0},0]
[0,null,null,null,null,null,{"$f":"[1]Infrastructure!G559","v":0},{"$f":"[1]Infrastructure!H559","v":0},{"$f":"[1]Infrastructure!I559","v":0},{"$f":"[1]Infrastructure!J559","v":0},{"$f":"[1]Infrastructure!K559","v":0},{"$f":"[1]Infrastructure!L559","v":0},{"$f":"[1]Infrastructure!M559","v":0},{"$f":"[1]Infrastructure!N559","v":0},{"$f":"[1]Infrastructure!O559","v":0},{"$f":"[1]Infrastructure!Q559","v":0},{"$f":"[1]Infrastructure!R559","v":0},{"$f":"[1]Infrastructure!T559","v":0},{"$f":"[1]Infrastructure!W559","v":0},{"$f":"[1]Infrastructure!W559","v":0},0,{"$f":"[1]Infrastructure!Z559","v":0},{"$f":"[1]Infrastructure!Z559","v":0},0,{"$f":"[1]Infrastructure!AB559","v":0},{"$f":"[1]Infrastructure!AB559","v":0},0,{"$f":"[1]Infrastructure!AC559","v":0},{"$f":"[1]Infrastructure!AD559","v":0},{"$f":"[1]Infrastructure!AE559","v":0},{"$f":"[1]Infrastructure!AF559","v":0},{"$f":"[1]Infrastructure!AG559","v":0},{"$f":"[1]Infrastructure!AH559","v":0},0]
[0,null,null,null,null,null,{"$f":"[1]Infrastructure!G560","v":0},{"$f":"[1]Infrastructure!H560","v":0},{"$f":"[1]Infrastructure!I560","v":0},{"$f":"[1]Infrastructure!J560","v":0},{"$f":"[1]Infrastructure!K560","v":0},{"$f":"[1]Infrastructure!L560","v":0},{"$f":"[1]Infrastructure!M560","v":0},{"$f":"[1]Infrastructure!N560","v":0},{"$f":"[1]Infrastructure!O560","v":0},{"$f":"[1]Infrastructure!Q560","v":0},{"$f":"[1]Infrastructure!R560","v":0},{"$f":"[1]Infrastructure!T560","v":0},{"$f":"[1]Infrastructure!W560","v":0},{"$f":"[1]Infrastructure!W560","v":0},0,{"$f":"[1]Infrastructure!Z560","v":0},{"$f":"[1]Infrastructure!Z560","v":0},0,{"$f":"[1]Infrastructure!AB560","v":0},{"$f":"[1]Infrastructure!AB560","v":0},0,{"$f":"[1]Infrastructure!AC560","v":0},{"$f":"[1]Infrastructure!AD560","v":0},{"$f":"[1]Infrastructure!AE560","v":0},{"$f":"[1]Infrastructure!AF560","v":0},{"$f":"[1]Infrastructure!AG560","v":0},{"$f":"[1]Infrastructure!AH560","v":0},0]
[0,null,null,null,null,null,{"$f":"[1]Infrastructure!G561","v":0},{"$f":"[1]Infrastructure!H561","v":0},{"$f":"[1]Infrastructure!I561","v":0},{"$f":"[1]Infrastructure!J561","v":0},{"$f":"[1]Infrastructure!K561","v":0},{"$f":"[1]Infrastructure!L561","v":0},{"$f":"[1]Infrastructure!M561","v":0},{"$f":"[1]Infrastructure!N561","v":0},{"$f":"[1]Infrastructure!O561","v":0},{"$f":"[1]Infrastructure!Q561","v":0},{"$f":"[1]Infrastructure!R561","v":0},{"$f":"[1]Infrastructure!T561","v":0},{"$f":"[1]Infrastructure!W561","v":0},{"$f":"[1]Infrastructure!W561","v":0},0,{"$f":"[1]Infrastructure!Z561","v":0},{"$f":"[1]Infrastructure!Z561","v":0},0,{"$f":"[1]Infrastructure!AB561","v":0},{"$f":"[1]Infrastructure!AB561","v":0},0,{"$f":"[1]Infrastructure!AC561","v":0},{"$f":"[1]Infrastructure!AD561","v":0},{"$f":"[1]Infrastructure!AE561","v":0},{"$f":"[1]Infrastructure!AF561","v":0},{"$f":"[1]Infrastructure!AG561","v":0},{"$f":"[1]Infrastructure!AH561","v":0},0]
[0,null,null,null,null,null,{"$f":"[1]Infrastructure!G562","v":0},{"$f":"[1]Infrastructure!H562","v":0},{"$f":"[1]Infrastructure!I562","v":0},{"$f":"[1]Infrastructure!J562","v":0},{"$f":"[1]Infrastructure!K562","v":0},{"$f":"[1]Infrastructure!L562","v":0},{"$f":"[1]Infrastructure!M562","v":0},{"$f":"[1]Infrastructure!N562","v":0},{"$f":"[1]Infrastructure!O562","v":0},{"$f":"[1]Infrastructure!Q562","v":0},{"$f":"[1]Infrastructure!R562","v":0},{"$f":"[1]Infrastructure!T562","v":0},{"$f":"[1]Infrastructure!W562","v":0},{"$f":"[1]Infrastructure!W562","v":0},0,{"$f":"[1]Infrastructure!Z562","v":0},{"$f":"[1]Infrastructure!Z562","v":0},0,{"$f":"[1]Infrastructure!AB562","v":0},{"$f":"[1]Infrastructure!AB562","v":0},0,{"$f":"[1]Infrastructure!AC562","v":0},{"$f":"[1]Infrastructure!AD562","v":0},{"$f":"[1]Infrastructure!AE562","v":0},{"$f":"[1]Infrastructure!AF562","v":0},{"$f":"[1]Infrastructure!AG562","v":0},{"$f":"[1]Infrastructure!AH562","v":0},0]
[0,null,null,null,null,null,{"$f":"[1]Infrastructure!G563","v":0},{"$f":"[1]Infrastructure!H563","v":0},{"$f":"[1]Infrastructure!I563","v":0},{"$f":"[1]Infrastructure!J563","v":0},{"$f":"[1]Infrastructure!K563","v":0},{"$f":"[1]Infrastructure!L563","v":0},{"$f":"[1]Infrastructure!M563","v":0},{"$f":"[1]Infrastructure!N563","v":0},{"$f":"[1]Infrastructure!O563","v":0},{"$f":"[1]Infrastructure!Q563","v":0},{"$f":"[1]Infrastructure!R563","v":0},{"$f":"[1]Infrastructure!T563","v":0},{"$f":"[1]Infrastructure!W563","v":0},{"$f":"[1]Infrastructure!W563","v":0},0,{"$f":"[1]Infrastructure!Z563","v":0},{"$f":"[1]Infrastructure!Z563","v":0},0,{"$f":"[1]Infrastructure!AB563","v":0},{"$f":"[1]Infrastructure!AB563","v":0},0,{"$f":"[1]Infrastructure!AC563","v":0},{"$f":"[1]Infrastructure!AD563","v":0},{"$f":"[1]Infrastructure!AE563","v":0},{"$f":"[1]Infrastructure!AF563","v":0},{"$f":"[1]Infrastructure!AG563","v":0},{"$f":"[1]Infrastructure!AH563","v":0},0]
[0,null,null,null,null,null,{"$f":"[1]Infrastructure!G564","v":0},{"$f":"[1]Infrastructure!H564","v":0},{"$f":"[1]Infrastructure!I564","v":0},{"$f":"[1]Infrastructure!J564","v":0},{"$f":"[1]Infrastructure!K564","v":0},{"$f":"[1]Infrastructure!L564","v":0},{"$f":"[1]Infrastructure!M564","v":0},{"$f":"[1]Infrastructure!N564","v":0},{"$f":"[1]Infrastructure!O564","v":0},{"$f":"[1]Infrastructure!Q564","v":0},{"$f":"[1]Infrastructure!R564","v":0},{"$f":"[1]Infrastructure!T564","v":0},{"$f":"[1]Infrastructure!W564","v":0},{"$f":"[1]Infrastructure!W564","v":0},0,{"$f":"[1]Infrastructure!Z564","v":0},{"$f":"[1]Infrastructure!Z564","v":0},0,{"$f":"[1]Infrastructure!AB564","v":0},{"$f":"[1]Infrastructure!AB564","v":0},0,{"$f":"[1]Infrastructure!AC564","v":0},{"$f":"[1]Infrastructure!AD564","v":0},{"$f":"[1]Infrastructure!AE564","v":0},{"$f":"[1]Infrastructure!AF564","v":0},{"$f":"[1]Infrastructure!AG564","v":0},{"$f":"[1]Infrastructure!AH564","v":0},0]
[0,null,null,null,null,null,{"$f":"[1]Infrastructure!G565","v":0},{"$f":"[1]Infrastructure!H565","v":0},{"$f":"[1]Infrastructure!I565","v":0},{"$f":"[1]Infrastructure!J565","v":0},{"$f":"[1]Infrastructure!K565","v":0},{"$f":"[1]Infrastructure!L565","v":0},{"$f":"[1]Infrastructure!M565","v":0},{"$f":"[1]Infrastructure!N565","v":0},{"$f":"[1]Infrastructure!O565","v":0},{"$f":"[1]Infrastructure!Q565","v":0},{"$f":"[1]Infrastructure!R565","v":0},{"$f":"[1]Infrastructure!T565","v":0},{"$f":"[1]Infrastructure!W565","v":0},{"$f":"[1]Infrastructure!W565","v":0},0,{"$f":"[1]Infrastructure!Z565","v":0},{"$f":"[1]Infrastructure!Z565","v":0},0,{"$f":"[1]Infrastructure!AB565","v":0},{"$f":"[1]Infrastructure!AB565","v":0},0,{"$f":"[1]Infrastructure!AC565","v":0},{"$f":"[1]Infrastructure!AD565","v":0},{"$f":"[1]Infrastructure!AE565","v":0},{"$f":"[1]Infrastructure!AF565","v":0},{"$f":"[1]Infrastructure!AG565","v":0},{"$f":"[1]Infrastructure!AH565","v":0},0]
[0,null,null,null,null,null,{"$f":"[1]Infrastructure!G566","v":0},{"$f":"[1]Infrastructure!H566","v":0},{"$f":"[1]Infrastructure!I566","v":0},{"$f":"[1]Infrastructure!J566","v":0},{"$f":"[1]Infrastructure!K566","v":0},{"$f":"[1]Infrastructure!L566","v":0},{"$f":"[1]Infrastructure!M566","v":0},{"$f":"[1]Infrastructure!N566","v":0},{"$f":"[1]Infrastructure!O566","v":0},{"$f":"[1]Infrastructure!Q566","v":0},{"$f":"[1]Infrastructure!R566","v":0},{"$f":"[1]Infrastructure!T566","v":0},{"$f":"[1]Infrastructure!W566","v":0},{"$f":"[1]Infrastructure!W566","v":0},0,{"$f":"[1]Infrastructure!Z566","v":0},{"$f":"[1]Infrastructure!Z566","v":0},0,{"$f":"[1]Infrastructure!AB566","v":0},{"$f":"[1]Infrastructure!AB566","v":0},0,{"$f":"[1]Infrastructure!AC566","v":0},{"$f":"[1]Infrastructure!AD566","v":0},{"$f":"[1]Infrastructure!AE566","v":0},{"$f":"[1]Infrastructure!AF566","v":0},{"$f":"[1]Infrastructure!AG566","v":0},{"$f":"[1]Infrastructure!AH566","v":0},0]
[0,null,null,null,null,null,{"$f":"[1]Infrastructure!G567","v":0},{"$f":"[1]Infrastructure!H567","v":0},{"$f":"[1]Infrastructure!I567","v":0},{"$f":"[1]Infrastructure!J567","v":0},{"$f":"[1]Infrastructure!K567","v":0},{"$f":"[1]Infrastructure!L567","v":0},{"$f":"[1]Infrastructure!M567","v":0},{"$f":"[1]Infrastructure!N567","v":0},{"$f":"[1]Infrastructure!O567","v":0},{"$f":"[1]Infrastructure!Q567","v":0},{"$f":"[1]Infrastructure!R567","v":0},{"$f":"[1]Infrastructure!T567","v":0},{"$f":"[1]Infrastructure!W567","v":0},{"$f":"[1]Infrastructure!W567","v":0},0,{"$f":"[1]Infrastructure!Z567","v":0},{"$f":"[1]Infrastructure!Z567","v":0},0,{"$f":"[1]Infrastructure!AB567","v":0},{"$f":"[1]Infrastructure!AB567","v":0},0,{"$f":"[1]Infrastructure!AC567","v":0},{"$f":"[1]Infrastructure!AD567","v":0},{"$f":"[1]Infrastructure!AE567","v":0},{"$f":"[1]Infrastructure!AF567","v":0},{"$f":"[1]Infrastructure!AG567","v":0},{"$f":"[1]Infrastructure!AH567","v":0},0]
[0,null,null,null,null,null,{"$f":"[1]Infrastructure!G568","v":0},{"$f":"[1]Infrastructure!H568","v":0},{"$f":"[1]Infrastructure!I568","v":0},{"$f":"[1]Infrastructure!J568","v":0},{"$f":"[1]Infrastructure!K568","v":0},{"$f":"[1]Infrastructure!L568","v":0},{"$f":"[1]Infrastructure!M568","v":0},{"$f":"[1]Infrastructure!N568","v":0},{"$f":"[1]Infrastructure!O568","v":0},{"$f":"[1]Infrastructure!Q568","v":0},{"$f":"[1]Infrastructure!R568","v":0},{"$f":"[1]Infrastructure!T568","v":0},{"$f":"[1]Infrastructure!W568","v":0},{"$f":"[1]Infrastructure!W568","v":0},0,{"$f":"[1]Infrastructure!Z568","v":0},{"$f":"[1]Infrastructure!Z568","v":0},0,{"$f":"[1]Infrastructure!AB568","v":0},{"$f":"[1]Infrastructure!AB568","v":0},0,{"$f":"[1]Infrastructure!AC568","v":0},{"$f":"[1]Infrastructure!AD568","v":0},{"$f":"[1]Infrastructure!AE568","v":0},{"$f":"[1]Infrastructure!AF568","v":0},{"$f":"[1]Infrastructure!AG568","v":0},{"$f":"[1]Infrastructure!AH568","v":0},0]
[0,null,null,null,null,null,{"$f":"[1]Infrastructure!G569","v":0},{"$f":"[1]Infrastructure!H569","v":0},{"$f":"[1]Infrastructure!I569","v":0},{"$f":"[1]Infrastructure!J569","v":0},{"$f":"[1]Infrastructure!K569","v":0},{"$f":"[1]Infrastructure!L569","v":0},{"$f":"[1]Infrastructure!M569","v":0},{"$f":"[1]Infrastructure!N569","v":0},{"$f":"[1]Infrastructure!O569","v":0},{"$f":"[1]Infrastructure!Q569","v":0},{"$f":"[1]Infrastructure!R569","v":0},{"$f":"[1]Infrastructure!T569","v":0},{"$f":"[1]Infrastructure!W569","v":0},{"$f":"[1]Infrastructure!W569","v":0},0,{"$f":"[1]Infrastructure!Z569","v":0},{"$f":"[1]Infrastructure!Z569","v":0},0,{"$f":"[1]Infrastructure!AB569","v":0},{"$f":"[1]Infrastructure!AB569","v":0},0,{"$f":"[1]Infrastructure!AC569","v":0},{"$f":"[1]Infrastructure!AD569","v":0},{"$f":"[1]Infrastructure!AE569","v":0},{"$f":"[1]Infrastructure!AF569","v":0},{"$f":"[1]Infrastructure!AG569","v":0},{"$f":"[1]Infrastructure!AH569","v":0},0]
[0,null,null,null,null,null,{"$f":"[1]Infrastructure!G570","v":0},{"$f":"[1]Infrastructure!H570","v":0},{"$f":"[1]Infrastructure!I570","v":0},{"$f":"[1]Infrastructure!J570","v":0},{"$f":"[1]Infrastructure!K570","v":0},{"$f":"[1]Infrastructure!L570","v":0},{"$f":"[1]Infrastructure!M570","v":0},{"$f":"[1]Infrastructure!N570","v":0},{"$f":"[1]Infrastructure!O570","v":0},{"$f":"[1]Infrastructure!Q570","v":0},{"$f":"[1]Infrastructure!R570","v":0},{"$f":"[1]Infrastructure!T570","v":0},{"$f":"[1]Infrastructure!W570","v":0},{"$f":"[1]Infrastructure!W570","v":0},0,{"$f":"[1]Infrastructure!Z570","v":0},{"$f":"[1]Infrastructure!Z570","v":0},0,{"$f":"[1]Infrastructure!AB570","v":0},{"$f":"[1]Infrastructure!AB570","v":0},0,{"$f":"[1]Infrastructure!AC570","v":0},{"$f":"[1]Infrastructure!AD570","v":0},{"$f":"[1]Infrastructure!AE570","v":0},{"$f":"[1]Infrastructure!AF570","v":0},{"$f":"[1]Infrastructure!AG570","v":0},{"$f":"[1]Infrastructure!AH570","v":0},0]
[0,null,null,null,null,null,{"$f":"[1]Infrastructure!G571","v":0},{"$f":"[1]Infrastructure!H571","v":0},{"$f":"[1]Infrastructure!I571","v":0},{"$f":"[1]Infrastructure!J571","v":0},{"$f":"[1]Infrastructure!K571","v":0},{"$f":"[1]Infrastructure!L571","v":0},{"$f":"[1]Infrastructure!M571","v":0},{"$f":"[1]Infrastructure!N571","v":0},{"$f":"[1]Infrastructure!O571","v":0},{"$f":"[1]Infrastructure!Q571","v":0},{"$f":"[1]Infrastructure!R571","v":0},{"$f":"[1]Infrastructure!T571","v":0},{"$f":"[1]Infrastructure!W571","v":0},{"$f":"[1]Infrastructure!W571","v":0},0,{"$f":"[1]Infrastructure!Z571","v":0},{"$f":"[1]Infrastructure!Z571","v":0},0,{"$f":"[1]Infrastructure!AB571","v":0},{"$f":"[1]Infrastructure!AB571","v":0},0,{"$f":"[1]Infrastructure!AC571","v":0},{"$f":"[1]Infrastructure!AD571","v":0},{"$f":"[1]Infrastructure!AE571","v":0},{"$f":"[1]Infrastructure!AF571","v":0},{"$f":"[1]Infrastructure!AG571","v":0},{"$f":"[1]Infrastructure!AH571","v":0},0]
[0,null,null,null,null,null,{"$f":"[1]Infrastructure!G572","v":0},{"$f":"[1]Infrastructure!H572","v":0},{"$f":"[1]Infrastructure!I572","v":0},{"$f":"[1]Infrastructure!J572","v":0},{"$f":"[1]Infrastructure!K572","v":0},{"$f":"[1]Infrastructure!L572","v":0},{"$f":"[1]Infrastructure!M572","v":0},{"$f":"[1]Infrastructure!N572","v":0},{"$f":"[1]Infrastructure!O572","v":0},{"$f":"[1]Infrastructure!Q572","v":0},{"$f":"[1]Infrastructure!R572","v":0},{"$f":"[1]Infrastructure!T572","v":0},{"$f":"[1]Infrastructure!W572","v":0},{"$f":"[1]Infrastructure!W572","v":0},0,{"$f":"[1]Infrastructure!Z572","v":0},{"$f":"[1]Infrastructure!Z572","v":0},0,{"$f":"[1]Infrastructure!AB572","v":0},{"$f":"[1]Infrastructure!AB572","v":0},0,{"$f":"[1]Infrastructure!AC572","v":0},{"$f":"[1]Infrastructure!AD572","v":0},{"$f":"[1]Infrastructure!AE572","v":0},{"$f":"[1]Infrastructure!AF572","v":0},{"$f":"[1]Infrastructure!AG572","v":0},{"$f":"[1]Infrastructure!AH572","v":0},0]
[0,null,null,null,null,null,{"$f":"[1]Infrastructure!G573","v":0},{"$f":"[1]Infrastructure!H573","v":0},{"$f":"[1]Infrastructure!I573","v":0},{"$f":"[1]Infrastructure!J573","v":0},{"$f":"[1]Infrastructure!K573","v":0},{"$f":"[1]Infrastructure!L573","v":0},{"$f":"[1]Infrastructure!M573","v":0},{"$f":"[1]Infrastructure!N573","v":0},{"$f":"[1]Infrastructure!O573","v":0},{"$f":"[1]Infrastructure!Q573","v":0},{"$f":"[1]Infrastructure!R573","v":0},{"$f":"[1]Infrastructure!T573","v":0},{"$f":"[1]Infrastructure!W573","v":0},{"$f":"[1]Infrastructure!W573","v":0},0,{"$f":"[1]Infrastructure!Z573","v":0},{"$f":"[1]Infrastructure!Z573","v":0},0,{"$f":"[1]Infrastructure!AB573","v":0},{"$f":"[1]Infrastructure!AB573","v":0},0,{"$f":"[1]Infrastructure!AC573","v":0},{"$f":"[1]Infrastructure!AD573","v":0},{"$f":"[1]Infrastructure!AE573","v":0},{"$f":"[1]Infrastructure!AF573","v":0},{"$f":"[1]Infrastructure!AG573","v":0},{"$f":"[1]Infrastructure!AH573","v":0},0]
[0,null,null,null,null,null,{"$f":"[1]Infrastructure!G574","v":0},{"$f":"[1]Infrastructure!H574","v":0},{"$f":"[1]Infrastructure!I574","v":0},{"$f":"[1]Infrastructure!J574","v":0},{"$f":"[1]Infrastructure!K574","v":0},{"$f":"[1]Infrastructure!L574","v":0},{"$f":"[1]Infrastructure!M574","v":0},{"$f":"[1]Infrastructure!N574","v":0},{"$f":"[1]Infrastructure!O574","v":0},{"$f":"[1]Infrastructure!Q574","v":0},{"$f":"[1]Infrastructure!R574","v":0},{"$f":"[1]Infrastructure!T574","v":0},{"$f":"[1]Infrastructure!W574","v":0},{"$f":"[1]Infrastructure!W574","v":0},0,{"$f":"[1]Infrastructure!Z574","v":0},{"$f":"[1]Infrastructure!Z574","v":0},0,{"$f":"[1]Infrastructure!AB574","v":0},{"$f":"[1]Infrastructure!AB574","v":0},0,{"$f":"[1]Infrastructure!AC574","v":0},{"$f":"[1]Infrastructure!AD574","v":0},{"$f":"[1]Infrastructure!AE574","v":0},{"$f":"[1]Infrastructure!AF574","v":0},{"$f":"[1]Infrastructure!AG574","v":0},{"$f":"[1]Infrastructure!AH574","v":0},0]
[0,null,null,null,null,null,{"$f":"[1]Infrastructure!G575","v":0},{"$f":"[1]Infrastructure!H575","v":0},{"$f":"[1]Infrastructure!I575","v":0},{"$f":"[1]Infrastructure!J575","v":0},{"$f":"[1]Infrastructure!K575","v":0},{"$f":"[1]Infrastructure!L575","v":0},{"$f":"[1]Infrastructure!M575","v":0},{"$f":"[1]Infrastructure!N575","v":0},{"$f":"[1]Infrastructure!O575","v":0},{"$f":"[1]Infrastructure!Q575","v":0},{"$f":"[1]Infrastructure!R575","v":0},{"$f":"[1]Infrastructure!T575","v":0},{"$f":"[1]Infrastructure!W575","v":0},{"$f":"[1]Infrastructure!W575","v":0},0,{"$f":"[1]Infrastructure!Z575","v":0},{"$f":"[1]Infrastructure!Z575","v":0},0,{"$f":"[1]Infrastructure!AB575","v":0},{"$f":"[1]Infrastructure!AB575","v":0},0,{"$f":"[1]Infrastructure!AC575","v":0},{"$f":"[1]Infrastructure!AD575","v":0},{"$f":"[1]Infrastructure!AE575","v":0},{"$f":"[1]Infrastructure!AF575","v":0},{"$f":"[1]Infrastructure!AG575","v":0},{"$f":"[1]Infrastructure!AH575","v":0},0]
[0,null,null,null,null,null,{"$f":"[1]Infrastructure!G576","v":0},{"$f":"[1]Infrastructure!H576","v":0},{"$f":"[1]Infrastructure!I576","v":0},{"$f":"[1]Infrastructure!J576","v":0},{"$f":"[1]Infrastructure!K576","v":0},{"$f":"[1]Infrastructure!L576","v":0},{"$f":"[1]Infrastructure!M576","v":0},{"$f":"[1]Infrastructure!N576","v":0},{"$f":"[1]Infrastructure!O576","v":0},{"$f":"[1]Infrastructure!Q576","v":0},{"$f":"[1]Infrastructure!R576","v":0},{"$f":"[1]Infrastructure!T576","v":0},{"$f":"[1]Infrastructure!W576","v":0},{"$f":"[1]Infrastructure!W576","v":0},0,{"$f":"[1]Infrastructure!Z576","v":0},{"$f":"[1]Infrastructure!Z576","v":0},0,{"$f":"[1]Infrastructure!AB576","v":0},{"$f":"[1]Infrastructure!AB576","v":0},0,{"$f":"[1]Infrastructure!AC576","v":0},{"$f":"[1]Infrastructure!AD576","v":0},{"$f":"[1]Infrastructure!AE576","v":0},{"$f":"[1]Infrastructure!AF576","v":0},{"$f":"[1]Infrastructure!AG576","v":0},{"$f":"[1]Infrastructure!AH576","v":0},0]
[0,null,null,null,null,null,{"$f":"[1]Infrastructure!G577","v":0},{"$f":"[1]Infrastructure!H577","v":0},{"$f":"[1]Infrastructure!I577","v":0},{"$f":"[1]Infrastructure!J577","v":0},{"$f":"[1]Infrastructure!K577","v":0},{"$f":"[1]Infrastructure!L577","v":0},{"$f":"[1]Infrastructure!M577","v":0},{"$f":"[1]Infrastructure!N577","v":0},{"$f":"[1]Infrastructure!O577","v":0},{"$f":"[1]Infrastructure!Q577","v":0},{"$f":"[1]Infrastructure!R577","v":0},{"$f":"[1]Infrastructure!T577","v":0},{"$f":"[1]Infrastructure!W577","v":0},{"$f":"[1]Infrastructure!W577","v":0},0,{"$f":"[1]Infrastructure!Z577","v":0},{"$f":"[1]Infrastructure!Z577","v":0},0,{"$f":"[1]Infrastructure!AB577","v":0},{"$f":"[1]Infrastructure!AB577","v":0},0,{"$f":"[1]Infrastructure!AC577","v":0},{"$f":"[1]Infrastructure!AD577","v":0},{"$f":"[1]Infrastructure!AE577","v":0},{"$f":"[1]Infrastructure!AF577","v":0},{"$f":"[1]Infrastructure!AG577","v":0},{"$f":"[1]Infrastructure!AH577","v":0},0]
[0,null,null,null,null,null,{"$f":"[1]Infrastructure!G578","v":0},{"$f":"[1]Infrastructure!H578","v":0},{"$f":"[1]Infrastructure!I578","v":0},{"$f":"[1]Infrastructure!J578","v":0},{"$f":"[1]Infrastructure!K578","v":0},{"$f":"[1]Infrastructure!L578","v":0},{"$f":"[1]Infrastructure!M578","v":0},{"$f":"[1]Infrastructure!N578","v":0},{"$f":"[1]Infrastructure!O578","v":0},{"$f":"[1]Infrastructure!Q578","v":0},{"$f":"[1]Infrastructure!R578","v":0},{"$f":"[1]Infrastructure!T578","v":0},{"$f":"[1]Infrastructure!W578","v":0},{"$f":"[1]Infrastructure!W578","v":0},0,{"$f":"[1]Infrastructure!Z578","v":0},{"$f":"[1]Infrastructure!Z578","v":0},0,{"$f":"[1]Infrastructure!AB578","v":0},{"$f":"[1]Infrastructure!AB578","v":0},0,{"$f":"[1]Infrastructure!AC578","v":0},{"$f":"[1]Infrastructure!AD578","v":0},{"$f":"[1]Infrastructure!AE578","v":0},{"$f":"[1]Infrastructure!AF578","v":0},{"$f":"[1]Infrastructure!AG578","v":0},{"$f":"[1]Infrastructure!AH578","v":0},0]
[0,null,null,null,null,null,{"$f":"[1]Infrastructure!G579","v":0},{"$f":"[1]Infrastructure!H579","v":0},{"$f":"[1]Infrastructure!I579","v":0},{"$f":"[1]Infrastructure!J579","v":0},{"$f":"[1]Infrastructure!K579","v":0},{"$f":"[1]Infrastructure!L579","v":0},{"$f":"[1]Infrastructure!M579","v":0},{"$f":"[1]Infrastructure!N579","v":0},{"$f":"[1]Infrastructure!O579","v":0},{"$f":"[1]Infrastructure!Q579","v":0},{"$f":"[1]Infrastructure!R579","v":0},{"$f":"[1]Infrastructure!T579","v":0},{"$f":"[1]Infrastructure!W579","v":0},{"$f":"[1]Infrastructure!W579","v":0},0,{"$f":"[1]Infrastructure!Z579","v":0},{"$f":"[1]Infrastructure!Z579","v":0},0,{"$f":"[1]Infrastructure!AB579","v":0},{"$f":"[1]Infrastructure!AB579","v":0},0,{"$f":"[1]Infrastructure!AC579","v":0},{"$f":"[1]Infrastructure!AD579","v":0},{"$f":"[1]Infrastructure!AE579","v":0},{"$f":"[1]Infrastructure!AF579","v":0},{"$f":"[1]Infrastructure!AG579","v":0},{"$f":"[1]Infrastructure!AH579","v":0},0]
[0,null,null,null,null,null,{"$f":"[1]Infrastructure!G580","v":0},{"$f":"[1]Infrastructure!H580","v":0},{"$f":"[1]Infrastructure!I580","v":0},{"$f":"[1]Infrastructure!J580","v":0},{"$f":"[1]Infrastructure!K580","v":0},{"$f":"[1]Infrastructure!L580","v":0},{"$f":"[1]Infrastructure!M580","v":0},{"$f":"[1]Infrastructure!N580","v":0},{"$f":"[1]Infrastructure!O580","v":0},{"$f":"[1]Infrastructure!Q580","v":0},{"$f":"[1]Infrastructure!R580","v":0},{"$f":"[1]Infrastructure!T580","v":0},{"$f":"[1]Infrastructure!W580","v":0},{"$f":"[1]Infrastructure!W580","v":0},0,{"$f":"[1]Infrastructure!Z580","v":0},{"$f":"[1]Infrastructure!Z580","v":0},0,{"$f":"[1]Infrastructure!AB580","v":0},{"$f":"[1]Infrastructure!AB580","v":0},0,{"$f":"[1]Infrastructure!AC580","v":0},{"$f":"[1]Infrastructure!AD580","v":0},{"$f":"[1]Infrastructure!AE580","v":0},{"$f":"[1]Infrastructure!AF580","v":0},{"$f":"[1]Infrastructure!AG580","v":0},{"$f":"[1]Infrastructure!AH580","v":0},0]
[0,null,null,null,null,null,{"$f":"[1]Infrastructure!G581","v":0},{"$f":"[1]Infrastructure!H581","v":0},{"$f":"[1]Infrastructure!I581","v":0},{"$f":"[1]Infrastructure!J581","v":0},{"$f":"[1]Infrastructure!K581","v":0},{"$f":"[1]Infrastructure!L581","v":0},{"$f":"[1]Infrastructure!M581","v":0},{"$f":"[1]Infrastructure!N581","v":0},{"$f":"[1]Infrastructure!O581","v":0},{"$f":"[1]Infrastructure!Q581","v":0},{"$f":"[1]Infrastructure!R581","v":0},{"$f":"[1]Infrastructure!T581","v":0},{"$f":"[1]Infrastructure!W581","v":0},{"$f":"[1]Infrastructure!W581","v":0},0,{"$f":"[1]Infrastructure!Z581","v":0},{"$f":"[1]Infrastructure!Z581","v":0},0,{"$f":"[1]Infrastructure!AB581","v":0},{"$f":"[1]Infrastructure!AB581","v":0},0,{"$f":"[1]Infrastructure!AC581","v":0},{"$f":"[1]Infrastructure!AD581","v":0},{"$f":"[1]Infrastructure!AE581","v":0},{"$f":"[1]Infrastructure!AF581","v":0},{"$f":"[1]Infrastructure!AG581","v":0},{"$f":"[1]Infrastructure!AH581","v":0},0]
[0,null,null,null,null,null,{"$f":"[1]Infrastructure!G582","v":0},{"$f":"[1]Infrastructure!H582","v":0},{"$f":"[1]Infrastructure!I582","v":0},{"$f":"[1]Infrastructure!J582","v":0},{"$f":"[1]Infrastructure!K582","v":0},{"$f":"[1]Infrastructure!L582","v":0},{"$f":"[1]Infrastructure!M582","v":0},{"$f":"[1]Infrastructure!N582","v":0},{"$f":"[1]Infrastructure!O582","v":0},{"$f":"[1]Infrastructure!Q582","v":0},{"$f":"[1]Infrastructure!R582","v":0},{"$f":"[1]Infrastructure!T582","v":0},{"$f":"[1]Infrastructure!W582","v":0},{"$f":"[1]Infrastructure!W582","v":0},0,{"$f":"[1]Infrastructure!Z582","v":0},{"$f":"[1]Infrastructure!Z582","v":0},0,{"$f":"[1]Infrastructure!AB582","v":0},{"$f":"[1]Infrastructure!AB582","v":0},0,{"$f":"[1]Infrastructure!AC582","v":0},{"$f":"[1]Infrastructure!AD582","v":0},{"$f":"[1]Infrastructure!AE582","v":0},{"$f":"[1]Infrastructure!AF582","v":0},{"$f":"[1]Infrastructure!AG582","v":0},{"$f":"[1]Infrastructure!AH582","v":0},0]
[0,null,null,null,null,null,{"$f":"[1]Infrastructure!G583","v":0},{"$f":"[1]Infrastructure!H583","v":0},{"$f":"[1]Infrastructure!I583","v":0},{"$f":"[1]Infrastructure!J583","v":0},{"$f":"[1]Infrastructure!K583","v":0},{"$f":"[1]Infrastructure!L583","v":0},{"$f":"[1]Infrastructure!M583","v":0},{"$f":"[1]Infrastructure!N583","v":0},{"$f":"[1]Infrastructure!O583","v":0},{"$f":"[1]Infrastructure!Q583","v":0},{"$f":"[1]Infrastructure!R583","v":0},{"$f":"[1]Infrastructure!T583","v":0},{"$f":"[1]Infrastructure!W583","v":0},{"$f":"[1]Infrastructure!W583","v":0},0,{"$f":"[1]Infrastructure!Z583","v":0},{"$f":"[1]Infrastructure!Z583","v":0},0,{"$f":"[1]Infrastructure!AB583","v":0},{"$f":"[1]Infrastructure!AB583","v":0},0,{"$f":"[1]Infrastructure!AC583","v":0},{"$f":"[1]Infrastructure!AD583","v":0},{"$f":"[1]Infrastructure!AE583","v":0},{"$f":"[1]Infrastructure!AF583","v":0},{"$f":"[1]Infrastructure!AG583","v":0},{"$f":"[1]Infrastructure!AH583","v":0},0]
[0,null,null,null,null,null,{"$f":"[1]Infrastructure!G584","v":0},{"$f":"[1]Infrastructure!H584","v":0},{"$f":"[1]Infrastructure!I584","v":0},{"$f":"[1]Infrastructure!J584","v":0},{"$f":"[1]Infrastructure!K584","v":0},{"$f":"[1]Infrastructure!L584","v":0},{"$f":"[1]Infrastructure!M584","v":0},{"$f":"[1]Infrastructure!N584","v":0},{"$f":"[1]Infrastructure!O584","v":0},{"$f":"[1]Infrastructure!Q584","v":0},{"$f":"[1]Infrastructure!R584","v":0},{"$f":"[1]Infrastructure!T584","v":0},{"$f":"[1]Infrastructure!W584","v":0},{"$f":"[1]Infrastructure!W584","v":0},0,{"$f":"[1]Infrastructure!Z584","v":0},{"$f":"[1]Infrastructure!Z584","v":0},0,{"$f":"[1]Infrastructure!AB584","v":0},{"$f":"[1]Infrastructure!AB584","v":0},0,{"$f":"[1]Infrastructure!AC584","v":0},{"$f":"[1]Infrastructure!AD584","v":0},{"$f":"[1]Infrastructure!AE584","v":0},{"$f":"[1]Infrastructure!AF584","v":0},{"$f":"[1]Infrastructure!AG584","v":0},{"$f":"[1]Infrastructure!AH584","v":0},0]
[0,null,null,null,null,null,{"$f":"[1]Infrastructure!G585","v":0},{"$f":"[1]Infrastructure!H585","v":0},{"$f":"[1]Infrastructure!I585","v":0},{"$f":"[1]Infrastructure!J585","v":0},{"$f":"[1]Infrastructure!K585","v":0},{"$f":"[1]Infrastructure!L585","v":0},{"$f":"[1]Infrastructure!M585","v":0},{"$f":"[1]Infrastructure!N585","v":0},{"$f":"[1]Infrastructure!O585","v":0},{"$f":"[1]Infrastructure!Q585","v":0},{"$f":"[1]Infrastructure!R585","v":0},{"$f":"[1]Infrastructure!T585","v":0},{"$f":"[1]Infrastructure!W585","v":0},{"$f":"[1]Infrastructure!W585","v":0},0,{"$f":"[1]Infrastructure!Z585","v":0},{"$f":"[1]Infrastructure!Z585","v":0},0,{"$f":"[1]Infrastructure!AB585","v":0},{"$f":"[1]Infrastructure!AB585","v":0},0,{"$f":"[1]Infrastructure!AC585","v":0},{"$f":"[1]Infrastructure!AD585","v":0},{"$f":"[1]Infrastructure!AE585","v":0},{"$f":"[1]Infrastructure!AF585","v":0},{"$f":"[1]Infrastructure!AG585","v":0},{"$f":"[1]Infrastructure!AH585","v":0},0]
[0,null,null,null,null,null,{"$f":"[1]Infrastructure!G586","v":0},{"$f":"[1]Infrastructure!H586","v":0},{"$f":"[1]Infrastructure!I586","v":0},{"$f":"[1]Infrastructure!J586","v":0},{"$f":"[1]Infrastructure!K586","v":0},{"$f":"[1]Infrastructure!L586","v":0},{"$f":"[1]Infrastructure!M586","v":0},{"$f":"[1]Infrastructure!N586","v":0},{"$f":"[1]Infrastructure!O586","v":0},{"$f":"[1]Infrastructure!Q586","v":0},{"$f":"[1]Infrastructure!R586","v":0},{"$f":"[1]Infrastructure!T586","v":0},{"$f":"[1]Infrastructure!W586","v":0},{"$f":"[1]Infrastructure!W586","v":0},0,{"$f":"[1]Infrastructure!Z586","v":0},{"$f":"[1]Infrastructure!Z586","v":0},0,{"$f":"[1]Infrastructure!AB586","v":0},{"$f":"[1]Infrastructure!AB586","v":0},0,{"$f":"[1]Infrastructure!AC586","v":0},{"$f":"[1]Infrastructure!AD586","v":0},{"$f":"[1]Infrastructure!AE586","v":0},{"$f":"[1]Infrastructure!AF586","v":0},{"$f":"[1]Infrastructure!AG586","v":0},{"$f":"[1]Infrastructure!AH586","v":0},0]
[0,null,null,null,null,null,{"$f":"[1]Infrastructure!G587","v":0},{"$f":"[1]Infrastructure!H587","v":0},{"$f":"[1]Infrastructure!I587","v":0},{"$f":"[1]Infrastructure!J587","v":0},{"$f":"[1]Infrastructure!K587","v":0},{"$f":"[1]Infrastructure!L587","v":0},{"$f":"[1]Infrastructure!M587","v":0},{"$f":"[1]Infrastructure!N587","v":0},{"$f":"[1]Infrastructure!O587","v":0},{"$f":"[1]Infrastructure!Q587","v":0},{"$f":"[1]Infrastructure!R587","v":0},{"$f":"[1]Infrastructure!T587","v":0},{"$f":"[1]Infrastructure!W587","v":0},{"$f":"[1]Infrastructure!W587","v":0},0,{"$f":"[1]Infrastructure!Z587","v":0},{"$f":"[1]Infrastructure!Z587","v":0},0,{"$f":"[1]Infrastructure!AB587","v":0},{"$f":"[1]Infrastructure!AB587","v":0},0,{"$f":"[1]Infrastructure!AC587","v":0},{"$f":"[1]Infrastructure!AD587","v":0},{"$f":"[1]Infrastructure!AE587","v":0},{"$f":"[1]Infrastructure!AF587","v":0},{"$f":"[1]Infrastructure!AG587","v":0},{"$f":"[1]Infrastructure!AH587","v":0},0]
[{"$f":"IF(SUM(O588:AH588),1,0)","v":0},null,null,null,null,null,{"$f":"[1]Infrastructure!G588","v":0},{"$f":"[1]Infrastructure!H588","v":0},{"$f":"[1]Infrastructure!I588","v":0},{"$f":"[1]Infrastructure!J588","v":0},{"$f":"[1]Infrastructure!K588","v":0},{"$f":"[1]Infrastructure!L588","v":0},{"$f":"[1]Infrastructure!M588","v":0},{"$f":"[1]Infrastructure!N588","v":0},{"$f":"[1]Infrastructure!O588","v":0},{"$f":"[1]Infrastructure!Q588","v":0},{"$f":"[1]Infrastructure!R588","v":0},{"$f":"[1]Infrastructure!T588","v":0},{"$f":"[1]Infrastructure!W588","v":0},{"$f":"[1]Infrastructure!W588","v":0},{"$f":"SUM(T588-S588)","v":0},{"$f":"[1]Infrastructure!Z588","v":0},{"$f":"[1]Infrastructure!Z588","v":0},{"$f":"SUM(W588-V588)","v":0},{"$f":"[1]Infrastructure!AB588","v":0},{"$f":"[1]Infrastructure!AB588","v":0},{"$f":"SUM(Z588-Y588)","v":0},{"$f":"[1]Infrastructure!AC588","v":0},{"$f":"[1]Infrastructure!AD588","v":0},{"$f":"[1]Infrastructure!AE588","v":0},{"$f":"[1]Infrastructure!AF588","v":0},{"$f":"[1]Infrastructure!AG588","v":0},{"$f":"[1]Infrastructure!AH588","v":0},0]
[0,null,null,null,null,null,{"$f":"[1]Infrastructure!G589","v":0},{"$f":"[1]Infrastructure!H589","v":0},{"$f":"[1]Infrastructure!I589","v":0},{"$f":"[1]Infrastructure!J589","v":0},{"$f":"[1]Infrastructure!K589","v":0},{"$f":"[1]Infrastructure!L589","v":0},{"$f":"[1]Infrastructure!M589","v":0},{"$f":"[1]Infrastructure!N589","v":0},{"$f":"[1]Infrastructure!O589","v":0},{"$f":"[1]Infrastructure!Q589","v":0},{"$f":"[1]Infrastructure!R589","v":0},{"$f":"[1]Infrastructure!T589","v":0},{"$f":"[1]Infrastructure!W589","v":0},{"$f":"[1]Infrastructure!W589","v":0},0,{"$f":"[1]Infrastructure!Z589","v":0},{"$f":"[1]Infrastructure!Z589","v":0},0,{"$f":"[1]Infrastructure!AB589","v":0},{"$f":"[1]Infrastructure!AB589","v":0},0,{"$f":"[1]Infrastructure!AC589","v":0},{"$f":"[1]Infrastructure!AD589","v":0},{"$f":"[1]Infrastructure!AE589","v":0},{"$f":"[1]Infrastructure!AF589","v":0},{"$f":"[1]Infrastructure!AG589","v":0},{"$f":"[1]Infrastructure!AH589","v":0},0]
[0,null,null,null,null,null,{"$f":"[1]Infrastructure!G590","v":0},{"$f":"[1]Infrastructure!H590","v":0},{"$f":"[1]Infrastructure!I590","v":0},{"$f":"[1]Infrastructure!J590","v":0},{"$f":"[1]Infrastructure!K590","v":0},{"$f":"[1]Infrastructure!L590","v":0},{"$f":"[1]Infrastructure!M590","v":0},{"$f":"[1]Infrastructure!N590","v":0},{"$f":"[1]Infrastructure!O590","v":0},{"$f":"[1]Infrastructure!Q590","v":0},{"$f":"[1]Infrastructure!R590","v":0},{"$f":"[1]Infrastructure!T590","v":0},{"$f":"[1]Infrastructure!W590","v":0},{"$f":"[1]Infrastructure!W590","v":0},0,{"$f":"[1]Infrastructure!Z590","v":0},{"$f":"[1]Infrastructure!Z590","v":0},0,{"$f":"[1]Infrastructure!AB590","v":0},{"$f":"[1]Infrastructure!AB590","v":0},0,{"$f":"[1]Infrastructure!AC590","v":0},{"$f":"[1]Infrastructure!AD590","v":0},{"$f":"[1]Infrastructure!AE590","v":0},{"$f":"[1]Infrastructure!AF590","v":0},{"$f":"[1]Infrastructure!AG590","v":0},{"$f":"[1]Infrastructure!AH590","v":0},0]
[0,null,null,null,null,null,{"$f":"[1]Infrastructure!G591","v":0},{"$f":"[1]Infrastructure!H591","v":0},{"$f":"[1]Infrastructure!I591","v":0},{"$f":"[1]Infrastructure!J591","v":0},{"$f":"[1]Infrastructure!K591","v":0},{"$f":"[1]Infrastructure!L591","v":0},{"$f":"[1]Infrastructure!M591","v":0},{"$f":"[1]Infrastructure!N591","v":0},{"$f":"[1]Infrastructure!O591","v":0},{"$f":"[1]Infrastructure!Q591","v":0},{"$f":"[1]Infrastructure!R591","v":0},{"$f":"[1]Infrastructure!T591","v":0},{"$f":"[1]Infrastructure!W591","v":0},{"$f":"[1]Infrastructure!W591","v":0},0,{"$f":"[1]Infrastructure!Z591","v":0},{"$f":"[1]Infrastructure!Z591","v":0},0,{"$f":"[1]Infrastructure!AB591","v":0},{"$f":"[1]Infrastructure!AB591","v":0},0,{"$f":"[1]Infrastructure!AC591","v":0},{"$f":"[1]Infrastructure!AD591","v":0},{"$f":"[1]Infrastructure!AE591","v":0},{"$f":"[1]Infrastructure!AF591","v":0},{"$f":"[1]Infrastructure!AG591","v":0},{"$f":"[1]Infrastructure!AH591","v":0},0]
[0,null,null,null,null,null,{"$f":"[1]Infrastructure!G592","v":0},{"$f":"[1]Infrastructure!H592","v":0},{"$f":"[1]Infrastructure!I592","v":0},{"$f":"[1]Infrastructure!J592","v":0},{"$f":"[1]Infrastructure!K592","v":0},{"$f":"[1]Infrastructure!L592","v":0},{"$f":"[1]Infrastructure!M592","v":0},{"$f":"[1]Infrastructure!N592","v":0},{"$f":"[1]Infrastructure!O592","v":0},{"$f":"[1]Infrastructure!Q592","v":0},{"$f":"[1]Infrastructure!R592","v":0},{"$f":"[1]Infrastructure!T592","v":0},{"$f":"[1]Infrastructure!W592","v":0},{"$f":"[1]Infrastructure!W592","v":0},0,{"$f":"[1]Infrastructure!Z592","v":0},{"$f":"[1]Infrastructure!Z592","v":0},0,{"$f":"[1]Infrastructure!AB592","v":0},{"$f":"[1]Infrastructure!AB592","v":0},0,{"$f":"[1]Infrastructure!AC592","v":0},{"$f":"[1]Infrastructure!AD592","v":0},{"$f":"[1]Infrastructure!AE592","v":0},{"$f":"[1]Infrastructure!AF592","v":0},{"$f":"[1]Infrastructure!AG592","v":0},{"$f":"[1]Infrastructure!AH592","v":0},0]
[0,null,null,null,null,null,{"$f":"[1]Infrastructure!G593","v":0},{"$f":"[1]Infrastructure!H593","v":0},{"$f":"[1]Infrastructure!I593","v":0},{"$f":"[1]Infrastructure!J593","v":0},{"$f":"[1]Infrastructure!K593","v":0},{"$f":"[1]Infrastructure!L593","v":0},{"$f":"[1]Infrastructure!M593","v":0},{"$f":"[1]Infrastructure!N593","v":0},{"$f":"[1]Infrastructure!O593","v":0},{"$f":"[1]Infrastructure!Q593","v":0},{"$f":"[1]Infrastructure!R593","v":0},{"$f":"[1]Infrastructure!T593","v":0},{"$f":"[1]Infrastructure!W593","v":0},{"$f":"[1]Infrastructure!W593","v":0},0,{"$f":"[1]Infrastructure!Z593","v":0},{"$f":"[1]Infrastructure!Z593","v":0},0,{"$f":"[1]Infrastructure!AB593","v":0},{"$f":"[1]Infrastructure!AB593","v":0},0,{"$f":"[1]Infrastructure!AC593","v":0},{"$f":"[1]Infrastructure!AD593","v":0},{"$f":"[1]Infrastructure!AE593","v":0},{"$f":"[1]Infrastructure!AF593","v":0},{"$f":"[1]Infrastructure!AG593","v":0},{"$f":"[1]Infrastructure!AH593","v":0},0]
[0,null,null,null,null,null,{"$f":"[1]Infrastructure!G594","v":0},{"$f":"[1]Infrastructure!H594","v":0},{"$f":"[1]Infrastructure!I594","v":0},{"$f":"[1]Infrastructure!J594","v":0},{"$f":"[1]Infrastructure!K594","v":0},{"$f":"[1]Infrastructure!L594","v":0},{"$f":"[1]Infrastructure!M594","v":0},{"$f":"[1]Infrastructure!N594","v":0},{"$f":"[1]Infrastructure!O594","v":0},{"$f":"[1]Infrastructure!Q594","v":0},{"$f":"[1]Infrastructure!R594","v":0},{"$f":"[1]Infrastructure!T594","v":0},{"$f":"[1]Infrastructure!W594","v":0},{"$f":"[1]Infrastructure!W594","v":0},0,{"$f":"[1]Infrastructure!Z594","v":0},{"$f":"[1]Infrastructure!Z594","v":0},0,{"$f":"[1]Infrastructure!AB594","v":0},{"$f":"[1]Infrastructure!AB594","v":0},0,{"$f":"[1]Infrastructure!AC594","v":0},{"$f":"[1]Infrastructure!AD594","v":0},{"$f":"[1]Infrastructure!AE594","v":0},{"$f":"[1]Infrastructure!AF594","v":0},{"$f":"[1]Infrastructure!AG594","v":0},{"$f":"[1]Infrastructure!AH594","v":0},0]
[0,null,null,null,null,null,{"$f":"[1]Infrastructure!G595","v":0},{"$f":"[1]Infrastructure!H595","v":0},{"$f":"[1]Infrastructure!I595","v":0},{"$f":"[1]Infrastructure!J595","v":0},{"$f":"[1]Infrastructure!K595","v":0},{"$f":"[1]Infrastructure!L595","v":0},{"$f":"[1]Infrastructure!M595","v":0},{"$f":"[1]Infrastructure!N595","v":0},{"$f":"[1]Infrastructure!O595","v":0},{"$f":"[1]Infrastructure!Q595","v":0},{"$f":"[1]Infrastructure!R595","v":0},{"$f":"[1]Infrastructure!T595","v":0},{"$f":"[1]Infrastructure!W595","v":0},{"$f":"[1]Infrastructure!W595","v":0},0,{"$f":"[1]Infrastructure!Z595","v":0},{"$f":"[1]Infrastructure!Z595","v":0},0,{"$f":"[1]Infrastructure!AB595","v":0},{"$f":"[1]Infrastructure!AB595","v":0},0,{"$f":"[1]Infrastructure!AC595","v":0},{"$f":"[1]Infrastructure!AD595","v":0},{"$f":"[1]Infrastructure!AE595","v":0},{"$f":"[1]Infrastructure!AF595","v":0},{"$f":"[1]Infrastructure!AG595","v":0},{"$f":"[1]Infrastructure!AH595","v":0},0]
[0,null,null,null,null,null,{"$f":"[1]Infrastructure!G596","v":0},{"$f":"[1]Infrastructure!H596","v":0},{"$f":"[1]Infrastructure!I596","v":0},{"$f":"[1]Infrastructure!J596","v":0},{"$f":"[1]Infrastructure!K596","v":0},{"$f":"[1]Infrastructure!L596","v":0},{"$f":"[1]Infrastructure!M596","v":0},{"$f":"[1]Infrastructure!N596","v":0},{"$f":"[1]Infrastructure!O596","v":0},{"$f":"[1]Infrastructure!Q596","v":0},{"$f":"[1]Infrastructure!R596","v":0},{"$f":"[1]Infrastructure!T596","v":0},{"$f":"[1]Infrastructure!W596","v":0},{"$f":"[1]Infrastructure!W596","v":0},0,{"$f":"[1]Infrastructure!Z596","v":0},{"$f":"[1]Infrastructure!Z596","v":0},0,{"$f":"[1]Infrastructure!AB596","v":0},{"$f":"[1]Infrastructure!AB596","v":0},0,{"$f":"[1]Infrastructure!AC596","v":0},{"$f":"[1]Infrastructure!AD596","v":0},{"$f":"[1]Infrastructure!AE596","v":0},{"$f":"[1]Infrastructure!AF596","v":0},{"$f":"[1]Infrastructure!AG596","v":0},{"$f":"[1]Infrastructure!AH596","v":0},0]
[0,null,null,null,null,null,{"$f":"[1]Infrastructure!G597","v":0},{"$f":"[1]Infrastructure!H597","v":0},{"$f":"[1]Infrastructure!I597","v":0},{"$f":"[1]Infrastructure!J597","v":0},{"$f":"[1]Infrastructure!K597","v":0},{"$f":"[1]Infrastructure!L597","v":0},{"$f":"[1]Infrastructure!M597","v":0},{"$f":"[1]Infrastructure!N597","v":0},{"$f":"[1]Infrastructure!O597","v":0},{"$f":"[1]Infrastructure!Q597","v":0},{"$f":"[1]Infrastructure!R597","v":0},{"$f":"[1]Infrastructure!T597","v":0},{"$f":"[1]Infrastructure!W597","v":0},{"$f":"[1]Infrastructure!W597","v":0},0,{"$f":"[1]Infrastructure!Z597","v":0},{"$f":"[1]Infrastructure!Z597","v":0},0,{"$f":"[1]Infrastructure!AB597","v":0},{"$f":"[1]Infrastructure!AB597","v":0},0,{"$f":"[1]Infrastructure!AC597","v":0},{"$f":"[1]Infrastructure!AD597","v":0},{"$f":"[1]Infrastructure!AE597","v":0},{"$f":"[1]Infrastructure!AF597","v":0},{"$f":"[1]Infrastructure!AG597","v":0},{"$f":"[1]Infrastructure!AH597","v":0},0]
[0,null,null,null,null,null,{"$f":"[1]Infrastructure!G598","v":0},{"$f":"[1]Infrastructure!H598","v":0},{"$f":"[1]Infrastructure!I598","v":0},{"$f":"[1]Infrastructure!J598","v":0},{"$f":"[1]Infrastructure!K598","v":0},{"$f":"[1]Infrastructure!L598","v":0},{"$f":"[1]Infrastructure!M598","v":0},{"$f":"[1]Infrastructure!N598","v":0},{"$f":"[1]Infrastructure!O598","v":0},{"$f":"[1]Infrastructure!Q598","v":0},{"$f":"[1]Infrastructure!R598","v":0},{"$f":"[1]Infrastructure!T598","v":0},{"$f":"[1]Infrastructure!W598","v":0},{"$f":"[1]Infrastructure!W598","v":0},0,{"$f":"[1]Infrastructure!Z598","v":0},{"$f":"[1]Infrastructure!Z598","v":0},0,{"$f":"[1]Infrastructure!AB598","v":0},{"$f":"[1]Infrastructure!AB598","v":0},0,{"$f":"[1]Infrastructure!AC598","v":0},{"$f":"[1]Infrastructure!AD598","v":0},{"$f":"[1]Infrastructure!AE598","v":0},{"$f":"[1]Infrastructure!AF598","v":0},{"$f":"[1]Infrastructure!AG598","v":0},{"$f":"[1]Infrastructure!AH598","v":0},0]
[0,null,null,null,null,null,{"$f":"[1]Infrastructure!G599","v":0},{"$f":"[1]Infrastructure!H599","v":0},{"$f":"[1]Infrastructure!I599","v":0},{"$f":"[1]Infrastructure!J599","v":0},{"$f":"[1]Infrastructure!K599","v":0},{"$f":"[1]Infrastructure!L599","v":0},{"$f":"[1]Infrastructure!M599","v":0},{"$f":"[1]Infrastructure!N599","v":0},{"$f":"[1]Infrastructure!O599","v":0},{"$f":"[1]Infrastructure!Q599","v":0},{"$f":"[1]Infrastructure!R599","v":0},{"$f":"[1]Infrastructure!T599","v":0},{"$f":"[1]Infrastructure!W599","v":0},{"$f":"[1]Infrastructure!W599","v":0},0,{"$f":"[1]Infrastructure!Z599","v":0},{"$f":"[1]Infrastructure!Z599","v":0},0,{"$f":"[1]Infrastructure!AB599","v":0},{"$f":"[1]Infrastructure!AB599","v":0},0,{"$f":"[1]Infrastructure!AC599","v":0},{"$f":"[1]Infrastructure!AD599","v":0},{"$f":"[1]Infrastructure!AE599","v":0},{"$f":"[1]Infrastructure!AF599","v":0},{"$f":"[1]Infrastructure!AG599","v":0},{"$f":"[1]Infrastructure!AH599","v":0},0]
[0,null,null,null,null,null,{"$f":"[1]Infrastructure!G600","v":0},{"$f":"[1]Infrastructure!H600","v":0},{"$f":"[1]Infrastructure!I600","v":0},{"$f":"[1]Infrastructure!J600","v":0},{"$f":"[1]Infrastructure!K600","v":0},{"$f":"[1]Infrastructure!L600","v":0},{"$f":"[1]Infrastructure!M600","v":0},{"$f":"[1]Infrastructure!N600","v":0},{"$f":"[1]Infrastructure!O600","v":0},{"$f":"[1]Infrastructure!Q600","v":0},{"$f":"[1]Infrastructure!R600","v":0},{"$f":"[1]Infrastructure!T600","v":0},{"$f":"[1]Infrastructure!W600","v":0},{"$f":"[1]Infrastructure!W600","v":0},0,{"$f":"[1]Infrastructure!Z600","v":0},{"$f":"[1]Infrastructure!Z600","v":0},0,{"$f":"[1]Infrastructure!AB600","v":0},{"$f":"[1]Infrastructure!AB600","v":0},0,{"$f":"[1]Infrastructure!AC600","v":0},{"$f":"[1]Infrastructure!AD600","v":0},{"$f":"[1]Infrastructure!AE600","v":0},{"$f":"[1]Infrastructure!AF600","v":0},{"$f":"[1]Infrastructure!AG600","v":0},{"$f":"[1]Infrastructure!AH600","v":0},0]
[0,null,null,null,null,null,{"$f":"[1]Infrastructure!G601","v":0},{"$f":"[1]Infrastructure!H601","v":0},{"$f":"[1]Infrastructure!I601","v":0},{"$f":"[1]Infrastructure!J601","v":0},{"$f":"[1]Infrastructure!K601","v":0},{"$f":"[1]Infrastructure!L601","v":0},{"$f":"[1]Infrastructure!M601","v":0},{"$f":"[1]Infrastructure!N601","v":0},{"$f":"[1]Infrastructure!O601","v":0},{"$f":"[1]Infrastructure!Q601","v":0},{"$f":"[1]Infrastructure!R601","v":0},{"$f":"[1]Infrastructure!T601","v":0},{"$f":"[1]Infrastructure!W601","v":0},{"$f":"[1]Infrastructure!W601","v":0},0,{"$f":"[1]Infrastructure!Z601","v":0},{"$f":"[1]Infrastructure!Z601","v":0},0,{"$f":"[1]Infrastructure!AB601","v":0},{"$f":"[1]Infrastructure!AB601","v":0},0,{"$f":"[1]Infrastructure!AC601","v":0},{"$f":"[1]Infrastructure!AD601","v":0},{"$f":"[1]Infrastructure!AE601","v":0},{"$f":"[1]Infrastructure!AF601","v":0},{"$f":"[1]Infrastructure!AG601","v":0},{"$f":"[1]Infrastructure!AH601","v":0},0]
[0,null,null,null,null,null,{"$f":"[1]Infrastructure!G602","v":0},{"$f":"[1]Infrastructure!H602","v":0},{"$f":"[1]Infrastructure!I602","v":0},{"$f":"[1]Infrastructure!J602","v":0},{"$f":"[1]Infrastructure!K602","v":0},{"$f":"[1]Infrastructure!L602","v":0},{"$f":"[1]Infrastructure!M602","v":0},{"$f":"[1]Infrastructure!N602","v":0},{"$f":"[1]Infrastructure!O602","v":0},{"$f":"[1]Infrastructure!Q602","v":0},{"$f":"[1]Infrastructure!R602","v":0},{"$f":"[1]Infrastructure!T602","v":0},{"$f":"[1]Infrastructure!W602","v":0},{"$f":"[1]Infrastructure!W602","v":0},0,{"$f":"[1]Infrastructure!Z602","v":0},{"$f":"[1]Infrastructure!Z602","v":0},0,{"$f":"[1]Infrastructure!AB602","v":0},{"$f":"[1]Infrastructure!AB602","v":0},0,{"$f":"[1]Infrastructure!AC602","v":0},{"$f":"[1]Infrastructure!AD602","v":0},{"$f":"[1]Infrastructure!AE602","v":0},{"$f":"[1]Infrastructure!AF602","v":0},{"$f":"[1]Infrastructure!AG602","v":0},{"$f":"[1]Infrastructure!AH602","v":0},0]
[0,null,null,null,null,null,{"$f":"[1]Infrastructure!G603","v":0},{"$f":"[1]Infrastructure!H603","v":0},{"$f":"[1]Infrastructure!I603","v":0},{"$f":"[1]Infrastructure!J603","v":0},{"$f":"[1]Infrastructure!K603","v":0},{"$f":"[1]Infrastructure!L603","v":0},{"$f":"[1]Infrastructure!M603","v":0},{"$f":"[1]Infrastructure!N603","v":0},{"$f":"[1]Infrastructure!O603","v":0},{"$f":"[1]Infrastructure!Q603","v":0},{"$f":"[1]Infrastructure!R603","v":0},{"$f":"[1]Infrastructure!T603","v":0},{"$f":"[1]Infrastructure!W603","v":0},{"$f":"[1]Infrastructure!W603","v":0},0,{"$f":"[1]Infrastructure!Z603","v":0},{"$f":"[1]Infrastructure!Z603","v":0},0,{"$f":"[1]Infrastructure!AB603","v":0},{"$f":"[1]Infrastructure!AB603","v":0},0,{"$f":"[1]Infrastructure!AC603","v":0},{"$f":"[1]Infrastructure!AD603","v":0},{"$f":"[1]Infrastructure!AE603","v":0},{"$f":"[1]Infrastructure!AF603","v":0},{"$f":"[1]Infrastructure!AG603","v":0},{"$f":"[1]Infrastructure!AH603","v":0},0]
[0,null,null,null,null,null,{"$f":"[1]Infrastructure!G604","v":0},{"$f":"[1]Infrastructure!H604","v":0},{"$f":"[1]Infrastructure!I604","v":0},{"$f":"[1]Infrastructure!J604","v":0},{"$f":"[1]Infrastructure!K604","v":0},{"$f":"[1]Infrastructure!L604","v":0},{"$f":"[1]Infrastructure!M604","v":0},{"$f":"[1]Infrastructure!N604","v":0},{"$f":"[1]Infrastructure!O604","v":0},{"$f":"[1]Infrastructure!Q604","v":0},{"$f":"[1]Infrastructure!R604","v":0},{"$f":"[1]Infrastructure!T604","v":0},{"$f":"[1]Infrastructure!W604","v":0},{"$f":"[1]Infrastructure!W604","v":0},0,{"$f":"[1]Infrastructure!Z604","v":0},{"$f":"[1]Infrastructure!Z604","v":0},0,{"$f":"[1]Infrastructure!AB604","v":0},{"$f":"[1]Infrastructure!AB604","v":0},0,{"$f":"[1]Infrastructure!AC604","v":0},{"$f":"[1]Infrastructure!AD604","v":0},{"$f":"[1]Infrastructure!AE604","v":0},{"$f":"[1]Infrastructure!AF604","v":0},{"$f":"[1]Infrastructure!AG604","v":0},{"$f":"[1]Infrastructure!AH604","v":0},0]
[0,null,null,null,null,null,{"$f":"[1]Infrastructure!G605","v":0},{"$f":"[1]Infrastructure!H605","v":0},{"$f":"[1]Infrastructure!I605","v":0},{"$f":"[1]Infrastructure!J605","v":0},{"$f":"[1]Infrastructure!K605","v":0},{"$f":"[1]Infrastructure!L605","v":0},{"$f":"[1]Infrastructure!M605","v":0},{"$f":"[1]Infrastructure!N605","v":0},{"$f":"[1]Infrastructure!O605","v":0},{"$f":"[1]Infrastructure!Q605","v":0},{"$f":"[1]Infrastructure!R605","v":0},{"$f":"[1]Infrastructure!T605","v":0},{"$f":"[1]Infrastructure!W605","v":0},{"$f":"[1]Infrastructure!W605","v":0},0,{"$f":"[1]Infrastructure!Z605","v":0},{"$f":"[1]Infrastructure!Z605","v":0},0,{"$f":"[1]Infrastructure!AB605","v":0},{"$f":"[1]Infrastructure!AB605","v":0},0,{"$f":"[1]Infrastructure!AC605","v":0},{"$f":"[1]Infrastructure!AD605","v":0},{"$f":"[1]Infrastructure!AE605","v":0},{"$f":"[1]Infrastructure!AF605","v":0},{"$f":"[1]Infrastructure!AG605","v":0},{"$f":"[1]Infrastructure!AH605","v":0},0]
[0,null,null,null,null,null,{"$f":"[1]Infrastructure!G606","v":0},{"$f":"[1]Infrastructure!H606","v":0},{"$f":"[1]Infrastructure!I606","v":0},{"$f":"[1]Infrastructure!J606","v":0},{"$f":"[1]Infrastructure!K606","v":0},{"$f":"[1]Infrastructure!L606","v":0},{"$f":"[1]Infrastructure!M606","v":0},{"$f":"[1]Infrastructure!N606","v":0},{"$f":"[1]Infrastructure!O606","v":0},{"$f":"[1]Infrastructure!Q606","v":0},{"$f":"[1]Infrastructure!R606","v":0},{"$f":"[1]Infrastructure!T606","v":0},{"$f":"[1]Infrastructure!W606","v":0},{"$f":"[1]Infrastructure!W606","v":0},0,{"$f":"[1]Infrastructure!Z606","v":0},{"$f":"[1]Infrastructure!Z606","v":0},0,{"$f":"[1]Infrastructure!AB606","v":0},{"$f":"[1]Infrastructure!AB606","v":0},0,{"$f":"[1]Infrastructure!AC606","v":0},{"$f":"[1]Infrastructure!AD606","v":0},{"$f":"[1]Infrastructure!AE606","v":0},{"$f":"[1]Infrastructure!AF606","v":0},{"$f":"[1]Infrastructure!AG606","v":0},{"$f":"[1]Infrastructure!AH606","v":0},0]
[0,null,null,null,null,null,{"$f":"[1]Infrastructure!G607","v":0},{"$f":"[1]Infrastructure!H607","v":0},{"$f":"[1]Infrastructure!I607","v":0},{"$f":"[1]Infrastructure!J607","v":0},{"$f":"[1]Infrastructure!K607","v":0},{"$f":"[1]Infrastructure!L607","v":0},{"$f":"[1]Infrastructure!M607","v":0},{"$f":"[1]Infrastructure!N607","v":0},{"$f":"[1]Infrastructure!O607","v":0},{"$f":"[1]Infrastructure!Q607","v":0},{"$f":"[1]Infrastructure!R607","v":0},{"$f":"[1]Infrastructure!T607","v":0},{"$f":"[1]Infrastructure!W607","v":0},{"$f":"[1]Infrastructure!W607","v":0},0,{"$f":"[1]Infrastructure!Z607","v":0},{"$f":"[1]Infrastructure!Z607","v":0},0,{"$f":"[1]Infrastructure!AB607","v":0},{"$f":"[1]Infrastructure!AB607","v":0},0,{"$f":"[1]Infrastructure!AC607","v":0},{"$f":"[1]Infrastructure!AD607","v":0},{"$f":"[1]Infrastructure!AE607","v":0},{"$f":"[1]Infrastructure!AF607","v":0},{"$f":"[1]Infrastructure!AG607","v":0},{"$f":"[1]Infrastructure!AH607","v":0},0]
[0,null,null,null,null,null,{"$f":"[1]Infrastructure!G608","v":0},{"$f":"[1]Infrastructure!H608","v":0},{"$f":"[1]Infrastructure!I608","v":0},{"$f":"[1]Infrastructure!J608","v":0},{"$f":"[1]Infrastructure!K608","v":0},{"$f":"[1]Infrastructure!L608","v":0},{"$f":"[1]Infrastructure!M608","v":0},{"$f":"[1]Infrastructure!N608","v":0},{"$f":"[1]Infrastructure!O608","v":0},{"$f":"[1]Infrastructure!Q608","v":0},{"$f":"[1]Infrastructure!R608","v":0},{"$f":"[1]Infrastructure!T608","v":0},{"$f":"[1]Infrastructure!W608","v":0},{"$f":"[1]Infrastructure!W608","v":0},0,{"$f":"[1]Infrastructure!Z608","v":0},{"$f":"[1]Infrastructure!Z608","v":0},0,{"$f":"[1]Infrastructure!AB608","v":0},{"$f":"[1]Infrastructure!AB608","v":0},0,{"$f":"[1]Infrastructure!AC608","v":0},{"$f":"[1]Infrastructure!AD608","v":0},{"$f":"[1]Infrastructure!AE608","v":0},{"$f":"[1]Infrastructure!AF608","v":0},{"$f":"[1]Infrastructure!AG608","v":0},{"$f":"[1]Infrastructure!AH608","v":0},0]
[0,null,null,null,null,null,{"$f":"[1]Infrastructure!G609","v":0},{"$f":"[1]Infrastructure!H609","v":0},{"$f":"[1]Infrastructure!I609","v":0},{"$f":"[1]Infrastructure!J609","v":0},{"$f":"[1]Infrastructure!K609","v":0},{"$f":"[1]Infrastructure!L609","v":0},{"$f":"[1]Infrastructure!M609","v":0},{"$f":"[1]Infrastructure!N609","v":0},{"$f":"[1]Infrastructure!O609","v":0},{"$f":"[1]Infrastructure!Q609","v":0},{"$f":"[1]Infrastructure!R609","v":0},{"$f":"[1]Infrastructure!T609","v":0},{"$f":"[1]Infrastructure!W609","v":0},{"$f":"[1]Infrastructure!W609","v":0},0,{"$f":"[1]Infrastructure!Z609","v":0},{"$f":"[1]Infrastructure!Z609","v":0},0,{"$f":"[1]Infrastructure!AB609","v":0},{"$f":"[1]Infrastructure!AB609","v":0},0,{"$f":"[1]Infrastructure!AC609","v":0},{"$f":"[1]Infrastructure!AD609","v":0},{"$f":"[1]Infrastructure!AE609","v":0},{"$f":"[1]Infrastructure!AF609","v":0},{"$f":"[1]Infrastructure!AG609","v":0},{"$f":"[1]Infrastructure!AH609","v":0},0]
[0,null,null,null,null,null,{"$f":"[1]Infrastructure!G610","v":0},{"$f":"[1]Infrastructure!H610","v":0},{"$f":"[1]Infrastructure!I610","v":0},{"$f":"[1]Infrastructure!J610","v":0},{"$f":"[1]Infrastructure!K610","v":0},{"$f":"[1]Infrastructure!L610","v":0},{"$f":"[1]Infrastructure!M610","v":0},{"$f":"[1]Infrastructure!N610","v":0},{"$f":"[1]Infrastructure!O610","v":0},{"$f":"[1]Infrastructure!Q610","v":0},{"$f":"[1]Infrastructure!R610","v":0},{"$f":"[1]Infrastructure!T610","v":0},{"$f":"[1]Infrastructure!W610","v":0},{"$f":"[1]Infrastructure!W610","v":0},0,{"$f":"[1]Infrastructure!Z610","v":0},{"$f":"[1]Infrastructure!Z610","v":0},0,{"$f":"[1]Infrastructure!AB610","v":0},{"$f":"[1]Infrastructure!AB610","v":0},0,{"$f":"[1]Infrastructure!AC610","v":0},{"$f":"[1]Infrastructure!AD610","v":0},{"$f":"[1]Infrastructure!AE610","v":0},{"$f":"[1]Infrastructure!AF610","v":0},{"$f":"[1]Infrastructure!AG610","v":0},{"$f":"[1]Infrastructure!AH610","v":0},0]
[0]
[{"$f":"IF(G612<>\"\",1,0)","v":1},null,null,null,null,2,"Large projects (cost between R90 and R400 million per year -Totalling at least R250 million but less than R1 billion over the MTEF)",null,null,null,null,null,null,null,{"$f":"SUM(O613:O1212)","v":0},{"$f":"SUM(P613:P1212)","v":0},0,0,0,0,0,{"$f":"SUM(V613:V1212)","v":0},{"$f":"SUM(W613:W1212)","v":0},0,{"$f":"SUM(Y613:Y1212)","v":0},{"$f":"SUM(Z613:Z1212)","v":0},0,{"$f":"SUM(AB613:AB1212)","v":0},0,0,0,0,0,0]
[0,null,null,null,null,null,{"$f":"[1]Infrastructure!G613","v":0},{"$f":"[1]Infrastructure!H613","v":0},{"$f":"[1]Infrastructure!I613","v":0},{"$f":"[1]Infrastructure!J613","v":0},{"$f":"[1]Infrastructure!K613","v":0},{"$f":"[1]Infrastructure!L613","v":0},{"$f":"[1]Infrastructure!M613","v":0},{"$f":"[1]Infrastructure!N613","v":0},{"$f":"[1]Infrastructure!O613","v":0},{"$f":"[1]Infrastructure!Q613","v":0},{"$f":"[1]Infrastructure!R613","v":0},{"$f":"[1]Infrastructure!T613","v":0},{"$f":"[1]Infrastructure!W613","v":0},{"$f":"[1]Infrastructure!W613","v":0},0,{"$f":"[1]Infrastructure!Z613","v":0},{"$f":"[1]Infrastructure!Z613","v":0},0,{"$f":"[1]Infrastructure!AB613","v":0},{"$f":"[1]Infrastructure!AB613","v":0},0,{"$f":"[1]Infrastructure!AC613","v":0},{"$f":"[1]Infrastructure!AD613","v":0},{"$f":"[1]Infrastructure!AE613","v":0},{"$f":"[1]Infrastructure!AF613","v":0},{"$f":"[1]Infrastructure!AG613","v":0},{"$f":"[1]Infrastructure!AH613","v":0},0]
[0,null,null,null,null,null,{"$f":"[1]Infrastructure!G614","v":0},{"$f":"[1]Infrastructure!H614","v":0},{"$f":"[1]Infrastructure!I614","v":0},{"$f":"[1]Infrastructure!J614","v":0},{"$f":"[1]Infrastructure!K614","v":0},{"$f":"[1]Infrastructure!L614","v":0},{"$f":"[1]Infrastructure!M614","v":0},{"$f":"[1]Infrastructure!N614","v":0},{"$f":"[1]Infrastructure!O614","v":0},{"$f":"[1]Infrastructure!Q614","v":0},{"$f":"[1]Infrastructure!R614","v":0},{"$f":"[1]Infrastructure!T614","v":0},{"$f":"[1]Infrastructure!W614","v":0},{"$f":"[1]Infrastructure!W614","v":0},0,{"$f":"[1]Infrastructure!Z614","v":0},{"$f":"[1]Infrastructure!Z614","v":0},0,{"$f":"[1]Infrastructure!AB614","v":0},{"$f":"[1]Infrastructure!AB614","v":0},0,{"$f":"[1]Infrastructure!AC614","v":0},{"$f":"[1]Infrastructure!AD614","v":0},{"$f":"[1]Infrastructure!AE614","v":0},{"$f":"[1]Infrastructure!AF614","v":0},{"$f":"[1]Infrastructure!AG614","v":0},{"$f":"[1]Infrastructure!AH614","v":0},0]
[0,null,null,null,null,null,{"$f":"[1]Infrastructure!G615","v":0},{"$f":"[1]Infrastructure!H615","v":0},{"$f":"[1]Infrastructure!I615","v":0},{"$f":"[1]Infrastructure!J615","v":0},{"$f":"[1]Infrastructure!K615","v":0},{"$f":"[1]Infrastructure!L615","v":0},{"$f":"[1]Infrastructure!M615","v":0},{"$f":"[1]Infrastructure!N615","v":0},{"$f":"[1]Infrastructure!O615","v":0},{"$f":"[1]Infrastructure!Q615","v":0},{"$f":"[1]Infrastructure!R615","v":0},{"$f":"[1]Infrastructure!T615","v":0},{"$f":"[1]Infrastructure!W615","v":0},{"$f":"[1]Infrastructure!W615","v":0},0,{"$f":"[1]Infrastructure!Z615","v":0},{"$f":"[1]Infrastructure!Z615","v":0},0,{"$f":"[1]Infrastructure!AB615","v":0},{"$f":"[1]Infrastructure!AB615","v":0},0,{"$f":"[1]Infrastructure!AC615","v":0},{"$f":"[1]Infrastructure!AD615","v":0},{"$f":"[1]Infrastructure!AE615","v":0},{"$f":"[1]Infrastructure!AF615","v":0},{"$f":"[1]Infrastructure!AG615","v":0},{"$f":"[1]Infrastructure!AH615","v":0},0]
[0,null,null,null,null,null,{"$f":"[1]Infrastructure!G616","v":0},{"$f":"[1]Infrastructure!H616","v":0},{"$f":"[1]Infrastructure!I616","v":0},{"$f":"[1]Infrastructure!J616","v":0},{"$f":"[1]Infrastructure!K616","v":0},{"$f":"[1]Infrastructure!L616","v":0},{"$f":"[1]Infrastructure!M616","v":0},{"$f":"[1]Infrastructure!N616","v":0},{"$f":"[1]Infrastructure!O616","v":0},{"$f":"[1]Infrastructure!Q616","v":0},{"$f":"[1]Infrastructure!R616","v":0},{"$f":"[1]Infrastructure!T616","v":0},{"$f":"[1]Infrastructure!W616","v":0},{"$f":"[1]Infrastructure!W616","v":0},0,{"$f":"[1]Infrastructure!Z616","v":0},{"$f":"[1]Infrastructure!Z616","v":0},0,{"$f":"[1]Infrastructure!AB616","v":0},{"$f":"[1]Infrastructure!AB616","v":0},0,{"$f":"[1]Infrastructure!AC616","v":0},{"$f":"[1]Infrastructure!AD616","v":0},{"$f":"[1]Infrastructure!AE616","v":0},{"$f":"[1]Infrastructure!AF616","v":0},{"$f":"[1]Infrastructure!AG616","v":0},{"$f":"[1]Infrastructure!AH616","v":0},0]
[0,null,null,null,null,null,{"$f":"[1]Infrastructure!G617","v":0},{"$f":"[1]Infrastructure!H617","v":0},{"$f":"[1]Infrastructure!I617","v":0},{"$f":"[1]Infrastructure!J617","v":0},{"$f":"[1]Infrastructure!K617","v":0},{"$f":"[1]Infrastructure!L617","v":0},{"$f":"[1]Infrastructure!M617","v":0},{"$f":"[1]Infrastructure!N617","v":0},{"$f":"[1]Infrastructure!O617","v":0},{"$f":"[1]Infrastructure!Q617","v":0},{"$f":"[1]Infrastructure!R617","v":0},{"$f":"[1]Infrastructure!T617","v":0},{"$f":"[1]Infrastructure!W617","v":0},{"$f":"[1]Infrastructure!W617","v":0},0,{"$f":"[1]Infrastructure!Z617","v":0},{"$f":"[1]Infrastructure!Z617","v":0},0,{"$f":"[1]Infrastructure!AB617","v":0},{"$f":"[1]Infrastructure!AB617","v":0},0,{"$f":"[1]Infrastructure!AC617","v":0},{"$f":"[1]Infrastructure!AD617","v":0},{"$f":"[1]Infrastructure!AE617","v":0},{"$f":"[1]Infrastructure!AF617","v":0},{"$f":"[1]Infrastructure!AG617","v":0},{"$f":"[1]Infrastructure!AH617","v":0},0]
[0,null,null,null,null,null,{"$f":"[1]Infrastructure!G618","v":0},{"$f":"[1]Infrastructure!H618","v":0},{"$f":"[1]Infrastructure!I618","v":0},{"$f":"[1]Infrastructure!J618","v":0},{"$f":"[1]Infrastructure!K618","v":0},{"$f":"[1]Infrastructure!L618","v":0},{"$f":"[1]Infrastructure!M618","v":0},{"$f":"[1]Infrastructure!N618","v":0},{"$f":"[1]Infrastructure!O618","v":0},{"$f":"[1]Infrastructure!Q618","v":0},{"$f":"[1]Infrastructure!R618","v":0},{"$f":"[1]Infrastructure!T618","v":0},{"$f":"[1]Infrastructure!W618","v":0},{"$f":"[1]Infrastructure!W618","v":0},0,{"$f":"[1]Infrastructure!Z618","v":0},{"$f":"[1]Infrastructure!Z618","v":0},0,{"$f":"[1]Infrastructure!AB618","v":0},{"$f":"[1]Infrastructure!AB618","v":0},0,{"$f":"[1]Infrastructure!AC618","v":0},{"$f":"[1]Infrastructure!AD618","v":0},{"$f":"[1]Infrastructure!AE618","v":0},{"$f":"[1]Infrastructure!AF618","v":0},{"$f":"[1]Infrastructure!AG618","v":0},{"$f":"[1]Infrastructure!AH618","v":0},0]
[0,null,null,null,null,null,{"$f":"[1]Infrastructure!G619","v":0},{"$f":"[1]Infrastructure!H619","v":0},{"$f":"[1]Infrastructure!I619","v":0},{"$f":"[1]Infrastructure!J619","v":0},{"$f":"[1]Infrastructure!K619","v":0},{"$f":"[1]Infrastructure!L619","v":0},{"$f":"[1]Infrastructure!M619","v":0},{"$f":"[1]Infrastructure!N619","v":0},{"$f":"[1]Infrastructure!O619","v":0},{"$f":"[1]Infrastructure!Q619","v":0},{"$f":"[1]Infrastructure!R619","v":0},{"$f":"[1]Infrastructure!T619","v":0},{"$f":"[1]Infrastructure!W619","v":0},{"$f":"[1]Infrastructure!W619","v":0},0,{"$f":"[1]Infrastructure!Z619","v":0},{"$f":"[1]Infrastructure!Z619","v":0},0,{"$f":"[1]Infrastructure!AB619","v":0},{"$f":"[1]Infrastructure!AB619","v":0},0,{"$f":"[1]Infrastructure!AC619","v":0},{"$f":"[1]Infrastructure!AD619","v":0},{"$f":"[1]Infrastructure!AE619","v":0},{"$f":"[1]Infrastructure!AF619","v":0},{"$f":"[1]Infrastructure!AG619","v":0},{"$f":"[1]Infrastructure!AH619","v":0},0]
[0,null,null,null,null,null,{"$f":"[1]Infrastructure!G620","v":0},{"$f":"[1]Infrastructure!H620","v":0},{"$f":"[1]Infrastructure!I620","v":0},{"$f":"[1]Infrastructure!J620","v":0},{"$f":"[1]Infrastructure!K620","v":0},{"$f":"[1]Infrastructure!L620","v":0},{"$f":"[1]Infrastructure!M620","v":0},{"$f":"[1]Infrastructure!N620","v":0},{"$f":"[1]Infrastructure!O620","v":0},{"$f":"[1]Infrastructure!Q620","v":0},{"$f":"[1]Infrastructure!R620","v":0},{"$f":"[1]Infrastructure!T620","v":0},{"$f":"[1]Infrastructure!W620","v":0},{"$f":"[1]Infrastructure!W620","v":0},0,{"$f":"[1]Infrastructure!Z620","v":0},{"$f":"[1]Infrastructure!Z620","v":0},0,{"$f":"[1]Infrastructure!AB620","v":0},{"$f":"[1]Infrastructure!AB620","v":0},0,{"$f":"[1]Infrastructure!AC620","v":0},{"$f":"[1]Infrastructure!AD620","v":0},{"$f":"[1]Infrastructure!AE620","v":0},{"$f":"[1]Infrastructure!AF620","v":0},{"$f":"[1]Infrastructure!AG620","v":0},{"$f":"[1]Infrastructure!AH620","v":0},0]
[0,null,null,null,null,null,{"$f":"[1]Infrastructure!G621","v":0},{"$f":"[1]Infrastructure!H621","v":0},{"$f":"[1]Infrastructure!I621","v":0},{"$f":"[1]Infrastructure!J621","v":0},{"$f":"[1]Infrastructure!K621","v":0},{"$f":"[1]Infrastructure!L621","v":0},{"$f":"[1]Infrastructure!M621","v":0},{"$f":"[1]Infrastructure!N621","v":0},{"$f":"[1]Infrastructure!O621","v":0},{"$f":"[1]Infrastructure!Q621","v":0},{"$f":"[1]Infrastructure!R621","v":0},{"$f":"[1]Infrastructure!T621","v":0},{"$f":"[1]Infrastructure!W621","v":0},{"$f":"[1]Infrastructure!W621","v":0},0,{"$f":"[1]Infrastructure!Z621","v":0},{"$f":"[1]Infrastructure!Z621","v":0},0,{"$f":"[1]Infrastructure!AB621","v":0},{"$f":"[1]Infrastructure!AB621","v":0},0,{"$f":"[1]Infrastructure!AC621","v":0},{"$f":"[1]Infrastructure!AD621","v":0},{"$f":"[1]Infrastructure!AE621","v":0},{"$f":"[1]Infrastructure!AF621","v":0},{"$f":"[1]Infrastructure!AG621","v":0},{"$f":"[1]Infrastructure!AH621","v":0},0]
[0,null,null,null,null,null,{"$f":"[1]Infrastructure!G622","v":0},{"$f":"[1]Infrastructure!H622","v":0},{"$f":"[1]Infrastructure!I622","v":0},{"$f":"[1]Infrastructure!J622","v":0},{"$f":"[1]Infrastructure!K622","v":0},{"$f":"[1]Infrastructure!L622","v":0},{"$f":"[1]Infrastructure!M622","v":0},{"$f":"[1]Infrastructure!N622","v":0},{"$f":"[1]Infrastructure!O622","v":0},{"$f":"[1]Infrastructure!Q622","v":0},{"$f":"[1]Infrastructure!R622","v":0},{"$f":"[1]Infrastructure!T622","v":0},{"$f":"[1]Infrastructure!W622","v":0},{"$f":"[1]Infrastructure!W622","v":0},0,{"$f":"[1]Infrastructure!Z622","v":0},{"$f":"[1]Infrastructure!Z622","v":0},0,{"$f":"[1]Infrastructure!AB622","v":0},{"$f":"[1]Infrastructure!AB622","v":0},0,{"$f":"[1]Infrastructure!AC622","v":0},{"$f":"[1]Infrastructure!AD622","v":0},{"$f":"[1]Infrastructure!AE622","v":0},{"$f":"[1]Infrastructure!AF622","v":0},{"$f":"[1]Infrastructure!AG622","v":0},{"$f":"[1]Infrastructure!AH622","v":0},0]
[0,null,null,null,null,null,{"$f":"[1]Infrastructure!G623","v":0},{"$f":"[1]Infrastructure!H623","v":0},{"$f":"[1]Infrastructure!I623","v":0},{"$f":"[1]Infrastructure!J623","v":0},{"$f":"[1]Infrastructure!K623","v":0},{"$f":"[1]Infrastructure!L623","v":0},{"$f":"[1]Infrastructure!M623","v":0},{"$f":"[1]Infrastructure!N623","v":0},{"$f":"[1]Infrastructure!O623","v":0},{"$f":"[1]Infrastructure!Q623","v":0},{"$f":"[1]Infrastructure!R623","v":0},{"$f":"[1]Infrastructure!T623","v":0},{"$f":"[1]Infrastructure!W623","v":0},{"$f":"[1]Infrastructure!W623","v":0},0,{"$f":"[1]Infrastructure!Z623","v":0},{"$f":"[1]Infrastructure!Z623","v":0},0,{"$f":"[1]Infrastructure!AB623","v":0},{"$f":"[1]Infrastructure!AB623","v":0},0,{"$f":"[1]Infrastructure!AC623","v":0},{"$f":"[1]Infrastructure!AD623","v":0},{"$f":"[1]Infrastructure!AE623","v":0},{"$f":"[1]Infrastructure!AF623","v":0},{"$f":"[1]Infrastructure!AG623","v":0},{"$f":"[1]Infrastructure!AH623","v":0},0]
[0,null,null,null,null,null,{"$f":"[1]Infrastructure!G624","v":0},{"$f":"[1]Infrastructure!H624","v":0},{"$f":"[1]Infrastructure!I624","v":0},{"$f":"[1]Infrastructure!J624","v":0},{"$f":"[1]Infrastructure!K624","v":0},{"$f":"[1]Infrastructure!L624","v":0},{"$f":"[1]Infrastructure!M624","v":0},{"$f":"[1]Infrastructure!N624","v":0},{"$f":"[1]Infrastructure!O624","v":0},{"$f":"[1]Infrastructure!Q624","v":0},{"$f":"[1]Infrastructure!R624","v":0},{"$f":"[1]Infrastructure!T624","v":0},{"$f":"[1]Infrastructure!W624","v":0},{"$f":"[1]Infrastructure!W624","v":0},0,{"$f":"[1]Infrastructure!Z624","v":0},{"$f":"[1]Infrastructure!Z624","v":0},0,{"$f":"[1]Infrastructure!AB624","v":0},{"$f":"[1]Infrastructure!AB624","v":0},0,{"$f":"[1]Infrastructure!AC624","v":0},{"$f":"[1]Infrastructure!AD624","v":0},{"$f":"[1]Infrastructure!AE624","v":0},{"$f":"[1]Infrastructure!AF624","v":0},{"$f":"[1]Infrastructure!AG624","v":0},{"$f":"[1]Infrastructure!AH624","v":0},0]
[0,null,null,null,null,null,{"$f":"[1]Infrastructure!G625","v":0},{"$f":"[1]Infrastructure!H625","v":0},{"$f":"[1]Infrastructure!I625","v":0},{"$f":"[1]Infrastructure!J625","v":0},{"$f":"[1]Infrastructure!K625","v":0},{"$f":"[1]Infrastructure!L625","v":0},{"$f":"[1]Infrastructure!M625","v":0},{"$f":"[1]Infrastructure!N625","v":0},{"$f":"[1]Infrastructure!O625","v":0},{"$f":"[1]Infrastructure!Q625","v":0},{"$f":"[1]Infrastructure!R625","v":0},{"$f":"[1]Infrastructure!T625","v":0},{"$f":"[1]Infrastructure!W625","v":0},{"$f":"[1]Infrastructure!W625","v":0},0,{"$f":"[1]Infrastructure!Z625","v":0},{"$f":"[1]Infrastructure!Z625","v":0},0,{"$f":"[1]Infrastructure!AB625","v":0},{"$f":"[1]Infrastructure!AB625","v":0},0,{"$f":"[1]Infrastructure!AC625","v":0},{"$f":"[1]Infrastructure!AD625","v":0},{"$f":"[1]Infrastructure!AE625","v":0},{"$f":"[1]Infrastructure!AF625","v":0},{"$f":"[1]Infrastructure!AG625","v":0},{"$f":"[1]Infrastructure!AH625","v":0},0]
[0,null,null,null,null,null,{"$f":"[1]Infrastructure!G626","v":0},{"$f":"[1]Infrastructure!H626","v":0},{"$f":"[1]Infrastructure!I626","v":0},{"$f":"[1]Infrastructure!J626","v":0},{"$f":"[1]Infrastructure!K626","v":0},{"$f":"[1]Infrastructure!L626","v":0},{"$f":"[1]Infrastructure!M626","v":0},{"$f":"[1]Infrastructure!N626","v":0},{"$f":"[1]Infrastructure!O626","v":0},{"$f":"[1]Infrastructure!Q626","v":0},{"$f":"[1]Infrastructure!R626","v":0},{"$f":"[1]Infrastructure!T626","v":0},{"$f":"[1]Infrastructure!W626","v":0},{"$f":"[1]Infrastructure!W626","v":0},0,{"$f":"[1]Infrastructure!Z626","v":0},{"$f":"[1]Infrastructure!Z626","v":0},0,{"$f":"[1]Infrastructure!AB626","v":0},{"$f":"[1]Infrastructure!AB626","v":0},0,{"$f":"[1]Infrastructure!AC626","v":0},{"$f":"[1]Infrastructure!AD626","v":0},{"$f":"[1]Infrastructure!AE626","v":0},{"$f":"[1]Infrastructure!AF626","v":0},{"$f":"[1]Infrastructure!AG626","v":0},{"$f":"[1]Infrastructure!AH626","v":0},0]
[0,null,null,null,null,null,{"$f":"[1]Infrastructure!G627","v":0},{"$f":"[1]Infrastructure!H627","v":0},{"$f":"[1]Infrastructure!I627","v":0},{"$f":"[1]Infrastructure!J627","v":0},{"$f":"[1]Infrastructure!K627","v":0},{"$f":"[1]Infrastructure!L627","v":0},{"$f":"[1]Infrastructure!M627","v":0},{"$f":"[1]Infrastructure!N627","v":0},{"$f":"[1]Infrastructure!O627","v":0},{"$f":"[1]Infrastructure!Q627","v":0},{"$f":"[1]Infrastructure!R627","v":0},{"$f":"[1]Infrastructure!T627","v":0},{"$f":"[1]Infrastructure!W627","v":0},{"$f":"[1]Infrastructure!W627","v":0},0,{"$f":"[1]Infrastructure!Z627","v":0},{"$f":"[1]Infrastructure!Z627","v":0},0,{"$f":"[1]Infrastructure!AB627","v":0},{"$f":"[1]Infrastructure!AB627","v":0},0,{"$f":"[1]Infrastructure!AC627","v":0},{"$f":"[1]Infrastructure!AD627","v":0},{"$f":"[1]Infrastructure!AE627","v":0},{"$f":"[1]Infrastructure!AF627","v":0},{"$f":"[1]Infrastructure!AG627","v":0},{"$f":"[1]Infrastructure!AH627","v":0},0]
[0,null,null,null,null,null,{"$f":"[1]Infrastructure!G628","v":0},{"$f":"[1]Infrastructure!H628","v":0},{"$f":"[1]Infrastructure!I628","v":0},{"$f":"[1]Infrastructure!J628","v":0},{"$f":"[1]Infrastructure!K628","v":0},{"$f":"[1]Infrastructure!L628","v":0},{"$f":"[1]Infrastructure!M628","v":0},{"$f":"[1]Infrastructure!N628","v":0},{"$f":"[1]Infrastructure!O628","v":0},{"$f":"[1]Infrastructure!Q628","v":0},{"$f":"[1]Infrastructure!R628","v":0},{"$f":"[1]Infrastructure!T628","v":0},{"$f":"[1]Infrastructure!W628","v":0},{"$f":"[1]Infrastructure!W628","v":0},0,{"$f":"[1]Infrastructure!Z628","v":0},{"$f":"[1]Infrastructure!Z628","v":0},0,{"$f":"[1]Infrastructure!AB628","v":0},{"$f":"[1]Infrastructure!AB628","v":0},0,{"$f":"[1]Infrastructure!AC628","v":0},{"$f":"[1]Infrastructure!AD628","v":0},{"$f":"[1]Infrastructure!AE628","v":0},{"$f":"[1]Infrastructure!AF628","v":0},{"$f":"[1]Infrastructure!AG628","v":0},{"$f":"[1]Infrastructure!AH628","v":0},0]
[0,null,null,null,null,null,{"$f":"[1]Infrastructure!G629","v":0},{"$f":"[1]Infrastructure!H629","v":0},{"$f":"[1]Infrastructure!I629","v":0},{"$f":"[1]Infrastructure!J629","v":0},{"$f":"[1]Infrastructure!K629","v":0},{"$f":"[1]Infrastructure!L629","v":0},{"$f":"[1]Infrastructure!M629","v":0},{"$f":"[1]Infrastructure!N629","v":0},{"$f":"[1]Infrastructure!O629","v":0},{"$f":"[1]Infrastructure!Q629","v":0},{"$f":"[1]Infrastructure!R629","v":0},{"$f":"[1]Infrastructure!T629","v":0},{"$f":"[1]Infrastructure!W629","v":0},{"$f":"[1]Infrastructure!W629","v":0},0,{"$f":"[1]Infrastructure!Z629","v":0},{"$f":"[1]Infrastructure!Z629","v":0},0,{"$f":"[1]Infrastructure!AB629","v":0},{"$f":"[1]Infrastructure!AB629","v":0},0,{"$f":"[1]Infrastructure!AC629","v":0},{"$f":"[1]Infrastructure!AD629","v":0},{"$f":"[1]Infrastructure!AE629","v":0},{"$f":"[1]Infrastructure!AF629","v":0},{"$f":"[1]Infrastructure!AG629","v":0},{"$f":"[1]Infrastructure!AH629","v":0},0]
[0,null,null,null,null,null,{"$f":"[1]Infrastructure!G630","v":0},{"$f":"[1]Infrastructure!H630","v":0},{"$f":"[1]Infrastructure!I630","v":0},{"$f":"[1]Infrastructure!J630","v":0},{"$f":"[1]Infrastructure!K630","v":0},{"$f":"[1]Infrastructure!L630","v":0},{"$f":"[1]Infrastructure!M630","v":0},{"$f":"[1]Infrastructure!N630","v":0},{"$f":"[1]Infrastructure!O630","v":0},{"$f":"[1]Infrastructure!Q630","v":0},{"$f":"[1]Infrastructure!R630","v":0},{"$f":"[1]Infrastructure!T630","v":0},{"$f":"[1]Infrastructure!W630","v":0},{"$f":"[1]Infrastructure!W630","v":0},0,{"$f":"[1]Infrastructure!Z630","v":0},{"$f":"[1]Infrastructure!Z630","v":0},0,{"$f":"[1]Infrastructure!AB630","v":0},{"$f":"[1]Infrastructure!AB630","v":0},0,{"$f":"[1]Infrastructure!AC630","v":0},{"$f":"[1]Infrastructure!AD630","v":0},{"$f":"[1]Infrastructure!AE630","v":0},{"$f":"[1]Infrastructure!AF630","v":0},{"$f":"[1]Infrastructure!AG630","v":0},{"$f":"[1]Infrastructure!AH630","v":0},0]
[0,null,null,null,null,null,{"$f":"[1]Infrastructure!G631","v":0},{"$f":"[1]Infrastructure!H631","v":0},{"$f":"[1]Infrastructure!I631","v":0},{"$f":"[1]Infrastructure!J631","v":0},{"$f":"[1]Infrastructure!K631","v":0},{"$f":"[1]Infrastructure!L631","v":0},{"$f":"[1]Infrastructure!M631","v":0},{"$f":"[1]Infrastructure!N631","v":0},{"$f":"[1]Infrastructure!O631","v":0},{"$f":"[1]Infrastructure!Q631","v":0},{"$f":"[1]Infrastructure!R631","v":0},{"$f":"[1]Infrastructure!T631","v":0},{"$f":"[1]Infrastructure!W631","v":0},{"$f":"[1]Infrastructure!W631","v":0},0,{"$f":"[1]Infrastructure!Z631","v":0},{"$f":"[1]Infrastructure!Z631","v":0},0,{"$f":"[1]Infrastructure!AB631","v":0},{"$f":"[1]Infrastructure!AB631","v":0},0,{"$f":"[1]Infrastructure!AC631","v":0},{"$f":"[1]Infrastructure!AD631","v":0},{"$f":"[1]Infrastructure!AE631","v":0},{"$f":"[1]Infrastructure!AF631","v":0},{"$f":"[1]Infrastructure!AG631","v":0},{"$f":"[1]Infrastructure!AH631","v":0},0]
[0,null,null,null,null,null,{"$f":"[1]Infrastructure!G632","v":0},{"$f":"[1]Infrastructure!H632","v":0},{"$f":"[1]Infrastructure!I632","v":0},{"$f":"[1]Infrastructure!J632","v":0},{"$f":"[1]Infrastructure!K632","v":0},{"$f":"[1]Infrastructure!L632","v":0},{"$f":"[1]Infrastructure!M632","v":0},{"$f":"[1]Infrastructure!N632","v":0},{"$f":"[1]Infrastructure!O632","v":0},{"$f":"[1]Infrastructure!Q632","v":0},{"$f":"[1]Infrastructure!R632","v":0},{"$f":"[1]Infrastructure!T632","v":0},{"$f":"[1]Infrastructure!W632","v":0},{"$f":"[1]Infrastructure!W632","v":0},0,{"$f":"[1]Infrastructure!Z632","v":0},{"$f":"[1]Infrastructure!Z632","v":0},0,{"$f":"[1]Infrastructure!AB632","v":0},{"$f":"[1]Infrastructure!AB632","v":0},0,{"$f":"[1]Infrastructure!AC632","v":0},{"$f":"[1]Infrastructure!AD632","v":0},{"$f":"[1]Infrastructure!AE632","v":0},{"$f":"[1]Infrastructure!AF632","v":0},{"$f":"[1]Infrastructure!AG632","v":0},{"$f":"[1]Infrastructure!AH632","v":0},0]
[0,null,null,null,null,null,{"$f":"[1]Infrastructure!G633","v":0},{"$f":"[1]Infrastructure!H633","v":0},{"$f":"[1]Infrastructure!I633","v":0},{"$f":"[1]Infrastructure!J633","v":0},{"$f":"[1]Infrastructure!K633","v":0},{"$f":"[1]Infrastructure!L633","v":0},{"$f":"[1]Infrastructure!M633","v":0},{"$f":"[1]Infrastructure!N633","v":0},{"$f":"[1]Infrastructure!O633","v":0},{"$f":"[1]Infrastructure!Q633","v":0},{"$f":"[1]Infrastructure!R633","v":0},{"$f":"[1]Infrastructure!T633","v":0},{"$f":"[1]Infrastructure!W633","v":0},{"$f":"[1]Infrastructure!W633","v":0},0,{"$f":"[1]Infrastructure!Z633","v":0},{"$f":"[1]Infrastructure!Z633","v":0},0,{"$f":"[1]Infrastructure!AB633","v":0},{"$f":"[1]Infrastructure!AB633","v":0},0,{"$f":"[1]Infrastructure!AC633","v":0},{"$f":"[1]Infrastructure!AD633","v":0},{"$f":"[1]Infrastructure!AE633","v":0},{"$f":"[1]Infrastructure!AF633","v":0},{"$f":"[1]Infrastructure!AG633","v":0},{"$f":"[1]Infrastructure!AH633","v":0},0]
[0,null,null,null,null,null,{"$f":"[1]Infrastructure!G634","v":0},{"$f":"[1]Infrastructure!H634","v":0},{"$f":"[1]Infrastructure!I634","v":0},{"$f":"[1]Infrastructure!J634","v":0},{"$f":"[1]Infrastructure!K634","v":0},{"$f":"[1]Infrastructure!L634","v":0},{"$f":"[1]Infrastructure!M634","v":0},{"$f":"[1]Infrastructure!N634","v":0},{"$f":"[1]Infrastructure!O634","v":0},{"$f":"[1]Infrastructure!Q634","v":0},{"$f":"[1]Infrastructure!R634","v":0},{"$f":"[1]Infrastructure!T634","v":0},{"$f":"[1]Infrastructure!W634","v":0},{"$f":"[1]Infrastructure!W634","v":0},0,{"$f":"[1]Infrastructure!Z634","v":0},{"$f":"[1]Infrastructure!Z634","v":0},0,{"$f":"[1]Infrastructure!AB634","v":0},{"$f":"[1]Infrastructure!AB634","v":0},0,{"$f":"[1]Infrastructure!AC634","v":0},{"$f":"[1]Infrastructure!AD634","v":0},{"$f":"[1]Infrastructure!AE634","v":0},{"$f":"[1]Infrastructure!AF634","v":0},{"$f":"[1]Infrastructure!AG634","v":0},{"$f":"[1]Infrastructure!AH634","v":0},0]
[0,null,null,null,null,null,{"$f":"[1]Infrastructure!G635","v":0},{"$f":"[1]Infrastructure!H635","v":0},{"$f":"[1]Infrastructure!I635","v":0},{"$f":"[1]Infrastructure!J635","v":0},{"$f":"[1]Infrastructure!K635","v":0},{"$f":"[1]Infrastructure!L635","v":0},{"$f":"[1]Infrastructure!M635","v":0},{"$f":"[1]Infrastructure!N635","v":0},{"$f":"[1]Infrastructure!O635","v":0},{"$f":"[1]Infrastructure!Q635","v":0},{"$f":"[1]Infrastructure!R635","v":0},{"$f":"[1]Infrastructure!T635","v":0},{"$f":"[1]Infrastructure!W635","v":0},{"$f":"[1]Infrastructure!W635","v":0},0,{"$f":"[1]Infrastructure!Z635","v":0},{"$f":"[1]Infrastructure!Z635","v":0},0,{"$f":"[1]Infrastructure!AB635","v":0},{"$f":"[1]Infrastructure!AB635","v":0},0,{"$f":"[1]Infrastructure!AC635","v":0},{"$f":"[1]Infrastructure!AD635","v":0},{"$f":"[1]Infrastructure!AE635","v":0},{"$f":"[1]Infrastructure!AF635","v":0},{"$f":"[1]Infrastructure!AG635","v":0},{"$f":"[1]Infrastructure!AH635","v":0},0]
[0,null,null,null,null,null,{"$f":"[1]Infrastructure!G636","v":0},{"$f":"[1]Infrastructure!H636","v":0},{"$f":"[1]Infrastructure!I636","v":0},{"$f":"[1]Infrastructure!J636","v":0},{"$f":"[1]Infrastructure!K636","v":0},{"$f":"[1]Infrastructure!L636","v":0},{"$f":"[1]Infrastructure!M636","v":0},{"$f":"[1]Infrastructure!N636","v":0},{"$f":"[1]Infrastructure!O636","v":0},{"$f":"[1]Infrastructure!Q636","v":0},{"$f":"[1]Infrastructure!R636","v":0},{"$f":"[1]Infrastructure!T636","v":0},{"$f":"[1]Infrastructure!W636","v":0},{"$f":"[1]Infrastructure!W636","v":0},0,{"$f":"[1]Infrastructure!Z636","v":0},{"$f":"[1]Infrastructure!Z636","v":0},0,{"$f":"[1]Infrastructure!AB636","v":0},{"$f":"[1]Infrastructure!AB636","v":0},0,{"$f":"[1]Infrastructure!AC636","v":0},{"$f":"[1]Infrastructure!AD636","v":0},{"$f":"[1]Infrastructure!AE636","v":0},{"$f":"[1]Infrastructure!AF636","v":0},{"$f":"[1]Infrastructure!AG636","v":0},{"$f":"[1]Infrastructure!AH636","v":0},0]
[0,null,null,null,null,null,{"$f":"[1]Infrastructure!G637","v":0},{"$f":"[1]Infrastructure!H637","v":0},{"$f":"[1]Infrastructure!I637","v":0},{"$f":"[1]Infrastructure!J637","v":0},{"$f":"[1]Infrastructure!K637","v":0},{"$f":"[1]Infrastructure!L637","v":0},{"$f":"[1]Infrastructure!M637","v":0},{"$f":"[1]Infrastructure!N637","v":0},{"$f":"[1]Infrastructure!O637","v":0},{"$f":"[1]Infrastructure!Q637","v":0},{"$f":"[1]Infrastructure!R637","v":0},{"$f":"[1]Infrastructure!T637","v":0},{"$f":"[1]Infrastructure!W637","v":0},{"$f":"[1]Infrastructure!W637","v":0},0,{"$f":"[1]Infrastructure!Z637","v":0},{"$f":"[1]Infrastructure!Z637","v":0},0,{"$f":"[1]Infrastructure!AB637","v":0},{"$f":"[1]Infrastructure!AB637","v":0},0,{"$f":"[1]Infrastructure!AC637","v":0},{"$f":"[1]Infrastructure!AD637","v":0},{"$f":"[1]Infrastructure!AE637","v":0},{"$f":"[1]Infrastructure!AF637","v":0},{"$f":"[1]Infrastructure!AG637","v":0},{"$f":"[1]Infrastructure!AH637","v":0},0]
[0,null,null,null,null,null,{"$f":"[1]Infrastructure!G638","v":0},{"$f":"[1]Infrastructure!H638","v":0},{"$f":"[1]Infrastructure!I638","v":0},{"$f":"[1]Infrastructure!J638","v":0},{"$f":"[1]Infrastructure!K638","v":0},{"$f":"[1]Infrastructure!L638","v":0},{"$f":"[1]Infrastructure!M638","v":0},{"$f":"[1]Infrastructure!N638","v":0},{"$f":"[1]Infrastructure!O638","v":0},{"$f":"[1]Infrastructure!Q638","v":0},{"$f":"[1]Infrastructure!R638","v":0},{"$f":"[1]Infrastructure!T638","v":0},{"$f":"[1]Infrastructure!W638","v":0},{"$f":"[1]Infrastructure!W638","v":0},0,{"$f":"[1]Infrastructure!Z638","v":0},{"$f":"[1]Infrastructure!Z638","v":0},0,{"$f":"[1]Infrastructure!AB638","v":0},{"$f":"[1]Infrastructure!AB638","v":0},0,{"$f":"[1]Infrastructure!AC638","v":0},{"$f":"[1]Infrastructure!AD638","v":0},{"$f":"[1]Infrastructure!AE638","v":0},{"$f":"[1]Infrastructure!AF638","v":0},{"$f":"[1]Infrastructure!AG638","v":0},{"$f":"[1]Infrastructure!AH638","v":0},0]
[0,null,null,null,null,null,{"$f":"[1]Infrastructure!G639","v":0},{"$f":"[1]Infrastructure!H639","v":0},{"$f":"[1]Infrastructure!I639","v":0},{"$f":"[1]Infrastructure!J639","v":0},{"$f":"[1]Infrastructure!K639","v":0},{"$f":"[1]Infrastructure!L639","v":0},{"$f":"[1]Infrastructure!M639","v":0},{"$f":"[1]Infrastructure!N639","v":0},{"$f":"[1]Infrastructure!O639","v":0},{"$f":"[1]Infrastructure!Q639","v":0},{"$f":"[1]Infrastructure!R639","v":0},{"$f":"[1]Infrastructure!T639","v":0},{"$f":"[1]Infrastructure!W639","v":0},{"$f":"[1]Infrastructure!W639","v":0},0,{"$f":"[1]Infrastructure!Z639","v":0},{"$f":"[1]Infrastructure!Z639","v":0},0,{"$f":"[1]Infrastructure!AB639","v":0},{"$f":"[1]Infrastructure!AB639","v":0},0,{"$f":"[1]Infrastructure!AC639","v":0},{"$f":"[1]Infrastructure!AD639","v":0},{"$f":"[1]Infrastructure!AE639","v":0},{"$f":"[1]Infrastructure!AF639","v":0},{"$f":"[1]Infrastructure!AG639","v":0},{"$f":"[1]Infrastructure!AH639","v":0},0]
[0,null,null,null,null,null,{"$f":"[1]Infrastructure!G640","v":0},{"$f":"[1]Infrastructure!H640","v":0},{"$f":"[1]Infrastructure!I640","v":0},{"$f":"[1]Infrastructure!J640","v":0},{"$f":"[1]Infrastructure!K640","v":0},{"$f":"[1]Infrastructure!L640","v":0},{"$f":"[1]Infrastructure!M640","v":0},{"$f":"[1]Infrastructure!N640","v":0},{"$f":"[1]Infrastructure!O640","v":0},{"$f":"[1]Infrastructure!Q640","v":0},{"$f":"[1]Infrastructure!R640","v":0},{"$f":"[1]Infrastructure!T640","v":0},{"$f":"[1]Infrastructure!W640","v":0},{"$f":"[1]Infrastructure!W640","v":0},0,{"$f":"[1]Infrastructure!Z640","v":0},{"$f":"[1]Infrastructure!Z640","v":0},0,{"$f":"[1]Infrastructure!AB640","v":0},{"$f":"[1]Infrastructure!AB640","v":0},0,{"$f":"[1]Infrastructure!AC640","v":0},{"$f":"[1]Infrastructure!AD640","v":0},{"$f":"[1]Infrastructure!AE640","v":0},{"$f":"[1]Infrastructure!AF640","v":0},{"$f":"[1]Infrastructure!AG640","v":0},{"$f":"[1]Infrastructure!AH640","v":0},0]
[0,null,null,null,null,null,{"$f":"[1]Infrastructure!G641","v":0},{"$f":"[1]Infrastructure!H641","v":0},{"$f":"[1]Infrastructure!I641","v":0},{"$f":"[1]Infrastructure!J641","v":0},{"$f":"[1]Infrastructure!K641","v":0},{"$f":"[1]Infrastructure!L641","v":0},{"$f":"[1]Infrastructure!M641","v":0},{"$f":"[1]Infrastructure!N641","v":0},{"$f":"[1]Infrastructure!O641","v":0},{"$f":"[1]Infrastructure!Q641","v":0},{"$f":"[1]Infrastructure!R641","v":0},{"$f":"[1]Infrastructure!T641","v":0},{"$f":"[1]Infrastructure!W641","v":0},{"$f":"[1]Infrastructure!W641","v":0},0,{"$f":"[1]Infrastructure!Z641","v":0},{"$f":"[1]Infrastructure!Z641","v":0},0,{"$f":"[1]Infrastructure!AB641","v":0},{"$f":"[1]Infrastructure!AB641","v":0},0,{"$f":"[1]Infrastructure!AC641","v":0},{"$f":"[1]Infrastructure!AD641","v":0},{"$f":"[1]Infrastructure!AE641","v":0},{"$f":"[1]Infrastructure!AF641","v":0},{"$f":"[1]Infrastructure!AG641","v":0},{"$f":"[1]Infrastructure!AH641","v":0},0]
[0,null,null,null,null,null,{"$f":"[1]Infrastructure!G642","v":0},{"$f":"[1]Infrastructure!H642","v":0},{"$f":"[1]Infrastructure!I642","v":0},{"$f":"[1]Infrastructure!J642","v":0},{"$f":"[1]Infrastructure!K642","v":0},{"$f":"[1]Infrastructure!L642","v":0},{"$f":"[1]Infrastructure!M642","v":0},{"$f":"[1]Infrastructure!N642","v":0},{"$f":"[1]Infrastructure!O642","v":0},{"$f":"[1]Infrastructure!Q642","v":0},{"$f":"[1]Infrastructure!R642","v":0},{"$f":"[1]Infrastructure!T642","v":0},{"$f":"[1]Infrastructure!W642","v":0},{"$f":"[1]Infrastructure!W642","v":0},0,{"$f":"[1]Infrastructure!Z642","v":0},{"$f":"[1]Infrastructure!Z642","v":0},0,{"$f":"[1]Infrastructure!AB642","v":0},{"$f":"[1]Infrastructure!AB642","v":0},0,{"$f":"[1]Infrastructure!AC642","v":0},{"$f":"[1]Infrastructure!AD642","v":0},{"$f":"[1]Infrastructure!AE642","v":0},{"$f":"[1]Infrastructure!AF642","v":0},{"$f":"[1]Infrastructure!AG642","v":0},{"$f":"[1]Infrastructure!AH642","v":0},0]
[0,null,null,null,null,null,{"$f":"[1]Infrastructure!G643","v":0},{"$f":"[1]Infrastructure!H643","v":0},{"$f":"[1]Infrastructure!I643","v":0},{"$f":"[1]Infrastructure!J643","v":0},{"$f":"[1]Infrastructure!K643","v":0},{"$f":"[1]Infrastructure!L643","v":0},{"$f":"[1]Infrastructure!M643","v":0},{"$f":"[1]Infrastructure!N643","v":0},{"$f":"[1]Infrastructure!O643","v":0},{"$f":"[1]Infrastructure!Q643","v":0},{"$f":"[1]Infrastructure!R643","v":0},{"$f":"[1]Infrastructure!T643","v":0},{"$f":"[1]Infrastructure!W643","v":0},{"$f":"[1]Infrastructure!W643","v":0},0,{"$f":"[1]Infrastructure!Z643","v":0},{"$f":"[1]Infrastructure!Z643","v":0},0,{"$f":"[1]Infrastructure!AB643","v":0},{"$f":"[1]Infrastructure!AB643","v":0},0,{"$f":"[1]Infrastructure!AC643","v":0},{"$f":"[1]Infrastructure!AD643","v":0},{"$f":"[1]Infrastructure!AE643","v":0},{"$f":"[1]Infrastructure!AF643","v":0},{"$f":"[1]Infrastructure!AG643","v":0},{"$f":"[1]Infrastructure!AH643","v":0},0]
[0,null,null,null,null,null,{"$f":"[1]Infrastructure!G644","v":0},{"$f":"[1]Infrastructure!H644","v":0},{"$f":"[1]Infrastructure!I644","v":0},{"$f":"[1]Infrastructure!J644","v":0},{"$f":"[1]Infrastructure!K644","v":0},{"$f":"[1]Infrastructure!L644","v":0},{"$f":"[1]Infrastructure!M644","v":0},{"$f":"[1]Infrastructure!N644","v":0},{"$f":"[1]Infrastructure!O644","v":0},{"$f":"[1]Infrastructure!Q644","v":0},{"$f":"[1]Infrastructure!R644","v":0},{"$f":"[1]Infrastructure!T644","v":0},{"$f":"[1]Infrastructure!W644","v":0},{"$f":"[1]Infrastructure!W644","v":0},0,{"$f":"[1]Infrastructure!Z644","v":0},{"$f":"[1]Infrastructure!Z644","v":0},0,{"$f":"[1]Infrastructure!AB644","v":0},{"$f":"[1]Infrastructure!AB644","v":0},0,{"$f":"[1]Infrastructure!AC644","v":0},{"$f":"[1]Infrastructure!AD644","v":0},{"$f":"[1]Infrastructure!AE644","v":0},{"$f":"[1]Infrastructure!AF644","v":0},{"$f":"[1]Infrastructure!AG644","v":0},{"$f":"[1]Infrastructure!AH644","v":0},0]
[0,null,null,null,null,null,{"$f":"[1]Infrastructure!G645","v":0},{"$f":"[1]Infrastructure!H645","v":0},{"$f":"[1]Infrastructure!I645","v":0},{"$f":"[1]Infrastructure!J645","v":0},{"$f":"[1]Infrastructure!K645","v":0},{"$f":"[1]Infrastructure!L645","v":0},{"$f":"[1]Infrastructure!M645","v":0},{"$f":"[1]Infrastructure!N645","v":0},{"$f":"[1]Infrastructure!O645","v":0},{"$f":"[1]Infrastructure!Q645","v":0},{"$f":"[1]Infrastructure!R645","v":0},{"$f":"[1]Infrastructure!T645","v":0},{"$f":"[1]Infrastructure!W645","v":0},{"$f":"[1]Infrastructure!W645","v":0},0,{"$f":"[1]Infrastructure!Z645","v":0},{"$f":"[1]Infrastructure!Z645","v":0},0,{"$f":"[1]Infrastructure!AB645","v":0},{"$f":"[1]Infrastructure!AB645","v":0},0,{"$f":"[1]Infrastructure!AC645","v":0},{"$f":"[1]Infrastructure!AD645","v":0},{"$f":"[1]Infrastructure!AE645","v":0},{"$f":"[1]Infrastructure!AF645","v":0},{"$f":"[1]Infrastructure!AG645","v":0},{"$f":"[1]Infrastructure!AH645","v":0},0]
[0,null,null,null,null,null,{"$f":"[1]Infrastructure!G646","v":0},{"$f":"[1]Infrastructure!H646","v":0},{"$f":"[1]Infrastructure!I646","v":0},{"$f":"[1]Infrastructure!J646","v":0},{"$f":"[1]Infrastructure!K646","v":0},{"$f":"[1]Infrastructure!L646","v":0},{"$f":"[1]Infrastructure!M646","v":0},{"$f":"[1]Infrastructure!N646","v":0},{"$f":"[1]Infrastructure!O646","v":0},{"$f":"[1]Infrastructure!Q646","v":0},{"$f":"[1]Infrastructure!R646","v":0},{"$f":"[1]Infrastructure!T646","v":0},{"$f":"[1]Infrastructure!W646","v":0},{"$f":"[1]Infrastructure!W646","v":0},0,{"$f":"[1]Infrastructure!Z646","v":0},{"$f":"[1]Infrastructure!Z646","v":0},0,{"$f":"[1]Infrastructure!AB646","v":0},{"$f":"[1]Infrastructure!AB646","v":0},0,{"$f":"[1]Infrastructure!AC646","v":0},{"$f":"[1]Infrastructure!AD646","v":0},{"$f":"[1]Infrastructure!AE646","v":0},{"$f":"[1]Infrastructure!AF646","v":0},{"$f":"[1]Infrastructure!AG646","v":0},{"$f":"[1]Infrastructure!AH646","v":0},0]
[0,null,null,null,null,null,{"$f":"[1]Infrastructure!G647","v":0},{"$f":"[1]Infrastructure!H647","v":0},{"$f":"[1]Infrastructure!I647","v":0},{"$f":"[1]Infrastructure!J647","v":0},{"$f":"[1]Infrastructure!K647","v":0},{"$f":"[1]Infrastructure!L647","v":0},{"$f":"[1]Infrastructure!M647","v":0},{"$f":"[1]Infrastructure!N647","v":0},{"$f":"[1]Infrastructure!O647","v":0},{"$f":"[1]Infrastructure!Q647","v":0},{"$f":"[1]Infrastructure!R647","v":0},{"$f":"[1]Infrastructure!T647","v":0},{"$f":"[1]Infrastructure!W647","v":0},{"$f":"[1]Infrastructure!W647","v":0},0,{"$f":"[1]Infrastructure!Z647","v":0},{"$f":"[1]Infrastructure!Z647","v":0},0,{"$f":"[1]Infrastructure!AB647","v":0},{"$f":"[1]Infrastructure!AB647","v":0},0,{"$f":"[1]Infrastructure!AC647","v":0},{"$f":"[1]Infrastructure!AD647","v":0},{"$f":"[1]Infrastructure!AE647","v":0},{"$f":"[1]Infrastructure!AF647","v":0},{"$f":"[1]Infrastructure!AG647","v":0},{"$f":"[1]Infrastructure!AH647","v":0},0]
[0,null,null,null,null,null,{"$f":"[1]Infrastructure!G648","v":0},{"$f":"[1]Infrastructure!H648","v":0},{"$f":"[1]Infrastructure!I648","v":0},{"$f":"[1]Infrastructure!J648","v":0},{"$f":"[1]Infrastructure!K648","v":0},{"$f":"[1]Infrastructure!L648","v":0},{"$f":"[1]Infrastructure!M648","v":0},{"$f":"[1]Infrastructure!N648","v":0},{"$f":"[1]Infrastructure!O648","v":0},{"$f":"[1]Infrastructure!Q648","v":0},{"$f":"[1]Infrastructure!R648","v":0},{"$f":"[1]Infrastructure!T648","v":0},{"$f":"[1]Infrastructure!W648","v":0},{"$f":"[1]Infrastructure!W648","v":0},0,{"$f":"[1]Infrastructure!Z648","v":0},{"$f":"[1]Infrastructure!Z648","v":0},0,{"$f":"[1]Infrastructure!AB648","v":0},{"$f":"[1]Infrastructure!AB648","v":0},0,{"$f":"[1]Infrastructure!AC648","v":0},{"$f":"[1]Infrastructure!AD648","v":0},{"$f":"[1]Infrastructure!AE648","v":0},{"$f":"[1]Infrastructure!AF648","v":0},{"$f":"[1]Infrastructure!AG648","v":0},{"$f":"[1]Infrastructure!AH648","v":0},0]
[0,null,null,null,null,null,{"$f":"[1]Infrastructure!G649","v":0},{"$f":"[1]Infrastructure!H649","v":0},{"$f":"[1]Infrastructure!I649","v":0},{"$f":"[1]Infrastructure!J649","v":0},{"$f":"[1]Infrastructure!K649","v":0},{"$f":"[1]Infrastructure!L649","v":0},{"$f":"[1]Infrastructure!M649","v":0},{"$f":"[1]Infrastructure!N649","v":0},{"$f":"[1]Infrastructure!O649","v":0},{"$f":"[1]Infrastructure!Q649","v":0},{"$f":"[1]Infrastructure!R649","v":0},{"$f":"[1]Infrastructure!T649","v":0},{"$f":"[1]Infrastructure!W649","v":0},{"$f":"[1]Infrastructure!W649","v":0},0,{"$f":"[1]Infrastructure!Z649","v":0},{"$f":"[1]Infrastructure!Z649","v":0},0,{"$f":"[1]Infrastructure!AB649","v":0},{"$f":"[1]Infrastructure!AB649","v":0},0,{"$f":"[1]Infrastructure!AC649","v":0},{"$f":"[1]Infrastructure!AD649","v":0},{"$f":"[1]Infrastructure!AE649","v":0},{"$f":"[1]Infrastructure!AF649","v":0},{"$f":"[1]Infrastructure!AG649","v":0},{"$f":"[1]Infrastructure!AH649","v":0},0]
[0,null,null,null,null,null,{"$f":"[1]Infrastructure!G650","v":0},{"$f":"[1]Infrastructure!H650","v":0},{"$f":"[1]Infrastructure!I650","v":0},{"$f":"[1]Infrastructure!J650","v":0},{"$f":"[1]Infrastructure!K650","v":0},{"$f":"[1]Infrastructure!L650","v":0},{"$f":"[1]Infrastructure!M650","v":0},{"$f":"[1]Infrastructure!N650","v":0},{"$f":"[1]Infrastructure!O650","v":0},{"$f":"[1]Infrastructure!Q650","v":0},{"$f":"[1]Infrastructure!R650","v":0},{"$f":"[1]Infrastructure!T650","v":0},{"$f":"[1]Infrastructure!W650","v":0},{"$f":"[1]Infrastructure!W650","v":0},0,{"$f":"[1]Infrastructure!Z650","v":0},{"$f":"[1]Infrastructure!Z650","v":0},0,{"$f":"[1]Infrastructure!AB650","v":0},{"$f":"[1]Infrastructure!AB650","v":0},0,{"$f":"[1]Infrastructure!AC650","v":0},{"$f":"[1]Infrastructure!AD650","v":0},{"$f":"[1]Infrastructure!AE650","v":0},{"$f":"[1]Infrastructure!AF650","v":0},{"$f":"[1]Infrastructure!AG650","v":0},{"$f":"[1]Infrastructure!AH650","v":0},0]
[0,null,null,null,null,null,{"$f":"[1]Infrastructure!G651","v":0},{"$f":"[1]Infrastructure!H651","v":0},{"$f":"[1]Infrastructure!I651","v":0},{"$f":"[1]Infrastructure!J651","v":0},{"$f":"[1]Infrastructure!K651","v":0},{"$f":"[1]Infrastructure!L651","v":0},{"$f":"[1]Infrastructure!M651","v":0},{"$f":"[1]Infrastructure!N651","v":0},{"$f":"[1]Infrastructure!O651","v":0},{"$f":"[1]Infrastructure!Q651","v":0},{"$f":"[1]Infrastructure!R651","v":0},{"$f":"[1]Infrastructure!T651","v":0},{"$f":"[1]Infrastructure!W651","v":0},{"$f":"[1]Infrastructure!W651","v":0},0,{"$f":"[1]Infrastructure!Z651","v":0},{"$f":"[1]Infrastructure!Z651","v":0},0,{"$f":"[1]Infrastructure!AB651","v":0},{"$f":"[1]Infrastructure!AB651","v":0},0,{"$f":"[1]Infrastructure!AC651","v":0},{"$f":"[1]Infrastructure!AD651","v":0},{"$f":"[1]Infrastructure!AE651","v":0},{"$f":"[1]Infrastructure!AF651","v":0},{"$f":"[1]Infrastructure!AG651","v":0},{"$f":"[1]Infrastructure!AH651","v":0},0]
[{"$f":"IF(SUM(O652:AH652),1,0)","v":0},null,null,null,null,null,{"$f":"[1]Infrastructure!G652","v":0},{"$f":"[1]Infrastructure!H652","v":0},{"$f":"[1]Infrastructure!I652","v":0},{"$f":"[1]Infrastructure!J652","v":0},{"$f":"[1]Infrastructure!K652","v":0},{"$f":"[1]Infrastructure!L652","v":0},{"$f":"[1]Infrastructure!M652","v":0},{"$f":"[1]Infrastructure!N652","v":0},{"$f":"[1]Infrastructure!O652","v":0},{"$f":"[1]Infrastructure!Q652","v":0},{"$f":"[1]Infrastructure!R652","v":0},{"$f":"[1]Infrastructure!T652","v":0},{"$f":"[1]Infrastructure!W652","v":0},{"$f":"[1]Infrastructure!W652","v":0},0,{"$f":"[1]Infrastructure!Z652","v":0},{"$f":"[1]Infrastructure!Z652","v":0},0,{"$f":"[1]Infrastructure!AB652","v":0},{"$f":"[1]Infrastructure!AB652","v":0},0,{"$f":"[1]Infrastructure!AC652","v":0},{"$f":"[1]Infrastructure!AD652","v":0},{"$f":"[1]Infrastructure!AE652","v":0},{"$f":"[1]Infrastructure!AF652","v":0},{"$f":"[1]Infrastructure!AG652","v":0},{"$f":"[1]Infrastructure!AH652","v":0},0]
[0,null,null,null,null,null,{"$f":"[1]Infrastructure!G653","v":0},{"$f":"[1]Infrastructure!H653","v":0},{"$f":"[1]Infrastructure!I653","v":0},{"$f":"[1]Infrastructure!J653","v":0},{"$f":"[1]Infrastructure!K653","v":0},{"$f":"[1]Infrastructure!L653","v":0},{"$f":"[1]Infrastructure!M653","v":0},{"$f":"[1]Infrastructure!N653","v":0},{"$f":"[1]Infrastructure!O653","v":0},{"$f":"[1]Infrastructure!Q653","v":0},{"$f":"[1]Infrastructure!R653","v":0},{"$f":"[1]Infrastructure!T653","v":0},{"$f":"[1]Infrastructure!W653","v":0},{"$f":"[1]Infrastructure!W653","v":0},0,{"$f":"[1]Infrastructure!Z653","v":0},{"$f":"[1]Infrastructure!Z653","v":0},0,{"$f":"[1]Infrastructure!AB653","v":0},{"$f":"[1]Infrastructure!AB653","v":0},0,{"$f":"[1]Infrastructure!AC653","v":0},{"$f":"[1]Infrastructure!AD653","v":0},{"$f":"[1]Infrastructure!AE653","v":0},{"$f":"[1]Infrastructure!AF653","v":0},{"$f":"[1]Infrastructure!AG653","v":0},{"$f":"[1]Infrastructure!AH653","v":0},0]
[0,null,null,null,null,null,{"$f":"[1]Infrastructure!G654","v":0},{"$f":"[1]Infrastructure!H654","v":0},{"$f":"[1]Infrastructure!I654","v":0},{"$f":"[1]Infrastructure!J654","v":0},{"$f":"[1]Infrastructure!K654","v":0},{"$f":"[1]Infrastructure!L654","v":0},{"$f":"[1]Infrastructure!M654","v":0},{"$f":"[1]Infrastructure!N654","v":0},{"$f":"[1]Infrastructure!O654","v":0},{"$f":"[1]Infrastructure!Q654","v":0},{"$f":"[1]Infrastructure!R654","v":0},{"$f":"[1]Infrastructure!T654","v":0},{"$f":"[1]Infrastructure!W654","v":0},{"$f":"[1]Infrastructure!W654","v":0},0,{"$f":"[1]Infrastructure!Z654","v":0},{"$f":"[1]Infrastructure!Z654","v":0},0,{"$f":"[1]Infrastructure!AB654","v":0},{"$f":"[1]Infrastructure!AB654","v":0},0,{"$f":"[1]Infrastructure!AC654","v":0},{"$f":"[1]Infrastructure!AD654","v":0},{"$f":"[1]Infrastructure!AE654","v":0},{"$f":"[1]Infrastructure!AF654","v":0},{"$f":"[1]Infrastructure!AG654","v":0},{"$f":"[1]Infrastructure!AH654","v":0},0]
[0,null,null,null,null,null,{"$f":"[1]Infrastructure!G655","v":0},{"$f":"[1]Infrastructure!H655","v":0},{"$f":"[1]Infrastructure!I655","v":0},{"$f":"[1]Infrastructure!J655","v":0},{"$f":"[1]Infrastructure!K655","v":0},{"$f":"[1]Infrastructure!L655","v":0},{"$f":"[1]Infrastructure!M655","v":0},{"$f":"[1]Infrastructure!N655","v":0},{"$f":"[1]Infrastructure!O655","v":0},{"$f":"[1]Infrastructure!Q655","v":0},{"$f":"[1]Infrastructure!R655","v":0},{"$f":"[1]Infrastructure!T655","v":0},{"$f":"[1]Infrastructure!W655","v":0},{"$f":"[1]Infrastructure!W655","v":0},0,{"$f":"[1]Infrastructure!Z655","v":0},{"$f":"[1]Infrastructure!Z655","v":0},0,{"$f":"[1]Infrastructure!AB655","v":0},{"$f":"[1]Infrastructure!AB655","v":0},0,{"$f":"[1]Infrastructure!AC655","v":0},{"$f":"[1]Infrastructure!AD655","v":0},{"$f":"[1]Infrastructure!AE655","v":0},{"$f":"[1]Infrastructure!AF655","v":0},{"$f":"[1]Infrastructure!AG655","v":0},{"$f":"[1]Infrastructure!AH655","v":0},0]
[0,null,null,null,null,null,{"$f":"[1]Infrastructure!G656","v":0},{"$f":"[1]Infrastructure!H656","v":0},{"$f":"[1]Infrastructure!I656","v":0},{"$f":"[1]Infrastructure!J656","v":0},{"$f":"[1]Infrastructure!K656","v":0},{"$f":"[1]Infrastructure!L656","v":0},{"$f":"[1]Infrastructure!M656","v":0},{"$f":"[1]Infrastructure!N656","v":0},{"$f":"[1]Infrastructure!O656","v":0},{"$f":"[1]Infrastructure!Q656","v":0},{"$f":"[1]Infrastructure!R656","v":0},{"$f":"[1]Infrastructure!T656","v":0},{"$f":"[1]Infrastructure!W656","v":0},{"$f":"[1]Infrastructure!W656","v":0},0,{"$f":"[1]Infrastructure!Z656","v":0},{"$f":"[1]Infrastructure!Z656","v":0},0,{"$f":"[1]Infrastructure!AB656","v":0},{"$f":"[1]Infrastructure!AB656","v":0},0,{"$f":"[1]Infrastructure!AC656","v":0},{"$f":"[1]Infrastructure!AD656","v":0},{"$f":"[1]Infrastructure!AE656","v":0},{"$f":"[1]Infrastructure!AF656","v":0},{"$f":"[1]Infrastructure!AG656","v":0},{"$f":"[1]Infrastructure!AH656","v":0},0]
[0,null,null,null,null,null,{"$f":"[1]Infrastructure!G657","v":0},{"$f":"[1]Infrastructure!H657","v":0},{"$f":"[1]Infrastructure!I657","v":0},{"$f":"[1]Infrastructure!J657","v":0},{"$f":"[1]Infrastructure!K657","v":0},{"$f":"[1]Infrastructure!L657","v":0},{"$f":"[1]Infrastructure!M657","v":0},{"$f":"[1]Infrastructure!N657","v":0},{"$f":"[1]Infrastructure!O657","v":0},{"$f":"[1]Infrastructure!Q657","v":0},{"$f":"[1]Infrastructure!R657","v":0},{"$f":"[1]Infrastructure!T657","v":0},{"$f":"[1]Infrastructure!W657","v":0},{"$f":"[1]Infrastructure!W657","v":0},0,{"$f":"[1]Infrastructure!Z657","v":0},{"$f":"[1]Infrastructure!Z657","v":0},0,{"$f":"[1]Infrastructure!AB657","v":0},{"$f":"[1]Infrastructure!AB657","v":0},0,{"$f":"[1]Infrastructure!AC657","v":0},{"$f":"[1]Infrastructure!AD657","v":0},{"$f":"[1]Infrastructure!AE657","v":0},{"$f":"[1]Infrastructure!AF657","v":0},{"$f":"[1]Infrastructure!AG657","v":0},{"$f":"[1]Infrastructure!AH657","v":0},0]
[0,null,null,null,null,null,{"$f":"[1]Infrastructure!G658","v":0},{"$f":"[1]Infrastructure!H658","v":0},{"$f":"[1]Infrastructure!I658","v":0},{"$f":"[1]Infrastructure!J658","v":0},{"$f":"[1]Infrastructure!K658","v":0},{"$f":"[1]Infrastructure!L658","v":0},{"$f":"[1]Infrastructure!M658","v":0},{"$f":"[1]Infrastructure!N658","v":0},{"$f":"[1]Infrastructure!O658","v":0},{"$f":"[1]Infrastructure!Q658","v":0},{"$f":"[1]Infrastructure!R658","v":0},{"$f":"[1]Infrastructure!T658","v":0},{"$f":"[1]Infrastructure!W658","v":0},{"$f":"[1]Infrastructure!W658","v":0},0,{"$f":"[1]Infrastructure!Z658","v":0},{"$f":"[1]Infrastructure!Z658","v":0},0,{"$f":"[1]Infrastructure!AB658","v":0},{"$f":"[1]Infrastructure!AB658","v":0},0,{"$f":"[1]Infrastructure!AC658","v":0},{"$f":"[1]Infrastructure!AD658","v":0},{"$f":"[1]Infrastructure!AE658","v":0},{"$f":"[1]Infrastructure!AF658","v":0},{"$f":"[1]Infrastructure!AG658","v":0},{"$f":"[1]Infrastructure!AH658","v":0},0]
[0,null,null,null,null,null,{"$f":"[1]Infrastructure!G659","v":0},{"$f":"[1]Infrastructure!H659","v":0},{"$f":"[1]Infrastructure!I659","v":0},{"$f":"[1]Infrastructure!J659","v":0},{"$f":"[1]Infrastructure!K659","v":0},{"$f":"[1]Infrastructure!L659","v":0},{"$f":"[1]Infrastructure!M659","v":0},{"$f":"[1]Infrastructure!N659","v":0},{"$f":"[1]Infrastructure!O659","v":0},{"$f":"[1]Infrastructure!Q659","v":0},{"$f":"[1]Infrastructure!R659","v":0},{"$f":"[1]Infrastructure!T659","v":0},{"$f":"[1]Infrastructure!W659","v":0},{"$f":"[1]Infrastructure!W659","v":0},0,{"$f":"[1]Infrastructure!Z659","v":0},{"$f":"[1]Infrastructure!Z659","v":0},0,{"$f":"[1]Infrastructure!AB659","v":0},{"$f":"[1]Infrastructure!AB659","v":0},0,{"$f":"[1]Infrastructure!AC659","v":0},{"$f":"[1]Infrastructure!AD659","v":0},{"$f":"[1]Infrastructure!AE659","v":0},{"$f":"[1]Infrastructure!AF659","v":0},{"$f":"[1]Infrastructure!AG659","v":0},{"$f":"[1]Infrastructure!AH659","v":0},0]
[0,null,null,null,null,null,{"$f":"[1]Infrastructure!G660","v":0},{"$f":"[1]Infrastructure!H660","v":0},{"$f":"[1]Infrastructure!I660","v":0},{"$f":"[1]Infrastructure!J660","v":0},{"$f":"[1]Infrastructure!K660","v":0},{"$f":"[1]Infrastructure!L660","v":0},{"$f":"[1]Infrastructure!M660","v":0},{"$f":"[1]Infrastructure!N660","v":0},{"$f":"[1]Infrastructure!O660","v":0},{"$f":"[1]Infrastructure!Q660","v":0},{"$f":"[1]Infrastructure!R660","v":0},{"$f":"[1]Infrastructure!T660","v":0},{"$f":"[1]Infrastructure!W660","v":0},{"$f":"[1]Infrastructure!W660","v":0},0,{"$f":"[1]Infrastructure!Z660","v":0},{"$f":"[1]Infrastructure!Z660","v":0},0,{"$f":"[1]Infrastructure!AB660","v":0},{"$f":"[1]Infrastructure!AB660","v":0},0,{"$f":"[1]Infrastructure!AC660","v":0},{"$f":"[1]Infrastructure!AD660","v":0},{"$f":"[1]Infrastructure!AE660","v":0},{"$f":"[1]Infrastructure!AF660","v":0},{"$f":"[1]Infrastructure!AG660","v":0},{"$f":"[1]Infrastructure!AH660","v":0},0]
[0,null,null,null,null,null,{"$f":"[1]Infrastructure!G661","v":0},{"$f":"[1]Infrastructure!H661","v":0},{"$f":"[1]Infrastructure!I661","v":0},{"$f":"[1]Infrastructure!J661","v":0},{"$f":"[1]Infrastructure!K661","v":0},{"$f":"[1]Infrastructure!L661","v":0},{"$f":"[1]Infrastructure!M661","v":0},{"$f":"[1]Infrastructure!N661","v":0},{"$f":"[1]Infrastructure!O661","v":0},{"$f":"[1]Infrastructure!Q661","v":0},{"$f":"[1]Infrastructure!R661","v":0},{"$f":"[1]Infrastructure!T661","v":0},{"$f":"[1]Infrastructure!W661","v":0},{"$f":"[1]Infrastructure!W661","v":0},0,{"$f":"[1]Infrastructure!Z661","v":0},{"$f":"[1]Infrastructure!Z661","v":0},0,{"$f":"[1]Infrastructure!AB661","v":0},{"$f":"[1]Infrastructure!AB661","v":0},0,{"$f":"[1]Infrastructure!AC661","v":0},{"$f":"[1]Infrastructure!AD661","v":0},{"$f":"[1]Infrastructure!AE661","v":0},{"$f":"[1]Infrastructure!AF661","v":0},{"$f":"[1]Infrastructure!AG661","v":0},{"$f":"[1]Infrastructure!AH661","v":0},0]
[0,null,null,null,null,null,{"$f":"[1]Infrastructure!G662","v":0},{"$f":"[1]Infrastructure!H662","v":0},{"$f":"[1]Infrastructure!I662","v":0},{"$f":"[1]Infrastructure!J662","v":0},{"$f":"[1]Infrastructure!K662","v":0},{"$f":"[1]Infrastructure!L662","v":0},{"$f":"[1]Infrastructure!M662","v":0},{"$f":"[1]Infrastructure!N662","v":0},{"$f":"[1]Infrastructure!O662","v":0},{"$f":"[1]Infrastructure!Q662","v":0},{"$f":"[1]Infrastructure!R662","v":0},{"$f":"[1]Infrastructure!T662","v":0},{"$f":"[1]Infrastructure!W662","v":0},{"$f":"[1]Infrastructure!W662","v":0},0,{"$f":"[1]Infrastructure!Z662","v":0},{"$f":"[1]Infrastructure!Z662","v":0},0,{"$f":"[1]Infrastructure!AB662","v":0},{"$f":"[1]Infrastructure!AB662","v":0},0,{"$f":"[1]Infrastructure!AC662","v":0},{"$f":"[1]Infrastructure!AD662","v":0},{"$f":"[1]Infrastructure!AE662","v":0},{"$f":"[1]Infrastructure!AF662","v":0},{"$f":"[1]Infrastructure!AG662","v":0},{"$f":"[1]Infrastructure!AH662","v":0},0]
[0,null,null,null,null,null,{"$f":"[1]Infrastructure!G663","v":0},{"$f":"[1]Infrastructure!H663","v":0},{"$f":"[1]Infrastructure!I663","v":0},{"$f":"[1]Infrastructure!J663","v":0},{"$f":"[1]Infrastructure!K663","v":0},{"$f":"[1]Infrastructure!L663","v":0},{"$f":"[1]Infrastructure!M663","v":0},{"$f":"[1]Infrastructure!N663","v":0},{"$f":"[1]Infrastructure!O663","v":0},{"$f":"[1]Infrastructure!Q663","v":0},{"$f":"[1]Infrastructure!R663","v":0},{"$f":"[1]Infrastructure!T663","v":0},{"$f":"[1]Infrastructure!W663","v":0},{"$f":"[1]Infrastructure!W663","v":0},0,{"$f":"[1]Infrastructure!Z663","v":0},{"$f":"[1]Infrastructure!Z663","v":0},0,{"$f":"[1]Infrastructure!AB663","v":0},{"$f":"[1]Infrastructure!AB663","v":0},0,{"$f":"[1]Infrastructure!AC663","v":0},{"$f":"[1]Infrastructure!AD663","v":0},{"$f":"[1]Infrastructure!AE663","v":0},{"$f":"[1]Infrastructure!AF663","v":0},{"$f":"[1]Infrastructure!AG663","v":0},{"$f":"[1]Infrastructure!AH663","v":0},0]
[0,null,null,null,null,null,{"$f":"[1]Infrastructure!G664","v":0},{"$f":"[1]Infrastructure!H664","v":0},{"$f":"[1]Infrastructure!I664","v":0},{"$f":"[1]Infrastructure!J664","v":0},{"$f":"[1]Infrastructure!K664","v":0},{"$f":"[1]Infrastructure!L664","v":0},{"$f":"[1]Infrastructure!M664","v":0},{"$f":"[1]Infrastructure!N664","v":0},{"$f":"[1]Infrastructure!O664","v":0},{"$f":"[1]Infrastructure!Q664","v":0},{"$f":"[1]Infrastructure!R664","v":0},{"$f":"[1]Infrastructure!T664","v":0},{"$f":"[1]Infrastructure!W664","v":0},{"$f":"[1]Infrastructure!W664","v":0},0,{"$f":"[1]Infrastructure!Z664","v":0},{"$f":"[1]Infrastructure!Z664","v":0},0,{"$f":"[1]Infrastructure!AB664","v":0},{"$f":"[1]Infrastructure!AB664","v":0},0,{"$f":"[1]Infrastructure!AC664","v":0},{"$f":"[1]Infrastructure!AD664","v":0},{"$f":"[1]Infrastructure!AE664","v":0},{"$f":"[1]Infrastructure!AF664","v":0},{"$f":"[1]Infrastructure!AG664","v":0},{"$f":"[1]Infrastructure!AH664","v":0},0]
[0,null,null,null,null,null,{"$f":"[1]Infrastructure!G665","v":0},{"$f":"[1]Infrastructure!H665","v":0},{"$f":"[1]Infrastructure!I665","v":0},{"$f":"[1]Infrastructure!J665","v":0},{"$f":"[1]Infrastructure!K665","v":0},{"$f":"[1]Infrastructure!L665","v":0},{"$f":"[1]Infrastructure!M665","v":0},{"$f":"[1]Infrastructure!N665","v":0},{"$f":"[1]Infrastructure!O665","v":0},{"$f":"[1]Infrastructure!Q665","v":0},{"$f":"[1]Infrastructure!R665","v":0},{"$f":"[1]Infrastructure!T665","v":0},{"$f":"[1]Infrastructure!W665","v":0},{"$f":"[1]Infrastructure!W665","v":0},0,{"$f":"[1]Infrastructure!Z665","v":0},{"$f":"[1]Infrastructure!Z665","v":0},0,{"$f":"[1]Infrastructure!AB665","v":0},{"$f":"[1]Infrastructure!AB665","v":0},0,{"$f":"[1]Infrastructure!AC665","v":0},{"$f":"[1]Infrastructure!AD665","v":0},{"$f":"[1]Infrastructure!AE665","v":0},{"$f":"[1]Infrastructure!AF665","v":0},{"$f":"[1]Infrastructure!AG665","v":0},{"$f":"[1]Infrastructure!AH665","v":0},0]
[0,null,null,null,null,null,{"$f":"[1]Infrastructure!G666","v":0},{"$f":"[1]Infrastructure!H666","v":0},{"$f":"[1]Infrastructure!I666","v":0},{"$f":"[1]Infrastructure!J666","v":0},{"$f":"[1]Infrastructure!K666","v":0},{"$f":"[1]Infrastructure!L666","v":0},{"$f":"[1]Infrastructure!M666","v":0},{"$f":"[1]Infrastructure!N666","v":0},{"$f":"[1]Infrastructure!O666","v":0},{"$f":"[1]Infrastructure!Q666","v":0},{"$f":"[1]Infrastructure!R666","v":0},{"$f":"[1]Infrastructure!T666","v":0},{"$f":"[1]Infrastructure!W666","v":0},{"$f":"[1]Infrastructure!W666","v":0},0,{"$f":"[1]Infrastructure!Z666","v":0},{"$f":"[1]Infrastructure!Z666","v":0},0,{"$f":"[1]Infrastructure!AB666","v":0},{"$f":"[1]Infrastructure!AB666","v":0},0,{"$f":"[1]Infrastructure!AC666","v":0},{"$f":"[1]Infrastructure!AD666","v":0},{"$f":"[1]Infrastructure!AE666","v":0},{"$f":"[1]Infrastructure!AF666","v":0},{"$f":"[1]Infrastructure!AG666","v":0},{"$f":"[1]Infrastructure!AH666","v":0},0]
[0,null,null,null,null,null,{"$f":"[1]Infrastructure!G667","v":0},{"$f":"[1]Infrastructure!H667","v":0},{"$f":"[1]Infrastructure!I667","v":0},{"$f":"[1]Infrastructure!J667","v":0},{"$f":"[1]Infrastructure!K667","v":0},{"$f":"[1]Infrastructure!L667","v":0},{"$f":"[1]Infrastructure!M667","v":0},{"$f":"[1]Infrastructure!N667","v":0},{"$f":"[1]Infrastructure!O667","v":0},{"$f":"[1]Infrastructure!Q667","v":0},{"$f":"[1]Infrastructure!R667","v":0},{"$f":"[1]Infrastructure!T667","v":0},{"$f":"[1]Infrastructure!W667","v":0},{"$f":"[1]Infrastructure!W667","v":0},0,{"$f":"[1]Infrastructure!Z667","v":0},{"$f":"[1]Infrastructure!Z667","v":0},0,{"$f":"[1]Infrastructure!AB667","v":0},{"$f":"[1]Infrastructure!AB667","v":0},0,{"$f":"[1]Infrastructure!AC667","v":0},{"$f":"[1]Infrastructure!AD667","v":0},{"$f":"[1]Infrastructure!AE667","v":0},{"$f":"[1]Infrastructure!AF667","v":0},{"$f":"[1]Infrastructure!AG667","v":0},{"$f":"[1]Infrastructure!AH667","v":0},0]
[0,null,null,null,null,null,{"$f":"[1]Infrastructure!G668","v":0},{"$f":"[1]Infrastructure!H668","v":0},{"$f":"[1]Infrastructure!I668","v":0},{"$f":"[1]Infrastructure!J668","v":0},{"$f":"[1]Infrastructure!K668","v":0},{"$f":"[1]Infrastructure!L668","v":0},{"$f":"[1]Infrastructure!M668","v":0},{"$f":"[1]Infrastructure!N668","v":0},{"$f":"[1]Infrastructure!O668","v":0},{"$f":"[1]Infrastructure!Q668","v":0},{"$f":"[1]Infrastructure!R668","v":0},{"$f":"[1]Infrastructure!T668","v":0},{"$f":"[1]Infrastructure!W668","v":0},{"$f":"[1]Infrastructure!W668","v":0},0,{"$f":"[1]Infrastructure!Z668","v":0},{"$f":"[1]Infrastructure!Z668","v":0},0,{"$f":"[1]Infrastructure!AB668","v":0},{"$f":"[1]Infrastructure!AB668","v":0},0,{"$f":"[1]Infrastructure!AC668","v":0},{"$f":"[1]Infrastructure!AD668","v":0},{"$f":"[1]Infrastructure!AE668","v":0},{"$f":"[1]Infrastructure!AF668","v":0},{"$f":"[1]Infrastructure!AG668","v":0},{"$f":"[1]Infrastructure!AH668","v":0},0]
[0,null,null,null,null,null,{"$f":"[1]Infrastructure!G669","v":0},{"$f":"[1]Infrastructure!H669","v":0},{"$f":"[1]Infrastructure!I669","v":0},{"$f":"[1]Infrastructure!J669","v":0},{"$f":"[1]Infrastructure!K669","v":0},{"$f":"[1]Infrastructure!L669","v":0},{"$f":"[1]Infrastructure!M669","v":0},{"$f":"[1]Infrastructure!N669","v":0},{"$f":"[1]Infrastructure!O669","v":0},{"$f":"[1]Infrastructure!Q669","v":0},{"$f":"[1]Infrastructure!R669","v":0},{"$f":"[1]Infrastructure!T669","v":0},{"$f":"[1]Infrastructure!W669","v":0},{"$f":"[1]Infrastructure!W669","v":0},0,{"$f":"[1]Infrastructure!Z669","v":0},{"$f":"[1]Infrastructure!Z669","v":0},0,{"$f":"[1]Infrastructure!AB669","v":0},{"$f":"[1]Infrastructure!AB669","v":0},0,{"$f":"[1]Infrastructure!AC669","v":0},{"$f":"[1]Infrastructure!AD669","v":0},{"$f":"[1]Infrastructure!AE669","v":0},{"$f":"[1]Infrastructure!AF669","v":0},{"$f":"[1]Infrastructure!AG669","v":0},{"$f":"[1]Infrastructure!AH669","v":0},0]
[0,null,null,null,null,null,{"$f":"[1]Infrastructure!G670","v":0},{"$f":"[1]Infrastructure!H670","v":0},{"$f":"[1]Infrastructure!I670","v":0},{"$f":"[1]Infrastructure!J670","v":0},{"$f":"[1]Infrastructure!K670","v":0},{"$f":"[1]Infrastructure!L670","v":0},{"$f":"[1]Infrastructure!M670","v":0},{"$f":"[1]Infrastructure!N670","v":0},{"$f":"[1]Infrastructure!O670","v":0},{"$f":"[1]Infrastructure!Q670","v":0},{"$f":"[1]Infrastructure!R670","v":0},{"$f":"[1]Infrastructure!T670","v":0},{"$f":"[1]Infrastructure!W670","v":0},{"$f":"[1]Infrastructure!W670","v":0},0,{"$f":"[1]Infrastructure!Z670","v":0},{"$f":"[1]Infrastructure!Z670","v":0},0,{"$f":"[1]Infrastructure!AB670","v":0},{"$f":"[1]Infrastructure!AB670","v":0},0,{"$f":"[1]Infrastructure!AC670","v":0},{"$f":"[1]Infrastructure!AD670","v":0},{"$f":"[1]Infrastructure!AE670","v":0},{"$f":"[1]Infrastructure!AF670","v":0},{"$f":"[1]Infrastructure!AG670","v":0},{"$f":"[1]Infrastructure!AH670","v":0},0]
[0,null,null,null,null,null,{"$f":"[1]Infrastructure!G671","v":0},{"$f":"[1]Infrastructure!H671","v":0},{"$f":"[1]Infrastructure!I671","v":0},{"$f":"[1]Infrastructure!J671","v":0},{"$f":"[1]Infrastructure!K671","v":0},{"$f":"[1]Infrastructure!L671","v":0},{"$f":"[1]Infrastructure!M671","v":0},{"$f":"[1]Infrastructure!N671","v":0},{"$f":"[1]Infrastructure!O671","v":0},{"$f":"[1]Infrastructure!Q671","v":0},{"$f":"[1]Infrastructure!R671","v":0},{"$f":"[1]Infrastructure!T671","v":0},{"$f":"[1]Infrastructure!W671","v":0},{"$f":"[1]Infrastructure!W671","v":0},0,{"$f":"[1]Infrastructure!Z671","v":0},{"$f":"[1]Infrastructure!Z671","v":0},0,{"$f":"[1]Infrastructure!AB671","v":0},{"$f":"[1]Infrastructure!AB671","v":0},0,{"$f":"[1]Infrastructure!AC671","v":0},{"$f":"[1]Infrastructure!AD671","v":0},{"$f":"[1]Infrastructure!AE671","v":0},{"$f":"[1]Infrastructure!AF671","v":0},{"$f":"[1]Infrastructure!AG671","v":0},{"$f":"[1]Infrastructure!AH671","v":0},0]
[0,null,null,null,null,null,{"$f":"[1]Infrastructure!G672","v":0},{"$f":"[1]Infrastructure!H672","v":0},{"$f":"[1]Infrastructure!I672","v":0},{"$f":"[1]Infrastructure!J672","v":0},{"$f":"[1]Infrastructure!K672","v":0},{"$f":"[1]Infrastructure!L672","v":0},{"$f":"[1]Infrastructure!M672","v":0},{"$f":"[1]Infrastructure!N672","v":0},{"$f":"[1]Infrastructure!O672","v":0},{"$f":"[1]Infrastructure!Q672","v":0},{"$f":"[1]Infrastructure!R672","v":0},{"$f":"[1]Infrastructure!T672","v":0},{"$f":"[1]Infrastructure!W672","v":0},{"$f":"[1]Infrastructure!W672","v":0},0,{"$f":"[1]Infrastructure!Z672","v":0},{"$f":"[1]Infrastructure!Z672","v":0},0,{"$f":"[1]Infrastructure!AB672","v":0},{"$f":"[1]Infrastructure!AB672","v":0},0,{"$f":"[1]Infrastructure!AC672","v":0},{"$f":"[1]Infrastructure!AD672","v":0},{"$f":"[1]Infrastructure!AE672","v":0},{"$f":"[1]Infrastructure!AF672","v":0},{"$f":"[1]Infrastructure!AG672","v":0},{"$f":"[1]Infrastructure!AH672","v":0},0]
[0,null,null,null,null,null,{"$f":"[1]Infrastructure!G673","v":0},{"$f":"[1]Infrastructure!H673","v":0},{"$f":"[1]Infrastructure!I673","v":0},{"$f":"[1]Infrastructure!J673","v":0},{"$f":"[1]Infrastructure!K673","v":0},{"$f":"[1]Infrastructure!L673","v":0},{"$f":"[1]Infrastructure!M673","v":0},{"$f":"[1]Infrastructure!N673","v":0},{"$f":"[1]Infrastructure!O673","v":0},{"$f":"[1]Infrastructure!Q673","v":0},{"$f":"[1]Infrastructure!R673","v":0},{"$f":"[1]Infrastructure!T673","v":0},{"$f":"[1]Infrastructure!W673","v":0},{"$f":"[1]Infrastructure!W673","v":0},0,{"$f":"[1]Infrastructure!Z673","v":0},{"$f":"[1]Infrastructure!Z673","v":0},0,{"$f":"[1]Infrastructure!AB673","v":0},{"$f":"[1]Infrastructure!AB673","v":0},0,{"$f":"[1]Infrastructure!AC673","v":0},{"$f":"[1]Infrastructure!AD673","v":0},{"$f":"[1]Infrastructure!AE673","v":0},{"$f":"[1]Infrastructure!AF673","v":0},{"$f":"[1]Infrastructure!AG673","v":0},{"$f":"[1]Infrastructure!AH673","v":0},0]
[0,null,null,null,null,null,{"$f":"[1]Infrastructure!G674","v":0},{"$f":"[1]Infrastructure!H674","v":0},{"$f":"[1]Infrastructure!I674","v":0},{"$f":"[1]Infrastructure!J674","v":0},{"$f":"[1]Infrastructure!K674","v":0},{"$f":"[1]Infrastructure!L674","v":0},{"$f":"[1]Infrastructure!M674","v":0},{"$f":"[1]Infrastructure!N674","v":0},{"$f":"[1]Infrastructure!O674","v":0},{"$f":"[1]Infrastructure!Q674","v":0},{"$f":"[1]Infrastructure!R674","v":0},{"$f":"[1]Infrastructure!T674","v":0},{"$f":"[1]Infrastructure!W674","v":0},{"$f":"[1]Infrastructure!W674","v":0},0,{"$f":"[1]Infrastructure!Z674","v":0},{"$f":"[1]Infrastructure!Z674","v":0},0,{"$f":"[1]Infrastructure!AB674","v":0},{"$f":"[1]Infrastructure!AB674","v":0},0,{"$f":"[1]Infrastructure!AC674","v":0},{"$f":"[1]Infrastructure!AD674","v":0},{"$f":"[1]Infrastructure!AE674","v":0},{"$f":"[1]Infrastructure!AF674","v":0},{"$f":"[1]Infrastructure!AG674","v":0},{"$f":"[1]Infrastructure!AH674","v":0},0]
[0,null,null,null,null,null,{"$f":"[1]Infrastructure!G675","v":0},{"$f":"[1]Infrastructure!H675","v":0},{"$f":"[1]Infrastructure!I675","v":0},{"$f":"[1]Infrastructure!J675","v":0},{"$f":"[1]Infrastructure!K675","v":0},{"$f":"[1]Infrastructure!L675","v":0},{"$f":"[1]Infrastructure!M675","v":0},{"$f":"[1]Infrastructure!N675","v":0},{"$f":"[1]Infrastructure!O675","v":0},{"$f":"[1]Infrastructure!Q675","v":0},{"$f":"[1]Infrastructure!R675","v":0},{"$f":"[1]Infrastructure!T675","v":0},{"$f":"[1]Infrastructure!W675","v":0},{"$f":"[1]Infrastructure!W675","v":0},0,{"$f":"[1]Infrastructure!Z675","v":0},{"$f":"[1]Infrastructure!Z675","v":0},0,{"$f":"[1]Infrastructure!AB675","v":0},{"$f":"[1]Infrastructure!AB675","v":0},0,{"$f":"[1]Infrastructure!AC675","v":0},{"$f":"[1]Infrastructure!AD675","v":0},{"$f":"[1]Infrastructure!AE675","v":0},{"$f":"[1]Infrastructure!AF675","v":0},{"$f":"[1]Infrastructure!AG675","v":0},{"$f":"[1]Infrastructure!AH675","v":0},0]
[0,null,null,null,null,null,{"$f":"[1]Infrastructure!G676","v":0},{"$f":"[1]Infrastructure!H676","v":0},{"$f":"[1]Infrastructure!I676","v":0},{"$f":"[1]Infrastructure!J676","v":0},{"$f":"[1]Infrastructure!K676","v":0},{"$f":"[1]Infrastructure!L676","v":0},{"$f":"[1]Infrastructure!M676","v":0},{"$f":"[1]Infrastructure!N676","v":0},{"$f":"[1]Infrastructure!O676","v":0},{"$f":"[1]Infrastructure!Q676","v":0},{"$f":"[1]Infrastructure!R676","v":0},{"$f":"[1]Infrastructure!T676","v":0},{"$f":"[1]Infrastructure!W676","v":0},{"$f":"[1]Infrastructure!W676","v":0},0,{"$f":"[1]Infrastructure!Z676","v":0},{"$f":"[1]Infrastructure!Z676","v":0},0,{"$f":"[1]Infrastructure!AB676","v":0},{"$f":"[1]Infrastructure!AB676","v":0},0,{"$f":"[1]Infrastructure!AC676","v":0},{"$f":"[1]Infrastructure!AD676","v":0},{"$f":"[1]Infrastructure!AE676","v":0},{"$f":"[1]Infrastructure!AF676","v":0},{"$f":"[1]Infrastructure!AG676","v":0},{"$f":"[1]Infrastructure!AH676","v":0},0]
[0,null,null,null,null,null,{"$f":"[1]Infrastructure!G677","v":0},{"$f":"[1]Infrastructure!H677","v":0},{"$f":"[1]Infrastructure!I677","v":0},{"$f":"[1]Infrastructure!J677","v":0},{"$f":"[1]Infrastructure!K677","v":0},{"$f":"[1]Infrastructure!L677","v":0},{"$f":"[1]Infrastructure!M677","v":0},{"$f":"[1]Infrastructure!N677","v":0},{"$f":"[1]Infrastructure!O677","v":0},{"$f":"[1]Infrastructure!Q677","v":0},{"$f":"[1]Infrastructure!R677","v":0},{"$f":"[1]Infrastructure!T677","v":0},{"$f":"[1]Infrastructure!W677","v":0},{"$f":"[1]Infrastructure!W677","v":0},0,{"$f":"[1]Infrastructure!Z677","v":0},{"$f":"[1]Infrastructure!Z677","v":0},0,{"$f":"[1]Infrastructure!AB677","v":0},{"$f":"[1]Infrastructure!AB677","v":0},0,{"$f":"[1]Infrastructure!AC677","v":0},{"$f":"[1]Infrastructure!AD677","v":0},{"$f":"[1]Infrastructure!AE677","v":0},{"$f":"[1]Infrastructure!AF677","v":0},{"$f":"[1]Infrastructure!AG677","v":0},{"$f":"[1]Infrastructure!AH677","v":0},0]
[0,null,null,null,null,null,{"$f":"[1]Infrastructure!G678","v":0},{"$f":"[1]Infrastructure!H678","v":0},{"$f":"[1]Infrastructure!I678","v":0},{"$f":"[1]Infrastructure!J678","v":0},{"$f":"[1]Infrastructure!K678","v":0},{"$f":"[1]Infrastructure!L678","v":0},{"$f":"[1]Infrastructure!M678","v":0},{"$f":"[1]Infrastructure!N678","v":0},{"$f":"[1]Infrastructure!O678","v":0},{"$f":"[1]Infrastructure!Q678","v":0},{"$f":"[1]Infrastructure!R678","v":0},{"$f":"[1]Infrastructure!T678","v":0},{"$f":"[1]Infrastructure!W678","v":0},{"$f":"[1]Infrastructure!W678","v":0},0,{"$f":"[1]Infrastructure!Z678","v":0},{"$f":"[1]Infrastructure!Z678","v":0},0,{"$f":"[1]Infrastructure!AB678","v":0},{"$f":"[1]Infrastructure!AB678","v":0},0,{"$f":"[1]Infrastructure!AC678","v":0},{"$f":"[1]Infrastructure!AD678","v":0},{"$f":"[1]Infrastructure!AE678","v":0},{"$f":"[1]Infrastructure!AF678","v":0},{"$f":"[1]Infrastructure!AG678","v":0},{"$f":"[1]Infrastructure!AH678","v":0},0]
[0,null,null,null,null,null,{"$f":"[1]Infrastructure!G679","v":0},{"$f":"[1]Infrastructure!H679","v":0},{"$f":"[1]Infrastructure!I679","v":0},{"$f":"[1]Infrastructure!J679","v":0},{"$f":"[1]Infrastructure!K679","v":0},{"$f":"[1]Infrastructure!L679","v":0},{"$f":"[1]Infrastructure!M679","v":0},{"$f":"[1]Infrastructure!N679","v":0},{"$f":"[1]Infrastructure!O679","v":0},{"$f":"[1]Infrastructure!Q679","v":0},{"$f":"[1]Infrastructure!R679","v":0},{"$f":"[1]Infrastructure!T679","v":0},{"$f":"[1]Infrastructure!W679","v":0},{"$f":"[1]Infrastructure!W679","v":0},0,{"$f":"[1]Infrastructure!Z679","v":0},{"$f":"[1]Infrastructure!Z679","v":0},0,{"$f":"[1]Infrastructure!AB679","v":0},{"$f":"[1]Infrastructure!AB679","v":0},0,{"$f":"[1]Infrastructure!AC679","v":0},{"$f":"[1]Infrastructure!AD679","v":0},{"$f":"[1]Infrastructure!AE679","v":0},{"$f":"[1]Infrastructure!AF679","v":0},{"$f":"[1]Infrastructure!AG679","v":0},{"$f":"[1]Infrastructure!AH679","v":0},0]
[0,null,null,null,null,null,{"$f":"[1]Infrastructure!G680","v":0},{"$f":"[1]Infrastructure!H680","v":0},{"$f":"[1]Infrastructure!I680","v":0},{"$f":"[1]Infrastructure!J680","v":0},{"$f":"[1]Infrastructure!K680","v":0},{"$f":"[1]Infrastructure!L680","v":0},{"$f":"[1]Infrastructure!M680","v":0},{"$f":"[1]Infrastructure!N680","v":0},{"$f":"[1]Infrastructure!O680","v":0},{"$f":"[1]Infrastructure!Q680","v":0},{"$f":"[1]Infrastructure!R680","v":0},{"$f":"[1]Infrastructure!T680","v":0},{"$f":"[1]Infrastructure!W680","v":0},{"$f":"[1]Infrastructure!W680","v":0},0,{"$f":"[1]Infrastructure!Z680","v":0},{"$f":"[1]Infrastructure!Z680","v":0},0,{"$f":"[1]Infrastructure!AB680","v":0},{"$f":"[1]Infrastructure!AB680","v":0},0,{"$f":"[1]Infrastructure!AC680","v":0},{"$f":"[1]Infrastructure!AD680","v":0},{"$f":"[1]Infrastructure!AE680","v":0},{"$f":"[1]Infrastructure!AF680","v":0},{"$f":"[1]Infrastructure!AG680","v":0},{"$f":"[1]Infrastructure!AH680","v":0},0]
[0,null,null,null,null,null,{"$f":"[1]Infrastructure!G681","v":0},{"$f":"[1]Infrastructure!H681","v":0},{"$f":"[1]Infrastructure!I681","v":0},{"$f":"[1]Infrastructure!J681","v":0},{"$f":"[1]Infrastructure!K681","v":0},{"$f":"[1]Infrastructure!L681","v":0},{"$f":"[1]Infrastructure!M681","v":0},{"$f":"[1]Infrastructure!N681","v":0},{"$f":"[1]Infrastructure!O681","v":0},{"$f":"[1]Infrastructure!Q681","v":0},{"$f":"[1]Infrastructure!R681","v":0},{"$f":"[1]Infrastructure!T681","v":0},{"$f":"[1]Infrastructure!W681","v":0},{"$f":"[1]Infrastructure!W681","v":0},0,{"$f":"[1]Infrastructure!Z681","v":0},{"$f":"[1]Infrastructure!Z681","v":0},0,{"$f":"[1]Infrastructure!AB681","v":0},{"$f":"[1]Infrastructure!AB681","v":0},0,{"$f":"[1]Infrastructure!AC681","v":0},{"$f":"[1]Infrastructure!AD681","v":0},{"$f":"[1]Infrastructure!AE681","v":0},{"$f":"[1]Infrastructure!AF681","v":0},{"$f":"[1]Infrastructure!AG681","v":0},{"$f":"[1]Infrastructure!AH681","v":0},0]
[0,null,null,null,null,null,{"$f":"[1]Infrastructure!G682","v":0},{"$f":"[1]Infrastructure!H682","v":0},{"$f":"[1]Infrastructure!I682","v":0},{"$f":"[1]Infrastructure!J682","v":0},{"$f":"[1]Infrastructure!K682","v":0},{"$f":"[1]Infrastructure!L682","v":0},{"$f":"[1]Infrastructure!M682","v":0},{"$f":"[1]Infrastructure!N682","v":0},{"$f":"[1]Infrastructure!O682","v":0},{"$f":"[1]Infrastructure!Q682","v":0},{"$f":"[1]Infrastructure!R682","v":0},{"$f":"[1]Infrastructure!T682","v":0},{"$f":"[1]Infrastructure!W682","v":0},{"$f":"[1]Infrastructure!W682","v":0},0,{"$f":"[1]Infrastructure!Z682","v":0},{"$f":"[1]Infrastructure!Z682","v":0},0,{"$f":"[1]Infrastructure!AB682","v":0},{"$f":"[1]Infrastructure!AB682","v":0},0,{"$f":"[1]Infrastructure!AC682","v":0},{"$f":"[1]Infrastructure!AD682","v":0},{"$f":"[1]Infrastructure!AE682","v":0},{"$f":"[1]Infrastructure!AF682","v":0},{"$f":"[1]Infrastructure!AG682","v":0},{"$f":"[1]Infrastructure!AH682","v":0},0]
[0,null,null,null,null,null,{"$f":"[1]Infrastructure!G683","v":0},{"$f":"[1]Infrastructure!H683","v":0},{"$f":"[1]Infrastructure!I683","v":0},{"$f":"[1]Infrastructure!J683","v":0},{"$f":"[1]Infrastructure!K683","v":0},{"$f":"[1]Infrastructure!L683","v":0},{"$f":"[1]Infrastructure!M683","v":0},{"$f":"[1]Infrastructure!N683","v":0},{"$f":"[1]Infrastructure!O683","v":0},{"$f":"[1]Infrastructure!Q683","v":0},{"$f":"[1]Infrastructure!R683","v":0},{"$f":"[1]Infrastructure!T683","v":0},{"$f":"[1]Infrastructure!W683","v":0},{"$f":"[1]Infrastructure!W683","v":0},0,{"$f":"[1]Infrastructure!Z683","v":0},{"$f":"[1]Infrastructure!Z683","v":0},0,{"$f":"[1]Infrastructure!AB683","v":0},{"$f":"[1]Infrastructure!AB683","v":0},0,{"$f":"[1]Infrastructure!AC683","v":0},{"$f":"[1]Infrastructure!AD683","v":0},{"$f":"[1]Infrastructure!AE683","v":0},{"$f":"[1]Infrastructure!AF683","v":0},{"$f":"[1]Infrastructure!AG683","v":0},{"$f":"[1]Infrastructure!AH683","v":0},0]
[0,null,null,null,null,null,{"$f":"[1]Infrastructure!G684","v":0},{"$f":"[1]Infrastructure!H684","v":0},{"$f":"[1]Infrastructure!I684","v":0},{"$f":"[1]Infrastructure!J684","v":0},{"$f":"[1]Infrastructure!K684","v":0},{"$f":"[1]Infrastructure!L684","v":0},{"$f":"[1]Infrastructure!M684","v":0},{"$f":"[1]Infrastructure!N684","v":0},{"$f":"[1]Infrastructure!O684","v":0},{"$f":"[1]Infrastructure!Q684","v":0},{"$f":"[1]Infrastructure!R684","v":0},{"$f":"[1]Infrastructure!T684","v":0},{"$f":"[1]Infrastructure!W684","v":0},{"$f":"[1]Infrastructure!W684","v":0},0,{"$f":"[1]Infrastructure!Z684","v":0},{"$f":"[1]Infrastructure!Z684","v":0},0,{"$f":"[1]Infrastructure!AB684","v":0},{"$f":"[1]Infrastructure!AB684","v":0},0,{"$f":"[1]Infrastructure!AC684","v":0},{"$f":"[1]Infrastructure!AD684","v":0},{"$f":"[1]Infrastructure!AE684","v":0},{"$f":"[1]Infrastructure!AF684","v":0},{"$f":"[1]Infrastructure!AG684","v":0},{"$f":"[1]Infrastructure!AH684","v":0},0]
[0,null,null,null,null,null,{"$f":"[1]Infrastructure!G685","v":0},{"$f":"[1]Infrastructure!H685","v":0},{"$f":"[1]Infrastructure!I685","v":0},{"$f":"[1]Infrastructure!J685","v":0},{"$f":"[1]Infrastructure!K685","v":0},{"$f":"[1]Infrastructure!L685","v":0},{"$f":"[1]Infrastructure!M685","v":0},{"$f":"[1]Infrastructure!N685","v":0},{"$f":"[1]Infrastructure!O685","v":0},{"$f":"[1]Infrastructure!Q685","v":0},{"$f":"[1]Infrastructure!R685","v":0},{"$f":"[1]Infrastructure!T685","v":0},{"$f":"[1]Infrastructure!W685","v":0},{"$f":"[1]Infrastructure!W685","v":0},0,{"$f":"[1]Infrastructure!Z685","v":0},{"$f":"[1]Infrastructure!Z685","v":0},0,{"$f":"[1]Infrastructure!AB685","v":0},{"$f":"[1]Infrastructure!AB685","v":0},0,{"$f":"[1]Infrastructure!AC685","v":0},{"$f":"[1]Infrastructure!AD685","v":0},{"$f":"[1]Infrastructure!AE685","v":0},{"$f":"[1]Infrastructure!AF685","v":0},{"$f":"[1]Infrastructure!AG685","v":0},{"$f":"[1]Infrastructure!AH685","v":0},0]
[0,null,null,null,null,null,{"$f":"[1]Infrastructure!G686","v":0},{"$f":"[1]Infrastructure!H686","v":0},{"$f":"[1]Infrastructure!I686","v":0},{"$f":"[1]Infrastructure!J686","v":0},{"$f":"[1]Infrastructure!K686","v":0},{"$f":"[1]Infrastructure!L686","v":0},{"$f":"[1]Infrastructure!M686","v":0},{"$f":"[1]Infrastructure!N686","v":0},{"$f":"[1]Infrastructure!O686","v":0},{"$f":"[1]Infrastructure!Q686","v":0},{"$f":"[1]Infrastructure!R686","v":0},{"$f":"[1]Infrastructure!T686","v":0},{"$f":"[1]Infrastructure!W686","v":0},{"$f":"[1]Infrastructure!W686","v":0},0,{"$f":"[1]Infrastructure!Z686","v":0},{"$f":"[1]Infrastructure!Z686","v":0},0,{"$f":"[1]Infrastructure!AB686","v":0},{"$f":"[1]Infrastructure!AB686","v":0},0,{"$f":"[1]Infrastructure!AC686","v":0},{"$f":"[1]Infrastructure!AD686","v":0},{"$f":"[1]Infrastructure!AE686","v":0},{"$f":"[1]Infrastructure!AF686","v":0},{"$f":"[1]Infrastructure!AG686","v":0},{"$f":"[1]Infrastructure!AH686","v":0},0]
[0,null,null,null,null,null,{"$f":"[1]Infrastructure!G687","v":0},{"$f":"[1]Infrastructure!H687","v":0},{"$f":"[1]Infrastructure!I687","v":0},{"$f":"[1]Infrastructure!J687","v":0},{"$f":"[1]Infrastructure!K687","v":0},{"$f":"[1]Infrastructure!L687","v":0},{"$f":"[1]Infrastructure!M687","v":0},{"$f":"[1]Infrastructure!N687","v":0},{"$f":"[1]Infrastructure!O687","v":0},{"$f":"[1]Infrastructure!Q687","v":0},{"$f":"[1]Infrastructure!R687","v":0},{"$f":"[1]Infrastructure!T687","v":0},{"$f":"[1]Infrastructure!W687","v":0},{"$f":"[1]Infrastructure!W687","v":0},0,{"$f":"[1]Infrastructure!Z687","v":0},{"$f":"[1]Infrastructure!Z687","v":0},0,{"$f":"[1]Infrastructure!AB687","v":0},{"$f":"[1]Infrastructure!AB687","v":0},0,{"$f":"[1]Infrastructure!AC687","v":0},{"$f":"[1]Infrastructure!AD687","v":0},{"$f":"[1]Infrastructure!AE687","v":0},{"$f":"[1]Infrastructure!AF687","v":0},{"$f":"[1]Infrastructure!AG687","v":0},{"$f":"[1]Infrastructure!AH687","v":0},0]
[0,null,null,null,null,null,{"$f":"[1]Infrastructure!G688","v":0},{"$f":"[1]Infrastructure!H688","v":0},{"$f":"[1]Infrastructure!I688","v":0},{"$f":"[1]Infrastructure!J688","v":0},{"$f":"[1]Infrastructure!K688","v":0},{"$f":"[1]Infrastructure!L688","v":0},{"$f":"[1]Infrastructure!M688","v":0},{"$f":"[1]Infrastructure!N688","v":0},{"$f":"[1]Infrastructure!O688","v":0},{"$f":"[1]Infrastructure!Q688","v":0},{"$f":"[1]Infrastructure!R688","v":0},{"$f":"[1]Infrastructure!T688","v":0},{"$f":"[1]Infrastructure!W688","v":0},{"$f":"[1]Infrastructure!W688","v":0},0,{"$f":"[1]Infrastructure!Z688","v":0},{"$f":"[1]Infrastructure!Z688","v":0},0,{"$f":"[1]Infrastructure!AB688","v":0},{"$f":"[1]Infrastructure!AB688","v":0},0,{"$f":"[1]Infrastructure!AC688","v":0},{"$f":"[1]Infrastructure!AD688","v":0},{"$f":"[1]Infrastructure!AE688","v":0},{"$f":"[1]Infrastructure!AF688","v":0},{"$f":"[1]Infrastructure!AG688","v":0},{"$f":"[1]Infrastructure!AH688","v":0},0]
[0,null,null,null,null,null,{"$f":"[1]Infrastructure!G689","v":0},{"$f":"[1]Infrastructure!H689","v":0},{"$f":"[1]Infrastructure!I689","v":0},{"$f":"[1]Infrastructure!J689","v":0},{"$f":"[1]Infrastructure!K689","v":0},{"$f":"[1]Infrastructure!L689","v":0},{"$f":"[1]Infrastructure!M689","v":0},{"$f":"[1]Infrastructure!N689","v":0},{"$f":"[1]Infrastructure!O689","v":0},{"$f":"[1]Infrastructure!Q689","v":0},{"$f":"[1]Infrastructure!R689","v":0},{"$f":"[1]Infrastructure!T689","v":0},{"$f":"[1]Infrastructure!W689","v":0},{"$f":"[1]Infrastructure!W689","v":0},0,{"$f":"[1]Infrastructure!Z689","v":0},{"$f":"[1]Infrastructure!Z689","v":0},0,{"$f":"[1]Infrastructure!AB689","v":0},{"$f":"[1]Infrastructure!AB689","v":0},0,{"$f":"[1]Infrastructure!AC689","v":0},{"$f":"[1]Infrastructure!AD689","v":0},{"$f":"[1]Infrastructure!AE689","v":0},{"$f":"[1]Infrastructure!AF689","v":0},{"$f":"[1]Infrastructure!AG689","v":0},{"$f":"[1]Infrastructure!AH689","v":0},0]
[0,null,null,null,null,null,{"$f":"[1]Infrastructure!G690","v":0},{"$f":"[1]Infrastructure!H690","v":0},{"$f":"[1]Infrastructure!I690","v":0},{"$f":"[1]Infrastructure!J690","v":0},{"$f":"[1]Infrastructure!K690","v":0},{"$f":"[1]Infrastructure!L690","v":0},{"$f":"[1]Infrastructure!M690","v":0},{"$f":"[1]Infrastructure!N690","v":0},{"$f":"[1]Infrastructure!O690","v":0},{"$f":"[1]Infrastructure!Q690","v":0},{"$f":"[1]Infrastructure!R690","v":0},{"$f":"[1]Infrastructure!T690","v":0},{"$f":"[1]Infrastructure!W690","v":0},{"$f":"[1]Infrastructure!W690","v":0},0,{"$f":"[1]Infrastructure!Z690","v":0},{"$f":"[1]Infrastructure!Z690","v":0},0,{"$f":"[1]Infrastructure!AB690","v":0},{"$f":"[1]Infrastructure!AB690","v":0},0,{"$f":"[1]Infrastructure!AC690","v":0},{"$f":"[1]Infrastructure!AD690","v":0},{"$f":"[1]Infrastructure!AE690","v":0},{"$f":"[1]Infrastructure!AF690","v":0},{"$f":"[1]Infrastructure!AG690","v":0},{"$f":"[1]Infrastructure!AH690","v":0},0]
[0,null,null,null,null,null,{"$f":"[1]Infrastructure!G691","v":0},{"$f":"[1]Infrastructure!H691","v":0},{"$f":"[1]Infrastructure!I691","v":0},{"$f":"[1]Infrastructure!J691","v":0},{"$f":"[1]Infrastructure!K691","v":0},{"$f":"[1]Infrastructure!L691","v":0},{"$f":"[1]Infrastructure!M691","v":0},{"$f":"[1]Infrastructure!N691","v":0},{"$f":"[1]Infrastructure!O691","v":0},{"$f":"[1]Infrastructure!Q691","v":0},{"$f":"[1]Infrastructure!R691","v":0},{"$f":"[1]Infrastructure!T691","v":0},{"$f":"[1]Infrastructure!W691","v":0},{"$f":"[1]Infrastructure!W691","v":0},0,{"$f":"[1]Infrastructure!Z691","v":0},{"$f":"[1]Infrastructure!Z691","v":0},0,{"$f":"[1]Infrastructure!AB691","v":0},{"$f":"[1]Infrastructure!AB691","v":0},0,{"$f":"[1]Infrastructure!AC691","v":0},{"$f":"[1]Infrastructure!AD691","v":0},{"$f":"[1]Infrastructure!AE691","v":0},{"$f":"[1]Infrastructure!AF691","v":0},{"$f":"[1]Infrastructure!AG691","v":0},{"$f":"[1]Infrastructure!AH691","v":0},0]
[0,null,null,null,null,null,{"$f":"[1]Infrastructure!G692","v":0},{"$f":"[1]Infrastructure!H692","v":0},{"$f":"[1]Infrastructure!I692","v":0},{"$f":"[1]Infrastructure!J692","v":0},{"$f":"[1]Infrastructure!K692","v":0},{"$f":"[1]Infrastructure!L692","v":0},{"$f":"[1]Infrastructure!M692","v":0},{"$f":"[1]Infrastructure!N692","v":0},{"$f":"[1]Infrastructure!O692","v":0},{"$f":"[1]Infrastructure!Q692","v":0},{"$f":"[1]Infrastructure!R692","v":0},{"$f":"[1]Infrastructure!T692","v":0},{"$f":"[1]Infrastructure!W692","v":0},{"$f":"[1]Infrastructure!W692","v":0},0,{"$f":"[1]Infrastructure!Z692","v":0},{"$f":"[1]Infrastructure!Z692","v":0},0,{"$f":"[1]Infrastructure!AB692","v":0},{"$f":"[1]Infrastructure!AB692","v":0},0,{"$f":"[1]Infrastructure!AC692","v":0},{"$f":"[1]Infrastructure!AD692","v":0},{"$f":"[1]Infrastructure!AE692","v":0},{"$f":"[1]Infrastructure!AF692","v":0},{"$f":"[1]Infrastructure!AG692","v":0},{"$f":"[1]Infrastructure!AH692","v":0},0]
[0,null,null,null,null,null,{"$f":"[1]Infrastructure!G693","v":0},{"$f":"[1]Infrastructure!H693","v":0},{"$f":"[1]Infrastructure!I693","v":0},{"$f":"[1]Infrastructure!J693","v":0},{"$f":"[1]Infrastructure!K693","v":0},{"$f":"[1]Infrastructure!L693","v":0},{"$f":"[1]Infrastructure!M693","v":0},{"$f":"[1]Infrastructure!N693","v":0},{"$f":"[1]Infrastructure!O693","v":0},{"$f":"[1]Infrastructure!Q693","v":0},{"$f":"[1]Infrastructure!R693","v":0},{"$f":"[1]Infrastructure!T693","v":0},{"$f":"[1]Infrastructure!W693","v":0},{"$f":"[1]Infrastructure!W693","v":0},0,{"$f":"[1]Infrastructure!Z693","v":0},{"$f":"[1]Infrastructure!Z693","v":0},0,{"$f":"[1]Infrastructure!AB693","v":0},{"$f":"[1]Infrastructure!AB693","v":0},0,{"$f":"[1]Infrastructure!AC693","v":0},{"$f":"[1]Infrastructure!AD693","v":0},{"$f":"[1]Infrastructure!AE693","v":0},{"$f":"[1]Infrastructure!AF693","v":0},{"$f":"[1]Infrastructure!AG693","v":0},{"$f":"[1]Infrastructure!AH693","v":0},0]
[0,null,null,null,null,null,{"$f":"[1]Infrastructure!G694","v":0},{"$f":"[1]Infrastructure!H694","v":0},{"$f":"[1]Infrastructure!I694","v":0},{"$f":"[1]Infrastructure!J694","v":0},{"$f":"[1]Infrastructure!K694","v":0},{"$f":"[1]Infrastructure!L694","v":0},{"$f":"[1]Infrastructure!M694","v":0},{"$f":"[1]Infrastructure!N694","v":0},{"$f":"[1]Infrastructure!O694","v":0},{"$f":"[1]Infrastructure!Q694","v":0},{"$f":"[1]Infrastructure!R694","v":0},{"$f":"[1]Infrastructure!T694","v":0},{"$f":"[1]Infrastructure!W694","v":0},{"$f":"[1]Infrastructure!W694","v":0},0,{"$f":"[1]Infrastructure!Z694","v":0},{"$f":"[1]Infrastructure!Z694","v":0},0,{"$f":"[1]Infrastructure!AB694","v":0},{"$f":"[1]Infrastructure!AB694","v":0},0,{"$f":"[1]Infrastructure!AC694","v":0},{"$f":"[1]Infrastructure!AD694","v":0},{"$f":"[1]Infrastructure!AE694","v":0},{"$f":"[1]Infrastructure!AF694","v":0},{"$f":"[1]Infrastructure!AG694","v":0},{"$f":"[1]Infrastructure!AH694","v":0},0]
[0,null,null,null,null,null,{"$f":"[1]Infrastructure!G695","v":0},{"$f":"[1]Infrastructure!H695","v":0},{"$f":"[1]Infrastructure!I695","v":0},{"$f":"[1]Infrastructure!J695","v":0},{"$f":"[1]Infrastructure!K695","v":0},{"$f":"[1]Infrastructure!L695","v":0},{"$f":"[1]Infrastructure!M695","v":0},{"$f":"[1]Infrastructure!N695","v":0},{"$f":"[1]Infrastructure!O695","v":0},{"$f":"[1]Infrastructure!Q695","v":0},{"$f":"[1]Infrastructure!R695","v":0},{"$f":"[1]Infrastructure!T695","v":0},{"$f":"[1]Infrastructure!W695","v":0},{"$f":"[1]Infrastructure!W695","v":0},0,{"$f":"[1]Infrastructure!Z695","v":0},{"$f":"[1]Infrastructure!Z695","v":0},0,{"$f":"[1]Infrastructure!AB695","v":0},{"$f":"[1]Infrastructure!AB695","v":0},0,{"$f":"[1]Infrastructure!AC695","v":0},{"$f":"[1]Infrastructure!AD695","v":0},{"$f":"[1]Infrastructure!AE695","v":0},{"$f":"[1]Infrastructure!AF695","v":0},{"$f":"[1]Infrastructure!AG695","v":0},{"$f":"[1]Infrastructure!AH695","v":0},0]
[0,null,null,null,null,null,{"$f":"[1]Infrastructure!G696","v":0},{"$f":"[1]Infrastructure!H696","v":0},{"$f":"[1]Infrastructure!I696","v":0},{"$f":"[1]Infrastructure!J696","v":0},{"$f":"[1]Infrastructure!K696","v":0},{"$f":"[1]Infrastructure!L696","v":0},{"$f":"[1]Infrastructure!M696","v":0},{"$f":"[1]Infrastructure!N696","v":0},{"$f":"[1]Infrastructure!O696","v":0},{"$f":"[1]Infrastructure!Q696","v":0},{"$f":"[1]Infrastructure!R696","v":0},{"$f":"[1]Infrastructure!T696","v":0},{"$f":"[1]Infrastructure!W696","v":0},{"$f":"[1]Infrastructure!W696","v":0},0,{"$f":"[1]Infrastructure!Z696","v":0},{"$f":"[1]Infrastructure!Z696","v":0},0,{"$f":"[1]Infrastructure!AB696","v":0},{"$f":"[1]Infrastructure!AB696","v":0},0,{"$f":"[1]Infrastructure!AC696","v":0},{"$f":"[1]Infrastructure!AD696","v":0},{"$f":"[1]Infrastructure!AE696","v":0},{"$f":"[1]Infrastructure!AF696","v":0},{"$f":"[1]Infrastructure!AG696","v":0},{"$f":"[1]Infrastructure!AH696","v":0},0]
[0,null,null,null,null,null,{"$f":"[1]Infrastructure!G697","v":0},{"$f":"[1]Infrastructure!H697","v":0},{"$f":"[1]Infrastructure!I697","v":0},{"$f":"[1]Infrastructure!J697","v":0},{"$f":"[1]Infrastructure!K697","v":0},{"$f":"[1]Infrastructure!L697","v":0},{"$f":"[1]Infrastructure!M697","v":0},{"$f":"[1]Infrastructure!N697","v":0},{"$f":"[1]Infrastructure!O697","v":0},{"$f":"[1]Infrastructure!Q697","v":0},{"$f":"[1]Infrastructure!R697","v":0},{"$f":"[1]Infrastructure!T697","v":0},{"$f":"[1]Infrastructure!W697","v":0},{"$f":"[1]Infrastructure!W697","v":0},0,{"$f":"[1]Infrastructure!Z697","v":0},{"$f":"[1]Infrastructure!Z697","v":0},0,{"$f":"[1]Infrastructure!AB697","v":0},{"$f":"[1]Infrastructure!AB697","v":0},0,{"$f":"[1]Infrastructure!AC697","v":0},{"$f":"[1]Infrastructure!AD697","v":0},{"$f":"[1]Infrastructure!AE697","v":0},{"$f":"[1]Infrastructure!AF697","v":0},{"$f":"[1]Infrastructure!AG697","v":0},{"$f":"[1]Infrastructure!AH697","v":0},0]
[0,null,null,null,null,null,{"$f":"[1]Infrastructure!G698","v":0},{"$f":"[1]Infrastructure!H698","v":0},{"$f":"[1]Infrastructure!I698","v":0},{"$f":"[1]Infrastructure!J698","v":0},{"$f":"[1]Infrastructure!K698","v":0},{"$f":"[1]Infrastructure!L698","v":0},{"$f":"[1]Infrastructure!M698","v":0},{"$f":"[1]Infrastructure!N698","v":0},{"$f":"[1]Infrastructure!O698","v":0},{"$f":"[1]Infrastructure!Q698","v":0},{"$f":"[1]Infrastructure!R698","v":0},{"$f":"[1]Infrastructure!T698","v":0},{"$f":"[1]Infrastructure!W698","v":0},{"$f":"[1]Infrastructure!W698","v":0},0,{"$f":"[1]Infrastructure!Z698","v":0},{"$f":"[1]Infrastructure!Z698","v":0},0,{"$f":"[1]Infrastructure!AB698","v":0},{"$f":"[1]Infrastructure!AB698","v":0},0,{"$f":"[1]Infrastructure!AC698","v":0},{"$f":"[1]Infrastructure!AD698","v":0},{"$f":"[1]Infrastructure!AE698","v":0},{"$f":"[1]Infrastructure!AF698","v":0},{"$f":"[1]Infrastructure!AG698","v":0},{"$f":"[1]Infrastructure!AH698","v":0},0]
[0,null,null,null,null,null,{"$f":"[1]Infrastructure!G699","v":0},{"$f":"[1]Infrastructure!H699","v":0},{"$f":"[1]Infrastructure!I699","v":0},{"$f":"[1]Infrastructure!J699","v":0},{"$f":"[1]Infrastructure!K699","v":0},{"$f":"[1]Infrastructure!L699","v":0},{"$f":"[1]Infrastructure!M699","v":0},{"$f":"[1]Infrastructure!N699","v":0},{"$f":"[1]Infrastructure!O699","v":0},{"$f":"[1]Infrastructure!Q699","v":0},{"$f":"[1]Infrastructure!R699","v":0},{"$f":"[1]Infrastructure!T699","v":0},{"$f":"[1]Infrastructure!W699","v":0},{"$f":"[1]Infrastructure!W699","v":0},0,{"$f":"[1]Infrastructure!Z699","v":0},{"$f":"[1]Infrastructure!Z699","v":0},0,{"$f":"[1]Infrastructure!AB699","v":0},{"$f":"[1]Infrastructure!AB699","v":0},0,{"$f":"[1]Infrastructure!AC699","v":0},{"$f":"[1]Infrastructure!AD699","v":0},{"$f":"[1]Infrastructure!AE699","v":0},{"$f":"[1]Infrastructure!AF699","v":0},{"$f":"[1]Infrastructure!AG699","v":0},{"$f":"[1]Infrastructure!AH699","v":0},0]
[0,null,null,null,null,null,{"$f":"[1]Infrastructure!G700","v":0},{"$f":"[1]Infrastructure!H700","v":0},{"$f":"[1]Infrastructure!I700","v":0},{"$f":"[1]Infrastructure!J700","v":0},{"$f":"[1]Infrastructure!K700","v":0},{"$f":"[1]Infrastructure!L700","v":0},{"$f":"[1]Infrastructure!M700","v":0},{"$f":"[1]Infrastructure!N700","v":0},{"$f":"[1]Infrastructure!O700","v":0},{"$f":"[1]Infrastructure!Q700","v":0},{"$f":"[1]Infrastructure!R700","v":0},{"$f":"[1]Infrastructure!T700","v":0},{"$f":"[1]Infrastructure!W700","v":0},{"$f":"[1]Infrastructure!W700","v":0},0,{"$f":"[1]Infrastructure!Z700","v":0},{"$f":"[1]Infrastructure!Z700","v":0},0,{"$f":"[1]Infrastructure!AB700","v":0},{"$f":"[1]Infrastructure!AB700","v":0},0,{"$f":"[1]Infrastructure!AC700","v":0},{"$f":"[1]Infrastructure!AD700","v":0},{"$f":"[1]Infrastructure!AE700","v":0},{"$f":"[1]Infrastructure!AF700","v":0},{"$f":"[1]Infrastructure!AG700","v":0},{"$f":"[1]Infrastructure!AH700","v":0},0]
[0,null,null,null,null,null,{"$f":"[1]Infrastructure!G701","v":0},{"$f":"[1]Infrastructure!H701","v":0},{"$f":"[1]Infrastructure!I701","v":0},{"$f":"[1]Infrastructure!J701","v":0},{"$f":"[1]Infrastructure!K701","v":0},{"$f":"[1]Infrastructure!L701","v":0},{"$f":"[1]Infrastructure!M701","v":0},{"$f":"[1]Infrastructure!N701","v":0},{"$f":"[1]Infrastructure!O701","v":0},{"$f":"[1]Infrastructure!Q701","v":0},{"$f":"[1]Infrastructure!R701","v":0},{"$f":"[1]Infrastructure!T701","v":0},{"$f":"[1]Infrastructure!W701","v":0},{"$f":"[1]Infrastructure!W701","v":0},0,{"$f":"[1]Infrastructure!Z701","v":0},{"$f":"[1]Infrastructure!Z701","v":0},0,{"$f":"[1]Infrastructure!AB701","v":0},{"$f":"[1]Infrastructure!AB701","v":0},0,{"$f":"[1]Infrastructure!AC701","v":0},{"$f":"[1]Infrastructure!AD701","v":0},{"$f":"[1]Infrastructure!AE701","v":0},{"$f":"[1]Infrastructure!AF701","v":0},{"$f":"[1]Infrastructure!AG701","v":0},{"$f":"[1]Infrastructure!AH701","v":0},0]
[0,null,null,null,null,null,{"$f":"[1]Infrastructure!G702","v":0},{"$f":"[1]Infrastructure!H702","v":0},{"$f":"[1]Infrastructure!I702","v":0},{"$f":"[1]Infrastructure!J702","v":0},{"$f":"[1]Infrastructure!K702","v":0},{"$f":"[1]Infrastructure!L702","v":0},{"$f":"[1]Infrastructure!M702","v":0},{"$f":"[1]Infrastructure!N702","v":0},{"$f":"[1]Infrastructure!O702","v":0},{"$f":"[1]Infrastructure!Q702","v":0},{"$f":"[1]Infrastructure!R702","v":0},{"$f":"[1]Infrastructure!T702","v":0},{"$f":"[1]Infrastructure!W702","v":0},{"$f":"[1]Infrastructure!W702","v":0},0,{"$f":"[1]Infrastructure!Z702","v":0},{"$f":"[1]Infrastructure!Z702","v":0},0,{"$f":"[1]Infrastructure!AB702","v":0},{"$f":"[1]Infrastructure!AB702","v":0},0,{"$f":"[1]Infrastructure!AC702","v":0},{"$f":"[1]Infrastructure!AD702","v":0},{"$f":"[1]Infrastructure!AE702","v":0},{"$f":"[1]Infrastructure!AF702","v":0},{"$f":"[1]Infrastructure!AG702","v":0},{"$f":"[1]Infrastructure!AH702","v":0},0]
[0,null,null,null,null,null,{"$f":"[1]Infrastructure!G703","v":0},{"$f":"[1]Infrastructure!H703","v":0},{"$f":"[1]Infrastructure!I703","v":0},{"$f":"[1]Infrastructure!J703","v":0},{"$f":"[1]Infrastructure!K703","v":0},{"$f":"[1]Infrastructure!L703","v":0},{"$f":"[1]Infrastructure!M703","v":0},{"$f":"[1]Infrastructure!N703","v":0},{"$f":"[1]Infrastructure!O703","v":0},{"$f":"[1]Infrastructure!Q703","v":0},{"$f":"[1]Infrastructure!R703","v":0},{"$f":"[1]Infrastructure!T703","v":0},{"$f":"[1]Infrastructure!W703","v":0},{"$f":"[1]Infrastructure!W703","v":0},0,{"$f":"[1]Infrastructure!Z703","v":0},{"$f":"[1]Infrastructure!Z703","v":0},0,{"$f":"[1]Infrastructure!AB703","v":0},{"$f":"[1]Infrastructure!AB703","v":0},0,{"$f":"[1]Infrastructure!AC703","v":0},{"$f":"[1]Infrastructure!AD703","v":0},{"$f":"[1]Infrastructure!AE703","v":0},{"$f":"[1]Infrastructure!AF703","v":0},{"$f":"[1]Infrastructure!AG703","v":0},{"$f":"[1]Infrastructure!AH703","v":0},0]
[0,null,null,null,null,null,{"$f":"[1]Infrastructure!G704","v":0},{"$f":"[1]Infrastructure!H704","v":0},{"$f":"[1]Infrastructure!I704","v":0},{"$f":"[1]Infrastructure!J704","v":0},{"$f":"[1]Infrastructure!K704","v":0},{"$f":"[1]Infrastructure!L704","v":0},{"$f":"[1]Infrastructure!M704","v":0},{"$f":"[1]Infrastructure!N704","v":0},{"$f":"[1]Infrastructure!O704","v":0},{"$f":"[1]Infrastructure!Q704","v":0},{"$f":"[1]Infrastructure!R704","v":0},{"$f":"[1]Infrastructure!T704","v":0},{"$f":"[1]Infrastructure!W704","v":0},{"$f":"[1]Infrastructure!W704","v":0},0,{"$f":"[1]Infrastructure!Z704","v":0},{"$f":"[1]Infrastructure!Z704","v":0},0,{"$f":"[1]Infrastructure!AB704","v":0},{"$f":"[1]Infrastructure!AB704","v":0},0,{"$f":"[1]Infrastructure!AC704","v":0},{"$f":"[1]Infrastructure!AD704","v":0},{"$f":"[1]Infrastructure!AE704","v":0},{"$f":"[1]Infrastructure!AF704","v":0},{"$f":"[1]Infrastructure!AG704","v":0},{"$f":"[1]Infrastructure!AH704","v":0},0]
[0,null,null,null,null,null,{"$f":"[1]Infrastructure!G705","v":0},{"$f":"[1]Infrastructure!H705","v":0},{"$f":"[1]Infrastructure!I705","v":0},{"$f":"[1]Infrastructure!J705","v":0},{"$f":"[1]Infrastructure!K705","v":0},{"$f":"[1]Infrastructure!L705","v":0},{"$f":"[1]Infrastructure!M705","v":0},{"$f":"[1]Infrastructure!N705","v":0},{"$f":"[1]Infrastructure!O705","v":0},{"$f":"[1]Infrastructure!Q705","v":0},{"$f":"[1]Infrastructure!R705","v":0},{"$f":"[1]Infrastructure!T705","v":0},{"$f":"[1]Infrastructure!W705","v":0},{"$f":"[1]Infrastructure!W705","v":0},0,{"$f":"[1]Infrastructure!Z705","v":0},{"$f":"[1]Infrastructure!Z705","v":0},0,{"$f":"[1]Infrastructure!AB705","v":0},{"$f":"[1]Infrastructure!AB705","v":0},0,{"$f":"[1]Infrastructure!AC705","v":0},{"$f":"[1]Infrastructure!AD705","v":0},{"$f":"[1]Infrastructure!AE705","v":0},{"$f":"[1]Infrastructure!AF705","v":0},{"$f":"[1]Infrastructure!AG705","v":0},{"$f":"[1]Infrastructure!AH705","v":0},0]
[0,null,null,null,null,null,{"$f":"[1]Infrastructure!G706","v":0},{"$f":"[1]Infrastructure!H706","v":0},{"$f":"[1]Infrastructure!I706","v":0},{"$f":"[1]Infrastructure!J706","v":0},{"$f":"[1]Infrastructure!K706","v":0},{"$f":"[1]Infrastructure!L706","v":0},{"$f":"[1]Infrastructure!M706","v":0},{"$f":"[1]Infrastructure!N706","v":0},{"$f":"[1]Infrastructure!O706","v":0},{"$f":"[1]Infrastructure!Q706","v":0},{"$f":"[1]Infrastructure!R706","v":0},{"$f":"[1]Infrastructure!T706","v":0},{"$f":"[1]Infrastructure!W706","v":0},{"$f":"[1]Infrastructure!W706","v":0},0,{"$f":"[1]Infrastructure!Z706","v":0},{"$f":"[1]Infrastructure!Z706","v":0},0,{"$f":"[1]Infrastructure!AB706","v":0},{"$f":"[1]Infrastructure!AB706","v":0},0,{"$f":"[1]Infrastructure!AC706","v":0},{"$f":"[1]Infrastructure!AD706","v":0},{"$f":"[1]Infrastructure!AE706","v":0},{"$f":"[1]Infrastructure!AF706","v":0},{"$f":"[1]Infrastructure!AG706","v":0},{"$f":"[1]Infrastructure!AH706","v":0},0]
[0,null,null,null,null,null,{"$f":"[1]Infrastructure!G707","v":0},{"$f":"[1]Infrastructure!H707","v":0},{"$f":"[1]Infrastructure!I707","v":0},{"$f":"[1]Infrastructure!J707","v":0},{"$f":"[1]Infrastructure!K707","v":0},{"$f":"[1]Infrastructure!L707","v":0},{"$f":"[1]Infrastructure!M707","v":0},{"$f":"[1]Infrastructure!N707","v":0},{"$f":"[1]Infrastructure!O707","v":0},{"$f":"[1]Infrastructure!Q707","v":0},{"$f":"[1]Infrastructure!R707","v":0},{"$f":"[1]Infrastructure!T707","v":0},{"$f":"[1]Infrastructure!W707","v":0},{"$f":"[1]Infrastructure!W707","v":0},0,{"$f":"[1]Infrastructure!Z707","v":0},{"$f":"[1]Infrastructure!Z707","v":0},0,{"$f":"[1]Infrastructure!AB707","v":0},{"$f":"[1]Infrastructure!AB707","v":0},0,{"$f":"[1]Infrastructure!AC707","v":0},{"$f":"[1]Infrastructure!AD707","v":0},{"$f":"[1]Infrastructure!AE707","v":0},{"$f":"[1]Infrastructure!AF707","v":0},{"$f":"[1]Infrastructure!AG707","v":0},{"$f":"[1]Infrastructure!AH707","v":0},0]
[0,null,null,null,null,null,{"$f":"[1]Infrastructure!G708","v":0},{"$f":"[1]Infrastructure!H708","v":0},{"$f":"[1]Infrastructure!I708","v":0},{"$f":"[1]Infrastructure!J708","v":0},{"$f":"[1]Infrastructure!K708","v":0},{"$f":"[1]Infrastructure!L708","v":0},{"$f":"[1]Infrastructure!M708","v":0},{"$f":"[1]Infrastructure!N708","v":0},{"$f":"[1]Infrastructure!O708","v":0},{"$f":"[1]Infrastructure!Q708","v":0},{"$f":"[1]Infrastructure!R708","v":0},{"$f":"[1]Infrastructure!T708","v":0},{"$f":"[1]Infrastructure!W708","v":0},{"$f":"[1]Infrastructure!W708","v":0},0,{"$f":"[1]Infrastructure!Z708","v":0},{"$f":"[1]Infrastructure!Z708","v":0},0,{"$f":"[1]Infrastructure!AB708","v":0},{"$f":"[1]Infrastructure!AB708","v":0},0,{"$f":"[1]Infrastructure!AC708","v":0},{"$f":"[1]Infrastructure!AD708","v":0},{"$f":"[1]Infrastructure!AE708","v":0},{"$f":"[1]Infrastructure!AF708","v":0},{"$f":"[1]Infrastructure!AG708","v":0},{"$f":"[1]Infrastructure!AH708","v":0},0]
[0,null,null,null,null,null,{"$f":"[1]Infrastructure!G709","v":0},{"$f":"[1]Infrastructure!H709","v":0},{"$f":"[1]Infrastructure!I709","v":0},{"$f":"[1]Infrastructure!J709","v":0},{"$f":"[1]Infrastructure!K709","v":0},{"$f":"[1]Infrastructure!L709","v":0},{"$f":"[1]Infrastructure!M709","v":0},{"$f":"[1]Infrastructure!N709","v":0},{"$f":"[1]Infrastructure!O709","v":0},{"$f":"[1]Infrastructure!Q709","v":0},{"$f":"[1]Infrastructure!R709","v":0},{"$f":"[1]Infrastructure!T709","v":0},{"$f":"[1]Infrastructure!W709","v":0},{"$f":"[1]Infrastructure!W709","v":0},0,{"$f":"[1]Infrastructure!Z709","v":0},{"$f":"[1]Infrastructure!Z709","v":0},0,{"$f":"[1]Infrastructure!AB709","v":0},{"$f":"[1]Infrastructure!AB709","v":0},0,{"$f":"[1]Infrastructure!AC709","v":0},{"$f":"[1]Infrastructure!AD709","v":0},{"$f":"[1]Infrastructure!AE709","v":0},{"$f":"[1]Infrastructure!AF709","v":0},{"$f":"[1]Infrastructure!AG709","v":0},{"$f":"[1]Infrastructure!AH709","v":0},0]
[0,null,null,null,null,null,{"$f":"[1]Infrastructure!G710","v":0},{"$f":"[1]Infrastructure!H710","v":0},{"$f":"[1]Infrastructure!I710","v":0},{"$f":"[1]Infrastructure!J710","v":0},{"$f":"[1]Infrastructure!K710","v":0},{"$f":"[1]Infrastructure!L710","v":0},{"$f":"[1]Infrastructure!M710","v":0},{"$f":"[1]Infrastructure!N710","v":0},{"$f":"[1]Infrastructure!O710","v":0},{"$f":"[1]Infrastructure!Q710","v":0},{"$f":"[1]Infrastructure!R710","v":0},{"$f":"[1]Infrastructure!T710","v":0},{"$f":"[1]Infrastructure!W710","v":0},{"$f":"[1]Infrastructure!W710","v":0},0,{"$f":"[1]Infrastructure!Z710","v":0},{"$f":"[1]Infrastructure!Z710","v":0},0,{"$f":"[1]Infrastructure!AB710","v":0},{"$f":"[1]Infrastructure!AB710","v":0},0,{"$f":"[1]Infrastructure!AC710","v":0},{"$f":"[1]Infrastructure!AD710","v":0},{"$f":"[1]Infrastructure!AE710","v":0},{"$f":"[1]Infrastructure!AF710","v":0},{"$f":"[1]Infrastructure!AG710","v":0},{"$f":"[1]Infrastructure!AH710","v":0},0]
[0,null,null,null,null,null,{"$f":"[1]Infrastructure!G711","v":0},{"$f":"[1]Infrastructure!H711","v":0},{"$f":"[1]Infrastructure!I711","v":0},{"$f":"[1]Infrastructure!J711","v":0},{"$f":"[1]Infrastructure!K711","v":0},{"$f":"[1]Infrastructure!L711","v":0},{"$f":"[1]Infrastructure!M711","v":0},{"$f":"[1]Infrastructure!N711","v":0},{"$f":"[1]Infrastructure!O711","v":0},{"$f":"[1]Infrastructure!Q711","v":0},{"$f":"[1]Infrastructure!R711","v":0},{"$f":"[1]Infrastructure!T711","v":0},{"$f":"[1]Infrastructure!W711","v":0},{"$f":"[1]Infrastructure!W711","v":0},0,{"$f":"[1]Infrastructure!Z711","v":0},{"$f":"[1]Infrastructure!Z711","v":0},0,{"$f":"[1]Infrastructure!AB711","v":0},{"$f":"[1]Infrastructure!AB711","v":0},0,{"$f":"[1]Infrastructure!AC711","v":0},{"$f":"[1]Infrastructure!AD711","v":0},{"$f":"[1]Infrastructure!AE711","v":0},{"$f":"[1]Infrastructure!AF711","v":0},{"$f":"[1]Infrastructure!AG711","v":0},{"$f":"[1]Infrastructure!AH711","v":0},0]
[0,null,null,null,null,null,{"$f":"[1]Infrastructure!G712","v":0},{"$f":"[1]Infrastructure!H712","v":0},{"$f":"[1]Infrastructure!I712","v":0},{"$f":"[1]Infrastructure!J712","v":0},{"$f":"[1]Infrastructure!K712","v":0},{"$f":"[1]Infrastructure!L712","v":0},{"$f":"[1]Infrastructure!M712","v":0},{"$f":"[1]Infrastructure!N712","v":0},{"$f":"[1]Infrastructure!O712","v":0},{"$f":"[1]Infrastructure!Q712","v":0},{"$f":"[1]Infrastructure!R712","v":0},{"$f":"[1]Infrastructure!T712","v":0},{"$f":"[1]Infrastructure!W712","v":0},{"$f":"[1]Infrastructure!W712","v":0},0,{"$f":"[1]Infrastructure!Z712","v":0},{"$f":"[1]Infrastructure!Z712","v":0},0,{"$f":"[1]Infrastructure!AB712","v":0},{"$f":"[1]Infrastructure!AB712","v":0},0,{"$f":"[1]Infrastructure!AC712","v":0},{"$f":"[1]Infrastructure!AD712","v":0},{"$f":"[1]Infrastructure!AE712","v":0},{"$f":"[1]Infrastructure!AF712","v":0},{"$f":"[1]Infrastructure!AG712","v":0},{"$f":"[1]Infrastructure!AH712","v":0},0]
[0,null,null,null,null,null,{"$f":"[1]Infrastructure!G713","v":0},{"$f":"[1]Infrastructure!H713","v":0},{"$f":"[1]Infrastructure!I713","v":0},{"$f":"[1]Infrastructure!J713","v":0},{"$f":"[1]Infrastructure!K713","v":0},{"$f":"[1]Infrastructure!L713","v":0},{"$f":"[1]Infrastructure!M713","v":0},{"$f":"[1]Infrastructure!N713","v":0},{"$f":"[1]Infrastructure!O713","v":0},{"$f":"[1]Infrastructure!Q713","v":0},{"$f":"[1]Infrastructure!R713","v":0},{"$f":"[1]Infrastructure!T713","v":0},{"$f":"[1]Infrastructure!W713","v":0},{"$f":"[1]Infrastructure!W713","v":0},0,{"$f":"[1]Infrastructure!Z713","v":0},{"$f":"[1]Infrastructure!Z713","v":0},0,{"$f":"[1]Infrastructure!AB713","v":0},{"$f":"[1]Infrastructure!AB713","v":0},0,{"$f":"[1]Infrastructure!AC713","v":0},{"$f":"[1]Infrastructure!AD713","v":0},{"$f":"[1]Infrastructure!AE713","v":0},{"$f":"[1]Infrastructure!AF713","v":0},{"$f":"[1]Infrastructure!AG713","v":0},{"$f":"[1]Infrastructure!AH713","v":0},0]
[0,null,null,null,null,null,{"$f":"[1]Infrastructure!G714","v":0},{"$f":"[1]Infrastructure!H714","v":0},{"$f":"[1]Infrastructure!I714","v":0},{"$f":"[1]Infrastructure!J714","v":0},{"$f":"[1]Infrastructure!K714","v":0},{"$f":"[1]Infrastructure!L714","v":0},{"$f":"[1]Infrastructure!M714","v":0},{"$f":"[1]Infrastructure!N714","v":0},{"$f":"[1]Infrastructure!O714","v":0},{"$f":"[1]Infrastructure!Q714","v":0},{"$f":"[1]Infrastructure!R714","v":0},{"$f":"[1]Infrastructure!T714","v":0},{"$f":"[1]Infrastructure!W714","v":0},{"$f":"[1]Infrastructure!W714","v":0},0,{"$f":"[1]Infrastructure!Z714","v":0},{"$f":"[1]Infrastructure!Z714","v":0},0,{"$f":"[1]Infrastructure!AB714","v":0},{"$f":"[1]Infrastructure!AB714","v":0},0,{"$f":"[1]Infrastructure!AC714","v":0},{"$f":"[1]Infrastructure!AD714","v":0},{"$f":"[1]Infrastructure!AE714","v":0},{"$f":"[1]Infrastructure!AF714","v":0},{"$f":"[1]Infrastructure!AG714","v":0},{"$f":"[1]Infrastructure!AH714","v":0},0]
[0,null,null,null,null,null,{"$f":"[1]Infrastructure!G715","v":0},{"$f":"[1]Infrastructure!H715","v":0},{"$f":"[1]Infrastructure!I715","v":0},{"$f":"[1]Infrastructure!J715","v":0},{"$f":"[1]Infrastructure!K715","v":0},{"$f":"[1]Infrastructure!L715","v":0},{"$f":"[1]Infrastructure!M715","v":0},{"$f":"[1]Infrastructure!N715","v":0},{"$f":"[1]Infrastructure!O715","v":0},{"$f":"[1]Infrastructure!Q715","v":0},{"$f":"[1]Infrastructure!R715","v":0},{"$f":"[1]Infrastructure!T715","v":0},{"$f":"[1]Infrastructure!W715","v":0},{"$f":"[1]Infrastructure!W715","v":0},0,{"$f":"[1]Infrastructure!Z715","v":0},{"$f":"[1]Infrastructure!Z715","v":0},0,{"$f":"[1]Infrastructure!AB715","v":0},{"$f":"[1]Infrastructure!AB715","v":0},0,{"$f":"[1]Infrastructure!AC715","v":0},{"$f":"[1]Infrastructure!AD715","v":0},{"$f":"[1]Infrastructure!AE715","v":0},{"$f":"[1]Infrastructure!AF715","v":0},{"$f":"[1]Infrastructure!AG715","v":0},{"$f":"[1]Infrastructure!AH715","v":0},0]
[{"$f":"IF(SUM(O716:AH716),1,0)","v":0},null,null,null,null,null,{"$f":"[1]Infrastructure!G716","v":0},{"$f":"[1]Infrastructure!H716","v":0},{"$f":"[1]Infrastructure!I716","v":0},{"$f":"[1]Infrastructure!J716","v":0},{"$f":"[1]Infrastructure!K716","v":0},{"$f":"[1]Infrastructure!L716","v":0},{"$f":"[1]Infrastructure!M716","v":0},{"$f":"[1]Infrastructure!N716","v":0},{"$f":"[1]Infrastructure!O716","v":0},{"$f":"[1]Infrastructure!Q716","v":0},{"$f":"[1]Infrastructure!R716","v":0},{"$f":"[1]Infrastructure!T716","v":0},{"$f":"[1]Infrastructure!W716","v":0},{"$f":"[1]Infrastructure!W716","v":0},0,{"$f":"[1]Infrastructure!Z716","v":0},{"$f":"[1]Infrastructure!Z716","v":0},0,{"$f":"[1]Infrastructure!AB716","v":0},{"$f":"[1]Infrastructure!AB716","v":0},0,{"$f":"[1]Infrastructure!AC716","v":0},{"$f":"[1]Infrastructure!AD716","v":0},{"$f":"[1]Infrastructure!AE716","v":0},{"$f":"[1]Infrastructure!AF716","v":0},{"$f":"[1]Infrastructure!AG716","v":0},{"$f":"[1]Infrastructure!AH716","v":0},0]
[0,null,null,null,null,null,{"$f":"[1]Infrastructure!G717","v":0},{"$f":"[1]Infrastructure!H717","v":0},{"$f":"[1]Infrastructure!I717","v":0},{"$f":"[1]Infrastructure!J717","v":0},{"$f":"[1]Infrastructure!K717","v":0},{"$f":"[1]Infrastructure!L717","v":0},{"$f":"[1]Infrastructure!M717","v":0},{"$f":"[1]Infrastructure!N717","v":0},{"$f":"[1]Infrastructure!O717","v":0},{"$f":"[1]Infrastructure!Q717","v":0},{"$f":"[1]Infrastructure!R717","v":0},{"$f":"[1]Infrastructure!T717","v":0},{"$f":"[1]Infrastructure!W717","v":0},{"$f":"[1]Infrastructure!W717","v":0},0,{"$f":"[1]Infrastructure!Z717","v":0},{"$f":"[1]Infrastructure!Z717","v":0},0,{"$f":"[1]Infrastructure!AB717","v":0},{"$f":"[1]Infrastructure!AB717","v":0},0,{"$f":"[1]Infrastructure!AC717","v":0},{"$f":"[1]Infrastructure!AD717","v":0},{"$f":"[1]Infrastructure!AE717","v":0},{"$f":"[1]Infrastructure!AF717","v":0},{"$f":"[1]Infrastructure!AG717","v":0},{"$f":"[1]Infrastructure!AH717","v":0},0]
[0,null,null,null,null,null,{"$f":"[1]Infrastructure!G718","v":0},{"$f":"[1]Infrastructure!H718","v":0},{"$f":"[1]Infrastructure!I718","v":0},{"$f":"[1]Infrastructure!J718","v":0},{"$f":"[1]Infrastructure!K718","v":0},{"$f":"[1]Infrastructure!L718","v":0},{"$f":"[1]Infrastructure!M718","v":0},{"$f":"[1]Infrastructure!N718","v":0},{"$f":"[1]Infrastructure!O718","v":0},{"$f":"[1]Infrastructure!Q718","v":0},{"$f":"[1]Infrastructure!R718","v":0},{"$f":"[1]Infrastructure!T718","v":0},{"$f":"[1]Infrastructure!W718","v":0},{"$f":"[1]Infrastructure!W718","v":0},0,{"$f":"[1]Infrastructure!Z718","v":0},{"$f":"[1]Infrastructure!Z718","v":0},0,{"$f":"[1]Infrastructure!AB718","v":0},{"$f":"[1]Infrastructure!AB718","v":0},0,{"$f":"[1]Infrastructure!AC718","v":0},{"$f":"[1]Infrastructure!AD718","v":0},{"$f":"[1]Infrastructure!AE718","v":0},{"$f":"[1]Infrastructure!AF718","v":0},{"$f":"[1]Infrastructure!AG718","v":0},{"$f":"[1]Infrastructure!AH718","v":0},0]
[0,null,null,null,null,null,{"$f":"[1]Infrastructure!G719","v":0},{"$f":"[1]Infrastructure!H719","v":0},{"$f":"[1]Infrastructure!I719","v":0},{"$f":"[1]Infrastructure!J719","v":0},{"$f":"[1]Infrastructure!K719","v":0},{"$f":"[1]Infrastructure!L719","v":0},{"$f":"[1]Infrastructure!M719","v":0},{"$f":"[1]Infrastructure!N719","v":0},{"$f":"[1]Infrastructure!O719","v":0},{"$f":"[1]Infrastructure!Q719","v":0},{"$f":"[1]Infrastructure!R719","v":0},{"$f":"[1]Infrastructure!T719","v":0},{"$f":"[1]Infrastructure!W719","v":0},{"$f":"[1]Infrastructure!W719","v":0},0,{"$f":"[1]Infrastructure!Z719","v":0},{"$f":"[1]Infrastructure!Z719","v":0},0,{"$f":"[1]Infrastructure!AB719","v":0},{"$f":"[1]Infrastructure!AB719","v":0},0,{"$f":"[1]Infrastructure!AC719","v":0},{"$f":"[1]Infrastructure!AD719","v":0},{"$f":"[1]Infrastructure!AE719","v":0},{"$f":"[1]Infrastructure!AF719","v":0},{"$f":"[1]Infrastructure!AG719","v":0},{"$f":"[1]Infrastructure!AH719","v":0},0]
[0,null,null,null,null,null,{"$f":"[1]Infrastructure!G720","v":0},{"$f":"[1]Infrastructure!H720","v":0},{"$f":"[1]Infrastructure!I720","v":0},{"$f":"[1]Infrastructure!J720","v":0},{"$f":"[1]Infrastructure!K720","v":0},{"$f":"[1]Infrastructure!L720","v":0},{"$f":"[1]Infrastructure!M720","v":0},{"$f":"[1]Infrastructure!N720","v":0},{"$f":"[1]Infrastructure!O720","v":0},{"$f":"[1]Infrastructure!Q720","v":0},{"$f":"[1]Infrastructure!R720","v":0},{"$f":"[1]Infrastructure!T720","v":0},{"$f":"[1]Infrastructure!W720","v":0},{"$f":"[1]Infrastructure!W720","v":0},0,{"$f":"[1]Infrastructure!Z720","v":0},{"$f":"[1]Infrastructure!Z720","v":0},0,{"$f":"[1]Infrastructure!AB720","v":0},{"$f":"[1]Infrastructure!AB720","v":0},0,{"$f":"[1]Infrastructure!AC720","v":0},{"$f":"[1]Infrastructure!AD720","v":0},{"$f":"[1]Infrastructure!AE720","v":0},{"$f":"[1]Infrastructure!AF720","v":0},{"$f":"[1]Infrastructure!AG720","v":0},{"$f":"[1]Infrastructure!AH720","v":0},0]
[0,null,null,null,null,null,{"$f":"[1]Infrastructure!G721","v":0},{"$f":"[1]Infrastructure!H721","v":0},{"$f":"[1]Infrastructure!I721","v":0},{"$f":"[1]Infrastructure!J721","v":0},{"$f":"[1]Infrastructure!K721","v":0},{"$f":"[1]Infrastructure!L721","v":0},{"$f":"[1]Infrastructure!M721","v":0},{"$f":"[1]Infrastructure!N721","v":0},{"$f":"[1]Infrastructure!O721","v":0},{"$f":"[1]Infrastructure!Q721","v":0},{"$f":"[1]Infrastructure!R721","v":0},{"$f":"[1]Infrastructure!T721","v":0},{"$f":"[1]Infrastructure!W721","v":0},{"$f":"[1]Infrastructure!W721","v":0},0,{"$f":"[1]Infrastructure!Z721","v":0},{"$f":"[1]Infrastructure!Z721","v":0},0,{"$f":"[1]Infrastructure!AB721","v":0},{"$f":"[1]Infrastructure!AB721","v":0},0,{"$f":"[1]Infrastructure!AC721","v":0},{"$f":"[1]Infrastructure!AD721","v":0},{"$f":"[1]Infrastructure!AE721","v":0},{"$f":"[1]Infrastructure!AF721","v":0},{"$f":"[1]Infrastructure!AG721","v":0},{"$f":"[1]Infrastructure!AH721","v":0},0]
[0,null,null,null,null,null,{"$f":"[1]Infrastructure!G722","v":0},{"$f":"[1]Infrastructure!H722","v":0},{"$f":"[1]Infrastructure!I722","v":0},{"$f":"[1]Infrastructure!J722","v":0},{"$f":"[1]Infrastructure!K722","v":0},{"$f":"[1]Infrastructure!L722","v":0},{"$f":"[1]Infrastructure!M722","v":0},{"$f":"[1]Infrastructure!N722","v":0},{"$f":"[1]Infrastructure!O722","v":0},{"$f":"[1]Infrastructure!Q722","v":0},{"$f":"[1]Infrastructure!R722","v":0},{"$f":"[1]Infrastructure!T722","v":0},{"$f":"[1]Infrastructure!W722","v":0},{"$f":"[1]Infrastructure!W722","v":0},0,{"$f":"[1]Infrastructure!Z722","v":0},{"$f":"[1]Infrastructure!Z722","v":0},0,{"$f":"[1]Infrastructure!AB722","v":0},{"$f":"[1]Infrastructure!AB722","v":0},0,{"$f":"[1]Infrastructure!AC722","v":0},{"$f":"[1]Infrastructure!AD722","v":0},{"$f":"[1]Infrastructure!AE722","v":0},{"$f":"[1]Infrastructure!AF722","v":0},{"$f":"[1]Infrastructure!AG722","v":0},{"$f":"[1]Infrastructure!AH722","v":0},0]
[0,null,null,null,null,null,{"$f":"[1]Infrastructure!G723","v":0},{"$f":"[1]Infrastructure!H723","v":0},{"$f":"[1]Infrastructure!I723","v":0},{"$f":"[1]Infrastructure!J723","v":0},{"$f":"[1]Infrastructure!K723","v":0},{"$f":"[1]Infrastructure!L723","v":0},{"$f":"[1]Infrastructure!M723","v":0},{"$f":"[1]Infrastructure!N723","v":0},{"$f":"[1]Infrastructure!O723","v":0},{"$f":"[1]Infrastructure!Q723","v":0},{"$f":"[1]Infrastructure!R723","v":0},{"$f":"[1]Infrastructure!T723","v":0},{"$f":"[1]Infrastructure!W723","v":0},{"$f":"[1]Infrastructure!W723","v":0},0,{"$f":"[1]Infrastructure!Z723","v":0},{"$f":"[1]Infrastructure!Z723","v":0},0,{"$f":"[1]Infrastructure!AB723","v":0},{"$f":"[1]Infrastructure!AB723","v":0},0,{"$f":"[1]Infrastructure!AC723","v":0},{"$f":"[1]Infrastructure!AD723","v":0},{"$f":"[1]Infrastructure!AE723","v":0},{"$f":"[1]Infrastructure!AF723","v":0},{"$f":"[1]Infrastructure!AG723","v":0},{"$f":"[1]Infrastructure!AH723","v":0},0]
[0,null,null,null,null,null,{"$f":"[1]Infrastructure!G724","v":0},{"$f":"[1]Infrastructure!H724","v":0},{"$f":"[1]Infrastructure!I724","v":0},{"$f":"[1]Infrastructure!J724","v":0},{"$f":"[1]Infrastructure!K724","v":0},{"$f":"[1]Infrastructure!L724","v":0},{"$f":"[1]Infrastructure!M724","v":0},{"$f":"[1]Infrastructure!N724","v":0},{"$f":"[1]Infrastructure!O724","v":0},{"$f":"[1]Infrastructure!Q724","v":0},{"$f":"[1]Infrastructure!R724","v":0},{"$f":"[1]Infrastructure!T724","v":0},{"$f":"[1]Infrastructure!W724","v":0},{"$f":"[1]Infrastructure!W724","v":0},0,{"$f":"[1]Infrastructure!Z724","v":0},{"$f":"[1]Infrastructure!Z724","v":0},0,{"$f":"[1]Infrastructure!AB724","v":0},{"$f":"[1]Infrastructure!AB724","v":0},0,{"$f":"[1]Infrastructure!AC724","v":0},{"$f":"[1]Infrastructure!AD724","v":0},{"$f":"[1]Infrastructure!AE724","v":0},{"$f":"[1]Infrastructure!AF724","v":0},{"$f":"[1]Infrastructure!AG724","v":0},{"$f":"[1]Infrastructure!AH724","v":0},0]
[0,null,null,null,null,null,{"$f":"[1]Infrastructure!G725","v":0},{"$f":"[1]Infrastructure!H725","v":0},{"$f":"[1]Infrastructure!I725","v":0},{"$f":"[1]Infrastructure!J725","v":0},{"$f":"[1]Infrastructure!K725","v":0},{"$f":"[1]Infrastructure!L725","v":0},{"$f":"[1]Infrastructure!M725","v":0},{"$f":"[1]Infrastructure!N725","v":0},{"$f":"[1]Infrastructure!O725","v":0},{"$f":"[1]Infrastructure!Q725","v":0},{"$f":"[1]Infrastructure!R725","v":0},{"$f":"[1]Infrastructure!T725","v":0},{"$f":"[1]Infrastructure!W725","v":0},{"$f":"[1]Infrastructure!W725","v":0},0,{"$f":"[1]Infrastructure!Z725","v":0},{"$f":"[1]Infrastructure!Z725","v":0},0,{"$f":"[1]Infrastructure!AB725","v":0},{"$f":"[1]Infrastructure!AB725","v":0},0,{"$f":"[1]Infrastructure!AC725","v":0},{"$f":"[1]Infrastructure!AD725","v":0},{"$f":"[1]Infrastructure!AE725","v":0},{"$f":"[1]Infrastructure!AF725","v":0},{"$f":"[1]Infrastructure!AG725","v":0},{"$f":"[1]Infrastructure!AH725","v":0},0]
[0,null,null,null,null,null,{"$f":"[1]Infrastructure!G726","v":0},{"$f":"[1]Infrastructure!H726","v":0},{"$f":"[1]Infrastructure!I726","v":0},{"$f":"[1]Infrastructure!J726","v":0},{"$f":"[1]Infrastructure!K726","v":0},{"$f":"[1]Infrastructure!L726","v":0},{"$f":"[1]Infrastructure!M726","v":0},{"$f":"[1]Infrastructure!N726","v":0},{"$f":"[1]Infrastructure!O726","v":0},{"$f":"[1]Infrastructure!Q726","v":0},{"$f":"[1]Infrastructure!R726","v":0},{"$f":"[1]Infrastructure!T726","v":0},{"$f":"[1]Infrastructure!W726","v":0},{"$f":"[1]Infrastructure!W726","v":0},0,{"$f":"[1]Infrastructure!Z726","v":0},{"$f":"[1]Infrastructure!Z726","v":0},0,{"$f":"[1]Infrastructure!AB726","v":0},{"$f":"[1]Infrastructure!AB726","v":0},0,{"$f":"[1]Infrastructure!AC726","v":0},{"$f":"[1]Infrastructure!AD726","v":0},{"$f":"[1]Infrastructure!AE726","v":0},{"$f":"[1]Infrastructure!AF726","v":0},{"$f":"[1]Infrastructure!AG726","v":0},{"$f":"[1]Infrastructure!AH726","v":0},0]
[0,null,null,null,null,null,{"$f":"[1]Infrastructure!G727","v":0},{"$f":"[1]Infrastructure!H727","v":0},{"$f":"[1]Infrastructure!I727","v":0},{"$f":"[1]Infrastructure!J727","v":0},{"$f":"[1]Infrastructure!K727","v":0},{"$f":"[1]Infrastructure!L727","v":0},{"$f":"[1]Infrastructure!M727","v":0},{"$f":"[1]Infrastructure!N727","v":0},{"$f":"[1]Infrastructure!O727","v":0},{"$f":"[1]Infrastructure!Q727","v":0},{"$f":"[1]Infrastructure!R727","v":0},{"$f":"[1]Infrastructure!T727","v":0},{"$f":"[1]Infrastructure!W727","v":0},{"$f":"[1]Infrastructure!W727","v":0},0,{"$f":"[1]Infrastructure!Z727","v":0},{"$f":"[1]Infrastructure!Z727","v":0},0,{"$f":"[1]Infrastructure!AB727","v":0},{"$f":"[1]Infrastructure!AB727","v":0},0,{"$f":"[1]Infrastructure!AC727","v":0},{"$f":"[1]Infrastructure!AD727","v":0},{"$f":"[1]Infrastructure!AE727","v":0},{"$f":"[1]Infrastructure!AF727","v":0},{"$f":"[1]Infrastructure!AG727","v":0},{"$f":"[1]Infrastructure!AH727","v":0},0]
[0,null,null,null,null,null,{"$f":"[1]Infrastructure!G728","v":0},{"$f":"[1]Infrastructure!H728","v":0},{"$f":"[1]Infrastructure!I728","v":0},{"$f":"[1]Infrastructure!J728","v":0},{"$f":"[1]Infrastructure!K728","v":0},{"$f":"[1]Infrastructure!L728","v":0},{"$f":"[1]Infrastructure!M728","v":0},{"$f":"[1]Infrastructure!N728","v":0},{"$f":"[1]Infrastructure!O728","v":0},{"$f":"[1]Infrastructure!Q728","v":0},{"$f":"[1]Infrastructure!R728","v":0},{"$f":"[1]Infrastructure!T728","v":0},{"$f":"[1]Infrastructure!W728","v":0},{"$f":"[1]Infrastructure!W728","v":0},0,{"$f":"[1]Infrastructure!Z728","v":0},{"$f":"[1]Infrastructure!Z728","v":0},0,{"$f":"[1]Infrastructure!AB728","v":0},{"$f":"[1]Infrastructure!AB728","v":0},0,{"$f":"[1]Infrastructure!AC728","v":0},{"$f":"[1]Infrastructure!AD728","v":0},{"$f":"[1]Infrastructure!AE728","v":0},{"$f":"[1]Infrastructure!AF728","v":0},{"$f":"[1]Infrastructure!AG728","v":0},{"$f":"[1]Infrastructure!AH728","v":0},0]
[0,null,null,null,null,null,{"$f":"[1]Infrastructure!G729","v":0},{"$f":"[1]Infrastructure!H729","v":0},{"$f":"[1]Infrastructure!I729","v":0},{"$f":"[1]Infrastructure!J729","v":0},{"$f":"[1]Infrastructure!K729","v":0},{"$f":"[1]Infrastructure!L729","v":0},{"$f":"[1]Infrastructure!M729","v":0},{"$f":"[1]Infrastructure!N729","v":0},{"$f":"[1]Infrastructure!O729","v":0},{"$f":"[1]Infrastructure!Q729","v":0},{"$f":"[1]Infrastructure!R729","v":0},{"$f":"[1]Infrastructure!T729","v":0},{"$f":"[1]Infrastructure!W729","v":0},{"$f":"[1]Infrastructure!W729","v":0},0,{"$f":"[1]Infrastructure!Z729","v":0},{"$f":"[1]Infrastructure!Z729","v":0},0,{"$f":"[1]Infrastructure!AB729","v":0},{"$f":"[1]Infrastructure!AB729","v":0},0,{"$f":"[1]Infrastructure!AC729","v":0},{"$f":"[1]Infrastructure!AD729","v":0},{"$f":"[1]Infrastructure!AE729","v":0},{"$f":"[1]Infrastructure!AF729","v":0},{"$f":"[1]Infrastructure!AG729","v":0},{"$f":"[1]Infrastructure!AH729","v":0},0]
[0,null,null,null,null,null,{"$f":"[1]Infrastructure!G730","v":0},{"$f":"[1]Infrastructure!H730","v":0},{"$f":"[1]Infrastructure!I730","v":0},{"$f":"[1]Infrastructure!J730","v":0},{"$f":"[1]Infrastructure!K730","v":0},{"$f":"[1]Infrastructure!L730","v":0},{"$f":"[1]Infrastructure!M730","v":0},{"$f":"[1]Infrastructure!N730","v":0},{"$f":"[1]Infrastructure!O730","v":0},{"$f":"[1]Infrastructure!Q730","v":0},{"$f":"[1]Infrastructure!R730","v":0},{"$f":"[1]Infrastructure!T730","v":0},{"$f":"[1]Infrastructure!W730","v":0},{"$f":"[1]Infrastructure!W730","v":0},0,{"$f":"[1]Infrastructure!Z730","v":0},{"$f":"[1]Infrastructure!Z730","v":0},0,{"$f":"[1]Infrastructure!AB730","v":0},{"$f":"[1]Infrastructure!AB730","v":0},0,{"$f":"[1]Infrastructure!AC730","v":0},{"$f":"[1]Infrastructure!AD730","v":0},{"$f":"[1]Infrastructure!AE730","v":0},{"$f":"[1]Infrastructure!AF730","v":0},{"$f":"[1]Infrastructure!AG730","v":0},{"$f":"[1]Infrastructure!AH730","v":0},0]
[0,null,null,null,null,null,{"$f":"[1]Infrastructure!G731","v":0},{"$f":"[1]Infrastructure!H731","v":0},{"$f":"[1]Infrastructure!I731","v":0},{"$f":"[1]Infrastructure!J731","v":0},{"$f":"[1]Infrastructure!K731","v":0},{"$f":"[1]Infrastructure!L731","v":0},{"$f":"[1]Infrastructure!M731","v":0},{"$f":"[1]Infrastructure!N731","v":0},{"$f":"[1]Infrastructure!O731","v":0},{"$f":"[1]Infrastructure!Q731","v":0},{"$f":"[1]Infrastructure!R731","v":0},{"$f":"[1]Infrastructure!T731","v":0},{"$f":"[1]Infrastructure!W731","v":0},{"$f":"[1]Infrastructure!W731","v":0},0,{"$f":"[1]Infrastructure!Z731","v":0},{"$f":"[1]Infrastructure!Z731","v":0},0,{"$f":"[1]Infrastructure!AB731","v":0},{"$f":"[1]Infrastructure!AB731","v":0},0,{"$f":"[1]Infrastructure!AC731","v":0},{"$f":"[1]Infrastructure!AD731","v":0},{"$f":"[1]Infrastructure!AE731","v":0},{"$f":"[1]Infrastructure!AF731","v":0},{"$f":"[1]Infrastructure!AG731","v":0},{"$f":"[1]Infrastructure!AH731","v":0},0]
[0,null,null,null,null,null,{"$f":"[1]Infrastructure!G732","v":0},{"$f":"[1]Infrastructure!H732","v":0},{"$f":"[1]Infrastructure!I732","v":0},{"$f":"[1]Infrastructure!J732","v":0},{"$f":"[1]Infrastructure!K732","v":0},{"$f":"[1]Infrastructure!L732","v":0},{"$f":"[1]Infrastructure!M732","v":0},{"$f":"[1]Infrastructure!N732","v":0},{"$f":"[1]Infrastructure!O732","v":0},{"$f":"[1]Infrastructure!Q732","v":0},{"$f":"[1]Infrastructure!R732","v":0},{"$f":"[1]Infrastructure!T732","v":0},{"$f":"[1]Infrastructure!W732","v":0},{"$f":"[1]Infrastructure!W732","v":0},0,{"$f":"[1]Infrastructure!Z732","v":0},{"$f":"[1]Infrastructure!Z732","v":0},0,{"$f":"[1]Infrastructure!AB732","v":0},{"$f":"[1]Infrastructure!AB732","v":0},0,{"$f":"[1]Infrastructure!AC732","v":0},{"$f":"[1]Infrastructure!AD732","v":0},{"$f":"[1]Infrastructure!AE732","v":0},{"$f":"[1]Infrastructure!AF732","v":0},{"$f":"[1]Infrastructure!AG732","v":0},{"$f":"[1]Infrastructure!AH732","v":0},0]
[0,null,null,null,null,null,{"$f":"[1]Infrastructure!G733","v":0},{"$f":"[1]Infrastructure!H733","v":0},{"$f":"[1]Infrastructure!I733","v":0},{"$f":"[1]Infrastructure!J733","v":0},{"$f":"[1]Infrastructure!K733","v":0},{"$f":"[1]Infrastructure!L733","v":0},{"$f":"[1]Infrastructure!M733","v":0},{"$f":"[1]Infrastructure!N733","v":0},{"$f":"[1]Infrastructure!O733","v":0},{"$f":"[1]Infrastructure!Q733","v":0},{"$f":"[1]Infrastructure!R733","v":0},{"$f":"[1]Infrastructure!T733","v":0},{"$f":"[1]Infrastructure!W733","v":0},{"$f":"[1]Infrastructure!W733","v":0},0,{"$f":"[1]Infrastructure!Z733","v":0},{"$f":"[1]Infrastructure!Z733","v":0},0,{"$f":"[1]Infrastructure!AB733","v":0},{"$f":"[1]Infrastructure!AB733","v":0},0,{"$f":"[1]Infrastructure!AC733","v":0},{"$f":"[1]Infrastructure!AD733","v":0},{"$f":"[1]Infrastructure!AE733","v":0},{"$f":"[1]Infrastructure!AF733","v":0},{"$f":"[1]Infrastructure!AG733","v":0},{"$f":"[1]Infrastructure!AH733","v":0},0]
[0,null,null,null,null,null,{"$f":"[1]Infrastructure!G734","v":0},{"$f":"[1]Infrastructure!H734","v":0},{"$f":"[1]Infrastructure!I734","v":0},{"$f":"[1]Infrastructure!J734","v":0},{"$f":"[1]Infrastructure!K734","v":0},{"$f":"[1]Infrastructure!L734","v":0},{"$f":"[1]Infrastructure!M734","v":0},{"$f":"[1]Infrastructure!N734","v":0},{"$f":"[1]Infrastructure!O734","v":0},{"$f":"[1]Infrastructure!Q734","v":0},{"$f":"[1]Infrastructure!R734","v":0},{"$f":"[1]Infrastructure!T734","v":0},{"$f":"[1]Infrastructure!W734","v":0},{"$f":"[1]Infrastructure!W734","v":0},0,{"$f":"[1]Infrastructure!Z734","v":0},{"$f":"[1]Infrastructure!Z734","v":0},0,{"$f":"[1]Infrastructure!AB734","v":0},{"$f":"[1]Infrastructure!AB734","v":0},0,{"$f":"[1]Infrastructure!AC734","v":0},{"$f":"[1]Infrastructure!AD734","v":0},{"$f":"[1]Infrastructure!AE734","v":0},{"$f":"[1]Infrastructure!AF734","v":0},{"$f":"[1]Infrastructure!AG734","v":0},{"$f":"[1]Infrastructure!AH734","v":0},0]
[0,null,null,null,null,null,{"$f":"[1]Infrastructure!G735","v":0},{"$f":"[1]Infrastructure!H735","v":0},{"$f":"[1]Infrastructure!I735","v":0},{"$f":"[1]Infrastructure!J735","v":0},{"$f":"[1]Infrastructure!K735","v":0},{"$f":"[1]Infrastructure!L735","v":0},{"$f":"[1]Infrastructure!M735","v":0},{"$f":"[1]Infrastructure!N735","v":0},{"$f":"[1]Infrastructure!O735","v":0},{"$f":"[1]Infrastructure!Q735","v":0},{"$f":"[1]Infrastructure!R735","v":0},{"$f":"[1]Infrastructure!T735","v":0},{"$f":"[1]Infrastructure!W735","v":0},{"$f":"[1]Infrastructure!W735","v":0},0,{"$f":"[1]Infrastructure!Z735","v":0},{"$f":"[1]Infrastructure!Z735","v":0},0,{"$f":"[1]Infrastructure!AB735","v":0},{"$f":"[1]Infrastructure!AB735","v":0},0,{"$f":"[1]Infrastructure!AC735","v":0},{"$f":"[1]Infrastructure!AD735","v":0},{"$f":"[1]Infrastructure!AE735","v":0},{"$f":"[1]Infrastructure!AF735","v":0},{"$f":"[1]Infrastructure!AG735","v":0},{"$f":"[1]Infrastructure!AH735","v":0},0]
[0,null,null,null,null,null,{"$f":"[1]Infrastructure!G736","v":0},{"$f":"[1]Infrastructure!H736","v":0},{"$f":"[1]Infrastructure!I736","v":0},{"$f":"[1]Infrastructure!J736","v":0},{"$f":"[1]Infrastructure!K736","v":0},{"$f":"[1]Infrastructure!L736","v":0},{"$f":"[1]Infrastructure!M736","v":0},{"$f":"[1]Infrastructure!N736","v":0},{"$f":"[1]Infrastructure!O736","v":0},{"$f":"[1]Infrastructure!Q736","v":0},{"$f":"[1]Infrastructure!R736","v":0},{"$f":"[1]Infrastructure!T736","v":0},{"$f":"[1]Infrastructure!W736","v":0},{"$f":"[1]Infrastructure!W736","v":0},0,{"$f":"[1]Infrastructure!Z736","v":0},{"$f":"[1]Infrastructure!Z736","v":0},0,{"$f":"[1]Infrastructure!AB736","v":0},{"$f":"[1]Infrastructure!AB736","v":0},0,{"$f":"[1]Infrastructure!AC736","v":0},{"$f":"[1]Infrastructure!AD736","v":0},{"$f":"[1]Infrastructure!AE736","v":0},{"$f":"[1]Infrastructure!AF736","v":0},{"$f":"[1]Infrastructure!AG736","v":0},{"$f":"[1]Infrastructure!AH736","v":0},0]
[0,null,null,null,null,null,{"$f":"[1]Infrastructure!G737","v":0},{"$f":"[1]Infrastructure!H737","v":0},{"$f":"[1]Infrastructure!I737","v":0},{"$f":"[1]Infrastructure!J737","v":0},{"$f":"[1]Infrastructure!K737","v":0},{"$f":"[1]Infrastructure!L737","v":0},{"$f":"[1]Infrastructure!M737","v":0},{"$f":"[1]Infrastructure!N737","v":0},{"$f":"[1]Infrastructure!O737","v":0},{"$f":"[1]Infrastructure!Q737","v":0},{"$f":"[1]Infrastructure!R737","v":0},{"$f":"[1]Infrastructure!T737","v":0},{"$f":"[1]Infrastructure!W737","v":0},{"$f":"[1]Infrastructure!W737","v":0},0,{"$f":"[1]Infrastructure!Z737","v":0},{"$f":"[1]Infrastructure!Z737","v":0},0,{"$f":"[1]Infrastructure!AB737","v":0},{"$f":"[1]Infrastructure!AB737","v":0},0,{"$f":"[1]Infrastructure!AC737","v":0},{"$f":"[1]Infrastructure!AD737","v":0},{"$f":"[1]Infrastructure!AE737","v":0},{"$f":"[1]Infrastructure!AF737","v":0},{"$f":"[1]Infrastructure!AG737","v":0},{"$f":"[1]Infrastructure!AH737","v":0},0]
[0,null,null,null,null,null,{"$f":"[1]Infrastructure!G738","v":0},{"$f":"[1]Infrastructure!H738","v":0},{"$f":"[1]Infrastructure!I738","v":0},{"$f":"[1]Infrastructure!J738","v":0},{"$f":"[1]Infrastructure!K738","v":0},{"$f":"[1]Infrastructure!L738","v":0},{"$f":"[1]Infrastructure!M738","v":0},{"$f":"[1]Infrastructure!N738","v":0},{"$f":"[1]Infrastructure!O738","v":0},{"$f":"[1]Infrastructure!Q738","v":0},{"$f":"[1]Infrastructure!R738","v":0},{"$f":"[1]Infrastructure!T738","v":0},{"$f":"[1]Infrastructure!W738","v":0},{"$f":"[1]Infrastructure!W738","v":0},0,{"$f":"[1]Infrastructure!Z738","v":0},{"$f":"[1]Infrastructure!Z738","v":0},0,{"$f":"[1]Infrastructure!AB738","v":0},{"$f":"[1]Infrastructure!AB738","v":0},0,{"$f":"[1]Infrastructure!AC738","v":0},{"$f":"[1]Infrastructure!AD738","v":0},{"$f":"[1]Infrastructure!AE738","v":0},{"$f":"[1]Infrastructure!AF738","v":0},{"$f":"[1]Infrastructure!AG738","v":0},{"$f":"[1]Infrastructure!AH738","v":0},0]
[0,null,null,null,null,null,{"$f":"[1]Infrastructure!G739","v":0},{"$f":"[1]Infrastructure!H739","v":0},{"$f":"[1]Infrastructure!I739","v":0},{"$f":"[1]Infrastructure!J739","v":0},{"$f":"[1]Infrastructure!K739","v":0},{"$f":"[1]Infrastructure!L739","v":0},{"$f":"[1]Infrastructure!M739","v":0},{"$f":"[1]Infrastructure!N739","v":0},{"$f":"[1]Infrastructure!O739","v":0},{"$f":"[1]Infrastructure!Q739","v":0},{"$f":"[1]Infrastructure!R739","v":0},{"$f":"[1]Infrastructure!T739","v":0},{"$f":"[1]Infrastructure!W739","v":0},{"$f":"[1]Infrastructure!W739","v":0},0,{"$f":"[1]Infrastructure!Z739","v":0},{"$f":"[1]Infrastructure!Z739","v":0},0,{"$f":"[1]Infrastructure!AB739","v":0},{"$f":"[1]Infrastructure!AB739","v":0},0,{"$f":"[1]Infrastructure!AC739","v":0},{"$f":"[1]Infrastructure!AD739","v":0},{"$f":"[1]Infrastructure!AE739","v":0},{"$f":"[1]Infrastructure!AF739","v":0},{"$f":"[1]Infrastructure!AG739","v":0},{"$f":"[1]Infrastructure!AH739","v":0},0]
[0,null,null,null,null,null,{"$f":"[1]Infrastructure!G740","v":0},{"$f":"[1]Infrastructure!H740","v":0},{"$f":"[1]Infrastructure!I740","v":0},{"$f":"[1]Infrastructure!J740","v":0},{"$f":"[1]Infrastructure!K740","v":0},{"$f":"[1]Infrastructure!L740","v":0},{"$f":"[1]Infrastructure!M740","v":0},{"$f":"[1]Infrastructure!N740","v":0},{"$f":"[1]Infrastructure!O740","v":0},{"$f":"[1]Infrastructure!Q740","v":0},{"$f":"[1]Infrastructure!R740","v":0},{"$f":"[1]Infrastructure!T740","v":0},{"$f":"[1]Infrastructure!W740","v":0},{"$f":"[1]Infrastructure!W740","v":0},0,{"$f":"[1]Infrastructure!Z740","v":0},{"$f":"[1]Infrastructure!Z740","v":0},0,{"$f":"[1]Infrastructure!AB740","v":0},{"$f":"[1]Infrastructure!AB740","v":0},0,{"$f":"[1]Infrastructure!AC740","v":0},{"$f":"[1]Infrastructure!AD740","v":0},{"$f":"[1]Infrastructure!AE740","v":0},{"$f":"[1]Infrastructure!AF740","v":0},{"$f":"[1]Infrastructure!AG740","v":0},{"$f":"[1]Infrastructure!AH740","v":0},0]
[0,null,null,null,null,null,{"$f":"[1]Infrastructure!G741","v":0},{"$f":"[1]Infrastructure!H741","v":0},{"$f":"[1]Infrastructure!I741","v":0},{"$f":"[1]Infrastructure!J741","v":0},{"$f":"[1]Infrastructure!K741","v":0},{"$f":"[1]Infrastructure!L741","v":0},{"$f":"[1]Infrastructure!M741","v":0},{"$f":"[1]Infrastructure!N741","v":0},{"$f":"[1]Infrastructure!O741","v":0},{"$f":"[1]Infrastructure!Q741","v":0},{"$f":"[1]Infrastructure!R741","v":0},{"$f":"[1]Infrastructure!T741","v":0},{"$f":"[1]Infrastructure!W741","v":0},{"$f":"[1]Infrastructure!W741","v":0},0,{"$f":"[1]Infrastructure!Z741","v":0},{"$f":"[1]Infrastructure!Z741","v":0},0,{"$f":"[1]Infrastructure!AB741","v":0},{"$f":"[1]Infrastructure!AB741","v":0},0,{"$f":"[1]Infrastructure!AC741","v":0},{"$f":"[1]Infrastructure!AD741","v":0},{"$f":"[1]Infrastructure!AE741","v":0},{"$f":"[1]Infrastructure!AF741","v":0},{"$f":"[1]Infrastructure!AG741","v":0},{"$f":"[1]Infrastructure!AH741","v":0},0]
[0,null,null,null,null,null,{"$f":"[1]Infrastructure!G742","v":0},{"$f":"[1]Infrastructure!H742","v":0},{"$f":"[1]Infrastructure!I742","v":0},{"$f":"[1]Infrastructure!J742","v":0},{"$f":"[1]Infrastructure!K742","v":0},{"$f":"[1]Infrastructure!L742","v":0},{"$f":"[1]Infrastructure!M742","v":0},{"$f":"[1]Infrastructure!N742","v":0},{"$f":"[1]Infrastructure!O742","v":0},{"$f":"[1]Infrastructure!Q742","v":0},{"$f":"[1]Infrastructure!R742","v":0},{"$f":"[1]Infrastructure!T742","v":0},{"$f":"[1]Infrastructure!W742","v":0},{"$f":"[1]Infrastructure!W742","v":0},0,{"$f":"[1]Infrastructure!Z742","v":0},{"$f":"[1]Infrastructure!Z742","v":0},0,{"$f":"[1]Infrastructure!AB742","v":0},{"$f":"[1]Infrastructure!AB742","v":0},0,{"$f":"[1]Infrastructure!AC742","v":0},{"$f":"[1]Infrastructure!AD742","v":0},{"$f":"[1]Infrastructure!AE742","v":0},{"$f":"[1]Infrastructure!AF742","v":0},{"$f":"[1]Infrastructure!AG742","v":0},{"$f":"[1]Infrastructure!AH742","v":0},0]
[0,null,null,null,null,null,{"$f":"[1]Infrastructure!G743","v":0},{"$f":"[1]Infrastructure!H743","v":0},{"$f":"[1]Infrastructure!I743","v":0},{"$f":"[1]Infrastructure!J743","v":0},{"$f":"[1]Infrastructure!K743","v":0},{"$f":"[1]Infrastructure!L743","v":0},{"$f":"[1]Infrastructure!M743","v":0},{"$f":"[1]Infrastructure!N743","v":0},{"$f":"[1]Infrastructure!O743","v":0},{"$f":"[1]Infrastructure!Q743","v":0},{"$f":"[1]Infrastructure!R743","v":0},{"$f":"[1]Infrastructure!T743","v":0},{"$f":"[1]Infrastructure!W743","v":0},{"$f":"[1]Infrastructure!W743","v":0},0,{"$f":"[1]Infrastructure!Z743","v":0},{"$f":"[1]Infrastructure!Z743","v":0},0,{"$f":"[1]Infrastructure!AB743","v":0},{"$f":"[1]Infrastructure!AB743","v":0},0,{"$f":"[1]Infrastructure!AC743","v":0},{"$f":"[1]Infrastructure!AD743","v":0},{"$f":"[1]Infrastructure!AE743","v":0},{"$f":"[1]Infrastructure!AF743","v":0},{"$f":"[1]Infrastructure!AG743","v":0},{"$f":"[1]Infrastructure!AH743","v":0},0]
[0,null,null,null,null,null,{"$f":"[1]Infrastructure!G744","v":0},{"$f":"[1]Infrastructure!H744","v":0},{"$f":"[1]Infrastructure!I744","v":0},{"$f":"[1]Infrastructure!J744","v":0},{"$f":"[1]Infrastructure!K744","v":0},{"$f":"[1]Infrastructure!L744","v":0},{"$f":"[1]Infrastructure!M744","v":0},{"$f":"[1]Infrastructure!N744","v":0},{"$f":"[1]Infrastructure!O744","v":0},{"$f":"[1]Infrastructure!Q744","v":0},{"$f":"[1]Infrastructure!R744","v":0},{"$f":"[1]Infrastructure!T744","v":0},{"$f":"[1]Infrastructure!W744","v":0},{"$f":"[1]Infrastructure!W744","v":0},0,{"$f":"[1]Infrastructure!Z744","v":0},{"$f":"[1]Infrastructure!Z744","v":0},0,{"$f":"[1]Infrastructure!AB744","v":0},{"$f":"[1]Infrastructure!AB744","v":0},0,{"$f":"[1]Infrastructure!AC744","v":0},{"$f":"[1]Infrastructure!AD744","v":0},{"$f":"[1]Infrastructure!AE744","v":0},{"$f":"[1]Infrastructure!AF744","v":0},{"$f":"[1]Infrastructure!AG744","v":0},{"$f":"[1]Infrastructure!AH744","v":0},0]
[0,null,null,null,null,null,{"$f":"[1]Infrastructure!G745","v":0},{"$f":"[1]Infrastructure!H745","v":0},{"$f":"[1]Infrastructure!I745","v":0},{"$f":"[1]Infrastructure!J745","v":0},{"$f":"[1]Infrastructure!K745","v":0},{"$f":"[1]Infrastructure!L745","v":0},{"$f":"[1]Infrastructure!M745","v":0},{"$f":"[1]Infrastructure!N745","v":0},{"$f":"[1]Infrastructure!O745","v":0},{"$f":"[1]Infrastructure!Q745","v":0},{"$f":"[1]Infrastructure!R745","v":0},{"$f":"[1]Infrastructure!T745","v":0},{"$f":"[1]Infrastructure!W745","v":0},{"$f":"[1]Infrastructure!W745","v":0},0,{"$f":"[1]Infrastructure!Z745","v":0},{"$f":"[1]Infrastructure!Z745","v":0},0,{"$f":"[1]Infrastructure!AB745","v":0},{"$f":"[1]Infrastructure!AB745","v":0},0,{"$f":"[1]Infrastructure!AC745","v":0},{"$f":"[1]Infrastructure!AD745","v":0},{"$f":"[1]Infrastructure!AE745","v":0},{"$f":"[1]Infrastructure!AF745","v":0},{"$f":"[1]Infrastructure!AG745","v":0},{"$f":"[1]Infrastructure!AH745","v":0},0]
[0,null,null,null,null,null,{"$f":"[1]Infrastructure!G746","v":0},{"$f":"[1]Infrastructure!H746","v":0},{"$f":"[1]Infrastructure!I746","v":0},{"$f":"[1]Infrastructure!J746","v":0},{"$f":"[1]Infrastructure!K746","v":0},{"$f":"[1]Infrastructure!L746","v":0},{"$f":"[1]Infrastructure!M746","v":0},{"$f":"[1]Infrastructure!N746","v":0},{"$f":"[1]Infrastructure!O746","v":0},{"$f":"[1]Infrastructure!Q746","v":0},{"$f":"[1]Infrastructure!R746","v":0},{"$f":"[1]Infrastructure!T746","v":0},{"$f":"[1]Infrastructure!W746","v":0},{"$f":"[1]Infrastructure!W746","v":0},0,{"$f":"[1]Infrastructure!Z746","v":0},{"$f":"[1]Infrastructure!Z746","v":0},0,{"$f":"[1]Infrastructure!AB746","v":0},{"$f":"[1]Infrastructure!AB746","v":0},0,{"$f":"[1]Infrastructure!AC746","v":0},{"$f":"[1]Infrastructure!AD746","v":0},{"$f":"[1]Infrastructure!AE746","v":0},{"$f":"[1]Infrastructure!AF746","v":0},{"$f":"[1]Infrastructure!AG746","v":0},{"$f":"[1]Infrastructure!AH746","v":0},0]
[0,null,null,null,null,null,{"$f":"[1]Infrastructure!G747","v":0},{"$f":"[1]Infrastructure!H747","v":0},{"$f":"[1]Infrastructure!I747","v":0},{"$f":"[1]Infrastructure!J747","v":0},{"$f":"[1]Infrastructure!K747","v":0},{"$f":"[1]Infrastructure!L747","v":0},{"$f":"[1]Infrastructure!M747","v":0},{"$f":"[1]Infrastructure!N747","v":0},{"$f":"[1]Infrastructure!O747","v":0},{"$f":"[1]Infrastructure!Q747","v":0},{"$f":"[1]Infrastructure!R747","v":0},{"$f":"[1]Infrastructure!T747","v":0},{"$f":"[1]Infrastructure!W747","v":0},{"$f":"[1]Infrastructure!W747","v":0},0,{"$f":"[1]Infrastructure!Z747","v":0},{"$f":"[1]Infrastructure!Z747","v":0},0,{"$f":"[1]Infrastructure!AB747","v":0},{"$f":"[1]Infrastructure!AB747","v":0},0,{"$f":"[1]Infrastructure!AC747","v":0},{"$f":"[1]Infrastructure!AD747","v":0},{"$f":"[1]Infrastructure!AE747","v":0},{"$f":"[1]Infrastructure!AF747","v":0},{"$f":"[1]Infrastructure!AG747","v":0},{"$f":"[1]Infrastructure!AH747","v":0},0]
[0,null,null,null,null,null,{"$f":"[1]Infrastructure!G748","v":0},{"$f":"[1]Infrastructure!H748","v":0},{"$f":"[1]Infrastructure!I748","v":0},{"$f":"[1]Infrastructure!J748","v":0},{"$f":"[1]Infrastructure!K748","v":0},{"$f":"[1]Infrastructure!L748","v":0},{"$f":"[1]Infrastructure!M748","v":0},{"$f":"[1]Infrastructure!N748","v":0},{"$f":"[1]Infrastructure!O748","v":0},{"$f":"[1]Infrastructure!Q748","v":0},{"$f":"[1]Infrastructure!R748","v":0},{"$f":"[1]Infrastructure!T748","v":0},{"$f":"[1]Infrastructure!W748","v":0},{"$f":"[1]Infrastructure!W748","v":0},0,{"$f":"[1]Infrastructure!Z748","v":0},{"$f":"[1]Infrastructure!Z748","v":0},0,{"$f":"[1]Infrastructure!AB748","v":0},{"$f":"[1]Infrastructure!AB748","v":0},0,{"$f":"[1]Infrastructure!AC748","v":0},{"$f":"[1]Infrastructure!AD748","v":0},{"$f":"[1]Infrastructure!AE748","v":0},{"$f":"[1]Infrastructure!AF748","v":0},{"$f":"[1]Infrastructure!AG748","v":0},{"$f":"[1]Infrastructure!AH748","v":0},0]
[0,null,null,null,null,null,{"$f":"[1]Infrastructure!G749","v":0},{"$f":"[1]Infrastructure!H749","v":0},{"$f":"[1]Infrastructure!I749","v":0},{"$f":"[1]Infrastructure!J749","v":0},{"$f":"[1]Infrastructure!K749","v":0},{"$f":"[1]Infrastructure!L749","v":0},{"$f":"[1]Infrastructure!M749","v":0},{"$f":"[1]Infrastructure!N749","v":0},{"$f":"[1]Infrastructure!O749","v":0},{"$f":"[1]Infrastructure!Q749","v":0},{"$f":"[1]Infrastructure!R749","v":0},{"$f":"[1]Infrastructure!T749","v":0},{"$f":"[1]Infrastructure!W749","v":0},{"$f":"[1]Infrastructure!W749","v":0},0,{"$f":"[1]Infrastructure!Z749","v":0},{"$f":"[1]Infrastructure!Z749","v":0},0,{"$f":"[1]Infrastructure!AB749","v":0},{"$f":"[1]Infrastructure!AB749","v":0},0,{"$f":"[1]Infrastructure!AC749","v":0},{"$f":"[1]Infrastructure!AD749","v":0},{"$f":"[1]Infrastructure!AE749","v":0},{"$f":"[1]Infrastructure!AF749","v":0},{"$f":"[1]Infrastructure!AG749","v":0},{"$f":"[1]Infrastructure!AH749","v":0},0]
[0,null,null,null,null,null,{"$f":"[1]Infrastructure!G750","v":0},{"$f":"[1]Infrastructure!H750","v":0},{"$f":"[1]Infrastructure!I750","v":0},{"$f":"[1]Infrastructure!J750","v":0},{"$f":"[1]Infrastructure!K750","v":0},{"$f":"[1]Infrastructure!L750","v":0},{"$f":"[1]Infrastructure!M750","v":0},{"$f":"[1]Infrastructure!N750","v":0},{"$f":"[1]Infrastructure!O750","v":0},{"$f":"[1]Infrastructure!Q750","v":0},{"$f":"[1]Infrastructure!R750","v":0},{"$f":"[1]Infrastructure!T750","v":0},{"$f":"[1]Infrastructure!W750","v":0},{"$f":"[1]Infrastructure!W750","v":0},0,{"$f":"[1]Infrastructure!Z750","v":0},{"$f":"[1]Infrastructure!Z750","v":0},0,{"$f":"[1]Infrastructure!AB750","v":0},{"$f":"[1]Infrastructure!AB750","v":0},0,{"$f":"[1]Infrastructure!AC750","v":0},{"$f":"[1]Infrastructure!AD750","v":0},{"$f":"[1]Infrastructure!AE750","v":0},{"$f":"[1]Infrastructure!AF750","v":0},{"$f":"[1]Infrastructure!AG750","v":0},{"$f":"[1]Infrastructure!AH750","v":0},0]
[0,null,null,null,null,null,{"$f":"[1]Infrastructure!G751","v":0},{"$f":"[1]Infrastructure!H751","v":0},{"$f":"[1]Infrastructure!I751","v":0},{"$f":"[1]Infrastructure!J751","v":0},{"$f":"[1]Infrastructure!K751","v":0},{"$f":"[1]Infrastructure!L751","v":0},{"$f":"[1]Infrastructure!M751","v":0},{"$f":"[1]Infrastructure!N751","v":0},{"$f":"[1]Infrastructure!O751","v":0},{"$f":"[1]Infrastructure!Q751","v":0},{"$f":"[1]Infrastructure!R751","v":0},{"$f":"[1]Infrastructure!T751","v":0},{"$f":"[1]Infrastructure!W751","v":0},{"$f":"[1]Infrastructure!W751","v":0},0,{"$f":"[1]Infrastructure!Z751","v":0},{"$f":"[1]Infrastructure!Z751","v":0},0,{"$f":"[1]Infrastructure!AB751","v":0},{"$f":"[1]Infrastructure!AB751","v":0},0,{"$f":"[1]Infrastructure!AC751","v":0},{"$f":"[1]Infrastructure!AD751","v":0},{"$f":"[1]Infrastructure!AE751","v":0},{"$f":"[1]Infrastructure!AF751","v":0},{"$f":"[1]Infrastructure!AG751","v":0},{"$f":"[1]Infrastructure!AH751","v":0},0]
[0,null,null,null,null,null,{"$f":"[1]Infrastructure!G752","v":0},{"$f":"[1]Infrastructure!H752","v":0},{"$f":"[1]Infrastructure!I752","v":0},{"$f":"[1]Infrastructure!J752","v":0},{"$f":"[1]Infrastructure!K752","v":0},{"$f":"[1]Infrastructure!L752","v":0},{"$f":"[1]Infrastructure!M752","v":0},{"$f":"[1]Infrastructure!N752","v":0},{"$f":"[1]Infrastructure!O752","v":0},{"$f":"[1]Infrastructure!Q752","v":0},{"$f":"[1]Infrastructure!R752","v":0},{"$f":"[1]Infrastructure!T752","v":0},{"$f":"[1]Infrastructure!W752","v":0},{"$f":"[1]Infrastructure!W752","v":0},0,{"$f":"[1]Infrastructure!Z752","v":0},{"$f":"[1]Infrastructure!Z752","v":0},0,{"$f":"[1]Infrastructure!AB752","v":0},{"$f":"[1]Infrastructure!AB752","v":0},0,{"$f":"[1]Infrastructure!AC752","v":0},{"$f":"[1]Infrastructure!AD752","v":0},{"$f":"[1]Infrastructure!AE752","v":0},{"$f":"[1]Infrastructure!AF752","v":0},{"$f":"[1]Infrastructure!AG752","v":0},{"$f":"[1]Infrastructure!AH752","v":0},0]
[0,null,null,null,null,null,{"$f":"[1]Infrastructure!G753","v":0},{"$f":"[1]Infrastructure!H753","v":0},{"$f":"[1]Infrastructure!I753","v":0},{"$f":"[1]Infrastructure!J753","v":0},{"$f":"[1]Infrastructure!K753","v":0},{"$f":"[1]Infrastructure!L753","v":0},{"$f":"[1]Infrastructure!M753","v":0},{"$f":"[1]Infrastructure!N753","v":0},{"$f":"[1]Infrastructure!O753","v":0},{"$f":"[1]Infrastructure!Q753","v":0},{"$f":"[1]Infrastructure!R753","v":0},{"$f":"[1]Infrastructure!T753","v":0},{"$f":"[1]Infrastructure!W753","v":0},{"$f":"[1]Infrastructure!W753","v":0},0,{"$f":"[1]Infrastructure!Z753","v":0},{"$f":"[1]Infrastructure!Z753","v":0},0,{"$f":"[1]Infrastructure!AB753","v":0},{"$f":"[1]Infrastructure!AB753","v":0},0,{"$f":"[1]Infrastructure!AC753","v":0},{"$f":"[1]Infrastructure!AD753","v":0},{"$f":"[1]Infrastructure!AE753","v":0},{"$f":"[1]Infrastructure!AF753","v":0},{"$f":"[1]Infrastructure!AG753","v":0},{"$f":"[1]Infrastructure!AH753","v":0},0]
[0,null,null,null,null,null,{"$f":"[1]Infrastructure!G754","v":0},{"$f":"[1]Infrastructure!H754","v":0},{"$f":"[1]Infrastructure!I754","v":0},{"$f":"[1]Infrastructure!J754","v":0},{"$f":"[1]Infrastructure!K754","v":0},{"$f":"[1]Infrastructure!L754","v":0},{"$f":"[1]Infrastructure!M754","v":0},{"$f":"[1]Infrastructure!N754","v":0},{"$f":"[1]Infrastructure!O754","v":0},{"$f":"[1]Infrastructure!Q754","v":0},{"$f":"[1]Infrastructure!R754","v":0},{"$f":"[1]Infrastructure!T754","v":0},{"$f":"[1]Infrastructure!W754","v":0},{"$f":"[1]Infrastructure!W754","v":0},0,{"$f":"[1]Infrastructure!Z754","v":0},{"$f":"[1]Infrastructure!Z754","v":0},0,{"$f":"[1]Infrastructure!AB754","v":0},{"$f":"[1]Infrastructure!AB754","v":0},0,{"$f":"[1]Infrastructure!AC754","v":0},{"$f":"[1]Infrastructure!AD754","v":0},{"$f":"[1]Infrastructure!AE754","v":0},{"$f":"[1]Infrastructure!AF754","v":0},{"$f":"[1]Infrastructure!AG754","v":0},{"$f":"[1]Infrastructure!AH754","v":0},0]
[0,null,null,null,null,null,{"$f":"[1]Infrastructure!G755","v":0},{"$f":"[1]Infrastructure!H755","v":0},{"$f":"[1]Infrastructure!I755","v":0},{"$f":"[1]Infrastructure!J755","v":0},{"$f":"[1]Infrastructure!K755","v":0},{"$f":"[1]Infrastructure!L755","v":0},{"$f":"[1]Infrastructure!M755","v":0},{"$f":"[1]Infrastructure!N755","v":0},{"$f":"[1]Infrastructure!O755","v":0},{"$f":"[1]Infrastructure!Q755","v":0},{"$f":"[1]Infrastructure!R755","v":0},{"$f":"[1]Infrastructure!T755","v":0},{"$f":"[1]Infrastructure!W755","v":0},{"$f":"[1]Infrastructure!W755","v":0},0,{"$f":"[1]Infrastructure!Z755","v":0},{"$f":"[1]Infrastructure!Z755","v":0},0,{"$f":"[1]Infrastructure!AB755","v":0},{"$f":"[1]Infrastructure!AB755","v":0},0,{"$f":"[1]Infrastructure!AC755","v":0},{"$f":"[1]Infrastructure!AD755","v":0},{"$f":"[1]Infrastructure!AE755","v":0},{"$f":"[1]Infrastructure!AF755","v":0},{"$f":"[1]Infrastructure!AG755","v":0},{"$f":"[1]Infrastructure!AH755","v":0},0]
[0,null,null,null,null,null,{"$f":"[1]Infrastructure!G756","v":0},{"$f":"[1]Infrastructure!H756","v":0},{"$f":"[1]Infrastructure!I756","v":0},{"$f":"[1]Infrastructure!J756","v":0},{"$f":"[1]Infrastructure!K756","v":0},{"$f":"[1]Infrastructure!L756","v":0},{"$f":"[1]Infrastructure!M756","v":0},{"$f":"[1]Infrastructure!N756","v":0},{"$f":"[1]Infrastructure!O756","v":0},{"$f":"[1]Infrastructure!Q756","v":0},{"$f":"[1]Infrastructure!R756","v":0},{"$f":"[1]Infrastructure!T756","v":0},{"$f":"[1]Infrastructure!W756","v":0},{"$f":"[1]Infrastructure!W756","v":0},0,{"$f":"[1]Infrastructure!Z756","v":0},{"$f":"[1]Infrastructure!Z756","v":0},0,{"$f":"[1]Infrastructure!AB756","v":0},{"$f":"[1]Infrastructure!AB756","v":0},0,{"$f":"[1]Infrastructure!AC756","v":0},{"$f":"[1]Infrastructure!AD756","v":0},{"$f":"[1]Infrastructure!AE756","v":0},{"$f":"[1]Infrastructure!AF756","v":0},{"$f":"[1]Infrastructure!AG756","v":0},{"$f":"[1]Infrastructure!AH756","v":0},0]
[0,null,null,null,null,null,{"$f":"[1]Infrastructure!G757","v":0},{"$f":"[1]Infrastructure!H757","v":0},{"$f":"[1]Infrastructure!I757","v":0},{"$f":"[1]Infrastructure!J757","v":0},{"$f":"[1]Infrastructure!K757","v":0},{"$f":"[1]Infrastructure!L757","v":0},{"$f":"[1]Infrastructure!M757","v":0},{"$f":"[1]Infrastructure!N757","v":0},{"$f":"[1]Infrastructure!O757","v":0},{"$f":"[1]Infrastructure!Q757","v":0},{"$f":"[1]Infrastructure!R757","v":0},{"$f":"[1]Infrastructure!T757","v":0},{"$f":"[1]Infrastructure!W757","v":0},{"$f":"[1]Infrastructure!W757","v":0},0,{"$f":"[1]Infrastructure!Z757","v":0},{"$f":"[1]Infrastructure!Z757","v":0},0,{"$f":"[1]Infrastructure!AB757","v":0},{"$f":"[1]Infrastructure!AB757","v":0},0,{"$f":"[1]Infrastructure!AC757","v":0},{"$f":"[1]Infrastructure!AD757","v":0},{"$f":"[1]Infrastructure!AE757","v":0},{"$f":"[1]Infrastructure!AF757","v":0},{"$f":"[1]Infrastructure!AG757","v":0},{"$f":"[1]Infrastructure!AH757","v":0},0]
[0,null,null,null,null,null,{"$f":"[1]Infrastructure!G758","v":0},{"$f":"[1]Infrastructure!H758","v":0},{"$f":"[1]Infrastructure!I758","v":0},{"$f":"[1]Infrastructure!J758","v":0},{"$f":"[1]Infrastructure!K758","v":0},{"$f":"[1]Infrastructure!L758","v":0},{"$f":"[1]Infrastructure!M758","v":0},{"$f":"[1]Infrastructure!N758","v":0},{"$f":"[1]Infrastructure!O758","v":0},{"$f":"[1]Infrastructure!Q758","v":0},{"$f":"[1]Infrastructure!R758","v":0},{"$f":"[1]Infrastructure!T758","v":0},{"$f":"[1]Infrastructure!W758","v":0},{"$f":"[1]Infrastructure!W758","v":0},0,{"$f":"[1]Infrastructure!Z758","v":0},{"$f":"[1]Infrastructure!Z758","v":0},0,{"$f":"[1]Infrastructure!AB758","v":0},{"$f":"[1]Infrastructure!AB758","v":0},0,{"$f":"[1]Infrastructure!AC758","v":0},{"$f":"[1]Infrastructure!AD758","v":0},{"$f":"[1]Infrastructure!AE758","v":0},{"$f":"[1]Infrastructure!AF758","v":0},{"$f":"[1]Infrastructure!AG758","v":0},{"$f":"[1]Infrastructure!AH758","v":0},0]
[0,null,null,null,null,null,{"$f":"[1]Infrastructure!G759","v":0},{"$f":"[1]Infrastructure!H759","v":0},{"$f":"[1]Infrastructure!I759","v":0},{"$f":"[1]Infrastructure!J759","v":0},{"$f":"[1]Infrastructure!K759","v":0},{"$f":"[1]Infrastructure!L759","v":0},{"$f":"[1]Infrastructure!M759","v":0},{"$f":"[1]Infrastructure!N759","v":0},{"$f":"[1]Infrastructure!O759","v":0},{"$f":"[1]Infrastructure!Q759","v":0},{"$f":"[1]Infrastructure!R759","v":0},{"$f":"[1]Infrastructure!T759","v":0},{"$f":"[1]Infrastructure!W759","v":0},{"$f":"[1]Infrastructure!W759","v":0},0,{"$f":"[1]Infrastructure!Z759","v":0},{"$f":"[1]Infrastructure!Z759","v":0},0,{"$f":"[1]Infrastructure!AB759","v":0},{"$f":"[1]Infrastructure!AB759","v":0},0,{"$f":"[1]Infrastructure!AC759","v":0},{"$f":"[1]Infrastructure!AD759","v":0},{"$f":"[1]Infrastructure!AE759","v":0},{"$f":"[1]Infrastructure!AF759","v":0},{"$f":"[1]Infrastructure!AG759","v":0},{"$f":"[1]Infrastructure!AH759","v":0},0]
[0,null,null,null,null,null,{"$f":"[1]Infrastructure!G760","v":0},{"$f":"[1]Infrastructure!H760","v":0},{"$f":"[1]Infrastructure!I760","v":0},{"$f":"[1]Infrastructure!J760","v":0},{"$f":"[1]Infrastructure!K760","v":0},{"$f":"[1]Infrastructure!L760","v":0},{"$f":"[1]Infrastructure!M760","v":0},{"$f":"[1]Infrastructure!N760","v":0},{"$f":"[1]Infrastructure!O760","v":0},{"$f":"[1]Infrastructure!Q760","v":0},{"$f":"[1]Infrastructure!R760","v":0},{"$f":"[1]Infrastructure!T760","v":0},{"$f":"[1]Infrastructure!W760","v":0},{"$f":"[1]Infrastructure!W760","v":0},0,{"$f":"[1]Infrastructure!Z760","v":0},{"$f":"[1]Infrastructure!Z760","v":0},0,{"$f":"[1]Infrastructure!AB760","v":0},{"$f":"[1]Infrastructure!AB760","v":0},0,{"$f":"[1]Infrastructure!AC760","v":0},{"$f":"[1]Infrastructure!AD760","v":0},{"$f":"[1]Infrastructure!AE760","v":0},{"$f":"[1]Infrastructure!AF760","v":0},{"$f":"[1]Infrastructure!AG760","v":0},{"$f":"[1]Infrastructure!AH760","v":0},0]
[0,null,null,null,null,null,{"$f":"[1]Infrastructure!G761","v":0},{"$f":"[1]Infrastructure!H761","v":0},{"$f":"[1]Infrastructure!I761","v":0},{"$f":"[1]Infrastructure!J761","v":0},{"$f":"[1]Infrastructure!K761","v":0},{"$f":"[1]Infrastructure!L761","v":0},{"$f":"[1]Infrastructure!M761","v":0},{"$f":"[1]Infrastructure!N761","v":0},{"$f":"[1]Infrastructure!O761","v":0},{"$f":"[1]Infrastructure!Q761","v":0},{"$f":"[1]Infrastructure!R761","v":0},{"$f":"[1]Infrastructure!T761","v":0},{"$f":"[1]Infrastructure!W761","v":0},{"$f":"[1]Infrastructure!W761","v":0},0,{"$f":"[1]Infrastructure!Z761","v":0},{"$f":"[1]Infrastructure!Z761","v":0},0,{"$f":"[1]Infrastructure!AB761","v":0},{"$f":"[1]Infrastructure!AB761","v":0},0,{"$f":"[1]Infrastructure!AC761","v":0},{"$f":"[1]Infrastructure!AD761","v":0},{"$f":"[1]Infrastructure!AE761","v":0},{"$f":"[1]Infrastructure!AF761","v":0},{"$f":"[1]Infrastructure!AG761","v":0},{"$f":"[1]Infrastructure!AH761","v":0},0]
[0,null,null,null,null,null,{"$f":"[1]Infrastructure!G762","v":0},{"$f":"[1]Infrastructure!H762","v":0},{"$f":"[1]Infrastructure!I762","v":0},{"$f":"[1]Infrastructure!J762","v":0},{"$f":"[1]Infrastructure!K762","v":0},{"$f":"[1]Infrastructure!L762","v":0},{"$f":"[1]Infrastructure!M762","v":0},{"$f":"[1]Infrastructure!N762","v":0},{"$f":"[1]Infrastructure!O762","v":0},{"$f":"[1]Infrastructure!Q762","v":0},{"$f":"[1]Infrastructure!R762","v":0},{"$f":"[1]Infrastructure!T762","v":0},{"$f":"[1]Infrastructure!W762","v":0},{"$f":"[1]Infrastructure!W762","v":0},0,{"$f":"[1]Infrastructure!Z762","v":0},{"$f":"[1]Infrastructure!Z762","v":0},0,{"$f":"[1]Infrastructure!AB762","v":0},{"$f":"[1]Infrastructure!AB762","v":0},0,{"$f":"[1]Infrastructure!AC762","v":0},{"$f":"[1]Infrastructure!AD762","v":0},{"$f":"[1]Infrastructure!AE762","v":0},{"$f":"[1]Infrastructure!AF762","v":0},{"$f":"[1]Infrastructure!AG762","v":0},{"$f":"[1]Infrastructure!AH762","v":0},0]
[0,null,null,null,null,null,{"$f":"[1]Infrastructure!G763","v":0},{"$f":"[1]Infrastructure!H763","v":0},{"$f":"[1]Infrastructure!I763","v":0},{"$f":"[1]Infrastructure!J763","v":0},{"$f":"[1]Infrastructure!K763","v":0},{"$f":"[1]Infrastructure!L763","v":0},{"$f":"[1]Infrastructure!M763","v":0},{"$f":"[1]Infrastructure!N763","v":0},{"$f":"[1]Infrastructure!O763","v":0},{"$f":"[1]Infrastructure!Q763","v":0},{"$f":"[1]Infrastructure!R763","v":0},{"$f":"[1]Infrastructure!T763","v":0},{"$f":"[1]Infrastructure!W763","v":0},{"$f":"[1]Infrastructure!W763","v":0},0,{"$f":"[1]Infrastructure!Z763","v":0},{"$f":"[1]Infrastructure!Z763","v":0},0,{"$f":"[1]Infrastructure!AB763","v":0},{"$f":"[1]Infrastructure!AB763","v":0},0,{"$f":"[1]Infrastructure!AC763","v":0},{"$f":"[1]Infrastructure!AD763","v":0},{"$f":"[1]Infrastructure!AE763","v":0},{"$f":"[1]Infrastructure!AF763","v":0},{"$f":"[1]Infrastructure!AG763","v":0},{"$f":"[1]Infrastructure!AH763","v":0},0]
[0,null,null,null,null,null,{"$f":"[1]Infrastructure!G764","v":0},{"$f":"[1]Infrastructure!H764","v":0},{"$f":"[1]Infrastructure!I764","v":0},{"$f":"[1]Infrastructure!J764","v":0},{"$f":"[1]Infrastructure!K764","v":0},{"$f":"[1]Infrastructure!L764","v":0},{"$f":"[1]Infrastructure!M764","v":0},{"$f":"[1]Infrastructure!N764","v":0},{"$f":"[1]Infrastructure!O764","v":0},{"$f":"[1]Infrastructure!Q764","v":0},{"$f":"[1]Infrastructure!R764","v":0},{"$f":"[1]Infrastructure!T764","v":0},{"$f":"[1]Infrastructure!W764","v":0},{"$f":"[1]Infrastructure!W764","v":0},0,{"$f":"[1]Infrastructure!Z764","v":0},{"$f":"[1]Infrastructure!Z764","v":0},0,{"$f":"[1]Infrastructure!AB764","v":0},{"$f":"[1]Infrastructure!AB764","v":0},0,{"$f":"[1]Infrastructure!AC764","v":0},{"$f":"[1]Infrastructure!AD764","v":0},{"$f":"[1]Infrastructure!AE764","v":0},{"$f":"[1]Infrastructure!AF764","v":0},{"$f":"[1]Infrastructure!AG764","v":0},{"$f":"[1]Infrastructure!AH764","v":0},0]
[0,null,null,null,null,null,{"$f":"[1]Infrastructure!G765","v":0},{"$f":"[1]Infrastructure!H765","v":0},{"$f":"[1]Infrastructure!I765","v":0},{"$f":"[1]Infrastructure!J765","v":0},{"$f":"[1]Infrastructure!K765","v":0},{"$f":"[1]Infrastructure!L765","v":0},{"$f":"[1]Infrastructure!M765","v":0},{"$f":"[1]Infrastructure!N765","v":0},{"$f":"[1]Infrastructure!O765","v":0},{"$f":"[1]Infrastructure!Q765","v":0},{"$f":"[1]Infrastructure!R765","v":0},{"$f":"[1]Infrastructure!T765","v":0},{"$f":"[1]Infrastructure!W765","v":0},{"$f":"[1]Infrastructure!W765","v":0},0,{"$f":"[1]Infrastructure!Z765","v":0},{"$f":"[1]Infrastructure!Z765","v":0},0,{"$f":"[1]Infrastructure!AB765","v":0},{"$f":"[1]Infrastructure!AB765","v":0},0,{"$f":"[1]Infrastructure!AC765","v":0},{"$f":"[1]Infrastructure!AD765","v":0},{"$f":"[1]Infrastructure!AE765","v":0},{"$f":"[1]Infrastructure!AF765","v":0},{"$f":"[1]Infrastructure!AG765","v":0},{"$f":"[1]Infrastructure!AH765","v":0},0]
[0,null,null,null,null,null,{"$f":"[1]Infrastructure!G766","v":0},{"$f":"[1]Infrastructure!H766","v":0},{"$f":"[1]Infrastructure!I766","v":0},{"$f":"[1]Infrastructure!J766","v":0},{"$f":"[1]Infrastructure!K766","v":0},{"$f":"[1]Infrastructure!L766","v":0},{"$f":"[1]Infrastructure!M766","v":0},{"$f":"[1]Infrastructure!N766","v":0},{"$f":"[1]Infrastructure!O766","v":0},{"$f":"[1]Infrastructure!Q766","v":0},{"$f":"[1]Infrastructure!R766","v":0},{"$f":"[1]Infrastructure!T766","v":0},{"$f":"[1]Infrastructure!W766","v":0},{"$f":"[1]Infrastructure!W766","v":0},0,{"$f":"[1]Infrastructure!Z766","v":0},{"$f":"[1]Infrastructure!Z766","v":0},0,{"$f":"[1]Infrastructure!AB766","v":0},{"$f":"[1]Infrastructure!AB766","v":0},0,{"$f":"[1]Infrastructure!AC766","v":0},{"$f":"[1]Infrastructure!AD766","v":0},{"$f":"[1]Infrastructure!AE766","v":0},{"$f":"[1]Infrastructure!AF766","v":0},{"$f":"[1]Infrastructure!AG766","v":0},{"$f":"[1]Infrastructure!AH766","v":0},0]
[0,null,null,null,null,null,{"$f":"[1]Infrastructure!G767","v":0},{"$f":"[1]Infrastructure!H767","v":0},{"$f":"[1]Infrastructure!I767","v":0},{"$f":"[1]Infrastructure!J767","v":0},{"$f":"[1]Infrastructure!K767","v":0},{"$f":"[1]Infrastructure!L767","v":0},{"$f":"[1]Infrastructure!M767","v":0},{"$f":"[1]Infrastructure!N767","v":0},{"$f":"[1]Infrastructure!O767","v":0},{"$f":"[1]Infrastructure!Q767","v":0},{"$f":"[1]Infrastructure!R767","v":0},{"$f":"[1]Infrastructure!T767","v":0},{"$f":"[1]Infrastructure!W767","v":0},{"$f":"[1]Infrastructure!W767","v":0},0,{"$f":"[1]Infrastructure!Z767","v":0},{"$f":"[1]Infrastructure!Z767","v":0},0,{"$f":"[1]Infrastructure!AB767","v":0},{"$f":"[1]Infrastructure!AB767","v":0},0,{"$f":"[1]Infrastructure!AC767","v":0},{"$f":"[1]Infrastructure!AD767","v":0},{"$f":"[1]Infrastructure!AE767","v":0},{"$f":"[1]Infrastructure!AF767","v":0},{"$f":"[1]Infrastructure!AG767","v":0},{"$f":"[1]Infrastructure!AH767","v":0},0]
[0,null,null,null,null,null,{"$f":"[1]Infrastructure!G768","v":0},{"$f":"[1]Infrastructure!H768","v":0},{"$f":"[1]Infrastructure!I768","v":0},{"$f":"[1]Infrastructure!J768","v":0},{"$f":"[1]Infrastructure!K768","v":0},{"$f":"[1]Infrastructure!L768","v":0},{"$f":"[1]Infrastructure!M768","v":0},{"$f":"[1]Infrastructure!N768","v":0},{"$f":"[1]Infrastructure!O768","v":0},{"$f":"[1]Infrastructure!Q768","v":0},{"$f":"[1]Infrastructure!R768","v":0},{"$f":"[1]Infrastructure!T768","v":0},{"$f":"[1]Infrastructure!W768","v":0},{"$f":"[1]Infrastructure!W768","v":0},0,{"$f":"[1]Infrastructure!Z768","v":0},{"$f":"[1]Infrastructure!Z768","v":0},0,{"$f":"[1]Infrastructure!AB768","v":0},{"$f":"[1]Infrastructure!AB768","v":0},0,{"$f":"[1]Infrastructure!AC768","v":0},{"$f":"[1]Infrastructure!AD768","v":0},{"$f":"[1]Infrastructure!AE768","v":0},{"$f":"[1]Infrastructure!AF768","v":0},{"$f":"[1]Infrastructure!AG768","v":0},{"$f":"[1]Infrastructure!AH768","v":0},0]
[0,null,null,null,null,null,{"$f":"[1]Infrastructure!G769","v":0},{"$f":"[1]Infrastructure!H769","v":0},{"$f":"[1]Infrastructure!I769","v":0},{"$f":"[1]Infrastructure!J769","v":0},{"$f":"[1]Infrastructure!K769","v":0},{"$f":"[1]Infrastructure!L769","v":0},{"$f":"[1]Infrastructure!M769","v":0},{"$f":"[1]Infrastructure!N769","v":0},{"$f":"[1]Infrastructure!O769","v":0},{"$f":"[1]Infrastructure!Q769","v":0},{"$f":"[1]Infrastructure!R769","v":0},{"$f":"[1]Infrastructure!T769","v":0},{"$f":"[1]Infrastructure!W769","v":0},{"$f":"[1]Infrastructure!W769","v":0},0,{"$f":"[1]Infrastructure!Z769","v":0},{"$f":"[1]Infrastructure!Z769","v":0},0,{"$f":"[1]Infrastructure!AB769","v":0},{"$f":"[1]Infrastructure!AB769","v":0},0,{"$f":"[1]Infrastructure!AC769","v":0},{"$f":"[1]Infrastructure!AD769","v":0},{"$f":"[1]Infrastructure!AE769","v":0},{"$f":"[1]Infrastructure!AF769","v":0},{"$f":"[1]Infrastructure!AG769","v":0},{"$f":"[1]Infrastructure!AH769","v":0},0]
[0,null,null,null,null,null,{"$f":"[1]Infrastructure!G770","v":0},{"$f":"[1]Infrastructure!H770","v":0},{"$f":"[1]Infrastructure!I770","v":0},{"$f":"[1]Infrastructure!J770","v":0},{"$f":"[1]Infrastructure!K770","v":0},{"$f":"[1]Infrastructure!L770","v":0},{"$f":"[1]Infrastructure!M770","v":0},{"$f":"[1]Infrastructure!N770","v":0},{"$f":"[1]Infrastructure!O770","v":0},{"$f":"[1]Infrastructure!Q770","v":0},{"$f":"[1]Infrastructure!R770","v":0},{"$f":"[1]Infrastructure!T770","v":0},{"$f":"[1]Infrastructure!W770","v":0},{"$f":"[1]Infrastructure!W770","v":0},0,{"$f":"[1]Infrastructure!Z770","v":0},{"$f":"[1]Infrastructure!Z770","v":0},0,{"$f":"[1]Infrastructure!AB770","v":0},{"$f":"[1]Infrastructure!AB770","v":0},0,{"$f":"[1]Infrastructure!AC770","v":0},{"$f":"[1]Infrastructure!AD770","v":0},{"$f":"[1]Infrastructure!AE770","v":0},{"$f":"[1]Infrastructure!AF770","v":0},{"$f":"[1]Infrastructure!AG770","v":0},{"$f":"[1]Infrastructure!AH770","v":0},0]
[0,null,null,null,null,null,{"$f":"[1]Infrastructure!G771","v":0},{"$f":"[1]Infrastructure!H771","v":0},{"$f":"[1]Infrastructure!I771","v":0},{"$f":"[1]Infrastructure!J771","v":0},{"$f":"[1]Infrastructure!K771","v":0},{"$f":"[1]Infrastructure!L771","v":0},{"$f":"[1]Infrastructure!M771","v":0},{"$f":"[1]Infrastructure!N771","v":0},{"$f":"[1]Infrastructure!O771","v":0},{"$f":"[1]Infrastructure!Q771","v":0},{"$f":"[1]Infrastructure!R771","v":0},{"$f":"[1]Infrastructure!T771","v":0},{"$f":"[1]Infrastructure!W771","v":0},{"$f":"[1]Infrastructure!W771","v":0},0,{"$f":"[1]Infrastructure!Z771","v":0},{"$f":"[1]Infrastructure!Z771","v":0},0,{"$f":"[1]Infrastructure!AB771","v":0},{"$f":"[1]Infrastructure!AB771","v":0},0,{"$f":"[1]Infrastructure!AC771","v":0},{"$f":"[1]Infrastructure!AD771","v":0},{"$f":"[1]Infrastructure!AE771","v":0},{"$f":"[1]Infrastructure!AF771","v":0},{"$f":"[1]Infrastructure!AG771","v":0},{"$f":"[1]Infrastructure!AH771","v":0},0]
[0,null,null,null,null,null,{"$f":"[1]Infrastructure!G772","v":0},{"$f":"[1]Infrastructure!H772","v":0},{"$f":"[1]Infrastructure!I772","v":0},{"$f":"[1]Infrastructure!J772","v":0},{"$f":"[1]Infrastructure!K772","v":0},{"$f":"[1]Infrastructure!L772","v":0},{"$f":"[1]Infrastructure!M772","v":0},{"$f":"[1]Infrastructure!N772","v":0},{"$f":"[1]Infrastructure!O772","v":0},{"$f":"[1]Infrastructure!Q772","v":0},{"$f":"[1]Infrastructure!R772","v":0},{"$f":"[1]Infrastructure!T772","v":0},{"$f":"[1]Infrastructure!W772","v":0},{"$f":"[1]Infrastructure!W772","v":0},0,{"$f":"[1]Infrastructure!Z772","v":0},{"$f":"[1]Infrastructure!Z772","v":0},0,{"$f":"[1]Infrastructure!AB772","v":0},{"$f":"[1]Infrastructure!AB772","v":0},0,{"$f":"[1]Infrastructure!AC772","v":0},{"$f":"[1]Infrastructure!AD772","v":0},{"$f":"[1]Infrastructure!AE772","v":0},{"$f":"[1]Infrastructure!AF772","v":0},{"$f":"[1]Infrastructure!AG772","v":0},{"$f":"[1]Infrastructure!AH772","v":0},0]
[0,null,null,null,null,null,{"$f":"[1]Infrastructure!G773","v":0},{"$f":"[1]Infrastructure!H773","v":0},{"$f":"[1]Infrastructure!I773","v":0},{"$f":"[1]Infrastructure!J773","v":0},{"$f":"[1]Infrastructure!K773","v":0},{"$f":"[1]Infrastructure!L773","v":0},{"$f":"[1]Infrastructure!M773","v":0},{"$f":"[1]Infrastructure!N773","v":0},{"$f":"[1]Infrastructure!O773","v":0},{"$f":"[1]Infrastructure!Q773","v":0},{"$f":"[1]Infrastructure!R773","v":0},{"$f":"[1]Infrastructure!T773","v":0},{"$f":"[1]Infrastructure!W773","v":0},{"$f":"[1]Infrastructure!W773","v":0},0,{"$f":"[1]Infrastructure!Z773","v":0},{"$f":"[1]Infrastructure!Z773","v":0},0,{"$f":"[1]Infrastructure!AB773","v":0},{"$f":"[1]Infrastructure!AB773","v":0},0,{"$f":"[1]Infrastructure!AC773","v":0},{"$f":"[1]Infrastructure!AD773","v":0},{"$f":"[1]Infrastructure!AE773","v":0},{"$f":"[1]Infrastructure!AF773","v":0},{"$f":"[1]Infrastructure!AG773","v":0},{"$f":"[1]Infrastructure!AH773","v":0},0]
[0,null,null,null,null,null,{"$f":"[1]Infrastructure!G774","v":0},{"$f":"[1]Infrastructure!H774","v":0},{"$f":"[1]Infrastructure!I774","v":0},{"$f":"[1]Infrastructure!J774","v":0},{"$f":"[1]Infrastructure!K774","v":0},{"$f":"[1]Infrastructure!L774","v":0},{"$f":"[1]Infrastructure!M774","v":0},{"$f":"[1]Infrastructure!N774","v":0},{"$f":"[1]Infrastructure!O774","v":0},{"$f":"[1]Infrastructure!Q774","v":0},{"$f":"[1]Infrastructure!R774","v":0},{"$f":"[1]Infrastructure!T774","v":0},{"$f":"[1]Infrastructure!W774","v":0},{"$f":"[1]Infrastructure!W774","v":0},0,{"$f":"[1]Infrastructure!Z774","v":0},{"$f":"[1]Infrastructure!Z774","v":0},0,{"$f":"[1]Infrastructure!AB774","v":0},{"$f":"[1]Infrastructure!AB774","v":0},0,{"$f":"[1]Infrastructure!AC774","v":0},{"$f":"[1]Infrastructure!AD774","v":0},{"$f":"[1]Infrastructure!AE774","v":0},{"$f":"[1]Infrastructure!AF774","v":0},{"$f":"[1]Infrastructure!AG774","v":0},{"$f":"[1]Infrastructure!AH774","v":0},0]
[0,null,null,null,null,null,{"$f":"[1]Infrastructure!G775","v":0},{"$f":"[1]Infrastructure!H775","v":0},{"$f":"[1]Infrastructure!I775","v":0},{"$f":"[1]Infrastructure!J775","v":0},{"$f":"[1]Infrastructure!K775","v":0},{"$f":"[1]Infrastructure!L775","v":0},{"$f":"[1]Infrastructure!M775","v":0},{"$f":"[1]Infrastructure!N775","v":0},{"$f":"[1]Infrastructure!O775","v":0},{"$f":"[1]Infrastructure!Q775","v":0},{"$f":"[1]Infrastructure!R775","v":0},{"$f":"[1]Infrastructure!T775","v":0},{"$f":"[1]Infrastructure!W775","v":0},{"$f":"[1]Infrastructure!W775","v":0},0,{"$f":"[1]Infrastructure!Z775","v":0},{"$f":"[1]Infrastructure!Z775","v":0},0,{"$f":"[1]Infrastructure!AB775","v":0},{"$f":"[1]Infrastructure!AB775","v":0},0,{"$f":"[1]Infrastructure!AC775","v":0},{"$f":"[1]Infrastructure!AD775","v":0},{"$f":"[1]Infrastructure!AE775","v":0},{"$f":"[1]Infrastructure!AF775","v":0},{"$f":"[1]Infrastructure!AG775","v":0},{"$f":"[1]Infrastructure!AH775","v":0},0]
[0,null,null,null,null,null,{"$f":"[1]Infrastructure!G776","v":0},{"$f":"[1]Infrastructure!H776","v":0},{"$f":"[1]Infrastructure!I776","v":0},{"$f":"[1]Infrastructure!J776","v":0},{"$f":"[1]Infrastructure!K776","v":0},{"$f":"[1]Infrastructure!L776","v":0},{"$f":"[1]Infrastructure!M776","v":0},{"$f":"[1]Infrastructure!N776","v":0},{"$f":"[1]Infrastructure!O776","v":0},{"$f":"[1]Infrastructure!Q776","v":0},{"$f":"[1]Infrastructure!R776","v":0},{"$f":"[1]Infrastructure!T776","v":0},{"$f":"[1]Infrastructure!W776","v":0},{"$f":"[1]Infrastructure!W776","v":0},0,{"$f":"[1]Infrastructure!Z776","v":0},{"$f":"[1]Infrastructure!Z776","v":0},0,{"$f":"[1]Infrastructure!AB776","v":0},{"$f":"[1]Infrastructure!AB776","v":0},0,{"$f":"[1]Infrastructure!AC776","v":0},{"$f":"[1]Infrastructure!AD776","v":0},{"$f":"[1]Infrastructure!AE776","v":0},{"$f":"[1]Infrastructure!AF776","v":0},{"$f":"[1]Infrastructure!AG776","v":0},{"$f":"[1]Infrastructure!AH776","v":0},0]
[0,null,null,null,null,null,{"$f":"[1]Infrastructure!G777","v":0},{"$f":"[1]Infrastructure!H777","v":0},{"$f":"[1]Infrastructure!I777","v":0},{"$f":"[1]Infrastructure!J777","v":0},{"$f":"[1]Infrastructure!K777","v":0},{"$f":"[1]Infrastructure!L777","v":0},{"$f":"[1]Infrastructure!M777","v":0},{"$f":"[1]Infrastructure!N777","v":0},{"$f":"[1]Infrastructure!O777","v":0},{"$f":"[1]Infrastructure!Q777","v":0},{"$f":"[1]Infrastructure!R777","v":0},{"$f":"[1]Infrastructure!T777","v":0},{"$f":"[1]Infrastructure!W777","v":0},{"$f":"[1]Infrastructure!W777","v":0},0,{"$f":"[1]Infrastructure!Z777","v":0},{"$f":"[1]Infrastructure!Z777","v":0},0,{"$f":"[1]Infrastructure!AB777","v":0},{"$f":"[1]Infrastructure!AB777","v":0},0,{"$f":"[1]Infrastructure!AC777","v":0},{"$f":"[1]Infrastructure!AD777","v":0},{"$f":"[1]Infrastructure!AE777","v":0},{"$f":"[1]Infrastructure!AF777","v":0},{"$f":"[1]Infrastructure!AG777","v":0},{"$f":"[1]Infrastructure!AH777","v":0},0]
[0,null,null,null,null,null,{"$f":"[1]Infrastructure!G778","v":0},{"$f":"[1]Infrastructure!H778","v":0},{"$f":"[1]Infrastructure!I778","v":0},{"$f":"[1]Infrastructure!J778","v":0},{"$f":"[1]Infrastructure!K778","v":0},{"$f":"[1]Infrastructure!L778","v":0},{"$f":"[1]Infrastructure!M778","v":0},{"$f":"[1]Infrastructure!N778","v":0},{"$f":"[1]Infrastructure!O778","v":0},{"$f":"[1]Infrastructure!Q778","v":0},{"$f":"[1]Infrastructure!R778","v":0},{"$f":"[1]Infrastructure!T778","v":0},{"$f":"[1]Infrastructure!W778","v":0},{"$f":"[1]Infrastructure!W778","v":0},0,{"$f":"[1]Infrastructure!Z778","v":0},{"$f":"[1]Infrastructure!Z778","v":0},0,{"$f":"[1]Infrastructure!AB778","v":0},{"$f":"[1]Infrastructure!AB778","v":0},0,{"$f":"[1]Infrastructure!AC778","v":0},{"$f":"[1]Infrastructure!AD778","v":0},{"$f":"[1]Infrastructure!AE778","v":0},{"$f":"[1]Infrastructure!AF778","v":0},{"$f":"[1]Infrastructure!AG778","v":0},{"$f":"[1]Infrastructure!AH778","v":0},0]
[0,null,null,null,null,null,{"$f":"[1]Infrastructure!G779","v":0},{"$f":"[1]Infrastructure!H779","v":0},{"$f":"[1]Infrastructure!I779","v":0},{"$f":"[1]Infrastructure!J779","v":0},{"$f":"[1]Infrastructure!K779","v":0},{"$f":"[1]Infrastructure!L779","v":0},{"$f":"[1]Infrastructure!M779","v":0},{"$f":"[1]Infrastructure!N779","v":0},{"$f":"[1]Infrastructure!O779","v":0},{"$f":"[1]Infrastructure!Q779","v":0},{"$f":"[1]Infrastructure!R779","v":0},{"$f":"[1]Infrastructure!T779","v":0},{"$f":"[1]Infrastructure!W779","v":0},{"$f":"[1]Infrastructure!W779","v":0},0,{"$f":"[1]Infrastructure!Z779","v":0},{"$f":"[1]Infrastructure!Z779","v":0},0,{"$f":"[1]Infrastructure!AB779","v":0},{"$f":"[1]Infrastructure!AB779","v":0},0,{"$f":"[1]Infrastructure!AC779","v":0},{"$f":"[1]Infrastructure!AD779","v":0},{"$f":"[1]Infrastructure!AE779","v":0},{"$f":"[1]Infrastructure!AF779","v":0},{"$f":"[1]Infrastructure!AG779","v":0},{"$f":"[1]Infrastructure!AH779","v":0},0]
[{"$f":"IF(SUM(O780:AH780),1,0)","v":0},null,null,null,null,null,{"$f":"[1]Infrastructure!G780","v":0},{"$f":"[1]Infrastructure!H780","v":0},{"$f":"[1]Infrastructure!I780","v":0},{"$f":"[1]Infrastructure!J780","v":0},{"$f":"[1]Infrastructure!K780","v":0},{"$f":"[1]Infrastructure!L780","v":0},{"$f":"[1]Infrastructure!M780","v":0},{"$f":"[1]Infrastructure!N780","v":0},{"$f":"[1]Infrastructure!O780","v":0},{"$f":"[1]Infrastructure!Q780","v":0},{"$f":"[1]Infrastructure!R780","v":0},{"$f":"[1]Infrastructure!T780","v":0},{"$f":"[1]Infrastructure!W780","v":0},{"$f":"[1]Infrastructure!W780","v":0},0,{"$f":"[1]Infrastructure!Z780","v":0},{"$f":"[1]Infrastructure!Z780","v":0},0,{"$f":"[1]Infrastructure!AB780","v":0},{"$f":"[1]Infrastructure!AB780","v":0},0,{"$f":"[1]Infrastructure!AC780","v":0},{"$f":"[1]Infrastructure!AD780","v":0},{"$f":"[1]Infrastructure!AE780","v":0},{"$f":"[1]Infrastructure!AF780","v":0},{"$f":"[1]Infrastructure!AG780","v":0},{"$f":"[1]Infrastructure!AH780","v":0},0]
[0,null,null,null,null,null,{"$f":"[1]Infrastructure!G781","v":0},{"$f":"[1]Infrastructure!H781","v":0},{"$f":"[1]Infrastructure!I781","v":0},{"$f":"[1]Infrastructure!J781","v":0},{"$f":"[1]Infrastructure!K781","v":0},{"$f":"[1]Infrastructure!L781","v":0},{"$f":"[1]Infrastructure!M781","v":0},{"$f":"[1]Infrastructure!N781","v":0},{"$f":"[1]Infrastructure!O781","v":0},{"$f":"[1]Infrastructure!Q781","v":0},{"$f":"[1]Infrastructure!R781","v":0},{"$f":"[1]Infrastructure!T781","v":0},{"$f":"[1]Infrastructure!W781","v":0},{"$f":"[1]Infrastructure!W781","v":0},0,{"$f":"[1]Infrastructure!Z781","v":0},{"$f":"[1]Infrastructure!Z781","v":0},0,{"$f":"[1]Infrastructure!AB781","v":0},{"$f":"[1]Infrastructure!AB781","v":0},0,{"$f":"[1]Infrastructure!AC781","v":0},{"$f":"[1]Infrastructure!AD781","v":0},{"$f":"[1]Infrastructure!AE781","v":0},{"$f":"[1]Infrastructure!AF781","v":0},{"$f":"[1]Infrastructure!AG781","v":0},{"$f":"[1]Infrastructure!AH781","v":0},0]
[0,null,null,null,null,null,{"$f":"[1]Infrastructure!G782","v":0},{"$f":"[1]Infrastructure!H782","v":0},{"$f":"[1]Infrastructure!I782","v":0},{"$f":"[1]Infrastructure!J782","v":0},{"$f":"[1]Infrastructure!K782","v":0},{"$f":"[1]Infrastructure!L782","v":0},{"$f":"[1]Infrastructure!M782","v":0},{"$f":"[1]Infrastructure!N782","v":0},{"$f":"[1]Infrastructure!O782","v":0},{"$f":"[1]Infrastructure!Q782","v":0},{"$f":"[1]Infrastructure!R782","v":0},{"$f":"[1]Infrastructure!T782","v":0},{"$f":"[1]Infrastructure!W782","v":0},{"$f":"[1]Infrastructure!W782","v":0},0,{"$f":"[1]Infrastructure!Z782","v":0},{"$f":"[1]Infrastructure!Z782","v":0},0,{"$f":"[1]Infrastructure!AB782","v":0},{"$f":"[1]Infrastructure!AB782","v":0},0,{"$f":"[1]Infrastructure!AC782","v":0},{"$f":"[1]Infrastructure!AD782","v":0},{"$f":"[1]Infrastructure!AE782","v":0},{"$f":"[1]Infrastructure!AF782","v":0},{"$f":"[1]Infrastructure!AG782","v":0},{"$f":"[1]Infrastructure!AH782","v":0},0]
[0,null,null,null,null,null,{"$f":"[1]Infrastructure!G783","v":0},{"$f":"[1]Infrastructure!H783","v":0},{"$f":"[1]Infrastructure!I783","v":0},{"$f":"[1]Infrastructure!J783","v":0},{"$f":"[1]Infrastructure!K783","v":0},{"$f":"[1]Infrastructure!L783","v":0},{"$f":"[1]Infrastructure!M783","v":0},{"$f":"[1]Infrastructure!N783","v":0},{"$f":"[1]Infrastructure!O783","v":0},{"$f":"[1]Infrastructure!Q783","v":0},{"$f":"[1]Infrastructure!R783","v":0},{"$f":"[1]Infrastructure!T783","v":0},{"$f":"[1]Infrastructure!W783","v":0},{"$f":"[1]Infrastructure!W783","v":0},0,{"$f":"[1]Infrastructure!Z783","v":0},{"$f":"[1]Infrastructure!Z783","v":0},0,{"$f":"[1]Infrastructure!AB783","v":0},{"$f":"[1]Infrastructure!AB783","v":0},0,{"$f":"[1]Infrastructure!AC783","v":0},{"$f":"[1]Infrastructure!AD783","v":0},{"$f":"[1]Infrastructure!AE783","v":0},{"$f":"[1]Infrastructure!AF783","v":0},{"$f":"[1]Infrastructure!AG783","v":0},{"$f":"[1]Infrastructure!AH783","v":0},0]
[0,null,null,null,null,null,{"$f":"[1]Infrastructure!G784","v":0},{"$f":"[1]Infrastructure!H784","v":0},{"$f":"[1]Infrastructure!I784","v":0},{"$f":"[1]Infrastructure!J784","v":0},{"$f":"[1]Infrastructure!K784","v":0},{"$f":"[1]Infrastructure!L784","v":0},{"$f":"[1]Infrastructure!M784","v":0},{"$f":"[1]Infrastructure!N784","v":0},{"$f":"[1]Infrastructure!O784","v":0},{"$f":"[1]Infrastructure!Q784","v":0},{"$f":"[1]Infrastructure!R784","v":0},{"$f":"[1]Infrastructure!T784","v":0},{"$f":"[1]Infrastructure!W784","v":0},{"$f":"[1]Infrastructure!W784","v":0},0,{"$f":"[1]Infrastructure!Z784","v":0},{"$f":"[1]Infrastructure!Z784","v":0},0,{"$f":"[1]Infrastructure!AB784","v":0},{"$f":"[1]Infrastructure!AB784","v":0},0,{"$f":"[1]Infrastructure!AC784","v":0},{"$f":"[1]Infrastructure!AD784","v":0},{"$f":"[1]Infrastructure!AE784","v":0},{"$f":"[1]Infrastructure!AF784","v":0},{"$f":"[1]Infrastructure!AG784","v":0},{"$f":"[1]Infrastructure!AH784","v":0},0]
[0,null,null,null,null,null,{"$f":"[1]Infrastructure!G785","v":0},{"$f":"[1]Infrastructure!H785","v":0},{"$f":"[1]Infrastructure!I785","v":0},{"$f":"[1]Infrastructure!J785","v":0},{"$f":"[1]Infrastructure!K785","v":0},{"$f":"[1]Infrastructure!L785","v":0},{"$f":"[1]Infrastructure!M785","v":0},{"$f":"[1]Infrastructure!N785","v":0},{"$f":"[1]Infrastructure!O785","v":0},{"$f":"[1]Infrastructure!Q785","v":0},{"$f":"[1]Infrastructure!R785","v":0},{"$f":"[1]Infrastructure!T785","v":0},{"$f":"[1]Infrastructure!W785","v":0},{"$f":"[1]Infrastructure!W785","v":0},0,{"$f":"[1]Infrastructure!Z785","v":0},{"$f":"[1]Infrastructure!Z785","v":0},0,{"$f":"[1]Infrastructure!AB785","v":0},{"$f":"[1]Infrastructure!AB785","v":0},0,{"$f":"[1]Infrastructure!AC785","v":0},{"$f":"[1]Infrastructure!AD785","v":0},{"$f":"[1]Infrastructure!AE785","v":0},{"$f":"[1]Infrastructure!AF785","v":0},{"$f":"[1]Infrastructure!AG785","v":0},{"$f":"[1]Infrastructure!AH785","v":0},0]
[0,null,null,null,null,null,{"$f":"[1]Infrastructure!G786","v":0},{"$f":"[1]Infrastructure!H786","v":0},{"$f":"[1]Infrastructure!I786","v":0},{"$f":"[1]Infrastructure!J786","v":0},{"$f":"[1]Infrastructure!K786","v":0},{"$f":"[1]Infrastructure!L786","v":0},{"$f":"[1]Infrastructure!M786","v":0},{"$f":"[1]Infrastructure!N786","v":0},{"$f":"[1]Infrastructure!O786","v":0},{"$f":"[1]Infrastructure!Q786","v":0},{"$f":"[1]Infrastructure!R786","v":0},{"$f":"[1]Infrastructure!T786","v":0},{"$f":"[1]Infrastructure!W786","v":0},{"$f":"[1]Infrastructure!W786","v":0},0,{"$f":"[1]Infrastructure!Z786","v":0},{"$f":"[1]Infrastructure!Z786","v":0},0,{"$f":"[1]Infrastructure!AB786","v":0},{"$f":"[1]Infrastructure!AB786","v":0},0,{"$f":"[1]Infrastructure!AC786","v":0},{"$f":"[1]Infrastructure!AD786","v":0},{"$f":"[1]Infrastructure!AE786","v":0},{"$f":"[1]Infrastructure!AF786","v":0},{"$f":"[1]Infrastructure!AG786","v":0},{"$f":"[1]Infrastructure!AH786","v":0},0]
[0,null,null,null,null,null,{"$f":"[1]Infrastructure!G787","v":0},{"$f":"[1]Infrastructure!H787","v":0},{"$f":"[1]Infrastructure!I787","v":0},{"$f":"[1]Infrastructure!J787","v":0},{"$f":"[1]Infrastructure!K787","v":0},{"$f":"[1]Infrastructure!L787","v":0},{"$f":"[1]Infrastructure!M787","v":0},{"$f":"[1]Infrastructure!N787","v":0},{"$f":"[1]Infrastructure!O787","v":0},{"$f":"[1]Infrastructure!Q787","v":0},{"$f":"[1]Infrastructure!R787","v":0},{"$f":"[1]Infrastructure!T787","v":0},{"$f":"[1]Infrastructure!W787","v":0},{"$f":"[1]Infrastructure!W787","v":0},0,{"$f":"[1]Infrastructure!Z787","v":0},{"$f":"[1]Infrastructure!Z787","v":0},0,{"$f":"[1]Infrastructure!AB787","v":0},{"$f":"[1]Infrastructure!AB787","v":0},0,{"$f":"[1]Infrastructure!AC787","v":0},{"$f":"[1]Infrastructure!AD787","v":0},{"$f":"[1]Infrastructure!AE787","v":0},{"$f":"[1]Infrastructure!AF787","v":0},{"$f":"[1]Infrastructure!AG787","v":0},{"$f":"[1]Infrastructure!AH787","v":0},0]
[0,null,null,null,null,null,{"$f":"[1]Infrastructure!G788","v":0},{"$f":"[1]Infrastructure!H788","v":0},{"$f":"[1]Infrastructure!I788","v":0},{"$f":"[1]Infrastructure!J788","v":0},{"$f":"[1]Infrastructure!K788","v":0},{"$f":"[1]Infrastructure!L788","v":0},{"$f":"[1]Infrastructure!M788","v":0},{"$f":"[1]Infrastructure!N788","v":0},{"$f":"[1]Infrastructure!O788","v":0},{"$f":"[1]Infrastructure!Q788","v":0},{"$f":"[1]Infrastructure!R788","v":0},{"$f":"[1]Infrastructure!T788","v":0},{"$f":"[1]Infrastructure!W788","v":0},{"$f":"[1]Infrastructure!W788","v":0},0,{"$f":"[1]Infrastructure!Z788","v":0},{"$f":"[1]Infrastructure!Z788","v":0},0,{"$f":"[1]Infrastructure!AB788","v":0},{"$f":"[1]Infrastructure!AB788","v":0},0,{"$f":"[1]Infrastructure!AC788","v":0},{"$f":"[1]Infrastructure!AD788","v":0},{"$f":"[1]Infrastructure!AE788","v":0},{"$f":"[1]Infrastructure!AF788","v":0},{"$f":"[1]Infrastructure!AG788","v":0},{"$f":"[1]Infrastructure!AH788","v":0},0]
[0,null,null,null,null,null,{"$f":"[1]Infrastructure!G789","v":0},{"$f":"[1]Infrastructure!H789","v":0},{"$f":"[1]Infrastructure!I789","v":0},{"$f":"[1]Infrastructure!J789","v":0},{"$f":"[1]Infrastructure!K789","v":0},{"$f":"[1]Infrastructure!L789","v":0},{"$f":"[1]Infrastructure!M789","v":0},{"$f":"[1]Infrastructure!N789","v":0},{"$f":"[1]Infrastructure!O789","v":0},{"$f":"[1]Infrastructure!Q789","v":0},{"$f":"[1]Infrastructure!R789","v":0},{"$f":"[1]Infrastructure!T789","v":0},{"$f":"[1]Infrastructure!W789","v":0},{"$f":"[1]Infrastructure!W789","v":0},0,{"$f":"[1]Infrastructure!Z789","v":0},{"$f":"[1]Infrastructure!Z789","v":0},0,{"$f":"[1]Infrastructure!AB789","v":0},{"$f":"[1]Infrastructure!AB789","v":0},0,{"$f":"[1]Infrastructure!AC789","v":0},{"$f":"[1]Infrastructure!AD789","v":0},{"$f":"[1]Infrastructure!AE789","v":0},{"$f":"[1]Infrastructure!AF789","v":0},{"$f":"[1]Infrastructure!AG789","v":0},{"$f":"[1]Infrastructure!AH789","v":0},0]
[0,null,null,null,null,null,{"$f":"[1]Infrastructure!G790","v":0},{"$f":"[1]Infrastructure!H790","v":0},{"$f":"[1]Infrastructure!I790","v":0},{"$f":"[1]Infrastructure!J790","v":0},{"$f":"[1]Infrastructure!K790","v":0},{"$f":"[1]Infrastructure!L790","v":0},{"$f":"[1]Infrastructure!M790","v":0},{"$f":"[1]Infrastructure!N790","v":0},{"$f":"[1]Infrastructure!O790","v":0},{"$f":"[1]Infrastructure!Q790","v":0},{"$f":"[1]Infrastructure!R790","v":0},{"$f":"[1]Infrastructure!T790","v":0},{"$f":"[1]Infrastructure!W790","v":0},{"$f":"[1]Infrastructure!W790","v":0},0,{"$f":"[1]Infrastructure!Z790","v":0},{"$f":"[1]Infrastructure!Z790","v":0},0,{"$f":"[1]Infrastructure!AB790","v":0},{"$f":"[1]Infrastructure!AB790","v":0},0,{"$f":"[1]Infrastructure!AC790","v":0},{"$f":"[1]Infrastructure!AD790","v":0},{"$f":"[1]Infrastructure!AE790","v":0},{"$f":"[1]Infrastructure!AF790","v":0},{"$f":"[1]Infrastructure!AG790","v":0},{"$f":"[1]Infrastructure!AH790","v":0},0]
[0,null,null,null,null,null,{"$f":"[1]Infrastructure!G791","v":0},{"$f":"[1]Infrastructure!H791","v":0},{"$f":"[1]Infrastructure!I791","v":0},{"$f":"[1]Infrastructure!J791","v":0},{"$f":"[1]Infrastructure!K791","v":0},{"$f":"[1]Infrastructure!L791","v":0},{"$f":"[1]Infrastructure!M791","v":0},{"$f":"[1]Infrastructure!N791","v":0},{"$f":"[1]Infrastructure!O791","v":0},{"$f":"[1]Infrastructure!Q791","v":0},{"$f":"[1]Infrastructure!R791","v":0},{"$f":"[1]Infrastructure!T791","v":0},{"$f":"[1]Infrastructure!W791","v":0},{"$f":"[1]Infrastructure!W791","v":0},0,{"$f":"[1]Infrastructure!Z791","v":0},{"$f":"[1]Infrastructure!Z791","v":0},0,{"$f":"[1]Infrastructure!AB791","v":0},{"$f":"[1]Infrastructure!AB791","v":0},0,{"$f":"[1]Infrastructure!AC791","v":0},{"$f":"[1]Infrastructure!AD791","v":0},{"$f":"[1]Infrastructure!AE791","v":0},{"$f":"[1]Infrastructure!AF791","v":0},{"$f":"[1]Infrastructure!AG791","v":0},{"$f":"[1]Infrastructure!AH791","v":0},0]
[0,null,null,null,null,null,{"$f":"[1]Infrastructure!G792","v":0},{"$f":"[1]Infrastructure!H792","v":0},{"$f":"[1]Infrastructure!I792","v":0},{"$f":"[1]Infrastructure!J792","v":0},{"$f":"[1]Infrastructure!K792","v":0},{"$f":"[1]Infrastructure!L792","v":0},{"$f":"[1]Infrastructure!M792","v":0},{"$f":"[1]Infrastructure!N792","v":0},{"$f":"[1]Infrastructure!O792","v":0},{"$f":"[1]Infrastructure!Q792","v":0},{"$f":"[1]Infrastructure!R792","v":0},{"$f":"[1]Infrastructure!T792","v":0},{"$f":"[1]Infrastructure!W792","v":0},{"$f":"[1]Infrastructure!W792","v":0},0,{"$f":"[1]Infrastructure!Z792","v":0},{"$f":"[1]Infrastructure!Z792","v":0},0,{"$f":"[1]Infrastructure!AB792","v":0},{"$f":"[1]Infrastructure!AB792","v":0},0,{"$f":"[1]Infrastructure!AC792","v":0},{"$f":"[1]Infrastructure!AD792","v":0},{"$f":"[1]Infrastructure!AE792","v":0},{"$f":"[1]Infrastructure!AF792","v":0},{"$f":"[1]Infrastructure!AG792","v":0},{"$f":"[1]Infrastructure!AH792","v":0},0]
[0,null,null,null,null,null,{"$f":"[1]Infrastructure!G793","v":0},{"$f":"[1]Infrastructure!H793","v":0},{"$f":"[1]Infrastructure!I793","v":0},{"$f":"[1]Infrastructure!J793","v":0},{"$f":"[1]Infrastructure!K793","v":0},{"$f":"[1]Infrastructure!L793","v":0},{"$f":"[1]Infrastructure!M793","v":0},{"$f":"[1]Infrastructure!N793","v":0},{"$f":"[1]Infrastructure!O793","v":0},{"$f":"[1]Infrastructure!Q793","v":0},{"$f":"[1]Infrastructure!R793","v":0},{"$f":"[1]Infrastructure!T793","v":0},{"$f":"[1]Infrastructure!W793","v":0},{"$f":"[1]Infrastructure!W793","v":0},0,{"$f":"[1]Infrastructure!Z793","v":0},{"$f":"[1]Infrastructure!Z793","v":0},0,{"$f":"[1]Infrastructure!AB793","v":0},{"$f":"[1]Infrastructure!AB793","v":0},0,{"$f":"[1]Infrastructure!AC793","v":0},{"$f":"[1]Infrastructure!AD793","v":0},{"$f":"[1]Infrastructure!AE793","v":0},{"$f":"[1]Infrastructure!AF793","v":0},{"$f":"[1]Infrastructure!AG793","v":0},{"$f":"[1]Infrastructure!AH793","v":0},0]
[0,null,null,null,null,null,{"$f":"[1]Infrastructure!G794","v":0},{"$f":"[1]Infrastructure!H794","v":0},{"$f":"[1]Infrastructure!I794","v":0},{"$f":"[1]Infrastructure!J794","v":0},{"$f":"[1]Infrastructure!K794","v":0},{"$f":"[1]Infrastructure!L794","v":0},{"$f":"[1]Infrastructure!M794","v":0},{"$f":"[1]Infrastructure!N794","v":0},{"$f":"[1]Infrastructure!O794","v":0},{"$f":"[1]Infrastructure!Q794","v":0},{"$f":"[1]Infrastructure!R794","v":0},{"$f":"[1]Infrastructure!T794","v":0},{"$f":"[1]Infrastructure!W794","v":0},{"$f":"[1]Infrastructure!W794","v":0},0,{"$f":"[1]Infrastructure!Z794","v":0},{"$f":"[1]Infrastructure!Z794","v":0},0,{"$f":"[1]Infrastructure!AB794","v":0},{"$f":"[1]Infrastructure!AB794","v":0},0,{"$f":"[1]Infrastructure!AC794","v":0},{"$f":"[1]Infrastructure!AD794","v":0},{"$f":"[1]Infrastructure!AE794","v":0},{"$f":"[1]Infrastructure!AF794","v":0},{"$f":"[1]Infrastructure!AG794","v":0},{"$f":"[1]Infrastructure!AH794","v":0},0]
[0,null,null,null,null,null,{"$f":"[1]Infrastructure!G795","v":0},{"$f":"[1]Infrastructure!H795","v":0},{"$f":"[1]Infrastructure!I795","v":0},{"$f":"[1]Infrastructure!J795","v":0},{"$f":"[1]Infrastructure!K795","v":0},{"$f":"[1]Infrastructure!L795","v":0},{"$f":"[1]Infrastructure!M795","v":0},{"$f":"[1]Infrastructure!N795","v":0},{"$f":"[1]Infrastructure!O795","v":0},{"$f":"[1]Infrastructure!Q795","v":0},{"$f":"[1]Infrastructure!R795","v":0},{"$f":"[1]Infrastructure!T795","v":0},{"$f":"[1]Infrastructure!W795","v":0},{"$f":"[1]Infrastructure!W795","v":0},0,{"$f":"[1]Infrastructure!Z795","v":0},{"$f":"[1]Infrastructure!Z795","v":0},0,{"$f":"[1]Infrastructure!AB795","v":0},{"$f":"[1]Infrastructure!AB795","v":0},0,{"$f":"[1]Infrastructure!AC795","v":0},{"$f":"[1]Infrastructure!AD795","v":0},{"$f":"[1]Infrastructure!AE795","v":0},{"$f":"[1]Infrastructure!AF795","v":0},{"$f":"[1]Infrastructure!AG795","v":0},{"$f":"[1]Infrastructure!AH795","v":0},0]
[0,null,null,null,null,null,{"$f":"[1]Infrastructure!G796","v":0},{"$f":"[1]Infrastructure!H796","v":0},{"$f":"[1]Infrastructure!I796","v":0},{"$f":"[1]Infrastructure!J796","v":0},{"$f":"[1]Infrastructure!K796","v":0},{"$f":"[1]Infrastructure!L796","v":0},{"$f":"[1]Infrastructure!M796","v":0},{"$f":"[1]Infrastructure!N796","v":0},{"$f":"[1]Infrastructure!O796","v":0},{"$f":"[1]Infrastructure!Q796","v":0},{"$f":"[1]Infrastructure!R796","v":0},{"$f":"[1]Infrastructure!T796","v":0},{"$f":"[1]Infrastructure!W796","v":0},{"$f":"[1]Infrastructure!W796","v":0},0,{"$f":"[1]Infrastructure!Z796","v":0},{"$f":"[1]Infrastructure!Z796","v":0},0,{"$f":"[1]Infrastructure!AB796","v":0},{"$f":"[1]Infrastructure!AB796","v":0},0,{"$f":"[1]Infrastructure!AC796","v":0},{"$f":"[1]Infrastructure!AD796","v":0},{"$f":"[1]Infrastructure!AE796","v":0},{"$f":"[1]Infrastructure!AF796","v":0},{"$f":"[1]Infrastructure!AG796","v":0},{"$f":"[1]Infrastructure!AH796","v":0},0]
[0,null,null,null,null,null,{"$f":"[1]Infrastructure!G797","v":0},{"$f":"[1]Infrastructure!H797","v":0},{"$f":"[1]Infrastructure!I797","v":0},{"$f":"[1]Infrastructure!J797","v":0},{"$f":"[1]Infrastructure!K797","v":0},{"$f":"[1]Infrastructure!L797","v":0},{"$f":"[1]Infrastructure!M797","v":0},{"$f":"[1]Infrastructure!N797","v":0},{"$f":"[1]Infrastructure!O797","v":0},{"$f":"[1]Infrastructure!Q797","v":0},{"$f":"[1]Infrastructure!R797","v":0},{"$f":"[1]Infrastructure!T797","v":0},{"$f":"[1]Infrastructure!W797","v":0},{"$f":"[1]Infrastructure!W797","v":0},0,{"$f":"[1]Infrastructure!Z797","v":0},{"$f":"[1]Infrastructure!Z797","v":0},0,{"$f":"[1]Infrastructure!AB797","v":0},{"$f":"[1]Infrastructure!AB797","v":0},0,{"$f":"[1]Infrastructure!AC797","v":0},{"$f":"[1]Infrastructure!AD797","v":0},{"$f":"[1]Infrastructure!AE797","v":0},{"$f":"[1]Infrastructure!AF797","v":0},{"$f":"[1]Infrastructure!AG797","v":0},{"$f":"[1]Infrastructure!AH797","v":0},0]
[0,null,null,null,null,null,{"$f":"[1]Infrastructure!G798","v":0},{"$f":"[1]Infrastructure!H798","v":0},{"$f":"[1]Infrastructure!I798","v":0},{"$f":"[1]Infrastructure!J798","v":0},{"$f":"[1]Infrastructure!K798","v":0},{"$f":"[1]Infrastructure!L798","v":0},{"$f":"[1]Infrastructure!M798","v":0},{"$f":"[1]Infrastructure!N798","v":0},{"$f":"[1]Infrastructure!O798","v":0},{"$f":"[1]Infrastructure!Q798","v":0},{"$f":"[1]Infrastructure!R798","v":0},{"$f":"[1]Infrastructure!T798","v":0},{"$f":"[1]Infrastructure!W798","v":0},{"$f":"[1]Infrastructure!W798","v":0},0,{"$f":"[1]Infrastructure!Z798","v":0},{"$f":"[1]Infrastructure!Z798","v":0},0,{"$f":"[1]Infrastructure!AB798","v":0},{"$f":"[1]Infrastructure!AB798","v":0},0,{"$f":"[1]Infrastructure!AC798","v":0},{"$f":"[1]Infrastructure!AD798","v":0},{"$f":"[1]Infrastructure!AE798","v":0},{"$f":"[1]Infrastructure!AF798","v":0},{"$f":"[1]Infrastructure!AG798","v":0},{"$f":"[1]Infrastructure!AH798","v":0},0]
[0,null,null,null,null,null,{"$f":"[1]Infrastructure!G799","v":0},{"$f":"[1]Infrastructure!H799","v":0},{"$f":"[1]Infrastructure!I799","v":0},{"$f":"[1]Infrastructure!J799","v":0},{"$f":"[1]Infrastructure!K799","v":0},{"$f":"[1]Infrastructure!L799","v":0},{"$f":"[1]Infrastructure!M799","v":0},{"$f":"[1]Infrastructure!N799","v":0},{"$f":"[1]Infrastructure!O799","v":0},{"$f":"[1]Infrastructure!Q799","v":0},{"$f":"[1]Infrastructure!R799","v":0},{"$f":"[1]Infrastructure!T799","v":0},{"$f":"[1]Infrastructure!W799","v":0},{"$f":"[1]Infrastructure!W799","v":0},0,{"$f":"[1]Infrastructure!Z799","v":0},{"$f":"[1]Infrastructure!Z799","v":0},0,{"$f":"[1]Infrastructure!AB799","v":0},{"$f":"[1]Infrastructure!AB799","v":0},0,{"$f":"[1]Infrastructure!AC799","v":0},{"$f":"[1]Infrastructure!AD799","v":0},{"$f":"[1]Infrastructure!AE799","v":0},{"$f":"[1]Infrastructure!AF799","v":0},{"$f":"[1]Infrastructure!AG799","v":0},{"$f":"[1]Infrastructure!AH799","v":0},0]
[0,null,null,null,null,null,{"$f":"[1]Infrastructure!G800","v":0},{"$f":"[1]Infrastructure!H800","v":0},{"$f":"[1]Infrastructure!I800","v":0},{"$f":"[1]Infrastructure!J800","v":0},{"$f":"[1]Infrastructure!K800","v":0},{"$f":"[1]Infrastructure!L800","v":0},{"$f":"[1]Infrastructure!M800","v":0},{"$f":"[1]Infrastructure!N800","v":0},{"$f":"[1]Infrastructure!O800","v":0},{"$f":"[1]Infrastructure!Q800","v":0},{"$f":"[1]Infrastructure!R800","v":0},{"$f":"[1]Infrastructure!T800","v":0},{"$f":"[1]Infrastructure!W800","v":0},{"$f":"[1]Infrastructure!W800","v":0},0,{"$f":"[1]Infrastructure!Z800","v":0},{"$f":"[1]Infrastructure!Z800","v":0},0,{"$f":"[1]Infrastructure!AB800","v":0},{"$f":"[1]Infrastructure!AB800","v":0},0,{"$f":"[1]Infrastructure!AC800","v":0},{"$f":"[1]Infrastructure!AD800","v":0},{"$f":"[1]Infrastructure!AE800","v":0},{"$f":"[1]Infrastructure!AF800","v":0},{"$f":"[1]Infrastructure!AG800","v":0},{"$f":"[1]Infrastructure!AH800","v":0},0]
[0,null,null,null,null,null,{"$f":"[1]Infrastructure!G801","v":0},{"$f":"[1]Infrastructure!H801","v":0},{"$f":"[1]Infrastructure!I801","v":0},{"$f":"[1]Infrastructure!J801","v":0},{"$f":"[1]Infrastructure!K801","v":0},{"$f":"[1]Infrastructure!L801","v":0},{"$f":"[1]Infrastructure!M801","v":0},{"$f":"[1]Infrastructure!N801","v":0},{"$f":"[1]Infrastructure!O801","v":0},{"$f":"[1]Infrastructure!Q801","v":0},{"$f":"[1]Infrastructure!R801","v":0},{"$f":"[1]Infrastructure!T801","v":0},{"$f":"[1]Infrastructure!W801","v":0},{"$f":"[1]Infrastructure!W801","v":0},0,{"$f":"[1]Infrastructure!Z801","v":0},{"$f":"[1]Infrastructure!Z801","v":0},0,{"$f":"[1]Infrastructure!AB801","v":0},{"$f":"[1]Infrastructure!AB801","v":0},0,{"$f":"[1]Infrastructure!AC801","v":0},{"$f":"[1]Infrastructure!AD801","v":0},{"$f":"[1]Infrastructure!AE801","v":0},{"$f":"[1]Infrastructure!AF801","v":0},{"$f":"[1]Infrastructure!AG801","v":0},{"$f":"[1]Infrastructure!AH801","v":0},0]
[0,null,null,null,null,null,{"$f":"[1]Infrastructure!G802","v":0},{"$f":"[1]Infrastructure!H802","v":0},{"$f":"[1]Infrastructure!I802","v":0},{"$f":"[1]Infrastructure!J802","v":0},{"$f":"[1]Infrastructure!K802","v":0},{"$f":"[1]Infrastructure!L802","v":0},{"$f":"[1]Infrastructure!M802","v":0},{"$f":"[1]Infrastructure!N802","v":0},{"$f":"[1]Infrastructure!O802","v":0},{"$f":"[1]Infrastructure!Q802","v":0},{"$f":"[1]Infrastructure!R802","v":0},{"$f":"[1]Infrastructure!T802","v":0},{"$f":"[1]Infrastructure!W802","v":0},{"$f":"[1]Infrastructure!W802","v":0},0,{"$f":"[1]Infrastructure!Z802","v":0},{"$f":"[1]Infrastructure!Z802","v":0},0,{"$f":"[1]Infrastructure!AB802","v":0},{"$f":"[1]Infrastructure!AB802","v":0},0,{"$f":"[1]Infrastructure!AC802","v":0},{"$f":"[1]Infrastructure!AD802","v":0},{"$f":"[1]Infrastructure!AE802","v":0},{"$f":"[1]Infrastructure!AF802","v":0},{"$f":"[1]Infrastructure!AG802","v":0},{"$f":"[1]Infrastructure!AH802","v":0},0]
[0,null,null,null,null,null,{"$f":"[1]Infrastructure!G803","v":0},{"$f":"[1]Infrastructure!H803","v":0},{"$f":"[1]Infrastructure!I803","v":0},{"$f":"[1]Infrastructure!J803","v":0},{"$f":"[1]Infrastructure!K803","v":0},{"$f":"[1]Infrastructure!L803","v":0},{"$f":"[1]Infrastructure!M803","v":0},{"$f":"[1]Infrastructure!N803","v":0},{"$f":"[1]Infrastructure!O803","v":0},{"$f":"[1]Infrastructure!Q803","v":0},{"$f":"[1]Infrastructure!R803","v":0},{"$f":"[1]Infrastructure!T803","v":0},{"$f":"[1]Infrastructure!W803","v":0},{"$f":"[1]Infrastructure!W803","v":0},0,{"$f":"[1]Infrastructure!Z803","v":0},{"$f":"[1]Infrastructure!Z803","v":0},0,{"$f":"[1]Infrastructure!AB803","v":0},{"$f":"[1]Infrastructure!AB803","v":0},0,{"$f":"[1]Infrastructure!AC803","v":0},{"$f":"[1]Infrastructure!AD803","v":0},{"$f":"[1]Infrastructure!AE803","v":0},{"$f":"[1]Infrastructure!AF803","v":0},{"$f":"[1]Infrastructure!AG803","v":0},{"$f":"[1]Infrastructure!AH803","v":0},0]
[0,null,null,null,null,null,{"$f":"[1]Infrastructure!G804","v":0},{"$f":"[1]Infrastructure!H804","v":0},{"$f":"[1]Infrastructure!I804","v":0},{"$f":"[1]Infrastructure!J804","v":0},{"$f":"[1]Infrastructure!K804","v":0},{"$f":"[1]Infrastructure!L804","v":0},{"$f":"[1]Infrastructure!M804","v":0},{"$f":"[1]Infrastructure!N804","v":0},{"$f":"[1]Infrastructure!O804","v":0},{"$f":"[1]Infrastructure!Q804","v":0},{"$f":"[1]Infrastructure!R804","v":0},{"$f":"[1]Infrastructure!T804","v":0},{"$f":"[1]Infrastructure!W804","v":0},{"$f":"[1]Infrastructure!W804","v":0},0,{"$f":"[1]Infrastructure!Z804","v":0},{"$f":"[1]Infrastructure!Z804","v":0},0,{"$f":"[1]Infrastructure!AB804","v":0},{"$f":"[1]Infrastructure!AB804","v":0},0,{"$f":"[1]Infrastructure!AC804","v":0},{"$f":"[1]Infrastructure!AD804","v":0},{"$f":"[1]Infrastructure!AE804","v":0},{"$f":"[1]Infrastructure!AF804","v":0},{"$f":"[1]Infrastructure!AG804","v":0},{"$f":"[1]Infrastructure!AH804","v":0},0]
[0,null,null,null,null,null,{"$f":"[1]Infrastructure!G805","v":0},{"$f":"[1]Infrastructure!H805","v":0},{"$f":"[1]Infrastructure!I805","v":0},{"$f":"[1]Infrastructure!J805","v":0},{"$f":"[1]Infrastructure!K805","v":0},{"$f":"[1]Infrastructure!L805","v":0},{"$f":"[1]Infrastructure!M805","v":0},{"$f":"[1]Infrastructure!N805","v":0},{"$f":"[1]Infrastructure!O805","v":0},{"$f":"[1]Infrastructure!Q805","v":0},{"$f":"[1]Infrastructure!R805","v":0},{"$f":"[1]Infrastructure!T805","v":0},{"$f":"[1]Infrastructure!W805","v":0},{"$f":"[1]Infrastructure!W805","v":0},0,{"$f":"[1]Infrastructure!Z805","v":0},{"$f":"[1]Infrastructure!Z805","v":0},0,{"$f":"[1]Infrastructure!AB805","v":0},{"$f":"[1]Infrastructure!AB805","v":0},0,{"$f":"[1]Infrastructure!AC805","v":0},{"$f":"[1]Infrastructure!AD805","v":0},{"$f":"[1]Infrastructure!AE805","v":0},{"$f":"[1]Infrastructure!AF805","v":0},{"$f":"[1]Infrastructure!AG805","v":0},{"$f":"[1]Infrastructure!AH805","v":0},0]
[0,null,null,null,null,null,{"$f":"[1]Infrastructure!G806","v":0},{"$f":"[1]Infrastructure!H806","v":0},{"$f":"[1]Infrastructure!I806","v":0},{"$f":"[1]Infrastructure!J806","v":0},{"$f":"[1]Infrastructure!K806","v":0},{"$f":"[1]Infrastructure!L806","v":0},{"$f":"[1]Infrastructure!M806","v":0},{"$f":"[1]Infrastructure!N806","v":0},{"$f":"[1]Infrastructure!O806","v":0},{"$f":"[1]Infrastructure!Q806","v":0},{"$f":"[1]Infrastructure!R806","v":0},{"$f":"[1]Infrastructure!T806","v":0},{"$f":"[1]Infrastructure!W806","v":0},{"$f":"[1]Infrastructure!W806","v":0},0,{"$f":"[1]Infrastructure!Z806","v":0},{"$f":"[1]Infrastructure!Z806","v":0},0,{"$f":"[1]Infrastructure!AB806","v":0},{"$f":"[1]Infrastructure!AB806","v":0},0,{"$f":"[1]Infrastructure!AC806","v":0},{"$f":"[1]Infrastructure!AD806","v":0},{"$f":"[1]Infrastructure!AE806","v":0},{"$f":"[1]Infrastructure!AF806","v":0},{"$f":"[1]Infrastructure!AG806","v":0},{"$f":"[1]Infrastructure!AH806","v":0},0]
[0,null,null,null,null,null,{"$f":"[1]Infrastructure!G807","v":0},{"$f":"[1]Infrastructure!H807","v":0},{"$f":"[1]Infrastructure!I807","v":0},{"$f":"[1]Infrastructure!J807","v":0},{"$f":"[1]Infrastructure!K807","v":0},{"$f":"[1]Infrastructure!L807","v":0},{"$f":"[1]Infrastructure!M807","v":0},{"$f":"[1]Infrastructure!N807","v":0},{"$f":"[1]Infrastructure!O807","v":0},{"$f":"[1]Infrastructure!Q807","v":0},{"$f":"[1]Infrastructure!R807","v":0},{"$f":"[1]Infrastructure!T807","v":0},{"$f":"[1]Infrastructure!W807","v":0},{"$f":"[1]Infrastructure!W807","v":0},0,{"$f":"[1]Infrastructure!Z807","v":0},{"$f":"[1]Infrastructure!Z807","v":0},0,{"$f":"[1]Infrastructure!AB807","v":0},{"$f":"[1]Infrastructure!AB807","v":0},0,{"$f":"[1]Infrastructure!AC807","v":0},{"$f":"[1]Infrastructure!AD807","v":0},{"$f":"[1]Infrastructure!AE807","v":0},{"$f":"[1]Infrastructure!AF807","v":0},{"$f":"[1]Infrastructure!AG807","v":0},{"$f":"[1]Infrastructure!AH807","v":0},0]
[0,null,null,null,null,null,{"$f":"[1]Infrastructure!G808","v":0},{"$f":"[1]Infrastructure!H808","v":0},{"$f":"[1]Infrastructure!I808","v":0},{"$f":"[1]Infrastructure!J808","v":0},{"$f":"[1]Infrastructure!K808","v":0},{"$f":"[1]Infrastructure!L808","v":0},{"$f":"[1]Infrastructure!M808","v":0},{"$f":"[1]Infrastructure!N808","v":0},{"$f":"[1]Infrastructure!O808","v":0},{"$f":"[1]Infrastructure!Q808","v":0},{"$f":"[1]Infrastructure!R808","v":0},{"$f":"[1]Infrastructure!T808","v":0},{"$f":"[1]Infrastructure!W808","v":0},{"$f":"[1]Infrastructure!W808","v":0},0,{"$f":"[1]Infrastructure!Z808","v":0},{"$f":"[1]Infrastructure!Z808","v":0},0,{"$f":"[1]Infrastructure!AB808","v":0},{"$f":"[1]Infrastructure!AB808","v":0},0,{"$f":"[1]Infrastructure!AC808","v":0},{"$f":"[1]Infrastructure!AD808","v":0},{"$f":"[1]Infrastructure!AE808","v":0},{"$f":"[1]Infrastructure!AF808","v":0},{"$f":"[1]Infrastructure!AG808","v":0},{"$f":"[1]Infrastructure!AH808","v":0},0]
[0,null,null,null,null,null,{"$f":"[1]Infrastructure!G809","v":0},{"$f":"[1]Infrastructure!H809","v":0},{"$f":"[1]Infrastructure!I809","v":0},{"$f":"[1]Infrastructure!J809","v":0},{"$f":"[1]Infrastructure!K809","v":0},{"$f":"[1]Infrastructure!L809","v":0},{"$f":"[1]Infrastructure!M809","v":0},{"$f":"[1]Infrastructure!N809","v":0},{"$f":"[1]Infrastructure!O809","v":0},{"$f":"[1]Infrastructure!Q809","v":0},{"$f":"[1]Infrastructure!R809","v":0},{"$f":"[1]Infrastructure!T809","v":0},{"$f":"[1]Infrastructure!W809","v":0},{"$f":"[1]Infrastructure!W809","v":0},0,{"$f":"[1]Infrastructure!Z809","v":0},{"$f":"[1]Infrastructure!Z809","v":0},0,{"$f":"[1]Infrastructure!AB809","v":0},{"$f":"[1]Infrastructure!AB809","v":0},0,{"$f":"[1]Infrastructure!AC809","v":0},{"$f":"[1]Infrastructure!AD809","v":0},{"$f":"[1]Infrastructure!AE809","v":0},{"$f":"[1]Infrastructure!AF809","v":0},{"$f":"[1]Infrastructure!AG809","v":0},{"$f":"[1]Infrastructure!AH809","v":0},0]
[0,null,null,null,null,null,{"$f":"[1]Infrastructure!G810","v":0},{"$f":"[1]Infrastructure!H810","v":0},{"$f":"[1]Infrastructure!I810","v":0},{"$f":"[1]Infrastructure!J810","v":0},{"$f":"[1]Infrastructure!K810","v":0},{"$f":"[1]Infrastructure!L810","v":0},{"$f":"[1]Infrastructure!M810","v":0},{"$f":"[1]Infrastructure!N810","v":0},{"$f":"[1]Infrastructure!O810","v":0},{"$f":"[1]Infrastructure!Q810","v":0},{"$f":"[1]Infrastructure!R810","v":0},{"$f":"[1]Infrastructure!T810","v":0},{"$f":"[1]Infrastructure!W810","v":0},{"$f":"[1]Infrastructure!W810","v":0},0,{"$f":"[1]Infrastructure!Z810","v":0},{"$f":"[1]Infrastructure!Z810","v":0},0,{"$f":"[1]Infrastructure!AB810","v":0},{"$f":"[1]Infrastructure!AB810","v":0},0,{"$f":"[1]Infrastructure!AC810","v":0},{"$f":"[1]Infrastructure!AD810","v":0},{"$f":"[1]Infrastructure!AE810","v":0},{"$f":"[1]Infrastructure!AF810","v":0},{"$f":"[1]Infrastructure!AG810","v":0},{"$f":"[1]Infrastructure!AH810","v":0},0]
[0,null,null,null,null,null,{"$f":"[1]Infrastructure!G811","v":0},{"$f":"[1]Infrastructure!H811","v":0},{"$f":"[1]Infrastructure!I811","v":0},{"$f":"[1]Infrastructure!J811","v":0},{"$f":"[1]Infrastructure!K811","v":0},{"$f":"[1]Infrastructure!L811","v":0},{"$f":"[1]Infrastructure!M811","v":0},{"$f":"[1]Infrastructure!N811","v":0},{"$f":"[1]Infrastructure!O811","v":0},{"$f":"[1]Infrastructure!Q811","v":0},{"$f":"[1]Infrastructure!R811","v":0},{"$f":"[1]Infrastructure!T811","v":0},{"$f":"[1]Infrastructure!W811","v":0},{"$f":"[1]Infrastructure!W811","v":0},0,{"$f":"[1]Infrastructure!Z811","v":0},{"$f":"[1]Infrastructure!Z811","v":0},0,{"$f":"[1]Infrastructure!AB811","v":0},{"$f":"[1]Infrastructure!AB811","v":0},0,{"$f":"[1]Infrastructure!AC811","v":0},{"$f":"[1]Infrastructure!AD811","v":0},{"$f":"[1]Infrastructure!AE811","v":0},{"$f":"[1]Infrastructure!AF811","v":0},{"$f":"[1]Infrastructure!AG811","v":0},{"$f":"[1]Infrastructure!AH811","v":0},0]
[0,null,null,null,null,null,{"$f":"[1]Infrastructure!G812","v":0},{"$f":"[1]Infrastructure!H812","v":0},{"$f":"[1]Infrastructure!I812","v":0},{"$f":"[1]Infrastructure!J812","v":0},{"$f":"[1]Infrastructure!K812","v":0},{"$f":"[1]Infrastructure!L812","v":0},{"$f":"[1]Infrastructure!M812","v":0},{"$f":"[1]Infrastructure!N812","v":0},{"$f":"[1]Infrastructure!O812","v":0},{"$f":"[1]Infrastructure!Q812","v":0},{"$f":"[1]Infrastructure!R812","v":0},{"$f":"[1]Infrastructure!T812","v":0},{"$f":"[1]Infrastructure!W812","v":0},{"$f":"[1]Infrastructure!W812","v":0},0,{"$f":"[1]Infrastructure!Z812","v":0},{"$f":"[1]Infrastructure!Z812","v":0},0,{"$f":"[1]Infrastructure!AB812","v":0},{"$f":"[1]Infrastructure!AB812","v":0},0,{"$f":"[1]Infrastructure!AC812","v":0},{"$f":"[1]Infrastructure!AD812","v":0},{"$f":"[1]Infrastructure!AE812","v":0},{"$f":"[1]Infrastructure!AF812","v":0},{"$f":"[1]Infrastructure!AG812","v":0},{"$f":"[1]Infrastructure!AH812","v":0},0]
[0,null,null,null,null,null,{"$f":"[1]Infrastructure!G813","v":0},{"$f":"[1]Infrastructure!H813","v":0},{"$f":"[1]Infrastructure!I813","v":0},{"$f":"[1]Infrastructure!J813","v":0},{"$f":"[1]Infrastructure!K813","v":0},{"$f":"[1]Infrastructure!L813","v":0},{"$f":"[1]Infrastructure!M813","v":0},{"$f":"[1]Infrastructure!N813","v":0},{"$f":"[1]Infrastructure!O813","v":0},{"$f":"[1]Infrastructure!Q813","v":0},{"$f":"[1]Infrastructure!R813","v":0},{"$f":"[1]Infrastructure!T813","v":0},{"$f":"[1]Infrastructure!W813","v":0},{"$f":"[1]Infrastructure!W813","v":0},0,{"$f":"[1]Infrastructure!Z813","v":0},{"$f":"[1]Infrastructure!Z813","v":0},0,{"$f":"[1]Infrastructure!AB813","v":0},{"$f":"[1]Infrastructure!AB813","v":0},0,{"$f":"[1]Infrastructure!AC813","v":0},{"$f":"[1]Infrastructure!AD813","v":0},{"$f":"[1]Infrastructure!AE813","v":0},{"$f":"[1]Infrastructure!AF813","v":0},{"$f":"[1]Infrastructure!AG813","v":0},{"$f":"[1]Infrastructure!AH813","v":0},0]
[0,null,null,null,null,null,{"$f":"[1]Infrastructure!G814","v":0},{"$f":"[1]Infrastructure!H814","v":0},{"$f":"[1]Infrastructure!I814","v":0},{"$f":"[1]Infrastructure!J814","v":0},{"$f":"[1]Infrastructure!K814","v":0},{"$f":"[1]Infrastructure!L814","v":0},{"$f":"[1]Infrastructure!M814","v":0},{"$f":"[1]Infrastructure!N814","v":0},{"$f":"[1]Infrastructure!O814","v":0},{"$f":"[1]Infrastructure!Q814","v":0},{"$f":"[1]Infrastructure!R814","v":0},{"$f":"[1]Infrastructure!T814","v":0},{"$f":"[1]Infrastructure!W814","v":0},{"$f":"[1]Infrastructure!W814","v":0},0,{"$f":"[1]Infrastructure!Z814","v":0},{"$f":"[1]Infrastructure!Z814","v":0},0,{"$f":"[1]Infrastructure!AB814","v":0},{"$f":"[1]Infrastructure!AB814","v":0},0,{"$f":"[1]Infrastructure!AC814","v":0},{"$f":"[1]Infrastructure!AD814","v":0},{"$f":"[1]Infrastructure!AE814","v":0},{"$f":"[1]Infrastructure!AF814","v":0},{"$f":"[1]Infrastructure!AG814","v":0},{"$f":"[1]Infrastructure!AH814","v":0},0]
[0,null,null,null,null,null,{"$f":"[1]Infrastructure!G815","v":0},{"$f":"[1]Infrastructure!H815","v":0},{"$f":"[1]Infrastructure!I815","v":0},{"$f":"[1]Infrastructure!J815","v":0},{"$f":"[1]Infrastructure!K815","v":0},{"$f":"[1]Infrastructure!L815","v":0},{"$f":"[1]Infrastructure!M815","v":0},{"$f":"[1]Infrastructure!N815","v":0},{"$f":"[1]Infrastructure!O815","v":0},{"$f":"[1]Infrastructure!Q815","v":0},{"$f":"[1]Infrastructure!R815","v":0},{"$f":"[1]Infrastructure!T815","v":0},{"$f":"[1]Infrastructure!W815","v":0},{"$f":"[1]Infrastructure!W815","v":0},0,{"$f":"[1]Infrastructure!Z815","v":0},{"$f":"[1]Infrastructure!Z815","v":0},0,{"$f":"[1]Infrastructure!AB815","v":0},{"$f":"[1]Infrastructure!AB815","v":0},0,{"$f":"[1]Infrastructure!AC815","v":0},{"$f":"[1]Infrastructure!AD815","v":0},{"$f":"[1]Infrastructure!AE815","v":0},{"$f":"[1]Infrastructure!AF815","v":0},{"$f":"[1]Infrastructure!AG815","v":0},{"$f":"[1]Infrastructure!AH815","v":0},0]
[0,null,null,null,null,null,{"$f":"[1]Infrastructure!G816","v":0},{"$f":"[1]Infrastructure!H816","v":0},{"$f":"[1]Infrastructure!I816","v":0},{"$f":"[1]Infrastructure!J816","v":0},{"$f":"[1]Infrastructure!K816","v":0},{"$f":"[1]Infrastructure!L816","v":0},{"$f":"[1]Infrastructure!M816","v":0},{"$f":"[1]Infrastructure!N816","v":0},{"$f":"[1]Infrastructure!O816","v":0},{"$f":"[1]Infrastructure!Q816","v":0},{"$f":"[1]Infrastructure!R816","v":0},{"$f":"[1]Infrastructure!T816","v":0},{"$f":"[1]Infrastructure!W816","v":0},{"$f":"[1]Infrastructure!W816","v":0},0,{"$f":"[1]Infrastructure!Z816","v":0},{"$f":"[1]Infrastructure!Z816","v":0},0,{"$f":"[1]Infrastructure!AB816","v":0},{"$f":"[1]Infrastructure!AB816","v":0},0,{"$f":"[1]Infrastructure!AC816","v":0},{"$f":"[1]Infrastructure!AD816","v":0},{"$f":"[1]Infrastructure!AE816","v":0},{"$f":"[1]Infrastructure!AF816","v":0},{"$f":"[1]Infrastructure!AG816","v":0},{"$f":"[1]Infrastructure!AH816","v":0},0]
[0,null,null,null,null,null,{"$f":"[1]Infrastructure!G817","v":0},{"$f":"[1]Infrastructure!H817","v":0},{"$f":"[1]Infrastructure!I817","v":0},{"$f":"[1]Infrastructure!J817","v":0},{"$f":"[1]Infrastructure!K817","v":0},{"$f":"[1]Infrastructure!L817","v":0},{"$f":"[1]Infrastructure!M817","v":0},{"$f":"[1]Infrastructure!N817","v":0},{"$f":"[1]Infrastructure!O817","v":0},{"$f":"[1]Infrastructure!Q817","v":0},{"$f":"[1]Infrastructure!R817","v":0},{"$f":"[1]Infrastructure!T817","v":0},{"$f":"[1]Infrastructure!W817","v":0},{"$f":"[1]Infrastructure!W817","v":0},0,{"$f":"[1]Infrastructure!Z817","v":0},{"$f":"[1]Infrastructure!Z817","v":0},0,{"$f":"[1]Infrastructure!AB817","v":0},{"$f":"[1]Infrastructure!AB817","v":0},0,{"$f":"[1]Infrastructure!AC817","v":0},{"$f":"[1]Infrastructure!AD817","v":0},{"$f":"[1]Infrastructure!AE817","v":0},{"$f":"[1]Infrastructure!AF817","v":0},{"$f":"[1]Infrastructure!AG817","v":0},{"$f":"[1]Infrastructure!AH817","v":0},0]
[0,null,null,null,null,null,{"$f":"[1]Infrastructure!G818","v":0},{"$f":"[1]Infrastructure!H818","v":0},{"$f":"[1]Infrastructure!I818","v":0},{"$f":"[1]Infrastructure!J818","v":0},{"$f":"[1]Infrastructure!K818","v":0},{"$f":"[1]Infrastructure!L818","v":0},{"$f":"[1]Infrastructure!M818","v":0},{"$f":"[1]Infrastructure!N818","v":0},{"$f":"[1]Infrastructure!O818","v":0},{"$f":"[1]Infrastructure!Q818","v":0},{"$f":"[1]Infrastructure!R818","v":0},{"$f":"[1]Infrastructure!T818","v":0},{"$f":"[1]Infrastructure!W818","v":0},{"$f":"[1]Infrastructure!W818","v":0},0,{"$f":"[1]Infrastructure!Z818","v":0},{"$f":"[1]Infrastructure!Z818","v":0},0,{"$f":"[1]Infrastructure!AB818","v":0},{"$f":"[1]Infrastructure!AB818","v":0},0,{"$f":"[1]Infrastructure!AC818","v":0},{"$f":"[1]Infrastructure!AD818","v":0},{"$f":"[1]Infrastructure!AE818","v":0},{"$f":"[1]Infrastructure!AF818","v":0},{"$f":"[1]Infrastructure!AG818","v":0},{"$f":"[1]Infrastructure!AH818","v":0},0]
[0,null,null,null,null,null,{"$f":"[1]Infrastructure!G819","v":0},{"$f":"[1]Infrastructure!H819","v":0},{"$f":"[1]Infrastructure!I819","v":0},{"$f":"[1]Infrastructure!J819","v":0},{"$f":"[1]Infrastructure!K819","v":0},{"$f":"[1]Infrastructure!L819","v":0},{"$f":"[1]Infrastructure!M819","v":0},{"$f":"[1]Infrastructure!N819","v":0},{"$f":"[1]Infrastructure!O819","v":0},{"$f":"[1]Infrastructure!Q819","v":0},{"$f":"[1]Infrastructure!R819","v":0},{"$f":"[1]Infrastructure!T819","v":0},{"$f":"[1]Infrastructure!W819","v":0},{"$f":"[1]Infrastructure!W819","v":0},0,{"$f":"[1]Infrastructure!Z819","v":0},{"$f":"[1]Infrastructure!Z819","v":0},0,{"$f":"[1]Infrastructure!AB819","v":0},{"$f":"[1]Infrastructure!AB819","v":0},0,{"$f":"[1]Infrastructure!AC819","v":0},{"$f":"[1]Infrastructure!AD819","v":0},{"$f":"[1]Infrastructure!AE819","v":0},{"$f":"[1]Infrastructure!AF819","v":0},{"$f":"[1]Infrastructure!AG819","v":0},{"$f":"[1]Infrastructure!AH819","v":0},0]
[0,null,null,null,null,null,{"$f":"[1]Infrastructure!G820","v":0},{"$f":"[1]Infrastructure!H820","v":0},{"$f":"[1]Infrastructure!I820","v":0},{"$f":"[1]Infrastructure!J820","v":0},{"$f":"[1]Infrastructure!K820","v":0},{"$f":"[1]Infrastructure!L820","v":0},{"$f":"[1]Infrastructure!M820","v":0},{"$f":"[1]Infrastructure!N820","v":0},{"$f":"[1]Infrastructure!O820","v":0},{"$f":"[1]Infrastructure!Q820","v":0},{"$f":"[1]Infrastructure!R820","v":0},{"$f":"[1]Infrastructure!T820","v":0},{"$f":"[1]Infrastructure!W820","v":0},{"$f":"[1]Infrastructure!W820","v":0},0,{"$f":"[1]Infrastructure!Z820","v":0},{"$f":"[1]Infrastructure!Z820","v":0},0,{"$f":"[1]Infrastructure!AB820","v":0},{"$f":"[1]Infrastructure!AB820","v":0},0,{"$f":"[1]Infrastructure!AC820","v":0},{"$f":"[1]Infrastructure!AD820","v":0},{"$f":"[1]Infrastructure!AE820","v":0},{"$f":"[1]Infrastructure!AF820","v":0},{"$f":"[1]Infrastructure!AG820","v":0},{"$f":"[1]Infrastructure!AH820","v":0},0]
[0,null,null,null,null,null,{"$f":"[1]Infrastructure!G821","v":0},{"$f":"[1]Infrastructure!H821","v":0},{"$f":"[1]Infrastructure!I821","v":0},{"$f":"[1]Infrastructure!J821","v":0},{"$f":"[1]Infrastructure!K821","v":0},{"$f":"[1]Infrastructure!L821","v":0},{"$f":"[1]Infrastructure!M821","v":0},{"$f":"[1]Infrastructure!N821","v":0},{"$f":"[1]Infrastructure!O821","v":0},{"$f":"[1]Infrastructure!Q821","v":0},{"$f":"[1]Infrastructure!R821","v":0},{"$f":"[1]Infrastructure!T821","v":0},{"$f":"[1]Infrastructure!W821","v":0},{"$f":"[1]Infrastructure!W821","v":0},0,{"$f":"[1]Infrastructure!Z821","v":0},{"$f":"[1]Infrastructure!Z821","v":0},0,{"$f":"[1]Infrastructure!AB821","v":0},{"$f":"[1]Infrastructure!AB821","v":0},0,{"$f":"[1]Infrastructure!AC821","v":0},{"$f":"[1]Infrastructure!AD821","v":0},{"$f":"[1]Infrastructure!AE821","v":0},{"$f":"[1]Infrastructure!AF821","v":0},{"$f":"[1]Infrastructure!AG821","v":0},{"$f":"[1]Infrastructure!AH821","v":0},0]
[0,null,null,null,null,null,{"$f":"[1]Infrastructure!G822","v":0},{"$f":"[1]Infrastructure!H822","v":0},{"$f":"[1]Infrastructure!I822","v":0},{"$f":"[1]Infrastructure!J822","v":0},{"$f":"[1]Infrastructure!K822","v":0},{"$f":"[1]Infrastructure!L822","v":0},{"$f":"[1]Infrastructure!M822","v":0},{"$f":"[1]Infrastructure!N822","v":0},{"$f":"[1]Infrastructure!O822","v":0},{"$f":"[1]Infrastructure!Q822","v":0},{"$f":"[1]Infrastructure!R822","v":0},{"$f":"[1]Infrastructure!T822","v":0},{"$f":"[1]Infrastructure!W822","v":0},{"$f":"[1]Infrastructure!W822","v":0},0,{"$f":"[1]Infrastructure!Z822","v":0},{"$f":"[1]Infrastructure!Z822","v":0},0,{"$f":"[1]Infrastructure!AB822","v":0},{"$f":"[1]Infrastructure!AB822","v":0},0,{"$f":"[1]Infrastructure!AC822","v":0},{"$f":"[1]Infrastructure!AD822","v":0},{"$f":"[1]Infrastructure!AE822","v":0},{"$f":"[1]Infrastructure!AF822","v":0},{"$f":"[1]Infrastructure!AG822","v":0},{"$f":"[1]Infrastructure!AH822","v":0},0]
[0,null,null,null,null,null,{"$f":"[1]Infrastructure!G823","v":0},{"$f":"[1]Infrastructure!H823","v":0},{"$f":"[1]Infrastructure!I823","v":0},{"$f":"[1]Infrastructure!J823","v":0},{"$f":"[1]Infrastructure!K823","v":0},{"$f":"[1]Infrastructure!L823","v":0},{"$f":"[1]Infrastructure!M823","v":0},{"$f":"[1]Infrastructure!N823","v":0},{"$f":"[1]Infrastructure!O823","v":0},{"$f":"[1]Infrastructure!Q823","v":0},{"$f":"[1]Infrastructure!R823","v":0},{"$f":"[1]Infrastructure!T823","v":0},{"$f":"[1]Infrastructure!W823","v":0},{"$f":"[1]Infrastructure!W823","v":0},0,{"$f":"[1]Infrastructure!Z823","v":0},{"$f":"[1]Infrastructure!Z823","v":0},0,{"$f":"[1]Infrastructure!AB823","v":0},{"$f":"[1]Infrastructure!AB823","v":0},0,{"$f":"[1]Infrastructure!AC823","v":0},{"$f":"[1]Infrastructure!AD823","v":0},{"$f":"[1]Infrastructure!AE823","v":0},{"$f":"[1]Infrastructure!AF823","v":0},{"$f":"[1]Infrastructure!AG823","v":0},{"$f":"[1]Infrastructure!AH823","v":0},0]
[0,null,null,null,null,null,{"$f":"[1]Infrastructure!G824","v":0},{"$f":"[1]Infrastructure!H824","v":0},{"$f":"[1]Infrastructure!I824","v":0},{"$f":"[1]Infrastructure!J824","v":0},{"$f":"[1]Infrastructure!K824","v":0},{"$f":"[1]Infrastructure!L824","v":0},{"$f":"[1]Infrastructure!M824","v":0},{"$f":"[1]Infrastructure!N824","v":0},{"$f":"[1]Infrastructure!O824","v":0},{"$f":"[1]Infrastructure!Q824","v":0},{"$f":"[1]Infrastructure!R824","v":0},{"$f":"[1]Infrastructure!T824","v":0},{"$f":"[1]Infrastructure!W824","v":0},{"$f":"[1]Infrastructure!W824","v":0},0,{"$f":"[1]Infrastructure!Z824","v":0},{"$f":"[1]Infrastructure!Z824","v":0},0,{"$f":"[1]Infrastructure!AB824","v":0},{"$f":"[1]Infrastructure!AB824","v":0},0,{"$f":"[1]Infrastructure!AC824","v":0},{"$f":"[1]Infrastructure!AD824","v":0},{"$f":"[1]Infrastructure!AE824","v":0},{"$f":"[1]Infrastructure!AF824","v":0},{"$f":"[1]Infrastructure!AG824","v":0},{"$f":"[1]Infrastructure!AH824","v":0},0]
[0,null,null,null,null,null,{"$f":"[1]Infrastructure!G825","v":0},{"$f":"[1]Infrastructure!H825","v":0},{"$f":"[1]Infrastructure!I825","v":0},{"$f":"[1]Infrastructure!J825","v":0},{"$f":"[1]Infrastructure!K825","v":0},{"$f":"[1]Infrastructure!L825","v":0},{"$f":"[1]Infrastructure!M825","v":0},{"$f":"[1]Infrastructure!N825","v":0},{"$f":"[1]Infrastructure!O825","v":0},{"$f":"[1]Infrastructure!Q825","v":0},{"$f":"[1]Infrastructure!R825","v":0},{"$f":"[1]Infrastructure!T825","v":0},{"$f":"[1]Infrastructure!W825","v":0},{"$f":"[1]Infrastructure!W825","v":0},0,{"$f":"[1]Infrastructure!Z825","v":0},{"$f":"[1]Infrastructure!Z825","v":0},0,{"$f":"[1]Infrastructure!AB825","v":0},{"$f":"[1]Infrastructure!AB825","v":0},0,{"$f":"[1]Infrastructure!AC825","v":0},{"$f":"[1]Infrastructure!AD825","v":0},{"$f":"[1]Infrastructure!AE825","v":0},{"$f":"[1]Infrastructure!AF825","v":0},{"$f":"[1]Infrastructure!AG825","v":0},{"$f":"[1]Infrastructure!AH825","v":0},0]
[0,null,null,null,null,null,{"$f":"[1]Infrastructure!G826","v":0},{"$f":"[1]Infrastructure!H826","v":0},{"$f":"[1]Infrastructure!I826","v":0},{"$f":"[1]Infrastructure!J826","v":0},{"$f":"[1]Infrastructure!K826","v":0},{"$f":"[1]Infrastructure!L826","v":0},{"$f":"[1]Infrastructure!M826","v":0},{"$f":"[1]Infrastructure!N826","v":0},{"$f":"[1]Infrastructure!O826","v":0},{"$f":"[1]Infrastructure!Q826","v":0},{"$f":"[1]Infrastructure!R826","v":0},{"$f":"[1]Infrastructure!T826","v":0},{"$f":"[1]Infrastructure!W826","v":0},{"$f":"[1]Infrastructure!W826","v":0},0,{"$f":"[1]Infrastructure!Z826","v":0},{"$f":"[1]Infrastructure!Z826","v":0},0,{"$f":"[1]Infrastructure!AB826","v":0},{"$f":"[1]Infrastructure!AB826","v":0},0,{"$f":"[1]Infrastructure!AC826","v":0},{"$f":"[1]Infrastructure!AD826","v":0},{"$f":"[1]Infrastructure!AE826","v":0},{"$f":"[1]Infrastructure!AF826","v":0},{"$f":"[1]Infrastructure!AG826","v":0},{"$f":"[1]Infrastructure!AH826","v":0},0]
[0,null,null,null,null,null,{"$f":"[1]Infrastructure!G827","v":0},{"$f":"[1]Infrastructure!H827","v":0},{"$f":"[1]Infrastructure!I827","v":0},{"$f":"[1]Infrastructure!J827","v":0},{"$f":"[1]Infrastructure!K827","v":0},{"$f":"[1]Infrastructure!L827","v":0},{"$f":"[1]Infrastructure!M827","v":0},{"$f":"[1]Infrastructure!N827","v":0},{"$f":"[1]Infrastructure!O827","v":0},{"$f":"[1]Infrastructure!Q827","v":0},{"$f":"[1]Infrastructure!R827","v":0},{"$f":"[1]Infrastructure!T827","v":0},{"$f":"[1]Infrastructure!W827","v":0},{"$f":"[1]Infrastructure!W827","v":0},0,{"$f":"[1]Infrastructure!Z827","v":0},{"$f":"[1]Infrastructure!Z827","v":0},0,{"$f":"[1]Infrastructure!AB827","v":0},{"$f":"[1]Infrastructure!AB827","v":0},0,{"$f":"[1]Infrastructure!AC827","v":0},{"$f":"[1]Infrastructure!AD827","v":0},{"$f":"[1]Infrastructure!AE827","v":0},{"$f":"[1]Infrastructure!AF827","v":0},{"$f":"[1]Infrastructure!AG827","v":0},{"$f":"[1]Infrastructure!AH827","v":0},0]
[0,null,null,null,null,null,{"$f":"[1]Infrastructure!G828","v":0},{"$f":"[1]Infrastructure!H828","v":0},{"$f":"[1]Infrastructure!I828","v":0},{"$f":"[1]Infrastructure!J828","v":0},{"$f":"[1]Infrastructure!K828","v":0},{"$f":"[1]Infrastructure!L828","v":0},{"$f":"[1]Infrastructure!M828","v":0},{"$f":"[1]Infrastructure!N828","v":0},{"$f":"[1]Infrastructure!O828","v":0},{"$f":"[1]Infrastructure!Q828","v":0},{"$f":"[1]Infrastructure!R828","v":0},{"$f":"[1]Infrastructure!T828","v":0},{"$f":"[1]Infrastructure!W828","v":0},{"$f":"[1]Infrastructure!W828","v":0},0,{"$f":"[1]Infrastructure!Z828","v":0},{"$f":"[1]Infrastructure!Z828","v":0},0,{"$f":"[1]Infrastructure!AB828","v":0},{"$f":"[1]Infrastructure!AB828","v":0},0,{"$f":"[1]Infrastructure!AC828","v":0},{"$f":"[1]Infrastructure!AD828","v":0},{"$f":"[1]Infrastructure!AE828","v":0},{"$f":"[1]Infrastructure!AF828","v":0},{"$f":"[1]Infrastructure!AG828","v":0},{"$f":"[1]Infrastructure!AH828","v":0},0]
[0,null,null,null,null,null,{"$f":"[1]Infrastructure!G829","v":0},{"$f":"[1]Infrastructure!H829","v":0},{"$f":"[1]Infrastructure!I829","v":0},{"$f":"[1]Infrastructure!J829","v":0},{"$f":"[1]Infrastructure!K829","v":0},{"$f":"[1]Infrastructure!L829","v":0},{"$f":"[1]Infrastructure!M829","v":0},{"$f":"[1]Infrastructure!N829","v":0},{"$f":"[1]Infrastructure!O829","v":0},{"$f":"[1]Infrastructure!Q829","v":0},{"$f":"[1]Infrastructure!R829","v":0},{"$f":"[1]Infrastructure!T829","v":0},{"$f":"[1]Infrastructure!W829","v":0},{"$f":"[1]Infrastructure!W829","v":0},0,{"$f":"[1]Infrastructure!Z829","v":0},{"$f":"[1]Infrastructure!Z829","v":0},0,{"$f":"[1]Infrastructure!AB829","v":0},{"$f":"[1]Infrastructure!AB829","v":0},0,{"$f":"[1]Infrastructure!AC829","v":0},{"$f":"[1]Infrastructure!AD829","v":0},{"$f":"[1]Infrastructure!AE829","v":0},{"$f":"[1]Infrastructure!AF829","v":0},{"$f":"[1]Infrastructure!AG829","v":0},{"$f":"[1]Infrastructure!AH829","v":0},0]
[0,null,null,null,null,null,{"$f":"[1]Infrastructure!G830","v":0},{"$f":"[1]Infrastructure!H830","v":0},{"$f":"[1]Infrastructure!I830","v":0},{"$f":"[1]Infrastructure!J830","v":0},{"$f":"[1]Infrastructure!K830","v":0},{"$f":"[1]Infrastructure!L830","v":0},{"$f":"[1]Infrastructure!M830","v":0},{"$f":"[1]Infrastructure!N830","v":0},{"$f":"[1]Infrastructure!O830","v":0},{"$f":"[1]Infrastructure!Q830","v":0},{"$f":"[1]Infrastructure!R830","v":0},{"$f":"[1]Infrastructure!T830","v":0},{"$f":"[1]Infrastructure!W830","v":0},{"$f":"[1]Infrastructure!W830","v":0},0,{"$f":"[1]Infrastructure!Z830","v":0},{"$f":"[1]Infrastructure!Z830","v":0},0,{"$f":"[1]Infrastructure!AB830","v":0},{"$f":"[1]Infrastructure!AB830","v":0},0,{"$f":"[1]Infrastructure!AC830","v":0},{"$f":"[1]Infrastructure!AD830","v":0},{"$f":"[1]Infrastructure!AE830","v":0},{"$f":"[1]Infrastructure!AF830","v":0},{"$f":"[1]Infrastructure!AG830","v":0},{"$f":"[1]Infrastructure!AH830","v":0},0]
[0,null,null,null,null,null,{"$f":"[1]Infrastructure!G831","v":0},{"$f":"[1]Infrastructure!H831","v":0},{"$f":"[1]Infrastructure!I831","v":0},{"$f":"[1]Infrastructure!J831","v":0},{"$f":"[1]Infrastructure!K831","v":0},{"$f":"[1]Infrastructure!L831","v":0},{"$f":"[1]Infrastructure!M831","v":0},{"$f":"[1]Infrastructure!N831","v":0},{"$f":"[1]Infrastructure!O831","v":0},{"$f":"[1]Infrastructure!Q831","v":0},{"$f":"[1]Infrastructure!R831","v":0},{"$f":"[1]Infrastructure!T831","v":0},{"$f":"[1]Infrastructure!W831","v":0},{"$f":"[1]Infrastructure!W831","v":0},0,{"$f":"[1]Infrastructure!Z831","v":0},{"$f":"[1]Infrastructure!Z831","v":0},0,{"$f":"[1]Infrastructure!AB831","v":0},{"$f":"[1]Infrastructure!AB831","v":0},0,{"$f":"[1]Infrastructure!AC831","v":0},{"$f":"[1]Infrastructure!AD831","v":0},{"$f":"[1]Infrastructure!AE831","v":0},{"$f":"[1]Infrastructure!AF831","v":0},{"$f":"[1]Infrastructure!AG831","v":0},{"$f":"[1]Infrastructure!AH831","v":0},0]
[0,null,null,null,null,null,{"$f":"[1]Infrastructure!G832","v":0},{"$f":"[1]Infrastructure!H832","v":0},{"$f":"[1]Infrastructure!I832","v":0},{"$f":"[1]Infrastructure!J832","v":0},{"$f":"[1]Infrastructure!K832","v":0},{"$f":"[1]Infrastructure!L832","v":0},{"$f":"[1]Infrastructure!M832","v":0},{"$f":"[1]Infrastructure!N832","v":0},{"$f":"[1]Infrastructure!O832","v":0},{"$f":"[1]Infrastructure!Q832","v":0},{"$f":"[1]Infrastructure!R832","v":0},{"$f":"[1]Infrastructure!T832","v":0},{"$f":"[1]Infrastructure!W832","v":0},{"$f":"[1]Infrastructure!W832","v":0},0,{"$f":"[1]Infrastructure!Z832","v":0},{"$f":"[1]Infrastructure!Z832","v":0},0,{"$f":"[1]Infrastructure!AB832","v":0},{"$f":"[1]Infrastructure!AB832","v":0},0,{"$f":"[1]Infrastructure!AC832","v":0},{"$f":"[1]Infrastructure!AD832","v":0},{"$f":"[1]Infrastructure!AE832","v":0},{"$f":"[1]Infrastructure!AF832","v":0},{"$f":"[1]Infrastructure!AG832","v":0},{"$f":"[1]Infrastructure!AH832","v":0},0]
[0,null,null,null,null,null,{"$f":"[1]Infrastructure!G833","v":0},{"$f":"[1]Infrastructure!H833","v":0},{"$f":"[1]Infrastructure!I833","v":0},{"$f":"[1]Infrastructure!J833","v":0},{"$f":"[1]Infrastructure!K833","v":0},{"$f":"[1]Infrastructure!L833","v":0},{"$f":"[1]Infrastructure!M833","v":0},{"$f":"[1]Infrastructure!N833","v":0},{"$f":"[1]Infrastructure!O833","v":0},{"$f":"[1]Infrastructure!Q833","v":0},{"$f":"[1]Infrastructure!R833","v":0},{"$f":"[1]Infrastructure!T833","v":0},{"$f":"[1]Infrastructure!W833","v":0},{"$f":"[1]Infrastructure!W833","v":0},0,{"$f":"[1]Infrastructure!Z833","v":0},{"$f":"[1]Infrastructure!Z833","v":0},0,{"$f":"[1]Infrastructure!AB833","v":0},{"$f":"[1]Infrastructure!AB833","v":0},0,{"$f":"[1]Infrastructure!AC833","v":0},{"$f":"[1]Infrastructure!AD833","v":0},{"$f":"[1]Infrastructure!AE833","v":0},{"$f":"[1]Infrastructure!AF833","v":0},{"$f":"[1]Infrastructure!AG833","v":0},{"$f":"[1]Infrastructure!AH833","v":0},0]
[0,null,null,null,null,null,{"$f":"[1]Infrastructure!G834","v":0},{"$f":"[1]Infrastructure!H834","v":0},{"$f":"[1]Infrastructure!I834","v":0},{"$f":"[1]Infrastructure!J834","v":0},{"$f":"[1]Infrastructure!K834","v":0},{"$f":"[1]Infrastructure!L834","v":0},{"$f":"[1]Infrastructure!M834","v":0},{"$f":"[1]Infrastructure!N834","v":0},{"$f":"[1]Infrastructure!O834","v":0},{"$f":"[1]Infrastructure!Q834","v":0},{"$f":"[1]Infrastructure!R834","v":0},{"$f":"[1]Infrastructure!T834","v":0},{"$f":"[1]Infrastructure!W834","v":0},{"$f":"[1]Infrastructure!W834","v":0},0,{"$f":"[1]Infrastructure!Z834","v":0},{"$f":"[1]Infrastructure!Z834","v":0},0,{"$f":"[1]Infrastructure!AB834","v":0},{"$f":"[1]Infrastructure!AB834","v":0},0,{"$f":"[1]Infrastructure!AC834","v":0},{"$f":"[1]Infrastructure!AD834","v":0},{"$f":"[1]Infrastructure!AE834","v":0},{"$f":"[1]Infrastructure!AF834","v":0},{"$f":"[1]Infrastructure!AG834","v":0},{"$f":"[1]Infrastructure!AH834","v":0},0]
[0,null,null,null,null,null,{"$f":"[1]Infrastructure!G835","v":0},{"$f":"[1]Infrastructure!H835","v":0},{"$f":"[1]Infrastructure!I835","v":0},{"$f":"[1]Infrastructure!J835","v":0},{"$f":"[1]Infrastructure!K835","v":0},{"$f":"[1]Infrastructure!L835","v":0},{"$f":"[1]Infrastructure!M835","v":0},{"$f":"[1]Infrastructure!N835","v":0},{"$f":"[1]Infrastructure!O835","v":0},{"$f":"[1]Infrastructure!Q835","v":0},{"$f":"[1]Infrastructure!R835","v":0},{"$f":"[1]Infrastructure!T835","v":0},{"$f":"[1]Infrastructure!W835","v":0},{"$f":"[1]Infrastructure!W835","v":0},0,{"$f":"[1]Infrastructure!Z835","v":0},{"$f":"[1]Infrastructure!Z835","v":0},0,{"$f":"[1]Infrastructure!AB835","v":0},{"$f":"[1]Infrastructure!AB835","v":0},0,{"$f":"[1]Infrastructure!AC835","v":0},{"$f":"[1]Infrastructure!AD835","v":0},{"$f":"[1]Infrastructure!AE835","v":0},{"$f":"[1]Infrastructure!AF835","v":0},{"$f":"[1]Infrastructure!AG835","v":0},{"$f":"[1]Infrastructure!AH835","v":0},0]
[0,null,null,null,null,null,{"$f":"[1]Infrastructure!G836","v":0},{"$f":"[1]Infrastructure!H836","v":0},{"$f":"[1]Infrastructure!I836","v":0},{"$f":"[1]Infrastructure!J836","v":0},{"$f":"[1]Infrastructure!K836","v":0},{"$f":"[1]Infrastructure!L836","v":0},{"$f":"[1]Infrastructure!M836","v":0},{"$f":"[1]Infrastructure!N836","v":0},{"$f":"[1]Infrastructure!O836","v":0},{"$f":"[1]Infrastructure!Q836","v":0},{"$f":"[1]Infrastructure!R836","v":0},{"$f":"[1]Infrastructure!T836","v":0},{"$f":"[1]Infrastructure!W836","v":0},{"$f":"[1]Infrastructure!W836","v":0},0,{"$f":"[1]Infrastructure!Z836","v":0},{"$f":"[1]Infrastructure!Z836","v":0},0,{"$f":"[1]Infrastructure!AB836","v":0},{"$f":"[1]Infrastructure!AB836","v":0},0,{"$f":"[1]Infrastructure!AC836","v":0},{"$f":"[1]Infrastructure!AD836","v":0},{"$f":"[1]Infrastructure!AE836","v":0},{"$f":"[1]Infrastructure!AF836","v":0},{"$f":"[1]Infrastructure!AG836","v":0},{"$f":"[1]Infrastructure!AH836","v":0},0]
[0,null,null,null,null,null,{"$f":"[1]Infrastructure!G837","v":0},{"$f":"[1]Infrastructure!H837","v":0},{"$f":"[1]Infrastructure!I837","v":0},{"$f":"[1]Infrastructure!J837","v":0},{"$f":"[1]Infrastructure!K837","v":0},{"$f":"[1]Infrastructure!L837","v":0},{"$f":"[1]Infrastructure!M837","v":0},{"$f":"[1]Infrastructure!N837","v":0},{"$f":"[1]Infrastructure!O837","v":0},{"$f":"[1]Infrastructure!Q837","v":0},{"$f":"[1]Infrastructure!R837","v":0},{"$f":"[1]Infrastructure!T837","v":0},{"$f":"[1]Infrastructure!W837","v":0},{"$f":"[1]Infrastructure!W837","v":0},0,{"$f":"[1]Infrastructure!Z837","v":0},{"$f":"[1]Infrastructure!Z837","v":0},0,{"$f":"[1]Infrastructure!AB837","v":0},{"$f":"[1]Infrastructure!AB837","v":0},0,{"$f":"[1]Infrastructure!AC837","v":0},{"$f":"[1]Infrastructure!AD837","v":0},{"$f":"[1]Infrastructure!AE837","v":0},{"$f":"[1]Infrastructure!AF837","v":0},{"$f":"[1]Infrastructure!AG837","v":0},{"$f":"[1]Infrastructure!AH837","v":0},0]
[0,null,null,null,null,null,{"$f":"[1]Infrastructure!G838","v":0},{"$f":"[1]Infrastructure!H838","v":0},{"$f":"[1]Infrastructure!I838","v":0},{"$f":"[1]Infrastructure!J838","v":0},{"$f":"[1]Infrastructure!K838","v":0},{"$f":"[1]Infrastructure!L838","v":0},{"$f":"[1]Infrastructure!M838","v":0},{"$f":"[1]Infrastructure!N838","v":0},{"$f":"[1]Infrastructure!O838","v":0},{"$f":"[1]Infrastructure!Q838","v":0},{"$f":"[1]Infrastructure!R838","v":0},{"$f":"[1]Infrastructure!T838","v":0},{"$f":"[1]Infrastructure!W838","v":0},{"$f":"[1]Infrastructure!W838","v":0},0,{"$f":"[1]Infrastructure!Z838","v":0},{"$f":"[1]Infrastructure!Z838","v":0},0,{"$f":"[1]Infrastructure!AB838","v":0},{"$f":"[1]Infrastructure!AB838","v":0},0,{"$f":"[1]Infrastructure!AC838","v":0},{"$f":"[1]Infrastructure!AD838","v":0},{"$f":"[1]Infrastructure!AE838","v":0},{"$f":"[1]Infrastructure!AF838","v":0},{"$f":"[1]Infrastructure!AG838","v":0},{"$f":"[1]Infrastructure!AH838","v":0},0]
[0,null,null,null,null,null,{"$f":"[1]Infrastructure!G839","v":0},{"$f":"[1]Infrastructure!H839","v":0},{"$f":"[1]Infrastructure!I839","v":0},{"$f":"[1]Infrastructure!J839","v":0},{"$f":"[1]Infrastructure!K839","v":0},{"$f":"[1]Infrastructure!L839","v":0},{"$f":"[1]Infrastructure!M839","v":0},{"$f":"[1]Infrastructure!N839","v":0},{"$f":"[1]Infrastructure!O839","v":0},{"$f":"[1]Infrastructure!Q839","v":0},{"$f":"[1]Infrastructure!R839","v":0},{"$f":"[1]Infrastructure!T839","v":0},{"$f":"[1]Infrastructure!W839","v":0},{"$f":"[1]Infrastructure!W839","v":0},0,{"$f":"[1]Infrastructure!Z839","v":0},{"$f":"[1]Infrastructure!Z839","v":0},0,{"$f":"[1]Infrastructure!AB839","v":0},{"$f":"[1]Infrastructure!AB839","v":0},0,{"$f":"[1]Infrastructure!AC839","v":0},{"$f":"[1]Infrastructure!AD839","v":0},{"$f":"[1]Infrastructure!AE839","v":0},{"$f":"[1]Infrastructure!AF839","v":0},{"$f":"[1]Infrastructure!AG839","v":0},{"$f":"[1]Infrastructure!AH839","v":0},0]
[0,null,null,null,null,null,{"$f":"[1]Infrastructure!G840","v":0},{"$f":"[1]Infrastructure!H840","v":0},{"$f":"[1]Infrastructure!I840","v":0},{"$f":"[1]Infrastructure!J840","v":0},{"$f":"[1]Infrastructure!K840","v":0},{"$f":"[1]Infrastructure!L840","v":0},{"$f":"[1]Infrastructure!M840","v":0},{"$f":"[1]Infrastructure!N840","v":0},{"$f":"[1]Infrastructure!O840","v":0},{"$f":"[1]Infrastructure!Q840","v":0},{"$f":"[1]Infrastructure!R840","v":0},{"$f":"[1]Infrastructure!T840","v":0},{"$f":"[1]Infrastructure!W840","v":0},{"$f":"[1]Infrastructure!W840","v":0},0,{"$f":"[1]Infrastructure!Z840","v":0},{"$f":"[1]Infrastructure!Z840","v":0},0,{"$f":"[1]Infrastructure!AB840","v":0},{"$f":"[1]Infrastructure!AB840","v":0},0,{"$f":"[1]Infrastructure!AC840","v":0},{"$f":"[1]Infrastructure!AD840","v":0},{"$f":"[1]Infrastructure!AE840","v":0},{"$f":"[1]Infrastructure!AF840","v":0},{"$f":"[1]Infrastructure!AG840","v":0},{"$f":"[1]Infrastructure!AH840","v":0},0]
[0,null,null,null,null,null,{"$f":"[1]Infrastructure!G841","v":0},{"$f":"[1]Infrastructure!H841","v":0},{"$f":"[1]Infrastructure!I841","v":0},{"$f":"[1]Infrastructure!J841","v":0},{"$f":"[1]Infrastructure!K841","v":0},{"$f":"[1]Infrastructure!L841","v":0},{"$f":"[1]Infrastructure!M841","v":0},{"$f":"[1]Infrastructure!N841","v":0},{"$f":"[1]Infrastructure!O841","v":0},{"$f":"[1]Infrastructure!Q841","v":0},{"$f":"[1]Infrastructure!R841","v":0},{"$f":"[1]Infrastructure!T841","v":0},{"$f":"[1]Infrastructure!W841","v":0},{"$f":"[1]Infrastructure!W841","v":0},0,{"$f":"[1]Infrastructure!Z841","v":0},{"$f":"[1]Infrastructure!Z841","v":0},0,{"$f":"[1]Infrastructure!AB841","v":0},{"$f":"[1]Infrastructure!AB841","v":0},0,{"$f":"[1]Infrastructure!AC841","v":0},{"$f":"[1]Infrastructure!AD841","v":0},{"$f":"[1]Infrastructure!AE841","v":0},{"$f":"[1]Infrastructure!AF841","v":0},{"$f":"[1]Infrastructure!AG841","v":0},{"$f":"[1]Infrastructure!AH841","v":0},0]
[0,null,null,null,null,null,{"$f":"[1]Infrastructure!G842","v":0},{"$f":"[1]Infrastructure!H842","v":0},{"$f":"[1]Infrastructure!I842","v":0},{"$f":"[1]Infrastructure!J842","v":0},{"$f":"[1]Infrastructure!K842","v":0},{"$f":"[1]Infrastructure!L842","v":0},{"$f":"[1]Infrastructure!M842","v":0},{"$f":"[1]Infrastructure!N842","v":0},{"$f":"[1]Infrastructure!O842","v":0},{"$f":"[1]Infrastructure!Q842","v":0},{"$f":"[1]Infrastructure!R842","v":0},{"$f":"[1]Infrastructure!T842","v":0},{"$f":"[1]Infrastructure!W842","v":0},{"$f":"[1]Infrastructure!W842","v":0},0,{"$f":"[1]Infrastructure!Z842","v":0},{"$f":"[1]Infrastructure!Z842","v":0},0,{"$f":"[1]Infrastructure!AB842","v":0},{"$f":"[1]Infrastructure!AB842","v":0},0,{"$f":"[1]Infrastructure!AC842","v":0},{"$f":"[1]Infrastructure!AD842","v":0},{"$f":"[1]Infrastructure!AE842","v":0},{"$f":"[1]Infrastructure!AF842","v":0},{"$f":"[1]Infrastructure!AG842","v":0},{"$f":"[1]Infrastructure!AH842","v":0},0]
[0,null,null,null,null,null,{"$f":"[1]Infrastructure!G843","v":0},{"$f":"[1]Infrastructure!H843","v":0},{"$f":"[1]Infrastructure!I843","v":0},{"$f":"[1]Infrastructure!J843","v":0},{"$f":"[1]Infrastructure!K843","v":0},{"$f":"[1]Infrastructure!L843","v":0},{"$f":"[1]Infrastructure!M843","v":0},{"$f":"[1]Infrastructure!N843","v":0},{"$f":"[1]Infrastructure!O843","v":0},{"$f":"[1]Infrastructure!Q843","v":0},{"$f":"[1]Infrastructure!R843","v":0},{"$f":"[1]Infrastructure!T843","v":0},{"$f":"[1]Infrastructure!W843","v":0},{"$f":"[1]Infrastructure!W843","v":0},0,{"$f":"[1]Infrastructure!Z843","v":0},{"$f":"[1]Infrastructure!Z843","v":0},0,{"$f":"[1]Infrastructure!AB843","v":0},{"$f":"[1]Infrastructure!AB843","v":0},0,{"$f":"[1]Infrastructure!AC843","v":0},{"$f":"[1]Infrastructure!AD843","v":0},{"$f":"[1]Infrastructure!AE843","v":0},{"$f":"[1]Infrastructure!AF843","v":0},{"$f":"[1]Infrastructure!AG843","v":0},{"$f":"[1]Infrastructure!AH843","v":0},0]
[{"$f":"IF(SUM(O844:AH844),1,0)","v":0},null,null,null,null,null,{"$f":"[1]Infrastructure!G844","v":0},{"$f":"[1]Infrastructure!H844","v":0},{"$f":"[1]Infrastructure!I844","v":0},{"$f":"[1]Infrastructure!J844","v":0},{"$f":"[1]Infrastructure!K844","v":0},{"$f":"[1]Infrastructure!L844","v":0},{"$f":"[1]Infrastructure!M844","v":0},{"$f":"[1]Infrastructure!N844","v":0},{"$f":"[1]Infrastructure!O844","v":0},{"$f":"[1]Infrastructure!Q844","v":0},{"$f":"[1]Infrastructure!R844","v":0},{"$f":"[1]Infrastructure!T844","v":0},{"$f":"[1]Infrastructure!W844","v":0},{"$f":"[1]Infrastructure!W844","v":0},0,{"$f":"[1]Infrastructure!Z844","v":0},{"$f":"[1]Infrastructure!Z844","v":0},0,{"$f":"[1]Infrastructure!AB844","v":0},{"$f":"[1]Infrastructure!AB844","v":0},0,{"$f":"[1]Infrastructure!AC844","v":0},{"$f":"[1]Infrastructure!AD844","v":0},{"$f":"[1]Infrastructure!AE844","v":0},{"$f":"[1]Infrastructure!AF844","v":0},{"$f":"[1]Infrastructure!AG844","v":0},{"$f":"[1]Infrastructure!AH844","v":0},0]
[0,null,null,null,null,null,{"$f":"[1]Infrastructure!G845","v":0},{"$f":"[1]Infrastructure!H845","v":0},{"$f":"[1]Infrastructure!I845","v":0},{"$f":"[1]Infrastructure!J845","v":0},{"$f":"[1]Infrastructure!K845","v":0},{"$f":"[1]Infrastructure!L845","v":0},{"$f":"[1]Infrastructure!M845","v":0},{"$f":"[1]Infrastructure!N845","v":0},{"$f":"[1]Infrastructure!O845","v":0},{"$f":"[1]Infrastructure!Q845","v":0},{"$f":"[1]Infrastructure!R845","v":0},{"$f":"[1]Infrastructure!T845","v":0},{"$f":"[1]Infrastructure!W845","v":0},{"$f":"[1]Infrastructure!W845","v":0},0,{"$f":"[1]Infrastructure!Z845","v":0},{"$f":"[1]Infrastructure!Z845","v":0},0,{"$f":"[1]Infrastructure!AB845","v":0},{"$f":"[1]Infrastructure!AB845","v":0},0,{"$f":"[1]Infrastructure!AC845","v":0},{"$f":"[1]Infrastructure!AD845","v":0},{"$f":"[1]Infrastructure!AE845","v":0},{"$f":"[1]Infrastructure!AF845","v":0},{"$f":"[1]Infrastructure!AG845","v":0},{"$f":"[1]Infrastructure!AH845","v":0},0]
[0,null,null,null,null,null,{"$f":"[1]Infrastructure!G846","v":0},{"$f":"[1]Infrastructure!H846","v":0},{"$f":"[1]Infrastructure!I846","v":0},{"$f":"[1]Infrastructure!J846","v":0},{"$f":"[1]Infrastructure!K846","v":0},{"$f":"[1]Infrastructure!L846","v":0},{"$f":"[1]Infrastructure!M846","v":0},{"$f":"[1]Infrastructure!N846","v":0},{"$f":"[1]Infrastructure!O846","v":0},{"$f":"[1]Infrastructure!Q846","v":0},{"$f":"[1]Infrastructure!R846","v":0},{"$f":"[1]Infrastructure!T846","v":0},{"$f":"[1]Infrastructure!W846","v":0},{"$f":"[1]Infrastructure!W846","v":0},0,{"$f":"[1]Infrastructure!Z846","v":0},{"$f":"[1]Infrastructure!Z846","v":0},0,{"$f":"[1]Infrastructure!AB846","v":0},{"$f":"[1]Infrastructure!AB846","v":0},0,{"$f":"[1]Infrastructure!AC846","v":0},{"$f":"[1]Infrastructure!AD846","v":0},{"$f":"[1]Infrastructure!AE846","v":0},{"$f":"[1]Infrastructure!AF846","v":0},{"$f":"[1]Infrastructure!AG846","v":0},{"$f":"[1]Infrastructure!AH846","v":0},0]
[0,null,null,null,null,null,{"$f":"[1]Infrastructure!G847","v":0},{"$f":"[1]Infrastructure!H847","v":0},{"$f":"[1]Infrastructure!I847","v":0},{"$f":"[1]Infrastructure!J847","v":0},{"$f":"[1]Infrastructure!K847","v":0},{"$f":"[1]Infrastructure!L847","v":0},{"$f":"[1]Infrastructure!M847","v":0},{"$f":"[1]Infrastructure!N847","v":0},{"$f":"[1]Infrastructure!O847","v":0},{"$f":"[1]Infrastructure!Q847","v":0},{"$f":"[1]Infrastructure!R847","v":0},{"$f":"[1]Infrastructure!T847","v":0},{"$f":"[1]Infrastructure!W847","v":0},{"$f":"[1]Infrastructure!W847","v":0},0,{"$f":"[1]Infrastructure!Z847","v":0},{"$f":"[1]Infrastructure!Z847","v":0},0,{"$f":"[1]Infrastructure!AB847","v":0},{"$f":"[1]Infrastructure!AB847","v":0},0,{"$f":"[1]Infrastructure!AC847","v":0},{"$f":"[1]Infrastructure!AD847","v":0},{"$f":"[1]Infrastructure!AE847","v":0},{"$f":"[1]Infrastructure!AF847","v":0},{"$f":"[1]Infrastructure!AG847","v":0},{"$f":"[1]Infrastructure!AH847","v":0},0]
[0,null,null,null,null,null,{"$f":"[1]Infrastructure!G848","v":0},{"$f":"[1]Infrastructure!H848","v":0},{"$f":"[1]Infrastructure!I848","v":0},{"$f":"[1]Infrastructure!J848","v":0},{"$f":"[1]Infrastructure!K848","v":0},{"$f":"[1]Infrastructure!L848","v":0},{"$f":"[1]Infrastructure!M848","v":0},{"$f":"[1]Infrastructure!N848","v":0},{"$f":"[1]Infrastructure!O848","v":0},{"$f":"[1]Infrastructure!Q848","v":0},{"$f":"[1]Infrastructure!R848","v":0},{"$f":"[1]Infrastructure!T848","v":0},{"$f":"[1]Infrastructure!W848","v":0},{"$f":"[1]Infrastructure!W848","v":0},0,{"$f":"[1]Infrastructure!Z848","v":0},{"$f":"[1]Infrastructure!Z848","v":0},0,{"$f":"[1]Infrastructure!AB848","v":0},{"$f":"[1]Infrastructure!AB848","v":0},0,{"$f":"[1]Infrastructure!AC848","v":0},{"$f":"[1]Infrastructure!AD848","v":0},{"$f":"[1]Infrastructure!AE848","v":0},{"$f":"[1]Infrastructure!AF848","v":0},{"$f":"[1]Infrastructure!AG848","v":0},{"$f":"[1]Infrastructure!AH848","v":0},0]
[0,null,null,null,null,null,{"$f":"[1]Infrastructure!G849","v":0},{"$f":"[1]Infrastructure!H849","v":0},{"$f":"[1]Infrastructure!I849","v":0},{"$f":"[1]Infrastructure!J849","v":0},{"$f":"[1]Infrastructure!K849","v":0},{"$f":"[1]Infrastructure!L849","v":0},{"$f":"[1]Infrastructure!M849","v":0},{"$f":"[1]Infrastructure!N849","v":0},{"$f":"[1]Infrastructure!O849","v":0},{"$f":"[1]Infrastructure!Q849","v":0},{"$f":"[1]Infrastructure!R849","v":0},{"$f":"[1]Infrastructure!T849","v":0},{"$f":"[1]Infrastructure!W849","v":0},{"$f":"[1]Infrastructure!W849","v":0},0,{"$f":"[1]Infrastructure!Z849","v":0},{"$f":"[1]Infrastructure!Z849","v":0},0,{"$f":"[1]Infrastructure!AB849","v":0},{"$f":"[1]Infrastructure!AB849","v":0},0,{"$f":"[1]Infrastructure!AC849","v":0},{"$f":"[1]Infrastructure!AD849","v":0},{"$f":"[1]Infrastructure!AE849","v":0},{"$f":"[1]Infrastructure!AF849","v":0},{"$f":"[1]Infrastructure!AG849","v":0},{"$f":"[1]Infrastructure!AH849","v":0},0]
[0,null,null,null,null,null,{"$f":"[1]Infrastructure!G850","v":0},{"$f":"[1]Infrastructure!H850","v":0},{"$f":"[1]Infrastructure!I850","v":0},{"$f":"[1]Infrastructure!J850","v":0},{"$f":"[1]Infrastructure!K850","v":0},{"$f":"[1]Infrastructure!L850","v":0},{"$f":"[1]Infrastructure!M850","v":0},{"$f":"[1]Infrastructure!N850","v":0},{"$f":"[1]Infrastructure!O850","v":0},{"$f":"[1]Infrastructure!Q850","v":0},{"$f":"[1]Infrastructure!R850","v":0},{"$f":"[1]Infrastructure!T850","v":0},{"$f":"[1]Infrastructure!W850","v":0},{"$f":"[1]Infrastructure!W850","v":0},0,{"$f":"[1]Infrastructure!Z850","v":0},{"$f":"[1]Infrastructure!Z850","v":0},0,{"$f":"[1]Infrastructure!AB850","v":0},{"$f":"[1]Infrastructure!AB850","v":0},0,{"$f":"[1]Infrastructure!AC850","v":0},{"$f":"[1]Infrastructure!AD850","v":0},{"$f":"[1]Infrastructure!AE850","v":0},{"$f":"[1]Infrastructure!AF850","v":0},{"$f":"[1]Infrastructure!AG850","v":0},{"$f":"[1]Infrastructure!AH850","v":0},0]
[0,null,null,null,null,null,{"$f":"[1]Infrastructure!G851","v":0},{"$f":"[1]Infrastructure!H851","v":0},{"$f":"[1]Infrastructure!I851","v":0},{"$f":"[1]Infrastructure!J851","v":0},{"$f":"[1]Infrastructure!K851","v":0},{"$f":"[1]Infrastructure!L851","v":0},{"$f":"[1]Infrastructure!M851","v":0},{"$f":"[1]Infrastructure!N851","v":0},{"$f":"[1]Infrastructure!O851","v":0},{"$f":"[1]Infrastructure!Q851","v":0},{"$f":"[1]Infrastructure!R851","v":0},{"$f":"[1]Infrastructure!T851","v":0},{"$f":"[1]Infrastructure!W851","v":0},{"$f":"[1]Infrastructure!W851","v":0},0,{"$f":"[1]Infrastructure!Z851","v":0},{"$f":"[1]Infrastructure!Z851","v":0},0,{"$f":"[1]Infrastructure!AB851","v":0},{"$f":"[1]Infrastructure!AB851","v":0},0,{"$f":"[1]Infrastructure!AC851","v":0},{"$f":"[1]Infrastructure!AD851","v":0},{"$f":"[1]Infrastructure!AE851","v":0},{"$f":"[1]Infrastructure!AF851","v":0},{"$f":"[1]Infrastructure!AG851","v":0},{"$f":"[1]Infrastructure!AH851","v":0},0]
[0,null,null,null,null,null,{"$f":"[1]Infrastructure!G852","v":0},{"$f":"[1]Infrastructure!H852","v":0},{"$f":"[1]Infrastructure!I852","v":0},{"$f":"[1]Infrastructure!J852","v":0},{"$f":"[1]Infrastructure!K852","v":0},{"$f":"[1]Infrastructure!L852","v":0},{"$f":"[1]Infrastructure!M852","v":0},{"$f":"[1]Infrastructure!N852","v":0},{"$f":"[1]Infrastructure!O852","v":0},{"$f":"[1]Infrastructure!Q852","v":0},{"$f":"[1]Infrastructure!R852","v":0},{"$f":"[1]Infrastructure!T852","v":0},{"$f":"[1]Infrastructure!W852","v":0},{"$f":"[1]Infrastructure!W852","v":0},0,{"$f":"[1]Infrastructure!Z852","v":0},{"$f":"[1]Infrastructure!Z852","v":0},0,{"$f":"[1]Infrastructure!AB852","v":0},{"$f":"[1]Infrastructure!AB852","v":0},0,{"$f":"[1]Infrastructure!AC852","v":0},{"$f":"[1]Infrastructure!AD852","v":0},{"$f":"[1]Infrastructure!AE852","v":0},{"$f":"[1]Infrastructure!AF852","v":0},{"$f":"[1]Infrastructure!AG852","v":0},{"$f":"[1]Infrastructure!AH852","v":0},0]
[0,null,null,null,null,null,{"$f":"[1]Infrastructure!G853","v":0},{"$f":"[1]Infrastructure!H853","v":0},{"$f":"[1]Infrastructure!I853","v":0},{"$f":"[1]Infrastructure!J853","v":0},{"$f":"[1]Infrastructure!K853","v":0},{"$f":"[1]Infrastructure!L853","v":0},{"$f":"[1]Infrastructure!M853","v":0},{"$f":"[1]Infrastructure!N853","v":0},{"$f":"[1]Infrastructure!O853","v":0},{"$f":"[1]Infrastructure!Q853","v":0},{"$f":"[1]Infrastructure!R853","v":0},{"$f":"[1]Infrastructure!T853","v":0},{"$f":"[1]Infrastructure!W853","v":0},{"$f":"[1]Infrastructure!W853","v":0},0,{"$f":"[1]Infrastructure!Z853","v":0},{"$f":"[1]Infrastructure!Z853","v":0},0,{"$f":"[1]Infrastructure!AB853","v":0},{"$f":"[1]Infrastructure!AB853","v":0},0,{"$f":"[1]Infrastructure!AC853","v":0},{"$f":"[1]Infrastructure!AD853","v":0},{"$f":"[1]Infrastructure!AE853","v":0},{"$f":"[1]Infrastructure!AF853","v":0},{"$f":"[1]Infrastructure!AG853","v":0},{"$f":"[1]Infrastructure!AH853","v":0},0]
[0,null,null,null,null,null,{"$f":"[1]Infrastructure!G854","v":0},{"$f":"[1]Infrastructure!H854","v":0},{"$f":"[1]Infrastructure!I854","v":0},{"$f":"[1]Infrastructure!J854","v":0},{"$f":"[1]Infrastructure!K854","v":0},{"$f":"[1]Infrastructure!L854","v":0},{"$f":"[1]Infrastructure!M854","v":0},{"$f":"[1]Infrastructure!N854","v":0},{"$f":"[1]Infrastructure!O854","v":0},{"$f":"[1]Infrastructure!Q854","v":0},{"$f":"[1]Infrastructure!R854","v":0},{"$f":"[1]Infrastructure!T854","v":0},{"$f":"[1]Infrastructure!W854","v":0},{"$f":"[1]Infrastructure!W854","v":0},0,{"$f":"[1]Infrastructure!Z854","v":0},{"$f":"[1]Infrastructure!Z854","v":0},0,{"$f":"[1]Infrastructure!AB854","v":0},{"$f":"[1]Infrastructure!AB854","v":0},0,{"$f":"[1]Infrastructure!AC854","v":0},{"$f":"[1]Infrastructure!AD854","v":0},{"$f":"[1]Infrastructure!AE854","v":0},{"$f":"[1]Infrastructure!AF854","v":0},{"$f":"[1]Infrastructure!AG854","v":0},{"$f":"[1]Infrastructure!AH854","v":0},0]
[0,null,null,null,null,null,{"$f":"[1]Infrastructure!G855","v":0},{"$f":"[1]Infrastructure!H855","v":0},{"$f":"[1]Infrastructure!I855","v":0},{"$f":"[1]Infrastructure!J855","v":0},{"$f":"[1]Infrastructure!K855","v":0},{"$f":"[1]Infrastructure!L855","v":0},{"$f":"[1]Infrastructure!M855","v":0},{"$f":"[1]Infrastructure!N855","v":0},{"$f":"[1]Infrastructure!O855","v":0},{"$f":"[1]Infrastructure!Q855","v":0},{"$f":"[1]Infrastructure!R855","v":0},{"$f":"[1]Infrastructure!T855","v":0},{"$f":"[1]Infrastructure!W855","v":0},{"$f":"[1]Infrastructure!W855","v":0},0,{"$f":"[1]Infrastructure!Z855","v":0},{"$f":"[1]Infrastructure!Z855","v":0},0,{"$f":"[1]Infrastructure!AB855","v":0},{"$f":"[1]Infrastructure!AB855","v":0},0,{"$f":"[1]Infrastructure!AC855","v":0},{"$f":"[1]Infrastructure!AD855","v":0},{"$f":"[1]Infrastructure!AE855","v":0},{"$f":"[1]Infrastructure!AF855","v":0},{"$f":"[1]Infrastructure!AG855","v":0},{"$f":"[1]Infrastructure!AH855","v":0},0]
[0,null,null,null,null,null,{"$f":"[1]Infrastructure!G856","v":0},{"$f":"[1]Infrastructure!H856","v":0},{"$f":"[1]Infrastructure!I856","v":0},{"$f":"[1]Infrastructure!J856","v":0},{"$f":"[1]Infrastructure!K856","v":0},{"$f":"[1]Infrastructure!L856","v":0},{"$f":"[1]Infrastructure!M856","v":0},{"$f":"[1]Infrastructure!N856","v":0},{"$f":"[1]Infrastructure!O856","v":0},{"$f":"[1]Infrastructure!Q856","v":0},{"$f":"[1]Infrastructure!R856","v":0},{"$f":"[1]Infrastructure!T856","v":0},{"$f":"[1]Infrastructure!W856","v":0},{"$f":"[1]Infrastructure!W856","v":0},0,{"$f":"[1]Infrastructure!Z856","v":0},{"$f":"[1]Infrastructure!Z856","v":0},0,{"$f":"[1]Infrastructure!AB856","v":0},{"$f":"[1]Infrastructure!AB856","v":0},0,{"$f":"[1]Infrastructure!AC856","v":0},{"$f":"[1]Infrastructure!AD856","v":0},{"$f":"[1]Infrastructure!AE856","v":0},{"$f":"[1]Infrastructure!AF856","v":0},{"$f":"[1]Infrastructure!AG856","v":0},{"$f":"[1]Infrastructure!AH856","v":0},0]
[0,null,null,null,null,null,{"$f":"[1]Infrastructure!G857","v":0},{"$f":"[1]Infrastructure!H857","v":0},{"$f":"[1]Infrastructure!I857","v":0},{"$f":"[1]Infrastructure!J857","v":0},{"$f":"[1]Infrastructure!K857","v":0},{"$f":"[1]Infrastructure!L857","v":0},{"$f":"[1]Infrastructure!M857","v":0},{"$f":"[1]Infrastructure!N857","v":0},{"$f":"[1]Infrastructure!O857","v":0},{"$f":"[1]Infrastructure!Q857","v":0},{"$f":"[1]Infrastructure!R857","v":0},{"$f":"[1]Infrastructure!T857","v":0},{"$f":"[1]Infrastructure!W857","v":0},{"$f":"[1]Infrastructure!W857","v":0},0,{"$f":"[1]Infrastructure!Z857","v":0},{"$f":"[1]Infrastructure!Z857","v":0},0,{"$f":"[1]Infrastructure!AB857","v":0},{"$f":"[1]Infrastructure!AB857","v":0},0,{"$f":"[1]Infrastructure!AC857","v":0},{"$f":"[1]Infrastructure!AD857","v":0},{"$f":"[1]Infrastructure!AE857","v":0},{"$f":"[1]Infrastructure!AF857","v":0},{"$f":"[1]Infrastructure!AG857","v":0},{"$f":"[1]Infrastructure!AH857","v":0},0]
[0,null,null,null,null,null,{"$f":"[1]Infrastructure!G858","v":0},{"$f":"[1]Infrastructure!H858","v":0},{"$f":"[1]Infrastructure!I858","v":0},{"$f":"[1]Infrastructure!J858","v":0},{"$f":"[1]Infrastructure!K858","v":0},{"$f":"[1]Infrastructure!L858","v":0},{"$f":"[1]Infrastructure!M858","v":0},{"$f":"[1]Infrastructure!N858","v":0},{"$f":"[1]Infrastructure!O858","v":0},{"$f":"[1]Infrastructure!Q858","v":0},{"$f":"[1]Infrastructure!R858","v":0},{"$f":"[1]Infrastructure!T858","v":0},{"$f":"[1]Infrastructure!W858","v":0},{"$f":"[1]Infrastructure!W858","v":0},0,{"$f":"[1]Infrastructure!Z858","v":0},{"$f":"[1]Infrastructure!Z858","v":0},0,{"$f":"[1]Infrastructure!AB858","v":0},{"$f":"[1]Infrastructure!AB858","v":0},0,{"$f":"[1]Infrastructure!AC858","v":0},{"$f":"[1]Infrastructure!AD858","v":0},{"$f":"[1]Infrastructure!AE858","v":0},{"$f":"[1]Infrastructure!AF858","v":0},{"$f":"[1]Infrastructure!AG858","v":0},{"$f":"[1]Infrastructure!AH858","v":0},0]
[0,null,null,null,null,null,{"$f":"[1]Infrastructure!G859","v":0},{"$f":"[1]Infrastructure!H859","v":0},{"$f":"[1]Infrastructure!I859","v":0},{"$f":"[1]Infrastructure!J859","v":0},{"$f":"[1]Infrastructure!K859","v":0},{"$f":"[1]Infrastructure!L859","v":0},{"$f":"[1]Infrastructure!M859","v":0},{"$f":"[1]Infrastructure!N859","v":0},{"$f":"[1]Infrastructure!O859","v":0},{"$f":"[1]Infrastructure!Q859","v":0},{"$f":"[1]Infrastructure!R859","v":0},{"$f":"[1]Infrastructure!T859","v":0},{"$f":"[1]Infrastructure!W859","v":0},{"$f":"[1]Infrastructure!W859","v":0},0,{"$f":"[1]Infrastructure!Z859","v":0},{"$f":"[1]Infrastructure!Z859","v":0},0,{"$f":"[1]Infrastructure!AB859","v":0},{"$f":"[1]Infrastructure!AB859","v":0},0,{"$f":"[1]Infrastructure!AC859","v":0},{"$f":"[1]Infrastructure!AD859","v":0},{"$f":"[1]Infrastructure!AE859","v":0},{"$f":"[1]Infrastructure!AF859","v":0},{"$f":"[1]Infrastructure!AG859","v":0},{"$f":"[1]Infrastructure!AH859","v":0},0]
[0,null,null,null,null,null,{"$f":"[1]Infrastructure!G860","v":0},{"$f":"[1]Infrastructure!H860","v":0},{"$f":"[1]Infrastructure!I860","v":0},{"$f":"[1]Infrastructure!J860","v":0},{"$f":"[1]Infrastructure!K860","v":0},{"$f":"[1]Infrastructure!L860","v":0},{"$f":"[1]Infrastructure!M860","v":0},{"$f":"[1]Infrastructure!N860","v":0},{"$f":"[1]Infrastructure!O860","v":0},{"$f":"[1]Infrastructure!Q860","v":0},{"$f":"[1]Infrastructure!R860","v":0},{"$f":"[1]Infrastructure!T860","v":0},{"$f":"[1]Infrastructure!W860","v":0},{"$f":"[1]Infrastructure!W860","v":0},0,{"$f":"[1]Infrastructure!Z860","v":0},{"$f":"[1]Infrastructure!Z860","v":0},0,{"$f":"[1]Infrastructure!AB860","v":0},{"$f":"[1]Infrastructure!AB860","v":0},0,{"$f":"[1]Infrastructure!AC860","v":0},{"$f":"[1]Infrastructure!AD860","v":0},{"$f":"[1]Infrastructure!AE860","v":0},{"$f":"[1]Infrastructure!AF860","v":0},{"$f":"[1]Infrastructure!AG860","v":0},{"$f":"[1]Infrastructure!AH860","v":0},0]
[0,null,null,null,null,null,{"$f":"[1]Infrastructure!G861","v":0},{"$f":"[1]Infrastructure!H861","v":0},{"$f":"[1]Infrastructure!I861","v":0},{"$f":"[1]Infrastructure!J861","v":0},{"$f":"[1]Infrastructure!K861","v":0},{"$f":"[1]Infrastructure!L861","v":0},{"$f":"[1]Infrastructure!M861","v":0},{"$f":"[1]Infrastructure!N861","v":0},{"$f":"[1]Infrastructure!O861","v":0},{"$f":"[1]Infrastructure!Q861","v":0},{"$f":"[1]Infrastructure!R861","v":0},{"$f":"[1]Infrastructure!T861","v":0},{"$f":"[1]Infrastructure!W861","v":0},{"$f":"[1]Infrastructure!W861","v":0},0,{"$f":"[1]Infrastructure!Z861","v":0},{"$f":"[1]Infrastructure!Z861","v":0},0,{"$f":"[1]Infrastructure!AB861","v":0},{"$f":"[1]Infrastructure!AB861","v":0},0,{"$f":"[1]Infrastructure!AC861","v":0},{"$f":"[1]Infrastructure!AD861","v":0},{"$f":"[1]Infrastructure!AE861","v":0},{"$f":"[1]Infrastructure!AF861","v":0},{"$f":"[1]Infrastructure!AG861","v":0},{"$f":"[1]Infrastructure!AH861","v":0},0]
[0,null,null,null,null,null,{"$f":"[1]Infrastructure!G862","v":0},{"$f":"[1]Infrastructure!H862","v":0},{"$f":"[1]Infrastructure!I862","v":0},{"$f":"[1]Infrastructure!J862","v":0},{"$f":"[1]Infrastructure!K862","v":0},{"$f":"[1]Infrastructure!L862","v":0},{"$f":"[1]Infrastructure!M862","v":0},{"$f":"[1]Infrastructure!N862","v":0},{"$f":"[1]Infrastructure!O862","v":0},{"$f":"[1]Infrastructure!Q862","v":0},{"$f":"[1]Infrastructure!R862","v":0},{"$f":"[1]Infrastructure!T862","v":0},{"$f":"[1]Infrastructure!W862","v":0},{"$f":"[1]Infrastructure!W862","v":0},0,{"$f":"[1]Infrastructure!Z862","v":0},{"$f":"[1]Infrastructure!Z862","v":0},0,{"$f":"[1]Infrastructure!AB862","v":0},{"$f":"[1]Infrastructure!AB862","v":0},0,{"$f":"[1]Infrastructure!AC862","v":0},{"$f":"[1]Infrastructure!AD862","v":0},{"$f":"[1]Infrastructure!AE862","v":0},{"$f":"[1]Infrastructure!AF862","v":0},{"$f":"[1]Infrastructure!AG862","v":0},{"$f":"[1]Infrastructure!AH862","v":0},0]
[0,null,null,null,null,null,{"$f":"[1]Infrastructure!G863","v":0},{"$f":"[1]Infrastructure!H863","v":0},{"$f":"[1]Infrastructure!I863","v":0},{"$f":"[1]Infrastructure!J863","v":0},{"$f":"[1]Infrastructure!K863","v":0},{"$f":"[1]Infrastructure!L863","v":0},{"$f":"[1]Infrastructure!M863","v":0},{"$f":"[1]Infrastructure!N863","v":0},{"$f":"[1]Infrastructure!O863","v":0},{"$f":"[1]Infrastructure!Q863","v":0},{"$f":"[1]Infrastructure!R863","v":0},{"$f":"[1]Infrastructure!T863","v":0},{"$f":"[1]Infrastructure!W863","v":0},{"$f":"[1]Infrastructure!W863","v":0},0,{"$f":"[1]Infrastructure!Z863","v":0},{"$f":"[1]Infrastructure!Z863","v":0},0,{"$f":"[1]Infrastructure!AB863","v":0},{"$f":"[1]Infrastructure!AB863","v":0},0,{"$f":"[1]Infrastructure!AC863","v":0},{"$f":"[1]Infrastructure!AD863","v":0},{"$f":"[1]Infrastructure!AE863","v":0},{"$f":"[1]Infrastructure!AF863","v":0},{"$f":"[1]Infrastructure!AG863","v":0},{"$f":"[1]Infrastructure!AH863","v":0},0]
[0,null,null,null,null,null,{"$f":"[1]Infrastructure!G864","v":0},{"$f":"[1]Infrastructure!H864","v":0},{"$f":"[1]Infrastructure!I864","v":0},{"$f":"[1]Infrastructure!J864","v":0},{"$f":"[1]Infrastructure!K864","v":0},{"$f":"[1]Infrastructure!L864","v":0},{"$f":"[1]Infrastructure!M864","v":0},{"$f":"[1]Infrastructure!N864","v":0},{"$f":"[1]Infrastructure!O864","v":0},{"$f":"[1]Infrastructure!Q864","v":0},{"$f":"[1]Infrastructure!R864","v":0},{"$f":"[1]Infrastructure!T864","v":0},{"$f":"[1]Infrastructure!W864","v":0},{"$f":"[1]Infrastructure!W864","v":0},0,{"$f":"[1]Infrastructure!Z864","v":0},{"$f":"[1]Infrastructure!Z864","v":0},0,{"$f":"[1]Infrastructure!AB864","v":0},{"$f":"[1]Infrastructure!AB864","v":0},0,{"$f":"[1]Infrastructure!AC864","v":0},{"$f":"[1]Infrastructure!AD864","v":0},{"$f":"[1]Infrastructure!AE864","v":0},{"$f":"[1]Infrastructure!AF864","v":0},{"$f":"[1]Infrastructure!AG864","v":0},{"$f":"[1]Infrastructure!AH864","v":0},0]
[0,null,null,null,null,null,{"$f":"[1]Infrastructure!G865","v":0},{"$f":"[1]Infrastructure!H865","v":0},{"$f":"[1]Infrastructure!I865","v":0},{"$f":"[1]Infrastructure!J865","v":0},{"$f":"[1]Infrastructure!K865","v":0},{"$f":"[1]Infrastructure!L865","v":0},{"$f":"[1]Infrastructure!M865","v":0},{"$f":"[1]Infrastructure!N865","v":0},{"$f":"[1]Infrastructure!O865","v":0},{"$f":"[1]Infrastructure!Q865","v":0},{"$f":"[1]Infrastructure!R865","v":0},{"$f":"[1]Infrastructure!T865","v":0},{"$f":"[1]Infrastructure!W865","v":0},{"$f":"[1]Infrastructure!W865","v":0},0,{"$f":"[1]Infrastructure!Z865","v":0},{"$f":"[1]Infrastructure!Z865","v":0},0,{"$f":"[1]Infrastructure!AB865","v":0},{"$f":"[1]Infrastructure!AB865","v":0},0,{"$f":"[1]Infrastructure!AC865","v":0},{"$f":"[1]Infrastructure!AD865","v":0},{"$f":"[1]Infrastructure!AE865","v":0},{"$f":"[1]Infrastructure!AF865","v":0},{"$f":"[1]Infrastructure!AG865","v":0},{"$f":"[1]Infrastructure!AH865","v":0},0]
[0,null,null,null,null,null,{"$f":"[1]Infrastructure!G866","v":0},{"$f":"[1]Infrastructure!H866","v":0},{"$f":"[1]Infrastructure!I866","v":0},{"$f":"[1]Infrastructure!J866","v":0},{"$f":"[1]Infrastructure!K866","v":0},{"$f":"[1]Infrastructure!L866","v":0},{"$f":"[1]Infrastructure!M866","v":0},{"$f":"[1]Infrastructure!N866","v":0},{"$f":"[1]Infrastructure!O866","v":0},{"$f":"[1]Infrastructure!Q866","v":0},{"$f":"[1]Infrastructure!R866","v":0},{"$f":"[1]Infrastructure!T866","v":0},{"$f":"[1]Infrastructure!W866","v":0},{"$f":"[1]Infrastructure!W866","v":0},0,{"$f":"[1]Infrastructure!Z866","v":0},{"$f":"[1]Infrastructure!Z866","v":0},0,{"$f":"[1]Infrastructure!AB866","v":0},{"$f":"[1]Infrastructure!AB866","v":0},0,{"$f":"[1]Infrastructure!AC866","v":0},{"$f":"[1]Infrastructure!AD866","v":0},{"$f":"[1]Infrastructure!AE866","v":0},{"$f":"[1]Infrastructure!AF866","v":0},{"$f":"[1]Infrastructure!AG866","v":0},{"$f":"[1]Infrastructure!AH866","v":0},0]
[0,null,null,null,null,null,{"$f":"[1]Infrastructure!G867","v":0},{"$f":"[1]Infrastructure!H867","v":0},{"$f":"[1]Infrastructure!I867","v":0},{"$f":"[1]Infrastructure!J867","v":0},{"$f":"[1]Infrastructure!K867","v":0},{"$f":"[1]Infrastructure!L867","v":0},{"$f":"[1]Infrastructure!M867","v":0},{"$f":"[1]Infrastructure!N867","v":0},{"$f":"[1]Infrastructure!O867","v":0},{"$f":"[1]Infrastructure!Q867","v":0},{"$f":"[1]Infrastructure!R867","v":0},{"$f":"[1]Infrastructure!T867","v":0},{"$f":"[1]Infrastructure!W867","v":0},{"$f":"[1]Infrastructure!W867","v":0},0,{"$f":"[1]Infrastructure!Z867","v":0},{"$f":"[1]Infrastructure!Z867","v":0},0,{"$f":"[1]Infrastructure!AB867","v":0},{"$f":"[1]Infrastructure!AB867","v":0},0,{"$f":"[1]Infrastructure!AC867","v":0},{"$f":"[1]Infrastructure!AD867","v":0},{"$f":"[1]Infrastructure!AE867","v":0},{"$f":"[1]Infrastructure!AF867","v":0},{"$f":"[1]Infrastructure!AG867","v":0},{"$f":"[1]Infrastructure!AH867","v":0},0]
[0,null,null,null,null,null,{"$f":"[1]Infrastructure!G868","v":0},{"$f":"[1]Infrastructure!H868","v":0},{"$f":"[1]Infrastructure!I868","v":0},{"$f":"[1]Infrastructure!J868","v":0},{"$f":"[1]Infrastructure!K868","v":0},{"$f":"[1]Infrastructure!L868","v":0},{"$f":"[1]Infrastructure!M868","v":0},{"$f":"[1]Infrastructure!N868","v":0},{"$f":"[1]Infrastructure!O868","v":0},{"$f":"[1]Infrastructure!Q868","v":0},{"$f":"[1]Infrastructure!R868","v":0},{"$f":"[1]Infrastructure!T868","v":0},{"$f":"[1]Infrastructure!W868","v":0},{"$f":"[1]Infrastructure!W868","v":0},0,{"$f":"[1]Infrastructure!Z868","v":0},{"$f":"[1]Infrastructure!Z868","v":0},0,{"$f":"[1]Infrastructure!AB868","v":0},{"$f":"[1]Infrastructure!AB868","v":0},0,{"$f":"[1]Infrastructure!AC868","v":0},{"$f":"[1]Infrastructure!AD868","v":0},{"$f":"[1]Infrastructure!AE868","v":0},{"$f":"[1]Infrastructure!AF868","v":0},{"$f":"[1]Infrastructure!AG868","v":0},{"$f":"[1]Infrastructure!AH868","v":0},0]
[0,null,null,null,null,null,{"$f":"[1]Infrastructure!G869","v":0},{"$f":"[1]Infrastructure!H869","v":0},{"$f":"[1]Infrastructure!I869","v":0},{"$f":"[1]Infrastructure!J869","v":0},{"$f":"[1]Infrastructure!K869","v":0},{"$f":"[1]Infrastructure!L869","v":0},{"$f":"[1]Infrastructure!M869","v":0},{"$f":"[1]Infrastructure!N869","v":0},{"$f":"[1]Infrastructure!O869","v":0},{"$f":"[1]Infrastructure!Q869","v":0},{"$f":"[1]Infrastructure!R869","v":0},{"$f":"[1]Infrastructure!T869","v":0},{"$f":"[1]Infrastructure!W869","v":0},{"$f":"[1]Infrastructure!W869","v":0},0,{"$f":"[1]Infrastructure!Z869","v":0},{"$f":"[1]Infrastructure!Z869","v":0},0,{"$f":"[1]Infrastructure!AB869","v":0},{"$f":"[1]Infrastructure!AB869","v":0},0,{"$f":"[1]Infrastructure!AC869","v":0},{"$f":"[1]Infrastructure!AD869","v":0},{"$f":"[1]Infrastructure!AE869","v":0},{"$f":"[1]Infrastructure!AF869","v":0},{"$f":"[1]Infrastructure!AG869","v":0},{"$f":"[1]Infrastructure!AH869","v":0},0]
[0,null,null,null,null,null,{"$f":"[1]Infrastructure!G870","v":0},{"$f":"[1]Infrastructure!H870","v":0},{"$f":"[1]Infrastructure!I870","v":0},{"$f":"[1]Infrastructure!J870","v":0},{"$f":"[1]Infrastructure!K870","v":0},{"$f":"[1]Infrastructure!L870","v":0},{"$f":"[1]Infrastructure!M870","v":0},{"$f":"[1]Infrastructure!N870","v":0},{"$f":"[1]Infrastructure!O870","v":0},{"$f":"[1]Infrastructure!Q870","v":0},{"$f":"[1]Infrastructure!R870","v":0},{"$f":"[1]Infrastructure!T870","v":0},{"$f":"[1]Infrastructure!W870","v":0},{"$f":"[1]Infrastructure!W870","v":0},0,{"$f":"[1]Infrastructure!Z870","v":0},{"$f":"[1]Infrastructure!Z870","v":0},0,{"$f":"[1]Infrastructure!AB870","v":0},{"$f":"[1]Infrastructure!AB870","v":0},0,{"$f":"[1]Infrastructure!AC870","v":0},{"$f":"[1]Infrastructure!AD870","v":0},{"$f":"[1]Infrastructure!AE870","v":0},{"$f":"[1]Infrastructure!AF870","v":0},{"$f":"[1]Infrastructure!AG870","v":0},{"$f":"[1]Infrastructure!AH870","v":0},0]
[0,null,null,null,null,null,{"$f":"[1]Infrastructure!G871","v":0},{"$f":"[1]Infrastructure!H871","v":0},{"$f":"[1]Infrastructure!I871","v":0},{"$f":"[1]Infrastructure!J871","v":0},{"$f":"[1]Infrastructure!K871","v":0},{"$f":"[1]Infrastructure!L871","v":0},{"$f":"[1]Infrastructure!M871","v":0},{"$f":"[1]Infrastructure!N871","v":0},{"$f":"[1]Infrastructure!O871","v":0},{"$f":"[1]Infrastructure!Q871","v":0},{"$f":"[1]Infrastructure!R871","v":0},{"$f":"[1]Infrastructure!T871","v":0},{"$f":"[1]Infrastructure!W871","v":0},{"$f":"[1]Infrastructure!W871","v":0},0,{"$f":"[1]Infrastructure!Z871","v":0},{"$f":"[1]Infrastructure!Z871","v":0},0,{"$f":"[1]Infrastructure!AB871","v":0},{"$f":"[1]Infrastructure!AB871","v":0},0,{"$f":"[1]Infrastructure!AC871","v":0},{"$f":"[1]Infrastructure!AD871","v":0},{"$f":"[1]Infrastructure!AE871","v":0},{"$f":"[1]Infrastructure!AF871","v":0},{"$f":"[1]Infrastructure!AG871","v":0},{"$f":"[1]Infrastructure!AH871","v":0},0]
[0,null,null,null,null,null,{"$f":"[1]Infrastructure!G872","v":0},{"$f":"[1]Infrastructure!H872","v":0},{"$f":"[1]Infrastructure!I872","v":0},{"$f":"[1]Infrastructure!J872","v":0},{"$f":"[1]Infrastructure!K872","v":0},{"$f":"[1]Infrastructure!L872","v":0},{"$f":"[1]Infrastructure!M872","v":0},{"$f":"[1]Infrastructure!N872","v":0},{"$f":"[1]Infrastructure!O872","v":0},{"$f":"[1]Infrastructure!Q872","v":0},{"$f":"[1]Infrastructure!R872","v":0},{"$f":"[1]Infrastructure!T872","v":0},{"$f":"[1]Infrastructure!W872","v":0},{"$f":"[1]Infrastructure!W872","v":0},0,{"$f":"[1]Infrastructure!Z872","v":0},{"$f":"[1]Infrastructure!Z872","v":0},0,{"$f":"[1]Infrastructure!AB872","v":0},{"$f":"[1]Infrastructure!AB872","v":0},0,{"$f":"[1]Infrastructure!AC872","v":0},{"$f":"[1]Infrastructure!AD872","v":0},{"$f":"[1]Infrastructure!AE872","v":0},{"$f":"[1]Infrastructure!AF872","v":0},{"$f":"[1]Infrastructure!AG872","v":0},{"$f":"[1]Infrastructure!AH872","v":0},0]
[0,null,null,null,null,null,{"$f":"[1]Infrastructure!G873","v":0},{"$f":"[1]Infrastructure!H873","v":0},{"$f":"[1]Infrastructure!I873","v":0},{"$f":"[1]Infrastructure!J873","v":0},{"$f":"[1]Infrastructure!K873","v":0},{"$f":"[1]Infrastructure!L873","v":0},{"$f":"[1]Infrastructure!M873","v":0},{"$f":"[1]Infrastructure!N873","v":0},{"$f":"[1]Infrastructure!O873","v":0},{"$f":"[1]Infrastructure!Q873","v":0},{"$f":"[1]Infrastructure!R873","v":0},{"$f":"[1]Infrastructure!T873","v":0},{"$f":"[1]Infrastructure!W873","v":0},{"$f":"[1]Infrastructure!W873","v":0},0,{"$f":"[1]Infrastructure!Z873","v":0},{"$f":"[1]Infrastructure!Z873","v":0},0,{"$f":"[1]Infrastructure!AB873","v":0},{"$f":"[1]Infrastructure!AB873","v":0},0,{"$f":"[1]Infrastructure!AC873","v":0},{"$f":"[1]Infrastructure!AD873","v":0},{"$f":"[1]Infrastructure!AE873","v":0},{"$f":"[1]Infrastructure!AF873","v":0},{"$f":"[1]Infrastructure!AG873","v":0},{"$f":"[1]Infrastructure!AH873","v":0},0]
[0,null,null,null,null,null,{"$f":"[1]Infrastructure!G874","v":0},{"$f":"[1]Infrastructure!H874","v":0},{"$f":"[1]Infrastructure!I874","v":0},{"$f":"[1]Infrastructure!J874","v":0},{"$f":"[1]Infrastructure!K874","v":0},{"$f":"[1]Infrastructure!L874","v":0},{"$f":"[1]Infrastructure!M874","v":0},{"$f":"[1]Infrastructure!N874","v":0},{"$f":"[1]Infrastructure!O874","v":0},{"$f":"[1]Infrastructure!Q874","v":0},{"$f":"[1]Infrastructure!R874","v":0},{"$f":"[1]Infrastructure!T874","v":0},{"$f":"[1]Infrastructure!W874","v":0},{"$f":"[1]Infrastructure!W874","v":0},0,{"$f":"[1]Infrastructure!Z874","v":0},{"$f":"[1]Infrastructure!Z874","v":0},0,{"$f":"[1]Infrastructure!AB874","v":0},{"$f":"[1]Infrastructure!AB874","v":0},0,{"$f":"[1]Infrastructure!AC874","v":0},{"$f":"[1]Infrastructure!AD874","v":0},{"$f":"[1]Infrastructure!AE874","v":0},{"$f":"[1]Infrastructure!AF874","v":0},{"$f":"[1]Infrastructure!AG874","v":0},{"$f":"[1]Infrastructure!AH874","v":0},0]
[0,null,null,null,null,null,{"$f":"[1]Infrastructure!G875","v":0},{"$f":"[1]Infrastructure!H875","v":0},{"$f":"[1]Infrastructure!I875","v":0},{"$f":"[1]Infrastructure!J875","v":0},{"$f":"[1]Infrastructure!K875","v":0},{"$f":"[1]Infrastructure!L875","v":0},{"$f":"[1]Infrastructure!M875","v":0},{"$f":"[1]Infrastructure!N875","v":0},{"$f":"[1]Infrastructure!O875","v":0},{"$f":"[1]Infrastructure!Q875","v":0},{"$f":"[1]Infrastructure!R875","v":0},{"$f":"[1]Infrastructure!T875","v":0},{"$f":"[1]Infrastructure!W875","v":0},{"$f":"[1]Infrastructure!W875","v":0},0,{"$f":"[1]Infrastructure!Z875","v":0},{"$f":"[1]Infrastructure!Z875","v":0},0,{"$f":"[1]Infrastructure!AB875","v":0},{"$f":"[1]Infrastructure!AB875","v":0},0,{"$f":"[1]Infrastructure!AC875","v":0},{"$f":"[1]Infrastructure!AD875","v":0},{"$f":"[1]Infrastructure!AE875","v":0},{"$f":"[1]Infrastructure!AF875","v":0},{"$f":"[1]Infrastructure!AG875","v":0},{"$f":"[1]Infrastructure!AH875","v":0},0]
[0,null,null,null,null,null,{"$f":"[1]Infrastructure!G876","v":0},{"$f":"[1]Infrastructure!H876","v":0},{"$f":"[1]Infrastructure!I876","v":0},{"$f":"[1]Infrastructure!J876","v":0},{"$f":"[1]Infrastructure!K876","v":0},{"$f":"[1]Infrastructure!L876","v":0},{"$f":"[1]Infrastructure!M876","v":0},{"$f":"[1]Infrastructure!N876","v":0},{"$f":"[1]Infrastructure!O876","v":0},{"$f":"[1]Infrastructure!Q876","v":0},{"$f":"[1]Infrastructure!R876","v":0},{"$f":"[1]Infrastructure!T876","v":0},{"$f":"[1]Infrastructure!W876","v":0},{"$f":"[1]Infrastructure!W876","v":0},0,{"$f":"[1]Infrastructure!Z876","v":0},{"$f":"[1]Infrastructure!Z876","v":0},0,{"$f":"[1]Infrastructure!AB876","v":0},{"$f":"[1]Infrastructure!AB876","v":0},0,{"$f":"[1]Infrastructure!AC876","v":0},{"$f":"[1]Infrastructure!AD876","v":0},{"$f":"[1]Infrastructure!AE876","v":0},{"$f":"[1]Infrastructure!AF876","v":0},{"$f":"[1]Infrastructure!AG876","v":0},{"$f":"[1]Infrastructure!AH876","v":0},0]
[0,null,null,null,null,null,{"$f":"[1]Infrastructure!G877","v":0},{"$f":"[1]Infrastructure!H877","v":0},{"$f":"[1]Infrastructure!I877","v":0},{"$f":"[1]Infrastructure!J877","v":0},{"$f":"[1]Infrastructure!K877","v":0},{"$f":"[1]Infrastructure!L877","v":0},{"$f":"[1]Infrastructure!M877","v":0},{"$f":"[1]Infrastructure!N877","v":0},{"$f":"[1]Infrastructure!O877","v":0},{"$f":"[1]Infrastructure!Q877","v":0},{"$f":"[1]Infrastructure!R877","v":0},{"$f":"[1]Infrastructure!T877","v":0},{"$f":"[1]Infrastructure!W877","v":0},{"$f":"[1]Infrastructure!W877","v":0},0,{"$f":"[1]Infrastructure!Z877","v":0},{"$f":"[1]Infrastructure!Z877","v":0},0,{"$f":"[1]Infrastructure!AB877","v":0},{"$f":"[1]Infrastructure!AB877","v":0},0,{"$f":"[1]Infrastructure!AC877","v":0},{"$f":"[1]Infrastructure!AD877","v":0},{"$f":"[1]Infrastructure!AE877","v":0},{"$f":"[1]Infrastructure!AF877","v":0},{"$f":"[1]Infrastructure!AG877","v":0},{"$f":"[1]Infrastructure!AH877","v":0},0]
[0,null,null,null,null,null,{"$f":"[1]Infrastructure!G878","v":0},{"$f":"[1]Infrastructure!H878","v":0},{"$f":"[1]Infrastructure!I878","v":0},{"$f":"[1]Infrastructure!J878","v":0},{"$f":"[1]Infrastructure!K878","v":0},{"$f":"[1]Infrastructure!L878","v":0},{"$f":"[1]Infrastructure!M878","v":0},{"$f":"[1]Infrastructure!N878","v":0},{"$f":"[1]Infrastructure!O878","v":0},{"$f":"[1]Infrastructure!Q878","v":0},{"$f":"[1]Infrastructure!R878","v":0},{"$f":"[1]Infrastructure!T878","v":0},{"$f":"[1]Infrastructure!W878","v":0},{"$f":"[1]Infrastructure!W878","v":0},0,{"$f":"[1]Infrastructure!Z878","v":0},{"$f":"[1]Infrastructure!Z878","v":0},0,{"$f":"[1]Infrastructure!AB878","v":0},{"$f":"[1]Infrastructure!AB878","v":0},0,{"$f":"[1]Infrastructure!AC878","v":0},{"$f":"[1]Infrastructure!AD878","v":0},{"$f":"[1]Infrastructure!AE878","v":0},{"$f":"[1]Infrastructure!AF878","v":0},{"$f":"[1]Infrastructure!AG878","v":0},{"$f":"[1]Infrastructure!AH878","v":0},0]
[0,null,null,null,null,null,{"$f":"[1]Infrastructure!G879","v":0},{"$f":"[1]Infrastructure!H879","v":0},{"$f":"[1]Infrastructure!I879","v":0},{"$f":"[1]Infrastructure!J879","v":0},{"$f":"[1]Infrastructure!K879","v":0},{"$f":"[1]Infrastructure!L879","v":0},{"$f":"[1]Infrastructure!M879","v":0},{"$f":"[1]Infrastructure!N879","v":0},{"$f":"[1]Infrastructure!O879","v":0},{"$f":"[1]Infrastructure!Q879","v":0},{"$f":"[1]Infrastructure!R879","v":0},{"$f":"[1]Infrastructure!T879","v":0},{"$f":"[1]Infrastructure!W879","v":0},{"$f":"[1]Infrastructure!W879","v":0},0,{"$f":"[1]Infrastructure!Z879","v":0},{"$f":"[1]Infrastructure!Z879","v":0},0,{"$f":"[1]Infrastructure!AB879","v":0},{"$f":"[1]Infrastructure!AB879","v":0},0,{"$f":"[1]Infrastructure!AC879","v":0},{"$f":"[1]Infrastructure!AD879","v":0},{"$f":"[1]Infrastructure!AE879","v":0},{"$f":"[1]Infrastructure!AF879","v":0},{"$f":"[1]Infrastructure!AG879","v":0},{"$f":"[1]Infrastructure!AH879","v":0},0]
[0,null,null,null,null,null,{"$f":"[1]Infrastructure!G880","v":0},{"$f":"[1]Infrastructure!H880","v":0},{"$f":"[1]Infrastructure!I880","v":0},{"$f":"[1]Infrastructure!J880","v":0},{"$f":"[1]Infrastructure!K880","v":0},{"$f":"[1]Infrastructure!L880","v":0},{"$f":"[1]Infrastructure!M880","v":0},{"$f":"[1]Infrastructure!N880","v":0},{"$f":"[1]Infrastructure!O880","v":0},{"$f":"[1]Infrastructure!Q880","v":0},{"$f":"[1]Infrastructure!R880","v":0},{"$f":"[1]Infrastructure!T880","v":0},{"$f":"[1]Infrastructure!W880","v":0},{"$f":"[1]Infrastructure!W880","v":0},0,{"$f":"[1]Infrastructure!Z880","v":0},{"$f":"[1]Infrastructure!Z880","v":0},0,{"$f":"[1]Infrastructure!AB880","v":0},{"$f":"[1]Infrastructure!AB880","v":0},0,{"$f":"[1]Infrastructure!AC880","v":0},{"$f":"[1]Infrastructure!AD880","v":0},{"$f":"[1]Infrastructure!AE880","v":0},{"$f":"[1]Infrastructure!AF880","v":0},{"$f":"[1]Infrastructure!AG880","v":0},{"$f":"[1]Infrastructure!AH880","v":0},0]
[0,null,null,null,null,null,{"$f":"[1]Infrastructure!G881","v":0},{"$f":"[1]Infrastructure!H881","v":0},{"$f":"[1]Infrastructure!I881","v":0},{"$f":"[1]Infrastructure!J881","v":0},{"$f":"[1]Infrastructure!K881","v":0},{"$f":"[1]Infrastructure!L881","v":0},{"$f":"[1]Infrastructure!M881","v":0},{"$f":"[1]Infrastructure!N881","v":0},{"$f":"[1]Infrastructure!O881","v":0},{"$f":"[1]Infrastructure!Q881","v":0},{"$f":"[1]Infrastructure!R881","v":0},{"$f":"[1]Infrastructure!T881","v":0},{"$f":"[1]Infrastructure!W881","v":0},{"$f":"[1]Infrastructure!W881","v":0},0,{"$f":"[1]Infrastructure!Z881","v":0},{"$f":"[1]Infrastructure!Z881","v":0},0,{"$f":"[1]Infrastructure!AB881","v":0},{"$f":"[1]Infrastructure!AB881","v":0},0,{"$f":"[1]Infrastructure!AC881","v":0},{"$f":"[1]Infrastructure!AD881","v":0},{"$f":"[1]Infrastructure!AE881","v":0},{"$f":"[1]Infrastructure!AF881","v":0},{"$f":"[1]Infrastructure!AG881","v":0},{"$f":"[1]Infrastructure!AH881","v":0},0]
[0,null,null,null,null,null,{"$f":"[1]Infrastructure!G882","v":0},{"$f":"[1]Infrastructure!H882","v":0},{"$f":"[1]Infrastructure!I882","v":0},{"$f":"[1]Infrastructure!J882","v":0},{"$f":"[1]Infrastructure!K882","v":0},{"$f":"[1]Infrastructure!L882","v":0},{"$f":"[1]Infrastructure!M882","v":0},{"$f":"[1]Infrastructure!N882","v":0},{"$f":"[1]Infrastructure!O882","v":0},{"$f":"[1]Infrastructure!Q882","v":0},{"$f":"[1]Infrastructure!R882","v":0},{"$f":"[1]Infrastructure!T882","v":0},{"$f":"[1]Infrastructure!W882","v":0},{"$f":"[1]Infrastructure!W882","v":0},0,{"$f":"[1]Infrastructure!Z882","v":0},{"$f":"[1]Infrastructure!Z882","v":0},0,{"$f":"[1]Infrastructure!AB882","v":0},{"$f":"[1]Infrastructure!AB882","v":0},0,{"$f":"[1]Infrastructure!AC882","v":0},{"$f":"[1]Infrastructure!AD882","v":0},{"$f":"[1]Infrastructure!AE882","v":0},{"$f":"[1]Infrastructure!AF882","v":0},{"$f":"[1]Infrastructure!AG882","v":0},{"$f":"[1]Infrastructure!AH882","v":0},0]
[0,null,null,null,null,null,{"$f":"[1]Infrastructure!G883","v":0},{"$f":"[1]Infrastructure!H883","v":0},{"$f":"[1]Infrastructure!I883","v":0},{"$f":"[1]Infrastructure!J883","v":0},{"$f":"[1]Infrastructure!K883","v":0},{"$f":"[1]Infrastructure!L883","v":0},{"$f":"[1]Infrastructure!M883","v":0},{"$f":"[1]Infrastructure!N883","v":0},{"$f":"[1]Infrastructure!O883","v":0},{"$f":"[1]Infrastructure!Q883","v":0},{"$f":"[1]Infrastructure!R883","v":0},{"$f":"[1]Infrastructure!T883","v":0},{"$f":"[1]Infrastructure!W883","v":0},{"$f":"[1]Infrastructure!W883","v":0},0,{"$f":"[1]Infrastructure!Z883","v":0},{"$f":"[1]Infrastructure!Z883","v":0},0,{"$f":"[1]Infrastructure!AB883","v":0},{"$f":"[1]Infrastructure!AB883","v":0},0,{"$f":"[1]Infrastructure!AC883","v":0},{"$f":"[1]Infrastructure!AD883","v":0},{"$f":"[1]Infrastructure!AE883","v":0},{"$f":"[1]Infrastructure!AF883","v":0},{"$f":"[1]Infrastructure!AG883","v":0},{"$f":"[1]Infrastructure!AH883","v":0},0]
[0,null,null,null,null,null,{"$f":"[1]Infrastructure!G884","v":0},{"$f":"[1]Infrastructure!H884","v":0},{"$f":"[1]Infrastructure!I884","v":0},{"$f":"[1]Infrastructure!J884","v":0},{"$f":"[1]Infrastructure!K884","v":0},{"$f":"[1]Infrastructure!L884","v":0},{"$f":"[1]Infrastructure!M884","v":0},{"$f":"[1]Infrastructure!N884","v":0},{"$f":"[1]Infrastructure!O884","v":0},{"$f":"[1]Infrastructure!Q884","v":0},{"$f":"[1]Infrastructure!R884","v":0},{"$f":"[1]Infrastructure!T884","v":0},{"$f":"[1]Infrastructure!W884","v":0},{"$f":"[1]Infrastructure!W884","v":0},0,{"$f":"[1]Infrastructure!Z884","v":0},{"$f":"[1]Infrastructure!Z884","v":0},0,{"$f":"[1]Infrastructure!AB884","v":0},{"$f":"[1]Infrastructure!AB884","v":0},0,{"$f":"[1]Infrastructure!AC884","v":0},{"$f":"[1]Infrastructure!AD884","v":0},{"$f":"[1]Infrastructure!AE884","v":0},{"$f":"[1]Infrastructure!AF884","v":0},{"$f":"[1]Infrastructure!AG884","v":0},{"$f":"[1]Infrastructure!AH884","v":0},0]
[0,null,null,null,null,null,{"$f":"[1]Infrastructure!G885","v":0},{"$f":"[1]Infrastructure!H885","v":0},{"$f":"[1]Infrastructure!I885","v":0},{"$f":"[1]Infrastructure!J885","v":0},{"$f":"[1]Infrastructure!K885","v":0},{"$f":"[1]Infrastructure!L885","v":0},{"$f":"[1]Infrastructure!M885","v":0},{"$f":"[1]Infrastructure!N885","v":0},{"$f":"[1]Infrastructure!O885","v":0},{"$f":"[1]Infrastructure!Q885","v":0},{"$f":"[1]Infrastructure!R885","v":0},{"$f":"[1]Infrastructure!T885","v":0},{"$f":"[1]Infrastructure!W885","v":0},{"$f":"[1]Infrastructure!W885","v":0},0,{"$f":"[1]Infrastructure!Z885","v":0},{"$f":"[1]Infrastructure!Z885","v":0},0,{"$f":"[1]Infrastructure!AB885","v":0},{"$f":"[1]Infrastructure!AB885","v":0},0,{"$f":"[1]Infrastructure!AC885","v":0},{"$f":"[1]Infrastructure!AD885","v":0},{"$f":"[1]Infrastructure!AE885","v":0},{"$f":"[1]Infrastructure!AF885","v":0},{"$f":"[1]Infrastructure!AG885","v":0},{"$f":"[1]Infrastructure!AH885","v":0},0]
[0,null,null,null,null,null,{"$f":"[1]Infrastructure!G886","v":0},{"$f":"[1]Infrastructure!H886","v":0},{"$f":"[1]Infrastructure!I886","v":0},{"$f":"[1]Infrastructure!J886","v":0},{"$f":"[1]Infrastructure!K886","v":0},{"$f":"[1]Infrastructure!L886","v":0},{"$f":"[1]Infrastructure!M886","v":0},{"$f":"[1]Infrastructure!N886","v":0},{"$f":"[1]Infrastructure!O886","v":0},{"$f":"[1]Infrastructure!Q886","v":0},{"$f":"[1]Infrastructure!R886","v":0},{"$f":"[1]Infrastructure!T886","v":0},{"$f":"[1]Infrastructure!W886","v":0},{"$f":"[1]Infrastructure!W886","v":0},0,{"$f":"[1]Infrastructure!Z886","v":0},{"$f":"[1]Infrastructure!Z886","v":0},0,{"$f":"[1]Infrastructure!AB886","v":0},{"$f":"[1]Infrastructure!AB886","v":0},0,{"$f":"[1]Infrastructure!AC886","v":0},{"$f":"[1]Infrastructure!AD886","v":0},{"$f":"[1]Infrastructure!AE886","v":0},{"$f":"[1]Infrastructure!AF886","v":0},{"$f":"[1]Infrastructure!AG886","v":0},{"$f":"[1]Infrastructure!AH886","v":0},0]
[0,null,null,null,null,null,{"$f":"[1]Infrastructure!G887","v":0},{"$f":"[1]Infrastructure!H887","v":0},{"$f":"[1]Infrastructure!I887","v":0},{"$f":"[1]Infrastructure!J887","v":0},{"$f":"[1]Infrastructure!K887","v":0},{"$f":"[1]Infrastructure!L887","v":0},{"$f":"[1]Infrastructure!M887","v":0},{"$f":"[1]Infrastructure!N887","v":0},{"$f":"[1]Infrastructure!O887","v":0},{"$f":"[1]Infrastructure!Q887","v":0},{"$f":"[1]Infrastructure!R887","v":0},{"$f":"[1]Infrastructure!T887","v":0},{"$f":"[1]Infrastructure!W887","v":0},{"$f":"[1]Infrastructure!W887","v":0},0,{"$f":"[1]Infrastructure!Z887","v":0},{"$f":"[1]Infrastructure!Z887","v":0},0,{"$f":"[1]Infrastructure!AB887","v":0},{"$f":"[1]Infrastructure!AB887","v":0},0,{"$f":"[1]Infrastructure!AC887","v":0},{"$f":"[1]Infrastructure!AD887","v":0},{"$f":"[1]Infrastructure!AE887","v":0},{"$f":"[1]Infrastructure!AF887","v":0},{"$f":"[1]Infrastructure!AG887","v":0},{"$f":"[1]Infrastructure!AH887","v":0},0]
[0,null,null,null,null,null,{"$f":"[1]Infrastructure!G888","v":0},{"$f":"[1]Infrastructure!H888","v":0},{"$f":"[1]Infrastructure!I888","v":0},{"$f":"[1]Infrastructure!J888","v":0},{"$f":"[1]Infrastructure!K888","v":0},{"$f":"[1]Infrastructure!L888","v":0},{"$f":"[1]Infrastructure!M888","v":0},{"$f":"[1]Infrastructure!N888","v":0},{"$f":"[1]Infrastructure!O888","v":0},{"$f":"[1]Infrastructure!Q888","v":0},{"$f":"[1]Infrastructure!R888","v":0},{"$f":"[1]Infrastructure!T888","v":0},{"$f":"[1]Infrastructure!W888","v":0},{"$f":"[1]Infrastructure!W888","v":0},0,{"$f":"[1]Infrastructure!Z888","v":0},{"$f":"[1]Infrastructure!Z888","v":0},0,{"$f":"[1]Infrastructure!AB888","v":0},{"$f":"[1]Infrastructure!AB888","v":0},0,{"$f":"[1]Infrastructure!AC888","v":0},{"$f":"[1]Infrastructure!AD888","v":0},{"$f":"[1]Infrastructure!AE888","v":0},{"$f":"[1]Infrastructure!AF888","v":0},{"$f":"[1]Infrastructure!AG888","v":0},{"$f":"[1]Infrastructure!AH888","v":0},0]
[0,null,null,null,null,null,{"$f":"[1]Infrastructure!G889","v":0},{"$f":"[1]Infrastructure!H889","v":0},{"$f":"[1]Infrastructure!I889","v":0},{"$f":"[1]Infrastructure!J889","v":0},{"$f":"[1]Infrastructure!K889","v":0},{"$f":"[1]Infrastructure!L889","v":0},{"$f":"[1]Infrastructure!M889","v":0},{"$f":"[1]Infrastructure!N889","v":0},{"$f":"[1]Infrastructure!O889","v":0},{"$f":"[1]Infrastructure!Q889","v":0},{"$f":"[1]Infrastructure!R889","v":0},{"$f":"[1]Infrastructure!T889","v":0},{"$f":"[1]Infrastructure!W889","v":0},{"$f":"[1]Infrastructure!W889","v":0},0,{"$f":"[1]Infrastructure!Z889","v":0},{"$f":"[1]Infrastructure!Z889","v":0},0,{"$f":"[1]Infrastructure!AB889","v":0},{"$f":"[1]Infrastructure!AB889","v":0},0,{"$f":"[1]Infrastructure!AC889","v":0},{"$f":"[1]Infrastructure!AD889","v":0},{"$f":"[1]Infrastructure!AE889","v":0},{"$f":"[1]Infrastructure!AF889","v":0},{"$f":"[1]Infrastructure!AG889","v":0},{"$f":"[1]Infrastructure!AH889","v":0},0]
[0,null,null,null,null,null,{"$f":"[1]Infrastructure!G890","v":0},{"$f":"[1]Infrastructure!H890","v":0},{"$f":"[1]Infrastructure!I890","v":0},{"$f":"[1]Infrastructure!J890","v":0},{"$f":"[1]Infrastructure!K890","v":0},{"$f":"[1]Infrastructure!L890","v":0},{"$f":"[1]Infrastructure!M890","v":0},{"$f":"[1]Infrastructure!N890","v":0},{"$f":"[1]Infrastructure!O890","v":0},{"$f":"[1]Infrastructure!Q890","v":0},{"$f":"[1]Infrastructure!R890","v":0},{"$f":"[1]Infrastructure!T890","v":0},{"$f":"[1]Infrastructure!W890","v":0},{"$f":"[1]Infrastructure!W890","v":0},0,{"$f":"[1]Infrastructure!Z890","v":0},{"$f":"[1]Infrastructure!Z890","v":0},0,{"$f":"[1]Infrastructure!AB890","v":0},{"$f":"[1]Infrastructure!AB890","v":0},0,{"$f":"[1]Infrastructure!AC890","v":0},{"$f":"[1]Infrastructure!AD890","v":0},{"$f":"[1]Infrastructure!AE890","v":0},{"$f":"[1]Infrastructure!AF890","v":0},{"$f":"[1]Infrastructure!AG890","v":0},{"$f":"[1]Infrastructure!AH890","v":0},0]
[0,null,null,null,null,null,{"$f":"[1]Infrastructure!G891","v":0},{"$f":"[1]Infrastructure!H891","v":0},{"$f":"[1]Infrastructure!I891","v":0},{"$f":"[1]Infrastructure!J891","v":0},{"$f":"[1]Infrastructure!K891","v":0},{"$f":"[1]Infrastructure!L891","v":0},{"$f":"[1]Infrastructure!M891","v":0},{"$f":"[1]Infrastructure!N891","v":0},{"$f":"[1]Infrastructure!O891","v":0},{"$f":"[1]Infrastructure!Q891","v":0},{"$f":"[1]Infrastructure!R891","v":0},{"$f":"[1]Infrastructure!T891","v":0},{"$f":"[1]Infrastructure!W891","v":0},{"$f":"[1]Infrastructure!W891","v":0},0,{"$f":"[1]Infrastructure!Z891","v":0},{"$f":"[1]Infrastructure!Z891","v":0},0,{"$f":"[1]Infrastructure!AB891","v":0},{"$f":"[1]Infrastructure!AB891","v":0},0,{"$f":"[1]Infrastructure!AC891","v":0},{"$f":"[1]Infrastructure!AD891","v":0},{"$f":"[1]Infrastructure!AE891","v":0},{"$f":"[1]Infrastructure!AF891","v":0},{"$f":"[1]Infrastructure!AG891","v":0},{"$f":"[1]Infrastructure!AH891","v":0},0]
[0,null,null,null,null,null,{"$f":"[1]Infrastructure!G892","v":0},{"$f":"[1]Infrastructure!H892","v":0},{"$f":"[1]Infrastructure!I892","v":0},{"$f":"[1]Infrastructure!J892","v":0},{"$f":"[1]Infrastructure!K892","v":0},{"$f":"[1]Infrastructure!L892","v":0},{"$f":"[1]Infrastructure!M892","v":0},{"$f":"[1]Infrastructure!N892","v":0},{"$f":"[1]Infrastructure!O892","v":0},{"$f":"[1]Infrastructure!Q892","v":0},{"$f":"[1]Infrastructure!R892","v":0},{"$f":"[1]Infrastructure!T892","v":0},{"$f":"[1]Infrastructure!W892","v":0},{"$f":"[1]Infrastructure!W892","v":0},0,{"$f":"[1]Infrastructure!Z892","v":0},{"$f":"[1]Infrastructure!Z892","v":0},0,{"$f":"[1]Infrastructure!AB892","v":0},{"$f":"[1]Infrastructure!AB892","v":0},0,{"$f":"[1]Infrastructure!AC892","v":0},{"$f":"[1]Infrastructure!AD892","v":0},{"$f":"[1]Infrastructure!AE892","v":0},{"$f":"[1]Infrastructure!AF892","v":0},{"$f":"[1]Infrastructure!AG892","v":0},{"$f":"[1]Infrastructure!AH892","v":0},0]
[0,null,null,null,null,null,{"$f":"[1]Infrastructure!G893","v":0},{"$f":"[1]Infrastructure!H893","v":0},{"$f":"[1]Infrastructure!I893","v":0},{"$f":"[1]Infrastructure!J893","v":0},{"$f":"[1]Infrastructure!K893","v":0},{"$f":"[1]Infrastructure!L893","v":0},{"$f":"[1]Infrastructure!M893","v":0},{"$f":"[1]Infrastructure!N893","v":0},{"$f":"[1]Infrastructure!O893","v":0},{"$f":"[1]Infrastructure!Q893","v":0},{"$f":"[1]Infrastructure!R893","v":0},{"$f":"[1]Infrastructure!T893","v":0},{"$f":"[1]Infrastructure!W893","v":0},{"$f":"[1]Infrastructure!W893","v":0},0,{"$f":"[1]Infrastructure!Z893","v":0},{"$f":"[1]Infrastructure!Z893","v":0},0,{"$f":"[1]Infrastructure!AB893","v":0},{"$f":"[1]Infrastructure!AB893","v":0},0,{"$f":"[1]Infrastructure!AC893","v":0},{"$f":"[1]Infrastructure!AD893","v":0},{"$f":"[1]Infrastructure!AE893","v":0},{"$f":"[1]Infrastructure!AF893","v":0},{"$f":"[1]Infrastructure!AG893","v":0},{"$f":"[1]Infrastructure!AH893","v":0},0]
[0,null,null,null,null,null,{"$f":"[1]Infrastructure!G894","v":0},{"$f":"[1]Infrastructure!H894","v":0},{"$f":"[1]Infrastructure!I894","v":0},{"$f":"[1]Infrastructure!J894","v":0},{"$f":"[1]Infrastructure!K894","v":0},{"$f":"[1]Infrastructure!L894","v":0},{"$f":"[1]Infrastructure!M894","v":0},{"$f":"[1]Infrastructure!N894","v":0},{"$f":"[1]Infrastructure!O894","v":0},{"$f":"[1]Infrastructure!Q894","v":0},{"$f":"[1]Infrastructure!R894","v":0},{"$f":"[1]Infrastructure!T894","v":0},{"$f":"[1]Infrastructure!W894","v":0},{"$f":"[1]Infrastructure!W894","v":0},0,{"$f":"[1]Infrastructure!Z894","v":0},{"$f":"[1]Infrastructure!Z894","v":0},0,{"$f":"[1]Infrastructure!AB894","v":0},{"$f":"[1]Infrastructure!AB894","v":0},0,{"$f":"[1]Infrastructure!AC894","v":0},{"$f":"[1]Infrastructure!AD894","v":0},{"$f":"[1]Infrastructure!AE894","v":0},{"$f":"[1]Infrastructure!AF894","v":0},{"$f":"[1]Infrastructure!AG894","v":0},{"$f":"[1]Infrastructure!AH894","v":0},0]
[0,null,null,null,null,null,{"$f":"[1]Infrastructure!G895","v":0},{"$f":"[1]Infrastructure!H895","v":0},{"$f":"[1]Infrastructure!I895","v":0},{"$f":"[1]Infrastructure!J895","v":0},{"$f":"[1]Infrastructure!K895","v":0},{"$f":"[1]Infrastructure!L895","v":0},{"$f":"[1]Infrastructure!M895","v":0},{"$f":"[1]Infrastructure!N895","v":0},{"$f":"[1]Infrastructure!O895","v":0},{"$f":"[1]Infrastructure!Q895","v":0},{"$f":"[1]Infrastructure!R895","v":0},{"$f":"[1]Infrastructure!T895","v":0},{"$f":"[1]Infrastructure!W895","v":0},{"$f":"[1]Infrastructure!W895","v":0},0,{"$f":"[1]Infrastructure!Z895","v":0},{"$f":"[1]Infrastructure!Z895","v":0},0,{"$f":"[1]Infrastructure!AB895","v":0},{"$f":"[1]Infrastructure!AB895","v":0},0,{"$f":"[1]Infrastructure!AC895","v":0},{"$f":"[1]Infrastructure!AD895","v":0},{"$f":"[1]Infrastructure!AE895","v":0},{"$f":"[1]Infrastructure!AF895","v":0},{"$f":"[1]Infrastructure!AG895","v":0},{"$f":"[1]Infrastructure!AH895","v":0},0]
[0,null,null,null,null,null,{"$f":"[1]Infrastructure!G896","v":0},{"$f":"[1]Infrastructure!H896","v":0},{"$f":"[1]Infrastructure!I896","v":0},{"$f":"[1]Infrastructure!J896","v":0},{"$f":"[1]Infrastructure!K896","v":0},{"$f":"[1]Infrastructure!L896","v":0},{"$f":"[1]Infrastructure!M896","v":0},{"$f":"[1]Infrastructure!N896","v":0},{"$f":"[1]Infrastructure!O896","v":0},{"$f":"[1]Infrastructure!Q896","v":0},{"$f":"[1]Infrastructure!R896","v":0},{"$f":"[1]Infrastructure!T896","v":0},{"$f":"[1]Infrastructure!W896","v":0},{"$f":"[1]Infrastructure!W896","v":0},0,{"$f":"[1]Infrastructure!Z896","v":0},{"$f":"[1]Infrastructure!Z896","v":0},0,{"$f":"[1]Infrastructure!AB896","v":0},{"$f":"[1]Infrastructure!AB896","v":0},0,{"$f":"[1]Infrastructure!AC896","v":0},{"$f":"[1]Infrastructure!AD896","v":0},{"$f":"[1]Infrastructure!AE896","v":0},{"$f":"[1]Infrastructure!AF896","v":0},{"$f":"[1]Infrastructure!AG896","v":0},{"$f":"[1]Infrastructure!AH896","v":0},0]
[0,null,null,null,null,null,{"$f":"[1]Infrastructure!G897","v":0},{"$f":"[1]Infrastructure!H897","v":0},{"$f":"[1]Infrastructure!I897","v":0},{"$f":"[1]Infrastructure!J897","v":0},{"$f":"[1]Infrastructure!K897","v":0},{"$f":"[1]Infrastructure!L897","v":0},{"$f":"[1]Infrastructure!M897","v":0},{"$f":"[1]Infrastructure!N897","v":0},{"$f":"[1]Infrastructure!O897","v":0},{"$f":"[1]Infrastructure!Q897","v":0},{"$f":"[1]Infrastructure!R897","v":0},{"$f":"[1]Infrastructure!T897","v":0},{"$f":"[1]Infrastructure!W897","v":0},{"$f":"[1]Infrastructure!W897","v":0},0,{"$f":"[1]Infrastructure!Z897","v":0},{"$f":"[1]Infrastructure!Z897","v":0},0,{"$f":"[1]Infrastructure!AB897","v":0},{"$f":"[1]Infrastructure!AB897","v":0},0,{"$f":"[1]Infrastructure!AC897","v":0},{"$f":"[1]Infrastructure!AD897","v":0},{"$f":"[1]Infrastructure!AE897","v":0},{"$f":"[1]Infrastructure!AF897","v":0},{"$f":"[1]Infrastructure!AG897","v":0},{"$f":"[1]Infrastructure!AH897","v":0},0]
[0,null,null,null,null,null,{"$f":"[1]Infrastructure!G898","v":0},{"$f":"[1]Infrastructure!H898","v":0},{"$f":"[1]Infrastructure!I898","v":0},{"$f":"[1]Infrastructure!J898","v":0},{"$f":"[1]Infrastructure!K898","v":0},{"$f":"[1]Infrastructure!L898","v":0},{"$f":"[1]Infrastructure!M898","v":0},{"$f":"[1]Infrastructure!N898","v":0},{"$f":"[1]Infrastructure!O898","v":0},{"$f":"[1]Infrastructure!Q898","v":0},{"$f":"[1]Infrastructure!R898","v":0},{"$f":"[1]Infrastructure!T898","v":0},{"$f":"[1]Infrastructure!W898","v":0},{"$f":"[1]Infrastructure!W898","v":0},0,{"$f":"[1]Infrastructure!Z898","v":0},{"$f":"[1]Infrastructure!Z898","v":0},0,{"$f":"[1]Infrastructure!AB898","v":0},{"$f":"[1]Infrastructure!AB898","v":0},0,{"$f":"[1]Infrastructure!AC898","v":0},{"$f":"[1]Infrastructure!AD898","v":0},{"$f":"[1]Infrastructure!AE898","v":0},{"$f":"[1]Infrastructure!AF898","v":0},{"$f":"[1]Infrastructure!AG898","v":0},{"$f":"[1]Infrastructure!AH898","v":0},0]
[0,null,null,null,null,null,{"$f":"[1]Infrastructure!G899","v":0},{"$f":"[1]Infrastructure!H899","v":0},{"$f":"[1]Infrastructure!I899","v":0},{"$f":"[1]Infrastructure!J899","v":0},{"$f":"[1]Infrastructure!K899","v":0},{"$f":"[1]Infrastructure!L899","v":0},{"$f":"[1]Infrastructure!M899","v":0},{"$f":"[1]Infrastructure!N899","v":0},{"$f":"[1]Infrastructure!O899","v":0},{"$f":"[1]Infrastructure!Q899","v":0},{"$f":"[1]Infrastructure!R899","v":0},{"$f":"[1]Infrastructure!T899","v":0},{"$f":"[1]Infrastructure!W899","v":0},{"$f":"[1]Infrastructure!W899","v":0},0,{"$f":"[1]Infrastructure!Z899","v":0},{"$f":"[1]Infrastructure!Z899","v":0},0,{"$f":"[1]Infrastructure!AB899","v":0},{"$f":"[1]Infrastructure!AB899","v":0},0,{"$f":"[1]Infrastructure!AC899","v":0},{"$f":"[1]Infrastructure!AD899","v":0},{"$f":"[1]Infrastructure!AE899","v":0},{"$f":"[1]Infrastructure!AF899","v":0},{"$f":"[1]Infrastructure!AG899","v":0},{"$f":"[1]Infrastructure!AH899","v":0},0]
[0,null,null,null,null,null,{"$f":"[1]Infrastructure!G900","v":0},{"$f":"[1]Infrastructure!H900","v":0},{"$f":"[1]Infrastructure!I900","v":0},{"$f":"[1]Infrastructure!J900","v":0},{"$f":"[1]Infrastructure!K900","v":0},{"$f":"[1]Infrastructure!L900","v":0},{"$f":"[1]Infrastructure!M900","v":0},{"$f":"[1]Infrastructure!N900","v":0},{"$f":"[1]Infrastructure!O900","v":0},{"$f":"[1]Infrastructure!Q900","v":0},{"$f":"[1]Infrastructure!R900","v":0},{"$f":"[1]Infrastructure!T900","v":0},{"$f":"[1]Infrastructure!W900","v":0},{"$f":"[1]Infrastructure!W900","v":0},0,{"$f":"[1]Infrastructure!Z900","v":0},{"$f":"[1]Infrastructure!Z900","v":0},0,{"$f":"[1]Infrastructure!AB900","v":0},{"$f":"[1]Infrastructure!AB900","v":0},0,{"$f":"[1]Infrastructure!AC900","v":0},{"$f":"[1]Infrastructure!AD900","v":0},{"$f":"[1]Infrastructure!AE900","v":0},{"$f":"[1]Infrastructure!AF900","v":0},{"$f":"[1]Infrastructure!AG900","v":0},{"$f":"[1]Infrastructure!AH900","v":0},0]
[0,null,null,null,null,null,{"$f":"[1]Infrastructure!G901","v":0},{"$f":"[1]Infrastructure!H901","v":0},{"$f":"[1]Infrastructure!I901","v":0},{"$f":"[1]Infrastructure!J901","v":0},{"$f":"[1]Infrastructure!K901","v":0},{"$f":"[1]Infrastructure!L901","v":0},{"$f":"[1]Infrastructure!M901","v":0},{"$f":"[1]Infrastructure!N901","v":0},{"$f":"[1]Infrastructure!O901","v":0},{"$f":"[1]Infrastructure!Q901","v":0},{"$f":"[1]Infrastructure!R901","v":0},{"$f":"[1]Infrastructure!T901","v":0},{"$f":"[1]Infrastructure!W901","v":0},{"$f":"[1]Infrastructure!W901","v":0},0,{"$f":"[1]Infrastructure!Z901","v":0},{"$f":"[1]Infrastructure!Z901","v":0},0,{"$f":"[1]Infrastructure!AB901","v":0},{"$f":"[1]Infrastructure!AB901","v":0},0,{"$f":"[1]Infrastructure!AC901","v":0},{"$f":"[1]Infrastructure!AD901","v":0},{"$f":"[1]Infrastructure!AE901","v":0},{"$f":"[1]Infrastructure!AF901","v":0},{"$f":"[1]Infrastructure!AG901","v":0},{"$f":"[1]Infrastructure!AH901","v":0},0]
[0,null,null,null,null,null,{"$f":"[1]Infrastructure!G902","v":0},{"$f":"[1]Infrastructure!H902","v":0},{"$f":"[1]Infrastructure!I902","v":0},{"$f":"[1]Infrastructure!J902","v":0},{"$f":"[1]Infrastructure!K902","v":0},{"$f":"[1]Infrastructure!L902","v":0},{"$f":"[1]Infrastructure!M902","v":0},{"$f":"[1]Infrastructure!N902","v":0},{"$f":"[1]Infrastructure!O902","v":0},{"$f":"[1]Infrastructure!Q902","v":0},{"$f":"[1]Infrastructure!R902","v":0},{"$f":"[1]Infrastructure!T902","v":0},{"$f":"[1]Infrastructure!W902","v":0},{"$f":"[1]Infrastructure!W902","v":0},0,{"$f":"[1]Infrastructure!Z902","v":0},{"$f":"[1]Infrastructure!Z902","v":0},0,{"$f":"[1]Infrastructure!AB902","v":0},{"$f":"[1]Infrastructure!AB902","v":0},0,{"$f":"[1]Infrastructure!AC902","v":0},{"$f":"[1]Infrastructure!AD902","v":0},{"$f":"[1]Infrastructure!AE902","v":0},{"$f":"[1]Infrastructure!AF902","v":0},{"$f":"[1]Infrastructure!AG902","v":0},{"$f":"[1]Infrastructure!AH902","v":0},0]
[0,null,null,null,null,null,{"$f":"[1]Infrastructure!G903","v":0},{"$f":"[1]Infrastructure!H903","v":0},{"$f":"[1]Infrastructure!I903","v":0},{"$f":"[1]Infrastructure!J903","v":0},{"$f":"[1]Infrastructure!K903","v":0},{"$f":"[1]Infrastructure!L903","v":0},{"$f":"[1]Infrastructure!M903","v":0},{"$f":"[1]Infrastructure!N903","v":0},{"$f":"[1]Infrastructure!O903","v":0},{"$f":"[1]Infrastructure!Q903","v":0},{"$f":"[1]Infrastructure!R903","v":0},{"$f":"[1]Infrastructure!T903","v":0},{"$f":"[1]Infrastructure!W903","v":0},{"$f":"[1]Infrastructure!W903","v":0},0,{"$f":"[1]Infrastructure!Z903","v":0},{"$f":"[1]Infrastructure!Z903","v":0},0,{"$f":"[1]Infrastructure!AB903","v":0},{"$f":"[1]Infrastructure!AB903","v":0},0,{"$f":"[1]Infrastructure!AC903","v":0},{"$f":"[1]Infrastructure!AD903","v":0},{"$f":"[1]Infrastructure!AE903","v":0},{"$f":"[1]Infrastructure!AF903","v":0},{"$f":"[1]Infrastructure!AG903","v":0},{"$f":"[1]Infrastructure!AH903","v":0},0]
[0,null,null,null,null,null,{"$f":"[1]Infrastructure!G904","v":0},{"$f":"[1]Infrastructure!H904","v":0},{"$f":"[1]Infrastructure!I904","v":0},{"$f":"[1]Infrastructure!J904","v":0},{"$f":"[1]Infrastructure!K904","v":0},{"$f":"[1]Infrastructure!L904","v":0},{"$f":"[1]Infrastructure!M904","v":0},{"$f":"[1]Infrastructure!N904","v":0},{"$f":"[1]Infrastructure!O904","v":0},{"$f":"[1]Infrastructure!Q904","v":0},{"$f":"[1]Infrastructure!R904","v":0},{"$f":"[1]Infrastructure!T904","v":0},{"$f":"[1]Infrastructure!W904","v":0},{"$f":"[1]Infrastructure!W904","v":0},0,{"$f":"[1]Infrastructure!Z904","v":0},{"$f":"[1]Infrastructure!Z904","v":0},0,{"$f":"[1]Infrastructure!AB904","v":0},{"$f":"[1]Infrastructure!AB904","v":0},0,{"$f":"[1]Infrastructure!AC904","v":0},{"$f":"[1]Infrastructure!AD904","v":0},{"$f":"[1]Infrastructure!AE904","v":0},{"$f":"[1]Infrastructure!AF904","v":0},{"$f":"[1]Infrastructure!AG904","v":0},{"$f":"[1]Infrastructure!AH904","v":0},0]
[0,null,null,null,null,null,{"$f":"[1]Infrastructure!G905","v":0},{"$f":"[1]Infrastructure!H905","v":0},{"$f":"[1]Infrastructure!I905","v":0},{"$f":"[1]Infrastructure!J905","v":0},{"$f":"[1]Infrastructure!K905","v":0},{"$f":"[1]Infrastructure!L905","v":0},{"$f":"[1]Infrastructure!M905","v":0},{"$f":"[1]Infrastructure!N905","v":0},{"$f":"[1]Infrastructure!O905","v":0},{"$f":"[1]Infrastructure!Q905","v":0},{"$f":"[1]Infrastructure!R905","v":0},{"$f":"[1]Infrastructure!T905","v":0},{"$f":"[1]Infrastructure!W905","v":0},{"$f":"[1]Infrastructure!W905","v":0},0,{"$f":"[1]Infrastructure!Z905","v":0},{"$f":"[1]Infrastructure!Z905","v":0},0,{"$f":"[1]Infrastructure!AB905","v":0},{"$f":"[1]Infrastructure!AB905","v":0},0,{"$f":"[1]Infrastructure!AC905","v":0},{"$f":"[1]Infrastructure!AD905","v":0},{"$f":"[1]Infrastructure!AE905","v":0},{"$f":"[1]Infrastructure!AF905","v":0},{"$f":"[1]Infrastructure!AG905","v":0},{"$f":"[1]Infrastructure!AH905","v":0},0]
[0,null,null,null,null,null,{"$f":"[1]Infrastructure!G906","v":0},{"$f":"[1]Infrastructure!H906","v":0},{"$f":"[1]Infrastructure!I906","v":0},{"$f":"[1]Infrastructure!J906","v":0},{"$f":"[1]Infrastructure!K906","v":0},{"$f":"[1]Infrastructure!L906","v":0},{"$f":"[1]Infrastructure!M906","v":0},{"$f":"[1]Infrastructure!N906","v":0},{"$f":"[1]Infrastructure!O906","v":0},{"$f":"[1]Infrastructure!Q906","v":0},{"$f":"[1]Infrastructure!R906","v":0},{"$f":"[1]Infrastructure!T906","v":0},{"$f":"[1]Infrastructure!W906","v":0},{"$f":"[1]Infrastructure!W906","v":0},0,{"$f":"[1]Infrastructure!Z906","v":0},{"$f":"[1]Infrastructure!Z906","v":0},0,{"$f":"[1]Infrastructure!AB906","v":0},{"$f":"[1]Infrastructure!AB906","v":0},0,{"$f":"[1]Infrastructure!AC906","v":0},{"$f":"[1]Infrastructure!AD906","v":0},{"$f":"[1]Infrastructure!AE906","v":0},{"$f":"[1]Infrastructure!AF906","v":0},{"$f":"[1]Infrastructure!AG906","v":0},{"$f":"[1]Infrastructure!AH906","v":0},0]
[0,null,null,null,null,null,{"$f":"[1]Infrastructure!G907","v":0},{"$f":"[1]Infrastructure!H907","v":0},{"$f":"[1]Infrastructure!I907","v":0},{"$f":"[1]Infrastructure!J907","v":0},{"$f":"[1]Infrastructure!K907","v":0},{"$f":"[1]Infrastructure!L907","v":0},{"$f":"[1]Infrastructure!M907","v":0},{"$f":"[1]Infrastructure!N907","v":0},{"$f":"[1]Infrastructure!O907","v":0},{"$f":"[1]Infrastructure!Q907","v":0},{"$f":"[1]Infrastructure!R907","v":0},{"$f":"[1]Infrastructure!T907","v":0},{"$f":"[1]Infrastructure!W907","v":0},{"$f":"[1]Infrastructure!W907","v":0},0,{"$f":"[1]Infrastructure!Z907","v":0},{"$f":"[1]Infrastructure!Z907","v":0},0,{"$f":"[1]Infrastructure!AB907","v":0},{"$f":"[1]Infrastructure!AB907","v":0},0,{"$f":"[1]Infrastructure!AC907","v":0},{"$f":"[1]Infrastructure!AD907","v":0},{"$f":"[1]Infrastructure!AE907","v":0},{"$f":"[1]Infrastructure!AF907","v":0},{"$f":"[1]Infrastructure!AG907","v":0},{"$f":"[1]Infrastructure!AH907","v":0},0]
[{"$f":"IF(SUM(O908:AH908),1,0)","v":0},null,null,null,null,null,{"$f":"[1]Infrastructure!G908","v":0},{"$f":"[1]Infrastructure!H908","v":0},{"$f":"[1]Infrastructure!I908","v":0},{"$f":"[1]Infrastructure!J908","v":0},{"$f":"[1]Infrastructure!K908","v":0},{"$f":"[1]Infrastructure!L908","v":0},{"$f":"[1]Infrastructure!M908","v":0},{"$f":"[1]Infrastructure!N908","v":0},{"$f":"[1]Infrastructure!O908","v":0},{"$f":"[1]Infrastructure!Q908","v":0},{"$f":"[1]Infrastructure!R908","v":0},{"$f":"[1]Infrastructure!T908","v":0},{"$f":"[1]Infrastructure!W908","v":0},{"$f":"[1]Infrastructure!W908","v":0},0,{"$f":"[1]Infrastructure!Z908","v":0},{"$f":"[1]Infrastructure!Z908","v":0},0,{"$f":"[1]Infrastructure!AB908","v":0},{"$f":"[1]Infrastructure!AB908","v":0},0,{"$f":"[1]Infrastructure!AC908","v":0},{"$f":"[1]Infrastructure!AD908","v":0},{"$f":"[1]Infrastructure!AE908","v":0},{"$f":"[1]Infrastructure!AF908","v":0},{"$f":"[1]Infrastructure!AG908","v":0},{"$f":"[1]Infrastructure!AH908","v":0},0]
[0,null,null,null,null,null,{"$f":"[1]Infrastructure!G909","v":0},{"$f":"[1]Infrastructure!H909","v":0},{"$f":"[1]Infrastructure!I909","v":0},{"$f":"[1]Infrastructure!J909","v":0},{"$f":"[1]Infrastructure!K909","v":0},{"$f":"[1]Infrastructure!L909","v":0},{"$f":"[1]Infrastructure!M909","v":0},{"$f":"[1]Infrastructure!N909","v":0},{"$f":"[1]Infrastructure!O909","v":0},{"$f":"[1]Infrastructure!Q909","v":0},{"$f":"[1]Infrastructure!R909","v":0},{"$f":"[1]Infrastructure!T909","v":0},{"$f":"[1]Infrastructure!W909","v":0},{"$f":"[1]Infrastructure!W909","v":0},0,{"$f":"[1]Infrastructure!Z909","v":0},{"$f":"[1]Infrastructure!Z909","v":0},0,{"$f":"[1]Infrastructure!AB909","v":0},{"$f":"[1]Infrastructure!AB909","v":0},0,{"$f":"[1]Infrastructure!AC909","v":0},{"$f":"[1]Infrastructure!AD909","v":0},{"$f":"[1]Infrastructure!AE909","v":0},{"$f":"[1]Infrastructure!AF909","v":0},{"$f":"[1]Infrastructure!AG909","v":0},{"$f":"[1]Infrastructure!AH909","v":0},0]
[0,null,null,null,null,null,{"$f":"[1]Infrastructure!G910","v":0},{"$f":"[1]Infrastructure!H910","v":0},{"$f":"[1]Infrastructure!I910","v":0},{"$f":"[1]Infrastructure!J910","v":0},{"$f":"[1]Infrastructure!K910","v":0},{"$f":"[1]Infrastructure!L910","v":0},{"$f":"[1]Infrastructure!M910","v":0},{"$f":"[1]Infrastructure!N910","v":0},{"$f":"[1]Infrastructure!O910","v":0},{"$f":"[1]Infrastructure!Q910","v":0},{"$f":"[1]Infrastructure!R910","v":0},{"$f":"[1]Infrastructure!T910","v":0},{"$f":"[1]Infrastructure!W910","v":0},{"$f":"[1]Infrastructure!W910","v":0},0,{"$f":"[1]Infrastructure!Z910","v":0},{"$f":"[1]Infrastructure!Z910","v":0},0,{"$f":"[1]Infrastructure!AB910","v":0},{"$f":"[1]Infrastructure!AB910","v":0},0,{"$f":"[1]Infrastructure!AC910","v":0},{"$f":"[1]Infrastructure!AD910","v":0},{"$f":"[1]Infrastructure!AE910","v":0},{"$f":"[1]Infrastructure!AF910","v":0},{"$f":"[1]Infrastructure!AG910","v":0},{"$f":"[1]Infrastructure!AH910","v":0},0]
[0,null,null,null,null,null,{"$f":"[1]Infrastructure!G911","v":0},{"$f":"[1]Infrastructure!H911","v":0},{"$f":"[1]Infrastructure!I911","v":0},{"$f":"[1]Infrastructure!J911","v":0},{"$f":"[1]Infrastructure!K911","v":0},{"$f":"[1]Infrastructure!L911","v":0},{"$f":"[1]Infrastructure!M911","v":0},{"$f":"[1]Infrastructure!N911","v":0},{"$f":"[1]Infrastructure!O911","v":0},{"$f":"[1]Infrastructure!Q911","v":0},{"$f":"[1]Infrastructure!R911","v":0},{"$f":"[1]Infrastructure!T911","v":0},{"$f":"[1]Infrastructure!W911","v":0},{"$f":"[1]Infrastructure!W911","v":0},0,{"$f":"[1]Infrastructure!Z911","v":0},{"$f":"[1]Infrastructure!Z911","v":0},0,{"$f":"[1]Infrastructure!AB911","v":0},{"$f":"[1]Infrastructure!AB911","v":0},0,{"$f":"[1]Infrastructure!AC911","v":0},{"$f":"[1]Infrastructure!AD911","v":0},{"$f":"[1]Infrastructure!AE911","v":0},{"$f":"[1]Infrastructure!AF911","v":0},{"$f":"[1]Infrastructure!AG911","v":0},{"$f":"[1]Infrastructure!AH911","v":0},0]
[0,null,null,null,null,null,{"$f":"[1]Infrastructure!G912","v":0},{"$f":"[1]Infrastructure!H912","v":0},{"$f":"[1]Infrastructure!I912","v":0},{"$f":"[1]Infrastructure!J912","v":0},{"$f":"[1]Infrastructure!K912","v":0},{"$f":"[1]Infrastructure!L912","v":0},{"$f":"[1]Infrastructure!M912","v":0},{"$f":"[1]Infrastructure!N912","v":0},{"$f":"[1]Infrastructure!O912","v":0},{"$f":"[1]Infrastructure!Q912","v":0},{"$f":"[1]Infrastructure!R912","v":0},{"$f":"[1]Infrastructure!T912","v":0},{"$f":"[1]Infrastructure!W912","v":0},{"$f":"[1]Infrastructure!W912","v":0},0,{"$f":"[1]Infrastructure!Z912","v":0},{"$f":"[1]Infrastructure!Z912","v":0},0,{"$f":"[1]Infrastructure!AB912","v":0},{"$f":"[1]Infrastructure!AB912","v":0},0,{"$f":"[1]Infrastructure!AC912","v":0},{"$f":"[1]Infrastructure!AD912","v":0},{"$f":"[1]Infrastructure!AE912","v":0},{"$f":"[1]Infrastructure!AF912","v":0},{"$f":"[1]Infrastructure!AG912","v":0},{"$f":"[1]Infrastructure!AH912","v":0},0]
[0,null,null,null,null,null,{"$f":"[1]Infrastructure!G913","v":0},{"$f":"[1]Infrastructure!H913","v":0},{"$f":"[1]Infrastructure!I913","v":0},{"$f":"[1]Infrastructure!J913","v":0},{"$f":"[1]Infrastructure!K913","v":0},{"$f":"[1]Infrastructure!L913","v":0},{"$f":"[1]Infrastructure!M913","v":0},{"$f":"[1]Infrastructure!N913","v":0},{"$f":"[1]Infrastructure!O913","v":0},{"$f":"[1]Infrastructure!Q913","v":0},{"$f":"[1]Infrastructure!R913","v":0},{"$f":"[1]Infrastructure!T913","v":0},{"$f":"[1]Infrastructure!W913","v":0},{"$f":"[1]Infrastructure!W913","v":0},0,{"$f":"[1]Infrastructure!Z913","v":0},{"$f":"[1]Infrastructure!Z913","v":0},0,{"$f":"[1]Infrastructure!AB913","v":0},{"$f":"[1]Infrastructure!AB913","v":0},0,{"$f":"[1]Infrastructure!AC913","v":0},{"$f":"[1]Infrastructure!AD913","v":0},{"$f":"[1]Infrastructure!AE913","v":0},{"$f":"[1]Infrastructure!AF913","v":0},{"$f":"[1]Infrastructure!AG913","v":0},{"$f":"[1]Infrastructure!AH913","v":0},0]
[0,null,null,null,null,null,{"$f":"[1]Infrastructure!G914","v":0},{"$f":"[1]Infrastructure!H914","v":0},{"$f":"[1]Infrastructure!I914","v":0},{"$f":"[1]Infrastructure!J914","v":0},{"$f":"[1]Infrastructure!K914","v":0},{"$f":"[1]Infrastructure!L914","v":0},{"$f":"[1]Infrastructure!M914","v":0},{"$f":"[1]Infrastructure!N914","v":0},{"$f":"[1]Infrastructure!O914","v":0},{"$f":"[1]Infrastructure!Q914","v":0},{"$f":"[1]Infrastructure!R914","v":0},{"$f":"[1]Infrastructure!T914","v":0},{"$f":"[1]Infrastructure!W914","v":0},{"$f":"[1]Infrastructure!W914","v":0},0,{"$f":"[1]Infrastructure!Z914","v":0},{"$f":"[1]Infrastructure!Z914","v":0},0,{"$f":"[1]Infrastructure!AB914","v":0},{"$f":"[1]Infrastructure!AB914","v":0},0,{"$f":"[1]Infrastructure!AC914","v":0},{"$f":"[1]Infrastructure!AD914","v":0},{"$f":"[1]Infrastructure!AE914","v":0},{"$f":"[1]Infrastructure!AF914","v":0},{"$f":"[1]Infrastructure!AG914","v":0},{"$f":"[1]Infrastructure!AH914","v":0},0]
[0,null,null,null,null,null,{"$f":"[1]Infrastructure!G915","v":0},{"$f":"[1]Infrastructure!H915","v":0},{"$f":"[1]Infrastructure!I915","v":0},{"$f":"[1]Infrastructure!J915","v":0},{"$f":"[1]Infrastructure!K915","v":0},{"$f":"[1]Infrastructure!L915","v":0},{"$f":"[1]Infrastructure!M915","v":0},{"$f":"[1]Infrastructure!N915","v":0},{"$f":"[1]Infrastructure!O915","v":0},{"$f":"[1]Infrastructure!Q915","v":0},{"$f":"[1]Infrastructure!R915","v":0},{"$f":"[1]Infrastructure!T915","v":0},{"$f":"[1]Infrastructure!W915","v":0},{"$f":"[1]Infrastructure!W915","v":0},0,{"$f":"[1]Infrastructure!Z915","v":0},{"$f":"[1]Infrastructure!Z915","v":0},0,{"$f":"[1]Infrastructure!AB915","v":0},{"$f":"[1]Infrastructure!AB915","v":0},0,{"$f":"[1]Infrastructure!AC915","v":0},{"$f":"[1]Infrastructure!AD915","v":0},{"$f":"[1]Infrastructure!AE915","v":0},{"$f":"[1]Infrastructure!AF915","v":0},{"$f":"[1]Infrastructure!AG915","v":0},{"$f":"[1]Infrastructure!AH915","v":0},0]
[0,null,null,null,null,null,{"$f":"[1]Infrastructure!G916","v":0},{"$f":"[1]Infrastructure!H916","v":0},{"$f":"[1]Infrastructure!I916","v":0},{"$f":"[1]Infrastructure!J916","v":0},{"$f":"[1]Infrastructure!K916","v":0},{"$f":"[1]Infrastructure!L916","v":0},{"$f":"[1]Infrastructure!M916","v":0},{"$f":"[1]Infrastructure!N916","v":0},{"$f":"[1]Infrastructure!O916","v":0},{"$f":"[1]Infrastructure!Q916","v":0},{"$f":"[1]Infrastructure!R916","v":0},{"$f":"[1]Infrastructure!T916","v":0},{"$f":"[1]Infrastructure!W916","v":0},{"$f":"[1]Infrastructure!W916","v":0},0,{"$f":"[1]Infrastructure!Z916","v":0},{"$f":"[1]Infrastructure!Z916","v":0},0,{"$f":"[1]Infrastructure!AB916","v":0},{"$f":"[1]Infrastructure!AB916","v":0},0,{"$f":"[1]Infrastructure!AC916","v":0},{"$f":"[1]Infrastructure!AD916","v":0},{"$f":"[1]Infrastructure!AE916","v":0},{"$f":"[1]Infrastructure!AF916","v":0},{"$f":"[1]Infrastructure!AG916","v":0},{"$f":"[1]Infrastructure!AH916","v":0},0]
[0,null,null,null,null,null,{"$f":"[1]Infrastructure!G917","v":0},{"$f":"[1]Infrastructure!H917","v":0},{"$f":"[1]Infrastructure!I917","v":0},{"$f":"[1]Infrastructure!J917","v":0},{"$f":"[1]Infrastructure!K917","v":0},{"$f":"[1]Infrastructure!L917","v":0},{"$f":"[1]Infrastructure!M917","v":0},{"$f":"[1]Infrastructure!N917","v":0},{"$f":"[1]Infrastructure!O917","v":0},{"$f":"[1]Infrastructure!Q917","v":0},{"$f":"[1]Infrastructure!R917","v":0},{"$f":"[1]Infrastructure!T917","v":0},{"$f":"[1]Infrastructure!W917","v":0},{"$f":"[1]Infrastructure!W917","v":0},0,{"$f":"[1]Infrastructure!Z917","v":0},{"$f":"[1]Infrastructure!Z917","v":0},0,{"$f":"[1]Infrastructure!AB917","v":0},{"$f":"[1]Infrastructure!AB917","v":0},0,{"$f":"[1]Infrastructure!AC917","v":0},{"$f":"[1]Infrastructure!AD917","v":0},{"$f":"[1]Infrastructure!AE917","v":0},{"$f":"[1]Infrastructure!AF917","v":0},{"$f":"[1]Infrastructure!AG917","v":0},{"$f":"[1]Infrastructure!AH917","v":0},0]
[0,null,null,null,null,null,{"$f":"[1]Infrastructure!G918","v":0},{"$f":"[1]Infrastructure!H918","v":0},{"$f":"[1]Infrastructure!I918","v":0},{"$f":"[1]Infrastructure!J918","v":0},{"$f":"[1]Infrastructure!K918","v":0},{"$f":"[1]Infrastructure!L918","v":0},{"$f":"[1]Infrastructure!M918","v":0},{"$f":"[1]Infrastructure!N918","v":0},{"$f":"[1]Infrastructure!O918","v":0},{"$f":"[1]Infrastructure!Q918","v":0},{"$f":"[1]Infrastructure!R918","v":0},{"$f":"[1]Infrastructure!T918","v":0},{"$f":"[1]Infrastructure!W918","v":0},{"$f":"[1]Infrastructure!W918","v":0},0,{"$f":"[1]Infrastructure!Z918","v":0},{"$f":"[1]Infrastructure!Z918","v":0},0,{"$f":"[1]Infrastructure!AB918","v":0},{"$f":"[1]Infrastructure!AB918","v":0},0,{"$f":"[1]Infrastructure!AC918","v":0},{"$f":"[1]Infrastructure!AD918","v":0},{"$f":"[1]Infrastructure!AE918","v":0},{"$f":"[1]Infrastructure!AF918","v":0},{"$f":"[1]Infrastructure!AG918","v":0},{"$f":"[1]Infrastructure!AH918","v":0},0]
[0,null,null,null,null,null,{"$f":"[1]Infrastructure!G919","v":0},{"$f":"[1]Infrastructure!H919","v":0},{"$f":"[1]Infrastructure!I919","v":0},{"$f":"[1]Infrastructure!J919","v":0},{"$f":"[1]Infrastructure!K919","v":0},{"$f":"[1]Infrastructure!L919","v":0},{"$f":"[1]Infrastructure!M919","v":0},{"$f":"[1]Infrastructure!N919","v":0},{"$f":"[1]Infrastructure!O919","v":0},{"$f":"[1]Infrastructure!Q919","v":0},{"$f":"[1]Infrastructure!R919","v":0},{"$f":"[1]Infrastructure!T919","v":0},{"$f":"[1]Infrastructure!W919","v":0},{"$f":"[1]Infrastructure!W919","v":0},0,{"$f":"[1]Infrastructure!Z919","v":0},{"$f":"[1]Infrastructure!Z919","v":0},0,{"$f":"[1]Infrastructure!AB919","v":0},{"$f":"[1]Infrastructure!AB919","v":0},0,{"$f":"[1]Infrastructure!AC919","v":0},{"$f":"[1]Infrastructure!AD919","v":0},{"$f":"[1]Infrastructure!AE919","v":0},{"$f":"[1]Infrastructure!AF919","v":0},{"$f":"[1]Infrastructure!AG919","v":0},{"$f":"[1]Infrastructure!AH919","v":0},0]
[0,null,null,null,null,null,{"$f":"[1]Infrastructure!G920","v":0},{"$f":"[1]Infrastructure!H920","v":0},{"$f":"[1]Infrastructure!I920","v":0},{"$f":"[1]Infrastructure!J920","v":0},{"$f":"[1]Infrastructure!K920","v":0},{"$f":"[1]Infrastructure!L920","v":0},{"$f":"[1]Infrastructure!M920","v":0},{"$f":"[1]Infrastructure!N920","v":0},{"$f":"[1]Infrastructure!O920","v":0},{"$f":"[1]Infrastructure!Q920","v":0},{"$f":"[1]Infrastructure!R920","v":0},{"$f":"[1]Infrastructure!T920","v":0},{"$f":"[1]Infrastructure!W920","v":0},{"$f":"[1]Infrastructure!W920","v":0},0,{"$f":"[1]Infrastructure!Z920","v":0},{"$f":"[1]Infrastructure!Z920","v":0},0,{"$f":"[1]Infrastructure!AB920","v":0},{"$f":"[1]Infrastructure!AB920","v":0},0,{"$f":"[1]Infrastructure!AC920","v":0},{"$f":"[1]Infrastructure!AD920","v":0},{"$f":"[1]Infrastructure!AE920","v":0},{"$f":"[1]Infrastructure!AF920","v":0},{"$f":"[1]Infrastructure!AG920","v":0},{"$f":"[1]Infrastructure!AH920","v":0},0]
[0,null,null,null,null,null,{"$f":"[1]Infrastructure!G921","v":0},{"$f":"[1]Infrastructure!H921","v":0},{"$f":"[1]Infrastructure!I921","v":0},{"$f":"[1]Infrastructure!J921","v":0},{"$f":"[1]Infrastructure!K921","v":0},{"$f":"[1]Infrastructure!L921","v":0},{"$f":"[1]Infrastructure!M921","v":0},{"$f":"[1]Infrastructure!N921","v":0},{"$f":"[1]Infrastructure!O921","v":0},{"$f":"[1]Infrastructure!Q921","v":0},{"$f":"[1]Infrastructure!R921","v":0},{"$f":"[1]Infrastructure!T921","v":0},{"$f":"[1]Infrastructure!W921","v":0},{"$f":"[1]Infrastructure!W921","v":0},0,{"$f":"[1]Infrastructure!Z921","v":0},{"$f":"[1]Infrastructure!Z921","v":0},0,{"$f":"[1]Infrastructure!AB921","v":0},{"$f":"[1]Infrastructure!AB921","v":0},0,{"$f":"[1]Infrastructure!AC921","v":0},{"$f":"[1]Infrastructure!AD921","v":0},{"$f":"[1]Infrastructure!AE921","v":0},{"$f":"[1]Infrastructure!AF921","v":0},{"$f":"[1]Infrastructure!AG921","v":0},{"$f":"[1]Infrastructure!AH921","v":0},0]
[0,null,null,null,null,null,{"$f":"[1]Infrastructure!G922","v":0},{"$f":"[1]Infrastructure!H922","v":0},{"$f":"[1]Infrastructure!I922","v":0},{"$f":"[1]Infrastructure!J922","v":0},{"$f":"[1]Infrastructure!K922","v":0},{"$f":"[1]Infrastructure!L922","v":0},{"$f":"[1]Infrastructure!M922","v":0},{"$f":"[1]Infrastructure!N922","v":0},{"$f":"[1]Infrastructure!O922","v":0},{"$f":"[1]Infrastructure!Q922","v":0},{"$f":"[1]Infrastructure!R922","v":0},{"$f":"[1]Infrastructure!T922","v":0},{"$f":"[1]Infrastructure!W922","v":0},{"$f":"[1]Infrastructure!W922","v":0},0,{"$f":"[1]Infrastructure!Z922","v":0},{"$f":"[1]Infrastructure!Z922","v":0},0,{"$f":"[1]Infrastructure!AB922","v":0},{"$f":"[1]Infrastructure!AB922","v":0},0,{"$f":"[1]Infrastructure!AC922","v":0},{"$f":"[1]Infrastructure!AD922","v":0},{"$f":"[1]Infrastructure!AE922","v":0},{"$f":"[1]Infrastructure!AF922","v":0},{"$f":"[1]Infrastructure!AG922","v":0},{"$f":"[1]Infrastructure!AH922","v":0},0]
[0,null,null,null,null,null,{"$f":"[1]Infrastructure!G923","v":0},{"$f":"[1]Infrastructure!H923","v":0},{"$f":"[1]Infrastructure!I923","v":0},{"$f":"[1]Infrastructure!J923","v":0},{"$f":"[1]Infrastructure!K923","v":0},{"$f":"[1]Infrastructure!L923","v":0},{"$f":"[1]Infrastructure!M923","v":0},{"$f":"[1]Infrastructure!N923","v":0},{"$f":"[1]Infrastructure!O923","v":0},{"$f":"[1]Infrastructure!Q923","v":0},{"$f":"[1]Infrastructure!R923","v":0},{"$f":"[1]Infrastructure!T923","v":0},{"$f":"[1]Infrastructure!W923","v":0},{"$f":"[1]Infrastructure!W923","v":0},0,{"$f":"[1]Infrastructure!Z923","v":0},{"$f":"[1]Infrastructure!Z923","v":0},0,{"$f":"[1]Infrastructure!AB923","v":0},{"$f":"[1]Infrastructure!AB923","v":0},0,{"$f":"[1]Infrastructure!AC923","v":0},{"$f":"[1]Infrastructure!AD923","v":0},{"$f":"[1]Infrastructure!AE923","v":0},{"$f":"[1]Infrastructure!AF923","v":0},{"$f":"[1]Infrastructure!AG923","v":0},{"$f":"[1]Infrastructure!AH923","v":0},0]
[0,null,null,null,null,null,{"$f":"[1]Infrastructure!G924","v":0},{"$f":"[1]Infrastructure!H924","v":0},{"$f":"[1]Infrastructure!I924","v":0},{"$f":"[1]Infrastructure!J924","v":0},{"$f":"[1]Infrastructure!K924","v":0},{"$f":"[1]Infrastructure!L924","v":0},{"$f":"[1]Infrastructure!M924","v":0},{"$f":"[1]Infrastructure!N924","v":0},{"$f":"[1]Infrastructure!O924","v":0},{"$f":"[1]Infrastructure!Q924","v":0},{"$f":"[1]Infrastructure!R924","v":0},{"$f":"[1]Infrastructure!T924","v":0},{"$f":"[1]Infrastructure!W924","v":0},{"$f":"[1]Infrastructure!W924","v":0},0,{"$f":"[1]Infrastructure!Z924","v":0},{"$f":"[1]Infrastructure!Z924","v":0},0,{"$f":"[1]Infrastructure!AB924","v":0},{"$f":"[1]Infrastructure!AB924","v":0},0,{"$f":"[1]Infrastructure!AC924","v":0},{"$f":"[1]Infrastructure!AD924","v":0},{"$f":"[1]Infrastructure!AE924","v":0},{"$f":"[1]Infrastructure!AF924","v":0},{"$f":"[1]Infrastructure!AG924","v":0},{"$f":"[1]Infrastructure!AH924","v":0},0]
[0,null,null,null,null,null,{"$f":"[1]Infrastructure!G925","v":0},{"$f":"[1]Infrastructure!H925","v":0},{"$f":"[1]Infrastructure!I925","v":0},{"$f":"[1]Infrastructure!J925","v":0},{"$f":"[1]Infrastructure!K925","v":0},{"$f":"[1]Infrastructure!L925","v":0},{"$f":"[1]Infrastructure!M925","v":0},{"$f":"[1]Infrastructure!N925","v":0},{"$f":"[1]Infrastructure!O925","v":0},{"$f":"[1]Infrastructure!Q925","v":0},{"$f":"[1]Infrastructure!R925","v":0},{"$f":"[1]Infrastructure!T925","v":0},{"$f":"[1]Infrastructure!W925","v":0},{"$f":"[1]Infrastructure!W925","v":0},0,{"$f":"[1]Infrastructure!Z925","v":0},{"$f":"[1]Infrastructure!Z925","v":0},0,{"$f":"[1]Infrastructure!AB925","v":0},{"$f":"[1]Infrastructure!AB925","v":0},0,{"$f":"[1]Infrastructure!AC925","v":0},{"$f":"[1]Infrastructure!AD925","v":0},{"$f":"[1]Infrastructure!AE925","v":0},{"$f":"[1]Infrastructure!AF925","v":0},{"$f":"[1]Infrastructure!AG925","v":0},{"$f":"[1]Infrastructure!AH925","v":0},0]
[0,null,null,null,null,null,{"$f":"[1]Infrastructure!G926","v":0},{"$f":"[1]Infrastructure!H926","v":0},{"$f":"[1]Infrastructure!I926","v":0},{"$f":"[1]Infrastructure!J926","v":0},{"$f":"[1]Infrastructure!K926","v":0},{"$f":"[1]Infrastructure!L926","v":0},{"$f":"[1]Infrastructure!M926","v":0},{"$f":"[1]Infrastructure!N926","v":0},{"$f":"[1]Infrastructure!O926","v":0},{"$f":"[1]Infrastructure!Q926","v":0},{"$f":"[1]Infrastructure!R926","v":0},{"$f":"[1]Infrastructure!T926","v":0},{"$f":"[1]Infrastructure!W926","v":0},{"$f":"[1]Infrastructure!W926","v":0},0,{"$f":"[1]Infrastructure!Z926","v":0},{"$f":"[1]Infrastructure!Z926","v":0},0,{"$f":"[1]Infrastructure!AB926","v":0},{"$f":"[1]Infrastructure!AB926","v":0},0,{"$f":"[1]Infrastructure!AC926","v":0},{"$f":"[1]Infrastructure!AD926","v":0},{"$f":"[1]Infrastructure!AE926","v":0},{"$f":"[1]Infrastructure!AF926","v":0},{"$f":"[1]Infrastructure!AG926","v":0},{"$f":"[1]Infrastructure!AH926","v":0},0]
[0,null,null,null,null,null,{"$f":"[1]Infrastructure!G927","v":0},{"$f":"[1]Infrastructure!H927","v":0},{"$f":"[1]Infrastructure!I927","v":0},{"$f":"[1]Infrastructure!J927","v":0},{"$f":"[1]Infrastructure!K927","v":0},{"$f":"[1]Infrastructure!L927","v":0},{"$f":"[1]Infrastructure!M927","v":0},{"$f":"[1]Infrastructure!N927","v":0},{"$f":"[1]Infrastructure!O927","v":0},{"$f":"[1]Infrastructure!Q927","v":0},{"$f":"[1]Infrastructure!R927","v":0},{"$f":"[1]Infrastructure!T927","v":0},{"$f":"[1]Infrastructure!W927","v":0},{"$f":"[1]Infrastructure!W927","v":0},0,{"$f":"[1]Infrastructure!Z927","v":0},{"$f":"[1]Infrastructure!Z927","v":0},0,{"$f":"[1]Infrastructure!AB927","v":0},{"$f":"[1]Infrastructure!AB927","v":0},0,{"$f":"[1]Infrastructure!AC927","v":0},{"$f":"[1]Infrastructure!AD927","v":0},{"$f":"[1]Infrastructure!AE927","v":0},{"$f":"[1]Infrastructure!AF927","v":0},{"$f":"[1]Infrastructure!AG927","v":0},{"$f":"[1]Infrastructure!AH927","v":0},0]
[0,null,null,null,null,null,{"$f":"[1]Infrastructure!G928","v":0},{"$f":"[1]Infrastructure!H928","v":0},{"$f":"[1]Infrastructure!I928","v":0},{"$f":"[1]Infrastructure!J928","v":0},{"$f":"[1]Infrastructure!K928","v":0},{"$f":"[1]Infrastructure!L928","v":0},{"$f":"[1]Infrastructure!M928","v":0},{"$f":"[1]Infrastructure!N928","v":0},{"$f":"[1]Infrastructure!O928","v":0},{"$f":"[1]Infrastructure!Q928","v":0},{"$f":"[1]Infrastructure!R928","v":0},{"$f":"[1]Infrastructure!T928","v":0},{"$f":"[1]Infrastructure!W928","v":0},{"$f":"[1]Infrastructure!W928","v":0},0,{"$f":"[1]Infrastructure!Z928","v":0},{"$f":"[1]Infrastructure!Z928","v":0},0,{"$f":"[1]Infrastructure!AB928","v":0},{"$f":"[1]Infrastructure!AB928","v":0},0,{"$f":"[1]Infrastructure!AC928","v":0},{"$f":"[1]Infrastructure!AD928","v":0},{"$f":"[1]Infrastructure!AE928","v":0},{"$f":"[1]Infrastructure!AF928","v":0},{"$f":"[1]Infrastructure!AG928","v":0},{"$f":"[1]Infrastructure!AH928","v":0},0]
[0,null,null,null,null,null,{"$f":"[1]Infrastructure!G929","v":0},{"$f":"[1]Infrastructure!H929","v":0},{"$f":"[1]Infrastructure!I929","v":0},{"$f":"[1]Infrastructure!J929","v":0},{"$f":"[1]Infrastructure!K929","v":0},{"$f":"[1]Infrastructure!L929","v":0},{"$f":"[1]Infrastructure!M929","v":0},{"$f":"[1]Infrastructure!N929","v":0},{"$f":"[1]Infrastructure!O929","v":0},{"$f":"[1]Infrastructure!Q929","v":0},{"$f":"[1]Infrastructure!R929","v":0},{"$f":"[1]Infrastructure!T929","v":0},{"$f":"[1]Infrastructure!W929","v":0},{"$f":"[1]Infrastructure!W929","v":0},0,{"$f":"[1]Infrastructure!Z929","v":0},{"$f":"[1]Infrastructure!Z929","v":0},0,{"$f":"[1]Infrastructure!AB929","v":0},{"$f":"[1]Infrastructure!AB929","v":0},0,{"$f":"[1]Infrastructure!AC929","v":0},{"$f":"[1]Infrastructure!AD929","v":0},{"$f":"[1]Infrastructure!AE929","v":0},{"$f":"[1]Infrastructure!AF929","v":0},{"$f":"[1]Infrastructure!AG929","v":0},{"$f":"[1]Infrastructure!AH929","v":0},0]
[0,null,null,null,null,null,{"$f":"[1]Infrastructure!G930","v":0},{"$f":"[1]Infrastructure!H930","v":0},{"$f":"[1]Infrastructure!I930","v":0},{"$f":"[1]Infrastructure!J930","v":0},{"$f":"[1]Infrastructure!K930","v":0},{"$f":"[1]Infrastructure!L930","v":0},{"$f":"[1]Infrastructure!M930","v":0},{"$f":"[1]Infrastructure!N930","v":0},{"$f":"[1]Infrastructure!O930","v":0},{"$f":"[1]Infrastructure!Q930","v":0},{"$f":"[1]Infrastructure!R930","v":0},{"$f":"[1]Infrastructure!T930","v":0},{"$f":"[1]Infrastructure!W930","v":0},{"$f":"[1]Infrastructure!W930","v":0},0,{"$f":"[1]Infrastructure!Z930","v":0},{"$f":"[1]Infrastructure!Z930","v":0},0,{"$f":"[1]Infrastructure!AB930","v":0},{"$f":"[1]Infrastructure!AB930","v":0},0,{"$f":"[1]Infrastructure!AC930","v":0},{"$f":"[1]Infrastructure!AD930","v":0},{"$f":"[1]Infrastructure!AE930","v":0},{"$f":"[1]Infrastructure!AF930","v":0},{"$f":"[1]Infrastructure!AG930","v":0},{"$f":"[1]Infrastructure!AH930","v":0},0]
[0,null,null,null,null,null,{"$f":"[1]Infrastructure!G931","v":0},{"$f":"[1]Infrastructure!H931","v":0},{"$f":"[1]Infrastructure!I931","v":0},{"$f":"[1]Infrastructure!J931","v":0},{"$f":"[1]Infrastructure!K931","v":0},{"$f":"[1]Infrastructure!L931","v":0},{"$f":"[1]Infrastructure!M931","v":0},{"$f":"[1]Infrastructure!N931","v":0},{"$f":"[1]Infrastructure!O931","v":0},{"$f":"[1]Infrastructure!Q931","v":0},{"$f":"[1]Infrastructure!R931","v":0},{"$f":"[1]Infrastructure!T931","v":0},{"$f":"[1]Infrastructure!W931","v":0},{"$f":"[1]Infrastructure!W931","v":0},0,{"$f":"[1]Infrastructure!Z931","v":0},{"$f":"[1]Infrastructure!Z931","v":0},0,{"$f":"[1]Infrastructure!AB931","v":0},{"$f":"[1]Infrastructure!AB931","v":0},0,{"$f":"[1]Infrastructure!AC931","v":0},{"$f":"[1]Infrastructure!AD931","v":0},{"$f":"[1]Infrastructure!AE931","v":0},{"$f":"[1]Infrastructure!AF931","v":0},{"$f":"[1]Infrastructure!AG931","v":0},{"$f":"[1]Infrastructure!AH931","v":0},0]
[0,null,null,null,null,null,{"$f":"[1]Infrastructure!G932","v":0},{"$f":"[1]Infrastructure!H932","v":0},{"$f":"[1]Infrastructure!I932","v":0},{"$f":"[1]Infrastructure!J932","v":0},{"$f":"[1]Infrastructure!K932","v":0},{"$f":"[1]Infrastructure!L932","v":0},{"$f":"[1]Infrastructure!M932","v":0},{"$f":"[1]Infrastructure!N932","v":0},{"$f":"[1]Infrastructure!O932","v":0},{"$f":"[1]Infrastructure!Q932","v":0},{"$f":"[1]Infrastructure!R932","v":0},{"$f":"[1]Infrastructure!T932","v":0},{"$f":"[1]Infrastructure!W932","v":0},{"$f":"[1]Infrastructure!W932","v":0},0,{"$f":"[1]Infrastructure!Z932","v":0},{"$f":"[1]Infrastructure!Z932","v":0},0,{"$f":"[1]Infrastructure!AB932","v":0},{"$f":"[1]Infrastructure!AB932","v":0},0,{"$f":"[1]Infrastructure!AC932","v":0},{"$f":"[1]Infrastructure!AD932","v":0},{"$f":"[1]Infrastructure!AE932","v":0},{"$f":"[1]Infrastructure!AF932","v":0},{"$f":"[1]Infrastructure!AG932","v":0},{"$f":"[1]Infrastructure!AH932","v":0},0]
[0,null,null,null,null,null,{"$f":"[1]Infrastructure!G933","v":0},{"$f":"[1]Infrastructure!H933","v":0},{"$f":"[1]Infrastructure!I933","v":0},{"$f":"[1]Infrastructure!J933","v":0},{"$f":"[1]Infrastructure!K933","v":0},{"$f":"[1]Infrastructure!L933","v":0},{"$f":"[1]Infrastructure!M933","v":0},{"$f":"[1]Infrastructure!N933","v":0},{"$f":"[1]Infrastructure!O933","v":0},{"$f":"[1]Infrastructure!Q933","v":0},{"$f":"[1]Infrastructure!R933","v":0},{"$f":"[1]Infrastructure!T933","v":0},{"$f":"[1]Infrastructure!W933","v":0},{"$f":"[1]Infrastructure!W933","v":0},0,{"$f":"[1]Infrastructure!Z933","v":0},{"$f":"[1]Infrastructure!Z933","v":0},0,{"$f":"[1]Infrastructure!AB933","v":0},{"$f":"[1]Infrastructure!AB933","v":0},0,{"$f":"[1]Infrastructure!AC933","v":0},{"$f":"[1]Infrastructure!AD933","v":0},{"$f":"[1]Infrastructure!AE933","v":0},{"$f":"[1]Infrastructure!AF933","v":0},{"$f":"[1]Infrastructure!AG933","v":0},{"$f":"[1]Infrastructure!AH933","v":0},0]
[0,null,null,null,null,null,{"$f":"[1]Infrastructure!G934","v":0},{"$f":"[1]Infrastructure!H934","v":0},{"$f":"[1]Infrastructure!I934","v":0},{"$f":"[1]Infrastructure!J934","v":0},{"$f":"[1]Infrastructure!K934","v":0},{"$f":"[1]Infrastructure!L934","v":0},{"$f":"[1]Infrastructure!M934","v":0},{"$f":"[1]Infrastructure!N934","v":0},{"$f":"[1]Infrastructure!O934","v":0},{"$f":"[1]Infrastructure!Q934","v":0},{"$f":"[1]Infrastructure!R934","v":0},{"$f":"[1]Infrastructure!T934","v":0},{"$f":"[1]Infrastructure!W934","v":0},{"$f":"[1]Infrastructure!W934","v":0},0,{"$f":"[1]Infrastructure!Z934","v":0},{"$f":"[1]Infrastructure!Z934","v":0},0,{"$f":"[1]Infrastructure!AB934","v":0},{"$f":"[1]Infrastructure!AB934","v":0},0,{"$f":"[1]Infrastructure!AC934","v":0},{"$f":"[1]Infrastructure!AD934","v":0},{"$f":"[1]Infrastructure!AE934","v":0},{"$f":"[1]Infrastructure!AF934","v":0},{"$f":"[1]Infrastructure!AG934","v":0},{"$f":"[1]Infrastructure!AH934","v":0},0]
[0,null,null,null,null,null,{"$f":"[1]Infrastructure!G935","v":0},{"$f":"[1]Infrastructure!H935","v":0},{"$f":"[1]Infrastructure!I935","v":0},{"$f":"[1]Infrastructure!J935","v":0},{"$f":"[1]Infrastructure!K935","v":0},{"$f":"[1]Infrastructure!L935","v":0},{"$f":"[1]Infrastructure!M935","v":0},{"$f":"[1]Infrastructure!N935","v":0},{"$f":"[1]Infrastructure!O935","v":0},{"$f":"[1]Infrastructure!Q935","v":0},{"$f":"[1]Infrastructure!R935","v":0},{"$f":"[1]Infrastructure!T935","v":0},{"$f":"[1]Infrastructure!W935","v":0},{"$f":"[1]Infrastructure!W935","v":0},0,{"$f":"[1]Infrastructure!Z935","v":0},{"$f":"[1]Infrastructure!Z935","v":0},0,{"$f":"[1]Infrastructure!AB935","v":0},{"$f":"[1]Infrastructure!AB935","v":0},0,{"$f":"[1]Infrastructure!AC935","v":0},{"$f":"[1]Infrastructure!AD935","v":0},{"$f":"[1]Infrastructure!AE935","v":0},{"$f":"[1]Infrastructure!AF935","v":0},{"$f":"[1]Infrastructure!AG935","v":0},{"$f":"[1]Infrastructure!AH935","v":0},0]
[0,null,null,null,null,null,{"$f":"[1]Infrastructure!G936","v":0},{"$f":"[1]Infrastructure!H936","v":0},{"$f":"[1]Infrastructure!I936","v":0},{"$f":"[1]Infrastructure!J936","v":0},{"$f":"[1]Infrastructure!K936","v":0},{"$f":"[1]Infrastructure!L936","v":0},{"$f":"[1]Infrastructure!M936","v":0},{"$f":"[1]Infrastructure!N936","v":0},{"$f":"[1]Infrastructure!O936","v":0},{"$f":"[1]Infrastructure!Q936","v":0},{"$f":"[1]Infrastructure!R936","v":0},{"$f":"[1]Infrastructure!T936","v":0},{"$f":"[1]Infrastructure!W936","v":0},{"$f":"[1]Infrastructure!W936","v":0},0,{"$f":"[1]Infrastructure!Z936","v":0},{"$f":"[1]Infrastructure!Z936","v":0},0,{"$f":"[1]Infrastructure!AB936","v":0},{"$f":"[1]Infrastructure!AB936","v":0},0,{"$f":"[1]Infrastructure!AC936","v":0},{"$f":"[1]Infrastructure!AD936","v":0},{"$f":"[1]Infrastructure!AE936","v":0},{"$f":"[1]Infrastructure!AF936","v":0},{"$f":"[1]Infrastructure!AG936","v":0},{"$f":"[1]Infrastructure!AH936","v":0},0]
[0,null,null,null,null,null,{"$f":"[1]Infrastructure!G937","v":0},{"$f":"[1]Infrastructure!H937","v":0},{"$f":"[1]Infrastructure!I937","v":0},{"$f":"[1]Infrastructure!J937","v":0},{"$f":"[1]Infrastructure!K937","v":0},{"$f":"[1]Infrastructure!L937","v":0},{"$f":"[1]Infrastructure!M937","v":0},{"$f":"[1]Infrastructure!N937","v":0},{"$f":"[1]Infrastructure!O937","v":0},{"$f":"[1]Infrastructure!Q937","v":0},{"$f":"[1]Infrastructure!R937","v":0},{"$f":"[1]Infrastructure!T937","v":0},{"$f":"[1]Infrastructure!W937","v":0},{"$f":"[1]Infrastructure!W937","v":0},0,{"$f":"[1]Infrastructure!Z937","v":0},{"$f":"[1]Infrastructure!Z937","v":0},0,{"$f":"[1]Infrastructure!AB937","v":0},{"$f":"[1]Infrastructure!AB937","v":0},0,{"$f":"[1]Infrastructure!AC937","v":0},{"$f":"[1]Infrastructure!AD937","v":0},{"$f":"[1]Infrastructure!AE937","v":0},{"$f":"[1]Infrastructure!AF937","v":0},{"$f":"[1]Infrastructure!AG937","v":0},{"$f":"[1]Infrastructure!AH937","v":0},0]
[0,null,null,null,null,null,{"$f":"[1]Infrastructure!G938","v":0},{"$f":"[1]Infrastructure!H938","v":0},{"$f":"[1]Infrastructure!I938","v":0},{"$f":"[1]Infrastructure!J938","v":0},{"$f":"[1]Infrastructure!K938","v":0},{"$f":"[1]Infrastructure!L938","v":0},{"$f":"[1]Infrastructure!M938","v":0},{"$f":"[1]Infrastructure!N938","v":0},{"$f":"[1]Infrastructure!O938","v":0},{"$f":"[1]Infrastructure!Q938","v":0},{"$f":"[1]Infrastructure!R938","v":0},{"$f":"[1]Infrastructure!T938","v":0},{"$f":"[1]Infrastructure!W938","v":0},{"$f":"[1]Infrastructure!W938","v":0},0,{"$f":"[1]Infrastructure!Z938","v":0},{"$f":"[1]Infrastructure!Z938","v":0},0,{"$f":"[1]Infrastructure!AB938","v":0},{"$f":"[1]Infrastructure!AB938","v":0},0,{"$f":"[1]Infrastructure!AC938","v":0},{"$f":"[1]Infrastructure!AD938","v":0},{"$f":"[1]Infrastructure!AE938","v":0},{"$f":"[1]Infrastructure!AF938","v":0},{"$f":"[1]Infrastructure!AG938","v":0},{"$f":"[1]Infrastructure!AH938","v":0},0]
[0,null,null,null,null,null,{"$f":"[1]Infrastructure!G939","v":0},{"$f":"[1]Infrastructure!H939","v":0},{"$f":"[1]Infrastructure!I939","v":0},{"$f":"[1]Infrastructure!J939","v":0},{"$f":"[1]Infrastructure!K939","v":0},{"$f":"[1]Infrastructure!L939","v":0},{"$f":"[1]Infrastructure!M939","v":0},{"$f":"[1]Infrastructure!N939","v":0},{"$f":"[1]Infrastructure!O939","v":0},{"$f":"[1]Infrastructure!Q939","v":0},{"$f":"[1]Infrastructure!R939","v":0},{"$f":"[1]Infrastructure!T939","v":0},{"$f":"[1]Infrastructure!W939","v":0},{"$f":"[1]Infrastructure!W939","v":0},0,{"$f":"[1]Infrastructure!Z939","v":0},{"$f":"[1]Infrastructure!Z939","v":0},0,{"$f":"[1]Infrastructure!AB939","v":0},{"$f":"[1]Infrastructure!AB939","v":0},0,{"$f":"[1]Infrastructure!AC939","v":0},{"$f":"[1]Infrastructure!AD939","v":0},{"$f":"[1]Infrastructure!AE939","v":0},{"$f":"[1]Infrastructure!AF939","v":0},{"$f":"[1]Infrastructure!AG939","v":0},{"$f":"[1]Infrastructure!AH939","v":0},0]
[0,null,null,null,null,null,{"$f":"[1]Infrastructure!G940","v":0},{"$f":"[1]Infrastructure!H940","v":0},{"$f":"[1]Infrastructure!I940","v":0},{"$f":"[1]Infrastructure!J940","v":0},{"$f":"[1]Infrastructure!K940","v":0},{"$f":"[1]Infrastructure!L940","v":0},{"$f":"[1]Infrastructure!M940","v":0},{"$f":"[1]Infrastructure!N940","v":0},{"$f":"[1]Infrastructure!O940","v":0},{"$f":"[1]Infrastructure!Q940","v":0},{"$f":"[1]Infrastructure!R940","v":0},{"$f":"[1]Infrastructure!T940","v":0},{"$f":"[1]Infrastructure!W940","v":0},{"$f":"[1]Infrastructure!W940","v":0},0,{"$f":"[1]Infrastructure!Z940","v":0},{"$f":"[1]Infrastructure!Z940","v":0},0,{"$f":"[1]Infrastructure!AB940","v":0},{"$f":"[1]Infrastructure!AB940","v":0},0,{"$f":"[1]Infrastructure!AC940","v":0},{"$f":"[1]Infrastructure!AD940","v":0},{"$f":"[1]Infrastructure!AE940","v":0},{"$f":"[1]Infrastructure!AF940","v":0},{"$f":"[1]Infrastructure!AG940","v":0},{"$f":"[1]Infrastructure!AH940","v":0},0]
[0,null,null,null,null,null,{"$f":"[1]Infrastructure!G941","v":0},{"$f":"[1]Infrastructure!H941","v":0},{"$f":"[1]Infrastructure!I941","v":0},{"$f":"[1]Infrastructure!J941","v":0},{"$f":"[1]Infrastructure!K941","v":0},{"$f":"[1]Infrastructure!L941","v":0},{"$f":"[1]Infrastructure!M941","v":0},{"$f":"[1]Infrastructure!N941","v":0},{"$f":"[1]Infrastructure!O941","v":0},{"$f":"[1]Infrastructure!Q941","v":0},{"$f":"[1]Infrastructure!R941","v":0},{"$f":"[1]Infrastructure!T941","v":0},{"$f":"[1]Infrastructure!W941","v":0},{"$f":"[1]Infrastructure!W941","v":0},0,{"$f":"[1]Infrastructure!Z941","v":0},{"$f":"[1]Infrastructure!Z941","v":0},0,{"$f":"[1]Infrastructure!AB941","v":0},{"$f":"[1]Infrastructure!AB941","v":0},0,{"$f":"[1]Infrastructure!AC941","v":0},{"$f":"[1]Infrastructure!AD941","v":0},{"$f":"[1]Infrastructure!AE941","v":0},{"$f":"[1]Infrastructure!AF941","v":0},{"$f":"[1]Infrastructure!AG941","v":0},{"$f":"[1]Infrastructure!AH941","v":0},0]
[0,null,null,null,null,null,{"$f":"[1]Infrastructure!G942","v":0},{"$f":"[1]Infrastructure!H942","v":0},{"$f":"[1]Infrastructure!I942","v":0},{"$f":"[1]Infrastructure!J942","v":0},{"$f":"[1]Infrastructure!K942","v":0},{"$f":"[1]Infrastructure!L942","v":0},{"$f":"[1]Infrastructure!M942","v":0},{"$f":"[1]Infrastructure!N942","v":0},{"$f":"[1]Infrastructure!O942","v":0},{"$f":"[1]Infrastructure!Q942","v":0},{"$f":"[1]Infrastructure!R942","v":0},{"$f":"[1]Infrastructure!T942","v":0},{"$f":"[1]Infrastructure!W942","v":0},{"$f":"[1]Infrastructure!W942","v":0},0,{"$f":"[1]Infrastructure!Z942","v":0},{"$f":"[1]Infrastructure!Z942","v":0},0,{"$f":"[1]Infrastructure!AB942","v":0},{"$f":"[1]Infrastructure!AB942","v":0},0,{"$f":"[1]Infrastructure!AC942","v":0},{"$f":"[1]Infrastructure!AD942","v":0},{"$f":"[1]Infrastructure!AE942","v":0},{"$f":"[1]Infrastructure!AF942","v":0},{"$f":"[1]Infrastructure!AG942","v":0},{"$f":"[1]Infrastructure!AH942","v":0},0]
[0,null,null,null,null,null,{"$f":"[1]Infrastructure!G943","v":0},{"$f":"[1]Infrastructure!H943","v":0},{"$f":"[1]Infrastructure!I943","v":0},{"$f":"[1]Infrastructure!J943","v":0},{"$f":"[1]Infrastructure!K943","v":0},{"$f":"[1]Infrastructure!L943","v":0},{"$f":"[1]Infrastructure!M943","v":0},{"$f":"[1]Infrastructure!N943","v":0},{"$f":"[1]Infrastructure!O943","v":0},{"$f":"[1]Infrastructure!Q943","v":0},{"$f":"[1]Infrastructure!R943","v":0},{"$f":"[1]Infrastructure!T943","v":0},{"$f":"[1]Infrastructure!W943","v":0},{"$f":"[1]Infrastructure!W943","v":0},0,{"$f":"[1]Infrastructure!Z943","v":0},{"$f":"[1]Infrastructure!Z943","v":0},0,{"$f":"[1]Infrastructure!AB943","v":0},{"$f":"[1]Infrastructure!AB943","v":0},0,{"$f":"[1]Infrastructure!AC943","v":0},{"$f":"[1]Infrastructure!AD943","v":0},{"$f":"[1]Infrastructure!AE943","v":0},{"$f":"[1]Infrastructure!AF943","v":0},{"$f":"[1]Infrastructure!AG943","v":0},{"$f":"[1]Infrastructure!AH943","v":0},0]
[0,null,null,null,null,null,{"$f":"[1]Infrastructure!G944","v":0},{"$f":"[1]Infrastructure!H944","v":0},{"$f":"[1]Infrastructure!I944","v":0},{"$f":"[1]Infrastructure!J944","v":0},{"$f":"[1]Infrastructure!K944","v":0},{"$f":"[1]Infrastructure!L944","v":0},{"$f":"[1]Infrastructure!M944","v":0},{"$f":"[1]Infrastructure!N944","v":0},{"$f":"[1]Infrastructure!O944","v":0},{"$f":"[1]Infrastructure!Q944","v":0},{"$f":"[1]Infrastructure!R944","v":0},{"$f":"[1]Infrastructure!T944","v":0},{"$f":"[1]Infrastructure!W944","v":0},{"$f":"[1]Infrastructure!W944","v":0},0,{"$f":"[1]Infrastructure!Z944","v":0},{"$f":"[1]Infrastructure!Z944","v":0},0,{"$f":"[1]Infrastructure!AB944","v":0},{"$f":"[1]Infrastructure!AB944","v":0},0,{"$f":"[1]Infrastructure!AC944","v":0},{"$f":"[1]Infrastructure!AD944","v":0},{"$f":"[1]Infrastructure!AE944","v":0},{"$f":"[1]Infrastructure!AF944","v":0},{"$f":"[1]Infrastructure!AG944","v":0},{"$f":"[1]Infrastructure!AH944","v":0},0]
[0,null,null,null,null,null,{"$f":"[1]Infrastructure!G945","v":0},{"$f":"[1]Infrastructure!H945","v":0},{"$f":"[1]Infrastructure!I945","v":0},{"$f":"[1]Infrastructure!J945","v":0},{"$f":"[1]Infrastructure!K945","v":0},{"$f":"[1]Infrastructure!L945","v":0},{"$f":"[1]Infrastructure!M945","v":0},{"$f":"[1]Infrastructure!N945","v":0},{"$f":"[1]Infrastructure!O945","v":0},{"$f":"[1]Infrastructure!Q945","v":0},{"$f":"[1]Infrastructure!R945","v":0},{"$f":"[1]Infrastructure!T945","v":0},{"$f":"[1]Infrastructure!W945","v":0},{"$f":"[1]Infrastructure!W945","v":0},0,{"$f":"[1]Infrastructure!Z945","v":0},{"$f":"[1]Infrastructure!Z945","v":0},0,{"$f":"[1]Infrastructure!AB945","v":0},{"$f":"[1]Infrastructure!AB945","v":0},0,{"$f":"[1]Infrastructure!AC945","v":0},{"$f":"[1]Infrastructure!AD945","v":0},{"$f":"[1]Infrastructure!AE945","v":0},{"$f":"[1]Infrastructure!AF945","v":0},{"$f":"[1]Infrastructure!AG945","v":0},{"$f":"[1]Infrastructure!AH945","v":0},0]
[0,null,null,null,null,null,{"$f":"[1]Infrastructure!G946","v":0},{"$f":"[1]Infrastructure!H946","v":0},{"$f":"[1]Infrastructure!I946","v":0},{"$f":"[1]Infrastructure!J946","v":0},{"$f":"[1]Infrastructure!K946","v":0},{"$f":"[1]Infrastructure!L946","v":0},{"$f":"[1]Infrastructure!M946","v":0},{"$f":"[1]Infrastructure!N946","v":0},{"$f":"[1]Infrastructure!O946","v":0},{"$f":"[1]Infrastructure!Q946","v":0},{"$f":"[1]Infrastructure!R946","v":0},{"$f":"[1]Infrastructure!T946","v":0},{"$f":"[1]Infrastructure!W946","v":0},{"$f":"[1]Infrastructure!W946","v":0},0,{"$f":"[1]Infrastructure!Z946","v":0},{"$f":"[1]Infrastructure!Z946","v":0},0,{"$f":"[1]Infrastructure!AB946","v":0},{"$f":"[1]Infrastructure!AB946","v":0},0,{"$f":"[1]Infrastructure!AC946","v":0},{"$f":"[1]Infrastructure!AD946","v":0},{"$f":"[1]Infrastructure!AE946","v":0},{"$f":"[1]Infrastructure!AF946","v":0},{"$f":"[1]Infrastructure!AG946","v":0},{"$f":"[1]Infrastructure!AH946","v":0},0]
[0,null,null,null,null,null,{"$f":"[1]Infrastructure!G947","v":0},{"$f":"[1]Infrastructure!H947","v":0},{"$f":"[1]Infrastructure!I947","v":0},{"$f":"[1]Infrastructure!J947","v":0},{"$f":"[1]Infrastructure!K947","v":0},{"$f":"[1]Infrastructure!L947","v":0},{"$f":"[1]Infrastructure!M947","v":0},{"$f":"[1]Infrastructure!N947","v":0},{"$f":"[1]Infrastructure!O947","v":0},{"$f":"[1]Infrastructure!Q947","v":0},{"$f":"[1]Infrastructure!R947","v":0},{"$f":"[1]Infrastructure!T947","v":0},{"$f":"[1]Infrastructure!W947","v":0},{"$f":"[1]Infrastructure!W947","v":0},0,{"$f":"[1]Infrastructure!Z947","v":0},{"$f":"[1]Infrastructure!Z947","v":0},0,{"$f":"[1]Infrastructure!AB947","v":0},{"$f":"[1]Infrastructure!AB947","v":0},0,{"$f":"[1]Infrastructure!AC947","v":0},{"$f":"[1]Infrastructure!AD947","v":0},{"$f":"[1]Infrastructure!AE947","v":0},{"$f":"[1]Infrastructure!AF947","v":0},{"$f":"[1]Infrastructure!AG947","v":0},{"$f":"[1]Infrastructure!AH947","v":0},0]
[0,null,null,null,null,null,{"$f":"[1]Infrastructure!G948","v":0},{"$f":"[1]Infrastructure!H948","v":0},{"$f":"[1]Infrastructure!I948","v":0},{"$f":"[1]Infrastructure!J948","v":0},{"$f":"[1]Infrastructure!K948","v":0},{"$f":"[1]Infrastructure!L948","v":0},{"$f":"[1]Infrastructure!M948","v":0},{"$f":"[1]Infrastructure!N948","v":0},{"$f":"[1]Infrastructure!O948","v":0},{"$f":"[1]Infrastructure!Q948","v":0},{"$f":"[1]Infrastructure!R948","v":0},{"$f":"[1]Infrastructure!T948","v":0},{"$f":"[1]Infrastructure!W948","v":0},{"$f":"[1]Infrastructure!W948","v":0},0,{"$f":"[1]Infrastructure!Z948","v":0},{"$f":"[1]Infrastructure!Z948","v":0},0,{"$f":"[1]Infrastructure!AB948","v":0},{"$f":"[1]Infrastructure!AB948","v":0},0,{"$f":"[1]Infrastructure!AC948","v":0},{"$f":"[1]Infrastructure!AD948","v":0},{"$f":"[1]Infrastructure!AE948","v":0},{"$f":"[1]Infrastructure!AF948","v":0},{"$f":"[1]Infrastructure!AG948","v":0},{"$f":"[1]Infrastructure!AH948","v":0},0]
[0,null,null,null,null,null,{"$f":"[1]Infrastructure!G949","v":0},{"$f":"[1]Infrastructure!H949","v":0},{"$f":"[1]Infrastructure!I949","v":0},{"$f":"[1]Infrastructure!J949","v":0},{"$f":"[1]Infrastructure!K949","v":0},{"$f":"[1]Infrastructure!L949","v":0},{"$f":"[1]Infrastructure!M949","v":0},{"$f":"[1]Infrastructure!N949","v":0},{"$f":"[1]Infrastructure!O949","v":0},{"$f":"[1]Infrastructure!Q949","v":0},{"$f":"[1]Infrastructure!R949","v":0},{"$f":"[1]Infrastructure!T949","v":0},{"$f":"[1]Infrastructure!W949","v":0},{"$f":"[1]Infrastructure!W949","v":0},0,{"$f":"[1]Infrastructure!Z949","v":0},{"$f":"[1]Infrastructure!Z949","v":0},0,{"$f":"[1]Infrastructure!AB949","v":0},{"$f":"[1]Infrastructure!AB949","v":0},0,{"$f":"[1]Infrastructure!AC949","v":0},{"$f":"[1]Infrastructure!AD949","v":0},{"$f":"[1]Infrastructure!AE949","v":0},{"$f":"[1]Infrastructure!AF949","v":0},{"$f":"[1]Infrastructure!AG949","v":0},{"$f":"[1]Infrastructure!AH949","v":0},0]
[0,null,null,null,null,null,{"$f":"[1]Infrastructure!G950","v":0},{"$f":"[1]Infrastructure!H950","v":0},{"$f":"[1]Infrastructure!I950","v":0},{"$f":"[1]Infrastructure!J950","v":0},{"$f":"[1]Infrastructure!K950","v":0},{"$f":"[1]Infrastructure!L950","v":0},{"$f":"[1]Infrastructure!M950","v":0},{"$f":"[1]Infrastructure!N950","v":0},{"$f":"[1]Infrastructure!O950","v":0},{"$f":"[1]Infrastructure!Q950","v":0},{"$f":"[1]Infrastructure!R950","v":0},{"$f":"[1]Infrastructure!T950","v":0},{"$f":"[1]Infrastructure!W950","v":0},{"$f":"[1]Infrastructure!W950","v":0},0,{"$f":"[1]Infrastructure!Z950","v":0},{"$f":"[1]Infrastructure!Z950","v":0},0,{"$f":"[1]Infrastructure!AB950","v":0},{"$f":"[1]Infrastructure!AB950","v":0},0,{"$f":"[1]Infrastructure!AC950","v":0},{"$f":"[1]Infrastructure!AD950","v":0},{"$f":"[1]Infrastructure!AE950","v":0},{"$f":"[1]Infrastructure!AF950","v":0},{"$f":"[1]Infrastructure!AG950","v":0},{"$f":"[1]Infrastructure!AH950","v":0},0]
[0,null,null,null,null,null,{"$f":"[1]Infrastructure!G951","v":0},{"$f":"[1]Infrastructure!H951","v":0},{"$f":"[1]Infrastructure!I951","v":0},{"$f":"[1]Infrastructure!J951","v":0},{"$f":"[1]Infrastructure!K951","v":0},{"$f":"[1]Infrastructure!L951","v":0},{"$f":"[1]Infrastructure!M951","v":0},{"$f":"[1]Infrastructure!N951","v":0},{"$f":"[1]Infrastructure!O951","v":0},{"$f":"[1]Infrastructure!Q951","v":0},{"$f":"[1]Infrastructure!R951","v":0},{"$f":"[1]Infrastructure!T951","v":0},{"$f":"[1]Infrastructure!W951","v":0},{"$f":"[1]Infrastructure!W951","v":0},0,{"$f":"[1]Infrastructure!Z951","v":0},{"$f":"[1]Infrastructure!Z951","v":0},0,{"$f":"[1]Infrastructure!AB951","v":0},{"$f":"[1]Infrastructure!AB951","v":0},0,{"$f":"[1]Infrastructure!AC951","v":0},{"$f":"[1]Infrastructure!AD951","v":0},{"$f":"[1]Infrastructure!AE951","v":0},{"$f":"[1]Infrastructure!AF951","v":0},{"$f":"[1]Infrastructure!AG951","v":0},{"$f":"[1]Infrastructure!AH951","v":0},0]
[0,null,null,null,null,null,{"$f":"[1]Infrastructure!G952","v":0},{"$f":"[1]Infrastructure!H952","v":0},{"$f":"[1]Infrastructure!I952","v":0},{"$f":"[1]Infrastructure!J952","v":0},{"$f":"[1]Infrastructure!K952","v":0},{"$f":"[1]Infrastructure!L952","v":0},{"$f":"[1]Infrastructure!M952","v":0},{"$f":"[1]Infrastructure!N952","v":0},{"$f":"[1]Infrastructure!O952","v":0},{"$f":"[1]Infrastructure!Q952","v":0},{"$f":"[1]Infrastructure!R952","v":0},{"$f":"[1]Infrastructure!T952","v":0},{"$f":"[1]Infrastructure!W952","v":0},{"$f":"[1]Infrastructure!W952","v":0},0,{"$f":"[1]Infrastructure!Z952","v":0},{"$f":"[1]Infrastructure!Z952","v":0},0,{"$f":"[1]Infrastructure!AB952","v":0},{"$f":"[1]Infrastructure!AB952","v":0},0,{"$f":"[1]Infrastructure!AC952","v":0},{"$f":"[1]Infrastructure!AD952","v":0},{"$f":"[1]Infrastructure!AE952","v":0},{"$f":"[1]Infrastructure!AF952","v":0},{"$f":"[1]Infrastructure!AG952","v":0},{"$f":"[1]Infrastructure!AH952","v":0},0]
[0,null,null,null,null,null,{"$f":"[1]Infrastructure!G953","v":0},{"$f":"[1]Infrastructure!H953","v":0},{"$f":"[1]Infrastructure!I953","v":0},{"$f":"[1]Infrastructure!J953","v":0},{"$f":"[1]Infrastructure!K953","v":0},{"$f":"[1]Infrastructure!L953","v":0},{"$f":"[1]Infrastructure!M953","v":0},{"$f":"[1]Infrastructure!N953","v":0},{"$f":"[1]Infrastructure!O953","v":0},{"$f":"[1]Infrastructure!Q953","v":0},{"$f":"[1]Infrastructure!R953","v":0},{"$f":"[1]Infrastructure!T953","v":0},{"$f":"[1]Infrastructure!W953","v":0},{"$f":"[1]Infrastructure!W953","v":0},0,{"$f":"[1]Infrastructure!Z953","v":0},{"$f":"[1]Infrastructure!Z953","v":0},0,{"$f":"[1]Infrastructure!AB953","v":0},{"$f":"[1]Infrastructure!AB953","v":0},0,{"$f":"[1]Infrastructure!AC953","v":0},{"$f":"[1]Infrastructure!AD953","v":0},{"$f":"[1]Infrastructure!AE953","v":0},{"$f":"[1]Infrastructure!AF953","v":0},{"$f":"[1]Infrastructure!AG953","v":0},{"$f":"[1]Infrastructure!AH953","v":0},0]
[0,null,null,null,null,null,{"$f":"[1]Infrastructure!G954","v":0},{"$f":"[1]Infrastructure!H954","v":0},{"$f":"[1]Infrastructure!I954","v":0},{"$f":"[1]Infrastructure!J954","v":0},{"$f":"[1]Infrastructure!K954","v":0},{"$f":"[1]Infrastructure!L954","v":0},{"$f":"[1]Infrastructure!M954","v":0},{"$f":"[1]Infrastructure!N954","v":0},{"$f":"[1]Infrastructure!O954","v":0},{"$f":"[1]Infrastructure!Q954","v":0},{"$f":"[1]Infrastructure!R954","v":0},{"$f":"[1]Infrastructure!T954","v":0},{"$f":"[1]Infrastructure!W954","v":0},{"$f":"[1]Infrastructure!W954","v":0},0,{"$f":"[1]Infrastructure!Z954","v":0},{"$f":"[1]Infrastructure!Z954","v":0},0,{"$f":"[1]Infrastructure!AB954","v":0},{"$f":"[1]Infrastructure!AB954","v":0},0,{"$f":"[1]Infrastructure!AC954","v":0},{"$f":"[1]Infrastructure!AD954","v":0},{"$f":"[1]Infrastructure!AE954","v":0},{"$f":"[1]Infrastructure!AF954","v":0},{"$f":"[1]Infrastructure!AG954","v":0},{"$f":"[1]Infrastructure!AH954","v":0},0]
[0,null,null,null,null,null,{"$f":"[1]Infrastructure!G955","v":0},{"$f":"[1]Infrastructure!H955","v":0},{"$f":"[1]Infrastructure!I955","v":0},{"$f":"[1]Infrastructure!J955","v":0},{"$f":"[1]Infrastructure!K955","v":0},{"$f":"[1]Infrastructure!L955","v":0},{"$f":"[1]Infrastructure!M955","v":0},{"$f":"[1]Infrastructure!N955","v":0},{"$f":"[1]Infrastructure!O955","v":0},{"$f":"[1]Infrastructure!Q955","v":0},{"$f":"[1]Infrastructure!R955","v":0},{"$f":"[1]Infrastructure!T955","v":0},{"$f":"[1]Infrastructure!W955","v":0},{"$f":"[1]Infrastructure!W955","v":0},0,{"$f":"[1]Infrastructure!Z955","v":0},{"$f":"[1]Infrastructure!Z955","v":0},0,{"$f":"[1]Infrastructure!AB955","v":0},{"$f":"[1]Infrastructure!AB955","v":0},0,{"$f":"[1]Infrastructure!AC955","v":0},{"$f":"[1]Infrastructure!AD955","v":0},{"$f":"[1]Infrastructure!AE955","v":0},{"$f":"[1]Infrastructure!AF955","v":0},{"$f":"[1]Infrastructure!AG955","v":0},{"$f":"[1]Infrastructure!AH955","v":0},0]
[0,null,null,null,null,null,{"$f":"[1]Infrastructure!G956","v":0},{"$f":"[1]Infrastructure!H956","v":0},{"$f":"[1]Infrastructure!I956","v":0},{"$f":"[1]Infrastructure!J956","v":0},{"$f":"[1]Infrastructure!K956","v":0},{"$f":"[1]Infrastructure!L956","v":0},{"$f":"[1]Infrastructure!M956","v":0},{"$f":"[1]Infrastructure!N956","v":0},{"$f":"[1]Infrastructure!O956","v":0},{"$f":"[1]Infrastructure!Q956","v":0},{"$f":"[1]Infrastructure!R956","v":0},{"$f":"[1]Infrastructure!T956","v":0},{"$f":"[1]Infrastructure!W956","v":0},{"$f":"[1]Infrastructure!W956","v":0},0,{"$f":"[1]Infrastructure!Z956","v":0},{"$f":"[1]Infrastructure!Z956","v":0},0,{"$f":"[1]Infrastructure!AB956","v":0},{"$f":"[1]Infrastructure!AB956","v":0},0,{"$f":"[1]Infrastructure!AC956","v":0},{"$f":"[1]Infrastructure!AD956","v":0},{"$f":"[1]Infrastructure!AE956","v":0},{"$f":"[1]Infrastructure!AF956","v":0},{"$f":"[1]Infrastructure!AG956","v":0},{"$f":"[1]Infrastructure!AH956","v":0},0]
[0,null,null,null,null,null,{"$f":"[1]Infrastructure!G957","v":0},{"$f":"[1]Infrastructure!H957","v":0},{"$f":"[1]Infrastructure!I957","v":0},{"$f":"[1]Infrastructure!J957","v":0},{"$f":"[1]Infrastructure!K957","v":0},{"$f":"[1]Infrastructure!L957","v":0},{"$f":"[1]Infrastructure!M957","v":0},{"$f":"[1]Infrastructure!N957","v":0},{"$f":"[1]Infrastructure!O957","v":0},{"$f":"[1]Infrastructure!Q957","v":0},{"$f":"[1]Infrastructure!R957","v":0},{"$f":"[1]Infrastructure!T957","v":0},{"$f":"[1]Infrastructure!W957","v":0},{"$f":"[1]Infrastructure!W957","v":0},0,{"$f":"[1]Infrastructure!Z957","v":0},{"$f":"[1]Infrastructure!Z957","v":0},0,{"$f":"[1]Infrastructure!AB957","v":0},{"$f":"[1]Infrastructure!AB957","v":0},0,{"$f":"[1]Infrastructure!AC957","v":0},{"$f":"[1]Infrastructure!AD957","v":0},{"$f":"[1]Infrastructure!AE957","v":0},{"$f":"[1]Infrastructure!AF957","v":0},{"$f":"[1]Infrastructure!AG957","v":0},{"$f":"[1]Infrastructure!AH957","v":0},0]
[0,null,null,null,null,null,{"$f":"[1]Infrastructure!G958","v":0},{"$f":"[1]Infrastructure!H958","v":0},{"$f":"[1]Infrastructure!I958","v":0},{"$f":"[1]Infrastructure!J958","v":0},{"$f":"[1]Infrastructure!K958","v":0},{"$f":"[1]Infrastructure!L958","v":0},{"$f":"[1]Infrastructure!M958","v":0},{"$f":"[1]Infrastructure!N958","v":0},{"$f":"[1]Infrastructure!O958","v":0},{"$f":"[1]Infrastructure!Q958","v":0},{"$f":"[1]Infrastructure!R958","v":0},{"$f":"[1]Infrastructure!T958","v":0},{"$f":"[1]Infrastructure!W958","v":0},{"$f":"[1]Infrastructure!W958","v":0},0,{"$f":"[1]Infrastructure!Z958","v":0},{"$f":"[1]Infrastructure!Z958","v":0},0,{"$f":"[1]Infrastructure!AB958","v":0},{"$f":"[1]Infrastructure!AB958","v":0},0,{"$f":"[1]Infrastructure!AC958","v":0},{"$f":"[1]Infrastructure!AD958","v":0},{"$f":"[1]Infrastructure!AE958","v":0},{"$f":"[1]Infrastructure!AF958","v":0},{"$f":"[1]Infrastructure!AG958","v":0},{"$f":"[1]Infrastructure!AH958","v":0},0]
[0,null,null,null,null,null,{"$f":"[1]Infrastructure!G959","v":0},{"$f":"[1]Infrastructure!H959","v":0},{"$f":"[1]Infrastructure!I959","v":0},{"$f":"[1]Infrastructure!J959","v":0},{"$f":"[1]Infrastructure!K959","v":0},{"$f":"[1]Infrastructure!L959","v":0},{"$f":"[1]Infrastructure!M959","v":0},{"$f":"[1]Infrastructure!N959","v":0},{"$f":"[1]Infrastructure!O959","v":0},{"$f":"[1]Infrastructure!Q959","v":0},{"$f":"[1]Infrastructure!R959","v":0},{"$f":"[1]Infrastructure!T959","v":0},{"$f":"[1]Infrastructure!W959","v":0},{"$f":"[1]Infrastructure!W959","v":0},0,{"$f":"[1]Infrastructure!Z959","v":0},{"$f":"[1]Infrastructure!Z959","v":0},0,{"$f":"[1]Infrastructure!AB959","v":0},{"$f":"[1]Infrastructure!AB959","v":0},0,{"$f":"[1]Infrastructure!AC959","v":0},{"$f":"[1]Infrastructure!AD959","v":0},{"$f":"[1]Infrastructure!AE959","v":0},{"$f":"[1]Infrastructure!AF959","v":0},{"$f":"[1]Infrastructure!AG959","v":0},{"$f":"[1]Infrastructure!AH959","v":0},0]
[0,null,null,null,null,null,{"$f":"[1]Infrastructure!G960","v":0},{"$f":"[1]Infrastructure!H960","v":0},{"$f":"[1]Infrastructure!I960","v":0},{"$f":"[1]Infrastructure!J960","v":0},{"$f":"[1]Infrastructure!K960","v":0},{"$f":"[1]Infrastructure!L960","v":0},{"$f":"[1]Infrastructure!M960","v":0},{"$f":"[1]Infrastructure!N960","v":0},{"$f":"[1]Infrastructure!O960","v":0},{"$f":"[1]Infrastructure!Q960","v":0},{"$f":"[1]Infrastructure!R960","v":0},{"$f":"[1]Infrastructure!T960","v":0},{"$f":"[1]Infrastructure!W960","v":0},{"$f":"[1]Infrastructure!W960","v":0},0,{"$f":"[1]Infrastructure!Z960","v":0},{"$f":"[1]Infrastructure!Z960","v":0},0,{"$f":"[1]Infrastructure!AB960","v":0},{"$f":"[1]Infrastructure!AB960","v":0},0,{"$f":"[1]Infrastructure!AC960","v":0},{"$f":"[1]Infrastructure!AD960","v":0},{"$f":"[1]Infrastructure!AE960","v":0},{"$f":"[1]Infrastructure!AF960","v":0},{"$f":"[1]Infrastructure!AG960","v":0},{"$f":"[1]Infrastructure!AH960","v":0},0]
[0,null,null,null,null,null,{"$f":"[1]Infrastructure!G961","v":0},{"$f":"[1]Infrastructure!H961","v":0},{"$f":"[1]Infrastructure!I961","v":0},{"$f":"[1]Infrastructure!J961","v":0},{"$f":"[1]Infrastructure!K961","v":0},{"$f":"[1]Infrastructure!L961","v":0},{"$f":"[1]Infrastructure!M961","v":0},{"$f":"[1]Infrastructure!N961","v":0},{"$f":"[1]Infrastructure!O961","v":0},{"$f":"[1]Infrastructure!Q961","v":0},{"$f":"[1]Infrastructure!R961","v":0},{"$f":"[1]Infrastructure!T961","v":0},{"$f":"[1]Infrastructure!W961","v":0},{"$f":"[1]Infrastructure!W961","v":0},0,{"$f":"[1]Infrastructure!Z961","v":0},{"$f":"[1]Infrastructure!Z961","v":0},0,{"$f":"[1]Infrastructure!AB961","v":0},{"$f":"[1]Infrastructure!AB961","v":0},0,{"$f":"[1]Infrastructure!AC961","v":0},{"$f":"[1]Infrastructure!AD961","v":0},{"$f":"[1]Infrastructure!AE961","v":0},{"$f":"[1]Infrastructure!AF961","v":0},{"$f":"[1]Infrastructure!AG961","v":0},{"$f":"[1]Infrastructure!AH961","v":0},0]
[0,null,null,null,null,null,{"$f":"[1]Infrastructure!G962","v":0},{"$f":"[1]Infrastructure!H962","v":0},{"$f":"[1]Infrastructure!I962","v":0},{"$f":"[1]Infrastructure!J962","v":0},{"$f":"[1]Infrastructure!K962","v":0},{"$f":"[1]Infrastructure!L962","v":0},{"$f":"[1]Infrastructure!M962","v":0},{"$f":"[1]Infrastructure!N962","v":0},{"$f":"[1]Infrastructure!O962","v":0},{"$f":"[1]Infrastructure!Q962","v":0},{"$f":"[1]Infrastructure!R962","v":0},{"$f":"[1]Infrastructure!T962","v":0},{"$f":"[1]Infrastructure!W962","v":0},{"$f":"[1]Infrastructure!W962","v":0},0,{"$f":"[1]Infrastructure!Z962","v":0},{"$f":"[1]Infrastructure!Z962","v":0},0,{"$f":"[1]Infrastructure!AB962","v":0},{"$f":"[1]Infrastructure!AB962","v":0},0,{"$f":"[1]Infrastructure!AC962","v":0},{"$f":"[1]Infrastructure!AD962","v":0},{"$f":"[1]Infrastructure!AE962","v":0},{"$f":"[1]Infrastructure!AF962","v":0},{"$f":"[1]Infrastructure!AG962","v":0},{"$f":"[1]Infrastructure!AH962","v":0},0]
[0,null,null,null,null,null,{"$f":"[1]Infrastructure!G963","v":0},{"$f":"[1]Infrastructure!H963","v":0},{"$f":"[1]Infrastructure!I963","v":0},{"$f":"[1]Infrastructure!J963","v":0},{"$f":"[1]Infrastructure!K963","v":0},{"$f":"[1]Infrastructure!L963","v":0},{"$f":"[1]Infrastructure!M963","v":0},{"$f":"[1]Infrastructure!N963","v":0},{"$f":"[1]Infrastructure!O963","v":0},{"$f":"[1]Infrastructure!Q963","v":0},{"$f":"[1]Infrastructure!R963","v":0},{"$f":"[1]Infrastructure!T963","v":0},{"$f":"[1]Infrastructure!W963","v":0},{"$f":"[1]Infrastructure!W963","v":0},0,{"$f":"[1]Infrastructure!Z963","v":0},{"$f":"[1]Infrastructure!Z963","v":0},0,{"$f":"[1]Infrastructure!AB963","v":0},{"$f":"[1]Infrastructure!AB963","v":0},0,{"$f":"[1]Infrastructure!AC963","v":0},{"$f":"[1]Infrastructure!AD963","v":0},{"$f":"[1]Infrastructure!AE963","v":0},{"$f":"[1]Infrastructure!AF963","v":0},{"$f":"[1]Infrastructure!AG963","v":0},{"$f":"[1]Infrastructure!AH963","v":0},0]
[0,null,null,null,null,null,{"$f":"[1]Infrastructure!G964","v":0},{"$f":"[1]Infrastructure!H964","v":0},{"$f":"[1]Infrastructure!I964","v":0},{"$f":"[1]Infrastructure!J964","v":0},{"$f":"[1]Infrastructure!K964","v":0},{"$f":"[1]Infrastructure!L964","v":0},{"$f":"[1]Infrastructure!M964","v":0},{"$f":"[1]Infrastructure!N964","v":0},{"$f":"[1]Infrastructure!O964","v":0},{"$f":"[1]Infrastructure!Q964","v":0},{"$f":"[1]Infrastructure!R964","v":0},{"$f":"[1]Infrastructure!T964","v":0},{"$f":"[1]Infrastructure!W964","v":0},{"$f":"[1]Infrastructure!W964","v":0},0,{"$f":"[1]Infrastructure!Z964","v":0},{"$f":"[1]Infrastructure!Z964","v":0},0,{"$f":"[1]Infrastructure!AB964","v":0},{"$f":"[1]Infrastructure!AB964","v":0},0,{"$f":"[1]Infrastructure!AC964","v":0},{"$f":"[1]Infrastructure!AD964","v":0},{"$f":"[1]Infrastructure!AE964","v":0},{"$f":"[1]Infrastructure!AF964","v":0},{"$f":"[1]Infrastructure!AG964","v":0},{"$f":"[1]Infrastructure!AH964","v":0},0]
[0,null,null,null,null,null,{"$f":"[1]Infrastructure!G965","v":0},{"$f":"[1]Infrastructure!H965","v":0},{"$f":"[1]Infrastructure!I965","v":0},{"$f":"[1]Infrastructure!J965","v":0},{"$f":"[1]Infrastructure!K965","v":0},{"$f":"[1]Infrastructure!L965","v":0},{"$f":"[1]Infrastructure!M965","v":0},{"$f":"[1]Infrastructure!N965","v":0},{"$f":"[1]Infrastructure!O965","v":0},{"$f":"[1]Infrastructure!Q965","v":0},{"$f":"[1]Infrastructure!R965","v":0},{"$f":"[1]Infrastructure!T965","v":0},{"$f":"[1]Infrastructure!W965","v":0},{"$f":"[1]Infrastructure!W965","v":0},0,{"$f":"[1]Infrastructure!Z965","v":0},{"$f":"[1]Infrastructure!Z965","v":0},0,{"$f":"[1]Infrastructure!AB965","v":0},{"$f":"[1]Infrastructure!AB965","v":0},0,{"$f":"[1]Infrastructure!AC965","v":0},{"$f":"[1]Infrastructure!AD965","v":0},{"$f":"[1]Infrastructure!AE965","v":0},{"$f":"[1]Infrastructure!AF965","v":0},{"$f":"[1]Infrastructure!AG965","v":0},{"$f":"[1]Infrastructure!AH965","v":0},0]
[0,null,null,null,null,null,{"$f":"[1]Infrastructure!G966","v":0},{"$f":"[1]Infrastructure!H966","v":0},{"$f":"[1]Infrastructure!I966","v":0},{"$f":"[1]Infrastructure!J966","v":0},{"$f":"[1]Infrastructure!K966","v":0},{"$f":"[1]Infrastructure!L966","v":0},{"$f":"[1]Infrastructure!M966","v":0},{"$f":"[1]Infrastructure!N966","v":0},{"$f":"[1]Infrastructure!O966","v":0},{"$f":"[1]Infrastructure!Q966","v":0},{"$f":"[1]Infrastructure!R966","v":0},{"$f":"[1]Infrastructure!T966","v":0},{"$f":"[1]Infrastructure!W966","v":0},{"$f":"[1]Infrastructure!W966","v":0},0,{"$f":"[1]Infrastructure!Z966","v":0},{"$f":"[1]Infrastructure!Z966","v":0},0,{"$f":"[1]Infrastructure!AB966","v":0},{"$f":"[1]Infrastructure!AB966","v":0},0,{"$f":"[1]Infrastructure!AC966","v":0},{"$f":"[1]Infrastructure!AD966","v":0},{"$f":"[1]Infrastructure!AE966","v":0},{"$f":"[1]Infrastructure!AF966","v":0},{"$f":"[1]Infrastructure!AG966","v":0},{"$f":"[1]Infrastructure!AH966","v":0},0]
[0,null,null,null,null,null,{"$f":"[1]Infrastructure!G967","v":0},{"$f":"[1]Infrastructure!H967","v":0},{"$f":"[1]Infrastructure!I967","v":0},{"$f":"[1]Infrastructure!J967","v":0},{"$f":"[1]Infrastructure!K967","v":0},{"$f":"[1]Infrastructure!L967","v":0},{"$f":"[1]Infrastructure!M967","v":0},{"$f":"[1]Infrastructure!N967","v":0},{"$f":"[1]Infrastructure!O967","v":0},{"$f":"[1]Infrastructure!Q967","v":0},{"$f":"[1]Infrastructure!R967","v":0},{"$f":"[1]Infrastructure!T967","v":0},{"$f":"[1]Infrastructure!W967","v":0},{"$f":"[1]Infrastructure!W967","v":0},0,{"$f":"[1]Infrastructure!Z967","v":0},{"$f":"[1]Infrastructure!Z967","v":0},0,{"$f":"[1]Infrastructure!AB967","v":0},{"$f":"[1]Infrastructure!AB967","v":0},0,{"$f":"[1]Infrastructure!AC967","v":0},{"$f":"[1]Infrastructure!AD967","v":0},{"$f":"[1]Infrastructure!AE967","v":0},{"$f":"[1]Infrastructure!AF967","v":0},{"$f":"[1]Infrastructure!AG967","v":0},{"$f":"[1]Infrastructure!AH967","v":0},0]
[0,null,null,null,null,null,{"$f":"[1]Infrastructure!G968","v":0},{"$f":"[1]Infrastructure!H968","v":0},{"$f":"[1]Infrastructure!I968","v":0},{"$f":"[1]Infrastructure!J968","v":0},{"$f":"[1]Infrastructure!K968","v":0},{"$f":"[1]Infrastructure!L968","v":0},{"$f":"[1]Infrastructure!M968","v":0},{"$f":"[1]Infrastructure!N968","v":0},{"$f":"[1]Infrastructure!O968","v":0},{"$f":"[1]Infrastructure!Q968","v":0},{"$f":"[1]Infrastructure!R968","v":0},{"$f":"[1]Infrastructure!T968","v":0},{"$f":"[1]Infrastructure!W968","v":0},{"$f":"[1]Infrastructure!W968","v":0},0,{"$f":"[1]Infrastructure!Z968","v":0},{"$f":"[1]Infrastructure!Z968","v":0},0,{"$f":"[1]Infrastructure!AB968","v":0},{"$f":"[1]Infrastructure!AB968","v":0},0,{"$f":"[1]Infrastructure!AC968","v":0},{"$f":"[1]Infrastructure!AD968","v":0},{"$f":"[1]Infrastructure!AE968","v":0},{"$f":"[1]Infrastructure!AF968","v":0},{"$f":"[1]Infrastructure!AG968","v":0},{"$f":"[1]Infrastructure!AH968","v":0},0]
[0,null,null,null,null,null,{"$f":"[1]Infrastructure!G969","v":0},{"$f":"[1]Infrastructure!H969","v":0},{"$f":"[1]Infrastructure!I969","v":0},{"$f":"[1]Infrastructure!J969","v":0},{"$f":"[1]Infrastructure!K969","v":0},{"$f":"[1]Infrastructure!L969","v":0},{"$f":"[1]Infrastructure!M969","v":0},{"$f":"[1]Infrastructure!N969","v":0},{"$f":"[1]Infrastructure!O969","v":0},{"$f":"[1]Infrastructure!Q969","v":0},{"$f":"[1]Infrastructure!R969","v":0},{"$f":"[1]Infrastructure!T969","v":0},{"$f":"[1]Infrastructure!W969","v":0},{"$f":"[1]Infrastructure!W969","v":0},0,{"$f":"[1]Infrastructure!Z969","v":0},{"$f":"[1]Infrastructure!Z969","v":0},0,{"$f":"[1]Infrastructure!AB969","v":0},{"$f":"[1]Infrastructure!AB969","v":0},0,{"$f":"[1]Infrastructure!AC969","v":0},{"$f":"[1]Infrastructure!AD969","v":0},{"$f":"[1]Infrastructure!AE969","v":0},{"$f":"[1]Infrastructure!AF969","v":0},{"$f":"[1]Infrastructure!AG969","v":0},{"$f":"[1]Infrastructure!AH969","v":0},0]
[0,null,null,null,null,null,{"$f":"[1]Infrastructure!G970","v":0},{"$f":"[1]Infrastructure!H970","v":0},{"$f":"[1]Infrastructure!I970","v":0},{"$f":"[1]Infrastructure!J970","v":0},{"$f":"[1]Infrastructure!K970","v":0},{"$f":"[1]Infrastructure!L970","v":0},{"$f":"[1]Infrastructure!M970","v":0},{"$f":"[1]Infrastructure!N970","v":0},{"$f":"[1]Infrastructure!O970","v":0},{"$f":"[1]Infrastructure!Q970","v":0},{"$f":"[1]Infrastructure!R970","v":0},{"$f":"[1]Infrastructure!T970","v":0},{"$f":"[1]Infrastructure!W970","v":0},{"$f":"[1]Infrastructure!W970","v":0},0,{"$f":"[1]Infrastructure!Z970","v":0},{"$f":"[1]Infrastructure!Z970","v":0},0,{"$f":"[1]Infrastructure!AB970","v":0},{"$f":"[1]Infrastructure!AB970","v":0},0,{"$f":"[1]Infrastructure!AC970","v":0},{"$f":"[1]Infrastructure!AD970","v":0},{"$f":"[1]Infrastructure!AE970","v":0},{"$f":"[1]Infrastructure!AF970","v":0},{"$f":"[1]Infrastructure!AG970","v":0},{"$f":"[1]Infrastructure!AH970","v":0},0]
[0,null,null,null,null,null,{"$f":"[1]Infrastructure!G971","v":0},{"$f":"[1]Infrastructure!H971","v":0},{"$f":"[1]Infrastructure!I971","v":0},{"$f":"[1]Infrastructure!J971","v":0},{"$f":"[1]Infrastructure!K971","v":0},{"$f":"[1]Infrastructure!L971","v":0},{"$f":"[1]Infrastructure!M971","v":0},{"$f":"[1]Infrastructure!N971","v":0},{"$f":"[1]Infrastructure!O971","v":0},{"$f":"[1]Infrastructure!Q971","v":0},{"$f":"[1]Infrastructure!R971","v":0},{"$f":"[1]Infrastructure!T971","v":0},{"$f":"[1]Infrastructure!W971","v":0},{"$f":"[1]Infrastructure!W971","v":0},0,{"$f":"[1]Infrastructure!Z971","v":0},{"$f":"[1]Infrastructure!Z971","v":0},0,{"$f":"[1]Infrastructure!AB971","v":0},{"$f":"[1]Infrastructure!AB971","v":0},0,{"$f":"[1]Infrastructure!AC971","v":0},{"$f":"[1]Infrastructure!AD971","v":0},{"$f":"[1]Infrastructure!AE971","v":0},{"$f":"[1]Infrastructure!AF971","v":0},{"$f":"[1]Infrastructure!AG971","v":0},{"$f":"[1]Infrastructure!AH971","v":0},0]
[{"$f":"IF(SUM(O972:AH972),1,0)","v":0},null,null,null,null,null,{"$f":"[1]Infrastructure!G972","v":0},{"$f":"[1]Infrastructure!H972","v":0},{"$f":"[1]Infrastructure!I972","v":0},{"$f":"[1]Infrastructure!J972","v":0},{"$f":"[1]Infrastructure!K972","v":0},{"$f":"[1]Infrastructure!L972","v":0},{"$f":"[1]Infrastructure!M972","v":0},{"$f":"[1]Infrastructure!N972","v":0},{"$f":"[1]Infrastructure!O972","v":0},{"$f":"[1]Infrastructure!Q972","v":0},{"$f":"[1]Infrastructure!R972","v":0},{"$f":"[1]Infrastructure!T972","v":0},{"$f":"[1]Infrastructure!W972","v":0},{"$f":"[1]Infrastructure!W972","v":0},0,{"$f":"[1]Infrastructure!Z972","v":0},{"$f":"[1]Infrastructure!Z972","v":0},0,{"$f":"[1]Infrastructure!AB972","v":0},{"$f":"[1]Infrastructure!AB972","v":0},0,{"$f":"[1]Infrastructure!AC972","v":0},{"$f":"[1]Infrastructure!AD972","v":0},{"$f":"[1]Infrastructure!AE972","v":0},{"$f":"[1]Infrastructure!AF972","v":0},{"$f":"[1]Infrastructure!AG972","v":0},{"$f":"[1]Infrastructure!AH972","v":0},0]
[0,null,null,null,null,null,{"$f":"[1]Infrastructure!G973","v":0},{"$f":"[1]Infrastructure!H973","v":0},{"$f":"[1]Infrastructure!I973","v":0},{"$f":"[1]Infrastructure!J973","v":0},{"$f":"[1]Infrastructure!K973","v":0},{"$f":"[1]Infrastructure!L973","v":0},{"$f":"[1]Infrastructure!M973","v":0},{"$f":"[1]Infrastructure!N973","v":0},{"$f":"[1]Infrastructure!O973","v":0},{"$f":"[1]Infrastructure!Q973","v":0},{"$f":"[1]Infrastructure!R973","v":0},{"$f":"[1]Infrastructure!T973","v":0},{"$f":"[1]Infrastructure!W973","v":0},{"$f":"[1]Infrastructure!W973","v":0},0,{"$f":"[1]Infrastructure!Z973","v":0},{"$f":"[1]Infrastructure!Z973","v":0},0,{"$f":"[1]Infrastructure!AB973","v":0},{"$f":"[1]Infrastructure!AB973","v":0},0,{"$f":"[1]Infrastructure!AC973","v":0},{"$f":"[1]Infrastructure!AD973","v":0},{"$f":"[1]Infrastructure!AE973","v":0},{"$f":"[1]Infrastructure!AF973","v":0},{"$f":"[1]Infrastructure!AG973","v":0},{"$f":"[1]Infrastructure!AH973","v":0},0]
[0,null,null,null,null,null,{"$f":"[1]Infrastructure!G974","v":0},{"$f":"[1]Infrastructure!H974","v":0},{"$f":"[1]Infrastructure!I974","v":0},{"$f":"[1]Infrastructure!J974","v":0},{"$f":"[1]Infrastructure!K974","v":0},{"$f":"[1]Infrastructure!L974","v":0},{"$f":"[1]Infrastructure!M974","v":0},{"$f":"[1]Infrastructure!N974","v":0},{"$f":"[1]Infrastructure!O974","v":0},{"$f":"[1]Infrastructure!Q974","v":0},{"$f":"[1]Infrastructure!R974","v":0},{"$f":"[1]Infrastructure!T974","v":0},{"$f":"[1]Infrastructure!W974","v":0},{"$f":"[1]Infrastructure!W974","v":0},0,{"$f":"[1]Infrastructure!Z974","v":0},{"$f":"[1]Infrastructure!Z974","v":0},0,{"$f":"[1]Infrastructure!AB974","v":0},{"$f":"[1]Infrastructure!AB974","v":0},0,{"$f":"[1]Infrastructure!AC974","v":0},{"$f":"[1]Infrastructure!AD974","v":0},{"$f":"[1]Infrastructure!AE974","v":0},{"$f":"[1]Infrastructure!AF974","v":0},{"$f":"[1]Infrastructure!AG974","v":0},{"$f":"[1]Infrastructure!AH974","v":0},0]
[0,null,null,null,null,null,{"$f":"[1]Infrastructure!G975","v":0},{"$f":"[1]Infrastructure!H975","v":0},{"$f":"[1]Infrastructure!I975","v":0},{"$f":"[1]Infrastructure!J975","v":0},{"$f":"[1]Infrastructure!K975","v":0},{"$f":"[1]Infrastructure!L975","v":0},{"$f":"[1]Infrastructure!M975","v":0},{"$f":"[1]Infrastructure!N975","v":0},{"$f":"[1]Infrastructure!O975","v":0},{"$f":"[1]Infrastructure!Q975","v":0},{"$f":"[1]Infrastructure!R975","v":0},{"$f":"[1]Infrastructure!T975","v":0},{"$f":"[1]Infrastructure!W975","v":0},{"$f":"[1]Infrastructure!W975","v":0},0,{"$f":"[1]Infrastructure!Z975","v":0},{"$f":"[1]Infrastructure!Z975","v":0},0,{"$f":"[1]Infrastructure!AB975","v":0},{"$f":"[1]Infrastructure!AB975","v":0},0,{"$f":"[1]Infrastructure!AC975","v":0},{"$f":"[1]Infrastructure!AD975","v":0},{"$f":"[1]Infrastructure!AE975","v":0},{"$f":"[1]Infrastructure!AF975","v":0},{"$f":"[1]Infrastructure!AG975","v":0},{"$f":"[1]Infrastructure!AH975","v":0},0]
[0,null,null,null,null,null,{"$f":"[1]Infrastructure!G976","v":0},{"$f":"[1]Infrastructure!H976","v":0},{"$f":"[1]Infrastructure!I976","v":0},{"$f":"[1]Infrastructure!J976","v":0},{"$f":"[1]Infrastructure!K976","v":0},{"$f":"[1]Infrastructure!L976","v":0},{"$f":"[1]Infrastructure!M976","v":0},{"$f":"[1]Infrastructure!N976","v":0},{"$f":"[1]Infrastructure!O976","v":0},{"$f":"[1]Infrastructure!Q976","v":0},{"$f":"[1]Infrastructure!R976","v":0},{"$f":"[1]Infrastructure!T976","v":0},{"$f":"[1]Infrastructure!W976","v":0},{"$f":"[1]Infrastructure!W976","v":0},0,{"$f":"[1]Infrastructure!Z976","v":0},{"$f":"[1]Infrastructure!Z976","v":0},0,{"$f":"[1]Infrastructure!AB976","v":0},{"$f":"[1]Infrastructure!AB976","v":0},0,{"$f":"[1]Infrastructure!AC976","v":0},{"$f":"[1]Infrastructure!AD976","v":0},{"$f":"[1]Infrastructure!AE976","v":0},{"$f":"[1]Infrastructure!AF976","v":0},{"$f":"[1]Infrastructure!AG976","v":0},{"$f":"[1]Infrastructure!AH976","v":0},0]
[0,null,null,null,null,null,{"$f":"[1]Infrastructure!G977","v":0},{"$f":"[1]Infrastructure!H977","v":0},{"$f":"[1]Infrastructure!I977","v":0},{"$f":"[1]Infrastructure!J977","v":0},{"$f":"[1]Infrastructure!K977","v":0},{"$f":"[1]Infrastructure!L977","v":0},{"$f":"[1]Infrastructure!M977","v":0},{"$f":"[1]Infrastructure!N977","v":0},{"$f":"[1]Infrastructure!O977","v":0},{"$f":"[1]Infrastructure!Q977","v":0},{"$f":"[1]Infrastructure!R977","v":0},{"$f":"[1]Infrastructure!T977","v":0},{"$f":"[1]Infrastructure!W977","v":0},{"$f":"[1]Infrastructure!W977","v":0},0,{"$f":"[1]Infrastructure!Z977","v":0},{"$f":"[1]Infrastructure!Z977","v":0},0,{"$f":"[1]Infrastructure!AB977","v":0},{"$f":"[1]Infrastructure!AB977","v":0},0,{"$f":"[1]Infrastructure!AC977","v":0},{"$f":"[1]Infrastructure!AD977","v":0},{"$f":"[1]Infrastructure!AE977","v":0},{"$f":"[1]Infrastructure!AF977","v":0},{"$f":"[1]Infrastructure!AG977","v":0},{"$f":"[1]Infrastructure!AH977","v":0},0]
[0,null,null,null,null,null,{"$f":"[1]Infrastructure!G978","v":0},{"$f":"[1]Infrastructure!H978","v":0},{"$f":"[1]Infrastructure!I978","v":0},{"$f":"[1]Infrastructure!J978","v":0},{"$f":"[1]Infrastructure!K978","v":0},{"$f":"[1]Infrastructure!L978","v":0},{"$f":"[1]Infrastructure!M978","v":0},{"$f":"[1]Infrastructure!N978","v":0},{"$f":"[1]Infrastructure!O978","v":0},{"$f":"[1]Infrastructure!Q978","v":0},{"$f":"[1]Infrastructure!R978","v":0},{"$f":"[1]Infrastructure!T978","v":0},{"$f":"[1]Infrastructure!W978","v":0},{"$f":"[1]Infrastructure!W978","v":0},0,{"$f":"[1]Infrastructure!Z978","v":0},{"$f":"[1]Infrastructure!Z978","v":0},0,{"$f":"[1]Infrastructure!AB978","v":0},{"$f":"[1]Infrastructure!AB978","v":0},0,{"$f":"[1]Infrastructure!AC978","v":0},{"$f":"[1]Infrastructure!AD978","v":0},{"$f":"[1]Infrastructure!AE978","v":0},{"$f":"[1]Infrastructure!AF978","v":0},{"$f":"[1]Infrastructure!AG978","v":0},{"$f":"[1]Infrastructure!AH978","v":0},0]
[0,null,null,null,null,null,{"$f":"[1]Infrastructure!G979","v":0},{"$f":"[1]Infrastructure!H979","v":0},{"$f":"[1]Infrastructure!I979","v":0},{"$f":"[1]Infrastructure!J979","v":0},{"$f":"[1]Infrastructure!K979","v":0},{"$f":"[1]Infrastructure!L979","v":0},{"$f":"[1]Infrastructure!M979","v":0},{"$f":"[1]Infrastructure!N979","v":0},{"$f":"[1]Infrastructure!O979","v":0},{"$f":"[1]Infrastructure!Q979","v":0},{"$f":"[1]Infrastructure!R979","v":0},{"$f":"[1]Infrastructure!T979","v":0},{"$f":"[1]Infrastructure!W979","v":0},{"$f":"[1]Infrastructure!W979","v":0},0,{"$f":"[1]Infrastructure!Z979","v":0},{"$f":"[1]Infrastructure!Z979","v":0},0,{"$f":"[1]Infrastructure!AB979","v":0},{"$f":"[1]Infrastructure!AB979","v":0},0,{"$f":"[1]Infrastructure!AC979","v":0},{"$f":"[1]Infrastructure!AD979","v":0},{"$f":"[1]Infrastructure!AE979","v":0},{"$f":"[1]Infrastructure!AF979","v":0},{"$f":"[1]Infrastructure!AG979","v":0},{"$f":"[1]Infrastructure!AH979","v":0},0]
[0,null,null,null,null,null,{"$f":"[1]Infrastructure!G980","v":0},{"$f":"[1]Infrastructure!H980","v":0},{"$f":"[1]Infrastructure!I980","v":0},{"$f":"[1]Infrastructure!J980","v":0},{"$f":"[1]Infrastructure!K980","v":0},{"$f":"[1]Infrastructure!L980","v":0},{"$f":"[1]Infrastructure!M980","v":0},{"$f":"[1]Infrastructure!N980","v":0},{"$f":"[1]Infrastructure!O980","v":0},{"$f":"[1]Infrastructure!Q980","v":0},{"$f":"[1]Infrastructure!R980","v":0},{"$f":"[1]Infrastructure!T980","v":0},{"$f":"[1]Infrastructure!W980","v":0},{"$f":"[1]Infrastructure!W980","v":0},0,{"$f":"[1]Infrastructure!Z980","v":0},{"$f":"[1]Infrastructure!Z980","v":0},0,{"$f":"[1]Infrastructure!AB980","v":0},{"$f":"[1]Infrastructure!AB980","v":0},0,{"$f":"[1]Infrastructure!AC980","v":0},{"$f":"[1]Infrastructure!AD980","v":0},{"$f":"[1]Infrastructure!AE980","v":0},{"$f":"[1]Infrastructure!AF980","v":0},{"$f":"[1]Infrastructure!AG980","v":0},{"$f":"[1]Infrastructure!AH980","v":0},0]
[0,null,null,null,null,null,{"$f":"[1]Infrastructure!G981","v":0},{"$f":"[1]Infrastructure!H981","v":0},{"$f":"[1]Infrastructure!I981","v":0},{"$f":"[1]Infrastructure!J981","v":0},{"$f":"[1]Infrastructure!K981","v":0},{"$f":"[1]Infrastructure!L981","v":0},{"$f":"[1]Infrastructure!M981","v":0},{"$f":"[1]Infrastructure!N981","v":0},{"$f":"[1]Infrastructure!O981","v":0},{"$f":"[1]Infrastructure!Q981","v":0},{"$f":"[1]Infrastructure!R981","v":0},{"$f":"[1]Infrastructure!T981","v":0},{"$f":"[1]Infrastructure!W981","v":0},{"$f":"[1]Infrastructure!W981","v":0},0,{"$f":"[1]Infrastructure!Z981","v":0},{"$f":"[1]Infrastructure!Z981","v":0},0,{"$f":"[1]Infrastructure!AB981","v":0},{"$f":"[1]Infrastructure!AB981","v":0},0,{"$f":"[1]Infrastructure!AC981","v":0},{"$f":"[1]Infrastructure!AD981","v":0},{"$f":"[1]Infrastructure!AE981","v":0},{"$f":"[1]Infrastructure!AF981","v":0},{"$f":"[1]Infrastructure!AG981","v":0},{"$f":"[1]Infrastructure!AH981","v":0},0]
[0,null,null,null,null,null,{"$f":"[1]Infrastructure!G982","v":0},{"$f":"[1]Infrastructure!H982","v":0},{"$f":"[1]Infrastructure!I982","v":0},{"$f":"[1]Infrastructure!J982","v":0},{"$f":"[1]Infrastructure!K982","v":0},{"$f":"[1]Infrastructure!L982","v":0},{"$f":"[1]Infrastructure!M982","v":0},{"$f":"[1]Infrastructure!N982","v":0},{"$f":"[1]Infrastructure!O982","v":0},{"$f":"[1]Infrastructure!Q982","v":0},{"$f":"[1]Infrastructure!R982","v":0},{"$f":"[1]Infrastructure!T982","v":0},{"$f":"[1]Infrastructure!W982","v":0},{"$f":"[1]Infrastructure!W982","v":0},0,{"$f":"[1]Infrastructure!Z982","v":0},{"$f":"[1]Infrastructure!Z982","v":0},0,{"$f":"[1]Infrastructure!AB982","v":0},{"$f":"[1]Infrastructure!AB982","v":0},0,{"$f":"[1]Infrastructure!AC982","v":0},{"$f":"[1]Infrastructure!AD982","v":0},{"$f":"[1]Infrastructure!AE982","v":0},{"$f":"[1]Infrastructure!AF982","v":0},{"$f":"[1]Infrastructure!AG982","v":0},{"$f":"[1]Infrastructure!AH982","v":0},0]
[0,null,null,null,null,null,{"$f":"[1]Infrastructure!G983","v":0},{"$f":"[1]Infrastructure!H983","v":0},{"$f":"[1]Infrastructure!I983","v":0},{"$f":"[1]Infrastructure!J983","v":0},{"$f":"[1]Infrastructure!K983","v":0},{"$f":"[1]Infrastructure!L983","v":0},{"$f":"[1]Infrastructure!M983","v":0},{"$f":"[1]Infrastructure!N983","v":0},{"$f":"[1]Infrastructure!O983","v":0},{"$f":"[1]Infrastructure!Q983","v":0},{"$f":"[1]Infrastructure!R983","v":0},{"$f":"[1]Infrastructure!T983","v":0},{"$f":"[1]Infrastructure!W983","v":0},{"$f":"[1]Infrastructure!W983","v":0},0,{"$f":"[1]Infrastructure!Z983","v":0},{"$f":"[1]Infrastructure!Z983","v":0},0,{"$f":"[1]Infrastructure!AB983","v":0},{"$f":"[1]Infrastructure!AB983","v":0},0,{"$f":"[1]Infrastructure!AC983","v":0},{"$f":"[1]Infrastructure!AD983","v":0},{"$f":"[1]Infrastructure!AE983","v":0},{"$f":"[1]Infrastructure!AF983","v":0},{"$f":"[1]Infrastructure!AG983","v":0},{"$f":"[1]Infrastructure!AH983","v":0},0]
[0,null,null,null,null,null,{"$f":"[1]Infrastructure!G984","v":0},{"$f":"[1]Infrastructure!H984","v":0},{"$f":"[1]Infrastructure!I984","v":0},{"$f":"[1]Infrastructure!J984","v":0},{"$f":"[1]Infrastructure!K984","v":0},{"$f":"[1]Infrastructure!L984","v":0},{"$f":"[1]Infrastructure!M984","v":0},{"$f":"[1]Infrastructure!N984","v":0},{"$f":"[1]Infrastructure!O984","v":0},{"$f":"[1]Infrastructure!Q984","v":0},{"$f":"[1]Infrastructure!R984","v":0},{"$f":"[1]Infrastructure!T984","v":0},{"$f":"[1]Infrastructure!W984","v":0},{"$f":"[1]Infrastructure!W984","v":0},0,{"$f":"[1]Infrastructure!Z984","v":0},{"$f":"[1]Infrastructure!Z984","v":0},0,{"$f":"[1]Infrastructure!AB984","v":0},{"$f":"[1]Infrastructure!AB984","v":0},0,{"$f":"[1]Infrastructure!AC984","v":0},{"$f":"[1]Infrastructure!AD984","v":0},{"$f":"[1]Infrastructure!AE984","v":0},{"$f":"[1]Infrastructure!AF984","v":0},{"$f":"[1]Infrastructure!AG984","v":0},{"$f":"[1]Infrastructure!AH984","v":0},0]
[0,null,null,null,null,null,{"$f":"[1]Infrastructure!G985","v":0},{"$f":"[1]Infrastructure!H985","v":0},{"$f":"[1]Infrastructure!I985","v":0},{"$f":"[1]Infrastructure!J985","v":0},{"$f":"[1]Infrastructure!K985","v":0},{"$f":"[1]Infrastructure!L985","v":0},{"$f":"[1]Infrastructure!M985","v":0},{"$f":"[1]Infrastructure!N985","v":0},{"$f":"[1]Infrastructure!O985","v":0},{"$f":"[1]Infrastructure!Q985","v":0},{"$f":"[1]Infrastructure!R985","v":0},{"$f":"[1]Infrastructure!T985","v":0},{"$f":"[1]Infrastructure!W985","v":0},{"$f":"[1]Infrastructure!W985","v":0},0,{"$f":"[1]Infrastructure!Z985","v":0},{"$f":"[1]Infrastructure!Z985","v":0},0,{"$f":"[1]Infrastructure!AB985","v":0},{"$f":"[1]Infrastructure!AB985","v":0},0,{"$f":"[1]Infrastructure!AC985","v":0},{"$f":"[1]Infrastructure!AD985","v":0},{"$f":"[1]Infrastructure!AE985","v":0},{"$f":"[1]Infrastructure!AF985","v":0},{"$f":"[1]Infrastructure!AG985","v":0},{"$f":"[1]Infrastructure!AH985","v":0},0]
[0,null,null,null,null,null,{"$f":"[1]Infrastructure!G986","v":0},{"$f":"[1]Infrastructure!H986","v":0},{"$f":"[1]Infrastructure!I986","v":0},{"$f":"[1]Infrastructure!J986","v":0},{"$f":"[1]Infrastructure!K986","v":0},{"$f":"[1]Infrastructure!L986","v":0},{"$f":"[1]Infrastructure!M986","v":0},{"$f":"[1]Infrastructure!N986","v":0},{"$f":"[1]Infrastructure!O986","v":0},{"$f":"[1]Infrastructure!Q986","v":0},{"$f":"[1]Infrastructure!R986","v":0},{"$f":"[1]Infrastructure!T986","v":0},{"$f":"[1]Infrastructure!W986","v":0},{"$f":"[1]Infrastructure!W986","v":0},0,{"$f":"[1]Infrastructure!Z986","v":0},{"$f":"[1]Infrastructure!Z986","v":0},0,{"$f":"[1]Infrastructure!AB986","v":0},{"$f":"[1]Infrastructure!AB986","v":0},0,{"$f":"[1]Infrastructure!AC986","v":0},{"$f":"[1]Infrastructure!AD986","v":0},{"$f":"[1]Infrastructure!AE986","v":0},{"$f":"[1]Infrastructure!AF986","v":0},{"$f":"[1]Infrastructure!AG986","v":0},{"$f":"[1]Infrastructure!AH986","v":0},0]
[0,null,null,null,null,null,{"$f":"[1]Infrastructure!G987","v":0},{"$f":"[1]Infrastructure!H987","v":0},{"$f":"[1]Infrastructure!I987","v":0},{"$f":"[1]Infrastructure!J987","v":0},{"$f":"[1]Infrastructure!K987","v":0},{"$f":"[1]Infrastructure!L987","v":0},{"$f":"[1]Infrastructure!M987","v":0},{"$f":"[1]Infrastructure!N987","v":0},{"$f":"[1]Infrastructure!O987","v":0},{"$f":"[1]Infrastructure!Q987","v":0},{"$f":"[1]Infrastructure!R987","v":0},{"$f":"[1]Infrastructure!T987","v":0},{"$f":"[1]Infrastructure!W987","v":0},{"$f":"[1]Infrastructure!W987","v":0},0,{"$f":"[1]Infrastructure!Z987","v":0},{"$f":"[1]Infrastructure!Z987","v":0},0,{"$f":"[1]Infrastructure!AB987","v":0},{"$f":"[1]Infrastructure!AB987","v":0},0,{"$f":"[1]Infrastructure!AC987","v":0},{"$f":"[1]Infrastructure!AD987","v":0},{"$f":"[1]Infrastructure!AE987","v":0},{"$f":"[1]Infrastructure!AF987","v":0},{"$f":"[1]Infrastructure!AG987","v":0},{"$f":"[1]Infrastructure!AH987","v":0},0]
[0,null,null,null,null,null,{"$f":"[1]Infrastructure!G988","v":0},{"$f":"[1]Infrastructure!H988","v":0},{"$f":"[1]Infrastructure!I988","v":0},{"$f":"[1]Infrastructure!J988","v":0},{"$f":"[1]Infrastructure!K988","v":0},{"$f":"[1]Infrastructure!L988","v":0},{"$f":"[1]Infrastructure!M988","v":0},{"$f":"[1]Infrastructure!N988","v":0},{"$f":"[1]Infrastructure!O988","v":0},{"$f":"[1]Infrastructure!Q988","v":0},{"$f":"[1]Infrastructure!R988","v":0},{"$f":"[1]Infrastructure!T988","v":0},{"$f":"[1]Infrastructure!W988","v":0},{"$f":"[1]Infrastructure!W988","v":0},0,{"$f":"[1]Infrastructure!Z988","v":0},{"$f":"[1]Infrastructure!Z988","v":0},0,{"$f":"[1]Infrastructure!AB988","v":0},{"$f":"[1]Infrastructure!AB988","v":0},0,{"$f":"[1]Infrastructure!AC988","v":0},{"$f":"[1]Infrastructure!AD988","v":0},{"$f":"[1]Infrastructure!AE988","v":0},{"$f":"[1]Infrastructure!AF988","v":0},{"$f":"[1]Infrastructure!AG988","v":0},{"$f":"[1]Infrastructure!AH988","v":0},0]
[0,null,null,null,null,null,{"$f":"[1]Infrastructure!G989","v":0},{"$f":"[1]Infrastructure!H989","v":0},{"$f":"[1]Infrastructure!I989","v":0},{"$f":"[1]Infrastructure!J989","v":0},{"$f":"[1]Infrastructure!K989","v":0},{"$f":"[1]Infrastructure!L989","v":0},{"$f":"[1]Infrastructure!M989","v":0},{"$f":"[1]Infrastructure!N989","v":0},{"$f":"[1]Infrastructure!O989","v":0},{"$f":"[1]Infrastructure!Q989","v":0},{"$f":"[1]Infrastructure!R989","v":0},{"$f":"[1]Infrastructure!T989","v":0},{"$f":"[1]Infrastructure!W989","v":0},{"$f":"[1]Infrastructure!W989","v":0},0,{"$f":"[1]Infrastructure!Z989","v":0},{"$f":"[1]Infrastructure!Z989","v":0},0,{"$f":"[1]Infrastructure!AB989","v":0},{"$f":"[1]Infrastructure!AB989","v":0},0,{"$f":"[1]Infrastructure!AC989","v":0},{"$f":"[1]Infrastructure!AD989","v":0},{"$f":"[1]Infrastructure!AE989","v":0},{"$f":"[1]Infrastructure!AF989","v":0},{"$f":"[1]Infrastructure!AG989","v":0},{"$f":"[1]Infrastructure!AH989","v":0},0]
[0,null,null,null,null,null,{"$f":"[1]Infrastructure!G990","v":0},{"$f":"[1]Infrastructure!H990","v":0},{"$f":"[1]Infrastructure!I990","v":0},{"$f":"[1]Infrastructure!J990","v":0},{"$f":"[1]Infrastructure!K990","v":0},{"$f":"[1]Infrastructure!L990","v":0},{"$f":"[1]Infrastructure!M990","v":0},{"$f":"[1]Infrastructure!N990","v":0},{"$f":"[1]Infrastructure!O990","v":0},{"$f":"[1]Infrastructure!Q990","v":0},{"$f":"[1]Infrastructure!R990","v":0},{"$f":"[1]Infrastructure!T990","v":0},{"$f":"[1]Infrastructure!W990","v":0},{"$f":"[1]Infrastructure!W990","v":0},0,{"$f":"[1]Infrastructure!Z990","v":0},{"$f":"[1]Infrastructure!Z990","v":0},0,{"$f":"[1]Infrastructure!AB990","v":0},{"$f":"[1]Infrastructure!AB990","v":0},0,{"$f":"[1]Infrastructure!AC990","v":0},{"$f":"[1]Infrastructure!AD990","v":0},{"$f":"[1]Infrastructure!AE990","v":0},{"$f":"[1]Infrastructure!AF990","v":0},{"$f":"[1]Infrastructure!AG990","v":0},{"$f":"[1]Infrastructure!AH990","v":0},0]
[0,null,null,null,null,null,{"$f":"[1]Infrastructure!G991","v":0},{"$f":"[1]Infrastructure!H991","v":0},{"$f":"[1]Infrastructure!I991","v":0},{"$f":"[1]Infrastructure!J991","v":0},{"$f":"[1]Infrastructure!K991","v":0},{"$f":"[1]Infrastructure!L991","v":0},{"$f":"[1]Infrastructure!M991","v":0},{"$f":"[1]Infrastructure!N991","v":0},{"$f":"[1]Infrastructure!O991","v":0},{"$f":"[1]Infrastructure!Q991","v":0},{"$f":"[1]Infrastructure!R991","v":0},{"$f":"[1]Infrastructure!T991","v":0},{"$f":"[1]Infrastructure!W991","v":0},{"$f":"[1]Infrastructure!W991","v":0},0,{"$f":"[1]Infrastructure!Z991","v":0},{"$f":"[1]Infrastructure!Z991","v":0},0,{"$f":"[1]Infrastructure!AB991","v":0},{"$f":"[1]Infrastructure!AB991","v":0},0,{"$f":"[1]Infrastructure!AC991","v":0},{"$f":"[1]Infrastructure!AD991","v":0},{"$f":"[1]Infrastructure!AE991","v":0},{"$f":"[1]Infrastructure!AF991","v":0},{"$f":"[1]Infrastructure!AG991","v":0},{"$f":"[1]Infrastructure!AH991","v":0},0]
[0,null,null,null,null,null,{"$f":"[1]Infrastructure!G992","v":0},{"$f":"[1]Infrastructure!H992","v":0},{"$f":"[1]Infrastructure!I992","v":0},{"$f":"[1]Infrastructure!J992","v":0},{"$f":"[1]Infrastructure!K992","v":0},{"$f":"[1]Infrastructure!L992","v":0},{"$f":"[1]Infrastructure!M992","v":0},{"$f":"[1]Infrastructure!N992","v":0},{"$f":"[1]Infrastructure!O992","v":0},{"$f":"[1]Infrastructure!Q992","v":0},{"$f":"[1]Infrastructure!R992","v":0},{"$f":"[1]Infrastructure!T992","v":0},{"$f":"[1]Infrastructure!W992","v":0},{"$f":"[1]Infrastructure!W992","v":0},0,{"$f":"[1]Infrastructure!Z992","v":0},{"$f":"[1]Infrastructure!Z992","v":0},0,{"$f":"[1]Infrastructure!AB992","v":0},{"$f":"[1]Infrastructure!AB992","v":0},0,{"$f":"[1]Infrastructure!AC992","v":0},{"$f":"[1]Infrastructure!AD992","v":0},{"$f":"[1]Infrastructure!AE992","v":0},{"$f":"[1]Infrastructure!AF992","v":0},{"$f":"[1]Infrastructure!AG992","v":0},{"$f":"[1]Infrastructure!AH992","v":0},0]
[0,null,null,null,null,null,{"$f":"[1]Infrastructure!G993","v":0},{"$f":"[1]Infrastructure!H993","v":0},{"$f":"[1]Infrastructure!I993","v":0},{"$f":"[1]Infrastructure!J993","v":0},{"$f":"[1]Infrastructure!K993","v":0},{"$f":"[1]Infrastructure!L993","v":0},{"$f":"[1]Infrastructure!M993","v":0},{"$f":"[1]Infrastructure!N993","v":0},{"$f":"[1]Infrastructure!O993","v":0},{"$f":"[1]Infrastructure!Q993","v":0},{"$f":"[1]Infrastructure!R993","v":0},{"$f":"[1]Infrastructure!T993","v":0},{"$f":"[1]Infrastructure!W993","v":0},{"$f":"[1]Infrastructure!W993","v":0},0,{"$f":"[1]Infrastructure!Z993","v":0},{"$f":"[1]Infrastructure!Z993","v":0},0,{"$f":"[1]Infrastructure!AB993","v":0},{"$f":"[1]Infrastructure!AB993","v":0},0,{"$f":"[1]Infrastructure!AC993","v":0},{"$f":"[1]Infrastructure!AD993","v":0},{"$f":"[1]Infrastructure!AE993","v":0},{"$f":"[1]Infrastructure!AF993","v":0},{"$f":"[1]Infrastructure!AG993","v":0},{"$f":"[1]Infrastructure!AH993","v":0},0]
[0,null,null,null,null,null,{"$f":"[1]Infrastructure!G994","v":0},{"$f":"[1]Infrastructure!H994","v":0},{"$f":"[1]Infrastructure!I994","v":0},{"$f":"[1]Infrastructure!J994","v":0},{"$f":"[1]Infrastructure!K994","v":0},{"$f":"[1]Infrastructure!L994","v":0},{"$f":"[1]Infrastructure!M994","v":0},{"$f":"[1]Infrastructure!N994","v":0},{"$f":"[1]Infrastructure!O994","v":0},{"$f":"[1]Infrastructure!Q994","v":0},{"$f":"[1]Infrastructure!R994","v":0},{"$f":"[1]Infrastructure!T994","v":0},{"$f":"[1]Infrastructure!W994","v":0},{"$f":"[1]Infrastructure!W994","v":0},0,{"$f":"[1]Infrastructure!Z994","v":0},{"$f":"[1]Infrastructure!Z994","v":0},0,{"$f":"[1]Infrastructure!AB994","v":0},{"$f":"[1]Infrastructure!AB994","v":0},0,{"$f":"[1]Infrastructure!AC994","v":0},{"$f":"[1]Infrastructure!AD994","v":0},{"$f":"[1]Infrastructure!AE994","v":0},{"$f":"[1]Infrastructure!AF994","v":0},{"$f":"[1]Infrastructure!AG994","v":0},{"$f":"[1]Infrastructure!AH994","v":0},0]
[0,null,null,null,null,null,{"$f":"[1]Infrastructure!G995","v":0},{"$f":"[1]Infrastructure!H995","v":0},{"$f":"[1]Infrastructure!I995","v":0},{"$f":"[1]Infrastructure!J995","v":0},{"$f":"[1]Infrastructure!K995","v":0},{"$f":"[1]Infrastructure!L995","v":0},{"$f":"[1]Infrastructure!M995","v":0},{"$f":"[1]Infrastructure!N995","v":0},{"$f":"[1]Infrastructure!O995","v":0},{"$f":"[1]Infrastructure!Q995","v":0},{"$f":"[1]Infrastructure!R995","v":0},{"$f":"[1]Infrastructure!T995","v":0},{"$f":"[1]Infrastructure!W995","v":0},{"$f":"[1]Infrastructure!W995","v":0},0,{"$f":"[1]Infrastructure!Z995","v":0},{"$f":"[1]Infrastructure!Z995","v":0},0,{"$f":"[1]Infrastructure!AB995","v":0},{"$f":"[1]Infrastructure!AB995","v":0},0,{"$f":"[1]Infrastructure!AC995","v":0},{"$f":"[1]Infrastructure!AD995","v":0},{"$f":"[1]Infrastructure!AE995","v":0},{"$f":"[1]Infrastructure!AF995","v":0},{"$f":"[1]Infrastructure!AG995","v":0},{"$f":"[1]Infrastructure!AH995","v":0},0]
[0,null,null,null,null,null,{"$f":"[1]Infrastructure!G996","v":0},{"$f":"[1]Infrastructure!H996","v":0},{"$f":"[1]Infrastructure!I996","v":0},{"$f":"[1]Infrastructure!J996","v":0},{"$f":"[1]Infrastructure!K996","v":0},{"$f":"[1]Infrastructure!L996","v":0},{"$f":"[1]Infrastructure!M996","v":0},{"$f":"[1]Infrastructure!N996","v":0},{"$f":"[1]Infrastructure!O996","v":0},{"$f":"[1]Infrastructure!Q996","v":0},{"$f":"[1]Infrastructure!R996","v":0},{"$f":"[1]Infrastructure!T996","v":0},{"$f":"[1]Infrastructure!W996","v":0},{"$f":"[1]Infrastructure!W996","v":0},0,{"$f":"[1]Infrastructure!Z996","v":0},{"$f":"[1]Infrastructure!Z996","v":0},0,{"$f":"[1]Infrastructure!AB996","v":0},{"$f":"[1]Infrastructure!AB996","v":0},0,{"$f":"[1]Infrastructure!AC996","v":0},{"$f":"[1]Infrastructure!AD996","v":0},{"$f":"[1]Infrastructure!AE996","v":0},{"$f":"[1]Infrastructure!AF996","v":0},{"$f":"[1]Infrastructure!AG996","v":0},{"$f":"[1]Infrastructure!AH996","v":0},0]
[0,null,null,null,null,null,{"$f":"[1]Infrastructure!G997","v":0},{"$f":"[1]Infrastructure!H997","v":0},{"$f":"[1]Infrastructure!I997","v":0},{"$f":"[1]Infrastructure!J997","v":0},{"$f":"[1]Infrastructure!K997","v":0},{"$f":"[1]Infrastructure!L997","v":0},{"$f":"[1]Infrastructure!M997","v":0},{"$f":"[1]Infrastructure!N997","v":0},{"$f":"[1]Infrastructure!O997","v":0},{"$f":"[1]Infrastructure!Q997","v":0},{"$f":"[1]Infrastructure!R997","v":0},{"$f":"[1]Infrastructure!T997","v":0},{"$f":"[1]Infrastructure!W997","v":0},{"$f":"[1]Infrastructure!W997","v":0},0,{"$f":"[1]Infrastructure!Z997","v":0},{"$f":"[1]Infrastructure!Z997","v":0},0,{"$f":"[1]Infrastructure!AB997","v":0},{"$f":"[1]Infrastructure!AB997","v":0},0,{"$f":"[1]Infrastructure!AC997","v":0},{"$f":"[1]Infrastructure!AD997","v":0},{"$f":"[1]Infrastructure!AE997","v":0},{"$f":"[1]Infrastructure!AF997","v":0},{"$f":"[1]Infrastructure!AG997","v":0},{"$f":"[1]Infrastructure!AH997","v":0},0]
[0,null,null,null,null,null,{"$f":"[1]Infrastructure!G998","v":0},{"$f":"[1]Infrastructure!H998","v":0},{"$f":"[1]Infrastructure!I998","v":0},{"$f":"[1]Infrastructure!J998","v":0},{"$f":"[1]Infrastructure!K998","v":0},{"$f":"[1]Infrastructure!L998","v":0},{"$f":"[1]Infrastructure!M998","v":0},{"$f":"[1]Infrastructure!N998","v":0},{"$f":"[1]Infrastructure!O998","v":0},{"$f":"[1]Infrastructure!Q998","v":0},{"$f":"[1]Infrastructure!R998","v":0},{"$f":"[1]Infrastructure!T998","v":0},{"$f":"[1]Infrastructure!W998","v":0},{"$f":"[1]Infrastructure!W998","v":0},0,{"$f":"[1]Infrastructure!Z998","v":0},{"$f":"[1]Infrastructure!Z998","v":0},0,{"$f":"[1]Infrastructure!AB998","v":0},{"$f":"[1]Infrastructure!AB998","v":0},0,{"$f":"[1]Infrastructure!AC998","v":0},{"$f":"[1]Infrastructure!AD998","v":0},{"$f":"[1]Infrastructure!AE998","v":0},{"$f":"[1]Infrastructure!AF998","v":0},{"$f":"[1]Infrastructure!AG998","v":0},{"$f":"[1]Infrastructure!AH998","v":0},0]
[0,null,null,null,null,null,{"$f":"[1]Infrastructure!G999","v":0},{"$f":"[1]Infrastructure!H999","v":0},{"$f":"[1]Infrastructure!I999","v":0},{"$f":"[1]Infrastructure!J999","v":0},{"$f":"[1]Infrastructure!K999","v":0},{"$f":"[1]Infrastructure!L999","v":0},{"$f":"[1]Infrastructure!M999","v":0},{"$f":"[1]Infrastructure!N999","v":0},{"$f":"[1]Infrastructure!O999","v":0},{"$f":"[1]Infrastructure!Q999","v":0},{"$f":"[1]Infrastructure!R999","v":0},{"$f":"[1]Infrastructure!T999","v":0},{"$f":"[1]Infrastructure!W999","v":0},{"$f":"[1]Infrastructure!W999","v":0},0,{"$f":"[1]Infrastructure!Z999","v":0},{"$f":"[1]Infrastructure!Z999","v":0},0,{"$f":"[1]Infrastructure!AB999","v":0},{"$f":"[1]Infrastructure!AB999","v":0},0,{"$f":"[1]Infrastructure!AC999","v":0},{"$f":"[1]Infrastructure!AD999","v":0},{"$f":"[1]Infrastructure!AE999","v":0},{"$f":"[1]Infrastructure!AF999","v":0},{"$f":"[1]Infrastructure!AG999","v":0},{"$f":"[1]Infrastructure!AH999","v":0},0]
[0,null,null,null,null,null,{"$f":"[1]Infrastructure!G1000","v":0},{"$f":"[1]Infrastructure!H1000","v":0},{"$f":"[1]Infrastructure!I1000","v":0},{"$f":"[1]Infrastructure!J1000","v":0},{"$f":"[1]Infrastructure!K1000","v":0},{"$f":"[1]Infrastructure!L1000","v":0},{"$f":"[1]Infrastructure!M1000","v":0},{"$f":"[1]Infrastructure!N1000","v":0},{"$f":"[1]Infrastructure!O1000","v":0},{"$f":"[1]Infrastructure!Q1000","v":0},{"$f":"[1]Infrastructure!R1000","v":0},{"$f":"[1]Infrastructure!T1000","v":0},{"$f":"[1]Infrastructure!W1000","v":0},{"$f":"[1]Infrastructure!W1000","v":0},0,{"$f":"[1]Infrastructure!Z1000","v":0},{"$f":"[1]Infrastructure!Z1000","v":0},0,{"$f":"[1]Infrastructure!AB1000","v":0},{"$f":"[1]Infrastructure!AB1000","v":0},0,{"$f":"[1]Infrastructure!AC1000","v":0},{"$f":"[1]Infrastructure!AD1000","v":0},{"$f":"[1]Infrastructure!AE1000","v":0},{"$f":"[1]Infrastructure!AF1000","v":0},{"$f":"[1]Infrastructure!AG1000","v":0},{"$f":"[1]Infrastructure!AH1000","v":0},0]
[0,null,null,null,null,null,{"$f":"[1]Infrastructure!G1001","v":0},{"$f":"[1]Infrastructure!H1001","v":0},{"$f":"[1]Infrastructure!I1001","v":0},{"$f":"[1]Infrastructure!J1001","v":0},{"$f":"[1]Infrastructure!K1001","v":0},{"$f":"[1]Infrastructure!L1001","v":0},{"$f":"[1]Infrastructure!M1001","v":0},{"$f":"[1]Infrastructure!N1001","v":0},{"$f":"[1]Infrastructure!O1001","v":0},{"$f":"[1]Infrastructure!Q1001","v":0},{"$f":"[1]Infrastructure!R1001","v":0},{"$f":"[1]Infrastructure!T1001","v":0},{"$f":"[1]Infrastructure!W1001","v":0},{"$f":"[1]Infrastructure!W1001","v":0},0,{"$f":"[1]Infrastructure!Z1001","v":0},{"$f":"[1]Infrastructure!Z1001","v":0},0,{"$f":"[1]Infrastructure!AB1001","v":0},{"$f":"[1]Infrastructure!AB1001","v":0},0,{"$f":"[1]Infrastructure!AC1001","v":0},{"$f":"[1]Infrastructure!AD1001","v":0},{"$f":"[1]Infrastructure!AE1001","v":0},{"$f":"[1]Infrastructure!AF1001","v":0},{"$f":"[1]Infrastructure!AG1001","v":0},{"$f":"[1]Infrastructure!AH1001","v":0},0]
[0,null,null,null,null,null,{"$f":"[1]Infrastructure!G1002","v":0},{"$f":"[1]Infrastructure!H1002","v":0},{"$f":"[1]Infrastructure!I1002","v":0},{"$f":"[1]Infrastructure!J1002","v":0},{"$f":"[1]Infrastructure!K1002","v":0},{"$f":"[1]Infrastructure!L1002","v":0},{"$f":"[1]Infrastructure!M1002","v":0},{"$f":"[1]Infrastructure!N1002","v":0},{"$f":"[1]Infrastructure!O1002","v":0},{"$f":"[1]Infrastructure!Q1002","v":0},{"$f":"[1]Infrastructure!R1002","v":0},{"$f":"[1]Infrastructure!T1002","v":0},{"$f":"[1]Infrastructure!W1002","v":0},{"$f":"[1]Infrastructure!W1002","v":0},0,{"$f":"[1]Infrastructure!Z1002","v":0},{"$f":"[1]Infrastructure!Z1002","v":0},0,{"$f":"[1]Infrastructure!AB1002","v":0},{"$f":"[1]Infrastructure!AB1002","v":0},0,{"$f":"[1]Infrastructure!AC1002","v":0},{"$f":"[1]Infrastructure!AD1002","v":0},{"$f":"[1]Infrastructure!AE1002","v":0},{"$f":"[1]Infrastructure!AF1002","v":0},{"$f":"[1]Infrastructure!AG1002","v":0},{"$f":"[1]Infrastructure!AH1002","v":0},0]
[0,null,null,null,null,null,{"$f":"[1]Infrastructure!G1003","v":0},{"$f":"[1]Infrastructure!H1003","v":0},{"$f":"[1]Infrastructure!I1003","v":0},{"$f":"[1]Infrastructure!J1003","v":0},{"$f":"[1]Infrastructure!K1003","v":0},{"$f":"[1]Infrastructure!L1003","v":0},{"$f":"[1]Infrastructure!M1003","v":0},{"$f":"[1]Infrastructure!N1003","v":0},{"$f":"[1]Infrastructure!O1003","v":0},{"$f":"[1]Infrastructure!Q1003","v":0},{"$f":"[1]Infrastructure!R1003","v":0},{"$f":"[1]Infrastructure!T1003","v":0},{"$f":"[1]Infrastructure!W1003","v":0},{"$f":"[1]Infrastructure!W1003","v":0},0,{"$f":"[1]Infrastructure!Z1003","v":0},{"$f":"[1]Infrastructure!Z1003","v":0},0,{"$f":"[1]Infrastructure!AB1003","v":0},{"$f":"[1]Infrastructure!AB1003","v":0},0,{"$f":"[1]Infrastructure!AC1003","v":0},{"$f":"[1]Infrastructure!AD1003","v":0},{"$f":"[1]Infrastructure!AE1003","v":0},{"$f":"[1]Infrastructure!AF1003","v":0},{"$f":"[1]Infrastructure!AG1003","v":0},{"$f":"[1]Infrastructure!AH1003","v":0},0]
[0,null,null,null,null,null,{"$f":"[1]Infrastructure!G1004","v":0},{"$f":"[1]Infrastructure!H1004","v":0},{"$f":"[1]Infrastructure!I1004","v":0},{"$f":"[1]Infrastructure!J1004","v":0},{"$f":"[1]Infrastructure!K1004","v":0},{"$f":"[1]Infrastructure!L1004","v":0},{"$f":"[1]Infrastructure!M1004","v":0},{"$f":"[1]Infrastructure!N1004","v":0},{"$f":"[1]Infrastructure!O1004","v":0},{"$f":"[1]Infrastructure!Q1004","v":0},{"$f":"[1]Infrastructure!R1004","v":0},{"$f":"[1]Infrastructure!T1004","v":0},{"$f":"[1]Infrastructure!W1004","v":0},{"$f":"[1]Infrastructure!W1004","v":0},0,{"$f":"[1]Infrastructure!Z1004","v":0},{"$f":"[1]Infrastructure!Z1004","v":0},0,{"$f":"[1]Infrastructure!AB1004","v":0},{"$f":"[1]Infrastructure!AB1004","v":0},0,{"$f":"[1]Infrastructure!AC1004","v":0},{"$f":"[1]Infrastructure!AD1004","v":0},{"$f":"[1]Infrastructure!AE1004","v":0},{"$f":"[1]Infrastructure!AF1004","v":0},{"$f":"[1]Infrastructure!AG1004","v":0},{"$f":"[1]Infrastructure!AH1004","v":0},0]
[0,null,null,null,null,null,{"$f":"[1]Infrastructure!G1005","v":0},{"$f":"[1]Infrastructure!H1005","v":0},{"$f":"[1]Infrastructure!I1005","v":0},{"$f":"[1]Infrastructure!J1005","v":0},{"$f":"[1]Infrastructure!K1005","v":0},{"$f":"[1]Infrastructure!L1005","v":0},{"$f":"[1]Infrastructure!M1005","v":0},{"$f":"[1]Infrastructure!N1005","v":0},{"$f":"[1]Infrastructure!O1005","v":0},{"$f":"[1]Infrastructure!Q1005","v":0},{"$f":"[1]Infrastructure!R1005","v":0},{"$f":"[1]Infrastructure!T1005","v":0},{"$f":"[1]Infrastructure!W1005","v":0},{"$f":"[1]Infrastructure!W1005","v":0},0,{"$f":"[1]Infrastructure!Z1005","v":0},{"$f":"[1]Infrastructure!Z1005","v":0},0,{"$f":"[1]Infrastructure!AB1005","v":0},{"$f":"[1]Infrastructure!AB1005","v":0},0,{"$f":"[1]Infrastructure!AC1005","v":0},{"$f":"[1]Infrastructure!AD1005","v":0},{"$f":"[1]Infrastructure!AE1005","v":0},{"$f":"[1]Infrastructure!AF1005","v":0},{"$f":"[1]Infrastructure!AG1005","v":0},{"$f":"[1]Infrastructure!AH1005","v":0},0]
[0,null,null,null,null,null,{"$f":"[1]Infrastructure!G1006","v":0},{"$f":"[1]Infrastructure!H1006","v":0},{"$f":"[1]Infrastructure!I1006","v":0},{"$f":"[1]Infrastructure!J1006","v":0},{"$f":"[1]Infrastructure!K1006","v":0},{"$f":"[1]Infrastructure!L1006","v":0},{"$f":"[1]Infrastructure!M1006","v":0},{"$f":"[1]Infrastructure!N1006","v":0},{"$f":"[1]Infrastructure!O1006","v":0},{"$f":"[1]Infrastructure!Q1006","v":0},{"$f":"[1]Infrastructure!R1006","v":0},{"$f":"[1]Infrastructure!T1006","v":0},{"$f":"[1]Infrastructure!W1006","v":0},{"$f":"[1]Infrastructure!W1006","v":0},0,{"$f":"[1]Infrastructure!Z1006","v":0},{"$f":"[1]Infrastructure!Z1006","v":0},0,{"$f":"[1]Infrastructure!AB1006","v":0},{"$f":"[1]Infrastructure!AB1006","v":0},0,{"$f":"[1]Infrastructure!AC1006","v":0},{"$f":"[1]Infrastructure!AD1006","v":0},{"$f":"[1]Infrastructure!AE1006","v":0},{"$f":"[1]Infrastructure!AF1006","v":0},{"$f":"[1]Infrastructure!AG1006","v":0},{"$f":"[1]Infrastructure!AH1006","v":0},0]
[0,null,null,null,null,null,{"$f":"[1]Infrastructure!G1007","v":0},{"$f":"[1]Infrastructure!H1007","v":0},{"$f":"[1]Infrastructure!I1007","v":0},{"$f":"[1]Infrastructure!J1007","v":0},{"$f":"[1]Infrastructure!K1007","v":0},{"$f":"[1]Infrastructure!L1007","v":0},{"$f":"[1]Infrastructure!M1007","v":0},{"$f":"[1]Infrastructure!N1007","v":0},{"$f":"[1]Infrastructure!O1007","v":0},{"$f":"[1]Infrastructure!Q1007","v":0},{"$f":"[1]Infrastructure!R1007","v":0},{"$f":"[1]Infrastructure!T1007","v":0},{"$f":"[1]Infrastructure!W1007","v":0},{"$f":"[1]Infrastructure!W1007","v":0},0,{"$f":"[1]Infrastructure!Z1007","v":0},{"$f":"[1]Infrastructure!Z1007","v":0},0,{"$f":"[1]Infrastructure!AB1007","v":0},{"$f":"[1]Infrastructure!AB1007","v":0},0,{"$f":"[1]Infrastructure!AC1007","v":0},{"$f":"[1]Infrastructure!AD1007","v":0},{"$f":"[1]Infrastructure!AE1007","v":0},{"$f":"[1]Infrastructure!AF1007","v":0},{"$f":"[1]Infrastructure!AG1007","v":0},{"$f":"[1]Infrastructure!AH1007","v":0},0]
[0,null,null,null,null,null,{"$f":"[1]Infrastructure!G1008","v":0},{"$f":"[1]Infrastructure!H1008","v":0},{"$f":"[1]Infrastructure!I1008","v":0},{"$f":"[1]Infrastructure!J1008","v":0},{"$f":"[1]Infrastructure!K1008","v":0},{"$f":"[1]Infrastructure!L1008","v":0},{"$f":"[1]Infrastructure!M1008","v":0},{"$f":"[1]Infrastructure!N1008","v":0},{"$f":"[1]Infrastructure!O1008","v":0},{"$f":"[1]Infrastructure!Q1008","v":0},{"$f":"[1]Infrastructure!R1008","v":0},{"$f":"[1]Infrastructure!T1008","v":0},{"$f":"[1]Infrastructure!W1008","v":0},{"$f":"[1]Infrastructure!W1008","v":0},0,{"$f":"[1]Infrastructure!Z1008","v":0},{"$f":"[1]Infrastructure!Z1008","v":0},0,{"$f":"[1]Infrastructure!AB1008","v":0},{"$f":"[1]Infrastructure!AB1008","v":0},0,{"$f":"[1]Infrastructure!AC1008","v":0},{"$f":"[1]Infrastructure!AD1008","v":0},{"$f":"[1]Infrastructure!AE1008","v":0},{"$f":"[1]Infrastructure!AF1008","v":0},{"$f":"[1]Infrastructure!AG1008","v":0},{"$f":"[1]Infrastructure!AH1008","v":0},0]
[0,null,null,null,null,null,{"$f":"[1]Infrastructure!G1009","v":0},{"$f":"[1]Infrastructure!H1009","v":0},{"$f":"[1]Infrastructure!I1009","v":0},{"$f":"[1]Infrastructure!J1009","v":0},{"$f":"[1]Infrastructure!K1009","v":0},{"$f":"[1]Infrastructure!L1009","v":0},{"$f":"[1]Infrastructure!M1009","v":0},{"$f":"[1]Infrastructure!N1009","v":0},{"$f":"[1]Infrastructure!O1009","v":0},{"$f":"[1]Infrastructure!Q1009","v":0},{"$f":"[1]Infrastructure!R1009","v":0},{"$f":"[1]Infrastructure!T1009","v":0},{"$f":"[1]Infrastructure!W1009","v":0},{"$f":"[1]Infrastructure!W1009","v":0},0,{"$f":"[1]Infrastructure!Z1009","v":0},{"$f":"[1]Infrastructure!Z1009","v":0},0,{"$f":"[1]Infrastructure!AB1009","v":0},{"$f":"[1]Infrastructure!AB1009","v":0},0,{"$f":"[1]Infrastructure!AC1009","v":0},{"$f":"[1]Infrastructure!AD1009","v":0},{"$f":"[1]Infrastructure!AE1009","v":0},{"$f":"[1]Infrastructure!AF1009","v":0},{"$f":"[1]Infrastructure!AG1009","v":0},{"$f":"[1]Infrastructure!AH1009","v":0},0]
[0,null,null,null,null,null,{"$f":"[1]Infrastructure!G1010","v":0},{"$f":"[1]Infrastructure!H1010","v":0},{"$f":"[1]Infrastructure!I1010","v":0},{"$f":"[1]Infrastructure!J1010","v":0},{"$f":"[1]Infrastructure!K1010","v":0},{"$f":"[1]Infrastructure!L1010","v":0},{"$f":"[1]Infrastructure!M1010","v":0},{"$f":"[1]Infrastructure!N1010","v":0},{"$f":"[1]Infrastructure!O1010","v":0},{"$f":"[1]Infrastructure!Q1010","v":0},{"$f":"[1]Infrastructure!R1010","v":0},{"$f":"[1]Infrastructure!T1010","v":0},{"$f":"[1]Infrastructure!W1010","v":0},{"$f":"[1]Infrastructure!W1010","v":0},0,{"$f":"[1]Infrastructure!Z1010","v":0},{"$f":"[1]Infrastructure!Z1010","v":0},0,{"$f":"[1]Infrastructure!AB1010","v":0},{"$f":"[1]Infrastructure!AB1010","v":0},0,{"$f":"[1]Infrastructure!AC1010","v":0},{"$f":"[1]Infrastructure!AD1010","v":0},{"$f":"[1]Infrastructure!AE1010","v":0},{"$f":"[1]Infrastructure!AF1010","v":0},{"$f":"[1]Infrastructure!AG1010","v":0},{"$f":"[1]Infrastructure!AH1010","v":0},0]
[0,null,null,null,null,null,{"$f":"[1]Infrastructure!G1011","v":0},{"$f":"[1]Infrastructure!H1011","v":0},{"$f":"[1]Infrastructure!I1011","v":0},{"$f":"[1]Infrastructure!J1011","v":0},{"$f":"[1]Infrastructure!K1011","v":0},{"$f":"[1]Infrastructure!L1011","v":0},{"$f":"[1]Infrastructure!M1011","v":0},{"$f":"[1]Infrastructure!N1011","v":0},{"$f":"[1]Infrastructure!O1011","v":0},{"$f":"[1]Infrastructure!Q1011","v":0},{"$f":"[1]Infrastructure!R1011","v":0},{"$f":"[1]Infrastructure!T1011","v":0},{"$f":"[1]Infrastructure!W1011","v":0},{"$f":"[1]Infrastructure!W1011","v":0},0,{"$f":"[1]Infrastructure!Z1011","v":0},{"$f":"[1]Infrastructure!Z1011","v":0},0,{"$f":"[1]Infrastructure!AB1011","v":0},{"$f":"[1]Infrastructure!AB1011","v":0},0,{"$f":"[1]Infrastructure!AC1011","v":0},{"$f":"[1]Infrastructure!AD1011","v":0},{"$f":"[1]Infrastructure!AE1011","v":0},{"$f":"[1]Infrastructure!AF1011","v":0},{"$f":"[1]Infrastructure!AG1011","v":0},{"$f":"[1]Infrastructure!AH1011","v":0},0]
[0,null,null,null,null,null,{"$f":"[1]Infrastructure!G1012","v":0},{"$f":"[1]Infrastructure!H1012","v":0},{"$f":"[1]Infrastructure!I1012","v":0},{"$f":"[1]Infrastructure!J1012","v":0},{"$f":"[1]Infrastructure!K1012","v":0},{"$f":"[1]Infrastructure!L1012","v":0},{"$f":"[1]Infrastructure!M1012","v":0},{"$f":"[1]Infrastructure!N1012","v":0},{"$f":"[1]Infrastructure!O1012","v":0},{"$f":"[1]Infrastructure!Q1012","v":0},{"$f":"[1]Infrastructure!R1012","v":0},{"$f":"[1]Infrastructure!T1012","v":0},{"$f":"[1]Infrastructure!W1012","v":0},{"$f":"[1]Infrastructure!W1012","v":0},0,{"$f":"[1]Infrastructure!Z1012","v":0},{"$f":"[1]Infrastructure!Z1012","v":0},0,{"$f":"[1]Infrastructure!AB1012","v":0},{"$f":"[1]Infrastructure!AB1012","v":0},0,{"$f":"[1]Infrastructure!AC1012","v":0},{"$f":"[1]Infrastructure!AD1012","v":0},{"$f":"[1]Infrastructure!AE1012","v":0},{"$f":"[1]Infrastructure!AF1012","v":0},{"$f":"[1]Infrastructure!AG1012","v":0},{"$f":"[1]Infrastructure!AH1012","v":0},0]
[0,null,null,null,null,null,{"$f":"[1]Infrastructure!G1013","v":0},{"$f":"[1]Infrastructure!H1013","v":0},{"$f":"[1]Infrastructure!I1013","v":0},{"$f":"[1]Infrastructure!J1013","v":0},{"$f":"[1]Infrastructure!K1013","v":0},{"$f":"[1]Infrastructure!L1013","v":0},{"$f":"[1]Infrastructure!M1013","v":0},{"$f":"[1]Infrastructure!N1013","v":0},{"$f":"[1]Infrastructure!O1013","v":0},{"$f":"[1]Infrastructure!Q1013","v":0},{"$f":"[1]Infrastructure!R1013","v":0},{"$f":"[1]Infrastructure!T1013","v":0},{"$f":"[1]Infrastructure!W1013","v":0},{"$f":"[1]Infrastructure!W1013","v":0},0,{"$f":"[1]Infrastructure!Z1013","v":0},{"$f":"[1]Infrastructure!Z1013","v":0},0,{"$f":"[1]Infrastructure!AB1013","v":0},{"$f":"[1]Infrastructure!AB1013","v":0},0,{"$f":"[1]Infrastructure!AC1013","v":0},{"$f":"[1]Infrastructure!AD1013","v":0},{"$f":"[1]Infrastructure!AE1013","v":0},{"$f":"[1]Infrastructure!AF1013","v":0},{"$f":"[1]Infrastructure!AG1013","v":0},{"$f":"[1]Infrastructure!AH1013","v":0},0]
[0,null,null,null,null,null,{"$f":"[1]Infrastructure!G1014","v":0},{"$f":"[1]Infrastructure!H1014","v":0},{"$f":"[1]Infrastructure!I1014","v":0},{"$f":"[1]Infrastructure!J1014","v":0},{"$f":"[1]Infrastructure!K1014","v":0},{"$f":"[1]Infrastructure!L1014","v":0},{"$f":"[1]Infrastructure!M1014","v":0},{"$f":"[1]Infrastructure!N1014","v":0},{"$f":"[1]Infrastructure!O1014","v":0},{"$f":"[1]Infrastructure!Q1014","v":0},{"$f":"[1]Infrastructure!R1014","v":0},{"$f":"[1]Infrastructure!T1014","v":0},{"$f":"[1]Infrastructure!W1014","v":0},{"$f":"[1]Infrastructure!W1014","v":0},0,{"$f":"[1]Infrastructure!Z1014","v":0},{"$f":"[1]Infrastructure!Z1014","v":0},0,{"$f":"[1]Infrastructure!AB1014","v":0},{"$f":"[1]Infrastructure!AB1014","v":0},0,{"$f":"[1]Infrastructure!AC1014","v":0},{"$f":"[1]Infrastructure!AD1014","v":0},{"$f":"[1]Infrastructure!AE1014","v":0},{"$f":"[1]Infrastructure!AF1014","v":0},{"$f":"[1]Infrastructure!AG1014","v":0},{"$f":"[1]Infrastructure!AH1014","v":0},0]
[0,null,null,null,null,null,{"$f":"[1]Infrastructure!G1015","v":0},{"$f":"[1]Infrastructure!H1015","v":0},{"$f":"[1]Infrastructure!I1015","v":0},{"$f":"[1]Infrastructure!J1015","v":0},{"$f":"[1]Infrastructure!K1015","v":0},{"$f":"[1]Infrastructure!L1015","v":0},{"$f":"[1]Infrastructure!M1015","v":0},{"$f":"[1]Infrastructure!N1015","v":0},{"$f":"[1]Infrastructure!O1015","v":0},{"$f":"[1]Infrastructure!Q1015","v":0},{"$f":"[1]Infrastructure!R1015","v":0},{"$f":"[1]Infrastructure!T1015","v":0},{"$f":"[1]Infrastructure!W1015","v":0},{"$f":"[1]Infrastructure!W1015","v":0},0,{"$f":"[1]Infrastructure!Z1015","v":0},{"$f":"[1]Infrastructure!Z1015","v":0},0,{"$f":"[1]Infrastructure!AB1015","v":0},{"$f":"[1]Infrastructure!AB1015","v":0},0,{"$f":"[1]Infrastructure!AC1015","v":0},{"$f":"[1]Infrastructure!AD1015","v":0},{"$f":"[1]Infrastructure!AE1015","v":0},{"$f":"[1]Infrastructure!AF1015","v":0},{"$f":"[1]Infrastructure!AG1015","v":0},{"$f":"[1]Infrastructure!AH1015","v":0},0]
[0,null,null,null,null,null,{"$f":"[1]Infrastructure!G1016","v":0},{"$f":"[1]Infrastructure!H1016","v":0},{"$f":"[1]Infrastructure!I1016","v":0},{"$f":"[1]Infrastructure!J1016","v":0},{"$f":"[1]Infrastructure!K1016","v":0},{"$f":"[1]Infrastructure!L1016","v":0},{"$f":"[1]Infrastructure!M1016","v":0},{"$f":"[1]Infrastructure!N1016","v":0},{"$f":"[1]Infrastructure!O1016","v":0},{"$f":"[1]Infrastructure!Q1016","v":0},{"$f":"[1]Infrastructure!R1016","v":0},{"$f":"[1]Infrastructure!T1016","v":0},{"$f":"[1]Infrastructure!W1016","v":0},{"$f":"[1]Infrastructure!W1016","v":0},0,{"$f":"[1]Infrastructure!Z1016","v":0},{"$f":"[1]Infrastructure!Z1016","v":0},0,{"$f":"[1]Infrastructure!AB1016","v":0},{"$f":"[1]Infrastructure!AB1016","v":0},0,{"$f":"[1]Infrastructure!AC1016","v":0},{"$f":"[1]Infrastructure!AD1016","v":0},{"$f":"[1]Infrastructure!AE1016","v":0},{"$f":"[1]Infrastructure!AF1016","v":0},{"$f":"[1]Infrastructure!AG1016","v":0},{"$f":"[1]Infrastructure!AH1016","v":0},0]
[0,null,null,null,null,null,{"$f":"[1]Infrastructure!G1017","v":0},{"$f":"[1]Infrastructure!H1017","v":0},{"$f":"[1]Infrastructure!I1017","v":0},{"$f":"[1]Infrastructure!J1017","v":0},{"$f":"[1]Infrastructure!K1017","v":0},{"$f":"[1]Infrastructure!L1017","v":0},{"$f":"[1]Infrastructure!M1017","v":0},{"$f":"[1]Infrastructure!N1017","v":0},{"$f":"[1]Infrastructure!O1017","v":0},{"$f":"[1]Infrastructure!Q1017","v":0},{"$f":"[1]Infrastructure!R1017","v":0},{"$f":"[1]Infrastructure!T1017","v":0},{"$f":"[1]Infrastructure!W1017","v":0},{"$f":"[1]Infrastructure!W1017","v":0},0,{"$f":"[1]Infrastructure!Z1017","v":0},{"$f":"[1]Infrastructure!Z1017","v":0},0,{"$f":"[1]Infrastructure!AB1017","v":0},{"$f":"[1]Infrastructure!AB1017","v":0},0,{"$f":"[1]Infrastructure!AC1017","v":0},{"$f":"[1]Infrastructure!AD1017","v":0},{"$f":"[1]Infrastructure!AE1017","v":0},{"$f":"[1]Infrastructure!AF1017","v":0},{"$f":"[1]Infrastructure!AG1017","v":0},{"$f":"[1]Infrastructure!AH1017","v":0},0]
[0,null,null,null,null,null,{"$f":"[1]Infrastructure!G1018","v":0},{"$f":"[1]Infrastructure!H1018","v":0},{"$f":"[1]Infrastructure!I1018","v":0},{"$f":"[1]Infrastructure!J1018","v":0},{"$f":"[1]Infrastructure!K1018","v":0},{"$f":"[1]Infrastructure!L1018","v":0},{"$f":"[1]Infrastructure!M1018","v":0},{"$f":"[1]Infrastructure!N1018","v":0},{"$f":"[1]Infrastructure!O1018","v":0},{"$f":"[1]Infrastructure!Q1018","v":0},{"$f":"[1]Infrastructure!R1018","v":0},{"$f":"[1]Infrastructure!T1018","v":0},{"$f":"[1]Infrastructure!W1018","v":0},{"$f":"[1]Infrastructure!W1018","v":0},0,{"$f":"[1]Infrastructure!Z1018","v":0},{"$f":"[1]Infrastructure!Z1018","v":0},0,{"$f":"[1]Infrastructure!AB1018","v":0},{"$f":"[1]Infrastructure!AB1018","v":0},0,{"$f":"[1]Infrastructure!AC1018","v":0},{"$f":"[1]Infrastructure!AD1018","v":0},{"$f":"[1]Infrastructure!AE1018","v":0},{"$f":"[1]Infrastructure!AF1018","v":0},{"$f":"[1]Infrastructure!AG1018","v":0},{"$f":"[1]Infrastructure!AH1018","v":0},0]
[0,null,null,null,null,null,{"$f":"[1]Infrastructure!G1019","v":0},{"$f":"[1]Infrastructure!H1019","v":0},{"$f":"[1]Infrastructure!I1019","v":0},{"$f":"[1]Infrastructure!J1019","v":0},{"$f":"[1]Infrastructure!K1019","v":0},{"$f":"[1]Infrastructure!L1019","v":0},{"$f":"[1]Infrastructure!M1019","v":0},{"$f":"[1]Infrastructure!N1019","v":0},{"$f":"[1]Infrastructure!O1019","v":0},{"$f":"[1]Infrastructure!Q1019","v":0},{"$f":"[1]Infrastructure!R1019","v":0},{"$f":"[1]Infrastructure!T1019","v":0},{"$f":"[1]Infrastructure!W1019","v":0},{"$f":"[1]Infrastructure!W1019","v":0},0,{"$f":"[1]Infrastructure!Z1019","v":0},{"$f":"[1]Infrastructure!Z1019","v":0},0,{"$f":"[1]Infrastructure!AB1019","v":0},{"$f":"[1]Infrastructure!AB1019","v":0},0,{"$f":"[1]Infrastructure!AC1019","v":0},{"$f":"[1]Infrastructure!AD1019","v":0},{"$f":"[1]Infrastructure!AE1019","v":0},{"$f":"[1]Infrastructure!AF1019","v":0},{"$f":"[1]Infrastructure!AG1019","v":0},{"$f":"[1]Infrastructure!AH1019","v":0},0]
[0,null,null,null,null,null,{"$f":"[1]Infrastructure!G1020","v":0},{"$f":"[1]Infrastructure!H1020","v":0},{"$f":"[1]Infrastructure!I1020","v":0},{"$f":"[1]Infrastructure!J1020","v":0},{"$f":"[1]Infrastructure!K1020","v":0},{"$f":"[1]Infrastructure!L1020","v":0},{"$f":"[1]Infrastructure!M1020","v":0},{"$f":"[1]Infrastructure!N1020","v":0},{"$f":"[1]Infrastructure!O1020","v":0},{"$f":"[1]Infrastructure!Q1020","v":0},{"$f":"[1]Infrastructure!R1020","v":0},{"$f":"[1]Infrastructure!T1020","v":0},{"$f":"[1]Infrastructure!W1020","v":0},{"$f":"[1]Infrastructure!W1020","v":0},0,{"$f":"[1]Infrastructure!Z1020","v":0},{"$f":"[1]Infrastructure!Z1020","v":0},0,{"$f":"[1]Infrastructure!AB1020","v":0},{"$f":"[1]Infrastructure!AB1020","v":0},0,{"$f":"[1]Infrastructure!AC1020","v":0},{"$f":"[1]Infrastructure!AD1020","v":0},{"$f":"[1]Infrastructure!AE1020","v":0},{"$f":"[1]Infrastructure!AF1020","v":0},{"$f":"[1]Infrastructure!AG1020","v":0},{"$f":"[1]Infrastructure!AH1020","v":0},0]
[0,null,null,null,null,null,{"$f":"[1]Infrastructure!G1021","v":0},{"$f":"[1]Infrastructure!H1021","v":0},{"$f":"[1]Infrastructure!I1021","v":0},{"$f":"[1]Infrastructure!J1021","v":0},{"$f":"[1]Infrastructure!K1021","v":0},{"$f":"[1]Infrastructure!L1021","v":0},{"$f":"[1]Infrastructure!M1021","v":0},{"$f":"[1]Infrastructure!N1021","v":0},{"$f":"[1]Infrastructure!O1021","v":0},{"$f":"[1]Infrastructure!Q1021","v":0},{"$f":"[1]Infrastructure!R1021","v":0},{"$f":"[1]Infrastructure!T1021","v":0},{"$f":"[1]Infrastructure!W1021","v":0},{"$f":"[1]Infrastructure!W1021","v":0},0,{"$f":"[1]Infrastructure!Z1021","v":0},{"$f":"[1]Infrastructure!Z1021","v":0},0,{"$f":"[1]Infrastructure!AB1021","v":0},{"$f":"[1]Infrastructure!AB1021","v":0},0,{"$f":"[1]Infrastructure!AC1021","v":0},{"$f":"[1]Infrastructure!AD1021","v":0},{"$f":"[1]Infrastructure!AE1021","v":0},{"$f":"[1]Infrastructure!AF1021","v":0},{"$f":"[1]Infrastructure!AG1021","v":0},{"$f":"[1]Infrastructure!AH1021","v":0},0]
[0,null,null,null,null,null,{"$f":"[1]Infrastructure!G1022","v":0},{"$f":"[1]Infrastructure!H1022","v":0},{"$f":"[1]Infrastructure!I1022","v":0},{"$f":"[1]Infrastructure!J1022","v":0},{"$f":"[1]Infrastructure!K1022","v":0},{"$f":"[1]Infrastructure!L1022","v":0},{"$f":"[1]Infrastructure!M1022","v":0},{"$f":"[1]Infrastructure!N1022","v":0},{"$f":"[1]Infrastructure!O1022","v":0},{"$f":"[1]Infrastructure!Q1022","v":0},{"$f":"[1]Infrastructure!R1022","v":0},{"$f":"[1]Infrastructure!T1022","v":0},{"$f":"[1]Infrastructure!W1022","v":0},{"$f":"[1]Infrastructure!W1022","v":0},0,{"$f":"[1]Infrastructure!Z1022","v":0},{"$f":"[1]Infrastructure!Z1022","v":0},0,{"$f":"[1]Infrastructure!AB1022","v":0},{"$f":"[1]Infrastructure!AB1022","v":0},0,{"$f":"[1]Infrastructure!AC1022","v":0},{"$f":"[1]Infrastructure!AD1022","v":0},{"$f":"[1]Infrastructure!AE1022","v":0},{"$f":"[1]Infrastructure!AF1022","v":0},{"$f":"[1]Infrastructure!AG1022","v":0},{"$f":"[1]Infrastructure!AH1022","v":0},0]
[0,null,null,null,null,null,{"$f":"[1]Infrastructure!G1023","v":0},{"$f":"[1]Infrastructure!H1023","v":0},{"$f":"[1]Infrastructure!I1023","v":0},{"$f":"[1]Infrastructure!J1023","v":0},{"$f":"[1]Infrastructure!K1023","v":0},{"$f":"[1]Infrastructure!L1023","v":0},{"$f":"[1]Infrastructure!M1023","v":0},{"$f":"[1]Infrastructure!N1023","v":0},{"$f":"[1]Infrastructure!O1023","v":0},{"$f":"[1]Infrastructure!Q1023","v":0},{"$f":"[1]Infrastructure!R1023","v":0},{"$f":"[1]Infrastructure!T1023","v":0},{"$f":"[1]Infrastructure!W1023","v":0},{"$f":"[1]Infrastructure!W1023","v":0},0,{"$f":"[1]Infrastructure!Z1023","v":0},{"$f":"[1]Infrastructure!Z1023","v":0},0,{"$f":"[1]Infrastructure!AB1023","v":0},{"$f":"[1]Infrastructure!AB1023","v":0},0,{"$f":"[1]Infrastructure!AC1023","v":0},{"$f":"[1]Infrastructure!AD1023","v":0},{"$f":"[1]Infrastructure!AE1023","v":0},{"$f":"[1]Infrastructure!AF1023","v":0},{"$f":"[1]Infrastructure!AG1023","v":0},{"$f":"[1]Infrastructure!AH1023","v":0},0]
[0,null,null,null,null,null,{"$f":"[1]Infrastructure!G1024","v":0},{"$f":"[1]Infrastructure!H1024","v":0},{"$f":"[1]Infrastructure!I1024","v":0},{"$f":"[1]Infrastructure!J1024","v":0},{"$f":"[1]Infrastructure!K1024","v":0},{"$f":"[1]Infrastructure!L1024","v":0},{"$f":"[1]Infrastructure!M1024","v":0},{"$f":"[1]Infrastructure!N1024","v":0},{"$f":"[1]Infrastructure!O1024","v":0},{"$f":"[1]Infrastructure!Q1024","v":0},{"$f":"[1]Infrastructure!R1024","v":0},{"$f":"[1]Infrastructure!T1024","v":0},{"$f":"[1]Infrastructure!W1024","v":0},{"$f":"[1]Infrastructure!W1024","v":0},0,{"$f":"[1]Infrastructure!Z1024","v":0},{"$f":"[1]Infrastructure!Z1024","v":0},0,{"$f":"[1]Infrastructure!AB1024","v":0},{"$f":"[1]Infrastructure!AB1024","v":0},0,{"$f":"[1]Infrastructure!AC1024","v":0},{"$f":"[1]Infrastructure!AD1024","v":0},{"$f":"[1]Infrastructure!AE1024","v":0},{"$f":"[1]Infrastructure!AF1024","v":0},{"$f":"[1]Infrastructure!AG1024","v":0},{"$f":"[1]Infrastructure!AH1024","v":0},0]
[0,null,null,null,null,null,{"$f":"[1]Infrastructure!G1025","v":0},{"$f":"[1]Infrastructure!H1025","v":0},{"$f":"[1]Infrastructure!I1025","v":0},{"$f":"[1]Infrastructure!J1025","v":0},{"$f":"[1]Infrastructure!K1025","v":0},{"$f":"[1]Infrastructure!L1025","v":0},{"$f":"[1]Infrastructure!M1025","v":0},{"$f":"[1]Infrastructure!N1025","v":0},{"$f":"[1]Infrastructure!O1025","v":0},{"$f":"[1]Infrastructure!Q1025","v":0},{"$f":"[1]Infrastructure!R1025","v":0},{"$f":"[1]Infrastructure!T1025","v":0},{"$f":"[1]Infrastructure!W1025","v":0},{"$f":"[1]Infrastructure!W1025","v":0},0,{"$f":"[1]Infrastructure!Z1025","v":0},{"$f":"[1]Infrastructure!Z1025","v":0},0,{"$f":"[1]Infrastructure!AB1025","v":0},{"$f":"[1]Infrastructure!AB1025","v":0},0,{"$f":"[1]Infrastructure!AC1025","v":0},{"$f":"[1]Infrastructure!AD1025","v":0},{"$f":"[1]Infrastructure!AE1025","v":0},{"$f":"[1]Infrastructure!AF1025","v":0},{"$f":"[1]Infrastructure!AG1025","v":0},{"$f":"[1]Infrastructure!AH1025","v":0},0]
[0,null,null,null,null,null,{"$f":"[1]Infrastructure!G1026","v":0},{"$f":"[1]Infrastructure!H1026","v":0},{"$f":"[1]Infrastructure!I1026","v":0},{"$f":"[1]Infrastructure!J1026","v":0},{"$f":"[1]Infrastructure!K1026","v":0},{"$f":"[1]Infrastructure!L1026","v":0},{"$f":"[1]Infrastructure!M1026","v":0},{"$f":"[1]Infrastructure!N1026","v":0},{"$f":"[1]Infrastructure!O1026","v":0},{"$f":"[1]Infrastructure!Q1026","v":0},{"$f":"[1]Infrastructure!R1026","v":0},{"$f":"[1]Infrastructure!T1026","v":0},{"$f":"[1]Infrastructure!W1026","v":0},{"$f":"[1]Infrastructure!W1026","v":0},0,{"$f":"[1]Infrastructure!Z1026","v":0},{"$f":"[1]Infrastructure!Z1026","v":0},0,{"$f":"[1]Infrastructure!AB1026","v":0},{"$f":"[1]Infrastructure!AB1026","v":0},0,{"$f":"[1]Infrastructure!AC1026","v":0},{"$f":"[1]Infrastructure!AD1026","v":0},{"$f":"[1]Infrastructure!AE1026","v":0},{"$f":"[1]Infrastructure!AF1026","v":0},{"$f":"[1]Infrastructure!AG1026","v":0},{"$f":"[1]Infrastructure!AH1026","v":0},0]
[0,null,null,null,null,null,{"$f":"[1]Infrastructure!G1027","v":0},{"$f":"[1]Infrastructure!H1027","v":0},{"$f":"[1]Infrastructure!I1027","v":0},{"$f":"[1]Infrastructure!J1027","v":0},{"$f":"[1]Infrastructure!K1027","v":0},{"$f":"[1]Infrastructure!L1027","v":0},{"$f":"[1]Infrastructure!M1027","v":0},{"$f":"[1]Infrastructure!N1027","v":0},{"$f":"[1]Infrastructure!O1027","v":0},{"$f":"[1]Infrastructure!Q1027","v":0},{"$f":"[1]Infrastructure!R1027","v":0},{"$f":"[1]Infrastructure!T1027","v":0},{"$f":"[1]Infrastructure!W1027","v":0},{"$f":"[1]Infrastructure!W1027","v":0},0,{"$f":"[1]Infrastructure!Z1027","v":0},{"$f":"[1]Infrastructure!Z1027","v":0},0,{"$f":"[1]Infrastructure!AB1027","v":0},{"$f":"[1]Infrastructure!AB1027","v":0},0,{"$f":"[1]Infrastructure!AC1027","v":0},{"$f":"[1]Infrastructure!AD1027","v":0},{"$f":"[1]Infrastructure!AE1027","v":0},{"$f":"[1]Infrastructure!AF1027","v":0},{"$f":"[1]Infrastructure!AG1027","v":0},{"$f":"[1]Infrastructure!AH1027","v":0},0]
[0,null,null,null,null,null,{"$f":"[1]Infrastructure!G1028","v":0},{"$f":"[1]Infrastructure!H1028","v":0},{"$f":"[1]Infrastructure!I1028","v":0},{"$f":"[1]Infrastructure!J1028","v":0},{"$f":"[1]Infrastructure!K1028","v":0},{"$f":"[1]Infrastructure!L1028","v":0},{"$f":"[1]Infrastructure!M1028","v":0},{"$f":"[1]Infrastructure!N1028","v":0},{"$f":"[1]Infrastructure!O1028","v":0},{"$f":"[1]Infrastructure!Q1028","v":0},{"$f":"[1]Infrastructure!R1028","v":0},{"$f":"[1]Infrastructure!T1028","v":0},{"$f":"[1]Infrastructure!W1028","v":0},{"$f":"[1]Infrastructure!W1028","v":0},0,{"$f":"[1]Infrastructure!Z1028","v":0},{"$f":"[1]Infrastructure!Z1028","v":0},0,{"$f":"[1]Infrastructure!AB1028","v":0},{"$f":"[1]Infrastructure!AB1028","v":0},0,{"$f":"[1]Infrastructure!AC1028","v":0},{"$f":"[1]Infrastructure!AD1028","v":0},{"$f":"[1]Infrastructure!AE1028","v":0},{"$f":"[1]Infrastructure!AF1028","v":0},{"$f":"[1]Infrastructure!AG1028","v":0},{"$f":"[1]Infrastructure!AH1028","v":0},0]
[0,null,null,null,null,null,{"$f":"[1]Infrastructure!G1029","v":0},{"$f":"[1]Infrastructure!H1029","v":0},{"$f":"[1]Infrastructure!I1029","v":0},{"$f":"[1]Infrastructure!J1029","v":0},{"$f":"[1]Infrastructure!K1029","v":0},{"$f":"[1]Infrastructure!L1029","v":0},{"$f":"[1]Infrastructure!M1029","v":0},{"$f":"[1]Infrastructure!N1029","v":0},{"$f":"[1]Infrastructure!O1029","v":0},{"$f":"[1]Infrastructure!Q1029","v":0},{"$f":"[1]Infrastructure!R1029","v":0},{"$f":"[1]Infrastructure!T1029","v":0},{"$f":"[1]Infrastructure!W1029","v":0},{"$f":"[1]Infrastructure!W1029","v":0},0,{"$f":"[1]Infrastructure!Z1029","v":0},{"$f":"[1]Infrastructure!Z1029","v":0},0,{"$f":"[1]Infrastructure!AB1029","v":0},{"$f":"[1]Infrastructure!AB1029","v":0},0,{"$f":"[1]Infrastructure!AC1029","v":0},{"$f":"[1]Infrastructure!AD1029","v":0},{"$f":"[1]Infrastructure!AE1029","v":0},{"$f":"[1]Infrastructure!AF1029","v":0},{"$f":"[1]Infrastructure!AG1029","v":0},{"$f":"[1]Infrastructure!AH1029","v":0},0]
[0,null,null,null,null,null,{"$f":"[1]Infrastructure!G1030","v":0},{"$f":"[1]Infrastructure!H1030","v":0},{"$f":"[1]Infrastructure!I1030","v":0},{"$f":"[1]Infrastructure!J1030","v":0},{"$f":"[1]Infrastructure!K1030","v":0},{"$f":"[1]Infrastructure!L1030","v":0},{"$f":"[1]Infrastructure!M1030","v":0},{"$f":"[1]Infrastructure!N1030","v":0},{"$f":"[1]Infrastructure!O1030","v":0},{"$f":"[1]Infrastructure!Q1030","v":0},{"$f":"[1]Infrastructure!R1030","v":0},{"$f":"[1]Infrastructure!T1030","v":0},{"$f":"[1]Infrastructure!W1030","v":0},{"$f":"[1]Infrastructure!W1030","v":0},0,{"$f":"[1]Infrastructure!Z1030","v":0},{"$f":"[1]Infrastructure!Z1030","v":0},0,{"$f":"[1]Infrastructure!AB1030","v":0},{"$f":"[1]Infrastructure!AB1030","v":0},0,{"$f":"[1]Infrastructure!AC1030","v":0},{"$f":"[1]Infrastructure!AD1030","v":0},{"$f":"[1]Infrastructure!AE1030","v":0},{"$f":"[1]Infrastructure!AF1030","v":0},{"$f":"[1]Infrastructure!AG1030","v":0},{"$f":"[1]Infrastructure!AH1030","v":0},0]
[0,null,null,null,null,null,{"$f":"[1]Infrastructure!G1031","v":0},{"$f":"[1]Infrastructure!H1031","v":0},{"$f":"[1]Infrastructure!I1031","v":0},{"$f":"[1]Infrastructure!J1031","v":0},{"$f":"[1]Infrastructure!K1031","v":0},{"$f":"[1]Infrastructure!L1031","v":0},{"$f":"[1]Infrastructure!M1031","v":0},{"$f":"[1]Infrastructure!N1031","v":0},{"$f":"[1]Infrastructure!O1031","v":0},{"$f":"[1]Infrastructure!Q1031","v":0},{"$f":"[1]Infrastructure!R1031","v":0},{"$f":"[1]Infrastructure!T1031","v":0},{"$f":"[1]Infrastructure!W1031","v":0},{"$f":"[1]Infrastructure!W1031","v":0},0,{"$f":"[1]Infrastructure!Z1031","v":0},{"$f":"[1]Infrastructure!Z1031","v":0},0,{"$f":"[1]Infrastructure!AB1031","v":0},{"$f":"[1]Infrastructure!AB1031","v":0},0,{"$f":"[1]Infrastructure!AC1031","v":0},{"$f":"[1]Infrastructure!AD1031","v":0},{"$f":"[1]Infrastructure!AE1031","v":0},{"$f":"[1]Infrastructure!AF1031","v":0},{"$f":"[1]Infrastructure!AG1031","v":0},{"$f":"[1]Infrastructure!AH1031","v":0},0]
[0,null,null,null,null,null,{"$f":"[1]Infrastructure!G1032","v":0},{"$f":"[1]Infrastructure!H1032","v":0},{"$f":"[1]Infrastructure!I1032","v":0},{"$f":"[1]Infrastructure!J1032","v":0},{"$f":"[1]Infrastructure!K1032","v":0},{"$f":"[1]Infrastructure!L1032","v":0},{"$f":"[1]Infrastructure!M1032","v":0},{"$f":"[1]Infrastructure!N1032","v":0},{"$f":"[1]Infrastructure!O1032","v":0},{"$f":"[1]Infrastructure!Q1032","v":0},{"$f":"[1]Infrastructure!R1032","v":0},{"$f":"[1]Infrastructure!T1032","v":0},{"$f":"[1]Infrastructure!W1032","v":0},{"$f":"[1]Infrastructure!W1032","v":0},0,{"$f":"[1]Infrastructure!Z1032","v":0},{"$f":"[1]Infrastructure!Z1032","v":0},0,{"$f":"[1]Infrastructure!AB1032","v":0},{"$f":"[1]Infrastructure!AB1032","v":0},0,{"$f":"[1]Infrastructure!AC1032","v":0},{"$f":"[1]Infrastructure!AD1032","v":0},{"$f":"[1]Infrastructure!AE1032","v":0},{"$f":"[1]Infrastructure!AF1032","v":0},{"$f":"[1]Infrastructure!AG1032","v":0},{"$f":"[1]Infrastructure!AH1032","v":0},0]
[0,null,null,null,null,null,{"$f":"[1]Infrastructure!G1033","v":0},{"$f":"[1]Infrastructure!H1033","v":0},{"$f":"[1]Infrastructure!I1033","v":0},{"$f":"[1]Infrastructure!J1033","v":0},{"$f":"[1]Infrastructure!K1033","v":0},{"$f":"[1]Infrastructure!L1033","v":0},{"$f":"[1]Infrastructure!M1033","v":0},{"$f":"[1]Infrastructure!N1033","v":0},{"$f":"[1]Infrastructure!O1033","v":0},{"$f":"[1]Infrastructure!Q1033","v":0},{"$f":"[1]Infrastructure!R1033","v":0},{"$f":"[1]Infrastructure!T1033","v":0},{"$f":"[1]Infrastructure!W1033","v":0},{"$f":"[1]Infrastructure!W1033","v":0},0,{"$f":"[1]Infrastructure!Z1033","v":0},{"$f":"[1]Infrastructure!Z1033","v":0},0,{"$f":"[1]Infrastructure!AB1033","v":0},{"$f":"[1]Infrastructure!AB1033","v":0},0,{"$f":"[1]Infrastructure!AC1033","v":0},{"$f":"[1]Infrastructure!AD1033","v":0},{"$f":"[1]Infrastructure!AE1033","v":0},{"$f":"[1]Infrastructure!AF1033","v":0},{"$f":"[1]Infrastructure!AG1033","v":0},{"$f":"[1]Infrastructure!AH1033","v":0},0]
[0,null,null,null,null,null,{"$f":"[1]Infrastructure!G1034","v":0},{"$f":"[1]Infrastructure!H1034","v":0},{"$f":"[1]Infrastructure!I1034","v":0},{"$f":"[1]Infrastructure!J1034","v":0},{"$f":"[1]Infrastructure!K1034","v":0},{"$f":"[1]Infrastructure!L1034","v":0},{"$f":"[1]Infrastructure!M1034","v":0},{"$f":"[1]Infrastructure!N1034","v":0},{"$f":"[1]Infrastructure!O1034","v":0},{"$f":"[1]Infrastructure!Q1034","v":0},{"$f":"[1]Infrastructure!R1034","v":0},{"$f":"[1]Infrastructure!T1034","v":0},{"$f":"[1]Infrastructure!W1034","v":0},{"$f":"[1]Infrastructure!W1034","v":0},0,{"$f":"[1]Infrastructure!Z1034","v":0},{"$f":"[1]Infrastructure!Z1034","v":0},0,{"$f":"[1]Infrastructure!AB1034","v":0},{"$f":"[1]Infrastructure!AB1034","v":0},0,{"$f":"[1]Infrastructure!AC1034","v":0},{"$f":"[1]Infrastructure!AD1034","v":0},{"$f":"[1]Infrastructure!AE1034","v":0},{"$f":"[1]Infrastructure!AF1034","v":0},{"$f":"[1]Infrastructure!AG1034","v":0},{"$f":"[1]Infrastructure!AH1034","v":0},0]
[0,null,null,null,null,null,{"$f":"[1]Infrastructure!G1035","v":0},{"$f":"[1]Infrastructure!H1035","v":0},{"$f":"[1]Infrastructure!I1035","v":0},{"$f":"[1]Infrastructure!J1035","v":0},{"$f":"[1]Infrastructure!K1035","v":0},{"$f":"[1]Infrastructure!L1035","v":0},{"$f":"[1]Infrastructure!M1035","v":0},{"$f":"[1]Infrastructure!N1035","v":0},{"$f":"[1]Infrastructure!O1035","v":0},{"$f":"[1]Infrastructure!Q1035","v":0},{"$f":"[1]Infrastructure!R1035","v":0},{"$f":"[1]Infrastructure!T1035","v":0},{"$f":"[1]Infrastructure!W1035","v":0},{"$f":"[1]Infrastructure!W1035","v":0},0,{"$f":"[1]Infrastructure!Z1035","v":0},{"$f":"[1]Infrastructure!Z1035","v":0},0,{"$f":"[1]Infrastructure!AB1035","v":0},{"$f":"[1]Infrastructure!AB1035","v":0},0,{"$f":"[1]Infrastructure!AC1035","v":0},{"$f":"[1]Infrastructure!AD1035","v":0},{"$f":"[1]Infrastructure!AE1035","v":0},{"$f":"[1]Infrastructure!AF1035","v":0},{"$f":"[1]Infrastructure!AG1035","v":0},{"$f":"[1]Infrastructure!AH1035","v":0},0]
[{"$f":"IF(SUM(O1036:AH1036),1,0)","v":0},null,null,null,null,null,{"$f":"[1]Infrastructure!G1036","v":0},{"$f":"[1]Infrastructure!H1036","v":0},{"$f":"[1]Infrastructure!I1036","v":0},{"$f":"[1]Infrastructure!J1036","v":0},{"$f":"[1]Infrastructure!K1036","v":0},{"$f":"[1]Infrastructure!L1036","v":0},{"$f":"[1]Infrastructure!M1036","v":0},{"$f":"[1]Infrastructure!N1036","v":0},{"$f":"[1]Infrastructure!O1036","v":0},{"$f":"[1]Infrastructure!Q1036","v":0},{"$f":"[1]Infrastructure!R1036","v":0},{"$f":"[1]Infrastructure!T1036","v":0},{"$f":"[1]Infrastructure!W1036","v":0},{"$f":"[1]Infrastructure!W1036","v":0},0,{"$f":"[1]Infrastructure!Z1036","v":0},{"$f":"[1]Infrastructure!Z1036","v":0},0,{"$f":"[1]Infrastructure!AB1036","v":0},{"$f":"[1]Infrastructure!AB1036","v":0},0,{"$f":"[1]Infrastructure!AC1036","v":0},{"$f":"[1]Infrastructure!AD1036","v":0},{"$f":"[1]Infrastructure!AE1036","v":0},{"$f":"[1]Infrastructure!AF1036","v":0},{"$f":"[1]Infrastructure!AG1036","v":0},{"$f":"[1]Infrastructure!AH1036","v":0},0]
[0,null,null,null,null,null,{"$f":"[1]Infrastructure!G1037","v":0},{"$f":"[1]Infrastructure!H1037","v":0},{"$f":"[1]Infrastructure!I1037","v":0},{"$f":"[1]Infrastructure!J1037","v":0},{"$f":"[1]Infrastructure!K1037","v":0},{"$f":"[1]Infrastructure!L1037","v":0},{"$f":"[1]Infrastructure!M1037","v":0},{"$f":"[1]Infrastructure!N1037","v":0},{"$f":"[1]Infrastructure!O1037","v":0},{"$f":"[1]Infrastructure!Q1037","v":0},{"$f":"[1]Infrastructure!R1037","v":0},{"$f":"[1]Infrastructure!T1037","v":0},{"$f":"[1]Infrastructure!W1037","v":0},{"$f":"[1]Infrastructure!W1037","v":0},0,{"$f":"[1]Infrastructure!Z1037","v":0},{"$f":"[1]Infrastructure!Z1037","v":0},0,{"$f":"[1]Infrastructure!AB1037","v":0},{"$f":"[1]Infrastructure!AB1037","v":0},0,{"$f":"[1]Infrastructure!AC1037","v":0},{"$f":"[1]Infrastructure!AD1037","v":0},{"$f":"[1]Infrastructure!AE1037","v":0},{"$f":"[1]Infrastructure!AF1037","v":0},{"$f":"[1]Infrastructure!AG1037","v":0},{"$f":"[1]Infrastructure!AH1037","v":0},0]
[0,null,null,null,null,null,{"$f":"[1]Infrastructure!G1038","v":0},{"$f":"[1]Infrastructure!H1038","v":0},{"$f":"[1]Infrastructure!I1038","v":0},{"$f":"[1]Infrastructure!J1038","v":0},{"$f":"[1]Infrastructure!K1038","v":0},{"$f":"[1]Infrastructure!L1038","v":0},{"$f":"[1]Infrastructure!M1038","v":0},{"$f":"[1]Infrastructure!N1038","v":0},{"$f":"[1]Infrastructure!O1038","v":0},{"$f":"[1]Infrastructure!Q1038","v":0},{"$f":"[1]Infrastructure!R1038","v":0},{"$f":"[1]Infrastructure!T1038","v":0},{"$f":"[1]Infrastructure!W1038","v":0},{"$f":"[1]Infrastructure!W1038","v":0},0,{"$f":"[1]Infrastructure!Z1038","v":0},{"$f":"[1]Infrastructure!Z1038","v":0},0,{"$f":"[1]Infrastructure!AB1038","v":0},{"$f":"[1]Infrastructure!AB1038","v":0},0,{"$f":"[1]Infrastructure!AC1038","v":0},{"$f":"[1]Infrastructure!AD1038","v":0},{"$f":"[1]Infrastructure!AE1038","v":0},{"$f":"[1]Infrastructure!AF1038","v":0},{"$f":"[1]Infrastructure!AG1038","v":0},{"$f":"[1]Infrastructure!AH1038","v":0},0]
[0,null,null,null,null,null,{"$f":"[1]Infrastructure!G1039","v":0},{"$f":"[1]Infrastructure!H1039","v":0},{"$f":"[1]Infrastructure!I1039","v":0},{"$f":"[1]Infrastructure!J1039","v":0},{"$f":"[1]Infrastructure!K1039","v":0},{"$f":"[1]Infrastructure!L1039","v":0},{"$f":"[1]Infrastructure!M1039","v":0},{"$f":"[1]Infrastructure!N1039","v":0},{"$f":"[1]Infrastructure!O1039","v":0},{"$f":"[1]Infrastructure!Q1039","v":0},{"$f":"[1]Infrastructure!R1039","v":0},{"$f":"[1]Infrastructure!T1039","v":0},{"$f":"[1]Infrastructure!W1039","v":0},{"$f":"[1]Infrastructure!W1039","v":0},0,{"$f":"[1]Infrastructure!Z1039","v":0},{"$f":"[1]Infrastructure!Z1039","v":0},0,{"$f":"[1]Infrastructure!AB1039","v":0},{"$f":"[1]Infrastructure!AB1039","v":0},0,{"$f":"[1]Infrastructure!AC1039","v":0},{"$f":"[1]Infrastructure!AD1039","v":0},{"$f":"[1]Infrastructure!AE1039","v":0},{"$f":"[1]Infrastructure!AF1039","v":0},{"$f":"[1]Infrastructure!AG1039","v":0},{"$f":"[1]Infrastructure!AH1039","v":0},0]
[0,null,null,null,null,null,{"$f":"[1]Infrastructure!G1040","v":0},{"$f":"[1]Infrastructure!H1040","v":0},{"$f":"[1]Infrastructure!I1040","v":0},{"$f":"[1]Infrastructure!J1040","v":0},{"$f":"[1]Infrastructure!K1040","v":0},{"$f":"[1]Infrastructure!L1040","v":0},{"$f":"[1]Infrastructure!M1040","v":0},{"$f":"[1]Infrastructure!N1040","v":0},{"$f":"[1]Infrastructure!O1040","v":0},{"$f":"[1]Infrastructure!Q1040","v":0},{"$f":"[1]Infrastructure!R1040","v":0},{"$f":"[1]Infrastructure!T1040","v":0},{"$f":"[1]Infrastructure!W1040","v":0},{"$f":"[1]Infrastructure!W1040","v":0},0,{"$f":"[1]Infrastructure!Z1040","v":0},{"$f":"[1]Infrastructure!Z1040","v":0},0,{"$f":"[1]Infrastructure!AB1040","v":0},{"$f":"[1]Infrastructure!AB1040","v":0},0,{"$f":"[1]Infrastructure!AC1040","v":0},{"$f":"[1]Infrastructure!AD1040","v":0},{"$f":"[1]Infrastructure!AE1040","v":0},{"$f":"[1]Infrastructure!AF1040","v":0},{"$f":"[1]Infrastructure!AG1040","v":0},{"$f":"[1]Infrastructure!AH1040","v":0},0]
[0,null,null,null,null,null,{"$f":"[1]Infrastructure!G1041","v":0},{"$f":"[1]Infrastructure!H1041","v":0},{"$f":"[1]Infrastructure!I1041","v":0},{"$f":"[1]Infrastructure!J1041","v":0},{"$f":"[1]Infrastructure!K1041","v":0},{"$f":"[1]Infrastructure!L1041","v":0},{"$f":"[1]Infrastructure!M1041","v":0},{"$f":"[1]Infrastructure!N1041","v":0},{"$f":"[1]Infrastructure!O1041","v":0},{"$f":"[1]Infrastructure!Q1041","v":0},{"$f":"[1]Infrastructure!R1041","v":0},{"$f":"[1]Infrastructure!T1041","v":0},{"$f":"[1]Infrastructure!W1041","v":0},{"$f":"[1]Infrastructure!W1041","v":0},0,{"$f":"[1]Infrastructure!Z1041","v":0},{"$f":"[1]Infrastructure!Z1041","v":0},0,{"$f":"[1]Infrastructure!AB1041","v":0},{"$f":"[1]Infrastructure!AB1041","v":0},0,{"$f":"[1]Infrastructure!AC1041","v":0},{"$f":"[1]Infrastructure!AD1041","v":0},{"$f":"[1]Infrastructure!AE1041","v":0},{"$f":"[1]Infrastructure!AF1041","v":0},{"$f":"[1]Infrastructure!AG1041","v":0},{"$f":"[1]Infrastructure!AH1041","v":0},0]
[0,null,null,null,null,null,{"$f":"[1]Infrastructure!G1042","v":0},{"$f":"[1]Infrastructure!H1042","v":0},{"$f":"[1]Infrastructure!I1042","v":0},{"$f":"[1]Infrastructure!J1042","v":0},{"$f":"[1]Infrastructure!K1042","v":0},{"$f":"[1]Infrastructure!L1042","v":0},{"$f":"[1]Infrastructure!M1042","v":0},{"$f":"[1]Infrastructure!N1042","v":0},{"$f":"[1]Infrastructure!O1042","v":0},{"$f":"[1]Infrastructure!Q1042","v":0},{"$f":"[1]Infrastructure!R1042","v":0},{"$f":"[1]Infrastructure!T1042","v":0},{"$f":"[1]Infrastructure!W1042","v":0},{"$f":"[1]Infrastructure!W1042","v":0},0,{"$f":"[1]Infrastructure!Z1042","v":0},{"$f":"[1]Infrastructure!Z1042","v":0},0,{"$f":"[1]Infrastructure!AB1042","v":0},{"$f":"[1]Infrastructure!AB1042","v":0},0,{"$f":"[1]Infrastructure!AC1042","v":0},{"$f":"[1]Infrastructure!AD1042","v":0},{"$f":"[1]Infrastructure!AE1042","v":0},{"$f":"[1]Infrastructure!AF1042","v":0},{"$f":"[1]Infrastructure!AG1042","v":0},{"$f":"[1]Infrastructure!AH1042","v":0},0]
[0,null,null,null,null,null,{"$f":"[1]Infrastructure!G1043","v":0},{"$f":"[1]Infrastructure!H1043","v":0},{"$f":"[1]Infrastructure!I1043","v":0},{"$f":"[1]Infrastructure!J1043","v":0},{"$f":"[1]Infrastructure!K1043","v":0},{"$f":"[1]Infrastructure!L1043","v":0},{"$f":"[1]Infrastructure!M1043","v":0},{"$f":"[1]Infrastructure!N1043","v":0},{"$f":"[1]Infrastructure!O1043","v":0},{"$f":"[1]Infrastructure!Q1043","v":0},{"$f":"[1]Infrastructure!R1043","v":0},{"$f":"[1]Infrastructure!T1043","v":0},{"$f":"[1]Infrastructure!W1043","v":0},{"$f":"[1]Infrastructure!W1043","v":0},0,{"$f":"[1]Infrastructure!Z1043","v":0},{"$f":"[1]Infrastructure!Z1043","v":0},0,{"$f":"[1]Infrastructure!AB1043","v":0},{"$f":"[1]Infrastructure!AB1043","v":0},0,{"$f":"[1]Infrastructure!AC1043","v":0},{"$f":"[1]Infrastructure!AD1043","v":0},{"$f":"[1]Infrastructure!AE1043","v":0},{"$f":"[1]Infrastructure!AF1043","v":0},{"$f":"[1]Infrastructure!AG1043","v":0},{"$f":"[1]Infrastructure!AH1043","v":0},0]
[0,null,null,null,null,null,{"$f":"[1]Infrastructure!G1044","v":0},{"$f":"[1]Infrastructure!H1044","v":0},{"$f":"[1]Infrastructure!I1044","v":0},{"$f":"[1]Infrastructure!J1044","v":0},{"$f":"[1]Infrastructure!K1044","v":0},{"$f":"[1]Infrastructure!L1044","v":0},{"$f":"[1]Infrastructure!M1044","v":0},{"$f":"[1]Infrastructure!N1044","v":0},{"$f":"[1]Infrastructure!O1044","v":0},{"$f":"[1]Infrastructure!Q1044","v":0},{"$f":"[1]Infrastructure!R1044","v":0},{"$f":"[1]Infrastructure!T1044","v":0},{"$f":"[1]Infrastructure!W1044","v":0},{"$f":"[1]Infrastructure!W1044","v":0},0,{"$f":"[1]Infrastructure!Z1044","v":0},{"$f":"[1]Infrastructure!Z1044","v":0},0,{"$f":"[1]Infrastructure!AB1044","v":0},{"$f":"[1]Infrastructure!AB1044","v":0},0,{"$f":"[1]Infrastructure!AC1044","v":0},{"$f":"[1]Infrastructure!AD1044","v":0},{"$f":"[1]Infrastructure!AE1044","v":0},{"$f":"[1]Infrastructure!AF1044","v":0},{"$f":"[1]Infrastructure!AG1044","v":0},{"$f":"[1]Infrastructure!AH1044","v":0},0]
[0,null,null,null,null,null,{"$f":"[1]Infrastructure!G1045","v":0},{"$f":"[1]Infrastructure!H1045","v":0},{"$f":"[1]Infrastructure!I1045","v":0},{"$f":"[1]Infrastructure!J1045","v":0},{"$f":"[1]Infrastructure!K1045","v":0},{"$f":"[1]Infrastructure!L1045","v":0},{"$f":"[1]Infrastructure!M1045","v":0},{"$f":"[1]Infrastructure!N1045","v":0},{"$f":"[1]Infrastructure!O1045","v":0},{"$f":"[1]Infrastructure!Q1045","v":0},{"$f":"[1]Infrastructure!R1045","v":0},{"$f":"[1]Infrastructure!T1045","v":0},{"$f":"[1]Infrastructure!W1045","v":0},{"$f":"[1]Infrastructure!W1045","v":0},0,{"$f":"[1]Infrastructure!Z1045","v":0},{"$f":"[1]Infrastructure!Z1045","v":0},0,{"$f":"[1]Infrastructure!AB1045","v":0},{"$f":"[1]Infrastructure!AB1045","v":0},0,{"$f":"[1]Infrastructure!AC1045","v":0},{"$f":"[1]Infrastructure!AD1045","v":0},{"$f":"[1]Infrastructure!AE1045","v":0},{"$f":"[1]Infrastructure!AF1045","v":0},{"$f":"[1]Infrastructure!AG1045","v":0},{"$f":"[1]Infrastructure!AH1045","v":0},0]
[0,null,null,null,null,null,{"$f":"[1]Infrastructure!G1046","v":0},{"$f":"[1]Infrastructure!H1046","v":0},{"$f":"[1]Infrastructure!I1046","v":0},{"$f":"[1]Infrastructure!J1046","v":0},{"$f":"[1]Infrastructure!K1046","v":0},{"$f":"[1]Infrastructure!L1046","v":0},{"$f":"[1]Infrastructure!M1046","v":0},{"$f":"[1]Infrastructure!N1046","v":0},{"$f":"[1]Infrastructure!O1046","v":0},{"$f":"[1]Infrastructure!Q1046","v":0},{"$f":"[1]Infrastructure!R1046","v":0},{"$f":"[1]Infrastructure!T1046","v":0},{"$f":"[1]Infrastructure!W1046","v":0},{"$f":"[1]Infrastructure!W1046","v":0},0,{"$f":"[1]Infrastructure!Z1046","v":0},{"$f":"[1]Infrastructure!Z1046","v":0},0,{"$f":"[1]Infrastructure!AB1046","v":0},{"$f":"[1]Infrastructure!AB1046","v":0},0,{"$f":"[1]Infrastructure!AC1046","v":0},{"$f":"[1]Infrastructure!AD1046","v":0},{"$f":"[1]Infrastructure!AE1046","v":0},{"$f":"[1]Infrastructure!AF1046","v":0},{"$f":"[1]Infrastructure!AG1046","v":0},{"$f":"[1]Infrastructure!AH1046","v":0},0]
[0,null,null,null,null,null,{"$f":"[1]Infrastructure!G1047","v":0},{"$f":"[1]Infrastructure!H1047","v":0},{"$f":"[1]Infrastructure!I1047","v":0},{"$f":"[1]Infrastructure!J1047","v":0},{"$f":"[1]Infrastructure!K1047","v":0},{"$f":"[1]Infrastructure!L1047","v":0},{"$f":"[1]Infrastructure!M1047","v":0},{"$f":"[1]Infrastructure!N1047","v":0},{"$f":"[1]Infrastructure!O1047","v":0},{"$f":"[1]Infrastructure!Q1047","v":0},{"$f":"[1]Infrastructure!R1047","v":0},{"$f":"[1]Infrastructure!T1047","v":0},{"$f":"[1]Infrastructure!W1047","v":0},{"$f":"[1]Infrastructure!W1047","v":0},0,{"$f":"[1]Infrastructure!Z1047","v":0},{"$f":"[1]Infrastructure!Z1047","v":0},0,{"$f":"[1]Infrastructure!AB1047","v":0},{"$f":"[1]Infrastructure!AB1047","v":0},0,{"$f":"[1]Infrastructure!AC1047","v":0},{"$f":"[1]Infrastructure!AD1047","v":0},{"$f":"[1]Infrastructure!AE1047","v":0},{"$f":"[1]Infrastructure!AF1047","v":0},{"$f":"[1]Infrastructure!AG1047","v":0},{"$f":"[1]Infrastructure!AH1047","v":0},0]
[0,null,null,null,null,null,{"$f":"[1]Infrastructure!G1048","v":0},{"$f":"[1]Infrastructure!H1048","v":0},{"$f":"[1]Infrastructure!I1048","v":0},{"$f":"[1]Infrastructure!J1048","v":0},{"$f":"[1]Infrastructure!K1048","v":0},{"$f":"[1]Infrastructure!L1048","v":0},{"$f":"[1]Infrastructure!M1048","v":0},{"$f":"[1]Infrastructure!N1048","v":0},{"$f":"[1]Infrastructure!O1048","v":0},{"$f":"[1]Infrastructure!Q1048","v":0},{"$f":"[1]Infrastructure!R1048","v":0},{"$f":"[1]Infrastructure!T1048","v":0},{"$f":"[1]Infrastructure!W1048","v":0},{"$f":"[1]Infrastructure!W1048","v":0},0,{"$f":"[1]Infrastructure!Z1048","v":0},{"$f":"[1]Infrastructure!Z1048","v":0},0,{"$f":"[1]Infrastructure!AB1048","v":0},{"$f":"[1]Infrastructure!AB1048","v":0},0,{"$f":"[1]Infrastructure!AC1048","v":0},{"$f":"[1]Infrastructure!AD1048","v":0},{"$f":"[1]Infrastructure!AE1048","v":0},{"$f":"[1]Infrastructure!AF1048","v":0},{"$f":"[1]Infrastructure!AG1048","v":0},{"$f":"[1]Infrastructure!AH1048","v":0},0]
[0,null,null,null,null,null,{"$f":"[1]Infrastructure!G1049","v":0},{"$f":"[1]Infrastructure!H1049","v":0},{"$f":"[1]Infrastructure!I1049","v":0},{"$f":"[1]Infrastructure!J1049","v":0},{"$f":"[1]Infrastructure!K1049","v":0},{"$f":"[1]Infrastructure!L1049","v":0},{"$f":"[1]Infrastructure!M1049","v":0},{"$f":"[1]Infrastructure!N1049","v":0},{"$f":"[1]Infrastructure!O1049","v":0},{"$f":"[1]Infrastructure!Q1049","v":0},{"$f":"[1]Infrastructure!R1049","v":0},{"$f":"[1]Infrastructure!T1049","v":0},{"$f":"[1]Infrastructure!W1049","v":0},{"$f":"[1]Infrastructure!W1049","v":0},0,{"$f":"[1]Infrastructure!Z1049","v":0},{"$f":"[1]Infrastructure!Z1049","v":0},0,{"$f":"[1]Infrastructure!AB1049","v":0},{"$f":"[1]Infrastructure!AB1049","v":0},0,{"$f":"[1]Infrastructure!AC1049","v":0},{"$f":"[1]Infrastructure!AD1049","v":0},{"$f":"[1]Infrastructure!AE1049","v":0},{"$f":"[1]Infrastructure!AF1049","v":0},{"$f":"[1]Infrastructure!AG1049","v":0},{"$f":"[1]Infrastructure!AH1049","v":0},0]
[0,null,null,null,null,null,{"$f":"[1]Infrastructure!G1050","v":0},{"$f":"[1]Infrastructure!H1050","v":0},{"$f":"[1]Infrastructure!I1050","v":0},{"$f":"[1]Infrastructure!J1050","v":0},{"$f":"[1]Infrastructure!K1050","v":0},{"$f":"[1]Infrastructure!L1050","v":0},{"$f":"[1]Infrastructure!M1050","v":0},{"$f":"[1]Infrastructure!N1050","v":0},{"$f":"[1]Infrastructure!O1050","v":0},{"$f":"[1]Infrastructure!Q1050","v":0},{"$f":"[1]Infrastructure!R1050","v":0},{"$f":"[1]Infrastructure!T1050","v":0},{"$f":"[1]Infrastructure!W1050","v":0},{"$f":"[1]Infrastructure!W1050","v":0},0,{"$f":"[1]Infrastructure!Z1050","v":0},{"$f":"[1]Infrastructure!Z1050","v":0},0,{"$f":"[1]Infrastructure!AB1050","v":0},{"$f":"[1]Infrastructure!AB1050","v":0},0,{"$f":"[1]Infrastructure!AC1050","v":0},{"$f":"[1]Infrastructure!AD1050","v":0},{"$f":"[1]Infrastructure!AE1050","v":0},{"$f":"[1]Infrastructure!AF1050","v":0},{"$f":"[1]Infrastructure!AG1050","v":0},{"$f":"[1]Infrastructure!AH1050","v":0},0]
[0,null,null,null,null,null,{"$f":"[1]Infrastructure!G1051","v":0},{"$f":"[1]Infrastructure!H1051","v":0},{"$f":"[1]Infrastructure!I1051","v":0},{"$f":"[1]Infrastructure!J1051","v":0},{"$f":"[1]Infrastructure!K1051","v":0},{"$f":"[1]Infrastructure!L1051","v":0},{"$f":"[1]Infrastructure!M1051","v":0},{"$f":"[1]Infrastructure!N1051","v":0},{"$f":"[1]Infrastructure!O1051","v":0},{"$f":"[1]Infrastructure!Q1051","v":0},{"$f":"[1]Infrastructure!R1051","v":0},{"$f":"[1]Infrastructure!T1051","v":0},{"$f":"[1]Infrastructure!W1051","v":0},{"$f":"[1]Infrastructure!W1051","v":0},0,{"$f":"[1]Infrastructure!Z1051","v":0},{"$f":"[1]Infrastructure!Z1051","v":0},0,{"$f":"[1]Infrastructure!AB1051","v":0},{"$f":"[1]Infrastructure!AB1051","v":0},0,{"$f":"[1]Infrastructure!AC1051","v":0},{"$f":"[1]Infrastructure!AD1051","v":0},{"$f":"[1]Infrastructure!AE1051","v":0},{"$f":"[1]Infrastructure!AF1051","v":0},{"$f":"[1]Infrastructure!AG1051","v":0},{"$f":"[1]Infrastructure!AH1051","v":0},0]
[0,null,null,null,null,null,{"$f":"[1]Infrastructure!G1052","v":0},{"$f":"[1]Infrastructure!H1052","v":0},{"$f":"[1]Infrastructure!I1052","v":0},{"$f":"[1]Infrastructure!J1052","v":0},{"$f":"[1]Infrastructure!K1052","v":0},{"$f":"[1]Infrastructure!L1052","v":0},{"$f":"[1]Infrastructure!M1052","v":0},{"$f":"[1]Infrastructure!N1052","v":0},{"$f":"[1]Infrastructure!O1052","v":0},{"$f":"[1]Infrastructure!Q1052","v":0},{"$f":"[1]Infrastructure!R1052","v":0},{"$f":"[1]Infrastructure!T1052","v":0},{"$f":"[1]Infrastructure!W1052","v":0},{"$f":"[1]Infrastructure!W1052","v":0},0,{"$f":"[1]Infrastructure!Z1052","v":0},{"$f":"[1]Infrastructure!Z1052","v":0},0,{"$f":"[1]Infrastructure!AB1052","v":0},{"$f":"[1]Infrastructure!AB1052","v":0},0,{"$f":"[1]Infrastructure!AC1052","v":0},{"$f":"[1]Infrastructure!AD1052","v":0},{"$f":"[1]Infrastructure!AE1052","v":0},{"$f":"[1]Infrastructure!AF1052","v":0},{"$f":"[1]Infrastructure!AG1052","v":0},{"$f":"[1]Infrastructure!AH1052","v":0},0]
[0,null,null,null,null,null,{"$f":"[1]Infrastructure!G1053","v":0},{"$f":"[1]Infrastructure!H1053","v":0},{"$f":"[1]Infrastructure!I1053","v":0},{"$f":"[1]Infrastructure!J1053","v":0},{"$f":"[1]Infrastructure!K1053","v":0},{"$f":"[1]Infrastructure!L1053","v":0},{"$f":"[1]Infrastructure!M1053","v":0},{"$f":"[1]Infrastructure!N1053","v":0},{"$f":"[1]Infrastructure!O1053","v":0},{"$f":"[1]Infrastructure!Q1053","v":0},{"$f":"[1]Infrastructure!R1053","v":0},{"$f":"[1]Infrastructure!T1053","v":0},{"$f":"[1]Infrastructure!W1053","v":0},{"$f":"[1]Infrastructure!W1053","v":0},0,{"$f":"[1]Infrastructure!Z1053","v":0},{"$f":"[1]Infrastructure!Z1053","v":0},0,{"$f":"[1]Infrastructure!AB1053","v":0},{"$f":"[1]Infrastructure!AB1053","v":0},0,{"$f":"[1]Infrastructure!AC1053","v":0},{"$f":"[1]Infrastructure!AD1053","v":0},{"$f":"[1]Infrastructure!AE1053","v":0},{"$f":"[1]Infrastructure!AF1053","v":0},{"$f":"[1]Infrastructure!AG1053","v":0},{"$f":"[1]Infrastructure!AH1053","v":0},0]
[0,null,null,null,null,null,{"$f":"[1]Infrastructure!G1054","v":0},{"$f":"[1]Infrastructure!H1054","v":0},{"$f":"[1]Infrastructure!I1054","v":0},{"$f":"[1]Infrastructure!J1054","v":0},{"$f":"[1]Infrastructure!K1054","v":0},{"$f":"[1]Infrastructure!L1054","v":0},{"$f":"[1]Infrastructure!M1054","v":0},{"$f":"[1]Infrastructure!N1054","v":0},{"$f":"[1]Infrastructure!O1054","v":0},{"$f":"[1]Infrastructure!Q1054","v":0},{"$f":"[1]Infrastructure!R1054","v":0},{"$f":"[1]Infrastructure!T1054","v":0},{"$f":"[1]Infrastructure!W1054","v":0},{"$f":"[1]Infrastructure!W1054","v":0},0,{"$f":"[1]Infrastructure!Z1054","v":0},{"$f":"[1]Infrastructure!Z1054","v":0},0,{"$f":"[1]Infrastructure!AB1054","v":0},{"$f":"[1]Infrastructure!AB1054","v":0},0,{"$f":"[1]Infrastructure!AC1054","v":0},{"$f":"[1]Infrastructure!AD1054","v":0},{"$f":"[1]Infrastructure!AE1054","v":0},{"$f":"[1]Infrastructure!AF1054","v":0},{"$f":"[1]Infrastructure!AG1054","v":0},{"$f":"[1]Infrastructure!AH1054","v":0},0]
[0,null,null,null,null,null,{"$f":"[1]Infrastructure!G1055","v":0},{"$f":"[1]Infrastructure!H1055","v":0},{"$f":"[1]Infrastructure!I1055","v":0},{"$f":"[1]Infrastructure!J1055","v":0},{"$f":"[1]Infrastructure!K1055","v":0},{"$f":"[1]Infrastructure!L1055","v":0},{"$f":"[1]Infrastructure!M1055","v":0},{"$f":"[1]Infrastructure!N1055","v":0},{"$f":"[1]Infrastructure!O1055","v":0},{"$f":"[1]Infrastructure!Q1055","v":0},{"$f":"[1]Infrastructure!R1055","v":0},{"$f":"[1]Infrastructure!T1055","v":0},{"$f":"[1]Infrastructure!W1055","v":0},{"$f":"[1]Infrastructure!W1055","v":0},0,{"$f":"[1]Infrastructure!Z1055","v":0},{"$f":"[1]Infrastructure!Z1055","v":0},0,{"$f":"[1]Infrastructure!AB1055","v":0},{"$f":"[1]Infrastructure!AB1055","v":0},0,{"$f":"[1]Infrastructure!AC1055","v":0},{"$f":"[1]Infrastructure!AD1055","v":0},{"$f":"[1]Infrastructure!AE1055","v":0},{"$f":"[1]Infrastructure!AF1055","v":0},{"$f":"[1]Infrastructure!AG1055","v":0},{"$f":"[1]Infrastructure!AH1055","v":0},0]
[0,null,null,null,null,null,{"$f":"[1]Infrastructure!G1056","v":0},{"$f":"[1]Infrastructure!H1056","v":0},{"$f":"[1]Infrastructure!I1056","v":0},{"$f":"[1]Infrastructure!J1056","v":0},{"$f":"[1]Infrastructure!K1056","v":0},{"$f":"[1]Infrastructure!L1056","v":0},{"$f":"[1]Infrastructure!M1056","v":0},{"$f":"[1]Infrastructure!N1056","v":0},{"$f":"[1]Infrastructure!O1056","v":0},{"$f":"[1]Infrastructure!Q1056","v":0},{"$f":"[1]Infrastructure!R1056","v":0},{"$f":"[1]Infrastructure!T1056","v":0},{"$f":"[1]Infrastructure!W1056","v":0},{"$f":"[1]Infrastructure!W1056","v":0},0,{"$f":"[1]Infrastructure!Z1056","v":0},{"$f":"[1]Infrastructure!Z1056","v":0},0,{"$f":"[1]Infrastructure!AB1056","v":0},{"$f":"[1]Infrastructure!AB1056","v":0},0,{"$f":"[1]Infrastructure!AC1056","v":0},{"$f":"[1]Infrastructure!AD1056","v":0},{"$f":"[1]Infrastructure!AE1056","v":0},{"$f":"[1]Infrastructure!AF1056","v":0},{"$f":"[1]Infrastructure!AG1056","v":0},{"$f":"[1]Infrastructure!AH1056","v":0},0]
[0,null,null,null,null,null,{"$f":"[1]Infrastructure!G1057","v":0},{"$f":"[1]Infrastructure!H1057","v":0},{"$f":"[1]Infrastructure!I1057","v":0},{"$f":"[1]Infrastructure!J1057","v":0},{"$f":"[1]Infrastructure!K1057","v":0},{"$f":"[1]Infrastructure!L1057","v":0},{"$f":"[1]Infrastructure!M1057","v":0},{"$f":"[1]Infrastructure!N1057","v":0},{"$f":"[1]Infrastructure!O1057","v":0},{"$f":"[1]Infrastructure!Q1057","v":0},{"$f":"[1]Infrastructure!R1057","v":0},{"$f":"[1]Infrastructure!T1057","v":0},{"$f":"[1]Infrastructure!W1057","v":0},{"$f":"[1]Infrastructure!W1057","v":0},0,{"$f":"[1]Infrastructure!Z1057","v":0},{"$f":"[1]Infrastructure!Z1057","v":0},0,{"$f":"[1]Infrastructure!AB1057","v":0},{"$f":"[1]Infrastructure!AB1057","v":0},0,{"$f":"[1]Infrastructure!AC1057","v":0},{"$f":"[1]Infrastructure!AD1057","v":0},{"$f":"[1]Infrastructure!AE1057","v":0},{"$f":"[1]Infrastructure!AF1057","v":0},{"$f":"[1]Infrastructure!AG1057","v":0},{"$f":"[1]Infrastructure!AH1057","v":0},0]
[0,null,null,null,null,null,{"$f":"[1]Infrastructure!G1058","v":0},{"$f":"[1]Infrastructure!H1058","v":0},{"$f":"[1]Infrastructure!I1058","v":0},{"$f":"[1]Infrastructure!J1058","v":0},{"$f":"[1]Infrastructure!K1058","v":0},{"$f":"[1]Infrastructure!L1058","v":0},{"$f":"[1]Infrastructure!M1058","v":0},{"$f":"[1]Infrastructure!N1058","v":0},{"$f":"[1]Infrastructure!O1058","v":0},{"$f":"[1]Infrastructure!Q1058","v":0},{"$f":"[1]Infrastructure!R1058","v":0},{"$f":"[1]Infrastructure!T1058","v":0},{"$f":"[1]Infrastructure!W1058","v":0},{"$f":"[1]Infrastructure!W1058","v":0},0,{"$f":"[1]Infrastructure!Z1058","v":0},{"$f":"[1]Infrastructure!Z1058","v":0},0,{"$f":"[1]Infrastructure!AB1058","v":0},{"$f":"[1]Infrastructure!AB1058","v":0},0,{"$f":"[1]Infrastructure!AC1058","v":0},{"$f":"[1]Infrastructure!AD1058","v":0},{"$f":"[1]Infrastructure!AE1058","v":0},{"$f":"[1]Infrastructure!AF1058","v":0},{"$f":"[1]Infrastructure!AG1058","v":0},{"$f":"[1]Infrastructure!AH1058","v":0},0]
[0,null,null,null,null,null,{"$f":"[1]Infrastructure!G1059","v":0},{"$f":"[1]Infrastructure!H1059","v":0},{"$f":"[1]Infrastructure!I1059","v":0},{"$f":"[1]Infrastructure!J1059","v":0},{"$f":"[1]Infrastructure!K1059","v":0},{"$f":"[1]Infrastructure!L1059","v":0},{"$f":"[1]Infrastructure!M1059","v":0},{"$f":"[1]Infrastructure!N1059","v":0},{"$f":"[1]Infrastructure!O1059","v":0},{"$f":"[1]Infrastructure!Q1059","v":0},{"$f":"[1]Infrastructure!R1059","v":0},{"$f":"[1]Infrastructure!T1059","v":0},{"$f":"[1]Infrastructure!W1059","v":0},{"$f":"[1]Infrastructure!W1059","v":0},0,{"$f":"[1]Infrastructure!Z1059","v":0},{"$f":"[1]Infrastructure!Z1059","v":0},0,{"$f":"[1]Infrastructure!AB1059","v":0},{"$f":"[1]Infrastructure!AB1059","v":0},0,{"$f":"[1]Infrastructure!AC1059","v":0},{"$f":"[1]Infrastructure!AD1059","v":0},{"$f":"[1]Infrastructure!AE1059","v":0},{"$f":"[1]Infrastructure!AF1059","v":0},{"$f":"[1]Infrastructure!AG1059","v":0},{"$f":"[1]Infrastructure!AH1059","v":0},0]
[0,null,null,null,null,null,{"$f":"[1]Infrastructure!G1060","v":0},{"$f":"[1]Infrastructure!H1060","v":0},{"$f":"[1]Infrastructure!I1060","v":0},{"$f":"[1]Infrastructure!J1060","v":0},{"$f":"[1]Infrastructure!K1060","v":0},{"$f":"[1]Infrastructure!L1060","v":0},{"$f":"[1]Infrastructure!M1060","v":0},{"$f":"[1]Infrastructure!N1060","v":0},{"$f":"[1]Infrastructure!O1060","v":0},{"$f":"[1]Infrastructure!Q1060","v":0},{"$f":"[1]Infrastructure!R1060","v":0},{"$f":"[1]Infrastructure!T1060","v":0},{"$f":"[1]Infrastructure!W1060","v":0},{"$f":"[1]Infrastructure!W1060","v":0},0,{"$f":"[1]Infrastructure!Z1060","v":0},{"$f":"[1]Infrastructure!Z1060","v":0},0,{"$f":"[1]Infrastructure!AB1060","v":0},{"$f":"[1]Infrastructure!AB1060","v":0},0,{"$f":"[1]Infrastructure!AC1060","v":0},{"$f":"[1]Infrastructure!AD1060","v":0},{"$f":"[1]Infrastructure!AE1060","v":0},{"$f":"[1]Infrastructure!AF1060","v":0},{"$f":"[1]Infrastructure!AG1060","v":0},{"$f":"[1]Infrastructure!AH1060","v":0},0]
[0,null,null,null,null,null,{"$f":"[1]Infrastructure!G1061","v":0},{"$f":"[1]Infrastructure!H1061","v":0},{"$f":"[1]Infrastructure!I1061","v":0},{"$f":"[1]Infrastructure!J1061","v":0},{"$f":"[1]Infrastructure!K1061","v":0},{"$f":"[1]Infrastructure!L1061","v":0},{"$f":"[1]Infrastructure!M1061","v":0},{"$f":"[1]Infrastructure!N1061","v":0},{"$f":"[1]Infrastructure!O1061","v":0},{"$f":"[1]Infrastructure!Q1061","v":0},{"$f":"[1]Infrastructure!R1061","v":0},{"$f":"[1]Infrastructure!T1061","v":0},{"$f":"[1]Infrastructure!W1061","v":0},{"$f":"[1]Infrastructure!W1061","v":0},0,{"$f":"[1]Infrastructure!Z1061","v":0},{"$f":"[1]Infrastructure!Z1061","v":0},0,{"$f":"[1]Infrastructure!AB1061","v":0},{"$f":"[1]Infrastructure!AB1061","v":0},0,{"$f":"[1]Infrastructure!AC1061","v":0},{"$f":"[1]Infrastructure!AD1061","v":0},{"$f":"[1]Infrastructure!AE1061","v":0},{"$f":"[1]Infrastructure!AF1061","v":0},{"$f":"[1]Infrastructure!AG1061","v":0},{"$f":"[1]Infrastructure!AH1061","v":0},0]
[0,null,null,null,null,null,{"$f":"[1]Infrastructure!G1062","v":0},{"$f":"[1]Infrastructure!H1062","v":0},{"$f":"[1]Infrastructure!I1062","v":0},{"$f":"[1]Infrastructure!J1062","v":0},{"$f":"[1]Infrastructure!K1062","v":0},{"$f":"[1]Infrastructure!L1062","v":0},{"$f":"[1]Infrastructure!M1062","v":0},{"$f":"[1]Infrastructure!N1062","v":0},{"$f":"[1]Infrastructure!O1062","v":0},{"$f":"[1]Infrastructure!Q1062","v":0},{"$f":"[1]Infrastructure!R1062","v":0},{"$f":"[1]Infrastructure!T1062","v":0},{"$f":"[1]Infrastructure!W1062","v":0},{"$f":"[1]Infrastructure!W1062","v":0},0,{"$f":"[1]Infrastructure!Z1062","v":0},{"$f":"[1]Infrastructure!Z1062","v":0},0,{"$f":"[1]Infrastructure!AB1062","v":0},{"$f":"[1]Infrastructure!AB1062","v":0},0,{"$f":"[1]Infrastructure!AC1062","v":0},{"$f":"[1]Infrastructure!AD1062","v":0},{"$f":"[1]Infrastructure!AE1062","v":0},{"$f":"[1]Infrastructure!AF1062","v":0},{"$f":"[1]Infrastructure!AG1062","v":0},{"$f":"[1]Infrastructure!AH1062","v":0},0]
[0,null,null,null,null,null,{"$f":"[1]Infrastructure!G1063","v":0},{"$f":"[1]Infrastructure!H1063","v":0},{"$f":"[1]Infrastructure!I1063","v":0},{"$f":"[1]Infrastructure!J1063","v":0},{"$f":"[1]Infrastructure!K1063","v":0},{"$f":"[1]Infrastructure!L1063","v":0},{"$f":"[1]Infrastructure!M1063","v":0},{"$f":"[1]Infrastructure!N1063","v":0},{"$f":"[1]Infrastructure!O1063","v":0},{"$f":"[1]Infrastructure!Q1063","v":0},{"$f":"[1]Infrastructure!R1063","v":0},{"$f":"[1]Infrastructure!T1063","v":0},{"$f":"[1]Infrastructure!W1063","v":0},{"$f":"[1]Infrastructure!W1063","v":0},0,{"$f":"[1]Infrastructure!Z1063","v":0},{"$f":"[1]Infrastructure!Z1063","v":0},0,{"$f":"[1]Infrastructure!AB1063","v":0},{"$f":"[1]Infrastructure!AB1063","v":0},0,{"$f":"[1]Infrastructure!AC1063","v":0},{"$f":"[1]Infrastructure!AD1063","v":0},{"$f":"[1]Infrastructure!AE1063","v":0},{"$f":"[1]Infrastructure!AF1063","v":0},{"$f":"[1]Infrastructure!AG1063","v":0},{"$f":"[1]Infrastructure!AH1063","v":0},0]
[0,null,null,null,null,null,{"$f":"[1]Infrastructure!G1064","v":0},{"$f":"[1]Infrastructure!H1064","v":0},{"$f":"[1]Infrastructure!I1064","v":0},{"$f":"[1]Infrastructure!J1064","v":0},{"$f":"[1]Infrastructure!K1064","v":0},{"$f":"[1]Infrastructure!L1064","v":0},{"$f":"[1]Infrastructure!M1064","v":0},{"$f":"[1]Infrastructure!N1064","v":0},{"$f":"[1]Infrastructure!O1064","v":0},{"$f":"[1]Infrastructure!Q1064","v":0},{"$f":"[1]Infrastructure!R1064","v":0},{"$f":"[1]Infrastructure!T1064","v":0},{"$f":"[1]Infrastructure!W1064","v":0},{"$f":"[1]Infrastructure!W1064","v":0},0,{"$f":"[1]Infrastructure!Z1064","v":0},{"$f":"[1]Infrastructure!Z1064","v":0},0,{"$f":"[1]Infrastructure!AB1064","v":0},{"$f":"[1]Infrastructure!AB1064","v":0},0,{"$f":"[1]Infrastructure!AC1064","v":0},{"$f":"[1]Infrastructure!AD1064","v":0},{"$f":"[1]Infrastructure!AE1064","v":0},{"$f":"[1]Infrastructure!AF1064","v":0},{"$f":"[1]Infrastructure!AG1064","v":0},{"$f":"[1]Infrastructure!AH1064","v":0},0]
[0,null,null,null,null,null,{"$f":"[1]Infrastructure!G1065","v":0},{"$f":"[1]Infrastructure!H1065","v":0},{"$f":"[1]Infrastructure!I1065","v":0},{"$f":"[1]Infrastructure!J1065","v":0},{"$f":"[1]Infrastructure!K1065","v":0},{"$f":"[1]Infrastructure!L1065","v":0},{"$f":"[1]Infrastructure!M1065","v":0},{"$f":"[1]Infrastructure!N1065","v":0},{"$f":"[1]Infrastructure!O1065","v":0},{"$f":"[1]Infrastructure!Q1065","v":0},{"$f":"[1]Infrastructure!R1065","v":0},{"$f":"[1]Infrastructure!T1065","v":0},{"$f":"[1]Infrastructure!W1065","v":0},{"$f":"[1]Infrastructure!W1065","v":0},0,{"$f":"[1]Infrastructure!Z1065","v":0},{"$f":"[1]Infrastructure!Z1065","v":0},0,{"$f":"[1]Infrastructure!AB1065","v":0},{"$f":"[1]Infrastructure!AB1065","v":0},0,{"$f":"[1]Infrastructure!AC1065","v":0},{"$f":"[1]Infrastructure!AD1065","v":0},{"$f":"[1]Infrastructure!AE1065","v":0},{"$f":"[1]Infrastructure!AF1065","v":0},{"$f":"[1]Infrastructure!AG1065","v":0},{"$f":"[1]Infrastructure!AH1065","v":0},0]
[0,null,null,null,null,null,{"$f":"[1]Infrastructure!G1066","v":0},{"$f":"[1]Infrastructure!H1066","v":0},{"$f":"[1]Infrastructure!I1066","v":0},{"$f":"[1]Infrastructure!J1066","v":0},{"$f":"[1]Infrastructure!K1066","v":0},{"$f":"[1]Infrastructure!L1066","v":0},{"$f":"[1]Infrastructure!M1066","v":0},{"$f":"[1]Infrastructure!N1066","v":0},{"$f":"[1]Infrastructure!O1066","v":0},{"$f":"[1]Infrastructure!Q1066","v":0},{"$f":"[1]Infrastructure!R1066","v":0},{"$f":"[1]Infrastructure!T1066","v":0},{"$f":"[1]Infrastructure!W1066","v":0},{"$f":"[1]Infrastructure!W1066","v":0},0,{"$f":"[1]Infrastructure!Z1066","v":0},{"$f":"[1]Infrastructure!Z1066","v":0},0,{"$f":"[1]Infrastructure!AB1066","v":0},{"$f":"[1]Infrastructure!AB1066","v":0},0,{"$f":"[1]Infrastructure!AC1066","v":0},{"$f":"[1]Infrastructure!AD1066","v":0},{"$f":"[1]Infrastructure!AE1066","v":0},{"$f":"[1]Infrastructure!AF1066","v":0},{"$f":"[1]Infrastructure!AG1066","v":0},{"$f":"[1]Infrastructure!AH1066","v":0},0]
[0,null,null,null,null,null,{"$f":"[1]Infrastructure!G1067","v":0},{"$f":"[1]Infrastructure!H1067","v":0},{"$f":"[1]Infrastructure!I1067","v":0},{"$f":"[1]Infrastructure!J1067","v":0},{"$f":"[1]Infrastructure!K1067","v":0},{"$f":"[1]Infrastructure!L1067","v":0},{"$f":"[1]Infrastructure!M1067","v":0},{"$f":"[1]Infrastructure!N1067","v":0},{"$f":"[1]Infrastructure!O1067","v":0},{"$f":"[1]Infrastructure!Q1067","v":0},{"$f":"[1]Infrastructure!R1067","v":0},{"$f":"[1]Infrastructure!T1067","v":0},{"$f":"[1]Infrastructure!W1067","v":0},{"$f":"[1]Infrastructure!W1067","v":0},0,{"$f":"[1]Infrastructure!Z1067","v":0},{"$f":"[1]Infrastructure!Z1067","v":0},0,{"$f":"[1]Infrastructure!AB1067","v":0},{"$f":"[1]Infrastructure!AB1067","v":0},0,{"$f":"[1]Infrastructure!AC1067","v":0},{"$f":"[1]Infrastructure!AD1067","v":0},{"$f":"[1]Infrastructure!AE1067","v":0},{"$f":"[1]Infrastructure!AF1067","v":0},{"$f":"[1]Infrastructure!AG1067","v":0},{"$f":"[1]Infrastructure!AH1067","v":0},0]
[0,null,null,null,null,null,{"$f":"[1]Infrastructure!G1068","v":0},{"$f":"[1]Infrastructure!H1068","v":0},{"$f":"[1]Infrastructure!I1068","v":0},{"$f":"[1]Infrastructure!J1068","v":0},{"$f":"[1]Infrastructure!K1068","v":0},{"$f":"[1]Infrastructure!L1068","v":0},{"$f":"[1]Infrastructure!M1068","v":0},{"$f":"[1]Infrastructure!N1068","v":0},{"$f":"[1]Infrastructure!O1068","v":0},{"$f":"[1]Infrastructure!Q1068","v":0},{"$f":"[1]Infrastructure!R1068","v":0},{"$f":"[1]Infrastructure!T1068","v":0},{"$f":"[1]Infrastructure!W1068","v":0},{"$f":"[1]Infrastructure!W1068","v":0},0,{"$f":"[1]Infrastructure!Z1068","v":0},{"$f":"[1]Infrastructure!Z1068","v":0},0,{"$f":"[1]Infrastructure!AB1068","v":0},{"$f":"[1]Infrastructure!AB1068","v":0},0,{"$f":"[1]Infrastructure!AC1068","v":0},{"$f":"[1]Infrastructure!AD1068","v":0},{"$f":"[1]Infrastructure!AE1068","v":0},{"$f":"[1]Infrastructure!AF1068","v":0},{"$f":"[1]Infrastructure!AG1068","v":0},{"$f":"[1]Infrastructure!AH1068","v":0},0]
[0,null,null,null,null,null,{"$f":"[1]Infrastructure!G1069","v":0},{"$f":"[1]Infrastructure!H1069","v":0},{"$f":"[1]Infrastructure!I1069","v":0},{"$f":"[1]Infrastructure!J1069","v":0},{"$f":"[1]Infrastructure!K1069","v":0},{"$f":"[1]Infrastructure!L1069","v":0},{"$f":"[1]Infrastructure!M1069","v":0},{"$f":"[1]Infrastructure!N1069","v":0},{"$f":"[1]Infrastructure!O1069","v":0},{"$f":"[1]Infrastructure!Q1069","v":0},{"$f":"[1]Infrastructure!R1069","v":0},{"$f":"[1]Infrastructure!T1069","v":0},{"$f":"[1]Infrastructure!W1069","v":0},{"$f":"[1]Infrastructure!W1069","v":0},0,{"$f":"[1]Infrastructure!Z1069","v":0},{"$f":"[1]Infrastructure!Z1069","v":0},0,{"$f":"[1]Infrastructure!AB1069","v":0},{"$f":"[1]Infrastructure!AB1069","v":0},0,{"$f":"[1]Infrastructure!AC1069","v":0},{"$f":"[1]Infrastructure!AD1069","v":0},{"$f":"[1]Infrastructure!AE1069","v":0},{"$f":"[1]Infrastructure!AF1069","v":0},{"$f":"[1]Infrastructure!AG1069","v":0},{"$f":"[1]Infrastructure!AH1069","v":0},0]
[0,null,null,null,null,null,{"$f":"[1]Infrastructure!G1070","v":0},{"$f":"[1]Infrastructure!H1070","v":0},{"$f":"[1]Infrastructure!I1070","v":0},{"$f":"[1]Infrastructure!J1070","v":0},{"$f":"[1]Infrastructure!K1070","v":0},{"$f":"[1]Infrastructure!L1070","v":0},{"$f":"[1]Infrastructure!M1070","v":0},{"$f":"[1]Infrastructure!N1070","v":0},{"$f":"[1]Infrastructure!O1070","v":0},{"$f":"[1]Infrastructure!Q1070","v":0},{"$f":"[1]Infrastructure!R1070","v":0},{"$f":"[1]Infrastructure!T1070","v":0},{"$f":"[1]Infrastructure!W1070","v":0},{"$f":"[1]Infrastructure!W1070","v":0},0,{"$f":"[1]Infrastructure!Z1070","v":0},{"$f":"[1]Infrastructure!Z1070","v":0},0,{"$f":"[1]Infrastructure!AB1070","v":0},{"$f":"[1]Infrastructure!AB1070","v":0},0,{"$f":"[1]Infrastructure!AC1070","v":0},{"$f":"[1]Infrastructure!AD1070","v":0},{"$f":"[1]Infrastructure!AE1070","v":0},{"$f":"[1]Infrastructure!AF1070","v":0},{"$f":"[1]Infrastructure!AG1070","v":0},{"$f":"[1]Infrastructure!AH1070","v":0},0]
[0,null,null,null,null,null,{"$f":"[1]Infrastructure!G1071","v":0},{"$f":"[1]Infrastructure!H1071","v":0},{"$f":"[1]Infrastructure!I1071","v":0},{"$f":"[1]Infrastructure!J1071","v":0},{"$f":"[1]Infrastructure!K1071","v":0},{"$f":"[1]Infrastructure!L1071","v":0},{"$f":"[1]Infrastructure!M1071","v":0},{"$f":"[1]Infrastructure!N1071","v":0},{"$f":"[1]Infrastructure!O1071","v":0},{"$f":"[1]Infrastructure!Q1071","v":0},{"$f":"[1]Infrastructure!R1071","v":0},{"$f":"[1]Infrastructure!T1071","v":0},{"$f":"[1]Infrastructure!W1071","v":0},{"$f":"[1]Infrastructure!W1071","v":0},0,{"$f":"[1]Infrastructure!Z1071","v":0},{"$f":"[1]Infrastructure!Z1071","v":0},0,{"$f":"[1]Infrastructure!AB1071","v":0},{"$f":"[1]Infrastructure!AB1071","v":0},0,{"$f":"[1]Infrastructure!AC1071","v":0},{"$f":"[1]Infrastructure!AD1071","v":0},{"$f":"[1]Infrastructure!AE1071","v":0},{"$f":"[1]Infrastructure!AF1071","v":0},{"$f":"[1]Infrastructure!AG1071","v":0},{"$f":"[1]Infrastructure!AH1071","v":0},0]
[0,null,null,null,null,null,{"$f":"[1]Infrastructure!G1072","v":0},{"$f":"[1]Infrastructure!H1072","v":0},{"$f":"[1]Infrastructure!I1072","v":0},{"$f":"[1]Infrastructure!J1072","v":0},{"$f":"[1]Infrastructure!K1072","v":0},{"$f":"[1]Infrastructure!L1072","v":0},{"$f":"[1]Infrastructure!M1072","v":0},{"$f":"[1]Infrastructure!N1072","v":0},{"$f":"[1]Infrastructure!O1072","v":0},{"$f":"[1]Infrastructure!Q1072","v":0},{"$f":"[1]Infrastructure!R1072","v":0},{"$f":"[1]Infrastructure!T1072","v":0},{"$f":"[1]Infrastructure!W1072","v":0},{"$f":"[1]Infrastructure!W1072","v":0},0,{"$f":"[1]Infrastructure!Z1072","v":0},{"$f":"[1]Infrastructure!Z1072","v":0},0,{"$f":"[1]Infrastructure!AB1072","v":0},{"$f":"[1]Infrastructure!AB1072","v":0},0,{"$f":"[1]Infrastructure!AC1072","v":0},{"$f":"[1]Infrastructure!AD1072","v":0},{"$f":"[1]Infrastructure!AE1072","v":0},{"$f":"[1]Infrastructure!AF1072","v":0},{"$f":"[1]Infrastructure!AG1072","v":0},{"$f":"[1]Infrastructure!AH1072","v":0},0]
[0,null,null,null,null,null,{"$f":"[1]Infrastructure!G1073","v":0},{"$f":"[1]Infrastructure!H1073","v":0},{"$f":"[1]Infrastructure!I1073","v":0},{"$f":"[1]Infrastructure!J1073","v":0},{"$f":"[1]Infrastructure!K1073","v":0},{"$f":"[1]Infrastructure!L1073","v":0},{"$f":"[1]Infrastructure!M1073","v":0},{"$f":"[1]Infrastructure!N1073","v":0},{"$f":"[1]Infrastructure!O1073","v":0},{"$f":"[1]Infrastructure!Q1073","v":0},{"$f":"[1]Infrastructure!R1073","v":0},{"$f":"[1]Infrastructure!T1073","v":0},{"$f":"[1]Infrastructure!W1073","v":0},{"$f":"[1]Infrastructure!W1073","v":0},0,{"$f":"[1]Infrastructure!Z1073","v":0},{"$f":"[1]Infrastructure!Z1073","v":0},0,{"$f":"[1]Infrastructure!AB1073","v":0},{"$f":"[1]Infrastructure!AB1073","v":0},0,{"$f":"[1]Infrastructure!AC1073","v":0},{"$f":"[1]Infrastructure!AD1073","v":0},{"$f":"[1]Infrastructure!AE1073","v":0},{"$f":"[1]Infrastructure!AF1073","v":0},{"$f":"[1]Infrastructure!AG1073","v":0},{"$f":"[1]Infrastructure!AH1073","v":0},0]
[0,null,null,null,null,null,{"$f":"[1]Infrastructure!G1074","v":0},{"$f":"[1]Infrastructure!H1074","v":0},{"$f":"[1]Infrastructure!I1074","v":0},{"$f":"[1]Infrastructure!J1074","v":0},{"$f":"[1]Infrastructure!K1074","v":0},{"$f":"[1]Infrastructure!L1074","v":0},{"$f":"[1]Infrastructure!M1074","v":0},{"$f":"[1]Infrastructure!N1074","v":0},{"$f":"[1]Infrastructure!O1074","v":0},{"$f":"[1]Infrastructure!Q1074","v":0},{"$f":"[1]Infrastructure!R1074","v":0},{"$f":"[1]Infrastructure!T1074","v":0},{"$f":"[1]Infrastructure!W1074","v":0},{"$f":"[1]Infrastructure!W1074","v":0},0,{"$f":"[1]Infrastructure!Z1074","v":0},{"$f":"[1]Infrastructure!Z1074","v":0},0,{"$f":"[1]Infrastructure!AB1074","v":0},{"$f":"[1]Infrastructure!AB1074","v":0},0,{"$f":"[1]Infrastructure!AC1074","v":0},{"$f":"[1]Infrastructure!AD1074","v":0},{"$f":"[1]Infrastructure!AE1074","v":0},{"$f":"[1]Infrastructure!AF1074","v":0},{"$f":"[1]Infrastructure!AG1074","v":0},{"$f":"[1]Infrastructure!AH1074","v":0},0]
[0,null,null,null,null,null,{"$f":"[1]Infrastructure!G1075","v":0},{"$f":"[1]Infrastructure!H1075","v":0},{"$f":"[1]Infrastructure!I1075","v":0},{"$f":"[1]Infrastructure!J1075","v":0},{"$f":"[1]Infrastructure!K1075","v":0},{"$f":"[1]Infrastructure!L1075","v":0},{"$f":"[1]Infrastructure!M1075","v":0},{"$f":"[1]Infrastructure!N1075","v":0},{"$f":"[1]Infrastructure!O1075","v":0},{"$f":"[1]Infrastructure!Q1075","v":0},{"$f":"[1]Infrastructure!R1075","v":0},{"$f":"[1]Infrastructure!T1075","v":0},{"$f":"[1]Infrastructure!W1075","v":0},{"$f":"[1]Infrastructure!W1075","v":0},0,{"$f":"[1]Infrastructure!Z1075","v":0},{"$f":"[1]Infrastructure!Z1075","v":0},0,{"$f":"[1]Infrastructure!AB1075","v":0},{"$f":"[1]Infrastructure!AB1075","v":0},0,{"$f":"[1]Infrastructure!AC1075","v":0},{"$f":"[1]Infrastructure!AD1075","v":0},{"$f":"[1]Infrastructure!AE1075","v":0},{"$f":"[1]Infrastructure!AF1075","v":0},{"$f":"[1]Infrastructure!AG1075","v":0},{"$f":"[1]Infrastructure!AH1075","v":0},0]
[0,null,null,null,null,null,{"$f":"[1]Infrastructure!G1076","v":0},{"$f":"[1]Infrastructure!H1076","v":0},{"$f":"[1]Infrastructure!I1076","v":0},{"$f":"[1]Infrastructure!J1076","v":0},{"$f":"[1]Infrastructure!K1076","v":0},{"$f":"[1]Infrastructure!L1076","v":0},{"$f":"[1]Infrastructure!M1076","v":0},{"$f":"[1]Infrastructure!N1076","v":0},{"$f":"[1]Infrastructure!O1076","v":0},{"$f":"[1]Infrastructure!Q1076","v":0},{"$f":"[1]Infrastructure!R1076","v":0},{"$f":"[1]Infrastructure!T1076","v":0},{"$f":"[1]Infrastructure!W1076","v":0},{"$f":"[1]Infrastructure!W1076","v":0},0,{"$f":"[1]Infrastructure!Z1076","v":0},{"$f":"[1]Infrastructure!Z1076","v":0},0,{"$f":"[1]Infrastructure!AB1076","v":0},{"$f":"[1]Infrastructure!AB1076","v":0},0,{"$f":"[1]Infrastructure!AC1076","v":0},{"$f":"[1]Infrastructure!AD1076","v":0},{"$f":"[1]Infrastructure!AE1076","v":0},{"$f":"[1]Infrastructure!AF1076","v":0},{"$f":"[1]Infrastructure!AG1076","v":0},{"$f":"[1]Infrastructure!AH1076","v":0},0]
[0,null,null,null,null,null,{"$f":"[1]Infrastructure!G1077","v":0},{"$f":"[1]Infrastructure!H1077","v":0},{"$f":"[1]Infrastructure!I1077","v":0},{"$f":"[1]Infrastructure!J1077","v":0},{"$f":"[1]Infrastructure!K1077","v":0},{"$f":"[1]Infrastructure!L1077","v":0},{"$f":"[1]Infrastructure!M1077","v":0},{"$f":"[1]Infrastructure!N1077","v":0},{"$f":"[1]Infrastructure!O1077","v":0},{"$f":"[1]Infrastructure!Q1077","v":0},{"$f":"[1]Infrastructure!R1077","v":0},{"$f":"[1]Infrastructure!T1077","v":0},{"$f":"[1]Infrastructure!W1077","v":0},{"$f":"[1]Infrastructure!W1077","v":0},0,{"$f":"[1]Infrastructure!Z1077","v":0},{"$f":"[1]Infrastructure!Z1077","v":0},0,{"$f":"[1]Infrastructure!AB1077","v":0},{"$f":"[1]Infrastructure!AB1077","v":0},0,{"$f":"[1]Infrastructure!AC1077","v":0},{"$f":"[1]Infrastructure!AD1077","v":0},{"$f":"[1]Infrastructure!AE1077","v":0},{"$f":"[1]Infrastructure!AF1077","v":0},{"$f":"[1]Infrastructure!AG1077","v":0},{"$f":"[1]Infrastructure!AH1077","v":0},0]
[0,null,null,null,null,null,{"$f":"[1]Infrastructure!G1078","v":0},{"$f":"[1]Infrastructure!H1078","v":0},{"$f":"[1]Infrastructure!I1078","v":0},{"$f":"[1]Infrastructure!J1078","v":0},{"$f":"[1]Infrastructure!K1078","v":0},{"$f":"[1]Infrastructure!L1078","v":0},{"$f":"[1]Infrastructure!M1078","v":0},{"$f":"[1]Infrastructure!N1078","v":0},{"$f":"[1]Infrastructure!O1078","v":0},{"$f":"[1]Infrastructure!Q1078","v":0},{"$f":"[1]Infrastructure!R1078","v":0},{"$f":"[1]Infrastructure!T1078","v":0},{"$f":"[1]Infrastructure!W1078","v":0},{"$f":"[1]Infrastructure!W1078","v":0},0,{"$f":"[1]Infrastructure!Z1078","v":0},{"$f":"[1]Infrastructure!Z1078","v":0},0,{"$f":"[1]Infrastructure!AB1078","v":0},{"$f":"[1]Infrastructure!AB1078","v":0},0,{"$f":"[1]Infrastructure!AC1078","v":0},{"$f":"[1]Infrastructure!AD1078","v":0},{"$f":"[1]Infrastructure!AE1078","v":0},{"$f":"[1]Infrastructure!AF1078","v":0},{"$f":"[1]Infrastructure!AG1078","v":0},{"$f":"[1]Infrastructure!AH1078","v":0},0]
[0,null,null,null,null,null,{"$f":"[1]Infrastructure!G1079","v":0},{"$f":"[1]Infrastructure!H1079","v":0},{"$f":"[1]Infrastructure!I1079","v":0},{"$f":"[1]Infrastructure!J1079","v":0},{"$f":"[1]Infrastructure!K1079","v":0},{"$f":"[1]Infrastructure!L1079","v":0},{"$f":"[1]Infrastructure!M1079","v":0},{"$f":"[1]Infrastructure!N1079","v":0},{"$f":"[1]Infrastructure!O1079","v":0},{"$f":"[1]Infrastructure!Q1079","v":0},{"$f":"[1]Infrastructure!R1079","v":0},{"$f":"[1]Infrastructure!T1079","v":0},{"$f":"[1]Infrastructure!W1079","v":0},{"$f":"[1]Infrastructure!W1079","v":0},0,{"$f":"[1]Infrastructure!Z1079","v":0},{"$f":"[1]Infrastructure!Z1079","v":0},0,{"$f":"[1]Infrastructure!AB1079","v":0},{"$f":"[1]Infrastructure!AB1079","v":0},0,{"$f":"[1]Infrastructure!AC1079","v":0},{"$f":"[1]Infrastructure!AD1079","v":0},{"$f":"[1]Infrastructure!AE1079","v":0},{"$f":"[1]Infrastructure!AF1079","v":0},{"$f":"[1]Infrastructure!AG1079","v":0},{"$f":"[1]Infrastructure!AH1079","v":0},0]
[0,null,null,null,null,null,{"$f":"[1]Infrastructure!G1080","v":0},{"$f":"[1]Infrastructure!H1080","v":0},{"$f":"[1]Infrastructure!I1080","v":0},{"$f":"[1]Infrastructure!J1080","v":0},{"$f":"[1]Infrastructure!K1080","v":0},{"$f":"[1]Infrastructure!L1080","v":0},{"$f":"[1]Infrastructure!M1080","v":0},{"$f":"[1]Infrastructure!N1080","v":0},{"$f":"[1]Infrastructure!O1080","v":0},{"$f":"[1]Infrastructure!Q1080","v":0},{"$f":"[1]Infrastructure!R1080","v":0},{"$f":"[1]Infrastructure!T1080","v":0},{"$f":"[1]Infrastructure!W1080","v":0},{"$f":"[1]Infrastructure!W1080","v":0},0,{"$f":"[1]Infrastructure!Z1080","v":0},{"$f":"[1]Infrastructure!Z1080","v":0},0,{"$f":"[1]Infrastructure!AB1080","v":0},{"$f":"[1]Infrastructure!AB1080","v":0},0,{"$f":"[1]Infrastructure!AC1080","v":0},{"$f":"[1]Infrastructure!AD1080","v":0},{"$f":"[1]Infrastructure!AE1080","v":0},{"$f":"[1]Infrastructure!AF1080","v":0},{"$f":"[1]Infrastructure!AG1080","v":0},{"$f":"[1]Infrastructure!AH1080","v":0},0]
[0,null,null,null,null,null,{"$f":"[1]Infrastructure!G1081","v":0},{"$f":"[1]Infrastructure!H1081","v":0},{"$f":"[1]Infrastructure!I1081","v":0},{"$f":"[1]Infrastructure!J1081","v":0},{"$f":"[1]Infrastructure!K1081","v":0},{"$f":"[1]Infrastructure!L1081","v":0},{"$f":"[1]Infrastructure!M1081","v":0},{"$f":"[1]Infrastructure!N1081","v":0},{"$f":"[1]Infrastructure!O1081","v":0},{"$f":"[1]Infrastructure!Q1081","v":0},{"$f":"[1]Infrastructure!R1081","v":0},{"$f":"[1]Infrastructure!T1081","v":0},{"$f":"[1]Infrastructure!W1081","v":0},{"$f":"[1]Infrastructure!W1081","v":0},0,{"$f":"[1]Infrastructure!Z1081","v":0},{"$f":"[1]Infrastructure!Z1081","v":0},0,{"$f":"[1]Infrastructure!AB1081","v":0},{"$f":"[1]Infrastructure!AB1081","v":0},0,{"$f":"[1]Infrastructure!AC1081","v":0},{"$f":"[1]Infrastructure!AD1081","v":0},{"$f":"[1]Infrastructure!AE1081","v":0},{"$f":"[1]Infrastructure!AF1081","v":0},{"$f":"[1]Infrastructure!AG1081","v":0},{"$f":"[1]Infrastructure!AH1081","v":0},0]
[0,null,null,null,null,null,{"$f":"[1]Infrastructure!G1082","v":0},{"$f":"[1]Infrastructure!H1082","v":0},{"$f":"[1]Infrastructure!I1082","v":0},{"$f":"[1]Infrastructure!J1082","v":0},{"$f":"[1]Infrastructure!K1082","v":0},{"$f":"[1]Infrastructure!L1082","v":0},{"$f":"[1]Infrastructure!M1082","v":0},{"$f":"[1]Infrastructure!N1082","v":0},{"$f":"[1]Infrastructure!O1082","v":0},{"$f":"[1]Infrastructure!Q1082","v":0},{"$f":"[1]Infrastructure!R1082","v":0},{"$f":"[1]Infrastructure!T1082","v":0},{"$f":"[1]Infrastructure!W1082","v":0},{"$f":"[1]Infrastructure!W1082","v":0},0,{"$f":"[1]Infrastructure!Z1082","v":0},{"$f":"[1]Infrastructure!Z1082","v":0},0,{"$f":"[1]Infrastructure!AB1082","v":0},{"$f":"[1]Infrastructure!AB1082","v":0},0,{"$f":"[1]Infrastructure!AC1082","v":0},{"$f":"[1]Infrastructure!AD1082","v":0},{"$f":"[1]Infrastructure!AE1082","v":0},{"$f":"[1]Infrastructure!AF1082","v":0},{"$f":"[1]Infrastructure!AG1082","v":0},{"$f":"[1]Infrastructure!AH1082","v":0},0]
[0,null,null,null,null,null,{"$f":"[1]Infrastructure!G1083","v":0},{"$f":"[1]Infrastructure!H1083","v":0},{"$f":"[1]Infrastructure!I1083","v":0},{"$f":"[1]Infrastructure!J1083","v":0},{"$f":"[1]Infrastructure!K1083","v":0},{"$f":"[1]Infrastructure!L1083","v":0},{"$f":"[1]Infrastructure!M1083","v":0},{"$f":"[1]Infrastructure!N1083","v":0},{"$f":"[1]Infrastructure!O1083","v":0},{"$f":"[1]Infrastructure!Q1083","v":0},{"$f":"[1]Infrastructure!R1083","v":0},{"$f":"[1]Infrastructure!T1083","v":0},{"$f":"[1]Infrastructure!W1083","v":0},{"$f":"[1]Infrastructure!W1083","v":0},0,{"$f":"[1]Infrastructure!Z1083","v":0},{"$f":"[1]Infrastructure!Z1083","v":0},0,{"$f":"[1]Infrastructure!AB1083","v":0},{"$f":"[1]Infrastructure!AB1083","v":0},0,{"$f":"[1]Infrastructure!AC1083","v":0},{"$f":"[1]Infrastructure!AD1083","v":0},{"$f":"[1]Infrastructure!AE1083","v":0},{"$f":"[1]Infrastructure!AF1083","v":0},{"$f":"[1]Infrastructure!AG1083","v":0},{"$f":"[1]Infrastructure!AH1083","v":0},0]
[0,null,null,null,null,null,{"$f":"[1]Infrastructure!G1084","v":0},{"$f":"[1]Infrastructure!H1084","v":0},{"$f":"[1]Infrastructure!I1084","v":0},{"$f":"[1]Infrastructure!J1084","v":0},{"$f":"[1]Infrastructure!K1084","v":0},{"$f":"[1]Infrastructure!L1084","v":0},{"$f":"[1]Infrastructure!M1084","v":0},{"$f":"[1]Infrastructure!N1084","v":0},{"$f":"[1]Infrastructure!O1084","v":0},{"$f":"[1]Infrastructure!Q1084","v":0},{"$f":"[1]Infrastructure!R1084","v":0},{"$f":"[1]Infrastructure!T1084","v":0},{"$f":"[1]Infrastructure!W1084","v":0},{"$f":"[1]Infrastructure!W1084","v":0},0,{"$f":"[1]Infrastructure!Z1084","v":0},{"$f":"[1]Infrastructure!Z1084","v":0},0,{"$f":"[1]Infrastructure!AB1084","v":0},{"$f":"[1]Infrastructure!AB1084","v":0},0,{"$f":"[1]Infrastructure!AC1084","v":0},{"$f":"[1]Infrastructure!AD1084","v":0},{"$f":"[1]Infrastructure!AE1084","v":0},{"$f":"[1]Infrastructure!AF1084","v":0},{"$f":"[1]Infrastructure!AG1084","v":0},{"$f":"[1]Infrastructure!AH1084","v":0},0]
[0,null,null,null,null,null,{"$f":"[1]Infrastructure!G1085","v":0},{"$f":"[1]Infrastructure!H1085","v":0},{"$f":"[1]Infrastructure!I1085","v":0},{"$f":"[1]Infrastructure!J1085","v":0},{"$f":"[1]Infrastructure!K1085","v":0},{"$f":"[1]Infrastructure!L1085","v":0},{"$f":"[1]Infrastructure!M1085","v":0},{"$f":"[1]Infrastructure!N1085","v":0},{"$f":"[1]Infrastructure!O1085","v":0},{"$f":"[1]Infrastructure!Q1085","v":0},{"$f":"[1]Infrastructure!R1085","v":0},{"$f":"[1]Infrastructure!T1085","v":0},{"$f":"[1]Infrastructure!W1085","v":0},{"$f":"[1]Infrastructure!W1085","v":0},0,{"$f":"[1]Infrastructure!Z1085","v":0},{"$f":"[1]Infrastructure!Z1085","v":0},0,{"$f":"[1]Infrastructure!AB1085","v":0},{"$f":"[1]Infrastructure!AB1085","v":0},0,{"$f":"[1]Infrastructure!AC1085","v":0},{"$f":"[1]Infrastructure!AD1085","v":0},{"$f":"[1]Infrastructure!AE1085","v":0},{"$f":"[1]Infrastructure!AF1085","v":0},{"$f":"[1]Infrastructure!AG1085","v":0},{"$f":"[1]Infrastructure!AH1085","v":0},0]
[0,null,null,null,null,null,{"$f":"[1]Infrastructure!G1086","v":0},{"$f":"[1]Infrastructure!H1086","v":0},{"$f":"[1]Infrastructure!I1086","v":0},{"$f":"[1]Infrastructure!J1086","v":0},{"$f":"[1]Infrastructure!K1086","v":0},{"$f":"[1]Infrastructure!L1086","v":0},{"$f":"[1]Infrastructure!M1086","v":0},{"$f":"[1]Infrastructure!N1086","v":0},{"$f":"[1]Infrastructure!O1086","v":0},{"$f":"[1]Infrastructure!Q1086","v":0},{"$f":"[1]Infrastructure!R1086","v":0},{"$f":"[1]Infrastructure!T1086","v":0},{"$f":"[1]Infrastructure!W1086","v":0},{"$f":"[1]Infrastructure!W1086","v":0},0,{"$f":"[1]Infrastructure!Z1086","v":0},{"$f":"[1]Infrastructure!Z1086","v":0},0,{"$f":"[1]Infrastructure!AB1086","v":0},{"$f":"[1]Infrastructure!AB1086","v":0},0,{"$f":"[1]Infrastructure!AC1086","v":0},{"$f":"[1]Infrastructure!AD1086","v":0},{"$f":"[1]Infrastructure!AE1086","v":0},{"$f":"[1]Infrastructure!AF1086","v":0},{"$f":"[1]Infrastructure!AG1086","v":0},{"$f":"[1]Infrastructure!AH1086","v":0},0]
[0,null,null,null,null,null,{"$f":"[1]Infrastructure!G1087","v":0},{"$f":"[1]Infrastructure!H1087","v":0},{"$f":"[1]Infrastructure!I1087","v":0},{"$f":"[1]Infrastructure!J1087","v":0},{"$f":"[1]Infrastructure!K1087","v":0},{"$f":"[1]Infrastructure!L1087","v":0},{"$f":"[1]Infrastructure!M1087","v":0},{"$f":"[1]Infrastructure!N1087","v":0},{"$f":"[1]Infrastructure!O1087","v":0},{"$f":"[1]Infrastructure!Q1087","v":0},{"$f":"[1]Infrastructure!R1087","v":0},{"$f":"[1]Infrastructure!T1087","v":0},{"$f":"[1]Infrastructure!W1087","v":0},{"$f":"[1]Infrastructure!W1087","v":0},0,{"$f":"[1]Infrastructure!Z1087","v":0},{"$f":"[1]Infrastructure!Z1087","v":0},0,{"$f":"[1]Infrastructure!AB1087","v":0},{"$f":"[1]Infrastructure!AB1087","v":0},0,{"$f":"[1]Infrastructure!AC1087","v":0},{"$f":"[1]Infrastructure!AD1087","v":0},{"$f":"[1]Infrastructure!AE1087","v":0},{"$f":"[1]Infrastructure!AF1087","v":0},{"$f":"[1]Infrastructure!AG1087","v":0},{"$f":"[1]Infrastructure!AH1087","v":0},0]
[0,null,null,null,null,null,{"$f":"[1]Infrastructure!G1088","v":0},{"$f":"[1]Infrastructure!H1088","v":0},{"$f":"[1]Infrastructure!I1088","v":0},{"$f":"[1]Infrastructure!J1088","v":0},{"$f":"[1]Infrastructure!K1088","v":0},{"$f":"[1]Infrastructure!L1088","v":0},{"$f":"[1]Infrastructure!M1088","v":0},{"$f":"[1]Infrastructure!N1088","v":0},{"$f":"[1]Infrastructure!O1088","v":0},{"$f":"[1]Infrastructure!Q1088","v":0},{"$f":"[1]Infrastructure!R1088","v":0},{"$f":"[1]Infrastructure!T1088","v":0},{"$f":"[1]Infrastructure!W1088","v":0},{"$f":"[1]Infrastructure!W1088","v":0},0,{"$f":"[1]Infrastructure!Z1088","v":0},{"$f":"[1]Infrastructure!Z1088","v":0},0,{"$f":"[1]Infrastructure!AB1088","v":0},{"$f":"[1]Infrastructure!AB1088","v":0},0,{"$f":"[1]Infrastructure!AC1088","v":0},{"$f":"[1]Infrastructure!AD1088","v":0},{"$f":"[1]Infrastructure!AE1088","v":0},{"$f":"[1]Infrastructure!AF1088","v":0},{"$f":"[1]Infrastructure!AG1088","v":0},{"$f":"[1]Infrastructure!AH1088","v":0},0]
[0,null,null,null,null,null,{"$f":"[1]Infrastructure!G1089","v":0},{"$f":"[1]Infrastructure!H1089","v":0},{"$f":"[1]Infrastructure!I1089","v":0},{"$f":"[1]Infrastructure!J1089","v":0},{"$f":"[1]Infrastructure!K1089","v":0},{"$f":"[1]Infrastructure!L1089","v":0},{"$f":"[1]Infrastructure!M1089","v":0},{"$f":"[1]Infrastructure!N1089","v":0},{"$f":"[1]Infrastructure!O1089","v":0},{"$f":"[1]Infrastructure!Q1089","v":0},{"$f":"[1]Infrastructure!R1089","v":0},{"$f":"[1]Infrastructure!T1089","v":0},{"$f":"[1]Infrastructure!W1089","v":0},{"$f":"[1]Infrastructure!W1089","v":0},0,{"$f":"[1]Infrastructure!Z1089","v":0},{"$f":"[1]Infrastructure!Z1089","v":0},0,{"$f":"[1]Infrastructure!AB1089","v":0},{"$f":"[1]Infrastructure!AB1089","v":0},0,{"$f":"[1]Infrastructure!AC1089","v":0},{"$f":"[1]Infrastructure!AD1089","v":0},{"$f":"[1]Infrastructure!AE1089","v":0},{"$f":"[1]Infrastructure!AF1089","v":0},{"$f":"[1]Infrastructure!AG1089","v":0},{"$f":"[1]Infrastructure!AH1089","v":0},0]
[0,null,null,null,null,null,{"$f":"[1]Infrastructure!G1090","v":0},{"$f":"[1]Infrastructure!H1090","v":0},{"$f":"[1]Infrastructure!I1090","v":0},{"$f":"[1]Infrastructure!J1090","v":0},{"$f":"[1]Infrastructure!K1090","v":0},{"$f":"[1]Infrastructure!L1090","v":0},{"$f":"[1]Infrastructure!M1090","v":0},{"$f":"[1]Infrastructure!N1090","v":0},{"$f":"[1]Infrastructure!O1090","v":0},{"$f":"[1]Infrastructure!Q1090","v":0},{"$f":"[1]Infrastructure!R1090","v":0},{"$f":"[1]Infrastructure!T1090","v":0},{"$f":"[1]Infrastructure!W1090","v":0},{"$f":"[1]Infrastructure!W1090","v":0},0,{"$f":"[1]Infrastructure!Z1090","v":0},{"$f":"[1]Infrastructure!Z1090","v":0},0,{"$f":"[1]Infrastructure!AB1090","v":0},{"$f":"[1]Infrastructure!AB1090","v":0},0,{"$f":"[1]Infrastructure!AC1090","v":0},{"$f":"[1]Infrastructure!AD1090","v":0},{"$f":"[1]Infrastructure!AE1090","v":0},{"$f":"[1]Infrastructure!AF1090","v":0},{"$f":"[1]Infrastructure!AG1090","v":0},{"$f":"[1]Infrastructure!AH1090","v":0},0]
[0,null,null,null,null,null,{"$f":"[1]Infrastructure!G1091","v":0},{"$f":"[1]Infrastructure!H1091","v":0},{"$f":"[1]Infrastructure!I1091","v":0},{"$f":"[1]Infrastructure!J1091","v":0},{"$f":"[1]Infrastructure!K1091","v":0},{"$f":"[1]Infrastructure!L1091","v":0},{"$f":"[1]Infrastructure!M1091","v":0},{"$f":"[1]Infrastructure!N1091","v":0},{"$f":"[1]Infrastructure!O1091","v":0},{"$f":"[1]Infrastructure!Q1091","v":0},{"$f":"[1]Infrastructure!R1091","v":0},{"$f":"[1]Infrastructure!T1091","v":0},{"$f":"[1]Infrastructure!W1091","v":0},{"$f":"[1]Infrastructure!W1091","v":0},0,{"$f":"[1]Infrastructure!Z1091","v":0},{"$f":"[1]Infrastructure!Z1091","v":0},0,{"$f":"[1]Infrastructure!AB1091","v":0},{"$f":"[1]Infrastructure!AB1091","v":0},0,{"$f":"[1]Infrastructure!AC1091","v":0},{"$f":"[1]Infrastructure!AD1091","v":0},{"$f":"[1]Infrastructure!AE1091","v":0},{"$f":"[1]Infrastructure!AF1091","v":0},{"$f":"[1]Infrastructure!AG1091","v":0},{"$f":"[1]Infrastructure!AH1091","v":0},0]
[0,null,null,null,null,null,{"$f":"[1]Infrastructure!G1092","v":0},{"$f":"[1]Infrastructure!H1092","v":0},{"$f":"[1]Infrastructure!I1092","v":0},{"$f":"[1]Infrastructure!J1092","v":0},{"$f":"[1]Infrastructure!K1092","v":0},{"$f":"[1]Infrastructure!L1092","v":0},{"$f":"[1]Infrastructure!M1092","v":0},{"$f":"[1]Infrastructure!N1092","v":0},{"$f":"[1]Infrastructure!O1092","v":0},{"$f":"[1]Infrastructure!Q1092","v":0},{"$f":"[1]Infrastructure!R1092","v":0},{"$f":"[1]Infrastructure!T1092","v":0},{"$f":"[1]Infrastructure!W1092","v":0},{"$f":"[1]Infrastructure!W1092","v":0},0,{"$f":"[1]Infrastructure!Z1092","v":0},{"$f":"[1]Infrastructure!Z1092","v":0},0,{"$f":"[1]Infrastructure!AB1092","v":0},{"$f":"[1]Infrastructure!AB1092","v":0},0,{"$f":"[1]Infrastructure!AC1092","v":0},{"$f":"[1]Infrastructure!AD1092","v":0},{"$f":"[1]Infrastructure!AE1092","v":0},{"$f":"[1]Infrastructure!AF1092","v":0},{"$f":"[1]Infrastructure!AG1092","v":0},{"$f":"[1]Infrastructure!AH1092","v":0},0]
[0,null,null,null,null,null,{"$f":"[1]Infrastructure!G1093","v":0},{"$f":"[1]Infrastructure!H1093","v":0},{"$f":"[1]Infrastructure!I1093","v":0},{"$f":"[1]Infrastructure!J1093","v":0},{"$f":"[1]Infrastructure!K1093","v":0},{"$f":"[1]Infrastructure!L1093","v":0},{"$f":"[1]Infrastructure!M1093","v":0},{"$f":"[1]Infrastructure!N1093","v":0},{"$f":"[1]Infrastructure!O1093","v":0},{"$f":"[1]Infrastructure!Q1093","v":0},{"$f":"[1]Infrastructure!R1093","v":0},{"$f":"[1]Infrastructure!T1093","v":0},{"$f":"[1]Infrastructure!W1093","v":0},{"$f":"[1]Infrastructure!W1093","v":0},0,{"$f":"[1]Infrastructure!Z1093","v":0},{"$f":"[1]Infrastructure!Z1093","v":0},0,{"$f":"[1]Infrastructure!AB1093","v":0},{"$f":"[1]Infrastructure!AB1093","v":0},0,{"$f":"[1]Infrastructure!AC1093","v":0},{"$f":"[1]Infrastructure!AD1093","v":0},{"$f":"[1]Infrastructure!AE1093","v":0},{"$f":"[1]Infrastructure!AF1093","v":0},{"$f":"[1]Infrastructure!AG1093","v":0},{"$f":"[1]Infrastructure!AH1093","v":0},0]
[0,null,null,null,null,null,{"$f":"[1]Infrastructure!G1094","v":0},{"$f":"[1]Infrastructure!H1094","v":0},{"$f":"[1]Infrastructure!I1094","v":0},{"$f":"[1]Infrastructure!J1094","v":0},{"$f":"[1]Infrastructure!K1094","v":0},{"$f":"[1]Infrastructure!L1094","v":0},{"$f":"[1]Infrastructure!M1094","v":0},{"$f":"[1]Infrastructure!N1094","v":0},{"$f":"[1]Infrastructure!O1094","v":0},{"$f":"[1]Infrastructure!Q1094","v":0},{"$f":"[1]Infrastructure!R1094","v":0},{"$f":"[1]Infrastructure!T1094","v":0},{"$f":"[1]Infrastructure!W1094","v":0},{"$f":"[1]Infrastructure!W1094","v":0},0,{"$f":"[1]Infrastructure!Z1094","v":0},{"$f":"[1]Infrastructure!Z1094","v":0},0,{"$f":"[1]Infrastructure!AB1094","v":0},{"$f":"[1]Infrastructure!AB1094","v":0},0,{"$f":"[1]Infrastructure!AC1094","v":0},{"$f":"[1]Infrastructure!AD1094","v":0},{"$f":"[1]Infrastructure!AE1094","v":0},{"$f":"[1]Infrastructure!AF1094","v":0},{"$f":"[1]Infrastructure!AG1094","v":0},{"$f":"[1]Infrastructure!AH1094","v":0},0]
[0,null,null,null,null,null,{"$f":"[1]Infrastructure!G1095","v":0},{"$f":"[1]Infrastructure!H1095","v":0},{"$f":"[1]Infrastructure!I1095","v":0},{"$f":"[1]Infrastructure!J1095","v":0},{"$f":"[1]Infrastructure!K1095","v":0},{"$f":"[1]Infrastructure!L1095","v":0},{"$f":"[1]Infrastructure!M1095","v":0},{"$f":"[1]Infrastructure!N1095","v":0},{"$f":"[1]Infrastructure!O1095","v":0},{"$f":"[1]Infrastructure!Q1095","v":0},{"$f":"[1]Infrastructure!R1095","v":0},{"$f":"[1]Infrastructure!T1095","v":0},{"$f":"[1]Infrastructure!W1095","v":0},{"$f":"[1]Infrastructure!W1095","v":0},0,{"$f":"[1]Infrastructure!Z1095","v":0},{"$f":"[1]Infrastructure!Z1095","v":0},0,{"$f":"[1]Infrastructure!AB1095","v":0},{"$f":"[1]Infrastructure!AB1095","v":0},0,{"$f":"[1]Infrastructure!AC1095","v":0},{"$f":"[1]Infrastructure!AD1095","v":0},{"$f":"[1]Infrastructure!AE1095","v":0},{"$f":"[1]Infrastructure!AF1095","v":0},{"$f":"[1]Infrastructure!AG1095","v":0},{"$f":"[1]Infrastructure!AH1095","v":0},0]
[0,null,null,null,null,null,{"$f":"[1]Infrastructure!G1096","v":0},{"$f":"[1]Infrastructure!H1096","v":0},{"$f":"[1]Infrastructure!I1096","v":0},{"$f":"[1]Infrastructure!J1096","v":0},{"$f":"[1]Infrastructure!K1096","v":0},{"$f":"[1]Infrastructure!L1096","v":0},{"$f":"[1]Infrastructure!M1096","v":0},{"$f":"[1]Infrastructure!N1096","v":0},{"$f":"[1]Infrastructure!O1096","v":0},{"$f":"[1]Infrastructure!Q1096","v":0},{"$f":"[1]Infrastructure!R1096","v":0},{"$f":"[1]Infrastructure!T1096","v":0},{"$f":"[1]Infrastructure!W1096","v":0},{"$f":"[1]Infrastructure!W1096","v":0},0,{"$f":"[1]Infrastructure!Z1096","v":0},{"$f":"[1]Infrastructure!Z1096","v":0},0,{"$f":"[1]Infrastructure!AB1096","v":0},{"$f":"[1]Infrastructure!AB1096","v":0},0,{"$f":"[1]Infrastructure!AC1096","v":0},{"$f":"[1]Infrastructure!AD1096","v":0},{"$f":"[1]Infrastructure!AE1096","v":0},{"$f":"[1]Infrastructure!AF1096","v":0},{"$f":"[1]Infrastructure!AG1096","v":0},{"$f":"[1]Infrastructure!AH1096","v":0},0]
[0,null,null,null,null,null,{"$f":"[1]Infrastructure!G1097","v":0},{"$f":"[1]Infrastructure!H1097","v":0},{"$f":"[1]Infrastructure!I1097","v":0},{"$f":"[1]Infrastructure!J1097","v":0},{"$f":"[1]Infrastructure!K1097","v":0},{"$f":"[1]Infrastructure!L1097","v":0},{"$f":"[1]Infrastructure!M1097","v":0},{"$f":"[1]Infrastructure!N1097","v":0},{"$f":"[1]Infrastructure!O1097","v":0},{"$f":"[1]Infrastructure!Q1097","v":0},{"$f":"[1]Infrastructure!R1097","v":0},{"$f":"[1]Infrastructure!T1097","v":0},{"$f":"[1]Infrastructure!W1097","v":0},{"$f":"[1]Infrastructure!W1097","v":0},0,{"$f":"[1]Infrastructure!Z1097","v":0},{"$f":"[1]Infrastructure!Z1097","v":0},0,{"$f":"[1]Infrastructure!AB1097","v":0},{"$f":"[1]Infrastructure!AB1097","v":0},0,{"$f":"[1]Infrastructure!AC1097","v":0},{"$f":"[1]Infrastructure!AD1097","v":0},{"$f":"[1]Infrastructure!AE1097","v":0},{"$f":"[1]Infrastructure!AF1097","v":0},{"$f":"[1]Infrastructure!AG1097","v":0},{"$f":"[1]Infrastructure!AH1097","v":0},0]
[0,null,null,null,null,null,{"$f":"[1]Infrastructure!G1098","v":0},{"$f":"[1]Infrastructure!H1098","v":0},{"$f":"[1]Infrastructure!I1098","v":0},{"$f":"[1]Infrastructure!J1098","v":0},{"$f":"[1]Infrastructure!K1098","v":0},{"$f":"[1]Infrastructure!L1098","v":0},{"$f":"[1]Infrastructure!M1098","v":0},{"$f":"[1]Infrastructure!N1098","v":0},{"$f":"[1]Infrastructure!O1098","v":0},{"$f":"[1]Infrastructure!Q1098","v":0},{"$f":"[1]Infrastructure!R1098","v":0},{"$f":"[1]Infrastructure!T1098","v":0},{"$f":"[1]Infrastructure!W1098","v":0},{"$f":"[1]Infrastructure!W1098","v":0},0,{"$f":"[1]Infrastructure!Z1098","v":0},{"$f":"[1]Infrastructure!Z1098","v":0},0,{"$f":"[1]Infrastructure!AB1098","v":0},{"$f":"[1]Infrastructure!AB1098","v":0},0,{"$f":"[1]Infrastructure!AC1098","v":0},{"$f":"[1]Infrastructure!AD1098","v":0},{"$f":"[1]Infrastructure!AE1098","v":0},{"$f":"[1]Infrastructure!AF1098","v":0},{"$f":"[1]Infrastructure!AG1098","v":0},{"$f":"[1]Infrastructure!AH1098","v":0},0]
[0,null,null,null,null,null,{"$f":"[1]Infrastructure!G1099","v":0},{"$f":"[1]Infrastructure!H1099","v":0},{"$f":"[1]Infrastructure!I1099","v":0},{"$f":"[1]Infrastructure!J1099","v":0},{"$f":"[1]Infrastructure!K1099","v":0},{"$f":"[1]Infrastructure!L1099","v":0},{"$f":"[1]Infrastructure!M1099","v":0},{"$f":"[1]Infrastructure!N1099","v":0},{"$f":"[1]Infrastructure!O1099","v":0},{"$f":"[1]Infrastructure!Q1099","v":0},{"$f":"[1]Infrastructure!R1099","v":0},{"$f":"[1]Infrastructure!T1099","v":0},{"$f":"[1]Infrastructure!W1099","v":0},{"$f":"[1]Infrastructure!W1099","v":0},0,{"$f":"[1]Infrastructure!Z1099","v":0},{"$f":"[1]Infrastructure!Z1099","v":0},0,{"$f":"[1]Infrastructure!AB1099","v":0},{"$f":"[1]Infrastructure!AB1099","v":0},0,{"$f":"[1]Infrastructure!AC1099","v":0},{"$f":"[1]Infrastructure!AD1099","v":0},{"$f":"[1]Infrastructure!AE1099","v":0},{"$f":"[1]Infrastructure!AF1099","v":0},{"$f":"[1]Infrastructure!AG1099","v":0},{"$f":"[1]Infrastructure!AH1099","v":0},0]
[{"$f":"IF(SUM(O1100:AH1100),1,0)","v":0},null,null,null,null,null,{"$f":"[1]Infrastructure!G1100","v":0},{"$f":"[1]Infrastructure!H1100","v":0},{"$f":"[1]Infrastructure!I1100","v":0},{"$f":"[1]Infrastructure!J1100","v":0},{"$f":"[1]Infrastructure!K1100","v":0},{"$f":"[1]Infrastructure!L1100","v":0},{"$f":"[1]Infrastructure!M1100","v":0},{"$f":"[1]Infrastructure!N1100","v":0},{"$f":"[1]Infrastructure!O1100","v":0},{"$f":"[1]Infrastructure!Q1100","v":0},{"$f":"[1]Infrastructure!R1100","v":0},{"$f":"[1]Infrastructure!T1100","v":0},{"$f":"[1]Infrastructure!W1100","v":0},{"$f":"[1]Infrastructure!W1100","v":0},0,{"$f":"[1]Infrastructure!Z1100","v":0},{"$f":"[1]Infrastructure!Z1100","v":0},0,{"$f":"[1]Infrastructure!AB1100","v":0},{"$f":"[1]Infrastructure!AB1100","v":0},0,{"$f":"[1]Infrastructure!AC1100","v":0},{"$f":"[1]Infrastructure!AD1100","v":0},{"$f":"[1]Infrastructure!AE1100","v":0},{"$f":"[1]Infrastructure!AF1100","v":0},{"$f":"[1]Infrastructure!AG1100","v":0},{"$f":"[1]Infrastructure!AH1100","v":0},0]
[0,null,null,null,null,null,{"$f":"[1]Infrastructure!G1101","v":0},{"$f":"[1]Infrastructure!H1101","v":0},{"$f":"[1]Infrastructure!I1101","v":0},{"$f":"[1]Infrastructure!J1101","v":0},{"$f":"[1]Infrastructure!K1101","v":0},{"$f":"[1]Infrastructure!L1101","v":0},{"$f":"[1]Infrastructure!M1101","v":0},{"$f":"[1]Infrastructure!N1101","v":0},{"$f":"[1]Infrastructure!O1101","v":0},{"$f":"[1]Infrastructure!Q1101","v":0},{"$f":"[1]Infrastructure!R1101","v":0},{"$f":"[1]Infrastructure!T1101","v":0},{"$f":"[1]Infrastructure!W1101","v":0},{"$f":"[1]Infrastructure!W1101","v":0},0,{"$f":"[1]Infrastructure!Z1101","v":0},{"$f":"[1]Infrastructure!Z1101","v":0},0,{"$f":"[1]Infrastructure!AB1101","v":0},{"$f":"[1]Infrastructure!AB1101","v":0},0,{"$f":"[1]Infrastructure!AC1101","v":0},{"$f":"[1]Infrastructure!AD1101","v":0},{"$f":"[1]Infrastructure!AE1101","v":0},{"$f":"[1]Infrastructure!AF1101","v":0},{"$f":"[1]Infrastructure!AG1101","v":0},{"$f":"[1]Infrastructure!AH1101","v":0},0]
[0,null,null,null,null,null,{"$f":"[1]Infrastructure!G1102","v":0},{"$f":"[1]Infrastructure!H1102","v":0},{"$f":"[1]Infrastructure!I1102","v":0},{"$f":"[1]Infrastructure!J1102","v":0},{"$f":"[1]Infrastructure!K1102","v":0},{"$f":"[1]Infrastructure!L1102","v":0},{"$f":"[1]Infrastructure!M1102","v":0},{"$f":"[1]Infrastructure!N1102","v":0},{"$f":"[1]Infrastructure!O1102","v":0},{"$f":"[1]Infrastructure!Q1102","v":0},{"$f":"[1]Infrastructure!R1102","v":0},{"$f":"[1]Infrastructure!T1102","v":0},{"$f":"[1]Infrastructure!W1102","v":0},{"$f":"[1]Infrastructure!W1102","v":0},0,{"$f":"[1]Infrastructure!Z1102","v":0},{"$f":"[1]Infrastructure!Z1102","v":0},0,{"$f":"[1]Infrastructure!AB1102","v":0},{"$f":"[1]Infrastructure!AB1102","v":0},0,{"$f":"[1]Infrastructure!AC1102","v":0},{"$f":"[1]Infrastructure!AD1102","v":0},{"$f":"[1]Infrastructure!AE1102","v":0},{"$f":"[1]Infrastructure!AF1102","v":0},{"$f":"[1]Infrastructure!AG1102","v":0},{"$f":"[1]Infrastructure!AH1102","v":0},0]
[0,null,null,null,null,null,{"$f":"[1]Infrastructure!G1103","v":0},{"$f":"[1]Infrastructure!H1103","v":0},{"$f":"[1]Infrastructure!I1103","v":0},{"$f":"[1]Infrastructure!J1103","v":0},{"$f":"[1]Infrastructure!K1103","v":0},{"$f":"[1]Infrastructure!L1103","v":0},{"$f":"[1]Infrastructure!M1103","v":0},{"$f":"[1]Infrastructure!N1103","v":0},{"$f":"[1]Infrastructure!O1103","v":0},{"$f":"[1]Infrastructure!Q1103","v":0},{"$f":"[1]Infrastructure!R1103","v":0},{"$f":"[1]Infrastructure!T1103","v":0},{"$f":"[1]Infrastructure!W1103","v":0},{"$f":"[1]Infrastructure!W1103","v":0},0,{"$f":"[1]Infrastructure!Z1103","v":0},{"$f":"[1]Infrastructure!Z1103","v":0},0,{"$f":"[1]Infrastructure!AB1103","v":0},{"$f":"[1]Infrastructure!AB1103","v":0},0,{"$f":"[1]Infrastructure!AC1103","v":0},{"$f":"[1]Infrastructure!AD1103","v":0},{"$f":"[1]Infrastructure!AE1103","v":0},{"$f":"[1]Infrastructure!AF1103","v":0},{"$f":"[1]Infrastructure!AG1103","v":0},{"$f":"[1]Infrastructure!AH1103","v":0},0]
[0,null,null,null,null,null,{"$f":"[1]Infrastructure!G1104","v":0},{"$f":"[1]Infrastructure!H1104","v":0},{"$f":"[1]Infrastructure!I1104","v":0},{"$f":"[1]Infrastructure!J1104","v":0},{"$f":"[1]Infrastructure!K1104","v":0},{"$f":"[1]Infrastructure!L1104","v":0},{"$f":"[1]Infrastructure!M1104","v":0},{"$f":"[1]Infrastructure!N1104","v":0},{"$f":"[1]Infrastructure!O1104","v":0},{"$f":"[1]Infrastructure!Q1104","v":0},{"$f":"[1]Infrastructure!R1104","v":0},{"$f":"[1]Infrastructure!T1104","v":0},{"$f":"[1]Infrastructure!W1104","v":0},{"$f":"[1]Infrastructure!W1104","v":0},0,{"$f":"[1]Infrastructure!Z1104","v":0},{"$f":"[1]Infrastructure!Z1104","v":0},0,{"$f":"[1]Infrastructure!AB1104","v":0},{"$f":"[1]Infrastructure!AB1104","v":0},0,{"$f":"[1]Infrastructure!AC1104","v":0},{"$f":"[1]Infrastructure!AD1104","v":0},{"$f":"[1]Infrastructure!AE1104","v":0},{"$f":"[1]Infrastructure!AF1104","v":0},{"$f":"[1]Infrastructure!AG1104","v":0},{"$f":"[1]Infrastructure!AH1104","v":0},0]
[0,null,null,null,null,null,{"$f":"[1]Infrastructure!G1105","v":0},{"$f":"[1]Infrastructure!H1105","v":0},{"$f":"[1]Infrastructure!I1105","v":0},{"$f":"[1]Infrastructure!J1105","v":0},{"$f":"[1]Infrastructure!K1105","v":0},{"$f":"[1]Infrastructure!L1105","v":0},{"$f":"[1]Infrastructure!M1105","v":0},{"$f":"[1]Infrastructure!N1105","v":0},{"$f":"[1]Infrastructure!O1105","v":0},{"$f":"[1]Infrastructure!Q1105","v":0},{"$f":"[1]Infrastructure!R1105","v":0},{"$f":"[1]Infrastructure!T1105","v":0},{"$f":"[1]Infrastructure!W1105","v":0},{"$f":"[1]Infrastructure!W1105","v":0},0,{"$f":"[1]Infrastructure!Z1105","v":0},{"$f":"[1]Infrastructure!Z1105","v":0},0,{"$f":"[1]Infrastructure!AB1105","v":0},{"$f":"[1]Infrastructure!AB1105","v":0},0,{"$f":"[1]Infrastructure!AC1105","v":0},{"$f":"[1]Infrastructure!AD1105","v":0},{"$f":"[1]Infrastructure!AE1105","v":0},{"$f":"[1]Infrastructure!AF1105","v":0},{"$f":"[1]Infrastructure!AG1105","v":0},{"$f":"[1]Infrastructure!AH1105","v":0},0]
[0,null,null,null,null,null,{"$f":"[1]Infrastructure!G1106","v":0},{"$f":"[1]Infrastructure!H1106","v":0},{"$f":"[1]Infrastructure!I1106","v":0},{"$f":"[1]Infrastructure!J1106","v":0},{"$f":"[1]Infrastructure!K1106","v":0},{"$f":"[1]Infrastructure!L1106","v":0},{"$f":"[1]Infrastructure!M1106","v":0},{"$f":"[1]Infrastructure!N1106","v":0},{"$f":"[1]Infrastructure!O1106","v":0},{"$f":"[1]Infrastructure!Q1106","v":0},{"$f":"[1]Infrastructure!R1106","v":0},{"$f":"[1]Infrastructure!T1106","v":0},{"$f":"[1]Infrastructure!W1106","v":0},{"$f":"[1]Infrastructure!W1106","v":0},0,{"$f":"[1]Infrastructure!Z1106","v":0},{"$f":"[1]Infrastructure!Z1106","v":0},0,{"$f":"[1]Infrastructure!AB1106","v":0},{"$f":"[1]Infrastructure!AB1106","v":0},0,{"$f":"[1]Infrastructure!AC1106","v":0},{"$f":"[1]Infrastructure!AD1106","v":0},{"$f":"[1]Infrastructure!AE1106","v":0},{"$f":"[1]Infrastructure!AF1106","v":0},{"$f":"[1]Infrastructure!AG1106","v":0},{"$f":"[1]Infrastructure!AH1106","v":0},0]
[0,null,null,null,null,null,{"$f":"[1]Infrastructure!G1107","v":0},{"$f":"[1]Infrastructure!H1107","v":0},{"$f":"[1]Infrastructure!I1107","v":0},{"$f":"[1]Infrastructure!J1107","v":0},{"$f":"[1]Infrastructure!K1107","v":0},{"$f":"[1]Infrastructure!L1107","v":0},{"$f":"[1]Infrastructure!M1107","v":0},{"$f":"[1]Infrastructure!N1107","v":0},{"$f":"[1]Infrastructure!O1107","v":0},{"$f":"[1]Infrastructure!Q1107","v":0},{"$f":"[1]Infrastructure!R1107","v":0},{"$f":"[1]Infrastructure!T1107","v":0},{"$f":"[1]Infrastructure!W1107","v":0},{"$f":"[1]Infrastructure!W1107","v":0},0,{"$f":"[1]Infrastructure!Z1107","v":0},{"$f":"[1]Infrastructure!Z1107","v":0},0,{"$f":"[1]Infrastructure!AB1107","v":0},{"$f":"[1]Infrastructure!AB1107","v":0},0,{"$f":"[1]Infrastructure!AC1107","v":0},{"$f":"[1]Infrastructure!AD1107","v":0},{"$f":"[1]Infrastructure!AE1107","v":0},{"$f":"[1]Infrastructure!AF1107","v":0},{"$f":"[1]Infrastructure!AG1107","v":0},{"$f":"[1]Infrastructure!AH1107","v":0},0]
[0,null,null,null,null,null,{"$f":"[1]Infrastructure!G1108","v":0},{"$f":"[1]Infrastructure!H1108","v":0},{"$f":"[1]Infrastructure!I1108","v":0},{"$f":"[1]Infrastructure!J1108","v":0},{"$f":"[1]Infrastructure!K1108","v":0},{"$f":"[1]Infrastructure!L1108","v":0},{"$f":"[1]Infrastructure!M1108","v":0},{"$f":"[1]Infrastructure!N1108","v":0},{"$f":"[1]Infrastructure!O1108","v":0},{"$f":"[1]Infrastructure!Q1108","v":0},{"$f":"[1]Infrastructure!R1108","v":0},{"$f":"[1]Infrastructure!T1108","v":0},{"$f":"[1]Infrastructure!W1108","v":0},{"$f":"[1]Infrastructure!W1108","v":0},0,{"$f":"[1]Infrastructure!Z1108","v":0},{"$f":"[1]Infrastructure!Z1108","v":0},0,{"$f":"[1]Infrastructure!AB1108","v":0},{"$f":"[1]Infrastructure!AB1108","v":0},0,{"$f":"[1]Infrastructure!AC1108","v":0},{"$f":"[1]Infrastructure!AD1108","v":0},{"$f":"[1]Infrastructure!AE1108","v":0},{"$f":"[1]Infrastructure!AF1108","v":0},{"$f":"[1]Infrastructure!AG1108","v":0},{"$f":"[1]Infrastructure!AH1108","v":0},0]
[0,null,null,null,null,null,{"$f":"[1]Infrastructure!G1109","v":0},{"$f":"[1]Infrastructure!H1109","v":0},{"$f":"[1]Infrastructure!I1109","v":0},{"$f":"[1]Infrastructure!J1109","v":0},{"$f":"[1]Infrastructure!K1109","v":0},{"$f":"[1]Infrastructure!L1109","v":0},{"$f":"[1]Infrastructure!M1109","v":0},{"$f":"[1]Infrastructure!N1109","v":0},{"$f":"[1]Infrastructure!O1109","v":0},{"$f":"[1]Infrastructure!Q1109","v":0},{"$f":"[1]Infrastructure!R1109","v":0},{"$f":"[1]Infrastructure!T1109","v":0},{"$f":"[1]Infrastructure!W1109","v":0},{"$f":"[1]Infrastructure!W1109","v":0},0,{"$f":"[1]Infrastructure!Z1109","v":0},{"$f":"[1]Infrastructure!Z1109","v":0},0,{"$f":"[1]Infrastructure!AB1109","v":0},{"$f":"[1]Infrastructure!AB1109","v":0},0,{"$f":"[1]Infrastructure!AC1109","v":0},{"$f":"[1]Infrastructure!AD1109","v":0},{"$f":"[1]Infrastructure!AE1109","v":0},{"$f":"[1]Infrastructure!AF1109","v":0},{"$f":"[1]Infrastructure!AG1109","v":0},{"$f":"[1]Infrastructure!AH1109","v":0},0]
[0,null,null,null,null,null,{"$f":"[1]Infrastructure!G1110","v":0},{"$f":"[1]Infrastructure!H1110","v":0},{"$f":"[1]Infrastructure!I1110","v":0},{"$f":"[1]Infrastructure!J1110","v":0},{"$f":"[1]Infrastructure!K1110","v":0},{"$f":"[1]Infrastructure!L1110","v":0},{"$f":"[1]Infrastructure!M1110","v":0},{"$f":"[1]Infrastructure!N1110","v":0},{"$f":"[1]Infrastructure!O1110","v":0},{"$f":"[1]Infrastructure!Q1110","v":0},{"$f":"[1]Infrastructure!R1110","v":0},{"$f":"[1]Infrastructure!T1110","v":0},{"$f":"[1]Infrastructure!W1110","v":0},{"$f":"[1]Infrastructure!W1110","v":0},0,{"$f":"[1]Infrastructure!Z1110","v":0},{"$f":"[1]Infrastructure!Z1110","v":0},0,{"$f":"[1]Infrastructure!AB1110","v":0},{"$f":"[1]Infrastructure!AB1110","v":0},0,{"$f":"[1]Infrastructure!AC1110","v":0},{"$f":"[1]Infrastructure!AD1110","v":0},{"$f":"[1]Infrastructure!AE1110","v":0},{"$f":"[1]Infrastructure!AF1110","v":0},{"$f":"[1]Infrastructure!AG1110","v":0},{"$f":"[1]Infrastructure!AH1110","v":0},0]
[0,null,null,null,null,null,{"$f":"[1]Infrastructure!G1111","v":0},{"$f":"[1]Infrastructure!H1111","v":0},{"$f":"[1]Infrastructure!I1111","v":0},{"$f":"[1]Infrastructure!J1111","v":0},{"$f":"[1]Infrastructure!K1111","v":0},{"$f":"[1]Infrastructure!L1111","v":0},{"$f":"[1]Infrastructure!M1111","v":0},{"$f":"[1]Infrastructure!N1111","v":0},{"$f":"[1]Infrastructure!O1111","v":0},{"$f":"[1]Infrastructure!Q1111","v":0},{"$f":"[1]Infrastructure!R1111","v":0},{"$f":"[1]Infrastructure!T1111","v":0},{"$f":"[1]Infrastructure!W1111","v":0},{"$f":"[1]Infrastructure!W1111","v":0},0,{"$f":"[1]Infrastructure!Z1111","v":0},{"$f":"[1]Infrastructure!Z1111","v":0},0,{"$f":"[1]Infrastructure!AB1111","v":0},{"$f":"[1]Infrastructure!AB1111","v":0},0,{"$f":"[1]Infrastructure!AC1111","v":0},{"$f":"[1]Infrastructure!AD1111","v":0},{"$f":"[1]Infrastructure!AE1111","v":0},{"$f":"[1]Infrastructure!AF1111","v":0},{"$f":"[1]Infrastructure!AG1111","v":0},{"$f":"[1]Infrastructure!AH1111","v":0},0]
[0,null,null,null,null,null,{"$f":"[1]Infrastructure!G1112","v":0},{"$f":"[1]Infrastructure!H1112","v":0},{"$f":"[1]Infrastructure!I1112","v":0},{"$f":"[1]Infrastructure!J1112","v":0},{"$f":"[1]Infrastructure!K1112","v":0},{"$f":"[1]Infrastructure!L1112","v":0},{"$f":"[1]Infrastructure!M1112","v":0},{"$f":"[1]Infrastructure!N1112","v":0},{"$f":"[1]Infrastructure!O1112","v":0},{"$f":"[1]Infrastructure!Q1112","v":0},{"$f":"[1]Infrastructure!R1112","v":0},{"$f":"[1]Infrastructure!T1112","v":0},{"$f":"[1]Infrastructure!W1112","v":0},{"$f":"[1]Infrastructure!W1112","v":0},0,{"$f":"[1]Infrastructure!Z1112","v":0},{"$f":"[1]Infrastructure!Z1112","v":0},0,{"$f":"[1]Infrastructure!AB1112","v":0},{"$f":"[1]Infrastructure!AB1112","v":0},0,{"$f":"[1]Infrastructure!AC1112","v":0},{"$f":"[1]Infrastructure!AD1112","v":0},{"$f":"[1]Infrastructure!AE1112","v":0},{"$f":"[1]Infrastructure!AF1112","v":0},{"$f":"[1]Infrastructure!AG1112","v":0},{"$f":"[1]Infrastructure!AH1112","v":0},0]
[0,null,null,null,null,null,{"$f":"[1]Infrastructure!G1113","v":0},{"$f":"[1]Infrastructure!H1113","v":0},{"$f":"[1]Infrastructure!I1113","v":0},{"$f":"[1]Infrastructure!J1113","v":0},{"$f":"[1]Infrastructure!K1113","v":0},{"$f":"[1]Infrastructure!L1113","v":0},{"$f":"[1]Infrastructure!M1113","v":0},{"$f":"[1]Infrastructure!N1113","v":0},{"$f":"[1]Infrastructure!O1113","v":0},{"$f":"[1]Infrastructure!Q1113","v":0},{"$f":"[1]Infrastructure!R1113","v":0},{"$f":"[1]Infrastructure!T1113","v":0},{"$f":"[1]Infrastructure!W1113","v":0},{"$f":"[1]Infrastructure!W1113","v":0},0,{"$f":"[1]Infrastructure!Z1113","v":0},{"$f":"[1]Infrastructure!Z1113","v":0},0,{"$f":"[1]Infrastructure!AB1113","v":0},{"$f":"[1]Infrastructure!AB1113","v":0},0,{"$f":"[1]Infrastructure!AC1113","v":0},{"$f":"[1]Infrastructure!AD1113","v":0},{"$f":"[1]Infrastructure!AE1113","v":0},{"$f":"[1]Infrastructure!AF1113","v":0},{"$f":"[1]Infrastructure!AG1113","v":0},{"$f":"[1]Infrastructure!AH1113","v":0},0]
[0,null,null,null,null,null,{"$f":"[1]Infrastructure!G1114","v":0},{"$f":"[1]Infrastructure!H1114","v":0},{"$f":"[1]Infrastructure!I1114","v":0},{"$f":"[1]Infrastructure!J1114","v":0},{"$f":"[1]Infrastructure!K1114","v":0},{"$f":"[1]Infrastructure!L1114","v":0},{"$f":"[1]Infrastructure!M1114","v":0},{"$f":"[1]Infrastructure!N1114","v":0},{"$f":"[1]Infrastructure!O1114","v":0},{"$f":"[1]Infrastructure!Q1114","v":0},{"$f":"[1]Infrastructure!R1114","v":0},{"$f":"[1]Infrastructure!T1114","v":0},{"$f":"[1]Infrastructure!W1114","v":0},{"$f":"[1]Infrastructure!W1114","v":0},0,{"$f":"[1]Infrastructure!Z1114","v":0},{"$f":"[1]Infrastructure!Z1114","v":0},0,{"$f":"[1]Infrastructure!AB1114","v":0},{"$f":"[1]Infrastructure!AB1114","v":0},0,{"$f":"[1]Infrastructure!AC1114","v":0},{"$f":"[1]Infrastructure!AD1114","v":0},{"$f":"[1]Infrastructure!AE1114","v":0},{"$f":"[1]Infrastructure!AF1114","v":0},{"$f":"[1]Infrastructure!AG1114","v":0},{"$f":"[1]Infrastructure!AH1114","v":0},0]
[0,null,null,null,null,null,{"$f":"[1]Infrastructure!G1115","v":0},{"$f":"[1]Infrastructure!H1115","v":0},{"$f":"[1]Infrastructure!I1115","v":0},{"$f":"[1]Infrastructure!J1115","v":0},{"$f":"[1]Infrastructure!K1115","v":0},{"$f":"[1]Infrastructure!L1115","v":0},{"$f":"[1]Infrastructure!M1115","v":0},{"$f":"[1]Infrastructure!N1115","v":0},{"$f":"[1]Infrastructure!O1115","v":0},{"$f":"[1]Infrastructure!Q1115","v":0},{"$f":"[1]Infrastructure!R1115","v":0},{"$f":"[1]Infrastructure!T1115","v":0},{"$f":"[1]Infrastructure!W1115","v":0},{"$f":"[1]Infrastructure!W1115","v":0},0,{"$f":"[1]Infrastructure!Z1115","v":0},{"$f":"[1]Infrastructure!Z1115","v":0},0,{"$f":"[1]Infrastructure!AB1115","v":0},{"$f":"[1]Infrastructure!AB1115","v":0},0,{"$f":"[1]Infrastructure!AC1115","v":0},{"$f":"[1]Infrastructure!AD1115","v":0},{"$f":"[1]Infrastructure!AE1115","v":0},{"$f":"[1]Infrastructure!AF1115","v":0},{"$f":"[1]Infrastructure!AG1115","v":0},{"$f":"[1]Infrastructure!AH1115","v":0},0]
[0,null,null,null,null,null,{"$f":"[1]Infrastructure!G1116","v":0},{"$f":"[1]Infrastructure!H1116","v":0},{"$f":"[1]Infrastructure!I1116","v":0},{"$f":"[1]Infrastructure!J1116","v":0},{"$f":"[1]Infrastructure!K1116","v":0},{"$f":"[1]Infrastructure!L1116","v":0},{"$f":"[1]Infrastructure!M1116","v":0},{"$f":"[1]Infrastructure!N1116","v":0},{"$f":"[1]Infrastructure!O1116","v":0},{"$f":"[1]Infrastructure!Q1116","v":0},{"$f":"[1]Infrastructure!R1116","v":0},{"$f":"[1]Infrastructure!T1116","v":0},{"$f":"[1]Infrastructure!W1116","v":0},{"$f":"[1]Infrastructure!W1116","v":0},0,{"$f":"[1]Infrastructure!Z1116","v":0},{"$f":"[1]Infrastructure!Z1116","v":0},0,{"$f":"[1]Infrastructure!AB1116","v":0},{"$f":"[1]Infrastructure!AB1116","v":0},0,{"$f":"[1]Infrastructure!AC1116","v":0},{"$f":"[1]Infrastructure!AD1116","v":0},{"$f":"[1]Infrastructure!AE1116","v":0},{"$f":"[1]Infrastructure!AF1116","v":0},{"$f":"[1]Infrastructure!AG1116","v":0},{"$f":"[1]Infrastructure!AH1116","v":0},0]
[0,null,null,null,null,null,{"$f":"[1]Infrastructure!G1117","v":0},{"$f":"[1]Infrastructure!H1117","v":0},{"$f":"[1]Infrastructure!I1117","v":0},{"$f":"[1]Infrastructure!J1117","v":0},{"$f":"[1]Infrastructure!K1117","v":0},{"$f":"[1]Infrastructure!L1117","v":0},{"$f":"[1]Infrastructure!M1117","v":0},{"$f":"[1]Infrastructure!N1117","v":0},{"$f":"[1]Infrastructure!O1117","v":0},{"$f":"[1]Infrastructure!Q1117","v":0},{"$f":"[1]Infrastructure!R1117","v":0},{"$f":"[1]Infrastructure!T1117","v":0},{"$f":"[1]Infrastructure!W1117","v":0},{"$f":"[1]Infrastructure!W1117","v":0},0,{"$f":"[1]Infrastructure!Z1117","v":0},{"$f":"[1]Infrastructure!Z1117","v":0},0,{"$f":"[1]Infrastructure!AB1117","v":0},{"$f":"[1]Infrastructure!AB1117","v":0},0,{"$f":"[1]Infrastructure!AC1117","v":0},{"$f":"[1]Infrastructure!AD1117","v":0},{"$f":"[1]Infrastructure!AE1117","v":0},{"$f":"[1]Infrastructure!AF1117","v":0},{"$f":"[1]Infrastructure!AG1117","v":0},{"$f":"[1]Infrastructure!AH1117","v":0},0]
[0,null,null,null,null,null,{"$f":"[1]Infrastructure!G1118","v":0},{"$f":"[1]Infrastructure!H1118","v":0},{"$f":"[1]Infrastructure!I1118","v":0},{"$f":"[1]Infrastructure!J1118","v":0},{"$f":"[1]Infrastructure!K1118","v":0},{"$f":"[1]Infrastructure!L1118","v":0},{"$f":"[1]Infrastructure!M1118","v":0},{"$f":"[1]Infrastructure!N1118","v":0},{"$f":"[1]Infrastructure!O1118","v":0},{"$f":"[1]Infrastructure!Q1118","v":0},{"$f":"[1]Infrastructure!R1118","v":0},{"$f":"[1]Infrastructure!T1118","v":0},{"$f":"[1]Infrastructure!W1118","v":0},{"$f":"[1]Infrastructure!W1118","v":0},0,{"$f":"[1]Infrastructure!Z1118","v":0},{"$f":"[1]Infrastructure!Z1118","v":0},0,{"$f":"[1]Infrastructure!AB1118","v":0},{"$f":"[1]Infrastructure!AB1118","v":0},0,{"$f":"[1]Infrastructure!AC1118","v":0},{"$f":"[1]Infrastructure!AD1118","v":0},{"$f":"[1]Infrastructure!AE1118","v":0},{"$f":"[1]Infrastructure!AF1118","v":0},{"$f":"[1]Infrastructure!AG1118","v":0},{"$f":"[1]Infrastructure!AH1118","v":0},0]
[0,null,null,null,null,null,{"$f":"[1]Infrastructure!G1119","v":0},{"$f":"[1]Infrastructure!H1119","v":0},{"$f":"[1]Infrastructure!I1119","v":0},{"$f":"[1]Infrastructure!J1119","v":0},{"$f":"[1]Infrastructure!K1119","v":0},{"$f":"[1]Infrastructure!L1119","v":0},{"$f":"[1]Infrastructure!M1119","v":0},{"$f":"[1]Infrastructure!N1119","v":0},{"$f":"[1]Infrastructure!O1119","v":0},{"$f":"[1]Infrastructure!Q1119","v":0},{"$f":"[1]Infrastructure!R1119","v":0},{"$f":"[1]Infrastructure!T1119","v":0},{"$f":"[1]Infrastructure!W1119","v":0},{"$f":"[1]Infrastructure!W1119","v":0},0,{"$f":"[1]Infrastructure!Z1119","v":0},{"$f":"[1]Infrastructure!Z1119","v":0},0,{"$f":"[1]Infrastructure!AB1119","v":0},{"$f":"[1]Infrastructure!AB1119","v":0},0,{"$f":"[1]Infrastructure!AC1119","v":0},{"$f":"[1]Infrastructure!AD1119","v":0},{"$f":"[1]Infrastructure!AE1119","v":0},{"$f":"[1]Infrastructure!AF1119","v":0},{"$f":"[1]Infrastructure!AG1119","v":0},{"$f":"[1]Infrastructure!AH1119","v":0},0]
[0,null,null,null,null,null,{"$f":"[1]Infrastructure!G1120","v":0},{"$f":"[1]Infrastructure!H1120","v":0},{"$f":"[1]Infrastructure!I1120","v":0},{"$f":"[1]Infrastructure!J1120","v":0},{"$f":"[1]Infrastructure!K1120","v":0},{"$f":"[1]Infrastructure!L1120","v":0},{"$f":"[1]Infrastructure!M1120","v":0},{"$f":"[1]Infrastructure!N1120","v":0},{"$f":"[1]Infrastructure!O1120","v":0},{"$f":"[1]Infrastructure!Q1120","v":0},{"$f":"[1]Infrastructure!R1120","v":0},{"$f":"[1]Infrastructure!T1120","v":0},{"$f":"[1]Infrastructure!W1120","v":0},{"$f":"[1]Infrastructure!W1120","v":0},0,{"$f":"[1]Infrastructure!Z1120","v":0},{"$f":"[1]Infrastructure!Z1120","v":0},0,{"$f":"[1]Infrastructure!AB1120","v":0},{"$f":"[1]Infrastructure!AB1120","v":0},0,{"$f":"[1]Infrastructure!AC1120","v":0},{"$f":"[1]Infrastructure!AD1120","v":0},{"$f":"[1]Infrastructure!AE1120","v":0},{"$f":"[1]Infrastructure!AF1120","v":0},{"$f":"[1]Infrastructure!AG1120","v":0},{"$f":"[1]Infrastructure!AH1120","v":0},0]
[0,null,null,null,null,null,{"$f":"[1]Infrastructure!G1121","v":0},{"$f":"[1]Infrastructure!H1121","v":0},{"$f":"[1]Infrastructure!I1121","v":0},{"$f":"[1]Infrastructure!J1121","v":0},{"$f":"[1]Infrastructure!K1121","v":0},{"$f":"[1]Infrastructure!L1121","v":0},{"$f":"[1]Infrastructure!M1121","v":0},{"$f":"[1]Infrastructure!N1121","v":0},{"$f":"[1]Infrastructure!O1121","v":0},{"$f":"[1]Infrastructure!Q1121","v":0},{"$f":"[1]Infrastructure!R1121","v":0},{"$f":"[1]Infrastructure!T1121","v":0},{"$f":"[1]Infrastructure!W1121","v":0},{"$f":"[1]Infrastructure!W1121","v":0},0,{"$f":"[1]Infrastructure!Z1121","v":0},{"$f":"[1]Infrastructure!Z1121","v":0},0,{"$f":"[1]Infrastructure!AB1121","v":0},{"$f":"[1]Infrastructure!AB1121","v":0},0,{"$f":"[1]Infrastructure!AC1121","v":0},{"$f":"[1]Infrastructure!AD1121","v":0},{"$f":"[1]Infrastructure!AE1121","v":0},{"$f":"[1]Infrastructure!AF1121","v":0},{"$f":"[1]Infrastructure!AG1121","v":0},{"$f":"[1]Infrastructure!AH1121","v":0},0]
[0,null,null,null,null,null,{"$f":"[1]Infrastructure!G1122","v":0},{"$f":"[1]Infrastructure!H1122","v":0},{"$f":"[1]Infrastructure!I1122","v":0},{"$f":"[1]Infrastructure!J1122","v":0},{"$f":"[1]Infrastructure!K1122","v":0},{"$f":"[1]Infrastructure!L1122","v":0},{"$f":"[1]Infrastructure!M1122","v":0},{"$f":"[1]Infrastructure!N1122","v":0},{"$f":"[1]Infrastructure!O1122","v":0},{"$f":"[1]Infrastructure!Q1122","v":0},{"$f":"[1]Infrastructure!R1122","v":0},{"$f":"[1]Infrastructure!T1122","v":0},{"$f":"[1]Infrastructure!W1122","v":0},{"$f":"[1]Infrastructure!W1122","v":0},0,{"$f":"[1]Infrastructure!Z1122","v":0},{"$f":"[1]Infrastructure!Z1122","v":0},0,{"$f":"[1]Infrastructure!AB1122","v":0},{"$f":"[1]Infrastructure!AB1122","v":0},0,{"$f":"[1]Infrastructure!AC1122","v":0},{"$f":"[1]Infrastructure!AD1122","v":0},{"$f":"[1]Infrastructure!AE1122","v":0},{"$f":"[1]Infrastructure!AF1122","v":0},{"$f":"[1]Infrastructure!AG1122","v":0},{"$f":"[1]Infrastructure!AH1122","v":0},0]
[0,null,null,null,null,null,{"$f":"[1]Infrastructure!G1123","v":0},{"$f":"[1]Infrastructure!H1123","v":0},{"$f":"[1]Infrastructure!I1123","v":0},{"$f":"[1]Infrastructure!J1123","v":0},{"$f":"[1]Infrastructure!K1123","v":0},{"$f":"[1]Infrastructure!L1123","v":0},{"$f":"[1]Infrastructure!M1123","v":0},{"$f":"[1]Infrastructure!N1123","v":0},{"$f":"[1]Infrastructure!O1123","v":0},{"$f":"[1]Infrastructure!Q1123","v":0},{"$f":"[1]Infrastructure!R1123","v":0},{"$f":"[1]Infrastructure!T1123","v":0},{"$f":"[1]Infrastructure!W1123","v":0},{"$f":"[1]Infrastructure!W1123","v":0},0,{"$f":"[1]Infrastructure!Z1123","v":0},{"$f":"[1]Infrastructure!Z1123","v":0},0,{"$f":"[1]Infrastructure!AB1123","v":0},{"$f":"[1]Infrastructure!AB1123","v":0},0,{"$f":"[1]Infrastructure!AC1123","v":0},{"$f":"[1]Infrastructure!AD1123","v":0},{"$f":"[1]Infrastructure!AE1123","v":0},{"$f":"[1]Infrastructure!AF1123","v":0},{"$f":"[1]Infrastructure!AG1123","v":0},{"$f":"[1]Infrastructure!AH1123","v":0},0]
[0,null,null,null,null,null,{"$f":"[1]Infrastructure!G1124","v":0},{"$f":"[1]Infrastructure!H1124","v":0},{"$f":"[1]Infrastructure!I1124","v":0},{"$f":"[1]Infrastructure!J1124","v":0},{"$f":"[1]Infrastructure!K1124","v":0},{"$f":"[1]Infrastructure!L1124","v":0},{"$f":"[1]Infrastructure!M1124","v":0},{"$f":"[1]Infrastructure!N1124","v":0},{"$f":"[1]Infrastructure!O1124","v":0},{"$f":"[1]Infrastructure!Q1124","v":0},{"$f":"[1]Infrastructure!R1124","v":0},{"$f":"[1]Infrastructure!T1124","v":0},{"$f":"[1]Infrastructure!W1124","v":0},{"$f":"[1]Infrastructure!W1124","v":0},0,{"$f":"[1]Infrastructure!Z1124","v":0},{"$f":"[1]Infrastructure!Z1124","v":0},0,{"$f":"[1]Infrastructure!AB1124","v":0},{"$f":"[1]Infrastructure!AB1124","v":0},0,{"$f":"[1]Infrastructure!AC1124","v":0},{"$f":"[1]Infrastructure!AD1124","v":0},{"$f":"[1]Infrastructure!AE1124","v":0},{"$f":"[1]Infrastructure!AF1124","v":0},{"$f":"[1]Infrastructure!AG1124","v":0},{"$f":"[1]Infrastructure!AH1124","v":0},0]
[0,null,null,null,null,null,{"$f":"[1]Infrastructure!G1125","v":0},{"$f":"[1]Infrastructure!H1125","v":0},{"$f":"[1]Infrastructure!I1125","v":0},{"$f":"[1]Infrastructure!J1125","v":0},{"$f":"[1]Infrastructure!K1125","v":0},{"$f":"[1]Infrastructure!L1125","v":0},{"$f":"[1]Infrastructure!M1125","v":0},{"$f":"[1]Infrastructure!N1125","v":0},{"$f":"[1]Infrastructure!O1125","v":0},{"$f":"[1]Infrastructure!Q1125","v":0},{"$f":"[1]Infrastructure!R1125","v":0},{"$f":"[1]Infrastructure!T1125","v":0},{"$f":"[1]Infrastructure!W1125","v":0},{"$f":"[1]Infrastructure!W1125","v":0},0,{"$f":"[1]Infrastructure!Z1125","v":0},{"$f":"[1]Infrastructure!Z1125","v":0},0,{"$f":"[1]Infrastructure!AB1125","v":0},{"$f":"[1]Infrastructure!AB1125","v":0},0,{"$f":"[1]Infrastructure!AC1125","v":0},{"$f":"[1]Infrastructure!AD1125","v":0},{"$f":"[1]Infrastructure!AE1125","v":0},{"$f":"[1]Infrastructure!AF1125","v":0},{"$f":"[1]Infrastructure!AG1125","v":0},{"$f":"[1]Infrastructure!AH1125","v":0},0]
[0,null,null,null,null,null,{"$f":"[1]Infrastructure!G1126","v":0},{"$f":"[1]Infrastructure!H1126","v":0},{"$f":"[1]Infrastructure!I1126","v":0},{"$f":"[1]Infrastructure!J1126","v":0},{"$f":"[1]Infrastructure!K1126","v":0},{"$f":"[1]Infrastructure!L1126","v":0},{"$f":"[1]Infrastructure!M1126","v":0},{"$f":"[1]Infrastructure!N1126","v":0},{"$f":"[1]Infrastructure!O1126","v":0},{"$f":"[1]Infrastructure!Q1126","v":0},{"$f":"[1]Infrastructure!R1126","v":0},{"$f":"[1]Infrastructure!T1126","v":0},{"$f":"[1]Infrastructure!W1126","v":0},{"$f":"[1]Infrastructure!W1126","v":0},0,{"$f":"[1]Infrastructure!Z1126","v":0},{"$f":"[1]Infrastructure!Z1126","v":0},0,{"$f":"[1]Infrastructure!AB1126","v":0},{"$f":"[1]Infrastructure!AB1126","v":0},0,{"$f":"[1]Infrastructure!AC1126","v":0},{"$f":"[1]Infrastructure!AD1126","v":0},{"$f":"[1]Infrastructure!AE1126","v":0},{"$f":"[1]Infrastructure!AF1126","v":0},{"$f":"[1]Infrastructure!AG1126","v":0},{"$f":"[1]Infrastructure!AH1126","v":0},0]
[0,null,null,null,null,null,{"$f":"[1]Infrastructure!G1127","v":0},{"$f":"[1]Infrastructure!H1127","v":0},{"$f":"[1]Infrastructure!I1127","v":0},{"$f":"[1]Infrastructure!J1127","v":0},{"$f":"[1]Infrastructure!K1127","v":0},{"$f":"[1]Infrastructure!L1127","v":0},{"$f":"[1]Infrastructure!M1127","v":0},{"$f":"[1]Infrastructure!N1127","v":0},{"$f":"[1]Infrastructure!O1127","v":0},{"$f":"[1]Infrastructure!Q1127","v":0},{"$f":"[1]Infrastructure!R1127","v":0},{"$f":"[1]Infrastructure!T1127","v":0},{"$f":"[1]Infrastructure!W1127","v":0},{"$f":"[1]Infrastructure!W1127","v":0},0,{"$f":"[1]Infrastructure!Z1127","v":0},{"$f":"[1]Infrastructure!Z1127","v":0},0,{"$f":"[1]Infrastructure!AB1127","v":0},{"$f":"[1]Infrastructure!AB1127","v":0},0,{"$f":"[1]Infrastructure!AC1127","v":0},{"$f":"[1]Infrastructure!AD1127","v":0},{"$f":"[1]Infrastructure!AE1127","v":0},{"$f":"[1]Infrastructure!AF1127","v":0},{"$f":"[1]Infrastructure!AG1127","v":0},{"$f":"[1]Infrastructure!AH1127","v":0},0]
[0,null,null,null,null,null,{"$f":"[1]Infrastructure!G1128","v":0},{"$f":"[1]Infrastructure!H1128","v":0},{"$f":"[1]Infrastructure!I1128","v":0},{"$f":"[1]Infrastructure!J1128","v":0},{"$f":"[1]Infrastructure!K1128","v":0},{"$f":"[1]Infrastructure!L1128","v":0},{"$f":"[1]Infrastructure!M1128","v":0},{"$f":"[1]Infrastructure!N1128","v":0},{"$f":"[1]Infrastructure!O1128","v":0},{"$f":"[1]Infrastructure!Q1128","v":0},{"$f":"[1]Infrastructure!R1128","v":0},{"$f":"[1]Infrastructure!T1128","v":0},{"$f":"[1]Infrastructure!W1128","v":0},{"$f":"[1]Infrastructure!W1128","v":0},0,{"$f":"[1]Infrastructure!Z1128","v":0},{"$f":"[1]Infrastructure!Z1128","v":0},0,{"$f":"[1]Infrastructure!AB1128","v":0},{"$f":"[1]Infrastructure!AB1128","v":0},0,{"$f":"[1]Infrastructure!AC1128","v":0},{"$f":"[1]Infrastructure!AD1128","v":0},{"$f":"[1]Infrastructure!AE1128","v":0},{"$f":"[1]Infrastructure!AF1128","v":0},{"$f":"[1]Infrastructure!AG1128","v":0},{"$f":"[1]Infrastructure!AH1128","v":0},0]
[0,null,null,null,null,null,{"$f":"[1]Infrastructure!G1129","v":0},{"$f":"[1]Infrastructure!H1129","v":0},{"$f":"[1]Infrastructure!I1129","v":0},{"$f":"[1]Infrastructure!J1129","v":0},{"$f":"[1]Infrastructure!K1129","v":0},{"$f":"[1]Infrastructure!L1129","v":0},{"$f":"[1]Infrastructure!M1129","v":0},{"$f":"[1]Infrastructure!N1129","v":0},{"$f":"[1]Infrastructure!O1129","v":0},{"$f":"[1]Infrastructure!Q1129","v":0},{"$f":"[1]Infrastructure!R1129","v":0},{"$f":"[1]Infrastructure!T1129","v":0},{"$f":"[1]Infrastructure!W1129","v":0},{"$f":"[1]Infrastructure!W1129","v":0},0,{"$f":"[1]Infrastructure!Z1129","v":0},{"$f":"[1]Infrastructure!Z1129","v":0},0,{"$f":"[1]Infrastructure!AB1129","v":0},{"$f":"[1]Infrastructure!AB1129","v":0},0,{"$f":"[1]Infrastructure!AC1129","v":0},{"$f":"[1]Infrastructure!AD1129","v":0},{"$f":"[1]Infrastructure!AE1129","v":0},{"$f":"[1]Infrastructure!AF1129","v":0},{"$f":"[1]Infrastructure!AG1129","v":0},{"$f":"[1]Infrastructure!AH1129","v":0},0]
[0,null,null,null,null,null,{"$f":"[1]Infrastructure!G1130","v":0},{"$f":"[1]Infrastructure!H1130","v":0},{"$f":"[1]Infrastructure!I1130","v":0},{"$f":"[1]Infrastructure!J1130","v":0},{"$f":"[1]Infrastructure!K1130","v":0},{"$f":"[1]Infrastructure!L1130","v":0},{"$f":"[1]Infrastructure!M1130","v":0},{"$f":"[1]Infrastructure!N1130","v":0},{"$f":"[1]Infrastructure!O1130","v":0},{"$f":"[1]Infrastructure!Q1130","v":0},{"$f":"[1]Infrastructure!R1130","v":0},{"$f":"[1]Infrastructure!T1130","v":0},{"$f":"[1]Infrastructure!W1130","v":0},{"$f":"[1]Infrastructure!W1130","v":0},0,{"$f":"[1]Infrastructure!Z1130","v":0},{"$f":"[1]Infrastructure!Z1130","v":0},0,{"$f":"[1]Infrastructure!AB1130","v":0},{"$f":"[1]Infrastructure!AB1130","v":0},0,{"$f":"[1]Infrastructure!AC1130","v":0},{"$f":"[1]Infrastructure!AD1130","v":0},{"$f":"[1]Infrastructure!AE1130","v":0},{"$f":"[1]Infrastructure!AF1130","v":0},{"$f":"[1]Infrastructure!AG1130","v":0},{"$f":"[1]Infrastructure!AH1130","v":0},0]
[0,null,null,null,null,null,{"$f":"[1]Infrastructure!G1131","v":0},{"$f":"[1]Infrastructure!H1131","v":0},{"$f":"[1]Infrastructure!I1131","v":0},{"$f":"[1]Infrastructure!J1131","v":0},{"$f":"[1]Infrastructure!K1131","v":0},{"$f":"[1]Infrastructure!L1131","v":0},{"$f":"[1]Infrastructure!M1131","v":0},{"$f":"[1]Infrastructure!N1131","v":0},{"$f":"[1]Infrastructure!O1131","v":0},{"$f":"[1]Infrastructure!Q1131","v":0},{"$f":"[1]Infrastructure!R1131","v":0},{"$f":"[1]Infrastructure!T1131","v":0},{"$f":"[1]Infrastructure!W1131","v":0},{"$f":"[1]Infrastructure!W1131","v":0},0,{"$f":"[1]Infrastructure!Z1131","v":0},{"$f":"[1]Infrastructure!Z1131","v":0},0,{"$f":"[1]Infrastructure!AB1131","v":0},{"$f":"[1]Infrastructure!AB1131","v":0},0,{"$f":"[1]Infrastructure!AC1131","v":0},{"$f":"[1]Infrastructure!AD1131","v":0},{"$f":"[1]Infrastructure!AE1131","v":0},{"$f":"[1]Infrastructure!AF1131","v":0},{"$f":"[1]Infrastructure!AG1131","v":0},{"$f":"[1]Infrastructure!AH1131","v":0},0]
[0,null,null,null,null,null,{"$f":"[1]Infrastructure!G1132","v":0},{"$f":"[1]Infrastructure!H1132","v":0},{"$f":"[1]Infrastructure!I1132","v":0},{"$f":"[1]Infrastructure!J1132","v":0},{"$f":"[1]Infrastructure!K1132","v":0},{"$f":"[1]Infrastructure!L1132","v":0},{"$f":"[1]Infrastructure!M1132","v":0},{"$f":"[1]Infrastructure!N1132","v":0},{"$f":"[1]Infrastructure!O1132","v":0},{"$f":"[1]Infrastructure!Q1132","v":0},{"$f":"[1]Infrastructure!R1132","v":0},{"$f":"[1]Infrastructure!T1132","v":0},{"$f":"[1]Infrastructure!W1132","v":0},{"$f":"[1]Infrastructure!W1132","v":0},0,{"$f":"[1]Infrastructure!Z1132","v":0},{"$f":"[1]Infrastructure!Z1132","v":0},0,{"$f":"[1]Infrastructure!AB1132","v":0},{"$f":"[1]Infrastructure!AB1132","v":0},0,{"$f":"[1]Infrastructure!AC1132","v":0},{"$f":"[1]Infrastructure!AD1132","v":0},{"$f":"[1]Infrastructure!AE1132","v":0},{"$f":"[1]Infrastructure!AF1132","v":0},{"$f":"[1]Infrastructure!AG1132","v":0},{"$f":"[1]Infrastructure!AH1132","v":0},0]
[0,null,null,null,null,null,{"$f":"[1]Infrastructure!G1133","v":0},{"$f":"[1]Infrastructure!H1133","v":0},{"$f":"[1]Infrastructure!I1133","v":0},{"$f":"[1]Infrastructure!J1133","v":0},{"$f":"[1]Infrastructure!K1133","v":0},{"$f":"[1]Infrastructure!L1133","v":0},{"$f":"[1]Infrastructure!M1133","v":0},{"$f":"[1]Infrastructure!N1133","v":0},{"$f":"[1]Infrastructure!O1133","v":0},{"$f":"[1]Infrastructure!Q1133","v":0},{"$f":"[1]Infrastructure!R1133","v":0},{"$f":"[1]Infrastructure!T1133","v":0},{"$f":"[1]Infrastructure!W1133","v":0},{"$f":"[1]Infrastructure!W1133","v":0},0,{"$f":"[1]Infrastructure!Z1133","v":0},{"$f":"[1]Infrastructure!Z1133","v":0},0,{"$f":"[1]Infrastructure!AB1133","v":0},{"$f":"[1]Infrastructure!AB1133","v":0},0,{"$f":"[1]Infrastructure!AC1133","v":0},{"$f":"[1]Infrastructure!AD1133","v":0},{"$f":"[1]Infrastructure!AE1133","v":0},{"$f":"[1]Infrastructure!AF1133","v":0},{"$f":"[1]Infrastructure!AG1133","v":0},{"$f":"[1]Infrastructure!AH1133","v":0},0]
[0,null,null,null,null,null,{"$f":"[1]Infrastructure!G1134","v":0},{"$f":"[1]Infrastructure!H1134","v":0},{"$f":"[1]Infrastructure!I1134","v":0},{"$f":"[1]Infrastructure!J1134","v":0},{"$f":"[1]Infrastructure!K1134","v":0},{"$f":"[1]Infrastructure!L1134","v":0},{"$f":"[1]Infrastructure!M1134","v":0},{"$f":"[1]Infrastructure!N1134","v":0},{"$f":"[1]Infrastructure!O1134","v":0},{"$f":"[1]Infrastructure!Q1134","v":0},{"$f":"[1]Infrastructure!R1134","v":0},{"$f":"[1]Infrastructure!T1134","v":0},{"$f":"[1]Infrastructure!W1134","v":0},{"$f":"[1]Infrastructure!W1134","v":0},0,{"$f":"[1]Infrastructure!Z1134","v":0},{"$f":"[1]Infrastructure!Z1134","v":0},0,{"$f":"[1]Infrastructure!AB1134","v":0},{"$f":"[1]Infrastructure!AB1134","v":0},0,{"$f":"[1]Infrastructure!AC1134","v":0},{"$f":"[1]Infrastructure!AD1134","v":0},{"$f":"[1]Infrastructure!AE1134","v":0},{"$f":"[1]Infrastructure!AF1134","v":0},{"$f":"[1]Infrastructure!AG1134","v":0},{"$f":"[1]Infrastructure!AH1134","v":0},0]
[0,null,null,null,null,null,{"$f":"[1]Infrastructure!G1135","v":0},{"$f":"[1]Infrastructure!H1135","v":0},{"$f":"[1]Infrastructure!I1135","v":0},{"$f":"[1]Infrastructure!J1135","v":0},{"$f":"[1]Infrastructure!K1135","v":0},{"$f":"[1]Infrastructure!L1135","v":0},{"$f":"[1]Infrastructure!M1135","v":0},{"$f":"[1]Infrastructure!N1135","v":0},{"$f":"[1]Infrastructure!O1135","v":0},{"$f":"[1]Infrastructure!Q1135","v":0},{"$f":"[1]Infrastructure!R1135","v":0},{"$f":"[1]Infrastructure!T1135","v":0},{"$f":"[1]Infrastructure!W1135","v":0},{"$f":"[1]Infrastructure!W1135","v":0},0,{"$f":"[1]Infrastructure!Z1135","v":0},{"$f":"[1]Infrastructure!Z1135","v":0},0,{"$f":"[1]Infrastructure!AB1135","v":0},{"$f":"[1]Infrastructure!AB1135","v":0},0,{"$f":"[1]Infrastructure!AC1135","v":0},{"$f":"[1]Infrastructure!AD1135","v":0},{"$f":"[1]Infrastructure!AE1135","v":0},{"$f":"[1]Infrastructure!AF1135","v":0},{"$f":"[1]Infrastructure!AG1135","v":0},{"$f":"[1]Infrastructure!AH1135","v":0},0]
[0,null,null,null,null,null,{"$f":"[1]Infrastructure!G1136","v":0},{"$f":"[1]Infrastructure!H1136","v":0},{"$f":"[1]Infrastructure!I1136","v":0},{"$f":"[1]Infrastructure!J1136","v":0},{"$f":"[1]Infrastructure!K1136","v":0},{"$f":"[1]Infrastructure!L1136","v":0},{"$f":"[1]Infrastructure!M1136","v":0},{"$f":"[1]Infrastructure!N1136","v":0},{"$f":"[1]Infrastructure!O1136","v":0},{"$f":"[1]Infrastructure!Q1136","v":0},{"$f":"[1]Infrastructure!R1136","v":0},{"$f":"[1]Infrastructure!T1136","v":0},{"$f":"[1]Infrastructure!W1136","v":0},{"$f":"[1]Infrastructure!W1136","v":0},0,{"$f":"[1]Infrastructure!Z1136","v":0},{"$f":"[1]Infrastructure!Z1136","v":0},0,{"$f":"[1]Infrastructure!AB1136","v":0},{"$f":"[1]Infrastructure!AB1136","v":0},0,{"$f":"[1]Infrastructure!AC1136","v":0},{"$f":"[1]Infrastructure!AD1136","v":0},{"$f":"[1]Infrastructure!AE1136","v":0},{"$f":"[1]Infrastructure!AF1136","v":0},{"$f":"[1]Infrastructure!AG1136","v":0},{"$f":"[1]Infrastructure!AH1136","v":0},0]
[0,null,null,null,null,null,{"$f":"[1]Infrastructure!G1137","v":0},{"$f":"[1]Infrastructure!H1137","v":0},{"$f":"[1]Infrastructure!I1137","v":0},{"$f":"[1]Infrastructure!J1137","v":0},{"$f":"[1]Infrastructure!K1137","v":0},{"$f":"[1]Infrastructure!L1137","v":0},{"$f":"[1]Infrastructure!M1137","v":0},{"$f":"[1]Infrastructure!N1137","v":0},{"$f":"[1]Infrastructure!O1137","v":0},{"$f":"[1]Infrastructure!Q1137","v":0},{"$f":"[1]Infrastructure!R1137","v":0},{"$f":"[1]Infrastructure!T1137","v":0},{"$f":"[1]Infrastructure!W1137","v":0},{"$f":"[1]Infrastructure!W1137","v":0},0,{"$f":"[1]Infrastructure!Z1137","v":0},{"$f":"[1]Infrastructure!Z1137","v":0},0,{"$f":"[1]Infrastructure!AB1137","v":0},{"$f":"[1]Infrastructure!AB1137","v":0},0,{"$f":"[1]Infrastructure!AC1137","v":0},{"$f":"[1]Infrastructure!AD1137","v":0},{"$f":"[1]Infrastructure!AE1137","v":0},{"$f":"[1]Infrastructure!AF1137","v":0},{"$f":"[1]Infrastructure!AG1137","v":0},{"$f":"[1]Infrastructure!AH1137","v":0},0]
[0,null,null,null,null,null,{"$f":"[1]Infrastructure!G1138","v":0},{"$f":"[1]Infrastructure!H1138","v":0},{"$f":"[1]Infrastructure!I1138","v":0},{"$f":"[1]Infrastructure!J1138","v":0},{"$f":"[1]Infrastructure!K1138","v":0},{"$f":"[1]Infrastructure!L1138","v":0},{"$f":"[1]Infrastructure!M1138","v":0},{"$f":"[1]Infrastructure!N1138","v":0},{"$f":"[1]Infrastructure!O1138","v":0},{"$f":"[1]Infrastructure!Q1138","v":0},{"$f":"[1]Infrastructure!R1138","v":0},{"$f":"[1]Infrastructure!T1138","v":0},{"$f":"[1]Infrastructure!W1138","v":0},{"$f":"[1]Infrastructure!W1138","v":0},0,{"$f":"[1]Infrastructure!Z1138","v":0},{"$f":"[1]Infrastructure!Z1138","v":0},0,{"$f":"[1]Infrastructure!AB1138","v":0},{"$f":"[1]Infrastructure!AB1138","v":0},0,{"$f":"[1]Infrastructure!AC1138","v":0},{"$f":"[1]Infrastructure!AD1138","v":0},{"$f":"[1]Infrastructure!AE1138","v":0},{"$f":"[1]Infrastructure!AF1138","v":0},{"$f":"[1]Infrastructure!AG1138","v":0},{"$f":"[1]Infrastructure!AH1138","v":0},0]
[0,null,null,null,null,null,{"$f":"[1]Infrastructure!G1139","v":0},{"$f":"[1]Infrastructure!H1139","v":0},{"$f":"[1]Infrastructure!I1139","v":0},{"$f":"[1]Infrastructure!J1139","v":0},{"$f":"[1]Infrastructure!K1139","v":0},{"$f":"[1]Infrastructure!L1139","v":0},{"$f":"[1]Infrastructure!M1139","v":0},{"$f":"[1]Infrastructure!N1139","v":0},{"$f":"[1]Infrastructure!O1139","v":0},{"$f":"[1]Infrastructure!Q1139","v":0},{"$f":"[1]Infrastructure!R1139","v":0},{"$f":"[1]Infrastructure!T1139","v":0},{"$f":"[1]Infrastructure!W1139","v":0},{"$f":"[1]Infrastructure!W1139","v":0},0,{"$f":"[1]Infrastructure!Z1139","v":0},{"$f":"[1]Infrastructure!Z1139","v":0},0,{"$f":"[1]Infrastructure!AB1139","v":0},{"$f":"[1]Infrastructure!AB1139","v":0},0,{"$f":"[1]Infrastructure!AC1139","v":0},{"$f":"[1]Infrastructure!AD1139","v":0},{"$f":"[1]Infrastructure!AE1139","v":0},{"$f":"[1]Infrastructure!AF1139","v":0},{"$f":"[1]Infrastructure!AG1139","v":0},{"$f":"[1]Infrastructure!AH1139","v":0},0]
[0,null,null,null,null,null,{"$f":"[1]Infrastructure!G1140","v":0},{"$f":"[1]Infrastructure!H1140","v":0},{"$f":"[1]Infrastructure!I1140","v":0},{"$f":"[1]Infrastructure!J1140","v":0},{"$f":"[1]Infrastructure!K1140","v":0},{"$f":"[1]Infrastructure!L1140","v":0},{"$f":"[1]Infrastructure!M1140","v":0},{"$f":"[1]Infrastructure!N1140","v":0},{"$f":"[1]Infrastructure!O1140","v":0},{"$f":"[1]Infrastructure!Q1140","v":0},{"$f":"[1]Infrastructure!R1140","v":0},{"$f":"[1]Infrastructure!T1140","v":0},{"$f":"[1]Infrastructure!W1140","v":0},{"$f":"[1]Infrastructure!W1140","v":0},0,{"$f":"[1]Infrastructure!Z1140","v":0},{"$f":"[1]Infrastructure!Z1140","v":0},0,{"$f":"[1]Infrastructure!AB1140","v":0},{"$f":"[1]Infrastructure!AB1140","v":0},0,{"$f":"[1]Infrastructure!AC1140","v":0},{"$f":"[1]Infrastructure!AD1140","v":0},{"$f":"[1]Infrastructure!AE1140","v":0},{"$f":"[1]Infrastructure!AF1140","v":0},{"$f":"[1]Infrastructure!AG1140","v":0},{"$f":"[1]Infrastructure!AH1140","v":0},0]
[0,null,null,null,null,null,{"$f":"[1]Infrastructure!G1141","v":0},{"$f":"[1]Infrastructure!H1141","v":0},{"$f":"[1]Infrastructure!I1141","v":0},{"$f":"[1]Infrastructure!J1141","v":0},{"$f":"[1]Infrastructure!K1141","v":0},{"$f":"[1]Infrastructure!L1141","v":0},{"$f":"[1]Infrastructure!M1141","v":0},{"$f":"[1]Infrastructure!N1141","v":0},{"$f":"[1]Infrastructure!O1141","v":0},{"$f":"[1]Infrastructure!Q1141","v":0},{"$f":"[1]Infrastructure!R1141","v":0},{"$f":"[1]Infrastructure!T1141","v":0},{"$f":"[1]Infrastructure!W1141","v":0},{"$f":"[1]Infrastructure!W1141","v":0},0,{"$f":"[1]Infrastructure!Z1141","v":0},{"$f":"[1]Infrastructure!Z1141","v":0},0,{"$f":"[1]Infrastructure!AB1141","v":0},{"$f":"[1]Infrastructure!AB1141","v":0},0,{"$f":"[1]Infrastructure!AC1141","v":0},{"$f":"[1]Infrastructure!AD1141","v":0},{"$f":"[1]Infrastructure!AE1141","v":0},{"$f":"[1]Infrastructure!AF1141","v":0},{"$f":"[1]Infrastructure!AG1141","v":0},{"$f":"[1]Infrastructure!AH1141","v":0},0]
[0,null,null,null,null,null,{"$f":"[1]Infrastructure!G1142","v":0},{"$f":"[1]Infrastructure!H1142","v":0},{"$f":"[1]Infrastructure!I1142","v":0},{"$f":"[1]Infrastructure!J1142","v":0},{"$f":"[1]Infrastructure!K1142","v":0},{"$f":"[1]Infrastructure!L1142","v":0},{"$f":"[1]Infrastructure!M1142","v":0},{"$f":"[1]Infrastructure!N1142","v":0},{"$f":"[1]Infrastructure!O1142","v":0},{"$f":"[1]Infrastructure!Q1142","v":0},{"$f":"[1]Infrastructure!R1142","v":0},{"$f":"[1]Infrastructure!T1142","v":0},{"$f":"[1]Infrastructure!W1142","v":0},{"$f":"[1]Infrastructure!W1142","v":0},0,{"$f":"[1]Infrastructure!Z1142","v":0},{"$f":"[1]Infrastructure!Z1142","v":0},0,{"$f":"[1]Infrastructure!AB1142","v":0},{"$f":"[1]Infrastructure!AB1142","v":0},0,{"$f":"[1]Infrastructure!AC1142","v":0},{"$f":"[1]Infrastructure!AD1142","v":0},{"$f":"[1]Infrastructure!AE1142","v":0},{"$f":"[1]Infrastructure!AF1142","v":0},{"$f":"[1]Infrastructure!AG1142","v":0},{"$f":"[1]Infrastructure!AH1142","v":0},0]
[0,null,null,null,null,null,{"$f":"[1]Infrastructure!G1143","v":0},{"$f":"[1]Infrastructure!H1143","v":0},{"$f":"[1]Infrastructure!I1143","v":0},{"$f":"[1]Infrastructure!J1143","v":0},{"$f":"[1]Infrastructure!K1143","v":0},{"$f":"[1]Infrastructure!L1143","v":0},{"$f":"[1]Infrastructure!M1143","v":0},{"$f":"[1]Infrastructure!N1143","v":0},{"$f":"[1]Infrastructure!O1143","v":0},{"$f":"[1]Infrastructure!Q1143","v":0},{"$f":"[1]Infrastructure!R1143","v":0},{"$f":"[1]Infrastructure!T1143","v":0},{"$f":"[1]Infrastructure!W1143","v":0},{"$f":"[1]Infrastructure!W1143","v":0},0,{"$f":"[1]Infrastructure!Z1143","v":0},{"$f":"[1]Infrastructure!Z1143","v":0},0,{"$f":"[1]Infrastructure!AB1143","v":0},{"$f":"[1]Infrastructure!AB1143","v":0},0,{"$f":"[1]Infrastructure!AC1143","v":0},{"$f":"[1]Infrastructure!AD1143","v":0},{"$f":"[1]Infrastructure!AE1143","v":0},{"$f":"[1]Infrastructure!AF1143","v":0},{"$f":"[1]Infrastructure!AG1143","v":0},{"$f":"[1]Infrastructure!AH1143","v":0},0]
[0,null,null,null,null,null,{"$f":"[1]Infrastructure!G1144","v":0},{"$f":"[1]Infrastructure!H1144","v":0},{"$f":"[1]Infrastructure!I1144","v":0},{"$f":"[1]Infrastructure!J1144","v":0},{"$f":"[1]Infrastructure!K1144","v":0},{"$f":"[1]Infrastructure!L1144","v":0},{"$f":"[1]Infrastructure!M1144","v":0},{"$f":"[1]Infrastructure!N1144","v":0},{"$f":"[1]Infrastructure!O1144","v":0},{"$f":"[1]Infrastructure!Q1144","v":0},{"$f":"[1]Infrastructure!R1144","v":0},{"$f":"[1]Infrastructure!T1144","v":0},{"$f":"[1]Infrastructure!W1144","v":0},{"$f":"[1]Infrastructure!W1144","v":0},0,{"$f":"[1]Infrastructure!Z1144","v":0},{"$f":"[1]Infrastructure!Z1144","v":0},0,{"$f":"[1]Infrastructure!AB1144","v":0},{"$f":"[1]Infrastructure!AB1144","v":0},0,{"$f":"[1]Infrastructure!AC1144","v":0},{"$f":"[1]Infrastructure!AD1144","v":0},{"$f":"[1]Infrastructure!AE1144","v":0},{"$f":"[1]Infrastructure!AF1144","v":0},{"$f":"[1]Infrastructure!AG1144","v":0},{"$f":"[1]Infrastructure!AH1144","v":0},0]
[0,null,null,null,null,null,{"$f":"[1]Infrastructure!G1145","v":0},{"$f":"[1]Infrastructure!H1145","v":0},{"$f":"[1]Infrastructure!I1145","v":0},{"$f":"[1]Infrastructure!J1145","v":0},{"$f":"[1]Infrastructure!K1145","v":0},{"$f":"[1]Infrastructure!L1145","v":0},{"$f":"[1]Infrastructure!M1145","v":0},{"$f":"[1]Infrastructure!N1145","v":0},{"$f":"[1]Infrastructure!O1145","v":0},{"$f":"[1]Infrastructure!Q1145","v":0},{"$f":"[1]Infrastructure!R1145","v":0},{"$f":"[1]Infrastructure!T1145","v":0},{"$f":"[1]Infrastructure!W1145","v":0},{"$f":"[1]Infrastructure!W1145","v":0},0,{"$f":"[1]Infrastructure!Z1145","v":0},{"$f":"[1]Infrastructure!Z1145","v":0},0,{"$f":"[1]Infrastructure!AB1145","v":0},{"$f":"[1]Infrastructure!AB1145","v":0},0,{"$f":"[1]Infrastructure!AC1145","v":0},{"$f":"[1]Infrastructure!AD1145","v":0},{"$f":"[1]Infrastructure!AE1145","v":0},{"$f":"[1]Infrastructure!AF1145","v":0},{"$f":"[1]Infrastructure!AG1145","v":0},{"$f":"[1]Infrastructure!AH1145","v":0},0]
[0,null,null,null,null,null,{"$f":"[1]Infrastructure!G1146","v":0},{"$f":"[1]Infrastructure!H1146","v":0},{"$f":"[1]Infrastructure!I1146","v":0},{"$f":"[1]Infrastructure!J1146","v":0},{"$f":"[1]Infrastructure!K1146","v":0},{"$f":"[1]Infrastructure!L1146","v":0},{"$f":"[1]Infrastructure!M1146","v":0},{"$f":"[1]Infrastructure!N1146","v":0},{"$f":"[1]Infrastructure!O1146","v":0},{"$f":"[1]Infrastructure!Q1146","v":0},{"$f":"[1]Infrastructure!R1146","v":0},{"$f":"[1]Infrastructure!T1146","v":0},{"$f":"[1]Infrastructure!W1146","v":0},{"$f":"[1]Infrastructure!W1146","v":0},0,{"$f":"[1]Infrastructure!Z1146","v":0},{"$f":"[1]Infrastructure!Z1146","v":0},0,{"$f":"[1]Infrastructure!AB1146","v":0},{"$f":"[1]Infrastructure!AB1146","v":0},0,{"$f":"[1]Infrastructure!AC1146","v":0},{"$f":"[1]Infrastructure!AD1146","v":0},{"$f":"[1]Infrastructure!AE1146","v":0},{"$f":"[1]Infrastructure!AF1146","v":0},{"$f":"[1]Infrastructure!AG1146","v":0},{"$f":"[1]Infrastructure!AH1146","v":0},0]
[0,null,null,null,null,null,{"$f":"[1]Infrastructure!G1147","v":0},{"$f":"[1]Infrastructure!H1147","v":0},{"$f":"[1]Infrastructure!I1147","v":0},{"$f":"[1]Infrastructure!J1147","v":0},{"$f":"[1]Infrastructure!K1147","v":0},{"$f":"[1]Infrastructure!L1147","v":0},{"$f":"[1]Infrastructure!M1147","v":0},{"$f":"[1]Infrastructure!N1147","v":0},{"$f":"[1]Infrastructure!O1147","v":0},{"$f":"[1]Infrastructure!Q1147","v":0},{"$f":"[1]Infrastructure!R1147","v":0},{"$f":"[1]Infrastructure!T1147","v":0},{"$f":"[1]Infrastructure!W1147","v":0},{"$f":"[1]Infrastructure!W1147","v":0},0,{"$f":"[1]Infrastructure!Z1147","v":0},{"$f":"[1]Infrastructure!Z1147","v":0},0,{"$f":"[1]Infrastructure!AB1147","v":0},{"$f":"[1]Infrastructure!AB1147","v":0},0,{"$f":"[1]Infrastructure!AC1147","v":0},{"$f":"[1]Infrastructure!AD1147","v":0},{"$f":"[1]Infrastructure!AE1147","v":0},{"$f":"[1]Infrastructure!AF1147","v":0},{"$f":"[1]Infrastructure!AG1147","v":0},{"$f":"[1]Infrastructure!AH1147","v":0},0]
[0,null,null,null,null,null,{"$f":"[1]Infrastructure!G1148","v":0},{"$f":"[1]Infrastructure!H1148","v":0},{"$f":"[1]Infrastructure!I1148","v":0},{"$f":"[1]Infrastructure!J1148","v":0},{"$f":"[1]Infrastructure!K1148","v":0},{"$f":"[1]Infrastructure!L1148","v":0},{"$f":"[1]Infrastructure!M1148","v":0},{"$f":"[1]Infrastructure!N1148","v":0},{"$f":"[1]Infrastructure!O1148","v":0},{"$f":"[1]Infrastructure!Q1148","v":0},{"$f":"[1]Infrastructure!R1148","v":0},{"$f":"[1]Infrastructure!T1148","v":0},{"$f":"[1]Infrastructure!W1148","v":0},{"$f":"[1]Infrastructure!W1148","v":0},0,{"$f":"[1]Infrastructure!Z1148","v":0},{"$f":"[1]Infrastructure!Z1148","v":0},0,{"$f":"[1]Infrastructure!AB1148","v":0},{"$f":"[1]Infrastructure!AB1148","v":0},0,{"$f":"[1]Infrastructure!AC1148","v":0},{"$f":"[1]Infrastructure!AD1148","v":0},{"$f":"[1]Infrastructure!AE1148","v":0},{"$f":"[1]Infrastructure!AF1148","v":0},{"$f":"[1]Infrastructure!AG1148","v":0},{"$f":"[1]Infrastructure!AH1148","v":0},0]
[0,null,null,null,null,null,{"$f":"[1]Infrastructure!G1149","v":0},{"$f":"[1]Infrastructure!H1149","v":0},{"$f":"[1]Infrastructure!I1149","v":0},{"$f":"[1]Infrastructure!J1149","v":0},{"$f":"[1]Infrastructure!K1149","v":0},{"$f":"[1]Infrastructure!L1149","v":0},{"$f":"[1]Infrastructure!M1149","v":0},{"$f":"[1]Infrastructure!N1149","v":0},{"$f":"[1]Infrastructure!O1149","v":0},{"$f":"[1]Infrastructure!Q1149","v":0},{"$f":"[1]Infrastructure!R1149","v":0},{"$f":"[1]Infrastructure!T1149","v":0},{"$f":"[1]Infrastructure!W1149","v":0},{"$f":"[1]Infrastructure!W1149","v":0},0,{"$f":"[1]Infrastructure!Z1149","v":0},{"$f":"[1]Infrastructure!Z1149","v":0},0,{"$f":"[1]Infrastructure!AB1149","v":0},{"$f":"[1]Infrastructure!AB1149","v":0},0,{"$f":"[1]Infrastructure!AC1149","v":0},{"$f":"[1]Infrastructure!AD1149","v":0},{"$f":"[1]Infrastructure!AE1149","v":0},{"$f":"[1]Infrastructure!AF1149","v":0},{"$f":"[1]Infrastructure!AG1149","v":0},{"$f":"[1]Infrastructure!AH1149","v":0},0]
[0,null,null,null,null,null,{"$f":"[1]Infrastructure!G1150","v":0},{"$f":"[1]Infrastructure!H1150","v":0},{"$f":"[1]Infrastructure!I1150","v":0},{"$f":"[1]Infrastructure!J1150","v":0},{"$f":"[1]Infrastructure!K1150","v":0},{"$f":"[1]Infrastructure!L1150","v":0},{"$f":"[1]Infrastructure!M1150","v":0},{"$f":"[1]Infrastructure!N1150","v":0},{"$f":"[1]Infrastructure!O1150","v":0},{"$f":"[1]Infrastructure!Q1150","v":0},{"$f":"[1]Infrastructure!R1150","v":0},{"$f":"[1]Infrastructure!T1150","v":0},{"$f":"[1]Infrastructure!W1150","v":0},{"$f":"[1]Infrastructure!W1150","v":0},0,{"$f":"[1]Infrastructure!Z1150","v":0},{"$f":"[1]Infrastructure!Z1150","v":0},0,{"$f":"[1]Infrastructure!AB1150","v":0},{"$f":"[1]Infrastructure!AB1150","v":0},0,{"$f":"[1]Infrastructure!AC1150","v":0},{"$f":"[1]Infrastructure!AD1150","v":0},{"$f":"[1]Infrastructure!AE1150","v":0},{"$f":"[1]Infrastructure!AF1150","v":0},{"$f":"[1]Infrastructure!AG1150","v":0},{"$f":"[1]Infrastructure!AH1150","v":0},0]
[0,null,null,null,null,null,{"$f":"[1]Infrastructure!G1151","v":0},{"$f":"[1]Infrastructure!H1151","v":0},{"$f":"[1]Infrastructure!I1151","v":0},{"$f":"[1]Infrastructure!J1151","v":0},{"$f":"[1]Infrastructure!K1151","v":0},{"$f":"[1]Infrastructure!L1151","v":0},{"$f":"[1]Infrastructure!M1151","v":0},{"$f":"[1]Infrastructure!N1151","v":0},{"$f":"[1]Infrastructure!O1151","v":0},{"$f":"[1]Infrastructure!Q1151","v":0},{"$f":"[1]Infrastructure!R1151","v":0},{"$f":"[1]Infrastructure!T1151","v":0},{"$f":"[1]Infrastructure!W1151","v":0},{"$f":"[1]Infrastructure!W1151","v":0},0,{"$f":"[1]Infrastructure!Z1151","v":0},{"$f":"[1]Infrastructure!Z1151","v":0},0,{"$f":"[1]Infrastructure!AB1151","v":0},{"$f":"[1]Infrastructure!AB1151","v":0},0,{"$f":"[1]Infrastructure!AC1151","v":0},{"$f":"[1]Infrastructure!AD1151","v":0},{"$f":"[1]Infrastructure!AE1151","v":0},{"$f":"[1]Infrastructure!AF1151","v":0},{"$f":"[1]Infrastructure!AG1151","v":0},{"$f":"[1]Infrastructure!AH1151","v":0},0]
[0,null,null,null,null,null,{"$f":"[1]Infrastructure!G1152","v":0},{"$f":"[1]Infrastructure!H1152","v":0},{"$f":"[1]Infrastructure!I1152","v":0},{"$f":"[1]Infrastructure!J1152","v":0},{"$f":"[1]Infrastructure!K1152","v":0},{"$f":"[1]Infrastructure!L1152","v":0},{"$f":"[1]Infrastructure!M1152","v":0},{"$f":"[1]Infrastructure!N1152","v":0},{"$f":"[1]Infrastructure!O1152","v":0},{"$f":"[1]Infrastructure!Q1152","v":0},{"$f":"[1]Infrastructure!R1152","v":0},{"$f":"[1]Infrastructure!T1152","v":0},{"$f":"[1]Infrastructure!W1152","v":0},{"$f":"[1]Infrastructure!W1152","v":0},0,{"$f":"[1]Infrastructure!Z1152","v":0},{"$f":"[1]Infrastructure!Z1152","v":0},0,{"$f":"[1]Infrastructure!AB1152","v":0},{"$f":"[1]Infrastructure!AB1152","v":0},0,{"$f":"[1]Infrastructure!AC1152","v":0},{"$f":"[1]Infrastructure!AD1152","v":0},{"$f":"[1]Infrastructure!AE1152","v":0},{"$f":"[1]Infrastructure!AF1152","v":0},{"$f":"[1]Infrastructure!AG1152","v":0},{"$f":"[1]Infrastructure!AH1152","v":0},0]
[0,null,null,null,null,null,{"$f":"[1]Infrastructure!G1153","v":0},{"$f":"[1]Infrastructure!H1153","v":0},{"$f":"[1]Infrastructure!I1153","v":0},{"$f":"[1]Infrastructure!J1153","v":0},{"$f":"[1]Infrastructure!K1153","v":0},{"$f":"[1]Infrastructure!L1153","v":0},{"$f":"[1]Infrastructure!M1153","v":0},{"$f":"[1]Infrastructure!N1153","v":0},{"$f":"[1]Infrastructure!O1153","v":0},{"$f":"[1]Infrastructure!Q1153","v":0},{"$f":"[1]Infrastructure!R1153","v":0},{"$f":"[1]Infrastructure!T1153","v":0},{"$f":"[1]Infrastructure!W1153","v":0},{"$f":"[1]Infrastructure!W1153","v":0},0,{"$f":"[1]Infrastructure!Z1153","v":0},{"$f":"[1]Infrastructure!Z1153","v":0},0,{"$f":"[1]Infrastructure!AB1153","v":0},{"$f":"[1]Infrastructure!AB1153","v":0},0,{"$f":"[1]Infrastructure!AC1153","v":0},{"$f":"[1]Infrastructure!AD1153","v":0},{"$f":"[1]Infrastructure!AE1153","v":0},{"$f":"[1]Infrastructure!AF1153","v":0},{"$f":"[1]Infrastructure!AG1153","v":0},{"$f":"[1]Infrastructure!AH1153","v":0},0]
[0,null,null,null,null,null,{"$f":"[1]Infrastructure!G1154","v":0},{"$f":"[1]Infrastructure!H1154","v":0},{"$f":"[1]Infrastructure!I1154","v":0},{"$f":"[1]Infrastructure!J1154","v":0},{"$f":"[1]Infrastructure!K1154","v":0},{"$f":"[1]Infrastructure!L1154","v":0},{"$f":"[1]Infrastructure!M1154","v":0},{"$f":"[1]Infrastructure!N1154","v":0},{"$f":"[1]Infrastructure!O1154","v":0},{"$f":"[1]Infrastructure!Q1154","v":0},{"$f":"[1]Infrastructure!R1154","v":0},{"$f":"[1]Infrastructure!T1154","v":0},{"$f":"[1]Infrastructure!W1154","v":0},{"$f":"[1]Infrastructure!W1154","v":0},0,{"$f":"[1]Infrastructure!Z1154","v":0},{"$f":"[1]Infrastructure!Z1154","v":0},0,{"$f":"[1]Infrastructure!AB1154","v":0},{"$f":"[1]Infrastructure!AB1154","v":0},0,{"$f":"[1]Infrastructure!AC1154","v":0},{"$f":"[1]Infrastructure!AD1154","v":0},{"$f":"[1]Infrastructure!AE1154","v":0},{"$f":"[1]Infrastructure!AF1154","v":0},{"$f":"[1]Infrastructure!AG1154","v":0},{"$f":"[1]Infrastructure!AH1154","v":0},0]
[0,null,null,null,null,null,{"$f":"[1]Infrastructure!G1155","v":0},{"$f":"[1]Infrastructure!H1155","v":0},{"$f":"[1]Infrastructure!I1155","v":0},{"$f":"[1]Infrastructure!J1155","v":0},{"$f":"[1]Infrastructure!K1155","v":0},{"$f":"[1]Infrastructure!L1155","v":0},{"$f":"[1]Infrastructure!M1155","v":0},{"$f":"[1]Infrastructure!N1155","v":0},{"$f":"[1]Infrastructure!O1155","v":0},{"$f":"[1]Infrastructure!Q1155","v":0},{"$f":"[1]Infrastructure!R1155","v":0},{"$f":"[1]Infrastructure!T1155","v":0},{"$f":"[1]Infrastructure!W1155","v":0},{"$f":"[1]Infrastructure!W1155","v":0},0,{"$f":"[1]Infrastructure!Z1155","v":0},{"$f":"[1]Infrastructure!Z1155","v":0},0,{"$f":"[1]Infrastructure!AB1155","v":0},{"$f":"[1]Infrastructure!AB1155","v":0},0,{"$f":"[1]Infrastructure!AC1155","v":0},{"$f":"[1]Infrastructure!AD1155","v":0},{"$f":"[1]Infrastructure!AE1155","v":0},{"$f":"[1]Infrastructure!AF1155","v":0},{"$f":"[1]Infrastructure!AG1155","v":0},{"$f":"[1]Infrastructure!AH1155","v":0},0]
[0,null,null,null,null,null,{"$f":"[1]Infrastructure!G1156","v":0},{"$f":"[1]Infrastructure!H1156","v":0},{"$f":"[1]Infrastructure!I1156","v":0},{"$f":"[1]Infrastructure!J1156","v":0},{"$f":"[1]Infrastructure!K1156","v":0},{"$f":"[1]Infrastructure!L1156","v":0},{"$f":"[1]Infrastructure!M1156","v":0},{"$f":"[1]Infrastructure!N1156","v":0},{"$f":"[1]Infrastructure!O1156","v":0},{"$f":"[1]Infrastructure!Q1156","v":0},{"$f":"[1]Infrastructure!R1156","v":0},{"$f":"[1]Infrastructure!T1156","v":0},{"$f":"[1]Infrastructure!W1156","v":0},{"$f":"[1]Infrastructure!W1156","v":0},0,{"$f":"[1]Infrastructure!Z1156","v":0},{"$f":"[1]Infrastructure!Z1156","v":0},0,{"$f":"[1]Infrastructure!AB1156","v":0},{"$f":"[1]Infrastructure!AB1156","v":0},0,{"$f":"[1]Infrastructure!AC1156","v":0},{"$f":"[1]Infrastructure!AD1156","v":0},{"$f":"[1]Infrastructure!AE1156","v":0},{"$f":"[1]Infrastructure!AF1156","v":0},{"$f":"[1]Infrastructure!AG1156","v":0},{"$f":"[1]Infrastructure!AH1156","v":0},0]
[0,null,null,null,null,null,{"$f":"[1]Infrastructure!G1157","v":0},{"$f":"[1]Infrastructure!H1157","v":0},{"$f":"[1]Infrastructure!I1157","v":0},{"$f":"[1]Infrastructure!J1157","v":0},{"$f":"[1]Infrastructure!K1157","v":0},{"$f":"[1]Infrastructure!L1157","v":0},{"$f":"[1]Infrastructure!M1157","v":0},{"$f":"[1]Infrastructure!N1157","v":0},{"$f":"[1]Infrastructure!O1157","v":0},{"$f":"[1]Infrastructure!Q1157","v":0},{"$f":"[1]Infrastructure!R1157","v":0},{"$f":"[1]Infrastructure!T1157","v":0},{"$f":"[1]Infrastructure!W1157","v":0},{"$f":"[1]Infrastructure!W1157","v":0},0,{"$f":"[1]Infrastructure!Z1157","v":0},{"$f":"[1]Infrastructure!Z1157","v":0},0,{"$f":"[1]Infrastructure!AB1157","v":0},{"$f":"[1]Infrastructure!AB1157","v":0},0,{"$f":"[1]Infrastructure!AC1157","v":0},{"$f":"[1]Infrastructure!AD1157","v":0},{"$f":"[1]Infrastructure!AE1157","v":0},{"$f":"[1]Infrastructure!AF1157","v":0},{"$f":"[1]Infrastructure!AG1157","v":0},{"$f":"[1]Infrastructure!AH1157","v":0},0]
[0,null,null,null,null,null,{"$f":"[1]Infrastructure!G1158","v":0},{"$f":"[1]Infrastructure!H1158","v":0},{"$f":"[1]Infrastructure!I1158","v":0},{"$f":"[1]Infrastructure!J1158","v":0},{"$f":"[1]Infrastructure!K1158","v":0},{"$f":"[1]Infrastructure!L1158","v":0},{"$f":"[1]Infrastructure!M1158","v":0},{"$f":"[1]Infrastructure!N1158","v":0},{"$f":"[1]Infrastructure!O1158","v":0},{"$f":"[1]Infrastructure!Q1158","v":0},{"$f":"[1]Infrastructure!R1158","v":0},{"$f":"[1]Infrastructure!T1158","v":0},{"$f":"[1]Infrastructure!W1158","v":0},{"$f":"[1]Infrastructure!W1158","v":0},0,{"$f":"[1]Infrastructure!Z1158","v":0},{"$f":"[1]Infrastructure!Z1158","v":0},0,{"$f":"[1]Infrastructure!AB1158","v":0},{"$f":"[1]Infrastructure!AB1158","v":0},0,{"$f":"[1]Infrastructure!AC1158","v":0},{"$f":"[1]Infrastructure!AD1158","v":0},{"$f":"[1]Infrastructure!AE1158","v":0},{"$f":"[1]Infrastructure!AF1158","v":0},{"$f":"[1]Infrastructure!AG1158","v":0},{"$f":"[1]Infrastructure!AH1158","v":0},0]
[0,null,null,null,null,null,{"$f":"[1]Infrastructure!G1159","v":0},{"$f":"[1]Infrastructure!H1159","v":0},{"$f":"[1]Infrastructure!I1159","v":0},{"$f":"[1]Infrastructure!J1159","v":0},{"$f":"[1]Infrastructure!K1159","v":0},{"$f":"[1]Infrastructure!L1159","v":0},{"$f":"[1]Infrastructure!M1159","v":0},{"$f":"[1]Infrastructure!N1159","v":0},{"$f":"[1]Infrastructure!O1159","v":0},{"$f":"[1]Infrastructure!Q1159","v":0},{"$f":"[1]Infrastructure!R1159","v":0},{"$f":"[1]Infrastructure!T1159","v":0},{"$f":"[1]Infrastructure!W1159","v":0},{"$f":"[1]Infrastructure!W1159","v":0},0,{"$f":"[1]Infrastructure!Z1159","v":0},{"$f":"[1]Infrastructure!Z1159","v":0},0,{"$f":"[1]Infrastructure!AB1159","v":0},{"$f":"[1]Infrastructure!AB1159","v":0},0,{"$f":"[1]Infrastructure!AC1159","v":0},{"$f":"[1]Infrastructure!AD1159","v":0},{"$f":"[1]Infrastructure!AE1159","v":0},{"$f":"[1]Infrastructure!AF1159","v":0},{"$f":"[1]Infrastructure!AG1159","v":0},{"$f":"[1]Infrastructure!AH1159","v":0},0]
[0,null,null,null,null,null,{"$f":"[1]Infrastructure!G1160","v":0},{"$f":"[1]Infrastructure!H1160","v":0},{"$f":"[1]Infrastructure!I1160","v":0},{"$f":"[1]Infrastructure!J1160","v":0},{"$f":"[1]Infrastructure!K1160","v":0},{"$f":"[1]Infrastructure!L1160","v":0},{"$f":"[1]Infrastructure!M1160","v":0},{"$f":"[1]Infrastructure!N1160","v":0},{"$f":"[1]Infrastructure!O1160","v":0},{"$f":"[1]Infrastructure!Q1160","v":0},{"$f":"[1]Infrastructure!R1160","v":0},{"$f":"[1]Infrastructure!T1160","v":0},{"$f":"[1]Infrastructure!W1160","v":0},{"$f":"[1]Infrastructure!W1160","v":0},0,{"$f":"[1]Infrastructure!Z1160","v":0},{"$f":"[1]Infrastructure!Z1160","v":0},0,{"$f":"[1]Infrastructure!AB1160","v":0},{"$f":"[1]Infrastructure!AB1160","v":0},0,{"$f":"[1]Infrastructure!AC1160","v":0},{"$f":"[1]Infrastructure!AD1160","v":0},{"$f":"[1]Infrastructure!AE1160","v":0},{"$f":"[1]Infrastructure!AF1160","v":0},{"$f":"[1]Infrastructure!AG1160","v":0},{"$f":"[1]Infrastructure!AH1160","v":0},0]
[0,null,null,null,null,null,{"$f":"[1]Infrastructure!G1161","v":0},{"$f":"[1]Infrastructure!H1161","v":0},{"$f":"[1]Infrastructure!I1161","v":0},{"$f":"[1]Infrastructure!J1161","v":0},{"$f":"[1]Infrastructure!K1161","v":0},{"$f":"[1]Infrastructure!L1161","v":0},{"$f":"[1]Infrastructure!M1161","v":0},{"$f":"[1]Infrastructure!N1161","v":0},{"$f":"[1]Infrastructure!O1161","v":0},{"$f":"[1]Infrastructure!Q1161","v":0},{"$f":"[1]Infrastructure!R1161","v":0},{"$f":"[1]Infrastructure!T1161","v":0},{"$f":"[1]Infrastructure!W1161","v":0},{"$f":"[1]Infrastructure!W1161","v":0},0,{"$f":"[1]Infrastructure!Z1161","v":0},{"$f":"[1]Infrastructure!Z1161","v":0},0,{"$f":"[1]Infrastructure!AB1161","v":0},{"$f":"[1]Infrastructure!AB1161","v":0},0,{"$f":"[1]Infrastructure!AC1161","v":0},{"$f":"[1]Infrastructure!AD1161","v":0},{"$f":"[1]Infrastructure!AE1161","v":0},{"$f":"[1]Infrastructure!AF1161","v":0},{"$f":"[1]Infrastructure!AG1161","v":0},{"$f":"[1]Infrastructure!AH1161","v":0},0]
[0,null,null,null,null,null,{"$f":"[1]Infrastructure!G1162","v":0},{"$f":"[1]Infrastructure!H1162","v":0},{"$f":"[1]Infrastructure!I1162","v":0},{"$f":"[1]Infrastructure!J1162","v":0},{"$f":"[1]Infrastructure!K1162","v":0},{"$f":"[1]Infrastructure!L1162","v":0},{"$f":"[1]Infrastructure!M1162","v":0},{"$f":"[1]Infrastructure!N1162","v":0},{"$f":"[1]Infrastructure!O1162","v":0},{"$f":"[1]Infrastructure!Q1162","v":0},{"$f":"[1]Infrastructure!R1162","v":0},{"$f":"[1]Infrastructure!T1162","v":0},{"$f":"[1]Infrastructure!W1162","v":0},{"$f":"[1]Infrastructure!W1162","v":0},0,{"$f":"[1]Infrastructure!Z1162","v":0},{"$f":"[1]Infrastructure!Z1162","v":0},0,{"$f":"[1]Infrastructure!AB1162","v":0},{"$f":"[1]Infrastructure!AB1162","v":0},0,{"$f":"[1]Infrastructure!AC1162","v":0},{"$f":"[1]Infrastructure!AD1162","v":0},{"$f":"[1]Infrastructure!AE1162","v":0},{"$f":"[1]Infrastructure!AF1162","v":0},{"$f":"[1]Infrastructure!AG1162","v":0},{"$f":"[1]Infrastructure!AH1162","v":0},0]
[0,null,null,null,null,null,{"$f":"[1]Infrastructure!G1163","v":0},{"$f":"[1]Infrastructure!H1163","v":0},{"$f":"[1]Infrastructure!I1163","v":0},{"$f":"[1]Infrastructure!J1163","v":0},{"$f":"[1]Infrastructure!K1163","v":0},{"$f":"[1]Infrastructure!L1163","v":0},{"$f":"[1]Infrastructure!M1163","v":0},{"$f":"[1]Infrastructure!N1163","v":0},{"$f":"[1]Infrastructure!O1163","v":0},{"$f":"[1]Infrastructure!Q1163","v":0},{"$f":"[1]Infrastructure!R1163","v":0},{"$f":"[1]Infrastructure!T1163","v":0},{"$f":"[1]Infrastructure!W1163","v":0},{"$f":"[1]Infrastructure!W1163","v":0},0,{"$f":"[1]Infrastructure!Z1163","v":0},{"$f":"[1]Infrastructure!Z1163","v":0},0,{"$f":"[1]Infrastructure!AB1163","v":0},{"$f":"[1]Infrastructure!AB1163","v":0},0,{"$f":"[1]Infrastructure!AC1163","v":0},{"$f":"[1]Infrastructure!AD1163","v":0},{"$f":"[1]Infrastructure!AE1163","v":0},{"$f":"[1]Infrastructure!AF1163","v":0},{"$f":"[1]Infrastructure!AG1163","v":0},{"$f":"[1]Infrastructure!AH1163","v":0},0]
[{"$f":"IF(SUM(O1164:AH1164),1,0)","v":0},null,null,null,null,null,{"$f":"[1]Infrastructure!G1164","v":0},{"$f":"[1]Infrastructure!H1164","v":0},{"$f":"[1]Infrastructure!I1164","v":0},{"$f":"[1]Infrastructure!J1164","v":0},{"$f":"[1]Infrastructure!K1164","v":0},{"$f":"[1]Infrastructure!L1164","v":0},{"$f":"[1]Infrastructure!M1164","v":0},{"$f":"[1]Infrastructure!N1164","v":0},{"$f":"[1]Infrastructure!O1164","v":0},{"$f":"[1]Infrastructure!Q1164","v":0},{"$f":"[1]Infrastructure!R1164","v":0},{"$f":"[1]Infrastructure!T1164","v":0},{"$f":"[1]Infrastructure!W1164","v":0},{"$f":"[1]Infrastructure!W1164","v":0},0,{"$f":"[1]Infrastructure!Z1164","v":0},{"$f":"[1]Infrastructure!Z1164","v":0},0,{"$f":"[1]Infrastructure!AB1164","v":0},{"$f":"[1]Infrastructure!AB1164","v":0},0,{"$f":"[1]Infrastructure!AC1164","v":0},{"$f":"[1]Infrastructure!AD1164","v":0},{"$f":"[1]Infrastructure!AE1164","v":0},{"$f":"[1]Infrastructure!AF1164","v":0},{"$f":"[1]Infrastructure!AG1164","v":0},{"$f":"[1]Infrastructure!AH1164","v":0},0]
[0,null,null,null,null,null,{"$f":"[1]Infrastructure!G1165","v":0},{"$f":"[1]Infrastructure!H1165","v":0},{"$f":"[1]Infrastructure!I1165","v":0},{"$f":"[1]Infrastructure!J1165","v":0},{"$f":"[1]Infrastructure!K1165","v":0},{"$f":"[1]Infrastructure!L1165","v":0},{"$f":"[1]Infrastructure!M1165","v":0},{"$f":"[1]Infrastructure!N1165","v":0},{"$f":"[1]Infrastructure!O1165","v":0},{"$f":"[1]Infrastructure!Q1165","v":0},{"$f":"[1]Infrastructure!R1165","v":0},{"$f":"[1]Infrastructure!T1165","v":0},{"$f":"[1]Infrastructure!W1165","v":0},{"$f":"[1]Infrastructure!W1165","v":0},0,{"$f":"[1]Infrastructure!Z1165","v":0},{"$f":"[1]Infrastructure!Z1165","v":0},0,{"$f":"[1]Infrastructure!AB1165","v":0},{"$f":"[1]Infrastructure!AB1165","v":0},0,{"$f":"[1]Infrastructure!AC1165","v":0},{"$f":"[1]Infrastructure!AD1165","v":0},{"$f":"[1]Infrastructure!AE1165","v":0},{"$f":"[1]Infrastructure!AF1165","v":0},{"$f":"[1]Infrastructure!AG1165","v":0},{"$f":"[1]Infrastructure!AH1165","v":0},0]
[0,null,null,null,null,null,{"$f":"[1]Infrastructure!G1166","v":0},{"$f":"[1]Infrastructure!H1166","v":0},{"$f":"[1]Infrastructure!I1166","v":0},{"$f":"[1]Infrastructure!J1166","v":0},{"$f":"[1]Infrastructure!K1166","v":0},{"$f":"[1]Infrastructure!L1166","v":0},{"$f":"[1]Infrastructure!M1166","v":0},{"$f":"[1]Infrastructure!N1166","v":0},{"$f":"[1]Infrastructure!O1166","v":0},{"$f":"[1]Infrastructure!Q1166","v":0},{"$f":"[1]Infrastructure!R1166","v":0},{"$f":"[1]Infrastructure!T1166","v":0},{"$f":"[1]Infrastructure!W1166","v":0},{"$f":"[1]Infrastructure!W1166","v":0},0,{"$f":"[1]Infrastructure!Z1166","v":0},{"$f":"[1]Infrastructure!Z1166","v":0},0,{"$f":"[1]Infrastructure!AB1166","v":0},{"$f":"[1]Infrastructure!AB1166","v":0},0,{"$f":"[1]Infrastructure!AC1166","v":0},{"$f":"[1]Infrastructure!AD1166","v":0},{"$f":"[1]Infrastructure!AE1166","v":0},{"$f":"[1]Infrastructure!AF1166","v":0},{"$f":"[1]Infrastructure!AG1166","v":0},{"$f":"[1]Infrastructure!AH1166","v":0},0]
[0,null,null,null,null,null,{"$f":"[1]Infrastructure!G1167","v":0},{"$f":"[1]Infrastructure!H1167","v":0},{"$f":"[1]Infrastructure!I1167","v":0},{"$f":"[1]Infrastructure!J1167","v":0},{"$f":"[1]Infrastructure!K1167","v":0},{"$f":"[1]Infrastructure!L1167","v":0},{"$f":"[1]Infrastructure!M1167","v":0},{"$f":"[1]Infrastructure!N1167","v":0},{"$f":"[1]Infrastructure!O1167","v":0},{"$f":"[1]Infrastructure!Q1167","v":0},{"$f":"[1]Infrastructure!R1167","v":0},{"$f":"[1]Infrastructure!T1167","v":0},{"$f":"[1]Infrastructure!W1167","v":0},{"$f":"[1]Infrastructure!W1167","v":0},0,{"$f":"[1]Infrastructure!Z1167","v":0},{"$f":"[1]Infrastructure!Z1167","v":0},0,{"$f":"[1]Infrastructure!AB1167","v":0},{"$f":"[1]Infrastructure!AB1167","v":0},0,{"$f":"[1]Infrastructure!AC1167","v":0},{"$f":"[1]Infrastructure!AD1167","v":0},{"$f":"[1]Infrastructure!AE1167","v":0},{"$f":"[1]Infrastructure!AF1167","v":0},{"$f":"[1]Infrastructure!AG1167","v":0},{"$f":"[1]Infrastructure!AH1167","v":0},0]
[0,null,null,null,null,null,{"$f":"[1]Infrastructure!G1168","v":0},{"$f":"[1]Infrastructure!H1168","v":0},{"$f":"[1]Infrastructure!I1168","v":0},{"$f":"[1]Infrastructure!J1168","v":0},{"$f":"[1]Infrastructure!K1168","v":0},{"$f":"[1]Infrastructure!L1168","v":0},{"$f":"[1]Infrastructure!M1168","v":0},{"$f":"[1]Infrastructure!N1168","v":0},{"$f":"[1]Infrastructure!O1168","v":0},{"$f":"[1]Infrastructure!Q1168","v":0},{"$f":"[1]Infrastructure!R1168","v":0},{"$f":"[1]Infrastructure!T1168","v":0},{"$f":"[1]Infrastructure!W1168","v":0},{"$f":"[1]Infrastructure!W1168","v":0},0,{"$f":"[1]Infrastructure!Z1168","v":0},{"$f":"[1]Infrastructure!Z1168","v":0},0,{"$f":"[1]Infrastructure!AB1168","v":0},{"$f":"[1]Infrastructure!AB1168","v":0},0,{"$f":"[1]Infrastructure!AC1168","v":0},{"$f":"[1]Infrastructure!AD1168","v":0},{"$f":"[1]Infrastructure!AE1168","v":0},{"$f":"[1]Infrastructure!AF1168","v":0},{"$f":"[1]Infrastructure!AG1168","v":0},{"$f":"[1]Infrastructure!AH1168","v":0},0]
[0,null,null,null,null,null,{"$f":"[1]Infrastructure!G1169","v":0},{"$f":"[1]Infrastructure!H1169","v":0},{"$f":"[1]Infrastructure!I1169","v":0},{"$f":"[1]Infrastructure!J1169","v":0},{"$f":"[1]Infrastructure!K1169","v":0},{"$f":"[1]Infrastructure!L1169","v":0},{"$f":"[1]Infrastructure!M1169","v":0},{"$f":"[1]Infrastructure!N1169","v":0},{"$f":"[1]Infrastructure!O1169","v":0},{"$f":"[1]Infrastructure!Q1169","v":0},{"$f":"[1]Infrastructure!R1169","v":0},{"$f":"[1]Infrastructure!T1169","v":0},{"$f":"[1]Infrastructure!W1169","v":0},{"$f":"[1]Infrastructure!W1169","v":0},0,{"$f":"[1]Infrastructure!Z1169","v":0},{"$f":"[1]Infrastructure!Z1169","v":0},0,{"$f":"[1]Infrastructure!AB1169","v":0},{"$f":"[1]Infrastructure!AB1169","v":0},0,{"$f":"[1]Infrastructure!AC1169","v":0},{"$f":"[1]Infrastructure!AD1169","v":0},{"$f":"[1]Infrastructure!AE1169","v":0},{"$f":"[1]Infrastructure!AF1169","v":0},{"$f":"[1]Infrastructure!AG1169","v":0},{"$f":"[1]Infrastructure!AH1169","v":0},0]
[0,null,null,null,null,null,{"$f":"[1]Infrastructure!G1170","v":0},{"$f":"[1]Infrastructure!H1170","v":0},{"$f":"[1]Infrastructure!I1170","v":0},{"$f":"[1]Infrastructure!J1170","v":0},{"$f":"[1]Infrastructure!K1170","v":0},{"$f":"[1]Infrastructure!L1170","v":0},{"$f":"[1]Infrastructure!M1170","v":0},{"$f":"[1]Infrastructure!N1170","v":0},{"$f":"[1]Infrastructure!O1170","v":0},{"$f":"[1]Infrastructure!Q1170","v":0},{"$f":"[1]Infrastructure!R1170","v":0},{"$f":"[1]Infrastructure!T1170","v":0},{"$f":"[1]Infrastructure!W1170","v":0},{"$f":"[1]Infrastructure!W1170","v":0},0,{"$f":"[1]Infrastructure!Z1170","v":0},{"$f":"[1]Infrastructure!Z1170","v":0},0,{"$f":"[1]Infrastructure!AB1170","v":0},{"$f":"[1]Infrastructure!AB1170","v":0},0,{"$f":"[1]Infrastructure!AC1170","v":0},{"$f":"[1]Infrastructure!AD1170","v":0},{"$f":"[1]Infrastructure!AE1170","v":0},{"$f":"[1]Infrastructure!AF1170","v":0},{"$f":"[1]Infrastructure!AG1170","v":0},{"$f":"[1]Infrastructure!AH1170","v":0},0]
[0,null,null,null,null,null,{"$f":"[1]Infrastructure!G1171","v":0},{"$f":"[1]Infrastructure!H1171","v":0},{"$f":"[1]Infrastructure!I1171","v":0},{"$f":"[1]Infrastructure!J1171","v":0},{"$f":"[1]Infrastructure!K1171","v":0},{"$f":"[1]Infrastructure!L1171","v":0},{"$f":"[1]Infrastructure!M1171","v":0},{"$f":"[1]Infrastructure!N1171","v":0},{"$f":"[1]Infrastructure!O1171","v":0},{"$f":"[1]Infrastructure!Q1171","v":0},{"$f":"[1]Infrastructure!R1171","v":0},{"$f":"[1]Infrastructure!T1171","v":0},{"$f":"[1]Infrastructure!W1171","v":0},{"$f":"[1]Infrastructure!W1171","v":0},0,{"$f":"[1]Infrastructure!Z1171","v":0},{"$f":"[1]Infrastructure!Z1171","v":0},0,{"$f":"[1]Infrastructure!AB1171","v":0},{"$f":"[1]Infrastructure!AB1171","v":0},0,{"$f":"[1]Infrastructure!AC1171","v":0},{"$f":"[1]Infrastructure!AD1171","v":0},{"$f":"[1]Infrastructure!AE1171","v":0},{"$f":"[1]Infrastructure!AF1171","v":0},{"$f":"[1]Infrastructure!AG1171","v":0},{"$f":"[1]Infrastructure!AH1171","v":0},0]
[0,null,null,null,null,null,{"$f":"[1]Infrastructure!G1172","v":0},{"$f":"[1]Infrastructure!H1172","v":0},{"$f":"[1]Infrastructure!I1172","v":0},{"$f":"[1]Infrastructure!J1172","v":0},{"$f":"[1]Infrastructure!K1172","v":0},{"$f":"[1]Infrastructure!L1172","v":0},{"$f":"[1]Infrastructure!M1172","v":0},{"$f":"[1]Infrastructure!N1172","v":0},{"$f":"[1]Infrastructure!O1172","v":0},{"$f":"[1]Infrastructure!Q1172","v":0},{"$f":"[1]Infrastructure!R1172","v":0},{"$f":"[1]Infrastructure!T1172","v":0},{"$f":"[1]Infrastructure!W1172","v":0},{"$f":"[1]Infrastructure!W1172","v":0},0,{"$f":"[1]Infrastructure!Z1172","v":0},{"$f":"[1]Infrastructure!Z1172","v":0},0,{"$f":"[1]Infrastructure!AB1172","v":0},{"$f":"[1]Infrastructure!AB1172","v":0},0,{"$f":"[1]Infrastructure!AC1172","v":0},{"$f":"[1]Infrastructure!AD1172","v":0},{"$f":"[1]Infrastructure!AE1172","v":0},{"$f":"[1]Infrastructure!AF1172","v":0},{"$f":"[1]Infrastructure!AG1172","v":0},{"$f":"[1]Infrastructure!AH1172","v":0},0]
[0,null,null,null,null,null,{"$f":"[1]Infrastructure!G1173","v":0},{"$f":"[1]Infrastructure!H1173","v":0},{"$f":"[1]Infrastructure!I1173","v":0},{"$f":"[1]Infrastructure!J1173","v":0},{"$f":"[1]Infrastructure!K1173","v":0},{"$f":"[1]Infrastructure!L1173","v":0},{"$f":"[1]Infrastructure!M1173","v":0},{"$f":"[1]Infrastructure!N1173","v":0},{"$f":"[1]Infrastructure!O1173","v":0},{"$f":"[1]Infrastructure!Q1173","v":0},{"$f":"[1]Infrastructure!R1173","v":0},{"$f":"[1]Infrastructure!T1173","v":0},{"$f":"[1]Infrastructure!W1173","v":0},{"$f":"[1]Infrastructure!W1173","v":0},0,{"$f":"[1]Infrastructure!Z1173","v":0},{"$f":"[1]Infrastructure!Z1173","v":0},0,{"$f":"[1]Infrastructure!AB1173","v":0},{"$f":"[1]Infrastructure!AB1173","v":0},0,{"$f":"[1]Infrastructure!AC1173","v":0},{"$f":"[1]Infrastructure!AD1173","v":0},{"$f":"[1]Infrastructure!AE1173","v":0},{"$f":"[1]Infrastructure!AF1173","v":0},{"$f":"[1]Infrastructure!AG1173","v":0},{"$f":"[1]Infrastructure!AH1173","v":0},0]
[0,null,null,null,null,null,{"$f":"[1]Infrastructure!G1174","v":0},{"$f":"[1]Infrastructure!H1174","v":0},{"$f":"[1]Infrastructure!I1174","v":0},{"$f":"[1]Infrastructure!J1174","v":0},{"$f":"[1]Infrastructure!K1174","v":0},{"$f":"[1]Infrastructure!L1174","v":0},{"$f":"[1]Infrastructure!M1174","v":0},{"$f":"[1]Infrastructure!N1174","v":0},{"$f":"[1]Infrastructure!O1174","v":0},{"$f":"[1]Infrastructure!Q1174","v":0},{"$f":"[1]Infrastructure!R1174","v":0},{"$f":"[1]Infrastructure!T1174","v":0},{"$f":"[1]Infrastructure!W1174","v":0},{"$f":"[1]Infrastructure!W1174","v":0},0,{"$f":"[1]Infrastructure!Z1174","v":0},{"$f":"[1]Infrastructure!Z1174","v":0},0,{"$f":"[1]Infrastructure!AB1174","v":0},{"$f":"[1]Infrastructure!AB1174","v":0},0,{"$f":"[1]Infrastructure!AC1174","v":0},{"$f":"[1]Infrastructure!AD1174","v":0},{"$f":"[1]Infrastructure!AE1174","v":0},{"$f":"[1]Infrastructure!AF1174","v":0},{"$f":"[1]Infrastructure!AG1174","v":0},{"$f":"[1]Infrastructure!AH1174","v":0},0]
[0,null,null,null,null,null,{"$f":"[1]Infrastructure!G1175","v":0},{"$f":"[1]Infrastructure!H1175","v":0},{"$f":"[1]Infrastructure!I1175","v":0},{"$f":"[1]Infrastructure!J1175","v":0},{"$f":"[1]Infrastructure!K1175","v":0},{"$f":"[1]Infrastructure!L1175","v":0},{"$f":"[1]Infrastructure!M1175","v":0},{"$f":"[1]Infrastructure!N1175","v":0},{"$f":"[1]Infrastructure!O1175","v":0},{"$f":"[1]Infrastructure!Q1175","v":0},{"$f":"[1]Infrastructure!R1175","v":0},{"$f":"[1]Infrastructure!T1175","v":0},{"$f":"[1]Infrastructure!W1175","v":0},{"$f":"[1]Infrastructure!W1175","v":0},0,{"$f":"[1]Infrastructure!Z1175","v":0},{"$f":"[1]Infrastructure!Z1175","v":0},0,{"$f":"[1]Infrastructure!AB1175","v":0},{"$f":"[1]Infrastructure!AB1175","v":0},0,{"$f":"[1]Infrastructure!AC1175","v":0},{"$f":"[1]Infrastructure!AD1175","v":0},{"$f":"[1]Infrastructure!AE1175","v":0},{"$f":"[1]Infrastructure!AF1175","v":0},{"$f":"[1]Infrastructure!AG1175","v":0},{"$f":"[1]Infrastructure!AH1175","v":0},0]
[0,null,null,null,null,null,{"$f":"[1]Infrastructure!G1176","v":0},{"$f":"[1]Infrastructure!H1176","v":0},{"$f":"[1]Infrastructure!I1176","v":0},{"$f":"[1]Infrastructure!J1176","v":0},{"$f":"[1]Infrastructure!K1176","v":0},{"$f":"[1]Infrastructure!L1176","v":0},{"$f":"[1]Infrastructure!M1176","v":0},{"$f":"[1]Infrastructure!N1176","v":0},{"$f":"[1]Infrastructure!O1176","v":0},{"$f":"[1]Infrastructure!Q1176","v":0},{"$f":"[1]Infrastructure!R1176","v":0},{"$f":"[1]Infrastructure!T1176","v":0},{"$f":"[1]Infrastructure!W1176","v":0},{"$f":"[1]Infrastructure!W1176","v":0},0,{"$f":"[1]Infrastructure!Z1176","v":0},{"$f":"[1]Infrastructure!Z1176","v":0},0,{"$f":"[1]Infrastructure!AB1176","v":0},{"$f":"[1]Infrastructure!AB1176","v":0},0,{"$f":"[1]Infrastructure!AC1176","v":0},{"$f":"[1]Infrastructure!AD1176","v":0},{"$f":"[1]Infrastructure!AE1176","v":0},{"$f":"[1]Infrastructure!AF1176","v":0},{"$f":"[1]Infrastructure!AG1176","v":0},{"$f":"[1]Infrastructure!AH1176","v":0},0]
[0,null,null,null,null,null,{"$f":"[1]Infrastructure!G1177","v":0},{"$f":"[1]Infrastructure!H1177","v":0},{"$f":"[1]Infrastructure!I1177","v":0},{"$f":"[1]Infrastructure!J1177","v":0},{"$f":"[1]Infrastructure!K1177","v":0},{"$f":"[1]Infrastructure!L1177","v":0},{"$f":"[1]Infrastructure!M1177","v":0},{"$f":"[1]Infrastructure!N1177","v":0},{"$f":"[1]Infrastructure!O1177","v":0},{"$f":"[1]Infrastructure!Q1177","v":0},{"$f":"[1]Infrastructure!R1177","v":0},{"$f":"[1]Infrastructure!T1177","v":0},{"$f":"[1]Infrastructure!W1177","v":0},{"$f":"[1]Infrastructure!W1177","v":0},0,{"$f":"[1]Infrastructure!Z1177","v":0},{"$f":"[1]Infrastructure!Z1177","v":0},0,{"$f":"[1]Infrastructure!AB1177","v":0},{"$f":"[1]Infrastructure!AB1177","v":0},0,{"$f":"[1]Infrastructure!AC1177","v":0},{"$f":"[1]Infrastructure!AD1177","v":0},{"$f":"[1]Infrastructure!AE1177","v":0},{"$f":"[1]Infrastructure!AF1177","v":0},{"$f":"[1]Infrastructure!AG1177","v":0},{"$f":"[1]Infrastructure!AH1177","v":0},0]
[0,null,null,null,null,null,{"$f":"[1]Infrastructure!G1178","v":0},{"$f":"[1]Infrastructure!H1178","v":0},{"$f":"[1]Infrastructure!I1178","v":0},{"$f":"[1]Infrastructure!J1178","v":0},{"$f":"[1]Infrastructure!K1178","v":0},{"$f":"[1]Infrastructure!L1178","v":0},{"$f":"[1]Infrastructure!M1178","v":0},{"$f":"[1]Infrastructure!N1178","v":0},{"$f":"[1]Infrastructure!O1178","v":0},{"$f":"[1]Infrastructure!Q1178","v":0},{"$f":"[1]Infrastructure!R1178","v":0},{"$f":"[1]Infrastructure!T1178","v":0},{"$f":"[1]Infrastructure!W1178","v":0},{"$f":"[1]Infrastructure!W1178","v":0},0,{"$f":"[1]Infrastructure!Z1178","v":0},{"$f":"[1]Infrastructure!Z1178","v":0},0,{"$f":"[1]Infrastructure!AB1178","v":0},{"$f":"[1]Infrastructure!AB1178","v":0},0,{"$f":"[1]Infrastructure!AC1178","v":0},{"$f":"[1]Infrastructure!AD1178","v":0},{"$f":"[1]Infrastructure!AE1178","v":0},{"$f":"[1]Infrastructure!AF1178","v":0},{"$f":"[1]Infrastructure!AG1178","v":0},{"$f":"[1]Infrastructure!AH1178","v":0},0]
[0,null,null,null,null,null,{"$f":"[1]Infrastructure!G1179","v":0},{"$f":"[1]Infrastructure!H1179","v":0},{"$f":"[1]Infrastructure!I1179","v":0},{"$f":"[1]Infrastructure!J1179","v":0},{"$f":"[1]Infrastructure!K1179","v":0},{"$f":"[1]Infrastructure!L1179","v":0},{"$f":"[1]Infrastructure!M1179","v":0},{"$f":"[1]Infrastructure!N1179","v":0},{"$f":"[1]Infrastructure!O1179","v":0},{"$f":"[1]Infrastructure!Q1179","v":0},{"$f":"[1]Infrastructure!R1179","v":0},{"$f":"[1]Infrastructure!T1179","v":0},{"$f":"[1]Infrastructure!W1179","v":0},{"$f":"[1]Infrastructure!W1179","v":0},0,{"$f":"[1]Infrastructure!Z1179","v":0},{"$f":"[1]Infrastructure!Z1179","v":0},0,{"$f":"[1]Infrastructure!AB1179","v":0},{"$f":"[1]Infrastructure!AB1179","v":0},0,{"$f":"[1]Infrastructure!AC1179","v":0},{"$f":"[1]Infrastructure!AD1179","v":0},{"$f":"[1]Infrastructure!AE1179","v":0},{"$f":"[1]Infrastructure!AF1179","v":0},{"$f":"[1]Infrastructure!AG1179","v":0},{"$f":"[1]Infrastructure!AH1179","v":0},0]
[0,null,null,null,null,null,{"$f":"[1]Infrastructure!G1180","v":0},{"$f":"[1]Infrastructure!H1180","v":0},{"$f":"[1]Infrastructure!I1180","v":0},{"$f":"[1]Infrastructure!J1180","v":0},{"$f":"[1]Infrastructure!K1180","v":0},{"$f":"[1]Infrastructure!L1180","v":0},{"$f":"[1]Infrastructure!M1180","v":0},{"$f":"[1]Infrastructure!N1180","v":0},{"$f":"[1]Infrastructure!O1180","v":0},{"$f":"[1]Infrastructure!Q1180","v":0},{"$f":"[1]Infrastructure!R1180","v":0},{"$f":"[1]Infrastructure!T1180","v":0},{"$f":"[1]Infrastructure!W1180","v":0},{"$f":"[1]Infrastructure!W1180","v":0},0,{"$f":"[1]Infrastructure!Z1180","v":0},{"$f":"[1]Infrastructure!Z1180","v":0},0,{"$f":"[1]Infrastructure!AB1180","v":0},{"$f":"[1]Infrastructure!AB1180","v":0},0,{"$f":"[1]Infrastructure!AC1180","v":0},{"$f":"[1]Infrastructure!AD1180","v":0},{"$f":"[1]Infrastructure!AE1180","v":0},{"$f":"[1]Infrastructure!AF1180","v":0},{"$f":"[1]Infrastructure!AG1180","v":0},{"$f":"[1]Infrastructure!AH1180","v":0},0]
[0,null,null,null,null,null,{"$f":"[1]Infrastructure!G1181","v":0},{"$f":"[1]Infrastructure!H1181","v":0},{"$f":"[1]Infrastructure!I1181","v":0},{"$f":"[1]Infrastructure!J1181","v":0},{"$f":"[1]Infrastructure!K1181","v":0},{"$f":"[1]Infrastructure!L1181","v":0},{"$f":"[1]Infrastructure!M1181","v":0},{"$f":"[1]Infrastructure!N1181","v":0},{"$f":"[1]Infrastructure!O1181","v":0},{"$f":"[1]Infrastructure!Q1181","v":0},{"$f":"[1]Infrastructure!R1181","v":0},{"$f":"[1]Infrastructure!T1181","v":0},{"$f":"[1]Infrastructure!W1181","v":0},{"$f":"[1]Infrastructure!W1181","v":0},0,{"$f":"[1]Infrastructure!Z1181","v":0},{"$f":"[1]Infrastructure!Z1181","v":0},0,{"$f":"[1]Infrastructure!AB1181","v":0},{"$f":"[1]Infrastructure!AB1181","v":0},0,{"$f":"[1]Infrastructure!AC1181","v":0},{"$f":"[1]Infrastructure!AD1181","v":0},{"$f":"[1]Infrastructure!AE1181","v":0},{"$f":"[1]Infrastructure!AF1181","v":0},{"$f":"[1]Infrastructure!AG1181","v":0},{"$f":"[1]Infrastructure!AH1181","v":0},0]
[0,null,null,null,null,null,{"$f":"[1]Infrastructure!G1182","v":0},{"$f":"[1]Infrastructure!H1182","v":0},{"$f":"[1]Infrastructure!I1182","v":0},{"$f":"[1]Infrastructure!J1182","v":0},{"$f":"[1]Infrastructure!K1182","v":0},{"$f":"[1]Infrastructure!L1182","v":0},{"$f":"[1]Infrastructure!M1182","v":0},{"$f":"[1]Infrastructure!N1182","v":0},{"$f":"[1]Infrastructure!O1182","v":0},{"$f":"[1]Infrastructure!Q1182","v":0},{"$f":"[1]Infrastructure!R1182","v":0},{"$f":"[1]Infrastructure!T1182","v":0},{"$f":"[1]Infrastructure!W1182","v":0},{"$f":"[1]Infrastructure!W1182","v":0},0,{"$f":"[1]Infrastructure!Z1182","v":0},{"$f":"[1]Infrastructure!Z1182","v":0},0,{"$f":"[1]Infrastructure!AB1182","v":0},{"$f":"[1]Infrastructure!AB1182","v":0},0,{"$f":"[1]Infrastructure!AC1182","v":0},{"$f":"[1]Infrastructure!AD1182","v":0},{"$f":"[1]Infrastructure!AE1182","v":0},{"$f":"[1]Infrastructure!AF1182","v":0},{"$f":"[1]Infrastructure!AG1182","v":0},{"$f":"[1]Infrastructure!AH1182","v":0},0]
[0,null,null,null,null,null,{"$f":"[1]Infrastructure!G1183","v":0},{"$f":"[1]Infrastructure!H1183","v":0},{"$f":"[1]Infrastructure!I1183","v":0},{"$f":"[1]Infrastructure!J1183","v":0},{"$f":"[1]Infrastructure!K1183","v":0},{"$f":"[1]Infrastructure!L1183","v":0},{"$f":"[1]Infrastructure!M1183","v":0},{"$f":"[1]Infrastructure!N1183","v":0},{"$f":"[1]Infrastructure!O1183","v":0},{"$f":"[1]Infrastructure!Q1183","v":0},{"$f":"[1]Infrastructure!R1183","v":0},{"$f":"[1]Infrastructure!T1183","v":0},{"$f":"[1]Infrastructure!W1183","v":0},{"$f":"[1]Infrastructure!W1183","v":0},0,{"$f":"[1]Infrastructure!Z1183","v":0},{"$f":"[1]Infrastructure!Z1183","v":0},0,{"$f":"[1]Infrastructure!AB1183","v":0},{"$f":"[1]Infrastructure!AB1183","v":0},0,{"$f":"[1]Infrastructure!AC1183","v":0},{"$f":"[1]Infrastructure!AD1183","v":0},{"$f":"[1]Infrastructure!AE1183","v":0},{"$f":"[1]Infrastructure!AF1183","v":0},{"$f":"[1]Infrastructure!AG1183","v":0},{"$f":"[1]Infrastructure!AH1183","v":0},0]
[0,null,null,null,null,null,{"$f":"[1]Infrastructure!G1184","v":0},{"$f":"[1]Infrastructure!H1184","v":0},{"$f":"[1]Infrastructure!I1184","v":0},{"$f":"[1]Infrastructure!J1184","v":0},{"$f":"[1]Infrastructure!K1184","v":0},{"$f":"[1]Infrastructure!L1184","v":0},{"$f":"[1]Infrastructure!M1184","v":0},{"$f":"[1]Infrastructure!N1184","v":0},{"$f":"[1]Infrastructure!O1184","v":0},{"$f":"[1]Infrastructure!Q1184","v":0},{"$f":"[1]Infrastructure!R1184","v":0},{"$f":"[1]Infrastructure!T1184","v":0},{"$f":"[1]Infrastructure!W1184","v":0},{"$f":"[1]Infrastructure!W1184","v":0},0,{"$f":"[1]Infrastructure!Z1184","v":0},{"$f":"[1]Infrastructure!Z1184","v":0},0,{"$f":"[1]Infrastructure!AB1184","v":0},{"$f":"[1]Infrastructure!AB1184","v":0},0,{"$f":"[1]Infrastructure!AC1184","v":0},{"$f":"[1]Infrastructure!AD1184","v":0},{"$f":"[1]Infrastructure!AE1184","v":0},{"$f":"[1]Infrastructure!AF1184","v":0},{"$f":"[1]Infrastructure!AG1184","v":0},{"$f":"[1]Infrastructure!AH1184","v":0},0]
[0,null,null,null,null,null,{"$f":"[1]Infrastructure!G1185","v":0},{"$f":"[1]Infrastructure!H1185","v":0},{"$f":"[1]Infrastructure!I1185","v":0},{"$f":"[1]Infrastructure!J1185","v":0},{"$f":"[1]Infrastructure!K1185","v":0},{"$f":"[1]Infrastructure!L1185","v":0},{"$f":"[1]Infrastructure!M1185","v":0},{"$f":"[1]Infrastructure!N1185","v":0},{"$f":"[1]Infrastructure!O1185","v":0},{"$f":"[1]Infrastructure!Q1185","v":0},{"$f":"[1]Infrastructure!R1185","v":0},{"$f":"[1]Infrastructure!T1185","v":0},{"$f":"[1]Infrastructure!W1185","v":0},{"$f":"[1]Infrastructure!W1185","v":0},0,{"$f":"[1]Infrastructure!Z1185","v":0},{"$f":"[1]Infrastructure!Z1185","v":0},0,{"$f":"[1]Infrastructure!AB1185","v":0},{"$f":"[1]Infrastructure!AB1185","v":0},0,{"$f":"[1]Infrastructure!AC1185","v":0},{"$f":"[1]Infrastructure!AD1185","v":0},{"$f":"[1]Infrastructure!AE1185","v":0},{"$f":"[1]Infrastructure!AF1185","v":0},{"$f":"[1]Infrastructure!AG1185","v":0},{"$f":"[1]Infrastructure!AH1185","v":0},0]
[0,null,null,null,null,null,{"$f":"[1]Infrastructure!G1186","v":0},{"$f":"[1]Infrastructure!H1186","v":0},{"$f":"[1]Infrastructure!I1186","v":0},{"$f":"[1]Infrastructure!J1186","v":0},{"$f":"[1]Infrastructure!K1186","v":0},{"$f":"[1]Infrastructure!L1186","v":0},{"$f":"[1]Infrastructure!M1186","v":0},{"$f":"[1]Infrastructure!N1186","v":0},{"$f":"[1]Infrastructure!O1186","v":0},{"$f":"[1]Infrastructure!Q1186","v":0},{"$f":"[1]Infrastructure!R1186","v":0},{"$f":"[1]Infrastructure!T1186","v":0},{"$f":"[1]Infrastructure!W1186","v":0},{"$f":"[1]Infrastructure!W1186","v":0},0,{"$f":"[1]Infrastructure!Z1186","v":0},{"$f":"[1]Infrastructure!Z1186","v":0},0,{"$f":"[1]Infrastructure!AB1186","v":0},{"$f":"[1]Infrastructure!AB1186","v":0},0,{"$f":"[1]Infrastructure!AC1186","v":0},{"$f":"[1]Infrastructure!AD1186","v":0},{"$f":"[1]Infrastructure!AE1186","v":0},{"$f":"[1]Infrastructure!AF1186","v":0},{"$f":"[1]Infrastructure!AG1186","v":0},{"$f":"[1]Infrastructure!AH1186","v":0},0]
[0,null,null,null,null,null,{"$f":"[1]Infrastructure!G1187","v":0},{"$f":"[1]Infrastructure!H1187","v":0},{"$f":"[1]Infrastructure!I1187","v":0},{"$f":"[1]Infrastructure!J1187","v":0},{"$f":"[1]Infrastructure!K1187","v":0},{"$f":"[1]Infrastructure!L1187","v":0},{"$f":"[1]Infrastructure!M1187","v":0},{"$f":"[1]Infrastructure!N1187","v":0},{"$f":"[1]Infrastructure!O1187","v":0},{"$f":"[1]Infrastructure!Q1187","v":0},{"$f":"[1]Infrastructure!R1187","v":0},{"$f":"[1]Infrastructure!T1187","v":0},{"$f":"[1]Infrastructure!W1187","v":0},{"$f":"[1]Infrastructure!W1187","v":0},0,{"$f":"[1]Infrastructure!Z1187","v":0},{"$f":"[1]Infrastructure!Z1187","v":0},0,{"$f":"[1]Infrastructure!AB1187","v":0},{"$f":"[1]Infrastructure!AB1187","v":0},0,{"$f":"[1]Infrastructure!AC1187","v":0},{"$f":"[1]Infrastructure!AD1187","v":0},{"$f":"[1]Infrastructure!AE1187","v":0},{"$f":"[1]Infrastructure!AF1187","v":0},{"$f":"[1]Infrastructure!AG1187","v":0},{"$f":"[1]Infrastructure!AH1187","v":0},0]
[0,null,null,null,null,null,{"$f":"[1]Infrastructure!G1188","v":0},{"$f":"[1]Infrastructure!H1188","v":0},{"$f":"[1]Infrastructure!I1188","v":0},{"$f":"[1]Infrastructure!J1188","v":0},{"$f":"[1]Infrastructure!K1188","v":0},{"$f":"[1]Infrastructure!L1188","v":0},{"$f":"[1]Infrastructure!M1188","v":0},{"$f":"[1]Infrastructure!N1188","v":0},{"$f":"[1]Infrastructure!O1188","v":0},{"$f":"[1]Infrastructure!Q1188","v":0},{"$f":"[1]Infrastructure!R1188","v":0},{"$f":"[1]Infrastructure!T1188","v":0},{"$f":"[1]Infrastructure!W1188","v":0},{"$f":"[1]Infrastructure!W1188","v":0},0,{"$f":"[1]Infrastructure!Z1188","v":0},{"$f":"[1]Infrastructure!Z1188","v":0},0,{"$f":"[1]Infrastructure!AB1188","v":0},{"$f":"[1]Infrastructure!AB1188","v":0},0,{"$f":"[1]Infrastructure!AC1188","v":0},{"$f":"[1]Infrastructure!AD1188","v":0},{"$f":"[1]Infrastructure!AE1188","v":0},{"$f":"[1]Infrastructure!AF1188","v":0},{"$f":"[1]Infrastructure!AG1188","v":0},{"$f":"[1]Infrastructure!AH1188","v":0},0]
[0,null,null,null,null,null,{"$f":"[1]Infrastructure!G1189","v":0},{"$f":"[1]Infrastructure!H1189","v":0},{"$f":"[1]Infrastructure!I1189","v":0},{"$f":"[1]Infrastructure!J1189","v":0},{"$f":"[1]Infrastructure!K1189","v":0},{"$f":"[1]Infrastructure!L1189","v":0},{"$f":"[1]Infrastructure!M1189","v":0},{"$f":"[1]Infrastructure!N1189","v":0},{"$f":"[1]Infrastructure!O1189","v":0},{"$f":"[1]Infrastructure!Q1189","v":0},{"$f":"[1]Infrastructure!R1189","v":0},{"$f":"[1]Infrastructure!T1189","v":0},{"$f":"[1]Infrastructure!W1189","v":0},{"$f":"[1]Infrastructure!W1189","v":0},0,{"$f":"[1]Infrastructure!Z1189","v":0},{"$f":"[1]Infrastructure!Z1189","v":0},0,{"$f":"[1]Infrastructure!AB1189","v":0},{"$f":"[1]Infrastructure!AB1189","v":0},0,{"$f":"[1]Infrastructure!AC1189","v":0},{"$f":"[1]Infrastructure!AD1189","v":0},{"$f":"[1]Infrastructure!AE1189","v":0},{"$f":"[1]Infrastructure!AF1189","v":0},{"$f":"[1]Infrastructure!AG1189","v":0},{"$f":"[1]Infrastructure!AH1189","v":0},0]
[0,null,null,null,null,null,{"$f":"[1]Infrastructure!G1190","v":0},{"$f":"[1]Infrastructure!H1190","v":0},{"$f":"[1]Infrastructure!I1190","v":0},{"$f":"[1]Infrastructure!J1190","v":0},{"$f":"[1]Infrastructure!K1190","v":0},{"$f":"[1]Infrastructure!L1190","v":0},{"$f":"[1]Infrastructure!M1190","v":0},{"$f":"[1]Infrastructure!N1190","v":0},{"$f":"[1]Infrastructure!O1190","v":0},{"$f":"[1]Infrastructure!Q1190","v":0},{"$f":"[1]Infrastructure!R1190","v":0},{"$f":"[1]Infrastructure!T1190","v":0},{"$f":"[1]Infrastructure!W1190","v":0},{"$f":"[1]Infrastructure!W1190","v":0},0,{"$f":"[1]Infrastructure!Z1190","v":0},{"$f":"[1]Infrastructure!Z1190","v":0},0,{"$f":"[1]Infrastructure!AB1190","v":0},{"$f":"[1]Infrastructure!AB1190","v":0},0,{"$f":"[1]Infrastructure!AC1190","v":0},{"$f":"[1]Infrastructure!AD1190","v":0},{"$f":"[1]Infrastructure!AE1190","v":0},{"$f":"[1]Infrastructure!AF1190","v":0},{"$f":"[1]Infrastructure!AG1190","v":0},{"$f":"[1]Infrastructure!AH1190","v":0},0]
[0,null,null,null,null,null,{"$f":"[1]Infrastructure!G1191","v":0},{"$f":"[1]Infrastructure!H1191","v":0},{"$f":"[1]Infrastructure!I1191","v":0},{"$f":"[1]Infrastructure!J1191","v":0},{"$f":"[1]Infrastructure!K1191","v":0},{"$f":"[1]Infrastructure!L1191","v":0},{"$f":"[1]Infrastructure!M1191","v":0},{"$f":"[1]Infrastructure!N1191","v":0},{"$f":"[1]Infrastructure!O1191","v":0},{"$f":"[1]Infrastructure!Q1191","v":0},{"$f":"[1]Infrastructure!R1191","v":0},{"$f":"[1]Infrastructure!T1191","v":0},{"$f":"[1]Infrastructure!W1191","v":0},{"$f":"[1]Infrastructure!W1191","v":0},0,{"$f":"[1]Infrastructure!Z1191","v":0},{"$f":"[1]Infrastructure!Z1191","v":0},0,{"$f":"[1]Infrastructure!AB1191","v":0},{"$f":"[1]Infrastructure!AB1191","v":0},0,{"$f":"[1]Infrastructure!AC1191","v":0},{"$f":"[1]Infrastructure!AD1191","v":0},{"$f":"[1]Infrastructure!AE1191","v":0},{"$f":"[1]Infrastructure!AF1191","v":0},{"$f":"[1]Infrastructure!AG1191","v":0},{"$f":"[1]Infrastructure!AH1191","v":0},0]
[0,null,null,null,null,null,{"$f":"[1]Infrastructure!G1192","v":0},{"$f":"[1]Infrastructure!H1192","v":0},{"$f":"[1]Infrastructure!I1192","v":0},{"$f":"[1]Infrastructure!J1192","v":0},{"$f":"[1]Infrastructure!K1192","v":0},{"$f":"[1]Infrastructure!L1192","v":0},{"$f":"[1]Infrastructure!M1192","v":0},{"$f":"[1]Infrastructure!N1192","v":0},{"$f":"[1]Infrastructure!O1192","v":0},{"$f":"[1]Infrastructure!Q1192","v":0},{"$f":"[1]Infrastructure!R1192","v":0},{"$f":"[1]Infrastructure!T1192","v":0},{"$f":"[1]Infrastructure!W1192","v":0},{"$f":"[1]Infrastructure!W1192","v":0},0,{"$f":"[1]Infrastructure!Z1192","v":0},{"$f":"[1]Infrastructure!Z1192","v":0},0,{"$f":"[1]Infrastructure!AB1192","v":0},{"$f":"[1]Infrastructure!AB1192","v":0},0,{"$f":"[1]Infrastructure!AC1192","v":0},{"$f":"[1]Infrastructure!AD1192","v":0},{"$f":"[1]Infrastructure!AE1192","v":0},{"$f":"[1]Infrastructure!AF1192","v":0},{"$f":"[1]Infrastructure!AG1192","v":0},{"$f":"[1]Infrastructure!AH1192","v":0},0]
[0,null,null,null,null,null,{"$f":"[1]Infrastructure!G1193","v":0},{"$f":"[1]Infrastructure!H1193","v":0},{"$f":"[1]Infrastructure!I1193","v":0},{"$f":"[1]Infrastructure!J1193","v":0},{"$f":"[1]Infrastructure!K1193","v":0},{"$f":"[1]Infrastructure!L1193","v":0},{"$f":"[1]Infrastructure!M1193","v":0},{"$f":"[1]Infrastructure!N1193","v":0},{"$f":"[1]Infrastructure!O1193","v":0},{"$f":"[1]Infrastructure!Q1193","v":0},{"$f":"[1]Infrastructure!R1193","v":0},{"$f":"[1]Infrastructure!T1193","v":0},{"$f":"[1]Infrastructure!W1193","v":0},{"$f":"[1]Infrastructure!W1193","v":0},0,{"$f":"[1]Infrastructure!Z1193","v":0},{"$f":"[1]Infrastructure!Z1193","v":0},0,{"$f":"[1]Infrastructure!AB1193","v":0},{"$f":"[1]Infrastructure!AB1193","v":0},0,{"$f":"[1]Infrastructure!AC1193","v":0},{"$f":"[1]Infrastructure!AD1193","v":0},{"$f":"[1]Infrastructure!AE1193","v":0},{"$f":"[1]Infrastructure!AF1193","v":0},{"$f":"[1]Infrastructure!AG1193","v":0},{"$f":"[1]Infrastructure!AH1193","v":0},0]
[0,null,null,null,null,null,{"$f":"[1]Infrastructure!G1194","v":0},{"$f":"[1]Infrastructure!H1194","v":0},{"$f":"[1]Infrastructure!I1194","v":0},{"$f":"[1]Infrastructure!J1194","v":0},{"$f":"[1]Infrastructure!K1194","v":0},{"$f":"[1]Infrastructure!L1194","v":0},{"$f":"[1]Infrastructure!M1194","v":0},{"$f":"[1]Infrastructure!N1194","v":0},{"$f":"[1]Infrastructure!O1194","v":0},{"$f":"[1]Infrastructure!Q1194","v":0},{"$f":"[1]Infrastructure!R1194","v":0},{"$f":"[1]Infrastructure!T1194","v":0},{"$f":"[1]Infrastructure!W1194","v":0},{"$f":"[1]Infrastructure!W1194","v":0},0,{"$f":"[1]Infrastructure!Z1194","v":0},{"$f":"[1]Infrastructure!Z1194","v":0},0,{"$f":"[1]Infrastructure!AB1194","v":0},{"$f":"[1]Infrastructure!AB1194","v":0},0,{"$f":"[1]Infrastructure!AC1194","v":0},{"$f":"[1]Infrastructure!AD1194","v":0},{"$f":"[1]Infrastructure!AE1194","v":0},{"$f":"[1]Infrastructure!AF1194","v":0},{"$f":"[1]Infrastructure!AG1194","v":0},{"$f":"[1]Infrastructure!AH1194","v":0},0]
[0,null,null,null,null,null,{"$f":"[1]Infrastructure!G1195","v":0},{"$f":"[1]Infrastructure!H1195","v":0},{"$f":"[1]Infrastructure!I1195","v":0},{"$f":"[1]Infrastructure!J1195","v":0},{"$f":"[1]Infrastructure!K1195","v":0},{"$f":"[1]Infrastructure!L1195","v":0},{"$f":"[1]Infrastructure!M1195","v":0},{"$f":"[1]Infrastructure!N1195","v":0},{"$f":"[1]Infrastructure!O1195","v":0},{"$f":"[1]Infrastructure!Q1195","v":0},{"$f":"[1]Infrastructure!R1195","v":0},{"$f":"[1]Infrastructure!T1195","v":0},{"$f":"[1]Infrastructure!W1195","v":0},{"$f":"[1]Infrastructure!W1195","v":0},0,{"$f":"[1]Infrastructure!Z1195","v":0},{"$f":"[1]Infrastructure!Z1195","v":0},0,{"$f":"[1]Infrastructure!AB1195","v":0},{"$f":"[1]Infrastructure!AB1195","v":0},0,{"$f":"[1]Infrastructure!AC1195","v":0},{"$f":"[1]Infrastructure!AD1195","v":0},{"$f":"[1]Infrastructure!AE1195","v":0},{"$f":"[1]Infrastructure!AF1195","v":0},{"$f":"[1]Infrastructure!AG1195","v":0},{"$f":"[1]Infrastructure!AH1195","v":0},0]
[0,null,null,null,null,null,{"$f":"[1]Infrastructure!G1196","v":0},{"$f":"[1]Infrastructure!H1196","v":0},{"$f":"[1]Infrastructure!I1196","v":0},{"$f":"[1]Infrastructure!J1196","v":0},{"$f":"[1]Infrastructure!K1196","v":0},{"$f":"[1]Infrastructure!L1196","v":0},{"$f":"[1]Infrastructure!M1196","v":0},{"$f":"[1]Infrastructure!N1196","v":0},{"$f":"[1]Infrastructure!O1196","v":0},{"$f":"[1]Infrastructure!Q1196","v":0},{"$f":"[1]Infrastructure!R1196","v":0},{"$f":"[1]Infrastructure!T1196","v":0},{"$f":"[1]Infrastructure!W1196","v":0},{"$f":"[1]Infrastructure!W1196","v":0},0,{"$f":"[1]Infrastructure!Z1196","v":0},{"$f":"[1]Infrastructure!Z1196","v":0},0,{"$f":"[1]Infrastructure!AB1196","v":0},{"$f":"[1]Infrastructure!AB1196","v":0},0,{"$f":"[1]Infrastructure!AC1196","v":0},{"$f":"[1]Infrastructure!AD1196","v":0},{"$f":"[1]Infrastructure!AE1196","v":0},{"$f":"[1]Infrastructure!AF1196","v":0},{"$f":"[1]Infrastructure!AG1196","v":0},{"$f":"[1]Infrastructure!AH1196","v":0},0]
[0,null,null,null,null,null,{"$f":"[1]Infrastructure!G1197","v":0},{"$f":"[1]Infrastructure!H1197","v":0},{"$f":"[1]Infrastructure!I1197","v":0},{"$f":"[1]Infrastructure!J1197","v":0},{"$f":"[1]Infrastructure!K1197","v":0},{"$f":"[1]Infrastructure!L1197","v":0},{"$f":"[1]Infrastructure!M1197","v":0},{"$f":"[1]Infrastructure!N1197","v":0},{"$f":"[1]Infrastructure!O1197","v":0},{"$f":"[1]Infrastructure!Q1197","v":0},{"$f":"[1]Infrastructure!R1197","v":0},{"$f":"[1]Infrastructure!T1197","v":0},{"$f":"[1]Infrastructure!W1197","v":0},{"$f":"[1]Infrastructure!W1197","v":0},0,{"$f":"[1]Infrastructure!Z1197","v":0},{"$f":"[1]Infrastructure!Z1197","v":0},0,{"$f":"[1]Infrastructure!AB1197","v":0},{"$f":"[1]Infrastructure!AB1197","v":0},0,{"$f":"[1]Infrastructure!AC1197","v":0},{"$f":"[1]Infrastructure!AD1197","v":0},{"$f":"[1]Infrastructure!AE1197","v":0},{"$f":"[1]Infrastructure!AF1197","v":0},{"$f":"[1]Infrastructure!AG1197","v":0},{"$f":"[1]Infrastructure!AH1197","v":0},0]
[0,null,null,null,null,null,{"$f":"[1]Infrastructure!G1198","v":0},{"$f":"[1]Infrastructure!H1198","v":0},{"$f":"[1]Infrastructure!I1198","v":0},{"$f":"[1]Infrastructure!J1198","v":0},{"$f":"[1]Infrastructure!K1198","v":0},{"$f":"[1]Infrastructure!L1198","v":0},{"$f":"[1]Infrastructure!M1198","v":0},{"$f":"[1]Infrastructure!N1198","v":0},{"$f":"[1]Infrastructure!O1198","v":0},{"$f":"[1]Infrastructure!Q1198","v":0},{"$f":"[1]Infrastructure!R1198","v":0},{"$f":"[1]Infrastructure!T1198","v":0},{"$f":"[1]Infrastructure!W1198","v":0},{"$f":"[1]Infrastructure!W1198","v":0},0,{"$f":"[1]Infrastructure!Z1198","v":0},{"$f":"[1]Infrastructure!Z1198","v":0},0,{"$f":"[1]Infrastructure!AB1198","v":0},{"$f":"[1]Infrastructure!AB1198","v":0},0,{"$f":"[1]Infrastructure!AC1198","v":0},{"$f":"[1]Infrastructure!AD1198","v":0},{"$f":"[1]Infrastructure!AE1198","v":0},{"$f":"[1]Infrastructure!AF1198","v":0},{"$f":"[1]Infrastructure!AG1198","v":0},{"$f":"[1]Infrastructure!AH1198","v":0},0]
[0,null,null,null,null,null,{"$f":"[1]Infrastructure!G1199","v":0},{"$f":"[1]Infrastructure!H1199","v":0},{"$f":"[1]Infrastructure!I1199","v":0},{"$f":"[1]Infrastructure!J1199","v":0},{"$f":"[1]Infrastructure!K1199","v":0},{"$f":"[1]Infrastructure!L1199","v":0},{"$f":"[1]Infrastructure!M1199","v":0},{"$f":"[1]Infrastructure!N1199","v":0},{"$f":"[1]Infrastructure!O1199","v":0},{"$f":"[1]Infrastructure!Q1199","v":0},{"$f":"[1]Infrastructure!R1199","v":0},{"$f":"[1]Infrastructure!T1199","v":0},{"$f":"[1]Infrastructure!W1199","v":0},{"$f":"[1]Infrastructure!W1199","v":0},0,{"$f":"[1]Infrastructure!Z1199","v":0},{"$f":"[1]Infrastructure!Z1199","v":0},0,{"$f":"[1]Infrastructure!AB1199","v":0},{"$f":"[1]Infrastructure!AB1199","v":0},0,{"$f":"[1]Infrastructure!AC1199","v":0},{"$f":"[1]Infrastructure!AD1199","v":0},{"$f":"[1]Infrastructure!AE1199","v":0},{"$f":"[1]Infrastructure!AF1199","v":0},{"$f":"[1]Infrastructure!AG1199","v":0},{"$f":"[1]Infrastructure!AH1199","v":0},0]
[0,null,null,null,null,null,{"$f":"[1]Infrastructure!G1200","v":0},{"$f":"[1]Infrastructure!H1200","v":0},{"$f":"[1]Infrastructure!I1200","v":0},{"$f":"[1]Infrastructure!J1200","v":0},{"$f":"[1]Infrastructure!K1200","v":0},{"$f":"[1]Infrastructure!L1200","v":0},{"$f":"[1]Infrastructure!M1200","v":0},{"$f":"[1]Infrastructure!N1200","v":0},{"$f":"[1]Infrastructure!O1200","v":0},{"$f":"[1]Infrastructure!Q1200","v":0},{"$f":"[1]Infrastructure!R1200","v":0},{"$f":"[1]Infrastructure!T1200","v":0},{"$f":"[1]Infrastructure!W1200","v":0},{"$f":"[1]Infrastructure!W1200","v":0},0,{"$f":"[1]Infrastructure!Z1200","v":0},{"$f":"[1]Infrastructure!Z1200","v":0},0,{"$f":"[1]Infrastructure!AB1200","v":0},{"$f":"[1]Infrastructure!AB1200","v":0},0,{"$f":"[1]Infrastructure!AC1200","v":0},{"$f":"[1]Infrastructure!AD1200","v":0},{"$f":"[1]Infrastructure!AE1200","v":0},{"$f":"[1]Infrastructure!AF1200","v":0},{"$f":"[1]Infrastructure!AG1200","v":0},{"$f":"[1]Infrastructure!AH1200","v":0},0]
[0,null,null,null,null,null,{"$f":"[1]Infrastructure!G1201","v":0},{"$f":"[1]Infrastructure!H1201","v":0},{"$f":"[1]Infrastructure!I1201","v":0},{"$f":"[1]Infrastructure!J1201","v":0},{"$f":"[1]Infrastructure!K1201","v":0},{"$f":"[1]Infrastructure!L1201","v":0},{"$f":"[1]Infrastructure!M1201","v":0},{"$f":"[1]Infrastructure!N1201","v":0},{"$f":"[1]Infrastructure!O1201","v":0},{"$f":"[1]Infrastructure!Q1201","v":0},{"$f":"[1]Infrastructure!R1201","v":0},{"$f":"[1]Infrastructure!T1201","v":0},{"$f":"[1]Infrastructure!W1201","v":0},{"$f":"[1]Infrastructure!W1201","v":0},0,{"$f":"[1]Infrastructure!Z1201","v":0},{"$f":"[1]Infrastructure!Z1201","v":0},0,{"$f":"[1]Infrastructure!AB1201","v":0},{"$f":"[1]Infrastructure!AB1201","v":0},0,{"$f":"[1]Infrastructure!AC1201","v":0},{"$f":"[1]Infrastructure!AD1201","v":0},{"$f":"[1]Infrastructure!AE1201","v":0},{"$f":"[1]Infrastructure!AF1201","v":0},{"$f":"[1]Infrastructure!AG1201","v":0},{"$f":"[1]Infrastructure!AH1201","v":0},0]
[0,null,null,null,null,null,{"$f":"[1]Infrastructure!G1202","v":0},{"$f":"[1]Infrastructure!H1202","v":0},{"$f":"[1]Infrastructure!I1202","v":0},{"$f":"[1]Infrastructure!J1202","v":0},{"$f":"[1]Infrastructure!K1202","v":0},{"$f":"[1]Infrastructure!L1202","v":0},{"$f":"[1]Infrastructure!M1202","v":0},{"$f":"[1]Infrastructure!N1202","v":0},{"$f":"[1]Infrastructure!O1202","v":0},{"$f":"[1]Infrastructure!Q1202","v":0},{"$f":"[1]Infrastructure!R1202","v":0},{"$f":"[1]Infrastructure!T1202","v":0},{"$f":"[1]Infrastructure!W1202","v":0},{"$f":"[1]Infrastructure!W1202","v":0},0,{"$f":"[1]Infrastructure!Z1202","v":0},{"$f":"[1]Infrastructure!Z1202","v":0},0,{"$f":"[1]Infrastructure!AB1202","v":0},{"$f":"[1]Infrastructure!AB1202","v":0},0,{"$f":"[1]Infrastructure!AC1202","v":0},{"$f":"[1]Infrastructure!AD1202","v":0},{"$f":"[1]Infrastructure!AE1202","v":0},{"$f":"[1]Infrastructure!AF1202","v":0},{"$f":"[1]Infrastructure!AG1202","v":0},{"$f":"[1]Infrastructure!AH1202","v":0},0]
[0,null,null,null,null,null,{"$f":"[1]Infrastructure!G1203","v":0},{"$f":"[1]Infrastructure!H1203","v":0},{"$f":"[1]Infrastructure!I1203","v":0},{"$f":"[1]Infrastructure!J1203","v":0},{"$f":"[1]Infrastructure!K1203","v":0},{"$f":"[1]Infrastructure!L1203","v":0},{"$f":"[1]Infrastructure!M1203","v":0},{"$f":"[1]Infrastructure!N1203","v":0},{"$f":"[1]Infrastructure!O1203","v":0},{"$f":"[1]Infrastructure!Q1203","v":0},{"$f":"[1]Infrastructure!R1203","v":0},{"$f":"[1]Infrastructure!T1203","v":0},{"$f":"[1]Infrastructure!W1203","v":0},{"$f":"[1]Infrastructure!W1203","v":0},0,{"$f":"[1]Infrastructure!Z1203","v":0},{"$f":"[1]Infrastructure!Z1203","v":0},0,{"$f":"[1]Infrastructure!AB1203","v":0},{"$f":"[1]Infrastructure!AB1203","v":0},0,{"$f":"[1]Infrastructure!AC1203","v":0},{"$f":"[1]Infrastructure!AD1203","v":0},{"$f":"[1]Infrastructure!AE1203","v":0},{"$f":"[1]Infrastructure!AF1203","v":0},{"$f":"[1]Infrastructure!AG1203","v":0},{"$f":"[1]Infrastructure!AH1203","v":0},0]
[0,null,null,null,null,null,{"$f":"[1]Infrastructure!G1204","v":0},{"$f":"[1]Infrastructure!H1204","v":0},{"$f":"[1]Infrastructure!I1204","v":0},{"$f":"[1]Infrastructure!J1204","v":0},{"$f":"[1]Infrastructure!K1204","v":0},{"$f":"[1]Infrastructure!L1204","v":0},{"$f":"[1]Infrastructure!M1204","v":0},{"$f":"[1]Infrastructure!N1204","v":0},{"$f":"[1]Infrastructure!O1204","v":0},{"$f":"[1]Infrastructure!Q1204","v":0},{"$f":"[1]Infrastructure!R1204","v":0},{"$f":"[1]Infrastructure!T1204","v":0},{"$f":"[1]Infrastructure!W1204","v":0},{"$f":"[1]Infrastructure!W1204","v":0},0,{"$f":"[1]Infrastructure!Z1204","v":0},{"$f":"[1]Infrastructure!Z1204","v":0},0,{"$f":"[1]Infrastructure!AB1204","v":0},{"$f":"[1]Infrastructure!AB1204","v":0},0,{"$f":"[1]Infrastructure!AC1204","v":0},{"$f":"[1]Infrastructure!AD1204","v":0},{"$f":"[1]Infrastructure!AE1204","v":0},{"$f":"[1]Infrastructure!AF1204","v":0},{"$f":"[1]Infrastructure!AG1204","v":0},{"$f":"[1]Infrastructure!AH1204","v":0},0]
[0,null,null,null,null,null,{"$f":"[1]Infrastructure!G1205","v":0},{"$f":"[1]Infrastructure!H1205","v":0},{"$f":"[1]Infrastructure!I1205","v":0},{"$f":"[1]Infrastructure!J1205","v":0},{"$f":"[1]Infrastructure!K1205","v":0},{"$f":"[1]Infrastructure!L1205","v":0},{"$f":"[1]Infrastructure!M1205","v":0},{"$f":"[1]Infrastructure!N1205","v":0},{"$f":"[1]Infrastructure!O1205","v":0},{"$f":"[1]Infrastructure!Q1205","v":0},{"$f":"[1]Infrastructure!R1205","v":0},{"$f":"[1]Infrastructure!T1205","v":0},{"$f":"[1]Infrastructure!W1205","v":0},{"$f":"[1]Infrastructure!W1205","v":0},0,{"$f":"[1]Infrastructure!Z1205","v":0},{"$f":"[1]Infrastructure!Z1205","v":0},0,{"$f":"[1]Infrastructure!AB1205","v":0},{"$f":"[1]Infrastructure!AB1205","v":0},0,{"$f":"[1]Infrastructure!AC1205","v":0},{"$f":"[1]Infrastructure!AD1205","v":0},{"$f":"[1]Infrastructure!AE1205","v":0},{"$f":"[1]Infrastructure!AF1205","v":0},{"$f":"[1]Infrastructure!AG1205","v":0},{"$f":"[1]Infrastructure!AH1205","v":0},0]
[0,null,null,null,null,null,{"$f":"[1]Infrastructure!G1206","v":0},{"$f":"[1]Infrastructure!H1206","v":0},{"$f":"[1]Infrastructure!I1206","v":0},{"$f":"[1]Infrastructure!J1206","v":0},{"$f":"[1]Infrastructure!K1206","v":0},{"$f":"[1]Infrastructure!L1206","v":0},{"$f":"[1]Infrastructure!M1206","v":0},{"$f":"[1]Infrastructure!N1206","v":0},{"$f":"[1]Infrastructure!O1206","v":0},{"$f":"[1]Infrastructure!Q1206","v":0},{"$f":"[1]Infrastructure!R1206","v":0},{"$f":"[1]Infrastructure!T1206","v":0},{"$f":"[1]Infrastructure!W1206","v":0},{"$f":"[1]Infrastructure!W1206","v":0},0,{"$f":"[1]Infrastructure!Z1206","v":0},{"$f":"[1]Infrastructure!Z1206","v":0},0,{"$f":"[1]Infrastructure!AB1206","v":0},{"$f":"[1]Infrastructure!AB1206","v":0},0,{"$f":"[1]Infrastructure!AC1206","v":0},{"$f":"[1]Infrastructure!AD1206","v":0},{"$f":"[1]Infrastructure!AE1206","v":0},{"$f":"[1]Infrastructure!AF1206","v":0},{"$f":"[1]Infrastructure!AG1206","v":0},{"$f":"[1]Infrastructure!AH1206","v":0},0]
[0,null,null,null,null,null,{"$f":"[1]Infrastructure!G1207","v":0},{"$f":"[1]Infrastructure!H1207","v":0},{"$f":"[1]Infrastructure!I1207","v":0},{"$f":"[1]Infrastructure!J1207","v":0},{"$f":"[1]Infrastructure!K1207","v":0},{"$f":"[1]Infrastructure!L1207","v":0},{"$f":"[1]Infrastructure!M1207","v":0},{"$f":"[1]Infrastructure!N1207","v":0},{"$f":"[1]Infrastructure!O1207","v":0},{"$f":"[1]Infrastructure!Q1207","v":0},{"$f":"[1]Infrastructure!R1207","v":0},{"$f":"[1]Infrastructure!T1207","v":0},{"$f":"[1]Infrastructure!W1207","v":0},{"$f":"[1]Infrastructure!W1207","v":0},0,{"$f":"[1]Infrastructure!Z1207","v":0},{"$f":"[1]Infrastructure!Z1207","v":0},0,{"$f":"[1]Infrastructure!AB1207","v":0},{"$f":"[1]Infrastructure!AB1207","v":0},0,{"$f":"[1]Infrastructure!AC1207","v":0},{"$f":"[1]Infrastructure!AD1207","v":0},{"$f":"[1]Infrastructure!AE1207","v":0},{"$f":"[1]Infrastructure!AF1207","v":0},{"$f":"[1]Infrastructure!AG1207","v":0},{"$f":"[1]Infrastructure!AH1207","v":0},0]
[0,null,null,null,null,null,{"$f":"[1]Infrastructure!G1208","v":0},{"$f":"[1]Infrastructure!H1208","v":0},{"$f":"[1]Infrastructure!I1208","v":0},{"$f":"[1]Infrastructure!J1208","v":0},{"$f":"[1]Infrastructure!K1208","v":0},{"$f":"[1]Infrastructure!L1208","v":0},{"$f":"[1]Infrastructure!M1208","v":0},{"$f":"[1]Infrastructure!N1208","v":0},{"$f":"[1]Infrastructure!O1208","v":0},{"$f":"[1]Infrastructure!Q1208","v":0},{"$f":"[1]Infrastructure!R1208","v":0},{"$f":"[1]Infrastructure!T1208","v":0},{"$f":"[1]Infrastructure!W1208","v":0},{"$f":"[1]Infrastructure!W1208","v":0},0,{"$f":"[1]Infrastructure!Z1208","v":0},{"$f":"[1]Infrastructure!Z1208","v":0},0,{"$f":"[1]Infrastructure!AB1208","v":0},{"$f":"[1]Infrastructure!AB1208","v":0},0,{"$f":"[1]Infrastructure!AC1208","v":0},{"$f":"[1]Infrastructure!AD1208","v":0},{"$f":"[1]Infrastructure!AE1208","v":0},{"$f":"[1]Infrastructure!AF1208","v":0},{"$f":"[1]Infrastructure!AG1208","v":0},{"$f":"[1]Infrastructure!AH1208","v":0},0]
[0,null,null,null,null,null,{"$f":"[1]Infrastructure!G1209","v":0},{"$f":"[1]Infrastructure!H1209","v":0},{"$f":"[1]Infrastructure!I1209","v":0},{"$f":"[1]Infrastructure!J1209","v":0},{"$f":"[1]Infrastructure!K1209","v":0},{"$f":"[1]Infrastructure!L1209","v":0},{"$f":"[1]Infrastructure!M1209","v":0},{"$f":"[1]Infrastructure!N1209","v":0},{"$f":"[1]Infrastructure!O1209","v":0},{"$f":"[1]Infrastructure!Q1209","v":0},{"$f":"[1]Infrastructure!R1209","v":0},{"$f":"[1]Infrastructure!T1209","v":0},{"$f":"[1]Infrastructure!W1209","v":0},{"$f":"[1]Infrastructure!W1209","v":0},0,{"$f":"[1]Infrastructure!Z1209","v":0},{"$f":"[1]Infrastructure!Z1209","v":0},0,{"$f":"[1]Infrastructure!AB1209","v":0},{"$f":"[1]Infrastructure!AB1209","v":0},0,{"$f":"[1]Infrastructure!AC1209","v":0},{"$f":"[1]Infrastructure!AD1209","v":0},{"$f":"[1]Infrastructure!AE1209","v":0},{"$f":"[1]Infrastructure!AF1209","v":0},{"$f":"[1]Infrastructure!AG1209","v":0},{"$f":"[1]Infrastructure!AH1209","v":0},0]
[0,null,null,null,null,null,{"$f":"[1]Infrastructure!G1210","v":0},{"$f":"[1]Infrastructure!H1210","v":0},{"$f":"[1]Infrastructure!I1210","v":0},{"$f":"[1]Infrastructure!J1210","v":0},{"$f":"[1]Infrastructure!K1210","v":0},{"$f":"[1]Infrastructure!L1210","v":0},{"$f":"[1]Infrastructure!M1210","v":0},{"$f":"[1]Infrastructure!N1210","v":0},{"$f":"[1]Infrastructure!O1210","v":0},{"$f":"[1]Infrastructure!Q1210","v":0},{"$f":"[1]Infrastructure!R1210","v":0},{"$f":"[1]Infrastructure!T1210","v":0},{"$f":"[1]Infrastructure!W1210","v":0},{"$f":"[1]Infrastructure!W1210","v":0},0,{"$f":"[1]Infrastructure!Z1210","v":0},{"$f":"[1]Infrastructure!Z1210","v":0},0,{"$f":"[1]Infrastructure!AB1210","v":0},{"$f":"[1]Infrastructure!AB1210","v":0},0,{"$f":"[1]Infrastructure!AC1210","v":0},{"$f":"[1]Infrastructure!AD1210","v":0},{"$f":"[1]Infrastructure!AE1210","v":0},{"$f":"[1]Infrastructure!AF1210","v":0},{"$f":"[1]Infrastructure!AG1210","v":0},{"$f":"[1]Infrastructure!AH1210","v":0},0]
[0,null,null,null,null,null,{"$f":"[1]Infrastructure!G1211","v":0},{"$f":"[1]Infrastructure!H1211","v":0},{"$f":"[1]Infrastructure!I1211","v":0},{"$f":"[1]Infrastructure!J1211","v":0},{"$f":"[1]Infrastructure!K1211","v":0},{"$f":"[1]Infrastructure!L1211","v":0},{"$f":"[1]Infrastructure!M1211","v":0},{"$f":"[1]Infrastructure!N1211","v":0},{"$f":"[1]Infrastructure!O1211","v":0},{"$f":"[1]Infrastructure!Q1211","v":0},{"$f":"[1]Infrastructure!R1211","v":0},{"$f":"[1]Infrastructure!T1211","v":0},{"$f":"[1]Infrastructure!W1211","v":0},{"$f":"[1]Infrastructure!W1211","v":0},0,{"$f":"[1]Infrastructure!Z1211","v":0},{"$f":"[1]Infrastructure!Z1211","v":0},0,{"$f":"[1]Infrastructure!AB1211","v":0},{"$f":"[1]Infrastructure!AB1211","v":0},0,{"$f":"[1]Infrastructure!AC1211","v":0},{"$f":"[1]Infrastructure!AD1211","v":0},{"$f":"[1]Infrastructure!AE1211","v":0},{"$f":"[1]Infrastructure!AF1211","v":0},{"$f":"[1]Infrastructure!AG1211","v":0},{"$f":"[1]Infrastructure!AH1211","v":0},0]
[0,null,null,null,null,null,{"$f":"[1]Infrastructure!G1212","v":0},{"$f":"[1]Infrastructure!H1212","v":0},{"$f":"[1]Infrastructure!I1212","v":0},{"$f":"[1]Infrastructure!J1212","v":0},{"$f":"[1]Infrastructure!K1212","v":0},{"$f":"[1]Infrastructure!L1212","v":0},{"$f":"[1]Infrastructure!M1212","v":0},{"$f":"[1]Infrastructure!N1212","v":0},{"$f":"[1]Infrastructure!O1212","v":0},{"$f":"[1]Infrastructure!Q1212","v":0},{"$f":"[1]Infrastructure!R1212","v":0},{"$f":"[1]Infrastructure!T1212","v":0},{"$f":"[1]Infrastructure!W1212","v":0},{"$f":"[1]Infrastructure!W1212","v":0},0,{"$f":"[1]Infrastructure!Z1212","v":0},{"$f":"[1]Infrastructure!Z1212","v":0},0,{"$f":"[1]Infrastructure!AB1212","v":0},{"$f":"[1]Infrastructure!AB1212","v":0},0,{"$f":"[1]Infrastructure!AC1212","v":0},{"$f":"[1]Infrastructure!AD1212","v":0},{"$f":"[1]Infrastructure!AE1212","v":0},{"$f":"[1]Infrastructure!AF1212","v":0},{"$f":"[1]Infrastructure!AG1212","v":0},{"$f":"[1]Infrastructure!AH1212","v":0},0]
[0]
[{"$f":"IF(G1214<>\"\",1,0)","v":1},null,null,null,null,3,"Small projects (cost less than R90 million per annum and not more than R250 million over the MTEF)",null,null,null,null,null,null,null,{"$f":"SUM(O1215:O1814)","v":0},{"$f":"SUM(P1215:P1814)","v":0},0,0,0,0,0,{"$f":"SUM(V1215:V1814)","v":0},{"$f":"SUM(W1215:W1814)","v":0},0,{"$f":"SUM(Y1215:Y1814)","v":0},{"$f":"SUM(Z1215:Z1814)","v":0},0,{"$f":"SUM(AB1215:AB1814)","v":0},0,0,0,0,0,0]
[0,null,null,null,null,null,{"$f":"[1]Infrastructure!G1215","v":0},{"$f":"[1]Infrastructure!H1215","v":0},{"$f":"[1]Infrastructure!I1215","v":0},{"$f":"[1]Infrastructure!J1215","v":0},{"$f":"[1]Infrastructure!K1215","v":0},{"$f":"[1]Infrastructure!L1215","v":0},{"$f":"[1]Infrastructure!M1215","v":0},{"$f":"[1]Infrastructure!N1215","v":0},{"$f":"[1]Infrastructure!O1215","v":0},{"$f":"[1]Infrastructure!Q1215","v":0},{"$f":"[1]Infrastructure!R1215","v":0},{"$f":"[1]Infrastructure!T1215","v":0},{"$f":"[1]Infrastructure!W1215","v":0},{"$f":"[1]Infrastructure!W1215","v":0},0,{"$f":"[1]Infrastructure!Z1215","v":0},{"$f":"[1]Infrastructure!Z1215","v":0},0,{"$f":"[1]Infrastructure!AB1215","v":0},{"$f":"[1]Infrastructure!AB1215","v":0},0,{"$f":"[1]Infrastructure!AC1215","v":0},{"$f":"[1]Infrastructure!AD1215","v":0},{"$f":"[1]Infrastructure!AE1215","v":0},{"$f":"[1]Infrastructure!AF1215","v":0},{"$f":"[1]Infrastructure!AG1215","v":0},{"$f":"[1]Infrastructure!AH1215","v":0},0]
[0,null,null,null,null,null,{"$f":"[1]Infrastructure!G1216","v":0},{"$f":"[1]Infrastructure!H1216","v":0},{"$f":"[1]Infrastructure!I1216","v":0},{"$f":"[1]Infrastructure!J1216","v":0},{"$f":"[1]Infrastructure!K1216","v":0},{"$f":"[1]Infrastructure!L1216","v":0},{"$f":"[1]Infrastructure!M1216","v":0},{"$f":"[1]Infrastructure!N1216","v":0},{"$f":"[1]Infrastructure!O1216","v":0},{"$f":"[1]Infrastructure!Q1216","v":0},{"$f":"[1]Infrastructure!R1216","v":0},{"$f":"[1]Infrastructure!T1216","v":0},{"$f":"[1]Infrastructure!W1216","v":0},{"$f":"[1]Infrastructure!W1216","v":0},0,{"$f":"[1]Infrastructure!Z1216","v":0},{"$f":"[1]Infrastructure!Z1216","v":0},0,{"$f":"[1]Infrastructure!AB1216","v":0},{"$f":"[1]Infrastructure!AB1216","v":0},0,{"$f":"[1]Infrastructure!AC1216","v":0},{"$f":"[1]Infrastructure!AD1216","v":0},{"$f":"[1]Infrastructure!AE1216","v":0},{"$f":"[1]Infrastructure!AF1216","v":0},{"$f":"[1]Infrastructure!AG1216","v":0},{"$f":"[1]Infrastructure!AH1216","v":0},0]
[0,null,null,null,null,null,{"$f":"[1]Infrastructure!G1217","v":0},{"$f":"[1]Infrastructure!H1217","v":0},{"$f":"[1]Infrastructure!I1217","v":0},{"$f":"[1]Infrastructure!J1217","v":0},{"$f":"[1]Infrastructure!K1217","v":0},{"$f":"[1]Infrastructure!L1217","v":0},{"$f":"[1]Infrastructure!M1217","v":0},{"$f":"[1]Infrastructure!N1217","v":0},{"$f":"[1]Infrastructure!O1217","v":0},{"$f":"[1]Infrastructure!Q1217","v":0},{"$f":"[1]Infrastructure!R1217","v":0},{"$f":"[1]Infrastructure!T1217","v":0},{"$f":"[1]Infrastructure!W1217","v":0},{"$f":"[1]Infrastructure!W1217","v":0},0,{"$f":"[1]Infrastructure!Z1217","v":0},{"$f":"[1]Infrastructure!Z1217","v":0},0,{"$f":"[1]Infrastructure!AB1217","v":0},{"$f":"[1]Infrastructure!AB1217","v":0},0,{"$f":"[1]Infrastructure!AC1217","v":0},{"$f":"[1]Infrastructure!AD1217","v":0},{"$f":"[1]Infrastructure!AE1217","v":0},{"$f":"[1]Infrastructure!AF1217","v":0},{"$f":"[1]Infrastructure!AG1217","v":0},{"$f":"[1]Infrastructure!AH1217","v":0},0]
[0,null,null,null,null,null,{"$f":"[1]Infrastructure!G1218","v":0},{"$f":"[1]Infrastructure!H1218","v":0},{"$f":"[1]Infrastructure!I1218","v":0},{"$f":"[1]Infrastructure!J1218","v":0},{"$f":"[1]Infrastructure!K1218","v":0},{"$f":"[1]Infrastructure!L1218","v":0},{"$f":"[1]Infrastructure!M1218","v":0},{"$f":"[1]Infrastructure!N1218","v":0},{"$f":"[1]Infrastructure!O1218","v":0},{"$f":"[1]Infrastructure!Q1218","v":0},{"$f":"[1]Infrastructure!R1218","v":0},{"$f":"[1]Infrastructure!T1218","v":0},{"$f":"[1]Infrastructure!W1218","v":0},{"$f":"[1]Infrastructure!W1218","v":0},0,{"$f":"[1]Infrastructure!Z1218","v":0},{"$f":"[1]Infrastructure!Z1218","v":0},0,{"$f":"[1]Infrastructure!AB1218","v":0},{"$f":"[1]Infrastructure!AB1218","v":0},0,{"$f":"[1]Infrastructure!AC1218","v":0},{"$f":"[1]Infrastructure!AD1218","v":0},{"$f":"[1]Infrastructure!AE1218","v":0},{"$f":"[1]Infrastructure!AF1218","v":0},{"$f":"[1]Infrastructure!AG1218","v":0},{"$f":"[1]Infrastructure!AH1218","v":0},0]
[0,null,null,null,null,null,{"$f":"[1]Infrastructure!G1219","v":0},{"$f":"[1]Infrastructure!H1219","v":0},{"$f":"[1]Infrastructure!I1219","v":0},{"$f":"[1]Infrastructure!J1219","v":0},{"$f":"[1]Infrastructure!K1219","v":0},{"$f":"[1]Infrastructure!L1219","v":0},{"$f":"[1]Infrastructure!M1219","v":0},{"$f":"[1]Infrastructure!N1219","v":0},{"$f":"[1]Infrastructure!O1219","v":0},{"$f":"[1]Infrastructure!Q1219","v":0},{"$f":"[1]Infrastructure!R1219","v":0},{"$f":"[1]Infrastructure!T1219","v":0},{"$f":"[1]Infrastructure!W1219","v":0},{"$f":"[1]Infrastructure!W1219","v":0},0,{"$f":"[1]Infrastructure!Z1219","v":0},{"$f":"[1]Infrastructure!Z1219","v":0},0,{"$f":"[1]Infrastructure!AB1219","v":0},{"$f":"[1]Infrastructure!AB1219","v":0},0,{"$f":"[1]Infrastructure!AC1219","v":0},{"$f":"[1]Infrastructure!AD1219","v":0},{"$f":"[1]Infrastructure!AE1219","v":0},{"$f":"[1]Infrastructure!AF1219","v":0},{"$f":"[1]Infrastructure!AG1219","v":0},{"$f":"[1]Infrastructure!AH1219","v":0},0]
[0,null,null,null,null,null,{"$f":"[1]Infrastructure!G1220","v":0},{"$f":"[1]Infrastructure!H1220","v":0},{"$f":"[1]Infrastructure!I1220","v":0},{"$f":"[1]Infrastructure!J1220","v":0},{"$f":"[1]Infrastructure!K1220","v":0},{"$f":"[1]Infrastructure!L1220","v":0},{"$f":"[1]Infrastructure!M1220","v":0},{"$f":"[1]Infrastructure!N1220","v":0},{"$f":"[1]Infrastructure!O1220","v":0},{"$f":"[1]Infrastructure!Q1220","v":0},{"$f":"[1]Infrastructure!R1220","v":0},{"$f":"[1]Infrastructure!T1220","v":0},{"$f":"[1]Infrastructure!W1220","v":0},{"$f":"[1]Infrastructure!W1220","v":0},0,{"$f":"[1]Infrastructure!Z1220","v":0},{"$f":"[1]Infrastructure!Z1220","v":0},0,{"$f":"[1]Infrastructure!AB1220","v":0},{"$f":"[1]Infrastructure!AB1220","v":0},0,{"$f":"[1]Infrastructure!AC1220","v":0},{"$f":"[1]Infrastructure!AD1220","v":0},{"$f":"[1]Infrastructure!AE1220","v":0},{"$f":"[1]Infrastructure!AF1220","v":0},{"$f":"[1]Infrastructure!AG1220","v":0},{"$f":"[1]Infrastructure!AH1220","v":0},0]
[0,null,null,null,null,null,{"$f":"[1]Infrastructure!G1221","v":0},{"$f":"[1]Infrastructure!H1221","v":0},{"$f":"[1]Infrastructure!I1221","v":0},{"$f":"[1]Infrastructure!J1221","v":0},{"$f":"[1]Infrastructure!K1221","v":0},{"$f":"[1]Infrastructure!L1221","v":0},{"$f":"[1]Infrastructure!M1221","v":0},{"$f":"[1]Infrastructure!N1221","v":0},{"$f":"[1]Infrastructure!O1221","v":0},{"$f":"[1]Infrastructure!Q1221","v":0},{"$f":"[1]Infrastructure!R1221","v":0},{"$f":"[1]Infrastructure!T1221","v":0},{"$f":"[1]Infrastructure!W1221","v":0},{"$f":"[1]Infrastructure!W1221","v":0},0,{"$f":"[1]Infrastructure!Z1221","v":0},{"$f":"[1]Infrastructure!Z1221","v":0},0,{"$f":"[1]Infrastructure!AB1221","v":0},{"$f":"[1]Infrastructure!AB1221","v":0},0,{"$f":"[1]Infrastructure!AC1221","v":0},{"$f":"[1]Infrastructure!AD1221","v":0},{"$f":"[1]Infrastructure!AE1221","v":0},{"$f":"[1]Infrastructure!AF1221","v":0},{"$f":"[1]Infrastructure!AG1221","v":0},{"$f":"[1]Infrastructure!AH1221","v":0},0]
[0,null,null,null,null,null,{"$f":"[1]Infrastructure!G1222","v":0},{"$f":"[1]Infrastructure!H1222","v":0},{"$f":"[1]Infrastructure!I1222","v":0},{"$f":"[1]Infrastructure!J1222","v":0},{"$f":"[1]Infrastructure!K1222","v":0},{"$f":"[1]Infrastructure!L1222","v":0},{"$f":"[1]Infrastructure!M1222","v":0},{"$f":"[1]Infrastructure!N1222","v":0},{"$f":"[1]Infrastructure!O1222","v":0},{"$f":"[1]Infrastructure!Q1222","v":0},{"$f":"[1]Infrastructure!R1222","v":0},{"$f":"[1]Infrastructure!T1222","v":0},{"$f":"[1]Infrastructure!W1222","v":0},{"$f":"[1]Infrastructure!W1222","v":0},0,{"$f":"[1]Infrastructure!Z1222","v":0},{"$f":"[1]Infrastructure!Z1222","v":0},0,{"$f":"[1]Infrastructure!AB1222","v":0},{"$f":"[1]Infrastructure!AB1222","v":0},0,{"$f":"[1]Infrastructure!AC1222","v":0},{"$f":"[1]Infrastructure!AD1222","v":0},{"$f":"[1]Infrastructure!AE1222","v":0},{"$f":"[1]Infrastructure!AF1222","v":0},{"$f":"[1]Infrastructure!AG1222","v":0},{"$f":"[1]Infrastructure!AH1222","v":0},0]
[0,null,null,null,null,null,{"$f":"[1]Infrastructure!G1223","v":0},{"$f":"[1]Infrastructure!H1223","v":0},{"$f":"[1]Infrastructure!I1223","v":0},{"$f":"[1]Infrastructure!J1223","v":0},{"$f":"[1]Infrastructure!K1223","v":0},{"$f":"[1]Infrastructure!L1223","v":0},{"$f":"[1]Infrastructure!M1223","v":0},{"$f":"[1]Infrastructure!N1223","v":0},{"$f":"[1]Infrastructure!O1223","v":0},{"$f":"[1]Infrastructure!Q1223","v":0},{"$f":"[1]Infrastructure!R1223","v":0},{"$f":"[1]Infrastructure!T1223","v":0},{"$f":"[1]Infrastructure!W1223","v":0},{"$f":"[1]Infrastructure!W1223","v":0},0,{"$f":"[1]Infrastructure!Z1223","v":0},{"$f":"[1]Infrastructure!Z1223","v":0},0,{"$f":"[1]Infrastructure!AB1223","v":0},{"$f":"[1]Infrastructure!AB1223","v":0},0,{"$f":"[1]Infrastructure!AC1223","v":0},{"$f":"[1]Infrastructure!AD1223","v":0},{"$f":"[1]Infrastructure!AE1223","v":0},{"$f":"[1]Infrastructure!AF1223","v":0},{"$f":"[1]Infrastructure!AG1223","v":0},{"$f":"[1]Infrastructure!AH1223","v":0},0]
[0,null,null,null,null,null,{"$f":"[1]Infrastructure!G1224","v":0},{"$f":"[1]Infrastructure!H1224","v":0},{"$f":"[1]Infrastructure!I1224","v":0},{"$f":"[1]Infrastructure!J1224","v":0},{"$f":"[1]Infrastructure!K1224","v":0},{"$f":"[1]Infrastructure!L1224","v":0},{"$f":"[1]Infrastructure!M1224","v":0},{"$f":"[1]Infrastructure!N1224","v":0},{"$f":"[1]Infrastructure!O1224","v":0},{"$f":"[1]Infrastructure!Q1224","v":0},{"$f":"[1]Infrastructure!R1224","v":0},{"$f":"[1]Infrastructure!T1224","v":0},{"$f":"[1]Infrastructure!W1224","v":0},{"$f":"[1]Infrastructure!W1224","v":0},0,{"$f":"[1]Infrastructure!Z1224","v":0},{"$f":"[1]Infrastructure!Z1224","v":0},0,{"$f":"[1]Infrastructure!AB1224","v":0},{"$f":"[1]Infrastructure!AB1224","v":0},0,{"$f":"[1]Infrastructure!AC1224","v":0},{"$f":"[1]Infrastructure!AD1224","v":0},{"$f":"[1]Infrastructure!AE1224","v":0},{"$f":"[1]Infrastructure!AF1224","v":0},{"$f":"[1]Infrastructure!AG1224","v":0},{"$f":"[1]Infrastructure!AH1224","v":0},0]
[0,null,null,null,null,null,{"$f":"[1]Infrastructure!G1225","v":0},{"$f":"[1]Infrastructure!H1225","v":0},{"$f":"[1]Infrastructure!I1225","v":0},{"$f":"[1]Infrastructure!J1225","v":0},{"$f":"[1]Infrastructure!K1225","v":0},{"$f":"[1]Infrastructure!L1225","v":0},{"$f":"[1]Infrastructure!M1225","v":0},{"$f":"[1]Infrastructure!N1225","v":0},{"$f":"[1]Infrastructure!O1225","v":0},{"$f":"[1]Infrastructure!Q1225","v":0},{"$f":"[1]Infrastructure!R1225","v":0},{"$f":"[1]Infrastructure!T1225","v":0},{"$f":"[1]Infrastructure!W1225","v":0},{"$f":"[1]Infrastructure!W1225","v":0},0,{"$f":"[1]Infrastructure!Z1225","v":0},{"$f":"[1]Infrastructure!Z1225","v":0},0,{"$f":"[1]Infrastructure!AB1225","v":0},{"$f":"[1]Infrastructure!AB1225","v":0},0,{"$f":"[1]Infrastructure!AC1225","v":0},{"$f":"[1]Infrastructure!AD1225","v":0},{"$f":"[1]Infrastructure!AE1225","v":0},{"$f":"[1]Infrastructure!AF1225","v":0},{"$f":"[1]Infrastructure!AG1225","v":0},{"$f":"[1]Infrastructure!AH1225","v":0},0]
[0,null,null,null,null,null,{"$f":"[1]Infrastructure!G1226","v":0},{"$f":"[1]Infrastructure!H1226","v":0},{"$f":"[1]Infrastructure!I1226","v":0},{"$f":"[1]Infrastructure!J1226","v":0},{"$f":"[1]Infrastructure!K1226","v":0},{"$f":"[1]Infrastructure!L1226","v":0},{"$f":"[1]Infrastructure!M1226","v":0},{"$f":"[1]Infrastructure!N1226","v":0},{"$f":"[1]Infrastructure!O1226","v":0},{"$f":"[1]Infrastructure!Q1226","v":0},{"$f":"[1]Infrastructure!R1226","v":0},{"$f":"[1]Infrastructure!T1226","v":0},{"$f":"[1]Infrastructure!W1226","v":0},{"$f":"[1]Infrastructure!W1226","v":0},0,{"$f":"[1]Infrastructure!Z1226","v":0},{"$f":"[1]Infrastructure!Z1226","v":0},0,{"$f":"[1]Infrastructure!AB1226","v":0},{"$f":"[1]Infrastructure!AB1226","v":0},0,{"$f":"[1]Infrastructure!AC1226","v":0},{"$f":"[1]Infrastructure!AD1226","v":0},{"$f":"[1]Infrastructure!AE1226","v":0},{"$f":"[1]Infrastructure!AF1226","v":0},{"$f":"[1]Infrastructure!AG1226","v":0},{"$f":"[1]Infrastructure!AH1226","v":0},0]
[0,null,null,null,null,null,{"$f":"[1]Infrastructure!G1227","v":0},{"$f":"[1]Infrastructure!H1227","v":0},{"$f":"[1]Infrastructure!I1227","v":0},{"$f":"[1]Infrastructure!J1227","v":0},{"$f":"[1]Infrastructure!K1227","v":0},{"$f":"[1]Infrastructure!L1227","v":0},{"$f":"[1]Infrastructure!M1227","v":0},{"$f":"[1]Infrastructure!N1227","v":0},{"$f":"[1]Infrastructure!O1227","v":0},{"$f":"[1]Infrastructure!Q1227","v":0},{"$f":"[1]Infrastructure!R1227","v":0},{"$f":"[1]Infrastructure!T1227","v":0},{"$f":"[1]Infrastructure!W1227","v":0},{"$f":"[1]Infrastructure!W1227","v":0},0,{"$f":"[1]Infrastructure!Z1227","v":0},{"$f":"[1]Infrastructure!Z1227","v":0},0,{"$f":"[1]Infrastructure!AB1227","v":0},{"$f":"[1]Infrastructure!AB1227","v":0},0,{"$f":"[1]Infrastructure!AC1227","v":0},{"$f":"[1]Infrastructure!AD1227","v":0},{"$f":"[1]Infrastructure!AE1227","v":0},{"$f":"[1]Infrastructure!AF1227","v":0},{"$f":"[1]Infrastructure!AG1227","v":0},{"$f":"[1]Infrastructure!AH1227","v":0},0]
[{"$f":"IF(SUM(O1228:AH1228),1,0)","v":0},null,null,null,null,null,{"$f":"[1]Infrastructure!G1228","v":0},{"$f":"[1]Infrastructure!H1228","v":0},{"$f":"[1]Infrastructure!I1228","v":0},{"$f":"[1]Infrastructure!J1228","v":0},{"$f":"[1]Infrastructure!K1228","v":0},{"$f":"[1]Infrastructure!L1228","v":0},{"$f":"[1]Infrastructure!M1228","v":0},{"$f":"[1]Infrastructure!N1228","v":0},{"$f":"[1]Infrastructure!O1228","v":0},{"$f":"[1]Infrastructure!Q1228","v":0},{"$f":"[1]Infrastructure!R1228","v":0},{"$f":"[1]Infrastructure!T1228","v":0},{"$f":"[1]Infrastructure!W1228","v":0},{"$f":"[1]Infrastructure!W1228","v":0},0,{"$f":"[1]Infrastructure!Z1228","v":0},{"$f":"[1]Infrastructure!Z1228","v":0},0,{"$f":"[1]Infrastructure!AB1228","v":0},{"$f":"[1]Infrastructure!AB1228","v":0},0,{"$f":"[1]Infrastructure!AC1228","v":0},{"$f":"[1]Infrastructure!AD1228","v":0},{"$f":"[1]Infrastructure!AE1228","v":0},{"$f":"[1]Infrastructure!AF1228","v":0},{"$f":"[1]Infrastructure!AG1228","v":0},{"$f":"[1]Infrastructure!AH1228","v":0},0]
[0,null,null,null,null,null,{"$f":"[1]Infrastructure!G1229","v":0},{"$f":"[1]Infrastructure!H1229","v":0},{"$f":"[1]Infrastructure!I1229","v":0},{"$f":"[1]Infrastructure!J1229","v":0},{"$f":"[1]Infrastructure!K1229","v":0},{"$f":"[1]Infrastructure!L1229","v":0},{"$f":"[1]Infrastructure!M1229","v":0},{"$f":"[1]Infrastructure!N1229","v":0},{"$f":"[1]Infrastructure!O1229","v":0},{"$f":"[1]Infrastructure!Q1229","v":0},{"$f":"[1]Infrastructure!R1229","v":0},{"$f":"[1]Infrastructure!T1229","v":0},{"$f":"[1]Infrastructure!W1229","v":0},{"$f":"[1]Infrastructure!W1229","v":0},0,{"$f":"[1]Infrastructure!Z1229","v":0},{"$f":"[1]Infrastructure!Z1229","v":0},0,{"$f":"[1]Infrastructure!AB1229","v":0},{"$f":"[1]Infrastructure!AB1229","v":0},0,{"$f":"[1]Infrastructure!AC1229","v":0},{"$f":"[1]Infrastructure!AD1229","v":0},{"$f":"[1]Infrastructure!AE1229","v":0},{"$f":"[1]Infrastructure!AF1229","v":0},{"$f":"[1]Infrastructure!AG1229","v":0},{"$f":"[1]Infrastructure!AH1229","v":0},0]
[0,null,null,null,null,null,{"$f":"[1]Infrastructure!G1230","v":0},{"$f":"[1]Infrastructure!H1230","v":0},{"$f":"[1]Infrastructure!I1230","v":0},{"$f":"[1]Infrastructure!J1230","v":0},{"$f":"[1]Infrastructure!K1230","v":0},{"$f":"[1]Infrastructure!L1230","v":0},{"$f":"[1]Infrastructure!M1230","v":0},{"$f":"[1]Infrastructure!N1230","v":0},{"$f":"[1]Infrastructure!O1230","v":0},{"$f":"[1]Infrastructure!Q1230","v":0},{"$f":"[1]Infrastructure!R1230","v":0},{"$f":"[1]Infrastructure!T1230","v":0},{"$f":"[1]Infrastructure!W1230","v":0},{"$f":"[1]Infrastructure!W1230","v":0},0,{"$f":"[1]Infrastructure!Z1230","v":0},{"$f":"[1]Infrastructure!Z1230","v":0},0,{"$f":"[1]Infrastructure!AB1230","v":0},{"$f":"[1]Infrastructure!AB1230","v":0},0,{"$f":"[1]Infrastructure!AC1230","v":0},{"$f":"[1]Infrastructure!AD1230","v":0},{"$f":"[1]Infrastructure!AE1230","v":0},{"$f":"[1]Infrastructure!AF1230","v":0},{"$f":"[1]Infrastructure!AG1230","v":0},{"$f":"[1]Infrastructure!AH1230","v":0},0]
[0,null,null,null,null,null,{"$f":"[1]Infrastructure!G1231","v":0},{"$f":"[1]Infrastructure!H1231","v":0},{"$f":"[1]Infrastructure!I1231","v":0},{"$f":"[1]Infrastructure!J1231","v":0},{"$f":"[1]Infrastructure!K1231","v":0},{"$f":"[1]Infrastructure!L1231","v":0},{"$f":"[1]Infrastructure!M1231","v":0},{"$f":"[1]Infrastructure!N1231","v":0},{"$f":"[1]Infrastructure!O1231","v":0},{"$f":"[1]Infrastructure!Q1231","v":0},{"$f":"[1]Infrastructure!R1231","v":0},{"$f":"[1]Infrastructure!T1231","v":0},{"$f":"[1]Infrastructure!W1231","v":0},{"$f":"[1]Infrastructure!W1231","v":0},0,{"$f":"[1]Infrastructure!Z1231","v":0},{"$f":"[1]Infrastructure!Z1231","v":0},0,{"$f":"[1]Infrastructure!AB1231","v":0},{"$f":"[1]Infrastructure!AB1231","v":0},0,{"$f":"[1]Infrastructure!AC1231","v":0},{"$f":"[1]Infrastructure!AD1231","v":0},{"$f":"[1]Infrastructure!AE1231","v":0},{"$f":"[1]Infrastructure!AF1231","v":0},{"$f":"[1]Infrastructure!AG1231","v":0},{"$f":"[1]Infrastructure!AH1231","v":0},0]
[0,null,null,null,null,null,{"$f":"[1]Infrastructure!G1232","v":0},{"$f":"[1]Infrastructure!H1232","v":0},{"$f":"[1]Infrastructure!I1232","v":0},{"$f":"[1]Infrastructure!J1232","v":0},{"$f":"[1]Infrastructure!K1232","v":0},{"$f":"[1]Infrastructure!L1232","v":0},{"$f":"[1]Infrastructure!M1232","v":0},{"$f":"[1]Infrastructure!N1232","v":0},{"$f":"[1]Infrastructure!O1232","v":0},{"$f":"[1]Infrastructure!Q1232","v":0},{"$f":"[1]Infrastructure!R1232","v":0},{"$f":"[1]Infrastructure!T1232","v":0},{"$f":"[1]Infrastructure!W1232","v":0},{"$f":"[1]Infrastructure!W1232","v":0},0,{"$f":"[1]Infrastructure!Z1232","v":0},{"$f":"[1]Infrastructure!Z1232","v":0},0,{"$f":"[1]Infrastructure!AB1232","v":0},{"$f":"[1]Infrastructure!AB1232","v":0},0,{"$f":"[1]Infrastructure!AC1232","v":0},{"$f":"[1]Infrastructure!AD1232","v":0},{"$f":"[1]Infrastructure!AE1232","v":0},{"$f":"[1]Infrastructure!AF1232","v":0},{"$f":"[1]Infrastructure!AG1232","v":0},{"$f":"[1]Infrastructure!AH1232","v":0},0]
[0,null,null,null,null,null,{"$f":"[1]Infrastructure!G1233","v":0},{"$f":"[1]Infrastructure!H1233","v":0},{"$f":"[1]Infrastructure!I1233","v":0},{"$f":"[1]Infrastructure!J1233","v":0},{"$f":"[1]Infrastructure!K1233","v":0},{"$f":"[1]Infrastructure!L1233","v":0},{"$f":"[1]Infrastructure!M1233","v":0},{"$f":"[1]Infrastructure!N1233","v":0},{"$f":"[1]Infrastructure!O1233","v":0},{"$f":"[1]Infrastructure!Q1233","v":0},{"$f":"[1]Infrastructure!R1233","v":0},{"$f":"[1]Infrastructure!T1233","v":0},{"$f":"[1]Infrastructure!W1233","v":0},{"$f":"[1]Infrastructure!W1233","v":0},0,{"$f":"[1]Infrastructure!Z1233","v":0},{"$f":"[1]Infrastructure!Z1233","v":0},0,{"$f":"[1]Infrastructure!AB1233","v":0},{"$f":"[1]Infrastructure!AB1233","v":0},0,{"$f":"[1]Infrastructure!AC1233","v":0},{"$f":"[1]Infrastructure!AD1233","v":0},{"$f":"[1]Infrastructure!AE1233","v":0},{"$f":"[1]Infrastructure!AF1233","v":0},{"$f":"[1]Infrastructure!AG1233","v":0},{"$f":"[1]Infrastructure!AH1233","v":0},0]
[0,null,null,null,null,null,{"$f":"[1]Infrastructure!G1234","v":0},{"$f":"[1]Infrastructure!H1234","v":0},{"$f":"[1]Infrastructure!I1234","v":0},{"$f":"[1]Infrastructure!J1234","v":0},{"$f":"[1]Infrastructure!K1234","v":0},{"$f":"[1]Infrastructure!L1234","v":0},{"$f":"[1]Infrastructure!M1234","v":0},{"$f":"[1]Infrastructure!N1234","v":0},{"$f":"[1]Infrastructure!O1234","v":0},{"$f":"[1]Infrastructure!Q1234","v":0},{"$f":"[1]Infrastructure!R1234","v":0},{"$f":"[1]Infrastructure!T1234","v":0},{"$f":"[1]Infrastructure!W1234","v":0},{"$f":"[1]Infrastructure!W1234","v":0},0,{"$f":"[1]Infrastructure!Z1234","v":0},{"$f":"[1]Infrastructure!Z1234","v":0},0,{"$f":"[1]Infrastructure!AB1234","v":0},{"$f":"[1]Infrastructure!AB1234","v":0},0,{"$f":"[1]Infrastructure!AC1234","v":0},{"$f":"[1]Infrastructure!AD1234","v":0},{"$f":"[1]Infrastructure!AE1234","v":0},{"$f":"[1]Infrastructure!AF1234","v":0},{"$f":"[1]Infrastructure!AG1234","v":0},{"$f":"[1]Infrastructure!AH1234","v":0},0]
[0,null,null,null,null,null,{"$f":"[1]Infrastructure!G1235","v":0},{"$f":"[1]Infrastructure!H1235","v":0},{"$f":"[1]Infrastructure!I1235","v":0},{"$f":"[1]Infrastructure!J1235","v":0},{"$f":"[1]Infrastructure!K1235","v":0},{"$f":"[1]Infrastructure!L1235","v":0},{"$f":"[1]Infrastructure!M1235","v":0},{"$f":"[1]Infrastructure!N1235","v":0},{"$f":"[1]Infrastructure!O1235","v":0},{"$f":"[1]Infrastructure!Q1235","v":0},{"$f":"[1]Infrastructure!R1235","v":0},{"$f":"[1]Infrastructure!T1235","v":0},{"$f":"[1]Infrastructure!W1235","v":0},{"$f":"[1]Infrastructure!W1235","v":0},0,{"$f":"[1]Infrastructure!Z1235","v":0},{"$f":"[1]Infrastructure!Z1235","v":0},0,{"$f":"[1]Infrastructure!AB1235","v":0},{"$f":"[1]Infrastructure!AB1235","v":0},0,{"$f":"[1]Infrastructure!AC1235","v":0},{"$f":"[1]Infrastructure!AD1235","v":0},{"$f":"[1]Infrastructure!AE1235","v":0},{"$f":"[1]Infrastructure!AF1235","v":0},{"$f":"[1]Infrastructure!AG1235","v":0},{"$f":"[1]Infrastructure!AH1235","v":0},0]
[0,null,null,null,null,null,{"$f":"[1]Infrastructure!G1236","v":0},{"$f":"[1]Infrastructure!H1236","v":0},{"$f":"[1]Infrastructure!I1236","v":0},{"$f":"[1]Infrastructure!J1236","v":0},{"$f":"[1]Infrastructure!K1236","v":0},{"$f":"[1]Infrastructure!L1236","v":0},{"$f":"[1]Infrastructure!M1236","v":0},{"$f":"[1]Infrastructure!N1236","v":0},{"$f":"[1]Infrastructure!O1236","v":0},{"$f":"[1]Infrastructure!Q1236","v":0},{"$f":"[1]Infrastructure!R1236","v":0},{"$f":"[1]Infrastructure!T1236","v":0},{"$f":"[1]Infrastructure!W1236","v":0},{"$f":"[1]Infrastructure!W1236","v":0},0,{"$f":"[1]Infrastructure!Z1236","v":0},{"$f":"[1]Infrastructure!Z1236","v":0},0,{"$f":"[1]Infrastructure!AB1236","v":0},{"$f":"[1]Infrastructure!AB1236","v":0},0,{"$f":"[1]Infrastructure!AC1236","v":0},{"$f":"[1]Infrastructure!AD1236","v":0},{"$f":"[1]Infrastructure!AE1236","v":0},{"$f":"[1]Infrastructure!AF1236","v":0},{"$f":"[1]Infrastructure!AG1236","v":0},{"$f":"[1]Infrastructure!AH1236","v":0},0]
[0,null,null,null,null,null,{"$f":"[1]Infrastructure!G1237","v":0},{"$f":"[1]Infrastructure!H1237","v":0},{"$f":"[1]Infrastructure!I1237","v":0},{"$f":"[1]Infrastructure!J1237","v":0},{"$f":"[1]Infrastructure!K1237","v":0},{"$f":"[1]Infrastructure!L1237","v":0},{"$f":"[1]Infrastructure!M1237","v":0},{"$f":"[1]Infrastructure!N1237","v":0},{"$f":"[1]Infrastructure!O1237","v":0},{"$f":"[1]Infrastructure!Q1237","v":0},{"$f":"[1]Infrastructure!R1237","v":0},{"$f":"[1]Infrastructure!T1237","v":0},{"$f":"[1]Infrastructure!W1237","v":0},{"$f":"[1]Infrastructure!W1237","v":0},0,{"$f":"[1]Infrastructure!Z1237","v":0},{"$f":"[1]Infrastructure!Z1237","v":0},0,{"$f":"[1]Infrastructure!AB1237","v":0},{"$f":"[1]Infrastructure!AB1237","v":0},0,{"$f":"[1]Infrastructure!AC1237","v":0},{"$f":"[1]Infrastructure!AD1237","v":0},{"$f":"[1]Infrastructure!AE1237","v":0},{"$f":"[1]Infrastructure!AF1237","v":0},{"$f":"[1]Infrastructure!AG1237","v":0},{"$f":"[1]Infrastructure!AH1237","v":0},0]
[0,null,null,null,null,null,{"$f":"[1]Infrastructure!G1238","v":0},{"$f":"[1]Infrastructure!H1238","v":0},{"$f":"[1]Infrastructure!I1238","v":0},{"$f":"[1]Infrastructure!J1238","v":0},{"$f":"[1]Infrastructure!K1238","v":0},{"$f":"[1]Infrastructure!L1238","v":0},{"$f":"[1]Infrastructure!M1238","v":0},{"$f":"[1]Infrastructure!N1238","v":0},{"$f":"[1]Infrastructure!O1238","v":0},{"$f":"[1]Infrastructure!Q1238","v":0},{"$f":"[1]Infrastructure!R1238","v":0},{"$f":"[1]Infrastructure!T1238","v":0},{"$f":"[1]Infrastructure!W1238","v":0},{"$f":"[1]Infrastructure!W1238","v":0},0,{"$f":"[1]Infrastructure!Z1238","v":0},{"$f":"[1]Infrastructure!Z1238","v":0},0,{"$f":"[1]Infrastructure!AB1238","v":0},{"$f":"[1]Infrastructure!AB1238","v":0},0,{"$f":"[1]Infrastructure!AC1238","v":0},{"$f":"[1]Infrastructure!AD1238","v":0},{"$f":"[1]Infrastructure!AE1238","v":0},{"$f":"[1]Infrastructure!AF1238","v":0},{"$f":"[1]Infrastructure!AG1238","v":0},{"$f":"[1]Infrastructure!AH1238","v":0},0]
[0,null,null,null,null,null,{"$f":"[1]Infrastructure!G1239","v":0},{"$f":"[1]Infrastructure!H1239","v":0},{"$f":"[1]Infrastructure!I1239","v":0},{"$f":"[1]Infrastructure!J1239","v":0},{"$f":"[1]Infrastructure!K1239","v":0},{"$f":"[1]Infrastructure!L1239","v":0},{"$f":"[1]Infrastructure!M1239","v":0},{"$f":"[1]Infrastructure!N1239","v":0},{"$f":"[1]Infrastructure!O1239","v":0},{"$f":"[1]Infrastructure!Q1239","v":0},{"$f":"[1]Infrastructure!R1239","v":0},{"$f":"[1]Infrastructure!T1239","v":0},{"$f":"[1]Infrastructure!W1239","v":0},{"$f":"[1]Infrastructure!W1239","v":0},0,{"$f":"[1]Infrastructure!Z1239","v":0},{"$f":"[1]Infrastructure!Z1239","v":0},0,{"$f":"[1]Infrastructure!AB1239","v":0},{"$f":"[1]Infrastructure!AB1239","v":0},0,{"$f":"[1]Infrastructure!AC1239","v":0},{"$f":"[1]Infrastructure!AD1239","v":0},{"$f":"[1]Infrastructure!AE1239","v":0},{"$f":"[1]Infrastructure!AF1239","v":0},{"$f":"[1]Infrastructure!AG1239","v":0},{"$f":"[1]Infrastructure!AH1239","v":0},0]
[0,null,null,null,null,null,{"$f":"[1]Infrastructure!G1240","v":0},{"$f":"[1]Infrastructure!H1240","v":0},{"$f":"[1]Infrastructure!I1240","v":0},{"$f":"[1]Infrastructure!J1240","v":0},{"$f":"[1]Infrastructure!K1240","v":0},{"$f":"[1]Infrastructure!L1240","v":0},{"$f":"[1]Infrastructure!M1240","v":0},{"$f":"[1]Infrastructure!N1240","v":0},{"$f":"[1]Infrastructure!O1240","v":0},{"$f":"[1]Infrastructure!Q1240","v":0},{"$f":"[1]Infrastructure!R1240","v":0},{"$f":"[1]Infrastructure!T1240","v":0},{"$f":"[1]Infrastructure!W1240","v":0},{"$f":"[1]Infrastructure!W1240","v":0},0,{"$f":"[1]Infrastructure!Z1240","v":0},{"$f":"[1]Infrastructure!Z1240","v":0},0,{"$f":"[1]Infrastructure!AB1240","v":0},{"$f":"[1]Infrastructure!AB1240","v":0},0,{"$f":"[1]Infrastructure!AC1240","v":0},{"$f":"[1]Infrastructure!AD1240","v":0},{"$f":"[1]Infrastructure!AE1240","v":0},{"$f":"[1]Infrastructure!AF1240","v":0},{"$f":"[1]Infrastructure!AG1240","v":0},{"$f":"[1]Infrastructure!AH1240","v":0},0]
[0,null,null,null,null,null,{"$f":"[1]Infrastructure!G1241","v":0},{"$f":"[1]Infrastructure!H1241","v":0},{"$f":"[1]Infrastructure!I1241","v":0},{"$f":"[1]Infrastructure!J1241","v":0},{"$f":"[1]Infrastructure!K1241","v":0},{"$f":"[1]Infrastructure!L1241","v":0},{"$f":"[1]Infrastructure!M1241","v":0},{"$f":"[1]Infrastructure!N1241","v":0},{"$f":"[1]Infrastructure!O1241","v":0},{"$f":"[1]Infrastructure!Q1241","v":0},{"$f":"[1]Infrastructure!R1241","v":0},{"$f":"[1]Infrastructure!T1241","v":0},{"$f":"[1]Infrastructure!W1241","v":0},{"$f":"[1]Infrastructure!W1241","v":0},0,{"$f":"[1]Infrastructure!Z1241","v":0},{"$f":"[1]Infrastructure!Z1241","v":0},0,{"$f":"[1]Infrastructure!AB1241","v":0},{"$f":"[1]Infrastructure!AB1241","v":0},0,{"$f":"[1]Infrastructure!AC1241","v":0},{"$f":"[1]Infrastructure!AD1241","v":0},{"$f":"[1]Infrastructure!AE1241","v":0},{"$f":"[1]Infrastructure!AF1241","v":0},{"$f":"[1]Infrastructure!AG1241","v":0},{"$f":"[1]Infrastructure!AH1241","v":0},0]
[0,null,null,null,null,null,{"$f":"[1]Infrastructure!G1242","v":0},{"$f":"[1]Infrastructure!H1242","v":0},{"$f":"[1]Infrastructure!I1242","v":0},{"$f":"[1]Infrastructure!J1242","v":0},{"$f":"[1]Infrastructure!K1242","v":0},{"$f":"[1]Infrastructure!L1242","v":0},{"$f":"[1]Infrastructure!M1242","v":0},{"$f":"[1]Infrastructure!N1242","v":0},{"$f":"[1]Infrastructure!O1242","v":0},{"$f":"[1]Infrastructure!Q1242","v":0},{"$f":"[1]Infrastructure!R1242","v":0},{"$f":"[1]Infrastructure!T1242","v":0},{"$f":"[1]Infrastructure!W1242","v":0},{"$f":"[1]Infrastructure!W1242","v":0},0,{"$f":"[1]Infrastructure!Z1242","v":0},{"$f":"[1]Infrastructure!Z1242","v":0},0,{"$f":"[1]Infrastructure!AB1242","v":0},{"$f":"[1]Infrastructure!AB1242","v":0},0,{"$f":"[1]Infrastructure!AC1242","v":0},{"$f":"[1]Infrastructure!AD1242","v":0},{"$f":"[1]Infrastructure!AE1242","v":0},{"$f":"[1]Infrastructure!AF1242","v":0},{"$f":"[1]Infrastructure!AG1242","v":0},{"$f":"[1]Infrastructure!AH1242","v":0},0]
[0,null,null,null,null,null,{"$f":"[1]Infrastructure!G1243","v":0},{"$f":"[1]Infrastructure!H1243","v":0},{"$f":"[1]Infrastructure!I1243","v":0},{"$f":"[1]Infrastructure!J1243","v":0},{"$f":"[1]Infrastructure!K1243","v":0},{"$f":"[1]Infrastructure!L1243","v":0},{"$f":"[1]Infrastructure!M1243","v":0},{"$f":"[1]Infrastructure!N1243","v":0},{"$f":"[1]Infrastructure!O1243","v":0},{"$f":"[1]Infrastructure!Q1243","v":0},{"$f":"[1]Infrastructure!R1243","v":0},{"$f":"[1]Infrastructure!T1243","v":0},{"$f":"[1]Infrastructure!W1243","v":0},{"$f":"[1]Infrastructure!W1243","v":0},0,{"$f":"[1]Infrastructure!Z1243","v":0},{"$f":"[1]Infrastructure!Z1243","v":0},0,{"$f":"[1]Infrastructure!AB1243","v":0},{"$f":"[1]Infrastructure!AB1243","v":0},0,{"$f":"[1]Infrastructure!AC1243","v":0},{"$f":"[1]Infrastructure!AD1243","v":0},{"$f":"[1]Infrastructure!AE1243","v":0},{"$f":"[1]Infrastructure!AF1243","v":0},{"$f":"[1]Infrastructure!AG1243","v":0},{"$f":"[1]Infrastructure!AH1243","v":0},0]
[0,null,null,null,null,null,{"$f":"[1]Infrastructure!G1244","v":0},{"$f":"[1]Infrastructure!H1244","v":0},{"$f":"[1]Infrastructure!I1244","v":0},{"$f":"[1]Infrastructure!J1244","v":0},{"$f":"[1]Infrastructure!K1244","v":0},{"$f":"[1]Infrastructure!L1244","v":0},{"$f":"[1]Infrastructure!M1244","v":0},{"$f":"[1]Infrastructure!N1244","v":0},{"$f":"[1]Infrastructure!O1244","v":0},{"$f":"[1]Infrastructure!Q1244","v":0},{"$f":"[1]Infrastructure!R1244","v":0},{"$f":"[1]Infrastructure!T1244","v":0},{"$f":"[1]Infrastructure!W1244","v":0},{"$f":"[1]Infrastructure!W1244","v":0},0,{"$f":"[1]Infrastructure!Z1244","v":0},{"$f":"[1]Infrastructure!Z1244","v":0},0,{"$f":"[1]Infrastructure!AB1244","v":0},{"$f":"[1]Infrastructure!AB1244","v":0},0,{"$f":"[1]Infrastructure!AC1244","v":0},{"$f":"[1]Infrastructure!AD1244","v":0},{"$f":"[1]Infrastructure!AE1244","v":0},{"$f":"[1]Infrastructure!AF1244","v":0},{"$f":"[1]Infrastructure!AG1244","v":0},{"$f":"[1]Infrastructure!AH1244","v":0},0]
[0,null,null,null,null,null,{"$f":"[1]Infrastructure!G1245","v":0},{"$f":"[1]Infrastructure!H1245","v":0},{"$f":"[1]Infrastructure!I1245","v":0},{"$f":"[1]Infrastructure!J1245","v":0},{"$f":"[1]Infrastructure!K1245","v":0},{"$f":"[1]Infrastructure!L1245","v":0},{"$f":"[1]Infrastructure!M1245","v":0},{"$f":"[1]Infrastructure!N1245","v":0},{"$f":"[1]Infrastructure!O1245","v":0},{"$f":"[1]Infrastructure!Q1245","v":0},{"$f":"[1]Infrastructure!R1245","v":0},{"$f":"[1]Infrastructure!T1245","v":0},{"$f":"[1]Infrastructure!W1245","v":0},{"$f":"[1]Infrastructure!W1245","v":0},0,{"$f":"[1]Infrastructure!Z1245","v":0},{"$f":"[1]Infrastructure!Z1245","v":0},0,{"$f":"[1]Infrastructure!AB1245","v":0},{"$f":"[1]Infrastructure!AB1245","v":0},0,{"$f":"[1]Infrastructure!AC1245","v":0},{"$f":"[1]Infrastructure!AD1245","v":0},{"$f":"[1]Infrastructure!AE1245","v":0},{"$f":"[1]Infrastructure!AF1245","v":0},{"$f":"[1]Infrastructure!AG1245","v":0},{"$f":"[1]Infrastructure!AH1245","v":0},0]
[0,null,null,null,null,null,{"$f":"[1]Infrastructure!G1246","v":0},{"$f":"[1]Infrastructure!H1246","v":0},{"$f":"[1]Infrastructure!I1246","v":0},{"$f":"[1]Infrastructure!J1246","v":0},{"$f":"[1]Infrastructure!K1246","v":0},{"$f":"[1]Infrastructure!L1246","v":0},{"$f":"[1]Infrastructure!M1246","v":0},{"$f":"[1]Infrastructure!N1246","v":0},{"$f":"[1]Infrastructure!O1246","v":0},{"$f":"[1]Infrastructure!Q1246","v":0},{"$f":"[1]Infrastructure!R1246","v":0},{"$f":"[1]Infrastructure!T1246","v":0},{"$f":"[1]Infrastructure!W1246","v":0},{"$f":"[1]Infrastructure!W1246","v":0},0,{"$f":"[1]Infrastructure!Z1246","v":0},{"$f":"[1]Infrastructure!Z1246","v":0},0,{"$f":"[1]Infrastructure!AB1246","v":0},{"$f":"[1]Infrastructure!AB1246","v":0},0,{"$f":"[1]Infrastructure!AC1246","v":0},{"$f":"[1]Infrastructure!AD1246","v":0},{"$f":"[1]Infrastructure!AE1246","v":0},{"$f":"[1]Infrastructure!AF1246","v":0},{"$f":"[1]Infrastructure!AG1246","v":0},{"$f":"[1]Infrastructure!AH1246","v":0},0]
[0,null,null,null,null,null,{"$f":"[1]Infrastructure!G1247","v":0},{"$f":"[1]Infrastructure!H1247","v":0},{"$f":"[1]Infrastructure!I1247","v":0},{"$f":"[1]Infrastructure!J1247","v":0},{"$f":"[1]Infrastructure!K1247","v":0},{"$f":"[1]Infrastructure!L1247","v":0},{"$f":"[1]Infrastructure!M1247","v":0},{"$f":"[1]Infrastructure!N1247","v":0},{"$f":"[1]Infrastructure!O1247","v":0},{"$f":"[1]Infrastructure!Q1247","v":0},{"$f":"[1]Infrastructure!R1247","v":0},{"$f":"[1]Infrastructure!T1247","v":0},{"$f":"[1]Infrastructure!W1247","v":0},{"$f":"[1]Infrastructure!W1247","v":0},0,{"$f":"[1]Infrastructure!Z1247","v":0},{"$f":"[1]Infrastructure!Z1247","v":0},0,{"$f":"[1]Infrastructure!AB1247","v":0},{"$f":"[1]Infrastructure!AB1247","v":0},0,{"$f":"[1]Infrastructure!AC1247","v":0},{"$f":"[1]Infrastructure!AD1247","v":0},{"$f":"[1]Infrastructure!AE1247","v":0},{"$f":"[1]Infrastructure!AF1247","v":0},{"$f":"[1]Infrastructure!AG1247","v":0},{"$f":"[1]Infrastructure!AH1247","v":0},0]
[0,null,null,null,null,null,{"$f":"[1]Infrastructure!G1248","v":0},{"$f":"[1]Infrastructure!H1248","v":0},{"$f":"[1]Infrastructure!I1248","v":0},{"$f":"[1]Infrastructure!J1248","v":0},{"$f":"[1]Infrastructure!K1248","v":0},{"$f":"[1]Infrastructure!L1248","v":0},{"$f":"[1]Infrastructure!M1248","v":0},{"$f":"[1]Infrastructure!N1248","v":0},{"$f":"[1]Infrastructure!O1248","v":0},{"$f":"[1]Infrastructure!Q1248","v":0},{"$f":"[1]Infrastructure!R1248","v":0},{"$f":"[1]Infrastructure!T1248","v":0},{"$f":"[1]Infrastructure!W1248","v":0},{"$f":"[1]Infrastructure!W1248","v":0},0,{"$f":"[1]Infrastructure!Z1248","v":0},{"$f":"[1]Infrastructure!Z1248","v":0},0,{"$f":"[1]Infrastructure!AB1248","v":0},{"$f":"[1]Infrastructure!AB1248","v":0},0,{"$f":"[1]Infrastructure!AC1248","v":0},{"$f":"[1]Infrastructure!AD1248","v":0},{"$f":"[1]Infrastructure!AE1248","v":0},{"$f":"[1]Infrastructure!AF1248","v":0},{"$f":"[1]Infrastructure!AG1248","v":0},{"$f":"[1]Infrastructure!AH1248","v":0},0]
[0,null,null,null,null,null,{"$f":"[1]Infrastructure!G1249","v":0},{"$f":"[1]Infrastructure!H1249","v":0},{"$f":"[1]Infrastructure!I1249","v":0},{"$f":"[1]Infrastructure!J1249","v":0},{"$f":"[1]Infrastructure!K1249","v":0},{"$f":"[1]Infrastructure!L1249","v":0},{"$f":"[1]Infrastructure!M1249","v":0},{"$f":"[1]Infrastructure!N1249","v":0},{"$f":"[1]Infrastructure!O1249","v":0},{"$f":"[1]Infrastructure!Q1249","v":0},{"$f":"[1]Infrastructure!R1249","v":0},{"$f":"[1]Infrastructure!T1249","v":0},{"$f":"[1]Infrastructure!W1249","v":0},{"$f":"[1]Infrastructure!W1249","v":0},0,{"$f":"[1]Infrastructure!Z1249","v":0},{"$f":"[1]Infrastructure!Z1249","v":0},0,{"$f":"[1]Infrastructure!AB1249","v":0},{"$f":"[1]Infrastructure!AB1249","v":0},0,{"$f":"[1]Infrastructure!AC1249","v":0},{"$f":"[1]Infrastructure!AD1249","v":0},{"$f":"[1]Infrastructure!AE1249","v":0},{"$f":"[1]Infrastructure!AF1249","v":0},{"$f":"[1]Infrastructure!AG1249","v":0},{"$f":"[1]Infrastructure!AH1249","v":0},0]
[0,null,null,null,null,null,{"$f":"[1]Infrastructure!G1250","v":0},{"$f":"[1]Infrastructure!H1250","v":0},{"$f":"[1]Infrastructure!I1250","v":0},{"$f":"[1]Infrastructure!J1250","v":0},{"$f":"[1]Infrastructure!K1250","v":0},{"$f":"[1]Infrastructure!L1250","v":0},{"$f":"[1]Infrastructure!M1250","v":0},{"$f":"[1]Infrastructure!N1250","v":0},{"$f":"[1]Infrastructure!O1250","v":0},{"$f":"[1]Infrastructure!Q1250","v":0},{"$f":"[1]Infrastructure!R1250","v":0},{"$f":"[1]Infrastructure!T1250","v":0},{"$f":"[1]Infrastructure!W1250","v":0},{"$f":"[1]Infrastructure!W1250","v":0},0,{"$f":"[1]Infrastructure!Z1250","v":0},{"$f":"[1]Infrastructure!Z1250","v":0},0,{"$f":"[1]Infrastructure!AB1250","v":0},{"$f":"[1]Infrastructure!AB1250","v":0},0,{"$f":"[1]Infrastructure!AC1250","v":0},{"$f":"[1]Infrastructure!AD1250","v":0},{"$f":"[1]Infrastructure!AE1250","v":0},{"$f":"[1]Infrastructure!AF1250","v":0},{"$f":"[1]Infrastructure!AG1250","v":0},{"$f":"[1]Infrastructure!AH1250","v":0},0]
[0,null,null,null,null,null,{"$f":"[1]Infrastructure!G1251","v":0},{"$f":"[1]Infrastructure!H1251","v":0},{"$f":"[1]Infrastructure!I1251","v":0},{"$f":"[1]Infrastructure!J1251","v":0},{"$f":"[1]Infrastructure!K1251","v":0},{"$f":"[1]Infrastructure!L1251","v":0},{"$f":"[1]Infrastructure!M1251","v":0},{"$f":"[1]Infrastructure!N1251","v":0},{"$f":"[1]Infrastructure!O1251","v":0},{"$f":"[1]Infrastructure!Q1251","v":0},{"$f":"[1]Infrastructure!R1251","v":0},{"$f":"[1]Infrastructure!T1251","v":0},{"$f":"[1]Infrastructure!W1251","v":0},{"$f":"[1]Infrastructure!W1251","v":0},0,{"$f":"[1]Infrastructure!Z1251","v":0},{"$f":"[1]Infrastructure!Z1251","v":0},0,{"$f":"[1]Infrastructure!AB1251","v":0},{"$f":"[1]Infrastructure!AB1251","v":0},0,{"$f":"[1]Infrastructure!AC1251","v":0},{"$f":"[1]Infrastructure!AD1251","v":0},{"$f":"[1]Infrastructure!AE1251","v":0},{"$f":"[1]Infrastructure!AF1251","v":0},{"$f":"[1]Infrastructure!AG1251","v":0},{"$f":"[1]Infrastructure!AH1251","v":0},0]
[0,null,null,null,null,null,{"$f":"[1]Infrastructure!G1252","v":0},{"$f":"[1]Infrastructure!H1252","v":0},{"$f":"[1]Infrastructure!I1252","v":0},{"$f":"[1]Infrastructure!J1252","v":0},{"$f":"[1]Infrastructure!K1252","v":0},{"$f":"[1]Infrastructure!L1252","v":0},{"$f":"[1]Infrastructure!M1252","v":0},{"$f":"[1]Infrastructure!N1252","v":0},{"$f":"[1]Infrastructure!O1252","v":0},{"$f":"[1]Infrastructure!Q1252","v":0},{"$f":"[1]Infrastructure!R1252","v":0},{"$f":"[1]Infrastructure!T1252","v":0},{"$f":"[1]Infrastructure!W1252","v":0},{"$f":"[1]Infrastructure!W1252","v":0},0,{"$f":"[1]Infrastructure!Z1252","v":0},{"$f":"[1]Infrastructure!Z1252","v":0},0,{"$f":"[1]Infrastructure!AB1252","v":0},{"$f":"[1]Infrastructure!AB1252","v":0},0,{"$f":"[1]Infrastructure!AC1252","v":0},{"$f":"[1]Infrastructure!AD1252","v":0},{"$f":"[1]Infrastructure!AE1252","v":0},{"$f":"[1]Infrastructure!AF1252","v":0},{"$f":"[1]Infrastructure!AG1252","v":0},{"$f":"[1]Infrastructure!AH1252","v":0},0]
[0,null,null,null,null,null,{"$f":"[1]Infrastructure!G1253","v":0},{"$f":"[1]Infrastructure!H1253","v":0},{"$f":"[1]Infrastructure!I1253","v":0},{"$f":"[1]Infrastructure!J1253","v":0},{"$f":"[1]Infrastructure!K1253","v":0},{"$f":"[1]Infrastructure!L1253","v":0},{"$f":"[1]Infrastructure!M1253","v":0},{"$f":"[1]Infrastructure!N1253","v":0},{"$f":"[1]Infrastructure!O1253","v":0},{"$f":"[1]Infrastructure!Q1253","v":0},{"$f":"[1]Infrastructure!R1253","v":0},{"$f":"[1]Infrastructure!T1253","v":0},{"$f":"[1]Infrastructure!W1253","v":0},{"$f":"[1]Infrastructure!W1253","v":0},0,{"$f":"[1]Infrastructure!Z1253","v":0},{"$f":"[1]Infrastructure!Z1253","v":0},0,{"$f":"[1]Infrastructure!AB1253","v":0},{"$f":"[1]Infrastructure!AB1253","v":0},0,{"$f":"[1]Infrastructure!AC1253","v":0},{"$f":"[1]Infrastructure!AD1253","v":0},{"$f":"[1]Infrastructure!AE1253","v":0},{"$f":"[1]Infrastructure!AF1253","v":0},{"$f":"[1]Infrastructure!AG1253","v":0},{"$f":"[1]Infrastructure!AH1253","v":0},0]
[0,null,null,null,null,null,{"$f":"[1]Infrastructure!G1254","v":0},{"$f":"[1]Infrastructure!H1254","v":0},{"$f":"[1]Infrastructure!I1254","v":0},{"$f":"[1]Infrastructure!J1254","v":0},{"$f":"[1]Infrastructure!K1254","v":0},{"$f":"[1]Infrastructure!L1254","v":0},{"$f":"[1]Infrastructure!M1254","v":0},{"$f":"[1]Infrastructure!N1254","v":0},{"$f":"[1]Infrastructure!O1254","v":0},{"$f":"[1]Infrastructure!Q1254","v":0},{"$f":"[1]Infrastructure!R1254","v":0},{"$f":"[1]Infrastructure!T1254","v":0},{"$f":"[1]Infrastructure!W1254","v":0},{"$f":"[1]Infrastructure!W1254","v":0},0,{"$f":"[1]Infrastructure!Z1254","v":0},{"$f":"[1]Infrastructure!Z1254","v":0},0,{"$f":"[1]Infrastructure!AB1254","v":0},{"$f":"[1]Infrastructure!AB1254","v":0},0,{"$f":"[1]Infrastructure!AC1254","v":0},{"$f":"[1]Infrastructure!AD1254","v":0},{"$f":"[1]Infrastructure!AE1254","v":0},{"$f":"[1]Infrastructure!AF1254","v":0},{"$f":"[1]Infrastructure!AG1254","v":0},{"$f":"[1]Infrastructure!AH1254","v":0},0]
[0,null,null,null,null,null,{"$f":"[1]Infrastructure!G1255","v":0},{"$f":"[1]Infrastructure!H1255","v":0},{"$f":"[1]Infrastructure!I1255","v":0},{"$f":"[1]Infrastructure!J1255","v":0},{"$f":"[1]Infrastructure!K1255","v":0},{"$f":"[1]Infrastructure!L1255","v":0},{"$f":"[1]Infrastructure!M1255","v":0},{"$f":"[1]Infrastructure!N1255","v":0},{"$f":"[1]Infrastructure!O1255","v":0},{"$f":"[1]Infrastructure!Q1255","v":0},{"$f":"[1]Infrastructure!R1255","v":0},{"$f":"[1]Infrastructure!T1255","v":0},{"$f":"[1]Infrastructure!W1255","v":0},{"$f":"[1]Infrastructure!W1255","v":0},0,{"$f":"[1]Infrastructure!Z1255","v":0},{"$f":"[1]Infrastructure!Z1255","v":0},0,{"$f":"[1]Infrastructure!AB1255","v":0},{"$f":"[1]Infrastructure!AB1255","v":0},0,{"$f":"[1]Infrastructure!AC1255","v":0},{"$f":"[1]Infrastructure!AD1255","v":0},{"$f":"[1]Infrastructure!AE1255","v":0},{"$f":"[1]Infrastructure!AF1255","v":0},{"$f":"[1]Infrastructure!AG1255","v":0},{"$f":"[1]Infrastructure!AH1255","v":0},0]
[0,null,null,null,null,null,{"$f":"[1]Infrastructure!G1256","v":0},{"$f":"[1]Infrastructure!H1256","v":0},{"$f":"[1]Infrastructure!I1256","v":0},{"$f":"[1]Infrastructure!J1256","v":0},{"$f":"[1]Infrastructure!K1256","v":0},{"$f":"[1]Infrastructure!L1256","v":0},{"$f":"[1]Infrastructure!M1256","v":0},{"$f":"[1]Infrastructure!N1256","v":0},{"$f":"[1]Infrastructure!O1256","v":0},{"$f":"[1]Infrastructure!Q1256","v":0},{"$f":"[1]Infrastructure!R1256","v":0},{"$f":"[1]Infrastructure!T1256","v":0},{"$f":"[1]Infrastructure!W1256","v":0},{"$f":"[1]Infrastructure!W1256","v":0},0,{"$f":"[1]Infrastructure!Z1256","v":0},{"$f":"[1]Infrastructure!Z1256","v":0},0,{"$f":"[1]Infrastructure!AB1256","v":0},{"$f":"[1]Infrastructure!AB1256","v":0},0,{"$f":"[1]Infrastructure!AC1256","v":0},{"$f":"[1]Infrastructure!AD1256","v":0},{"$f":"[1]Infrastructure!AE1256","v":0},{"$f":"[1]Infrastructure!AF1256","v":0},{"$f":"[1]Infrastructure!AG1256","v":0},{"$f":"[1]Infrastructure!AH1256","v":0},0]
[0,null,null,null,null,null,{"$f":"[1]Infrastructure!G1257","v":0},{"$f":"[1]Infrastructure!H1257","v":0},{"$f":"[1]Infrastructure!I1257","v":0},{"$f":"[1]Infrastructure!J1257","v":0},{"$f":"[1]Infrastructure!K1257","v":0},{"$f":"[1]Infrastructure!L1257","v":0},{"$f":"[1]Infrastructure!M1257","v":0},{"$f":"[1]Infrastructure!N1257","v":0},{"$f":"[1]Infrastructure!O1257","v":0},{"$f":"[1]Infrastructure!Q1257","v":0},{"$f":"[1]Infrastructure!R1257","v":0},{"$f":"[1]Infrastructure!T1257","v":0},{"$f":"[1]Infrastructure!W1257","v":0},{"$f":"[1]Infrastructure!W1257","v":0},0,{"$f":"[1]Infrastructure!Z1257","v":0},{"$f":"[1]Infrastructure!Z1257","v":0},0,{"$f":"[1]Infrastructure!AB1257","v":0},{"$f":"[1]Infrastructure!AB1257","v":0},0,{"$f":"[1]Infrastructure!AC1257","v":0},{"$f":"[1]Infrastructure!AD1257","v":0},{"$f":"[1]Infrastructure!AE1257","v":0},{"$f":"[1]Infrastructure!AF1257","v":0},{"$f":"[1]Infrastructure!AG1257","v":0},{"$f":"[1]Infrastructure!AH1257","v":0},0]
[0,null,null,null,null,null,{"$f":"[1]Infrastructure!G1258","v":0},{"$f":"[1]Infrastructure!H1258","v":0},{"$f":"[1]Infrastructure!I1258","v":0},{"$f":"[1]Infrastructure!J1258","v":0},{"$f":"[1]Infrastructure!K1258","v":0},{"$f":"[1]Infrastructure!L1258","v":0},{"$f":"[1]Infrastructure!M1258","v":0},{"$f":"[1]Infrastructure!N1258","v":0},{"$f":"[1]Infrastructure!O1258","v":0},{"$f":"[1]Infrastructure!Q1258","v":0},{"$f":"[1]Infrastructure!R1258","v":0},{"$f":"[1]Infrastructure!T1258","v":0},{"$f":"[1]Infrastructure!W1258","v":0},{"$f":"[1]Infrastructure!W1258","v":0},0,{"$f":"[1]Infrastructure!Z1258","v":0},{"$f":"[1]Infrastructure!Z1258","v":0},0,{"$f":"[1]Infrastructure!AB1258","v":0},{"$f":"[1]Infrastructure!AB1258","v":0},0,{"$f":"[1]Infrastructure!AC1258","v":0},{"$f":"[1]Infrastructure!AD1258","v":0},{"$f":"[1]Infrastructure!AE1258","v":0},{"$f":"[1]Infrastructure!AF1258","v":0},{"$f":"[1]Infrastructure!AG1258","v":0},{"$f":"[1]Infrastructure!AH1258","v":0},0]
[0,null,null,null,null,null,{"$f":"[1]Infrastructure!G1259","v":0},{"$f":"[1]Infrastructure!H1259","v":0},{"$f":"[1]Infrastructure!I1259","v":0},{"$f":"[1]Infrastructure!J1259","v":0},{"$f":"[1]Infrastructure!K1259","v":0},{"$f":"[1]Infrastructure!L1259","v":0},{"$f":"[1]Infrastructure!M1259","v":0},{"$f":"[1]Infrastructure!N1259","v":0},{"$f":"[1]Infrastructure!O1259","v":0},{"$f":"[1]Infrastructure!Q1259","v":0},{"$f":"[1]Infrastructure!R1259","v":0},{"$f":"[1]Infrastructure!T1259","v":0},{"$f":"[1]Infrastructure!W1259","v":0},{"$f":"[1]Infrastructure!W1259","v":0},0,{"$f":"[1]Infrastructure!Z1259","v":0},{"$f":"[1]Infrastructure!Z1259","v":0},0,{"$f":"[1]Infrastructure!AB1259","v":0},{"$f":"[1]Infrastructure!AB1259","v":0},0,{"$f":"[1]Infrastructure!AC1259","v":0},{"$f":"[1]Infrastructure!AD1259","v":0},{"$f":"[1]Infrastructure!AE1259","v":0},{"$f":"[1]Infrastructure!AF1259","v":0},{"$f":"[1]Infrastructure!AG1259","v":0},{"$f":"[1]Infrastructure!AH1259","v":0},0]
[0,null,null,null,null,null,{"$f":"[1]Infrastructure!G1260","v":0},{"$f":"[1]Infrastructure!H1260","v":0},{"$f":"[1]Infrastructure!I1260","v":0},{"$f":"[1]Infrastructure!J1260","v":0},{"$f":"[1]Infrastructure!K1260","v":0},{"$f":"[1]Infrastructure!L1260","v":0},{"$f":"[1]Infrastructure!M1260","v":0},{"$f":"[1]Infrastructure!N1260","v":0},{"$f":"[1]Infrastructure!O1260","v":0},{"$f":"[1]Infrastructure!Q1260","v":0},{"$f":"[1]Infrastructure!R1260","v":0},{"$f":"[1]Infrastructure!T1260","v":0},{"$f":"[1]Infrastructure!W1260","v":0},{"$f":"[1]Infrastructure!W1260","v":0},0,{"$f":"[1]Infrastructure!Z1260","v":0},{"$f":"[1]Infrastructure!Z1260","v":0},0,{"$f":"[1]Infrastructure!AB1260","v":0},{"$f":"[1]Infrastructure!AB1260","v":0},0,{"$f":"[1]Infrastructure!AC1260","v":0},{"$f":"[1]Infrastructure!AD1260","v":0},{"$f":"[1]Infrastructure!AE1260","v":0},{"$f":"[1]Infrastructure!AF1260","v":0},{"$f":"[1]Infrastructure!AG1260","v":0},{"$f":"[1]Infrastructure!AH1260","v":0},0]
[0,null,null,null,null,null,{"$f":"[1]Infrastructure!G1261","v":0},{"$f":"[1]Infrastructure!H1261","v":0},{"$f":"[1]Infrastructure!I1261","v":0},{"$f":"[1]Infrastructure!J1261","v":0},{"$f":"[1]Infrastructure!K1261","v":0},{"$f":"[1]Infrastructure!L1261","v":0},{"$f":"[1]Infrastructure!M1261","v":0},{"$f":"[1]Infrastructure!N1261","v":0},{"$f":"[1]Infrastructure!O1261","v":0},{"$f":"[1]Infrastructure!Q1261","v":0},{"$f":"[1]Infrastructure!R1261","v":0},{"$f":"[1]Infrastructure!T1261","v":0},{"$f":"[1]Infrastructure!W1261","v":0},{"$f":"[1]Infrastructure!W1261","v":0},0,{"$f":"[1]Infrastructure!Z1261","v":0},{"$f":"[1]Infrastructure!Z1261","v":0},0,{"$f":"[1]Infrastructure!AB1261","v":0},{"$f":"[1]Infrastructure!AB1261","v":0},0,{"$f":"[1]Infrastructure!AC1261","v":0},{"$f":"[1]Infrastructure!AD1261","v":0},{"$f":"[1]Infrastructure!AE1261","v":0},{"$f":"[1]Infrastructure!AF1261","v":0},{"$f":"[1]Infrastructure!AG1261","v":0},{"$f":"[1]Infrastructure!AH1261","v":0},0]
[0,null,null,null,null,null,{"$f":"[1]Infrastructure!G1262","v":0},{"$f":"[1]Infrastructure!H1262","v":0},{"$f":"[1]Infrastructure!I1262","v":0},{"$f":"[1]Infrastructure!J1262","v":0},{"$f":"[1]Infrastructure!K1262","v":0},{"$f":"[1]Infrastructure!L1262","v":0},{"$f":"[1]Infrastructure!M1262","v":0},{"$f":"[1]Infrastructure!N1262","v":0},{"$f":"[1]Infrastructure!O1262","v":0},{"$f":"[1]Infrastructure!Q1262","v":0},{"$f":"[1]Infrastructure!R1262","v":0},{"$f":"[1]Infrastructure!T1262","v":0},{"$f":"[1]Infrastructure!W1262","v":0},{"$f":"[1]Infrastructure!W1262","v":0},0,{"$f":"[1]Infrastructure!Z1262","v":0},{"$f":"[1]Infrastructure!Z1262","v":0},0,{"$f":"[1]Infrastructure!AB1262","v":0},{"$f":"[1]Infrastructure!AB1262","v":0},0,{"$f":"[1]Infrastructure!AC1262","v":0},{"$f":"[1]Infrastructure!AD1262","v":0},{"$f":"[1]Infrastructure!AE1262","v":0},{"$f":"[1]Infrastructure!AF1262","v":0},{"$f":"[1]Infrastructure!AG1262","v":0},{"$f":"[1]Infrastructure!AH1262","v":0},0]
[0,null,null,null,null,null,{"$f":"[1]Infrastructure!G1263","v":0},{"$f":"[1]Infrastructure!H1263","v":0},{"$f":"[1]Infrastructure!I1263","v":0},{"$f":"[1]Infrastructure!J1263","v":0},{"$f":"[1]Infrastructure!K1263","v":0},{"$f":"[1]Infrastructure!L1263","v":0},{"$f":"[1]Infrastructure!M1263","v":0},{"$f":"[1]Infrastructure!N1263","v":0},{"$f":"[1]Infrastructure!O1263","v":0},{"$f":"[1]Infrastructure!Q1263","v":0},{"$f":"[1]Infrastructure!R1263","v":0},{"$f":"[1]Infrastructure!T1263","v":0},{"$f":"[1]Infrastructure!W1263","v":0},{"$f":"[1]Infrastructure!W1263","v":0},0,{"$f":"[1]Infrastructure!Z1263","v":0},{"$f":"[1]Infrastructure!Z1263","v":0},0,{"$f":"[1]Infrastructure!AB1263","v":0},{"$f":"[1]Infrastructure!AB1263","v":0},0,{"$f":"[1]Infrastructure!AC1263","v":0},{"$f":"[1]Infrastructure!AD1263","v":0},{"$f":"[1]Infrastructure!AE1263","v":0},{"$f":"[1]Infrastructure!AF1263","v":0},{"$f":"[1]Infrastructure!AG1263","v":0},{"$f":"[1]Infrastructure!AH1263","v":0},0]
[0,null,null,null,null,null,{"$f":"[1]Infrastructure!G1264","v":0},{"$f":"[1]Infrastructure!H1264","v":0},{"$f":"[1]Infrastructure!I1264","v":0},{"$f":"[1]Infrastructure!J1264","v":0},{"$f":"[1]Infrastructure!K1264","v":0},{"$f":"[1]Infrastructure!L1264","v":0},{"$f":"[1]Infrastructure!M1264","v":0},{"$f":"[1]Infrastructure!N1264","v":0},{"$f":"[1]Infrastructure!O1264","v":0},{"$f":"[1]Infrastructure!Q1264","v":0},{"$f":"[1]Infrastructure!R1264","v":0},{"$f":"[1]Infrastructure!T1264","v":0},{"$f":"[1]Infrastructure!W1264","v":0},{"$f":"[1]Infrastructure!W1264","v":0},0,{"$f":"[1]Infrastructure!Z1264","v":0},{"$f":"[1]Infrastructure!Z1264","v":0},0,{"$f":"[1]Infrastructure!AB1264","v":0},{"$f":"[1]Infrastructure!AB1264","v":0},0,{"$f":"[1]Infrastructure!AC1264","v":0},{"$f":"[1]Infrastructure!AD1264","v":0},{"$f":"[1]Infrastructure!AE1264","v":0},{"$f":"[1]Infrastructure!AF1264","v":0},{"$f":"[1]Infrastructure!AG1264","v":0},{"$f":"[1]Infrastructure!AH1264","v":0},0]
[0,null,null,null,null,null,{"$f":"[1]Infrastructure!G1265","v":0},{"$f":"[1]Infrastructure!H1265","v":0},{"$f":"[1]Infrastructure!I1265","v":0},{"$f":"[1]Infrastructure!J1265","v":0},{"$f":"[1]Infrastructure!K1265","v":0},{"$f":"[1]Infrastructure!L1265","v":0},{"$f":"[1]Infrastructure!M1265","v":0},{"$f":"[1]Infrastructure!N1265","v":0},{"$f":"[1]Infrastructure!O1265","v":0},{"$f":"[1]Infrastructure!Q1265","v":0},{"$f":"[1]Infrastructure!R1265","v":0},{"$f":"[1]Infrastructure!T1265","v":0},{"$f":"[1]Infrastructure!W1265","v":0},{"$f":"[1]Infrastructure!W1265","v":0},0,{"$f":"[1]Infrastructure!Z1265","v":0},{"$f":"[1]Infrastructure!Z1265","v":0},0,{"$f":"[1]Infrastructure!AB1265","v":0},{"$f":"[1]Infrastructure!AB1265","v":0},0,{"$f":"[1]Infrastructure!AC1265","v":0},{"$f":"[1]Infrastructure!AD1265","v":0},{"$f":"[1]Infrastructure!AE1265","v":0},{"$f":"[1]Infrastructure!AF1265","v":0},{"$f":"[1]Infrastructure!AG1265","v":0},{"$f":"[1]Infrastructure!AH1265","v":0},0]
[0,null,null,null,null,null,{"$f":"[1]Infrastructure!G1266","v":0},{"$f":"[1]Infrastructure!H1266","v":0},{"$f":"[1]Infrastructure!I1266","v":0},{"$f":"[1]Infrastructure!J1266","v":0},{"$f":"[1]Infrastructure!K1266","v":0},{"$f":"[1]Infrastructure!L1266","v":0},{"$f":"[1]Infrastructure!M1266","v":0},{"$f":"[1]Infrastructure!N1266","v":0},{"$f":"[1]Infrastructure!O1266","v":0},{"$f":"[1]Infrastructure!Q1266","v":0},{"$f":"[1]Infrastructure!R1266","v":0},{"$f":"[1]Infrastructure!T1266","v":0},{"$f":"[1]Infrastructure!W1266","v":0},{"$f":"[1]Infrastructure!W1266","v":0},0,{"$f":"[1]Infrastructure!Z1266","v":0},{"$f":"[1]Infrastructure!Z1266","v":0},0,{"$f":"[1]Infrastructure!AB1266","v":0},{"$f":"[1]Infrastructure!AB1266","v":0},0,{"$f":"[1]Infrastructure!AC1266","v":0},{"$f":"[1]Infrastructure!AD1266","v":0},{"$f":"[1]Infrastructure!AE1266","v":0},{"$f":"[1]Infrastructure!AF1266","v":0},{"$f":"[1]Infrastructure!AG1266","v":0},{"$f":"[1]Infrastructure!AH1266","v":0},0]
[0,null,null,null,null,null,{"$f":"[1]Infrastructure!G1267","v":0},{"$f":"[1]Infrastructure!H1267","v":0},{"$f":"[1]Infrastructure!I1267","v":0},{"$f":"[1]Infrastructure!J1267","v":0},{"$f":"[1]Infrastructure!K1267","v":0},{"$f":"[1]Infrastructure!L1267","v":0},{"$f":"[1]Infrastructure!M1267","v":0},{"$f":"[1]Infrastructure!N1267","v":0},{"$f":"[1]Infrastructure!O1267","v":0},{"$f":"[1]Infrastructure!Q1267","v":0},{"$f":"[1]Infrastructure!R1267","v":0},{"$f":"[1]Infrastructure!T1267","v":0},{"$f":"[1]Infrastructure!W1267","v":0},{"$f":"[1]Infrastructure!W1267","v":0},0,{"$f":"[1]Infrastructure!Z1267","v":0},{"$f":"[1]Infrastructure!Z1267","v":0},0,{"$f":"[1]Infrastructure!AB1267","v":0},{"$f":"[1]Infrastructure!AB1267","v":0},0,{"$f":"[1]Infrastructure!AC1267","v":0},{"$f":"[1]Infrastructure!AD1267","v":0},{"$f":"[1]Infrastructure!AE1267","v":0},{"$f":"[1]Infrastructure!AF1267","v":0},{"$f":"[1]Infrastructure!AG1267","v":0},{"$f":"[1]Infrastructure!AH1267","v":0},0]
[0,null,null,null,null,null,{"$f":"[1]Infrastructure!G1268","v":0},{"$f":"[1]Infrastructure!H1268","v":0},{"$f":"[1]Infrastructure!I1268","v":0},{"$f":"[1]Infrastructure!J1268","v":0},{"$f":"[1]Infrastructure!K1268","v":0},{"$f":"[1]Infrastructure!L1268","v":0},{"$f":"[1]Infrastructure!M1268","v":0},{"$f":"[1]Infrastructure!N1268","v":0},{"$f":"[1]Infrastructure!O1268","v":0},{"$f":"[1]Infrastructure!Q1268","v":0},{"$f":"[1]Infrastructure!R1268","v":0},{"$f":"[1]Infrastructure!T1268","v":0},{"$f":"[1]Infrastructure!W1268","v":0},{"$f":"[1]Infrastructure!W1268","v":0},0,{"$f":"[1]Infrastructure!Z1268","v":0},{"$f":"[1]Infrastructure!Z1268","v":0},0,{"$f":"[1]Infrastructure!AB1268","v":0},{"$f":"[1]Infrastructure!AB1268","v":0},0,{"$f":"[1]Infrastructure!AC1268","v":0},{"$f":"[1]Infrastructure!AD1268","v":0},{"$f":"[1]Infrastructure!AE1268","v":0},{"$f":"[1]Infrastructure!AF1268","v":0},{"$f":"[1]Infrastructure!AG1268","v":0},{"$f":"[1]Infrastructure!AH1268","v":0},0]
[0,null,null,null,null,null,{"$f":"[1]Infrastructure!G1269","v":0},{"$f":"[1]Infrastructure!H1269","v":0},{"$f":"[1]Infrastructure!I1269","v":0},{"$f":"[1]Infrastructure!J1269","v":0},{"$f":"[1]Infrastructure!K1269","v":0},{"$f":"[1]Infrastructure!L1269","v":0},{"$f":"[1]Infrastructure!M1269","v":0},{"$f":"[1]Infrastructure!N1269","v":0},{"$f":"[1]Infrastructure!O1269","v":0},{"$f":"[1]Infrastructure!Q1269","v":0},{"$f":"[1]Infrastructure!R1269","v":0},{"$f":"[1]Infrastructure!T1269","v":0},{"$f":"[1]Infrastructure!W1269","v":0},{"$f":"[1]Infrastructure!W1269","v":0},0,{"$f":"[1]Infrastructure!Z1269","v":0},{"$f":"[1]Infrastructure!Z1269","v":0},0,{"$f":"[1]Infrastructure!AB1269","v":0},{"$f":"[1]Infrastructure!AB1269","v":0},0,{"$f":"[1]Infrastructure!AC1269","v":0},{"$f":"[1]Infrastructure!AD1269","v":0},{"$f":"[1]Infrastructure!AE1269","v":0},{"$f":"[1]Infrastructure!AF1269","v":0},{"$f":"[1]Infrastructure!AG1269","v":0},{"$f":"[1]Infrastructure!AH1269","v":0},0]
[0,null,null,null,null,null,{"$f":"[1]Infrastructure!G1270","v":0},{"$f":"[1]Infrastructure!H1270","v":0},{"$f":"[1]Infrastructure!I1270","v":0},{"$f":"[1]Infrastructure!J1270","v":0},{"$f":"[1]Infrastructure!K1270","v":0},{"$f":"[1]Infrastructure!L1270","v":0},{"$f":"[1]Infrastructure!M1270","v":0},{"$f":"[1]Infrastructure!N1270","v":0},{"$f":"[1]Infrastructure!O1270","v":0},{"$f":"[1]Infrastructure!Q1270","v":0},{"$f":"[1]Infrastructure!R1270","v":0},{"$f":"[1]Infrastructure!T1270","v":0},{"$f":"[1]Infrastructure!W1270","v":0},{"$f":"[1]Infrastructure!W1270","v":0},0,{"$f":"[1]Infrastructure!Z1270","v":0},{"$f":"[1]Infrastructure!Z1270","v":0},0,{"$f":"[1]Infrastructure!AB1270","v":0},{"$f":"[1]Infrastructure!AB1270","v":0},0,{"$f":"[1]Infrastructure!AC1270","v":0},{"$f":"[1]Infrastructure!AD1270","v":0},{"$f":"[1]Infrastructure!AE1270","v":0},{"$f":"[1]Infrastructure!AF1270","v":0},{"$f":"[1]Infrastructure!AG1270","v":0},{"$f":"[1]Infrastructure!AH1270","v":0},0]
[0,null,null,null,null,null,{"$f":"[1]Infrastructure!G1271","v":0},{"$f":"[1]Infrastructure!H1271","v":0},{"$f":"[1]Infrastructure!I1271","v":0},{"$f":"[1]Infrastructure!J1271","v":0},{"$f":"[1]Infrastructure!K1271","v":0},{"$f":"[1]Infrastructure!L1271","v":0},{"$f":"[1]Infrastructure!M1271","v":0},{"$f":"[1]Infrastructure!N1271","v":0},{"$f":"[1]Infrastructure!O1271","v":0},{"$f":"[1]Infrastructure!Q1271","v":0},{"$f":"[1]Infrastructure!R1271","v":0},{"$f":"[1]Infrastructure!T1271","v":0},{"$f":"[1]Infrastructure!W1271","v":0},{"$f":"[1]Infrastructure!W1271","v":0},0,{"$f":"[1]Infrastructure!Z1271","v":0},{"$f":"[1]Infrastructure!Z1271","v":0},0,{"$f":"[1]Infrastructure!AB1271","v":0},{"$f":"[1]Infrastructure!AB1271","v":0},0,{"$f":"[1]Infrastructure!AC1271","v":0},{"$f":"[1]Infrastructure!AD1271","v":0},{"$f":"[1]Infrastructure!AE1271","v":0},{"$f":"[1]Infrastructure!AF1271","v":0},{"$f":"[1]Infrastructure!AG1271","v":0},{"$f":"[1]Infrastructure!AH1271","v":0},0]
[0,null,null,null,null,null,{"$f":"[1]Infrastructure!G1272","v":0},{"$f":"[1]Infrastructure!H1272","v":0},{"$f":"[1]Infrastructure!I1272","v":0},{"$f":"[1]Infrastructure!J1272","v":0},{"$f":"[1]Infrastructure!K1272","v":0},{"$f":"[1]Infrastructure!L1272","v":0},{"$f":"[1]Infrastructure!M1272","v":0},{"$f":"[1]Infrastructure!N1272","v":0},{"$f":"[1]Infrastructure!O1272","v":0},{"$f":"[1]Infrastructure!Q1272","v":0},{"$f":"[1]Infrastructure!R1272","v":0},{"$f":"[1]Infrastructure!T1272","v":0},{"$f":"[1]Infrastructure!W1272","v":0},{"$f":"[1]Infrastructure!W1272","v":0},0,{"$f":"[1]Infrastructure!Z1272","v":0},{"$f":"[1]Infrastructure!Z1272","v":0},0,{"$f":"[1]Infrastructure!AB1272","v":0},{"$f":"[1]Infrastructure!AB1272","v":0},0,{"$f":"[1]Infrastructure!AC1272","v":0},{"$f":"[1]Infrastructure!AD1272","v":0},{"$f":"[1]Infrastructure!AE1272","v":0},{"$f":"[1]Infrastructure!AF1272","v":0},{"$f":"[1]Infrastructure!AG1272","v":0},{"$f":"[1]Infrastructure!AH1272","v":0},0]
[0,null,null,null,null,null,{"$f":"[1]Infrastructure!G1273","v":0},{"$f":"[1]Infrastructure!H1273","v":0},{"$f":"[1]Infrastructure!I1273","v":0},{"$f":"[1]Infrastructure!J1273","v":0},{"$f":"[1]Infrastructure!K1273","v":0},{"$f":"[1]Infrastructure!L1273","v":0},{"$f":"[1]Infrastructure!M1273","v":0},{"$f":"[1]Infrastructure!N1273","v":0},{"$f":"[1]Infrastructure!O1273","v":0},{"$f":"[1]Infrastructure!Q1273","v":0},{"$f":"[1]Infrastructure!R1273","v":0},{"$f":"[1]Infrastructure!T1273","v":0},{"$f":"[1]Infrastructure!W1273","v":0},{"$f":"[1]Infrastructure!W1273","v":0},0,{"$f":"[1]Infrastructure!Z1273","v":0},{"$f":"[1]Infrastructure!Z1273","v":0},0,{"$f":"[1]Infrastructure!AB1273","v":0},{"$f":"[1]Infrastructure!AB1273","v":0},0,{"$f":"[1]Infrastructure!AC1273","v":0},{"$f":"[1]Infrastructure!AD1273","v":0},{"$f":"[1]Infrastructure!AE1273","v":0},{"$f":"[1]Infrastructure!AF1273","v":0},{"$f":"[1]Infrastructure!AG1273","v":0},{"$f":"[1]Infrastructure!AH1273","v":0},0]
[0,null,null,null,null,null,{"$f":"[1]Infrastructure!G1274","v":0},{"$f":"[1]Infrastructure!H1274","v":0},{"$f":"[1]Infrastructure!I1274","v":0},{"$f":"[1]Infrastructure!J1274","v":0},{"$f":"[1]Infrastructure!K1274","v":0},{"$f":"[1]Infrastructure!L1274","v":0},{"$f":"[1]Infrastructure!M1274","v":0},{"$f":"[1]Infrastructure!N1274","v":0},{"$f":"[1]Infrastructure!O1274","v":0},{"$f":"[1]Infrastructure!Q1274","v":0},{"$f":"[1]Infrastructure!R1274","v":0},{"$f":"[1]Infrastructure!T1274","v":0},{"$f":"[1]Infrastructure!W1274","v":0},{"$f":"[1]Infrastructure!W1274","v":0},0,{"$f":"[1]Infrastructure!Z1274","v":0},{"$f":"[1]Infrastructure!Z1274","v":0},0,{"$f":"[1]Infrastructure!AB1274","v":0},{"$f":"[1]Infrastructure!AB1274","v":0},0,{"$f":"[1]Infrastructure!AC1274","v":0},{"$f":"[1]Infrastructure!AD1274","v":0},{"$f":"[1]Infrastructure!AE1274","v":0},{"$f":"[1]Infrastructure!AF1274","v":0},{"$f":"[1]Infrastructure!AG1274","v":0},{"$f":"[1]Infrastructure!AH1274","v":0},0]
[0,null,null,null,null,null,{"$f":"[1]Infrastructure!G1275","v":0},{"$f":"[1]Infrastructure!H1275","v":0},{"$f":"[1]Infrastructure!I1275","v":0},{"$f":"[1]Infrastructure!J1275","v":0},{"$f":"[1]Infrastructure!K1275","v":0},{"$f":"[1]Infrastructure!L1275","v":0},{"$f":"[1]Infrastructure!M1275","v":0},{"$f":"[1]Infrastructure!N1275","v":0},{"$f":"[1]Infrastructure!O1275","v":0},{"$f":"[1]Infrastructure!Q1275","v":0},{"$f":"[1]Infrastructure!R1275","v":0},{"$f":"[1]Infrastructure!T1275","v":0},{"$f":"[1]Infrastructure!W1275","v":0},{"$f":"[1]Infrastructure!W1275","v":0},0,{"$f":"[1]Infrastructure!Z1275","v":0},{"$f":"[1]Infrastructure!Z1275","v":0},0,{"$f":"[1]Infrastructure!AB1275","v":0},{"$f":"[1]Infrastructure!AB1275","v":0},0,{"$f":"[1]Infrastructure!AC1275","v":0},{"$f":"[1]Infrastructure!AD1275","v":0},{"$f":"[1]Infrastructure!AE1275","v":0},{"$f":"[1]Infrastructure!AF1275","v":0},{"$f":"[1]Infrastructure!AG1275","v":0},{"$f":"[1]Infrastructure!AH1275","v":0},0]
[0,null,null,null,null,null,{"$f":"[1]Infrastructure!G1276","v":0},{"$f":"[1]Infrastructure!H1276","v":0},{"$f":"[1]Infrastructure!I1276","v":0},{"$f":"[1]Infrastructure!J1276","v":0},{"$f":"[1]Infrastructure!K1276","v":0},{"$f":"[1]Infrastructure!L1276","v":0},{"$f":"[1]Infrastructure!M1276","v":0},{"$f":"[1]Infrastructure!N1276","v":0},{"$f":"[1]Infrastructure!O1276","v":0},{"$f":"[1]Infrastructure!Q1276","v":0},{"$f":"[1]Infrastructure!R1276","v":0},{"$f":"[1]Infrastructure!T1276","v":0},{"$f":"[1]Infrastructure!W1276","v":0},{"$f":"[1]Infrastructure!W1276","v":0},0,{"$f":"[1]Infrastructure!Z1276","v":0},{"$f":"[1]Infrastructure!Z1276","v":0},0,{"$f":"[1]Infrastructure!AB1276","v":0},{"$f":"[1]Infrastructure!AB1276","v":0},0,{"$f":"[1]Infrastructure!AC1276","v":0},{"$f":"[1]Infrastructure!AD1276","v":0},{"$f":"[1]Infrastructure!AE1276","v":0},{"$f":"[1]Infrastructure!AF1276","v":0},{"$f":"[1]Infrastructure!AG1276","v":0},{"$f":"[1]Infrastructure!AH1276","v":0},0]
[0,null,null,null,null,null,{"$f":"[1]Infrastructure!G1277","v":0},{"$f":"[1]Infrastructure!H1277","v":0},{"$f":"[1]Infrastructure!I1277","v":0},{"$f":"[1]Infrastructure!J1277","v":0},{"$f":"[1]Infrastructure!K1277","v":0},{"$f":"[1]Infrastructure!L1277","v":0},{"$f":"[1]Infrastructure!M1277","v":0},{"$f":"[1]Infrastructure!N1277","v":0},{"$f":"[1]Infrastructure!O1277","v":0},{"$f":"[1]Infrastructure!Q1277","v":0},{"$f":"[1]Infrastructure!R1277","v":0},{"$f":"[1]Infrastructure!T1277","v":0},{"$f":"[1]Infrastructure!W1277","v":0},{"$f":"[1]Infrastructure!W1277","v":0},0,{"$f":"[1]Infrastructure!Z1277","v":0},{"$f":"[1]Infrastructure!Z1277","v":0},0,{"$f":"[1]Infrastructure!AB1277","v":0},{"$f":"[1]Infrastructure!AB1277","v":0},0,{"$f":"[1]Infrastructure!AC1277","v":0},{"$f":"[1]Infrastructure!AD1277","v":0},{"$f":"[1]Infrastructure!AE1277","v":0},{"$f":"[1]Infrastructure!AF1277","v":0},{"$f":"[1]Infrastructure!AG1277","v":0},{"$f":"[1]Infrastructure!AH1277","v":0},0]
[0,null,null,null,null,null,{"$f":"[1]Infrastructure!G1278","v":0},{"$f":"[1]Infrastructure!H1278","v":0},{"$f":"[1]Infrastructure!I1278","v":0},{"$f":"[1]Infrastructure!J1278","v":0},{"$f":"[1]Infrastructure!K1278","v":0},{"$f":"[1]Infrastructure!L1278","v":0},{"$f":"[1]Infrastructure!M1278","v":0},{"$f":"[1]Infrastructure!N1278","v":0},{"$f":"[1]Infrastructure!O1278","v":0},{"$f":"[1]Infrastructure!Q1278","v":0},{"$f":"[1]Infrastructure!R1278","v":0},{"$f":"[1]Infrastructure!T1278","v":0},{"$f":"[1]Infrastructure!W1278","v":0},{"$f":"[1]Infrastructure!W1278","v":0},0,{"$f":"[1]Infrastructure!Z1278","v":0},{"$f":"[1]Infrastructure!Z1278","v":0},0,{"$f":"[1]Infrastructure!AB1278","v":0},{"$f":"[1]Infrastructure!AB1278","v":0},0,{"$f":"[1]Infrastructure!AC1278","v":0},{"$f":"[1]Infrastructure!AD1278","v":0},{"$f":"[1]Infrastructure!AE1278","v":0},{"$f":"[1]Infrastructure!AF1278","v":0},{"$f":"[1]Infrastructure!AG1278","v":0},{"$f":"[1]Infrastructure!AH1278","v":0},0]
[0,null,null,null,null,null,{"$f":"[1]Infrastructure!G1279","v":0},{"$f":"[1]Infrastructure!H1279","v":0},{"$f":"[1]Infrastructure!I1279","v":0},{"$f":"[1]Infrastructure!J1279","v":0},{"$f":"[1]Infrastructure!K1279","v":0},{"$f":"[1]Infrastructure!L1279","v":0},{"$f":"[1]Infrastructure!M1279","v":0},{"$f":"[1]Infrastructure!N1279","v":0},{"$f":"[1]Infrastructure!O1279","v":0},{"$f":"[1]Infrastructure!Q1279","v":0},{"$f":"[1]Infrastructure!R1279","v":0},{"$f":"[1]Infrastructure!T1279","v":0},{"$f":"[1]Infrastructure!W1279","v":0},{"$f":"[1]Infrastructure!W1279","v":0},0,{"$f":"[1]Infrastructure!Z1279","v":0},{"$f":"[1]Infrastructure!Z1279","v":0},0,{"$f":"[1]Infrastructure!AB1279","v":0},{"$f":"[1]Infrastructure!AB1279","v":0},0,{"$f":"[1]Infrastructure!AC1279","v":0},{"$f":"[1]Infrastructure!AD1279","v":0},{"$f":"[1]Infrastructure!AE1279","v":0},{"$f":"[1]Infrastructure!AF1279","v":0},{"$f":"[1]Infrastructure!AG1279","v":0},{"$f":"[1]Infrastructure!AH1279","v":0},0]
[0,null,null,null,null,null,{"$f":"[1]Infrastructure!G1280","v":0},{"$f":"[1]Infrastructure!H1280","v":0},{"$f":"[1]Infrastructure!I1280","v":0},{"$f":"[1]Infrastructure!J1280","v":0},{"$f":"[1]Infrastructure!K1280","v":0},{"$f":"[1]Infrastructure!L1280","v":0},{"$f":"[1]Infrastructure!M1280","v":0},{"$f":"[1]Infrastructure!N1280","v":0},{"$f":"[1]Infrastructure!O1280","v":0},{"$f":"[1]Infrastructure!Q1280","v":0},{"$f":"[1]Infrastructure!R1280","v":0},{"$f":"[1]Infrastructure!T1280","v":0},{"$f":"[1]Infrastructure!W1280","v":0},{"$f":"[1]Infrastructure!W1280","v":0},0,{"$f":"[1]Infrastructure!Z1280","v":0},{"$f":"[1]Infrastructure!Z1280","v":0},0,{"$f":"[1]Infrastructure!AB1280","v":0},{"$f":"[1]Infrastructure!AB1280","v":0},0,{"$f":"[1]Infrastructure!AC1280","v":0},{"$f":"[1]Infrastructure!AD1280","v":0},{"$f":"[1]Infrastructure!AE1280","v":0},{"$f":"[1]Infrastructure!AF1280","v":0},{"$f":"[1]Infrastructure!AG1280","v":0},{"$f":"[1]Infrastructure!AH1280","v":0},0]
[0,null,null,null,null,null,{"$f":"[1]Infrastructure!G1281","v":0},{"$f":"[1]Infrastructure!H1281","v":0},{"$f":"[1]Infrastructure!I1281","v":0},{"$f":"[1]Infrastructure!J1281","v":0},{"$f":"[1]Infrastructure!K1281","v":0},{"$f":"[1]Infrastructure!L1281","v":0},{"$f":"[1]Infrastructure!M1281","v":0},{"$f":"[1]Infrastructure!N1281","v":0},{"$f":"[1]Infrastructure!O1281","v":0},{"$f":"[1]Infrastructure!Q1281","v":0},{"$f":"[1]Infrastructure!R1281","v":0},{"$f":"[1]Infrastructure!T1281","v":0},{"$f":"[1]Infrastructure!W1281","v":0},{"$f":"[1]Infrastructure!W1281","v":0},0,{"$f":"[1]Infrastructure!Z1281","v":0},{"$f":"[1]Infrastructure!Z1281","v":0},0,{"$f":"[1]Infrastructure!AB1281","v":0},{"$f":"[1]Infrastructure!AB1281","v":0},0,{"$f":"[1]Infrastructure!AC1281","v":0},{"$f":"[1]Infrastructure!AD1281","v":0},{"$f":"[1]Infrastructure!AE1281","v":0},{"$f":"[1]Infrastructure!AF1281","v":0},{"$f":"[1]Infrastructure!AG1281","v":0},{"$f":"[1]Infrastructure!AH1281","v":0},0]
[0,null,null,null,null,null,{"$f":"[1]Infrastructure!G1282","v":0},{"$f":"[1]Infrastructure!H1282","v":0},{"$f":"[1]Infrastructure!I1282","v":0},{"$f":"[1]Infrastructure!J1282","v":0},{"$f":"[1]Infrastructure!K1282","v":0},{"$f":"[1]Infrastructure!L1282","v":0},{"$f":"[1]Infrastructure!M1282","v":0},{"$f":"[1]Infrastructure!N1282","v":0},{"$f":"[1]Infrastructure!O1282","v":0},{"$f":"[1]Infrastructure!Q1282","v":0},{"$f":"[1]Infrastructure!R1282","v":0},{"$f":"[1]Infrastructure!T1282","v":0},{"$f":"[1]Infrastructure!W1282","v":0},{"$f":"[1]Infrastructure!W1282","v":0},0,{"$f":"[1]Infrastructure!Z1282","v":0},{"$f":"[1]Infrastructure!Z1282","v":0},0,{"$f":"[1]Infrastructure!AB1282","v":0},{"$f":"[1]Infrastructure!AB1282","v":0},0,{"$f":"[1]Infrastructure!AC1282","v":0},{"$f":"[1]Infrastructure!AD1282","v":0},{"$f":"[1]Infrastructure!AE1282","v":0},{"$f":"[1]Infrastructure!AF1282","v":0},{"$f":"[1]Infrastructure!AG1282","v":0},{"$f":"[1]Infrastructure!AH1282","v":0},0]
[0,null,null,null,null,null,{"$f":"[1]Infrastructure!G1283","v":0},{"$f":"[1]Infrastructure!H1283","v":0},{"$f":"[1]Infrastructure!I1283","v":0},{"$f":"[1]Infrastructure!J1283","v":0},{"$f":"[1]Infrastructure!K1283","v":0},{"$f":"[1]Infrastructure!L1283","v":0},{"$f":"[1]Infrastructure!M1283","v":0},{"$f":"[1]Infrastructure!N1283","v":0},{"$f":"[1]Infrastructure!O1283","v":0},{"$f":"[1]Infrastructure!Q1283","v":0},{"$f":"[1]Infrastructure!R1283","v":0},{"$f":"[1]Infrastructure!T1283","v":0},{"$f":"[1]Infrastructure!W1283","v":0},{"$f":"[1]Infrastructure!W1283","v":0},0,{"$f":"[1]Infrastructure!Z1283","v":0},{"$f":"[1]Infrastructure!Z1283","v":0},0,{"$f":"[1]Infrastructure!AB1283","v":0},{"$f":"[1]Infrastructure!AB1283","v":0},0,{"$f":"[1]Infrastructure!AC1283","v":0},{"$f":"[1]Infrastructure!AD1283","v":0},{"$f":"[1]Infrastructure!AE1283","v":0},{"$f":"[1]Infrastructure!AF1283","v":0},{"$f":"[1]Infrastructure!AG1283","v":0},{"$f":"[1]Infrastructure!AH1283","v":0},0]
[0,null,null,null,null,null,{"$f":"[1]Infrastructure!G1284","v":0},{"$f":"[1]Infrastructure!H1284","v":0},{"$f":"[1]Infrastructure!I1284","v":0},{"$f":"[1]Infrastructure!J1284","v":0},{"$f":"[1]Infrastructure!K1284","v":0},{"$f":"[1]Infrastructure!L1284","v":0},{"$f":"[1]Infrastructure!M1284","v":0},{"$f":"[1]Infrastructure!N1284","v":0},{"$f":"[1]Infrastructure!O1284","v":0},{"$f":"[1]Infrastructure!Q1284","v":0},{"$f":"[1]Infrastructure!R1284","v":0},{"$f":"[1]Infrastructure!T1284","v":0},{"$f":"[1]Infrastructure!W1284","v":0},{"$f":"[1]Infrastructure!W1284","v":0},0,{"$f":"[1]Infrastructure!Z1284","v":0},{"$f":"[1]Infrastructure!Z1284","v":0},0,{"$f":"[1]Infrastructure!AB1284","v":0},{"$f":"[1]Infrastructure!AB1284","v":0},0,{"$f":"[1]Infrastructure!AC1284","v":0},{"$f":"[1]Infrastructure!AD1284","v":0},{"$f":"[1]Infrastructure!AE1284","v":0},{"$f":"[1]Infrastructure!AF1284","v":0},{"$f":"[1]Infrastructure!AG1284","v":0},{"$f":"[1]Infrastructure!AH1284","v":0},0]
[0,null,null,null,null,null,{"$f":"[1]Infrastructure!G1285","v":0},{"$f":"[1]Infrastructure!H1285","v":0},{"$f":"[1]Infrastructure!I1285","v":0},{"$f":"[1]Infrastructure!J1285","v":0},{"$f":"[1]Infrastructure!K1285","v":0},{"$f":"[1]Infrastructure!L1285","v":0},{"$f":"[1]Infrastructure!M1285","v":0},{"$f":"[1]Infrastructure!N1285","v":0},{"$f":"[1]Infrastructure!O1285","v":0},{"$f":"[1]Infrastructure!Q1285","v":0},{"$f":"[1]Infrastructure!R1285","v":0},{"$f":"[1]Infrastructure!T1285","v":0},{"$f":"[1]Infrastructure!W1285","v":0},{"$f":"[1]Infrastructure!W1285","v":0},0,{"$f":"[1]Infrastructure!Z1285","v":0},{"$f":"[1]Infrastructure!Z1285","v":0},0,{"$f":"[1]Infrastructure!AB1285","v":0},{"$f":"[1]Infrastructure!AB1285","v":0},0,{"$f":"[1]Infrastructure!AC1285","v":0},{"$f":"[1]Infrastructure!AD1285","v":0},{"$f":"[1]Infrastructure!AE1285","v":0},{"$f":"[1]Infrastructure!AF1285","v":0},{"$f":"[1]Infrastructure!AG1285","v":0},{"$f":"[1]Infrastructure!AH1285","v":0},0]
[0,null,null,null,null,null,{"$f":"[1]Infrastructure!G1286","v":0},{"$f":"[1]Infrastructure!H1286","v":0},{"$f":"[1]Infrastructure!I1286","v":0},{"$f":"[1]Infrastructure!J1286","v":0},{"$f":"[1]Infrastructure!K1286","v":0},{"$f":"[1]Infrastructure!L1286","v":0},{"$f":"[1]Infrastructure!M1286","v":0},{"$f":"[1]Infrastructure!N1286","v":0},{"$f":"[1]Infrastructure!O1286","v":0},{"$f":"[1]Infrastructure!Q1286","v":0},{"$f":"[1]Infrastructure!R1286","v":0},{"$f":"[1]Infrastructure!T1286","v":0},{"$f":"[1]Infrastructure!W1286","v":0},{"$f":"[1]Infrastructure!W1286","v":0},0,{"$f":"[1]Infrastructure!Z1286","v":0},{"$f":"[1]Infrastructure!Z1286","v":0},0,{"$f":"[1]Infrastructure!AB1286","v":0},{"$f":"[1]Infrastructure!AB1286","v":0},0,{"$f":"[1]Infrastructure!AC1286","v":0},{"$f":"[1]Infrastructure!AD1286","v":0},{"$f":"[1]Infrastructure!AE1286","v":0},{"$f":"[1]Infrastructure!AF1286","v":0},{"$f":"[1]Infrastructure!AG1286","v":0},{"$f":"[1]Infrastructure!AH1286","v":0},0]
[0,null,null,null,null,null,{"$f":"[1]Infrastructure!G1287","v":0},{"$f":"[1]Infrastructure!H1287","v":0},{"$f":"[1]Infrastructure!I1287","v":0},{"$f":"[1]Infrastructure!J1287","v":0},{"$f":"[1]Infrastructure!K1287","v":0},{"$f":"[1]Infrastructure!L1287","v":0},{"$f":"[1]Infrastructure!M1287","v":0},{"$f":"[1]Infrastructure!N1287","v":0},{"$f":"[1]Infrastructure!O1287","v":0},{"$f":"[1]Infrastructure!Q1287","v":0},{"$f":"[1]Infrastructure!R1287","v":0},{"$f":"[1]Infrastructure!T1287","v":0},{"$f":"[1]Infrastructure!W1287","v":0},{"$f":"[1]Infrastructure!W1287","v":0},0,{"$f":"[1]Infrastructure!Z1287","v":0},{"$f":"[1]Infrastructure!Z1287","v":0},0,{"$f":"[1]Infrastructure!AB1287","v":0},{"$f":"[1]Infrastructure!AB1287","v":0},0,{"$f":"[1]Infrastructure!AC1287","v":0},{"$f":"[1]Infrastructure!AD1287","v":0},{"$f":"[1]Infrastructure!AE1287","v":0},{"$f":"[1]Infrastructure!AF1287","v":0},{"$f":"[1]Infrastructure!AG1287","v":0},{"$f":"[1]Infrastructure!AH1287","v":0},0]
[0,null,null,null,null,null,{"$f":"[1]Infrastructure!G1288","v":0},{"$f":"[1]Infrastructure!H1288","v":0},{"$f":"[1]Infrastructure!I1288","v":0},{"$f":"[1]Infrastructure!J1288","v":0},{"$f":"[1]Infrastructure!K1288","v":0},{"$f":"[1]Infrastructure!L1288","v":0},{"$f":"[1]Infrastructure!M1288","v":0},{"$f":"[1]Infrastructure!N1288","v":0},{"$f":"[1]Infrastructure!O1288","v":0},{"$f":"[1]Infrastructure!Q1288","v":0},{"$f":"[1]Infrastructure!R1288","v":0},{"$f":"[1]Infrastructure!T1288","v":0},{"$f":"[1]Infrastructure!W1288","v":0},{"$f":"[1]Infrastructure!W1288","v":0},0,{"$f":"[1]Infrastructure!Z1288","v":0},{"$f":"[1]Infrastructure!Z1288","v":0},0,{"$f":"[1]Infrastructure!AB1288","v":0},{"$f":"[1]Infrastructure!AB1288","v":0},0,{"$f":"[1]Infrastructure!AC1288","v":0},{"$f":"[1]Infrastructure!AD1288","v":0},{"$f":"[1]Infrastructure!AE1288","v":0},{"$f":"[1]Infrastructure!AF1288","v":0},{"$f":"[1]Infrastructure!AG1288","v":0},{"$f":"[1]Infrastructure!AH1288","v":0},0]
[0,null,null,null,null,null,{"$f":"[1]Infrastructure!G1289","v":0},{"$f":"[1]Infrastructure!H1289","v":0},{"$f":"[1]Infrastructure!I1289","v":0},{"$f":"[1]Infrastructure!J1289","v":0},{"$f":"[1]Infrastructure!K1289","v":0},{"$f":"[1]Infrastructure!L1289","v":0},{"$f":"[1]Infrastructure!M1289","v":0},{"$f":"[1]Infrastructure!N1289","v":0},{"$f":"[1]Infrastructure!O1289","v":0},{"$f":"[1]Infrastructure!Q1289","v":0},{"$f":"[1]Infrastructure!R1289","v":0},{"$f":"[1]Infrastructure!T1289","v":0},{"$f":"[1]Infrastructure!W1289","v":0},{"$f":"[1]Infrastructure!W1289","v":0},0,{"$f":"[1]Infrastructure!Z1289","v":0},{"$f":"[1]Infrastructure!Z1289","v":0},0,{"$f":"[1]Infrastructure!AB1289","v":0},{"$f":"[1]Infrastructure!AB1289","v":0},0,{"$f":"[1]Infrastructure!AC1289","v":0},{"$f":"[1]Infrastructure!AD1289","v":0},{"$f":"[1]Infrastructure!AE1289","v":0},{"$f":"[1]Infrastructure!AF1289","v":0},{"$f":"[1]Infrastructure!AG1289","v":0},{"$f":"[1]Infrastructure!AH1289","v":0},0]
[0,null,null,null,null,null,{"$f":"[1]Infrastructure!G1290","v":0},{"$f":"[1]Infrastructure!H1290","v":0},{"$f":"[1]Infrastructure!I1290","v":0},{"$f":"[1]Infrastructure!J1290","v":0},{"$f":"[1]Infrastructure!K1290","v":0},{"$f":"[1]Infrastructure!L1290","v":0},{"$f":"[1]Infrastructure!M1290","v":0},{"$f":"[1]Infrastructure!N1290","v":0},{"$f":"[1]Infrastructure!O1290","v":0},{"$f":"[1]Infrastructure!Q1290","v":0},{"$f":"[1]Infrastructure!R1290","v":0},{"$f":"[1]Infrastructure!T1290","v":0},{"$f":"[1]Infrastructure!W1290","v":0},{"$f":"[1]Infrastructure!W1290","v":0},0,{"$f":"[1]Infrastructure!Z1290","v":0},{"$f":"[1]Infrastructure!Z1290","v":0},0,{"$f":"[1]Infrastructure!AB1290","v":0},{"$f":"[1]Infrastructure!AB1290","v":0},0,{"$f":"[1]Infrastructure!AC1290","v":0},{"$f":"[1]Infrastructure!AD1290","v":0},{"$f":"[1]Infrastructure!AE1290","v":0},{"$f":"[1]Infrastructure!AF1290","v":0},{"$f":"[1]Infrastructure!AG1290","v":0},{"$f":"[1]Infrastructure!AH1290","v":0},0]
[0,null,null,null,null,null,{"$f":"[1]Infrastructure!G1291","v":0},{"$f":"[1]Infrastructure!H1291","v":0},{"$f":"[1]Infrastructure!I1291","v":0},{"$f":"[1]Infrastructure!J1291","v":0},{"$f":"[1]Infrastructure!K1291","v":0},{"$f":"[1]Infrastructure!L1291","v":0},{"$f":"[1]Infrastructure!M1291","v":0},{"$f":"[1]Infrastructure!N1291","v":0},{"$f":"[1]Infrastructure!O1291","v":0},{"$f":"[1]Infrastructure!Q1291","v":0},{"$f":"[1]Infrastructure!R1291","v":0},{"$f":"[1]Infrastructure!T1291","v":0},{"$f":"[1]Infrastructure!W1291","v":0},{"$f":"[1]Infrastructure!W1291","v":0},0,{"$f":"[1]Infrastructure!Z1291","v":0},{"$f":"[1]Infrastructure!Z1291","v":0},0,{"$f":"[1]Infrastructure!AB1291","v":0},{"$f":"[1]Infrastructure!AB1291","v":0},0,{"$f":"[1]Infrastructure!AC1291","v":0},{"$f":"[1]Infrastructure!AD1291","v":0},{"$f":"[1]Infrastructure!AE1291","v":0},{"$f":"[1]Infrastructure!AF1291","v":0},{"$f":"[1]Infrastructure!AG1291","v":0},{"$f":"[1]Infrastructure!AH1291","v":0},0]
[{"$f":"IF(SUM(O1292:AH1292),1,0)","v":0},null,null,null,null,null,{"$f":"[1]Infrastructure!G1292","v":0},{"$f":"[1]Infrastructure!H1292","v":0},{"$f":"[1]Infrastructure!I1292","v":0},{"$f":"[1]Infrastructure!J1292","v":0},{"$f":"[1]Infrastructure!K1292","v":0},{"$f":"[1]Infrastructure!L1292","v":0},{"$f":"[1]Infrastructure!M1292","v":0},{"$f":"[1]Infrastructure!N1292","v":0},{"$f":"[1]Infrastructure!O1292","v":0},{"$f":"[1]Infrastructure!Q1292","v":0},{"$f":"[1]Infrastructure!R1292","v":0},{"$f":"[1]Infrastructure!T1292","v":0},{"$f":"[1]Infrastructure!W1292","v":0},{"$f":"[1]Infrastructure!W1292","v":0},0,{"$f":"[1]Infrastructure!Z1292","v":0},{"$f":"[1]Infrastructure!Z1292","v":0},0,{"$f":"[1]Infrastructure!AB1292","v":0},{"$f":"[1]Infrastructure!AB1292","v":0},0,{"$f":"[1]Infrastructure!AC1292","v":0},{"$f":"[1]Infrastructure!AD1292","v":0},{"$f":"[1]Infrastructure!AE1292","v":0},{"$f":"[1]Infrastructure!AF1292","v":0},{"$f":"[1]Infrastructure!AG1292","v":0},{"$f":"[1]Infrastructure!AH1292","v":0},0]
[0,null,null,null,null,null,{"$f":"[1]Infrastructure!G1293","v":0},{"$f":"[1]Infrastructure!H1293","v":0},{"$f":"[1]Infrastructure!I1293","v":0},{"$f":"[1]Infrastructure!J1293","v":0},{"$f":"[1]Infrastructure!K1293","v":0},{"$f":"[1]Infrastructure!L1293","v":0},{"$f":"[1]Infrastructure!M1293","v":0},{"$f":"[1]Infrastructure!N1293","v":0},{"$f":"[1]Infrastructure!O1293","v":0},{"$f":"[1]Infrastructure!Q1293","v":0},{"$f":"[1]Infrastructure!R1293","v":0},{"$f":"[1]Infrastructure!T1293","v":0},{"$f":"[1]Infrastructure!W1293","v":0},{"$f":"[1]Infrastructure!W1293","v":0},0,{"$f":"[1]Infrastructure!Z1293","v":0},{"$f":"[1]Infrastructure!Z1293","v":0},0,{"$f":"[1]Infrastructure!AB1293","v":0},{"$f":"[1]Infrastructure!AB1293","v":0},0,{"$f":"[1]Infrastructure!AC1293","v":0},{"$f":"[1]Infrastructure!AD1293","v":0},{"$f":"[1]Infrastructure!AE1293","v":0},{"$f":"[1]Infrastructure!AF1293","v":0},{"$f":"[1]Infrastructure!AG1293","v":0},{"$f":"[1]Infrastructure!AH1293","v":0},0]
[0,null,null,null,null,null,{"$f":"[1]Infrastructure!G1294","v":0},{"$f":"[1]Infrastructure!H1294","v":0},{"$f":"[1]Infrastructure!I1294","v":0},{"$f":"[1]Infrastructure!J1294","v":0},{"$f":"[1]Infrastructure!K1294","v":0},{"$f":"[1]Infrastructure!L1294","v":0},{"$f":"[1]Infrastructure!M1294","v":0},{"$f":"[1]Infrastructure!N1294","v":0},{"$f":"[1]Infrastructure!O1294","v":0},{"$f":"[1]Infrastructure!Q1294","v":0},{"$f":"[1]Infrastructure!R1294","v":0},{"$f":"[1]Infrastructure!T1294","v":0},{"$f":"[1]Infrastructure!W1294","v":0},{"$f":"[1]Infrastructure!W1294","v":0},0,{"$f":"[1]Infrastructure!Z1294","v":0},{"$f":"[1]Infrastructure!Z1294","v":0},0,{"$f":"[1]Infrastructure!AB1294","v":0},{"$f":"[1]Infrastructure!AB1294","v":0},0,{"$f":"[1]Infrastructure!AC1294","v":0},{"$f":"[1]Infrastructure!AD1294","v":0},{"$f":"[1]Infrastructure!AE1294","v":0},{"$f":"[1]Infrastructure!AF1294","v":0},{"$f":"[1]Infrastructure!AG1294","v":0},{"$f":"[1]Infrastructure!AH1294","v":0},0]
[0,null,null,null,null,null,{"$f":"[1]Infrastructure!G1295","v":0},{"$f":"[1]Infrastructure!H1295","v":0},{"$f":"[1]Infrastructure!I1295","v":0},{"$f":"[1]Infrastructure!J1295","v":0},{"$f":"[1]Infrastructure!K1295","v":0},{"$f":"[1]Infrastructure!L1295","v":0},{"$f":"[1]Infrastructure!M1295","v":0},{"$f":"[1]Infrastructure!N1295","v":0},{"$f":"[1]Infrastructure!O1295","v":0},{"$f":"[1]Infrastructure!Q1295","v":0},{"$f":"[1]Infrastructure!R1295","v":0},{"$f":"[1]Infrastructure!T1295","v":0},{"$f":"[1]Infrastructure!W1295","v":0},{"$f":"[1]Infrastructure!W1295","v":0},0,{"$f":"[1]Infrastructure!Z1295","v":0},{"$f":"[1]Infrastructure!Z1295","v":0},0,{"$f":"[1]Infrastructure!AB1295","v":0},{"$f":"[1]Infrastructure!AB1295","v":0},0,{"$f":"[1]Infrastructure!AC1295","v":0},{"$f":"[1]Infrastructure!AD1295","v":0},{"$f":"[1]Infrastructure!AE1295","v":0},{"$f":"[1]Infrastructure!AF1295","v":0},{"$f":"[1]Infrastructure!AG1295","v":0},{"$f":"[1]Infrastructure!AH1295","v":0},0]
[0,null,null,null,null,null,{"$f":"[1]Infrastructure!G1296","v":0},{"$f":"[1]Infrastructure!H1296","v":0},{"$f":"[1]Infrastructure!I1296","v":0},{"$f":"[1]Infrastructure!J1296","v":0},{"$f":"[1]Infrastructure!K1296","v":0},{"$f":"[1]Infrastructure!L1296","v":0},{"$f":"[1]Infrastructure!M1296","v":0},{"$f":"[1]Infrastructure!N1296","v":0},{"$f":"[1]Infrastructure!O1296","v":0},{"$f":"[1]Infrastructure!Q1296","v":0},{"$f":"[1]Infrastructure!R1296","v":0},{"$f":"[1]Infrastructure!T1296","v":0},{"$f":"[1]Infrastructure!W1296","v":0},{"$f":"[1]Infrastructure!W1296","v":0},0,{"$f":"[1]Infrastructure!Z1296","v":0},{"$f":"[1]Infrastructure!Z1296","v":0},0,{"$f":"[1]Infrastructure!AB1296","v":0},{"$f":"[1]Infrastructure!AB1296","v":0},0,{"$f":"[1]Infrastructure!AC1296","v":0},{"$f":"[1]Infrastructure!AD1296","v":0},{"$f":"[1]Infrastructure!AE1296","v":0},{"$f":"[1]Infrastructure!AF1296","v":0},{"$f":"[1]Infrastructure!AG1296","v":0},{"$f":"[1]Infrastructure!AH1296","v":0},0]
[0,null,null,null,null,null,{"$f":"[1]Infrastructure!G1297","v":0},{"$f":"[1]Infrastructure!H1297","v":0},{"$f":"[1]Infrastructure!I1297","v":0},{"$f":"[1]Infrastructure!J1297","v":0},{"$f":"[1]Infrastructure!K1297","v":0},{"$f":"[1]Infrastructure!L1297","v":0},{"$f":"[1]Infrastructure!M1297","v":0},{"$f":"[1]Infrastructure!N1297","v":0},{"$f":"[1]Infrastructure!O1297","v":0},{"$f":"[1]Infrastructure!Q1297","v":0},{"$f":"[1]Infrastructure!R1297","v":0},{"$f":"[1]Infrastructure!T1297","v":0},{"$f":"[1]Infrastructure!W1297","v":0},{"$f":"[1]Infrastructure!W1297","v":0},0,{"$f":"[1]Infrastructure!Z1297","v":0},{"$f":"[1]Infrastructure!Z1297","v":0},0,{"$f":"[1]Infrastructure!AB1297","v":0},{"$f":"[1]Infrastructure!AB1297","v":0},0,{"$f":"[1]Infrastructure!AC1297","v":0},{"$f":"[1]Infrastructure!AD1297","v":0},{"$f":"[1]Infrastructure!AE1297","v":0},{"$f":"[1]Infrastructure!AF1297","v":0},{"$f":"[1]Infrastructure!AG1297","v":0},{"$f":"[1]Infrastructure!AH1297","v":0},0]
[0,null,null,null,null,null,{"$f":"[1]Infrastructure!G1298","v":0},{"$f":"[1]Infrastructure!H1298","v":0},{"$f":"[1]Infrastructure!I1298","v":0},{"$f":"[1]Infrastructure!J1298","v":0},{"$f":"[1]Infrastructure!K1298","v":0},{"$f":"[1]Infrastructure!L1298","v":0},{"$f":"[1]Infrastructure!M1298","v":0},{"$f":"[1]Infrastructure!N1298","v":0},{"$f":"[1]Infrastructure!O1298","v":0},{"$f":"[1]Infrastructure!Q1298","v":0},{"$f":"[1]Infrastructure!R1298","v":0},{"$f":"[1]Infrastructure!T1298","v":0},{"$f":"[1]Infrastructure!W1298","v":0},{"$f":"[1]Infrastructure!W1298","v":0},0,{"$f":"[1]Infrastructure!Z1298","v":0},{"$f":"[1]Infrastructure!Z1298","v":0},0,{"$f":"[1]Infrastructure!AB1298","v":0},{"$f":"[1]Infrastructure!AB1298","v":0},0,{"$f":"[1]Infrastructure!AC1298","v":0},{"$f":"[1]Infrastructure!AD1298","v":0},{"$f":"[1]Infrastructure!AE1298","v":0},{"$f":"[1]Infrastructure!AF1298","v":0},{"$f":"[1]Infrastructure!AG1298","v":0},{"$f":"[1]Infrastructure!AH1298","v":0},0]
[0,null,null,null,null,null,{"$f":"[1]Infrastructure!G1299","v":0},{"$f":"[1]Infrastructure!H1299","v":0},{"$f":"[1]Infrastructure!I1299","v":0},{"$f":"[1]Infrastructure!J1299","v":0},{"$f":"[1]Infrastructure!K1299","v":0},{"$f":"[1]Infrastructure!L1299","v":0},{"$f":"[1]Infrastructure!M1299","v":0},{"$f":"[1]Infrastructure!N1299","v":0},{"$f":"[1]Infrastructure!O1299","v":0},{"$f":"[1]Infrastructure!Q1299","v":0},{"$f":"[1]Infrastructure!R1299","v":0},{"$f":"[1]Infrastructure!T1299","v":0},{"$f":"[1]Infrastructure!W1299","v":0},{"$f":"[1]Infrastructure!W1299","v":0},0,{"$f":"[1]Infrastructure!Z1299","v":0},{"$f":"[1]Infrastructure!Z1299","v":0},0,{"$f":"[1]Infrastructure!AB1299","v":0},{"$f":"[1]Infrastructure!AB1299","v":0},0,{"$f":"[1]Infrastructure!AC1299","v":0},{"$f":"[1]Infrastructure!AD1299","v":0},{"$f":"[1]Infrastructure!AE1299","v":0},{"$f":"[1]Infrastructure!AF1299","v":0},{"$f":"[1]Infrastructure!AG1299","v":0},{"$f":"[1]Infrastructure!AH1299","v":0},0]
[0,null,null,null,null,null,{"$f":"[1]Infrastructure!G1300","v":0},{"$f":"[1]Infrastructure!H1300","v":0},{"$f":"[1]Infrastructure!I1300","v":0},{"$f":"[1]Infrastructure!J1300","v":0},{"$f":"[1]Infrastructure!K1300","v":0},{"$f":"[1]Infrastructure!L1300","v":0},{"$f":"[1]Infrastructure!M1300","v":0},{"$f":"[1]Infrastructure!N1300","v":0},{"$f":"[1]Infrastructure!O1300","v":0},{"$f":"[1]Infrastructure!Q1300","v":0},{"$f":"[1]Infrastructure!R1300","v":0},{"$f":"[1]Infrastructure!T1300","v":0},{"$f":"[1]Infrastructure!W1300","v":0},{"$f":"[1]Infrastructure!W1300","v":0},0,{"$f":"[1]Infrastructure!Z1300","v":0},{"$f":"[1]Infrastructure!Z1300","v":0},0,{"$f":"[1]Infrastructure!AB1300","v":0},{"$f":"[1]Infrastructure!AB1300","v":0},0,{"$f":"[1]Infrastructure!AC1300","v":0},{"$f":"[1]Infrastructure!AD1300","v":0},{"$f":"[1]Infrastructure!AE1300","v":0},{"$f":"[1]Infrastructure!AF1300","v":0},{"$f":"[1]Infrastructure!AG1300","v":0},{"$f":"[1]Infrastructure!AH1300","v":0},0]
[0,null,null,null,null,null,{"$f":"[1]Infrastructure!G1301","v":0},{"$f":"[1]Infrastructure!H1301","v":0},{"$f":"[1]Infrastructure!I1301","v":0},{"$f":"[1]Infrastructure!J1301","v":0},{"$f":"[1]Infrastructure!K1301","v":0},{"$f":"[1]Infrastructure!L1301","v":0},{"$f":"[1]Infrastructure!M1301","v":0},{"$f":"[1]Infrastructure!N1301","v":0},{"$f":"[1]Infrastructure!O1301","v":0},{"$f":"[1]Infrastructure!Q1301","v":0},{"$f":"[1]Infrastructure!R1301","v":0},{"$f":"[1]Infrastructure!T1301","v":0},{"$f":"[1]Infrastructure!W1301","v":0},{"$f":"[1]Infrastructure!W1301","v":0},0,{"$f":"[1]Infrastructure!Z1301","v":0},{"$f":"[1]Infrastructure!Z1301","v":0},0,{"$f":"[1]Infrastructure!AB1301","v":0},{"$f":"[1]Infrastructure!AB1301","v":0},0,{"$f":"[1]Infrastructure!AC1301","v":0},{"$f":"[1]Infrastructure!AD1301","v":0},{"$f":"[1]Infrastructure!AE1301","v":0},{"$f":"[1]Infrastructure!AF1301","v":0},{"$f":"[1]Infrastructure!AG1301","v":0},{"$f":"[1]Infrastructure!AH1301","v":0},0]
[0,null,null,null,null,null,{"$f":"[1]Infrastructure!G1302","v":0},{"$f":"[1]Infrastructure!H1302","v":0},{"$f":"[1]Infrastructure!I1302","v":0},{"$f":"[1]Infrastructure!J1302","v":0},{"$f":"[1]Infrastructure!K1302","v":0},{"$f":"[1]Infrastructure!L1302","v":0},{"$f":"[1]Infrastructure!M1302","v":0},{"$f":"[1]Infrastructure!N1302","v":0},{"$f":"[1]Infrastructure!O1302","v":0},{"$f":"[1]Infrastructure!Q1302","v":0},{"$f":"[1]Infrastructure!R1302","v":0},{"$f":"[1]Infrastructure!T1302","v":0},{"$f":"[1]Infrastructure!W1302","v":0},{"$f":"[1]Infrastructure!W1302","v":0},0,{"$f":"[1]Infrastructure!Z1302","v":0},{"$f":"[1]Infrastructure!Z1302","v":0},0,{"$f":"[1]Infrastructure!AB1302","v":0},{"$f":"[1]Infrastructure!AB1302","v":0},0,{"$f":"[1]Infrastructure!AC1302","v":0},{"$f":"[1]Infrastructure!AD1302","v":0},{"$f":"[1]Infrastructure!AE1302","v":0},{"$f":"[1]Infrastructure!AF1302","v":0},{"$f":"[1]Infrastructure!AG1302","v":0},{"$f":"[1]Infrastructure!AH1302","v":0},0]
[0,null,null,null,null,null,{"$f":"[1]Infrastructure!G1303","v":0},{"$f":"[1]Infrastructure!H1303","v":0},{"$f":"[1]Infrastructure!I1303","v":0},{"$f":"[1]Infrastructure!J1303","v":0},{"$f":"[1]Infrastructure!K1303","v":0},{"$f":"[1]Infrastructure!L1303","v":0},{"$f":"[1]Infrastructure!M1303","v":0},{"$f":"[1]Infrastructure!N1303","v":0},{"$f":"[1]Infrastructure!O1303","v":0},{"$f":"[1]Infrastructure!Q1303","v":0},{"$f":"[1]Infrastructure!R1303","v":0},{"$f":"[1]Infrastructure!T1303","v":0},{"$f":"[1]Infrastructure!W1303","v":0},{"$f":"[1]Infrastructure!W1303","v":0},0,{"$f":"[1]Infrastructure!Z1303","v":0},{"$f":"[1]Infrastructure!Z1303","v":0},0,{"$f":"[1]Infrastructure!AB1303","v":0},{"$f":"[1]Infrastructure!AB1303","v":0},0,{"$f":"[1]Infrastructure!AC1303","v":0},{"$f":"[1]Infrastructure!AD1303","v":0},{"$f":"[1]Infrastructure!AE1303","v":0},{"$f":"[1]Infrastructure!AF1303","v":0},{"$f":"[1]Infrastructure!AG1303","v":0},{"$f":"[1]Infrastructure!AH1303","v":0},0]
[0,null,null,null,null,null,{"$f":"[1]Infrastructure!G1304","v":0},{"$f":"[1]Infrastructure!H1304","v":0},{"$f":"[1]Infrastructure!I1304","v":0},{"$f":"[1]Infrastructure!J1304","v":0},{"$f":"[1]Infrastructure!K1304","v":0},{"$f":"[1]Infrastructure!L1304","v":0},{"$f":"[1]Infrastructure!M1304","v":0},{"$f":"[1]Infrastructure!N1304","v":0},{"$f":"[1]Infrastructure!O1304","v":0},{"$f":"[1]Infrastructure!Q1304","v":0},{"$f":"[1]Infrastructure!R1304","v":0},{"$f":"[1]Infrastructure!T1304","v":0},{"$f":"[1]Infrastructure!W1304","v":0},{"$f":"[1]Infrastructure!W1304","v":0},0,{"$f":"[1]Infrastructure!Z1304","v":0},{"$f":"[1]Infrastructure!Z1304","v":0},0,{"$f":"[1]Infrastructure!AB1304","v":0},{"$f":"[1]Infrastructure!AB1304","v":0},0,{"$f":"[1]Infrastructure!AC1304","v":0},{"$f":"[1]Infrastructure!AD1304","v":0},{"$f":"[1]Infrastructure!AE1304","v":0},{"$f":"[1]Infrastructure!AF1304","v":0},{"$f":"[1]Infrastructure!AG1304","v":0},{"$f":"[1]Infrastructure!AH1304","v":0},0]
[0,null,null,null,null,null,{"$f":"[1]Infrastructure!G1305","v":0},{"$f":"[1]Infrastructure!H1305","v":0},{"$f":"[1]Infrastructure!I1305","v":0},{"$f":"[1]Infrastructure!J1305","v":0},{"$f":"[1]Infrastructure!K1305","v":0},{"$f":"[1]Infrastructure!L1305","v":0},{"$f":"[1]Infrastructure!M1305","v":0},{"$f":"[1]Infrastructure!N1305","v":0},{"$f":"[1]Infrastructure!O1305","v":0},{"$f":"[1]Infrastructure!Q1305","v":0},{"$f":"[1]Infrastructure!R1305","v":0},{"$f":"[1]Infrastructure!T1305","v":0},{"$f":"[1]Infrastructure!W1305","v":0},{"$f":"[1]Infrastructure!W1305","v":0},0,{"$f":"[1]Infrastructure!Z1305","v":0},{"$f":"[1]Infrastructure!Z1305","v":0},0,{"$f":"[1]Infrastructure!AB1305","v":0},{"$f":"[1]Infrastructure!AB1305","v":0},0,{"$f":"[1]Infrastructure!AC1305","v":0},{"$f":"[1]Infrastructure!AD1305","v":0},{"$f":"[1]Infrastructure!AE1305","v":0},{"$f":"[1]Infrastructure!AF1305","v":0},{"$f":"[1]Infrastructure!AG1305","v":0},{"$f":"[1]Infrastructure!AH1305","v":0},0]
[0,null,null,null,null,null,{"$f":"[1]Infrastructure!G1306","v":0},{"$f":"[1]Infrastructure!H1306","v":0},{"$f":"[1]Infrastructure!I1306","v":0},{"$f":"[1]Infrastructure!J1306","v":0},{"$f":"[1]Infrastructure!K1306","v":0},{"$f":"[1]Infrastructure!L1306","v":0},{"$f":"[1]Infrastructure!M1306","v":0},{"$f":"[1]Infrastructure!N1306","v":0},{"$f":"[1]Infrastructure!O1306","v":0},{"$f":"[1]Infrastructure!Q1306","v":0},{"$f":"[1]Infrastructure!R1306","v":0},{"$f":"[1]Infrastructure!T1306","v":0},{"$f":"[1]Infrastructure!W1306","v":0},{"$f":"[1]Infrastructure!W1306","v":0},0,{"$f":"[1]Infrastructure!Z1306","v":0},{"$f":"[1]Infrastructure!Z1306","v":0},0,{"$f":"[1]Infrastructure!AB1306","v":0},{"$f":"[1]Infrastructure!AB1306","v":0},0,{"$f":"[1]Infrastructure!AC1306","v":0},{"$f":"[1]Infrastructure!AD1306","v":0},{"$f":"[1]Infrastructure!AE1306","v":0},{"$f":"[1]Infrastructure!AF1306","v":0},{"$f":"[1]Infrastructure!AG1306","v":0},{"$f":"[1]Infrastructure!AH1306","v":0},0]
[0,null,null,null,null,null,{"$f":"[1]Infrastructure!G1307","v":0},{"$f":"[1]Infrastructure!H1307","v":0},{"$f":"[1]Infrastructure!I1307","v":0},{"$f":"[1]Infrastructure!J1307","v":0},{"$f":"[1]Infrastructure!K1307","v":0},{"$f":"[1]Infrastructure!L1307","v":0},{"$f":"[1]Infrastructure!M1307","v":0},{"$f":"[1]Infrastructure!N1307","v":0},{"$f":"[1]Infrastructure!O1307","v":0},{"$f":"[1]Infrastructure!Q1307","v":0},{"$f":"[1]Infrastructure!R1307","v":0},{"$f":"[1]Infrastructure!T1307","v":0},{"$f":"[1]Infrastructure!W1307","v":0},{"$f":"[1]Infrastructure!W1307","v":0},0,{"$f":"[1]Infrastructure!Z1307","v":0},{"$f":"[1]Infrastructure!Z1307","v":0},0,{"$f":"[1]Infrastructure!AB1307","v":0},{"$f":"[1]Infrastructure!AB1307","v":0},0,{"$f":"[1]Infrastructure!AC1307","v":0},{"$f":"[1]Infrastructure!AD1307","v":0},{"$f":"[1]Infrastructure!AE1307","v":0},{"$f":"[1]Infrastructure!AF1307","v":0},{"$f":"[1]Infrastructure!AG1307","v":0},{"$f":"[1]Infrastructure!AH1307","v":0},0]
[0,null,null,null,null,null,{"$f":"[1]Infrastructure!G1308","v":0},{"$f":"[1]Infrastructure!H1308","v":0},{"$f":"[1]Infrastructure!I1308","v":0},{"$f":"[1]Infrastructure!J1308","v":0},{"$f":"[1]Infrastructure!K1308","v":0},{"$f":"[1]Infrastructure!L1308","v":0},{"$f":"[1]Infrastructure!M1308","v":0},{"$f":"[1]Infrastructure!N1308","v":0},{"$f":"[1]Infrastructure!O1308","v":0},{"$f":"[1]Infrastructure!Q1308","v":0},{"$f":"[1]Infrastructure!R1308","v":0},{"$f":"[1]Infrastructure!T1308","v":0},{"$f":"[1]Infrastructure!W1308","v":0},{"$f":"[1]Infrastructure!W1308","v":0},0,{"$f":"[1]Infrastructure!Z1308","v":0},{"$f":"[1]Infrastructure!Z1308","v":0},0,{"$f":"[1]Infrastructure!AB1308","v":0},{"$f":"[1]Infrastructure!AB1308","v":0},0,{"$f":"[1]Infrastructure!AC1308","v":0},{"$f":"[1]Infrastructure!AD1308","v":0},{"$f":"[1]Infrastructure!AE1308","v":0},{"$f":"[1]Infrastructure!AF1308","v":0},{"$f":"[1]Infrastructure!AG1308","v":0},{"$f":"[1]Infrastructure!AH1308","v":0},0]
[0,null,null,null,null,null,{"$f":"[1]Infrastructure!G1309","v":0},{"$f":"[1]Infrastructure!H1309","v":0},{"$f":"[1]Infrastructure!I1309","v":0},{"$f":"[1]Infrastructure!J1309","v":0},{"$f":"[1]Infrastructure!K1309","v":0},{"$f":"[1]Infrastructure!L1309","v":0},{"$f":"[1]Infrastructure!M1309","v":0},{"$f":"[1]Infrastructure!N1309","v":0},{"$f":"[1]Infrastructure!O1309","v":0},{"$f":"[1]Infrastructure!Q1309","v":0},{"$f":"[1]Infrastructure!R1309","v":0},{"$f":"[1]Infrastructure!T1309","v":0},{"$f":"[1]Infrastructure!W1309","v":0},{"$f":"[1]Infrastructure!W1309","v":0},0,{"$f":"[1]Infrastructure!Z1309","v":0},{"$f":"[1]Infrastructure!Z1309","v":0},0,{"$f":"[1]Infrastructure!AB1309","v":0},{"$f":"[1]Infrastructure!AB1309","v":0},0,{"$f":"[1]Infrastructure!AC1309","v":0},{"$f":"[1]Infrastructure!AD1309","v":0},{"$f":"[1]Infrastructure!AE1309","v":0},{"$f":"[1]Infrastructure!AF1309","v":0},{"$f":"[1]Infrastructure!AG1309","v":0},{"$f":"[1]Infrastructure!AH1309","v":0},0]
[0,null,null,null,null,null,{"$f":"[1]Infrastructure!G1310","v":0},{"$f":"[1]Infrastructure!H1310","v":0},{"$f":"[1]Infrastructure!I1310","v":0},{"$f":"[1]Infrastructure!J1310","v":0},{"$f":"[1]Infrastructure!K1310","v":0},{"$f":"[1]Infrastructure!L1310","v":0},{"$f":"[1]Infrastructure!M1310","v":0},{"$f":"[1]Infrastructure!N1310","v":0},{"$f":"[1]Infrastructure!O1310","v":0},{"$f":"[1]Infrastructure!Q1310","v":0},{"$f":"[1]Infrastructure!R1310","v":0},{"$f":"[1]Infrastructure!T1310","v":0},{"$f":"[1]Infrastructure!W1310","v":0},{"$f":"[1]Infrastructure!W1310","v":0},0,{"$f":"[1]Infrastructure!Z1310","v":0},{"$f":"[1]Infrastructure!Z1310","v":0},0,{"$f":"[1]Infrastructure!AB1310","v":0},{"$f":"[1]Infrastructure!AB1310","v":0},0,{"$f":"[1]Infrastructure!AC1310","v":0},{"$f":"[1]Infrastructure!AD1310","v":0},{"$f":"[1]Infrastructure!AE1310","v":0},{"$f":"[1]Infrastructure!AF1310","v":0},{"$f":"[1]Infrastructure!AG1310","v":0},{"$f":"[1]Infrastructure!AH1310","v":0},0]
[0,null,null,null,null,null,{"$f":"[1]Infrastructure!G1311","v":0},{"$f":"[1]Infrastructure!H1311","v":0},{"$f":"[1]Infrastructure!I1311","v":0},{"$f":"[1]Infrastructure!J1311","v":0},{"$f":"[1]Infrastructure!K1311","v":0},{"$f":"[1]Infrastructure!L1311","v":0},{"$f":"[1]Infrastructure!M1311","v":0},{"$f":"[1]Infrastructure!N1311","v":0},{"$f":"[1]Infrastructure!O1311","v":0},{"$f":"[1]Infrastructure!Q1311","v":0},{"$f":"[1]Infrastructure!R1311","v":0},{"$f":"[1]Infrastructure!T1311","v":0},{"$f":"[1]Infrastructure!W1311","v":0},{"$f":"[1]Infrastructure!W1311","v":0},0,{"$f":"[1]Infrastructure!Z1311","v":0},{"$f":"[1]Infrastructure!Z1311","v":0},0,{"$f":"[1]Infrastructure!AB1311","v":0},{"$f":"[1]Infrastructure!AB1311","v":0},0,{"$f":"[1]Infrastructure!AC1311","v":0},{"$f":"[1]Infrastructure!AD1311","v":0},{"$f":"[1]Infrastructure!AE1311","v":0},{"$f":"[1]Infrastructure!AF1311","v":0},{"$f":"[1]Infrastructure!AG1311","v":0},{"$f":"[1]Infrastructure!AH1311","v":0},0]
[0,null,null,null,null,null,{"$f":"[1]Infrastructure!G1312","v":0},{"$f":"[1]Infrastructure!H1312","v":0},{"$f":"[1]Infrastructure!I1312","v":0},{"$f":"[1]Infrastructure!J1312","v":0},{"$f":"[1]Infrastructure!K1312","v":0},{"$f":"[1]Infrastructure!L1312","v":0},{"$f":"[1]Infrastructure!M1312","v":0},{"$f":"[1]Infrastructure!N1312","v":0},{"$f":"[1]Infrastructure!O1312","v":0},{"$f":"[1]Infrastructure!Q1312","v":0},{"$f":"[1]Infrastructure!R1312","v":0},{"$f":"[1]Infrastructure!T1312","v":0},{"$f":"[1]Infrastructure!W1312","v":0},{"$f":"[1]Infrastructure!W1312","v":0},0,{"$f":"[1]Infrastructure!Z1312","v":0},{"$f":"[1]Infrastructure!Z1312","v":0},0,{"$f":"[1]Infrastructure!AB1312","v":0},{"$f":"[1]Infrastructure!AB1312","v":0},0,{"$f":"[1]Infrastructure!AC1312","v":0},{"$f":"[1]Infrastructure!AD1312","v":0},{"$f":"[1]Infrastructure!AE1312","v":0},{"$f":"[1]Infrastructure!AF1312","v":0},{"$f":"[1]Infrastructure!AG1312","v":0},{"$f":"[1]Infrastructure!AH1312","v":0},0]
[0,null,null,null,null,null,{"$f":"[1]Infrastructure!G1313","v":0},{"$f":"[1]Infrastructure!H1313","v":0},{"$f":"[1]Infrastructure!I1313","v":0},{"$f":"[1]Infrastructure!J1313","v":0},{"$f":"[1]Infrastructure!K1313","v":0},{"$f":"[1]Infrastructure!L1313","v":0},{"$f":"[1]Infrastructure!M1313","v":0},{"$f":"[1]Infrastructure!N1313","v":0},{"$f":"[1]Infrastructure!O1313","v":0},{"$f":"[1]Infrastructure!Q1313","v":0},{"$f":"[1]Infrastructure!R1313","v":0},{"$f":"[1]Infrastructure!T1313","v":0},{"$f":"[1]Infrastructure!W1313","v":0},{"$f":"[1]Infrastructure!W1313","v":0},0,{"$f":"[1]Infrastructure!Z1313","v":0},{"$f":"[1]Infrastructure!Z1313","v":0},0,{"$f":"[1]Infrastructure!AB1313","v":0},{"$f":"[1]Infrastructure!AB1313","v":0},0,{"$f":"[1]Infrastructure!AC1313","v":0},{"$f":"[1]Infrastructure!AD1313","v":0},{"$f":"[1]Infrastructure!AE1313","v":0},{"$f":"[1]Infrastructure!AF1313","v":0},{"$f":"[1]Infrastructure!AG1313","v":0},{"$f":"[1]Infrastructure!AH1313","v":0},0]
[0,null,null,null,null,null,{"$f":"[1]Infrastructure!G1314","v":0},{"$f":"[1]Infrastructure!H1314","v":0},{"$f":"[1]Infrastructure!I1314","v":0},{"$f":"[1]Infrastructure!J1314","v":0},{"$f":"[1]Infrastructure!K1314","v":0},{"$f":"[1]Infrastructure!L1314","v":0},{"$f":"[1]Infrastructure!M1314","v":0},{"$f":"[1]Infrastructure!N1314","v":0},{"$f":"[1]Infrastructure!O1314","v":0},{"$f":"[1]Infrastructure!Q1314","v":0},{"$f":"[1]Infrastructure!R1314","v":0},{"$f":"[1]Infrastructure!T1314","v":0},{"$f":"[1]Infrastructure!W1314","v":0},{"$f":"[1]Infrastructure!W1314","v":0},0,{"$f":"[1]Infrastructure!Z1314","v":0},{"$f":"[1]Infrastructure!Z1314","v":0},0,{"$f":"[1]Infrastructure!AB1314","v":0},{"$f":"[1]Infrastructure!AB1314","v":0},0,{"$f":"[1]Infrastructure!AC1314","v":0},{"$f":"[1]Infrastructure!AD1314","v":0},{"$f":"[1]Infrastructure!AE1314","v":0},{"$f":"[1]Infrastructure!AF1314","v":0},{"$f":"[1]Infrastructure!AG1314","v":0},{"$f":"[1]Infrastructure!AH1314","v":0},0]
[0,null,null,null,null,null,{"$f":"[1]Infrastructure!G1315","v":0},{"$f":"[1]Infrastructure!H1315","v":0},{"$f":"[1]Infrastructure!I1315","v":0},{"$f":"[1]Infrastructure!J1315","v":0},{"$f":"[1]Infrastructure!K1315","v":0},{"$f":"[1]Infrastructure!L1315","v":0},{"$f":"[1]Infrastructure!M1315","v":0},{"$f":"[1]Infrastructure!N1315","v":0},{"$f":"[1]Infrastructure!O1315","v":0},{"$f":"[1]Infrastructure!Q1315","v":0},{"$f":"[1]Infrastructure!R1315","v":0},{"$f":"[1]Infrastructure!T1315","v":0},{"$f":"[1]Infrastructure!W1315","v":0},{"$f":"[1]Infrastructure!W1315","v":0},0,{"$f":"[1]Infrastructure!Z1315","v":0},{"$f":"[1]Infrastructure!Z1315","v":0},0,{"$f":"[1]Infrastructure!AB1315","v":0},{"$f":"[1]Infrastructure!AB1315","v":0},0,{"$f":"[1]Infrastructure!AC1315","v":0},{"$f":"[1]Infrastructure!AD1315","v":0},{"$f":"[1]Infrastructure!AE1315","v":0},{"$f":"[1]Infrastructure!AF1315","v":0},{"$f":"[1]Infrastructure!AG1315","v":0},{"$f":"[1]Infrastructure!AH1315","v":0},0]
[0,null,null,null,null,null,{"$f":"[1]Infrastructure!G1316","v":0},{"$f":"[1]Infrastructure!H1316","v":0},{"$f":"[1]Infrastructure!I1316","v":0},{"$f":"[1]Infrastructure!J1316","v":0},{"$f":"[1]Infrastructure!K1316","v":0},{"$f":"[1]Infrastructure!L1316","v":0},{"$f":"[1]Infrastructure!M1316","v":0},{"$f":"[1]Infrastructure!N1316","v":0},{"$f":"[1]Infrastructure!O1316","v":0},{"$f":"[1]Infrastructure!Q1316","v":0},{"$f":"[1]Infrastructure!R1316","v":0},{"$f":"[1]Infrastructure!T1316","v":0},{"$f":"[1]Infrastructure!W1316","v":0},{"$f":"[1]Infrastructure!W1316","v":0},0,{"$f":"[1]Infrastructure!Z1316","v":0},{"$f":"[1]Infrastructure!Z1316","v":0},0,{"$f":"[1]Infrastructure!AB1316","v":0},{"$f":"[1]Infrastructure!AB1316","v":0},0,{"$f":"[1]Infrastructure!AC1316","v":0},{"$f":"[1]Infrastructure!AD1316","v":0},{"$f":"[1]Infrastructure!AE1316","v":0},{"$f":"[1]Infrastructure!AF1316","v":0},{"$f":"[1]Infrastructure!AG1316","v":0},{"$f":"[1]Infrastructure!AH1316","v":0},0]
[0,null,null,null,null,null,{"$f":"[1]Infrastructure!G1317","v":0},{"$f":"[1]Infrastructure!H1317","v":0},{"$f":"[1]Infrastructure!I1317","v":0},{"$f":"[1]Infrastructure!J1317","v":0},{"$f":"[1]Infrastructure!K1317","v":0},{"$f":"[1]Infrastructure!L1317","v":0},{"$f":"[1]Infrastructure!M1317","v":0},{"$f":"[1]Infrastructure!N1317","v":0},{"$f":"[1]Infrastructure!O1317","v":0},{"$f":"[1]Infrastructure!Q1317","v":0},{"$f":"[1]Infrastructure!R1317","v":0},{"$f":"[1]Infrastructure!T1317","v":0},{"$f":"[1]Infrastructure!W1317","v":0},{"$f":"[1]Infrastructure!W1317","v":0},0,{"$f":"[1]Infrastructure!Z1317","v":0},{"$f":"[1]Infrastructure!Z1317","v":0},0,{"$f":"[1]Infrastructure!AB1317","v":0},{"$f":"[1]Infrastructure!AB1317","v":0},0,{"$f":"[1]Infrastructure!AC1317","v":0},{"$f":"[1]Infrastructure!AD1317","v":0},{"$f":"[1]Infrastructure!AE1317","v":0},{"$f":"[1]Infrastructure!AF1317","v":0},{"$f":"[1]Infrastructure!AG1317","v":0},{"$f":"[1]Infrastructure!AH1317","v":0},0]
[0,null,null,null,null,null,{"$f":"[1]Infrastructure!G1318","v":0},{"$f":"[1]Infrastructure!H1318","v":0},{"$f":"[1]Infrastructure!I1318","v":0},{"$f":"[1]Infrastructure!J1318","v":0},{"$f":"[1]Infrastructure!K1318","v":0},{"$f":"[1]Infrastructure!L1318","v":0},{"$f":"[1]Infrastructure!M1318","v":0},{"$f":"[1]Infrastructure!N1318","v":0},{"$f":"[1]Infrastructure!O1318","v":0},{"$f":"[1]Infrastructure!Q1318","v":0},{"$f":"[1]Infrastructure!R1318","v":0},{"$f":"[1]Infrastructure!T1318","v":0},{"$f":"[1]Infrastructure!W1318","v":0},{"$f":"[1]Infrastructure!W1318","v":0},0,{"$f":"[1]Infrastructure!Z1318","v":0},{"$f":"[1]Infrastructure!Z1318","v":0},0,{"$f":"[1]Infrastructure!AB1318","v":0},{"$f":"[1]Infrastructure!AB1318","v":0},0,{"$f":"[1]Infrastructure!AC1318","v":0},{"$f":"[1]Infrastructure!AD1318","v":0},{"$f":"[1]Infrastructure!AE1318","v":0},{"$f":"[1]Infrastructure!AF1318","v":0},{"$f":"[1]Infrastructure!AG1318","v":0},{"$f":"[1]Infrastructure!AH1318","v":0},0]
[0,null,null,null,null,null,{"$f":"[1]Infrastructure!G1319","v":0},{"$f":"[1]Infrastructure!H1319","v":0},{"$f":"[1]Infrastructure!I1319","v":0},{"$f":"[1]Infrastructure!J1319","v":0},{"$f":"[1]Infrastructure!K1319","v":0},{"$f":"[1]Infrastructure!L1319","v":0},{"$f":"[1]Infrastructure!M1319","v":0},{"$f":"[1]Infrastructure!N1319","v":0},{"$f":"[1]Infrastructure!O1319","v":0},{"$f":"[1]Infrastructure!Q1319","v":0},{"$f":"[1]Infrastructure!R1319","v":0},{"$f":"[1]Infrastructure!T1319","v":0},{"$f":"[1]Infrastructure!W1319","v":0},{"$f":"[1]Infrastructure!W1319","v":0},0,{"$f":"[1]Infrastructure!Z1319","v":0},{"$f":"[1]Infrastructure!Z1319","v":0},0,{"$f":"[1]Infrastructure!AB1319","v":0},{"$f":"[1]Infrastructure!AB1319","v":0},0,{"$f":"[1]Infrastructure!AC1319","v":0},{"$f":"[1]Infrastructure!AD1319","v":0},{"$f":"[1]Infrastructure!AE1319","v":0},{"$f":"[1]Infrastructure!AF1319","v":0},{"$f":"[1]Infrastructure!AG1319","v":0},{"$f":"[1]Infrastructure!AH1319","v":0},0]
[0,null,null,null,null,null,{"$f":"[1]Infrastructure!G1320","v":0},{"$f":"[1]Infrastructure!H1320","v":0},{"$f":"[1]Infrastructure!I1320","v":0},{"$f":"[1]Infrastructure!J1320","v":0},{"$f":"[1]Infrastructure!K1320","v":0},{"$f":"[1]Infrastructure!L1320","v":0},{"$f":"[1]Infrastructure!M1320","v":0},{"$f":"[1]Infrastructure!N1320","v":0},{"$f":"[1]Infrastructure!O1320","v":0},{"$f":"[1]Infrastructure!Q1320","v":0},{"$f":"[1]Infrastructure!R1320","v":0},{"$f":"[1]Infrastructure!T1320","v":0},{"$f":"[1]Infrastructure!W1320","v":0},{"$f":"[1]Infrastructure!W1320","v":0},0,{"$f":"[1]Infrastructure!Z1320","v":0},{"$f":"[1]Infrastructure!Z1320","v":0},0,{"$f":"[1]Infrastructure!AB1320","v":0},{"$f":"[1]Infrastructure!AB1320","v":0},0,{"$f":"[1]Infrastructure!AC1320","v":0},{"$f":"[1]Infrastructure!AD1320","v":0},{"$f":"[1]Infrastructure!AE1320","v":0},{"$f":"[1]Infrastructure!AF1320","v":0},{"$f":"[1]Infrastructure!AG1320","v":0},{"$f":"[1]Infrastructure!AH1320","v":0},0]
[0,null,null,null,null,null,{"$f":"[1]Infrastructure!G1321","v":0},{"$f":"[1]Infrastructure!H1321","v":0},{"$f":"[1]Infrastructure!I1321","v":0},{"$f":"[1]Infrastructure!J1321","v":0},{"$f":"[1]Infrastructure!K1321","v":0},{"$f":"[1]Infrastructure!L1321","v":0},{"$f":"[1]Infrastructure!M1321","v":0},{"$f":"[1]Infrastructure!N1321","v":0},{"$f":"[1]Infrastructure!O1321","v":0},{"$f":"[1]Infrastructure!Q1321","v":0},{"$f":"[1]Infrastructure!R1321","v":0},{"$f":"[1]Infrastructure!T1321","v":0},{"$f":"[1]Infrastructure!W1321","v":0},{"$f":"[1]Infrastructure!W1321","v":0},0,{"$f":"[1]Infrastructure!Z1321","v":0},{"$f":"[1]Infrastructure!Z1321","v":0},0,{"$f":"[1]Infrastructure!AB1321","v":0},{"$f":"[1]Infrastructure!AB1321","v":0},0,{"$f":"[1]Infrastructure!AC1321","v":0},{"$f":"[1]Infrastructure!AD1321","v":0},{"$f":"[1]Infrastructure!AE1321","v":0},{"$f":"[1]Infrastructure!AF1321","v":0},{"$f":"[1]Infrastructure!AG1321","v":0},{"$f":"[1]Infrastructure!AH1321","v":0},0]
[0,null,null,null,null,null,{"$f":"[1]Infrastructure!G1322","v":0},{"$f":"[1]Infrastructure!H1322","v":0},{"$f":"[1]Infrastructure!I1322","v":0},{"$f":"[1]Infrastructure!J1322","v":0},{"$f":"[1]Infrastructure!K1322","v":0},{"$f":"[1]Infrastructure!L1322","v":0},{"$f":"[1]Infrastructure!M1322","v":0},{"$f":"[1]Infrastructure!N1322","v":0},{"$f":"[1]Infrastructure!O1322","v":0},{"$f":"[1]Infrastructure!Q1322","v":0},{"$f":"[1]Infrastructure!R1322","v":0},{"$f":"[1]Infrastructure!T1322","v":0},{"$f":"[1]Infrastructure!W1322","v":0},{"$f":"[1]Infrastructure!W1322","v":0},0,{"$f":"[1]Infrastructure!Z1322","v":0},{"$f":"[1]Infrastructure!Z1322","v":0},0,{"$f":"[1]Infrastructure!AB1322","v":0},{"$f":"[1]Infrastructure!AB1322","v":0},0,{"$f":"[1]Infrastructure!AC1322","v":0},{"$f":"[1]Infrastructure!AD1322","v":0},{"$f":"[1]Infrastructure!AE1322","v":0},{"$f":"[1]Infrastructure!AF1322","v":0},{"$f":"[1]Infrastructure!AG1322","v":0},{"$f":"[1]Infrastructure!AH1322","v":0},0]
[0,null,null,null,null,null,{"$f":"[1]Infrastructure!G1323","v":0},{"$f":"[1]Infrastructure!H1323","v":0},{"$f":"[1]Infrastructure!I1323","v":0},{"$f":"[1]Infrastructure!J1323","v":0},{"$f":"[1]Infrastructure!K1323","v":0},{"$f":"[1]Infrastructure!L1323","v":0},{"$f":"[1]Infrastructure!M1323","v":0},{"$f":"[1]Infrastructure!N1323","v":0},{"$f":"[1]Infrastructure!O1323","v":0},{"$f":"[1]Infrastructure!Q1323","v":0},{"$f":"[1]Infrastructure!R1323","v":0},{"$f":"[1]Infrastructure!T1323","v":0},{"$f":"[1]Infrastructure!W1323","v":0},{"$f":"[1]Infrastructure!W1323","v":0},0,{"$f":"[1]Infrastructure!Z1323","v":0},{"$f":"[1]Infrastructure!Z1323","v":0},0,{"$f":"[1]Infrastructure!AB1323","v":0},{"$f":"[1]Infrastructure!AB1323","v":0},0,{"$f":"[1]Infrastructure!AC1323","v":0},{"$f":"[1]Infrastructure!AD1323","v":0},{"$f":"[1]Infrastructure!AE1323","v":0},{"$f":"[1]Infrastructure!AF1323","v":0},{"$f":"[1]Infrastructure!AG1323","v":0},{"$f":"[1]Infrastructure!AH1323","v":0},0]
[0,null,null,null,null,null,{"$f":"[1]Infrastructure!G1324","v":0},{"$f":"[1]Infrastructure!H1324","v":0},{"$f":"[1]Infrastructure!I1324","v":0},{"$f":"[1]Infrastructure!J1324","v":0},{"$f":"[1]Infrastructure!K1324","v":0},{"$f":"[1]Infrastructure!L1324","v":0},{"$f":"[1]Infrastructure!M1324","v":0},{"$f":"[1]Infrastructure!N1324","v":0},{"$f":"[1]Infrastructure!O1324","v":0},{"$f":"[1]Infrastructure!Q1324","v":0},{"$f":"[1]Infrastructure!R1324","v":0},{"$f":"[1]Infrastructure!T1324","v":0},{"$f":"[1]Infrastructure!W1324","v":0},{"$f":"[1]Infrastructure!W1324","v":0},0,{"$f":"[1]Infrastructure!Z1324","v":0},{"$f":"[1]Infrastructure!Z1324","v":0},0,{"$f":"[1]Infrastructure!AB1324","v":0},{"$f":"[1]Infrastructure!AB1324","v":0},0,{"$f":"[1]Infrastructure!AC1324","v":0},{"$f":"[1]Infrastructure!AD1324","v":0},{"$f":"[1]Infrastructure!AE1324","v":0},{"$f":"[1]Infrastructure!AF1324","v":0},{"$f":"[1]Infrastructure!AG1324","v":0},{"$f":"[1]Infrastructure!AH1324","v":0},0]
[0,null,null,null,null,null,{"$f":"[1]Infrastructure!G1325","v":0},{"$f":"[1]Infrastructure!H1325","v":0},{"$f":"[1]Infrastructure!I1325","v":0},{"$f":"[1]Infrastructure!J1325","v":0},{"$f":"[1]Infrastructure!K1325","v":0},{"$f":"[1]Infrastructure!L1325","v":0},{"$f":"[1]Infrastructure!M1325","v":0},{"$f":"[1]Infrastructure!N1325","v":0},{"$f":"[1]Infrastructure!O1325","v":0},{"$f":"[1]Infrastructure!Q1325","v":0},{"$f":"[1]Infrastructure!R1325","v":0},{"$f":"[1]Infrastructure!T1325","v":0},{"$f":"[1]Infrastructure!W1325","v":0},{"$f":"[1]Infrastructure!W1325","v":0},0,{"$f":"[1]Infrastructure!Z1325","v":0},{"$f":"[1]Infrastructure!Z1325","v":0},0,{"$f":"[1]Infrastructure!AB1325","v":0},{"$f":"[1]Infrastructure!AB1325","v":0},0,{"$f":"[1]Infrastructure!AC1325","v":0},{"$f":"[1]Infrastructure!AD1325","v":0},{"$f":"[1]Infrastructure!AE1325","v":0},{"$f":"[1]Infrastructure!AF1325","v":0},{"$f":"[1]Infrastructure!AG1325","v":0},{"$f":"[1]Infrastructure!AH1325","v":0},0]
[0,null,null,null,null,null,{"$f":"[1]Infrastructure!G1326","v":0},{"$f":"[1]Infrastructure!H1326","v":0},{"$f":"[1]Infrastructure!I1326","v":0},{"$f":"[1]Infrastructure!J1326","v":0},{"$f":"[1]Infrastructure!K1326","v":0},{"$f":"[1]Infrastructure!L1326","v":0},{"$f":"[1]Infrastructure!M1326","v":0},{"$f":"[1]Infrastructure!N1326","v":0},{"$f":"[1]Infrastructure!O1326","v":0},{"$f":"[1]Infrastructure!Q1326","v":0},{"$f":"[1]Infrastructure!R1326","v":0},{"$f":"[1]Infrastructure!T1326","v":0},{"$f":"[1]Infrastructure!W1326","v":0},{"$f":"[1]Infrastructure!W1326","v":0},0,{"$f":"[1]Infrastructure!Z1326","v":0},{"$f":"[1]Infrastructure!Z1326","v":0},0,{"$f":"[1]Infrastructure!AB1326","v":0},{"$f":"[1]Infrastructure!AB1326","v":0},0,{"$f":"[1]Infrastructure!AC1326","v":0},{"$f":"[1]Infrastructure!AD1326","v":0},{"$f":"[1]Infrastructure!AE1326","v":0},{"$f":"[1]Infrastructure!AF1326","v":0},{"$f":"[1]Infrastructure!AG1326","v":0},{"$f":"[1]Infrastructure!AH1326","v":0},0]
[0,null,null,null,null,null,{"$f":"[1]Infrastructure!G1327","v":0},{"$f":"[1]Infrastructure!H1327","v":0},{"$f":"[1]Infrastructure!I1327","v":0},{"$f":"[1]Infrastructure!J1327","v":0},{"$f":"[1]Infrastructure!K1327","v":0},{"$f":"[1]Infrastructure!L1327","v":0},{"$f":"[1]Infrastructure!M1327","v":0},{"$f":"[1]Infrastructure!N1327","v":0},{"$f":"[1]Infrastructure!O1327","v":0},{"$f":"[1]Infrastructure!Q1327","v":0},{"$f":"[1]Infrastructure!R1327","v":0},{"$f":"[1]Infrastructure!T1327","v":0},{"$f":"[1]Infrastructure!W1327","v":0},{"$f":"[1]Infrastructure!W1327","v":0},0,{"$f":"[1]Infrastructure!Z1327","v":0},{"$f":"[1]Infrastructure!Z1327","v":0},0,{"$f":"[1]Infrastructure!AB1327","v":0},{"$f":"[1]Infrastructure!AB1327","v":0},0,{"$f":"[1]Infrastructure!AC1327","v":0},{"$f":"[1]Infrastructure!AD1327","v":0},{"$f":"[1]Infrastructure!AE1327","v":0},{"$f":"[1]Infrastructure!AF1327","v":0},{"$f":"[1]Infrastructure!AG1327","v":0},{"$f":"[1]Infrastructure!AH1327","v":0},0]
[0,null,null,null,null,null,{"$f":"[1]Infrastructure!G1328","v":0},{"$f":"[1]Infrastructure!H1328","v":0},{"$f":"[1]Infrastructure!I1328","v":0},{"$f":"[1]Infrastructure!J1328","v":0},{"$f":"[1]Infrastructure!K1328","v":0},{"$f":"[1]Infrastructure!L1328","v":0},{"$f":"[1]Infrastructure!M1328","v":0},{"$f":"[1]Infrastructure!N1328","v":0},{"$f":"[1]Infrastructure!O1328","v":0},{"$f":"[1]Infrastructure!Q1328","v":0},{"$f":"[1]Infrastructure!R1328","v":0},{"$f":"[1]Infrastructure!T1328","v":0},{"$f":"[1]Infrastructure!W1328","v":0},{"$f":"[1]Infrastructure!W1328","v":0},0,{"$f":"[1]Infrastructure!Z1328","v":0},{"$f":"[1]Infrastructure!Z1328","v":0},0,{"$f":"[1]Infrastructure!AB1328","v":0},{"$f":"[1]Infrastructure!AB1328","v":0},0,{"$f":"[1]Infrastructure!AC1328","v":0},{"$f":"[1]Infrastructure!AD1328","v":0},{"$f":"[1]Infrastructure!AE1328","v":0},{"$f":"[1]Infrastructure!AF1328","v":0},{"$f":"[1]Infrastructure!AG1328","v":0},{"$f":"[1]Infrastructure!AH1328","v":0},0]
[0,null,null,null,null,null,{"$f":"[1]Infrastructure!G1329","v":0},{"$f":"[1]Infrastructure!H1329","v":0},{"$f":"[1]Infrastructure!I1329","v":0},{"$f":"[1]Infrastructure!J1329","v":0},{"$f":"[1]Infrastructure!K1329","v":0},{"$f":"[1]Infrastructure!L1329","v":0},{"$f":"[1]Infrastructure!M1329","v":0},{"$f":"[1]Infrastructure!N1329","v":0},{"$f":"[1]Infrastructure!O1329","v":0},{"$f":"[1]Infrastructure!Q1329","v":0},{"$f":"[1]Infrastructure!R1329","v":0},{"$f":"[1]Infrastructure!T1329","v":0},{"$f":"[1]Infrastructure!W1329","v":0},{"$f":"[1]Infrastructure!W1329","v":0},0,{"$f":"[1]Infrastructure!Z1329","v":0},{"$f":"[1]Infrastructure!Z1329","v":0},0,{"$f":"[1]Infrastructure!AB1329","v":0},{"$f":"[1]Infrastructure!AB1329","v":0},0,{"$f":"[1]Infrastructure!AC1329","v":0},{"$f":"[1]Infrastructure!AD1329","v":0},{"$f":"[1]Infrastructure!AE1329","v":0},{"$f":"[1]Infrastructure!AF1329","v":0},{"$f":"[1]Infrastructure!AG1329","v":0},{"$f":"[1]Infrastructure!AH1329","v":0},0]
[0,null,null,null,null,null,{"$f":"[1]Infrastructure!G1330","v":0},{"$f":"[1]Infrastructure!H1330","v":0},{"$f":"[1]Infrastructure!I1330","v":0},{"$f":"[1]Infrastructure!J1330","v":0},{"$f":"[1]Infrastructure!K1330","v":0},{"$f":"[1]Infrastructure!L1330","v":0},{"$f":"[1]Infrastructure!M1330","v":0},{"$f":"[1]Infrastructure!N1330","v":0},{"$f":"[1]Infrastructure!O1330","v":0},{"$f":"[1]Infrastructure!Q1330","v":0},{"$f":"[1]Infrastructure!R1330","v":0},{"$f":"[1]Infrastructure!T1330","v":0},{"$f":"[1]Infrastructure!W1330","v":0},{"$f":"[1]Infrastructure!W1330","v":0},0,{"$f":"[1]Infrastructure!Z1330","v":0},{"$f":"[1]Infrastructure!Z1330","v":0},0,{"$f":"[1]Infrastructure!AB1330","v":0},{"$f":"[1]Infrastructure!AB1330","v":0},0,{"$f":"[1]Infrastructure!AC1330","v":0},{"$f":"[1]Infrastructure!AD1330","v":0},{"$f":"[1]Infrastructure!AE1330","v":0},{"$f":"[1]Infrastructure!AF1330","v":0},{"$f":"[1]Infrastructure!AG1330","v":0},{"$f":"[1]Infrastructure!AH1330","v":0},0]
[0,null,null,null,null,null,{"$f":"[1]Infrastructure!G1331","v":0},{"$f":"[1]Infrastructure!H1331","v":0},{"$f":"[1]Infrastructure!I1331","v":0},{"$f":"[1]Infrastructure!J1331","v":0},{"$f":"[1]Infrastructure!K1331","v":0},{"$f":"[1]Infrastructure!L1331","v":0},{"$f":"[1]Infrastructure!M1331","v":0},{"$f":"[1]Infrastructure!N1331","v":0},{"$f":"[1]Infrastructure!O1331","v":0},{"$f":"[1]Infrastructure!Q1331","v":0},{"$f":"[1]Infrastructure!R1331","v":0},{"$f":"[1]Infrastructure!T1331","v":0},{"$f":"[1]Infrastructure!W1331","v":0},{"$f":"[1]Infrastructure!W1331","v":0},0,{"$f":"[1]Infrastructure!Z1331","v":0},{"$f":"[1]Infrastructure!Z1331","v":0},0,{"$f":"[1]Infrastructure!AB1331","v":0},{"$f":"[1]Infrastructure!AB1331","v":0},0,{"$f":"[1]Infrastructure!AC1331","v":0},{"$f":"[1]Infrastructure!AD1331","v":0},{"$f":"[1]Infrastructure!AE1331","v":0},{"$f":"[1]Infrastructure!AF1331","v":0},{"$f":"[1]Infrastructure!AG1331","v":0},{"$f":"[1]Infrastructure!AH1331","v":0},0]
[0,null,null,null,null,null,{"$f":"[1]Infrastructure!G1332","v":0},{"$f":"[1]Infrastructure!H1332","v":0},{"$f":"[1]Infrastructure!I1332","v":0},{"$f":"[1]Infrastructure!J1332","v":0},{"$f":"[1]Infrastructure!K1332","v":0},{"$f":"[1]Infrastructure!L1332","v":0},{"$f":"[1]Infrastructure!M1332","v":0},{"$f":"[1]Infrastructure!N1332","v":0},{"$f":"[1]Infrastructure!O1332","v":0},{"$f":"[1]Infrastructure!Q1332","v":0},{"$f":"[1]Infrastructure!R1332","v":0},{"$f":"[1]Infrastructure!T1332","v":0},{"$f":"[1]Infrastructure!W1332","v":0},{"$f":"[1]Infrastructure!W1332","v":0},0,{"$f":"[1]Infrastructure!Z1332","v":0},{"$f":"[1]Infrastructure!Z1332","v":0},0,{"$f":"[1]Infrastructure!AB1332","v":0},{"$f":"[1]Infrastructure!AB1332","v":0},0,{"$f":"[1]Infrastructure!AC1332","v":0},{"$f":"[1]Infrastructure!AD1332","v":0},{"$f":"[1]Infrastructure!AE1332","v":0},{"$f":"[1]Infrastructure!AF1332","v":0},{"$f":"[1]Infrastructure!AG1332","v":0},{"$f":"[1]Infrastructure!AH1332","v":0},0]
[0,null,null,null,null,null,{"$f":"[1]Infrastructure!G1333","v":0},{"$f":"[1]Infrastructure!H1333","v":0},{"$f":"[1]Infrastructure!I1333","v":0},{"$f":"[1]Infrastructure!J1333","v":0},{"$f":"[1]Infrastructure!K1333","v":0},{"$f":"[1]Infrastructure!L1333","v":0},{"$f":"[1]Infrastructure!M1333","v":0},{"$f":"[1]Infrastructure!N1333","v":0},{"$f":"[1]Infrastructure!O1333","v":0},{"$f":"[1]Infrastructure!Q1333","v":0},{"$f":"[1]Infrastructure!R1333","v":0},{"$f":"[1]Infrastructure!T1333","v":0},{"$f":"[1]Infrastructure!W1333","v":0},{"$f":"[1]Infrastructure!W1333","v":0},0,{"$f":"[1]Infrastructure!Z1333","v":0},{"$f":"[1]Infrastructure!Z1333","v":0},0,{"$f":"[1]Infrastructure!AB1333","v":0},{"$f":"[1]Infrastructure!AB1333","v":0},0,{"$f":"[1]Infrastructure!AC1333","v":0},{"$f":"[1]Infrastructure!AD1333","v":0},{"$f":"[1]Infrastructure!AE1333","v":0},{"$f":"[1]Infrastructure!AF1333","v":0},{"$f":"[1]Infrastructure!AG1333","v":0},{"$f":"[1]Infrastructure!AH1333","v":0},0]
[0,null,null,null,null,null,{"$f":"[1]Infrastructure!G1334","v":0},{"$f":"[1]Infrastructure!H1334","v":0},{"$f":"[1]Infrastructure!I1334","v":0},{"$f":"[1]Infrastructure!J1334","v":0},{"$f":"[1]Infrastructure!K1334","v":0},{"$f":"[1]Infrastructure!L1334","v":0},{"$f":"[1]Infrastructure!M1334","v":0},{"$f":"[1]Infrastructure!N1334","v":0},{"$f":"[1]Infrastructure!O1334","v":0},{"$f":"[1]Infrastructure!Q1334","v":0},{"$f":"[1]Infrastructure!R1334","v":0},{"$f":"[1]Infrastructure!T1334","v":0},{"$f":"[1]Infrastructure!W1334","v":0},{"$f":"[1]Infrastructure!W1334","v":0},0,{"$f":"[1]Infrastructure!Z1334","v":0},{"$f":"[1]Infrastructure!Z1334","v":0},0,{"$f":"[1]Infrastructure!AB1334","v":0},{"$f":"[1]Infrastructure!AB1334","v":0},0,{"$f":"[1]Infrastructure!AC1334","v":0},{"$f":"[1]Infrastructure!AD1334","v":0},{"$f":"[1]Infrastructure!AE1334","v":0},{"$f":"[1]Infrastructure!AF1334","v":0},{"$f":"[1]Infrastructure!AG1334","v":0},{"$f":"[1]Infrastructure!AH1334","v":0},0]
[0,null,null,null,null,null,{"$f":"[1]Infrastructure!G1335","v":0},{"$f":"[1]Infrastructure!H1335","v":0},{"$f":"[1]Infrastructure!I1335","v":0},{"$f":"[1]Infrastructure!J1335","v":0},{"$f":"[1]Infrastructure!K1335","v":0},{"$f":"[1]Infrastructure!L1335","v":0},{"$f":"[1]Infrastructure!M1335","v":0},{"$f":"[1]Infrastructure!N1335","v":0},{"$f":"[1]Infrastructure!O1335","v":0},{"$f":"[1]Infrastructure!Q1335","v":0},{"$f":"[1]Infrastructure!R1335","v":0},{"$f":"[1]Infrastructure!T1335","v":0},{"$f":"[1]Infrastructure!W1335","v":0},{"$f":"[1]Infrastructure!W1335","v":0},0,{"$f":"[1]Infrastructure!Z1335","v":0},{"$f":"[1]Infrastructure!Z1335","v":0},0,{"$f":"[1]Infrastructure!AB1335","v":0},{"$f":"[1]Infrastructure!AB1335","v":0},0,{"$f":"[1]Infrastructure!AC1335","v":0},{"$f":"[1]Infrastructure!AD1335","v":0},{"$f":"[1]Infrastructure!AE1335","v":0},{"$f":"[1]Infrastructure!AF1335","v":0},{"$f":"[1]Infrastructure!AG1335","v":0},{"$f":"[1]Infrastructure!AH1335","v":0},0]
[0,null,null,null,null,null,{"$f":"[1]Infrastructure!G1336","v":0},{"$f":"[1]Infrastructure!H1336","v":0},{"$f":"[1]Infrastructure!I1336","v":0},{"$f":"[1]Infrastructure!J1336","v":0},{"$f":"[1]Infrastructure!K1336","v":0},{"$f":"[1]Infrastructure!L1336","v":0},{"$f":"[1]Infrastructure!M1336","v":0},{"$f":"[1]Infrastructure!N1336","v":0},{"$f":"[1]Infrastructure!O1336","v":0},{"$f":"[1]Infrastructure!Q1336","v":0},{"$f":"[1]Infrastructure!R1336","v":0},{"$f":"[1]Infrastructure!T1336","v":0},{"$f":"[1]Infrastructure!W1336","v":0},{"$f":"[1]Infrastructure!W1336","v":0},0,{"$f":"[1]Infrastructure!Z1336","v":0},{"$f":"[1]Infrastructure!Z1336","v":0},0,{"$f":"[1]Infrastructure!AB1336","v":0},{"$f":"[1]Infrastructure!AB1336","v":0},0,{"$f":"[1]Infrastructure!AC1336","v":0},{"$f":"[1]Infrastructure!AD1336","v":0},{"$f":"[1]Infrastructure!AE1336","v":0},{"$f":"[1]Infrastructure!AF1336","v":0},{"$f":"[1]Infrastructure!AG1336","v":0},{"$f":"[1]Infrastructure!AH1336","v":0},0]
[0,null,null,null,null,null,{"$f":"[1]Infrastructure!G1337","v":0},{"$f":"[1]Infrastructure!H1337","v":0},{"$f":"[1]Infrastructure!I1337","v":0},{"$f":"[1]Infrastructure!J1337","v":0},{"$f":"[1]Infrastructure!K1337","v":0},{"$f":"[1]Infrastructure!L1337","v":0},{"$f":"[1]Infrastructure!M1337","v":0},{"$f":"[1]Infrastructure!N1337","v":0},{"$f":"[1]Infrastructure!O1337","v":0},{"$f":"[1]Infrastructure!Q1337","v":0},{"$f":"[1]Infrastructure!R1337","v":0},{"$f":"[1]Infrastructure!T1337","v":0},{"$f":"[1]Infrastructure!W1337","v":0},{"$f":"[1]Infrastructure!W1337","v":0},0,{"$f":"[1]Infrastructure!Z1337","v":0},{"$f":"[1]Infrastructure!Z1337","v":0},0,{"$f":"[1]Infrastructure!AB1337","v":0},{"$f":"[1]Infrastructure!AB1337","v":0},0,{"$f":"[1]Infrastructure!AC1337","v":0},{"$f":"[1]Infrastructure!AD1337","v":0},{"$f":"[1]Infrastructure!AE1337","v":0},{"$f":"[1]Infrastructure!AF1337","v":0},{"$f":"[1]Infrastructure!AG1337","v":0},{"$f":"[1]Infrastructure!AH1337","v":0},0]
[0,null,null,null,null,null,{"$f":"[1]Infrastructure!G1338","v":0},{"$f":"[1]Infrastructure!H1338","v":0},{"$f":"[1]Infrastructure!I1338","v":0},{"$f":"[1]Infrastructure!J1338","v":0},{"$f":"[1]Infrastructure!K1338","v":0},{"$f":"[1]Infrastructure!L1338","v":0},{"$f":"[1]Infrastructure!M1338","v":0},{"$f":"[1]Infrastructure!N1338","v":0},{"$f":"[1]Infrastructure!O1338","v":0},{"$f":"[1]Infrastructure!Q1338","v":0},{"$f":"[1]Infrastructure!R1338","v":0},{"$f":"[1]Infrastructure!T1338","v":0},{"$f":"[1]Infrastructure!W1338","v":0},{"$f":"[1]Infrastructure!W1338","v":0},0,{"$f":"[1]Infrastructure!Z1338","v":0},{"$f":"[1]Infrastructure!Z1338","v":0},0,{"$f":"[1]Infrastructure!AB1338","v":0},{"$f":"[1]Infrastructure!AB1338","v":0},0,{"$f":"[1]Infrastructure!AC1338","v":0},{"$f":"[1]Infrastructure!AD1338","v":0},{"$f":"[1]Infrastructure!AE1338","v":0},{"$f":"[1]Infrastructure!AF1338","v":0},{"$f":"[1]Infrastructure!AG1338","v":0},{"$f":"[1]Infrastructure!AH1338","v":0},0]
[0,null,null,null,null,null,{"$f":"[1]Infrastructure!G1339","v":0},{"$f":"[1]Infrastructure!H1339","v":0},{"$f":"[1]Infrastructure!I1339","v":0},{"$f":"[1]Infrastructure!J1339","v":0},{"$f":"[1]Infrastructure!K1339","v":0},{"$f":"[1]Infrastructure!L1339","v":0},{"$f":"[1]Infrastructure!M1339","v":0},{"$f":"[1]Infrastructure!N1339","v":0},{"$f":"[1]Infrastructure!O1339","v":0},{"$f":"[1]Infrastructure!Q1339","v":0},{"$f":"[1]Infrastructure!R1339","v":0},{"$f":"[1]Infrastructure!T1339","v":0},{"$f":"[1]Infrastructure!W1339","v":0},{"$f":"[1]Infrastructure!W1339","v":0},0,{"$f":"[1]Infrastructure!Z1339","v":0},{"$f":"[1]Infrastructure!Z1339","v":0},0,{"$f":"[1]Infrastructure!AB1339","v":0},{"$f":"[1]Infrastructure!AB1339","v":0},0,{"$f":"[1]Infrastructure!AC1339","v":0},{"$f":"[1]Infrastructure!AD1339","v":0},{"$f":"[1]Infrastructure!AE1339","v":0},{"$f":"[1]Infrastructure!AF1339","v":0},{"$f":"[1]Infrastructure!AG1339","v":0},{"$f":"[1]Infrastructure!AH1339","v":0},0]
[0,null,null,null,null,null,{"$f":"[1]Infrastructure!G1340","v":0},{"$f":"[1]Infrastructure!H1340","v":0},{"$f":"[1]Infrastructure!I1340","v":0},{"$f":"[1]Infrastructure!J1340","v":0},{"$f":"[1]Infrastructure!K1340","v":0},{"$f":"[1]Infrastructure!L1340","v":0},{"$f":"[1]Infrastructure!M1340","v":0},{"$f":"[1]Infrastructure!N1340","v":0},{"$f":"[1]Infrastructure!O1340","v":0},{"$f":"[1]Infrastructure!Q1340","v":0},{"$f":"[1]Infrastructure!R1340","v":0},{"$f":"[1]Infrastructure!T1340","v":0},{"$f":"[1]Infrastructure!W1340","v":0},{"$f":"[1]Infrastructure!W1340","v":0},0,{"$f":"[1]Infrastructure!Z1340","v":0},{"$f":"[1]Infrastructure!Z1340","v":0},0,{"$f":"[1]Infrastructure!AB1340","v":0},{"$f":"[1]Infrastructure!AB1340","v":0},0,{"$f":"[1]Infrastructure!AC1340","v":0},{"$f":"[1]Infrastructure!AD1340","v":0},{"$f":"[1]Infrastructure!AE1340","v":0},{"$f":"[1]Infrastructure!AF1340","v":0},{"$f":"[1]Infrastructure!AG1340","v":0},{"$f":"[1]Infrastructure!AH1340","v":0},0]
[0,null,null,null,null,null,{"$f":"[1]Infrastructure!G1341","v":0},{"$f":"[1]Infrastructure!H1341","v":0},{"$f":"[1]Infrastructure!I1341","v":0},{"$f":"[1]Infrastructure!J1341","v":0},{"$f":"[1]Infrastructure!K1341","v":0},{"$f":"[1]Infrastructure!L1341","v":0},{"$f":"[1]Infrastructure!M1341","v":0},{"$f":"[1]Infrastructure!N1341","v":0},{"$f":"[1]Infrastructure!O1341","v":0},{"$f":"[1]Infrastructure!Q1341","v":0},{"$f":"[1]Infrastructure!R1341","v":0},{"$f":"[1]Infrastructure!T1341","v":0},{"$f":"[1]Infrastructure!W1341","v":0},{"$f":"[1]Infrastructure!W1341","v":0},0,{"$f":"[1]Infrastructure!Z1341","v":0},{"$f":"[1]Infrastructure!Z1341","v":0},0,{"$f":"[1]Infrastructure!AB1341","v":0},{"$f":"[1]Infrastructure!AB1341","v":0},0,{"$f":"[1]Infrastructure!AC1341","v":0},{"$f":"[1]Infrastructure!AD1341","v":0},{"$f":"[1]Infrastructure!AE1341","v":0},{"$f":"[1]Infrastructure!AF1341","v":0},{"$f":"[1]Infrastructure!AG1341","v":0},{"$f":"[1]Infrastructure!AH1341","v":0},0]
[0,null,null,null,null,null,{"$f":"[1]Infrastructure!G1342","v":0},{"$f":"[1]Infrastructure!H1342","v":0},{"$f":"[1]Infrastructure!I1342","v":0},{"$f":"[1]Infrastructure!J1342","v":0},{"$f":"[1]Infrastructure!K1342","v":0},{"$f":"[1]Infrastructure!L1342","v":0},{"$f":"[1]Infrastructure!M1342","v":0},{"$f":"[1]Infrastructure!N1342","v":0},{"$f":"[1]Infrastructure!O1342","v":0},{"$f":"[1]Infrastructure!Q1342","v":0},{"$f":"[1]Infrastructure!R1342","v":0},{"$f":"[1]Infrastructure!T1342","v":0},{"$f":"[1]Infrastructure!W1342","v":0},{"$f":"[1]Infrastructure!W1342","v":0},0,{"$f":"[1]Infrastructure!Z1342","v":0},{"$f":"[1]Infrastructure!Z1342","v":0},0,{"$f":"[1]Infrastructure!AB1342","v":0},{"$f":"[1]Infrastructure!AB1342","v":0},0,{"$f":"[1]Infrastructure!AC1342","v":0},{"$f":"[1]Infrastructure!AD1342","v":0},{"$f":"[1]Infrastructure!AE1342","v":0},{"$f":"[1]Infrastructure!AF1342","v":0},{"$f":"[1]Infrastructure!AG1342","v":0},{"$f":"[1]Infrastructure!AH1342","v":0},0]
[0,null,null,null,null,null,{"$f":"[1]Infrastructure!G1343","v":0},{"$f":"[1]Infrastructure!H1343","v":0},{"$f":"[1]Infrastructure!I1343","v":0},{"$f":"[1]Infrastructure!J1343","v":0},{"$f":"[1]Infrastructure!K1343","v":0},{"$f":"[1]Infrastructure!L1343","v":0},{"$f":"[1]Infrastructure!M1343","v":0},{"$f":"[1]Infrastructure!N1343","v":0},{"$f":"[1]Infrastructure!O1343","v":0},{"$f":"[1]Infrastructure!Q1343","v":0},{"$f":"[1]Infrastructure!R1343","v":0},{"$f":"[1]Infrastructure!T1343","v":0},{"$f":"[1]Infrastructure!W1343","v":0},{"$f":"[1]Infrastructure!W1343","v":0},0,{"$f":"[1]Infrastructure!Z1343","v":0},{"$f":"[1]Infrastructure!Z1343","v":0},0,{"$f":"[1]Infrastructure!AB1343","v":0},{"$f":"[1]Infrastructure!AB1343","v":0},0,{"$f":"[1]Infrastructure!AC1343","v":0},{"$f":"[1]Infrastructure!AD1343","v":0},{"$f":"[1]Infrastructure!AE1343","v":0},{"$f":"[1]Infrastructure!AF1343","v":0},{"$f":"[1]Infrastructure!AG1343","v":0},{"$f":"[1]Infrastructure!AH1343","v":0},0]
[0,null,null,null,null,null,{"$f":"[1]Infrastructure!G1344","v":0},{"$f":"[1]Infrastructure!H1344","v":0},{"$f":"[1]Infrastructure!I1344","v":0},{"$f":"[1]Infrastructure!J1344","v":0},{"$f":"[1]Infrastructure!K1344","v":0},{"$f":"[1]Infrastructure!L1344","v":0},{"$f":"[1]Infrastructure!M1344","v":0},{"$f":"[1]Infrastructure!N1344","v":0},{"$f":"[1]Infrastructure!O1344","v":0},{"$f":"[1]Infrastructure!Q1344","v":0},{"$f":"[1]Infrastructure!R1344","v":0},{"$f":"[1]Infrastructure!T1344","v":0},{"$f":"[1]Infrastructure!W1344","v":0},{"$f":"[1]Infrastructure!W1344","v":0},0,{"$f":"[1]Infrastructure!Z1344","v":0},{"$f":"[1]Infrastructure!Z1344","v":0},0,{"$f":"[1]Infrastructure!AB1344","v":0},{"$f":"[1]Infrastructure!AB1344","v":0},0,{"$f":"[1]Infrastructure!AC1344","v":0},{"$f":"[1]Infrastructure!AD1344","v":0},{"$f":"[1]Infrastructure!AE1344","v":0},{"$f":"[1]Infrastructure!AF1344","v":0},{"$f":"[1]Infrastructure!AG1344","v":0},{"$f":"[1]Infrastructure!AH1344","v":0},0]
[0,null,null,null,null,null,{"$f":"[1]Infrastructure!G1345","v":0},{"$f":"[1]Infrastructure!H1345","v":0},{"$f":"[1]Infrastructure!I1345","v":0},{"$f":"[1]Infrastructure!J1345","v":0},{"$f":"[1]Infrastructure!K1345","v":0},{"$f":"[1]Infrastructure!L1345","v":0},{"$f":"[1]Infrastructure!M1345","v":0},{"$f":"[1]Infrastructure!N1345","v":0},{"$f":"[1]Infrastructure!O1345","v":0},{"$f":"[1]Infrastructure!Q1345","v":0},{"$f":"[1]Infrastructure!R1345","v":0},{"$f":"[1]Infrastructure!T1345","v":0},{"$f":"[1]Infrastructure!W1345","v":0},{"$f":"[1]Infrastructure!W1345","v":0},0,{"$f":"[1]Infrastructure!Z1345","v":0},{"$f":"[1]Infrastructure!Z1345","v":0},0,{"$f":"[1]Infrastructure!AB1345","v":0},{"$f":"[1]Infrastructure!AB1345","v":0},0,{"$f":"[1]Infrastructure!AC1345","v":0},{"$f":"[1]Infrastructure!AD1345","v":0},{"$f":"[1]Infrastructure!AE1345","v":0},{"$f":"[1]Infrastructure!AF1345","v":0},{"$f":"[1]Infrastructure!AG1345","v":0},{"$f":"[1]Infrastructure!AH1345","v":0},0]
[0,null,null,null,null,null,{"$f":"[1]Infrastructure!G1346","v":0},{"$f":"[1]Infrastructure!H1346","v":0},{"$f":"[1]Infrastructure!I1346","v":0},{"$f":"[1]Infrastructure!J1346","v":0},{"$f":"[1]Infrastructure!K1346","v":0},{"$f":"[1]Infrastructure!L1346","v":0},{"$f":"[1]Infrastructure!M1346","v":0},{"$f":"[1]Infrastructure!N1346","v":0},{"$f":"[1]Infrastructure!O1346","v":0},{"$f":"[1]Infrastructure!Q1346","v":0},{"$f":"[1]Infrastructure!R1346","v":0},{"$f":"[1]Infrastructure!T1346","v":0},{"$f":"[1]Infrastructure!W1346","v":0},{"$f":"[1]Infrastructure!W1346","v":0},0,{"$f":"[1]Infrastructure!Z1346","v":0},{"$f":"[1]Infrastructure!Z1346","v":0},0,{"$f":"[1]Infrastructure!AB1346","v":0},{"$f":"[1]Infrastructure!AB1346","v":0},0,{"$f":"[1]Infrastructure!AC1346","v":0},{"$f":"[1]Infrastructure!AD1346","v":0},{"$f":"[1]Infrastructure!AE1346","v":0},{"$f":"[1]Infrastructure!AF1346","v":0},{"$f":"[1]Infrastructure!AG1346","v":0},{"$f":"[1]Infrastructure!AH1346","v":0},0]
[0,null,null,null,null,null,{"$f":"[1]Infrastructure!G1347","v":0},{"$f":"[1]Infrastructure!H1347","v":0},{"$f":"[1]Infrastructure!I1347","v":0},{"$f":"[1]Infrastructure!J1347","v":0},{"$f":"[1]Infrastructure!K1347","v":0},{"$f":"[1]Infrastructure!L1347","v":0},{"$f":"[1]Infrastructure!M1347","v":0},{"$f":"[1]Infrastructure!N1347","v":0},{"$f":"[1]Infrastructure!O1347","v":0},{"$f":"[1]Infrastructure!Q1347","v":0},{"$f":"[1]Infrastructure!R1347","v":0},{"$f":"[1]Infrastructure!T1347","v":0},{"$f":"[1]Infrastructure!W1347","v":0},{"$f":"[1]Infrastructure!W1347","v":0},0,{"$f":"[1]Infrastructure!Z1347","v":0},{"$f":"[1]Infrastructure!Z1347","v":0},0,{"$f":"[1]Infrastructure!AB1347","v":0},{"$f":"[1]Infrastructure!AB1347","v":0},0,{"$f":"[1]Infrastructure!AC1347","v":0},{"$f":"[1]Infrastructure!AD1347","v":0},{"$f":"[1]Infrastructure!AE1347","v":0},{"$f":"[1]Infrastructure!AF1347","v":0},{"$f":"[1]Infrastructure!AG1347","v":0},{"$f":"[1]Infrastructure!AH1347","v":0},0]
[0,null,null,null,null,null,{"$f":"[1]Infrastructure!G1348","v":0},{"$f":"[1]Infrastructure!H1348","v":0},{"$f":"[1]Infrastructure!I1348","v":0},{"$f":"[1]Infrastructure!J1348","v":0},{"$f":"[1]Infrastructure!K1348","v":0},{"$f":"[1]Infrastructure!L1348","v":0},{"$f":"[1]Infrastructure!M1348","v":0},{"$f":"[1]Infrastructure!N1348","v":0},{"$f":"[1]Infrastructure!O1348","v":0},{"$f":"[1]Infrastructure!Q1348","v":0},{"$f":"[1]Infrastructure!R1348","v":0},{"$f":"[1]Infrastructure!T1348","v":0},{"$f":"[1]Infrastructure!W1348","v":0},{"$f":"[1]Infrastructure!W1348","v":0},0,{"$f":"[1]Infrastructure!Z1348","v":0},{"$f":"[1]Infrastructure!Z1348","v":0},0,{"$f":"[1]Infrastructure!AB1348","v":0},{"$f":"[1]Infrastructure!AB1348","v":0},0,{"$f":"[1]Infrastructure!AC1348","v":0},{"$f":"[1]Infrastructure!AD1348","v":0},{"$f":"[1]Infrastructure!AE1348","v":0},{"$f":"[1]Infrastructure!AF1348","v":0},{"$f":"[1]Infrastructure!AG1348","v":0},{"$f":"[1]Infrastructure!AH1348","v":0},0]
[0,null,null,null,null,null,{"$f":"[1]Infrastructure!G1349","v":0},{"$f":"[1]Infrastructure!H1349","v":0},{"$f":"[1]Infrastructure!I1349","v":0},{"$f":"[1]Infrastructure!J1349","v":0},{"$f":"[1]Infrastructure!K1349","v":0},{"$f":"[1]Infrastructure!L1349","v":0},{"$f":"[1]Infrastructure!M1349","v":0},{"$f":"[1]Infrastructure!N1349","v":0},{"$f":"[1]Infrastructure!O1349","v":0},{"$f":"[1]Infrastructure!Q1349","v":0},{"$f":"[1]Infrastructure!R1349","v":0},{"$f":"[1]Infrastructure!T1349","v":0},{"$f":"[1]Infrastructure!W1349","v":0},{"$f":"[1]Infrastructure!W1349","v":0},0,{"$f":"[1]Infrastructure!Z1349","v":0},{"$f":"[1]Infrastructure!Z1349","v":0},0,{"$f":"[1]Infrastructure!AB1349","v":0},{"$f":"[1]Infrastructure!AB1349","v":0},0,{"$f":"[1]Infrastructure!AC1349","v":0},{"$f":"[1]Infrastructure!AD1349","v":0},{"$f":"[1]Infrastructure!AE1349","v":0},{"$f":"[1]Infrastructure!AF1349","v":0},{"$f":"[1]Infrastructure!AG1349","v":0},{"$f":"[1]Infrastructure!AH1349","v":0},0]
[0,null,null,null,null,null,{"$f":"[1]Infrastructure!G1350","v":0},{"$f":"[1]Infrastructure!H1350","v":0},{"$f":"[1]Infrastructure!I1350","v":0},{"$f":"[1]Infrastructure!J1350","v":0},{"$f":"[1]Infrastructure!K1350","v":0},{"$f":"[1]Infrastructure!L1350","v":0},{"$f":"[1]Infrastructure!M1350","v":0},{"$f":"[1]Infrastructure!N1350","v":0},{"$f":"[1]Infrastructure!O1350","v":0},{"$f":"[1]Infrastructure!Q1350","v":0},{"$f":"[1]Infrastructure!R1350","v":0},{"$f":"[1]Infrastructure!T1350","v":0},{"$f":"[1]Infrastructure!W1350","v":0},{"$f":"[1]Infrastructure!W1350","v":0},0,{"$f":"[1]Infrastructure!Z1350","v":0},{"$f":"[1]Infrastructure!Z1350","v":0},0,{"$f":"[1]Infrastructure!AB1350","v":0},{"$f":"[1]Infrastructure!AB1350","v":0},0,{"$f":"[1]Infrastructure!AC1350","v":0},{"$f":"[1]Infrastructure!AD1350","v":0},{"$f":"[1]Infrastructure!AE1350","v":0},{"$f":"[1]Infrastructure!AF1350","v":0},{"$f":"[1]Infrastructure!AG1350","v":0},{"$f":"[1]Infrastructure!AH1350","v":0},0]
[0,null,null,null,null,null,{"$f":"[1]Infrastructure!G1351","v":0},{"$f":"[1]Infrastructure!H1351","v":0},{"$f":"[1]Infrastructure!I1351","v":0},{"$f":"[1]Infrastructure!J1351","v":0},{"$f":"[1]Infrastructure!K1351","v":0},{"$f":"[1]Infrastructure!L1351","v":0},{"$f":"[1]Infrastructure!M1351","v":0},{"$f":"[1]Infrastructure!N1351","v":0},{"$f":"[1]Infrastructure!O1351","v":0},{"$f":"[1]Infrastructure!Q1351","v":0},{"$f":"[1]Infrastructure!R1351","v":0},{"$f":"[1]Infrastructure!T1351","v":0},{"$f":"[1]Infrastructure!W1351","v":0},{"$f":"[1]Infrastructure!W1351","v":0},0,{"$f":"[1]Infrastructure!Z1351","v":0},{"$f":"[1]Infrastructure!Z1351","v":0},0,{"$f":"[1]Infrastructure!AB1351","v":0},{"$f":"[1]Infrastructure!AB1351","v":0},0,{"$f":"[1]Infrastructure!AC1351","v":0},{"$f":"[1]Infrastructure!AD1351","v":0},{"$f":"[1]Infrastructure!AE1351","v":0},{"$f":"[1]Infrastructure!AF1351","v":0},{"$f":"[1]Infrastructure!AG1351","v":0},{"$f":"[1]Infrastructure!AH1351","v":0},0]
[0,null,null,null,null,null,{"$f":"[1]Infrastructure!G1352","v":0},{"$f":"[1]Infrastructure!H1352","v":0},{"$f":"[1]Infrastructure!I1352","v":0},{"$f":"[1]Infrastructure!J1352","v":0},{"$f":"[1]Infrastructure!K1352","v":0},{"$f":"[1]Infrastructure!L1352","v":0},{"$f":"[1]Infrastructure!M1352","v":0},{"$f":"[1]Infrastructure!N1352","v":0},{"$f":"[1]Infrastructure!O1352","v":0},{"$f":"[1]Infrastructure!Q1352","v":0},{"$f":"[1]Infrastructure!R1352","v":0},{"$f":"[1]Infrastructure!T1352","v":0},{"$f":"[1]Infrastructure!W1352","v":0},{"$f":"[1]Infrastructure!W1352","v":0},0,{"$f":"[1]Infrastructure!Z1352","v":0},{"$f":"[1]Infrastructure!Z1352","v":0},0,{"$f":"[1]Infrastructure!AB1352","v":0},{"$f":"[1]Infrastructure!AB1352","v":0},0,{"$f":"[1]Infrastructure!AC1352","v":0},{"$f":"[1]Infrastructure!AD1352","v":0},{"$f":"[1]Infrastructure!AE1352","v":0},{"$f":"[1]Infrastructure!AF1352","v":0},{"$f":"[1]Infrastructure!AG1352","v":0},{"$f":"[1]Infrastructure!AH1352","v":0},0]
[0,null,null,null,null,null,{"$f":"[1]Infrastructure!G1353","v":0},{"$f":"[1]Infrastructure!H1353","v":0},{"$f":"[1]Infrastructure!I1353","v":0},{"$f":"[1]Infrastructure!J1353","v":0},{"$f":"[1]Infrastructure!K1353","v":0},{"$f":"[1]Infrastructure!L1353","v":0},{"$f":"[1]Infrastructure!M1353","v":0},{"$f":"[1]Infrastructure!N1353","v":0},{"$f":"[1]Infrastructure!O1353","v":0},{"$f":"[1]Infrastructure!Q1353","v":0},{"$f":"[1]Infrastructure!R1353","v":0},{"$f":"[1]Infrastructure!T1353","v":0},{"$f":"[1]Infrastructure!W1353","v":0},{"$f":"[1]Infrastructure!W1353","v":0},0,{"$f":"[1]Infrastructure!Z1353","v":0},{"$f":"[1]Infrastructure!Z1353","v":0},0,{"$f":"[1]Infrastructure!AB1353","v":0},{"$f":"[1]Infrastructure!AB1353","v":0},0,{"$f":"[1]Infrastructure!AC1353","v":0},{"$f":"[1]Infrastructure!AD1353","v":0},{"$f":"[1]Infrastructure!AE1353","v":0},{"$f":"[1]Infrastructure!AF1353","v":0},{"$f":"[1]Infrastructure!AG1353","v":0},{"$f":"[1]Infrastructure!AH1353","v":0},0]
[0,null,null,null,null,null,{"$f":"[1]Infrastructure!G1354","v":0},{"$f":"[1]Infrastructure!H1354","v":0},{"$f":"[1]Infrastructure!I1354","v":0},{"$f":"[1]Infrastructure!J1354","v":0},{"$f":"[1]Infrastructure!K1354","v":0},{"$f":"[1]Infrastructure!L1354","v":0},{"$f":"[1]Infrastructure!M1354","v":0},{"$f":"[1]Infrastructure!N1354","v":0},{"$f":"[1]Infrastructure!O1354","v":0},{"$f":"[1]Infrastructure!Q1354","v":0},{"$f":"[1]Infrastructure!R1354","v":0},{"$f":"[1]Infrastructure!T1354","v":0},{"$f":"[1]Infrastructure!W1354","v":0},{"$f":"[1]Infrastructure!W1354","v":0},0,{"$f":"[1]Infrastructure!Z1354","v":0},{"$f":"[1]Infrastructure!Z1354","v":0},0,{"$f":"[1]Infrastructure!AB1354","v":0},{"$f":"[1]Infrastructure!AB1354","v":0},0,{"$f":"[1]Infrastructure!AC1354","v":0},{"$f":"[1]Infrastructure!AD1354","v":0},{"$f":"[1]Infrastructure!AE1354","v":0},{"$f":"[1]Infrastructure!AF1354","v":0},{"$f":"[1]Infrastructure!AG1354","v":0},{"$f":"[1]Infrastructure!AH1354","v":0},0]
[0,null,null,null,null,null,{"$f":"[1]Infrastructure!G1355","v":0},{"$f":"[1]Infrastructure!H1355","v":0},{"$f":"[1]Infrastructure!I1355","v":0},{"$f":"[1]Infrastructure!J1355","v":0},{"$f":"[1]Infrastructure!K1355","v":0},{"$f":"[1]Infrastructure!L1355","v":0},{"$f":"[1]Infrastructure!M1355","v":0},{"$f":"[1]Infrastructure!N1355","v":0},{"$f":"[1]Infrastructure!O1355","v":0},{"$f":"[1]Infrastructure!Q1355","v":0},{"$f":"[1]Infrastructure!R1355","v":0},{"$f":"[1]Infrastructure!T1355","v":0},{"$f":"[1]Infrastructure!W1355","v":0},{"$f":"[1]Infrastructure!W1355","v":0},0,{"$f":"[1]Infrastructure!Z1355","v":0},{"$f":"[1]Infrastructure!Z1355","v":0},0,{"$f":"[1]Infrastructure!AB1355","v":0},{"$f":"[1]Infrastructure!AB1355","v":0},0,{"$f":"[1]Infrastructure!AC1355","v":0},{"$f":"[1]Infrastructure!AD1355","v":0},{"$f":"[1]Infrastructure!AE1355","v":0},{"$f":"[1]Infrastructure!AF1355","v":0},{"$f":"[1]Infrastructure!AG1355","v":0},{"$f":"[1]Infrastructure!AH1355","v":0},0]
[{"$f":"IF(SUM(O1356:AH1356),1,0)","v":0},null,null,null,null,null,{"$f":"[1]Infrastructure!G1356","v":0},{"$f":"[1]Infrastructure!H1356","v":0},{"$f":"[1]Infrastructure!I1356","v":0},{"$f":"[1]Infrastructure!J1356","v":0},{"$f":"[1]Infrastructure!K1356","v":0},{"$f":"[1]Infrastructure!L1356","v":0},{"$f":"[1]Infrastructure!M1356","v":0},{"$f":"[1]Infrastructure!N1356","v":0},{"$f":"[1]Infrastructure!O1356","v":0},{"$f":"[1]Infrastructure!Q1356","v":0},{"$f":"[1]Infrastructure!R1356","v":0},{"$f":"[1]Infrastructure!T1356","v":0},{"$f":"[1]Infrastructure!W1356","v":0},{"$f":"[1]Infrastructure!W1356","v":0},0,{"$f":"[1]Infrastructure!Z1356","v":0},{"$f":"[1]Infrastructure!Z1356","v":0},0,{"$f":"[1]Infrastructure!AB1356","v":0},{"$f":"[1]Infrastructure!AB1356","v":0},0,{"$f":"[1]Infrastructure!AC1356","v":0},{"$f":"[1]Infrastructure!AD1356","v":0},{"$f":"[1]Infrastructure!AE1356","v":0},{"$f":"[1]Infrastructure!AF1356","v":0},{"$f":"[1]Infrastructure!AG1356","v":0},{"$f":"[1]Infrastructure!AH1356","v":0},0]
[0,null,null,null,null,null,{"$f":"[1]Infrastructure!G1357","v":0},{"$f":"[1]Infrastructure!H1357","v":0},{"$f":"[1]Infrastructure!I1357","v":0},{"$f":"[1]Infrastructure!J1357","v":0},{"$f":"[1]Infrastructure!K1357","v":0},{"$f":"[1]Infrastructure!L1357","v":0},{"$f":"[1]Infrastructure!M1357","v":0},{"$f":"[1]Infrastructure!N1357","v":0},{"$f":"[1]Infrastructure!O1357","v":0},{"$f":"[1]Infrastructure!Q1357","v":0},{"$f":"[1]Infrastructure!R1357","v":0},{"$f":"[1]Infrastructure!T1357","v":0},{"$f":"[1]Infrastructure!W1357","v":0},{"$f":"[1]Infrastructure!W1357","v":0},0,{"$f":"[1]Infrastructure!Z1357","v":0},{"$f":"[1]Infrastructure!Z1357","v":0},0,{"$f":"[1]Infrastructure!AB1357","v":0},{"$f":"[1]Infrastructure!AB1357","v":0},0,{"$f":"[1]Infrastructure!AC1357","v":0},{"$f":"[1]Infrastructure!AD1357","v":0},{"$f":"[1]Infrastructure!AE1357","v":0},{"$f":"[1]Infrastructure!AF1357","v":0},{"$f":"[1]Infrastructure!AG1357","v":0},{"$f":"[1]Infrastructure!AH1357","v":0},0]
[0,null,null,null,null,null,{"$f":"[1]Infrastructure!G1358","v":0},{"$f":"[1]Infrastructure!H1358","v":0},{"$f":"[1]Infrastructure!I1358","v":0},{"$f":"[1]Infrastructure!J1358","v":0},{"$f":"[1]Infrastructure!K1358","v":0},{"$f":"[1]Infrastructure!L1358","v":0},{"$f":"[1]Infrastructure!M1358","v":0},{"$f":"[1]Infrastructure!N1358","v":0},{"$f":"[1]Infrastructure!O1358","v":0},{"$f":"[1]Infrastructure!Q1358","v":0},{"$f":"[1]Infrastructure!R1358","v":0},{"$f":"[1]Infrastructure!T1358","v":0},{"$f":"[1]Infrastructure!W1358","v":0},{"$f":"[1]Infrastructure!W1358","v":0},0,{"$f":"[1]Infrastructure!Z1358","v":0},{"$f":"[1]Infrastructure!Z1358","v":0},0,{"$f":"[1]Infrastructure!AB1358","v":0},{"$f":"[1]Infrastructure!AB1358","v":0},0,{"$f":"[1]Infrastructure!AC1358","v":0},{"$f":"[1]Infrastructure!AD1358","v":0},{"$f":"[1]Infrastructure!AE1358","v":0},{"$f":"[1]Infrastructure!AF1358","v":0},{"$f":"[1]Infrastructure!AG1358","v":0},{"$f":"[1]Infrastructure!AH1358","v":0},0]
[0,null,null,null,null,null,{"$f":"[1]Infrastructure!G1359","v":0},{"$f":"[1]Infrastructure!H1359","v":0},{"$f":"[1]Infrastructure!I1359","v":0},{"$f":"[1]Infrastructure!J1359","v":0},{"$f":"[1]Infrastructure!K1359","v":0},{"$f":"[1]Infrastructure!L1359","v":0},{"$f":"[1]Infrastructure!M1359","v":0},{"$f":"[1]Infrastructure!N1359","v":0},{"$f":"[1]Infrastructure!O1359","v":0},{"$f":"[1]Infrastructure!Q1359","v":0},{"$f":"[1]Infrastructure!R1359","v":0},{"$f":"[1]Infrastructure!T1359","v":0},{"$f":"[1]Infrastructure!W1359","v":0},{"$f":"[1]Infrastructure!W1359","v":0},0,{"$f":"[1]Infrastructure!Z1359","v":0},{"$f":"[1]Infrastructure!Z1359","v":0},0,{"$f":"[1]Infrastructure!AB1359","v":0},{"$f":"[1]Infrastructure!AB1359","v":0},0,{"$f":"[1]Infrastructure!AC1359","v":0},{"$f":"[1]Infrastructure!AD1359","v":0},{"$f":"[1]Infrastructure!AE1359","v":0},{"$f":"[1]Infrastructure!AF1359","v":0},{"$f":"[1]Infrastructure!AG1359","v":0},{"$f":"[1]Infrastructure!AH1359","v":0},0]
[0,null,null,null,null,null,{"$f":"[1]Infrastructure!G1360","v":0},{"$f":"[1]Infrastructure!H1360","v":0},{"$f":"[1]Infrastructure!I1360","v":0},{"$f":"[1]Infrastructure!J1360","v":0},{"$f":"[1]Infrastructure!K1360","v":0},{"$f":"[1]Infrastructure!L1360","v":0},{"$f":"[1]Infrastructure!M1360","v":0},{"$f":"[1]Infrastructure!N1360","v":0},{"$f":"[1]Infrastructure!O1360","v":0},{"$f":"[1]Infrastructure!Q1360","v":0},{"$f":"[1]Infrastructure!R1360","v":0},{"$f":"[1]Infrastructure!T1360","v":0},{"$f":"[1]Infrastructure!W1360","v":0},{"$f":"[1]Infrastructure!W1360","v":0},0,{"$f":"[1]Infrastructure!Z1360","v":0},{"$f":"[1]Infrastructure!Z1360","v":0},0,{"$f":"[1]Infrastructure!AB1360","v":0},{"$f":"[1]Infrastructure!AB1360","v":0},0,{"$f":"[1]Infrastructure!AC1360","v":0},{"$f":"[1]Infrastructure!AD1360","v":0},{"$f":"[1]Infrastructure!AE1360","v":0},{"$f":"[1]Infrastructure!AF1360","v":0},{"$f":"[1]Infrastructure!AG1360","v":0},{"$f":"[1]Infrastructure!AH1360","v":0},0]
[0,null,null,null,null,null,{"$f":"[1]Infrastructure!G1361","v":0},{"$f":"[1]Infrastructure!H1361","v":0},{"$f":"[1]Infrastructure!I1361","v":0},{"$f":"[1]Infrastructure!J1361","v":0},{"$f":"[1]Infrastructure!K1361","v":0},{"$f":"[1]Infrastructure!L1361","v":0},{"$f":"[1]Infrastructure!M1361","v":0},{"$f":"[1]Infrastructure!N1361","v":0},{"$f":"[1]Infrastructure!O1361","v":0},{"$f":"[1]Infrastructure!Q1361","v":0},{"$f":"[1]Infrastructure!R1361","v":0},{"$f":"[1]Infrastructure!T1361","v":0},{"$f":"[1]Infrastructure!W1361","v":0},{"$f":"[1]Infrastructure!W1361","v":0},0,{"$f":"[1]Infrastructure!Z1361","v":0},{"$f":"[1]Infrastructure!Z1361","v":0},0,{"$f":"[1]Infrastructure!AB1361","v":0},{"$f":"[1]Infrastructure!AB1361","v":0},0,{"$f":"[1]Infrastructure!AC1361","v":0},{"$f":"[1]Infrastructure!AD1361","v":0},{"$f":"[1]Infrastructure!AE1361","v":0},{"$f":"[1]Infrastructure!AF1361","v":0},{"$f":"[1]Infrastructure!AG1361","v":0},{"$f":"[1]Infrastructure!AH1361","v":0},0]
[0,null,null,null,null,null,{"$f":"[1]Infrastructure!G1362","v":0},{"$f":"[1]Infrastructure!H1362","v":0},{"$f":"[1]Infrastructure!I1362","v":0},{"$f":"[1]Infrastructure!J1362","v":0},{"$f":"[1]Infrastructure!K1362","v":0},{"$f":"[1]Infrastructure!L1362","v":0},{"$f":"[1]Infrastructure!M1362","v":0},{"$f":"[1]Infrastructure!N1362","v":0},{"$f":"[1]Infrastructure!O1362","v":0},{"$f":"[1]Infrastructure!Q1362","v":0},{"$f":"[1]Infrastructure!R1362","v":0},{"$f":"[1]Infrastructure!T1362","v":0},{"$f":"[1]Infrastructure!W1362","v":0},{"$f":"[1]Infrastructure!W1362","v":0},0,{"$f":"[1]Infrastructure!Z1362","v":0},{"$f":"[1]Infrastructure!Z1362","v":0},0,{"$f":"[1]Infrastructure!AB1362","v":0},{"$f":"[1]Infrastructure!AB1362","v":0},0,{"$f":"[1]Infrastructure!AC1362","v":0},{"$f":"[1]Infrastructure!AD1362","v":0},{"$f":"[1]Infrastructure!AE1362","v":0},{"$f":"[1]Infrastructure!AF1362","v":0},{"$f":"[1]Infrastructure!AG1362","v":0},{"$f":"[1]Infrastructure!AH1362","v":0},0]
[0,null,null,null,null,null,{"$f":"[1]Infrastructure!G1363","v":0},{"$f":"[1]Infrastructure!H1363","v":0},{"$f":"[1]Infrastructure!I1363","v":0},{"$f":"[1]Infrastructure!J1363","v":0},{"$f":"[1]Infrastructure!K1363","v":0},{"$f":"[1]Infrastructure!L1363","v":0},{"$f":"[1]Infrastructure!M1363","v":0},{"$f":"[1]Infrastructure!N1363","v":0},{"$f":"[1]Infrastructure!O1363","v":0},{"$f":"[1]Infrastructure!Q1363","v":0},{"$f":"[1]Infrastructure!R1363","v":0},{"$f":"[1]Infrastructure!T1363","v":0},{"$f":"[1]Infrastructure!W1363","v":0},{"$f":"[1]Infrastructure!W1363","v":0},0,{"$f":"[1]Infrastructure!Z1363","v":0},{"$f":"[1]Infrastructure!Z1363","v":0},0,{"$f":"[1]Infrastructure!AB1363","v":0},{"$f":"[1]Infrastructure!AB1363","v":0},0,{"$f":"[1]Infrastructure!AC1363","v":0},{"$f":"[1]Infrastructure!AD1363","v":0},{"$f":"[1]Infrastructure!AE1363","v":0},{"$f":"[1]Infrastructure!AF1363","v":0},{"$f":"[1]Infrastructure!AG1363","v":0},{"$f":"[1]Infrastructure!AH1363","v":0},0]
[0,null,null,null,null,null,{"$f":"[1]Infrastructure!G1364","v":0},{"$f":"[1]Infrastructure!H1364","v":0},{"$f":"[1]Infrastructure!I1364","v":0},{"$f":"[1]Infrastructure!J1364","v":0},{"$f":"[1]Infrastructure!K1364","v":0},{"$f":"[1]Infrastructure!L1364","v":0},{"$f":"[1]Infrastructure!M1364","v":0},{"$f":"[1]Infrastructure!N1364","v":0},{"$f":"[1]Infrastructure!O1364","v":0},{"$f":"[1]Infrastructure!Q1364","v":0},{"$f":"[1]Infrastructure!R1364","v":0},{"$f":"[1]Infrastructure!T1364","v":0},{"$f":"[1]Infrastructure!W1364","v":0},{"$f":"[1]Infrastructure!W1364","v":0},0,{"$f":"[1]Infrastructure!Z1364","v":0},{"$f":"[1]Infrastructure!Z1364","v":0},0,{"$f":"[1]Infrastructure!AB1364","v":0},{"$f":"[1]Infrastructure!AB1364","v":0},0,{"$f":"[1]Infrastructure!AC1364","v":0},{"$f":"[1]Infrastructure!AD1364","v":0},{"$f":"[1]Infrastructure!AE1364","v":0},{"$f":"[1]Infrastructure!AF1364","v":0},{"$f":"[1]Infrastructure!AG1364","v":0},{"$f":"[1]Infrastructure!AH1364","v":0},0]
[0,null,null,null,null,null,{"$f":"[1]Infrastructure!G1365","v":0},{"$f":"[1]Infrastructure!H1365","v":0},{"$f":"[1]Infrastructure!I1365","v":0},{"$f":"[1]Infrastructure!J1365","v":0},{"$f":"[1]Infrastructure!K1365","v":0},{"$f":"[1]Infrastructure!L1365","v":0},{"$f":"[1]Infrastructure!M1365","v":0},{"$f":"[1]Infrastructure!N1365","v":0},{"$f":"[1]Infrastructure!O1365","v":0},{"$f":"[1]Infrastructure!Q1365","v":0},{"$f":"[1]Infrastructure!R1365","v":0},{"$f":"[1]Infrastructure!T1365","v":0},{"$f":"[1]Infrastructure!W1365","v":0},{"$f":"[1]Infrastructure!W1365","v":0},0,{"$f":"[1]Infrastructure!Z1365","v":0},{"$f":"[1]Infrastructure!Z1365","v":0},0,{"$f":"[1]Infrastructure!AB1365","v":0},{"$f":"[1]Infrastructure!AB1365","v":0},0,{"$f":"[1]Infrastructure!AC1365","v":0},{"$f":"[1]Infrastructure!AD1365","v":0},{"$f":"[1]Infrastructure!AE1365","v":0},{"$f":"[1]Infrastructure!AF1365","v":0},{"$f":"[1]Infrastructure!AG1365","v":0},{"$f":"[1]Infrastructure!AH1365","v":0},0]
[0,null,null,null,null,null,{"$f":"[1]Infrastructure!G1366","v":0},{"$f":"[1]Infrastructure!H1366","v":0},{"$f":"[1]Infrastructure!I1366","v":0},{"$f":"[1]Infrastructure!J1366","v":0},{"$f":"[1]Infrastructure!K1366","v":0},{"$f":"[1]Infrastructure!L1366","v":0},{"$f":"[1]Infrastructure!M1366","v":0},{"$f":"[1]Infrastructure!N1366","v":0},{"$f":"[1]Infrastructure!O1366","v":0},{"$f":"[1]Infrastructure!Q1366","v":0},{"$f":"[1]Infrastructure!R1366","v":0},{"$f":"[1]Infrastructure!T1366","v":0},{"$f":"[1]Infrastructure!W1366","v":0},{"$f":"[1]Infrastructure!W1366","v":0},0,{"$f":"[1]Infrastructure!Z1366","v":0},{"$f":"[1]Infrastructure!Z1366","v":0},0,{"$f":"[1]Infrastructure!AB1366","v":0},{"$f":"[1]Infrastructure!AB1366","v":0},0,{"$f":"[1]Infrastructure!AC1366","v":0},{"$f":"[1]Infrastructure!AD1366","v":0},{"$f":"[1]Infrastructure!AE1366","v":0},{"$f":"[1]Infrastructure!AF1366","v":0},{"$f":"[1]Infrastructure!AG1366","v":0},{"$f":"[1]Infrastructure!AH1366","v":0},0]
[0,null,null,null,null,null,{"$f":"[1]Infrastructure!G1367","v":0},{"$f":"[1]Infrastructure!H1367","v":0},{"$f":"[1]Infrastructure!I1367","v":0},{"$f":"[1]Infrastructure!J1367","v":0},{"$f":"[1]Infrastructure!K1367","v":0},{"$f":"[1]Infrastructure!L1367","v":0},{"$f":"[1]Infrastructure!M1367","v":0},{"$f":"[1]Infrastructure!N1367","v":0},{"$f":"[1]Infrastructure!O1367","v":0},{"$f":"[1]Infrastructure!Q1367","v":0},{"$f":"[1]Infrastructure!R1367","v":0},{"$f":"[1]Infrastructure!T1367","v":0},{"$f":"[1]Infrastructure!W1367","v":0},{"$f":"[1]Infrastructure!W1367","v":0},0,{"$f":"[1]Infrastructure!Z1367","v":0},{"$f":"[1]Infrastructure!Z1367","v":0},0,{"$f":"[1]Infrastructure!AB1367","v":0},{"$f":"[1]Infrastructure!AB1367","v":0},0,{"$f":"[1]Infrastructure!AC1367","v":0},{"$f":"[1]Infrastructure!AD1367","v":0},{"$f":"[1]Infrastructure!AE1367","v":0},{"$f":"[1]Infrastructure!AF1367","v":0},{"$f":"[1]Infrastructure!AG1367","v":0},{"$f":"[1]Infrastructure!AH1367","v":0},0]
[0,null,null,null,null,null,{"$f":"[1]Infrastructure!G1368","v":0},{"$f":"[1]Infrastructure!H1368","v":0},{"$f":"[1]Infrastructure!I1368","v":0},{"$f":"[1]Infrastructure!J1368","v":0},{"$f":"[1]Infrastructure!K1368","v":0},{"$f":"[1]Infrastructure!L1368","v":0},{"$f":"[1]Infrastructure!M1368","v":0},{"$f":"[1]Infrastructure!N1368","v":0},{"$f":"[1]Infrastructure!O1368","v":0},{"$f":"[1]Infrastructure!Q1368","v":0},{"$f":"[1]Infrastructure!R1368","v":0},{"$f":"[1]Infrastructure!T1368","v":0},{"$f":"[1]Infrastructure!W1368","v":0},{"$f":"[1]Infrastructure!W1368","v":0},0,{"$f":"[1]Infrastructure!Z1368","v":0},{"$f":"[1]Infrastructure!Z1368","v":0},0,{"$f":"[1]Infrastructure!AB1368","v":0},{"$f":"[1]Infrastructure!AB1368","v":0},0,{"$f":"[1]Infrastructure!AC1368","v":0},{"$f":"[1]Infrastructure!AD1368","v":0},{"$f":"[1]Infrastructure!AE1368","v":0},{"$f":"[1]Infrastructure!AF1368","v":0},{"$f":"[1]Infrastructure!AG1368","v":0},{"$f":"[1]Infrastructure!AH1368","v":0},0]
[0,null,null,null,null,null,{"$f":"[1]Infrastructure!G1369","v":0},{"$f":"[1]Infrastructure!H1369","v":0},{"$f":"[1]Infrastructure!I1369","v":0},{"$f":"[1]Infrastructure!J1369","v":0},{"$f":"[1]Infrastructure!K1369","v":0},{"$f":"[1]Infrastructure!L1369","v":0},{"$f":"[1]Infrastructure!M1369","v":0},{"$f":"[1]Infrastructure!N1369","v":0},{"$f":"[1]Infrastructure!O1369","v":0},{"$f":"[1]Infrastructure!Q1369","v":0},{"$f":"[1]Infrastructure!R1369","v":0},{"$f":"[1]Infrastructure!T1369","v":0},{"$f":"[1]Infrastructure!W1369","v":0},{"$f":"[1]Infrastructure!W1369","v":0},0,{"$f":"[1]Infrastructure!Z1369","v":0},{"$f":"[1]Infrastructure!Z1369","v":0},0,{"$f":"[1]Infrastructure!AB1369","v":0},{"$f":"[1]Infrastructure!AB1369","v":0},0,{"$f":"[1]Infrastructure!AC1369","v":0},{"$f":"[1]Infrastructure!AD1369","v":0},{"$f":"[1]Infrastructure!AE1369","v":0},{"$f":"[1]Infrastructure!AF1369","v":0},{"$f":"[1]Infrastructure!AG1369","v":0},{"$f":"[1]Infrastructure!AH1369","v":0},0]
[0,null,null,null,null,null,{"$f":"[1]Infrastructure!G1370","v":0},{"$f":"[1]Infrastructure!H1370","v":0},{"$f":"[1]Infrastructure!I1370","v":0},{"$f":"[1]Infrastructure!J1370","v":0},{"$f":"[1]Infrastructure!K1370","v":0},{"$f":"[1]Infrastructure!L1370","v":0},{"$f":"[1]Infrastructure!M1370","v":0},{"$f":"[1]Infrastructure!N1370","v":0},{"$f":"[1]Infrastructure!O1370","v":0},{"$f":"[1]Infrastructure!Q1370","v":0},{"$f":"[1]Infrastructure!R1370","v":0},{"$f":"[1]Infrastructure!T1370","v":0},{"$f":"[1]Infrastructure!W1370","v":0},{"$f":"[1]Infrastructure!W1370","v":0},0,{"$f":"[1]Infrastructure!Z1370","v":0},{"$f":"[1]Infrastructure!Z1370","v":0},0,{"$f":"[1]Infrastructure!AB1370","v":0},{"$f":"[1]Infrastructure!AB1370","v":0},0,{"$f":"[1]Infrastructure!AC1370","v":0},{"$f":"[1]Infrastructure!AD1370","v":0},{"$f":"[1]Infrastructure!AE1370","v":0},{"$f":"[1]Infrastructure!AF1370","v":0},{"$f":"[1]Infrastructure!AG1370","v":0},{"$f":"[1]Infrastructure!AH1370","v":0},0]
[0,null,null,null,null,null,{"$f":"[1]Infrastructure!G1371","v":0},{"$f":"[1]Infrastructure!H1371","v":0},{"$f":"[1]Infrastructure!I1371","v":0},{"$f":"[1]Infrastructure!J1371","v":0},{"$f":"[1]Infrastructure!K1371","v":0},{"$f":"[1]Infrastructure!L1371","v":0},{"$f":"[1]Infrastructure!M1371","v":0},{"$f":"[1]Infrastructure!N1371","v":0},{"$f":"[1]Infrastructure!O1371","v":0},{"$f":"[1]Infrastructure!Q1371","v":0},{"$f":"[1]Infrastructure!R1371","v":0},{"$f":"[1]Infrastructure!T1371","v":0},{"$f":"[1]Infrastructure!W1371","v":0},{"$f":"[1]Infrastructure!W1371","v":0},0,{"$f":"[1]Infrastructure!Z1371","v":0},{"$f":"[1]Infrastructure!Z1371","v":0},0,{"$f":"[1]Infrastructure!AB1371","v":0},{"$f":"[1]Infrastructure!AB1371","v":0},0,{"$f":"[1]Infrastructure!AC1371","v":0},{"$f":"[1]Infrastructure!AD1371","v":0},{"$f":"[1]Infrastructure!AE1371","v":0},{"$f":"[1]Infrastructure!AF1371","v":0},{"$f":"[1]Infrastructure!AG1371","v":0},{"$f":"[1]Infrastructure!AH1371","v":0},0]
[0,null,null,null,null,null,{"$f":"[1]Infrastructure!G1372","v":0},{"$f":"[1]Infrastructure!H1372","v":0},{"$f":"[1]Infrastructure!I1372","v":0},{"$f":"[1]Infrastructure!J1372","v":0},{"$f":"[1]Infrastructure!K1372","v":0},{"$f":"[1]Infrastructure!L1372","v":0},{"$f":"[1]Infrastructure!M1372","v":0},{"$f":"[1]Infrastructure!N1372","v":0},{"$f":"[1]Infrastructure!O1372","v":0},{"$f":"[1]Infrastructure!Q1372","v":0},{"$f":"[1]Infrastructure!R1372","v":0},{"$f":"[1]Infrastructure!T1372","v":0},{"$f":"[1]Infrastructure!W1372","v":0},{"$f":"[1]Infrastructure!W1372","v":0},0,{"$f":"[1]Infrastructure!Z1372","v":0},{"$f":"[1]Infrastructure!Z1372","v":0},0,{"$f":"[1]Infrastructure!AB1372","v":0},{"$f":"[1]Infrastructure!AB1372","v":0},0,{"$f":"[1]Infrastructure!AC1372","v":0},{"$f":"[1]Infrastructure!AD1372","v":0},{"$f":"[1]Infrastructure!AE1372","v":0},{"$f":"[1]Infrastructure!AF1372","v":0},{"$f":"[1]Infrastructure!AG1372","v":0},{"$f":"[1]Infrastructure!AH1372","v":0},0]
[0,null,null,null,null,null,{"$f":"[1]Infrastructure!G1373","v":0},{"$f":"[1]Infrastructure!H1373","v":0},{"$f":"[1]Infrastructure!I1373","v":0},{"$f":"[1]Infrastructure!J1373","v":0},{"$f":"[1]Infrastructure!K1373","v":0},{"$f":"[1]Infrastructure!L1373","v":0},{"$f":"[1]Infrastructure!M1373","v":0},{"$f":"[1]Infrastructure!N1373","v":0},{"$f":"[1]Infrastructure!O1373","v":0},{"$f":"[1]Infrastructure!Q1373","v":0},{"$f":"[1]Infrastructure!R1373","v":0},{"$f":"[1]Infrastructure!T1373","v":0},{"$f":"[1]Infrastructure!W1373","v":0},{"$f":"[1]Infrastructure!W1373","v":0},0,{"$f":"[1]Infrastructure!Z1373","v":0},{"$f":"[1]Infrastructure!Z1373","v":0},0,{"$f":"[1]Infrastructure!AB1373","v":0},{"$f":"[1]Infrastructure!AB1373","v":0},0,{"$f":"[1]Infrastructure!AC1373","v":0},{"$f":"[1]Infrastructure!AD1373","v":0},{"$f":"[1]Infrastructure!AE1373","v":0},{"$f":"[1]Infrastructure!AF1373","v":0},{"$f":"[1]Infrastructure!AG1373","v":0},{"$f":"[1]Infrastructure!AH1373","v":0},0]
[0,null,null,null,null,null,{"$f":"[1]Infrastructure!G1374","v":0},{"$f":"[1]Infrastructure!H1374","v":0},{"$f":"[1]Infrastructure!I1374","v":0},{"$f":"[1]Infrastructure!J1374","v":0},{"$f":"[1]Infrastructure!K1374","v":0},{"$f":"[1]Infrastructure!L1374","v":0},{"$f":"[1]Infrastructure!M1374","v":0},{"$f":"[1]Infrastructure!N1374","v":0},{"$f":"[1]Infrastructure!O1374","v":0},{"$f":"[1]Infrastructure!Q1374","v":0},{"$f":"[1]Infrastructure!R1374","v":0},{"$f":"[1]Infrastructure!T1374","v":0},{"$f":"[1]Infrastructure!W1374","v":0},{"$f":"[1]Infrastructure!W1374","v":0},0,{"$f":"[1]Infrastructure!Z1374","v":0},{"$f":"[1]Infrastructure!Z1374","v":0},0,{"$f":"[1]Infrastructure!AB1374","v":0},{"$f":"[1]Infrastructure!AB1374","v":0},0,{"$f":"[1]Infrastructure!AC1374","v":0},{"$f":"[1]Infrastructure!AD1374","v":0},{"$f":"[1]Infrastructure!AE1374","v":0},{"$f":"[1]Infrastructure!AF1374","v":0},{"$f":"[1]Infrastructure!AG1374","v":0},{"$f":"[1]Infrastructure!AH1374","v":0},0]
[0,null,null,null,null,null,{"$f":"[1]Infrastructure!G1375","v":0},{"$f":"[1]Infrastructure!H1375","v":0},{"$f":"[1]Infrastructure!I1375","v":0},{"$f":"[1]Infrastructure!J1375","v":0},{"$f":"[1]Infrastructure!K1375","v":0},{"$f":"[1]Infrastructure!L1375","v":0},{"$f":"[1]Infrastructure!M1375","v":0},{"$f":"[1]Infrastructure!N1375","v":0},{"$f":"[1]Infrastructure!O1375","v":0},{"$f":"[1]Infrastructure!Q1375","v":0},{"$f":"[1]Infrastructure!R1375","v":0},{"$f":"[1]Infrastructure!T1375","v":0},{"$f":"[1]Infrastructure!W1375","v":0},{"$f":"[1]Infrastructure!W1375","v":0},0,{"$f":"[1]Infrastructure!Z1375","v":0},{"$f":"[1]Infrastructure!Z1375","v":0},0,{"$f":"[1]Infrastructure!AB1375","v":0},{"$f":"[1]Infrastructure!AB1375","v":0},0,{"$f":"[1]Infrastructure!AC1375","v":0},{"$f":"[1]Infrastructure!AD1375","v":0},{"$f":"[1]Infrastructure!AE1375","v":0},{"$f":"[1]Infrastructure!AF1375","v":0},{"$f":"[1]Infrastructure!AG1375","v":0},{"$f":"[1]Infrastructure!AH1375","v":0},0]
[0,null,null,null,null,null,{"$f":"[1]Infrastructure!G1376","v":0},{"$f":"[1]Infrastructure!H1376","v":0},{"$f":"[1]Infrastructure!I1376","v":0},{"$f":"[1]Infrastructure!J1376","v":0},{"$f":"[1]Infrastructure!K1376","v":0},{"$f":"[1]Infrastructure!L1376","v":0},{"$f":"[1]Infrastructure!M1376","v":0},{"$f":"[1]Infrastructure!N1376","v":0},{"$f":"[1]Infrastructure!O1376","v":0},{"$f":"[1]Infrastructure!Q1376","v":0},{"$f":"[1]Infrastructure!R1376","v":0},{"$f":"[1]Infrastructure!T1376","v":0},{"$f":"[1]Infrastructure!W1376","v":0},{"$f":"[1]Infrastructure!W1376","v":0},0,{"$f":"[1]Infrastructure!Z1376","v":0},{"$f":"[1]Infrastructure!Z1376","v":0},0,{"$f":"[1]Infrastructure!AB1376","v":0},{"$f":"[1]Infrastructure!AB1376","v":0},0,{"$f":"[1]Infrastructure!AC1376","v":0},{"$f":"[1]Infrastructure!AD1376","v":0},{"$f":"[1]Infrastructure!AE1376","v":0},{"$f":"[1]Infrastructure!AF1376","v":0},{"$f":"[1]Infrastructure!AG1376","v":0},{"$f":"[1]Infrastructure!AH1376","v":0},0]
[0,null,null,null,null,null,{"$f":"[1]Infrastructure!G1377","v":0},{"$f":"[1]Infrastructure!H1377","v":0},{"$f":"[1]Infrastructure!I1377","v":0},{"$f":"[1]Infrastructure!J1377","v":0},{"$f":"[1]Infrastructure!K1377","v":0},{"$f":"[1]Infrastructure!L1377","v":0},{"$f":"[1]Infrastructure!M1377","v":0},{"$f":"[1]Infrastructure!N1377","v":0},{"$f":"[1]Infrastructure!O1377","v":0},{"$f":"[1]Infrastructure!Q1377","v":0},{"$f":"[1]Infrastructure!R1377","v":0},{"$f":"[1]Infrastructure!T1377","v":0},{"$f":"[1]Infrastructure!W1377","v":0},{"$f":"[1]Infrastructure!W1377","v":0},0,{"$f":"[1]Infrastructure!Z1377","v":0},{"$f":"[1]Infrastructure!Z1377","v":0},0,{"$f":"[1]Infrastructure!AB1377","v":0},{"$f":"[1]Infrastructure!AB1377","v":0},0,{"$f":"[1]Infrastructure!AC1377","v":0},{"$f":"[1]Infrastructure!AD1377","v":0},{"$f":"[1]Infrastructure!AE1377","v":0},{"$f":"[1]Infrastructure!AF1377","v":0},{"$f":"[1]Infrastructure!AG1377","v":0},{"$f":"[1]Infrastructure!AH1377","v":0},0]
[0,null,null,null,null,null,{"$f":"[1]Infrastructure!G1378","v":0},{"$f":"[1]Infrastructure!H1378","v":0},{"$f":"[1]Infrastructure!I1378","v":0},{"$f":"[1]Infrastructure!J1378","v":0},{"$f":"[1]Infrastructure!K1378","v":0},{"$f":"[1]Infrastructure!L1378","v":0},{"$f":"[1]Infrastructure!M1378","v":0},{"$f":"[1]Infrastructure!N1378","v":0},{"$f":"[1]Infrastructure!O1378","v":0},{"$f":"[1]Infrastructure!Q1378","v":0},{"$f":"[1]Infrastructure!R1378","v":0},{"$f":"[1]Infrastructure!T1378","v":0},{"$f":"[1]Infrastructure!W1378","v":0},{"$f":"[1]Infrastructure!W1378","v":0},0,{"$f":"[1]Infrastructure!Z1378","v":0},{"$f":"[1]Infrastructure!Z1378","v":0},0,{"$f":"[1]Infrastructure!AB1378","v":0},{"$f":"[1]Infrastructure!AB1378","v":0},0,{"$f":"[1]Infrastructure!AC1378","v":0},{"$f":"[1]Infrastructure!AD1378","v":0},{"$f":"[1]Infrastructure!AE1378","v":0},{"$f":"[1]Infrastructure!AF1378","v":0},{"$f":"[1]Infrastructure!AG1378","v":0},{"$f":"[1]Infrastructure!AH1378","v":0},0]
[0,null,null,null,null,null,{"$f":"[1]Infrastructure!G1379","v":0},{"$f":"[1]Infrastructure!H1379","v":0},{"$f":"[1]Infrastructure!I1379","v":0},{"$f":"[1]Infrastructure!J1379","v":0},{"$f":"[1]Infrastructure!K1379","v":0},{"$f":"[1]Infrastructure!L1379","v":0},{"$f":"[1]Infrastructure!M1379","v":0},{"$f":"[1]Infrastructure!N1379","v":0},{"$f":"[1]Infrastructure!O1379","v":0},{"$f":"[1]Infrastructure!Q1379","v":0},{"$f":"[1]Infrastructure!R1379","v":0},{"$f":"[1]Infrastructure!T1379","v":0},{"$f":"[1]Infrastructure!W1379","v":0},{"$f":"[1]Infrastructure!W1379","v":0},0,{"$f":"[1]Infrastructure!Z1379","v":0},{"$f":"[1]Infrastructure!Z1379","v":0},0,{"$f":"[1]Infrastructure!AB1379","v":0},{"$f":"[1]Infrastructure!AB1379","v":0},0,{"$f":"[1]Infrastructure!AC1379","v":0},{"$f":"[1]Infrastructure!AD1379","v":0},{"$f":"[1]Infrastructure!AE1379","v":0},{"$f":"[1]Infrastructure!AF1379","v":0},{"$f":"[1]Infrastructure!AG1379","v":0},{"$f":"[1]Infrastructure!AH1379","v":0},0]
[0,null,null,null,null,null,{"$f":"[1]Infrastructure!G1380","v":0},{"$f":"[1]Infrastructure!H1380","v":0},{"$f":"[1]Infrastructure!I1380","v":0},{"$f":"[1]Infrastructure!J1380","v":0},{"$f":"[1]Infrastructure!K1380","v":0},{"$f":"[1]Infrastructure!L1380","v":0},{"$f":"[1]Infrastructure!M1380","v":0},{"$f":"[1]Infrastructure!N1380","v":0},{"$f":"[1]Infrastructure!O1380","v":0},{"$f":"[1]Infrastructure!Q1380","v":0},{"$f":"[1]Infrastructure!R1380","v":0},{"$f":"[1]Infrastructure!T1380","v":0},{"$f":"[1]Infrastructure!W1380","v":0},{"$f":"[1]Infrastructure!W1380","v":0},0,{"$f":"[1]Infrastructure!Z1380","v":0},{"$f":"[1]Infrastructure!Z1380","v":0},0,{"$f":"[1]Infrastructure!AB1380","v":0},{"$f":"[1]Infrastructure!AB1380","v":0},0,{"$f":"[1]Infrastructure!AC1380","v":0},{"$f":"[1]Infrastructure!AD1380","v":0},{"$f":"[1]Infrastructure!AE1380","v":0},{"$f":"[1]Infrastructure!AF1380","v":0},{"$f":"[1]Infrastructure!AG1380","v":0},{"$f":"[1]Infrastructure!AH1380","v":0},0]
[0,null,null,null,null,null,{"$f":"[1]Infrastructure!G1381","v":0},{"$f":"[1]Infrastructure!H1381","v":0},{"$f":"[1]Infrastructure!I1381","v":0},{"$f":"[1]Infrastructure!J1381","v":0},{"$f":"[1]Infrastructure!K1381","v":0},{"$f":"[1]Infrastructure!L1381","v":0},{"$f":"[1]Infrastructure!M1381","v":0},{"$f":"[1]Infrastructure!N1381","v":0},{"$f":"[1]Infrastructure!O1381","v":0},{"$f":"[1]Infrastructure!Q1381","v":0},{"$f":"[1]Infrastructure!R1381","v":0},{"$f":"[1]Infrastructure!T1381","v":0},{"$f":"[1]Infrastructure!W1381","v":0},{"$f":"[1]Infrastructure!W1381","v":0},0,{"$f":"[1]Infrastructure!Z1381","v":0},{"$f":"[1]Infrastructure!Z1381","v":0},0,{"$f":"[1]Infrastructure!AB1381","v":0},{"$f":"[1]Infrastructure!AB1381","v":0},0,{"$f":"[1]Infrastructure!AC1381","v":0},{"$f":"[1]Infrastructure!AD1381","v":0},{"$f":"[1]Infrastructure!AE1381","v":0},{"$f":"[1]Infrastructure!AF1381","v":0},{"$f":"[1]Infrastructure!AG1381","v":0},{"$f":"[1]Infrastructure!AH1381","v":0},0]
[0,null,null,null,null,null,{"$f":"[1]Infrastructure!G1382","v":0},{"$f":"[1]Infrastructure!H1382","v":0},{"$f":"[1]Infrastructure!I1382","v":0},{"$f":"[1]Infrastructure!J1382","v":0},{"$f":"[1]Infrastructure!K1382","v":0},{"$f":"[1]Infrastructure!L1382","v":0},{"$f":"[1]Infrastructure!M1382","v":0},{"$f":"[1]Infrastructure!N1382","v":0},{"$f":"[1]Infrastructure!O1382","v":0},{"$f":"[1]Infrastructure!Q1382","v":0},{"$f":"[1]Infrastructure!R1382","v":0},{"$f":"[1]Infrastructure!T1382","v":0},{"$f":"[1]Infrastructure!W1382","v":0},{"$f":"[1]Infrastructure!W1382","v":0},0,{"$f":"[1]Infrastructure!Z1382","v":0},{"$f":"[1]Infrastructure!Z1382","v":0},0,{"$f":"[1]Infrastructure!AB1382","v":0},{"$f":"[1]Infrastructure!AB1382","v":0},0,{"$f":"[1]Infrastructure!AC1382","v":0},{"$f":"[1]Infrastructure!AD1382","v":0},{"$f":"[1]Infrastructure!AE1382","v":0},{"$f":"[1]Infrastructure!AF1382","v":0},{"$f":"[1]Infrastructure!AG1382","v":0},{"$f":"[1]Infrastructure!AH1382","v":0},0]
[0,null,null,null,null,null,{"$f":"[1]Infrastructure!G1383","v":0},{"$f":"[1]Infrastructure!H1383","v":0},{"$f":"[1]Infrastructure!I1383","v":0},{"$f":"[1]Infrastructure!J1383","v":0},{"$f":"[1]Infrastructure!K1383","v":0},{"$f":"[1]Infrastructure!L1383","v":0},{"$f":"[1]Infrastructure!M1383","v":0},{"$f":"[1]Infrastructure!N1383","v":0},{"$f":"[1]Infrastructure!O1383","v":0},{"$f":"[1]Infrastructure!Q1383","v":0},{"$f":"[1]Infrastructure!R1383","v":0},{"$f":"[1]Infrastructure!T1383","v":0},{"$f":"[1]Infrastructure!W1383","v":0},{"$f":"[1]Infrastructure!W1383","v":0},0,{"$f":"[1]Infrastructure!Z1383","v":0},{"$f":"[1]Infrastructure!Z1383","v":0},0,{"$f":"[1]Infrastructure!AB1383","v":0},{"$f":"[1]Infrastructure!AB1383","v":0},0,{"$f":"[1]Infrastructure!AC1383","v":0},{"$f":"[1]Infrastructure!AD1383","v":0},{"$f":"[1]Infrastructure!AE1383","v":0},{"$f":"[1]Infrastructure!AF1383","v":0},{"$f":"[1]Infrastructure!AG1383","v":0},{"$f":"[1]Infrastructure!AH1383","v":0},0]
[0,null,null,null,null,null,{"$f":"[1]Infrastructure!G1384","v":0},{"$f":"[1]Infrastructure!H1384","v":0},{"$f":"[1]Infrastructure!I1384","v":0},{"$f":"[1]Infrastructure!J1384","v":0},{"$f":"[1]Infrastructure!K1384","v":0},{"$f":"[1]Infrastructure!L1384","v":0},{"$f":"[1]Infrastructure!M1384","v":0},{"$f":"[1]Infrastructure!N1384","v":0},{"$f":"[1]Infrastructure!O1384","v":0},{"$f":"[1]Infrastructure!Q1384","v":0},{"$f":"[1]Infrastructure!R1384","v":0},{"$f":"[1]Infrastructure!T1384","v":0},{"$f":"[1]Infrastructure!W1384","v":0},{"$f":"[1]Infrastructure!W1384","v":0},0,{"$f":"[1]Infrastructure!Z1384","v":0},{"$f":"[1]Infrastructure!Z1384","v":0},0,{"$f":"[1]Infrastructure!AB1384","v":0},{"$f":"[1]Infrastructure!AB1384","v":0},0,{"$f":"[1]Infrastructure!AC1384","v":0},{"$f":"[1]Infrastructure!AD1384","v":0},{"$f":"[1]Infrastructure!AE1384","v":0},{"$f":"[1]Infrastructure!AF1384","v":0},{"$f":"[1]Infrastructure!AG1384","v":0},{"$f":"[1]Infrastructure!AH1384","v":0},0]
[0,null,null,null,null,null,{"$f":"[1]Infrastructure!G1385","v":0},{"$f":"[1]Infrastructure!H1385","v":0},{"$f":"[1]Infrastructure!I1385","v":0},{"$f":"[1]Infrastructure!J1385","v":0},{"$f":"[1]Infrastructure!K1385","v":0},{"$f":"[1]Infrastructure!L1385","v":0},{"$f":"[1]Infrastructure!M1385","v":0},{"$f":"[1]Infrastructure!N1385","v":0},{"$f":"[1]Infrastructure!O1385","v":0},{"$f":"[1]Infrastructure!Q1385","v":0},{"$f":"[1]Infrastructure!R1385","v":0},{"$f":"[1]Infrastructure!T1385","v":0},{"$f":"[1]Infrastructure!W1385","v":0},{"$f":"[1]Infrastructure!W1385","v":0},0,{"$f":"[1]Infrastructure!Z1385","v":0},{"$f":"[1]Infrastructure!Z1385","v":0},0,{"$f":"[1]Infrastructure!AB1385","v":0},{"$f":"[1]Infrastructure!AB1385","v":0},0,{"$f":"[1]Infrastructure!AC1385","v":0},{"$f":"[1]Infrastructure!AD1385","v":0},{"$f":"[1]Infrastructure!AE1385","v":0},{"$f":"[1]Infrastructure!AF1385","v":0},{"$f":"[1]Infrastructure!AG1385","v":0},{"$f":"[1]Infrastructure!AH1385","v":0},0]
[0,null,null,null,null,null,{"$f":"[1]Infrastructure!G1386","v":0},{"$f":"[1]Infrastructure!H1386","v":0},{"$f":"[1]Infrastructure!I1386","v":0},{"$f":"[1]Infrastructure!J1386","v":0},{"$f":"[1]Infrastructure!K1386","v":0},{"$f":"[1]Infrastructure!L1386","v":0},{"$f":"[1]Infrastructure!M1386","v":0},{"$f":"[1]Infrastructure!N1386","v":0},{"$f":"[1]Infrastructure!O1386","v":0},{"$f":"[1]Infrastructure!Q1386","v":0},{"$f":"[1]Infrastructure!R1386","v":0},{"$f":"[1]Infrastructure!T1386","v":0},{"$f":"[1]Infrastructure!W1386","v":0},{"$f":"[1]Infrastructure!W1386","v":0},0,{"$f":"[1]Infrastructure!Z1386","v":0},{"$f":"[1]Infrastructure!Z1386","v":0},0,{"$f":"[1]Infrastructure!AB1386","v":0},{"$f":"[1]Infrastructure!AB1386","v":0},0,{"$f":"[1]Infrastructure!AC1386","v":0},{"$f":"[1]Infrastructure!AD1386","v":0},{"$f":"[1]Infrastructure!AE1386","v":0},{"$f":"[1]Infrastructure!AF1386","v":0},{"$f":"[1]Infrastructure!AG1386","v":0},{"$f":"[1]Infrastructure!AH1386","v":0},0]
[0,null,null,null,null,null,{"$f":"[1]Infrastructure!G1387","v":0},{"$f":"[1]Infrastructure!H1387","v":0},{"$f":"[1]Infrastructure!I1387","v":0},{"$f":"[1]Infrastructure!J1387","v":0},{"$f":"[1]Infrastructure!K1387","v":0},{"$f":"[1]Infrastructure!L1387","v":0},{"$f":"[1]Infrastructure!M1387","v":0},{"$f":"[1]Infrastructure!N1387","v":0},{"$f":"[1]Infrastructure!O1387","v":0},{"$f":"[1]Infrastructure!Q1387","v":0},{"$f":"[1]Infrastructure!R1387","v":0},{"$f":"[1]Infrastructure!T1387","v":0},{"$f":"[1]Infrastructure!W1387","v":0},{"$f":"[1]Infrastructure!W1387","v":0},0,{"$f":"[1]Infrastructure!Z1387","v":0},{"$f":"[1]Infrastructure!Z1387","v":0},0,{"$f":"[1]Infrastructure!AB1387","v":0},{"$f":"[1]Infrastructure!AB1387","v":0},0,{"$f":"[1]Infrastructure!AC1387","v":0},{"$f":"[1]Infrastructure!AD1387","v":0},{"$f":"[1]Infrastructure!AE1387","v":0},{"$f":"[1]Infrastructure!AF1387","v":0},{"$f":"[1]Infrastructure!AG1387","v":0},{"$f":"[1]Infrastructure!AH1387","v":0},0]
[0,null,null,null,null,null,{"$f":"[1]Infrastructure!G1388","v":0},{"$f":"[1]Infrastructure!H1388","v":0},{"$f":"[1]Infrastructure!I1388","v":0},{"$f":"[1]Infrastructure!J1388","v":0},{"$f":"[1]Infrastructure!K1388","v":0},{"$f":"[1]Infrastructure!L1388","v":0},{"$f":"[1]Infrastructure!M1388","v":0},{"$f":"[1]Infrastructure!N1388","v":0},{"$f":"[1]Infrastructure!O1388","v":0},{"$f":"[1]Infrastructure!Q1388","v":0},{"$f":"[1]Infrastructure!R1388","v":0},{"$f":"[1]Infrastructure!T1388","v":0},{"$f":"[1]Infrastructure!W1388","v":0},{"$f":"[1]Infrastructure!W1388","v":0},0,{"$f":"[1]Infrastructure!Z1388","v":0},{"$f":"[1]Infrastructure!Z1388","v":0},0,{"$f":"[1]Infrastructure!AB1388","v":0},{"$f":"[1]Infrastructure!AB1388","v":0},0,{"$f":"[1]Infrastructure!AC1388","v":0},{"$f":"[1]Infrastructure!AD1388","v":0},{"$f":"[1]Infrastructure!AE1388","v":0},{"$f":"[1]Infrastructure!AF1388","v":0},{"$f":"[1]Infrastructure!AG1388","v":0},{"$f":"[1]Infrastructure!AH1388","v":0},0]
[0,null,null,null,null,null,{"$f":"[1]Infrastructure!G1389","v":0},{"$f":"[1]Infrastructure!H1389","v":0},{"$f":"[1]Infrastructure!I1389","v":0},{"$f":"[1]Infrastructure!J1389","v":0},{"$f":"[1]Infrastructure!K1389","v":0},{"$f":"[1]Infrastructure!L1389","v":0},{"$f":"[1]Infrastructure!M1389","v":0},{"$f":"[1]Infrastructure!N1389","v":0},{"$f":"[1]Infrastructure!O1389","v":0},{"$f":"[1]Infrastructure!Q1389","v":0},{"$f":"[1]Infrastructure!R1389","v":0},{"$f":"[1]Infrastructure!T1389","v":0},{"$f":"[1]Infrastructure!W1389","v":0},{"$f":"[1]Infrastructure!W1389","v":0},0,{"$f":"[1]Infrastructure!Z1389","v":0},{"$f":"[1]Infrastructure!Z1389","v":0},0,{"$f":"[1]Infrastructure!AB1389","v":0},{"$f":"[1]Infrastructure!AB1389","v":0},0,{"$f":"[1]Infrastructure!AC1389","v":0},{"$f":"[1]Infrastructure!AD1389","v":0},{"$f":"[1]Infrastructure!AE1389","v":0},{"$f":"[1]Infrastructure!AF1389","v":0},{"$f":"[1]Infrastructure!AG1389","v":0},{"$f":"[1]Infrastructure!AH1389","v":0},0]
[0,null,null,null,null,null,{"$f":"[1]Infrastructure!G1390","v":0},{"$f":"[1]Infrastructure!H1390","v":0},{"$f":"[1]Infrastructure!I1390","v":0},{"$f":"[1]Infrastructure!J1390","v":0},{"$f":"[1]Infrastructure!K1390","v":0},{"$f":"[1]Infrastructure!L1390","v":0},{"$f":"[1]Infrastructure!M1390","v":0},{"$f":"[1]Infrastructure!N1390","v":0},{"$f":"[1]Infrastructure!O1390","v":0},{"$f":"[1]Infrastructure!Q1390","v":0},{"$f":"[1]Infrastructure!R1390","v":0},{"$f":"[1]Infrastructure!T1390","v":0},{"$f":"[1]Infrastructure!W1390","v":0},{"$f":"[1]Infrastructure!W1390","v":0},0,{"$f":"[1]Infrastructure!Z1390","v":0},{"$f":"[1]Infrastructure!Z1390","v":0},0,{"$f":"[1]Infrastructure!AB1390","v":0},{"$f":"[1]Infrastructure!AB1390","v":0},0,{"$f":"[1]Infrastructure!AC1390","v":0},{"$f":"[1]Infrastructure!AD1390","v":0},{"$f":"[1]Infrastructure!AE1390","v":0},{"$f":"[1]Infrastructure!AF1390","v":0},{"$f":"[1]Infrastructure!AG1390","v":0},{"$f":"[1]Infrastructure!AH1390","v":0},0]
[0,null,null,null,null,null,{"$f":"[1]Infrastructure!G1391","v":0},{"$f":"[1]Infrastructure!H1391","v":0},{"$f":"[1]Infrastructure!I1391","v":0},{"$f":"[1]Infrastructure!J1391","v":0},{"$f":"[1]Infrastructure!K1391","v":0},{"$f":"[1]Infrastructure!L1391","v":0},{"$f":"[1]Infrastructure!M1391","v":0},{"$f":"[1]Infrastructure!N1391","v":0},{"$f":"[1]Infrastructure!O1391","v":0},{"$f":"[1]Infrastructure!Q1391","v":0},{"$f":"[1]Infrastructure!R1391","v":0},{"$f":"[1]Infrastructure!T1391","v":0},{"$f":"[1]Infrastructure!W1391","v":0},{"$f":"[1]Infrastructure!W1391","v":0},0,{"$f":"[1]Infrastructure!Z1391","v":0},{"$f":"[1]Infrastructure!Z1391","v":0},0,{"$f":"[1]Infrastructure!AB1391","v":0},{"$f":"[1]Infrastructure!AB1391","v":0},0,{"$f":"[1]Infrastructure!AC1391","v":0},{"$f":"[1]Infrastructure!AD1391","v":0},{"$f":"[1]Infrastructure!AE1391","v":0},{"$f":"[1]Infrastructure!AF1391","v":0},{"$f":"[1]Infrastructure!AG1391","v":0},{"$f":"[1]Infrastructure!AH1391","v":0},0]
[0,null,null,null,null,null,{"$f":"[1]Infrastructure!G1392","v":0},{"$f":"[1]Infrastructure!H1392","v":0},{"$f":"[1]Infrastructure!I1392","v":0},{"$f":"[1]Infrastructure!J1392","v":0},{"$f":"[1]Infrastructure!K1392","v":0},{"$f":"[1]Infrastructure!L1392","v":0},{"$f":"[1]Infrastructure!M1392","v":0},{"$f":"[1]Infrastructure!N1392","v":0},{"$f":"[1]Infrastructure!O1392","v":0},{"$f":"[1]Infrastructure!Q1392","v":0},{"$f":"[1]Infrastructure!R1392","v":0},{"$f":"[1]Infrastructure!T1392","v":0},{"$f":"[1]Infrastructure!W1392","v":0},{"$f":"[1]Infrastructure!W1392","v":0},0,{"$f":"[1]Infrastructure!Z1392","v":0},{"$f":"[1]Infrastructure!Z1392","v":0},0,{"$f":"[1]Infrastructure!AB1392","v":0},{"$f":"[1]Infrastructure!AB1392","v":0},0,{"$f":"[1]Infrastructure!AC1392","v":0},{"$f":"[1]Infrastructure!AD1392","v":0},{"$f":"[1]Infrastructure!AE1392","v":0},{"$f":"[1]Infrastructure!AF1392","v":0},{"$f":"[1]Infrastructure!AG1392","v":0},{"$f":"[1]Infrastructure!AH1392","v":0},0]
[0,null,null,null,null,null,{"$f":"[1]Infrastructure!G1393","v":0},{"$f":"[1]Infrastructure!H1393","v":0},{"$f":"[1]Infrastructure!I1393","v":0},{"$f":"[1]Infrastructure!J1393","v":0},{"$f":"[1]Infrastructure!K1393","v":0},{"$f":"[1]Infrastructure!L1393","v":0},{"$f":"[1]Infrastructure!M1393","v":0},{"$f":"[1]Infrastructure!N1393","v":0},{"$f":"[1]Infrastructure!O1393","v":0},{"$f":"[1]Infrastructure!Q1393","v":0},{"$f":"[1]Infrastructure!R1393","v":0},{"$f":"[1]Infrastructure!T1393","v":0},{"$f":"[1]Infrastructure!W1393","v":0},{"$f":"[1]Infrastructure!W1393","v":0},0,{"$f":"[1]Infrastructure!Z1393","v":0},{"$f":"[1]Infrastructure!Z1393","v":0},0,{"$f":"[1]Infrastructure!AB1393","v":0},{"$f":"[1]Infrastructure!AB1393","v":0},0,{"$f":"[1]Infrastructure!AC1393","v":0},{"$f":"[1]Infrastructure!AD1393","v":0},{"$f":"[1]Infrastructure!AE1393","v":0},{"$f":"[1]Infrastructure!AF1393","v":0},{"$f":"[1]Infrastructure!AG1393","v":0},{"$f":"[1]Infrastructure!AH1393","v":0},0]
[0,null,null,null,null,null,{"$f":"[1]Infrastructure!G1394","v":0},{"$f":"[1]Infrastructure!H1394","v":0},{"$f":"[1]Infrastructure!I1394","v":0},{"$f":"[1]Infrastructure!J1394","v":0},{"$f":"[1]Infrastructure!K1394","v":0},{"$f":"[1]Infrastructure!L1394","v":0},{"$f":"[1]Infrastructure!M1394","v":0},{"$f":"[1]Infrastructure!N1394","v":0},{"$f":"[1]Infrastructure!O1394","v":0},{"$f":"[1]Infrastructure!Q1394","v":0},{"$f":"[1]Infrastructure!R1394","v":0},{"$f":"[1]Infrastructure!T1394","v":0},{"$f":"[1]Infrastructure!W1394","v":0},{"$f":"[1]Infrastructure!W1394","v":0},0,{"$f":"[1]Infrastructure!Z1394","v":0},{"$f":"[1]Infrastructure!Z1394","v":0},0,{"$f":"[1]Infrastructure!AB1394","v":0},{"$f":"[1]Infrastructure!AB1394","v":0},0,{"$f":"[1]Infrastructure!AC1394","v":0},{"$f":"[1]Infrastructure!AD1394","v":0},{"$f":"[1]Infrastructure!AE1394","v":0},{"$f":"[1]Infrastructure!AF1394","v":0},{"$f":"[1]Infrastructure!AG1394","v":0},{"$f":"[1]Infrastructure!AH1394","v":0},0]
[0,null,null,null,null,null,{"$f":"[1]Infrastructure!G1395","v":0},{"$f":"[1]Infrastructure!H1395","v":0},{"$f":"[1]Infrastructure!I1395","v":0},{"$f":"[1]Infrastructure!J1395","v":0},{"$f":"[1]Infrastructure!K1395","v":0},{"$f":"[1]Infrastructure!L1395","v":0},{"$f":"[1]Infrastructure!M1395","v":0},{"$f":"[1]Infrastructure!N1395","v":0},{"$f":"[1]Infrastructure!O1395","v":0},{"$f":"[1]Infrastructure!Q1395","v":0},{"$f":"[1]Infrastructure!R1395","v":0},{"$f":"[1]Infrastructure!T1395","v":0},{"$f":"[1]Infrastructure!W1395","v":0},{"$f":"[1]Infrastructure!W1395","v":0},0,{"$f":"[1]Infrastructure!Z1395","v":0},{"$f":"[1]Infrastructure!Z1395","v":0},0,{"$f":"[1]Infrastructure!AB1395","v":0},{"$f":"[1]Infrastructure!AB1395","v":0},0,{"$f":"[1]Infrastructure!AC1395","v":0},{"$f":"[1]Infrastructure!AD1395","v":0},{"$f":"[1]Infrastructure!AE1395","v":0},{"$f":"[1]Infrastructure!AF1395","v":0},{"$f":"[1]Infrastructure!AG1395","v":0},{"$f":"[1]Infrastructure!AH1395","v":0},0]
[0,null,null,null,null,null,{"$f":"[1]Infrastructure!G1396","v":0},{"$f":"[1]Infrastructure!H1396","v":0},{"$f":"[1]Infrastructure!I1396","v":0},{"$f":"[1]Infrastructure!J1396","v":0},{"$f":"[1]Infrastructure!K1396","v":0},{"$f":"[1]Infrastructure!L1396","v":0},{"$f":"[1]Infrastructure!M1396","v":0},{"$f":"[1]Infrastructure!N1396","v":0},{"$f":"[1]Infrastructure!O1396","v":0},{"$f":"[1]Infrastructure!Q1396","v":0},{"$f":"[1]Infrastructure!R1396","v":0},{"$f":"[1]Infrastructure!T1396","v":0},{"$f":"[1]Infrastructure!W1396","v":0},{"$f":"[1]Infrastructure!W1396","v":0},0,{"$f":"[1]Infrastructure!Z1396","v":0},{"$f":"[1]Infrastructure!Z1396","v":0},0,{"$f":"[1]Infrastructure!AB1396","v":0},{"$f":"[1]Infrastructure!AB1396","v":0},0,{"$f":"[1]Infrastructure!AC1396","v":0},{"$f":"[1]Infrastructure!AD1396","v":0},{"$f":"[1]Infrastructure!AE1396","v":0},{"$f":"[1]Infrastructure!AF1396","v":0},{"$f":"[1]Infrastructure!AG1396","v":0},{"$f":"[1]Infrastructure!AH1396","v":0},0]
[0,null,null,null,null,null,{"$f":"[1]Infrastructure!G1397","v":0},{"$f":"[1]Infrastructure!H1397","v":0},{"$f":"[1]Infrastructure!I1397","v":0},{"$f":"[1]Infrastructure!J1397","v":0},{"$f":"[1]Infrastructure!K1397","v":0},{"$f":"[1]Infrastructure!L1397","v":0},{"$f":"[1]Infrastructure!M1397","v":0},{"$f":"[1]Infrastructure!N1397","v":0},{"$f":"[1]Infrastructure!O1397","v":0},{"$f":"[1]Infrastructure!Q1397","v":0},{"$f":"[1]Infrastructure!R1397","v":0},{"$f":"[1]Infrastructure!T1397","v":0},{"$f":"[1]Infrastructure!W1397","v":0},{"$f":"[1]Infrastructure!W1397","v":0},0,{"$f":"[1]Infrastructure!Z1397","v":0},{"$f":"[1]Infrastructure!Z1397","v":0},0,{"$f":"[1]Infrastructure!AB1397","v":0},{"$f":"[1]Infrastructure!AB1397","v":0},0,{"$f":"[1]Infrastructure!AC1397","v":0},{"$f":"[1]Infrastructure!AD1397","v":0},{"$f":"[1]Infrastructure!AE1397","v":0},{"$f":"[1]Infrastructure!AF1397","v":0},{"$f":"[1]Infrastructure!AG1397","v":0},{"$f":"[1]Infrastructure!AH1397","v":0},0]
[0,null,null,null,null,null,{"$f":"[1]Infrastructure!G1398","v":0},{"$f":"[1]Infrastructure!H1398","v":0},{"$f":"[1]Infrastructure!I1398","v":0},{"$f":"[1]Infrastructure!J1398","v":0},{"$f":"[1]Infrastructure!K1398","v":0},{"$f":"[1]Infrastructure!L1398","v":0},{"$f":"[1]Infrastructure!M1398","v":0},{"$f":"[1]Infrastructure!N1398","v":0},{"$f":"[1]Infrastructure!O1398","v":0},{"$f":"[1]Infrastructure!Q1398","v":0},{"$f":"[1]Infrastructure!R1398","v":0},{"$f":"[1]Infrastructure!T1398","v":0},{"$f":"[1]Infrastructure!W1398","v":0},{"$f":"[1]Infrastructure!W1398","v":0},0,{"$f":"[1]Infrastructure!Z1398","v":0},{"$f":"[1]Infrastructure!Z1398","v":0},0,{"$f":"[1]Infrastructure!AB1398","v":0},{"$f":"[1]Infrastructure!AB1398","v":0},0,{"$f":"[1]Infrastructure!AC1398","v":0},{"$f":"[1]Infrastructure!AD1398","v":0},{"$f":"[1]Infrastructure!AE1398","v":0},{"$f":"[1]Infrastructure!AF1398","v":0},{"$f":"[1]Infrastructure!AG1398","v":0},{"$f":"[1]Infrastructure!AH1398","v":0},0]
[0,null,null,null,null,null,{"$f":"[1]Infrastructure!G1399","v":0},{"$f":"[1]Infrastructure!H1399","v":0},{"$f":"[1]Infrastructure!I1399","v":0},{"$f":"[1]Infrastructure!J1399","v":0},{"$f":"[1]Infrastructure!K1399","v":0},{"$f":"[1]Infrastructure!L1399","v":0},{"$f":"[1]Infrastructure!M1399","v":0},{"$f":"[1]Infrastructure!N1399","v":0},{"$f":"[1]Infrastructure!O1399","v":0},{"$f":"[1]Infrastructure!Q1399","v":0},{"$f":"[1]Infrastructure!R1399","v":0},{"$f":"[1]Infrastructure!T1399","v":0},{"$f":"[1]Infrastructure!W1399","v":0},{"$f":"[1]Infrastructure!W1399","v":0},0,{"$f":"[1]Infrastructure!Z1399","v":0},{"$f":"[1]Infrastructure!Z1399","v":0},0,{"$f":"[1]Infrastructure!AB1399","v":0},{"$f":"[1]Infrastructure!AB1399","v":0},0,{"$f":"[1]Infrastructure!AC1399","v":0},{"$f":"[1]Infrastructure!AD1399","v":0},{"$f":"[1]Infrastructure!AE1399","v":0},{"$f":"[1]Infrastructure!AF1399","v":0},{"$f":"[1]Infrastructure!AG1399","v":0},{"$f":"[1]Infrastructure!AH1399","v":0},0]
[0,null,null,null,null,null,{"$f":"[1]Infrastructure!G1400","v":0},{"$f":"[1]Infrastructure!H1400","v":0},{"$f":"[1]Infrastructure!I1400","v":0},{"$f":"[1]Infrastructure!J1400","v":0},{"$f":"[1]Infrastructure!K1400","v":0},{"$f":"[1]Infrastructure!L1400","v":0},{"$f":"[1]Infrastructure!M1400","v":0},{"$f":"[1]Infrastructure!N1400","v":0},{"$f":"[1]Infrastructure!O1400","v":0},{"$f":"[1]Infrastructure!Q1400","v":0},{"$f":"[1]Infrastructure!R1400","v":0},{"$f":"[1]Infrastructure!T1400","v":0},{"$f":"[1]Infrastructure!W1400","v":0},{"$f":"[1]Infrastructure!W1400","v":0},0,{"$f":"[1]Infrastructure!Z1400","v":0},{"$f":"[1]Infrastructure!Z1400","v":0},0,{"$f":"[1]Infrastructure!AB1400","v":0},{"$f":"[1]Infrastructure!AB1400","v":0},0,{"$f":"[1]Infrastructure!AC1400","v":0},{"$f":"[1]Infrastructure!AD1400","v":0},{"$f":"[1]Infrastructure!AE1400","v":0},{"$f":"[1]Infrastructure!AF1400","v":0},{"$f":"[1]Infrastructure!AG1400","v":0},{"$f":"[1]Infrastructure!AH1400","v":0},0]
[0,null,null,null,null,null,{"$f":"[1]Infrastructure!G1401","v":0},{"$f":"[1]Infrastructure!H1401","v":0},{"$f":"[1]Infrastructure!I1401","v":0},{"$f":"[1]Infrastructure!J1401","v":0},{"$f":"[1]Infrastructure!K1401","v":0},{"$f":"[1]Infrastructure!L1401","v":0},{"$f":"[1]Infrastructure!M1401","v":0},{"$f":"[1]Infrastructure!N1401","v":0},{"$f":"[1]Infrastructure!O1401","v":0},{"$f":"[1]Infrastructure!Q1401","v":0},{"$f":"[1]Infrastructure!R1401","v":0},{"$f":"[1]Infrastructure!T1401","v":0},{"$f":"[1]Infrastructure!W1401","v":0},{"$f":"[1]Infrastructure!W1401","v":0},0,{"$f":"[1]Infrastructure!Z1401","v":0},{"$f":"[1]Infrastructure!Z1401","v":0},0,{"$f":"[1]Infrastructure!AB1401","v":0},{"$f":"[1]Infrastructure!AB1401","v":0},0,{"$f":"[1]Infrastructure!AC1401","v":0},{"$f":"[1]Infrastructure!AD1401","v":0},{"$f":"[1]Infrastructure!AE1401","v":0},{"$f":"[1]Infrastructure!AF1401","v":0},{"$f":"[1]Infrastructure!AG1401","v":0},{"$f":"[1]Infrastructure!AH1401","v":0},0]
[0,null,null,null,null,null,{"$f":"[1]Infrastructure!G1402","v":0},{"$f":"[1]Infrastructure!H1402","v":0},{"$f":"[1]Infrastructure!I1402","v":0},{"$f":"[1]Infrastructure!J1402","v":0},{"$f":"[1]Infrastructure!K1402","v":0},{"$f":"[1]Infrastructure!L1402","v":0},{"$f":"[1]Infrastructure!M1402","v":0},{"$f":"[1]Infrastructure!N1402","v":0},{"$f":"[1]Infrastructure!O1402","v":0},{"$f":"[1]Infrastructure!Q1402","v":0},{"$f":"[1]Infrastructure!R1402","v":0},{"$f":"[1]Infrastructure!T1402","v":0},{"$f":"[1]Infrastructure!W1402","v":0},{"$f":"[1]Infrastructure!W1402","v":0},0,{"$f":"[1]Infrastructure!Z1402","v":0},{"$f":"[1]Infrastructure!Z1402","v":0},0,{"$f":"[1]Infrastructure!AB1402","v":0},{"$f":"[1]Infrastructure!AB1402","v":0},0,{"$f":"[1]Infrastructure!AC1402","v":0},{"$f":"[1]Infrastructure!AD1402","v":0},{"$f":"[1]Infrastructure!AE1402","v":0},{"$f":"[1]Infrastructure!AF1402","v":0},{"$f":"[1]Infrastructure!AG1402","v":0},{"$f":"[1]Infrastructure!AH1402","v":0},0]
[0,null,null,null,null,null,{"$f":"[1]Infrastructure!G1403","v":0},{"$f":"[1]Infrastructure!H1403","v":0},{"$f":"[1]Infrastructure!I1403","v":0},{"$f":"[1]Infrastructure!J1403","v":0},{"$f":"[1]Infrastructure!K1403","v":0},{"$f":"[1]Infrastructure!L1403","v":0},{"$f":"[1]Infrastructure!M1403","v":0},{"$f":"[1]Infrastructure!N1403","v":0},{"$f":"[1]Infrastructure!O1403","v":0},{"$f":"[1]Infrastructure!Q1403","v":0},{"$f":"[1]Infrastructure!R1403","v":0},{"$f":"[1]Infrastructure!T1403","v":0},{"$f":"[1]Infrastructure!W1403","v":0},{"$f":"[1]Infrastructure!W1403","v":0},0,{"$f":"[1]Infrastructure!Z1403","v":0},{"$f":"[1]Infrastructure!Z1403","v":0},0,{"$f":"[1]Infrastructure!AB1403","v":0},{"$f":"[1]Infrastructure!AB1403","v":0},0,{"$f":"[1]Infrastructure!AC1403","v":0},{"$f":"[1]Infrastructure!AD1403","v":0},{"$f":"[1]Infrastructure!AE1403","v":0},{"$f":"[1]Infrastructure!AF1403","v":0},{"$f":"[1]Infrastructure!AG1403","v":0},{"$f":"[1]Infrastructure!AH1403","v":0},0]
[0,null,null,null,null,null,{"$f":"[1]Infrastructure!G1404","v":0},{"$f":"[1]Infrastructure!H1404","v":0},{"$f":"[1]Infrastructure!I1404","v":0},{"$f":"[1]Infrastructure!J1404","v":0},{"$f":"[1]Infrastructure!K1404","v":0},{"$f":"[1]Infrastructure!L1404","v":0},{"$f":"[1]Infrastructure!M1404","v":0},{"$f":"[1]Infrastructure!N1404","v":0},{"$f":"[1]Infrastructure!O1404","v":0},{"$f":"[1]Infrastructure!Q1404","v":0},{"$f":"[1]Infrastructure!R1404","v":0},{"$f":"[1]Infrastructure!T1404","v":0},{"$f":"[1]Infrastructure!W1404","v":0},{"$f":"[1]Infrastructure!W1404","v":0},0,{"$f":"[1]Infrastructure!Z1404","v":0},{"$f":"[1]Infrastructure!Z1404","v":0},0,{"$f":"[1]Infrastructure!AB1404","v":0},{"$f":"[1]Infrastructure!AB1404","v":0},0,{"$f":"[1]Infrastructure!AC1404","v":0},{"$f":"[1]Infrastructure!AD1404","v":0},{"$f":"[1]Infrastructure!AE1404","v":0},{"$f":"[1]Infrastructure!AF1404","v":0},{"$f":"[1]Infrastructure!AG1404","v":0},{"$f":"[1]Infrastructure!AH1404","v":0},0]
[0,null,null,null,null,null,{"$f":"[1]Infrastructure!G1405","v":0},{"$f":"[1]Infrastructure!H1405","v":0},{"$f":"[1]Infrastructure!I1405","v":0},{"$f":"[1]Infrastructure!J1405","v":0},{"$f":"[1]Infrastructure!K1405","v":0},{"$f":"[1]Infrastructure!L1405","v":0},{"$f":"[1]Infrastructure!M1405","v":0},{"$f":"[1]Infrastructure!N1405","v":0},{"$f":"[1]Infrastructure!O1405","v":0},{"$f":"[1]Infrastructure!Q1405","v":0},{"$f":"[1]Infrastructure!R1405","v":0},{"$f":"[1]Infrastructure!T1405","v":0},{"$f":"[1]Infrastructure!W1405","v":0},{"$f":"[1]Infrastructure!W1405","v":0},0,{"$f":"[1]Infrastructure!Z1405","v":0},{"$f":"[1]Infrastructure!Z1405","v":0},0,{"$f":"[1]Infrastructure!AB1405","v":0},{"$f":"[1]Infrastructure!AB1405","v":0},0,{"$f":"[1]Infrastructure!AC1405","v":0},{"$f":"[1]Infrastructure!AD1405","v":0},{"$f":"[1]Infrastructure!AE1405","v":0},{"$f":"[1]Infrastructure!AF1405","v":0},{"$f":"[1]Infrastructure!AG1405","v":0},{"$f":"[1]Infrastructure!AH1405","v":0},0]
[0,null,null,null,null,null,{"$f":"[1]Infrastructure!G1406","v":0},{"$f":"[1]Infrastructure!H1406","v":0},{"$f":"[1]Infrastructure!I1406","v":0},{"$f":"[1]Infrastructure!J1406","v":0},{"$f":"[1]Infrastructure!K1406","v":0},{"$f":"[1]Infrastructure!L1406","v":0},{"$f":"[1]Infrastructure!M1406","v":0},{"$f":"[1]Infrastructure!N1406","v":0},{"$f":"[1]Infrastructure!O1406","v":0},{"$f":"[1]Infrastructure!Q1406","v":0},{"$f":"[1]Infrastructure!R1406","v":0},{"$f":"[1]Infrastructure!T1406","v":0},{"$f":"[1]Infrastructure!W1406","v":0},{"$f":"[1]Infrastructure!W1406","v":0},0,{"$f":"[1]Infrastructure!Z1406","v":0},{"$f":"[1]Infrastructure!Z1406","v":0},0,{"$f":"[1]Infrastructure!AB1406","v":0},{"$f":"[1]Infrastructure!AB1406","v":0},0,{"$f":"[1]Infrastructure!AC1406","v":0},{"$f":"[1]Infrastructure!AD1406","v":0},{"$f":"[1]Infrastructure!AE1406","v":0},{"$f":"[1]Infrastructure!AF1406","v":0},{"$f":"[1]Infrastructure!AG1406","v":0},{"$f":"[1]Infrastructure!AH1406","v":0},0]
[0,null,null,null,null,null,{"$f":"[1]Infrastructure!G1407","v":0},{"$f":"[1]Infrastructure!H1407","v":0},{"$f":"[1]Infrastructure!I1407","v":0},{"$f":"[1]Infrastructure!J1407","v":0},{"$f":"[1]Infrastructure!K1407","v":0},{"$f":"[1]Infrastructure!L1407","v":0},{"$f":"[1]Infrastructure!M1407","v":0},{"$f":"[1]Infrastructure!N1407","v":0},{"$f":"[1]Infrastructure!O1407","v":0},{"$f":"[1]Infrastructure!Q1407","v":0},{"$f":"[1]Infrastructure!R1407","v":0},{"$f":"[1]Infrastructure!T1407","v":0},{"$f":"[1]Infrastructure!W1407","v":0},{"$f":"[1]Infrastructure!W1407","v":0},0,{"$f":"[1]Infrastructure!Z1407","v":0},{"$f":"[1]Infrastructure!Z1407","v":0},0,{"$f":"[1]Infrastructure!AB1407","v":0},{"$f":"[1]Infrastructure!AB1407","v":0},0,{"$f":"[1]Infrastructure!AC1407","v":0},{"$f":"[1]Infrastructure!AD1407","v":0},{"$f":"[1]Infrastructure!AE1407","v":0},{"$f":"[1]Infrastructure!AF1407","v":0},{"$f":"[1]Infrastructure!AG1407","v":0},{"$f":"[1]Infrastructure!AH1407","v":0},0]
[0,null,null,null,null,null,{"$f":"[1]Infrastructure!G1408","v":0},{"$f":"[1]Infrastructure!H1408","v":0},{"$f":"[1]Infrastructure!I1408","v":0},{"$f":"[1]Infrastructure!J1408","v":0},{"$f":"[1]Infrastructure!K1408","v":0},{"$f":"[1]Infrastructure!L1408","v":0},{"$f":"[1]Infrastructure!M1408","v":0},{"$f":"[1]Infrastructure!N1408","v":0},{"$f":"[1]Infrastructure!O1408","v":0},{"$f":"[1]Infrastructure!Q1408","v":0},{"$f":"[1]Infrastructure!R1408","v":0},{"$f":"[1]Infrastructure!T1408","v":0},{"$f":"[1]Infrastructure!W1408","v":0},{"$f":"[1]Infrastructure!W1408","v":0},0,{"$f":"[1]Infrastructure!Z1408","v":0},{"$f":"[1]Infrastructure!Z1408","v":0},0,{"$f":"[1]Infrastructure!AB1408","v":0},{"$f":"[1]Infrastructure!AB1408","v":0},0,{"$f":"[1]Infrastructure!AC1408","v":0},{"$f":"[1]Infrastructure!AD1408","v":0},{"$f":"[1]Infrastructure!AE1408","v":0},{"$f":"[1]Infrastructure!AF1408","v":0},{"$f":"[1]Infrastructure!AG1408","v":0},{"$f":"[1]Infrastructure!AH1408","v":0},0]
[0,null,null,null,null,null,{"$f":"[1]Infrastructure!G1409","v":0},{"$f":"[1]Infrastructure!H1409","v":0},{"$f":"[1]Infrastructure!I1409","v":0},{"$f":"[1]Infrastructure!J1409","v":0},{"$f":"[1]Infrastructure!K1409","v":0},{"$f":"[1]Infrastructure!L1409","v":0},{"$f":"[1]Infrastructure!M1409","v":0},{"$f":"[1]Infrastructure!N1409","v":0},{"$f":"[1]Infrastructure!O1409","v":0},{"$f":"[1]Infrastructure!Q1409","v":0},{"$f":"[1]Infrastructure!R1409","v":0},{"$f":"[1]Infrastructure!T1409","v":0},{"$f":"[1]Infrastructure!W1409","v":0},{"$f":"[1]Infrastructure!W1409","v":0},0,{"$f":"[1]Infrastructure!Z1409","v":0},{"$f":"[1]Infrastructure!Z1409","v":0},0,{"$f":"[1]Infrastructure!AB1409","v":0},{"$f":"[1]Infrastructure!AB1409","v":0},0,{"$f":"[1]Infrastructure!AC1409","v":0},{"$f":"[1]Infrastructure!AD1409","v":0},{"$f":"[1]Infrastructure!AE1409","v":0},{"$f":"[1]Infrastructure!AF1409","v":0},{"$f":"[1]Infrastructure!AG1409","v":0},{"$f":"[1]Infrastructure!AH1409","v":0},0]
[0,null,null,null,null,null,{"$f":"[1]Infrastructure!G1410","v":0},{"$f":"[1]Infrastructure!H1410","v":0},{"$f":"[1]Infrastructure!I1410","v":0},{"$f":"[1]Infrastructure!J1410","v":0},{"$f":"[1]Infrastructure!K1410","v":0},{"$f":"[1]Infrastructure!L1410","v":0},{"$f":"[1]Infrastructure!M1410","v":0},{"$f":"[1]Infrastructure!N1410","v":0},{"$f":"[1]Infrastructure!O1410","v":0},{"$f":"[1]Infrastructure!Q1410","v":0},{"$f":"[1]Infrastructure!R1410","v":0},{"$f":"[1]Infrastructure!T1410","v":0},{"$f":"[1]Infrastructure!W1410","v":0},{"$f":"[1]Infrastructure!W1410","v":0},0,{"$f":"[1]Infrastructure!Z1410","v":0},{"$f":"[1]Infrastructure!Z1410","v":0},0,{"$f":"[1]Infrastructure!AB1410","v":0},{"$f":"[1]Infrastructure!AB1410","v":0},0,{"$f":"[1]Infrastructure!AC1410","v":0},{"$f":"[1]Infrastructure!AD1410","v":0},{"$f":"[1]Infrastructure!AE1410","v":0},{"$f":"[1]Infrastructure!AF1410","v":0},{"$f":"[1]Infrastructure!AG1410","v":0},{"$f":"[1]Infrastructure!AH1410","v":0},0]
[0,null,null,null,null,null,{"$f":"[1]Infrastructure!G1411","v":0},{"$f":"[1]Infrastructure!H1411","v":0},{"$f":"[1]Infrastructure!I1411","v":0},{"$f":"[1]Infrastructure!J1411","v":0},{"$f":"[1]Infrastructure!K1411","v":0},{"$f":"[1]Infrastructure!L1411","v":0},{"$f":"[1]Infrastructure!M1411","v":0},{"$f":"[1]Infrastructure!N1411","v":0},{"$f":"[1]Infrastructure!O1411","v":0},{"$f":"[1]Infrastructure!Q1411","v":0},{"$f":"[1]Infrastructure!R1411","v":0},{"$f":"[1]Infrastructure!T1411","v":0},{"$f":"[1]Infrastructure!W1411","v":0},{"$f":"[1]Infrastructure!W1411","v":0},0,{"$f":"[1]Infrastructure!Z1411","v":0},{"$f":"[1]Infrastructure!Z1411","v":0},0,{"$f":"[1]Infrastructure!AB1411","v":0},{"$f":"[1]Infrastructure!AB1411","v":0},0,{"$f":"[1]Infrastructure!AC1411","v":0},{"$f":"[1]Infrastructure!AD1411","v":0},{"$f":"[1]Infrastructure!AE1411","v":0},{"$f":"[1]Infrastructure!AF1411","v":0},{"$f":"[1]Infrastructure!AG1411","v":0},{"$f":"[1]Infrastructure!AH1411","v":0},0]
[0,null,null,null,null,null,{"$f":"[1]Infrastructure!G1412","v":0},{"$f":"[1]Infrastructure!H1412","v":0},{"$f":"[1]Infrastructure!I1412","v":0},{"$f":"[1]Infrastructure!J1412","v":0},{"$f":"[1]Infrastructure!K1412","v":0},{"$f":"[1]Infrastructure!L1412","v":0},{"$f":"[1]Infrastructure!M1412","v":0},{"$f":"[1]Infrastructure!N1412","v":0},{"$f":"[1]Infrastructure!O1412","v":0},{"$f":"[1]Infrastructure!Q1412","v":0},{"$f":"[1]Infrastructure!R1412","v":0},{"$f":"[1]Infrastructure!T1412","v":0},{"$f":"[1]Infrastructure!W1412","v":0},{"$f":"[1]Infrastructure!W1412","v":0},0,{"$f":"[1]Infrastructure!Z1412","v":0},{"$f":"[1]Infrastructure!Z1412","v":0},0,{"$f":"[1]Infrastructure!AB1412","v":0},{"$f":"[1]Infrastructure!AB1412","v":0},0,{"$f":"[1]Infrastructure!AC1412","v":0},{"$f":"[1]Infrastructure!AD1412","v":0},{"$f":"[1]Infrastructure!AE1412","v":0},{"$f":"[1]Infrastructure!AF1412","v":0},{"$f":"[1]Infrastructure!AG1412","v":0},{"$f":"[1]Infrastructure!AH1412","v":0},0]
[0,null,null,null,null,null,{"$f":"[1]Infrastructure!G1413","v":0},{"$f":"[1]Infrastructure!H1413","v":0},{"$f":"[1]Infrastructure!I1413","v":0},{"$f":"[1]Infrastructure!J1413","v":0},{"$f":"[1]Infrastructure!K1413","v":0},{"$f":"[1]Infrastructure!L1413","v":0},{"$f":"[1]Infrastructure!M1413","v":0},{"$f":"[1]Infrastructure!N1413","v":0},{"$f":"[1]Infrastructure!O1413","v":0},{"$f":"[1]Infrastructure!Q1413","v":0},{"$f":"[1]Infrastructure!R1413","v":0},{"$f":"[1]Infrastructure!T1413","v":0},{"$f":"[1]Infrastructure!W1413","v":0},{"$f":"[1]Infrastructure!W1413","v":0},0,{"$f":"[1]Infrastructure!Z1413","v":0},{"$f":"[1]Infrastructure!Z1413","v":0},0,{"$f":"[1]Infrastructure!AB1413","v":0},{"$f":"[1]Infrastructure!AB1413","v":0},0,{"$f":"[1]Infrastructure!AC1413","v":0},{"$f":"[1]Infrastructure!AD1413","v":0},{"$f":"[1]Infrastructure!AE1413","v":0},{"$f":"[1]Infrastructure!AF1413","v":0},{"$f":"[1]Infrastructure!AG1413","v":0},{"$f":"[1]Infrastructure!AH1413","v":0},0]
[0,null,null,null,null,null,{"$f":"[1]Infrastructure!G1414","v":0},{"$f":"[1]Infrastructure!H1414","v":0},{"$f":"[1]Infrastructure!I1414","v":0},{"$f":"[1]Infrastructure!J1414","v":0},{"$f":"[1]Infrastructure!K1414","v":0},{"$f":"[1]Infrastructure!L1414","v":0},{"$f":"[1]Infrastructure!M1414","v":0},{"$f":"[1]Infrastructure!N1414","v":0},{"$f":"[1]Infrastructure!O1414","v":0},{"$f":"[1]Infrastructure!Q1414","v":0},{"$f":"[1]Infrastructure!R1414","v":0},{"$f":"[1]Infrastructure!T1414","v":0},{"$f":"[1]Infrastructure!W1414","v":0},{"$f":"[1]Infrastructure!W1414","v":0},0,{"$f":"[1]Infrastructure!Z1414","v":0},{"$f":"[1]Infrastructure!Z1414","v":0},0,{"$f":"[1]Infrastructure!AB1414","v":0},{"$f":"[1]Infrastructure!AB1414","v":0},0,{"$f":"[1]Infrastructure!AC1414","v":0},{"$f":"[1]Infrastructure!AD1414","v":0},{"$f":"[1]Infrastructure!AE1414","v":0},{"$f":"[1]Infrastructure!AF1414","v":0},{"$f":"[1]Infrastructure!AG1414","v":0},{"$f":"[1]Infrastructure!AH1414","v":0},0]
[0,null,null,null,null,null,{"$f":"[1]Infrastructure!G1415","v":0},{"$f":"[1]Infrastructure!H1415","v":0},{"$f":"[1]Infrastructure!I1415","v":0},{"$f":"[1]Infrastructure!J1415","v":0},{"$f":"[1]Infrastructure!K1415","v":0},{"$f":"[1]Infrastructure!L1415","v":0},{"$f":"[1]Infrastructure!M1415","v":0},{"$f":"[1]Infrastructure!N1415","v":0},{"$f":"[1]Infrastructure!O1415","v":0},{"$f":"[1]Infrastructure!Q1415","v":0},{"$f":"[1]Infrastructure!R1415","v":0},{"$f":"[1]Infrastructure!T1415","v":0},{"$f":"[1]Infrastructure!W1415","v":0},{"$f":"[1]Infrastructure!W1415","v":0},0,{"$f":"[1]Infrastructure!Z1415","v":0},{"$f":"[1]Infrastructure!Z1415","v":0},0,{"$f":"[1]Infrastructure!AB1415","v":0},{"$f":"[1]Infrastructure!AB1415","v":0},0,{"$f":"[1]Infrastructure!AC1415","v":0},{"$f":"[1]Infrastructure!AD1415","v":0},{"$f":"[1]Infrastructure!AE1415","v":0},{"$f":"[1]Infrastructure!AF1415","v":0},{"$f":"[1]Infrastructure!AG1415","v":0},{"$f":"[1]Infrastructure!AH1415","v":0},0]
[0,null,null,null,null,null,{"$f":"[1]Infrastructure!G1416","v":0},{"$f":"[1]Infrastructure!H1416","v":0},{"$f":"[1]Infrastructure!I1416","v":0},{"$f":"[1]Infrastructure!J1416","v":0},{"$f":"[1]Infrastructure!K1416","v":0},{"$f":"[1]Infrastructure!L1416","v":0},{"$f":"[1]Infrastructure!M1416","v":0},{"$f":"[1]Infrastructure!N1416","v":0},{"$f":"[1]Infrastructure!O1416","v":0},{"$f":"[1]Infrastructure!Q1416","v":0},{"$f":"[1]Infrastructure!R1416","v":0},{"$f":"[1]Infrastructure!T1416","v":0},{"$f":"[1]Infrastructure!W1416","v":0},{"$f":"[1]Infrastructure!W1416","v":0},0,{"$f":"[1]Infrastructure!Z1416","v":0},{"$f":"[1]Infrastructure!Z1416","v":0},0,{"$f":"[1]Infrastructure!AB1416","v":0},{"$f":"[1]Infrastructure!AB1416","v":0},0,{"$f":"[1]Infrastructure!AC1416","v":0},{"$f":"[1]Infrastructure!AD1416","v":0},{"$f":"[1]Infrastructure!AE1416","v":0},{"$f":"[1]Infrastructure!AF1416","v":0},{"$f":"[1]Infrastructure!AG1416","v":0},{"$f":"[1]Infrastructure!AH1416","v":0},0]
[0,null,null,null,null,null,{"$f":"[1]Infrastructure!G1417","v":0},{"$f":"[1]Infrastructure!H1417","v":0},{"$f":"[1]Infrastructure!I1417","v":0},{"$f":"[1]Infrastructure!J1417","v":0},{"$f":"[1]Infrastructure!K1417","v":0},{"$f":"[1]Infrastructure!L1417","v":0},{"$f":"[1]Infrastructure!M1417","v":0},{"$f":"[1]Infrastructure!N1417","v":0},{"$f":"[1]Infrastructure!O1417","v":0},{"$f":"[1]Infrastructure!Q1417","v":0},{"$f":"[1]Infrastructure!R1417","v":0},{"$f":"[1]Infrastructure!T1417","v":0},{"$f":"[1]Infrastructure!W1417","v":0},{"$f":"[1]Infrastructure!W1417","v":0},0,{"$f":"[1]Infrastructure!Z1417","v":0},{"$f":"[1]Infrastructure!Z1417","v":0},0,{"$f":"[1]Infrastructure!AB1417","v":0},{"$f":"[1]Infrastructure!AB1417","v":0},0,{"$f":"[1]Infrastructure!AC1417","v":0},{"$f":"[1]Infrastructure!AD1417","v":0},{"$f":"[1]Infrastructure!AE1417","v":0},{"$f":"[1]Infrastructure!AF1417","v":0},{"$f":"[1]Infrastructure!AG1417","v":0},{"$f":"[1]Infrastructure!AH1417","v":0},0]
[0,null,null,null,null,null,{"$f":"[1]Infrastructure!G1418","v":0},{"$f":"[1]Infrastructure!H1418","v":0},{"$f":"[1]Infrastructure!I1418","v":0},{"$f":"[1]Infrastructure!J1418","v":0},{"$f":"[1]Infrastructure!K1418","v":0},{"$f":"[1]Infrastructure!L1418","v":0},{"$f":"[1]Infrastructure!M1418","v":0},{"$f":"[1]Infrastructure!N1418","v":0},{"$f":"[1]Infrastructure!O1418","v":0},{"$f":"[1]Infrastructure!Q1418","v":0},{"$f":"[1]Infrastructure!R1418","v":0},{"$f":"[1]Infrastructure!T1418","v":0},{"$f":"[1]Infrastructure!W1418","v":0},{"$f":"[1]Infrastructure!W1418","v":0},0,{"$f":"[1]Infrastructure!Z1418","v":0},{"$f":"[1]Infrastructure!Z1418","v":0},0,{"$f":"[1]Infrastructure!AB1418","v":0},{"$f":"[1]Infrastructure!AB1418","v":0},0,{"$f":"[1]Infrastructure!AC1418","v":0},{"$f":"[1]Infrastructure!AD1418","v":0},{"$f":"[1]Infrastructure!AE1418","v":0},{"$f":"[1]Infrastructure!AF1418","v":0},{"$f":"[1]Infrastructure!AG1418","v":0},{"$f":"[1]Infrastructure!AH1418","v":0},0]
[0,null,null,null,null,null,{"$f":"[1]Infrastructure!G1419","v":0},{"$f":"[1]Infrastructure!H1419","v":0},{"$f":"[1]Infrastructure!I1419","v":0},{"$f":"[1]Infrastructure!J1419","v":0},{"$f":"[1]Infrastructure!K1419","v":0},{"$f":"[1]Infrastructure!L1419","v":0},{"$f":"[1]Infrastructure!M1419","v":0},{"$f":"[1]Infrastructure!N1419","v":0},{"$f":"[1]Infrastructure!O1419","v":0},{"$f":"[1]Infrastructure!Q1419","v":0},{"$f":"[1]Infrastructure!R1419","v":0},{"$f":"[1]Infrastructure!T1419","v":0},{"$f":"[1]Infrastructure!W1419","v":0},{"$f":"[1]Infrastructure!W1419","v":0},0,{"$f":"[1]Infrastructure!Z1419","v":0},{"$f":"[1]Infrastructure!Z1419","v":0},0,{"$f":"[1]Infrastructure!AB1419","v":0},{"$f":"[1]Infrastructure!AB1419","v":0},0,{"$f":"[1]Infrastructure!AC1419","v":0},{"$f":"[1]Infrastructure!AD1419","v":0},{"$f":"[1]Infrastructure!AE1419","v":0},{"$f":"[1]Infrastructure!AF1419","v":0},{"$f":"[1]Infrastructure!AG1419","v":0},{"$f":"[1]Infrastructure!AH1419","v":0},0]
[{"$f":"IF(SUM(O1420:AH1420),1,0)","v":0},null,null,null,null,null,{"$f":"[1]Infrastructure!G1420","v":0},{"$f":"[1]Infrastructure!H1420","v":0},{"$f":"[1]Infrastructure!I1420","v":0},{"$f":"[1]Infrastructure!J1420","v":0},{"$f":"[1]Infrastructure!K1420","v":0},{"$f":"[1]Infrastructure!L1420","v":0},{"$f":"[1]Infrastructure!M1420","v":0},{"$f":"[1]Infrastructure!N1420","v":0},{"$f":"[1]Infrastructure!O1420","v":0},{"$f":"[1]Infrastructure!Q1420","v":0},{"$f":"[1]Infrastructure!R1420","v":0},{"$f":"[1]Infrastructure!T1420","v":0},{"$f":"[1]Infrastructure!W1420","v":0},{"$f":"[1]Infrastructure!W1420","v":0},0,{"$f":"[1]Infrastructure!Z1420","v":0},{"$f":"[1]Infrastructure!Z1420","v":0},0,{"$f":"[1]Infrastructure!AB1420","v":0},{"$f":"[1]Infrastructure!AB1420","v":0},0,{"$f":"[1]Infrastructure!AC1420","v":0},{"$f":"[1]Infrastructure!AD1420","v":0},{"$f":"[1]Infrastructure!AE1420","v":0},{"$f":"[1]Infrastructure!AF1420","v":0},{"$f":"[1]Infrastructure!AG1420","v":0},{"$f":"[1]Infrastructure!AH1420","v":0},0]
[0,null,null,null,null,null,{"$f":"[1]Infrastructure!G1421","v":0},{"$f":"[1]Infrastructure!H1421","v":0},{"$f":"[1]Infrastructure!I1421","v":0},{"$f":"[1]Infrastructure!J1421","v":0},{"$f":"[1]Infrastructure!K1421","v":0},{"$f":"[1]Infrastructure!L1421","v":0},{"$f":"[1]Infrastructure!M1421","v":0},{"$f":"[1]Infrastructure!N1421","v":0},{"$f":"[1]Infrastructure!O1421","v":0},{"$f":"[1]Infrastructure!Q1421","v":0},{"$f":"[1]Infrastructure!R1421","v":0},{"$f":"[1]Infrastructure!T1421","v":0},{"$f":"[1]Infrastructure!W1421","v":0},{"$f":"[1]Infrastructure!W1421","v":0},0,{"$f":"[1]Infrastructure!Z1421","v":0},{"$f":"[1]Infrastructure!Z1421","v":0},0,{"$f":"[1]Infrastructure!AB1421","v":0},{"$f":"[1]Infrastructure!AB1421","v":0},0,{"$f":"[1]Infrastructure!AC1421","v":0},{"$f":"[1]Infrastructure!AD1421","v":0},{"$f":"[1]Infrastructure!AE1421","v":0},{"$f":"[1]Infrastructure!AF1421","v":0},{"$f":"[1]Infrastructure!AG1421","v":0},{"$f":"[1]Infrastructure!AH1421","v":0},0]
[0,null,null,null,null,null,{"$f":"[1]Infrastructure!G1422","v":0},{"$f":"[1]Infrastructure!H1422","v":0},{"$f":"[1]Infrastructure!I1422","v":0},{"$f":"[1]Infrastructure!J1422","v":0},{"$f":"[1]Infrastructure!K1422","v":0},{"$f":"[1]Infrastructure!L1422","v":0},{"$f":"[1]Infrastructure!M1422","v":0},{"$f":"[1]Infrastructure!N1422","v":0},{"$f":"[1]Infrastructure!O1422","v":0},{"$f":"[1]Infrastructure!Q1422","v":0},{"$f":"[1]Infrastructure!R1422","v":0},{"$f":"[1]Infrastructure!T1422","v":0},{"$f":"[1]Infrastructure!W1422","v":0},{"$f":"[1]Infrastructure!W1422","v":0},0,{"$f":"[1]Infrastructure!Z1422","v":0},{"$f":"[1]Infrastructure!Z1422","v":0},0,{"$f":"[1]Infrastructure!AB1422","v":0},{"$f":"[1]Infrastructure!AB1422","v":0},0,{"$f":"[1]Infrastructure!AC1422","v":0},{"$f":"[1]Infrastructure!AD1422","v":0},{"$f":"[1]Infrastructure!AE1422","v":0},{"$f":"[1]Infrastructure!AF1422","v":0},{"$f":"[1]Infrastructure!AG1422","v":0},{"$f":"[1]Infrastructure!AH1422","v":0},0]
[0,null,null,null,null,null,{"$f":"[1]Infrastructure!G1423","v":0},{"$f":"[1]Infrastructure!H1423","v":0},{"$f":"[1]Infrastructure!I1423","v":0},{"$f":"[1]Infrastructure!J1423","v":0},{"$f":"[1]Infrastructure!K1423","v":0},{"$f":"[1]Infrastructure!L1423","v":0},{"$f":"[1]Infrastructure!M1423","v":0},{"$f":"[1]Infrastructure!N1423","v":0},{"$f":"[1]Infrastructure!O1423","v":0},{"$f":"[1]Infrastructure!Q1423","v":0},{"$f":"[1]Infrastructure!R1423","v":0},{"$f":"[1]Infrastructure!T1423","v":0},{"$f":"[1]Infrastructure!W1423","v":0},{"$f":"[1]Infrastructure!W1423","v":0},0,{"$f":"[1]Infrastructure!Z1423","v":0},{"$f":"[1]Infrastructure!Z1423","v":0},0,{"$f":"[1]Infrastructure!AB1423","v":0},{"$f":"[1]Infrastructure!AB1423","v":0},0,{"$f":"[1]Infrastructure!AC1423","v":0},{"$f":"[1]Infrastructure!AD1423","v":0},{"$f":"[1]Infrastructure!AE1423","v":0},{"$f":"[1]Infrastructure!AF1423","v":0},{"$f":"[1]Infrastructure!AG1423","v":0},{"$f":"[1]Infrastructure!AH1423","v":0},0]
[0,null,null,null,null,null,{"$f":"[1]Infrastructure!G1424","v":0},{"$f":"[1]Infrastructure!H1424","v":0},{"$f":"[1]Infrastructure!I1424","v":0},{"$f":"[1]Infrastructure!J1424","v":0},{"$f":"[1]Infrastructure!K1424","v":0},{"$f":"[1]Infrastructure!L1424","v":0},{"$f":"[1]Infrastructure!M1424","v":0},{"$f":"[1]Infrastructure!N1424","v":0},{"$f":"[1]Infrastructure!O1424","v":0},{"$f":"[1]Infrastructure!Q1424","v":0},{"$f":"[1]Infrastructure!R1424","v":0},{"$f":"[1]Infrastructure!T1424","v":0},{"$f":"[1]Infrastructure!W1424","v":0},{"$f":"[1]Infrastructure!W1424","v":0},0,{"$f":"[1]Infrastructure!Z1424","v":0},{"$f":"[1]Infrastructure!Z1424","v":0},0,{"$f":"[1]Infrastructure!AB1424","v":0},{"$f":"[1]Infrastructure!AB1424","v":0},0,{"$f":"[1]Infrastructure!AC1424","v":0},{"$f":"[1]Infrastructure!AD1424","v":0},{"$f":"[1]Infrastructure!AE1424","v":0},{"$f":"[1]Infrastructure!AF1424","v":0},{"$f":"[1]Infrastructure!AG1424","v":0},{"$f":"[1]Infrastructure!AH1424","v":0},0]
[0,null,null,null,null,null,{"$f":"[1]Infrastructure!G1425","v":0},{"$f":"[1]Infrastructure!H1425","v":0},{"$f":"[1]Infrastructure!I1425","v":0},{"$f":"[1]Infrastructure!J1425","v":0},{"$f":"[1]Infrastructure!K1425","v":0},{"$f":"[1]Infrastructure!L1425","v":0},{"$f":"[1]Infrastructure!M1425","v":0},{"$f":"[1]Infrastructure!N1425","v":0},{"$f":"[1]Infrastructure!O1425","v":0},{"$f":"[1]Infrastructure!Q1425","v":0},{"$f":"[1]Infrastructure!R1425","v":0},{"$f":"[1]Infrastructure!T1425","v":0},{"$f":"[1]Infrastructure!W1425","v":0},{"$f":"[1]Infrastructure!W1425","v":0},0,{"$f":"[1]Infrastructure!Z1425","v":0},{"$f":"[1]Infrastructure!Z1425","v":0},0,{"$f":"[1]Infrastructure!AB1425","v":0},{"$f":"[1]Infrastructure!AB1425","v":0},0,{"$f":"[1]Infrastructure!AC1425","v":0},{"$f":"[1]Infrastructure!AD1425","v":0},{"$f":"[1]Infrastructure!AE1425","v":0},{"$f":"[1]Infrastructure!AF1425","v":0},{"$f":"[1]Infrastructure!AG1425","v":0},{"$f":"[1]Infrastructure!AH1425","v":0},0]
[0,null,null,null,null,null,{"$f":"[1]Infrastructure!G1426","v":0},{"$f":"[1]Infrastructure!H1426","v":0},{"$f":"[1]Infrastructure!I1426","v":0},{"$f":"[1]Infrastructure!J1426","v":0},{"$f":"[1]Infrastructure!K1426","v":0},{"$f":"[1]Infrastructure!L1426","v":0},{"$f":"[1]Infrastructure!M1426","v":0},{"$f":"[1]Infrastructure!N1426","v":0},{"$f":"[1]Infrastructure!O1426","v":0},{"$f":"[1]Infrastructure!Q1426","v":0},{"$f":"[1]Infrastructure!R1426","v":0},{"$f":"[1]Infrastructure!T1426","v":0},{"$f":"[1]Infrastructure!W1426","v":0},{"$f":"[1]Infrastructure!W1426","v":0},0,{"$f":"[1]Infrastructure!Z1426","v":0},{"$f":"[1]Infrastructure!Z1426","v":0},0,{"$f":"[1]Infrastructure!AB1426","v":0},{"$f":"[1]Infrastructure!AB1426","v":0},0,{"$f":"[1]Infrastructure!AC1426","v":0},{"$f":"[1]Infrastructure!AD1426","v":0},{"$f":"[1]Infrastructure!AE1426","v":0},{"$f":"[1]Infrastructure!AF1426","v":0},{"$f":"[1]Infrastructure!AG1426","v":0},{"$f":"[1]Infrastructure!AH1426","v":0},0]
[0,null,null,null,null,null,{"$f":"[1]Infrastructure!G1427","v":0},{"$f":"[1]Infrastructure!H1427","v":0},{"$f":"[1]Infrastructure!I1427","v":0},{"$f":"[1]Infrastructure!J1427","v":0},{"$f":"[1]Infrastructure!K1427","v":0},{"$f":"[1]Infrastructure!L1427","v":0},{"$f":"[1]Infrastructure!M1427","v":0},{"$f":"[1]Infrastructure!N1427","v":0},{"$f":"[1]Infrastructure!O1427","v":0},{"$f":"[1]Infrastructure!Q1427","v":0},{"$f":"[1]Infrastructure!R1427","v":0},{"$f":"[1]Infrastructure!T1427","v":0},{"$f":"[1]Infrastructure!W1427","v":0},{"$f":"[1]Infrastructure!W1427","v":0},0,{"$f":"[1]Infrastructure!Z1427","v":0},{"$f":"[1]Infrastructure!Z1427","v":0},0,{"$f":"[1]Infrastructure!AB1427","v":0},{"$f":"[1]Infrastructure!AB1427","v":0},0,{"$f":"[1]Infrastructure!AC1427","v":0},{"$f":"[1]Infrastructure!AD1427","v":0},{"$f":"[1]Infrastructure!AE1427","v":0},{"$f":"[1]Infrastructure!AF1427","v":0},{"$f":"[1]Infrastructure!AG1427","v":0},{"$f":"[1]Infrastructure!AH1427","v":0},0]
[0,null,null,null,null,null,{"$f":"[1]Infrastructure!G1428","v":0},{"$f":"[1]Infrastructure!H1428","v":0},{"$f":"[1]Infrastructure!I1428","v":0},{"$f":"[1]Infrastructure!J1428","v":0},{"$f":"[1]Infrastructure!K1428","v":0},{"$f":"[1]Infrastructure!L1428","v":0},{"$f":"[1]Infrastructure!M1428","v":0},{"$f":"[1]Infrastructure!N1428","v":0},{"$f":"[1]Infrastructure!O1428","v":0},{"$f":"[1]Infrastructure!Q1428","v":0},{"$f":"[1]Infrastructure!R1428","v":0},{"$f":"[1]Infrastructure!T1428","v":0},{"$f":"[1]Infrastructure!W1428","v":0},{"$f":"[1]Infrastructure!W1428","v":0},0,{"$f":"[1]Infrastructure!Z1428","v":0},{"$f":"[1]Infrastructure!Z1428","v":0},0,{"$f":"[1]Infrastructure!AB1428","v":0},{"$f":"[1]Infrastructure!AB1428","v":0},0,{"$f":"[1]Infrastructure!AC1428","v":0},{"$f":"[1]Infrastructure!AD1428","v":0},{"$f":"[1]Infrastructure!AE1428","v":0},{"$f":"[1]Infrastructure!AF1428","v":0},{"$f":"[1]Infrastructure!AG1428","v":0},{"$f":"[1]Infrastructure!AH1428","v":0},0]
[0,null,null,null,null,null,{"$f":"[1]Infrastructure!G1429","v":0},{"$f":"[1]Infrastructure!H1429","v":0},{"$f":"[1]Infrastructure!I1429","v":0},{"$f":"[1]Infrastructure!J1429","v":0},{"$f":"[1]Infrastructure!K1429","v":0},{"$f":"[1]Infrastructure!L1429","v":0},{"$f":"[1]Infrastructure!M1429","v":0},{"$f":"[1]Infrastructure!N1429","v":0},{"$f":"[1]Infrastructure!O1429","v":0},{"$f":"[1]Infrastructure!Q1429","v":0},{"$f":"[1]Infrastructure!R1429","v":0},{"$f":"[1]Infrastructure!T1429","v":0},{"$f":"[1]Infrastructure!W1429","v":0},{"$f":"[1]Infrastructure!W1429","v":0},0,{"$f":"[1]Infrastructure!Z1429","v":0},{"$f":"[1]Infrastructure!Z1429","v":0},0,{"$f":"[1]Infrastructure!AB1429","v":0},{"$f":"[1]Infrastructure!AB1429","v":0},0,{"$f":"[1]Infrastructure!AC1429","v":0},{"$f":"[1]Infrastructure!AD1429","v":0},{"$f":"[1]Infrastructure!AE1429","v":0},{"$f":"[1]Infrastructure!AF1429","v":0},{"$f":"[1]Infrastructure!AG1429","v":0},{"$f":"[1]Infrastructure!AH1429","v":0},0]
[0,null,null,null,null,null,{"$f":"[1]Infrastructure!G1430","v":0},{"$f":"[1]Infrastructure!H1430","v":0},{"$f":"[1]Infrastructure!I1430","v":0},{"$f":"[1]Infrastructure!J1430","v":0},{"$f":"[1]Infrastructure!K1430","v":0},{"$f":"[1]Infrastructure!L1430","v":0},{"$f":"[1]Infrastructure!M1430","v":0},{"$f":"[1]Infrastructure!N1430","v":0},{"$f":"[1]Infrastructure!O1430","v":0},{"$f":"[1]Infrastructure!Q1430","v":0},{"$f":"[1]Infrastructure!R1430","v":0},{"$f":"[1]Infrastructure!T1430","v":0},{"$f":"[1]Infrastructure!W1430","v":0},{"$f":"[1]Infrastructure!W1430","v":0},0,{"$f":"[1]Infrastructure!Z1430","v":0},{"$f":"[1]Infrastructure!Z1430","v":0},0,{"$f":"[1]Infrastructure!AB1430","v":0},{"$f":"[1]Infrastructure!AB1430","v":0},0,{"$f":"[1]Infrastructure!AC1430","v":0},{"$f":"[1]Infrastructure!AD1430","v":0},{"$f":"[1]Infrastructure!AE1430","v":0},{"$f":"[1]Infrastructure!AF1430","v":0},{"$f":"[1]Infrastructure!AG1430","v":0},{"$f":"[1]Infrastructure!AH1430","v":0},0]
[0,null,null,null,null,null,{"$f":"[1]Infrastructure!G1431","v":0},{"$f":"[1]Infrastructure!H1431","v":0},{"$f":"[1]Infrastructure!I1431","v":0},{"$f":"[1]Infrastructure!J1431","v":0},{"$f":"[1]Infrastructure!K1431","v":0},{"$f":"[1]Infrastructure!L1431","v":0},{"$f":"[1]Infrastructure!M1431","v":0},{"$f":"[1]Infrastructure!N1431","v":0},{"$f":"[1]Infrastructure!O1431","v":0},{"$f":"[1]Infrastructure!Q1431","v":0},{"$f":"[1]Infrastructure!R1431","v":0},{"$f":"[1]Infrastructure!T1431","v":0},{"$f":"[1]Infrastructure!W1431","v":0},{"$f":"[1]Infrastructure!W1431","v":0},0,{"$f":"[1]Infrastructure!Z1431","v":0},{"$f":"[1]Infrastructure!Z1431","v":0},0,{"$f":"[1]Infrastructure!AB1431","v":0},{"$f":"[1]Infrastructure!AB1431","v":0},0,{"$f":"[1]Infrastructure!AC1431","v":0},{"$f":"[1]Infrastructure!AD1431","v":0},{"$f":"[1]Infrastructure!AE1431","v":0},{"$f":"[1]Infrastructure!AF1431","v":0},{"$f":"[1]Infrastructure!AG1431","v":0},{"$f":"[1]Infrastructure!AH1431","v":0},0]
[0,null,null,null,null,null,{"$f":"[1]Infrastructure!G1432","v":0},{"$f":"[1]Infrastructure!H1432","v":0},{"$f":"[1]Infrastructure!I1432","v":0},{"$f":"[1]Infrastructure!J1432","v":0},{"$f":"[1]Infrastructure!K1432","v":0},{"$f":"[1]Infrastructure!L1432","v":0},{"$f":"[1]Infrastructure!M1432","v":0},{"$f":"[1]Infrastructure!N1432","v":0},{"$f":"[1]Infrastructure!O1432","v":0},{"$f":"[1]Infrastructure!Q1432","v":0},{"$f":"[1]Infrastructure!R1432","v":0},{"$f":"[1]Infrastructure!T1432","v":0},{"$f":"[1]Infrastructure!W1432","v":0},{"$f":"[1]Infrastructure!W1432","v":0},0,{"$f":"[1]Infrastructure!Z1432","v":0},{"$f":"[1]Infrastructure!Z1432","v":0},0,{"$f":"[1]Infrastructure!AB1432","v":0},{"$f":"[1]Infrastructure!AB1432","v":0},0,{"$f":"[1]Infrastructure!AC1432","v":0},{"$f":"[1]Infrastructure!AD1432","v":0},{"$f":"[1]Infrastructure!AE1432","v":0},{"$f":"[1]Infrastructure!AF1432","v":0},{"$f":"[1]Infrastructure!AG1432","v":0},{"$f":"[1]Infrastructure!AH1432","v":0},0]
[0,null,null,null,null,null,{"$f":"[1]Infrastructure!G1433","v":0},{"$f":"[1]Infrastructure!H1433","v":0},{"$f":"[1]Infrastructure!I1433","v":0},{"$f":"[1]Infrastructure!J1433","v":0},{"$f":"[1]Infrastructure!K1433","v":0},{"$f":"[1]Infrastructure!L1433","v":0},{"$f":"[1]Infrastructure!M1433","v":0},{"$f":"[1]Infrastructure!N1433","v":0},{"$f":"[1]Infrastructure!O1433","v":0},{"$f":"[1]Infrastructure!Q1433","v":0},{"$f":"[1]Infrastructure!R1433","v":0},{"$f":"[1]Infrastructure!T1433","v":0},{"$f":"[1]Infrastructure!W1433","v":0},{"$f":"[1]Infrastructure!W1433","v":0},0,{"$f":"[1]Infrastructure!Z1433","v":0},{"$f":"[1]Infrastructure!Z1433","v":0},0,{"$f":"[1]Infrastructure!AB1433","v":0},{"$f":"[1]Infrastructure!AB1433","v":0},0,{"$f":"[1]Infrastructure!AC1433","v":0},{"$f":"[1]Infrastructure!AD1433","v":0},{"$f":"[1]Infrastructure!AE1433","v":0},{"$f":"[1]Infrastructure!AF1433","v":0},{"$f":"[1]Infrastructure!AG1433","v":0},{"$f":"[1]Infrastructure!AH1433","v":0},0]
[0,null,null,null,null,null,{"$f":"[1]Infrastructure!G1434","v":0},{"$f":"[1]Infrastructure!H1434","v":0},{"$f":"[1]Infrastructure!I1434","v":0},{"$f":"[1]Infrastructure!J1434","v":0},{"$f":"[1]Infrastructure!K1434","v":0},{"$f":"[1]Infrastructure!L1434","v":0},{"$f":"[1]Infrastructure!M1434","v":0},{"$f":"[1]Infrastructure!N1434","v":0},{"$f":"[1]Infrastructure!O1434","v":0},{"$f":"[1]Infrastructure!Q1434","v":0},{"$f":"[1]Infrastructure!R1434","v":0},{"$f":"[1]Infrastructure!T1434","v":0},{"$f":"[1]Infrastructure!W1434","v":0},{"$f":"[1]Infrastructure!W1434","v":0},0,{"$f":"[1]Infrastructure!Z1434","v":0},{"$f":"[1]Infrastructure!Z1434","v":0},0,{"$f":"[1]Infrastructure!AB1434","v":0},{"$f":"[1]Infrastructure!AB1434","v":0},0,{"$f":"[1]Infrastructure!AC1434","v":0},{"$f":"[1]Infrastructure!AD1434","v":0},{"$f":"[1]Infrastructure!AE1434","v":0},{"$f":"[1]Infrastructure!AF1434","v":0},{"$f":"[1]Infrastructure!AG1434","v":0},{"$f":"[1]Infrastructure!AH1434","v":0},0]
[0,null,null,null,null,null,{"$f":"[1]Infrastructure!G1435","v":0},{"$f":"[1]Infrastructure!H1435","v":0},{"$f":"[1]Infrastructure!I1435","v":0},{"$f":"[1]Infrastructure!J1435","v":0},{"$f":"[1]Infrastructure!K1435","v":0},{"$f":"[1]Infrastructure!L1435","v":0},{"$f":"[1]Infrastructure!M1435","v":0},{"$f":"[1]Infrastructure!N1435","v":0},{"$f":"[1]Infrastructure!O1435","v":0},{"$f":"[1]Infrastructure!Q1435","v":0},{"$f":"[1]Infrastructure!R1435","v":0},{"$f":"[1]Infrastructure!T1435","v":0},{"$f":"[1]Infrastructure!W1435","v":0},{"$f":"[1]Infrastructure!W1435","v":0},0,{"$f":"[1]Infrastructure!Z1435","v":0},{"$f":"[1]Infrastructure!Z1435","v":0},0,{"$f":"[1]Infrastructure!AB1435","v":0},{"$f":"[1]Infrastructure!AB1435","v":0},0,{"$f":"[1]Infrastructure!AC1435","v":0},{"$f":"[1]Infrastructure!AD1435","v":0},{"$f":"[1]Infrastructure!AE1435","v":0},{"$f":"[1]Infrastructure!AF1435","v":0},{"$f":"[1]Infrastructure!AG1435","v":0},{"$f":"[1]Infrastructure!AH1435","v":0},0]
[0,null,null,null,null,null,{"$f":"[1]Infrastructure!G1436","v":0},{"$f":"[1]Infrastructure!H1436","v":0},{"$f":"[1]Infrastructure!I1436","v":0},{"$f":"[1]Infrastructure!J1436","v":0},{"$f":"[1]Infrastructure!K1436","v":0},{"$f":"[1]Infrastructure!L1436","v":0},{"$f":"[1]Infrastructure!M1436","v":0},{"$f":"[1]Infrastructure!N1436","v":0},{"$f":"[1]Infrastructure!O1436","v":0},{"$f":"[1]Infrastructure!Q1436","v":0},{"$f":"[1]Infrastructure!R1436","v":0},{"$f":"[1]Infrastructure!T1436","v":0},{"$f":"[1]Infrastructure!W1436","v":0},{"$f":"[1]Infrastructure!W1436","v":0},0,{"$f":"[1]Infrastructure!Z1436","v":0},{"$f":"[1]Infrastructure!Z1436","v":0},0,{"$f":"[1]Infrastructure!AB1436","v":0},{"$f":"[1]Infrastructure!AB1436","v":0},0,{"$f":"[1]Infrastructure!AC1436","v":0},{"$f":"[1]Infrastructure!AD1436","v":0},{"$f":"[1]Infrastructure!AE1436","v":0},{"$f":"[1]Infrastructure!AF1436","v":0},{"$f":"[1]Infrastructure!AG1436","v":0},{"$f":"[1]Infrastructure!AH1436","v":0},0]
[0,null,null,null,null,null,{"$f":"[1]Infrastructure!G1437","v":0},{"$f":"[1]Infrastructure!H1437","v":0},{"$f":"[1]Infrastructure!I1437","v":0},{"$f":"[1]Infrastructure!J1437","v":0},{"$f":"[1]Infrastructure!K1437","v":0},{"$f":"[1]Infrastructure!L1437","v":0},{"$f":"[1]Infrastructure!M1437","v":0},{"$f":"[1]Infrastructure!N1437","v":0},{"$f":"[1]Infrastructure!O1437","v":0},{"$f":"[1]Infrastructure!Q1437","v":0},{"$f":"[1]Infrastructure!R1437","v":0},{"$f":"[1]Infrastructure!T1437","v":0},{"$f":"[1]Infrastructure!W1437","v":0},{"$f":"[1]Infrastructure!W1437","v":0},0,{"$f":"[1]Infrastructure!Z1437","v":0},{"$f":"[1]Infrastructure!Z1437","v":0},0,{"$f":"[1]Infrastructure!AB1437","v":0},{"$f":"[1]Infrastructure!AB1437","v":0},0,{"$f":"[1]Infrastructure!AC1437","v":0},{"$f":"[1]Infrastructure!AD1437","v":0},{"$f":"[1]Infrastructure!AE1437","v":0},{"$f":"[1]Infrastructure!AF1437","v":0},{"$f":"[1]Infrastructure!AG1437","v":0},{"$f":"[1]Infrastructure!AH1437","v":0},0]
[0,null,null,null,null,null,{"$f":"[1]Infrastructure!G1438","v":0},{"$f":"[1]Infrastructure!H1438","v":0},{"$f":"[1]Infrastructure!I1438","v":0},{"$f":"[1]Infrastructure!J1438","v":0},{"$f":"[1]Infrastructure!K1438","v":0},{"$f":"[1]Infrastructure!L1438","v":0},{"$f":"[1]Infrastructure!M1438","v":0},{"$f":"[1]Infrastructure!N1438","v":0},{"$f":"[1]Infrastructure!O1438","v":0},{"$f":"[1]Infrastructure!Q1438","v":0},{"$f":"[1]Infrastructure!R1438","v":0},{"$f":"[1]Infrastructure!T1438","v":0},{"$f":"[1]Infrastructure!W1438","v":0},{"$f":"[1]Infrastructure!W1438","v":0},0,{"$f":"[1]Infrastructure!Z1438","v":0},{"$f":"[1]Infrastructure!Z1438","v":0},0,{"$f":"[1]Infrastructure!AB1438","v":0},{"$f":"[1]Infrastructure!AB1438","v":0},0,{"$f":"[1]Infrastructure!AC1438","v":0},{"$f":"[1]Infrastructure!AD1438","v":0},{"$f":"[1]Infrastructure!AE1438","v":0},{"$f":"[1]Infrastructure!AF1438","v":0},{"$f":"[1]Infrastructure!AG1438","v":0},{"$f":"[1]Infrastructure!AH1438","v":0},0]
[0,null,null,null,null,null,{"$f":"[1]Infrastructure!G1439","v":0},{"$f":"[1]Infrastructure!H1439","v":0},{"$f":"[1]Infrastructure!I1439","v":0},{"$f":"[1]Infrastructure!J1439","v":0},{"$f":"[1]Infrastructure!K1439","v":0},{"$f":"[1]Infrastructure!L1439","v":0},{"$f":"[1]Infrastructure!M1439","v":0},{"$f":"[1]Infrastructure!N1439","v":0},{"$f":"[1]Infrastructure!O1439","v":0},{"$f":"[1]Infrastructure!Q1439","v":0},{"$f":"[1]Infrastructure!R1439","v":0},{"$f":"[1]Infrastructure!T1439","v":0},{"$f":"[1]Infrastructure!W1439","v":0},{"$f":"[1]Infrastructure!W1439","v":0},0,{"$f":"[1]Infrastructure!Z1439","v":0},{"$f":"[1]Infrastructure!Z1439","v":0},0,{"$f":"[1]Infrastructure!AB1439","v":0},{"$f":"[1]Infrastructure!AB1439","v":0},0,{"$f":"[1]Infrastructure!AC1439","v":0},{"$f":"[1]Infrastructure!AD1439","v":0},{"$f":"[1]Infrastructure!AE1439","v":0},{"$f":"[1]Infrastructure!AF1439","v":0},{"$f":"[1]Infrastructure!AG1439","v":0},{"$f":"[1]Infrastructure!AH1439","v":0},0]
[0,null,null,null,null,null,{"$f":"[1]Infrastructure!G1440","v":0},{"$f":"[1]Infrastructure!H1440","v":0},{"$f":"[1]Infrastructure!I1440","v":0},{"$f":"[1]Infrastructure!J1440","v":0},{"$f":"[1]Infrastructure!K1440","v":0},{"$f":"[1]Infrastructure!L1440","v":0},{"$f":"[1]Infrastructure!M1440","v":0},{"$f":"[1]Infrastructure!N1440","v":0},{"$f":"[1]Infrastructure!O1440","v":0},{"$f":"[1]Infrastructure!Q1440","v":0},{"$f":"[1]Infrastructure!R1440","v":0},{"$f":"[1]Infrastructure!T1440","v":0},{"$f":"[1]Infrastructure!W1440","v":0},{"$f":"[1]Infrastructure!W1440","v":0},0,{"$f":"[1]Infrastructure!Z1440","v":0},{"$f":"[1]Infrastructure!Z1440","v":0},0,{"$f":"[1]Infrastructure!AB1440","v":0},{"$f":"[1]Infrastructure!AB1440","v":0},0,{"$f":"[1]Infrastructure!AC1440","v":0},{"$f":"[1]Infrastructure!AD1440","v":0},{"$f":"[1]Infrastructure!AE1440","v":0},{"$f":"[1]Infrastructure!AF1440","v":0},{"$f":"[1]Infrastructure!AG1440","v":0},{"$f":"[1]Infrastructure!AH1440","v":0},0]
[0,null,null,null,null,null,{"$f":"[1]Infrastructure!G1441","v":0},{"$f":"[1]Infrastructure!H1441","v":0},{"$f":"[1]Infrastructure!I1441","v":0},{"$f":"[1]Infrastructure!J1441","v":0},{"$f":"[1]Infrastructure!K1441","v":0},{"$f":"[1]Infrastructure!L1441","v":0},{"$f":"[1]Infrastructure!M1441","v":0},{"$f":"[1]Infrastructure!N1441","v":0},{"$f":"[1]Infrastructure!O1441","v":0},{"$f":"[1]Infrastructure!Q1441","v":0},{"$f":"[1]Infrastructure!R1441","v":0},{"$f":"[1]Infrastructure!T1441","v":0},{"$f":"[1]Infrastructure!W1441","v":0},{"$f":"[1]Infrastructure!W1441","v":0},0,{"$f":"[1]Infrastructure!Z1441","v":0},{"$f":"[1]Infrastructure!Z1441","v":0},0,{"$f":"[1]Infrastructure!AB1441","v":0},{"$f":"[1]Infrastructure!AB1441","v":0},0,{"$f":"[1]Infrastructure!AC1441","v":0},{"$f":"[1]Infrastructure!AD1441","v":0},{"$f":"[1]Infrastructure!AE1441","v":0},{"$f":"[1]Infrastructure!AF1441","v":0},{"$f":"[1]Infrastructure!AG1441","v":0},{"$f":"[1]Infrastructure!AH1441","v":0},0]
[0,null,null,null,null,null,{"$f":"[1]Infrastructure!G1442","v":0},{"$f":"[1]Infrastructure!H1442","v":0},{"$f":"[1]Infrastructure!I1442","v":0},{"$f":"[1]Infrastructure!J1442","v":0},{"$f":"[1]Infrastructure!K1442","v":0},{"$f":"[1]Infrastructure!L1442","v":0},{"$f":"[1]Infrastructure!M1442","v":0},{"$f":"[1]Infrastructure!N1442","v":0},{"$f":"[1]Infrastructure!O1442","v":0},{"$f":"[1]Infrastructure!Q1442","v":0},{"$f":"[1]Infrastructure!R1442","v":0},{"$f":"[1]Infrastructure!T1442","v":0},{"$f":"[1]Infrastructure!W1442","v":0},{"$f":"[1]Infrastructure!W1442","v":0},0,{"$f":"[1]Infrastructure!Z1442","v":0},{"$f":"[1]Infrastructure!Z1442","v":0},0,{"$f":"[1]Infrastructure!AB1442","v":0},{"$f":"[1]Infrastructure!AB1442","v":0},0,{"$f":"[1]Infrastructure!AC1442","v":0},{"$f":"[1]Infrastructure!AD1442","v":0},{"$f":"[1]Infrastructure!AE1442","v":0},{"$f":"[1]Infrastructure!AF1442","v":0},{"$f":"[1]Infrastructure!AG1442","v":0},{"$f":"[1]Infrastructure!AH1442","v":0},0]
[0,null,null,null,null,null,{"$f":"[1]Infrastructure!G1443","v":0},{"$f":"[1]Infrastructure!H1443","v":0},{"$f":"[1]Infrastructure!I1443","v":0},{"$f":"[1]Infrastructure!J1443","v":0},{"$f":"[1]Infrastructure!K1443","v":0},{"$f":"[1]Infrastructure!L1443","v":0},{"$f":"[1]Infrastructure!M1443","v":0},{"$f":"[1]Infrastructure!N1443","v":0},{"$f":"[1]Infrastructure!O1443","v":0},{"$f":"[1]Infrastructure!Q1443","v":0},{"$f":"[1]Infrastructure!R1443","v":0},{"$f":"[1]Infrastructure!T1443","v":0},{"$f":"[1]Infrastructure!W1443","v":0},{"$f":"[1]Infrastructure!W1443","v":0},0,{"$f":"[1]Infrastructure!Z1443","v":0},{"$f":"[1]Infrastructure!Z1443","v":0},0,{"$f":"[1]Infrastructure!AB1443","v":0},{"$f":"[1]Infrastructure!AB1443","v":0},0,{"$f":"[1]Infrastructure!AC1443","v":0},{"$f":"[1]Infrastructure!AD1443","v":0},{"$f":"[1]Infrastructure!AE1443","v":0},{"$f":"[1]Infrastructure!AF1443","v":0},{"$f":"[1]Infrastructure!AG1443","v":0},{"$f":"[1]Infrastructure!AH1443","v":0},0]
[0,null,null,null,null,null,{"$f":"[1]Infrastructure!G1444","v":0},{"$f":"[1]Infrastructure!H1444","v":0},{"$f":"[1]Infrastructure!I1444","v":0},{"$f":"[1]Infrastructure!J1444","v":0},{"$f":"[1]Infrastructure!K1444","v":0},{"$f":"[1]Infrastructure!L1444","v":0},{"$f":"[1]Infrastructure!M1444","v":0},{"$f":"[1]Infrastructure!N1444","v":0},{"$f":"[1]Infrastructure!O1444","v":0},{"$f":"[1]Infrastructure!Q1444","v":0},{"$f":"[1]Infrastructure!R1444","v":0},{"$f":"[1]Infrastructure!T1444","v":0},{"$f":"[1]Infrastructure!W1444","v":0},{"$f":"[1]Infrastructure!W1444","v":0},0,{"$f":"[1]Infrastructure!Z1444","v":0},{"$f":"[1]Infrastructure!Z1444","v":0},0,{"$f":"[1]Infrastructure!AB1444","v":0},{"$f":"[1]Infrastructure!AB1444","v":0},0,{"$f":"[1]Infrastructure!AC1444","v":0},{"$f":"[1]Infrastructure!AD1444","v":0},{"$f":"[1]Infrastructure!AE1444","v":0},{"$f":"[1]Infrastructure!AF1444","v":0},{"$f":"[1]Infrastructure!AG1444","v":0},{"$f":"[1]Infrastructure!AH1444","v":0},0]
[0,null,null,null,null,null,{"$f":"[1]Infrastructure!G1445","v":0},{"$f":"[1]Infrastructure!H1445","v":0},{"$f":"[1]Infrastructure!I1445","v":0},{"$f":"[1]Infrastructure!J1445","v":0},{"$f":"[1]Infrastructure!K1445","v":0},{"$f":"[1]Infrastructure!L1445","v":0},{"$f":"[1]Infrastructure!M1445","v":0},{"$f":"[1]Infrastructure!N1445","v":0},{"$f":"[1]Infrastructure!O1445","v":0},{"$f":"[1]Infrastructure!Q1445","v":0},{"$f":"[1]Infrastructure!R1445","v":0},{"$f":"[1]Infrastructure!T1445","v":0},{"$f":"[1]Infrastructure!W1445","v":0},{"$f":"[1]Infrastructure!W1445","v":0},0,{"$f":"[1]Infrastructure!Z1445","v":0},{"$f":"[1]Infrastructure!Z1445","v":0},0,{"$f":"[1]Infrastructure!AB1445","v":0},{"$f":"[1]Infrastructure!AB1445","v":0},0,{"$f":"[1]Infrastructure!AC1445","v":0},{"$f":"[1]Infrastructure!AD1445","v":0},{"$f":"[1]Infrastructure!AE1445","v":0},{"$f":"[1]Infrastructure!AF1445","v":0},{"$f":"[1]Infrastructure!AG1445","v":0},{"$f":"[1]Infrastructure!AH1445","v":0},0]
[0,null,null,null,null,null,{"$f":"[1]Infrastructure!G1446","v":0},{"$f":"[1]Infrastructure!H1446","v":0},{"$f":"[1]Infrastructure!I1446","v":0},{"$f":"[1]Infrastructure!J1446","v":0},{"$f":"[1]Infrastructure!K1446","v":0},{"$f":"[1]Infrastructure!L1446","v":0},{"$f":"[1]Infrastructure!M1446","v":0},{"$f":"[1]Infrastructure!N1446","v":0},{"$f":"[1]Infrastructure!O1446","v":0},{"$f":"[1]Infrastructure!Q1446","v":0},{"$f":"[1]Infrastructure!R1446","v":0},{"$f":"[1]Infrastructure!T1446","v":0},{"$f":"[1]Infrastructure!W1446","v":0},{"$f":"[1]Infrastructure!W1446","v":0},0,{"$f":"[1]Infrastructure!Z1446","v":0},{"$f":"[1]Infrastructure!Z1446","v":0},0,{"$f":"[1]Infrastructure!AB1446","v":0},{"$f":"[1]Infrastructure!AB1446","v":0},0,{"$f":"[1]Infrastructure!AC1446","v":0},{"$f":"[1]Infrastructure!AD1446","v":0},{"$f":"[1]Infrastructure!AE1446","v":0},{"$f":"[1]Infrastructure!AF1446","v":0},{"$f":"[1]Infrastructure!AG1446","v":0},{"$f":"[1]Infrastructure!AH1446","v":0},0]
[0,null,null,null,null,null,{"$f":"[1]Infrastructure!G1447","v":0},{"$f":"[1]Infrastructure!H1447","v":0},{"$f":"[1]Infrastructure!I1447","v":0},{"$f":"[1]Infrastructure!J1447","v":0},{"$f":"[1]Infrastructure!K1447","v":0},{"$f":"[1]Infrastructure!L1447","v":0},{"$f":"[1]Infrastructure!M1447","v":0},{"$f":"[1]Infrastructure!N1447","v":0},{"$f":"[1]Infrastructure!O1447","v":0},{"$f":"[1]Infrastructure!Q1447","v":0},{"$f":"[1]Infrastructure!R1447","v":0},{"$f":"[1]Infrastructure!T1447","v":0},{"$f":"[1]Infrastructure!W1447","v":0},{"$f":"[1]Infrastructure!W1447","v":0},0,{"$f":"[1]Infrastructure!Z1447","v":0},{"$f":"[1]Infrastructure!Z1447","v":0},0,{"$f":"[1]Infrastructure!AB1447","v":0},{"$f":"[1]Infrastructure!AB1447","v":0},0,{"$f":"[1]Infrastructure!AC1447","v":0},{"$f":"[1]Infrastructure!AD1447","v":0},{"$f":"[1]Infrastructure!AE1447","v":0},{"$f":"[1]Infrastructure!AF1447","v":0},{"$f":"[1]Infrastructure!AG1447","v":0},{"$f":"[1]Infrastructure!AH1447","v":0},0]
[0,null,null,null,null,null,{"$f":"[1]Infrastructure!G1448","v":0},{"$f":"[1]Infrastructure!H1448","v":0},{"$f":"[1]Infrastructure!I1448","v":0},{"$f":"[1]Infrastructure!J1448","v":0},{"$f":"[1]Infrastructure!K1448","v":0},{"$f":"[1]Infrastructure!L1448","v":0},{"$f":"[1]Infrastructure!M1448","v":0},{"$f":"[1]Infrastructure!N1448","v":0},{"$f":"[1]Infrastructure!O1448","v":0},{"$f":"[1]Infrastructure!Q1448","v":0},{"$f":"[1]Infrastructure!R1448","v":0},{"$f":"[1]Infrastructure!T1448","v":0},{"$f":"[1]Infrastructure!W1448","v":0},{"$f":"[1]Infrastructure!W1448","v":0},0,{"$f":"[1]Infrastructure!Z1448","v":0},{"$f":"[1]Infrastructure!Z1448","v":0},0,{"$f":"[1]Infrastructure!AB1448","v":0},{"$f":"[1]Infrastructure!AB1448","v":0},0,{"$f":"[1]Infrastructure!AC1448","v":0},{"$f":"[1]Infrastructure!AD1448","v":0},{"$f":"[1]Infrastructure!AE1448","v":0},{"$f":"[1]Infrastructure!AF1448","v":0},{"$f":"[1]Infrastructure!AG1448","v":0},{"$f":"[1]Infrastructure!AH1448","v":0},0]
[0,null,null,null,null,null,{"$f":"[1]Infrastructure!G1449","v":0},{"$f":"[1]Infrastructure!H1449","v":0},{"$f":"[1]Infrastructure!I1449","v":0},{"$f":"[1]Infrastructure!J1449","v":0},{"$f":"[1]Infrastructure!K1449","v":0},{"$f":"[1]Infrastructure!L1449","v":0},{"$f":"[1]Infrastructure!M1449","v":0},{"$f":"[1]Infrastructure!N1449","v":0},{"$f":"[1]Infrastructure!O1449","v":0},{"$f":"[1]Infrastructure!Q1449","v":0},{"$f":"[1]Infrastructure!R1449","v":0},{"$f":"[1]Infrastructure!T1449","v":0},{"$f":"[1]Infrastructure!W1449","v":0},{"$f":"[1]Infrastructure!W1449","v":0},0,{"$f":"[1]Infrastructure!Z1449","v":0},{"$f":"[1]Infrastructure!Z1449","v":0},0,{"$f":"[1]Infrastructure!AB1449","v":0},{"$f":"[1]Infrastructure!AB1449","v":0},0,{"$f":"[1]Infrastructure!AC1449","v":0},{"$f":"[1]Infrastructure!AD1449","v":0},{"$f":"[1]Infrastructure!AE1449","v":0},{"$f":"[1]Infrastructure!AF1449","v":0},{"$f":"[1]Infrastructure!AG1449","v":0},{"$f":"[1]Infrastructure!AH1449","v":0},0]
[0,null,null,null,null,null,{"$f":"[1]Infrastructure!G1450","v":0},{"$f":"[1]Infrastructure!H1450","v":0},{"$f":"[1]Infrastructure!I1450","v":0},{"$f":"[1]Infrastructure!J1450","v":0},{"$f":"[1]Infrastructure!K1450","v":0},{"$f":"[1]Infrastructure!L1450","v":0},{"$f":"[1]Infrastructure!M1450","v":0},{"$f":"[1]Infrastructure!N1450","v":0},{"$f":"[1]Infrastructure!O1450","v":0},{"$f":"[1]Infrastructure!Q1450","v":0},{"$f":"[1]Infrastructure!R1450","v":0},{"$f":"[1]Infrastructure!T1450","v":0},{"$f":"[1]Infrastructure!W1450","v":0},{"$f":"[1]Infrastructure!W1450","v":0},0,{"$f":"[1]Infrastructure!Z1450","v":0},{"$f":"[1]Infrastructure!Z1450","v":0},0,{"$f":"[1]Infrastructure!AB1450","v":0},{"$f":"[1]Infrastructure!AB1450","v":0},0,{"$f":"[1]Infrastructure!AC1450","v":0},{"$f":"[1]Infrastructure!AD1450","v":0},{"$f":"[1]Infrastructure!AE1450","v":0},{"$f":"[1]Infrastructure!AF1450","v":0},{"$f":"[1]Infrastructure!AG1450","v":0},{"$f":"[1]Infrastructure!AH1450","v":0},0]
[0,null,null,null,null,null,{"$f":"[1]Infrastructure!G1451","v":0},{"$f":"[1]Infrastructure!H1451","v":0},{"$f":"[1]Infrastructure!I1451","v":0},{"$f":"[1]Infrastructure!J1451","v":0},{"$f":"[1]Infrastructure!K1451","v":0},{"$f":"[1]Infrastructure!L1451","v":0},{"$f":"[1]Infrastructure!M1451","v":0},{"$f":"[1]Infrastructure!N1451","v":0},{"$f":"[1]Infrastructure!O1451","v":0},{"$f":"[1]Infrastructure!Q1451","v":0},{"$f":"[1]Infrastructure!R1451","v":0},{"$f":"[1]Infrastructure!T1451","v":0},{"$f":"[1]Infrastructure!W1451","v":0},{"$f":"[1]Infrastructure!W1451","v":0},0,{"$f":"[1]Infrastructure!Z1451","v":0},{"$f":"[1]Infrastructure!Z1451","v":0},0,{"$f":"[1]Infrastructure!AB1451","v":0},{"$f":"[1]Infrastructure!AB1451","v":0},0,{"$f":"[1]Infrastructure!AC1451","v":0},{"$f":"[1]Infrastructure!AD1451","v":0},{"$f":"[1]Infrastructure!AE1451","v":0},{"$f":"[1]Infrastructure!AF1451","v":0},{"$f":"[1]Infrastructure!AG1451","v":0},{"$f":"[1]Infrastructure!AH1451","v":0},0]
[0,null,null,null,null,null,{"$f":"[1]Infrastructure!G1452","v":0},{"$f":"[1]Infrastructure!H1452","v":0},{"$f":"[1]Infrastructure!I1452","v":0},{"$f":"[1]Infrastructure!J1452","v":0},{"$f":"[1]Infrastructure!K1452","v":0},{"$f":"[1]Infrastructure!L1452","v":0},{"$f":"[1]Infrastructure!M1452","v":0},{"$f":"[1]Infrastructure!N1452","v":0},{"$f":"[1]Infrastructure!O1452","v":0},{"$f":"[1]Infrastructure!Q1452","v":0},{"$f":"[1]Infrastructure!R1452","v":0},{"$f":"[1]Infrastructure!T1452","v":0},{"$f":"[1]Infrastructure!W1452","v":0},{"$f":"[1]Infrastructure!W1452","v":0},0,{"$f":"[1]Infrastructure!Z1452","v":0},{"$f":"[1]Infrastructure!Z1452","v":0},0,{"$f":"[1]Infrastructure!AB1452","v":0},{"$f":"[1]Infrastructure!AB1452","v":0},0,{"$f":"[1]Infrastructure!AC1452","v":0},{"$f":"[1]Infrastructure!AD1452","v":0},{"$f":"[1]Infrastructure!AE1452","v":0},{"$f":"[1]Infrastructure!AF1452","v":0},{"$f":"[1]Infrastructure!AG1452","v":0},{"$f":"[1]Infrastructure!AH1452","v":0},0]
[0,null,null,null,null,null,{"$f":"[1]Infrastructure!G1453","v":0},{"$f":"[1]Infrastructure!H1453","v":0},{"$f":"[1]Infrastructure!I1453","v":0},{"$f":"[1]Infrastructure!J1453","v":0},{"$f":"[1]Infrastructure!K1453","v":0},{"$f":"[1]Infrastructure!L1453","v":0},{"$f":"[1]Infrastructure!M1453","v":0},{"$f":"[1]Infrastructure!N1453","v":0},{"$f":"[1]Infrastructure!O1453","v":0},{"$f":"[1]Infrastructure!Q1453","v":0},{"$f":"[1]Infrastructure!R1453","v":0},{"$f":"[1]Infrastructure!T1453","v":0},{"$f":"[1]Infrastructure!W1453","v":0},{"$f":"[1]Infrastructure!W1453","v":0},0,{"$f":"[1]Infrastructure!Z1453","v":0},{"$f":"[1]Infrastructure!Z1453","v":0},0,{"$f":"[1]Infrastructure!AB1453","v":0},{"$f":"[1]Infrastructure!AB1453","v":0},0,{"$f":"[1]Infrastructure!AC1453","v":0},{"$f":"[1]Infrastructure!AD1453","v":0},{"$f":"[1]Infrastructure!AE1453","v":0},{"$f":"[1]Infrastructure!AF1453","v":0},{"$f":"[1]Infrastructure!AG1453","v":0},{"$f":"[1]Infrastructure!AH1453","v":0},0]
[0,null,null,null,null,null,{"$f":"[1]Infrastructure!G1454","v":0},{"$f":"[1]Infrastructure!H1454","v":0},{"$f":"[1]Infrastructure!I1454","v":0},{"$f":"[1]Infrastructure!J1454","v":0},{"$f":"[1]Infrastructure!K1454","v":0},{"$f":"[1]Infrastructure!L1454","v":0},{"$f":"[1]Infrastructure!M1454","v":0},{"$f":"[1]Infrastructure!N1454","v":0},{"$f":"[1]Infrastructure!O1454","v":0},{"$f":"[1]Infrastructure!Q1454","v":0},{"$f":"[1]Infrastructure!R1454","v":0},{"$f":"[1]Infrastructure!T1454","v":0},{"$f":"[1]Infrastructure!W1454","v":0},{"$f":"[1]Infrastructure!W1454","v":0},0,{"$f":"[1]Infrastructure!Z1454","v":0},{"$f":"[1]Infrastructure!Z1454","v":0},0,{"$f":"[1]Infrastructure!AB1454","v":0},{"$f":"[1]Infrastructure!AB1454","v":0},0,{"$f":"[1]Infrastructure!AC1454","v":0},{"$f":"[1]Infrastructure!AD1454","v":0},{"$f":"[1]Infrastructure!AE1454","v":0},{"$f":"[1]Infrastructure!AF1454","v":0},{"$f":"[1]Infrastructure!AG1454","v":0},{"$f":"[1]Infrastructure!AH1454","v":0},0]
[0,null,null,null,null,null,{"$f":"[1]Infrastructure!G1455","v":0},{"$f":"[1]Infrastructure!H1455","v":0},{"$f":"[1]Infrastructure!I1455","v":0},{"$f":"[1]Infrastructure!J1455","v":0},{"$f":"[1]Infrastructure!K1455","v":0},{"$f":"[1]Infrastructure!L1455","v":0},{"$f":"[1]Infrastructure!M1455","v":0},{"$f":"[1]Infrastructure!N1455","v":0},{"$f":"[1]Infrastructure!O1455","v":0},{"$f":"[1]Infrastructure!Q1455","v":0},{"$f":"[1]Infrastructure!R1455","v":0},{"$f":"[1]Infrastructure!T1455","v":0},{"$f":"[1]Infrastructure!W1455","v":0},{"$f":"[1]Infrastructure!W1455","v":0},0,{"$f":"[1]Infrastructure!Z1455","v":0},{"$f":"[1]Infrastructure!Z1455","v":0},0,{"$f":"[1]Infrastructure!AB1455","v":0},{"$f":"[1]Infrastructure!AB1455","v":0},0,{"$f":"[1]Infrastructure!AC1455","v":0},{"$f":"[1]Infrastructure!AD1455","v":0},{"$f":"[1]Infrastructure!AE1455","v":0},{"$f":"[1]Infrastructure!AF1455","v":0},{"$f":"[1]Infrastructure!AG1455","v":0},{"$f":"[1]Infrastructure!AH1455","v":0},0]
[0,null,null,null,null,null,{"$f":"[1]Infrastructure!G1456","v":0},{"$f":"[1]Infrastructure!H1456","v":0},{"$f":"[1]Infrastructure!I1456","v":0},{"$f":"[1]Infrastructure!J1456","v":0},{"$f":"[1]Infrastructure!K1456","v":0},{"$f":"[1]Infrastructure!L1456","v":0},{"$f":"[1]Infrastructure!M1456","v":0},{"$f":"[1]Infrastructure!N1456","v":0},{"$f":"[1]Infrastructure!O1456","v":0},{"$f":"[1]Infrastructure!Q1456","v":0},{"$f":"[1]Infrastructure!R1456","v":0},{"$f":"[1]Infrastructure!T1456","v":0},{"$f":"[1]Infrastructure!W1456","v":0},{"$f":"[1]Infrastructure!W1456","v":0},0,{"$f":"[1]Infrastructure!Z1456","v":0},{"$f":"[1]Infrastructure!Z1456","v":0},0,{"$f":"[1]Infrastructure!AB1456","v":0},{"$f":"[1]Infrastructure!AB1456","v":0},0,{"$f":"[1]Infrastructure!AC1456","v":0},{"$f":"[1]Infrastructure!AD1456","v":0},{"$f":"[1]Infrastructure!AE1456","v":0},{"$f":"[1]Infrastructure!AF1456","v":0},{"$f":"[1]Infrastructure!AG1456","v":0},{"$f":"[1]Infrastructure!AH1456","v":0},0]
[0,null,null,null,null,null,{"$f":"[1]Infrastructure!G1457","v":0},{"$f":"[1]Infrastructure!H1457","v":0},{"$f":"[1]Infrastructure!I1457","v":0},{"$f":"[1]Infrastructure!J1457","v":0},{"$f":"[1]Infrastructure!K1457","v":0},{"$f":"[1]Infrastructure!L1457","v":0},{"$f":"[1]Infrastructure!M1457","v":0},{"$f":"[1]Infrastructure!N1457","v":0},{"$f":"[1]Infrastructure!O1457","v":0},{"$f":"[1]Infrastructure!Q1457","v":0},{"$f":"[1]Infrastructure!R1457","v":0},{"$f":"[1]Infrastructure!T1457","v":0},{"$f":"[1]Infrastructure!W1457","v":0},{"$f":"[1]Infrastructure!W1457","v":0},0,{"$f":"[1]Infrastructure!Z1457","v":0},{"$f":"[1]Infrastructure!Z1457","v":0},0,{"$f":"[1]Infrastructure!AB1457","v":0},{"$f":"[1]Infrastructure!AB1457","v":0},0,{"$f":"[1]Infrastructure!AC1457","v":0},{"$f":"[1]Infrastructure!AD1457","v":0},{"$f":"[1]Infrastructure!AE1457","v":0},{"$f":"[1]Infrastructure!AF1457","v":0},{"$f":"[1]Infrastructure!AG1457","v":0},{"$f":"[1]Infrastructure!AH1457","v":0},0]
[0,null,null,null,null,null,{"$f":"[1]Infrastructure!G1458","v":0},{"$f":"[1]Infrastructure!H1458","v":0},{"$f":"[1]Infrastructure!I1458","v":0},{"$f":"[1]Infrastructure!J1458","v":0},{"$f":"[1]Infrastructure!K1458","v":0},{"$f":"[1]Infrastructure!L1458","v":0},{"$f":"[1]Infrastructure!M1458","v":0},{"$f":"[1]Infrastructure!N1458","v":0},{"$f":"[1]Infrastructure!O1458","v":0},{"$f":"[1]Infrastructure!Q1458","v":0},{"$f":"[1]Infrastructure!R1458","v":0},{"$f":"[1]Infrastructure!T1458","v":0},{"$f":"[1]Infrastructure!W1458","v":0},{"$f":"[1]Infrastructure!W1458","v":0},0,{"$f":"[1]Infrastructure!Z1458","v":0},{"$f":"[1]Infrastructure!Z1458","v":0},0,{"$f":"[1]Infrastructure!AB1458","v":0},{"$f":"[1]Infrastructure!AB1458","v":0},0,{"$f":"[1]Infrastructure!AC1458","v":0},{"$f":"[1]Infrastructure!AD1458","v":0},{"$f":"[1]Infrastructure!AE1458","v":0},{"$f":"[1]Infrastructure!AF1458","v":0},{"$f":"[1]Infrastructure!AG1458","v":0},{"$f":"[1]Infrastructure!AH1458","v":0},0]
[0,null,null,null,null,null,{"$f":"[1]Infrastructure!G1459","v":0},{"$f":"[1]Infrastructure!H1459","v":0},{"$f":"[1]Infrastructure!I1459","v":0},{"$f":"[1]Infrastructure!J1459","v":0},{"$f":"[1]Infrastructure!K1459","v":0},{"$f":"[1]Infrastructure!L1459","v":0},{"$f":"[1]Infrastructure!M1459","v":0},{"$f":"[1]Infrastructure!N1459","v":0},{"$f":"[1]Infrastructure!O1459","v":0},{"$f":"[1]Infrastructure!Q1459","v":0},{"$f":"[1]Infrastructure!R1459","v":0},{"$f":"[1]Infrastructure!T1459","v":0},{"$f":"[1]Infrastructure!W1459","v":0},{"$f":"[1]Infrastructure!W1459","v":0},0,{"$f":"[1]Infrastructure!Z1459","v":0},{"$f":"[1]Infrastructure!Z1459","v":0},0,{"$f":"[1]Infrastructure!AB1459","v":0},{"$f":"[1]Infrastructure!AB1459","v":0},0,{"$f":"[1]Infrastructure!AC1459","v":0},{"$f":"[1]Infrastructure!AD1459","v":0},{"$f":"[1]Infrastructure!AE1459","v":0},{"$f":"[1]Infrastructure!AF1459","v":0},{"$f":"[1]Infrastructure!AG1459","v":0},{"$f":"[1]Infrastructure!AH1459","v":0},0]
[0,null,null,null,null,null,{"$f":"[1]Infrastructure!G1460","v":0},{"$f":"[1]Infrastructure!H1460","v":0},{"$f":"[1]Infrastructure!I1460","v":0},{"$f":"[1]Infrastructure!J1460","v":0},{"$f":"[1]Infrastructure!K1460","v":0},{"$f":"[1]Infrastructure!L1460","v":0},{"$f":"[1]Infrastructure!M1460","v":0},{"$f":"[1]Infrastructure!N1460","v":0},{"$f":"[1]Infrastructure!O1460","v":0},{"$f":"[1]Infrastructure!Q1460","v":0},{"$f":"[1]Infrastructure!R1460","v":0},{"$f":"[1]Infrastructure!T1460","v":0},{"$f":"[1]Infrastructure!W1460","v":0},{"$f":"[1]Infrastructure!W1460","v":0},0,{"$f":"[1]Infrastructure!Z1460","v":0},{"$f":"[1]Infrastructure!Z1460","v":0},0,{"$f":"[1]Infrastructure!AB1460","v":0},{"$f":"[1]Infrastructure!AB1460","v":0},0,{"$f":"[1]Infrastructure!AC1460","v":0},{"$f":"[1]Infrastructure!AD1460","v":0},{"$f":"[1]Infrastructure!AE1460","v":0},{"$f":"[1]Infrastructure!AF1460","v":0},{"$f":"[1]Infrastructure!AG1460","v":0},{"$f":"[1]Infrastructure!AH1460","v":0},0]
[0,null,null,null,null,null,{"$f":"[1]Infrastructure!G1461","v":0},{"$f":"[1]Infrastructure!H1461","v":0},{"$f":"[1]Infrastructure!I1461","v":0},{"$f":"[1]Infrastructure!J1461","v":0},{"$f":"[1]Infrastructure!K1461","v":0},{"$f":"[1]Infrastructure!L1461","v":0},{"$f":"[1]Infrastructure!M1461","v":0},{"$f":"[1]Infrastructure!N1461","v":0},{"$f":"[1]Infrastructure!O1461","v":0},{"$f":"[1]Infrastructure!Q1461","v":0},{"$f":"[1]Infrastructure!R1461","v":0},{"$f":"[1]Infrastructure!T1461","v":0},{"$f":"[1]Infrastructure!W1461","v":0},{"$f":"[1]Infrastructure!W1461","v":0},0,{"$f":"[1]Infrastructure!Z1461","v":0},{"$f":"[1]Infrastructure!Z1461","v":0},0,{"$f":"[1]Infrastructure!AB1461","v":0},{"$f":"[1]Infrastructure!AB1461","v":0},0,{"$f":"[1]Infrastructure!AC1461","v":0},{"$f":"[1]Infrastructure!AD1461","v":0},{"$f":"[1]Infrastructure!AE1461","v":0},{"$f":"[1]Infrastructure!AF1461","v":0},{"$f":"[1]Infrastructure!AG1461","v":0},{"$f":"[1]Infrastructure!AH1461","v":0},0]
[0,null,null,null,null,null,{"$f":"[1]Infrastructure!G1462","v":0},{"$f":"[1]Infrastructure!H1462","v":0},{"$f":"[1]Infrastructure!I1462","v":0},{"$f":"[1]Infrastructure!J1462","v":0},{"$f":"[1]Infrastructure!K1462","v":0},{"$f":"[1]Infrastructure!L1462","v":0},{"$f":"[1]Infrastructure!M1462","v":0},{"$f":"[1]Infrastructure!N1462","v":0},{"$f":"[1]Infrastructure!O1462","v":0},{"$f":"[1]Infrastructure!Q1462","v":0},{"$f":"[1]Infrastructure!R1462","v":0},{"$f":"[1]Infrastructure!T1462","v":0},{"$f":"[1]Infrastructure!W1462","v":0},{"$f":"[1]Infrastructure!W1462","v":0},0,{"$f":"[1]Infrastructure!Z1462","v":0},{"$f":"[1]Infrastructure!Z1462","v":0},0,{"$f":"[1]Infrastructure!AB1462","v":0},{"$f":"[1]Infrastructure!AB1462","v":0},0,{"$f":"[1]Infrastructure!AC1462","v":0},{"$f":"[1]Infrastructure!AD1462","v":0},{"$f":"[1]Infrastructure!AE1462","v":0},{"$f":"[1]Infrastructure!AF1462","v":0},{"$f":"[1]Infrastructure!AG1462","v":0},{"$f":"[1]Infrastructure!AH1462","v":0},0]
[0,null,null,null,null,null,{"$f":"[1]Infrastructure!G1463","v":0},{"$f":"[1]Infrastructure!H1463","v":0},{"$f":"[1]Infrastructure!I1463","v":0},{"$f":"[1]Infrastructure!J1463","v":0},{"$f":"[1]Infrastructure!K1463","v":0},{"$f":"[1]Infrastructure!L1463","v":0},{"$f":"[1]Infrastructure!M1463","v":0},{"$f":"[1]Infrastructure!N1463","v":0},{"$f":"[1]Infrastructure!O1463","v":0},{"$f":"[1]Infrastructure!Q1463","v":0},{"$f":"[1]Infrastructure!R1463","v":0},{"$f":"[1]Infrastructure!T1463","v":0},{"$f":"[1]Infrastructure!W1463","v":0},{"$f":"[1]Infrastructure!W1463","v":0},0,{"$f":"[1]Infrastructure!Z1463","v":0},{"$f":"[1]Infrastructure!Z1463","v":0},0,{"$f":"[1]Infrastructure!AB1463","v":0},{"$f":"[1]Infrastructure!AB1463","v":0},0,{"$f":"[1]Infrastructure!AC1463","v":0},{"$f":"[1]Infrastructure!AD1463","v":0},{"$f":"[1]Infrastructure!AE1463","v":0},{"$f":"[1]Infrastructure!AF1463","v":0},{"$f":"[1]Infrastructure!AG1463","v":0},{"$f":"[1]Infrastructure!AH1463","v":0},0]
[0,null,null,null,null,null,{"$f":"[1]Infrastructure!G1464","v":0},{"$f":"[1]Infrastructure!H1464","v":0},{"$f":"[1]Infrastructure!I1464","v":0},{"$f":"[1]Infrastructure!J1464","v":0},{"$f":"[1]Infrastructure!K1464","v":0},{"$f":"[1]Infrastructure!L1464","v":0},{"$f":"[1]Infrastructure!M1464","v":0},{"$f":"[1]Infrastructure!N1464","v":0},{"$f":"[1]Infrastructure!O1464","v":0},{"$f":"[1]Infrastructure!Q1464","v":0},{"$f":"[1]Infrastructure!R1464","v":0},{"$f":"[1]Infrastructure!T1464","v":0},{"$f":"[1]Infrastructure!W1464","v":0},{"$f":"[1]Infrastructure!W1464","v":0},0,{"$f":"[1]Infrastructure!Z1464","v":0},{"$f":"[1]Infrastructure!Z1464","v":0},0,{"$f":"[1]Infrastructure!AB1464","v":0},{"$f":"[1]Infrastructure!AB1464","v":0},0,{"$f":"[1]Infrastructure!AC1464","v":0},{"$f":"[1]Infrastructure!AD1464","v":0},{"$f":"[1]Infrastructure!AE1464","v":0},{"$f":"[1]Infrastructure!AF1464","v":0},{"$f":"[1]Infrastructure!AG1464","v":0},{"$f":"[1]Infrastructure!AH1464","v":0},0]
[0,null,null,null,null,null,{"$f":"[1]Infrastructure!G1465","v":0},{"$f":"[1]Infrastructure!H1465","v":0},{"$f":"[1]Infrastructure!I1465","v":0},{"$f":"[1]Infrastructure!J1465","v":0},{"$f":"[1]Infrastructure!K1465","v":0},{"$f":"[1]Infrastructure!L1465","v":0},{"$f":"[1]Infrastructure!M1465","v":0},{"$f":"[1]Infrastructure!N1465","v":0},{"$f":"[1]Infrastructure!O1465","v":0},{"$f":"[1]Infrastructure!Q1465","v":0},{"$f":"[1]Infrastructure!R1465","v":0},{"$f":"[1]Infrastructure!T1465","v":0},{"$f":"[1]Infrastructure!W1465","v":0},{"$f":"[1]Infrastructure!W1465","v":0},0,{"$f":"[1]Infrastructure!Z1465","v":0},{"$f":"[1]Infrastructure!Z1465","v":0},0,{"$f":"[1]Infrastructure!AB1465","v":0},{"$f":"[1]Infrastructure!AB1465","v":0},0,{"$f":"[1]Infrastructure!AC1465","v":0},{"$f":"[1]Infrastructure!AD1465","v":0},{"$f":"[1]Infrastructure!AE1465","v":0},{"$f":"[1]Infrastructure!AF1465","v":0},{"$f":"[1]Infrastructure!AG1465","v":0},{"$f":"[1]Infrastructure!AH1465","v":0},0]
[0,null,null,null,null,null,{"$f":"[1]Infrastructure!G1466","v":0},{"$f":"[1]Infrastructure!H1466","v":0},{"$f":"[1]Infrastructure!I1466","v":0},{"$f":"[1]Infrastructure!J1466","v":0},{"$f":"[1]Infrastructure!K1466","v":0},{"$f":"[1]Infrastructure!L1466","v":0},{"$f":"[1]Infrastructure!M1466","v":0},{"$f":"[1]Infrastructure!N1466","v":0},{"$f":"[1]Infrastructure!O1466","v":0},{"$f":"[1]Infrastructure!Q1466","v":0},{"$f":"[1]Infrastructure!R1466","v":0},{"$f":"[1]Infrastructure!T1466","v":0},{"$f":"[1]Infrastructure!W1466","v":0},{"$f":"[1]Infrastructure!W1466","v":0},0,{"$f":"[1]Infrastructure!Z1466","v":0},{"$f":"[1]Infrastructure!Z1466","v":0},0,{"$f":"[1]Infrastructure!AB1466","v":0},{"$f":"[1]Infrastructure!AB1466","v":0},0,{"$f":"[1]Infrastructure!AC1466","v":0},{"$f":"[1]Infrastructure!AD1466","v":0},{"$f":"[1]Infrastructure!AE1466","v":0},{"$f":"[1]Infrastructure!AF1466","v":0},{"$f":"[1]Infrastructure!AG1466","v":0},{"$f":"[1]Infrastructure!AH1466","v":0},0]
[0,null,null,null,null,null,{"$f":"[1]Infrastructure!G1467","v":0},{"$f":"[1]Infrastructure!H1467","v":0},{"$f":"[1]Infrastructure!I1467","v":0},{"$f":"[1]Infrastructure!J1467","v":0},{"$f":"[1]Infrastructure!K1467","v":0},{"$f":"[1]Infrastructure!L1467","v":0},{"$f":"[1]Infrastructure!M1467","v":0},{"$f":"[1]Infrastructure!N1467","v":0},{"$f":"[1]Infrastructure!O1467","v":0},{"$f":"[1]Infrastructure!Q1467","v":0},{"$f":"[1]Infrastructure!R1467","v":0},{"$f":"[1]Infrastructure!T1467","v":0},{"$f":"[1]Infrastructure!W1467","v":0},{"$f":"[1]Infrastructure!W1467","v":0},0,{"$f":"[1]Infrastructure!Z1467","v":0},{"$f":"[1]Infrastructure!Z1467","v":0},0,{"$f":"[1]Infrastructure!AB1467","v":0},{"$f":"[1]Infrastructure!AB1467","v":0},0,{"$f":"[1]Infrastructure!AC1467","v":0},{"$f":"[1]Infrastructure!AD1467","v":0},{"$f":"[1]Infrastructure!AE1467","v":0},{"$f":"[1]Infrastructure!AF1467","v":0},{"$f":"[1]Infrastructure!AG1467","v":0},{"$f":"[1]Infrastructure!AH1467","v":0},0]
[0,null,null,null,null,null,{"$f":"[1]Infrastructure!G1468","v":0},{"$f":"[1]Infrastructure!H1468","v":0},{"$f":"[1]Infrastructure!I1468","v":0},{"$f":"[1]Infrastructure!J1468","v":0},{"$f":"[1]Infrastructure!K1468","v":0},{"$f":"[1]Infrastructure!L1468","v":0},{"$f":"[1]Infrastructure!M1468","v":0},{"$f":"[1]Infrastructure!N1468","v":0},{"$f":"[1]Infrastructure!O1468","v":0},{"$f":"[1]Infrastructure!Q1468","v":0},{"$f":"[1]Infrastructure!R1468","v":0},{"$f":"[1]Infrastructure!T1468","v":0},{"$f":"[1]Infrastructure!W1468","v":0},{"$f":"[1]Infrastructure!W1468","v":0},0,{"$f":"[1]Infrastructure!Z1468","v":0},{"$f":"[1]Infrastructure!Z1468","v":0},0,{"$f":"[1]Infrastructure!AB1468","v":0},{"$f":"[1]Infrastructure!AB1468","v":0},0,{"$f":"[1]Infrastructure!AC1468","v":0},{"$f":"[1]Infrastructure!AD1468","v":0},{"$f":"[1]Infrastructure!AE1468","v":0},{"$f":"[1]Infrastructure!AF1468","v":0},{"$f":"[1]Infrastructure!AG1468","v":0},{"$f":"[1]Infrastructure!AH1468","v":0},0]
[0,null,null,null,null,null,{"$f":"[1]Infrastructure!G1469","v":0},{"$f":"[1]Infrastructure!H1469","v":0},{"$f":"[1]Infrastructure!I1469","v":0},{"$f":"[1]Infrastructure!J1469","v":0},{"$f":"[1]Infrastructure!K1469","v":0},{"$f":"[1]Infrastructure!L1469","v":0},{"$f":"[1]Infrastructure!M1469","v":0},{"$f":"[1]Infrastructure!N1469","v":0},{"$f":"[1]Infrastructure!O1469","v":0},{"$f":"[1]Infrastructure!Q1469","v":0},{"$f":"[1]Infrastructure!R1469","v":0},{"$f":"[1]Infrastructure!T1469","v":0},{"$f":"[1]Infrastructure!W1469","v":0},{"$f":"[1]Infrastructure!W1469","v":0},0,{"$f":"[1]Infrastructure!Z1469","v":0},{"$f":"[1]Infrastructure!Z1469","v":0},0,{"$f":"[1]Infrastructure!AB1469","v":0},{"$f":"[1]Infrastructure!AB1469","v":0},0,{"$f":"[1]Infrastructure!AC1469","v":0},{"$f":"[1]Infrastructure!AD1469","v":0},{"$f":"[1]Infrastructure!AE1469","v":0},{"$f":"[1]Infrastructure!AF1469","v":0},{"$f":"[1]Infrastructure!AG1469","v":0},{"$f":"[1]Infrastructure!AH1469","v":0},0]
[0,null,null,null,null,null,{"$f":"[1]Infrastructure!G1470","v":0},{"$f":"[1]Infrastructure!H1470","v":0},{"$f":"[1]Infrastructure!I1470","v":0},{"$f":"[1]Infrastructure!J1470","v":0},{"$f":"[1]Infrastructure!K1470","v":0},{"$f":"[1]Infrastructure!L1470","v":0},{"$f":"[1]Infrastructure!M1470","v":0},{"$f":"[1]Infrastructure!N1470","v":0},{"$f":"[1]Infrastructure!O1470","v":0},{"$f":"[1]Infrastructure!Q1470","v":0},{"$f":"[1]Infrastructure!R1470","v":0},{"$f":"[1]Infrastructure!T1470","v":0},{"$f":"[1]Infrastructure!W1470","v":0},{"$f":"[1]Infrastructure!W1470","v":0},0,{"$f":"[1]Infrastructure!Z1470","v":0},{"$f":"[1]Infrastructure!Z1470","v":0},0,{"$f":"[1]Infrastructure!AB1470","v":0},{"$f":"[1]Infrastructure!AB1470","v":0},0,{"$f":"[1]Infrastructure!AC1470","v":0},{"$f":"[1]Infrastructure!AD1470","v":0},{"$f":"[1]Infrastructure!AE1470","v":0},{"$f":"[1]Infrastructure!AF1470","v":0},{"$f":"[1]Infrastructure!AG1470","v":0},{"$f":"[1]Infrastructure!AH1470","v":0},0]
[0,null,null,null,null,null,{"$f":"[1]Infrastructure!G1471","v":0},{"$f":"[1]Infrastructure!H1471","v":0},{"$f":"[1]Infrastructure!I1471","v":0},{"$f":"[1]Infrastructure!J1471","v":0},{"$f":"[1]Infrastructure!K1471","v":0},{"$f":"[1]Infrastructure!L1471","v":0},{"$f":"[1]Infrastructure!M1471","v":0},{"$f":"[1]Infrastructure!N1471","v":0},{"$f":"[1]Infrastructure!O1471","v":0},{"$f":"[1]Infrastructure!Q1471","v":0},{"$f":"[1]Infrastructure!R1471","v":0},{"$f":"[1]Infrastructure!T1471","v":0},{"$f":"[1]Infrastructure!W1471","v":0},{"$f":"[1]Infrastructure!W1471","v":0},0,{"$f":"[1]Infrastructure!Z1471","v":0},{"$f":"[1]Infrastructure!Z1471","v":0},0,{"$f":"[1]Infrastructure!AB1471","v":0},{"$f":"[1]Infrastructure!AB1471","v":0},0,{"$f":"[1]Infrastructure!AC1471","v":0},{"$f":"[1]Infrastructure!AD1471","v":0},{"$f":"[1]Infrastructure!AE1471","v":0},{"$f":"[1]Infrastructure!AF1471","v":0},{"$f":"[1]Infrastructure!AG1471","v":0},{"$f":"[1]Infrastructure!AH1471","v":0},0]
[0,null,null,null,null,null,{"$f":"[1]Infrastructure!G1472","v":0},{"$f":"[1]Infrastructure!H1472","v":0},{"$f":"[1]Infrastructure!I1472","v":0},{"$f":"[1]Infrastructure!J1472","v":0},{"$f":"[1]Infrastructure!K1472","v":0},{"$f":"[1]Infrastructure!L1472","v":0},{"$f":"[1]Infrastructure!M1472","v":0},{"$f":"[1]Infrastructure!N1472","v":0},{"$f":"[1]Infrastructure!O1472","v":0},{"$f":"[1]Infrastructure!Q1472","v":0},{"$f":"[1]Infrastructure!R1472","v":0},{"$f":"[1]Infrastructure!T1472","v":0},{"$f":"[1]Infrastructure!W1472","v":0},{"$f":"[1]Infrastructure!W1472","v":0},0,{"$f":"[1]Infrastructure!Z1472","v":0},{"$f":"[1]Infrastructure!Z1472","v":0},0,{"$f":"[1]Infrastructure!AB1472","v":0},{"$f":"[1]Infrastructure!AB1472","v":0},0,{"$f":"[1]Infrastructure!AC1472","v":0},{"$f":"[1]Infrastructure!AD1472","v":0},{"$f":"[1]Infrastructure!AE1472","v":0},{"$f":"[1]Infrastructure!AF1472","v":0},{"$f":"[1]Infrastructure!AG1472","v":0},{"$f":"[1]Infrastructure!AH1472","v":0},0]
[0,null,null,null,null,null,{"$f":"[1]Infrastructure!G1473","v":0},{"$f":"[1]Infrastructure!H1473","v":0},{"$f":"[1]Infrastructure!I1473","v":0},{"$f":"[1]Infrastructure!J1473","v":0},{"$f":"[1]Infrastructure!K1473","v":0},{"$f":"[1]Infrastructure!L1473","v":0},{"$f":"[1]Infrastructure!M1473","v":0},{"$f":"[1]Infrastructure!N1473","v":0},{"$f":"[1]Infrastructure!O1473","v":0},{"$f":"[1]Infrastructure!Q1473","v":0},{"$f":"[1]Infrastructure!R1473","v":0},{"$f":"[1]Infrastructure!T1473","v":0},{"$f":"[1]Infrastructure!W1473","v":0},{"$f":"[1]Infrastructure!W1473","v":0},0,{"$f":"[1]Infrastructure!Z1473","v":0},{"$f":"[1]Infrastructure!Z1473","v":0},0,{"$f":"[1]Infrastructure!AB1473","v":0},{"$f":"[1]Infrastructure!AB1473","v":0},0,{"$f":"[1]Infrastructure!AC1473","v":0},{"$f":"[1]Infrastructure!AD1473","v":0},{"$f":"[1]Infrastructure!AE1473","v":0},{"$f":"[1]Infrastructure!AF1473","v":0},{"$f":"[1]Infrastructure!AG1473","v":0},{"$f":"[1]Infrastructure!AH1473","v":0},0]
[0,null,null,null,null,null,{"$f":"[1]Infrastructure!G1474","v":0},{"$f":"[1]Infrastructure!H1474","v":0},{"$f":"[1]Infrastructure!I1474","v":0},{"$f":"[1]Infrastructure!J1474","v":0},{"$f":"[1]Infrastructure!K1474","v":0},{"$f":"[1]Infrastructure!L1474","v":0},{"$f":"[1]Infrastructure!M1474","v":0},{"$f":"[1]Infrastructure!N1474","v":0},{"$f":"[1]Infrastructure!O1474","v":0},{"$f":"[1]Infrastructure!Q1474","v":0},{"$f":"[1]Infrastructure!R1474","v":0},{"$f":"[1]Infrastructure!T1474","v":0},{"$f":"[1]Infrastructure!W1474","v":0},{"$f":"[1]Infrastructure!W1474","v":0},0,{"$f":"[1]Infrastructure!Z1474","v":0},{"$f":"[1]Infrastructure!Z1474","v":0},0,{"$f":"[1]Infrastructure!AB1474","v":0},{"$f":"[1]Infrastructure!AB1474","v":0},0,{"$f":"[1]Infrastructure!AC1474","v":0},{"$f":"[1]Infrastructure!AD1474","v":0},{"$f":"[1]Infrastructure!AE1474","v":0},{"$f":"[1]Infrastructure!AF1474","v":0},{"$f":"[1]Infrastructure!AG1474","v":0},{"$f":"[1]Infrastructure!AH1474","v":0},0]
[0,null,null,null,null,null,{"$f":"[1]Infrastructure!G1475","v":0},{"$f":"[1]Infrastructure!H1475","v":0},{"$f":"[1]Infrastructure!I1475","v":0},{"$f":"[1]Infrastructure!J1475","v":0},{"$f":"[1]Infrastructure!K1475","v":0},{"$f":"[1]Infrastructure!L1475","v":0},{"$f":"[1]Infrastructure!M1475","v":0},{"$f":"[1]Infrastructure!N1475","v":0},{"$f":"[1]Infrastructure!O1475","v":0},{"$f":"[1]Infrastructure!Q1475","v":0},{"$f":"[1]Infrastructure!R1475","v":0},{"$f":"[1]Infrastructure!T1475","v":0},{"$f":"[1]Infrastructure!W1475","v":0},{"$f":"[1]Infrastructure!W1475","v":0},0,{"$f":"[1]Infrastructure!Z1475","v":0},{"$f":"[1]Infrastructure!Z1475","v":0},0,{"$f":"[1]Infrastructure!AB1475","v":0},{"$f":"[1]Infrastructure!AB1475","v":0},0,{"$f":"[1]Infrastructure!AC1475","v":0},{"$f":"[1]Infrastructure!AD1475","v":0},{"$f":"[1]Infrastructure!AE1475","v":0},{"$f":"[1]Infrastructure!AF1475","v":0},{"$f":"[1]Infrastructure!AG1475","v":0},{"$f":"[1]Infrastructure!AH1475","v":0},0]
[0,null,null,null,null,null,{"$f":"[1]Infrastructure!G1476","v":0},{"$f":"[1]Infrastructure!H1476","v":0},{"$f":"[1]Infrastructure!I1476","v":0},{"$f":"[1]Infrastructure!J1476","v":0},{"$f":"[1]Infrastructure!K1476","v":0},{"$f":"[1]Infrastructure!L1476","v":0},{"$f":"[1]Infrastructure!M1476","v":0},{"$f":"[1]Infrastructure!N1476","v":0},{"$f":"[1]Infrastructure!O1476","v":0},{"$f":"[1]Infrastructure!Q1476","v":0},{"$f":"[1]Infrastructure!R1476","v":0},{"$f":"[1]Infrastructure!T1476","v":0},{"$f":"[1]Infrastructure!W1476","v":0},{"$f":"[1]Infrastructure!W1476","v":0},0,{"$f":"[1]Infrastructure!Z1476","v":0},{"$f":"[1]Infrastructure!Z1476","v":0},0,{"$f":"[1]Infrastructure!AB1476","v":0},{"$f":"[1]Infrastructure!AB1476","v":0},0,{"$f":"[1]Infrastructure!AC1476","v":0},{"$f":"[1]Infrastructure!AD1476","v":0},{"$f":"[1]Infrastructure!AE1476","v":0},{"$f":"[1]Infrastructure!AF1476","v":0},{"$f":"[1]Infrastructure!AG1476","v":0},{"$f":"[1]Infrastructure!AH1476","v":0},0]
[0,null,null,null,null,null,{"$f":"[1]Infrastructure!G1477","v":0},{"$f":"[1]Infrastructure!H1477","v":0},{"$f":"[1]Infrastructure!I1477","v":0},{"$f":"[1]Infrastructure!J1477","v":0},{"$f":"[1]Infrastructure!K1477","v":0},{"$f":"[1]Infrastructure!L1477","v":0},{"$f":"[1]Infrastructure!M1477","v":0},{"$f":"[1]Infrastructure!N1477","v":0},{"$f":"[1]Infrastructure!O1477","v":0},{"$f":"[1]Infrastructure!Q1477","v":0},{"$f":"[1]Infrastructure!R1477","v":0},{"$f":"[1]Infrastructure!T1477","v":0},{"$f":"[1]Infrastructure!W1477","v":0},{"$f":"[1]Infrastructure!W1477","v":0},0,{"$f":"[1]Infrastructure!Z1477","v":0},{"$f":"[1]Infrastructure!Z1477","v":0},0,{"$f":"[1]Infrastructure!AB1477","v":0},{"$f":"[1]Infrastructure!AB1477","v":0},0,{"$f":"[1]Infrastructure!AC1477","v":0},{"$f":"[1]Infrastructure!AD1477","v":0},{"$f":"[1]Infrastructure!AE1477","v":0},{"$f":"[1]Infrastructure!AF1477","v":0},{"$f":"[1]Infrastructure!AG1477","v":0},{"$f":"[1]Infrastructure!AH1477","v":0},0]
[0,null,null,null,null,null,{"$f":"[1]Infrastructure!G1478","v":0},{"$f":"[1]Infrastructure!H1478","v":0},{"$f":"[1]Infrastructure!I1478","v":0},{"$f":"[1]Infrastructure!J1478","v":0},{"$f":"[1]Infrastructure!K1478","v":0},{"$f":"[1]Infrastructure!L1478","v":0},{"$f":"[1]Infrastructure!M1478","v":0},{"$f":"[1]Infrastructure!N1478","v":0},{"$f":"[1]Infrastructure!O1478","v":0},{"$f":"[1]Infrastructure!Q1478","v":0},{"$f":"[1]Infrastructure!R1478","v":0},{"$f":"[1]Infrastructure!T1478","v":0},{"$f":"[1]Infrastructure!W1478","v":0},{"$f":"[1]Infrastructure!W1478","v":0},0,{"$f":"[1]Infrastructure!Z1478","v":0},{"$f":"[1]Infrastructure!Z1478","v":0},0,{"$f":"[1]Infrastructure!AB1478","v":0},{"$f":"[1]Infrastructure!AB1478","v":0},0,{"$f":"[1]Infrastructure!AC1478","v":0},{"$f":"[1]Infrastructure!AD1478","v":0},{"$f":"[1]Infrastructure!AE1478","v":0},{"$f":"[1]Infrastructure!AF1478","v":0},{"$f":"[1]Infrastructure!AG1478","v":0},{"$f":"[1]Infrastructure!AH1478","v":0},0]
[0,null,null,null,null,null,{"$f":"[1]Infrastructure!G1479","v":0},{"$f":"[1]Infrastructure!H1479","v":0},{"$f":"[1]Infrastructure!I1479","v":0},{"$f":"[1]Infrastructure!J1479","v":0},{"$f":"[1]Infrastructure!K1479","v":0},{"$f":"[1]Infrastructure!L1479","v":0},{"$f":"[1]Infrastructure!M1479","v":0},{"$f":"[1]Infrastructure!N1479","v":0},{"$f":"[1]Infrastructure!O1479","v":0},{"$f":"[1]Infrastructure!Q1479","v":0},{"$f":"[1]Infrastructure!R1479","v":0},{"$f":"[1]Infrastructure!T1479","v":0},{"$f":"[1]Infrastructure!W1479","v":0},{"$f":"[1]Infrastructure!W1479","v":0},0,{"$f":"[1]Infrastructure!Z1479","v":0},{"$f":"[1]Infrastructure!Z1479","v":0},0,{"$f":"[1]Infrastructure!AB1479","v":0},{"$f":"[1]Infrastructure!AB1479","v":0},0,{"$f":"[1]Infrastructure!AC1479","v":0},{"$f":"[1]Infrastructure!AD1479","v":0},{"$f":"[1]Infrastructure!AE1479","v":0},{"$f":"[1]Infrastructure!AF1479","v":0},{"$f":"[1]Infrastructure!AG1479","v":0},{"$f":"[1]Infrastructure!AH1479","v":0},0]
[0,null,null,null,null,null,{"$f":"[1]Infrastructure!G1480","v":0},{"$f":"[1]Infrastructure!H1480","v":0},{"$f":"[1]Infrastructure!I1480","v":0},{"$f":"[1]Infrastructure!J1480","v":0},{"$f":"[1]Infrastructure!K1480","v":0},{"$f":"[1]Infrastructure!L1480","v":0},{"$f":"[1]Infrastructure!M1480","v":0},{"$f":"[1]Infrastructure!N1480","v":0},{"$f":"[1]Infrastructure!O1480","v":0},{"$f":"[1]Infrastructure!Q1480","v":0},{"$f":"[1]Infrastructure!R1480","v":0},{"$f":"[1]Infrastructure!T1480","v":0},{"$f":"[1]Infrastructure!W1480","v":0},{"$f":"[1]Infrastructure!W1480","v":0},0,{"$f":"[1]Infrastructure!Z1480","v":0},{"$f":"[1]Infrastructure!Z1480","v":0},0,{"$f":"[1]Infrastructure!AB1480","v":0},{"$f":"[1]Infrastructure!AB1480","v":0},0,{"$f":"[1]Infrastructure!AC1480","v":0},{"$f":"[1]Infrastructure!AD1480","v":0},{"$f":"[1]Infrastructure!AE1480","v":0},{"$f":"[1]Infrastructure!AF1480","v":0},{"$f":"[1]Infrastructure!AG1480","v":0},{"$f":"[1]Infrastructure!AH1480","v":0},0]
[0,null,null,null,null,null,{"$f":"[1]Infrastructure!G1481","v":0},{"$f":"[1]Infrastructure!H1481","v":0},{"$f":"[1]Infrastructure!I1481","v":0},{"$f":"[1]Infrastructure!J1481","v":0},{"$f":"[1]Infrastructure!K1481","v":0},{"$f":"[1]Infrastructure!L1481","v":0},{"$f":"[1]Infrastructure!M1481","v":0},{"$f":"[1]Infrastructure!N1481","v":0},{"$f":"[1]Infrastructure!O1481","v":0},{"$f":"[1]Infrastructure!Q1481","v":0},{"$f":"[1]Infrastructure!R1481","v":0},{"$f":"[1]Infrastructure!T1481","v":0},{"$f":"[1]Infrastructure!W1481","v":0},{"$f":"[1]Infrastructure!W1481","v":0},0,{"$f":"[1]Infrastructure!Z1481","v":0},{"$f":"[1]Infrastructure!Z1481","v":0},0,{"$f":"[1]Infrastructure!AB1481","v":0},{"$f":"[1]Infrastructure!AB1481","v":0},0,{"$f":"[1]Infrastructure!AC1481","v":0},{"$f":"[1]Infrastructure!AD1481","v":0},{"$f":"[1]Infrastructure!AE1481","v":0},{"$f":"[1]Infrastructure!AF1481","v":0},{"$f":"[1]Infrastructure!AG1481","v":0},{"$f":"[1]Infrastructure!AH1481","v":0},0]
[0,null,null,null,null,null,{"$f":"[1]Infrastructure!G1482","v":0},{"$f":"[1]Infrastructure!H1482","v":0},{"$f":"[1]Infrastructure!I1482","v":0},{"$f":"[1]Infrastructure!J1482","v":0},{"$f":"[1]Infrastructure!K1482","v":0},{"$f":"[1]Infrastructure!L1482","v":0},{"$f":"[1]Infrastructure!M1482","v":0},{"$f":"[1]Infrastructure!N1482","v":0},{"$f":"[1]Infrastructure!O1482","v":0},{"$f":"[1]Infrastructure!Q1482","v":0},{"$f":"[1]Infrastructure!R1482","v":0},{"$f":"[1]Infrastructure!T1482","v":0},{"$f":"[1]Infrastructure!W1482","v":0},{"$f":"[1]Infrastructure!W1482","v":0},0,{"$f":"[1]Infrastructure!Z1482","v":0},{"$f":"[1]Infrastructure!Z1482","v":0},0,{"$f":"[1]Infrastructure!AB1482","v":0},{"$f":"[1]Infrastructure!AB1482","v":0},0,{"$f":"[1]Infrastructure!AC1482","v":0},{"$f":"[1]Infrastructure!AD1482","v":0},{"$f":"[1]Infrastructure!AE1482","v":0},{"$f":"[1]Infrastructure!AF1482","v":0},{"$f":"[1]Infrastructure!AG1482","v":0},{"$f":"[1]Infrastructure!AH1482","v":0},0]
[0,null,null,null,null,null,{"$f":"[1]Infrastructure!G1483","v":0},{"$f":"[1]Infrastructure!H1483","v":0},{"$f":"[1]Infrastructure!I1483","v":0},{"$f":"[1]Infrastructure!J1483","v":0},{"$f":"[1]Infrastructure!K1483","v":0},{"$f":"[1]Infrastructure!L1483","v":0},{"$f":"[1]Infrastructure!M1483","v":0},{"$f":"[1]Infrastructure!N1483","v":0},{"$f":"[1]Infrastructure!O1483","v":0},{"$f":"[1]Infrastructure!Q1483","v":0},{"$f":"[1]Infrastructure!R1483","v":0},{"$f":"[1]Infrastructure!T1483","v":0},{"$f":"[1]Infrastructure!W1483","v":0},{"$f":"[1]Infrastructure!W1483","v":0},0,{"$f":"[1]Infrastructure!Z1483","v":0},{"$f":"[1]Infrastructure!Z1483","v":0},0,{"$f":"[1]Infrastructure!AB1483","v":0},{"$f":"[1]Infrastructure!AB1483","v":0},0,{"$f":"[1]Infrastructure!AC1483","v":0},{"$f":"[1]Infrastructure!AD1483","v":0},{"$f":"[1]Infrastructure!AE1483","v":0},{"$f":"[1]Infrastructure!AF1483","v":0},{"$f":"[1]Infrastructure!AG1483","v":0},{"$f":"[1]Infrastructure!AH1483","v":0},0]
[{"$f":"IF(SUM(O1484:AH1484),1,0)","v":0},null,null,null,null,null,{"$f":"[1]Infrastructure!G1484","v":0},{"$f":"[1]Infrastructure!H1484","v":0},{"$f":"[1]Infrastructure!I1484","v":0},{"$f":"[1]Infrastructure!J1484","v":0},{"$f":"[1]Infrastructure!K1484","v":0},{"$f":"[1]Infrastructure!L1484","v":0},{"$f":"[1]Infrastructure!M1484","v":0},{"$f":"[1]Infrastructure!N1484","v":0},{"$f":"[1]Infrastructure!O1484","v":0},{"$f":"[1]Infrastructure!Q1484","v":0},{"$f":"[1]Infrastructure!R1484","v":0},{"$f":"[1]Infrastructure!T1484","v":0},{"$f":"[1]Infrastructure!W1484","v":0},{"$f":"[1]Infrastructure!W1484","v":0},0,{"$f":"[1]Infrastructure!Z1484","v":0},{"$f":"[1]Infrastructure!Z1484","v":0},0,{"$f":"[1]Infrastructure!AB1484","v":0},{"$f":"[1]Infrastructure!AB1484","v":0},0,{"$f":"[1]Infrastructure!AC1484","v":0},{"$f":"[1]Infrastructure!AD1484","v":0},{"$f":"[1]Infrastructure!AE1484","v":0},{"$f":"[1]Infrastructure!AF1484","v":0},{"$f":"[1]Infrastructure!AG1484","v":0},{"$f":"[1]Infrastructure!AH1484","v":0},0]
[0,null,null,null,null,null,{"$f":"[1]Infrastructure!G1485","v":0},{"$f":"[1]Infrastructure!H1485","v":0},{"$f":"[1]Infrastructure!I1485","v":0},{"$f":"[1]Infrastructure!J1485","v":0},{"$f":"[1]Infrastructure!K1485","v":0},{"$f":"[1]Infrastructure!L1485","v":0},{"$f":"[1]Infrastructure!M1485","v":0},{"$f":"[1]Infrastructure!N1485","v":0},{"$f":"[1]Infrastructure!O1485","v":0},{"$f":"[1]Infrastructure!Q1485","v":0},{"$f":"[1]Infrastructure!R1485","v":0},{"$f":"[1]Infrastructure!T1485","v":0},{"$f":"[1]Infrastructure!W1485","v":0},{"$f":"[1]Infrastructure!W1485","v":0},0,{"$f":"[1]Infrastructure!Z1485","v":0},{"$f":"[1]Infrastructure!Z1485","v":0},0,{"$f":"[1]Infrastructure!AB1485","v":0},{"$f":"[1]Infrastructure!AB1485","v":0},0,{"$f":"[1]Infrastructure!AC1485","v":0},{"$f":"[1]Infrastructure!AD1485","v":0},{"$f":"[1]Infrastructure!AE1485","v":0},{"$f":"[1]Infrastructure!AF1485","v":0},{"$f":"[1]Infrastructure!AG1485","v":0},{"$f":"[1]Infrastructure!AH1485","v":0},0]
[0,null,null,null,null,null,{"$f":"[1]Infrastructure!G1486","v":0},{"$f":"[1]Infrastructure!H1486","v":0},{"$f":"[1]Infrastructure!I1486","v":0},{"$f":"[1]Infrastructure!J1486","v":0},{"$f":"[1]Infrastructure!K1486","v":0},{"$f":"[1]Infrastructure!L1486","v":0},{"$f":"[1]Infrastructure!M1486","v":0},{"$f":"[1]Infrastructure!N1486","v":0},{"$f":"[1]Infrastructure!O1486","v":0},{"$f":"[1]Infrastructure!Q1486","v":0},{"$f":"[1]Infrastructure!R1486","v":0},{"$f":"[1]Infrastructure!T1486","v":0},{"$f":"[1]Infrastructure!W1486","v":0},{"$f":"[1]Infrastructure!W1486","v":0},0,{"$f":"[1]Infrastructure!Z1486","v":0},{"$f":"[1]Infrastructure!Z1486","v":0},0,{"$f":"[1]Infrastructure!AB1486","v":0},{"$f":"[1]Infrastructure!AB1486","v":0},0,{"$f":"[1]Infrastructure!AC1486","v":0},{"$f":"[1]Infrastructure!AD1486","v":0},{"$f":"[1]Infrastructure!AE1486","v":0},{"$f":"[1]Infrastructure!AF1486","v":0},{"$f":"[1]Infrastructure!AG1486","v":0},{"$f":"[1]Infrastructure!AH1486","v":0},0]
[0,null,null,null,null,null,{"$f":"[1]Infrastructure!G1487","v":0},{"$f":"[1]Infrastructure!H1487","v":0},{"$f":"[1]Infrastructure!I1487","v":0},{"$f":"[1]Infrastructure!J1487","v":0},{"$f":"[1]Infrastructure!K1487","v":0},{"$f":"[1]Infrastructure!L1487","v":0},{"$f":"[1]Infrastructure!M1487","v":0},{"$f":"[1]Infrastructure!N1487","v":0},{"$f":"[1]Infrastructure!O1487","v":0},{"$f":"[1]Infrastructure!Q1487","v":0},{"$f":"[1]Infrastructure!R1487","v":0},{"$f":"[1]Infrastructure!T1487","v":0},{"$f":"[1]Infrastructure!W1487","v":0},{"$f":"[1]Infrastructure!W1487","v":0},0,{"$f":"[1]Infrastructure!Z1487","v":0},{"$f":"[1]Infrastructure!Z1487","v":0},0,{"$f":"[1]Infrastructure!AB1487","v":0},{"$f":"[1]Infrastructure!AB1487","v":0},0,{"$f":"[1]Infrastructure!AC1487","v":0},{"$f":"[1]Infrastructure!AD1487","v":0},{"$f":"[1]Infrastructure!AE1487","v":0},{"$f":"[1]Infrastructure!AF1487","v":0},{"$f":"[1]Infrastructure!AG1487","v":0},{"$f":"[1]Infrastructure!AH1487","v":0},0]
[0,null,null,null,null,null,{"$f":"[1]Infrastructure!G1488","v":0},{"$f":"[1]Infrastructure!H1488","v":0},{"$f":"[1]Infrastructure!I1488","v":0},{"$f":"[1]Infrastructure!J1488","v":0},{"$f":"[1]Infrastructure!K1488","v":0},{"$f":"[1]Infrastructure!L1488","v":0},{"$f":"[1]Infrastructure!M1488","v":0},{"$f":"[1]Infrastructure!N1488","v":0},{"$f":"[1]Infrastructure!O1488","v":0},{"$f":"[1]Infrastructure!Q1488","v":0},{"$f":"[1]Infrastructure!R1488","v":0},{"$f":"[1]Infrastructure!T1488","v":0},{"$f":"[1]Infrastructure!W1488","v":0},{"$f":"[1]Infrastructure!W1488","v":0},0,{"$f":"[1]Infrastructure!Z1488","v":0},{"$f":"[1]Infrastructure!Z1488","v":0},0,{"$f":"[1]Infrastructure!AB1488","v":0},{"$f":"[1]Infrastructure!AB1488","v":0},0,{"$f":"[1]Infrastructure!AC1488","v":0},{"$f":"[1]Infrastructure!AD1488","v":0},{"$f":"[1]Infrastructure!AE1488","v":0},{"$f":"[1]Infrastructure!AF1488","v":0},{"$f":"[1]Infrastructure!AG1488","v":0},{"$f":"[1]Infrastructure!AH1488","v":0},0]
[0,null,null,null,null,null,{"$f":"[1]Infrastructure!G1489","v":0},{"$f":"[1]Infrastructure!H1489","v":0},{"$f":"[1]Infrastructure!I1489","v":0},{"$f":"[1]Infrastructure!J1489","v":0},{"$f":"[1]Infrastructure!K1489","v":0},{"$f":"[1]Infrastructure!L1489","v":0},{"$f":"[1]Infrastructure!M1489","v":0},{"$f":"[1]Infrastructure!N1489","v":0},{"$f":"[1]Infrastructure!O1489","v":0},{"$f":"[1]Infrastructure!Q1489","v":0},{"$f":"[1]Infrastructure!R1489","v":0},{"$f":"[1]Infrastructure!T1489","v":0},{"$f":"[1]Infrastructure!W1489","v":0},{"$f":"[1]Infrastructure!W1489","v":0},0,{"$f":"[1]Infrastructure!Z1489","v":0},{"$f":"[1]Infrastructure!Z1489","v":0},0,{"$f":"[1]Infrastructure!AB1489","v":0},{"$f":"[1]Infrastructure!AB1489","v":0},0,{"$f":"[1]Infrastructure!AC1489","v":0},{"$f":"[1]Infrastructure!AD1489","v":0},{"$f":"[1]Infrastructure!AE1489","v":0},{"$f":"[1]Infrastructure!AF1489","v":0},{"$f":"[1]Infrastructure!AG1489","v":0},{"$f":"[1]Infrastructure!AH1489","v":0},0]
[0,null,null,null,null,null,{"$f":"[1]Infrastructure!G1490","v":0},{"$f":"[1]Infrastructure!H1490","v":0},{"$f":"[1]Infrastructure!I1490","v":0},{"$f":"[1]Infrastructure!J1490","v":0},{"$f":"[1]Infrastructure!K1490","v":0},{"$f":"[1]Infrastructure!L1490","v":0},{"$f":"[1]Infrastructure!M1490","v":0},{"$f":"[1]Infrastructure!N1490","v":0},{"$f":"[1]Infrastructure!O1490","v":0},{"$f":"[1]Infrastructure!Q1490","v":0},{"$f":"[1]Infrastructure!R1490","v":0},{"$f":"[1]Infrastructure!T1490","v":0},{"$f":"[1]Infrastructure!W1490","v":0},{"$f":"[1]Infrastructure!W1490","v":0},0,{"$f":"[1]Infrastructure!Z1490","v":0},{"$f":"[1]Infrastructure!Z1490","v":0},0,{"$f":"[1]Infrastructure!AB1490","v":0},{"$f":"[1]Infrastructure!AB1490","v":0},0,{"$f":"[1]Infrastructure!AC1490","v":0},{"$f":"[1]Infrastructure!AD1490","v":0},{"$f":"[1]Infrastructure!AE1490","v":0},{"$f":"[1]Infrastructure!AF1490","v":0},{"$f":"[1]Infrastructure!AG1490","v":0},{"$f":"[1]Infrastructure!AH1490","v":0},0]
[0,null,null,null,null,null,{"$f":"[1]Infrastructure!G1491","v":0},{"$f":"[1]Infrastructure!H1491","v":0},{"$f":"[1]Infrastructure!I1491","v":0},{"$f":"[1]Infrastructure!J1491","v":0},{"$f":"[1]Infrastructure!K1491","v":0},{"$f":"[1]Infrastructure!L1491","v":0},{"$f":"[1]Infrastructure!M1491","v":0},{"$f":"[1]Infrastructure!N1491","v":0},{"$f":"[1]Infrastructure!O1491","v":0},{"$f":"[1]Infrastructure!Q1491","v":0},{"$f":"[1]Infrastructure!R1491","v":0},{"$f":"[1]Infrastructure!T1491","v":0},{"$f":"[1]Infrastructure!W1491","v":0},{"$f":"[1]Infrastructure!W1491","v":0},0,{"$f":"[1]Infrastructure!Z1491","v":0},{"$f":"[1]Infrastructure!Z1491","v":0},0,{"$f":"[1]Infrastructure!AB1491","v":0},{"$f":"[1]Infrastructure!AB1491","v":0},0,{"$f":"[1]Infrastructure!AC1491","v":0},{"$f":"[1]Infrastructure!AD1491","v":0},{"$f":"[1]Infrastructure!AE1491","v":0},{"$f":"[1]Infrastructure!AF1491","v":0},{"$f":"[1]Infrastructure!AG1491","v":0},{"$f":"[1]Infrastructure!AH1491","v":0},0]
[0,null,null,null,null,null,{"$f":"[1]Infrastructure!G1492","v":0},{"$f":"[1]Infrastructure!H1492","v":0},{"$f":"[1]Infrastructure!I1492","v":0},{"$f":"[1]Infrastructure!J1492","v":0},{"$f":"[1]Infrastructure!K1492","v":0},{"$f":"[1]Infrastructure!L1492","v":0},{"$f":"[1]Infrastructure!M1492","v":0},{"$f":"[1]Infrastructure!N1492","v":0},{"$f":"[1]Infrastructure!O1492","v":0},{"$f":"[1]Infrastructure!Q1492","v":0},{"$f":"[1]Infrastructure!R1492","v":0},{"$f":"[1]Infrastructure!T1492","v":0},{"$f":"[1]Infrastructure!W1492","v":0},{"$f":"[1]Infrastructure!W1492","v":0},0,{"$f":"[1]Infrastructure!Z1492","v":0},{"$f":"[1]Infrastructure!Z1492","v":0},0,{"$f":"[1]Infrastructure!AB1492","v":0},{"$f":"[1]Infrastructure!AB1492","v":0},0,{"$f":"[1]Infrastructure!AC1492","v":0},{"$f":"[1]Infrastructure!AD1492","v":0},{"$f":"[1]Infrastructure!AE1492","v":0},{"$f":"[1]Infrastructure!AF1492","v":0},{"$f":"[1]Infrastructure!AG1492","v":0},{"$f":"[1]Infrastructure!AH1492","v":0},0]
[0,null,null,null,null,null,{"$f":"[1]Infrastructure!G1493","v":0},{"$f":"[1]Infrastructure!H1493","v":0},{"$f":"[1]Infrastructure!I1493","v":0},{"$f":"[1]Infrastructure!J1493","v":0},{"$f":"[1]Infrastructure!K1493","v":0},{"$f":"[1]Infrastructure!L1493","v":0},{"$f":"[1]Infrastructure!M1493","v":0},{"$f":"[1]Infrastructure!N1493","v":0},{"$f":"[1]Infrastructure!O1493","v":0},{"$f":"[1]Infrastructure!Q1493","v":0},{"$f":"[1]Infrastructure!R1493","v":0},{"$f":"[1]Infrastructure!T1493","v":0},{"$f":"[1]Infrastructure!W1493","v":0},{"$f":"[1]Infrastructure!W1493","v":0},0,{"$f":"[1]Infrastructure!Z1493","v":0},{"$f":"[1]Infrastructure!Z1493","v":0},0,{"$f":"[1]Infrastructure!AB1493","v":0},{"$f":"[1]Infrastructure!AB1493","v":0},0,{"$f":"[1]Infrastructure!AC1493","v":0},{"$f":"[1]Infrastructure!AD1493","v":0},{"$f":"[1]Infrastructure!AE1493","v":0},{"$f":"[1]Infrastructure!AF1493","v":0},{"$f":"[1]Infrastructure!AG1493","v":0},{"$f":"[1]Infrastructure!AH1493","v":0},0]
[0,null,null,null,null,null,{"$f":"[1]Infrastructure!G1494","v":0},{"$f":"[1]Infrastructure!H1494","v":0},{"$f":"[1]Infrastructure!I1494","v":0},{"$f":"[1]Infrastructure!J1494","v":0},{"$f":"[1]Infrastructure!K1494","v":0},{"$f":"[1]Infrastructure!L1494","v":0},{"$f":"[1]Infrastructure!M1494","v":0},{"$f":"[1]Infrastructure!N1494","v":0},{"$f":"[1]Infrastructure!O1494","v":0},{"$f":"[1]Infrastructure!Q1494","v":0},{"$f":"[1]Infrastructure!R1494","v":0},{"$f":"[1]Infrastructure!T1494","v":0},{"$f":"[1]Infrastructure!W1494","v":0},{"$f":"[1]Infrastructure!W1494","v":0},0,{"$f":"[1]Infrastructure!Z1494","v":0},{"$f":"[1]Infrastructure!Z1494","v":0},0,{"$f":"[1]Infrastructure!AB1494","v":0},{"$f":"[1]Infrastructure!AB1494","v":0},0,{"$f":"[1]Infrastructure!AC1494","v":0},{"$f":"[1]Infrastructure!AD1494","v":0},{"$f":"[1]Infrastructure!AE1494","v":0},{"$f":"[1]Infrastructure!AF1494","v":0},{"$f":"[1]Infrastructure!AG1494","v":0},{"$f":"[1]Infrastructure!AH1494","v":0},0]
[0,null,null,null,null,null,{"$f":"[1]Infrastructure!G1495","v":0},{"$f":"[1]Infrastructure!H1495","v":0},{"$f":"[1]Infrastructure!I1495","v":0},{"$f":"[1]Infrastructure!J1495","v":0},{"$f":"[1]Infrastructure!K1495","v":0},{"$f":"[1]Infrastructure!L1495","v":0},{"$f":"[1]Infrastructure!M1495","v":0},{"$f":"[1]Infrastructure!N1495","v":0},{"$f":"[1]Infrastructure!O1495","v":0},{"$f":"[1]Infrastructure!Q1495","v":0},{"$f":"[1]Infrastructure!R1495","v":0},{"$f":"[1]Infrastructure!T1495","v":0},{"$f":"[1]Infrastructure!W1495","v":0},{"$f":"[1]Infrastructure!W1495","v":0},0,{"$f":"[1]Infrastructure!Z1495","v":0},{"$f":"[1]Infrastructure!Z1495","v":0},0,{"$f":"[1]Infrastructure!AB1495","v":0},{"$f":"[1]Infrastructure!AB1495","v":0},0,{"$f":"[1]Infrastructure!AC1495","v":0},{"$f":"[1]Infrastructure!AD1495","v":0},{"$f":"[1]Infrastructure!AE1495","v":0},{"$f":"[1]Infrastructure!AF1495","v":0},{"$f":"[1]Infrastructure!AG1495","v":0},{"$f":"[1]Infrastructure!AH1495","v":0},0]
[0,null,null,null,null,null,{"$f":"[1]Infrastructure!G1496","v":0},{"$f":"[1]Infrastructure!H1496","v":0},{"$f":"[1]Infrastructure!I1496","v":0},{"$f":"[1]Infrastructure!J1496","v":0},{"$f":"[1]Infrastructure!K1496","v":0},{"$f":"[1]Infrastructure!L1496","v":0},{"$f":"[1]Infrastructure!M1496","v":0},{"$f":"[1]Infrastructure!N1496","v":0},{"$f":"[1]Infrastructure!O1496","v":0},{"$f":"[1]Infrastructure!Q1496","v":0},{"$f":"[1]Infrastructure!R1496","v":0},{"$f":"[1]Infrastructure!T1496","v":0},{"$f":"[1]Infrastructure!W1496","v":0},{"$f":"[1]Infrastructure!W1496","v":0},0,{"$f":"[1]Infrastructure!Z1496","v":0},{"$f":"[1]Infrastructure!Z1496","v":0},0,{"$f":"[1]Infrastructure!AB1496","v":0},{"$f":"[1]Infrastructure!AB1496","v":0},0,{"$f":"[1]Infrastructure!AC1496","v":0},{"$f":"[1]Infrastructure!AD1496","v":0},{"$f":"[1]Infrastructure!AE1496","v":0},{"$f":"[1]Infrastructure!AF1496","v":0},{"$f":"[1]Infrastructure!AG1496","v":0},{"$f":"[1]Infrastructure!AH1496","v":0},0]
[0,null,null,null,null,null,{"$f":"[1]Infrastructure!G1497","v":0},{"$f":"[1]Infrastructure!H1497","v":0},{"$f":"[1]Infrastructure!I1497","v":0},{"$f":"[1]Infrastructure!J1497","v":0},{"$f":"[1]Infrastructure!K1497","v":0},{"$f":"[1]Infrastructure!L1497","v":0},{"$f":"[1]Infrastructure!M1497","v":0},{"$f":"[1]Infrastructure!N1497","v":0},{"$f":"[1]Infrastructure!O1497","v":0},{"$f":"[1]Infrastructure!Q1497","v":0},{"$f":"[1]Infrastructure!R1497","v":0},{"$f":"[1]Infrastructure!T1497","v":0},{"$f":"[1]Infrastructure!W1497","v":0},{"$f":"[1]Infrastructure!W1497","v":0},0,{"$f":"[1]Infrastructure!Z1497","v":0},{"$f":"[1]Infrastructure!Z1497","v":0},0,{"$f":"[1]Infrastructure!AB1497","v":0},{"$f":"[1]Infrastructure!AB1497","v":0},0,{"$f":"[1]Infrastructure!AC1497","v":0},{"$f":"[1]Infrastructure!AD1497","v":0},{"$f":"[1]Infrastructure!AE1497","v":0},{"$f":"[1]Infrastructure!AF1497","v":0},{"$f":"[1]Infrastructure!AG1497","v":0},{"$f":"[1]Infrastructure!AH1497","v":0},0]
[0,null,null,null,null,null,{"$f":"[1]Infrastructure!G1498","v":0},{"$f":"[1]Infrastructure!H1498","v":0},{"$f":"[1]Infrastructure!I1498","v":0},{"$f":"[1]Infrastructure!J1498","v":0},{"$f":"[1]Infrastructure!K1498","v":0},{"$f":"[1]Infrastructure!L1498","v":0},{"$f":"[1]Infrastructure!M1498","v":0},{"$f":"[1]Infrastructure!N1498","v":0},{"$f":"[1]Infrastructure!O1498","v":0},{"$f":"[1]Infrastructure!Q1498","v":0},{"$f":"[1]Infrastructure!R1498","v":0},{"$f":"[1]Infrastructure!T1498","v":0},{"$f":"[1]Infrastructure!W1498","v":0},{"$f":"[1]Infrastructure!W1498","v":0},0,{"$f":"[1]Infrastructure!Z1498","v":0},{"$f":"[1]Infrastructure!Z1498","v":0},0,{"$f":"[1]Infrastructure!AB1498","v":0},{"$f":"[1]Infrastructure!AB1498","v":0},0,{"$f":"[1]Infrastructure!AC1498","v":0},{"$f":"[1]Infrastructure!AD1498","v":0},{"$f":"[1]Infrastructure!AE1498","v":0},{"$f":"[1]Infrastructure!AF1498","v":0},{"$f":"[1]Infrastructure!AG1498","v":0},{"$f":"[1]Infrastructure!AH1498","v":0},0]
[0,null,null,null,null,null,{"$f":"[1]Infrastructure!G1499","v":0},{"$f":"[1]Infrastructure!H1499","v":0},{"$f":"[1]Infrastructure!I1499","v":0},{"$f":"[1]Infrastructure!J1499","v":0},{"$f":"[1]Infrastructure!K1499","v":0},{"$f":"[1]Infrastructure!L1499","v":0},{"$f":"[1]Infrastructure!M1499","v":0},{"$f":"[1]Infrastructure!N1499","v":0},{"$f":"[1]Infrastructure!O1499","v":0},{"$f":"[1]Infrastructure!Q1499","v":0},{"$f":"[1]Infrastructure!R1499","v":0},{"$f":"[1]Infrastructure!T1499","v":0},{"$f":"[1]Infrastructure!W1499","v":0},{"$f":"[1]Infrastructure!W1499","v":0},0,{"$f":"[1]Infrastructure!Z1499","v":0},{"$f":"[1]Infrastructure!Z1499","v":0},0,{"$f":"[1]Infrastructure!AB1499","v":0},{"$f":"[1]Infrastructure!AB1499","v":0},0,{"$f":"[1]Infrastructure!AC1499","v":0},{"$f":"[1]Infrastructure!AD1499","v":0},{"$f":"[1]Infrastructure!AE1499","v":0},{"$f":"[1]Infrastructure!AF1499","v":0},{"$f":"[1]Infrastructure!AG1499","v":0},{"$f":"[1]Infrastructure!AH1499","v":0},0]
[0,null,null,null,null,null,{"$f":"[1]Infrastructure!G1500","v":0},{"$f":"[1]Infrastructure!H1500","v":0},{"$f":"[1]Infrastructure!I1500","v":0},{"$f":"[1]Infrastructure!J1500","v":0},{"$f":"[1]Infrastructure!K1500","v":0},{"$f":"[1]Infrastructure!L1500","v":0},{"$f":"[1]Infrastructure!M1500","v":0},{"$f":"[1]Infrastructure!N1500","v":0},{"$f":"[1]Infrastructure!O1500","v":0},{"$f":"[1]Infrastructure!Q1500","v":0},{"$f":"[1]Infrastructure!R1500","v":0},{"$f":"[1]Infrastructure!T1500","v":0},{"$f":"[1]Infrastructure!W1500","v":0},{"$f":"[1]Infrastructure!W1500","v":0},0,{"$f":"[1]Infrastructure!Z1500","v":0},{"$f":"[1]Infrastructure!Z1500","v":0},0,{"$f":"[1]Infrastructure!AB1500","v":0},{"$f":"[1]Infrastructure!AB1500","v":0},0,{"$f":"[1]Infrastructure!AC1500","v":0},{"$f":"[1]Infrastructure!AD1500","v":0},{"$f":"[1]Infrastructure!AE1500","v":0},{"$f":"[1]Infrastructure!AF1500","v":0},{"$f":"[1]Infrastructure!AG1500","v":0},{"$f":"[1]Infrastructure!AH1500","v":0},0]
[0,null,null,null,null,null,{"$f":"[1]Infrastructure!G1501","v":0},{"$f":"[1]Infrastructure!H1501","v":0},{"$f":"[1]Infrastructure!I1501","v":0},{"$f":"[1]Infrastructure!J1501","v":0},{"$f":"[1]Infrastructure!K1501","v":0},{"$f":"[1]Infrastructure!L1501","v":0},{"$f":"[1]Infrastructure!M1501","v":0},{"$f":"[1]Infrastructure!N1501","v":0},{"$f":"[1]Infrastructure!O1501","v":0},{"$f":"[1]Infrastructure!Q1501","v":0},{"$f":"[1]Infrastructure!R1501","v":0},{"$f":"[1]Infrastructure!T1501","v":0},{"$f":"[1]Infrastructure!W1501","v":0},{"$f":"[1]Infrastructure!W1501","v":0},0,{"$f":"[1]Infrastructure!Z1501","v":0},{"$f":"[1]Infrastructure!Z1501","v":0},0,{"$f":"[1]Infrastructure!AB1501","v":0},{"$f":"[1]Infrastructure!AB1501","v":0},0,{"$f":"[1]Infrastructure!AC1501","v":0},{"$f":"[1]Infrastructure!AD1501","v":0},{"$f":"[1]Infrastructure!AE1501","v":0},{"$f":"[1]Infrastructure!AF1501","v":0},{"$f":"[1]Infrastructure!AG1501","v":0},{"$f":"[1]Infrastructure!AH1501","v":0},0]
[0,null,null,null,null,null,{"$f":"[1]Infrastructure!G1502","v":0},{"$f":"[1]Infrastructure!H1502","v":0},{"$f":"[1]Infrastructure!I1502","v":0},{"$f":"[1]Infrastructure!J1502","v":0},{"$f":"[1]Infrastructure!K1502","v":0},{"$f":"[1]Infrastructure!L1502","v":0},{"$f":"[1]Infrastructure!M1502","v":0},{"$f":"[1]Infrastructure!N1502","v":0},{"$f":"[1]Infrastructure!O1502","v":0},{"$f":"[1]Infrastructure!Q1502","v":0},{"$f":"[1]Infrastructure!R1502","v":0},{"$f":"[1]Infrastructure!T1502","v":0},{"$f":"[1]Infrastructure!W1502","v":0},{"$f":"[1]Infrastructure!W1502","v":0},0,{"$f":"[1]Infrastructure!Z1502","v":0},{"$f":"[1]Infrastructure!Z1502","v":0},0,{"$f":"[1]Infrastructure!AB1502","v":0},{"$f":"[1]Infrastructure!AB1502","v":0},0,{"$f":"[1]Infrastructure!AC1502","v":0},{"$f":"[1]Infrastructure!AD1502","v":0},{"$f":"[1]Infrastructure!AE1502","v":0},{"$f":"[1]Infrastructure!AF1502","v":0},{"$f":"[1]Infrastructure!AG1502","v":0},{"$f":"[1]Infrastructure!AH1502","v":0},0]
[0,null,null,null,null,null,{"$f":"[1]Infrastructure!G1503","v":0},{"$f":"[1]Infrastructure!H1503","v":0},{"$f":"[1]Infrastructure!I1503","v":0},{"$f":"[1]Infrastructure!J1503","v":0},{"$f":"[1]Infrastructure!K1503","v":0},{"$f":"[1]Infrastructure!L1503","v":0},{"$f":"[1]Infrastructure!M1503","v":0},{"$f":"[1]Infrastructure!N1503","v":0},{"$f":"[1]Infrastructure!O1503","v":0},{"$f":"[1]Infrastructure!Q1503","v":0},{"$f":"[1]Infrastructure!R1503","v":0},{"$f":"[1]Infrastructure!T1503","v":0},{"$f":"[1]Infrastructure!W1503","v":0},{"$f":"[1]Infrastructure!W1503","v":0},0,{"$f":"[1]Infrastructure!Z1503","v":0},{"$f":"[1]Infrastructure!Z1503","v":0},0,{"$f":"[1]Infrastructure!AB1503","v":0},{"$f":"[1]Infrastructure!AB1503","v":0},0,{"$f":"[1]Infrastructure!AC1503","v":0},{"$f":"[1]Infrastructure!AD1503","v":0},{"$f":"[1]Infrastructure!AE1503","v":0},{"$f":"[1]Infrastructure!AF1503","v":0},{"$f":"[1]Infrastructure!AG1503","v":0},{"$f":"[1]Infrastructure!AH1503","v":0},0]
[0,null,null,null,null,null,{"$f":"[1]Infrastructure!G1504","v":0},{"$f":"[1]Infrastructure!H1504","v":0},{"$f":"[1]Infrastructure!I1504","v":0},{"$f":"[1]Infrastructure!J1504","v":0},{"$f":"[1]Infrastructure!K1504","v":0},{"$f":"[1]Infrastructure!L1504","v":0},{"$f":"[1]Infrastructure!M1504","v":0},{"$f":"[1]Infrastructure!N1504","v":0},{"$f":"[1]Infrastructure!O1504","v":0},{"$f":"[1]Infrastructure!Q1504","v":0},{"$f":"[1]Infrastructure!R1504","v":0},{"$f":"[1]Infrastructure!T1504","v":0},{"$f":"[1]Infrastructure!W1504","v":0},{"$f":"[1]Infrastructure!W1504","v":0},0,{"$f":"[1]Infrastructure!Z1504","v":0},{"$f":"[1]Infrastructure!Z1504","v":0},0,{"$f":"[1]Infrastructure!AB1504","v":0},{"$f":"[1]Infrastructure!AB1504","v":0},0,{"$f":"[1]Infrastructure!AC1504","v":0},{"$f":"[1]Infrastructure!AD1504","v":0},{"$f":"[1]Infrastructure!AE1504","v":0},{"$f":"[1]Infrastructure!AF1504","v":0},{"$f":"[1]Infrastructure!AG1504","v":0},{"$f":"[1]Infrastructure!AH1504","v":0},0]
[0,null,null,null,null,null,{"$f":"[1]Infrastructure!G1505","v":0},{"$f":"[1]Infrastructure!H1505","v":0},{"$f":"[1]Infrastructure!I1505","v":0},{"$f":"[1]Infrastructure!J1505","v":0},{"$f":"[1]Infrastructure!K1505","v":0},{"$f":"[1]Infrastructure!L1505","v":0},{"$f":"[1]Infrastructure!M1505","v":0},{"$f":"[1]Infrastructure!N1505","v":0},{"$f":"[1]Infrastructure!O1505","v":0},{"$f":"[1]Infrastructure!Q1505","v":0},{"$f":"[1]Infrastructure!R1505","v":0},{"$f":"[1]Infrastructure!T1505","v":0},{"$f":"[1]Infrastructure!W1505","v":0},{"$f":"[1]Infrastructure!W1505","v":0},0,{"$f":"[1]Infrastructure!Z1505","v":0},{"$f":"[1]Infrastructure!Z1505","v":0},0,{"$f":"[1]Infrastructure!AB1505","v":0},{"$f":"[1]Infrastructure!AB1505","v":0},0,{"$f":"[1]Infrastructure!AC1505","v":0},{"$f":"[1]Infrastructure!AD1505","v":0},{"$f":"[1]Infrastructure!AE1505","v":0},{"$f":"[1]Infrastructure!AF1505","v":0},{"$f":"[1]Infrastructure!AG1505","v":0},{"$f":"[1]Infrastructure!AH1505","v":0},0]
[0,null,null,null,null,null,{"$f":"[1]Infrastructure!G1506","v":0},{"$f":"[1]Infrastructure!H1506","v":0},{"$f":"[1]Infrastructure!I1506","v":0},{"$f":"[1]Infrastructure!J1506","v":0},{"$f":"[1]Infrastructure!K1506","v":0},{"$f":"[1]Infrastructure!L1506","v":0},{"$f":"[1]Infrastructure!M1506","v":0},{"$f":"[1]Infrastructure!N1506","v":0},{"$f":"[1]Infrastructure!O1506","v":0},{"$f":"[1]Infrastructure!Q1506","v":0},{"$f":"[1]Infrastructure!R1506","v":0},{"$f":"[1]Infrastructure!T1506","v":0},{"$f":"[1]Infrastructure!W1506","v":0},{"$f":"[1]Infrastructure!W1506","v":0},0,{"$f":"[1]Infrastructure!Z1506","v":0},{"$f":"[1]Infrastructure!Z1506","v":0},0,{"$f":"[1]Infrastructure!AB1506","v":0},{"$f":"[1]Infrastructure!AB1506","v":0},0,{"$f":"[1]Infrastructure!AC1506","v":0},{"$f":"[1]Infrastructure!AD1506","v":0},{"$f":"[1]Infrastructure!AE1506","v":0},{"$f":"[1]Infrastructure!AF1506","v":0},{"$f":"[1]Infrastructure!AG1506","v":0},{"$f":"[1]Infrastructure!AH1506","v":0},0]
[0,null,null,null,null,null,{"$f":"[1]Infrastructure!G1507","v":0},{"$f":"[1]Infrastructure!H1507","v":0},{"$f":"[1]Infrastructure!I1507","v":0},{"$f":"[1]Infrastructure!J1507","v":0},{"$f":"[1]Infrastructure!K1507","v":0},{"$f":"[1]Infrastructure!L1507","v":0},{"$f":"[1]Infrastructure!M1507","v":0},{"$f":"[1]Infrastructure!N1507","v":0},{"$f":"[1]Infrastructure!O1507","v":0},{"$f":"[1]Infrastructure!Q1507","v":0},{"$f":"[1]Infrastructure!R1507","v":0},{"$f":"[1]Infrastructure!T1507","v":0},{"$f":"[1]Infrastructure!W1507","v":0},{"$f":"[1]Infrastructure!W1507","v":0},0,{"$f":"[1]Infrastructure!Z1507","v":0},{"$f":"[1]Infrastructure!Z1507","v":0},0,{"$f":"[1]Infrastructure!AB1507","v":0},{"$f":"[1]Infrastructure!AB1507","v":0},0,{"$f":"[1]Infrastructure!AC1507","v":0},{"$f":"[1]Infrastructure!AD1507","v":0},{"$f":"[1]Infrastructure!AE1507","v":0},{"$f":"[1]Infrastructure!AF1507","v":0},{"$f":"[1]Infrastructure!AG1507","v":0},{"$f":"[1]Infrastructure!AH1507","v":0},0]
[0,null,null,null,null,null,{"$f":"[1]Infrastructure!G1508","v":0},{"$f":"[1]Infrastructure!H1508","v":0},{"$f":"[1]Infrastructure!I1508","v":0},{"$f":"[1]Infrastructure!J1508","v":0},{"$f":"[1]Infrastructure!K1508","v":0},{"$f":"[1]Infrastructure!L1508","v":0},{"$f":"[1]Infrastructure!M1508","v":0},{"$f":"[1]Infrastructure!N1508","v":0},{"$f":"[1]Infrastructure!O1508","v":0},{"$f":"[1]Infrastructure!Q1508","v":0},{"$f":"[1]Infrastructure!R1508","v":0},{"$f":"[1]Infrastructure!T1508","v":0},{"$f":"[1]Infrastructure!W1508","v":0},{"$f":"[1]Infrastructure!W1508","v":0},0,{"$f":"[1]Infrastructure!Z1508","v":0},{"$f":"[1]Infrastructure!Z1508","v":0},0,{"$f":"[1]Infrastructure!AB1508","v":0},{"$f":"[1]Infrastructure!AB1508","v":0},0,{"$f":"[1]Infrastructure!AC1508","v":0},{"$f":"[1]Infrastructure!AD1508","v":0},{"$f":"[1]Infrastructure!AE1508","v":0},{"$f":"[1]Infrastructure!AF1508","v":0},{"$f":"[1]Infrastructure!AG1508","v":0},{"$f":"[1]Infrastructure!AH1508","v":0},0]
[0,null,null,null,null,null,{"$f":"[1]Infrastructure!G1509","v":0},{"$f":"[1]Infrastructure!H1509","v":0},{"$f":"[1]Infrastructure!I1509","v":0},{"$f":"[1]Infrastructure!J1509","v":0},{"$f":"[1]Infrastructure!K1509","v":0},{"$f":"[1]Infrastructure!L1509","v":0},{"$f":"[1]Infrastructure!M1509","v":0},{"$f":"[1]Infrastructure!N1509","v":0},{"$f":"[1]Infrastructure!O1509","v":0},{"$f":"[1]Infrastructure!Q1509","v":0},{"$f":"[1]Infrastructure!R1509","v":0},{"$f":"[1]Infrastructure!T1509","v":0},{"$f":"[1]Infrastructure!W1509","v":0},{"$f":"[1]Infrastructure!W1509","v":0},0,{"$f":"[1]Infrastructure!Z1509","v":0},{"$f":"[1]Infrastructure!Z1509","v":0},0,{"$f":"[1]Infrastructure!AB1509","v":0},{"$f":"[1]Infrastructure!AB1509","v":0},0,{"$f":"[1]Infrastructure!AC1509","v":0},{"$f":"[1]Infrastructure!AD1509","v":0},{"$f":"[1]Infrastructure!AE1509","v":0},{"$f":"[1]Infrastructure!AF1509","v":0},{"$f":"[1]Infrastructure!AG1509","v":0},{"$f":"[1]Infrastructure!AH1509","v":0},0]
[0,null,null,null,null,null,{"$f":"[1]Infrastructure!G1510","v":0},{"$f":"[1]Infrastructure!H1510","v":0},{"$f":"[1]Infrastructure!I1510","v":0},{"$f":"[1]Infrastructure!J1510","v":0},{"$f":"[1]Infrastructure!K1510","v":0},{"$f":"[1]Infrastructure!L1510","v":0},{"$f":"[1]Infrastructure!M1510","v":0},{"$f":"[1]Infrastructure!N1510","v":0},{"$f":"[1]Infrastructure!O1510","v":0},{"$f":"[1]Infrastructure!Q1510","v":0},{"$f":"[1]Infrastructure!R1510","v":0},{"$f":"[1]Infrastructure!T1510","v":0},{"$f":"[1]Infrastructure!W1510","v":0},{"$f":"[1]Infrastructure!W1510","v":0},0,{"$f":"[1]Infrastructure!Z1510","v":0},{"$f":"[1]Infrastructure!Z1510","v":0},0,{"$f":"[1]Infrastructure!AB1510","v":0},{"$f":"[1]Infrastructure!AB1510","v":0},0,{"$f":"[1]Infrastructure!AC1510","v":0},{"$f":"[1]Infrastructure!AD1510","v":0},{"$f":"[1]Infrastructure!AE1510","v":0},{"$f":"[1]Infrastructure!AF1510","v":0},{"$f":"[1]Infrastructure!AG1510","v":0},{"$f":"[1]Infrastructure!AH1510","v":0},0]
[0,null,null,null,null,null,{"$f":"[1]Infrastructure!G1511","v":0},{"$f":"[1]Infrastructure!H1511","v":0},{"$f":"[1]Infrastructure!I1511","v":0},{"$f":"[1]Infrastructure!J1511","v":0},{"$f":"[1]Infrastructure!K1511","v":0},{"$f":"[1]Infrastructure!L1511","v":0},{"$f":"[1]Infrastructure!M1511","v":0},{"$f":"[1]Infrastructure!N1511","v":0},{"$f":"[1]Infrastructure!O1511","v":0},{"$f":"[1]Infrastructure!Q1511","v":0},{"$f":"[1]Infrastructure!R1511","v":0},{"$f":"[1]Infrastructure!T1511","v":0},{"$f":"[1]Infrastructure!W1511","v":0},{"$f":"[1]Infrastructure!W1511","v":0},0,{"$f":"[1]Infrastructure!Z1511","v":0},{"$f":"[1]Infrastructure!Z1511","v":0},0,{"$f":"[1]Infrastructure!AB1511","v":0},{"$f":"[1]Infrastructure!AB1511","v":0},0,{"$f":"[1]Infrastructure!AC1511","v":0},{"$f":"[1]Infrastructure!AD1511","v":0},{"$f":"[1]Infrastructure!AE1511","v":0},{"$f":"[1]Infrastructure!AF1511","v":0},{"$f":"[1]Infrastructure!AG1511","v":0},{"$f":"[1]Infrastructure!AH1511","v":0},0]
[0,null,null,null,null,null,{"$f":"[1]Infrastructure!G1512","v":0},{"$f":"[1]Infrastructure!H1512","v":0},{"$f":"[1]Infrastructure!I1512","v":0},{"$f":"[1]Infrastructure!J1512","v":0},{"$f":"[1]Infrastructure!K1512","v":0},{"$f":"[1]Infrastructure!L1512","v":0},{"$f":"[1]Infrastructure!M1512","v":0},{"$f":"[1]Infrastructure!N1512","v":0},{"$f":"[1]Infrastructure!O1512","v":0},{"$f":"[1]Infrastructure!Q1512","v":0},{"$f":"[1]Infrastructure!R1512","v":0},{"$f":"[1]Infrastructure!T1512","v":0},{"$f":"[1]Infrastructure!W1512","v":0},{"$f":"[1]Infrastructure!W1512","v":0},0,{"$f":"[1]Infrastructure!Z1512","v":0},{"$f":"[1]Infrastructure!Z1512","v":0},0,{"$f":"[1]Infrastructure!AB1512","v":0},{"$f":"[1]Infrastructure!AB1512","v":0},0,{"$f":"[1]Infrastructure!AC1512","v":0},{"$f":"[1]Infrastructure!AD1512","v":0},{"$f":"[1]Infrastructure!AE1512","v":0},{"$f":"[1]Infrastructure!AF1512","v":0},{"$f":"[1]Infrastructure!AG1512","v":0},{"$f":"[1]Infrastructure!AH1512","v":0},0]
[0,null,null,null,null,null,{"$f":"[1]Infrastructure!G1513","v":0},{"$f":"[1]Infrastructure!H1513","v":0},{"$f":"[1]Infrastructure!I1513","v":0},{"$f":"[1]Infrastructure!J1513","v":0},{"$f":"[1]Infrastructure!K1513","v":0},{"$f":"[1]Infrastructure!L1513","v":0},{"$f":"[1]Infrastructure!M1513","v":0},{"$f":"[1]Infrastructure!N1513","v":0},{"$f":"[1]Infrastructure!O1513","v":0},{"$f":"[1]Infrastructure!Q1513","v":0},{"$f":"[1]Infrastructure!R1513","v":0},{"$f":"[1]Infrastructure!T1513","v":0},{"$f":"[1]Infrastructure!W1513","v":0},{"$f":"[1]Infrastructure!W1513","v":0},0,{"$f":"[1]Infrastructure!Z1513","v":0},{"$f":"[1]Infrastructure!Z1513","v":0},0,{"$f":"[1]Infrastructure!AB1513","v":0},{"$f":"[1]Infrastructure!AB1513","v":0},0,{"$f":"[1]Infrastructure!AC1513","v":0},{"$f":"[1]Infrastructure!AD1513","v":0},{"$f":"[1]Infrastructure!AE1513","v":0},{"$f":"[1]Infrastructure!AF1513","v":0},{"$f":"[1]Infrastructure!AG1513","v":0},{"$f":"[1]Infrastructure!AH1513","v":0},0]
[0,null,null,null,null,null,{"$f":"[1]Infrastructure!G1514","v":0},{"$f":"[1]Infrastructure!H1514","v":0},{"$f":"[1]Infrastructure!I1514","v":0},{"$f":"[1]Infrastructure!J1514","v":0},{"$f":"[1]Infrastructure!K1514","v":0},{"$f":"[1]Infrastructure!L1514","v":0},{"$f":"[1]Infrastructure!M1514","v":0},{"$f":"[1]Infrastructure!N1514","v":0},{"$f":"[1]Infrastructure!O1514","v":0},{"$f":"[1]Infrastructure!Q1514","v":0},{"$f":"[1]Infrastructure!R1514","v":0},{"$f":"[1]Infrastructure!T1514","v":0},{"$f":"[1]Infrastructure!W1514","v":0},{"$f":"[1]Infrastructure!W1514","v":0},0,{"$f":"[1]Infrastructure!Z1514","v":0},{"$f":"[1]Infrastructure!Z1514","v":0},0,{"$f":"[1]Infrastructure!AB1514","v":0},{"$f":"[1]Infrastructure!AB1514","v":0},0,{"$f":"[1]Infrastructure!AC1514","v":0},{"$f":"[1]Infrastructure!AD1514","v":0},{"$f":"[1]Infrastructure!AE1514","v":0},{"$f":"[1]Infrastructure!AF1514","v":0},{"$f":"[1]Infrastructure!AG1514","v":0},{"$f":"[1]Infrastructure!AH1514","v":0},0]
[0,null,null,null,null,null,{"$f":"[1]Infrastructure!G1515","v":0},{"$f":"[1]Infrastructure!H1515","v":0},{"$f":"[1]Infrastructure!I1515","v":0},{"$f":"[1]Infrastructure!J1515","v":0},{"$f":"[1]Infrastructure!K1515","v":0},{"$f":"[1]Infrastructure!L1515","v":0},{"$f":"[1]Infrastructure!M1515","v":0},{"$f":"[1]Infrastructure!N1515","v":0},{"$f":"[1]Infrastructure!O1515","v":0},{"$f":"[1]Infrastructure!Q1515","v":0},{"$f":"[1]Infrastructure!R1515","v":0},{"$f":"[1]Infrastructure!T1515","v":0},{"$f":"[1]Infrastructure!W1515","v":0},{"$f":"[1]Infrastructure!W1515","v":0},0,{"$f":"[1]Infrastructure!Z1515","v":0},{"$f":"[1]Infrastructure!Z1515","v":0},0,{"$f":"[1]Infrastructure!AB1515","v":0},{"$f":"[1]Infrastructure!AB1515","v":0},0,{"$f":"[1]Infrastructure!AC1515","v":0},{"$f":"[1]Infrastructure!AD1515","v":0},{"$f":"[1]Infrastructure!AE1515","v":0},{"$f":"[1]Infrastructure!AF1515","v":0},{"$f":"[1]Infrastructure!AG1515","v":0},{"$f":"[1]Infrastructure!AH1515","v":0},0]
[0,null,null,null,null,null,{"$f":"[1]Infrastructure!G1516","v":0},{"$f":"[1]Infrastructure!H1516","v":0},{"$f":"[1]Infrastructure!I1516","v":0},{"$f":"[1]Infrastructure!J1516","v":0},{"$f":"[1]Infrastructure!K1516","v":0},{"$f":"[1]Infrastructure!L1516","v":0},{"$f":"[1]Infrastructure!M1516","v":0},{"$f":"[1]Infrastructure!N1516","v":0},{"$f":"[1]Infrastructure!O1516","v":0},{"$f":"[1]Infrastructure!Q1516","v":0},{"$f":"[1]Infrastructure!R1516","v":0},{"$f":"[1]Infrastructure!T1516","v":0},{"$f":"[1]Infrastructure!W1516","v":0},{"$f":"[1]Infrastructure!W1516","v":0},0,{"$f":"[1]Infrastructure!Z1516","v":0},{"$f":"[1]Infrastructure!Z1516","v":0},0,{"$f":"[1]Infrastructure!AB1516","v":0},{"$f":"[1]Infrastructure!AB1516","v":0},0,{"$f":"[1]Infrastructure!AC1516","v":0},{"$f":"[1]Infrastructure!AD1516","v":0},{"$f":"[1]Infrastructure!AE1516","v":0},{"$f":"[1]Infrastructure!AF1516","v":0},{"$f":"[1]Infrastructure!AG1516","v":0},{"$f":"[1]Infrastructure!AH1516","v":0},0]
[0,null,null,null,null,null,{"$f":"[1]Infrastructure!G1517","v":0},{"$f":"[1]Infrastructure!H1517","v":0},{"$f":"[1]Infrastructure!I1517","v":0},{"$f":"[1]Infrastructure!J1517","v":0},{"$f":"[1]Infrastructure!K1517","v":0},{"$f":"[1]Infrastructure!L1517","v":0},{"$f":"[1]Infrastructure!M1517","v":0},{"$f":"[1]Infrastructure!N1517","v":0},{"$f":"[1]Infrastructure!O1517","v":0},{"$f":"[1]Infrastructure!Q1517","v":0},{"$f":"[1]Infrastructure!R1517","v":0},{"$f":"[1]Infrastructure!T1517","v":0},{"$f":"[1]Infrastructure!W1517","v":0},{"$f":"[1]Infrastructure!W1517","v":0},0,{"$f":"[1]Infrastructure!Z1517","v":0},{"$f":"[1]Infrastructure!Z1517","v":0},0,{"$f":"[1]Infrastructure!AB1517","v":0},{"$f":"[1]Infrastructure!AB1517","v":0},0,{"$f":"[1]Infrastructure!AC1517","v":0},{"$f":"[1]Infrastructure!AD1517","v":0},{"$f":"[1]Infrastructure!AE1517","v":0},{"$f":"[1]Infrastructure!AF1517","v":0},{"$f":"[1]Infrastructure!AG1517","v":0},{"$f":"[1]Infrastructure!AH1517","v":0},0]
[0,null,null,null,null,null,{"$f":"[1]Infrastructure!G1518","v":0},{"$f":"[1]Infrastructure!H1518","v":0},{"$f":"[1]Infrastructure!I1518","v":0},{"$f":"[1]Infrastructure!J1518","v":0},{"$f":"[1]Infrastructure!K1518","v":0},{"$f":"[1]Infrastructure!L1518","v":0},{"$f":"[1]Infrastructure!M1518","v":0},{"$f":"[1]Infrastructure!N1518","v":0},{"$f":"[1]Infrastructure!O1518","v":0},{"$f":"[1]Infrastructure!Q1518","v":0},{"$f":"[1]Infrastructure!R1518","v":0},{"$f":"[1]Infrastructure!T1518","v":0},{"$f":"[1]Infrastructure!W1518","v":0},{"$f":"[1]Infrastructure!W1518","v":0},0,{"$f":"[1]Infrastructure!Z1518","v":0},{"$f":"[1]Infrastructure!Z1518","v":0},0,{"$f":"[1]Infrastructure!AB1518","v":0},{"$f":"[1]Infrastructure!AB1518","v":0},0,{"$f":"[1]Infrastructure!AC1518","v":0},{"$f":"[1]Infrastructure!AD1518","v":0},{"$f":"[1]Infrastructure!AE1518","v":0},{"$f":"[1]Infrastructure!AF1518","v":0},{"$f":"[1]Infrastructure!AG1518","v":0},{"$f":"[1]Infrastructure!AH1518","v":0},0]
[0,null,null,null,null,null,{"$f":"[1]Infrastructure!G1519","v":0},{"$f":"[1]Infrastructure!H1519","v":0},{"$f":"[1]Infrastructure!I1519","v":0},{"$f":"[1]Infrastructure!J1519","v":0},{"$f":"[1]Infrastructure!K1519","v":0},{"$f":"[1]Infrastructure!L1519","v":0},{"$f":"[1]Infrastructure!M1519","v":0},{"$f":"[1]Infrastructure!N1519","v":0},{"$f":"[1]Infrastructure!O1519","v":0},{"$f":"[1]Infrastructure!Q1519","v":0},{"$f":"[1]Infrastructure!R1519","v":0},{"$f":"[1]Infrastructure!T1519","v":0},{"$f":"[1]Infrastructure!W1519","v":0},{"$f":"[1]Infrastructure!W1519","v":0},0,{"$f":"[1]Infrastructure!Z1519","v":0},{"$f":"[1]Infrastructure!Z1519","v":0},0,{"$f":"[1]Infrastructure!AB1519","v":0},{"$f":"[1]Infrastructure!AB1519","v":0},0,{"$f":"[1]Infrastructure!AC1519","v":0},{"$f":"[1]Infrastructure!AD1519","v":0},{"$f":"[1]Infrastructure!AE1519","v":0},{"$f":"[1]Infrastructure!AF1519","v":0},{"$f":"[1]Infrastructure!AG1519","v":0},{"$f":"[1]Infrastructure!AH1519","v":0},0]
[0,null,null,null,null,null,{"$f":"[1]Infrastructure!G1520","v":0},{"$f":"[1]Infrastructure!H1520","v":0},{"$f":"[1]Infrastructure!I1520","v":0},{"$f":"[1]Infrastructure!J1520","v":0},{"$f":"[1]Infrastructure!K1520","v":0},{"$f":"[1]Infrastructure!L1520","v":0},{"$f":"[1]Infrastructure!M1520","v":0},{"$f":"[1]Infrastructure!N1520","v":0},{"$f":"[1]Infrastructure!O1520","v":0},{"$f":"[1]Infrastructure!Q1520","v":0},{"$f":"[1]Infrastructure!R1520","v":0},{"$f":"[1]Infrastructure!T1520","v":0},{"$f":"[1]Infrastructure!W1520","v":0},{"$f":"[1]Infrastructure!W1520","v":0},0,{"$f":"[1]Infrastructure!Z1520","v":0},{"$f":"[1]Infrastructure!Z1520","v":0},0,{"$f":"[1]Infrastructure!AB1520","v":0},{"$f":"[1]Infrastructure!AB1520","v":0},0,{"$f":"[1]Infrastructure!AC1520","v":0},{"$f":"[1]Infrastructure!AD1520","v":0},{"$f":"[1]Infrastructure!AE1520","v":0},{"$f":"[1]Infrastructure!AF1520","v":0},{"$f":"[1]Infrastructure!AG1520","v":0},{"$f":"[1]Infrastructure!AH1520","v":0},0]
[0,null,null,null,null,null,{"$f":"[1]Infrastructure!G1521","v":0},{"$f":"[1]Infrastructure!H1521","v":0},{"$f":"[1]Infrastructure!I1521","v":0},{"$f":"[1]Infrastructure!J1521","v":0},{"$f":"[1]Infrastructure!K1521","v":0},{"$f":"[1]Infrastructure!L1521","v":0},{"$f":"[1]Infrastructure!M1521","v":0},{"$f":"[1]Infrastructure!N1521","v":0},{"$f":"[1]Infrastructure!O1521","v":0},{"$f":"[1]Infrastructure!Q1521","v":0},{"$f":"[1]Infrastructure!R1521","v":0},{"$f":"[1]Infrastructure!T1521","v":0},{"$f":"[1]Infrastructure!W1521","v":0},{"$f":"[1]Infrastructure!W1521","v":0},0,{"$f":"[1]Infrastructure!Z1521","v":0},{"$f":"[1]Infrastructure!Z1521","v":0},0,{"$f":"[1]Infrastructure!AB1521","v":0},{"$f":"[1]Infrastructure!AB1521","v":0},0,{"$f":"[1]Infrastructure!AC1521","v":0},{"$f":"[1]Infrastructure!AD1521","v":0},{"$f":"[1]Infrastructure!AE1521","v":0},{"$f":"[1]Infrastructure!AF1521","v":0},{"$f":"[1]Infrastructure!AG1521","v":0},{"$f":"[1]Infrastructure!AH1521","v":0},0]
[0,null,null,null,null,null,{"$f":"[1]Infrastructure!G1522","v":0},{"$f":"[1]Infrastructure!H1522","v":0},{"$f":"[1]Infrastructure!I1522","v":0},{"$f":"[1]Infrastructure!J1522","v":0},{"$f":"[1]Infrastructure!K1522","v":0},{"$f":"[1]Infrastructure!L1522","v":0},{"$f":"[1]Infrastructure!M1522","v":0},{"$f":"[1]Infrastructure!N1522","v":0},{"$f":"[1]Infrastructure!O1522","v":0},{"$f":"[1]Infrastructure!Q1522","v":0},{"$f":"[1]Infrastructure!R1522","v":0},{"$f":"[1]Infrastructure!T1522","v":0},{"$f":"[1]Infrastructure!W1522","v":0},{"$f":"[1]Infrastructure!W1522","v":0},0,{"$f":"[1]Infrastructure!Z1522","v":0},{"$f":"[1]Infrastructure!Z1522","v":0},0,{"$f":"[1]Infrastructure!AB1522","v":0},{"$f":"[1]Infrastructure!AB1522","v":0},0,{"$f":"[1]Infrastructure!AC1522","v":0},{"$f":"[1]Infrastructure!AD1522","v":0},{"$f":"[1]Infrastructure!AE1522","v":0},{"$f":"[1]Infrastructure!AF1522","v":0},{"$f":"[1]Infrastructure!AG1522","v":0},{"$f":"[1]Infrastructure!AH1522","v":0},0]
[0,null,null,null,null,null,{"$f":"[1]Infrastructure!G1523","v":0},{"$f":"[1]Infrastructure!H1523","v":0},{"$f":"[1]Infrastructure!I1523","v":0},{"$f":"[1]Infrastructure!J1523","v":0},{"$f":"[1]Infrastructure!K1523","v":0},{"$f":"[1]Infrastructure!L1523","v":0},{"$f":"[1]Infrastructure!M1523","v":0},{"$f":"[1]Infrastructure!N1523","v":0},{"$f":"[1]Infrastructure!O1523","v":0},{"$f":"[1]Infrastructure!Q1523","v":0},{"$f":"[1]Infrastructure!R1523","v":0},{"$f":"[1]Infrastructure!T1523","v":0},{"$f":"[1]Infrastructure!W1523","v":0},{"$f":"[1]Infrastructure!W1523","v":0},0,{"$f":"[1]Infrastructure!Z1523","v":0},{"$f":"[1]Infrastructure!Z1523","v":0},0,{"$f":"[1]Infrastructure!AB1523","v":0},{"$f":"[1]Infrastructure!AB1523","v":0},0,{"$f":"[1]Infrastructure!AC1523","v":0},{"$f":"[1]Infrastructure!AD1523","v":0},{"$f":"[1]Infrastructure!AE1523","v":0},{"$f":"[1]Infrastructure!AF1523","v":0},{"$f":"[1]Infrastructure!AG1523","v":0},{"$f":"[1]Infrastructure!AH1523","v":0},0]
[0,null,null,null,null,null,{"$f":"[1]Infrastructure!G1524","v":0},{"$f":"[1]Infrastructure!H1524","v":0},{"$f":"[1]Infrastructure!I1524","v":0},{"$f":"[1]Infrastructure!J1524","v":0},{"$f":"[1]Infrastructure!K1524","v":0},{"$f":"[1]Infrastructure!L1524","v":0},{"$f":"[1]Infrastructure!M1524","v":0},{"$f":"[1]Infrastructure!N1524","v":0},{"$f":"[1]Infrastructure!O1524","v":0},{"$f":"[1]Infrastructure!Q1524","v":0},{"$f":"[1]Infrastructure!R1524","v":0},{"$f":"[1]Infrastructure!T1524","v":0},{"$f":"[1]Infrastructure!W1524","v":0},{"$f":"[1]Infrastructure!W1524","v":0},0,{"$f":"[1]Infrastructure!Z1524","v":0},{"$f":"[1]Infrastructure!Z1524","v":0},0,{"$f":"[1]Infrastructure!AB1524","v":0},{"$f":"[1]Infrastructure!AB1524","v":0},0,{"$f":"[1]Infrastructure!AC1524","v":0},{"$f":"[1]Infrastructure!AD1524","v":0},{"$f":"[1]Infrastructure!AE1524","v":0},{"$f":"[1]Infrastructure!AF1524","v":0},{"$f":"[1]Infrastructure!AG1524","v":0},{"$f":"[1]Infrastructure!AH1524","v":0},0]
[0,null,null,null,null,null,{"$f":"[1]Infrastructure!G1525","v":0},{"$f":"[1]Infrastructure!H1525","v":0},{"$f":"[1]Infrastructure!I1525","v":0},{"$f":"[1]Infrastructure!J1525","v":0},{"$f":"[1]Infrastructure!K1525","v":0},{"$f":"[1]Infrastructure!L1525","v":0},{"$f":"[1]Infrastructure!M1525","v":0},{"$f":"[1]Infrastructure!N1525","v":0},{"$f":"[1]Infrastructure!O1525","v":0},{"$f":"[1]Infrastructure!Q1525","v":0},{"$f":"[1]Infrastructure!R1525","v":0},{"$f":"[1]Infrastructure!T1525","v":0},{"$f":"[1]Infrastructure!W1525","v":0},{"$f":"[1]Infrastructure!W1525","v":0},0,{"$f":"[1]Infrastructure!Z1525","v":0},{"$f":"[1]Infrastructure!Z1525","v":0},0,{"$f":"[1]Infrastructure!AB1525","v":0},{"$f":"[1]Infrastructure!AB1525","v":0},0,{"$f":"[1]Infrastructure!AC1525","v":0},{"$f":"[1]Infrastructure!AD1525","v":0},{"$f":"[1]Infrastructure!AE1525","v":0},{"$f":"[1]Infrastructure!AF1525","v":0},{"$f":"[1]Infrastructure!AG1525","v":0},{"$f":"[1]Infrastructure!AH1525","v":0},0]
[0,null,null,null,null,null,{"$f":"[1]Infrastructure!G1526","v":0},{"$f":"[1]Infrastructure!H1526","v":0},{"$f":"[1]Infrastructure!I1526","v":0},{"$f":"[1]Infrastructure!J1526","v":0},{"$f":"[1]Infrastructure!K1526","v":0},{"$f":"[1]Infrastructure!L1526","v":0},{"$f":"[1]Infrastructure!M1526","v":0},{"$f":"[1]Infrastructure!N1526","v":0},{"$f":"[1]Infrastructure!O1526","v":0},{"$f":"[1]Infrastructure!Q1526","v":0},{"$f":"[1]Infrastructure!R1526","v":0},{"$f":"[1]Infrastructure!T1526","v":0},{"$f":"[1]Infrastructure!W1526","v":0},{"$f":"[1]Infrastructure!W1526","v":0},0,{"$f":"[1]Infrastructure!Z1526","v":0},{"$f":"[1]Infrastructure!Z1526","v":0},0,{"$f":"[1]Infrastructure!AB1526","v":0},{"$f":"[1]Infrastructure!AB1526","v":0},0,{"$f":"[1]Infrastructure!AC1526","v":0},{"$f":"[1]Infrastructure!AD1526","v":0},{"$f":"[1]Infrastructure!AE1526","v":0},{"$f":"[1]Infrastructure!AF1526","v":0},{"$f":"[1]Infrastructure!AG1526","v":0},{"$f":"[1]Infrastructure!AH1526","v":0},0]
[0,null,null,null,null,null,{"$f":"[1]Infrastructure!G1527","v":0},{"$f":"[1]Infrastructure!H1527","v":0},{"$f":"[1]Infrastructure!I1527","v":0},{"$f":"[1]Infrastructure!J1527","v":0},{"$f":"[1]Infrastructure!K1527","v":0},{"$f":"[1]Infrastructure!L1527","v":0},{"$f":"[1]Infrastructure!M1527","v":0},{"$f":"[1]Infrastructure!N1527","v":0},{"$f":"[1]Infrastructure!O1527","v":0},{"$f":"[1]Infrastructure!Q1527","v":0},{"$f":"[1]Infrastructure!R1527","v":0},{"$f":"[1]Infrastructure!T1527","v":0},{"$f":"[1]Infrastructure!W1527","v":0},{"$f":"[1]Infrastructure!W1527","v":0},0,{"$f":"[1]Infrastructure!Z1527","v":0},{"$f":"[1]Infrastructure!Z1527","v":0},0,{"$f":"[1]Infrastructure!AB1527","v":0},{"$f":"[1]Infrastructure!AB1527","v":0},0,{"$f":"[1]Infrastructure!AC1527","v":0},{"$f":"[1]Infrastructure!AD1527","v":0},{"$f":"[1]Infrastructure!AE1527","v":0},{"$f":"[1]Infrastructure!AF1527","v":0},{"$f":"[1]Infrastructure!AG1527","v":0},{"$f":"[1]Infrastructure!AH1527","v":0},0]
[0,null,null,null,null,null,{"$f":"[1]Infrastructure!G1528","v":0},{"$f":"[1]Infrastructure!H1528","v":0},{"$f":"[1]Infrastructure!I1528","v":0},{"$f":"[1]Infrastructure!J1528","v":0},{"$f":"[1]Infrastructure!K1528","v":0},{"$f":"[1]Infrastructure!L1528","v":0},{"$f":"[1]Infrastructure!M1528","v":0},{"$f":"[1]Infrastructure!N1528","v":0},{"$f":"[1]Infrastructure!O1528","v":0},{"$f":"[1]Infrastructure!Q1528","v":0},{"$f":"[1]Infrastructure!R1528","v":0},{"$f":"[1]Infrastructure!T1528","v":0},{"$f":"[1]Infrastructure!W1528","v":0},{"$f":"[1]Infrastructure!W1528","v":0},0,{"$f":"[1]Infrastructure!Z1528","v":0},{"$f":"[1]Infrastructure!Z1528","v":0},0,{"$f":"[1]Infrastructure!AB1528","v":0},{"$f":"[1]Infrastructure!AB1528","v":0},0,{"$f":"[1]Infrastructure!AC1528","v":0},{"$f":"[1]Infrastructure!AD1528","v":0},{"$f":"[1]Infrastructure!AE1528","v":0},{"$f":"[1]Infrastructure!AF1528","v":0},{"$f":"[1]Infrastructure!AG1528","v":0},{"$f":"[1]Infrastructure!AH1528","v":0},0]
[0,null,null,null,null,null,{"$f":"[1]Infrastructure!G1529","v":0},{"$f":"[1]Infrastructure!H1529","v":0},{"$f":"[1]Infrastructure!I1529","v":0},{"$f":"[1]Infrastructure!J1529","v":0},{"$f":"[1]Infrastructure!K1529","v":0},{"$f":"[1]Infrastructure!L1529","v":0},{"$f":"[1]Infrastructure!M1529","v":0},{"$f":"[1]Infrastructure!N1529","v":0},{"$f":"[1]Infrastructure!O1529","v":0},{"$f":"[1]Infrastructure!Q1529","v":0},{"$f":"[1]Infrastructure!R1529","v":0},{"$f":"[1]Infrastructure!T1529","v":0},{"$f":"[1]Infrastructure!W1529","v":0},{"$f":"[1]Infrastructure!W1529","v":0},0,{"$f":"[1]Infrastructure!Z1529","v":0},{"$f":"[1]Infrastructure!Z1529","v":0},0,{"$f":"[1]Infrastructure!AB1529","v":0},{"$f":"[1]Infrastructure!AB1529","v":0},0,{"$f":"[1]Infrastructure!AC1529","v":0},{"$f":"[1]Infrastructure!AD1529","v":0},{"$f":"[1]Infrastructure!AE1529","v":0},{"$f":"[1]Infrastructure!AF1529","v":0},{"$f":"[1]Infrastructure!AG1529","v":0},{"$f":"[1]Infrastructure!AH1529","v":0},0]
[0,null,null,null,null,null,{"$f":"[1]Infrastructure!G1530","v":0},{"$f":"[1]Infrastructure!H1530","v":0},{"$f":"[1]Infrastructure!I1530","v":0},{"$f":"[1]Infrastructure!J1530","v":0},{"$f":"[1]Infrastructure!K1530","v":0},{"$f":"[1]Infrastructure!L1530","v":0},{"$f":"[1]Infrastructure!M1530","v":0},{"$f":"[1]Infrastructure!N1530","v":0},{"$f":"[1]Infrastructure!O1530","v":0},{"$f":"[1]Infrastructure!Q1530","v":0},{"$f":"[1]Infrastructure!R1530","v":0},{"$f":"[1]Infrastructure!T1530","v":0},{"$f":"[1]Infrastructure!W1530","v":0},{"$f":"[1]Infrastructure!W1530","v":0},0,{"$f":"[1]Infrastructure!Z1530","v":0},{"$f":"[1]Infrastructure!Z1530","v":0},0,{"$f":"[1]Infrastructure!AB1530","v":0},{"$f":"[1]Infrastructure!AB1530","v":0},0,{"$f":"[1]Infrastructure!AC1530","v":0},{"$f":"[1]Infrastructure!AD1530","v":0},{"$f":"[1]Infrastructure!AE1530","v":0},{"$f":"[1]Infrastructure!AF1530","v":0},{"$f":"[1]Infrastructure!AG1530","v":0},{"$f":"[1]Infrastructure!AH1530","v":0},0]
[0,null,null,null,null,null,{"$f":"[1]Infrastructure!G1531","v":0},{"$f":"[1]Infrastructure!H1531","v":0},{"$f":"[1]Infrastructure!I1531","v":0},{"$f":"[1]Infrastructure!J1531","v":0},{"$f":"[1]Infrastructure!K1531","v":0},{"$f":"[1]Infrastructure!L1531","v":0},{"$f":"[1]Infrastructure!M1531","v":0},{"$f":"[1]Infrastructure!N1531","v":0},{"$f":"[1]Infrastructure!O1531","v":0},{"$f":"[1]Infrastructure!Q1531","v":0},{"$f":"[1]Infrastructure!R1531","v":0},{"$f":"[1]Infrastructure!T1531","v":0},{"$f":"[1]Infrastructure!W1531","v":0},{"$f":"[1]Infrastructure!W1531","v":0},0,{"$f":"[1]Infrastructure!Z1531","v":0},{"$f":"[1]Infrastructure!Z1531","v":0},0,{"$f":"[1]Infrastructure!AB1531","v":0},{"$f":"[1]Infrastructure!AB1531","v":0},0,{"$f":"[1]Infrastructure!AC1531","v":0},{"$f":"[1]Infrastructure!AD1531","v":0},{"$f":"[1]Infrastructure!AE1531","v":0},{"$f":"[1]Infrastructure!AF1531","v":0},{"$f":"[1]Infrastructure!AG1531","v":0},{"$f":"[1]Infrastructure!AH1531","v":0},0]
[0,null,null,null,null,null,{"$f":"[1]Infrastructure!G1532","v":0},{"$f":"[1]Infrastructure!H1532","v":0},{"$f":"[1]Infrastructure!I1532","v":0},{"$f":"[1]Infrastructure!J1532","v":0},{"$f":"[1]Infrastructure!K1532","v":0},{"$f":"[1]Infrastructure!L1532","v":0},{"$f":"[1]Infrastructure!M1532","v":0},{"$f":"[1]Infrastructure!N1532","v":0},{"$f":"[1]Infrastructure!O1532","v":0},{"$f":"[1]Infrastructure!Q1532","v":0},{"$f":"[1]Infrastructure!R1532","v":0},{"$f":"[1]Infrastructure!T1532","v":0},{"$f":"[1]Infrastructure!W1532","v":0},{"$f":"[1]Infrastructure!W1532","v":0},0,{"$f":"[1]Infrastructure!Z1532","v":0},{"$f":"[1]Infrastructure!Z1532","v":0},0,{"$f":"[1]Infrastructure!AB1532","v":0},{"$f":"[1]Infrastructure!AB1532","v":0},0,{"$f":"[1]Infrastructure!AC1532","v":0},{"$f":"[1]Infrastructure!AD1532","v":0},{"$f":"[1]Infrastructure!AE1532","v":0},{"$f":"[1]Infrastructure!AF1532","v":0},{"$f":"[1]Infrastructure!AG1532","v":0},{"$f":"[1]Infrastructure!AH1532","v":0},0]
[0,null,null,null,null,null,{"$f":"[1]Infrastructure!G1533","v":0},{"$f":"[1]Infrastructure!H1533","v":0},{"$f":"[1]Infrastructure!I1533","v":0},{"$f":"[1]Infrastructure!J1533","v":0},{"$f":"[1]Infrastructure!K1533","v":0},{"$f":"[1]Infrastructure!L1533","v":0},{"$f":"[1]Infrastructure!M1533","v":0},{"$f":"[1]Infrastructure!N1533","v":0},{"$f":"[1]Infrastructure!O1533","v":0},{"$f":"[1]Infrastructure!Q1533","v":0},{"$f":"[1]Infrastructure!R1533","v":0},{"$f":"[1]Infrastructure!T1533","v":0},{"$f":"[1]Infrastructure!W1533","v":0},{"$f":"[1]Infrastructure!W1533","v":0},0,{"$f":"[1]Infrastructure!Z1533","v":0},{"$f":"[1]Infrastructure!Z1533","v":0},0,{"$f":"[1]Infrastructure!AB1533","v":0},{"$f":"[1]Infrastructure!AB1533","v":0},0,{"$f":"[1]Infrastructure!AC1533","v":0},{"$f":"[1]Infrastructure!AD1533","v":0},{"$f":"[1]Infrastructure!AE1533","v":0},{"$f":"[1]Infrastructure!AF1533","v":0},{"$f":"[1]Infrastructure!AG1533","v":0},{"$f":"[1]Infrastructure!AH1533","v":0},0]
[0,null,null,null,null,null,{"$f":"[1]Infrastructure!G1534","v":0},{"$f":"[1]Infrastructure!H1534","v":0},{"$f":"[1]Infrastructure!I1534","v":0},{"$f":"[1]Infrastructure!J1534","v":0},{"$f":"[1]Infrastructure!K1534","v":0},{"$f":"[1]Infrastructure!L1534","v":0},{"$f":"[1]Infrastructure!M1534","v":0},{"$f":"[1]Infrastructure!N1534","v":0},{"$f":"[1]Infrastructure!O1534","v":0},{"$f":"[1]Infrastructure!Q1534","v":0},{"$f":"[1]Infrastructure!R1534","v":0},{"$f":"[1]Infrastructure!T1534","v":0},{"$f":"[1]Infrastructure!W1534","v":0},{"$f":"[1]Infrastructure!W1534","v":0},0,{"$f":"[1]Infrastructure!Z1534","v":0},{"$f":"[1]Infrastructure!Z1534","v":0},0,{"$f":"[1]Infrastructure!AB1534","v":0},{"$f":"[1]Infrastructure!AB1534","v":0},0,{"$f":"[1]Infrastructure!AC1534","v":0},{"$f":"[1]Infrastructure!AD1534","v":0},{"$f":"[1]Infrastructure!AE1534","v":0},{"$f":"[1]Infrastructure!AF1534","v":0},{"$f":"[1]Infrastructure!AG1534","v":0},{"$f":"[1]Infrastructure!AH1534","v":0},0]
[0,null,null,null,null,null,{"$f":"[1]Infrastructure!G1535","v":0},{"$f":"[1]Infrastructure!H1535","v":0},{"$f":"[1]Infrastructure!I1535","v":0},{"$f":"[1]Infrastructure!J1535","v":0},{"$f":"[1]Infrastructure!K1535","v":0},{"$f":"[1]Infrastructure!L1535","v":0},{"$f":"[1]Infrastructure!M1535","v":0},{"$f":"[1]Infrastructure!N1535","v":0},{"$f":"[1]Infrastructure!O1535","v":0},{"$f":"[1]Infrastructure!Q1535","v":0},{"$f":"[1]Infrastructure!R1535","v":0},{"$f":"[1]Infrastructure!T1535","v":0},{"$f":"[1]Infrastructure!W1535","v":0},{"$f":"[1]Infrastructure!W1535","v":0},0,{"$f":"[1]Infrastructure!Z1535","v":0},{"$f":"[1]Infrastructure!Z1535","v":0},0,{"$f":"[1]Infrastructure!AB1535","v":0},{"$f":"[1]Infrastructure!AB1535","v":0},0,{"$f":"[1]Infrastructure!AC1535","v":0},{"$f":"[1]Infrastructure!AD1535","v":0},{"$f":"[1]Infrastructure!AE1535","v":0},{"$f":"[1]Infrastructure!AF1535","v":0},{"$f":"[1]Infrastructure!AG1535","v":0},{"$f":"[1]Infrastructure!AH1535","v":0},0]
[0,null,null,null,null,null,{"$f":"[1]Infrastructure!G1536","v":0},{"$f":"[1]Infrastructure!H1536","v":0},{"$f":"[1]Infrastructure!I1536","v":0},{"$f":"[1]Infrastructure!J1536","v":0},{"$f":"[1]Infrastructure!K1536","v":0},{"$f":"[1]Infrastructure!L1536","v":0},{"$f":"[1]Infrastructure!M1536","v":0},{"$f":"[1]Infrastructure!N1536","v":0},{"$f":"[1]Infrastructure!O1536","v":0},{"$f":"[1]Infrastructure!Q1536","v":0},{"$f":"[1]Infrastructure!R1536","v":0},{"$f":"[1]Infrastructure!T1536","v":0},{"$f":"[1]Infrastructure!W1536","v":0},{"$f":"[1]Infrastructure!W1536","v":0},0,{"$f":"[1]Infrastructure!Z1536","v":0},{"$f":"[1]Infrastructure!Z1536","v":0},0,{"$f":"[1]Infrastructure!AB1536","v":0},{"$f":"[1]Infrastructure!AB1536","v":0},0,{"$f":"[1]Infrastructure!AC1536","v":0},{"$f":"[1]Infrastructure!AD1536","v":0},{"$f":"[1]Infrastructure!AE1536","v":0},{"$f":"[1]Infrastructure!AF1536","v":0},{"$f":"[1]Infrastructure!AG1536","v":0},{"$f":"[1]Infrastructure!AH1536","v":0},0]
[0,null,null,null,null,null,{"$f":"[1]Infrastructure!G1537","v":0},{"$f":"[1]Infrastructure!H1537","v":0},{"$f":"[1]Infrastructure!I1537","v":0},{"$f":"[1]Infrastructure!J1537","v":0},{"$f":"[1]Infrastructure!K1537","v":0},{"$f":"[1]Infrastructure!L1537","v":0},{"$f":"[1]Infrastructure!M1537","v":0},{"$f":"[1]Infrastructure!N1537","v":0},{"$f":"[1]Infrastructure!O1537","v":0},{"$f":"[1]Infrastructure!Q1537","v":0},{"$f":"[1]Infrastructure!R1537","v":0},{"$f":"[1]Infrastructure!T1537","v":0},{"$f":"[1]Infrastructure!W1537","v":0},{"$f":"[1]Infrastructure!W1537","v":0},0,{"$f":"[1]Infrastructure!Z1537","v":0},{"$f":"[1]Infrastructure!Z1537","v":0},0,{"$f":"[1]Infrastructure!AB1537","v":0},{"$f":"[1]Infrastructure!AB1537","v":0},0,{"$f":"[1]Infrastructure!AC1537","v":0},{"$f":"[1]Infrastructure!AD1537","v":0},{"$f":"[1]Infrastructure!AE1537","v":0},{"$f":"[1]Infrastructure!AF1537","v":0},{"$f":"[1]Infrastructure!AG1537","v":0},{"$f":"[1]Infrastructure!AH1537","v":0},0]
[0,null,null,null,null,null,{"$f":"[1]Infrastructure!G1538","v":0},{"$f":"[1]Infrastructure!H1538","v":0},{"$f":"[1]Infrastructure!I1538","v":0},{"$f":"[1]Infrastructure!J1538","v":0},{"$f":"[1]Infrastructure!K1538","v":0},{"$f":"[1]Infrastructure!L1538","v":0},{"$f":"[1]Infrastructure!M1538","v":0},{"$f":"[1]Infrastructure!N1538","v":0},{"$f":"[1]Infrastructure!O1538","v":0},{"$f":"[1]Infrastructure!Q1538","v":0},{"$f":"[1]Infrastructure!R1538","v":0},{"$f":"[1]Infrastructure!T1538","v":0},{"$f":"[1]Infrastructure!W1538","v":0},{"$f":"[1]Infrastructure!W1538","v":0},0,{"$f":"[1]Infrastructure!Z1538","v":0},{"$f":"[1]Infrastructure!Z1538","v":0},0,{"$f":"[1]Infrastructure!AB1538","v":0},{"$f":"[1]Infrastructure!AB1538","v":0},0,{"$f":"[1]Infrastructure!AC1538","v":0},{"$f":"[1]Infrastructure!AD1538","v":0},{"$f":"[1]Infrastructure!AE1538","v":0},{"$f":"[1]Infrastructure!AF1538","v":0},{"$f":"[1]Infrastructure!AG1538","v":0},{"$f":"[1]Infrastructure!AH1538","v":0},0]
[0,null,null,null,null,null,{"$f":"[1]Infrastructure!G1539","v":0},{"$f":"[1]Infrastructure!H1539","v":0},{"$f":"[1]Infrastructure!I1539","v":0},{"$f":"[1]Infrastructure!J1539","v":0},{"$f":"[1]Infrastructure!K1539","v":0},{"$f":"[1]Infrastructure!L1539","v":0},{"$f":"[1]Infrastructure!M1539","v":0},{"$f":"[1]Infrastructure!N1539","v":0},{"$f":"[1]Infrastructure!O1539","v":0},{"$f":"[1]Infrastructure!Q1539","v":0},{"$f":"[1]Infrastructure!R1539","v":0},{"$f":"[1]Infrastructure!T1539","v":0},{"$f":"[1]Infrastructure!W1539","v":0},{"$f":"[1]Infrastructure!W1539","v":0},0,{"$f":"[1]Infrastructure!Z1539","v":0},{"$f":"[1]Infrastructure!Z1539","v":0},0,{"$f":"[1]Infrastructure!AB1539","v":0},{"$f":"[1]Infrastructure!AB1539","v":0},0,{"$f":"[1]Infrastructure!AC1539","v":0},{"$f":"[1]Infrastructure!AD1539","v":0},{"$f":"[1]Infrastructure!AE1539","v":0},{"$f":"[1]Infrastructure!AF1539","v":0},{"$f":"[1]Infrastructure!AG1539","v":0},{"$f":"[1]Infrastructure!AH1539","v":0},0]
[0,null,null,null,null,null,{"$f":"[1]Infrastructure!G1540","v":0},{"$f":"[1]Infrastructure!H1540","v":0},{"$f":"[1]Infrastructure!I1540","v":0},{"$f":"[1]Infrastructure!J1540","v":0},{"$f":"[1]Infrastructure!K1540","v":0},{"$f":"[1]Infrastructure!L1540","v":0},{"$f":"[1]Infrastructure!M1540","v":0},{"$f":"[1]Infrastructure!N1540","v":0},{"$f":"[1]Infrastructure!O1540","v":0},{"$f":"[1]Infrastructure!Q1540","v":0},{"$f":"[1]Infrastructure!R1540","v":0},{"$f":"[1]Infrastructure!T1540","v":0},{"$f":"[1]Infrastructure!W1540","v":0},{"$f":"[1]Infrastructure!W1540","v":0},0,{"$f":"[1]Infrastructure!Z1540","v":0},{"$f":"[1]Infrastructure!Z1540","v":0},0,{"$f":"[1]Infrastructure!AB1540","v":0},{"$f":"[1]Infrastructure!AB1540","v":0},0,{"$f":"[1]Infrastructure!AC1540","v":0},{"$f":"[1]Infrastructure!AD1540","v":0},{"$f":"[1]Infrastructure!AE1540","v":0},{"$f":"[1]Infrastructure!AF1540","v":0},{"$f":"[1]Infrastructure!AG1540","v":0},{"$f":"[1]Infrastructure!AH1540","v":0},0]
[0,null,null,null,null,null,{"$f":"[1]Infrastructure!G1541","v":0},{"$f":"[1]Infrastructure!H1541","v":0},{"$f":"[1]Infrastructure!I1541","v":0},{"$f":"[1]Infrastructure!J1541","v":0},{"$f":"[1]Infrastructure!K1541","v":0},{"$f":"[1]Infrastructure!L1541","v":0},{"$f":"[1]Infrastructure!M1541","v":0},{"$f":"[1]Infrastructure!N1541","v":0},{"$f":"[1]Infrastructure!O1541","v":0},{"$f":"[1]Infrastructure!Q1541","v":0},{"$f":"[1]Infrastructure!R1541","v":0},{"$f":"[1]Infrastructure!T1541","v":0},{"$f":"[1]Infrastructure!W1541","v":0},{"$f":"[1]Infrastructure!W1541","v":0},0,{"$f":"[1]Infrastructure!Z1541","v":0},{"$f":"[1]Infrastructure!Z1541","v":0},0,{"$f":"[1]Infrastructure!AB1541","v":0},{"$f":"[1]Infrastructure!AB1541","v":0},0,{"$f":"[1]Infrastructure!AC1541","v":0},{"$f":"[1]Infrastructure!AD1541","v":0},{"$f":"[1]Infrastructure!AE1541","v":0},{"$f":"[1]Infrastructure!AF1541","v":0},{"$f":"[1]Infrastructure!AG1541","v":0},{"$f":"[1]Infrastructure!AH1541","v":0},0]
[0,null,null,null,null,null,{"$f":"[1]Infrastructure!G1542","v":0},{"$f":"[1]Infrastructure!H1542","v":0},{"$f":"[1]Infrastructure!I1542","v":0},{"$f":"[1]Infrastructure!J1542","v":0},{"$f":"[1]Infrastructure!K1542","v":0},{"$f":"[1]Infrastructure!L1542","v":0},{"$f":"[1]Infrastructure!M1542","v":0},{"$f":"[1]Infrastructure!N1542","v":0},{"$f":"[1]Infrastructure!O1542","v":0},{"$f":"[1]Infrastructure!Q1542","v":0},{"$f":"[1]Infrastructure!R1542","v":0},{"$f":"[1]Infrastructure!T1542","v":0},{"$f":"[1]Infrastructure!W1542","v":0},{"$f":"[1]Infrastructure!W1542","v":0},0,{"$f":"[1]Infrastructure!Z1542","v":0},{"$f":"[1]Infrastructure!Z1542","v":0},0,{"$f":"[1]Infrastructure!AB1542","v":0},{"$f":"[1]Infrastructure!AB1542","v":0},0,{"$f":"[1]Infrastructure!AC1542","v":0},{"$f":"[1]Infrastructure!AD1542","v":0},{"$f":"[1]Infrastructure!AE1542","v":0},{"$f":"[1]Infrastructure!AF1542","v":0},{"$f":"[1]Infrastructure!AG1542","v":0},{"$f":"[1]Infrastructure!AH1542","v":0},0]
[0,null,null,null,null,null,{"$f":"[1]Infrastructure!G1543","v":0},{"$f":"[1]Infrastructure!H1543","v":0},{"$f":"[1]Infrastructure!I1543","v":0},{"$f":"[1]Infrastructure!J1543","v":0},{"$f":"[1]Infrastructure!K1543","v":0},{"$f":"[1]Infrastructure!L1543","v":0},{"$f":"[1]Infrastructure!M1543","v":0},{"$f":"[1]Infrastructure!N1543","v":0},{"$f":"[1]Infrastructure!O1543","v":0},{"$f":"[1]Infrastructure!Q1543","v":0},{"$f":"[1]Infrastructure!R1543","v":0},{"$f":"[1]Infrastructure!T1543","v":0},{"$f":"[1]Infrastructure!W1543","v":0},{"$f":"[1]Infrastructure!W1543","v":0},0,{"$f":"[1]Infrastructure!Z1543","v":0},{"$f":"[1]Infrastructure!Z1543","v":0},0,{"$f":"[1]Infrastructure!AB1543","v":0},{"$f":"[1]Infrastructure!AB1543","v":0},0,{"$f":"[1]Infrastructure!AC1543","v":0},{"$f":"[1]Infrastructure!AD1543","v":0},{"$f":"[1]Infrastructure!AE1543","v":0},{"$f":"[1]Infrastructure!AF1543","v":0},{"$f":"[1]Infrastructure!AG1543","v":0},{"$f":"[1]Infrastructure!AH1543","v":0},0]
[0,null,null,null,null,null,{"$f":"[1]Infrastructure!G1544","v":0},{"$f":"[1]Infrastructure!H1544","v":0},{"$f":"[1]Infrastructure!I1544","v":0},{"$f":"[1]Infrastructure!J1544","v":0},{"$f":"[1]Infrastructure!K1544","v":0},{"$f":"[1]Infrastructure!L1544","v":0},{"$f":"[1]Infrastructure!M1544","v":0},{"$f":"[1]Infrastructure!N1544","v":0},{"$f":"[1]Infrastructure!O1544","v":0},{"$f":"[1]Infrastructure!Q1544","v":0},{"$f":"[1]Infrastructure!R1544","v":0},{"$f":"[1]Infrastructure!T1544","v":0},{"$f":"[1]Infrastructure!W1544","v":0},{"$f":"[1]Infrastructure!W1544","v":0},0,{"$f":"[1]Infrastructure!Z1544","v":0},{"$f":"[1]Infrastructure!Z1544","v":0},0,{"$f":"[1]Infrastructure!AB1544","v":0},{"$f":"[1]Infrastructure!AB1544","v":0},0,{"$f":"[1]Infrastructure!AC1544","v":0},{"$f":"[1]Infrastructure!AD1544","v":0},{"$f":"[1]Infrastructure!AE1544","v":0},{"$f":"[1]Infrastructure!AF1544","v":0},{"$f":"[1]Infrastructure!AG1544","v":0},{"$f":"[1]Infrastructure!AH1544","v":0},0]
[0,null,null,null,null,null,{"$f":"[1]Infrastructure!G1545","v":0},{"$f":"[1]Infrastructure!H1545","v":0},{"$f":"[1]Infrastructure!I1545","v":0},{"$f":"[1]Infrastructure!J1545","v":0},{"$f":"[1]Infrastructure!K1545","v":0},{"$f":"[1]Infrastructure!L1545","v":0},{"$f":"[1]Infrastructure!M1545","v":0},{"$f":"[1]Infrastructure!N1545","v":0},{"$f":"[1]Infrastructure!O1545","v":0},{"$f":"[1]Infrastructure!Q1545","v":0},{"$f":"[1]Infrastructure!R1545","v":0},{"$f":"[1]Infrastructure!T1545","v":0},{"$f":"[1]Infrastructure!W1545","v":0},{"$f":"[1]Infrastructure!W1545","v":0},0,{"$f":"[1]Infrastructure!Z1545","v":0},{"$f":"[1]Infrastructure!Z1545","v":0},0,{"$f":"[1]Infrastructure!AB1545","v":0},{"$f":"[1]Infrastructure!AB1545","v":0},0,{"$f":"[1]Infrastructure!AC1545","v":0},{"$f":"[1]Infrastructure!AD1545","v":0},{"$f":"[1]Infrastructure!AE1545","v":0},{"$f":"[1]Infrastructure!AF1545","v":0},{"$f":"[1]Infrastructure!AG1545","v":0},{"$f":"[1]Infrastructure!AH1545","v":0},0]
[0,null,null,null,null,null,{"$f":"[1]Infrastructure!G1546","v":0},{"$f":"[1]Infrastructure!H1546","v":0},{"$f":"[1]Infrastructure!I1546","v":0},{"$f":"[1]Infrastructure!J1546","v":0},{"$f":"[1]Infrastructure!K1546","v":0},{"$f":"[1]Infrastructure!L1546","v":0},{"$f":"[1]Infrastructure!M1546","v":0},{"$f":"[1]Infrastructure!N1546","v":0},{"$f":"[1]Infrastructure!O1546","v":0},{"$f":"[1]Infrastructure!Q1546","v":0},{"$f":"[1]Infrastructure!R1546","v":0},{"$f":"[1]Infrastructure!T1546","v":0},{"$f":"[1]Infrastructure!W1546","v":0},{"$f":"[1]Infrastructure!W1546","v":0},0,{"$f":"[1]Infrastructure!Z1546","v":0},{"$f":"[1]Infrastructure!Z1546","v":0},0,{"$f":"[1]Infrastructure!AB1546","v":0},{"$f":"[1]Infrastructure!AB1546","v":0},0,{"$f":"[1]Infrastructure!AC1546","v":0},{"$f":"[1]Infrastructure!AD1546","v":0},{"$f":"[1]Infrastructure!AE1546","v":0},{"$f":"[1]Infrastructure!AF1546","v":0},{"$f":"[1]Infrastructure!AG1546","v":0},{"$f":"[1]Infrastructure!AH1546","v":0},0]
[0,null,null,null,null,null,{"$f":"[1]Infrastructure!G1547","v":0},{"$f":"[1]Infrastructure!H1547","v":0},{"$f":"[1]Infrastructure!I1547","v":0},{"$f":"[1]Infrastructure!J1547","v":0},{"$f":"[1]Infrastructure!K1547","v":0},{"$f":"[1]Infrastructure!L1547","v":0},{"$f":"[1]Infrastructure!M1547","v":0},{"$f":"[1]Infrastructure!N1547","v":0},{"$f":"[1]Infrastructure!O1547","v":0},{"$f":"[1]Infrastructure!Q1547","v":0},{"$f":"[1]Infrastructure!R1547","v":0},{"$f":"[1]Infrastructure!T1547","v":0},{"$f":"[1]Infrastructure!W1547","v":0},{"$f":"[1]Infrastructure!W1547","v":0},0,{"$f":"[1]Infrastructure!Z1547","v":0},{"$f":"[1]Infrastructure!Z1547","v":0},0,{"$f":"[1]Infrastructure!AB1547","v":0},{"$f":"[1]Infrastructure!AB1547","v":0},0,{"$f":"[1]Infrastructure!AC1547","v":0},{"$f":"[1]Infrastructure!AD1547","v":0},{"$f":"[1]Infrastructure!AE1547","v":0},{"$f":"[1]Infrastructure!AF1547","v":0},{"$f":"[1]Infrastructure!AG1547","v":0},{"$f":"[1]Infrastructure!AH1547","v":0},0]
[{"$f":"IF(SUM(O1548:AH1548),1,0)","v":0},null,null,null,null,null,{"$f":"[1]Infrastructure!G1548","v":0},{"$f":"[1]Infrastructure!H1548","v":0},{"$f":"[1]Infrastructure!I1548","v":0},{"$f":"[1]Infrastructure!J1548","v":0},{"$f":"[1]Infrastructure!K1548","v":0},{"$f":"[1]Infrastructure!L1548","v":0},{"$f":"[1]Infrastructure!M1548","v":0},{"$f":"[1]Infrastructure!N1548","v":0},{"$f":"[1]Infrastructure!O1548","v":0},{"$f":"[1]Infrastructure!Q1548","v":0},{"$f":"[1]Infrastructure!R1548","v":0},{"$f":"[1]Infrastructure!T1548","v":0},{"$f":"[1]Infrastructure!W1548","v":0},{"$f":"[1]Infrastructure!W1548","v":0},0,{"$f":"[1]Infrastructure!Z1548","v":0},{"$f":"[1]Infrastructure!Z1548","v":0},0,{"$f":"[1]Infrastructure!AB1548","v":0},{"$f":"[1]Infrastructure!AB1548","v":0},0,{"$f":"[1]Infrastructure!AC1548","v":0},{"$f":"[1]Infrastructure!AD1548","v":0},{"$f":"[1]Infrastructure!AE1548","v":0},{"$f":"[1]Infrastructure!AF1548","v":0},{"$f":"[1]Infrastructure!AG1548","v":0},{"$f":"[1]Infrastructure!AH1548","v":0},0]
[0,null,null,null,null,null,{"$f":"[1]Infrastructure!G1549","v":0},{"$f":"[1]Infrastructure!H1549","v":0},{"$f":"[1]Infrastructure!I1549","v":0},{"$f":"[1]Infrastructure!J1549","v":0},{"$f":"[1]Infrastructure!K1549","v":0},{"$f":"[1]Infrastructure!L1549","v":0},{"$f":"[1]Infrastructure!M1549","v":0},{"$f":"[1]Infrastructure!N1549","v":0},{"$f":"[1]Infrastructure!O1549","v":0},{"$f":"[1]Infrastructure!Q1549","v":0},{"$f":"[1]Infrastructure!R1549","v":0},{"$f":"[1]Infrastructure!T1549","v":0},{"$f":"[1]Infrastructure!W1549","v":0},{"$f":"[1]Infrastructure!W1549","v":0},0,{"$f":"[1]Infrastructure!Z1549","v":0},{"$f":"[1]Infrastructure!Z1549","v":0},0,{"$f":"[1]Infrastructure!AB1549","v":0},{"$f":"[1]Infrastructure!AB1549","v":0},0,{"$f":"[1]Infrastructure!AC1549","v":0},{"$f":"[1]Infrastructure!AD1549","v":0},{"$f":"[1]Infrastructure!AE1549","v":0},{"$f":"[1]Infrastructure!AF1549","v":0},{"$f":"[1]Infrastructure!AG1549","v":0},{"$f":"[1]Infrastructure!AH1549","v":0},0]
[0,null,null,null,null,null,{"$f":"[1]Infrastructure!G1550","v":0},{"$f":"[1]Infrastructure!H1550","v":0},{"$f":"[1]Infrastructure!I1550","v":0},{"$f":"[1]Infrastructure!J1550","v":0},{"$f":"[1]Infrastructure!K1550","v":0},{"$f":"[1]Infrastructure!L1550","v":0},{"$f":"[1]Infrastructure!M1550","v":0},{"$f":"[1]Infrastructure!N1550","v":0},{"$f":"[1]Infrastructure!O1550","v":0},{"$f":"[1]Infrastructure!Q1550","v":0},{"$f":"[1]Infrastructure!R1550","v":0},{"$f":"[1]Infrastructure!T1550","v":0},{"$f":"[1]Infrastructure!W1550","v":0},{"$f":"[1]Infrastructure!W1550","v":0},0,{"$f":"[1]Infrastructure!Z1550","v":0},{"$f":"[1]Infrastructure!Z1550","v":0},0,{"$f":"[1]Infrastructure!AB1550","v":0},{"$f":"[1]Infrastructure!AB1550","v":0},0,{"$f":"[1]Infrastructure!AC1550","v":0},{"$f":"[1]Infrastructure!AD1550","v":0},{"$f":"[1]Infrastructure!AE1550","v":0},{"$f":"[1]Infrastructure!AF1550","v":0},{"$f":"[1]Infrastructure!AG1550","v":0},{"$f":"[1]Infrastructure!AH1550","v":0},0]
[0,null,null,null,null,null,{"$f":"[1]Infrastructure!G1551","v":0},{"$f":"[1]Infrastructure!H1551","v":0},{"$f":"[1]Infrastructure!I1551","v":0},{"$f":"[1]Infrastructure!J1551","v":0},{"$f":"[1]Infrastructure!K1551","v":0},{"$f":"[1]Infrastructure!L1551","v":0},{"$f":"[1]Infrastructure!M1551","v":0},{"$f":"[1]Infrastructure!N1551","v":0},{"$f":"[1]Infrastructure!O1551","v":0},{"$f":"[1]Infrastructure!Q1551","v":0},{"$f":"[1]Infrastructure!R1551","v":0},{"$f":"[1]Infrastructure!T1551","v":0},{"$f":"[1]Infrastructure!W1551","v":0},{"$f":"[1]Infrastructure!W1551","v":0},0,{"$f":"[1]Infrastructure!Z1551","v":0},{"$f":"[1]Infrastructure!Z1551","v":0},0,{"$f":"[1]Infrastructure!AB1551","v":0},{"$f":"[1]Infrastructure!AB1551","v":0},0,{"$f":"[1]Infrastructure!AC1551","v":0},{"$f":"[1]Infrastructure!AD1551","v":0},{"$f":"[1]Infrastructure!AE1551","v":0},{"$f":"[1]Infrastructure!AF1551","v":0},{"$f":"[1]Infrastructure!AG1551","v":0},{"$f":"[1]Infrastructure!AH1551","v":0},0]
[0,null,null,null,null,null,{"$f":"[1]Infrastructure!G1552","v":0},{"$f":"[1]Infrastructure!H1552","v":0},{"$f":"[1]Infrastructure!I1552","v":0},{"$f":"[1]Infrastructure!J1552","v":0},{"$f":"[1]Infrastructure!K1552","v":0},{"$f":"[1]Infrastructure!L1552","v":0},{"$f":"[1]Infrastructure!M1552","v":0},{"$f":"[1]Infrastructure!N1552","v":0},{"$f":"[1]Infrastructure!O1552","v":0},{"$f":"[1]Infrastructure!Q1552","v":0},{"$f":"[1]Infrastructure!R1552","v":0},{"$f":"[1]Infrastructure!T1552","v":0},{"$f":"[1]Infrastructure!W1552","v":0},{"$f":"[1]Infrastructure!W1552","v":0},0,{"$f":"[1]Infrastructure!Z1552","v":0},{"$f":"[1]Infrastructure!Z1552","v":0},0,{"$f":"[1]Infrastructure!AB1552","v":0},{"$f":"[1]Infrastructure!AB1552","v":0},0,{"$f":"[1]Infrastructure!AC1552","v":0},{"$f":"[1]Infrastructure!AD1552","v":0},{"$f":"[1]Infrastructure!AE1552","v":0},{"$f":"[1]Infrastructure!AF1552","v":0},{"$f":"[1]Infrastructure!AG1552","v":0},{"$f":"[1]Infrastructure!AH1552","v":0},0]
[0,null,null,null,null,null,{"$f":"[1]Infrastructure!G1553","v":0},{"$f":"[1]Infrastructure!H1553","v":0},{"$f":"[1]Infrastructure!I1553","v":0},{"$f":"[1]Infrastructure!J1553","v":0},{"$f":"[1]Infrastructure!K1553","v":0},{"$f":"[1]Infrastructure!L1553","v":0},{"$f":"[1]Infrastructure!M1553","v":0},{"$f":"[1]Infrastructure!N1553","v":0},{"$f":"[1]Infrastructure!O1553","v":0},{"$f":"[1]Infrastructure!Q1553","v":0},{"$f":"[1]Infrastructure!R1553","v":0},{"$f":"[1]Infrastructure!T1553","v":0},{"$f":"[1]Infrastructure!W1553","v":0},{"$f":"[1]Infrastructure!W1553","v":0},0,{"$f":"[1]Infrastructure!Z1553","v":0},{"$f":"[1]Infrastructure!Z1553","v":0},0,{"$f":"[1]Infrastructure!AB1553","v":0},{"$f":"[1]Infrastructure!AB1553","v":0},0,{"$f":"[1]Infrastructure!AC1553","v":0},{"$f":"[1]Infrastructure!AD1553","v":0},{"$f":"[1]Infrastructure!AE1553","v":0},{"$f":"[1]Infrastructure!AF1553","v":0},{"$f":"[1]Infrastructure!AG1553","v":0},{"$f":"[1]Infrastructure!AH1553","v":0},0]
[0,null,null,null,null,null,{"$f":"[1]Infrastructure!G1554","v":0},{"$f":"[1]Infrastructure!H1554","v":0},{"$f":"[1]Infrastructure!I1554","v":0},{"$f":"[1]Infrastructure!J1554","v":0},{"$f":"[1]Infrastructure!K1554","v":0},{"$f":"[1]Infrastructure!L1554","v":0},{"$f":"[1]Infrastructure!M1554","v":0},{"$f":"[1]Infrastructure!N1554","v":0},{"$f":"[1]Infrastructure!O1554","v":0},{"$f":"[1]Infrastructure!Q1554","v":0},{"$f":"[1]Infrastructure!R1554","v":0},{"$f":"[1]Infrastructure!T1554","v":0},{"$f":"[1]Infrastructure!W1554","v":0},{"$f":"[1]Infrastructure!W1554","v":0},0,{"$f":"[1]Infrastructure!Z1554","v":0},{"$f":"[1]Infrastructure!Z1554","v":0},0,{"$f":"[1]Infrastructure!AB1554","v":0},{"$f":"[1]Infrastructure!AB1554","v":0},0,{"$f":"[1]Infrastructure!AC1554","v":0},{"$f":"[1]Infrastructure!AD1554","v":0},{"$f":"[1]Infrastructure!AE1554","v":0},{"$f":"[1]Infrastructure!AF1554","v":0},{"$f":"[1]Infrastructure!AG1554","v":0},{"$f":"[1]Infrastructure!AH1554","v":0},0]
[0,null,null,null,null,null,{"$f":"[1]Infrastructure!G1555","v":0},{"$f":"[1]Infrastructure!H1555","v":0},{"$f":"[1]Infrastructure!I1555","v":0},{"$f":"[1]Infrastructure!J1555","v":0},{"$f":"[1]Infrastructure!K1555","v":0},{"$f":"[1]Infrastructure!L1555","v":0},{"$f":"[1]Infrastructure!M1555","v":0},{"$f":"[1]Infrastructure!N1555","v":0},{"$f":"[1]Infrastructure!O1555","v":0},{"$f":"[1]Infrastructure!Q1555","v":0},{"$f":"[1]Infrastructure!R1555","v":0},{"$f":"[1]Infrastructure!T1555","v":0},{"$f":"[1]Infrastructure!W1555","v":0},{"$f":"[1]Infrastructure!W1555","v":0},0,{"$f":"[1]Infrastructure!Z1555","v":0},{"$f":"[1]Infrastructure!Z1555","v":0},0,{"$f":"[1]Infrastructure!AB1555","v":0},{"$f":"[1]Infrastructure!AB1555","v":0},0,{"$f":"[1]Infrastructure!AC1555","v":0},{"$f":"[1]Infrastructure!AD1555","v":0},{"$f":"[1]Infrastructure!AE1555","v":0},{"$f":"[1]Infrastructure!AF1555","v":0},{"$f":"[1]Infrastructure!AG1555","v":0},{"$f":"[1]Infrastructure!AH1555","v":0},0]
[0,null,null,null,null,null,{"$f":"[1]Infrastructure!G1556","v":0},{"$f":"[1]Infrastructure!H1556","v":0},{"$f":"[1]Infrastructure!I1556","v":0},{"$f":"[1]Infrastructure!J1556","v":0},{"$f":"[1]Infrastructure!K1556","v":0},{"$f":"[1]Infrastructure!L1556","v":0},{"$f":"[1]Infrastructure!M1556","v":0},{"$f":"[1]Infrastructure!N1556","v":0},{"$f":"[1]Infrastructure!O1556","v":0},{"$f":"[1]Infrastructure!Q1556","v":0},{"$f":"[1]Infrastructure!R1556","v":0},{"$f":"[1]Infrastructure!T1556","v":0},{"$f":"[1]Infrastructure!W1556","v":0},{"$f":"[1]Infrastructure!W1556","v":0},0,{"$f":"[1]Infrastructure!Z1556","v":0},{"$f":"[1]Infrastructure!Z1556","v":0},0,{"$f":"[1]Infrastructure!AB1556","v":0},{"$f":"[1]Infrastructure!AB1556","v":0},0,{"$f":"[1]Infrastructure!AC1556","v":0},{"$f":"[1]Infrastructure!AD1556","v":0},{"$f":"[1]Infrastructure!AE1556","v":0},{"$f":"[1]Infrastructure!AF1556","v":0},{"$f":"[1]Infrastructure!AG1556","v":0},{"$f":"[1]Infrastructure!AH1556","v":0},0]
[0,null,null,null,null,null,{"$f":"[1]Infrastructure!G1557","v":0},{"$f":"[1]Infrastructure!H1557","v":0},{"$f":"[1]Infrastructure!I1557","v":0},{"$f":"[1]Infrastructure!J1557","v":0},{"$f":"[1]Infrastructure!K1557","v":0},{"$f":"[1]Infrastructure!L1557","v":0},{"$f":"[1]Infrastructure!M1557","v":0},{"$f":"[1]Infrastructure!N1557","v":0},{"$f":"[1]Infrastructure!O1557","v":0},{"$f":"[1]Infrastructure!Q1557","v":0},{"$f":"[1]Infrastructure!R1557","v":0},{"$f":"[1]Infrastructure!T1557","v":0},{"$f":"[1]Infrastructure!W1557","v":0},{"$f":"[1]Infrastructure!W1557","v":0},0,{"$f":"[1]Infrastructure!Z1557","v":0},{"$f":"[1]Infrastructure!Z1557","v":0},0,{"$f":"[1]Infrastructure!AB1557","v":0},{"$f":"[1]Infrastructure!AB1557","v":0},0,{"$f":"[1]Infrastructure!AC1557","v":0},{"$f":"[1]Infrastructure!AD1557","v":0},{"$f":"[1]Infrastructure!AE1557","v":0},{"$f":"[1]Infrastructure!AF1557","v":0},{"$f":"[1]Infrastructure!AG1557","v":0},{"$f":"[1]Infrastructure!AH1557","v":0},0]
[0,null,null,null,null,null,{"$f":"[1]Infrastructure!G1558","v":0},{"$f":"[1]Infrastructure!H1558","v":0},{"$f":"[1]Infrastructure!I1558","v":0},{"$f":"[1]Infrastructure!J1558","v":0},{"$f":"[1]Infrastructure!K1558","v":0},{"$f":"[1]Infrastructure!L1558","v":0},{"$f":"[1]Infrastructure!M1558","v":0},{"$f":"[1]Infrastructure!N1558","v":0},{"$f":"[1]Infrastructure!O1558","v":0},{"$f":"[1]Infrastructure!Q1558","v":0},{"$f":"[1]Infrastructure!R1558","v":0},{"$f":"[1]Infrastructure!T1558","v":0},{"$f":"[1]Infrastructure!W1558","v":0},{"$f":"[1]Infrastructure!W1558","v":0},0,{"$f":"[1]Infrastructure!Z1558","v":0},{"$f":"[1]Infrastructure!Z1558","v":0},0,{"$f":"[1]Infrastructure!AB1558","v":0},{"$f":"[1]Infrastructure!AB1558","v":0},0,{"$f":"[1]Infrastructure!AC1558","v":0},{"$f":"[1]Infrastructure!AD1558","v":0},{"$f":"[1]Infrastructure!AE1558","v":0},{"$f":"[1]Infrastructure!AF1558","v":0},{"$f":"[1]Infrastructure!AG1558","v":0},{"$f":"[1]Infrastructure!AH1558","v":0},0]
[0,null,null,null,null,null,{"$f":"[1]Infrastructure!G1559","v":0},{"$f":"[1]Infrastructure!H1559","v":0},{"$f":"[1]Infrastructure!I1559","v":0},{"$f":"[1]Infrastructure!J1559","v":0},{"$f":"[1]Infrastructure!K1559","v":0},{"$f":"[1]Infrastructure!L1559","v":0},{"$f":"[1]Infrastructure!M1559","v":0},{"$f":"[1]Infrastructure!N1559","v":0},{"$f":"[1]Infrastructure!O1559","v":0},{"$f":"[1]Infrastructure!Q1559","v":0},{"$f":"[1]Infrastructure!R1559","v":0},{"$f":"[1]Infrastructure!T1559","v":0},{"$f":"[1]Infrastructure!W1559","v":0},{"$f":"[1]Infrastructure!W1559","v":0},0,{"$f":"[1]Infrastructure!Z1559","v":0},{"$f":"[1]Infrastructure!Z1559","v":0},0,{"$f":"[1]Infrastructure!AB1559","v":0},{"$f":"[1]Infrastructure!AB1559","v":0},0,{"$f":"[1]Infrastructure!AC1559","v":0},{"$f":"[1]Infrastructure!AD1559","v":0},{"$f":"[1]Infrastructure!AE1559","v":0},{"$f":"[1]Infrastructure!AF1559","v":0},{"$f":"[1]Infrastructure!AG1559","v":0},{"$f":"[1]Infrastructure!AH1559","v":0},0]
[0,null,null,null,null,null,{"$f":"[1]Infrastructure!G1560","v":0},{"$f":"[1]Infrastructure!H1560","v":0},{"$f":"[1]Infrastructure!I1560","v":0},{"$f":"[1]Infrastructure!J1560","v":0},{"$f":"[1]Infrastructure!K1560","v":0},{"$f":"[1]Infrastructure!L1560","v":0},{"$f":"[1]Infrastructure!M1560","v":0},{"$f":"[1]Infrastructure!N1560","v":0},{"$f":"[1]Infrastructure!O1560","v":0},{"$f":"[1]Infrastructure!Q1560","v":0},{"$f":"[1]Infrastructure!R1560","v":0},{"$f":"[1]Infrastructure!T1560","v":0},{"$f":"[1]Infrastructure!W1560","v":0},{"$f":"[1]Infrastructure!W1560","v":0},0,{"$f":"[1]Infrastructure!Z1560","v":0},{"$f":"[1]Infrastructure!Z1560","v":0},0,{"$f":"[1]Infrastructure!AB1560","v":0},{"$f":"[1]Infrastructure!AB1560","v":0},0,{"$f":"[1]Infrastructure!AC1560","v":0},{"$f":"[1]Infrastructure!AD1560","v":0},{"$f":"[1]Infrastructure!AE1560","v":0},{"$f":"[1]Infrastructure!AF1560","v":0},{"$f":"[1]Infrastructure!AG1560","v":0},{"$f":"[1]Infrastructure!AH1560","v":0},0]
[0,null,null,null,null,null,{"$f":"[1]Infrastructure!G1561","v":0},{"$f":"[1]Infrastructure!H1561","v":0},{"$f":"[1]Infrastructure!I1561","v":0},{"$f":"[1]Infrastructure!J1561","v":0},{"$f":"[1]Infrastructure!K1561","v":0},{"$f":"[1]Infrastructure!L1561","v":0},{"$f":"[1]Infrastructure!M1561","v":0},{"$f":"[1]Infrastructure!N1561","v":0},{"$f":"[1]Infrastructure!O1561","v":0},{"$f":"[1]Infrastructure!Q1561","v":0},{"$f":"[1]Infrastructure!R1561","v":0},{"$f":"[1]Infrastructure!T1561","v":0},{"$f":"[1]Infrastructure!W1561","v":0},{"$f":"[1]Infrastructure!W1561","v":0},0,{"$f":"[1]Infrastructure!Z1561","v":0},{"$f":"[1]Infrastructure!Z1561","v":0},0,{"$f":"[1]Infrastructure!AB1561","v":0},{"$f":"[1]Infrastructure!AB1561","v":0},0,{"$f":"[1]Infrastructure!AC1561","v":0},{"$f":"[1]Infrastructure!AD1561","v":0},{"$f":"[1]Infrastructure!AE1561","v":0},{"$f":"[1]Infrastructure!AF1561","v":0},{"$f":"[1]Infrastructure!AG1561","v":0},{"$f":"[1]Infrastructure!AH1561","v":0},0]
[0,null,null,null,null,null,{"$f":"[1]Infrastructure!G1562","v":0},{"$f":"[1]Infrastructure!H1562","v":0},{"$f":"[1]Infrastructure!I1562","v":0},{"$f":"[1]Infrastructure!J1562","v":0},{"$f":"[1]Infrastructure!K1562","v":0},{"$f":"[1]Infrastructure!L1562","v":0},{"$f":"[1]Infrastructure!M1562","v":0},{"$f":"[1]Infrastructure!N1562","v":0},{"$f":"[1]Infrastructure!O1562","v":0},{"$f":"[1]Infrastructure!Q1562","v":0},{"$f":"[1]Infrastructure!R1562","v":0},{"$f":"[1]Infrastructure!T1562","v":0},{"$f":"[1]Infrastructure!W1562","v":0},{"$f":"[1]Infrastructure!W1562","v":0},0,{"$f":"[1]Infrastructure!Z1562","v":0},{"$f":"[1]Infrastructure!Z1562","v":0},0,{"$f":"[1]Infrastructure!AB1562","v":0},{"$f":"[1]Infrastructure!AB1562","v":0},0,{"$f":"[1]Infrastructure!AC1562","v":0},{"$f":"[1]Infrastructure!AD1562","v":0},{"$f":"[1]Infrastructure!AE1562","v":0},{"$f":"[1]Infrastructure!AF1562","v":0},{"$f":"[1]Infrastructure!AG1562","v":0},{"$f":"[1]Infrastructure!AH1562","v":0},0]
[0,null,null,null,null,null,{"$f":"[1]Infrastructure!G1563","v":0},{"$f":"[1]Infrastructure!H1563","v":0},{"$f":"[1]Infrastructure!I1563","v":0},{"$f":"[1]Infrastructure!J1563","v":0},{"$f":"[1]Infrastructure!K1563","v":0},{"$f":"[1]Infrastructure!L1563","v":0},{"$f":"[1]Infrastructure!M1563","v":0},{"$f":"[1]Infrastructure!N1563","v":0},{"$f":"[1]Infrastructure!O1563","v":0},{"$f":"[1]Infrastructure!Q1563","v":0},{"$f":"[1]Infrastructure!R1563","v":0},{"$f":"[1]Infrastructure!T1563","v":0},{"$f":"[1]Infrastructure!W1563","v":0},{"$f":"[1]Infrastructure!W1563","v":0},0,{"$f":"[1]Infrastructure!Z1563","v":0},{"$f":"[1]Infrastructure!Z1563","v":0},0,{"$f":"[1]Infrastructure!AB1563","v":0},{"$f":"[1]Infrastructure!AB1563","v":0},0,{"$f":"[1]Infrastructure!AC1563","v":0},{"$f":"[1]Infrastructure!AD1563","v":0},{"$f":"[1]Infrastructure!AE1563","v":0},{"$f":"[1]Infrastructure!AF1563","v":0},{"$f":"[1]Infrastructure!AG1563","v":0},{"$f":"[1]Infrastructure!AH1563","v":0},0]
[0,null,null,null,null,null,{"$f":"[1]Infrastructure!G1564","v":0},{"$f":"[1]Infrastructure!H1564","v":0},{"$f":"[1]Infrastructure!I1564","v":0},{"$f":"[1]Infrastructure!J1564","v":0},{"$f":"[1]Infrastructure!K1564","v":0},{"$f":"[1]Infrastructure!L1564","v":0},{"$f":"[1]Infrastructure!M1564","v":0},{"$f":"[1]Infrastructure!N1564","v":0},{"$f":"[1]Infrastructure!O1564","v":0},{"$f":"[1]Infrastructure!Q1564","v":0},{"$f":"[1]Infrastructure!R1564","v":0},{"$f":"[1]Infrastructure!T1564","v":0},{"$f":"[1]Infrastructure!W1564","v":0},{"$f":"[1]Infrastructure!W1564","v":0},0,{"$f":"[1]Infrastructure!Z1564","v":0},{"$f":"[1]Infrastructure!Z1564","v":0},0,{"$f":"[1]Infrastructure!AB1564","v":0},{"$f":"[1]Infrastructure!AB1564","v":0},0,{"$f":"[1]Infrastructure!AC1564","v":0},{"$f":"[1]Infrastructure!AD1564","v":0},{"$f":"[1]Infrastructure!AE1564","v":0},{"$f":"[1]Infrastructure!AF1564","v":0},{"$f":"[1]Infrastructure!AG1564","v":0},{"$f":"[1]Infrastructure!AH1564","v":0},0]
[0,null,null,null,null,null,{"$f":"[1]Infrastructure!G1565","v":0},{"$f":"[1]Infrastructure!H1565","v":0},{"$f":"[1]Infrastructure!I1565","v":0},{"$f":"[1]Infrastructure!J1565","v":0},{"$f":"[1]Infrastructure!K1565","v":0},{"$f":"[1]Infrastructure!L1565","v":0},{"$f":"[1]Infrastructure!M1565","v":0},{"$f":"[1]Infrastructure!N1565","v":0},{"$f":"[1]Infrastructure!O1565","v":0},{"$f":"[1]Infrastructure!Q1565","v":0},{"$f":"[1]Infrastructure!R1565","v":0},{"$f":"[1]Infrastructure!T1565","v":0},{"$f":"[1]Infrastructure!W1565","v":0},{"$f":"[1]Infrastructure!W1565","v":0},0,{"$f":"[1]Infrastructure!Z1565","v":0},{"$f":"[1]Infrastructure!Z1565","v":0},0,{"$f":"[1]Infrastructure!AB1565","v":0},{"$f":"[1]Infrastructure!AB1565","v":0},0,{"$f":"[1]Infrastructure!AC1565","v":0},{"$f":"[1]Infrastructure!AD1565","v":0},{"$f":"[1]Infrastructure!AE1565","v":0},{"$f":"[1]Infrastructure!AF1565","v":0},{"$f":"[1]Infrastructure!AG1565","v":0},{"$f":"[1]Infrastructure!AH1565","v":0},0]
[0,null,null,null,null,null,{"$f":"[1]Infrastructure!G1566","v":0},{"$f":"[1]Infrastructure!H1566","v":0},{"$f":"[1]Infrastructure!I1566","v":0},{"$f":"[1]Infrastructure!J1566","v":0},{"$f":"[1]Infrastructure!K1566","v":0},{"$f":"[1]Infrastructure!L1566","v":0},{"$f":"[1]Infrastructure!M1566","v":0},{"$f":"[1]Infrastructure!N1566","v":0},{"$f":"[1]Infrastructure!O1566","v":0},{"$f":"[1]Infrastructure!Q1566","v":0},{"$f":"[1]Infrastructure!R1566","v":0},{"$f":"[1]Infrastructure!T1566","v":0},{"$f":"[1]Infrastructure!W1566","v":0},{"$f":"[1]Infrastructure!W1566","v":0},0,{"$f":"[1]Infrastructure!Z1566","v":0},{"$f":"[1]Infrastructure!Z1566","v":0},0,{"$f":"[1]Infrastructure!AB1566","v":0},{"$f":"[1]Infrastructure!AB1566","v":0},0,{"$f":"[1]Infrastructure!AC1566","v":0},{"$f":"[1]Infrastructure!AD1566","v":0},{"$f":"[1]Infrastructure!AE1566","v":0},{"$f":"[1]Infrastructure!AF1566","v":0},{"$f":"[1]Infrastructure!AG1566","v":0},{"$f":"[1]Infrastructure!AH1566","v":0},0]
[0,null,null,null,null,null,{"$f":"[1]Infrastructure!G1567","v":0},{"$f":"[1]Infrastructure!H1567","v":0},{"$f":"[1]Infrastructure!I1567","v":0},{"$f":"[1]Infrastructure!J1567","v":0},{"$f":"[1]Infrastructure!K1567","v":0},{"$f":"[1]Infrastructure!L1567","v":0},{"$f":"[1]Infrastructure!M1567","v":0},{"$f":"[1]Infrastructure!N1567","v":0},{"$f":"[1]Infrastructure!O1567","v":0},{"$f":"[1]Infrastructure!Q1567","v":0},{"$f":"[1]Infrastructure!R1567","v":0},{"$f":"[1]Infrastructure!T1567","v":0},{"$f":"[1]Infrastructure!W1567","v":0},{"$f":"[1]Infrastructure!W1567","v":0},0,{"$f":"[1]Infrastructure!Z1567","v":0},{"$f":"[1]Infrastructure!Z1567","v":0},0,{"$f":"[1]Infrastructure!AB1567","v":0},{"$f":"[1]Infrastructure!AB1567","v":0},0,{"$f":"[1]Infrastructure!AC1567","v":0},{"$f":"[1]Infrastructure!AD1567","v":0},{"$f":"[1]Infrastructure!AE1567","v":0},{"$f":"[1]Infrastructure!AF1567","v":0},{"$f":"[1]Infrastructure!AG1567","v":0},{"$f":"[1]Infrastructure!AH1567","v":0},0]
[0,null,null,null,null,null,{"$f":"[1]Infrastructure!G1568","v":0},{"$f":"[1]Infrastructure!H1568","v":0},{"$f":"[1]Infrastructure!I1568","v":0},{"$f":"[1]Infrastructure!J1568","v":0},{"$f":"[1]Infrastructure!K1568","v":0},{"$f":"[1]Infrastructure!L1568","v":0},{"$f":"[1]Infrastructure!M1568","v":0},{"$f":"[1]Infrastructure!N1568","v":0},{"$f":"[1]Infrastructure!O1568","v":0},{"$f":"[1]Infrastructure!Q1568","v":0},{"$f":"[1]Infrastructure!R1568","v":0},{"$f":"[1]Infrastructure!T1568","v":0},{"$f":"[1]Infrastructure!W1568","v":0},{"$f":"[1]Infrastructure!W1568","v":0},0,{"$f":"[1]Infrastructure!Z1568","v":0},{"$f":"[1]Infrastructure!Z1568","v":0},0,{"$f":"[1]Infrastructure!AB1568","v":0},{"$f":"[1]Infrastructure!AB1568","v":0},0,{"$f":"[1]Infrastructure!AC1568","v":0},{"$f":"[1]Infrastructure!AD1568","v":0},{"$f":"[1]Infrastructure!AE1568","v":0},{"$f":"[1]Infrastructure!AF1568","v":0},{"$f":"[1]Infrastructure!AG1568","v":0},{"$f":"[1]Infrastructure!AH1568","v":0},0]
[0,null,null,null,null,null,{"$f":"[1]Infrastructure!G1569","v":0},{"$f":"[1]Infrastructure!H1569","v":0},{"$f":"[1]Infrastructure!I1569","v":0},{"$f":"[1]Infrastructure!J1569","v":0},{"$f":"[1]Infrastructure!K1569","v":0},{"$f":"[1]Infrastructure!L1569","v":0},{"$f":"[1]Infrastructure!M1569","v":0},{"$f":"[1]Infrastructure!N1569","v":0},{"$f":"[1]Infrastructure!O1569","v":0},{"$f":"[1]Infrastructure!Q1569","v":0},{"$f":"[1]Infrastructure!R1569","v":0},{"$f":"[1]Infrastructure!T1569","v":0},{"$f":"[1]Infrastructure!W1569","v":0},{"$f":"[1]Infrastructure!W1569","v":0},0,{"$f":"[1]Infrastructure!Z1569","v":0},{"$f":"[1]Infrastructure!Z1569","v":0},0,{"$f":"[1]Infrastructure!AB1569","v":0},{"$f":"[1]Infrastructure!AB1569","v":0},0,{"$f":"[1]Infrastructure!AC1569","v":0},{"$f":"[1]Infrastructure!AD1569","v":0},{"$f":"[1]Infrastructure!AE1569","v":0},{"$f":"[1]Infrastructure!AF1569","v":0},{"$f":"[1]Infrastructure!AG1569","v":0},{"$f":"[1]Infrastructure!AH1569","v":0},0]
[0,null,null,null,null,null,{"$f":"[1]Infrastructure!G1570","v":0},{"$f":"[1]Infrastructure!H1570","v":0},{"$f":"[1]Infrastructure!I1570","v":0},{"$f":"[1]Infrastructure!J1570","v":0},{"$f":"[1]Infrastructure!K1570","v":0},{"$f":"[1]Infrastructure!L1570","v":0},{"$f":"[1]Infrastructure!M1570","v":0},{"$f":"[1]Infrastructure!N1570","v":0},{"$f":"[1]Infrastructure!O1570","v":0},{"$f":"[1]Infrastructure!Q1570","v":0},{"$f":"[1]Infrastructure!R1570","v":0},{"$f":"[1]Infrastructure!T1570","v":0},{"$f":"[1]Infrastructure!W1570","v":0},{"$f":"[1]Infrastructure!W1570","v":0},0,{"$f":"[1]Infrastructure!Z1570","v":0},{"$f":"[1]Infrastructure!Z1570","v":0},0,{"$f":"[1]Infrastructure!AB1570","v":0},{"$f":"[1]Infrastructure!AB1570","v":0},0,{"$f":"[1]Infrastructure!AC1570","v":0},{"$f":"[1]Infrastructure!AD1570","v":0},{"$f":"[1]Infrastructure!AE1570","v":0},{"$f":"[1]Infrastructure!AF1570","v":0},{"$f":"[1]Infrastructure!AG1570","v":0},{"$f":"[1]Infrastructure!AH1570","v":0},0]
[0,null,null,null,null,null,{"$f":"[1]Infrastructure!G1571","v":0},{"$f":"[1]Infrastructure!H1571","v":0},{"$f":"[1]Infrastructure!I1571","v":0},{"$f":"[1]Infrastructure!J1571","v":0},{"$f":"[1]Infrastructure!K1571","v":0},{"$f":"[1]Infrastructure!L1571","v":0},{"$f":"[1]Infrastructure!M1571","v":0},{"$f":"[1]Infrastructure!N1571","v":0},{"$f":"[1]Infrastructure!O1571","v":0},{"$f":"[1]Infrastructure!Q1571","v":0},{"$f":"[1]Infrastructure!R1571","v":0},{"$f":"[1]Infrastructure!T1571","v":0},{"$f":"[1]Infrastructure!W1571","v":0},{"$f":"[1]Infrastructure!W1571","v":0},0,{"$f":"[1]Infrastructure!Z1571","v":0},{"$f":"[1]Infrastructure!Z1571","v":0},0,{"$f":"[1]Infrastructure!AB1571","v":0},{"$f":"[1]Infrastructure!AB1571","v":0},0,{"$f":"[1]Infrastructure!AC1571","v":0},{"$f":"[1]Infrastructure!AD1571","v":0},{"$f":"[1]Infrastructure!AE1571","v":0},{"$f":"[1]Infrastructure!AF1571","v":0},{"$f":"[1]Infrastructure!AG1571","v":0},{"$f":"[1]Infrastructure!AH1571","v":0},0]
[0,null,null,null,null,null,{"$f":"[1]Infrastructure!G1572","v":0},{"$f":"[1]Infrastructure!H1572","v":0},{"$f":"[1]Infrastructure!I1572","v":0},{"$f":"[1]Infrastructure!J1572","v":0},{"$f":"[1]Infrastructure!K1572","v":0},{"$f":"[1]Infrastructure!L1572","v":0},{"$f":"[1]Infrastructure!M1572","v":0},{"$f":"[1]Infrastructure!N1572","v":0},{"$f":"[1]Infrastructure!O1572","v":0},{"$f":"[1]Infrastructure!Q1572","v":0},{"$f":"[1]Infrastructure!R1572","v":0},{"$f":"[1]Infrastructure!T1572","v":0},{"$f":"[1]Infrastructure!W1572","v":0},{"$f":"[1]Infrastructure!W1572","v":0},0,{"$f":"[1]Infrastructure!Z1572","v":0},{"$f":"[1]Infrastructure!Z1572","v":0},0,{"$f":"[1]Infrastructure!AB1572","v":0},{"$f":"[1]Infrastructure!AB1572","v":0},0,{"$f":"[1]Infrastructure!AC1572","v":0},{"$f":"[1]Infrastructure!AD1572","v":0},{"$f":"[1]Infrastructure!AE1572","v":0},{"$f":"[1]Infrastructure!AF1572","v":0},{"$f":"[1]Infrastructure!AG1572","v":0},{"$f":"[1]Infrastructure!AH1572","v":0},0]
[0,null,null,null,null,null,{"$f":"[1]Infrastructure!G1573","v":0},{"$f":"[1]Infrastructure!H1573","v":0},{"$f":"[1]Infrastructure!I1573","v":0},{"$f":"[1]Infrastructure!J1573","v":0},{"$f":"[1]Infrastructure!K1573","v":0},{"$f":"[1]Infrastructure!L1573","v":0},{"$f":"[1]Infrastructure!M1573","v":0},{"$f":"[1]Infrastructure!N1573","v":0},{"$f":"[1]Infrastructure!O1573","v":0},{"$f":"[1]Infrastructure!Q1573","v":0},{"$f":"[1]Infrastructure!R1573","v":0},{"$f":"[1]Infrastructure!T1573","v":0},{"$f":"[1]Infrastructure!W1573","v":0},{"$f":"[1]Infrastructure!W1573","v":0},0,{"$f":"[1]Infrastructure!Z1573","v":0},{"$f":"[1]Infrastructure!Z1573","v":0},0,{"$f":"[1]Infrastructure!AB1573","v":0},{"$f":"[1]Infrastructure!AB1573","v":0},0,{"$f":"[1]Infrastructure!AC1573","v":0},{"$f":"[1]Infrastructure!AD1573","v":0},{"$f":"[1]Infrastructure!AE1573","v":0},{"$f":"[1]Infrastructure!AF1573","v":0},{"$f":"[1]Infrastructure!AG1573","v":0},{"$f":"[1]Infrastructure!AH1573","v":0},0]
[0,null,null,null,null,null,{"$f":"[1]Infrastructure!G1574","v":0},{"$f":"[1]Infrastructure!H1574","v":0},{"$f":"[1]Infrastructure!I1574","v":0},{"$f":"[1]Infrastructure!J1574","v":0},{"$f":"[1]Infrastructure!K1574","v":0},{"$f":"[1]Infrastructure!L1574","v":0},{"$f":"[1]Infrastructure!M1574","v":0},{"$f":"[1]Infrastructure!N1574","v":0},{"$f":"[1]Infrastructure!O1574","v":0},{"$f":"[1]Infrastructure!Q1574","v":0},{"$f":"[1]Infrastructure!R1574","v":0},{"$f":"[1]Infrastructure!T1574","v":0},{"$f":"[1]Infrastructure!W1574","v":0},{"$f":"[1]Infrastructure!W1574","v":0},0,{"$f":"[1]Infrastructure!Z1574","v":0},{"$f":"[1]Infrastructure!Z1574","v":0},0,{"$f":"[1]Infrastructure!AB1574","v":0},{"$f":"[1]Infrastructure!AB1574","v":0},0,{"$f":"[1]Infrastructure!AC1574","v":0},{"$f":"[1]Infrastructure!AD1574","v":0},{"$f":"[1]Infrastructure!AE1574","v":0},{"$f":"[1]Infrastructure!AF1574","v":0},{"$f":"[1]Infrastructure!AG1574","v":0},{"$f":"[1]Infrastructure!AH1574","v":0},0]
[0,null,null,null,null,null,{"$f":"[1]Infrastructure!G1575","v":0},{"$f":"[1]Infrastructure!H1575","v":0},{"$f":"[1]Infrastructure!I1575","v":0},{"$f":"[1]Infrastructure!J1575","v":0},{"$f":"[1]Infrastructure!K1575","v":0},{"$f":"[1]Infrastructure!L1575","v":0},{"$f":"[1]Infrastructure!M1575","v":0},{"$f":"[1]Infrastructure!N1575","v":0},{"$f":"[1]Infrastructure!O1575","v":0},{"$f":"[1]Infrastructure!Q1575","v":0},{"$f":"[1]Infrastructure!R1575","v":0},{"$f":"[1]Infrastructure!T1575","v":0},{"$f":"[1]Infrastructure!W1575","v":0},{"$f":"[1]Infrastructure!W1575","v":0},0,{"$f":"[1]Infrastructure!Z1575","v":0},{"$f":"[1]Infrastructure!Z1575","v":0},0,{"$f":"[1]Infrastructure!AB1575","v":0},{"$f":"[1]Infrastructure!AB1575","v":0},0,{"$f":"[1]Infrastructure!AC1575","v":0},{"$f":"[1]Infrastructure!AD1575","v":0},{"$f":"[1]Infrastructure!AE1575","v":0},{"$f":"[1]Infrastructure!AF1575","v":0},{"$f":"[1]Infrastructure!AG1575","v":0},{"$f":"[1]Infrastructure!AH1575","v":0},0]
[0,null,null,null,null,null,{"$f":"[1]Infrastructure!G1576","v":0},{"$f":"[1]Infrastructure!H1576","v":0},{"$f":"[1]Infrastructure!I1576","v":0},{"$f":"[1]Infrastructure!J1576","v":0},{"$f":"[1]Infrastructure!K1576","v":0},{"$f":"[1]Infrastructure!L1576","v":0},{"$f":"[1]Infrastructure!M1576","v":0},{"$f":"[1]Infrastructure!N1576","v":0},{"$f":"[1]Infrastructure!O1576","v":0},{"$f":"[1]Infrastructure!Q1576","v":0},{"$f":"[1]Infrastructure!R1576","v":0},{"$f":"[1]Infrastructure!T1576","v":0},{"$f":"[1]Infrastructure!W1576","v":0},{"$f":"[1]Infrastructure!W1576","v":0},0,{"$f":"[1]Infrastructure!Z1576","v":0},{"$f":"[1]Infrastructure!Z1576","v":0},0,{"$f":"[1]Infrastructure!AB1576","v":0},{"$f":"[1]Infrastructure!AB1576","v":0},0,{"$f":"[1]Infrastructure!AC1576","v":0},{"$f":"[1]Infrastructure!AD1576","v":0},{"$f":"[1]Infrastructure!AE1576","v":0},{"$f":"[1]Infrastructure!AF1576","v":0},{"$f":"[1]Infrastructure!AG1576","v":0},{"$f":"[1]Infrastructure!AH1576","v":0},0]
[0,null,null,null,null,null,{"$f":"[1]Infrastructure!G1577","v":0},{"$f":"[1]Infrastructure!H1577","v":0},{"$f":"[1]Infrastructure!I1577","v":0},{"$f":"[1]Infrastructure!J1577","v":0},{"$f":"[1]Infrastructure!K1577","v":0},{"$f":"[1]Infrastructure!L1577","v":0},{"$f":"[1]Infrastructure!M1577","v":0},{"$f":"[1]Infrastructure!N1577","v":0},{"$f":"[1]Infrastructure!O1577","v":0},{"$f":"[1]Infrastructure!Q1577","v":0},{"$f":"[1]Infrastructure!R1577","v":0},{"$f":"[1]Infrastructure!T1577","v":0},{"$f":"[1]Infrastructure!W1577","v":0},{"$f":"[1]Infrastructure!W1577","v":0},0,{"$f":"[1]Infrastructure!Z1577","v":0},{"$f":"[1]Infrastructure!Z1577","v":0},0,{"$f":"[1]Infrastructure!AB1577","v":0},{"$f":"[1]Infrastructure!AB1577","v":0},0,{"$f":"[1]Infrastructure!AC1577","v":0},{"$f":"[1]Infrastructure!AD1577","v":0},{"$f":"[1]Infrastructure!AE1577","v":0},{"$f":"[1]Infrastructure!AF1577","v":0},{"$f":"[1]Infrastructure!AG1577","v":0},{"$f":"[1]Infrastructure!AH1577","v":0},0]
[0,null,null,null,null,null,{"$f":"[1]Infrastructure!G1578","v":0},{"$f":"[1]Infrastructure!H1578","v":0},{"$f":"[1]Infrastructure!I1578","v":0},{"$f":"[1]Infrastructure!J1578","v":0},{"$f":"[1]Infrastructure!K1578","v":0},{"$f":"[1]Infrastructure!L1578","v":0},{"$f":"[1]Infrastructure!M1578","v":0},{"$f":"[1]Infrastructure!N1578","v":0},{"$f":"[1]Infrastructure!O1578","v":0},{"$f":"[1]Infrastructure!Q1578","v":0},{"$f":"[1]Infrastructure!R1578","v":0},{"$f":"[1]Infrastructure!T1578","v":0},{"$f":"[1]Infrastructure!W1578","v":0},{"$f":"[1]Infrastructure!W1578","v":0},0,{"$f":"[1]Infrastructure!Z1578","v":0},{"$f":"[1]Infrastructure!Z1578","v":0},0,{"$f":"[1]Infrastructure!AB1578","v":0},{"$f":"[1]Infrastructure!AB1578","v":0},0,{"$f":"[1]Infrastructure!AC1578","v":0},{"$f":"[1]Infrastructure!AD1578","v":0},{"$f":"[1]Infrastructure!AE1578","v":0},{"$f":"[1]Infrastructure!AF1578","v":0},{"$f":"[1]Infrastructure!AG1578","v":0},{"$f":"[1]Infrastructure!AH1578","v":0},0]
[0,null,null,null,null,null,{"$f":"[1]Infrastructure!G1579","v":0},{"$f":"[1]Infrastructure!H1579","v":0},{"$f":"[1]Infrastructure!I1579","v":0},{"$f":"[1]Infrastructure!J1579","v":0},{"$f":"[1]Infrastructure!K1579","v":0},{"$f":"[1]Infrastructure!L1579","v":0},{"$f":"[1]Infrastructure!M1579","v":0},{"$f":"[1]Infrastructure!N1579","v":0},{"$f":"[1]Infrastructure!O1579","v":0},{"$f":"[1]Infrastructure!Q1579","v":0},{"$f":"[1]Infrastructure!R1579","v":0},{"$f":"[1]Infrastructure!T1579","v":0},{"$f":"[1]Infrastructure!W1579","v":0},{"$f":"[1]Infrastructure!W1579","v":0},0,{"$f":"[1]Infrastructure!Z1579","v":0},{"$f":"[1]Infrastructure!Z1579","v":0},0,{"$f":"[1]Infrastructure!AB1579","v":0},{"$f":"[1]Infrastructure!AB1579","v":0},0,{"$f":"[1]Infrastructure!AC1579","v":0},{"$f":"[1]Infrastructure!AD1579","v":0},{"$f":"[1]Infrastructure!AE1579","v":0},{"$f":"[1]Infrastructure!AF1579","v":0},{"$f":"[1]Infrastructure!AG1579","v":0},{"$f":"[1]Infrastructure!AH1579","v":0},0]
[0,null,null,null,null,null,{"$f":"[1]Infrastructure!G1580","v":0},{"$f":"[1]Infrastructure!H1580","v":0},{"$f":"[1]Infrastructure!I1580","v":0},{"$f":"[1]Infrastructure!J1580","v":0},{"$f":"[1]Infrastructure!K1580","v":0},{"$f":"[1]Infrastructure!L1580","v":0},{"$f":"[1]Infrastructure!M1580","v":0},{"$f":"[1]Infrastructure!N1580","v":0},{"$f":"[1]Infrastructure!O1580","v":0},{"$f":"[1]Infrastructure!Q1580","v":0},{"$f":"[1]Infrastructure!R1580","v":0},{"$f":"[1]Infrastructure!T1580","v":0},{"$f":"[1]Infrastructure!W1580","v":0},{"$f":"[1]Infrastructure!W1580","v":0},0,{"$f":"[1]Infrastructure!Z1580","v":0},{"$f":"[1]Infrastructure!Z1580","v":0},0,{"$f":"[1]Infrastructure!AB1580","v":0},{"$f":"[1]Infrastructure!AB1580","v":0},0,{"$f":"[1]Infrastructure!AC1580","v":0},{"$f":"[1]Infrastructure!AD1580","v":0},{"$f":"[1]Infrastructure!AE1580","v":0},{"$f":"[1]Infrastructure!AF1580","v":0},{"$f":"[1]Infrastructure!AG1580","v":0},{"$f":"[1]Infrastructure!AH1580","v":0},0]
[0,null,null,null,null,null,{"$f":"[1]Infrastructure!G1581","v":0},{"$f":"[1]Infrastructure!H1581","v":0},{"$f":"[1]Infrastructure!I1581","v":0},{"$f":"[1]Infrastructure!J1581","v":0},{"$f":"[1]Infrastructure!K1581","v":0},{"$f":"[1]Infrastructure!L1581","v":0},{"$f":"[1]Infrastructure!M1581","v":0},{"$f":"[1]Infrastructure!N1581","v":0},{"$f":"[1]Infrastructure!O1581","v":0},{"$f":"[1]Infrastructure!Q1581","v":0},{"$f":"[1]Infrastructure!R1581","v":0},{"$f":"[1]Infrastructure!T1581","v":0},{"$f":"[1]Infrastructure!W1581","v":0},{"$f":"[1]Infrastructure!W1581","v":0},0,{"$f":"[1]Infrastructure!Z1581","v":0},{"$f":"[1]Infrastructure!Z1581","v":0},0,{"$f":"[1]Infrastructure!AB1581","v":0},{"$f":"[1]Infrastructure!AB1581","v":0},0,{"$f":"[1]Infrastructure!AC1581","v":0},{"$f":"[1]Infrastructure!AD1581","v":0},{"$f":"[1]Infrastructure!AE1581","v":0},{"$f":"[1]Infrastructure!AF1581","v":0},{"$f":"[1]Infrastructure!AG1581","v":0},{"$f":"[1]Infrastructure!AH1581","v":0},0]
[0,null,null,null,null,null,{"$f":"[1]Infrastructure!G1582","v":0},{"$f":"[1]Infrastructure!H1582","v":0},{"$f":"[1]Infrastructure!I1582","v":0},{"$f":"[1]Infrastructure!J1582","v":0},{"$f":"[1]Infrastructure!K1582","v":0},{"$f":"[1]Infrastructure!L1582","v":0},{"$f":"[1]Infrastructure!M1582","v":0},{"$f":"[1]Infrastructure!N1582","v":0},{"$f":"[1]Infrastructure!O1582","v":0},{"$f":"[1]Infrastructure!Q1582","v":0},{"$f":"[1]Infrastructure!R1582","v":0},{"$f":"[1]Infrastructure!T1582","v":0},{"$f":"[1]Infrastructure!W1582","v":0},{"$f":"[1]Infrastructure!W1582","v":0},0,{"$f":"[1]Infrastructure!Z1582","v":0},{"$f":"[1]Infrastructure!Z1582","v":0},0,{"$f":"[1]Infrastructure!AB1582","v":0},{"$f":"[1]Infrastructure!AB1582","v":0},0,{"$f":"[1]Infrastructure!AC1582","v":0},{"$f":"[1]Infrastructure!AD1582","v":0},{"$f":"[1]Infrastructure!AE1582","v":0},{"$f":"[1]Infrastructure!AF1582","v":0},{"$f":"[1]Infrastructure!AG1582","v":0},{"$f":"[1]Infrastructure!AH1582","v":0},0]
[0,null,null,null,null,null,{"$f":"[1]Infrastructure!G1583","v":0},{"$f":"[1]Infrastructure!H1583","v":0},{"$f":"[1]Infrastructure!I1583","v":0},{"$f":"[1]Infrastructure!J1583","v":0},{"$f":"[1]Infrastructure!K1583","v":0},{"$f":"[1]Infrastructure!L1583","v":0},{"$f":"[1]Infrastructure!M1583","v":0},{"$f":"[1]Infrastructure!N1583","v":0},{"$f":"[1]Infrastructure!O1583","v":0},{"$f":"[1]Infrastructure!Q1583","v":0},{"$f":"[1]Infrastructure!R1583","v":0},{"$f":"[1]Infrastructure!T1583","v":0},{"$f":"[1]Infrastructure!W1583","v":0},{"$f":"[1]Infrastructure!W1583","v":0},0,{"$f":"[1]Infrastructure!Z1583","v":0},{"$f":"[1]Infrastructure!Z1583","v":0},0,{"$f":"[1]Infrastructure!AB1583","v":0},{"$f":"[1]Infrastructure!AB1583","v":0},0,{"$f":"[1]Infrastructure!AC1583","v":0},{"$f":"[1]Infrastructure!AD1583","v":0},{"$f":"[1]Infrastructure!AE1583","v":0},{"$f":"[1]Infrastructure!AF1583","v":0},{"$f":"[1]Infrastructure!AG1583","v":0},{"$f":"[1]Infrastructure!AH1583","v":0},0]
[0,null,null,null,null,null,{"$f":"[1]Infrastructure!G1584","v":0},{"$f":"[1]Infrastructure!H1584","v":0},{"$f":"[1]Infrastructure!I1584","v":0},{"$f":"[1]Infrastructure!J1584","v":0},{"$f":"[1]Infrastructure!K1584","v":0},{"$f":"[1]Infrastructure!L1584","v":0},{"$f":"[1]Infrastructure!M1584","v":0},{"$f":"[1]Infrastructure!N1584","v":0},{"$f":"[1]Infrastructure!O1584","v":0},{"$f":"[1]Infrastructure!Q1584","v":0},{"$f":"[1]Infrastructure!R1584","v":0},{"$f":"[1]Infrastructure!T1584","v":0},{"$f":"[1]Infrastructure!W1584","v":0},{"$f":"[1]Infrastructure!W1584","v":0},0,{"$f":"[1]Infrastructure!Z1584","v":0},{"$f":"[1]Infrastructure!Z1584","v":0},0,{"$f":"[1]Infrastructure!AB1584","v":0},{"$f":"[1]Infrastructure!AB1584","v":0},0,{"$f":"[1]Infrastructure!AC1584","v":0},{"$f":"[1]Infrastructure!AD1584","v":0},{"$f":"[1]Infrastructure!AE1584","v":0},{"$f":"[1]Infrastructure!AF1584","v":0},{"$f":"[1]Infrastructure!AG1584","v":0},{"$f":"[1]Infrastructure!AH1584","v":0},0]
[0,null,null,null,null,null,{"$f":"[1]Infrastructure!G1585","v":0},{"$f":"[1]Infrastructure!H1585","v":0},{"$f":"[1]Infrastructure!I1585","v":0},{"$f":"[1]Infrastructure!J1585","v":0},{"$f":"[1]Infrastructure!K1585","v":0},{"$f":"[1]Infrastructure!L1585","v":0},{"$f":"[1]Infrastructure!M1585","v":0},{"$f":"[1]Infrastructure!N1585","v":0},{"$f":"[1]Infrastructure!O1585","v":0},{"$f":"[1]Infrastructure!Q1585","v":0},{"$f":"[1]Infrastructure!R1585","v":0},{"$f":"[1]Infrastructure!T1585","v":0},{"$f":"[1]Infrastructure!W1585","v":0},{"$f":"[1]Infrastructure!W1585","v":0},0,{"$f":"[1]Infrastructure!Z1585","v":0},{"$f":"[1]Infrastructure!Z1585","v":0},0,{"$f":"[1]Infrastructure!AB1585","v":0},{"$f":"[1]Infrastructure!AB1585","v":0},0,{"$f":"[1]Infrastructure!AC1585","v":0},{"$f":"[1]Infrastructure!AD1585","v":0},{"$f":"[1]Infrastructure!AE1585","v":0},{"$f":"[1]Infrastructure!AF1585","v":0},{"$f":"[1]Infrastructure!AG1585","v":0},{"$f":"[1]Infrastructure!AH1585","v":0},0]
[0,null,null,null,null,null,{"$f":"[1]Infrastructure!G1586","v":0},{"$f":"[1]Infrastructure!H1586","v":0},{"$f":"[1]Infrastructure!I1586","v":0},{"$f":"[1]Infrastructure!J1586","v":0},{"$f":"[1]Infrastructure!K1586","v":0},{"$f":"[1]Infrastructure!L1586","v":0},{"$f":"[1]Infrastructure!M1586","v":0},{"$f":"[1]Infrastructure!N1586","v":0},{"$f":"[1]Infrastructure!O1586","v":0},{"$f":"[1]Infrastructure!Q1586","v":0},{"$f":"[1]Infrastructure!R1586","v":0},{"$f":"[1]Infrastructure!T1586","v":0},{"$f":"[1]Infrastructure!W1586","v":0},{"$f":"[1]Infrastructure!W1586","v":0},0,{"$f":"[1]Infrastructure!Z1586","v":0},{"$f":"[1]Infrastructure!Z1586","v":0},0,{"$f":"[1]Infrastructure!AB1586","v":0},{"$f":"[1]Infrastructure!AB1586","v":0},0,{"$f":"[1]Infrastructure!AC1586","v":0},{"$f":"[1]Infrastructure!AD1586","v":0},{"$f":"[1]Infrastructure!AE1586","v":0},{"$f":"[1]Infrastructure!AF1586","v":0},{"$f":"[1]Infrastructure!AG1586","v":0},{"$f":"[1]Infrastructure!AH1586","v":0},0]
[0,null,null,null,null,null,{"$f":"[1]Infrastructure!G1587","v":0},{"$f":"[1]Infrastructure!H1587","v":0},{"$f":"[1]Infrastructure!I1587","v":0},{"$f":"[1]Infrastructure!J1587","v":0},{"$f":"[1]Infrastructure!K1587","v":0},{"$f":"[1]Infrastructure!L1587","v":0},{"$f":"[1]Infrastructure!M1587","v":0},{"$f":"[1]Infrastructure!N1587","v":0},{"$f":"[1]Infrastructure!O1587","v":0},{"$f":"[1]Infrastructure!Q1587","v":0},{"$f":"[1]Infrastructure!R1587","v":0},{"$f":"[1]Infrastructure!T1587","v":0},{"$f":"[1]Infrastructure!W1587","v":0},{"$f":"[1]Infrastructure!W1587","v":0},0,{"$f":"[1]Infrastructure!Z1587","v":0},{"$f":"[1]Infrastructure!Z1587","v":0},0,{"$f":"[1]Infrastructure!AB1587","v":0},{"$f":"[1]Infrastructure!AB1587","v":0},0,{"$f":"[1]Infrastructure!AC1587","v":0},{"$f":"[1]Infrastructure!AD1587","v":0},{"$f":"[1]Infrastructure!AE1587","v":0},{"$f":"[1]Infrastructure!AF1587","v":0},{"$f":"[1]Infrastructure!AG1587","v":0},{"$f":"[1]Infrastructure!AH1587","v":0},0]
[0,null,null,null,null,null,{"$f":"[1]Infrastructure!G1588","v":0},{"$f":"[1]Infrastructure!H1588","v":0},{"$f":"[1]Infrastructure!I1588","v":0},{"$f":"[1]Infrastructure!J1588","v":0},{"$f":"[1]Infrastructure!K1588","v":0},{"$f":"[1]Infrastructure!L1588","v":0},{"$f":"[1]Infrastructure!M1588","v":0},{"$f":"[1]Infrastructure!N1588","v":0},{"$f":"[1]Infrastructure!O1588","v":0},{"$f":"[1]Infrastructure!Q1588","v":0},{"$f":"[1]Infrastructure!R1588","v":0},{"$f":"[1]Infrastructure!T1588","v":0},{"$f":"[1]Infrastructure!W1588","v":0},{"$f":"[1]Infrastructure!W1588","v":0},0,{"$f":"[1]Infrastructure!Z1588","v":0},{"$f":"[1]Infrastructure!Z1588","v":0},0,{"$f":"[1]Infrastructure!AB1588","v":0},{"$f":"[1]Infrastructure!AB1588","v":0},0,{"$f":"[1]Infrastructure!AC1588","v":0},{"$f":"[1]Infrastructure!AD1588","v":0},{"$f":"[1]Infrastructure!AE1588","v":0},{"$f":"[1]Infrastructure!AF1588","v":0},{"$f":"[1]Infrastructure!AG1588","v":0},{"$f":"[1]Infrastructure!AH1588","v":0},0]
[0,null,null,null,null,null,{"$f":"[1]Infrastructure!G1589","v":0},{"$f":"[1]Infrastructure!H1589","v":0},{"$f":"[1]Infrastructure!I1589","v":0},{"$f":"[1]Infrastructure!J1589","v":0},{"$f":"[1]Infrastructure!K1589","v":0},{"$f":"[1]Infrastructure!L1589","v":0},{"$f":"[1]Infrastructure!M1589","v":0},{"$f":"[1]Infrastructure!N1589","v":0},{"$f":"[1]Infrastructure!O1589","v":0},{"$f":"[1]Infrastructure!Q1589","v":0},{"$f":"[1]Infrastructure!R1589","v":0},{"$f":"[1]Infrastructure!T1589","v":0},{"$f":"[1]Infrastructure!W1589","v":0},{"$f":"[1]Infrastructure!W1589","v":0},0,{"$f":"[1]Infrastructure!Z1589","v":0},{"$f":"[1]Infrastructure!Z1589","v":0},0,{"$f":"[1]Infrastructure!AB1589","v":0},{"$f":"[1]Infrastructure!AB1589","v":0},0,{"$f":"[1]Infrastructure!AC1589","v":0},{"$f":"[1]Infrastructure!AD1589","v":0},{"$f":"[1]Infrastructure!AE1589","v":0},{"$f":"[1]Infrastructure!AF1589","v":0},{"$f":"[1]Infrastructure!AG1589","v":0},{"$f":"[1]Infrastructure!AH1589","v":0},0]
[0,null,null,null,null,null,{"$f":"[1]Infrastructure!G1590","v":0},{"$f":"[1]Infrastructure!H1590","v":0},{"$f":"[1]Infrastructure!I1590","v":0},{"$f":"[1]Infrastructure!J1590","v":0},{"$f":"[1]Infrastructure!K1590","v":0},{"$f":"[1]Infrastructure!L1590","v":0},{"$f":"[1]Infrastructure!M1590","v":0},{"$f":"[1]Infrastructure!N1590","v":0},{"$f":"[1]Infrastructure!O1590","v":0},{"$f":"[1]Infrastructure!Q1590","v":0},{"$f":"[1]Infrastructure!R1590","v":0},{"$f":"[1]Infrastructure!T1590","v":0},{"$f":"[1]Infrastructure!W1590","v":0},{"$f":"[1]Infrastructure!W1590","v":0},0,{"$f":"[1]Infrastructure!Z1590","v":0},{"$f":"[1]Infrastructure!Z1590","v":0},0,{"$f":"[1]Infrastructure!AB1590","v":0},{"$f":"[1]Infrastructure!AB1590","v":0},0,{"$f":"[1]Infrastructure!AC1590","v":0},{"$f":"[1]Infrastructure!AD1590","v":0},{"$f":"[1]Infrastructure!AE1590","v":0},{"$f":"[1]Infrastructure!AF1590","v":0},{"$f":"[1]Infrastructure!AG1590","v":0},{"$f":"[1]Infrastructure!AH1590","v":0},0]
[0,null,null,null,null,null,{"$f":"[1]Infrastructure!G1591","v":0},{"$f":"[1]Infrastructure!H1591","v":0},{"$f":"[1]Infrastructure!I1591","v":0},{"$f":"[1]Infrastructure!J1591","v":0},{"$f":"[1]Infrastructure!K1591","v":0},{"$f":"[1]Infrastructure!L1591","v":0},{"$f":"[1]Infrastructure!M1591","v":0},{"$f":"[1]Infrastructure!N1591","v":0},{"$f":"[1]Infrastructure!O1591","v":0},{"$f":"[1]Infrastructure!Q1591","v":0},{"$f":"[1]Infrastructure!R1591","v":0},{"$f":"[1]Infrastructure!T1591","v":0},{"$f":"[1]Infrastructure!W1591","v":0},{"$f":"[1]Infrastructure!W1591","v":0},0,{"$f":"[1]Infrastructure!Z1591","v":0},{"$f":"[1]Infrastructure!Z1591","v":0},0,{"$f":"[1]Infrastructure!AB1591","v":0},{"$f":"[1]Infrastructure!AB1591","v":0},0,{"$f":"[1]Infrastructure!AC1591","v":0},{"$f":"[1]Infrastructure!AD1591","v":0},{"$f":"[1]Infrastructure!AE1591","v":0},{"$f":"[1]Infrastructure!AF1591","v":0},{"$f":"[1]Infrastructure!AG1591","v":0},{"$f":"[1]Infrastructure!AH1591","v":0},0]
[0,null,null,null,null,null,{"$f":"[1]Infrastructure!G1592","v":0},{"$f":"[1]Infrastructure!H1592","v":0},{"$f":"[1]Infrastructure!I1592","v":0},{"$f":"[1]Infrastructure!J1592","v":0},{"$f":"[1]Infrastructure!K1592","v":0},{"$f":"[1]Infrastructure!L1592","v":0},{"$f":"[1]Infrastructure!M1592","v":0},{"$f":"[1]Infrastructure!N1592","v":0},{"$f":"[1]Infrastructure!O1592","v":0},{"$f":"[1]Infrastructure!Q1592","v":0},{"$f":"[1]Infrastructure!R1592","v":0},{"$f":"[1]Infrastructure!T1592","v":0},{"$f":"[1]Infrastructure!W1592","v":0},{"$f":"[1]Infrastructure!W1592","v":0},0,{"$f":"[1]Infrastructure!Z1592","v":0},{"$f":"[1]Infrastructure!Z1592","v":0},0,{"$f":"[1]Infrastructure!AB1592","v":0},{"$f":"[1]Infrastructure!AB1592","v":0},0,{"$f":"[1]Infrastructure!AC1592","v":0},{"$f":"[1]Infrastructure!AD1592","v":0},{"$f":"[1]Infrastructure!AE1592","v":0},{"$f":"[1]Infrastructure!AF1592","v":0},{"$f":"[1]Infrastructure!AG1592","v":0},{"$f":"[1]Infrastructure!AH1592","v":0},0]
[0,null,null,null,null,null,{"$f":"[1]Infrastructure!G1593","v":0},{"$f":"[1]Infrastructure!H1593","v":0},{"$f":"[1]Infrastructure!I1593","v":0},{"$f":"[1]Infrastructure!J1593","v":0},{"$f":"[1]Infrastructure!K1593","v":0},{"$f":"[1]Infrastructure!L1593","v":0},{"$f":"[1]Infrastructure!M1593","v":0},{"$f":"[1]Infrastructure!N1593","v":0},{"$f":"[1]Infrastructure!O1593","v":0},{"$f":"[1]Infrastructure!Q1593","v":0},{"$f":"[1]Infrastructure!R1593","v":0},{"$f":"[1]Infrastructure!T1593","v":0},{"$f":"[1]Infrastructure!W1593","v":0},{"$f":"[1]Infrastructure!W1593","v":0},0,{"$f":"[1]Infrastructure!Z1593","v":0},{"$f":"[1]Infrastructure!Z1593","v":0},0,{"$f":"[1]Infrastructure!AB1593","v":0},{"$f":"[1]Infrastructure!AB1593","v":0},0,{"$f":"[1]Infrastructure!AC1593","v":0},{"$f":"[1]Infrastructure!AD1593","v":0},{"$f":"[1]Infrastructure!AE1593","v":0},{"$f":"[1]Infrastructure!AF1593","v":0},{"$f":"[1]Infrastructure!AG1593","v":0},{"$f":"[1]Infrastructure!AH1593","v":0},0]
[0,null,null,null,null,null,{"$f":"[1]Infrastructure!G1594","v":0},{"$f":"[1]Infrastructure!H1594","v":0},{"$f":"[1]Infrastructure!I1594","v":0},{"$f":"[1]Infrastructure!J1594","v":0},{"$f":"[1]Infrastructure!K1594","v":0},{"$f":"[1]Infrastructure!L1594","v":0},{"$f":"[1]Infrastructure!M1594","v":0},{"$f":"[1]Infrastructure!N1594","v":0},{"$f":"[1]Infrastructure!O1594","v":0},{"$f":"[1]Infrastructure!Q1594","v":0},{"$f":"[1]Infrastructure!R1594","v":0},{"$f":"[1]Infrastructure!T1594","v":0},{"$f":"[1]Infrastructure!W1594","v":0},{"$f":"[1]Infrastructure!W1594","v":0},0,{"$f":"[1]Infrastructure!Z1594","v":0},{"$f":"[1]Infrastructure!Z1594","v":0},0,{"$f":"[1]Infrastructure!AB1594","v":0},{"$f":"[1]Infrastructure!AB1594","v":0},0,{"$f":"[1]Infrastructure!AC1594","v":0},{"$f":"[1]Infrastructure!AD1594","v":0},{"$f":"[1]Infrastructure!AE1594","v":0},{"$f":"[1]Infrastructure!AF1594","v":0},{"$f":"[1]Infrastructure!AG1594","v":0},{"$f":"[1]Infrastructure!AH1594","v":0},0]
[0,null,null,null,null,null,{"$f":"[1]Infrastructure!G1595","v":0},{"$f":"[1]Infrastructure!H1595","v":0},{"$f":"[1]Infrastructure!I1595","v":0},{"$f":"[1]Infrastructure!J1595","v":0},{"$f":"[1]Infrastructure!K1595","v":0},{"$f":"[1]Infrastructure!L1595","v":0},{"$f":"[1]Infrastructure!M1595","v":0},{"$f":"[1]Infrastructure!N1595","v":0},{"$f":"[1]Infrastructure!O1595","v":0},{"$f":"[1]Infrastructure!Q1595","v":0},{"$f":"[1]Infrastructure!R1595","v":0},{"$f":"[1]Infrastructure!T1595","v":0},{"$f":"[1]Infrastructure!W1595","v":0},{"$f":"[1]Infrastructure!W1595","v":0},0,{"$f":"[1]Infrastructure!Z1595","v":0},{"$f":"[1]Infrastructure!Z1595","v":0},0,{"$f":"[1]Infrastructure!AB1595","v":0},{"$f":"[1]Infrastructure!AB1595","v":0},0,{"$f":"[1]Infrastructure!AC1595","v":0},{"$f":"[1]Infrastructure!AD1595","v":0},{"$f":"[1]Infrastructure!AE1595","v":0},{"$f":"[1]Infrastructure!AF1595","v":0},{"$f":"[1]Infrastructure!AG1595","v":0},{"$f":"[1]Infrastructure!AH1595","v":0},0]
[0,null,null,null,null,null,{"$f":"[1]Infrastructure!G1596","v":0},{"$f":"[1]Infrastructure!H1596","v":0},{"$f":"[1]Infrastructure!I1596","v":0},{"$f":"[1]Infrastructure!J1596","v":0},{"$f":"[1]Infrastructure!K1596","v":0},{"$f":"[1]Infrastructure!L1596","v":0},{"$f":"[1]Infrastructure!M1596","v":0},{"$f":"[1]Infrastructure!N1596","v":0},{"$f":"[1]Infrastructure!O1596","v":0},{"$f":"[1]Infrastructure!Q1596","v":0},{"$f":"[1]Infrastructure!R1596","v":0},{"$f":"[1]Infrastructure!T1596","v":0},{"$f":"[1]Infrastructure!W1596","v":0},{"$f":"[1]Infrastructure!W1596","v":0},0,{"$f":"[1]Infrastructure!Z1596","v":0},{"$f":"[1]Infrastructure!Z1596","v":0},0,{"$f":"[1]Infrastructure!AB1596","v":0},{"$f":"[1]Infrastructure!AB1596","v":0},0,{"$f":"[1]Infrastructure!AC1596","v":0},{"$f":"[1]Infrastructure!AD1596","v":0},{"$f":"[1]Infrastructure!AE1596","v":0},{"$f":"[1]Infrastructure!AF1596","v":0},{"$f":"[1]Infrastructure!AG1596","v":0},{"$f":"[1]Infrastructure!AH1596","v":0},0]
[0,null,null,null,null,null,{"$f":"[1]Infrastructure!G1597","v":0},{"$f":"[1]Infrastructure!H1597","v":0},{"$f":"[1]Infrastructure!I1597","v":0},{"$f":"[1]Infrastructure!J1597","v":0},{"$f":"[1]Infrastructure!K1597","v":0},{"$f":"[1]Infrastructure!L1597","v":0},{"$f":"[1]Infrastructure!M1597","v":0},{"$f":"[1]Infrastructure!N1597","v":0},{"$f":"[1]Infrastructure!O1597","v":0},{"$f":"[1]Infrastructure!Q1597","v":0},{"$f":"[1]Infrastructure!R1597","v":0},{"$f":"[1]Infrastructure!T1597","v":0},{"$f":"[1]Infrastructure!W1597","v":0},{"$f":"[1]Infrastructure!W1597","v":0},0,{"$f":"[1]Infrastructure!Z1597","v":0},{"$f":"[1]Infrastructure!Z1597","v":0},0,{"$f":"[1]Infrastructure!AB1597","v":0},{"$f":"[1]Infrastructure!AB1597","v":0},0,{"$f":"[1]Infrastructure!AC1597","v":0},{"$f":"[1]Infrastructure!AD1597","v":0},{"$f":"[1]Infrastructure!AE1597","v":0},{"$f":"[1]Infrastructure!AF1597","v":0},{"$f":"[1]Infrastructure!AG1597","v":0},{"$f":"[1]Infrastructure!AH1597","v":0},0]
[0,null,null,null,null,null,{"$f":"[1]Infrastructure!G1598","v":0},{"$f":"[1]Infrastructure!H1598","v":0},{"$f":"[1]Infrastructure!I1598","v":0},{"$f":"[1]Infrastructure!J1598","v":0},{"$f":"[1]Infrastructure!K1598","v":0},{"$f":"[1]Infrastructure!L1598","v":0},{"$f":"[1]Infrastructure!M1598","v":0},{"$f":"[1]Infrastructure!N1598","v":0},{"$f":"[1]Infrastructure!O1598","v":0},{"$f":"[1]Infrastructure!Q1598","v":0},{"$f":"[1]Infrastructure!R1598","v":0},{"$f":"[1]Infrastructure!T1598","v":0},{"$f":"[1]Infrastructure!W1598","v":0},{"$f":"[1]Infrastructure!W1598","v":0},0,{"$f":"[1]Infrastructure!Z1598","v":0},{"$f":"[1]Infrastructure!Z1598","v":0},0,{"$f":"[1]Infrastructure!AB1598","v":0},{"$f":"[1]Infrastructure!AB1598","v":0},0,{"$f":"[1]Infrastructure!AC1598","v":0},{"$f":"[1]Infrastructure!AD1598","v":0},{"$f":"[1]Infrastructure!AE1598","v":0},{"$f":"[1]Infrastructure!AF1598","v":0},{"$f":"[1]Infrastructure!AG1598","v":0},{"$f":"[1]Infrastructure!AH1598","v":0},0]
[0,null,null,null,null,null,{"$f":"[1]Infrastructure!G1599","v":0},{"$f":"[1]Infrastructure!H1599","v":0},{"$f":"[1]Infrastructure!I1599","v":0},{"$f":"[1]Infrastructure!J1599","v":0},{"$f":"[1]Infrastructure!K1599","v":0},{"$f":"[1]Infrastructure!L1599","v":0},{"$f":"[1]Infrastructure!M1599","v":0},{"$f":"[1]Infrastructure!N1599","v":0},{"$f":"[1]Infrastructure!O1599","v":0},{"$f":"[1]Infrastructure!Q1599","v":0},{"$f":"[1]Infrastructure!R1599","v":0},{"$f":"[1]Infrastructure!T1599","v":0},{"$f":"[1]Infrastructure!W1599","v":0},{"$f":"[1]Infrastructure!W1599","v":0},0,{"$f":"[1]Infrastructure!Z1599","v":0},{"$f":"[1]Infrastructure!Z1599","v":0},0,{"$f":"[1]Infrastructure!AB1599","v":0},{"$f":"[1]Infrastructure!AB1599","v":0},0,{"$f":"[1]Infrastructure!AC1599","v":0},{"$f":"[1]Infrastructure!AD1599","v":0},{"$f":"[1]Infrastructure!AE1599","v":0},{"$f":"[1]Infrastructure!AF1599","v":0},{"$f":"[1]Infrastructure!AG1599","v":0},{"$f":"[1]Infrastructure!AH1599","v":0},0]
[0,null,null,null,null,null,{"$f":"[1]Infrastructure!G1600","v":0},{"$f":"[1]Infrastructure!H1600","v":0},{"$f":"[1]Infrastructure!I1600","v":0},{"$f":"[1]Infrastructure!J1600","v":0},{"$f":"[1]Infrastructure!K1600","v":0},{"$f":"[1]Infrastructure!L1600","v":0},{"$f":"[1]Infrastructure!M1600","v":0},{"$f":"[1]Infrastructure!N1600","v":0},{"$f":"[1]Infrastructure!O1600","v":0},{"$f":"[1]Infrastructure!Q1600","v":0},{"$f":"[1]Infrastructure!R1600","v":0},{"$f":"[1]Infrastructure!T1600","v":0},{"$f":"[1]Infrastructure!W1600","v":0},{"$f":"[1]Infrastructure!W1600","v":0},0,{"$f":"[1]Infrastructure!Z1600","v":0},{"$f":"[1]Infrastructure!Z1600","v":0},0,{"$f":"[1]Infrastructure!AB1600","v":0},{"$f":"[1]Infrastructure!AB1600","v":0},0,{"$f":"[1]Infrastructure!AC1600","v":0},{"$f":"[1]Infrastructure!AD1600","v":0},{"$f":"[1]Infrastructure!AE1600","v":0},{"$f":"[1]Infrastructure!AF1600","v":0},{"$f":"[1]Infrastructure!AG1600","v":0},{"$f":"[1]Infrastructure!AH1600","v":0},0]
[0,null,null,null,null,null,{"$f":"[1]Infrastructure!G1601","v":0},{"$f":"[1]Infrastructure!H1601","v":0},{"$f":"[1]Infrastructure!I1601","v":0},{"$f":"[1]Infrastructure!J1601","v":0},{"$f":"[1]Infrastructure!K1601","v":0},{"$f":"[1]Infrastructure!L1601","v":0},{"$f":"[1]Infrastructure!M1601","v":0},{"$f":"[1]Infrastructure!N1601","v":0},{"$f":"[1]Infrastructure!O1601","v":0},{"$f":"[1]Infrastructure!Q1601","v":0},{"$f":"[1]Infrastructure!R1601","v":0},{"$f":"[1]Infrastructure!T1601","v":0},{"$f":"[1]Infrastructure!W1601","v":0},{"$f":"[1]Infrastructure!W1601","v":0},0,{"$f":"[1]Infrastructure!Z1601","v":0},{"$f":"[1]Infrastructure!Z1601","v":0},0,{"$f":"[1]Infrastructure!AB1601","v":0},{"$f":"[1]Infrastructure!AB1601","v":0},0,{"$f":"[1]Infrastructure!AC1601","v":0},{"$f":"[1]Infrastructure!AD1601","v":0},{"$f":"[1]Infrastructure!AE1601","v":0},{"$f":"[1]Infrastructure!AF1601","v":0},{"$f":"[1]Infrastructure!AG1601","v":0},{"$f":"[1]Infrastructure!AH1601","v":0},0]
[0,null,null,null,null,null,{"$f":"[1]Infrastructure!G1602","v":0},{"$f":"[1]Infrastructure!H1602","v":0},{"$f":"[1]Infrastructure!I1602","v":0},{"$f":"[1]Infrastructure!J1602","v":0},{"$f":"[1]Infrastructure!K1602","v":0},{"$f":"[1]Infrastructure!L1602","v":0},{"$f":"[1]Infrastructure!M1602","v":0},{"$f":"[1]Infrastructure!N1602","v":0},{"$f":"[1]Infrastructure!O1602","v":0},{"$f":"[1]Infrastructure!Q1602","v":0},{"$f":"[1]Infrastructure!R1602","v":0},{"$f":"[1]Infrastructure!T1602","v":0},{"$f":"[1]Infrastructure!W1602","v":0},{"$f":"[1]Infrastructure!W1602","v":0},0,{"$f":"[1]Infrastructure!Z1602","v":0},{"$f":"[1]Infrastructure!Z1602","v":0},0,{"$f":"[1]Infrastructure!AB1602","v":0},{"$f":"[1]Infrastructure!AB1602","v":0},0,{"$f":"[1]Infrastructure!AC1602","v":0},{"$f":"[1]Infrastructure!AD1602","v":0},{"$f":"[1]Infrastructure!AE1602","v":0},{"$f":"[1]Infrastructure!AF1602","v":0},{"$f":"[1]Infrastructure!AG1602","v":0},{"$f":"[1]Infrastructure!AH1602","v":0},0]
[0,null,null,null,null,null,{"$f":"[1]Infrastructure!G1603","v":0},{"$f":"[1]Infrastructure!H1603","v":0},{"$f":"[1]Infrastructure!I1603","v":0},{"$f":"[1]Infrastructure!J1603","v":0},{"$f":"[1]Infrastructure!K1603","v":0},{"$f":"[1]Infrastructure!L1603","v":0},{"$f":"[1]Infrastructure!M1603","v":0},{"$f":"[1]Infrastructure!N1603","v":0},{"$f":"[1]Infrastructure!O1603","v":0},{"$f":"[1]Infrastructure!Q1603","v":0},{"$f":"[1]Infrastructure!R1603","v":0},{"$f":"[1]Infrastructure!T1603","v":0},{"$f":"[1]Infrastructure!W1603","v":0},{"$f":"[1]Infrastructure!W1603","v":0},0,{"$f":"[1]Infrastructure!Z1603","v":0},{"$f":"[1]Infrastructure!Z1603","v":0},0,{"$f":"[1]Infrastructure!AB1603","v":0},{"$f":"[1]Infrastructure!AB1603","v":0},0,{"$f":"[1]Infrastructure!AC1603","v":0},{"$f":"[1]Infrastructure!AD1603","v":0},{"$f":"[1]Infrastructure!AE1603","v":0},{"$f":"[1]Infrastructure!AF1603","v":0},{"$f":"[1]Infrastructure!AG1603","v":0},{"$f":"[1]Infrastructure!AH1603","v":0},0]
[0,null,null,null,null,null,{"$f":"[1]Infrastructure!G1604","v":0},{"$f":"[1]Infrastructure!H1604","v":0},{"$f":"[1]Infrastructure!I1604","v":0},{"$f":"[1]Infrastructure!J1604","v":0},{"$f":"[1]Infrastructure!K1604","v":0},{"$f":"[1]Infrastructure!L1604","v":0},{"$f":"[1]Infrastructure!M1604","v":0},{"$f":"[1]Infrastructure!N1604","v":0},{"$f":"[1]Infrastructure!O1604","v":0},{"$f":"[1]Infrastructure!Q1604","v":0},{"$f":"[1]Infrastructure!R1604","v":0},{"$f":"[1]Infrastructure!T1604","v":0},{"$f":"[1]Infrastructure!W1604","v":0},{"$f":"[1]Infrastructure!W1604","v":0},0,{"$f":"[1]Infrastructure!Z1604","v":0},{"$f":"[1]Infrastructure!Z1604","v":0},0,{"$f":"[1]Infrastructure!AB1604","v":0},{"$f":"[1]Infrastructure!AB1604","v":0},0,{"$f":"[1]Infrastructure!AC1604","v":0},{"$f":"[1]Infrastructure!AD1604","v":0},{"$f":"[1]Infrastructure!AE1604","v":0},{"$f":"[1]Infrastructure!AF1604","v":0},{"$f":"[1]Infrastructure!AG1604","v":0},{"$f":"[1]Infrastructure!AH1604","v":0},0]
[0,null,null,null,null,null,{"$f":"[1]Infrastructure!G1605","v":0},{"$f":"[1]Infrastructure!H1605","v":0},{"$f":"[1]Infrastructure!I1605","v":0},{"$f":"[1]Infrastructure!J1605","v":0},{"$f":"[1]Infrastructure!K1605","v":0},{"$f":"[1]Infrastructure!L1605","v":0},{"$f":"[1]Infrastructure!M1605","v":0},{"$f":"[1]Infrastructure!N1605","v":0},{"$f":"[1]Infrastructure!O1605","v":0},{"$f":"[1]Infrastructure!Q1605","v":0},{"$f":"[1]Infrastructure!R1605","v":0},{"$f":"[1]Infrastructure!T1605","v":0},{"$f":"[1]Infrastructure!W1605","v":0},{"$f":"[1]Infrastructure!W1605","v":0},0,{"$f":"[1]Infrastructure!Z1605","v":0},{"$f":"[1]Infrastructure!Z1605","v":0},0,{"$f":"[1]Infrastructure!AB1605","v":0},{"$f":"[1]Infrastructure!AB1605","v":0},0,{"$f":"[1]Infrastructure!AC1605","v":0},{"$f":"[1]Infrastructure!AD1605","v":0},{"$f":"[1]Infrastructure!AE1605","v":0},{"$f":"[1]Infrastructure!AF1605","v":0},{"$f":"[1]Infrastructure!AG1605","v":0},{"$f":"[1]Infrastructure!AH1605","v":0},0]
[0,null,null,null,null,null,{"$f":"[1]Infrastructure!G1606","v":0},{"$f":"[1]Infrastructure!H1606","v":0},{"$f":"[1]Infrastructure!I1606","v":0},{"$f":"[1]Infrastructure!J1606","v":0},{"$f":"[1]Infrastructure!K1606","v":0},{"$f":"[1]Infrastructure!L1606","v":0},{"$f":"[1]Infrastructure!M1606","v":0},{"$f":"[1]Infrastructure!N1606","v":0},{"$f":"[1]Infrastructure!O1606","v":0},{"$f":"[1]Infrastructure!Q1606","v":0},{"$f":"[1]Infrastructure!R1606","v":0},{"$f":"[1]Infrastructure!T1606","v":0},{"$f":"[1]Infrastructure!W1606","v":0},{"$f":"[1]Infrastructure!W1606","v":0},0,{"$f":"[1]Infrastructure!Z1606","v":0},{"$f":"[1]Infrastructure!Z1606","v":0},0,{"$f":"[1]Infrastructure!AB1606","v":0},{"$f":"[1]Infrastructure!AB1606","v":0},0,{"$f":"[1]Infrastructure!AC1606","v":0},{"$f":"[1]Infrastructure!AD1606","v":0},{"$f":"[1]Infrastructure!AE1606","v":0},{"$f":"[1]Infrastructure!AF1606","v":0},{"$f":"[1]Infrastructure!AG1606","v":0},{"$f":"[1]Infrastructure!AH1606","v":0},0]
[0,null,null,null,null,null,{"$f":"[1]Infrastructure!G1607","v":0},{"$f":"[1]Infrastructure!H1607","v":0},{"$f":"[1]Infrastructure!I1607","v":0},{"$f":"[1]Infrastructure!J1607","v":0},{"$f":"[1]Infrastructure!K1607","v":0},{"$f":"[1]Infrastructure!L1607","v":0},{"$f":"[1]Infrastructure!M1607","v":0},{"$f":"[1]Infrastructure!N1607","v":0},{"$f":"[1]Infrastructure!O1607","v":0},{"$f":"[1]Infrastructure!Q1607","v":0},{"$f":"[1]Infrastructure!R1607","v":0},{"$f":"[1]Infrastructure!T1607","v":0},{"$f":"[1]Infrastructure!W1607","v":0},{"$f":"[1]Infrastructure!W1607","v":0},0,{"$f":"[1]Infrastructure!Z1607","v":0},{"$f":"[1]Infrastructure!Z1607","v":0},0,{"$f":"[1]Infrastructure!AB1607","v":0},{"$f":"[1]Infrastructure!AB1607","v":0},0,{"$f":"[1]Infrastructure!AC1607","v":0},{"$f":"[1]Infrastructure!AD1607","v":0},{"$f":"[1]Infrastructure!AE1607","v":0},{"$f":"[1]Infrastructure!AF1607","v":0},{"$f":"[1]Infrastructure!AG1607","v":0},{"$f":"[1]Infrastructure!AH1607","v":0},0]
[0,null,null,null,null,null,{"$f":"[1]Infrastructure!G1608","v":0},{"$f":"[1]Infrastructure!H1608","v":0},{"$f":"[1]Infrastructure!I1608","v":0},{"$f":"[1]Infrastructure!J1608","v":0},{"$f":"[1]Infrastructure!K1608","v":0},{"$f":"[1]Infrastructure!L1608","v":0},{"$f":"[1]Infrastructure!M1608","v":0},{"$f":"[1]Infrastructure!N1608","v":0},{"$f":"[1]Infrastructure!O1608","v":0},{"$f":"[1]Infrastructure!Q1608","v":0},{"$f":"[1]Infrastructure!R1608","v":0},{"$f":"[1]Infrastructure!T1608","v":0},{"$f":"[1]Infrastructure!W1608","v":0},{"$f":"[1]Infrastructure!W1608","v":0},0,{"$f":"[1]Infrastructure!Z1608","v":0},{"$f":"[1]Infrastructure!Z1608","v":0},0,{"$f":"[1]Infrastructure!AB1608","v":0},{"$f":"[1]Infrastructure!AB1608","v":0},0,{"$f":"[1]Infrastructure!AC1608","v":0},{"$f":"[1]Infrastructure!AD1608","v":0},{"$f":"[1]Infrastructure!AE1608","v":0},{"$f":"[1]Infrastructure!AF1608","v":0},{"$f":"[1]Infrastructure!AG1608","v":0},{"$f":"[1]Infrastructure!AH1608","v":0},0]
[0,null,null,null,null,null,{"$f":"[1]Infrastructure!G1609","v":0},{"$f":"[1]Infrastructure!H1609","v":0},{"$f":"[1]Infrastructure!I1609","v":0},{"$f":"[1]Infrastructure!J1609","v":0},{"$f":"[1]Infrastructure!K1609","v":0},{"$f":"[1]Infrastructure!L1609","v":0},{"$f":"[1]Infrastructure!M1609","v":0},{"$f":"[1]Infrastructure!N1609","v":0},{"$f":"[1]Infrastructure!O1609","v":0},{"$f":"[1]Infrastructure!Q1609","v":0},{"$f":"[1]Infrastructure!R1609","v":0},{"$f":"[1]Infrastructure!T1609","v":0},{"$f":"[1]Infrastructure!W1609","v":0},{"$f":"[1]Infrastructure!W1609","v":0},0,{"$f":"[1]Infrastructure!Z1609","v":0},{"$f":"[1]Infrastructure!Z1609","v":0},0,{"$f":"[1]Infrastructure!AB1609","v":0},{"$f":"[1]Infrastructure!AB1609","v":0},0,{"$f":"[1]Infrastructure!AC1609","v":0},{"$f":"[1]Infrastructure!AD1609","v":0},{"$f":"[1]Infrastructure!AE1609","v":0},{"$f":"[1]Infrastructure!AF1609","v":0},{"$f":"[1]Infrastructure!AG1609","v":0},{"$f":"[1]Infrastructure!AH1609","v":0},0]
[0,null,null,null,null,null,{"$f":"[1]Infrastructure!G1610","v":0},{"$f":"[1]Infrastructure!H1610","v":0},{"$f":"[1]Infrastructure!I1610","v":0},{"$f":"[1]Infrastructure!J1610","v":0},{"$f":"[1]Infrastructure!K1610","v":0},{"$f":"[1]Infrastructure!L1610","v":0},{"$f":"[1]Infrastructure!M1610","v":0},{"$f":"[1]Infrastructure!N1610","v":0},{"$f":"[1]Infrastructure!O1610","v":0},{"$f":"[1]Infrastructure!Q1610","v":0},{"$f":"[1]Infrastructure!R1610","v":0},{"$f":"[1]Infrastructure!T1610","v":0},{"$f":"[1]Infrastructure!W1610","v":0},{"$f":"[1]Infrastructure!W1610","v":0},0,{"$f":"[1]Infrastructure!Z1610","v":0},{"$f":"[1]Infrastructure!Z1610","v":0},0,{"$f":"[1]Infrastructure!AB1610","v":0},{"$f":"[1]Infrastructure!AB1610","v":0},0,{"$f":"[1]Infrastructure!AC1610","v":0},{"$f":"[1]Infrastructure!AD1610","v":0},{"$f":"[1]Infrastructure!AE1610","v":0},{"$f":"[1]Infrastructure!AF1610","v":0},{"$f":"[1]Infrastructure!AG1610","v":0},{"$f":"[1]Infrastructure!AH1610","v":0},0]
[0,null,null,null,null,null,{"$f":"[1]Infrastructure!G1611","v":0},{"$f":"[1]Infrastructure!H1611","v":0},{"$f":"[1]Infrastructure!I1611","v":0},{"$f":"[1]Infrastructure!J1611","v":0},{"$f":"[1]Infrastructure!K1611","v":0},{"$f":"[1]Infrastructure!L1611","v":0},{"$f":"[1]Infrastructure!M1611","v":0},{"$f":"[1]Infrastructure!N1611","v":0},{"$f":"[1]Infrastructure!O1611","v":0},{"$f":"[1]Infrastructure!Q1611","v":0},{"$f":"[1]Infrastructure!R1611","v":0},{"$f":"[1]Infrastructure!T1611","v":0},{"$f":"[1]Infrastructure!W1611","v":0},{"$f":"[1]Infrastructure!W1611","v":0},0,{"$f":"[1]Infrastructure!Z1611","v":0},{"$f":"[1]Infrastructure!Z1611","v":0},0,{"$f":"[1]Infrastructure!AB1611","v":0},{"$f":"[1]Infrastructure!AB1611","v":0},0,{"$f":"[1]Infrastructure!AC1611","v":0},{"$f":"[1]Infrastructure!AD1611","v":0},{"$f":"[1]Infrastructure!AE1611","v":0},{"$f":"[1]Infrastructure!AF1611","v":0},{"$f":"[1]Infrastructure!AG1611","v":0},{"$f":"[1]Infrastructure!AH1611","v":0},0]
[{"$f":"IF(SUM(O1612:AH1612),1,0)","v":0},null,null,null,null,null,{"$f":"[1]Infrastructure!G1612","v":0},{"$f":"[1]Infrastructure!H1612","v":0},{"$f":"[1]Infrastructure!I1612","v":0},{"$f":"[1]Infrastructure!J1612","v":0},{"$f":"[1]Infrastructure!K1612","v":0},{"$f":"[1]Infrastructure!L1612","v":0},{"$f":"[1]Infrastructure!M1612","v":0},{"$f":"[1]Infrastructure!N1612","v":0},{"$f":"[1]Infrastructure!O1612","v":0},{"$f":"[1]Infrastructure!Q1612","v":0},{"$f":"[1]Infrastructure!R1612","v":0},{"$f":"[1]Infrastructure!T1612","v":0},{"$f":"[1]Infrastructure!W1612","v":0},{"$f":"[1]Infrastructure!W1612","v":0},0,{"$f":"[1]Infrastructure!Z1612","v":0},{"$f":"[1]Infrastructure!Z1612","v":0},0,{"$f":"[1]Infrastructure!AB1612","v":0},{"$f":"[1]Infrastructure!AB1612","v":0},0,{"$f":"[1]Infrastructure!AC1612","v":0},{"$f":"[1]Infrastructure!AD1612","v":0},{"$f":"[1]Infrastructure!AE1612","v":0},{"$f":"[1]Infrastructure!AF1612","v":0},{"$f":"[1]Infrastructure!AG1612","v":0},{"$f":"[1]Infrastructure!AH1612","v":0},0]
[0,null,null,null,null,null,{"$f":"[1]Infrastructure!G1613","v":0},{"$f":"[1]Infrastructure!H1613","v":0},{"$f":"[1]Infrastructure!I1613","v":0},{"$f":"[1]Infrastructure!J1613","v":0},{"$f":"[1]Infrastructure!K1613","v":0},{"$f":"[1]Infrastructure!L1613","v":0},{"$f":"[1]Infrastructure!M1613","v":0},{"$f":"[1]Infrastructure!N1613","v":0},{"$f":"[1]Infrastructure!O1613","v":0},{"$f":"[1]Infrastructure!Q1613","v":0},{"$f":"[1]Infrastructure!R1613","v":0},{"$f":"[1]Infrastructure!T1613","v":0},{"$f":"[1]Infrastructure!W1613","v":0},{"$f":"[1]Infrastructure!W1613","v":0},0,{"$f":"[1]Infrastructure!Z1613","v":0},{"$f":"[1]Infrastructure!Z1613","v":0},0,{"$f":"[1]Infrastructure!AB1613","v":0},{"$f":"[1]Infrastructure!AB1613","v":0},0,{"$f":"[1]Infrastructure!AC1613","v":0},{"$f":"[1]Infrastructure!AD1613","v":0},{"$f":"[1]Infrastructure!AE1613","v":0},{"$f":"[1]Infrastructure!AF1613","v":0},{"$f":"[1]Infrastructure!AG1613","v":0},{"$f":"[1]Infrastructure!AH1613","v":0},0]
[0,null,null,null,null,null,{"$f":"[1]Infrastructure!G1614","v":0},{"$f":"[1]Infrastructure!H1614","v":0},{"$f":"[1]Infrastructure!I1614","v":0},{"$f":"[1]Infrastructure!J1614","v":0},{"$f":"[1]Infrastructure!K1614","v":0},{"$f":"[1]Infrastructure!L1614","v":0},{"$f":"[1]Infrastructure!M1614","v":0},{"$f":"[1]Infrastructure!N1614","v":0},{"$f":"[1]Infrastructure!O1614","v":0},{"$f":"[1]Infrastructure!Q1614","v":0},{"$f":"[1]Infrastructure!R1614","v":0},{"$f":"[1]Infrastructure!T1614","v":0},{"$f":"[1]Infrastructure!W1614","v":0},{"$f":"[1]Infrastructure!W1614","v":0},0,{"$f":"[1]Infrastructure!Z1614","v":0},{"$f":"[1]Infrastructure!Z1614","v":0},0,{"$f":"[1]Infrastructure!AB1614","v":0},{"$f":"[1]Infrastructure!AB1614","v":0},0,{"$f":"[1]Infrastructure!AC1614","v":0},{"$f":"[1]Infrastructure!AD1614","v":0},{"$f":"[1]Infrastructure!AE1614","v":0},{"$f":"[1]Infrastructure!AF1614","v":0},{"$f":"[1]Infrastructure!AG1614","v":0},{"$f":"[1]Infrastructure!AH1614","v":0},0]
[0,null,null,null,null,null,{"$f":"[1]Infrastructure!G1615","v":0},{"$f":"[1]Infrastructure!H1615","v":0},{"$f":"[1]Infrastructure!I1615","v":0},{"$f":"[1]Infrastructure!J1615","v":0},{"$f":"[1]Infrastructure!K1615","v":0},{"$f":"[1]Infrastructure!L1615","v":0},{"$f":"[1]Infrastructure!M1615","v":0},{"$f":"[1]Infrastructure!N1615","v":0},{"$f":"[1]Infrastructure!O1615","v":0},{"$f":"[1]Infrastructure!Q1615","v":0},{"$f":"[1]Infrastructure!R1615","v":0},{"$f":"[1]Infrastructure!T1615","v":0},{"$f":"[1]Infrastructure!W1615","v":0},{"$f":"[1]Infrastructure!W1615","v":0},0,{"$f":"[1]Infrastructure!Z1615","v":0},{"$f":"[1]Infrastructure!Z1615","v":0},0,{"$f":"[1]Infrastructure!AB1615","v":0},{"$f":"[1]Infrastructure!AB1615","v":0},0,{"$f":"[1]Infrastructure!AC1615","v":0},{"$f":"[1]Infrastructure!AD1615","v":0},{"$f":"[1]Infrastructure!AE1615","v":0},{"$f":"[1]Infrastructure!AF1615","v":0},{"$f":"[1]Infrastructure!AG1615","v":0},{"$f":"[1]Infrastructure!AH1615","v":0},0]
[0,null,null,null,null,null,{"$f":"[1]Infrastructure!G1616","v":0},{"$f":"[1]Infrastructure!H1616","v":0},{"$f":"[1]Infrastructure!I1616","v":0},{"$f":"[1]Infrastructure!J1616","v":0},{"$f":"[1]Infrastructure!K1616","v":0},{"$f":"[1]Infrastructure!L1616","v":0},{"$f":"[1]Infrastructure!M1616","v":0},{"$f":"[1]Infrastructure!N1616","v":0},{"$f":"[1]Infrastructure!O1616","v":0},{"$f":"[1]Infrastructure!Q1616","v":0},{"$f":"[1]Infrastructure!R1616","v":0},{"$f":"[1]Infrastructure!T1616","v":0},{"$f":"[1]Infrastructure!W1616","v":0},{"$f":"[1]Infrastructure!W1616","v":0},0,{"$f":"[1]Infrastructure!Z1616","v":0},{"$f":"[1]Infrastructure!Z1616","v":0},0,{"$f":"[1]Infrastructure!AB1616","v":0},{"$f":"[1]Infrastructure!AB1616","v":0},0,{"$f":"[1]Infrastructure!AC1616","v":0},{"$f":"[1]Infrastructure!AD1616","v":0},{"$f":"[1]Infrastructure!AE1616","v":0},{"$f":"[1]Infrastructure!AF1616","v":0},{"$f":"[1]Infrastructure!AG1616","v":0},{"$f":"[1]Infrastructure!AH1616","v":0},0]
[0,null,null,null,null,null,{"$f":"[1]Infrastructure!G1617","v":0},{"$f":"[1]Infrastructure!H1617","v":0},{"$f":"[1]Infrastructure!I1617","v":0},{"$f":"[1]Infrastructure!J1617","v":0},{"$f":"[1]Infrastructure!K1617","v":0},{"$f":"[1]Infrastructure!L1617","v":0},{"$f":"[1]Infrastructure!M1617","v":0},{"$f":"[1]Infrastructure!N1617","v":0},{"$f":"[1]Infrastructure!O1617","v":0},{"$f":"[1]Infrastructure!Q1617","v":0},{"$f":"[1]Infrastructure!R1617","v":0},{"$f":"[1]Infrastructure!T1617","v":0},{"$f":"[1]Infrastructure!W1617","v":0},{"$f":"[1]Infrastructure!W1617","v":0},0,{"$f":"[1]Infrastructure!Z1617","v":0},{"$f":"[1]Infrastructure!Z1617","v":0},0,{"$f":"[1]Infrastructure!AB1617","v":0},{"$f":"[1]Infrastructure!AB1617","v":0},0,{"$f":"[1]Infrastructure!AC1617","v":0},{"$f":"[1]Infrastructure!AD1617","v":0},{"$f":"[1]Infrastructure!AE1617","v":0},{"$f":"[1]Infrastructure!AF1617","v":0},{"$f":"[1]Infrastructure!AG1617","v":0},{"$f":"[1]Infrastructure!AH1617","v":0},0]
[0,null,null,null,null,null,{"$f":"[1]Infrastructure!G1618","v":0},{"$f":"[1]Infrastructure!H1618","v":0},{"$f":"[1]Infrastructure!I1618","v":0},{"$f":"[1]Infrastructure!J1618","v":0},{"$f":"[1]Infrastructure!K1618","v":0},{"$f":"[1]Infrastructure!L1618","v":0},{"$f":"[1]Infrastructure!M1618","v":0},{"$f":"[1]Infrastructure!N1618","v":0},{"$f":"[1]Infrastructure!O1618","v":0},{"$f":"[1]Infrastructure!Q1618","v":0},{"$f":"[1]Infrastructure!R1618","v":0},{"$f":"[1]Infrastructure!T1618","v":0},{"$f":"[1]Infrastructure!W1618","v":0},{"$f":"[1]Infrastructure!W1618","v":0},0,{"$f":"[1]Infrastructure!Z1618","v":0},{"$f":"[1]Infrastructure!Z1618","v":0},0,{"$f":"[1]Infrastructure!AB1618","v":0},{"$f":"[1]Infrastructure!AB1618","v":0},0,{"$f":"[1]Infrastructure!AC1618","v":0},{"$f":"[1]Infrastructure!AD1618","v":0},{"$f":"[1]Infrastructure!AE1618","v":0},{"$f":"[1]Infrastructure!AF1618","v":0},{"$f":"[1]Infrastructure!AG1618","v":0},{"$f":"[1]Infrastructure!AH1618","v":0},0]
[0,null,null,null,null,null,{"$f":"[1]Infrastructure!G1619","v":0},{"$f":"[1]Infrastructure!H1619","v":0},{"$f":"[1]Infrastructure!I1619","v":0},{"$f":"[1]Infrastructure!J1619","v":0},{"$f":"[1]Infrastructure!K1619","v":0},{"$f":"[1]Infrastructure!L1619","v":0},{"$f":"[1]Infrastructure!M1619","v":0},{"$f":"[1]Infrastructure!N1619","v":0},{"$f":"[1]Infrastructure!O1619","v":0},{"$f":"[1]Infrastructure!Q1619","v":0},{"$f":"[1]Infrastructure!R1619","v":0},{"$f":"[1]Infrastructure!T1619","v":0},{"$f":"[1]Infrastructure!W1619","v":0},{"$f":"[1]Infrastructure!W1619","v":0},0,{"$f":"[1]Infrastructure!Z1619","v":0},{"$f":"[1]Infrastructure!Z1619","v":0},0,{"$f":"[1]Infrastructure!AB1619","v":0},{"$f":"[1]Infrastructure!AB1619","v":0},0,{"$f":"[1]Infrastructure!AC1619","v":0},{"$f":"[1]Infrastructure!AD1619","v":0},{"$f":"[1]Infrastructure!AE1619","v":0},{"$f":"[1]Infrastructure!AF1619","v":0},{"$f":"[1]Infrastructure!AG1619","v":0},{"$f":"[1]Infrastructure!AH1619","v":0},0]
[0,null,null,null,null,null,{"$f":"[1]Infrastructure!G1620","v":0},{"$f":"[1]Infrastructure!H1620","v":0},{"$f":"[1]Infrastructure!I1620","v":0},{"$f":"[1]Infrastructure!J1620","v":0},{"$f":"[1]Infrastructure!K1620","v":0},{"$f":"[1]Infrastructure!L1620","v":0},{"$f":"[1]Infrastructure!M1620","v":0},{"$f":"[1]Infrastructure!N1620","v":0},{"$f":"[1]Infrastructure!O1620","v":0},{"$f":"[1]Infrastructure!Q1620","v":0},{"$f":"[1]Infrastructure!R1620","v":0},{"$f":"[1]Infrastructure!T1620","v":0},{"$f":"[1]Infrastructure!W1620","v":0},{"$f":"[1]Infrastructure!W1620","v":0},0,{"$f":"[1]Infrastructure!Z1620","v":0},{"$f":"[1]Infrastructure!Z1620","v":0},0,{"$f":"[1]Infrastructure!AB1620","v":0},{"$f":"[1]Infrastructure!AB1620","v":0},0,{"$f":"[1]Infrastructure!AC1620","v":0},{"$f":"[1]Infrastructure!AD1620","v":0},{"$f":"[1]Infrastructure!AE1620","v":0},{"$f":"[1]Infrastructure!AF1620","v":0},{"$f":"[1]Infrastructure!AG1620","v":0},{"$f":"[1]Infrastructure!AH1620","v":0},0]
[0,null,null,null,null,null,{"$f":"[1]Infrastructure!G1621","v":0},{"$f":"[1]Infrastructure!H1621","v":0},{"$f":"[1]Infrastructure!I1621","v":0},{"$f":"[1]Infrastructure!J1621","v":0},{"$f":"[1]Infrastructure!K1621","v":0},{"$f":"[1]Infrastructure!L1621","v":0},{"$f":"[1]Infrastructure!M1621","v":0},{"$f":"[1]Infrastructure!N1621","v":0},{"$f":"[1]Infrastructure!O1621","v":0},{"$f":"[1]Infrastructure!Q1621","v":0},{"$f":"[1]Infrastructure!R1621","v":0},{"$f":"[1]Infrastructure!T1621","v":0},{"$f":"[1]Infrastructure!W1621","v":0},{"$f":"[1]Infrastructure!W1621","v":0},0,{"$f":"[1]Infrastructure!Z1621","v":0},{"$f":"[1]Infrastructure!Z1621","v":0},0,{"$f":"[1]Infrastructure!AB1621","v":0},{"$f":"[1]Infrastructure!AB1621","v":0},0,{"$f":"[1]Infrastructure!AC1621","v":0},{"$f":"[1]Infrastructure!AD1621","v":0},{"$f":"[1]Infrastructure!AE1621","v":0},{"$f":"[1]Infrastructure!AF1621","v":0},{"$f":"[1]Infrastructure!AG1621","v":0},{"$f":"[1]Infrastructure!AH1621","v":0},0]
[0,null,null,null,null,null,{"$f":"[1]Infrastructure!G1622","v":0},{"$f":"[1]Infrastructure!H1622","v":0},{"$f":"[1]Infrastructure!I1622","v":0},{"$f":"[1]Infrastructure!J1622","v":0},{"$f":"[1]Infrastructure!K1622","v":0},{"$f":"[1]Infrastructure!L1622","v":0},{"$f":"[1]Infrastructure!M1622","v":0},{"$f":"[1]Infrastructure!N1622","v":0},{"$f":"[1]Infrastructure!O1622","v":0},{"$f":"[1]Infrastructure!Q1622","v":0},{"$f":"[1]Infrastructure!R1622","v":0},{"$f":"[1]Infrastructure!T1622","v":0},{"$f":"[1]Infrastructure!W1622","v":0},{"$f":"[1]Infrastructure!W1622","v":0},0,{"$f":"[1]Infrastructure!Z1622","v":0},{"$f":"[1]Infrastructure!Z1622","v":0},0,{"$f":"[1]Infrastructure!AB1622","v":0},{"$f":"[1]Infrastructure!AB1622","v":0},0,{"$f":"[1]Infrastructure!AC1622","v":0},{"$f":"[1]Infrastructure!AD1622","v":0},{"$f":"[1]Infrastructure!AE1622","v":0},{"$f":"[1]Infrastructure!AF1622","v":0},{"$f":"[1]Infrastructure!AG1622","v":0},{"$f":"[1]Infrastructure!AH1622","v":0},0]
[0,null,null,null,null,null,{"$f":"[1]Infrastructure!G1623","v":0},{"$f":"[1]Infrastructure!H1623","v":0},{"$f":"[1]Infrastructure!I1623","v":0},{"$f":"[1]Infrastructure!J1623","v":0},{"$f":"[1]Infrastructure!K1623","v":0},{"$f":"[1]Infrastructure!L1623","v":0},{"$f":"[1]Infrastructure!M1623","v":0},{"$f":"[1]Infrastructure!N1623","v":0},{"$f":"[1]Infrastructure!O1623","v":0},{"$f":"[1]Infrastructure!Q1623","v":0},{"$f":"[1]Infrastructure!R1623","v":0},{"$f":"[1]Infrastructure!T1623","v":0},{"$f":"[1]Infrastructure!W1623","v":0},{"$f":"[1]Infrastructure!W1623","v":0},0,{"$f":"[1]Infrastructure!Z1623","v":0},{"$f":"[1]Infrastructure!Z1623","v":0},0,{"$f":"[1]Infrastructure!AB1623","v":0},{"$f":"[1]Infrastructure!AB1623","v":0},0,{"$f":"[1]Infrastructure!AC1623","v":0},{"$f":"[1]Infrastructure!AD1623","v":0},{"$f":"[1]Infrastructure!AE1623","v":0},{"$f":"[1]Infrastructure!AF1623","v":0},{"$f":"[1]Infrastructure!AG1623","v":0},{"$f":"[1]Infrastructure!AH1623","v":0},0]
[0,null,null,null,null,null,{"$f":"[1]Infrastructure!G1624","v":0},{"$f":"[1]Infrastructure!H1624","v":0},{"$f":"[1]Infrastructure!I1624","v":0},{"$f":"[1]Infrastructure!J1624","v":0},{"$f":"[1]Infrastructure!K1624","v":0},{"$f":"[1]Infrastructure!L1624","v":0},{"$f":"[1]Infrastructure!M1624","v":0},{"$f":"[1]Infrastructure!N1624","v":0},{"$f":"[1]Infrastructure!O1624","v":0},{"$f":"[1]Infrastructure!Q1624","v":0},{"$f":"[1]Infrastructure!R1624","v":0},{"$f":"[1]Infrastructure!T1624","v":0},{"$f":"[1]Infrastructure!W1624","v":0},{"$f":"[1]Infrastructure!W1624","v":0},0,{"$f":"[1]Infrastructure!Z1624","v":0},{"$f":"[1]Infrastructure!Z1624","v":0},0,{"$f":"[1]Infrastructure!AB1624","v":0},{"$f":"[1]Infrastructure!AB1624","v":0},0,{"$f":"[1]Infrastructure!AC1624","v":0},{"$f":"[1]Infrastructure!AD1624","v":0},{"$f":"[1]Infrastructure!AE1624","v":0},{"$f":"[1]Infrastructure!AF1624","v":0},{"$f":"[1]Infrastructure!AG1624","v":0},{"$f":"[1]Infrastructure!AH1624","v":0},0]
[0,null,null,null,null,null,{"$f":"[1]Infrastructure!G1625","v":0},{"$f":"[1]Infrastructure!H1625","v":0},{"$f":"[1]Infrastructure!I1625","v":0},{"$f":"[1]Infrastructure!J1625","v":0},{"$f":"[1]Infrastructure!K1625","v":0},{"$f":"[1]Infrastructure!L1625","v":0},{"$f":"[1]Infrastructure!M1625","v":0},{"$f":"[1]Infrastructure!N1625","v":0},{"$f":"[1]Infrastructure!O1625","v":0},{"$f":"[1]Infrastructure!Q1625","v":0},{"$f":"[1]Infrastructure!R1625","v":0},{"$f":"[1]Infrastructure!T1625","v":0},{"$f":"[1]Infrastructure!W1625","v":0},{"$f":"[1]Infrastructure!W1625","v":0},0,{"$f":"[1]Infrastructure!Z1625","v":0},{"$f":"[1]Infrastructure!Z1625","v":0},0,{"$f":"[1]Infrastructure!AB1625","v":0},{"$f":"[1]Infrastructure!AB1625","v":0},0,{"$f":"[1]Infrastructure!AC1625","v":0},{"$f":"[1]Infrastructure!AD1625","v":0},{"$f":"[1]Infrastructure!AE1625","v":0},{"$f":"[1]Infrastructure!AF1625","v":0},{"$f":"[1]Infrastructure!AG1625","v":0},{"$f":"[1]Infrastructure!AH1625","v":0},0]
[0,null,null,null,null,null,{"$f":"[1]Infrastructure!G1626","v":0},{"$f":"[1]Infrastructure!H1626","v":0},{"$f":"[1]Infrastructure!I1626","v":0},{"$f":"[1]Infrastructure!J1626","v":0},{"$f":"[1]Infrastructure!K1626","v":0},{"$f":"[1]Infrastructure!L1626","v":0},{"$f":"[1]Infrastructure!M1626","v":0},{"$f":"[1]Infrastructure!N1626","v":0},{"$f":"[1]Infrastructure!O1626","v":0},{"$f":"[1]Infrastructure!Q1626","v":0},{"$f":"[1]Infrastructure!R1626","v":0},{"$f":"[1]Infrastructure!T1626","v":0},{"$f":"[1]Infrastructure!W1626","v":0},{"$f":"[1]Infrastructure!W1626","v":0},0,{"$f":"[1]Infrastructure!Z1626","v":0},{"$f":"[1]Infrastructure!Z1626","v":0},0,{"$f":"[1]Infrastructure!AB1626","v":0},{"$f":"[1]Infrastructure!AB1626","v":0},0,{"$f":"[1]Infrastructure!AC1626","v":0},{"$f":"[1]Infrastructure!AD1626","v":0},{"$f":"[1]Infrastructure!AE1626","v":0},{"$f":"[1]Infrastructure!AF1626","v":0},{"$f":"[1]Infrastructure!AG1626","v":0},{"$f":"[1]Infrastructure!AH1626","v":0},0]
[0,null,null,null,null,null,{"$f":"[1]Infrastructure!G1627","v":0},{"$f":"[1]Infrastructure!H1627","v":0},{"$f":"[1]Infrastructure!I1627","v":0},{"$f":"[1]Infrastructure!J1627","v":0},{"$f":"[1]Infrastructure!K1627","v":0},{"$f":"[1]Infrastructure!L1627","v":0},{"$f":"[1]Infrastructure!M1627","v":0},{"$f":"[1]Infrastructure!N1627","v":0},{"$f":"[1]Infrastructure!O1627","v":0},{"$f":"[1]Infrastructure!Q1627","v":0},{"$f":"[1]Infrastructure!R1627","v":0},{"$f":"[1]Infrastructure!T1627","v":0},{"$f":"[1]Infrastructure!W1627","v":0},{"$f":"[1]Infrastructure!W1627","v":0},0,{"$f":"[1]Infrastructure!Z1627","v":0},{"$f":"[1]Infrastructure!Z1627","v":0},0,{"$f":"[1]Infrastructure!AB1627","v":0},{"$f":"[1]Infrastructure!AB1627","v":0},0,{"$f":"[1]Infrastructure!AC1627","v":0},{"$f":"[1]Infrastructure!AD1627","v":0},{"$f":"[1]Infrastructure!AE1627","v":0},{"$f":"[1]Infrastructure!AF1627","v":0},{"$f":"[1]Infrastructure!AG1627","v":0},{"$f":"[1]Infrastructure!AH1627","v":0},0]
[0,null,null,null,null,null,{"$f":"[1]Infrastructure!G1628","v":0},{"$f":"[1]Infrastructure!H1628","v":0},{"$f":"[1]Infrastructure!I1628","v":0},{"$f":"[1]Infrastructure!J1628","v":0},{"$f":"[1]Infrastructure!K1628","v":0},{"$f":"[1]Infrastructure!L1628","v":0},{"$f":"[1]Infrastructure!M1628","v":0},{"$f":"[1]Infrastructure!N1628","v":0},{"$f":"[1]Infrastructure!O1628","v":0},{"$f":"[1]Infrastructure!Q1628","v":0},{"$f":"[1]Infrastructure!R1628","v":0},{"$f":"[1]Infrastructure!T1628","v":0},{"$f":"[1]Infrastructure!W1628","v":0},{"$f":"[1]Infrastructure!W1628","v":0},0,{"$f":"[1]Infrastructure!Z1628","v":0},{"$f":"[1]Infrastructure!Z1628","v":0},0,{"$f":"[1]Infrastructure!AB1628","v":0},{"$f":"[1]Infrastructure!AB1628","v":0},0,{"$f":"[1]Infrastructure!AC1628","v":0},{"$f":"[1]Infrastructure!AD1628","v":0},{"$f":"[1]Infrastructure!AE1628","v":0},{"$f":"[1]Infrastructure!AF1628","v":0},{"$f":"[1]Infrastructure!AG1628","v":0},{"$f":"[1]Infrastructure!AH1628","v":0},0]
[0,null,null,null,null,null,{"$f":"[1]Infrastructure!G1629","v":0},{"$f":"[1]Infrastructure!H1629","v":0},{"$f":"[1]Infrastructure!I1629","v":0},{"$f":"[1]Infrastructure!J1629","v":0},{"$f":"[1]Infrastructure!K1629","v":0},{"$f":"[1]Infrastructure!L1629","v":0},{"$f":"[1]Infrastructure!M1629","v":0},{"$f":"[1]Infrastructure!N1629","v":0},{"$f":"[1]Infrastructure!O1629","v":0},{"$f":"[1]Infrastructure!Q1629","v":0},{"$f":"[1]Infrastructure!R1629","v":0},{"$f":"[1]Infrastructure!T1629","v":0},{"$f":"[1]Infrastructure!W1629","v":0},{"$f":"[1]Infrastructure!W1629","v":0},0,{"$f":"[1]Infrastructure!Z1629","v":0},{"$f":"[1]Infrastructure!Z1629","v":0},0,{"$f":"[1]Infrastructure!AB1629","v":0},{"$f":"[1]Infrastructure!AB1629","v":0},0,{"$f":"[1]Infrastructure!AC1629","v":0},{"$f":"[1]Infrastructure!AD1629","v":0},{"$f":"[1]Infrastructure!AE1629","v":0},{"$f":"[1]Infrastructure!AF1629","v":0},{"$f":"[1]Infrastructure!AG1629","v":0},{"$f":"[1]Infrastructure!AH1629","v":0},0]
[0,null,null,null,null,null,{"$f":"[1]Infrastructure!G1630","v":0},{"$f":"[1]Infrastructure!H1630","v":0},{"$f":"[1]Infrastructure!I1630","v":0},{"$f":"[1]Infrastructure!J1630","v":0},{"$f":"[1]Infrastructure!K1630","v":0},{"$f":"[1]Infrastructure!L1630","v":0},{"$f":"[1]Infrastructure!M1630","v":0},{"$f":"[1]Infrastructure!N1630","v":0},{"$f":"[1]Infrastructure!O1630","v":0},{"$f":"[1]Infrastructure!Q1630","v":0},{"$f":"[1]Infrastructure!R1630","v":0},{"$f":"[1]Infrastructure!T1630","v":0},{"$f":"[1]Infrastructure!W1630","v":0},{"$f":"[1]Infrastructure!W1630","v":0},0,{"$f":"[1]Infrastructure!Z1630","v":0},{"$f":"[1]Infrastructure!Z1630","v":0},0,{"$f":"[1]Infrastructure!AB1630","v":0},{"$f":"[1]Infrastructure!AB1630","v":0},0,{"$f":"[1]Infrastructure!AC1630","v":0},{"$f":"[1]Infrastructure!AD1630","v":0},{"$f":"[1]Infrastructure!AE1630","v":0},{"$f":"[1]Infrastructure!AF1630","v":0},{"$f":"[1]Infrastructure!AG1630","v":0},{"$f":"[1]Infrastructure!AH1630","v":0},0]
[0,null,null,null,null,null,{"$f":"[1]Infrastructure!G1631","v":0},{"$f":"[1]Infrastructure!H1631","v":0},{"$f":"[1]Infrastructure!I1631","v":0},{"$f":"[1]Infrastructure!J1631","v":0},{"$f":"[1]Infrastructure!K1631","v":0},{"$f":"[1]Infrastructure!L1631","v":0},{"$f":"[1]Infrastructure!M1631","v":0},{"$f":"[1]Infrastructure!N1631","v":0},{"$f":"[1]Infrastructure!O1631","v":0},{"$f":"[1]Infrastructure!Q1631","v":0},{"$f":"[1]Infrastructure!R1631","v":0},{"$f":"[1]Infrastructure!T1631","v":0},{"$f":"[1]Infrastructure!W1631","v":0},{"$f":"[1]Infrastructure!W1631","v":0},0,{"$f":"[1]Infrastructure!Z1631","v":0},{"$f":"[1]Infrastructure!Z1631","v":0},0,{"$f":"[1]Infrastructure!AB1631","v":0},{"$f":"[1]Infrastructure!AB1631","v":0},0,{"$f":"[1]Infrastructure!AC1631","v":0},{"$f":"[1]Infrastructure!AD1631","v":0},{"$f":"[1]Infrastructure!AE1631","v":0},{"$f":"[1]Infrastructure!AF1631","v":0},{"$f":"[1]Infrastructure!AG1631","v":0},{"$f":"[1]Infrastructure!AH1631","v":0},0]
[0,null,null,null,null,null,{"$f":"[1]Infrastructure!G1632","v":0},{"$f":"[1]Infrastructure!H1632","v":0},{"$f":"[1]Infrastructure!I1632","v":0},{"$f":"[1]Infrastructure!J1632","v":0},{"$f":"[1]Infrastructure!K1632","v":0},{"$f":"[1]Infrastructure!L1632","v":0},{"$f":"[1]Infrastructure!M1632","v":0},{"$f":"[1]Infrastructure!N1632","v":0},{"$f":"[1]Infrastructure!O1632","v":0},{"$f":"[1]Infrastructure!Q1632","v":0},{"$f":"[1]Infrastructure!R1632","v":0},{"$f":"[1]Infrastructure!T1632","v":0},{"$f":"[1]Infrastructure!W1632","v":0},{"$f":"[1]Infrastructure!W1632","v":0},0,{"$f":"[1]Infrastructure!Z1632","v":0},{"$f":"[1]Infrastructure!Z1632","v":0},0,{"$f":"[1]Infrastructure!AB1632","v":0},{"$f":"[1]Infrastructure!AB1632","v":0},0,{"$f":"[1]Infrastructure!AC1632","v":0},{"$f":"[1]Infrastructure!AD1632","v":0},{"$f":"[1]Infrastructure!AE1632","v":0},{"$f":"[1]Infrastructure!AF1632","v":0},{"$f":"[1]Infrastructure!AG1632","v":0},{"$f":"[1]Infrastructure!AH1632","v":0},0]
[0,null,null,null,null,null,{"$f":"[1]Infrastructure!G1633","v":0},{"$f":"[1]Infrastructure!H1633","v":0},{"$f":"[1]Infrastructure!I1633","v":0},{"$f":"[1]Infrastructure!J1633","v":0},{"$f":"[1]Infrastructure!K1633","v":0},{"$f":"[1]Infrastructure!L1633","v":0},{"$f":"[1]Infrastructure!M1633","v":0},{"$f":"[1]Infrastructure!N1633","v":0},{"$f":"[1]Infrastructure!O1633","v":0},{"$f":"[1]Infrastructure!Q1633","v":0},{"$f":"[1]Infrastructure!R1633","v":0},{"$f":"[1]Infrastructure!T1633","v":0},{"$f":"[1]Infrastructure!W1633","v":0},{"$f":"[1]Infrastructure!W1633","v":0},0,{"$f":"[1]Infrastructure!Z1633","v":0},{"$f":"[1]Infrastructure!Z1633","v":0},0,{"$f":"[1]Infrastructure!AB1633","v":0},{"$f":"[1]Infrastructure!AB1633","v":0},0,{"$f":"[1]Infrastructure!AC1633","v":0},{"$f":"[1]Infrastructure!AD1633","v":0},{"$f":"[1]Infrastructure!AE1633","v":0},{"$f":"[1]Infrastructure!AF1633","v":0},{"$f":"[1]Infrastructure!AG1633","v":0},{"$f":"[1]Infrastructure!AH1633","v":0},0]
[0,null,null,null,null,null,{"$f":"[1]Infrastructure!G1634","v":0},{"$f":"[1]Infrastructure!H1634","v":0},{"$f":"[1]Infrastructure!I1634","v":0},{"$f":"[1]Infrastructure!J1634","v":0},{"$f":"[1]Infrastructure!K1634","v":0},{"$f":"[1]Infrastructure!L1634","v":0},{"$f":"[1]Infrastructure!M1634","v":0},{"$f":"[1]Infrastructure!N1634","v":0},{"$f":"[1]Infrastructure!O1634","v":0},{"$f":"[1]Infrastructure!Q1634","v":0},{"$f":"[1]Infrastructure!R1634","v":0},{"$f":"[1]Infrastructure!T1634","v":0},{"$f":"[1]Infrastructure!W1634","v":0},{"$f":"[1]Infrastructure!W1634","v":0},0,{"$f":"[1]Infrastructure!Z1634","v":0},{"$f":"[1]Infrastructure!Z1634","v":0},0,{"$f":"[1]Infrastructure!AB1634","v":0},{"$f":"[1]Infrastructure!AB1634","v":0},0,{"$f":"[1]Infrastructure!AC1634","v":0},{"$f":"[1]Infrastructure!AD1634","v":0},{"$f":"[1]Infrastructure!AE1634","v":0},{"$f":"[1]Infrastructure!AF1634","v":0},{"$f":"[1]Infrastructure!AG1634","v":0},{"$f":"[1]Infrastructure!AH1634","v":0},0]
[0,null,null,null,null,null,{"$f":"[1]Infrastructure!G1635","v":0},{"$f":"[1]Infrastructure!H1635","v":0},{"$f":"[1]Infrastructure!I1635","v":0},{"$f":"[1]Infrastructure!J1635","v":0},{"$f":"[1]Infrastructure!K1635","v":0},{"$f":"[1]Infrastructure!L1635","v":0},{"$f":"[1]Infrastructure!M1635","v":0},{"$f":"[1]Infrastructure!N1635","v":0},{"$f":"[1]Infrastructure!O1635","v":0},{"$f":"[1]Infrastructure!Q1635","v":0},{"$f":"[1]Infrastructure!R1635","v":0},{"$f":"[1]Infrastructure!T1635","v":0},{"$f":"[1]Infrastructure!W1635","v":0},{"$f":"[1]Infrastructure!W1635","v":0},0,{"$f":"[1]Infrastructure!Z1635","v":0},{"$f":"[1]Infrastructure!Z1635","v":0},0,{"$f":"[1]Infrastructure!AB1635","v":0},{"$f":"[1]Infrastructure!AB1635","v":0},0,{"$f":"[1]Infrastructure!AC1635","v":0},{"$f":"[1]Infrastructure!AD1635","v":0},{"$f":"[1]Infrastructure!AE1635","v":0},{"$f":"[1]Infrastructure!AF1635","v":0},{"$f":"[1]Infrastructure!AG1635","v":0},{"$f":"[1]Infrastructure!AH1635","v":0},0]
[0,null,null,null,null,null,{"$f":"[1]Infrastructure!G1636","v":0},{"$f":"[1]Infrastructure!H1636","v":0},{"$f":"[1]Infrastructure!I1636","v":0},{"$f":"[1]Infrastructure!J1636","v":0},{"$f":"[1]Infrastructure!K1636","v":0},{"$f":"[1]Infrastructure!L1636","v":0},{"$f":"[1]Infrastructure!M1636","v":0},{"$f":"[1]Infrastructure!N1636","v":0},{"$f":"[1]Infrastructure!O1636","v":0},{"$f":"[1]Infrastructure!Q1636","v":0},{"$f":"[1]Infrastructure!R1636","v":0},{"$f":"[1]Infrastructure!T1636","v":0},{"$f":"[1]Infrastructure!W1636","v":0},{"$f":"[1]Infrastructure!W1636","v":0},0,{"$f":"[1]Infrastructure!Z1636","v":0},{"$f":"[1]Infrastructure!Z1636","v":0},0,{"$f":"[1]Infrastructure!AB1636","v":0},{"$f":"[1]Infrastructure!AB1636","v":0},0,{"$f":"[1]Infrastructure!AC1636","v":0},{"$f":"[1]Infrastructure!AD1636","v":0},{"$f":"[1]Infrastructure!AE1636","v":0},{"$f":"[1]Infrastructure!AF1636","v":0},{"$f":"[1]Infrastructure!AG1636","v":0},{"$f":"[1]Infrastructure!AH1636","v":0},0]
[0,null,null,null,null,null,{"$f":"[1]Infrastructure!G1637","v":0},{"$f":"[1]Infrastructure!H1637","v":0},{"$f":"[1]Infrastructure!I1637","v":0},{"$f":"[1]Infrastructure!J1637","v":0},{"$f":"[1]Infrastructure!K1637","v":0},{"$f":"[1]Infrastructure!L1637","v":0},{"$f":"[1]Infrastructure!M1637","v":0},{"$f":"[1]Infrastructure!N1637","v":0},{"$f":"[1]Infrastructure!O1637","v":0},{"$f":"[1]Infrastructure!Q1637","v":0},{"$f":"[1]Infrastructure!R1637","v":0},{"$f":"[1]Infrastructure!T1637","v":0},{"$f":"[1]Infrastructure!W1637","v":0},{"$f":"[1]Infrastructure!W1637","v":0},0,{"$f":"[1]Infrastructure!Z1637","v":0},{"$f":"[1]Infrastructure!Z1637","v":0},0,{"$f":"[1]Infrastructure!AB1637","v":0},{"$f":"[1]Infrastructure!AB1637","v":0},0,{"$f":"[1]Infrastructure!AC1637","v":0},{"$f":"[1]Infrastructure!AD1637","v":0},{"$f":"[1]Infrastructure!AE1637","v":0},{"$f":"[1]Infrastructure!AF1637","v":0},{"$f":"[1]Infrastructure!AG1637","v":0},{"$f":"[1]Infrastructure!AH1637","v":0},0]
[0,null,null,null,null,null,{"$f":"[1]Infrastructure!G1638","v":0},{"$f":"[1]Infrastructure!H1638","v":0},{"$f":"[1]Infrastructure!I1638","v":0},{"$f":"[1]Infrastructure!J1638","v":0},{"$f":"[1]Infrastructure!K1638","v":0},{"$f":"[1]Infrastructure!L1638","v":0},{"$f":"[1]Infrastructure!M1638","v":0},{"$f":"[1]Infrastructure!N1638","v":0},{"$f":"[1]Infrastructure!O1638","v":0},{"$f":"[1]Infrastructure!Q1638","v":0},{"$f":"[1]Infrastructure!R1638","v":0},{"$f":"[1]Infrastructure!T1638","v":0},{"$f":"[1]Infrastructure!W1638","v":0},{"$f":"[1]Infrastructure!W1638","v":0},0,{"$f":"[1]Infrastructure!Z1638","v":0},{"$f":"[1]Infrastructure!Z1638","v":0},0,{"$f":"[1]Infrastructure!AB1638","v":0},{"$f":"[1]Infrastructure!AB1638","v":0},0,{"$f":"[1]Infrastructure!AC1638","v":0},{"$f":"[1]Infrastructure!AD1638","v":0},{"$f":"[1]Infrastructure!AE1638","v":0},{"$f":"[1]Infrastructure!AF1638","v":0},{"$f":"[1]Infrastructure!AG1638","v":0},{"$f":"[1]Infrastructure!AH1638","v":0},0]
[0,null,null,null,null,null,{"$f":"[1]Infrastructure!G1639","v":0},{"$f":"[1]Infrastructure!H1639","v":0},{"$f":"[1]Infrastructure!I1639","v":0},{"$f":"[1]Infrastructure!J1639","v":0},{"$f":"[1]Infrastructure!K1639","v":0},{"$f":"[1]Infrastructure!L1639","v":0},{"$f":"[1]Infrastructure!M1639","v":0},{"$f":"[1]Infrastructure!N1639","v":0},{"$f":"[1]Infrastructure!O1639","v":0},{"$f":"[1]Infrastructure!Q1639","v":0},{"$f":"[1]Infrastructure!R1639","v":0},{"$f":"[1]Infrastructure!T1639","v":0},{"$f":"[1]Infrastructure!W1639","v":0},{"$f":"[1]Infrastructure!W1639","v":0},0,{"$f":"[1]Infrastructure!Z1639","v":0},{"$f":"[1]Infrastructure!Z1639","v":0},0,{"$f":"[1]Infrastructure!AB1639","v":0},{"$f":"[1]Infrastructure!AB1639","v":0},0,{"$f":"[1]Infrastructure!AC1639","v":0},{"$f":"[1]Infrastructure!AD1639","v":0},{"$f":"[1]Infrastructure!AE1639","v":0},{"$f":"[1]Infrastructure!AF1639","v":0},{"$f":"[1]Infrastructure!AG1639","v":0},{"$f":"[1]Infrastructure!AH1639","v":0},0]
[0,null,null,null,null,null,{"$f":"[1]Infrastructure!G1640","v":0},{"$f":"[1]Infrastructure!H1640","v":0},{"$f":"[1]Infrastructure!I1640","v":0},{"$f":"[1]Infrastructure!J1640","v":0},{"$f":"[1]Infrastructure!K1640","v":0},{"$f":"[1]Infrastructure!L1640","v":0},{"$f":"[1]Infrastructure!M1640","v":0},{"$f":"[1]Infrastructure!N1640","v":0},{"$f":"[1]Infrastructure!O1640","v":0},{"$f":"[1]Infrastructure!Q1640","v":0},{"$f":"[1]Infrastructure!R1640","v":0},{"$f":"[1]Infrastructure!T1640","v":0},{"$f":"[1]Infrastructure!W1640","v":0},{"$f":"[1]Infrastructure!W1640","v":0},0,{"$f":"[1]Infrastructure!Z1640","v":0},{"$f":"[1]Infrastructure!Z1640","v":0},0,{"$f":"[1]Infrastructure!AB1640","v":0},{"$f":"[1]Infrastructure!AB1640","v":0},0,{"$f":"[1]Infrastructure!AC1640","v":0},{"$f":"[1]Infrastructure!AD1640","v":0},{"$f":"[1]Infrastructure!AE1640","v":0},{"$f":"[1]Infrastructure!AF1640","v":0},{"$f":"[1]Infrastructure!AG1640","v":0},{"$f":"[1]Infrastructure!AH1640","v":0},0]
[0,null,null,null,null,null,{"$f":"[1]Infrastructure!G1641","v":0},{"$f":"[1]Infrastructure!H1641","v":0},{"$f":"[1]Infrastructure!I1641","v":0},{"$f":"[1]Infrastructure!J1641","v":0},{"$f":"[1]Infrastructure!K1641","v":0},{"$f":"[1]Infrastructure!L1641","v":0},{"$f":"[1]Infrastructure!M1641","v":0},{"$f":"[1]Infrastructure!N1641","v":0},{"$f":"[1]Infrastructure!O1641","v":0},{"$f":"[1]Infrastructure!Q1641","v":0},{"$f":"[1]Infrastructure!R1641","v":0},{"$f":"[1]Infrastructure!T1641","v":0},{"$f":"[1]Infrastructure!W1641","v":0},{"$f":"[1]Infrastructure!W1641","v":0},0,{"$f":"[1]Infrastructure!Z1641","v":0},{"$f":"[1]Infrastructure!Z1641","v":0},0,{"$f":"[1]Infrastructure!AB1641","v":0},{"$f":"[1]Infrastructure!AB1641","v":0},0,{"$f":"[1]Infrastructure!AC1641","v":0},{"$f":"[1]Infrastructure!AD1641","v":0},{"$f":"[1]Infrastructure!AE1641","v":0},{"$f":"[1]Infrastructure!AF1641","v":0},{"$f":"[1]Infrastructure!AG1641","v":0},{"$f":"[1]Infrastructure!AH1641","v":0},0]
[0,null,null,null,null,null,{"$f":"[1]Infrastructure!G1642","v":0},{"$f":"[1]Infrastructure!H1642","v":0},{"$f":"[1]Infrastructure!I1642","v":0},{"$f":"[1]Infrastructure!J1642","v":0},{"$f":"[1]Infrastructure!K1642","v":0},{"$f":"[1]Infrastructure!L1642","v":0},{"$f":"[1]Infrastructure!M1642","v":0},{"$f":"[1]Infrastructure!N1642","v":0},{"$f":"[1]Infrastructure!O1642","v":0},{"$f":"[1]Infrastructure!Q1642","v":0},{"$f":"[1]Infrastructure!R1642","v":0},{"$f":"[1]Infrastructure!T1642","v":0},{"$f":"[1]Infrastructure!W1642","v":0},{"$f":"[1]Infrastructure!W1642","v":0},0,{"$f":"[1]Infrastructure!Z1642","v":0},{"$f":"[1]Infrastructure!Z1642","v":0},0,{"$f":"[1]Infrastructure!AB1642","v":0},{"$f":"[1]Infrastructure!AB1642","v":0},0,{"$f":"[1]Infrastructure!AC1642","v":0},{"$f":"[1]Infrastructure!AD1642","v":0},{"$f":"[1]Infrastructure!AE1642","v":0},{"$f":"[1]Infrastructure!AF1642","v":0},{"$f":"[1]Infrastructure!AG1642","v":0},{"$f":"[1]Infrastructure!AH1642","v":0},0]
[0,null,null,null,null,null,{"$f":"[1]Infrastructure!G1643","v":0},{"$f":"[1]Infrastructure!H1643","v":0},{"$f":"[1]Infrastructure!I1643","v":0},{"$f":"[1]Infrastructure!J1643","v":0},{"$f":"[1]Infrastructure!K1643","v":0},{"$f":"[1]Infrastructure!L1643","v":0},{"$f":"[1]Infrastructure!M1643","v":0},{"$f":"[1]Infrastructure!N1643","v":0},{"$f":"[1]Infrastructure!O1643","v":0},{"$f":"[1]Infrastructure!Q1643","v":0},{"$f":"[1]Infrastructure!R1643","v":0},{"$f":"[1]Infrastructure!T1643","v":0},{"$f":"[1]Infrastructure!W1643","v":0},{"$f":"[1]Infrastructure!W1643","v":0},0,{"$f":"[1]Infrastructure!Z1643","v":0},{"$f":"[1]Infrastructure!Z1643","v":0},0,{"$f":"[1]Infrastructure!AB1643","v":0},{"$f":"[1]Infrastructure!AB1643","v":0},0,{"$f":"[1]Infrastructure!AC1643","v":0},{"$f":"[1]Infrastructure!AD1643","v":0},{"$f":"[1]Infrastructure!AE1643","v":0},{"$f":"[1]Infrastructure!AF1643","v":0},{"$f":"[1]Infrastructure!AG1643","v":0},{"$f":"[1]Infrastructure!AH1643","v":0},0]
[0,null,null,null,null,null,{"$f":"[1]Infrastructure!G1644","v":0},{"$f":"[1]Infrastructure!H1644","v":0},{"$f":"[1]Infrastructure!I1644","v":0},{"$f":"[1]Infrastructure!J1644","v":0},{"$f":"[1]Infrastructure!K1644","v":0},{"$f":"[1]Infrastructure!L1644","v":0},{"$f":"[1]Infrastructure!M1644","v":0},{"$f":"[1]Infrastructure!N1644","v":0},{"$f":"[1]Infrastructure!O1644","v":0},{"$f":"[1]Infrastructure!Q1644","v":0},{"$f":"[1]Infrastructure!R1644","v":0},{"$f":"[1]Infrastructure!T1644","v":0},{"$f":"[1]Infrastructure!W1644","v":0},{"$f":"[1]Infrastructure!W1644","v":0},0,{"$f":"[1]Infrastructure!Z1644","v":0},{"$f":"[1]Infrastructure!Z1644","v":0},0,{"$f":"[1]Infrastructure!AB1644","v":0},{"$f":"[1]Infrastructure!AB1644","v":0},0,{"$f":"[1]Infrastructure!AC1644","v":0},{"$f":"[1]Infrastructure!AD1644","v":0},{"$f":"[1]Infrastructure!AE1644","v":0},{"$f":"[1]Infrastructure!AF1644","v":0},{"$f":"[1]Infrastructure!AG1644","v":0},{"$f":"[1]Infrastructure!AH1644","v":0},0]
[0,null,null,null,null,null,{"$f":"[1]Infrastructure!G1645","v":0},{"$f":"[1]Infrastructure!H1645","v":0},{"$f":"[1]Infrastructure!I1645","v":0},{"$f":"[1]Infrastructure!J1645","v":0},{"$f":"[1]Infrastructure!K1645","v":0},{"$f":"[1]Infrastructure!L1645","v":0},{"$f":"[1]Infrastructure!M1645","v":0},{"$f":"[1]Infrastructure!N1645","v":0},{"$f":"[1]Infrastructure!O1645","v":0},{"$f":"[1]Infrastructure!Q1645","v":0},{"$f":"[1]Infrastructure!R1645","v":0},{"$f":"[1]Infrastructure!T1645","v":0},{"$f":"[1]Infrastructure!W1645","v":0},{"$f":"[1]Infrastructure!W1645","v":0},0,{"$f":"[1]Infrastructure!Z1645","v":0},{"$f":"[1]Infrastructure!Z1645","v":0},0,{"$f":"[1]Infrastructure!AB1645","v":0},{"$f":"[1]Infrastructure!AB1645","v":0},0,{"$f":"[1]Infrastructure!AC1645","v":0},{"$f":"[1]Infrastructure!AD1645","v":0},{"$f":"[1]Infrastructure!AE1645","v":0},{"$f":"[1]Infrastructure!AF1645","v":0},{"$f":"[1]Infrastructure!AG1645","v":0},{"$f":"[1]Infrastructure!AH1645","v":0},0]
[0,null,null,null,null,null,{"$f":"[1]Infrastructure!G1646","v":0},{"$f":"[1]Infrastructure!H1646","v":0},{"$f":"[1]Infrastructure!I1646","v":0},{"$f":"[1]Infrastructure!J1646","v":0},{"$f":"[1]Infrastructure!K1646","v":0},{"$f":"[1]Infrastructure!L1646","v":0},{"$f":"[1]Infrastructure!M1646","v":0},{"$f":"[1]Infrastructure!N1646","v":0},{"$f":"[1]Infrastructure!O1646","v":0},{"$f":"[1]Infrastructure!Q1646","v":0},{"$f":"[1]Infrastructure!R1646","v":0},{"$f":"[1]Infrastructure!T1646","v":0},{"$f":"[1]Infrastructure!W1646","v":0},{"$f":"[1]Infrastructure!W1646","v":0},0,{"$f":"[1]Infrastructure!Z1646","v":0},{"$f":"[1]Infrastructure!Z1646","v":0},0,{"$f":"[1]Infrastructure!AB1646","v":0},{"$f":"[1]Infrastructure!AB1646","v":0},0,{"$f":"[1]Infrastructure!AC1646","v":0},{"$f":"[1]Infrastructure!AD1646","v":0},{"$f":"[1]Infrastructure!AE1646","v":0},{"$f":"[1]Infrastructure!AF1646","v":0},{"$f":"[1]Infrastructure!AG1646","v":0},{"$f":"[1]Infrastructure!AH1646","v":0},0]
[0,null,null,null,null,null,{"$f":"[1]Infrastructure!G1647","v":0},{"$f":"[1]Infrastructure!H1647","v":0},{"$f":"[1]Infrastructure!I1647","v":0},{"$f":"[1]Infrastructure!J1647","v":0},{"$f":"[1]Infrastructure!K1647","v":0},{"$f":"[1]Infrastructure!L1647","v":0},{"$f":"[1]Infrastructure!M1647","v":0},{"$f":"[1]Infrastructure!N1647","v":0},{"$f":"[1]Infrastructure!O1647","v":0},{"$f":"[1]Infrastructure!Q1647","v":0},{"$f":"[1]Infrastructure!R1647","v":0},{"$f":"[1]Infrastructure!T1647","v":0},{"$f":"[1]Infrastructure!W1647","v":0},{"$f":"[1]Infrastructure!W1647","v":0},0,{"$f":"[1]Infrastructure!Z1647","v":0},{"$f":"[1]Infrastructure!Z1647","v":0},0,{"$f":"[1]Infrastructure!AB1647","v":0},{"$f":"[1]Infrastructure!AB1647","v":0},0,{"$f":"[1]Infrastructure!AC1647","v":0},{"$f":"[1]Infrastructure!AD1647","v":0},{"$f":"[1]Infrastructure!AE1647","v":0},{"$f":"[1]Infrastructure!AF1647","v":0},{"$f":"[1]Infrastructure!AG1647","v":0},{"$f":"[1]Infrastructure!AH1647","v":0},0]
[0,null,null,null,null,null,{"$f":"[1]Infrastructure!G1648","v":0},{"$f":"[1]Infrastructure!H1648","v":0},{"$f":"[1]Infrastructure!I1648","v":0},{"$f":"[1]Infrastructure!J1648","v":0},{"$f":"[1]Infrastructure!K1648","v":0},{"$f":"[1]Infrastructure!L1648","v":0},{"$f":"[1]Infrastructure!M1648","v":0},{"$f":"[1]Infrastructure!N1648","v":0},{"$f":"[1]Infrastructure!O1648","v":0},{"$f":"[1]Infrastructure!Q1648","v":0},{"$f":"[1]Infrastructure!R1648","v":0},{"$f":"[1]Infrastructure!T1648","v":0},{"$f":"[1]Infrastructure!W1648","v":0},{"$f":"[1]Infrastructure!W1648","v":0},0,{"$f":"[1]Infrastructure!Z1648","v":0},{"$f":"[1]Infrastructure!Z1648","v":0},0,{"$f":"[1]Infrastructure!AB1648","v":0},{"$f":"[1]Infrastructure!AB1648","v":0},0,{"$f":"[1]Infrastructure!AC1648","v":0},{"$f":"[1]Infrastructure!AD1648","v":0},{"$f":"[1]Infrastructure!AE1648","v":0},{"$f":"[1]Infrastructure!AF1648","v":0},{"$f":"[1]Infrastructure!AG1648","v":0},{"$f":"[1]Infrastructure!AH1648","v":0},0]
[0,null,null,null,null,null,{"$f":"[1]Infrastructure!G1649","v":0},{"$f":"[1]Infrastructure!H1649","v":0},{"$f":"[1]Infrastructure!I1649","v":0},{"$f":"[1]Infrastructure!J1649","v":0},{"$f":"[1]Infrastructure!K1649","v":0},{"$f":"[1]Infrastructure!L1649","v":0},{"$f":"[1]Infrastructure!M1649","v":0},{"$f":"[1]Infrastructure!N1649","v":0},{"$f":"[1]Infrastructure!O1649","v":0},{"$f":"[1]Infrastructure!Q1649","v":0},{"$f":"[1]Infrastructure!R1649","v":0},{"$f":"[1]Infrastructure!T1649","v":0},{"$f":"[1]Infrastructure!W1649","v":0},{"$f":"[1]Infrastructure!W1649","v":0},0,{"$f":"[1]Infrastructure!Z1649","v":0},{"$f":"[1]Infrastructure!Z1649","v":0},0,{"$f":"[1]Infrastructure!AB1649","v":0},{"$f":"[1]Infrastructure!AB1649","v":0},0,{"$f":"[1]Infrastructure!AC1649","v":0},{"$f":"[1]Infrastructure!AD1649","v":0},{"$f":"[1]Infrastructure!AE1649","v":0},{"$f":"[1]Infrastructure!AF1649","v":0},{"$f":"[1]Infrastructure!AG1649","v":0},{"$f":"[1]Infrastructure!AH1649","v":0},0]
[0,null,null,null,null,null,{"$f":"[1]Infrastructure!G1650","v":0},{"$f":"[1]Infrastructure!H1650","v":0},{"$f":"[1]Infrastructure!I1650","v":0},{"$f":"[1]Infrastructure!J1650","v":0},{"$f":"[1]Infrastructure!K1650","v":0},{"$f":"[1]Infrastructure!L1650","v":0},{"$f":"[1]Infrastructure!M1650","v":0},{"$f":"[1]Infrastructure!N1650","v":0},{"$f":"[1]Infrastructure!O1650","v":0},{"$f":"[1]Infrastructure!Q1650","v":0},{"$f":"[1]Infrastructure!R1650","v":0},{"$f":"[1]Infrastructure!T1650","v":0},{"$f":"[1]Infrastructure!W1650","v":0},{"$f":"[1]Infrastructure!W1650","v":0},0,{"$f":"[1]Infrastructure!Z1650","v":0},{"$f":"[1]Infrastructure!Z1650","v":0},0,{"$f":"[1]Infrastructure!AB1650","v":0},{"$f":"[1]Infrastructure!AB1650","v":0},0,{"$f":"[1]Infrastructure!AC1650","v":0},{"$f":"[1]Infrastructure!AD1650","v":0},{"$f":"[1]Infrastructure!AE1650","v":0},{"$f":"[1]Infrastructure!AF1650","v":0},{"$f":"[1]Infrastructure!AG1650","v":0},{"$f":"[1]Infrastructure!AH1650","v":0},0]
[0,null,null,null,null,null,{"$f":"[1]Infrastructure!G1651","v":0},{"$f":"[1]Infrastructure!H1651","v":0},{"$f":"[1]Infrastructure!I1651","v":0},{"$f":"[1]Infrastructure!J1651","v":0},{"$f":"[1]Infrastructure!K1651","v":0},{"$f":"[1]Infrastructure!L1651","v":0},{"$f":"[1]Infrastructure!M1651","v":0},{"$f":"[1]Infrastructure!N1651","v":0},{"$f":"[1]Infrastructure!O1651","v":0},{"$f":"[1]Infrastructure!Q1651","v":0},{"$f":"[1]Infrastructure!R1651","v":0},{"$f":"[1]Infrastructure!T1651","v":0},{"$f":"[1]Infrastructure!W1651","v":0},{"$f":"[1]Infrastructure!W1651","v":0},0,{"$f":"[1]Infrastructure!Z1651","v":0},{"$f":"[1]Infrastructure!Z1651","v":0},0,{"$f":"[1]Infrastructure!AB1651","v":0},{"$f":"[1]Infrastructure!AB1651","v":0},0,{"$f":"[1]Infrastructure!AC1651","v":0},{"$f":"[1]Infrastructure!AD1651","v":0},{"$f":"[1]Infrastructure!AE1651","v":0},{"$f":"[1]Infrastructure!AF1651","v":0},{"$f":"[1]Infrastructure!AG1651","v":0},{"$f":"[1]Infrastructure!AH1651","v":0},0]
[0,null,null,null,null,null,{"$f":"[1]Infrastructure!G1652","v":0},{"$f":"[1]Infrastructure!H1652","v":0},{"$f":"[1]Infrastructure!I1652","v":0},{"$f":"[1]Infrastructure!J1652","v":0},{"$f":"[1]Infrastructure!K1652","v":0},{"$f":"[1]Infrastructure!L1652","v":0},{"$f":"[1]Infrastructure!M1652","v":0},{"$f":"[1]Infrastructure!N1652","v":0},{"$f":"[1]Infrastructure!O1652","v":0},{"$f":"[1]Infrastructure!Q1652","v":0},{"$f":"[1]Infrastructure!R1652","v":0},{"$f":"[1]Infrastructure!T1652","v":0},{"$f":"[1]Infrastructure!W1652","v":0},{"$f":"[1]Infrastructure!W1652","v":0},0,{"$f":"[1]Infrastructure!Z1652","v":0},{"$f":"[1]Infrastructure!Z1652","v":0},0,{"$f":"[1]Infrastructure!AB1652","v":0},{"$f":"[1]Infrastructure!AB1652","v":0},0,{"$f":"[1]Infrastructure!AC1652","v":0},{"$f":"[1]Infrastructure!AD1652","v":0},{"$f":"[1]Infrastructure!AE1652","v":0},{"$f":"[1]Infrastructure!AF1652","v":0},{"$f":"[1]Infrastructure!AG1652","v":0},{"$f":"[1]Infrastructure!AH1652","v":0},0]
[0,null,null,null,null,null,{"$f":"[1]Infrastructure!G1653","v":0},{"$f":"[1]Infrastructure!H1653","v":0},{"$f":"[1]Infrastructure!I1653","v":0},{"$f":"[1]Infrastructure!J1653","v":0},{"$f":"[1]Infrastructure!K1653","v":0},{"$f":"[1]Infrastructure!L1653","v":0},{"$f":"[1]Infrastructure!M1653","v":0},{"$f":"[1]Infrastructure!N1653","v":0},{"$f":"[1]Infrastructure!O1653","v":0},{"$f":"[1]Infrastructure!Q1653","v":0},{"$f":"[1]Infrastructure!R1653","v":0},{"$f":"[1]Infrastructure!T1653","v":0},{"$f":"[1]Infrastructure!W1653","v":0},{"$f":"[1]Infrastructure!W1653","v":0},0,{"$f":"[1]Infrastructure!Z1653","v":0},{"$f":"[1]Infrastructure!Z1653","v":0},0,{"$f":"[1]Infrastructure!AB1653","v":0},{"$f":"[1]Infrastructure!AB1653","v":0},0,{"$f":"[1]Infrastructure!AC1653","v":0},{"$f":"[1]Infrastructure!AD1653","v":0},{"$f":"[1]Infrastructure!AE1653","v":0},{"$f":"[1]Infrastructure!AF1653","v":0},{"$f":"[1]Infrastructure!AG1653","v":0},{"$f":"[1]Infrastructure!AH1653","v":0},0]
[0,null,null,null,null,null,{"$f":"[1]Infrastructure!G1654","v":0},{"$f":"[1]Infrastructure!H1654","v":0},{"$f":"[1]Infrastructure!I1654","v":0},{"$f":"[1]Infrastructure!J1654","v":0},{"$f":"[1]Infrastructure!K1654","v":0},{"$f":"[1]Infrastructure!L1654","v":0},{"$f":"[1]Infrastructure!M1654","v":0},{"$f":"[1]Infrastructure!N1654","v":0},{"$f":"[1]Infrastructure!O1654","v":0},{"$f":"[1]Infrastructure!Q1654","v":0},{"$f":"[1]Infrastructure!R1654","v":0},{"$f":"[1]Infrastructure!T1654","v":0},{"$f":"[1]Infrastructure!W1654","v":0},{"$f":"[1]Infrastructure!W1654","v":0},0,{"$f":"[1]Infrastructure!Z1654","v":0},{"$f":"[1]Infrastructure!Z1654","v":0},0,{"$f":"[1]Infrastructure!AB1654","v":0},{"$f":"[1]Infrastructure!AB1654","v":0},0,{"$f":"[1]Infrastructure!AC1654","v":0},{"$f":"[1]Infrastructure!AD1654","v":0},{"$f":"[1]Infrastructure!AE1654","v":0},{"$f":"[1]Infrastructure!AF1654","v":0},{"$f":"[1]Infrastructure!AG1654","v":0},{"$f":"[1]Infrastructure!AH1654","v":0},0]
[0,null,null,null,null,null,{"$f":"[1]Infrastructure!G1655","v":0},{"$f":"[1]Infrastructure!H1655","v":0},{"$f":"[1]Infrastructure!I1655","v":0},{"$f":"[1]Infrastructure!J1655","v":0},{"$f":"[1]Infrastructure!K1655","v":0},{"$f":"[1]Infrastructure!L1655","v":0},{"$f":"[1]Infrastructure!M1655","v":0},{"$f":"[1]Infrastructure!N1655","v":0},{"$f":"[1]Infrastructure!O1655","v":0},{"$f":"[1]Infrastructure!Q1655","v":0},{"$f":"[1]Infrastructure!R1655","v":0},{"$f":"[1]Infrastructure!T1655","v":0},{"$f":"[1]Infrastructure!W1655","v":0},{"$f":"[1]Infrastructure!W1655","v":0},0,{"$f":"[1]Infrastructure!Z1655","v":0},{"$f":"[1]Infrastructure!Z1655","v":0},0,{"$f":"[1]Infrastructure!AB1655","v":0},{"$f":"[1]Infrastructure!AB1655","v":0},0,{"$f":"[1]Infrastructure!AC1655","v":0},{"$f":"[1]Infrastructure!AD1655","v":0},{"$f":"[1]Infrastructure!AE1655","v":0},{"$f":"[1]Infrastructure!AF1655","v":0},{"$f":"[1]Infrastructure!AG1655","v":0},{"$f":"[1]Infrastructure!AH1655","v":0},0]
[0,null,null,null,null,null,{"$f":"[1]Infrastructure!G1656","v":0},{"$f":"[1]Infrastructure!H1656","v":0},{"$f":"[1]Infrastructure!I1656","v":0},{"$f":"[1]Infrastructure!J1656","v":0},{"$f":"[1]Infrastructure!K1656","v":0},{"$f":"[1]Infrastructure!L1656","v":0},{"$f":"[1]Infrastructure!M1656","v":0},{"$f":"[1]Infrastructure!N1656","v":0},{"$f":"[1]Infrastructure!O1656","v":0},{"$f":"[1]Infrastructure!Q1656","v":0},{"$f":"[1]Infrastructure!R1656","v":0},{"$f":"[1]Infrastructure!T1656","v":0},{"$f":"[1]Infrastructure!W1656","v":0},{"$f":"[1]Infrastructure!W1656","v":0},0,{"$f":"[1]Infrastructure!Z1656","v":0},{"$f":"[1]Infrastructure!Z1656","v":0},0,{"$f":"[1]Infrastructure!AB1656","v":0},{"$f":"[1]Infrastructure!AB1656","v":0},0,{"$f":"[1]Infrastructure!AC1656","v":0},{"$f":"[1]Infrastructure!AD1656","v":0},{"$f":"[1]Infrastructure!AE1656","v":0},{"$f":"[1]Infrastructure!AF1656","v":0},{"$f":"[1]Infrastructure!AG1656","v":0},{"$f":"[1]Infrastructure!AH1656","v":0},0]
[0,null,null,null,null,null,{"$f":"[1]Infrastructure!G1657","v":0},{"$f":"[1]Infrastructure!H1657","v":0},{"$f":"[1]Infrastructure!I1657","v":0},{"$f":"[1]Infrastructure!J1657","v":0},{"$f":"[1]Infrastructure!K1657","v":0},{"$f":"[1]Infrastructure!L1657","v":0},{"$f":"[1]Infrastructure!M1657","v":0},{"$f":"[1]Infrastructure!N1657","v":0},{"$f":"[1]Infrastructure!O1657","v":0},{"$f":"[1]Infrastructure!Q1657","v":0},{"$f":"[1]Infrastructure!R1657","v":0},{"$f":"[1]Infrastructure!T1657","v":0},{"$f":"[1]Infrastructure!W1657","v":0},{"$f":"[1]Infrastructure!W1657","v":0},0,{"$f":"[1]Infrastructure!Z1657","v":0},{"$f":"[1]Infrastructure!Z1657","v":0},0,{"$f":"[1]Infrastructure!AB1657","v":0},{"$f":"[1]Infrastructure!AB1657","v":0},0,{"$f":"[1]Infrastructure!AC1657","v":0},{"$f":"[1]Infrastructure!AD1657","v":0},{"$f":"[1]Infrastructure!AE1657","v":0},{"$f":"[1]Infrastructure!AF1657","v":0},{"$f":"[1]Infrastructure!AG1657","v":0},{"$f":"[1]Infrastructure!AH1657","v":0},0]
[0,null,null,null,null,null,{"$f":"[1]Infrastructure!G1658","v":0},{"$f":"[1]Infrastructure!H1658","v":0},{"$f":"[1]Infrastructure!I1658","v":0},{"$f":"[1]Infrastructure!J1658","v":0},{"$f":"[1]Infrastructure!K1658","v":0},{"$f":"[1]Infrastructure!L1658","v":0},{"$f":"[1]Infrastructure!M1658","v":0},{"$f":"[1]Infrastructure!N1658","v":0},{"$f":"[1]Infrastructure!O1658","v":0},{"$f":"[1]Infrastructure!Q1658","v":0},{"$f":"[1]Infrastructure!R1658","v":0},{"$f":"[1]Infrastructure!T1658","v":0},{"$f":"[1]Infrastructure!W1658","v":0},{"$f":"[1]Infrastructure!W1658","v":0},0,{"$f":"[1]Infrastructure!Z1658","v":0},{"$f":"[1]Infrastructure!Z1658","v":0},0,{"$f":"[1]Infrastructure!AB1658","v":0},{"$f":"[1]Infrastructure!AB1658","v":0},0,{"$f":"[1]Infrastructure!AC1658","v":0},{"$f":"[1]Infrastructure!AD1658","v":0},{"$f":"[1]Infrastructure!AE1658","v":0},{"$f":"[1]Infrastructure!AF1658","v":0},{"$f":"[1]Infrastructure!AG1658","v":0},{"$f":"[1]Infrastructure!AH1658","v":0},0]
[0,null,null,null,null,null,{"$f":"[1]Infrastructure!G1659","v":0},{"$f":"[1]Infrastructure!H1659","v":0},{"$f":"[1]Infrastructure!I1659","v":0},{"$f":"[1]Infrastructure!J1659","v":0},{"$f":"[1]Infrastructure!K1659","v":0},{"$f":"[1]Infrastructure!L1659","v":0},{"$f":"[1]Infrastructure!M1659","v":0},{"$f":"[1]Infrastructure!N1659","v":0},{"$f":"[1]Infrastructure!O1659","v":0},{"$f":"[1]Infrastructure!Q1659","v":0},{"$f":"[1]Infrastructure!R1659","v":0},{"$f":"[1]Infrastructure!T1659","v":0},{"$f":"[1]Infrastructure!W1659","v":0},{"$f":"[1]Infrastructure!W1659","v":0},0,{"$f":"[1]Infrastructure!Z1659","v":0},{"$f":"[1]Infrastructure!Z1659","v":0},0,{"$f":"[1]Infrastructure!AB1659","v":0},{"$f":"[1]Infrastructure!AB1659","v":0},0,{"$f":"[1]Infrastructure!AC1659","v":0},{"$f":"[1]Infrastructure!AD1659","v":0},{"$f":"[1]Infrastructure!AE1659","v":0},{"$f":"[1]Infrastructure!AF1659","v":0},{"$f":"[1]Infrastructure!AG1659","v":0},{"$f":"[1]Infrastructure!AH1659","v":0},0]
[0,null,null,null,null,null,{"$f":"[1]Infrastructure!G1660","v":0},{"$f":"[1]Infrastructure!H1660","v":0},{"$f":"[1]Infrastructure!I1660","v":0},{"$f":"[1]Infrastructure!J1660","v":0},{"$f":"[1]Infrastructure!K1660","v":0},{"$f":"[1]Infrastructure!L1660","v":0},{"$f":"[1]Infrastructure!M1660","v":0},{"$f":"[1]Infrastructure!N1660","v":0},{"$f":"[1]Infrastructure!O1660","v":0},{"$f":"[1]Infrastructure!Q1660","v":0},{"$f":"[1]Infrastructure!R1660","v":0},{"$f":"[1]Infrastructure!T1660","v":0},{"$f":"[1]Infrastructure!W1660","v":0},{"$f":"[1]Infrastructure!W1660","v":0},0,{"$f":"[1]Infrastructure!Z1660","v":0},{"$f":"[1]Infrastructure!Z1660","v":0},0,{"$f":"[1]Infrastructure!AB1660","v":0},{"$f":"[1]Infrastructure!AB1660","v":0},0,{"$f":"[1]Infrastructure!AC1660","v":0},{"$f":"[1]Infrastructure!AD1660","v":0},{"$f":"[1]Infrastructure!AE1660","v":0},{"$f":"[1]Infrastructure!AF1660","v":0},{"$f":"[1]Infrastructure!AG1660","v":0},{"$f":"[1]Infrastructure!AH1660","v":0},0]
[0,null,null,null,null,null,{"$f":"[1]Infrastructure!G1661","v":0},{"$f":"[1]Infrastructure!H1661","v":0},{"$f":"[1]Infrastructure!I1661","v":0},{"$f":"[1]Infrastructure!J1661","v":0},{"$f":"[1]Infrastructure!K1661","v":0},{"$f":"[1]Infrastructure!L1661","v":0},{"$f":"[1]Infrastructure!M1661","v":0},{"$f":"[1]Infrastructure!N1661","v":0},{"$f":"[1]Infrastructure!O1661","v":0},{"$f":"[1]Infrastructure!Q1661","v":0},{"$f":"[1]Infrastructure!R1661","v":0},{"$f":"[1]Infrastructure!T1661","v":0},{"$f":"[1]Infrastructure!W1661","v":0},{"$f":"[1]Infrastructure!W1661","v":0},0,{"$f":"[1]Infrastructure!Z1661","v":0},{"$f":"[1]Infrastructure!Z1661","v":0},0,{"$f":"[1]Infrastructure!AB1661","v":0},{"$f":"[1]Infrastructure!AB1661","v":0},0,{"$f":"[1]Infrastructure!AC1661","v":0},{"$f":"[1]Infrastructure!AD1661","v":0},{"$f":"[1]Infrastructure!AE1661","v":0},{"$f":"[1]Infrastructure!AF1661","v":0},{"$f":"[1]Infrastructure!AG1661","v":0},{"$f":"[1]Infrastructure!AH1661","v":0},0]
[0,null,null,null,null,null,{"$f":"[1]Infrastructure!G1662","v":0},{"$f":"[1]Infrastructure!H1662","v":0},{"$f":"[1]Infrastructure!I1662","v":0},{"$f":"[1]Infrastructure!J1662","v":0},{"$f":"[1]Infrastructure!K1662","v":0},{"$f":"[1]Infrastructure!L1662","v":0},{"$f":"[1]Infrastructure!M1662","v":0},{"$f":"[1]Infrastructure!N1662","v":0},{"$f":"[1]Infrastructure!O1662","v":0},{"$f":"[1]Infrastructure!Q1662","v":0},{"$f":"[1]Infrastructure!R1662","v":0},{"$f":"[1]Infrastructure!T1662","v":0},{"$f":"[1]Infrastructure!W1662","v":0},{"$f":"[1]Infrastructure!W1662","v":0},0,{"$f":"[1]Infrastructure!Z1662","v":0},{"$f":"[1]Infrastructure!Z1662","v":0},0,{"$f":"[1]Infrastructure!AB1662","v":0},{"$f":"[1]Infrastructure!AB1662","v":0},0,{"$f":"[1]Infrastructure!AC1662","v":0},{"$f":"[1]Infrastructure!AD1662","v":0},{"$f":"[1]Infrastructure!AE1662","v":0},{"$f":"[1]Infrastructure!AF1662","v":0},{"$f":"[1]Infrastructure!AG1662","v":0},{"$f":"[1]Infrastructure!AH1662","v":0},0]
[0,null,null,null,null,null,{"$f":"[1]Infrastructure!G1663","v":0},{"$f":"[1]Infrastructure!H1663","v":0},{"$f":"[1]Infrastructure!I1663","v":0},{"$f":"[1]Infrastructure!J1663","v":0},{"$f":"[1]Infrastructure!K1663","v":0},{"$f":"[1]Infrastructure!L1663","v":0},{"$f":"[1]Infrastructure!M1663","v":0},{"$f":"[1]Infrastructure!N1663","v":0},{"$f":"[1]Infrastructure!O1663","v":0},{"$f":"[1]Infrastructure!Q1663","v":0},{"$f":"[1]Infrastructure!R1663","v":0},{"$f":"[1]Infrastructure!T1663","v":0},{"$f":"[1]Infrastructure!W1663","v":0},{"$f":"[1]Infrastructure!W1663","v":0},0,{"$f":"[1]Infrastructure!Z1663","v":0},{"$f":"[1]Infrastructure!Z1663","v":0},0,{"$f":"[1]Infrastructure!AB1663","v":0},{"$f":"[1]Infrastructure!AB1663","v":0},0,{"$f":"[1]Infrastructure!AC1663","v":0},{"$f":"[1]Infrastructure!AD1663","v":0},{"$f":"[1]Infrastructure!AE1663","v":0},{"$f":"[1]Infrastructure!AF1663","v":0},{"$f":"[1]Infrastructure!AG1663","v":0},{"$f":"[1]Infrastructure!AH1663","v":0},0]
[0,null,null,null,null,null,{"$f":"[1]Infrastructure!G1664","v":0},{"$f":"[1]Infrastructure!H1664","v":0},{"$f":"[1]Infrastructure!I1664","v":0},{"$f":"[1]Infrastructure!J1664","v":0},{"$f":"[1]Infrastructure!K1664","v":0},{"$f":"[1]Infrastructure!L1664","v":0},{"$f":"[1]Infrastructure!M1664","v":0},{"$f":"[1]Infrastructure!N1664","v":0},{"$f":"[1]Infrastructure!O1664","v":0},{"$f":"[1]Infrastructure!Q1664","v":0},{"$f":"[1]Infrastructure!R1664","v":0},{"$f":"[1]Infrastructure!T1664","v":0},{"$f":"[1]Infrastructure!W1664","v":0},{"$f":"[1]Infrastructure!W1664","v":0},0,{"$f":"[1]Infrastructure!Z1664","v":0},{"$f":"[1]Infrastructure!Z1664","v":0},0,{"$f":"[1]Infrastructure!AB1664","v":0},{"$f":"[1]Infrastructure!AB1664","v":0},0,{"$f":"[1]Infrastructure!AC1664","v":0},{"$f":"[1]Infrastructure!AD1664","v":0},{"$f":"[1]Infrastructure!AE1664","v":0},{"$f":"[1]Infrastructure!AF1664","v":0},{"$f":"[1]Infrastructure!AG1664","v":0},{"$f":"[1]Infrastructure!AH1664","v":0},0]
[0,null,null,null,null,null,{"$f":"[1]Infrastructure!G1665","v":0},{"$f":"[1]Infrastructure!H1665","v":0},{"$f":"[1]Infrastructure!I1665","v":0},{"$f":"[1]Infrastructure!J1665","v":0},{"$f":"[1]Infrastructure!K1665","v":0},{"$f":"[1]Infrastructure!L1665","v":0},{"$f":"[1]Infrastructure!M1665","v":0},{"$f":"[1]Infrastructure!N1665","v":0},{"$f":"[1]Infrastructure!O1665","v":0},{"$f":"[1]Infrastructure!Q1665","v":0},{"$f":"[1]Infrastructure!R1665","v":0},{"$f":"[1]Infrastructure!T1665","v":0},{"$f":"[1]Infrastructure!W1665","v":0},{"$f":"[1]Infrastructure!W1665","v":0},0,{"$f":"[1]Infrastructure!Z1665","v":0},{"$f":"[1]Infrastructure!Z1665","v":0},0,{"$f":"[1]Infrastructure!AB1665","v":0},{"$f":"[1]Infrastructure!AB1665","v":0},0,{"$f":"[1]Infrastructure!AC1665","v":0},{"$f":"[1]Infrastructure!AD1665","v":0},{"$f":"[1]Infrastructure!AE1665","v":0},{"$f":"[1]Infrastructure!AF1665","v":0},{"$f":"[1]Infrastructure!AG1665","v":0},{"$f":"[1]Infrastructure!AH1665","v":0},0]
[0,null,null,null,null,null,{"$f":"[1]Infrastructure!G1666","v":0},{"$f":"[1]Infrastructure!H1666","v":0},{"$f":"[1]Infrastructure!I1666","v":0},{"$f":"[1]Infrastructure!J1666","v":0},{"$f":"[1]Infrastructure!K1666","v":0},{"$f":"[1]Infrastructure!L1666","v":0},{"$f":"[1]Infrastructure!M1666","v":0},{"$f":"[1]Infrastructure!N1666","v":0},{"$f":"[1]Infrastructure!O1666","v":0},{"$f":"[1]Infrastructure!Q1666","v":0},{"$f":"[1]Infrastructure!R1666","v":0},{"$f":"[1]Infrastructure!T1666","v":0},{"$f":"[1]Infrastructure!W1666","v":0},{"$f":"[1]Infrastructure!W1666","v":0},0,{"$f":"[1]Infrastructure!Z1666","v":0},{"$f":"[1]Infrastructure!Z1666","v":0},0,{"$f":"[1]Infrastructure!AB1666","v":0},{"$f":"[1]Infrastructure!AB1666","v":0},0,{"$f":"[1]Infrastructure!AC1666","v":0},{"$f":"[1]Infrastructure!AD1666","v":0},{"$f":"[1]Infrastructure!AE1666","v":0},{"$f":"[1]Infrastructure!AF1666","v":0},{"$f":"[1]Infrastructure!AG1666","v":0},{"$f":"[1]Infrastructure!AH1666","v":0},0]
[0,null,null,null,null,null,{"$f":"[1]Infrastructure!G1667","v":0},{"$f":"[1]Infrastructure!H1667","v":0},{"$f":"[1]Infrastructure!I1667","v":0},{"$f":"[1]Infrastructure!J1667","v":0},{"$f":"[1]Infrastructure!K1667","v":0},{"$f":"[1]Infrastructure!L1667","v":0},{"$f":"[1]Infrastructure!M1667","v":0},{"$f":"[1]Infrastructure!N1667","v":0},{"$f":"[1]Infrastructure!O1667","v":0},{"$f":"[1]Infrastructure!Q1667","v":0},{"$f":"[1]Infrastructure!R1667","v":0},{"$f":"[1]Infrastructure!T1667","v":0},{"$f":"[1]Infrastructure!W1667","v":0},{"$f":"[1]Infrastructure!W1667","v":0},0,{"$f":"[1]Infrastructure!Z1667","v":0},{"$f":"[1]Infrastructure!Z1667","v":0},0,{"$f":"[1]Infrastructure!AB1667","v":0},{"$f":"[1]Infrastructure!AB1667","v":0},0,{"$f":"[1]Infrastructure!AC1667","v":0},{"$f":"[1]Infrastructure!AD1667","v":0},{"$f":"[1]Infrastructure!AE1667","v":0},{"$f":"[1]Infrastructure!AF1667","v":0},{"$f":"[1]Infrastructure!AG1667","v":0},{"$f":"[1]Infrastructure!AH1667","v":0},0]
[0,null,null,null,null,null,{"$f":"[1]Infrastructure!G1668","v":0},{"$f":"[1]Infrastructure!H1668","v":0},{"$f":"[1]Infrastructure!I1668","v":0},{"$f":"[1]Infrastructure!J1668","v":0},{"$f":"[1]Infrastructure!K1668","v":0},{"$f":"[1]Infrastructure!L1668","v":0},{"$f":"[1]Infrastructure!M1668","v":0},{"$f":"[1]Infrastructure!N1668","v":0},{"$f":"[1]Infrastructure!O1668","v":0},{"$f":"[1]Infrastructure!Q1668","v":0},{"$f":"[1]Infrastructure!R1668","v":0},{"$f":"[1]Infrastructure!T1668","v":0},{"$f":"[1]Infrastructure!W1668","v":0},{"$f":"[1]Infrastructure!W1668","v":0},0,{"$f":"[1]Infrastructure!Z1668","v":0},{"$f":"[1]Infrastructure!Z1668","v":0},0,{"$f":"[1]Infrastructure!AB1668","v":0},{"$f":"[1]Infrastructure!AB1668","v":0},0,{"$f":"[1]Infrastructure!AC1668","v":0},{"$f":"[1]Infrastructure!AD1668","v":0},{"$f":"[1]Infrastructure!AE1668","v":0},{"$f":"[1]Infrastructure!AF1668","v":0},{"$f":"[1]Infrastructure!AG1668","v":0},{"$f":"[1]Infrastructure!AH1668","v":0},0]
[0,null,null,null,null,null,{"$f":"[1]Infrastructure!G1669","v":0},{"$f":"[1]Infrastructure!H1669","v":0},{"$f":"[1]Infrastructure!I1669","v":0},{"$f":"[1]Infrastructure!J1669","v":0},{"$f":"[1]Infrastructure!K1669","v":0},{"$f":"[1]Infrastructure!L1669","v":0},{"$f":"[1]Infrastructure!M1669","v":0},{"$f":"[1]Infrastructure!N1669","v":0},{"$f":"[1]Infrastructure!O1669","v":0},{"$f":"[1]Infrastructure!Q1669","v":0},{"$f":"[1]Infrastructure!R1669","v":0},{"$f":"[1]Infrastructure!T1669","v":0},{"$f":"[1]Infrastructure!W1669","v":0},{"$f":"[1]Infrastructure!W1669","v":0},0,{"$f":"[1]Infrastructure!Z1669","v":0},{"$f":"[1]Infrastructure!Z1669","v":0},0,{"$f":"[1]Infrastructure!AB1669","v":0},{"$f":"[1]Infrastructure!AB1669","v":0},0,{"$f":"[1]Infrastructure!AC1669","v":0},{"$f":"[1]Infrastructure!AD1669","v":0},{"$f":"[1]Infrastructure!AE1669","v":0},{"$f":"[1]Infrastructure!AF1669","v":0},{"$f":"[1]Infrastructure!AG1669","v":0},{"$f":"[1]Infrastructure!AH1669","v":0},0]
[0,null,null,null,null,null,{"$f":"[1]Infrastructure!G1670","v":0},{"$f":"[1]Infrastructure!H1670","v":0},{"$f":"[1]Infrastructure!I1670","v":0},{"$f":"[1]Infrastructure!J1670","v":0},{"$f":"[1]Infrastructure!K1670","v":0},{"$f":"[1]Infrastructure!L1670","v":0},{"$f":"[1]Infrastructure!M1670","v":0},{"$f":"[1]Infrastructure!N1670","v":0},{"$f":"[1]Infrastructure!O1670","v":0},{"$f":"[1]Infrastructure!Q1670","v":0},{"$f":"[1]Infrastructure!R1670","v":0},{"$f":"[1]Infrastructure!T1670","v":0},{"$f":"[1]Infrastructure!W1670","v":0},{"$f":"[1]Infrastructure!W1670","v":0},0,{"$f":"[1]Infrastructure!Z1670","v":0},{"$f":"[1]Infrastructure!Z1670","v":0},0,{"$f":"[1]Infrastructure!AB1670","v":0},{"$f":"[1]Infrastructure!AB1670","v":0},0,{"$f":"[1]Infrastructure!AC1670","v":0},{"$f":"[1]Infrastructure!AD1670","v":0},{"$f":"[1]Infrastructure!AE1670","v":0},{"$f":"[1]Infrastructure!AF1670","v":0},{"$f":"[1]Infrastructure!AG1670","v":0},{"$f":"[1]Infrastructure!AH1670","v":0},0]
[0,null,null,null,null,null,{"$f":"[1]Infrastructure!G1671","v":0},{"$f":"[1]Infrastructure!H1671","v":0},{"$f":"[1]Infrastructure!I1671","v":0},{"$f":"[1]Infrastructure!J1671","v":0},{"$f":"[1]Infrastructure!K1671","v":0},{"$f":"[1]Infrastructure!L1671","v":0},{"$f":"[1]Infrastructure!M1671","v":0},{"$f":"[1]Infrastructure!N1671","v":0},{"$f":"[1]Infrastructure!O1671","v":0},{"$f":"[1]Infrastructure!Q1671","v":0},{"$f":"[1]Infrastructure!R1671","v":0},{"$f":"[1]Infrastructure!T1671","v":0},{"$f":"[1]Infrastructure!W1671","v":0},{"$f":"[1]Infrastructure!W1671","v":0},0,{"$f":"[1]Infrastructure!Z1671","v":0},{"$f":"[1]Infrastructure!Z1671","v":0},0,{"$f":"[1]Infrastructure!AB1671","v":0},{"$f":"[1]Infrastructure!AB1671","v":0},0,{"$f":"[1]Infrastructure!AC1671","v":0},{"$f":"[1]Infrastructure!AD1671","v":0},{"$f":"[1]Infrastructure!AE1671","v":0},{"$f":"[1]Infrastructure!AF1671","v":0},{"$f":"[1]Infrastructure!AG1671","v":0},{"$f":"[1]Infrastructure!AH1671","v":0},0]
[0,null,null,null,null,null,{"$f":"[1]Infrastructure!G1672","v":0},{"$f":"[1]Infrastructure!H1672","v":0},{"$f":"[1]Infrastructure!I1672","v":0},{"$f":"[1]Infrastructure!J1672","v":0},{"$f":"[1]Infrastructure!K1672","v":0},{"$f":"[1]Infrastructure!L1672","v":0},{"$f":"[1]Infrastructure!M1672","v":0},{"$f":"[1]Infrastructure!N1672","v":0},{"$f":"[1]Infrastructure!O1672","v":0},{"$f":"[1]Infrastructure!Q1672","v":0},{"$f":"[1]Infrastructure!R1672","v":0},{"$f":"[1]Infrastructure!T1672","v":0},{"$f":"[1]Infrastructure!W1672","v":0},{"$f":"[1]Infrastructure!W1672","v":0},0,{"$f":"[1]Infrastructure!Z1672","v":0},{"$f":"[1]Infrastructure!Z1672","v":0},0,{"$f":"[1]Infrastructure!AB1672","v":0},{"$f":"[1]Infrastructure!AB1672","v":0},0,{"$f":"[1]Infrastructure!AC1672","v":0},{"$f":"[1]Infrastructure!AD1672","v":0},{"$f":"[1]Infrastructure!AE1672","v":0},{"$f":"[1]Infrastructure!AF1672","v":0},{"$f":"[1]Infrastructure!AG1672","v":0},{"$f":"[1]Infrastructure!AH1672","v":0},0]
[0,null,null,null,null,null,{"$f":"[1]Infrastructure!G1673","v":0},{"$f":"[1]Infrastructure!H1673","v":0},{"$f":"[1]Infrastructure!I1673","v":0},{"$f":"[1]Infrastructure!J1673","v":0},{"$f":"[1]Infrastructure!K1673","v":0},{"$f":"[1]Infrastructure!L1673","v":0},{"$f":"[1]Infrastructure!M1673","v":0},{"$f":"[1]Infrastructure!N1673","v":0},{"$f":"[1]Infrastructure!O1673","v":0},{"$f":"[1]Infrastructure!Q1673","v":0},{"$f":"[1]Infrastructure!R1673","v":0},{"$f":"[1]Infrastructure!T1673","v":0},{"$f":"[1]Infrastructure!W1673","v":0},{"$f":"[1]Infrastructure!W1673","v":0},0,{"$f":"[1]Infrastructure!Z1673","v":0},{"$f":"[1]Infrastructure!Z1673","v":0},0,{"$f":"[1]Infrastructure!AB1673","v":0},{"$f":"[1]Infrastructure!AB1673","v":0},0,{"$f":"[1]Infrastructure!AC1673","v":0},{"$f":"[1]Infrastructure!AD1673","v":0},{"$f":"[1]Infrastructure!AE1673","v":0},{"$f":"[1]Infrastructure!AF1673","v":0},{"$f":"[1]Infrastructure!AG1673","v":0},{"$f":"[1]Infrastructure!AH1673","v":0},0]
[0,null,null,null,null,null,{"$f":"[1]Infrastructure!G1674","v":0},{"$f":"[1]Infrastructure!H1674","v":0},{"$f":"[1]Infrastructure!I1674","v":0},{"$f":"[1]Infrastructure!J1674","v":0},{"$f":"[1]Infrastructure!K1674","v":0},{"$f":"[1]Infrastructure!L1674","v":0},{"$f":"[1]Infrastructure!M1674","v":0},{"$f":"[1]Infrastructure!N1674","v":0},{"$f":"[1]Infrastructure!O1674","v":0},{"$f":"[1]Infrastructure!Q1674","v":0},{"$f":"[1]Infrastructure!R1674","v":0},{"$f":"[1]Infrastructure!T1674","v":0},{"$f":"[1]Infrastructure!W1674","v":0},{"$f":"[1]Infrastructure!W1674","v":0},0,{"$f":"[1]Infrastructure!Z1674","v":0},{"$f":"[1]Infrastructure!Z1674","v":0},0,{"$f":"[1]Infrastructure!AB1674","v":0},{"$f":"[1]Infrastructure!AB1674","v":0},0,{"$f":"[1]Infrastructure!AC1674","v":0},{"$f":"[1]Infrastructure!AD1674","v":0},{"$f":"[1]Infrastructure!AE1674","v":0},{"$f":"[1]Infrastructure!AF1674","v":0},{"$f":"[1]Infrastructure!AG1674","v":0},{"$f":"[1]Infrastructure!AH1674","v":0},0]
[0,null,null,null,null,null,{"$f":"[1]Infrastructure!G1675","v":0},{"$f":"[1]Infrastructure!H1675","v":0},{"$f":"[1]Infrastructure!I1675","v":0},{"$f":"[1]Infrastructure!J1675","v":0},{"$f":"[1]Infrastructure!K1675","v":0},{"$f":"[1]Infrastructure!L1675","v":0},{"$f":"[1]Infrastructure!M1675","v":0},{"$f":"[1]Infrastructure!N1675","v":0},{"$f":"[1]Infrastructure!O1675","v":0},{"$f":"[1]Infrastructure!Q1675","v":0},{"$f":"[1]Infrastructure!R1675","v":0},{"$f":"[1]Infrastructure!T1675","v":0},{"$f":"[1]Infrastructure!W1675","v":0},{"$f":"[1]Infrastructure!W1675","v":0},0,{"$f":"[1]Infrastructure!Z1675","v":0},{"$f":"[1]Infrastructure!Z1675","v":0},0,{"$f":"[1]Infrastructure!AB1675","v":0},{"$f":"[1]Infrastructure!AB1675","v":0},0,{"$f":"[1]Infrastructure!AC1675","v":0},{"$f":"[1]Infrastructure!AD1675","v":0},{"$f":"[1]Infrastructure!AE1675","v":0},{"$f":"[1]Infrastructure!AF1675","v":0},{"$f":"[1]Infrastructure!AG1675","v":0},{"$f":"[1]Infrastructure!AH1675","v":0},0]
[{"$f":"IF(SUM(O1676:AH1676),1,0)","v":0},null,null,null,null,null,{"$f":"[1]Infrastructure!G1676","v":0},{"$f":"[1]Infrastructure!H1676","v":0},{"$f":"[1]Infrastructure!I1676","v":0},{"$f":"[1]Infrastructure!J1676","v":0},{"$f":"[1]Infrastructure!K1676","v":0},{"$f":"[1]Infrastructure!L1676","v":0},{"$f":"[1]Infrastructure!M1676","v":0},{"$f":"[1]Infrastructure!N1676","v":0},{"$f":"[1]Infrastructure!O1676","v":0},{"$f":"[1]Infrastructure!Q1676","v":0},{"$f":"[1]Infrastructure!R1676","v":0},{"$f":"[1]Infrastructure!T1676","v":0},{"$f":"[1]Infrastructure!W1676","v":0},{"$f":"[1]Infrastructure!W1676","v":0},0,{"$f":"[1]Infrastructure!Z1676","v":0},{"$f":"[1]Infrastructure!Z1676","v":0},0,{"$f":"[1]Infrastructure!AB1676","v":0},{"$f":"[1]Infrastructure!AB1676","v":0},0,{"$f":"[1]Infrastructure!AC1676","v":0},{"$f":"[1]Infrastructure!AD1676","v":0},{"$f":"[1]Infrastructure!AE1676","v":0},{"$f":"[1]Infrastructure!AF1676","v":0},{"$f":"[1]Infrastructure!AG1676","v":0},{"$f":"[1]Infrastructure!AH1676","v":0},0]
[0,null,null,null,null,null,{"$f":"[1]Infrastructure!G1677","v":0},{"$f":"[1]Infrastructure!H1677","v":0},{"$f":"[1]Infrastructure!I1677","v":0},{"$f":"[1]Infrastructure!J1677","v":0},{"$f":"[1]Infrastructure!K1677","v":0},{"$f":"[1]Infrastructure!L1677","v":0},{"$f":"[1]Infrastructure!M1677","v":0},{"$f":"[1]Infrastructure!N1677","v":0},{"$f":"[1]Infrastructure!O1677","v":0},{"$f":"[1]Infrastructure!Q1677","v":0},{"$f":"[1]Infrastructure!R1677","v":0},{"$f":"[1]Infrastructure!T1677","v":0},{"$f":"[1]Infrastructure!W1677","v":0},{"$f":"[1]Infrastructure!W1677","v":0},0,{"$f":"[1]Infrastructure!Z1677","v":0},{"$f":"[1]Infrastructure!Z1677","v":0},0,{"$f":"[1]Infrastructure!AB1677","v":0},{"$f":"[1]Infrastructure!AB1677","v":0},0,{"$f":"[1]Infrastructure!AC1677","v":0},{"$f":"[1]Infrastructure!AD1677","v":0},{"$f":"[1]Infrastructure!AE1677","v":0},{"$f":"[1]Infrastructure!AF1677","v":0},{"$f":"[1]Infrastructure!AG1677","v":0},{"$f":"[1]Infrastructure!AH1677","v":0},0]
[0,null,null,null,null,null,{"$f":"[1]Infrastructure!G1678","v":0},{"$f":"[1]Infrastructure!H1678","v":0},{"$f":"[1]Infrastructure!I1678","v":0},{"$f":"[1]Infrastructure!J1678","v":0},{"$f":"[1]Infrastructure!K1678","v":0},{"$f":"[1]Infrastructure!L1678","v":0},{"$f":"[1]Infrastructure!M1678","v":0},{"$f":"[1]Infrastructure!N1678","v":0},{"$f":"[1]Infrastructure!O1678","v":0},{"$f":"[1]Infrastructure!Q1678","v":0},{"$f":"[1]Infrastructure!R1678","v":0},{"$f":"[1]Infrastructure!T1678","v":0},{"$f":"[1]Infrastructure!W1678","v":0},{"$f":"[1]Infrastructure!W1678","v":0},0,{"$f":"[1]Infrastructure!Z1678","v":0},{"$f":"[1]Infrastructure!Z1678","v":0},0,{"$f":"[1]Infrastructure!AB1678","v":0},{"$f":"[1]Infrastructure!AB1678","v":0},0,{"$f":"[1]Infrastructure!AC1678","v":0},{"$f":"[1]Infrastructure!AD1678","v":0},{"$f":"[1]Infrastructure!AE1678","v":0},{"$f":"[1]Infrastructure!AF1678","v":0},{"$f":"[1]Infrastructure!AG1678","v":0},{"$f":"[1]Infrastructure!AH1678","v":0},0]
[0,null,null,null,null,null,{"$f":"[1]Infrastructure!G1679","v":0},{"$f":"[1]Infrastructure!H1679","v":0},{"$f":"[1]Infrastructure!I1679","v":0},{"$f":"[1]Infrastructure!J1679","v":0},{"$f":"[1]Infrastructure!K1679","v":0},{"$f":"[1]Infrastructure!L1679","v":0},{"$f":"[1]Infrastructure!M1679","v":0},{"$f":"[1]Infrastructure!N1679","v":0},{"$f":"[1]Infrastructure!O1679","v":0},{"$f":"[1]Infrastructure!Q1679","v":0},{"$f":"[1]Infrastructure!R1679","v":0},{"$f":"[1]Infrastructure!T1679","v":0},{"$f":"[1]Infrastructure!W1679","v":0},{"$f":"[1]Infrastructure!W1679","v":0},0,{"$f":"[1]Infrastructure!Z1679","v":0},{"$f":"[1]Infrastructure!Z1679","v":0},0,{"$f":"[1]Infrastructure!AB1679","v":0},{"$f":"[1]Infrastructure!AB1679","v":0},0,{"$f":"[1]Infrastructure!AC1679","v":0},{"$f":"[1]Infrastructure!AD1679","v":0},{"$f":"[1]Infrastructure!AE1679","v":0},{"$f":"[1]Infrastructure!AF1679","v":0},{"$f":"[1]Infrastructure!AG1679","v":0},{"$f":"[1]Infrastructure!AH1679","v":0},0]
[0,null,null,null,null,null,{"$f":"[1]Infrastructure!G1680","v":0},{"$f":"[1]Infrastructure!H1680","v":0},{"$f":"[1]Infrastructure!I1680","v":0},{"$f":"[1]Infrastructure!J1680","v":0},{"$f":"[1]Infrastructure!K1680","v":0},{"$f":"[1]Infrastructure!L1680","v":0},{"$f":"[1]Infrastructure!M1680","v":0},{"$f":"[1]Infrastructure!N1680","v":0},{"$f":"[1]Infrastructure!O1680","v":0},{"$f":"[1]Infrastructure!Q1680","v":0},{"$f":"[1]Infrastructure!R1680","v":0},{"$f":"[1]Infrastructure!T1680","v":0},{"$f":"[1]Infrastructure!W1680","v":0},{"$f":"[1]Infrastructure!W1680","v":0},0,{"$f":"[1]Infrastructure!Z1680","v":0},{"$f":"[1]Infrastructure!Z1680","v":0},0,{"$f":"[1]Infrastructure!AB1680","v":0},{"$f":"[1]Infrastructure!AB1680","v":0},0,{"$f":"[1]Infrastructure!AC1680","v":0},{"$f":"[1]Infrastructure!AD1680","v":0},{"$f":"[1]Infrastructure!AE1680","v":0},{"$f":"[1]Infrastructure!AF1680","v":0},{"$f":"[1]Infrastructure!AG1680","v":0},{"$f":"[1]Infrastructure!AH1680","v":0},0]
[0,null,null,null,null,null,{"$f":"[1]Infrastructure!G1681","v":0},{"$f":"[1]Infrastructure!H1681","v":0},{"$f":"[1]Infrastructure!I1681","v":0},{"$f":"[1]Infrastructure!J1681","v":0},{"$f":"[1]Infrastructure!K1681","v":0},{"$f":"[1]Infrastructure!L1681","v":0},{"$f":"[1]Infrastructure!M1681","v":0},{"$f":"[1]Infrastructure!N1681","v":0},{"$f":"[1]Infrastructure!O1681","v":0},{"$f":"[1]Infrastructure!Q1681","v":0},{"$f":"[1]Infrastructure!R1681","v":0},{"$f":"[1]Infrastructure!T1681","v":0},{"$f":"[1]Infrastructure!W1681","v":0},{"$f":"[1]Infrastructure!W1681","v":0},0,{"$f":"[1]Infrastructure!Z1681","v":0},{"$f":"[1]Infrastructure!Z1681","v":0},0,{"$f":"[1]Infrastructure!AB1681","v":0},{"$f":"[1]Infrastructure!AB1681","v":0},0,{"$f":"[1]Infrastructure!AC1681","v":0},{"$f":"[1]Infrastructure!AD1681","v":0},{"$f":"[1]Infrastructure!AE1681","v":0},{"$f":"[1]Infrastructure!AF1681","v":0},{"$f":"[1]Infrastructure!AG1681","v":0},{"$f":"[1]Infrastructure!AH1681","v":0},0]
[0,null,null,null,null,null,{"$f":"[1]Infrastructure!G1682","v":0},{"$f":"[1]Infrastructure!H1682","v":0},{"$f":"[1]Infrastructure!I1682","v":0},{"$f":"[1]Infrastructure!J1682","v":0},{"$f":"[1]Infrastructure!K1682","v":0},{"$f":"[1]Infrastructure!L1682","v":0},{"$f":"[1]Infrastructure!M1682","v":0},{"$f":"[1]Infrastructure!N1682","v":0},{"$f":"[1]Infrastructure!O1682","v":0},{"$f":"[1]Infrastructure!Q1682","v":0},{"$f":"[1]Infrastructure!R1682","v":0},{"$f":"[1]Infrastructure!T1682","v":0},{"$f":"[1]Infrastructure!W1682","v":0},{"$f":"[1]Infrastructure!W1682","v":0},0,{"$f":"[1]Infrastructure!Z1682","v":0},{"$f":"[1]Infrastructure!Z1682","v":0},0,{"$f":"[1]Infrastructure!AB1682","v":0},{"$f":"[1]Infrastructure!AB1682","v":0},0,{"$f":"[1]Infrastructure!AC1682","v":0},{"$f":"[1]Infrastructure!AD1682","v":0},{"$f":"[1]Infrastructure!AE1682","v":0},{"$f":"[1]Infrastructure!AF1682","v":0},{"$f":"[1]Infrastructure!AG1682","v":0},{"$f":"[1]Infrastructure!AH1682","v":0},0]
[0,null,null,null,null,null,{"$f":"[1]Infrastructure!G1683","v":0},{"$f":"[1]Infrastructure!H1683","v":0},{"$f":"[1]Infrastructure!I1683","v":0},{"$f":"[1]Infrastructure!J1683","v":0},{"$f":"[1]Infrastructure!K1683","v":0},{"$f":"[1]Infrastructure!L1683","v":0},{"$f":"[1]Infrastructure!M1683","v":0},{"$f":"[1]Infrastructure!N1683","v":0},{"$f":"[1]Infrastructure!O1683","v":0},{"$f":"[1]Infrastructure!Q1683","v":0},{"$f":"[1]Infrastructure!R1683","v":0},{"$f":"[1]Infrastructure!T1683","v":0},{"$f":"[1]Infrastructure!W1683","v":0},{"$f":"[1]Infrastructure!W1683","v":0},0,{"$f":"[1]Infrastructure!Z1683","v":0},{"$f":"[1]Infrastructure!Z1683","v":0},0,{"$f":"[1]Infrastructure!AB1683","v":0},{"$f":"[1]Infrastructure!AB1683","v":0},0,{"$f":"[1]Infrastructure!AC1683","v":0},{"$f":"[1]Infrastructure!AD1683","v":0},{"$f":"[1]Infrastructure!AE1683","v":0},{"$f":"[1]Infrastructure!AF1683","v":0},{"$f":"[1]Infrastructure!AG1683","v":0},{"$f":"[1]Infrastructure!AH1683","v":0},0]
[0,null,null,null,null,null,{"$f":"[1]Infrastructure!G1684","v":0},{"$f":"[1]Infrastructure!H1684","v":0},{"$f":"[1]Infrastructure!I1684","v":0},{"$f":"[1]Infrastructure!J1684","v":0},{"$f":"[1]Infrastructure!K1684","v":0},{"$f":"[1]Infrastructure!L1684","v":0},{"$f":"[1]Infrastructure!M1684","v":0},{"$f":"[1]Infrastructure!N1684","v":0},{"$f":"[1]Infrastructure!O1684","v":0},{"$f":"[1]Infrastructure!Q1684","v":0},{"$f":"[1]Infrastructure!R1684","v":0},{"$f":"[1]Infrastructure!T1684","v":0},{"$f":"[1]Infrastructure!W1684","v":0},{"$f":"[1]Infrastructure!W1684","v":0},0,{"$f":"[1]Infrastructure!Z1684","v":0},{"$f":"[1]Infrastructure!Z1684","v":0},0,{"$f":"[1]Infrastructure!AB1684","v":0},{"$f":"[1]Infrastructure!AB1684","v":0},0,{"$f":"[1]Infrastructure!AC1684","v":0},{"$f":"[1]Infrastructure!AD1684","v":0},{"$f":"[1]Infrastructure!AE1684","v":0},{"$f":"[1]Infrastructure!AF1684","v":0},{"$f":"[1]Infrastructure!AG1684","v":0},{"$f":"[1]Infrastructure!AH1684","v":0},0]
[0,null,null,null,null,null,{"$f":"[1]Infrastructure!G1685","v":0},{"$f":"[1]Infrastructure!H1685","v":0},{"$f":"[1]Infrastructure!I1685","v":0},{"$f":"[1]Infrastructure!J1685","v":0},{"$f":"[1]Infrastructure!K1685","v":0},{"$f":"[1]Infrastructure!L1685","v":0},{"$f":"[1]Infrastructure!M1685","v":0},{"$f":"[1]Infrastructure!N1685","v":0},{"$f":"[1]Infrastructure!O1685","v":0},{"$f":"[1]Infrastructure!Q1685","v":0},{"$f":"[1]Infrastructure!R1685","v":0},{"$f":"[1]Infrastructure!T1685","v":0},{"$f":"[1]Infrastructure!W1685","v":0},{"$f":"[1]Infrastructure!W1685","v":0},0,{"$f":"[1]Infrastructure!Z1685","v":0},{"$f":"[1]Infrastructure!Z1685","v":0},0,{"$f":"[1]Infrastructure!AB1685","v":0},{"$f":"[1]Infrastructure!AB1685","v":0},0,{"$f":"[1]Infrastructure!AC1685","v":0},{"$f":"[1]Infrastructure!AD1685","v":0},{"$f":"[1]Infrastructure!AE1685","v":0},{"$f":"[1]Infrastructure!AF1685","v":0},{"$f":"[1]Infrastructure!AG1685","v":0},{"$f":"[1]Infrastructure!AH1685","v":0},0]
[0,null,null,null,null,null,{"$f":"[1]Infrastructure!G1686","v":0},{"$f":"[1]Infrastructure!H1686","v":0},{"$f":"[1]Infrastructure!I1686","v":0},{"$f":"[1]Infrastructure!J1686","v":0},{"$f":"[1]Infrastructure!K1686","v":0},{"$f":"[1]Infrastructure!L1686","v":0},{"$f":"[1]Infrastructure!M1686","v":0},{"$f":"[1]Infrastructure!N1686","v":0},{"$f":"[1]Infrastructure!O1686","v":0},{"$f":"[1]Infrastructure!Q1686","v":0},{"$f":"[1]Infrastructure!R1686","v":0},{"$f":"[1]Infrastructure!T1686","v":0},{"$f":"[1]Infrastructure!W1686","v":0},{"$f":"[1]Infrastructure!W1686","v":0},0,{"$f":"[1]Infrastructure!Z1686","v":0},{"$f":"[1]Infrastructure!Z1686","v":0},0,{"$f":"[1]Infrastructure!AB1686","v":0},{"$f":"[1]Infrastructure!AB1686","v":0},0,{"$f":"[1]Infrastructure!AC1686","v":0},{"$f":"[1]Infrastructure!AD1686","v":0},{"$f":"[1]Infrastructure!AE1686","v":0},{"$f":"[1]Infrastructure!AF1686","v":0},{"$f":"[1]Infrastructure!AG1686","v":0},{"$f":"[1]Infrastructure!AH1686","v":0},0]
[0,null,null,null,null,null,{"$f":"[1]Infrastructure!G1687","v":0},{"$f":"[1]Infrastructure!H1687","v":0},{"$f":"[1]Infrastructure!I1687","v":0},{"$f":"[1]Infrastructure!J1687","v":0},{"$f":"[1]Infrastructure!K1687","v":0},{"$f":"[1]Infrastructure!L1687","v":0},{"$f":"[1]Infrastructure!M1687","v":0},{"$f":"[1]Infrastructure!N1687","v":0},{"$f":"[1]Infrastructure!O1687","v":0},{"$f":"[1]Infrastructure!Q1687","v":0},{"$f":"[1]Infrastructure!R1687","v":0},{"$f":"[1]Infrastructure!T1687","v":0},{"$f":"[1]Infrastructure!W1687","v":0},{"$f":"[1]Infrastructure!W1687","v":0},0,{"$f":"[1]Infrastructure!Z1687","v":0},{"$f":"[1]Infrastructure!Z1687","v":0},0,{"$f":"[1]Infrastructure!AB1687","v":0},{"$f":"[1]Infrastructure!AB1687","v":0},0,{"$f":"[1]Infrastructure!AC1687","v":0},{"$f":"[1]Infrastructure!AD1687","v":0},{"$f":"[1]Infrastructure!AE1687","v":0},{"$f":"[1]Infrastructure!AF1687","v":0},{"$f":"[1]Infrastructure!AG1687","v":0},{"$f":"[1]Infrastructure!AH1687","v":0},0]
[0,null,null,null,null,null,{"$f":"[1]Infrastructure!G1688","v":0},{"$f":"[1]Infrastructure!H1688","v":0},{"$f":"[1]Infrastructure!I1688","v":0},{"$f":"[1]Infrastructure!J1688","v":0},{"$f":"[1]Infrastructure!K1688","v":0},{"$f":"[1]Infrastructure!L1688","v":0},{"$f":"[1]Infrastructure!M1688","v":0},{"$f":"[1]Infrastructure!N1688","v":0},{"$f":"[1]Infrastructure!O1688","v":0},{"$f":"[1]Infrastructure!Q1688","v":0},{"$f":"[1]Infrastructure!R1688","v":0},{"$f":"[1]Infrastructure!T1688","v":0},{"$f":"[1]Infrastructure!W1688","v":0},{"$f":"[1]Infrastructure!W1688","v":0},0,{"$f":"[1]Infrastructure!Z1688","v":0},{"$f":"[1]Infrastructure!Z1688","v":0},0,{"$f":"[1]Infrastructure!AB1688","v":0},{"$f":"[1]Infrastructure!AB1688","v":0},0,{"$f":"[1]Infrastructure!AC1688","v":0},{"$f":"[1]Infrastructure!AD1688","v":0},{"$f":"[1]Infrastructure!AE1688","v":0},{"$f":"[1]Infrastructure!AF1688","v":0},{"$f":"[1]Infrastructure!AG1688","v":0},{"$f":"[1]Infrastructure!AH1688","v":0},0]
[0,null,null,null,null,null,{"$f":"[1]Infrastructure!G1689","v":0},{"$f":"[1]Infrastructure!H1689","v":0},{"$f":"[1]Infrastructure!I1689","v":0},{"$f":"[1]Infrastructure!J1689","v":0},{"$f":"[1]Infrastructure!K1689","v":0},{"$f":"[1]Infrastructure!L1689","v":0},{"$f":"[1]Infrastructure!M1689","v":0},{"$f":"[1]Infrastructure!N1689","v":0},{"$f":"[1]Infrastructure!O1689","v":0},{"$f":"[1]Infrastructure!Q1689","v":0},{"$f":"[1]Infrastructure!R1689","v":0},{"$f":"[1]Infrastructure!T1689","v":0},{"$f":"[1]Infrastructure!W1689","v":0},{"$f":"[1]Infrastructure!W1689","v":0},0,{"$f":"[1]Infrastructure!Z1689","v":0},{"$f":"[1]Infrastructure!Z1689","v":0},0,{"$f":"[1]Infrastructure!AB1689","v":0},{"$f":"[1]Infrastructure!AB1689","v":0},0,{"$f":"[1]Infrastructure!AC1689","v":0},{"$f":"[1]Infrastructure!AD1689","v":0},{"$f":"[1]Infrastructure!AE1689","v":0},{"$f":"[1]Infrastructure!AF1689","v":0},{"$f":"[1]Infrastructure!AG1689","v":0},{"$f":"[1]Infrastructure!AH1689","v":0},0]
[0,null,null,null,null,null,{"$f":"[1]Infrastructure!G1690","v":0},{"$f":"[1]Infrastructure!H1690","v":0},{"$f":"[1]Infrastructure!I1690","v":0},{"$f":"[1]Infrastructure!J1690","v":0},{"$f":"[1]Infrastructure!K1690","v":0},{"$f":"[1]Infrastructure!L1690","v":0},{"$f":"[1]Infrastructure!M1690","v":0},{"$f":"[1]Infrastructure!N1690","v":0},{"$f":"[1]Infrastructure!O1690","v":0},{"$f":"[1]Infrastructure!Q1690","v":0},{"$f":"[1]Infrastructure!R1690","v":0},{"$f":"[1]Infrastructure!T1690","v":0},{"$f":"[1]Infrastructure!W1690","v":0},{"$f":"[1]Infrastructure!W1690","v":0},0,{"$f":"[1]Infrastructure!Z1690","v":0},{"$f":"[1]Infrastructure!Z1690","v":0},0,{"$f":"[1]Infrastructure!AB1690","v":0},{"$f":"[1]Infrastructure!AB1690","v":0},0,{"$f":"[1]Infrastructure!AC1690","v":0},{"$f":"[1]Infrastructure!AD1690","v":0},{"$f":"[1]Infrastructure!AE1690","v":0},{"$f":"[1]Infrastructure!AF1690","v":0},{"$f":"[1]Infrastructure!AG1690","v":0},{"$f":"[1]Infrastructure!AH1690","v":0},0]
[0,null,null,null,null,null,{"$f":"[1]Infrastructure!G1691","v":0},{"$f":"[1]Infrastructure!H1691","v":0},{"$f":"[1]Infrastructure!I1691","v":0},{"$f":"[1]Infrastructure!J1691","v":0},{"$f":"[1]Infrastructure!K1691","v":0},{"$f":"[1]Infrastructure!L1691","v":0},{"$f":"[1]Infrastructure!M1691","v":0},{"$f":"[1]Infrastructure!N1691","v":0},{"$f":"[1]Infrastructure!O1691","v":0},{"$f":"[1]Infrastructure!Q1691","v":0},{"$f":"[1]Infrastructure!R1691","v":0},{"$f":"[1]Infrastructure!T1691","v":0},{"$f":"[1]Infrastructure!W1691","v":0},{"$f":"[1]Infrastructure!W1691","v":0},0,{"$f":"[1]Infrastructure!Z1691","v":0},{"$f":"[1]Infrastructure!Z1691","v":0},0,{"$f":"[1]Infrastructure!AB1691","v":0},{"$f":"[1]Infrastructure!AB1691","v":0},0,{"$f":"[1]Infrastructure!AC1691","v":0},{"$f":"[1]Infrastructure!AD1691","v":0},{"$f":"[1]Infrastructure!AE1691","v":0},{"$f":"[1]Infrastructure!AF1691","v":0},{"$f":"[1]Infrastructure!AG1691","v":0},{"$f":"[1]Infrastructure!AH1691","v":0},0]
[0,null,null,null,null,null,{"$f":"[1]Infrastructure!G1692","v":0},{"$f":"[1]Infrastructure!H1692","v":0},{"$f":"[1]Infrastructure!I1692","v":0},{"$f":"[1]Infrastructure!J1692","v":0},{"$f":"[1]Infrastructure!K1692","v":0},{"$f":"[1]Infrastructure!L1692","v":0},{"$f":"[1]Infrastructure!M1692","v":0},{"$f":"[1]Infrastructure!N1692","v":0},{"$f":"[1]Infrastructure!O1692","v":0},{"$f":"[1]Infrastructure!Q1692","v":0},{"$f":"[1]Infrastructure!R1692","v":0},{"$f":"[1]Infrastructure!T1692","v":0},{"$f":"[1]Infrastructure!W1692","v":0},{"$f":"[1]Infrastructure!W1692","v":0},0,{"$f":"[1]Infrastructure!Z1692","v":0},{"$f":"[1]Infrastructure!Z1692","v":0},0,{"$f":"[1]Infrastructure!AB1692","v":0},{"$f":"[1]Infrastructure!AB1692","v":0},0,{"$f":"[1]Infrastructure!AC1692","v":0},{"$f":"[1]Infrastructure!AD1692","v":0},{"$f":"[1]Infrastructure!AE1692","v":0},{"$f":"[1]Infrastructure!AF1692","v":0},{"$f":"[1]Infrastructure!AG1692","v":0},{"$f":"[1]Infrastructure!AH1692","v":0},0]
[0,null,null,null,null,null,{"$f":"[1]Infrastructure!G1693","v":0},{"$f":"[1]Infrastructure!H1693","v":0},{"$f":"[1]Infrastructure!I1693","v":0},{"$f":"[1]Infrastructure!J1693","v":0},{"$f":"[1]Infrastructure!K1693","v":0},{"$f":"[1]Infrastructure!L1693","v":0},{"$f":"[1]Infrastructure!M1693","v":0},{"$f":"[1]Infrastructure!N1693","v":0},{"$f":"[1]Infrastructure!O1693","v":0},{"$f":"[1]Infrastructure!Q1693","v":0},{"$f":"[1]Infrastructure!R1693","v":0},{"$f":"[1]Infrastructure!T1693","v":0},{"$f":"[1]Infrastructure!W1693","v":0},{"$f":"[1]Infrastructure!W1693","v":0},0,{"$f":"[1]Infrastructure!Z1693","v":0},{"$f":"[1]Infrastructure!Z1693","v":0},0,{"$f":"[1]Infrastructure!AB1693","v":0},{"$f":"[1]Infrastructure!AB1693","v":0},0,{"$f":"[1]Infrastructure!AC1693","v":0},{"$f":"[1]Infrastructure!AD1693","v":0},{"$f":"[1]Infrastructure!AE1693","v":0},{"$f":"[1]Infrastructure!AF1693","v":0},{"$f":"[1]Infrastructure!AG1693","v":0},{"$f":"[1]Infrastructure!AH1693","v":0},0]
[0,null,null,null,null,null,{"$f":"[1]Infrastructure!G1694","v":0},{"$f":"[1]Infrastructure!H1694","v":0},{"$f":"[1]Infrastructure!I1694","v":0},{"$f":"[1]Infrastructure!J1694","v":0},{"$f":"[1]Infrastructure!K1694","v":0},{"$f":"[1]Infrastructure!L1694","v":0},{"$f":"[1]Infrastructure!M1694","v":0},{"$f":"[1]Infrastructure!N1694","v":0},{"$f":"[1]Infrastructure!O1694","v":0},{"$f":"[1]Infrastructure!Q1694","v":0},{"$f":"[1]Infrastructure!R1694","v":0},{"$f":"[1]Infrastructure!T1694","v":0},{"$f":"[1]Infrastructure!W1694","v":0},{"$f":"[1]Infrastructure!W1694","v":0},0,{"$f":"[1]Infrastructure!Z1694","v":0},{"$f":"[1]Infrastructure!Z1694","v":0},0,{"$f":"[1]Infrastructure!AB1694","v":0},{"$f":"[1]Infrastructure!AB1694","v":0},0,{"$f":"[1]Infrastructure!AC1694","v":0},{"$f":"[1]Infrastructure!AD1694","v":0},{"$f":"[1]Infrastructure!AE1694","v":0},{"$f":"[1]Infrastructure!AF1694","v":0},{"$f":"[1]Infrastructure!AG1694","v":0},{"$f":"[1]Infrastructure!AH1694","v":0},0]
[0,null,null,null,null,null,{"$f":"[1]Infrastructure!G1695","v":0},{"$f":"[1]Infrastructure!H1695","v":0},{"$f":"[1]Infrastructure!I1695","v":0},{"$f":"[1]Infrastructure!J1695","v":0},{"$f":"[1]Infrastructure!K1695","v":0},{"$f":"[1]Infrastructure!L1695","v":0},{"$f":"[1]Infrastructure!M1695","v":0},{"$f":"[1]Infrastructure!N1695","v":0},{"$f":"[1]Infrastructure!O1695","v":0},{"$f":"[1]Infrastructure!Q1695","v":0},{"$f":"[1]Infrastructure!R1695","v":0},{"$f":"[1]Infrastructure!T1695","v":0},{"$f":"[1]Infrastructure!W1695","v":0},{"$f":"[1]Infrastructure!W1695","v":0},0,{"$f":"[1]Infrastructure!Z1695","v":0},{"$f":"[1]Infrastructure!Z1695","v":0},0,{"$f":"[1]Infrastructure!AB1695","v":0},{"$f":"[1]Infrastructure!AB1695","v":0},0,{"$f":"[1]Infrastructure!AC1695","v":0},{"$f":"[1]Infrastructure!AD1695","v":0},{"$f":"[1]Infrastructure!AE1695","v":0},{"$f":"[1]Infrastructure!AF1695","v":0},{"$f":"[1]Infrastructure!AG1695","v":0},{"$f":"[1]Infrastructure!AH1695","v":0},0]
[0,null,null,null,null,null,{"$f":"[1]Infrastructure!G1696","v":0},{"$f":"[1]Infrastructure!H1696","v":0},{"$f":"[1]Infrastructure!I1696","v":0},{"$f":"[1]Infrastructure!J1696","v":0},{"$f":"[1]Infrastructure!K1696","v":0},{"$f":"[1]Infrastructure!L1696","v":0},{"$f":"[1]Infrastructure!M1696","v":0},{"$f":"[1]Infrastructure!N1696","v":0},{"$f":"[1]Infrastructure!O1696","v":0},{"$f":"[1]Infrastructure!Q1696","v":0},{"$f":"[1]Infrastructure!R1696","v":0},{"$f":"[1]Infrastructure!T1696","v":0},{"$f":"[1]Infrastructure!W1696","v":0},{"$f":"[1]Infrastructure!W1696","v":0},0,{"$f":"[1]Infrastructure!Z1696","v":0},{"$f":"[1]Infrastructure!Z1696","v":0},0,{"$f":"[1]Infrastructure!AB1696","v":0},{"$f":"[1]Infrastructure!AB1696","v":0},0,{"$f":"[1]Infrastructure!AC1696","v":0},{"$f":"[1]Infrastructure!AD1696","v":0},{"$f":"[1]Infrastructure!AE1696","v":0},{"$f":"[1]Infrastructure!AF1696","v":0},{"$f":"[1]Infrastructure!AG1696","v":0},{"$f":"[1]Infrastructure!AH1696","v":0},0]
[0,null,null,null,null,null,{"$f":"[1]Infrastructure!G1697","v":0},{"$f":"[1]Infrastructure!H1697","v":0},{"$f":"[1]Infrastructure!I1697","v":0},{"$f":"[1]Infrastructure!J1697","v":0},{"$f":"[1]Infrastructure!K1697","v":0},{"$f":"[1]Infrastructure!L1697","v":0},{"$f":"[1]Infrastructure!M1697","v":0},{"$f":"[1]Infrastructure!N1697","v":0},{"$f":"[1]Infrastructure!O1697","v":0},{"$f":"[1]Infrastructure!Q1697","v":0},{"$f":"[1]Infrastructure!R1697","v":0},{"$f":"[1]Infrastructure!T1697","v":0},{"$f":"[1]Infrastructure!W1697","v":0},{"$f":"[1]Infrastructure!W1697","v":0},0,{"$f":"[1]Infrastructure!Z1697","v":0},{"$f":"[1]Infrastructure!Z1697","v":0},0,{"$f":"[1]Infrastructure!AB1697","v":0},{"$f":"[1]Infrastructure!AB1697","v":0},0,{"$f":"[1]Infrastructure!AC1697","v":0},{"$f":"[1]Infrastructure!AD1697","v":0},{"$f":"[1]Infrastructure!AE1697","v":0},{"$f":"[1]Infrastructure!AF1697","v":0},{"$f":"[1]Infrastructure!AG1697","v":0},{"$f":"[1]Infrastructure!AH1697","v":0},0]
[0,null,null,null,null,null,{"$f":"[1]Infrastructure!G1698","v":0},{"$f":"[1]Infrastructure!H1698","v":0},{"$f":"[1]Infrastructure!I1698","v":0},{"$f":"[1]Infrastructure!J1698","v":0},{"$f":"[1]Infrastructure!K1698","v":0},{"$f":"[1]Infrastructure!L1698","v":0},{"$f":"[1]Infrastructure!M1698","v":0},{"$f":"[1]Infrastructure!N1698","v":0},{"$f":"[1]Infrastructure!O1698","v":0},{"$f":"[1]Infrastructure!Q1698","v":0},{"$f":"[1]Infrastructure!R1698","v":0},{"$f":"[1]Infrastructure!T1698","v":0},{"$f":"[1]Infrastructure!W1698","v":0},{"$f":"[1]Infrastructure!W1698","v":0},0,{"$f":"[1]Infrastructure!Z1698","v":0},{"$f":"[1]Infrastructure!Z1698","v":0},0,{"$f":"[1]Infrastructure!AB1698","v":0},{"$f":"[1]Infrastructure!AB1698","v":0},0,{"$f":"[1]Infrastructure!AC1698","v":0},{"$f":"[1]Infrastructure!AD1698","v":0},{"$f":"[1]Infrastructure!AE1698","v":0},{"$f":"[1]Infrastructure!AF1698","v":0},{"$f":"[1]Infrastructure!AG1698","v":0},{"$f":"[1]Infrastructure!AH1698","v":0},0]
[0,null,null,null,null,null,{"$f":"[1]Infrastructure!G1699","v":0},{"$f":"[1]Infrastructure!H1699","v":0},{"$f":"[1]Infrastructure!I1699","v":0},{"$f":"[1]Infrastructure!J1699","v":0},{"$f":"[1]Infrastructure!K1699","v":0},{"$f":"[1]Infrastructure!L1699","v":0},{"$f":"[1]Infrastructure!M1699","v":0},{"$f":"[1]Infrastructure!N1699","v":0},{"$f":"[1]Infrastructure!O1699","v":0},{"$f":"[1]Infrastructure!Q1699","v":0},{"$f":"[1]Infrastructure!R1699","v":0},{"$f":"[1]Infrastructure!T1699","v":0},{"$f":"[1]Infrastructure!W1699","v":0},{"$f":"[1]Infrastructure!W1699","v":0},0,{"$f":"[1]Infrastructure!Z1699","v":0},{"$f":"[1]Infrastructure!Z1699","v":0},0,{"$f":"[1]Infrastructure!AB1699","v":0},{"$f":"[1]Infrastructure!AB1699","v":0},0,{"$f":"[1]Infrastructure!AC1699","v":0},{"$f":"[1]Infrastructure!AD1699","v":0},{"$f":"[1]Infrastructure!AE1699","v":0},{"$f":"[1]Infrastructure!AF1699","v":0},{"$f":"[1]Infrastructure!AG1699","v":0},{"$f":"[1]Infrastructure!AH1699","v":0},0]
[0,null,null,null,null,null,{"$f":"[1]Infrastructure!G1700","v":0},{"$f":"[1]Infrastructure!H1700","v":0},{"$f":"[1]Infrastructure!I1700","v":0},{"$f":"[1]Infrastructure!J1700","v":0},{"$f":"[1]Infrastructure!K1700","v":0},{"$f":"[1]Infrastructure!L1700","v":0},{"$f":"[1]Infrastructure!M1700","v":0},{"$f":"[1]Infrastructure!N1700","v":0},{"$f":"[1]Infrastructure!O1700","v":0},{"$f":"[1]Infrastructure!Q1700","v":0},{"$f":"[1]Infrastructure!R1700","v":0},{"$f":"[1]Infrastructure!T1700","v":0},{"$f":"[1]Infrastructure!W1700","v":0},{"$f":"[1]Infrastructure!W1700","v":0},0,{"$f":"[1]Infrastructure!Z1700","v":0},{"$f":"[1]Infrastructure!Z1700","v":0},0,{"$f":"[1]Infrastructure!AB1700","v":0},{"$f":"[1]Infrastructure!AB1700","v":0},0,{"$f":"[1]Infrastructure!AC1700","v":0},{"$f":"[1]Infrastructure!AD1700","v":0},{"$f":"[1]Infrastructure!AE1700","v":0},{"$f":"[1]Infrastructure!AF1700","v":0},{"$f":"[1]Infrastructure!AG1700","v":0},{"$f":"[1]Infrastructure!AH1700","v":0},0]
[0,null,null,null,null,null,{"$f":"[1]Infrastructure!G1701","v":0},{"$f":"[1]Infrastructure!H1701","v":0},{"$f":"[1]Infrastructure!I1701","v":0},{"$f":"[1]Infrastructure!J1701","v":0},{"$f":"[1]Infrastructure!K1701","v":0},{"$f":"[1]Infrastructure!L1701","v":0},{"$f":"[1]Infrastructure!M1701","v":0},{"$f":"[1]Infrastructure!N1701","v":0},{"$f":"[1]Infrastructure!O1701","v":0},{"$f":"[1]Infrastructure!Q1701","v":0},{"$f":"[1]Infrastructure!R1701","v":0},{"$f":"[1]Infrastructure!T1701","v":0},{"$f":"[1]Infrastructure!W1701","v":0},{"$f":"[1]Infrastructure!W1701","v":0},0,{"$f":"[1]Infrastructure!Z1701","v":0},{"$f":"[1]Infrastructure!Z1701","v":0},0,{"$f":"[1]Infrastructure!AB1701","v":0},{"$f":"[1]Infrastructure!AB1701","v":0},0,{"$f":"[1]Infrastructure!AC1701","v":0},{"$f":"[1]Infrastructure!AD1701","v":0},{"$f":"[1]Infrastructure!AE1701","v":0},{"$f":"[1]Infrastructure!AF1701","v":0},{"$f":"[1]Infrastructure!AG1701","v":0},{"$f":"[1]Infrastructure!AH1701","v":0},0]
[0,null,null,null,null,null,{"$f":"[1]Infrastructure!G1702","v":0},{"$f":"[1]Infrastructure!H1702","v":0},{"$f":"[1]Infrastructure!I1702","v":0},{"$f":"[1]Infrastructure!J1702","v":0},{"$f":"[1]Infrastructure!K1702","v":0},{"$f":"[1]Infrastructure!L1702","v":0},{"$f":"[1]Infrastructure!M1702","v":0},{"$f":"[1]Infrastructure!N1702","v":0},{"$f":"[1]Infrastructure!O1702","v":0},{"$f":"[1]Infrastructure!Q1702","v":0},{"$f":"[1]Infrastructure!R1702","v":0},{"$f":"[1]Infrastructure!T1702","v":0},{"$f":"[1]Infrastructure!W1702","v":0},{"$f":"[1]Infrastructure!W1702","v":0},0,{"$f":"[1]Infrastructure!Z1702","v":0},{"$f":"[1]Infrastructure!Z1702","v":0},0,{"$f":"[1]Infrastructure!AB1702","v":0},{"$f":"[1]Infrastructure!AB1702","v":0},0,{"$f":"[1]Infrastructure!AC1702","v":0},{"$f":"[1]Infrastructure!AD1702","v":0},{"$f":"[1]Infrastructure!AE1702","v":0},{"$f":"[1]Infrastructure!AF1702","v":0},{"$f":"[1]Infrastructure!AG1702","v":0},{"$f":"[1]Infrastructure!AH1702","v":0},0]
[0,null,null,null,null,null,{"$f":"[1]Infrastructure!G1703","v":0},{"$f":"[1]Infrastructure!H1703","v":0},{"$f":"[1]Infrastructure!I1703","v":0},{"$f":"[1]Infrastructure!J1703","v":0},{"$f":"[1]Infrastructure!K1703","v":0},{"$f":"[1]Infrastructure!L1703","v":0},{"$f":"[1]Infrastructure!M1703","v":0},{"$f":"[1]Infrastructure!N1703","v":0},{"$f":"[1]Infrastructure!O1703","v":0},{"$f":"[1]Infrastructure!Q1703","v":0},{"$f":"[1]Infrastructure!R1703","v":0},{"$f":"[1]Infrastructure!T1703","v":0},{"$f":"[1]Infrastructure!W1703","v":0},{"$f":"[1]Infrastructure!W1703","v":0},0,{"$f":"[1]Infrastructure!Z1703","v":0},{"$f":"[1]Infrastructure!Z1703","v":0},0,{"$f":"[1]Infrastructure!AB1703","v":0},{"$f":"[1]Infrastructure!AB1703","v":0},0,{"$f":"[1]Infrastructure!AC1703","v":0},{"$f":"[1]Infrastructure!AD1703","v":0},{"$f":"[1]Infrastructure!AE1703","v":0},{"$f":"[1]Infrastructure!AF1703","v":0},{"$f":"[1]Infrastructure!AG1703","v":0},{"$f":"[1]Infrastructure!AH1703","v":0},0]
[0,null,null,null,null,null,{"$f":"[1]Infrastructure!G1704","v":0},{"$f":"[1]Infrastructure!H1704","v":0},{"$f":"[1]Infrastructure!I1704","v":0},{"$f":"[1]Infrastructure!J1704","v":0},{"$f":"[1]Infrastructure!K1704","v":0},{"$f":"[1]Infrastructure!L1704","v":0},{"$f":"[1]Infrastructure!M1704","v":0},{"$f":"[1]Infrastructure!N1704","v":0},{"$f":"[1]Infrastructure!O1704","v":0},{"$f":"[1]Infrastructure!Q1704","v":0},{"$f":"[1]Infrastructure!R1704","v":0},{"$f":"[1]Infrastructure!T1704","v":0},{"$f":"[1]Infrastructure!W1704","v":0},{"$f":"[1]Infrastructure!W1704","v":0},0,{"$f":"[1]Infrastructure!Z1704","v":0},{"$f":"[1]Infrastructure!Z1704","v":0},0,{"$f":"[1]Infrastructure!AB1704","v":0},{"$f":"[1]Infrastructure!AB1704","v":0},0,{"$f":"[1]Infrastructure!AC1704","v":0},{"$f":"[1]Infrastructure!AD1704","v":0},{"$f":"[1]Infrastructure!AE1704","v":0},{"$f":"[1]Infrastructure!AF1704","v":0},{"$f":"[1]Infrastructure!AG1704","v":0},{"$f":"[1]Infrastructure!AH1704","v":0},0]
[0,null,null,null,null,null,{"$f":"[1]Infrastructure!G1705","v":0},{"$f":"[1]Infrastructure!H1705","v":0},{"$f":"[1]Infrastructure!I1705","v":0},{"$f":"[1]Infrastructure!J1705","v":0},{"$f":"[1]Infrastructure!K1705","v":0},{"$f":"[1]Infrastructure!L1705","v":0},{"$f":"[1]Infrastructure!M1705","v":0},{"$f":"[1]Infrastructure!N1705","v":0},{"$f":"[1]Infrastructure!O1705","v":0},{"$f":"[1]Infrastructure!Q1705","v":0},{"$f":"[1]Infrastructure!R1705","v":0},{"$f":"[1]Infrastructure!T1705","v":0},{"$f":"[1]Infrastructure!W1705","v":0},{"$f":"[1]Infrastructure!W1705","v":0},0,{"$f":"[1]Infrastructure!Z1705","v":0},{"$f":"[1]Infrastructure!Z1705","v":0},0,{"$f":"[1]Infrastructure!AB1705","v":0},{"$f":"[1]Infrastructure!AB1705","v":0},0,{"$f":"[1]Infrastructure!AC1705","v":0},{"$f":"[1]Infrastructure!AD1705","v":0},{"$f":"[1]Infrastructure!AE1705","v":0},{"$f":"[1]Infrastructure!AF1705","v":0},{"$f":"[1]Infrastructure!AG1705","v":0},{"$f":"[1]Infrastructure!AH1705","v":0},0]
[0,null,null,null,null,null,{"$f":"[1]Infrastructure!G1706","v":0},{"$f":"[1]Infrastructure!H1706","v":0},{"$f":"[1]Infrastructure!I1706","v":0},{"$f":"[1]Infrastructure!J1706","v":0},{"$f":"[1]Infrastructure!K1706","v":0},{"$f":"[1]Infrastructure!L1706","v":0},{"$f":"[1]Infrastructure!M1706","v":0},{"$f":"[1]Infrastructure!N1706","v":0},{"$f":"[1]Infrastructure!O1706","v":0},{"$f":"[1]Infrastructure!Q1706","v":0},{"$f":"[1]Infrastructure!R1706","v":0},{"$f":"[1]Infrastructure!T1706","v":0},{"$f":"[1]Infrastructure!W1706","v":0},{"$f":"[1]Infrastructure!W1706","v":0},0,{"$f":"[1]Infrastructure!Z1706","v":0},{"$f":"[1]Infrastructure!Z1706","v":0},0,{"$f":"[1]Infrastructure!AB1706","v":0},{"$f":"[1]Infrastructure!AB1706","v":0},0,{"$f":"[1]Infrastructure!AC1706","v":0},{"$f":"[1]Infrastructure!AD1706","v":0},{"$f":"[1]Infrastructure!AE1706","v":0},{"$f":"[1]Infrastructure!AF1706","v":0},{"$f":"[1]Infrastructure!AG1706","v":0},{"$f":"[1]Infrastructure!AH1706","v":0},0]
[0,null,null,null,null,null,{"$f":"[1]Infrastructure!G1707","v":0},{"$f":"[1]Infrastructure!H1707","v":0},{"$f":"[1]Infrastructure!I1707","v":0},{"$f":"[1]Infrastructure!J1707","v":0},{"$f":"[1]Infrastructure!K1707","v":0},{"$f":"[1]Infrastructure!L1707","v":0},{"$f":"[1]Infrastructure!M1707","v":0},{"$f":"[1]Infrastructure!N1707","v":0},{"$f":"[1]Infrastructure!O1707","v":0},{"$f":"[1]Infrastructure!Q1707","v":0},{"$f":"[1]Infrastructure!R1707","v":0},{"$f":"[1]Infrastructure!T1707","v":0},{"$f":"[1]Infrastructure!W1707","v":0},{"$f":"[1]Infrastructure!W1707","v":0},0,{"$f":"[1]Infrastructure!Z1707","v":0},{"$f":"[1]Infrastructure!Z1707","v":0},0,{"$f":"[1]Infrastructure!AB1707","v":0},{"$f":"[1]Infrastructure!AB1707","v":0},0,{"$f":"[1]Infrastructure!AC1707","v":0},{"$f":"[1]Infrastructure!AD1707","v":0},{"$f":"[1]Infrastructure!AE1707","v":0},{"$f":"[1]Infrastructure!AF1707","v":0},{"$f":"[1]Infrastructure!AG1707","v":0},{"$f":"[1]Infrastructure!AH1707","v":0},0]
[0,null,null,null,null,null,{"$f":"[1]Infrastructure!G1708","v":0},{"$f":"[1]Infrastructure!H1708","v":0},{"$f":"[1]Infrastructure!I1708","v":0},{"$f":"[1]Infrastructure!J1708","v":0},{"$f":"[1]Infrastructure!K1708","v":0},{"$f":"[1]Infrastructure!L1708","v":0},{"$f":"[1]Infrastructure!M1708","v":0},{"$f":"[1]Infrastructure!N1708","v":0},{"$f":"[1]Infrastructure!O1708","v":0},{"$f":"[1]Infrastructure!Q1708","v":0},{"$f":"[1]Infrastructure!R1708","v":0},{"$f":"[1]Infrastructure!T1708","v":0},{"$f":"[1]Infrastructure!W1708","v":0},{"$f":"[1]Infrastructure!W1708","v":0},0,{"$f":"[1]Infrastructure!Z1708","v":0},{"$f":"[1]Infrastructure!Z1708","v":0},0,{"$f":"[1]Infrastructure!AB1708","v":0},{"$f":"[1]Infrastructure!AB1708","v":0},0,{"$f":"[1]Infrastructure!AC1708","v":0},{"$f":"[1]Infrastructure!AD1708","v":0},{"$f":"[1]Infrastructure!AE1708","v":0},{"$f":"[1]Infrastructure!AF1708","v":0},{"$f":"[1]Infrastructure!AG1708","v":0},{"$f":"[1]Infrastructure!AH1708","v":0},0]
[0,null,null,null,null,null,{"$f":"[1]Infrastructure!G1709","v":0},{"$f":"[1]Infrastructure!H1709","v":0},{"$f":"[1]Infrastructure!I1709","v":0},{"$f":"[1]Infrastructure!J1709","v":0},{"$f":"[1]Infrastructure!K1709","v":0},{"$f":"[1]Infrastructure!L1709","v":0},{"$f":"[1]Infrastructure!M1709","v":0},{"$f":"[1]Infrastructure!N1709","v":0},{"$f":"[1]Infrastructure!O1709","v":0},{"$f":"[1]Infrastructure!Q1709","v":0},{"$f":"[1]Infrastructure!R1709","v":0},{"$f":"[1]Infrastructure!T1709","v":0},{"$f":"[1]Infrastructure!W1709","v":0},{"$f":"[1]Infrastructure!W1709","v":0},0,{"$f":"[1]Infrastructure!Z1709","v":0},{"$f":"[1]Infrastructure!Z1709","v":0},0,{"$f":"[1]Infrastructure!AB1709","v":0},{"$f":"[1]Infrastructure!AB1709","v":0},0,{"$f":"[1]Infrastructure!AC1709","v":0},{"$f":"[1]Infrastructure!AD1709","v":0},{"$f":"[1]Infrastructure!AE1709","v":0},{"$f":"[1]Infrastructure!AF1709","v":0},{"$f":"[1]Infrastructure!AG1709","v":0},{"$f":"[1]Infrastructure!AH1709","v":0},0]
[0,null,null,null,null,null,{"$f":"[1]Infrastructure!G1710","v":0},{"$f":"[1]Infrastructure!H1710","v":0},{"$f":"[1]Infrastructure!I1710","v":0},{"$f":"[1]Infrastructure!J1710","v":0},{"$f":"[1]Infrastructure!K1710","v":0},{"$f":"[1]Infrastructure!L1710","v":0},{"$f":"[1]Infrastructure!M1710","v":0},{"$f":"[1]Infrastructure!N1710","v":0},{"$f":"[1]Infrastructure!O1710","v":0},{"$f":"[1]Infrastructure!Q1710","v":0},{"$f":"[1]Infrastructure!R1710","v":0},{"$f":"[1]Infrastructure!T1710","v":0},{"$f":"[1]Infrastructure!W1710","v":0},{"$f":"[1]Infrastructure!W1710","v":0},0,{"$f":"[1]Infrastructure!Z1710","v":0},{"$f":"[1]Infrastructure!Z1710","v":0},0,{"$f":"[1]Infrastructure!AB1710","v":0},{"$f":"[1]Infrastructure!AB1710","v":0},0,{"$f":"[1]Infrastructure!AC1710","v":0},{"$f":"[1]Infrastructure!AD1710","v":0},{"$f":"[1]Infrastructure!AE1710","v":0},{"$f":"[1]Infrastructure!AF1710","v":0},{"$f":"[1]Infrastructure!AG1710","v":0},{"$f":"[1]Infrastructure!AH1710","v":0},0]
[0,null,null,null,null,null,{"$f":"[1]Infrastructure!G1711","v":0},{"$f":"[1]Infrastructure!H1711","v":0},{"$f":"[1]Infrastructure!I1711","v":0},{"$f":"[1]Infrastructure!J1711","v":0},{"$f":"[1]Infrastructure!K1711","v":0},{"$f":"[1]Infrastructure!L1711","v":0},{"$f":"[1]Infrastructure!M1711","v":0},{"$f":"[1]Infrastructure!N1711","v":0},{"$f":"[1]Infrastructure!O1711","v":0},{"$f":"[1]Infrastructure!Q1711","v":0},{"$f":"[1]Infrastructure!R1711","v":0},{"$f":"[1]Infrastructure!T1711","v":0},{"$f":"[1]Infrastructure!W1711","v":0},{"$f":"[1]Infrastructure!W1711","v":0},0,{"$f":"[1]Infrastructure!Z1711","v":0},{"$f":"[1]Infrastructure!Z1711","v":0},0,{"$f":"[1]Infrastructure!AB1711","v":0},{"$f":"[1]Infrastructure!AB1711","v":0},0,{"$f":"[1]Infrastructure!AC1711","v":0},{"$f":"[1]Infrastructure!AD1711","v":0},{"$f":"[1]Infrastructure!AE1711","v":0},{"$f":"[1]Infrastructure!AF1711","v":0},{"$f":"[1]Infrastructure!AG1711","v":0},{"$f":"[1]Infrastructure!AH1711","v":0},0]
[0,null,null,null,null,null,{"$f":"[1]Infrastructure!G1712","v":0},{"$f":"[1]Infrastructure!H1712","v":0},{"$f":"[1]Infrastructure!I1712","v":0},{"$f":"[1]Infrastructure!J1712","v":0},{"$f":"[1]Infrastructure!K1712","v":0},{"$f":"[1]Infrastructure!L1712","v":0},{"$f":"[1]Infrastructure!M1712","v":0},{"$f":"[1]Infrastructure!N1712","v":0},{"$f":"[1]Infrastructure!O1712","v":0},{"$f":"[1]Infrastructure!Q1712","v":0},{"$f":"[1]Infrastructure!R1712","v":0},{"$f":"[1]Infrastructure!T1712","v":0},{"$f":"[1]Infrastructure!W1712","v":0},{"$f":"[1]Infrastructure!W1712","v":0},0,{"$f":"[1]Infrastructure!Z1712","v":0},{"$f":"[1]Infrastructure!Z1712","v":0},0,{"$f":"[1]Infrastructure!AB1712","v":0},{"$f":"[1]Infrastructure!AB1712","v":0},0,{"$f":"[1]Infrastructure!AC1712","v":0},{"$f":"[1]Infrastructure!AD1712","v":0},{"$f":"[1]Infrastructure!AE1712","v":0},{"$f":"[1]Infrastructure!AF1712","v":0},{"$f":"[1]Infrastructure!AG1712","v":0},{"$f":"[1]Infrastructure!AH1712","v":0},0]
[0,null,null,null,null,null,{"$f":"[1]Infrastructure!G1713","v":0},{"$f":"[1]Infrastructure!H1713","v":0},{"$f":"[1]Infrastructure!I1713","v":0},{"$f":"[1]Infrastructure!J1713","v":0},{"$f":"[1]Infrastructure!K1713","v":0},{"$f":"[1]Infrastructure!L1713","v":0},{"$f":"[1]Infrastructure!M1713","v":0},{"$f":"[1]Infrastructure!N1713","v":0},{"$f":"[1]Infrastructure!O1713","v":0},{"$f":"[1]Infrastructure!Q1713","v":0},{"$f":"[1]Infrastructure!R1713","v":0},{"$f":"[1]Infrastructure!T1713","v":0},{"$f":"[1]Infrastructure!W1713","v":0},{"$f":"[1]Infrastructure!W1713","v":0},0,{"$f":"[1]Infrastructure!Z1713","v":0},{"$f":"[1]Infrastructure!Z1713","v":0},0,{"$f":"[1]Infrastructure!AB1713","v":0},{"$f":"[1]Infrastructure!AB1713","v":0},0,{"$f":"[1]Infrastructure!AC1713","v":0},{"$f":"[1]Infrastructure!AD1713","v":0},{"$f":"[1]Infrastructure!AE1713","v":0},{"$f":"[1]Infrastructure!AF1713","v":0},{"$f":"[1]Infrastructure!AG1713","v":0},{"$f":"[1]Infrastructure!AH1713","v":0},0]
[0,null,null,null,null,null,{"$f":"[1]Infrastructure!G1714","v":0},{"$f":"[1]Infrastructure!H1714","v":0},{"$f":"[1]Infrastructure!I1714","v":0},{"$f":"[1]Infrastructure!J1714","v":0},{"$f":"[1]Infrastructure!K1714","v":0},{"$f":"[1]Infrastructure!L1714","v":0},{"$f":"[1]Infrastructure!M1714","v":0},{"$f":"[1]Infrastructure!N1714","v":0},{"$f":"[1]Infrastructure!O1714","v":0},{"$f":"[1]Infrastructure!Q1714","v":0},{"$f":"[1]Infrastructure!R1714","v":0},{"$f":"[1]Infrastructure!T1714","v":0},{"$f":"[1]Infrastructure!W1714","v":0},{"$f":"[1]Infrastructure!W1714","v":0},0,{"$f":"[1]Infrastructure!Z1714","v":0},{"$f":"[1]Infrastructure!Z1714","v":0},0,{"$f":"[1]Infrastructure!AB1714","v":0},{"$f":"[1]Infrastructure!AB1714","v":0},0,{"$f":"[1]Infrastructure!AC1714","v":0},{"$f":"[1]Infrastructure!AD1714","v":0},{"$f":"[1]Infrastructure!AE1714","v":0},{"$f":"[1]Infrastructure!AF1714","v":0},{"$f":"[1]Infrastructure!AG1714","v":0},{"$f":"[1]Infrastructure!AH1714","v":0},0]
[0,null,null,null,null,null,{"$f":"[1]Infrastructure!G1715","v":0},{"$f":"[1]Infrastructure!H1715","v":0},{"$f":"[1]Infrastructure!I1715","v":0},{"$f":"[1]Infrastructure!J1715","v":0},{"$f":"[1]Infrastructure!K1715","v":0},{"$f":"[1]Infrastructure!L1715","v":0},{"$f":"[1]Infrastructure!M1715","v":0},{"$f":"[1]Infrastructure!N1715","v":0},{"$f":"[1]Infrastructure!O1715","v":0},{"$f":"[1]Infrastructure!Q1715","v":0},{"$f":"[1]Infrastructure!R1715","v":0},{"$f":"[1]Infrastructure!T1715","v":0},{"$f":"[1]Infrastructure!W1715","v":0},{"$f":"[1]Infrastructure!W1715","v":0},0,{"$f":"[1]Infrastructure!Z1715","v":0},{"$f":"[1]Infrastructure!Z1715","v":0},0,{"$f":"[1]Infrastructure!AB1715","v":0},{"$f":"[1]Infrastructure!AB1715","v":0},0,{"$f":"[1]Infrastructure!AC1715","v":0},{"$f":"[1]Infrastructure!AD1715","v":0},{"$f":"[1]Infrastructure!AE1715","v":0},{"$f":"[1]Infrastructure!AF1715","v":0},{"$f":"[1]Infrastructure!AG1715","v":0},{"$f":"[1]Infrastructure!AH1715","v":0},0]
[0,null,null,null,null,null,{"$f":"[1]Infrastructure!G1716","v":0},{"$f":"[1]Infrastructure!H1716","v":0},{"$f":"[1]Infrastructure!I1716","v":0},{"$f":"[1]Infrastructure!J1716","v":0},{"$f":"[1]Infrastructure!K1716","v":0},{"$f":"[1]Infrastructure!L1716","v":0},{"$f":"[1]Infrastructure!M1716","v":0},{"$f":"[1]Infrastructure!N1716","v":0},{"$f":"[1]Infrastructure!O1716","v":0},{"$f":"[1]Infrastructure!Q1716","v":0},{"$f":"[1]Infrastructure!R1716","v":0},{"$f":"[1]Infrastructure!T1716","v":0},{"$f":"[1]Infrastructure!W1716","v":0},{"$f":"[1]Infrastructure!W1716","v":0},0,{"$f":"[1]Infrastructure!Z1716","v":0},{"$f":"[1]Infrastructure!Z1716","v":0},0,{"$f":"[1]Infrastructure!AB1716","v":0},{"$f":"[1]Infrastructure!AB1716","v":0},0,{"$f":"[1]Infrastructure!AC1716","v":0},{"$f":"[1]Infrastructure!AD1716","v":0},{"$f":"[1]Infrastructure!AE1716","v":0},{"$f":"[1]Infrastructure!AF1716","v":0},{"$f":"[1]Infrastructure!AG1716","v":0},{"$f":"[1]Infrastructure!AH1716","v":0},0]
[0,null,null,null,null,null,{"$f":"[1]Infrastructure!G1717","v":0},{"$f":"[1]Infrastructure!H1717","v":0},{"$f":"[1]Infrastructure!I1717","v":0},{"$f":"[1]Infrastructure!J1717","v":0},{"$f":"[1]Infrastructure!K1717","v":0},{"$f":"[1]Infrastructure!L1717","v":0},{"$f":"[1]Infrastructure!M1717","v":0},{"$f":"[1]Infrastructure!N1717","v":0},{"$f":"[1]Infrastructure!O1717","v":0},{"$f":"[1]Infrastructure!Q1717","v":0},{"$f":"[1]Infrastructure!R1717","v":0},{"$f":"[1]Infrastructure!T1717","v":0},{"$f":"[1]Infrastructure!W1717","v":0},{"$f":"[1]Infrastructure!W1717","v":0},0,{"$f":"[1]Infrastructure!Z1717","v":0},{"$f":"[1]Infrastructure!Z1717","v":0},0,{"$f":"[1]Infrastructure!AB1717","v":0},{"$f":"[1]Infrastructure!AB1717","v":0},0,{"$f":"[1]Infrastructure!AC1717","v":0},{"$f":"[1]Infrastructure!AD1717","v":0},{"$f":"[1]Infrastructure!AE1717","v":0},{"$f":"[1]Infrastructure!AF1717","v":0},{"$f":"[1]Infrastructure!AG1717","v":0},{"$f":"[1]Infrastructure!AH1717","v":0},0]
[0,null,null,null,null,null,{"$f":"[1]Infrastructure!G1718","v":0},{"$f":"[1]Infrastructure!H1718","v":0},{"$f":"[1]Infrastructure!I1718","v":0},{"$f":"[1]Infrastructure!J1718","v":0},{"$f":"[1]Infrastructure!K1718","v":0},{"$f":"[1]Infrastructure!L1718","v":0},{"$f":"[1]Infrastructure!M1718","v":0},{"$f":"[1]Infrastructure!N1718","v":0},{"$f":"[1]Infrastructure!O1718","v":0},{"$f":"[1]Infrastructure!Q1718","v":0},{"$f":"[1]Infrastructure!R1718","v":0},{"$f":"[1]Infrastructure!T1718","v":0},{"$f":"[1]Infrastructure!W1718","v":0},{"$f":"[1]Infrastructure!W1718","v":0},0,{"$f":"[1]Infrastructure!Z1718","v":0},{"$f":"[1]Infrastructure!Z1718","v":0},0,{"$f":"[1]Infrastructure!AB1718","v":0},{"$f":"[1]Infrastructure!AB1718","v":0},0,{"$f":"[1]Infrastructure!AC1718","v":0},{"$f":"[1]Infrastructure!AD1718","v":0},{"$f":"[1]Infrastructure!AE1718","v":0},{"$f":"[1]Infrastructure!AF1718","v":0},{"$f":"[1]Infrastructure!AG1718","v":0},{"$f":"[1]Infrastructure!AH1718","v":0},0]
[0,null,null,null,null,null,{"$f":"[1]Infrastructure!G1719","v":0},{"$f":"[1]Infrastructure!H1719","v":0},{"$f":"[1]Infrastructure!I1719","v":0},{"$f":"[1]Infrastructure!J1719","v":0},{"$f":"[1]Infrastructure!K1719","v":0},{"$f":"[1]Infrastructure!L1719","v":0},{"$f":"[1]Infrastructure!M1719","v":0},{"$f":"[1]Infrastructure!N1719","v":0},{"$f":"[1]Infrastructure!O1719","v":0},{"$f":"[1]Infrastructure!Q1719","v":0},{"$f":"[1]Infrastructure!R1719","v":0},{"$f":"[1]Infrastructure!T1719","v":0},{"$f":"[1]Infrastructure!W1719","v":0},{"$f":"[1]Infrastructure!W1719","v":0},0,{"$f":"[1]Infrastructure!Z1719","v":0},{"$f":"[1]Infrastructure!Z1719","v":0},0,{"$f":"[1]Infrastructure!AB1719","v":0},{"$f":"[1]Infrastructure!AB1719","v":0},0,{"$f":"[1]Infrastructure!AC1719","v":0},{"$f":"[1]Infrastructure!AD1719","v":0},{"$f":"[1]Infrastructure!AE1719","v":0},{"$f":"[1]Infrastructure!AF1719","v":0},{"$f":"[1]Infrastructure!AG1719","v":0},{"$f":"[1]Infrastructure!AH1719","v":0},0]
[0,null,null,null,null,null,{"$f":"[1]Infrastructure!G1720","v":0},{"$f":"[1]Infrastructure!H1720","v":0},{"$f":"[1]Infrastructure!I1720","v":0},{"$f":"[1]Infrastructure!J1720","v":0},{"$f":"[1]Infrastructure!K1720","v":0},{"$f":"[1]Infrastructure!L1720","v":0},{"$f":"[1]Infrastructure!M1720","v":0},{"$f":"[1]Infrastructure!N1720","v":0},{"$f":"[1]Infrastructure!O1720","v":0},{"$f":"[1]Infrastructure!Q1720","v":0},{"$f":"[1]Infrastructure!R1720","v":0},{"$f":"[1]Infrastructure!T1720","v":0},{"$f":"[1]Infrastructure!W1720","v":0},{"$f":"[1]Infrastructure!W1720","v":0},0,{"$f":"[1]Infrastructure!Z1720","v":0},{"$f":"[1]Infrastructure!Z1720","v":0},0,{"$f":"[1]Infrastructure!AB1720","v":0},{"$f":"[1]Infrastructure!AB1720","v":0},0,{"$f":"[1]Infrastructure!AC1720","v":0},{"$f":"[1]Infrastructure!AD1720","v":0},{"$f":"[1]Infrastructure!AE1720","v":0},{"$f":"[1]Infrastructure!AF1720","v":0},{"$f":"[1]Infrastructure!AG1720","v":0},{"$f":"[1]Infrastructure!AH1720","v":0},0]
[0,null,null,null,null,null,{"$f":"[1]Infrastructure!G1721","v":0},{"$f":"[1]Infrastructure!H1721","v":0},{"$f":"[1]Infrastructure!I1721","v":0},{"$f":"[1]Infrastructure!J1721","v":0},{"$f":"[1]Infrastructure!K1721","v":0},{"$f":"[1]Infrastructure!L1721","v":0},{"$f":"[1]Infrastructure!M1721","v":0},{"$f":"[1]Infrastructure!N1721","v":0},{"$f":"[1]Infrastructure!O1721","v":0},{"$f":"[1]Infrastructure!Q1721","v":0},{"$f":"[1]Infrastructure!R1721","v":0},{"$f":"[1]Infrastructure!T1721","v":0},{"$f":"[1]Infrastructure!W1721","v":0},{"$f":"[1]Infrastructure!W1721","v":0},0,{"$f":"[1]Infrastructure!Z1721","v":0},{"$f":"[1]Infrastructure!Z1721","v":0},0,{"$f":"[1]Infrastructure!AB1721","v":0},{"$f":"[1]Infrastructure!AB1721","v":0},0,{"$f":"[1]Infrastructure!AC1721","v":0},{"$f":"[1]Infrastructure!AD1721","v":0},{"$f":"[1]Infrastructure!AE1721","v":0},{"$f":"[1]Infrastructure!AF1721","v":0},{"$f":"[1]Infrastructure!AG1721","v":0},{"$f":"[1]Infrastructure!AH1721","v":0},0]
[0,null,null,null,null,null,{"$f":"[1]Infrastructure!G1722","v":0},{"$f":"[1]Infrastructure!H1722","v":0},{"$f":"[1]Infrastructure!I1722","v":0},{"$f":"[1]Infrastructure!J1722","v":0},{"$f":"[1]Infrastructure!K1722","v":0},{"$f":"[1]Infrastructure!L1722","v":0},{"$f":"[1]Infrastructure!M1722","v":0},{"$f":"[1]Infrastructure!N1722","v":0},{"$f":"[1]Infrastructure!O1722","v":0},{"$f":"[1]Infrastructure!Q1722","v":0},{"$f":"[1]Infrastructure!R1722","v":0},{"$f":"[1]Infrastructure!T1722","v":0},{"$f":"[1]Infrastructure!W1722","v":0},{"$f":"[1]Infrastructure!W1722","v":0},0,{"$f":"[1]Infrastructure!Z1722","v":0},{"$f":"[1]Infrastructure!Z1722","v":0},0,{"$f":"[1]Infrastructure!AB1722","v":0},{"$f":"[1]Infrastructure!AB1722","v":0},0,{"$f":"[1]Infrastructure!AC1722","v":0},{"$f":"[1]Infrastructure!AD1722","v":0},{"$f":"[1]Infrastructure!AE1722","v":0},{"$f":"[1]Infrastructure!AF1722","v":0},{"$f":"[1]Infrastructure!AG1722","v":0},{"$f":"[1]Infrastructure!AH1722","v":0},0]
[0,null,null,null,null,null,{"$f":"[1]Infrastructure!G1723","v":0},{"$f":"[1]Infrastructure!H1723","v":0},{"$f":"[1]Infrastructure!I1723","v":0},{"$f":"[1]Infrastructure!J1723","v":0},{"$f":"[1]Infrastructure!K1723","v":0},{"$f":"[1]Infrastructure!L1723","v":0},{"$f":"[1]Infrastructure!M1723","v":0},{"$f":"[1]Infrastructure!N1723","v":0},{"$f":"[1]Infrastructure!O1723","v":0},{"$f":"[1]Infrastructure!Q1723","v":0},{"$f":"[1]Infrastructure!R1723","v":0},{"$f":"[1]Infrastructure!T1723","v":0},{"$f":"[1]Infrastructure!W1723","v":0},{"$f":"[1]Infrastructure!W1723","v":0},0,{"$f":"[1]Infrastructure!Z1723","v":0},{"$f":"[1]Infrastructure!Z1723","v":0},0,{"$f":"[1]Infrastructure!AB1723","v":0},{"$f":"[1]Infrastructure!AB1723","v":0},0,{"$f":"[1]Infrastructure!AC1723","v":0},{"$f":"[1]Infrastructure!AD1723","v":0},{"$f":"[1]Infrastructure!AE1723","v":0},{"$f":"[1]Infrastructure!AF1723","v":0},{"$f":"[1]Infrastructure!AG1723","v":0},{"$f":"[1]Infrastructure!AH1723","v":0},0]
[0,null,null,null,null,null,{"$f":"[1]Infrastructure!G1724","v":0},{"$f":"[1]Infrastructure!H1724","v":0},{"$f":"[1]Infrastructure!I1724","v":0},{"$f":"[1]Infrastructure!J1724","v":0},{"$f":"[1]Infrastructure!K1724","v":0},{"$f":"[1]Infrastructure!L1724","v":0},{"$f":"[1]Infrastructure!M1724","v":0},{"$f":"[1]Infrastructure!N1724","v":0},{"$f":"[1]Infrastructure!O1724","v":0},{"$f":"[1]Infrastructure!Q1724","v":0},{"$f":"[1]Infrastructure!R1724","v":0},{"$f":"[1]Infrastructure!T1724","v":0},{"$f":"[1]Infrastructure!W1724","v":0},{"$f":"[1]Infrastructure!W1724","v":0},0,{"$f":"[1]Infrastructure!Z1724","v":0},{"$f":"[1]Infrastructure!Z1724","v":0},0,{"$f":"[1]Infrastructure!AB1724","v":0},{"$f":"[1]Infrastructure!AB1724","v":0},0,{"$f":"[1]Infrastructure!AC1724","v":0},{"$f":"[1]Infrastructure!AD1724","v":0},{"$f":"[1]Infrastructure!AE1724","v":0},{"$f":"[1]Infrastructure!AF1724","v":0},{"$f":"[1]Infrastructure!AG1724","v":0},{"$f":"[1]Infrastructure!AH1724","v":0},0]
[0,null,null,null,null,null,{"$f":"[1]Infrastructure!G1725","v":0},{"$f":"[1]Infrastructure!H1725","v":0},{"$f":"[1]Infrastructure!I1725","v":0},{"$f":"[1]Infrastructure!J1725","v":0},{"$f":"[1]Infrastructure!K1725","v":0},{"$f":"[1]Infrastructure!L1725","v":0},{"$f":"[1]Infrastructure!M1725","v":0},{"$f":"[1]Infrastructure!N1725","v":0},{"$f":"[1]Infrastructure!O1725","v":0},{"$f":"[1]Infrastructure!Q1725","v":0},{"$f":"[1]Infrastructure!R1725","v":0},{"$f":"[1]Infrastructure!T1725","v":0},{"$f":"[1]Infrastructure!W1725","v":0},{"$f":"[1]Infrastructure!W1725","v":0},0,{"$f":"[1]Infrastructure!Z1725","v":0},{"$f":"[1]Infrastructure!Z1725","v":0},0,{"$f":"[1]Infrastructure!AB1725","v":0},{"$f":"[1]Infrastructure!AB1725","v":0},0,{"$f":"[1]Infrastructure!AC1725","v":0},{"$f":"[1]Infrastructure!AD1725","v":0},{"$f":"[1]Infrastructure!AE1725","v":0},{"$f":"[1]Infrastructure!AF1725","v":0},{"$f":"[1]Infrastructure!AG1725","v":0},{"$f":"[1]Infrastructure!AH1725","v":0},0]
[0,null,null,null,null,null,{"$f":"[1]Infrastructure!G1726","v":0},{"$f":"[1]Infrastructure!H1726","v":0},{"$f":"[1]Infrastructure!I1726","v":0},{"$f":"[1]Infrastructure!J1726","v":0},{"$f":"[1]Infrastructure!K1726","v":0},{"$f":"[1]Infrastructure!L1726","v":0},{"$f":"[1]Infrastructure!M1726","v":0},{"$f":"[1]Infrastructure!N1726","v":0},{"$f":"[1]Infrastructure!O1726","v":0},{"$f":"[1]Infrastructure!Q1726","v":0},{"$f":"[1]Infrastructure!R1726","v":0},{"$f":"[1]Infrastructure!T1726","v":0},{"$f":"[1]Infrastructure!W1726","v":0},{"$f":"[1]Infrastructure!W1726","v":0},0,{"$f":"[1]Infrastructure!Z1726","v":0},{"$f":"[1]Infrastructure!Z1726","v":0},0,{"$f":"[1]Infrastructure!AB1726","v":0},{"$f":"[1]Infrastructure!AB1726","v":0},0,{"$f":"[1]Infrastructure!AC1726","v":0},{"$f":"[1]Infrastructure!AD1726","v":0},{"$f":"[1]Infrastructure!AE1726","v":0},{"$f":"[1]Infrastructure!AF1726","v":0},{"$f":"[1]Infrastructure!AG1726","v":0},{"$f":"[1]Infrastructure!AH1726","v":0},0]
[0,null,null,null,null,null,{"$f":"[1]Infrastructure!G1727","v":0},{"$f":"[1]Infrastructure!H1727","v":0},{"$f":"[1]Infrastructure!I1727","v":0},{"$f":"[1]Infrastructure!J1727","v":0},{"$f":"[1]Infrastructure!K1727","v":0},{"$f":"[1]Infrastructure!L1727","v":0},{"$f":"[1]Infrastructure!M1727","v":0},{"$f":"[1]Infrastructure!N1727","v":0},{"$f":"[1]Infrastructure!O1727","v":0},{"$f":"[1]Infrastructure!Q1727","v":0},{"$f":"[1]Infrastructure!R1727","v":0},{"$f":"[1]Infrastructure!T1727","v":0},{"$f":"[1]Infrastructure!W1727","v":0},{"$f":"[1]Infrastructure!W1727","v":0},0,{"$f":"[1]Infrastructure!Z1727","v":0},{"$f":"[1]Infrastructure!Z1727","v":0},0,{"$f":"[1]Infrastructure!AB1727","v":0},{"$f":"[1]Infrastructure!AB1727","v":0},0,{"$f":"[1]Infrastructure!AC1727","v":0},{"$f":"[1]Infrastructure!AD1727","v":0},{"$f":"[1]Infrastructure!AE1727","v":0},{"$f":"[1]Infrastructure!AF1727","v":0},{"$f":"[1]Infrastructure!AG1727","v":0},{"$f":"[1]Infrastructure!AH1727","v":0},0]
[0,null,null,null,null,null,{"$f":"[1]Infrastructure!G1728","v":0},{"$f":"[1]Infrastructure!H1728","v":0},{"$f":"[1]Infrastructure!I1728","v":0},{"$f":"[1]Infrastructure!J1728","v":0},{"$f":"[1]Infrastructure!K1728","v":0},{"$f":"[1]Infrastructure!L1728","v":0},{"$f":"[1]Infrastructure!M1728","v":0},{"$f":"[1]Infrastructure!N1728","v":0},{"$f":"[1]Infrastructure!O1728","v":0},{"$f":"[1]Infrastructure!Q1728","v":0},{"$f":"[1]Infrastructure!R1728","v":0},{"$f":"[1]Infrastructure!T1728","v":0},{"$f":"[1]Infrastructure!W1728","v":0},{"$f":"[1]Infrastructure!W1728","v":0},0,{"$f":"[1]Infrastructure!Z1728","v":0},{"$f":"[1]Infrastructure!Z1728","v":0},0,{"$f":"[1]Infrastructure!AB1728","v":0},{"$f":"[1]Infrastructure!AB1728","v":0},0,{"$f":"[1]Infrastructure!AC1728","v":0},{"$f":"[1]Infrastructure!AD1728","v":0},{"$f":"[1]Infrastructure!AE1728","v":0},{"$f":"[1]Infrastructure!AF1728","v":0},{"$f":"[1]Infrastructure!AG1728","v":0},{"$f":"[1]Infrastructure!AH1728","v":0},0]
[0,null,null,null,null,null,{"$f":"[1]Infrastructure!G1729","v":0},{"$f":"[1]Infrastructure!H1729","v":0},{"$f":"[1]Infrastructure!I1729","v":0},{"$f":"[1]Infrastructure!J1729","v":0},{"$f":"[1]Infrastructure!K1729","v":0},{"$f":"[1]Infrastructure!L1729","v":0},{"$f":"[1]Infrastructure!M1729","v":0},{"$f":"[1]Infrastructure!N1729","v":0},{"$f":"[1]Infrastructure!O1729","v":0},{"$f":"[1]Infrastructure!Q1729","v":0},{"$f":"[1]Infrastructure!R1729","v":0},{"$f":"[1]Infrastructure!T1729","v":0},{"$f":"[1]Infrastructure!W1729","v":0},{"$f":"[1]Infrastructure!W1729","v":0},0,{"$f":"[1]Infrastructure!Z1729","v":0},{"$f":"[1]Infrastructure!Z1729","v":0},0,{"$f":"[1]Infrastructure!AB1729","v":0},{"$f":"[1]Infrastructure!AB1729","v":0},0,{"$f":"[1]Infrastructure!AC1729","v":0},{"$f":"[1]Infrastructure!AD1729","v":0},{"$f":"[1]Infrastructure!AE1729","v":0},{"$f":"[1]Infrastructure!AF1729","v":0},{"$f":"[1]Infrastructure!AG1729","v":0},{"$f":"[1]Infrastructure!AH1729","v":0},0]
[0,null,null,null,null,null,{"$f":"[1]Infrastructure!G1730","v":0},{"$f":"[1]Infrastructure!H1730","v":0},{"$f":"[1]Infrastructure!I1730","v":0},{"$f":"[1]Infrastructure!J1730","v":0},{"$f":"[1]Infrastructure!K1730","v":0},{"$f":"[1]Infrastructure!L1730","v":0},{"$f":"[1]Infrastructure!M1730","v":0},{"$f":"[1]Infrastructure!N1730","v":0},{"$f":"[1]Infrastructure!O1730","v":0},{"$f":"[1]Infrastructure!Q1730","v":0},{"$f":"[1]Infrastructure!R1730","v":0},{"$f":"[1]Infrastructure!T1730","v":0},{"$f":"[1]Infrastructure!W1730","v":0},{"$f":"[1]Infrastructure!W1730","v":0},0,{"$f":"[1]Infrastructure!Z1730","v":0},{"$f":"[1]Infrastructure!Z1730","v":0},0,{"$f":"[1]Infrastructure!AB1730","v":0},{"$f":"[1]Infrastructure!AB1730","v":0},0,{"$f":"[1]Infrastructure!AC1730","v":0},{"$f":"[1]Infrastructure!AD1730","v":0},{"$f":"[1]Infrastructure!AE1730","v":0},{"$f":"[1]Infrastructure!AF1730","v":0},{"$f":"[1]Infrastructure!AG1730","v":0},{"$f":"[1]Infrastructure!AH1730","v":0},0]
[0,null,null,null,null,null,{"$f":"[1]Infrastructure!G1731","v":0},{"$f":"[1]Infrastructure!H1731","v":0},{"$f":"[1]Infrastructure!I1731","v":0},{"$f":"[1]Infrastructure!J1731","v":0},{"$f":"[1]Infrastructure!K1731","v":0},{"$f":"[1]Infrastructure!L1731","v":0},{"$f":"[1]Infrastructure!M1731","v":0},{"$f":"[1]Infrastructure!N1731","v":0},{"$f":"[1]Infrastructure!O1731","v":0},{"$f":"[1]Infrastructure!Q1731","v":0},{"$f":"[1]Infrastructure!R1731","v":0},{"$f":"[1]Infrastructure!T1731","v":0},{"$f":"[1]Infrastructure!W1731","v":0},{"$f":"[1]Infrastructure!W1731","v":0},0,{"$f":"[1]Infrastructure!Z1731","v":0},{"$f":"[1]Infrastructure!Z1731","v":0},0,{"$f":"[1]Infrastructure!AB1731","v":0},{"$f":"[1]Infrastructure!AB1731","v":0},0,{"$f":"[1]Infrastructure!AC1731","v":0},{"$f":"[1]Infrastructure!AD1731","v":0},{"$f":"[1]Infrastructure!AE1731","v":0},{"$f":"[1]Infrastructure!AF1731","v":0},{"$f":"[1]Infrastructure!AG1731","v":0},{"$f":"[1]Infrastructure!AH1731","v":0},0]
[0,null,null,null,null,null,{"$f":"[1]Infrastructure!G1732","v":0},{"$f":"[1]Infrastructure!H1732","v":0},{"$f":"[1]Infrastructure!I1732","v":0},{"$f":"[1]Infrastructure!J1732","v":0},{"$f":"[1]Infrastructure!K1732","v":0},{"$f":"[1]Infrastructure!L1732","v":0},{"$f":"[1]Infrastructure!M1732","v":0},{"$f":"[1]Infrastructure!N1732","v":0},{"$f":"[1]Infrastructure!O1732","v":0},{"$f":"[1]Infrastructure!Q1732","v":0},{"$f":"[1]Infrastructure!R1732","v":0},{"$f":"[1]Infrastructure!T1732","v":0},{"$f":"[1]Infrastructure!W1732","v":0},{"$f":"[1]Infrastructure!W1732","v":0},0,{"$f":"[1]Infrastructure!Z1732","v":0},{"$f":"[1]Infrastructure!Z1732","v":0},0,{"$f":"[1]Infrastructure!AB1732","v":0},{"$f":"[1]Infrastructure!AB1732","v":0},0,{"$f":"[1]Infrastructure!AC1732","v":0},{"$f":"[1]Infrastructure!AD1732","v":0},{"$f":"[1]Infrastructure!AE1732","v":0},{"$f":"[1]Infrastructure!AF1732","v":0},{"$f":"[1]Infrastructure!AG1732","v":0},{"$f":"[1]Infrastructure!AH1732","v":0},0]
[0,null,null,null,null,null,{"$f":"[1]Infrastructure!G1733","v":0},{"$f":"[1]Infrastructure!H1733","v":0},{"$f":"[1]Infrastructure!I1733","v":0},{"$f":"[1]Infrastructure!J1733","v":0},{"$f":"[1]Infrastructure!K1733","v":0},{"$f":"[1]Infrastructure!L1733","v":0},{"$f":"[1]Infrastructure!M1733","v":0},{"$f":"[1]Infrastructure!N1733","v":0},{"$f":"[1]Infrastructure!O1733","v":0},{"$f":"[1]Infrastructure!Q1733","v":0},{"$f":"[1]Infrastructure!R1733","v":0},{"$f":"[1]Infrastructure!T1733","v":0},{"$f":"[1]Infrastructure!W1733","v":0},{"$f":"[1]Infrastructure!W1733","v":0},0,{"$f":"[1]Infrastructure!Z1733","v":0},{"$f":"[1]Infrastructure!Z1733","v":0},0,{"$f":"[1]Infrastructure!AB1733","v":0},{"$f":"[1]Infrastructure!AB1733","v":0},0,{"$f":"[1]Infrastructure!AC1733","v":0},{"$f":"[1]Infrastructure!AD1733","v":0},{"$f":"[1]Infrastructure!AE1733","v":0},{"$f":"[1]Infrastructure!AF1733","v":0},{"$f":"[1]Infrastructure!AG1733","v":0},{"$f":"[1]Infrastructure!AH1733","v":0},0]
[0,null,null,null,null,null,{"$f":"[1]Infrastructure!G1734","v":0},{"$f":"[1]Infrastructure!H1734","v":0},{"$f":"[1]Infrastructure!I1734","v":0},{"$f":"[1]Infrastructure!J1734","v":0},{"$f":"[1]Infrastructure!K1734","v":0},{"$f":"[1]Infrastructure!L1734","v":0},{"$f":"[1]Infrastructure!M1734","v":0},{"$f":"[1]Infrastructure!N1734","v":0},{"$f":"[1]Infrastructure!O1734","v":0},{"$f":"[1]Infrastructure!Q1734","v":0},{"$f":"[1]Infrastructure!R1734","v":0},{"$f":"[1]Infrastructure!T1734","v":0},{"$f":"[1]Infrastructure!W1734","v":0},{"$f":"[1]Infrastructure!W1734","v":0},0,{"$f":"[1]Infrastructure!Z1734","v":0},{"$f":"[1]Infrastructure!Z1734","v":0},0,{"$f":"[1]Infrastructure!AB1734","v":0},{"$f":"[1]Infrastructure!AB1734","v":0},0,{"$f":"[1]Infrastructure!AC1734","v":0},{"$f":"[1]Infrastructure!AD1734","v":0},{"$f":"[1]Infrastructure!AE1734","v":0},{"$f":"[1]Infrastructure!AF1734","v":0},{"$f":"[1]Infrastructure!AG1734","v":0},{"$f":"[1]Infrastructure!AH1734","v":0},0]
[0,null,null,null,null,null,{"$f":"[1]Infrastructure!G1735","v":0},{"$f":"[1]Infrastructure!H1735","v":0},{"$f":"[1]Infrastructure!I1735","v":0},{"$f":"[1]Infrastructure!J1735","v":0},{"$f":"[1]Infrastructure!K1735","v":0},{"$f":"[1]Infrastructure!L1735","v":0},{"$f":"[1]Infrastructure!M1735","v":0},{"$f":"[1]Infrastructure!N1735","v":0},{"$f":"[1]Infrastructure!O1735","v":0},{"$f":"[1]Infrastructure!Q1735","v":0},{"$f":"[1]Infrastructure!R1735","v":0},{"$f":"[1]Infrastructure!T1735","v":0},{"$f":"[1]Infrastructure!W1735","v":0},{"$f":"[1]Infrastructure!W1735","v":0},0,{"$f":"[1]Infrastructure!Z1735","v":0},{"$f":"[1]Infrastructure!Z1735","v":0},0,{"$f":"[1]Infrastructure!AB1735","v":0},{"$f":"[1]Infrastructure!AB1735","v":0},0,{"$f":"[1]Infrastructure!AC1735","v":0},{"$f":"[1]Infrastructure!AD1735","v":0},{"$f":"[1]Infrastructure!AE1735","v":0},{"$f":"[1]Infrastructure!AF1735","v":0},{"$f":"[1]Infrastructure!AG1735","v":0},{"$f":"[1]Infrastructure!AH1735","v":0},0]
[0,null,null,null,null,null,{"$f":"[1]Infrastructure!G1736","v":0},{"$f":"[1]Infrastructure!H1736","v":0},{"$f":"[1]Infrastructure!I1736","v":0},{"$f":"[1]Infrastructure!J1736","v":0},{"$f":"[1]Infrastructure!K1736","v":0},{"$f":"[1]Infrastructure!L1736","v":0},{"$f":"[1]Infrastructure!M1736","v":0},{"$f":"[1]Infrastructure!N1736","v":0},{"$f":"[1]Infrastructure!O1736","v":0},{"$f":"[1]Infrastructure!Q1736","v":0},{"$f":"[1]Infrastructure!R1736","v":0},{"$f":"[1]Infrastructure!T1736","v":0},{"$f":"[1]Infrastructure!W1736","v":0},{"$f":"[1]Infrastructure!W1736","v":0},0,{"$f":"[1]Infrastructure!Z1736","v":0},{"$f":"[1]Infrastructure!Z1736","v":0},0,{"$f":"[1]Infrastructure!AB1736","v":0},{"$f":"[1]Infrastructure!AB1736","v":0},0,{"$f":"[1]Infrastructure!AC1736","v":0},{"$f":"[1]Infrastructure!AD1736","v":0},{"$f":"[1]Infrastructure!AE1736","v":0},{"$f":"[1]Infrastructure!AF1736","v":0},{"$f":"[1]Infrastructure!AG1736","v":0},{"$f":"[1]Infrastructure!AH1736","v":0},0]
[0,null,null,null,null,null,{"$f":"[1]Infrastructure!G1737","v":0},{"$f":"[1]Infrastructure!H1737","v":0},{"$f":"[1]Infrastructure!I1737","v":0},{"$f":"[1]Infrastructure!J1737","v":0},{"$f":"[1]Infrastructure!K1737","v":0},{"$f":"[1]Infrastructure!L1737","v":0},{"$f":"[1]Infrastructure!M1737","v":0},{"$f":"[1]Infrastructure!N1737","v":0},{"$f":"[1]Infrastructure!O1737","v":0},{"$f":"[1]Infrastructure!Q1737","v":0},{"$f":"[1]Infrastructure!R1737","v":0},{"$f":"[1]Infrastructure!T1737","v":0},{"$f":"[1]Infrastructure!W1737","v":0},{"$f":"[1]Infrastructure!W1737","v":0},0,{"$f":"[1]Infrastructure!Z1737","v":0},{"$f":"[1]Infrastructure!Z1737","v":0},0,{"$f":"[1]Infrastructure!AB1737","v":0},{"$f":"[1]Infrastructure!AB1737","v":0},0,{"$f":"[1]Infrastructure!AC1737","v":0},{"$f":"[1]Infrastructure!AD1737","v":0},{"$f":"[1]Infrastructure!AE1737","v":0},{"$f":"[1]Infrastructure!AF1737","v":0},{"$f":"[1]Infrastructure!AG1737","v":0},{"$f":"[1]Infrastructure!AH1737","v":0},0]
[0,null,null,null,null,null,{"$f":"[1]Infrastructure!G1738","v":0},{"$f":"[1]Infrastructure!H1738","v":0},{"$f":"[1]Infrastructure!I1738","v":0},{"$f":"[1]Infrastructure!J1738","v":0},{"$f":"[1]Infrastructure!K1738","v":0},{"$f":"[1]Infrastructure!L1738","v":0},{"$f":"[1]Infrastructure!M1738","v":0},{"$f":"[1]Infrastructure!N1738","v":0},{"$f":"[1]Infrastructure!O1738","v":0},{"$f":"[1]Infrastructure!Q1738","v":0},{"$f":"[1]Infrastructure!R1738","v":0},{"$f":"[1]Infrastructure!T1738","v":0},{"$f":"[1]Infrastructure!W1738","v":0},{"$f":"[1]Infrastructure!W1738","v":0},0,{"$f":"[1]Infrastructure!Z1738","v":0},{"$f":"[1]Infrastructure!Z1738","v":0},0,{"$f":"[1]Infrastructure!AB1738","v":0},{"$f":"[1]Infrastructure!AB1738","v":0},0,{"$f":"[1]Infrastructure!AC1738","v":0},{"$f":"[1]Infrastructure!AD1738","v":0},{"$f":"[1]Infrastructure!AE1738","v":0},{"$f":"[1]Infrastructure!AF1738","v":0},{"$f":"[1]Infrastructure!AG1738","v":0},{"$f":"[1]Infrastructure!AH1738","v":0},0]
[0,null,null,null,null,null,{"$f":"[1]Infrastructure!G1739","v":0},{"$f":"[1]Infrastructure!H1739","v":0},{"$f":"[1]Infrastructure!I1739","v":0},{"$f":"[1]Infrastructure!J1739","v":0},{"$f":"[1]Infrastructure!K1739","v":0},{"$f":"[1]Infrastructure!L1739","v":0},{"$f":"[1]Infrastructure!M1739","v":0},{"$f":"[1]Infrastructure!N1739","v":0},{"$f":"[1]Infrastructure!O1739","v":0},{"$f":"[1]Infrastructure!Q1739","v":0},{"$f":"[1]Infrastructure!R1739","v":0},{"$f":"[1]Infrastructure!T1739","v":0},{"$f":"[1]Infrastructure!W1739","v":0},{"$f":"[1]Infrastructure!W1739","v":0},0,{"$f":"[1]Infrastructure!Z1739","v":0},{"$f":"[1]Infrastructure!Z1739","v":0},0,{"$f":"[1]Infrastructure!AB1739","v":0},{"$f":"[1]Infrastructure!AB1739","v":0},0,{"$f":"[1]Infrastructure!AC1739","v":0},{"$f":"[1]Infrastructure!AD1739","v":0},{"$f":"[1]Infrastructure!AE1739","v":0},{"$f":"[1]Infrastructure!AF1739","v":0},{"$f":"[1]Infrastructure!AG1739","v":0},{"$f":"[1]Infrastructure!AH1739","v":0},0]
[{"$f":"IF(SUM(O1740:AH1740),1,0)","v":0},null,null,null,null,null,{"$f":"[1]Infrastructure!G1740","v":0},{"$f":"[1]Infrastructure!H1740","v":0},{"$f":"[1]Infrastructure!I1740","v":0},{"$f":"[1]Infrastructure!J1740","v":0},{"$f":"[1]Infrastructure!K1740","v":0},{"$f":"[1]Infrastructure!L1740","v":0},{"$f":"[1]Infrastructure!M1740","v":0},{"$f":"[1]Infrastructure!N1740","v":0},{"$f":"[1]Infrastructure!O1740","v":0},{"$f":"[1]Infrastructure!Q1740","v":0},{"$f":"[1]Infrastructure!R1740","v":0},{"$f":"[1]Infrastructure!T1740","v":0},{"$f":"[1]Infrastructure!W1740","v":0},{"$f":"[1]Infrastructure!W1740","v":0},0,{"$f":"[1]Infrastructure!Z1740","v":0},{"$f":"[1]Infrastructure!Z1740","v":0},0,{"$f":"[1]Infrastructure!AB1740","v":0},{"$f":"[1]Infrastructure!AB1740","v":0},0,{"$f":"[1]Infrastructure!AC1740","v":0},{"$f":"[1]Infrastructure!AD1740","v":0},{"$f":"[1]Infrastructure!AE1740","v":0},{"$f":"[1]Infrastructure!AF1740","v":0},{"$f":"[1]Infrastructure!AG1740","v":0},{"$f":"[1]Infrastructure!AH1740","v":0},0]
[0,null,null,null,null,null,{"$f":"[1]Infrastructure!G1741","v":0},{"$f":"[1]Infrastructure!H1741","v":0},{"$f":"[1]Infrastructure!I1741","v":0},{"$f":"[1]Infrastructure!J1741","v":0},{"$f":"[1]Infrastructure!K1741","v":0},{"$f":"[1]Infrastructure!L1741","v":0},{"$f":"[1]Infrastructure!M1741","v":0},{"$f":"[1]Infrastructure!N1741","v":0},{"$f":"[1]Infrastructure!O1741","v":0},{"$f":"[1]Infrastructure!Q1741","v":0},{"$f":"[1]Infrastructure!R1741","v":0},{"$f":"[1]Infrastructure!T1741","v":0},{"$f":"[1]Infrastructure!W1741","v":0},{"$f":"[1]Infrastructure!W1741","v":0},0,{"$f":"[1]Infrastructure!Z1741","v":0},{"$f":"[1]Infrastructure!Z1741","v":0},0,{"$f":"[1]Infrastructure!AB1741","v":0},{"$f":"[1]Infrastructure!AB1741","v":0},0,{"$f":"[1]Infrastructure!AC1741","v":0},{"$f":"[1]Infrastructure!AD1741","v":0},{"$f":"[1]Infrastructure!AE1741","v":0},{"$f":"[1]Infrastructure!AF1741","v":0},{"$f":"[1]Infrastructure!AG1741","v":0},{"$f":"[1]Infrastructure!AH1741","v":0},0]
[0,null,null,null,null,null,{"$f":"[1]Infrastructure!G1742","v":0},{"$f":"[1]Infrastructure!H1742","v":0},{"$f":"[1]Infrastructure!I1742","v":0},{"$f":"[1]Infrastructure!J1742","v":0},{"$f":"[1]Infrastructure!K1742","v":0},{"$f":"[1]Infrastructure!L1742","v":0},{"$f":"[1]Infrastructure!M1742","v":0},{"$f":"[1]Infrastructure!N1742","v":0},{"$f":"[1]Infrastructure!O1742","v":0},{"$f":"[1]Infrastructure!Q1742","v":0},{"$f":"[1]Infrastructure!R1742","v":0},{"$f":"[1]Infrastructure!T1742","v":0},{"$f":"[1]Infrastructure!W1742","v":0},{"$f":"[1]Infrastructure!W1742","v":0},0,{"$f":"[1]Infrastructure!Z1742","v":0},{"$f":"[1]Infrastructure!Z1742","v":0},0,{"$f":"[1]Infrastructure!AB1742","v":0},{"$f":"[1]Infrastructure!AB1742","v":0},0,{"$f":"[1]Infrastructure!AC1742","v":0},{"$f":"[1]Infrastructure!AD1742","v":0},{"$f":"[1]Infrastructure!AE1742","v":0},{"$f":"[1]Infrastructure!AF1742","v":0},{"$f":"[1]Infrastructure!AG1742","v":0},{"$f":"[1]Infrastructure!AH1742","v":0},0]
[0,null,null,null,null,null,{"$f":"[1]Infrastructure!G1743","v":0},{"$f":"[1]Infrastructure!H1743","v":0},{"$f":"[1]Infrastructure!I1743","v":0},{"$f":"[1]Infrastructure!J1743","v":0},{"$f":"[1]Infrastructure!K1743","v":0},{"$f":"[1]Infrastructure!L1743","v":0},{"$f":"[1]Infrastructure!M1743","v":0},{"$f":"[1]Infrastructure!N1743","v":0},{"$f":"[1]Infrastructure!O1743","v":0},{"$f":"[1]Infrastructure!Q1743","v":0},{"$f":"[1]Infrastructure!R1743","v":0},{"$f":"[1]Infrastructure!T1743","v":0},{"$f":"[1]Infrastructure!W1743","v":0},{"$f":"[1]Infrastructure!W1743","v":0},0,{"$f":"[1]Infrastructure!Z1743","v":0},{"$f":"[1]Infrastructure!Z1743","v":0},0,{"$f":"[1]Infrastructure!AB1743","v":0},{"$f":"[1]Infrastructure!AB1743","v":0},0,{"$f":"[1]Infrastructure!AC1743","v":0},{"$f":"[1]Infrastructure!AD1743","v":0},{"$f":"[1]Infrastructure!AE1743","v":0},{"$f":"[1]Infrastructure!AF1743","v":0},{"$f":"[1]Infrastructure!AG1743","v":0},{"$f":"[1]Infrastructure!AH1743","v":0},0]
[0,null,null,null,null,null,{"$f":"[1]Infrastructure!G1744","v":0},{"$f":"[1]Infrastructure!H1744","v":0},{"$f":"[1]Infrastructure!I1744","v":0},{"$f":"[1]Infrastructure!J1744","v":0},{"$f":"[1]Infrastructure!K1744","v":0},{"$f":"[1]Infrastructure!L1744","v":0},{"$f":"[1]Infrastructure!M1744","v":0},{"$f":"[1]Infrastructure!N1744","v":0},{"$f":"[1]Infrastructure!O1744","v":0},{"$f":"[1]Infrastructure!Q1744","v":0},{"$f":"[1]Infrastructure!R1744","v":0},{"$f":"[1]Infrastructure!T1744","v":0},{"$f":"[1]Infrastructure!W1744","v":0},{"$f":"[1]Infrastructure!W1744","v":0},0,{"$f":"[1]Infrastructure!Z1744","v":0},{"$f":"[1]Infrastructure!Z1744","v":0},0,{"$f":"[1]Infrastructure!AB1744","v":0},{"$f":"[1]Infrastructure!AB1744","v":0},0,{"$f":"[1]Infrastructure!AC1744","v":0},{"$f":"[1]Infrastructure!AD1744","v":0},{"$f":"[1]Infrastructure!AE1744","v":0},{"$f":"[1]Infrastructure!AF1744","v":0},{"$f":"[1]Infrastructure!AG1744","v":0},{"$f":"[1]Infrastructure!AH1744","v":0},0]
[0,null,null,null,null,null,{"$f":"[1]Infrastructure!G1745","v":0},{"$f":"[1]Infrastructure!H1745","v":0},{"$f":"[1]Infrastructure!I1745","v":0},{"$f":"[1]Infrastructure!J1745","v":0},{"$f":"[1]Infrastructure!K1745","v":0},{"$f":"[1]Infrastructure!L1745","v":0},{"$f":"[1]Infrastructure!M1745","v":0},{"$f":"[1]Infrastructure!N1745","v":0},{"$f":"[1]Infrastructure!O1745","v":0},{"$f":"[1]Infrastructure!Q1745","v":0},{"$f":"[1]Infrastructure!R1745","v":0},{"$f":"[1]Infrastructure!T1745","v":0},{"$f":"[1]Infrastructure!W1745","v":0},{"$f":"[1]Infrastructure!W1745","v":0},0,{"$f":"[1]Infrastructure!Z1745","v":0},{"$f":"[1]Infrastructure!Z1745","v":0},0,{"$f":"[1]Infrastructure!AB1745","v":0},{"$f":"[1]Infrastructure!AB1745","v":0},0,{"$f":"[1]Infrastructure!AC1745","v":0},{"$f":"[1]Infrastructure!AD1745","v":0},{"$f":"[1]Infrastructure!AE1745","v":0},{"$f":"[1]Infrastructure!AF1745","v":0},{"$f":"[1]Infrastructure!AG1745","v":0},{"$f":"[1]Infrastructure!AH1745","v":0},0]
[0,null,null,null,null,null,{"$f":"[1]Infrastructure!G1746","v":0},{"$f":"[1]Infrastructure!H1746","v":0},{"$f":"[1]Infrastructure!I1746","v":0},{"$f":"[1]Infrastructure!J1746","v":0},{"$f":"[1]Infrastructure!K1746","v":0},{"$f":"[1]Infrastructure!L1746","v":0},{"$f":"[1]Infrastructure!M1746","v":0},{"$f":"[1]Infrastructure!N1746","v":0},{"$f":"[1]Infrastructure!O1746","v":0},{"$f":"[1]Infrastructure!Q1746","v":0},{"$f":"[1]Infrastructure!R1746","v":0},{"$f":"[1]Infrastructure!T1746","v":0},{"$f":"[1]Infrastructure!W1746","v":0},{"$f":"[1]Infrastructure!W1746","v":0},0,{"$f":"[1]Infrastructure!Z1746","v":0},{"$f":"[1]Infrastructure!Z1746","v":0},0,{"$f":"[1]Infrastructure!AB1746","v":0},{"$f":"[1]Infrastructure!AB1746","v":0},0,{"$f":"[1]Infrastructure!AC1746","v":0},{"$f":"[1]Infrastructure!AD1746","v":0},{"$f":"[1]Infrastructure!AE1746","v":0},{"$f":"[1]Infrastructure!AF1746","v":0},{"$f":"[1]Infrastructure!AG1746","v":0},{"$f":"[1]Infrastructure!AH1746","v":0},0]
[0,null,null,null,null,null,{"$f":"[1]Infrastructure!G1747","v":0},{"$f":"[1]Infrastructure!H1747","v":0},{"$f":"[1]Infrastructure!I1747","v":0},{"$f":"[1]Infrastructure!J1747","v":0},{"$f":"[1]Infrastructure!K1747","v":0},{"$f":"[1]Infrastructure!L1747","v":0},{"$f":"[1]Infrastructure!M1747","v":0},{"$f":"[1]Infrastructure!N1747","v":0},{"$f":"[1]Infrastructure!O1747","v":0},{"$f":"[1]Infrastructure!Q1747","v":0},{"$f":"[1]Infrastructure!R1747","v":0},{"$f":"[1]Infrastructure!T1747","v":0},{"$f":"[1]Infrastructure!W1747","v":0},{"$f":"[1]Infrastructure!W1747","v":0},0,{"$f":"[1]Infrastructure!Z1747","v":0},{"$f":"[1]Infrastructure!Z1747","v":0},0,{"$f":"[1]Infrastructure!AB1747","v":0},{"$f":"[1]Infrastructure!AB1747","v":0},0,{"$f":"[1]Infrastructure!AC1747","v":0},{"$f":"[1]Infrastructure!AD1747","v":0},{"$f":"[1]Infrastructure!AE1747","v":0},{"$f":"[1]Infrastructure!AF1747","v":0},{"$f":"[1]Infrastructure!AG1747","v":0},{"$f":"[1]Infrastructure!AH1747","v":0},0]
[0,null,null,null,null,null,{"$f":"[1]Infrastructure!G1748","v":0},{"$f":"[1]Infrastructure!H1748","v":0},{"$f":"[1]Infrastructure!I1748","v":0},{"$f":"[1]Infrastructure!J1748","v":0},{"$f":"[1]Infrastructure!K1748","v":0},{"$f":"[1]Infrastructure!L1748","v":0},{"$f":"[1]Infrastructure!M1748","v":0},{"$f":"[1]Infrastructure!N1748","v":0},{"$f":"[1]Infrastructure!O1748","v":0},{"$f":"[1]Infrastructure!Q1748","v":0},{"$f":"[1]Infrastructure!R1748","v":0},{"$f":"[1]Infrastructure!T1748","v":0},{"$f":"[1]Infrastructure!W1748","v":0},{"$f":"[1]Infrastructure!W1748","v":0},0,{"$f":"[1]Infrastructure!Z1748","v":0},{"$f":"[1]Infrastructure!Z1748","v":0},0,{"$f":"[1]Infrastructure!AB1748","v":0},{"$f":"[1]Infrastructure!AB1748","v":0},0,{"$f":"[1]Infrastructure!AC1748","v":0},{"$f":"[1]Infrastructure!AD1748","v":0},{"$f":"[1]Infrastructure!AE1748","v":0},{"$f":"[1]Infrastructure!AF1748","v":0},{"$f":"[1]Infrastructure!AG1748","v":0},{"$f":"[1]Infrastructure!AH1748","v":0},0]
[0,null,null,null,null,null,{"$f":"[1]Infrastructure!G1749","v":0},{"$f":"[1]Infrastructure!H1749","v":0},{"$f":"[1]Infrastructure!I1749","v":0},{"$f":"[1]Infrastructure!J1749","v":0},{"$f":"[1]Infrastructure!K1749","v":0},{"$f":"[1]Infrastructure!L1749","v":0},{"$f":"[1]Infrastructure!M1749","v":0},{"$f":"[1]Infrastructure!N1749","v":0},{"$f":"[1]Infrastructure!O1749","v":0},{"$f":"[1]Infrastructure!Q1749","v":0},{"$f":"[1]Infrastructure!R1749","v":0},{"$f":"[1]Infrastructure!T1749","v":0},{"$f":"[1]Infrastructure!W1749","v":0},{"$f":"[1]Infrastructure!W1749","v":0},0,{"$f":"[1]Infrastructure!Z1749","v":0},{"$f":"[1]Infrastructure!Z1749","v":0},0,{"$f":"[1]Infrastructure!AB1749","v":0},{"$f":"[1]Infrastructure!AB1749","v":0},0,{"$f":"[1]Infrastructure!AC1749","v":0},{"$f":"[1]Infrastructure!AD1749","v":0},{"$f":"[1]Infrastructure!AE1749","v":0},{"$f":"[1]Infrastructure!AF1749","v":0},{"$f":"[1]Infrastructure!AG1749","v":0},{"$f":"[1]Infrastructure!AH1749","v":0},0]
[0,null,null,null,null,null,{"$f":"[1]Infrastructure!G1750","v":0},{"$f":"[1]Infrastructure!H1750","v":0},{"$f":"[1]Infrastructure!I1750","v":0},{"$f":"[1]Infrastructure!J1750","v":0},{"$f":"[1]Infrastructure!K1750","v":0},{"$f":"[1]Infrastructure!L1750","v":0},{"$f":"[1]Infrastructure!M1750","v":0},{"$f":"[1]Infrastructure!N1750","v":0},{"$f":"[1]Infrastructure!O1750","v":0},{"$f":"[1]Infrastructure!Q1750","v":0},{"$f":"[1]Infrastructure!R1750","v":0},{"$f":"[1]Infrastructure!T1750","v":0},{"$f":"[1]Infrastructure!W1750","v":0},{"$f":"[1]Infrastructure!W1750","v":0},0,{"$f":"[1]Infrastructure!Z1750","v":0},{"$f":"[1]Infrastructure!Z1750","v":0},0,{"$f":"[1]Infrastructure!AB1750","v":0},{"$f":"[1]Infrastructure!AB1750","v":0},0,{"$f":"[1]Infrastructure!AC1750","v":0},{"$f":"[1]Infrastructure!AD1750","v":0},{"$f":"[1]Infrastructure!AE1750","v":0},{"$f":"[1]Infrastructure!AF1750","v":0},{"$f":"[1]Infrastructure!AG1750","v":0},{"$f":"[1]Infrastructure!AH1750","v":0},0]
[0,null,null,null,null,null,{"$f":"[1]Infrastructure!G1751","v":0},{"$f":"[1]Infrastructure!H1751","v":0},{"$f":"[1]Infrastructure!I1751","v":0},{"$f":"[1]Infrastructure!J1751","v":0},{"$f":"[1]Infrastructure!K1751","v":0},{"$f":"[1]Infrastructure!L1751","v":0},{"$f":"[1]Infrastructure!M1751","v":0},{"$f":"[1]Infrastructure!N1751","v":0},{"$f":"[1]Infrastructure!O1751","v":0},{"$f":"[1]Infrastructure!Q1751","v":0},{"$f":"[1]Infrastructure!R1751","v":0},{"$f":"[1]Infrastructure!T1751","v":0},{"$f":"[1]Infrastructure!W1751","v":0},{"$f":"[1]Infrastructure!W1751","v":0},0,{"$f":"[1]Infrastructure!Z1751","v":0},{"$f":"[1]Infrastructure!Z1751","v":0},0,{"$f":"[1]Infrastructure!AB1751","v":0},{"$f":"[1]Infrastructure!AB1751","v":0},0,{"$f":"[1]Infrastructure!AC1751","v":0},{"$f":"[1]Infrastructure!AD1751","v":0},{"$f":"[1]Infrastructure!AE1751","v":0},{"$f":"[1]Infrastructure!AF1751","v":0},{"$f":"[1]Infrastructure!AG1751","v":0},{"$f":"[1]Infrastructure!AH1751","v":0},0]
[0,null,null,null,null,null,{"$f":"[1]Infrastructure!G1752","v":0},{"$f":"[1]Infrastructure!H1752","v":0},{"$f":"[1]Infrastructure!I1752","v":0},{"$f":"[1]Infrastructure!J1752","v":0},{"$f":"[1]Infrastructure!K1752","v":0},{"$f":"[1]Infrastructure!L1752","v":0},{"$f":"[1]Infrastructure!M1752","v":0},{"$f":"[1]Infrastructure!N1752","v":0},{"$f":"[1]Infrastructure!O1752","v":0},{"$f":"[1]Infrastructure!Q1752","v":0},{"$f":"[1]Infrastructure!R1752","v":0},{"$f":"[1]Infrastructure!T1752","v":0},{"$f":"[1]Infrastructure!W1752","v":0},{"$f":"[1]Infrastructure!W1752","v":0},0,{"$f":"[1]Infrastructure!Z1752","v":0},{"$f":"[1]Infrastructure!Z1752","v":0},0,{"$f":"[1]Infrastructure!AB1752","v":0},{"$f":"[1]Infrastructure!AB1752","v":0},0,{"$f":"[1]Infrastructure!AC1752","v":0},{"$f":"[1]Infrastructure!AD1752","v":0},{"$f":"[1]Infrastructure!AE1752","v":0},{"$f":"[1]Infrastructure!AF1752","v":0},{"$f":"[1]Infrastructure!AG1752","v":0},{"$f":"[1]Infrastructure!AH1752","v":0},0]
[0,null,null,null,null,null,{"$f":"[1]Infrastructure!G1753","v":0},{"$f":"[1]Infrastructure!H1753","v":0},{"$f":"[1]Infrastructure!I1753","v":0},{"$f":"[1]Infrastructure!J1753","v":0},{"$f":"[1]Infrastructure!K1753","v":0},{"$f":"[1]Infrastructure!L1753","v":0},{"$f":"[1]Infrastructure!M1753","v":0},{"$f":"[1]Infrastructure!N1753","v":0},{"$f":"[1]Infrastructure!O1753","v":0},{"$f":"[1]Infrastructure!Q1753","v":0},{"$f":"[1]Infrastructure!R1753","v":0},{"$f":"[1]Infrastructure!T1753","v":0},{"$f":"[1]Infrastructure!W1753","v":0},{"$f":"[1]Infrastructure!W1753","v":0},0,{"$f":"[1]Infrastructure!Z1753","v":0},{"$f":"[1]Infrastructure!Z1753","v":0},0,{"$f":"[1]Infrastructure!AB1753","v":0},{"$f":"[1]Infrastructure!AB1753","v":0},0,{"$f":"[1]Infrastructure!AC1753","v":0},{"$f":"[1]Infrastructure!AD1753","v":0},{"$f":"[1]Infrastructure!AE1753","v":0},{"$f":"[1]Infrastructure!AF1753","v":0},{"$f":"[1]Infrastructure!AG1753","v":0},{"$f":"[1]Infrastructure!AH1753","v":0},0]
[0,null,null,null,null,null,{"$f":"[1]Infrastructure!G1754","v":0},{"$f":"[1]Infrastructure!H1754","v":0},{"$f":"[1]Infrastructure!I1754","v":0},{"$f":"[1]Infrastructure!J1754","v":0},{"$f":"[1]Infrastructure!K1754","v":0},{"$f":"[1]Infrastructure!L1754","v":0},{"$f":"[1]Infrastructure!M1754","v":0},{"$f":"[1]Infrastructure!N1754","v":0},{"$f":"[1]Infrastructure!O1754","v":0},{"$f":"[1]Infrastructure!Q1754","v":0},{"$f":"[1]Infrastructure!R1754","v":0},{"$f":"[1]Infrastructure!T1754","v":0},{"$f":"[1]Infrastructure!W1754","v":0},{"$f":"[1]Infrastructure!W1754","v":0},0,{"$f":"[1]Infrastructure!Z1754","v":0},{"$f":"[1]Infrastructure!Z1754","v":0},0,{"$f":"[1]Infrastructure!AB1754","v":0},{"$f":"[1]Infrastructure!AB1754","v":0},0,{"$f":"[1]Infrastructure!AC1754","v":0},{"$f":"[1]Infrastructure!AD1754","v":0},{"$f":"[1]Infrastructure!AE1754","v":0},{"$f":"[1]Infrastructure!AF1754","v":0},{"$f":"[1]Infrastructure!AG1754","v":0},{"$f":"[1]Infrastructure!AH1754","v":0},0]
[0,null,null,null,null,null,{"$f":"[1]Infrastructure!G1755","v":0},{"$f":"[1]Infrastructure!H1755","v":0},{"$f":"[1]Infrastructure!I1755","v":0},{"$f":"[1]Infrastructure!J1755","v":0},{"$f":"[1]Infrastructure!K1755","v":0},{"$f":"[1]Infrastructure!L1755","v":0},{"$f":"[1]Infrastructure!M1755","v":0},{"$f":"[1]Infrastructure!N1755","v":0},{"$f":"[1]Infrastructure!O1755","v":0},{"$f":"[1]Infrastructure!Q1755","v":0},{"$f":"[1]Infrastructure!R1755","v":0},{"$f":"[1]Infrastructure!T1755","v":0},{"$f":"[1]Infrastructure!W1755","v":0},{"$f":"[1]Infrastructure!W1755","v":0},0,{"$f":"[1]Infrastructure!Z1755","v":0},{"$f":"[1]Infrastructure!Z1755","v":0},0,{"$f":"[1]Infrastructure!AB1755","v":0},{"$f":"[1]Infrastructure!AB1755","v":0},0,{"$f":"[1]Infrastructure!AC1755","v":0},{"$f":"[1]Infrastructure!AD1755","v":0},{"$f":"[1]Infrastructure!AE1755","v":0},{"$f":"[1]Infrastructure!AF1755","v":0},{"$f":"[1]Infrastructure!AG1755","v":0},{"$f":"[1]Infrastructure!AH1755","v":0},0]
[0,null,null,null,null,null,{"$f":"[1]Infrastructure!G1756","v":0},{"$f":"[1]Infrastructure!H1756","v":0},{"$f":"[1]Infrastructure!I1756","v":0},{"$f":"[1]Infrastructure!J1756","v":0},{"$f":"[1]Infrastructure!K1756","v":0},{"$f":"[1]Infrastructure!L1756","v":0},{"$f":"[1]Infrastructure!M1756","v":0},{"$f":"[1]Infrastructure!N1756","v":0},{"$f":"[1]Infrastructure!O1756","v":0},{"$f":"[1]Infrastructure!Q1756","v":0},{"$f":"[1]Infrastructure!R1756","v":0},{"$f":"[1]Infrastructure!T1756","v":0},{"$f":"[1]Infrastructure!W1756","v":0},{"$f":"[1]Infrastructure!W1756","v":0},0,{"$f":"[1]Infrastructure!Z1756","v":0},{"$f":"[1]Infrastructure!Z1756","v":0},0,{"$f":"[1]Infrastructure!AB1756","v":0},{"$f":"[1]Infrastructure!AB1756","v":0},0,{"$f":"[1]Infrastructure!AC1756","v":0},{"$f":"[1]Infrastructure!AD1756","v":0},{"$f":"[1]Infrastructure!AE1756","v":0},{"$f":"[1]Infrastructure!AF1756","v":0},{"$f":"[1]Infrastructure!AG1756","v":0},{"$f":"[1]Infrastructure!AH1756","v":0},0]
[0,null,null,null,null,null,{"$f":"[1]Infrastructure!G1757","v":0},{"$f":"[1]Infrastructure!H1757","v":0},{"$f":"[1]Infrastructure!I1757","v":0},{"$f":"[1]Infrastructure!J1757","v":0},{"$f":"[1]Infrastructure!K1757","v":0},{"$f":"[1]Infrastructure!L1757","v":0},{"$f":"[1]Infrastructure!M1757","v":0},{"$f":"[1]Infrastructure!N1757","v":0},{"$f":"[1]Infrastructure!O1757","v":0},{"$f":"[1]Infrastructure!Q1757","v":0},{"$f":"[1]Infrastructure!R1757","v":0},{"$f":"[1]Infrastructure!T1757","v":0},{"$f":"[1]Infrastructure!W1757","v":0},{"$f":"[1]Infrastructure!W1757","v":0},0,{"$f":"[1]Infrastructure!Z1757","v":0},{"$f":"[1]Infrastructure!Z1757","v":0},0,{"$f":"[1]Infrastructure!AB1757","v":0},{"$f":"[1]Infrastructure!AB1757","v":0},0,{"$f":"[1]Infrastructure!AC1757","v":0},{"$f":"[1]Infrastructure!AD1757","v":0},{"$f":"[1]Infrastructure!AE1757","v":0},{"$f":"[1]Infrastructure!AF1757","v":0},{"$f":"[1]Infrastructure!AG1757","v":0},{"$f":"[1]Infrastructure!AH1757","v":0},0]
[0,null,null,null,null,null,{"$f":"[1]Infrastructure!G1758","v":0},{"$f":"[1]Infrastructure!H1758","v":0},{"$f":"[1]Infrastructure!I1758","v":0},{"$f":"[1]Infrastructure!J1758","v":0},{"$f":"[1]Infrastructure!K1758","v":0},{"$f":"[1]Infrastructure!L1758","v":0},{"$f":"[1]Infrastructure!M1758","v":0},{"$f":"[1]Infrastructure!N1758","v":0},{"$f":"[1]Infrastructure!O1758","v":0},{"$f":"[1]Infrastructure!Q1758","v":0},{"$f":"[1]Infrastructure!R1758","v":0},{"$f":"[1]Infrastructure!T1758","v":0},{"$f":"[1]Infrastructure!W1758","v":0},{"$f":"[1]Infrastructure!W1758","v":0},0,{"$f":"[1]Infrastructure!Z1758","v":0},{"$f":"[1]Infrastructure!Z1758","v":0},0,{"$f":"[1]Infrastructure!AB1758","v":0},{"$f":"[1]Infrastructure!AB1758","v":0},0,{"$f":"[1]Infrastructure!AC1758","v":0},{"$f":"[1]Infrastructure!AD1758","v":0},{"$f":"[1]Infrastructure!AE1758","v":0},{"$f":"[1]Infrastructure!AF1758","v":0},{"$f":"[1]Infrastructure!AG1758","v":0},{"$f":"[1]Infrastructure!AH1758","v":0},0]
[0,null,null,null,null,null,{"$f":"[1]Infrastructure!G1759","v":0},{"$f":"[1]Infrastructure!H1759","v":0},{"$f":"[1]Infrastructure!I1759","v":0},{"$f":"[1]Infrastructure!J1759","v":0},{"$f":"[1]Infrastructure!K1759","v":0},{"$f":"[1]Infrastructure!L1759","v":0},{"$f":"[1]Infrastructure!M1759","v":0},{"$f":"[1]Infrastructure!N1759","v":0},{"$f":"[1]Infrastructure!O1759","v":0},{"$f":"[1]Infrastructure!Q1759","v":0},{"$f":"[1]Infrastructure!R1759","v":0},{"$f":"[1]Infrastructure!T1759","v":0},{"$f":"[1]Infrastructure!W1759","v":0},{"$f":"[1]Infrastructure!W1759","v":0},0,{"$f":"[1]Infrastructure!Z1759","v":0},{"$f":"[1]Infrastructure!Z1759","v":0},0,{"$f":"[1]Infrastructure!AB1759","v":0},{"$f":"[1]Infrastructure!AB1759","v":0},0,{"$f":"[1]Infrastructure!AC1759","v":0},{"$f":"[1]Infrastructure!AD1759","v":0},{"$f":"[1]Infrastructure!AE1759","v":0},{"$f":"[1]Infrastructure!AF1759","v":0},{"$f":"[1]Infrastructure!AG1759","v":0},{"$f":"[1]Infrastructure!AH1759","v":0},0]
[0,null,null,null,null,null,{"$f":"[1]Infrastructure!G1760","v":0},{"$f":"[1]Infrastructure!H1760","v":0},{"$f":"[1]Infrastructure!I1760","v":0},{"$f":"[1]Infrastructure!J1760","v":0},{"$f":"[1]Infrastructure!K1760","v":0},{"$f":"[1]Infrastructure!L1760","v":0},{"$f":"[1]Infrastructure!M1760","v":0},{"$f":"[1]Infrastructure!N1760","v":0},{"$f":"[1]Infrastructure!O1760","v":0},{"$f":"[1]Infrastructure!Q1760","v":0},{"$f":"[1]Infrastructure!R1760","v":0},{"$f":"[1]Infrastructure!T1760","v":0},{"$f":"[1]Infrastructure!W1760","v":0},{"$f":"[1]Infrastructure!W1760","v":0},0,{"$f":"[1]Infrastructure!Z1760","v":0},{"$f":"[1]Infrastructure!Z1760","v":0},0,{"$f":"[1]Infrastructure!AB1760","v":0},{"$f":"[1]Infrastructure!AB1760","v":0},0,{"$f":"[1]Infrastructure!AC1760","v":0},{"$f":"[1]Infrastructure!AD1760","v":0},{"$f":"[1]Infrastructure!AE1760","v":0},{"$f":"[1]Infrastructure!AF1760","v":0},{"$f":"[1]Infrastructure!AG1760","v":0},{"$f":"[1]Infrastructure!AH1760","v":0},0]
[0,null,null,null,null,null,{"$f":"[1]Infrastructure!G1761","v":0},{"$f":"[1]Infrastructure!H1761","v":0},{"$f":"[1]Infrastructure!I1761","v":0},{"$f":"[1]Infrastructure!J1761","v":0},{"$f":"[1]Infrastructure!K1761","v":0},{"$f":"[1]Infrastructure!L1761","v":0},{"$f":"[1]Infrastructure!M1761","v":0},{"$f":"[1]Infrastructure!N1761","v":0},{"$f":"[1]Infrastructure!O1761","v":0},{"$f":"[1]Infrastructure!Q1761","v":0},{"$f":"[1]Infrastructure!R1761","v":0},{"$f":"[1]Infrastructure!T1761","v":0},{"$f":"[1]Infrastructure!W1761","v":0},{"$f":"[1]Infrastructure!W1761","v":0},0,{"$f":"[1]Infrastructure!Z1761","v":0},{"$f":"[1]Infrastructure!Z1761","v":0},0,{"$f":"[1]Infrastructure!AB1761","v":0},{"$f":"[1]Infrastructure!AB1761","v":0},0,{"$f":"[1]Infrastructure!AC1761","v":0},{"$f":"[1]Infrastructure!AD1761","v":0},{"$f":"[1]Infrastructure!AE1761","v":0},{"$f":"[1]Infrastructure!AF1761","v":0},{"$f":"[1]Infrastructure!AG1761","v":0},{"$f":"[1]Infrastructure!AH1761","v":0},0]
[0,null,null,null,null,null,{"$f":"[1]Infrastructure!G1762","v":0},{"$f":"[1]Infrastructure!H1762","v":0},{"$f":"[1]Infrastructure!I1762","v":0},{"$f":"[1]Infrastructure!J1762","v":0},{"$f":"[1]Infrastructure!K1762","v":0},{"$f":"[1]Infrastructure!L1762","v":0},{"$f":"[1]Infrastructure!M1762","v":0},{"$f":"[1]Infrastructure!N1762","v":0},{"$f":"[1]Infrastructure!O1762","v":0},{"$f":"[1]Infrastructure!Q1762","v":0},{"$f":"[1]Infrastructure!R1762","v":0},{"$f":"[1]Infrastructure!T1762","v":0},{"$f":"[1]Infrastructure!W1762","v":0},{"$f":"[1]Infrastructure!W1762","v":0},0,{"$f":"[1]Infrastructure!Z1762","v":0},{"$f":"[1]Infrastructure!Z1762","v":0},0,{"$f":"[1]Infrastructure!AB1762","v":0},{"$f":"[1]Infrastructure!AB1762","v":0},0,{"$f":"[1]Infrastructure!AC1762","v":0},{"$f":"[1]Infrastructure!AD1762","v":0},{"$f":"[1]Infrastructure!AE1762","v":0},{"$f":"[1]Infrastructure!AF1762","v":0},{"$f":"[1]Infrastructure!AG1762","v":0},{"$f":"[1]Infrastructure!AH1762","v":0},0]
[0,null,null,null,null,null,{"$f":"[1]Infrastructure!G1763","v":0},{"$f":"[1]Infrastructure!H1763","v":0},{"$f":"[1]Infrastructure!I1763","v":0},{"$f":"[1]Infrastructure!J1763","v":0},{"$f":"[1]Infrastructure!K1763","v":0},{"$f":"[1]Infrastructure!L1763","v":0},{"$f":"[1]Infrastructure!M1763","v":0},{"$f":"[1]Infrastructure!N1763","v":0},{"$f":"[1]Infrastructure!O1763","v":0},{"$f":"[1]Infrastructure!Q1763","v":0},{"$f":"[1]Infrastructure!R1763","v":0},{"$f":"[1]Infrastructure!T1763","v":0},{"$f":"[1]Infrastructure!W1763","v":0},{"$f":"[1]Infrastructure!W1763","v":0},0,{"$f":"[1]Infrastructure!Z1763","v":0},{"$f":"[1]Infrastructure!Z1763","v":0},0,{"$f":"[1]Infrastructure!AB1763","v":0},{"$f":"[1]Infrastructure!AB1763","v":0},0,{"$f":"[1]Infrastructure!AC1763","v":0},{"$f":"[1]Infrastructure!AD1763","v":0},{"$f":"[1]Infrastructure!AE1763","v":0},{"$f":"[1]Infrastructure!AF1763","v":0},{"$f":"[1]Infrastructure!AG1763","v":0},{"$f":"[1]Infrastructure!AH1763","v":0},0]
[0,null,null,null,null,null,{"$f":"[1]Infrastructure!G1764","v":0},{"$f":"[1]Infrastructure!H1764","v":0},{"$f":"[1]Infrastructure!I1764","v":0},{"$f":"[1]Infrastructure!J1764","v":0},{"$f":"[1]Infrastructure!K1764","v":0},{"$f":"[1]Infrastructure!L1764","v":0},{"$f":"[1]Infrastructure!M1764","v":0},{"$f":"[1]Infrastructure!N1764","v":0},{"$f":"[1]Infrastructure!O1764","v":0},{"$f":"[1]Infrastructure!Q1764","v":0},{"$f":"[1]Infrastructure!R1764","v":0},{"$f":"[1]Infrastructure!T1764","v":0},{"$f":"[1]Infrastructure!W1764","v":0},{"$f":"[1]Infrastructure!W1764","v":0},0,{"$f":"[1]Infrastructure!Z1764","v":0},{"$f":"[1]Infrastructure!Z1764","v":0},0,{"$f":"[1]Infrastructure!AB1764","v":0},{"$f":"[1]Infrastructure!AB1764","v":0},0,{"$f":"[1]Infrastructure!AC1764","v":0},{"$f":"[1]Infrastructure!AD1764","v":0},{"$f":"[1]Infrastructure!AE1764","v":0},{"$f":"[1]Infrastructure!AF1764","v":0},{"$f":"[1]Infrastructure!AG1764","v":0},{"$f":"[1]Infrastructure!AH1764","v":0},0]
[0,null,null,null,null,null,{"$f":"[1]Infrastructure!G1765","v":0},{"$f":"[1]Infrastructure!H1765","v":0},{"$f":"[1]Infrastructure!I1765","v":0},{"$f":"[1]Infrastructure!J1765","v":0},{"$f":"[1]Infrastructure!K1765","v":0},{"$f":"[1]Infrastructure!L1765","v":0},{"$f":"[1]Infrastructure!M1765","v":0},{"$f":"[1]Infrastructure!N1765","v":0},{"$f":"[1]Infrastructure!O1765","v":0},{"$f":"[1]Infrastructure!Q1765","v":0},{"$f":"[1]Infrastructure!R1765","v":0},{"$f":"[1]Infrastructure!T1765","v":0},{"$f":"[1]Infrastructure!W1765","v":0},{"$f":"[1]Infrastructure!W1765","v":0},0,{"$f":"[1]Infrastructure!Z1765","v":0},{"$f":"[1]Infrastructure!Z1765","v":0},0,{"$f":"[1]Infrastructure!AB1765","v":0},{"$f":"[1]Infrastructure!AB1765","v":0},0,{"$f":"[1]Infrastructure!AC1765","v":0},{"$f":"[1]Infrastructure!AD1765","v":0},{"$f":"[1]Infrastructure!AE1765","v":0},{"$f":"[1]Infrastructure!AF1765","v":0},{"$f":"[1]Infrastructure!AG1765","v":0},{"$f":"[1]Infrastructure!AH1765","v":0},0]
[0,null,null,null,null,null,{"$f":"[1]Infrastructure!G1766","v":0},{"$f":"[1]Infrastructure!H1766","v":0},{"$f":"[1]Infrastructure!I1766","v":0},{"$f":"[1]Infrastructure!J1766","v":0},{"$f":"[1]Infrastructure!K1766","v":0},{"$f":"[1]Infrastructure!L1766","v":0},{"$f":"[1]Infrastructure!M1766","v":0},{"$f":"[1]Infrastructure!N1766","v":0},{"$f":"[1]Infrastructure!O1766","v":0},{"$f":"[1]Infrastructure!Q1766","v":0},{"$f":"[1]Infrastructure!R1766","v":0},{"$f":"[1]Infrastructure!T1766","v":0},{"$f":"[1]Infrastructure!W1766","v":0},{"$f":"[1]Infrastructure!W1766","v":0},0,{"$f":"[1]Infrastructure!Z1766","v":0},{"$f":"[1]Infrastructure!Z1766","v":0},0,{"$f":"[1]Infrastructure!AB1766","v":0},{"$f":"[1]Infrastructure!AB1766","v":0},0,{"$f":"[1]Infrastructure!AC1766","v":0},{"$f":"[1]Infrastructure!AD1766","v":0},{"$f":"[1]Infrastructure!AE1766","v":0},{"$f":"[1]Infrastructure!AF1766","v":0},{"$f":"[1]Infrastructure!AG1766","v":0},{"$f":"[1]Infrastructure!AH1766","v":0},0]
[0,null,null,null,null,null,{"$f":"[1]Infrastructure!G1767","v":0},{"$f":"[1]Infrastructure!H1767","v":0},{"$f":"[1]Infrastructure!I1767","v":0},{"$f":"[1]Infrastructure!J1767","v":0},{"$f":"[1]Infrastructure!K1767","v":0},{"$f":"[1]Infrastructure!L1767","v":0},{"$f":"[1]Infrastructure!M1767","v":0},{"$f":"[1]Infrastructure!N1767","v":0},{"$f":"[1]Infrastructure!O1767","v":0},{"$f":"[1]Infrastructure!Q1767","v":0},{"$f":"[1]Infrastructure!R1767","v":0},{"$f":"[1]Infrastructure!T1767","v":0},{"$f":"[1]Infrastructure!W1767","v":0},{"$f":"[1]Infrastructure!W1767","v":0},0,{"$f":"[1]Infrastructure!Z1767","v":0},{"$f":"[1]Infrastructure!Z1767","v":0},0,{"$f":"[1]Infrastructure!AB1767","v":0},{"$f":"[1]Infrastructure!AB1767","v":0},0,{"$f":"[1]Infrastructure!AC1767","v":0},{"$f":"[1]Infrastructure!AD1767","v":0},{"$f":"[1]Infrastructure!AE1767","v":0},{"$f":"[1]Infrastructure!AF1767","v":0},{"$f":"[1]Infrastructure!AG1767","v":0},{"$f":"[1]Infrastructure!AH1767","v":0},0]
[0,null,null,null,null,null,{"$f":"[1]Infrastructure!G1768","v":0},{"$f":"[1]Infrastructure!H1768","v":0},{"$f":"[1]Infrastructure!I1768","v":0},{"$f":"[1]Infrastructure!J1768","v":0},{"$f":"[1]Infrastructure!K1768","v":0},{"$f":"[1]Infrastructure!L1768","v":0},{"$f":"[1]Infrastructure!M1768","v":0},{"$f":"[1]Infrastructure!N1768","v":0},{"$f":"[1]Infrastructure!O1768","v":0},{"$f":"[1]Infrastructure!Q1768","v":0},{"$f":"[1]Infrastructure!R1768","v":0},{"$f":"[1]Infrastructure!T1768","v":0},{"$f":"[1]Infrastructure!W1768","v":0},{"$f":"[1]Infrastructure!W1768","v":0},0,{"$f":"[1]Infrastructure!Z1768","v":0},{"$f":"[1]Infrastructure!Z1768","v":0},0,{"$f":"[1]Infrastructure!AB1768","v":0},{"$f":"[1]Infrastructure!AB1768","v":0},0,{"$f":"[1]Infrastructure!AC1768","v":0},{"$f":"[1]Infrastructure!AD1768","v":0},{"$f":"[1]Infrastructure!AE1768","v":0},{"$f":"[1]Infrastructure!AF1768","v":0},{"$f":"[1]Infrastructure!AG1768","v":0},{"$f":"[1]Infrastructure!AH1768","v":0},0]
[0,null,null,null,null,null,{"$f":"[1]Infrastructure!G1769","v":0},{"$f":"[1]Infrastructure!H1769","v":0},{"$f":"[1]Infrastructure!I1769","v":0},{"$f":"[1]Infrastructure!J1769","v":0},{"$f":"[1]Infrastructure!K1769","v":0},{"$f":"[1]Infrastructure!L1769","v":0},{"$f":"[1]Infrastructure!M1769","v":0},{"$f":"[1]Infrastructure!N1769","v":0},{"$f":"[1]Infrastructure!O1769","v":0},{"$f":"[1]Infrastructure!Q1769","v":0},{"$f":"[1]Infrastructure!R1769","v":0},{"$f":"[1]Infrastructure!T1769","v":0},{"$f":"[1]Infrastructure!W1769","v":0},{"$f":"[1]Infrastructure!W1769","v":0},0,{"$f":"[1]Infrastructure!Z1769","v":0},{"$f":"[1]Infrastructure!Z1769","v":0},0,{"$f":"[1]Infrastructure!AB1769","v":0},{"$f":"[1]Infrastructure!AB1769","v":0},0,{"$f":"[1]Infrastructure!AC1769","v":0},{"$f":"[1]Infrastructure!AD1769","v":0},{"$f":"[1]Infrastructure!AE1769","v":0},{"$f":"[1]Infrastructure!AF1769","v":0},{"$f":"[1]Infrastructure!AG1769","v":0},{"$f":"[1]Infrastructure!AH1769","v":0},0]
[0,null,null,null,null,null,{"$f":"[1]Infrastructure!G1770","v":0},{"$f":"[1]Infrastructure!H1770","v":0},{"$f":"[1]Infrastructure!I1770","v":0},{"$f":"[1]Infrastructure!J1770","v":0},{"$f":"[1]Infrastructure!K1770","v":0},{"$f":"[1]Infrastructure!L1770","v":0},{"$f":"[1]Infrastructure!M1770","v":0},{"$f":"[1]Infrastructure!N1770","v":0},{"$f":"[1]Infrastructure!O1770","v":0},{"$f":"[1]Infrastructure!Q1770","v":0},{"$f":"[1]Infrastructure!R1770","v":0},{"$f":"[1]Infrastructure!T1770","v":0},{"$f":"[1]Infrastructure!W1770","v":0},{"$f":"[1]Infrastructure!W1770","v":0},0,{"$f":"[1]Infrastructure!Z1770","v":0},{"$f":"[1]Infrastructure!Z1770","v":0},0,{"$f":"[1]Infrastructure!AB1770","v":0},{"$f":"[1]Infrastructure!AB1770","v":0},0,{"$f":"[1]Infrastructure!AC1770","v":0},{"$f":"[1]Infrastructure!AD1770","v":0},{"$f":"[1]Infrastructure!AE1770","v":0},{"$f":"[1]Infrastructure!AF1770","v":0},{"$f":"[1]Infrastructure!AG1770","v":0},{"$f":"[1]Infrastructure!AH1770","v":0},0]
[0,null,null,null,null,null,{"$f":"[1]Infrastructure!G1771","v":0},{"$f":"[1]Infrastructure!H1771","v":0},{"$f":"[1]Infrastructure!I1771","v":0},{"$f":"[1]Infrastructure!J1771","v":0},{"$f":"[1]Infrastructure!K1771","v":0},{"$f":"[1]Infrastructure!L1771","v":0},{"$f":"[1]Infrastructure!M1771","v":0},{"$f":"[1]Infrastructure!N1771","v":0},{"$f":"[1]Infrastructure!O1771","v":0},{"$f":"[1]Infrastructure!Q1771","v":0},{"$f":"[1]Infrastructure!R1771","v":0},{"$f":"[1]Infrastructure!T1771","v":0},{"$f":"[1]Infrastructure!W1771","v":0},{"$f":"[1]Infrastructure!W1771","v":0},0,{"$f":"[1]Infrastructure!Z1771","v":0},{"$f":"[1]Infrastructure!Z1771","v":0},0,{"$f":"[1]Infrastructure!AB1771","v":0},{"$f":"[1]Infrastructure!AB1771","v":0},0,{"$f":"[1]Infrastructure!AC1771","v":0},{"$f":"[1]Infrastructure!AD1771","v":0},{"$f":"[1]Infrastructure!AE1771","v":0},{"$f":"[1]Infrastructure!AF1771","v":0},{"$f":"[1]Infrastructure!AG1771","v":0},{"$f":"[1]Infrastructure!AH1771","v":0},0]
[0,null,null,null,null,null,{"$f":"[1]Infrastructure!G1772","v":0},{"$f":"[1]Infrastructure!H1772","v":0},{"$f":"[1]Infrastructure!I1772","v":0},{"$f":"[1]Infrastructure!J1772","v":0},{"$f":"[1]Infrastructure!K1772","v":0},{"$f":"[1]Infrastructure!L1772","v":0},{"$f":"[1]Infrastructure!M1772","v":0},{"$f":"[1]Infrastructure!N1772","v":0},{"$f":"[1]Infrastructure!O1772","v":0},{"$f":"[1]Infrastructure!Q1772","v":0},{"$f":"[1]Infrastructure!R1772","v":0},{"$f":"[1]Infrastructure!T1772","v":0},{"$f":"[1]Infrastructure!W1772","v":0},{"$f":"[1]Infrastructure!W1772","v":0},0,{"$f":"[1]Infrastructure!Z1772","v":0},{"$f":"[1]Infrastructure!Z1772","v":0},0,{"$f":"[1]Infrastructure!AB1772","v":0},{"$f":"[1]Infrastructure!AB1772","v":0},0,{"$f":"[1]Infrastructure!AC1772","v":0},{"$f":"[1]Infrastructure!AD1772","v":0},{"$f":"[1]Infrastructure!AE1772","v":0},{"$f":"[1]Infrastructure!AF1772","v":0},{"$f":"[1]Infrastructure!AG1772","v":0},{"$f":"[1]Infrastructure!AH1772","v":0},0]
[0,null,null,null,null,null,{"$f":"[1]Infrastructure!G1773","v":0},{"$f":"[1]Infrastructure!H1773","v":0},{"$f":"[1]Infrastructure!I1773","v":0},{"$f":"[1]Infrastructure!J1773","v":0},{"$f":"[1]Infrastructure!K1773","v":0},{"$f":"[1]Infrastructure!L1773","v":0},{"$f":"[1]Infrastructure!M1773","v":0},{"$f":"[1]Infrastructure!N1773","v":0},{"$f":"[1]Infrastructure!O1773","v":0},{"$f":"[1]Infrastructure!Q1773","v":0},{"$f":"[1]Infrastructure!R1773","v":0},{"$f":"[1]Infrastructure!T1773","v":0},{"$f":"[1]Infrastructure!W1773","v":0},{"$f":"[1]Infrastructure!W1773","v":0},0,{"$f":"[1]Infrastructure!Z1773","v":0},{"$f":"[1]Infrastructure!Z1773","v":0},0,{"$f":"[1]Infrastructure!AB1773","v":0},{"$f":"[1]Infrastructure!AB1773","v":0},0,{"$f":"[1]Infrastructure!AC1773","v":0},{"$f":"[1]Infrastructure!AD1773","v":0},{"$f":"[1]Infrastructure!AE1773","v":0},{"$f":"[1]Infrastructure!AF1773","v":0},{"$f":"[1]Infrastructure!AG1773","v":0},{"$f":"[1]Infrastructure!AH1773","v":0},0]
[0,null,null,null,null,null,{"$f":"[1]Infrastructure!G1774","v":0},{"$f":"[1]Infrastructure!H1774","v":0},{"$f":"[1]Infrastructure!I1774","v":0},{"$f":"[1]Infrastructure!J1774","v":0},{"$f":"[1]Infrastructure!K1774","v":0},{"$f":"[1]Infrastructure!L1774","v":0},{"$f":"[1]Infrastructure!M1774","v":0},{"$f":"[1]Infrastructure!N1774","v":0},{"$f":"[1]Infrastructure!O1774","v":0},{"$f":"[1]Infrastructure!Q1774","v":0},{"$f":"[1]Infrastructure!R1774","v":0},{"$f":"[1]Infrastructure!T1774","v":0},{"$f":"[1]Infrastructure!W1774","v":0},{"$f":"[1]Infrastructure!W1774","v":0},0,{"$f":"[1]Infrastructure!Z1774","v":0},{"$f":"[1]Infrastructure!Z1774","v":0},0,{"$f":"[1]Infrastructure!AB1774","v":0},{"$f":"[1]Infrastructure!AB1774","v":0},0,{"$f":"[1]Infrastructure!AC1774","v":0},{"$f":"[1]Infrastructure!AD1774","v":0},{"$f":"[1]Infrastructure!AE1774","v":0},{"$f":"[1]Infrastructure!AF1774","v":0},{"$f":"[1]Infrastructure!AG1774","v":0},{"$f":"[1]Infrastructure!AH1774","v":0},0]
[0,null,null,null,null,null,{"$f":"[1]Infrastructure!G1775","v":0},{"$f":"[1]Infrastructure!H1775","v":0},{"$f":"[1]Infrastructure!I1775","v":0},{"$f":"[1]Infrastructure!J1775","v":0},{"$f":"[1]Infrastructure!K1775","v":0},{"$f":"[1]Infrastructure!L1775","v":0},{"$f":"[1]Infrastructure!M1775","v":0},{"$f":"[1]Infrastructure!N1775","v":0},{"$f":"[1]Infrastructure!O1775","v":0},{"$f":"[1]Infrastructure!Q1775","v":0},{"$f":"[1]Infrastructure!R1775","v":0},{"$f":"[1]Infrastructure!T1775","v":0},{"$f":"[1]Infrastructure!W1775","v":0},{"$f":"[1]Infrastructure!W1775","v":0},0,{"$f":"[1]Infrastructure!Z1775","v":0},{"$f":"[1]Infrastructure!Z1775","v":0},0,{"$f":"[1]Infrastructure!AB1775","v":0},{"$f":"[1]Infrastructure!AB1775","v":0},0,{"$f":"[1]Infrastructure!AC1775","v":0},{"$f":"[1]Infrastructure!AD1775","v":0},{"$f":"[1]Infrastructure!AE1775","v":0},{"$f":"[1]Infrastructure!AF1775","v":0},{"$f":"[1]Infrastructure!AG1775","v":0},{"$f":"[1]Infrastructure!AH1775","v":0},0]
[0,null,null,null,null,null,{"$f":"[1]Infrastructure!G1776","v":0},{"$f":"[1]Infrastructure!H1776","v":0},{"$f":"[1]Infrastructure!I1776","v":0},{"$f":"[1]Infrastructure!J1776","v":0},{"$f":"[1]Infrastructure!K1776","v":0},{"$f":"[1]Infrastructure!L1776","v":0},{"$f":"[1]Infrastructure!M1776","v":0},{"$f":"[1]Infrastructure!N1776","v":0},{"$f":"[1]Infrastructure!O1776","v":0},{"$f":"[1]Infrastructure!Q1776","v":0},{"$f":"[1]Infrastructure!R1776","v":0},{"$f":"[1]Infrastructure!T1776","v":0},{"$f":"[1]Infrastructure!W1776","v":0},{"$f":"[1]Infrastructure!W1776","v":0},0,{"$f":"[1]Infrastructure!Z1776","v":0},{"$f":"[1]Infrastructure!Z1776","v":0},0,{"$f":"[1]Infrastructure!AB1776","v":0},{"$f":"[1]Infrastructure!AB1776","v":0},0,{"$f":"[1]Infrastructure!AC1776","v":0},{"$f":"[1]Infrastructure!AD1776","v":0},{"$f":"[1]Infrastructure!AE1776","v":0},{"$f":"[1]Infrastructure!AF1776","v":0},{"$f":"[1]Infrastructure!AG1776","v":0},{"$f":"[1]Infrastructure!AH1776","v":0},0]
[0,null,null,null,null,null,{"$f":"[1]Infrastructure!G1777","v":0},{"$f":"[1]Infrastructure!H1777","v":0},{"$f":"[1]Infrastructure!I1777","v":0},{"$f":"[1]Infrastructure!J1777","v":0},{"$f":"[1]Infrastructure!K1777","v":0},{"$f":"[1]Infrastructure!L1777","v":0},{"$f":"[1]Infrastructure!M1777","v":0},{"$f":"[1]Infrastructure!N1777","v":0},{"$f":"[1]Infrastructure!O1777","v":0},{"$f":"[1]Infrastructure!Q1777","v":0},{"$f":"[1]Infrastructure!R1777","v":0},{"$f":"[1]Infrastructure!T1777","v":0},{"$f":"[1]Infrastructure!W1777","v":0},{"$f":"[1]Infrastructure!W1777","v":0},0,{"$f":"[1]Infrastructure!Z1777","v":0},{"$f":"[1]Infrastructure!Z1777","v":0},0,{"$f":"[1]Infrastructure!AB1777","v":0},{"$f":"[1]Infrastructure!AB1777","v":0},0,{"$f":"[1]Infrastructure!AC1777","v":0},{"$f":"[1]Infrastructure!AD1777","v":0},{"$f":"[1]Infrastructure!AE1777","v":0},{"$f":"[1]Infrastructure!AF1777","v":0},{"$f":"[1]Infrastructure!AG1777","v":0},{"$f":"[1]Infrastructure!AH1777","v":0},0]
[0,null,null,null,null,null,{"$f":"[1]Infrastructure!G1778","v":0},{"$f":"[1]Infrastructure!H1778","v":0},{"$f":"[1]Infrastructure!I1778","v":0},{"$f":"[1]Infrastructure!J1778","v":0},{"$f":"[1]Infrastructure!K1778","v":0},{"$f":"[1]Infrastructure!L1778","v":0},{"$f":"[1]Infrastructure!M1778","v":0},{"$f":"[1]Infrastructure!N1778","v":0},{"$f":"[1]Infrastructure!O1778","v":0},{"$f":"[1]Infrastructure!Q1778","v":0},{"$f":"[1]Infrastructure!R1778","v":0},{"$f":"[1]Infrastructure!T1778","v":0},{"$f":"[1]Infrastructure!W1778","v":0},{"$f":"[1]Infrastructure!W1778","v":0},0,{"$f":"[1]Infrastructure!Z1778","v":0},{"$f":"[1]Infrastructure!Z1778","v":0},0,{"$f":"[1]Infrastructure!AB1778","v":0},{"$f":"[1]Infrastructure!AB1778","v":0},0,{"$f":"[1]Infrastructure!AC1778","v":0},{"$f":"[1]Infrastructure!AD1778","v":0},{"$f":"[1]Infrastructure!AE1778","v":0},{"$f":"[1]Infrastructure!AF1778","v":0},{"$f":"[1]Infrastructure!AG1778","v":0},{"$f":"[1]Infrastructure!AH1778","v":0},0]
[0,null,null,null,null,null,{"$f":"[1]Infrastructure!G1779","v":0},{"$f":"[1]Infrastructure!H1779","v":0},{"$f":"[1]Infrastructure!I1779","v":0},{"$f":"[1]Infrastructure!J1779","v":0},{"$f":"[1]Infrastructure!K1779","v":0},{"$f":"[1]Infrastructure!L1779","v":0},{"$f":"[1]Infrastructure!M1779","v":0},{"$f":"[1]Infrastructure!N1779","v":0},{"$f":"[1]Infrastructure!O1779","v":0},{"$f":"[1]Infrastructure!Q1779","v":0},{"$f":"[1]Infrastructure!R1779","v":0},{"$f":"[1]Infrastructure!T1779","v":0},{"$f":"[1]Infrastructure!W1779","v":0},{"$f":"[1]Infrastructure!W1779","v":0},0,{"$f":"[1]Infrastructure!Z1779","v":0},{"$f":"[1]Infrastructure!Z1779","v":0},0,{"$f":"[1]Infrastructure!AB1779","v":0},{"$f":"[1]Infrastructure!AB1779","v":0},0,{"$f":"[1]Infrastructure!AC1779","v":0},{"$f":"[1]Infrastructure!AD1779","v":0},{"$f":"[1]Infrastructure!AE1779","v":0},{"$f":"[1]Infrastructure!AF1779","v":0},{"$f":"[1]Infrastructure!AG1779","v":0},{"$f":"[1]Infrastructure!AH1779","v":0},0]
[0,null,null,null,null,null,{"$f":"[1]Infrastructure!G1780","v":0},{"$f":"[1]Infrastructure!H1780","v":0},{"$f":"[1]Infrastructure!I1780","v":0},{"$f":"[1]Infrastructure!J1780","v":0},{"$f":"[1]Infrastructure!K1780","v":0},{"$f":"[1]Infrastructure!L1780","v":0},{"$f":"[1]Infrastructure!M1780","v":0},{"$f":"[1]Infrastructure!N1780","v":0},{"$f":"[1]Infrastructure!O1780","v":0},{"$f":"[1]Infrastructure!Q1780","v":0},{"$f":"[1]Infrastructure!R1780","v":0},{"$f":"[1]Infrastructure!T1780","v":0},{"$f":"[1]Infrastructure!W1780","v":0},{"$f":"[1]Infrastructure!W1780","v":0},0,{"$f":"[1]Infrastructure!Z1780","v":0},{"$f":"[1]Infrastructure!Z1780","v":0},0,{"$f":"[1]Infrastructure!AB1780","v":0},{"$f":"[1]Infrastructure!AB1780","v":0},0,{"$f":"[1]Infrastructure!AC1780","v":0},{"$f":"[1]Infrastructure!AD1780","v":0},{"$f":"[1]Infrastructure!AE1780","v":0},{"$f":"[1]Infrastructure!AF1780","v":0},{"$f":"[1]Infrastructure!AG1780","v":0},{"$f":"[1]Infrastructure!AH1780","v":0},0]
[0,null,null,null,null,null,{"$f":"[1]Infrastructure!G1781","v":0},{"$f":"[1]Infrastructure!H1781","v":0},{"$f":"[1]Infrastructure!I1781","v":0},{"$f":"[1]Infrastructure!J1781","v":0},{"$f":"[1]Infrastructure!K1781","v":0},{"$f":"[1]Infrastructure!L1781","v":0},{"$f":"[1]Infrastructure!M1781","v":0},{"$f":"[1]Infrastructure!N1781","v":0},{"$f":"[1]Infrastructure!O1781","v":0},{"$f":"[1]Infrastructure!Q1781","v":0},{"$f":"[1]Infrastructure!R1781","v":0},{"$f":"[1]Infrastructure!T1781","v":0},{"$f":"[1]Infrastructure!W1781","v":0},{"$f":"[1]Infrastructure!W1781","v":0},0,{"$f":"[1]Infrastructure!Z1781","v":0},{"$f":"[1]Infrastructure!Z1781","v":0},0,{"$f":"[1]Infrastructure!AB1781","v":0},{"$f":"[1]Infrastructure!AB1781","v":0},0,{"$f":"[1]Infrastructure!AC1781","v":0},{"$f":"[1]Infrastructure!AD1781","v":0},{"$f":"[1]Infrastructure!AE1781","v":0},{"$f":"[1]Infrastructure!AF1781","v":0},{"$f":"[1]Infrastructure!AG1781","v":0},{"$f":"[1]Infrastructure!AH1781","v":0},0]
[0,null,null,null,null,null,{"$f":"[1]Infrastructure!G1782","v":0},{"$f":"[1]Infrastructure!H1782","v":0},{"$f":"[1]Infrastructure!I1782","v":0},{"$f":"[1]Infrastructure!J1782","v":0},{"$f":"[1]Infrastructure!K1782","v":0},{"$f":"[1]Infrastructure!L1782","v":0},{"$f":"[1]Infrastructure!M1782","v":0},{"$f":"[1]Infrastructure!N1782","v":0},{"$f":"[1]Infrastructure!O1782","v":0},{"$f":"[1]Infrastructure!Q1782","v":0},{"$f":"[1]Infrastructure!R1782","v":0},{"$f":"[1]Infrastructure!T1782","v":0},{"$f":"[1]Infrastructure!W1782","v":0},{"$f":"[1]Infrastructure!W1782","v":0},0,{"$f":"[1]Infrastructure!Z1782","v":0},{"$f":"[1]Infrastructure!Z1782","v":0},0,{"$f":"[1]Infrastructure!AB1782","v":0},{"$f":"[1]Infrastructure!AB1782","v":0},0,{"$f":"[1]Infrastructure!AC1782","v":0},{"$f":"[1]Infrastructure!AD1782","v":0},{"$f":"[1]Infrastructure!AE1782","v":0},{"$f":"[1]Infrastructure!AF1782","v":0},{"$f":"[1]Infrastructure!AG1782","v":0},{"$f":"[1]Infrastructure!AH1782","v":0},0]
[0,null,null,null,null,null,{"$f":"[1]Infrastructure!G1783","v":0},{"$f":"[1]Infrastructure!H1783","v":0},{"$f":"[1]Infrastructure!I1783","v":0},{"$f":"[1]Infrastructure!J1783","v":0},{"$f":"[1]Infrastructure!K1783","v":0},{"$f":"[1]Infrastructure!L1783","v":0},{"$f":"[1]Infrastructure!M1783","v":0},{"$f":"[1]Infrastructure!N1783","v":0},{"$f":"[1]Infrastructure!O1783","v":0},{"$f":"[1]Infrastructure!Q1783","v":0},{"$f":"[1]Infrastructure!R1783","v":0},{"$f":"[1]Infrastructure!T1783","v":0},{"$f":"[1]Infrastructure!W1783","v":0},{"$f":"[1]Infrastructure!W1783","v":0},0,{"$f":"[1]Infrastructure!Z1783","v":0},{"$f":"[1]Infrastructure!Z1783","v":0},0,{"$f":"[1]Infrastructure!AB1783","v":0},{"$f":"[1]Infrastructure!AB1783","v":0},0,{"$f":"[1]Infrastructure!AC1783","v":0},{"$f":"[1]Infrastructure!AD1783","v":0},{"$f":"[1]Infrastructure!AE1783","v":0},{"$f":"[1]Infrastructure!AF1783","v":0},{"$f":"[1]Infrastructure!AG1783","v":0},{"$f":"[1]Infrastructure!AH1783","v":0},0]
[0,null,null,null,null,null,{"$f":"[1]Infrastructure!G1784","v":0},{"$f":"[1]Infrastructure!H1784","v":0},{"$f":"[1]Infrastructure!I1784","v":0},{"$f":"[1]Infrastructure!J1784","v":0},{"$f":"[1]Infrastructure!K1784","v":0},{"$f":"[1]Infrastructure!L1784","v":0},{"$f":"[1]Infrastructure!M1784","v":0},{"$f":"[1]Infrastructure!N1784","v":0},{"$f":"[1]Infrastructure!O1784","v":0},{"$f":"[1]Infrastructure!Q1784","v":0},{"$f":"[1]Infrastructure!R1784","v":0},{"$f":"[1]Infrastructure!T1784","v":0},{"$f":"[1]Infrastructure!W1784","v":0},{"$f":"[1]Infrastructure!W1784","v":0},0,{"$f":"[1]Infrastructure!Z1784","v":0},{"$f":"[1]Infrastructure!Z1784","v":0},0,{"$f":"[1]Infrastructure!AB1784","v":0},{"$f":"[1]Infrastructure!AB1784","v":0},0,{"$f":"[1]Infrastructure!AC1784","v":0},{"$f":"[1]Infrastructure!AD1784","v":0},{"$f":"[1]Infrastructure!AE1784","v":0},{"$f":"[1]Infrastructure!AF1784","v":0},{"$f":"[1]Infrastructure!AG1784","v":0},{"$f":"[1]Infrastructure!AH1784","v":0},0]
[0,null,null,null,null,null,{"$f":"[1]Infrastructure!G1785","v":0},{"$f":"[1]Infrastructure!H1785","v":0},{"$f":"[1]Infrastructure!I1785","v":0},{"$f":"[1]Infrastructure!J1785","v":0},{"$f":"[1]Infrastructure!K1785","v":0},{"$f":"[1]Infrastructure!L1785","v":0},{"$f":"[1]Infrastructure!M1785","v":0},{"$f":"[1]Infrastructure!N1785","v":0},{"$f":"[1]Infrastructure!O1785","v":0},{"$f":"[1]Infrastructure!Q1785","v":0},{"$f":"[1]Infrastructure!R1785","v":0},{"$f":"[1]Infrastructure!T1785","v":0},{"$f":"[1]Infrastructure!W1785","v":0},{"$f":"[1]Infrastructure!W1785","v":0},0,{"$f":"[1]Infrastructure!Z1785","v":0},{"$f":"[1]Infrastructure!Z1785","v":0},0,{"$f":"[1]Infrastructure!AB1785","v":0},{"$f":"[1]Infrastructure!AB1785","v":0},0,{"$f":"[1]Infrastructure!AC1785","v":0},{"$f":"[1]Infrastructure!AD1785","v":0},{"$f":"[1]Infrastructure!AE1785","v":0},{"$f":"[1]Infrastructure!AF1785","v":0},{"$f":"[1]Infrastructure!AG1785","v":0},{"$f":"[1]Infrastructure!AH1785","v":0},0]
[0,null,null,null,null,null,{"$f":"[1]Infrastructure!G1786","v":0},{"$f":"[1]Infrastructure!H1786","v":0},{"$f":"[1]Infrastructure!I1786","v":0},{"$f":"[1]Infrastructure!J1786","v":0},{"$f":"[1]Infrastructure!K1786","v":0},{"$f":"[1]Infrastructure!L1786","v":0},{"$f":"[1]Infrastructure!M1786","v":0},{"$f":"[1]Infrastructure!N1786","v":0},{"$f":"[1]Infrastructure!O1786","v":0},{"$f":"[1]Infrastructure!Q1786","v":0},{"$f":"[1]Infrastructure!R1786","v":0},{"$f":"[1]Infrastructure!T1786","v":0},{"$f":"[1]Infrastructure!W1786","v":0},{"$f":"[1]Infrastructure!W1786","v":0},0,{"$f":"[1]Infrastructure!Z1786","v":0},{"$f":"[1]Infrastructure!Z1786","v":0},0,{"$f":"[1]Infrastructure!AB1786","v":0},{"$f":"[1]Infrastructure!AB1786","v":0},0,{"$f":"[1]Infrastructure!AC1786","v":0},{"$f":"[1]Infrastructure!AD1786","v":0},{"$f":"[1]Infrastructure!AE1786","v":0},{"$f":"[1]Infrastructure!AF1786","v":0},{"$f":"[1]Infrastructure!AG1786","v":0},{"$f":"[1]Infrastructure!AH1786","v":0},0]
[0,null,null,null,null,null,{"$f":"[1]Infrastructure!G1787","v":0},{"$f":"[1]Infrastructure!H1787","v":0},{"$f":"[1]Infrastructure!I1787","v":0},{"$f":"[1]Infrastructure!J1787","v":0},{"$f":"[1]Infrastructure!K1787","v":0},{"$f":"[1]Infrastructure!L1787","v":0},{"$f":"[1]Infrastructure!M1787","v":0},{"$f":"[1]Infrastructure!N1787","v":0},{"$f":"[1]Infrastructure!O1787","v":0},{"$f":"[1]Infrastructure!Q1787","v":0},{"$f":"[1]Infrastructure!R1787","v":0},{"$f":"[1]Infrastructure!T1787","v":0},{"$f":"[1]Infrastructure!W1787","v":0},{"$f":"[1]Infrastructure!W1787","v":0},0,{"$f":"[1]Infrastructure!Z1787","v":0},{"$f":"[1]Infrastructure!Z1787","v":0},0,{"$f":"[1]Infrastructure!AB1787","v":0},{"$f":"[1]Infrastructure!AB1787","v":0},0,{"$f":"[1]Infrastructure!AC1787","v":0},{"$f":"[1]Infrastructure!AD1787","v":0},{"$f":"[1]Infrastructure!AE1787","v":0},{"$f":"[1]Infrastructure!AF1787","v":0},{"$f":"[1]Infrastructure!AG1787","v":0},{"$f":"[1]Infrastructure!AH1787","v":0},0]
[0,null,null,null,null,null,{"$f":"[1]Infrastructure!G1788","v":0},{"$f":"[1]Infrastructure!H1788","v":0},{"$f":"[1]Infrastructure!I1788","v":0},{"$f":"[1]Infrastructure!J1788","v":0},{"$f":"[1]Infrastructure!K1788","v":0},{"$f":"[1]Infrastructure!L1788","v":0},{"$f":"[1]Infrastructure!M1788","v":0},{"$f":"[1]Infrastructure!N1788","v":0},{"$f":"[1]Infrastructure!O1788","v":0},{"$f":"[1]Infrastructure!Q1788","v":0},{"$f":"[1]Infrastructure!R1788","v":0},{"$f":"[1]Infrastructure!T1788","v":0},{"$f":"[1]Infrastructure!W1788","v":0},{"$f":"[1]Infrastructure!W1788","v":0},0,{"$f":"[1]Infrastructure!Z1788","v":0},{"$f":"[1]Infrastructure!Z1788","v":0},0,{"$f":"[1]Infrastructure!AB1788","v":0},{"$f":"[1]Infrastructure!AB1788","v":0},0,{"$f":"[1]Infrastructure!AC1788","v":0},{"$f":"[1]Infrastructure!AD1788","v":0},{"$f":"[1]Infrastructure!AE1788","v":0},{"$f":"[1]Infrastructure!AF1788","v":0},{"$f":"[1]Infrastructure!AG1788","v":0},{"$f":"[1]Infrastructure!AH1788","v":0},0]
[0,null,null,null,null,null,{"$f":"[1]Infrastructure!G1789","v":0},{"$f":"[1]Infrastructure!H1789","v":0},{"$f":"[1]Infrastructure!I1789","v":0},{"$f":"[1]Infrastructure!J1789","v":0},{"$f":"[1]Infrastructure!K1789","v":0},{"$f":"[1]Infrastructure!L1789","v":0},{"$f":"[1]Infrastructure!M1789","v":0},{"$f":"[1]Infrastructure!N1789","v":0},{"$f":"[1]Infrastructure!O1789","v":0},{"$f":"[1]Infrastructure!Q1789","v":0},{"$f":"[1]Infrastructure!R1789","v":0},{"$f":"[1]Infrastructure!T1789","v":0},{"$f":"[1]Infrastructure!W1789","v":0},{"$f":"[1]Infrastructure!W1789","v":0},0,{"$f":"[1]Infrastructure!Z1789","v":0},{"$f":"[1]Infrastructure!Z1789","v":0},0,{"$f":"[1]Infrastructure!AB1789","v":0},{"$f":"[1]Infrastructure!AB1789","v":0},0,{"$f":"[1]Infrastructure!AC1789","v":0},{"$f":"[1]Infrastructure!AD1789","v":0},{"$f":"[1]Infrastructure!AE1789","v":0},{"$f":"[1]Infrastructure!AF1789","v":0},{"$f":"[1]Infrastructure!AG1789","v":0},{"$f":"[1]Infrastructure!AH1789","v":0},0]
[0,null,null,null,null,null,{"$f":"[1]Infrastructure!G1790","v":0},{"$f":"[1]Infrastructure!H1790","v":0},{"$f":"[1]Infrastructure!I1790","v":0},{"$f":"[1]Infrastructure!J1790","v":0},{"$f":"[1]Infrastructure!K1790","v":0},{"$f":"[1]Infrastructure!L1790","v":0},{"$f":"[1]Infrastructure!M1790","v":0},{"$f":"[1]Infrastructure!N1790","v":0},{"$f":"[1]Infrastructure!O1790","v":0},{"$f":"[1]Infrastructure!Q1790","v":0},{"$f":"[1]Infrastructure!R1790","v":0},{"$f":"[1]Infrastructure!T1790","v":0},{"$f":"[1]Infrastructure!W1790","v":0},{"$f":"[1]Infrastructure!W1790","v":0},0,{"$f":"[1]Infrastructure!Z1790","v":0},{"$f":"[1]Infrastructure!Z1790","v":0},0,{"$f":"[1]Infrastructure!AB1790","v":0},{"$f":"[1]Infrastructure!AB1790","v":0},0,{"$f":"[1]Infrastructure!AC1790","v":0},{"$f":"[1]Infrastructure!AD1790","v":0},{"$f":"[1]Infrastructure!AE1790","v":0},{"$f":"[1]Infrastructure!AF1790","v":0},{"$f":"[1]Infrastructure!AG1790","v":0},{"$f":"[1]Infrastructure!AH1790","v":0},0]
[0,null,null,null,null,null,{"$f":"[1]Infrastructure!G1791","v":0},{"$f":"[1]Infrastructure!H1791","v":0},{"$f":"[1]Infrastructure!I1791","v":0},{"$f":"[1]Infrastructure!J1791","v":0},{"$f":"[1]Infrastructure!K1791","v":0},{"$f":"[1]Infrastructure!L1791","v":0},{"$f":"[1]Infrastructure!M1791","v":0},{"$f":"[1]Infrastructure!N1791","v":0},{"$f":"[1]Infrastructure!O1791","v":0},{"$f":"[1]Infrastructure!Q1791","v":0},{"$f":"[1]Infrastructure!R1791","v":0},{"$f":"[1]Infrastructure!T1791","v":0},{"$f":"[1]Infrastructure!W1791","v":0},{"$f":"[1]Infrastructure!W1791","v":0},0,{"$f":"[1]Infrastructure!Z1791","v":0},{"$f":"[1]Infrastructure!Z1791","v":0},0,{"$f":"[1]Infrastructure!AB1791","v":0},{"$f":"[1]Infrastructure!AB1791","v":0},0,{"$f":"[1]Infrastructure!AC1791","v":0},{"$f":"[1]Infrastructure!AD1791","v":0},{"$f":"[1]Infrastructure!AE1791","v":0},{"$f":"[1]Infrastructure!AF1791","v":0},{"$f":"[1]Infrastructure!AG1791","v":0},{"$f":"[1]Infrastructure!AH1791","v":0},0]
[0,null,null,null,null,null,{"$f":"[1]Infrastructure!G1792","v":0},{"$f":"[1]Infrastructure!H1792","v":0},{"$f":"[1]Infrastructure!I1792","v":0},{"$f":"[1]Infrastructure!J1792","v":0},{"$f":"[1]Infrastructure!K1792","v":0},{"$f":"[1]Infrastructure!L1792","v":0},{"$f":"[1]Infrastructure!M1792","v":0},{"$f":"[1]Infrastructure!N1792","v":0},{"$f":"[1]Infrastructure!O1792","v":0},{"$f":"[1]Infrastructure!Q1792","v":0},{"$f":"[1]Infrastructure!R1792","v":0},{"$f":"[1]Infrastructure!T1792","v":0},{"$f":"[1]Infrastructure!W1792","v":0},{"$f":"[1]Infrastructure!W1792","v":0},0,{"$f":"[1]Infrastructure!Z1792","v":0},{"$f":"[1]Infrastructure!Z1792","v":0},0,{"$f":"[1]Infrastructure!AB1792","v":0},{"$f":"[1]Infrastructure!AB1792","v":0},0,{"$f":"[1]Infrastructure!AC1792","v":0},{"$f":"[1]Infrastructure!AD1792","v":0},{"$f":"[1]Infrastructure!AE1792","v":0},{"$f":"[1]Infrastructure!AF1792","v":0},{"$f":"[1]Infrastructure!AG1792","v":0},{"$f":"[1]Infrastructure!AH1792","v":0},0]
[0,null,null,null,null,null,{"$f":"[1]Infrastructure!G1793","v":0},{"$f":"[1]Infrastructure!H1793","v":0},{"$f":"[1]Infrastructure!I1793","v":0},{"$f":"[1]Infrastructure!J1793","v":0},{"$f":"[1]Infrastructure!K1793","v":0},{"$f":"[1]Infrastructure!L1793","v":0},{"$f":"[1]Infrastructure!M1793","v":0},{"$f":"[1]Infrastructure!N1793","v":0},{"$f":"[1]Infrastructure!O1793","v":0},{"$f":"[1]Infrastructure!Q1793","v":0},{"$f":"[1]Infrastructure!R1793","v":0},{"$f":"[1]Infrastructure!T1793","v":0},{"$f":"[1]Infrastructure!W1793","v":0},{"$f":"[1]Infrastructure!W1793","v":0},0,{"$f":"[1]Infrastructure!Z1793","v":0},{"$f":"[1]Infrastructure!Z1793","v":0},0,{"$f":"[1]Infrastructure!AB1793","v":0},{"$f":"[1]Infrastructure!AB1793","v":0},0,{"$f":"[1]Infrastructure!AC1793","v":0},{"$f":"[1]Infrastructure!AD1793","v":0},{"$f":"[1]Infrastructure!AE1793","v":0},{"$f":"[1]Infrastructure!AF1793","v":0},{"$f":"[1]Infrastructure!AG1793","v":0},{"$f":"[1]Infrastructure!AH1793","v":0},0]
[0,null,null,null,null,null,{"$f":"[1]Infrastructure!G1794","v":0},{"$f":"[1]Infrastructure!H1794","v":0},{"$f":"[1]Infrastructure!I1794","v":0},{"$f":"[1]Infrastructure!J1794","v":0},{"$f":"[1]Infrastructure!K1794","v":0},{"$f":"[1]Infrastructure!L1794","v":0},{"$f":"[1]Infrastructure!M1794","v":0},{"$f":"[1]Infrastructure!N1794","v":0},{"$f":"[1]Infrastructure!O1794","v":0},{"$f":"[1]Infrastructure!Q1794","v":0},{"$f":"[1]Infrastructure!R1794","v":0},{"$f":"[1]Infrastructure!T1794","v":0},{"$f":"[1]Infrastructure!W1794","v":0},{"$f":"[1]Infrastructure!W1794","v":0},0,{"$f":"[1]Infrastructure!Z1794","v":0},{"$f":"[1]Infrastructure!Z1794","v":0},0,{"$f":"[1]Infrastructure!AB1794","v":0},{"$f":"[1]Infrastructure!AB1794","v":0},0,{"$f":"[1]Infrastructure!AC1794","v":0},{"$f":"[1]Infrastructure!AD1794","v":0},{"$f":"[1]Infrastructure!AE1794","v":0},{"$f":"[1]Infrastructure!AF1794","v":0},{"$f":"[1]Infrastructure!AG1794","v":0},{"$f":"[1]Infrastructure!AH1794","v":0},0]
[0,null,null,null,null,null,{"$f":"[1]Infrastructure!G1795","v":0},{"$f":"[1]Infrastructure!H1795","v":0},{"$f":"[1]Infrastructure!I1795","v":0},{"$f":"[1]Infrastructure!J1795","v":0},{"$f":"[1]Infrastructure!K1795","v":0},{"$f":"[1]Infrastructure!L1795","v":0},{"$f":"[1]Infrastructure!M1795","v":0},{"$f":"[1]Infrastructure!N1795","v":0},{"$f":"[1]Infrastructure!O1795","v":0},{"$f":"[1]Infrastructure!Q1795","v":0},{"$f":"[1]Infrastructure!R1795","v":0},{"$f":"[1]Infrastructure!T1795","v":0},{"$f":"[1]Infrastructure!W1795","v":0},{"$f":"[1]Infrastructure!W1795","v":0},0,{"$f":"[1]Infrastructure!Z1795","v":0},{"$f":"[1]Infrastructure!Z1795","v":0},0,{"$f":"[1]Infrastructure!AB1795","v":0},{"$f":"[1]Infrastructure!AB1795","v":0},0,{"$f":"[1]Infrastructure!AC1795","v":0},{"$f":"[1]Infrastructure!AD1795","v":0},{"$f":"[1]Infrastructure!AE1795","v":0},{"$f":"[1]Infrastructure!AF1795","v":0},{"$f":"[1]Infrastructure!AG1795","v":0},{"$f":"[1]Infrastructure!AH1795","v":0},0]
[0,null,null,null,null,null,{"$f":"[1]Infrastructure!G1796","v":0},{"$f":"[1]Infrastructure!H1796","v":0},{"$f":"[1]Infrastructure!I1796","v":0},{"$f":"[1]Infrastructure!J1796","v":0},{"$f":"[1]Infrastructure!K1796","v":0},{"$f":"[1]Infrastructure!L1796","v":0},{"$f":"[1]Infrastructure!M1796","v":0},{"$f":"[1]Infrastructure!N1796","v":0},{"$f":"[1]Infrastructure!O1796","v":0},{"$f":"[1]Infrastructure!Q1796","v":0},{"$f":"[1]Infrastructure!R1796","v":0},{"$f":"[1]Infrastructure!T1796","v":0},{"$f":"[1]Infrastructure!W1796","v":0},{"$f":"[1]Infrastructure!W1796","v":0},0,{"$f":"[1]Infrastructure!Z1796","v":0},{"$f":"[1]Infrastructure!Z1796","v":0},0,{"$f":"[1]Infrastructure!AB1796","v":0},{"$f":"[1]Infrastructure!AB1796","v":0},0,{"$f":"[1]Infrastructure!AC1796","v":0},{"$f":"[1]Infrastructure!AD1796","v":0},{"$f":"[1]Infrastructure!AE1796","v":0},{"$f":"[1]Infrastructure!AF1796","v":0},{"$f":"[1]Infrastructure!AG1796","v":0},{"$f":"[1]Infrastructure!AH1796","v":0},0]
[0,null,null,null,null,null,{"$f":"[1]Infrastructure!G1797","v":0},{"$f":"[1]Infrastructure!H1797","v":0},{"$f":"[1]Infrastructure!I1797","v":0},{"$f":"[1]Infrastructure!J1797","v":0},{"$f":"[1]Infrastructure!K1797","v":0},{"$f":"[1]Infrastructure!L1797","v":0},{"$f":"[1]Infrastructure!M1797","v":0},{"$f":"[1]Infrastructure!N1797","v":0},{"$f":"[1]Infrastructure!O1797","v":0},{"$f":"[1]Infrastructure!Q1797","v":0},{"$f":"[1]Infrastructure!R1797","v":0},{"$f":"[1]Infrastructure!T1797","v":0},{"$f":"[1]Infrastructure!W1797","v":0},{"$f":"[1]Infrastructure!W1797","v":0},0,{"$f":"[1]Infrastructure!Z1797","v":0},{"$f":"[1]Infrastructure!Z1797","v":0},0,{"$f":"[1]Infrastructure!AB1797","v":0},{"$f":"[1]Infrastructure!AB1797","v":0},0,{"$f":"[1]Infrastructure!AC1797","v":0},{"$f":"[1]Infrastructure!AD1797","v":0},{"$f":"[1]Infrastructure!AE1797","v":0},{"$f":"[1]Infrastructure!AF1797","v":0},{"$f":"[1]Infrastructure!AG1797","v":0},{"$f":"[1]Infrastructure!AH1797","v":0},0]
[0,null,null,null,null,null,{"$f":"[1]Infrastructure!G1798","v":0},{"$f":"[1]Infrastructure!H1798","v":0},{"$f":"[1]Infrastructure!I1798","v":0},{"$f":"[1]Infrastructure!J1798","v":0},{"$f":"[1]Infrastructure!K1798","v":0},{"$f":"[1]Infrastructure!L1798","v":0},{"$f":"[1]Infrastructure!M1798","v":0},{"$f":"[1]Infrastructure!N1798","v":0},{"$f":"[1]Infrastructure!O1798","v":0},{"$f":"[1]Infrastructure!Q1798","v":0},{"$f":"[1]Infrastructure!R1798","v":0},{"$f":"[1]Infrastructure!T1798","v":0},{"$f":"[1]Infrastructure!W1798","v":0},{"$f":"[1]Infrastructure!W1798","v":0},0,{"$f":"[1]Infrastructure!Z1798","v":0},{"$f":"[1]Infrastructure!Z1798","v":0},0,{"$f":"[1]Infrastructure!AB1798","v":0},{"$f":"[1]Infrastructure!AB1798","v":0},0,{"$f":"[1]Infrastructure!AC1798","v":0},{"$f":"[1]Infrastructure!AD1798","v":0},{"$f":"[1]Infrastructure!AE1798","v":0},{"$f":"[1]Infrastructure!AF1798","v":0},{"$f":"[1]Infrastructure!AG1798","v":0},{"$f":"[1]Infrastructure!AH1798","v":0},0]
[0,null,null,null,null,null,{"$f":"[1]Infrastructure!G1799","v":0},{"$f":"[1]Infrastructure!H1799","v":0},{"$f":"[1]Infrastructure!I1799","v":0},{"$f":"[1]Infrastructure!J1799","v":0},{"$f":"[1]Infrastructure!K1799","v":0},{"$f":"[1]Infrastructure!L1799","v":0},{"$f":"[1]Infrastructure!M1799","v":0},{"$f":"[1]Infrastructure!N1799","v":0},{"$f":"[1]Infrastructure!O1799","v":0},{"$f":"[1]Infrastructure!Q1799","v":0},{"$f":"[1]Infrastructure!R1799","v":0},{"$f":"[1]Infrastructure!T1799","v":0},{"$f":"[1]Infrastructure!W1799","v":0},{"$f":"[1]Infrastructure!W1799","v":0},0,{"$f":"[1]Infrastructure!Z1799","v":0},{"$f":"[1]Infrastructure!Z1799","v":0},0,{"$f":"[1]Infrastructure!AB1799","v":0},{"$f":"[1]Infrastructure!AB1799","v":0},0,{"$f":"[1]Infrastructure!AC1799","v":0},{"$f":"[1]Infrastructure!AD1799","v":0},{"$f":"[1]Infrastructure!AE1799","v":0},{"$f":"[1]Infrastructure!AF1799","v":0},{"$f":"[1]Infrastructure!AG1799","v":0},{"$f":"[1]Infrastructure!AH1799","v":0},0]
[0,null,null,null,null,null,{"$f":"[1]Infrastructure!G1800","v":0},{"$f":"[1]Infrastructure!H1800","v":0},{"$f":"[1]Infrastructure!I1800","v":0},{"$f":"[1]Infrastructure!J1800","v":0},{"$f":"[1]Infrastructure!K1800","v":0},{"$f":"[1]Infrastructure!L1800","v":0},{"$f":"[1]Infrastructure!M1800","v":0},{"$f":"[1]Infrastructure!N1800","v":0},{"$f":"[1]Infrastructure!O1800","v":0},{"$f":"[1]Infrastructure!Q1800","v":0},{"$f":"[1]Infrastructure!R1800","v":0},{"$f":"[1]Infrastructure!T1800","v":0},{"$f":"[1]Infrastructure!W1800","v":0},{"$f":"[1]Infrastructure!W1800","v":0},0,{"$f":"[1]Infrastructure!Z1800","v":0},{"$f":"[1]Infrastructure!Z1800","v":0},0,{"$f":"[1]Infrastructure!AB1800","v":0},{"$f":"[1]Infrastructure!AB1800","v":0},0,{"$f":"[1]Infrastructure!AC1800","v":0},{"$f":"[1]Infrastructure!AD1800","v":0},{"$f":"[1]Infrastructure!AE1800","v":0},{"$f":"[1]Infrastructure!AF1800","v":0},{"$f":"[1]Infrastructure!AG1800","v":0},{"$f":"[1]Infrastructure!AH1800","v":0},0]
[0,null,null,null,null,null,{"$f":"[1]Infrastructure!G1801","v":0},{"$f":"[1]Infrastructure!H1801","v":0},{"$f":"[1]Infrastructure!I1801","v":0},{"$f":"[1]Infrastructure!J1801","v":0},{"$f":"[1]Infrastructure!K1801","v":0},{"$f":"[1]Infrastructure!L1801","v":0},{"$f":"[1]Infrastructure!M1801","v":0},{"$f":"[1]Infrastructure!N1801","v":0},{"$f":"[1]Infrastructure!O1801","v":0},{"$f":"[1]Infrastructure!Q1801","v":0},{"$f":"[1]Infrastructure!R1801","v":0},{"$f":"[1]Infrastructure!T1801","v":0},{"$f":"[1]Infrastructure!W1801","v":0},{"$f":"[1]Infrastructure!W1801","v":0},0,{"$f":"[1]Infrastructure!Z1801","v":0},{"$f":"[1]Infrastructure!Z1801","v":0},0,{"$f":"[1]Infrastructure!AB1801","v":0},{"$f":"[1]Infrastructure!AB1801","v":0},0,{"$f":"[1]Infrastructure!AC1801","v":0},{"$f":"[1]Infrastructure!AD1801","v":0},{"$f":"[1]Infrastructure!AE1801","v":0},{"$f":"[1]Infrastructure!AF1801","v":0},{"$f":"[1]Infrastructure!AG1801","v":0},{"$f":"[1]Infrastructure!AH1801","v":0},0]
[0,null,null,null,null,null,{"$f":"[1]Infrastructure!G1802","v":0},{"$f":"[1]Infrastructure!H1802","v":0},{"$f":"[1]Infrastructure!I1802","v":0},{"$f":"[1]Infrastructure!J1802","v":0},{"$f":"[1]Infrastructure!K1802","v":0},{"$f":"[1]Infrastructure!L1802","v":0},{"$f":"[1]Infrastructure!M1802","v":0},{"$f":"[1]Infrastructure!N1802","v":0},{"$f":"[1]Infrastructure!O1802","v":0},{"$f":"[1]Infrastructure!Q1802","v":0},{"$f":"[1]Infrastructure!R1802","v":0},{"$f":"[1]Infrastructure!T1802","v":0},{"$f":"[1]Infrastructure!W1802","v":0},{"$f":"[1]Infrastructure!W1802","v":0},0,{"$f":"[1]Infrastructure!Z1802","v":0},{"$f":"[1]Infrastructure!Z1802","v":0},0,{"$f":"[1]Infrastructure!AB1802","v":0},{"$f":"[1]Infrastructure!AB1802","v":0},0,{"$f":"[1]Infrastructure!AC1802","v":0},{"$f":"[1]Infrastructure!AD1802","v":0},{"$f":"[1]Infrastructure!AE1802","v":0},{"$f":"[1]Infrastructure!AF1802","v":0},{"$f":"[1]Infrastructure!AG1802","v":0},{"$f":"[1]Infrastructure!AH1802","v":0},0]
[0,null,null,null,null,null,{"$f":"[1]Infrastructure!G1803","v":0},{"$f":"[1]Infrastructure!H1803","v":0},{"$f":"[1]Infrastructure!I1803","v":0},{"$f":"[1]Infrastructure!J1803","v":0},{"$f":"[1]Infrastructure!K1803","v":0},{"$f":"[1]Infrastructure!L1803","v":0},{"$f":"[1]Infrastructure!M1803","v":0},{"$f":"[1]Infrastructure!N1803","v":0},{"$f":"[1]Infrastructure!O1803","v":0},{"$f":"[1]Infrastructure!Q1803","v":0},{"$f":"[1]Infrastructure!R1803","v":0},{"$f":"[1]Infrastructure!T1803","v":0},{"$f":"[1]Infrastructure!W1803","v":0},{"$f":"[1]Infrastructure!W1803","v":0},0,{"$f":"[1]Infrastructure!Z1803","v":0},{"$f":"[1]Infrastructure!Z1803","v":0},0,{"$f":"[1]Infrastructure!AB1803","v":0},{"$f":"[1]Infrastructure!AB1803","v":0},0,{"$f":"[1]Infrastructure!AC1803","v":0},{"$f":"[1]Infrastructure!AD1803","v":0},{"$f":"[1]Infrastructure!AE1803","v":0},{"$f":"[1]Infrastructure!AF1803","v":0},{"$f":"[1]Infrastructure!AG1803","v":0},{"$f":"[1]Infrastructure!AH1803","v":0},0]
[{"$f":"IF(SUM(O1804:AH1804),1,0)","v":0},null,null,null,null,null,{"$f":"[1]Infrastructure!G1804","v":0},{"$f":"[1]Infrastructure!H1804","v":0},{"$f":"[1]Infrastructure!I1804","v":0},{"$f":"[1]Infrastructure!J1804","v":0},{"$f":"[1]Infrastructure!K1804","v":0},{"$f":"[1]Infrastructure!L1804","v":0},{"$f":"[1]Infrastructure!M1804","v":0},{"$f":"[1]Infrastructure!N1804","v":0},{"$f":"[1]Infrastructure!O1804","v":0},{"$f":"[1]Infrastructure!Q1804","v":0},{"$f":"[1]Infrastructure!R1804","v":0},{"$f":"[1]Infrastructure!T1804","v":0},{"$f":"[1]Infrastructure!W1804","v":0},{"$f":"[1]Infrastructure!W1804","v":0},0,{"$f":"[1]Infrastructure!Z1804","v":0},{"$f":"[1]Infrastructure!Z1804","v":0},0,{"$f":"[1]Infrastructure!AB1804","v":0},{"$f":"[1]Infrastructure!AB1804","v":0},0,{"$f":"[1]Infrastructure!AC1804","v":0},{"$f":"[1]Infrastructure!AD1804","v":0},{"$f":"[1]Infrastructure!AE1804","v":0},{"$f":"[1]Infrastructure!AF1804","v":0},{"$f":"[1]Infrastructure!AG1804","v":0},{"$f":"[1]Infrastructure!AH1804","v":0},0]
[0,null,null,null,null,null,{"$f":"[1]Infrastructure!G1805","v":0},{"$f":"[1]Infrastructure!H1805","v":0},{"$f":"[1]Infrastructure!I1805","v":0},{"$f":"[1]Infrastructure!J1805","v":0},{"$f":"[1]Infrastructure!K1805","v":0},{"$f":"[1]Infrastructure!L1805","v":0},{"$f":"[1]Infrastructure!M1805","v":0},{"$f":"[1]Infrastructure!N1805","v":0},{"$f":"[1]Infrastructure!O1805","v":0},{"$f":"[1]Infrastructure!Q1805","v":0},{"$f":"[1]Infrastructure!R1805","v":0},{"$f":"[1]Infrastructure!T1805","v":0},{"$f":"[1]Infrastructure!W1805","v":0},{"$f":"[1]Infrastructure!W1805","v":0},0,{"$f":"[1]Infrastructure!Z1805","v":0},{"$f":"[1]Infrastructure!Z1805","v":0},0,{"$f":"[1]Infrastructure!AB1805","v":0},{"$f":"[1]Infrastructure!AB1805","v":0},0,{"$f":"[1]Infrastructure!AC1805","v":0},{"$f":"[1]Infrastructure!AD1805","v":0},{"$f":"[1]Infrastructure!AE1805","v":0},{"$f":"[1]Infrastructure!AF1805","v":0},{"$f":"[1]Infrastructure!AG1805","v":0},{"$f":"[1]Infrastructure!AH1805","v":0},0]
[0,null,null,null,null,null,{"$f":"[1]Infrastructure!G1806","v":0},{"$f":"[1]Infrastructure!H1806","v":0},{"$f":"[1]Infrastructure!I1806","v":0},{"$f":"[1]Infrastructure!J1806","v":0},{"$f":"[1]Infrastructure!K1806","v":0},{"$f":"[1]Infrastructure!L1806","v":0},{"$f":"[1]Infrastructure!M1806","v":0},{"$f":"[1]Infrastructure!N1806","v":0},{"$f":"[1]Infrastructure!O1806","v":0},{"$f":"[1]Infrastructure!Q1806","v":0},{"$f":"[1]Infrastructure!R1806","v":0},{"$f":"[1]Infrastructure!T1806","v":0},{"$f":"[1]Infrastructure!W1806","v":0},{"$f":"[1]Infrastructure!W1806","v":0},0,{"$f":"[1]Infrastructure!Z1806","v":0},{"$f":"[1]Infrastructure!Z1806","v":0},0,{"$f":"[1]Infrastructure!AB1806","v":0},{"$f":"[1]Infrastructure!AB1806","v":0},0,{"$f":"[1]Infrastructure!AC1806","v":0},{"$f":"[1]Infrastructure!AD1806","v":0},{"$f":"[1]Infrastructure!AE1806","v":0},{"$f":"[1]Infrastructure!AF1806","v":0},{"$f":"[1]Infrastructure!AG1806","v":0},{"$f":"[1]Infrastructure!AH1806","v":0},0]
[0,null,null,null,null,null,{"$f":"[1]Infrastructure!G1807","v":0},{"$f":"[1]Infrastructure!H1807","v":0},{"$f":"[1]Infrastructure!I1807","v":0},{"$f":"[1]Infrastructure!J1807","v":0},{"$f":"[1]Infrastructure!K1807","v":0},{"$f":"[1]Infrastructure!L1807","v":0},{"$f":"[1]Infrastructure!M1807","v":0},{"$f":"[1]Infrastructure!N1807","v":0},{"$f":"[1]Infrastructure!O1807","v":0},{"$f":"[1]Infrastructure!Q1807","v":0},{"$f":"[1]Infrastructure!R1807","v":0},{"$f":"[1]Infrastructure!T1807","v":0},{"$f":"[1]Infrastructure!W1807","v":0},{"$f":"[1]Infrastructure!W1807","v":0},0,{"$f":"[1]Infrastructure!Z1807","v":0},{"$f":"[1]Infrastructure!Z1807","v":0},0,{"$f":"[1]Infrastructure!AB1807","v":0},{"$f":"[1]Infrastructure!AB1807","v":0},0,{"$f":"[1]Infrastructure!AC1807","v":0},{"$f":"[1]Infrastructure!AD1807","v":0},{"$f":"[1]Infrastructure!AE1807","v":0},{"$f":"[1]Infrastructure!AF1807","v":0},{"$f":"[1]Infrastructure!AG1807","v":0},{"$f":"[1]Infrastructure!AH1807","v":0},0]
[0,null,null,null,null,null,{"$f":"[1]Infrastructure!G1808","v":0},{"$f":"[1]Infrastructure!H1808","v":0},{"$f":"[1]Infrastructure!I1808","v":0},{"$f":"[1]Infrastructure!J1808","v":0},{"$f":"[1]Infrastructure!K1808","v":0},{"$f":"[1]Infrastructure!L1808","v":0},{"$f":"[1]Infrastructure!M1808","v":0},{"$f":"[1]Infrastructure!N1808","v":0},{"$f":"[1]Infrastructure!O1808","v":0},{"$f":"[1]Infrastructure!Q1808","v":0},{"$f":"[1]Infrastructure!R1808","v":0},{"$f":"[1]Infrastructure!T1808","v":0},{"$f":"[1]Infrastructure!W1808","v":0},{"$f":"[1]Infrastructure!W1808","v":0},0,{"$f":"[1]Infrastructure!Z1808","v":0},{"$f":"[1]Infrastructure!Z1808","v":0},0,{"$f":"[1]Infrastructure!AB1808","v":0},{"$f":"[1]Infrastructure!AB1808","v":0},0,{"$f":"[1]Infrastructure!AC1808","v":0},{"$f":"[1]Infrastructure!AD1808","v":0},{"$f":"[1]Infrastructure!AE1808","v":0},{"$f":"[1]Infrastructure!AF1808","v":0},{"$f":"[1]Infrastructure!AG1808","v":0},{"$f":"[1]Infrastructure!AH1808","v":0},0]
[0,null,null,null,null,null,{"$f":"[1]Infrastructure!G1809","v":0},{"$f":"[1]Infrastructure!H1809","v":0},{"$f":"[1]Infrastructure!I1809","v":0},{"$f":"[1]Infrastructure!J1809","v":0},{"$f":"[1]Infrastructure!K1809","v":0},{"$f":"[1]Infrastructure!L1809","v":0},{"$f":"[1]Infrastructure!M1809","v":0},{"$f":"[1]Infrastructure!N1809","v":0},{"$f":"[1]Infrastructure!O1809","v":0},{"$f":"[1]Infrastructure!Q1809","v":0},{"$f":"[1]Infrastructure!R1809","v":0},{"$f":"[1]Infrastructure!T1809","v":0},{"$f":"[1]Infrastructure!W1809","v":0},{"$f":"[1]Infrastructure!W1809","v":0},0,{"$f":"[1]Infrastructure!Z1809","v":0},{"$f":"[1]Infrastructure!Z1809","v":0},0,{"$f":"[1]Infrastructure!AB1809","v":0},{"$f":"[1]Infrastructure!AB1809","v":0},0,{"$f":"[1]Infrastructure!AC1809","v":0},{"$f":"[1]Infrastructure!AD1809","v":0},{"$f":"[1]Infrastructure!AE1809","v":0},{"$f":"[1]Infrastructure!AF1809","v":0},{"$f":"[1]Infrastructure!AG1809","v":0},{"$f":"[1]Infrastructure!AH1809","v":0},0]
[0,null,null,null,null,null,{"$f":"[1]Infrastructure!G1810","v":0},{"$f":"[1]Infrastructure!H1810","v":0},{"$f":"[1]Infrastructure!I1810","v":0},{"$f":"[1]Infrastructure!J1810","v":0},{"$f":"[1]Infrastructure!K1810","v":0},{"$f":"[1]Infrastructure!L1810","v":0},{"$f":"[1]Infrastructure!M1810","v":0},{"$f":"[1]Infrastructure!N1810","v":0},{"$f":"[1]Infrastructure!O1810","v":0},{"$f":"[1]Infrastructure!Q1810","v":0},{"$f":"[1]Infrastructure!R1810","v":0},{"$f":"[1]Infrastructure!T1810","v":0},{"$f":"[1]Infrastructure!W1810","v":0},{"$f":"[1]Infrastructure!W1810","v":0},0,{"$f":"[1]Infrastructure!Z1810","v":0},{"$f":"[1]Infrastructure!Z1810","v":0},0,{"$f":"[1]Infrastructure!AB1810","v":0},{"$f":"[1]Infrastructure!AB1810","v":0},0,{"$f":"[1]Infrastructure!AC1810","v":0},{"$f":"[1]Infrastructure!AD1810","v":0},{"$f":"[1]Infrastructure!AE1810","v":0},{"$f":"[1]Infrastructure!AF1810","v":0},{"$f":"[1]Infrastructure!AG1810","v":0},{"$f":"[1]Infrastructure!AH1810","v":0},0]
[0,null,null,null,null,null,{"$f":"[1]Infrastructure!G1811","v":0},{"$f":"[1]Infrastructure!H1811","v":0},{"$f":"[1]Infrastructure!I1811","v":0},{"$f":"[1]Infrastructure!J1811","v":0},{"$f":"[1]Infrastructure!K1811","v":0},{"$f":"[1]Infrastructure!L1811","v":0},{"$f":"[1]Infrastructure!M1811","v":0},{"$f":"[1]Infrastructure!N1811","v":0},{"$f":"[1]Infrastructure!O1811","v":0},{"$f":"[1]Infrastructure!Q1811","v":0},{"$f":"[1]Infrastructure!R1811","v":0},{"$f":"[1]Infrastructure!T1811","v":0},{"$f":"[1]Infrastructure!W1811","v":0},{"$f":"[1]Infrastructure!W1811","v":0},0,{"$f":"[1]Infrastructure!Z1811","v":0},{"$f":"[1]Infrastructure!Z1811","v":0},0,{"$f":"[1]Infrastructure!AB1811","v":0},{"$f":"[1]Infrastructure!AB1811","v":0},0,{"$f":"[1]Infrastructure!AC1811","v":0},{"$f":"[1]Infrastructure!AD1811","v":0},{"$f":"[1]Infrastructure!AE1811","v":0},{"$f":"[1]Infrastructure!AF1811","v":0},{"$f":"[1]Infrastructure!AG1811","v":0},{"$f":"[1]Infrastructure!AH1811","v":0},0]
[0,null,null,null,null,null,{"$f":"[1]Infrastructure!G1812","v":0},{"$f":"[1]Infrastructure!H1812","v":0},{"$f":"[1]Infrastructure!I1812","v":0},{"$f":"[1]Infrastructure!J1812","v":0},{"$f":"[1]Infrastructure!K1812","v":0},{"$f":"[1]Infrastructure!L1812","v":0},{"$f":"[1]Infrastructure!M1812","v":0},{"$f":"[1]Infrastructure!N1812","v":0},{"$f":"[1]Infrastructure!O1812","v":0},{"$f":"[1]Infrastructure!Q1812","v":0},{"$f":"[1]Infrastructure!R1812","v":0},{"$f":"[1]Infrastructure!T1812","v":0},{"$f":"[1]Infrastructure!W1812","v":0},{"$f":"[1]Infrastructure!W1812","v":0},0,{"$f":"[1]Infrastructure!Z1812","v":0},{"$f":"[1]Infrastructure!Z1812","v":0},0,{"$f":"[1]Infrastructure!AB1812","v":0},{"$f":"[1]Infrastructure!AB1812","v":0},0,{"$f":"[1]Infrastructure!AC1812","v":0},{"$f":"[1]Infrastructure!AD1812","v":0},{"$f":"[1]Infrastructure!AE1812","v":0},{"$f":"[1]Infrastructure!AF1812","v":0},{"$f":"[1]Infrastructure!AG1812","v":0},{"$f":"[1]Infrastructure!AH1812","v":0},0]
[0,null,null,null,null,null,{"$f":"[1]Infrastructure!G1813","v":0},{"$f":"[1]Infrastructure!H1813","v":0},{"$f":"[1]Infrastructure!I1813","v":0},{"$f":"[1]Infrastructure!J1813","v":0},{"$f":"[1]Infrastructure!K1813","v":0},{"$f":"[1]Infrastructure!L1813","v":0},{"$f":"[1]Infrastructure!M1813","v":0},{"$f":"[1]Infrastructure!N1813","v":0},{"$f":"[1]Infrastructure!O1813","v":0},{"$f":"[1]Infrastructure!Q1813","v":0},{"$f":"[1]Infrastructure!R1813","v":0},{"$f":"[1]Infrastructure!T1813","v":0},{"$f":"[1]Infrastructure!W1813","v":0},{"$f":"[1]Infrastructure!W1813","v":0},0,{"$f":"[1]Infrastructure!Z1813","v":0},{"$f":"[1]Infrastructure!Z1813","v":0},0,{"$f":"[1]Infrastructure!AB1813","v":0},{"$f":"[1]Infrastructure!AB1813","v":0},0,{"$f":"[1]Infrastructure!AC1813","v":0},{"$f":"[1]Infrastructure!AD1813","v":0},{"$f":"[1]Infrastructure!AE1813","v":0},{"$f":"[1]Infrastructure!AF1813","v":0},{"$f":"[1]Infrastructure!AG1813","v":0},{"$f":"[1]Infrastructure!AH1813","v":0},0]
[0,null,null,null,null,null,{"$f":"[1]Infrastructure!G1814","v":0},{"$f":"[1]Infrastructure!H1814","v":0},{"$f":"[1]Infrastructure!I1814","v":0},{"$f":"[1]Infrastructure!J1814","v":0},{"$f":"[1]Infrastructure!K1814","v":0},{"$f":"[1]Infrastructure!L1814","v":0},{"$f":"[1]Infrastructure!M1814","v":0},{"$f":"[1]Infrastructure!N1814","v":0},{"$f":"[1]Infrastructure!O1814","v":0},{"$f":"[1]Infrastructure!Q1814","v":0},{"$f":"[1]Infrastructure!R1814","v":0},{"$f":"[1]Infrastructure!T1814","v":0},{"$f":"[1]Infrastructure!W1814","v":0},{"$f":"[1]Infrastructure!W1814","v":0},0,{"$f":"[1]Infrastructure!Z1814","v":0},{"$f":"[1]Infrastructure!Z1814","v":0},0,{"$f":"[1]Infrastructure!AB1814","v":0},{"$f":"[1]Infrastructure!AB1814","v":0},0,{"$f":"[1]Infrastructure!AC1814","v":0},{"$f":"[1]Infrastructure!AD1814","v":0},{"$f":"[1]Infrastructure!AE1814","v":0},{"$f":"[1]Infrastructure!AF1814","v":0},{"$f":"[1]Infrastructure!AG1814","v":0},{"$f":"[1]Infrastructure!AH1814","v":0},0]
[0]
[1,null,null,null,null,"Total",null,null,null,null,null,null,null,null,{"$f":"SUM(O10,O612,O1214)","v":298152},{"$f":"SUM(P10,P612,P1214)","v":0},0,0,201285,201285,0,{"$f":"SUM(V10,V612,V1214)","v":58884},{"$f":"SUM(W10,W612,W1214)","v":58884},0,{"$f":"SUM(Y10,Y612,Y1214)","v":37983},{"$f":"SUM(Z10,Z612,Z1214)","v":37983},0,{"$f":"SUM(AB10,AB612,AB1214)","v":0},0,0,0,0,0,0]
[null,null,null,null,null,"1.","GPS coordinates can be obtained from google maps. Type the name or location of the project and right click on the map. Select what’s here option and GPS coordinates will be displayed."]
[null,null,null,null,null,"2.","Refers to the type of infrastructure being proposed, e.g. dam, strategic road, hospital, etc."]
[null,null,null,null,null,"3.","Refers to the asset being procurred or constructed, e.g. 50km of road or the number of beds a hospital can hold."]
[null,null,null,null,null,"4.","The project stage relates to the implementation readiness of the project, i.e. whether it is in the identification, feasibility, design, tender or construction phase."]

{"sheet":"ODA","index":32,"n_rows":361,"n_cols":26,"rows_kept":361,"cut":false,"hidden":true,"merged":[[6,8,6,14],[7,18,7,19],[8,12,8,13],[8,16,8,17],[8,14,8,15],[8,10,8,11],[7,12,7,17],[8,22,8,23],[8,24,8,25],[8,20,8,21],[7,20,7,25],[8,18,8,19]]}
[]
[]
[]
[]
[]
[null,null,null,null,null,"PE No",{"$f":"Settings!$O$2","v":"PE126"}]
[null,null,null,null,null,"Entity name",{"$f":"Settings!$E$2","v":"South African Revenue Service"},null,null,null,null,null,null,null,null,null,null,null,null,null,null,{"$f":"IF(Y361<X361/2,\"Complete outer year budget\",\"\")","v":""}]
[null,null,null,null,null,"R Thousand ",null,null,null,null,null,null,"Audited Outcomes",null,null,null,null,null,"Revised estimates",null,"Medium term estimates"]
[null,null,null,null,null,null,null,null,null,null,"Total Commitment",null,{"$f":"MyYearM3","v":"2022/23"},null,{"$f":"MyYearM2","v":"2023/24"},null,{"$f":"MyYearM1","v":"2024/25"},null,{"$f":"MyYear0","v":"2025/26"},null,{"$f":"MyYearP1","v":"2026/27"},null,{"$f":"MyYearP2","v":"2027/28"},null,{"$f":"MyYearP3","v":"2028/29"}]
["Hide/unhide","Item code","ItemCat",null,null,"Partner (Country)","Partner (Institution)","Project Name","Objective/Activity","Priorities","Currency","Amount (Forex)","Receipts (R)","Payment (R)","Receipts (R)","Payment (R)","Receipts (R)","Payment (R)","Receipts (R)","Payment (R)","Receipts (R)","Payment (R)","Receipts (R)","Payment (R)","Receipts (R)","Payment (R)"]
[{"$f":"IF(SUM(L11:Z11)>0,1,0)","v":0},null,null,null,null,{"$f":"[1]ODA!F11","v":0},{"$f":"[1]ODA!G11","v":0},{"$f":"[1]ODA!H11","v":0},{"$f":"[1]ODA!I11","v":0},{"$f":"[1]ODA!J11","v":0},{"$f":"[1]ODA!K11","v":0},{"$f":"[1]ODA!L11","v":0},{"$f":"[1]ODA!O11","v":0},{"$f":"[1]ODA!P11","v":0},{"$f":"[1]ODA!Q11","v":0},{"$f":"[1]ODA!R11","v":0},{"$f":"[1]ODA!S11","v":0},{"$f":"[1]ODA!T11","v":0},{"$f":"[1]ODA!U11","v":0},{"$f":"[1]ODA!V11","v":0},{"$f":"[1]ODA!W11","v":0},{"$f":"[1]ODA!X11","v":0},{"$f":"[1]ODA!Y11","v":0},{"$f":"[1]ODA!Z11","v":0},0,0]
[{"$f":"IF(SUM(L12:Z12)>0,1,0)","v":0},null,null,null,null,{"$f":"[1]ODA!F12","v":0},{"$f":"[1]ODA!G12","v":0},{"$f":"[1]ODA!H12","v":0},{"$f":"[1]ODA!I12","v":0},{"$f":"[1]ODA!J12","v":0},{"$f":"[1]ODA!K12","v":0},{"$f":"[1]ODA!L12","v":0},{"$f":"[1]ODA!O12","v":0},{"$f":"[1]ODA!P12","v":0},{"$f":"[1]ODA!Q12","v":0},{"$f":"[1]ODA!R12","v":0},{"$f":"[1]ODA!S12","v":0},{"$f":"[1]ODA!T12","v":0},{"$f":"[1]ODA!U12","v":0},{"$f":"[1]ODA!V12","v":0},{"$f":"[1]ODA!W12","v":0},{"$f":"[1]ODA!X12","v":0},{"$f":"[1]ODA!Y12","v":0},{"$f":"[1]ODA!Z12","v":0},0,0]
[0,null,null,null,null,{"$f":"[1]ODA!F13","v":0},{"$f":"[1]ODA!G13","v":0},{"$f":"[1]ODA!H13","v":0},{"$f":"[1]ODA!I13","v":0},{"$f":"[1]ODA!J13","v":0},{"$f":"[1]ODA!K13","v":0},{"$f":"[1]ODA!L13","v":0},{"$f":"[1]ODA!O13","v":0},{"$f":"[1]ODA!P13","v":0},{"$f":"[1]ODA!Q13","v":0},{"$f":"[1]ODA!R13","v":0},{"$f":"[1]ODA!S13","v":0},{"$f":"[1]ODA!T13","v":0},{"$f":"[1]ODA!U13","v":0},{"$f":"[1]ODA!V13","v":0},{"$f":"[1]ODA!W13","v":0},{"$f":"[1]ODA!X13","v":0},{"$f":"[1]ODA!Y13","v":0},{"$f":"[1]ODA!Z13","v":0},0,0]
[0,null,null,null,null,{"$f":"[1]ODA!F14","v":0},{"$f":"[1]ODA!G14","v":0},{"$f":"[1]ODA!H14","v":0},{"$f":"[1]ODA!I14","v":0},{"$f":"[1]ODA!J14","v":0},{"$f":"[1]ODA!K14","v":0},{"$f":"[1]ODA!L14","v":0},{"$f":"[1]ODA!O14","v":0},{"$f":"[1]ODA!P14","v":0},{"$f":"[1]ODA!Q14","v":0},{"$f":"[1]ODA!R14","v":0},{"$f":"[1]ODA!S14","v":0},{"$f":"[1]ODA!T14","v":0},{"$f":"[1]ODA!U14","v":0},{"$f":"[1]ODA!V14","v":0},{"$f":"[1]ODA!W14","v":0},{"$f":"[1]ODA!X14","v":0},{"$f":"[1]ODA!Y14","v":0},{"$f":"[1]ODA!Z14","v":0},0,0]
[0,null,null,null,null,{"$f":"[1]ODA!F15","v":0},{"$f":"[1]ODA!G15","v":0},{"$f":"[1]ODA!H15","v":0},{"$f":"[1]ODA!I15","v":0},{"$f":"[1]ODA!J15","v":0},{"$f":"[1]ODA!K15","v":0},{"$f":"[1]ODA!L15","v":0},{"$f":"[1]ODA!O15","v":0},{"$f":"[1]ODA!P15","v":0},{"$f":"[1]ODA!Q15","v":0},{"$f":"[1]ODA!R15","v":0},{"$f":"[1]ODA!S15","v":0},{"$f":"[1]ODA!T15","v":0},{"$f":"[1]ODA!U15","v":0},{"$f":"[1]ODA!V15","v":0},{"$f":"[1]ODA!W15","v":0},{"$f":"[1]ODA!X15","v":0},{"$f":"[1]ODA!Y15","v":0},{"$f":"[1]ODA!Z15","v":0},0,0]
[0,null,null,null,null,{"$f":"[1]ODA!F16","v":0},{"$f":"[1]ODA!G16","v":0},{"$f":"[1]ODA!H16","v":0},{"$f":"[1]ODA!I16","v":0},{"$f":"[1]ODA!J16","v":0},{"$f":"[1]ODA!K16","v":0},{"$f":"[1]ODA!L16","v":0},{"$f":"[1]ODA!O16","v":0},{"$f":"[1]ODA!P16","v":0},{"$f":"[1]ODA!Q16","v":0},{"$f":"[1]ODA!R16","v":0},{"$f":"[1]ODA!S16","v":0},{"$f":"[1]ODA!T16","v":0},{"$f":"[1]ODA!U16","v":0},{"$f":"[1]ODA!V16","v":0},{"$f":"[1]ODA!W16","v":0},{"$f":"[1]ODA!X16","v":0},{"$f":"[1]ODA!Y16","v":0},{"$f":"[1]ODA!Z16","v":0},0,0]
[0,null,null,null,null,{"$f":"[1]ODA!F17","v":0},{"$f":"[1]ODA!G17","v":0},{"$f":"[1]ODA!H17","v":0},{"$f":"[1]ODA!I17","v":0},{"$f":"[1]ODA!J17","v":0},{"$f":"[1]ODA!K17","v":0},{"$f":"[1]ODA!L17","v":0},{"$f":"[1]ODA!O17","v":0},{"$f":"[1]ODA!P17","v":0},{"$f":"[1]ODA!Q17","v":0},{"$f":"[1]ODA!R17","v":0},{"$f":"[1]ODA!S17","v":0},{"$f":"[1]ODA!T17","v":0},{"$f":"[1]ODA!U17","v":0},{"$f":"[1]ODA!V17","v":0},{"$f":"[1]ODA!W17","v":0},{"$f":"[1]ODA!X17","v":0},{"$f":"[1]ODA!Y17","v":0},{"$f":"[1]ODA!Z17","v":0},0,0]
[0,null,null,null,null,{"$f":"[1]ODA!F18","v":0},{"$f":"[1]ODA!G18","v":0},{"$f":"[1]ODA!H18","v":0},{"$f":"[1]ODA!I18","v":0},{"$f":"[1]ODA!J18","v":0},{"$f":"[1]ODA!K18","v":0},{"$f":"[1]ODA!L18","v":0},{"$f":"[1]ODA!O18","v":0},{"$f":"[1]ODA!P18","v":0},{"$f":"[1]ODA!Q18","v":0},{"$f":"[1]ODA!R18","v":0},{"$f":"[1]ODA!S18","v":0},{"$f":"[1]ODA!T18","v":0},{"$f":"[1]ODA!U18","v":0},{"$f":"[1]ODA!V18","v":0},{"$f":"[1]ODA!W18","v":0},{"$f":"[1]ODA!X18","v":0},{"$f":"[1]ODA!Y18","v":0},{"$f":"[1]ODA!Z18","v":0},0,0]
[0,null,null,null,null,{"$f":"[1]ODA!F19","v":0},{"$f":"[1]ODA!G19","v":0},{"$f":"[1]ODA!H19","v":0},{"$f":"[1]ODA!I19","v":0},{"$f":"[1]ODA!J19","v":0},{"$f":"[1]ODA!K19","v":0},{"$f":"[1]ODA!L19","v":0},{"$f":"[1]ODA!O19","v":0},{"$f":"[1]ODA!P19","v":0},{"$f":"[1]ODA!Q19","v":0},{"$f":"[1]ODA!R19","v":0},{"$f":"[1]ODA!S19","v":0},{"$f":"[1]ODA!T19","v":0},{"$f":"[1]ODA!U19","v":0},{"$f":"[1]ODA!V19","v":0},{"$f":"[1]ODA!W19","v":0},{"$f":"[1]ODA!X19","v":0},{"$f":"[1]ODA!Y19","v":0},{"$f":"[1]ODA!Z19","v":0},0,0]
[0,null,null,null,null,{"$f":"[1]ODA!F20","v":0},{"$f":"[1]ODA!G20","v":0},{"$f":"[1]ODA!H20","v":0},{"$f":"[1]ODA!I20","v":0},{"$f":"[1]ODA!J20","v":0},{"$f":"[1]ODA!K20","v":0},{"$f":"[1]ODA!L20","v":0},{"$f":"[1]ODA!O20","v":0},{"$f":"[1]ODA!P20","v":0},{"$f":"[1]ODA!Q20","v":0},{"$f":"[1]ODA!R20","v":0},{"$f":"[1]ODA!S20","v":0},{"$f":"[1]ODA!T20","v":0},{"$f":"[1]ODA!U20","v":0},{"$f":"[1]ODA!V20","v":0},{"$f":"[1]ODA!W20","v":0},{"$f":"[1]ODA!X20","v":0},{"$f":"[1]ODA!Y20","v":0},{"$f":"[1]ODA!Z20","v":0},0,0]
[0,null,null,null,null,{"$f":"[1]ODA!F21","v":0},{"$f":"[1]ODA!G21","v":0},{"$f":"[1]ODA!H21","v":0},{"$f":"[1]ODA!I21","v":0},{"$f":"[1]ODA!J21","v":0},{"$f":"[1]ODA!K21","v":0},{"$f":"[1]ODA!L21","v":0},{"$f":"[1]ODA!O21","v":0},{"$f":"[1]ODA!P21","v":0},{"$f":"[1]ODA!Q21","v":0},{"$f":"[1]ODA!R21","v":0},{"$f":"[1]ODA!S21","v":0},{"$f":"[1]ODA!T21","v":0},{"$f":"[1]ODA!U21","v":0},{"$f":"[1]ODA!V21","v":0},{"$f":"[1]ODA!W21","v":0},{"$f":"[1]ODA!X21","v":0},{"$f":"[1]ODA!Y21","v":0},{"$f":"[1]ODA!Z21","v":0},0,0]
[0,null,null,null,null,{"$f":"[1]ODA!F22","v":0},{"$f":"[1]ODA!G22","v":0},{"$f":"[1]ODA!H22","v":0},{"$f":"[1]ODA!I22","v":0},{"$f":"[1]ODA!J22","v":0},{"$f":"[1]ODA!K22","v":0},{"$f":"[1]ODA!L22","v":0},{"$f":"[1]ODA!O22","v":0},{"$f":"[1]ODA!P22","v":0},{"$f":"[1]ODA!Q22","v":0},{"$f":"[1]ODA!R22","v":0},{"$f":"[1]ODA!S22","v":0},{"$f":"[1]ODA!T22","v":0},{"$f":"[1]ODA!U22","v":0},{"$f":"[1]ODA!V22","v":0},{"$f":"[1]ODA!W22","v":0},{"$f":"[1]ODA!X22","v":0},{"$f":"[1]ODA!Y22","v":0},{"$f":"[1]ODA!Z22","v":0},0,0]
[0,null,null,null,null,{"$f":"[1]ODA!F23","v":0},{"$f":"[1]ODA!G23","v":0},{"$f":"[1]ODA!H23","v":0},{"$f":"[1]ODA!I23","v":0},{"$f":"[1]ODA!J23","v":0},{"$f":"[1]ODA!K23","v":0},{"$f":"[1]ODA!L23","v":0},{"$f":"[1]ODA!O23","v":0},{"$f":"[1]ODA!P23","v":0},{"$f":"[1]ODA!Q23","v":0},{"$f":"[1]ODA!R23","v":0},{"$f":"[1]ODA!S23","v":0},{"$f":"[1]ODA!T23","v":0},{"$f":"[1]ODA!U23","v":0},{"$f":"[1]ODA!V23","v":0},{"$f":"[1]ODA!W23","v":0},{"$f":"[1]ODA!X23","v":0},{"$f":"[1]ODA!Y23","v":0},{"$f":"[1]ODA!Z23","v":0},0,0]
[0,null,null,null,null,{"$f":"[1]ODA!F24","v":0},{"$f":"[1]ODA!G24","v":0},{"$f":"[1]ODA!H24","v":0},{"$f":"[1]ODA!I24","v":0},{"$f":"[1]ODA!J24","v":0},{"$f":"[1]ODA!K24","v":0},{"$f":"[1]ODA!L24","v":0},{"$f":"[1]ODA!O24","v":0},{"$f":"[1]ODA!P24","v":0},{"$f":"[1]ODA!Q24","v":0},{"$f":"[1]ODA!R24","v":0},{"$f":"[1]ODA!S24","v":0},{"$f":"[1]ODA!T24","v":0},{"$f":"[1]ODA!U24","v":0},{"$f":"[1]ODA!V24","v":0},{"$f":"[1]ODA!W24","v":0},{"$f":"[1]ODA!X24","v":0},{"$f":"[1]ODA!Y24","v":0},{"$f":"[1]ODA!Z24","v":0},0,0]
[0,null,null,null,null,{"$f":"[1]ODA!F25","v":0},{"$f":"[1]ODA!G25","v":0},{"$f":"[1]ODA!H25","v":0},{"$f":"[1]ODA!I25","v":0},{"$f":"[1]ODA!J25","v":0},{"$f":"[1]ODA!K25","v":0},{"$f":"[1]ODA!L25","v":0},{"$f":"[1]ODA!O25","v":0},{"$f":"[1]ODA!P25","v":0},{"$f":"[1]ODA!Q25","v":0},{"$f":"[1]ODA!R25","v":0},{"$f":"[1]ODA!S25","v":0},{"$f":"[1]ODA!T25","v":0},{"$f":"[1]ODA!U25","v":0},{"$f":"[1]ODA!V25","v":0},{"$f":"[1]ODA!W25","v":0},{"$f":"[1]ODA!X25","v":0},{"$f":"[1]ODA!Y25","v":0},{"$f":"[1]ODA!Z25","v":0},0,0]
[0,null,null,null,null,{"$f":"[1]ODA!F26","v":0},{"$f":"[1]ODA!G26","v":0},{"$f":"[1]ODA!H26","v":0},{"$f":"[1]ODA!I26","v":0},{"$f":"[1]ODA!J26","v":0},{"$f":"[1]ODA!K26","v":0},{"$f":"[1]ODA!L26","v":0},{"$f":"[1]ODA!O26","v":0},{"$f":"[1]ODA!P26","v":0},{"$f":"[1]ODA!Q26","v":0},{"$f":"[1]ODA!R26","v":0},{"$f":"[1]ODA!S26","v":0},{"$f":"[1]ODA!T26","v":0},{"$f":"[1]ODA!U26","v":0},{"$f":"[1]ODA!V26","v":0},{"$f":"[1]ODA!W26","v":0},{"$f":"[1]ODA!X26","v":0},{"$f":"[1]ODA!Y26","v":0},{"$f":"[1]ODA!Z26","v":0},0,0]
[0,null,null,null,null,{"$f":"[1]ODA!F27","v":0},{"$f":"[1]ODA!G27","v":0},{"$f":"[1]ODA!H27","v":0},{"$f":"[1]ODA!I27","v":0},{"$f":"[1]ODA!J27","v":0},{"$f":"[1]ODA!K27","v":0},{"$f":"[1]ODA!L27","v":0},{"$f":"[1]ODA!O27","v":0},{"$f":"[1]ODA!P27","v":0},{"$f":"[1]ODA!Q27","v":0},{"$f":"[1]ODA!R27","v":0},{"$f":"[1]ODA!S27","v":0},{"$f":"[1]ODA!T27","v":0},{"$f":"[1]ODA!U27","v":0},{"$f":"[1]ODA!V27","v":0},{"$f":"[1]ODA!W27","v":0},{"$f":"[1]ODA!X27","v":0},{"$f":"[1]ODA!Y27","v":0},{"$f":"[1]ODA!Z27","v":0},0,0]
[0,null,null,null,null,{"$f":"[1]ODA!F28","v":0},{"$f":"[1]ODA!G28","v":0},{"$f":"[1]ODA!H28","v":0},{"$f":"[1]ODA!I28","v":0},{"$f":"[1]ODA!J28","v":0},{"$f":"[1]ODA!K28","v":0},{"$f":"[1]ODA!L28","v":0},{"$f":"[1]ODA!O28","v":0},{"$f":"[1]ODA!P28","v":0},{"$f":"[1]ODA!Q28","v":0},{"$f":"[1]ODA!R28","v":0},{"$f":"[1]ODA!S28","v":0},{"$f":"[1]ODA!T28","v":0},{"$f":"[1]ODA!U28","v":0},{"$f":"[1]ODA!V28","v":0},{"$f":"[1]ODA!W28","v":0},{"$f":"[1]ODA!X28","v":0},{"$f":"[1]ODA!Y28","v":0},{"$f":"[1]ODA!Z28","v":0},0,0]
[0,null,null,null,null,{"$f":"[1]ODA!F29","v":0},{"$f":"[1]ODA!G29","v":0},{"$f":"[1]ODA!H29","v":0},{"$f":"[1]ODA!I29","v":0},{"$f":"[1]ODA!J29","v":0},{"$f":"[1]ODA!K29","v":0},{"$f":"[1]ODA!L29","v":0},{"$f":"[1]ODA!O29","v":0},{"$f":"[1]ODA!P29","v":0},{"$f":"[1]ODA!Q29","v":0},{"$f":"[1]ODA!R29","v":0},{"$f":"[1]ODA!S29","v":0},{"$f":"[1]ODA!T29","v":0},{"$f":"[1]ODA!U29","v":0},{"$f":"[1]ODA!V29","v":0},{"$f":"[1]ODA!W29","v":0},{"$f":"[1]ODA!X29","v":0},{"$f":"[1]ODA!Y29","v":0},{"$f":"[1]ODA!Z29","v":0},0,0]
[0,null,null,null,null,{"$f":"[1]ODA!F30","v":0},{"$f":"[1]ODA!G30","v":0},{"$f":"[1]ODA!H30","v":0},{"$f":"[1]ODA!I30","v":0},{"$f":"[1]ODA!J30","v":0},{"$f":"[1]ODA!K30","v":0},{"$f":"[1]ODA!L30","v":0},{"$f":"[1]ODA!O30","v":0},{"$f":"[1]ODA!P30","v":0},{"$f":"[1]ODA!Q30","v":0},{"$f":"[1]ODA!R30","v":0},{"$f":"[1]ODA!S30","v":0},{"$f":"[1]ODA!T30","v":0},{"$f":"[1]ODA!U30","v":0},{"$f":"[1]ODA!V30","v":0},{"$f":"[1]ODA!W30","v":0},{"$f":"[1]ODA!X30","v":0},{"$f":"[1]ODA!Y30","v":0},{"$f":"[1]ODA!Z30","v":0},0,0]
[0,null,null,null,null,{"$f":"[1]ODA!F31","v":0},{"$f":"[1]ODA!G31","v":0},{"$f":"[1]ODA!H31","v":0},{"$f":"[1]ODA!I31","v":0},{"$f":"[1]ODA!J31","v":0},{"$f":"[1]ODA!K31","v":0},{"$f":"[1]ODA!L31","v":0},{"$f":"[1]ODA!O31","v":0},{"$f":"[1]ODA!P31","v":0},{"$f":"[1]ODA!Q31","v":0},{"$f":"[1]ODA!R31","v":0},{"$f":"[1]ODA!S31","v":0},{"$f":"[1]ODA!T31","v":0},{"$f":"[1]ODA!U31","v":0},{"$f":"[1]ODA!V31","v":0},{"$f":"[1]ODA!W31","v":0},{"$f":"[1]ODA!X31","v":0},{"$f":"[1]ODA!Y31","v":0},{"$f":"[1]ODA!Z31","v":0},0,0]
[0,null,null,null,null,{"$f":"[1]ODA!F32","v":0},{"$f":"[1]ODA!G32","v":0},{"$f":"[1]ODA!H32","v":0},{"$f":"[1]ODA!I32","v":0},{"$f":"[1]ODA!J32","v":0},{"$f":"[1]ODA!K32","v":0},{"$f":"[1]ODA!L32","v":0},{"$f":"[1]ODA!O32","v":0},{"$f":"[1]ODA!P32","v":0},{"$f":"[1]ODA!Q32","v":0},{"$f":"[1]ODA!R32","v":0},{"$f":"[1]ODA!S32","v":0},{"$f":"[1]ODA!T32","v":0},{"$f":"[1]ODA!U32","v":0},{"$f":"[1]ODA!V32","v":0},{"$f":"[1]ODA!W32","v":0},{"$f":"[1]ODA!X32","v":0},{"$f":"[1]ODA!Y32","v":0},{"$f":"[1]ODA!Z32","v":0},0,0]
[0,null,null,null,null,{"$f":"[1]ODA!F33","v":0},{"$f":"[1]ODA!G33","v":0},{"$f":"[1]ODA!H33","v":0},{"$f":"[1]ODA!I33","v":0},{"$f":"[1]ODA!J33","v":0},{"$f":"[1]ODA!K33","v":0},{"$f":"[1]ODA!L33","v":0},{"$f":"[1]ODA!O33","v":0},{"$f":"[1]ODA!P33","v":0},{"$f":"[1]ODA!Q33","v":0},{"$f":"[1]ODA!R33","v":0},{"$f":"[1]ODA!S33","v":0},{"$f":"[1]ODA!T33","v":0},{"$f":"[1]ODA!U33","v":0},{"$f":"[1]ODA!V33","v":0},{"$f":"[1]ODA!W33","v":0},{"$f":"[1]ODA!X33","v":0},{"$f":"[1]ODA!Y33","v":0},{"$f":"[1]ODA!Z33","v":0},0,0]
[0,null,null,null,null,{"$f":"[1]ODA!F34","v":0},{"$f":"[1]ODA!G34","v":0},{"$f":"[1]ODA!H34","v":0},{"$f":"[1]ODA!I34","v":0},{"$f":"[1]ODA!J34","v":0},{"$f":"[1]ODA!K34","v":0},{"$f":"[1]ODA!L34","v":0},{"$f":"[1]ODA!O34","v":0},{"$f":"[1]ODA!P34","v":0},{"$f":"[1]ODA!Q34","v":0},{"$f":"[1]ODA!R34","v":0},{"$f":"[1]ODA!S34","v":0},{"$f":"[1]ODA!T34","v":0},{"$f":"[1]ODA!U34","v":0},{"$f":"[1]ODA!V34","v":0},{"$f":"[1]ODA!W34","v":0},{"$f":"[1]ODA!X34","v":0},{"$f":"[1]ODA!Y34","v":0},{"$f":"[1]ODA!Z34","v":0},0,0]
[0,null,null,null,null,{"$f":"[1]ODA!F35","v":0},{"$f":"[1]ODA!G35","v":0},{"$f":"[1]ODA!H35","v":0},{"$f":"[1]ODA!I35","v":0},{"$f":"[1]ODA!J35","v":0},{"$f":"[1]ODA!K35","v":0},{"$f":"[1]ODA!L35","v":0},{"$f":"[1]ODA!O35","v":0},{"$f":"[1]ODA!P35","v":0},{"$f":"[1]ODA!Q35","v":0},{"$f":"[1]ODA!R35","v":0},{"$f":"[1]ODA!S35","v":0},{"$f":"[1]ODA!T35","v":0},{"$f":"[1]ODA!U35","v":0},{"$f":"[1]ODA!V35","v":0},{"$f":"[1]ODA!W35","v":0},{"$f":"[1]ODA!X35","v":0},{"$f":"[1]ODA!Y35","v":0},{"$f":"[1]ODA!Z35","v":0},0,0]
[0,null,null,null,null,{"$f":"[1]ODA!F36","v":0},{"$f":"[1]ODA!G36","v":0},{"$f":"[1]ODA!H36","v":0},{"$f":"[1]ODA!I36","v":0},{"$f":"[1]ODA!J36","v":0},{"$f":"[1]ODA!K36","v":0},{"$f":"[1]ODA!L36","v":0},{"$f":"[1]ODA!O36","v":0},{"$f":"[1]ODA!P36","v":0},{"$f":"[1]ODA!Q36","v":0},{"$f":"[1]ODA!R36","v":0},{"$f":"[1]ODA!S36","v":0},{"$f":"[1]ODA!T36","v":0},{"$f":"[1]ODA!U36","v":0},{"$f":"[1]ODA!V36","v":0},{"$f":"[1]ODA!W36","v":0},{"$f":"[1]ODA!X36","v":0},{"$f":"[1]ODA!Y36","v":0},{"$f":"[1]ODA!Z36","v":0},0,0]
[0,null,null,null,null,{"$f":"[1]ODA!F37","v":0},{"$f":"[1]ODA!G37","v":0},{"$f":"[1]ODA!H37","v":0},{"$f":"[1]ODA!I37","v":0},{"$f":"[1]ODA!J37","v":0},{"$f":"[1]ODA!K37","v":0},{"$f":"[1]ODA!L37","v":0},{"$f":"[1]ODA!O37","v":0},{"$f":"[1]ODA!P37","v":0},{"$f":"[1]ODA!Q37","v":0},{"$f":"[1]ODA!R37","v":0},{"$f":"[1]ODA!S37","v":0},{"$f":"[1]ODA!T37","v":0},{"$f":"[1]ODA!U37","v":0},{"$f":"[1]ODA!V37","v":0},{"$f":"[1]ODA!W37","v":0},{"$f":"[1]ODA!X37","v":0},{"$f":"[1]ODA!Y37","v":0},{"$f":"[1]ODA!Z37","v":0},0,0]
[0,null,null,null,null,{"$f":"[1]ODA!F38","v":0},{"$f":"[1]ODA!G38","v":0},{"$f":"[1]ODA!H38","v":0},{"$f":"[1]ODA!I38","v":0},{"$f":"[1]ODA!J38","v":0},{"$f":"[1]ODA!K38","v":0},{"$f":"[1]ODA!L38","v":0},{"$f":"[1]ODA!O38","v":0},{"$f":"[1]ODA!P38","v":0},{"$f":"[1]ODA!Q38","v":0},{"$f":"[1]ODA!R38","v":0},{"$f":"[1]ODA!S38","v":0},{"$f":"[1]ODA!T38","v":0},{"$f":"[1]ODA!U38","v":0},{"$f":"[1]ODA!V38","v":0},{"$f":"[1]ODA!W38","v":0},{"$f":"[1]ODA!X38","v":0},{"$f":"[1]ODA!Y38","v":0},{"$f":"[1]ODA!Z38","v":0},0,0]
[0,null,null,null,null,{"$f":"[1]ODA!F39","v":0},{"$f":"[1]ODA!G39","v":0},{"$f":"[1]ODA!H39","v":0},{"$f":"[1]ODA!I39","v":0},{"$f":"[1]ODA!J39","v":0},{"$f":"[1]ODA!K39","v":0},{"$f":"[1]ODA!L39","v":0},{"$f":"[1]ODA!O39","v":0},{"$f":"[1]ODA!P39","v":0},{"$f":"[1]ODA!Q39","v":0},{"$f":"[1]ODA!R39","v":0},{"$f":"[1]ODA!S39","v":0},{"$f":"[1]ODA!T39","v":0},{"$f":"[1]ODA!U39","v":0},{"$f":"[1]ODA!V39","v":0},{"$f":"[1]ODA!W39","v":0},{"$f":"[1]ODA!X39","v":0},{"$f":"[1]ODA!Y39","v":0},{"$f":"[1]ODA!Z39","v":0},0,0]
[0,null,null,null,null,{"$f":"[1]ODA!F40","v":0},{"$f":"[1]ODA!G40","v":0},{"$f":"[1]ODA!H40","v":0},{"$f":"[1]ODA!I40","v":0},{"$f":"[1]ODA!J40","v":0},{"$f":"[1]ODA!K40","v":0},{"$f":"[1]ODA!L40","v":0},{"$f":"[1]ODA!O40","v":0},{"$f":"[1]ODA!P40","v":0},{"$f":"[1]ODA!Q40","v":0},{"$f":"[1]ODA!R40","v":0},{"$f":"[1]ODA!S40","v":0},{"$f":"[1]ODA!T40","v":0},{"$f":"[1]ODA!U40","v":0},{"$f":"[1]ODA!V40","v":0},{"$f":"[1]ODA!W40","v":0},{"$f":"[1]ODA!X40","v":0},{"$f":"[1]ODA!Y40","v":0},{"$f":"[1]ODA!Z40","v":0},0,0]
[0,null,null,null,null,{"$f":"[1]ODA!F41","v":0},{"$f":"[1]ODA!G41","v":0},{"$f":"[1]ODA!H41","v":0},{"$f":"[1]ODA!I41","v":0},{"$f":"[1]ODA!J41","v":0},{"$f":"[1]ODA!K41","v":0},{"$f":"[1]ODA!L41","v":0},{"$f":"[1]ODA!O41","v":0},{"$f":"[1]ODA!P41","v":0},{"$f":"[1]ODA!Q41","v":0},{"$f":"[1]ODA!R41","v":0},{"$f":"[1]ODA!S41","v":0},{"$f":"[1]ODA!T41","v":0},{"$f":"[1]ODA!U41","v":0},{"$f":"[1]ODA!V41","v":0},{"$f":"[1]ODA!W41","v":0},{"$f":"[1]ODA!X41","v":0},{"$f":"[1]ODA!Y41","v":0},{"$f":"[1]ODA!Z41","v":0},0,0]
[0,null,null,null,null,{"$f":"[1]ODA!F42","v":0},{"$f":"[1]ODA!G42","v":0},{"$f":"[1]ODA!H42","v":0},{"$f":"[1]ODA!I42","v":0},{"$f":"[1]ODA!J42","v":0},{"$f":"[1]ODA!K42","v":0},{"$f":"[1]ODA!L42","v":0},{"$f":"[1]ODA!O42","v":0},{"$f":"[1]ODA!P42","v":0},{"$f":"[1]ODA!Q42","v":0},{"$f":"[1]ODA!R42","v":0},{"$f":"[1]ODA!S42","v":0},{"$f":"[1]ODA!T42","v":0},{"$f":"[1]ODA!U42","v":0},{"$f":"[1]ODA!V42","v":0},{"$f":"[1]ODA!W42","v":0},{"$f":"[1]ODA!X42","v":0},{"$f":"[1]ODA!Y42","v":0},{"$f":"[1]ODA!Z42","v":0},0,0]
[0,null,null,null,null,{"$f":"[1]ODA!F43","v":0},{"$f":"[1]ODA!G43","v":0},{"$f":"[1]ODA!H43","v":0},{"$f":"[1]ODA!I43","v":0},{"$f":"[1]ODA!J43","v":0},{"$f":"[1]ODA!K43","v":0},{"$f":"[1]ODA!L43","v":0},{"$f":"[1]ODA!O43","v":0},{"$f":"[1]ODA!P43","v":0},{"$f":"[1]ODA!Q43","v":0},{"$f":"[1]ODA!R43","v":0},{"$f":"[1]ODA!S43","v":0},{"$f":"[1]ODA!T43","v":0},{"$f":"[1]ODA!U43","v":0},{"$f":"[1]ODA!V43","v":0},{"$f":"[1]ODA!W43","v":0},{"$f":"[1]ODA!X43","v":0},{"$f":"[1]ODA!Y43","v":0},{"$f":"[1]ODA!Z43","v":0},0,0]
[0,null,null,null,null,{"$f":"[1]ODA!F44","v":0},{"$f":"[1]ODA!G44","v":0},{"$f":"[1]ODA!H44","v":0},{"$f":"[1]ODA!I44","v":0},{"$f":"[1]ODA!J44","v":0},{"$f":"[1]ODA!K44","v":0},{"$f":"[1]ODA!L44","v":0},{"$f":"[1]ODA!O44","v":0},{"$f":"[1]ODA!P44","v":0},{"$f":"[1]ODA!Q44","v":0},{"$f":"[1]ODA!R44","v":0},{"$f":"[1]ODA!S44","v":0},{"$f":"[1]ODA!T44","v":0},{"$f":"[1]ODA!U44","v":0},{"$f":"[1]ODA!V44","v":0},{"$f":"[1]ODA!W44","v":0},{"$f":"[1]ODA!X44","v":0},{"$f":"[1]ODA!Y44","v":0},{"$f":"[1]ODA!Z44","v":0},0,0]
[0,null,null,null,null,{"$f":"[1]ODA!F45","v":0},{"$f":"[1]ODA!G45","v":0},{"$f":"[1]ODA!H45","v":0},{"$f":"[1]ODA!I45","v":0},{"$f":"[1]ODA!J45","v":0},{"$f":"[1]ODA!K45","v":0},{"$f":"[1]ODA!L45","v":0},{"$f":"[1]ODA!O45","v":0},{"$f":"[1]ODA!P45","v":0},{"$f":"[1]ODA!Q45","v":0},{"$f":"[1]ODA!R45","v":0},{"$f":"[1]ODA!S45","v":0},{"$f":"[1]ODA!T45","v":0},{"$f":"[1]ODA!U45","v":0},{"$f":"[1]ODA!V45","v":0},{"$f":"[1]ODA!W45","v":0},{"$f":"[1]ODA!X45","v":0},{"$f":"[1]ODA!Y45","v":0},{"$f":"[1]ODA!Z45","v":0},0,0]
[0,null,null,null,null,{"$f":"[1]ODA!F46","v":0},{"$f":"[1]ODA!G46","v":0},{"$f":"[1]ODA!H46","v":0},{"$f":"[1]ODA!I46","v":0},{"$f":"[1]ODA!J46","v":0},{"$f":"[1]ODA!K46","v":0},{"$f":"[1]ODA!L46","v":0},{"$f":"[1]ODA!O46","v":0},{"$f":"[1]ODA!P46","v":0},{"$f":"[1]ODA!Q46","v":0},{"$f":"[1]ODA!R46","v":0},{"$f":"[1]ODA!S46","v":0},{"$f":"[1]ODA!T46","v":0},{"$f":"[1]ODA!U46","v":0},{"$f":"[1]ODA!V46","v":0},{"$f":"[1]ODA!W46","v":0},{"$f":"[1]ODA!X46","v":0},{"$f":"[1]ODA!Y46","v":0},{"$f":"[1]ODA!Z46","v":0},0,0]
[0,null,null,null,null,{"$f":"[1]ODA!F47","v":0},{"$f":"[1]ODA!G47","v":0},{"$f":"[1]ODA!H47","v":0},{"$f":"[1]ODA!I47","v":0},{"$f":"[1]ODA!J47","v":0},{"$f":"[1]ODA!K47","v":0},{"$f":"[1]ODA!L47","v":0},{"$f":"[1]ODA!O47","v":0},{"$f":"[1]ODA!P47","v":0},{"$f":"[1]ODA!Q47","v":0},{"$f":"[1]ODA!R47","v":0},{"$f":"[1]ODA!S47","v":0},{"$f":"[1]ODA!T47","v":0},{"$f":"[1]ODA!U47","v":0},{"$f":"[1]ODA!V47","v":0},{"$f":"[1]ODA!W47","v":0},{"$f":"[1]ODA!X47","v":0},{"$f":"[1]ODA!Y47","v":0},{"$f":"[1]ODA!Z47","v":0},0,0]
[0,null,null,null,null,{"$f":"[1]ODA!F48","v":0},{"$f":"[1]ODA!G48","v":0},{"$f":"[1]ODA!H48","v":0},{"$f":"[1]ODA!I48","v":0},{"$f":"[1]ODA!J48","v":0},{"$f":"[1]ODA!K48","v":0},{"$f":"[1]ODA!L48","v":0},{"$f":"[1]ODA!O48","v":0},{"$f":"[1]ODA!P48","v":0},{"$f":"[1]ODA!Q48","v":0},{"$f":"[1]ODA!R48","v":0},{"$f":"[1]ODA!S48","v":0},{"$f":"[1]ODA!T48","v":0},{"$f":"[1]ODA!U48","v":0},{"$f":"[1]ODA!V48","v":0},{"$f":"[1]ODA!W48","v":0},{"$f":"[1]ODA!X48","v":0},{"$f":"[1]ODA!Y48","v":0},{"$f":"[1]ODA!Z48","v":0},0,0]
[0,null,null,null,null,{"$f":"[1]ODA!F49","v":0},{"$f":"[1]ODA!G49","v":0},{"$f":"[1]ODA!H49","v":0},{"$f":"[1]ODA!I49","v":0},{"$f":"[1]ODA!J49","v":0},{"$f":"[1]ODA!K49","v":0},{"$f":"[1]ODA!L49","v":0},{"$f":"[1]ODA!O49","v":0},{"$f":"[1]ODA!P49","v":0},{"$f":"[1]ODA!Q49","v":0},{"$f":"[1]ODA!R49","v":0},{"$f":"[1]ODA!S49","v":0},{"$f":"[1]ODA!T49","v":0},{"$f":"[1]ODA!U49","v":0},{"$f":"[1]ODA!V49","v":0},{"$f":"[1]ODA!W49","v":0},{"$f":"[1]ODA!X49","v":0},{"$f":"[1]ODA!Y49","v":0},{"$f":"[1]ODA!Z49","v":0},0,0]
[0,null,null,null,null,{"$f":"[1]ODA!F50","v":0},{"$f":"[1]ODA!G50","v":0},{"$f":"[1]ODA!H50","v":0},{"$f":"[1]ODA!I50","v":0},{"$f":"[1]ODA!J50","v":0},{"$f":"[1]ODA!K50","v":0},{"$f":"[1]ODA!L50","v":0},{"$f":"[1]ODA!O50","v":0},{"$f":"[1]ODA!P50","v":0},{"$f":"[1]ODA!Q50","v":0},{"$f":"[1]ODA!R50","v":0},{"$f":"[1]ODA!S50","v":0},{"$f":"[1]ODA!T50","v":0},{"$f":"[1]ODA!U50","v":0},{"$f":"[1]ODA!V50","v":0},{"$f":"[1]ODA!W50","v":0},{"$f":"[1]ODA!X50","v":0},{"$f":"[1]ODA!Y50","v":0},{"$f":"[1]ODA!Z50","v":0},0,0]
[0,null,null,null,null,{"$f":"[1]ODA!F51","v":0},{"$f":"[1]ODA!G51","v":0},{"$f":"[1]ODA!H51","v":0},{"$f":"[1]ODA!I51","v":0},{"$f":"[1]ODA!J51","v":0},{"$f":"[1]ODA!K51","v":0},{"$f":"[1]ODA!L51","v":0},{"$f":"[1]ODA!O51","v":0},{"$f":"[1]ODA!P51","v":0},{"$f":"[1]ODA!Q51","v":0},{"$f":"[1]ODA!R51","v":0},{"$f":"[1]ODA!S51","v":0},{"$f":"[1]ODA!T51","v":0},{"$f":"[1]ODA!U51","v":0},{"$f":"[1]ODA!V51","v":0},{"$f":"[1]ODA!W51","v":0},{"$f":"[1]ODA!X51","v":0},{"$f":"[1]ODA!Y51","v":0},{"$f":"[1]ODA!Z51","v":0},0,0]
[0,null,null,null,null,{"$f":"[1]ODA!F52","v":0},{"$f":"[1]ODA!G52","v":0},{"$f":"[1]ODA!H52","v":0},{"$f":"[1]ODA!I52","v":0},{"$f":"[1]ODA!J52","v":0},{"$f":"[1]ODA!K52","v":0},{"$f":"[1]ODA!L52","v":0},{"$f":"[1]ODA!O52","v":0},{"$f":"[1]ODA!P52","v":0},{"$f":"[1]ODA!Q52","v":0},{"$f":"[1]ODA!R52","v":0},{"$f":"[1]ODA!S52","v":0},{"$f":"[1]ODA!T52","v":0},{"$f":"[1]ODA!U52","v":0},{"$f":"[1]ODA!V52","v":0},{"$f":"[1]ODA!W52","v":0},{"$f":"[1]ODA!X52","v":0},{"$f":"[1]ODA!Y52","v":0},{"$f":"[1]ODA!Z52","v":0},0,0]
[0,null,null,null,null,{"$f":"[1]ODA!F53","v":0},{"$f":"[1]ODA!G53","v":0},{"$f":"[1]ODA!H53","v":0},{"$f":"[1]ODA!I53","v":0},{"$f":"[1]ODA!J53","v":0},{"$f":"[1]ODA!K53","v":0},{"$f":"[1]ODA!L53","v":0},{"$f":"[1]ODA!O53","v":0},{"$f":"[1]ODA!P53","v":0},{"$f":"[1]ODA!Q53","v":0},{"$f":"[1]ODA!R53","v":0},{"$f":"[1]ODA!S53","v":0},{"$f":"[1]ODA!T53","v":0},{"$f":"[1]ODA!U53","v":0},{"$f":"[1]ODA!V53","v":0},{"$f":"[1]ODA!W53","v":0},{"$f":"[1]ODA!X53","v":0},{"$f":"[1]ODA!Y53","v":0},{"$f":"[1]ODA!Z53","v":0},0,0]
[0,null,null,null,null,{"$f":"[1]ODA!F54","v":0},{"$f":"[1]ODA!G54","v":0},{"$f":"[1]ODA!H54","v":0},{"$f":"[1]ODA!I54","v":0},{"$f":"[1]ODA!J54","v":0},{"$f":"[1]ODA!K54","v":0},{"$f":"[1]ODA!L54","v":0},{"$f":"[1]ODA!O54","v":0},{"$f":"[1]ODA!P54","v":0},{"$f":"[1]ODA!Q54","v":0},{"$f":"[1]ODA!R54","v":0},{"$f":"[1]ODA!S54","v":0},{"$f":"[1]ODA!T54","v":0},{"$f":"[1]ODA!U54","v":0},{"$f":"[1]ODA!V54","v":0},{"$f":"[1]ODA!W54","v":0},{"$f":"[1]ODA!X54","v":0},{"$f":"[1]ODA!Y54","v":0},{"$f":"[1]ODA!Z54","v":0},0,0]
[0,null,null,null,null,{"$f":"[1]ODA!F55","v":0},{"$f":"[1]ODA!G55","v":0},{"$f":"[1]ODA!H55","v":0},{"$f":"[1]ODA!I55","v":0},{"$f":"[1]ODA!J55","v":0},{"$f":"[1]ODA!K55","v":0},{"$f":"[1]ODA!L55","v":0},{"$f":"[1]ODA!O55","v":0},{"$f":"[1]ODA!P55","v":0},{"$f":"[1]ODA!Q55","v":0},{"$f":"[1]ODA!R55","v":0},{"$f":"[1]ODA!S55","v":0},{"$f":"[1]ODA!T55","v":0},{"$f":"[1]ODA!U55","v":0},{"$f":"[1]ODA!V55","v":0},{"$f":"[1]ODA!W55","v":0},{"$f":"[1]ODA!X55","v":0},{"$f":"[1]ODA!Y55","v":0},{"$f":"[1]ODA!Z55","v":0},0,0]
[0,null,null,null,null,{"$f":"[1]ODA!F56","v":0},{"$f":"[1]ODA!G56","v":0},{"$f":"[1]ODA!H56","v":0},{"$f":"[1]ODA!I56","v":0},{"$f":"[1]ODA!J56","v":0},{"$f":"[1]ODA!K56","v":0},{"$f":"[1]ODA!L56","v":0},{"$f":"[1]ODA!O56","v":0},{"$f":"[1]ODA!P56","v":0},{"$f":"[1]ODA!Q56","v":0},{"$f":"[1]ODA!R56","v":0},{"$f":"[1]ODA!S56","v":0},{"$f":"[1]ODA!T56","v":0},{"$f":"[1]ODA!U56","v":0},{"$f":"[1]ODA!V56","v":0},{"$f":"[1]ODA!W56","v":0},{"$f":"[1]ODA!X56","v":0},{"$f":"[1]ODA!Y56","v":0},{"$f":"[1]ODA!Z56","v":0},0,0]
[0,null,null,null,null,{"$f":"[1]ODA!F57","v":0},{"$f":"[1]ODA!G57","v":0},{"$f":"[1]ODA!H57","v":0},{"$f":"[1]ODA!I57","v":0},{"$f":"[1]ODA!J57","v":0},{"$f":"[1]ODA!K57","v":0},{"$f":"[1]ODA!L57","v":0},{"$f":"[1]ODA!O57","v":0},{"$f":"[1]ODA!P57","v":0},{"$f":"[1]ODA!Q57","v":0},{"$f":"[1]ODA!R57","v":0},{"$f":"[1]ODA!S57","v":0},{"$f":"[1]ODA!T57","v":0},{"$f":"[1]ODA!U57","v":0},{"$f":"[1]ODA!V57","v":0},{"$f":"[1]ODA!W57","v":0},{"$f":"[1]ODA!X57","v":0},{"$f":"[1]ODA!Y57","v":0},{"$f":"[1]ODA!Z57","v":0},0,0]
[0,null,null,null,null,{"$f":"[1]ODA!F58","v":0},{"$f":"[1]ODA!G58","v":0},{"$f":"[1]ODA!H58","v":0},{"$f":"[1]ODA!I58","v":0},{"$f":"[1]ODA!J58","v":0},{"$f":"[1]ODA!K58","v":0},{"$f":"[1]ODA!L58","v":0},{"$f":"[1]ODA!O58","v":0},{"$f":"[1]ODA!P58","v":0},{"$f":"[1]ODA!Q58","v":0},{"$f":"[1]ODA!R58","v":0},{"$f":"[1]ODA!S58","v":0},{"$f":"[1]ODA!T58","v":0},{"$f":"[1]ODA!U58","v":0},{"$f":"[1]ODA!V58","v":0},{"$f":"[1]ODA!W58","v":0},{"$f":"[1]ODA!X58","v":0},{"$f":"[1]ODA!Y58","v":0},{"$f":"[1]ODA!Z58","v":0},0,0]
[0,null,null,null,null,{"$f":"[1]ODA!F59","v":0},{"$f":"[1]ODA!G59","v":0},{"$f":"[1]ODA!H59","v":0},{"$f":"[1]ODA!I59","v":0},{"$f":"[1]ODA!J59","v":0},{"$f":"[1]ODA!K59","v":0},{"$f":"[1]ODA!L59","v":0},{"$f":"[1]ODA!O59","v":0},{"$f":"[1]ODA!P59","v":0},{"$f":"[1]ODA!Q59","v":0},{"$f":"[1]ODA!R59","v":0},{"$f":"[1]ODA!S59","v":0},{"$f":"[1]ODA!T59","v":0},{"$f":"[1]ODA!U59","v":0},{"$f":"[1]ODA!V59","v":0},{"$f":"[1]ODA!W59","v":0},{"$f":"[1]ODA!X59","v":0},{"$f":"[1]ODA!Y59","v":0},{"$f":"[1]ODA!Z59","v":0},0,0]
[0,null,null,null,null,{"$f":"[1]ODA!F60","v":0},{"$f":"[1]ODA!G60","v":0},{"$f":"[1]ODA!H60","v":0},{"$f":"[1]ODA!I60","v":0},{"$f":"[1]ODA!J60","v":0},{"$f":"[1]ODA!K60","v":0},{"$f":"[1]ODA!L60","v":0},{"$f":"[1]ODA!O60","v":0},{"$f":"[1]ODA!P60","v":0},{"$f":"[1]ODA!Q60","v":0},{"$f":"[1]ODA!R60","v":0},{"$f":"[1]ODA!S60","v":0},{"$f":"[1]ODA!T60","v":0},{"$f":"[1]ODA!U60","v":0},{"$f":"[1]ODA!V60","v":0},{"$f":"[1]ODA!W60","v":0},{"$f":"[1]ODA!X60","v":0},{"$f":"[1]ODA!Y60","v":0},{"$f":"[1]ODA!Z60","v":0},0,0]
[0,null,null,null,null,{"$f":"[1]ODA!F61","v":0},{"$f":"[1]ODA!G61","v":0},{"$f":"[1]ODA!H61","v":0},{"$f":"[1]ODA!I61","v":0},{"$f":"[1]ODA!J61","v":0},{"$f":"[1]ODA!K61","v":0},{"$f":"[1]ODA!L61","v":0},{"$f":"[1]ODA!O61","v":0},{"$f":"[1]ODA!P61","v":0},{"$f":"[1]ODA!Q61","v":0},{"$f":"[1]ODA!R61","v":0},{"$f":"[1]ODA!S61","v":0},{"$f":"[1]ODA!T61","v":0},{"$f":"[1]ODA!U61","v":0},{"$f":"[1]ODA!V61","v":0},{"$f":"[1]ODA!W61","v":0},{"$f":"[1]ODA!X61","v":0},{"$f":"[1]ODA!Y61","v":0},{"$f":"[1]ODA!Z61","v":0},0,0]
[0,null,null,null,null,{"$f":"[1]ODA!F62","v":0},{"$f":"[1]ODA!G62","v":0},{"$f":"[1]ODA!H62","v":0},{"$f":"[1]ODA!I62","v":0},{"$f":"[1]ODA!J62","v":0},{"$f":"[1]ODA!K62","v":0},{"$f":"[1]ODA!L62","v":0},{"$f":"[1]ODA!O62","v":0},{"$f":"[1]ODA!P62","v":0},{"$f":"[1]ODA!Q62","v":0},{"$f":"[1]ODA!R62","v":0},{"$f":"[1]ODA!S62","v":0},{"$f":"[1]ODA!T62","v":0},{"$f":"[1]ODA!U62","v":0},{"$f":"[1]ODA!V62","v":0},{"$f":"[1]ODA!W62","v":0},{"$f":"[1]ODA!X62","v":0},{"$f":"[1]ODA!Y62","v":0},{"$f":"[1]ODA!Z62","v":0},0,0]
[0,null,null,null,null,{"$f":"[1]ODA!F63","v":0},{"$f":"[1]ODA!G63","v":0},{"$f":"[1]ODA!H63","v":0},{"$f":"[1]ODA!I63","v":0},{"$f":"[1]ODA!J63","v":0},{"$f":"[1]ODA!K63","v":0},{"$f":"[1]ODA!L63","v":0},{"$f":"[1]ODA!O63","v":0},{"$f":"[1]ODA!P63","v":0},{"$f":"[1]ODA!Q63","v":0},{"$f":"[1]ODA!R63","v":0},{"$f":"[1]ODA!S63","v":0},{"$f":"[1]ODA!T63","v":0},{"$f":"[1]ODA!U63","v":0},{"$f":"[1]ODA!V63","v":0},{"$f":"[1]ODA!W63","v":0},{"$f":"[1]ODA!X63","v":0},{"$f":"[1]ODA!Y63","v":0},{"$f":"[1]ODA!Z63","v":0},0,0]
[0,null,null,null,null,{"$f":"[1]ODA!F64","v":0},{"$f":"[1]ODA!G64","v":0},{"$f":"[1]ODA!H64","v":0},{"$f":"[1]ODA!I64","v":0},{"$f":"[1]ODA!J64","v":0},{"$f":"[1]ODA!K64","v":0},{"$f":"[1]ODA!L64","v":0},{"$f":"[1]ODA!O64","v":0},{"$f":"[1]ODA!P64","v":0},{"$f":"[1]ODA!Q64","v":0},{"$f":"[1]ODA!R64","v":0},{"$f":"[1]ODA!S64","v":0},{"$f":"[1]ODA!T64","v":0},{"$f":"[1]ODA!U64","v":0},{"$f":"[1]ODA!V64","v":0},{"$f":"[1]ODA!W64","v":0},{"$f":"[1]ODA!X64","v":0},{"$f":"[1]ODA!Y64","v":0},{"$f":"[1]ODA!Z64","v":0},0,0]
[0,null,null,null,null,{"$f":"[1]ODA!F65","v":0},{"$f":"[1]ODA!G65","v":0},{"$f":"[1]ODA!H65","v":0},{"$f":"[1]ODA!I65","v":0},{"$f":"[1]ODA!J65","v":0},{"$f":"[1]ODA!K65","v":0},{"$f":"[1]ODA!L65","v":0},{"$f":"[1]ODA!O65","v":0},{"$f":"[1]ODA!P65","v":0},{"$f":"[1]ODA!Q65","v":0},{"$f":"[1]ODA!R65","v":0},{"$f":"[1]ODA!S65","v":0},{"$f":"[1]ODA!T65","v":0},{"$f":"[1]ODA!U65","v":0},{"$f":"[1]ODA!V65","v":0},{"$f":"[1]ODA!W65","v":0},{"$f":"[1]ODA!X65","v":0},{"$f":"[1]ODA!Y65","v":0},{"$f":"[1]ODA!Z65","v":0},0,0]
[0,null,null,null,null,{"$f":"[1]ODA!F66","v":0},{"$f":"[1]ODA!G66","v":0},{"$f":"[1]ODA!H66","v":0},{"$f":"[1]ODA!I66","v":0},{"$f":"[1]ODA!J66","v":0},{"$f":"[1]ODA!K66","v":0},{"$f":"[1]ODA!L66","v":0},{"$f":"[1]ODA!O66","v":0},{"$f":"[1]ODA!P66","v":0},{"$f":"[1]ODA!Q66","v":0},{"$f":"[1]ODA!R66","v":0},{"$f":"[1]ODA!S66","v":0},{"$f":"[1]ODA!T66","v":0},{"$f":"[1]ODA!U66","v":0},{"$f":"[1]ODA!V66","v":0},{"$f":"[1]ODA!W66","v":0},{"$f":"[1]ODA!X66","v":0},{"$f":"[1]ODA!Y66","v":0},{"$f":"[1]ODA!Z66","v":0},0,0]
[0,null,null,null,null,{"$f":"[1]ODA!F67","v":0},{"$f":"[1]ODA!G67","v":0},{"$f":"[1]ODA!H67","v":0},{"$f":"[1]ODA!I67","v":0},{"$f":"[1]ODA!J67","v":0},{"$f":"[1]ODA!K67","v":0},{"$f":"[1]ODA!L67","v":0},{"$f":"[1]ODA!O67","v":0},{"$f":"[1]ODA!P67","v":0},{"$f":"[1]ODA!Q67","v":0},{"$f":"[1]ODA!R67","v":0},{"$f":"[1]ODA!S67","v":0},{"$f":"[1]ODA!T67","v":0},{"$f":"[1]ODA!U67","v":0},{"$f":"[1]ODA!V67","v":0},{"$f":"[1]ODA!W67","v":0},{"$f":"[1]ODA!X67","v":0},{"$f":"[1]ODA!Y67","v":0},{"$f":"[1]ODA!Z67","v":0},0,0]
[0,null,null,null,null,{"$f":"[1]ODA!F68","v":0},{"$f":"[1]ODA!G68","v":0},{"$f":"[1]ODA!H68","v":0},{"$f":"[1]ODA!I68","v":0},{"$f":"[1]ODA!J68","v":0},{"$f":"[1]ODA!K68","v":0},{"$f":"[1]ODA!L68","v":0},{"$f":"[1]ODA!O68","v":0},{"$f":"[1]ODA!P68","v":0},{"$f":"[1]ODA!Q68","v":0},{"$f":"[1]ODA!R68","v":0},{"$f":"[1]ODA!S68","v":0},{"$f":"[1]ODA!T68","v":0},{"$f":"[1]ODA!U68","v":0},{"$f":"[1]ODA!V68","v":0},{"$f":"[1]ODA!W68","v":0},{"$f":"[1]ODA!X68","v":0},{"$f":"[1]ODA!Y68","v":0},{"$f":"[1]ODA!Z68","v":0},0,0]
[0,null,null,null,null,{"$f":"[1]ODA!F69","v":0},{"$f":"[1]ODA!G69","v":0},{"$f":"[1]ODA!H69","v":0},{"$f":"[1]ODA!I69","v":0},{"$f":"[1]ODA!J69","v":0},{"$f":"[1]ODA!K69","v":0},{"$f":"[1]ODA!L69","v":0},{"$f":"[1]ODA!O69","v":0},{"$f":"[1]ODA!P69","v":0},{"$f":"[1]ODA!Q69","v":0},{"$f":"[1]ODA!R69","v":0},{"$f":"[1]ODA!S69","v":0},{"$f":"[1]ODA!T69","v":0},{"$f":"[1]ODA!U69","v":0},{"$f":"[1]ODA!V69","v":0},{"$f":"[1]ODA!W69","v":0},{"$f":"[1]ODA!X69","v":0},{"$f":"[1]ODA!Y69","v":0},{"$f":"[1]ODA!Z69","v":0},0,0]
[0,null,null,null,null,{"$f":"[1]ODA!F70","v":0},{"$f":"[1]ODA!G70","v":0},{"$f":"[1]ODA!H70","v":0},{"$f":"[1]ODA!I70","v":0},{"$f":"[1]ODA!J70","v":0},{"$f":"[1]ODA!K70","v":0},{"$f":"[1]ODA!L70","v":0},{"$f":"[1]ODA!O70","v":0},{"$f":"[1]ODA!P70","v":0},{"$f":"[1]ODA!Q70","v":0},{"$f":"[1]ODA!R70","v":0},{"$f":"[1]ODA!S70","v":0},{"$f":"[1]ODA!T70","v":0},{"$f":"[1]ODA!U70","v":0},{"$f":"[1]ODA!V70","v":0},{"$f":"[1]ODA!W70","v":0},{"$f":"[1]ODA!X70","v":0},{"$f":"[1]ODA!Y70","v":0},{"$f":"[1]ODA!Z70","v":0},0,0]
[0,null,null,null,null,{"$f":"[1]ODA!F71","v":0},{"$f":"[1]ODA!G71","v":0},{"$f":"[1]ODA!H71","v":0},{"$f":"[1]ODA!I71","v":0},{"$f":"[1]ODA!J71","v":0},{"$f":"[1]ODA!K71","v":0},{"$f":"[1]ODA!L71","v":0},{"$f":"[1]ODA!O71","v":0},{"$f":"[1]ODA!P71","v":0},{"$f":"[1]ODA!Q71","v":0},{"$f":"[1]ODA!R71","v":0},{"$f":"[1]ODA!S71","v":0},{"$f":"[1]ODA!T71","v":0},{"$f":"[1]ODA!U71","v":0},{"$f":"[1]ODA!V71","v":0},{"$f":"[1]ODA!W71","v":0},{"$f":"[1]ODA!X71","v":0},{"$f":"[1]ODA!Y71","v":0},{"$f":"[1]ODA!Z71","v":0},0,0]
[0,null,null,null,null,{"$f":"[1]ODA!F72","v":0},{"$f":"[1]ODA!G72","v":0},{"$f":"[1]ODA!H72","v":0},{"$f":"[1]ODA!I72","v":0},{"$f":"[1]ODA!J72","v":0},{"$f":"[1]ODA!K72","v":0},{"$f":"[1]ODA!L72","v":0},{"$f":"[1]ODA!O72","v":0},{"$f":"[1]ODA!P72","v":0},{"$f":"[1]ODA!Q72","v":0},{"$f":"[1]ODA!R72","v":0},{"$f":"[1]ODA!S72","v":0},{"$f":"[1]ODA!T72","v":0},{"$f":"[1]ODA!U72","v":0},{"$f":"[1]ODA!V72","v":0},{"$f":"[1]ODA!W72","v":0},{"$f":"[1]ODA!X72","v":0},{"$f":"[1]ODA!Y72","v":0},{"$f":"[1]ODA!Z72","v":0},0,0]
[0,null,null,null,null,{"$f":"[1]ODA!F73","v":0},{"$f":"[1]ODA!G73","v":0},{"$f":"[1]ODA!H73","v":0},{"$f":"[1]ODA!I73","v":0},{"$f":"[1]ODA!J73","v":0},{"$f":"[1]ODA!K73","v":0},{"$f":"[1]ODA!L73","v":0},{"$f":"[1]ODA!O73","v":0},{"$f":"[1]ODA!P73","v":0},{"$f":"[1]ODA!Q73","v":0},{"$f":"[1]ODA!R73","v":0},{"$f":"[1]ODA!S73","v":0},{"$f":"[1]ODA!T73","v":0},{"$f":"[1]ODA!U73","v":0},{"$f":"[1]ODA!V73","v":0},{"$f":"[1]ODA!W73","v":0},{"$f":"[1]ODA!X73","v":0},{"$f":"[1]ODA!Y73","v":0},{"$f":"[1]ODA!Z73","v":0},0,0]
[0,null,null,null,null,{"$f":"[1]ODA!F74","v":0},{"$f":"[1]ODA!G74","v":0},{"$f":"[1]ODA!H74","v":0},{"$f":"[1]ODA!I74","v":0},{"$f":"[1]ODA!J74","v":0},{"$f":"[1]ODA!K74","v":0},{"$f":"[1]ODA!L74","v":0},{"$f":"[1]ODA!O74","v":0},{"$f":"[1]ODA!P74","v":0},{"$f":"[1]ODA!Q74","v":0},{"$f":"[1]ODA!R74","v":0},{"$f":"[1]ODA!S74","v":0},{"$f":"[1]ODA!T74","v":0},{"$f":"[1]ODA!U74","v":0},{"$f":"[1]ODA!V74","v":0},{"$f":"[1]ODA!W74","v":0},{"$f":"[1]ODA!X74","v":0},{"$f":"[1]ODA!Y74","v":0},{"$f":"[1]ODA!Z74","v":0},0,0]
[0,null,null,null,null,{"$f":"[1]ODA!F75","v":0},{"$f":"[1]ODA!G75","v":0},{"$f":"[1]ODA!H75","v":0},{"$f":"[1]ODA!I75","v":0},{"$f":"[1]ODA!J75","v":0},{"$f":"[1]ODA!K75","v":0},{"$f":"[1]ODA!L75","v":0},{"$f":"[1]ODA!O75","v":0},{"$f":"[1]ODA!P75","v":0},{"$f":"[1]ODA!Q75","v":0},{"$f":"[1]ODA!R75","v":0},{"$f":"[1]ODA!S75","v":0},{"$f":"[1]ODA!T75","v":0},{"$f":"[1]ODA!U75","v":0},{"$f":"[1]ODA!V75","v":0},{"$f":"[1]ODA!W75","v":0},{"$f":"[1]ODA!X75","v":0},{"$f":"[1]ODA!Y75","v":0},{"$f":"[1]ODA!Z75","v":0},0,0]
[{"$f":"IF(SUM(L76:Z76)>0,1,0)","v":0},null,null,null,null,{"$f":"[1]ODA!F76","v":0},{"$f":"[1]ODA!G76","v":0},{"$f":"[1]ODA!H76","v":0},{"$f":"[1]ODA!I76","v":0},{"$f":"[1]ODA!J76","v":0},{"$f":"[1]ODA!K76","v":0},{"$f":"[1]ODA!L76","v":0},{"$f":"[1]ODA!O76","v":0},{"$f":"[1]ODA!P76","v":0},{"$f":"[1]ODA!Q76","v":0},{"$f":"[1]ODA!R76","v":0},{"$f":"[1]ODA!S76","v":0},{"$f":"[1]ODA!T76","v":0},{"$f":"[1]ODA!U76","v":0},{"$f":"[1]ODA!V76","v":0},{"$f":"[1]ODA!W76","v":0},{"$f":"[1]ODA!X76","v":0},{"$f":"[1]ODA!Y76","v":0},{"$f":"[1]ODA!Z76","v":0},0,0]
[0,null,null,null,null,{"$f":"[1]ODA!F77","v":0},{"$f":"[1]ODA!G77","v":0},{"$f":"[1]ODA!H77","v":0},{"$f":"[1]ODA!I77","v":0},{"$f":"[1]ODA!J77","v":0},{"$f":"[1]ODA!K77","v":0},{"$f":"[1]ODA!L77","v":0},{"$f":"[1]ODA!O77","v":0},{"$f":"[1]ODA!P77","v":0},{"$f":"[1]ODA!Q77","v":0},{"$f":"[1]ODA!R77","v":0},{"$f":"[1]ODA!S77","v":0},{"$f":"[1]ODA!T77","v":0},{"$f":"[1]ODA!U77","v":0},{"$f":"[1]ODA!V77","v":0},{"$f":"[1]ODA!W77","v":0},{"$f":"[1]ODA!X77","v":0},{"$f":"[1]ODA!Y77","v":0},{"$f":"[1]ODA!Z77","v":0},0,0]
[0,null,null,null,null,{"$f":"[1]ODA!F78","v":0},{"$f":"[1]ODA!G78","v":0},{"$f":"[1]ODA!H78","v":0},{"$f":"[1]ODA!I78","v":0},{"$f":"[1]ODA!J78","v":0},{"$f":"[1]ODA!K78","v":0},{"$f":"[1]ODA!L78","v":0},{"$f":"[1]ODA!O78","v":0},{"$f":"[1]ODA!P78","v":0},{"$f":"[1]ODA!Q78","v":0},{"$f":"[1]ODA!R78","v":0},{"$f":"[1]ODA!S78","v":0},{"$f":"[1]ODA!T78","v":0},{"$f":"[1]ODA!U78","v":0},{"$f":"[1]ODA!V78","v":0},{"$f":"[1]ODA!W78","v":0},{"$f":"[1]ODA!X78","v":0},{"$f":"[1]ODA!Y78","v":0},{"$f":"[1]ODA!Z78","v":0},0,0]
[0,null,null,null,null,{"$f":"[1]ODA!F79","v":0},{"$f":"[1]ODA!G79","v":0},{"$f":"[1]ODA!H79","v":0},{"$f":"[1]ODA!I79","v":0},{"$f":"[1]ODA!J79","v":0},{"$f":"[1]ODA!K79","v":0},{"$f":"[1]ODA!L79","v":0},{"$f":"[1]ODA!O79","v":0},{"$f":"[1]ODA!P79","v":0},{"$f":"[1]ODA!Q79","v":0},{"$f":"[1]ODA!R79","v":0},{"$f":"[1]ODA!S79","v":0},{"$f":"[1]ODA!T79","v":0},{"$f":"[1]ODA!U79","v":0},{"$f":"[1]ODA!V79","v":0},{"$f":"[1]ODA!W79","v":0},{"$f":"[1]ODA!X79","v":0},{"$f":"[1]ODA!Y79","v":0},{"$f":"[1]ODA!Z79","v":0},0,0]
[0,null,null,null,null,{"$f":"[1]ODA!F80","v":0},{"$f":"[1]ODA!G80","v":0},{"$f":"[1]ODA!H80","v":0},{"$f":"[1]ODA!I80","v":0},{"$f":"[1]ODA!J80","v":0},{"$f":"[1]ODA!K80","v":0},{"$f":"[1]ODA!L80","v":0},{"$f":"[1]ODA!O80","v":0},{"$f":"[1]ODA!P80","v":0},{"$f":"[1]ODA!Q80","v":0},{"$f":"[1]ODA!R80","v":0},{"$f":"[1]ODA!S80","v":0},{"$f":"[1]ODA!T80","v":0},{"$f":"[1]ODA!U80","v":0},{"$f":"[1]ODA!V80","v":0},{"$f":"[1]ODA!W80","v":0},{"$f":"[1]ODA!X80","v":0},{"$f":"[1]ODA!Y80","v":0},{"$f":"[1]ODA!Z80","v":0},0,0]
[0,null,null,null,null,{"$f":"[1]ODA!F81","v":0},{"$f":"[1]ODA!G81","v":0},{"$f":"[1]ODA!H81","v":0},{"$f":"[1]ODA!I81","v":0},{"$f":"[1]ODA!J81","v":0},{"$f":"[1]ODA!K81","v":0},{"$f":"[1]ODA!L81","v":0},{"$f":"[1]ODA!O81","v":0},{"$f":"[1]ODA!P81","v":0},{"$f":"[1]ODA!Q81","v":0},{"$f":"[1]ODA!R81","v":0},{"$f":"[1]ODA!S81","v":0},{"$f":"[1]ODA!T81","v":0},{"$f":"[1]ODA!U81","v":0},{"$f":"[1]ODA!V81","v":0},{"$f":"[1]ODA!W81","v":0},{"$f":"[1]ODA!X81","v":0},{"$f":"[1]ODA!Y81","v":0},{"$f":"[1]ODA!Z81","v":0},0,0]
[0,null,null,null,null,{"$f":"[1]ODA!F82","v":0},{"$f":"[1]ODA!G82","v":0},{"$f":"[1]ODA!H82","v":0},{"$f":"[1]ODA!I82","v":0},{"$f":"[1]ODA!J82","v":0},{"$f":"[1]ODA!K82","v":0},{"$f":"[1]ODA!L82","v":0},{"$f":"[1]ODA!O82","v":0},{"$f":"[1]ODA!P82","v":0},{"$f":"[1]ODA!Q82","v":0},{"$f":"[1]ODA!R82","v":0},{"$f":"[1]ODA!S82","v":0},{"$f":"[1]ODA!T82","v":0},{"$f":"[1]ODA!U82","v":0},{"$f":"[1]ODA!V82","v":0},{"$f":"[1]ODA!W82","v":0},{"$f":"[1]ODA!X82","v":0},{"$f":"[1]ODA!Y82","v":0},{"$f":"[1]ODA!Z82","v":0},0,0]
[0,null,null,null,null,{"$f":"[1]ODA!F83","v":0},{"$f":"[1]ODA!G83","v":0},{"$f":"[1]ODA!H83","v":0},{"$f":"[1]ODA!I83","v":0},{"$f":"[1]ODA!J83","v":0},{"$f":"[1]ODA!K83","v":0},{"$f":"[1]ODA!L83","v":0},{"$f":"[1]ODA!O83","v":0},{"$f":"[1]ODA!P83","v":0},{"$f":"[1]ODA!Q83","v":0},{"$f":"[1]ODA!R83","v":0},{"$f":"[1]ODA!S83","v":0},{"$f":"[1]ODA!T83","v":0},{"$f":"[1]ODA!U83","v":0},{"$f":"[1]ODA!V83","v":0},{"$f":"[1]ODA!W83","v":0},{"$f":"[1]ODA!X83","v":0},{"$f":"[1]ODA!Y83","v":0},{"$f":"[1]ODA!Z83","v":0},0,0]
[0,null,null,null,null,{"$f":"[1]ODA!F84","v":0},{"$f":"[1]ODA!G84","v":0},{"$f":"[1]ODA!H84","v":0},{"$f":"[1]ODA!I84","v":0},{"$f":"[1]ODA!J84","v":0},{"$f":"[1]ODA!K84","v":0},{"$f":"[1]ODA!L84","v":0},{"$f":"[1]ODA!O84","v":0},{"$f":"[1]ODA!P84","v":0},{"$f":"[1]ODA!Q84","v":0},{"$f":"[1]ODA!R84","v":0},{"$f":"[1]ODA!S84","v":0},{"$f":"[1]ODA!T84","v":0},{"$f":"[1]ODA!U84","v":0},{"$f":"[1]ODA!V84","v":0},{"$f":"[1]ODA!W84","v":0},{"$f":"[1]ODA!X84","v":0},{"$f":"[1]ODA!Y84","v":0},{"$f":"[1]ODA!Z84","v":0},0,0]
[0,null,null,null,null,{"$f":"[1]ODA!F85","v":0},{"$f":"[1]ODA!G85","v":0},{"$f":"[1]ODA!H85","v":0},{"$f":"[1]ODA!I85","v":0},{"$f":"[1]ODA!J85","v":0},{"$f":"[1]ODA!K85","v":0},{"$f":"[1]ODA!L85","v":0},{"$f":"[1]ODA!O85","v":0},{"$f":"[1]ODA!P85","v":0},{"$f":"[1]ODA!Q85","v":0},{"$f":"[1]ODA!R85","v":0},{"$f":"[1]ODA!S85","v":0},{"$f":"[1]ODA!T85","v":0},{"$f":"[1]ODA!U85","v":0},{"$f":"[1]ODA!V85","v":0},{"$f":"[1]ODA!W85","v":0},{"$f":"[1]ODA!X85","v":0},{"$f":"[1]ODA!Y85","v":0},{"$f":"[1]ODA!Z85","v":0},0,0]
[0,null,null,null,null,{"$f":"[1]ODA!F86","v":0},{"$f":"[1]ODA!G86","v":0},{"$f":"[1]ODA!H86","v":0},{"$f":"[1]ODA!I86","v":0},{"$f":"[1]ODA!J86","v":0},{"$f":"[1]ODA!K86","v":0},{"$f":"[1]ODA!L86","v":0},{"$f":"[1]ODA!O86","v":0},{"$f":"[1]ODA!P86","v":0},{"$f":"[1]ODA!Q86","v":0},{"$f":"[1]ODA!R86","v":0},{"$f":"[1]ODA!S86","v":0},{"$f":"[1]ODA!T86","v":0},{"$f":"[1]ODA!U86","v":0},{"$f":"[1]ODA!V86","v":0},{"$f":"[1]ODA!W86","v":0},{"$f":"[1]ODA!X86","v":0},{"$f":"[1]ODA!Y86","v":0},{"$f":"[1]ODA!Z86","v":0},0,0]
[0,null,null,null,null,{"$f":"[1]ODA!F87","v":0},{"$f":"[1]ODA!G87","v":0},{"$f":"[1]ODA!H87","v":0},{"$f":"[1]ODA!I87","v":0},{"$f":"[1]ODA!J87","v":0},{"$f":"[1]ODA!K87","v":0},{"$f":"[1]ODA!L87","v":0},{"$f":"[1]ODA!O87","v":0},{"$f":"[1]ODA!P87","v":0},{"$f":"[1]ODA!Q87","v":0},{"$f":"[1]ODA!R87","v":0},{"$f":"[1]ODA!S87","v":0},{"$f":"[1]ODA!T87","v":0},{"$f":"[1]ODA!U87","v":0},{"$f":"[1]ODA!V87","v":0},{"$f":"[1]ODA!W87","v":0},{"$f":"[1]ODA!X87","v":0},{"$f":"[1]ODA!Y87","v":0},{"$f":"[1]ODA!Z87","v":0},0,0]
[0,null,null,null,null,{"$f":"[1]ODA!F88","v":0},{"$f":"[1]ODA!G88","v":0},{"$f":"[1]ODA!H88","v":0},{"$f":"[1]ODA!I88","v":0},{"$f":"[1]ODA!J88","v":0},{"$f":"[1]ODA!K88","v":0},{"$f":"[1]ODA!L88","v":0},{"$f":"[1]ODA!O88","v":0},{"$f":"[1]ODA!P88","v":0},{"$f":"[1]ODA!Q88","v":0},{"$f":"[1]ODA!R88","v":0},{"$f":"[1]ODA!S88","v":0},{"$f":"[1]ODA!T88","v":0},{"$f":"[1]ODA!U88","v":0},{"$f":"[1]ODA!V88","v":0},{"$f":"[1]ODA!W88","v":0},{"$f":"[1]ODA!X88","v":0},{"$f":"[1]ODA!Y88","v":0},{"$f":"[1]ODA!Z88","v":0},0,0]
[0,null,null,null,null,{"$f":"[1]ODA!F89","v":0},{"$f":"[1]ODA!G89","v":0},{"$f":"[1]ODA!H89","v":0},{"$f":"[1]ODA!I89","v":0},{"$f":"[1]ODA!J89","v":0},{"$f":"[1]ODA!K89","v":0},{"$f":"[1]ODA!L89","v":0},{"$f":"[1]ODA!O89","v":0},{"$f":"[1]ODA!P89","v":0},{"$f":"[1]ODA!Q89","v":0},{"$f":"[1]ODA!R89","v":0},{"$f":"[1]ODA!S89","v":0},{"$f":"[1]ODA!T89","v":0},{"$f":"[1]ODA!U89","v":0},{"$f":"[1]ODA!V89","v":0},{"$f":"[1]ODA!W89","v":0},{"$f":"[1]ODA!X89","v":0},{"$f":"[1]ODA!Y89","v":0},{"$f":"[1]ODA!Z89","v":0},0,0]
[0,null,null,null,null,{"$f":"[1]ODA!F90","v":0},{"$f":"[1]ODA!G90","v":0},{"$f":"[1]ODA!H90","v":0},{"$f":"[1]ODA!I90","v":0},{"$f":"[1]ODA!J90","v":0},{"$f":"[1]ODA!K90","v":0},{"$f":"[1]ODA!L90","v":0},{"$f":"[1]ODA!O90","v":0},{"$f":"[1]ODA!P90","v":0},{"$f":"[1]ODA!Q90","v":0},{"$f":"[1]ODA!R90","v":0},{"$f":"[1]ODA!S90","v":0},{"$f":"[1]ODA!T90","v":0},{"$f":"[1]ODA!U90","v":0},{"$f":"[1]ODA!V90","v":0},{"$f":"[1]ODA!W90","v":0},{"$f":"[1]ODA!X90","v":0},{"$f":"[1]ODA!Y90","v":0},{"$f":"[1]ODA!Z90","v":0},0,0]
[0,null,null,null,null,{"$f":"[1]ODA!F91","v":0},{"$f":"[1]ODA!G91","v":0},{"$f":"[1]ODA!H91","v":0},{"$f":"[1]ODA!I91","v":0},{"$f":"[1]ODA!J91","v":0},{"$f":"[1]ODA!K91","v":0},{"$f":"[1]ODA!L91","v":0},{"$f":"[1]ODA!O91","v":0},{"$f":"[1]ODA!P91","v":0},{"$f":"[1]ODA!Q91","v":0},{"$f":"[1]ODA!R91","v":0},{"$f":"[1]ODA!S91","v":0},{"$f":"[1]ODA!T91","v":0},{"$f":"[1]ODA!U91","v":0},{"$f":"[1]ODA!V91","v":0},{"$f":"[1]ODA!W91","v":0},{"$f":"[1]ODA!X91","v":0},{"$f":"[1]ODA!Y91","v":0},{"$f":"[1]ODA!Z91","v":0},0,0]
[0,null,null,null,null,{"$f":"[1]ODA!F92","v":0},{"$f":"[1]ODA!G92","v":0},{"$f":"[1]ODA!H92","v":0},{"$f":"[1]ODA!I92","v":0},{"$f":"[1]ODA!J92","v":0},{"$f":"[1]ODA!K92","v":0},{"$f":"[1]ODA!L92","v":0},{"$f":"[1]ODA!O92","v":0},{"$f":"[1]ODA!P92","v":0},{"$f":"[1]ODA!Q92","v":0},{"$f":"[1]ODA!R92","v":0},{"$f":"[1]ODA!S92","v":0},{"$f":"[1]ODA!T92","v":0},{"$f":"[1]ODA!U92","v":0},{"$f":"[1]ODA!V92","v":0},{"$f":"[1]ODA!W92","v":0},{"$f":"[1]ODA!X92","v":0},{"$f":"[1]ODA!Y92","v":0},{"$f":"[1]ODA!Z92","v":0},0,0]
[0,null,null,null,null,{"$f":"[1]ODA!F93","v":0},{"$f":"[1]ODA!G93","v":0},{"$f":"[1]ODA!H93","v":0},{"$f":"[1]ODA!I93","v":0},{"$f":"[1]ODA!J93","v":0},{"$f":"[1]ODA!K93","v":0},{"$f":"[1]ODA!L93","v":0},{"$f":"[1]ODA!O93","v":0},{"$f":"[1]ODA!P93","v":0},{"$f":"[1]ODA!Q93","v":0},{"$f":"[1]ODA!R93","v":0},{"$f":"[1]ODA!S93","v":0},{"$f":"[1]ODA!T93","v":0},{"$f":"[1]ODA!U93","v":0},{"$f":"[1]ODA!V93","v":0},{"$f":"[1]ODA!W93","v":0},{"$f":"[1]ODA!X93","v":0},{"$f":"[1]ODA!Y93","v":0},{"$f":"[1]ODA!Z93","v":0},0,0]
[0,null,null,null,null,{"$f":"[1]ODA!F94","v":0},{"$f":"[1]ODA!G94","v":0},{"$f":"[1]ODA!H94","v":0},{"$f":"[1]ODA!I94","v":0},{"$f":"[1]ODA!J94","v":0},{"$f":"[1]ODA!K94","v":0},{"$f":"[1]ODA!L94","v":0},{"$f":"[1]ODA!O94","v":0},{"$f":"[1]ODA!P94","v":0},{"$f":"[1]ODA!Q94","v":0},{"$f":"[1]ODA!R94","v":0},{"$f":"[1]ODA!S94","v":0},{"$f":"[1]ODA!T94","v":0},{"$f":"[1]ODA!U94","v":0},{"$f":"[1]ODA!V94","v":0},{"$f":"[1]ODA!W94","v":0},{"$f":"[1]ODA!X94","v":0},{"$f":"[1]ODA!Y94","v":0},{"$f":"[1]ODA!Z94","v":0},0,0]
[0,null,null,null,null,{"$f":"[1]ODA!F95","v":0},{"$f":"[1]ODA!G95","v":0},{"$f":"[1]ODA!H95","v":0},{"$f":"[1]ODA!I95","v":0},{"$f":"[1]ODA!J95","v":0},{"$f":"[1]ODA!K95","v":0},{"$f":"[1]ODA!L95","v":0},{"$f":"[1]ODA!O95","v":0},{"$f":"[1]ODA!P95","v":0},{"$f":"[1]ODA!Q95","v":0},{"$f":"[1]ODA!R95","v":0},{"$f":"[1]ODA!S95","v":0},{"$f":"[1]ODA!T95","v":0},{"$f":"[1]ODA!U95","v":0},{"$f":"[1]ODA!V95","v":0},{"$f":"[1]ODA!W95","v":0},{"$f":"[1]ODA!X95","v":0},{"$f":"[1]ODA!Y95","v":0},{"$f":"[1]ODA!Z95","v":0},0,0]
[0,null,null,null,null,{"$f":"[1]ODA!F96","v":0},{"$f":"[1]ODA!G96","v":0},{"$f":"[1]ODA!H96","v":0},{"$f":"[1]ODA!I96","v":0},{"$f":"[1]ODA!J96","v":0},{"$f":"[1]ODA!K96","v":0},{"$f":"[1]ODA!L96","v":0},{"$f":"[1]ODA!O96","v":0},{"$f":"[1]ODA!P96","v":0},{"$f":"[1]ODA!Q96","v":0},{"$f":"[1]ODA!R96","v":0},{"$f":"[1]ODA!S96","v":0},{"$f":"[1]ODA!T96","v":0},{"$f":"[1]ODA!U96","v":0},{"$f":"[1]ODA!V96","v":0},{"$f":"[1]ODA!W96","v":0},{"$f":"[1]ODA!X96","v":0},{"$f":"[1]ODA!Y96","v":0},{"$f":"[1]ODA!Z96","v":0},0,0]
[0,null,null,null,null,{"$f":"[1]ODA!F97","v":0},{"$f":"[1]ODA!G97","v":0},{"$f":"[1]ODA!H97","v":0},{"$f":"[1]ODA!I97","v":0},{"$f":"[1]ODA!J97","v":0},{"$f":"[1]ODA!K97","v":0},{"$f":"[1]ODA!L97","v":0},{"$f":"[1]ODA!O97","v":0},{"$f":"[1]ODA!P97","v":0},{"$f":"[1]ODA!Q97","v":0},{"$f":"[1]ODA!R97","v":0},{"$f":"[1]ODA!S97","v":0},{"$f":"[1]ODA!T97","v":0},{"$f":"[1]ODA!U97","v":0},{"$f":"[1]ODA!V97","v":0},{"$f":"[1]ODA!W97","v":0},{"$f":"[1]ODA!X97","v":0},{"$f":"[1]ODA!Y97","v":0},{"$f":"[1]ODA!Z97","v":0},0,0]
[0,null,null,null,null,{"$f":"[1]ODA!F98","v":0},{"$f":"[1]ODA!G98","v":0},{"$f":"[1]ODA!H98","v":0},{"$f":"[1]ODA!I98","v":0},{"$f":"[1]ODA!J98","v":0},{"$f":"[1]ODA!K98","v":0},{"$f":"[1]ODA!L98","v":0},{"$f":"[1]ODA!O98","v":0},{"$f":"[1]ODA!P98","v":0},{"$f":"[1]ODA!Q98","v":0},{"$f":"[1]ODA!R98","v":0},{"$f":"[1]ODA!S98","v":0},{"$f":"[1]ODA!T98","v":0},{"$f":"[1]ODA!U98","v":0},{"$f":"[1]ODA!V98","v":0},{"$f":"[1]ODA!W98","v":0},{"$f":"[1]ODA!X98","v":0},{"$f":"[1]ODA!Y98","v":0},{"$f":"[1]ODA!Z98","v":0},0,0]
[0,null,null,null,null,{"$f":"[1]ODA!F99","v":0},{"$f":"[1]ODA!G99","v":0},{"$f":"[1]ODA!H99","v":0},{"$f":"[1]ODA!I99","v":0},{"$f":"[1]ODA!J99","v":0},{"$f":"[1]ODA!K99","v":0},{"$f":"[1]ODA!L99","v":0},{"$f":"[1]ODA!O99","v":0},{"$f":"[1]ODA!P99","v":0},{"$f":"[1]ODA!Q99","v":0},{"$f":"[1]ODA!R99","v":0},{"$f":"[1]ODA!S99","v":0},{"$f":"[1]ODA!T99","v":0},{"$f":"[1]ODA!U99","v":0},{"$f":"[1]ODA!V99","v":0},{"$f":"[1]ODA!W99","v":0},{"$f":"[1]ODA!X99","v":0},{"$f":"[1]ODA!Y99","v":0},{"$f":"[1]ODA!Z99","v":0},0,0]
[0,null,null,null,null,{"$f":"[1]ODA!F100","v":0},{"$f":"[1]ODA!G100","v":0},{"$f":"[1]ODA!H100","v":0},{"$f":"[1]ODA!I100","v":0},{"$f":"[1]ODA!J100","v":0},{"$f":"[1]ODA!K100","v":0},{"$f":"[1]ODA!L100","v":0},{"$f":"[1]ODA!O100","v":0},{"$f":"[1]ODA!P100","v":0},{"$f":"[1]ODA!Q100","v":0},{"$f":"[1]ODA!R100","v":0},{"$f":"[1]ODA!S100","v":0},{"$f":"[1]ODA!T100","v":0},{"$f":"[1]ODA!U100","v":0},{"$f":"[1]ODA!V100","v":0},{"$f":"[1]ODA!W100","v":0},{"$f":"[1]ODA!X100","v":0},{"$f":"[1]ODA!Y100","v":0},{"$f":"[1]ODA!Z100","v":0},0,0]
[0,null,null,null,null,{"$f":"[1]ODA!F101","v":0},{"$f":"[1]ODA!G101","v":0},{"$f":"[1]ODA!H101","v":0},{"$f":"[1]ODA!I101","v":0},{"$f":"[1]ODA!J101","v":0},{"$f":"[1]ODA!K101","v":0},{"$f":"[1]ODA!L101","v":0},{"$f":"[1]ODA!O101","v":0},{"$f":"[1]ODA!P101","v":0},{"$f":"[1]ODA!Q101","v":0},{"$f":"[1]ODA!R101","v":0},{"$f":"[1]ODA!S101","v":0},{"$f":"[1]ODA!T101","v":0},{"$f":"[1]ODA!U101","v":0},{"$f":"[1]ODA!V101","v":0},{"$f":"[1]ODA!W101","v":0},{"$f":"[1]ODA!X101","v":0},{"$f":"[1]ODA!Y101","v":0},{"$f":"[1]ODA!Z101","v":0},0,0]
[0,null,null,null,null,{"$f":"[1]ODA!F102","v":0},{"$f":"[1]ODA!G102","v":0},{"$f":"[1]ODA!H102","v":0},{"$f":"[1]ODA!I102","v":0},{"$f":"[1]ODA!J102","v":0},{"$f":"[1]ODA!K102","v":0},{"$f":"[1]ODA!L102","v":0},{"$f":"[1]ODA!O102","v":0},{"$f":"[1]ODA!P102","v":0},{"$f":"[1]ODA!Q102","v":0},{"$f":"[1]ODA!R102","v":0},{"$f":"[1]ODA!S102","v":0},{"$f":"[1]ODA!T102","v":0},{"$f":"[1]ODA!U102","v":0},{"$f":"[1]ODA!V102","v":0},{"$f":"[1]ODA!W102","v":0},{"$f":"[1]ODA!X102","v":0},{"$f":"[1]ODA!Y102","v":0},{"$f":"[1]ODA!Z102","v":0},0,0]
[0,null,null,null,null,{"$f":"[1]ODA!F103","v":0},{"$f":"[1]ODA!G103","v":0},{"$f":"[1]ODA!H103","v":0},{"$f":"[1]ODA!I103","v":0},{"$f":"[1]ODA!J103","v":0},{"$f":"[1]ODA!K103","v":0},{"$f":"[1]ODA!L103","v":0},{"$f":"[1]ODA!O103","v":0},{"$f":"[1]ODA!P103","v":0},{"$f":"[1]ODA!Q103","v":0},{"$f":"[1]ODA!R103","v":0},{"$f":"[1]ODA!S103","v":0},{"$f":"[1]ODA!T103","v":0},{"$f":"[1]ODA!U103","v":0},{"$f":"[1]ODA!V103","v":0},{"$f":"[1]ODA!W103","v":0},{"$f":"[1]ODA!X103","v":0},{"$f":"[1]ODA!Y103","v":0},{"$f":"[1]ODA!Z103","v":0},0,0]
[0,null,null,null,null,{"$f":"[1]ODA!F104","v":0},{"$f":"[1]ODA!G104","v":0},{"$f":"[1]ODA!H104","v":0},{"$f":"[1]ODA!I104","v":0},{"$f":"[1]ODA!J104","v":0},{"$f":"[1]ODA!K104","v":0},{"$f":"[1]ODA!L104","v":0},{"$f":"[1]ODA!O104","v":0},{"$f":"[1]ODA!P104","v":0},{"$f":"[1]ODA!Q104","v":0},{"$f":"[1]ODA!R104","v":0},{"$f":"[1]ODA!S104","v":0},{"$f":"[1]ODA!T104","v":0},{"$f":"[1]ODA!U104","v":0},{"$f":"[1]ODA!V104","v":0},{"$f":"[1]ODA!W104","v":0},{"$f":"[1]ODA!X104","v":0},{"$f":"[1]ODA!Y104","v":0},{"$f":"[1]ODA!Z104","v":0},0,0]
[0,null,null,null,null,{"$f":"[1]ODA!F105","v":0},{"$f":"[1]ODA!G105","v":0},{"$f":"[1]ODA!H105","v":0},{"$f":"[1]ODA!I105","v":0},{"$f":"[1]ODA!J105","v":0},{"$f":"[1]ODA!K105","v":0},{"$f":"[1]ODA!L105","v":0},{"$f":"[1]ODA!O105","v":0},{"$f":"[1]ODA!P105","v":0},{"$f":"[1]ODA!Q105","v":0},{"$f":"[1]ODA!R105","v":0},{"$f":"[1]ODA!S105","v":0},{"$f":"[1]ODA!T105","v":0},{"$f":"[1]ODA!U105","v":0},{"$f":"[1]ODA!V105","v":0},{"$f":"[1]ODA!W105","v":0},{"$f":"[1]ODA!X105","v":0},{"$f":"[1]ODA!Y105","v":0},{"$f":"[1]ODA!Z105","v":0},0,0]
[0,null,null,null,null,{"$f":"[1]ODA!F106","v":0},{"$f":"[1]ODA!G106","v":0},{"$f":"[1]ODA!H106","v":0},{"$f":"[1]ODA!I106","v":0},{"$f":"[1]ODA!J106","v":0},{"$f":"[1]ODA!K106","v":0},{"$f":"[1]ODA!L106","v":0},{"$f":"[1]ODA!O106","v":0},{"$f":"[1]ODA!P106","v":0},{"$f":"[1]ODA!Q106","v":0},{"$f":"[1]ODA!R106","v":0},{"$f":"[1]ODA!S106","v":0},{"$f":"[1]ODA!T106","v":0},{"$f":"[1]ODA!U106","v":0},{"$f":"[1]ODA!V106","v":0},{"$f":"[1]ODA!W106","v":0},{"$f":"[1]ODA!X106","v":0},{"$f":"[1]ODA!Y106","v":0},{"$f":"[1]ODA!Z106","v":0},0,0]
[0,null,null,null,null,{"$f":"[1]ODA!F107","v":0},{"$f":"[1]ODA!G107","v":0},{"$f":"[1]ODA!H107","v":0},{"$f":"[1]ODA!I107","v":0},{"$f":"[1]ODA!J107","v":0},{"$f":"[1]ODA!K107","v":0},{"$f":"[1]ODA!L107","v":0},{"$f":"[1]ODA!O107","v":0},{"$f":"[1]ODA!P107","v":0},{"$f":"[1]ODA!Q107","v":0},{"$f":"[1]ODA!R107","v":0},{"$f":"[1]ODA!S107","v":0},{"$f":"[1]ODA!T107","v":0},{"$f":"[1]ODA!U107","v":0},{"$f":"[1]ODA!V107","v":0},{"$f":"[1]ODA!W107","v":0},{"$f":"[1]ODA!X107","v":0},{"$f":"[1]ODA!Y107","v":0},{"$f":"[1]ODA!Z107","v":0},0,0]
[0,null,null,null,null,{"$f":"[1]ODA!F108","v":0},{"$f":"[1]ODA!G108","v":0},{"$f":"[1]ODA!H108","v":0},{"$f":"[1]ODA!I108","v":0},{"$f":"[1]ODA!J108","v":0},{"$f":"[1]ODA!K108","v":0},{"$f":"[1]ODA!L108","v":0},{"$f":"[1]ODA!O108","v":0},{"$f":"[1]ODA!P108","v":0},{"$f":"[1]ODA!Q108","v":0},{"$f":"[1]ODA!R108","v":0},{"$f":"[1]ODA!S108","v":0},{"$f":"[1]ODA!T108","v":0},{"$f":"[1]ODA!U108","v":0},{"$f":"[1]ODA!V108","v":0},{"$f":"[1]ODA!W108","v":0},{"$f":"[1]ODA!X108","v":0},{"$f":"[1]ODA!Y108","v":0},{"$f":"[1]ODA!Z108","v":0},0,0]
[0,null,null,null,null,{"$f":"[1]ODA!F109","v":0},{"$f":"[1]ODA!G109","v":0},{"$f":"[1]ODA!H109","v":0},{"$f":"[1]ODA!I109","v":0},{"$f":"[1]ODA!J109","v":0},{"$f":"[1]ODA!K109","v":0},{"$f":"[1]ODA!L109","v":0},{"$f":"[1]ODA!O109","v":0},{"$f":"[1]ODA!P109","v":0},{"$f":"[1]ODA!Q109","v":0},{"$f":"[1]ODA!R109","v":0},{"$f":"[1]ODA!S109","v":0},{"$f":"[1]ODA!T109","v":0},{"$f":"[1]ODA!U109","v":0},{"$f":"[1]ODA!V109","v":0},{"$f":"[1]ODA!W109","v":0},{"$f":"[1]ODA!X109","v":0},{"$f":"[1]ODA!Y109","v":0},{"$f":"[1]ODA!Z109","v":0},0,0]
[0,null,null,null,null,{"$f":"[1]ODA!F110","v":0},{"$f":"[1]ODA!G110","v":0},{"$f":"[1]ODA!H110","v":0},{"$f":"[1]ODA!I110","v":0},{"$f":"[1]ODA!J110","v":0},{"$f":"[1]ODA!K110","v":0},{"$f":"[1]ODA!L110","v":0},{"$f":"[1]ODA!O110","v":0},{"$f":"[1]ODA!P110","v":0},{"$f":"[1]ODA!Q110","v":0},{"$f":"[1]ODA!R110","v":0},{"$f":"[1]ODA!S110","v":0},{"$f":"[1]ODA!T110","v":0},{"$f":"[1]ODA!U110","v":0},{"$f":"[1]ODA!V110","v":0},{"$f":"[1]ODA!W110","v":0},{"$f":"[1]ODA!X110","v":0},{"$f":"[1]ODA!Y110","v":0},{"$f":"[1]ODA!Z110","v":0},0,0]
[0,null,null,null,null,{"$f":"[1]ODA!F111","v":0},{"$f":"[1]ODA!G111","v":0},{"$f":"[1]ODA!H111","v":0},{"$f":"[1]ODA!I111","v":0},{"$f":"[1]ODA!J111","v":0},{"$f":"[1]ODA!K111","v":0},{"$f":"[1]ODA!L111","v":0},{"$f":"[1]ODA!O111","v":0},{"$f":"[1]ODA!P111","v":0},{"$f":"[1]ODA!Q111","v":0},{"$f":"[1]ODA!R111","v":0},{"$f":"[1]ODA!S111","v":0},{"$f":"[1]ODA!T111","v":0},{"$f":"[1]ODA!U111","v":0},{"$f":"[1]ODA!V111","v":0},{"$f":"[1]ODA!W111","v":0},{"$f":"[1]ODA!X111","v":0},{"$f":"[1]ODA!Y111","v":0},{"$f":"[1]ODA!Z111","v":0},0,0]
[0,null,null,null,null,{"$f":"[1]ODA!F112","v":0},{"$f":"[1]ODA!G112","v":0},{"$f":"[1]ODA!H112","v":0},{"$f":"[1]ODA!I112","v":0},{"$f":"[1]ODA!J112","v":0},{"$f":"[1]ODA!K112","v":0},{"$f":"[1]ODA!L112","v":0},{"$f":"[1]ODA!O112","v":0},{"$f":"[1]ODA!P112","v":0},{"$f":"[1]ODA!Q112","v":0},{"$f":"[1]ODA!R112","v":0},{"$f":"[1]ODA!S112","v":0},{"$f":"[1]ODA!T112","v":0},{"$f":"[1]ODA!U112","v":0},{"$f":"[1]ODA!V112","v":0},{"$f":"[1]ODA!W112","v":0},{"$f":"[1]ODA!X112","v":0},{"$f":"[1]ODA!Y112","v":0},{"$f":"[1]ODA!Z112","v":0},0,0]
[0,null,null,null,null,{"$f":"[1]ODA!F113","v":0},{"$f":"[1]ODA!G113","v":0},{"$f":"[1]ODA!H113","v":0},{"$f":"[1]ODA!I113","v":0},{"$f":"[1]ODA!J113","v":0},{"$f":"[1]ODA!K113","v":0},{"$f":"[1]ODA!L113","v":0},{"$f":"[1]ODA!O113","v":0},{"$f":"[1]ODA!P113","v":0},{"$f":"[1]ODA!Q113","v":0},{"$f":"[1]ODA!R113","v":0},{"$f":"[1]ODA!S113","v":0},{"$f":"[1]ODA!T113","v":0},{"$f":"[1]ODA!U113","v":0},{"$f":"[1]ODA!V113","v":0},{"$f":"[1]ODA!W113","v":0},{"$f":"[1]ODA!X113","v":0},{"$f":"[1]ODA!Y113","v":0},{"$f":"[1]ODA!Z113","v":0},0,0]
[0,null,null,null,null,{"$f":"[1]ODA!F114","v":0},{"$f":"[1]ODA!G114","v":0},{"$f":"[1]ODA!H114","v":0},{"$f":"[1]ODA!I114","v":0},{"$f":"[1]ODA!J114","v":0},{"$f":"[1]ODA!K114","v":0},{"$f":"[1]ODA!L114","v":0},{"$f":"[1]ODA!O114","v":0},{"$f":"[1]ODA!P114","v":0},{"$f":"[1]ODA!Q114","v":0},{"$f":"[1]ODA!R114","v":0},{"$f":"[1]ODA!S114","v":0},{"$f":"[1]ODA!T114","v":0},{"$f":"[1]ODA!U114","v":0},{"$f":"[1]ODA!V114","v":0},{"$f":"[1]ODA!W114","v":0},{"$f":"[1]ODA!X114","v":0},{"$f":"[1]ODA!Y114","v":0},{"$f":"[1]ODA!Z114","v":0},0,0]
[0,null,null,null,null,{"$f":"[1]ODA!F115","v":0},{"$f":"[1]ODA!G115","v":0},{"$f":"[1]ODA!H115","v":0},{"$f":"[1]ODA!I115","v":0},{"$f":"[1]ODA!J115","v":0},{"$f":"[1]ODA!K115","v":0},{"$f":"[1]ODA!L115","v":0},{"$f":"[1]ODA!O115","v":0},{"$f":"[1]ODA!P115","v":0},{"$f":"[1]ODA!Q115","v":0},{"$f":"[1]ODA!R115","v":0},{"$f":"[1]ODA!S115","v":0},{"$f":"[1]ODA!T115","v":0},{"$f":"[1]ODA!U115","v":0},{"$f":"[1]ODA!V115","v":0},{"$f":"[1]ODA!W115","v":0},{"$f":"[1]ODA!X115","v":0},{"$f":"[1]ODA!Y115","v":0},{"$f":"[1]ODA!Z115","v":0},0,0]
[0,null,null,null,null,{"$f":"[1]ODA!F116","v":0},{"$f":"[1]ODA!G116","v":0},{"$f":"[1]ODA!H116","v":0},{"$f":"[1]ODA!I116","v":0},{"$f":"[1]ODA!J116","v":0},{"$f":"[1]ODA!K116","v":0},{"$f":"[1]ODA!L116","v":0},{"$f":"[1]ODA!O116","v":0},{"$f":"[1]ODA!P116","v":0},{"$f":"[1]ODA!Q116","v":0},{"$f":"[1]ODA!R116","v":0},{"$f":"[1]ODA!S116","v":0},{"$f":"[1]ODA!T116","v":0},{"$f":"[1]ODA!U116","v":0},{"$f":"[1]ODA!V116","v":0},{"$f":"[1]ODA!W116","v":0},{"$f":"[1]ODA!X116","v":0},{"$f":"[1]ODA!Y116","v":0},{"$f":"[1]ODA!Z116","v":0},0,0]
[0,null,null,null,null,{"$f":"[1]ODA!F117","v":0},{"$f":"[1]ODA!G117","v":0},{"$f":"[1]ODA!H117","v":0},{"$f":"[1]ODA!I117","v":0},{"$f":"[1]ODA!J117","v":0},{"$f":"[1]ODA!K117","v":0},{"$f":"[1]ODA!L117","v":0},{"$f":"[1]ODA!O117","v":0},{"$f":"[1]ODA!P117","v":0},{"$f":"[1]ODA!Q117","v":0},{"$f":"[1]ODA!R117","v":0},{"$f":"[1]ODA!S117","v":0},{"$f":"[1]ODA!T117","v":0},{"$f":"[1]ODA!U117","v":0},{"$f":"[1]ODA!V117","v":0},{"$f":"[1]ODA!W117","v":0},{"$f":"[1]ODA!X117","v":0},{"$f":"[1]ODA!Y117","v":0},{"$f":"[1]ODA!Z117","v":0},0,0]
[0,null,null,null,null,{"$f":"[1]ODA!F118","v":0},{"$f":"[1]ODA!G118","v":0},{"$f":"[1]ODA!H118","v":0},{"$f":"[1]ODA!I118","v":0},{"$f":"[1]ODA!J118","v":0},{"$f":"[1]ODA!K118","v":0},{"$f":"[1]ODA!L118","v":0},{"$f":"[1]ODA!O118","v":0},{"$f":"[1]ODA!P118","v":0},{"$f":"[1]ODA!Q118","v":0},{"$f":"[1]ODA!R118","v":0},{"$f":"[1]ODA!S118","v":0},{"$f":"[1]ODA!T118","v":0},{"$f":"[1]ODA!U118","v":0},{"$f":"[1]ODA!V118","v":0},{"$f":"[1]ODA!W118","v":0},{"$f":"[1]ODA!X118","v":0},{"$f":"[1]ODA!Y118","v":0},{"$f":"[1]ODA!Z118","v":0},0,0]
[0,null,null,null,null,{"$f":"[1]ODA!F119","v":0},{"$f":"[1]ODA!G119","v":0},{"$f":"[1]ODA!H119","v":0},{"$f":"[1]ODA!I119","v":0},{"$f":"[1]ODA!J119","v":0},{"$f":"[1]ODA!K119","v":0},{"$f":"[1]ODA!L119","v":0},{"$f":"[1]ODA!O119","v":0},{"$f":"[1]ODA!P119","v":0},{"$f":"[1]ODA!Q119","v":0},{"$f":"[1]ODA!R119","v":0},{"$f":"[1]ODA!S119","v":0},{"$f":"[1]ODA!T119","v":0},{"$f":"[1]ODA!U119","v":0},{"$f":"[1]ODA!V119","v":0},{"$f":"[1]ODA!W119","v":0},{"$f":"[1]ODA!X119","v":0},{"$f":"[1]ODA!Y119","v":0},{"$f":"[1]ODA!Z119","v":0},0,0]
[0,null,null,null,null,{"$f":"[1]ODA!F120","v":0},{"$f":"[1]ODA!G120","v":0},{"$f":"[1]ODA!H120","v":0},{"$f":"[1]ODA!I120","v":0},{"$f":"[1]ODA!J120","v":0},{"$f":"[1]ODA!K120","v":0},{"$f":"[1]ODA!L120","v":0},{"$f":"[1]ODA!O120","v":0},{"$f":"[1]ODA!P120","v":0},{"$f":"[1]ODA!Q120","v":0},{"$f":"[1]ODA!R120","v":0},{"$f":"[1]ODA!S120","v":0},{"$f":"[1]ODA!T120","v":0},{"$f":"[1]ODA!U120","v":0},{"$f":"[1]ODA!V120","v":0},{"$f":"[1]ODA!W120","v":0},{"$f":"[1]ODA!X120","v":0},{"$f":"[1]ODA!Y120","v":0},{"$f":"[1]ODA!Z120","v":0},0,0]
[0,null,null,null,null,{"$f":"[1]ODA!F121","v":0},{"$f":"[1]ODA!G121","v":0},{"$f":"[1]ODA!H121","v":0},{"$f":"[1]ODA!I121","v":0},{"$f":"[1]ODA!J121","v":0},{"$f":"[1]ODA!K121","v":0},{"$f":"[1]ODA!L121","v":0},{"$f":"[1]ODA!O121","v":0},{"$f":"[1]ODA!P121","v":0},{"$f":"[1]ODA!Q121","v":0},{"$f":"[1]ODA!R121","v":0},{"$f":"[1]ODA!S121","v":0},{"$f":"[1]ODA!T121","v":0},{"$f":"[1]ODA!U121","v":0},{"$f":"[1]ODA!V121","v":0},{"$f":"[1]ODA!W121","v":0},{"$f":"[1]ODA!X121","v":0},{"$f":"[1]ODA!Y121","v":0},{"$f":"[1]ODA!Z121","v":0},0,0]
[0,null,null,null,null,{"$f":"[1]ODA!F122","v":0},{"$f":"[1]ODA!G122","v":0},{"$f":"[1]ODA!H122","v":0},{"$f":"[1]ODA!I122","v":0},{"$f":"[1]ODA!J122","v":0},{"$f":"[1]ODA!K122","v":0},{"$f":"[1]ODA!L122","v":0},{"$f":"[1]ODA!O122","v":0},{"$f":"[1]ODA!P122","v":0},{"$f":"[1]ODA!Q122","v":0},{"$f":"[1]ODA!R122","v":0},{"$f":"[1]ODA!S122","v":0},{"$f":"[1]ODA!T122","v":0},{"$f":"[1]ODA!U122","v":0},{"$f":"[1]ODA!V122","v":0},{"$f":"[1]ODA!W122","v":0},{"$f":"[1]ODA!X122","v":0},{"$f":"[1]ODA!Y122","v":0},{"$f":"[1]ODA!Z122","v":0},0,0]
[0,null,null,null,null,{"$f":"[1]ODA!F123","v":0},{"$f":"[1]ODA!G123","v":0},{"$f":"[1]ODA!H123","v":0},{"$f":"[1]ODA!I123","v":0},{"$f":"[1]ODA!J123","v":0},{"$f":"[1]ODA!K123","v":0},{"$f":"[1]ODA!L123","v":0},{"$f":"[1]ODA!O123","v":0},{"$f":"[1]ODA!P123","v":0},{"$f":"[1]ODA!Q123","v":0},{"$f":"[1]ODA!R123","v":0},{"$f":"[1]ODA!S123","v":0},{"$f":"[1]ODA!T123","v":0},{"$f":"[1]ODA!U123","v":0},{"$f":"[1]ODA!V123","v":0},{"$f":"[1]ODA!W123","v":0},{"$f":"[1]ODA!X123","v":0},{"$f":"[1]ODA!Y123","v":0},{"$f":"[1]ODA!Z123","v":0},0,0]
[0,null,null,null,null,{"$f":"[1]ODA!F124","v":0},{"$f":"[1]ODA!G124","v":0},{"$f":"[1]ODA!H124","v":0},{"$f":"[1]ODA!I124","v":0},{"$f":"[1]ODA!J124","v":0},{"$f":"[1]ODA!K124","v":0},{"$f":"[1]ODA!L124","v":0},{"$f":"[1]ODA!O124","v":0},{"$f":"[1]ODA!P124","v":0},{"$f":"[1]ODA!Q124","v":0},{"$f":"[1]ODA!R124","v":0},{"$f":"[1]ODA!S124","v":0},{"$f":"[1]ODA!T124","v":0},{"$f":"[1]ODA!U124","v":0},{"$f":"[1]ODA!V124","v":0},{"$f":"[1]ODA!W124","v":0},{"$f":"[1]ODA!X124","v":0},{"$f":"[1]ODA!Y124","v":0},{"$f":"[1]ODA!Z124","v":0},0,0]
[0,null,null,null,null,{"$f":"[1]ODA!F125","v":0},{"$f":"[1]ODA!G125","v":0},{"$f":"[1]ODA!H125","v":0},{"$f":"[1]ODA!I125","v":0},{"$f":"[1]ODA!J125","v":0},{"$f":"[1]ODA!K125","v":0},{"$f":"[1]ODA!L125","v":0},{"$f":"[1]ODA!O125","v":0},{"$f":"[1]ODA!P125","v":0},{"$f":"[1]ODA!Q125","v":0},{"$f":"[1]ODA!R125","v":0},{"$f":"[1]ODA!S125","v":0},{"$f":"[1]ODA!T125","v":0},{"$f":"[1]ODA!U125","v":0},{"$f":"[1]ODA!V125","v":0},{"$f":"[1]ODA!W125","v":0},{"$f":"[1]ODA!X125","v":0},{"$f":"[1]ODA!Y125","v":0},{"$f":"[1]ODA!Z125","v":0},0,0]
[0,null,null,null,null,{"$f":"[1]ODA!F126","v":0},{"$f":"[1]ODA!G126","v":0},{"$f":"[1]ODA!H126","v":0},{"$f":"[1]ODA!I126","v":0},{"$f":"[1]ODA!J126","v":0},{"$f":"[1]ODA!K126","v":0},{"$f":"[1]ODA!L126","v":0},{"$f":"[1]ODA!O126","v":0},{"$f":"[1]ODA!P126","v":0},{"$f":"[1]ODA!Q126","v":0},{"$f":"[1]ODA!R126","v":0},{"$f":"[1]ODA!S126","v":0},{"$f":"[1]ODA!T126","v":0},{"$f":"[1]ODA!U126","v":0},{"$f":"[1]ODA!V126","v":0},{"$f":"[1]ODA!W126","v":0},{"$f":"[1]ODA!X126","v":0},{"$f":"[1]ODA!Y126","v":0},{"$f":"[1]ODA!Z126","v":0},0,0]
[0,null,null,null,null,{"$f":"[1]ODA!F127","v":0},{"$f":"[1]ODA!G127","v":0},{"$f":"[1]ODA!H127","v":0},{"$f":"[1]ODA!I127","v":0},{"$f":"[1]ODA!J127","v":0},{"$f":"[1]ODA!K127","v":0},{"$f":"[1]ODA!L127","v":0},{"$f":"[1]ODA!O127","v":0},{"$f":"[1]ODA!P127","v":0},{"$f":"[1]ODA!Q127","v":0},{"$f":"[1]ODA!R127","v":0},{"$f":"[1]ODA!S127","v":0},{"$f":"[1]ODA!T127","v":0},{"$f":"[1]ODA!U127","v":0},{"$f":"[1]ODA!V127","v":0},{"$f":"[1]ODA!W127","v":0},{"$f":"[1]ODA!X127","v":0},{"$f":"[1]ODA!Y127","v":0},{"$f":"[1]ODA!Z127","v":0},0,0]
[0,null,null,null,null,{"$f":"[1]ODA!F128","v":0},{"$f":"[1]ODA!G128","v":0},{"$f":"[1]ODA!H128","v":0},{"$f":"[1]ODA!I128","v":0},{"$f":"[1]ODA!J128","v":0},{"$f":"[1]ODA!K128","v":0},{"$f":"[1]ODA!L128","v":0},{"$f":"[1]ODA!O128","v":0},{"$f":"[1]ODA!P128","v":0},{"$f":"[1]ODA!Q128","v":0},{"$f":"[1]ODA!R128","v":0},{"$f":"[1]ODA!S128","v":0},{"$f":"[1]ODA!T128","v":0},{"$f":"[1]ODA!U128","v":0},{"$f":"[1]ODA!V128","v":0},{"$f":"[1]ODA!W128","v":0},{"$f":"[1]ODA!X128","v":0},{"$f":"[1]ODA!Y128","v":0},{"$f":"[1]ODA!Z128","v":0},0,0]
[0,null,null,null,null,{"$f":"[1]ODA!F129","v":0},{"$f":"[1]ODA!G129","v":0},{"$f":"[1]ODA!H129","v":0},{"$f":"[1]ODA!I129","v":0},{"$f":"[1]ODA!J129","v":0},{"$f":"[1]ODA!K129","v":0},{"$f":"[1]ODA!L129","v":0},{"$f":"[1]ODA!O129","v":0},{"$f":"[1]ODA!P129","v":0},{"$f":"[1]ODA!Q129","v":0},{"$f":"[1]ODA!R129","v":0},{"$f":"[1]ODA!S129","v":0},{"$f":"[1]ODA!T129","v":0},{"$f":"[1]ODA!U129","v":0},{"$f":"[1]ODA!V129","v":0},{"$f":"[1]ODA!W129","v":0},{"$f":"[1]ODA!X129","v":0},{"$f":"[1]ODA!Y129","v":0},{"$f":"[1]ODA!Z129","v":0},0,0]
[0,null,null,null,null,{"$f":"[1]ODA!F130","v":0},{"$f":"[1]ODA!G130","v":0},{"$f":"[1]ODA!H130","v":0},{"$f":"[1]ODA!I130","v":0},{"$f":"[1]ODA!J130","v":0},{"$f":"[1]ODA!K130","v":0},{"$f":"[1]ODA!L130","v":0},{"$f":"[1]ODA!O130","v":0},{"$f":"[1]ODA!P130","v":0},{"$f":"[1]ODA!Q130","v":0},{"$f":"[1]ODA!R130","v":0},{"$f":"[1]ODA!S130","v":0},{"$f":"[1]ODA!T130","v":0},{"$f":"[1]ODA!U130","v":0},{"$f":"[1]ODA!V130","v":0},{"$f":"[1]ODA!W130","v":0},{"$f":"[1]ODA!X130","v":0},{"$f":"[1]ODA!Y130","v":0},{"$f":"[1]ODA!Z130","v":0},0,0]
[0,null,null,null,null,{"$f":"[1]ODA!F131","v":0},{"$f":"[1]ODA!G131","v":0},{"$f":"[1]ODA!H131","v":0},{"$f":"[1]ODA!I131","v":0},{"$f":"[1]ODA!J131","v":0},{"$f":"[1]ODA!K131","v":0},{"$f":"[1]ODA!L131","v":0},{"$f":"[1]ODA!O131","v":0},{"$f":"[1]ODA!P131","v":0},{"$f":"[1]ODA!Q131","v":0},{"$f":"[1]ODA!R131","v":0},{"$f":"[1]ODA!S131","v":0},{"$f":"[1]ODA!T131","v":0},{"$f":"[1]ODA!U131","v":0},{"$f":"[1]ODA!V131","v":0},{"$f":"[1]ODA!W131","v":0},{"$f":"[1]ODA!X131","v":0},{"$f":"[1]ODA!Y131","v":0},{"$f":"[1]ODA!Z131","v":0},0,0]
[0,null,null,null,null,{"$f":"[1]ODA!F132","v":0},{"$f":"[1]ODA!G132","v":0},{"$f":"[1]ODA!H132","v":0},{"$f":"[1]ODA!I132","v":0},{"$f":"[1]ODA!J132","v":0},{"$f":"[1]ODA!K132","v":0},{"$f":"[1]ODA!L132","v":0},{"$f":"[1]ODA!O132","v":0},{"$f":"[1]ODA!P132","v":0},{"$f":"[1]ODA!Q132","v":0},{"$f":"[1]ODA!R132","v":0},{"$f":"[1]ODA!S132","v":0},{"$f":"[1]ODA!T132","v":0},{"$f":"[1]ODA!U132","v":0},{"$f":"[1]ODA!V132","v":0},{"$f":"[1]ODA!W132","v":0},{"$f":"[1]ODA!X132","v":0},{"$f":"[1]ODA!Y132","v":0},{"$f":"[1]ODA!Z132","v":0},0,0]
[0,null,null,null,null,{"$f":"[1]ODA!F133","v":0},{"$f":"[1]ODA!G133","v":0},{"$f":"[1]ODA!H133","v":0},{"$f":"[1]ODA!I133","v":0},{"$f":"[1]ODA!J133","v":0},{"$f":"[1]ODA!K133","v":0},{"$f":"[1]ODA!L133","v":0},{"$f":"[1]ODA!O133","v":0},{"$f":"[1]ODA!P133","v":0},{"$f":"[1]ODA!Q133","v":0},{"$f":"[1]ODA!R133","v":0},{"$f":"[1]ODA!S133","v":0},{"$f":"[1]ODA!T133","v":0},{"$f":"[1]ODA!U133","v":0},{"$f":"[1]ODA!V133","v":0},{"$f":"[1]ODA!W133","v":0},{"$f":"[1]ODA!X133","v":0},{"$f":"[1]ODA!Y133","v":0},{"$f":"[1]ODA!Z133","v":0},0,0]
[0,null,null,null,null,{"$f":"[1]ODA!F134","v":0},{"$f":"[1]ODA!G134","v":0},{"$f":"[1]ODA!H134","v":0},{"$f":"[1]ODA!I134","v":0},{"$f":"[1]ODA!J134","v":0},{"$f":"[1]ODA!K134","v":0},{"$f":"[1]ODA!L134","v":0},{"$f":"[1]ODA!O134","v":0},{"$f":"[1]ODA!P134","v":0},{"$f":"[1]ODA!Q134","v":0},{"$f":"[1]ODA!R134","v":0},{"$f":"[1]ODA!S134","v":0},{"$f":"[1]ODA!T134","v":0},{"$f":"[1]ODA!U134","v":0},{"$f":"[1]ODA!V134","v":0},{"$f":"[1]ODA!W134","v":0},{"$f":"[1]ODA!X134","v":0},{"$f":"[1]ODA!Y134","v":0},{"$f":"[1]ODA!Z134","v":0},0,0]
[0,null,null,null,null,{"$f":"[1]ODA!F135","v":0},{"$f":"[1]ODA!G135","v":0},{"$f":"[1]ODA!H135","v":0},{"$f":"[1]ODA!I135","v":0},{"$f":"[1]ODA!J135","v":0},{"$f":"[1]ODA!K135","v":0},{"$f":"[1]ODA!L135","v":0},{"$f":"[1]ODA!O135","v":0},{"$f":"[1]ODA!P135","v":0},{"$f":"[1]ODA!Q135","v":0},{"$f":"[1]ODA!R135","v":0},{"$f":"[1]ODA!S135","v":0},{"$f":"[1]ODA!T135","v":0},{"$f":"[1]ODA!U135","v":0},{"$f":"[1]ODA!V135","v":0},{"$f":"[1]ODA!W135","v":0},{"$f":"[1]ODA!X135","v":0},{"$f":"[1]ODA!Y135","v":0},{"$f":"[1]ODA!Z135","v":0},0,0]
[0,null,null,null,null,{"$f":"[1]ODA!F136","v":0},{"$f":"[1]ODA!G136","v":0},{"$f":"[1]ODA!H136","v":0},{"$f":"[1]ODA!I136","v":0},{"$f":"[1]ODA!J136","v":0},{"$f":"[1]ODA!K136","v":0},{"$f":"[1]ODA!L136","v":0},{"$f":"[1]ODA!O136","v":0},{"$f":"[1]ODA!P136","v":0},{"$f":"[1]ODA!Q136","v":0},{"$f":"[1]ODA!R136","v":0},{"$f":"[1]ODA!S136","v":0},{"$f":"[1]ODA!T136","v":0},{"$f":"[1]ODA!U136","v":0},{"$f":"[1]ODA!V136","v":0},{"$f":"[1]ODA!W136","v":0},{"$f":"[1]ODA!X136","v":0},{"$f":"[1]ODA!Y136","v":0},{"$f":"[1]ODA!Z136","v":0},0,0]
[0,null,null,null,null,{"$f":"[1]ODA!F137","v":0},{"$f":"[1]ODA!G137","v":0},{"$f":"[1]ODA!H137","v":0},{"$f":"[1]ODA!I137","v":0},{"$f":"[1]ODA!J137","v":0},{"$f":"[1]ODA!K137","v":0},{"$f":"[1]ODA!L137","v":0},{"$f":"[1]ODA!O137","v":0},{"$f":"[1]ODA!P137","v":0},{"$f":"[1]ODA!Q137","v":0},{"$f":"[1]ODA!R137","v":0},{"$f":"[1]ODA!S137","v":0},{"$f":"[1]ODA!T137","v":0},{"$f":"[1]ODA!U137","v":0},{"$f":"[1]ODA!V137","v":0},{"$f":"[1]ODA!W137","v":0},{"$f":"[1]ODA!X137","v":0},{"$f":"[1]ODA!Y137","v":0},{"$f":"[1]ODA!Z137","v":0},0,0]
[0,null,null,null,null,{"$f":"[1]ODA!F138","v":0},{"$f":"[1]ODA!G138","v":0},{"$f":"[1]ODA!H138","v":0},{"$f":"[1]ODA!I138","v":0},{"$f":"[1]ODA!J138","v":0},{"$f":"[1]ODA!K138","v":0},{"$f":"[1]ODA!L138","v":0},{"$f":"[1]ODA!O138","v":0},{"$f":"[1]ODA!P138","v":0},{"$f":"[1]ODA!Q138","v":0},{"$f":"[1]ODA!R138","v":0},{"$f":"[1]ODA!S138","v":0},{"$f":"[1]ODA!T138","v":0},{"$f":"[1]ODA!U138","v":0},{"$f":"[1]ODA!V138","v":0},{"$f":"[1]ODA!W138","v":0},{"$f":"[1]ODA!X138","v":0},{"$f":"[1]ODA!Y138","v":0},{"$f":"[1]ODA!Z138","v":0},0,0]
[0,null,null,null,null,{"$f":"[1]ODA!F139","v":0},{"$f":"[1]ODA!G139","v":0},{"$f":"[1]ODA!H139","v":0},{"$f":"[1]ODA!I139","v":0},{"$f":"[1]ODA!J139","v":0},{"$f":"[1]ODA!K139","v":0},{"$f":"[1]ODA!L139","v":0},{"$f":"[1]ODA!O139","v":0},{"$f":"[1]ODA!P139","v":0},{"$f":"[1]ODA!Q139","v":0},{"$f":"[1]ODA!R139","v":0},{"$f":"[1]ODA!S139","v":0},{"$f":"[1]ODA!T139","v":0},{"$f":"[1]ODA!U139","v":0},{"$f":"[1]ODA!V139","v":0},{"$f":"[1]ODA!W139","v":0},{"$f":"[1]ODA!X139","v":0},{"$f":"[1]ODA!Y139","v":0},{"$f":"[1]ODA!Z139","v":0},0,0]
[{"$f":"IF(SUM(L140:Z140)>0,1,0)","v":0},null,null,null,null,{"$f":"[1]ODA!F140","v":0},{"$f":"[1]ODA!G140","v":0},{"$f":"[1]ODA!H140","v":0},{"$f":"[1]ODA!I140","v":0},{"$f":"[1]ODA!J140","v":0},{"$f":"[1]ODA!K140","v":0},{"$f":"[1]ODA!L140","v":0},{"$f":"[1]ODA!O140","v":0},{"$f":"[1]ODA!P140","v":0},{"$f":"[1]ODA!Q140","v":0},{"$f":"[1]ODA!R140","v":0},{"$f":"[1]ODA!S140","v":0},{"$f":"[1]ODA!T140","v":0},{"$f":"[1]ODA!U140","v":0},{"$f":"[1]ODA!V140","v":0},{"$f":"[1]ODA!W140","v":0},{"$f":"[1]ODA!X140","v":0},{"$f":"[1]ODA!Y140","v":0},{"$f":"[1]ODA!Z140","v":0},0,0]
[0,null,null,null,null,{"$f":"[1]ODA!F141","v":0},{"$f":"[1]ODA!G141","v":0},{"$f":"[1]ODA!H141","v":0},{"$f":"[1]ODA!I141","v":0},{"$f":"[1]ODA!J141","v":0},{"$f":"[1]ODA!K141","v":0},{"$f":"[1]ODA!L141","v":0},{"$f":"[1]ODA!O141","v":0},{"$f":"[1]ODA!P141","v":0},{"$f":"[1]ODA!Q141","v":0},{"$f":"[1]ODA!R141","v":0},{"$f":"[1]ODA!S141","v":0},{"$f":"[1]ODA!T141","v":0},{"$f":"[1]ODA!U141","v":0},{"$f":"[1]ODA!V141","v":0},{"$f":"[1]ODA!W141","v":0},{"$f":"[1]ODA!X141","v":0},{"$f":"[1]ODA!Y141","v":0},{"$f":"[1]ODA!Z141","v":0},0,0]
[0,null,null,null,null,{"$f":"[1]ODA!F142","v":0},{"$f":"[1]ODA!G142","v":0},{"$f":"[1]ODA!H142","v":0},{"$f":"[1]ODA!I142","v":0},{"$f":"[1]ODA!J142","v":0},{"$f":"[1]ODA!K142","v":0},{"$f":"[1]ODA!L142","v":0},{"$f":"[1]ODA!O142","v":0},{"$f":"[1]ODA!P142","v":0},{"$f":"[1]ODA!Q142","v":0},{"$f":"[1]ODA!R142","v":0},{"$f":"[1]ODA!S142","v":0},{"$f":"[1]ODA!T142","v":0},{"$f":"[1]ODA!U142","v":0},{"$f":"[1]ODA!V142","v":0},{"$f":"[1]ODA!W142","v":0},{"$f":"[1]ODA!X142","v":0},{"$f":"[1]ODA!Y142","v":0},{"$f":"[1]ODA!Z142","v":0},0,0]
[0,null,null,null,null,{"$f":"[1]ODA!F143","v":0},{"$f":"[1]ODA!G143","v":0},{"$f":"[1]ODA!H143","v":0},{"$f":"[1]ODA!I143","v":0},{"$f":"[1]ODA!J143","v":0},{"$f":"[1]ODA!K143","v":0},{"$f":"[1]ODA!L143","v":0},{"$f":"[1]ODA!O143","v":0},{"$f":"[1]ODA!P143","v":0},{"$f":"[1]ODA!Q143","v":0},{"$f":"[1]ODA!R143","v":0},{"$f":"[1]ODA!S143","v":0},{"$f":"[1]ODA!T143","v":0},{"$f":"[1]ODA!U143","v":0},{"$f":"[1]ODA!V143","v":0},{"$f":"[1]ODA!W143","v":0},{"$f":"[1]ODA!X143","v":0},{"$f":"[1]ODA!Y143","v":0},{"$f":"[1]ODA!Z143","v":0},0,0]
[0,null,null,null,null,{"$f":"[1]ODA!F144","v":0},{"$f":"[1]ODA!G144","v":0},{"$f":"[1]ODA!H144","v":0},{"$f":"[1]ODA!I144","v":0},{"$f":"[1]ODA!J144","v":0},{"$f":"[1]ODA!K144","v":0},{"$f":"[1]ODA!L144","v":0},{"$f":"[1]ODA!O144","v":0},{"$f":"[1]ODA!P144","v":0},{"$f":"[1]ODA!Q144","v":0},{"$f":"[1]ODA!R144","v":0},{"$f":"[1]ODA!S144","v":0},{"$f":"[1]ODA!T144","v":0},{"$f":"[1]ODA!U144","v":0},{"$f":"[1]ODA!V144","v":0},{"$f":"[1]ODA!W144","v":0},{"$f":"[1]ODA!X144","v":0},{"$f":"[1]ODA!Y144","v":0},{"$f":"[1]ODA!Z144","v":0},0,0]
[0,null,null,null,null,{"$f":"[1]ODA!F145","v":0},{"$f":"[1]ODA!G145","v":0},{"$f":"[1]ODA!H145","v":0},{"$f":"[1]ODA!I145","v":0},{"$f":"[1]ODA!J145","v":0},{"$f":"[1]ODA!K145","v":0},{"$f":"[1]ODA!L145","v":0},{"$f":"[1]ODA!O145","v":0},{"$f":"[1]ODA!P145","v":0},{"$f":"[1]ODA!Q145","v":0},{"$f":"[1]ODA!R145","v":0},{"$f":"[1]ODA!S145","v":0},{"$f":"[1]ODA!T145","v":0},{"$f":"[1]ODA!U145","v":0},{"$f":"[1]ODA!V145","v":0},{"$f":"[1]ODA!W145","v":0},{"$f":"[1]ODA!X145","v":0},{"$f":"[1]ODA!Y145","v":0},{"$f":"[1]ODA!Z145","v":0},0,0]
[0,null,null,null,null,{"$f":"[1]ODA!F146","v":0},{"$f":"[1]ODA!G146","v":0},{"$f":"[1]ODA!H146","v":0},{"$f":"[1]ODA!I146","v":0},{"$f":"[1]ODA!J146","v":0},{"$f":"[1]ODA!K146","v":0},{"$f":"[1]ODA!L146","v":0},{"$f":"[1]ODA!O146","v":0},{"$f":"[1]ODA!P146","v":0},{"$f":"[1]ODA!Q146","v":0},{"$f":"[1]ODA!R146","v":0},{"$f":"[1]ODA!S146","v":0},{"$f":"[1]ODA!T146","v":0},{"$f":"[1]ODA!U146","v":0},{"$f":"[1]ODA!V146","v":0},{"$f":"[1]ODA!W146","v":0},{"$f":"[1]ODA!X146","v":0},{"$f":"[1]ODA!Y146","v":0},{"$f":"[1]ODA!Z146","v":0},0,0]
[0,null,null,null,null,{"$f":"[1]ODA!F147","v":0},{"$f":"[1]ODA!G147","v":0},{"$f":"[1]ODA!H147","v":0},{"$f":"[1]ODA!I147","v":0},{"$f":"[1]ODA!J147","v":0},{"$f":"[1]ODA!K147","v":0},{"$f":"[1]ODA!L147","v":0},{"$f":"[1]ODA!O147","v":0},{"$f":"[1]ODA!P147","v":0},{"$f":"[1]ODA!Q147","v":0},{"$f":"[1]ODA!R147","v":0},{"$f":"[1]ODA!S147","v":0},{"$f":"[1]ODA!T147","v":0},{"$f":"[1]ODA!U147","v":0},{"$f":"[1]ODA!V147","v":0},{"$f":"[1]ODA!W147","v":0},{"$f":"[1]ODA!X147","v":0},{"$f":"[1]ODA!Y147","v":0},{"$f":"[1]ODA!Z147","v":0},0,0]
[0,null,null,null,null,{"$f":"[1]ODA!F148","v":0},{"$f":"[1]ODA!G148","v":0},{"$f":"[1]ODA!H148","v":0},{"$f":"[1]ODA!I148","v":0},{"$f":"[1]ODA!J148","v":0},{"$f":"[1]ODA!K148","v":0},{"$f":"[1]ODA!L148","v":0},{"$f":"[1]ODA!O148","v":0},{"$f":"[1]ODA!P148","v":0},{"$f":"[1]ODA!Q148","v":0},{"$f":"[1]ODA!R148","v":0},{"$f":"[1]ODA!S148","v":0},{"$f":"[1]ODA!T148","v":0},{"$f":"[1]ODA!U148","v":0},{"$f":"[1]ODA!V148","v":0},{"$f":"[1]ODA!W148","v":0},{"$f":"[1]ODA!X148","v":0},{"$f":"[1]ODA!Y148","v":0},{"$f":"[1]ODA!Z148","v":0},0,0]
[0,null,null,null,null,{"$f":"[1]ODA!F149","v":0},{"$f":"[1]ODA!G149","v":0},{"$f":"[1]ODA!H149","v":0},{"$f":"[1]ODA!I149","v":0},{"$f":"[1]ODA!J149","v":0},{"$f":"[1]ODA!K149","v":0},{"$f":"[1]ODA!L149","v":0},{"$f":"[1]ODA!O149","v":0},{"$f":"[1]ODA!P149","v":0},{"$f":"[1]ODA!Q149","v":0},{"$f":"[1]ODA!R149","v":0},{"$f":"[1]ODA!S149","v":0},{"$f":"[1]ODA!T149","v":0},{"$f":"[1]ODA!U149","v":0},{"$f":"[1]ODA!V149","v":0},{"$f":"[1]ODA!W149","v":0},{"$f":"[1]ODA!X149","v":0},{"$f":"[1]ODA!Y149","v":0},{"$f":"[1]ODA!Z149","v":0},0,0]
[0,null,null,null,null,{"$f":"[1]ODA!F150","v":0},{"$f":"[1]ODA!G150","v":0},{"$f":"[1]ODA!H150","v":0},{"$f":"[1]ODA!I150","v":0},{"$f":"[1]ODA!J150","v":0},{"$f":"[1]ODA!K150","v":0},{"$f":"[1]ODA!L150","v":0},{"$f":"[1]ODA!O150","v":0},{"$f":"[1]ODA!P150","v":0},{"$f":"[1]ODA!Q150","v":0},{"$f":"[1]ODA!R150","v":0},{"$f":"[1]ODA!S150","v":0},{"$f":"[1]ODA!T150","v":0},{"$f":"[1]ODA!U150","v":0},{"$f":"[1]ODA!V150","v":0},{"$f":"[1]ODA!W150","v":0},{"$f":"[1]ODA!X150","v":0},{"$f":"[1]ODA!Y150","v":0},{"$f":"[1]ODA!Z150","v":0},0,0]
[0,null,null,null,null,{"$f":"[1]ODA!F151","v":0},{"$f":"[1]ODA!G151","v":0},{"$f":"[1]ODA!H151","v":0},{"$f":"[1]ODA!I151","v":0},{"$f":"[1]ODA!J151","v":0},{"$f":"[1]ODA!K151","v":0},{"$f":"[1]ODA!L151","v":0},{"$f":"[1]ODA!O151","v":0},{"$f":"[1]ODA!P151","v":0},{"$f":"[1]ODA!Q151","v":0},{"$f":"[1]ODA!R151","v":0},{"$f":"[1]ODA!S151","v":0},{"$f":"[1]ODA!T151","v":0},{"$f":"[1]ODA!U151","v":0},{"$f":"[1]ODA!V151","v":0},{"$f":"[1]ODA!W151","v":0},{"$f":"[1]ODA!X151","v":0},{"$f":"[1]ODA!Y151","v":0},{"$f":"[1]ODA!Z151","v":0},0,0]
[0,null,null,null,null,{"$f":"[1]ODA!F152","v":0},{"$f":"[1]ODA!G152","v":0},{"$f":"[1]ODA!H152","v":0},{"$f":"[1]ODA!I152","v":0},{"$f":"[1]ODA!J152","v":0},{"$f":"[1]ODA!K152","v":0},{"$f":"[1]ODA!L152","v":0},{"$f":"[1]ODA!O152","v":0},{"$f":"[1]ODA!P152","v":0},{"$f":"[1]ODA!Q152","v":0},{"$f":"[1]ODA!R152","v":0},{"$f":"[1]ODA!S152","v":0},{"$f":"[1]ODA!T152","v":0},{"$f":"[1]ODA!U152","v":0},{"$f":"[1]ODA!V152","v":0},{"$f":"[1]ODA!W152","v":0},{"$f":"[1]ODA!X152","v":0},{"$f":"[1]ODA!Y152","v":0},{"$f":"[1]ODA!Z152","v":0},0,0]
[0,null,null,null,null,{"$f":"[1]ODA!F153","v":0},{"$f":"[1]ODA!G153","v":0},{"$f":"[1]ODA!H153","v":0},{"$f":"[1]ODA!I153","v":0},{"$f":"[1]ODA!J153","v":0},{"$f":"[1]ODA!K153","v":0},{"$f":"[1]ODA!L153","v":0},{"$f":"[1]ODA!O153","v":0},{"$f":"[1]ODA!P153","v":0},{"$f":"[1]ODA!Q153","v":0},{"$f":"[1]ODA!R153","v":0},{"$f":"[1]ODA!S153","v":0},{"$f":"[1]ODA!T153","v":0},{"$f":"[1]ODA!U153","v":0},{"$f":"[1]ODA!V153","v":0},{"$f":"[1]ODA!W153","v":0},{"$f":"[1]ODA!X153","v":0},{"$f":"[1]ODA!Y153","v":0},{"$f":"[1]ODA!Z153","v":0},0,0]
[0,null,null,null,null,{"$f":"[1]ODA!F154","v":0},{"$f":"[1]ODA!G154","v":0},{"$f":"[1]ODA!H154","v":0},{"$f":"[1]ODA!I154","v":0},{"$f":"[1]ODA!J154","v":0},{"$f":"[1]ODA!K154","v":0},{"$f":"[1]ODA!L154","v":0},{"$f":"[1]ODA!O154","v":0},{"$f":"[1]ODA!P154","v":0},{"$f":"[1]ODA!Q154","v":0},{"$f":"[1]ODA!R154","v":0},{"$f":"[1]ODA!S154","v":0},{"$f":"[1]ODA!T154","v":0},{"$f":"[1]ODA!U154","v":0},{"$f":"[1]ODA!V154","v":0},{"$f":"[1]ODA!W154","v":0},{"$f":"[1]ODA!X154","v":0},{"$f":"[1]ODA!Y154","v":0},{"$f":"[1]ODA!Z154","v":0},0,0]
[0,null,null,null,null,{"$f":"[1]ODA!F155","v":0},{"$f":"[1]ODA!G155","v":0},{"$f":"[1]ODA!H155","v":0},{"$f":"[1]ODA!I155","v":0},{"$f":"[1]ODA!J155","v":0},{"$f":"[1]ODA!K155","v":0},{"$f":"[1]ODA!L155","v":0},{"$f":"[1]ODA!O155","v":0},{"$f":"[1]ODA!P155","v":0},{"$f":"[1]ODA!Q155","v":0},{"$f":"[1]ODA!R155","v":0},{"$f":"[1]ODA!S155","v":0},{"$f":"[1]ODA!T155","v":0},{"$f":"[1]ODA!U155","v":0},{"$f":"[1]ODA!V155","v":0},{"$f":"[1]ODA!W155","v":0},{"$f":"[1]ODA!X155","v":0},{"$f":"[1]ODA!Y155","v":0},{"$f":"[1]ODA!Z155","v":0},0,0]
[0,null,null,null,null,{"$f":"[1]ODA!F156","v":0},{"$f":"[1]ODA!G156","v":0},{"$f":"[1]ODA!H156","v":0},{"$f":"[1]ODA!I156","v":0},{"$f":"[1]ODA!J156","v":0},{"$f":"[1]ODA!K156","v":0},{"$f":"[1]ODA!L156","v":0},{"$f":"[1]ODA!O156","v":0},{"$f":"[1]ODA!P156","v":0},{"$f":"[1]ODA!Q156","v":0},{"$f":"[1]ODA!R156","v":0},{"$f":"[1]ODA!S156","v":0},{"$f":"[1]ODA!T156","v":0},{"$f":"[1]ODA!U156","v":0},{"$f":"[1]ODA!V156","v":0},{"$f":"[1]ODA!W156","v":0},{"$f":"[1]ODA!X156","v":0},{"$f":"[1]ODA!Y156","v":0},{"$f":"[1]ODA!Z156","v":0},0,0]
[0,null,null,null,null,{"$f":"[1]ODA!F157","v":0},{"$f":"[1]ODA!G157","v":0},{"$f":"[1]ODA!H157","v":0},{"$f":"[1]ODA!I157","v":0},{"$f":"[1]ODA!J157","v":0},{"$f":"[1]ODA!K157","v":0},{"$f":"[1]ODA!L157","v":0},{"$f":"[1]ODA!O157","v":0},{"$f":"[1]ODA!P157","v":0},{"$f":"[1]ODA!Q157","v":0},{"$f":"[1]ODA!R157","v":0},{"$f":"[1]ODA!S157","v":0},{"$f":"[1]ODA!T157","v":0},{"$f":"[1]ODA!U157","v":0},{"$f":"[1]ODA!V157","v":0},{"$f":"[1]ODA!W157","v":0},{"$f":"[1]ODA!X157","v":0},{"$f":"[1]ODA!Y157","v":0},{"$f":"[1]ODA!Z157","v":0},0,0]
[0,null,null,null,null,{"$f":"[1]ODA!F158","v":0},{"$f":"[1]ODA!G158","v":0},{"$f":"[1]ODA!H158","v":0},{"$f":"[1]ODA!I158","v":0},{"$f":"[1]ODA!J158","v":0},{"$f":"[1]ODA!K158","v":0},{"$f":"[1]ODA!L158","v":0},{"$f":"[1]ODA!O158","v":0},{"$f":"[1]ODA!P158","v":0},{"$f":"[1]ODA!Q158","v":0},{"$f":"[1]ODA!R158","v":0},{"$f":"[1]ODA!S158","v":0},{"$f":"[1]ODA!T158","v":0},{"$f":"[1]ODA!U158","v":0},{"$f":"[1]ODA!V158","v":0},{"$f":"[1]ODA!W158","v":0},{"$f":"[1]ODA!X158","v":0},{"$f":"[1]ODA!Y158","v":0},{"$f":"[1]ODA!Z158","v":0},0,0]
[0,null,null,null,null,{"$f":"[1]ODA!F159","v":0},{"$f":"[1]ODA!G159","v":0},{"$f":"[1]ODA!H159","v":0},{"$f":"[1]ODA!I159","v":0},{"$f":"[1]ODA!J159","v":0},{"$f":"[1]ODA!K159","v":0},{"$f":"[1]ODA!L159","v":0},{"$f":"[1]ODA!O159","v":0},{"$f":"[1]ODA!P159","v":0},{"$f":"[1]ODA!Q159","v":0},{"$f":"[1]ODA!R159","v":0},{"$f":"[1]ODA!S159","v":0},{"$f":"[1]ODA!T159","v":0},{"$f":"[1]ODA!U159","v":0},{"$f":"[1]ODA!V159","v":0},{"$f":"[1]ODA!W159","v":0},{"$f":"[1]ODA!X159","v":0},{"$f":"[1]ODA!Y159","v":0},{"$f":"[1]ODA!Z159","v":0},0,0]
[0,null,null,null,null,{"$f":"[1]ODA!F160","v":0},{"$f":"[1]ODA!G160","v":0},{"$f":"[1]ODA!H160","v":0},{"$f":"[1]ODA!I160","v":0},{"$f":"[1]ODA!J160","v":0},{"$f":"[1]ODA!K160","v":0},{"$f":"[1]ODA!L160","v":0},{"$f":"[1]ODA!O160","v":0},{"$f":"[1]ODA!P160","v":0},{"$f":"[1]ODA!Q160","v":0},{"$f":"[1]ODA!R160","v":0},{"$f":"[1]ODA!S160","v":0},{"$f":"[1]ODA!T160","v":0},{"$f":"[1]ODA!U160","v":0},{"$f":"[1]ODA!V160","v":0},{"$f":"[1]ODA!W160","v":0},{"$f":"[1]ODA!X160","v":0},{"$f":"[1]ODA!Y160","v":0},{"$f":"[1]ODA!Z160","v":0},0,0]
[0,null,null,null,null,{"$f":"[1]ODA!F161","v":0},{"$f":"[1]ODA!G161","v":0},{"$f":"[1]ODA!H161","v":0},{"$f":"[1]ODA!I161","v":0},{"$f":"[1]ODA!J161","v":0},{"$f":"[1]ODA!K161","v":0},{"$f":"[1]ODA!L161","v":0},{"$f":"[1]ODA!O161","v":0},{"$f":"[1]ODA!P161","v":0},{"$f":"[1]ODA!Q161","v":0},{"$f":"[1]ODA!R161","v":0},{"$f":"[1]ODA!S161","v":0},{"$f":"[1]ODA!T161","v":0},{"$f":"[1]ODA!U161","v":0},{"$f":"[1]ODA!V161","v":0},{"$f":"[1]ODA!W161","v":0},{"$f":"[1]ODA!X161","v":0},{"$f":"[1]ODA!Y161","v":0},{"$f":"[1]ODA!Z161","v":0},0,0]
[0,null,null,null,null,{"$f":"[1]ODA!F162","v":0},{"$f":"[1]ODA!G162","v":0},{"$f":"[1]ODA!H162","v":0},{"$f":"[1]ODA!I162","v":0},{"$f":"[1]ODA!J162","v":0},{"$f":"[1]ODA!K162","v":0},{"$f":"[1]ODA!L162","v":0},{"$f":"[1]ODA!O162","v":0},{"$f":"[1]ODA!P162","v":0},{"$f":"[1]ODA!Q162","v":0},{"$f":"[1]ODA!R162","v":0},{"$f":"[1]ODA!S162","v":0},{"$f":"[1]ODA!T162","v":0},{"$f":"[1]ODA!U162","v":0},{"$f":"[1]ODA!V162","v":0},{"$f":"[1]ODA!W162","v":0},{"$f":"[1]ODA!X162","v":0},{"$f":"[1]ODA!Y162","v":0},{"$f":"[1]ODA!Z162","v":0},0,0]
[0,null,null,null,null,{"$f":"[1]ODA!F163","v":0},{"$f":"[1]ODA!G163","v":0},{"$f":"[1]ODA!H163","v":0},{"$f":"[1]ODA!I163","v":0},{"$f":"[1]ODA!J163","v":0},{"$f":"[1]ODA!K163","v":0},{"$f":"[1]ODA!L163","v":0},{"$f":"[1]ODA!O163","v":0},{"$f":"[1]ODA!P163","v":0},{"$f":"[1]ODA!Q163","v":0},{"$f":"[1]ODA!R163","v":0},{"$f":"[1]ODA!S163","v":0},{"$f":"[1]ODA!T163","v":0},{"$f":"[1]ODA!U163","v":0},{"$f":"[1]ODA!V163","v":0},{"$f":"[1]ODA!W163","v":0},{"$f":"[1]ODA!X163","v":0},{"$f":"[1]ODA!Y163","v":0},{"$f":"[1]ODA!Z163","v":0},0,0]
[0,null,null,null,null,{"$f":"[1]ODA!F164","v":0},{"$f":"[1]ODA!G164","v":0},{"$f":"[1]ODA!H164","v":0},{"$f":"[1]ODA!I164","v":0},{"$f":"[1]ODA!J164","v":0},{"$f":"[1]ODA!K164","v":0},{"$f":"[1]ODA!L164","v":0},{"$f":"[1]ODA!O164","v":0},{"$f":"[1]ODA!P164","v":0},{"$f":"[1]ODA!Q164","v":0},{"$f":"[1]ODA!R164","v":0},{"$f":"[1]ODA!S164","v":0},{"$f":"[1]ODA!T164","v":0},{"$f":"[1]ODA!U164","v":0},{"$f":"[1]ODA!V164","v":0},{"$f":"[1]ODA!W164","v":0},{"$f":"[1]ODA!X164","v":0},{"$f":"[1]ODA!Y164","v":0},{"$f":"[1]ODA!Z164","v":0},0,0]
[0,null,null,null,null,{"$f":"[1]ODA!F165","v":0},{"$f":"[1]ODA!G165","v":0},{"$f":"[1]ODA!H165","v":0},{"$f":"[1]ODA!I165","v":0},{"$f":"[1]ODA!J165","v":0},{"$f":"[1]ODA!K165","v":0},{"$f":"[1]ODA!L165","v":0},{"$f":"[1]ODA!O165","v":0},{"$f":"[1]ODA!P165","v":0},{"$f":"[1]ODA!Q165","v":0},{"$f":"[1]ODA!R165","v":0},{"$f":"[1]ODA!S165","v":0},{"$f":"[1]ODA!T165","v":0},{"$f":"[1]ODA!U165","v":0},{"$f":"[1]ODA!V165","v":0},{"$f":"[1]ODA!W165","v":0},{"$f":"[1]ODA!X165","v":0},{"$f":"[1]ODA!Y165","v":0},{"$f":"[1]ODA!Z165","v":0},0,0]
[0,null,null,null,null,{"$f":"[1]ODA!F166","v":0},{"$f":"[1]ODA!G166","v":0},{"$f":"[1]ODA!H166","v":0},{"$f":"[1]ODA!I166","v":0},{"$f":"[1]ODA!J166","v":0},{"$f":"[1]ODA!K166","v":0},{"$f":"[1]ODA!L166","v":0},{"$f":"[1]ODA!O166","v":0},{"$f":"[1]ODA!P166","v":0},{"$f":"[1]ODA!Q166","v":0},{"$f":"[1]ODA!R166","v":0},{"$f":"[1]ODA!S166","v":0},{"$f":"[1]ODA!T166","v":0},{"$f":"[1]ODA!U166","v":0},{"$f":"[1]ODA!V166","v":0},{"$f":"[1]ODA!W166","v":0},{"$f":"[1]ODA!X166","v":0},{"$f":"[1]ODA!Y166","v":0},{"$f":"[1]ODA!Z166","v":0},0,0]
[0,null,null,null,null,{"$f":"[1]ODA!F167","v":0},{"$f":"[1]ODA!G167","v":0},{"$f":"[1]ODA!H167","v":0},{"$f":"[1]ODA!I167","v":0},{"$f":"[1]ODA!J167","v":0},{"$f":"[1]ODA!K167","v":0},{"$f":"[1]ODA!L167","v":0},{"$f":"[1]ODA!O167","v":0},{"$f":"[1]ODA!P167","v":0},{"$f":"[1]ODA!Q167","v":0},{"$f":"[1]ODA!R167","v":0},{"$f":"[1]ODA!S167","v":0},{"$f":"[1]ODA!T167","v":0},{"$f":"[1]ODA!U167","v":0},{"$f":"[1]ODA!V167","v":0},{"$f":"[1]ODA!W167","v":0},{"$f":"[1]ODA!X167","v":0},{"$f":"[1]ODA!Y167","v":0},{"$f":"[1]ODA!Z167","v":0},0,0]
[0,null,null,null,null,{"$f":"[1]ODA!F168","v":0},{"$f":"[1]ODA!G168","v":0},{"$f":"[1]ODA!H168","v":0},{"$f":"[1]ODA!I168","v":0},{"$f":"[1]ODA!J168","v":0},{"$f":"[1]ODA!K168","v":0},{"$f":"[1]ODA!L168","v":0},{"$f":"[1]ODA!O168","v":0},{"$f":"[1]ODA!P168","v":0},{"$f":"[1]ODA!Q168","v":0},{"$f":"[1]ODA!R168","v":0},{"$f":"[1]ODA!S168","v":0},{"$f":"[1]ODA!T168","v":0},{"$f":"[1]ODA!U168","v":0},{"$f":"[1]ODA!V168","v":0},{"$f":"[1]ODA!W168","v":0},{"$f":"[1]ODA!X168","v":0},{"$f":"[1]ODA!Y168","v":0},{"$f":"[1]ODA!Z168","v":0},0,0]
[0,null,null,null,null,{"$f":"[1]ODA!F169","v":0},{"$f":"[1]ODA!G169","v":0},{"$f":"[1]ODA!H169","v":0},{"$f":"[1]ODA!I169","v":0},{"$f":"[1]ODA!J169","v":0},{"$f":"[1]ODA!K169","v":0},{"$f":"[1]ODA!L169","v":0},{"$f":"[1]ODA!O169","v":0},{"$f":"[1]ODA!P169","v":0},{"$f":"[1]ODA!Q169","v":0},{"$f":"[1]ODA!R169","v":0},{"$f":"[1]ODA!S169","v":0},{"$f":"[1]ODA!T169","v":0},{"$f":"[1]ODA!U169","v":0},{"$f":"[1]ODA!V169","v":0},{"$f":"[1]ODA!W169","v":0},{"$f":"[1]ODA!X169","v":0},{"$f":"[1]ODA!Y169","v":0},{"$f":"[1]ODA!Z169","v":0},0,0]
[0,null,null,null,null,{"$f":"[1]ODA!F170","v":0},{"$f":"[1]ODA!G170","v":0},{"$f":"[1]ODA!H170","v":0},{"$f":"[1]ODA!I170","v":0},{"$f":"[1]ODA!J170","v":0},{"$f":"[1]ODA!K170","v":0},{"$f":"[1]ODA!L170","v":0},{"$f":"[1]ODA!O170","v":0},{"$f":"[1]ODA!P170","v":0},{"$f":"[1]ODA!Q170","v":0},{"$f":"[1]ODA!R170","v":0},{"$f":"[1]ODA!S170","v":0},{"$f":"[1]ODA!T170","v":0},{"$f":"[1]ODA!U170","v":0},{"$f":"[1]ODA!V170","v":0},{"$f":"[1]ODA!W170","v":0},{"$f":"[1]ODA!X170","v":0},{"$f":"[1]ODA!Y170","v":0},{"$f":"[1]ODA!Z170","v":0},0,0]
[0,null,null,null,null,{"$f":"[1]ODA!F171","v":0},{"$f":"[1]ODA!G171","v":0},{"$f":"[1]ODA!H171","v":0},{"$f":"[1]ODA!I171","v":0},{"$f":"[1]ODA!J171","v":0},{"$f":"[1]ODA!K171","v":0},{"$f":"[1]ODA!L171","v":0},{"$f":"[1]ODA!O171","v":0},{"$f":"[1]ODA!P171","v":0},{"$f":"[1]ODA!Q171","v":0},{"$f":"[1]ODA!R171","v":0},{"$f":"[1]ODA!S171","v":0},{"$f":"[1]ODA!T171","v":0},{"$f":"[1]ODA!U171","v":0},{"$f":"[1]ODA!V171","v":0},{"$f":"[1]ODA!W171","v":0},{"$f":"[1]ODA!X171","v":0},{"$f":"[1]ODA!Y171","v":0},{"$f":"[1]ODA!Z171","v":0},0,0]
[0,null,null,null,null,{"$f":"[1]ODA!F172","v":0},{"$f":"[1]ODA!G172","v":0},{"$f":"[1]ODA!H172","v":0},{"$f":"[1]ODA!I172","v":0},{"$f":"[1]ODA!J172","v":0},{"$f":"[1]ODA!K172","v":0},{"$f":"[1]ODA!L172","v":0},{"$f":"[1]ODA!O172","v":0},{"$f":"[1]ODA!P172","v":0},{"$f":"[1]ODA!Q172","v":0},{"$f":"[1]ODA!R172","v":0},{"$f":"[1]ODA!S172","v":0},{"$f":"[1]ODA!T172","v":0},{"$f":"[1]ODA!U172","v":0},{"$f":"[1]ODA!V172","v":0},{"$f":"[1]ODA!W172","v":0},{"$f":"[1]ODA!X172","v":0},{"$f":"[1]ODA!Y172","v":0},{"$f":"[1]ODA!Z172","v":0},0,0]
[0,null,null,null,null,{"$f":"[1]ODA!F173","v":0},{"$f":"[1]ODA!G173","v":0},{"$f":"[1]ODA!H173","v":0},{"$f":"[1]ODA!I173","v":0},{"$f":"[1]ODA!J173","v":0},{"$f":"[1]ODA!K173","v":0},{"$f":"[1]ODA!L173","v":0},{"$f":"[1]ODA!O173","v":0},{"$f":"[1]ODA!P173","v":0},{"$f":"[1]ODA!Q173","v":0},{"$f":"[1]ODA!R173","v":0},{"$f":"[1]ODA!S173","v":0},{"$f":"[1]ODA!T173","v":0},{"$f":"[1]ODA!U173","v":0},{"$f":"[1]ODA!V173","v":0},{"$f":"[1]ODA!W173","v":0},{"$f":"[1]ODA!X173","v":0},{"$f":"[1]ODA!Y173","v":0},{"$f":"[1]ODA!Z173","v":0},0,0]
[0,null,null,null,null,{"$f":"[1]ODA!F174","v":0},{"$f":"[1]ODA!G174","v":0},{"$f":"[1]ODA!H174","v":0},{"$f":"[1]ODA!I174","v":0},{"$f":"[1]ODA!J174","v":0},{"$f":"[1]ODA!K174","v":0},{"$f":"[1]ODA!L174","v":0},{"$f":"[1]ODA!O174","v":0},{"$f":"[1]ODA!P174","v":0},{"$f":"[1]ODA!Q174","v":0},{"$f":"[1]ODA!R174","v":0},{"$f":"[1]ODA!S174","v":0},{"$f":"[1]ODA!T174","v":0},{"$f":"[1]ODA!U174","v":0},{"$f":"[1]ODA!V174","v":0},{"$f":"[1]ODA!W174","v":0},{"$f":"[1]ODA!X174","v":0},{"$f":"[1]ODA!Y174","v":0},{"$f":"[1]ODA!Z174","v":0},0,0]
[0,null,null,null,null,{"$f":"[1]ODA!F175","v":0},{"$f":"[1]ODA!G175","v":0},{"$f":"[1]ODA!H175","v":0},{"$f":"[1]ODA!I175","v":0},{"$f":"[1]ODA!J175","v":0},{"$f":"[1]ODA!K175","v":0},{"$f":"[1]ODA!L175","v":0},{"$f":"[1]ODA!O175","v":0},{"$f":"[1]ODA!P175","v":0},{"$f":"[1]ODA!Q175","v":0},{"$f":"[1]ODA!R175","v":0},{"$f":"[1]ODA!S175","v":0},{"$f":"[1]ODA!T175","v":0},{"$f":"[1]ODA!U175","v":0},{"$f":"[1]ODA!V175","v":0},{"$f":"[1]ODA!W175","v":0},{"$f":"[1]ODA!X175","v":0},{"$f":"[1]ODA!Y175","v":0},{"$f":"[1]ODA!Z175","v":0},0,0]
[0,null,null,null,null,{"$f":"[1]ODA!F176","v":0},{"$f":"[1]ODA!G176","v":0},{"$f":"[1]ODA!H176","v":0},{"$f":"[1]ODA!I176","v":0},{"$f":"[1]ODA!J176","v":0},{"$f":"[1]ODA!K176","v":0},{"$f":"[1]ODA!L176","v":0},{"$f":"[1]ODA!O176","v":0},{"$f":"[1]ODA!P176","v":0},{"$f":"[1]ODA!Q176","v":0},{"$f":"[1]ODA!R176","v":0},{"$f":"[1]ODA!S176","v":0},{"$f":"[1]ODA!T176","v":0},{"$f":"[1]ODA!U176","v":0},{"$f":"[1]ODA!V176","v":0},{"$f":"[1]ODA!W176","v":0},{"$f":"[1]ODA!X176","v":0},{"$f":"[1]ODA!Y176","v":0},{"$f":"[1]ODA!Z176","v":0},0,0]
[0,null,null,null,null,{"$f":"[1]ODA!F177","v":0},{"$f":"[1]ODA!G177","v":0},{"$f":"[1]ODA!H177","v":0},{"$f":"[1]ODA!I177","v":0},{"$f":"[1]ODA!J177","v":0},{"$f":"[1]ODA!K177","v":0},{"$f":"[1]ODA!L177","v":0},{"$f":"[1]ODA!O177","v":0},{"$f":"[1]ODA!P177","v":0},{"$f":"[1]ODA!Q177","v":0},{"$f":"[1]ODA!R177","v":0},{"$f":"[1]ODA!S177","v":0},{"$f":"[1]ODA!T177","v":0},{"$f":"[1]ODA!U177","v":0},{"$f":"[1]ODA!V177","v":0},{"$f":"[1]ODA!W177","v":0},{"$f":"[1]ODA!X177","v":0},{"$f":"[1]ODA!Y177","v":0},{"$f":"[1]ODA!Z177","v":0},0,0]
[0,null,null,null,null,{"$f":"[1]ODA!F178","v":0},{"$f":"[1]ODA!G178","v":0},{"$f":"[1]ODA!H178","v":0},{"$f":"[1]ODA!I178","v":0},{"$f":"[1]ODA!J178","v":0},{"$f":"[1]ODA!K178","v":0},{"$f":"[1]ODA!L178","v":0},{"$f":"[1]ODA!O178","v":0},{"$f":"[1]ODA!P178","v":0},{"$f":"[1]ODA!Q178","v":0},{"$f":"[1]ODA!R178","v":0},{"$f":"[1]ODA!S178","v":0},{"$f":"[1]ODA!T178","v":0},{"$f":"[1]ODA!U178","v":0},{"$f":"[1]ODA!V178","v":0},{"$f":"[1]ODA!W178","v":0},{"$f":"[1]ODA!X178","v":0},{"$f":"[1]ODA!Y178","v":0},{"$f":"[1]ODA!Z178","v":0},0,0]
[0,null,null,null,null,{"$f":"[1]ODA!F179","v":0},{"$f":"[1]ODA!G179","v":0},{"$f":"[1]ODA!H179","v":0},{"$f":"[1]ODA!I179","v":0},{"$f":"[1]ODA!J179","v":0},{"$f":"[1]ODA!K179","v":0},{"$f":"[1]ODA!L179","v":0},{"$f":"[1]ODA!O179","v":0},{"$f":"[1]ODA!P179","v":0},{"$f":"[1]ODA!Q179","v":0},{"$f":"[1]ODA!R179","v":0},{"$f":"[1]ODA!S179","v":0},{"$f":"[1]ODA!T179","v":0},{"$f":"[1]ODA!U179","v":0},{"$f":"[1]ODA!V179","v":0},{"$f":"[1]ODA!W179","v":0},{"$f":"[1]ODA!X179","v":0},{"$f":"[1]ODA!Y179","v":0},{"$f":"[1]ODA!Z179","v":0},0,0]
[0,null,null,null,null,{"$f":"[1]ODA!F180","v":0},{"$f":"[1]ODA!G180","v":0},{"$f":"[1]ODA!H180","v":0},{"$f":"[1]ODA!I180","v":0},{"$f":"[1]ODA!J180","v":0},{"$f":"[1]ODA!K180","v":0},{"$f":"[1]ODA!L180","v":0},{"$f":"[1]ODA!O180","v":0},{"$f":"[1]ODA!P180","v":0},{"$f":"[1]ODA!Q180","v":0},{"$f":"[1]ODA!R180","v":0},{"$f":"[1]ODA!S180","v":0},{"$f":"[1]ODA!T180","v":0},{"$f":"[1]ODA!U180","v":0},{"$f":"[1]ODA!V180","v":0},{"$f":"[1]ODA!W180","v":0},{"$f":"[1]ODA!X180","v":0},{"$f":"[1]ODA!Y180","v":0},{"$f":"[1]ODA!Z180","v":0},0,0]
[0,null,null,null,null,{"$f":"[1]ODA!F181","v":0},{"$f":"[1]ODA!G181","v":0},{"$f":"[1]ODA!H181","v":0},{"$f":"[1]ODA!I181","v":0},{"$f":"[1]ODA!J181","v":0},{"$f":"[1]ODA!K181","v":0},{"$f":"[1]ODA!L181","v":0},{"$f":"[1]ODA!O181","v":0},{"$f":"[1]ODA!P181","v":0},{"$f":"[1]ODA!Q181","v":0},{"$f":"[1]ODA!R181","v":0},{"$f":"[1]ODA!S181","v":0},{"$f":"[1]ODA!T181","v":0},{"$f":"[1]ODA!U181","v":0},{"$f":"[1]ODA!V181","v":0},{"$f":"[1]ODA!W181","v":0},{"$f":"[1]ODA!X181","v":0},{"$f":"[1]ODA!Y181","v":0},{"$f":"[1]ODA!Z181","v":0},0,0]
[0,null,null,null,null,{"$f":"[1]ODA!F182","v":0},{"$f":"[1]ODA!G182","v":0},{"$f":"[1]ODA!H182","v":0},{"$f":"[1]ODA!I182","v":0},{"$f":"[1]ODA!J182","v":0},{"$f":"[1]ODA!K182","v":0},{"$f":"[1]ODA!L182","v":0},{"$f":"[1]ODA!O182","v":0},{"$f":"[1]ODA!P182","v":0},{"$f":"[1]ODA!Q182","v":0},{"$f":"[1]ODA!R182","v":0},{"$f":"[1]ODA!S182","v":0},{"$f":"[1]ODA!T182","v":0},{"$f":"[1]ODA!U182","v":0},{"$f":"[1]ODA!V182","v":0},{"$f":"[1]ODA!W182","v":0},{"$f":"[1]ODA!X182","v":0},{"$f":"[1]ODA!Y182","v":0},{"$f":"[1]ODA!Z182","v":0},0,0]
[0,null,null,null,null,{"$f":"[1]ODA!F183","v":0},{"$f":"[1]ODA!G183","v":0},{"$f":"[1]ODA!H183","v":0},{"$f":"[1]ODA!I183","v":0},{"$f":"[1]ODA!J183","v":0},{"$f":"[1]ODA!K183","v":0},{"$f":"[1]ODA!L183","v":0},{"$f":"[1]ODA!O183","v":0},{"$f":"[1]ODA!P183","v":0},{"$f":"[1]ODA!Q183","v":0},{"$f":"[1]ODA!R183","v":0},{"$f":"[1]ODA!S183","v":0},{"$f":"[1]ODA!T183","v":0},{"$f":"[1]ODA!U183","v":0},{"$f":"[1]ODA!V183","v":0},{"$f":"[1]ODA!W183","v":0},{"$f":"[1]ODA!X183","v":0},{"$f":"[1]ODA!Y183","v":0},{"$f":"[1]ODA!Z183","v":0},0,0]
[0,null,null,null,null,{"$f":"[1]ODA!F184","v":0},{"$f":"[1]ODA!G184","v":0},{"$f":"[1]ODA!H184","v":0},{"$f":"[1]ODA!I184","v":0},{"$f":"[1]ODA!J184","v":0},{"$f":"[1]ODA!K184","v":0},{"$f":"[1]ODA!L184","v":0},{"$f":"[1]ODA!O184","v":0},{"$f":"[1]ODA!P184","v":0},{"$f":"[1]ODA!Q184","v":0},{"$f":"[1]ODA!R184","v":0},{"$f":"[1]ODA!S184","v":0},{"$f":"[1]ODA!T184","v":0},{"$f":"[1]ODA!U184","v":0},{"$f":"[1]ODA!V184","v":0},{"$f":"[1]ODA!W184","v":0},{"$f":"[1]ODA!X184","v":0},{"$f":"[1]ODA!Y184","v":0},{"$f":"[1]ODA!Z184","v":0},0,0]
[0,null,null,null,null,{"$f":"[1]ODA!F185","v":0},{"$f":"[1]ODA!G185","v":0},{"$f":"[1]ODA!H185","v":0},{"$f":"[1]ODA!I185","v":0},{"$f":"[1]ODA!J185","v":0},{"$f":"[1]ODA!K185","v":0},{"$f":"[1]ODA!L185","v":0},{"$f":"[1]ODA!O185","v":0},{"$f":"[1]ODA!P185","v":0},{"$f":"[1]ODA!Q185","v":0},{"$f":"[1]ODA!R185","v":0},{"$f":"[1]ODA!S185","v":0},{"$f":"[1]ODA!T185","v":0},{"$f":"[1]ODA!U185","v":0},{"$f":"[1]ODA!V185","v":0},{"$f":"[1]ODA!W185","v":0},{"$f":"[1]ODA!X185","v":0},{"$f":"[1]ODA!Y185","v":0},{"$f":"[1]ODA!Z185","v":0},0,0]
[0,null,null,null,null,{"$f":"[1]ODA!F186","v":0},{"$f":"[1]ODA!G186","v":0},{"$f":"[1]ODA!H186","v":0},{"$f":"[1]ODA!I186","v":0},{"$f":"[1]ODA!J186","v":0},{"$f":"[1]ODA!K186","v":0},{"$f":"[1]ODA!L186","v":0},{"$f":"[1]ODA!O186","v":0},{"$f":"[1]ODA!P186","v":0},{"$f":"[1]ODA!Q186","v":0},{"$f":"[1]ODA!R186","v":0},{"$f":"[1]ODA!S186","v":0},{"$f":"[1]ODA!T186","v":0},{"$f":"[1]ODA!U186","v":0},{"$f":"[1]ODA!V186","v":0},{"$f":"[1]ODA!W186","v":0},{"$f":"[1]ODA!X186","v":0},{"$f":"[1]ODA!Y186","v":0},{"$f":"[1]ODA!Z186","v":0},0,0]
[0,null,null,null,null,{"$f":"[1]ODA!F187","v":0},{"$f":"[1]ODA!G187","v":0},{"$f":"[1]ODA!H187","v":0},{"$f":"[1]ODA!I187","v":0},{"$f":"[1]ODA!J187","v":0},{"$f":"[1]ODA!K187","v":0},{"$f":"[1]ODA!L187","v":0},{"$f":"[1]ODA!O187","v":0},{"$f":"[1]ODA!P187","v":0},{"$f":"[1]ODA!Q187","v":0},{"$f":"[1]ODA!R187","v":0},{"$f":"[1]ODA!S187","v":0},{"$f":"[1]ODA!T187","v":0},{"$f":"[1]ODA!U187","v":0},{"$f":"[1]ODA!V187","v":0},{"$f":"[1]ODA!W187","v":0},{"$f":"[1]ODA!X187","v":0},{"$f":"[1]ODA!Y187","v":0},{"$f":"[1]ODA!Z187","v":0},0,0]
[0,null,null,null,null,{"$f":"[1]ODA!F188","v":0},{"$f":"[1]ODA!G188","v":0},{"$f":"[1]ODA!H188","v":0},{"$f":"[1]ODA!I188","v":0},{"$f":"[1]ODA!J188","v":0},{"$f":"[1]ODA!K188","v":0},{"$f":"[1]ODA!L188","v":0},{"$f":"[1]ODA!O188","v":0},{"$f":"[1]ODA!P188","v":0},{"$f":"[1]ODA!Q188","v":0},{"$f":"[1]ODA!R188","v":0},{"$f":"[1]ODA!S188","v":0},{"$f":"[1]ODA!T188","v":0},{"$f":"[1]ODA!U188","v":0},{"$f":"[1]ODA!V188","v":0},{"$f":"[1]ODA!W188","v":0},{"$f":"[1]ODA!X188","v":0},{"$f":"[1]ODA!Y188","v":0},{"$f":"[1]ODA!Z188","v":0},0,0]
[0,null,null,null,null,{"$f":"[1]ODA!F189","v":0},{"$f":"[1]ODA!G189","v":0},{"$f":"[1]ODA!H189","v":0},{"$f":"[1]ODA!I189","v":0},{"$f":"[1]ODA!J189","v":0},{"$f":"[1]ODA!K189","v":0},{"$f":"[1]ODA!L189","v":0},{"$f":"[1]ODA!O189","v":0},{"$f":"[1]ODA!P189","v":0},{"$f":"[1]ODA!Q189","v":0},{"$f":"[1]ODA!R189","v":0},{"$f":"[1]ODA!S189","v":0},{"$f":"[1]ODA!T189","v":0},{"$f":"[1]ODA!U189","v":0},{"$f":"[1]ODA!V189","v":0},{"$f":"[1]ODA!W189","v":0},{"$f":"[1]ODA!X189","v":0},{"$f":"[1]ODA!Y189","v":0},{"$f":"[1]ODA!Z189","v":0},0,0]
[0,null,null,null,null,{"$f":"[1]ODA!F190","v":0},{"$f":"[1]ODA!G190","v":0},{"$f":"[1]ODA!H190","v":0},{"$f":"[1]ODA!I190","v":0},{"$f":"[1]ODA!J190","v":0},{"$f":"[1]ODA!K190","v":0},{"$f":"[1]ODA!L190","v":0},{"$f":"[1]ODA!O190","v":0},{"$f":"[1]ODA!P190","v":0},{"$f":"[1]ODA!Q190","v":0},{"$f":"[1]ODA!R190","v":0},{"$f":"[1]ODA!S190","v":0},{"$f":"[1]ODA!T190","v":0},{"$f":"[1]ODA!U190","v":0},{"$f":"[1]ODA!V190","v":0},{"$f":"[1]ODA!W190","v":0},{"$f":"[1]ODA!X190","v":0},{"$f":"[1]ODA!Y190","v":0},{"$f":"[1]ODA!Z190","v":0},0,0]
[0,null,null,null,null,{"$f":"[1]ODA!F191","v":0},{"$f":"[1]ODA!G191","v":0},{"$f":"[1]ODA!H191","v":0},{"$f":"[1]ODA!I191","v":0},{"$f":"[1]ODA!J191","v":0},{"$f":"[1]ODA!K191","v":0},{"$f":"[1]ODA!L191","v":0},{"$f":"[1]ODA!O191","v":0},{"$f":"[1]ODA!P191","v":0},{"$f":"[1]ODA!Q191","v":0},{"$f":"[1]ODA!R191","v":0},{"$f":"[1]ODA!S191","v":0},{"$f":"[1]ODA!T191","v":0},{"$f":"[1]ODA!U191","v":0},{"$f":"[1]ODA!V191","v":0},{"$f":"[1]ODA!W191","v":0},{"$f":"[1]ODA!X191","v":0},{"$f":"[1]ODA!Y191","v":0},{"$f":"[1]ODA!Z191","v":0},0,0]
[0,null,null,null,null,{"$f":"[1]ODA!F192","v":0},{"$f":"[1]ODA!G192","v":0},{"$f":"[1]ODA!H192","v":0},{"$f":"[1]ODA!I192","v":0},{"$f":"[1]ODA!J192","v":0},{"$f":"[1]ODA!K192","v":0},{"$f":"[1]ODA!L192","v":0},{"$f":"[1]ODA!O192","v":0},{"$f":"[1]ODA!P192","v":0},{"$f":"[1]ODA!Q192","v":0},{"$f":"[1]ODA!R192","v":0},{"$f":"[1]ODA!S192","v":0},{"$f":"[1]ODA!T192","v":0},{"$f":"[1]ODA!U192","v":0},{"$f":"[1]ODA!V192","v":0},{"$f":"[1]ODA!W192","v":0},{"$f":"[1]ODA!X192","v":0},{"$f":"[1]ODA!Y192","v":0},{"$f":"[1]ODA!Z192","v":0},0,0]
[0,null,null,null,null,{"$f":"[1]ODA!F193","v":0},{"$f":"[1]ODA!G193","v":0},{"$f":"[1]ODA!H193","v":0},{"$f":"[1]ODA!I193","v":0},{"$f":"[1]ODA!J193","v":0},{"$f":"[1]ODA!K193","v":0},{"$f":"[1]ODA!L193","v":0},{"$f":"[1]ODA!O193","v":0},{"$f":"[1]ODA!P193","v":0},{"$f":"[1]ODA!Q193","v":0},{"$f":"[1]ODA!R193","v":0},{"$f":"[1]ODA!S193","v":0},{"$f":"[1]ODA!T193","v":0},{"$f":"[1]ODA!U193","v":0},{"$f":"[1]ODA!V193","v":0},{"$f":"[1]ODA!W193","v":0},{"$f":"[1]ODA!X193","v":0},{"$f":"[1]ODA!Y193","v":0},{"$f":"[1]ODA!Z193","v":0},0,0]
[0,null,null,null,null,{"$f":"[1]ODA!F194","v":0},{"$f":"[1]ODA!G194","v":0},{"$f":"[1]ODA!H194","v":0},{"$f":"[1]ODA!I194","v":0},{"$f":"[1]ODA!J194","v":0},{"$f":"[1]ODA!K194","v":0},{"$f":"[1]ODA!L194","v":0},{"$f":"[1]ODA!O194","v":0},{"$f":"[1]ODA!P194","v":0},{"$f":"[1]ODA!Q194","v":0},{"$f":"[1]ODA!R194","v":0},{"$f":"[1]ODA!S194","v":0},{"$f":"[1]ODA!T194","v":0},{"$f":"[1]ODA!U194","v":0},{"$f":"[1]ODA!V194","v":0},{"$f":"[1]ODA!W194","v":0},{"$f":"[1]ODA!X194","v":0},{"$f":"[1]ODA!Y194","v":0},{"$f":"[1]ODA!Z194","v":0},0,0]
[0,null,null,null,null,{"$f":"[1]ODA!F195","v":0},{"$f":"[1]ODA!G195","v":0},{"$f":"[1]ODA!H195","v":0},{"$f":"[1]ODA!I195","v":0},{"$f":"[1]ODA!J195","v":0},{"$f":"[1]ODA!K195","v":0},{"$f":"[1]ODA!L195","v":0},{"$f":"[1]ODA!O195","v":0},{"$f":"[1]ODA!P195","v":0},{"$f":"[1]ODA!Q195","v":0},{"$f":"[1]ODA!R195","v":0},{"$f":"[1]ODA!S195","v":0},{"$f":"[1]ODA!T195","v":0},{"$f":"[1]ODA!U195","v":0},{"$f":"[1]ODA!V195","v":0},{"$f":"[1]ODA!W195","v":0},{"$f":"[1]ODA!X195","v":0},{"$f":"[1]ODA!Y195","v":0},{"$f":"[1]ODA!Z195","v":0},0,0]
[0,null,null,null,null,{"$f":"[1]ODA!F196","v":0},{"$f":"[1]ODA!G196","v":0},{"$f":"[1]ODA!H196","v":0},{"$f":"[1]ODA!I196","v":0},{"$f":"[1]ODA!J196","v":0},{"$f":"[1]ODA!K196","v":0},{"$f":"[1]ODA!L196","v":0},{"$f":"[1]ODA!O196","v":0},{"$f":"[1]ODA!P196","v":0},{"$f":"[1]ODA!Q196","v":0},{"$f":"[1]ODA!R196","v":0},{"$f":"[1]ODA!S196","v":0},{"$f":"[1]ODA!T196","v":0},{"$f":"[1]ODA!U196","v":0},{"$f":"[1]ODA!V196","v":0},{"$f":"[1]ODA!W196","v":0},{"$f":"[1]ODA!X196","v":0},{"$f":"[1]ODA!Y196","v":0},{"$f":"[1]ODA!Z196","v":0},0,0]
[0,null,null,null,null,{"$f":"[1]ODA!F197","v":0},{"$f":"[1]ODA!G197","v":0},{"$f":"[1]ODA!H197","v":0},{"$f":"[1]ODA!I197","v":0},{"$f":"[1]ODA!J197","v":0},{"$f":"[1]ODA!K197","v":0},{"$f":"[1]ODA!L197","v":0},{"$f":"[1]ODA!O197","v":0},{"$f":"[1]ODA!P197","v":0},{"$f":"[1]ODA!Q197","v":0},{"$f":"[1]ODA!R197","v":0},{"$f":"[1]ODA!S197","v":0},{"$f":"[1]ODA!T197","v":0},{"$f":"[1]ODA!U197","v":0},{"$f":"[1]ODA!V197","v":0},{"$f":"[1]ODA!W197","v":0},{"$f":"[1]ODA!X197","v":0},{"$f":"[1]ODA!Y197","v":0},{"$f":"[1]ODA!Z197","v":0},0,0]
[0,null,null,null,null,{"$f":"[1]ODA!F198","v":0},{"$f":"[1]ODA!G198","v":0},{"$f":"[1]ODA!H198","v":0},{"$f":"[1]ODA!I198","v":0},{"$f":"[1]ODA!J198","v":0},{"$f":"[1]ODA!K198","v":0},{"$f":"[1]ODA!L198","v":0},{"$f":"[1]ODA!O198","v":0},{"$f":"[1]ODA!P198","v":0},{"$f":"[1]ODA!Q198","v":0},{"$f":"[1]ODA!R198","v":0},{"$f":"[1]ODA!S198","v":0},{"$f":"[1]ODA!T198","v":0},{"$f":"[1]ODA!U198","v":0},{"$f":"[1]ODA!V198","v":0},{"$f":"[1]ODA!W198","v":0},{"$f":"[1]ODA!X198","v":0},{"$f":"[1]ODA!Y198","v":0},{"$f":"[1]ODA!Z198","v":0},0,0]
[0,null,null,null,null,{"$f":"[1]ODA!F199","v":0},{"$f":"[1]ODA!G199","v":0},{"$f":"[1]ODA!H199","v":0},{"$f":"[1]ODA!I199","v":0},{"$f":"[1]ODA!J199","v":0},{"$f":"[1]ODA!K199","v":0},{"$f":"[1]ODA!L199","v":0},{"$f":"[1]ODA!O199","v":0},{"$f":"[1]ODA!P199","v":0},{"$f":"[1]ODA!Q199","v":0},{"$f":"[1]ODA!R199","v":0},{"$f":"[1]ODA!S199","v":0},{"$f":"[1]ODA!T199","v":0},{"$f":"[1]ODA!U199","v":0},{"$f":"[1]ODA!V199","v":0},{"$f":"[1]ODA!W199","v":0},{"$f":"[1]ODA!X199","v":0},{"$f":"[1]ODA!Y199","v":0},{"$f":"[1]ODA!Z199","v":0},0,0]
[0,null,null,null,null,{"$f":"[1]ODA!F200","v":0},{"$f":"[1]ODA!G200","v":0},{"$f":"[1]ODA!H200","v":0},{"$f":"[1]ODA!I200","v":0},{"$f":"[1]ODA!J200","v":0},{"$f":"[1]ODA!K200","v":0},{"$f":"[1]ODA!L200","v":0},{"$f":"[1]ODA!O200","v":0},{"$f":"[1]ODA!P200","v":0},{"$f":"[1]ODA!Q200","v":0},{"$f":"[1]ODA!R200","v":0},{"$f":"[1]ODA!S200","v":0},{"$f":"[1]ODA!T200","v":0},{"$f":"[1]ODA!U200","v":0},{"$f":"[1]ODA!V200","v":0},{"$f":"[1]ODA!W200","v":0},{"$f":"[1]ODA!X200","v":0},{"$f":"[1]ODA!Y200","v":0},{"$f":"[1]ODA!Z200","v":0},0,0]
[0,null,null,null,null,{"$f":"[1]ODA!F201","v":0},{"$f":"[1]ODA!G201","v":0},{"$f":"[1]ODA!H201","v":0},{"$f":"[1]ODA!I201","v":0},{"$f":"[1]ODA!J201","v":0},{"$f":"[1]ODA!K201","v":0},{"$f":"[1]ODA!L201","v":0},{"$f":"[1]ODA!O201","v":0},{"$f":"[1]ODA!P201","v":0},{"$f":"[1]ODA!Q201","v":0},{"$f":"[1]ODA!R201","v":0},{"$f":"[1]ODA!S201","v":0},{"$f":"[1]ODA!T201","v":0},{"$f":"[1]ODA!U201","v":0},{"$f":"[1]ODA!V201","v":0},{"$f":"[1]ODA!W201","v":0},{"$f":"[1]ODA!X201","v":0},{"$f":"[1]ODA!Y201","v":0},{"$f":"[1]ODA!Z201","v":0},0,0]
[0,null,null,null,null,{"$f":"[1]ODA!F202","v":0},{"$f":"[1]ODA!G202","v":0},{"$f":"[1]ODA!H202","v":0},{"$f":"[1]ODA!I202","v":0},{"$f":"[1]ODA!J202","v":0},{"$f":"[1]ODA!K202","v":0},{"$f":"[1]ODA!L202","v":0},{"$f":"[1]ODA!O202","v":0},{"$f":"[1]ODA!P202","v":0},{"$f":"[1]ODA!Q202","v":0},{"$f":"[1]ODA!R202","v":0},{"$f":"[1]ODA!S202","v":0},{"$f":"[1]ODA!T202","v":0},{"$f":"[1]ODA!U202","v":0},{"$f":"[1]ODA!V202","v":0},{"$f":"[1]ODA!W202","v":0},{"$f":"[1]ODA!X202","v":0},{"$f":"[1]ODA!Y202","v":0},{"$f":"[1]ODA!Z202","v":0},0,0]
[0,null,null,null,null,{"$f":"[1]ODA!F203","v":0},{"$f":"[1]ODA!G203","v":0},{"$f":"[1]ODA!H203","v":0},{"$f":"[1]ODA!I203","v":0},{"$f":"[1]ODA!J203","v":0},{"$f":"[1]ODA!K203","v":0},{"$f":"[1]ODA!L203","v":0},{"$f":"[1]ODA!O203","v":0},{"$f":"[1]ODA!P203","v":0},{"$f":"[1]ODA!Q203","v":0},{"$f":"[1]ODA!R203","v":0},{"$f":"[1]ODA!S203","v":0},{"$f":"[1]ODA!T203","v":0},{"$f":"[1]ODA!U203","v":0},{"$f":"[1]ODA!V203","v":0},{"$f":"[1]ODA!W203","v":0},{"$f":"[1]ODA!X203","v":0},{"$f":"[1]ODA!Y203","v":0},{"$f":"[1]ODA!Z203","v":0},0,0]
[{"$f":"IF(SUM(L204:Z204)>0,1,0)","v":0},null,null,null,null,{"$f":"[1]ODA!F204","v":0},{"$f":"[1]ODA!G204","v":0},{"$f":"[1]ODA!H204","v":0},{"$f":"[1]ODA!I204","v":0},{"$f":"[1]ODA!J204","v":0},{"$f":"[1]ODA!K204","v":0},{"$f":"[1]ODA!L204","v":0},{"$f":"[1]ODA!O204","v":0},{"$f":"[1]ODA!P204","v":0},{"$f":"[1]ODA!Q204","v":0},{"$f":"[1]ODA!R204","v":0},{"$f":"[1]ODA!S204","v":0},{"$f":"[1]ODA!T204","v":0},{"$f":"[1]ODA!U204","v":0},{"$f":"[1]ODA!V204","v":0},{"$f":"[1]ODA!W204","v":0},{"$f":"[1]ODA!X204","v":0},{"$f":"[1]ODA!Y204","v":0},{"$f":"[1]ODA!Z204","v":0},0,0]
[0,null,null,null,null,{"$f":"[1]ODA!F205","v":0},{"$f":"[1]ODA!G205","v":0},{"$f":"[1]ODA!H205","v":0},{"$f":"[1]ODA!I205","v":0},{"$f":"[1]ODA!J205","v":0},{"$f":"[1]ODA!K205","v":0},{"$f":"[1]ODA!L205","v":0},{"$f":"[1]ODA!O205","v":0},{"$f":"[1]ODA!P205","v":0},{"$f":"[1]ODA!Q205","v":0},{"$f":"[1]ODA!R205","v":0},{"$f":"[1]ODA!S205","v":0},{"$f":"[1]ODA!T205","v":0},{"$f":"[1]ODA!U205","v":0},{"$f":"[1]ODA!V205","v":0},{"$f":"[1]ODA!W205","v":0},{"$f":"[1]ODA!X205","v":0},{"$f":"[1]ODA!Y205","v":0},{"$f":"[1]ODA!Z205","v":0},0,0]
[0,null,null,null,null,{"$f":"[1]ODA!F206","v":0},{"$f":"[1]ODA!G206","v":0},{"$f":"[1]ODA!H206","v":0},{"$f":"[1]ODA!I206","v":0},{"$f":"[1]ODA!J206","v":0},{"$f":"[1]ODA!K206","v":0},{"$f":"[1]ODA!L206","v":0},{"$f":"[1]ODA!O206","v":0},{"$f":"[1]ODA!P206","v":0},{"$f":"[1]ODA!Q206","v":0},{"$f":"[1]ODA!R206","v":0},{"$f":"[1]ODA!S206","v":0},{"$f":"[1]ODA!T206","v":0},{"$f":"[1]ODA!U206","v":0},{"$f":"[1]ODA!V206","v":0},{"$f":"[1]ODA!W206","v":0},{"$f":"[1]ODA!X206","v":0},{"$f":"[1]ODA!Y206","v":0},{"$f":"[1]ODA!Z206","v":0},0,0]
[0,null,null,null,null,{"$f":"[1]ODA!F207","v":0},{"$f":"[1]ODA!G207","v":0},{"$f":"[1]ODA!H207","v":0},{"$f":"[1]ODA!I207","v":0},{"$f":"[1]ODA!J207","v":0},{"$f":"[1]ODA!K207","v":0},{"$f":"[1]ODA!L207","v":0},{"$f":"[1]ODA!O207","v":0},{"$f":"[1]ODA!P207","v":0},{"$f":"[1]ODA!Q207","v":0},{"$f":"[1]ODA!R207","v":0},{"$f":"[1]ODA!S207","v":0},{"$f":"[1]ODA!T207","v":0},{"$f":"[1]ODA!U207","v":0},{"$f":"[1]ODA!V207","v":0},{"$f":"[1]ODA!W207","v":0},{"$f":"[1]ODA!X207","v":0},{"$f":"[1]ODA!Y207","v":0},{"$f":"[1]ODA!Z207","v":0},0,0]
[0,null,null,null,null,{"$f":"[1]ODA!F208","v":0},{"$f":"[1]ODA!G208","v":0},{"$f":"[1]ODA!H208","v":0},{"$f":"[1]ODA!I208","v":0},{"$f":"[1]ODA!J208","v":0},{"$f":"[1]ODA!K208","v":0},{"$f":"[1]ODA!L208","v":0},{"$f":"[1]ODA!O208","v":0},{"$f":"[1]ODA!P208","v":0},{"$f":"[1]ODA!Q208","v":0},{"$f":"[1]ODA!R208","v":0},{"$f":"[1]ODA!S208","v":0},{"$f":"[1]ODA!T208","v":0},{"$f":"[1]ODA!U208","v":0},{"$f":"[1]ODA!V208","v":0},{"$f":"[1]ODA!W208","v":0},{"$f":"[1]ODA!X208","v":0},{"$f":"[1]ODA!Y208","v":0},{"$f":"[1]ODA!Z208","v":0},0,0]
[0,null,null,null,null,{"$f":"[1]ODA!F209","v":0},{"$f":"[1]ODA!G209","v":0},{"$f":"[1]ODA!H209","v":0},{"$f":"[1]ODA!I209","v":0},{"$f":"[1]ODA!J209","v":0},{"$f":"[1]ODA!K209","v":0},{"$f":"[1]ODA!L209","v":0},{"$f":"[1]ODA!O209","v":0},{"$f":"[1]ODA!P209","v":0},{"$f":"[1]ODA!Q209","v":0},{"$f":"[1]ODA!R209","v":0},{"$f":"[1]ODA!S209","v":0},{"$f":"[1]ODA!T209","v":0},{"$f":"[1]ODA!U209","v":0},{"$f":"[1]ODA!V209","v":0},{"$f":"[1]ODA!W209","v":0},{"$f":"[1]ODA!X209","v":0},{"$f":"[1]ODA!Y209","v":0},{"$f":"[1]ODA!Z209","v":0},0,0]
[0,null,null,null,null,{"$f":"[1]ODA!F210","v":0},{"$f":"[1]ODA!G210","v":0},{"$f":"[1]ODA!H210","v":0},{"$f":"[1]ODA!I210","v":0},{"$f":"[1]ODA!J210","v":0},{"$f":"[1]ODA!K210","v":0},{"$f":"[1]ODA!L210","v":0},{"$f":"[1]ODA!O210","v":0},{"$f":"[1]ODA!P210","v":0},{"$f":"[1]ODA!Q210","v":0},{"$f":"[1]ODA!R210","v":0},{"$f":"[1]ODA!S210","v":0},{"$f":"[1]ODA!T210","v":0},{"$f":"[1]ODA!U210","v":0},{"$f":"[1]ODA!V210","v":0},{"$f":"[1]ODA!W210","v":0},{"$f":"[1]ODA!X210","v":0},{"$f":"[1]ODA!Y210","v":0},{"$f":"[1]ODA!Z210","v":0},0,0]
[0,null,null,null,null,{"$f":"[1]ODA!F211","v":0},{"$f":"[1]ODA!G211","v":0},{"$f":"[1]ODA!H211","v":0},{"$f":"[1]ODA!I211","v":0},{"$f":"[1]ODA!J211","v":0},{"$f":"[1]ODA!K211","v":0},{"$f":"[1]ODA!L211","v":0},{"$f":"[1]ODA!O211","v":0},{"$f":"[1]ODA!P211","v":0},{"$f":"[1]ODA!Q211","v":0},{"$f":"[1]ODA!R211","v":0},{"$f":"[1]ODA!S211","v":0},{"$f":"[1]ODA!T211","v":0},{"$f":"[1]ODA!U211","v":0},{"$f":"[1]ODA!V211","v":0},{"$f":"[1]ODA!W211","v":0},{"$f":"[1]ODA!X211","v":0},{"$f":"[1]ODA!Y211","v":0},{"$f":"[1]ODA!Z211","v":0},0,0]
[0,null,null,null,null,{"$f":"[1]ODA!F212","v":0},{"$f":"[1]ODA!G212","v":0},{"$f":"[1]ODA!H212","v":0},{"$f":"[1]ODA!I212","v":0},{"$f":"[1]ODA!J212","v":0},{"$f":"[1]ODA!K212","v":0},{"$f":"[1]ODA!L212","v":0},{"$f":"[1]ODA!O212","v":0},{"$f":"[1]ODA!P212","v":0},{"$f":"[1]ODA!Q212","v":0},{"$f":"[1]ODA!R212","v":0},{"$f":"[1]ODA!S212","v":0},{"$f":"[1]ODA!T212","v":0},{"$f":"[1]ODA!U212","v":0},{"$f":"[1]ODA!V212","v":0},{"$f":"[1]ODA!W212","v":0},{"$f":"[1]ODA!X212","v":0},{"$f":"[1]ODA!Y212","v":0},{"$f":"[1]ODA!Z212","v":0},0,0]
[0,null,null,null,null,{"$f":"[1]ODA!F213","v":0},{"$f":"[1]ODA!G213","v":0},{"$f":"[1]ODA!H213","v":0},{"$f":"[1]ODA!I213","v":0},{"$f":"[1]ODA!J213","v":0},{"$f":"[1]ODA!K213","v":0},{"$f":"[1]ODA!L213","v":0},{"$f":"[1]ODA!O213","v":0},{"$f":"[1]ODA!P213","v":0},{"$f":"[1]ODA!Q213","v":0},{"$f":"[1]ODA!R213","v":0},{"$f":"[1]ODA!S213","v":0},{"$f":"[1]ODA!T213","v":0},{"$f":"[1]ODA!U213","v":0},{"$f":"[1]ODA!V213","v":0},{"$f":"[1]ODA!W213","v":0},{"$f":"[1]ODA!X213","v":0},{"$f":"[1]ODA!Y213","v":0},{"$f":"[1]ODA!Z213","v":0},0,0]
[0,null,null,null,null,{"$f":"[1]ODA!F214","v":0},{"$f":"[1]ODA!G214","v":0},{"$f":"[1]ODA!H214","v":0},{"$f":"[1]ODA!I214","v":0},{"$f":"[1]ODA!J214","v":0},{"$f":"[1]ODA!K214","v":0},{"$f":"[1]ODA!L214","v":0},{"$f":"[1]ODA!O214","v":0},{"$f":"[1]ODA!P214","v":0},{"$f":"[1]ODA!Q214","v":0},{"$f":"[1]ODA!R214","v":0},{"$f":"[1]ODA!S214","v":0},{"$f":"[1]ODA!T214","v":0},{"$f":"[1]ODA!U214","v":0},{"$f":"[1]ODA!V214","v":0},{"$f":"[1]ODA!W214","v":0},{"$f":"[1]ODA!X214","v":0},{"$f":"[1]ODA!Y214","v":0},{"$f":"[1]ODA!Z214","v":0},0,0]
[0,null,null,null,null,{"$f":"[1]ODA!F215","v":0},{"$f":"[1]ODA!G215","v":0},{"$f":"[1]ODA!H215","v":0},{"$f":"[1]ODA!I215","v":0},{"$f":"[1]ODA!J215","v":0},{"$f":"[1]ODA!K215","v":0},{"$f":"[1]ODA!L215","v":0},{"$f":"[1]ODA!O215","v":0},{"$f":"[1]ODA!P215","v":0},{"$f":"[1]ODA!Q215","v":0},{"$f":"[1]ODA!R215","v":0},{"$f":"[1]ODA!S215","v":0},{"$f":"[1]ODA!T215","v":0},{"$f":"[1]ODA!U215","v":0},{"$f":"[1]ODA!V215","v":0},{"$f":"[1]ODA!W215","v":0},{"$f":"[1]ODA!X215","v":0},{"$f":"[1]ODA!Y215","v":0},{"$f":"[1]ODA!Z215","v":0},0,0]
[0,null,null,null,null,{"$f":"[1]ODA!F216","v":0},{"$f":"[1]ODA!G216","v":0},{"$f":"[1]ODA!H216","v":0},{"$f":"[1]ODA!I216","v":0},{"$f":"[1]ODA!J216","v":0},{"$f":"[1]ODA!K216","v":0},{"$f":"[1]ODA!L216","v":0},{"$f":"[1]ODA!O216","v":0},{"$f":"[1]ODA!P216","v":0},{"$f":"[1]ODA!Q216","v":0},{"$f":"[1]ODA!R216","v":0},{"$f":"[1]ODA!S216","v":0},{"$f":"[1]ODA!T216","v":0},{"$f":"[1]ODA!U216","v":0},{"$f":"[1]ODA!V216","v":0},{"$f":"[1]ODA!W216","v":0},{"$f":"[1]ODA!X216","v":0},{"$f":"[1]ODA!Y216","v":0},{"$f":"[1]ODA!Z216","v":0},0,0]
[0,null,null,null,null,{"$f":"[1]ODA!F217","v":0},{"$f":"[1]ODA!G217","v":0},{"$f":"[1]ODA!H217","v":0},{"$f":"[1]ODA!I217","v":0},{"$f":"[1]ODA!J217","v":0},{"$f":"[1]ODA!K217","v":0},{"$f":"[1]ODA!L217","v":0},{"$f":"[1]ODA!O217","v":0},{"$f":"[1]ODA!P217","v":0},{"$f":"[1]ODA!Q217","v":0},{"$f":"[1]ODA!R217","v":0},{"$f":"[1]ODA!S217","v":0},{"$f":"[1]ODA!T217","v":0},{"$f":"[1]ODA!U217","v":0},{"$f":"[1]ODA!V217","v":0},{"$f":"[1]ODA!W217","v":0},{"$f":"[1]ODA!X217","v":0},{"$f":"[1]ODA!Y217","v":0},{"$f":"[1]ODA!Z217","v":0},0,0]
[0,null,null,null,null,{"$f":"[1]ODA!F218","v":0},{"$f":"[1]ODA!G218","v":0},{"$f":"[1]ODA!H218","v":0},{"$f":"[1]ODA!I218","v":0},{"$f":"[1]ODA!J218","v":0},{"$f":"[1]ODA!K218","v":0},{"$f":"[1]ODA!L218","v":0},{"$f":"[1]ODA!O218","v":0},{"$f":"[1]ODA!P218","v":0},{"$f":"[1]ODA!Q218","v":0},{"$f":"[1]ODA!R218","v":0},{"$f":"[1]ODA!S218","v":0},{"$f":"[1]ODA!T218","v":0},{"$f":"[1]ODA!U218","v":0},{"$f":"[1]ODA!V218","v":0},{"$f":"[1]ODA!W218","v":0},{"$f":"[1]ODA!X218","v":0},{"$f":"[1]ODA!Y218","v":0},{"$f":"[1]ODA!Z218","v":0},0,0]
[0,null,null,null,null,{"$f":"[1]ODA!F219","v":0},{"$f":"[1]ODA!G219","v":0},{"$f":"[1]ODA!H219","v":0},{"$f":"[1]ODA!I219","v":0},{"$f":"[1]ODA!J219","v":0},{"$f":"[1]ODA!K219","v":0},{"$f":"[1]ODA!L219","v":0},{"$f":"[1]ODA!O219","v":0},{"$f":"[1]ODA!P219","v":0},{"$f":"[1]ODA!Q219","v":0},{"$f":"[1]ODA!R219","v":0},{"$f":"[1]ODA!S219","v":0},{"$f":"[1]ODA!T219","v":0},{"$f":"[1]ODA!U219","v":0},{"$f":"[1]ODA!V219","v":0},{"$f":"[1]ODA!W219","v":0},{"$f":"[1]ODA!X219","v":0},{"$f":"[1]ODA!Y219","v":0},{"$f":"[1]ODA!Z219","v":0},0,0]
[0,null,null,null,null,{"$f":"[1]ODA!F220","v":0},{"$f":"[1]ODA!G220","v":0},{"$f":"[1]ODA!H220","v":0},{"$f":"[1]ODA!I220","v":0},{"$f":"[1]ODA!J220","v":0},{"$f":"[1]ODA!K220","v":0},{"$f":"[1]ODA!L220","v":0},{"$f":"[1]ODA!O220","v":0},{"$f":"[1]ODA!P220","v":0},{"$f":"[1]ODA!Q220","v":0},{"$f":"[1]ODA!R220","v":0},{"$f":"[1]ODA!S220","v":0},{"$f":"[1]ODA!T220","v":0},{"$f":"[1]ODA!U220","v":0},{"$f":"[1]ODA!V220","v":0},{"$f":"[1]ODA!W220","v":0},{"$f":"[1]ODA!X220","v":0},{"$f":"[1]ODA!Y220","v":0},{"$f":"[1]ODA!Z220","v":0},0,0]
[0,null,null,null,null,{"$f":"[1]ODA!F221","v":0},{"$f":"[1]ODA!G221","v":0},{"$f":"[1]ODA!H221","v":0},{"$f":"[1]ODA!I221","v":0},{"$f":"[1]ODA!J221","v":0},{"$f":"[1]ODA!K221","v":0},{"$f":"[1]ODA!L221","v":0},{"$f":"[1]ODA!O221","v":0},{"$f":"[1]ODA!P221","v":0},{"$f":"[1]ODA!Q221","v":0},{"$f":"[1]ODA!R221","v":0},{"$f":"[1]ODA!S221","v":0},{"$f":"[1]ODA!T221","v":0},{"$f":"[1]ODA!U221","v":0},{"$f":"[1]ODA!V221","v":0},{"$f":"[1]ODA!W221","v":0},{"$f":"[1]ODA!X221","v":0},{"$f":"[1]ODA!Y221","v":0},{"$f":"[1]ODA!Z221","v":0},0,0]
[0,null,null,null,null,{"$f":"[1]ODA!F222","v":0},{"$f":"[1]ODA!G222","v":0},{"$f":"[1]ODA!H222","v":0},{"$f":"[1]ODA!I222","v":0},{"$f":"[1]ODA!J222","v":0},{"$f":"[1]ODA!K222","v":0},{"$f":"[1]ODA!L222","v":0},{"$f":"[1]ODA!O222","v":0},{"$f":"[1]ODA!P222","v":0},{"$f":"[1]ODA!Q222","v":0},{"$f":"[1]ODA!R222","v":0},{"$f":"[1]ODA!S222","v":0},{"$f":"[1]ODA!T222","v":0},{"$f":"[1]ODA!U222","v":0},{"$f":"[1]ODA!V222","v":0},{"$f":"[1]ODA!W222","v":0},{"$f":"[1]ODA!X222","v":0},{"$f":"[1]ODA!Y222","v":0},{"$f":"[1]ODA!Z222","v":0},0,0]
[0,null,null,null,null,{"$f":"[1]ODA!F223","v":0},{"$f":"[1]ODA!G223","v":0},{"$f":"[1]ODA!H223","v":0},{"$f":"[1]ODA!I223","v":0},{"$f":"[1]ODA!J223","v":0},{"$f":"[1]ODA!K223","v":0},{"$f":"[1]ODA!L223","v":0},{"$f":"[1]ODA!O223","v":0},{"$f":"[1]ODA!P223","v":0},{"$f":"[1]ODA!Q223","v":0},{"$f":"[1]ODA!R223","v":0},{"$f":"[1]ODA!S223","v":0},{"$f":"[1]ODA!T223","v":0},{"$f":"[1]ODA!U223","v":0},{"$f":"[1]ODA!V223","v":0},{"$f":"[1]ODA!W223","v":0},{"$f":"[1]ODA!X223","v":0},{"$f":"[1]ODA!Y223","v":0},{"$f":"[1]ODA!Z223","v":0},0,0]
[0,null,null,null,null,{"$f":"[1]ODA!F224","v":0},{"$f":"[1]ODA!G224","v":0},{"$f":"[1]ODA!H224","v":0},{"$f":"[1]ODA!I224","v":0},{"$f":"[1]ODA!J224","v":0},{"$f":"[1]ODA!K224","v":0},{"$f":"[1]ODA!L224","v":0},{"$f":"[1]ODA!O224","v":0},{"$f":"[1]ODA!P224","v":0},{"$f":"[1]ODA!Q224","v":0},{"$f":"[1]ODA!R224","v":0},{"$f":"[1]ODA!S224","v":0},{"$f":"[1]ODA!T224","v":0},{"$f":"[1]ODA!U224","v":0},{"$f":"[1]ODA!V224","v":0},{"$f":"[1]ODA!W224","v":0},{"$f":"[1]ODA!X224","v":0},{"$f":"[1]ODA!Y224","v":0},{"$f":"[1]ODA!Z224","v":0},0,0]
[0,null,null,null,null,{"$f":"[1]ODA!F225","v":0},{"$f":"[1]ODA!G225","v":0},{"$f":"[1]ODA!H225","v":0},{"$f":"[1]ODA!I225","v":0},{"$f":"[1]ODA!J225","v":0},{"$f":"[1]ODA!K225","v":0},{"$f":"[1]ODA!L225","v":0},{"$f":"[1]ODA!O225","v":0},{"$f":"[1]ODA!P225","v":0},{"$f":"[1]ODA!Q225","v":0},{"$f":"[1]ODA!R225","v":0},{"$f":"[1]ODA!S225","v":0},{"$f":"[1]ODA!T225","v":0},{"$f":"[1]ODA!U225","v":0},{"$f":"[1]ODA!V225","v":0},{"$f":"[1]ODA!W225","v":0},{"$f":"[1]ODA!X225","v":0},{"$f":"[1]ODA!Y225","v":0},{"$f":"[1]ODA!Z225","v":0},0,0]
[0,null,null,null,null,{"$f":"[1]ODA!F226","v":0},{"$f":"[1]ODA!G226","v":0},{"$f":"[1]ODA!H226","v":0},{"$f":"[1]ODA!I226","v":0},{"$f":"[1]ODA!J226","v":0},{"$f":"[1]ODA!K226","v":0},{"$f":"[1]ODA!L226","v":0},{"$f":"[1]ODA!O226","v":0},{"$f":"[1]ODA!P226","v":0},{"$f":"[1]ODA!Q226","v":0},{"$f":"[1]ODA!R226","v":0},{"$f":"[1]ODA!S226","v":0},{"$f":"[1]ODA!T226","v":0},{"$f":"[1]ODA!U226","v":0},{"$f":"[1]ODA!V226","v":0},{"$f":"[1]ODA!W226","v":0},{"$f":"[1]ODA!X226","v":0},{"$f":"[1]ODA!Y226","v":0},{"$f":"[1]ODA!Z226","v":0},0,0]
[0,null,null,null,null,{"$f":"[1]ODA!F227","v":0},{"$f":"[1]ODA!G227","v":0},{"$f":"[1]ODA!H227","v":0},{"$f":"[1]ODA!I227","v":0},{"$f":"[1]ODA!J227","v":0},{"$f":"[1]ODA!K227","v":0},{"$f":"[1]ODA!L227","v":0},{"$f":"[1]ODA!O227","v":0},{"$f":"[1]ODA!P227","v":0},{"$f":"[1]ODA!Q227","v":0},{"$f":"[1]ODA!R227","v":0},{"$f":"[1]ODA!S227","v":0},{"$f":"[1]ODA!T227","v":0},{"$f":"[1]ODA!U227","v":0},{"$f":"[1]ODA!V227","v":0},{"$f":"[1]ODA!W227","v":0},{"$f":"[1]ODA!X227","v":0},{"$f":"[1]ODA!Y227","v":0},{"$f":"[1]ODA!Z227","v":0},0,0]
[0,null,null,null,null,{"$f":"[1]ODA!F228","v":0},{"$f":"[1]ODA!G228","v":0},{"$f":"[1]ODA!H228","v":0},{"$f":"[1]ODA!I228","v":0},{"$f":"[1]ODA!J228","v":0},{"$f":"[1]ODA!K228","v":0},{"$f":"[1]ODA!L228","v":0},{"$f":"[1]ODA!O228","v":0},{"$f":"[1]ODA!P228","v":0},{"$f":"[1]ODA!Q228","v":0},{"$f":"[1]ODA!R228","v":0},{"$f":"[1]ODA!S228","v":0},{"$f":"[1]ODA!T228","v":0},{"$f":"[1]ODA!U228","v":0},{"$f":"[1]ODA!V228","v":0},{"$f":"[1]ODA!W228","v":0},{"$f":"[1]ODA!X228","v":0},{"$f":"[1]ODA!Y228","v":0},{"$f":"[1]ODA!Z228","v":0},0,0]
[0,null,null,null,null,{"$f":"[1]ODA!F229","v":0},{"$f":"[1]ODA!G229","v":0},{"$f":"[1]ODA!H229","v":0},{"$f":"[1]ODA!I229","v":0},{"$f":"[1]ODA!J229","v":0},{"$f":"[1]ODA!K229","v":0},{"$f":"[1]ODA!L229","v":0},{"$f":"[1]ODA!O229","v":0},{"$f":"[1]ODA!P229","v":0},{"$f":"[1]ODA!Q229","v":0},{"$f":"[1]ODA!R229","v":0},{"$f":"[1]ODA!S229","v":0},{"$f":"[1]ODA!T229","v":0},{"$f":"[1]ODA!U229","v":0},{"$f":"[1]ODA!V229","v":0},{"$f":"[1]ODA!W229","v":0},{"$f":"[1]ODA!X229","v":0},{"$f":"[1]ODA!Y229","v":0},{"$f":"[1]ODA!Z229","v":0},0,0]
[0,null,null,null,null,{"$f":"[1]ODA!F230","v":0},{"$f":"[1]ODA!G230","v":0},{"$f":"[1]ODA!H230","v":0},{"$f":"[1]ODA!I230","v":0},{"$f":"[1]ODA!J230","v":0},{"$f":"[1]ODA!K230","v":0},{"$f":"[1]ODA!L230","v":0},{"$f":"[1]ODA!O230","v":0},{"$f":"[1]ODA!P230","v":0},{"$f":"[1]ODA!Q230","v":0},{"$f":"[1]ODA!R230","v":0},{"$f":"[1]ODA!S230","v":0},{"$f":"[1]ODA!T230","v":0},{"$f":"[1]ODA!U230","v":0},{"$f":"[1]ODA!V230","v":0},{"$f":"[1]ODA!W230","v":0},{"$f":"[1]ODA!X230","v":0},{"$f":"[1]ODA!Y230","v":0},{"$f":"[1]ODA!Z230","v":0},0,0]
[0,null,null,null,null,{"$f":"[1]ODA!F231","v":0},{"$f":"[1]ODA!G231","v":0},{"$f":"[1]ODA!H231","v":0},{"$f":"[1]ODA!I231","v":0},{"$f":"[1]ODA!J231","v":0},{"$f":"[1]ODA!K231","v":0},{"$f":"[1]ODA!L231","v":0},{"$f":"[1]ODA!O231","v":0},{"$f":"[1]ODA!P231","v":0},{"$f":"[1]ODA!Q231","v":0},{"$f":"[1]ODA!R231","v":0},{"$f":"[1]ODA!S231","v":0},{"$f":"[1]ODA!T231","v":0},{"$f":"[1]ODA!U231","v":0},{"$f":"[1]ODA!V231","v":0},{"$f":"[1]ODA!W231","v":0},{"$f":"[1]ODA!X231","v":0},{"$f":"[1]ODA!Y231","v":0},{"$f":"[1]ODA!Z231","v":0},0,0]
[0,null,null,null,null,{"$f":"[1]ODA!F232","v":0},{"$f":"[1]ODA!G232","v":0},{"$f":"[1]ODA!H232","v":0},{"$f":"[1]ODA!I232","v":0},{"$f":"[1]ODA!J232","v":0},{"$f":"[1]ODA!K232","v":0},{"$f":"[1]ODA!L232","v":0},{"$f":"[1]ODA!O232","v":0},{"$f":"[1]ODA!P232","v":0},{"$f":"[1]ODA!Q232","v":0},{"$f":"[1]ODA!R232","v":0},{"$f":"[1]ODA!S232","v":0},{"$f":"[1]ODA!T232","v":0},{"$f":"[1]ODA!U232","v":0},{"$f":"[1]ODA!V232","v":0},{"$f":"[1]ODA!W232","v":0},{"$f":"[1]ODA!X232","v":0},{"$f":"[1]ODA!Y232","v":0},{"$f":"[1]ODA!Z232","v":0},0,0]
[0,null,null,null,null,{"$f":"[1]ODA!F233","v":0},{"$f":"[1]ODA!G233","v":0},{"$f":"[1]ODA!H233","v":0},{"$f":"[1]ODA!I233","v":0},{"$f":"[1]ODA!J233","v":0},{"$f":"[1]ODA!K233","v":0},{"$f":"[1]ODA!L233","v":0},{"$f":"[1]ODA!O233","v":0},{"$f":"[1]ODA!P233","v":0},{"$f":"[1]ODA!Q233","v":0},{"$f":"[1]ODA!R233","v":0},{"$f":"[1]ODA!S233","v":0},{"$f":"[1]ODA!T233","v":0},{"$f":"[1]ODA!U233","v":0},{"$f":"[1]ODA!V233","v":0},{"$f":"[1]ODA!W233","v":0},{"$f":"[1]ODA!X233","v":0},{"$f":"[1]ODA!Y233","v":0},{"$f":"[1]ODA!Z233","v":0},0,0]
[0,null,null,null,null,{"$f":"[1]ODA!F234","v":0},{"$f":"[1]ODA!G234","v":0},{"$f":"[1]ODA!H234","v":0},{"$f":"[1]ODA!I234","v":0},{"$f":"[1]ODA!J234","v":0},{"$f":"[1]ODA!K234","v":0},{"$f":"[1]ODA!L234","v":0},{"$f":"[1]ODA!O234","v":0},{"$f":"[1]ODA!P234","v":0},{"$f":"[1]ODA!Q234","v":0},{"$f":"[1]ODA!R234","v":0},{"$f":"[1]ODA!S234","v":0},{"$f":"[1]ODA!T234","v":0},{"$f":"[1]ODA!U234","v":0},{"$f":"[1]ODA!V234","v":0},{"$f":"[1]ODA!W234","v":0},{"$f":"[1]ODA!X234","v":0},{"$f":"[1]ODA!Y234","v":0},{"$f":"[1]ODA!Z234","v":0},0,0]
[0,null,null,null,null,{"$f":"[1]ODA!F235","v":0},{"$f":"[1]ODA!G235","v":0},{"$f":"[1]ODA!H235","v":0},{"$f":"[1]ODA!I235","v":0},{"$f":"[1]ODA!J235","v":0},{"$f":"[1]ODA!K235","v":0},{"$f":"[1]ODA!L235","v":0},{"$f":"[1]ODA!O235","v":0},{"$f":"[1]ODA!P235","v":0},{"$f":"[1]ODA!Q235","v":0},{"$f":"[1]ODA!R235","v":0},{"$f":"[1]ODA!S235","v":0},{"$f":"[1]ODA!T235","v":0},{"$f":"[1]ODA!U235","v":0},{"$f":"[1]ODA!V235","v":0},{"$f":"[1]ODA!W235","v":0},{"$f":"[1]ODA!X235","v":0},{"$f":"[1]ODA!Y235","v":0},{"$f":"[1]ODA!Z235","v":0},0,0]
[0,null,null,null,null,{"$f":"[1]ODA!F236","v":0},{"$f":"[1]ODA!G236","v":0},{"$f":"[1]ODA!H236","v":0},{"$f":"[1]ODA!I236","v":0},{"$f":"[1]ODA!J236","v":0},{"$f":"[1]ODA!K236","v":0},{"$f":"[1]ODA!L236","v":0},{"$f":"[1]ODA!O236","v":0},{"$f":"[1]ODA!P236","v":0},{"$f":"[1]ODA!Q236","v":0},{"$f":"[1]ODA!R236","v":0},{"$f":"[1]ODA!S236","v":0},{"$f":"[1]ODA!T236","v":0},{"$f":"[1]ODA!U236","v":0},{"$f":"[1]ODA!V236","v":0},{"$f":"[1]ODA!W236","v":0},{"$f":"[1]ODA!X236","v":0},{"$f":"[1]ODA!Y236","v":0},{"$f":"[1]ODA!Z236","v":0},0,0]
[0,null,null,null,null,{"$f":"[1]ODA!F237","v":0},{"$f":"[1]ODA!G237","v":0},{"$f":"[1]ODA!H237","v":0},{"$f":"[1]ODA!I237","v":0},{"$f":"[1]ODA!J237","v":0},{"$f":"[1]ODA!K237","v":0},{"$f":"[1]ODA!L237","v":0},{"$f":"[1]ODA!O237","v":0},{"$f":"[1]ODA!P237","v":0},{"$f":"[1]ODA!Q237","v":0},{"$f":"[1]ODA!R237","v":0},{"$f":"[1]ODA!S237","v":0},{"$f":"[1]ODA!T237","v":0},{"$f":"[1]ODA!U237","v":0},{"$f":"[1]ODA!V237","v":0},{"$f":"[1]ODA!W237","v":0},{"$f":"[1]ODA!X237","v":0},{"$f":"[1]ODA!Y237","v":0},{"$f":"[1]ODA!Z237","v":0},0,0]
[0,null,null,null,null,{"$f":"[1]ODA!F238","v":0},{"$f":"[1]ODA!G238","v":0},{"$f":"[1]ODA!H238","v":0},{"$f":"[1]ODA!I238","v":0},{"$f":"[1]ODA!J238","v":0},{"$f":"[1]ODA!K238","v":0},{"$f":"[1]ODA!L238","v":0},{"$f":"[1]ODA!O238","v":0},{"$f":"[1]ODA!P238","v":0},{"$f":"[1]ODA!Q238","v":0},{"$f":"[1]ODA!R238","v":0},{"$f":"[1]ODA!S238","v":0},{"$f":"[1]ODA!T238","v":0},{"$f":"[1]ODA!U238","v":0},{"$f":"[1]ODA!V238","v":0},{"$f":"[1]ODA!W238","v":0},{"$f":"[1]ODA!X238","v":0},{"$f":"[1]ODA!Y238","v":0},{"$f":"[1]ODA!Z238","v":0},0,0]
[0,null,null,null,null,{"$f":"[1]ODA!F239","v":0},{"$f":"[1]ODA!G239","v":0},{"$f":"[1]ODA!H239","v":0},{"$f":"[1]ODA!I239","v":0},{"$f":"[1]ODA!J239","v":0},{"$f":"[1]ODA!K239","v":0},{"$f":"[1]ODA!L239","v":0},{"$f":"[1]ODA!O239","v":0},{"$f":"[1]ODA!P239","v":0},{"$f":"[1]ODA!Q239","v":0},{"$f":"[1]ODA!R239","v":0},{"$f":"[1]ODA!S239","v":0},{"$f":"[1]ODA!T239","v":0},{"$f":"[1]ODA!U239","v":0},{"$f":"[1]ODA!V239","v":0},{"$f":"[1]ODA!W239","v":0},{"$f":"[1]ODA!X239","v":0},{"$f":"[1]ODA!Y239","v":0},{"$f":"[1]ODA!Z239","v":0},0,0]
[0,null,null,null,null,{"$f":"[1]ODA!F240","v":0},{"$f":"[1]ODA!G240","v":0},{"$f":"[1]ODA!H240","v":0},{"$f":"[1]ODA!I240","v":0},{"$f":"[1]ODA!J240","v":0},{"$f":"[1]ODA!K240","v":0},{"$f":"[1]ODA!L240","v":0},{"$f":"[1]ODA!O240","v":0},{"$f":"[1]ODA!P240","v":0},{"$f":"[1]ODA!Q240","v":0},{"$f":"[1]ODA!R240","v":0},{"$f":"[1]ODA!S240","v":0},{"$f":"[1]ODA!T240","v":0},{"$f":"[1]ODA!U240","v":0},{"$f":"[1]ODA!V240","v":0},{"$f":"[1]ODA!W240","v":0},{"$f":"[1]ODA!X240","v":0},{"$f":"[1]ODA!Y240","v":0},{"$f":"[1]ODA!Z240","v":0},0,0]
[0,null,null,null,null,{"$f":"[1]ODA!F241","v":0},{"$f":"[1]ODA!G241","v":0},{"$f":"[1]ODA!H241","v":0},{"$f":"[1]ODA!I241","v":0},{"$f":"[1]ODA!J241","v":0},{"$f":"[1]ODA!K241","v":0},{"$f":"[1]ODA!L241","v":0},{"$f":"[1]ODA!O241","v":0},{"$f":"[1]ODA!P241","v":0},{"$f":"[1]ODA!Q241","v":0},{"$f":"[1]ODA!R241","v":0},{"$f":"[1]ODA!S241","v":0},{"$f":"[1]ODA!T241","v":0},{"$f":"[1]ODA!U241","v":0},{"$f":"[1]ODA!V241","v":0},{"$f":"[1]ODA!W241","v":0},{"$f":"[1]ODA!X241","v":0},{"$f":"[1]ODA!Y241","v":0},{"$f":"[1]ODA!Z241","v":0},0,0]
[0,null,null,null,null,{"$f":"[1]ODA!F242","v":0},{"$f":"[1]ODA!G242","v":0},{"$f":"[1]ODA!H242","v":0},{"$f":"[1]ODA!I242","v":0},{"$f":"[1]ODA!J242","v":0},{"$f":"[1]ODA!K242","v":0},{"$f":"[1]ODA!L242","v":0},{"$f":"[1]ODA!O242","v":0},{"$f":"[1]ODA!P242","v":0},{"$f":"[1]ODA!Q242","v":0},{"$f":"[1]ODA!R242","v":0},{"$f":"[1]ODA!S242","v":0},{"$f":"[1]ODA!T242","v":0},{"$f":"[1]ODA!U242","v":0},{"$f":"[1]ODA!V242","v":0},{"$f":"[1]ODA!W242","v":0},{"$f":"[1]ODA!X242","v":0},{"$f":"[1]ODA!Y242","v":0},{"$f":"[1]ODA!Z242","v":0},0,0]
[0,null,null,null,null,{"$f":"[1]ODA!F243","v":0},{"$f":"[1]ODA!G243","v":0},{"$f":"[1]ODA!H243","v":0},{"$f":"[1]ODA!I243","v":0},{"$f":"[1]ODA!J243","v":0},{"$f":"[1]ODA!K243","v":0},{"$f":"[1]ODA!L243","v":0},{"$f":"[1]ODA!O243","v":0},{"$f":"[1]ODA!P243","v":0},{"$f":"[1]ODA!Q243","v":0},{"$f":"[1]ODA!R243","v":0},{"$f":"[1]ODA!S243","v":0},{"$f":"[1]ODA!T243","v":0},{"$f":"[1]ODA!U243","v":0},{"$f":"[1]ODA!V243","v":0},{"$f":"[1]ODA!W243","v":0},{"$f":"[1]ODA!X243","v":0},{"$f":"[1]ODA!Y243","v":0},{"$f":"[1]ODA!Z243","v":0},0,0]
[0,null,null,null,null,{"$f":"[1]ODA!F244","v":0},{"$f":"[1]ODA!G244","v":0},{"$f":"[1]ODA!H244","v":0},{"$f":"[1]ODA!I244","v":0},{"$f":"[1]ODA!J244","v":0},{"$f":"[1]ODA!K244","v":0},{"$f":"[1]ODA!L244","v":0},{"$f":"[1]ODA!O244","v":0},{"$f":"[1]ODA!P244","v":0},{"$f":"[1]ODA!Q244","v":0},{"$f":"[1]ODA!R244","v":0},{"$f":"[1]ODA!S244","v":0},{"$f":"[1]ODA!T244","v":0},{"$f":"[1]ODA!U244","v":0},{"$f":"[1]ODA!V244","v":0},{"$f":"[1]ODA!W244","v":0},{"$f":"[1]ODA!X244","v":0},{"$f":"[1]ODA!Y244","v":0},{"$f":"[1]ODA!Z244","v":0},0,0]
[0,null,null,null,null,{"$f":"[1]ODA!F245","v":0},{"$f":"[1]ODA!G245","v":0},{"$f":"[1]ODA!H245","v":0},{"$f":"[1]ODA!I245","v":0},{"$f":"[1]ODA!J245","v":0},{"$f":"[1]ODA!K245","v":0},{"$f":"[1]ODA!L245","v":0},{"$f":"[1]ODA!O245","v":0},{"$f":"[1]ODA!P245","v":0},{"$f":"[1]ODA!Q245","v":0},{"$f":"[1]ODA!R245","v":0},{"$f":"[1]ODA!S245","v":0},{"$f":"[1]ODA!T245","v":0},{"$f":"[1]ODA!U245","v":0},{"$f":"[1]ODA!V245","v":0},{"$f":"[1]ODA!W245","v":0},{"$f":"[1]ODA!X245","v":0},{"$f":"[1]ODA!Y245","v":0},{"$f":"[1]ODA!Z245","v":0},0,0]
[0,null,null,null,null,{"$f":"[1]ODA!F246","v":0},{"$f":"[1]ODA!G246","v":0},{"$f":"[1]ODA!H246","v":0},{"$f":"[1]ODA!I246","v":0},{"$f":"[1]ODA!J246","v":0},{"$f":"[1]ODA!K246","v":0},{"$f":"[1]ODA!L246","v":0},{"$f":"[1]ODA!O246","v":0},{"$f":"[1]ODA!P246","v":0},{"$f":"[1]ODA!Q246","v":0},{"$f":"[1]ODA!R246","v":0},{"$f":"[1]ODA!S246","v":0},{"$f":"[1]ODA!T246","v":0},{"$f":"[1]ODA!U246","v":0},{"$f":"[1]ODA!V246","v":0},{"$f":"[1]ODA!W246","v":0},{"$f":"[1]ODA!X246","v":0},{"$f":"[1]ODA!Y246","v":0},{"$f":"[1]ODA!Z246","v":0},0,0]
[0,null,null,null,null,{"$f":"[1]ODA!F247","v":0},{"$f":"[1]ODA!G247","v":0},{"$f":"[1]ODA!H247","v":0},{"$f":"[1]ODA!I247","v":0},{"$f":"[1]ODA!J247","v":0},{"$f":"[1]ODA!K247","v":0},{"$f":"[1]ODA!L247","v":0},{"$f":"[1]ODA!O247","v":0},{"$f":"[1]ODA!P247","v":0},{"$f":"[1]ODA!Q247","v":0},{"$f":"[1]ODA!R247","v":0},{"$f":"[1]ODA!S247","v":0},{"$f":"[1]ODA!T247","v":0},{"$f":"[1]ODA!U247","v":0},{"$f":"[1]ODA!V247","v":0},{"$f":"[1]ODA!W247","v":0},{"$f":"[1]ODA!X247","v":0},{"$f":"[1]ODA!Y247","v":0},{"$f":"[1]ODA!Z247","v":0},0,0]
[0,null,null,null,null,{"$f":"[1]ODA!F248","v":0},{"$f":"[1]ODA!G248","v":0},{"$f":"[1]ODA!H248","v":0},{"$f":"[1]ODA!I248","v":0},{"$f":"[1]ODA!J248","v":0},{"$f":"[1]ODA!K248","v":0},{"$f":"[1]ODA!L248","v":0},{"$f":"[1]ODA!O248","v":0},{"$f":"[1]ODA!P248","v":0},{"$f":"[1]ODA!Q248","v":0},{"$f":"[1]ODA!R248","v":0},{"$f":"[1]ODA!S248","v":0},{"$f":"[1]ODA!T248","v":0},{"$f":"[1]ODA!U248","v":0},{"$f":"[1]ODA!V248","v":0},{"$f":"[1]ODA!W248","v":0},{"$f":"[1]ODA!X248","v":0},{"$f":"[1]ODA!Y248","v":0},{"$f":"[1]ODA!Z248","v":0},0,0]
[0,null,null,null,null,{"$f":"[1]ODA!F249","v":0},{"$f":"[1]ODA!G249","v":0},{"$f":"[1]ODA!H249","v":0},{"$f":"[1]ODA!I249","v":0},{"$f":"[1]ODA!J249","v":0},{"$f":"[1]ODA!K249","v":0},{"$f":"[1]ODA!L249","v":0},{"$f":"[1]ODA!O249","v":0},{"$f":"[1]ODA!P249","v":0},{"$f":"[1]ODA!Q249","v":0},{"$f":"[1]ODA!R249","v":0},{"$f":"[1]ODA!S249","v":0},{"$f":"[1]ODA!T249","v":0},{"$f":"[1]ODA!U249","v":0},{"$f":"[1]ODA!V249","v":0},{"$f":"[1]ODA!W249","v":0},{"$f":"[1]ODA!X249","v":0},{"$f":"[1]ODA!Y249","v":0},{"$f":"[1]ODA!Z249","v":0},0,0]
[0,null,null,null,null,{"$f":"[1]ODA!F250","v":0},{"$f":"[1]ODA!G250","v":0},{"$f":"[1]ODA!H250","v":0},{"$f":"[1]ODA!I250","v":0},{"$f":"[1]ODA!J250","v":0},{"$f":"[1]ODA!K250","v":0},{"$f":"[1]ODA!L250","v":0},{"$f":"[1]ODA!O250","v":0},{"$f":"[1]ODA!P250","v":0},{"$f":"[1]ODA!Q250","v":0},{"$f":"[1]ODA!R250","v":0},{"$f":"[1]ODA!S250","v":0},{"$f":"[1]ODA!T250","v":0},{"$f":"[1]ODA!U250","v":0},{"$f":"[1]ODA!V250","v":0},{"$f":"[1]ODA!W250","v":0},{"$f":"[1]ODA!X250","v":0},{"$f":"[1]ODA!Y250","v":0},{"$f":"[1]ODA!Z250","v":0},0,0]
[0,null,null,null,null,{"$f":"[1]ODA!F251","v":0},{"$f":"[1]ODA!G251","v":0},{"$f":"[1]ODA!H251","v":0},{"$f":"[1]ODA!I251","v":0},{"$f":"[1]ODA!J251","v":0},{"$f":"[1]ODA!K251","v":0},{"$f":"[1]ODA!L251","v":0},{"$f":"[1]ODA!O251","v":0},{"$f":"[1]ODA!P251","v":0},{"$f":"[1]ODA!Q251","v":0},{"$f":"[1]ODA!R251","v":0},{"$f":"[1]ODA!S251","v":0},{"$f":"[1]ODA!T251","v":0},{"$f":"[1]ODA!U251","v":0},{"$f":"[1]ODA!V251","v":0},{"$f":"[1]ODA!W251","v":0},{"$f":"[1]ODA!X251","v":0},{"$f":"[1]ODA!Y251","v":0},{"$f":"[1]ODA!Z251","v":0},0,0]
[0,null,null,null,null,{"$f":"[1]ODA!F252","v":0},{"$f":"[1]ODA!G252","v":0},{"$f":"[1]ODA!H252","v":0},{"$f":"[1]ODA!I252","v":0},{"$f":"[1]ODA!J252","v":0},{"$f":"[1]ODA!K252","v":0},{"$f":"[1]ODA!L252","v":0},{"$f":"[1]ODA!O252","v":0},{"$f":"[1]ODA!P252","v":0},{"$f":"[1]ODA!Q252","v":0},{"$f":"[1]ODA!R252","v":0},{"$f":"[1]ODA!S252","v":0},{"$f":"[1]ODA!T252","v":0},{"$f":"[1]ODA!U252","v":0},{"$f":"[1]ODA!V252","v":0},{"$f":"[1]ODA!W252","v":0},{"$f":"[1]ODA!X252","v":0},{"$f":"[1]ODA!Y252","v":0},{"$f":"[1]ODA!Z252","v":0},0,0]
[0,null,null,null,null,{"$f":"[1]ODA!F253","v":0},{"$f":"[1]ODA!G253","v":0},{"$f":"[1]ODA!H253","v":0},{"$f":"[1]ODA!I253","v":0},{"$f":"[1]ODA!J253","v":0},{"$f":"[1]ODA!K253","v":0},{"$f":"[1]ODA!L253","v":0},{"$f":"[1]ODA!O253","v":0},{"$f":"[1]ODA!P253","v":0},{"$f":"[1]ODA!Q253","v":0},{"$f":"[1]ODA!R253","v":0},{"$f":"[1]ODA!S253","v":0},{"$f":"[1]ODA!T253","v":0},{"$f":"[1]ODA!U253","v":0},{"$f":"[1]ODA!V253","v":0},{"$f":"[1]ODA!W253","v":0},{"$f":"[1]ODA!X253","v":0},{"$f":"[1]ODA!Y253","v":0},{"$f":"[1]ODA!Z253","v":0},0,0]
[0,null,null,null,null,{"$f":"[1]ODA!F254","v":0},{"$f":"[1]ODA!G254","v":0},{"$f":"[1]ODA!H254","v":0},{"$f":"[1]ODA!I254","v":0},{"$f":"[1]ODA!J254","v":0},{"$f":"[1]ODA!K254","v":0},{"$f":"[1]ODA!L254","v":0},{"$f":"[1]ODA!O254","v":0},{"$f":"[1]ODA!P254","v":0},{"$f":"[1]ODA!Q254","v":0},{"$f":"[1]ODA!R254","v":0},{"$f":"[1]ODA!S254","v":0},{"$f":"[1]ODA!T254","v":0},{"$f":"[1]ODA!U254","v":0},{"$f":"[1]ODA!V254","v":0},{"$f":"[1]ODA!W254","v":0},{"$f":"[1]ODA!X254","v":0},{"$f":"[1]ODA!Y254","v":0},{"$f":"[1]ODA!Z254","v":0},0,0]
[0,null,null,null,null,{"$f":"[1]ODA!F255","v":0},{"$f":"[1]ODA!G255","v":0},{"$f":"[1]ODA!H255","v":0},{"$f":"[1]ODA!I255","v":0},{"$f":"[1]ODA!J255","v":0},{"$f":"[1]ODA!K255","v":0},{"$f":"[1]ODA!L255","v":0},{"$f":"[1]ODA!O255","v":0},{"$f":"[1]ODA!P255","v":0},{"$f":"[1]ODA!Q255","v":0},{"$f":"[1]ODA!R255","v":0},{"$f":"[1]ODA!S255","v":0},{"$f":"[1]ODA!T255","v":0},{"$f":"[1]ODA!U255","v":0},{"$f":"[1]ODA!V255","v":0},{"$f":"[1]ODA!W255","v":0},{"$f":"[1]ODA!X255","v":0},{"$f":"[1]ODA!Y255","v":0},{"$f":"[1]ODA!Z255","v":0},0,0]
[0,null,null,null,null,{"$f":"[1]ODA!F256","v":0},{"$f":"[1]ODA!G256","v":0},{"$f":"[1]ODA!H256","v":0},{"$f":"[1]ODA!I256","v":0},{"$f":"[1]ODA!J256","v":0},{"$f":"[1]ODA!K256","v":0},{"$f":"[1]ODA!L256","v":0},{"$f":"[1]ODA!O256","v":0},{"$f":"[1]ODA!P256","v":0},{"$f":"[1]ODA!Q256","v":0},{"$f":"[1]ODA!R256","v":0},{"$f":"[1]ODA!S256","v":0},{"$f":"[1]ODA!T256","v":0},{"$f":"[1]ODA!U256","v":0},{"$f":"[1]ODA!V256","v":0},{"$f":"[1]ODA!W256","v":0},{"$f":"[1]ODA!X256","v":0},{"$f":"[1]ODA!Y256","v":0},{"$f":"[1]ODA!Z256","v":0},0,0]
[0,null,null,null,null,{"$f":"[1]ODA!F257","v":0},{"$f":"[1]ODA!G257","v":0},{"$f":"[1]ODA!H257","v":0},{"$f":"[1]ODA!I257","v":0},{"$f":"[1]ODA!J257","v":0},{"$f":"[1]ODA!K257","v":0},{"$f":"[1]ODA!L257","v":0},{"$f":"[1]ODA!O257","v":0},{"$f":"[1]ODA!P257","v":0},{"$f":"[1]ODA!Q257","v":0},{"$f":"[1]ODA!R257","v":0},{"$f":"[1]ODA!S257","v":0},{"$f":"[1]ODA!T257","v":0},{"$f":"[1]ODA!U257","v":0},{"$f":"[1]ODA!V257","v":0},{"$f":"[1]ODA!W257","v":0},{"$f":"[1]ODA!X257","v":0},{"$f":"[1]ODA!Y257","v":0},{"$f":"[1]ODA!Z257","v":0},0,0]
[0,null,null,null,null,{"$f":"[1]ODA!F258","v":0},{"$f":"[1]ODA!G258","v":0},{"$f":"[1]ODA!H258","v":0},{"$f":"[1]ODA!I258","v":0},{"$f":"[1]ODA!J258","v":0},{"$f":"[1]ODA!K258","v":0},{"$f":"[1]ODA!L258","v":0},{"$f":"[1]ODA!O258","v":0},{"$f":"[1]ODA!P258","v":0},{"$f":"[1]ODA!Q258","v":0},{"$f":"[1]ODA!R258","v":0},{"$f":"[1]ODA!S258","v":0},{"$f":"[1]ODA!T258","v":0},{"$f":"[1]ODA!U258","v":0},{"$f":"[1]ODA!V258","v":0},{"$f":"[1]ODA!W258","v":0},{"$f":"[1]ODA!X258","v":0},{"$f":"[1]ODA!Y258","v":0},{"$f":"[1]ODA!Z258","v":0},0,0]
[0,null,null,null,null,{"$f":"[1]ODA!F259","v":0},{"$f":"[1]ODA!G259","v":0},{"$f":"[1]ODA!H259","v":0},{"$f":"[1]ODA!I259","v":0},{"$f":"[1]ODA!J259","v":0},{"$f":"[1]ODA!K259","v":0},{"$f":"[1]ODA!L259","v":0},{"$f":"[1]ODA!O259","v":0},{"$f":"[1]ODA!P259","v":0},{"$f":"[1]ODA!Q259","v":0},{"$f":"[1]ODA!R259","v":0},{"$f":"[1]ODA!S259","v":0},{"$f":"[1]ODA!T259","v":0},{"$f":"[1]ODA!U259","v":0},{"$f":"[1]ODA!V259","v":0},{"$f":"[1]ODA!W259","v":0},{"$f":"[1]ODA!X259","v":0},{"$f":"[1]ODA!Y259","v":0},{"$f":"[1]ODA!Z259","v":0},0,0]
[0,null,null,null,null,{"$f":"[1]ODA!F260","v":0},{"$f":"[1]ODA!G260","v":0},{"$f":"[1]ODA!H260","v":0},{"$f":"[1]ODA!I260","v":0},{"$f":"[1]ODA!J260","v":0},{"$f":"[1]ODA!K260","v":0},{"$f":"[1]ODA!L260","v":0},{"$f":"[1]ODA!O260","v":0},{"$f":"[1]ODA!P260","v":0},{"$f":"[1]ODA!Q260","v":0},{"$f":"[1]ODA!R260","v":0},{"$f":"[1]ODA!S260","v":0},{"$f":"[1]ODA!T260","v":0},{"$f":"[1]ODA!U260","v":0},{"$f":"[1]ODA!V260","v":0},{"$f":"[1]ODA!W260","v":0},{"$f":"[1]ODA!X260","v":0},{"$f":"[1]ODA!Y260","v":0},{"$f":"[1]ODA!Z260","v":0},0,0]
[0,null,null,null,null,{"$f":"[1]ODA!F261","v":0},{"$f":"[1]ODA!G261","v":0},{"$f":"[1]ODA!H261","v":0},{"$f":"[1]ODA!I261","v":0},{"$f":"[1]ODA!J261","v":0},{"$f":"[1]ODA!K261","v":0},{"$f":"[1]ODA!L261","v":0},{"$f":"[1]ODA!O261","v":0},{"$f":"[1]ODA!P261","v":0},{"$f":"[1]ODA!Q261","v":0},{"$f":"[1]ODA!R261","v":0},{"$f":"[1]ODA!S261","v":0},{"$f":"[1]ODA!T261","v":0},{"$f":"[1]ODA!U261","v":0},{"$f":"[1]ODA!V261","v":0},{"$f":"[1]ODA!W261","v":0},{"$f":"[1]ODA!X261","v":0},{"$f":"[1]ODA!Y261","v":0},{"$f":"[1]ODA!Z261","v":0},0,0]
[0,null,null,null,null,{"$f":"[1]ODA!F262","v":0},{"$f":"[1]ODA!G262","v":0},{"$f":"[1]ODA!H262","v":0},{"$f":"[1]ODA!I262","v":0},{"$f":"[1]ODA!J262","v":0},{"$f":"[1]ODA!K262","v":0},{"$f":"[1]ODA!L262","v":0},{"$f":"[1]ODA!O262","v":0},{"$f":"[1]ODA!P262","v":0},{"$f":"[1]ODA!Q262","v":0},{"$f":"[1]ODA!R262","v":0},{"$f":"[1]ODA!S262","v":0},{"$f":"[1]ODA!T262","v":0},{"$f":"[1]ODA!U262","v":0},{"$f":"[1]ODA!V262","v":0},{"$f":"[1]ODA!W262","v":0},{"$f":"[1]ODA!X262","v":0},{"$f":"[1]ODA!Y262","v":0},{"$f":"[1]ODA!Z262","v":0},0,0]
[0,null,null,null,null,{"$f":"[1]ODA!F263","v":0},{"$f":"[1]ODA!G263","v":0},{"$f":"[1]ODA!H263","v":0},{"$f":"[1]ODA!I263","v":0},{"$f":"[1]ODA!J263","v":0},{"$f":"[1]ODA!K263","v":0},{"$f":"[1]ODA!L263","v":0},{"$f":"[1]ODA!O263","v":0},{"$f":"[1]ODA!P263","v":0},{"$f":"[1]ODA!Q263","v":0},{"$f":"[1]ODA!R263","v":0},{"$f":"[1]ODA!S263","v":0},{"$f":"[1]ODA!T263","v":0},{"$f":"[1]ODA!U263","v":0},{"$f":"[1]ODA!V263","v":0},{"$f":"[1]ODA!W263","v":0},{"$f":"[1]ODA!X263","v":0},{"$f":"[1]ODA!Y263","v":0},{"$f":"[1]ODA!Z263","v":0},0,0]
[0,null,null,null,null,{"$f":"[1]ODA!F264","v":0},{"$f":"[1]ODA!G264","v":0},{"$f":"[1]ODA!H264","v":0},{"$f":"[1]ODA!I264","v":0},{"$f":"[1]ODA!J264","v":0},{"$f":"[1]ODA!K264","v":0},{"$f":"[1]ODA!L264","v":0},{"$f":"[1]ODA!O264","v":0},{"$f":"[1]ODA!P264","v":0},{"$f":"[1]ODA!Q264","v":0},{"$f":"[1]ODA!R264","v":0},{"$f":"[1]ODA!S264","v":0},{"$f":"[1]ODA!T264","v":0},{"$f":"[1]ODA!U264","v":0},{"$f":"[1]ODA!V264","v":0},{"$f":"[1]ODA!W264","v":0},{"$f":"[1]ODA!X264","v":0},{"$f":"[1]ODA!Y264","v":0},{"$f":"[1]ODA!Z264","v":0},0,0]
[0,null,null,null,null,{"$f":"[1]ODA!F265","v":0},{"$f":"[1]ODA!G265","v":0},{"$f":"[1]ODA!H265","v":0},{"$f":"[1]ODA!I265","v":0},{"$f":"[1]ODA!J265","v":0},{"$f":"[1]ODA!K265","v":0},{"$f":"[1]ODA!L265","v":0},{"$f":"[1]ODA!O265","v":0},{"$f":"[1]ODA!P265","v":0},{"$f":"[1]ODA!Q265","v":0},{"$f":"[1]ODA!R265","v":0},{"$f":"[1]ODA!S265","v":0},{"$f":"[1]ODA!T265","v":0},{"$f":"[1]ODA!U265","v":0},{"$f":"[1]ODA!V265","v":0},{"$f":"[1]ODA!W265","v":0},{"$f":"[1]ODA!X265","v":0},{"$f":"[1]ODA!Y265","v":0},{"$f":"[1]ODA!Z265","v":0},0,0]
[0,null,null,null,null,{"$f":"[1]ODA!F266","v":0},{"$f":"[1]ODA!G266","v":0},{"$f":"[1]ODA!H266","v":0},{"$f":"[1]ODA!I266","v":0},{"$f":"[1]ODA!J266","v":0},{"$f":"[1]ODA!K266","v":0},{"$f":"[1]ODA!L266","v":0},{"$f":"[1]ODA!O266","v":0},{"$f":"[1]ODA!P266","v":0},{"$f":"[1]ODA!Q266","v":0},{"$f":"[1]ODA!R266","v":0},{"$f":"[1]ODA!S266","v":0},{"$f":"[1]ODA!T266","v":0},{"$f":"[1]ODA!U266","v":0},{"$f":"[1]ODA!V266","v":0},{"$f":"[1]ODA!W266","v":0},{"$f":"[1]ODA!X266","v":0},{"$f":"[1]ODA!Y266","v":0},{"$f":"[1]ODA!Z266","v":0},0,0]
[0,null,null,null,null,{"$f":"[1]ODA!F267","v":0},{"$f":"[1]ODA!G267","v":0},{"$f":"[1]ODA!H267","v":0},{"$f":"[1]ODA!I267","v":0},{"$f":"[1]ODA!J267","v":0},{"$f":"[1]ODA!K267","v":0},{"$f":"[1]ODA!L267","v":0},{"$f":"[1]ODA!O267","v":0},{"$f":"[1]ODA!P267","v":0},{"$f":"[1]ODA!Q267","v":0},{"$f":"[1]ODA!R267","v":0},{"$f":"[1]ODA!S267","v":0},{"$f":"[1]ODA!T267","v":0},{"$f":"[1]ODA!U267","v":0},{"$f":"[1]ODA!V267","v":0},{"$f":"[1]ODA!W267","v":0},{"$f":"[1]ODA!X267","v":0},{"$f":"[1]ODA!Y267","v":0},{"$f":"[1]ODA!Z267","v":0},0,0]
[{"$f":"IF(SUM(L268:Z268)>0,1,0)","v":0},null,null,null,null,{"$f":"[1]ODA!F268","v":0},{"$f":"[1]ODA!G268","v":0},{"$f":"[1]ODA!H268","v":0},{"$f":"[1]ODA!I268","v":0},{"$f":"[1]ODA!J268","v":0},{"$f":"[1]ODA!K268","v":0},{"$f":"[1]ODA!L268","v":0},{"$f":"[1]ODA!O268","v":0},{"$f":"[1]ODA!P268","v":0},{"$f":"[1]ODA!Q268","v":0},{"$f":"[1]ODA!R268","v":0},{"$f":"[1]ODA!S268","v":0},{"$f":"[1]ODA!T268","v":0},{"$f":"[1]ODA!U268","v":0},{"$f":"[1]ODA!V268","v":0},{"$f":"[1]ODA!W268","v":0},{"$f":"[1]ODA!X268","v":0},{"$f":"[1]ODA!Y268","v":0},{"$f":"[1]ODA!Z268","v":0},0,0]
[0,null,null,null,null,{"$f":"[1]ODA!F269","v":0},{"$f":"[1]ODA!G269","v":0},{"$f":"[1]ODA!H269","v":0},{"$f":"[1]ODA!I269","v":0},{"$f":"[1]ODA!J269","v":0},{"$f":"[1]ODA!K269","v":0},{"$f":"[1]ODA!L269","v":0},{"$f":"[1]ODA!O269","v":0},{"$f":"[1]ODA!P269","v":0},{"$f":"[1]ODA!Q269","v":0},{"$f":"[1]ODA!R269","v":0},{"$f":"[1]ODA!S269","v":0},{"$f":"[1]ODA!T269","v":0},{"$f":"[1]ODA!U269","v":0},{"$f":"[1]ODA!V269","v":0},{"$f":"[1]ODA!W269","v":0},{"$f":"[1]ODA!X269","v":0},{"$f":"[1]ODA!Y269","v":0},{"$f":"[1]ODA!Z269","v":0},0,0]
[0,null,null,null,null,{"$f":"[1]ODA!F270","v":0},{"$f":"[1]ODA!G270","v":0},{"$f":"[1]ODA!H270","v":0},{"$f":"[1]ODA!I270","v":0},{"$f":"[1]ODA!J270","v":0},{"$f":"[1]ODA!K270","v":0},{"$f":"[1]ODA!L270","v":0},{"$f":"[1]ODA!O270","v":0},{"$f":"[1]ODA!P270","v":0},{"$f":"[1]ODA!Q270","v":0},{"$f":"[1]ODA!R270","v":0},{"$f":"[1]ODA!S270","v":0},{"$f":"[1]ODA!T270","v":0},{"$f":"[1]ODA!U270","v":0},{"$f":"[1]ODA!V270","v":0},{"$f":"[1]ODA!W270","v":0},{"$f":"[1]ODA!X270","v":0},{"$f":"[1]ODA!Y270","v":0},{"$f":"[1]ODA!Z270","v":0},0,0]
[0,null,null,null,null,{"$f":"[1]ODA!F271","v":0},{"$f":"[1]ODA!G271","v":0},{"$f":"[1]ODA!H271","v":0},{"$f":"[1]ODA!I271","v":0},{"$f":"[1]ODA!J271","v":0},{"$f":"[1]ODA!K271","v":0},{"$f":"[1]ODA!L271","v":0},{"$f":"[1]ODA!O271","v":0},{"$f":"[1]ODA!P271","v":0},{"$f":"[1]ODA!Q271","v":0},{"$f":"[1]ODA!R271","v":0},{"$f":"[1]ODA!S271","v":0},{"$f":"[1]ODA!T271","v":0},{"$f":"[1]ODA!U271","v":0},{"$f":"[1]ODA!V271","v":0},{"$f":"[1]ODA!W271","v":0},{"$f":"[1]ODA!X271","v":0},{"$f":"[1]ODA!Y271","v":0},{"$f":"[1]ODA!Z271","v":0},0,0]
[0,null,null,null,null,{"$f":"[1]ODA!F272","v":0},{"$f":"[1]ODA!G272","v":0},{"$f":"[1]ODA!H272","v":0},{"$f":"[1]ODA!I272","v":0},{"$f":"[1]ODA!J272","v":0},{"$f":"[1]ODA!K272","v":0},{"$f":"[1]ODA!L272","v":0},{"$f":"[1]ODA!O272","v":0},{"$f":"[1]ODA!P272","v":0},{"$f":"[1]ODA!Q272","v":0},{"$f":"[1]ODA!R272","v":0},{"$f":"[1]ODA!S272","v":0},{"$f":"[1]ODA!T272","v":0},{"$f":"[1]ODA!U272","v":0},{"$f":"[1]ODA!V272","v":0},{"$f":"[1]ODA!W272","v":0},{"$f":"[1]ODA!X272","v":0},{"$f":"[1]ODA!Y272","v":0},{"$f":"[1]ODA!Z272","v":0},0,0]
[0,null,null,null,null,{"$f":"[1]ODA!F273","v":0},{"$f":"[1]ODA!G273","v":0},{"$f":"[1]ODA!H273","v":0},{"$f":"[1]ODA!I273","v":0},{"$f":"[1]ODA!J273","v":0},{"$f":"[1]ODA!K273","v":0},{"$f":"[1]ODA!L273","v":0},{"$f":"[1]ODA!O273","v":0},{"$f":"[1]ODA!P273","v":0},{"$f":"[1]ODA!Q273","v":0},{"$f":"[1]ODA!R273","v":0},{"$f":"[1]ODA!S273","v":0},{"$f":"[1]ODA!T273","v":0},{"$f":"[1]ODA!U273","v":0},{"$f":"[1]ODA!V273","v":0},{"$f":"[1]ODA!W273","v":0},{"$f":"[1]ODA!X273","v":0},{"$f":"[1]ODA!Y273","v":0},{"$f":"[1]ODA!Z273","v":0},0,0]
[0,null,null,null,null,{"$f":"[1]ODA!F274","v":0},{"$f":"[1]ODA!G274","v":0},{"$f":"[1]ODA!H274","v":0},{"$f":"[1]ODA!I274","v":0},{"$f":"[1]ODA!J274","v":0},{"$f":"[1]ODA!K274","v":0},{"$f":"[1]ODA!L274","v":0},{"$f":"[1]ODA!O274","v":0},{"$f":"[1]ODA!P274","v":0},{"$f":"[1]ODA!Q274","v":0},{"$f":"[1]ODA!R274","v":0},{"$f":"[1]ODA!S274","v":0},{"$f":"[1]ODA!T274","v":0},{"$f":"[1]ODA!U274","v":0},{"$f":"[1]ODA!V274","v":0},{"$f":"[1]ODA!W274","v":0},{"$f":"[1]ODA!X274","v":0},{"$f":"[1]ODA!Y274","v":0},{"$f":"[1]ODA!Z274","v":0},0,0]
[0,null,null,null,null,{"$f":"[1]ODA!F275","v":0},{"$f":"[1]ODA!G275","v":0},{"$f":"[1]ODA!H275","v":0},{"$f":"[1]ODA!I275","v":0},{"$f":"[1]ODA!J275","v":0},{"$f":"[1]ODA!K275","v":0},{"$f":"[1]ODA!L275","v":0},{"$f":"[1]ODA!O275","v":0},{"$f":"[1]ODA!P275","v":0},{"$f":"[1]ODA!Q275","v":0},{"$f":"[1]ODA!R275","v":0},{"$f":"[1]ODA!S275","v":0},{"$f":"[1]ODA!T275","v":0},{"$f":"[1]ODA!U275","v":0},{"$f":"[1]ODA!V275","v":0},{"$f":"[1]ODA!W275","v":0},{"$f":"[1]ODA!X275","v":0},{"$f":"[1]ODA!Y275","v":0},{"$f":"[1]ODA!Z275","v":0},0,0]
[0,null,null,null,null,{"$f":"[1]ODA!F276","v":0},{"$f":"[1]ODA!G276","v":0},{"$f":"[1]ODA!H276","v":0},{"$f":"[1]ODA!I276","v":0},{"$f":"[1]ODA!J276","v":0},{"$f":"[1]ODA!K276","v":0},{"$f":"[1]ODA!L276","v":0},{"$f":"[1]ODA!O276","v":0},{"$f":"[1]ODA!P276","v":0},{"$f":"[1]ODA!Q276","v":0},{"$f":"[1]ODA!R276","v":0},{"$f":"[1]ODA!S276","v":0},{"$f":"[1]ODA!T276","v":0},{"$f":"[1]ODA!U276","v":0},{"$f":"[1]ODA!V276","v":0},{"$f":"[1]ODA!W276","v":0},{"$f":"[1]ODA!X276","v":0},{"$f":"[1]ODA!Y276","v":0},{"$f":"[1]ODA!Z276","v":0},0,0]
[0,null,null,null,null,{"$f":"[1]ODA!F277","v":0},{"$f":"[1]ODA!G277","v":0},{"$f":"[1]ODA!H277","v":0},{"$f":"[1]ODA!I277","v":0},{"$f":"[1]ODA!J277","v":0},{"$f":"[1]ODA!K277","v":0},{"$f":"[1]ODA!L277","v":0},{"$f":"[1]ODA!O277","v":0},{"$f":"[1]ODA!P277","v":0},{"$f":"[1]ODA!Q277","v":0},{"$f":"[1]ODA!R277","v":0},{"$f":"[1]ODA!S277","v":0},{"$f":"[1]ODA!T277","v":0},{"$f":"[1]ODA!U277","v":0},{"$f":"[1]ODA!V277","v":0},{"$f":"[1]ODA!W277","v":0},{"$f":"[1]ODA!X277","v":0},{"$f":"[1]ODA!Y277","v":0},{"$f":"[1]ODA!Z277","v":0},0,0]
[0,null,null,null,null,{"$f":"[1]ODA!F278","v":0},{"$f":"[1]ODA!G278","v":0},{"$f":"[1]ODA!H278","v":0},{"$f":"[1]ODA!I278","v":0},{"$f":"[1]ODA!J278","v":0},{"$f":"[1]ODA!K278","v":0},{"$f":"[1]ODA!L278","v":0},{"$f":"[1]ODA!O278","v":0},{"$f":"[1]ODA!P278","v":0},{"$f":"[1]ODA!Q278","v":0},{"$f":"[1]ODA!R278","v":0},{"$f":"[1]ODA!S278","v":0},{"$f":"[1]ODA!T278","v":0},{"$f":"[1]ODA!U278","v":0},{"$f":"[1]ODA!V278","v":0},{"$f":"[1]ODA!W278","v":0},{"$f":"[1]ODA!X278","v":0},{"$f":"[1]ODA!Y278","v":0},{"$f":"[1]ODA!Z278","v":0},0,0]
[0,null,null,null,null,{"$f":"[1]ODA!F279","v":0},{"$f":"[1]ODA!G279","v":0},{"$f":"[1]ODA!H279","v":0},{"$f":"[1]ODA!I279","v":0},{"$f":"[1]ODA!J279","v":0},{"$f":"[1]ODA!K279","v":0},{"$f":"[1]ODA!L279","v":0},{"$f":"[1]ODA!O279","v":0},{"$f":"[1]ODA!P279","v":0},{"$f":"[1]ODA!Q279","v":0},{"$f":"[1]ODA!R279","v":0},{"$f":"[1]ODA!S279","v":0},{"$f":"[1]ODA!T279","v":0},{"$f":"[1]ODA!U279","v":0},{"$f":"[1]ODA!V279","v":0},{"$f":"[1]ODA!W279","v":0},{"$f":"[1]ODA!X279","v":0},{"$f":"[1]ODA!Y279","v":0},{"$f":"[1]ODA!Z279","v":0},0,0]
[0,null,null,null,null,{"$f":"[1]ODA!F280","v":0},{"$f":"[1]ODA!G280","v":0},{"$f":"[1]ODA!H280","v":0},{"$f":"[1]ODA!I280","v":0},{"$f":"[1]ODA!J280","v":0},{"$f":"[1]ODA!K280","v":0},{"$f":"[1]ODA!L280","v":0},{"$f":"[1]ODA!O280","v":0},{"$f":"[1]ODA!P280","v":0},{"$f":"[1]ODA!Q280","v":0},{"$f":"[1]ODA!R280","v":0},{"$f":"[1]ODA!S280","v":0},{"$f":"[1]ODA!T280","v":0},{"$f":"[1]ODA!U280","v":0},{"$f":"[1]ODA!V280","v":0},{"$f":"[1]ODA!W280","v":0},{"$f":"[1]ODA!X280","v":0},{"$f":"[1]ODA!Y280","v":0},{"$f":"[1]ODA!Z280","v":0},0,0]
[0,null,null,null,null,{"$f":"[1]ODA!F281","v":0},{"$f":"[1]ODA!G281","v":0},{"$f":"[1]ODA!H281","v":0},{"$f":"[1]ODA!I281","v":0},{"$f":"[1]ODA!J281","v":0},{"$f":"[1]ODA!K281","v":0},{"$f":"[1]ODA!L281","v":0},{"$f":"[1]ODA!O281","v":0},{"$f":"[1]ODA!P281","v":0},{"$f":"[1]ODA!Q281","v":0},{"$f":"[1]ODA!R281","v":0},{"$f":"[1]ODA!S281","v":0},{"$f":"[1]ODA!T281","v":0},{"$f":"[1]ODA!U281","v":0},{"$f":"[1]ODA!V281","v":0},{"$f":"[1]ODA!W281","v":0},{"$f":"[1]ODA!X281","v":0},{"$f":"[1]ODA!Y281","v":0},{"$f":"[1]ODA!Z281","v":0},0,0]
[0,null,null,null,null,{"$f":"[1]ODA!F282","v":0},{"$f":"[1]ODA!G282","v":0},{"$f":"[1]ODA!H282","v":0},{"$f":"[1]ODA!I282","v":0},{"$f":"[1]ODA!J282","v":0},{"$f":"[1]ODA!K282","v":0},{"$f":"[1]ODA!L282","v":0},{"$f":"[1]ODA!O282","v":0},{"$f":"[1]ODA!P282","v":0},{"$f":"[1]ODA!Q282","v":0},{"$f":"[1]ODA!R282","v":0},{"$f":"[1]ODA!S282","v":0},{"$f":"[1]ODA!T282","v":0},{"$f":"[1]ODA!U282","v":0},{"$f":"[1]ODA!V282","v":0},{"$f":"[1]ODA!W282","v":0},{"$f":"[1]ODA!X282","v":0},{"$f":"[1]ODA!Y282","v":0},{"$f":"[1]ODA!Z282","v":0},0,0]
[0,null,null,null,null,{"$f":"[1]ODA!F283","v":0},{"$f":"[1]ODA!G283","v":0},{"$f":"[1]ODA!H283","v":0},{"$f":"[1]ODA!I283","v":0},{"$f":"[1]ODA!J283","v":0},{"$f":"[1]ODA!K283","v":0},{"$f":"[1]ODA!L283","v":0},{"$f":"[1]ODA!O283","v":0},{"$f":"[1]ODA!P283","v":0},{"$f":"[1]ODA!Q283","v":0},{"$f":"[1]ODA!R283","v":0},{"$f":"[1]ODA!S283","v":0},{"$f":"[1]ODA!T283","v":0},{"$f":"[1]ODA!U283","v":0},{"$f":"[1]ODA!V283","v":0},{"$f":"[1]ODA!W283","v":0},{"$f":"[1]ODA!X283","v":0},{"$f":"[1]ODA!Y283","v":0},{"$f":"[1]ODA!Z283","v":0},0,0]
[0,null,null,null,null,{"$f":"[1]ODA!F284","v":0},{"$f":"[1]ODA!G284","v":0},{"$f":"[1]ODA!H284","v":0},{"$f":"[1]ODA!I284","v":0},{"$f":"[1]ODA!J284","v":0},{"$f":"[1]ODA!K284","v":0},{"$f":"[1]ODA!L284","v":0},{"$f":"[1]ODA!O284","v":0},{"$f":"[1]ODA!P284","v":0},{"$f":"[1]ODA!Q284","v":0},{"$f":"[1]ODA!R284","v":0},{"$f":"[1]ODA!S284","v":0},{"$f":"[1]ODA!T284","v":0},{"$f":"[1]ODA!U284","v":0},{"$f":"[1]ODA!V284","v":0},{"$f":"[1]ODA!W284","v":0},{"$f":"[1]ODA!X284","v":0},{"$f":"[1]ODA!Y284","v":0},{"$f":"[1]ODA!Z284","v":0},0,0]
[0,null,null,null,null,{"$f":"[1]ODA!F285","v":0},{"$f":"[1]ODA!G285","v":0},{"$f":"[1]ODA!H285","v":0},{"$f":"[1]ODA!I285","v":0},{"$f":"[1]ODA!J285","v":0},{"$f":"[1]ODA!K285","v":0},{"$f":"[1]ODA!L285","v":0},{"$f":"[1]ODA!O285","v":0},{"$f":"[1]ODA!P285","v":0},{"$f":"[1]ODA!Q285","v":0},{"$f":"[1]ODA!R285","v":0},{"$f":"[1]ODA!S285","v":0},{"$f":"[1]ODA!T285","v":0},{"$f":"[1]ODA!U285","v":0},{"$f":"[1]ODA!V285","v":0},{"$f":"[1]ODA!W285","v":0},{"$f":"[1]ODA!X285","v":0},{"$f":"[1]ODA!Y285","v":0},{"$f":"[1]ODA!Z285","v":0},0,0]
[0,null,null,null,null,{"$f":"[1]ODA!F286","v":0},{"$f":"[1]ODA!G286","v":0},{"$f":"[1]ODA!H286","v":0},{"$f":"[1]ODA!I286","v":0},{"$f":"[1]ODA!J286","v":0},{"$f":"[1]ODA!K286","v":0},{"$f":"[1]ODA!L286","v":0},{"$f":"[1]ODA!O286","v":0},{"$f":"[1]ODA!P286","v":0},{"$f":"[1]ODA!Q286","v":0},{"$f":"[1]ODA!R286","v":0},{"$f":"[1]ODA!S286","v":0},{"$f":"[1]ODA!T286","v":0},{"$f":"[1]ODA!U286","v":0},{"$f":"[1]ODA!V286","v":0},{"$f":"[1]ODA!W286","v":0},{"$f":"[1]ODA!X286","v":0},{"$f":"[1]ODA!Y286","v":0},{"$f":"[1]ODA!Z286","v":0},0,0]
[0,null,null,null,null,{"$f":"[1]ODA!F287","v":0},{"$f":"[1]ODA!G287","v":0},{"$f":"[1]ODA!H287","v":0},{"$f":"[1]ODA!I287","v":0},{"$f":"[1]ODA!J287","v":0},{"$f":"[1]ODA!K287","v":0},{"$f":"[1]ODA!L287","v":0},{"$f":"[1]ODA!O287","v":0},{"$f":"[1]ODA!P287","v":0},{"$f":"[1]ODA!Q287","v":0},{"$f":"[1]ODA!R287","v":0},{"$f":"[1]ODA!S287","v":0},{"$f":"[1]ODA!T287","v":0},{"$f":"[1]ODA!U287","v":0},{"$f":"[1]ODA!V287","v":0},{"$f":"[1]ODA!W287","v":0},{"$f":"[1]ODA!X287","v":0},{"$f":"[1]ODA!Y287","v":0},{"$f":"[1]ODA!Z287","v":0},0,0]
[0,null,null,null,null,{"$f":"[1]ODA!F288","v":0},{"$f":"[1]ODA!G288","v":0},{"$f":"[1]ODA!H288","v":0},{"$f":"[1]ODA!I288","v":0},{"$f":"[1]ODA!J288","v":0},{"$f":"[1]ODA!K288","v":0},{"$f":"[1]ODA!L288","v":0},{"$f":"[1]ODA!O288","v":0},{"$f":"[1]ODA!P288","v":0},{"$f":"[1]ODA!Q288","v":0},{"$f":"[1]ODA!R288","v":0},{"$f":"[1]ODA!S288","v":0},{"$f":"[1]ODA!T288","v":0},{"$f":"[1]ODA!U288","v":0},{"$f":"[1]ODA!V288","v":0},{"$f":"[1]ODA!W288","v":0},{"$f":"[1]ODA!X288","v":0},{"$f":"[1]ODA!Y288","v":0},{"$f":"[1]ODA!Z288","v":0},0,0]
[0,null,null,null,null,{"$f":"[1]ODA!F289","v":0},{"$f":"[1]ODA!G289","v":0},{"$f":"[1]ODA!H289","v":0},{"$f":"[1]ODA!I289","v":0},{"$f":"[1]ODA!J289","v":0},{"$f":"[1]ODA!K289","v":0},{"$f":"[1]ODA!L289","v":0},{"$f":"[1]ODA!O289","v":0},{"$f":"[1]ODA!P289","v":0},{"$f":"[1]ODA!Q289","v":0},{"$f":"[1]ODA!R289","v":0},{"$f":"[1]ODA!S289","v":0},{"$f":"[1]ODA!T289","v":0},{"$f":"[1]ODA!U289","v":0},{"$f":"[1]ODA!V289","v":0},{"$f":"[1]ODA!W289","v":0},{"$f":"[1]ODA!X289","v":0},{"$f":"[1]ODA!Y289","v":0},{"$f":"[1]ODA!Z289","v":0},0,0]
[0,null,null,null,null,{"$f":"[1]ODA!F290","v":0},{"$f":"[1]ODA!G290","v":0},{"$f":"[1]ODA!H290","v":0},{"$f":"[1]ODA!I290","v":0},{"$f":"[1]ODA!J290","v":0},{"$f":"[1]ODA!K290","v":0},{"$f":"[1]ODA!L290","v":0},{"$f":"[1]ODA!O290","v":0},{"$f":"[1]ODA!P290","v":0},{"$f":"[1]ODA!Q290","v":0},{"$f":"[1]ODA!R290","v":0},{"$f":"[1]ODA!S290","v":0},{"$f":"[1]ODA!T290","v":0},{"$f":"[1]ODA!U290","v":0},{"$f":"[1]ODA!V290","v":0},{"$f":"[1]ODA!W290","v":0},{"$f":"[1]ODA!X290","v":0},{"$f":"[1]ODA!Y290","v":0},{"$f":"[1]ODA!Z290","v":0},0,0]
[0,null,null,null,null,{"$f":"[1]ODA!F291","v":0},{"$f":"[1]ODA!G291","v":0},{"$f":"[1]ODA!H291","v":0},{"$f":"[1]ODA!I291","v":0},{"$f":"[1]ODA!J291","v":0},{"$f":"[1]ODA!K291","v":0},{"$f":"[1]ODA!L291","v":0},{"$f":"[1]ODA!O291","v":0},{"$f":"[1]ODA!P291","v":0},{"$f":"[1]ODA!Q291","v":0},{"$f":"[1]ODA!R291","v":0},{"$f":"[1]ODA!S291","v":0},{"$f":"[1]ODA!T291","v":0},{"$f":"[1]ODA!U291","v":0},{"$f":"[1]ODA!V291","v":0},{"$f":"[1]ODA!W291","v":0},{"$f":"[1]ODA!X291","v":0},{"$f":"[1]ODA!Y291","v":0},{"$f":"[1]ODA!Z291","v":0},0,0]
[0,null,null,null,null,{"$f":"[1]ODA!F292","v":0},{"$f":"[1]ODA!G292","v":0},{"$f":"[1]ODA!H292","v":0},{"$f":"[1]ODA!I292","v":0},{"$f":"[1]ODA!J292","v":0},{"$f":"[1]ODA!K292","v":0},{"$f":"[1]ODA!L292","v":0},{"$f":"[1]ODA!O292","v":0},{"$f":"[1]ODA!P292","v":0},{"$f":"[1]ODA!Q292","v":0},{"$f":"[1]ODA!R292","v":0},{"$f":"[1]ODA!S292","v":0},{"$f":"[1]ODA!T292","v":0},{"$f":"[1]ODA!U292","v":0},{"$f":"[1]ODA!V292","v":0},{"$f":"[1]ODA!W292","v":0},{"$f":"[1]ODA!X292","v":0},{"$f":"[1]ODA!Y292","v":0},{"$f":"[1]ODA!Z292","v":0},0,0]
[0,null,null,null,null,{"$f":"[1]ODA!F293","v":0},{"$f":"[1]ODA!G293","v":0},{"$f":"[1]ODA!H293","v":0},{"$f":"[1]ODA!I293","v":0},{"$f":"[1]ODA!J293","v":0},{"$f":"[1]ODA!K293","v":0},{"$f":"[1]ODA!L293","v":0},{"$f":"[1]ODA!O293","v":0},{"$f":"[1]ODA!P293","v":0},{"$f":"[1]ODA!Q293","v":0},{"$f":"[1]ODA!R293","v":0},{"$f":"[1]ODA!S293","v":0},{"$f":"[1]ODA!T293","v":0},{"$f":"[1]ODA!U293","v":0},{"$f":"[1]ODA!V293","v":0},{"$f":"[1]ODA!W293","v":0},{"$f":"[1]ODA!X293","v":0},{"$f":"[1]ODA!Y293","v":0},{"$f":"[1]ODA!Z293","v":0},0,0]
[0,null,null,null,null,{"$f":"[1]ODA!F294","v":0},{"$f":"[1]ODA!G294","v":0},{"$f":"[1]ODA!H294","v":0},{"$f":"[1]ODA!I294","v":0},{"$f":"[1]ODA!J294","v":0},{"$f":"[1]ODA!K294","v":0},{"$f":"[1]ODA!L294","v":0},{"$f":"[1]ODA!O294","v":0},{"$f":"[1]ODA!P294","v":0},{"$f":"[1]ODA!Q294","v":0},{"$f":"[1]ODA!R294","v":0},{"$f":"[1]ODA!S294","v":0},{"$f":"[1]ODA!T294","v":0},{"$f":"[1]ODA!U294","v":0},{"$f":"[1]ODA!V294","v":0},{"$f":"[1]ODA!W294","v":0},{"$f":"[1]ODA!X294","v":0},{"$f":"[1]ODA!Y294","v":0},{"$f":"[1]ODA!Z294","v":0},0,0]
[0,null,null,null,null,{"$f":"[1]ODA!F295","v":0},{"$f":"[1]ODA!G295","v":0},{"$f":"[1]ODA!H295","v":0},{"$f":"[1]ODA!I295","v":0},{"$f":"[1]ODA!J295","v":0},{"$f":"[1]ODA!K295","v":0},{"$f":"[1]ODA!L295","v":0},{"$f":"[1]ODA!O295","v":0},{"$f":"[1]ODA!P295","v":0},{"$f":"[1]ODA!Q295","v":0},{"$f":"[1]ODA!R295","v":0},{"$f":"[1]ODA!S295","v":0},{"$f":"[1]ODA!T295","v":0},{"$f":"[1]ODA!U295","v":0},{"$f":"[1]ODA!V295","v":0},{"$f":"[1]ODA!W295","v":0},{"$f":"[1]ODA!X295","v":0},{"$f":"[1]ODA!Y295","v":0},{"$f":"[1]ODA!Z295","v":0},0,0]
[0,null,null,null,null,{"$f":"[1]ODA!F296","v":0},{"$f":"[1]ODA!G296","v":0},{"$f":"[1]ODA!H296","v":0},{"$f":"[1]ODA!I296","v":0},{"$f":"[1]ODA!J296","v":0},{"$f":"[1]ODA!K296","v":0},{"$f":"[1]ODA!L296","v":0},{"$f":"[1]ODA!O296","v":0},{"$f":"[1]ODA!P296","v":0},{"$f":"[1]ODA!Q296","v":0},{"$f":"[1]ODA!R296","v":0},{"$f":"[1]ODA!S296","v":0},{"$f":"[1]ODA!T296","v":0},{"$f":"[1]ODA!U296","v":0},{"$f":"[1]ODA!V296","v":0},{"$f":"[1]ODA!W296","v":0},{"$f":"[1]ODA!X296","v":0},{"$f":"[1]ODA!Y296","v":0},{"$f":"[1]ODA!Z296","v":0},0,0]
[0,null,null,null,null,{"$f":"[1]ODA!F297","v":0},{"$f":"[1]ODA!G297","v":0},{"$f":"[1]ODA!H297","v":0},{"$f":"[1]ODA!I297","v":0},{"$f":"[1]ODA!J297","v":0},{"$f":"[1]ODA!K297","v":0},{"$f":"[1]ODA!L297","v":0},{"$f":"[1]ODA!O297","v":0},{"$f":"[1]ODA!P297","v":0},{"$f":"[1]ODA!Q297","v":0},{"$f":"[1]ODA!R297","v":0},{"$f":"[1]ODA!S297","v":0},{"$f":"[1]ODA!T297","v":0},{"$f":"[1]ODA!U297","v":0},{"$f":"[1]ODA!V297","v":0},{"$f":"[1]ODA!W297","v":0},{"$f":"[1]ODA!X297","v":0},{"$f":"[1]ODA!Y297","v":0},{"$f":"[1]ODA!Z297","v":0},0,0]
[0,null,null,null,null,{"$f":"[1]ODA!F298","v":0},{"$f":"[1]ODA!G298","v":0},{"$f":"[1]ODA!H298","v":0},{"$f":"[1]ODA!I298","v":0},{"$f":"[1]ODA!J298","v":0},{"$f":"[1]ODA!K298","v":0},{"$f":"[1]ODA!L298","v":0},{"$f":"[1]ODA!O298","v":0},{"$f":"[1]ODA!P298","v":0},{"$f":"[1]ODA!Q298","v":0},{"$f":"[1]ODA!R298","v":0},{"$f":"[1]ODA!S298","v":0},{"$f":"[1]ODA!T298","v":0},{"$f":"[1]ODA!U298","v":0},{"$f":"[1]ODA!V298","v":0},{"$f":"[1]ODA!W298","v":0},{"$f":"[1]ODA!X298","v":0},{"$f":"[1]ODA!Y298","v":0},{"$f":"[1]ODA!Z298","v":0},0,0]
[0,null,null,null,null,{"$f":"[1]ODA!F299","v":0},{"$f":"[1]ODA!G299","v":0},{"$f":"[1]ODA!H299","v":0},{"$f":"[1]ODA!I299","v":0},{"$f":"[1]ODA!J299","v":0},{"$f":"[1]ODA!K299","v":0},{"$f":"[1]ODA!L299","v":0},{"$f":"[1]ODA!O299","v":0},{"$f":"[1]ODA!P299","v":0},{"$f":"[1]ODA!Q299","v":0},{"$f":"[1]ODA!R299","v":0},{"$f":"[1]ODA!S299","v":0},{"$f":"[1]ODA!T299","v":0},{"$f":"[1]ODA!U299","v":0},{"$f":"[1]ODA!V299","v":0},{"$f":"[1]ODA!W299","v":0},{"$f":"[1]ODA!X299","v":0},{"$f":"[1]ODA!Y299","v":0},{"$f":"[1]ODA!Z299","v":0},0,0]
[0,null,null,null,null,{"$f":"[1]ODA!F300","v":0},{"$f":"[1]ODA!G300","v":0},{"$f":"[1]ODA!H300","v":0},{"$f":"[1]ODA!I300","v":0},{"$f":"[1]ODA!J300","v":0},{"$f":"[1]ODA!K300","v":0},{"$f":"[1]ODA!L300","v":0},{"$f":"[1]ODA!O300","v":0},{"$f":"[1]ODA!P300","v":0},{"$f":"[1]ODA!Q300","v":0},{"$f":"[1]ODA!R300","v":0},{"$f":"[1]ODA!S300","v":0},{"$f":"[1]ODA!T300","v":0},{"$f":"[1]ODA!U300","v":0},{"$f":"[1]ODA!V300","v":0},{"$f":"[1]ODA!W300","v":0},{"$f":"[1]ODA!X300","v":0},{"$f":"[1]ODA!Y300","v":0},{"$f":"[1]ODA!Z300","v":0},0,0]
[0,null,null,null,null,{"$f":"[1]ODA!F301","v":0},{"$f":"[1]ODA!G301","v":0},{"$f":"[1]ODA!H301","v":0},{"$f":"[1]ODA!I301","v":0},{"$f":"[1]ODA!J301","v":0},{"$f":"[1]ODA!K301","v":0},{"$f":"[1]ODA!L301","v":0},{"$f":"[1]ODA!O301","v":0},{"$f":"[1]ODA!P301","v":0},{"$f":"[1]ODA!Q301","v":0},{"$f":"[1]ODA!R301","v":0},{"$f":"[1]ODA!S301","v":0},{"$f":"[1]ODA!T301","v":0},{"$f":"[1]ODA!U301","v":0},{"$f":"[1]ODA!V301","v":0},{"$f":"[1]ODA!W301","v":0},{"$f":"[1]ODA!X301","v":0},{"$f":"[1]ODA!Y301","v":0},{"$f":"[1]ODA!Z301","v":0},0,0]
[0,null,null,null,null,{"$f":"[1]ODA!F302","v":0},{"$f":"[1]ODA!G302","v":0},{"$f":"[1]ODA!H302","v":0},{"$f":"[1]ODA!I302","v":0},{"$f":"[1]ODA!J302","v":0},{"$f":"[1]ODA!K302","v":0},{"$f":"[1]ODA!L302","v":0},{"$f":"[1]ODA!O302","v":0},{"$f":"[1]ODA!P302","v":0},{"$f":"[1]ODA!Q302","v":0},{"$f":"[1]ODA!R302","v":0},{"$f":"[1]ODA!S302","v":0},{"$f":"[1]ODA!T302","v":0},{"$f":"[1]ODA!U302","v":0},{"$f":"[1]ODA!V302","v":0},{"$f":"[1]ODA!W302","v":0},{"$f":"[1]ODA!X302","v":0},{"$f":"[1]ODA!Y302","v":0},{"$f":"[1]ODA!Z302","v":0},0,0]
[0,null,null,null,null,{"$f":"[1]ODA!F303","v":0},{"$f":"[1]ODA!G303","v":0},{"$f":"[1]ODA!H303","v":0},{"$f":"[1]ODA!I303","v":0},{"$f":"[1]ODA!J303","v":0},{"$f":"[1]ODA!K303","v":0},{"$f":"[1]ODA!L303","v":0},{"$f":"[1]ODA!O303","v":0},{"$f":"[1]ODA!P303","v":0},{"$f":"[1]ODA!Q303","v":0},{"$f":"[1]ODA!R303","v":0},{"$f":"[1]ODA!S303","v":0},{"$f":"[1]ODA!T303","v":0},{"$f":"[1]ODA!U303","v":0},{"$f":"[1]ODA!V303","v":0},{"$f":"[1]ODA!W303","v":0},{"$f":"[1]ODA!X303","v":0},{"$f":"[1]ODA!Y303","v":0},{"$f":"[1]ODA!Z303","v":0},0,0]
[0,null,null,null,null,{"$f":"[1]ODA!F304","v":0},{"$f":"[1]ODA!G304","v":0},{"$f":"[1]ODA!H304","v":0},{"$f":"[1]ODA!I304","v":0},{"$f":"[1]ODA!J304","v":0},{"$f":"[1]ODA!K304","v":0},{"$f":"[1]ODA!L304","v":0},{"$f":"[1]ODA!O304","v":0},{"$f":"[1]ODA!P304","v":0},{"$f":"[1]ODA!Q304","v":0},{"$f":"[1]ODA!R304","v":0},{"$f":"[1]ODA!S304","v":0},{"$f":"[1]ODA!T304","v":0},{"$f":"[1]ODA!U304","v":0},{"$f":"[1]ODA!V304","v":0},{"$f":"[1]ODA!W304","v":0},{"$f":"[1]ODA!X304","v":0},{"$f":"[1]ODA!Y304","v":0},{"$f":"[1]ODA!Z304","v":0},0,0]
[0,null,null,null,null,{"$f":"[1]ODA!F305","v":0},{"$f":"[1]ODA!G305","v":0},{"$f":"[1]ODA!H305","v":0},{"$f":"[1]ODA!I305","v":0},{"$f":"[1]ODA!J305","v":0},{"$f":"[1]ODA!K305","v":0},{"$f":"[1]ODA!L305","v":0},{"$f":"[1]ODA!O305","v":0},{"$f":"[1]ODA!P305","v":0},{"$f":"[1]ODA!Q305","v":0},{"$f":"[1]ODA!R305","v":0},{"$f":"[1]ODA!S305","v":0},{"$f":"[1]ODA!T305","v":0},{"$f":"[1]ODA!U305","v":0},{"$f":"[1]ODA!V305","v":0},{"$f":"[1]ODA!W305","v":0},{"$f":"[1]ODA!X305","v":0},{"$f":"[1]ODA!Y305","v":0},{"$f":"[1]ODA!Z305","v":0},0,0]
[0,null,null,null,null,{"$f":"[1]ODA!F306","v":0},{"$f":"[1]ODA!G306","v":0},{"$f":"[1]ODA!H306","v":0},{"$f":"[1]ODA!I306","v":0},{"$f":"[1]ODA!J306","v":0},{"$f":"[1]ODA!K306","v":0},{"$f":"[1]ODA!L306","v":0},{"$f":"[1]ODA!O306","v":0},{"$f":"[1]ODA!P306","v":0},{"$f":"[1]ODA!Q306","v":0},{"$f":"[1]ODA!R306","v":0},{"$f":"[1]ODA!S306","v":0},{"$f":"[1]ODA!T306","v":0},{"$f":"[1]ODA!U306","v":0},{"$f":"[1]ODA!V306","v":0},{"$f":"[1]ODA!W306","v":0},{"$f":"[1]ODA!X306","v":0},{"$f":"[1]ODA!Y306","v":0},{"$f":"[1]ODA!Z306","v":0},0,0]
[0,null,null,null,null,{"$f":"[1]ODA!F307","v":0},{"$f":"[1]ODA!G307","v":0},{"$f":"[1]ODA!H307","v":0},{"$f":"[1]ODA!I307","v":0},{"$f":"[1]ODA!J307","v":0},{"$f":"[1]ODA!K307","v":0},{"$f":"[1]ODA!L307","v":0},{"$f":"[1]ODA!O307","v":0},{"$f":"[1]ODA!P307","v":0},{"$f":"[1]ODA!Q307","v":0},{"$f":"[1]ODA!R307","v":0},{"$f":"[1]ODA!S307","v":0},{"$f":"[1]ODA!T307","v":0},{"$f":"[1]ODA!U307","v":0},{"$f":"[1]ODA!V307","v":0},{"$f":"[1]ODA!W307","v":0},{"$f":"[1]ODA!X307","v":0},{"$f":"[1]ODA!Y307","v":0},{"$f":"[1]ODA!Z307","v":0},0,0]
[0,null,null,null,null,{"$f":"[1]ODA!F308","v":0},{"$f":"[1]ODA!G308","v":0},{"$f":"[1]ODA!H308","v":0},{"$f":"[1]ODA!I308","v":0},{"$f":"[1]ODA!J308","v":0},{"$f":"[1]ODA!K308","v":0},{"$f":"[1]ODA!L308","v":0},{"$f":"[1]ODA!O308","v":0},{"$f":"[1]ODA!P308","v":0},{"$f":"[1]ODA!Q308","v":0},{"$f":"[1]ODA!R308","v":0},{"$f":"[1]ODA!S308","v":0},{"$f":"[1]ODA!T308","v":0},{"$f":"[1]ODA!U308","v":0},{"$f":"[1]ODA!V308","v":0},{"$f":"[1]ODA!W308","v":0},{"$f":"[1]ODA!X308","v":0},{"$f":"[1]ODA!Y308","v":0},{"$f":"[1]ODA!Z308","v":0},0,0]
[0,null,null,null,null,{"$f":"[1]ODA!F309","v":0},{"$f":"[1]ODA!G309","v":0},{"$f":"[1]ODA!H309","v":0},{"$f":"[1]ODA!I309","v":0},{"$f":"[1]ODA!J309","v":0},{"$f":"[1]ODA!K309","v":0},{"$f":"[1]ODA!L309","v":0},{"$f":"[1]ODA!O309","v":0},{"$f":"[1]ODA!P309","v":0},{"$f":"[1]ODA!Q309","v":0},{"$f":"[1]ODA!R309","v":0},{"$f":"[1]ODA!S309","v":0},{"$f":"[1]ODA!T309","v":0},{"$f":"[1]ODA!U309","v":0},{"$f":"[1]ODA!V309","v":0},{"$f":"[1]ODA!W309","v":0},{"$f":"[1]ODA!X309","v":0},{"$f":"[1]ODA!Y309","v":0},{"$f":"[1]ODA!Z309","v":0},0,0]
[0,null,null,null,null,{"$f":"[1]ODA!F310","v":0},{"$f":"[1]ODA!G310","v":0},{"$f":"[1]ODA!H310","v":0},{"$f":"[1]ODA!I310","v":0},{"$f":"[1]ODA!J310","v":0},{"$f":"[1]ODA!K310","v":0},{"$f":"[1]ODA!L310","v":0},{"$f":"[1]ODA!O310","v":0},{"$f":"[1]ODA!P310","v":0},{"$f":"[1]ODA!Q310","v":0},{"$f":"[1]ODA!R310","v":0},{"$f":"[1]ODA!S310","v":0},{"$f":"[1]ODA!T310","v":0},{"$f":"[1]ODA!U310","v":0},{"$f":"[1]ODA!V310","v":0},{"$f":"[1]ODA!W310","v":0},{"$f":"[1]ODA!X310","v":0},{"$f":"[1]ODA!Y310","v":0},{"$f":"[1]ODA!Z310","v":0},0,0]
[0,null,null,null,null,{"$f":"[1]ODA!F311","v":0},{"$f":"[1]ODA!G311","v":0},{"$f":"[1]ODA!H311","v":0},{"$f":"[1]ODA!I311","v":0},{"$f":"[1]ODA!J311","v":0},{"$f":"[1]ODA!K311","v":0},{"$f":"[1]ODA!L311","v":0},{"$f":"[1]ODA!O311","v":0},{"$f":"[1]ODA!P311","v":0},{"$f":"[1]ODA!Q311","v":0},{"$f":"[1]ODA!R311","v":0},{"$f":"[1]ODA!S311","v":0},{"$f":"[1]ODA!T311","v":0},{"$f":"[1]ODA!U311","v":0},{"$f":"[1]ODA!V311","v":0},{"$f":"[1]ODA!W311","v":0},{"$f":"[1]ODA!X311","v":0},{"$f":"[1]ODA!Y311","v":0},{"$f":"[1]ODA!Z311","v":0},0,0]
[0,null,null,null,null,{"$f":"[1]ODA!F312","v":0},{"$f":"[1]ODA!G312","v":0},{"$f":"[1]ODA!H312","v":0},{"$f":"[1]ODA!I312","v":0},{"$f":"[1]ODA!J312","v":0},{"$f":"[1]ODA!K312","v":0},{"$f":"[1]ODA!L312","v":0},{"$f":"[1]ODA!O312","v":0},{"$f":"[1]ODA!P312","v":0},{"$f":"[1]ODA!Q312","v":0},{"$f":"[1]ODA!R312","v":0},{"$f":"[1]ODA!S312","v":0},{"$f":"[1]ODA!T312","v":0},{"$f":"[1]ODA!U312","v":0},{"$f":"[1]ODA!V312","v":0},{"$f":"[1]ODA!W312","v":0},{"$f":"[1]ODA!X312","v":0},{"$f":"[1]ODA!Y312","v":0},{"$f":"[1]ODA!Z312","v":0},0,0]
[0,null,null,null,null,{"$f":"[1]ODA!F313","v":0},{"$f":"[1]ODA!G313","v":0},{"$f":"[1]ODA!H313","v":0},{"$f":"[1]ODA!I313","v":0},{"$f":"[1]ODA!J313","v":0},{"$f":"[1]ODA!K313","v":0},{"$f":"[1]ODA!L313","v":0},{"$f":"[1]ODA!O313","v":0},{"$f":"[1]ODA!P313","v":0},{"$f":"[1]ODA!Q313","v":0},{"$f":"[1]ODA!R313","v":0},{"$f":"[1]ODA!S313","v":0},{"$f":"[1]ODA!T313","v":0},{"$f":"[1]ODA!U313","v":0},{"$f":"[1]ODA!V313","v":0},{"$f":"[1]ODA!W313","v":0},{"$f":"[1]ODA!X313","v":0},{"$f":"[1]ODA!Y313","v":0},{"$f":"[1]ODA!Z313","v":0},0,0]
[0,null,null,null,null,{"$f":"[1]ODA!F314","v":0},{"$f":"[1]ODA!G314","v":0},{"$f":"[1]ODA!H314","v":0},{"$f":"[1]ODA!I314","v":0},{"$f":"[1]ODA!J314","v":0},{"$f":"[1]ODA!K314","v":0},{"$f":"[1]ODA!L314","v":0},{"$f":"[1]ODA!O314","v":0},{"$f":"[1]ODA!P314","v":0},{"$f":"[1]ODA!Q314","v":0},{"$f":"[1]ODA!R314","v":0},{"$f":"[1]ODA!S314","v":0},{"$f":"[1]ODA!T314","v":0},{"$f":"[1]ODA!U314","v":0},{"$f":"[1]ODA!V314","v":0},{"$f":"[1]ODA!W314","v":0},{"$f":"[1]ODA!X314","v":0},{"$f":"[1]ODA!Y314","v":0},{"$f":"[1]ODA!Z314","v":0},0,0]
[0,null,null,null,null,{"$f":"[1]ODA!F315","v":0},{"$f":"[1]ODA!G315","v":0},{"$f":"[1]ODA!H315","v":0},{"$f":"[1]ODA!I315","v":0},{"$f":"[1]ODA!J315","v":0},{"$f":"[1]ODA!K315","v":0},{"$f":"[1]ODA!L315","v":0},{"$f":"[1]ODA!O315","v":0},{"$f":"[1]ODA!P315","v":0},{"$f":"[1]ODA!Q315","v":0},{"$f":"[1]ODA!R315","v":0},{"$f":"[1]ODA!S315","v":0},{"$f":"[1]ODA!T315","v":0},{"$f":"[1]ODA!U315","v":0},{"$f":"[1]ODA!V315","v":0},{"$f":"[1]ODA!W315","v":0},{"$f":"[1]ODA!X315","v":0},{"$f":"[1]ODA!Y315","v":0},{"$f":"[1]ODA!Z315","v":0},0,0]
[0,null,null,null,null,{"$f":"[1]ODA!F316","v":0},{"$f":"[1]ODA!G316","v":0},{"$f":"[1]ODA!H316","v":0},{"$f":"[1]ODA!I316","v":0},{"$f":"[1]ODA!J316","v":0},{"$f":"[1]ODA!K316","v":0},{"$f":"[1]ODA!L316","v":0},{"$f":"[1]ODA!O316","v":0},{"$f":"[1]ODA!P316","v":0},{"$f":"[1]ODA!Q316","v":0},{"$f":"[1]ODA!R316","v":0},{"$f":"[1]ODA!S316","v":0},{"$f":"[1]ODA!T316","v":0},{"$f":"[1]ODA!U316","v":0},{"$f":"[1]ODA!V316","v":0},{"$f":"[1]ODA!W316","v":0},{"$f":"[1]ODA!X316","v":0},{"$f":"[1]ODA!Y316","v":0},{"$f":"[1]ODA!Z316","v":0},0,0]
[0,null,null,null,null,{"$f":"[1]ODA!F317","v":0},{"$f":"[1]ODA!G317","v":0},{"$f":"[1]ODA!H317","v":0},{"$f":"[1]ODA!I317","v":0},{"$f":"[1]ODA!J317","v":0},{"$f":"[1]ODA!K317","v":0},{"$f":"[1]ODA!L317","v":0},{"$f":"[1]ODA!O317","v":0},{"$f":"[1]ODA!P317","v":0},{"$f":"[1]ODA!Q317","v":0},{"$f":"[1]ODA!R317","v":0},{"$f":"[1]ODA!S317","v":0},{"$f":"[1]ODA!T317","v":0},{"$f":"[1]ODA!U317","v":0},{"$f":"[1]ODA!V317","v":0},{"$f":"[1]ODA!W317","v":0},{"$f":"[1]ODA!X317","v":0},{"$f":"[1]ODA!Y317","v":0},{"$f":"[1]ODA!Z317","v":0},0,0]
[0,null,null,null,null,{"$f":"[1]ODA!F318","v":0},{"$f":"[1]ODA!G318","v":0},{"$f":"[1]ODA!H318","v":0},{"$f":"[1]ODA!I318","v":0},{"$f":"[1]ODA!J318","v":0},{"$f":"[1]ODA!K318","v":0},{"$f":"[1]ODA!L318","v":0},{"$f":"[1]ODA!O318","v":0},{"$f":"[1]ODA!P318","v":0},{"$f":"[1]ODA!Q318","v":0},{"$f":"[1]ODA!R318","v":0},{"$f":"[1]ODA!S318","v":0},{"$f":"[1]ODA!T318","v":0},{"$f":"[1]ODA!U318","v":0},{"$f":"[1]ODA!V318","v":0},{"$f":"[1]ODA!W318","v":0},{"$f":"[1]ODA!X318","v":0},{"$f":"[1]ODA!Y318","v":0},{"$f":"[1]ODA!Z318","v":0},0,0]
[0,null,null,null,null,{"$f":"[1]ODA!F319","v":0},{"$f":"[1]ODA!G319","v":0},{"$f":"[1]ODA!H319","v":0},{"$f":"[1]ODA!I319","v":0},{"$f":"[1]ODA!J319","v":0},{"$f":"[1]ODA!K319","v":0},{"$f":"[1]ODA!L319","v":0},{"$f":"[1]ODA!O319","v":0},{"$f":"[1]ODA!P319","v":0},{"$f":"[1]ODA!Q319","v":0},{"$f":"[1]ODA!R319","v":0},{"$f":"[1]ODA!S319","v":0},{"$f":"[1]ODA!T319","v":0},{"$f":"[1]ODA!U319","v":0},{"$f":"[1]ODA!V319","v":0},{"$f":"[1]ODA!W319","v":0},{"$f":"[1]ODA!X319","v":0},{"$f":"[1]ODA!Y319","v":0},{"$f":"[1]ODA!Z319","v":0},0,0]
[0,null,null,null,null,{"$f":"[1]ODA!F320","v":0},{"$f":"[1]ODA!G320","v":0},{"$f":"[1]ODA!H320","v":0},{"$f":"[1]ODA!I320","v":0},{"$f":"[1]ODA!J320","v":0},{"$f":"[1]ODA!K320","v":0},{"$f":"[1]ODA!L320","v":0},{"$f":"[1]ODA!O320","v":0},{"$f":"[1]ODA!P320","v":0},{"$f":"[1]ODA!Q320","v":0},{"$f":"[1]ODA!R320","v":0},{"$f":"[1]ODA!S320","v":0},{"$f":"[1]ODA!T320","v":0},{"$f":"[1]ODA!U320","v":0},{"$f":"[1]ODA!V320","v":0},{"$f":"[1]ODA!W320","v":0},{"$f":"[1]ODA!X320","v":0},{"$f":"[1]ODA!Y320","v":0},{"$f":"[1]ODA!Z320","v":0},0,0]
[0,null,null,null,null,{"$f":"[1]ODA!F321","v":0},{"$f":"[1]ODA!G321","v":0},{"$f":"[1]ODA!H321","v":0},{"$f":"[1]ODA!I321","v":0},{"$f":"[1]ODA!J321","v":0},{"$f":"[1]ODA!K321","v":0},{"$f":"[1]ODA!L321","v":0},{"$f":"[1]ODA!O321","v":0},{"$f":"[1]ODA!P321","v":0},{"$f":"[1]ODA!Q321","v":0},{"$f":"[1]ODA!R321","v":0},{"$f":"[1]ODA!S321","v":0},{"$f":"[1]ODA!T321","v":0},{"$f":"[1]ODA!U321","v":0},{"$f":"[1]ODA!V321","v":0},{"$f":"[1]ODA!W321","v":0},{"$f":"[1]ODA!X321","v":0},{"$f":"[1]ODA!Y321","v":0},{"$f":"[1]ODA!Z321","v":0},0,0]
[0,null,null,null,null,{"$f":"[1]ODA!F322","v":0},{"$f":"[1]ODA!G322","v":0},{"$f":"[1]ODA!H322","v":0},{"$f":"[1]ODA!I322","v":0},{"$f":"[1]ODA!J322","v":0},{"$f":"[1]ODA!K322","v":0},{"$f":"[1]ODA!L322","v":0},{"$f":"[1]ODA!O322","v":0},{"$f":"[1]ODA!P322","v":0},{"$f":"[1]ODA!Q322","v":0},{"$f":"[1]ODA!R322","v":0},{"$f":"[1]ODA!S322","v":0},{"$f":"[1]ODA!T322","v":0},{"$f":"[1]ODA!U322","v":0},{"$f":"[1]ODA!V322","v":0},{"$f":"[1]ODA!W322","v":0},{"$f":"[1]ODA!X322","v":0},{"$f":"[1]ODA!Y322","v":0},{"$f":"[1]ODA!Z322","v":0},0,0]
[0,null,null,null,null,{"$f":"[1]ODA!F323","v":0},{"$f":"[1]ODA!G323","v":0},{"$f":"[1]ODA!H323","v":0},{"$f":"[1]ODA!I323","v":0},{"$f":"[1]ODA!J323","v":0},{"$f":"[1]ODA!K323","v":0},{"$f":"[1]ODA!L323","v":0},{"$f":"[1]ODA!O323","v":0},{"$f":"[1]ODA!P323","v":0},{"$f":"[1]ODA!Q323","v":0},{"$f":"[1]ODA!R323","v":0},{"$f":"[1]ODA!S323","v":0},{"$f":"[1]ODA!T323","v":0},{"$f":"[1]ODA!U323","v":0},{"$f":"[1]ODA!V323","v":0},{"$f":"[1]ODA!W323","v":0},{"$f":"[1]ODA!X323","v":0},{"$f":"[1]ODA!Y323","v":0},{"$f":"[1]ODA!Z323","v":0},0,0]
[0,null,null,null,null,{"$f":"[1]ODA!F324","v":0},{"$f":"[1]ODA!G324","v":0},{"$f":"[1]ODA!H324","v":0},{"$f":"[1]ODA!I324","v":0},{"$f":"[1]ODA!J324","v":0},{"$f":"[1]ODA!K324","v":0},{"$f":"[1]ODA!L324","v":0},{"$f":"[1]ODA!O324","v":0},{"$f":"[1]ODA!P324","v":0},{"$f":"[1]ODA!Q324","v":0},{"$f":"[1]ODA!R324","v":0},{"$f":"[1]ODA!S324","v":0},{"$f":"[1]ODA!T324","v":0},{"$f":"[1]ODA!U324","v":0},{"$f":"[1]ODA!V324","v":0},{"$f":"[1]ODA!W324","v":0},{"$f":"[1]ODA!X324","v":0},{"$f":"[1]ODA!Y324","v":0},{"$f":"[1]ODA!Z324","v":0},0,0]
[0,null,null,null,null,{"$f":"[1]ODA!F325","v":0},{"$f":"[1]ODA!G325","v":0},{"$f":"[1]ODA!H325","v":0},{"$f":"[1]ODA!I325","v":0},{"$f":"[1]ODA!J325","v":0},{"$f":"[1]ODA!K325","v":0},{"$f":"[1]ODA!L325","v":0},{"$f":"[1]ODA!O325","v":0},{"$f":"[1]ODA!P325","v":0},{"$f":"[1]ODA!Q325","v":0},{"$f":"[1]ODA!R325","v":0},{"$f":"[1]ODA!S325","v":0},{"$f":"[1]ODA!T325","v":0},{"$f":"[1]ODA!U325","v":0},{"$f":"[1]ODA!V325","v":0},{"$f":"[1]ODA!W325","v":0},{"$f":"[1]ODA!X325","v":0},{"$f":"[1]ODA!Y325","v":0},{"$f":"[1]ODA!Z325","v":0},0,0]
[0,null,null,null,null,{"$f":"[1]ODA!F326","v":0},{"$f":"[1]ODA!G326","v":0},{"$f":"[1]ODA!H326","v":0},{"$f":"[1]ODA!I326","v":0},{"$f":"[1]ODA!J326","v":0},{"$f":"[1]ODA!K326","v":0},{"$f":"[1]ODA!L326","v":0},{"$f":"[1]ODA!O326","v":0},{"$f":"[1]ODA!P326","v":0},{"$f":"[1]ODA!Q326","v":0},{"$f":"[1]ODA!R326","v":0},{"$f":"[1]ODA!S326","v":0},{"$f":"[1]ODA!T326","v":0},{"$f":"[1]ODA!U326","v":0},{"$f":"[1]ODA!V326","v":0},{"$f":"[1]ODA!W326","v":0},{"$f":"[1]ODA!X326","v":0},{"$f":"[1]ODA!Y326","v":0},{"$f":"[1]ODA!Z326","v":0},0,0]
[0,null,null,null,null,{"$f":"[1]ODA!F327","v":0},{"$f":"[1]ODA!G327","v":0},{"$f":"[1]ODA!H327","v":0},{"$f":"[1]ODA!I327","v":0},{"$f":"[1]ODA!J327","v":0},{"$f":"[1]ODA!K327","v":0},{"$f":"[1]ODA!L327","v":0},{"$f":"[1]ODA!O327","v":0},{"$f":"[1]ODA!P327","v":0},{"$f":"[1]ODA!Q327","v":0},{"$f":"[1]ODA!R327","v":0},{"$f":"[1]ODA!S327","v":0},{"$f":"[1]ODA!T327","v":0},{"$f":"[1]ODA!U327","v":0},{"$f":"[1]ODA!V327","v":0},{"$f":"[1]ODA!W327","v":0},{"$f":"[1]ODA!X327","v":0},{"$f":"[1]ODA!Y327","v":0},{"$f":"[1]ODA!Z327","v":0},0,0]
[0,null,null,null,null,{"$f":"[1]ODA!F328","v":0},{"$f":"[1]ODA!G328","v":0},{"$f":"[1]ODA!H328","v":0},{"$f":"[1]ODA!I328","v":0},{"$f":"[1]ODA!J328","v":0},{"$f":"[1]ODA!K328","v":0},{"$f":"[1]ODA!L328","v":0},{"$f":"[1]ODA!O328","v":0},{"$f":"[1]ODA!P328","v":0},{"$f":"[1]ODA!Q328","v":0},{"$f":"[1]ODA!R328","v":0},{"$f":"[1]ODA!S328","v":0},{"$f":"[1]ODA!T328","v":0},{"$f":"[1]ODA!U328","v":0},{"$f":"[1]ODA!V328","v":0},{"$f":"[1]ODA!W328","v":0},{"$f":"[1]ODA!X328","v":0},{"$f":"[1]ODA!Y328","v":0},{"$f":"[1]ODA!Z328","v":0},0,0]
[0,null,null,null,null,{"$f":"[1]ODA!F329","v":0},{"$f":"[1]ODA!G329","v":0},{"$f":"[1]ODA!H329","v":0},{"$f":"[1]ODA!I329","v":0},{"$f":"[1]ODA!J329","v":0},{"$f":"[1]ODA!K329","v":0},{"$f":"[1]ODA!L329","v":0},{"$f":"[1]ODA!O329","v":0},{"$f":"[1]ODA!P329","v":0},{"$f":"[1]ODA!Q329","v":0},{"$f":"[1]ODA!R329","v":0},{"$f":"[1]ODA!S329","v":0},{"$f":"[1]ODA!T329","v":0},{"$f":"[1]ODA!U329","v":0},{"$f":"[1]ODA!V329","v":0},{"$f":"[1]ODA!W329","v":0},{"$f":"[1]ODA!X329","v":0},{"$f":"[1]ODA!Y329","v":0},{"$f":"[1]ODA!Z329","v":0},0,0]
[0,null,null,null,null,{"$f":"[1]ODA!F330","v":0},{"$f":"[1]ODA!G330","v":0},{"$f":"[1]ODA!H330","v":0},{"$f":"[1]ODA!I330","v":0},{"$f":"[1]ODA!J330","v":0},{"$f":"[1]ODA!K330","v":0},{"$f":"[1]ODA!L330","v":0},{"$f":"[1]ODA!O330","v":0},{"$f":"[1]ODA!P330","v":0},{"$f":"[1]ODA!Q330","v":0},{"$f":"[1]ODA!R330","v":0},{"$f":"[1]ODA!S330","v":0},{"$f":"[1]ODA!T330","v":0},{"$f":"[1]ODA!U330","v":0},{"$f":"[1]ODA!V330","v":0},{"$f":"[1]ODA!W330","v":0},{"$f":"[1]ODA!X330","v":0},{"$f":"[1]ODA!Y330","v":0},{"$f":"[1]ODA!Z330","v":0},0,0]
[0,null,null,null,null,{"$f":"[1]ODA!F331","v":0},{"$f":"[1]ODA!G331","v":0},{"$f":"[1]ODA!H331","v":0},{"$f":"[1]ODA!I331","v":0},{"$f":"[1]ODA!J331","v":0},{"$f":"[1]ODA!K331","v":0},{"$f":"[1]ODA!L331","v":0},{"$f":"[1]ODA!O331","v":0},{"$f":"[1]ODA!P331","v":0},{"$f":"[1]ODA!Q331","v":0},{"$f":"[1]ODA!R331","v":0},{"$f":"[1]ODA!S331","v":0},{"$f":"[1]ODA!T331","v":0},{"$f":"[1]ODA!U331","v":0},{"$f":"[1]ODA!V331","v":0},{"$f":"[1]ODA!W331","v":0},{"$f":"[1]ODA!X331","v":0},{"$f":"[1]ODA!Y331","v":0},{"$f":"[1]ODA!Z331","v":0},0,0]
[{"$f":"IF(SUM(L332:Z332)>0,1,0)","v":0},null,null,null,null,{"$f":"[1]ODA!F332","v":0},{"$f":"[1]ODA!G332","v":0},{"$f":"[1]ODA!H332","v":0},{"$f":"[1]ODA!I332","v":0},{"$f":"[1]ODA!J332","v":0},{"$f":"[1]ODA!K332","v":0},{"$f":"[1]ODA!L332","v":0},{"$f":"[1]ODA!O332","v":0},{"$f":"[1]ODA!P332","v":0},{"$f":"[1]ODA!Q332","v":0},{"$f":"[1]ODA!R332","v":0},{"$f":"[1]ODA!S332","v":0},{"$f":"[1]ODA!T332","v":0},{"$f":"[1]ODA!U332","v":0},{"$f":"[1]ODA!V332","v":0},{"$f":"[1]ODA!W332","v":0},{"$f":"[1]ODA!X332","v":0},{"$f":"[1]ODA!Y332","v":0},{"$f":"[1]ODA!Z332","v":0},0,0]
[0,null,null,null,null,{"$f":"[1]ODA!F333","v":0},{"$f":"[1]ODA!G333","v":0},{"$f":"[1]ODA!H333","v":0},{"$f":"[1]ODA!I333","v":0},{"$f":"[1]ODA!J333","v":0},{"$f":"[1]ODA!K333","v":0},{"$f":"[1]ODA!L333","v":0},{"$f":"[1]ODA!O333","v":0},{"$f":"[1]ODA!P333","v":0},{"$f":"[1]ODA!Q333","v":0},{"$f":"[1]ODA!R333","v":0},{"$f":"[1]ODA!S333","v":0},{"$f":"[1]ODA!T333","v":0},{"$f":"[1]ODA!U333","v":0},{"$f":"[1]ODA!V333","v":0},{"$f":"[1]ODA!W333","v":0},{"$f":"[1]ODA!X333","v":0},{"$f":"[1]ODA!Y333","v":0},{"$f":"[1]ODA!Z333","v":0},0,0]
[0,null,null,null,null,{"$f":"[1]ODA!F334","v":0},{"$f":"[1]ODA!G334","v":0},{"$f":"[1]ODA!H334","v":0},{"$f":"[1]ODA!I334","v":0},{"$f":"[1]ODA!J334","v":0},{"$f":"[1]ODA!K334","v":0},{"$f":"[1]ODA!L334","v":0},{"$f":"[1]ODA!O334","v":0},{"$f":"[1]ODA!P334","v":0},{"$f":"[1]ODA!Q334","v":0},{"$f":"[1]ODA!R334","v":0},{"$f":"[1]ODA!S334","v":0},{"$f":"[1]ODA!T334","v":0},{"$f":"[1]ODA!U334","v":0},{"$f":"[1]ODA!V334","v":0},{"$f":"[1]ODA!W334","v":0},{"$f":"[1]ODA!X334","v":0},{"$f":"[1]ODA!Y334","v":0},{"$f":"[1]ODA!Z334","v":0},0,0]
[0,null,null,null,null,{"$f":"[1]ODA!F335","v":0},{"$f":"[1]ODA!G335","v":0},{"$f":"[1]ODA!H335","v":0},{"$f":"[1]ODA!I335","v":0},{"$f":"[1]ODA!J335","v":0},{"$f":"[1]ODA!K335","v":0},{"$f":"[1]ODA!L335","v":0},{"$f":"[1]ODA!O335","v":0},{"$f":"[1]ODA!P335","v":0},{"$f":"[1]ODA!Q335","v":0},{"$f":"[1]ODA!R335","v":0},{"$f":"[1]ODA!S335","v":0},{"$f":"[1]ODA!T335","v":0},{"$f":"[1]ODA!U335","v":0},{"$f":"[1]ODA!V335","v":0},{"$f":"[1]ODA!W335","v":0},{"$f":"[1]ODA!X335","v":0},{"$f":"[1]ODA!Y335","v":0},{"$f":"[1]ODA!Z335","v":0},0,0]
[0,null,null,null,null,{"$f":"[1]ODA!F336","v":0},{"$f":"[1]ODA!G336","v":0},{"$f":"[1]ODA!H336","v":0},{"$f":"[1]ODA!I336","v":0},{"$f":"[1]ODA!J336","v":0},{"$f":"[1]ODA!K336","v":0},{"$f":"[1]ODA!L336","v":0},{"$f":"[1]ODA!O336","v":0},{"$f":"[1]ODA!P336","v":0},{"$f":"[1]ODA!Q336","v":0},{"$f":"[1]ODA!R336","v":0},{"$f":"[1]ODA!S336","v":0},{"$f":"[1]ODA!T336","v":0},{"$f":"[1]ODA!U336","v":0},{"$f":"[1]ODA!V336","v":0},{"$f":"[1]ODA!W336","v":0},{"$f":"[1]ODA!X336","v":0},{"$f":"[1]ODA!Y336","v":0},{"$f":"[1]ODA!Z336","v":0},0,0]
[0,null,null,null,null,{"$f":"[1]ODA!F337","v":0},{"$f":"[1]ODA!G337","v":0},{"$f":"[1]ODA!H337","v":0},{"$f":"[1]ODA!I337","v":0},{"$f":"[1]ODA!J337","v":0},{"$f":"[1]ODA!K337","v":0},{"$f":"[1]ODA!L337","v":0},{"$f":"[1]ODA!O337","v":0},{"$f":"[1]ODA!P337","v":0},{"$f":"[1]ODA!Q337","v":0},{"$f":"[1]ODA!R337","v":0},{"$f":"[1]ODA!S337","v":0},{"$f":"[1]ODA!T337","v":0},{"$f":"[1]ODA!U337","v":0},{"$f":"[1]ODA!V337","v":0},{"$f":"[1]ODA!W337","v":0},{"$f":"[1]ODA!X337","v":0},{"$f":"[1]ODA!Y337","v":0},{"$f":"[1]ODA!Z337","v":0},0,0]
[0,null,null,null,null,{"$f":"[1]ODA!F338","v":0},{"$f":"[1]ODA!G338","v":0},{"$f":"[1]ODA!H338","v":0},{"$f":"[1]ODA!I338","v":0},{"$f":"[1]ODA!J338","v":0},{"$f":"[1]ODA!K338","v":0},{"$f":"[1]ODA!L338","v":0},{"$f":"[1]ODA!O338","v":0},{"$f":"[1]ODA!P338","v":0},{"$f":"[1]ODA!Q338","v":0},{"$f":"[1]ODA!R338","v":0},{"$f":"[1]ODA!S338","v":0},{"$f":"[1]ODA!T338","v":0},{"$f":"[1]ODA!U338","v":0},{"$f":"[1]ODA!V338","v":0},{"$f":"[1]ODA!W338","v":0},{"$f":"[1]ODA!X338","v":0},{"$f":"[1]ODA!Y338","v":0},{"$f":"[1]ODA!Z338","v":0},0,0]
[0,null,null,null,null,{"$f":"[1]ODA!F339","v":0},{"$f":"[1]ODA!G339","v":0},{"$f":"[1]ODA!H339","v":0},{"$f":"[1]ODA!I339","v":0},{"$f":"[1]ODA!J339","v":0},{"$f":"[1]ODA!K339","v":0},{"$f":"[1]ODA!L339","v":0},{"$f":"[1]ODA!O339","v":0},{"$f":"[1]ODA!P339","v":0},{"$f":"[1]ODA!Q339","v":0},{"$f":"[1]ODA!R339","v":0},{"$f":"[1]ODA!S339","v":0},{"$f":"[1]ODA!T339","v":0},{"$f":"[1]ODA!U339","v":0},{"$f":"[1]ODA!V339","v":0},{"$f":"[1]ODA!W339","v":0},{"$f":"[1]ODA!X339","v":0},{"$f":"[1]ODA!Y339","v":0},{"$f":"[1]ODA!Z339","v":0},0,0]
[0,null,null,null,null,{"$f":"[1]ODA!F340","v":0},{"$f":"[1]ODA!G340","v":0},{"$f":"[1]ODA!H340","v":0},{"$f":"[1]ODA!I340","v":0},{"$f":"[1]ODA!J340","v":0},{"$f":"[1]ODA!K340","v":0},{"$f":"[1]ODA!L340","v":0},{"$f":"[1]ODA!O340","v":0},{"$f":"[1]ODA!P340","v":0},{"$f":"[1]ODA!Q340","v":0},{"$f":"[1]ODA!R340","v":0},{"$f":"[1]ODA!S340","v":0},{"$f":"[1]ODA!T340","v":0},{"$f":"[1]ODA!U340","v":0},{"$f":"[1]ODA!V340","v":0},{"$f":"[1]ODA!W340","v":0},{"$f":"[1]ODA!X340","v":0},{"$f":"[1]ODA!Y340","v":0},{"$f":"[1]ODA!Z340","v":0},0,0]
[0,null,null,null,null,{"$f":"[1]ODA!F341","v":0},{"$f":"[1]ODA!G341","v":0},{"$f":"[1]ODA!H341","v":0},{"$f":"[1]ODA!I341","v":0},{"$f":"[1]ODA!J341","v":0},{"$f":"[1]ODA!K341","v":0},{"$f":"[1]ODA!L341","v":0},{"$f":"[1]ODA!O341","v":0},{"$f":"[1]ODA!P341","v":0},{"$f":"[1]ODA!Q341","v":0},{"$f":"[1]ODA!R341","v":0},{"$f":"[1]ODA!S341","v":0},{"$f":"[1]ODA!T341","v":0},{"$f":"[1]ODA!U341","v":0},{"$f":"[1]ODA!V341","v":0},{"$f":"[1]ODA!W341","v":0},{"$f":"[1]ODA!X341","v":0},{"$f":"[1]ODA!Y341","v":0},{"$f":"[1]ODA!Z341","v":0},0,0]
[0,null,null,null,null,{"$f":"[1]ODA!F342","v":0},{"$f":"[1]ODA!G342","v":0},{"$f":"[1]ODA!H342","v":0},{"$f":"[1]ODA!I342","v":0},{"$f":"[1]ODA!J342","v":0},{"$f":"[1]ODA!K342","v":0},{"$f":"[1]ODA!L342","v":0},{"$f":"[1]ODA!O342","v":0},{"$f":"[1]ODA!P342","v":0},{"$f":"[1]ODA!Q342","v":0},{"$f":"[1]ODA!R342","v":0},{"$f":"[1]ODA!S342","v":0},{"$f":"[1]ODA!T342","v":0},{"$f":"[1]ODA!U342","v":0},{"$f":"[1]ODA!V342","v":0},{"$f":"[1]ODA!W342","v":0},{"$f":"[1]ODA!X342","v":0},{"$f":"[1]ODA!Y342","v":0},{"$f":"[1]ODA!Z342","v":0},0,0]
[0,null,null,null,null,{"$f":"[1]ODA!F343","v":0},{"$f":"[1]ODA!G343","v":0},{"$f":"[1]ODA!H343","v":0},{"$f":"[1]ODA!I343","v":0},{"$f":"[1]ODA!J343","v":0},{"$f":"[1]ODA!K343","v":0},{"$f":"[1]ODA!L343","v":0},{"$f":"[1]ODA!O343","v":0},{"$f":"[1]ODA!P343","v":0},{"$f":"[1]ODA!Q343","v":0},{"$f":"[1]ODA!R343","v":0},{"$f":"[1]ODA!S343","v":0},{"$f":"[1]ODA!T343","v":0},{"$f":"[1]ODA!U343","v":0},{"$f":"[1]ODA!V343","v":0},{"$f":"[1]ODA!W343","v":0},{"$f":"[1]ODA!X343","v":0},{"$f":"[1]ODA!Y343","v":0},{"$f":"[1]ODA!Z343","v":0},0,0]
[0,null,null,null,null,{"$f":"[1]ODA!F344","v":0},{"$f":"[1]ODA!G344","v":0},{"$f":"[1]ODA!H344","v":0},{"$f":"[1]ODA!I344","v":0},{"$f":"[1]ODA!J344","v":0},{"$f":"[1]ODA!K344","v":0},{"$f":"[1]ODA!L344","v":0},{"$f":"[1]ODA!O344","v":0},{"$f":"[1]ODA!P344","v":0},{"$f":"[1]ODA!Q344","v":0},{"$f":"[1]ODA!R344","v":0},{"$f":"[1]ODA!S344","v":0},{"$f":"[1]ODA!T344","v":0},{"$f":"[1]ODA!U344","v":0},{"$f":"[1]ODA!V344","v":0},{"$f":"[1]ODA!W344","v":0},{"$f":"[1]ODA!X344","v":0},{"$f":"[1]ODA!Y344","v":0},{"$f":"[1]ODA!Z344","v":0},0,0]
[0,null,null,null,null,{"$f":"[1]ODA!F345","v":0},{"$f":"[1]ODA!G345","v":0},{"$f":"[1]ODA!H345","v":0},{"$f":"[1]ODA!I345","v":0},{"$f":"[1]ODA!J345","v":0},{"$f":"[1]ODA!K345","v":0},{"$f":"[1]ODA!L345","v":0},{"$f":"[1]ODA!O345","v":0},{"$f":"[1]ODA!P345","v":0},{"$f":"[1]ODA!Q345","v":0},{"$f":"[1]ODA!R345","v":0},{"$f":"[1]ODA!S345","v":0},{"$f":"[1]ODA!T345","v":0},{"$f":"[1]ODA!U345","v":0},{"$f":"[1]ODA!V345","v":0},{"$f":"[1]ODA!W345","v":0},{"$f":"[1]ODA!X345","v":0},{"$f":"[1]ODA!Y345","v":0},{"$f":"[1]ODA!Z345","v":0},0,0]
[0,null,null,null,null,{"$f":"[1]ODA!F346","v":0},{"$f":"[1]ODA!G346","v":0},{"$f":"[1]ODA!H346","v":0},{"$f":"[1]ODA!I346","v":0},{"$f":"[1]ODA!J346","v":0},{"$f":"[1]ODA!K346","v":0},{"$f":"[1]ODA!L346","v":0},{"$f":"[1]ODA!O346","v":0},{"$f":"[1]ODA!P346","v":0},{"$f":"[1]ODA!Q346","v":0},{"$f":"[1]ODA!R346","v":0},{"$f":"[1]ODA!S346","v":0},{"$f":"[1]ODA!T346","v":0},{"$f":"[1]ODA!U346","v":0},{"$f":"[1]ODA!V346","v":0},{"$f":"[1]ODA!W346","v":0},{"$f":"[1]ODA!X346","v":0},{"$f":"[1]ODA!Y346","v":0},{"$f":"[1]ODA!Z346","v":0},0,0]
[0,null,null,null,null,{"$f":"[1]ODA!F347","v":0},{"$f":"[1]ODA!G347","v":0},{"$f":"[1]ODA!H347","v":0},{"$f":"[1]ODA!I347","v":0},{"$f":"[1]ODA!J347","v":0},{"$f":"[1]ODA!K347","v":0},{"$f":"[1]ODA!L347","v":0},{"$f":"[1]ODA!O347","v":0},{"$f":"[1]ODA!P347","v":0},{"$f":"[1]ODA!Q347","v":0},{"$f":"[1]ODA!R347","v":0},{"$f":"[1]ODA!S347","v":0},{"$f":"[1]ODA!T347","v":0},{"$f":"[1]ODA!U347","v":0},{"$f":"[1]ODA!V347","v":0},{"$f":"[1]ODA!W347","v":0},{"$f":"[1]ODA!X347","v":0},{"$f":"[1]ODA!Y347","v":0},{"$f":"[1]ODA!Z347","v":0},0,0]
[0,null,null,null,null,{"$f":"[1]ODA!F348","v":0},{"$f":"[1]ODA!G348","v":0},{"$f":"[1]ODA!H348","v":0},{"$f":"[1]ODA!I348","v":0},{"$f":"[1]ODA!J348","v":0},{"$f":"[1]ODA!K348","v":0},{"$f":"[1]ODA!L348","v":0},{"$f":"[1]ODA!O348","v":0},{"$f":"[1]ODA!P348","v":0},{"$f":"[1]ODA!Q348","v":0},{"$f":"[1]ODA!R348","v":0},{"$f":"[1]ODA!S348","v":0},{"$f":"[1]ODA!T348","v":0},{"$f":"[1]ODA!U348","v":0},{"$f":"[1]ODA!V348","v":0},{"$f":"[1]ODA!W348","v":0},{"$f":"[1]ODA!X348","v":0},{"$f":"[1]ODA!Y348","v":0},{"$f":"[1]ODA!Z348","v":0},0,0]
[0,null,null,null,null,{"$f":"[1]ODA!F349","v":0},{"$f":"[1]ODA!G349","v":0},{"$f":"[1]ODA!H349","v":0},{"$f":"[1]ODA!I349","v":0},{"$f":"[1]ODA!J349","v":0},{"$f":"[1]ODA!K349","v":0},{"$f":"[1]ODA!L349","v":0},{"$f":"[1]ODA!O349","v":0},{"$f":"[1]ODA!P349","v":0},{"$f":"[1]ODA!Q349","v":0},{"$f":"[1]ODA!R349","v":0},{"$f":"[1]ODA!S349","v":0},{"$f":"[1]ODA!T349","v":0},{"$f":"[1]ODA!U349","v":0},{"$f":"[1]ODA!V349","v":0},{"$f":"[1]ODA!W349","v":0},{"$f":"[1]ODA!X349","v":0},{"$f":"[1]ODA!Y349","v":0},{"$f":"[1]ODA!Z349","v":0},0,0]
[0,null,null,null,null,{"$f":"[1]ODA!F350","v":0},{"$f":"[1]ODA!G350","v":0},{"$f":"[1]ODA!H350","v":0},{"$f":"[1]ODA!I350","v":0},{"$f":"[1]ODA!J350","v":0},{"$f":"[1]ODA!K350","v":0},{"$f":"[1]ODA!L350","v":0},{"$f":"[1]ODA!O350","v":0},{"$f":"[1]ODA!P350","v":0},{"$f":"[1]ODA!Q350","v":0},{"$f":"[1]ODA!R350","v":0},{"$f":"[1]ODA!S350","v":0},{"$f":"[1]ODA!T350","v":0},{"$f":"[1]ODA!U350","v":0},{"$f":"[1]ODA!V350","v":0},{"$f":"[1]ODA!W350","v":0},{"$f":"[1]ODA!X350","v":0},{"$f":"[1]ODA!Y350","v":0},{"$f":"[1]ODA!Z350","v":0},0,0]
[0,null,null,null,null,{"$f":"[1]ODA!F351","v":0},{"$f":"[1]ODA!G351","v":0},{"$f":"[1]ODA!H351","v":0},{"$f":"[1]ODA!I351","v":0},{"$f":"[1]ODA!J351","v":0},{"$f":"[1]ODA!K351","v":0},{"$f":"[1]ODA!L351","v":0},{"$f":"[1]ODA!O351","v":0},{"$f":"[1]ODA!P351","v":0},{"$f":"[1]ODA!Q351","v":0},{"$f":"[1]ODA!R351","v":0},{"$f":"[1]ODA!S351","v":0},{"$f":"[1]ODA!T351","v":0},{"$f":"[1]ODA!U351","v":0},{"$f":"[1]ODA!V351","v":0},{"$f":"[1]ODA!W351","v":0},{"$f":"[1]ODA!X351","v":0},{"$f":"[1]ODA!Y351","v":0},{"$f":"[1]ODA!Z351","v":0},0,0]
[0,null,null,null,null,{"$f":"[1]ODA!F352","v":0},{"$f":"[1]ODA!G352","v":0},{"$f":"[1]ODA!H352","v":0},{"$f":"[1]ODA!I352","v":0},{"$f":"[1]ODA!J352","v":0},{"$f":"[1]ODA!K352","v":0},{"$f":"[1]ODA!L352","v":0},{"$f":"[1]ODA!O352","v":0},{"$f":"[1]ODA!P352","v":0},{"$f":"[1]ODA!Q352","v":0},{"$f":"[1]ODA!R352","v":0},{"$f":"[1]ODA!S352","v":0},{"$f":"[1]ODA!T352","v":0},{"$f":"[1]ODA!U352","v":0},{"$f":"[1]ODA!V352","v":0},{"$f":"[1]ODA!W352","v":0},{"$f":"[1]ODA!X352","v":0},{"$f":"[1]ODA!Y352","v":0},{"$f":"[1]ODA!Z352","v":0},0,0]
[0,null,null,null,null,{"$f":"[1]ODA!F353","v":0},{"$f":"[1]ODA!G353","v":0},{"$f":"[1]ODA!H353","v":0},{"$f":"[1]ODA!I353","v":0},{"$f":"[1]ODA!J353","v":0},{"$f":"[1]ODA!K353","v":0},{"$f":"[1]ODA!L353","v":0},{"$f":"[1]ODA!O353","v":0},{"$f":"[1]ODA!P353","v":0},{"$f":"[1]ODA!Q353","v":0},{"$f":"[1]ODA!R353","v":0},{"$f":"[1]ODA!S353","v":0},{"$f":"[1]ODA!T353","v":0},{"$f":"[1]ODA!U353","v":0},{"$f":"[1]ODA!V353","v":0},{"$f":"[1]ODA!W353","v":0},{"$f":"[1]ODA!X353","v":0},{"$f":"[1]ODA!Y353","v":0},{"$f":"[1]ODA!Z353","v":0},0,0]
[0,null,null,null,null,{"$f":"[1]ODA!F354","v":0},{"$f":"[1]ODA!G354","v":0},{"$f":"[1]ODA!H354","v":0},{"$f":"[1]ODA!I354","v":0},{"$f":"[1]ODA!J354","v":0},{"$f":"[1]ODA!K354","v":0},{"$f":"[1]ODA!L354","v":0},{"$f":"[1]ODA!O354","v":0},{"$f":"[1]ODA!P354","v":0},{"$f":"[1]ODA!Q354","v":0},{"$f":"[1]ODA!R354","v":0},{"$f":"[1]ODA!S354","v":0},{"$f":"[1]ODA!T354","v":0},{"$f":"[1]ODA!U354","v":0},{"$f":"[1]ODA!V354","v":0},{"$f":"[1]ODA!W354","v":0},{"$f":"[1]ODA!X354","v":0},{"$f":"[1]ODA!Y354","v":0},{"$f":"[1]ODA!Z354","v":0},0,0]
[0,null,null,null,null,{"$f":"[1]ODA!F355","v":0},{"$f":"[1]ODA!G355","v":0},{"$f":"[1]ODA!H355","v":0},{"$f":"[1]ODA!I355","v":0},{"$f":"[1]ODA!J355","v":0},{"$f":"[1]ODA!K355","v":0},{"$f":"[1]ODA!L355","v":0},{"$f":"[1]ODA!O355","v":0},{"$f":"[1]ODA!P355","v":0},{"$f":"[1]ODA!Q355","v":0},{"$f":"[1]ODA!R355","v":0},{"$f":"[1]ODA!S355","v":0},{"$f":"[1]ODA!T355","v":0},{"$f":"[1]ODA!U355","v":0},{"$f":"[1]ODA!V355","v":0},{"$f":"[1]ODA!W355","v":0},{"$f":"[1]ODA!X355","v":0},{"$f":"[1]ODA!Y355","v":0},{"$f":"[1]ODA!Z355","v":0},0,0]
[0,null,null,null,null,{"$f":"[1]ODA!F356","v":0},{"$f":"[1]ODA!G356","v":0},{"$f":"[1]ODA!H356","v":0},{"$f":"[1]ODA!I356","v":0},{"$f":"[1]ODA!J356","v":0},{"$f":"[1]ODA!K356","v":0},{"$f":"[1]ODA!L356","v":0},{"$f":"[1]ODA!O356","v":0},{"$f":"[1]ODA!P356","v":0},{"$f":"[1]ODA!Q356","v":0},{"$f":"[1]ODA!R356","v":0},{"$f":"[1]ODA!S356","v":0},{"$f":"[1]ODA!T356","v":0},{"$f":"[1]ODA!U356","v":0},{"$f":"[1]ODA!V356","v":0},{"$f":"[1]ODA!W356","v":0},{"$f":"[1]ODA!X356","v":0},{"$f":"[1]ODA!Y356","v":0},{"$f":"[1]ODA!Z356","v":0},0,0]
[0,null,null,null,null,{"$f":"[1]ODA!F357","v":0},{"$f":"[1]ODA!G357","v":0},{"$f":"[1]ODA!H357","v":0},{"$f":"[1]ODA!I357","v":0},{"$f":"[1]ODA!J357","v":0},{"$f":"[1]ODA!K357","v":0},{"$f":"[1]ODA!L357","v":0},{"$f":"[1]ODA!O357","v":0},{"$f":"[1]ODA!P357","v":0},{"$f":"[1]ODA!Q357","v":0},{"$f":"[1]ODA!R357","v":0},{"$f":"[1]ODA!S357","v":0},{"$f":"[1]ODA!T357","v":0},{"$f":"[1]ODA!U357","v":0},{"$f":"[1]ODA!V357","v":0},{"$f":"[1]ODA!W357","v":0},{"$f":"[1]ODA!X357","v":0},{"$f":"[1]ODA!Y357","v":0},{"$f":"[1]ODA!Z357","v":0},0,0]
[0,null,null,null,null,{"$f":"[1]ODA!F358","v":0},{"$f":"[1]ODA!G358","v":0},{"$f":"[1]ODA!H358","v":0},{"$f":"[1]ODA!I358","v":0},{"$f":"[1]ODA!J358","v":0},{"$f":"[1]ODA!K358","v":0},{"$f":"[1]ODA!L358","v":0},{"$f":"[1]ODA!O358","v":0},{"$f":"[1]ODA!P358","v":0},{"$f":"[1]ODA!Q358","v":0},{"$f":"[1]ODA!R358","v":0},{"$f":"[1]ODA!S358","v":0},{"$f":"[1]ODA!T358","v":0},{"$f":"[1]ODA!U358","v":0},{"$f":"[1]ODA!V358","v":0},{"$f":"[1]ODA!W358","v":0},{"$f":"[1]ODA!X358","v":0},{"$f":"[1]ODA!Y358","v":0},{"$f":"[1]ODA!Z358","v":0},0,0]
[0,null,null,null,null,{"$f":"[1]ODA!F359","v":0},{"$f":"[1]ODA!G359","v":0},{"$f":"[1]ODA!H359","v":0},{"$f":"[1]ODA!I359","v":0},{"$f":"[1]ODA!J359","v":0},{"$f":"[1]ODA!K359","v":0},{"$f":"[1]ODA!L359","v":0},{"$f":"[1]ODA!O359","v":0},{"$f":"[1]ODA!P359","v":0},{"$f":"[1]ODA!Q359","v":0},{"$f":"[1]ODA!R359","v":0},{"$f":"[1]ODA!S359","v":0},{"$f":"[1]ODA!T359","v":0},{"$f":"[1]ODA!U359","v":0},{"$f":"[1]ODA!V359","v":0},{"$f":"[1]ODA!W359","v":0},{"$f":"[1]ODA!X359","v":0},{"$f":"[1]ODA!Y359","v":0},{"$f":"[1]ODA!Z359","v":0},0,0]
[0,null,null,null,null,{"$f":"[1]ODA!F360","v":0},{"$f":"[1]ODA!G360","v":0},{"$f":"[1]ODA!H360","v":0},{"$f":"[1]ODA!I360","v":0},{"$f":"[1]ODA!J360","v":0},{"$f":"[1]ODA!K360","v":0},{"$f":"[1]ODA!L360","v":0},{"$f":"[1]ODA!O360","v":0},{"$f":"[1]ODA!P360","v":0},{"$f":"[1]ODA!Q360","v":0},{"$f":"[1]ODA!R360","v":0},{"$f":"[1]ODA!S360","v":0},{"$f":"[1]ODA!T360","v":0},{"$f":"[1]ODA!U360","v":0},{"$f":"[1]ODA!V360","v":0},{"$f":"[1]ODA!W360","v":0},{"$f":"[1]ODA!X360","v":0},{"$f":"[1]ODA!Y360","v":0},{"$f":"[1]ODA!Z360","v":0},0,0]
[null,null,null,null,null,"Total",null,null,null,null,null,{"$f":"SUM(M11:M360)","v":0},{"$f":"SUM(M11:M360)","v":0},{"$f":"SUM(N11:N360)","v":0},{"$f":"SUM(O11:O360)","v":0},{"$f":"SUM(P11:P360)","v":0},{"$f":"SUM(Q11:Q360)","v":0},{"$f":"SUM(R11:R360)","v":0},{"$f":"SUM(S11:S360)","v":0},0,0,{"$f":"SUM(V11:V360)","v":0},0,{"$f":"SUM(X11:X360)","v":0},0,0]

{"sheet":"Graphs","index":33,"n_rows":102,"n_cols":21,"rows_kept":102,"cut":false,"hidden":false,"merged":[]}
[]
[]
[]
[]
[]
[null,null,null,null,null,"PE No",{"$f":"Settings!$O$2","v":"PE126"}]
[null,null,null,null,null,"Entity name",{"$f":"Settings!$E$2","v":"South African Revenue Service"}]
[]
[]
[null,null,null,null,null,"Financial Performance"]
[null,null,null,null,null,"Revenue",{"$f":"MyYear0","v":"2025/26"},{"$f":"MyYearP1","v":"2026/27"},{"$f":"MyYearP2","v":"2027/28"},{"$f":"MyYearP3","v":"2028/29"},"Trend",{"$f":"MyYearP1","v":"2026/27"},{"$f":"MyYearP2","v":"2027/28"},{"$f":"MyYearP3","v":"2028/29"},"Ave Ann"]
[null,null,null,null,null,"Tax revenue",{"$f":"ENESummary!J34","v":0},{"$f":"ENESummary!M34","v":0},{"$f":"ENESummary!N34","v":0},{"$f":"ENESummary!O34","v":0},null,{"$f":"IFERROR(H12/G12-1,0)","v":0},0,0,{"$f":"IFERROR(((J12/G12)^(1/3)-1),0)","v":0}]
[null,null,null,null,null,"Sale of goods and services other than capital assets",{"$f":"ENESummary!J36","v":443999.80611615477},{"$f":"ENESummary!M36","v":456813.79119011993},{"$f":"ENESummary!N36","v":470002.07563411363},{"$f":"ENESummary!O36","v":0},null,2.8860339345762931E-2,2.887015387524694E-2,-1,{"$f":"IFERROR(((J13/G13)^(1/3)-1),0)","v":-1}]
[null,null,null,null,null,"Other non-tax revenue",{"$f":"ENESummary!J43","v":88724.000000000233},{"$f":"ENESummary!M43","v":95999.368000004441},{"$f":"ENESummary!N43","v":103871.31617600098},{"$f":"ENESummary!O43","v":0},null,8.2000000000047146E-2,8.1999999999960105E-2,-1,{"$f":"IFERROR(((J14/G14)^(1/3)-1),0)","v":-1}]
[null,null,null,null,null,"Transfers received",{"$f":"ENESummary!J44","v":15409637},{"$f":"ENESummary!M44","v":14895308},{"$f":"ENESummary!N44","v":15455832.380799999},{"$f":"ENESummary!O44","v":0},null,-3.3377100317158681E-2,{"$f":"IFERROR(I15/H15-1,0)","v":3.7630935916195929E-2},-1,{"$f":"IFERROR(((J15/G15)^(1/3)-1),0)","v":-1}]
[null,null,null,null,null,"Total",{"$f":"SUM(G12:G15)","v":15942360.806116154},{"$f":"SUM(H12:H15)","v":15448121.159190124},{"$f":"SUM(I12:I15)","v":16029705.772610115},{"$f":"SUM(J12:J15)","v":0},null,-3.1001659850554808E-2,3.7647595291806946E-2,-1,{"$f":"IFERROR(((J16/G16)^(1/3)-1),0)","v":-1}]
[null,null,null,null,null,"Composition of revenue (% of Total)"]
[null,null,null,null,null,"Tax revenue",{"$f":"IFERROR(G12/G$16,0)","v":0},0,0,0]
[null,null,null,null,null,"Sale of goods and services other than capital assets",2.7850317246980002E-2,2.9570831720099524E-2,2.9320692612911464E-2,0]
[null,null,null,null,null,"Other non-tax revenue",5.5652987082039952E-3,6.2143070351888194E-3,6.4799265594434946E-3,0]
[null,null,null,null,null,"Transfers received",0.96658438404481606,0.96421486124471167,0.964199380827645,0]
[]
[null,null,null,null,null,"Expenses",{"$f":"MyYear0","v":"2025/26"},{"$f":"MyYearP1","v":"2026/27"},{"$f":"MyYearP2","v":"2027/28"},{"$f":"MyYearP3","v":"2028/29"},"Trend",{"$f":"MyYearP1","v":"2026/27"},{"$f":"MyYearP2","v":"2027/28"},{"$f":"MyYearP3","v":"2028/29"},"Ave Ann"]
[null,null,null,null,null,"Compensation of employees",{"$f":"ENESummary!J48","v":10339690.602510724},{"$f":"ENESummary!M48","v":10333657.588951608},{"$f":"ENESummary!N48","v":10800172.791032134},{"$f":"ENESummary!O48","v":0},null,{"$f":"IFERROR(H24/G24-1,0)","v":-5.8348105287131524E-4},{"$f":"IFERROR(I24/H24-1,0)","v":4.5145215821676521E-2},-1,{"$f":"IFERROR(((J24/G24)^(1/3)-1),0)","v":-1}]
[null,null,null,null,null,"Goods and services",{"$f":"ENESummary!J49","v":4612829.1400200333},{"$f":"ENESummary!M49","v":4623762.7150747618},{"$f":"ENESummary!N49","v":5005775.1792914579},{"$f":"ENESummary!O49","v":0},null,2.3702536388938711E-3,8.2619391988094204E-2,-1,-1]
[null,null,null,null,null,"Depreciation",{"$f":"ENESummary!J50","v":611834.10536398564},{"$f":"ENESummary!M50","v":549506.18781142251},{"$f":"ENESummary!N50","v":478340.21539785026},{"$f":"ENESummary!O50","v":0},null,-0.10187061657094731,-0.12950895548057906,-1,-1]
[null,null,null,null,null,"Interest, dividends and rent on land",{"$f":"ENESummary!J51","v":227.400475269},{"$f":"ENESummary!M51","v":237.74719689373953},{"$f":"ENESummary!N51","v":248.49337019333655},{"$f":"ENESummary!O51","v":0},null,4.5500000000000096E-2,4.5199999999999907E-2,-1,-1]
[null,null,null,null,null,"Transfers and subsidies",{"$f":"ENESummary!J52","v":0},{"$f":"ENESummary!M52","v":0},{"$f":"ENESummary!N52","v":0},{"$f":"ENESummary!O52","v":0},null,{"$f":"IFERROR(H28/G28-1,0)","v":0},{"$f":"IFERROR(I28/H28-1,0)","v":0},{"$f":"IFERROR(J28/I28-1,0)","v":0},{"$f":"IFERROR(((J28/G28)^(1/3)-1),0)","v":0}]
[null,null,null,null,null,"Total",{"$f":"SUM(G24:G28)","v":15564581.248370012},{"$f":"SUM(H24:H28)","v":15507164.239034686},{"$f":"SUM(I24:I28)","v":16284536.679091636},{"$f":"SUM(J24:J28)","v":0},null,{"$f":"IFERROR(H29/G29-1,0)","v":-3.6889530414664362E-3},5.012989016393754E-2,-1,-1]
[null,null,null,null,null,"Composition of expenses (% of Total)"]
[null,null,null,null,null,"Compensation of employees",{"$f":"IFERROR(G24/G$29,0)","v":0.66430894847193778},{"$f":"IFERROR(H24/H$29,0)","v":0.66637957976479611},{"$f":"IFERROR(I24/I$29,0)","v":0.66321646135004286},{"$f":"IFERROR(J24/J$29,0)","v":0}]
[null,null,null,null,null,"Goods and services",{"$f":"IFERROR(G25/G$29,0)","v":0.2963670571287042},{"$f":"IFERROR(H25/H$29,0)","v":0.2981694553434735},0.3073943875675979,0]
[null,null,null,null,null,"Depreciation",3.9309384274508474E-2,{"$f":"IFERROR(H26/H$29,0)","v":3.5435633449228822E-2},2.9373891614123127E-2,0]
[null,null,null,null,null,"Interest, dividends and rent on land",1.4610124849508194E-5,1.5331442501607191E-5,1.5259468236046718E-5,0]
[null,null,null,null,null,"Transfers and subsidies",0,0,0,0]
[]
[null,null,null,null,null,"Consolidation"]
[null,null,null,null,null,"Receipts",{"$f":"MyYear0","v":"2025/26"},{"$f":"MyYearP1","v":"2026/27"},{"$f":"MyYearP2","v":"2027/28"},{"$f":"MyYearP3","v":"2028/29"},"Trend",{"$f":"MyYearP1","v":"2026/27"},{"$f":"MyYearP2","v":"2027/28"},{"$f":"MyYearP3","v":"2028/29"},"Ave Ann"]
[null,null,null,null,null,"Tax receipts",{"$f":"Consolidation!K14","v":0},{"$f":"Consolidation!L14","v":0},{"$f":"Consolidation!M14","v":0},{"$f":"Consolidation!N14","v":0},null,{"$f":"IFERROR(H39/G39-1,0)","v":0},{"$f":"IFERROR(I39/H39-1,0)","v":0},{"$f":"IFERROR(J39/I39-1,0)","v":0},{"$f":"IFERROR(((J39/G39)^(1/3)-1),0)","v":0}]
[null,null,null,null,null,"Sales of goods and services other than capital assets",{"$f":"Consolidation!K15","v":443999.80611615477},{"$f":"Consolidation!L15","v":456813.79119011993},{"$f":"Consolidation!M15","v":470002.07563411363},{"$f":"Consolidation!N15","v":0},null,2.8860339345762931E-2,2.887015387524694E-2,-1,-1]
[null,null,null,null,null,"Transfers received",{"$f":"Consolidation!K21","v":15409637},{"$f":"Consolidation!L21","v":14895308},{"$f":"Consolidation!M21","v":15455832.380799999},{"$f":"Consolidation!N21","v":0},null,-3.3377100317158681E-2,3.7630935916195929E-2,-1,-1]
[null,null,null,null,null,"Fines, penalties and forfeits",{"$f":"Consolidation!K31","v":0},{"$f":"Consolidation!L31","v":0},{"$f":"Consolidation!M31","v":0},{"$f":"Consolidation!N31","v":0},null,0,0,0,0]
[null,null,null,null,null,"Interest and rent on land",{"$f":"Consolidation!K32","v":88724.000000000233},{"$f":"Consolidation!L32","v":95999.368000004441},{"$f":"Consolidation!M32","v":103871.31617600098},{"$f":"Consolidation!N32","v":0},null,8.2000000000047146E-2,{"$f":"IFERROR(I43/H43-1,0)","v":8.1999999999960105E-2},-1,{"$f":"IFERROR(((J43/G43)^(1/3)-1),0)","v":-1}]
[null,null,null,null,null,"Sales of capital assets",{"$f":"Consolidation!K36","v":0},{"$f":"Consolidation!L36","v":0},{"$f":"Consolidation!M36","v":0},{"$f":"Consolidation!N36","v":0},null,0,0,0,{"$f":"IFERROR(((J44/G44)^(1/3)-1),0)","v":0}]
[null,null,null,null,null,"Financial transactions in assets and liabilities",{"$f":"Consolidation!K38","v":0},{"$f":"Consolidation!L38","v":0},{"$f":"Consolidation!M38","v":0},{"$f":"Consolidation!N38","v":0},null,0,0,0,{"$f":"IFERROR(((J45/G45)^(1/3)-1),0)","v":0}]
[null,null,null,null,null,"Total",{"$f":"SUM(G39:G45)","v":15942360.806116154},{"$f":"SUM(H39:H45)","v":15448121.159190124},{"$f":"SUM(I39:I45)","v":16029705.772610115},{"$f":"SUM(J39:J45)","v":0},null,-3.1001659850554808E-2,3.7647595291806946E-2,-1,-1]
[null,null,null,null,null,"Composition of revenue (% of Total)"]
[null,null,null,null,null,"Tax receipts",{"$f":"IFERROR(G39/G$46,0)","v":0},{"$f":"IFERROR(H39/H$46,0)","v":0},{"$f":"IFERROR(I39/I$46,0)","v":0},{"$f":"IFERROR(J39/J$46,0)","v":0}]
[null,null,null,null,null,"Sales of goods and services other than capital assets",{"$f":"IFERROR(G40/G$46,0)","v":2.7850317246980002E-2},{"$f":"IFERROR(H40/H$46,0)","v":2.9570831720099524E-2},2.9320692612911464E-2,0]
[null,null,null,null,null,"Transfers received",0.96658438404481606,0.96421486124471167,0.964199380827645,0]
[null,null,null,null,null,"Fines, penalties and forfeits",0,{"$f":"IFERROR(H42/H$46,0)","v":0},0,0]
[null,null,null,null,null,"Interest and rent on land",5.5652987082039952E-3,6.2143070351888194E-3,6.4799265594434946E-3,0]
[null,null,null,null,null,"Sales of capital assets",0,0,0,0]
[null,null,null,null,null,"Financial transactions in assets and liabilities",0,0,0,0]
[]
[null,null,null,null,null,"Expenditure",{"$f":"MyYear0","v":"2025/26"},{"$f":"MyYearP1","v":"2026/27"},{"$f":"MyYearP2","v":"2027/28"},{"$f":"MyYearP3","v":"2028/29"},"Trend",{"$f":"MyYearP1","v":"2026/27"},{"$f":"MyYearP2","v":"2027/28"},{"$f":"MyYearP3","v":"2028/29"},"Ave Ann"]
[null,null,null,null,null,"Compensation of employees",{"$f":"Consolidation!K45","v":10339690.602510722},{"$f":"Consolidation!L45","v":10333657.588951603},{"$f":"Consolidation!M45","v":10800172.791032141},{"$f":"Consolidation!N45","v":0},null,{"$f":"IFERROR(H57/G57-1,0)","v":-5.8348105287164831E-4},{"$f":"IFERROR(I57/H57-1,0)","v":4.5145215821677853E-2},{"$f":"IFERROR(J57/I57-1,0)","v":-1},{"$f":"IFERROR(((J57/G57)^(1/3)-1),0)","v":-1}]
[null,null,null,null,null,"Goods and services",{"$f":"Consolidation!K48","v":4462389.7414249722},{"$f":"Consolidation!L48","v":4628321.7450027922},{"$f":"Consolidation!M48","v":4934599.6707023643},{"$f":"Consolidation!N48","v":0},null,3.7184561007177486E-2,6.6174726515126236E-2,-1,-1]
[null,null,null,null,null,"Interest and rent on land",{"$f":"Consolidation!K96","v":227.40047526900003},{"$f":"Consolidation!L96","v":237.74719689373953},{"$f":"Consolidation!M96","v":248.49337019333655},{"$f":"Consolidation!N96","v":0},null,4.5500000000000096E-2,4.5199999999999907E-2,-1,-1]
[null,null,null,null,null,"Transfers and subsidies",{"$f":"Consolidation!K99","v":0},{"$f":"Consolidation!L99","v":0},{"$f":"Consolidation!M99","v":0},{"$f":"Consolidation!N99","v":0},null,0,0,0,0]
[null,null,null,null,null,"Payments for capital assets",{"$f":"Consolidation!K119","v":989614.64978879225},{"$f":"Consolidation!L119","v":490463.23638710083},{"$f":"Consolidation!M119","v":223510.47849298321},{"$f":"Consolidation!N119","v":0},null,-0.50438967683857794,-0.54428698848168855,-1,-1]
[null,null,null,null,null,"Payments for financial assets",{"$f":"Consolidation!K130","v":0},{"$f":"Consolidation!L130","v":0},{"$f":"Consolidation!M130","v":0},{"$f":"Consolidation!N130","v":0},null,0,{"$f":"IFERROR(I62/H62-1,0)","v":0},{"$f":"IFERROR(J62/I62-1,0)","v":0},{"$f":"IFERROR(((J62/G62)^(1/3)-1),0)","v":0}]
[null,null,null,null,null,"Total",{"$f":"SUM(G57:G62)","v":15791922.394199755},{"$f":"SUM(H57:H62)","v":15452680.317538388},{"$f":"SUM(I57:I62)","v":15958531.433597682},{"$f":"SUM(J57:J62)","v":0},null,-2.1481999986649347E-2,3.2735493497860535E-2,-1,-1]
[null,null,null,null,null,"Composition of spending (% of Total)"]
[null,null,null,null,null,"Compensation of employees",{"$f":"IFERROR(G57/G$63,0)","v":0.65474553030405003},0.66872913802682965,0.67676482864171394,0]
[null,null,null,null,null,"Goods and services",0.28257419394765843,0.29951578948732721,0.30921389547872147,0]
[null,null,null,null,null,"Interest and rent on land",1.4399796908356286E-5,{"$f":"IFERROR(H59/H$63,0)","v":1.5385498956055064E-5},1.5571192827316211E-5,0]
[null,null,null,null,null,"Transfers and subsidies",0,0,0,0]
[null,null,null,null,null,"Payments for capital assets",6.2665875951383204E-2,3.1739686986887179E-2,1.4005704686737277E-2,0]
[null,null,null,null,null,"Payments for financial assets",0,0,0,0]
[]
[null,null,null,null,null,"Personnel"]
[null,null,null,null,null,null,"2024/25 Number","2025/26 Number","2026/27 Number","2027/28 Number","2028/29 Number","2024/25 Cost","2025/26 Cost","2026/27 Cost","2027/28 Cost","2028/29 Cost","Trend",{"$f":"MyYearP1","v":"2026/27"},{"$f":"MyYearP2","v":"2027/28"},{"$f":"MyYearP3","v":"2028/29"},"Ave Ann"]
[null,null,null,null,null,{"$f":"PersonnelPub!F13","v":"Salary level"},{"$f":"PersonnelPub!I13","v":12823},{"$f":"PersonnelPub!L13","v":16319},{"$f":"PersonnelPub!O13","v":14320},{"$f":"PersonnelPub!R13","v":14446},{"$f":"PersonnelPub!U13","v":0},{"$f":"PersonnelPub!J13","v":9643694.5542600006},{"$f":"PersonnelPub!M13","v":10339689.839833217},{"$f":"PersonnelPub!P13","v":10333656.880649205},{"$f":"PersonnelPub!S13","v":10800173.380714471},{"$f":"PersonnelPub!V13","v":0},null,{"$f":"IFERROR(M74/L74-1,0)","v":7.2171021350501796E-2},-5.8347583703810546E-4,{"$f":"IFERROR(P74/O74-1,0)","v":-1},{"$f":"IFERROR(P74/L74-1,0)","v":-1}]
[null,null,null,null,null,{"$f":"PersonnelPub!F14","v":"1 – 6"},{"$f":"PersonnelPub!I14","v":852},{"$f":"PersonnelPub!L14","v":3768},{"$f":"PersonnelPub!O14","v":1925},{"$f":"PersonnelPub!R14","v":2032},{"$f":"PersonnelPub!U14","v":0},{"$f":"PersonnelPub!J14","v":854619.51948974095},{"$f":"PersonnelPub!M14","v":1255269.2216015081},{"$f":"PersonnelPub!P14","v":984819.4925855383},{"$f":"PersonnelPub!S14","v":791486.79753607395},{"$f":"PersonnelPub!V14","v":0},null,0.4688047639620716,-0.21545157354445632,-1,-1]
[null,null,null,null,null,{"$f":"PersonnelPub!F15","v":"7 – 10"},{"$f":"PersonnelPub!I15","v":7437},{"$f":"PersonnelPub!L15","v":7724},{"$f":"PersonnelPub!O15","v":7571},{"$f":"PersonnelPub!R15","v":7683},{"$f":"PersonnelPub!U15","v":0},{"$f":"PersonnelPub!J15","v":3671123.9302343498},{"$f":"PersonnelPub!M15","v":3611237.7350084498},{"$f":"PersonnelPub!P15","v":3681919.0322468672},{"$f":"PersonnelPub!S15","v":4203130.3607166428},{"$f":"PersonnelPub!V15","v":0},null,-1.6312768613637396E-2,1.9572595997547015E-2,-1,-1]
[null,null,null,null,null,{"$f":"PersonnelPub!F16","v":"11 – 12"},{"$f":"PersonnelPub!I16","v":2665},{"$f":"PersonnelPub!L16","v":729},{"$f":"PersonnelPub!O16","v":726},{"$f":"PersonnelPub!R16","v":2893},{"$f":"PersonnelPub!U16","v":0},{"$f":"PersonnelPub!J16","v":2401595.3666972569},{"$f":"PersonnelPub!M16","v":557692.9379467601},{"$f":"PersonnelPub!P16","v":576885.84196997422},{"$f":"PersonnelPub!S16","v":2809321.1641926831},{"$f":"PersonnelPub!V16","v":0},null,-0.76778230601197595,3.4414823493867486E-2,-1,-1]
[null,null,null,null,null,{"$f":"PersonnelPub!F17","v":"13 – 16"},{"$f":"PersonnelPub!I17","v":1829},{"$f":"PersonnelPub!L17","v":3966},{"$f":"PersonnelPub!O17","v":3966},{"$f":"PersonnelPub!R17","v":1797},{"$f":"PersonnelPub!U17","v":0},{"$f":"PersonnelPub!J17","v":2575658.8896045825},{"$f":"PersonnelPub!M17","v":4547392.9036618266},{"$f":"PersonnelPub!P17","v":4708864.8232941115},{"$f":"PersonnelPub!S17","v":2841121.2967498051},{"$f":"PersonnelPub!V17","v":0},null,0.76552606481207874,3.5508680039997964E-2,-1,-1]
[null,null,null,null,null,{"$f":"PersonnelPub!F18","v":"17 – 22"},{"$f":"PersonnelPub!I18","v":40},{"$f":"PersonnelPub!L18","v":132},{"$f":"PersonnelPub!O18","v":132},{"$f":"PersonnelPub!R18","v":41},{"$f":"PersonnelPub!U18","v":0},{"$f":"PersonnelPub!J18","v":140696.84823406785},{"$f":"PersonnelPub!M18","v":368097.04161467147},{"$f":"PersonnelPub!P18","v":381167.69055271457},{"$f":"PersonnelPub!S18","v":155113.76151926685},{"$f":"PersonnelPub!V18","v":0},null,1.616242270063458,3.5508704119729506E-2,-1,-1]
[null,null,null,null,null,"Composition of COE (% of Total)"]
[null,null,null,null,null,"1 – 6",{"$f":"IFERROR(G75/G$74,0)","v":6.6443110036652889E-2},0.23089650101109135,0.13442737430167598,0.14066177488578152,{"$f":"IFERROR(K75/K$74,0)","v":0},{"$f":"IFERROR(L75/L$74,0)","v":8.8619513473933265E-2},{"$f":"IFERROR(M75/M$74,0)","v":0.1214029860707849},{"$f":"IFERROR(N75/N$74,0)","v":9.5302128177848652E-2},7.3284638091959425E-2,0]
[null,null,null,null,null,"7 – 10",0.57997348514388214,0.4733133157668975,{"$f":"IFERROR(I76/I$74,0)","v":0.52870111731843572},0.53184272462965532,0,{"$f":"IFERROR(L76/L$74,0)","v":0.38067608939487507},0.34925977383734563,0.3563035888235872,0.38917248941781252,0]
[null,null,null,null,null,"11 – 12",0.20782968104187788,{"$f":"IFERROR(H77/H$74,0)","v":4.4671854893069428E-2},5.0698324022346371E-2,0.20026304859476671,0,0.24903270766040361,5.3937105134263474E-2,5.58259141592218E-2,0.26011815414085848,0]
[null,null,null,null,null,"13 – 16",0.1426343289401856,0.24302959740180158,0.27695530726256984,0.12439429599889243,0,0.26708217220202318,0.43979974004086547,0.45568232791935703,0.26306256359023883,0]
[null,null,null,null,null,"17 – 22",3.1193948374015441E-3,8.088730927140143E-3,9.2178770949720677E-3,2.8381558909040564E-3,0,1.4589517268764646E-2,3.5600394916740462E-2,3.6886040919985333E-2,1.4362154759130868E-2,0]
[]
[null,null,null,null,null,"Infrastructure"]
[null,null,null,null,null,null,{"$f":"MyYear0","v":"2025/26"},{"$f":"MyYearP1","v":"2026/27"},{"$f":"MyYearP2","v":"2027/28"},{"$f":"MyYearP3","v":"2028/29"},"Trend",{"$f":"MyYearP1","v":"2026/27"},{"$f":"MyYearP2","v":"2027/28"},{"$f":"MyYearP3","v":"2028/29"},"Ave Ann"]
[null,null,null,null,null,"New infrastructure assets",{"$f":"'InfraS Summary'!$M$11","v":0},{"$f":"'InfraS Summary'!$P$11","v":0},{"$f":"'InfraS Summary'!$S$11","v":0},{"$f":"'InfraS Summary'!$U$11","v":0},null,{"$f":"IFERROR(H89/G89-1,0)","v":0},0,0,{"$f":"IFERROR(((J89/G89)^(1/3)-1),0)","v":0}]
[null,null,null,null,null,"Upgrading and additions",{"$f":"'InfraS Summary'!M13","v":201285},{"$f":"'InfraS Summary'!P13","v":58884},{"$f":"'InfraS Summary'!S13","v":37983},{"$f":"'InfraS Summary'!U13","v":0},null,-0.70745957224830458,-0.35495210923170983,-1,-1]
[null,null,null,null,null,"Rehabilitation,renovations and refurbishment",{"$f":"'InfraS Summary'!M14","v":0},{"$f":"'InfraS Summary'!P14","v":0},{"$f":"'InfraS Summary'!S14","v":0},{"$f":"'InfraS Summary'!U14","v":0},null,0,0,0,0]
[null,null,null,null,null,"Maintenance and repair",{"$f":"'InfraS Summary'!M15","v":0},{"$f":"'InfraS Summary'!P15","v":0},{"$f":"'InfraS Summary'!S15","v":0},{"$f":"'InfraS Summary'!U15","v":0},null,0,0,0,0]
[null,null,null,null,null,"Transfers : current",{"$f":"'InfraS Summary'!M17","v":0},{"$f":"'InfraS Summary'!P17","v":0},{"$f":"'InfraS Summary'!S17","v":0},{"$f":"'InfraS Summary'!U17","v":0},null,0,0,0,0]
[null,null,null,null,null,"Transfers : capital",{"$f":"'InfraS Summary'!M18","v":0},{"$f":"'InfraS Summary'!P18","v":0},{"$f":"'InfraS Summary'!S18","v":0},{"$f":"'InfraS Summary'!U18","v":0},null,0,0,0,0]
[null,null,null,null,null,"Total",{"$f":"SUM(G89:G94)","v":201285},{"$f":"SUM(H89:H94)","v":58884},{"$f":"SUM(I89:I94)","v":37983},{"$f":"SUM(J89:J94)","v":0},null,-0.70745957224830458,-0.35495210923170983,-1,-1]
[null,null,null,null,null,"Composition of spending (% of Total)"]
[null,null,null,null,null,"New infrastructure assets",{"$f":"IFERROR(G89/G$95,0)","v":0},0,0,0]
[null,null,null,null,null,"Upgrading and additions",1,1,1,0]
[null,null,null,null,null,"Rehabilitation,renovations and refurbishment",0,0,0,0]
[null,null,null,null,null,"Maintenance and repair",0,{"$f":"IFERROR(H92/H$95,0)","v":0},0,0]
[null,null,null,null,null,"Transfers : current",0,0,0,0]
[null,null,null,null,null,"Transfers : capital",0,0,0,0]

{"sheet":"PersonnelPub","index":34,"n_rows":48,"n_cols":25,"rows_kept":48,"cut":false,"hidden":false,"merged":[[9,24,10,24],[9,23,10,23],[9,11,9,13],[9,7,11,7],[7,5,7,24],[8,23,8,24],[9,6,11,6],[8,6,8,7]]}
[null,null,null,null,null,{"$f":"Settings!$O$2","v":"PE126"}]
[]
[]
[]
[]
[null,null,null,null,null,"PE No",{"$f":"Settings!$O$2","v":"PE126"}]
[null,null,null,null,null,"Entity name",{"$f":"Settings!$E$2","v":"South African Revenue Service"}]
[]
[null,null,null,null,null,null,"Post status estimated for 31 March 2025",null," ",null,null,"  Number and cost1 of personnel posts filled/planned for on funded establishment",null,null,null,null,null,null,null,null,null,null,null,"Number"]
[null,null,null,null,null,null,"Number of posts on approved establishment","Number \nof \nfunded \nposts"," "," Actual",null,"Revised estimates",null,null,null,null,"Medium-term expenditure estimate",null,null,null,null,null,null,"Average growth \nrate of person-\nnel posts \n(%)","Average:\nsalary\nlevel/\nTotal\n(%)"]
[null,null,null,null,null,null,null,null,null,{"$f":"MyYearM1","v":"2024/25"},null,null,{"$f":"MyYear0","v":"2025/26"},null,null,{"$f":"MyYearP1","v":"2026/27"},null,null,{"$f":"MyYearP2","v":"2027/28"},null,null,{"$f":"MyYearP3","v":"2028/29"}]
[null,null,null,null,null,"Salary level",null,null,"Number","Cost","Unit cost","Number","Cost","Unit cost","Number","Cost","Unit cost","Number","Cost","Unit cost","Number","Cost","Unit cost",{"$f":"MyYear0&\" - \"&MyYearP3","v":"2025/26 - 2028/29"}]
[null,null,null,null,null,"Salary level",{"$f":"SUM(G14:G18)","v":16319},{"$f":"SUM(H14:H18)","v":16319},{"$f":"SUM(I14:I18)","v":12823},{"$f":"SUM(J14:J18)","v":9643694.5542600006},{"$f":"IFERROR(J13/I13,0)","v":752.06227515090075},{"$f":"SUM(L14:L18)","v":16319},10339689.839833217,{"$f":"IFERROR(M13/L13,0)","v":633.59824988254286},14320,10333656.880649205,{"$f":"IFERROR(P13/O13,0)","v":721.62408384421826},14446,10800173.380714471,{"$f":"IFERROR(S13/R13,0)","v":747.62379764048671},0,0,{"$f":"IFERROR(V13/U13,0)","v":0},{"$f":"IFERROR((V13/M13)^(1/3)-1,0)","v":-1},0]
[null,null,null,null,null,"1 – 6",{"$f":"SUM(G20:G25)","v":3768},{"$f":"SUM(H20:H25)","v":3768},{"$f":"SUM(I20:I25)","v":852},{"$f":"IFERROR(SUM(J20:J25)+SUM(J20:J25)/SUM(J20:J41)*J43,0)","v":854619.51948974095},{"$f":"IFERROR(J14/I14,0)","v":1003.0745533917147},{"$f":"SUM(L20:L25)","v":3768},{"$f":"IFERROR(SUM(M20:M25)+SUM(M20:M25)/SUM(M20:M41)*M43,0)","v":1255269.2216015081},{"$f":"IFERROR(M14/L14,0)","v":333.13939002163164},{"$f":"SUM(O20:O25)","v":1925},{"$f":"IFERROR(SUM(P20:P25)+SUM(P20:P25)/SUM(P20:P41)*P43,0)","v":984819.4925855383},{"$f":"IFERROR(P14/O14,0)","v":511.59454160287703},{"$f":"SUM(R20:R25)","v":2032},{"$f":"IFERROR(SUM(S20:S25)+SUM(S20:S25)/SUM(S20:S41)*S43,0)","v":791486.79753607395},{"$f":"IFERROR(S14/R14,0)","v":389.51121925987889},{"$f":"SUM(U20:U25)","v":0},{"$f":"IFERROR(SUM(V20:V25)+SUM(V20:V25)/SUM(V20:V41)*V43,0)","v":0},{"$f":"IFERROR(V14/U14,0)","v":0},-1,{"$f":"IFERROR(AVERAGE(L14/$L$44,O14/$O$44,R14/$R$44,U14/$U$44),0)","v":0}]
[null,null,null,null,null,"7 – 10",{"$f":"SUM(G26:G29)","v":7724},{"$f":"SUM(H26:H29)","v":7724},{"$f":"SUM(I26:I29)","v":7437},{"$f":"IFERROR(SUM(J26:J29)+SUM(J26:J29)/SUM(J20:J41)*J43,0)","v":3671123.9302343498},493.62968000999729,{"$f":"SUM(L26:L29)","v":7724},{"$f":"IFERROR(SUM(M26:M29)+SUM(M26:M29)/SUM(M20:M41)*M43,0)","v":3611237.7350084498},{"$f":"IFERROR(M15/L15,0)","v":467.53466274060719},{"$f":"SUM(O26:O29)","v":7571},{"$f":"IFERROR(SUM(P26:P29)+SUM(P26:P29)/SUM(P20:P41)*P43,0)","v":3681919.0322468672},486.31872041300585,{"$f":"SUM(R26:R29)","v":7683},{"$f":"IFERROR(SUM(S26:S29)+SUM(S26:S29)/SUM(S20:S41)*S43,0)","v":4203130.3607166428},547.06890026248118,{"$f":"SUM(U26:U29)","v":0},{"$f":"IFERROR(SUM(V26:V29)+SUM(V26:V29)/SUM(V20:V41)*V43,0)","v":0},{"$f":"IFERROR(V15/U15,0)","v":0},-1,{"$f":"IFERROR(AVERAGE(L15/$L$44,O15/$O$44,R15/$R$44,U15/$U$44),0)","v":0}]
[null,null,null,null,null,"11 – 12",{"$f":"SUM(G30:G31)","v":729},{"$f":"SUM(H30:H31)","v":729},{"$f":"SUM(I30:I31)","v":2665},{"$f":"IFERROR(SUM(J30:J31)+SUM(J30:J31)/SUM(J20:J41)*J43,0)","v":2401595.3666972569},901.16148844174745,{"$f":"SUM(L30:L31)","v":729},{"$f":"IFERROR(SUM(M30:M31)+SUM(M30:M31)/SUM(M20:M41)*M43,0)","v":557692.9379467601},{"$f":"IFERROR(M16/L16,0)","v":765.01088881585747},{"$f":"SUM(O30:O31)","v":726},{"$f":"IFERROR(SUM(P30:P31)+SUM(P30:P31)/SUM(P20:P41)*P43,0)","v":576885.84196997422},794.60859775478548,{"$f":"SUM(R30:R31)","v":2893},{"$f":"IFERROR(SUM(S30:S31)+SUM(S30:S31)/SUM(S20:S41)*S43,0)","v":2809321.1641926831},971.075411058653,{"$f":"SUM(U30:U31)","v":0},{"$f":"IFERROR(SUM(V30:V31)+SUM(V30:V31)/SUM(V20:V41)*V43,0)","v":0},0,-1,{"$f":"IFERROR(AVERAGE(L16/$L$44,O16/$O$44,R16/$R$44,U16/$U$44),0)","v":0}]
[null,null,null,null,null,"13 – 16",{"$f":"SUM(G32:G35)","v":3966},{"$f":"SUM(H32:H35)","v":3966},{"$f":"SUM(I32:I35)","v":1829},{"$f":"IFERROR(SUM(J32:J35)+SUM(J32:J35)/SUM(J20:J41)*J43,0)","v":2575658.8896045825},1408.2334005492523,{"$f":"SUM(L32:L35)","v":3966},{"$f":"IFERROR(SUM(M32:M35)+SUM(M32:M35)/SUM(M20:M41)*M43,0)","v":4547392.9036618266},1146.594277272271,{"$f":"SUM(O32:O35)","v":3966},{"$f":"IFERROR(SUM(P32:P35)+SUM(P32:P35)/SUM(P20:P41)*P43,0)","v":4708864.8232941115},1187.3083265996247,{"$f":"SUM(R32:R35)","v":1797},{"$f":"IFERROR(SUM(S32:S35)+SUM(S32:S35)/SUM(S20:S41)*S43,0)","v":2841121.2967498051},1581.0357800499751,{"$f":"SUM(U32:U35)","v":0},{"$f":"IFERROR(SUM(V32:V35)+SUM(V32:V35)/SUM(V20:V41)*V43,0)","v":0},0,-1,{"$f":"IFERROR(AVERAGE(L17/$L$44,O17/$O$44,R17/$R$44,U17/$U$44),0)","v":0}]
[null,null,null,null,null,"17 – 22",{"$f":"SUM(G36:G41)","v":132},{"$f":"SUM(H36:H41)","v":132},{"$f":"SUM(I36:I41)","v":40},{"$f":"IFERROR(SUM(J36:J41)+SUM(J36:J41)/SUM(J20:J41)*J43,0)","v":140696.84823406785},3517.421205851696,{"$f":"SUM(L36:L41)","v":132},{"$f":"IFERROR(SUM(M36:M41)+SUM(M36:M41)/SUM(M20:M41)*M43,0)","v":368097.04161467147},{"$f":"IFERROR(M18/L18,0)","v":2788.6139516262992},{"$f":"SUM(O36:O41)","v":132},{"$f":"IFERROR(SUM(P36:P41)+SUM(P36:P41)/SUM(P20:P41)*P43,0)","v":381167.69055271457},{"$f":"IFERROR(P18/O18,0)","v":2887.6340193387468},{"$f":"SUM(R36:R41)","v":41},{"$f":"IFERROR(SUM(S36:S41)+SUM(S36:S41)/SUM(S20:S41)*S43,0)","v":155113.76151926685},{"$f":"IFERROR(S18/R18,0)","v":3783.2624760796793},{"$f":"SUM(U36:U41)","v":0},{"$f":"IFERROR(SUM(V36:V41)+SUM(V36:V41)/SUM(V20:V41)*V43,0)","v":0},{"$f":"IFERROR(V18/U18,0)","v":0},-1,{"$f":"IFERROR(AVERAGE(L18/$L$44,O18/$O$44,R18/$R$44,U18/$U$44),0)","v":0}]
[null,null,null,null,null,"Detail"]
[null,null,null,null,null,1,{"$f":"SUMIFS(Personnel!N$12:N$1499,Personnel!$B$12:$B$1499,PersonnelPub!$F20,Personnel!$J$12:$J$1499,\"Guaranteed package\")","v":0},{"$f":"SUMIFS(Personnel!O$12:O$1499,Personnel!$B$12:$B$1499,PersonnelPub!$F20,Personnel!$J$12:$J$1499,\"Guaranteed package\")","v":0},{"$f":"SUMIFS(Personnel!K$12:K$1499,Personnel!$B$12:$B$1499,PersonnelPub!$F20,Personnel!$J$12:$J$1499,\"Guaranteed package\")","v":643},{"$f":"SUMIF(Personnel!$B$12:$B$1499,PersonnelPub!$F20,Personnel!L$12:L$1499)","v":76288.927960854839},118.64530009464205,{"$f":"SUMIFS(Personnel!P$12:P$1499,Personnel!$B$12:$B$1499,PersonnelPub!$F20,Personnel!$J$12:$J$1499,\"Guaranteed package\")","v":0},{"$f":"SUMIF(Personnel!$B$12:$B$1499,PersonnelPub!$F20,Personnel!Q$12:Q$1499)","v":0},0,{"$f":"SUMIFS(Personnel!S$12:S$1499,Personnel!$B$12:$B$1499,PersonnelPub!$F20,Personnel!$J$12:$J$1499,\"Guaranteed package\")","v":0},{"$f":"SUMIF(Personnel!$B$12:$B$1499,PersonnelPub!$F20,Personnel!T$12:T$1499)","v":0},0,{"$f":"SUMIFS(Personnel!V$12:V$1499,Personnel!$B$12:$B$1499,PersonnelPub!$F20,Personnel!$J$12:$J$1499,\"Guaranteed package\")","v":622},{"$f":"SUMIF(Personnel!$B$12:$B$1499,PersonnelPub!$F20,Personnel!W$12:W$1499)","v":86635.909007043199},139.28602734251319,{"$f":"SUMIFS(Personnel!Y$12:Y$1499,Personnel!$B$12:$B$1499,PersonnelPub!$F20,Personnel!$J$12:$J$1499,\"Guaranteed package\")","v":0},{"$f":"SUMIF(Personnel!$B$12:$B$1499,PersonnelPub!$F20,Personnel!Z$12:Z$1499)","v":0},0,{"$f":"IFERROR((V20/M20)^(1/3)-1,0)","v":0},{"$f":"IFERROR(AVERAGE(M20/$M$44,P20/$P$44,S20/$S$44,V20/$V$44),0)","v":0}]
[null,null,null,null,null,2,{"$f":"SUMIFS(Personnel!N$12:N$1499,Personnel!$B$12:$B$1499,PersonnelPub!$F21,Personnel!$J$12:$J$1499,\"Guaranteed package\")","v":0},{"$f":"SUMIFS(Personnel!O$12:O$1499,Personnel!$B$12:$B$1499,PersonnelPub!$F21,Personnel!$J$12:$J$1499,\"Guaranteed package\")","v":0},{"$f":"SUMIFS(Personnel!K$12:K$1499,Personnel!$B$12:$B$1499,PersonnelPub!$F21,Personnel!$J$12:$J$1499,\"Guaranteed package\")","v":0},{"$f":"SUMIF(Personnel!$B$12:$B$1499,PersonnelPub!$F21,Personnel!L$12:L$1499)","v":0},0,{"$f":"SUMIFS(Personnel!P$12:P$1499,Personnel!$B$12:$B$1499,PersonnelPub!$F21,Personnel!$J$12:$J$1499,\"Guaranteed package\")","v":0},{"$f":"SUMIF(Personnel!$B$12:$B$1499,PersonnelPub!$F21,Personnel!Q$12:Q$1499)","v":0},0,{"$f":"SUMIFS(Personnel!S$12:S$1499,Personnel!$B$12:$B$1499,PersonnelPub!$F21,Personnel!$J$12:$J$1499,\"Guaranteed package\")","v":0},{"$f":"SUMIF(Personnel!$B$12:$B$1499,PersonnelPub!$F21,Personnel!T$12:T$1499)","v":0},0,{"$f":"SUMIFS(Personnel!V$12:V$1499,Personnel!$B$12:$B$1499,PersonnelPub!$F21,Personnel!$J$12:$J$1499,\"Guaranteed package\")","v":0},{"$f":"SUMIF(Personnel!$B$12:$B$1499,PersonnelPub!$F21,Personnel!W$12:W$1499)","v":0},0,{"$f":"SUMIFS(Personnel!Y$12:Y$1499,Personnel!$B$12:$B$1499,PersonnelPub!$F21,Personnel!$J$12:$J$1499,\"Guaranteed package\")","v":0},{"$f":"SUMIF(Personnel!$B$12:$B$1499,PersonnelPub!$F21,Personnel!Z$12:Z$1499)","v":0},0,{"$f":"IFERROR((V21/M21)^(1/3)-1,0)","v":0},0]
[null,null,null,null,null,3,{"$f":"SUMIFS(Personnel!N$12:N$1499,Personnel!$B$12:$B$1499,PersonnelPub!$F22,Personnel!$J$12:$J$1499,\"Guaranteed package\")","v":0},{"$f":"SUMIFS(Personnel!O$12:O$1499,Personnel!$B$12:$B$1499,PersonnelPub!$F22,Personnel!$J$12:$J$1499,\"Guaranteed package\")","v":0},{"$f":"SUMIFS(Personnel!K$12:K$1499,Personnel!$B$12:$B$1499,PersonnelPub!$F22,Personnel!$J$12:$J$1499,\"Guaranteed package\")","v":0},{"$f":"SUMIF(Personnel!$B$12:$B$1499,PersonnelPub!$F22,Personnel!L$12:L$1499)","v":0},0,{"$f":"SUMIFS(Personnel!P$12:P$1499,Personnel!$B$12:$B$1499,PersonnelPub!$F22,Personnel!$J$12:$J$1499,\"Guaranteed package\")","v":0},{"$f":"SUMIF(Personnel!$B$12:$B$1499,PersonnelPub!$F22,Personnel!Q$12:Q$1499)","v":0},0,{"$f":"SUMIFS(Personnel!S$12:S$1499,Personnel!$B$12:$B$1499,PersonnelPub!$F22,Personnel!$J$12:$J$1499,\"Guaranteed package\")","v":0},{"$f":"SUMIF(Personnel!$B$12:$B$1499,PersonnelPub!$F22,Personnel!T$12:T$1499)","v":0},0,{"$f":"SUMIFS(Personnel!V$12:V$1499,Personnel!$B$12:$B$1499,PersonnelPub!$F22,Personnel!$J$12:$J$1499,\"Guaranteed package\")","v":0},{"$f":"SUMIF(Personnel!$B$12:$B$1499,PersonnelPub!$F22,Personnel!W$12:W$1499)","v":0},0,{"$f":"SUMIFS(Personnel!Y$12:Y$1499,Personnel!$B$12:$B$1499,PersonnelPub!$F22,Personnel!$J$12:$J$1499,\"Guaranteed package\")","v":0},{"$f":"SUMIF(Personnel!$B$12:$B$1499,PersonnelPub!$F22,Personnel!Z$12:Z$1499)","v":0},0,0,0]
[null,null,null,null,null,4,{"$f":"SUMIFS(Personnel!N$12:N$1499,Personnel!$B$12:$B$1499,PersonnelPub!$F23,Personnel!$J$12:$J$1499,\"Guaranteed package\")","v":0},{"$f":"SUMIFS(Personnel!O$12:O$1499,Personnel!$B$12:$B$1499,PersonnelPub!$F23,Personnel!$J$12:$J$1499,\"Guaranteed package\")","v":0},{"$f":"SUMIFS(Personnel!K$12:K$1499,Personnel!$B$12:$B$1499,PersonnelPub!$F23,Personnel!$J$12:$J$1499,\"Guaranteed package\")","v":0},{"$f":"SUMIF(Personnel!$B$12:$B$1499,PersonnelPub!$F23,Personnel!L$12:L$1499)","v":0},0,{"$f":"SUMIFS(Personnel!P$12:P$1499,Personnel!$B$12:$B$1499,PersonnelPub!$F23,Personnel!$J$12:$J$1499,\"Guaranteed package\")","v":0},{"$f":"SUMIF(Personnel!$B$12:$B$1499,PersonnelPub!$F23,Personnel!Q$12:Q$1499)","v":0},0,{"$f":"SUMIFS(Personnel!S$12:S$1499,Personnel!$B$12:$B$1499,PersonnelPub!$F23,Personnel!$J$12:$J$1499,\"Guaranteed package\")","v":0},{"$f":"SUMIF(Personnel!$B$12:$B$1499,PersonnelPub!$F23,Personnel!T$12:T$1499)","v":0},0,{"$f":"SUMIFS(Personnel!V$12:V$1499,Personnel!$B$12:$B$1499,PersonnelPub!$F23,Personnel!$J$12:$J$1499,\"Guaranteed package\")","v":0},{"$f":"SUMIF(Personnel!$B$12:$B$1499,PersonnelPub!$F23,Personnel!W$12:W$1499)","v":0},0,{"$f":"SUMIFS(Personnel!Y$12:Y$1499,Personnel!$B$12:$B$1499,PersonnelPub!$F23,Personnel!$J$12:$J$1499,\"Guaranteed package\")","v":0},{"$f":"SUMIF(Personnel!$B$12:$B$1499,PersonnelPub!$F23,Personnel!Z$12:Z$1499)","v":0},0,0,0]
[null,null,null,null,null,5,{"$f":"SUMIFS(Personnel!N$12:N$1499,Personnel!$B$12:$B$1499,PersonnelPub!$F24,Personnel!$J$12:$J$1499,\"Guaranteed package\")","v":343},{"$f":"SUMIFS(Personnel!O$12:O$1499,Personnel!$B$12:$B$1499,PersonnelPub!$F24,Personnel!$J$12:$J$1499,\"Guaranteed package\")","v":343},{"$f":"SUMIFS(Personnel!K$12:K$1499,Personnel!$B$12:$B$1499,PersonnelPub!$F24,Personnel!$J$12:$J$1499,\"Guaranteed package\")","v":165},{"$f":"SUMIF(Personnel!$B$12:$B$1499,PersonnelPub!$F24,Personnel!L$12:L$1499)","v":743102.32838677289},4503.6504750713511,{"$f":"SUMIFS(Personnel!P$12:P$1499,Personnel!$B$12:$B$1499,PersonnelPub!$F24,Personnel!$J$12:$J$1499,\"Guaranteed package\")","v":343},{"$f":"SUMIF(Personnel!$B$12:$B$1499,PersonnelPub!$F24,Personnel!Q$12:Q$1499)","v":319559.90445213718},931.66152901497719,{"$f":"SUMIFS(Personnel!S$12:S$1499,Personnel!$B$12:$B$1499,PersonnelPub!$F24,Personnel!$J$12:$J$1499,\"Guaranteed package\")","v":137},{"$f":"SUMIF(Personnel!$B$12:$B$1499,PersonnelPub!$F24,Personnel!T$12:T$1499)","v":291983.46610470943},2131.2661759467842,{"$f":"SUMIFS(Personnel!V$12:V$1499,Personnel!$B$12:$B$1499,PersonnelPub!$F24,Personnel!$J$12:$J$1499,\"Guaranteed package\")","v":212},{"$f":"SUMIF(Personnel!$B$12:$B$1499,PersonnelPub!$F24,Personnel!W$12:W$1499)","v":215322.65114974047},1015.6728827817947,{"$f":"SUMIFS(Personnel!Y$12:Y$1499,Personnel!$B$12:$B$1499,PersonnelPub!$F24,Personnel!$J$12:$J$1499,\"Guaranteed package\")","v":0},{"$f":"SUMIF(Personnel!$B$12:$B$1499,PersonnelPub!$F24,Personnel!Z$12:Z$1499)","v":0},0,{"$f":"IFERROR((V24/M24)^(1/3)-1,0)","v":-1},0]
[null,null,null,null,null,6,{"$f":"SUMIFS(Personnel!N$12:N$1499,Personnel!$B$12:$B$1499,PersonnelPub!$F25,Personnel!$J$12:$J$1499,\"Guaranteed package\")","v":3425},{"$f":"SUMIFS(Personnel!O$12:O$1499,Personnel!$B$12:$B$1499,PersonnelPub!$F25,Personnel!$J$12:$J$1499,\"Guaranteed package\")","v":3425},{"$f":"SUMIFS(Personnel!K$12:K$1499,Personnel!$B$12:$B$1499,PersonnelPub!$F25,Personnel!$J$12:$J$1499,\"Guaranteed package\")","v":44},{"$f":"SUMIF(Personnel!$B$12:$B$1499,PersonnelPub!$F25,Personnel!L$12:L$1499)","v":10272.931319166477},233.4757117992381,{"$f":"SUMIFS(Personnel!P$12:P$1499,Personnel!$B$12:$B$1499,PersonnelPub!$F25,Personnel!$J$12:$J$1499,\"Guaranteed package\")","v":3425},{"$f":"SUMIF(Personnel!$B$12:$B$1499,PersonnelPub!$F25,Personnel!Q$12:Q$1499)","v":923713.36669273069},269.69733334094326,{"$f":"SUMIFS(Personnel!S$12:S$1499,Personnel!$B$12:$B$1499,PersonnelPub!$F25,Personnel!$J$12:$J$1499,\"Guaranteed package\")","v":1788},{"$f":"SUMIF(Personnel!$B$12:$B$1499,PersonnelPub!$F25,Personnel!T$12:T$1499)","v":692836.02648082888},387.49218483267833,{"$f":"SUMIFS(Personnel!V$12:V$1499,Personnel!$B$12:$B$1499,PersonnelPub!$F25,Personnel!$J$12:$J$1499,\"Guaranteed package\")","v":1198},{"$f":"SUMIF(Personnel!$B$12:$B$1499,PersonnelPub!$F25,Personnel!W$12:W$1499)","v":489528.23737929034},408.62123320474984,{"$f":"SUMIFS(Personnel!Y$12:Y$1499,Personnel!$B$12:$B$1499,PersonnelPub!$F25,Personnel!$J$12:$J$1499,\"Guaranteed package\")","v":0},{"$f":"SUMIF(Personnel!$B$12:$B$1499,PersonnelPub!$F25,Personnel!Z$12:Z$1499)","v":0},0,-1,0]
[null,null,null,null,null,7,{"$f":"SUMIFS(Personnel!N$12:N$1499,Personnel!$B$12:$B$1499,PersonnelPub!$F26,Personnel!$J$12:$J$1499,\"Guaranteed package\")","v":45},{"$f":"SUMIFS(Personnel!O$12:O$1499,Personnel!$B$12:$B$1499,PersonnelPub!$F26,Personnel!$J$12:$J$1499,\"Guaranteed package\")","v":45},{"$f":"SUMIFS(Personnel!K$12:K$1499,Personnel!$B$12:$B$1499,PersonnelPub!$F26,Personnel!$J$12:$J$1499,\"Guaranteed package\")","v":158},{"$f":"SUMIF(Personnel!$B$12:$B$1499,PersonnelPub!$F26,Personnel!L$12:L$1499)","v":49942.059466767634},316.08898396688375,{"$f":"SUMIFS(Personnel!P$12:P$1499,Personnel!$B$12:$B$1499,PersonnelPub!$F26,Personnel!$J$12:$J$1499,\"Guaranteed package\")","v":45},{"$f":"SUMIF(Personnel!$B$12:$B$1499,PersonnelPub!$F26,Personnel!Q$12:Q$1499)","v":10838.528391887592},240.85618648639092,{"$f":"SUMIFS(Personnel!S$12:S$1499,Personnel!$B$12:$B$1499,PersonnelPub!$F26,Personnel!$J$12:$J$1499,\"Guaranteed package\")","v":45},{"$f":"SUMIF(Personnel!$B$12:$B$1499,PersonnelPub!$F26,Personnel!T$12:T$1499)","v":11331.681433718479},251.81514297152174,{"$f":"SUMIFS(Personnel!V$12:V$1499,Personnel!$B$12:$B$1499,PersonnelPub!$F26,Personnel!$J$12:$J$1499,\"Guaranteed package\")","v":148},{"$f":"SUMIF(Personnel!$B$12:$B$1499,PersonnelPub!$F26,Personnel!W$12:W$1499)","v":56715.644527176526},383.21381437281434,{"$f":"SUMIFS(Personnel!Y$12:Y$1499,Personnel!$B$12:$B$1499,PersonnelPub!$F26,Personnel!$J$12:$J$1499,\"Guaranteed package\")","v":0},{"$f":"SUMIF(Personnel!$B$12:$B$1499,PersonnelPub!$F26,Personnel!Z$12:Z$1499)","v":0},0,-1,0]
[null,null,null,null,null,8,{"$f":"SUMIFS(Personnel!N$12:N$1499,Personnel!$B$12:$B$1499,PersonnelPub!$F27,Personnel!$J$12:$J$1499,\"Guaranteed package\")","v":1136},{"$f":"SUMIFS(Personnel!O$12:O$1499,Personnel!$B$12:$B$1499,PersonnelPub!$F27,Personnel!$J$12:$J$1499,\"Guaranteed package\")","v":1136},{"$f":"SUMIFS(Personnel!K$12:K$1499,Personnel!$B$12:$B$1499,PersonnelPub!$F27,Personnel!$J$12:$J$1499,\"Guaranteed package\")","v":3148},{"$f":"SUMIF(Personnel!$B$12:$B$1499,PersonnelPub!$F27,Personnel!L$12:L$1499)","v":1314137.112495434},417.45143344835896,{"$f":"SUMIFS(Personnel!P$12:P$1499,Personnel!$B$12:$B$1499,PersonnelPub!$F27,Personnel!$J$12:$J$1499,\"Guaranteed package\")","v":1136},{"$f":"SUMIF(Personnel!$B$12:$B$1499,PersonnelPub!$F27,Personnel!Q$12:Q$1499)","v":379399.05360772519},333.9780401476454,{"$f":"SUMIFS(Personnel!S$12:S$1499,Personnel!$B$12:$B$1499,PersonnelPub!$F27,Personnel!$J$12:$J$1499,\"Guaranteed package\")","v":1124},{"$f":"SUMIF(Personnel!$B$12:$B$1499,PersonnelPub!$F27,Personnel!T$12:T$1499)","v":391013.18054687668},347.8764951484668,{"$f":"SUMIFS(Personnel!V$12:V$1499,Personnel!$B$12:$B$1499,PersonnelPub!$F27,Personnel!$J$12:$J$1499,\"Guaranteed package\")","v":3382},{"$f":"SUMIF(Personnel!$B$12:$B$1499,PersonnelPub!$F27,Personnel!W$12:W$1499)","v":1549477.0432846043},458.15406365600364,{"$f":"SUMIFS(Personnel!Y$12:Y$1499,Personnel!$B$12:$B$1499,PersonnelPub!$F27,Personnel!$J$12:$J$1499,\"Guaranteed package\")","v":0},{"$f":"SUMIF(Personnel!$B$12:$B$1499,PersonnelPub!$F27,Personnel!Z$12:Z$1499)","v":0},0,-1,0]
[null,null,null,null,null,9,{"$f":"SUMIFS(Personnel!N$12:N$1499,Personnel!$B$12:$B$1499,PersonnelPub!$F28,Personnel!$J$12:$J$1499,\"Guaranteed package\")","v":3324},{"$f":"SUMIFS(Personnel!O$12:O$1499,Personnel!$B$12:$B$1499,PersonnelPub!$F28,Personnel!$J$12:$J$1499,\"Guaranteed package\")","v":3324},{"$f":"SUMIFS(Personnel!K$12:K$1499,Personnel!$B$12:$B$1499,PersonnelPub!$F28,Personnel!$J$12:$J$1499,\"Guaranteed package\")","v":3538},{"$f":"SUMIF(Personnel!$B$12:$B$1499,PersonnelPub!$F28,Personnel!L$12:L$1499)","v":1759871.7300474495},497.41993500493203,{"$f":"SUMIFS(Personnel!P$12:P$1499,Personnel!$B$12:$B$1499,PersonnelPub!$F28,Personnel!$J$12:$J$1499,\"Guaranteed package\")","v":3324},{"$f":"SUMIF(Personnel!$B$12:$B$1499,PersonnelPub!$F28,Personnel!Q$12:Q$1499)","v":1418406.6724373328},426.71680879582817,{"$f":"SUMIFS(Personnel!S$12:S$1499,Personnel!$B$12:$B$1499,PersonnelPub!$F28,Personnel!$J$12:$J$1499,\"Guaranteed package\")","v":3324},{"$f":"SUMIF(Personnel!$B$12:$B$1499,PersonnelPub!$F28,Personnel!T$12:T$1499)","v":1482944.1760332314},446.13242359603834,{"$f":"SUMIFS(Personnel!V$12:V$1499,Personnel!$B$12:$B$1499,PersonnelPub!$F28,Personnel!$J$12:$J$1499,\"Guaranteed package\")","v":3440},{"$f":"SUMIF(Personnel!$B$12:$B$1499,PersonnelPub!$F28,Personnel!W$12:W$1499)","v":1998561.143062497},580.97707647165612,{"$f":"SUMIFS(Personnel!Y$12:Y$1499,Personnel!$B$12:$B$1499,PersonnelPub!$F28,Personnel!$J$12:$J$1499,\"Guaranteed package\")","v":0},{"$f":"SUMIF(Personnel!$B$12:$B$1499,PersonnelPub!$F28,Personnel!Z$12:Z$1499)","v":0},0,-1,0]
[null,null,null,null,null,10,{"$f":"SUMIFS(Personnel!N$12:N$1499,Personnel!$B$12:$B$1499,PersonnelPub!$F29,Personnel!$J$12:$J$1499,\"Guaranteed package\")","v":3219},{"$f":"SUMIFS(Personnel!O$12:O$1499,Personnel!$B$12:$B$1499,PersonnelPub!$F29,Personnel!$J$12:$J$1499,\"Guaranteed package\")","v":3219},{"$f":"SUMIFS(Personnel!K$12:K$1499,Personnel!$B$12:$B$1499,PersonnelPub!$F29,Personnel!$J$12:$J$1499,\"Guaranteed package\")","v":593},{"$f":"SUMIF(Personnel!$B$12:$B$1499,PersonnelPub!$F29,Personnel!L$12:L$1499)","v":439974.31142396631},741.94656226638506,{"$f":"SUMIFS(Personnel!P$12:P$1499,Personnel!$B$12:$B$1499,PersonnelPub!$F29,Personnel!$J$12:$J$1499,\"Guaranteed package\")","v":3219},{"$f":"SUMIF(Personnel!$B$12:$B$1499,PersonnelPub!$F29,Personnel!Q$12:Q$1499)","v":1768082.7730588622},549.2646079710662,{"$f":"SUMIFS(Personnel!S$12:S$1499,Personnel!$B$12:$B$1499,PersonnelPub!$F29,Personnel!$J$12:$J$1499,\"Guaranteed package\")","v":3078},{"$f":"SUMIF(Personnel!$B$12:$B$1499,PersonnelPub!$F29,Personnel!T$12:T$1499)","v":1796629.9942330404},583.70045296719957,{"$f":"SUMIFS(Personnel!V$12:V$1499,Personnel!$B$12:$B$1499,PersonnelPub!$F29,Personnel!$J$12:$J$1499,\"Guaranteed package\")","v":713},{"$f":"SUMIF(Personnel!$B$12:$B$1499,PersonnelPub!$F29,Personnel!W$12:W$1499)","v":598376.52984236472},839.23776976488739,{"$f":"SUMIFS(Personnel!Y$12:Y$1499,Personnel!$B$12:$B$1499,PersonnelPub!$F29,Personnel!$J$12:$J$1499,\"Guaranteed package\")","v":0},{"$f":"SUMIF(Personnel!$B$12:$B$1499,PersonnelPub!$F29,Personnel!Z$12:Z$1499)","v":0},0,-1,0]
[null,null,null,null,null,11,{"$f":"SUMIFS(Personnel!N$12:N$1499,Personnel!$B$12:$B$1499,PersonnelPub!$F30,Personnel!$J$12:$J$1499,\"Guaranteed package\")","v":666},{"$f":"SUMIFS(Personnel!O$12:O$1499,Personnel!$B$12:$B$1499,PersonnelPub!$F30,Personnel!$J$12:$J$1499,\"Guaranteed package\")","v":666},{"$f":"SUMIFS(Personnel!K$12:K$1499,Personnel!$B$12:$B$1499,PersonnelPub!$F30,Personnel!$J$12:$J$1499,\"Guaranteed package\")","v":2304},{"$f":"SUMIF(Personnel!$B$12:$B$1499,PersonnelPub!$F30,Personnel!L$12:L$1499)","v":2152210.4383594617},934.11911387129419,{"$f":"SUMIFS(Personnel!P$12:P$1499,Personnel!$B$12:$B$1499,PersonnelPub!$F30,Personnel!$J$12:$J$1499,\"Guaranteed package\")","v":666},{"$f":"SUMIF(Personnel!$B$12:$B$1499,PersonnelPub!$F30,Personnel!Q$12:Q$1499)","v":537889.60086333752},807.64204333834459,{"$f":"SUMIFS(Personnel!S$12:S$1499,Personnel!$B$12:$B$1499,PersonnelPub!$F30,Personnel!$J$12:$J$1499,\"Guaranteed package\")","v":663},{"$f":"SUMIF(Personnel!$B$12:$B$1499,PersonnelPub!$F30,Personnel!T$12:T$1499)","v":561753.52820261929},847.29038944588126,{"$f":"SUMIFS(Personnel!V$12:V$1499,Personnel!$B$12:$B$1499,PersonnelPub!$F30,Personnel!$J$12:$J$1499,\"Guaranteed package\")","v":2276},{"$f":"SUMIF(Personnel!$B$12:$B$1499,PersonnelPub!$F30,Personnel!W$12:W$1499)","v":2605751.6241620434},1144.8820844297204,{"$f":"SUMIFS(Personnel!Y$12:Y$1499,Personnel!$B$12:$B$1499,PersonnelPub!$F30,Personnel!$J$12:$J$1499,\"Guaranteed package\")","v":0},{"$f":"SUMIF(Personnel!$B$12:$B$1499,PersonnelPub!$F30,Personnel!Z$12:Z$1499)","v":0},0,-1,0]
[null,null,null,null,null,12,{"$f":"SUMIFS(Personnel!N$12:N$1499,Personnel!$B$12:$B$1499,PersonnelPub!$F31,Personnel!$J$12:$J$1499,\"Guaranteed package\")","v":63},{"$f":"SUMIFS(Personnel!O$12:O$1499,Personnel!$B$12:$B$1499,PersonnelPub!$F31,Personnel!$J$12:$J$1499,\"Guaranteed package\")","v":63},{"$f":"SUMIFS(Personnel!K$12:K$1499,Personnel!$B$12:$B$1499,PersonnelPub!$F31,Personnel!$J$12:$J$1499,\"Guaranteed package\")","v":361},{"$f":"SUMIF(Personnel!$B$12:$B$1499,PersonnelPub!$F31,Personnel!L$12:L$1499)","v":179257.10196171975},496.55706914603809,{"$f":"SUMIFS(Personnel!P$12:P$1499,Personnel!$B$12:$B$1499,PersonnelPub!$F31,Personnel!$J$12:$J$1499,\"Guaranteed package\")","v":63},{"$f":"SUMIF(Personnel!$B$12:$B$1499,PersonnelPub!$F31,Personnel!Q$12:Q$1499)","v":14473.757788000861},229.74218711112479,{"$f":"SUMIFS(Personnel!S$12:S$1499,Personnel!$B$12:$B$1499,PersonnelPub!$F31,Personnel!$J$12:$J$1499,\"Guaranteed package\")","v":63},{"$f":"SUMIF(Personnel!$B$12:$B$1499,PersonnelPub!$F31,Personnel!T$12:T$1499)","v":15132.313767354901},240.19545662468096,{"$f":"SUMIFS(Personnel!V$12:V$1499,Personnel!$B$12:$B$1499,PersonnelPub!$F31,Personnel!$J$12:$J$1499,\"Guaranteed package\")","v":617},{"$f":"SUMIF(Personnel!$B$12:$B$1499,PersonnelPub!$F31,Personnel!W$12:W$1499)","v":203569.54003063959},329.93442468499126,{"$f":"SUMIFS(Personnel!Y$12:Y$1499,Personnel!$B$12:$B$1499,PersonnelPub!$F31,Personnel!$J$12:$J$1499,\"Guaranteed package\")","v":0},{"$f":"SUMIF(Personnel!$B$12:$B$1499,PersonnelPub!$F31,Personnel!Z$12:Z$1499)","v":0},0,-1,0]
[null,null,null,null,null,13,{"$f":"SUMIFS(Personnel!N$12:N$1499,Personnel!$B$12:$B$1499,PersonnelPub!$F32,Personnel!$J$12:$J$1499,\"Guaranteed package\")","v":2261},{"$f":"SUMIFS(Personnel!O$12:O$1499,Personnel!$B$12:$B$1499,PersonnelPub!$F32,Personnel!$J$12:$J$1499,\"Guaranteed package\")","v":2261},{"$f":"SUMIFS(Personnel!K$12:K$1499,Personnel!$B$12:$B$1499,PersonnelPub!$F32,Personnel!$J$12:$J$1499,\"Guaranteed package\")","v":1388},{"$f":"SUMIF(Personnel!$B$12:$B$1499,PersonnelPub!$F32,Personnel!L$12:L$1499)","v":1680901.0037384091},1211.0237779095166,{"$f":"SUMIFS(Personnel!P$12:P$1499,Personnel!$B$12:$B$1499,PersonnelPub!$F32,Personnel!$J$12:$J$1499,\"Guaranteed package\")","v":2261},{"$f":"SUMIF(Personnel!$B$12:$B$1499,PersonnelPub!$F32,Personnel!Q$12:Q$1499)","v":2135285.5975142964},944.39876051052477,{"$f":"SUMIFS(Personnel!S$12:S$1499,Personnel!$B$12:$B$1499,PersonnelPub!$F32,Personnel!$J$12:$J$1499,\"Guaranteed package\")","v":2261},{"$f":"SUMIF(Personnel!$B$12:$B$1499,PersonnelPub!$F32,Personnel!T$12:T$1499)","v":2232441.0922011971},987.36890411375373,{"$f":"SUMIFS(Personnel!V$12:V$1499,Personnel!$B$12:$B$1499,PersonnelPub!$F32,Personnel!$J$12:$J$1499,\"Guaranteed package\")","v":1363},{"$f":"SUMIF(Personnel!$B$12:$B$1499,PersonnelPub!$F32,Personnel!W$12:W$1499)","v":1908879.7064293758},1400.4986841007892,{"$f":"SUMIFS(Personnel!Y$12:Y$1499,Personnel!$B$12:$B$1499,PersonnelPub!$F32,Personnel!$J$12:$J$1499,\"Guaranteed package\")","v":0},{"$f":"SUMIF(Personnel!$B$12:$B$1499,PersonnelPub!$F32,Personnel!Z$12:Z$1499)","v":0},0,{"$f":"IFERROR((V32/M32)^(1/3)-1,0)","v":-1},0]
[null,null,null,null,null,14,{"$f":"SUMIFS(Personnel!N$12:N$1499,Personnel!$B$12:$B$1499,PersonnelPub!$F33,Personnel!$J$12:$J$1499,\"Guaranteed package\")","v":1364},{"$f":"SUMIFS(Personnel!O$12:O$1499,Personnel!$B$12:$B$1499,PersonnelPub!$F33,Personnel!$J$12:$J$1499,\"Guaranteed package\")","v":1364},{"$f":"SUMIFS(Personnel!K$12:K$1499,Personnel!$B$12:$B$1499,PersonnelPub!$F33,Personnel!$J$12:$J$1499,\"Guaranteed package\")","v":115},{"$f":"SUMIF(Personnel!$B$12:$B$1499,PersonnelPub!$F33,Personnel!L$12:L$1499)","v":181539.93309221911},1578.6081138453835,{"$f":"SUMIFS(Personnel!P$12:P$1499,Personnel!$B$12:$B$1499,PersonnelPub!$F33,Personnel!$J$12:$J$1499,\"Guaranteed package\")","v":1364},{"$f":"SUMIF(Personnel!$B$12:$B$1499,PersonnelPub!$F33,Personnel!Q$12:Q$1499)","v":1748257.0230907553},1281.7133600372106,{"$f":"SUMIFS(Personnel!S$12:S$1499,Personnel!$B$12:$B$1499,PersonnelPub!$F33,Personnel!$J$12:$J$1499,\"Guaranteed package\")","v":1364},{"$f":"SUMIF(Personnel!$B$12:$B$1499,PersonnelPub!$F33,Personnel!T$12:T$1499)","v":1827802.6081413848},1340.0312376403115,{"$f":"SUMIFS(Personnel!V$12:V$1499,Personnel!$B$12:$B$1499,PersonnelPub!$F33,Personnel!$J$12:$J$1499,\"Guaranteed package\")","v":112},{"$f":"SUMIF(Personnel!$B$12:$B$1499,PersonnelPub!$F33,Personnel!W$12:W$1499)","v":207701.98896637332},1854.482044342619,{"$f":"SUMIFS(Personnel!Y$12:Y$1499,Personnel!$B$12:$B$1499,PersonnelPub!$F33,Personnel!$J$12:$J$1499,\"Guaranteed package\")","v":0},{"$f":"SUMIF(Personnel!$B$12:$B$1499,PersonnelPub!$F33,Personnel!Z$12:Z$1499)","v":0},0,-1,0]
[null,null,null,null,null,15,{"$f":"SUMIFS(Personnel!N$12:N$1499,Personnel!$B$12:$B$1499,PersonnelPub!$F34,Personnel!$J$12:$J$1499,\"Guaranteed package\")","v":319},{"$f":"SUMIFS(Personnel!O$12:O$1499,Personnel!$B$12:$B$1499,PersonnelPub!$F34,Personnel!$J$12:$J$1499,\"Guaranteed package\")","v":319},{"$f":"SUMIFS(Personnel!K$12:K$1499,Personnel!$B$12:$B$1499,PersonnelPub!$F34,Personnel!$J$12:$J$1499,\"Guaranteed package\")","v":234},{"$f":"SUMIF(Personnel!$B$12:$B$1499,PersonnelPub!$F34,Personnel!L$12:L$1499)","v":415432.20805633493},1775.3513164800638,{"$f":"SUMIFS(Personnel!P$12:P$1499,Personnel!$B$12:$B$1499,PersonnelPub!$F34,Personnel!$J$12:$J$1499,\"Guaranteed package\")","v":319},{"$f":"SUMIF(Personnel!$B$12:$B$1499,PersonnelPub!$F34,Personnel!Q$12:Q$1499)","v":574513.90049084672},1800.9840140778895,{"$f":"SUMIFS(Personnel!S$12:S$1499,Personnel!$B$12:$B$1499,PersonnelPub!$F34,Personnel!$J$12:$J$1499,\"Guaranteed package\")","v":319},{"$f":"SUMIF(Personnel!$B$12:$B$1499,PersonnelPub!$F34,Personnel!T$12:T$1499)","v":600654.28296318033},1882.9287867184337,{"$f":"SUMIFS(Personnel!V$12:V$1499,Personnel!$B$12:$B$1499,PersonnelPub!$F34,Personnel!$J$12:$J$1499,\"Guaranteed package\")","v":230},{"$f":"SUMIF(Personnel!$B$12:$B$1499,PersonnelPub!$F34,Personnel!W$12:W$1499)","v":471776.80874256673},2051.2035162720294,{"$f":"SUMIFS(Personnel!Y$12:Y$1499,Personnel!$B$12:$B$1499,PersonnelPub!$F34,Personnel!$J$12:$J$1499,\"Guaranteed package\")","v":0},{"$f":"SUMIF(Personnel!$B$12:$B$1499,PersonnelPub!$F34,Personnel!Z$12:Z$1499)","v":0},0,-1,0]
[null,null,null,null,null,16,{"$f":"SUMIFS(Personnel!N$12:N$1499,Personnel!$B$12:$B$1499,PersonnelPub!$F35,Personnel!$J$12:$J$1499,\"Guaranteed package\")","v":22},{"$f":"SUMIFS(Personnel!O$12:O$1499,Personnel!$B$12:$B$1499,PersonnelPub!$F35,Personnel!$J$12:$J$1499,\"Guaranteed package\")","v":22},{"$f":"SUMIFS(Personnel!K$12:K$1499,Personnel!$B$12:$B$1499,PersonnelPub!$F35,Personnel!$J$12:$J$1499,\"Guaranteed package\")","v":92},{"$f":"SUMIF(Personnel!$B$12:$B$1499,PersonnelPub!$F35,Personnel!L$12:L$1499)","v":222575.17347864076},2419.295363898269,{"$f":"SUMIFS(Personnel!P$12:P$1499,Personnel!$B$12:$B$1499,PersonnelPub!$F35,Personnel!$J$12:$J$1499,\"Guaranteed package\")","v":22},{"$f":"SUMIF(Personnel!$B$12:$B$1499,PersonnelPub!$F35,Personnel!Q$12:Q$1499)","v":45879.330452750255},2085.4241114886481,{"$f":"SUMIFS(Personnel!S$12:S$1499,Personnel!$B$12:$B$1499,PersonnelPub!$F35,Personnel!$J$12:$J$1499,\"Guaranteed package\")","v":22},{"$f":"SUMIF(Personnel!$B$12:$B$1499,PersonnelPub!$F35,Personnel!T$12:T$1499)","v":47966.839988350388},2180.3109085613814,{"$f":"SUMIFS(Personnel!V$12:V$1499,Personnel!$B$12:$B$1499,PersonnelPub!$F35,Personnel!$J$12:$J$1499,\"Guaranteed package\")","v":92},{"$f":"SUMIF(Personnel!$B$12:$B$1499,PersonnelPub!$F35,Personnel!W$12:W$1499)","v":252762.79261148899},2747.4216588205322,{"$f":"SUMIFS(Personnel!Y$12:Y$1499,Personnel!$B$12:$B$1499,PersonnelPub!$F35,Personnel!$J$12:$J$1499,\"Guaranteed package\")","v":0},{"$f":"SUMIF(Personnel!$B$12:$B$1499,PersonnelPub!$F35,Personnel!Z$12:Z$1499)","v":0},0,-1,0]
[null,null,null,null,null,17,{"$f":"SUMIFS(Personnel!N$12:N$1499,Personnel!$B$12:$B$1499,PersonnelPub!$F36,Personnel!$J$12:$J$1499,\"Guaranteed package\")","v":0},{"$f":"SUMIFS(Personnel!O$12:O$1499,Personnel!$B$12:$B$1499,PersonnelPub!$F36,Personnel!$J$12:$J$1499,\"Guaranteed package\")","v":0},{"$f":"SUMIFS(Personnel!K$12:K$1499,Personnel!$B$12:$B$1499,PersonnelPub!$F36,Personnel!$J$12:$J$1499,\"Guaranteed package\")","v":0},{"$f":"SUMIF(Personnel!$B$12:$B$1499,PersonnelPub!$F36,Personnel!L$12:L$1499)","v":0},0,{"$f":"SUMIFS(Personnel!P$12:P$1499,Personnel!$B$12:$B$1499,PersonnelPub!$F36,Personnel!$J$12:$J$1499,\"Guaranteed package\")","v":0},{"$f":"SUMIF(Personnel!$B$12:$B$1499,PersonnelPub!$F36,Personnel!Q$12:Q$1499)","v":0},0,{"$f":"SUMIFS(Personnel!S$12:S$1499,Personnel!$B$12:$B$1499,PersonnelPub!$F36,Personnel!$J$12:$J$1499,\"Guaranteed package\")","v":0},{"$f":"SUMIF(Personnel!$B$12:$B$1499,PersonnelPub!$F36,Personnel!T$12:T$1499)","v":0},0,{"$f":"SUMIFS(Personnel!V$12:V$1499,Personnel!$B$12:$B$1499,PersonnelPub!$F36,Personnel!$J$12:$J$1499,\"Guaranteed package\")","v":0},{"$f":"SUMIF(Personnel!$B$12:$B$1499,PersonnelPub!$F36,Personnel!W$12:W$1499)","v":0},0,{"$f":"SUMIFS(Personnel!Y$12:Y$1499,Personnel!$B$12:$B$1499,PersonnelPub!$F36,Personnel!$J$12:$J$1499,\"Guaranteed package\")","v":0},{"$f":"SUMIF(Personnel!$B$12:$B$1499,PersonnelPub!$F36,Personnel!Z$12:Z$1499)","v":0},0,0,0]
[null,null,null,null,null,18,{"$f":"SUMIFS(Personnel!N$12:N$1499,Personnel!$B$12:$B$1499,PersonnelPub!$F37,Personnel!$J$12:$J$1499,\"Guaranteed package\")","v":95},{"$f":"SUMIFS(Personnel!O$12:O$1499,Personnel!$B$12:$B$1499,PersonnelPub!$F37,Personnel!$J$12:$J$1499,\"Guaranteed package\")","v":95},{"$f":"SUMIFS(Personnel!K$12:K$1499,Personnel!$B$12:$B$1499,PersonnelPub!$F37,Personnel!$J$12:$J$1499,\"Guaranteed package\")","v":33},{"$f":"SUMIF(Personnel!$B$12:$B$1499,PersonnelPub!$F37,Personnel!L$12:L$1499)","v":101941.33987362328},3089.1315113219175,{"$f":"SUMIFS(Personnel!P$12:P$1499,Personnel!$B$12:$B$1499,PersonnelPub!$F37,Personnel!$J$12:$J$1499,\"Guaranteed package\")","v":95},{"$f":"SUMIF(Personnel!$B$12:$B$1499,PersonnelPub!$F37,Personnel!Q$12:Q$1499)","v":242027.49770558899},2547.6578705851471,{"$f":"SUMIFS(Personnel!S$12:S$1499,Personnel!$B$12:$B$1499,PersonnelPub!$F37,Personnel!$J$12:$J$1499,\"Guaranteed package\")","v":95},{"$f":"SUMIF(Personnel!$B$12:$B$1499,PersonnelPub!$F37,Personnel!T$12:T$1499)","v":253039.74885119329},2663.5763036967714,{"$f":"SUMIFS(Personnel!V$12:V$1499,Personnel!$B$12:$B$1499,PersonnelPub!$F37,Personnel!$J$12:$J$1499,\"Guaranteed package\")","v":34},{"$f":"SUMIF(Personnel!$B$12:$B$1499,PersonnelPub!$F37,Personnel!W$12:W$1499)","v":115767.52854462745},3404.9273101361014,{"$f":"SUMIFS(Personnel!Y$12:Y$1499,Personnel!$B$12:$B$1499,PersonnelPub!$F37,Personnel!$J$12:$J$1499,\"Guaranteed package\")","v":0},{"$f":"SUMIF(Personnel!$B$12:$B$1499,PersonnelPub!$F37,Personnel!Z$12:Z$1499)","v":0},0,-1,0]
[null,null,null,null,null,19,{"$f":"SUMIFS(Personnel!N$12:N$1499,Personnel!$B$12:$B$1499,PersonnelPub!$F38,Personnel!$J$12:$J$1499,\"Guaranteed package\")","v":32},{"$f":"SUMIFS(Personnel!O$12:O$1499,Personnel!$B$12:$B$1499,PersonnelPub!$F38,Personnel!$J$12:$J$1499,\"Guaranteed package\")","v":32},{"$f":"SUMIFS(Personnel!K$12:K$1499,Personnel!$B$12:$B$1499,PersonnelPub!$F38,Personnel!$J$12:$J$1499,\"Guaranteed package\")","v":3},{"$f":"SUMIF(Personnel!$B$12:$B$1499,PersonnelPub!$F38,Personnel!L$12:L$1499)","v":10315.300362244709},3438.4334540815694,{"$f":"SUMIFS(Personnel!P$12:P$1499,Personnel!$B$12:$B$1499,PersonnelPub!$F38,Personnel!$J$12:$J$1499,\"Guaranteed package\")","v":32},{"$f":"SUMIF(Personnel!$B$12:$B$1499,PersonnelPub!$F38,Personnel!Q$12:Q$1499)","v":99254.859183520457},3101.7143494850143,{"$f":"SUMIFS(Personnel!S$12:S$1499,Personnel!$B$12:$B$1499,PersonnelPub!$F38,Personnel!$J$12:$J$1499,\"Guaranteed package\")","v":32},{"$f":"SUMIF(Personnel!$B$12:$B$1499,PersonnelPub!$F38,Personnel!T$12:T$1499)","v":103770.95527637063},3242.8423523865822,{"$f":"SUMIFS(Personnel!V$12:V$1499,Personnel!$B$12:$B$1499,PersonnelPub!$F38,Personnel!$J$12:$J$1499,\"Guaranteed package\")","v":3},{"$f":"SUMIF(Personnel!$B$12:$B$1499,PersonnelPub!$F38,Personnel!W$12:W$1499)","v":11714.352887778323},3904.7842959261075,{"$f":"SUMIFS(Personnel!Y$12:Y$1499,Personnel!$B$12:$B$1499,PersonnelPub!$F38,Personnel!$J$12:$J$1499,\"Guaranteed package\")","v":0},{"$f":"SUMIF(Personnel!$B$12:$B$1499,PersonnelPub!$F38,Personnel!Z$12:Z$1499)","v":0},0,-1,0]
[null,null,null,null,null,20,{"$f":"SUMIFS(Personnel!N$12:N$1499,Personnel!$B$12:$B$1499,PersonnelPub!$F39,Personnel!$J$12:$J$1499,\"Guaranteed package\")","v":0},{"$f":"SUMIFS(Personnel!O$12:O$1499,Personnel!$B$12:$B$1499,PersonnelPub!$F39,Personnel!$J$12:$J$1499,\"Guaranteed package\")","v":0},{"$f":"SUMIFS(Personnel!K$12:K$1499,Personnel!$B$12:$B$1499,PersonnelPub!$F39,Personnel!$J$12:$J$1499,\"Guaranteed package\")","v":0},{"$f":"SUMIF(Personnel!$B$12:$B$1499,PersonnelPub!$F39,Personnel!L$12:L$1499)","v":0},0,{"$f":"SUMIFS(Personnel!P$12:P$1499,Personnel!$B$12:$B$1499,PersonnelPub!$F39,Personnel!$J$12:$J$1499,\"Guaranteed package\")","v":0},{"$f":"SUMIF(Personnel!$B$12:$B$1499,PersonnelPub!$F39,Personnel!Q$12:Q$1499)","v":0},0,{"$f":"SUMIFS(Personnel!S$12:S$1499,Personnel!$B$12:$B$1499,PersonnelPub!$F39,Personnel!$J$12:$J$1499,\"Guaranteed package\")","v":0},{"$f":"SUMIF(Personnel!$B$12:$B$1499,PersonnelPub!$F39,Personnel!T$12:T$1499)","v":0},0,{"$f":"SUMIFS(Personnel!V$12:V$1499,Personnel!$B$12:$B$1499,PersonnelPub!$F39,Personnel!$J$12:$J$1499,\"Guaranteed package\")","v":0},{"$f":"SUMIF(Personnel!$B$12:$B$1499,PersonnelPub!$F39,Personnel!W$12:W$1499)","v":0},0,{"$f":"SUMIFS(Personnel!Y$12:Y$1499,Personnel!$B$12:$B$1499,PersonnelPub!$F39,Personnel!$J$12:$J$1499,\"Guaranteed package\")","v":0},{"$f":"SUMIF(Personnel!$B$12:$B$1499,PersonnelPub!$F39,Personnel!Z$12:Z$1499)","v":0},0,0,0]
[null,null,null,null,null,21,{"$f":"SUMIFS(Personnel!N$12:N$1499,Personnel!$B$12:$B$1499,PersonnelPub!$F40,Personnel!$J$12:$J$1499,\"Guaranteed package\")","v":0},{"$f":"SUMIFS(Personnel!O$12:O$1499,Personnel!$B$12:$B$1499,PersonnelPub!$F40,Personnel!$J$12:$J$1499,\"Guaranteed package\")","v":0},{"$f":"SUMIFS(Personnel!K$12:K$1499,Personnel!$B$12:$B$1499,PersonnelPub!$F40,Personnel!$J$12:$J$1499,\"Guaranteed package\")","v":0},{"$f":"SUMIF(Personnel!$B$12:$B$1499,PersonnelPub!$F40,Personnel!L$12:L$1499)","v":0},0,{"$f":"SUMIFS(Personnel!P$12:P$1499,Personnel!$B$12:$B$1499,PersonnelPub!$F40,Personnel!$J$12:$J$1499,\"Guaranteed package\")","v":0},{"$f":"SUMIF(Personnel!$B$12:$B$1499,PersonnelPub!$F40,Personnel!Q$12:Q$1499)","v":0},0,{"$f":"SUMIFS(Personnel!S$12:S$1499,Personnel!$B$12:$B$1499,PersonnelPub!$F40,Personnel!$J$12:$J$1499,\"Guaranteed package\")","v":0},{"$f":"SUMIF(Personnel!$B$12:$B$1499,PersonnelPub!$F40,Personnel!T$12:T$1499)","v":0},0,{"$f":"SUMIFS(Personnel!V$12:V$1499,Personnel!$B$12:$B$1499,PersonnelPub!$F40,Personnel!$J$12:$J$1499,\"Guaranteed package\")","v":0},{"$f":"SUMIF(Personnel!$B$12:$B$1499,PersonnelPub!$F40,Personnel!W$12:W$1499)","v":0},0,{"$f":"SUMIFS(Personnel!Y$12:Y$1499,Personnel!$B$12:$B$1499,PersonnelPub!$F40,Personnel!$J$12:$J$1499,\"Guaranteed package\")","v":0},{"$f":"SUMIF(Personnel!$B$12:$B$1499,PersonnelPub!$F40,Personnel!Z$12:Z$1499)","v":0},0,{"$f":"IFERROR((V40/M40)^(1/3)-1,0)","v":0},0]
[null,null,null,null,null,22,{"$f":"SUMIFS(Personnel!N$12:N$1499,Personnel!$B$12:$B$1499,PersonnelPub!$F41,Personnel!$J$12:$J$1499,\"Guaranteed package\")","v":5},{"$f":"SUMIFS(Personnel!O$12:O$1499,Personnel!$B$12:$B$1499,PersonnelPub!$F41,Personnel!$J$12:$J$1499,\"Guaranteed package\")","v":5},{"$f":"SUMIFS(Personnel!K$12:K$1499,Personnel!$B$12:$B$1499,PersonnelPub!$F41,Personnel!$J$12:$J$1499,\"Guaranteed package\")","v":4},{"$f":"SUMIF(Personnel!$B$12:$B$1499,PersonnelPub!$F41,Personnel!L$12:L$1499)","v":24331.787286933759},6082.9468217334397,{"$f":"SUMIFS(Personnel!P$12:P$1499,Personnel!$B$12:$B$1499,PersonnelPub!$F41,Personnel!$J$12:$J$1499,\"Guaranteed package\")","v":5},{"$f":"SUMIF(Personnel!$B$12:$B$1499,PersonnelPub!$F41,Personnel!Q$12:Q$1499)","v":23296.974103443947},4659.394820688789,{"$f":"SUMIFS(Personnel!S$12:S$1499,Personnel!$B$12:$B$1499,PersonnelPub!$F41,Personnel!$J$12:$J$1499,\"Guaranteed package\")","v":5},{"$f":"SUMIF(Personnel!$B$12:$B$1499,PersonnelPub!$F41,Personnel!T$12:T$1499)","v":24356.986425150644},4871.3972850301288,{"$f":"SUMIFS(Personnel!V$12:V$1499,Personnel!$B$12:$B$1499,PersonnelPub!$F41,Personnel!$J$12:$J$1499,\"Guaranteed package\")","v":4},{"$f":"SUMIF(Personnel!$B$12:$B$1499,PersonnelPub!$F41,Personnel!W$12:W$1499)","v":27631.880086861071},6907.9700217152676,{"$f":"SUMIFS(Personnel!Y$12:Y$1499,Personnel!$B$12:$B$1499,PersonnelPub!$F41,Personnel!$J$12:$J$1499,\"Guaranteed package\")","v":0},{"$f":"SUMIF(Personnel!$B$12:$B$1499,PersonnelPub!$F41,Personnel!Z$12:Z$1499)","v":0},0,-1,0]
[null,null,null,null,null,"Performance bonus : Executive",null,null,null,{"$f":"SUMIF(Personnel!$J$12:$J$1499,\"Performance bonus\",Personnel!L$12:L$1499)","v":0},null,null,{"$f":"SUMIF(Personnel!$J$12:$J$1499,\"Performance bonus\",Personnel!Q$12:Q$1499)","v":0},null,null,{"$f":"SUMIF(Personnel!$J$12:$J$1499,\"Performance bonus\",Personnel!T$12:T$1499)","v":0},null,null,{"$f":"SUMIF(Personnel!$J$12:$J$1499,\"Performance bonus\",Personnel!W$12:W$1499)","v":0},null,null,{"$f":"SUMIF(Personnel!$J$12:$J$1499,\"Performance bonus\",Personnel!Z$12:Z$1499)","v":0}]
[{"$f":"IF(SUM(J43,M43,P43,S43,V43)>1,1,0)","v":1},null,null,null,null,"Performance bonus",null,null,null,{"$f":"SUMIF(Personnel!$J$11:$J$11,\"Performance bonus\",Personnel!L$11:L$11)","v":281600.86695},null,null,{"$f":"SUMIF(Personnel!$J$11:$J$11,\"Performance bonus\",Personnel!Q$11:Q$11)","v":98811},null,null,{"$f":"SUMIF(Personnel!$J$11:$J$11,\"Performance bonus\",Personnel!T$11:T$11)","v":0},null,null,{"$f":"SUMIF(Personnel!$J$11:$J$11,\"Performance bonus\",Personnel!W$11:W$11)","v":0},null,null,{"$f":"SUMIF(Personnel!$J$11:$J$11,\"Performance bonus\",Personnel!Z$11:Z$11)","v":0}]
[null,null,null,null,null,"Total",{"$f":"SUM(G20:G41)","v":16319},{"$f":"SUM(H20:H41)","v":16319},{"$f":"SUM(I20:I41)","v":12823},{"$f":"SUM(J20:J41,J43)","v":9643694.5542599987},{"$f":"IFERROR(J44/I44,0)","v":752.06227515090063},{"$f":"SUM(L20:L41)","v":16319},{"$f":"SUM(M20:M41,M43)","v":10339689.839833213},{"$f":"IFERROR(M44/L44,0)","v":633.59824988254263},{"$f":"SUM(O20:O41)","v":14320},{"$f":"SUM(P20:P41,P43)","v":10333656.880649207},{"$f":"IFERROR(P44/O44,0)","v":721.62408384421838},{"$f":"SUM(R20:R41)","v":14446},{"$f":"SUM(S20:S41,S43)","v":10800173.380714471},{"$f":"IFERROR(S44/R44,0)","v":747.62379764048671},{"$f":"SUM(U20:U41)","v":0},{"$f":"SUM(V20:V41,V43)","v":0},{"$f":"IFERROR(V44/U44,0)","v":0},{"$f":"IFERROR((V44/M44)^(1/3)-1,0)","v":-1},{"$f":"SUM(Y20:Y41)","v":0}]
[]
[]
[null,null,null,null,null,"Checks",{"$f":"G44-Personnel!N1500","v":0},{"$f":"H44-Personnel!O1500","v":0},{"$f":"I44-Personnel!K1500","v":0},{"$f":"J44-Personnel!L1500","v":0},{"$f":"K44-Personnel!M1500","v":0},{"$f":"L44-Personnel!P1500","v":0},{"$f":"M44-Personnel!Q1500","v":0},{"$f":"N44-Personnel!R1500","v":0},{"$f":"O44-Personnel!S1500","v":0},{"$f":"P44-Personnel!T1500","v":0},{"$f":"Q44-Personnel!U1500","v":0},{"$f":"R44-Personnel!V1500","v":0},{"$f":"S44-Personnel!W1500","v":0},{"$f":"T44-Personnel!X1500","v":0},{"$f":"U44-Personnel!Y1500","v":0},{"$f":"V44-Personnel!Z1500","v":0},{"$f":"W44-Personnel!AA1500","v":0}]
[null,null,null,null,null,null,{"$f":"+G13-G44","v":0},{"$f":"+H13-H44","v":0},0,0,0,0,0,0,0,0,0,0,0,0,0,0,0]

{"sheet":"PersonnelTrends","index":35,"n_rows":37,"n_cols":15,"rows_kept":37,"cut":false,"hidden":false,"merged":[[10,8,10,9],[10,10,10,11],[10,12,10,13],[9,6,9,7],[9,8,9,13],[10,6,10,7]]}
[]
[]
[null,null,null,null,null,null,null,null,null,"Red",null,"This colour signifies that there is more than 10% increase year on year growth rates on the number of employees"]
[null,null,null,null,null,null,null,null,null,"Green",null,"This colour signifies that there is more than 8% increase year on year growth rates on the unit cost"]
[null,null,null,null,null,null,null,null,null,"Orange",null,"This colour signifies that there is more than 10% decrease year on year growth rates on the number of employees"]
[null,null,null,null,null,"PE No",{"$f":"Settings!$O$2","v":"PE126"},null,null,"Purple",null,"This colour signifies that there is more than 8% decrease year on year growth rates on the unit cost"]
[null,null,null,null,null,"Entity name",{"$f":"Settings!$E$2","v":"South African Revenue Service"}]
[]
[]
[null,null,null,null,null,null,"Revised estimates",null,"Medium-term expenditure estimate"]
[null,null,null,null,null,null,{"$f":"MyYear0","v":"2025/26"},null,{"$f":"MyYearP1","v":"2026/27"},null,{"$f":"MyYearP2","v":"2027/28"},null,{"$f":"MyYearP3","v":"2028/29"},null,"Trends explanations"]
[null,null,null,null,null,"Salary level","Number \n(% change)","Unit cost \n(% change)","Number \n(% change)","Unit cost \n(% change)","Number \n(% change)","Unit cost \n(% change)","Number \n(% change)","Unit cost \n(% change)"]
[null,null,null,null,null,1,{"$f":"IFERROR((PersonnelPub!L20-PersonnelPub!I20)/PersonnelPub!I20,0)","v":-1},{"$f":"IFERROR((PersonnelPub!N20-PersonnelPub!K20)/PersonnelPub!K20,0)","v":-1},{"$f":"IFERROR((PersonnelPub!O20-PersonnelPub!L20)/PersonnelPub!L20,0)","v":0},{"$f":"IFERROR((PersonnelPub!Q20-PersonnelPub!N20)/PersonnelPub!N20,0)","v":0},{"$f":"IFERROR((PersonnelPub!R20-PersonnelPub!O20)/PersonnelPub!O20,0)","v":0},{"$f":"IFERROR((PersonnelPub!T20-PersonnelPub!Q20)/PersonnelPub!Q20,0)","v":0},{"$f":"IFERROR((PersonnelPub!U20-PersonnelPub!R20)/PersonnelPub!R20,0)","v":-1},{"$f":"IFERROR((PersonnelPub!W20-PersonnelPub!T20)/PersonnelPub!T20,0)","v":-1}]
[null,null,null,null,null,2,{"$f":"IFERROR((PersonnelPub!L21-PersonnelPub!I21)/PersonnelPub!I21,0)","v":0},{"$f":"IFERROR((PersonnelPub!N21-PersonnelPub!K21)/PersonnelPub!K21,0)","v":0},{"$f":"IFERROR((PersonnelPub!O21-PersonnelPub!L21)/PersonnelPub!L21,0)","v":0},{"$f":"IFERROR((PersonnelPub!Q21-PersonnelPub!N21)/PersonnelPub!N21,0)","v":0},{"$f":"IFERROR((PersonnelPub!R21-PersonnelPub!O21)/PersonnelPub!O21,0)","v":0},{"$f":"IFERROR((PersonnelPub!T21-PersonnelPub!Q21)/PersonnelPub!Q21,0)","v":0},{"$f":"IFERROR((PersonnelPub!U21-PersonnelPub!R21)/PersonnelPub!R21,0)","v":0},{"$f":"IFERROR((PersonnelPub!W21-PersonnelPub!T21)/PersonnelPub!T21,0)","v":0}]
[null,null,null,null,null,3,{"$f":"IFERROR((PersonnelPub!L22-PersonnelPub!I22)/PersonnelPub!I22,0)","v":0},{"$f":"IFERROR((PersonnelPub!N22-PersonnelPub!K22)/PersonnelPub!K22,0)","v":0},{"$f":"IFERROR((PersonnelPub!O22-PersonnelPub!L22)/PersonnelPub!L22,0)","v":0},{"$f":"IFERROR((PersonnelPub!Q22-PersonnelPub!N22)/PersonnelPub!N22,0)","v":0},{"$f":"IFERROR((PersonnelPub!R22-PersonnelPub!O22)/PersonnelPub!O22,0)","v":0},{"$f":"IFERROR((PersonnelPub!T22-PersonnelPub!Q22)/PersonnelPub!Q22,0)","v":0},{"$f":"IFERROR((PersonnelPub!U22-PersonnelPub!R22)/PersonnelPub!R22,0)","v":0},{"$f":"IFERROR((PersonnelPub!W22-PersonnelPub!T22)/PersonnelPub!T22,0)","v":0}]
[null,null,null,null,null,4,{"$f":"IFERROR((PersonnelPub!L23-PersonnelPub!I23)/PersonnelPub!I23,0)","v":0},{"$f":"IFERROR((PersonnelPub!N23-PersonnelPub!K23)/PersonnelPub!K23,0)","v":0},{"$f":"IFERROR((PersonnelPub!O23-PersonnelPub!L23)/PersonnelPub!L23,0)","v":0},{"$f":"IFERROR((PersonnelPub!Q23-PersonnelPub!N23)/PersonnelPub!N23,0)","v":0},{"$f":"IFERROR((PersonnelPub!R23-PersonnelPub!O23)/PersonnelPub!O23,0)","v":0},{"$f":"IFERROR((PersonnelPub!T23-PersonnelPub!Q23)/PersonnelPub!Q23,0)","v":0},{"$f":"IFERROR((PersonnelPub!U23-PersonnelPub!R23)/PersonnelPub!R23,0)","v":0},{"$f":"IFERROR((PersonnelPub!W23-PersonnelPub!T23)/PersonnelPub!T23,0)","v":0}]
[null,null,null,null,null,5,{"$f":"IFERROR((PersonnelPub!L24-PersonnelPub!I24)/PersonnelPub!I24,0)","v":1.0787878787878789},{"$f":"IFERROR((PersonnelPub!N24-PersonnelPub!K24)/PersonnelPub!K24,0)","v":-0.79313191950132034},{"$f":"IFERROR((PersonnelPub!O24-PersonnelPub!L24)/PersonnelPub!L24,0)","v":-0.6005830903790087},{"$f":"IFERROR((PersonnelPub!Q24-PersonnelPub!N24)/PersonnelPub!N24,0)","v":1.2875970613492216},{"$f":"IFERROR((PersonnelPub!R24-PersonnelPub!O24)/PersonnelPub!O24,0)","v":0.54744525547445255},{"$f":"IFERROR((PersonnelPub!T24-PersonnelPub!Q24)/PersonnelPub!Q24,0)","v":-0.52344156058752411},{"$f":"IFERROR((PersonnelPub!U24-PersonnelPub!R24)/PersonnelPub!R24,0)","v":-1},{"$f":"IFERROR((PersonnelPub!W24-PersonnelPub!T24)/PersonnelPub!T24,0)","v":-1}]
[null,null,null,null,null,6,{"$f":"IFERROR((PersonnelPub!L25-PersonnelPub!I25)/PersonnelPub!I25,0)","v":76.840909090909093},{"$f":"IFERROR((PersonnelPub!N25-PersonnelPub!K25)/PersonnelPub!K25,0)","v":0.15514085496332713},{"$f":"IFERROR((PersonnelPub!O25-PersonnelPub!L25)/PersonnelPub!L25,0)","v":-0.47795620437956204},{"$f":"IFERROR((PersonnelPub!Q25-PersonnelPub!N25)/PersonnelPub!N25,0)","v":0.43676683796803567},{"$f":"IFERROR((PersonnelPub!R25-PersonnelPub!O25)/PersonnelPub!O25,0)","v":-0.32997762863534674},{"$f":"IFERROR((PersonnelPub!T25-PersonnelPub!Q25)/PersonnelPub!Q25,0)","v":5.4527676167701732E-2},{"$f":"IFERROR((PersonnelPub!U25-PersonnelPub!R25)/PersonnelPub!R25,0)","v":-1},{"$f":"IFERROR((PersonnelPub!W25-PersonnelPub!T25)/PersonnelPub!T25,0)","v":-1}]
[null,null,null,null,null,7,{"$f":"IFERROR((PersonnelPub!L26-PersonnelPub!I26)/PersonnelPub!I26,0)","v":-0.71518987341772156},{"$f":"IFERROR((PersonnelPub!N26-PersonnelPub!K26)/PersonnelPub!K26,0)","v":-0.23801145024520964},{"$f":"IFERROR((PersonnelPub!O26-PersonnelPub!L26)/PersonnelPub!L26,0)","v":0},{"$f":"IFERROR((PersonnelPub!Q26-PersonnelPub!N26)/PersonnelPub!N26,0)","v":4.5500000000000103E-2},{"$f":"IFERROR((PersonnelPub!R26-PersonnelPub!O26)/PersonnelPub!O26,0)","v":2.2888888888888888},{"$f":"IFERROR((PersonnelPub!T26-PersonnelPub!Q26)/PersonnelPub!Q26,0)","v":0.52180607508640864},{"$f":"IFERROR((PersonnelPub!U26-PersonnelPub!R26)/PersonnelPub!R26,0)","v":-1},{"$f":"IFERROR((PersonnelPub!W26-PersonnelPub!T26)/PersonnelPub!T26,0)","v":-1}]
[null,null,null,null,null,8,{"$f":"IFERROR((PersonnelPub!L27-PersonnelPub!I27)/PersonnelPub!I27,0)","v":-0.63913595933926304},{"$f":"IFERROR((PersonnelPub!N27-PersonnelPub!K27)/PersonnelPub!K27,0)","v":-0.19995953208540049},{"$f":"IFERROR((PersonnelPub!O27-PersonnelPub!L27)/PersonnelPub!L27,0)","v":-1.0563380281690141E-2},{"$f":"IFERROR((PersonnelPub!Q27-PersonnelPub!N27)/PersonnelPub!N27,0)","v":4.1614876818479307E-2},{"$f":"IFERROR((PersonnelPub!R27-PersonnelPub!O27)/PersonnelPub!O27,0)","v":2.0088967971530249},{"$f":"IFERROR((PersonnelPub!T27-PersonnelPub!Q27)/PersonnelPub!Q27,0)","v":0.31700206839347556},{"$f":"IFERROR((PersonnelPub!U27-PersonnelPub!R27)/PersonnelPub!R27,0)","v":-1},{"$f":"IFERROR((PersonnelPub!W27-PersonnelPub!T27)/PersonnelPub!T27,0)","v":-1}]
[null,null,null,null,null,9,{"$f":"IFERROR((PersonnelPub!L28-PersonnelPub!I28)/PersonnelPub!I28,0)","v":-6.0486150367439234E-2},{"$f":"IFERROR((PersonnelPub!N28-PersonnelPub!K28)/PersonnelPub!K28,0)","v":-0.14213971180789692},{"$f":"IFERROR((PersonnelPub!O28-PersonnelPub!L28)/PersonnelPub!L28,0)","v":0},{"$f":"IFERROR((PersonnelPub!Q28-PersonnelPub!N28)/PersonnelPub!N28,0)","v":4.5499999999999957E-2},{"$f":"IFERROR((PersonnelPub!R28-PersonnelPub!O28)/PersonnelPub!O28,0)","v":3.4897713598074608E-2},{"$f":"IFERROR((PersonnelPub!T28-PersonnelPub!Q28)/PersonnelPub!Q28,0)","v":0.30225252804695546},{"$f":"IFERROR((PersonnelPub!U28-PersonnelPub!R28)/PersonnelPub!R28,0)","v":-1},{"$f":"IFERROR((PersonnelPub!W28-PersonnelPub!T28)/PersonnelPub!T28,0)","v":-1}]
[null,null,null,null,null,10,{"$f":"IFERROR((PersonnelPub!L29-PersonnelPub!I29)/PersonnelPub!I29,0)","v":4.4283305227655987},{"$f":"IFERROR((PersonnelPub!N29-PersonnelPub!K29)/PersonnelPub!K29,0)","v":-0.25969788674098504},{"$f":"IFERROR((PersonnelPub!O29-PersonnelPub!L29)/PersonnelPub!L29,0)","v":-4.3802423112767941E-2},{"$f":"IFERROR((PersonnelPub!Q29-PersonnelPub!N29)/PersonnelPub!N29,0)","v":6.2694454542294775E-2},{"$f":"IFERROR((PersonnelPub!R29-PersonnelPub!O29)/PersonnelPub!O29,0)","v":-0.76835607537361927},{"$f":"IFERROR((PersonnelPub!T29-PersonnelPub!Q29)/PersonnelPub!Q29,0)","v":0.43778845039211828},{"$f":"IFERROR((PersonnelPub!U29-PersonnelPub!R29)/PersonnelPub!R29,0)","v":-1},{"$f":"IFERROR((PersonnelPub!W29-PersonnelPub!T29)/PersonnelPub!T29,0)","v":-1}]
[null,null,null,null,null,11,{"$f":"IFERROR((PersonnelPub!L30-PersonnelPub!I30)/PersonnelPub!I30,0)","v":-0.7109375},{"$f":"IFERROR((PersonnelPub!N30-PersonnelPub!K30)/PersonnelPub!K30,0)","v":-0.1353971550895553},{"$f":"IFERROR((PersonnelPub!O30-PersonnelPub!L30)/PersonnelPub!L30,0)","v":-4.5045045045045045E-3},{"$f":"IFERROR((PersonnelPub!Q30-PersonnelPub!N30)/PersonnelPub!N30,0)","v":4.9091483578111383E-2},{"$f":"IFERROR((PersonnelPub!R30-PersonnelPub!O30)/PersonnelPub!O30,0)","v":2.4328808446455503},{"$f":"IFERROR((PersonnelPub!T30-PersonnelPub!Q30)/PersonnelPub!Q30,0)","v":0.35122751147745329},{"$f":"IFERROR((PersonnelPub!U30-PersonnelPub!R30)/PersonnelPub!R30,0)","v":-1},{"$f":"IFERROR((PersonnelPub!W30-PersonnelPub!T30)/PersonnelPub!T30,0)","v":-1}]
[null,null,null,null,null,12,{"$f":"IFERROR((PersonnelPub!L31-PersonnelPub!I31)/PersonnelPub!I31,0)","v":-0.82548476454293629},{"$f":"IFERROR((PersonnelPub!N31-PersonnelPub!K31)/PersonnelPub!K31,0)","v":-0.53732974236732234},{"$f":"IFERROR((PersonnelPub!O31-PersonnelPub!L31)/PersonnelPub!L31,0)","v":0},{"$f":"IFERROR((PersonnelPub!Q31-PersonnelPub!N31)/PersonnelPub!N31,0)","v":4.5499999999999943E-2},{"$f":"IFERROR((PersonnelPub!R31-PersonnelPub!O31)/PersonnelPub!O31,0)","v":8.7936507936507944},{"$f":"IFERROR((PersonnelPub!T31-PersonnelPub!Q31)/PersonnelPub!Q31,0)","v":0.37360809950927809},{"$f":"IFERROR((PersonnelPub!U31-PersonnelPub!R31)/PersonnelPub!R31,0)","v":-1},{"$f":"IFERROR((PersonnelPub!W31-PersonnelPub!T31)/PersonnelPub!T31,0)","v":-1}]
[null,null,null,null,null,13,{"$f":"IFERROR((PersonnelPub!L32-PersonnelPub!I32)/PersonnelPub!I32,0)","v":0.62896253602305474},{"$f":"IFERROR((PersonnelPub!N32-PersonnelPub!K32)/PersonnelPub!K32,0)","v":-0.22016497302740257},{"$f":"IFERROR((PersonnelPub!O32-PersonnelPub!L32)/PersonnelPub!L32,0)","v":0},{"$f":"IFERROR((PersonnelPub!Q32-PersonnelPub!N32)/PersonnelPub!N32,0)","v":4.5500000000000089E-2},{"$f":"IFERROR((PersonnelPub!R32-PersonnelPub!O32)/PersonnelPub!O32,0)","v":-0.39716939407341884},{"$f":"IFERROR((PersonnelPub!T32-PersonnelPub!Q32)/PersonnelPub!Q32,0)","v":0.41841481766924193},{"$f":"IFERROR((PersonnelPub!U32-PersonnelPub!R32)/PersonnelPub!R32,0)","v":-1},{"$f":"IFERROR((PersonnelPub!W32-PersonnelPub!T32)/PersonnelPub!T32,0)","v":-1}]
[null,null,null,null,null,14,{"$f":"IFERROR((PersonnelPub!L33-PersonnelPub!I33)/PersonnelPub!I33,0)","v":10.860869565217392},{"$f":"IFERROR((PersonnelPub!N33-PersonnelPub!K33)/PersonnelPub!K33,0)","v":-0.18807375383682606},{"$f":"IFERROR((PersonnelPub!O33-PersonnelPub!L33)/PersonnelPub!L33,0)","v":0},{"$f":"IFERROR((PersonnelPub!Q33-PersonnelPub!N33)/PersonnelPub!N33,0)","v":4.5499937366189125E-2},{"$f":"IFERROR((PersonnelPub!R33-PersonnelPub!O33)/PersonnelPub!O33,0)","v":-0.91788856304985333},{"$f":"IFERROR((PersonnelPub!T33-PersonnelPub!Q33)/PersonnelPub!Q33,0)","v":0.38390956289064915},{"$f":"IFERROR((PersonnelPub!U33-PersonnelPub!R33)/PersonnelPub!R33,0)","v":-1},{"$f":"IFERROR((PersonnelPub!W33-PersonnelPub!T33)/PersonnelPub!T33,0)","v":-1}]
[null,null,null,null,null,15,{"$f":"IFERROR((PersonnelPub!L34-PersonnelPub!I34)/PersonnelPub!I34,0)","v":0.36324786324786323},{"$f":"IFERROR((PersonnelPub!N34-PersonnelPub!K34)/PersonnelPub!K34,0)","v":1.4438098735661424E-2},{"$f":"IFERROR((PersonnelPub!O34-PersonnelPub!L34)/PersonnelPub!L34,0)","v":0},{"$f":"IFERROR((PersonnelPub!Q34-PersonnelPub!N34)/PersonnelPub!N34,0)","v":4.5500000000000138E-2},{"$f":"IFERROR((PersonnelPub!R34-PersonnelPub!O34)/PersonnelPub!O34,0)","v":-0.27899686520376177},{"$f":"IFERROR((PersonnelPub!T34-PersonnelPub!Q34)/PersonnelPub!Q34,0)","v":8.9368610613715663E-2},{"$f":"IFERROR((PersonnelPub!U34-PersonnelPub!R34)/PersonnelPub!R34,0)","v":-1},{"$f":"IFERROR((PersonnelPub!W34-PersonnelPub!T34)/PersonnelPub!T34,0)","v":-1}]
[null,null,null,null,null,16,{"$f":"IFERROR((PersonnelPub!L35-PersonnelPub!I35)/PersonnelPub!I35,0)","v":-0.76086956521739135},{"$f":"IFERROR((PersonnelPub!N35-PersonnelPub!K35)/PersonnelPub!K35,0)","v":-0.1380035101921768},{"$f":"IFERROR((PersonnelPub!O35-PersonnelPub!L35)/PersonnelPub!L35,0)","v":0},{"$f":"IFERROR((PersonnelPub!Q35-PersonnelPub!N35)/PersonnelPub!N35,0)","v":4.5499999999999916E-2},{"$f":"IFERROR((PersonnelPub!R35-PersonnelPub!O35)/PersonnelPub!O35,0)","v":3.1818181818181817},{"$f":"IFERROR((PersonnelPub!T35-PersonnelPub!Q35)/PersonnelPub!Q35,0)","v":0.26010545011369196},{"$f":"IFERROR((PersonnelPub!U35-PersonnelPub!R35)/PersonnelPub!R35,0)","v":-1},{"$f":"IFERROR((PersonnelPub!W35-PersonnelPub!T35)/PersonnelPub!T35,0)","v":-1}]
[null,null,null,null,null,17,{"$f":"IFERROR((PersonnelPub!L36-PersonnelPub!I36)/PersonnelPub!I36,0)","v":0},{"$f":"IFERROR((PersonnelPub!N36-PersonnelPub!K36)/PersonnelPub!K36,0)","v":0},{"$f":"IFERROR((PersonnelPub!O36-PersonnelPub!L36)/PersonnelPub!L36,0)","v":0},{"$f":"IFERROR((PersonnelPub!Q36-PersonnelPub!N36)/PersonnelPub!N36,0)","v":0},{"$f":"IFERROR((PersonnelPub!R36-PersonnelPub!O36)/PersonnelPub!O36,0)","v":0},{"$f":"IFERROR((PersonnelPub!T36-PersonnelPub!Q36)/PersonnelPub!Q36,0)","v":0},{"$f":"IFERROR((PersonnelPub!U36-PersonnelPub!R36)/PersonnelPub!R36,0)","v":0},{"$f":"IFERROR((PersonnelPub!W36-PersonnelPub!T36)/PersonnelPub!T36,0)","v":0}]
[null,null,null,null,null,18,{"$f":"IFERROR((PersonnelPub!L37-PersonnelPub!I37)/PersonnelPub!I37,0)","v":1.8787878787878789},{"$f":"IFERROR((PersonnelPub!N37-PersonnelPub!K37)/PersonnelPub!K37,0)","v":-0.17528345386145772},{"$f":"IFERROR((PersonnelPub!O37-PersonnelPub!L37)/PersonnelPub!L37,0)","v":0},{"$f":"IFERROR((PersonnelPub!Q37-PersonnelPub!N37)/PersonnelPub!N37,0)","v":4.5500000000000075E-2},{"$f":"IFERROR((PersonnelPub!R37-PersonnelPub!O37)/PersonnelPub!O37,0)","v":-0.64210526315789473},{"$f":"IFERROR((PersonnelPub!T37-PersonnelPub!Q37)/PersonnelPub!Q37,0)","v":0.27832917923560535},{"$f":"IFERROR((PersonnelPub!U37-PersonnelPub!R37)/PersonnelPub!R37,0)","v":-1},{"$f":"IFERROR((PersonnelPub!W37-PersonnelPub!T37)/PersonnelPub!T37,0)","v":-1}]
[null,null,null,null,null,19,{"$f":"IFERROR((PersonnelPub!L38-PersonnelPub!I38)/PersonnelPub!I38,0)","v":9.6666666666666661},{"$f":"IFERROR((PersonnelPub!N38-PersonnelPub!K38)/PersonnelPub!K38,0)","v":-9.792805621898977E-2},{"$f":"IFERROR((PersonnelPub!O38-PersonnelPub!L38)/PersonnelPub!L38,0)","v":0},{"$f":"IFERROR((PersonnelPub!Q38-PersonnelPub!N38)/PersonnelPub!N38,0)","v":4.5499999999999929E-2},{"$f":"IFERROR((PersonnelPub!R38-PersonnelPub!O38)/PersonnelPub!O38,0)","v":-0.90625},{"$f":"IFERROR((PersonnelPub!T38-PersonnelPub!Q38)/PersonnelPub!Q38,0)","v":0.20412399728662931},{"$f":"IFERROR((PersonnelPub!U38-PersonnelPub!R38)/PersonnelPub!R38,0)","v":-1},{"$f":"IFERROR((PersonnelPub!W38-PersonnelPub!T38)/PersonnelPub!T38,0)","v":-1}]
[null,null,null,null,null,20,{"$f":"IFERROR((PersonnelPub!L39-PersonnelPub!I39)/PersonnelPub!I39,0)","v":0},{"$f":"IFERROR((PersonnelPub!N39-PersonnelPub!K39)/PersonnelPub!K39,0)","v":0},{"$f":"IFERROR((PersonnelPub!O39-PersonnelPub!L39)/PersonnelPub!L39,0)","v":0},{"$f":"IFERROR((PersonnelPub!Q39-PersonnelPub!N39)/PersonnelPub!N39,0)","v":0},{"$f":"IFERROR((PersonnelPub!R39-PersonnelPub!O39)/PersonnelPub!O39,0)","v":0},{"$f":"IFERROR((PersonnelPub!T39-PersonnelPub!Q39)/PersonnelPub!Q39,0)","v":0},{"$f":"IFERROR((PersonnelPub!U39-PersonnelPub!R39)/PersonnelPub!R39,0)","v":0},{"$f":"IFERROR((PersonnelPub!W39-PersonnelPub!T39)/PersonnelPub!T39,0)","v":0}]
[null,null,null,null,null,21,{"$f":"IFERROR((PersonnelPub!L40-PersonnelPub!I40)/PersonnelPub!I40,0)","v":0},{"$f":"IFERROR((PersonnelPub!N40-PersonnelPub!K40)/PersonnelPub!K40,0)","v":0},{"$f":"IFERROR((PersonnelPub!O40-PersonnelPub!L40)/PersonnelPub!L40,0)","v":0},{"$f":"IFERROR((PersonnelPub!Q40-PersonnelPub!N40)/PersonnelPub!N40,0)","v":0},{"$f":"IFERROR((PersonnelPub!R40-PersonnelPub!O40)/PersonnelPub!O40,0)","v":0},{"$f":"IFERROR((PersonnelPub!T40-PersonnelPub!Q40)/PersonnelPub!Q40,0)","v":0},{"$f":"IFERROR((PersonnelPub!U40-PersonnelPub!R40)/PersonnelPub!R40,0)","v":0},{"$f":"IFERROR((PersonnelPub!W40-PersonnelPub!T40)/PersonnelPub!T40,0)","v":0}]
[null,null,null,null,null,22,{"$f":"IFERROR((PersonnelPub!L41-PersonnelPub!I41)/PersonnelPub!I41,0)","v":0.25},{"$f":"IFERROR((PersonnelPub!N41-PersonnelPub!K41)/PersonnelPub!K41,0)","v":-0.23402341706465637},{"$f":"IFERROR((PersonnelPub!O41-PersonnelPub!L41)/PersonnelPub!L41,0)","v":0},{"$f":"IFERROR((PersonnelPub!Q41-PersonnelPub!N41)/PersonnelPub!N41,0)","v":4.5499999999999992E-2},{"$f":"IFERROR((PersonnelPub!R41-PersonnelPub!O41)/PersonnelPub!O41,0)","v":-0.2},{"$f":"IFERROR((PersonnelPub!T41-PersonnelPub!Q41)/PersonnelPub!Q41,0)","v":0.41806746966492653},{"$f":"IFERROR((PersonnelPub!U41-PersonnelPub!R41)/PersonnelPub!R41,0)","v":-1},{"$f":"IFERROR((PersonnelPub!W41-PersonnelPub!T41)/PersonnelPub!T41,0)","v":-1}]
[null,null,null,null,null,"of  which"]
[null,null,null,null,null,"Performance rewards"]
[null,null,null,null,null,"Total",{"$f":"IFERROR((PersonnelPub!L44-PersonnelPub!I44)/PersonnelPub!I44,0)","v":0.27263510878889496},{"$f":"IFERROR((PersonnelPub!N44-PersonnelPub!K44)/PersonnelPub!K44,0)","v":-0.15751890392931661},{"$f":"IFERROR((PersonnelPub!O44-PersonnelPub!L44)/PersonnelPub!L44,0)","v":-0.12249525093449354},{"$f":"IFERROR((PersonnelPub!Q44-PersonnelPub!N44)/PersonnelPub!N44,0)","v":0.13893004593682842},{"$f":"IFERROR((PersonnelPub!R44-PersonnelPub!O44)/PersonnelPub!O44,0)","v":8.7988826815642452E-3},{"$f":"IFERROR((PersonnelPub!T44-PersonnelPub!Q44)/PersonnelPub!Q44,0)","v":3.6029442999966535E-2},{"$f":"IFERROR((PersonnelPub!U44-PersonnelPub!R44)/PersonnelPub!R44,0)","v":-1},{"$f":"IFERROR((PersonnelPub!W44-PersonnelPub!T44)/PersonnelPub!T44,0)","v":-1}]

{"sheet":"PerformInfoPub","index":36,"n_rows":725,"n_cols":36,"rows_kept":725,"cut":false,"hidden":false,"merged":[]}
[null,null,null,null,null,null,null,null,null,null,null,null,null,null,null,null,null,null,null,null,null,"Force hide","Evaluate",{"$f":"IF(W1=1,IF(OR(G1<>0,I1<>0,J1<>0,K1<>0,L1<>0,M1<>0,N1<>0),1,0),1)","v":1},{"$f":"IF(V1=5,0,X1)","v":1},null,null,null,"Selected performance and operations indicators",null,null,null,"Last Column:","I",9,67]
[null,null,null,null,null,null,null,null,null,null,null,null,null,null,null,null,null,null,"Table number","B 1",null,null,null,{"$f":"IF(W2=1,IF(OR(G2<>0,I2<>0,J2<>0,K2<>0,L2<>0,M2<>0,N2<>0),1,0),1)","v":1},1,null,null,null,{"$f":"Settings!$E$2","v":"South African Revenue Service"},null,null,null,null,null,null,{"$f":"SUM(F1:OFFSET(F1,0,AI1))","v":0}]
[]
[]
[]
[null,null,null,null,null,"PE No",{"$f":"Settings!$O$2","v":"PE126"}]
[null,null,null,null,null,"Entity name",{"$f":"Settings!$E$2","v":"South African Revenue Service"}]
[]
[null,null,null,null,null,{"$f":"\"Table\"&\" \"&T2&\" \"&AC2&\":\"&\" \"&AC1","v":"Table B 1 South African Revenue Service: Selected performance and operations indicators"},null,null,null,null,null,null,null,null,null,null,null,null,null,null,null,null,null,{"$f":"IF(W9=1,IF(OR(G9<>0,I9<>0,J9<>0,K9<>0,L9<>0,M9<>0,N9<>0),1,0),1)","v":1},1,null,null,null,null,null,null,null,"Text Column:","A",1,{"$f":"AJ1-AJ2","v":67}]
[null,null,null,null,null,"Indicator","Programme/Activity/ Objective","Priorities","Past",null,null,"Current","Projected",null,null,null,null,null,null,null,null,null,null,{"$f":"IF(W10=1,IF(OR(G10<>0,I10<>0,J10<>0,K10<>0,L10<>0,M10<>0,N10<>0,I<>0),1,0),1)","v":1},1]
["Item_ID",null,null,null,null,null,null,null,{"$f":"MyYearM3","v":"2022/23"},{"$f":"MyYearM2","v":"2023/24"},{"$f":"MyYearM1","v":"2024/25"},{"$f":"MyYear0","v":"2025/26"},{"$f":"MyYearP1","v":"2026/27"},{"$f":"MyYearP2","v":"2027/28"},{"$f":"MyYearP3","v":"2028/29"},null,null,null,null,null,null,null,null,{"$f":"IF(W11=1,IF(OR(G11<>0,I11<>0,J11<>0,K11<>0,L11<>0,M11<>0,N11<>0,I<>0),1,0),1)","v":1},1]
[1,null,null,null,null,"Employee Engagement Index score achieved based on survey of employees","Administration","Outcome 10: Reduced poverty and improved livelihoods","69.40%","The Employee Engagement action plan \nto address shortcomings identified in \nthe last survey, was developed and \napproved and is in the process of being \nimplemented. The impact of the \ninterventions will be tested in the next \nsurvey scheduled for 2024/25.","Achieve a top \n15% place in \nthe market \n(the market \ncomprises \nof RSA \ninstitutions and \ngovernment\u0002comparable \nsectors)","Continue to \nimplement \ncustomised \nsolutions \nto enable \nengagement \npriorities and \nachieve 80% \nimplementation \nagainst the \nmilestone plan","Achieve a top \n15% place in \nthe market, \ncomprising RSA \ninstitutions and \ngovernment\u0002comparable \nsectors","Continue to \nimplement \ncustomised \nsolutions \nto enable \nengagement \npriorities and \nachieve 80% \nimplementation \nagainst the \nmilestone plan",0," ",null,null,null,null,null,null,1,{"$f":"IF(W12=1,IF(OR(G12<>0,I12<>0,J12<>0,K12<>0,L12<>0,M12<>0,N12<>0,O12<>0),1,0),1)","v":1},1]
[{"$f":"A12+1","v":2},null,null,null,null,"% attainment of targets as per approved Employment Equity Plan","Administration","Outcome 10: Reduced poverty and improved livelihoods","Racial Equity:\n80.29%\nGender Equity: 50.13%\nDisability Equity: 2.08%","Racial Equity: \n81.56% \nGender Equity: \n50.75% \nDisability Equity: \n2.21%","Racial Equity \n= 81.96%\nGender \nEquity \n= 51.82%\nDisability \nEquity \n= 3.39%","Racial Equity \n= 82.98%\nGender \nEquity \n= 52.09%\nDisability \nEquity \n= 4.11%","Racial Equity \n= 84.01%\nGender \nEquity \n= 52.37%\nDisability \nEquity \n= 4.84%","Racial Equity \n= 84.01%\nGender \nEquity \n= 52.37%\nDisability \nEquity \n= 4.84%",0," ",null,null,null,null,null,null,1,{"$f":"IF(W13=1,IF(OR(G13<>0,I13<>0,J13<>0,K13<>0,L13<>0,M13<>0,N13<>0,O13<>0),1,0),1)","v":1},1]
[{"$f":"A13+1","v":3},null,null,null,null,"Unqualified audit opinion","Administration","Outcome 10: Reduced poverty and improved livelihoods","Clean AG Audit Report from AG","Clean Audit \nreport","Unqualified audit opinion","Unqualified audit opinion","Unqualified audit opinion","Unqualified audit opinion",0," ",null,null,null,null,null,null,1,1,1]
[4,null,null,null,null,"% Deviation between SARS’ spending for the year and the allocation SARS received from National Treasury","Administration","Outcome 10: Reduced poverty and improved livelihoods",3.8E-3,3.0099999999999998E-2,0.02,0.02,0.02,0.02,0," ",null,null,null,null,null,null,1,1,1]
[5,null,null,null,null,"% score per public opinion survey","Administration","Outcome 10: Reduced poverty and improved livelihoods","76.50%","77.53%","76.50%","77.50%","78.50%","78.50%",0," ",null,null,null,null,null,null,1,1,1]
[6,null,null,null,null,"% Service Charter performance score ","Administration","Outcome 10: Reduced poverty and improved livelihoods","79.32%","81.33%","85%","86.00%","87.00%","88.00%",0," ",null,null,null,null,null,null,1,1,1]
[7,null,null,null,null,"Stakeholder engagement effectiveness Index (score)","Administration","Outcome 10: Reduced poverty and improved livelihoods","New indicator","New indicator","Formulate \na new \nEnterprise \nStakeholder \nManagement \nPolicy","Determine \nbaseline for \nstakeholder \nengagement \neffectiveness \nIndex","Achieve \n1.50% point \nimprovement \non \nstakeholder \nengagement \neffectiveness \nIndex","Achieve \n1.00% point \nimprovement \non \nstakeholder \nengagement \neffectiveness \nIndex",0," ",null,null,null,null,null,null,1,1,1]
[8,null,null,null,null,"% \nimplementation \nof prioritised \njob families","Administration","Outcome 10: Reduced poverty and improved livelihoods","New indicator","New indicator","Achieve 90% \nimplementation \nof prioritised \njob families","Achieve 90% \nimplementation \nof prioritised \njob families","Achieve 90% \nimplementation \nof prioritised \njob families","Achieve 90% \nimplementation \nof prioritised \njob families",0," ",null,null,null,null,null,null,1,1,1]
[9,null,null,null,null,"Percentage of \nimplementation \nof the action \nplan developed \nthrough self\u0002assessment \nof the OECD/\nSARS Trust \nMaturity Model","Administration","Outcome 10: Reduced poverty and improved livelihoods","New indicator","New indicator","Achieve 50% \nof action plan","Achieve 70% \nof action plan","Achieve 85% \nof action plan","Achieve 100% \nof action plan",0," ",null,null,null,null,null,null,1,1,1]
[10,null,null,null,null,"Percentage of collection of revenue as agreed with Minister of Finance","Deputy Commissioner: Taxpayer Engagement and Operations","Outcome 10: Reduced poverty and improved livelihoods","R1 686.70 billion","R1 740.87 billion","100% ","100% ","100% ","100% ",0," ",null,null,null,null,null,null,1,1,1]
[11,null,null,null,null,"Level of overall tax compliance (%)","Deputy Commissioner: Taxpayer Engagement and Operations","Outcome 10: Reduced poverty and improved livelihoods","(-)1.28% decline \non baseline \n61.61%\n(62.89% - 1.28%) ","2.02 percentage \npoints increase on \nprior year \nachievement.\n63.63% \n(61.61% + 2.02%)","3.00% points \nincrease on \nprior year’s \nachievement","5.00% points \nincrease on \nprior year’s \nachievement","3.00% points \nincrease on \nprior year’s \nachievement","2.00% points \nincrease on \nprior year’s \nachievement",0," ",null,null,null,null,null,null,1,1,1]
[12,null,null,null,null,"Enhanced Trade Facilitation","Deputy Commissioner: Taxpayer Engagement and Operations","Outcome 10: Reduced poverty and improved livelihoods","A trade facilitation \nindex was developed \nand approved. \nA baseline was \ndetermined and future \ntargets were set","18.80 percentage \npoints increase on \nbaseline \n71.60% \n(52.80% + 18.80%)","5.00%\nincrease on\nprior year\nachievement","5.00% points \nincrease on \nprior year’s \nachievement","2.00% points \nincrease on \nprior year’s \nachievement","2.00% points \nincrease on \nprior year’s \nachievement",0," ",null,null,null,null,null,null,1,1,1]
[13,null,null,null,null,"Percentage of taxpayers and traders surveyed are satisfied with the clarity and certainty provided by SARS","Deputy Commissioner: Taxpayer Engagement and Operations","Outcome 10: Reduced poverty and improved livelihoods","75.33%","66.86%","77.00% ","77.50% ","78.00%","78.50%",0," ",null,null,null,null,null,null,1,1,1]
[14,null,null,null,null,"% of taxpayers and traders using digital and self-help platforms to interact with SARS ","Deputy Commissioner: Taxpayer Engagement and Operations","Outcome 10: Reduced poverty and improved livelihoods","89.38%","88.49%","91.00%","91.50%","92.00%","92.50%",0," ",null,null,null,null,null,null,1,1,1]
[15,null,null,null,null,"Percentage of standard taxpayers’ returns auto assessed by SARS (individual taxpayers)","Deputy Commissioner: Taxpayer Engagement and Operations","Outcome 10: Reduced poverty and improved livelihoods","94.70%","97.33%","95.00%","95.00%","95.00%","95.00%",0," ",null,null,null,null,null,null,1,1,1]
[16,null,null,null,null,"Risk detection rate","Deputy Commissioner: Taxpayer Engagement and Operations","Outcome 10: Reduced poverty and improved livelihoods","96.61%","98.10%","95.00%","96.00%","97.00%","97.00%",0," ",null,null,null,null,null,null,1,1,1]
[17,null,null,null,null,"% utilisation of automated risk assessment for taxpayers and traders","Deputy Commissioner: Taxpayer Engagement and Operations","Outcome 10: Reduced poverty and improved livelihoods","100.00% standard\n66.95% complex","100.00% \nStandard \n82.80% \nComplex","100.00% standard\n77.00% complex","100.00% standard\n75.00% complex","100.00% standard\n80.00% complex","100.00%\nstandard\n80.00%\ncomplex",0," ",null,null,null,null,null,null,1,1,1]
[18,null,null,null,null,"% \nimplementation \nof the focused \nSMME \nCompliance \nProgramme \ninitiatives \non the pilot population","Deputy Commissioner: Taxpayer Engagement and Operations","Outcome 10: Reduced poverty and improved livelihoods","New measure","The SMME\ncompliance\nprogramme\nis approved","80.00% \ncompletion \nof the pilot \nand impact \nassessment \non \nimprovement \nof SMMEs’ \ncustomer \nexperience \nand \nfacilitation \nof seamless \ncompliance","Implement \nthe SMME \nCompliance \nProgramme ","Track the \nSMME \nCompliance \nImprovement \nper Programme","Track the \nSMME \nCompliance \nImprovement \nper Programme",0," ",null,null,null,null,null,null,1,1,1]
[19,null,null,null,null,"Number of \nsignificant \nschemes \ncollapsed ","Deputy commissioner: Taxpayer engagement and operations ","Outcome 10: Reduced poverty and improved livelihoods","New measure","New measure","3","3","3","3",0," ",null,null,null,null,null,null,1,1,1]
[20,null,null,null,null,"% of planned capacity to be available for mission critical systems","Deputy Commissioner: Strategy, Enabling and Modernisation","Outcome 10: Reduced poverty and improved livelihoods","99.70%","99.61%","99.00%","99.00%","99.00%","99.00%",0," ",null,null,null,null,null,null,1,1,1]
[21,null,null,null,null,"Number of security breaches on digital platforms from known risks","Deputy Commissioner: Strategy, Enabling and Modernisation","Outcome 10: Reduced poverty and improved livelihoods","Nil ","Nil ","Nil ","Nil ","Nil ","nil",0," ",null,null,null,null,null,null,1,1,1]
[22,null,null,null,null," "," "," "," "," "," "," "," "," "," "," ",null,null,null,null,null,null,1,1,1]
[23,null,null,null,null," "," "," "," "," "," "," "," "," "," "," ",null,null,null,null,null,null,1,1,1]
[24,null,null,null,null," "," "," "," "," "," "," "," "," "," "," ",null,null,null,null,null,null,1,1,1]
[25,null,null,null,null," "," "," "," "," "," "," "," "," "," "," ",null,null,null,null,null,null,1,1,1]
[26,null,null,null,null," "," "," "," "," "," "," "," "," "," "," ",null,null,null,null,null,null,1,1,1]
[27,null,null,null,null," "," "," "," "," "," "," "," "," "," "," ",null,null,null,null,null,null,1,1,1]
[28,null,null,null,null," "," "," "," "," "," "," "," "," "," "," ",null,null,null,null,null,null,1,1,1]
[29,null,null,null,null," "," "," "," "," "," "," "," "," "," "," ",null,null,null,null,null,null,1,1,1]
[30,null,null,null,null," "," "," "," "," "," "," "," "," "," "," ",null,null,null,null,null,null,1,1,1]
[31,null,null,null,null," "," "," "," "," "," "," "," "," "," "," ",null,null,null,null,null,null,1,1,1]
[32,null,null,null,null," "," "," "," "," "," "," "," "," "," "," ",null,null,null,null,null,null,1,1,1]
[33,null,null,null,null," "," "," "," "," "," "," "," "," "," "," ",null,null,null,null,null,null,1,1,1]
[34,null,null,null,null," "," "," "," "," "," "," "," "," "," "," ",null,null,null,null,null,null,1,1,1]
[35,null,null,null,null," "," "," "," "," "," "," "," "," "," "," ",null,null,null,null,null,null,1,1,1]
[36,null,null,null,null," "," "," "," "," "," "," "," "," "," "," ",null,null,null,null,null,null,1,1,1]
[37,null,null,null,null," "," "," "," "," "," "," "," "," "," "," ",null,null,null,null,null,null,1,1,1]
[38,null,null,null,null," "," "," "," "," "," "," "," "," "," "," ",null,null,null,null,null,null,1,1,1]
[39,null,null,null,null," "," "," "," "," "," "," "," "," "," "," ",null,null,null,null,null,null,1,1,1]
[40,null,null,null,null," "," "," "," "," "," "," "," "," "," "," ",null,null,null,null,null,null,1,1,1]
[41,null,null,null,null," "," "," "," "," "," "," "," "," "," "," ",null,null,null,null,null,null,1,1,1]
[42,null,null,null,null," "," "," "," "," "," "," "," "," "," "," ",null,null,null,null,null,null,1,1,1]
[43,null,null,null,null," "," "," "," "," "," "," "," "," "," "," ",null,null,null,null,null,null,1,1,1]
[44,null,null,null,null," "," "," "," "," "," "," "," "," "," "," ",null,null,null,null,null,null,null,{"$f":"IF(W55=1,IF(OR(G55<>0,I55<>0,J55<>0,K55<>0,L55<>0,M55<>0,N55<>0,O55<>0),1,0),1)","v":1},1]
[45,null,null,null,null," "," "," "," "," "," "," "," "," "," "," ",null,null,null,null,null,null,null,1,1]
[46,null,null,null,null," "," "," "," "," "," "," "," "," "," "," ",null,null,null,null,null,null,null,1,1]
[47,null,null,null,null," "," "," "," "," "," "," "," "," "," "," ",null,null,null,null,null,null,null,1,1]
[48,null,null,null,null," "," "," "," "," "," "," "," "," "," "," "]
[49,null,null,null,null," "," "," "," "," "," "," "," "," "," "," "]
[50,null,null,null,null," "," "," "," "," "," "," "," "," "," "," "]
[51,null,null,null,null," "," "," "," "," "," "," "," "," "," "," "]
[52,null,null,null,null," "," "," "," "," "," "," "," "," "," "," "]
[53,null,null,null,null," "," "," "," "," "," "," "," "," "," "," "]
[54,null,null,null,null," "," "," "," "," "," "," "," "," "," "," "]
[55,null,null,null,null," "," "," "," "," "," "," "," "," "," "," "]
[56,null,null,null,null," "," "," "," "," "," "," "," "," "," "," "]
[57,null,null,null,null," "," "," "," "," "," "," "," "," "," "," "]
[58,null,null,null,null," "," "," "," "," "," "," "," "," "," "," "]
[59,null,null,null,null," "," "," "," "," "," "," "," "," "," "," "]
[60,null,null,null,null," "," "," "," "," "," "," "," "," "," "," "]
[61,null,null,null,null," "," "," "," "," "," "," "," "," "," "," "]
[62,null,null,null,null," "," "," "," "," "," "," "," "," "," "," "]
[63,null,null,null,null," "," "," "," "," "," "," "," "," "," "," "]
[64,null,null,null,null," "," "," "," "," "," "," "," "," "," "," "]
[65,null,null,null,null," "," "," "," "," "," "," "," "," "," "," "]
[66,null,null,null,null," "," "," "," "," "," "," "," "," "," "," "]
[{"$f":"A77+1","v":67},null,null,null,null," "," "," "," "," "," "," "," "," "," "," "]
[68,null,null,null,null," "," "," "," "," "," "," "," "," "," "," "]
[69,null,null,null,null," "," "," "," "," "," "," "," "," "," "," "]
[70,null,null,null,null," "," "," "," "," "," "," "," "," "," "," "]
[71,null,null,null,null," "," "," "," "," "," "," "," "," "," "," "]
[72,null,null,null,null," "," "," "," "," "," "," "," "," "," "," "]
[73,null,null,null,null," "," "," "," "," "," "," "," "," "," "," "]
[74,null,null,null,null," "," "," "," "," "," "," "," "," "," "," "]
[75,null,null,null,null," "," "," "," "," "," "," "," "," "," "," "]
[76,null,null,null,null," "," "," "," "," "," "," "," "," "," "," "]
[77,null,null,null,null," "," "," "," "," "," "," "," "," "," "," "]
[78,null,null,null,null," "," "," "," "," "," "," "," "," "," "," "]
[79,null,null,null,null," "," "," "," "," "," "," "," "," "," "," "]
[80,null,null,null,null," "," "," "," "," "," "," "," "," "," "," "]
[81,null,null,null,null," "," "," "," "," "," "," "," "," "," "," "]
[82,null,null,null,null," "," "," "," "," "," "," "," "," "," "," "]
[83,null,null,null,null," "," "," "," "," "," "," "," "," "," "," "]
[84,null,null,null,null," "," "," "," "," "," "," "," "," "," "," "]
[85,null,null,null,null," "," "," "," "," "," "," "," "," "," "," "]
[86,null,null,null,null," "," "," "," "," "," "," "," "," "," "," "]
[87,null,null,null,null," "," "," "," "," "," "," "," "," "," "," "]
[88,null,null,null,null," "," "," "," "," "," "," "," "," "," "," "]
[89,null,null,null,null," "," "," "," "," "," "," "," "," "," "," "]
[90,null,null,null,null," "," "," "," "," "," "," "," "," "," "," "]
[91,null,null,null,null," "," "," "," "," "," "," "," "," "," "," "]
[92,null,null,null,null," "," "," "," "," "," "," "," "," "," "," "]
[93,null,null,null,null," "," "," "," "," "," "," "," "," "," "," "]
[94,null,null,null,null," "," "," "," "," "," "," "," "," "," "," "]
[95,null,null,null,null," "," "," "," "," "," "," "," "," "," "," "]
[96,null,null,null,null," "," "," "," "," "," "," "," "," "," "," "]
[97,null,null,null,null," "," "," "," "," "," "," "," "," "," "," "]
[98,null,null,null,null," "," "," "," "," "," "," "," "," "," "," "]
[99,null,null,null,null," "," "," "," "," "," "," "," "," "," "," "]
[100,null,null,null,null," "," "," "," "," "," "," "," "," "," "," "]
[101,null,null,null,null," "," "," "," "," "," "," "," "," "," "," "]
[102,null,null,null,null," "," "," "," "," "," "," "," "," "," "," "]
[103,null,null,null,null," "," "," "," "," "," "," "," "," "," "," "]
[104,null,null,null,null," "," "," "," "," "," "," "," "," "," "," "]
[105,null,null,null,null," "," "," "," "," "," "," "," "," "," "," "]
[106,null,null,null,null," "," "," "," "," "," "," "," "," "," "," "]
[107,null,null,null,null," "," "," "," "," "," "," "," "," "," "," "]
[108,null,null,null,null," "," "," "," "," "," "," "," "," "," "," "]
[109,null,null,null,null," "," "," "," "," "," "," "," "," "," "," "]
[110,null,null,null,null," "," "," "," "," "," "," "," "," "," "," "]
[111,null,null,null,null," "," "," "," "," "," "," "," "," "," "," "]
[112,null,null,null,null," "," "," "," "," "," "," "," "," "," "," "]
[113,null,null,null,null," "," "," "," "," "," "," "," "," "," "," "]
[114,null,null,null,null," "," "," "," "," "," "," "," "," "," "," "]
[115,null,null,null,null," "," "," "," "," "," "," "," "," "," "," "]
[116,null,null,null,null," "," "," "," "," "," "," "," "," "," "," "]
[117,null,null,null,null," "," "," "," "," "," "," "," "," "," "," "]
[118,null,null,null,null," "," "," "," "," "," "," "," "," "," "," "]
[119,null,null,null,null," "," "," "," "," "," "," "," "," "," "," "]
[120,null,null,null,null," "," "," "," "," "," "," "," "," "," "," "]
[121,null,null,null,null," "," "," "," "," "," "," "," "," "," "," "]
[122,null,null,null,null," "," "," "," "," "," "," "," "," "," "," "]
[123,null,null,null,null," "," "," "," "," "," "," "," "," "," "," "]
[124,null,null,null,null," "," "," "," "," "," "," "," "," "," "," "]
[125,null,null,null,null," "," "," "," "," "," "," "," "," "," "," "]
[126,null,null,null,null," "," "," "," "," "," "," "," "," "," "," "]
[127,null,null,null,null," "," "," "," "," "," "," "," "," "," "," "]
[128,null,null,null,null," "," "," "," "," "," "," "," "," "," "," "]
[129,null,null,null,null," "," "," "," "," "," "," "," "," "," "," "]
[130,null,null,null,null," "," "," "," "," "," "," "," "," "," "," "]
[{"$f":"A141+1","v":131},null,null,null,null," "," "," "," "," "," "," "," "," "," "," "]
[132,null,null,null,null," "," "," "," "," "," "," "," "," "," "," "]
[133,null,null,null,null," "," "," "," "," "," "," "," "," "," "," "]
[134,null,null,null,null," "," "," "," "," "," "," "," "," "," "," "]
[135,null,null,null,null," "," "," "," "," "," "," "," "," "," "," "]
[136,null,null,null,null," "," "," "," "," "," "," "," "," "," "," "]
[137,null,null,null,null," "," "," "," "," "," "," "," "," "," "," "]
[138,null,null,null,null," "," "," "," "," "," "," "," "," "," "," "]
[139,null,null,null,null," "," "," "," "," "," "," "," "," "," "," "]
[140,null,null,null,null," "," "," "," "," "," "," "," "," "," "," "]
[141,null,null,null,null," "," "," "," "," "," "," "," "," "," "," "]
[142,null,null,null,null," "," "," "," "," "," "," "," "," "," "," "]
[143,null,null,null,null," "," "," "," "," "," "," "," "," "," "," "]
[144,null,null,null,null," "," "," "," "," "," "," "," "," "," "," "]
[145,null,null,null,null," "," "," "," "," "," "," "," "," "," "," "]
[146]
[147]
[148]
[149]
[150]
[151]
[152]
[153]
[154]
[155]
[156]
[157]
[158]
[159]
[160]
[161]
[162]
[163]
[164]
[165]
[166]
[167]
[168]
[169]
[170]
[171]
[172]
[173]
[174]
[175]
[176]
[177]
[178]
[179]
[180]
[181]
[182]
[183]
[184]
[185]
[186]
[187]
[188]
[189]
[190]
[191]
[192]
[193]
[194]
[{"$f":"A205+1","v":195}]
[196]
[197]
[198]
[199]
[200]
[201]
[202]
[203]
[204]
[205]
[206]
[207]
[208]
[209]
[210]
[211]
[212]
[213]
[214]
[215]
[216]
[217]
[218]
[219]
[220]
[221]
[222]
[223]
[224]
[225]
[226]
[227]
[228]
[229]
[230]
[231]
[232]
[233]
[234]
[235]
[236]
[237]
[238]
[239]
[240]
[241]
[242]
[243]
[244]
[245]
[246]
[247]
[248]
[249]
[250]
[251]
[252]
[253]
[254]
[255]
[256]
[257]
[258]
[{"$f":"A269+1","v":259}]
[]
[]
[]
[]
[]
[]
[]
[]
[]
[]
[]
[]
[]
[]
[]
[]
[]
[]
[]
[]
[]
[]
[]
[]
[]
[]
[]
[]
[]
[]
[]
[]
[]
[]
[]
[]
[]
[]
[]
[]
[]
[]
[]
[]
[]
[]
[]
[]
[]
[]
[]
[]
[]
[]
[]
[]
[]
[]
[]
[]
[]
[]
[]
[]
[]
[]
[]
[]
[]
[]
[]
[]
[]
[]
[]
[]
[]
[]
[]
[]
[]
[]
[]
[]
[]
[]
[]
[]
[]
[]
[]
[]
[]
[]
[]
[]
[]
[]
[]
[]
[]
[]
[]
[]
[]
[]
[]
[]
[]
[]
[]
[]
[]
[]
[]
[]
[]
[]
[]
[]
[]
[]
[]
[]
[]
[]
[]
[]
[]
[]
[]
[]
[]
[]
[]
[]
[]
[]
[]
[]
[]
[]
[]
[]
[]
[]
[]
[]
[]
[]
[]
[]
[]
[]
[]
[]
[]
[]
[]
[]
[]
[]
[]
[]
[]
[]
[]
[]
[]
[]
[]
[]
[]
[]
[]
[]
[]
[]
[]
[]
[]
[]
[]
[]
[]
[]
[]
[]
[]
[]
[]
[]
[]
[]
[]
[]
[]
[]
[]
[]
[]
[]
[]
[]
[]
[]
[]
[]
[]
[]
[]
[]
[]
[]
[]
[]
[]
[]
[]
[]
[]
[]
[]
[]
[]
[]
[]
[]
[null,null,null,null,null,null,null,null,"Past",null,null,"Current","Projected"]
[null,null,null,null,null,"Indicator","Activity/ Objective/ Programme/ Project",null,{"$f":"MyYearM3","v":"2022/23"},{"$f":"MyYearM2","v":"2023/24"},{"$f":"MyYearM1","v":"2024/25"},{"$f":"MyYear0","v":"2025/26"},{"$f":"MyYearP1","v":"2026/27"},{"$f":"MyYearP2","v":"2027/28"},{"$f":"MyYearP3","v":"2028/29"},"indi"]
[null,null,null,null,null,{"$f":"Admin!F11","v":"Employee Engagement Index score achieved based on survey of employees"},{"$f":"Admin!P11","v":"Administration"},{"$f":"Admin!G11","v":"Outcome 10: Reduced poverty and improved livelihoods"},{"$f":"Admin!I11","v":"69.40%"},{"$f":"Admin!J11","v":"The Employee Engagement action plan \nto address shortcomings identified in \nthe last survey, was developed and \napproved and is in the process of being \nimplemented. The impact of the \ninterventions will be tested in the next \nsurvey scheduled for 2024/25."},{"$f":"Admin!K11","v":"Achieve a top \n15% place in \nthe market \n(the market \ncomprises \nof RSA \ninstitutions and \ngovernment\u0002comparable \nsectors)"},{"$f":"Admin!L11","v":"Continue to \nimplement \ncustomised \nsolutions \nto enable \nengagement \npriorities and \nachieve 80% \nimplementation \nagainst the \nmilestone plan"},{"$f":"Admin!M11","v":"Achieve a top \n15% place in \nthe market, \ncomprising RSA \ninstitutions and \ngovernment\u0002comparable \nsectors"},{"$f":"Admin!N11","v":"Continue to \nimplement \ncustomised \nsolutions \nto enable \nengagement \npriorities and \nachieve 80% \nimplementation \nagainst the \nmilestone plan"},{"$f":"Admin!O11","v":0},{"$f":"Admin!Q11","v":"Yes"}]
[null,null,null,null,null,{"$f":"Admin!F12","v":"% attainment of targets as per approved Employment Equity Plan"},{"$f":"Admin!P12","v":"Administration"},{"$f":"Admin!G12","v":"Outcome 10: Reduced poverty and improved livelihoods"},{"$f":"Admin!I12","v":"Racial Equity:\n80.29%\nGender Equity: 50.13%\nDisability Equity: 2.08%"},{"$f":"Admin!J12","v":"Racial Equity: \n81.56% \nGender Equity: \n50.75% \nDisability Equity: \n2.21%"},{"$f":"Admin!K12","v":"Racial Equity \n= 81.96%\nGender \nEquity \n= 51.82%\nDisability \nEquity \n= 3.39%"},{"$f":"Admin!L12","v":"Racial Equity \n= 82.98%\nGender \nEquity \n= 52.09%\nDisability \nEquity \n= 4.11%"},{"$f":"Admin!M12","v":"Racial Equity \n= 84.01%\nGender \nEquity \n= 52.37%\nDisability \nEquity \n= 4.84%"},{"$f":"Admin!N12","v":"Racial Equity \n= 84.01%\nGender \nEquity \n= 52.37%\nDisability \nEquity \n= 4.84%"},{"$f":"Admin!O12","v":0},{"$f":"Admin!Q12","v":"Yes"}]
[null,null,null,null,null,{"$f":"Admin!F13","v":"Unqualified audit opinion"},{"$f":"Admin!P13","v":"Administration"},{"$f":"Admin!G13","v":"Outcome 10: Reduced poverty and improved livelihoods"},{"$f":"Admin!I13","v":"Clean AG Audit Report from AG"},{"$f":"Admin!J13","v":"Clean Audit \nreport"},{"$f":"Admin!K13","v":"Unqualified audit opinion"},{"$f":"Admin!L13","v":"Unqualified audit opinion"},{"$f":"Admin!M13","v":"Unqualified audit opinion"},{"$f":"Admin!N13","v":"Unqualified audit opinion"},{"$f":"Admin!O13","v":0},{"$f":"Admin!Q13","v":"Yes"}]
[null,null,null,null,null,{"$f":"Admin!F14","v":"% Deviation between SARS’ spending for the year and the allocation SARS received from National Treasury"},{"$f":"Admin!P14","v":"Administration"},{"$f":"Admin!G14","v":"Outcome 10: Reduced poverty and improved livelihoods"},{"$f":"Admin!I14","v":3.8E-3},{"$f":"Admin!J14","v":3.0099999999999998E-2},{"$f":"Admin!K14","v":0.02},{"$f":"Admin!L14","v":0.02},{"$f":"Admin!M14","v":0.02},{"$f":"Admin!N14","v":0.02},{"$f":"Admin!O14","v":0},{"$f":"Admin!Q14","v":"Yes"}]
[null,null,null,null,null,{"$f":"Admin!F15","v":"% of intermediaries surveyed that are satisfied with SARS’ cooperation and collaboration"},{"$f":"Admin!P15","v":"Administration"},{"$f":"Admin!G15","v":"Outcome 10: Reduced poverty and improved livelihoods"},{"$f":"Admin!I15","v":"90.32%"},{"$f":"Admin!J15","v":"82.86%"},{"$f":"Admin!K15","v":"70.00%"},{"$f":"Admin!L15","v":"72.00%"},{"$f":"Admin!M15","v":"83.00%"},{"$f":"Admin!N15","v":0},{"$f":"Admin!O15","v":0},{"$f":"Admin!Q15","v":"No"}]
[null,null,null,null,null,{"$f":"Admin!F16","v":"% score per public opinion survey"},{"$f":"Admin!P16","v":"Administration"},{"$f":"Admin!G16","v":"Outcome 10: Reduced poverty and improved livelihoods"},{"$f":"Admin!I16","v":"76.50%"},{"$f":"Admin!J16","v":"77.53%"},{"$f":"Admin!K16","v":"76.50%"},{"$f":"Admin!L16","v":"77.50%"},{"$f":"Admin!M16","v":"78.50%"},{"$f":"Admin!N16","v":"78.50%"},{"$f":"Admin!O16","v":0},{"$f":"Admin!Q16","v":"Yes"}]
[null,null,null,null,null,{"$f":"Admin!F17","v":"% Service Charter performance score "},{"$f":"Admin!P17","v":"Administration"},{"$f":"Admin!G17","v":"Outcome 10: Reduced poverty and improved livelihoods"},{"$f":"Admin!I17","v":"79.32%"},{"$f":"Admin!J17","v":"81.33%"},{"$f":"Admin!K17","v":"85%"},{"$f":"Admin!L17","v":"86.00%"},{"$f":"Admin!M17","v":"87.00%"},{"$f":"Admin!N17","v":"88.00%"},{"$f":"Admin!O17","v":0},{"$f":"Admin!Q17","v":"Yes"}]
[null,null,null,null,null,{"$f":"Admin!F18","v":"A SARS Career Progression Framework is developed and implemented"},{"$f":"Admin!P18","v":"Administration"},{"$f":"Admin!G18","v":"Outcome 10: Reduced poverty and improved livelihoods"},{"$f":"Admin!I18","v":"New measure"},{"$f":"Admin!J18","v":"SARS Career Progression Frameworks \nfor Service Consultants, Audit and \nInvestigations, Customs and Legal, \nwere developed and approved"},{"$f":"Admin!K18","v":"Implement\nthe Career\nProgression\nFramework"},{"$f":"Admin!L18","v":"Implement\nthe Career\nProgression\nFramework"},{"$f":"Admin!M18","v":"Implement\nthe Career\nProgression\nFramework"},{"$f":"Admin!N18","v":0},{"$f":"Admin!O18","v":0},{"$f":"Admin!Q18","v":"No"}]
[null,null,null,null,null,{"$f":"Admin!F19","v":"Number of programmes launched with identified government\ndepartments"},{"$f":"Admin!P19","v":"Administration"},{"$f":"Admin!G19","v":"Outcome 10: Reduced poverty and improved livelihoods"},{"$f":"Admin!I19","v":"New measure"},{"$f":"Admin!J19","v":"0"},{"$f":"Admin!K19","v":"2"},{"$f":"Admin!L19","v":"2"},{"$f":"Admin!M19","v":"2"},{"$f":"Admin!N19","v":0},{"$f":"Admin!O19","v":0},{"$f":"Admin!Q19","v":"No"}]
[null,null,null,null,null,{"$f":"Admin!F20","v":"Stakeholder engagement effectiveness Index (score)"},{"$f":"Admin!P20","v":"Administration"},{"$f":"Admin!G20","v":"Outcome 10: Reduced poverty and improved livelihoods"},{"$f":"Admin!I20","v":"New indicator"},{"$f":"Admin!J20","v":"New indicator"},{"$f":"Admin!K20","v":"Formulate \na new \nEnterprise \nStakeholder \nManagement \nPolicy"},{"$f":"Admin!L20","v":"Determine \nbaseline for \nstakeholder \nengagement \neffectiveness \nIndex"},{"$f":"Admin!M20","v":"Achieve \n1.50% point \nimprovement \non \nstakeholder \nengagement \neffectiveness \nIndex"},{"$f":"Admin!N20","v":"Achieve \n1.00% point \nimprovement \non \nstakeholder \nengagement \neffectiveness \nIndex"},{"$f":"Admin!O20","v":0},{"$f":"Admin!Q20","v":"Yes"}]
[null,null,null,null,null,{"$f":"Admin!F21","v":"% \nimplementation \nof prioritised \njob families"},{"$f":"Admin!P21","v":"Administration"},{"$f":"Admin!G21","v":"Outcome 10: Reduced poverty and improved livelihoods"},{"$f":"Admin!I21","v":"New indicator"},{"$f":"Admin!J21","v":"New indicator"},{"$f":"Admin!K21","v":"Achieve 90% \nimplementation \nof prioritised \njob families"},{"$f":"Admin!L21","v":"Achieve 90% \nimplementation \nof prioritised \njob families"},{"$f":"Admin!M21","v":"Achieve 90% \nimplementation \nof prioritised \njob families"},{"$f":"Admin!N21","v":"Achieve 90% \nimplementation \nof prioritised \njob families"},{"$f":"Admin!O21","v":0},{"$f":"Admin!Q21","v":"Yes"}]
[null,null,null,null,null,{"$f":"Admin!F22","v":"Percentage of \nimplementation \nof the action \nplan developed \nthrough self\u0002assessment \nof the OECD/\nSARS Trust \nMaturity Model"},{"$f":"Admin!P22","v":"Administration"},{"$f":"Admin!G22","v":"Outcome 10: Reduced poverty and improved livelihoods"},{"$f":"Admin!I22","v":"New indicator"},{"$f":"Admin!J22","v":"New indicator"},{"$f":"Admin!K22","v":"Achieve 50% \nof action plan"},{"$f":"Admin!L22","v":"Achieve 70% \nof action plan"},{"$f":"Admin!M22","v":"Achieve 85% \nof action plan"},{"$f":"Admin!N22","v":"Achieve 100% \nof action plan"},{"$f":"Admin!O22","v":0},{"$f":"Admin!Q22","v":"Yes"}]
[null,null,null,null,null,{"$f":"Admin!F23","v":"A SARS Career \nProgression \nFramework is \ndeveloped and \nimplemented"},{"$f":"Admin!P23","v":"Administration"},{"$f":"Admin!G23","v":"Outcome 10: Reduced poverty and improved livelihoods"},{"$f":"Admin!I23","v":"New indicator"},{"$f":"Admin!J23","v":"SARS Career Progression Frameworks \nfor Service Consultants, Audit and \nInvestigations, Customs and Legal, \nwere developed and approved"},{"$f":"Admin!K23","v":0},{"$f":"Admin!L23","v":0},{"$f":"Admin!M23","v":0},{"$f":"Admin!N23","v":0},{"$f":"Admin!O23","v":0},{"$f":"Admin!Q23","v":"No"}]
[null,null,null,null,null,{"$f":"Admin!F24","v":0},{"$f":"Admin!P24","v":0},{"$f":"Admin!G24","v":0},{"$f":"Admin!I24","v":0},{"$f":"Admin!J24","v":0},{"$f":"Admin!K24","v":0},{"$f":"Admin!L24","v":0},{"$f":"Admin!M24","v":0},{"$f":"Admin!N24","v":0},{"$f":"Admin!O24","v":0},{"$f":"Admin!Q24","v":0}]
[null,null,null,null,null,{"$f":"Admin!F25","v":0},{"$f":"Admin!P25","v":0},{"$f":"Admin!G25","v":0},{"$f":"Admin!I25","v":0},{"$f":"Admin!J25","v":0},{"$f":"Admin!K25","v":0},{"$f":"Admin!L25","v":0},{"$f":"Admin!M25","v":0},{"$f":"Admin!N25","v":0},{"$f":"Admin!O25","v":0},{"$f":"Admin!Q25","v":0}]
[null,null,null,null,null,{"$f":"'2'!F11","v":"Percentage of collection of revenue as agreed with Minister of Finance"},{"$f":"'2'!P11","v":"Deputy Commissioner: Taxpayer Engagement and Operations"},{"$f":"'2'!G11","v":"Outcome 10: Reduced poverty and improved livelihoods"},{"$f":"'2'!I11","v":"R1 686.70 billion"},{"$f":"'2'!J11","v":"R1 740.87 billion"},{"$f":"'2'!K11","v":"100% "},{"$f":"'2'!L11","v":"100% "},{"$f":"'2'!M11","v":"100% "},{"$f":"'2'!N11","v":"100% "},{"$f":"'2'!O11","v":0},{"$f":"'2'!Q11","v":"Yes"}]
[null,null,null,null,null,{"$f":"'2'!F12","v":"Level of overall tax compliance (%)"},{"$f":"'2'!P12","v":"Deputy Commissioner: Taxpayer Engagement and Operations"},{"$f":"'2'!G12","v":"Outcome 10: Reduced poverty and improved livelihoods"},{"$f":"'2'!I12","v":"(-)1.28% decline \non baseline \n61.61%\n(62.89% - 1.28%) "},{"$f":"'2'!J12","v":"2.02 percentage \npoints increase on \nprior year \nachievement.\n63.63% \n(61.61% + 2.02%)"},{"$f":"'2'!K12","v":"3.00% points \nincrease on \nprior year’s \nachievement"},{"$f":"'2'!L12","v":"5.00% points \nincrease on \nprior year’s \nachievement"},{"$f":"'2'!M12","v":"3.00% points \nincrease on \nprior year’s \nachievement"},{"$f":"'2'!N12","v":"2.00% points \nincrease on \nprior year’s \nachievement"},{"$f":"'2'!O12","v":0},{"$f":"'2'!Q12","v":"Yes"}]
[null,null,null,null,null,{"$f":"'2'!F13","v":"Enhanced Trade Facilitation"},{"$f":"'2'!P13","v":"Deputy Commissioner: Taxpayer Engagement and Operations"},{"$f":"'2'!G13","v":"Outcome 10: Reduced poverty and improved livelihoods"},{"$f":"'2'!I13","v":"A trade facilitation \nindex was developed \nand approved. \nA baseline was \ndetermined and future \ntargets were set"},{"$f":"'2'!J13","v":"18.80 percentage \npoints increase on \nbaseline \n71.60% \n(52.80% + 18.80%)"},{"$f":"'2'!K13","v":"5.00%\nincrease on\nprior year\nachievement"},{"$f":"'2'!L13","v":"5.00% points \nincrease on \nprior year’s \nachievement"},{"$f":"'2'!M13","v":"2.00% points \nincrease on \nprior year’s \nachievement"},{"$f":"'2'!N13","v":"2.00% points \nincrease on \nprior year’s \nachievement"},{"$f":"'2'!O13","v":0},{"$f":"'2'!Q13","v":"Yes"}]
[null,null,null,null,null,{"$f":"'2'!F14","v":"Percentage of taxpayers and traders surveyed are satisfied with the clarity and certainty provided by SARS"},{"$f":"'2'!P14","v":"Deputy Commissioner: Taxpayer Engagement and Operations"},{"$f":"'2'!G14","v":"Outcome 10: Reduced poverty and improved livelihoods"},{"$f":"'2'!I14","v":"75.33%"},{"$f":"'2'!J14","v":"66.86%"},{"$f":"'2'!K14","v":"77.00% "},{"$f":"'2'!L14","v":"77.50% "},{"$f":"'2'!M14","v":"78.00%"},{"$f":"'2'!N14","v":"78.50%"},{"$f":"'2'!O14","v":0},{"$f":"'2'!Q14","v":"Yes"}]
[null,null,null,null,null,{"$f":"'2'!F15","v":"% of taxpayers and traders using digital and self-help platforms to interact with SARS "},{"$f":"'2'!P15","v":"Deputy Commissioner: Taxpayer Engagement and Operations"},{"$f":"'2'!G15","v":"Outcome 10: Reduced poverty and improved livelihoods"},{"$f":"'2'!I15","v":"89.38%"},{"$f":"'2'!J15","v":"88.49%"},{"$f":"'2'!K15","v":"91.00%"},{"$f":"'2'!L15","v":"91.50%"},{"$f":"'2'!M15","v":"92.00%"},{"$f":"'2'!N15","v":"92.50%"},{"$f":"'2'!O15","v":0},{"$f":"'2'!Q15","v":"Yes"}]
[null,null,null,null,null,{"$f":"'2'!F16","v":"Percentage of standard taxpayers’ returns auto assessed by SARS (individual taxpayers)"},{"$f":"'2'!P16","v":"Deputy Commissioner: Taxpayer Engagement and Operations"},{"$f":"'2'!G16","v":"Outcome 10: Reduced poverty and improved livelihoods"},{"$f":"'2'!I16","v":"94.70%"},{"$f":"'2'!J16","v":"97.33%"},{"$f":"'2'!K16","v":"95.00%"},{"$f":"'2'!L16","v":"95.00%"},{"$f":"'2'!M16","v":"95.00%"},{"$f":"'2'!N16","v":"95.00%"},{"$f":"'2'!O16","v":0},{"$f":"'2'!Q16","v":"Yes"}]
[null,null,null,null,null,{"$f":"'2'!F17","v":"Extent to which SARS enables the NPA to successfully prosecute criminal cases referred by SARS (quality of the document)"},{"$f":"'2'!P17","v":"Deputy Commissioner: Taxpayer Engagement and Operations"},{"$f":"'2'!G17","v":"Outcome 10: Reduced poverty and improved livelihoods"},{"$f":"'2'!I17","v":"not applicable "},{"$f":"'2'!J17","v":"95.29%"},{"$f":"'2'!K17","v":"95.00%"},{"$f":"'2'!L17","v":"95.00%"},{"$f":"'2'!M17","v":"90.00%"},{"$f":"'2'!N17","v":0},{"$f":"'2'!O17","v":0},{"$f":"'2'!Q17","v":"No"}]
[null,null,null,null,null,{"$f":"'2'!F18","v":"Risk detection rate"},{"$f":"'2'!P18","v":"Deputy Commissioner: Taxpayer Engagement and Operations"},{"$f":"'2'!G18","v":"Outcome 10: Reduced poverty and improved livelihoods"},{"$f":"'2'!I18","v":"96.61%"},{"$f":"'2'!J18","v":"98.10%"},{"$f":"'2'!K18","v":"95.00%"},{"$f":"'2'!L18","v":"96.00%"},{"$f":"'2'!M18","v":"97.00%"},{"$f":"'2'!N18","v":"97.00%"},{"$f":"'2'!O18","v":0},{"$f":"'2'!Q18","v":"Yes"}]
[null,null,null,null,null,{"$f":"'2'!F19","v":"% utilisation of automated risk assessment for taxpayers and traders"},{"$f":"'2'!P19","v":"Deputy Commissioner: Taxpayer Engagement and Operations"},{"$f":"'2'!G19","v":"Outcome 10: Reduced poverty and improved livelihoods"},{"$f":"'2'!I19","v":"100.00% standard\n66.95% complex"},{"$f":"'2'!J19","v":"100.00% \nStandard \n82.80% \nComplex"},{"$f":"'2'!K19","v":"100.00% standard\n77.00% complex"},{"$f":"'2'!L19","v":"100.00% standard\n75.00% complex"},{"$f":"'2'!M19","v":"100.00% standard\n80.00% complex"},{"$f":"'2'!N19","v":"100.00%\nstandard\n80.00%\ncomplex"},{"$f":"'2'!O19","v":0},{"$f":"'2'!Q19","v":"Yes"}]
[null,null,null,null,null,{"$f":"'2'!F20","v":"Expanded enrolment of Economic Operators to the AEO Programme "},{"$f":"'2'!P20","v":"Deputy Commissioner: Taxpayer Engagement and Operations"},{"$f":"'2'!G20","v":"Outcome 10: Reduced poverty and improved livelihoods"},{"$f":"'2'!I20","v":"New measure"},{"$f":"'2'!J20","v":"190"},{"$f":"'2'!K20","v":"130"},{"$f":"'2'!L20","v":"130"},{"$f":"'2'!M20","v":"135"},{"$f":"'2'!N20","v":"140"},{"$f":"'2'!O20","v":0},{"$f":"'2'!Q20","v":"No"}]
[null,null,null,null,null,{"$f":"'2'!F21","v":"% \nimplementation \nof the focused \nSMME \nCompliance \nProgramme \ninitiatives \non the pilot population"},{"$f":"'2'!P21","v":"Deputy Commissioner: Taxpayer Engagement and Operations"},{"$f":"'2'!G21","v":"Outcome 10: Reduced poverty and improved livelihoods"},{"$f":"'2'!I21","v":"New measure"},{"$f":"'2'!J21","v":"The SMME\ncompliance\nprogramme\nis approved"},{"$f":"'2'!K21","v":"80.00% \ncompletion \nof the pilot \nand impact \nassessment \non \nimprovement \nof SMMEs’ \ncustomer \nexperience \nand \nfacilitation \nof seamless \ncompliance"},{"$f":"'2'!L21","v":"Implement \nthe SMME \nCompliance \nProgramme "},{"$f":"'2'!M21","v":"Track the \nSMME \nCompliance \nImprovement \nper Programme"},{"$f":"'2'!N21","v":"Track the \nSMME \nCompliance \nImprovement \nper Programme"},{"$f":"'2'!O21","v":0},{"$f":"'2'!Q21","v":"Yes"}]
[null,null,null,null,null,{"$f":"'2'!F22","v":"Number of \nsignificant \nschemes \ncollapsed "},{"$f":"'2'!P22","v":"Deputy commissioner: Taxpayer engagement and operations "},{"$f":"'2'!G22","v":"Outcome 10: Reduced poverty and improved livelihoods"},{"$f":"'2'!I22","v":"New measure"},{"$f":"'2'!J22","v":"New measure"},{"$f":"'2'!K22","v":"3"},{"$f":"'2'!L22","v":"3"},{"$f":"'2'!M22","v":"3"},{"$f":"'2'!N22","v":"3"},{"$f":"'2'!O22","v":0},{"$f":"'2'!Q22","v":"Yes"}]
[null,null,null,null,null,{"$f":"'2'!F23","v":0},{"$f":"'2'!P23","v":0},{"$f":"'2'!G23","v":0},{"$f":"'2'!I23","v":0},{"$f":"'2'!J23","v":0},{"$f":"'2'!K23","v":0},{"$f":"'2'!L23","v":0},{"$f":"'2'!M23","v":0},{"$f":"'2'!N23","v":0},{"$f":"'2'!O23","v":0},{"$f":"'2'!Q23","v":0}]
[null,null,null,null,null,{"$f":"'2'!F24","v":0},{"$f":"'2'!P24","v":0},{"$f":"'2'!G24","v":0},{"$f":"'2'!I24","v":0},{"$f":"'2'!J24","v":0},{"$f":"'2'!K24","v":0},{"$f":"'2'!L24","v":0},{"$f":"'2'!M24","v":0},{"$f":"'2'!N24","v":0},{"$f":"'2'!O24","v":0},{"$f":"'2'!Q24","v":0}]
[null,null,null,null,null,{"$f":"'2'!F25","v":0},{"$f":"'2'!P25","v":0},{"$f":"'2'!G25","v":0},{"$f":"'2'!I25","v":0},{"$f":"'2'!J25","v":0},{"$f":"'2'!K25","v":0},{"$f":"'2'!L25","v":0},{"$f":"'2'!M25","v":0},{"$f":"'2'!N25","v":0},{"$f":"'2'!O25","v":0},{"$f":"'2'!Q25","v":0}]
[null,null,null,null,null,{"$f":"'3'!F11","v":"% of planned capacity to be available for mission critical systems"},{"$f":"'3'!P11","v":"Deputy Commissioner: Strategy, Enabling and Modernisation"},{"$f":"'3'!G11","v":"Outcome 10: Reduced poverty and improved livelihoods"},{"$f":"'3'!I11","v":"99.70%"},{"$f":"'3'!J11","v":"99.61%"},{"$f":"'3'!K11","v":"99.00%"},{"$f":"'3'!L11","v":"99.00%"},{"$f":"'3'!M11","v":"99.00%"},{"$f":"'3'!N11","v":"99.00%"},{"$f":"'3'!O11","v":0},{"$f":"'3'!Q11","v":"Yes"}]
[null,null,null,null,null,{"$f":"'3'!F12","v":"Number of security breaches on digital platforms from known risks"},{"$f":"'3'!P12","v":"Deputy Commissioner: Strategy, Enabling and Modernisation"},{"$f":"'3'!G12","v":"Outcome 10: Reduced poverty and improved livelihoods"},{"$f":"'3'!I12","v":"Nil "},{"$f":"'3'!J12","v":"Nil "},{"$f":"'3'!K12","v":"Nil "},{"$f":"'3'!L12","v":"Nil "},{"$f":"'3'!M12","v":"Nil "},{"$f":"'3'!N12","v":"nil"},{"$f":"'3'!O12","v":0},{"$f":"'3'!Q12","v":"Yes"}]
[null,null,null,null,null,{"$f":"'3'!F13","v":"Increase ICT investment as % of total allocation"},{"$f":"'3'!P13","v":"Deputy Commissioner: Strategy, Enabling and Modernisation"},{"$f":"'3'!G13","v":"Outcome 10: Reduced poverty and improved livelihoods"},{"$f":"'3'!I13","v":1.7999999999999999E-2},{"$f":"'3'!J13","v":"-0.24%"},{"$f":"'3'!K13","v":"2.00%"},{"$f":"'3'!L13","v":"2.00%"},{"$f":"'3'!M13","v":"2.00%"},{"$f":"'3'!N13","v":0},{"$f":"'3'!O13","v":0},{"$f":"'3'!Q13","v":"No"}]
[null,null,null,null,null,{"$f":"'3'!F14","v":"More data sources are utilised to improve service and/or respond to compliance risks"},{"$f":"'3'!P14","v":"Deputy Commissioner: Strategy, Enabling and Modernisation"},{"$f":"'3'!G14","v":"Outcome 10: Reduced poverty and improved livelihoods"},{"$f":"'3'!I14","v":"New measure"},{"$f":"'3'!J14","v":"The \ncomprehensive \ndata sourcing plan \nwas developed \nand approved"},{"$f":"'3'!K14","v":"Implement\nthe data\nsourcing\nplan"},{"$f":"'3'!L14","v":"Implement\nthe data\nsourcing\nplan"},{"$f":"'3'!M14","v":"Implement\nthe data\nsourcing\nplan"},{"$f":"'3'!N14","v":0},{"$f":"'3'!O14","v":0},{"$f":"'3'!Q14","v":"No"}]
[null,null,null,null,null,{"$f":"'3'!F15","v":0},{"$f":"'3'!P15","v":0},{"$f":"'3'!G15","v":0},{"$f":"'3'!I15","v":0},{"$f":"'3'!J15","v":0},{"$f":"'3'!K15","v":0},{"$f":"'3'!L15","v":0},{"$f":"'3'!M15","v":0},{"$f":"'3'!N15","v":0},{"$f":"'3'!O15","v":0},{"$f":"'3'!Q15","v":0}]
[null,null,null,null,null,{"$f":"'3'!F16","v":0},{"$f":"'3'!P16","v":0},{"$f":"'3'!G16","v":0},{"$f":"'3'!I16","v":0},{"$f":"'3'!J16","v":0},{"$f":"'3'!K16","v":0},{"$f":"'3'!L16","v":0},{"$f":"'3'!M16","v":0},{"$f":"'3'!N16","v":0},{"$f":"'3'!O16","v":0},{"$f":"'3'!Q16","v":0}]
[null,null,null,null,null,{"$f":"'3'!F17","v":0},{"$f":"'3'!P17","v":0},{"$f":"'3'!G17","v":0},{"$f":"'3'!I17","v":0},{"$f":"'3'!J17","v":0},{"$f":"'3'!K17","v":0},{"$f":"'3'!L17","v":0},{"$f":"'3'!M17","v":0},{"$f":"'3'!N17","v":0},{"$f":"'3'!O17","v":0},{"$f":"'3'!Q17","v":0}]
[null,null,null,null,null,{"$f":"'3'!F18","v":0},{"$f":"'3'!P18","v":0},{"$f":"'3'!G18","v":0},{"$f":"'3'!I18","v":0},{"$f":"'3'!J18","v":0},{"$f":"'3'!K18","v":0},{"$f":"'3'!L18","v":0},{"$f":"'3'!M18","v":0},{"$f":"'3'!N18","v":0},{"$f":"'3'!O18","v":0},{"$f":"'3'!Q18","v":0}]
[null,null,null,null,null,{"$f":"'3'!F19","v":0},{"$f":"'3'!P19","v":0},{"$f":"'3'!G19","v":0},{"$f":"'3'!I19","v":0},{"$f":"'3'!J19","v":0},{"$f":"'3'!K19","v":0},{"$f":"'3'!L19","v":0},{"$f":"'3'!M19","v":0},{"$f":"'3'!N19","v":0},{"$f":"'3'!O19","v":0},{"$f":"'3'!Q19","v":0}]
[null,null,null,null,null,{"$f":"'3'!F20","v":0},{"$f":"'3'!P20","v":0},{"$f":"'3'!G20","v":0},{"$f":"'3'!I20","v":0},{"$f":"'3'!J20","v":0},{"$f":"'3'!K20","v":0},{"$f":"'3'!L20","v":0},{"$f":"'3'!M20","v":0},{"$f":"'3'!N20","v":0},{"$f":"'3'!O20","v":0},{"$f":"'3'!Q20","v":0}]
[null,null,null,null,null,{"$f":"'3'!F21","v":0},{"$f":"'3'!P21","v":0},{"$f":"'3'!G21","v":0},{"$f":"'3'!I21","v":0},{"$f":"'3'!J21","v":0},{"$f":"'3'!K21","v":0},{"$f":"'3'!L21","v":0},{"$f":"'3'!M21","v":0},{"$f":"'3'!N21","v":0},{"$f":"'3'!O21","v":0},{"$f":"'3'!Q21","v":0}]
[null,null,null,null,null,{"$f":"'3'!F22","v":0},{"$f":"'3'!P22","v":0},{"$f":"'3'!G22","v":0},{"$f":"'3'!I22","v":0},{"$f":"'3'!J22","v":0},{"$f":"'3'!K22","v":0},{"$f":"'3'!L22","v":0},{"$f":"'3'!M22","v":0},{"$f":"'3'!N22","v":0},{"$f":"'3'!O22","v":0},{"$f":"'3'!Q22","v":0}]
[null,null,null,null,null,{"$f":"'3'!F23","v":0},{"$f":"'3'!P23","v":0},{"$f":"'3'!G23","v":0},{"$f":"'3'!I23","v":0},{"$f":"'3'!J23","v":0},{"$f":"'3'!K23","v":0},{"$f":"'3'!L23","v":0},{"$f":"'3'!M23","v":0},{"$f":"'3'!N23","v":0},{"$f":"'3'!O23","v":0},{"$f":"'3'!Q23","v":0}]
[null,null,null,null,null,{"$f":"'3'!F24","v":0},{"$f":"'3'!P24","v":0},{"$f":"'3'!G24","v":0},{"$f":"'3'!I24","v":0},{"$f":"'3'!J24","v":0},{"$f":"'3'!K24","v":0},{"$f":"'3'!L24","v":0},{"$f":"'3'!M24","v":0},{"$f":"'3'!N24","v":0},{"$f":"'3'!O24","v":0},{"$f":"'3'!Q24","v":0}]
[null,null,null,null,null,{"$f":"'3'!F25","v":0},{"$f":"'3'!P25","v":0},{"$f":"'3'!G25","v":0},{"$f":"'3'!I25","v":0},{"$f":"'3'!J25","v":0},{"$f":"'3'!K25","v":0},{"$f":"'3'!L25","v":0},{"$f":"'3'!M25","v":0},{"$f":"'3'!N25","v":0},{"$f":"'3'!O25","v":0},{"$f":"'3'!Q25","v":0}]
[null,null,null,null,null,{"$f":"'4'!F11","v":"% of complainants understanding the recommendations made"},{"$f":"'4'!P11","v":"Office of the Tax Ombud"},{"$f":"'4'!G11","v":"Outcome 10: Reduced poverty and improved livelihoods"},{"$f":"'4'!I11","v":0},{"$f":"'4'!J11","v":0},{"$f":"'4'!K11","v":0},{"$f":"'4'!L11","v":0},{"$f":"'4'!M11","v":0},{"$f":"'4'!N11","v":0},{"$f":"'4'!O11","v":0},{"$f":"'4'!Q11","v":"No"}]
[null,null,null,null,null,{"$f":"'4'!F12","v":"% of cases evaluated and reviewed within agreed turnaround time od 5 days after capturing"},{"$f":"'4'!P12","v":"Office of the Tax Ombud"},{"$f":"'4'!G12","v":"Outcome 10: Reduced poverty and improved livelihoods"},{"$f":"'4'!I12","v":0},{"$f":"'4'!J12","v":0},{"$f":"'4'!K12","v":0},{"$f":"'4'!L12","v":0},{"$f":"'4'!M12","v":0},{"$f":"'4'!N12","v":0},{"$f":"'4'!O12","v":0},{"$f":"'4'!Q12","v":"No"}]
[null,null,null,null,null,{"$f":"'4'!F13","v":"% of recommendations sent to SARS within 3 days of reviewing a complaint."},{"$f":"'4'!P13","v":"Office of the Tax Ombud"},{"$f":"'4'!G13","v":"Outcome 10: Reduced poverty and improved livelihoods"},{"$f":"'4'!I13","v":0},{"$f":"'4'!J13","v":0},{"$f":"'4'!K13","v":0},{"$f":"'4'!L13","v":0},{"$f":"'4'!M13","v":0},{"$f":"'4'!N13","v":0},{"$f":"'4'!O13","v":0},{"$f":"'4'!Q13","v":"No"}]
[null,null,null,null,null,{"$f":"'4'!F14","v":"Average cost reduction per complaint, year on year."},{"$f":"'4'!P14","v":"Office of the Tax Ombud"},{"$f":"'4'!G14","v":"Outcome 10: Reduced poverty and improved livelihoods"},{"$f":"'4'!I14","v":0},{"$f":"'4'!J14","v":0},{"$f":"'4'!K14","v":0},{"$f":"'4'!L14","v":0},{"$f":"'4'!M14","v":0},{"$f":"'4'!N14","v":0},{"$f":"'4'!O14","v":0},{"$f":"'4'!Q14","v":"No"}]
[null,null,null,null,null,{"$f":"'4'!F15","v":"Zero governance audit findings"},{"$f":"'4'!P15","v":"Office of the Tax Ombud"},{"$f":"'4'!G15","v":"Outcome 10: Reduced poverty and improved livelihoods"},{"$f":"'4'!I15","v":0},{"$f":"'4'!J15","v":0},{"$f":"'4'!K15","v":0},{"$f":"'4'!L15","v":0},{"$f":"'4'!M15","v":0},{"$f":"'4'!N15","v":0},{"$f":"'4'!O15","v":0},{"$f":"'4'!Q15","v":"No"}]
[null,null,null,null,null,{"$f":"'4'!F16","v":"% of staff assessed against performance measures"},{"$f":"'4'!P16","v":"Office of the Tax Ombud"},{"$f":"'4'!G16","v":"Outcome 10: Reduced poverty and improved livelihoods"},{"$f":"'4'!I16","v":0},{"$f":"'4'!J16","v":0},{"$f":"'4'!K16","v":0},{"$f":"'4'!L16","v":0},{"$f":"'4'!M16","v":0},{"$f":"'4'!N16","v":0},{"$f":"'4'!O16","v":0},{"$f":"'4'!Q16","v":"No"}]
[null,null,null,null,null,{"$f":"'4'!F17","v":"Positive brand recognition"},{"$f":"'4'!P17","v":"Office of the Tax Ombud"},{"$f":"'4'!G17","v":"Outcome 10: Reduced poverty and improved livelihoods"},{"$f":"'4'!I17","v":0},{"$f":"'4'!J17","v":0},{"$f":"'4'!K17","v":0},{"$f":"'4'!L17","v":0},{"$f":"'4'!M17","v":0},{"$f":"'4'!N17","v":0},{"$f":"'4'!O17","v":0},{"$f":"'4'!Q17","v":"No"}]
[null,null,null,null,null,{"$f":"'4'!F18","v":"Number of communications and outreach activities"},{"$f":"'4'!P18","v":"Office of the Tax Ombud"},{"$f":"'4'!G18","v":"Outcome 10: Reduced poverty and improved livelihoods"},{"$f":"'4'!I18","v":0},{"$f":"'4'!J18","v":0},{"$f":"'4'!K18","v":0},{"$f":"'4'!L18","v":0},{"$f":"'4'!M18","v":0},{"$f":"'4'!N18","v":0},{"$f":"'4'!O18","v":0},{"$f":"'4'!Q18","v":"No"}]
[null,null,null,null,null,{"$f":"'4'!F19","v":"Number of engagements/collaboration with key stakeholders"},{"$f":"'4'!P19","v":"Office of the Tax Ombud"},{"$f":"'4'!G19","v":"Outcome 10: Reduced poverty and improved livelihoods"},{"$f":"'4'!I19","v":0},{"$f":"'4'!J19","v":0},{"$f":"'4'!K19","v":0},{"$f":"'4'!L19","v":0},{"$f":"'4'!M19","v":0},{"$f":"'4'!N19","v":0},{"$f":"'4'!O19","v":0},{"$f":"'4'!Q19","v":"No"}]
[null,null,null,null,null,{"$f":"'4'!F20","v":"MOU signed off by both parties"},{"$f":"'4'!P20","v":"Office of the Tax Ombud"},{"$f":"'4'!G20","v":"Outcome 10: Reduced poverty and improved livelihoods"},{"$f":"'4'!I20","v":0},{"$f":"'4'!J20","v":0},{"$f":"'4'!K20","v":0},{"$f":"'4'!L20","v":0},{"$f":"'4'!M20","v":0},{"$f":"'4'!N20","v":0},{"$f":"'4'!O20","v":0},{"$f":"'4'!Q20","v":"No"}]
[null,null,null,null,null,{"$f":"'4'!F21","v":"Number of deviations from the MOU"},{"$f":"'4'!P21","v":"Office of the Tax Ombud"},{"$f":"'4'!G21","v":"Outcome 10: Reduced poverty and improved livelihoods"},{"$f":"'4'!I21","v":0},{"$f":"'4'!J21","v":0},{"$f":"'4'!K21","v":0},{"$f":"'4'!L21","v":0},{"$f":"'4'!M21","v":0},{"$f":"'4'!N21","v":0},{"$f":"'4'!O21","v":0},{"$f":"'4'!Q21","v":"No"}]
[null,null,null,null,null,{"$f":"'4'!F22","v":"Employee Culture Survey - score benchmarked"},{"$f":"'4'!P22","v":"Office of the Tax Ombud"},{"$f":"'4'!G22","v":"Outcome 10: Reduced poverty and improved livelihoods"},{"$f":"'4'!I22","v":0},{"$f":"'4'!J22","v":0},{"$f":"'4'!K22","v":0},{"$f":"'4'!L22","v":0},{"$f":"'4'!M22","v":0},{"$f":"'4'!N22","v":0},{"$f":"'4'!O22","v":0},{"$f":"'4'!Q22","v":"No"}]
[null,null,null,null,null,{"$f":"'4'!F23","v":0},{"$f":"'4'!P23","v":0},{"$f":"'4'!G23","v":0},{"$f":"'4'!I23","v":0},{"$f":"'4'!J23","v":0},{"$f":"'4'!K23","v":0},{"$f":"'4'!L23","v":0},{"$f":"'4'!M23","v":0},{"$f":"'4'!N23","v":0},{"$f":"'4'!O23","v":0},{"$f":"'4'!Q23","v":0}]
[null,null,null,null,null,{"$f":"'4'!F24","v":0},{"$f":"'4'!P24","v":0},{"$f":"'4'!G24","v":0},{"$f":"'4'!I24","v":0},{"$f":"'4'!J24","v":0},{"$f":"'4'!K24","v":0},{"$f":"'4'!L24","v":0},{"$f":"'4'!M24","v":0},{"$f":"'4'!N24","v":0},{"$f":"'4'!O24","v":0},{"$f":"'4'!Q24","v":0}]
[null,null,null,null,null,{"$f":"'4'!F25","v":0},{"$f":"'4'!P25","v":0},{"$f":"'4'!G25","v":0},{"$f":"'4'!I25","v":0},{"$f":"'4'!J25","v":0},{"$f":"'4'!K25","v":0},{"$f":"'4'!L25","v":0},{"$f":"'4'!M25","v":0},{"$f":"'4'!N25","v":0},{"$f":"'4'!O25","v":0},{"$f":"'4'!Q25","v":0}]
[null,null,null,null,null,{"$f":"'5'!F11","v":0},{"$f":"'5'!P11","v":0},{"$f":"'5'!G11","v":0},{"$f":"'5'!I11","v":0},{"$f":"'5'!J11","v":0},{"$f":"'5'!K11","v":0},{"$f":"'5'!L11","v":0},{"$f":"'5'!M11","v":0},{"$f":"'5'!N11","v":0},{"$f":"'5'!O11","v":0},{"$f":"'5'!Q11","v":0}]
[null,null,null,null,null,{"$f":"'5'!F12","v":0},{"$f":"'5'!P12","v":0},{"$f":"'5'!G12","v":0},{"$f":"'5'!I12","v":0},{"$f":"'5'!J12","v":0},{"$f":"'5'!K12","v":0},{"$f":"'5'!L12","v":0},{"$f":"'5'!M12","v":0},{"$f":"'5'!N12","v":0},{"$f":"'5'!O12","v":0},{"$f":"'5'!Q12","v":0}]
[null,null,null,null,null,{"$f":"'5'!F13","v":0},{"$f":"'5'!P13","v":0},{"$f":"'5'!G13","v":0},{"$f":"'5'!I13","v":0},{"$f":"'5'!J13","v":0},{"$f":"'5'!K13","v":0},{"$f":"'5'!L13","v":0},{"$f":"'5'!M13","v":0},{"$f":"'5'!N13","v":0},{"$f":"'5'!O13","v":0},{"$f":"'5'!Q13","v":0}]
[null,null,null,null,null,{"$f":"'5'!F14","v":0},{"$f":"'5'!P14","v":0},{"$f":"'5'!G14","v":0},{"$f":"'5'!I14","v":0},{"$f":"'5'!J14","v":0},{"$f":"'5'!K14","v":0},{"$f":"'5'!L14","v":0},{"$f":"'5'!M14","v":0},{"$f":"'5'!N14","v":0},{"$f":"'5'!O14","v":0},{"$f":"'5'!Q14","v":0}]
[null,null,null,null,null,{"$f":"'5'!F15","v":0},{"$f":"'5'!P15","v":0},{"$f":"'5'!G15","v":0},{"$f":"'5'!I15","v":0},{"$f":"'5'!J15","v":0},{"$f":"'5'!K15","v":0},{"$f":"'5'!L15","v":0},{"$f":"'5'!M15","v":0},{"$f":"'5'!N15","v":0},{"$f":"'5'!O15","v":0},{"$f":"'5'!Q15","v":0}]
[null,null,null,null,null,{"$f":"'5'!F16","v":0},{"$f":"'5'!P16","v":0},{"$f":"'5'!G16","v":0},{"$f":"'5'!I16","v":0},{"$f":"'5'!J16","v":0},{"$f":"'5'!K16","v":0},{"$f":"'5'!L16","v":0},{"$f":"'5'!M16","v":0},{"$f":"'5'!N16","v":0},{"$f":"'5'!O16","v":0},{"$f":"'5'!Q16","v":0}]
[null,null,null,null,null,{"$f":"'5'!F17","v":0},{"$f":"'5'!P17","v":0},{"$f":"'5'!G17","v":0},{"$f":"'5'!I17","v":0},{"$f":"'5'!J17","v":0},{"$f":"'5'!K17","v":0},{"$f":"'5'!L17","v":0},{"$f":"'5'!M17","v":0},{"$f":"'5'!N17","v":0},{"$f":"'5'!O17","v":0},{"$f":"'5'!Q17","v":0}]
[null,null,null,null,null,{"$f":"'5'!F18","v":0},{"$f":"'5'!P18","v":0},{"$f":"'5'!G18","v":0},{"$f":"'5'!I18","v":0},{"$f":"'5'!J18","v":0},{"$f":"'5'!K18","v":0},{"$f":"'5'!L18","v":0},{"$f":"'5'!M18","v":0},{"$f":"'5'!N18","v":0},{"$f":"'5'!O18","v":0},{"$f":"'5'!Q18","v":0}]
[null,null,null,null,null,{"$f":"'5'!F19","v":0},{"$f":"'5'!P19","v":0},{"$f":"'5'!G19","v":0},{"$f":"'5'!I19","v":0},{"$f":"'5'!J19","v":0},{"$f":"'5'!K19","v":0},{"$f":"'5'!L19","v":0},{"$f":"'5'!M19","v":0},{"$f":"'5'!N19","v":0},{"$f":"'5'!O19","v":0},{"$f":"'5'!Q19","v":0}]
[null,null,null,null,null,{"$f":"'5'!F20","v":0},{"$f":"'5'!P20","v":0},{"$f":"'5'!G20","v":0},{"$f":"'5'!I20","v":0},{"$f":"'5'!J20","v":0},{"$f":"'5'!K20","v":0},{"$f":"'5'!L20","v":0},{"$f":"'5'!M20","v":0},{"$f":"'5'!N20","v":0},{"$f":"'5'!O20","v":0},{"$f":"'5'!Q20","v":0}]
[null,null,null,null,null,{"$f":"'5'!F21","v":0},{"$f":"'5'!P21","v":0},{"$f":"'5'!G21","v":0},{"$f":"'5'!I21","v":0},{"$f":"'5'!J21","v":0},{"$f":"'5'!K21","v":0},{"$f":"'5'!L21","v":0},{"$f":"'5'!M21","v":0},{"$f":"'5'!N21","v":0},{"$f":"'5'!O21","v":0},{"$f":"'5'!Q21","v":0}]
[null,null,null,null,null,{"$f":"'5'!F22","v":0},{"$f":"'5'!P22","v":0},{"$f":"'5'!G22","v":0},{"$f":"'5'!I22","v":0},{"$f":"'5'!J22","v":0},{"$f":"'5'!K22","v":0},{"$f":"'5'!L22","v":0},{"$f":"'5'!M22","v":0},{"$f":"'5'!N22","v":0},{"$f":"'5'!O22","v":0},{"$f":"'5'!Q22","v":0}]
[null,null,null,null,null,{"$f":"'5'!F23","v":0},{"$f":"'5'!P23","v":0},{"$f":"'5'!G23","v":0},{"$f":"'5'!I23","v":0},{"$f":"'5'!J23","v":0},{"$f":"'5'!K23","v":0},{"$f":"'5'!L23","v":0},{"$f":"'5'!M23","v":0},{"$f":"'5'!N23","v":0},{"$f":"'5'!O23","v":0},{"$f":"'5'!Q23","v":0}]
[null,null,null,null,null,{"$f":"'5'!F24","v":0},{"$f":"'5'!P24","v":0},{"$f":"'5'!G24","v":0},{"$f":"'5'!I24","v":0},{"$f":"'5'!J24","v":0},{"$f":"'5'!K24","v":0},{"$f":"'5'!L24","v":0},{"$f":"'5'!M24","v":0},{"$f":"'5'!N24","v":0},{"$f":"'5'!O24","v":0},{"$f":"'5'!Q24","v":0}]
[null,null,null,null,null,{"$f":"'5'!F25","v":0},{"$f":"'5'!P25","v":0},{"$f":"'5'!G25","v":0},{"$f":"'5'!I25","v":0},{"$f":"'5'!J25","v":0},{"$f":"'5'!K25","v":0},{"$f":"'5'!L25","v":0},{"$f":"'5'!M25","v":0},{"$f":"'5'!N25","v":0},{"$f":"'5'!O25","v":0},{"$f":"'5'!Q25","v":0}]
[null,null,null,null,null,{"$f":"'6'!F11","v":"Employee Engagement (%)"},{"$f":"'6'!P11","v":"Administration"},{"$f":"'6'!G11","v":"Outcome 10: Reduced poverty and improved livelihoods"},{"$f":"'6'!I11","v":0.62},{"$f":"'6'!J11","v":"Develop plan to address shortcomings identified in last  engagement survey "},{"$f":"'6'!K11","v":"Top quartile in the market"},{"$f":"'6'!L11","v":"Develop plan to address shortcomings identified in last engagement survey."},{"$f":"'6'!M11","v":0},{"$f":"'6'!N11","v":0},{"$f":"'6'!O11","v":0},{"$f":"'6'!Q11","v":"No"}]
[null,null,null,null,null,{"$f":"'6'!F12","v":"Leadership Effectiveness Index (%)"},{"$f":"'6'!P12","v":"Administration"},{"$f":"'6'!G12","v":"Outcome 10: Reduced poverty and improved livelihoods"},{"$f":"'6'!I12","v":0.88},{"$f":"'6'!J12","v":0},{"$f":"'6'!K12","v":0},{"$f":"'6'!L12","v":0},{"$f":"'6'!M12","v":0},{"$f":"'6'!N12","v":0},{"$f":"'6'!O12","v":0},{"$f":"'6'!Q12","v":"No"}]
[null,null,null,null,null,{"$f":"'6'!F13","v":"Employment Equity: Demographics (%)"},{"$f":"'6'!P13","v":"Administration"},{"$f":"'6'!G13","v":"Outcome 10: Reduced poverty and improved livelihoods"},{"$f":"'6'!I13","v":0.80300000000000005},{"$f":"'6'!J13","v":0.81130000000000002},{"$f":"'6'!K13","v":"81.97"},{"$f":"'6'!L13","v":"82.80"},{"$f":"'6'!M13","v":0},{"$f":"'6'!N13","v":0},{"$f":"'6'!O13","v":0},{"$f":"'6'!Q13","v":"No"}]
[null,null,null,null,null,{"$f":"'6'!F14","v":"Employment Equity: Gender on Management Level (%)\n"},{"$f":"'6'!P14","v":"Administration"},{"$f":"'6'!G14","v":"Outcome 10: Reduced poverty and improved livelihoods"},{"$f":"'6'!I14","v":0.49469999999999997},{"$f":"'6'!J14","v":0.4975},{"$f":"'6'!K14","v":"50.04"},{"$f":"'6'!L14","v":"50.32"},{"$f":"'6'!M14","v":0},{"$f":"'6'!N14","v":0},{"$f":"'6'!O14","v":0},{"$f":"'6'!Q14","v":"No"}]
[null,null,null,null,null,{"$f":"'6'!F15","v":"Employment Equity: Disability (%)"},{"$f":"'6'!P15","v":"Administration"},{"$f":"'6'!G15","v":"Outcome 10: Reduced poverty and improved livelihoods"},{"$f":"'6'!I15","v":1.95E-2},{"$f":"'6'!J15","v":"2.09%"},{"$f":"'6'!K15","v":"2.24"},{"$f":"'6'!L15","v":"2.38"},{"$f":"'6'!M15","v":0},{"$f":"'6'!N15","v":0},{"$f":"'6'!O15","v":0},{"$f":"'6'!Q15","v":"No"}]
[null,null,null,null,null,{"$f":"'6'!F16","v":"Treasury allocation to revenue percentage "},{"$f":"'6'!P16","v":"Administration"},{"$f":"'6'!G16","v":"Outcome 10: Reduced poverty and improved livelihoods"},{"$f":"'6'!I16","v":"1%"},{"$f":"'6'!J16","v":"1%"},{"$f":"'6'!K16","v":"1%"},{"$f":"'6'!L16","v":0},{"$f":"'6'!M16","v":0},{"$f":"'6'!N16","v":0},{"$f":"'6'!O16","v":0},{"$f":"'6'!Q16","v":"No"}]
[null,null,null,null,null,{"$f":"'6'!F17","v":"Unqualified report by Auditor-General"},{"$f":"'6'!P17","v":"Administration"},{"$f":"'6'!G17","v":"Outcome 10: Reduced poverty and improved livelihoods"},{"$f":"'6'!I17","v":"Clean Audit Report "},{"$f":"'6'!J17","v":"Clean Audit Report "},{"$f":"'6'!K17","v":"Clean Audit Report "},{"$f":"'6'!L17","v":"Clean Audit Report "},{"$f":"'6'!M17","v":0},{"$f":"'6'!N17","v":0},{"$f":"'6'!O17","v":0},{"$f":"'6'!Q17","v":"No"}]
[null,null,null,null,null,{"$f":"'6'!F18","v":"Public Opinion Index (%)"},{"$f":"'6'!P18","v":"Administration"},{"$f":"'6'!G18","v":"Outcome 10: Reduced poverty and improved livelihoods"},{"$f":"'6'!I18","v":0.73499999999999999},{"$f":"'6'!J18","v":0},{"$f":"'6'!K18","v":0},{"$f":"'6'!L18","v":0},{"$f":"'6'!M18","v":0},{"$f":"'6'!N18","v":0},{"$f":"'6'!O18","v":0},{"$f":"'6'!Q18","v":"No"}]
[null,null,null,null,null,{"$f":"'6'!F19","v":"Customer satisfaction with Contact Centre service"},{"$f":"'6'!P19","v":"Administration"},{"$f":"'6'!G19","v":"Outcome 10: Reduced poverty and improved livelihoods"},{"$f":"'6'!I19","v":0.90500000000000003},{"$f":"'6'!J19","v":0},{"$f":"'6'!K19","v":0},{"$f":"'6'!L19","v":0},{"$f":"'6'!M19","v":0},{"$f":"'6'!N19","v":0},{"$f":"'6'!O19","v":0},{"$f":"'6'!Q19","v":"No"}]
[null,null,null,null,null,{"$f":"'6'!F20","v":"% first contact resolution in contact centre"},{"$f":"'6'!P20","v":"Administration"},{"$f":"'6'!G20","v":"Outcome 10: Reduced poverty and improved livelihoods"},{"$f":"'6'!I20","v":0.96},{"$f":"'6'!J20","v":0},{"$f":"'6'!K20","v":0},{"$f":"'6'!L20","v":0},{"$f":"'6'!M20","v":0},{"$f":"'6'!N20","v":0},{"$f":"'6'!O20","v":0},{"$f":"'6'!Q20","v":"No"}]
[null,null,null,null,null,{"$f":"'6'!F21","v":"Payment turnaround time for supplier invoices in working days\n"},{"$f":"'6'!P21","v":"Administration"},{"$f":"'6'!G21","v":"Outcome 10: Reduced poverty and improved livelihoods"},{"$f":"'6'!I21","v":"33 days"},{"$f":"'6'!J21","v":0},{"$f":"'6'!K21","v":0},{"$f":"'6'!L21","v":0},{"$f":"'6'!M21","v":0},{"$f":"'6'!N21","v":0},{"$f":"'6'!O21","v":0},{"$f":"'6'!Q21","v":"No"}]
[null,null,null,null,null,{"$f":"'6'!F22","v":"% of acquisition spend through B-BBEE Level 1-4 Compliant Entities\n"},{"$f":"'6'!P22","v":"Administration"},{"$f":"'6'!G22","v":"Outcome 10: Reduced poverty and improved livelihoods"},{"$f":"'6'!I22","v":0},{"$f":"'6'!J22","v":0},{"$f":"'6'!K22","v":0},{"$f":"'6'!L22","v":0},{"$f":"'6'!M22","v":0},{"$f":"'6'!N22","v":0},{"$f":"'6'!O22","v":0},{"$f":"'6'!Q22","v":"No"}]
[null,null,null,null,null,{"$f":"'6'!F23","v":"% of acquisition spend through Black Women Owned Entities\n"},{"$f":"'6'!P23","v":"Administration"},{"$f":"'6'!G23","v":"Outcome 10: Reduced poverty and improved livelihoods"},{"$f":"'6'!I23","v":0.125},{"$f":"'6'!J23","v":0},{"$f":"'6'!K23","v":0},{"$f":"'6'!L23","v":0},{"$f":"'6'!M23","v":0},{"$f":"'6'!N23","v":0},{"$f":"'6'!O23","v":0},{"$f":"'6'!Q23","v":"No"}]
[null,null,null,null,null,{"$f":"'6'!F24","v":"% of acquisition spend through Exempted Micro Enterprises\n"},{"$f":"'6'!P24","v":"Administration"},{"$f":"'6'!G24","v":"Outcome 10: Reduced poverty and improved livelihoods"},{"$f":"'6'!I24","v":0.2},{"$f":"'6'!J24","v":0},{"$f":"'6'!K24","v":0},{"$f":"'6'!L24","v":0},{"$f":"'6'!M24","v":0},{"$f":"'6'!N24","v":0},{"$f":"'6'!O24","v":0},{"$f":"'6'!Q24","v":"No"}]
[null,null,null,null,null,{"$f":"'6'!F25","v":"% of acquisition spend through Qualifying Small Enterprises\n"},{"$f":"'6'!P25","v":"Administration"},{"$f":"'6'!G25","v":"Outcome 10: Reduced poverty and improved livelihoods"},{"$f":"'6'!I25","v":0.1},{"$f":"'6'!J25","v":0},{"$f":"'6'!K25","v":0},{"$f":"'6'!L25","v":0},{"$f":"'6'!M25","v":0},{"$f":"'6'!N25","v":0},{"$f":"'6'!O25","v":0},{"$f":"'6'!Q25","v":"No"}]
[null,null,null,null,null,{"$f":"'7'!F11","v":"Revenue collected (excluding customs and excise revenue) per year"},{"$f":"'7'!P11","v":"Operations & Delivery - National "},{"$f":"'7'!G11","v":"Outcome 10: Reduced poverty and improved livelihoods"},{"$f":"'7'!I11","v":"100.00% collection of revenue as agreed with Minister"},{"$f":"'7'!J11","v":"100.00% collection of revenue as agreed with Minister"},{"$f":"'7'!K11","v":"100.00% collection of revenue as agreed with Minister"},{"$f":"'7'!L11","v":"100.00% collection of revenue as agreed with Minister"},{"$f":"'7'!M11","v":0},{"$f":"'7'!N11","v":0},{"$f":"'7'!O11","v":0},{"$f":"'7'!Q11","v":"No"}]
[null,null,null,null,null,{"$f":"'7'!F12","v":"% Uptake of PIT eFiling channel"},{"$f":"'7'!P12","v":"Operations & Delivery - National "},{"$f":"'7'!G12","v":"Outcome 10: Reduced poverty and improved livelihoods"},{"$f":"'7'!I12","v":0.56999999999999995},{"$f":"'7'!J12","v":0},{"$f":"'7'!K12","v":0},{"$f":"'7'!L12","v":0},{"$f":"'7'!M12","v":0},{"$f":"'7'!N12","v":0},{"$f":"'7'!O12","v":0},{"$f":"'7'!Q12","v":"No"}]
[null,null,null,null,null,{"$f":"'7'!F13","v":"% PIT filing compliance"},{"$f":"'7'!P13","v":"Operations & Delivery - National "},{"$f":"'7'!G13","v":"Outcome 10: Reduced poverty and improved livelihoods"},{"$f":"'7'!I13","v":0.92},{"$f":"'7'!J13","v":0},{"$f":"'7'!K13","v":0},{"$f":"'7'!L13","v":0},{"$f":"'7'!M13","v":0},{"$f":"'7'!N13","v":0},{"$f":"'7'!O13","v":0},{"$f":"'7'!Q13","v":"No"}]
[null,null,null,null,null,{"$f":"'7'!F14","v":"% PIT payment compliance"},{"$f":"'7'!P14","v":"Operations & Delivery - National "},{"$f":"'7'!G14","v":"Outcome 10: Reduced poverty and improved livelihoods"},{"$f":"'7'!I14","v":0.82},{"$f":"'7'!J14","v":0},{"$f":"'7'!K14","v":0},{"$f":"'7'!L14","v":0},{"$f":"'7'!M14","v":0},{"$f":"'7'!N14","v":0},{"$f":"'7'!O14","v":0},{"$f":"'7'!Q14","v":"No"}]
[null,null,null,null,null,{"$f":"'7'!F15","v":"% CIT filing compliance"},{"$f":"'7'!P15","v":"Operations & Delivery - National "},{"$f":"'7'!G15","v":"Outcome 10: Reduced poverty and improved livelihoods"},{"$f":"'7'!I15","v":0.83},{"$f":"'7'!J15","v":0},{"$f":"'7'!K15","v":0},{"$f":"'7'!L15","v":0},{"$f":"'7'!M15","v":0},{"$f":"'7'!N15","v":0},{"$f":"'7'!O15","v":0},{"$f":"'7'!Q15","v":"No"}]
[null,null,null,null,null,{"$f":"'7'!F16","v":"% CIT payment compliance"},{"$f":"'7'!P16","v":"Operations & Delivery - National "},{"$f":"'7'!G16","v":"Outcome 10: Reduced poverty and improved livelihoods"},{"$f":"'7'!I16","v":0.93},{"$f":"'7'!J16","v":0},{"$f":"'7'!K16","v":0},{"$f":"'7'!L16","v":0},{"$f":"'7'!M16","v":0},{"$f":"'7'!N16","v":0},{"$f":"'7'!O16","v":0},{"$f":"'7'!Q16","v":"No"}]
[null,null,null,null,null,{"$f":"'7'!F17","v":"% VAT filing compliance"},{"$f":"'7'!P17","v":"Operations & Delivery - National "},{"$f":"'7'!G17","v":"Outcome 10: Reduced poverty and improved livelihoods"},{"$f":"'7'!I17","v":0.91},{"$f":"'7'!J17","v":0},{"$f":"'7'!K17","v":0},{"$f":"'7'!L17","v":0},{"$f":"'7'!M17","v":0},{"$f":"'7'!N17","v":0},{"$f":"'7'!O17","v":0},{"$f":"'7'!Q17","v":"No"}]
[null,null,null,null,null,{"$f":"'7'!F18","v":"% VAT payment compliance"},{"$f":"'7'!P18","v":"Operations & Delivery - National "},{"$f":"'7'!G18","v":"Outcome 10: Reduced poverty and improved livelihoods"},{"$f":"'7'!I18","v":0.96},{"$f":"'7'!J18","v":0},{"$f":"'7'!K18","v":0},{"$f":"'7'!L18","v":0},{"$f":"'7'!M18","v":0},{"$f":"'7'!N18","v":0},{"$f":"'7'!O18","v":0},{"$f":"'7'!Q18","v":"No"}]
[null,null,null,null,null,{"$f":"'7'!F19","v":"% PAYE filing compliance"},{"$f":"'7'!P19","v":"Operations & Delivery - National "},{"$f":"'7'!G19","v":"Outcome 10: Reduced poverty and improved livelihoods"},{"$f":"'7'!I19","v":0.87},{"$f":"'7'!J19","v":0},{"$f":"'7'!K19","v":0},{"$f":"'7'!L19","v":0},{"$f":"'7'!M19","v":0},{"$f":"'7'!N19","v":0},{"$f":"'7'!O19","v":0},{"$f":"'7'!Q19","v":"No"}]
[null,null,null,null,null,{"$f":"'7'!F20","v":"% PAYE payment compliance"},{"$f":"'7'!P20","v":"Operations & Delivery - National "},{"$f":"'7'!G20","v":"Outcome 10: Reduced poverty and improved livelihoods"},{"$f":"'7'!I20","v":0.93},{"$f":"'7'!J20","v":0},{"$f":"'7'!K20","v":0},{"$f":"'7'!L20","v":0},{"$f":"'7'!M20","v":0},{"$f":"'7'!N20","v":0},{"$f":"'7'!O20","v":0},{"$f":"'7'!Q20","v":"No"}]
[null,null,null,null,null,{"$f":"'7'!F21","v":"Average processing turn-around time for PIT returns (working days)"},{"$f":"'7'!P21","v":"Operations & Delivery - National "},{"$f":"'7'!G21","v":"Outcome 10: Reduced poverty and improved livelihoods"},{"$f":"'7'!I21","v":0},{"$f":"'7'!J21","v":0},{"$f":"'7'!K21","v":0},{"$f":"'7'!L21","v":0},{"$f":"'7'!M21","v":0},{"$f":"'7'!N21","v":0},{"$f":"'7'!O21","v":0},{"$f":"'7'!Q21","v":"No"}]
[null,null,null,null,null,{"$f":"'7'!F22","v":"Average processing turn-around time for CIT returns (working days)"},{"$f":"'7'!P22","v":"Operations & Delivery - National "},{"$f":"'7'!G22","v":"Outcome 10: Reduced poverty and improved livelihoods"},{"$f":"'7'!I22","v":0},{"$f":"'7'!J22","v":0},{"$f":"'7'!K22","v":0},{"$f":"'7'!L22","v":0},{"$f":"'7'!M22","v":0},{"$f":"'7'!N22","v":0},{"$f":"'7'!O22","v":0},{"$f":"'7'!Q22","v":"No"}]
[null,null,null,null,null,{"$f":"'7'!F23","v":"Average processing turn-around time for VAT returns (working days)"},{"$f":"'7'!P23","v":"Operations & Delivery - National "},{"$f":"'7'!G23","v":"Outcome 10: Reduced poverty and improved livelihoods"},{"$f":"'7'!I23","v":21},{"$f":"'7'!J23","v":0},{"$f":"'7'!K23","v":0},{"$f":"'7'!L23","v":0},{"$f":"'7'!M23","v":0},{"$f":"'7'!N23","v":0},{"$f":"'7'!O23","v":0},{"$f":"'7'!Q23","v":"No"}]
[null,null,null,null,null,{"$f":"'7'!F24","v":"% improvement in the collection of overdue debt\n0"},{"$f":"'7'!P24","v":"Operations & Delivery - National "},{"$f":"'7'!G24","v":"Outcome 10: Reduced poverty and improved livelihoods"},{"$f":"'7'!I24","v":0.15},{"$f":"'7'!J24","v":0},{"$f":"'7'!K24","v":0},{"$f":"'7'!L24","v":0},{"$f":"'7'!M24","v":0},{"$f":"'7'!N24","v":0},{"$f":"'7'!O24","v":0},{"$f":"'7'!Q24","v":"No"}]
[null,null,null,null,null,{"$f":"'7'!F25","v":"Debt Book as a % of tax revenue"},{"$f":"'7'!P25","v":"Operations & Delivery - National "},{"$f":"'7'!G25","v":"Outcome 10: Reduced poverty and improved livelihoods"},{"$f":"'7'!I25","v":0.06},{"$f":"'7'!J25","v":0},{"$f":"'7'!K25","v":0},{"$f":"'7'!L25","v":0},{"$f":"'7'!M25","v":0},{"$f":"'7'!N25","v":0},{"$f":"'7'!O25","v":0},{"$f":"'7'!Q25","v":"No"}]
[null,null,null,null,null,{"$f":"'8'!F11","v":"Customs and Excise revenue collected (R billion)"},{"$f":"'8'!P11","v":"Operations & Delivery - Regional"},{"$f":"'8'!G11","v":"Outcome 10: Reduced poverty and improved livelihoods"},{"$f":"'8'!I11","v":"Collect 100% of the target as agreed with Minister of Finance"},{"$f":"'8'!J11","v":"Collect 100% of the target as agreed with Minister of Finance"},{"$f":"'8'!K11","v":"Collect 100% of the target as agreed with Minister of Finance"},{"$f":"'8'!L11","v":0},{"$f":"'8'!M11","v":0},{"$f":"'8'!N11","v":0},{"$f":"'8'!O11","v":0},{"$f":"'8'!Q11","v":"No"}]
[null,null,null,null,null,{"$f":"'8'!F12","v":"% of  trade attributable to Preferred Traders"},{"$f":"'8'!P12","v":"Operations & Delivery - Regional"},{"$f":"'8'!G12","v":"Outcome 10: Reduced poverty and improved livelihoods"},{"$f":"'8'!I12","v":0.15},{"$f":"'8'!J12","v":0},{"$f":"'8'!K12","v":"0"},{"$f":"'8'!L12","v":0},{"$f":"'8'!M12","v":0},{"$f":"'8'!N12","v":0},{"$f":"'8'!O12","v":0},{"$f":"'8'!Q12","v":"No"}]
[null,null,null,null,null,{"$f":"'8'!F13","v":"% Of goods targeted for the purpose of detecting under-declarations "},{"$f":"'8'!P13","v":"Operations & Delivery - Regional"},{"$f":"'8'!G13","v":"Outcome 10: Reduced poverty and improved livelihoods"},{"$f":"'8'!I13","v":0},{"$f":"'8'!J13","v":0},{"$f":"'8'!K13","v":0},{"$f":"'8'!L13","v":0},{"$f":"'8'!M13","v":0},{"$f":"'8'!N13","v":0},{"$f":"'8'!O13","v":0},{"$f":"'8'!Q13","v":"No"}]
[null,null,null,null,null,{"$f":"'8'!F14","v":"% Compliance to Excise Framework"},{"$f":"'8'!P14","v":"Operations & Delivery - Regional"},{"$f":"'8'!G14","v":"Outcome 10: Reduced poverty and improved livelihoods"},{"$f":"'8'!I14","v":0},{"$f":"'8'!J14","v":0},{"$f":"'8'!K14","v":0},{"$f":"'8'!L14","v":0},{"$f":"'8'!M14","v":0},{"$f":"'8'!N14","v":0},{"$f":"'8'!O14","v":0},{"$f":"'8'!Q14","v":"No"}]
[null,null,null,null,null,{"$f":"'8'!F15","v":"% matching of customs declarations to cargo reports"},{"$f":"'8'!P15","v":"Operations & Delivery - Regional"},{"$f":"'8'!G15","v":"Outcome 10: Reduced poverty and improved livelihoods"},{"$f":"'8'!I15","v":"Sea 90%\nAir 90%\nRail 90%\nRoad 98%"},{"$f":"'8'!J15","v":0},{"$f":"'8'!K15","v":0},{"$f":"'8'!L15","v":0},{"$f":"'8'!M15","v":0},{"$f":"'8'!N15","v":0},{"$f":"'8'!O15","v":0},{"$f":"'8'!Q15","v":"No"}]
[null,null,null,null,null,{"$f":"'8'!F16","v":"% Audit coverage of Excise clients\n"},{"$f":"'8'!P16","v":"Operations & Delivery - Regional"},{"$f":"'8'!G16","v":"Outcome 10: Reduced poverty and improved livelihoods"},{"$f":"'8'!I16","v":0.4},{"$f":"'8'!J16","v":0},{"$f":"'8'!K16","v":0},{"$f":"'8'!L16","v":0},{"$f":"'8'!M16","v":0},{"$f":"'8'!N16","v":0},{"$f":"'8'!O16","v":0},{"$f":"'8'!Q16","v":"No"}]
[null,null,null,null,null,{"$f":"'8'!F17","v":"% of standard taxpayers\nreturns auto assessed by SARS (individual taxpayers)\n"},{"$f":"'8'!P17","v":"Operations & Delivery - Regional"},{"$f":"'8'!G17","v":"Outcome 10: Reduced poverty and improved livelihoods"},{"$f":"'8'!I17","v":90},{"$f":"'8'!J17","v":"93"},{"$f":"'8'!K17","v":"95"},{"$f":"'8'!L17","v":"95"},{"$f":"'8'!M17","v":0},{"$f":"'8'!N17","v":0},{"$f":"'8'!O17","v":0},{"$f":"'8'!Q17","v":"No"}]
[null,null,null,null,null,{"$f":"'8'!F18","v":"There are fewer taxpayers and traders that need SARS to help them resolve their tax and customs queries – % reduction in the number of taxpayers and traders requiring to visit a SARS branch office"},{"$f":"'8'!P18","v":"Operations and delivery  (Regional)"},{"$f":"'8'!G18","v":"Outcome 10: Reduced poverty and improved livelihoods"},{"$f":"'8'!I18","v":"30.00% reduction in inbound volumes relative to base"},{"$f":"'8'!J18","v":"40.00% reduction in inbound volumes relative to base"},{"$f":"'8'!K18","v":"60.00% reduction in inbound volumes relative to base"},{"$f":"'8'!L18","v":0},{"$f":"'8'!M18","v":0},{"$f":"'8'!N18","v":0},{"$f":"'8'!O18","v":0},{"$f":"'8'!Q18","v":"No"}]
[null,null,null,null,null,{"$f":"'8'!F19","v":"We have a continuous\ndownward trend in overall disputes - % reduction in the number of disputes lodged with SARS"},{"$f":"'8'!P19","v":"Operations and delivery  (Regional)"},{"$f":"'8'!G19","v":"Outcome 10: Reduced poverty and improved livelihoods"},{"$f":"'8'!I19","v":"15.00%\nreduction"},{"$f":"'8'!J19","v":"30.00%\nreduction"},{"$f":"'8'!K19","v":"• Simple taxpayers Personal Income Tax (PIT) disputes to largely disappear by 2024/25\n• Provisional taxpayer disputes to significantly\ndecrease by 2024/25\n• VAT disputes to\nsignificantly decrease by 2024/25"},{"$f":"'8'!L19","v":0},{"$f":"'8'!M19","v":0},{"$f":"'8'!N19","v":0},{"$f":"'8'!O19","v":0},{"$f":"'8'!Q19","v":"No"}]
[null,null,null,null,null,{"$f":"'8'!F20","v":"Leveraged products introduced – Advance Pricing Agreement (APA) Programme introduced"},{"$f":"'8'!P20","v":"Operations and delivery  (Regional)"},{"$f":"'8'!G20","v":"Outcome 10: Reduced poverty and improved livelihoods"},{"$f":"'8'!I20","v":"Legislation for APA Programme proposed to National, Treasury"},{"$f":"'8'!J20","v":"Legislation for APA Programme introduced\nAPA Programme pilot launched"},{"$f":"'8'!K20","v":"Outcome of pilot reviewed with a view to broader implementation of APA Programme"},{"$f":"'8'!L20","v":0},{"$f":"'8'!M20","v":0},{"$f":"'8'!N20","v":0},{"$f":"'8'!O20","v":0},{"$f":"'8'!Q20","v":"No"}]
[null,null,null,null,null,{"$f":"'8'!F21","v":"Uptake of AEO\nProgramme by traders - % uptake of Authorised Economic Operator (AEO) Programme by active economic\noperators"},{"$f":"'8'!P21","v":"Operations and delivery  (Regional)"},{"$f":"'8'!G21","v":"Outcome 10: Reduced poverty and improved livelihoods"},{"$f":"'8'!I21","v":"50.00% of total active economic operators\ntargeted"},{"$f":"'8'!J21","v":"70.00% of total active economic operators\ntargeted"},{"$f":"'8'!K21","v":"80.00% of total active economic operators\ntargeted"},{"$f":"'8'!L21","v":0},{"$f":"'8'!M21","v":0},{"$f":"'8'!N21","v":0},{"$f":"'8'!O21","v":0},{"$f":"'8'!Q21","v":"No"}]
[null,null,null,null,null,{"$f":"'8'!F22","v":"Overall compliance has increased as measured by a well-defined compliance index"},{"$f":"'8'!P22","v":0},{"$f":"'8'!G22","v":"Outcome 10: Reduced poverty and improved livelihoods"},{"$f":"'8'!I22","v":"5.00% improvement on baseline \n"},{"$f":"'8'!J22","v":"5.00% improvement on baseline \n"},{"$f":"'8'!K22","v":"5.00% improvement on baseline \n"},{"$f":"'8'!L22","v":"5.00% improvement on baseline \n"},{"$f":"'8'!M22","v":0},{"$f":"'8'!N22","v":0},{"$f":"'8'!O22","v":0},{"$f":"'8'!Q22","v":0}]
[null,null,null,null,null,{"$f":"'8'!F23","v":"Enhanced Trade Facilitation"},{"$f":"'8'!P23","v":0},{"$f":"'8'!G23","v":"Outcome 10: Reduced poverty and improved livelihoods"},{"$f":"'8'!I23","v":"A trade facilitation index is developed and approved, baseline determined and future targets set"},{"$f":"'8'!J23","v":0},{"$f":"'8'!K23","v":0},{"$f":"'8'!L23","v":0},{"$f":"'8'!M23","v":0},{"$f":"'8'!N23","v":0},{"$f":"'8'!O23","v":0},{"$f":"'8'!Q23","v":"No"}]
[null,null,null,null,null,{"$f":"'8'!F24","v":"% of cases SARS referred to the NPA that is accepted for prosecution"},{"$f":"'8'!P24","v":"Operations and delivery (national)"},{"$f":"'8'!G24","v":"Outcome 10: Reduced poverty and improved livelihoods"},{"$f":"'8'!I24","v":"90"},{"$f":"'8'!J24","v":"90"},{"$f":"'8'!K24","v":"95"},{"$f":"'8'!L24","v":"95"},{"$f":"'8'!M24","v":0},{"$f":"'8'!N24","v":0},{"$f":"'8'!O24","v":0},{"$f":"'8'!Q24","v":"No"}]
[null,null,null,null,null,{"$f":"'8'!F25","v":0},{"$f":"'8'!P25","v":0},{"$f":"'8'!G25","v":"Outcome 10: Reduced poverty and improved livelihoods"},{"$f":"'8'!I25","v":0},{"$f":"'8'!J25","v":0},{"$f":"'8'!K25","v":0},{"$f":"'8'!L25","v":0},{"$f":"'8'!M25","v":0},{"$f":"'8'!N25","v":0},{"$f":"'8'!O25","v":0},{"$f":"'8'!Q25","v":0}]
[null,null,null,null,null,{"$f":"'9'!F11","v":"% System Uptime for e-channels"},{"$f":"'9'!P11","v":"Design & Enabling - Enterprise Enabling"},{"$f":"'9'!G11","v":"Outcome 10: Reduced poverty and improved livelihoods"},{"$f":"'9'!I11","v":0.99},{"$f":"'9'!J11","v":0.99},{"$f":"'9'!K11","v":0.99},{"$f":"'9'!L11","v":0.99},{"$f":"'9'!M11","v":0},{"$f":"'9'!N11","v":0},{"$f":"'9'!O11","v":0},{"$f":"'9'!Q11","v":"No"}]
[null,null,null,null,null,{"$f":"'9'!F12","v":"% of planned capacity to be available for mission critical systems"},{"$f":"'9'!P12","v":"Design & Enabling - Enterprise Enabling"},{"$f":"'9'!G12","v":"Outcome 10: Reduced poverty and improved livelihoods"},{"$f":"'9'!I12","v":"100"},{"$f":"'9'!J12","v":100},{"$f":"'9'!K12","v":"100"},{"$f":"'9'!L12","v":0},{"$f":"'9'!M12","v":0},{"$f":"'9'!N12","v":0},{"$f":"'9'!O12","v":0},{"$f":"'9'!Q12","v":"No"}]
[null,null,null,null,null,{"$f":"'9'!F13","v":"Number of security breaches on digital platforms for known risks"},{"$f":"'9'!P13","v":"Design & Enabling - Enterprise Enabling"},{"$f":"'9'!G13","v":"Outcome 10: Reduced poverty and improved livelihoods"},{"$f":"'9'!I13","v":"No security\nbreaches risk\nfrom known\nrisks\n"},{"$f":"'9'!J13","v":"No security\nbreaches risk\nfrom known\nrisks\n"},{"$f":"'9'!K13","v":"No security\nbreaches risk\nfrom known\nrisks\n"},{"$f":"'9'!L13","v":"No security\nbreaches risk\nfrom known\nrisks\n"},{"$f":"'9'!M13","v":0},{"$f":"'9'!N13","v":0},{"$f":"'9'!O13","v":0},{"$f":"'9'!Q13","v":"No"}]
[null,null,null,null,null,{"$f":"'9'!F14","v":"% of SARS taxpayer and trader service offerings made available online"},{"$f":"'9'!P14","v":"Design & Enabling - Enterprise Enabling"},{"$f":"'9'!G14","v":"Outcome 10: Reduced poverty and improved livelihoods"},{"$f":"'9'!I14","v":"80.00% of all\nSARS taxpayer\nand trader\nservice offerings\navailable\non online\nchannels\n"},{"$f":"'9'!J14","v":"90.00% of all\nSARS taxpayer\nand trader\nservice offerings\navailable\non online\nchannels\n"},{"$f":"'9'!K14","v":"95.00% of all\nSARS taxpayer\nand trader\nservice offerings\navailable\non online\nchannels\n"},{"$f":"'9'!L14","v":0},{"$f":"'9'!M14","v":0},{"$f":"'9'!N14","v":0},{"$f":"'9'!O14","v":0},{"$f":"'9'!Q14","v":"No"}]
[null,null,null,null,null,{"$f":"'9'!F15","v":"ICT investment as % of total grant"},{"$f":"'9'!P15","v":"Administration"},{"$f":"'9'!G15","v":"Outcome 10: Reduced poverty and improved livelihoods"},{"$f":"'9'!I15","v":"2.00%"},{"$f":"'9'!J15","v":"2.00%"},{"$f":"'9'!K15","v":"2.00%"},{"$f":"'9'!L15","v":"2.00%"},{"$f":"'9'!M15","v":0},{"$f":"'9'!N15","v":0},{"$f":"'9'!O15","v":0},{"$f":"'9'!Q15","v":"No"}]
[null,null,null,null,null,{"$f":"'9'!F16","v":"Achieve 5% non-people operational cost savings"},{"$f":"'9'!P16","v":"Administration"},{"$f":"'9'!G16","v":"Outcome 10: Reduced poverty and improved livelihoods"},{"$f":"'9'!I16","v":5},{"$f":"'9'!J16","v":0},{"$f":"'9'!K16","v":"0"},{"$f":"'9'!L16","v":0},{"$f":"'9'!M16","v":0},{"$f":"'9'!N16","v":0},{"$f":"'9'!O16","v":0},{"$f":"'9'!Q16","v":"No"}]
[null,null,null,null,null,{"$f":"'9'!F17","v":"% productivity levels achieved across SARS"},{"$f":"'9'!P17","v":"Administration"},{"$f":"'9'!G17","v":"Outcome 10: Reduced poverty and improved livelihoods"},{"$f":"'9'!I17","v":"80.00% productivity achieved across SARS"},{"$f":"'9'!J17","v":"80.00% productivity achieved across SARS"},{"$f":"'9'!K17","v":"80.00% productivity achieved across SARS"},{"$f":"'9'!L17","v":0},{"$f":"'9'!M17","v":0},{"$f":"'9'!N17","v":0},{"$f":"'9'!O17","v":0},{"$f":"'9'!Q17","v":"No"}]
[null,null,null,null,null,{"$f":"'9'!F18","v":"We have satisfied all SARS’ commitments in terms of Organisation for Economic Cooperation and Development (OECD) Exchange of Information (EOI) standards - % of commitments met"},{"$f":"'9'!P18","v":"Administration"},{"$f":"'9'!G18","v":"Outcome 10: Reduced poverty and improved livelihoods"},{"$f":"'9'!I18","v":"100.00%\ncompliance in terms of OECD EOI Standards"},{"$f":"'9'!J18","v":"100.00%\ncompliance in terms of OECD EOI Standards"},{"$f":"'9'!K18","v":"100.00%\ncompliance in terms of OECD EOI Standards"},{"$f":"'9'!L18","v":0},{"$f":"'9'!M18","v":0},{"$f":"'9'!N18","v":0},{"$f":"'9'!O18","v":0},{"$f":"'9'!Q18","v":"No"}]
[null,null,null,null,null,{"$f":"'9'!F19","v":"A high number of intermediaries that are satisfied with our cooperation and collaboration - % of intermediaries that are satisfied with our assistance"},{"$f":"'9'!P19","v":"Administration"},{"$f":"'9'!G19","v":"Outcome 10: Reduced poverty and improved livelihoods"},{"$f":"'9'!I19","v":"65.00%"},{"$f":"'9'!J19","v":"70.00%"},{"$f":"'9'!K19","v":"70.00%"},{"$f":"'9'!L19","v":"72.00%"},{"$f":"'9'!M19","v":0},{"$f":"'9'!N19","v":0},{"$f":"'9'!O19","v":0},{"$f":"'9'!Q19","v":"No"}]
[null,null,null,null,null,{"$f":"'9'!F20","v":"We have met SARS’ commitments in terms of Financial Action Task Force (FATF) Mutual Evaluation findings -\n% of FATF deliverables met"},{"$f":"'9'!P20","v":"Administration"},{"$f":"'9'!G20","v":"Outcome 10: Reduced poverty and improved livelihoods"},{"$f":"'9'!I20","v":"100% Achievement on SARS’ deliverables to South Africa’s Action Plan"},{"$f":"'9'!J20","v":0},{"$f":"'9'!K20","v":"0"},{"$f":"'9'!L20","v":0},{"$f":"'9'!M20","v":0},{"$f":"'9'!N20","v":0},{"$f":"'9'!O20","v":0},{"$f":"'9'!Q20","v":"No"}]
[null,null,null,null,null,{"$f":"'9'!F21","v":"Public opinion survey results reflects high trust and confidence in SARS – % score as per public opinion survey"},{"$f":"'9'!P21","v":"Administration"},{"$f":"'9'!G21","v":"Outcome 10: Reduced poverty and improved livelihoods"},{"$f":"'9'!I21","v":"75.50"},{"$f":"'9'!J21","v":"76.00"},{"$f":"'9'!K21","v":"76.50"},{"$f":"'9'!L21","v":"77.50"},{"$f":"'9'!M21","v":0},{"$f":"'9'!N21","v":0},{"$f":"'9'!O21","v":0},{"$f":"'9'!Q21","v":"No"}]
[null,null,null,null,null,{"$f":"'9'!F22","v":"Sentiments analysis continuously reflects high confidence in SARS – top 3 words that the public associates with SARS are positive"},{"$f":"'9'!P22","v":0},{"$f":"'9'!G22","v":"Outcome 10: Reduced poverty and improved livelihoods"},{"$f":"'9'!I22","v":"Top 3 words the public associates with SARS are positive"},{"$f":"'9'!J22","v":"Top 3 words the public associates with SARS are positive"},{"$f":"'9'!K22","v":"Top 3 words the public associates with SARS are positive"},{"$f":"'9'!L22","v":0},{"$f":"'9'!M22","v":0},{"$f":"'9'!N22","v":0},{"$f":"'9'!O22","v":0},{"$f":"'9'!Q22","v":"No"}]
[null,null,null,null,null,{"$f":"'9'!F23","v":"% Deviation between SARS’ spending for the year and the allocation SARS received from National Treasury"},{"$f":"'9'!P23","v":"Administration"},{"$f":"'9'!G23","v":"Outcome 10: Reduced poverty and improved livelihoods"},{"$f":"'9'!I23","v":"5%"},{"$f":"'9'!J23","v":"5%"},{"$f":"'9'!K23","v":"5%"},{"$f":"'9'!L23","v":"5%"},{"$f":"'9'!M23","v":0},{"$f":"'9'!N23","v":0},{"$f":"'9'!O23","v":0},{"$f":"'9'!Q23","v":"No"}]
[null,null,null,null,null,{"$f":"'9'!F24","v":"% Service Charter performance score "},{"$f":"'9'!P24","v":"Administration"},{"$f":"'9'!G24","v":"Outcome 10: Reduced poverty and improved livelihoods"},{"$f":"'9'!I24","v":"82"},{"$f":"'9'!J24","v":"85"},{"$f":"'9'!K24","v":"88"},{"$f":"'9'!L24","v":"90"},{"$f":"'9'!M24","v":0},{"$f":"'9'!N24","v":0},{"$f":"'9'!O24","v":0},{"$f":"'9'!Q24","v":"No"}]
[null,null,null,null,null,{"$f":"'9'!F25","v":0},{"$f":"'9'!P25","v":0},{"$f":"'9'!G25","v":"Outcome 10: Reduced poverty and improved livelihoods"},{"$f":"'9'!I25","v":0},{"$f":"'9'!J25","v":0},{"$f":"'9'!K25","v":0},{"$f":"'9'!L25","v":0},{"$f":"'9'!M25","v":0},{"$f":"'9'!N25","v":0},{"$f":"'9'!O25","v":0},{"$f":"'9'!Q25","v":0}]
[null,null,null,null,null,{"$f":"'10'!F11","v":"Completeness of data achieved0"},{"$f":"'10'!P11","v":"Design & Enabling - Segments"},{"$f":"'10'!G11","v":"Outcome 10: Reduced poverty and improved livelihoods"},{"$f":"'10'!I11","v":"Expanded\nuse of\nunstructured\nand\nstructured\ndata\n"},{"$f":"'10'!J11","v":0},{"$f":"'10'!K11","v":0},{"$f":"'10'!L11","v":0},{"$f":"'10'!M11","v":0},{"$f":"'10'!N11","v":0},{"$f":"'10'!O11","v":0},{"$f":"'10'!Q11","v":"No"}]
[null,null,null,null,null,{"$f":"'10'!F12","v":"Methodology and algorithms to improve case selection completed"},{"$f":"'10'!P12","v":"Design & Enabling - Segments"},{"$f":"'10'!G12","v":"Outcome 10: Reduced poverty and improved livelihoods"},{"$f":"'10'!I12","v":"Increased use\nof machine\nlearning\ncapability\n"},{"$f":"'10'!J12","v":"Performance\nreview of\nnew machine\nlearning\ncapability"},{"$f":"'10'!K12","v":0},{"$f":"'10'!L12","v":0},{"$f":"'10'!M12","v":0},{"$f":"'10'!N12","v":0},{"$f":"'10'!O12","v":0},{"$f":"'10'!Q12","v":"No"}]
[null,null,null,null,null,{"$f":"'10'!F13","v":"Data governance framework developed and implemented0"},{"$f":"'10'!P13","v":"Design & Enabling - Segments"},{"$f":"'10'!G13","v":"Outcome 10: Reduced poverty and improved livelihoods"},{"$f":"'10'!I13","v":"Data\ngovernance\nframework\nimplemented\n"},{"$f":"'10'!J13","v":"Data\ngovernance\nframework\nimplemented\n"},{"$f":"'10'!K13","v":"Data\ngovernance\nframework\nimplemented\n"},{"$f":"'10'!L13","v":0},{"$f":"'10'!M13","v":0},{"$f":"'10'!N13","v":0},{"$f":"'10'!O13","v":0},{"$f":"'10'!Q13","v":"No"}]
[null,null,null,null,null,{"$f":"'10'!F14","v":0},{"$f":"'10'!P14","v":0},{"$f":"'10'!G14","v":0},{"$f":"'10'!I14","v":0},{"$f":"'10'!J14","v":0},{"$f":"'10'!K14","v":0},{"$f":"'10'!L14","v":0},{"$f":"'10'!M14","v":0},{"$f":"'10'!N14","v":0},{"$f":"'10'!O14","v":0},{"$f":"'10'!Q14","v":0}]
[null,null,null,null,null,{"$f":"'10'!F15","v":0},{"$f":"'10'!P15","v":0},{"$f":"'10'!G15","v":0},{"$f":"'10'!I15","v":0},{"$f":"'10'!J15","v":0},{"$f":"'10'!K15","v":0},{"$f":"'10'!L15","v":0},{"$f":"'10'!M15","v":0},{"$f":"'10'!N15","v":0},{"$f":"'10'!O15","v":0},{"$f":"'10'!Q15","v":0}]
[null,null,null,null,null,{"$f":"'10'!F16","v":0},{"$f":"'10'!P16","v":0},{"$f":"'10'!G16","v":0},{"$f":"'10'!I16","v":0},{"$f":"'10'!J16","v":0},{"$f":"'10'!K16","v":0},{"$f":"'10'!L16","v":0},{"$f":"'10'!M16","v":0},{"$f":"'10'!N16","v":0},{"$f":"'10'!O16","v":0},{"$f":"'10'!Q16","v":0}]
[null,null,null,null,null,{"$f":"'10'!F17","v":0},{"$f":"'10'!P17","v":0},{"$f":"'10'!G17","v":0},{"$f":"'10'!I17","v":0},{"$f":"'10'!J17","v":0},{"$f":"'10'!K17","v":0},{"$f":"'10'!L17","v":0},{"$f":"'10'!M17","v":0},{"$f":"'10'!N17","v":0},{"$f":"'10'!O17","v":0},{"$f":"'10'!Q17","v":0}]
[null,null,null,null,null,{"$f":"'10'!F18","v":0},{"$f":"'10'!P18","v":0},{"$f":"'10'!G18","v":0},{"$f":"'10'!I18","v":0},{"$f":"'10'!J18","v":0},{"$f":"'10'!K18","v":0},{"$f":"'10'!L18","v":0},{"$f":"'10'!M18","v":0},{"$f":"'10'!N18","v":0},{"$f":"'10'!O18","v":0},{"$f":"'10'!Q18","v":0}]
[null,null,null,null,null,{"$f":"'10'!F19","v":0},{"$f":"'10'!P19","v":0},{"$f":"'10'!G19","v":0},{"$f":"'10'!I19","v":0},{"$f":"'10'!J19","v":0},{"$f":"'10'!K19","v":0},{"$f":"'10'!L19","v":0},{"$f":"'10'!M19","v":0},{"$f":"'10'!N19","v":0},{"$f":"'10'!O19","v":0},{"$f":"'10'!Q19","v":0}]
[null,null,null,null,null,{"$f":"'10'!F20","v":0},{"$f":"'10'!P20","v":0},{"$f":"'10'!G20","v":0},{"$f":"'10'!I20","v":0},{"$f":"'10'!J20","v":0},{"$f":"'10'!K20","v":0},{"$f":"'10'!L20","v":0},{"$f":"'10'!M20","v":0},{"$f":"'10'!N20","v":0},{"$f":"'10'!O20","v":0},{"$f":"'10'!Q20","v":0}]
[null,null,null,null,null,{"$f":"'10'!F21","v":0},{"$f":"'10'!P21","v":0},{"$f":"'10'!G21","v":0},{"$f":"'10'!I21","v":0},{"$f":"'10'!J21","v":0},{"$f":"'10'!K21","v":0},{"$f":"'10'!L21","v":0},{"$f":"'10'!M21","v":0},{"$f":"'10'!N21","v":0},{"$f":"'10'!O21","v":0},{"$f":"'10'!Q21","v":0}]
[null,null,null,null,null,{"$f":"'10'!F22","v":0},{"$f":"'10'!P22","v":0},{"$f":"'10'!G22","v":0},{"$f":"'10'!I22","v":0},{"$f":"'10'!J22","v":0},{"$f":"'10'!K22","v":0},{"$f":"'10'!L22","v":0},{"$f":"'10'!M22","v":0},{"$f":"'10'!N22","v":0},{"$f":"'10'!O22","v":0},{"$f":"'10'!Q22","v":0}]
[null,null,null,null,null,{"$f":"'10'!F23","v":0},{"$f":"'10'!P23","v":0},{"$f":"'10'!G23","v":0},{"$f":"'10'!I23","v":0},{"$f":"'10'!J23","v":0},{"$f":"'10'!K23","v":0},{"$f":"'10'!L23","v":0},{"$f":"'10'!M23","v":0},{"$f":"'10'!N23","v":0},{"$f":"'10'!O23","v":0},{"$f":"'10'!Q23","v":0}]
[null,null,null,null,null,{"$f":"'10'!F24","v":0},{"$f":"'10'!P24","v":0},{"$f":"'10'!G24","v":0},{"$f":"'10'!I24","v":0},{"$f":"'10'!J24","v":0},{"$f":"'10'!K24","v":0},{"$f":"'10'!L24","v":0},{"$f":"'10'!M24","v":0},{"$f":"'10'!N24","v":0},{"$f":"'10'!O24","v":0},{"$f":"'10'!Q24","v":0}]
[null,null,null,null,null,{"$f":"'10'!F25","v":0},{"$f":"'10'!P25","v":0},{"$f":"'10'!G25","v":0},{"$f":"'10'!I25","v":0},{"$f":"'10'!J25","v":0},{"$f":"'10'!K25","v":0},{"$f":"'10'!L25","v":0},{"$f":"'10'!M25","v":0},{"$f":"'10'!N25","v":0},{"$f":"'10'!O25","v":0},{"$f":"'10'!Q25","v":0}]
[null,null,null,null,null,{"$f":"'11'!F11","v":0},{"$f":"'11'!P11","v":0},{"$f":"'11'!G11","v":0},{"$f":"'11'!I11","v":0},{"$f":"'11'!J11","v":0},{"$f":"'11'!K11","v":0},{"$f":"'11'!L11","v":0},{"$f":"'11'!M11","v":0},{"$f":"'11'!N11","v":0},{"$f":"'11'!O11","v":0},{"$f":"'11'!Q11","v":0}]
[null,null,null,null,null,{"$f":"'11'!F12","v":0},{"$f":"'11'!P12","v":0},{"$f":"'11'!G12","v":0},{"$f":"'11'!I12","v":0},{"$f":"'11'!J12","v":0},{"$f":"'11'!K12","v":0},{"$f":"'11'!L12","v":0},{"$f":"'11'!M12","v":0},{"$f":"'11'!N12","v":0},{"$f":"'11'!O12","v":0},{"$f":"'11'!Q12","v":0}]
[null,null,null,null,null,{"$f":"'11'!F13","v":0},{"$f":"'11'!P13","v":0},{"$f":"'11'!G13","v":0},{"$f":"'11'!I13","v":0},{"$f":"'11'!J13","v":0},{"$f":"'11'!K13","v":0},{"$f":"'11'!L13","v":0},{"$f":"'11'!M13","v":0},{"$f":"'11'!N13","v":0},{"$f":"'11'!O13","v":0},{"$f":"'11'!Q13","v":0}]
[null,null,null,null,null,{"$f":"'11'!F14","v":0},{"$f":"'11'!P14","v":0},{"$f":"'11'!G14","v":0},{"$f":"'11'!I14","v":0},{"$f":"'11'!J14","v":0},{"$f":"'11'!K14","v":0},{"$f":"'11'!L14","v":0},{"$f":"'11'!M14","v":0},{"$f":"'11'!N14","v":0},{"$f":"'11'!O14","v":0},{"$f":"'11'!Q14","v":0}]
[null,null,null,null,null,{"$f":"'11'!F15","v":0},{"$f":"'11'!P15","v":0},{"$f":"'11'!G15","v":0},{"$f":"'11'!I15","v":0},{"$f":"'11'!J15","v":0},{"$f":"'11'!K15","v":0},{"$f":"'11'!L15","v":0},{"$f":"'11'!M15","v":0},{"$f":"'11'!N15","v":0},{"$f":"'11'!O15","v":0},{"$f":"'11'!Q15","v":0}]
[null,null,null,null,null,{"$f":"'11'!F16","v":0},{"$f":"'11'!P16","v":0},{"$f":"'11'!G16","v":0},{"$f":"'11'!I16","v":0},{"$f":"'11'!J16","v":0},{"$f":"'11'!K16","v":0},{"$f":"'11'!L16","v":0},{"$f":"'11'!M16","v":0},{"$f":"'11'!N16","v":0},{"$f":"'11'!O16","v":0},{"$f":"'11'!Q16","v":0}]
[null,null,null,null,null,{"$f":"'11'!F17","v":0},{"$f":"'11'!P17","v":0},{"$f":"'11'!G17","v":0},{"$f":"'11'!I17","v":0},{"$f":"'11'!J17","v":0},{"$f":"'11'!K17","v":0},{"$f":"'11'!L17","v":0},{"$f":"'11'!M17","v":0},{"$f":"'11'!N17","v":0},{"$f":"'11'!O17","v":0},{"$f":"'11'!Q17","v":0}]
[null,null,null,null,null,{"$f":"'11'!F18","v":0},{"$f":"'11'!P18","v":0},{"$f":"'11'!G18","v":0},{"$f":"'11'!I18","v":0},{"$f":"'11'!J18","v":0},{"$f":"'11'!K18","v":0},{"$f":"'11'!L18","v":0},{"$f":"'11'!M18","v":0},{"$f":"'11'!N18","v":0},{"$f":"'11'!O18","v":0},{"$f":"'11'!Q18","v":0}]
[null,null,null,null,null,{"$f":"'11'!F19","v":0},{"$f":"'11'!P19","v":0},{"$f":"'11'!G19","v":0},{"$f":"'11'!I19","v":0},{"$f":"'11'!J19","v":0},{"$f":"'11'!K19","v":0},{"$f":"'11'!L19","v":0},{"$f":"'11'!M19","v":0},{"$f":"'11'!N19","v":0},{"$f":"'11'!O19","v":0},{"$f":"'11'!Q19","v":0}]
[null,null,null,null,null,{"$f":"'11'!F20","v":0},{"$f":"'11'!P20","v":0},{"$f":"'11'!G20","v":0},{"$f":"'11'!I20","v":0},{"$f":"'11'!J20","v":0},{"$f":"'11'!K20","v":0},{"$f":"'11'!L20","v":0},{"$f":"'11'!M20","v":0},{"$f":"'11'!N20","v":0},{"$f":"'11'!O20","v":0},{"$f":"'11'!Q20","v":0}]
[null,null,null,null,null,{"$f":"'11'!F21","v":0},{"$f":"'11'!P21","v":0},{"$f":"'11'!G21","v":0},{"$f":"'11'!I21","v":0},{"$f":"'11'!J21","v":0},{"$f":"'11'!K21","v":0},{"$f":"'11'!L21","v":0},{"$f":"'11'!M21","v":0},{"$f":"'11'!N21","v":0},{"$f":"'11'!O21","v":0},{"$f":"'11'!Q21","v":0}]
[null,null,null,null,null,{"$f":"'11'!F22","v":0},{"$f":"'11'!P22","v":0},{"$f":"'11'!G22","v":0},{"$f":"'11'!I22","v":0},{"$f":"'11'!J22","v":0},{"$f":"'11'!K22","v":0},{"$f":"'11'!L22","v":0},{"$f":"'11'!M22","v":0},{"$f":"'11'!N22","v":0},{"$f":"'11'!O22","v":0},{"$f":"'11'!Q22","v":0}]
[null,null,null,null,null,{"$f":"'11'!F23","v":0},{"$f":"'11'!P23","v":0},{"$f":"'11'!G23","v":0},{"$f":"'11'!I23","v":0},{"$f":"'11'!J23","v":0},{"$f":"'11'!K23","v":0},{"$f":"'11'!L23","v":0},{"$f":"'11'!M23","v":0},{"$f":"'11'!N23","v":0},{"$f":"'11'!O23","v":0},{"$f":"'11'!Q23","v":0}]
[null,null,null,null,null,{"$f":"'11'!F24","v":0},{"$f":"'11'!P24","v":0},{"$f":"'11'!G24","v":0},{"$f":"'11'!I24","v":0},{"$f":"'11'!J24","v":0},{"$f":"'11'!K24","v":0},{"$f":"'11'!L24","v":0},{"$f":"'11'!M24","v":0},{"$f":"'11'!N24","v":0},{"$f":"'11'!O24","v":0},{"$f":"'11'!Q24","v":0}]
[null,null,null,null,null,{"$f":"'11'!F25","v":0},{"$f":"'11'!P25","v":0},{"$f":"'11'!G25","v":0},{"$f":"'11'!I25","v":0},{"$f":"'11'!J25","v":0},{"$f":"'11'!K25","v":0},{"$f":"'11'!L25","v":0},{"$f":"'11'!M25","v":0},{"$f":"'11'!N25","v":0},{"$f":"'11'!O25","v":0},{"$f":"'11'!Q25","v":0}]
[null,null,null,null,null,{"$f":"'12'!F11","v":0},{"$f":"'12'!P11","v":0},{"$f":"'12'!G11","v":0},{"$f":"'12'!I11","v":0},{"$f":"'12'!J11","v":0},{"$f":"'12'!K11","v":0},{"$f":"'12'!L11","v":0},{"$f":"'12'!M11","v":0},{"$f":"'12'!N11","v":0},{"$f":"'12'!O11","v":0},{"$f":"'12'!Q11","v":0}]
[null,null,null,null,null,{"$f":"'12'!F12","v":0},{"$f":"'12'!P12","v":0},{"$f":"'12'!G12","v":0},{"$f":"'12'!I12","v":0},{"$f":"'12'!J12","v":0},{"$f":"'12'!K12","v":0},{"$f":"'12'!L12","v":0},{"$f":"'12'!M12","v":0},{"$f":"'12'!N12","v":0},{"$f":"'12'!O12","v":0},{"$f":"'12'!Q12","v":0}]
[null,null,null,null,null,{"$f":"'12'!F13","v":0},{"$f":"'12'!P13","v":0},{"$f":"'12'!G13","v":0},{"$f":"'12'!I13","v":0},{"$f":"'12'!J13","v":0},{"$f":"'12'!K13","v":0},{"$f":"'12'!L13","v":0},{"$f":"'12'!M13","v":0},{"$f":"'12'!N13","v":0},{"$f":"'12'!O13","v":0},{"$f":"'12'!Q13","v":0}]
[null,null,null,null,null,{"$f":"'12'!F14","v":0},{"$f":"'12'!P14","v":0},{"$f":"'12'!G14","v":0},{"$f":"'12'!I14","v":0},{"$f":"'12'!J14","v":0},{"$f":"'12'!K14","v":0},{"$f":"'12'!L14","v":0},{"$f":"'12'!M14","v":0},{"$f":"'12'!N14","v":0},{"$f":"'12'!O14","v":0},{"$f":"'12'!Q14","v":0}]
[null,null,null,null,null,{"$f":"'12'!F15","v":0},{"$f":"'12'!P15","v":0},{"$f":"'12'!G15","v":0},{"$f":"'12'!I15","v":0},{"$f":"'12'!J15","v":0},{"$f":"'12'!K15","v":0},{"$f":"'12'!L15","v":0},{"$f":"'12'!M15","v":0},{"$f":"'12'!N15","v":0},{"$f":"'12'!O15","v":0},{"$f":"'12'!Q15","v":0}]
[null,null,null,null,null,{"$f":"'12'!F16","v":0},{"$f":"'12'!P16","v":0},{"$f":"'12'!G16","v":0},{"$f":"'12'!I16","v":0},{"$f":"'12'!J16","v":0},{"$f":"'12'!K16","v":0},{"$f":"'12'!L16","v":0},{"$f":"'12'!M16","v":0},{"$f":"'12'!N16","v":0},{"$f":"'12'!O16","v":0},{"$f":"'12'!Q16","v":0}]
[null,null,null,null,null,{"$f":"'12'!F17","v":0},{"$f":"'12'!P17","v":0},{"$f":"'12'!G17","v":0},{"$f":"'12'!I17","v":0},{"$f":"'12'!J17","v":0},{"$f":"'12'!K17","v":0},{"$f":"'12'!L17","v":0},{"$f":"'12'!M17","v":0},{"$f":"'12'!N17","v":0},{"$f":"'12'!O17","v":0},{"$f":"'12'!Q17","v":0}]
[null,null,null,null,null,{"$f":"'12'!F18","v":0},{"$f":"'12'!P18","v":0},{"$f":"'12'!G18","v":0},{"$f":"'12'!I18","v":0},{"$f":"'12'!J18","v":0},{"$f":"'12'!K18","v":0},{"$f":"'12'!L18","v":0},{"$f":"'12'!M18","v":0},{"$f":"'12'!N18","v":0},{"$f":"'12'!O18","v":0},{"$f":"'12'!Q18","v":0}]
[null,null,null,null,null,{"$f":"'12'!F19","v":0},{"$f":"'12'!P19","v":0},{"$f":"'12'!G19","v":0},{"$f":"'12'!I19","v":0},{"$f":"'12'!J19","v":0},{"$f":"'12'!K19","v":0},{"$f":"'12'!L19","v":0},{"$f":"'12'!M19","v":0},{"$f":"'12'!N19","v":0},{"$f":"'12'!O19","v":0},{"$f":"'12'!Q19","v":0}]
[null,null,null,null,null,{"$f":"'12'!F20","v":0},{"$f":"'12'!P20","v":0},{"$f":"'12'!G20","v":0},{"$f":"'12'!I20","v":0},{"$f":"'12'!J20","v":0},{"$f":"'12'!K20","v":0},{"$f":"'12'!L20","v":0},{"$f":"'12'!M20","v":0},{"$f":"'12'!N20","v":0},{"$f":"'12'!O20","v":0},{"$f":"'12'!Q20","v":0}]
[null,null,null,null,null,{"$f":"'12'!F21","v":0},{"$f":"'12'!P21","v":0},{"$f":"'12'!G21","v":0},{"$f":"'12'!I21","v":0},{"$f":"'12'!J21","v":0},{"$f":"'12'!K21","v":0},{"$f":"'12'!L21","v":0},{"$f":"'12'!M21","v":0},{"$f":"'12'!N21","v":0},{"$f":"'12'!O21","v":0},{"$f":"'12'!Q21","v":0}]
[null,null,null,null,null,{"$f":"'12'!F22","v":0},{"$f":"'12'!P22","v":0},{"$f":"'12'!G22","v":0},{"$f":"'12'!I22","v":0},{"$f":"'12'!J22","v":0},{"$f":"'12'!K22","v":0},{"$f":"'12'!L22","v":0},{"$f":"'12'!M22","v":0},{"$f":"'12'!N22","v":0},{"$f":"'12'!O22","v":0},{"$f":"'12'!Q22","v":0}]
[null,null,null,null,null,{"$f":"'12'!F23","v":0},{"$f":"'12'!P23","v":0},{"$f":"'12'!G23","v":0},{"$f":"'12'!I23","v":0},{"$f":"'12'!J23","v":0},{"$f":"'12'!K23","v":0},{"$f":"'12'!L23","v":0},{"$f":"'12'!M23","v":0},{"$f":"'12'!N23","v":0},{"$f":"'12'!O23","v":0},{"$f":"'12'!Q23","v":0}]
[null,null,null,null,null,{"$f":"'12'!F24","v":0},{"$f":"'12'!P24","v":0},{"$f":"'12'!G24","v":0},{"$f":"'12'!I24","v":0},{"$f":"'12'!J24","v":0},{"$f":"'12'!K24","v":0},{"$f":"'12'!L24","v":0},{"$f":"'12'!M24","v":0},{"$f":"'12'!N24","v":0},{"$f":"'12'!O24","v":0},{"$f":"'12'!Q24","v":0}]
[null,null,null,null,null,{"$f":"'12'!F25","v":0},{"$f":"'12'!P25","v":0},{"$f":"'12'!G25","v":0},{"$f":"'12'!I25","v":0},{"$f":"'12'!J25","v":0},{"$f":"'12'!K25","v":0},{"$f":"'12'!L25","v":0},{"$f":"'12'!M25","v":0},{"$f":"'12'!N25","v":0},{"$f":"'12'!O25","v":0},{"$f":"'12'!Q25","v":0}]
[null,null,null,null,null,{"$f":"'13'!F11","v":0},{"$f":"'13'!P11","v":0},{"$f":"'13'!G11","v":0},{"$f":"'13'!I11","v":0},{"$f":"'13'!J11","v":0},{"$f":"'13'!K11","v":0},{"$f":"'13'!L11","v":0},{"$f":"'13'!M11","v":0},{"$f":"'13'!N11","v":0},{"$f":"'13'!O11","v":0},{"$f":"'13'!Q11","v":0}]
[null,null,null,null,null,{"$f":"'13'!F12","v":0},{"$f":"'13'!P12","v":0},{"$f":"'13'!G12","v":0},{"$f":"'13'!I12","v":0},{"$f":"'13'!J12","v":0},{"$f":"'13'!K12","v":0},{"$f":"'13'!L12","v":0},{"$f":"'13'!M12","v":0},{"$f":"'13'!N12","v":0},{"$f":"'13'!O12","v":0},{"$f":"'13'!Q12","v":0}]
[null,null,null,null,null,{"$f":"'13'!F13","v":0},{"$f":"'13'!P13","v":0},{"$f":"'13'!G13","v":0},{"$f":"'13'!I13","v":0},{"$f":"'13'!J13","v":0},{"$f":"'13'!K13","v":0},{"$f":"'13'!L13","v":0},{"$f":"'13'!M13","v":0},{"$f":"'13'!N13","v":0},{"$f":"'13'!O13","v":0},{"$f":"'13'!Q13","v":0}]
[null,null,null,null,null,{"$f":"'13'!F14","v":0},{"$f":"'13'!P14","v":0},{"$f":"'13'!G14","v":0},{"$f":"'13'!I14","v":0},{"$f":"'13'!J14","v":0},{"$f":"'13'!K14","v":0},{"$f":"'13'!L14","v":0},{"$f":"'13'!M14","v":0},{"$f":"'13'!N14","v":0},{"$f":"'13'!O14","v":0},{"$f":"'13'!Q14","v":0}]
[null,null,null,null,null,{"$f":"'13'!F15","v":0},{"$f":"'13'!P15","v":0},{"$f":"'13'!G15","v":0},{"$f":"'13'!I15","v":0},{"$f":"'13'!J15","v":0},{"$f":"'13'!K15","v":0},{"$f":"'13'!L15","v":0},{"$f":"'13'!M15","v":0},{"$f":"'13'!N15","v":0},{"$f":"'13'!O15","v":0},{"$f":"'13'!Q15","v":0}]
[null,null,null,null,null,{"$f":"'13'!F16","v":0},{"$f":"'13'!P16","v":0},{"$f":"'13'!G16","v":0},{"$f":"'13'!I16","v":0},{"$f":"'13'!J16","v":0},{"$f":"'13'!K16","v":0},{"$f":"'13'!L16","v":0},{"$f":"'13'!M16","v":0},{"$f":"'13'!N16","v":0},{"$f":"'13'!O16","v":0},{"$f":"'13'!Q16","v":0}]
[null,null,null,null,null,{"$f":"'13'!F17","v":0},{"$f":"'13'!P17","v":0},{"$f":"'13'!G17","v":0},{"$f":"'13'!I17","v":0},{"$f":"'13'!J17","v":0},{"$f":"'13'!K17","v":0},{"$f":"'13'!L17","v":0},{"$f":"'13'!M17","v":0},{"$f":"'13'!N17","v":0},{"$f":"'13'!O17","v":0},{"$f":"'13'!Q17","v":0}]
[null,null,null,null,null,{"$f":"'13'!F18","v":0},{"$f":"'13'!P18","v":0},{"$f":"'13'!G18","v":0},{"$f":"'13'!I18","v":0},{"$f":"'13'!J18","v":0},{"$f":"'13'!K18","v":0},{"$f":"'13'!L18","v":0},{"$f":"'13'!M18","v":0},{"$f":"'13'!N18","v":0},{"$f":"'13'!O18","v":0},{"$f":"'13'!Q18","v":0}]
[null,null,null,null,null,{"$f":"'13'!F19","v":0},{"$f":"'13'!P19","v":0},{"$f":"'13'!G19","v":0},{"$f":"'13'!I19","v":0},{"$f":"'13'!J19","v":0},{"$f":"'13'!K19","v":0},{"$f":"'13'!L19","v":0},{"$f":"'13'!M19","v":0},{"$f":"'13'!N19","v":0},{"$f":"'13'!O19","v":0},{"$f":"'13'!Q19","v":0}]
[null,null,null,null,null,{"$f":"'13'!F20","v":0},{"$f":"'13'!P20","v":0},{"$f":"'13'!G20","v":0},{"$f":"'13'!I20","v":0},{"$f":"'13'!J20","v":0},{"$f":"'13'!K20","v":0},{"$f":"'13'!L20","v":0},{"$f":"'13'!M20","v":0},{"$f":"'13'!N20","v":0},{"$f":"'13'!O20","v":0},{"$f":"'13'!Q20","v":0}]
[null,null,null,null,null,{"$f":"'13'!F21","v":0},{"$f":"'13'!P21","v":0},{"$f":"'13'!G21","v":0},{"$f":"'13'!I21","v":0},{"$f":"'13'!J21","v":0},{"$f":"'13'!K21","v":0},{"$f":"'13'!L21","v":0},{"$f":"'13'!M21","v":0},{"$f":"'13'!N21","v":0},{"$f":"'13'!O21","v":0},{"$f":"'13'!Q21","v":0}]
[null,null,null,null,null,{"$f":"'13'!F22","v":0},{"$f":"'13'!P22","v":0},{"$f":"'13'!G22","v":0},{"$f":"'13'!I22","v":0},{"$f":"'13'!J22","v":0},{"$f":"'13'!K22","v":0},{"$f":"'13'!L22","v":0},{"$f":"'13'!M22","v":0},{"$f":"'13'!N22","v":0},{"$f":"'13'!O22","v":0},{"$f":"'13'!Q22","v":0}]
[null,null,null,null,null,{"$f":"'13'!F23","v":0},{"$f":"'13'!P23","v":0},{"$f":"'13'!G23","v":0},{"$f":"'13'!I23","v":0},{"$f":"'13'!J23","v":0},{"$f":"'13'!K23","v":0},{"$f":"'13'!L23","v":0},{"$f":"'13'!M23","v":0},{"$f":"'13'!N23","v":0},{"$f":"'13'!O23","v":0},{"$f":"'13'!Q23","v":0}]
[null,null,null,null,null,{"$f":"'13'!F24","v":0},{"$f":"'13'!P24","v":0},{"$f":"'13'!G24","v":0},{"$f":"'13'!I24","v":0},{"$f":"'13'!J24","v":0},{"$f":"'13'!K24","v":0},{"$f":"'13'!L24","v":0},{"$f":"'13'!M24","v":0},{"$f":"'13'!N24","v":0},{"$f":"'13'!O24","v":0},{"$f":"'13'!Q24","v":0}]
[null,null,null,null,null,{"$f":"'13'!F25","v":0},{"$f":"'13'!P25","v":0},{"$f":"'13'!G25","v":0},{"$f":"'13'!I25","v":0},{"$f":"'13'!J25","v":0},{"$f":"'13'!K25","v":0},{"$f":"'13'!L25","v":0},{"$f":"'13'!M25","v":0},{"$f":"'13'!N25","v":0},{"$f":"'13'!O25","v":0},{"$f":"'13'!Q25","v":0}]
[null,null,null,null,null,{"$f":"'14'!F11","v":0},{"$f":"'14'!P11","v":0},{"$f":"'14'!G11","v":0},{"$f":"'14'!I11","v":0},{"$f":"'14'!J11","v":0},{"$f":"'14'!K11","v":0},{"$f":"'14'!L11","v":0},{"$f":"'14'!M11","v":0},{"$f":"'14'!N11","v":0},{"$f":"'14'!O11","v":0},{"$f":"'14'!Q11","v":0}]
[null,null,null,null,null,{"$f":"'14'!F12","v":0},{"$f":"'14'!P12","v":0},{"$f":"'14'!G12","v":0},{"$f":"'14'!I12","v":0},{"$f":"'14'!J12","v":0},{"$f":"'14'!K12","v":0},{"$f":"'14'!L12","v":0},{"$f":"'14'!M12","v":0},{"$f":"'14'!N12","v":0},{"$f":"'14'!O12","v":0},{"$f":"'14'!Q12","v":0}]
[null,null,null,null,null,{"$f":"'14'!F13","v":0},{"$f":"'14'!P13","v":0},{"$f":"'14'!G13","v":0},{"$f":"'14'!I13","v":0},{"$f":"'14'!J13","v":0},{"$f":"'14'!K13","v":0},{"$f":"'14'!L13","v":0},{"$f":"'14'!M13","v":0},{"$f":"'14'!N13","v":0},{"$f":"'14'!O13","v":0},{"$f":"'14'!Q13","v":0}]
[null,null,null,null,null,{"$f":"'14'!F14","v":0},{"$f":"'14'!P14","v":0},{"$f":"'14'!G14","v":0},{"$f":"'14'!I14","v":0},{"$f":"'14'!J14","v":0},{"$f":"'14'!K14","v":0},{"$f":"'14'!L14","v":0},{"$f":"'14'!M14","v":0},{"$f":"'14'!N14","v":0},{"$f":"'14'!O14","v":0},{"$f":"'14'!Q14","v":0}]
[null,null,null,null,null,{"$f":"'14'!F15","v":0},{"$f":"'14'!P15","v":0},{"$f":"'14'!G15","v":0},{"$f":"'14'!I15","v":0},{"$f":"'14'!J15","v":0},{"$f":"'14'!K15","v":0},{"$f":"'14'!L15","v":0},{"$f":"'14'!M15","v":0},{"$f":"'14'!N15","v":0},{"$f":"'14'!O15","v":0},{"$f":"'14'!Q15","v":0}]
[null,null,null,null,null,{"$f":"'14'!F16","v":0},{"$f":"'14'!P16","v":0},{"$f":"'14'!G16","v":0},{"$f":"'14'!I16","v":0},{"$f":"'14'!J16","v":0},{"$f":"'14'!K16","v":0},{"$f":"'14'!L16","v":0},{"$f":"'14'!M16","v":0},{"$f":"'14'!N16","v":0},{"$f":"'14'!O16","v":0},{"$f":"'14'!Q16","v":0}]
[null,null,null,null,null,{"$f":"'14'!F17","v":0},{"$f":"'14'!P17","v":0},{"$f":"'14'!G17","v":0},{"$f":"'14'!I17","v":0},{"$f":"'14'!J17","v":0},{"$f":"'14'!K17","v":0},{"$f":"'14'!L17","v":0},{"$f":"'14'!M17","v":0},{"$f":"'14'!N17","v":0},{"$f":"'14'!O17","v":0},{"$f":"'14'!Q17","v":0}]
[null,null,null,null,null,{"$f":"'14'!F18","v":0},{"$f":"'14'!P18","v":0},{"$f":"'14'!G18","v":0},{"$f":"'14'!I18","v":0},{"$f":"'14'!J18","v":0},{"$f":"'14'!K18","v":0},{"$f":"'14'!L18","v":0},{"$f":"'14'!M18","v":0},{"$f":"'14'!N18","v":0},{"$f":"'14'!O18","v":0},{"$f":"'14'!Q18","v":0}]
[null,null,null,null,null,{"$f":"'14'!F19","v":0},{"$f":"'14'!P19","v":0},{"$f":"'14'!G19","v":0},{"$f":"'14'!I19","v":0},{"$f":"'14'!J19","v":0},{"$f":"'14'!K19","v":0},{"$f":"'14'!L19","v":0},{"$f":"'14'!M19","v":0},{"$f":"'14'!N19","v":0},{"$f":"'14'!O19","v":0},{"$f":"'14'!Q19","v":0}]
[null,null,null,null,null,{"$f":"'14'!F20","v":0},{"$f":"'14'!P20","v":0},{"$f":"'14'!G20","v":0},{"$f":"'14'!I20","v":0},{"$f":"'14'!J20","v":0},{"$f":"'14'!K20","v":0},{"$f":"'14'!L20","v":0},{"$f":"'14'!M20","v":0},{"$f":"'14'!N20","v":0},{"$f":"'14'!O20","v":0},{"$f":"'14'!Q20","v":0}]
[null,null,null,null,null,{"$f":"'14'!F21","v":0},{"$f":"'14'!P21","v":0},{"$f":"'14'!G21","v":0},{"$f":"'14'!I21","v":0},{"$f":"'14'!J21","v":0},{"$f":"'14'!K21","v":0},{"$f":"'14'!L21","v":0},{"$f":"'14'!M21","v":0},{"$f":"'14'!N21","v":0},{"$f":"'14'!O21","v":0},{"$f":"'14'!Q21","v":0}]
[null,null,null,null,null,{"$f":"'14'!F22","v":0},{"$f":"'14'!P22","v":0},{"$f":"'14'!G22","v":0},{"$f":"'14'!I22","v":0},{"$f":"'14'!J22","v":0},{"$f":"'14'!K22","v":0},{"$f":"'14'!L22","v":0},{"$f":"'14'!M22","v":0},{"$f":"'14'!N22","v":0},{"$f":"'14'!O22","v":0},{"$f":"'14'!Q22","v":0}]
[null,null,null,null,null,{"$f":"'14'!F23","v":0},{"$f":"'14'!P23","v":0},{"$f":"'14'!G23","v":0},{"$f":"'14'!I23","v":0},{"$f":"'14'!J23","v":0},{"$f":"'14'!K23","v":0},{"$f":"'14'!L23","v":0},{"$f":"'14'!M23","v":0},{"$f":"'14'!N23","v":0},{"$f":"'14'!O23","v":0},{"$f":"'14'!Q23","v":0}]
[null,null,null,null,null,{"$f":"'14'!F24","v":0},{"$f":"'14'!P24","v":0},{"$f":"'14'!G24","v":0},{"$f":"'14'!I24","v":0},{"$f":"'14'!J24","v":0},{"$f":"'14'!K24","v":0},{"$f":"'14'!L24","v":0},{"$f":"'14'!M24","v":0},{"$f":"'14'!N24","v":0},{"$f":"'14'!O24","v":0},{"$f":"'14'!Q24","v":0}]
[null,null,null,null,null,{"$f":"'14'!F25","v":0},{"$f":"'14'!P25","v":0},{"$f":"'14'!G25","v":0},{"$f":"'14'!I25","v":0},{"$f":"'14'!J25","v":0},{"$f":"'14'!K25","v":0},{"$f":"'14'!L25","v":0},{"$f":"'14'!M25","v":0},{"$f":"'14'!N25","v":0},{"$f":"'14'!O25","v":0},{"$f":"'14'!Q25","v":0}]
[null,null,null,null,null,{"$f":"'15'!F11","v":0},{"$f":"'15'!P11","v":0},{"$f":"'15'!G11","v":0},{"$f":"'15'!I11","v":0},{"$f":"'15'!J11","v":0},{"$f":"'15'!K11","v":0},{"$f":"'15'!L11","v":0},{"$f":"'15'!M11","v":0},{"$f":"'15'!N11","v":0},{"$f":"'15'!O11","v":0},{"$f":"'15'!Q11","v":0}]
[null,null,null,null,null,{"$f":"'15'!F12","v":0},{"$f":"'15'!P12","v":0},{"$f":"'15'!G12","v":0},{"$f":"'15'!I12","v":0},{"$f":"'15'!J12","v":0},{"$f":"'15'!K12","v":0},{"$f":"'15'!L12","v":0},{"$f":"'15'!M12","v":0},{"$f":"'15'!N12","v":0},{"$f":"'15'!O12","v":0},{"$f":"'15'!Q12","v":0}]
[null,null,null,null,null,{"$f":"'15'!F13","v":0},{"$f":"'15'!P13","v":0},{"$f":"'15'!G13","v":0},{"$f":"'15'!I13","v":0},{"$f":"'15'!J13","v":0},{"$f":"'15'!K13","v":0},{"$f":"'15'!L13","v":0},{"$f":"'15'!M13","v":0},{"$f":"'15'!N13","v":0},{"$f":"'15'!O13","v":0},{"$f":"'15'!Q13","v":0}]
[null,null,null,null,null,{"$f":"'15'!F14","v":0},{"$f":"'15'!P14","v":0},{"$f":"'15'!G14","v":0},{"$f":"'15'!I14","v":0},{"$f":"'15'!J14","v":0},{"$f":"'15'!K14","v":0},{"$f":"'15'!L14","v":0},{"$f":"'15'!M14","v":0},{"$f":"'15'!N14","v":0},{"$f":"'15'!O14","v":0},{"$f":"'15'!Q14","v":0}]
[null,null,null,null,null,{"$f":"'15'!F15","v":0},{"$f":"'15'!P15","v":0},{"$f":"'15'!G15","v":0},{"$f":"'15'!I15","v":0},{"$f":"'15'!J15","v":0},{"$f":"'15'!K15","v":0},{"$f":"'15'!L15","v":0},{"$f":"'15'!M15","v":0},{"$f":"'15'!N15","v":0},{"$f":"'15'!O15","v":0},{"$f":"'15'!Q15","v":0}]
[null,null,null,null,null,{"$f":"'15'!F16","v":0},{"$f":"'15'!P16","v":0},{"$f":"'15'!G16","v":0},{"$f":"'15'!I16","v":0},{"$f":"'15'!J16","v":0},{"$f":"'15'!K16","v":0},{"$f":"'15'!L16","v":0},{"$f":"'15'!M16","v":0},{"$f":"'15'!N16","v":0},{"$f":"'15'!O16","v":0},{"$f":"'15'!Q16","v":0}]
[null,null,null,null,null,{"$f":"'15'!F17","v":0},{"$f":"'15'!P17","v":0},{"$f":"'15'!G17","v":0},{"$f":"'15'!I17","v":0},{"$f":"'15'!J17","v":0},{"$f":"'15'!K17","v":0},{"$f":"'15'!L17","v":0},{"$f":"'15'!M17","v":0},{"$f":"'15'!N17","v":0},{"$f":"'15'!O17","v":0},{"$f":"'15'!Q17","v":0}]
[null,null,null,null,null,{"$f":"'15'!F18","v":0},{"$f":"'15'!P18","v":0},{"$f":"'15'!G18","v":0},{"$f":"'15'!I18","v":0},{"$f":"'15'!J18","v":0},{"$f":"'15'!K18","v":0},{"$f":"'15'!L18","v":0},{"$f":"'15'!M18","v":0},{"$f":"'15'!N18","v":0},{"$f":"'15'!O18","v":0},{"$f":"'15'!Q18","v":0}]
[null,null,null,null,null,{"$f":"'15'!F19","v":0},{"$f":"'15'!P19","v":0},{"$f":"'15'!G19","v":0},{"$f":"'15'!I19","v":0},{"$f":"'15'!J19","v":0},{"$f":"'15'!K19","v":0},{"$f":"'15'!L19","v":0},{"$f":"'15'!M19","v":0},{"$f":"'15'!N19","v":0},{"$f":"'15'!O19","v":0},{"$f":"'15'!Q19","v":0}]
[null,null,null,null,null,{"$f":"'15'!F20","v":0},{"$f":"'15'!P20","v":0},{"$f":"'15'!G20","v":0},{"$f":"'15'!I20","v":0},{"$f":"'15'!J20","v":0},{"$f":"'15'!K20","v":0},{"$f":"'15'!L20","v":0},{"$f":"'15'!M20","v":0},{"$f":"'15'!N20","v":0},{"$f":"'15'!O20","v":0},{"$f":"'15'!Q20","v":0}]
[null,null,null,null,null,{"$f":"'15'!F21","v":0},{"$f":"'15'!P21","v":0},{"$f":"'15'!G21","v":0},{"$f":"'15'!I21","v":0},{"$f":"'15'!J21","v":0},{"$f":"'15'!K21","v":0},{"$f":"'15'!L21","v":0},{"$f":"'15'!M21","v":0},{"$f":"'15'!N21","v":0},{"$f":"'15'!O21","v":0},{"$f":"'15'!Q21","v":0}]
[null,null,null,null,null,{"$f":"'15'!F22","v":0},{"$f":"'15'!P22","v":0},{"$f":"'15'!G22","v":0},{"$f":"'15'!I22","v":0},{"$f":"'15'!J22","v":0},{"$f":"'15'!K22","v":0},{"$f":"'15'!L22","v":0},{"$f":"'15'!M22","v":0},{"$f":"'15'!N22","v":0},{"$f":"'15'!O22","v":0},{"$f":"'15'!Q22","v":0}]
[null,null,null,null,null,{"$f":"'15'!F23","v":0},{"$f":"'15'!P23","v":0},{"$f":"'15'!G23","v":0},{"$f":"'15'!I23","v":0},{"$f":"'15'!J23","v":0},{"$f":"'15'!K23","v":0},{"$f":"'15'!L23","v":0},{"$f":"'15'!M23","v":0},{"$f":"'15'!N23","v":0},{"$f":"'15'!O23","v":0},{"$f":"'15'!Q23","v":0}]
[null,null,null,null,null,{"$f":"'15'!F24","v":0},{"$f":"'15'!P24","v":0},{"$f":"'15'!G24","v":0},{"$f":"'15'!I24","v":0},{"$f":"'15'!J24","v":0},{"$f":"'15'!K24","v":0},{"$f":"'15'!L24","v":0},{"$f":"'15'!M24","v":0},{"$f":"'15'!N24","v":0},{"$f":"'15'!O24","v":0},{"$f":"'15'!Q24","v":0}]
[null,null,null,null,null,{"$f":"'15'!F25","v":0},{"$f":"'15'!P25","v":0},{"$f":"'15'!G25","v":0},{"$f":"'15'!I25","v":0},{"$f":"'15'!J25","v":0},{"$f":"'15'!K25","v":0},{"$f":"'15'!L25","v":0},{"$f":"'15'!M25","v":0},{"$f":"'15'!N25","v":0},{"$f":"'15'!O25","v":0},{"$f":"'15'!Q25","v":0}]

{"sheet":"InfraS Summary","index":37,"n_rows":73,"n_cols":27,"rows_kept":73,"cut":false,"hidden":false,"merged":[[8,11,8,13],[25,11,25,13],[41,11,41,13],[65,11,65,13],[8,17,8,19],[65,14,65,16],[65,17,65,19],[8,14,8,16],[66,21,66,26],[42,21,42,26],[9,21,9,26],[25,14,25,16],[25,17,25,19],[26,21,26,26],[41,14,41,16],[41,17,41,19]]}
["Exirting"]
[]
[]
[]
[]
[null,null,null,null,null,"PE No",{"$f":"Settings!$O$2","v":"PE126"}]
[null,null,null,null,null,"Entity name",{"$f":"Settings!$E$2","v":"South African Revenue Service"}]
[]
[null,null,null,null,null,"Nature of investment",null,"Total Project Cost",{"$f":"MyYearM3","v":"2022/23"},{"$f":"MyYearM2","v":"2023/24"},{"$f":"MyYearM1","v":"2024/25"},{"$f":"MyYear0","v":"2025/26"},null,null,{"$f":"MyYearP1","v":"2026/27"},null,null,{"$f":"MyYearP2","v":"2027/28"},null,null,{"$f":"MyYearP3","v":"2028/29"},{"$f":"MyYearP4","v":"2029/30"},{"$f":"MyYearP5","v":"2030/31"},{"$f":"MyYearP6","v":"2031/32"},{"$f":"MyYearP7","v":"2032/33"},{"$f":"MyYearP8","v":"2033/34"},{"$f":"MyYearP9","v":"2034/35"}]
[null,null,null,null,null,"Rand thousand",null,null,{"$f":"Hist_year3RestatedAudited","v":"Audited\noutcome"},{"$f":"Hist_year2RestatedAudited","v":"Audited\noutcome"},{"$f":"Hist_year1Audited","v":"Audited\noutcome"},{"$f":"Cur_YearBudgEst","v":"Budget\nestimate"},{"$f":"Cur_YearApprovedBudg","v":"Approved budget"},{"$f":"Cur_YearChangeFrRevBudg","v":"Changes from \nbudget estimate"},{"$f":"MTEF1BudgEst","v":"Budget\nestimate"},{"$f":"MTEF1RevBudgEst","v":"Revised\nbudget\nestimate"},{"$f":"MTEF1_ChangeFrBudgEst","v":"Changes from budget estimate"},{"$f":"MTEF2BudgEst","v":"Budget\nestimate"},{"$f":"MTEF2RevBudgEst","v":"Revised\nbudget\nestimate"},{"$f":"MTEF2_ChangeFrBudgEst","v":"Changes from budget estimate"},{"$f":"MTEF3PlanBudgetEst","v":"Planning\nbudget \nestimate"},"Long term planning"]
["off",null,null,null,null,"New infrastructure assets",null,{"$f":"SUMIF(Infrastructure!$K$11:$K$1814,Settings!$BI17,Infrastructure!O$11:O$1850)","v":0},{"$f":"SUMIF(Infrastructure!$K$11:$K$1814,Settings!$BI17,Infrastructure!P$11:P$1850)","v":0},{"$f":"SUMIF(Infrastructure!$K$11:$K$1814,Settings!$BI17,Infrastructure!Q$11:Q$1850)","v":0},{"$f":"SUMIF(Infrastructure!$K$11:$K$1814,Settings!$BI17,Infrastructure!R$11:R$1850)","v":0},{"$f":"SUMIF(Infrastructure!$K$11:$K$1814,Settings!$BI17,Infrastructure!S$11:S$1850)","v":0},{"$f":"SUMIF(Infrastructure!$K$11:$K$1814,Settings!$BI17,Infrastructure!T$11:T$1850)","v":0},{"$f":"SUMIF(Infrastructure!$K$11:$K$1814,Settings!$BI17,Infrastructure!U$11:U$1850)","v":0},{"$f":"SUMIF(Infrastructure!$K$11:$K$1814,Settings!$BI17,Infrastructure!V$11:V$1850)","v":0},{"$f":"SUMIF(Infrastructure!$K$11:$K$1814,Settings!$BI17,Infrastructure!W$11:W$1850)","v":0},{"$f":"SUMIF(Infrastructure!$K$11:$K$1814,Settings!$BI17,Infrastructure!X$11:X$1850)","v":0},{"$f":"SUMIF(Infrastructure!$K$11:$K$1814,Settings!$BI17,Infrastructure!Y$11:Y$1850)","v":0},{"$f":"SUMIF(Infrastructure!$K$11:$K$1814,Settings!$BI17,Infrastructure!Z$11:Z$1850)","v":0},{"$f":"SUMIF(Infrastructure!$K$11:$K$1814,Settings!$BI17,Infrastructure!AA$11:AA$1850)","v":0},{"$f":"SUMIF(Infrastructure!$K$11:$K$1814,Settings!$BI17,Infrastructure!AB$11:AB$1850)","v":0},{"$f":"SUMIF(Infrastructure!$K$11:$K$1814,Settings!$BI17,Infrastructure!AC$11:AC$1850)","v":0},{"$f":"SUMIF(Infrastructure!$K$11:$K$1814,Settings!$BI17,Infrastructure!AD$11:AD$1850)","v":0},{"$f":"SUMIF(Infrastructure!$K$11:$K$1814,Settings!$BI17,Infrastructure!AE$11:AE$1850)","v":0},{"$f":"SUMIF(Infrastructure!$K$11:$K$1814,Settings!$BI17,Infrastructure!AF$11:AF$1850)","v":0},{"$f":"SUMIF(Infrastructure!$K$11:$K$1814,Settings!$BI17,Infrastructure!AG$11:AG$1850)","v":0},{"$f":"SUMIF(Infrastructure!$K$11:$K$1814,Settings!$BI17,Infrastructure!AH$11:AH$1850)","v":0}]
[null,null,null,null,null,"Existing infrastructure assets",null,{"$f":"SUM(H13:H15)","v":298152},{"$f":"SUM(I13:I15)","v":0},{"$f":"SUM(J13:J15)","v":0},0,201285,{"$f":"SUM(M13:M15)","v":201285},{"$f":"SUMIF(Infrastructure!$K$11:$K$1814,Settings!$BI18,Infrastructure!U$11:U$1850)","v":0},58884,58884,0,37983,37983,0,0,0,0,0,0,0,0]
[null,null,null,null,null,null,"Upgrading and additions",{"$f":"SUMIF(Infrastructure!$K$11:$K$1814,Settings!$BI18,Infrastructure!O$11:O$1850)","v":298152},{"$f":"SUMIF(Infrastructure!$K$11:$K$1814,Settings!$BI18,Infrastructure!P$11:P$1850)","v":0},{"$f":"SUMIF(Infrastructure!$K$11:$K$1814,Settings!$BI18,Infrastructure!Q$11:Q$1850)","v":0},{"$f":"SUMIF(Infrastructure!$K$11:$K$1814,Settings!$BI18,Infrastructure!R$11:R$1850)","v":0},{"$f":"SUMIF(Infrastructure!$K$11:$K$1814,Settings!$BI18,Infrastructure!S$11:S$1850)","v":201285},{"$f":"SUMIF(Infrastructure!$K$11:$K$1814,Settings!$BI18,Infrastructure!T$11:T$1850)","v":201285},{"$f":"SUMIF(Infrastructure!$K$11:$K$1814,Settings!$BI19,Infrastructure!U$11:U$1850)","v":0},{"$f":"SUMIF(Infrastructure!$K$11:$K$1814,Settings!$BI18,Infrastructure!V$11:V$1850)","v":58884},{"$f":"SUMIF(Infrastructure!$K$11:$K$1814,Settings!$BI18,Infrastructure!W$11:W$1850)","v":58884},{"$f":"SUMIF(Infrastructure!$K$11:$K$1814,Settings!$BI18,Infrastructure!X$11:X$1850)","v":0},{"$f":"SUMIF(Infrastructure!$K$11:$K$1814,Settings!$BI18,Infrastructure!Y$11:Y$1850)","v":37983},{"$f":"SUMIF(Infrastructure!$K$11:$K$1814,Settings!$BI18,Infrastructure!Z$11:Z$1850)","v":37983},{"$f":"SUMIF(Infrastructure!$K$11:$K$1814,Settings!$BI18,Infrastructure!AA$11:AA$1850)","v":0},{"$f":"SUMIF(Infrastructure!$K$11:$K$1814,Settings!$BI18,Infrastructure!AB$11:AB$1850)","v":0},{"$f":"SUMIF(Infrastructure!$K$11:$K$1814,Settings!$BI18,Infrastructure!AC$11:AC$1850)","v":0},{"$f":"SUMIF(Infrastructure!$K$11:$K$1814,Settings!$BI18,Infrastructure!AD$11:AD$1850)","v":0},{"$f":"SUMIF(Infrastructure!$K$11:$K$1814,Settings!$BI18,Infrastructure!AE$11:AE$1850)","v":0},{"$f":"SUMIF(Infrastructure!$K$11:$K$1814,Settings!$BI18,Infrastructure!AF$11:AF$1850)","v":0},{"$f":"SUMIF(Infrastructure!$K$11:$K$1814,Settings!$BI18,Infrastructure!AG$11:AG$1850)","v":0},{"$f":"SUMIF(Infrastructure!$K$11:$K$1814,Settings!$BI18,Infrastructure!AH$11:AH$1850)","v":0}]
[null,null,null,null,null,null,"Rehabilitation,renovations and refurbishment",{"$f":"SUMIF(Infrastructure!$K$11:$K$1814,Settings!$BI19,Infrastructure!O$11:O$1850)","v":0},{"$f":"SUMIF(Infrastructure!$K$11:$K$1814,Settings!$BI19,Infrastructure!P$11:P$1850)","v":0},{"$f":"SUMIF(Infrastructure!$K$11:$K$1814,Settings!$BI19,Infrastructure!Q$11:Q$1850)","v":0},{"$f":"SUMIF(Infrastructure!$K$11:$K$1814,Settings!$BI19,Infrastructure!R$11:R$1850)","v":0},{"$f":"SUMIF(Infrastructure!$K$11:$K$1814,Settings!$BI19,Infrastructure!S$11:S$1850)","v":0},{"$f":"SUMIF(Infrastructure!$K$11:$K$1814,Settings!$BI19,Infrastructure!T$11:T$1850)","v":0},{"$f":"SUMIF(Infrastructure!$K$11:$K$1814,Settings!$BI20,Infrastructure!U$11:U$1850)","v":0},{"$f":"SUMIF(Infrastructure!$K$11:$K$1814,Settings!$BI19,Infrastructure!V$11:V$1850)","v":0},{"$f":"SUMIF(Infrastructure!$K$11:$K$1814,Settings!$BI19,Infrastructure!W$11:W$1850)","v":0},{"$f":"SUMIF(Infrastructure!$K$11:$K$1814,Settings!$BI19,Infrastructure!X$11:X$1850)","v":0},{"$f":"SUMIF(Infrastructure!$K$11:$K$1814,Settings!$BI19,Infrastructure!Y$11:Y$1850)","v":0},{"$f":"SUMIF(Infrastructure!$K$11:$K$1814,Settings!$BI19,Infrastructure!Z$11:Z$1850)","v":0},{"$f":"SUMIF(Infrastructure!$K$11:$K$1814,Settings!$BI19,Infrastructure!AA$11:AA$1850)","v":0},{"$f":"SUMIF(Infrastructure!$K$11:$K$1814,Settings!$BI19,Infrastructure!AB$11:AB$1850)","v":0},{"$f":"SUMIF(Infrastructure!$K$11:$K$1814,Settings!$BI19,Infrastructure!AC$11:AC$1850)","v":0},{"$f":"SUMIF(Infrastructure!$K$11:$K$1814,Settings!$BI19,Infrastructure!AD$11:AD$1850)","v":0},{"$f":"SUMIF(Infrastructure!$K$11:$K$1814,Settings!$BI19,Infrastructure!AE$11:AE$1850)","v":0},{"$f":"SUMIF(Infrastructure!$K$11:$K$1814,Settings!$BI19,Infrastructure!AF$11:AF$1850)","v":0},{"$f":"SUMIF(Infrastructure!$K$11:$K$1814,Settings!$BI19,Infrastructure!AG$11:AG$1850)","v":0},{"$f":"SUMIF(Infrastructure!$K$11:$K$1814,Settings!$BI19,Infrastructure!AH$11:AH$1850)","v":0}]
[null,null,null,null,null,null,"Maintenance and repair",{"$f":"SUMIF(Infrastructure!$K$11:$K$1814,Settings!$BI20,Infrastructure!O$11:O$1850)","v":0},{"$f":"SUMIF(Infrastructure!$K$11:$K$1814,Settings!$BI20,Infrastructure!P$11:P$1850)","v":0},{"$f":"SUMIF(Infrastructure!$K$11:$K$1814,Settings!$BI20,Infrastructure!Q$11:Q$1850)","v":0},{"$f":"SUMIF(Infrastructure!$K$11:$K$1814,Settings!$BI20,Infrastructure!R$11:R$1850)","v":0},{"$f":"SUMIF(Infrastructure!$K$11:$K$1814,Settings!$BI20,Infrastructure!S$11:S$1850)","v":0},{"$f":"SUMIF(Infrastructure!$K$11:$K$1814,Settings!$BI20,Infrastructure!T$11:T$1850)","v":0},{"$f":"SUMIF(Infrastructure!$K$11:$K$1814,Settings!$BI21,Infrastructure!U$11:U$1850)","v":0},{"$f":"SUMIF(Infrastructure!$K$11:$K$1814,Settings!$BI20,Infrastructure!V$11:V$1850)","v":0},{"$f":"SUMIF(Infrastructure!$K$11:$K$1814,Settings!$BI20,Infrastructure!W$11:W$1850)","v":0},{"$f":"SUMIF(Infrastructure!$K$11:$K$1814,Settings!$BI20,Infrastructure!X$11:X$1850)","v":0},{"$f":"SUMIF(Infrastructure!$K$11:$K$1814,Settings!$BI20,Infrastructure!Y$11:Y$1850)","v":0},{"$f":"SUMIF(Infrastructure!$K$11:$K$1814,Settings!$BI20,Infrastructure!Z$11:Z$1850)","v":0},{"$f":"SUMIF(Infrastructure!$K$11:$K$1814,Settings!$BI20,Infrastructure!AA$11:AA$1850)","v":0},{"$f":"SUMIF(Infrastructure!$K$11:$K$1814,Settings!$BI20,Infrastructure!AB$11:AB$1850)","v":0},{"$f":"SUMIF(Infrastructure!$K$11:$K$1814,Settings!$BI20,Infrastructure!AC$11:AC$1850)","v":0},{"$f":"SUMIF(Infrastructure!$K$11:$K$1814,Settings!$BI20,Infrastructure!AD$11:AD$1850)","v":0},{"$f":"SUMIF(Infrastructure!$K$11:$K$1814,Settings!$BI20,Infrastructure!AE$11:AE$1850)","v":0},{"$f":"SUMIF(Infrastructure!$K$11:$K$1814,Settings!$BI20,Infrastructure!AF$11:AF$1850)","v":0},{"$f":"SUMIF(Infrastructure!$K$11:$K$1814,Settings!$BI20,Infrastructure!AG$11:AG$1850)","v":0},{"$f":"SUMIF(Infrastructure!$K$11:$K$1814,Settings!$BI20,Infrastructure!AH$11:AH$1850)","v":0}]
[null,null,null,null,null,"Infrastructure transfers",null,{"$f":"SUM(H17:H18)","v":0},{"$f":"SUM(I17:I18)","v":0},{"$f":"SUM(J17:J18)","v":0},0,0,{"$f":"SUM(M17:M18)","v":0},{"$f":"SUMIF(Infrastructure!$K$11:$K$1814,Settings!$BI22,Infrastructure!U$11:U$1850)","v":0},0,0,0,0,0,0,0,0,0,0,0,0,0]
[null,null,null,null,null,null,"Current",{"$f":"SUMIF(Infrastructure!$K$11:$K$1814,Settings!$BI21,Infrastructure!O$11:O$1850)","v":0},{"$f":"SUMIF(Infrastructure!$K$11:$K$1814,Settings!$BI21,Infrastructure!P$11:P$1850)","v":0},{"$f":"SUMIF(Infrastructure!$K$11:$K$1814,Settings!$BI21,Infrastructure!Q$11:Q$1850)","v":0},{"$f":"SUMIF(Infrastructure!$K$11:$K$1814,Settings!$BI21,Infrastructure!R$11:R$1850)","v":0},{"$f":"SUMIF(Infrastructure!$K$11:$K$1814,Settings!$BI21,Infrastructure!S$11:S$1850)","v":0},{"$f":"SUMIF(Infrastructure!$K$11:$K$1814,Settings!$BI21,Infrastructure!T$11:T$1850)","v":0},{"$f":"SUMIF(Infrastructure!$K$11:$K$1814,Settings!$BI23,Infrastructure!U$11:U$1850)","v":0},{"$f":"SUMIF(Infrastructure!$K$11:$K$1814,Settings!$BI21,Infrastructure!V$11:V$1850)","v":0},{"$f":"SUMIF(Infrastructure!$K$11:$K$1814,Settings!$BI21,Infrastructure!W$11:W$1850)","v":0},{"$f":"SUMIF(Infrastructure!$K$11:$K$1814,Settings!$BI21,Infrastructure!X$11:X$1850)","v":0},{"$f":"SUMIF(Infrastructure!$K$11:$K$1814,Settings!$BI21,Infrastructure!Y$11:Y$1850)","v":0},{"$f":"SUMIF(Infrastructure!$K$11:$K$1814,Settings!$BI21,Infrastructure!Z$11:Z$1850)","v":0},{"$f":"SUMIF(Infrastructure!$K$11:$K$1814,Settings!$BI21,Infrastructure!AA$11:AA$1850)","v":0},{"$f":"SUMIF(Infrastructure!$K$11:$K$1814,Settings!$BI21,Infrastructure!AB$11:AB$1850)","v":0},{"$f":"SUMIF(Infrastructure!$K$11:$K$1814,Settings!$BI21,Infrastructure!AC$11:AC$1850)","v":0},{"$f":"SUMIF(Infrastructure!$K$11:$K$1814,Settings!$BI21,Infrastructure!AD$11:AD$1850)","v":0},{"$f":"SUMIF(Infrastructure!$K$11:$K$1814,Settings!$BI21,Infrastructure!AE$11:AE$1850)","v":0},{"$f":"SUMIF(Infrastructure!$K$11:$K$1814,Settings!$BI21,Infrastructure!AF$11:AF$1850)","v":0},{"$f":"SUMIF(Infrastructure!$K$11:$K$1814,Settings!$BI21,Infrastructure!AG$11:AG$1850)","v":0},{"$f":"SUMIF(Infrastructure!$K$11:$K$1814,Settings!$BI21,Infrastructure!AH$11:AH$1850)","v":0}]
[null,null,null,null,null,null,"Capital",{"$f":"SUMIF(Infrastructure!$K$11:$K$1814,Settings!$BI22,Infrastructure!O$11:O$1850)","v":0},{"$f":"SUMIF(Infrastructure!$K$11:$K$1814,Settings!$BI22,Infrastructure!P$11:P$1850)","v":0},{"$f":"SUMIF(Infrastructure!$K$11:$K$1814,Settings!$BI22,Infrastructure!Q$11:Q$1850)","v":0},{"$f":"SUMIF(Infrastructure!$K$11:$K$1814,Settings!$BI22,Infrastructure!R$11:R$1850)","v":0},{"$f":"SUMIF(Infrastructure!$K$11:$K$1814,Settings!$BI22,Infrastructure!S$11:S$1850)","v":0},{"$f":"SUMIF(Infrastructure!$K$11:$K$1814,Settings!$BI22,Infrastructure!T$11:T$1850)","v":0},{"$f":"SUMIF(Infrastructure!$K$11:$K$1814,Settings!$BI24,Infrastructure!U$11:U$1850)","v":0},{"$f":"SUMIF(Infrastructure!$K$11:$K$1814,Settings!$BI22,Infrastructure!V$11:V$1850)","v":0},{"$f":"SUMIF(Infrastructure!$K$11:$K$1814,Settings!$BI22,Infrastructure!W$11:W$1850)","v":0},{"$f":"SUMIF(Infrastructure!$K$11:$K$1814,Settings!$BI22,Infrastructure!X$11:X$1850)","v":0},{"$f":"SUMIF(Infrastructure!$K$11:$K$1814,Settings!$BI22,Infrastructure!Y$11:Y$1850)","v":0},{"$f":"SUMIF(Infrastructure!$K$11:$K$1814,Settings!$BI22,Infrastructure!Z$11:Z$1850)","v":0},{"$f":"SUMIF(Infrastructure!$K$11:$K$1814,Settings!$BI22,Infrastructure!AA$11:AA$1850)","v":0},{"$f":"SUMIF(Infrastructure!$K$11:$K$1814,Settings!$BI22,Infrastructure!AB$11:AB$1850)","v":0},{"$f":"SUMIF(Infrastructure!$K$11:$K$1814,Settings!$BI22,Infrastructure!AC$11:AC$1850)","v":0},{"$f":"SUMIF(Infrastructure!$K$11:$K$1814,Settings!$BI22,Infrastructure!AD$11:AD$1850)","v":0},{"$f":"SUMIF(Infrastructure!$K$11:$K$1814,Settings!$BI22,Infrastructure!AE$11:AE$1850)","v":0},{"$f":"SUMIF(Infrastructure!$K$11:$K$1814,Settings!$BI22,Infrastructure!AF$11:AF$1850)","v":0},{"$f":"SUMIF(Infrastructure!$K$11:$K$1814,Settings!$BI22,Infrastructure!AG$11:AG$1850)","v":0},{"$f":"SUMIF(Infrastructure!$K$11:$K$1814,Settings!$BI22,Infrastructure!AH$11:AH$1850)","v":0}]
[]
[null,null,null,null,null,"Total Infrastructure",null,{"$f":"SUM(H11,H12,H16)","v":298152},{"$f":"SUM(I11,I12,I16)","v":0},{"$f":"SUM(J11,J12,J16)","v":0},{"$f":"SUM(K11,K12,K16)","v":0},201285,201285,0,58884,58884,0,37983,37983,0,0,0,0,0,0,0,0]
[]
[null,null,null,null,null,"Capital infrastructure",null,{"$f":"SUM(H11,H13,H14,H18)","v":298152},{"$f":"SUM(I11,I13,I14,I18)","v":0},{"$f":"SUM(J11,J13,J14,J18)","v":0},{"$f":"SUM(K11,K13,K14,K18)","v":0},201285,{"$f":"SUM(M11,M13,M14,M18)","v":201285},{"$f":"SUM(N11,N13,N14,N18)","v":0},58884,58884,0,37983,37983,0,0,0,0,0,0,0,0]
[null,null,null,null,null,"Current infrastructure",null,{"$f":"SUM(H15,H17)","v":0},{"$f":"SUM(I15,I17)","v":0},{"$f":"SUM(J15,J17)","v":0},{"$f":"SUM(K15,K17)","v":0},0,{"$f":"SUM(M15,M17)","v":0},{"$f":"SUM(N15,N17)","v":0},0,0,0,0,0,0,0,0,0,0,0,0,0]
[]
[]
[null,null,null,null,null,"Project stage",null,{"$f":"+H9","v":"Total Project Cost"},{"$f":"+I9","v":"2022/23"},{"$f":"+J9","v":"2023/24"},"2024/25","2025/26",null,null,"2026/27",0,0,"2027/28",0,0,{"$f":"+U9","v":"2028/29"},{"$f":"+V9","v":"2029/30"},"2030/31","2031/32","2032/33","2033/34","2034/35"]
[null,null,null,null,null,"Rand thousand",null,null,{"$f":"Hist_year3RestatedAudited","v":"Audited\noutcome"},{"$f":"Hist_year2RestatedAudited","v":"Audited\noutcome"},{"$f":"Hist_year1Audited","v":"Audited\noutcome"},{"$f":"Cur_YearBudgEst","v":"Budget\nestimate"},{"$f":"Cur_YearApprovedBudg","v":"Approved budget"},{"$f":"Cur_YearChangeFrRevBudg","v":"Changes from \nbudget estimate"},{"$f":"MTEF1BudgEst","v":"Budget\nestimate"},{"$f":"MTEF1RevBudgEst","v":"Revised\nbudget\nestimate"},{"$f":"MTEF1_ChangeFrBudgEst","v":"Changes from budget estimate"},{"$f":"MTEF2BudgEst","v":"Budget\nestimate"},{"$f":"MTEF2RevBudgEst","v":"Revised\nbudget\nestimate"},{"$f":"MTEF2_ChangeFrBudgEst","v":"Changes from budget estimate"},{"$f":"MTEF3PlanBudgetEst","v":"Planning\nbudget \nestimate"},"Long term planning"]
[null,null,null,null,null,"Site identification",null,{"$f":"SUMIF(Infrastructure!$L$11:$L$1814,Settings!$BJ17,Infrastructure!O$11:O$1850)","v":0},{"$f":"SUMIF(Infrastructure!$L$11:$L$1814,Settings!$BJ17,Infrastructure!P$11:P$1850)","v":0},{"$f":"SUMIF(Infrastructure!$L$11:$L$1814,Settings!$BJ17,Infrastructure!Q$11:Q$1850)","v":0},{"$f":"SUMIF(Infrastructure!$L$11:$L$1814,Settings!$BJ17,Infrastructure!R$11:R$1850)","v":0},{"$f":"SUMIF(Infrastructure!$L$11:$L$1814,Settings!$BJ17,Infrastructure!S$11:S$1850)","v":0},{"$f":"SUMIF(Infrastructure!$L$11:$L$1814,Settings!$BJ17,Infrastructure!T$11:T$1850)","v":0},{"$f":"SUMIF(Infrastructure!$L$11:$L$1814,Settings!$BJ17,Infrastructure!U$11:U$1850)","v":0},{"$f":"SUMIF(Infrastructure!$L$11:$L$1814,Settings!$BJ17,Infrastructure!V$11:V$1850)","v":0},{"$f":"SUMIF(Infrastructure!$L$11:$L$1814,Settings!$BJ17,Infrastructure!W$11:W$1850)","v":0},{"$f":"SUMIF(Infrastructure!$L$11:$L$1814,Settings!$BJ17,Infrastructure!X$11:X$1850)","v":0},{"$f":"SUMIF(Infrastructure!$L$11:$L$1814,Settings!$BJ17,Infrastructure!Y$11:Y$1850)","v":0},{"$f":"SUMIF(Infrastructure!$L$11:$L$1814,Settings!$BJ17,Infrastructure!Z$11:Z$1850)","v":0},{"$f":"SUMIF(Infrastructure!$L$11:$L$1814,Settings!$BJ17,Infrastructure!AA$11:AA$1850)","v":0},{"$f":"SUMIF(Infrastructure!$L$11:$L$1814,Settings!$BJ17,Infrastructure!AB$11:AB$1850)","v":0},{"$f":"SUMIF(Infrastructure!$L$11:$L$1814,Settings!$BJ17,Infrastructure!AC$11:AC$1850)","v":0},{"$f":"SUMIF(Infrastructure!$L$11:$L$1814,Settings!$BJ17,Infrastructure!AD$11:AD$1850)","v":0},{"$f":"SUMIF(Infrastructure!$L$11:$L$1814,Settings!$BJ17,Infrastructure!AE$11:AE$1850)","v":0},{"$f":"SUMIF(Infrastructure!$L$11:$L$1814,Settings!$BJ17,Infrastructure!AF$11:AF$1850)","v":0},{"$f":"SUMIF(Infrastructure!$L$11:$L$1814,Settings!$BJ17,Infrastructure!AG$11:AG$1850)","v":0},{"$f":"SUMIF(Infrastructure!$L$11:$L$1814,Settings!$BJ17,Infrastructure!AH$11:AH$1850)","v":0}]
[null,null,null,null,null,"Pre-feasibility",null,{"$f":"SUMIF(Infrastructure!$L$11:$L$1814,Settings!$BJ18,Infrastructure!O$11:O$1850)","v":0},{"$f":"SUMIF(Infrastructure!$L$11:$L$1814,Settings!$BJ18,Infrastructure!P$11:P$1850)","v":0},{"$f":"SUMIF(Infrastructure!$L$11:$L$1814,Settings!$BJ18,Infrastructure!Q$11:Q$1850)","v":0},{"$f":"SUMIF(Infrastructure!$L$11:$L$1814,Settings!$BJ18,Infrastructure!R$11:R$1850)","v":0},{"$f":"SUMIF(Infrastructure!$L$11:$L$1814,Settings!$BJ18,Infrastructure!S$11:S$1850)","v":0},{"$f":"SUMIF(Infrastructure!$L$11:$L$1814,Settings!$BJ18,Infrastructure!T$11:T$1850)","v":0},{"$f":"SUMIF(Infrastructure!$L$11:$L$1814,Settings!$BJ18,Infrastructure!U$11:U$1850)","v":0},{"$f":"SUMIF(Infrastructure!$L$11:$L$1814,Settings!$BJ18,Infrastructure!V$11:V$1850)","v":0},{"$f":"SUMIF(Infrastructure!$L$11:$L$1814,Settings!$BJ18,Infrastructure!W$11:W$1850)","v":0},{"$f":"SUMIF(Infrastructure!$L$11:$L$1814,Settings!$BJ18,Infrastructure!X$11:X$1850)","v":0},{"$f":"SUMIF(Infrastructure!$L$11:$L$1814,Settings!$BJ18,Infrastructure!Y$11:Y$1850)","v":0},{"$f":"SUMIF(Infrastructure!$L$11:$L$1814,Settings!$BJ18,Infrastructure!Z$11:Z$1850)","v":0},{"$f":"SUMIF(Infrastructure!$L$11:$L$1814,Settings!$BJ18,Infrastructure!AA$11:AA$1850)","v":0},{"$f":"SUMIF(Infrastructure!$L$11:$L$1814,Settings!$BJ18,Infrastructure!AB$11:AB$1850)","v":0},{"$f":"SUMIF(Infrastructure!$L$11:$L$1814,Settings!$BJ18,Infrastructure!AC$11:AC$1850)","v":0},{"$f":"SUMIF(Infrastructure!$L$11:$L$1814,Settings!$BJ18,Infrastructure!AD$11:AD$1850)","v":0},{"$f":"SUMIF(Infrastructure!$L$11:$L$1814,Settings!$BJ18,Infrastructure!AE$11:AE$1850)","v":0},{"$f":"SUMIF(Infrastructure!$L$11:$L$1814,Settings!$BJ18,Infrastructure!AF$11:AF$1850)","v":0},{"$f":"SUMIF(Infrastructure!$L$11:$L$1814,Settings!$BJ18,Infrastructure!AG$11:AG$1850)","v":0},{"$f":"SUMIF(Infrastructure!$L$11:$L$1814,Settings!$BJ18,Infrastructure!AH$11:AH$1850)","v":0}]
[null,null,null,null,null,"Feasibility",null,{"$f":"SUMIF(Infrastructure!$L$11:$L$1814,Settings!$BJ19,Infrastructure!O$11:O$1850)","v":0},{"$f":"SUMIF(Infrastructure!$L$11:$L$1814,Settings!$BJ19,Infrastructure!P$11:P$1850)","v":0},{"$f":"SUMIF(Infrastructure!$L$11:$L$1814,Settings!$BJ19,Infrastructure!Q$11:Q$1850)","v":0},{"$f":"SUMIF(Infrastructure!$L$11:$L$1814,Settings!$BJ19,Infrastructure!R$11:R$1850)","v":0},{"$f":"SUMIF(Infrastructure!$L$11:$L$1814,Settings!$BJ19,Infrastructure!S$11:S$1850)","v":0},{"$f":"SUMIF(Infrastructure!$L$11:$L$1814,Settings!$BJ19,Infrastructure!T$11:T$1850)","v":0},{"$f":"SUMIF(Infrastructure!$L$11:$L$1814,Settings!$BJ19,Infrastructure!U$11:U$1850)","v":0},{"$f":"SUMIF(Infrastructure!$L$11:$L$1814,Settings!$BJ19,Infrastructure!V$11:V$1850)","v":0},{"$f":"SUMIF(Infrastructure!$L$11:$L$1814,Settings!$BJ19,Infrastructure!W$11:W$1850)","v":0},{"$f":"SUMIF(Infrastructure!$L$11:$L$1814,Settings!$BJ19,Infrastructure!X$11:X$1850)","v":0},{"$f":"SUMIF(Infrastructure!$L$11:$L$1814,Settings!$BJ19,Infrastructure!Y$11:Y$1850)","v":0},{"$f":"SUMIF(Infrastructure!$L$11:$L$1814,Settings!$BJ19,Infrastructure!Z$11:Z$1850)","v":0},{"$f":"SUMIF(Infrastructure!$L$11:$L$1814,Settings!$BJ19,Infrastructure!AA$11:AA$1850)","v":0},{"$f":"SUMIF(Infrastructure!$L$11:$L$1814,Settings!$BJ19,Infrastructure!AB$11:AB$1850)","v":0},{"$f":"SUMIF(Infrastructure!$L$11:$L$1814,Settings!$BJ19,Infrastructure!AC$11:AC$1850)","v":0},{"$f":"SUMIF(Infrastructure!$L$11:$L$1814,Settings!$BJ19,Infrastructure!AD$11:AD$1850)","v":0},{"$f":"SUMIF(Infrastructure!$L$11:$L$1814,Settings!$BJ19,Infrastructure!AE$11:AE$1850)","v":0},{"$f":"SUMIF(Infrastructure!$L$11:$L$1814,Settings!$BJ19,Infrastructure!AF$11:AF$1850)","v":0},{"$f":"SUMIF(Infrastructure!$L$11:$L$1814,Settings!$BJ19,Infrastructure!AG$11:AG$1850)","v":0},{"$f":"SUMIF(Infrastructure!$L$11:$L$1814,Settings!$BJ19,Infrastructure!AH$11:AH$1850)","v":0}]
[null,null,null,null,null,"Design",null,{"$f":"SUMIF(Infrastructure!$L$11:$L$1814,Settings!$BJ20,Infrastructure!O$11:O$1850)","v":298152},{"$f":"SUMIF(Infrastructure!$L$11:$L$1814,Settings!$BJ20,Infrastructure!P$11:P$1850)","v":0},{"$f":"SUMIF(Infrastructure!$L$11:$L$1814,Settings!$BJ20,Infrastructure!Q$11:Q$1850)","v":0},{"$f":"SUMIF(Infrastructure!$L$11:$L$1814,Settings!$BJ20,Infrastructure!R$11:R$1850)","v":0},{"$f":"SUMIF(Infrastructure!$L$11:$L$1814,Settings!$BJ20,Infrastructure!S$11:S$1850)","v":201285},{"$f":"SUMIF(Infrastructure!$L$11:$L$1814,Settings!$BJ20,Infrastructure!T$11:T$1850)","v":201285},{"$f":"SUMIF(Infrastructure!$L$11:$L$1814,Settings!$BJ20,Infrastructure!U$11:U$1850)","v":0},{"$f":"SUMIF(Infrastructure!$L$11:$L$1814,Settings!$BJ20,Infrastructure!V$11:V$1850)","v":58884},{"$f":"SUMIF(Infrastructure!$L$11:$L$1814,Settings!$BJ20,Infrastructure!W$11:W$1850)","v":58884},{"$f":"SUMIF(Infrastructure!$L$11:$L$1814,Settings!$BJ20,Infrastructure!X$11:X$1850)","v":0},{"$f":"SUMIF(Infrastructure!$L$11:$L$1814,Settings!$BJ20,Infrastructure!Y$11:Y$1850)","v":37983},{"$f":"SUMIF(Infrastructure!$L$11:$L$1814,Settings!$BJ20,Infrastructure!Z$11:Z$1850)","v":37983},{"$f":"SUMIF(Infrastructure!$L$11:$L$1814,Settings!$BJ20,Infrastructure!AA$11:AA$1850)","v":0},{"$f":"SUMIF(Infrastructure!$L$11:$L$1814,Settings!$BJ20,Infrastructure!AB$11:AB$1850)","v":0},{"$f":"SUMIF(Infrastructure!$L$11:$L$1814,Settings!$BJ20,Infrastructure!AC$11:AC$1850)","v":0},{"$f":"SUMIF(Infrastructure!$L$11:$L$1814,Settings!$BJ20,Infrastructure!AD$11:AD$1850)","v":0},{"$f":"SUMIF(Infrastructure!$L$11:$L$1814,Settings!$BJ20,Infrastructure!AE$11:AE$1850)","v":0},{"$f":"SUMIF(Infrastructure!$L$11:$L$1814,Settings!$BJ20,Infrastructure!AF$11:AF$1850)","v":0},{"$f":"SUMIF(Infrastructure!$L$11:$L$1814,Settings!$BJ20,Infrastructure!AG$11:AG$1850)","v":0},{"$f":"SUMIF(Infrastructure!$L$11:$L$1814,Settings!$BJ20,Infrastructure!AH$11:AH$1850)","v":0}]
[null,null,null,null,null,"Tender",null,{"$f":"SUMIF(Infrastructure!$L$11:$L$1814,Settings!$BJ21,Infrastructure!O$11:O$1850)","v":0},{"$f":"SUMIF(Infrastructure!$L$11:$L$1814,Settings!$BJ21,Infrastructure!P$11:P$1850)","v":0},{"$f":"SUMIF(Infrastructure!$L$11:$L$1814,Settings!$BJ21,Infrastructure!Q$11:Q$1850)","v":0},{"$f":"SUMIF(Infrastructure!$L$11:$L$1814,Settings!$BJ21,Infrastructure!R$11:R$1850)","v":0},{"$f":"SUMIF(Infrastructure!$L$11:$L$1814,Settings!$BJ21,Infrastructure!S$11:S$1850)","v":0},{"$f":"SUMIF(Infrastructure!$L$11:$L$1814,Settings!$BJ21,Infrastructure!T$11:T$1850)","v":0},{"$f":"SUMIF(Infrastructure!$L$11:$L$1814,Settings!$BJ21,Infrastructure!U$11:U$1850)","v":0},{"$f":"SUMIF(Infrastructure!$L$11:$L$1814,Settings!$BJ21,Infrastructure!V$11:V$1850)","v":0},{"$f":"SUMIF(Infrastructure!$L$11:$L$1814,Settings!$BJ21,Infrastructure!W$11:W$1850)","v":0},{"$f":"SUMIF(Infrastructure!$L$11:$L$1814,Settings!$BJ21,Infrastructure!X$11:X$1850)","v":0},{"$f":"SUMIF(Infrastructure!$L$11:$L$1814,Settings!$BJ21,Infrastructure!Y$11:Y$1850)","v":0},{"$f":"SUMIF(Infrastructure!$L$11:$L$1814,Settings!$BJ21,Infrastructure!Z$11:Z$1850)","v":0},{"$f":"SUMIF(Infrastructure!$L$11:$L$1814,Settings!$BJ21,Infrastructure!AA$11:AA$1850)","v":0},{"$f":"SUMIF(Infrastructure!$L$11:$L$1814,Settings!$BJ21,Infrastructure!AB$11:AB$1850)","v":0},{"$f":"SUMIF(Infrastructure!$L$11:$L$1814,Settings!$BJ21,Infrastructure!AC$11:AC$1850)","v":0},{"$f":"SUMIF(Infrastructure!$L$11:$L$1814,Settings!$BJ21,Infrastructure!AD$11:AD$1850)","v":0},{"$f":"SUMIF(Infrastructure!$L$11:$L$1814,Settings!$BJ21,Infrastructure!AE$11:AE$1850)","v":0},{"$f":"SUMIF(Infrastructure!$L$11:$L$1814,Settings!$BJ21,Infrastructure!AF$11:AF$1850)","v":0},{"$f":"SUMIF(Infrastructure!$L$11:$L$1814,Settings!$BJ21,Infrastructure!AG$11:AG$1850)","v":0},{"$f":"SUMIF(Infrastructure!$L$11:$L$1814,Settings!$BJ21,Infrastructure!AH$11:AH$1850)","v":0}]
[null,null,null,null,null,"Construction",null,{"$f":"SUMIF(Infrastructure!$L$11:$L$1814,Settings!$BJ22,Infrastructure!O$11:O$1850)","v":0},{"$f":"SUMIF(Infrastructure!$L$11:$L$1814,Settings!$BJ22,Infrastructure!P$11:P$1850)","v":0},{"$f":"SUMIF(Infrastructure!$L$11:$L$1814,Settings!$BJ22,Infrastructure!Q$11:Q$1850)","v":0},{"$f":"SUMIF(Infrastructure!$L$11:$L$1814,Settings!$BJ22,Infrastructure!R$11:R$1850)","v":0},{"$f":"SUMIF(Infrastructure!$L$11:$L$1814,Settings!$BJ22,Infrastructure!S$11:S$1850)","v":0},{"$f":"SUMIF(Infrastructure!$L$11:$L$1814,Settings!$BJ22,Infrastructure!T$11:T$1850)","v":0},{"$f":"SUMIF(Infrastructure!$L$11:$L$1814,Settings!$BJ22,Infrastructure!U$11:U$1850)","v":0},{"$f":"SUMIF(Infrastructure!$L$11:$L$1814,Settings!$BJ22,Infrastructure!V$11:V$1850)","v":0},{"$f":"SUMIF(Infrastructure!$L$11:$L$1814,Settings!$BJ22,Infrastructure!W$11:W$1850)","v":0},{"$f":"SUMIF(Infrastructure!$L$11:$L$1814,Settings!$BJ22,Infrastructure!X$11:X$1850)","v":0},{"$f":"SUMIF(Infrastructure!$L$11:$L$1814,Settings!$BJ22,Infrastructure!Y$11:Y$1850)","v":0},{"$f":"SUMIF(Infrastructure!$L$11:$L$1814,Settings!$BJ22,Infrastructure!Z$11:Z$1850)","v":0},{"$f":"SUMIF(Infrastructure!$L$11:$L$1814,Settings!$BJ22,Infrastructure!AA$11:AA$1850)","v":0},{"$f":"SUMIF(Infrastructure!$L$11:$L$1814,Settings!$BJ22,Infrastructure!AB$11:AB$1850)","v":0},{"$f":"SUMIF(Infrastructure!$L$11:$L$1814,Settings!$BJ22,Infrastructure!AC$11:AC$1850)","v":0},{"$f":"SUMIF(Infrastructure!$L$11:$L$1814,Settings!$BJ22,Infrastructure!AD$11:AD$1850)","v":0},{"$f":"SUMIF(Infrastructure!$L$11:$L$1814,Settings!$BJ22,Infrastructure!AE$11:AE$1850)","v":0},{"$f":"SUMIF(Infrastructure!$L$11:$L$1814,Settings!$BJ22,Infrastructure!AF$11:AF$1850)","v":0},{"$f":"SUMIF(Infrastructure!$L$11:$L$1814,Settings!$BJ22,Infrastructure!AG$11:AG$1850)","v":0},{"$f":"SUMIF(Infrastructure!$L$11:$L$1814,Settings!$BJ22,Infrastructure!AH$11:AH$1850)","v":0}]
[null,null,null,null,null,"Hand over",null,{"$f":"SUMIF(Infrastructure!$L$11:$L$1814,Settings!$BJ23,Infrastructure!O$11:O$1850)","v":0},{"$f":"SUMIF(Infrastructure!$L$11:$L$1814,Settings!$BJ23,Infrastructure!P$11:P$1850)","v":0},{"$f":"SUMIF(Infrastructure!$L$11:$L$1814,Settings!$BJ23,Infrastructure!Q$11:Q$1850)","v":0},{"$f":"SUMIF(Infrastructure!$L$11:$L$1814,Settings!$BJ23,Infrastructure!R$11:R$1850)","v":0},{"$f":"SUMIF(Infrastructure!$L$11:$L$1814,Settings!$BJ23,Infrastructure!S$11:S$1850)","v":0},{"$f":"SUMIF(Infrastructure!$L$11:$L$1814,Settings!$BJ23,Infrastructure!T$11:T$1850)","v":0},{"$f":"SUMIF(Infrastructure!$L$11:$L$1814,Settings!$BJ23,Infrastructure!U$11:U$1850)","v":0},{"$f":"SUMIF(Infrastructure!$L$11:$L$1814,Settings!$BJ23,Infrastructure!V$11:V$1850)","v":0},{"$f":"SUMIF(Infrastructure!$L$11:$L$1814,Settings!$BJ23,Infrastructure!W$11:W$1850)","v":0},{"$f":"SUMIF(Infrastructure!$L$11:$L$1814,Settings!$BJ23,Infrastructure!X$11:X$1850)","v":0},{"$f":"SUMIF(Infrastructure!$L$11:$L$1814,Settings!$BJ23,Infrastructure!Y$11:Y$1850)","v":0},{"$f":"SUMIF(Infrastructure!$L$11:$L$1814,Settings!$BJ23,Infrastructure!Z$11:Z$1850)","v":0},{"$f":"SUMIF(Infrastructure!$L$11:$L$1814,Settings!$BJ23,Infrastructure!AA$11:AA$1850)","v":0},{"$f":"SUMIF(Infrastructure!$L$11:$L$1814,Settings!$BJ23,Infrastructure!AB$11:AB$1850)","v":0},{"$f":"SUMIF(Infrastructure!$L$11:$L$1814,Settings!$BJ23,Infrastructure!AC$11:AC$1850)","v":0},{"$f":"SUMIF(Infrastructure!$L$11:$L$1814,Settings!$BJ23,Infrastructure!AD$11:AD$1850)","v":0},{"$f":"SUMIF(Infrastructure!$L$11:$L$1814,Settings!$BJ23,Infrastructure!AE$11:AE$1850)","v":0},{"$f":"SUMIF(Infrastructure!$L$11:$L$1814,Settings!$BJ23,Infrastructure!AF$11:AF$1850)","v":0},{"$f":"SUMIF(Infrastructure!$L$11:$L$1814,Settings!$BJ23,Infrastructure!AG$11:AG$1850)","v":0},{"$f":"SUMIF(Infrastructure!$L$11:$L$1814,Settings!$BJ23,Infrastructure!AH$11:AH$1850)","v":0}]
[null,null,null,null,null,"Handed over",null,{"$f":"SUMIF(Infrastructure!$L$11:$L$1814,Settings!$BJ24,Infrastructure!O$11:O$1850)","v":0},{"$f":"SUMIF(Infrastructure!$L$11:$L$1814,Settings!$BJ24,Infrastructure!P$11:P$1850)","v":0},{"$f":"SUMIF(Infrastructure!$L$11:$L$1814,Settings!$BJ24,Infrastructure!Q$11:Q$1850)","v":0},{"$f":"SUMIF(Infrastructure!$L$11:$L$1814,Settings!$BJ24,Infrastructure!R$11:R$1850)","v":0},{"$f":"SUMIF(Infrastructure!$L$11:$L$1814,Settings!$BJ24,Infrastructure!S$11:S$1850)","v":0},{"$f":"SUMIF(Infrastructure!$L$11:$L$1814,Settings!$BJ24,Infrastructure!T$11:T$1850)","v":0},{"$f":"SUMIF(Infrastructure!$L$11:$L$1814,Settings!$BJ24,Infrastructure!U$11:U$1850)","v":0},{"$f":"SUMIF(Infrastructure!$L$11:$L$1814,Settings!$BJ24,Infrastructure!V$11:V$1850)","v":0},{"$f":"SUMIF(Infrastructure!$L$11:$L$1814,Settings!$BJ24,Infrastructure!W$11:W$1850)","v":0},{"$f":"SUMIF(Infrastructure!$L$11:$L$1814,Settings!$BJ24,Infrastructure!X$11:X$1850)","v":0},{"$f":"SUMIF(Infrastructure!$L$11:$L$1814,Settings!$BJ24,Infrastructure!Y$11:Y$1850)","v":0},{"$f":"SUMIF(Infrastructure!$L$11:$L$1814,Settings!$BJ24,Infrastructure!Z$11:Z$1850)","v":0},{"$f":"SUMIF(Infrastructure!$L$11:$L$1814,Settings!$BJ24,Infrastructure!AA$11:AA$1850)","v":0},{"$f":"SUMIF(Infrastructure!$L$11:$L$1814,Settings!$BJ24,Infrastructure!AB$11:AB$1850)","v":0},{"$f":"SUMIF(Infrastructure!$L$11:$L$1814,Settings!$BJ24,Infrastructure!AC$11:AC$1850)","v":0},{"$f":"SUMIF(Infrastructure!$L$11:$L$1814,Settings!$BJ24,Infrastructure!AD$11:AD$1850)","v":0},{"$f":"SUMIF(Infrastructure!$L$11:$L$1814,Settings!$BJ24,Infrastructure!AE$11:AE$1850)","v":0},{"$f":"SUMIF(Infrastructure!$L$11:$L$1814,Settings!$BJ24,Infrastructure!AF$11:AF$1850)","v":0},{"$f":"SUMIF(Infrastructure!$L$11:$L$1814,Settings!$BJ24,Infrastructure!AG$11:AG$1850)","v":0},{"$f":"SUMIF(Infrastructure!$L$11:$L$1814,Settings!$BJ24,Infrastructure!AH$11:AH$1850)","v":0}]
[null,null,null,null,null,"On hold",null,{"$f":"SUMIF(Infrastructure!$L$11:$L$1814,Settings!$BJ25,Infrastructure!O$11:O$1850)","v":0},{"$f":"SUMIF(Infrastructure!$L$11:$L$1814,Settings!$BJ25,Infrastructure!P$11:P$1850)","v":0},{"$f":"SUMIF(Infrastructure!$L$11:$L$1814,Settings!$BJ25,Infrastructure!Q$11:Q$1850)","v":0},{"$f":"SUMIF(Infrastructure!$L$11:$L$1814,Settings!$BJ25,Infrastructure!R$11:R$1850)","v":0},{"$f":"SUMIF(Infrastructure!$L$11:$L$1814,Settings!$BJ25,Infrastructure!S$11:S$1850)","v":0},{"$f":"SUMIF(Infrastructure!$L$11:$L$1814,Settings!$BJ25,Infrastructure!T$11:T$1850)","v":0},{"$f":"SUMIF(Infrastructure!$L$11:$L$1814,Settings!$BJ25,Infrastructure!U$11:U$1850)","v":0},{"$f":"SUMIF(Infrastructure!$L$11:$L$1814,Settings!$BJ25,Infrastructure!V$11:V$1850)","v":0},{"$f":"SUMIF(Infrastructure!$L$11:$L$1814,Settings!$BJ25,Infrastructure!W$11:W$1850)","v":0},{"$f":"SUMIF(Infrastructure!$L$11:$L$1814,Settings!$BJ25,Infrastructure!X$11:X$1850)","v":0},{"$f":"SUMIF(Infrastructure!$L$11:$L$1814,Settings!$BJ25,Infrastructure!Y$11:Y$1850)","v":0},{"$f":"SUMIF(Infrastructure!$L$11:$L$1814,Settings!$BJ25,Infrastructure!Z$11:Z$1850)","v":0},{"$f":"SUMIF(Infrastructure!$L$11:$L$1814,Settings!$BJ25,Infrastructure!AA$11:AA$1850)","v":0},{"$f":"SUMIF(Infrastructure!$L$11:$L$1814,Settings!$BJ25,Infrastructure!AB$11:AB$1850)","v":0},{"$f":"SUMIF(Infrastructure!$L$11:$L$1814,Settings!$BJ25,Infrastructure!AC$11:AC$1850)","v":0},{"$f":"SUMIF(Infrastructure!$L$11:$L$1814,Settings!$BJ25,Infrastructure!AD$11:AD$1850)","v":0},{"$f":"SUMIF(Infrastructure!$L$11:$L$1814,Settings!$BJ25,Infrastructure!AE$11:AE$1850)","v":0},{"$f":"SUMIF(Infrastructure!$L$11:$L$1814,Settings!$BJ25,Infrastructure!AF$11:AF$1850)","v":0},{"$f":"SUMIF(Infrastructure!$L$11:$L$1814,Settings!$BJ25,Infrastructure!AG$11:AG$1850)","v":0},{"$f":"SUMIF(Infrastructure!$L$11:$L$1814,Settings!$BJ25,Infrastructure!AH$11:AH$1850)","v":0}]
[null,null,null,null,null,"Complete",null,{"$f":"SUMIF(Infrastructure!$L$11:$L$1814,Settings!$BJ26,Infrastructure!O$11:O$1850)","v":0},{"$f":"SUMIF(Infrastructure!$L$11:$L$1814,Settings!$BJ26,Infrastructure!P$11:P$1850)","v":0},{"$f":"SUMIF(Infrastructure!$L$11:$L$1814,Settings!$BJ26,Infrastructure!Q$11:Q$1850)","v":0},{"$f":"SUMIF(Infrastructure!$L$11:$L$1814,Settings!$BJ26,Infrastructure!R$11:R$1850)","v":0},{"$f":"SUMIF(Infrastructure!$L$11:$L$1814,Settings!$BJ26,Infrastructure!S$11:S$1850)","v":0},{"$f":"SUMIF(Infrastructure!$L$11:$L$1814,Settings!$BJ26,Infrastructure!T$11:T$1850)","v":0},{"$f":"SUMIF(Infrastructure!$L$11:$L$1814,Settings!$BJ26,Infrastructure!U$11:U$1850)","v":0},{"$f":"SUMIF(Infrastructure!$L$11:$L$1814,Settings!$BJ26,Infrastructure!V$11:V$1850)","v":0},{"$f":"SUMIF(Infrastructure!$L$11:$L$1814,Settings!$BJ26,Infrastructure!W$11:W$1850)","v":0},{"$f":"SUMIF(Infrastructure!$L$11:$L$1814,Settings!$BJ26,Infrastructure!X$11:X$1850)","v":0},{"$f":"SUMIF(Infrastructure!$L$11:$L$1814,Settings!$BJ26,Infrastructure!Y$11:Y$1850)","v":0},{"$f":"SUMIF(Infrastructure!$L$11:$L$1814,Settings!$BJ26,Infrastructure!Z$11:Z$1850)","v":0},{"$f":"SUMIF(Infrastructure!$L$11:$L$1814,Settings!$BJ26,Infrastructure!AA$11:AA$1850)","v":0},{"$f":"SUMIF(Infrastructure!$L$11:$L$1814,Settings!$BJ26,Infrastructure!AB$11:AB$1850)","v":0},{"$f":"SUMIF(Infrastructure!$L$11:$L$1814,Settings!$BJ26,Infrastructure!AC$11:AC$1850)","v":0},{"$f":"SUMIF(Infrastructure!$L$11:$L$1814,Settings!$BJ26,Infrastructure!AD$11:AD$1850)","v":0},{"$f":"SUMIF(Infrastructure!$L$11:$L$1814,Settings!$BJ26,Infrastructure!AE$11:AE$1850)","v":0},{"$f":"SUMIF(Infrastructure!$L$11:$L$1814,Settings!$BJ26,Infrastructure!AF$11:AF$1850)","v":0},{"$f":"SUMIF(Infrastructure!$L$11:$L$1814,Settings!$BJ26,Infrastructure!AG$11:AG$1850)","v":0},{"$f":"SUMIF(Infrastructure!$L$11:$L$1814,Settings!$BJ26,Infrastructure!AH$11:AH$1850)","v":0}]
[null,null,null,null,null,"On-going",null,{"$f":"SUMIF(Infrastructure!$L$11:$L$1814,Settings!$BJ27,Infrastructure!O$11:O$1850)","v":0},{"$f":"SUMIF(Infrastructure!$L$11:$L$1814,Settings!$BJ27,Infrastructure!P$11:P$1850)","v":0},{"$f":"SUMIF(Infrastructure!$L$11:$L$1814,Settings!$BJ27,Infrastructure!Q$11:Q$1850)","v":0},{"$f":"SUMIF(Infrastructure!$L$11:$L$1814,Settings!$BJ27,Infrastructure!R$11:R$1850)","v":0},{"$f":"SUMIF(Infrastructure!$L$11:$L$1814,Settings!$BJ27,Infrastructure!S$11:S$1850)","v":0},{"$f":"SUMIF(Infrastructure!$L$11:$L$1814,Settings!$BJ27,Infrastructure!T$11:T$1850)","v":0},{"$f":"SUMIF(Infrastructure!$L$11:$L$1814,Settings!$BJ27,Infrastructure!U$11:U$1850)","v":0},{"$f":"SUMIF(Infrastructure!$L$11:$L$1814,Settings!$BJ27,Infrastructure!V$11:V$1850)","v":0},{"$f":"SUMIF(Infrastructure!$L$11:$L$1814,Settings!$BJ27,Infrastructure!W$11:W$1850)","v":0},{"$f":"SUMIF(Infrastructure!$L$11:$L$1814,Settings!$BJ27,Infrastructure!X$11:X$1850)","v":0},{"$f":"SUMIF(Infrastructure!$L$11:$L$1814,Settings!$BJ27,Infrastructure!Y$11:Y$1850)","v":0},{"$f":"SUMIF(Infrastructure!$L$11:$L$1814,Settings!$BJ27,Infrastructure!Z$11:Z$1850)","v":0},{"$f":"SUMIF(Infrastructure!$L$11:$L$1814,Settings!$BJ27,Infrastructure!AA$11:AA$1850)","v":0},{"$f":"SUMIF(Infrastructure!$L$11:$L$1814,Settings!$BJ27,Infrastructure!AB$11:AB$1850)","v":0},{"$f":"SUMIF(Infrastructure!$L$11:$L$1814,Settings!$BJ27,Infrastructure!AC$11:AC$1850)","v":0},{"$f":"SUMIF(Infrastructure!$L$11:$L$1814,Settings!$BJ27,Infrastructure!AD$11:AD$1850)","v":0},{"$f":"SUMIF(Infrastructure!$L$11:$L$1814,Settings!$BJ27,Infrastructure!AE$11:AE$1850)","v":0},{"$f":"SUMIF(Infrastructure!$L$11:$L$1814,Settings!$BJ27,Infrastructure!AF$11:AF$1850)","v":0},{"$f":"SUMIF(Infrastructure!$L$11:$L$1814,Settings!$BJ27,Infrastructure!AG$11:AG$1850)","v":0},{"$f":"SUMIF(Infrastructure!$L$11:$L$1814,Settings!$BJ27,Infrastructure!AH$11:AH$1850)","v":0}]
[null,null,null,null,null,"Total Infrastructure",null,{"$f":"SUM(H28:H36)","v":298152},{"$f":"SUM(I28:I36)","v":0},0,0,201285,201285,0,58884,{"$f":"SUM(P28:P36)","v":58884},{"$f":"SUM(Q28:Q36)","v":0},37983,37983,0,0,0,0,0,0,0,0]
[]
[]
[null,null,null,null,null,"SIP category",null,{"$f":"+H9","v":"Total Project Cost"},{"$f":"+I9","v":"2022/23"},"2023/24","2024/25",{"$f":"+L9","v":"2025/26"},null,null,"2026/27",null,null,"2027/28",null,null,"2028/29","2029/30","2030/31","2031/32","2032/33","2033/34","2034/35"]
[null,null,null,null,null,"Rand thousand",null,null,{"$f":"Hist_year3RestatedAudited","v":"Audited\noutcome"},{"$f":"Hist_year2RestatedAudited","v":"Audited\noutcome"},{"$f":"Hist_year1Audited","v":"Audited\noutcome"},{"$f":"Cur_YearBudgEst","v":"Budget\nestimate"},{"$f":"Cur_YearApprovedBudg","v":"Approved budget"},{"$f":"Cur_YearChangeFrRevBudg","v":"Changes from \nbudget estimate"},{"$f":"MTEF1BudgEst","v":"Budget\nestimate"},{"$f":"MTEF1RevBudgEst","v":"Revised\nbudget\nestimate"},{"$f":"MTEF1_ChangeFrBudgEst","v":"Changes from budget estimate"},{"$f":"MTEF2BudgEst","v":"Budget\nestimate"},{"$f":"MTEF2RevBudgEst","v":"Revised\nbudget\nestimate"},{"$f":"MTEF2_ChangeFrBudgEst","v":"Changes from budget estimate"},{"$f":"MTEF3PlanBudgetEst","v":"Planning\nbudget \nestimate"},"Long term planning"]
[null,null,null,null,null,"Not related to SIPs",null,{"$f":"SUMIF(Infrastructure!$N$11:$N$1814,Settings!$BG17,Infrastructure!O$11:O$1850)","v":298152},{"$f":"SUMIF(Infrastructure!$N$11:$N$1814,Settings!$BG17,Infrastructure!P$11:P$1850)","v":0},{"$f":"SUMIF(Infrastructure!$N$11:$N$1814,Settings!$BG17,Infrastructure!Q$11:Q$1850)","v":0},{"$f":"SUMIF(Infrastructure!$N$11:$N$1814,Settings!$BG17,Infrastructure!R$11:R$1850)","v":0},{"$f":"SUMIF(Infrastructure!$N$11:$N$1814,Settings!$BG17,Infrastructure!S$11:S$1850)","v":201285},{"$f":"SUMIF(Infrastructure!$N$11:$N$1814,Settings!$BG17,Infrastructure!T$11:T$1850)","v":201285},{"$f":"SUMIF(Infrastructure!$N$11:$N$1814,Settings!$BG17,Infrastructure!U$11:U$1850)","v":0},{"$f":"SUMIF(Infrastructure!$N$11:$N$1814,Settings!$BG17,Infrastructure!V$11:V$1850)","v":58884},{"$f":"SUMIF(Infrastructure!$N$11:$N$1814,Settings!$BG17,Infrastructure!W$11:W$1850)","v":58884},{"$f":"SUMIF(Infrastructure!$N$11:$N$1814,Settings!$BG17,Infrastructure!X$11:X$1850)","v":0},{"$f":"SUMIF(Infrastructure!$N$11:$N$1814,Settings!$BG17,Infrastructure!Y$11:Y$1850)","v":37983},{"$f":"SUMIF(Infrastructure!$N$11:$N$1814,Settings!$BG17,Infrastructure!Z$11:Z$1850)","v":37983},{"$f":"SUMIF(Infrastructure!$N$11:$N$1814,Settings!$BG17,Infrastructure!AA$11:AA$1850)","v":0},{"$f":"SUMIF(Infrastructure!$N$11:$N$1814,Settings!$BG17,Infrastructure!AB$11:AB$1850)","v":0},{"$f":"SUMIF(Infrastructure!$N$11:$N$1814,Settings!$BG17,Infrastructure!AC$11:AC$1850)","v":0},{"$f":"SUMIF(Infrastructure!$N$11:$N$1814,Settings!$BG17,Infrastructure!AD$11:AD$1850)","v":0},{"$f":"SUMIF(Infrastructure!$N$11:$N$1814,Settings!$BG17,Infrastructure!AE$11:AE$1850)","v":0},{"$f":"SUMIF(Infrastructure!$N$11:$N$1814,Settings!$BG17,Infrastructure!AF$11:AF$1850)","v":0},{"$f":"SUMIF(Infrastructure!$N$11:$N$1814,Settings!$BG17,Infrastructure!AG$11:AG$1850)","v":0},{"$f":"SUMIF(Infrastructure!$N$11:$N$1814,Settings!$BG17,Infrastructure!AH$11:AH$1850)","v":0}]
[null,null,null,null,null,"SIP 1: Unlocking the northern mineral belt with Waterbrg as Catalyst",null,{"$f":"SUMIF(Infrastructure!$N$11:$N$1814,Settings!$BG18,Infrastructure!O$11:O$1850)","v":0},{"$f":"SUMIF(Infrastructure!$N$11:$N$1814,Settings!$BG18,Infrastructure!P$11:P$1850)","v":0},{"$f":"SUMIF(Infrastructure!$N$11:$N$1814,Settings!$BG18,Infrastructure!Q$11:Q$1850)","v":0},{"$f":"SUMIF(Infrastructure!$N$11:$N$1814,Settings!$BG18,Infrastructure!R$11:R$1850)","v":0},{"$f":"SUMIF(Infrastructure!$N$11:$N$1814,Settings!$BG18,Infrastructure!S$11:S$1850)","v":0},{"$f":"SUMIF(Infrastructure!$N$11:$N$1814,Settings!$BG18,Infrastructure!T$11:T$1850)","v":0},{"$f":"SUMIF(Infrastructure!$N$11:$N$1814,Settings!$BG18,Infrastructure!U$11:U$1850)","v":0},{"$f":"SUMIF(Infrastructure!$N$11:$N$1814,Settings!$BG18,Infrastructure!V$11:V$1850)","v":0},{"$f":"SUMIF(Infrastructure!$N$11:$N$1814,Settings!$BG18,Infrastructure!W$11:W$1850)","v":0},{"$f":"SUMIF(Infrastructure!$N$11:$N$1814,Settings!$BG18,Infrastructure!X$11:X$1850)","v":0},{"$f":"SUMIF(Infrastructure!$N$11:$N$1814,Settings!$BG18,Infrastructure!Y$11:Y$1850)","v":0},{"$f":"SUMIF(Infrastructure!$N$11:$N$1814,Settings!$BG18,Infrastructure!Z$11:Z$1850)","v":0},{"$f":"SUMIF(Infrastructure!$N$11:$N$1814,Settings!$BG18,Infrastructure!AA$11:AA$1850)","v":0},{"$f":"SUMIF(Infrastructure!$N$11:$N$1814,Settings!$BG18,Infrastructure!AB$11:AB$1850)","v":0},{"$f":"SUMIF(Infrastructure!$N$11:$N$1814,Settings!$BG18,Infrastructure!AC$11:AC$1850)","v":0},{"$f":"SUMIF(Infrastructure!$N$11:$N$1814,Settings!$BG18,Infrastructure!AD$11:AD$1850)","v":0},{"$f":"SUMIF(Infrastructure!$N$11:$N$1814,Settings!$BG18,Infrastructure!AE$11:AE$1850)","v":0},{"$f":"SUMIF(Infrastructure!$N$11:$N$1814,Settings!$BG18,Infrastructure!AF$11:AF$1850)","v":0},{"$f":"SUMIF(Infrastructure!$N$11:$N$1814,Settings!$BG18,Infrastructure!AG$11:AG$1850)","v":0},{"$f":"SUMIF(Infrastructure!$N$11:$N$1814,Settings!$BG18,Infrastructure!AH$11:AH$1850)","v":0}]
[null,null,null,null,null,"SIP 2: Durban-Free State Gauteng Logistics and Industrial Corridor",null,{"$f":"SUMIF(Infrastructure!$N$11:$N$1814,Settings!$BG19,Infrastructure!O$11:O$1850)","v":0},{"$f":"SUMIF(Infrastructure!$N$11:$N$1814,Settings!$BG19,Infrastructure!P$11:P$1850)","v":0},{"$f":"SUMIF(Infrastructure!$N$11:$N$1814,Settings!$BG19,Infrastructure!Q$11:Q$1850)","v":0},{"$f":"SUMIF(Infrastructure!$N$11:$N$1814,Settings!$BG19,Infrastructure!R$11:R$1850)","v":0},{"$f":"SUMIF(Infrastructure!$N$11:$N$1814,Settings!$BG19,Infrastructure!S$11:S$1850)","v":0},{"$f":"SUMIF(Infrastructure!$N$11:$N$1814,Settings!$BG19,Infrastructure!T$11:T$1850)","v":0},{"$f":"SUMIF(Infrastructure!$N$11:$N$1814,Settings!$BG19,Infrastructure!U$11:U$1850)","v":0},{"$f":"SUMIF(Infrastructure!$N$11:$N$1814,Settings!$BG19,Infrastructure!V$11:V$1850)","v":0},{"$f":"SUMIF(Infrastructure!$N$11:$N$1814,Settings!$BG19,Infrastructure!W$11:W$1850)","v":0},{"$f":"SUMIF(Infrastructure!$N$11:$N$1814,Settings!$BG19,Infrastructure!X$11:X$1850)","v":0},{"$f":"SUMIF(Infrastructure!$N$11:$N$1814,Settings!$BG19,Infrastructure!Y$11:Y$1850)","v":0},{"$f":"SUMIF(Infrastructure!$N$11:$N$1814,Settings!$BG19,Infrastructure!Z$11:Z$1850)","v":0},{"$f":"SUMIF(Infrastructure!$N$11:$N$1814,Settings!$BG19,Infrastructure!AA$11:AA$1850)","v":0},{"$f":"SUMIF(Infrastructure!$N$11:$N$1814,Settings!$BG19,Infrastructure!AB$11:AB$1850)","v":0},{"$f":"SUMIF(Infrastructure!$N$11:$N$1814,Settings!$BG19,Infrastructure!AC$11:AC$1850)","v":0},{"$f":"SUMIF(Infrastructure!$N$11:$N$1814,Settings!$BG19,Infrastructure!AD$11:AD$1850)","v":0},{"$f":"SUMIF(Infrastructure!$N$11:$N$1814,Settings!$BG19,Infrastructure!AE$11:AE$1850)","v":0},{"$f":"SUMIF(Infrastructure!$N$11:$N$1814,Settings!$BG19,Infrastructure!AF$11:AF$1850)","v":0},{"$f":"SUMIF(Infrastructure!$N$11:$N$1814,Settings!$BG19,Infrastructure!AG$11:AG$1850)","v":0},{"$f":"SUMIF(Infrastructure!$N$11:$N$1814,Settings!$BG19,Infrastructure!AH$11:AH$1850)","v":0}]
[null,null,null,null,null,"Sip 3: South eastern note and corridor development",null,{"$f":"SUMIF(Infrastructure!$N$11:$N$1814,Settings!$BG20,Infrastructure!O$11:O$1850)","v":0},{"$f":"SUMIF(Infrastructure!$N$11:$N$1814,Settings!$BG20,Infrastructure!P$11:P$1850)","v":0},{"$f":"SUMIF(Infrastructure!$N$11:$N$1814,Settings!$BG20,Infrastructure!Q$11:Q$1850)","v":0},{"$f":"SUMIF(Infrastructure!$N$11:$N$1814,Settings!$BG20,Infrastructure!R$11:R$1850)","v":0},{"$f":"SUMIF(Infrastructure!$N$11:$N$1814,Settings!$BG20,Infrastructure!S$11:S$1850)","v":0},{"$f":"SUMIF(Infrastructure!$N$11:$N$1814,Settings!$BG20,Infrastructure!T$11:T$1850)","v":0},{"$f":"SUMIF(Infrastructure!$N$11:$N$1814,Settings!$BG20,Infrastructure!U$11:U$1850)","v":0},{"$f":"SUMIF(Infrastructure!$N$11:$N$1814,Settings!$BG20,Infrastructure!V$11:V$1850)","v":0},{"$f":"SUMIF(Infrastructure!$N$11:$N$1814,Settings!$BG20,Infrastructure!W$11:W$1850)","v":0},{"$f":"SUMIF(Infrastructure!$N$11:$N$1814,Settings!$BG20,Infrastructure!X$11:X$1850)","v":0},{"$f":"SUMIF(Infrastructure!$N$11:$N$1814,Settings!$BG20,Infrastructure!Y$11:Y$1850)","v":0},{"$f":"SUMIF(Infrastructure!$N$11:$N$1814,Settings!$BG20,Infrastructure!Z$11:Z$1850)","v":0},{"$f":"SUMIF(Infrastructure!$N$11:$N$1814,Settings!$BG20,Infrastructure!AA$11:AA$1850)","v":0},{"$f":"SUMIF(Infrastructure!$N$11:$N$1814,Settings!$BG20,Infrastructure!AB$11:AB$1850)","v":0},{"$f":"SUMIF(Infrastructure!$N$11:$N$1814,Settings!$BG20,Infrastructure!AC$11:AC$1850)","v":0},{"$f":"SUMIF(Infrastructure!$N$11:$N$1814,Settings!$BG20,Infrastructure!AD$11:AD$1850)","v":0},{"$f":"SUMIF(Infrastructure!$N$11:$N$1814,Settings!$BG20,Infrastructure!AE$11:AE$1850)","v":0},{"$f":"SUMIF(Infrastructure!$N$11:$N$1814,Settings!$BG20,Infrastructure!AF$11:AF$1850)","v":0},{"$f":"SUMIF(Infrastructure!$N$11:$N$1814,Settings!$BG20,Infrastructure!AG$11:AG$1850)","v":0},{"$f":"SUMIF(Infrastructure!$N$11:$N$1814,Settings!$BG20,Infrastructure!AH$11:AH$1850)","v":0}]
[null,null,null,null,null,"SIP 4: Unlocking the economic opportunities in the Both West Province",null,{"$f":"SUMIF(Infrastructure!$N$11:$N$1814,Settings!$BG21,Infrastructure!O$11:O$1850)","v":0},{"$f":"SUMIF(Infrastructure!$N$11:$N$1814,Settings!$BG21,Infrastructure!P$11:P$1850)","v":0},{"$f":"SUMIF(Infrastructure!$N$11:$N$1814,Settings!$BG21,Infrastructure!Q$11:Q$1850)","v":0},{"$f":"SUMIF(Infrastructure!$N$11:$N$1814,Settings!$BG21,Infrastructure!R$11:R$1850)","v":0},{"$f":"SUMIF(Infrastructure!$N$11:$N$1814,Settings!$BG21,Infrastructure!S$11:S$1850)","v":0},{"$f":"SUMIF(Infrastructure!$N$11:$N$1814,Settings!$BG21,Infrastructure!T$11:T$1850)","v":0},{"$f":"SUMIF(Infrastructure!$N$11:$N$1814,Settings!$BG21,Infrastructure!U$11:U$1850)","v":0},{"$f":"SUMIF(Infrastructure!$N$11:$N$1814,Settings!$BG21,Infrastructure!V$11:V$1850)","v":0},{"$f":"SUMIF(Infrastructure!$N$11:$N$1814,Settings!$BG21,Infrastructure!W$11:W$1850)","v":0},{"$f":"SUMIF(Infrastructure!$N$11:$N$1814,Settings!$BG21,Infrastructure!X$11:X$1850)","v":0},{"$f":"SUMIF(Infrastructure!$N$11:$N$1814,Settings!$BG21,Infrastructure!Y$11:Y$1850)","v":0},{"$f":"SUMIF(Infrastructure!$N$11:$N$1814,Settings!$BG21,Infrastructure!Z$11:Z$1850)","v":0},{"$f":"SUMIF(Infrastructure!$N$11:$N$1814,Settings!$BG21,Infrastructure!AA$11:AA$1850)","v":0},{"$f":"SUMIF(Infrastructure!$N$11:$N$1814,Settings!$BG21,Infrastructure!AB$11:AB$1850)","v":0},{"$f":"SUMIF(Infrastructure!$N$11:$N$1814,Settings!$BG21,Infrastructure!AC$11:AC$1850)","v":0},{"$f":"SUMIF(Infrastructure!$N$11:$N$1814,Settings!$BG21,Infrastructure!AD$11:AD$1850)","v":0},{"$f":"SUMIF(Infrastructure!$N$11:$N$1814,Settings!$BG21,Infrastructure!AE$11:AE$1850)","v":0},{"$f":"SUMIF(Infrastructure!$N$11:$N$1814,Settings!$BG21,Infrastructure!AF$11:AF$1850)","v":0},{"$f":"SUMIF(Infrastructure!$N$11:$N$1814,Settings!$BG21,Infrastructure!AG$11:AG$1850)","v":0},{"$f":"SUMIF(Infrastructure!$N$11:$N$1814,Settings!$BG21,Infrastructure!AH$11:AH$1850)","v":0}]
[null,null,null,null,null,"SIP 5: Saldanha-Northern Cape Development Corridor",null,{"$f":"SUMIF(Infrastructure!$N$11:$N$1814,Settings!$BG22,Infrastructure!O$11:O$1850)","v":0},{"$f":"SUMIF(Infrastructure!$N$11:$N$1814,Settings!$BG22,Infrastructure!P$11:P$1850)","v":0},{"$f":"SUMIF(Infrastructure!$N$11:$N$1814,Settings!$BG22,Infrastructure!Q$11:Q$1850)","v":0},{"$f":"SUMIF(Infrastructure!$N$11:$N$1814,Settings!$BG22,Infrastructure!R$11:R$1850)","v":0},{"$f":"SUMIF(Infrastructure!$N$11:$N$1814,Settings!$BG22,Infrastructure!S$11:S$1850)","v":0},{"$f":"SUMIF(Infrastructure!$N$11:$N$1814,Settings!$BG22,Infrastructure!T$11:T$1850)","v":0},{"$f":"SUMIF(Infrastructure!$N$11:$N$1814,Settings!$BG22,Infrastructure!U$11:U$1850)","v":0},{"$f":"SUMIF(Infrastructure!$N$11:$N$1814,Settings!$BG22,Infrastructure!V$11:V$1850)","v":0},{"$f":"SUMIF(Infrastructure!$N$11:$N$1814,Settings!$BG22,Infrastructure!W$11:W$1850)","v":0},{"$f":"SUMIF(Infrastructure!$N$11:$N$1814,Settings!$BG22,Infrastructure!X$11:X$1850)","v":0},{"$f":"SUMIF(Infrastructure!$N$11:$N$1814,Settings!$BG22,Infrastructure!Y$11:Y$1850)","v":0},{"$f":"SUMIF(Infrastructure!$N$11:$N$1814,Settings!$BG22,Infrastructure!Z$11:Z$1850)","v":0},{"$f":"SUMIF(Infrastructure!$N$11:$N$1814,Settings!$BG22,Infrastructure!AA$11:AA$1850)","v":0},{"$f":"SUMIF(Infrastructure!$N$11:$N$1814,Settings!$BG22,Infrastructure!AB$11:AB$1850)","v":0},{"$f":"SUMIF(Infrastructure!$N$11:$N$1814,Settings!$BG22,Infrastructure!AC$11:AC$1850)","v":0},{"$f":"SUMIF(Infrastructure!$N$11:$N$1814,Settings!$BG22,Infrastructure!AD$11:AD$1850)","v":0},{"$f":"SUMIF(Infrastructure!$N$11:$N$1814,Settings!$BG22,Infrastructure!AE$11:AE$1850)","v":0},{"$f":"SUMIF(Infrastructure!$N$11:$N$1814,Settings!$BG22,Infrastructure!AF$11:AF$1850)","v":0},{"$f":"SUMIF(Infrastructure!$N$11:$N$1814,Settings!$BG22,Infrastructure!AG$11:AG$1850)","v":0},{"$f":"SUMIF(Infrastructure!$N$11:$N$1814,Settings!$BG22,Infrastructure!AH$11:AH$1850)","v":0}]
[null,null,null,null,null,"SIP 6: Integrated municipal infrastructure project",null,{"$f":"SUMIF(Infrastructure!$N$11:$N$1814,Settings!$BG23,Infrastructure!O$11:O$1850)","v":0},{"$f":"SUMIF(Infrastructure!$N$11:$N$1814,Settings!$BG23,Infrastructure!P$11:P$1850)","v":0},{"$f":"SUMIF(Infrastructure!$N$11:$N$1814,Settings!$BG23,Infrastructure!Q$11:Q$1850)","v":0},{"$f":"SUMIF(Infrastructure!$N$11:$N$1814,Settings!$BG23,Infrastructure!R$11:R$1850)","v":0},{"$f":"SUMIF(Infrastructure!$N$11:$N$1814,Settings!$BG23,Infrastructure!S$11:S$1850)","v":0},{"$f":"SUMIF(Infrastructure!$N$11:$N$1814,Settings!$BG23,Infrastructure!T$11:T$1850)","v":0},{"$f":"SUMIF(Infrastructure!$N$11:$N$1814,Settings!$BG23,Infrastructure!U$11:U$1850)","v":0},{"$f":"SUMIF(Infrastructure!$N$11:$N$1814,Settings!$BG23,Infrastructure!V$11:V$1850)","v":0},{"$f":"SUMIF(Infrastructure!$N$11:$N$1814,Settings!$BG23,Infrastructure!W$11:W$1850)","v":0},{"$f":"SUMIF(Infrastructure!$N$11:$N$1814,Settings!$BG23,Infrastructure!X$11:X$1850)","v":0},{"$f":"SUMIF(Infrastructure!$N$11:$N$1814,Settings!$BG23,Infrastructure!Y$11:Y$1850)","v":0},{"$f":"SUMIF(Infrastructure!$N$11:$N$1814,Settings!$BG23,Infrastructure!Z$11:Z$1850)","v":0},{"$f":"SUMIF(Infrastructure!$N$11:$N$1814,Settings!$BG23,Infrastructure!AA$11:AA$1850)","v":0},{"$f":"SUMIF(Infrastructure!$N$11:$N$1814,Settings!$BG23,Infrastructure!AB$11:AB$1850)","v":0},{"$f":"SUMIF(Infrastructure!$N$11:$N$1814,Settings!$BG23,Infrastructure!AC$11:AC$1850)","v":0},{"$f":"SUMIF(Infrastructure!$N$11:$N$1814,Settings!$BG23,Infrastructure!AD$11:AD$1850)","v":0},{"$f":"SUMIF(Infrastructure!$N$11:$N$1814,Settings!$BG23,Infrastructure!AE$11:AE$1850)","v":0},{"$f":"SUMIF(Infrastructure!$N$11:$N$1814,Settings!$BG23,Infrastructure!AF$11:AF$1850)","v":0},{"$f":"SUMIF(Infrastructure!$N$11:$N$1814,Settings!$BG23,Infrastructure!AG$11:AG$1850)","v":0},{"$f":"SUMIF(Infrastructure!$N$11:$N$1814,Settings!$BG23,Infrastructure!AH$11:AH$1850)","v":0}]
[null,null,null,null,null,"SIP 7: Integrated urban space and public transport programme",null,{"$f":"SUMIF(Infrastructure!$N$11:$N$1814,Settings!$BG24,Infrastructure!O$11:O$1850)","v":0},{"$f":"SUMIF(Infrastructure!$N$11:$N$1814,Settings!$BG24,Infrastructure!P$11:P$1850)","v":0},{"$f":"SUMIF(Infrastructure!$N$11:$N$1814,Settings!$BG24,Infrastructure!Q$11:Q$1850)","v":0},{"$f":"SUMIF(Infrastructure!$N$11:$N$1814,Settings!$BG24,Infrastructure!R$11:R$1850)","v":0},{"$f":"SUMIF(Infrastructure!$N$11:$N$1814,Settings!$BG24,Infrastructure!S$11:S$1850)","v":0},{"$f":"SUMIF(Infrastructure!$N$11:$N$1814,Settings!$BG24,Infrastructure!T$11:T$1850)","v":0},{"$f":"SUMIF(Infrastructure!$N$11:$N$1814,Settings!$BG24,Infrastructure!U$11:U$1850)","v":0},{"$f":"SUMIF(Infrastructure!$N$11:$N$1814,Settings!$BG24,Infrastructure!V$11:V$1850)","v":0},{"$f":"SUMIF(Infrastructure!$N$11:$N$1814,Settings!$BG24,Infrastructure!W$11:W$1850)","v":0},{"$f":"SUMIF(Infrastructure!$N$11:$N$1814,Settings!$BG24,Infrastructure!X$11:X$1850)","v":0},{"$f":"SUMIF(Infrastructure!$N$11:$N$1814,Settings!$BG24,Infrastructure!Y$11:Y$1850)","v":0},{"$f":"SUMIF(Infrastructure!$N$11:$N$1814,Settings!$BG24,Infrastructure!Z$11:Z$1850)","v":0},{"$f":"SUMIF(Infrastructure!$N$11:$N$1814,Settings!$BG24,Infrastructure!AA$11:AA$1850)","v":0},{"$f":"SUMIF(Infrastructure!$N$11:$N$1814,Settings!$BG24,Infrastructure!AB$11:AB$1850)","v":0},{"$f":"SUMIF(Infrastructure!$N$11:$N$1814,Settings!$BG24,Infrastructure!AC$11:AC$1850)","v":0},{"$f":"SUMIF(Infrastructure!$N$11:$N$1814,Settings!$BG24,Infrastructure!AD$11:AD$1850)","v":0},{"$f":"SUMIF(Infrastructure!$N$11:$N$1814,Settings!$BG24,Infrastructure!AE$11:AE$1850)","v":0},{"$f":"SUMIF(Infrastructure!$N$11:$N$1814,Settings!$BG24,Infrastructure!AF$11:AF$1850)","v":0},{"$f":"SUMIF(Infrastructure!$N$11:$N$1814,Settings!$BG24,Infrastructure!AG$11:AG$1850)","v":0},{"$f":"SUMIF(Infrastructure!$N$11:$N$1814,Settings!$BG24,Infrastructure!AH$11:AH$1850)","v":0}]
[null,null,null,null,null,"SIP 8: Green energy in support of the South African economy",null,{"$f":"SUMIF(Infrastructure!$N$11:$N$1814,Settings!$BG25,Infrastructure!O$11:O$1850)","v":0},{"$f":"SUMIF(Infrastructure!$N$11:$N$1814,Settings!$BG25,Infrastructure!P$11:P$1850)","v":0},{"$f":"SUMIF(Infrastructure!$N$11:$N$1814,Settings!$BG25,Infrastructure!Q$11:Q$1850)","v":0},{"$f":"SUMIF(Infrastructure!$N$11:$N$1814,Settings!$BG25,Infrastructure!R$11:R$1850)","v":0},{"$f":"SUMIF(Infrastructure!$N$11:$N$1814,Settings!$BG25,Infrastructure!S$11:S$1850)","v":0},{"$f":"SUMIF(Infrastructure!$N$11:$N$1814,Settings!$BG25,Infrastructure!T$11:T$1850)","v":0},{"$f":"SUMIF(Infrastructure!$N$11:$N$1814,Settings!$BG25,Infrastructure!U$11:U$1850)","v":0},{"$f":"SUMIF(Infrastructure!$N$11:$N$1814,Settings!$BG25,Infrastructure!V$11:V$1850)","v":0},{"$f":"SUMIF(Infrastructure!$N$11:$N$1814,Settings!$BG25,Infrastructure!W$11:W$1850)","v":0},{"$f":"SUMIF(Infrastructure!$N$11:$N$1814,Settings!$BG25,Infrastructure!X$11:X$1850)","v":0},{"$f":"SUMIF(Infrastructure!$N$11:$N$1814,Settings!$BG25,Infrastructure!Y$11:Y$1850)","v":0},{"$f":"SUMIF(Infrastructure!$N$11:$N$1814,Settings!$BG25,Infrastructure!Z$11:Z$1850)","v":0},{"$f":"SUMIF(Infrastructure!$N$11:$N$1814,Settings!$BG25,Infrastructure!AA$11:AA$1850)","v":0},{"$f":"SUMIF(Infrastructure!$N$11:$N$1814,Settings!$BG25,Infrastructure!AB$11:AB$1850)","v":0},{"$f":"SUMIF(Infrastructure!$N$11:$N$1814,Settings!$BG25,Infrastructure!AC$11:AC$1850)","v":0},{"$f":"SUMIF(Infrastructure!$N$11:$N$1814,Settings!$BG25,Infrastructure!AD$11:AD$1850)","v":0},{"$f":"SUMIF(Infrastructure!$N$11:$N$1814,Settings!$BG25,Infrastructure!AE$11:AE$1850)","v":0},{"$f":"SUMIF(Infrastructure!$N$11:$N$1814,Settings!$BG25,Infrastructure!AF$11:AF$1850)","v":0},{"$f":"SUMIF(Infrastructure!$N$11:$N$1814,Settings!$BG25,Infrastructure!AG$11:AG$1850)","v":0},{"$f":"SUMIF(Infrastructure!$N$11:$N$1814,Settings!$BG25,Infrastructure!AH$11:AH$1850)","v":0}]
[null,null,null,null,null,"SIP 9: Electricity generations to support socio-economic development",null,{"$f":"SUMIF(Infrastructure!$N$11:$N$1814,Settings!$BG26,Infrastructure!O$11:O$1850)","v":0},{"$f":"SUMIF(Infrastructure!$N$11:$N$1814,Settings!$BG26,Infrastructure!P$11:P$1850)","v":0},{"$f":"SUMIF(Infrastructure!$N$11:$N$1814,Settings!$BG26,Infrastructure!Q$11:Q$1850)","v":0},{"$f":"SUMIF(Infrastructure!$N$11:$N$1814,Settings!$BG26,Infrastructure!R$11:R$1850)","v":0},{"$f":"SUMIF(Infrastructure!$N$11:$N$1814,Settings!$BG26,Infrastructure!S$11:S$1850)","v":0},{"$f":"SUMIF(Infrastructure!$N$11:$N$1814,Settings!$BG26,Infrastructure!T$11:T$1850)","v":0},{"$f":"SUMIF(Infrastructure!$N$11:$N$1814,Settings!$BG26,Infrastructure!U$11:U$1850)","v":0},{"$f":"SUMIF(Infrastructure!$N$11:$N$1814,Settings!$BG26,Infrastructure!V$11:V$1850)","v":0},{"$f":"SUMIF(Infrastructure!$N$11:$N$1814,Settings!$BG26,Infrastructure!W$11:W$1850)","v":0},{"$f":"SUMIF(Infrastructure!$N$11:$N$1814,Settings!$BG26,Infrastructure!X$11:X$1850)","v":0},{"$f":"SUMIF(Infrastructure!$N$11:$N$1814,Settings!$BG26,Infrastructure!Y$11:Y$1850)","v":0},{"$f":"SUMIF(Infrastructure!$N$11:$N$1814,Settings!$BG26,Infrastructure!Z$11:Z$1850)","v":0},{"$f":"SUMIF(Infrastructure!$N$11:$N$1814,Settings!$BG26,Infrastructure!AA$11:AA$1850)","v":0},{"$f":"SUMIF(Infrastructure!$N$11:$N$1814,Settings!$BG26,Infrastructure!AB$11:AB$1850)","v":0},{"$f":"SUMIF(Infrastructure!$N$11:$N$1814,Settings!$BG26,Infrastructure!AC$11:AC$1850)","v":0},{"$f":"SUMIF(Infrastructure!$N$11:$N$1814,Settings!$BG26,Infrastructure!AD$11:AD$1850)","v":0},{"$f":"SUMIF(Infrastructure!$N$11:$N$1814,Settings!$BG26,Infrastructure!AE$11:AE$1850)","v":0},{"$f":"SUMIF(Infrastructure!$N$11:$N$1814,Settings!$BG26,Infrastructure!AF$11:AF$1850)","v":0},{"$f":"SUMIF(Infrastructure!$N$11:$N$1814,Settings!$BG26,Infrastructure!AG$11:AG$1850)","v":0},{"$f":"SUMIF(Infrastructure!$N$11:$N$1814,Settings!$BG26,Infrastructure!AH$11:AH$1850)","v":0}]
[null,null,null,null,null,"SIP 10: Electricity transmission and distribution for all",null,{"$f":"SUMIF(Infrastructure!$N$11:$N$1814,Settings!$BG27,Infrastructure!O$11:O$1850)","v":0},{"$f":"SUMIF(Infrastructure!$N$11:$N$1814,Settings!$BG27,Infrastructure!P$11:P$1850)","v":0},{"$f":"SUMIF(Infrastructure!$N$11:$N$1814,Settings!$BG27,Infrastructure!Q$11:Q$1850)","v":0},{"$f":"SUMIF(Infrastructure!$N$11:$N$1814,Settings!$BG27,Infrastructure!R$11:R$1850)","v":0},{"$f":"SUMIF(Infrastructure!$N$11:$N$1814,Settings!$BG27,Infrastructure!S$11:S$1850)","v":0},{"$f":"SUMIF(Infrastructure!$N$11:$N$1814,Settings!$BG27,Infrastructure!T$11:T$1850)","v":0},{"$f":"SUMIF(Infrastructure!$N$11:$N$1814,Settings!$BG27,Infrastructure!U$11:U$1850)","v":0},{"$f":"SUMIF(Infrastructure!$N$11:$N$1814,Settings!$BG27,Infrastructure!V$11:V$1850)","v":0},{"$f":"SUMIF(Infrastructure!$N$11:$N$1814,Settings!$BG27,Infrastructure!W$11:W$1850)","v":0},{"$f":"SUMIF(Infrastructure!$N$11:$N$1814,Settings!$BG27,Infrastructure!X$11:X$1850)","v":0},{"$f":"SUMIF(Infrastructure!$N$11:$N$1814,Settings!$BG27,Infrastructure!Y$11:Y$1850)","v":0},{"$f":"SUMIF(Infrastructure!$N$11:$N$1814,Settings!$BG27,Infrastructure!Z$11:Z$1850)","v":0},{"$f":"SUMIF(Infrastructure!$N$11:$N$1814,Settings!$BG27,Infrastructure!AA$11:AA$1850)","v":0},{"$f":"SUMIF(Infrastructure!$N$11:$N$1814,Settings!$BG27,Infrastructure!AB$11:AB$1850)","v":0},{"$f":"SUMIF(Infrastructure!$N$11:$N$1814,Settings!$BG27,Infrastructure!AC$11:AC$1850)","v":0},{"$f":"SUMIF(Infrastructure!$N$11:$N$1814,Settings!$BG27,Infrastructure!AD$11:AD$1850)","v":0},{"$f":"SUMIF(Infrastructure!$N$11:$N$1814,Settings!$BG27,Infrastructure!AE$11:AE$1850)","v":0},{"$f":"SUMIF(Infrastructure!$N$11:$N$1814,Settings!$BG27,Infrastructure!AF$11:AF$1850)","v":0},{"$f":"SUMIF(Infrastructure!$N$11:$N$1814,Settings!$BG27,Infrastructure!AG$11:AG$1850)","v":0},{"$f":"SUMIF(Infrastructure!$N$11:$N$1814,Settings!$BG27,Infrastructure!AH$11:AH$1850)","v":0}]
[null,null,null,null,null,"SIP 11: Agri-logistics and rural infrastructure",null,{"$f":"SUMIF(Infrastructure!$N$11:$N$1814,Settings!$BG28,Infrastructure!O$11:O$1850)","v":0},{"$f":"SUMIF(Infrastructure!$N$11:$N$1814,Settings!$BG28,Infrastructure!P$11:P$1850)","v":0},{"$f":"SUMIF(Infrastructure!$N$11:$N$1814,Settings!$BG28,Infrastructure!Q$11:Q$1850)","v":0},{"$f":"SUMIF(Infrastructure!$N$11:$N$1814,Settings!$BG28,Infrastructure!R$11:R$1850)","v":0},{"$f":"SUMIF(Infrastructure!$N$11:$N$1814,Settings!$BG28,Infrastructure!S$11:S$1850)","v":0},{"$f":"SUMIF(Infrastructure!$N$11:$N$1814,Settings!$BG28,Infrastructure!T$11:T$1850)","v":0},{"$f":"SUMIF(Infrastructure!$N$11:$N$1814,Settings!$BG28,Infrastructure!U$11:U$1850)","v":0},{"$f":"SUMIF(Infrastructure!$N$11:$N$1814,Settings!$BG28,Infrastructure!V$11:V$1850)","v":0},{"$f":"SUMIF(Infrastructure!$N$11:$N$1814,Settings!$BG28,Infrastructure!W$11:W$1850)","v":0},{"$f":"SUMIF(Infrastructure!$N$11:$N$1814,Settings!$BG28,Infrastructure!X$11:X$1850)","v":0},{"$f":"SUMIF(Infrastructure!$N$11:$N$1814,Settings!$BG28,Infrastructure!Y$11:Y$1850)","v":0},{"$f":"SUMIF(Infrastructure!$N$11:$N$1814,Settings!$BG28,Infrastructure!Z$11:Z$1850)","v":0},{"$f":"SUMIF(Infrastructure!$N$11:$N$1814,Settings!$BG28,Infrastructure!AA$11:AA$1850)","v":0},{"$f":"SUMIF(Infrastructure!$N$11:$N$1814,Settings!$BG28,Infrastructure!AB$11:AB$1850)","v":0},{"$f":"SUMIF(Infrastructure!$N$11:$N$1814,Settings!$BG28,Infrastructure!AC$11:AC$1850)","v":0},{"$f":"SUMIF(Infrastructure!$N$11:$N$1814,Settings!$BG28,Infrastructure!AD$11:AD$1850)","v":0},{"$f":"SUMIF(Infrastructure!$N$11:$N$1814,Settings!$BG28,Infrastructure!AE$11:AE$1850)","v":0},{"$f":"SUMIF(Infrastructure!$N$11:$N$1814,Settings!$BG28,Infrastructure!AF$11:AF$1850)","v":0},{"$f":"SUMIF(Infrastructure!$N$11:$N$1814,Settings!$BG28,Infrastructure!AG$11:AG$1850)","v":0},{"$f":"SUMIF(Infrastructure!$N$11:$N$1814,Settings!$BG28,Infrastructure!AH$11:AH$1850)","v":0}]
[null,null,null,null,null,"SIP 12: Revitalisation of public hospitals and other health facilities",null,{"$f":"SUMIF(Infrastructure!$N$11:$N$1814,Settings!$BG29,Infrastructure!O$11:O$1850)","v":0},{"$f":"SUMIF(Infrastructure!$N$11:$N$1814,Settings!$BG29,Infrastructure!P$11:P$1850)","v":0},{"$f":"SUMIF(Infrastructure!$N$11:$N$1814,Settings!$BG29,Infrastructure!Q$11:Q$1850)","v":0},{"$f":"SUMIF(Infrastructure!$N$11:$N$1814,Settings!$BG29,Infrastructure!R$11:R$1850)","v":0},{"$f":"SUMIF(Infrastructure!$N$11:$N$1814,Settings!$BG29,Infrastructure!S$11:S$1850)","v":0},{"$f":"SUMIF(Infrastructure!$N$11:$N$1814,Settings!$BG29,Infrastructure!T$11:T$1850)","v":0},{"$f":"SUMIF(Infrastructure!$N$11:$N$1814,Settings!$BG29,Infrastructure!U$11:U$1850)","v":0},{"$f":"SUMIF(Infrastructure!$N$11:$N$1814,Settings!$BG29,Infrastructure!V$11:V$1850)","v":0},{"$f":"SUMIF(Infrastructure!$N$11:$N$1814,Settings!$BG29,Infrastructure!W$11:W$1850)","v":0},{"$f":"SUMIF(Infrastructure!$N$11:$N$1814,Settings!$BG29,Infrastructure!X$11:X$1850)","v":0},{"$f":"SUMIF(Infrastructure!$N$11:$N$1814,Settings!$BG29,Infrastructure!Y$11:Y$1850)","v":0},{"$f":"SUMIF(Infrastructure!$N$11:$N$1814,Settings!$BG29,Infrastructure!Z$11:Z$1850)","v":0},{"$f":"SUMIF(Infrastructure!$N$11:$N$1814,Settings!$BG29,Infrastructure!AA$11:AA$1850)","v":0},{"$f":"SUMIF(Infrastructure!$N$11:$N$1814,Settings!$BG29,Infrastructure!AB$11:AB$1850)","v":0},{"$f":"SUMIF(Infrastructure!$N$11:$N$1814,Settings!$BG29,Infrastructure!AC$11:AC$1850)","v":0},{"$f":"SUMIF(Infrastructure!$N$11:$N$1814,Settings!$BG29,Infrastructure!AD$11:AD$1850)","v":0},{"$f":"SUMIF(Infrastructure!$N$11:$N$1814,Settings!$BG29,Infrastructure!AE$11:AE$1850)","v":0},{"$f":"SUMIF(Infrastructure!$N$11:$N$1814,Settings!$BG29,Infrastructure!AF$11:AF$1850)","v":0},{"$f":"SUMIF(Infrastructure!$N$11:$N$1814,Settings!$BG29,Infrastructure!AG$11:AG$1850)","v":0},{"$f":"SUMIF(Infrastructure!$N$11:$N$1814,Settings!$BG29,Infrastructure!AH$11:AH$1850)","v":0}]
[null,null,null,null,null,"SIP 13: National school build programme",null,{"$f":"SUMIF(Infrastructure!$N$11:$N$1814,Settings!$BG30,Infrastructure!O$11:O$1850)","v":0},{"$f":"SUMIF(Infrastructure!$N$11:$N$1814,Settings!$BG30,Infrastructure!P$11:P$1850)","v":0},{"$f":"SUMIF(Infrastructure!$N$11:$N$1814,Settings!$BG30,Infrastructure!Q$11:Q$1850)","v":0},{"$f":"SUMIF(Infrastructure!$N$11:$N$1814,Settings!$BG30,Infrastructure!R$11:R$1850)","v":0},{"$f":"SUMIF(Infrastructure!$N$11:$N$1814,Settings!$BG30,Infrastructure!S$11:S$1850)","v":0},{"$f":"SUMIF(Infrastructure!$N$11:$N$1814,Settings!$BG30,Infrastructure!T$11:T$1850)","v":0},{"$f":"SUMIF(Infrastructure!$N$11:$N$1814,Settings!$BG30,Infrastructure!U$11:U$1850)","v":0},{"$f":"SUMIF(Infrastructure!$N$11:$N$1814,Settings!$BG30,Infrastructure!V$11:V$1850)","v":0},{"$f":"SUMIF(Infrastructure!$N$11:$N$1814,Settings!$BG30,Infrastructure!W$11:W$1850)","v":0},{"$f":"SUMIF(Infrastructure!$N$11:$N$1814,Settings!$BG30,Infrastructure!X$11:X$1850)","v":0},{"$f":"SUMIF(Infrastructure!$N$11:$N$1814,Settings!$BG30,Infrastructure!Y$11:Y$1850)","v":0},{"$f":"SUMIF(Infrastructure!$N$11:$N$1814,Settings!$BG30,Infrastructure!Z$11:Z$1850)","v":0},{"$f":"SUMIF(Infrastructure!$N$11:$N$1814,Settings!$BG30,Infrastructure!AA$11:AA$1850)","v":0},{"$f":"SUMIF(Infrastructure!$N$11:$N$1814,Settings!$BG30,Infrastructure!AB$11:AB$1850)","v":0},{"$f":"SUMIF(Infrastructure!$N$11:$N$1814,Settings!$BG30,Infrastructure!AC$11:AC$1850)","v":0},{"$f":"SUMIF(Infrastructure!$N$11:$N$1814,Settings!$BG30,Infrastructure!AD$11:AD$1850)","v":0},{"$f":"SUMIF(Infrastructure!$N$11:$N$1814,Settings!$BG30,Infrastructure!AE$11:AE$1850)","v":0},{"$f":"SUMIF(Infrastructure!$N$11:$N$1814,Settings!$BG30,Infrastructure!AF$11:AF$1850)","v":0},{"$f":"SUMIF(Infrastructure!$N$11:$N$1814,Settings!$BG30,Infrastructure!AG$11:AG$1850)","v":0},{"$f":"SUMIF(Infrastructure!$N$11:$N$1814,Settings!$BG30,Infrastructure!AH$11:AH$1850)","v":0}]
[null,null,null,null,null,"SIP 14: Higher education infrastructure",null,{"$f":"SUMIF(Infrastructure!$N$11:$N$1814,Settings!$BG31,Infrastructure!O$11:O$1850)","v":0},{"$f":"SUMIF(Infrastructure!$N$11:$N$1814,Settings!$BG31,Infrastructure!P$11:P$1850)","v":0},{"$f":"SUMIF(Infrastructure!$N$11:$N$1814,Settings!$BG31,Infrastructure!Q$11:Q$1850)","v":0},{"$f":"SUMIF(Infrastructure!$N$11:$N$1814,Settings!$BG31,Infrastructure!R$11:R$1850)","v":0},{"$f":"SUMIF(Infrastructure!$N$11:$N$1814,Settings!$BG31,Infrastructure!S$11:S$1850)","v":0},{"$f":"SUMIF(Infrastructure!$N$11:$N$1814,Settings!$BG31,Infrastructure!T$11:T$1850)","v":0},{"$f":"SUMIF(Infrastructure!$N$11:$N$1814,Settings!$BG31,Infrastructure!U$11:U$1850)","v":0},{"$f":"SUMIF(Infrastructure!$N$11:$N$1814,Settings!$BG31,Infrastructure!V$11:V$1850)","v":0},{"$f":"SUMIF(Infrastructure!$N$11:$N$1814,Settings!$BG31,Infrastructure!W$11:W$1850)","v":0},{"$f":"SUMIF(Infrastructure!$N$11:$N$1814,Settings!$BG31,Infrastructure!X$11:X$1850)","v":0},{"$f":"SUMIF(Infrastructure!$N$11:$N$1814,Settings!$BG31,Infrastructure!Y$11:Y$1850)","v":0},{"$f":"SUMIF(Infrastructure!$N$11:$N$1814,Settings!$BG31,Infrastructure!Z$11:Z$1850)","v":0},{"$f":"SUMIF(Infrastructure!$N$11:$N$1814,Settings!$BG31,Infrastructure!AA$11:AA$1850)","v":0},{"$f":"SUMIF(Infrastructure!$N$11:$N$1814,Settings!$BG31,Infrastructure!AB$11:AB$1850)","v":0},{"$f":"SUMIF(Infrastructure!$N$11:$N$1814,Settings!$BG31,Infrastructure!AC$11:AC$1850)","v":0},{"$f":"SUMIF(Infrastructure!$N$11:$N$1814,Settings!$BG31,Infrastructure!AD$11:AD$1850)","v":0},{"$f":"SUMIF(Infrastructure!$N$11:$N$1814,Settings!$BG31,Infrastructure!AE$11:AE$1850)","v":0},{"$f":"SUMIF(Infrastructure!$N$11:$N$1814,Settings!$BG31,Infrastructure!AF$11:AF$1850)","v":0},{"$f":"SUMIF(Infrastructure!$N$11:$N$1814,Settings!$BG31,Infrastructure!AG$11:AG$1850)","v":0},{"$f":"SUMIF(Infrastructure!$N$11:$N$1814,Settings!$BG31,Infrastructure!AH$11:AH$1850)","v":0}]
[null,null,null,null,null,"SIP 15: Expanding eccess to communication technology",null,{"$f":"SUMIF(Infrastructure!$N$11:$N$1814,Settings!$BG32,Infrastructure!O$11:O$1850)","v":0},{"$f":"SUMIF(Infrastructure!$N$11:$N$1814,Settings!$BG32,Infrastructure!P$11:P$1850)","v":0},{"$f":"SUMIF(Infrastructure!$N$11:$N$1814,Settings!$BG32,Infrastructure!Q$11:Q$1850)","v":0},{"$f":"SUMIF(Infrastructure!$N$11:$N$1814,Settings!$BG32,Infrastructure!R$11:R$1850)","v":0},{"$f":"SUMIF(Infrastructure!$N$11:$N$1814,Settings!$BG32,Infrastructure!S$11:S$1850)","v":0},{"$f":"SUMIF(Infrastructure!$N$11:$N$1814,Settings!$BG32,Infrastructure!T$11:T$1850)","v":0},{"$f":"SUMIF(Infrastructure!$N$11:$N$1814,Settings!$BG32,Infrastructure!U$11:U$1850)","v":0},{"$f":"SUMIF(Infrastructure!$N$11:$N$1814,Settings!$BG32,Infrastructure!V$11:V$1850)","v":0},{"$f":"SUMIF(Infrastructure!$N$11:$N$1814,Settings!$BG32,Infrastructure!W$11:W$1850)","v":0},{"$f":"SUMIF(Infrastructure!$N$11:$N$1814,Settings!$BG32,Infrastructure!X$11:X$1850)","v":0},{"$f":"SUMIF(Infrastructure!$N$11:$N$1814,Settings!$BG32,Infrastructure!Y$11:Y$1850)","v":0},{"$f":"SUMIF(Infrastructure!$N$11:$N$1814,Settings!$BG32,Infrastructure!Z$11:Z$1850)","v":0},{"$f":"SUMIF(Infrastructure!$N$11:$N$1814,Settings!$BG32,Infrastructure!AA$11:AA$1850)","v":0},{"$f":"SUMIF(Infrastructure!$N$11:$N$1814,Settings!$BG32,Infrastructure!AB$11:AB$1850)","v":0},{"$f":"SUMIF(Infrastructure!$N$11:$N$1814,Settings!$BG32,Infrastructure!AC$11:AC$1850)","v":0},{"$f":"SUMIF(Infrastructure!$N$11:$N$1814,Settings!$BG32,Infrastructure!AD$11:AD$1850)","v":0},{"$f":"SUMIF(Infrastructure!$N$11:$N$1814,Settings!$BG32,Infrastructure!AE$11:AE$1850)","v":0},{"$f":"SUMIF(Infrastructure!$N$11:$N$1814,Settings!$BG32,Infrastructure!AF$11:AF$1850)","v":0},{"$f":"SUMIF(Infrastructure!$N$11:$N$1814,Settings!$BG32,Infrastructure!AG$11:AG$1850)","v":0},{"$f":"SUMIF(Infrastructure!$N$11:$N$1814,Settings!$BG32,Infrastructure!AH$11:AH$1850)","v":0}]
[null,null,null,null,null,"SIP 16: SKA and Meerkat",null,{"$f":"SUMIF(Infrastructure!$N$11:$N$1814,Settings!$BG33,Infrastructure!O$11:O$1850)","v":0},{"$f":"SUMIF(Infrastructure!$N$11:$N$1814,Settings!$BG33,Infrastructure!P$11:P$1850)","v":0},{"$f":"SUMIF(Infrastructure!$N$11:$N$1814,Settings!$BG33,Infrastructure!Q$11:Q$1850)","v":0},{"$f":"SUMIF(Infrastructure!$N$11:$N$1814,Settings!$BG33,Infrastructure!R$11:R$1850)","v":0},{"$f":"SUMIF(Infrastructure!$N$11:$N$1814,Settings!$BG33,Infrastructure!S$11:S$1850)","v":0},{"$f":"SUMIF(Infrastructure!$N$11:$N$1814,Settings!$BG33,Infrastructure!T$11:T$1850)","v":0},{"$f":"SUMIF(Infrastructure!$N$11:$N$1814,Settings!$BG33,Infrastructure!U$11:U$1850)","v":0},{"$f":"SUMIF(Infrastructure!$N$11:$N$1814,Settings!$BG33,Infrastructure!V$11:V$1850)","v":0},{"$f":"SUMIF(Infrastructure!$N$11:$N$1814,Settings!$BG33,Infrastructure!W$11:W$1850)","v":0},{"$f":"SUMIF(Infrastructure!$N$11:$N$1814,Settings!$BG33,Infrastructure!X$11:X$1850)","v":0},{"$f":"SUMIF(Infrastructure!$N$11:$N$1814,Settings!$BG33,Infrastructure!Y$11:Y$1850)","v":0},{"$f":"SUMIF(Infrastructure!$N$11:$N$1814,Settings!$BG33,Infrastructure!Z$11:Z$1850)","v":0},{"$f":"SUMIF(Infrastructure!$N$11:$N$1814,Settings!$BG33,Infrastructure!AA$11:AA$1850)","v":0},{"$f":"SUMIF(Infrastructure!$N$11:$N$1814,Settings!$BG33,Infrastructure!AB$11:AB$1850)","v":0},{"$f":"SUMIF(Infrastructure!$N$11:$N$1814,Settings!$BG33,Infrastructure!AC$11:AC$1850)","v":0},{"$f":"SUMIF(Infrastructure!$N$11:$N$1814,Settings!$BG33,Infrastructure!AD$11:AD$1850)","v":0},{"$f":"SUMIF(Infrastructure!$N$11:$N$1814,Settings!$BG33,Infrastructure!AE$11:AE$1850)","v":0},{"$f":"SUMIF(Infrastructure!$N$11:$N$1814,Settings!$BG33,Infrastructure!AF$11:AF$1850)","v":0},{"$f":"SUMIF(Infrastructure!$N$11:$N$1814,Settings!$BG33,Infrastructure!AG$11:AG$1850)","v":0},{"$f":"SUMIF(Infrastructure!$N$11:$N$1814,Settings!$BG33,Infrastructure!AH$11:AH$1850)","v":0}]
[null,null,null,null,null,"SIP 17: Regional integration for African Cooperation and development",null,{"$f":"SUMIF(Infrastructure!$N$11:$N$1814,Settings!$BG34,Infrastructure!O$11:O$1850)","v":0},{"$f":"SUMIF(Infrastructure!$N$11:$N$1814,Settings!$BG34,Infrastructure!P$11:P$1850)","v":0},{"$f":"SUMIF(Infrastructure!$N$11:$N$1814,Settings!$BG34,Infrastructure!Q$11:Q$1850)","v":0},{"$f":"SUMIF(Infrastructure!$N$11:$N$1814,Settings!$BG34,Infrastructure!R$11:R$1850)","v":0},{"$f":"SUMIF(Infrastructure!$N$11:$N$1814,Settings!$BG34,Infrastructure!S$11:S$1850)","v":0},{"$f":"SUMIF(Infrastructure!$N$11:$N$1814,Settings!$BG34,Infrastructure!T$11:T$1850)","v":0},{"$f":"SUMIF(Infrastructure!$N$11:$N$1814,Settings!$BG34,Infrastructure!U$11:U$1850)","v":0},{"$f":"SUMIF(Infrastructure!$N$11:$N$1814,Settings!$BG34,Infrastructure!V$11:V$1850)","v":0},{"$f":"SUMIF(Infrastructure!$N$11:$N$1814,Settings!$BG34,Infrastructure!W$11:W$1850)","v":0},{"$f":"SUMIF(Infrastructure!$N$11:$N$1814,Settings!$BG34,Infrastructure!X$11:X$1850)","v":0},{"$f":"SUMIF(Infrastructure!$N$11:$N$1814,Settings!$BG34,Infrastructure!Y$11:Y$1850)","v":0},{"$f":"SUMIF(Infrastructure!$N$11:$N$1814,Settings!$BG34,Infrastructure!Z$11:Z$1850)","v":0},{"$f":"SUMIF(Infrastructure!$N$11:$N$1814,Settings!$BG34,Infrastructure!AA$11:AA$1850)","v":0},{"$f":"SUMIF(Infrastructure!$N$11:$N$1814,Settings!$BG34,Infrastructure!AB$11:AB$1850)","v":0},{"$f":"SUMIF(Infrastructure!$N$11:$N$1814,Settings!$BG34,Infrastructure!AC$11:AC$1850)","v":0},{"$f":"SUMIF(Infrastructure!$N$11:$N$1814,Settings!$BG34,Infrastructure!AD$11:AD$1850)","v":0},{"$f":"SUMIF(Infrastructure!$N$11:$N$1814,Settings!$BG34,Infrastructure!AE$11:AE$1850)","v":0},{"$f":"SUMIF(Infrastructure!$N$11:$N$1814,Settings!$BG34,Infrastructure!AF$11:AF$1850)","v":0},{"$f":"SUMIF(Infrastructure!$N$11:$N$1814,Settings!$BG34,Infrastructure!AG$11:AG$1850)","v":0},{"$f":"SUMIF(Infrastructure!$N$11:$N$1814,Settings!$BG34,Infrastructure!AH$11:AH$1850)","v":0}]
[null,null,null,null,null,"SIP 18. Water and sanitation master plan",null,{"$f":"SUMIF(Infrastructure!$N$11:$N$1814,Settings!$BG35,Infrastructure!O$11:O$1850)","v":0},{"$f":"SUMIF(Infrastructure!$N$11:$N$1814,Settings!$BG35,Infrastructure!P$11:P$1850)","v":0},{"$f":"SUMIF(Infrastructure!$N$11:$N$1814,Settings!$BG35,Infrastructure!Q$11:Q$1850)","v":0},{"$f":"SUMIF(Infrastructure!$N$11:$N$1814,Settings!$BG35,Infrastructure!R$11:R$1850)","v":0},{"$f":"SUMIF(Infrastructure!$N$11:$N$1814,Settings!$BG35,Infrastructure!S$11:S$1850)","v":0},{"$f":"SUMIF(Infrastructure!$N$11:$N$1814,Settings!$BG35,Infrastructure!T$11:T$1850)","v":0},{"$f":"SUMIF(Infrastructure!$N$11:$N$1814,Settings!$BG35,Infrastructure!U$11:U$1850)","v":0},{"$f":"SUMIF(Infrastructure!$N$11:$N$1814,Settings!$BG35,Infrastructure!V$11:V$1850)","v":0},{"$f":"SUMIF(Infrastructure!$N$11:$N$1814,Settings!$BG35,Infrastructure!W$11:W$1850)","v":0},{"$f":"SUMIF(Infrastructure!$N$11:$N$1814,Settings!$BG35,Infrastructure!X$11:X$1850)","v":0},{"$f":"SUMIF(Infrastructure!$N$11:$N$1814,Settings!$BG35,Infrastructure!Y$11:Y$1850)","v":0},{"$f":"SUMIF(Infrastructure!$N$11:$N$1814,Settings!$BG35,Infrastructure!Z$11:Z$1850)","v":0},{"$f":"SUMIF(Infrastructure!$N$11:$N$1814,Settings!$BG35,Infrastructure!AA$11:AA$1850)","v":0},{"$f":"SUMIF(Infrastructure!$N$11:$N$1814,Settings!$BG35,Infrastructure!AB$11:AB$1850)","v":0},{"$f":"SUMIF(Infrastructure!$N$11:$N$1814,Settings!$BG35,Infrastructure!AC$11:AC$1850)","v":0},{"$f":"SUMIF(Infrastructure!$N$11:$N$1814,Settings!$BG35,Infrastructure!AD$11:AD$1850)","v":0},{"$f":"SUMIF(Infrastructure!$N$11:$N$1814,Settings!$BG35,Infrastructure!AE$11:AE$1850)","v":0},{"$f":"SUMIF(Infrastructure!$N$11:$N$1814,Settings!$BG35,Infrastructure!AF$11:AF$1850)","v":0},{"$f":"SUMIF(Infrastructure!$N$11:$N$1814,Settings!$BG35,Infrastructure!AG$11:AG$1850)","v":0},{"$f":"SUMIF(Infrastructure!$N$11:$N$1814,Settings!$BG35,Infrastructure!AH$11:AH$1850)","v":0}]
[null,null,null,null,null,"Total Infrastructure",null,{"$f":"SUM(H44:H62)","v":298152},{"$f":"SUM(I44:I62)","v":0},{"$f":"SUM(J44:J62)","v":0},0,201285,201285,0,58884,58884,0,37983,37983,0,0,0,0,0,0,0,0]
[]
[]
[null,null,null,null,null,"SCOA Item (Departmental infrastructure)",null,{"$f":"+H9","v":"Total Project Cost"},{"$f":"+I9","v":"2022/23"},"2023/24","2024/25",{"$f":"+L9","v":"2025/26"},null,null,"2026/27",null,null,"2027/28",null,null,"2028/29","2029/30","2030/31","2031/32","2032/33","2033/34","2034/35"]
[null,null,null,null,null,"Rand thousand",null,null,{"$f":"Hist_year3RestatedAudited","v":"Audited\noutcome"},{"$f":"Hist_year2RestatedAudited","v":"Audited\noutcome"},{"$f":"Hist_year1Audited","v":"Audited\noutcome"},{"$f":"Cur_YearBudgEst","v":"Budget\nestimate"},{"$f":"Cur_YearApprovedBudg","v":"Approved budget"},{"$f":"Cur_YearChangeFrRevBudg","v":"Changes from \nbudget estimate"},{"$f":"MTEF1BudgEst","v":"Budget\nestimate"},{"$f":"MTEF1RevBudgEst","v":"Revised\nbudget\nestimate"},{"$f":"MTEF1_ChangeFrBudgEst","v":"Changes from budget estimate"},{"$f":"MTEF2BudgEst","v":"Budget\nestimate"},{"$f":"MTEF2RevBudgEst","v":"Revised\nbudget\nestimate"},{"$f":"MTEF2_ChangeFrBudgEst","v":"Changes from budget estimate"},{"$f":"MTEF3PlanBudgetEst","v":"Planning\nbudget \nestimate"},"Long term planning"]
[null,null,null,null,null,"Residential buildings",null,{"$f":"SUMIF(Infrastructure!$M$11:$M$1814,Settings!$BL17,Infrastructure!O$11:O$1850)","v":0},{"$f":"SUMIF(Infrastructure!$M$11:$M$1814,Settings!$BL17,Infrastructure!P$11:P$1850)","v":0},{"$f":"SUMIF(Infrastructure!$M$11:$M$1814,Settings!$BL17,Infrastructure!Q$11:Q$1850)","v":0},{"$f":"SUMIF(Infrastructure!$M$11:$M$1814,Settings!$BL17,Infrastructure!R$11:R$1850)","v":0},{"$f":"SUMIF(Infrastructure!$M$11:$M$1814,Settings!$BL17,Infrastructure!S$11:S$1850)","v":0},{"$f":"SUMIF(Infrastructure!$M$11:$M$1814,Settings!$BL17,Infrastructure!T$11:T$1850)","v":0},{"$f":"SUMIF(Infrastructure!$M$11:$M$1814,Settings!$BL17,Infrastructure!U$11:U$1850)","v":0},{"$f":"SUMIF(Infrastructure!$M$11:$M$1814,Settings!$BL17,Infrastructure!V$11:V$1850)","v":0},{"$f":"SUMIF(Infrastructure!$M$11:$M$1814,Settings!$BL17,Infrastructure!W$11:W$1850)","v":0},{"$f":"SUMIF(Infrastructure!$M$11:$M$1814,Settings!$BL17,Infrastructure!X$11:X$1850)","v":0},{"$f":"SUMIF(Infrastructure!$M$11:$M$1814,Settings!$BL17,Infrastructure!Y$11:Y$1850)","v":0},{"$f":"SUMIF(Infrastructure!$M$11:$M$1814,Settings!$BL17,Infrastructure!Z$11:Z$1850)","v":0},{"$f":"SUMIF(Infrastructure!$M$11:$M$1814,Settings!$BL17,Infrastructure!AA$11:AA$1850)","v":0},{"$f":"SUMIF(Infrastructure!$M$11:$M$1814,Settings!$BL17,Infrastructure!AB$11:AB$1850)","v":0},{"$f":"SUMIF(Infrastructure!$M$11:$M$1814,Settings!$BL17,Infrastructure!AC$11:AC$1850)","v":0},{"$f":"SUMIF(Infrastructure!$M$11:$M$1814,Settings!$BL17,Infrastructure!AD$11:AD$1850)","v":0},{"$f":"SUMIF(Infrastructure!$M$11:$M$1814,Settings!$BL17,Infrastructure!AE$11:AE$1850)","v":0},{"$f":"SUMIF(Infrastructure!$M$11:$M$1814,Settings!$BL17,Infrastructure!AF$11:AF$1850)","v":0},{"$f":"SUMIF(Infrastructure!$M$11:$M$1814,Settings!$BL17,Infrastructure!AG$11:AG$1850)","v":0},{"$f":"SUMIF(Infrastructure!$M$11:$M$1814,Settings!$BL17,Infrastructure!AH$11:AH$1850)","v":0}]
[null,null,null,null,null,"Non-residential buildings",null,{"$f":"SUMIF(Infrastructure!$M$11:$M$1814,Settings!$BL18,Infrastructure!O$11:O$1850)","v":0},{"$f":"SUMIF(Infrastructure!$M$11:$M$1814,Settings!$BL18,Infrastructure!P$11:P$1850)","v":0},{"$f":"SUMIF(Infrastructure!$M$11:$M$1814,Settings!$BL18,Infrastructure!Q$11:Q$1850)","v":0},{"$f":"SUMIF(Infrastructure!$M$11:$M$1814,Settings!$BL18,Infrastructure!R$11:R$1850)","v":0},{"$f":"SUMIF(Infrastructure!$M$11:$M$1814,Settings!$BL18,Infrastructure!S$11:S$1850)","v":0},{"$f":"SUMIF(Infrastructure!$M$11:$M$1814,Settings!$BL18,Infrastructure!T$11:T$1850)","v":0},{"$f":"SUMIF(Infrastructure!$M$11:$M$1814,Settings!$BL18,Infrastructure!U$11:U$1850)","v":0},{"$f":"SUMIF(Infrastructure!$M$11:$M$1814,Settings!$BL18,Infrastructure!V$11:V$1850)","v":0},{"$f":"SUMIF(Infrastructure!$M$11:$M$1814,Settings!$BL18,Infrastructure!W$11:W$1850)","v":0},{"$f":"SUMIF(Infrastructure!$M$11:$M$1814,Settings!$BL18,Infrastructure!X$11:X$1850)","v":0},{"$f":"SUMIF(Infrastructure!$M$11:$M$1814,Settings!$BL18,Infrastructure!Y$11:Y$1850)","v":0},{"$f":"SUMIF(Infrastructure!$M$11:$M$1814,Settings!$BL18,Infrastructure!Z$11:Z$1850)","v":0},{"$f":"SUMIF(Infrastructure!$M$11:$M$1814,Settings!$BL18,Infrastructure!AA$11:AA$1850)","v":0},{"$f":"SUMIF(Infrastructure!$M$11:$M$1814,Settings!$BL18,Infrastructure!AB$11:AB$1850)","v":0},{"$f":"SUMIF(Infrastructure!$M$11:$M$1814,Settings!$BL18,Infrastructure!AC$11:AC$1850)","v":0},{"$f":"SUMIF(Infrastructure!$M$11:$M$1814,Settings!$BL18,Infrastructure!AD$11:AD$1850)","v":0},{"$f":"SUMIF(Infrastructure!$M$11:$M$1814,Settings!$BL18,Infrastructure!AE$11:AE$1850)","v":0},{"$f":"SUMIF(Infrastructure!$M$11:$M$1814,Settings!$BL18,Infrastructure!AF$11:AF$1850)","v":0},{"$f":"SUMIF(Infrastructure!$M$11:$M$1814,Settings!$BL18,Infrastructure!AG$11:AG$1850)","v":0},{"$f":"SUMIF(Infrastructure!$M$11:$M$1814,Settings!$BL18,Infrastructure!AH$11:AH$1850)","v":0}]
[null,null,null,null,null,"Investment property",null,{"$f":"SUMIF(Infrastructure!$M$11:$M$1814,Settings!$BL19,Infrastructure!O$11:O$1850)","v":0},{"$f":"SUMIF(Infrastructure!$M$11:$M$1814,Settings!$BL19,Infrastructure!P$11:P$1850)","v":0},{"$f":"SUMIF(Infrastructure!$M$11:$M$1814,Settings!$BL19,Infrastructure!Q$11:Q$1850)","v":0},{"$f":"SUMIF(Infrastructure!$M$11:$M$1814,Settings!$BL19,Infrastructure!R$11:R$1850)","v":0},{"$f":"SUMIF(Infrastructure!$M$11:$M$1814,Settings!$BL19,Infrastructure!S$11:S$1850)","v":0},{"$f":"SUMIF(Infrastructure!$M$11:$M$1814,Settings!$BL19,Infrastructure!T$11:T$1850)","v":0},{"$f":"SUMIF(Infrastructure!$M$11:$M$1814,Settings!$BL19,Infrastructure!U$11:U$1850)","v":0},{"$f":"SUMIF(Infrastructure!$M$11:$M$1814,Settings!$BL19,Infrastructure!V$11:V$1850)","v":0},{"$f":"SUMIF(Infrastructure!$M$11:$M$1814,Settings!$BL19,Infrastructure!W$11:W$1850)","v":0},{"$f":"SUMIF(Infrastructure!$M$11:$M$1814,Settings!$BL19,Infrastructure!X$11:X$1850)","v":0},{"$f":"SUMIF(Infrastructure!$M$11:$M$1814,Settings!$BL19,Infrastructure!Y$11:Y$1850)","v":0},{"$f":"SUMIF(Infrastructure!$M$11:$M$1814,Settings!$BL19,Infrastructure!Z$11:Z$1850)","v":0},{"$f":"SUMIF(Infrastructure!$M$11:$M$1814,Settings!$BL19,Infrastructure!AA$11:AA$1850)","v":0},{"$f":"SUMIF(Infrastructure!$M$11:$M$1814,Settings!$BL19,Infrastructure!AB$11:AB$1850)","v":0},{"$f":"SUMIF(Infrastructure!$M$11:$M$1814,Settings!$BL19,Infrastructure!AC$11:AC$1850)","v":0},{"$f":"SUMIF(Infrastructure!$M$11:$M$1814,Settings!$BL19,Infrastructure!AD$11:AD$1850)","v":0},{"$f":"SUMIF(Infrastructure!$M$11:$M$1814,Settings!$BL19,Infrastructure!AE$11:AE$1850)","v":0},{"$f":"SUMIF(Infrastructure!$M$11:$M$1814,Settings!$BL19,Infrastructure!AF$11:AF$1850)","v":0},{"$f":"SUMIF(Infrastructure!$M$11:$M$1814,Settings!$BL19,Infrastructure!AG$11:AG$1850)","v":0},{"$f":"SUMIF(Infrastructure!$M$11:$M$1814,Settings!$BL19,Infrastructure!AH$11:AH$1850)","v":0}]
[null,null,null,null,null,"Heritage assets",null,{"$f":"SUMIF(Infrastructure!$M$11:$M$1814,Settings!$BL20,Infrastructure!O$11:O$1850)","v":0},{"$f":"SUMIF(Infrastructure!$M$11:$M$1814,Settings!$BL20,Infrastructure!P$11:P$1850)","v":0},{"$f":"SUMIF(Infrastructure!$M$11:$M$1814,Settings!$BL20,Infrastructure!Q$11:Q$1850)","v":0},{"$f":"SUMIF(Infrastructure!$M$11:$M$1814,Settings!$BL20,Infrastructure!R$11:R$1850)","v":0},{"$f":"SUMIF(Infrastructure!$M$11:$M$1814,Settings!$BL20,Infrastructure!S$11:S$1850)","v":0},{"$f":"SUMIF(Infrastructure!$M$11:$M$1814,Settings!$BL20,Infrastructure!T$11:T$1850)","v":0},{"$f":"SUMIF(Infrastructure!$M$11:$M$1814,Settings!$BL20,Infrastructure!U$11:U$1850)","v":0},{"$f":"SUMIF(Infrastructure!$M$11:$M$1814,Settings!$BL20,Infrastructure!V$11:V$1850)","v":0},{"$f":"SUMIF(Infrastructure!$M$11:$M$1814,Settings!$BL20,Infrastructure!W$11:W$1850)","v":0},{"$f":"SUMIF(Infrastructure!$M$11:$M$1814,Settings!$BL20,Infrastructure!X$11:X$1850)","v":0},{"$f":"SUMIF(Infrastructure!$M$11:$M$1814,Settings!$BL20,Infrastructure!Y$11:Y$1850)","v":0},{"$f":"SUMIF(Infrastructure!$M$11:$M$1814,Settings!$BL20,Infrastructure!Z$11:Z$1850)","v":0},{"$f":"SUMIF(Infrastructure!$M$11:$M$1814,Settings!$BL20,Infrastructure!AA$11:AA$1850)","v":0},{"$f":"SUMIF(Infrastructure!$M$11:$M$1814,Settings!$BL20,Infrastructure!AB$11:AB$1850)","v":0},{"$f":"SUMIF(Infrastructure!$M$11:$M$1814,Settings!$BL20,Infrastructure!AC$11:AC$1850)","v":0},{"$f":"SUMIF(Infrastructure!$M$11:$M$1814,Settings!$BL20,Infrastructure!AD$11:AD$1850)","v":0},{"$f":"SUMIF(Infrastructure!$M$11:$M$1814,Settings!$BL20,Infrastructure!AE$11:AE$1850)","v":0},{"$f":"SUMIF(Infrastructure!$M$11:$M$1814,Settings!$BL20,Infrastructure!AF$11:AF$1850)","v":0},{"$f":"SUMIF(Infrastructure!$M$11:$M$1814,Settings!$BL20,Infrastructure!AG$11:AG$1850)","v":0},{"$f":"SUMIF(Infrastructure!$M$11:$M$1814,Settings!$BL20,Infrastructure!AH$11:AH$1850)","v":0}]
[null,null,null,null,null,"Other fixed structures",null,{"$f":"SUMIF(Infrastructure!$M$11:$M$1814,Settings!$BL21,Infrastructure!O$11:O$1850)","v":298152},{"$f":"SUMIF(Infrastructure!$M$11:$M$1814,Settings!$BL21,Infrastructure!P$11:P$1850)","v":0},{"$f":"SUMIF(Infrastructure!$M$11:$M$1814,Settings!$BL21,Infrastructure!Q$11:Q$1850)","v":0},{"$f":"SUMIF(Infrastructure!$M$11:$M$1814,Settings!$BL21,Infrastructure!R$11:R$1850)","v":0},{"$f":"SUMIF(Infrastructure!$M$11:$M$1814,Settings!$BL21,Infrastructure!S$11:S$1850)","v":201285},{"$f":"SUMIF(Infrastructure!$M$11:$M$1814,Settings!$BL21,Infrastructure!T$11:T$1850)","v":201285},{"$f":"SUMIF(Infrastructure!$M$11:$M$1814,Settings!$BL21,Infrastructure!U$11:U$1850)","v":0},{"$f":"SUMIF(Infrastructure!$M$11:$M$1814,Settings!$BL21,Infrastructure!V$11:V$1850)","v":58884},{"$f":"SUMIF(Infrastructure!$M$11:$M$1814,Settings!$BL21,Infrastructure!W$11:W$1850)","v":58884},{"$f":"SUMIF(Infrastructure!$M$11:$M$1814,Settings!$BL21,Infrastructure!X$11:X$1850)","v":0},{"$f":"SUMIF(Infrastructure!$M$11:$M$1814,Settings!$BL21,Infrastructure!Y$11:Y$1850)","v":37983},{"$f":"SUMIF(Infrastructure!$M$11:$M$1814,Settings!$BL21,Infrastructure!Z$11:Z$1850)","v":37983},{"$f":"SUMIF(Infrastructure!$M$11:$M$1814,Settings!$BL21,Infrastructure!AA$11:AA$1850)","v":0},{"$f":"SUMIF(Infrastructure!$M$11:$M$1814,Settings!$BL21,Infrastructure!AB$11:AB$1850)","v":0},{"$f":"SUMIF(Infrastructure!$M$11:$M$1814,Settings!$BL21,Infrastructure!AC$11:AC$1850)","v":0},{"$f":"SUMIF(Infrastructure!$M$11:$M$1814,Settings!$BL21,Infrastructure!AD$11:AD$1850)","v":0},{"$f":"SUMIF(Infrastructure!$M$11:$M$1814,Settings!$BL21,Infrastructure!AE$11:AE$1850)","v":0},{"$f":"SUMIF(Infrastructure!$M$11:$M$1814,Settings!$BL21,Infrastructure!AF$11:AF$1850)","v":0},{"$f":"SUMIF(Infrastructure!$M$11:$M$1814,Settings!$BL21,Infrastructure!AG$11:AG$1850)","v":0},{"$f":"SUMIF(Infrastructure!$M$11:$M$1814,Settings!$BL21,Infrastructure!AH$11:AH$1850)","v":0}]
[null,null,null,null,null,"Total Infrastructure",null,{"$f":"SUM(H68:H72)","v":298152},{"$f":"SUM(I68:I72)","v":0},0,0,201285,201285,0,58884,58884,0,37983,37983,0,0,0,0,0,0,0,0]

{"sheet":"Checks","index":38,"n_rows":208,"n_cols":55,"rows_kept":208,"cut":false,"hidden":false,"merged":[[57,15,57,16],[57,13,57,14],[7,5,8,5],[57,9,57,10],[57,11,57,12]]}
[]
[]
[]
[]
[]
[null,null,null,null,null,"PE No",{"$f":"Settings!O2","v":"PE126"}]
[null,null,null,null,null,"Entity name",{"$f":"Settings!$E$2","v":"South African Revenue Service"}]
[null,null,null,null,null,"Checks",null," Audited outcome ",null,null,"Revised estimate"," Medium-term estimate"]
[null,null,null,null,null,null,null,{"$f":"MyYearM3","v":"2022/23"},{"$f":"MyYearM2","v":"2023/24"},{"$f":"MyYearM1","v":"2024/25"},{"$f":"MyYear0","v":"2025/26"},{"$f":"MyYearP1","v":"2026/27"},{"$f":"MyYearP2","v":"2027/28"},{"$f":"MyYearP3","v":"2028/29"}]
[null,null,null,null,null,"ENE Summary",null,"There should be no balances here!!",null,null,null,null,null,null,null,null,null,null,null,null,null,null,null,null,null,null,null,null,null,null,null,null,null,null,null,null,null,null,null,null,null,null,null,null,null,null,null,null,null,null,null,null,"Total",null,"Check"]
[null,null,null,null,null,"Objectives/Activities",null,{"$f":"ROUND(ENESummary!G28,0)","v":-1},{"$f":"ROUND(ENESummary!H28,0)","v":0},{"$f":"ROUND(ENESummary!I28,0)","v":0},{"$f":"ROUND(ENESummary!J28,0)","v":0},{"$f":"ROUND(ENESummary!M28,0)","v":0},{"$f":"ROUND(ENESummary!N28,0)","v":0},{"$f":"ROUND(ENESummary!O28,0)","v":0},null,null,null,null,null,null,null,null,null,null,null,null,null,null,null,null,null,null,null,null,null,null,null,null,null,null,null,null,null,null,null,null,null,null,null,null,null,null,{"$f":"SUM(H11:N11)","v":-1},null,{"$f":"IF(OR(BA11>10,BA11<-10),1,0)","v":0}]
[]
[null,null,null,null,null,"Objectives/Activities",null,null,null,null,null,null,null,null,null,null,null,null,null,null,null,null,null,null,null,null,null,null,null,null,null,null,null,null,null,null,null,null,null,null,null,null,null,null,null,null,null,null,null,null,null,null,{"$f":"SUM(BA14:BA28)","v":0},null,{"$f":"IF(OR(BA13>10,BA13<-10),1,0)","v":0}]
[null,null,null,null,null,{"$f":"Admin!F37","v":"Administration"},null,{"$f":"Admin!I142","v":0},{"$f":"Admin!J142","v":0},{"$f":"Admin!L142","v":0},{"$f":"Admin!N142","v":0},{"$f":"Admin!Q142","v":0},{"$f":"Admin!T142","v":0},{"$f":"Admin!V142","v":0},null,null,null,null,null,null,null,null,null,null,null,null,null,null,null,null,null,null,null,null,null,null,null,null,null,null,null,null,null,null,null,null,null,null,null,null,null,null,{"$f":"SUM(H14:N14)","v":0}]
[null,null,null,null,null,{"$f":"'2'!F37","v":"Deputy commissioner: Taxpayer engagement and operations "},null,{"$f":"'2'!I142","v":0},{"$f":"'2'!J142","v":0},{"$f":"'2'!L142","v":0},{"$f":"'2'!N142","v":0},{"$f":"'2'!Q142","v":0},{"$f":"'2'!T142","v":0},{"$f":"'2'!V142","v":0},null,null,null,null,null,null,null,null,null,null,null,null,null,null,null,null,null,null,null,null,null,null,null,null,null,null,null,null,null,null,null,null,null,null,null,null,null,null,0]
[null,null,null,null,null,{"$f":"'3'!F37","v":"Deputy commissioner: Strategy, enabling and modernisation"},null,{"$f":"'3'!I142","v":0},{"$f":"'3'!J142","v":0},{"$f":"'3'!L142","v":0},{"$f":"'3'!N142","v":0},{"$f":"'3'!Q142","v":0},{"$f":"'3'!T142","v":0},{"$f":"'3'!V142","v":0},null,null,null,null,null,null,null,null,null,null,null,null,null,null,null,null,null,null,null,null,null,null,null,null,null,null,null,null,null,null,null,null,null,null,null,null,null,null,0]
[null,null,null,null,null,{"$f":"'4'!F37","v":"Office of the Tax Ombud "},null,{"$f":"'4'!I142","v":0},{"$f":"'4'!J142","v":0},{"$f":"'4'!L142","v":0},{"$f":"'4'!N142","v":0},{"$f":"'4'!Q142","v":0},{"$f":"'4'!T142","v":0},{"$f":"'4'!V142","v":0},null,null,null,null,null,null,null,null,null,null,null,null,null,null,null,null,null,null,null,null,null,null,null,null,null,null,null,null,null,null,null,null,null,null,null,null,null,null,0]
[null,null,null,null,null,{"$f":"'5'!F37","v":"Projects"},null,{"$f":"'5'!I142","v":0},{"$f":"'5'!J142","v":0},{"$f":"'5'!L142","v":0},{"$f":"'5'!N142","v":0},{"$f":"'5'!Q142","v":0},{"$f":"'5'!T142","v":0},{"$f":"'5'!V142","v":0},null,null,null,null,null,null,null,null,null,null,null,null,null,null,null,null,null,null,null,null,null,null,null,null,null,null,null,null,null,null,null,null,null,null,null,null,null,null,0]
[null,null,null,null,null,{"$f":"'6'!F37","v":0},null,{"$f":"'6'!I142","v":0},{"$f":"'6'!J142","v":0},{"$f":"'6'!L142","v":0},{"$f":"'6'!N142","v":0},{"$f":"'6'!Q142","v":0},{"$f":"'6'!T142","v":0},{"$f":"'6'!V142","v":0},null,null,null,null,null,null,null,null,null,null,null,null,null,null,null,null,null,null,null,null,null,null,null,null,null,null,null,null,null,null,null,null,null,null,null,null,null,null,0]
[null,null,null,null,null,{"$f":"'7'!F37","v":0},null,{"$f":"'7'!I142","v":0},{"$f":"'7'!J142","v":0},{"$f":"'7'!L142","v":0},{"$f":"'7'!N142","v":0},{"$f":"'7'!Q142","v":0},{"$f":"'7'!T142","v":0},{"$f":"'7'!V142","v":0},null,null,null,null,null,null,null,null,null,null,null,null,null,null,null,null,null,null,null,null,null,null,null,null,null,null,null,null,null,null,null,null,null,null,null,null,null,null,0]
[null,null,null,null,null,{"$f":"'8'!F37","v":0},null,{"$f":"'8'!I142","v":0},{"$f":"'8'!J142","v":0},{"$f":"'8'!L142","v":0},{"$f":"'8'!N142","v":0},{"$f":"'8'!Q142","v":0},{"$f":"'8'!T142","v":0},{"$f":"'8'!V142","v":0},null,null,null,null,null,null,null,null,null,null,null,null,null,null,null,null,null,null,null,null,null,null,null,null,null,null,null,null,null,null,null,null,null,null,null,null,null,null,0]
[null,null,null,null,null,{"$f":"'9'!F37","v":0},null,{"$f":"'9'!I142","v":0},{"$f":"'9'!J142","v":0},{"$f":"'9'!L142","v":0},{"$f":"'9'!N142","v":0},{"$f":"'9'!Q142","v":0},{"$f":"'9'!T142","v":0},{"$f":"'9'!V142","v":0},null,null,null,null,null,null,null,null,null,null,null,null,null,null,null,null,null,null,null,null,null,null,null,null,null,null,null,null,null,null,null,null,null,null,null,null,null,null,0]
[null,null,null,null,null,{"$f":"'10'!F37","v":0},null,{"$f":"'10'!I142","v":0},{"$f":"'10'!J142","v":0},{"$f":"'10'!L142","v":0},{"$f":"'10'!N142","v":0},{"$f":"'10'!Q142","v":0},{"$f":"'10'!T142","v":0},{"$f":"'10'!V142","v":0},null,null,null,null,null,null,null,null,null,null,null,null,null,null,null,null,null,null,null,null,null,null,null,null,null,null,null,null,null,null,null,null,null,null,null,null,null,null,0]
[null,null,null,null,null,{"$f":"'11'!F37","v":0},null,{"$f":"'11'!I142","v":0},{"$f":"'11'!J142","v":0},{"$f":"'11'!L142","v":0},{"$f":"'11'!N142","v":0},{"$f":"'11'!Q142","v":0},{"$f":"'11'!T142","v":0},{"$f":"'11'!V142","v":0},null,null,null,null,null,null,null,null,null,null,null,null,null,null,null,null,null,null,null,null,null,null,null,null,null,null,null,null,null,null,null,null,null,null,null,null,null,null,0]
[null,null,null,null,null,{"$f":"'12'!F37","v":0},null,{"$f":"'12'!I142","v":0},{"$f":"'12'!J142","v":0},{"$f":"'12'!L142","v":0},{"$f":"'12'!N142","v":0},{"$f":"'12'!Q142","v":0},{"$f":"'12'!T142","v":0},{"$f":"'12'!V142","v":0},null,null,null,null,null,null,null,null,null,null,null,null,null,null,null,null,null,null,null,null,null,null,null,null,null,null,null,null,null,null,null,null,null,null,null,null,null,null,0]
[null,null,null,null,null,{"$f":"'13'!F37","v":0},null,{"$f":"'13'!I142","v":0},{"$f":"'13'!J142","v":0},{"$f":"'13'!L142","v":0},{"$f":"'13'!N142","v":0},{"$f":"'13'!Q142","v":0},{"$f":"'13'!T142","v":0},{"$f":"'13'!V142","v":0},null,null,null,null,null,null,null,null,null,null,null,null,null,null,null,null,null,null,null,null,null,null,null,null,null,null,null,null,null,null,null,null,null,null,null,null,null,null,0]
[null,null,null,null,null,{"$f":"'14'!F37","v":0},null,{"$f":"'14'!I142","v":0},{"$f":"'14'!J142","v":0},{"$f":"'14'!L142","v":0},{"$f":"'14'!N142","v":0},{"$f":"'14'!Q142","v":0},{"$f":"'14'!T142","v":0},{"$f":"'14'!V142","v":0},null,null,null,null,null,null,null,null,null,null,null,null,null,null,null,null,null,null,null,null,null,null,null,null,null,null,null,null,null,null,null,null,null,null,null,null,null,null,0]
[null,null,null,null,null,{"$f":"'15'!F37","v":0},null,{"$f":"'15'!I142","v":0},{"$f":"'15'!J142","v":0},{"$f":"'15'!L142","v":0},{"$f":"'15'!N142","v":0},{"$f":"'15'!Q142","v":0},{"$f":"'15'!T142","v":0},{"$f":"'15'!V142","v":0},null,null,null,null,null,null,null,null,null,null,null,null,null,null,null,null,null,null,null,null,null,null,null,null,null,null,null,null,null,null,null,null,null,null,null,null,null,null,0]
[null,null,null,null,null,"Expenditure summary",null,{"$f":"'Expend summary'!I142","v":1},{"$f":"'Expend summary'!J142","v":0},{"$f":"'Expend summary'!L142","v":0},{"$f":"'Expend summary'!N142","v":0},{"$f":"'Expend summary'!Q142","v":0},{"$f":"'Expend summary'!T142","v":0},{"$f":"'Expend summary'!V142","v":0},null,null,null,null,null,null,null,null,null,null,null,null,null,null,null,null,null,null,null,null,null,null,null,null,null,null,null,null,null,null,null,null,null,null,null,null,null,null,1]
[]
[null,null,null,null,null,"Audited AFS vs Economic classification",null,null,null,null,null,null,null,null,null,null,null,null,null,null,null,null,null,null,null,null,null,null,null,null,null,null,null,null,null,null,null,null,null,null,null,null,null,null,null,null,null,null,null,null,null,null,{"$f":"SUM(H31:N31)","v":0}]
[null,null,null,null,null,"Revenue",null,null,null,null,null,null,null,null,null,null,null,null,null,null,null,null,null,null,null,null,null,null,null,null,null,null,null,null,null,null,null,null,null,null,null,null,null,null,null,null,null,null,null,null,null,null,0]
[null,null,null,null,null,"Surplus/deficit as per the Audited Financial Statements",null,{"$f":"Revenue!I72","v":0},{"$f":"Revenue!J72","v":2},{"$f":"Revenue!L72","v":0},null,null,null,null,null,null,null,null,null,null,null,null,null,null,null,null,null,null,null,null,null,null,null,null,null,null,null,null,null,null,null,null,null,null,null,null,null,null,null,null,null,null,2,null,{"$f":"IF(OR(BA33>10,BA33<-10),1,0)","v":0}]
[null,null,null,null,null,null,null,null,null,null,null,null,null,null,null,null,null,null,null,null,null,null,null,null,null,null,null,null,null,null,null,null,null,null,null,null,null,null,null,null,null,null,null,null,null,null,null,null,null,null,null,null,0]
[null,null,null,null,null,"Cash flow data",null,null,null,null,null,null,null,null,null,null,null,null,null,null,null,null,null,null,null,null,null,null,null,null,null,null,null,null,null,null,null,null,null,null,null,null,null,null,null,null,null,null,null,null,null,null,0]
[null,null,null,null,null,"Net movement in cash and cash equivalents as per the Financial statements",null,{"$f":"CashFlowIndirect!I81","v":0},{"$f":"CashFlowIndirect!J81","v":0},{"$f":"CashFlowIndirect!L81","v":0},null,null,null,null,null,null,null,null,null,null,null,null,null,null,null,null,null,null,null,null,null,null,null,null,null,null,null,null,null,null,null,null,null,null,null,null,null,null,null,null,null,null,0,null,{"$f":"IF(OR(BA36>10,BA36<-10),1,0)","v":0}]
[null,null,null,null,null,null,null,null,null,null,null,null,null,null,null,null,null,null,null,null,null,null,null,null,null,null,null,null,null,null,null,null,null,null,null,null,null,null,null,null,null,null,null,null,null,null,null,null,null,null,null,null,0]
[null,null,null,null,null,"Financial Position Data",null,null,null,null,null,null,null,null,null,null,null,null,null,null,null,null,null,null,null,null,null,null,null,null,null,null,null,null,null,null,null,null,null,null,null,null,null,null,null,null,null,null,null,null,null,null,{"$f":"SUM(BA39:BA40)","v":0},null,{"$f":"IF(OR(BA38>10,BA38<-10),1,0)","v":0}]
[null,null,null,null,null,"Total assets as per the Financial statements",null,{"$f":"FinancialPosition!I108","v":0},{"$f":"FinancialPosition!J108","v":0},{"$f":"FinancialPosition!L108","v":0},null,null,null,null,null,null,null,null,null,null,null,null,null,null,null,null,null,null,null,null,null,null,null,null,null,null,null,null,null,null,null,null,null,null,null,null,null,null,null,null,null,null,{"$f":"SUM(H39:N39)","v":0}]
[null,null,null,null,null,"Total assets less Total net assets and liabilities",null,{"$f":"FinancialPosition!J109","v":0},{"$f":"FinancialPosition!J109","v":0},{"$f":"FinancialPosition!L109","v":0},{"$f":"FinancialPosition!N109","v":0},{"$f":"FinancialPosition!P109","v":0},{"$f":"FinancialPosition!R109","v":0},{"$f":"FinancialPosition!S109","v":0},null,null,null,null,null,null,null,null,null,null,null,null,null,null,null,null,null,null,null,null,null,null,null,null,null,null,null,null,null,null,null,null,null,null,null,null,null,null,{"$f":"SUM(H40:N40)","v":0}]
[]
[null,null,null,null,null,"Personnel",null,null,null,null,null,null,null,null,null,null,null,null,null,null,null,null,null,null,null,null,null,null,null,null,null,null,null,null,null,null,null,null,null,null,null,null,null,null,null,null,null,null,null,null,null,null,{"$f":"SUM(BA43:BA44)","v":-2},null,{"$f":"IF(OR(BA42>10,BA42<-10),1,0)","v":0}]
[null,null,null,null,null,"Compensation of employees",null,null,null,{"$f":"Personnel!L1502","v":0},{"$f":"Personnel!Q1502","v":-1},{"$f":"Personnel!T1502","v":-1},{"$f":"Personnel!W1502","v":0},{"$f":"Personnel!Z1502","v":0},null,null,null,null,null,null,null,null,null,null,null,null,null,null,null,null,null,null,null,null,null,null,null,null,null,null,null,null,null,null,null,null,null,null,null,null,null,null,{"$f":"SUM(H43:N43)","v":-2}]
[null,null,null,null,null,"Personnel Pub",null,null,null,{"$f":"PersonnelPub!J47","v":0},{"$f":"PersonnelPub!M47","v":0},{"$f":"PersonnelPub!P47","v":0},{"$f":"PersonnelPub!S47","v":0},{"$f":"PersonnelPub!V47","v":0},null,null,null,null,null,null,null,null,null,null,null,null,null,null,null,null,null,null,null,null,null,null,null,null,null,null,null,null,null,null,null,null,null,null,null,null,null,null,{"$f":"SUM(H44:N44)","v":0}]
[null,null,null,null,null,"Related Sales"]
[null,null,null,null,null,"Related Sales",null,{"$f":"RelatedPartyRevenue!K363","v":0},{"$f":"RelatedPartyRevenue!M363","v":0},{"$f":"RelatedPartyRevenue!O363","v":0},{"$f":"RelatedPartyRevenue!Q363","v":0},{"$f":"RelatedPartyRevenue!R363","v":0},{"$f":"RelatedPartyRevenue!T363","v":0},{"$f":"RelatedPartyRevenue!V363","v":0},null,null,null,null,null,null,null,null,null,null,null,null,null,null,null,null,null,null,null,null,null,null,null,null,null,null,null,null,null,null,null,null,null,null,null,null,null,null,{"$f":"SUM(H46:N46)","v":0},null,{"$f":"IF(OR(BA46>10,BA46<-10),1,0)","v":0}]
[]
[]
[null,null,null,null,null,"Checks for completeness",null,{"$f":"MyYearM3","v":"2022/23"},{"$f":"MyYearM2","v":"2023/24"},{"$f":"MyYearM1","v":"2024/25"},{"$f":"MyYear0","v":"2025/26"},{"$f":"MyYearP1","v":"2026/27"},{"$f":"MyYearP2","v":"2027/28"},{"$f":"MyYearP3","v":"2028/29"}]
[null,null,null,null,null,"Revenue",null,{"$f":"IF(Revenue!I65=0,\"Not Completed\",\"\")","v":""},{"$f":"IF(Revenue!J65=0,\"Not Completed\",\"\")","v":""},{"$f":"IF(Revenue!L65=0,\"Not Completed\",\"\")","v":""},{"$f":"IF(Revenue!N65=0,\"Not Completed\",\"\")","v":""},{"$f":"IF(Revenue!P65=0,\"Not Completed\",\"\")","v":""},{"$f":"IF(Revenue!R65=0,\"Not Completed\",\"\")","v":""},{"$f":"IF(Revenue!S65<Revenue!R65/2,\"Not Completed\",\"\")","v":"Not Completed"}]
[null,null,null,null,null,"Objectives/Activities",null,{"$f":"IF('Expend summary'!I140=0,\"Not Completed\",\"\")","v":""},{"$f":"IF('Expend summary'!J140=0,\"Not Completed\",\"\")","v":""},{"$f":"IF('Expend summary'!L140=0,\"Not Completed\",\"\")","v":""},{"$f":"IF('Expend summary'!N140=0,\"Not Completed\",\"\")","v":""},{"$f":"IF('Expend summary'!Q140=0,\"Not Completed\",\"\")","v":""},{"$f":"IF('Expend summary'!T140=0,\"Not Completed\",\"\")","v":""},{"$f":"IF('Expend summary'!V140<'Expend summary'!T140/2,\"Not Completed\",\"\")","v":"Not Completed"}]
[null,null,null,null,null,"Cash flow data",null,{"$f":"IF(OR(CashFlow!I12=0,CashFlow!I58=0),\"Not Completed\",\"\")","v":""},{"$f":"IF(OR(CashFlow!J12=0,CashFlow!J58=0),\"Not Completed\",\"\")","v":""},{"$f":"IF(OR(CashFlow!L12=0,CashFlow!L58=0),\"Not Completed\",\"\")","v":""},{"$f":"IF(OR(CashFlow!N12=0,CashFlow!N58=0),\"Not Completed\",\"\")","v":""},{"$f":"IF(OR(CashFlow!P12=0,CashFlow!P58=0),\"Not Completed\",\"\")","v":""},{"$f":"IF(OR(CashFlow!R12=0,CashFlow!R58=0),\"Not Completed\",\"\")","v":""},{"$f":"IF(OR(CashFlow!S12<CashFlow!R12/2,CashFlow!S58<CashFlow!R58/2),\"Not Completed\",\"\")","v":"Not Completed"}]
[null,null,null,null,null,"Financial Position Data",null,{"$f":"IF(FinancialPosition!I103=0,\"Not Completed\",\"\")","v":""},{"$f":"IF(FinancialPosition!J103=0,\"Not Completed\",\"\")","v":""},{"$f":"IF(FinancialPosition!L103=0,\"Not Completed\",\"\")","v":""},{"$f":"IF(FinancialPosition!N103=0,\"Not Completed\",\"\")","v":""},{"$f":"IF(FinancialPosition!P103=0,\"Not Completed\",\"\")","v":""},{"$f":"IF(FinancialPosition!R103=0,\"Not Completed\",\"\")","v":""},{"$f":"IF(FinancialPosition!S103<FinancialPosition!R103/2,\"Not Completed\",\"\")","v":"Not Completed"}]
[null,null,null,null,null,"Personnel",null,null,null,null,null,null,null,{"$f":"IF(Personnel!Z1500<Personnel!W1500/2,\"Not Completed\",\"\")","v":"Not Completed"}]
[null,null,null,null,null,"Related Sales",null,null,null,null,null,null,null,{"$f":"IF(RelatedPartyRevenue!V361<RelatedPartyRevenue!U361/2,\"Not Completed\",\"\")","v":""}]
[]
[null,null,null,null,null,"Comparison table"]
[null,null,null,null,null,null,null,{"$f":"MyYearM3","v":"2022/23"},{"$f":"MyYearM2","v":"2023/24"},{"$f":"MyYearM1","v":"2024/25"},null,{"$f":"MyYear0","v":"2025/26"},null,{"$f":"MyYearP1","v":"2026/27"},null,{"$f":"MyYearP2","v":"2027/28"},null,{"$f":"MyYearP3","v":"2028/29"}]
[null,null,null,null,null,null,null,"Audited\nOutcome","Audited\nOutcome","Budget","Audited\nOutcome","Budget\nestimate","Approved budget","Budget\nestimate","Revised\nBudget\nEstimate","Budget\nestimate","Revised\nBudget\nEstimate","Planning\nBudget \nEstimate"]
[null,null,null,null,null,"Revenue","Total",{"$f":"Revenue!I65-[1]Revenue!J65","v":0},{"$f":"Revenue!J65-[1]Revenue!L65","v":0},{"$f":"Revenue!K65-[1]Revenue!N65","v":0},{"$f":"Revenue!L65-[1]Revenue!N65","v":0},{"$f":"Revenue!M65-[1]Revenue!P65","v":0},{"$f":"Revenue!N65-[1]Revenue!P65","v":0},{"$f":"Revenue!O65-[1]Revenue!R65","v":0},{"$f":"Revenue!P65-[1]Revenue!R65","v":0},{"$f":"Revenue!Q65-[1]Revenue!S65","v":0},{"$f":"Revenue!R65-[1]Revenue!S65","v":0}]
[null,null,null,null,null,null,"Tax revenue",{"$f":"Revenue!I13-[1]Revenue!J13","v":0},{"$f":"Revenue!J13-[1]Revenue!L13","v":0},{"$f":"Revenue!K13-[1]Revenue!N13","v":0},{"$f":"Revenue!L13-[1]Revenue!N13","v":0},{"$f":"Revenue!M13-[1]Revenue!P13","v":0},{"$f":"Revenue!N13-[1]Revenue!P13","v":0},{"$f":"Revenue!O13-[1]Revenue!R13","v":0},{"$f":"Revenue!P13-[1]Revenue!R13","v":0},{"$f":"Revenue!Q13-[1]Revenue!S13","v":0},{"$f":"Revenue!R13-[1]Revenue!S13","v":0}]
[null,null,null,null,null,null,"Entity revenue",{"$f":"Revenue!I14-[1]Revenue!J14","v":0},{"$f":"Revenue!J14-[1]Revenue!L14","v":0},{"$f":"Revenue!K14-[1]Revenue!N14","v":0},{"$f":"Revenue!L14-[1]Revenue!N14","v":0},{"$f":"Revenue!M14-[1]Revenue!P14","v":0},{"$f":"Revenue!N14-[1]Revenue!P14","v":0},{"$f":"Revenue!O14-[1]Revenue!R14","v":0},{"$f":"Revenue!P14-[1]Revenue!R14","v":0},{"$f":"Revenue!Q14-[1]Revenue!S14","v":0},{"$f":"Revenue!R14-[1]Revenue!S14","v":0}]
[null,null,null,null,null,null,"Transfers received",{"$f":"Revenue!I44-[1]Revenue!J44","v":0},{"$f":"Revenue!J44-[1]Revenue!L44","v":0},{"$f":"Revenue!K44-[1]Revenue!N44","v":0},{"$f":"Revenue!L44-[1]Revenue!N44","v":0},{"$f":"Revenue!M44-[1]Revenue!P44","v":0},{"$f":"Revenue!N44-[1]Revenue!P44","v":0},{"$f":"Revenue!O44-[1]Revenue!R44","v":0},{"$f":"Revenue!P44-[1]Revenue!R44","v":0},{"$f":"Revenue!Q44-[1]Revenue!S44","v":0},{"$f":"Revenue!R44-[1]Revenue!S44","v":0}]
[null,null,null,null,null,null,"Tax benefit",{"$f":"Revenue!I63-[1]Revenue!J63","v":0},{"$f":"Revenue!J63-[1]Revenue!L63","v":0},{"$f":"Revenue!K63-[1]Revenue!N63","v":0},{"$f":"Revenue!L63-[1]Revenue!N63","v":0},{"$f":"Revenue!M63-[1]Revenue!P63","v":0},{"$f":"Revenue!N63-[1]Revenue!P63","v":0},{"$f":"Revenue!O63-[1]Revenue!R63","v":0},{"$f":"Revenue!P63-[1]Revenue!R63","v":0},{"$f":"Revenue!Q63-[1]Revenue!S63","v":0},{"$f":"Revenue!R63-[1]Revenue!S63","v":0}]
[null,null,null,null,null,null,"Outside shareholders interest",{"$f":"Revenue!I64-[1]Revenue!J64","v":0},{"$f":"Revenue!J64-[1]Revenue!L64","v":0},{"$f":"Revenue!K64-[1]Revenue!N64","v":0},{"$f":"Revenue!L64-[1]Revenue!N64","v":0},{"$f":"Revenue!M64-[1]Revenue!P64","v":0},{"$f":"Revenue!N64-[1]Revenue!P64","v":0},{"$f":"Revenue!O64-[1]Revenue!R64","v":0},{"$f":"Revenue!P64-[1]Revenue!R64","v":0},{"$f":"Revenue!Q64-[1]Revenue!S64","v":0},{"$f":"Revenue!R64-[1]Revenue!S64","v":0}]
[null,null,null,null,null,"Expend Summary","Total",{"$f":"'Expend summary'!I140-'[1]Expend summary'!J140","v":0},{"$f":"'Expend summary'!J140-'[1]Expend summary'!L140","v":0},{"$f":"'Expend summary'!K140-'[1]Expend summary'!N140","v":0},{"$f":"'Expend summary'!L140-'[1]Expend summary'!N140","v":0},{"$f":"'Expend summary'!M140-'[1]Expend summary'!Q140","v":0},{"$f":"'Expend summary'!N140-'[1]Expend summary'!Q140","v":0},{"$f":"'Expend summary'!P140-'[1]Expend summary'!T140","v":0},{"$f":"'Expend summary'!Q140-'[1]Expend summary'!T140","v":0},{"$f":"'Expend summary'!T140-'[1]Expend summary'!V140","v":0},{"$f":"'Expend summary'!T140-'[1]Expend summary'!V140","v":0}]
[null,null,null,null,null,null,"Current payments",{"$f":"'Expend summary'!I39-'[1]Expend summary'!J39","v":0},{"$f":"'Expend summary'!J39-'[1]Expend summary'!L39","v":0},{"$f":"'Expend summary'!K39-'[1]Expend summary'!N39","v":0},{"$f":"'Expend summary'!L39-'[1]Expend summary'!N39","v":0},{"$f":"'Expend summary'!M39-'[1]Expend summary'!Q39","v":0},{"$f":"'Expend summary'!N39-'[1]Expend summary'!Q39","v":0},{"$f":"'Expend summary'!P39-'[1]Expend summary'!T39","v":0},{"$f":"'Expend summary'!Q39-'[1]Expend summary'!T39","v":0},{"$f":"'Expend summary'!T39-'[1]Expend summary'!V39","v":0},{"$f":"'Expend summary'!T39-'[1]Expend summary'!V39","v":0}]
[null,null,null,null,null,null,"Transfers and subsidies",{"$f":"'Expend summary'!I109-'[1]Expend summary'!J109","v":0},{"$f":"'Expend summary'!J109-'[1]Expend summary'!L109","v":0},{"$f":"'Expend summary'!K109-'[1]Expend summary'!N109","v":0},{"$f":"'Expend summary'!L109-'[1]Expend summary'!N109","v":0},{"$f":"'Expend summary'!M109-'[1]Expend summary'!Q109","v":0},{"$f":"'Expend summary'!N109-'[1]Expend summary'!Q109","v":0},{"$f":"'Expend summary'!P109-'[1]Expend summary'!T109","v":0},{"$f":"'Expend summary'!Q109-'[1]Expend summary'!T109","v":0},{"$f":"'Expend summary'!T109-'[1]Expend summary'!V109","v":0},{"$f":"'Expend summary'!T109-'[1]Expend summary'!V109","v":0}]
[null,null,null,null,null,null,"Tax payment",{"$f":"'Expend summary'!I138-'[1]Expend summary'!J138","v":0},{"$f":"'Expend summary'!J138-'[1]Expend summary'!L138","v":0},{"$f":"'Expend summary'!K138-'[1]Expend summary'!N138","v":0},{"$f":"'Expend summary'!L138-'[1]Expend summary'!N138","v":0},{"$f":"'Expend summary'!M138-'[1]Expend summary'!Q138","v":0},{"$f":"'Expend summary'!N138-'[1]Expend summary'!Q138","v":0},{"$f":"'Expend summary'!P138-'[1]Expend summary'!T138","v":0},{"$f":"'Expend summary'!Q138-'[1]Expend summary'!T138","v":0},{"$f":"'Expend summary'!T138-'[1]Expend summary'!V138","v":0},{"$f":"'Expend summary'!T138-'[1]Expend summary'!V138","v":0}]
[null,null,null,null,null,null,"Outside shareholders Interest",{"$f":"'Expend summary'!I139-'[1]Expend summary'!J139","v":0},{"$f":"'Expend summary'!J139-'[1]Expend summary'!L139","v":0},{"$f":"'Expend summary'!K139-'[1]Expend summary'!N139","v":0},{"$f":"'Expend summary'!L139-'[1]Expend summary'!N139","v":0},{"$f":"'Expend summary'!M139-'[1]Expend summary'!Q139","v":0},{"$f":"'Expend summary'!N139-'[1]Expend summary'!Q139","v":0},{"$f":"'Expend summary'!P139-'[1]Expend summary'!T139","v":0},{"$f":"'Expend summary'!Q139-'[1]Expend summary'!T139","v":0},{"$f":"'Expend summary'!T139-'[1]Expend summary'!V139","v":0},{"$f":"'Expend summary'!T139-'[1]Expend summary'!V139","v":0}]
[null,null,null,null,null,"Cash Flow","Cash receipts from stakeholders",{"$f":"CashFlow!I12-[1]CashFlow!J12","v":0},{"$f":"CashFlow!J12-[1]CashFlow!L12","v":0},{"$f":"CashFlow!K12-[1]CashFlow!N12","v":0},{"$f":"CashFlow!L12-[1]CashFlow!N12","v":0},{"$f":"CashFlow!M12-[1]CashFlow!P12","v":0},{"$f":"CashFlow!N12-[1]CashFlow!P12","v":0},{"$f":"CashFlow!O12-[1]CashFlow!R12","v":0},{"$f":"CashFlow!P12-[1]CashFlow!R12","v":0},{"$f":"CashFlow!Q12-[1]CashFlow!S12","v":0},{"$f":"CashFlow!R12-[1]CashFlow!S12","v":0}]
[null,null,null,null,null,null,"Cash paid to stakeholders",{"$f":"CashFlow!I58-[1]CashFlow!J58","v":0},{"$f":"CashFlow!J58-[1]CashFlow!L58","v":-5.4775999989360571},{"$f":"CashFlow!K58-[1]CashFlow!N58","v":-34},{"$f":"CashFlow!L58-[1]CashFlow!N58","v":-34},{"$f":"CashFlow!M58-[1]CashFlow!P58","v":-35.567400000989437},{"$f":"CashFlow!N58-[1]CashFlow!P58","v":-35.567400000989437},{"$f":"CashFlow!O58-[1]CashFlow!R58","v":-37.185716699808836},{"$f":"CashFlow!P58-[1]CashFlow!R58","v":-37.185716699808836},{"$f":"CashFlow!Q58-[1]CashFlow!S58","v":-38.866511095315218},{"$f":"CashFlow!R58-[1]CashFlow!S58","v":-38.866511095315218}]
[null,null,null,null,null,null,"Cash flow from operating activities",{"$f":"CashFlow!I11-[1]CashFlow!J11","v":0},{"$f":"CashFlow!J11-[1]CashFlow!L11","v":5.4775999989360571},{"$f":"CashFlow!K11-[1]CashFlow!N11","v":34},{"$f":"CashFlow!L11-[1]CashFlow!N11","v":34},{"$f":"CashFlow!M11-[1]CashFlow!P11","v":35.567400000989437},{"$f":"CashFlow!N11-[1]CashFlow!P11","v":35.567400000989437},{"$f":"CashFlow!O11-[1]CashFlow!R11","v":37.185716699808836},{"$f":"CashFlow!P11-[1]CashFlow!R11","v":37.185716699808836},{"$f":"CashFlow!Q11-[1]CashFlow!S11","v":38.866511095315218},{"$f":"CashFlow!R11-[1]CashFlow!S11","v":38.866511095315218}]
[null,null,null,null,null,null,"Cash flow from advancing activities (Financial Institutions only)",{"$f":"CashFlow!I157-[1]CashFlow!J157","v":0},{"$f":"CashFlow!J157-[1]CashFlow!L157","v":0},{"$f":"CashFlow!K157-[1]CashFlow!N157","v":0},{"$f":"CashFlow!L157-[1]CashFlow!N157","v":0},{"$f":"CashFlow!M157-[1]CashFlow!P157","v":0},{"$f":"CashFlow!N157-[1]CashFlow!P157","v":0},{"$f":"CashFlow!O157-[1]CashFlow!R157","v":0},{"$f":"CashFlow!P157-[1]CashFlow!R157","v":0},{"$f":"CashFlow!Q157-[1]CashFlow!S157","v":0},{"$f":"CashFlow!R157-[1]CashFlow!S157","v":0}]
[null,null,null,null,null,null,"Cash flow from investing activities",{"$f":"CashFlow!I168-[1]CashFlow!J168","v":0},{"$f":"CashFlow!J168-[1]CashFlow!L168","v":0},{"$f":"CashFlow!K168-[1]CashFlow!N168","v":0},{"$f":"CashFlow!L168-[1]CashFlow!N168","v":0},{"$f":"CashFlow!M168-[1]CashFlow!P168","v":0},{"$f":"CashFlow!N168-[1]CashFlow!P168","v":0},{"$f":"CashFlow!O168-[1]CashFlow!R168","v":0},{"$f":"CashFlow!P168-[1]CashFlow!R168","v":0},{"$f":"CashFlow!Q168-[1]CashFlow!S168","v":0},{"$f":"CashFlow!R168-[1]CashFlow!S168","v":0}]
[null,null,null,null,null,null,"Cash flow from financing activities",{"$f":"CashFlow!I195-[1]CashFlow!J195","v":0},{"$f":"CashFlow!J195-[1]CashFlow!L195","v":0},{"$f":"CashFlow!K195-[1]CashFlow!N195","v":0},{"$f":"CashFlow!L195-[1]CashFlow!N195","v":0},{"$f":"CashFlow!M195-[1]CashFlow!P195","v":0},{"$f":"CashFlow!N195-[1]CashFlow!P195","v":0},{"$f":"CashFlow!O195-[1]CashFlow!R195","v":0},{"$f":"CashFlow!P195-[1]CashFlow!R195","v":0},{"$f":"CashFlow!Q195-[1]CashFlow!S195","v":0},{"$f":"CashFlow!R195-[1]CashFlow!S195","v":0}]
[null,null,null,null,null,null,"Net increase / (decrease) in cash and cash equivalents",{"$f":"CashFlow!I216-[1]CashFlow!J216","v":0},{"$f":"CashFlow!J216-[1]CashFlow!L216","v":5.4775999989360571},{"$f":"CashFlow!K216-[1]CashFlow!N216","v":34},{"$f":"CashFlow!L216-[1]CashFlow!N216","v":34},{"$f":"CashFlow!M216-[1]CashFlow!P216","v":35.567400000989437},{"$f":"CashFlow!N216-[1]CashFlow!P216","v":35.567400000989437},{"$f":"CashFlow!O216-[1]CashFlow!R216","v":37.185716699808836},{"$f":"CashFlow!P216-[1]CashFlow!R216","v":37.185716699808836},{"$f":"CashFlow!Q216-[1]CashFlow!S216","v":38.866511095315218},{"$f":"CashFlow!R216-[1]CashFlow!S216","v":38.866511095315218}]
[null,null,null,null,null,"CF_Diff_MTEC_ENE","Cash receipts from stakeholders",{"$f":"CF_Diff_MTEC_ENE!Q12-[1]CashFlow!J12","v":0},{"$f":"CF_Diff_MTEC_ENE!S12-[1]CashFlow!L12","v":0},null,{"$f":"CF_Diff_MTEC_ENE!U12-[1]CashFlow!N12","v":0},null,{"$f":"CF_Diff_MTEC_ENE!W12-[1]CashFlow!P12","v":0},null,{"$f":"CF_Diff_MTEC_ENE!Y12-[1]CashFlow!R12","v":0},null,{"$f":"CF_Diff_MTEC_ENE!AA12-[1]CashFlow!S12","v":0}]
[null,null,null,null,null,null,"Cash paid to stakeholders",{"$f":"CF_Diff_MTEC_ENE!Q58-[1]CashFlow!J58","v":0},{"$f":"CF_Diff_MTEC_ENE!S58-[1]CashFlow!L58","v":-5.4775999989360571},null,{"$f":"CF_Diff_MTEC_ENE!U58-[1]CashFlow!N58","v":-34},null,{"$f":"CF_Diff_MTEC_ENE!W58-[1]CashFlow!P58","v":-35.567400000989437},null,{"$f":"CF_Diff_MTEC_ENE!Y58-[1]CashFlow!R58","v":-37.185716699808836},null,{"$f":"CF_Diff_MTEC_ENE!AA58-[1]CashFlow!S58","v":-38.866511095315218}]
[null,null,null,null,null,null,"Cash flow from operating activities",{"$f":"CF_Diff_MTEC_ENE!Q11-[1]CashFlow!J11","v":0},{"$f":"CF_Diff_MTEC_ENE!S11-[1]CashFlow!L11","v":5.4775999989360571},null,{"$f":"CF_Diff_MTEC_ENE!U11-[1]CashFlow!N11","v":34},null,{"$f":"CF_Diff_MTEC_ENE!W11-[1]CashFlow!P11","v":35.567400000989437},null,{"$f":"CF_Diff_MTEC_ENE!Y11-[1]CashFlow!R11","v":37.185716699808836},null,{"$f":"CF_Diff_MTEC_ENE!AA11-[1]CashFlow!S11","v":38.866511095315218}]
[null,null,null,null,null,null,"Cash flow from advancing activities (Financial Institutions only)",{"$f":"CF_Diff_MTEC_ENE!Q157-[1]CashFlow!J157","v":0},{"$f":"CF_Diff_MTEC_ENE!S157-[1]CashFlow!L157","v":0},null,{"$f":"CF_Diff_MTEC_ENE!U157-[1]CashFlow!N157","v":0},null,{"$f":"CF_Diff_MTEC_ENE!W157-[1]CashFlow!P157","v":0},null,{"$f":"CF_Diff_MTEC_ENE!Y157-[1]CashFlow!R157","v":0},null,{"$f":"CF_Diff_MTEC_ENE!AA157-[1]CashFlow!S157","v":0}]
[null,null,null,null,null,null,"Acquisition of property, plant, equipment",{"$f":"CF_Diff_MTEC_ENE!Q169-[1]CashFlow!J169","v":0},{"$f":"CF_Diff_MTEC_ENE!S169-[1]CashFlow!L169","v":0},null,{"$f":"CF_Diff_MTEC_ENE!U169-[1]CashFlow!N169","v":0},null,{"$f":"CF_Diff_MTEC_ENE!W169-[1]CashFlow!P169","v":0},null,{"$f":"CF_Diff_MTEC_ENE!Y169-[1]CashFlow!R169","v":0},null,{"$f":"CF_Diff_MTEC_ENE!AA169-[1]CashFlow!S169","v":0}]
[null,null,null,null,null,null,"Deferred Income",{"$f":"CF_Diff_MTEC_ENE!Q185-[1]CashFlow!J196","v":0},{"$f":"CF_Diff_MTEC_ENE!S185-[1]CashFlow!L196","v":0},null,{"$f":"CF_Diff_MTEC_ENE!U185-[1]CashFlow!N196","v":0},null,{"$f":"CF_Diff_MTEC_ENE!W185-[1]CashFlow!P196","v":0},null,{"$f":"CF_Diff_MTEC_ENE!Y185-[1]CashFlow!R196","v":0},null,{"$f":"CF_Diff_MTEC_ENE!AA185-[1]CashFlow!S196","v":0}]
[null,null,null,null,null,"CF_Diff_ENEs","Cash receipts from stakeholders",{"$f":"CF_Diff_ENEs!R12-[1]CF_Diff_ENEs!U12","v":0},{"$f":"CF_Diff_ENEs!T12-[1]CF_Diff_ENEs!W12","v":0}]
[null,null,null,null,null,null,"Cash paid to stakeholders",{"$f":"CF_Diff_ENEs!R58-[1]CF_Diff_ENEs!U58","v":0},{"$f":"CF_Diff_ENEs!T58-[1]CF_Diff_ENEs!W58","v":0}]
[null,null,null,null,null,null,"Cash flow from operating activities",{"$f":"CF_Diff_ENEs!R11-[1]CF_Diff_ENEs!U11","v":0},{"$f":"CF_Diff_ENEs!T11-[1]CF_Diff_ENEs!W11","v":0}]
[null,null,null,null,null,null,"Cash flow from advancing activities (Financial Institutions only)",{"$f":"CF_Diff_ENEs!R157-[1]CF_Diff_ENEs!U157","v":0},{"$f":"CF_Diff_ENEs!T157-[1]CF_Diff_ENEs!W157","v":0}]
[null,null,null,null,null,null,"Acquisition of property, plant, equipment",{"$f":"CF_Diff_ENEs!R169-[1]CF_Diff_ENEs!U169","v":0},{"$f":"CF_Diff_ENEs!T169-[1]CF_Diff_ENEs!W169","v":0}]
[null,null,null,null,null,null,"Deferred Income",{"$f":"CF_Diff_ENEs!R185-[1]CF_Diff_ENEs!U185","v":0},{"$f":"CF_Diff_ENEs!T185-[1]CF_Diff_ENEs!W185","v":0}]
[null,null,null,null,null,"Financial Position","Total net assets and liabilities",{"$f":"FinancialPosition!I103-[1]FinancialPosition!J103","v":0},{"$f":"FinancialPosition!J103-[1]FinancialPosition!L103","v":0},{"$f":"FinancialPosition!K103-[1]FinancialPosition!N103","v":0},{"$f":"FinancialPosition!L103-[1]FinancialPosition!N103","v":0},{"$f":"FinancialPosition!M103-[1]FinancialPosition!P103","v":0},{"$f":"FinancialPosition!N103-[1]FinancialPosition!P103","v":0},{"$f":"FinancialPosition!O103-[1]FinancialPosition!R103","v":0},{"$f":"FinancialPosition!P103-[1]FinancialPosition!R103","v":0},{"$f":"FinancialPosition!Q103-[1]FinancialPosition!S103","v":0},{"$f":"FinancialPosition!R103-[1]FinancialPosition!S103","v":0}]
[null,null,null,null,null,null,"Current assets",{"$f":"FinancialPosition!I12-[1]FinancialPosition!J12","v":0},{"$f":"FinancialPosition!J12-[1]FinancialPosition!L12","v":0},{"$f":"FinancialPosition!K12-[1]FinancialPosition!N12","v":0},{"$f":"FinancialPosition!L12-[1]FinancialPosition!N12","v":0},{"$f":"FinancialPosition!M12-[1]FinancialPosition!P12","v":0},{"$f":"FinancialPosition!N12-[1]FinancialPosition!P12","v":0},{"$f":"FinancialPosition!O12-[1]FinancialPosition!R12","v":0},{"$f":"FinancialPosition!P12-[1]FinancialPosition!R12","v":0},{"$f":"FinancialPosition!Q12-[1]FinancialPosition!S12","v":0},{"$f":"FinancialPosition!R12-[1]FinancialPosition!S12","v":0}]
[null,null,null,null,null,null,"Non-current assets",{"$f":"FinancialPosition!I31-[1]FinancialPosition!J31","v":0},{"$f":"FinancialPosition!J31-[1]FinancialPosition!L31","v":0},{"$f":"FinancialPosition!K31-[1]FinancialPosition!N31","v":0},{"$f":"FinancialPosition!L31-[1]FinancialPosition!N31","v":0},{"$f":"FinancialPosition!M31-[1]FinancialPosition!P31","v":0},{"$f":"FinancialPosition!N31-[1]FinancialPosition!P31","v":0},{"$f":"FinancialPosition!O31-[1]FinancialPosition!R31","v":0},{"$f":"FinancialPosition!P31-[1]FinancialPosition!R31","v":0},{"$f":"FinancialPosition!Q31-[1]FinancialPosition!S31","v":0},{"$f":"FinancialPosition!R31-[1]FinancialPosition!S31","v":0}]
[null,null,null,null,null,null,"Current liabilities",{"$f":"FinancialPosition!I56-[1]FinancialPosition!J56","v":0},{"$f":"FinancialPosition!J56-[1]FinancialPosition!L56","v":0},{"$f":"FinancialPosition!K56-[1]FinancialPosition!N56","v":0},{"$f":"FinancialPosition!L56-[1]FinancialPosition!N56","v":0},{"$f":"FinancialPosition!M56-[1]FinancialPosition!P56","v":0},{"$f":"FinancialPosition!N56-[1]FinancialPosition!P56","v":0},{"$f":"FinancialPosition!O56-[1]FinancialPosition!R56","v":0},{"$f":"FinancialPosition!P56-[1]FinancialPosition!R56","v":0},{"$f":"FinancialPosition!Q56-[1]FinancialPosition!S56","v":0},{"$f":"FinancialPosition!R56-[1]FinancialPosition!S56","v":0}]
[null,null,null,null,null,null,"Non-current liabilities",{"$f":"FinancialPosition!I76-[1]FinancialPosition!J76","v":0},{"$f":"FinancialPosition!J76-[1]FinancialPosition!L76","v":0},{"$f":"FinancialPosition!K76-[1]FinancialPosition!N76","v":0},{"$f":"FinancialPosition!L76-[1]FinancialPosition!N76","v":0},{"$f":"FinancialPosition!M76-[1]FinancialPosition!P76","v":0},{"$f":"FinancialPosition!N76-[1]FinancialPosition!P76","v":0},{"$f":"FinancialPosition!O76-[1]FinancialPosition!R76","v":0},{"$f":"FinancialPosition!P76-[1]FinancialPosition!R76","v":0},{"$f":"FinancialPosition!Q76-[1]FinancialPosition!S76","v":0},{"$f":"FinancialPosition!R76-[1]FinancialPosition!S76","v":0}]
[null,null,null,null,null,null,"Net Assets",{"$f":"FinancialPosition!I92-[1]FinancialPosition!J92","v":0},{"$f":"FinancialPosition!J92-[1]FinancialPosition!L92","v":0},{"$f":"FinancialPosition!K92-[1]FinancialPosition!N92","v":0},{"$f":"FinancialPosition!L92-[1]FinancialPosition!N92","v":0},{"$f":"FinancialPosition!M92-[1]FinancialPosition!P92","v":0},{"$f":"FinancialPosition!N92-[1]FinancialPosition!P92","v":0},{"$f":"FinancialPosition!O92-[1]FinancialPosition!R92","v":0},{"$f":"FinancialPosition!P92-[1]FinancialPosition!R92","v":0},{"$f":"FinancialPosition!Q92-[1]FinancialPosition!S92","v":0},{"$f":"FinancialPosition!R92-[1]FinancialPosition!S92","v":0}]
[null,null,null,null,null,null,"Contingent liabilities",{"$f":"FinancialPosition!I104-[1]FinancialPosition!J104","v":0},{"$f":"FinancialPosition!J104-[1]FinancialPosition!L104","v":0},{"$f":"FinancialPosition!K104-[1]FinancialPosition!N104","v":0},{"$f":"FinancialPosition!L104-[1]FinancialPosition!N104","v":0},{"$f":"FinancialPosition!M104-[1]FinancialPosition!P104","v":0},{"$f":"FinancialPosition!N104-[1]FinancialPosition!P104","v":0},{"$f":"FinancialPosition!O104-[1]FinancialPosition!R104","v":0},{"$f":"FinancialPosition!P104-[1]FinancialPosition!R104","v":0},{"$f":"FinancialPosition!Q104-[1]FinancialPosition!S104","v":0},{"$f":"FinancialPosition!R104-[1]FinancialPosition!S104","v":0}]
[null,null,null,null,null,null,"Total assets",{"$f":"FinancialPosition!I53-[1]FinancialPosition!J53","v":0},{"$f":"FinancialPosition!J53-[1]FinancialPosition!L53","v":0},{"$f":"FinancialPosition!K53-[1]FinancialPosition!N53","v":0},{"$f":"FinancialPosition!L53-[1]FinancialPosition!N53","v":0},{"$f":"FinancialPosition!M53-[1]FinancialPosition!P53","v":0},{"$f":"FinancialPosition!N53-[1]FinancialPosition!P53","v":0},{"$f":"FinancialPosition!O53-[1]FinancialPosition!R53","v":0},{"$f":"FinancialPosition!P53-[1]FinancialPosition!R53","v":0},{"$f":"FinancialPosition!Q53-[1]FinancialPosition!S53","v":0},{"$f":"FinancialPosition!R53-[1]FinancialPosition!S53","v":0}]
[null,null,null,null,null,null,"Total liabilities",{"$f":"FinancialPosition!I90-[1]FinancialPosition!J90","v":0},{"$f":"FinancialPosition!J90-[1]FinancialPosition!L90","v":0},{"$f":"FinancialPosition!K90-[1]FinancialPosition!N90","v":0},{"$f":"FinancialPosition!L90-[1]FinancialPosition!N90","v":0},{"$f":"FinancialPosition!M90-[1]FinancialPosition!P90","v":0},{"$f":"FinancialPosition!N90-[1]FinancialPosition!P90","v":0},{"$f":"FinancialPosition!O90-[1]FinancialPosition!R90","v":0},{"$f":"FinancialPosition!P90-[1]FinancialPosition!R90","v":0},{"$f":"FinancialPosition!Q90-[1]FinancialPosition!S90","v":0},{"$f":"FinancialPosition!R90-[1]FinancialPosition!S90","v":0}]
[null,null,null,null,null,"Admin","Total",{"$f":"Admin!I$140-[1]Admin!J$140","v":0},{"$f":"Admin!J$140-[1]Admin!L$140","v":0},{"$f":"Admin!K$140-[1]Admin!N$140","v":0},{"$f":"Admin!L$140-[1]Admin!N$140","v":0},{"$f":"Admin!M$140-[1]Admin!Q$140","v":0},{"$f":"Admin!N$140-[1]Admin!Q$140","v":0},{"$f":"Admin!Q$140-[1]Admin!T$140","v":0},{"$f":"Admin!Q$140-[1]Admin!T$140","v":0},{"$f":"Admin!S$140-[1]Admin!V$140","v":0},{"$f":"Admin!T$140-[1]Admin!V$140","v":0}]
[null,null,null,null,null,null,"Current payments",{"$f":"Admin!I$39-[1]Admin!J$39","v":0},{"$f":"Admin!J$39-[1]Admin!L$39","v":0},{"$f":"Admin!K$39-[1]Admin!N$39","v":0},{"$f":"Admin!L$39-[1]Admin!N$39","v":0},{"$f":"Admin!M$39-[1]Admin!Q$39","v":0},{"$f":"Admin!N$39-[1]Admin!Q$39","v":0},{"$f":"Admin!Q$39-[1]Admin!T$39","v":0},{"$f":"Admin!Q$39-[1]Admin!T$39","v":0},{"$f":"Admin!S$39-[1]Admin!V$39","v":0},{"$f":"Admin!T$39-[1]Admin!V$39","v":0}]
[null,null,null,null,null,null,"Transfers and subsidies",{"$f":"Admin!I$109-[1]Admin!J$109","v":0},{"$f":"Admin!J$109-[1]Admin!L$109","v":0},{"$f":"Admin!K$109-[1]Admin!N$109","v":0},{"$f":"Admin!L$109-[1]Admin!N$109","v":0},{"$f":"Admin!M$109-[1]Admin!Q$109","v":0},{"$f":"Admin!N$109-[1]Admin!Q$109","v":0},{"$f":"Admin!Q$109-[1]Admin!T$109","v":0},{"$f":"Admin!Q$109-[1]Admin!T$109","v":0},{"$f":"Admin!S$109-[1]Admin!V$109","v":0},{"$f":"Admin!T$109-[1]Admin!V$109","v":0}]
[null,null,null,null,null,null,"Tax payment",{"$f":"Admin!I$138-[1]Admin!J$138","v":0},{"$f":"Admin!J$138-[1]Admin!L$138","v":0},{"$f":"Admin!K$138-[1]Admin!N$138","v":0},{"$f":"Admin!L$138-[1]Admin!N$138","v":0},{"$f":"Admin!M$138-[1]Admin!Q$138","v":0},{"$f":"Admin!N$138-[1]Admin!Q$138","v":0},{"$f":"Admin!Q$138-[1]Admin!T$138","v":0},{"$f":"Admin!Q$138-[1]Admin!T$138","v":0},{"$f":"Admin!S$138-[1]Admin!V$138","v":0},{"$f":"Admin!T$138-[1]Admin!V$138","v":0}]
[null,null,null,null,null,null,"Outside shareholders Interest",{"$f":"Admin!I$139-[1]Admin!J$139","v":0},{"$f":"Admin!J$139-[1]Admin!L$139","v":0},{"$f":"Admin!K$139-[1]Admin!N$139","v":0},{"$f":"Admin!L$139-[1]Admin!N$139","v":0},{"$f":"Admin!M$139-[1]Admin!Q$139","v":0},{"$f":"Admin!N$139-[1]Admin!Q$139","v":0},{"$f":"Admin!Q$139-[1]Admin!T$139","v":0},{"$f":"Admin!Q$139-[1]Admin!T$139","v":0},{"$f":"Admin!S$139-[1]Admin!V$139","v":0},{"$f":"Admin!T$139-[1]Admin!V$139","v":0}]
[null,null,null,null,null,2,"Total",{"$f":"'2'!I$140-'[1]2'!J$140","v":0},{"$f":"'2'!J$140-'[1]2'!L$140","v":0},{"$f":"'2'!K$140-'[1]2'!N$140","v":0},{"$f":"'2'!L$140-'[1]2'!N$140","v":0},{"$f":"'2'!M$140-'[1]2'!Q$140","v":0},{"$f":"'2'!N$140-'[1]2'!Q$140","v":0},{"$f":"'2'!Q$140-'[1]2'!T$140","v":0},{"$f":"'2'!Q$140-'[1]2'!T$140","v":0},{"$f":"'2'!S$140-'[1]2'!V$140","v":0},{"$f":"'2'!T$140-'[1]2'!V$140","v":0}]
[null,null,null,null,null,null,"Current payments",{"$f":"'2'!I$39-'[1]2'!J$39","v":0},{"$f":"'2'!J$39-'[1]2'!L$39","v":0},{"$f":"'2'!K$39-'[1]2'!N$39","v":0},{"$f":"'2'!L$39-'[1]2'!N$39","v":0},{"$f":"'2'!M$39-'[1]2'!Q$39","v":0},{"$f":"'2'!N$39-'[1]2'!Q$39","v":0},{"$f":"'2'!Q$39-'[1]2'!T$39","v":0},{"$f":"'2'!Q$39-'[1]2'!T$39","v":0},{"$f":"'2'!S$39-'[1]2'!V$39","v":0},{"$f":"'2'!T$39-'[1]2'!V$39","v":0}]
[null,null,null,null,null,null,"Transfers and subsidies",{"$f":"'2'!I$109-'[1]2'!J$109","v":0},{"$f":"'2'!J$109-'[1]2'!L$109","v":0},{"$f":"'2'!K$109-'[1]2'!N$109","v":0},{"$f":"'2'!L$109-'[1]2'!N$109","v":0},{"$f":"'2'!M$109-'[1]2'!Q$109","v":0},{"$f":"'2'!N$109-'[1]2'!Q$109","v":0},{"$f":"'2'!Q$109-'[1]2'!T$109","v":0},{"$f":"'2'!Q$109-'[1]2'!T$109","v":0},{"$f":"'2'!S$109-'[1]2'!V$109","v":0},{"$f":"'2'!T$109-'[1]2'!V$109","v":0}]
[null,null,null,null,null,null,"Tax payment",{"$f":"'2'!I$138-'[1]2'!J$138","v":0},{"$f":"'2'!J$138-'[1]2'!L$138","v":0},{"$f":"'2'!K$138-'[1]2'!N$138","v":0},{"$f":"'2'!L$138-'[1]2'!N$138","v":0},{"$f":"'2'!M$138-'[1]2'!Q$138","v":0},{"$f":"'2'!N$138-'[1]2'!Q$138","v":0},{"$f":"'2'!Q$138-'[1]2'!T$138","v":0},{"$f":"'2'!Q$138-'[1]2'!T$138","v":0},{"$f":"'2'!S$138-'[1]2'!V$138","v":0},{"$f":"'2'!T$138-'[1]2'!V$138","v":0}]
[null,null,null,null,null,null,"Outside shareholders Interest",{"$f":"'2'!I$139-'[1]2'!J$139","v":0},{"$f":"'2'!J$139-'[1]2'!L$139","v":0},{"$f":"'2'!K$139-'[1]2'!N$139","v":0},{"$f":"'2'!L$139-'[1]2'!N$139","v":0},{"$f":"'2'!M$139-'[1]2'!Q$139","v":0},{"$f":"'2'!N$139-'[1]2'!Q$139","v":0},{"$f":"'2'!Q$139-'[1]2'!T$139","v":0},{"$f":"'2'!Q$139-'[1]2'!T$139","v":0},{"$f":"'2'!S$139-'[1]2'!V$139","v":0},{"$f":"'2'!T$139-'[1]2'!V$139","v":0}]
[null,null,null,null,null,3,"Total",{"$f":"'3'!I$140-'[1]3'!J$140","v":0},{"$f":"'3'!J$140-'[1]3'!L$140","v":0},{"$f":"'3'!K$140-'[1]3'!N$140","v":0},{"$f":"'3'!L$140-'[1]3'!N$140","v":0},{"$f":"'3'!M$140-'[1]3'!Q$140","v":0},{"$f":"'3'!N$140-'[1]3'!Q$140","v":0},{"$f":"'3'!Q$140-'[1]3'!T$140","v":0},{"$f":"'3'!Q$140-'[1]3'!T$140","v":0},{"$f":"'3'!S$140-'[1]3'!V$140","v":0},{"$f":"'3'!T$140-'[1]3'!V$140","v":0}]
[null,null,null,null,null,null,"Current payments",{"$f":"'3'!I$39-'[1]3'!J$39","v":0},{"$f":"'3'!J$39-'[1]3'!L$39","v":0},{"$f":"'3'!K$39-'[1]3'!N$39","v":0},{"$f":"'3'!L$39-'[1]3'!N$39","v":0},{"$f":"'3'!M$39-'[1]3'!Q$39","v":0},{"$f":"'3'!N$39-'[1]3'!Q$39","v":0},{"$f":"'3'!Q$39-'[1]3'!T$39","v":0},{"$f":"'3'!Q$39-'[1]3'!T$39","v":0},{"$f":"'3'!S$39-'[1]3'!V$39","v":0},{"$f":"'3'!T$39-'[1]3'!V$39","v":0}]
[null,null,null,null,null,null,"Transfers and subsidies",{"$f":"'3'!I$109-'[1]3'!J$109","v":0},{"$f":"'3'!J$109-'[1]3'!L$109","v":0},{"$f":"'3'!K$109-'[1]3'!N$109","v":0},{"$f":"'3'!L$109-'[1]3'!N$109","v":0},{"$f":"'3'!M$109-'[1]3'!Q$109","v":0},{"$f":"'3'!N$109-'[1]3'!Q$109","v":0},{"$f":"'3'!Q$109-'[1]3'!T$109","v":0},{"$f":"'3'!Q$109-'[1]3'!T$109","v":0},{"$f":"'3'!S$109-'[1]3'!V$109","v":0},{"$f":"'3'!T$109-'[1]3'!V$109","v":0}]
[null,null,null,null,null,null,"Tax payment",{"$f":"'3'!I$138-'[1]3'!J$138","v":0},{"$f":"'3'!J$138-'[1]3'!L$138","v":0},{"$f":"'3'!K$138-'[1]3'!N$138","v":0},{"$f":"'3'!L$138-'[1]3'!N$138","v":0},{"$f":"'3'!M$138-'[1]3'!Q$138","v":0},{"$f":"'3'!N$138-'[1]3'!Q$138","v":0},{"$f":"'3'!Q$138-'[1]3'!T$138","v":0},{"$f":"'3'!Q$138-'[1]3'!T$138","v":0},{"$f":"'3'!S$138-'[1]3'!V$138","v":0},{"$f":"'3'!T$138-'[1]3'!V$138","v":0}]
[null,null,null,null,null,null,"Outside shareholders Interest",{"$f":"'3'!I$139-'[1]3'!J$139","v":0},{"$f":"'3'!J$139-'[1]3'!L$139","v":0},{"$f":"'3'!K$139-'[1]3'!N$139","v":0},{"$f":"'3'!L$139-'[1]3'!N$139","v":0},{"$f":"'3'!M$139-'[1]3'!Q$139","v":0},{"$f":"'3'!N$139-'[1]3'!Q$139","v":0},{"$f":"'3'!Q$139-'[1]3'!T$139","v":0},{"$f":"'3'!Q$139-'[1]3'!T$139","v":0},{"$f":"'3'!S$139-'[1]3'!V$139","v":0},{"$f":"'3'!T$139-'[1]3'!V$139","v":0}]
[null,null,null,null,null,4,"Total",{"$f":"'4'!I$140-'[1]4'!J$140","v":0},{"$f":"'4'!J$140-'[1]4'!L$140","v":0},{"$f":"'4'!K$140-'[1]4'!N$140","v":0},{"$f":"'4'!L$140-'[1]4'!N$140","v":0},{"$f":"'4'!M$140-'[1]4'!Q$140","v":0},{"$f":"'4'!N$140-'[1]4'!Q$140","v":0},{"$f":"'4'!Q$140-'[1]4'!T$140","v":0},{"$f":"'4'!Q$140-'[1]4'!T$140","v":0},{"$f":"'4'!S$140-'[1]4'!V$140","v":0},{"$f":"'4'!T$140-'[1]4'!V$140","v":0}]
[null,null,null,null,null,null,"Current payments",{"$f":"'4'!I$39-'[1]4'!J$39","v":0},{"$f":"'4'!J$39-'[1]4'!L$39","v":0},{"$f":"'4'!K$39-'[1]4'!N$39","v":0},{"$f":"'4'!L$39-'[1]4'!N$39","v":0},{"$f":"'4'!M$39-'[1]4'!Q$39","v":0},{"$f":"'4'!N$39-'[1]4'!Q$39","v":0},{"$f":"'4'!Q$39-'[1]4'!T$39","v":0},{"$f":"'4'!Q$39-'[1]4'!T$39","v":0},{"$f":"'4'!S$39-'[1]4'!V$39","v":0},{"$f":"'4'!T$39-'[1]4'!V$39","v":0}]
[null,null,null,null,null,null,"Transfers and subsidies",{"$f":"'4'!I$109-'[1]4'!J$109","v":0},{"$f":"'4'!J$109-'[1]4'!L$109","v":0},{"$f":"'4'!K$109-'[1]4'!N$109","v":0},{"$f":"'4'!L$109-'[1]4'!N$109","v":0},{"$f":"'4'!M$109-'[1]4'!Q$109","v":0},{"$f":"'4'!N$109-'[1]4'!Q$109","v":0},{"$f":"'4'!Q$109-'[1]4'!T$109","v":0},{"$f":"'4'!Q$109-'[1]4'!T$109","v":0},{"$f":"'4'!S$109-'[1]4'!V$109","v":0},{"$f":"'4'!T$109-'[1]4'!V$109","v":0}]
[null,null,null,null,null,null,"Tax payment",{"$f":"'4'!I$138-'[1]4'!J$138","v":0},{"$f":"'4'!J$138-'[1]4'!L$138","v":0},{"$f":"'4'!K$138-'[1]4'!N$138","v":0},{"$f":"'4'!L$138-'[1]4'!N$138","v":0},{"$f":"'4'!M$138-'[1]4'!Q$138","v":0},{"$f":"'4'!N$138-'[1]4'!Q$138","v":0},{"$f":"'4'!Q$138-'[1]4'!T$138","v":0},{"$f":"'4'!Q$138-'[1]4'!T$138","v":0},{"$f":"'4'!S$138-'[1]4'!V$138","v":0},{"$f":"'4'!T$138-'[1]4'!V$138","v":0}]
[null,null,null,null,null,null,"Outside shareholders Interest",{"$f":"'4'!I$139-'[1]4'!J$139","v":0},{"$f":"'4'!J$139-'[1]4'!L$139","v":0},{"$f":"'4'!K$139-'[1]4'!N$139","v":0},{"$f":"'4'!L$139-'[1]4'!N$139","v":0},{"$f":"'4'!M$139-'[1]4'!Q$139","v":0},{"$f":"'4'!N$139-'[1]4'!Q$139","v":0},{"$f":"'4'!Q$139-'[1]4'!T$139","v":0},{"$f":"'4'!Q$139-'[1]4'!T$139","v":0},{"$f":"'4'!S$139-'[1]4'!V$139","v":0},{"$f":"'4'!T$139-'[1]4'!V$139","v":0}]
[null,null,null,null,null,5,"Total",{"$f":"'5'!I$140-'[1]5'!J$140","v":0},{"$f":"'5'!J$140-'[1]5'!L$140","v":0},{"$f":"'5'!K$140-'[1]5'!N$140","v":0},{"$f":"'5'!L$140-'[1]5'!N$140","v":0},{"$f":"'5'!M$140-'[1]5'!Q$140","v":0},{"$f":"'5'!N$140-'[1]5'!Q$140","v":0},{"$f":"'5'!Q$140-'[1]5'!T$140","v":0},{"$f":"'5'!Q$140-'[1]5'!T$140","v":0},{"$f":"'5'!S$140-'[1]5'!V$140","v":0},{"$f":"'5'!T$140-'[1]5'!V$140","v":0}]
[null,null,null,null,null,null,"Current payments",{"$f":"'5'!I$39-'[1]5'!J$39","v":0},{"$f":"'5'!J$39-'[1]5'!L$39","v":0},{"$f":"'5'!K$39-'[1]5'!N$39","v":0},{"$f":"'5'!L$39-'[1]5'!N$39","v":0},{"$f":"'5'!M$39-'[1]5'!Q$39","v":0},{"$f":"'5'!N$39-'[1]5'!Q$39","v":0},{"$f":"'5'!Q$39-'[1]5'!T$39","v":0},{"$f":"'5'!Q$39-'[1]5'!T$39","v":0},{"$f":"'5'!S$39-'[1]5'!V$39","v":0},{"$f":"'5'!T$39-'[1]5'!V$39","v":0}]
[null,null,null,null,null,null,"Transfers and subsidies",{"$f":"'5'!I$109-'[1]5'!J$109","v":0},{"$f":"'5'!J$109-'[1]5'!L$109","v":0},{"$f":"'5'!K$109-'[1]5'!N$109","v":0},{"$f":"'5'!L$109-'[1]5'!N$109","v":0},{"$f":"'5'!M$109-'[1]5'!Q$109","v":0},{"$f":"'5'!N$109-'[1]5'!Q$109","v":0},{"$f":"'5'!Q$109-'[1]5'!T$109","v":0},{"$f":"'5'!Q$109-'[1]5'!T$109","v":0},{"$f":"'5'!S$109-'[1]5'!V$109","v":0},{"$f":"'5'!T$109-'[1]5'!V$109","v":0}]
[null,null,null,null,null,null,"Tax payment",{"$f":"'5'!I$138-'[1]5'!J$138","v":0},{"$f":"'5'!J$138-'[1]5'!L$138","v":0},{"$f":"'5'!K$138-'[1]5'!N$138","v":0},{"$f":"'5'!L$138-'[1]5'!N$138","v":0},{"$f":"'5'!M$138-'[1]5'!Q$138","v":0},{"$f":"'5'!N$138-'[1]5'!Q$138","v":0},{"$f":"'5'!Q$138-'[1]5'!T$138","v":0},{"$f":"'5'!Q$138-'[1]5'!T$138","v":0},{"$f":"'5'!S$138-'[1]5'!V$138","v":0},{"$f":"'5'!T$138-'[1]5'!V$138","v":0}]
[null,null,null,null,null,null,"Outside shareholders Interest",{"$f":"'5'!I$139-'[1]5'!J$139","v":0},{"$f":"'5'!J$139-'[1]5'!L$139","v":0},{"$f":"'5'!K$139-'[1]5'!N$139","v":0},{"$f":"'5'!L$139-'[1]5'!N$139","v":0},{"$f":"'5'!M$139-'[1]5'!Q$139","v":0},{"$f":"'5'!N$139-'[1]5'!Q$139","v":0},{"$f":"'5'!Q$139-'[1]5'!T$139","v":0},{"$f":"'5'!Q$139-'[1]5'!T$139","v":0},{"$f":"'5'!S$139-'[1]5'!V$139","v":0},{"$f":"'5'!T$139-'[1]5'!V$139","v":0}]
[null,null,null,null,null,6,"Total",{"$f":"'6'!I$140-'[1]6'!J$140","v":0},{"$f":"'6'!J$140-'[1]6'!L$140","v":0},{"$f":"'6'!K$140-'[1]6'!N$140","v":0},{"$f":"'6'!L$140-'[1]6'!N$140","v":0},{"$f":"'6'!M$140-'[1]6'!Q$140","v":0},{"$f":"'6'!N$140-'[1]6'!Q$140","v":0},{"$f":"'6'!Q$140-'[1]6'!T$140","v":0},{"$f":"'6'!Q$140-'[1]6'!T$140","v":0},{"$f":"'6'!S$140-'[1]6'!V$140","v":0},{"$f":"'6'!T$140-'[1]6'!V$140","v":0}]
[null,null,null,null,null,null,"Current payments",{"$f":"'6'!I$39-'[1]6'!J$39","v":0},{"$f":"'6'!J$39-'[1]6'!L$39","v":0},{"$f":"'6'!K$39-'[1]6'!N$39","v":0},{"$f":"'6'!L$39-'[1]6'!N$39","v":0},{"$f":"'6'!M$39-'[1]6'!Q$39","v":0},{"$f":"'6'!N$39-'[1]6'!Q$39","v":0},{"$f":"'6'!Q$39-'[1]6'!T$39","v":0},{"$f":"'6'!Q$39-'[1]6'!T$39","v":0},{"$f":"'6'!S$39-'[1]6'!V$39","v":0},{"$f":"'6'!T$39-'[1]6'!V$39","v":0}]
[null,null,null,null,null,null,"Transfers and subsidies",{"$f":"'6'!I$109-'[1]6'!J$109","v":0},{"$f":"'6'!J$109-'[1]6'!L$109","v":0},{"$f":"'6'!K$109-'[1]6'!N$109","v":0},{"$f":"'6'!L$109-'[1]6'!N$109","v":0},{"$f":"'6'!M$109-'[1]6'!Q$109","v":0},{"$f":"'6'!N$109-'[1]6'!Q$109","v":0},{"$f":"'6'!Q$109-'[1]6'!T$109","v":0},{"$f":"'6'!Q$109-'[1]6'!T$109","v":0},{"$f":"'6'!S$109-'[1]6'!V$109","v":0},{"$f":"'6'!T$109-'[1]6'!V$109","v":0}]
[null,null,null,null,null,null,"Tax payment",{"$f":"'6'!I$138-'[1]6'!J$138","v":0},{"$f":"'6'!J$138-'[1]6'!L$138","v":0},{"$f":"'6'!K$138-'[1]6'!N$138","v":0},{"$f":"'6'!L$138-'[1]6'!N$138","v":0},{"$f":"'6'!M$138-'[1]6'!Q$138","v":0},{"$f":"'6'!N$138-'[1]6'!Q$138","v":0},{"$f":"'6'!Q$138-'[1]6'!T$138","v":0},{"$f":"'6'!Q$138-'[1]6'!T$138","v":0},{"$f":"'6'!S$138-'[1]6'!V$138","v":0},{"$f":"'6'!T$138-'[1]6'!V$138","v":0}]
[null,null,null,null,null,null,"Outside shareholders Interest",{"$f":"'6'!I$139-'[1]6'!J$139","v":0},{"$f":"'6'!J$139-'[1]6'!L$139","v":0},{"$f":"'6'!K$139-'[1]6'!N$139","v":0},{"$f":"'6'!L$139-'[1]6'!N$139","v":0},{"$f":"'6'!M$139-'[1]6'!Q$139","v":0},{"$f":"'6'!N$139-'[1]6'!Q$139","v":0},{"$f":"'6'!Q$139-'[1]6'!T$139","v":0},{"$f":"'6'!Q$139-'[1]6'!T$139","v":0},{"$f":"'6'!S$139-'[1]6'!V$139","v":0},{"$f":"'6'!T$139-'[1]6'!V$139","v":0}]
[null,null,null,null,null,7,"Total",{"$f":"'7'!I$140-'[1]7'!J$140","v":0},{"$f":"'7'!J$140-'[1]7'!L$140","v":0},{"$f":"'7'!K$140-'[1]7'!N$140","v":0},{"$f":"'7'!L$140-'[1]7'!N$140","v":0},{"$f":"'7'!M$140-'[1]7'!Q$140","v":0},{"$f":"'7'!N$140-'[1]7'!Q$140","v":0},{"$f":"'7'!Q$140-'[1]7'!T$140","v":0},{"$f":"'7'!Q$140-'[1]7'!T$140","v":0},{"$f":"'7'!S$140-'[1]7'!V$140","v":0},{"$f":"'7'!T$140-'[1]7'!V$140","v":0}]
[null,null,null,null,null,null,"Current payments",{"$f":"'7'!I$39-'[1]7'!J$39","v":0},{"$f":"'7'!J$39-'[1]7'!L$39","v":0},{"$f":"'7'!K$39-'[1]7'!N$39","v":0},{"$f":"'7'!L$39-'[1]7'!N$39","v":0},{"$f":"'7'!M$39-'[1]7'!Q$39","v":0},{"$f":"'7'!N$39-'[1]7'!Q$39","v":0},{"$f":"'7'!Q$39-'[1]7'!T$39","v":0},{"$f":"'7'!Q$39-'[1]7'!T$39","v":0},{"$f":"'7'!S$39-'[1]7'!V$39","v":0},{"$f":"'7'!T$39-'[1]7'!V$39","v":0}]
[null,null,null,null,null,null,"Transfers and subsidies",{"$f":"'7'!I$109-'[1]7'!J$109","v":0},{"$f":"'7'!J$109-'[1]7'!L$109","v":0},{"$f":"'7'!K$109-'[1]7'!N$109","v":0},{"$f":"'7'!L$109-'[1]7'!N$109","v":0},{"$f":"'7'!M$109-'[1]7'!Q$109","v":0},{"$f":"'7'!N$109-'[1]7'!Q$109","v":0},{"$f":"'7'!Q$109-'[1]7'!T$109","v":0},{"$f":"'7'!Q$109-'[1]7'!T$109","v":0},{"$f":"'7'!S$109-'[1]7'!V$109","v":0},{"$f":"'7'!T$109-'[1]7'!V$109","v":0}]
[null,null,null,null,null,null,"Tax payment",{"$f":"'7'!I$138-'[1]7'!J$138","v":0},{"$f":"'7'!J$138-'[1]7'!L$138","v":0},{"$f":"'7'!K$138-'[1]7'!N$138","v":0},{"$f":"'7'!L$138-'[1]7'!N$138","v":0},{"$f":"'7'!M$138-'[1]7'!Q$138","v":0},{"$f":"'7'!N$138-'[1]7'!Q$138","v":0},{"$f":"'7'!Q$138-'[1]7'!T$138","v":0},{"$f":"'7'!Q$138-'[1]7'!T$138","v":0},{"$f":"'7'!S$138-'[1]7'!V$138","v":0},{"$f":"'7'!T$138-'[1]7'!V$138","v":0}]
[null,null,null,null,null,null,"Outside shareholders Interest",{"$f":"'7'!I$139-'[1]7'!J$139","v":0},{"$f":"'7'!J$139-'[1]7'!L$139","v":0},{"$f":"'7'!K$139-'[1]7'!N$139","v":0},{"$f":"'7'!L$139-'[1]7'!N$139","v":0},{"$f":"'7'!M$139-'[1]7'!Q$139","v":0},{"$f":"'7'!N$139-'[1]7'!Q$139","v":0},{"$f":"'7'!Q$139-'[1]7'!T$139","v":0},{"$f":"'7'!Q$139-'[1]7'!T$139","v":0},{"$f":"'7'!S$139-'[1]7'!V$139","v":0},{"$f":"'7'!T$139-'[1]7'!V$139","v":0}]
[null,null,null,null,null,8,"Total",{"$f":"'8'!I$140-'[1]8'!J$140","v":0},{"$f":"'8'!J$140-'[1]8'!L$140","v":0},{"$f":"'8'!K$140-'[1]8'!N$140","v":0},{"$f":"'8'!L$140-'[1]8'!N$140","v":0},{"$f":"'8'!M$140-'[1]8'!Q$140","v":0},{"$f":"'8'!N$140-'[1]8'!Q$140","v":0},{"$f":"'8'!Q$140-'[1]8'!T$140","v":0},{"$f":"'8'!Q$140-'[1]8'!T$140","v":0},{"$f":"'8'!S$140-'[1]8'!V$140","v":0},{"$f":"'8'!T$140-'[1]8'!V$140","v":0}]
[null,null,null,null,null,null,"Current payments",{"$f":"'8'!I$39-'[1]8'!J$39","v":0},{"$f":"'8'!J$39-'[1]8'!L$39","v":0},{"$f":"'8'!K$39-'[1]8'!N$39","v":0},{"$f":"'8'!L$39-'[1]8'!N$39","v":0},{"$f":"'8'!M$39-'[1]8'!Q$39","v":0},{"$f":"'8'!N$39-'[1]8'!Q$39","v":0},{"$f":"'8'!Q$39-'[1]8'!T$39","v":0},{"$f":"'8'!Q$39-'[1]8'!T$39","v":0},{"$f":"'8'!S$39-'[1]8'!V$39","v":0},{"$f":"'8'!T$39-'[1]8'!V$39","v":0}]
[null,null,null,null,null,null,"Transfers and subsidies",{"$f":"'8'!I$109-'[1]8'!J$109","v":0},{"$f":"'8'!J$109-'[1]8'!L$109","v":0},{"$f":"'8'!K$109-'[1]8'!N$109","v":0},{"$f":"'8'!L$109-'[1]8'!N$109","v":0},{"$f":"'8'!M$109-'[1]8'!Q$109","v":0},{"$f":"'8'!N$109-'[1]8'!Q$109","v":0},{"$f":"'8'!Q$109-'[1]8'!T$109","v":0},{"$f":"'8'!Q$109-'[1]8'!T$109","v":0},{"$f":"'8'!S$109-'[1]8'!V$109","v":0},{"$f":"'8'!T$109-'[1]8'!V$109","v":0}]
[null,null,null,null,null,null,"Tax payment",{"$f":"'8'!I$138-'[1]8'!J$138","v":0},{"$f":"'8'!J$138-'[1]8'!L$138","v":0},{"$f":"'8'!K$138-'[1]8'!N$138","v":0},{"$f":"'8'!L$138-'[1]8'!N$138","v":0},{"$f":"'8'!M$138-'[1]8'!Q$138","v":0},{"$f":"'8'!N$138-'[1]8'!Q$138","v":0},{"$f":"'8'!Q$138-'[1]8'!T$138","v":0},{"$f":"'8'!Q$138-'[1]8'!T$138","v":0},{"$f":"'8'!S$138-'[1]8'!V$138","v":0},{"$f":"'8'!T$138-'[1]8'!V$138","v":0}]
[null,null,null,null,null,null,"Outside shareholders Interest",{"$f":"'8'!I$139-'[1]8'!J$139","v":0},{"$f":"'8'!J$139-'[1]8'!L$139","v":0},{"$f":"'8'!K$139-'[1]8'!N$139","v":0},{"$f":"'8'!L$139-'[1]8'!N$139","v":0},{"$f":"'8'!M$139-'[1]8'!Q$139","v":0},{"$f":"'8'!N$139-'[1]8'!Q$139","v":0},{"$f":"'8'!Q$139-'[1]8'!T$139","v":0},{"$f":"'8'!Q$139-'[1]8'!T$139","v":0},{"$f":"'8'!S$139-'[1]8'!V$139","v":0},{"$f":"'8'!T$139-'[1]8'!V$139","v":0}]
[null,null,null,null,null,9,"Total",{"$f":"'9'!I$140-'[1]9'!J$140","v":0},{"$f":"'9'!J$140-'[1]9'!L$140","v":0},{"$f":"'9'!K$140-'[1]9'!N$140","v":0},{"$f":"'9'!L$140-'[1]9'!N$140","v":0},{"$f":"'9'!M$140-'[1]9'!Q$140","v":0},{"$f":"'9'!N$140-'[1]9'!Q$140","v":0},{"$f":"'9'!Q$140-'[1]9'!T$140","v":0},{"$f":"'9'!Q$140-'[1]9'!T$140","v":0},{"$f":"'9'!S$140-'[1]9'!V$140","v":0},{"$f":"'9'!T$140-'[1]9'!V$140","v":0}]
[null,null,null,null,null,null,"Current payments",{"$f":"'9'!I$39-'[1]9'!J$39","v":0},{"$f":"'9'!J$39-'[1]9'!L$39","v":0},{"$f":"'9'!K$39-'[1]9'!N$39","v":0},{"$f":"'9'!L$39-'[1]9'!N$39","v":0},{"$f":"'9'!M$39-'[1]9'!Q$39","v":0},{"$f":"'9'!N$39-'[1]9'!Q$39","v":0},{"$f":"'9'!Q$39-'[1]9'!T$39","v":0},{"$f":"'9'!Q$39-'[1]9'!T$39","v":0},{"$f":"'9'!S$39-'[1]9'!V$39","v":0},{"$f":"'9'!T$39-'[1]9'!V$39","v":0}]
[null,null,null,null,null,null,"Transfers and subsidies",{"$f":"'9'!I$109-'[1]9'!J$109","v":0},{"$f":"'9'!J$109-'[1]9'!L$109","v":0},{"$f":"'9'!K$109-'[1]9'!N$109","v":0},{"$f":"'9'!L$109-'[1]9'!N$109","v":0},{"$f":"'9'!M$109-'[1]9'!Q$109","v":0},{"$f":"'9'!N$109-'[1]9'!Q$109","v":0},{"$f":"'9'!Q$109-'[1]9'!T$109","v":0},{"$f":"'9'!Q$109-'[1]9'!T$109","v":0},{"$f":"'9'!S$109-'[1]9'!V$109","v":0},{"$f":"'9'!T$109-'[1]9'!V$109","v":0}]
[null,null,null,null,null,null,"Tax payment",{"$f":"'9'!I$138-'[1]9'!J$138","v":0},{"$f":"'9'!J$138-'[1]9'!L$138","v":0},{"$f":"'9'!K$138-'[1]9'!N$138","v":0},{"$f":"'9'!L$138-'[1]9'!N$138","v":0},{"$f":"'9'!M$138-'[1]9'!Q$138","v":0},{"$f":"'9'!N$138-'[1]9'!Q$138","v":0},{"$f":"'9'!Q$138-'[1]9'!T$138","v":0},{"$f":"'9'!Q$138-'[1]9'!T$138","v":0},{"$f":"'9'!S$138-'[1]9'!V$138","v":0},{"$f":"'9'!T$138-'[1]9'!V$138","v":0}]
[null,null,null,null,null,null,"Outside shareholders Interest",{"$f":"'9'!I$139-'[1]9'!J$139","v":0},{"$f":"'9'!J$139-'[1]9'!L$139","v":0},{"$f":"'9'!K$139-'[1]9'!N$139","v":0},{"$f":"'9'!L$139-'[1]9'!N$139","v":0},{"$f":"'9'!M$139-'[1]9'!Q$139","v":0},{"$f":"'9'!N$139-'[1]9'!Q$139","v":0},{"$f":"'9'!Q$139-'[1]9'!T$139","v":0},{"$f":"'9'!Q$139-'[1]9'!T$139","v":0},{"$f":"'9'!S$139-'[1]9'!V$139","v":0},{"$f":"'9'!T$139-'[1]9'!V$139","v":0}]
[null,null,null,null,null,10,"Total",{"$f":"'10'!I$140-'[1]10'!J$140","v":0},{"$f":"'10'!J$140-'[1]10'!L$140","v":0},{"$f":"'10'!K$140-'[1]10'!N$140","v":0},{"$f":"'10'!L$140-'[1]10'!N$140","v":0},{"$f":"'10'!M$140-'[1]10'!Q$140","v":0},{"$f":"'10'!N$140-'[1]10'!Q$140","v":0},{"$f":"'10'!Q$140-'[1]10'!T$140","v":0},{"$f":"'10'!Q$140-'[1]10'!T$140","v":0},{"$f":"'10'!S$140-'[1]10'!V$140","v":0},{"$f":"'10'!T$140-'[1]10'!V$140","v":0}]
[null,null,null,null,null,null,"Current payments",{"$f":"'10'!I$39-'[1]10'!J$39","v":0},{"$f":"'10'!J$39-'[1]10'!L$39","v":0},{"$f":"'10'!K$39-'[1]10'!N$39","v":0},{"$f":"'10'!L$39-'[1]10'!N$39","v":0},{"$f":"'10'!M$39-'[1]10'!Q$39","v":0},{"$f":"'10'!N$39-'[1]10'!Q$39","v":0},{"$f":"'10'!Q$39-'[1]10'!T$39","v":0},{"$f":"'10'!Q$39-'[1]10'!T$39","v":0},{"$f":"'10'!S$39-'[1]10'!V$39","v":0},{"$f":"'10'!T$39-'[1]10'!V$39","v":0}]
[null,null,null,null,null,null,"Transfers and subsidies",{"$f":"'10'!I$109-'[1]10'!J$109","v":0},{"$f":"'10'!J$109-'[1]10'!L$109","v":0},{"$f":"'10'!K$109-'[1]10'!N$109","v":0},{"$f":"'10'!L$109-'[1]10'!N$109","v":0},{"$f":"'10'!M$109-'[1]10'!Q$109","v":0},{"$f":"'10'!N$109-'[1]10'!Q$109","v":0},{"$f":"'10'!Q$109-'[1]10'!T$109","v":0},{"$f":"'10'!Q$109-'[1]10'!T$109","v":0},{"$f":"'10'!S$109-'[1]10'!V$109","v":0},{"$f":"'10'!T$109-'[1]10'!V$109","v":0}]
[null,null,null,null,null,null,"Tax payment",{"$f":"'10'!I$138-'[1]10'!J$138","v":0},{"$f":"'10'!J$138-'[1]10'!L$138","v":0},{"$f":"'10'!K$138-'[1]10'!N$138","v":0},{"$f":"'10'!L$138-'[1]10'!N$138","v":0},{"$f":"'10'!M$138-'[1]10'!Q$138","v":0},{"$f":"'10'!N$138-'[1]10'!Q$138","v":0},{"$f":"'10'!Q$138-'[1]10'!T$138","v":0},{"$f":"'10'!Q$138-'[1]10'!T$138","v":0},{"$f":"'10'!S$138-'[1]10'!V$138","v":0},{"$f":"'10'!T$138-'[1]10'!V$138","v":0}]
[null,null,null,null,null,null,"Outside shareholders Interest",{"$f":"'10'!I$139-'[1]10'!J$139","v":0},{"$f":"'10'!J$139-'[1]10'!L$139","v":0},{"$f":"'10'!K$139-'[1]10'!N$139","v":0},{"$f":"'10'!L$139-'[1]10'!N$139","v":0},{"$f":"'10'!M$139-'[1]10'!Q$139","v":0},{"$f":"'10'!N$139-'[1]10'!Q$139","v":0},{"$f":"'10'!Q$139-'[1]10'!T$139","v":0},{"$f":"'10'!Q$139-'[1]10'!T$139","v":0},{"$f":"'10'!S$139-'[1]10'!V$139","v":0},{"$f":"'10'!T$139-'[1]10'!V$139","v":0}]
[null,null,null,null,null,11,"Total",{"$f":"'11'!I$140-'[1]11'!J$140","v":0},{"$f":"'11'!J$140-'[1]11'!L$140","v":0},{"$f":"'11'!K$140-'[1]11'!N$140","v":0},{"$f":"'11'!L$140-'[1]11'!N$140","v":0},{"$f":"'11'!M$140-'[1]11'!Q$140","v":0},{"$f":"'11'!N$140-'[1]11'!Q$140","v":0},{"$f":"'11'!Q$140-'[1]11'!T$140","v":0},{"$f":"'11'!Q$140-'[1]11'!T$140","v":0},{"$f":"'11'!S$140-'[1]11'!V$140","v":0},{"$f":"'11'!T$140-'[1]11'!V$140","v":0}]
[null,null,null,null,null,null,"Current payments",{"$f":"'11'!I$39-'[1]11'!J$39","v":0},{"$f":"'11'!J$39-'[1]11'!L$39","v":0},{"$f":"'11'!K$39-'[1]11'!N$39","v":0},{"$f":"'11'!L$39-'[1]11'!N$39","v":0},{"$f":"'11'!M$39-'[1]11'!Q$39","v":0},{"$f":"'11'!N$39-'[1]11'!Q$39","v":0},{"$f":"'11'!Q$39-'[1]11'!T$39","v":0},{"$f":"'11'!Q$39-'[1]11'!T$39","v":0},{"$f":"'11'!S$39-'[1]11'!V$39","v":0},{"$f":"'11'!T$39-'[1]11'!V$39","v":0}]
[null,null,null,null,null,null,"Transfers and subsidies",{"$f":"'11'!I$109-'[1]11'!J$109","v":0},{"$f":"'11'!J$109-'[1]11'!L$109","v":0},{"$f":"'11'!K$109-'[1]11'!N$109","v":0},{"$f":"'11'!L$109-'[1]11'!N$109","v":0},{"$f":"'11'!M$109-'[1]11'!Q$109","v":0},{"$f":"'11'!N$109-'[1]11'!Q$109","v":0},{"$f":"'11'!Q$109-'[1]11'!T$109","v":0},{"$f":"'11'!Q$109-'[1]11'!T$109","v":0},{"$f":"'11'!S$109-'[1]11'!V$109","v":0},{"$f":"'11'!T$109-'[1]11'!V$109","v":0}]
[null,null,null,null,null,null,"Tax payment",{"$f":"'11'!I$138-'[1]11'!J$138","v":0},{"$f":"'11'!J$138-'[1]11'!L$138","v":0},{"$f":"'11'!K$138-'[1]11'!N$138","v":0},{"$f":"'11'!L$138-'[1]11'!N$138","v":0},{"$f":"'11'!M$138-'[1]11'!Q$138","v":0},{"$f":"'11'!N$138-'[1]11'!Q$138","v":0},{"$f":"'11'!Q$138-'[1]11'!T$138","v":0},{"$f":"'11'!Q$138-'[1]11'!T$138","v":0},{"$f":"'11'!S$138-'[1]11'!V$138","v":0},{"$f":"'11'!T$138-'[1]11'!V$138","v":0}]
[null,null,null,null,null,null,"Outside shareholders Interest",{"$f":"'11'!I$139-'[1]11'!J$139","v":0},{"$f":"'11'!J$139-'[1]11'!L$139","v":0},{"$f":"'11'!K$139-'[1]11'!N$139","v":0},{"$f":"'11'!L$139-'[1]11'!N$139","v":0},{"$f":"'11'!M$139-'[1]11'!Q$139","v":0},{"$f":"'11'!N$139-'[1]11'!Q$139","v":0},{"$f":"'11'!Q$139-'[1]11'!T$139","v":0},{"$f":"'11'!Q$139-'[1]11'!T$139","v":0},{"$f":"'11'!S$139-'[1]11'!V$139","v":0},{"$f":"'11'!T$139-'[1]11'!V$139","v":0}]
[null,null,null,null,null,12,"Total",{"$f":"'12'!I$140-'[1]12'!J$140","v":0},{"$f":"'12'!J$140-'[1]12'!L$140","v":0},{"$f":"'12'!K$140-'[1]12'!N$140","v":0},{"$f":"'12'!L$140-'[1]12'!N$140","v":0},{"$f":"'12'!M$140-'[1]12'!Q$140","v":0},{"$f":"'12'!N$140-'[1]12'!Q$140","v":0},{"$f":"'12'!Q$140-'[1]12'!T$140","v":0},{"$f":"'12'!Q$140-'[1]12'!T$140","v":0},{"$f":"'12'!S$140-'[1]12'!V$140","v":0},{"$f":"'12'!T$140-'[1]12'!V$140","v":0}]
[null,null,null,null,null,null,"Current payments",{"$f":"'12'!I$39-'[1]12'!J$39","v":0},{"$f":"'12'!J$39-'[1]12'!L$39","v":0},{"$f":"'12'!K$39-'[1]12'!N$39","v":0},{"$f":"'12'!L$39-'[1]12'!N$39","v":0},{"$f":"'12'!M$39-'[1]12'!Q$39","v":0},{"$f":"'12'!N$39-'[1]12'!Q$39","v":0},{"$f":"'12'!Q$39-'[1]12'!T$39","v":0},{"$f":"'12'!Q$39-'[1]12'!T$39","v":0},{"$f":"'12'!S$39-'[1]12'!V$39","v":0},{"$f":"'12'!T$39-'[1]12'!V$39","v":0}]
[null,null,null,null,null,null,"Transfers and subsidies",{"$f":"'12'!I$109-'[1]12'!J$109","v":0},{"$f":"'12'!J$109-'[1]12'!L$109","v":0},{"$f":"'12'!K$109-'[1]12'!N$109","v":0},{"$f":"'12'!L$109-'[1]12'!N$109","v":0},{"$f":"'12'!M$109-'[1]12'!Q$109","v":0},{"$f":"'12'!N$109-'[1]12'!Q$109","v":0},{"$f":"'12'!Q$109-'[1]12'!T$109","v":0},{"$f":"'12'!Q$109-'[1]12'!T$109","v":0},{"$f":"'12'!S$109-'[1]12'!V$109","v":0},{"$f":"'12'!T$109-'[1]12'!V$109","v":0}]
[null,null,null,null,null,null,"Tax payment",{"$f":"'12'!I$138-'[1]12'!J$138","v":0},{"$f":"'12'!J$138-'[1]12'!L$138","v":0},{"$f":"'12'!K$138-'[1]12'!N$138","v":0},{"$f":"'12'!L$138-'[1]12'!N$138","v":0},{"$f":"'12'!M$138-'[1]12'!Q$138","v":0},{"$f":"'12'!N$138-'[1]12'!Q$138","v":0},{"$f":"'12'!Q$138-'[1]12'!T$138","v":0},{"$f":"'12'!Q$138-'[1]12'!T$138","v":0},{"$f":"'12'!S$138-'[1]12'!V$138","v":0},{"$f":"'12'!T$138-'[1]12'!V$138","v":0}]
[null,null,null,null,null,null,"Outside shareholders Interest",{"$f":"'12'!I$139-'[1]12'!J$139","v":0},{"$f":"'12'!J$139-'[1]12'!L$139","v":0},{"$f":"'12'!K$139-'[1]12'!N$139","v":0},{"$f":"'12'!L$139-'[1]12'!N$139","v":0},{"$f":"'12'!M$139-'[1]12'!Q$139","v":0},{"$f":"'12'!N$139-'[1]12'!Q$139","v":0},{"$f":"'12'!Q$139-'[1]12'!T$139","v":0},{"$f":"'12'!Q$139-'[1]12'!T$139","v":0},{"$f":"'12'!S$139-'[1]12'!V$139","v":0},{"$f":"'12'!T$139-'[1]12'!V$139","v":0}]
[null,null,null,null,null,13,"Total",{"$f":"'13'!I$140-'[1]13'!J$140","v":0},{"$f":"'13'!J$140-'[1]13'!L$140","v":0},{"$f":"'13'!K$140-'[1]13'!N$140","v":0},{"$f":"'13'!L$140-'[1]13'!N$140","v":0},{"$f":"'13'!M$140-'[1]13'!Q$140","v":0},{"$f":"'13'!N$140-'[1]13'!Q$140","v":0},{"$f":"'13'!Q$140-'[1]13'!T$140","v":0},{"$f":"'13'!Q$140-'[1]13'!T$140","v":0},{"$f":"'13'!S$140-'[1]13'!V$140","v":0},{"$f":"'13'!T$140-'[1]13'!V$140","v":0}]
[null,null,null,null,null,null,"Current payments",{"$f":"'13'!I$39-'[1]13'!J$39","v":0},{"$f":"'13'!J$39-'[1]13'!L$39","v":0},{"$f":"'13'!K$39-'[1]13'!N$39","v":0},{"$f":"'13'!L$39-'[1]13'!N$39","v":0},{"$f":"'13'!M$39-'[1]13'!Q$39","v":0},{"$f":"'13'!N$39-'[1]13'!Q$39","v":0},{"$f":"'13'!Q$39-'[1]13'!T$39","v":0},{"$f":"'13'!Q$39-'[1]13'!T$39","v":0},{"$f":"'13'!S$39-'[1]13'!V$39","v":0},{"$f":"'13'!T$39-'[1]13'!V$39","v":0}]
[null,null,null,null,null,null,"Transfers and subsidies",{"$f":"'13'!I$109-'[1]13'!J$109","v":0},{"$f":"'13'!J$109-'[1]13'!L$109","v":0},{"$f":"'13'!K$109-'[1]13'!N$109","v":0},{"$f":"'13'!L$109-'[1]13'!N$109","v":0},{"$f":"'13'!M$109-'[1]13'!Q$109","v":0},{"$f":"'13'!N$109-'[1]13'!Q$109","v":0},{"$f":"'13'!Q$109-'[1]13'!T$109","v":0},{"$f":"'13'!Q$109-'[1]13'!T$109","v":0},{"$f":"'13'!S$109-'[1]13'!V$109","v":0},{"$f":"'13'!T$109-'[1]13'!V$109","v":0}]
[null,null,null,null,null,null,"Tax payment",{"$f":"'13'!I$138-'[1]13'!J$138","v":0},{"$f":"'13'!J$138-'[1]13'!L$138","v":0},{"$f":"'13'!K$138-'[1]13'!N$138","v":0},{"$f":"'13'!L$138-'[1]13'!N$138","v":0},{"$f":"'13'!M$138-'[1]13'!Q$138","v":0},{"$f":"'13'!N$138-'[1]13'!Q$138","v":0},{"$f":"'13'!Q$138-'[1]13'!T$138","v":0},{"$f":"'13'!Q$138-'[1]13'!T$138","v":0},{"$f":"'13'!S$138-'[1]13'!V$138","v":0},{"$f":"'13'!T$138-'[1]13'!V$138","v":0}]
[null,null,null,null,null,null,"Outside shareholders Interest",{"$f":"'13'!I$139-'[1]13'!J$139","v":0},{"$f":"'13'!J$139-'[1]13'!L$139","v":0},{"$f":"'13'!K$139-'[1]13'!N$139","v":0},{"$f":"'13'!L$139-'[1]13'!N$139","v":0},{"$f":"'13'!M$139-'[1]13'!Q$139","v":0},{"$f":"'13'!N$139-'[1]13'!Q$139","v":0},{"$f":"'13'!Q$139-'[1]13'!T$139","v":0},{"$f":"'13'!Q$139-'[1]13'!T$139","v":0},{"$f":"'13'!S$139-'[1]13'!V$139","v":0},{"$f":"'13'!T$139-'[1]13'!V$139","v":0}]
[null,null,null,null,null,14,"Total",{"$f":"'14'!I$140-'[1]14'!J$140","v":0},{"$f":"'14'!J$140-'[1]14'!L$140","v":0},{"$f":"'14'!K$140-'[1]14'!N$140","v":0},{"$f":"'14'!L$140-'[1]14'!N$140","v":0},{"$f":"'14'!M$140-'[1]14'!Q$140","v":0},{"$f":"'14'!N$140-'[1]14'!Q$140","v":0},{"$f":"'14'!Q$140-'[1]14'!T$140","v":0},{"$f":"'14'!Q$140-'[1]14'!T$140","v":0},{"$f":"'14'!S$140-'[1]14'!V$140","v":0},{"$f":"'14'!T$140-'[1]14'!V$140","v":0}]
[null,null,null,null,null,null,"Current payments",{"$f":"'14'!I$39-'[1]14'!J$39","v":0},{"$f":"'14'!J$39-'[1]14'!L$39","v":0},{"$f":"'14'!K$39-'[1]14'!N$39","v":0},{"$f":"'14'!L$39-'[1]14'!N$39","v":0},{"$f":"'14'!M$39-'[1]14'!Q$39","v":0},{"$f":"'14'!N$39-'[1]14'!Q$39","v":0},{"$f":"'14'!Q$39-'[1]14'!T$39","v":0},{"$f":"'14'!Q$39-'[1]14'!T$39","v":0},{"$f":"'14'!S$39-'[1]14'!V$39","v":0},{"$f":"'14'!T$39-'[1]14'!V$39","v":0}]
[null,null,null,null,null,null,"Transfers and subsidies",{"$f":"'14'!I$109-'[1]14'!J$109","v":0},{"$f":"'14'!J$109-'[1]14'!L$109","v":0},{"$f":"'14'!K$109-'[1]14'!N$109","v":0},{"$f":"'14'!L$109-'[1]14'!N$109","v":0},{"$f":"'14'!M$109-'[1]14'!Q$109","v":0},{"$f":"'14'!N$109-'[1]14'!Q$109","v":0},{"$f":"'14'!Q$109-'[1]14'!T$109","v":0},{"$f":"'14'!Q$109-'[1]14'!T$109","v":0},{"$f":"'14'!S$109-'[1]14'!V$109","v":0},{"$f":"'14'!T$109-'[1]14'!V$109","v":0}]
[null,null,null,null,null,null,"Tax payment",{"$f":"'14'!I$138-'[1]14'!J$138","v":0},{"$f":"'14'!J$138-'[1]14'!L$138","v":0},{"$f":"'14'!K$138-'[1]14'!N$138","v":0},{"$f":"'14'!L$138-'[1]14'!N$138","v":0},{"$f":"'14'!M$138-'[1]14'!Q$138","v":0},{"$f":"'14'!N$138-'[1]14'!Q$138","v":0},{"$f":"'14'!Q$138-'[1]14'!T$138","v":0},{"$f":"'14'!Q$138-'[1]14'!T$138","v":0},{"$f":"'14'!S$138-'[1]14'!V$138","v":0},{"$f":"'14'!T$138-'[1]14'!V$138","v":0}]
[null,null,null,null,null,null,"Outside shareholders Interest",{"$f":"'14'!I$139-'[1]14'!J$139","v":0},{"$f":"'14'!J$139-'[1]14'!L$139","v":0},{"$f":"'14'!K$139-'[1]14'!N$139","v":0},{"$f":"'14'!L$139-'[1]14'!N$139","v":0},{"$f":"'14'!M$139-'[1]14'!Q$139","v":0},{"$f":"'14'!N$139-'[1]14'!Q$139","v":0},{"$f":"'14'!Q$139-'[1]14'!T$139","v":0},{"$f":"'14'!Q$139-'[1]14'!T$139","v":0},{"$f":"'14'!S$139-'[1]14'!V$139","v":0},{"$f":"'14'!T$139-'[1]14'!V$139","v":0}]
[null,null,null,null,null,15,"Total",{"$f":"'15'!I$140-'[1]15'!J$140","v":0},{"$f":"'15'!J$140-'[1]15'!L$140","v":0},{"$f":"'15'!K$140-'[1]15'!N$140","v":0},{"$f":"'15'!L$140-'[1]15'!N$140","v":0},{"$f":"'15'!M$140-'[1]15'!Q$140","v":0},{"$f":"'15'!N$140-'[1]15'!Q$140","v":0},{"$f":"'15'!Q$140-'[1]15'!T$140","v":0},{"$f":"'15'!Q$140-'[1]15'!T$140","v":0},{"$f":"'15'!S$140-'[1]15'!V$140","v":0},{"$f":"'15'!T$140-'[1]15'!V$140","v":0}]
[null,null,null,null,null,null,"Current payments",{"$f":"'15'!I$39-'[1]15'!J$39","v":0},{"$f":"'15'!J$39-'[1]15'!L$39","v":0},{"$f":"'15'!K$39-'[1]15'!N$39","v":0},{"$f":"'15'!L$39-'[1]15'!N$39","v":0},{"$f":"'15'!M$39-'[1]15'!Q$39","v":0},{"$f":"'15'!N$39-'[1]15'!Q$39","v":0},{"$f":"'15'!Q$39-'[1]15'!T$39","v":0},{"$f":"'15'!Q$39-'[1]15'!T$39","v":0},{"$f":"'15'!S$39-'[1]15'!V$39","v":0},{"$f":"'15'!T$39-'[1]15'!V$39","v":0}]
[null,null,null,null,null,null,"Transfers and subsidies",{"$f":"'15'!I$109-'[1]15'!J$109","v":0},{"$f":"'15'!J$109-'[1]15'!L$109","v":0},{"$f":"'15'!K$109-'[1]15'!N$109","v":0},{"$f":"'15'!L$109-'[1]15'!N$109","v":0},{"$f":"'15'!M$109-'[1]15'!Q$109","v":0},{"$f":"'15'!N$109-'[1]15'!Q$109","v":0},{"$f":"'15'!Q$109-'[1]15'!T$109","v":0},{"$f":"'15'!Q$109-'[1]15'!T$109","v":0},{"$f":"'15'!S$109-'[1]15'!V$109","v":0},{"$f":"'15'!T$109-'[1]15'!V$109","v":0}]
[null,null,null,null,null,null,"Tax payment",{"$f":"'15'!I$138-'[1]15'!J$138","v":0},{"$f":"'15'!J$138-'[1]15'!L$138","v":0},{"$f":"'15'!K$138-'[1]15'!N$138","v":0},{"$f":"'15'!L$138-'[1]15'!N$138","v":0},{"$f":"'15'!M$138-'[1]15'!Q$138","v":0},{"$f":"'15'!N$138-'[1]15'!Q$138","v":0},{"$f":"'15'!Q$138-'[1]15'!T$138","v":0},{"$f":"'15'!Q$138-'[1]15'!T$138","v":0},{"$f":"'15'!S$138-'[1]15'!V$138","v":0},{"$f":"'15'!T$138-'[1]15'!V$138","v":0}]
[null,null,null,null,null,null,"Outside shareholders Interest",{"$f":"'15'!I$139-'[1]15'!J$139","v":0},{"$f":"'15'!J$139-'[1]15'!L$139","v":0},{"$f":"'15'!K$139-'[1]15'!N$139","v":0},{"$f":"'15'!L$139-'[1]15'!N$139","v":0},{"$f":"'15'!M$139-'[1]15'!Q$139","v":0},{"$f":"'15'!N$139-'[1]15'!Q$139","v":0},{"$f":"'15'!Q$139-'[1]15'!T$139","v":0},{"$f":"'15'!Q$139-'[1]15'!T$139","v":0},{"$f":"'15'!S$139-'[1]15'!V$139","v":0},{"$f":"'15'!T$139-'[1]15'!V$139","v":0}]
[null,null,null,null,null,"Related Party  Revenue","Total",{"$f":"RelatedPartyRevenue!K361-[1]RelatedPartyRevenue!M361","v":0},{"$f":"RelatedPartyRevenue!M361-[1]RelatedPartyRevenue!O361","v":0},{"$f":"RelatedPartyRevenue!N361-[1]RelatedPartyRevenue!Q361","v":0},{"$f":"RelatedPartyRevenue!O361-[1]RelatedPartyRevenue!Q361","v":0},{"$f":"RelatedPartyRevenue!P361-[1]RelatedPartyRevenue!S361","v":0},{"$f":"RelatedPartyRevenue!Q361-[1]RelatedPartyRevenue!S361","v":0},{"$f":"RelatedPartyRevenue!R361-[1]RelatedPartyRevenue!U361","v":0},{"$f":"RelatedPartyRevenue!S361-[1]RelatedPartyRevenue!U361","v":0},{"$f":"RelatedPartyRevenue!T361-[1]RelatedPartyRevenue!V361","v":0},{"$f":"RelatedPartyRevenue!U361-[1]RelatedPartyRevenue!V361","v":0}]
[null,null,null,null,null,"Personnel","Total",null,null,null,{"$f":"Personnel!L1500-[1]Personnel!Q1500","v":0},null,{"$f":"Personnel!Q1500-[1]Personnel!T1500","v":0},null,{"$f":"Personnel!T1500-[1]Personnel!W1500","v":0},null,{"$f":"Personnel!W1500-[1]Personnel!Z1500","v":0}]
[null,null,null,null,null,"Infrastructure","Total",{"$f":"Infrastructure!P1816-[1]Infrastructure!Q1816","v":0},{"$f":"Infrastructure!Q1816-[1]Infrastructure!R1816","v":0},null,{"$f":"Infrastructure!R1816-[1]Infrastructure!T1816","v":0},{"$f":"Infrastructure!S1816-[1]Infrastructure!W1816","v":0},{"$f":"Infrastructure!T1816-[1]Infrastructure!W1816","v":0},{"$f":"Infrastructure!V1816-[1]Infrastructure!Z1816","v":0},{"$f":"Infrastructure!W1816-[1]Infrastructure!Z1816","v":0},{"$f":"Infrastructure!Y1816-[1]Infrastructure!AB1816","v":0},{"$f":"Infrastructure!Z1816-[1]Infrastructure!AB1816","v":0}]
[null,null,null,null,null,null,"Project 1",{"$f":"Infrastructure!P10-[1]Infrastructure!Q10","v":0},{"$f":"Infrastructure!Q10-[1]Infrastructure!R10","v":0},null,{"$f":"Infrastructure!R10-[1]Infrastructure!T10","v":0},{"$f":"Infrastructure!S10-[1]Infrastructure!W10","v":0},{"$f":"Infrastructure!T10-[1]Infrastructure!W10","v":0},{"$f":"Infrastructure!V10-[1]Infrastructure!Z10","v":0},{"$f":"Infrastructure!W10-[1]Infrastructure!Z10","v":0},{"$f":"Infrastructure!Y10-[1]Infrastructure!AB10","v":0},{"$f":"Infrastructure!Z10-[1]Infrastructure!AB10","v":0}]
[null,null,null,null,null,null,"Project 2",{"$f":"Infrastructure!P612-[1]Infrastructure!Q612","v":0},{"$f":"Infrastructure!Q612-[1]Infrastructure!R612","v":0},null,{"$f":"Infrastructure!R612-[1]Infrastructure!T612","v":0},{"$f":"Infrastructure!S612-[1]Infrastructure!W612","v":0},{"$f":"Infrastructure!T612-[1]Infrastructure!W612","v":0},{"$f":"Infrastructure!V612-[1]Infrastructure!Z612","v":0},{"$f":"Infrastructure!W612-[1]Infrastructure!Z612","v":0},{"$f":"Infrastructure!Y612-[1]Infrastructure!AB612","v":0},{"$f":"Infrastructure!Z612-[1]Infrastructure!AB612","v":0}]
[null,null,null,null,null,null,"Project 3",{"$f":"Infrastructure!P1214-[1]Infrastructure!Q1214","v":0},{"$f":"Infrastructure!Q1214-[1]Infrastructure!R1214","v":0},null,{"$f":"Infrastructure!R1214-[1]Infrastructure!T1214","v":0},{"$f":"Infrastructure!S1214-[1]Infrastructure!W1214","v":0},{"$f":"Infrastructure!T1214-[1]Infrastructure!W1214","v":0},{"$f":"Infrastructure!V1214-[1]Infrastructure!Z1214","v":0},{"$f":"Infrastructure!W1214-[1]Infrastructure!Z1214","v":0},{"$f":"Infrastructure!Y1214-[1]Infrastructure!AB1214","v":0},{"$f":"Infrastructure!Z1214-[1]Infrastructure!AB1214","v":0}]
[null,null,null,null,null,"ENE Summary","ENE Summary_Total revenue",{"$f":"ENESummary!G45-Revenue!I65","v":0},{"$f":"ENESummary!H45-Revenue!J65","v":0},null,{"$f":"ENESummary!I45-Revenue!L65","v":0},null,{"$f":"ENESummary!J45-Revenue!N65","v":0},null,{"$f":"ENESummary!M45-Revenue!P65","v":0},null,{"$f":"ENESummary!N45-Revenue!R65","v":0},{"$f":"ENESummary!O45-Revenue!S65","v":0}]
[null,null,null,null,null,null,"ENE Summary_Total expenses",{"$f":"ENESummary!G53-Revenue!I69","v":0},{"$f":"ENESummary!H53-Revenue!J69","v":0},null,{"$f":"ENESummary!I53-Revenue!L69","v":0},null,{"$f":"ENESummary!J53-Revenue!N69","v":0},null,{"$f":"ENESummary!M53-Revenue!P69","v":0},null,{"$f":"ENESummary!N53-Revenue!R69","v":0},{"$f":"ENESummary!O53-Revenue!S69","v":0}]
[null,null,null,null,null,null,"ENE Summary_Surplus/(deficit",{"$f":"ENESummary!G54-Revenue!I70","v":-0.38762000203132629},{"$f":"ENESummary!H54-Revenue!J70","v":1.1110000312328339E-2},null,{"$f":"ENESummary!I54-Revenue!L70","v":0.36845624260604382},null,{"$f":"ENESummary!J54-Revenue!N70","v":0.44225385785102844},null,{"$f":"ENESummary!M54-Revenue!P70","v":7.9844562336802483E-2},null,{"$f":"ENESummary!N54-Revenue!R70","v":-9.351847879588604E-2},{"$f":"ENESummary!O54-Revenue!S70","v":0}]
[null,null,null,null,null,null,"ENE Summary_Cash flow from operating activities",{"$f":"ENESummary!G60-CashFlow!I11","v":0},{"$f":"ENESummary!H60-CashFlow!J11","v":0},null,{"$f":"ENESummary!I60-CashFlow!L11","v":0},null,{"$f":"ENESummary!J60-CashFlow!N11","v":0},null,{"$f":"ENESummary!M60-CashFlow!P11","v":0},null,{"$f":"ENESummary!N60-CashFlow!R11","v":0},{"$f":"ENESummary!O60-CashFlow!S11","v":0}]
[null,null,null,null,null,null,"ENE Summary_Total receipts",{"$f":"ENESummary!G74-CashFlow!I12","v":0},{"$f":"ENESummary!H74-CashFlow!J12","v":0},null,{"$f":"ENESummary!I74-CashFlow!L12","v":0},null,{"$f":"ENESummary!J74-CashFlow!N12","v":0},null,{"$f":"ENESummary!M74-CashFlow!P12","v":0},null,{"$f":"ENESummary!N74-CashFlow!R12","v":0},{"$f":"ENESummary!O74-CashFlow!S12","v":0}]
[null,null,null,null,null,null,"ENE Summary_Total payment",{"$f":"ENESummary!G82-CashFlow!I58","v":0},{"$f":"ENESummary!H82-CashFlow!J58","v":0},null,{"$f":"ENESummary!I82-CashFlow!L58","v":0},null,{"$f":"ENESummary!J82-CashFlow!N58","v":0},null,{"$f":"ENESummary!M82-CashFlow!P58","v":0},null,{"$f":"ENESummary!N82-CashFlow!R58","v":0},{"$f":"ENESummary!O82-CashFlow!S58","v":0}]
[null,null,null,null,null,null,"ENE Summary_Cash flow from advancing activities (Financial Institutions only)",{"$f":"ENESummary!G83-CashFlow!I157","v":0},{"$f":"ENESummary!H83-CashFlow!J157","v":0},null,{"$f":"ENESummary!I83-CashFlow!L157","v":0},null,{"$f":"ENESummary!J83-CashFlow!N157","v":0},null,{"$f":"ENESummary!M83-CashFlow!P157","v":0},null,{"$f":"ENESummary!N83-CashFlow!R157","v":0},{"$f":"ENESummary!O83-CashFlow!S157","v":0}]
[null,null,null,null,null,null,"ENE Summary_Investing activities",{"$f":"ENESummary!G86-CashFlow!I168","v":0},{"$f":"ENESummary!H86-CashFlow!J168","v":0},null,{"$f":"ENESummary!I86-CashFlow!L168","v":0},null,{"$f":"ENESummary!J86-CashFlow!N168","v":0},null,{"$f":"ENESummary!M86-CashFlow!P168","v":0},null,{"$f":"ENESummary!N86-CashFlow!R168","v":0},{"$f":"ENESummary!O86-CashFlow!S168","v":0}]
[null,null,null,null,null,null,"ENE Summary_Cash flow from financing activities",{"$f":"ENESummary!G92-CashFlow!I195","v":0},{"$f":"ENESummary!H92-CashFlow!J195","v":0},null,{"$f":"ENESummary!I92-CashFlow!L195","v":0},null,{"$f":"ENESummary!J92-CashFlow!N195","v":0},null,{"$f":"ENESummary!M92-CashFlow!P195","v":0},null,{"$f":"ENESummary!N92-CashFlow!R195","v":0},{"$f":"ENESummary!O92-CashFlow!S195","v":0}]
[null,null,null,null,null,null,"ENE Summary_Net increase / (decrease) in cash and cash equivalents",{"$f":"ENESummary!G98-CashFlow!I216","v":0},{"$f":"ENESummary!H98-CashFlow!J216","v":0},null,{"$f":"ENESummary!I98-CashFlow!L216","v":0},null,{"$f":"ENESummary!J98-CashFlow!N216","v":0},null,{"$f":"ENESummary!M98-CashFlow!P216","v":0},null,{"$f":"ENESummary!N98-CashFlow!R216","v":0},{"$f":"ENESummary!O98-CashFlow!S216","v":0}]
[null,null,null,null,null,null,"ENE Summary_Total assets",{"$f":"ENESummary!G152-FinancialPosition!I53","v":0},{"$f":"ENESummary!H152-FinancialPosition!J53","v":0},null,{"$f":"ENESummary!I152-FinancialPosition!L53","v":0},null,{"$f":"ENESummary!J152-FinancialPosition!N53","v":0},null,{"$f":"ENESummary!M152-FinancialPosition!P53","v":0},null,{"$f":"ENESummary!N152-FinancialPosition!R53","v":0},{"$f":"ENESummary!O152-FinancialPosition!S53","v":0}]
[null,null,null,null,null,null,"ENE Summary_Total equity and liabilities",{"$f":"ENESummary!G170-FinancialPosition!I103","v":0},{"$f":"ENESummary!H170-FinancialPosition!J103","v":0},null,{"$f":"ENESummary!I170-FinancialPosition!L103","v":0},null,{"$f":"ENESummary!J170-FinancialPosition!N103","v":0},null,{"$f":"ENESummary!M170-FinancialPosition!P103","v":0},null,{"$f":"ENESummary!N170-FinancialPosition!R103","v":0},{"$f":"ENESummary!O170-FinancialPosition!S103","v":0}]
[null,null,null,null,null,"Consolidation","Receipts",{"$f":"ROUND(Consolidation!H42-(CashFlow!I12+CashFlow!I163+CashFlow!I184+CashFlow!I196),0)","v":0},{"$f":"ROUND(Consolidation!I42-(CashFlow!J12+CashFlow!J163+CashFlow!J184+CashFlow!J196+CashFlow!J212),0)","v":0},null,{"$f":"ROUND(Consolidation!J42-(CashFlow!L12+CashFlow!L163+CashFlow!L184+CashFlow!L196+CashFlow!L212),0)","v":0},null,{"$f":"ROUND(Consolidation!K42-(CashFlow!N12+CashFlow!N163+CashFlow!N184+CashFlow!N196+CashFlow!N212),0)","v":0},null,{"$f":"ROUND(Consolidation!L42-(CashFlow!P12+CashFlow!P163+CashFlow!P184+CashFlow!P196+CashFlow!P212),0)","v":0},null,{"$f":"ROUND(Consolidation!M42-(CashFlow!R12+CashFlow!R163+CashFlow!R184+CashFlow!R196+CashFlow!R212),0)","v":0},{"$f":"ROUND(Consolidation!N42-(CashFlow!S12+CashFlow!S163+CashFlow!S184+CashFlow!S196+CashFlow!S212),0)","v":0}]
[null,null,null,null,null,null,"Expenses",{"$f":"ROUND(Consolidation!H131-CashFlow!I58+CashFlow!I158+CashFlow!I169+CashFlow!I182+CashFlow!I183,0)","v":0},{"$f":"ROUND(Consolidation!I131-CashFlow!J58+CashFlow!J158+CashFlow!J169+CashFlow!J182+CashFlow!J183,0)","v":0},null,{"$f":"ROUND(Consolidation!J131-CashFlow!L58+CashFlow!L158+CashFlow!L169+CashFlow!L182+CashFlow!L183,0)","v":0},null,{"$f":"ROUND(Consolidation!K131-CashFlow!N58+CashFlow!N158+CashFlow!N169+CashFlow!N182+CashFlow!N183,0)","v":0},null,{"$f":"ROUND(Consolidation!L131-CashFlow!P58+CashFlow!P158+CashFlow!P169+CashFlow!P182+CashFlow!P183,0)","v":0},null,{"$f":"ROUND(Consolidation!M131-CashFlow!R58+CashFlow!R158+CashFlow!R169+CashFlow!R182+CashFlow!R183,0)","v":0},{"$f":"ROUND(Consolidation!N131-CashFlow!S58+CashFlow!S158+CashFlow!S169+CashFlow!S182+CashFlow!S183,0)","v":0}]
[null,null,null,null,null,null,"Tax receipts",{"$f":"Consolidation!H14-(CashFlow!I13)","v":0},{"$f":"Consolidation!I14-(CashFlow!J13)","v":0},null,{"$f":"Consolidation!J14-(CashFlow!L13)","v":0},null,{"$f":"Consolidation!K14-(CashFlow!N13)","v":0},null,{"$f":"Consolidation!L14-(CashFlow!P13)","v":0},null,{"$f":"Consolidation!M14-(CashFlow!R13)","v":0},{"$f":"Consolidation!N14-(CashFlow!S13)","v":0}]
[null,null,null,null,null,null,"Sales of goods and services other than capital assets",{"$f":"Consolidation!H15-SUM((CashFlow!I14,CashFlow!I198))","v":0},{"$f":"Consolidation!I15-SUM((CashFlow!J14,CashFlow!J198))","v":0},null,{"$f":"Consolidation!J15-SUM((CashFlow!L14,CashFlow!L198))","v":0},null,{"$f":"Consolidation!K15-SUM((CashFlow!N14,CashFlow!N198))","v":0},null,{"$f":"Consolidation!L15-SUM((CashFlow!P14,CashFlow!P198))","v":0},null,{"$f":"Consolidation!M15-SUM((CashFlow!R14,CashFlow!R198))","v":0},{"$f":"Consolidation!N15-SUM((CashFlow!S14,CashFlow!S198))","v":0}]
[null,null,null,null,null,null,"Transfers received",{"$f":"Consolidation!H21-SUM(CashFlow!I30,CashFlow!I56,CashFlow!I197)","v":0},{"$f":"Consolidation!I21-SUM(CashFlow!J30,CashFlow!J56,CashFlow!J197)","v":0},null,{"$f":"Consolidation!J21-SUM(CashFlow!L30,CashFlow!L56,CashFlow!L197)","v":0},null,{"$f":"Consolidation!K21-SUM(CashFlow!N30,CashFlow!N56,CashFlow!N197)","v":0},null,{"$f":"Consolidation!L21-SUM(CashFlow!P30,CashFlow!P56,CashFlow!P197)","v":0},null,{"$f":"Consolidation!M21-SUM(CashFlow!R30,CashFlow!R56,CashFlow!R197)","v":0},{"$f":"Consolidation!N21-SUM(CashFlow!S30,CashFlow!S56,CashFlow!S197)","v":0}]
[null,null,null,null,null,null,"Fines, penalties and forfeits",{"$f":"Consolidation!H31-(CashFlow!I48)","v":0},{"$f":"Consolidation!I31-(CashFlow!J48)","v":0},null,{"$f":"Consolidation!J31-(CashFlow!L48)","v":0},null,{"$f":"Consolidation!K31-(CashFlow!N48)","v":0},null,{"$f":"Consolidation!L31-(CashFlow!P48)","v":0},null,{"$f":"Consolidation!M31-(CashFlow!R48)","v":0},{"$f":"Consolidation!N31-(CashFlow!S48)","v":0}]
[null,null,null,null,null,null,"Interest, dividends and rent on land",{"$f":"Consolidation!H32-SUM(CashFlow!I49,CashFlow!I57)","v":0},{"$f":"Consolidation!I32-SUM(CashFlow!J49,CashFlow!J57)","v":0},null,{"$f":"Consolidation!J32-SUM(CashFlow!L49,CashFlow!L57)","v":0},null,{"$f":"Consolidation!K32-SUM(CashFlow!N49,CashFlow!N57)","v":0},null,{"$f":"Consolidation!L32-SUM(CashFlow!P49,CashFlow!P57)","v":0},null,{"$f":"Consolidation!M32-SUM(CashFlow!R49,CashFlow!R57)","v":0},{"$f":"Consolidation!N32-SUM(CashFlow!S49,CashFlow!S57)","v":0}]
[null,null,null,null,null,null,"Sales of capital assets",{"$f":"Consolidation!H36-(CashFlow!I184)","v":0},{"$f":"Consolidation!I36-(CashFlow!J184)","v":0},null,{"$f":"Consolidation!J36-(CashFlow!L184)","v":0},null,{"$f":"Consolidation!K36-(CashFlow!N184)","v":0},null,{"$f":"Consolidation!L36-(CashFlow!P184)","v":0},null,{"$f":"Consolidation!M36-(CashFlow!R184)","v":0},{"$f":"Consolidation!N36-(CashFlow!S184)","v":0}]
[null,null,null,null,null,null,"Financial transactions in assets and liabilities",{"$f":"Consolidation!H38-SUM(CashFlow!I53,CashFlow!I163)","v":0},{"$f":"Consolidation!I38-SUM(CashFlow!J53,CashFlow!J163,CashFlow!J212)","v":0},null,{"$f":"Consolidation!J38-SUM(CashFlow!L53,CashFlow!L163,CashFlow!L212)","v":0},null,{"$f":"Consolidation!K38-SUM(CashFlow!N53,CashFlow!N163,CashFlow!N212)","v":0},null,{"$f":"Consolidation!L38-SUM(CashFlow!P53,CashFlow!P163,CashFlow!P212)","v":0},null,{"$f":"Consolidation!M38-SUM(CashFlow!R53,CashFlow!R163,CashFlow!R212)","v":0},{"$f":"Consolidation!N38-SUM(CashFlow!S53,CashFlow!S163,CashFlow!S212)","v":0}]
[null,null,null,null,null,null,"Current payments",{"$f":"Consolidation!H44-(CashFlow!I59)","v":0},{"$f":"Consolidation!I44-(CashFlow!J59)","v":0},null,{"$f":"Consolidation!J44-(CashFlow!L59)","v":0},null,{"$f":"Consolidation!K44-(CashFlow!N59)","v":0},null,{"$f":"Consolidation!L44-(CashFlow!P59)","v":0},null,{"$f":"Consolidation!M44-(CashFlow!R59)","v":0},{"$f":"Consolidation!N44-(CashFlow!S59)","v":0}]
[null,null,null,null,null,null,"Transfers and subsidies",{"$f":"Consolidation!H99-SUM((CashFlow!I121,CashFlow!I155))","v":0},{"$f":"Consolidation!I99-SUM((CashFlow!J121,CashFlow!J155))","v":0},null,{"$f":"Consolidation!J99-SUM((CashFlow!L121,CashFlow!L155))","v":0},null,{"$f":"Consolidation!K99-SUM((CashFlow!N121,CashFlow!N155))","v":0},null,{"$f":"Consolidation!L99-SUM((CashFlow!P121,CashFlow!P155))","v":0},null,{"$f":"Consolidation!M99-SUM((CashFlow!R121,CashFlow!R155))","v":0},{"$f":"Consolidation!N99-SUM((CashFlow!S121,CashFlow!S155))","v":0}]
[null,null,null,null,null,null,"Payments for capital assets",{"$f":"Consolidation!H119+SUM(CashFlow!I169,CashFlow!I182:I183)","v":0},{"$f":"Consolidation!I119+SUM(CashFlow!J169,CashFlow!J182:J183)","v":0},null,{"$f":"Consolidation!J119+SUM(CashFlow!L169,CashFlow!L182:L183)","v":0},null,{"$f":"Consolidation!K119+SUM(CashFlow!N169,CashFlow!N182:N183)","v":0},null,{"$f":"Consolidation!L119+SUM(CashFlow!P169,CashFlow!P182:P183)","v":0},null,{"$f":"Consolidation!M119+SUM(CashFlow!R169,CashFlow!R182:R183)","v":0},{"$f":"Consolidation!N119+SUM(CashFlow!S169,CashFlow!S182:S183)","v":0}]
[null,null,null,null,null,null,"Payments for financial assets",{"$f":"Consolidation!H130+(CashFlow!I158)-(CashFlow!I150)","v":0},{"$f":"Consolidation!I130+(CashFlow!J158)-(CashFlow!J150)","v":0},null,{"$f":"Consolidation!J130+(CashFlow!L158)-(CashFlow!L150)","v":0},null,{"$f":"Consolidation!K130+(CashFlow!N158)-(CashFlow!N150)","v":0},null,{"$f":"Consolidation!L130+(CashFlow!P158)-(CashFlow!P150)","v":0},null,{"$f":"Consolidation!M130+(CashFlow!R158)-(CashFlow!R150)","v":0},{"$f":"Consolidation!N130+(CashFlow!S158)-(CashFlow!S150)","v":0}]
[null,null,null,null,null,null,"Surplus/deficit",{"$f":"Consolidation!H132-((CashFlow!I12+CashFlow!I163+CashFlow!I184+CashFlow!I196-CashFlow!I58+CashFlow!I158+CashFlow!I169+CashFlow!I182+CashFlow!I183))","v":0},{"$f":"Consolidation!I132-((CashFlow!J12+CashFlow!J163+CashFlow!J184+CashFlow!J196-CashFlow!J58+CashFlow!J158+CashFlow!J169+CashFlow!J182+CashFlow!J183+CashFlow!J212))","v":0},null,{"$f":"Consolidation!J132-((CashFlow!L12+CashFlow!L163+CashFlow!L184+CashFlow!L196-CashFlow!L58+CashFlow!L158+CashFlow!L169+CashFlow!L182+CashFlow!L183+CashFlow!L212))","v":0},null,{"$f":"Consolidation!K132-((CashFlow!N12+CashFlow!N163+CashFlow!N184+CashFlow!N196-CashFlow!N58+CashFlow!N158+CashFlow!N169+CashFlow!N182+CashFlow!N183+CashFlow!N212))","v":1.0477378964424133E-9},null,{"$f":"Consolidation!L132-((CashFlow!P12+CashFlow!P163+CashFlow!P184+CashFlow!P196-CashFlow!P58+CashFlow!P158+CashFlow!P169+CashFlow!P182+CashFlow!P183+CashFlow!P212))","v":7.5669959187507629E-10},null,{"$f":"Consolidation!M132-((CashFlow!R12+CashFlow!R163+CashFlow!R184+CashFlow!R196-CashFlow!R58+CashFlow!R158+CashFlow!R169+CashFlow!R182+CashFlow!R183+CashFlow!R212))","v":5.5297277867794037E-10},{"$f":"Consolidation!N132-((CashFlow!S12+CashFlow!S163+CashFlow!S184+CashFlow!S196-CashFlow!S58+CashFlow!S158+CashFlow!S169+CashFlow!S182+CashFlow!S183+CashFlow!S212))","v":0}]
[null,null,null,null,null,"SOSUC","Cash surplus/deficit",{"$f":"SOSUC!H35-[1]SOSUC!$I$35","v":0},{"$f":"SOSUC!I35-[1]SOSUC!$J$35","v":5.4775999989360571},{"$f":"SOSUC!J35-[1]SOSUC!$L$35","v":34},{"$f":"SOSUC!J35-[1]SOSUC!$L$35","v":34},{"$f":"SOSUC!J35-[1]SOSUC!$L$35","v":34},null,{"$f":"SOSUC!L35-[1]SOSUC!$M$35","v":35.567400000989437},null,{"$f":"SOSUC!M35-[1]SOSUC!$N$35","v":37.185716699808836}]
[null,null,null,null,null,null,"Net change in the stock of cash",{"$f":"SOSUC!H45-[1]SOSUC!$I$45","v":0},{"$f":"SOSUC!I45-[1]SOSUC!$J$45","v":5.4775999989360571},{"$f":"SOSUC!J45-[1]SOSUC!$L$45","v":34},{"$f":"SOSUC!J45-SOSUC!J45","v":0},{"$f":"SOSUC!L45-[1]SOSUC!$M$45","v":35.567400000989437},{"$f":"SOSUC!L45-[1]SOSUC!$M$45","v":35.567400000989437},{"$f":"SOSUC!M45-[1]SOSUC!$N$45","v":37.185716699808836},{"$f":"SOSUC!M45-[1]SOSUC!$N$45","v":37.185716699808836},{"$f":"SOSUC!N45-[1]SOSUC!$O$45","v":38.866511095315218},{"$f":"SOSUC!N45-[1]SOSUC!$O$45","v":38.866511095315218}]
[null,null,null,null,null,"Govt Acc financing table","Total financing (net)",{"$f":"'Govt Acc financing table'!H26-'[1]Govt Acc financing table'!$I$26","v":0},{"$f":"'Govt Acc financing table'!I26-'[1]Govt Acc financing table'!$J$26","v":5.4775999989360571},{"$f":"'Govt Acc financing table'!J26-'[1]Govt Acc financing table'!$L$26","v":34},{"$f":"'Govt Acc financing table'!J26-'[1]Govt Acc financing table'!$L$26","v":34},{"$f":"'Govt Acc financing table'!L26-'[1]Govt Acc financing table'!$M$26","v":35.567400000989437},{"$f":"'Govt Acc financing table'!L26-'[1]Govt Acc financing table'!$M$26","v":35.567400000989437},{"$f":"'Govt Acc financing table'!M26-'[1]Govt Acc financing table'!$N$26","v":37.185716699808836},{"$f":"'Govt Acc financing table'!M26-'[1]Govt Acc financing table'!$N$26","v":37.185716699808836},{"$f":"'Govt Acc financing table'!N26-'[1]Govt Acc financing table'!$O$26","v":38.866511095315218},{"$f":"'Govt Acc financing table'!N26-'[1]Govt Acc financing table'!$O$26","v":38.866511095315218}]

{"sheet":"Consolidation","index":39,"n_rows":136,"n_cols":43,"rows_kept":136,"cut":false,"hidden":false,"merged":[[7,6,7,13]]}
[]
[]
[]
[]
[]
[null,null,null,null,null,"PE No",{"$f":"Settings!$O$2","v":"PE126"}]
[null,null,null,null,null,"Entity name",{"$f":"Settings!$E$2","v":"South African Revenue Service"}]
[null,null,null,null,null,"Mandate of the entity",{"$f":"Information!A22","v":"SARS’s mandate is to:\nCollect all revenues due.\nEnsure optimal compliance with Tax, Customs and Excise legislation.\nProvide a customs and excise service that will facilitate legitimate trade as well as protect our economy and society."}]
[null,null,null,null,null,null,null,null,null,null,null,null,null,null,null," "]
["ItemCat","Item code",null,null,null,{"$f":"NOW()","v":"2025-06-27T06:30:09.230"}]
[1,null,null,null,null,"R thousand",null,null,null,null,null,null,null,null,null,null,"Transfers from National-Exec Auth adjustments",null,null,null,null,null,null,null,"Estimated underspending / other adjustments",null,null,null,null,null,null,null,null,"Adjusted Consoldation",null,null,null,null,null,"Summary",null,null,"Comments"]
[1,null,null,null,null,"Data for consolidated accounts of general government"]
[1,null,null,null,null,"Receipts estimates",null,{"$f":"MyYearM3","v":"2022/23"},{"$f":"MyYearM2","v":"2023/24"},{"$f":"MyYearM1","v":"2024/25"},{"$f":"MyYear0","v":"2025/26"},{"$f":"MyYearP1","v":"2026/27"},{"$f":"MyYearP2","v":"2027/28"},{"$f":"MyYearP3","v":"2028/29"},null,null,{"$f":"H13","v":"2022/23"},"2023/24","2024/25","2025/26","2026/27","2027/28","2028/29",null,{"$f":"Q13","v":"2022/23"},"2023/24","2024/25","2025/26","2026/27","2027/28","2028/29",null,null,{"$f":"Y13","v":"2022/23"},"2023/24","2024/25","2025/26","2026/27","2027/28","2028/29"]
[1,"CR11",null,null,null,"Tax receipts",null,{"$f":"CashFlow!I13+CashFlow!I31","v":0},{"$f":"CashFlow!J13+CashFlow!J31","v":0},{"$f":"CashFlow!L13+CashFlow!L31","v":0},{"$f":"CashFlow!N13+CashFlow!N31","v":0},{"$f":"CashFlow!P13+CashFlow!P31","v":0},{"$f":"CashFlow!R13+CashFlow!R31","v":0},{"$f":"CashFlow!S13+CashFlow!S31","v":0},null,null,null,null,null,null,null,null,null,null,null,null,null,null,null,null,null,null,null,{"$f":"SUM(H14,Q14,Y14)","v":0},0,0,0,0,0,0]
[1,"CR12",null,null,null,"Sales of goods and services other than capital assets",null,{"$f":"SUM(H16,H20)","v":430771},377667,431549.4111441056,443999.80611615477,456813.79119011993,470002.07563411363,0,null,null,{"$f":"SUM(Q16,Q20)","v":0},0,0,0,0,0,0,null,{"$f":"SUM(Y16,Y20)","v":0},0,0,0,0,0,0,null,0,430771,377667,431549.4111441056,443999.80611615477,456813.79119011993,470002.07563411363,0]
[1,"CR121",null,null,null,"Sales of goods and services produced by department (excl. capital assets)",null,{"$f":"SUM(H17:H19)","v":430771},377667,431549.4111441056,443999.80611615477,456813.79119011993,470002.07563411363,0,null,null,{"$f":"SUM(Q17:Q19)","v":0},0,0,0,0,0,0,null,{"$f":"SUM(Y17:Y19)","v":0},0,0,0,0,0,0,null,0,430771,377667,431549.4111441056,443999.80611615477,456813.79119011993,470002.07563411363,0]
[1,"CR1211",null,null,null,"Administrative fees",null,{"$f":"(CashFlow!I16+CashFlow!I198)","v":0},{"$f":"(CashFlow!J16+CashFlow!J198)","v":0},{"$f":"(CashFlow!L16+CashFlow!L198)","v":0},{"$f":"(CashFlow!N16+CashFlow!N198)","v":0},{"$f":"(CashFlow!P16+CashFlow!P198)","v":0},{"$f":"(CashFlow!R16+CashFlow!R198)","v":0},{"$f":"(CashFlow!S16+CashFlow!S198)","v":0},null,null,null,null,null,null,null,null,null,null,null,null,null,null,null,null,null,null,null,{"$f":"SUM(H17,Q17,Y17)","v":0},0,0,0,0,0,0]
[1,"CR1212",null,null,null,"Sales by market establishments",null,{"$f":"(CashFlow!I21)","v":0},{"$f":"(CashFlow!J21)","v":0},{"$f":"(CashFlow!L21)","v":0},{"$f":"(CashFlow!N21)","v":0},{"$f":"(CashFlow!P21)","v":0},{"$f":"(CashFlow!R21)","v":0},{"$f":"(CashFlow!S21)","v":0},null,null,null,null,null,null,null,null,null,null,null,null,null,null,null,null,null,null,null,0,0,0,0,0,0,0]
[1,"CR1213",null,null,null,"Other sales",null,{"$f":"SUM(CashFlow!I26)","v":430771},{"$f":"SUM(CashFlow!J26)","v":377667},{"$f":"SUM(CashFlow!L26)","v":431549.4111441056},{"$f":"SUM(CashFlow!N26)","v":443999.80611615477},{"$f":"SUM(CashFlow!P26)","v":456813.79119011993},{"$f":"SUM(CashFlow!R26)","v":470002.07563411363},{"$f":"SUM(CashFlow!S26)","v":0},null,null,null,null,null,null,null,null,null,null,null,null,null,null,null,null,null,null,null,430771,377667,431549.4111441056,443999.80611615477,456813.79119011993,470002.07563411363,0]
[1,"CR1214",null,null,null,"Sales of scrap, waste, arms and other used current goods (excl capital assets)",null,{"$f":"SUM(CashFlow!I29)","v":0},{"$f":"SUM(CashFlow!J29)","v":0},{"$f":"SUM(CashFlow!L29)","v":0},{"$f":"SUM(CashFlow!N29)","v":0},{"$f":"SUM(CashFlow!P29)","v":0},{"$f":"SUM(CashFlow!R29)","v":0},{"$f":"SUM(CashFlow!S29)","v":0}]
[1,"CR13",null,null,null,"Transfers received",null,{"$f":"SUM(H22,H23,H28:H30)","v":11635781},{"$f":"SUM(I22,I23,I28:I30)","v":13280696},12388563,{"$f":"SUM(K22,K23,K28:K30)","v":15409637},14895308,15455832.380799999,0,null,null,{"$f":"SUM(Q22,Q23,Q28:Q30)","v":0},0,0,0,0,0,0,null,{"$f":"SUM(Y22,Y23,Y28:Y30)","v":0},0,0,0,0,0,0,null,null,{"$f":"SUM(AH22,AH23,AH28:AH30)","v":11635781},13280696,12388563,15409637,14895308,15455832.380799999,0]
[1,"CR131",null,null,null,"Social contributions",null,0,0,0,0,0,0,0,null,null,null,null,null,null,null,null,null,null,null,null,null,null,null,null,null,null,null,{"$f":"SUM(H22,Q22,Y22)","v":0},0,0,0,0,0,0]
[1,"CR132",null,null,null,"Other goverment units",null,{"$f":"SUM(H24:H27)","v":11635781},13280696,12388563,15409637,14895308,15455832.380799999,0,null,null,{"$f":"SUM(Q24:Q27)","v":0},{"$f":"SUM(R24:R27)","v":0},0,0,0,0,0,null,{"$f":"SUM(Y24:Y27)","v":0},0,0,0,0,0,0,null,null,{"$f":"SUM(AH24:AH27)","v":11635781},{"$f":"SUM(AI24:AI27)","v":13280696},12388563,15409637,14895308,15455832.380799999,0]
[1,"CR1321",null,null,null,"Departmental transfers",null,{"$f":"(CashFlow!I34+CashFlow!I197)","v":11635781},{"$f":"(CashFlow!J34+CashFlow!J197)","v":13280696},{"$f":"(CashFlow!L34+CashFlow!L197)","v":12388563},{"$f":"(CashFlow!N34+CashFlow!N197)","v":15409637},{"$f":"(CashFlow!P34+CashFlow!P197)","v":14895308},{"$f":"(CashFlow!R34+CashFlow!R197)","v":15455832.380799999},{"$f":"(CashFlow!S34+CashFlow!S197)","v":0},null,null,null,null,null,null,null,null,null,null,null,null,null,null,null,null,null,null,null,{"$f":"SUM(H24,Q24,Y24)","v":11635781},13280696,12388563,15409637,14895308,15455832.380799999,0]
[1,"CR1322",null,null,null,"Departmental agencies and accounts",null,{"$f":"(CashFlow!I42+CashFlow!I56)","v":0},{"$f":"(CashFlow!J42+CashFlow!J56)","v":0},{"$f":"(CashFlow!L42+CashFlow!L56)","v":0},{"$f":"(CashFlow!N42+CashFlow!N56)","v":0},{"$f":"(CashFlow!P42+CashFlow!P56)","v":0},{"$f":"(CashFlow!R42+CashFlow!R56)","v":0},{"$f":"(CashFlow!S42+CashFlow!S56)","v":0},null,null,null,null,null,null,null,null,null,null,null,null,null,null,null,null,null,null,null,0,0,0,0,0,0,0]
[1,"CR1323",null,null,null,"Skills development (SETAs)",null,{"$f":"SUM(CashFlow!I37,CashFlow!I41)","v":0},{"$f":"SUM(CashFlow!J37,CashFlow!J41)","v":0},{"$f":"SUM(CashFlow!L37,CashFlow!L41)","v":0},{"$f":"SUM(CashFlow!N37,CashFlow!N41)","v":0},{"$f":"SUM(CashFlow!P37,CashFlow!P41)","v":0},{"$f":"SUM(CashFlow!R37,CashFlow!R41)","v":0},{"$f":"SUM(CashFlow!S37,CashFlow!S41)","v":0},null,null,null,null,null,null,null,null,null,null,null,null,null,null,null,null,null,null,null,0,0,0,0,0,0,0]
[1,"CR1324",null,null,null,"Other transfers",null,{"$f":"SUM(CashFlow!I35,CashFlow!I43:'CashFlow'!I44)","v":0},{"$f":"SUM(CashFlow!J35,CashFlow!J43:'CashFlow'!J44)","v":0},{"$f":"SUM(CashFlow!L35,CashFlow!L43:'CashFlow'!L44)","v":0},{"$f":"SUM(CashFlow!N35,CashFlow!N43:'CashFlow'!N44)","v":0},{"$f":"SUM(CashFlow!P35,CashFlow!P43:'CashFlow'!P44)","v":0},{"$f":"SUM(CashFlow!R35,CashFlow!R43:'CashFlow'!R44)","v":0},{"$f":"SUM(CashFlow!S35,CashFlow!S43:'CashFlow'!S44)","v":0},null,null,null,null,null,null,null,null,null,null,null,null,null,null,null,null,null,null,null,0,0,0,0,0,0,0]
[1,"CR133",null,null,null,"Higher education institutions",null,{"$f":"(CashFlow!I45)","v":0},{"$f":"(CashFlow!J45)","v":0},{"$f":"(CashFlow!L45)","v":0},{"$f":"(CashFlow!N45)","v":0},{"$f":"(CashFlow!P45)","v":0},{"$f":"(CashFlow!R45)","v":0},{"$f":"(CashFlow!S45)","v":0},null,null,null,null,null,null,null,null,null,null,null,null,null,null,null,null,null,null,null,0,0,0,0,0,0,0]
[1,"CR134",null,null,null,"Foreign governments and international organisations",null,{"$f":"(CashFlow!I46)","v":0},{"$f":"(CashFlow!J46)","v":0},{"$f":"(CashFlow!L46)","v":0},{"$f":"(CashFlow!N46)","v":0},{"$f":"(CashFlow!P46)","v":0},{"$f":"(CashFlow!R46)","v":0},{"$f":"(CashFlow!S46)","v":0},null,null,null,null,null,null,null,null,null,null,null,null,null,null,null,null,null,null,null,0,0,0,0,0,0,0]
[1,"CR135",null,null,null,"Local non-government donors",null,{"$f":"(CashFlow!I47)","v":0},{"$f":"(CashFlow!J47)","v":0},{"$f":"(CashFlow!L47)","v":0},{"$f":"(CashFlow!N47)","v":0},{"$f":"(CashFlow!P47)","v":0},{"$f":"(CashFlow!R47)","v":0},{"$f":"(CashFlow!S47)","v":0},null,null,null,null,null,null,null,null,null,null,null,null,null,null,null,null,null,null,null,0,0,0,0,0,0,0]
[1,"CR14",null,null,null,"Fines, penalties and forfeits",null,{"$f":"(CashFlow!I48)","v":0},{"$f":"(CashFlow!J48)","v":0},{"$f":"(CashFlow!L48)","v":0},{"$f":"(CashFlow!N48)","v":0},{"$f":"(CashFlow!P48)","v":0},{"$f":"(CashFlow!R48)","v":0},{"$f":"(CashFlow!S48)","v":0},null,null,null,null,null,null,null,null,null,null,null,null,null,null,null,null,null,null,null,0,0,0,0,0,0,0]
[1,"CR15",null,null,null,"Interest and rent on land",null,{"$f":"SUM(H33:H35)","v":102635},{"$f":"SUM(I33:I35)","v":148232},126470.14575999997,{"$f":"SUM(K33:K35)","v":88724.000000000233},95999.368000004441,103871.31617600098,0,null,null,{"$f":"SUM(Q33:Q35)","v":0},0,0,0,0,0,0,null,{"$f":"SUM(Y33:Y35)","v":0},0,0,0,0,0,0,null,null,{"$f":"SUM(AH33:AH35)","v":102635},148232,126470.14575999997,88724.000000000233,95999.368000004441,103871.31617600098,0]
[1,"CR151",null,null,null,"Interest",null,{"$f":"(CashFlow!I50+CashFlow!I57)","v":102635},{"$f":"(CashFlow!J50+CashFlow!J57)","v":148232},{"$f":"(CashFlow!L50+CashFlow!L57)","v":126470.14575999997},{"$f":"(CashFlow!N50+CashFlow!N57)","v":88724.000000000233},{"$f":"(CashFlow!P50+CashFlow!P57)","v":95999.368000004441},{"$f":"(CashFlow!R50+CashFlow!R57)","v":103871.31617600098},{"$f":"(CashFlow!S50+CashFlow!S57)","v":0},null,null,null,null,null,null,null,null,null,null,null,null,null,null,null,null,null,null,null,{"$f":"SUM(H33,Q33,Y33)","v":102635},148232,126470.14575999997,88724.000000000233,95999.368000004441,103871.31617600098,0]
[1,"CR153",null,null,null,"Dividends",null,{"$f":"(CashFlow!I51)","v":0},{"$f":"(CashFlow!J51)","v":0},{"$f":"(CashFlow!L51)","v":0},{"$f":"(CashFlow!N51)","v":0},{"$f":"(CashFlow!P51)","v":0},{"$f":"(CashFlow!R51)","v":0},{"$f":"(CashFlow!S51)","v":0},null,null,null,null,null,null,null,null,null,null,null,null,null,null,null,null,null,null,null,0,0,0,0,0,0,0]
[1,"CR152",null,null,null,"Rent on land",null,{"$f":"(CashFlow!I52)","v":0},{"$f":"(CashFlow!J52)","v":0},{"$f":"(CashFlow!L52)","v":0},{"$f":"(CashFlow!N52)","v":0},{"$f":"(CashFlow!P52)","v":0},{"$f":"(CashFlow!R52)","v":0},{"$f":"(CashFlow!S52)","v":0},null,null,null,null,null,null,null,null,null,null,null,null,null,null,null,null,null,null,null,0,0,0,0,0,0,0]
[1,"CR16",null,null,null,"Sales of capital assets",null,{"$f":"SUM(H37:H37)","v":1610},1292,0,0,0,0,0,null,null,{"$f":"SUM(Q37:Q37)","v":0},0,0,0,0,0,0,null,0,0,0,0,0,0,0,null,null,{"$f":"SUM(AH37:AH37)","v":1610},1292,0,0,0,0,0]
[1,"CR162",null,null,null,"Other capital assets",null,{"$f":"(CashFlow!I184)","v":1610},{"$f":"(CashFlow!J184)","v":1292},{"$f":"(CashFlow!L184)","v":0},{"$f":"(CashFlow!N184)","v":0},{"$f":"(CashFlow!P184)","v":0},{"$f":"(CashFlow!R184)","v":0},{"$f":"(CashFlow!S184)","v":0},null,null,null,null,null,null,null,null,null,null,null,null,null,null,null,null,null,null,null,{"$f":"SUM(H37,Q37,Y37)","v":1610},1292,0,0,0,0,0]
[1,"CR17",null,null,null,"Financial transactions in assets and liabilities",null,{"$f":"SUM(H39:H41)","v":0},0,0,0,0,0,0,null,null,{"$f":"SUM(Q39:Q41)","v":0},0,0,0,0,0,0,null,{"$f":"SUM(Y39:Y41)","v":0},0,0,0,0,0,0,{"$f":"SUM(AF39:AF41)","v":0},0,{"$f":"SUM(AH39:AH41)","v":0},0,0,0,0,0,0]
[1,"CR171",null,null,null,"Loans",null,{"$f":"(CashFlow!I163)","v":0},{"$f":"(CashFlow!J163)","v":0},{"$f":"(CashFlow!L163)","v":0},{"$f":"(CashFlow!N163)","v":0},{"$f":"(CashFlow!P163)","v":0},{"$f":"(CashFlow!R163)","v":0},{"$f":"(CashFlow!S163)","v":0},null,null,null,null,null,null,null,null,null,null,null,null,null,null,null,null,null,null,null,{"$f":"SUM(H39,Q39,Y39)","v":0},0,0,0,0,0,0]
[1,"CR173",null,null,null,"Forex gains",null,{"$f":"(CashFlow!I54)","v":0},{"$f":"(CashFlow!J54)","v":0},{"$f":"(CashFlow!L54)","v":0},{"$f":"(CashFlow!N54)","v":0},{"$f":"(CashFlow!P54)","v":0},{"$f":"(CashFlow!R54)","v":0},{"$f":"(CashFlow!S54)","v":0}]
[1,"CR172",null,null,null,"Other receipts",null,{"$f":"(CashFlow!I55+CashFlow!I212)","v":0},{"$f":"(CashFlow!J55+CashFlow!J212)","v":0},{"$f":"(CashFlow!L55+CashFlow!L212)","v":0},{"$f":"(CashFlow!N55+CashFlow!N212)","v":0},{"$f":"(CashFlow!P55+CashFlow!P212)","v":0},{"$f":"(CashFlow!R55+CashFlow!R212)","v":0},{"$f":"(CashFlow!S55+CashFlow!S212)","v":0},null,null,null,null,null,null,null,null,null,null,null,null,null,null,null,null,null,null,null,{"$f":"SUM(H41,Q41,Y41)","v":0},0,0,0,0,0,0]
[1,"CR1",null,null,null,"Total receipts",null,{"$f":"SUM(H14,H15,H21,H31,H32,H36,H38)","v":12170797},{"$f":"SUM(I14,I15,I21,I31,I32,I36,I38)","v":13807887},12946582.556904105,15942360.806116154,15448121.159190124,16029705.772610115,0,null,null,{"$f":"SUM(Q14,Q15,Q21,Q31,Q32,Q36,Q38)","v":0},0,0,0,0,0,0,null,{"$f":"SUM(Y14,Y15,Y21,Y31,Y32,Y36,Y38)","v":0},0,0,0,0,0,0,null,null,{"$f":"SUM(AH14,AH15,AH21,AH31,AH32,AH36,AH38)","v":12170797},13807887,12946582.556904105,15942360.806116154,15448121.159190124,16029705.772610115,0]
[1,null,null,null,null,"Expenditure"]
[1,"CP11",null,null,null,"Current payments",null,{"$f":"SUM(H45,H48,H96)","v":11503878.62731},{"$f":"SUM(I45,I48,I96)","v":12950157.75506},13327106.461876001,{"$f":"SUM(K45,K48,K96)","v":14802307.744410964},{"$f":"SUM(L45,L48,L96)","v":14962217.081151288},15735020.955104699,0,null,null,{"$f":"SUM(Q45,Q48,Q96)","v":-394473.48458000086},0,0,0,0,0,0,null,{"$f":"SUM(Y45,Y48,Y96)","v":0},0,0,0,0,0,0,null,null,{"$f":"SUM(AH45,AH48,AH96)","v":11109405.142729999},12950157.75506,13327106.461876001,14802307.744410964,14962217.081151288,15735020.955104699,0]
[1,"CP111",null,null,null,"Compensation of employees",null,{"$f":"SUM(H46:H47)","v":8445367.1408399995},{"$f":"SUM(I46:I47)","v":9498469.6334199999},9870140.5542600006,{"$f":"SUM(K46:K47)","v":10339690.602510722},10333657.588951603,10800172.791032141,{"$f":"SUM(N46:N47)","v":0},null,null,{"$f":"SUM(Q46:Q47)","v":0},{"$f":"SUM(R46:R47)","v":0},0,0,0,0,0,null,{"$f":"SUM(Y46:Y47)","v":0},0,0,0,0,0,0,null,null,{"$f":"SUM(AH46:AH47)","v":8445367.1408399995},9498469.6334199999,9870140.5542600006,10339690.602510722,10333657.588951603,10800172.791032141,0]
[1,"CP1111",null,null,null,"Salaries and wages",null,{"$f":"(CashFlow!I61)","v":7170975.2668799991},{"$f":"(CashFlow!J61)","v":8130754.63442},{"$f":"(CashFlow!L61)","v":8440958.2526500002},{"$f":"(CashFlow!N61)","v":8854496.0689089},{"$f":"(CashFlow!P61)","v":8780886.7040708959},{"$f":"(CashFlow!R61)","v":9177216.6621548273},{"$f":"(CashFlow!S61)","v":0},null,null,null,null,null,null,null,null,null,null,null,null,null,null,null,null,null,null,null,{"$f":"SUM(H46,Q46,Y46)","v":7170975.2668799991},8130754.63442,8440958.2526500002,8854496.0689089,8780886.7040708959,9177216.6621548273,0]
[1,"CP1112",null,null,null,"Social contributions",null,{"$f":"(CashFlow!I62)","v":1274391.87396},{"$f":"(CashFlow!J62)","v":1367714.9989999998},{"$f":"(CashFlow!L62)","v":1429182.30161},{"$f":"(CashFlow!N62)","v":1485194.5336018228},{"$f":"(CashFlow!P62)","v":1552770.8848807062},{"$f":"(CashFlow!R62)","v":1622956.128877314},{"$f":"(CashFlow!S62)","v":0},null,null,null,null,null,null,null,null,null,null,null,null,null,null,null,null,null,null,null,1274391.87396,1367714.9989999998,1429182.30161,1485194.5336018228,1552770.8848807062,1622956.128877314,0]
[1,"CP112",null,null,null,"Goods and services",null,{"$f":"(SUM(H49:H58,H62:H65,H72:H95))","v":3049297.6769499998},3443771.1615300006,3456748.5283260006,4462389.7414249722,4628321.7450027922,4934599.6707023643,0,null,null,{"$f":"(SUM(Q49:Q58,Q62:Q65,Q72:Q95))","v":-394473.48458000086},0,0,0,0,0,0,null,{"$f":"(SUM(Y49:Y58,Y62:Y65,Y72:Y95))","v":0},0,0,0,0,0,0,null,null,{"$f":"(SUM(AH49:AH58,AH62:AH65,AH72:AH95))","v":2654824.1923699989},3443771.1615300006,3456748.5283260006,4462389.7414249722,4628321.7450027922,4934599.6707023643,0]
[1,"CP1121",null,null,null,"Administrative fees",null,{"$f":"(CashFlow!I64)","v":34223.349349999997},{"$f":"(CashFlow!J64)","v":36330.699570000004},{"$f":"(CashFlow!L64)","v":35964.195030000003},{"$f":"(CashFlow!N64)","v":37622.144420883},{"$f":"(CashFlow!P64)","v":39333.951992033173},{"$f":"(CashFlow!R64)","v":41111.84662207307},{"$f":"(CashFlow!S64)","v":0},null,null,null,null,null,null,null,null,null,null,null,null,null,null,null,null,null,null,null,{"$f":"SUM(H49,Q49,Y49)","v":34223.349349999997},{"$f":"SUM(I49,R49,Z49)","v":36330.699570000004},{"$f":"SUM(J49,S49,AA49)","v":35964.195030000003},{"$f":"SUM(K49,T49,AB49)","v":37622.144420883},{"$f":"SUM(L49,U49,AC49)","v":39333.951992033173},{"$f":"SUM(M49,V49,AD49)","v":41111.84662207307},{"$f":"SUM(N49,W49,AE49)","v":0}]
[1,"CP1122",null,null,null,"Advertising",null,{"$f":"(CashFlow!I65)","v":60120.07763},{"$f":"(CashFlow!J65)","v":50801.537519999998},{"$f":"(CashFlow!L65)","v":66441.632850000009},{"$f":"(CashFlow!N65)","v":69312.670434298852},{"$f":"(CashFlow!P65)","v":72403.027931423218},{"$f":"(CashFlow!R65)","v":75618.11360901568},{"$f":"(CashFlow!S65)","v":0},null,null,null,null,null,null,null,null,null,null,null,null,null,null,null,null,null,null,null,60120.07763,50801.537519999998,66441.632850000009,69312.670434298852,72403.027931423218,75618.11360901568,0]
[1,"CP1123",null,null,null,"Minor assets",null,{"$f":"(CashFlow!I66)","v":7792.2554999999993},{"$f":"(CashFlow!J66)","v":7727.7070399999993},{"$f":"(CashFlow!L66)","v":14357.42971},{"$f":"(CashFlow!N66)","v":15045.574229464435},{"$f":"(CashFlow!P66)","v":15767.424414896666},{"$f":"(CashFlow!R66)","v":16523.954104530731},{"$f":"(CashFlow!S66)","v":0},null,null,{"$f":"H48-CashFlow!J63","v":-394473.48458000086},null,null,null,null,null,null,null,null,null,null,null,null,null,null,null,null,-386681.22908000089,7727.7070399999993,14357.42971,15045.574229464435,15767.424414896666,16523.954104530731,0]
[1,"CP1124",null,null,null,"Audit costs: External",null,{"$f":"(CashFlow!I67)","v":37936.371360000005},{"$f":"(CashFlow!J67)","v":42694.749739999999},{"$f":"(CashFlow!L67)","v":37575.902150000002},{"$f":"(CashFlow!N67)","v":39308.151239115003},{"$f":"(CashFlow!P67)","v":41096.672120494739},{"$f":"(CashFlow!R67)","v":42954.241700341096},{"$f":"(CashFlow!S67)","v":0},null,null,null,null,null,null,null,null,null,null,null,null,null,null,null,null,null,null,null,37936.371360000005,42694.749739999999,37575.902150000002,39308.151239115003,41096.672120494739,42954.241700341096,0]
[1,"CP1125",null,null,null,"Bursaries: Employees",null,{"$f":"(CashFlow!I68)","v":10101.343350000001},{"$f":"(CashFlow!J68)","v":34984.679810000001},{"$f":"(CashFlow!L68)","v":35270.328699999998},{"$f":"(CashFlow!N68)","v":36896.290853070008},{"$f":"(CashFlow!P68)","v":38575.072086884698},{"$f":"(CashFlow!R68)","v":40318.665345211877},{"$f":"(CashFlow!S68)","v":0},null,null,null,null,null,null,null,null,null,null,null,null,null,null,null,null,null,null,null,10101.343350000001,34984.679810000001,35270.328699999998,36896.290853070008,38575.072086884698,40318.665345211877,0]
[1,"CP1126",null,null,null,"Catering: Departmental activities",null,{"$f":"(CashFlow!I69)","v":1254.70074},{"$f":"(CashFlow!J69)","v":2524.1577699999998},{"$f":"(CashFlow!L69)","v":1398.6222799999998},{"$f":"(CashFlow!N69)","v":1456.0960254344959},{"$f":"(CashFlow!P69)","v":1520.0362182536787},{"$f":"(CashFlow!R69)","v":1586.6426865072376},{"$f":"(CashFlow!S69)","v":0},null,null,null,null,null,null,null,null,null,null,null,null,null,null,null,null,null,null,null,1254.70074,2524.1577699999998,1398.6222799999998,1456.0960254344959,1520.0362182536787,1586.6426865072376,0]
[1,"CP1127",null,null,null,"Communication (G&S)",null,{"$f":"(CashFlow!I70)","v":296189.58912000002},{"$f":"(CashFlow!J70)","v":316499.08560999995},{"$f":"(CashFlow!L70)","v":362611.67121},{"$f":"(CashFlow!N70)","v":398771.40397436102},{"$f":"(CashFlow!P70)","v":438541.25269858446},{"$f":"(CashFlow!R70)","v":482282.58705559804},{"$f":"(CashFlow!S70)","v":0},null,null,null,null,null,null,null,null,null,null,null,null,null,null,null,null,null,null,null,296189.58912000002,316499.08560999995,362611.67121,398771.40397436102,438541.25269858446,482282.58705559804,0]
[1,"CP1128",null,null,null,"Computer services",null,{"$f":"(CashFlow!I71)","v":773499.2121},{"$f":"(CashFlow!J71)","v":892766.95354000002},{"$f":"(CashFlow!L71)","v":675556.56710600038},{"$f":"(CashFlow!N71)","v":1009067.0339082894},{"$f":"(CashFlow!P71)","v":1279228.4615294365},{"$f":"(CashFlow!R71)","v":1330250.0953951539},{"$f":"(CashFlow!S71)","v":0},null,null,null,null,null,null,null,null,null,null,null,null,null,null,null,null,null,null,null,773499.2121,892766.95354000002,675556.56710600038,1009067.0339082894,1279228.4615294365,1330250.0953951539,0]
[1,"CP1129",null,null,null,"Consultants: Business and advisory services",null,{"$f":"(CashFlow!I72)","v":59217.277859999995},{"$f":"(CashFlow!J72)","v":213084.64376000001},{"$f":"(CashFlow!L72)","v":287769.64530000003},{"$f":"(CashFlow!N72)","v":256588.02818357886},{"$f":"(CashFlow!P72)","v":281445.10436765302},{"$f":"(CashFlow!R72)","v":308836.91959193617},{"$f":"(CashFlow!S72)","v":0},null,null,null,null,null,null,null,null,null,null,null,null,null,null,null,null,null,null,null,59217.277859999995,213084.64376000001,287769.64530000003,256588.02818357886,281445.10436765302,308836.91959193617,0]
[1,"CP1178",null,null,null,"Infrastructure and planning services",null,{"$f":"SUM(H59:H61)","v":0},{"$f":"SUM(I59:I61)","v":0},0,{"$f":"SUM(K59:K61)","v":0},0,0,0,null,null,{"$f":"SUM(Q59:Q61)","v":0},0,0,0,0,0,0,null,{"$f":"SUM(Y59:Y61)","v":0},0,0,0,0,0,0,null,null,{"$f":"SUM(AH59:AH61)","v":0},{"$f":"SUM(AI59:AI61)","v":0},0,0,0,0,0]
[1,"CP11781",null,null,null,"Maintenance and repairs: Buildings: Consultants",null,{"$f":"(CashFlow!I74)","v":0},{"$f":"(CashFlow!J74)","v":0},{"$f":"(CashFlow!L74)","v":0},{"$f":"(CashFlow!N74)","v":0},{"$f":"(CashFlow!P74)","v":0},{"$f":"(CashFlow!R74)","v":0},{"$f":"(CashFlow!S74)","v":0},null,null,null,null,null,null,null,null,null,null,null,null,null,null,null,null,null,null,null,{"$f":"SUM(H59,Q59,Y59)","v":0},0,0,0,0,0,0]
[1,"CP11782",null,null,null,"Maintenance and repairs: Other fixed structures: Consultants",null,{"$f":"(CashFlow!I75)","v":0},{"$f":"(CashFlow!J75)","v":0},{"$f":"(CashFlow!L75)","v":0},{"$f":"(CashFlow!N75)","v":0},{"$f":"(CashFlow!P75)","v":0},{"$f":"(CashFlow!R75)","v":0},{"$f":"(CashFlow!S75)","v":0},null,null,null,null,null,null,null,null,null,null,null,null,null,null,null,null,null,null,null,0,0,0,0,0,0,0]
[1,"CP11783",null,null,null,"Other",null,{"$f":"(CashFlow!I76)","v":0},{"$f":"(CashFlow!J76)","v":0},{"$f":"(CashFlow!L76)","v":0},{"$f":"(CashFlow!N76)","v":0},{"$f":"(CashFlow!P76)","v":0},{"$f":"(CashFlow!R76)","v":0},{"$f":"(CashFlow!S76)","v":0},null,null,null,null,null,null,null,null,null,null,null,null,null,null,null,null,null,null,null,0,0,0,0,0,0,0]
[1,"CP1160",null,null,null,"Laboratory services",null,{"$f":"(CashFlow!I77)","v":0},{"$f":"(CashFlow!J77)","v":0},{"$f":"(CashFlow!L77)","v":0},{"$f":"(CashFlow!N77)","v":0},{"$f":"(CashFlow!P77)","v":0},{"$f":"(CashFlow!R77)","v":0},{"$f":"(CashFlow!S77)","v":0},null,null,null,null,null,null,null,null,null,null,null,null,null,null,null,null,null,null,null,0,0,0,0,0,0,0]
[1,"CP1161",null,null,null,"Legal services (G&S)",null,{"$f":"(CashFlow!I78)","v":256185.80833},{"$f":"(CashFlow!J78)","v":273000.36120000004},{"$f":"(CashFlow!L78)","v":268873.39643999998},{"$f":"(CashFlow!N78)","v":275957.40957315301},{"$f":"(CashFlow!P78)","v":288513.47170873143},{"$f":"(CashFlow!R78)","v":301554.28062996612},{"$f":"(CashFlow!S78)","v":0},null,null,null,null,null,null,null,null,null,null,null,null,null,null,null,null,null,null,null,256185.80833,273000.36120000004,268873.39643999998,275957.40957315301,288513.47170873143,301554.28062996612,0]
[1,"CP1162",null,null,null,"Science and technological services",null,{"$f":"(CashFlow!I79)","v":0},{"$f":"(CashFlow!J79)","v":0},{"$f":"(CashFlow!L79)","v":0},{"$f":"(CashFlow!N79)","v":0},{"$f":"(CashFlow!P79)","v":0},{"$f":"(CashFlow!R79)","v":0},{"$f":"(CashFlow!S79)","v":0},null,null,null,null,null,null,null,null,null,null,null,null,null,null,null,null,null,null,null,0,0,0,0,0,0,0]
[1,"CP1134",null,null,null,"Contractors",null,{"$f":"SUM(H66:H71)","v":117892.97066000001},{"$f":"SUM(I66:I71)","v":87330.748699999996},115507.73696999998,{"$f":"SUM(K66:K71)","v":115293.10304672028},120374.26806680278,126134.93922718696,0,null,null,{"$f":"SUM(Q66:Q71)","v":0},0,0,0,0,0,0,null,{"$f":"SUM(Y66:Y71)","v":0},0,0,0,0,0,0,null,null,{"$f":"SUM(AH66:AH71)","v":117892.97066000001},{"$f":"SUM(AI66:AI71)","v":87330.748699999996},115507.73696999998,115293.10304672028,120374.26806680278,126134.93922718696,0]
[1,"CP11341",null,null,null,"Maintenance and repairs of other fixed structures",null,{"$f":"(CashFlow!I81)","v":117892.97066000001},{"$f":"(CashFlow!J81)","v":87330.748699999996},{"$f":"(CashFlow!L81)","v":115507.73696999998},{"$f":"(CashFlow!N81)","v":115293.10304672028},{"$f":"(CashFlow!P81)","v":120374.26806680278},{"$f":"(CashFlow!R81)","v":126134.93922718696},{"$f":"(CashFlow!S81)","v":0},null,null,null,null,null,null,null,null,null,null,null,null,null,null,null,null,null,null,null,{"$f":"SUM(H66,Q66,Y66)","v":117892.97066000001},{"$f":"SUM(I66,R66,Z66)","v":87330.748699999996},{"$f":"SUM(J66,S66,AA66)","v":115507.73696999998},{"$f":"SUM(K66,T66,AB66)","v":115293.10304672028},{"$f":"SUM(L66,U66,AC66)","v":120374.26806680278},{"$f":"SUM(M66,V66,AD66)","v":126134.93922718696},{"$f":"SUM(N66,W66,AE66)","v":0}]
[1,"CP11342",null,null,null,"Maintenance and repairs of other machinery and equipment",null,{"$f":"(CashFlow!I82)","v":0},{"$f":"(CashFlow!J82)","v":0},{"$f":"(CashFlow!L82)","v":0},{"$f":"(CashFlow!N82)","v":0},{"$f":"(CashFlow!P82)","v":0},{"$f":"(CashFlow!R82)","v":0},{"$f":"(CashFlow!S82)","v":0},null,null,null,null,null,null,null,null,null,null,null,null,null,null,null,null,null,null,null,0,0,0,0,0,0,0]
[1,"CP11343",null,null,null,"Maintenance and repairs of heritage buildings",null,{"$f":"(CashFlow!I83)","v":0},{"$f":"(CashFlow!J83)","v":0},{"$f":"(CashFlow!L83)","v":0},{"$f":"(CashFlow!N83)","v":0},{"$f":"(CashFlow!P83)","v":0},{"$f":"(CashFlow!R83)","v":0},{"$f":"(CashFlow!S83)","v":0},null,null,null,null,null,null,null,null,null,null,null,null,null,null,null,null,null,null,null,0,0,0,0,0,0,0]
[1,"CP11344",null,null,null,"Maintenance and repairs of other heritage fixed structures",null,{"$f":"(CashFlow!I84)","v":0},{"$f":"(CashFlow!J84)","v":0},{"$f":"(CashFlow!L84)","v":0},{"$f":"(CashFlow!N84)","v":0},{"$f":"(CashFlow!P84)","v":0},{"$f":"(CashFlow!R84)","v":0},{"$f":"(CashFlow!S84)","v":0},null,null,null,null,null,null,null,null,null,null,null,null,null,null,null,null,null,null,null,0,0,0,0,0,0,0]
[1,"CP11345",null,null,null,"South african social security agency payment contractors",null,{"$f":"(CashFlow!I85)","v":0},{"$f":"(CashFlow!J85)","v":0},{"$f":"(CashFlow!L85)","v":0},{"$f":"(CashFlow!N85)","v":0},{"$f":"(CashFlow!P85)","v":0},{"$f":"(CashFlow!R85)","v":0},{"$f":"(CashFlow!S85)","v":0},null,null,null,null,null,null,null,null,null,null,null,null,null,null,null,null,null,null,null,0,0,0,0,0,0,0]
[1,"CP11346",null,null,null,"Other",null,{"$f":"(CashFlow!I91)","v":0},{"$f":"(CashFlow!J91)","v":0},{"$f":"(CashFlow!L91)","v":0},{"$f":"(CashFlow!N91)","v":0},{"$f":"(CashFlow!P91)","v":0},{"$f":"(CashFlow!R91)","v":0},{"$f":"(CashFlow!S91)","v":0},null,null,null,null,null,null,null,null,null,null,null,null,null,null,null,null,null,null,null,0,0,0,0,0,0,0]
[1,"CP1135",null,null,null,"Agency and support/outsourced services",null,{"$f":"(CashFlow!I92)","v":209890.70973999996},{"$f":"(CashFlow!J92)","v":260305.94922999997},{"$f":"(CashFlow!L92)","v":260509.54634},{"$f":"(CashFlow!N92)","v":504155.05577781104},{"$f":"(CashFlow!P92)","v":376610.44671360793},{"$f":"(CashFlow!R92)","v":415828.23588798009},{"$f":"(CashFlow!S92)","v":0},null,null,null,null,null,null,null,null,null,null,null,null,null,null,null,null,null,null,null,209890.70973999996,260305.94922999997,260509.54634,504155.05577781104,376610.44671360793,415828.23588798009,0]
[1,"CP1136",null,null,null,"Entertainment",null,{"$f":"(CashFlow!I94)","v":0.28000000000000003},{"$f":"(CashFlow!J94)","v":0},{"$f":"(CashFlow!L94)","v":0},{"$f":"(CashFlow!N94)","v":0},{"$f":"(CashFlow!P94)","v":0},{"$f":"(CashFlow!R94)","v":0},{"$f":"(CashFlow!S94)","v":0},null,null,null,null,null,null,null,null,null,null,null,null,null,null,null,null,null,null,null,0.28000000000000003,0,0,0,0,0,0]
[1,"CP1163",null,null,null,"Fleet services (including government motor transport)",null,{"$f":"(CashFlow!I95)","v":0},{"$f":"(CashFlow!J95)","v":0},{"$f":"(CashFlow!L95)","v":0},{"$f":"(CashFlow!N95)","v":0},{"$f":"(CashFlow!P95)","v":0},{"$f":"(CashFlow!R95)","v":0},{"$f":"(CashFlow!S95)","v":0},null,null,null,null,null,null,null,null,null,null,null,null,null,null,null,null,null,null,null,0,0,0,0,0,0,0]
[1,"CP1164",null,null,null,"Housing",null,{"$f":"(CashFlow!I96)","v":0},{"$f":"(CashFlow!J96)","v":0},{"$f":"(CashFlow!L96)","v":0},{"$f":"(CashFlow!N96)","v":0},{"$f":"(CashFlow!P96)","v":0},{"$f":"(CashFlow!R96)","v":0},{"$f":"(CashFlow!S96)","v":0},null,null,null,null,null,null,null,null,null,null,null,null,null,null,null,null,null,null,null,0,0,0,0,0,0,0]
[1,"CP1165",null,null,null,"Inventory: Clothing material and accessories",null,{"$f":"(CashFlow!I97)","v":0},{"$f":"(CashFlow!J97)","v":0},{"$f":"(CashFlow!L97)","v":0},{"$f":"(CashFlow!N97)","v":0},{"$f":"(CashFlow!P97)","v":0},{"$f":"(CashFlow!R97)","v":0},{"$f":"(CashFlow!S97)","v":0},null,null,null,null,null,null,null,null,null,null,null,null,null,null,null,null,null,null,null,0,0,0,0,0,0,0]
[1,"CP1166",null,null,null,"Inventory: Farming supplies",null,{"$f":"(CashFlow!I98)","v":0},{"$f":"(CashFlow!J98)","v":0},{"$f":"(CashFlow!L98)","v":0},{"$f":"(CashFlow!N98)","v":0},{"$f":"(CashFlow!P98)","v":0},{"$f":"(CashFlow!R98)","v":0},{"$f":"(CashFlow!S98)","v":0},null,null,null,null,null,null,null,null,null,null,null,null,null,null,null,null,null,null,null,0,0,0,0,0,0,0]
[1,"CP1167",null,null,null,"Inventory: Food and food supplies",null,{"$f":"(CashFlow!I99)","v":0},{"$f":"(CashFlow!J99)","v":0},{"$f":"(CashFlow!L99)","v":0},{"$f":"(CashFlow!N99)","v":0},{"$f":"(CashFlow!P99)","v":0},{"$f":"(CashFlow!R99)","v":0},{"$f":"(CashFlow!S99)","v":0},null,null,null,null,null,null,null,null,null,null,null,null,null,null,null,null,null,null,null,0,0,0,0,0,0,0]
[1,"CP1168",null,null,null,"Inventory: Fuel, oil and gas",null,{"$f":"(CashFlow!I100)","v":0},{"$f":"(CashFlow!J100)","v":0},{"$f":"(CashFlow!L100)","v":0},{"$f":"(CashFlow!N100)","v":0},{"$f":"(CashFlow!P100)","v":0},{"$f":"(CashFlow!R100)","v":0},{"$f":"(CashFlow!S100)","v":0},null,null,null,null,null,null,null,null,null,null,null,null,null,null,null,null,null,null,null,0,0,0,0,0,0,0]
[1,"CP1169",null,null,null,"Inventory: Learner and teacher support material",null,{"$f":"(CashFlow!I101)","v":0},{"$f":"(CashFlow!J101)","v":0},{"$f":"(CashFlow!L101)","v":0},{"$f":"(CashFlow!N101)","v":0},{"$f":"(CashFlow!P101)","v":0},{"$f":"(CashFlow!R101)","v":0},{"$f":"(CashFlow!S101)","v":0},null,null,null,null,null,null,null,null,null,null,null,null,null,null,null,null,null,null,null,0,0,0,0,0,0,0]
[1,"CP1144",null,null,null,"Inventory: Materials and supplies",null,{"$f":"(CashFlow!I102)","v":0},{"$f":"(CashFlow!J102)","v":0},{"$f":"(CashFlow!L102)","v":0},{"$f":"(CashFlow!N102)","v":0},{"$f":"(CashFlow!P102)","v":0},{"$f":"(CashFlow!R102)","v":0},{"$f":"(CashFlow!S102)","v":0},null,null,null,null,null,null,null,null,null,null,null,null,null,null,null,null,null,null,null,0,0,0,0,0,0,0]
[1,"CP1170",null,null,null,"Inventory: Medical supplies",null,{"$f":"(CashFlow!I103)","v":0},{"$f":"(CashFlow!J103)","v":0},{"$f":"(CashFlow!L103)","v":0},{"$f":"(CashFlow!N103)","v":0},{"$f":"(CashFlow!P103)","v":0},{"$f":"(CashFlow!R103)","v":0},{"$f":"(CashFlow!S103)","v":0},null,null,null,null,null,null,null,null,null,null,null,null,null,null,null,null,null,null,null,0,0,0,0,0,0,0]
[1,"CP1171",null,null,null,"Inventory: Medicine",null,{"$f":"(CashFlow!I104)","v":0},{"$f":"(CashFlow!J104)","v":0},{"$f":"(CashFlow!L104)","v":0},{"$f":"(CashFlow!N104)","v":0},{"$f":"(CashFlow!P104)","v":0},{"$f":"(CashFlow!R104)","v":0},{"$f":"(CashFlow!S104)","v":0},null,null,null,null,null,null,null,null,null,null,null,null,null,null,null,null,null,null,null,0,0,0,0,0,0,0]
[1,"CP1172",null,null,null,"Medsas inventory interface",null,{"$f":"(CashFlow!I105)","v":0},{"$f":"(CashFlow!J105)","v":0},{"$f":"(CashFlow!L105)","v":0},{"$f":"(CashFlow!N105)","v":0},{"$f":"(CashFlow!P105)","v":0},{"$f":"(CashFlow!R105)","v":0},{"$f":"(CashFlow!S105)","v":0},null,null,null,null,null,null,null,null,null,null,null,null,null,null,null,null,null,null,null,0,0,0,0,0,0,0]
[1,"CP1173",null,null,null,"Inventory: Other supplies",null,{"$f":"(CashFlow!I106)","v":18101.70767},{"$f":"(CashFlow!J106)","v":11485.853569999999},{"$f":"(CashFlow!L106)","v":32813.155400000003},{"$f":"(CashFlow!N106)","v":34325.841863940004},{"$f":"(CashFlow!P106)","v":35887.667668749273},{"$f":"(CashFlow!R106)","v":37509.790247376739},{"$f":"(CashFlow!S106)","v":0},null,null,null,null,null,null,null,null,null,null,null,null,null,null,null,null,null,null,null,18101.70767,11485.853569999999,32813.155400000003,34325.841863940004,35887.667668749273,37509.790247376739,0]
[1,"CP1174",null,null,null,"Consumable supplies",null,{"$f":"(CashFlow!I107)","v":14786.768940000002},{"$f":"(CashFlow!J107)","v":12184.75368},{"$f":"(CashFlow!L107)","v":18574.455190000001},{"$f":"(CashFlow!N107)","v":47404.925685535454},{"$f":"(CashFlow!P107)","v":20279.327193922596},{"$f":"(CashFlow!R107)","v":21188.215311922915},{"$f":"(CashFlow!S107)","v":0},null,null,null,null,null,null,null,null,null,null,null,null,null,null,null,null,null,null,null,14786.768940000002,12184.75368,18574.455190000001,47404.925685535454,20279.327193922596,21188.215311922915,0]
[1,"CP1175",null,null,null,"Consumables: Stationery, printing and office supplies",null,{"$f":"(CashFlow!I108)","v":58094.057959999998},{"$f":"(CashFlow!J108)","v":59362.464299999992},{"$f":"(CashFlow!L108)","v":87228.53207999999},{"$f":"(CashFlow!N108)","v":93674.274254758478},{"$f":"(CashFlow!P108)","v":100657.89112619904},{"$f":"(CashFlow!R108)","v":108219.97849295838},{"$f":"(CashFlow!S108)","v":0},null,null,null,null,null,null,null,null,null,null,null,null,null,null,null,null,null,null,null,58094.057959999998,59362.464299999992,87228.53207999999,93674.274254758478,100657.89112619904,108219.97849295838,0]
[1,"CP1151",null,null,null,"Operating leases",null,{"$f":"(CashFlow!I109)","v":9079.7676700000011},{"$f":"(CashFlow!J109)","v":13473.448949999996},{"$f":"(CashFlow!L109)","v":41869.537149999996},{"$f":"(CashFlow!N109)","v":43624.820075421085},{"$f":"(CashFlow!P109)","v":45633.990963272445},{"$f":"(CashFlow!R109)","v":47747.31919376627},{"$f":"(CashFlow!S109)","v":0},null,null,null,null,null,null,null,null,null,null,null,null,null,null,null,null,null,null,null,9079.7676700000011,13473.448949999996,41869.537149999996,43624.820075421085,45633.990963272445,47747.31919376627,0]
[1,"CP1176",null,null,null,"Rental and hiring",null,{"$f":"(CashFlow!I110)","v":0},{"$f":"(CashFlow!J110)","v":0},{"$f":"(CashFlow!L110)","v":0},{"$f":"(CashFlow!N110)","v":0},{"$f":"(CashFlow!P110)","v":0},{"$f":"(CashFlow!R110)","v":0},{"$f":"(CashFlow!S110)","v":0},null,null,null,null,null,null,null,null,null,null,null,null,null,null,null,null,null,null,null,0,0,0,0,0,0,0]
[1,"CP1152",null,null,null,"Property payments",null,{"$f":"(CashFlow!I111)","v":707630.32183000003},{"$f":"(CashFlow!J111)","v":700327.85936},{"$f":"(CashFlow!L111)","v":723799.64240999985},{"$f":"(CashFlow!N111)","v":927023.07843331911},{"$f":"(CashFlow!P111)","v":995231.80193670071},{"$f":"(CashFlow!R111)","v":1085217.7380052479},{"$f":"(CashFlow!S111)","v":0},null,null,null,null,null,null,null,null,null,null,null,null,null,null,null,null,null,null,null,707630.32183000003,700327.85936,723799.64240999985,927023.07843331911,995231.80193670071,1085217.7380052479,0]
[1,"CP1177",null,null,null,"Transport provided: Departmental activity",null,{"$f":"(CashFlow!I112)","v":50116.34405},{"$f":"(CashFlow!J112)","v":54383.806100000009},{"$f":"(CashFlow!L112)","v":56604.281709999996},{"$f":"(CashFlow!N112)","v":58523.432288844298},{"$f":"(CashFlow!P112)","v":60958.321862681049},{"$f":"(CashFlow!R112)","v":63506.708983750541},{"$f":"(CashFlow!S112)","v":0},null,null,null,null,null,null,null,null,null,null,null,null,null,null,null,null,null,null,null,50116.34405,54383.806100000009,56604.281709999996,58523.432288844298,60958.321862681049,63506.708983750541,0]
[1,"CP1154",null,null,null,"Travel and subsistence",null,{"$f":"(CashFlow!I113)","v":73812.443469999998},{"$f":"(CashFlow!J113)","v":80785.636580000006},{"$f":"(CashFlow!L113)","v":89072.801419999989},{"$f":"(CashFlow!N113)","v":92452.298619442008},{"$f":"(CashFlow!P113)","v":96418.915786644982},{"$f":"(CashFlow!R113)","v":100559.19471980413},{"$f":"(CashFlow!S113)","v":0},null,null,null,null,null,null,null,null,null,null,null,null,null,null,null,null,null,null,null,73812.443469999998,80785.636580000006,89072.801419999989,92452.298619442008,96418.915786644982,100559.19471980413,0]
[1,"CP1155",null,null,null,"Training and development",null,{"$f":"(CashFlow!I114)","v":27192.178789999998},{"$f":"(CashFlow!J114)","v":30446.804910000003},{"$f":"(CashFlow!L114)","v":37071.986510000002},{"$f":"(CashFlow!N114)","v":38781.005088111},{"$f":"(CashFlow!P114)","v":40545.540819620051},{"$f":"(CashFlow!R114)","v":42378.19926466688},{"$f":"(CashFlow!S114)","v":0},null,null,null,null,null,null,null,null,null,null,null,null,null,null,null,null,null,null,null,27192.178789999998,30446.804910000003,37071.986510000002,38781.005088111,40545.540819620051,42378.19926466688,0]
[1,"CP1158",null,null,null,"Operating payments",null,{"$f":"(CashFlow!I115)","v":223633.74459999998},{"$f":"(CashFlow!J115)","v":250891.45627999995},{"$f":"(CashFlow!L115)","v":193753.41074000002},{"$f":"(CashFlow!N115)","v":352305.09734118055},{"$f":"(CashFlow!P115)","v":223786.59539476392},{"$f":"(CashFlow!R115)","v":229014.90211066537},{"$f":"(CashFlow!S115)","v":0},null,null,null,null,null,null,null,null,null,null,null,null,null,null,null,null,null,null,null,223633.74459999998,250891.45627999995,193753.41074000002,352305.09734118055,223786.59539476392,229014.90211066537,0]
[1,"CP1156",null,null,null,"Venues and facilities",null,{"$f":"(CashFlow!I116)","v":2546.3962300000003},{"$f":"(CashFlow!J116)","v":12377.804310000001},{"$f":"(CashFlow!L116)","v":14124.05163},{"$f":"(CashFlow!N116)","v":14802.006108239999},{"$f":"(CashFlow!P116)","v":15512.502401435519},{"$f":"(CashFlow!R116)","v":16257.102516704424},{"$f":"(CashFlow!S116)","v":0},null,null,null,null,null,null,null,null,null,null,null,null,null,null,null,null,null,null,null,2546.3962300000003,12377.804310000001,14124.05163,14802.006108239999,15512.502401435519,16257.102516704424,0]
[1,"CP113",null,null,null,"Interest and rent on land",null,{"$f":"SUM(H97,H98)","v":9213.8095199999989},{"$f":"SUM(I97,I98)","v":7916.96011},217.37929,{"$f":"SUM(K97,K98)","v":227.40047526900003},237.74719689373953,248.49337019333655,0,null,null,{"$f":"SUM(Q97,Q98)","v":0},0,0,0,0,0,0,null,{"$f":"SUM(Y97,Y98)","v":0},0,0,0,0,0,0,null,null,{"$f":"SUM(AH97,AH98)","v":9213.8095199999989},{"$f":"SUM(AI97,AI98)","v":7916.96011},217.37929,227.40047526900003,237.74719689373953,248.49337019333655,0]
[1,"CP11311",null,null,null,"Interest (Incl. interest on unitary payments (PPP))",null,{"$f":"(CashFlow!I118+CashFlow!I119+CashFlow!I156)","v":9213.8095199999989},{"$f":"(CashFlow!J118+CashFlow!J119+CashFlow!J156)","v":7916.96011},{"$f":"(CashFlow!L118+CashFlow!L119+CashFlow!L156)","v":217.37929},{"$f":"(CashFlow!N118+CashFlow!N119+CashFlow!N156)","v":227.40047526900003},{"$f":"(CashFlow!P118+CashFlow!P119+CashFlow!P156)","v":237.74719689373953},{"$f":"(CashFlow!R118+CashFlow!R119+CashFlow!R156)","v":248.49337019333655},{"$f":"(CashFlow!S118+CashFlow!S119+CashFlow!S156)","v":0},null,null,null,null,null,null,null,null,null,null,null,null,null,null,null,null,null,null,null,{"$f":"SUM(H97,Q97,Y97)","v":9213.8095199999989},7916.96011,217.37929,227.40047526900003,237.74719689373953,248.49337019333655,0]
[1,"CP11312",null,null,null,"Rent on land",null,{"$f":"(CashFlow!I120)","v":0},{"$f":"(CashFlow!J120)","v":0},{"$f":"(CashFlow!L120)","v":0},{"$f":"(CashFlow!N120)","v":0},{"$f":"(CashFlow!P120)","v":0},{"$f":"(CashFlow!R120)","v":0},{"$f":"(CashFlow!S120)","v":0},null,null,null,null,null,null,null,null,null,null,null,null,null,null,null,null,null,null,null,0,0,0,0,0,0,0]
[1,"CP12",null,null,null,"Transfers and subsidies",null,{"$f":"SUM(H100,H101,H106,H108,H110,H109,H115,H116)","v":0},{"$f":"SUM(I100,I101,I106,I108,I110,I109,I115,I116)","v":0},0,{"$f":"SUM(K100,K101,K106,K108,K110,K109,K115,K116)","v":0},0,0,0,null,null,{"$f":"SUM(Q100,Q101,Q106,Q108,Q110,Q109,Q115,Q116)","v":0},0,0,0,0,0,0,null,{"$f":"SUM(Y100,Y101,Y106,Y108,Y110,Y109,Y115,Y116)","v":0},0,0,0,0,0,0,null,null,{"$f":"SUM(AH100,AH101,AH106,AH108,AH110,AH109,AH115,AH116)","v":0},{"$f":"SUM(AI100,AI101,AI106,AI108,AI110,AI109,AI115,AI116)","v":0},0,0,0,0,0]
[1,"CP121",null,null,null,"National department",null,{"$f":"SUM(CashFlow!I124,CashFlow!I135)","v":0},{"$f":"SUM(CashFlow!J124,CashFlow!J135)","v":0},{"$f":"SUM(CashFlow!L124,CashFlow!L135)","v":0},{"$f":"SUM(CashFlow!N124,CashFlow!N135)","v":0},{"$f":"SUM(CashFlow!P124,CashFlow!P135)","v":0},{"$f":"SUM(CashFlow!R124,CashFlow!R135)","v":0},{"$f":"SUM(CashFlow!S124,CashFlow!S135)","v":0},null,null,null,null,null,null,null,null,null,null,null,null,null,null,null,null,null,null,null,{"$f":"SUM(H100,Q100,Y100)","v":0},0,0,0,0,0,0]
[1,"CP122",null,null,null,"Provinces and municipalities",null,{"$f":"SUM(H102,H104)","v":0},{"$f":"SUM(I102,I104)","v":0},0,{"$f":"SUM(K102,K104)","v":0},0,0,0,null,null,{"$f":"SUM(Q102,Q104)","v":0},{"$f":"SUM(R102,R104)","v":0},0,0,0,0,0,null,{"$f":"SUM(Y102,Y104)","v":0},0,0,0,0,0,0,null,null,{"$f":"SUM(AH102,AH104)","v":0},0,0,0,0,0,0]
[1,"CP1221",null,null,null,"Provinces",null,{"$f":"SUM(H103:H103)","v":0},0,0,0,0,0,0,null,null,{"$f":"SUM(Q103:Q103)","v":0},0,0,0,0,0,0,null,0,0,0,0,0,0,0,null,null,{"$f":"SUM(AH103:AH103)","v":0},0,0,0,0,0,0]
[1,"CP12212",null,null,null,"Provincial agencies and funds",null,{"$f":"SUM(CashFlow!I126,CashFlow!I137)","v":0},{"$f":"SUM(CashFlow!J126,CashFlow!J137)","v":0},{"$f":"SUM(CashFlow!L126,CashFlow!L137)","v":0},{"$f":"SUM(CashFlow!N126,CashFlow!N137)","v":0},{"$f":"SUM(CashFlow!P126,CashFlow!P137)","v":0},{"$f":"SUM(CashFlow!R126,CashFlow!R137)","v":0},{"$f":"SUM(CashFlow!S126,CashFlow!S137)","v":0},null,null,null,null,null,null,null,null,null,null,null,null,null,null,null,null,null,null,null,{"$f":"SUM(H103,Q103,Y103)","v":0},0,0,0,0,0,0]
[1,"CP1222",null,null,null,"Municipalities",null,{"$f":"SUM(H105:H105)","v":0},0,0,0,0,0,0,null,null,{"$f":"SUM(Q105:Q105)","v":0},0,0,0,0,0,0,null,0,0,0,0,0,0,0,null,null,{"$f":"SUM(AH105:AH105)","v":0},{"$f":"SUM(AI105:AI105)","v":0},0,0,0,0,0]
[1,"CP12222",null,null,null,"Municipal agencies and funds",null,{"$f":"(SUM(CashFlow!I127,CashFlow!I138))","v":0},{"$f":"(SUM(CashFlow!J127,CashFlow!J138))","v":0},{"$f":"(SUM(CashFlow!L127,CashFlow!L138))","v":0},{"$f":"(SUM(CashFlow!N127,CashFlow!N138))","v":0},{"$f":"(SUM(CashFlow!P127,CashFlow!P138))","v":0},{"$f":"(SUM(CashFlow!R127,CashFlow!R138))","v":0},{"$f":"(SUM(CashFlow!S127,CashFlow!S138))","v":0},null,null,null,null,null,null,null,null,null,null,null,null,null,null,null,null,null,null,null,{"$f":"SUM(H105,Q105,Y105)","v":0},0,0,0,0,0,0]
[1,"CP123",null,null,null,"Departmental agencies and accounts",null,{"$f":"SUM(H107:H107)","v":0},0,0,0,0,0,0,null,null,{"$f":"SUM(Q107:Q107)","v":0},0,0,0,0,0,0,null,0,0,0,0,0,0,0,null,null,{"$f":"SUM(AH107:AH107)","v":0},0,0,0,0,0,0]
[1,"CP1232",null,null,null,"Departmental agencies (non-business entities)",null,{"$f":"(SUM(CashFlow!I125,CashFlow!I136,CashFlow!I128,CashFlow!I139,CashFlow!I155))","v":0},{"$f":"(SUM(CashFlow!J125,CashFlow!J136,CashFlow!J128,CashFlow!J139,CashFlow!J155))","v":0},{"$f":"(SUM(CashFlow!L125,CashFlow!L136,CashFlow!L128,CashFlow!L139,+CashFlow!L155))","v":0},{"$f":"(SUM(CashFlow!N125,CashFlow!N136,CashFlow!N128,CashFlow!N139,+CashFlow!N155))","v":0},{"$f":"(SUM(CashFlow!P125,CashFlow!P136,CashFlow!P128,CashFlow!P139,+CashFlow!P155))","v":0},{"$f":"(SUM(CashFlow!R125,CashFlow!R136,CashFlow!R128,CashFlow!R139,+CashFlow!R155))","v":0},{"$f":"(SUM(CashFlow!S125,CashFlow!S136,CashFlow!S128,CashFlow!S139,+CashFlow!S155))","v":0},null,null,null,null,null,null,null,null,null,null,null,null,null,null,null,null,null,null,null,{"$f":"SUM(H107,Q107,Y107)","v":0},0,0,0,0,0,0]
[1,"CP124",null,null,null,"Higher education institutions",null,{"$f":"(CashFlow!I144)","v":0},{"$f":"(CashFlow!J144)","v":0},{"$f":"(CashFlow!L144)","v":0},{"$f":"(CashFlow!N144)","v":0},{"$f":"(CashFlow!P144)","v":0},{"$f":"(CashFlow!R144)","v":0},{"$f":"(CashFlow!S144)","v":0},null,null,null,null,null,null,null,null,null,null,null,null,null,null,null,null,null,null,null,0,0,0,0,0,0,0]
[1,"CP125",null,null,null,"Foreign governments and international organisations",null,{"$f":"(CashFlow!I145)","v":0},{"$f":"(CashFlow!J145)","v":0},{"$f":"(CashFlow!L145)","v":0},{"$f":"(CashFlow!N145)","v":0},{"$f":"(CashFlow!P145)","v":0},{"$f":"(CashFlow!R145)","v":0},{"$f":"(CashFlow!S145)","v":0},null,null,null,null,null,null,null,null,null,null,null,null,null,null,null,null,null,null,null,0,0,0,0,0,0,0]
[1,"CP126",null,null,null,"Public corporations and private enterprises",null,{"$f":"SUM(H111,H113)","v":0},{"$f":"SUM(I111,I113)","v":0},0,{"$f":"SUM(K111,K113)","v":0},0,0,0,null,null,{"$f":"SUM(Q111,Q113)","v":0},{"$f":"SUM(R111,R113)","v":0},0,0,0,0,0,null,{"$f":"SUM(Y111,Y113)","v":0},0,0,0,0,0,0,null,null,{"$f":"SUM(AH111,AH113)","v":0},{"$f":"SUM(AI111,AI113)","v":0},0,0,0,0,0]
[1,"CP1261",null,null,null,"Public corporations",null,{"$f":"SUM(H112:H112)","v":0},0,0,0,0,0,0,null,null,{"$f":"SUM(Q112:Q112)","v":0},0,0,0,0,0,0,null,0,0,0,0,0,0,0,null,null,{"$f":"SUM(AH112:AH112)","v":0},0,0,0,0,0,0]
[1,"CP12611",null,null,null,"Subsidies on products and production (pc)",null,{"$f":"SUM(CashFlow!I130,CashFlow!I141)","v":0},{"$f":"SUM(CashFlow!J130,CashFlow!J141)","v":0},{"$f":"SUM(CashFlow!L130,CashFlow!L141)","v":0},{"$f":"SUM(CashFlow!N130,CashFlow!N141)","v":0},{"$f":"SUM(CashFlow!P130,CashFlow!P141)","v":0},{"$f":"SUM(CashFlow!R130,CashFlow!R141)","v":0},{"$f":"SUM(CashFlow!S130,CashFlow!S141)","v":0},null,null,null,null,null,null,null,null,null,null,null,null,null,null,null,null,null,null,null,{"$f":"SUM(H112,Q112,Y112)","v":0},0,0,0,0,0,0]
[1,"CP1262",null,null,null,"Private enterprises",null,{"$f":"SUM(H114:H114)","v":0},0,0,0,0,0,0,null,null,{"$f":"SUM(Q114:Q114)","v":0},0,0,0,0,0,0,null,0,0,0,0,0,0,0,null,null,{"$f":"SUM(AH114:AH114)","v":0},0,0,0,0,0,0]
[1,"CP12621",null,null,null,"Subsidies on products and production (pe)",null,{"$f":"SUM(CashFlow!I131,CashFlow!I142)","v":0},{"$f":"SUM(CashFlow!J131,CashFlow!J142)","v":0},{"$f":"SUM(CashFlow!L131,CashFlow!L142)","v":0},{"$f":"SUM(CashFlow!N131,CashFlow!N142)","v":0},{"$f":"SUM(CashFlow!P131,CashFlow!P142)","v":0},{"$f":"SUM(CashFlow!R131,CashFlow!R142)","v":0},{"$f":"SUM(CashFlow!S131,CashFlow!S142)","v":0},null,null,null,null,null,null,null,null,null,null,null,null,null,null,null,null,null,null,null,{"$f":"SUM(H114,Q114,Y114)","v":0},0,0,0,0,0,0]
[1,"CP127",null,null,null,"Non-profit institutions",null,{"$f":"(CashFlow!I146)","v":0},{"$f":"(CashFlow!J146)","v":0},{"$f":"(CashFlow!L146)","v":0},{"$f":"(CashFlow!N146)","v":0},{"$f":"(CashFlow!P146)","v":0},{"$f":"(CashFlow!R146)","v":0},{"$f":"(CashFlow!S146)","v":0},null,null,null,null,null,null,null,null,null,null,null,null,null,null,null,null,null,null,null,0,0,0,0,0,0,0]
[1,"CP128",null,null,null,"Households",null,{"$f":"SUM(H117:H118)","v":0},{"$f":"SUM(I117:I118)","v":0},0,{"$f":"SUM(K117:K118)","v":0},0,0,0,null,null,{"$f":"SUM(Q117:Q118)","v":0},{"$f":"SUM(R117:R118)","v":0},0,0,0,0,0,null,{"$f":"SUM(Y117:Y118)","v":0},0,0,0,0,0,0,null,null,{"$f":"SUM(AH117:AH118)","v":0},{"$f":"SUM(AI117:AI118)","v":0},0,0,0,0,0]
[1,"CP1281",null,null,null,"Social benefits",null,{"$f":"(CashFlow!I148)","v":0},{"$f":"(CashFlow!J148)","v":0},{"$f":"(CashFlow!L148)","v":0},{"$f":"(CashFlow!N148)","v":0},{"$f":"(CashFlow!P148)","v":0},{"$f":"(CashFlow!R148)","v":0},{"$f":"(CashFlow!S148)","v":0},null,null,null,null,null,null,null,null,null,null,null,null,null,null,null,null,null,null,null,{"$f":"SUM(H117,Q117,Y117)","v":0},0,0,0,0,0,0]
[1,"CP1282",null,null,null,"Other transfers to households",null,{"$f":"SUM(CashFlow!I149+CashFlow!I132+CashFlow!I143)","v":0},{"$f":"SUM(CashFlow!J149+CashFlow!J132+CashFlow!J143)","v":0},{"$f":"SUM(CashFlow!L149+CashFlow!L132+CashFlow!L143)","v":0},{"$f":"SUM(CashFlow!N149+CashFlow!N132+CashFlow!N143)","v":0},{"$f":"SUM(CashFlow!P149+CashFlow!P132+CashFlow!P143)","v":0},{"$f":"SUM(CashFlow!R149+CashFlow!R132+CashFlow!R143)","v":0},{"$f":"SUM(CashFlow!S149+CashFlow!S132+CashFlow!S143)","v":0},null,null,null,null,null,null,null,null,null,null,null,null,null,null,null,null,null,null,null,0,0,0,0,0,0,0]
[1,"CP13",null,null,null,"Payments for capital assets",null,{"$f":"SUM(H120,H123,SUM(H126:H129))","v":789539},{"$f":"SUM(I120,I123,SUM(I126:I129))","v":642052},540221.21490000002,989614.64978879225,490463.23638710083,223510.47849298321,0,null,null,{"$f":"SUM(Q120,Q123,SUM(Q126:Q129))","v":0},{"$f":"SUM(R120,R123,SUM(R126:R129))","v":0},0,0,0,0,0,null,{"$f":"SUM(Y120,Y123,SUM(Y126:Y129))","v":0},0,0,0,0,0,0,null,null,{"$f":"SUM(AH120,AH123,SUM(AH126:AH129))","v":789539},{"$f":"SUM(AI120,AI123,SUM(AI126:AI129))","v":642052},540221.21490000002,989614.64978879225,490463.23638710083,223510.47849298321,0]
[1,"CP131",null,null,null,"Buildings and other fixed structures",null,{"$f":"SUM(H121:H122)","v":102675},{"$f":"SUM(I121:I122)","v":59835},114385.98189999998,567953.83792830782,207591.55163036272,109688.34022239878,0,null,null,{"$f":"SUM(Q121:Q122)","v":0},{"$f":"SUM(R121:R122)","v":0},0,0,0,0,0,null,{"$f":"SUM(Y121:Y122)","v":0},0,0,0,0,0,0,null,null,{"$f":"SUM(AH121:AH122)","v":102675},{"$f":"SUM(AI121:AI122)","v":59835},114385.98189999998,567953.83792830782,207591.55163036272,109688.34022239878,0]
[1,"CP1311",null,null,null,"Buildings",null,{"$f":"-(SUM(CashFlow!I170:I171,CashFlow!I182))","v":98894},{"$f":"-(SUM(CashFlow!J170:J171,CashFlow!J182))","v":50029},{"$f":"-(SUM(CashFlow!L170:L171,CashFlow!L182))","v":39015.561129999995},{"$f":"-(SUM(CashFlow!N170:N171,CashFlow!N182))","v":23235.014676546074},{"$f":"-(SUM(CashFlow!P170:P171,CashFlow!P182))","v":20432.558868065331},{"$f":"-(SUM(CashFlow!R170:R171,CashFlow!R182))","v":17852.028845823021},{"$f":"-(SUM(CashFlow!S170:S171,CashFlow!S182))","v":0},null,null,null,null,null,null,null,null,null,null,null,null,null,null,null,null,null,null,null,{"$f":"SUM(H121,Q121,Y121)","v":98894},50029,39015.561129999995,23235.014676546074,20432.558868065331,17852.028845823021,0]
[1,"CP1312",null,null,null,"Other fixed structures",null,{"$f":"-(CashFlow!I172)","v":3781},{"$f":"-(CashFlow!J172)","v":9806},{"$f":"-(CashFlow!L172)","v":75370.420769999997},{"$f":"-(CashFlow!N172)","v":544718.82325176173},{"$f":"-(CashFlow!P172)","v":187158.99276229739},{"$f":"-(CashFlow!R172)","v":91836.311376575759},{"$f":"-(CashFlow!S172)","v":0},null,null,null,null,null,null,null,null,null,null,null,null,null,null,null,null,null,null,null,3781,9806,75370.420769999997,544718.82325176173,187158.99276229739,91836.311376575759,0]
[1,"CP132",null,null,null,"Machinery and equipment",null,{"$f":"SUM(H124:H125)","v":440247},{"$f":"SUM(I124:I125)","v":332298},152050.51707,{"$f":"SUM(K124:K125)","v":61046.082688233306},50510.551879342529,39320.990048754007,0,null,null,{"$f":"SUM(Q124:Q125)","v":0},{"$f":"SUM(R124:R125)","v":0},0,0,0,0,0,null,{"$f":"SUM(Y124:Y125)","v":0},0,0,0,0,0,0,null,null,{"$f":"SUM(AH124:AH125)","v":440247},{"$f":"SUM(AI124:AI125)","v":332298},152050.51707,61046.082688233306,50510.551879342529,39320.990048754007,0]
[1,"CP1321",null,null,null,"Transport equipment",null,{"$f":"-(CashFlow!I173)","v":56888},{"$f":"-(CashFlow!J173)","v":9442},{"$f":"-(CashFlow!L173)","v":21099.1708},{"$f":"-(CashFlow!N173)","v":0},{"$f":"-(CashFlow!P173)","v":0},{"$f":"-(CashFlow!R173)","v":0},{"$f":"-(CashFlow!S173)","v":0},null,null,null,null,null,null,null,null,null,null,null,null,null,null,null,null,null,null,null,{"$f":"SUM(H124,Q124,Y124)","v":56888},9442,21099.1708,0,0,0,0]
[1,"CP1322",null,null,null,"Other machinery and equipment",null,{"$f":"-(SUM(CashFlow!I174:I175,CashFlow!I181))","v":383359},{"$f":"-(SUM(CashFlow!J174:J175,CashFlow!J181))","v":322856},{"$f":"-(SUM(CashFlow!L174:L175,CashFlow!L181))","v":130951.34626999999},{"$f":"-(SUM(CashFlow!N174:N175,CashFlow!N181))","v":61046.082688233306},{"$f":"-(SUM(CashFlow!P174:P175,CashFlow!P181))","v":50510.551879342529},{"$f":"-(SUM(CashFlow!R174:R175,CashFlow!R181))","v":39320.990048754007},{"$f":"-(SUM(CashFlow!S174:S175,CashFlow!S181))","v":0},null,null,null,null,null,null,null,null,null,null,null,null,null,null,null,null,null,null,null,383359,322856,130951.34626999999,61046.082688233306,50510.551879342529,39320.990048754007,0]
[1,"CP133",null,null,null,"Heritage assets",null,{"$f":"-(CashFlow!I176)","v":0},{"$f":"-(CashFlow!J176)","v":0},{"$f":"-(CashFlow!L176)","v":0},{"$f":"-(CashFlow!N176)","v":0},{"$f":"-(CashFlow!P176)","v":0},{"$f":"-(CashFlow!R176)","v":0},{"$f":"-(CashFlow!S176)","v":0},null,null,null,null,null,null,null,null,null,null,null,null,null,null,null,null,null,null,null,0,0,0,0,0,0,0]
[1,"CP135",null,null,null,"Biological assets",null,{"$f":"-(CashFlow!I179)","v":3725},{"$f":"-(CashFlow!J179)","v":1676},{"$f":"-(CashFlow!L179)","v":112.7},{"$f":"-(CashFlow!N179)","v":0},{"$f":"-(CashFlow!P179)","v":0},{"$f":"-(CashFlow!R179)","v":0},{"$f":"-(CashFlow!S179)","v":0},null,null,null,null,null,null,null,null,null,null,null,null,null,null,null,null,null,null,null,3725,1676,112.7,0,0,0,0]
[1,"CP136",null,null,null,"Land and sub-soil assets",null,{"$f":"-(CashFlow!I180)","v":0},{"$f":"-(CashFlow!J180)","v":0},{"$f":"-(CashFlow!L180)","v":0},{"$f":"-(CashFlow!N180)","v":0},{"$f":"-(CashFlow!P180)","v":0},{"$f":"-(CashFlow!R180)","v":0},{"$f":"-(CashFlow!S180)","v":0},null,null,null,null,null,null,null,null,null,null,null,null,null,null,null,null,null,null,null,0,0,0,0,0,0,0]
[1,"CP137",null,null,null,"Software and other intangible assets",null,{"$f":"-(CashFlow!I183)","v":242892},{"$f":"-(CashFlow!J183)","v":248243},{"$f":"-(CashFlow!L183)","v":273672.01592999999},{"$f":"-(CashFlow!N183)","v":360614.72917225107},{"$f":"-(CashFlow!P183)","v":232361.13287739558},{"$f":"-(CashFlow!R183)","v":74501.14822183043},{"$f":"-(CashFlow!S183)","v":0},null,null,null,null,null,null,null,null,null,null,null,null,null,null,null,null,null,null,null,242892,248243,273672.01592999999,360614.72917225107,232361.13287739558,74501.14822183043,0]
[1,"CP14",null,null,null,"Payments for financial assets",null,{"$f":"SUM(CashFlow!I150,-CashFlow!I158)","v":0},{"$f":"SUM(CashFlow!J150,-CashFlow!J158)","v":0},{"$f":"SUM(CashFlow!L150,-CashFlow!L158)","v":0},{"$f":"SUM(CashFlow!N150,-CashFlow!N158)","v":0},{"$f":"SUM(CashFlow!P150,-CashFlow!P158)","v":0},{"$f":"SUM(CashFlow!R150,-CashFlow!R158)","v":0},{"$f":"SUM(CashFlow!S150,-CashFlow!S158)","v":0},null,null,null,null,null,null,null,null,null,null,null,null,null,null,null,null,null,null,null,0,0,0,0,0,0,0]
[null,"CP1",null,null,null,"Total expenditure",null,{"$f":"SUM(H44,H99,H119,H130)","v":12293417.62731},{"$f":"SUM(I44,I99,I119,I130)","v":13592209.75506},13867327.676776001,{"$f":"SUM(K44,K99,K119,K130)","v":15791922.394199755},15452680.317538388,15958531.433597682,0,null,null,{"$f":"SUM(Q44,Q99,Q119,Q130)","v":-394473.48458000086},0,0,0,0,0,0,null,{"$f":"SUM(Y44,Y99,Y119,Y130)","v":0},0,0,0,0,0,0,null,null,{"$f":"SUM(AH44,AH99,AH119,AH130)","v":11898944.142729999},{"$f":"SUM(AI44,AI99,AI119,AI130)","v":13592209.75506},13867327.676776001,15791922.394199755,15452680.317538388,15958531.433597682,0]
[null,"SD1",null,null,null,"Surplus/deficit",null,{"$f":"H42-H131","v":-122620.62731000036},{"$f":"I42-I131","v":215677.24493999965},-920745.11987189576,{"$f":"K42-K131","v":150438.41191639937},-4559.1583482641727,71174.339012432843,0,null,null,{"$f":"Q42-Q131","v":394473.48458000086},0,0,0,0,0,0,null,{"$f":"Y42-Y131","v":0},0,0,0,0,0,0,null,null,{"$f":"AH42-AH131","v":271852.8572700005},{"$f":"AI42-AI131","v":215677.24493999965},-920745.11987189576,150438.41191639937,-4559.1583482641727,71174.339012432843,0]
[]
[null,"CP000",null,null,null,"Check "]
[null,null,null,null,null,"Receipts",null,{"$f":"ROUND(H42-(CashFlow!I12+CashFlow!I163+CashFlow!I184+CashFlow!I196),0)","v":0},{"$f":"ROUND(I42-(CashFlow!J12+CashFlow!J163+CashFlow!J184+CashFlow!J196),0)","v":0},{"$f":"ROUND(J42-(CashFlow!L12+CashFlow!L163+CashFlow!L184+CashFlow!L196),0)","v":0},{"$f":"ROUND(K42-(CashFlow!N12+CashFlow!N163+CashFlow!N184+CashFlow!N196),0)","v":0},{"$f":"ROUND(L42-(CashFlow!P12+CashFlow!P163+CashFlow!P184+CashFlow!P196),0)","v":0},{"$f":"ROUND(M42-(CashFlow!R12+CashFlow!R163+CashFlow!R184+CashFlow!R196),0)","v":0},{"$f":"ROUND(N42-(CashFlow!S12+CashFlow!S163+CashFlow!S184+CashFlow!S196),0)","v":0},{"$f":"ROUND($H$42-(CashFlow!$I$12+CashFlow!$I$163+CashFlow!$I$184+CashFlow!$I$196),0)","v":0}]
[null,null,null,null,null,"Payments",null,{"$f":"ROUND($H$131-CashFlow!$I$58+CashFlow!$I$158+CashFlow!$I$169+CashFlow!$I$182+CashFlow!$I$183,0)","v":0},{"$f":"ROUND($I$131-CashFlow!$J$58+CashFlow!$J$158+CashFlow!$J$169+CashFlow!$J$182+CashFlow!$J$183,0)","v":0},{"$f":"ROUND($J$131-CashFlow!$L$58+CashFlow!$L$158+CashFlow!$L$169+CashFlow!$L$182+CashFlow!$L$183,0)","v":0},{"$f":"ROUND($K$131-CashFlow!$N$58+CashFlow!$N$158+CashFlow!$N$169+CashFlow!$N$182+CashFlow!$N$183,0)","v":0},{"$f":"ROUND($L$131-CashFlow!$P$58+CashFlow!$P$158+CashFlow!$P$169+CashFlow!$P$182+CashFlow!$P$183,0)","v":0},{"$f":"ROUND($M$131-CashFlow!$R$58+CashFlow!$R$158+CashFlow!$R$169+CashFlow!$R$182+CashFlow!$R$183,0)","v":0},{"$f":"ROUND($N$131-CashFlow!$S$58+CashFlow!$S$158+CashFlow!$S$169+CashFlow!$S$182+CashFlow!$S$183,0)","v":0}]

{"sheet":"SOSUC","index":40,"n_rows":51,"n_cols":15,"rows_kept":51,"cut":false,"hidden":true,"merged":[[7,10,7,11],[8,13,8,14]]}
[]
[]
[]
[]
[]
[null,null,null,null,null,"PE No",{"$f":"Settings!O2","v":"PE126"}]
[null,null,null,null,null,"Entity name",{"$f":"Settings!E2","v":"South African Revenue Service"}]
[null,null,null,null,null,"Statement of Sources and Uses of Cash",null,{"$f":"MyYearM3","v":"2022/23"},{"$f":"MyYearM2","v":"2023/24"},{"$f":"MyYearM1","v":"2024/25"},{"$f":"MyYear0","v":"2025/26"},null,{"$f":"MyYearP1","v":"2026/27"},{"$f":"MyYearP2","v":"2027/28"},{"$f":"MyYearP3","v":"2028/29"}]
[null,"ItemCode",null,null,null,"R thousands",null,"Outcomes","Outcomes","Outcomes","Budget Estimate","Revised Estimate","Budget Estimate","Medium term estimates"]
[null,"FI1",null,null,null,"Revenue cash flows",null,{"$f":"SUM(H11:H12,H15)","v":12169187},{"$f":"SUM(I11:I12,I15)","v":13806595},12946582.556904105,15942360.806116154,15942360.806116154,15448121.159190124,16029705.772610115,0]
[null,"FI11",null,null,null,"Taxes",null,{"$f":"CashFlow!I13","v":0},{"$f":"CashFlow!J13","v":0},{"$f":"CashFlow!L13","v":0},{"$f":"CashFlow!M13","v":0},{"$f":"CashFlow!N13","v":0},{"$f":"CashFlow!P13","v":0},{"$f":"CashFlow!R13","v":0},{"$f":"CashFlow!S13","v":0}]
[null,"FI12",null,null,null,"Transfers",null,{"$f":"SUM(H13:H14)","v":11635781},{"$f":"SUM(I13:I14)","v":13280696},12388563,15409637,{"$f":"SUM(L13:L14)","v":15409637},14895308,15455832.380799999,{"$f":"SUM(O13:O14)","v":0}]
[null,"FI121",null,null,null,"Social contributions",null,{"$f":"CashFlow!I31","v":0},{"$f":"CashFlow!J31","v":0},{"$f":"CashFlow!L31","v":0},{"$f":"CashFlow!M31","v":0},{"$f":"CashFlow!N31","v":0},{"$f":"CashFlow!P31","v":0},{"$f":"CashFlow!R31","v":0},{"$f":"CashFlow!S31","v":0}]
[null,"FI122",null,null,null,"Other transfers",null,{"$f":"SUM(CashFlow!I32,CashFlow!I36,CashFlow!I45:I47,CashFlow!I197)","v":11635781},{"$f":"SUM(CashFlow!J32,CashFlow!J36,CashFlow!J45:J47,CashFlow!J197)","v":13280696},{"$f":"SUM(CashFlow!L32,CashFlow!L36,CashFlow!L45:L47,CashFlow!L197)","v":12388563},{"$f":"SUM(CashFlow!M32,CashFlow!M36,CashFlow!M45:M47,CashFlow!M197)","v":15409637},{"$f":"SUM(CashFlow!N32,CashFlow!N36,CashFlow!N45:N47,CashFlow!N197)","v":15409637},{"$f":"SUM(CashFlow!P32,CashFlow!P36,CashFlow!P45:P47,CashFlow!P197)","v":14895308},{"$f":"SUM(CashFlow!R32,CashFlow!R36,CashFlow!R45:R47,CashFlow!R197)","v":15455832.380799999},{"$f":"SUM(CashFlow!S32,CashFlow!S36,CashFlow!S45:U47,CashFlow!S197)","v":0}]
[null,"FI13",null,null,null,"Other receipts not from sale of capital assets",null,{"$f":"SUM(H16:H18)","v":533406},{"$f":"SUM(I16:I18)","v":525899},558019.55690410559,532723.806116155,{"$f":"SUM(L16:L18)","v":532723.806116155},552813.15919012437,573873.39181011461,{"$f":"SUM(O16:O18)","v":0}]
[null,"FI131",null,null,null,"Sales of goods and services",null,{"$f":"CashFlow!I14+CashFlow!I198","v":430771},{"$f":"CashFlow!J14+CashFlow!J198","v":377667},{"$f":"CashFlow!L14+CashFlow!L198","v":431549.4111441056},{"$f":"CashFlow!M14+CashFlow!M198","v":443999.80611615477},{"$f":"CashFlow!N14+CashFlow!N198","v":443999.80611615477},{"$f":"CashFlow!P14+CashFlow!P198","v":456813.79119011993},{"$f":"CashFlow!R14+CashFlow!R198","v":470002.07563411363},{"$f":"CashFlow!S14+CashFlow!S198","v":0}]
[null,"FI132",null,null,null,"Interest, dividends and rent on land",null,{"$f":"CashFlow!I49+CashFlow!I57","v":102635},{"$f":"CashFlow!J49+CashFlow!J57","v":148232},{"$f":"CashFlow!L49+CashFlow!L57","v":126470.14575999997},{"$f":"CashFlow!M49+CashFlow!M57","v":88724.000000000233},{"$f":"CashFlow!N49+CashFlow!N57","v":88724.000000000233},{"$f":"CashFlow!P49+CashFlow!P57","v":95999.368000004441},{"$f":"CashFlow!R49+CashFlow!R57","v":103871.31617600098},{"$f":"CashFlow!S49+CashFlow!S57","v":0}]
[null,"FI133",null,null,null,"Other  ",null,{"$f":"SUM(CashFlow!I48,CashFlow!I53,CashFlow!I56,CashFlow!I163+CashFlow!I212)","v":0},{"$f":"SUM(CashFlow!J48,CashFlow!J53,CashFlow!J56,CashFlow!J163+CashFlow!J212)","v":0},{"$f":"SUM(CashFlow!L48,CashFlow!L53,CashFlow!L56,CashFlow!L163,CashFlow!L212)","v":0},{"$f":"SUM(CashFlow!M48,CashFlow!M53,CashFlow!M56,CashFlow!M163,CashFlow!M212)","v":0},{"$f":"SUM(CashFlow!N48,CashFlow!N53,CashFlow!N56,CashFlow!N163,CashFlow!N212)","v":0},{"$f":"SUM(CashFlow!P48,CashFlow!P53,CashFlow!P56,CashFlow!P163,CashFlow!P212)","v":0},{"$f":"SUM(CashFlow!R48,CashFlow!R53,CashFlow!R56,CashFlow!R163,CashFlow!R212)","v":0},{"$f":"SUM(CashFlow!S48,CashFlow!S53,CashFlow!S56,CashFlow!S163,CashFlow!S212)","v":0}]
[null,"FI2",null,null,null,"Expense cash flows",null,{"$f":"SUM(H20:H23,H26)","v":11503878.62731},{"$f":"SUM(I20:I23,I26)","v":12950157.75506},13327106.461876001,14802307.744410964,{"$f":"SUM(L20:L23,L26)","v":14802307.744410964},14962217.081151288,15735020.955104699,{"$f":"SUM(O20:O23,O26)","v":0}]
[null,"FI24",null,null,null,"Compensation of employees",null,{"$f":"CashFlow!I60","v":8445367.1408399995},{"$f":"CashFlow!J60","v":9498469.6334199999},{"$f":"CashFlow!L60","v":9870140.5542600006},{"$f":"CashFlow!M60","v":10339690.602510722},{"$f":"CashFlow!N60","v":10339690.602510722},{"$f":"CashFlow!P60","v":10333657.588951603},{"$f":"CashFlow!R60","v":10800172.791032141},{"$f":"CashFlow!S60","v":0}]
[null,"FI25",null,null,null,"Purchases of goods and services",null,{"$f":"CashFlow!I63","v":3049297.6769499998},{"$f":"CashFlow!J63","v":3443771.1615300006},{"$f":"CashFlow!L63","v":3456748.5283260006},{"$f":"CashFlow!M63","v":4462389.7414249722},{"$f":"CashFlow!N63","v":4462389.7414249722},{"$f":"CashFlow!P63","v":4628321.7450027922},{"$f":"CashFlow!R63","v":4934599.6707023643},{"$f":"CashFlow!S63","v":0}]
[null,"FI26",null,null,null,"Interest, dividends, rent on land",null,{"$f":"CashFlow!I117+CashFlow!I156","v":9213.8095199999989},{"$f":"CashFlow!J117+CashFlow!J156","v":7916.96011},{"$f":"CashFlow!L117+CashFlow!L156","v":217.37929},{"$f":"CashFlow!M117+CashFlow!M156","v":227.40047526900003},{"$f":"CashFlow!N117+CashFlow!N156","v":227.40047526900003},{"$f":"CashFlow!P117+CashFlow!P156","v":237.74719689373953},{"$f":"CashFlow!R117+CashFlow!R156","v":248.49337019333655},{"$f":"CashFlow!S117+CashFlow!S156","v":0}]
[null,"FI27",null,null,null,"Transfers",null,{"$f":"SUM(H24:H25)","v":0},{"$f":"SUM(I24:I25)","v":0},0,0,{"$f":"SUM(L24:L25)","v":0},0,0,{"$f":"SUM(O24:O25)","v":0}]
[null,"FI271",null,null,null,"Social benefits",null,{"$f":"CashFlow!I148","v":0},{"$f":"CashFlow!J148","v":0},{"$f":"CashFlow!L148","v":0},{"$f":"CashFlow!M148","v":0},{"$f":"CashFlow!N148","v":0},{"$f":"CashFlow!P148","v":0},{"$f":"CashFlow!R148","v":0},{"$f":"CashFlow!S148","v":0}]
[null,"FI272",null,null,null,"Other transfers",null,{"$f":"SUM(CashFlow!I121-CashFlow!I148)","v":0},{"$f":"SUM(CashFlow!J121-CashFlow!J148)","v":0},{"$f":"SUM(CashFlow!L121-CashFlow!L148)","v":0},{"$f":"SUM(CashFlow!M121-CashFlow!M148)","v":0},{"$f":"SUM(CashFlow!N121-CashFlow!N148)","v":0},{"$f":"SUM(CashFlow!P121-CashFlow!P148)","v":0},{"$f":"SUM(CashFlow!R121-CashFlow!R148)","v":0},{"$f":"SUM(CashFlow!S121-CashFlow!S148)","v":0}]
[null,"FI28",null,null,null,"Other payments",null,{"$f":"SUM(CashFlow!I155,-CashFlow!I158,CashFlow!I150)","v":0},{"$f":"SUM(CashFlow!J155,-CashFlow!J158,CashFlow!J150)","v":0},{"$f":"SUM(CashFlow!L155,-CashFlow!L158,CashFlow!L150)","v":0},{"$f":"SUM(CashFlow!M155,-CashFlow!M158,CashFlow!M150)","v":0},{"$f":"SUM(CashFlow!N155,-CashFlow!N158,CashFlow!N150)","v":0},{"$f":"SUM(CashFlow!P155,-CashFlow!P158,CashFlow!P150)","v":0},{"$f":"SUM(CashFlow!R155,-CashFlow!R158,CashFlow!R150)","v":0},{"$f":"SUM(CashFlow!S155,-CashFlow!S158,CashFlow!S150)","v":0}]
[null,"FI3",null,null,null,"Net cash inflow from operating activities",null,{"$f":"H10-H19","v":665308.37268999964},{"$f":"I10-I19","v":856437.24493999965},-380523.90497189574,1140053.0617051907,{"$f":"L10-L19","v":1140053.0617051907},485904.0780388359,294684.81750541553,{"$f":"O10-O19","v":0}]
[null,"FI4",null,null,null,"Cash Flows from Transactions in Nonfinancial Assets:"]
[null,"FI41",null,null,null,"Net cash outflow from investment in nonfinancial assets1 ",null,{"$f":"SUM(H30:H33)","v":-787929},-640760,-540221.21490000002,-989614.64978879236,{"$f":"SUM(L30:L33)","v":-989614.64978879236},-490463.23638710083,-223510.47849298324,{"$f":"SUM(O30:O33)","v":0}]
[null,"FI411",null,null,null,"Fixed assets",null,{"$f":"CashFlow!I169-CashFlow!I180+CashFlow!I182+CashFlow!I183","v":-789539},{"$f":"CashFlow!J169-CashFlow!J180+CashFlow!J182+CashFlow!J183","v":-642052},{"$f":"CashFlow!L169-CashFlow!L180+CashFlow!L182+CashFlow!L183","v":-540221.21490000002},{"$f":"CashFlow!M169-CashFlow!M180+CashFlow!M182+CashFlow!M183","v":-989614.64978879236},{"$f":"CashFlow!N169-CashFlow!N180+CashFlow!N182+CashFlow!N183","v":-989614.64978879236},{"$f":"CashFlow!P169-CashFlow!P180+CashFlow!P182+CashFlow!P183","v":-490463.23638710083},{"$f":"CashFlow!R169-CashFlow!R180+CashFlow!R182+CashFlow!R183","v":-223510.47849298324},{"$f":"CashFlow!S169-CashFlow!S180+CashFlow!S182+CashFlow!S183","v":0}]
[null,"FI412",null,null,null,"Inventories2"]
[null,"FI413",null,null,null,"Nonproduced assets",null,{"$f":"CashFlow!I180","v":0},{"$f":"CashFlow!J180","v":0},{"$f":"CashFlow!L180","v":0},{"$f":"CashFlow!M180","v":0},{"$f":"CashFlow!N180","v":0},{"$f":"CashFlow!P180","v":0},{"$f":"CashFlow!R180","v":0},{"$f":"CashFlow!S180","v":0}]
[null,"FI414",null,null,null,"Sales of non-financial assets",null,{"$f":"CashFlow!I184","v":1610},{"$f":"CashFlow!J184","v":1292},{"$f":"CashFlow!L184","v":0},{"$f":"CashFlow!M184","v":0},{"$f":"CashFlow!N184","v":0},{"$f":"CashFlow!P184","v":0},{"$f":"CashFlow!R184","v":0},{"$f":"CashFlow!S184","v":0}]
[null,"FI5",null,null,null,"Expenditure cash flows",null,{"$f":"SUM(H19,H30:H33)","v":10715949.62731},12309397.75506,12786885.246976001,13812693.094622171,{"$f":"SUM(L19,L30:L33)","v":13812693.094622171},14471753.844764188,15511510.476611717,{"$f":"SUM(O19,O30:O33)","v":0}]
[null,"FI6",null,null,null,"Cash surplus/deficit",null,{"$f":"H10-H19+H29","v":-122620.62731000036},215677.24493999965,-920745.11987189576,150438.41191639833,{"$f":"L10-L19+L29","v":150438.41191639833},-4559.1583482649294,71174.33901243229,{"$f":"O10-O19+O29","v":0}]
[null,0,null,null,null,"Check",null,{"$f":"H35-Consolidation!H132","v":0},{"$f":"I35-Consolidation!I132","v":0},{"$f":"J35-Consolidation!J132","v":0},null,null,{"$f":"M35-Consolidation!L132","v":-7.5669959187507629E-10},{"$f":"N35-Consolidation!M132","v":-5.5297277867794037E-10},{"$f":"O35-Consolidation!N132","v":0}]
[null,"FI7",null,null,null,"Cash Flows from Transactions in Financial Assets and Liabilities (Financing): "]
[null,"FI71",null,null,null,"Net acquisition of financial assets other than cash",null,{"$f":"SUM(H39:H40)","v":8489},{"$f":"SUM(I39:I40)","v":0},{"$f":"SUM(J39:J40)","v":0},0,{"$f":"SUM(L39:L40)","v":0},0,0,{"$f":"SUM(O39:O40)","v":0}]
[null,"FI711",null,null,null,"Domestic3",null,{"$f":"SUM(CashFlow!I186,CashFlow!I192:I194)","v":8489},{"$f":"SUM(CashFlow!J186,CashFlow!J192:J194)","v":0},{"$f":"SUM(CashFlow!L186,CashFlow!L192:L194)","v":0},{"$f":"SUM(CashFlow!M186,CashFlow!M192:M194)","v":0},{"$f":"SUM(CashFlow!N186,CashFlow!N192:N194)","v":0},{"$f":"SUM(CashFlow!P186,CashFlow!P192:P194)","v":0},{"$f":"SUM(CashFlow!R186,CashFlow!R192:R194)","v":0},{"$f":"SUM(CashFlow!S186,CashFlow!S192:S194)","v":0}]
[null,"FI712",null,null,null,"External3",null,{"$f":"CashFlow!I189","v":0},{"$f":"CashFlow!J189","v":0},{"$f":"CashFlow!L189","v":0},{"$f":"CashFlow!M189","v":0},{"$f":"CashFlow!N189","v":0},{"$f":"CashFlow!P189","v":0},{"$f":"CashFlow!R189","v":0},{"$f":"CashFlow!S189","v":0}]
[null,"FI72",null,null,null,"Net incurrance of liabilities",null,{"$f":"SUM(H42:H43)","v":2232},{"$f":"SUM(I42:I43)","v":-13776},-20542,0,{"$f":"SUM(L42:L43)","v":0},-8737,0,{"$f":"SUM(O42:O43)","v":0}]
[null,"FI721",null,null,null,"Domestic3",null,{"$f":"SUM(CashFlow!I200,CashFlow!I211,CashFlow!I213:I215)","v":2232},{"$f":"SUM(CashFlow!J200,CashFlow!J211,CashFlow!J213:J215)","v":-13776},{"$f":"SUM(CashFlow!L200,CashFlow!L211,CashFlow!L213:L215)","v":-20542},{"$f":"SUM(CashFlow!M200,CashFlow!M211,CashFlow!M213:M215)","v":0},{"$f":"SUM(CashFlow!N200,CashFlow!N211,CashFlow!N213:N215)","v":0},{"$f":"SUM(CashFlow!P200,CashFlow!P211,CashFlow!P213:P215)","v":-8737},{"$f":"SUM(CashFlow!R200,CashFlow!R211,CashFlow!R213:R215)","v":0},{"$f":"SUM(CashFlow!S200,CashFlow!S211,CashFlow!S213:S215)","v":0}]
[null,"FI722",null,null,null,"External3",null,{"$f":"CashFlow!I207","v":0},{"$f":"CashFlow!J207","v":0},{"$f":"CashFlow!L207","v":0},{"$f":"CashFlow!M207","v":0},{"$f":"CashFlow!N207","v":0},{"$f":"CashFlow!P207","v":0},{"$f":"CashFlow!R207","v":0},{"$f":"CashFlow!S207","v":0}]
[null,"FI8",null,null,null,"Net cash inflow from financing activities",null,{"$f":"SUM(H38,H41)","v":10721},{"$f":"SUM(I38,I41)","v":-13776},-20542,0,{"$f":"SUM(L38,L41)","v":0},-8737,0,{"$f":"SUM(O38,O41)","v":0}]
[null,"FI9",null,null,null,"Net change in the stock of cash",null,{"$f":"SUM(H35,H44)","v":-111899.62731000036},{"$f":"SUM(I35,I44)","v":201901.24493999965},-941287.11987189576,150438.41191639833,{"$f":"SUM(L35,L44)","v":150438.41191639833},-13296.158348264929,71174.33901243229,{"$f":"SUM(O35,O44)","v":0}]
[null,null,null,null,null,"Check",null,{"$f":"H45-CashFlow!I216","v":0},{"$f":"I45-CashFlow!J216","v":0},{"$f":"J45-CashFlow!L216","v":0},{"$f":"K45-CashFlow!M216","v":0},{"$f":"L45-CashFlow!N216","v":0},{"$f":"M45-CashFlow!P216","v":0},{"$f":"N45-CashFlow!R216","v":0},{"$f":"O45-CashFlow!S216","v":0}]
[]
[null,null,null,null,null,"Notes:"]
[null,null,null,null,null,"1. The net cash outﬂow from investment in nonﬁ nancial assets equals purchases minus sales."]
[null,null,null,null,null,"2. On a cash basis, the category inventories (C312) is limited to changes in strategic stocks. Other inventories are, by deﬁ nition of the cash basis of recording, considered an expense when acquired."]
[null,null,null,null,null,"3. Classiﬁed by instrument and/or sector of the counterparty "]

{"sheet":"Govt Acc financing table","index":41,"n_rows":33,"n_cols":15,"rows_kept":33,"cut":false,"hidden":true,"merged":[[7,10,7,11]]}
[]
[]
[]
[]
[]
[null,null,null,null,null,"PE No",{"$f":"Settings!O2","v":"PE126"}]
[null,null,null,null,null,"Entity name",{"$f":"Settings!E2","v":"South African Revenue Service"}]
[null,null,null,null,null,"National Treasury Budget Review (Cash IS)",null,{"$f":"MyYearM3","v":"2022/23"},{"$f":"MyYearM2","v":"2023/24"},{"$f":"MyYearM1","v":"2024/25"},{"$f":"MyYear0","v":"2025/26"},{"$f":"MyYearP1","v":"2026/27"},{"$f":"MyYearP1","v":"2026/27"},{"$f":"MyYearP2","v":"2027/28"},{"$f":"MyYearP3","v":"2028/29"}]
[null,null,null,null,null,null,null,"Outcomes","Outcomes","Outcomes","Budget Estimate","Revised Estimate","Budget Estimate","Medium term estimates"]
[]
[null,null,null,null,null,"Cash receipts",null,{"$f":"SOSUC!H10+SOSUC!H33","v":12170797},{"$f":"SOSUC!I10+SOSUC!I33","v":13807887},{"$f":"SOSUC!J10+SOSUC!J33","v":12946582.556904105},{"$f":"SOSUC!K10+SOSUC!K33","v":15942360.806116154},{"$f":"SOSUC!L10+SOSUC!L33","v":15942360.806116154},{"$f":"SOSUC!M10+SOSUC!M33","v":15448121.159190124},{"$f":"SOSUC!N10+SOSUC!N33","v":16029705.772610115},{"$f":"SOSUC!O10+SOSUC!O33","v":0}]
[null,null,null,null,null,"Cash payments",null,{"$f":"SOSUC!H19-(SUM(SOSUC!H30:H32))","v":12293417.62731},{"$f":"SOSUC!I19-(SUM(SOSUC!I30:I32))","v":13592209.75506},{"$f":"SOSUC!J19-(SUM(SOSUC!J30:J32))","v":13867327.676776001},{"$f":"SOSUC!K19-(SUM(SOSUC!K30:K32))","v":15791922.394199757},{"$f":"SOSUC!L19-(SUM(SOSUC!L30:L32))","v":15791922.394199757},{"$f":"SOSUC!M19-(SUM(SOSUC!M30:M32))","v":15452680.317538388},{"$f":"SOSUC!N19-(SUM(SOSUC!N30:N32))","v":15958531.433597682},{"$f":"SOSUC!O19-(SUM(SOSUC!O30:O32))","v":0}]
[null,null,null,null,null,"Consolidated budget balance1",null,{"$f":"H11-H12","v":-122620.62731000036},{"$f":"I11-I12","v":215677.24493999965},-920745.11987189576,150438.41191639751,150438.41191639751,-4559.1583482641727,71174.339012432843,0]
[null,null,null,null,null,"Extra-ordinary payments2"]
[null,null,null,null,null,"Extra-ordinary receipts2"]
[null,null,null,null,null,"Consolidated borrowing requirement",null,{"$f":"SUM(H13:H15)","v":-122620.62731000036},{"$f":"SUM(I13:I15)","v":215677.24493999965},-920745.11987189576,150438.41191639751,150438.41191639751,-4559.1583482641727,71174.339012432843,0]
[]
[null,null,null,null,null,"Financing"]
[]
[null,null,null,null,null,"Net Financing",null,{"$f":"SUM(H21)","v":10721},{"$f":"SUM(I21)","v":-13776},-20542,0,0,-8737,0,0]
[null,null,null,null,null,"Borrowing Activities",null,{"$f":"SUM(H22:H23)","v":10721},{"$f":"SUM(I22:I23)","v":-13776},{"$f":"SUM(J22:J23)","v":-20542},0,0,-8737,0,0]
[null,null,null,null,null,"Domestic loans (net)3",null,{"$f":"SOSUC!H39+SOSUC!H42","v":10721},{"$f":"SOSUC!I39+SOSUC!I42","v":-13776},{"$f":"SOSUC!J39+SOSUC!J42","v":-20542},{"$f":"SOSUC!K39+SOSUC!K42","v":0},{"$f":"SOSUC!L39+SOSUC!L42","v":0},{"$f":"SOSUC!M39+SOSUC!M42","v":-8737},{"$f":"SOSUC!N39+SOSUC!N42","v":0},{"$f":"SOSUC!O39+SOSUC!O42","v":0}]
[null,null,null,null,null,"Foreign loans (net)3",null,{"$f":"SOSUC!H40+SOSUC!H43","v":0},{"$f":"SOSUC!I40+SOSUC!I43","v":0},{"$f":"SOSUC!J40+SOSUC!J43","v":0},{"$f":"SOSUC!K40+SOSUC!K43","v":0},{"$f":"SOSUC!L40+SOSUC!L43","v":0},{"$f":"SOSUC!M40+SOSUC!M43","v":0},{"$f":"SOSUC!N40+SOSUC!N43","v":0},{"$f":"SOSUC!O40+SOSUC!O43","v":0}]
[null,null,null,null,null,"Less: Change in cash and other balances(-consolidated borrowing requirement plus net financing)4",null,{"$f":"H16-H20","v":-133341.62731000036},{"$f":"I16-I20","v":229453.24493999965},-900203.11987189576,150438.41191639751,150438.41191639751,4177.8416517358273,71174.339012432843,0]
[]
[null,null,null,null,null,"Total financing (net)",null,{"$f":"SUM(H20,H24)","v":-122620.62731000036},{"$f":"SUM(I20,I24)","v":215677.24493999965},-920745.11987189576,150438.41191639751,150438.41191639751,-4559.1583482641727,71174.339012432843,0]
[null,null,null,null,null,"Check",null,{"$f":"H16-H26","v":0},{"$f":"I16-I26","v":0},0,0,0,0,0,0]
[]
[null,null,null,null,null,"Notes:"]
[null,null,null,null,null,"1. This balance already includes acquistions of non-financial assets and deferred income.  In a cash environment these are expensed."]
[null,null,null,null,null,"2. These are payments and receipts outside of the normal government operations transactions.  Examples are privatisation income and FDIs"]
[null,null,null,null,null,"3. Net is equal to acqusitions plus (redemption)  of loans"]
[null,null,null,null,null,"4. Change in cash and other balances includes the investments (acquisition of financial assets)"]

{"sheet":"Sign-Off","index":42,"n_rows":46,"n_cols":6,"rows_kept":46,"cut":false,"hidden":false,"merged":[]}
[]
[]
[]
[null,null,null,null,null,{"$f":"Settings!O2","v":"PE126"}]
[null,null,null,null,null,{"$f":"Settings!E2","v":"South African Revenue Service"}]
[]
[]
[]
[1]
[1]
[1]
[1]
[1]
[1]
[1]
[1]
[1]
[1]
[1,null,null,null,null,{"$f":"F5","v":"South African Revenue Service"}]
[1]
[1]
[1]
[1,null,null,null,null,"I, …………………………………………………………………………………… , certify that"]
[1,null,null,null,null,"the information in this template is complete, true and accurate, and has been compiled in line with the requirements in the MTEC Guidelines: For the preparation of expenditure estimates for the 2026 Medium Term Expenditure Framework (MTEF)."]
[1]
[{"$f":"PersonnelPub!$A$43","v":1},null,null,null,null,"Performance Bonuses"]
[{"$f":"PersonnelPub!$A$43","v":1}]
[{"$f":"PersonnelPub!$A$43","v":1},null,null,null,null,"The entity has not captured the performance bonus expenditure on the Personnel sheet because there was no budget nor payments for such bonuses.  I hereby certify that this information is true and correct."]
[{"$f":"PersonnelPub!$A$43","v":1}]
[1,null,null,null,null,"Signed by: Accounting Officer/Authority/CEO ………………………………………………………………"]
[1]
[1,null,null,null,null,"Date: ………………………………………………………………"]
[1]
[1]
[1]
[1]
[1]
[1]
[1]
[1]
[1]
[1]
[1]
[1]
[1]
[1]

{"sheet":"Metadata","index":43,"n_rows":91,"n_cols":5,"rows_kept":91,"cut":false,"hidden":true,"merged":[[79,1,79,4],[18,1,25,1],[60,1,60,4],[1,1,1,3],[11,1,14,1],[15,1,17,1],[2,1,10,1]]}
[]
[null,"Metadata"]
[null,"ContextData","ProcessActivity","ENT_MTEC"]
[null,null,"Province","National"]
[null,null,"Department",{"$f":"Information!A16","v":"National Treasury"}]
[null,null,"PublicEntity",{"$f":"Information!A14","v":"South African Revenue Service"}]
[null,null,"FinYear","2026/27"]
[null,null,"VoteNo",0]
[null,null,"Identifier",{"$f":"PENo","v":"PE126"}]
[null,null,"ProgSectionCount",{"$f":"COUNTA(Objectives)","v":15}]
[null,null,"SubprogSectionCount2","0"]
[null,"SourceRef","name",{"$f":"Information!C14","v":"x"}]
[null,null,"email",{"$f":"Information!C16","v":"x"}]
[null,null,"telephone",{"$f":"Information!C18","v":"x"}]
[null,null,"mobile"]
[null,"Platform","file modified",{"$f":"NOW()","v":45835.270940162038}]
[null,null,"OS version",{"$f":"INFO(\"OSVERSION\")","v":"Windows (64-bit) NT 10.00"}]
[null,null,"Excel version",{"$f":"INFO(\"RELEASE\")","v":"16.0"}]
[null,"SourceControl","SourceIdentifier",{"$f":"CONCATENATE(D3,\"_\",D9,\"_\",D16)","v":"ENT_MTEC_PE126_45835.270940162"}]
[null,null,"Filename",{"$f":"MID(CELL(\"filename\",A1),FIND(\"[\",CELL(\"filename\",A1))+1,FIND(\"]\",CELL(\"filename\",A1))-FIND(\"[\",CELL(\"filename\",A1))-1)","v":"SARS_PE126.xlsm"}]
[null,null,"FilePath",{"$f":"LEFT(CELL(\"filename\",A1),FIND(\"[\",CELL(\"filename\",A1),1)-1)","v":"P:\\1. Budget\\2026\\1. MTEC\\Public Entities\\Distribution templates\\National Treasury\\"}]
[null,null,"template_versionDate","=DATE(2022,10,14)"]
[null,null,"LockDate1"]
[null,null,"lockDate2"]
[null,null,"LockStatus1"]
[null,null,"LockStatus2"]
[]
[]
[]
[]
[]
[]
[]
[]
[]
[]
[]
[]
[]
[]
[]
[]
[]
[]
[]
[]
[]
[]
[]
[]
[]
[]
[]
[]
[]
[]
[]
[]
[]
[]
[null,"Macros applied on the Template"]
[null,"Macro #","Reason/Description","Date","MacroFileName"]
[null,1]
[null,2]
[null,3]
[null,4]
[null,5]
[null,6]
[null,7]
[null,8]
[null,9]
[null,10]
[]
[]
[]
[]
[]
[]
[]
[null,"Macros for individual Entity"]
[null,"Macro #","Reason/Description","Date","MacroFileName"]
[null,1]
[null,2]
[null,3]
[null,4]
[null,5]
[null,6]
[null,7]
[null,8]
[null,9]
[null,10]